{"text_format":"1","workbook":"xlsx","n_sheets":62,"sheets":["Controllo_UPLOAD","Menu","Dati_tecnici","Affidamento","Dati_conto_economico","Altri_dati_eco_fin","Finanziamenti","Soggetti_proprietari","Corrispettivi_proprietari","Soggetti_Scambio","Vendita_Servizi_ingrosso","Acquisto_Servizi_ingrosso","Nuovi_Investimenti","Dismissioni","Ammortamento_Finanziario","Info_eventuali_aggregazioni","Elenco_Bacini_Tariffari","Bacini_Tariffari_Comuni","Struttura_corrispettivi","Titolo 6 TIMSII ut_raggruppate","Ricavi_Coll_Dep","Ricavi_bacini_tariffari","Dati_Anni_precedenti","IMN_cespiti_anni_precedenti","Conferma_investimenti","IMN_Proprietari","Storico_Piano_Tariffario","DCUIT","IMN_consolidamento","IMN_gestore","Framework_schemi","VRG_Teta","Capex","ERC","FoNI","Opex","Rc","Schema di convergenza","Input_per_calcoli_finali","VRG_riepilogo","Piano_Tariffario","Conto_Economico","Rendiconto_Finanziario","Stato_Patrimoniale","TT_Gestori","TT_Comuni_ATO","TT_Tabelle_Riferimento","TT_parametri","TT_riepilogo_IMN","PdI-legenda","PdI-crono_inv","POS-Piano_Opere_Strategiche","PdI-crono_ges","PdI-riepilogo","PdI_consolidamento","QT-Acquedotto","QT-Fognatura","QT-Depurazione","QT-Altri dati","QT-Resilienza","Riepilogo_RQTI","Riepilogo_RQSII"],"not_rendered":{"charts":2,"images":10,"macros":1,"external_links":0,"defined_names":326,"comments":20,"pivot_tables":2},"unopened":[],"bounds":{"document_bytes":16777216,"sheet_cells":100000,"rows_first":2000,"rows_last":500,"rows_between":2000,"halvings":0,"cell_chars":16384,"cell_head_chars":4096},"cells_cut":0,"cells_raw":0,"read":"whole","date_system":"1900"}

{"sheet":"Controllo_UPLOAD","index":0,"n_rows":14,"n_cols":5,"rows_kept":14,"cut":false,"hidden":true,"merged":[]}
["ID_ATO","ID_Aeeg_Gestore",null,"SONO PRESENTI ATO E GESTORE ?","il file può essere caricato ?"]
[{"$f":"idato","v":0},{"$f":"Codice_ARERA","v":0},null,{"$f":"IF(A2*B2>0,\"SI\",\"NO\")","v":"NO"},"SI"]
[null,null,null,"PRECOMPILATO"]
[null,null,null,0]
[null,null,null,"1 = precompilato; 0 = deve fornire tutti i dati"]
[]
[null,null,null,"Tipo_file"]
[null,null,null,"RDT"]
[]
[null,null,null,"SI"]
[]
[]
[null,null,null,"Versione_file"]
[null,null,null,"Tool"]

{"sheet":"Menu","index":1,"n_rows":67,"n_cols":18,"rows_kept":67,"cut":false,"hidden":false,"merged":[[65,2,65,5],[66,2,66,5],[60,2,60,5],[61,2,61,5],[62,2,62,5],[63,2,63,5],[64,2,64,5],[55,2,55,5],[56,2,56,5],[57,2,57,5],[58,2,58,5],[59,2,59,5],[9,2,9,5],[12,11,12,14],[25,2,25,5],[39,2,39,5],[38,2,38,5],[32,2,32,5],[31,2,31,5],[36,2,36,5],[33,2,33,5],[37,2,37,5],[35,2,35,5],[29,2,29,5],[34,2,34,5],[53,2,53,5],[41,2,41,5],[46,2,46,5],[47,2,47,5],[1,1,1,2],[1,4,1,5],[10,2,10,5],[14,2,14,5],[8,2,8,5],[44,2,44,5],[45,2,45,5],[49,2,49,5],[22,2,22,5],[21,2,21,5],[27,2,27,5],[19,2,19,5],[54,2,54,5],[24,2,24,5],[26,2,26,5],[11,2,11,5],[13,2,13,5],[23,2,23,5],[16,2,16,5],[18,2,18,5],[17,2,17,5],[20,2,20,5],[12,2,12,5],[50,2,50,5],[51,2,51,5],[42,2,42,5],[48,2,48,5],[43,2,43,5],[40,2,40,5],[52,2,52,5],[8,11,8,14],[9,11,9,14],[17,11,17,14],[18,11,18,14],[19,11,19,14],[10,11,10,14],[11,11,11,14],[13,11,13,14],[14,11,14,14],[15,11,15,14],[16,11,16,14],[30,2,30,5],[15,2,15,5],[28,2,28,5]]}
[null,"RACCOLTA DATI TARIFFARI",null,null,null,"Per la compilazione seguire l'ordine dei fogli",null,null,null,null,"RACCOLTA DATI \"Qualità tecnica e contrattuale, PdI e POS\""]
[null,"ATO",null,null,"GESTORE"]
[null,"ID_ATO","ATO","campo_vuoto","ID_Aeeg_Gestore","Gestore",null,"DATA CALCOLO"]
[null,null,null,null,null,null,null,"Preview_RDT2026"]
[]
[null,null,null,null,null,"Indicare la natura dei dati forniti per l'anno 2025"]
[]
[null,"Sono presenti Errori","elenco schede:",null,null,null,"foglio",null,"nomi delle tabelle",null,"Sono presenti Errori","elenco schede:",null,null,null,"foglio",null,"nomi delle tabelle"]
[null,null,"Dati tecnici",null,null,null,"Dati_tecnici","scrittura",null,null,null,"QT-Acquedotto",null,null,null,"QT-Acquedotto","lettura/scrittura"]
[null,null,"Affidamento",null,null,null,"Affidamento","scrittura",null,null,null,"QT-Fognatura",null,null,null,"QT-Fognatura","lettura/scrittura"]
[null,null,"Dati di conto economico",null,null,null,"Dati_conto_economico","scrittura",null,null,null,"QT-Depurazione",null,null,null,"QT-Depurazione","lettura/scrittura"]
[null,null,"Altri dati economico finanziari",null,null,null,"Altri_dati_eco_fin","scrittura",null,null,null,"QT-Altri dati",null,null,null,"QT-Altri dati","lettura/scrittura"]
[null,null,"Finanziamenti",null,null,null,"finanziamenti","scrittura","finanziamenti",null,null,"QT-Resilienza",null,null,null,"QT-Resilienza","lettura/scrittura"]
[null,null,"Elenco soggetti proprietari",null,null,null,"soggetti_proprietari","lettura/scrittura","Elenco_Proprietari",null,null,"Riepilogo RQTI",null,null,null,"Riepilogo_RQTI","lettura/scrittura"]
[null,null,"Corrispettivi su infrastrutture di terzi",null,null,null,"Corrispettivi_proprietari","lettura/scrittura","Corrispettivi_Proprietari",null,null,"Programma degli Interventi: legenda",null,null,null,"PdI-legenda","lettura"]
[null,null,"Servizi all'ingrosso: soggetti",null,null,null,"Soggetti_Scambio","scrittura","Soggetti_Elenco",null,null,"Programma degli Interventi: cronoprogramma_investimenti",null,null,null,"PdI-crono_inv","lettura/scrittura","crono_investimenti"]
[null,null,"Servizi all'ingrosso: vendita",null,null,null,"Vendita_Servizi_ingrosso","scrittura","Vendita_Servizi",null,null,"Programma degli Interventi: POS - Piano Opere Strategiche",null,null,null,"POS-Piano_Opere_Strategiche","lettura/scrittura","crono_pos"]
[null,null,"Servizi all'ingrosso: acquisto",null,null,null,"Acquisto_Servizi_ingrosso","scrittura","Acquisto_Servizi",null,null,"Programma degli Interventi: cronoprogramma_gestionale",null,null,null,"PdI-crono_ges","lettura/scrittura","crono_gestionale"]
[null,null,"Nuovi investimenti ",null,null,null,"Nuovi_Investimenti","scrittura","Nuovi_Investimenti",null,null,"Programma degli Interventi: riepilogo",null,null,null,"PdI-riepilogo","lettura/scrittura"]
[null,null,"Dismissioni",null,null,null,"Dismissioni","scrittura","Dismissioni",null,null,"Riepilogo RQSII",null,null,null,"Riepilogo_RQSII","lettura/scrittura"]
[null,null,"Ammortamento finanziario",null,null,null,"Ammortamento_Finanziario","lettura/scrittura","AmmortamentoFinanziario"]
[null,null,"Informazioni su aggregazioni (anche ai fini dello schema di convergenza)",null,null,null,"Info_eventuali_aggregazioni","scrittura","Info_Soggetti_Aggregati"]
[null,null,"Elenco Bacini Tariffari",null,null,null,"Elenco_Bacini_Tariffari","scrittura","BaciniTariffariElenco"]
[null,null,"Bacini Tariffari e Comuni per Bacino Tariffario",null,null,null,"Bacini_Tariffari_Comuni","scrittura","Bacini_Tariffari_Comuni"]
[null,null,"Struttura dei corrispettivi",null,null,null,"Struttura_corrispettivi","scrittura"]
[null,null,"TIMSII - Consapevolezza nei consumi per utenze raggruppate",null,null,null,"Titolo 6 TIMSII ut_raggruppate","scrittura"]
[null,null,"Ricavi tariffari - Collettamento e depurazione reflui industriali",null,null,null,"Ricavi_Coll_Dep","lettura/scrittura"]
[null,null,"Ricavi tariffari totali per Bacino Tariffario",null,null,null,"Ricavi_bacini_tariffari","lettura/scrittura","Bacini_Tariffari_Ricavi"]
[null,null,"Informazioni per completamento proposta tariffaria",null,null,null,"Input_per_calcoli_finali","lettura/scrittura"]
[null,null,"Vincolo riconosciuto ai ricavi del gestore: riepilogo",null,null,null,"VRG_riepilogo","lettura/scrittura"]
[null,null,"Dati anni precedenti",null,null,null,"Dati_Anni_precedenti","lettura"]
[null,null,"Immobilizzazioni storiche",null,null,null,"IMN_cespiti_anni_precedenti","lettura","IMN_cespiti_anni_prec"]
[null,null,"Conferma investimenti preconsuntivi",null,null,null,"Conferma_investimenti","lettura/scrittura","ConfermaInvestimenti"]
[null,null,"Immobilizzazioni dei proprietari",null,null,null,"IMN_Proprietari","lettura","cespiti_proprietari"]
[null,null,"Storico Piano Tariffario",null,null,null,"Storico_Piano_Tariffario","lettura"]
[null,null,"DCUIT",null,null,null,"dcuit","calcolo"]
[null,null,"Ricostruzione immobilizzazioni del gestore",null,null,null,"IMN_consolidamento","lettura"]
[null,null,"Calcolo IMN gestore",null,null,null,"IMN_gestore","lettura"]
[null,null,"FRAMEWORK SCHEMI",null,null,null,"framework_schemi","calcolo"]
[null,null,"VRG TETA",null,null,null,"vrg_teta","calcolo"]
[null,null,"CAPEX",null,null,null,"capex","calcolo"]
[null,null,"FoNI",null,null,null,"FoNI","calcolo"]
[null,null,"OPEX",null,null,null,"opex","calcolo"]
[null,null,"ERC",null,null,null,"erc","calcolo"]
[null,null,"RC",null,null,null,"rc","calcolo"]
[null,null,"Schema di convergenza",null,null,null,"Schema di convergenza","calcolo"]
[null,null,"PEF - Piano tariffario",null,null,null,"piano_tariffario","lettura/scrittura"]
[null,null,"PEF - Conto economico",null,null,null,"conto_economico","scrittura"]
[null,null,"PEF - Stato patrimoniale",null,null,null,"Stato_patrimoniale","scrittura"]
[null,null,"PEF - Rendiconto finanziario",null,null,null,"rendiconto_finanziario","scrittura"]
[null,null,"Elenco Gestori",null,null,null,"TT_Gestori","fogli di supporto"]
[null,null,"Tabelle di supporto anagrafica territorio",null,null,null,"TT_Comuni_ATO","fogli di supporto"]
[null,null,"Tabelle di riferimento (per i menu)",null,null,null,"TT_Tabelle_Riferimento","fogli di supporto"]
[null,null,"Parametri",null,null,null,"TT_parametri","sola lettura"]
[null,null,"Riepilogo IMN",null,null,null,"TT_riepilogo_IMN","sola lettura"]
[null,null,"QT-Acquedotto",null,null,null,"QT-Acquedotto","lettura/scrittura"]
[null,null,"QT-Fognatura",null,null,null,"QT-Fognatura","lettura/scrittura"]
[null,null,"QT-Depurazione",null,null,null,"QT-Depurazione","lettura/scrittura"]
[null,null,"QT-Altri dati",null,null,null,"QT-Altri dati","lettura/scrittura"]
[null,null,"QT-Resilienza",null,null,null,"QT-Resilienza","lettura/scrittura"]
[null,null,"Riepilogo RQTI",null,null,null,"Riepilogo_RQTI","lettura/scrittura"]
[null,null,"Programma degli Interventi: legenda",null,null,null,"PdI-legenda","lettura"]
[null,null,"Programma degli Interventi: cronoprogramma_investimenti",null,null,null,"PdI-crono_inv","lettura/scrittura","crono_investimenti"]
[null,null,"Programma degli Interventi: POS - Piano Opere Strategiche",null,null,null,"POS-Piano_Opere_Strategiche","lettura/scrittura","crono_pos"]
[null,null,"Programma degli Interventi: cronoprogramma_gestionale",null,null,null,"PdI-crono_ges","lettura/scrittura","crono_gestionale"]
[null,null,"Programma degli Interventi: riepilogo",null,null,null,"PdI-riepilogo","lettura/scrittura"]
[null,null,"Riepilogo RQSII",null,null,null,"Riepilogo_RQSII","lettura/scrittura"]

{"sheet":"Dati_tecnici","index":2,"n_rows":32,"n_cols":16,"rows_kept":32,"cut":false,"hidden":false,"merged":[]}
[null,"DATI TECNICI"]
[null,"FORNITURA ELETTRICA",null,null,"ANNO 2024","ANNO 2025","ANNO 2023",null,null,null,null,null,"Errore compilazione","Errore dati EE","Errore dati pop","Sono presenti errori"]
[null,null,"Totale consumo di energia elettrica","kWh",{"$f":"+E5+E6","v":0},{"$f":"+F5+F6","v":0},{"$f":"+G5+G6","v":0},null,null,null,null,null,{"$f":"+COUNTA(E5:F5,E8:F8,E10:F10,E12:F12,G5,G8,G12)<>17","v":true},{"$f":"+MIN(E5:F5,E8:F8,E10:F10,G5,G8)<=0","v":true},{"$f":"+OR(COUNT(E15,E23,E29)=0,COUNT(F15,F23,F29)=0)","v":true},{"$f":"+OR(M3:O3)","v":true}]
[null,null,"di cui, in salvaguardia","kWh"]
[null,null,"Energia elettrica, quantità acquistata e consumata ","kWh"]
[null,null,"Energia elettrica, quantità autoprodotta e consumata","kWh"]
[null,null,"I costi di produzione dell’energia elettrica autoprodotta e consumata, ivi compresi quelli di capitale, non sono coperti da altre componenti tariffarie","SI/NO"]
[null,null,"Costo energia elettrica a bilancio","Euro"]
[null,null,"di cui, in salvaguardia","Euro"]
[null,null,"Costo medio della fornitura elettrica","Euro/kWh"]
[null,null,"Costo medio della fornitura elettrica per l'acquisto in regime di salvaguardia","Euro/kWh"]
[null,null,"Si esclude di avere acquistato energia elettrica in regime di salvaguardia per almeno 4 mesi","SI/NO"]
[null,"SERVIZIO ACQUEDOTTO"]
[null,null,"Numero di comuni serviti (ComA)","N"]
[null,null,"Popolazione residente servita (PRA)","N"]
[null,null,"Volume di acqua fatturato (A20)","m3"]
[null,null,"Utenze totali (UtT)","N"]
[null,null,"Popolazione fluttuante (PFA)","N"]
[null,null,"Superficie (SUA)","km2"]
[null,null,"Lunghezza rete (L) ","km"]
[null,"SERVIZIO FOGNATURA"]
[null,null,"Numero di comuni serviti (ComF)","N"]
[null,null,"Popolazione residente servita (PRF)","N"]
[null,null,"Lunghezza rete fognaria (LL)","km"]
[null,null,"Popolazione fluttuante (PFF)","N"]
[null,null,"Superficie (SUF)","km2"]
[null,"SERVIZIO DEPURAZIONE"]
[null,null,"Numero di comuni serviti (ComD)","N"]
[null,null,"Popolazione residente servita (PRD)","N"]
[null,null,"Popolazione fluttuante (PFD)","N"]
[null,null,"Superficie (SUD)","km2"]
[null,null,"Abitanti Equivalenti serviti da depurazione ","A.E."]

{"sheet":"Affidamento","index":3,"n_rows":25,"n_cols":16,"rows_kept":25,"cut":false,"hidden":false,"merged":[[11,2,11,3],[14,2,14,3],[16,2,16,3],[22,2,22,3]]}
[null,"AFFIDAMENTO E CAUSE DI ESCLUSIONE",null,null,"ANNI 2026-2029"]
[null,null,"Tipo affidamento","-",null,null,null,null,null,null,null,null,null,null,null,"Sono presenti errori"]
[null,null,"Data inizio affidamento","gg/mm/aaaa",null,null,null,null,null,null,null,null,null,null,null,{"$f":"+COUNTA(E2:E8)<>7","v":true}]
[null,null,"Data fine affidamento","gg/mm/aaaa"]
[null,null,"Presenza Carta dei servizi","SI/NO"]
[null,null,"Assenza di un consumo minimo impegnato per la fatturazione delle utenze","SI/NO"]
[null,null,"Versamento delle componenti perequative a CSEA","SI/NO"]
[null,null,"Assenza di ritardi e carenze nell’implementazione dei piani (in precedenza comunicati all’Autorità) per il superamento della mancanza dei pertinenti prerequisiti ","SI/NO"]
[]
[null,"BANDO TIPO",null,null,"ANNO 2026","ANNO 2027","ANNO 2028","ANNO 2029"]
[null,null,"CONDIZIONI DI AGGIUDICAZIONE EX OFFERTA ECONOMICA DI CUI ALLA DELIBERAZIONE 347/2025/R/IDR"]
[null,null,"Limite di crescita del moltiplicatore tariffario (c. 9.2, lett. c, All. A Del. 347/2025/R/idr)"]
[null,null,"Kcom (≤0%)","%"]
[null,null,"Xcom (≥0%)","%"]
[null,null,"Sharing dei margini altre attività idriche  (c. 9.2, lett. b, All. A Del. 347/2025/R/idr)"]
[null,null,"γb1com  (≤0)","N"]
[null,null,"Efficienze nei costi operativi  (c. 9.2, lett. a, All. A Del. 347/2025/R/idr)"]
[null,null,"Detrazione Opexend","Euro",{"$f":"+Input_per_calcoli_finali!K143","v":0},{"$f":"+Input_per_calcoli_finali!L143","v":0},{"$f":"+Input_per_calcoli_finali!M143","v":0},{"$f":"+Input_per_calcoli_finali!N143","v":0}]
[null,null,"Detrazione Opnew","SI/NO"]
[null,null,"Detrazione OpexQT","SI/NO"]
[null,null,"Detrazione OpexQC","SI/NO"]
[null,null,"Detrazione ERCtel","SI/NO"]
[null,null,"Procedura a evidenza pubblica con indisponibilità \ndei requisiti infomativi minimi (art. 11 All. A Del. 347/2025/R/idr)"]
[null,null,"  Detrazione COSconv","Euro"]
[null,null,"  Detrazione Capexconv","Euro"]

{"sheet":"Dati_conto_economico","index":4,"n_rows":115,"n_cols":19,"rows_kept":115,"cut":false,"hidden":false,"merged":[[1,2,1,6],[1,8,1,12],[106,3,106,5],[106,9,106,11]]}
[null,"DATI DI CONTO ECONOMICO",null,null,null,null,null,null,null,null,null,null,null,null,null,null,"Sono presenti errori","errore_voci_di_cui","mancata_compilazione"]
[null,null,"ANNO 2024",null,null,null,null,null,"ANNO 2025",null,null,null,null,null,null,null,{"$f":"+OR(R2:S2)","v":true},{"$f":"+OR(P:P)","v":false},{"$f":"SUM(C:M)=0","v":true}]
[null,null,"Totale SII","di cui ERC","SII\nescluso ERC","Altre attività idriche (c.d. Attività b)","Attività diverse",null,"Totale SII","di cui ERC","SII\nescluso ERC","Altre attività idriche (c.d. Attività b)","Attività diverse",null,"n_riga","errore compilazione"]
["VALORE DELLA PRODUZIONE (Euro)",null,{"$f":"C5+C7+C8+C9+C11","v":0},null,{"$f":"+C4-D4","v":0},{"$f":"F5+F7+F8+F9+F11","v":0},{"$f":"G5+G7+G8+G9+G11","v":0},null,{"$f":"I5+I7+I8+I9+I11","v":0},null,{"$f":"+I4-J4","v":0},{"$f":"L5+L7+L8+L9+L11","v":0},{"$f":"M5+M7+M8+M9+M11","v":0},null,0,{"$f":"OR(C13>C4,F13>F4,G13>G4,I13>I4,L13>L4,M13>M4)","v":false}]
[null,"A1) Ricavi delle vendite e delle prestazioni",null,null,{"$f":"+C5-D5","v":0},null,null,null,null,null,{"$f":"+I5-J5","v":0},null,null,null,1]
[null,"di cui da altre imprese del gruppo",null,null,{"$f":"+C6-D6","v":0},null,null,null,null,null,{"$f":"+I6-J6","v":0},null,null,null,2,{"$f":"OR(C6>C5,F6>F5,G6>G5,I6>I5,L6>L5,M6>M5)","v":false}]
[null,"A2) Variazioni rimanenze di prodotti in corso di lavorazione, semilavorati e finiti",null,null,0,null,null,null,null,null,0,null,null,null,3]
[null,"A3) Variazioni dei lavori in corso su ordinazione",null,null,0,null,null,null,null,null,0,null,null,null,4]
[null,"A4) Incrementi di immobilizzazioni per lavori interni (inclusi costi del personale)",null,null,0,null,null,null,null,null,0,null,null,null,5]
[null,"di cui per realizzazione allacciamenti idrici e fognari",null,null,0,null,null,null,null,null,0,null,null,null,6,{"$f":"OR(C10>C9,F10>F9,G10>G9,I10>I9,L10>L9,M10>M9)","v":false}]
[null,"A5) Altri ricavi e proventi",null,null,0,null,null,null,null,null,0,null,null,null,7]
[null,"di cui da altre imprese del gruppo",null,null,0,null,null,null,null,null,0,null,null,null,8,{"$f":"OR(C12>C11,F12>F11,G12>G11,I12>I11,L12>L11,M12>M11)","v":false}]
["ULTERIORI SPECIFICAZIONI DEI RICAVI (Euro)",null,{"$f":"SUM(C14:C40)","v":0},null,{"$f":"+C13-D13","v":0},{"$f":"SUM(F14:F40)","v":0},{"$f":"SUM(G14:G40)","v":0},null,{"$f":"SUM(I14:I40)","v":0},null,{"$f":"+I13-J13","v":0},{"$f":"SUM(L14:L40)","v":0},{"$f":"SUM(M14:M40)","v":0},null,9]
[null,"Ricavi da articolazione tariffaria",null,null,{"$f":"+C14-D14","v":0},null,null,null,null,null,{"$f":"+I14-J14","v":0},null,null,null,10]
[null,"Vendita di acqua all’ingrosso",null,null,0,null,null,null,null,null,0,null,null,null,11]
[null,"Acquedotto (utenti non allacciati alla pubblica fognatura)",null,null,0,null,null,null,null,null,0,null,null,null,13]
[null,"Vendita di acqua non potabile o ad uso industriale",null,null,0,null,null,null,null,null,0,null,null,null,14]
[null,"Vendita di acqua forfetaria",null,null,0,null,null,null,null,null,0,null,null,null,15]
[null,"Fornitura bocche antincendio",null,null,0,null,null,null,null,null,0,null,null,null,16]
[null,"Fognatura e depurazione civile (approvvigionamento autonomo)",null,null,0,null,null,null,null,null,0,null,null,null,17]
[null,"Fognatura e depurazione di acque reflue industriali",null,null,0,null,null,null,null,null,0,null,null,null,18]
[null,"Contributi di allacciamento",null,null,0,null,null,null,null,null,0,null,null,null,19]
[null,"Prestazioni e servizi accessori",null,null,0,null,null,null,null,null,{"$f":"+I23-J23","v":0},null,null,null,20]
[null,"Vendita di acqua con autobotte",null,null,0,null,null,null,null,null,{"$f":"+I24-J24","v":0},null,null,null,22]
[null,"Trattamento percolati",null,null,null,null,null,null,null,null,null,null,null,null,23]
[null,"Trattamento bottini",null,null,null,null,null,null,null,null,null,null,null,null,24]
[null,"Gestione fognature bianche (v. comma 1.1 All. A. del 639/2023/R/idr)",null,null,0,null,null,null,null,null,0,null,null,null,25]
[null,"Pulizia e manutenzione caditoie stradali (v. comma 1.1 All. A. del 639/2023/R/idr)",null,null,0,null,null,null,null,null,0,null,null,null,26]
[null,"Installazione/gestione bocche antincendio",null,null,null,null,null,null,null,null,null,null,null,null,27]
[null,"Vendita di servizi a terzi",null,null,null,null,null,null,null,null,null,null,null,null,28]
[null,"Lavori conto terzi",null,null,0,null,null,null,null,null,0,null,null,null,29]
[null,"Spurgo pozzi neri",null,null,null,null,null,null,null,null,null,null,null,null,30]
[null,"Rilascio autorizzazioni allo scarico",null,null,null,null,null,null,null,null,null,null,null,null,31]
[null,"Lottizzazioni",null,null,null,null,null,null,null,null,null,null,null,null,32]
[null,"Riuso delle acque di depurazione",null,null,{"$f":"+C35-D35","v":0},null,null,null,null,null,null,null,null,null,33]
[null,"Case dell’acqua",null,null,null,null,null,null,null,null,null,null,null,null,34]
[null,"Proventi straordinari",null,null,0,null,null,null,null,null,0,null,null,null,35]
[null,"Contributi in conto esercizio",null,null,0,null,null,null,null,null,0,null,null,null,36]
[null,"Rimborsi e indennizzi",null,null,0,null,null,null,null,null,0,null,null,null,37]
[null,"Ricavi da altre attività (non inclusi nelle suddette voci)",null,null,null,null,null,null,null,null,null,null,null,null,38]
[null,null,null,null,null,null,null,null,null,null,null,null,null,null,39]
["COSTI DELLA PRODUZIONE (Euro)",null,{"$f":"C43+C46++C59+C62+C65+SUM(C69:C72)","v":0},{"$f":"D43+D46++D59+D62+D65+SUM(D69:D72)","v":0},{"$f":"+C42-D42","v":0},{"$f":"F43+F46++F59+F62+F65+SUM(F69:F72)","v":0},{"$f":"G43+G46++G59+G62+G65+SUM(G69:G72)","v":0},null,{"$f":"I43+I46++I59+I62+I65+SUM(I69:I72)","v":0},{"$f":"J43+J46++J59+J62+J65+SUM(J69:J72)","v":0},{"$f":"+I42-J42","v":0},{"$f":"L43+L46++L59+L62+L65+SUM(L69:L72)","v":0},{"$f":"M43+M46++M59+M62+M65+SUM(M69:M72)","v":0},null,40,{"$f":"+OR(C42<(C43+C46+C59+C62+C65+SUM(C69:C72)),D42<(D43+D46+D59+D62+D65+SUM(D69:D72)),F42<(F43+F46+F59+F62+F65+SUM(F69:F72)),G42<(G43+G46+G59+G62+G65+SUM(G69:G72)),I42<(I43+I46+I59+I62+I65+SUM(I69:I72)),J42<(J43+J46+J59+J62+J65+SUM(J69:J72)),L42<(L43+L46+L59+L62+L65+SUM(L69:L72)),M42<(M43+M46+M59+M62+M65+SUM(M69:M72)))","v":false}]
[null,"B6) Per materie prime, sussidiarie, di consumo e merci",null,null,{"$f":"+C43-D43","v":0},null,null,null,null,null,{"$f":"+I43-J43","v":0},null,null,null,41]
[null,"di cui per materiali per manutenzioni",null,null,{"$f":"+C44-D44","v":0},null,null,null,null,null,{"$f":"+I44-J44","v":0},null,null,null,44]
[null,"di cui per reagenti",null,null,{"$f":"+C45-D45","v":0},null,null,null,null,null,{"$f":"+I45-J45","v":0},null,null,null,45]
[null,"B7) Per servizi",{"$f":"+SUM(C47:C58)","v":0},{"$f":"+SUM(D47:D58)","v":0},{"$f":"+C46-D46","v":0},{"$f":"+SUM(F47:F58)","v":0},{"$f":"+SUM(G47:G58)","v":0},null,{"$f":"+SUM(I47:I58)","v":0},{"$f":"+SUM(J47:J58)","v":0},{"$f":"+I46-J46","v":0},{"$f":"+SUM(L47:L58)","v":0},{"$f":"+SUM(M47:M58)","v":0},null,46]
[null,"energia elettrica da altre imprese del gruppo",null,null,{"$f":"+C47-D47","v":0},null,null,null,null,null,{"$f":"+I47-J47","v":0},null,null,null,47]
[null,"energia elettrica da altre imprese",null,null,0,null,null,null,null,null,0,null,null,null,48]
[null,"ricerca perdite (da terzi)",null,null,0,null,null,null,null,null,0,null,null,null,49]
[null,"ricerca perdite (da altre imprese del gruppo)",null,null,0,null,null,null,null,null,0,null,null,null,50]
[null,"smaltimento rifiuti (da terzi)",null,null,0,null,null,null,null,null,0,null,null,null,51]
[null,"smaltimento rifiuti (da altre imprese del gruppo)",null,null,0,null,null,null,null,null,0,null,null,null,52]
[null,"trasporto e smaltimento fanghi (da terzi)",null,null,0,null,null,null,null,null,0,null,null,null,53]
[null,"trasporto e smaltimento fanghi (da altre imprese del gruppo)",null,null,0,null,null,null,null,null,0,null,null,null,54]
[null,"manutenzioni ordinarie (da terzi)",null,null,0,null,null,null,null,null,0,null,null,null,55]
[null,"manutenzioni ordinarie (da altre imprese del gruppo)",null,null,0,null,null,null,null,null,0,null,null,null,56]
[null,"altri servizi da altre imprese del gruppo",null,null,0,null,null,null,null,null,0,null,null,null,57]
[null,"altri servizi da altre imprese",null,null,0,null,null,null,null,null,0,null,null,null,58]
[null,"B8) Per godimento beni di terzi",null,null,0,null,null,null,null,null,{"$f":"+I59-J59","v":0},null,null,null,59,{"$f":"OR(C59<SUM(C60:C61),D59<SUM(D60:D61),F59<SUM(F60:F61),G59<SUM(G60:G61),I59<SUM(I60:I61),J59<SUM(J60:J61),L59<SUM(L60:L61),M59<SUM(M60:M61))","v":false}]
[null,"di cui per uso impianti di altre imprese del gruppo",null,null,0,null,null,null,null,null,0]
[null,"di cui altre spese verso altre imprese del gruppo",null,null,0,null,null,null,null,null,0]
[null,"B9) Per il personale",null,null,0,null,null,null,null,null,0,null,null,null,74,{"$f":"+OR(C62<(C63+C64),D62<(D63+D64),F62<(F63+F64),G62<(G63+G64),I62<(I63+I64),J62<(J63+J64),L62<(L63+L64),M62<(M63+M64))","v":false}]
[null,"di cui per salari e stipendi",null,null,0,null,null,null,null,null,0,null,null,null,75]
[null,"di cui per trattamento di fine rapporto (inclusa rivalutazione)",null,null,0,null,null,null,null,null,0,null,null,null,76]
[null,"B10) Ammortamenti e svalutazioni",null,null,0,null,null,null,null,null,0,null,null,null,77,{"$f":"OR(C65<SUM(C66:C68),D65<SUM(D66:D68),F65<SUM(F66:F68),G65<SUM(G66:G68),I65<SUM(I66:I68),J65<SUM(J66:J68),L65<SUM(L66:L68),M65<SUM(M66:M68))","v":false}]
[null,"di cui per altre svalutazioni delle immobilizzazioni",null,null,0,null,null,null,null,null,0,null,null,null,78]
[null,"di cui per svalutazione dei crediti compresi nell'attivo circolante e delle disponibilità liquide",null,null,0,null,null,null,null,null,0,null,null,null,79]
[null,"di cui per Immobilizzazioni immateriali: avviamenti, capitalizzazione concessione, etc.",null,null,0,null,null,null,null,null,0,null,null,null,80]
[null,"B11) Variazione delle rimanenze di materie prime, sussidiarie, di consumo e merci",null,null,0,null,null,null,null,null,0,null,null,null,81]
[null,"B12) Accantonamenti per rischi",null,null,0,null,null,null,null,null,0,null,null,null,82]
[null,"B13) Altri accantonamenti",null,null,0,null,null,null,null,null,0,null,null,null,83]
[null,"B14) Oneri diversi di gestione",null,null,0,null,null,null,null,null,0,null,null,null,84]
["ULTERIORI SPECIFICAZIONI DEI COSTI (Euro)",null,{"$f":"SUM(C74:C92)+C93+C97-C81","v":0},{"$f":"SUM(D74:D92)+D93+D97-D81","v":0},0,{"$f":"SUM(F74:F92)+F93+F97-F81","v":0},0,null,{"$f":"SUM(I74:I92)+I93+I97-I81","v":0},{"$f":"SUM(J74:J92)+J93+J97-J81","v":0},0,{"$f":"SUM(L74:L92)+L93+L97-L81","v":0},0,null,85]
[null,"Accantonamenti e rettifiche in eccesso rispetto all'applicazione di norme tributarie",null,null,0,null,null,null,null,null,0,null,null,null,86]
[null,"Rettifiche di valori di attività finanziarie",null,null,0,null,null,null,null,null,0,null,null,null,87]
[null,"Costi connessi all'erogazione di liberalità",null,null,0,null,null,null,null,null,0,null,null,null,88]
[null,"Costi pubblicitari e di marketing (incluse le imposte connesse)",null,null,0,null,null,null,null,null,0,null,null,null,89]
[null,"Oneri per sanzioni, penalità, risarcimenti automatici e simili",null,null,0,null,null,null,null,null,0,null,null,null,90]
[null,"Oneri straordinari",null,null,0,null,null,null,null,null,0,null,null,null,91]
[null,"Spese processuali",null,null,0,null,null,null,null,null,0,null,null,null,115]
[null,"di cui spese processuali in cui la parte è risultata soccombente",null,null,0,null,null,null,null,null,0,null,null,null,92]
[null,"Contributi associativi",null,null,0,null,null,null,null,null,0,null,null,null,93]
[null,"Spese di viaggio e di rappresentanza",null,null,0,null,null,null,null,null,0,null,null,null,94]
[null,"Spese di funzionamento Ente di governo dell'ambito",null,null,0,null,null,null,null,null,0,null,null,null,95]
[null,"Canoni di affitto immobili non industriali",null,null,0,null,null,null,null,null,0,null,null,null,96]
[null,"Costi di realizzazione degli allacciamenti idrici e fognari",null,null,0,null,null,null,null,null,0,null,null,null,97]
[null,"Gestione fognature bianche (v. comma 1.1 All. A. del 639/2023/R/idr)",null,null,0,null,null,null,null,null,0,null,null,null,98]
[null,"Pulizia e manutenzione caditoie stradali (v. comma 1.1 All. A. del 639/2023/R/idr)",null,null,0,null,null,null,null,null,0,null,null,null,99]
[null,"Perdite su crediti per la sola quota parte eccedente l'utilizzo del fondo",null,null,0,null,null,null,null,null,0,null,null,null,100]
[null,"Costi di strutturazione dei progetti di finanziamento (non capitalizzati)",null,null,0,null,null,null,null,null,0,null,null,null,101]
[null,"di cui della voce B7): lavorazioni eseguite da terzi di tipo labour intensive (ad esempio gestione call center) e consulenze  ",null,null,0,null,null,null,null,null,0,null,null,null,102,{"$f":"OR(C91>C46,F91>F46,G91>G46,I91>I46,L91>L46,M91>M46)","v":false}]
[null,"Trasporto e smaltimento fanghi non già inclusi nella voce B7)",null,null,0,null,null,null,null,null,0,null,null,null,103]
[null,"Uso infrastrutture di terzi",{"$f":"+SUM(C94:C96)","v":0},{"$f":"+SUM(D94:D96)","v":0},0,{"$f":"+SUM(F94:F96)","v":0},{"$f":"+SUM(G94:G96)","v":0},null,{"$f":"+SUM(I94:I96)","v":0},{"$f":"+SUM(J94:J96)","v":0},0,{"$f":"+SUM(L94:L96)","v":0},{"$f":"+SUM(M94:M96)","v":0},null,104]
[null,"rimborso mutui di comuni, aziende speciali, società patrimoniali",null,null,0,null,null,null,null,null,{"$f":"+I94-J94","v":0},null,null,null,105]
[null,"altri corrispettivi a comuni, aziende speciali, società patrimoniali",null,null,0,null,null,null,null,null,{"$f":"+I95-J95","v":0},null,null,null,106]
[null,"corrispettivi a gestori preesistenti, altri proprietari",null,null,0,null,null,null,null,null,{"$f":"+I96-J96","v":0},null,null,null,107]
[null,"Oneri locali",{"$f":"+SUM(C98:C103)","v":0},{"$f":"+SUM(D98:D103)","v":0},0,{"$f":"+SUM(F98:F103)","v":0},{"$f":"+SUM(G98:G103)","v":0},null,{"$f":"+SUM(I98:I103)","v":0},{"$f":"+SUM(J98:J103)","v":0},{"$f":"+I97-J97","v":0},{"$f":"+SUM(L98:L103)","v":0},{"$f":"+SUM(M98:M103)","v":0},null,108]
[null,"canoni di derivazione/sottensione idrica",null,null,0,null,null,null,null,null,{"$f":"+I98-J98","v":0},null,null,null,109]
[null,"contributi per consorzi di bonifica",null,null,0,null,null,null,null,null,0,null,null,null,110]
[null,"contributi a comunità montane",null,null,0,null,null,null,null,null,0,null,null,null,111]
[null,"canoni per restituzione acque",null,null,0,null,null,null,null,null,0,null,null,null,112]
[null,"oneri per la gestione di aree di salvaguardia",null,null,0,null,null,null,null,null,0,null,null,null,113]
[null,"Altri oneri locali (Canone unico, IMU, TARI)",null,null,0,null,null,null,null,null,0,null,null,null,114]
[]
[]
[]
["ULTERIORI SPECIFICAZIONI DELLE ALTRE ATTIVITÀ IDRICHE (Euro)",null,null,"ANNO 2024",null,null,null,null,null,"ANNO 2025"]
[]
["Altre attività idriche relative ai seguenti obiettivi di sostenibilità energetica ed ambientale",null,null,"Ricavi",null,"Costi",null,null,null,"Ricavi",null,"Costi"]
[]
[null,"a) efficienza energetica nelle attività e nelle infrastrutture qualora non riconducibile al servizio idrico integrato"]
[null,"b) riduzione dell’utilizzo della plastica mediante la promozione del consumo di acqua potabile anche tramite l’installazione di fontanelle"]
[null,"c) recupero di energia - elettrica e termica - e di materie prime mediante impianti o specifici trattamenti integrati nelle infrastrutture idriche, nonché diffusione di energia da fonti rinnovabili per l’alimentazione degli impianti del servizio idrico integrato"]
[]
[null,null,null,null,null,null,null,null,null,null,null,null,null,null,115,{"$f":"+OR(SUM(D111:D113)>F4,SUM(J111:J113)>L4,SUM(F111:F113)>F42,SUM(L111:L113)>L42)","v":false}]

{"sheet":"Altri_dati_eco_fin","index":5,"n_rows":107,"n_cols":18,"rows_kept":107,"cut":false,"hidden":false,"merged":[]}
[null,"FONTI DI FINANZIAMENTO"]
[null,null,null,null,"ANNO 2024","ANNO 2025",null,null,null,null,null,null,null,null,"errore nei dati per morosità","errore nei dati in valore assoluto","errore nelle voci \"di cui\"","Sono presenti errori"]
[null,null,"Mezzi Propri","Euro",null,null,null,null,null,null,null,null,null,null,{"$f":"+OR(E31*F31=0,E31=\"\",F31=\"\")","v":true},{"$f":"+OR(E17:F19=\"\",E24:F26=\"\",E27:F27=\"\",E31:F32=\"\",E49:E50=\"\",F49:F50=\"\",E52:F54=\"\",E55:F56=\"\",E76:F84=\"\",E67=\"\",E86:F86=\"\")","v":true},{"$f":"OR(E6>E5,F6>F5,E12>E11,F12>F11)","v":false},{"$f":"+OR(O3:Q3)","v":true}]
[null,"MEZZI DI TERZI"]
[null,null,"Finanziamenti a medio-lungo termine","Euro"]
[null,null,"di cui verso società controllate e collegate e verso controllanti","Euro"]
[null,null,"Tasso medio finanziamenti a medio-lungo termine","%"]
[null,null,"Prestiti obbligazionari","Euro"]
[null,null,"Tasso medio Prestiti obbligazionari","%"]
[null,null,"Altre passitivtà consolidate","Euro"]
[null,null,"Finanziamenti a breve termine","Euro"]
[null,null,"di cui verso società controllate e collegate e verso controllanti","Euro"]
[null,null,"Tasso medio Finanziamenti a breve termine","%"]
[null,null,"Altre passività correnti","Euro"]
[null,null,"Debiti tributari","Euro"]
[null,"TFR, FONDO RISCHI E ALTRI"]
[null,null,"TFR","Euro"]
[null,null,"Fondo di quiescenza","Euro"]
[null,null,"Fondo rischi e oneri","Euro"]
[null,null,"Fondo rischi su crediti","Euro"]
[null,null,"Fondo svalutazione crediti","Euro"]
[null,null,"Valore Deposito cauzionale","Euro"]
[null,null,"Fondo imposte e tasse (anche differite)","Euro"]
[null,null,"Fondo sentenza Corte Costituzionale 335/2008","Euro"]
[null,null,"Fondo per il ripristino di beni di terzi","Euro"]
[null,null,"Fondo vincolato al finanziamento della spesa per investimenti comma 10.1 lett. f) MTI-4","Euro"]
["\n",null,"Fondo per il finanziamento di tariffe sociali o di solidarietà","Euro"]
[]
[null,"ALTRI DATI ECONOMICO FINANZIARI"]
[null,"MOROSITA'",null,null,"ANNO 2024","ANNO 2025"]
[null,null,"Unpaid Ratio (UR) a 24 mesi effettivamente rilevato","%"]
[null,null,"Rimborsi dagli utenti finali relativi alla gestione della morosità","Euro"]
[null,null,"Percentuale al fatturato per COdil (comma 28.4 MTI-3)","%"]
[null,null,"Comor - comma 30.2-bis MTI-4 (ai fini del calcolo delle componenti 2026-2029)","SI/NO"]
[null,"IMPOSTE"]
[null,null,"IRES","Euro"]
[null,null,"IRAP","Euro"]
[null,null,"Imposte differite","Euro"]
[null,null,"Imposte anticipate","Euro"]
[null,null,"Aliquota media di tassazione, IRAP inclusa","%"]
[null,"ALTRI IMPORTI IN BOLLETTA "]
[null,null,"Ui1 (importo fatturato componente Ui1)","Euro"]
[null,null,"Ui2 (importo fatturato componente Ui2)","Euro"]
[null,null,"Ui3 (importo fatturato componente Ui3)","Euro"]
[null,null,"Ui4 (importo fatturato componente Ui4)","Euro"]
[null,null,"Componente [(1+γOPi,j)*max{0;ΔOpex}] (importo fatturato)","Euro"]
[null,null,"Altre componenti perequative","Euro"]
[null,"ALTRI DATI PER CALCOLO RC"]
[null,null,"Contributo versato ad ARERA","Euro"]
[null,null,"Costi per variazioni sistemiche o per eventi eccezionali","Euro"]
[null,null,"di cui: per eventi eccezionali, energia elettrica","Euro"]
[null,null,"di cui: per eventi eccezionali, altro","Euro"]
[null,null,"Costo delle forniture all’ingrosso transfrontaliere","Euro"]
[null,null,"Rimborsi effettuati ai sensi sentenza CC 335/2008 ed eccedenti la quota riconosciuta in tariffa","Euro"]
[null,null,"FONInoninv - riportare il dato in eccedenza rispetto alle componenti DCUITFoNI e AMMFoNI - comma 28.1 lett. e) MTI-4","Euro"]
[null,null,"FoNIspesa ai sensi del comma 36.3 MTI-4","Euro"]
[null,null,"Scostamento in ordine ai volumi fatturati\ncomma 28.3 lett. a) MTI-4","Euro"]
[null,null,"Costi operativi e conguagli\ncomma 28.3 lett. b-bis) MTI-4","Euro"]
[null,"ALTRI DATI PER CALCOLO RC",null,null,"per tariffe 2026","per tariffe 2027"]
[null,null,"RCARC - art. 29 lett a) MTI-4","Euro"]
[null,null,"RCARC - art. 29 lett b) MTI-4","Euro"]
[null,null,"RCARC - art. 29 lett c) MTI-4","Euro"]
[null,null,"Penalità RQSII - Delibera 277/2025/R/IDR (decurtazione VRG)","Euro"]
[null,null,"Penalità RQTI - Delibera 225/2025/R/IDR (decurtazione VRG)","Euro"]
[null,"ALTRI DATI PER IL CALCOLO DELLA COMPONENTE CAPEX",null,null,"ANNO 2024","ANNO 2025","ANNO 2026","ANNO 2027","ANNO 2028","ANNO 2029"]
[null,null,"DCUIT capex  (dettagliare nella relazione le motivazioni della collocazione tra i capex)","Euro"]
[null,null,"Ammortamento finanziario ammissibile\n ai sensi del comma 11.8 lettera a) MTI-4","SI/NO"]
[null,"ALTRI DATI PER IL CALCOLO DELLE COMPONENTI OPEX E RC",null,null,"ANNO 2024","ANNO 2025","ANNO 2026","ANNO 2027","ANNO 2028","ANNO 2029"]
[null,null,"Opex2025end,new - comma 18.1 lett.b) MTI-4 (al lordo degli ERC)","Euro"]
[null,null,"Opnew- comma 19.2 MTI-4 (al lordo degli ERC)","Euro",null,null,{"$f":"Input_per_calcoli_finali!K30","v":0},{"$f":"Input_per_calcoli_finali!L30","v":0},{"$f":"Input_per_calcoli_finali!M30","v":0},{"$f":"Input_per_calcoli_finali!N30","v":0}]
[null,null,"Opnew esplicitati come ERC, comma 27.1 MTI-4","Euro"]
[null,null,"OpexQT (al lordo degli ERC) - adeguamenti agli standard di qualità tecnica di cui alla deliberazione 917/2017/R/IDR\n(commi 19.8 lett. a) e 28.1 MTI-4)","Euro",{"$f":"+SUMIFS('PdI-crono_ges'!O:O,'PdI-crono_ges'!$K:$K,\"lettera a)\")","v":0},{"$f":"+SUMIFS('PdI-crono_ges'!S:S,'PdI-crono_ges'!$K:$K,\"lettera a)\")","v":0},{"$f":"+SUMIFS('PdI-crono_ges'!V:V,'PdI-crono_ges'!$K:$K,\"lettera a)\")","v":0},{"$f":"+SUMIFS('PdI-crono_ges'!W:W,'PdI-crono_ges'!$K:$K,\"lettera a)\")","v":0},{"$f":"+SUMIFS('PdI-crono_ges'!X:X,'PdI-crono_ges'!$K:$K,\"lettera a)\")","v":0},{"$f":"+SUMIFS('PdI-crono_ges'!Y:Y,'PdI-crono_ges'!$K:$K,\"lettera a)\")","v":0}]
[null,null,"OpexQT (al lordo degli ERC) - adeguamenti agli standard di qualità tecnica di cui alla deliberazione 637/2023/R/IDR\n(commi 19.8 lett. b) e 28.1 MTI-4)","Euro",{"$f":"+SUMIFS('PdI-crono_ges'!O:O,'PdI-crono_ges'!$K:$K,\"lettera b)\")","v":0},{"$f":"+SUMIFS('PdI-crono_ges'!S:S,'PdI-crono_ges'!$K:$K,\"lettera b)\")","v":0},{"$f":"+SUMIFS('PdI-crono_ges'!V:V,'PdI-crono_ges'!$K:$K,\"lettera b)\")","v":0},{"$f":"+SUMIFS('PdI-crono_ges'!W:W,'PdI-crono_ges'!$K:$K,\"lettera b)\")","v":0},{"$f":"+SUMIFS('PdI-crono_ges'!X:X,'PdI-crono_ges'!$K:$K,\"lettera b)\")","v":0},{"$f":"+SUMIFS('PdI-crono_ges'!Y:Y,'PdI-crono_ges'!$K:$K,\"lettera b)\")","v":0}]
[null,null,"OpexQT  (al lordo degli ERC)\n(commi 19.8 lett. c) - 477/2023 e 28.1 MTI-4)","Euro",{"$f":"+SUMIFS('PdI-crono_ges'!O:O,'PdI-crono_ges'!$K:$K,\"lettera c) 477/2023/R/IDR\")","v":0},{"$f":"+SUMIFS('PdI-crono_ges'!S:S,'PdI-crono_ges'!$K:$K,\"lettera c) 477/2023/R/IDR\")","v":0},{"$f":"+SUMIFS('PdI-crono_ges'!V:V,'PdI-crono_ges'!$K:$K,\"lettera c) 477/2023/R/IDR\")","v":0},{"$f":"+SUMIFS('PdI-crono_ges'!W:W,'PdI-crono_ges'!$K:$K,\"lettera c) 477/2023/R/IDR\")","v":0},{"$f":"+SUMIFS('PdI-crono_ges'!X:X,'PdI-crono_ges'!$K:$K,\"lettera c) 477/2023/R/IDR\")","v":0},{"$f":"+SUMIFS('PdI-crono_ges'!Y:Y,'PdI-crono_ges'!$K:$K,\"lettera c) 477/2023/R/IDR\")","v":0}]
[null,null,"OpexQT  (al lordo degli ERC)\n(commi 19.8 lett. c) - 225/2025 e 28.1 MTI-4)","Euro",null,null,{"$f":"+SUMIFS('PdI-crono_ges'!V:V,'PdI-crono_ges'!$K:$K,\"lettera c) 225/2025/R/IDR\")","v":0},{"$f":"+SUMIFS('PdI-crono_ges'!W:W,'PdI-crono_ges'!$K:$K,\"lettera c) 225/2025/R/IDR\")","v":0},{"$f":"+SUMIFS('PdI-crono_ges'!X:X,'PdI-crono_ges'!$K:$K,\"lettera c) 225/2025/R/IDR\")","v":0},{"$f":"+SUMIFS('PdI-crono_ges'!Y:Y,'PdI-crono_ges'!$K:$K,\"lettera c) 225/2025/R/IDR\")","v":0}]
[null,null,"OpexaQC - per adeguamenti agli standard di qualità contrattuale di cui alla deliberazione 655/2015/R/IDR\n(commi 19.9 lett. a) e 28.1 MTI-4)","Euro"]
[null,null,"OpexaQC - per l'adeguamento agli obiettivi di cui alla deliberazione 547/2019/R/IDR\n(commi 19.9 lett. a) e 28.1 MTI-4)","Euro"]
[null,null,"Opexqc \n(commi 19.9 lettera b) - 476/2023/R/IDR e 28.1 MTI-4)","Euro"]
[null,null,"Opexqc \n(commi 19.9 lettera b) - 277/2025/R/IDR e 28.1 MTI-4)","Euro"]
[null,null,"OpexaQC - nuovi obiettivi di qualità contrattuale di cui alla deliberazione 579/2025/R/IDR\n(comma 19.9 lett. a-bis)","Euro"]
[null,null,"Opsocial per bonus integrativo\n(commi 19.10 lett a) e 28.1 MTI-4)","Euro"]
[null,null,"Opsocial per oneri bonus utenze indirette\n(commi 19.10 lett a-bis))","Euro"]
[null,null,"Opsocial ex comma 7.3 lett. a), REMSII (commi 19.10 lettera b) e  28.1 MTI-4)","Euro"]
[null,null,"Opmis \n(commi 19.11 e 28.1 MTI-4)","Euro"]
[null,null,"Opwsexp,a - comma 22.2 MTI-4","Euro",{"$f":"+Dati_Anni_precedenti!E45","v":0},{"$f":"+Dati_Anni_precedenti!F45","v":0}]
[null,null,"COΔfanghi (rispetto condizionalità comma 23.2 MTI-4)","SI/NO"]
[null,"ULTERIORI SPECIFICAZIONI PER I CALCOLI TARIFFARI",null,null,null,null,"ANNO 2026","ANNO 2027","ANNO 2028","ANNO 2029"]
[null,null,"Anticipazione trend di diminuzione costo energia\n(in riduzione del costo massimo ammissibile di energia elettrica)","Euro "]
[null,null,"Contributi in c/e\n(eventuale correzione double counting)","Euro "]
[null,null,"ERCopex da piano tariffario","Euro ",null,null,{"$f":"+ERC!E220","v":0},{"$f":"+ERC!F220","v":0},{"$f":"+ERC!G220","v":0},{"$f":"+ERC!H220","v":0}]
[null,null,"Resopex - comma 27.2 MTI-4","Euro "]
[]
[null,"ALTRI DATI RELATIVI ALLA GESTIONE "]
[null,"CONSISTENZA DEL  PERSONALE",null,null,"ANNO 2024","ANNO 2025"]
[null,null,"Dirigenti","N."]
[null,null,"Quadri","N."]
[null,null,"Impiegati","N."]
[null,null,"Operai","N."]
[null,null,"Collaboratori","N."]
[null,"COSTI DEL  PERSONALE",null,null,"ANNO 2024","ANNO 2025"]
[null,null,"Dirigenti","Euro"]
[null,null,"Quadri","Euro"]
[null,null,"Impiegati","Euro"]
[null,null,"Operai","Euro"]
[null,null,"Collaboratori","Euro"]
[null,"SPESA IN RICERCA E SVILUPPO",null,null,"ANNO 2024","ANNO 2025"]
[null,null,"Totale spesa in ricerca e sviluppo","Euro"]

{"sheet":"Finanziamenti","index":6,"n_rows":8,"n_cols":11,"rows_kept":8,"cut":false,"hidden":false,"merged":[]}
[null,"Finanziamenti (capitale di terzi)"]
[]
[]
[]
[]
[]
["n_riga","Importo finanziato (€) ","Soggetto finanziatore ","Data di sottoscrizione del finanziamento (gg/mm/aaaa)","Data di scadenza del finanziamento (gg/mm/aaaa)","Garanzie richieste","Anno","Quota capitale","Tasso medio d'interesse (%)","Quota interessi (€)","Debito residuo (€)"]
[{"$f":"+ROW()-7","v":1}]

{"sheet":"Soggetti_proprietari","index":7,"n_rows":8,"n_cols":17,"rows_kept":8,"cut":false,"hidden":false,"merged":[]}
[null,"ELENCO SOGGETTI PROPRIETARI"]
[]
[null,null,"Elenco proprietari infrastrutture per calcolo Mutui/Altri corrispettivi ed eventuale Stratificazione di terzi",null,null,null,null,null,null,null,null,null,null,null,"Sono presenti Errori"]
[null,null,null,null,null,null,null,null,null,null,null,null,null,null,{"$f":"+OR(O5:Q5)","v":false}]
[null,null,null,null,null,null,null,null,null,null,null,null,null,null,{"$f":"OR(INDEX(Elenco_Proprietari,0,15)=TRUE)","v":false},{"$f":"OR(INDEX(Elenco_Proprietari,0,16))","v":false},{"$f":"OR(INDEX(Elenco_Proprietari,0,17))","v":false}]
[]
["N_riga","Key_Prop","Soggetto Proprietario","Tipologia di proprietario","P. IVA \nProprietario","Codice Istat\nComune proprietario","Proprietario ai fini dei corrispettivi AC/MT","Proprietario non più presente ai fini della RAB di terzi","Fusione","Numero Cespiti","Key_Prop_bis","New_Key_prop","Proprietario risultante dalla fusione","per costruzione","Errore Proprietari duplicati","Errore PIVA o CodiceISTAT","Errore tipologia"]
[{"$f":"+ROW(A8)-7","v":1},{"$f":"idato & \"_\" & idgestore & \"-\" & IF($D8=\"Comune\",$F8,\"\") & \"-\" &IF($D8=\"Comune\",\"\",$E8)","v":"_--"},null,null,null,null,null,null,"NO",null,{"$f":"B8","v":"_--"},{"$f":"IF(I8=\"SI\",VLOOKUP(M8,C:K,9,0),K8)","v":"_--"},"Nuovo comune",{"$f":"+IF(H8=\"SI\",L8,0)","v":0},{"$f":"IF(COUNTIF(B:B,B8)>1,IF(COUNTA(C8:H8)=0,FALSE,TRUE),FALSE)","v":false},{"$f":"IF(COUNTA(E8:F8)<1,IF(COUNTA(C8:H8)=0,FALSE,TRUE),FALSE)","v":false},{"$f":"IF(COUNTA(D8)<1,IF(COUNTA(C8:H8)=0,FALSE,TRUE),FALSE)","v":false}]

{"sheet":"Corrispettivi_proprietari","index":8,"n_rows":8,"n_cols":37,"rows_kept":8,"cut":false,"hidden":false,"merged":[]}
[null,"COSTI ASSOCIATI AI SOGGETTI PROPRIETARI"]
[]
[null,null,"Imputare per ciascun soggetto proprietario il valore dei Mutui MT e altri corrispettivi AC"]
[null,null,null,null,null,null,null,null,null,null,null,null,null,null,null,null,null,null,null,null,null,null,null,null,null,null,null,null,null,null,null,null,null,null,null,null,"Sono presenti errori"]
[null,null,null,null,null,null,null,null,null,null,null,null,null,null,null,null,null,null,null,null,null,null,null,null,null,null,null,null,null,null,null,null,null,null,null,null,{"$f":"OR(INDEX(Corrispettivi_Proprietari,0,COLUMN($AK$8)-COLUMN($A$8)+1))","v":false}]
[null,null,null,null,null,null,"Rimborso della rata dei mutui (MT)",null,null,null,null,null,null,"Altri corrispettivi (AC)",null,null,null,null,null,null,null,null,"MT - controllo Anno deliberazione e Tipologia Proprietario",null,null,null,null,null,null,"AC - controllo Anno deliberazione e Tipologia Proprietario"]
["N_riga","Key_Prop","Soggetto Proprietario","Tipologia di proprietario","P. IVA \nProprietario","Codice Istat\nComune proprietario","Anno di deliberazione ","previsto 2024 (€)","previsto 2025 (€)","previsto 2026 (€)","previsto 2027 (€)","previsto 2028 (€)","previsto 2029 (€)","Anno di deliberazione ","Canoni connessi alla stipula di ulteriori contratti di finanziamento\n(tipo contratti di locazione finanziaria di opere di pubblica utilità)","previsto 2024 (€)","previsto 2025 (€)","previsto 2026 (€)","previsto 2027 (€)","previsto 2028 (€)","previsto 2029 (€)",null,"MT 2024","MT 2025","MT 2026","MT 2027","MT 2028","MT 2029",null,"AC 2024","AC 2025","AC 2026","AC 2027","AC 2028","AC 2029",null,"Errore duplicazione soggetto"]
[{"$f":"+ROW(A8)-7","v":1},{"$f":"IFERROR(IF(VLOOKUP(C8,Soggetti_proprietari!C:K,9,0)=0,\"\",VLOOKUP(C8,Soggetti_proprietari!C:K,9,0)),\"\")","v":""},null,{"$f":"IFERROR(IF(VLOOKUP(C8,Soggetti_proprietari!C:K,2,0)=0,\"\",VLOOKUP(C8,Soggetti_proprietari!C:K,2,0)),\"\")","v":""},{"$f":"IFERROR(IF(VLOOKUP(C8,Soggetti_proprietari!C:K,3,0)=0,\"\",VLOOKUP(C8,Soggetti_proprietari!C:K,3,0)),\"\")","v":""},{"$f":"IFERROR(IF(VLOOKUP(C8,Soggetti_proprietari!C:K,4,0)=0,\"\",VLOOKUP(C8,Soggetti_proprietari!C:K,4,0)),\"\")","v":""},null,null,null,null,null,null,null,null,null,null,null,null,null,null,null,null,null,null,{"$f":"+IF(AND($G8<=2023,$G8<>\"\",$D8<>\"Altra società privata\",$B8<>\"\"),J8,0)","v":0},0,0,0,null,null,null,{"$f":"+IF(AND($N8<=2006,$N8<>\"\",$D8<>\"Altra società privata\",$B8<>\"\"),R8,IF($O8=\"SI\",R8,0))","v":0},0,0,0,null,{"$f":"IF(COUNTIF(B:B,B8)>1,IF(AND(G8=\"\",J8=\"\",K8=\"\",N8=\"\",R8=\"\",S8=\"\",C8=\"\"),FALSE,TRUE),FALSE)","v":false}]

{"sheet":"Soggetti_Scambio","index":9,"n_rows":8,"n_cols":17,"rows_kept":8,"cut":false,"hidden":false,"merged":[[4,1,4,4]]}
[null,"SCAMBI ALL'INGROSSO"]
[null,null,null,null,null,null,null,null,null,null,null,null,null,null,null,null,"Sono presenti errori"]
[null,"per ciascun soggetto indicare almeno l'ID gestore oppure la Partita IVA",null,null,null,null,null,null,null,null,null,null,null,null,null,null,{"$f":"+OR(INDEX(Soggetti_Elenco,0,13))","v":false}]
[]
[null,"1. Soggetti con cui si hanno scambi di Servizi all'ingrosso (Vendita e/o Acquisto)"]
[]
[null,"IDGestore","Nome soggetto","Partita Iva ",null,null,null,"nome_soggetto","id_gestore","P.IVA","errore\nidgestore","errore\nP.IVA","errore idgestore o Partita Iva"]
[{"$f":"+ROW(A8)-7","v":1},null,null,null,null,null,null,{"$f":"+IFERROR(VLOOKUP(I8,TT_Gestori!A:C,3,FALSE),IFERROR(VLOOKUP(D8,TT_Gestori!B:C,2,FALSE),+C8))","v":0},{"$f":"IFERROR(VLOOKUP(B8,TT_Gestori!A:C,1,FALSE),IFERROR(VLOOKUP(D8,TT_Gestori!B:D,3,FALSE),B8))","v":0},{"$f":"IFERROR(VLOOKUP(D8,TT_Gestori!C:C,1,FALSE),IFERROR(VLOOKUP(I8,TT_Gestori!A:C,2,FALSE),D8))","v":0},{"$f":"+OR(I8=\"\",I8=0)","v":true},{"$f":"+OR(J8=\"\",J8=0)","v":true},{"$f":"+IF(AND(B8=\"\",C8=\"\",D8=\"\",ROW(B8)=8),FALSE,IF(OR(H8=\"\",H8=0,K8=TRUE,L8=TRUE),TRUE,FALSE))","v":false}]

{"sheet":"Vendita_Servizi_ingrosso","index":10,"n_rows":6,"n_cols":38,"rows_kept":6,"cut":false,"hidden":false,"merged":[[2,1,2,4]]}
[null,"SCAMBI ALL'INGROSSO"]
[]
[null,"2. Ricavi da tariffe applicate nella Vendita all'ingrosso"]
[null,null,null,null,null,"ANNO 2023",null,null,null,null,null,"ANNO 2024",null,null,null,null,null,"ANNO 2025",null,null,null,null,null,null,null,"J ANNO 2024",null,null,null,null,"J ANNO 2025"]
["N_riga","Idgestore","Soggetto a cui si vende","ATO","Servizio","Volumi erogati / trattati\n(m3/anno)","QV\n(Euro/m3)","-","Utenze\n(numero)","QF\n(Euro/utente/anno)","Importo\n(Euro/anno)","Volumi erogati / trattati\n(m3/anno)","QV\n(Euro/m3)","-","Utenze\n(numero)","QF\n(Euro/utente/anno)","Importo\n(Euro/anno)","Volumi erogati / trattati\n(m3/anno)","QV\n(Euro/m3)","-","Utenze\n(numero)","QF\n(Euro/utente/anno)","Importo\n(Euro/anno)","Le tariffe riportate per il 2024 includono l'applicazione del Teta?","Teta medio applicato nella fatturazione dell'anno 2024","Teta approvato dal soggetto competente per l'anno 2024","Teta approvato dall'Autorità per l'anno 2024","delibera Autorità","Le tariffe riportate per il 2025 includono l'applicazione del Teta?","Teta medio applicato nella fatturazione dell'anno 2025","Teta approvato dal soggetto competente per l'anno 2025","Teta approvato dall'Autorità per l'anno 2025","delibera Autorità",null,"tar2023*vol2024","tar2023*vol2025","tar2024*vol2024","tar2025*vol2025"]
[{"$f":"+ROW(A6)-5","v":1},null,null,null,null,null,null,null,null,null,{"$f":"+F6*G6+I6*J6","v":0},null,null,null,null,null,{"$f":"+L6*M6+O6*P6","v":0},null,null,null,null,null,{"$f":"+U6*V6+R6*S6","v":0},null,null,null,{"$f":"+Dati_Anni_precedenti!$E$5","v":0},{"$f":"++Dati_Anni_precedenti!$G$4","v":0},null,null,null,{"$f":"+Dati_Anni_precedenti!$F$5","v":0},{"$f":"++Dati_Anni_precedenti!$G$4","v":0},null,{"$f":"+O6*$J6+L6*$G6","v":0},{"$f":"+U6*$J6+R6*$G6","v":0},{"$f":"+Q6","v":0},{"$f":"+W6","v":0}]

{"sheet":"Acquisto_Servizi_ingrosso","index":11,"n_rows":6,"n_cols":26,"rows_kept":6,"cut":false,"hidden":false,"merged":[[2,1,2,4],[3,6,3,11],[3,12,3,16],[3,17,3,22]]}
[null,"SCAMBI ALL'INGROSSO"]
[]
[null,"3. Costi per acquisto all'ingrosso",null,null,null,null,"costi sostenuti di fornitura all'ingrosso, criterio di competenza",null,null,null,null,null,null,null,null,null,null,"costi a seguito dell'applicazione del J al grossista "]
[null,null,null,null,null,null,"COeffettivo ai fini del COws comma 22.1 MTI-4",null,null,null,null,null,"informazione sui J ",null,null,null,null,"Coeffettivo ai fini del RCws comma 28.1 MTI-4"]
["N_riga","Idgestore","Soggetto da cui si acquista","ATO","Servizio","Anno","Volumi erogati / trattati\n(m3/anno)","QV\n(Euro/m3)","-","Utenze\n(numero)","QF\n(Euro/utente/anno)","Importo\n(Euro/anno)","Le tariffe applicate per la fatturazione includono l'applicazione del Teta?","Teta medio applicato dal grossista nella fatturazione dell'anno indicato","Teta approvato dal soggetto competente","Teta approvato dall'Autorità","delibera Autorità","Volumi erogati / trattati\n(m3/anno)","QV\n(Euro/m3)","-","Utenze\n(numero)","QF\n(Euro/utente/anno)","Importo\n(Euro/anno)",null,null,"check per RCws"]
[{"$f":"+ROW(A6)-5","v":1},{"$f":"+IFERROR(VLOOKUP(C6,soggetto_j,2,FALSE),\"\")","v":0},null,null,null,null,null,null,null,null,null,{"$f":"+G6*H6+J6*K6","v":0},null,null,null,null,null,null,null,null,null,null,{"$f":"+R6*S6+U6*V6","v":0},null,null,"Verificare che i soggetti j ai fini del calcolo degli RC dell'anno a corrispondano a quelli dei Cows dell'anno a-2"]

{"sheet":"Nuovi_Investimenti","index":12,"n_rows":16,"n_cols":29,"rows_kept":16,"cut":false,"hidden":false,"merged":[]}
[null,"IMMOBILIZZAZIONI DEL GESTORE",null,null,null,null,"Tutti i valori si intendono a moneta dell'anno del cespite"]
["1. LAVORI IN CORSO",null,null,null,null,null,null,null,null,null,null,null,"errori_compilazione","errore_PdI","Sono_presenti_errori"]
[null,null,null,2024,2025,2026,2027,null,null,null,null,null,{"$f":"+OR(INDEX(Nuovi_Investimenti,0,29))","v":true},{"$f":"+(D10+E10-'PdI-riepilogo'!F4-'PdI-riepilogo'!G4)<>0","v":false},{"$f":"++OR(M3:N3)","v":true}]
[null,null,"Saldo LICord (al netto dei saldi che risultino invariati da più di 4 anni)",{"$f":"'PdI-riepilogo'!E146","v":0},{"$f":"'PdI-riepilogo'!F146","v":0},{"$f":"'PdI-riepilogo'!C146","v":0},{"$f":"'PdI-riepilogo'!D146","v":0}]
[null,null,"Saldo LICpos (al netto dei saldi che risultino invariati da più di 5 anni)"]
[]
["2. NUOVI INVESTIMENTI (2022-2023)"]
[null,null,null,2024,2025,2026,2027]
[null,null,"FoNI da riportare a CFP",{"$f":"Altri_dati_eco_fin!E56","v":0},{"$f":"Altri_dati_eco_fin!F56","v":0}]
[null,null,"Totale nuovi investimenti",{"$f":"+SUMIF($T:$T,D$8,$U:$U)","v":0},{"$f":"+SUMIF($T:$T,E$8,$U:$U)","v":0},{"$f":"PdI_consolidamento!X4","v":0},{"$f":"PdI_consolidamento!Y4","v":0},null,null,null,"Valore","Spazio per eventuale compilazione manuale del valore di incidenza"]
[null,null,"incidenza ENV (%) su RAB MTI-4",{"$f":"+IF($K11<>\"\",$K11,\"\")","v":""},"","","",null,null,null,null,"incidenza ENV (%)"]
[null,null,"incidenza RES (%) su RAB MTI-4",{"$f":"+IF($K12<>\"\",$K12,\"\")","v":""},"","","",null,null,null,null,"incidenza RES (%)"]
[null,null,"incidenza FoNI (%)",{"$f":"IFERROR(D9/D10,0)","v":0},{"$f":"IFERROR(E9/E10,0)","v":0}]
[]
["N_riga","Categoria del cespite","Categoria di Immobilizzazione","Attività","Tipologia di costo sotteso\n(\"Env\", \"Res\", \"Non ERC\")","Anno cespite","IP (Euro)","CFP (Euro)","CFP da FoNI","CFP Totale","IDATO","IDGestore","Gestore_Proprietario","N_prop","Fonte","ID_Categoria_Cespite","CategoriaCespite","ID_Immobilizzazione","IMMOBILIZZAZIONE","AnnoCespite","IP","FAIP","CFP","FACP","-","ERC","Attività","foglio di origine","controllo_errori"]
[{"$f":"+ROW(A16)-15","v":1},null,null,{"$f":"+IFERROR(VLOOKUP(B16,TT_Tabelle_Riferimento!$G$127:$I$164,3,FALSE),\"\")","v":""},null,null,null,null,{"$f":"+IFERROR(HLOOKUP(F16,$D$8:$E$13,6,FALSE)*G16,0)","v":0},{"$f":"+I16+H16","v":0},{"$f":"idato","v":0},{"$f":"idgestore","v":0},"Gestore",0,"IP",{"$f":"+IFERROR(VLOOKUP(Q16,TT_Tabelle_Riferimento!$G$127:$K$164,5,0),0)","v":0},{"$f":"+IFERROR(VLOOKUP(B16,TT_Tabelle_Riferimento!$G$127:$K$164,1,0),0)","v":0},{"$f":"+IFERROR(VLOOKUP(S16,cat_imm_new,2,0),0)","v":0},{"$f":"+IFERROR(VLOOKUP(C16,cat_imm_new,1,0),0)","v":0},{"$f":"F16","v":0},0,0,{"$f":"J16","v":0},0,null,{"$f":"+IF(OR(E16=\"Res\",E16=\"Env\",E16=\"Non ERC\"),E16,\"\")","v":""},{"$f":"+IF(OR(D16=\"Acquedotto\",D16=\"Fognatura\",D16=\"Depurazione\",D16=\"Comune\"),D16,\"\")","v":""},"Nuovi_Investimenti",{"$f":"+IF(OR(K16:L16=0,P16=0,R16=0),TRUE,FALSE)","v":true}]

{"sheet":"Dismissioni","index":13,"n_rows":8,"n_cols":32,"rows_kept":8,"cut":false,"hidden":false,"merged":[]}
[null,"IMMOBILIZZAZIONI DEL GESTORE",null,null,null,null,"Tutti i valori si intendono a moneta dell'anno del cespite"]
["3. DISMISSIONI"]
[null,null,null,null,null,null,null,null,null,null,null,null,"Sono presenti errori"]
[null,null,null,null,null,null,null,null,null,null,null,null,{"$f":"+OR(INDEX(Dismissioni,0,32))","v":false}]
[]
[]
["N_riga","Categoria del cespite","Categoria di Immobilizzazione","Attività","Tipologia di costo sotteso\n(\"Env\", \"Res\", \"Non ERC\")","Anno dismissione","Anno cespite","IP (Euro)","FA (Euro)","CFP (Euro)","FA cfp (Euro)",null,"IDATO","IDGESTORE","Gestore_Proprietario","N_prop","Fonte","ID_Categoria_Cespite","CategoriaCespite","ID_Immobilizzazione","IMMOBILIZZAZIONE","AnnoDismissione","IP","FAIP","CFP","FACFP","-","ERC","Attività","foglio di origine","AnnoCespite","controllo_errori"]
[{"$f":"+ROW(A8)-8","v":0},null,null,{"$f":"+IFERROR(IF(G8>=2020,VLOOKUP(B8,TT_Tabelle_Riferimento!$G$127:$I$164,3,FALSE),\"\"),\"\")","v":""},null,null,null,null,null,null,null,null,{"$f":"idato","v":0},{"$f":"idgestore","v":0},"Gestore",0,"IP",{"$f":"+IFERROR(IF(G8<2020,VLOOKUP(B8,id_cat_ces,2,FALSE),VLOOKUP(B8,TT_Tabelle_Riferimento!$G$127:$K$164,5,FALSE)),0)","v":0},{"$f":"+IFERROR(IF(G8<2020,VLOOKUP(B8,id_cat_ces,1,FALSE),VLOOKUP(B8,TT_Tabelle_Riferimento!$G$127:$K$164,1,FALSE)),0)","v":0},{"$f":"+IFERROR(VLOOKUP(U8,cat_imm_new,2,0),0)","v":0},{"$f":"+IFERROR(VLOOKUP(C8,cat_imm_new,1,0),0)","v":0},{"$f":"+F8","v":0},{"$f":"+IFERROR(IP(ABS($H8),$R8,$T8,$G8,V8+2,ifl),0)*-1","v":0},{"$f":"+IFERROR(FondoAmm(ABS($H8),ABS($I8),$G8,$R8,$T8,V8+2,IF($G8>=2020,vite_regolatorie_new,vite_regolatorie),ifl),0)*-1","v":0},{"$f":"+IFERROR(CFP_A(ABS($J8),$R8,$T8,$G8,V8+2,ifl),0)*-1","v":0},{"$f":"+IFERROR(FACFP(ABS($J8),ABS($K8),$G8,$R8,$T8,V8+2,IF($G8>=2020,vite_regolatorie_new,vite_regolatorie),ifl),0)*-1","v":0},{"$f":"+G8","v":0},{"$f":"+IF(OR(E8=\"Res\",E8=\"Env\",E8=\"Non ERC\"),E8,\"\")","v":""},{"$f":"+IF(OR(D8=\"Acquedotto\",D8=\"Fognatura\",D8=\"Depurazione\",D8=\"Comune\"),D8,\"\")","v":""},"Dismissioni",{"$f":"+G8","v":0},{"$f":"+IF(OR(M8:N8=0,R8=0,T8=0),IF(COUNTA(A:A)>3,TRUE,FALSE),FALSE)","v":false}]

{"sheet":"Ammortamento_Finanziario","index":14,"n_rows":8,"n_cols":14,"rows_kept":8,"cut":false,"hidden":false,"merged":[]}
[null,"IMMOBILIZZAZIONI DEL GESTORE",null,null,null,null,null,"Verificare puntualmente le informazioni eventualmente precompilate e integrare fornendo le informazioni solo con riferimento alle annualità e ai cespiti per cui si ricorre all'ammortamento finanziario"]
["3. Vite utili finanziarie"]
[null,null,null,null,null,2022,2023,2024,2025,2026,2027,null,null,"Sono presenti errori"]
[null,null,null,null,"Ammortamento finanziario",{"$f":"+Dati_Anni_precedenti!E91","v":0},{"$f":"+Dati_Anni_precedenti!F91","v":0},{"$f":"+IF(OR(iAF=\"SI\",schema=\"IV\",schema=\"V\",schema=\"VI\"),\"SI\",\"NO\")","v":"NO"},{"$f":"+IF(OR(iAF=\"SI\",schema=\"IV\",schema=\"V\",schema=\"VI\"),\"SI\",\"NO\")","v":"NO"},{"$f":"+IF(OR(iAF=\"SI\",schema=\"IV\",schema=\"V\",schema=\"VI\"),\"SI\",\"NO\")","v":"NO"},{"$f":"+IF(OR(iAF=\"SI\",schema=\"IV\",schema=\"V\",schema=\"VI\"),\"SI\",\"NO\")","v":"NO"},null,null,{"$f":"+OR(INDEX(AmmortamentoFinanziario,0,14))","v":false}]
[]
[]
["n_riga","Anno cespite RIF","Anno calcolo","Categoria","Vita utile finanziaria","Per dismissioni","AnnoCespiteRIF","AnnoCespiteRIF-AnnoCalcolo","ID Categoria cespite","Vita utile regolatoria","Ammortamento finanziario \n(SI/NO)","Vita utile ai fini del calcolo",null,"Controllo ERRORI"]
[{"$f":"+ROW(A8)-7","v":1},null,null,null,null,null,{"$f":"+IF(B8=\"\",\"\",IF(F8=\"SI\",C8-2,IF(OR(B8=\"1967-2011\",B8<2012),2011,B8)))","v":""},{"$f":"+IF(B8=\"\",\"\",G8&\"-\"&C8&\"-\"&I8&IF(OR(B8=\"1967-2011\",B8<2020,F8=\"SI\"),\"_old\",\"_new\"))","v":""},{"$f":"+IFERROR(VLOOKUP(D8,IF(OR(IF(B8=\"1967-2011\",2011,B8)<2020,F8=\"SI\"),id_cat_ces,imm_nuovi_inv),IF(OR(IF(B8=\"1967-2011\",2011,B8)<2020,F8=\"SI\"),2,5),FALSE),\"\")","v":""},{"$f":"+IFERROR(IF(RIGHT(H8,4)=\"_old\",VLOOKUP(I8,TT_Tabelle_Riferimento!$H$31:$I$50,2,FALSE),VLOOKUP(I8,TT_Tabelle_Riferimento!$D$127:$H$164,5,FALSE)),\"\")","v":""},{"$f":"+IFERROR(IF(VALUE(LEFT(H8,4))=2011,IF(iAF=\"\",\"NO\",iAF),IF(VLOOKUP(VALUE(LEFT(H8,4)),rif_metodo,3,FALSE)=\"\",\"NO\",VLOOKUP(VALUE(LEFT(H8,4)),rif_metodo,3,FALSE))),\"\")","v":""},{"$f":"+IFERROR(IF(AND(K8=\"SI\",E8>0),E8,J8),\"\")","v":""},null,{"$f":"+IF(COUNTIFS(A:A,\">0\",G:G,G8,H:H,H8,I:I,I8)<=1,FALSE,TRUE)","v":false}]

{"sheet":"Info_eventuali_aggregazioni","index":15,"n_rows":10,"n_cols":19,"rows_kept":10,"cut":false,"hidden":false,"merged":[]}
[null,"AGGREGAZIONI"]
[null,null,null,null,null,null,null,null,null,null,null,null,null,"Sono presenti errori"]
[null,null,null,null,null,null,null,null,null,null,null,null,null,{"$f":"+OR(S:S)","v":false}]
[null,"In caso di compilazione, fornire tutte le informazioni richieste"]
[null,"1. INFORMAZIONI SUI SOGGETTI AGGREGATI"]
[]
[]
[]
[null,"Nome del soggetto","IDARERA della gestione aggregata","Tipologia di gestione","P. IVA ","Eventuale Codice Istat\n(per gestioni comunali)","gestore esercente il servizio di\nAcquedotto","gestore esercente il servizio di\nFognatura","gestore esercente il servizio di\nDepurazione","popolazione\n(la maggiore tra i servizi forniti in origine)","grado di completezza dei dati","Anno tariffario a partire dal quale la gestione è integrata",null,"Nome soggetto","idgestore","popolazione","Regolazione tariffaria applicabile",null,"Sono presenti errori"]
[{"$f":"+ROW(A10)-9","v":1},null,null,null,null,null,null,null,null,null,null,null,null,{"$f":"+IF(B10=\"\",\"-\",B10)","v":"-"},{"$f":"+IF(C10=\"\",\"-\",C10)","v":"-"},{"$f":"+IF(J10=\"\",\"-\",J10)","v":"-"},{"$f":"+IF(Input_per_calcoli_finali!$K$25=\"\",\"\",Input_per_calcoli_finali!$K$25)","v":""},null,{"$f":"+AND((COUNTA(B10:E10)+COUNTA(G10:K10))<>9,COUNTA(B10:K10)>0)","v":false}]

{"sheet":"Elenco_Bacini_Tariffari","index":16,"n_rows":8,"n_cols":7,"rows_kept":8,"cut":false,"hidden":false,"merged":[[4,1,4,3]]}
[null,"RICAVI TARIFFARI"]
[null,null,null,null,null,null,"Sono presenti errori"]
[null,null,null,null,null,null,{"$f":"+OR(F:F)","v":true}]
[]
[null,"1 - Bacini Tariffari"]
[]
[null,"N_Riga","Bacino Tariffario","N_Riga bis",null,"Errore denominazione Ambito"]
[null,{"$f":"+ROW(A8)-7","v":1},null,{"$f":"+B8","v":1},null,{"$f":"+C8=\"\"","v":true}]

{"sheet":"Bacini_Tariffari_Comuni","index":17,"n_rows":8,"n_cols":8,"rows_kept":8,"cut":false,"hidden":false,"merged":[[4,1,4,3]]}
[null,"RICAVI TARIFFARI"]
[null," ",null,null,null,null,null,"Sono presenti errori"]
[null,null,null,null,null,null,null,{"$f":"+OR(F:G)","v":true}]
[]
[null,"2 - Comuni per ciascun Bacino Tariffario"]
[]
["N_Riga","Ambito tariffario","Comune","Codice ISTAT ",null,"Errore denominazione Ambito","Errore Codice ISTAT"]
[{"$f":"+ROW(A8)-7","v":1},null,null,{"$f":"IFERROR(VLOOKUP(C8,TT_Comuni_ATO!X:Y,2,0),\"\")","v":""},null,{"$f":"+IF(ISNA(VLOOKUP(B8,Elenco_Bacini_Tariffari!C:C,1,FALSE)),TRUE,FALSE)","v":true},{"$f":"+IF(AND(B8=\"\",C8=\"\",D8=\"\"),FALSE,IF(COUNTA(B8:D8)<>3,TRUE,FALSE))","v":false}]

{"sheet":"Struttura_corrispettivi","index":18,"n_rows":22,"n_cols":47,"rows_kept":22,"cut":false,"hidden":false,"merged":[[10,1,21,1],[10,2,21,2],[10,3,21,3],[10,4,21,4],[10,5,19,5]]}
[null,"RICAVI TARIFFARI"]
[null,null,null,null,null,null,null,null,null,null,null,null,null,null,null,null,null,null,null,null,null,null,null,null,null,null,null,null,null,null,null,null,null,null,null,null,null,null,null,null,null,null,null,"Sono presenti errori","errori bacino_tariffario","errori_tipologia","errori_volumi"]
[null,null,null,null,null,null,null,null,null,null,null,null,null,null,null,null,null,null,null,null,null,null,null,null,null,null,null,null,null,null,null,null,null,null,null,null,null,null,null,null,null,null,null,{"$f":"+OR(AS3:AU3)","v":true},{"$f":"+IFERROR(OR(AD:AD),FALSE)","v":true},{"$f":"+IFERROR(OR(AE:AE),FALSE)","v":true},{"$f":"+OR(AP:AP)","v":false}]
[]
[null,"3 - Articolazione Tariffaria"]
[]
[]
[null,null,null,null,null,null,null,null,"vigente al 31/12/2015",null,"vigente al 31/12/2015"]
[null,"Bacino tariffario","Tipologia d'uso","Sottotipologia","1° scaglione a tariffa agevolata","Servizio idrico","Min di scaglione\n(m3/2023)","Max di scaglione\n(m3/2023)","Min di scaglione\n(m3/2024)","Max di scaglione\n(m3/2024)","Min di scaglione\n(m3/2025)","Max di scaglione\n(m3/2025)","QV (Euro/m3)\n2023","QV (Euro/m3)\n2024","QV (Euro/m3)\n2025","Volumi (m3/anno)\n2023","Volumi (m3/anno)\n2024","Volumi (m3/anno)\n2025","QF (Euro/utenti/anno)\n2023","QF (Euro/utenti/anno)\n2024","QF (Euro/utenti/anno)\n2025","Utenze (numero/anno)\n2023","Utenze (numero/anno)\n2024","Utenze (numero/anno)\n2025","Utenze raggruppate/ condominiali (numero/anno) 2025","Utenti indiretti sottesi alle utenze raggruppate/ condominiali (numero/anno) 2025","Volumi delle utenze raggruppate/ condominiali (m3/anno) 2025","UTENTI FINALI\n(numero/anno) 2025","Consumo medio annuo (mc)","Bacino_Tariffario","Tipologia","Sottotipologia","Servizio","tar2023*vscal2024","tar2023*vscal2025","tar2024*vscal2024","tar2025*vscal2025","num_scaglione","n_riga_blocco","blocco","agevolata","verifica di cui volumi delle utenze raggruppate/ condominiali"]
[null,null,null,null,null,null,null,null,"Min_Scaglione","Max_Scaglione","Min_Scaglione","Max_Scaglione",null,null,null,null,null,null,null,null,null,null,null,null,null,null,null,null,null,"Ambito_Tariffario"]
[null,null,null,null,null,"Acquedotto",0,null,0,null,0,null,null,null,null,null,null,null,null,null,null,null,null,null,null,null,null,{"$f":"+Y11+(X11-Z11)","v":0},null,{"$f":"+IFERROR(VLOOKUP(B11,Elenco_Bacini_Tariffari!C:C,1,FALSE),TRUE)","v":true},{"$f":"+IFERROR(VLOOKUP(C11,ticsi_tipol,1,FALSE),TRUE)","v":true},{"$f":"+D11","v":0},"Acquedotto",{"$f":"+IFERROR($M11*Q11+$S11*W11,0)","v":0},{"$f":"+IFERROR($M11*R11+$S11*X11,0)","v":0},{"$f":"+IFERROR($N11*Q11+$T11*W11,0)","v":0},{"$f":"+IFERROR(O11*R11+U11*X11,0)","v":0},1,1,{"$f":"+IF(ROW()=11,1,(ROW()+1)/12)","v":1},{"$f":"+IF(E11=\"SI\",1,IF(E11=\"NO\",0,\"\"))","v":""},{"$f":"+IF(AA11>SUM(R11:R20),TRUE,FALSE)","v":false}]
[null,null,null,null,null,null,{"$f":"+IF(H11=0,\"\",H11+1)","v":""},null,{"$f":"+IF(J11=0,\"\",J11+1)","v":""},null,{"$f":"+IF(L11=0,\"\",L11+1)","v":""},null,null,null,null,null,null,null,null,null,null,null,null,null,null,null,null,null,null,{"$f":"AD11","v":true},{"$f":"+AE11","v":true},{"$f":"+AF11","v":0},"Acquedotto",{"$f":"+IFERROR($M12*Q12,0)","v":0},{"$f":"+IFERROR($M12*R12,0)","v":0},{"$f":"+IFERROR($N12*Q12,0)","v":0},{"$f":"+IFERROR(O12*R12,0)","v":0},{"$f":"+IF(OR(K12<>\"\",ISNUMBER(K12)=TRUE),AL11+1,0)","v":0},2,{"$f":"+AN11","v":1},{"$f":"+AO11","v":""},{"$f":"+AP11","v":false}]
[null,null,null,null,null,null,{"$f":"+IF(H12=0,\"\",H12+1)","v":""},null,"",null,{"$f":"+IF(L12=0,\"\",L12+1)","v":""},null,null,null,null,null,null,null,null,null,null,null,null,null,null,null,null,null,null,true,{"$f":"+AE12","v":true},{"$f":"+AF12","v":0},"Acquedotto",0,0,0,0,0,3,{"$f":"+AN12","v":1},"",false]
[null,null,null,null,null,null,"",null,"",null,"",null,null,null,null,null,null,null,null,null,null,null,null,null,null,null,null,null,null,true,true,0,"Acquedotto",0,0,0,0,0,4,1,"",false]
[null,null,null,null,null,null,"",null,"",null,"",null,null,null,null,null,null,null,null,null,null,null,null,null,null,null,null,null,null,true,true,0,"Acquedotto",0,0,0,0,0,5,1,"",false]
[null,null,null,null,null,null,"",null,"",null,"",null,null,null,null,null,null,null,null,null,null,null,null,null,null,null,null,null,null,true,true,0,"Acquedotto",0,0,0,0,0,6,1,"",false]
[null,null,null,null,null,null,"",null,"",null,"",null,null,null,null,null,null,null,null,null,null,null,null,null,null,null,null,null,null,true,true,0,"Acquedotto",0,0,0,0,0,7,1,"",false]
[null,null,null,null,null,null,"",null,"",null,"",null,null,null,null,null,null,null,null,null,null,null,null,null,null,null,null,null,null,true,true,0,"Acquedotto",0,0,0,0,0,8,1,"",false]
[null,null,null,null,null,null,"",null,"",null,"",null,null,null,null,null,null,null,null,null,null,null,null,null,null,null,null,null,null,true,true,0,"Acquedotto",0,0,0,0,0,9,1,"",false]
[null,null,null,null,null,null,"",null,"",null,"",null,null,null,null,null,null,null,null,null,null,null,null,null,null,null,null,null,null,true,true,0,"Acquedotto",0,0,0,0,0,10,1,"",false]
[null,null,null,null,null,"Fognatura",null,null,null,null,null,null,null,null,null,null,null,null,null,null,null,null,null,null,null,null,null,{"$f":"+Y21+(X21-Z21)","v":0},null,true,true,0,"Fognatura",0,0,{"$f":"+IFERROR($N21*Q21+$T21*W21,0)","v":0},{"$f":"+IFERROR(O21*R21+U21*X21,0)","v":0},1,11,1,"",{"$f":"+IF(AA21>R21,TRUE,FALSE)","v":false}]
[null,null,null,null,null,"Depurazione",null,null,null,null,null,null,null,null,null,null,null,null,null,null,null,null,null,null,null,null,null,{"$f":"+Y22+(X22-Z22)","v":0},null,true,true,0,"Depurazione",0,0,0,0,1,12,1,"",{"$f":"+IF(AA22>R22,TRUE,FALSE)","v":false}]

{"sheet":"Titolo 6 TIMSII ut_raggruppate","index":19,"n_rows":25,"n_cols":8,"rows_kept":25,"cut":false,"hidden":false,"merged":[[4,1,4,3]]}
[null,"TITOLO 6 TIMSII - Utenze raggruppate"]
[null," ",null,null,null,null,null,"Sono presenti errori"]
[null,null,null,null,null,null,null,{"$f":"+IF(OR(C14>C13,C17>C16,C25>C24),TRUE,FALSE)","v":false}]
[]
[null,"4 - Informazioni alle utenze indirette e strumenti per la corretta applicazione dell’articolazione tariffaria (articoli 20 e 21 - Titolo 6 TIMSII)"]
[]
[null,null,"ANNO 2025","Note"]
[null,"Indicare il numero di utenze raggruppate/condominiali ai cui utenti indiretti sono state fornite le informazioni di cui al comma 20.1 (lettere da a) a g)) e di cui al comma 20.2 lettera a) del TIMSII in relazione all'articolazione approvata, aggiungendo informazioni specifiche relative alla costruzione della tariffa per le utenze domestiche residenti ai sensi del TICSI ",null,"Nel caso in cui non corrisponda alla totalità di utenze raggruppate/condominiali, motivare in Relazione di accompagnamento"]
[null,"Indicare il numero di utenti indiretti sottesi per i quali sono state fornite tali informazioni"]
[null,"Indicare la modalità utilizzata in via prevalente",null,"Nel caso di modalità \"altro\", dettagliare in Relazione di accompagnamento"]
[null,"Indicare quante modalità sono state utilizzate"]
[null,"Indicare il numero di utenze raggruppate/condominiali ai cui utenti indiretti sono state fornite le indicazioni di cui al comma 20.2 lettera b) del TIMSII in relazione alle modalità utilizzabili per comunicare la numerosità del proprio nucleo familiare e la presenza o meno di contatori divisionali, prevedendo almeno una modalità via e-mail ed una tramite numero di telefono per messaggistica",null,"Nel caso in cui non corrisponda alla totalità di utenze raggruppate/condominiali, motivare in Relazione di accompagnamento"]
[null,"Indicare il numero di utenti indiretti sottesi per i quali sono state fornite tali indicazioni"]
[null,"di cui utenti indiretti sottesi che hanno comunicato la numerosità del proprio nucleo familiare e la presenza o meno di contatori divisionali",null,{"$f":"IF(C14<=C13,\"\",\"! non può essere superiore al numero di utenze raggruppate/condominiali alle quali sono state fornite tali indicazioni !\")","v":""}]
[null,"Indicare il numero di utenze  raggruppate/condominiali per i cui utenti indiretti è stato fornito il modulo, di cui al comma 20.2 lettera c) del TIMSII, per l’espressione del consenso ad essere contattati personalmente dal gestore, indicando la modalità prescelta (cartacea, e-mail, telefono, messaggistica, altro)",null,"Nel caso in cui non corrisponda alla totalità di utenze raggruppate/condominiali, motivare in Relazione di accompagnamento"]
[null,"Indicare il numero di utenti indiretti sottesi per i quali è stato fornito tale modulo"]
[null,"di cui utenti indiretti sottesi che hanno espresso consenso ad essere contattati personalmente dal gestore",null,{"$f":"IF(C17<=C16,\"\",\"! non può essere superiore al numero di utenti indiretti a cui è stato fornito tale modulo !\")","v":""}]
[null,"Indicare la modalità prescelta in via prevalente per essere contattati personalmente dal gestore",null,"Nel caso di modalità \"altro\", dettagliare in Relazione di accompagnamento"]
[null,"Indicare la seconda modalità prescelta in via prevalente per essere contattati personalmente dal gestore",null,"Nel caso di modalità \"altro\", dettagliare in Relazione di accompagnamento"]
[null,"Indicare se è reso disponibile o concordato con l’Ente di governo dell’ambito competente il testo di cui al comma 20.3 del TIMSII al fine di rendere edotte le utenze indirette circa le motivazioni sottostanti le previsioni normative e regolamentari in tema di misurazione individuale dei consumi e di equa applicazione delle articolazioni tariffarie"]
[null,"Indicare il numero di utenze raggruppate/condominiali alle quali è stato fornito lo strumento di calcolo previsto dal comma 21.1 del TIMSII che consente la ripartizione degli importi fatturati tra ciascuna utenza indiretta secondo i criteri stabiliti nel TICSI",null,"Nel caso in cui non corrisponda alla totalità di utenze raggruppate/condominiali, motivare in Relazione di accompagnamento"]
[null,"Indicare il numero di utenti indiretti sottesi per i quali è stato fornito tale strumento di calcolo"]
[null,"Indicare la modalità di fruizione dello strumento resa disponibile dal gestore",null,"Nel caso di modalità \"altro\", dettagliare in Relazione di accompagnamento"]
[null,"Indicare il numero di utenze raggruppate/condominiali alle quali, ai sensi del comma 21.4 del TIMSII, ai fini dell’applicazione del comma 3.4, lettera b) del TICSI, laddove l’informazione non sia già disponibile, è stato richiesto formalmente all’amministratore del condominio o al referente dell’utenza raggruppata l’effettiva numerosità dei componenti di ciascuna utenza domestica residente, da utilizzare ai fini della puntuale applicazione del criterio pro capite"]
[null,"di cui utenze raggruppate/condominiali che hanno dato riscontro al gestore di tale richiesta",null,"Indicare il numero di utenze raggruppate/condominiali per le quali il riscontro è completo, cioè riferito alla totalità delle utenze indirette sottese"]

{"sheet":"Ricavi_Coll_Dep","index":20,"n_rows":29,"n_cols":8,"rows_kept":29,"cut":false,"hidden":false,"merged":[]}
[null,"RICAVI TARIFFARI"]
[]
[]
[]
[null,"4 - Totale ricavi da Tariffe Industriali"]
[]
[]
[]
[null,"Variabili di scala"]
[null,"Descrizione dato","ΣVp (m3)\nAnno 2024","ΣVp (m3)\nAnno 2025"]
[null,"Fognatura"]
[null,"Depurazione"]
[]
[]
[]
[]
[null,"Ricavi Tariffe Industriali da formula TICSI"]
[null,"Notazione dato ","Descrizione dato","tarifindnew,2023 * (vscalindnew,2024)T","tarifindnew,2023 * (vscalindnew,2025)T",null,"tarifindnew,2024 * (vscalindnew,2024)T","tarifindnew,2025 * (vscalindnew,2025)T"]
[null,"∑p Tp","Ricavi complessivi da nuova struttura dei corrispettivi per collettamento e depurazione dei reflui industriali "]
[null,"∑p Tp cap 10% annuo","Ricavi complessivi da nuova struttura dei corrispettivi per collettamento e trattamento dei reflui industriali - post applicazione condizione di sostenibilità su singolo utente p-esimo ex comma 21.2 TICSI"]
[]
[]
[]
[]
[null,"Ricavi Tariffe Industriali per componente RCvol"]
[null,"Notazione dato ","Descrizione dato","tarifindnew,2024 * (vscalindnew,2024)T","tarifindnew,2025 * (vscalindnew,2025)T"]
[null,"per Rcvol,ind","Ricavi per scostamento tra tariffe effettivamente applicate rispetto al VRG calcolato per l'anno (a-2) ",{"$f":"+G20","v":0},0]
[null,"Notazione dato ","Descrizione dato","DTG,ind2024\nin tariffa 2026","DTG,ind2024\nin tariffa 2027"]
[null,"DTG,indATO","Variazione complessiva dei ricavi afferenti all'implementazione della nuova struttura dei corrispettivi per reflui industriali rispetto all'articolazione previgente (co. 21.3 TICSI)"]

{"sheet":"Ricavi_bacini_tariffari","index":21,"n_rows":11,"n_cols":17,"rows_kept":11,"cut":false,"hidden":false,"merged":[[8,1,9,1],[8,2,9,2],[4,1,4,3]]}
[null,"RICAVI TARIFFARI"]
[]
[]
[]
[null,"5 - Totale ricavi per ciascun bacino tariffario"]
[]
[]
[]
[null,"N_riga","Ambito_Tariffario","tar2023*vscal2024","tar2023*vscal2025","tar2024*vscal2024","tar2025*vscal2025","tar2023*vscal2024","tar2023*vscal2025","tar2024*vscal2024","tar2025*vscal2025","SPIEGAZIONE EVENTUALE DIFFERENZA CON LA STRUTTURA TARIFFARIA",null,"tar2023*vscal2024","tar2023*vscal2025","tar2024*vscal2024","tar2025*vscal2025"]
[null,null,null,"per calcolo J 2026","per calcolo J 2027","per calcolo RCvol 2026","per calcolo RCvol 2027","per calcolo J 2026","per calcolo J 2027","per calcolo RCvol 2026","per calcolo RCvol 2027"]
[null,{"$f":"+ROW(A11)-10","v":1},null,{"$f":"+SUMIF(Struttura_corrispettivi!$AD:$AD,$C11,Struttura_corrispettivi!AH:AH)","v":0},{"$f":"+SUMIF(Struttura_corrispettivi!$AD:$AD,$C11,Struttura_corrispettivi!AI:AI)","v":0},{"$f":"+SUMIF(Struttura_corrispettivi!$AD:$AD,$C11,Struttura_corrispettivi!AJ:AJ)","v":0},{"$f":"+SUMIF(Struttura_corrispettivi!$AD:$AD,$C11,Struttura_corrispettivi!AK:AK)","v":0},null,null,null,null,null,null,{"$f":"+IF(H11=0,D11,H11)","v":0},{"$f":"+IF(I11=0,E11,I11)","v":0},{"$f":"+IF(J11=0,F11,J11)","v":0},{"$f":"+IF(K11=0,G11,K11)","v":0}]

{"sheet":"Dati_Anni_precedenti","index":22,"n_rows":138,"n_cols":7,"rows_kept":138,"cut":false,"hidden":false,"merged":[]}
[]
[]
[null,"n_riga","Sezione","Voce",2024,2025,"2024-2029"]
[null,1,"Delibera Autorità","Delibera"]
[null,2,"Delibera Autorità","J deliberato"]
[null,3,"Delibera Autorità","J medio"]
[null,4,"Delibera Autorità","RC post"]
[null,5,"Schema regolatorio","(∑2024-2029 Ipaexp + CFPaexp ) "]
[null,6,"Schema regolatorio","ψ"]
[null,7,"Schema regolatorio","RAB MTI-3"]
[null,8,"Schema regolatorio","pop + 0,25 popflut"]
[null,9,"Schema regolatorio","Schema regolatorio"]
[null,10,"Totale investimenti pianificati","Iptexp + CFPexp "]
[null,11,"Totale investimenti pianificati","CFPexp "]
[null,12,"Totale investimenti pianificati","Iptexp"]
[null,13,"Moltiplicatore","VRG approvato"]
[null,14,"Moltiplicatore","∑tarif2023 * vscala-2"]
[null,15,"Moltiplicatore","di cui: Ricavi ws"]
[null,16,"Moltiplicatore","di cui: tarif2023 * vscala-2"]
[null,17,"Moltiplicatore","di cui: tarifindnew,2023vscalindnew,a-2"]
[null,18,"Moltiplicatore","Rba-2"]
[null,19,"Moltiplicatore","Cba-2"]
[null,20,"Costi delle immobilizzazioni","AMM"]
[null,21,"Costi delle immobilizzazioni","OF"]
[null,22,"Costi delle immobilizzazioni","OFisc"]
[null,23,"Costi delle immobilizzazioni","ΔCUITcapex"]
[null,24,"Immobilizzazioni","IML"]
[null,25,"Immobilizzazioni","IMN"]
[null,26,"Immobilizzazioni","FA"]
[null,27,"Fondo Nuovi Investimenti","AMMfoni"]
[null,28,"Fondo Nuovi Investimenti","ΔCUITfoni"]
[null,29,"Fondo Nuovi Investimenti","FNIfoni"]
[null,30,"Costi Operativi, specifiche finalità","Opnew,a"]
[null,31,"Costi Operativi, specifiche finalità","OpexQT lett. a)"]
[null,32,"Costi Operativi, specifiche finalità","OpexQT lett. b)"]
[null,33,"Costi Operativi, specifiche finalità","OpexQT lett. c)"]
[null,34,"Costi Operativi, specifiche finalità","OpexaQC - adeguamenti standard 655/2015/R/IDR\n(comma 19.9 lett. a)"]
[null,35,"Costi Operativi, specifiche finalità","OpexaQC - adeguamento agli obiettivi 547/2019/R/IDR\n(comma 19.9 lett. a)"]
[null,36,"Costi Operativi, specifiche finalità","OpexaQC \n(comma 19.9 lett. b)"]
[null,37,"Costi Operativi, specifiche finalità","Opsocial lett.a)"]
[null,38,"Costi Operativi, specifiche finalità","Opsocial lett.b)"]
[null,39,"Costi Operativi, specifiche finalità","Opmis"]
[null,40,"Costi Operativi, aggiornabili","COee"]
[null,41,"Costi Operativi, aggiornabili","Cows "]
[null,42,"Costi Operativi, aggiornabili","COws, di cui OPexpws"]
[null,43,"Costi Operativi, aggiornabili","CoΔfanghi"]
[null,44,"Costi Operativi, aggiornabili","MT"]
[null,45,"Costi Operativi, aggiornabili","AC"]
[null,46,"Costi Operativi, aggiornabili","COato "]
[null,47,"Costi Operativi, aggiornabili","COARERA"]
[null,48,"Costi Operativi, aggiornabili","COmor"]
[null,49,"Costi Operativi, aggiornabili","COres"]
[null,50,"Costi Operativi, aggiornabili","Contributi c/e"]
[null,51,"Costi Operativi, endogeni","Opexend"]
[null,52,"Costi ambientali e della risorsa (immobilizzazioni)","ENVcapex"]
[null,53,"Costi ambientali e della risorsa (immobilizzazioni)","REScapex"]
[null,54,"Costi ambientali e della risorsa (costi operativi)","ENVopex"]
[null,55,"Costi ambientali e della risorsa (costi operativi)","RESopex"]
[null,56,"Costi ambientali e della risorsa (costi operativi)","ERCend"]
[null,57,"Costi ambientali e della risorsa (costi operativi)","ERCal"]
[null,58,"Costi ambientali e della risorsa (costi operativi)","ERCQT lett. a) "]
[null,59,"Costi ambientali e della risorsa (costi operativi)","ERCQT lett. b)"]
[null,60,"Costi ambientali e della risorsa (costi operativi)","ERCQT lett. c)"]
[null,61,"Costi ambientali e della risorsa (costi operativi)","ERCa tel - di cui Opnew lett. c)"]
[null,62,"Sezione Conguagli (include inflazione)","RcVOL"]
[null,63,"Sezione Conguagli (include inflazione)","RcEE"]
[null,64,"Sezione Conguagli (include inflazione)","RcWS"]
[null,65,"Sezione Conguagli (include inflazione)","RcERCa"]
[null,66,"Sezione Conguagli (include inflazione)","Rcab1"]
[null,67,"Sezione Conguagli (include inflazione)","Rcab2"]
[null,68,"Sezione Conguagli (include inflazione)","Rcares"]
[null,69,"Sezione Conguagli (include inflazione)","RcaARERA"]
[null,70,"Sezione Conguagli (include inflazione)","Costo forniture all’ingrosso transfrontaliere"]
[null,71,"Sezione Conguagli (include inflazione)","RcIP (valori a moneta a-2, include eventuale FoNInoninv)"]
[null,72,"Sezione Conguagli (include inflazione)","Costi per variazioni sistemiche / eventi eccezionali"]
[null,73,"Sezione Conguagli (include inflazione)","Variazioni sistemiche, di cui: per eventi eccezionali, energia elettrica"]
[null,74,"Sezione Conguagli (include inflazione)","Variazioni sistemiche, di cui: per eventi eccezionali, altro"]
[null,75,"Sezione Conguagli (include inflazione)","Rimb335a"]
[null,76,"Sezione Conguagli (include inflazione)","Rcaappr"]
[null,77,"Sezione Conguagli (include inflazione)","DOpexQC"]
[null,78,"Sezione Conguagli (include inflazione)","DOpexQT"]
[null,79,"Sezione Conguagli (include inflazione)","DOpsocial"]
[null,80,"Sezione Conguagli (include inflazione)","Penalità RQSII - Delibera 476/2023/R/IDR"]
[null,81,"Sezione Conguagli (include inflazione)","Penalità RQTI - Delibera 477/2023/R/IDR"]
[null,82,"Sezione Conguagli (include inflazione)","DOpmis"]
[null,83,"Sezione Conguagli (include inflazione)","RcARC"]
[null,84,"Sezione Conguagli (include inflazione)","Recupero volumi 2021"]
[null,85,"Sezione Conguagli (include inflazione)","Recupero energia elettrica 2021"]
[null,86,"Sezione Conguagli (include inflazione)","Recupero straordinario inflazione"]
[null,87,"Sezione Conguagli (include inflazione)","Rctot"]
[null,88,"Ammortamento finanziario","AF MTI-4"]
[null,89,"Altro","FoNInoninv"]
[]
[]
[]
[null,null,null,null,2022,2023,"2022-2023"]
[null,null,"Costi Operativi","Opexend"]
[null,null,"Costi ambientali e della risorsa","ERCend"]
[null,null,"Costi Operativi","OpexQT, lett. a) co. 19.8 MTI-4"]
[null,null,"Costi Operativi","OpexQC lett. a) co. 19.9 MTI-4 (655/2015/R/IDR)"]
[null,null,"Costi Operativi","OpexQC lett. a) co. 19.9 MTI-4 (547/2019/R/IDR)"]
[null,null,"Sezione altri dati","KWh, quantità acquistata e consumata"]
[null,null,"Sezione altri dati","KWh, quantità autoprodotta e consumata"]
[null,null,"Sezione altri dati","COrealiEE \n(altre gruppo - SII)"]
[null,null,"Sezione altri dati","COrealiEE \n(altre imprese - SII)"]
[null,null,"Sezione altri dati","COrealiEE \n(altre gruppo - AAI)"]
[null,null,"Sezione altri dati","COrealiEE \n(altre imprese - AAI)"]
[null,null,"Conguagli rinviati MTI-2 aggiornamento (2016-2019)","RCappr MTI-3 agg"]
[null,null,"Ammortamento finanziario","AF MTI-3 agg"]
[]
[]
[]
[null,null,null,null,2020,2021]
[null,null,"Sezione altri dati","KWh"]
[null,null,"Sezione altri dati","KWh, quantità acquistata e consumata"]
[null,null,"Sezione altri dati","KWh, quantità autoprodotta e consumata"]
[null,null,"Ammortamento finanziario","AF MTI-3"]
[]
[]
[]
[null,null,null,null,2018,2019]
[null,null,"Ammortamento finanziario","AF MTI-2 agg"]
[]
[]
[]
[null,null,null,null,"2016","2017"]
[null,null,"Sezione altri dati","CO𝑓𝑎𝑛𝑔ℎ𝑖𝑒𝑓𝑓𝑒𝑡𝑡𝑖𝑣𝑜"]
[null,null,"Ammortamento finanziario","AF MTI-2"]
[]
[]
[]
[null,null,null,null,"2014","2015"]
[null,null,"Ammortamento finanziario","AF MTI"]
[]
[]
[]
[null,null,null,null,"2013"]
[null,null,"Sezione altri dati","PopATO"]

{"sheet":"IMN_cespiti_anni_precedenti","index":23,"n_rows":6,"n_cols":23,"rows_kept":6,"cut":false,"hidden":false,"merged":[]}
[null,null,null,null,null,null,null,null,null,null,null,"ATTENZIONE: verificare la correttezza dei dati presenti nell'eventuale file precompilato formito"]
[null,null,null,null,null,null,null,"Immobilizzazioni del gestore (solo immobilizzazioni al 2022 incluso)",null,null,null,null,null,null,null,null,null,null,"Sono presenti errori","errore id categoria cespite","errore id immobilizzazione","errore id anno cespite","errore valori non negativi"]
[null,null,null,null,null,null,null,null,null,null,null,null,null,null,null,null,null,null,{"$f":"+OR(T3:W3)","v":true},{"$f":"+OR(INDEX(IMN_ante2019,0,20))","v":true},{"$f":"+OR(INDEX(IMN_ante2019,0,21))","v":true},{"$f":"+OR(INDEX(IMN_ante2019,0,22))","v":true},{"$f":"+OR(INDEX(IMN_ante2019,0,23))","v":false}]
["IMN gestore ante 2023"]
["IDATO","IDGestore","Gestore_Proprietario","N_prop","Fonte","ID_Categoria_Cespite","CategoriaCespite","ID_Immobilizzazione","IMMOBILIZZAZIONE","AnnoCespite","IP","FAIP","CFP","FACP","-","Tipologia di costo sotteso\n(\"Env\", \"Res\", \"Non ERC\")","Attività","foglio di origine","n_riga","errore id categoria cespite","errore id immobilizzazione","errore id anno cespite","errore valori non negativi"]
[{"$f":"+idato","v":0},{"$f":"+idgestore","v":0},"Gestore",0,"IP",{"$f":"+IFERROR(IF(J6<2020,VLOOKUP(G6,id_cat_ces,2,FALSE),VLOOKUP(G6,TT_Tabelle_Riferimento!$G$127:$K$164,5,FALSE)),\"\")","v":""},null,{"$f":"+IFERROR(VLOOKUP(I6,id_cat_imm,2,FALSE),\"\")","v":""},null,null,null,null,null,null,null,null,null,{"$f":"+\"RAB_cespiti_anni_precedenti\"","v":"RAB_cespiti_anni_precedenti"},{"$f":"+ROW(A6)-5","v":1},{"$f":"++IF(S6=0,FALSE,IFERROR(IF(J6<2020,VLOOKUP(G6,id_cat_ces,2,FALSE),VLOOKUP(G6,TT_Tabelle_Riferimento!$G$127:$K$164,5,FALSE)),FALSE)<>F6)","v":true},{"$f":"++IF(S6=0,FALSE,IFERROR(VLOOKUP(I6,id_cat_imm,2,FALSE),FALSE)<>H6)","v":true},{"$f":"+IF(S6=0,FALSE,J6<1967)","v":true},{"$f":"+IF(S6=0,FALSE,OR(K6<0,L6<0,M6<0,N6<0))","v":false}]

{"sheet":"Conferma_investimenti","index":24,"n_rows":7,"n_cols":51,"rows_kept":7,"cut":false,"hidden":false,"merged":[]}
[null,null,null,null,null,null,null,null,null,null,null,null,null,null,null,null,null,"sono presenti errori",null,null,"errore id categoria cespite",null,"errore id immobilizzazione",null,null,"errore valori non negativi",null,null,"check PdI"]
[null,null,null,null,null,null,null,null,null,null,null,null,null,null,null,null,null,{"$f":"+OR(U2,W2,Z2,AC2)","v":false},null,null,{"$f":"+OR(VALUE(INDEX(ConfermaInvestimenti,0,21)))=0","v":false},null,{"$f":"+OR(INDEX(ConfermaInvestimenti,0,23))=0","v":false},null,null,{"$f":"+OR(VALUE(INDEX(ConfermaInvestimenti,0,26)))<0","v":false},null,null,{"$f":"+SUM(Z:Z)-'PdI-riepilogo'!E4<>0","v":false}]
[null,null,null,"Investimenti 2023\nLe colonne da D a M devono mostrare gli investimenti relativi al 2023 come da predisposizione tariffaria MTI-4\nIndicare nelle colonne N e O eventuali variazioni motivandole in relazione di accompagnamento, altrimenti ricopiare i valori dalle adiacenti colonne. \nLa mancata compilazione delle colonne N e O escluderà tali cespiti dal calcolo.",null,null,null,null,null,null,null,null,null,"spazio per la compilazione manuale\nnessuna rivalutazione monetaria va effettuata"]
[null,null,null,null,null,null,null,null,null,null,null,null,null,"Investimenti EFFETTIVI del 2023 (non lasciare campi vuoti)",null,null,null,null,null,null,null,null,null,null,null,null,null,null,null,null,null,null,null,"zona per il calcolo RcIP2023"]
[]
["N_riga","IDATO","IDGESTORE","ID_Categoria_Cespite","CategoriaCespite","ID_Immobilizzazione","IMMOBILIZZAZIONE","Tipologia di costo sotteso\n(\"Env\", \"Res\", \"Non ERC\")","Attività","AnnoCespite","IP \n(come da approvazione tariffaria)","CFP TOTALE\n(come da approvazione tariffaria)","di cui, CFP da FoNI\n(come da approvazione tariffaria)","IP","CFP","IDATO","Idgestore","Gestore_Proprietario","N_prop","Fonte","ID_Categoria_Cespite","CategoriaCespite","ID_Immobilizzazione","IMMOBILIZZAZIONE","AnnoCespite","IP",null,"CFP",null,"-","ERC","Attività","foglio di origine","ΔIP","ΔFA","ΔAMM","ΔCFP","ΔFACFP","ΔAMM CFP",null,"ΔIMN2023","ΔCINcfp2023","1 - CINfp / CIN","Km + α\n(ex del. 639/2023)","Rai rate\n(ex del. 639/2023)",null,"ΔAMM - ΔAMM CFP","ΔOF","ΔOFisc",null,"DRCIP"]
[{"$f":"+ROW(A7)-ROW($A$6)","v":1},{"$f":"+idato","v":0},{"$f":"+idgestore","v":0},{"$f":"+IFERROR(VLOOKUP(E7,TT_Tabelle_Riferimento!$G$127:$K$164,5,FALSE),0)","v":0},null,{"$f":"+IFERROR(VLOOKUP(G7,id_cat_imm,2,FALSE),0)","v":0},null,null,{"$f":"+IFERROR(VLOOKUP(D7,TT_Tabelle_Riferimento!$D$127:$K$164,2,FALSE),\"\")","v":""},2023,null,null,null,null,null,{"$f":"idato","v":0},{"$f":"idgestore","v":0},"Gestore",0,"IP",{"$f":"IFERROR(VLOOKUP(V7,TT_Tabelle_Riferimento!$G$127:$K$164,5,0),0)","v":0},{"$f":"IFERROR(VLOOKUP(E7,TT_Tabelle_Riferimento!$G$127:$K$164,1,0),0)","v":0},{"$f":"+IFERROR(VLOOKUP(X7,TT_Tabelle_Riferimento!$G$2:$H$6,2,0),0)","v":0},{"$f":"+IFERROR(VLOOKUP(G7,TT_Tabelle_Riferimento!$G$2:$H$6,1,0),0)","v":0},{"$f":"J7","v":2023},{"$f":"N7","v":0},null,{"$f":"IFERROR(O7+(SUM(M:M)/SUM(Z:Z))*Z7,0)","v":0},null,null,{"$f":"+H7","v":0},{"$f":"+I7","v":""},"Conferma_investimenti",{"$f":"+IFERROR(IP(Z7,U7,W7,2023,2025,ifl)-IP(K7,U7,W7,2023,2025,ifl),0)","v":0},{"$f":"+IFERROR(FondoAmm(Z7,0,2023,U7,W7,2025,vite_regolatorie_new,ifl)-FondoAmm(K7,0,2023,U7,W7,2025,vite_regolatorie_new,ifl),0)","v":0},{"$f":"+IFERROR(QA(Z7,0,2023,U7,W7,2025,vite_regolatorie,ifl)-QA(K7,0,2023,U7,W7,2025,vite_regolatorie,ifl),0)","v":0},{"$f":"+IFERROR(CFP_A(AB7,U7,W7,2023,2025,ifl)-CFP_A(L7,U7,W7,2023,2025,ifl),0)","v":0},{"$f":"+IFERROR(FACFP(AB7,0,2023,U7,W7,2025,vite_regolatorie,ifl)-FACFP(L7,0,2023,U7,W7,2025,vite_regolatorie,ifl),0)","v":0},{"$f":"+IFERROR(QA_CFP(AB7,0,2023,W7,U7,2025,vite_regolatorie,ifl)-QA_CFP(L7,0,2023,W7,U7,2025,vite_regolatorie,ifl),0)","v":0},null,{"$f":"+IFERROR(IP(Z7,U7,W7,2023,2025,ifl)-FondoAmm(Z7,0,2023,U7,W7,2025,vite_regolatorie,ifl)-(IP(K7,U7,W7,2023,2025,ifl)-FondoAmm(K7,0,2023,U7,W7,2025,vite_regolatorie,ifl)),0)","v":0},{"$f":"+IFERROR(CFP_A(AB7,U7,W7,2023,2025,ifl)-FACFP(AB7,0,2023,U7,W7,2025,vite_regolatorie,ifl)-(CFP_A(L7,U7,W7,2023,2025,ifl)-FACFP(L7,0,2023,U7,W7,2025,vite_regolatorie,ifl)),0)","v":0},{"$f":"IFERROR(1-AP7/AO7,0)","v":0},4.3125000000000004E-2,7.5641061386614528E-2,null,{"$f":"+AJ7-AM7","v":0},{"$f":"+AR7*AQ7*AO7","v":0},{"$f":"+AS7*0.275*AQ7*AO7","v":0},null,{"$f":"+AU7+AV7+AW7","v":0}]

{"sheet":"IMN_Proprietari","index":25,"n_rows":6,"n_cols":76,"rows_kept":6,"cut":false,"hidden":false,"merged":[]}
[null,null,"IMNProprietari - Sviluppo dei costi di capitale associati alle infrastrutture di terzi",null,null,null,null,"ATTENZIONE: verificare la correttezza dei dati presenti nell'eventuale file precompilato fornito"]
["scarico dati"]
["IMN P."]
[]
["idato associato al gestore","idarera associato al gestore","Tipologia di Proprietario","Key_Prop","ID_Categoria_Cespite","CategoriaCespite","ID_Immobilizzazione","IMMOBILIZZAZIONE","Motivazione della realizzazione da parte di terzi","Immobilizzazioni riconducibili a una grande infrastruttura upstream","AnnoCespite","IP","FAIP","CFP","FACP","New_Key_prop","dati da non valorizzare","VU 2024","IP 2024","FAIP 2024","IP netto 2024","AMM 2024","CFP 2024","FA CFP 2024","CFP netto 2024","AMM CFP 2024","Nriga","VU 2025","IP 2025","FAIP 2025","IP netto 2025","AMM 2025","CFP 2025","FA CFP 2025","CFP netto 2025","AMM CFP 2025","aaa","VU 2026","IP 2026","FAIP 2026","IP netto 2026","AMM 2026","CFP 2026","FA CFP 2026","CFP netto 2026","AMM CFP 2026","aaaa","VU 2027","IP 2027","FAIP 2027","IP netto 2027","AMM 2027","CFP 2027","FA CFP 2027","CFP netto 2027","AMM CFP 2027","aaaa","VU 2028","IP 2028","FAIP 2028","IP netto 2028","AMM 2028","CFP 2028","FA CFP 2028","CFP netto 2028","AMM CFP 2028","aaaa","VU 2029","IP 2029","FAIP 2029","IP netto 2029","AMM 2029","CFP 2029","FA CFP 2029","CFP netto 2029","AMM CFP 2029"]
[{"$f":"+idato","v":0},{"$f":"+idgestore","v":0},null,null,{"$f":"+IFERROR(IF(K6<2020,VLOOKUP(F6,id_cat_ces,2,FALSE),VLOOKUP(F6,TT_Tabelle_Riferimento!$G$127:$K$164,5,FALSE)),\"\")","v":""},null,{"$f":"+IFERROR(VLOOKUP(H6,id_cat_imm,2,FALSE),\"\")","v":""},null,null,null,null,null,null,null,null,{"$f":"+IF(D6=\"\",\"\",IFERROR(VLOOKUP(D6,Soggetti_proprietari!K:L,2,0),\"\"))","v":""},{"$f":"IF(ISNA(VLOOKUP(P6,Soggetti_proprietari!N:N,1,FALSE)),IF(OR(K6=1961,K6=1962),TRUE,FALSE),TRUE)","v":false},{"$f":"+IF(OR($Q6,$E6=\"\"),0,VLOOKUP($E6,IF($K6<2020,ViteRegolatorieProp_old,ViteRegolatorieProp_new),VALUE(RIGHT(R$5,4))-2011))","v":0},{"$f":"IF(OR($Q6,$E6=\"\"),0,IFERROR(IP_PROP($L6,T6,V6,$E6,$G6,$K6,$R6,VALUE(RIGHT(S$5,4)),ifl),0))","v":0},{"$f":"IF(OR($Q6,$E6=\"\"),0,IFERROR(FondoAmm_prop($L6,$M6,$K6,$E6,$G6,VALUE(RIGHT(T$5,4)),IF($K6<2020,ViteRegolatorieProp_old,ViteRegolatorieProp_new),ifl),0))","v":0},{"$f":"+S6-T6","v":0},{"$f":"IF(OR($Q6,$E6=\"\"),0,IFERROR(QA_PROP($L6,$M6,$K6,$E6,$G6,VALUE(RIGHT(V$5,4)),IF($K6<2020,ViteRegolatorieProp_old,ViteRegolatorieProp_new),ifl),0))","v":0},{"$f":"IF(OR($Q6,$E6=\"\"),0,IFERROR(IP_PROP($N6,X6,Z6,$E6,$G6,$K6,$R6,VALUE(RIGHT(W$5,4)),ifl),0))","v":0},{"$f":"IF(OR($Q6,$E6=\"\"),0,IFERROR(FondoAmm_prop($N6,$O6,$K6,$E6,$G6,VALUE(RIGHT(X$5,4)),IF($K6<2020,ViteRegolatorieProp_old,ViteRegolatorieProp_new),ifl),0))","v":0},{"$f":"+W6-X6","v":0},{"$f":"IF(OR($Q6,$E6=\"\"),0,IFERROR(QA_PROP($N6,$O6,$K6,$E6,$G6,VALUE(RIGHT(Z$5,4)),IF($K6<2020,ViteRegolatorieProp_old,ViteRegolatorieProp_new),ifl),0))","v":0},{"$f":"+ROW(A6)-5","v":1},{"$f":"+IF(OR($Q6,$E6=\"\"),0,VLOOKUP($E6,IF($K6<2020,ViteRegolatorieProp_old,ViteRegolatorieProp_new),VALUE(RIGHT(AB$5,4))-2011))","v":0},{"$f":"IF(OR($Q6,$E6=\"\"),0,IFERROR(IP_PROP($L6,AD6,AF6,$E6,$G6,$K6,$R6,VALUE(RIGHT(AC$5,4)),ifl),0))","v":0},{"$f":"IF(OR($Q6,$E6=\"\"),0,IFERROR(FondoAmm_prop($L6,$M6,$K6,$E6,$G6,VALUE(RIGHT(AD$5,4)),IF($K6<2020,ViteRegolatorieProp_old,ViteRegolatorieProp_new),ifl),0))","v":0},{"$f":"+AC6-AD6","v":0},{"$f":"IF(OR($Q6,$E6=\"\"),0,IFERROR(QA_PROP($L6,$M6,$K6,$E6,$G6,VALUE(RIGHT(AF$5,4)),IF($K6<2020,ViteRegolatorieProp_old,ViteRegolatorieProp_new),ifl),0))","v":0},{"$f":"IF(OR($Q6,$E6=\"\"),0,IFERROR(IP_PROP($N6,AH6,AJ6,$E6,$G6,$K6,$R6,VALUE(RIGHT(AG$5,4)),ifl),0))","v":0},{"$f":"IF(OR($Q6,$E6=\"\"),0,IFERROR(FondoAmm_prop($N6,$O6,$K6,$E6,$G6,VALUE(RIGHT(AH$5,4)),IF($K6<2020,ViteRegolatorieProp_old,ViteRegolatorieProp_new),ifl),0))","v":0},{"$f":"+AG6-AH6","v":0},{"$f":"IF(OR($Q6,$E6=\"\"),0,IFERROR(QA_PROP($N6,$O6,$K6,$E6,$G6,VALUE(RIGHT(AJ$5,4)),IF($K6<2020,ViteRegolatorieProp_old,ViteRegolatorieProp_new),ifl),0))","v":0},{"$f":"+ROW(M6)-5","v":1},{"$f":"+IF(OR($Q6,$E6=\"\"),0,VLOOKUP($E6,IF($K6<2020,ViteRegolatorieProp_old,ViteRegolatorieProp_new),VALUE(RIGHT(AL$5,4))-2011))","v":0},{"$f":"IF(OR($Q6,$E6=\"\"),0,IFERROR(IP_PROP($L6,AN6,AP6,$E6,$G6,$K6,$R6,VALUE(RIGHT(AM$5,4)),ifl),0))","v":0},{"$f":"IF(OR($Q6,$E6=\"\"),0,IFERROR(FondoAmm_prop($L6,$M6,$K6,$E6,$G6,VALUE(RIGHT(AN$5,4)),IF($K6<2020,ViteRegolatorieProp_old,ViteRegolatorieProp_new),ifl),0))","v":0},{"$f":"+AM6-AN6","v":0},{"$f":"IF(OR($Q6,$E6=\"\"),0,IFERROR(QA_PROP($L6,$M6,$K6,$E6,$G6,VALUE(RIGHT(AP$5,4)),IF($K6<2020,ViteRegolatorieProp_old,ViteRegolatorieProp_new),ifl),0))","v":0},{"$f":"IF(OR($Q6,$E6=\"\"),0,IFERROR(IP_PROP($N6,AR6,AT6,$E6,$G6,$K6,$R6,VALUE(RIGHT(AQ$5,4)),ifl),0))","v":0},{"$f":"IF(OR($Q6,$E6=\"\"),0,IFERROR(FondoAmm_prop($N6,$O6,$K6,$E6,$G6,VALUE(RIGHT(AR$5,4)),IF($K6<2020,ViteRegolatorieProp_old,ViteRegolatorieProp_new),ifl),0))","v":0},{"$f":"+AQ6-AR6","v":0},{"$f":"IF(OR($Q6,$E6=\"\"),0,IFERROR(QA_PROP($N6,$O6,$K6,$E6,$G6,VALUE(RIGHT(AT$5,4)),IF($K6<2020,ViteRegolatorieProp_old,ViteRegolatorieProp_new),ifl),0))","v":0},{"$f":"+ROW(W6)-5","v":1},{"$f":"+IF(OR($Q6,$E6=\"\"),0,VLOOKUP($E6,IF($K6<2020,ViteRegolatorieProp_old,ViteRegolatorieProp_new),VALUE(RIGHT(AV$5,4))-2011))","v":0},{"$f":"IF(OR($Q6,$E6=\"\"),0,IFERROR(IP_PROP($L6,AX6,AZ6,$E6,$G6,$K6,$R6,VALUE(RIGHT(AW$5,4)),ifl),0))","v":0},{"$f":"IF(OR($Q6,$E6=\"\"),0,IFERROR(FondoAmm_prop($L6,$M6,$K6,$E6,$G6,VALUE(RIGHT(AX$5,4)),IF($K6<2020,ViteRegolatorieProp_old,ViteRegolatorieProp_new),ifl),0))","v":0},{"$f":"+AW6-AX6","v":0},{"$f":"IF(OR($Q6,$E6=\"\"),0,IFERROR(QA_PROP($L6,$M6,$K6,$E6,$G6,VALUE(RIGHT(AZ$5,4)),IF($K6<2020,ViteRegolatorieProp_old,ViteRegolatorieProp_new),ifl),0))","v":0},{"$f":"IF(OR($Q6,$E6=\"\"),0,IFERROR(IP_PROP($N6,BB6,BD6,$E6,$G6,$K6,$R6,VALUE(RIGHT(BA$5,4)),ifl),0))","v":0},{"$f":"IF(OR($Q6,$E6=\"\"),0,IFERROR(FondoAmm_prop($N6,$O6,$K6,$E6,$G6,VALUE(RIGHT(BB$5,4)),IF($K6<2020,ViteRegolatorieProp_old,ViteRegolatorieProp_new),ifl),0))","v":0},{"$f":"+BA6-BB6","v":0},{"$f":"IF(OR($Q6,$E6=\"\"),0,IFERROR(QA_PROP($N6,$O6,$K6,$E6,$G6,VALUE(RIGHT(BD$5,4)),IF($K6<2020,ViteRegolatorieProp_old,ViteRegolatorieProp_new),ifl),0))","v":0},{"$f":"+ROW(AG6)-5","v":1},{"$f":"+IF(OR($Q6,$E6=\"\"),0,VLOOKUP($E6,IF($K6<2020,ViteRegolatorieProp_old,ViteRegolatorieProp_new),VALUE(RIGHT(BF$5,4))-2011))","v":0},{"$f":"IF(OR($Q6,$E6=\"\"),0,IFERROR(IP_PROP($L6,BH6,BJ6,$E6,$G6,$K6,$R6,VALUE(RIGHT(BG$5,4)),ifl),0))","v":0},{"$f":"IF(OR($Q6,$E6=\"\"),0,IFERROR(FondoAmm_prop($L6,$M6,$K6,$E6,$G6,VALUE(RIGHT(BH$5,4)),IF($K6<2020,ViteRegolatorieProp_old,ViteRegolatorieProp_new),ifl),0))","v":0},{"$f":"+BG6-BH6","v":0},{"$f":"IF(OR($Q6,$E6=\"\"),0,IFERROR(QA_PROP($L6,$M6,$K6,$E6,$G6,VALUE(RIGHT(BJ$5,4)),IF($K6<2020,ViteRegolatorieProp_old,ViteRegolatorieProp_new),ifl),0))","v":0},{"$f":"IF(OR($Q6,$E6=\"\"),0,IFERROR(IP_PROP($N6,BL6,BN6,$E6,$G6,$K6,$R6,VALUE(RIGHT(BK$5,4)),ifl),0))","v":0},{"$f":"IF(OR($Q6,$E6=\"\"),0,IFERROR(FondoAmm_prop($N6,$O6,$K6,$E6,$G6,VALUE(RIGHT(BL$5,4)),IF($K6<2020,ViteRegolatorieProp_old,ViteRegolatorieProp_new),ifl),0))","v":0},{"$f":"+BK6-BL6","v":0},{"$f":"IF(OR($Q6,$E6=\"\"),0,IFERROR(QA_PROP($N6,$O6,$K6,$E6,$G6,VALUE(RIGHT(BN$5,4)),IF($K6<2020,ViteRegolatorieProp_old,ViteRegolatorieProp_new),ifl),0))","v":0},{"$f":"+ROW(AQ6)-5","v":1},{"$f":"+IF(OR($Q6,$E6=\"\"),0,VLOOKUP($E6,IF($K6<2020,ViteRegolatorieProp_old,ViteRegolatorieProp_new),VALUE(RIGHT(BP$5,4))-2011))","v":0},{"$f":"IF(OR($Q6,$E6=\"\"),0,IFERROR(IP_PROP($L6,BR6,BT6,$E6,$G6,$K6,$R6,VALUE(RIGHT(BQ$5,4)),ifl),0))","v":0},{"$f":"IF(OR($Q6,$E6=\"\"),0,IFERROR(FondoAmm_prop($L6,$M6,$K6,$E6,$G6,VALUE(RIGHT(BR$5,4)),IF($K6<2020,ViteRegolatorieProp_old,ViteRegolatorieProp_new),ifl),0))","v":0},{"$f":"+BQ6-BR6","v":0},{"$f":"IF(OR($Q6,$E6=\"\"),0,IFERROR(QA_PROP($L6,$M6,$K6,$E6,$G6,VALUE(RIGHT(BT$5,4)),IF($K6<2020,ViteRegolatorieProp_old,ViteRegolatorieProp_new),ifl),0))","v":0},{"$f":"IF(OR($Q6,$E6=\"\"),0,IFERROR(IP_PROP($N6,BV6,BX6,$E6,$G6,$K6,$R6,VALUE(RIGHT(BU$5,4)),ifl),0))","v":0},{"$f":"IF(OR($Q6,$E6=\"\"),0,IFERROR(FondoAmm_prop($N6,$O6,$K6,$E6,$G6,VALUE(RIGHT(BV$5,4)),IF($K6<2020,ViteRegolatorieProp_old,ViteRegolatorieProp_new),ifl),0))","v":0},{"$f":"+BU6-BV6","v":0},{"$f":"IF(OR($Q6,$E6=\"\"),0,IFERROR(QA_PROP($N6,$O6,$K6,$E6,$G6,VALUE(RIGHT(BX$5,4)),IF($K6<2020,ViteRegolatorieProp_old,ViteRegolatorieProp_new),ifl),0))","v":0}]

{"sheet":"Storico_Piano_Tariffario","index":26,"n_rows":104,"n_cols":44,"rows_kept":104,"cut":false,"hidden":false,"merged":[]}
[]
[]
[null,null,"SCHEMI REGOLATORI"]
[]
[null,null,null,"UdM","Del. 639/2023/R/IDR"]
[null,null,"VRG2022","euro"]
[null,null,"pop + 0,25 popflut","n. abitante"]
[null,null,null,"SI/NO"]
[null,null,"Nessuna aggregazione o variazione dei processi tecnici significativa:     (NO)\n                                                  oppure\nPresenza di aggregazioni o variazioni dei processi tecnici significative:    (SI)","SI/NO"]
[null,null,null,"euro"]
[null,null,"RABMTI-3","euro"]
[null,null,null,"SI/NO"]
[null,null,"SCHEMA REGOLATORIO                                         (A)\n\nSCHEMA REGOLATORIO DI CONVERGENZA           (B)","A/B"]
[null,null,"y","(0,4-0,8)"]
[null,null,"SCHEMA REGOLATORIO","(I, II, III, IV, V, VI)"]
[]
[]
[]
[]
[null,null,"COMPONENTI DI COSTO Opex, Capex , FNInew, ERC"]
[null,null,null,"UdM","ANNO 2024","ANNO 2025","ANNO 2026","ANNO 2027","ANNO 2028","ANNO 2029","ANNO 2030","ANNO 2031","ANNO 2032","ANNO 2033","ANNO 2034","ANNO 2035","ANNO 2036","ANNO 2037","ANNO 2038","ANNO 2039","ANNO 2040","ANNO 2041","ANNO 2042","ANNO 2043","ANNO 2044","ANNO 2045","ANNO 2046","ANNO 2047","ANNO 2048","ANNO 2049","ANNO 2050","ANNO 2051","ANNO 2052","ANNO 2053","ANNO 2054","ANNO 2055","ANNO 2056","ANNO 2057","ANNO 2058","ANNO 2059","ANNO 2060","ANNO 2061","ANNO 2062","ANNO 2063"]
[null,null,"Opexaend ","euro"]
[null,null,"Opexaal ","euro"]
[null,null,"Opnew,a","euro"]
[null,null,"OpexaQT ","euro"]
[null,null,"OpexaQC","euro"]
[null,null,"Opasocial","euro"]
[null,null,"Opamis","euro"]
[null,null,"Opexa (al netto degli ERC)","euro"]
[null,null,"AMMa","euro"]
[null,null,"OFa","euro"]
[null,null,"OFisca","euro"]
[null,null,"DCUITaCapex","euro"]
[null,null,"Capexa (al netto degli ERC)","euro"]
[null,null,"IPtexp","euro"]
[null,null,"Capexa","euro"]
[null,null,"FNInew,a","euro"]
[]
[]
[]
[null,null,"ERCacapex","euro"]
[null,null,"ERCaopex","euro"]
[null,null,"ERCa","euro"]
[]
[null,null,"FONDO NUOVI INVESTIMENTI"]
[null,null,null,"UdM","ANNO 2024","ANNO 2025","ANNO 2026","ANNO 2027","ANNO 2028","ANNO 2029","ANNO 2030","ANNO 2031","ANNO 2032","ANNO 2033","ANNO 2034","ANNO 2035","ANNO 2036","ANNO 2037","ANNO 2038","ANNO 2039","ANNO 2040","ANNO 2041","ANNO 2042","ANNO 2043","ANNO 2044","ANNO 2045","ANNO 2046","ANNO 2047","ANNO 2048","ANNO 2049","ANNO 2050","ANNO 2051","ANNO 2052","ANNO 2053","ANNO 2054","ANNO 2055","ANNO 2056","ANNO 2057","ANNO 2058","ANNO 2059","ANNO 2060","ANNO 2061","ANNO 2062","ANNO 2063"]
[null,null,"FNIaFoNI","euro"]
[null,null,"AMMaFoNI","euro"]
[null,null,"DCUITaFoNI","euro"]
[null,null,"FoNIa","euro"]
[]
[null,null,"SVILUPPO DEL VRG predisposto dal soggetto competente (include eventuali rimodulazioni)"]
[null,null,null,"UdM","ANNO 2024","ANNO 2025","ANNO 2026","ANNO 2027","ANNO 2028","ANNO 2029","ANNO 2030","ANNO 2031","ANNO 2032","ANNO 2033","ANNO 2034","ANNO 2035","ANNO 2036","ANNO 2037","ANNO 2038","ANNO 2039","ANNO 2040","ANNO 2041","ANNO 2042","ANNO 2043","ANNO 2044","ANNO 2045","ANNO 2046","ANNO 2047","ANNO 2048","ANNO 2049","ANNO 2050","ANNO 2051","ANNO 2052","ANNO 2053","ANNO 2054","ANNO 2055","ANNO 2056","ANNO 2057","ANNO 2058","ANNO 2059","ANNO 2060","ANNO 2061","ANNO 2062","ANNO 2063"]
[null,null,"Opexa","euro"]
[null,null,"Capexa","euro"]
[null,null,"FoNIa","euro"]
[null,null,"RCaTOT","euro"]
[null,null,"ERCa","euro"]
[null,null,"VRGa predisposto dal soggetto competente","euro"]
[]
[null,null,"SVILUPPO DEL MOLTIPLICATORE TARIFFARIO predisposto dal soggetto competente"]
[null,null,null,"UdM","ANNO 2024","ANNO 2025","ANNO 2026","ANNO 2027","ANNO 2028","ANNO 2029","ANNO 2030","ANNO 2031","ANNO 2032","ANNO 2033","ANNO 2034","ANNO 2035","ANNO 2036","ANNO 2037","ANNO 2038","ANNO 2039","ANNO 2040","ANNO 2041","ANNO 2042","ANNO 2043","ANNO 2044","ANNO 2045","ANNO 2046","ANNO 2047","ANNO 2048","ANNO 2049","ANNO 2050","ANNO 2051","ANNO 2052","ANNO 2053","ANNO 2054","ANNO 2055","ANNO 2056","ANNO 2057","ANNO 2058","ANNO 2059","ANNO 2060","ANNO 2061","ANNO 2062","ANNO 2063"]
[null,null,"VRGa predisposto dal soggetto competente","euro"]
[null,null,"Ra-2b","euro"]
[null,null,"S tarif2023*vscala-2","euro"]
[null,null,"Ja predisposto dal soggetto competente","n. (3 cifre decimali)"]
[]
[null,null,"SVILUPPO DEL MOLTIPLICATORE TARIFFARIO applicabile (nelle more dell'approvazione ARERA)"]
[null,null,null,"UdM","ANNO 2024","ANNO 2025","ANNO 2026","ANNO 2027","ANNO 2028","ANNO 2029","ANNO 2030","ANNO 2031","ANNO 2032","ANNO 2033","ANNO 2034","ANNO 2035","ANNO 2036","ANNO 2037","ANNO 2038","ANNO 2039","ANNO 2040","ANNO 2041","ANNO 2042","ANNO 2043","ANNO 2044","ANNO 2045","ANNO 2046","ANNO 2047","ANNO 2048","ANNO 2049","ANNO 2050","ANNO 2051","ANNO 2052","ANNO 2053","ANNO 2054","ANNO 2055","ANNO 2056","ANNO 2057","ANNO 2058","ANNO 2059","ANNO 2060","ANNO 2061","ANNO 2062","ANNO 2063"]
[null,null,"Limite al moltiplicatore tariffario","n. (3 cifre decimali)"]
[null,null,"VRGa (coerente con J applicabile)","euro"]
[null,null,"Ja applicabile","n. (3 cifre decimali)"]
[]
[null,null,"Quota da recupero efficienza per alimentazione Fondo per la promozione dell'innovazione nel servizio idrico integrato"]
[null,null,null,"UdM","ANNO 2024","ANNO 2025","ANNO 2026","ANNO 2027","ANNO 2028","ANNO 2029","ANNO 2030","ANNO 2031","ANNO 2032","ANNO 2033","ANNO 2034","ANNO 2035","ANNO 2036","ANNO 2037","ANNO 2038","ANNO 2039","ANNO 2040","ANNO 2041","ANNO 2042","ANNO 2043","ANNO 2044","ANNO 2045","ANNO 2046","ANNO 2047","ANNO 2048","ANNO 2049","ANNO 2050","ANNO 2051","ANNO 2052","ANNO 2053","ANNO 2054","ANNO 2055","ANNO 2056","ANNO 2057","ANNO 2058","ANNO 2059","ANNO 2060","ANNO 2061","ANNO 2062","ANNO 2063"]
[null,null,"Quota da recupero efficienza (€/mc)","€/mc"]
[null,null,"(1+γOPi,j)*max(0;ΔOpex)","euro"]
[]
[null,null,"INVESTIMENTI"]
[null,null,null,"UdM","ANNO 2024","ANNO 2025","ANNO 2026","ANNO 2027","ANNO 2028","ANNO 2029","ANNO 2030","ANNO 2031","ANNO 2032","ANNO 2033","ANNO 2034","ANNO 2035","ANNO 2036","ANNO 2037","ANNO 2038","ANNO 2039","ANNO 2040","ANNO 2041","ANNO 2042","ANNO 2043","ANNO 2044","ANNO 2045","ANNO 2046","ANNO 2047","ANNO 2048","ANNO 2049","ANNO 2050","ANNO 2051","ANNO 2052","ANNO 2053","ANNO 2054","ANNO 2055","ANNO 2056","ANNO 2057","ANNO 2058","ANNO 2059","ANNO 2060","ANNO 2061","ANNO 2062","ANNO 2063"]
[null,null,"Investimenti al lordo dei contributi","euro"]
[null,null,"Contributi","euro"]
[null,null,"Investimenti al netto dei contributi","euro"]
[null,null,"CIN","euro"]
[null,null,"CINfp","euro"]
[null,null,"OF/CIN","%"]
[]
[null,null,"Interventi funzionali alla risoluzione delle sentenze di condanna della Corte di Giustizia Europea e Contabilità speciale del Commissario Unico (Del. 440/2017/R/idr)"]
[null,null,null,"UdM","2024-2029"]
[null,null,"Fabbisogno degli investimenti per adeguamento agglomerati oggetto di condanne UE del 19/07/2012 e 10/04/2014","euro"]
[null,null,"Fabbisogno di investimenti coperto da tariffa","euro"]
[null,null,"Fabbisogno di investimenti coperto con risorse regionali o altre fonti pubbliche","euro"]
[null,null,"Risorse da destinare alla contabilità speciale del Commissario Unico","euro"]
[null,null,"Parte del VRG destinata alla contabilità speciale del Commissario Unico","euro"]
[null,null,"Risorse regionali o altre fonti pubbliche destinate alla contabilità speciale del Commissario Unico","euro"]
[]
[null,null,"VALORE RESIDUO A FINE CONCESSIONE"]
[null,null,null,"UdM","Del. 639/2023/R/IDR"]
[null,null,"Ipc,t","euro"]
[null,null,"FAIP,c,t","euro"]
[null,null,"CFPc,t","euro"]
[null,null,"FACFP,c,t","euro"]
[null,null,"LIC","euro"]
[null,null,"VR a fine concessione","euro"]

{"sheet":"DCUIT","index":27,"n_rows":7,"n_cols":83,"rows_kept":7,"cut":false,"hidden":false,"merged":[]}
[]
["Titolo 3 MTI-4 - art. 14",null,"ΔCUIT - Immobilizzazioni di terzi"]
[]
[]
[null,null,null,null,null,null,null,null,null,null,null,null,null,null,null,null,null,null,null,null,null,null,null,null,null,null,null,"Anno 2024","Anno 2025","Anno 2026","Anno 2027","Anno 2028","Anno 2029",null,null,"Anno 2024","Anno 2025","Anno 2026","Anno 2027","Anno 2028","Anno 2029","Anno 2024","Anno 2025","Anno 2026","Anno 2027","Anno 2028","Anno 2029","Anno 2024","Anno 2025","Anno 2026","Anno 2027","Anno 2028","Anno 2029","Anno 2024","Anno 2025","Anno 2026","Anno 2027","Anno 2028","Anno 2029","Anno 2024","Anno 2025","Anno 2026","Anno 2027","Anno 2028","Anno 2029","Anno 2024","Anno 2025","Anno 2026","Anno 2027","Anno 2028","Anno 2029","Anno 2024","Anno 2025","Anno 2026","Anno 2027","Anno 2028","Anno 2029","Anno 2024","Anno 2025","Anno 2026","Anno 2027","Anno 2028","Anno 2029"]
["New_Key_prop","CINp 2024","CINp 2025","CINp 2026","CINp 2027","CINp 2028","CINp 2029","AMMp 2024","AMMp 2025","AMMp 2026","AMMp 2027","AMMp 2028","AMMp 2029","CINfp,p 2024","CINfp,p 2025","CINfp,p 2026","CINfp,p 2027","CINfp,p 2028","CINfp,p 2029","AMMcfp,p 2024","AMMcfp,p 2025","AMMcfp,p 2026","AMMcfp,p 2027","AMMcfp,p 2028",null,null,null,"ΔCUIT","ΔCUIT","ΔCUIT","ΔCUIT","ΔCUIT","ΔCUIT",null,null,"CINp","CINp","CINp","CINp","CINp","CINp","CINfp,p / CIN","CINfp,p / CIN","CINfp,p / CIN","CINfp,p / CIN","CINfp,p / CIN","CINfp,p / CIN","Rai","Rai","Rai","Rai","Rai","Rai","OFp","OFp","OFp","OFp","OFp","OFp","OFiscp","OFiscp","OFiscp","OFiscp","OFiscp","OFiscp","AMMp","AMMp","AMMp","AMMp","AMMp","AMMp","MT","MT","MT","MT","MT","MT","AC","AC","AC","AC","AC","AC"]
[null,0,0,0,0,0,0,0,0,0,0,0,0,0,0,0,0,0,0,0,0,0,0,0,null,null,null,null,null,{"$f":"MAX(0,((BP7+BD7+BJ7)-(BV7+CB7)))","v":0},0,0,0,null,null,null,null,{"$f":"+IFERROR(D7*1,0)","v":0},0,0,0,null,null,{"$f":"IFERROR(P7/AL7,0)","v":0},0,0,0,null,null,{"$f":"((1+((TT_parametri!$BF$36+TT_parametri!$BF$37+1)*(1+TT_parametri!$BF$33)-1)/(1-TT_parametri!$BF$35))/(1+TT_parametri!$BF$33)-1)*(1-AR7)*AL7","v":0},{"$f":"((1+((TT_parametri!$BF$36+TT_parametri!$BF$37+1)*(1+TT_parametri!$BF$33)-1)/(1-TT_parametri!$BF$35))/(1+TT_parametri!$BF$33)-1)*(1-AS7)*AM7","v":0},{"$f":"((1+((TT_parametri!$BF$36+TT_parametri!$BF$37+1)*(1+TT_parametri!$BF$33)-1)/(1-TT_parametri!$BF$35))/(1+TT_parametri!$BF$33)-1)*(1-AT7)*AN7","v":0},{"$f":"((1+((TT_parametri!$BF$36+TT_parametri!$BF$37+1)*(1+TT_parametri!$BF$33)-1)/(1-TT_parametri!$BF$35))/(1+TT_parametri!$BF$33)-1)*(1-AU7)*AO7","v":0},null,null,{"$f":"MAX(+(TT_parametri!$BF$36+TT_parametri!$BF$37)*(1-AR7)*AL7,0)","v":0},{"$f":"MAX(+(TT_parametri!$BF$36+TT_parametri!$BF$37)*(1-AS7)*AM7,0)","v":0},{"$f":"MAX(+(TT_parametri!$BF$36+TT_parametri!$BF$37)*(1-AT7)*AN7,0)","v":0},{"$f":"MAX(+(TT_parametri!$BF$36+TT_parametri!$BF$37)*(1-AU7)*AO7,0)","v":0},null,null,{"$f":"MAX(0.319*AX7,0)","v":0},0,0,0,null,null,{"$f":"+IFERROR(J7*1,0)","v":0},0,0,0,null,null,{"$f":"+IFERROR(VLOOKUP($A7,Corrispettivi_proprietari!$B:$AJ,COLUMN(Y7)-1,FALSE),0)","v":0},{"$f":"+IFERROR(VLOOKUP($A7,Corrispettivi_proprietari!$B:$AJ,COLUMN(Z7)-1,FALSE),0)","v":0},{"$f":"+IFERROR(VLOOKUP($A7,Corrispettivi_proprietari!$B:$AJ,COLUMN(AA7)-1,FALSE),0)","v":0},{"$f":"+IFERROR(VLOOKUP($A7,Corrispettivi_proprietari!$B:$AJ,COLUMN(AB7)-1,FALSE),0)","v":0},null,null,{"$f":"+IFERROR(VLOOKUP($A7,Corrispettivi_proprietari!$B:$AJ,COLUMN(AF7)-1,FALSE),0)","v":0},{"$f":"+IFERROR(VLOOKUP($A7,Corrispettivi_proprietari!$B:$AJ,COLUMN(AG7)-1,FALSE),0)","v":0},{"$f":"+IFERROR(VLOOKUP($A7,Corrispettivi_proprietari!$B:$AJ,COLUMN(AH7)-1,FALSE),0)","v":0},{"$f":"+IFERROR(VLOOKUP($A7,Corrispettivi_proprietari!$B:$AJ,COLUMN(AI7)-1,FALSE),0)","v":0}]

{"sheet":"IMN_consolidamento","index":28,"n_rows":6,"n_cols":19,"rows_kept":6,"cut":false,"hidden":false,"merged":[]}
[]
[]
["consolidamento immobilizzazioni \nInclude le immobilizzazioni fino ai nuovi investimenti a moneta dell'anno del cespite\nIl foglio è solo di supporto al calcolo e non va compilato manualmente",null,null,null,null,null,null,null,null,null,null,null,null,null,null,null,null,null,"Sezione di elaborazione dei dati forniti"]
[]
["IDATO","IDGestore","Gestore_Proprietario","N_prop","Fonte","ID_Categoria_Cespite","CategoriaCespite","ID_Immobilizzazione","IMMOBILIZZAZIONE","AnnoCespite","IP","FAIP","CFP","FACP","-","Tipologia di costo sotteso","Attività","foglio di origine","n_riga"]
[0,0,null,null,null,null,null,null,null,null,null,null,null,null,null,null,null,0,{"$f":"+ROW(S6)-ROW($S$5)","v":1}]

{"sheet":"IMN_gestore","index":29,"n_rows":6,"n_cols":79,"rows_kept":6,"cut":false,"hidden":false,"merged":[]}
["q_RAB"]
[null,null,null,"IMNGestore"]
[]
[]
["ID categoria cespite","Categoria cespite","ID Immobilizzazione","IMMOBILIZZAZIONE","Anno Cespite","Per dismissioni","Tipologia di costo sotteso","Attività","foglio di origine","IP ","FAIP ","CFP ","FACFP",null,"VU 2024","IP 2024","FAIP 2024","IP netto 2024","AMM 2024","componente tariffaria\nAMM 2024","CFP 2024","FA CFP 2024","CFP netto 2024","AMM CFP 2024","aa","VU 2025","IP 2025","FAIP 2025","IP netto 2025","AMM 2025","componente tariffaria\nAMM 2025","CFP 2025","FA CFP 2025","CFP netto 2025","AMM CFP 2025","aaa","VU 2026","IP 2026","FAIP 2026","IP netto 2026","AMM 2026","componente tariffaria\nAMM 2026","CFP 2026","FA CFP 2026","CFP netto 2026","AMM CFP 2026","aaaa","VU 2027","IP 2027","FAIP 2027","IP netto 2027","AMM 2027","componente tariffaria\nAMM 2027","CFP 2027","FA CFP 2027","CFP netto 2027","AMM CFP 2027","aaaa","VU 2028","IP 2028","FAIP 2028","IP netto 2028","AMM 2028","componente tariffaria\nAMM 2028","CFP 2028","FA CFP 2028","CFP netto 2028","AMM CFP 2028","aaaa","VU 2029","IP 2029","FAIP 2029","IP netto 2029","AMM 2029","componente tariffaria\nAMM 2029","CFP 2029","FA CFP 2029","CFP netto 2029","AMM CFP 2029"]
["(blank)","(blank)","(blank)","(blank)","(blank)","(blank)","(blank)","(blank)",0,0,0,0,0,null,{"$f":"+IFERROR(P6/ROUNDDOWN(S6,0),\"-\")","v":"-"},{"$f":"IF($G6=\"Dismissioni\",IFERROR(DISM(ABS($J6),$A6,$C6,$E6,VALUE(RIGHT(P$5,4)),ifl),0)*-1,IFERROR(IP(ABS($J6),$A6,$C6,$E6,VALUE(RIGHT(P$5,4)),ifl),0))","v":0},{"$f":"IF($G6=\"Dismissioni\",IFERROR(FondoAmm_dism(ABS($J6),ABS($K6),$E6,$A6,$C6,VALUE(RIGHT(Q$5,4)),IF($F6>=2020,vite_regolatorie_new,vite_regolatorie),ifl),0)*-1,IFERROR(FondoAmm(ABS($J6),ABS($K6),$E6,$A6,$C6,VALUE(RIGHT(Q$5,4)),IF($E6>=2020,vite_regolatorie_new,vite_regolatorie),ifl),0))","v":0},{"$f":"+P6-Q6","v":0},{"$f":"IF($G6=\"Dismissioni\",IFERROR(QA_DISM(ABS($J6),ABS($K6),$E6,$A6,$C6,VALUE(RIGHT(S$5,4)),IF($F6>=2020,vite_regolatorie_new,vite_regolatorie),ifl),0)*-1,IFERROR(QA(ABS($J6),ABS($K6),$E6,$A6,$C6,VALUE(RIGHT(S$5,4)),IF($E6>=2020,vite_regolatorie_new,vite_regolatorie),ifl),0))","v":0},{"$f":"+S6-X6","v":0},{"$f":"IF($G6=\"Dismissioni\",IFERROR(CFP_DISM_A(ABS($L6),$A6,$E6,$C6,VALUE(RIGHT(U$5,4)),ifl)*-1,0),IFERROR(CFP_A(ABS($L6),$A6,$C6,$E6,VALUE(RIGHT(U$5,4)),ifl),0))","v":0},{"$f":"IF($G6=\"Dismissioni\",IFERROR(FACFP_DISM(ABS($L6),ABS($M6),$E6,$A6,$C6,VALUE(RIGHT(V$5,4)),IF($F6>=2020,vite_regolatorie_new,vite_regolatorie),ifl)*-1,0),IFERROR(FACFP(ABS($L6),ABS($M6),$E6,$A6,$C6,VALUE(RIGHT(V$5,4)),IF($E6>=2020,vite_regolatorie_new,vite_regolatorie),ifl),0))","v":0},{"$f":"+U6-V6","v":0},{"$f":"IF($G6=\"Dismissioni\",IFERROR(QA_CFP_DISM(ABS($L6),ABS($M6),$E6,$A6,$C6,VALUE(RIGHT(X$5,4)),IF($F6>=2020,vite_regolatorie_new,vite_regolatorie),ifl)*-1,0),IFERROR(QA_CFP(ABS($L6),ABS($M6),$E6,$C6,$A6,VALUE(RIGHT(X$5,4)),IF($E6>=2020,vite_regolatorie_new,vite_regolatorie),ifl),0))","v":0},null,{"$f":"+IFERROR(AA6/ROUNDDOWN(AD6,0),\"-\")","v":"-"},{"$f":"IF($G6=\"Dismissioni\",IFERROR(DISM(ABS($J6),$A6,$C6,$E6,VALUE(RIGHT(AA$5,4)),ifl),0)*-1,IFERROR(IP(ABS($J6),$A6,$C6,$E6,VALUE(RIGHT(AA$5,4)),ifl),0))","v":0},{"$f":"IF($G6=\"Dismissioni\",IFERROR(FondoAmm_dism(ABS($J6),ABS($K6),$E6,$A6,$C6,VALUE(RIGHT(AB$5,4)),IF($F6>=2020,vite_regolatorie_new,vite_regolatorie),ifl),0)*-1,IFERROR(FondoAmm(ABS($J6),ABS($K6),$E6,$A6,$C6,VALUE(RIGHT(AB$5,4)),IF($E6>=2020,vite_regolatorie_new,vite_regolatorie),ifl),0))","v":0},{"$f":"+AA6-AB6","v":0},{"$f":"IF($G6=\"Dismissioni\",IFERROR(QA_DISM(ABS($J6),ABS($K6),$E6,$A6,$C6,VALUE(RIGHT(AD$5,4)),IF($F6>=2020,vite_regolatorie_new,vite_regolatorie),ifl),0)*-1,IFERROR(QA(ABS($J6),ABS($K6),$E6,$A6,$C6,VALUE(RIGHT(AD$5,4)),IF($E6>=2020,vite_regolatorie_new,vite_regolatorie),ifl),0))","v":0},{"$f":"+AD6-AI6","v":0},{"$f":"IF($G6=\"Dismissioni\",IFERROR(CFP_DISM_A(ABS($L6),$A6,$E6,$C6,VALUE(RIGHT(AF$5,4)),ifl)*-1,0),IFERROR(CFP_A(ABS($L6),$A6,$C6,$E6,VALUE(RIGHT(AF$5,4)),ifl),0))","v":0},{"$f":"IF($G6=\"Dismissioni\",IFERROR(FACFP_DISM(ABS($L6),ABS($M6),$E6,$A6,$C6,VALUE(RIGHT(AG$5,4)),IF($F6>=2020,vite_regolatorie_new,vite_regolatorie),ifl)*-1,0),IFERROR(FACFP(ABS($L6),ABS($M6),$E6,$A6,$C6,VALUE(RIGHT(AG$5,4)),IF($E6>=2020,vite_regolatorie_new,vite_regolatorie),ifl),0))","v":0},{"$f":"+AF6-AG6","v":0},{"$f":"IF($G6=\"Dismissioni\",IFERROR(QA_CFP_DISM(ABS($L6),ABS($M6),$E6,$A6,$C6,VALUE(RIGHT(AI$5,4)),IF($F6>=2020,vite_regolatorie_new,vite_regolatorie),ifl)*-1,0),IFERROR(QA_CFP(ABS($L6),ABS($M6),$E6,$C6,$A6,VALUE(RIGHT(AI$5,4)),IF($E6>=2020,vite_regolatorie_new,vite_regolatorie),ifl),0))","v":0},null,{"$f":"+IFERROR(AL6/ROUNDDOWN(AO6,0),\"-\")","v":"-"},{"$f":"IF($G6=\"Dismissioni\",IFERROR(DISM(ABS($J6),$A6,$C6,$E6,VALUE(RIGHT(AL$5,4)),ifl),0)*-1,IFERROR(IP(ABS($J6),$A6,$C6,$E6,VALUE(RIGHT(AL$5,4)),ifl),0))","v":0},{"$f":"IF($G6=\"Dismissioni\",IFERROR(FondoAmm_dism(ABS($J6),ABS($K6),$E6,$A6,$C6,VALUE(RIGHT(AM$5,4)),IF($F6>=2020,vite_regolatorie_new,vite_regolatorie),ifl),0)*-1,IFERROR(FondoAmm(ABS($J6),ABS($K6),$E6,$A6,$C6,VALUE(RIGHT(AM$5,4)),IF($E6>=2020,vite_regolatorie_new,vite_regolatorie),ifl),0))","v":0},{"$f":"+AL6-AM6","v":0},{"$f":"IF($G6=\"Dismissioni\",IFERROR(QA_DISM(ABS($J6),ABS($K6),$E6,$A6,$C6,VALUE(RIGHT(AO$5,4)),IF($F6>=2020,vite_regolatorie_new,vite_regolatorie),ifl),0)*-1,IFERROR(QA(ABS($J6),ABS($K6),$E6,$A6,$C6,VALUE(RIGHT(AO$5,4)),IF($E6>=2020,vite_regolatorie_new,vite_regolatorie),ifl),0))","v":0},{"$f":"+AO6-AT6","v":0},{"$f":"IF($G6=\"Dismissioni\",IFERROR(CFP_DISM_A(ABS($L6),$A6,$E6,$C6,VALUE(RIGHT(AQ$5,4)),ifl)*-1,0),IFERROR(CFP_A(ABS($L6),$A6,$C6,$E6,VALUE(RIGHT(AQ$5,4)),ifl),0))","v":0},{"$f":"IF($G6=\"Dismissioni\",IFERROR(FACFP_DISM(ABS($L6),ABS($M6),$E6,$A6,$C6,VALUE(RIGHT(AR$5,4)),IF($F6>=2020,vite_regolatorie_new,vite_regolatorie),ifl)*-1,0),IFERROR(FACFP(ABS($L6),ABS($M6),$E6,$A6,$C6,VALUE(RIGHT(AR$5,4)),IF($E6>=2020,vite_regolatorie_new,vite_regolatorie),ifl),0))","v":0},{"$f":"+AQ6-AR6","v":0},{"$f":"IF($G6=\"Dismissioni\",IFERROR(QA_CFP_DISM(ABS($L6),ABS($M6),$E6,$A6,$C6,VALUE(RIGHT(AT$5,4)),IF($F6>=2020,vite_regolatorie_new,vite_regolatorie),ifl)*-1,0),IFERROR(QA_CFP(ABS($L6),ABS($M6),$E6,$C6,$A6,VALUE(RIGHT(AT$5,4)),IF($E6>=2020,vite_regolatorie_new,vite_regolatorie),ifl),0))","v":0},null,{"$f":"+IFERROR(AW6/ROUNDDOWN(AZ6,0),\"-\")","v":"-"},{"$f":"IF($G6=\"Dismissioni\",IFERROR(DISM(ABS($J6),$A6,$C6,$E6,VALUE(RIGHT(AW$5,4)),ifl),0)*-1,IFERROR(IP(ABS($J6),$A6,$C6,$E6,VALUE(RIGHT(AW$5,4)),ifl),0))","v":0},{"$f":"IF($G6=\"Dismissioni\",IFERROR(FondoAmm_dism(ABS($J6),ABS($K6),$E6,$A6,$C6,VALUE(RIGHT(AX$5,4)),IF($F6>=2020,vite_regolatorie_new,vite_regolatorie),ifl),0)*-1,IFERROR(FondoAmm(ABS($J6),ABS($K6),$E6,$A6,$C6,VALUE(RIGHT(AX$5,4)),IF($E6>=2020,vite_regolatorie_new,vite_regolatorie),ifl),0))","v":0},{"$f":"+AW6-AX6","v":0},{"$f":"IF($G6=\"Dismissioni\",IFERROR(QA_DISM(ABS($J6),ABS($K6),$E6,$A6,$C6,VALUE(RIGHT(AZ$5,4)),IF($F6>=2020,vite_regolatorie_new,vite_regolatorie),ifl),0)*-1,IFERROR(QA(ABS($J6),ABS($K6),$E6,$A6,$C6,VALUE(RIGHT(AZ$5,4)),IF($E6>=2020,vite_regolatorie_new,vite_regolatorie),ifl),0))","v":0},{"$f":"+AZ6-BE6","v":0},{"$f":"IF($G6=\"Dismissioni\",IFERROR(CFP_DISM_A(ABS($L6),$A6,$E6,$C6,VALUE(RIGHT(BB$5,4)),ifl)*-1,0),IFERROR(CFP_A(ABS($L6),$A6,$C6,$E6,VALUE(RIGHT(BB$5,4)),ifl),0))","v":0},{"$f":"IF($G6=\"Dismissioni\",IFERROR(FACFP_DISM(ABS($L6),ABS($M6),$E6,$A6,$C6,VALUE(RIGHT(BC$5,4)),IF($F6>=2020,vite_regolatorie_new,vite_regolatorie),ifl)*-1,0),IFERROR(FACFP(ABS($L6),ABS($M6),$E6,$A6,$C6,VALUE(RIGHT(BC$5,4)),IF($E6>=2020,vite_regolatorie_new,vite_regolatorie),ifl),0))","v":0},{"$f":"+BB6-BC6","v":0},{"$f":"IF($G6=\"Dismissioni\",IFERROR(QA_CFP_DISM(ABS($L6),ABS($M6),$E6,$A6,$C6,VALUE(RIGHT(BE$5,4)),IF($F6>=2020,vite_regolatorie_new,vite_regolatorie),ifl)*-1,0),IFERROR(QA_CFP(ABS($L6),ABS($M6),$E6,$C6,$A6,VALUE(RIGHT(BE$5,4)),IF($E6>=2020,vite_regolatorie_new,vite_regolatorie),ifl),0))","v":0},null,{"$f":"+IFERROR(BH6/ROUNDDOWN(BK6,0),\"-\")","v":"-"},{"$f":"IF($G6=\"Dismissioni\",IFERROR(DISM(ABS($J6),$A6,$C6,$E6,VALUE(RIGHT(BH$5,4)),ifl),0)*-1,IFERROR(IP(ABS($J6),$A6,$C6,$E6,VALUE(RIGHT(BH$5,4)),ifl),0))","v":0},{"$f":"IF($G6=\"Dismissioni\",IFERROR(FondoAmm_dism(ABS($J6),ABS($K6),$E6,$A6,$C6,VALUE(RIGHT(BI$5,4)),IF($F6>=2020,vite_regolatorie_new,vite_regolatorie),ifl),0)*-1,IFERROR(FondoAmm(ABS($J6),ABS($K6),$E6,$A6,$C6,VALUE(RIGHT(BI$5,4)),IF($E6>=2020,vite_regolatorie_new,vite_regolatorie),ifl),0))","v":0},{"$f":"+BH6-BI6","v":0},{"$f":"IF($G6=\"Dismissioni\",IFERROR(QA_DISM(ABS($J6),ABS($K6),$E6,$A6,$C6,VALUE(RIGHT(BK$5,4)),IF($F6>=2020,vite_regolatorie_new,vite_regolatorie),ifl),0)*-1,IFERROR(QA(ABS($J6),ABS($K6),$E6,$A6,$C6,VALUE(RIGHT(BK$5,4)),IF($E6>=2020,vite_regolatorie_new,vite_regolatorie),ifl),0))","v":0},{"$f":"+BK6-BP6","v":0},{"$f":"IF($G6=\"Dismissioni\",IFERROR(CFP_DISM_A(ABS($L6),$A6,$E6,$C6,VALUE(RIGHT(BM$5,4)),ifl)*-1,0),IFERROR(CFP_A(ABS($L6),$A6,$C6,$E6,VALUE(RIGHT(BM$5,4)),ifl),0))","v":0},{"$f":"IF($G6=\"Dismissioni\",IFERROR(FACFP_DISM(ABS($L6),ABS($M6),$E6,$A6,$C6,VALUE(RIGHT(BN$5,4)),IF($F6>=2020,vite_regolatorie_new,vite_regolatorie),ifl)*-1,0),IFERROR(FACFP(ABS($L6),ABS($M6),$E6,$A6,$C6,VALUE(RIGHT(BN$5,4)),IF($E6>=2020,vite_regolatorie_new,vite_regolatorie),ifl),0))","v":0},{"$f":"+BM6-BN6","v":0},{"$f":"IF($G6=\"Dismissioni\",IFERROR(QA_CFP_DISM(ABS($L6),ABS($M6),$E6,$A6,$C6,VALUE(RIGHT(BP$5,4)),IF($F6>=2020,vite_regolatorie_new,vite_regolatorie),ifl)*-1,0),IFERROR(QA_CFP(ABS($L6),ABS($M6),$E6,$C6,$A6,VALUE(RIGHT(BP$5,4)),IF($E6>=2020,vite_regolatorie_new,vite_regolatorie),ifl),0))","v":0},null,{"$f":"+IFERROR(BS6/ROUNDDOWN(BV6,0),\"-\")","v":"-"},{"$f":"IF($G6=\"Dismissioni\",IFERROR(DISM(ABS($J6),$A6,$C6,$E6,VALUE(RIGHT(BS$5,4)),ifl),0)*-1,IFERROR(IP(ABS($J6),$A6,$C6,$E6,VALUE(RIGHT(BS$5,4)),ifl),0))","v":0},{"$f":"IF($G6=\"Dismissioni\",IFERROR(FondoAmm_dism(ABS($J6),ABS($K6),$E6,$A6,$C6,VALUE(RIGHT(BT$5,4)),IF($F6>=2020,vite_regolatorie_new,vite_regolatorie),ifl),0)*-1,IFERROR(FondoAmm(ABS($J6),ABS($K6),$E6,$A6,$C6,VALUE(RIGHT(BT$5,4)),IF($E6>=2020,vite_regolatorie_new,vite_regolatorie),ifl),0))","v":0},{"$f":"+BS6-BT6","v":0},{"$f":"IF($G6=\"Dismissioni\",IFERROR(QA_DISM(ABS($J6),ABS($K6),$E6,$A6,$C6,VALUE(RIGHT(BV$5,4)),IF($F6>=2020,vite_regolatorie_new,vite_regolatorie),ifl),0)*-1,IFERROR(QA(ABS($J6),ABS($K6),$E6,$A6,$C6,VALUE(RIGHT(BV$5,4)),IF($E6>=2020,vite_regolatorie_new,vite_regolatorie),ifl),0))","v":0},{"$f":"+BV6-CA6","v":0},{"$f":"IF($G6=\"Dismissioni\",IFERROR(CFP_DISM_A(ABS($L6),$A6,$E6,$C6,VALUE(RIGHT(BX$5,4)),ifl)*-1,0),IFERROR(CFP_A(ABS($L6),$A6,$C6,$E6,VALUE(RIGHT(BX$5,4)),ifl),0))","v":0},{"$f":"IF($G6=\"Dismissioni\",IFERROR(FACFP_DISM(ABS($L6),ABS($M6),$E6,$A6,$C6,VALUE(RIGHT(BY$5,4)),IF($F6>=2020,vite_regolatorie_new,vite_regolatorie),ifl)*-1,0),IFERROR(FACFP(ABS($L6),ABS($M6),$E6,$A6,$C6,VALUE(RIGHT(BY$5,4)),IF($E6>=2020,vite_regolatorie_new,vite_regolatorie),ifl),0))","v":0},{"$f":"+BX6-BY6","v":0},{"$f":"IF($G6=\"Dismissioni\",IFERROR(QA_CFP_DISM(ABS($L6),ABS($M6),$E6,$A6,$C6,VALUE(RIGHT(CA$5,4)),IF($F6>=2020,vite_regolatorie_new,vite_regolatorie),ifl)*-1,0),IFERROR(QA_CFP(ABS($L6),ABS($M6),$E6,$C6,$A6,VALUE(RIGHT(CA$5,4)),IF($E6>=2020,vite_regolatorie_new,vite_regolatorie),ifl),0))","v":0}]

{"sheet":"Framework_schemi","index":30,"n_rows":96,"n_cols":10,"rows_kept":96,"cut":false,"hidden":false,"merged":[[85,4,85,5],[42,6,42,9],[29,1,32,1],[33,1,36,1],[26,1,27,1],[29,2,32,3],[33,2,36,3],[26,2,28,3],[29,4,32,5],[33,4,36,5],[29,6,32,7],[33,6,36,7],[26,6,28,7],[26,4,28,5]]}
[]
["Titolo 1 MTI-4 - Art. 2 Titolo 2 MTI-4 - Art. 6 ","Regolazione tariffaria applicabile\nMatrice di schemi regolatori"]
[]
[null,"Regolazione tariffaria applicabile "]
[]
[]
[null,null,null,"Del. 582/2025/R/IDR"]
[null,"Informazioni sulla predisposizione tariffaria",null,{"$f":"+IF(OR(Input_per_calcoli_finali!K25=\"\",D13=\"\",D14=\"\",D15=\"\",D16=\"\",D17=\"\"),\"\",IF(Input_per_calcoli_finali!K25=\"Schema regolatorio di convergenza\",\"Schema regolatorio di convergenza\",IF(PRODUCT(C13:C17)=0,\"Escluso dall'aggiornamento tariffario\",\"Schema regolatorio\")))","v":""}]
[]
[]
[]
[null,"Verifica cause di esclusione",null,"Del. 582/2025/R/IDR"]
[null,"Gestione in possesso di un titolo giuridico ad esercire il servizio conforme alla normativa, ovvero gestione interessata da procedure di affidamento già avviate",{"$f":"+IF(D13=\"SI\",1,0)","v":0},{"$f":"IF(Input_per_calcoli_finali!K12=\"\",\"\",Input_per_calcoli_finali!K12)","v":""}]
[null,"Assenza di un consumo minimo impegnato per la fatturazione alle utenze",{"$f":"+IF(D14=\"SI\",1,0)","v":0},{"$f":"IF(Input_per_calcoli_finali!K17=\"\",\"\",Input_per_calcoli_finali!K17)","v":""}]
[null,"Adozione Carta dei Servizi",{"$f":"+IF(D15=\"SI\",1,0)","v":0},{"$f":"IF(Input_per_calcoli_finali!K16=\"\",\"\",Input_per_calcoli_finali!K16)","v":""}]
[null,"Versamento delle componenti perequative a CSEA",{"$f":"+IF(D16=\"SI\",1,0)","v":0},{"$f":"+IF(Input_per_calcoli_finali!K18=\"\",\"\",Input_per_calcoli_finali!K18)","v":""}]
[null,"Assenza di ritardi e carenze nell’implementazione dei piani (in precedenza comunicati all’Autorità) per il superamento della mancanza dei pertinenti prerequisiti",{"$f":"+IF(D17=\"SI\",1,0)","v":0},{"$f":"IF(Input_per_calcoli_finali!K19=\"\",\"\",Input_per_calcoli_finali!K19)","v":""}]
[]
[]
[]
[]
[null,"Matrice di schemi regolatori"]
[]
[]
[]
[]
[null,null,null,null,null,null,"AGGREGAZIONI O\nVARIAZIONI DEI PROCESSI\nTECNICI SIGNIFICATIVE"]
[]
[]
[null,null,"\nSchema I",null,"\nSchema II",null,"\nSchema III"]
[]
[]
[]
[null,null,"\nSchema IV",null,"\nSchema V",null,"\nSchema VI"]
[]
[]
[]
[]
[]
[]
[]
[]
[null,null,null,null,null,null,"limite alla crescita del moltiplicatore tariffario"]
[null,"Posizionamento nella matrice","elemento i,j","Schema"," γk"," γx",2026,2027,2028,2029]
[null,"prima riga, prima colonna","1-1","Schema I",0.25,0.5,{"$f":"1+rpi+((1+$E45)*(kschema+IF(Affidamento!$E$13>0,0,Affidamento!$E$13))-((1+$F45)*(xschema+IF(Affidamento!$E$14<0,0,Affidamento!$E$14))))","v":1.0589999999999999},{"$f":"1+rpi+((1+$E45)*(kschema+IF(Affidamento!$F$13>0,0,Affidamento!$F$13))-((1+$F45)*(xschema+IF(Affidamento!$F$14<0,0,Affidamento!$F$14))))","v":1.0589999999999999},{"$f":"1+rpi+((1+$E45)*(kschema+IF(Affidamento!$G$13>0,0,Affidamento!$G$13))-(1+$F45)*(xschema+IF(Affidamento!$G$14<0,0,Affidamento!$G$14)))","v":1.0589999999999999},{"$f":"1+rpi+((1+$E45)*(kschema+IF(Affidamento!$H$13>0,0,Affidamento!$H$13))-(1+$F45)*(xschema+IF(Affidamento!$H$14<0,0,Affidamento!$H$14)))","v":1.0589999999999999}]
[null,"prima riga, seconda colonna","1-2","Schema II",0.25,1,{"$f":"1+rpi+((1+$E46)*(kschema+IF(Affidamento!$E$13>0,0,Affidamento!$E$13))-((1+$F46)*(xschema+IF(Affidamento!$E$14<0,0,Affidamento!$E$14))))","v":1.0514999999999999},{"$f":"1+rpi+((1+$E46)*(kschema+IF(Affidamento!$F$13>0,0,Affidamento!$F$13))-((1+$F46)*(xschema+IF(Affidamento!$F$14<0,0,Affidamento!$F$14))))","v":1.0514999999999999},{"$f":"1+rpi+((1+$E46)*(kschema+IF(Affidamento!$G$13>0,0,Affidamento!$G$13))-(1+$F46)*(xschema+IF(Affidamento!$G$14<0,0,Affidamento!$G$14)))","v":1.0514999999999999},{"$f":"1+rpi+((1+$E46)*(kschema+IF(Affidamento!$H$13>0,0,Affidamento!$H$13))-(1+$F46)*(xschema+IF(Affidamento!$H$14<0,0,Affidamento!$H$14)))","v":1.0514999999999999}]
[null,"prima riga, terza colonna","1-3","Schema III",0.25,0,{"$f":"1+rpi+((1+$E47)*(kschema+IF(Affidamento!$E$13>0,0,Affidamento!$E$13))-((1+$F47)*(xschema+IF(Affidamento!$E$14<0,0,Affidamento!$E$14))))","v":1.0665},{"$f":"1+rpi+((1+$E47)*(kschema+IF(Affidamento!$F$13>0,0,Affidamento!$F$13))-((1+$F47)*(xschema+IF(Affidamento!$F$14<0,0,Affidamento!$F$14))))","v":1.0665},{"$f":"1+rpi+((1+$E47)*(kschema+IF(Affidamento!$G$13>0,0,Affidamento!$G$13))-(1+$F47)*(xschema+IF(Affidamento!$G$14<0,0,Affidamento!$G$14)))","v":1.0665},{"$f":"1+rpi+((1+$E47)*(kschema+IF(Affidamento!$H$13>0,0,Affidamento!$H$13))-(1+$F47)*(xschema+IF(Affidamento!$H$14<0,0,Affidamento!$H$14)))","v":1.0665}]
[null,"seconda riga, prima colonna","2-1","Schema IV",0.75,0.5,{"$f":"1+rpi+((1+$E48)*(kschema+IF(Affidamento!$E$13>0,0,Affidamento!$E$13))-((1+$F48)*(xschema+IF(Affidamento!$E$14<0,0,Affidamento!$E$14))))","v":1.0839999999999999},{"$f":"1+rpi+((1+$E48)*(kschema+IF(Affidamento!$F$13>0,0,Affidamento!$F$13))-((1+$F48)*(xschema+IF(Affidamento!$F$14<0,0,Affidamento!$F$14))))","v":1.0839999999999999},{"$f":"1+rpi+((1+$E48)*(kschema+IF(Affidamento!$G$13>0,0,Affidamento!$G$13))-(1+$F48)*(xschema+IF(Affidamento!$G$14<0,0,Affidamento!$G$14)))","v":1.0839999999999999},{"$f":"1+rpi+((1+$E48)*(kschema+IF(Affidamento!$H$13>0,0,Affidamento!$H$13))-(1+$F48)*(xschema+IF(Affidamento!$H$14<0,0,Affidamento!$H$14)))","v":1.0839999999999999}]
[null,"seconda riga, seconda colonna","2-2","Schema V",0.75,1,{"$f":"1+rpi+((1+$E49)*(kschema+IF(Affidamento!$E$13>0,0,Affidamento!$E$13))-((1+$F49)*(xschema+IF(Affidamento!$E$14<0,0,Affidamento!$E$14))))","v":1.0765},{"$f":"1+rpi+((1+$E49)*(kschema+IF(Affidamento!$F$13>0,0,Affidamento!$F$13))-((1+$F49)*(xschema+IF(Affidamento!$F$14<0,0,Affidamento!$F$14))))","v":1.0765},{"$f":"1+rpi+((1+$E49)*(kschema+IF(Affidamento!$G$13>0,0,Affidamento!$G$13))-(1+$F49)*(xschema+IF(Affidamento!$G$14<0,0,Affidamento!$G$14)))","v":1.0765},{"$f":"1+rpi+((1+$E49)*(kschema+IF(Affidamento!$H$13>0,0,Affidamento!$H$13))-(1+$F49)*(xschema+IF(Affidamento!$H$14<0,0,Affidamento!$H$14)))","v":1.0765}]
[null,"seconda riga, terza colonna","2-3","Schema VI",0.75,0,{"$f":"1+rpi+((1+$E50)*(kschema+IF(Affidamento!$E$13>0,0,Affidamento!$E$13))-((1+$F50)*(xschema+IF(Affidamento!$E$14<0,0,Affidamento!$E$14))))","v":1.0914999999999999},{"$f":"1+rpi+((1+$E50)*(kschema+IF(Affidamento!$F$13>0,0,Affidamento!$F$13))-((1+$F50)*(xschema+IF(Affidamento!$F$14<0,0,Affidamento!$F$14))))","v":1.0914999999999999},{"$f":"1+rpi+((1+$E50)*(kschema+IF(Affidamento!$G$13>0,0,Affidamento!$G$13))-(1+$F50)*(xschema+IF(Affidamento!$G$14<0,0,Affidamento!$G$14)))","v":1.0914999999999999},{"$f":"1+rpi+((1+$E50)*(kschema+IF(Affidamento!$H$13>0,0,Affidamento!$H$13))-(1+$F50)*(xschema+IF(Affidamento!$H$14<0,0,Affidamento!$H$14)))","v":1.0914999999999999}]
[]
[]
[]
[]
[]
[]
[null,"Parametri per schema regolatorio","Del. 582/2025/R/IDR"]
[null,"ω",{"$f":"+TT_parametri!BC42","v":0.5}]
[null,"rpi",{"$f":"TT_parametri!BC43","v":1.9E-2}]
[null,"Kreg",{"$f":"TT_parametri!BC44","v":0.05}]
[null,"Xreg",{"$f":"TT_parametri!BC45","v":1.4999999999999999E-2}]
[null,"VRGPM",{"$f":"TT_parametri!BC46","v":159}]
[]
[]
[null,"Identificazione della riga della matrice di schemi","Del. 582/2025/R/IDR"]
[null,"(∑2024-2029 Ipaexp + CFPaexp ) ",{"$f":"+Input_per_calcoli_finali!I43","v":0}]
[null,"RAB MTI-3",{"$f":"Input_per_calcoli_finali!G49","v":0}]
[null,"(∑2024-2029 Ipaexp + CFPaexp ) / RABMTI-3",{"$f":"+IFERROR(C66/C67,0)","v":0}]
[]
[null,"riga della matrice",{"$f":"IF(AND(Input_per_calcoli_finali!O55=\"Schema regolatorio\",C68<=C58),1,IF(AND(Input_per_calcoli_finali!O55=\"Schema regolatorio\",C68>C58),2,\"\"))","v":""}]
[]
[]
[]
[null,"Identificazione della colonna della matrice di schemi","Del. 582/2025/R/IDR"]
[null,"Aggregazioni o variazioni dei processi tecnici significative",{"$f":"+IF(integr=\"nessuna\",\"NO\",IF(integr=\"\",\"\",\"SI\"))","v":""}]
[null,"VRG2022",{"$f":"Input_per_calcoli_finali!G38","v":""}]
[null,"pop + 0,25popflut",{"$f":"Input_per_calcoli_finali!G39","v":""}]
[null,"VRG2022 / pop + 0,25popflut",{"$f":"+IFERROR(C76/C77,\"\")","v":""}]
[]
[null,"colonna della matrice",{"$f":"+IF(AND(Input_per_calcoli_finali!O55=\"Schema regolatorio\",C75=\"SI\"),3,IF(AND(Input_per_calcoli_finali!O55=\"Schema regolatorio\",OPMi<=C62),1,IF(AND(Input_per_calcoli_finali!O53=\"Schema regolatorio\",OPMi>C62),2,\"\")))","v":""}]
[]
[]
[]
[]
[null,"Identificazione dello schema della matrice MTI-4","Del. 582/2025/R/IDR",null,null,null,2026,2027,2028,2029]
[null,"selezione dello schema",{"$f":"IF(Input_per_calcoli_finali!O55=\"Schema regolatorio\",VLOOKUP(C70&\"-\"&C80,$C$45:$D$50,2,FALSE),IF(mti_4=\"Escluso dall'aggiornamento tariffario\",1,\"\"))","v":""},null,"limite alla crescita annuale del moltiplicatore tariffario",null,{"$f":"IFERROR(VLOOKUP(Quad,$D$45:$J$50,4,FALSE),IF(mti_4=\"Escluso dall'aggiornamento tariffario\",1,\"\"))","v":""},{"$f":"IFERROR(VLOOKUP(Quad,$D$45:$J$50,5,FALSE),IF(mti_4=\"Escluso dall'aggiornamento tariffario\",1,\"\"))","v":""},{"$f":"IFERROR(VLOOKUP(Quad,$D$45:$J$50,6,FALSE),IF(mti_4=\"Escluso dall'aggiornamento tariffario\",1,\"\"))","v":""},{"$f":"IFERROR(VLOOKUP(Quad,$D$45:$J$50,7,FALSE),IF(mti_4=\"Escluso dall'aggiornamento tariffario\",1,\"\"))","v":""}]
[]
[]
[]
[]
[]
[]
[]
[null,null,"Del. 639/2023/R/IDR"]
[null,"selezione dello schema dati storici (dati storici)",{"$f":"Storico_Piano_Tariffario!E15","v":0}]
[null,"limite alla crescita annuale del moltiplicatore tariffario (dati storici)",{"$f":"IF(Storico_Piano_Tariffario!E70=\"\",\"\",Storico_Piano_Tariffario!E70)","v":""}]

{"sheet":"VRG_Teta","index":31,"n_rows":140,"n_cols":8,"rows_kept":140,"cut":false,"hidden":false,"merged":[]}
[]
["Titolo 2 MTI-4 - Art. 4\nTitolo 2 MTI-4 - Art. 5","Moltiplicatore tariffario\nVincolo riconosciuto ai ricavi del gestore"]
[]
[null,"Sviluppo del VRG"]
[]
[]
[]
[]
[null,"Componenti nel Piano Tariffario",2024,2025,2026,2027,2028,2029]
[null,"VRGa",{"$f":"+SUM(C11:C15)","v":0},{"$f":"+SUM(D11:D15)","v":0},{"$f":"+SUM(E11:E15)","v":0},0,0,0]
[null,"Capexa",{"$f":"+IFERROR(Capex!C10,0)","v":0},{"$f":"+IFERROR(Capex!D10,0)","v":0},{"$f":"+IFERROR(Capex!E10,0)","v":0},{"$f":"+IFERROR(Capex!F10,0)","v":0},{"$f":"+IFERROR(Capex!G10,0)","v":0},{"$f":"+IFERROR(Capex!H10,0)","v":0}]
[null,"FoNIa",{"$f":"+IFERROR(FoNI!C10,0)","v":0},{"$f":"+IFERROR(FoNI!D10,0)","v":0},{"$f":"+IFERROR(FoNI!E10,0)","v":0},{"$f":"+IFERROR(FoNI!F10,0)","v":0},{"$f":"+IFERROR(FoNI!G10,0)","v":0},{"$f":"+IFERROR(FoNI!H10,0)","v":0}]
[null,"Opexa ",{"$f":"+IFERROR(Opex!C10,0)","v":0},{"$f":"+IFERROR(Opex!D10,0)","v":0},{"$f":"+IFERROR(Opex!E10,0)","v":0},{"$f":"+IFERROR(Opex!F10,0)","v":0},{"$f":"+IFERROR(Opex!G10,0)","v":0},{"$f":"+IFERROR(Opex!H10,0)","v":0}]
[null,"ERCa ",{"$f":"+IFERROR(ERC!C10,0)","v":0},{"$f":"+IFERROR(ERC!D10,0)","v":0},{"$f":"+IFERROR(ERC!E10,0)","v":0},{"$f":"+IFERROR(ERC!F10,0)","v":0},{"$f":"+IFERROR(ERC!G10,0)","v":0},{"$f":"+IFERROR(ERC!H10,0)","v":0}]
[null,"RcTOTa",{"$f":"IFERROR('Rc'!C10,0)","v":0},{"$f":"IFERROR('Rc'!D10,0)","v":0},{"$f":"IFERROR('Rc'!E10,0)","v":0},{"$f":"IFERROR('Rc'!F10,0)","v":0},{"$f":"IFERROR('Rc'!G10,0)","v":0},{"$f":"IFERROR('Rc'!H10,0)","v":0}]
[]
[]
[]
[null,"Eventuali detrazioni",2024,2025,2026,2027,2028,2029]
[null,"Capexa",null,null,{"$f":"+E40-E11","v":0},0,0,0]
[null,"FoNIa",null,null,0,0,0,0]
[null,"Opexa ",null,null,0,0,0,0]
[null,"ERCa ",null,null,0,0,0,0]
[null,"RcTOTa",null,null,0,0,0,0]
[]
[]
[]
[null,"Componenti post detrazioni",2024,2025,2026,2027,2028,2029]
[null,"VRGa",null,null,{"$f":"+SUM(E30:E34)","v":0},0,0,0]
[null,"Capexa",null,null,{"$f":"+IFERROR(Capex!E10,0)","v":0},{"$f":"+IFERROR(Capex!F10,0)","v":0},{"$f":"+IFERROR(Capex!G10,0)","v":0},{"$f":"+IFERROR(Capex!H10,0)","v":0}]
[null,"FoNIa",null,null,{"$f":"+IFERROR(FoNI!E10,0)","v":0},{"$f":"+IFERROR(FoNI!F10,0)","v":0},{"$f":"+IFERROR(FoNI!G10,0)","v":0},{"$f":"+IFERROR(FoNI!H10,0)","v":0}]
[null,"Opexa ",null,null,{"$f":"+IFERROR(Opex!E10,0)","v":0},{"$f":"+IFERROR(Opex!F10,0)","v":0},{"$f":"+IFERROR(Opex!G10,0)","v":0},{"$f":"+IFERROR(Opex!H10,0)","v":0}]
[null,"ERCa ",null,null,{"$f":"+IFERROR(ERC!E10,0)","v":0},{"$f":"+IFERROR(ERC!F10,0)","v":0},{"$f":"+IFERROR(ERC!G10,0)","v":0},{"$f":"+IFERROR(ERC!H10,0)","v":0}]
[null,"RcTOTa",null,null,{"$f":"IFERROR('Rc'!E19,0)","v":0},{"$f":"IFERROR('Rc'!F19,0)","v":0},{"$f":"IFERROR('Rc'!G19,0)","v":0},{"$f":"IFERROR('Rc'!H19,0)","v":0}]
[]
[]
[]
[null,"Componenti calcolate",2024,2025,2026,2027,2028,2029]
[null,"VRGa",null,null,{"$f":"+SUM(E40:E44)","v":0},0,0,0]
[null,"Capexa",null,null,{"$f":"+IFERROR(Capex!E29,0)","v":0},{"$f":"+IFERROR(Capex!F29,0)","v":0},{"$f":"+IFERROR(Capex!G29,0)","v":0},{"$f":"+IFERROR(Capex!H29,0)","v":0}]
[null,"FoNIa",null,null,{"$f":"+IFERROR(FoNI!E29,0)","v":0},{"$f":"+IFERROR(FoNI!F29,0)","v":0},{"$f":"+IFERROR(FoNI!G29,0)","v":0},{"$f":"+IFERROR(FoNI!H29,0)","v":0}]
[null,"Opexa ",null,null,{"$f":"+IFERROR(Opex!E29,0)","v":0},{"$f":"+IFERROR(Opex!F29,0)","v":0},{"$f":"+IFERROR(Opex!G29,0)","v":0},{"$f":"+IFERROR(Opex!H29,0)","v":0}]
[null,"ERCa ",null,null,{"$f":"+IFERROR(ERC!E29,0)","v":0},{"$f":"+IFERROR(ERC!F29,0)","v":0},{"$f":"+IFERROR(ERC!G29,0)","v":0},{"$f":"+IFERROR(ERC!H29,0)","v":0}]
[null,"RcTOTa",null,null,{"$f":"+IFERROR('Rc'!E29,0)","v":0},{"$f":"+IFERROR('Rc'!F29,0)","v":0},{"$f":"+IFERROR('Rc'!G29,0)","v":0},{"$f":"+IFERROR('Rc'!H29,0)","v":0}]
[]
[]
[]
[]
["Art. 4 All. A","Moltiplicatore Tariffario J"]
[]
[null,"Sviluppo del Moltiplicatore"]
[]
[]
[null,null,2024,2025,2026,2027,2028,2029]
[null,"STar2023*Vscala-2 (include vendita all'ingrosso)",{"$f":"+Storico_Piano_Tariffario!E65","v":0},{"$f":"+Storico_Piano_Tariffario!F65","v":0},{"$f":"+SUM(Ricavi_bacini_tariffari!N:N)+SUM(Vendita_Servizi_ingrosso!AI:AI)+Ricavi_Coll_Dep!D19+Dati_conto_economico!C23+Dati_conto_economico!C24+Dati_conto_economico!C27+Dati_conto_economico!C28+Dati_conto_economico!C35","v":0},{"$f":"+SUM(Ricavi_bacini_tariffari!O:O)+SUM(Vendita_Servizi_ingrosso!AJ:AJ)+Ricavi_Coll_Dep!E19+Dati_conto_economico!I23+Dati_conto_economico!I24+Dati_conto_economico!I27+Dati_conto_economico!I28+Dati_conto_economico!I35","v":0},{"$f":"+F55","v":0},{"$f":"+G55","v":0}]
[null,"Rba-2",{"$f":"+Storico_Piano_Tariffario!E64","v":0},{"$f":"+Storico_Piano_Tariffario!F64","v":0},{"$f":"+E109+E111","v":0},0,{"$f":"G109+G111","v":0},{"$f":"H109+H111","v":0}]
[]
[]
[]
[null,"VRGa calcolato",null,null,{"$f":"+E39","v":0},0,0,0]
[null,"Ja calcolato",{"$f":"C68","v":""},{"$f":"D68","v":""},{"$f":"+IFERROR(E60/(SUM(E55:E56)),\"\")","v":""},"","",""]
[null,"Limite al VRGa ",{"$f":"IFERROR(C63*SUM(C55:C56),\"\")","v":""},{"$f":"IFERROR(D63*SUM(D55:D56),\"\")","v":""},{"$f":"+IFERROR(E63*SUM(E55:E56),\"\")","v":""},{"$f":"+IFERROR(F63*SUM(F55:F56),\"\")","v":""},{"$f":"+IFERROR(G63*SUM(G55:G56),\"\")","v":""},{"$f":"+IFERROR(H63*SUM(H55:H56),\"\")","v":""}]
[null,"Limite al moltiplicatore ",{"$f":"Framework_schemi!C96","v":""},{"$f":"+IFERROR(MIN(C63,C61)*Framework_schemi!C96,\"\")","v":""},{"$f":"IFERROR(MIN(D63,D61)*Framework_schemi!G86,\"\")","v":""},{"$f":"IFERROR(MIN(E63,E61)*Framework_schemi!H86,\"\")","v":""},{"$f":"+IFERROR(MIN(F63,F61)*Framework_schemi!I86,\"\")","v":""},{"$f":"+IFERROR(MIN(G63,G61)*Framework_schemi!J86,\"\")","v":""}]
[null,"info predisposizione iniziale",{"$f":"+IF(C61>C63,\"sovracap\",IF(AND(C60=0,C61=0,C62=0,C63=0),\"\",IF(Framework_schemi!C96=\"\",\"\",\"nei limiti\")))","v":""},{"$f":"+IF(D61>D63,\"sovracap\",IF(AND(D60=0,D61=0,D62=0,D63=0),\"\",IF(Framework_schemi!C96=\"\",\"\",\"nei limiti\")))","v":""},{"$f":"+IF(E61>E63,\"sovracap\",IF(AND(E60=0,E61=0,E62=0,E63=0),\"\",\"nei limiti\"))","v":"nei limiti"},{"$f":"+IF(F61>F63,\"sovracap\",IF(AND(F60=0,F61=0,F62=0,F63=0),\"\",\"nei limiti\"))","v":"nei limiti"},"nei limiti","nei limiti"]
[]
[]
[null,"VRGa calc post eventuali detrazioni",{"$f":"+Storico_Piano_Tariffario!E63-'Rc'!C10+'Rc'!C11","v":0},{"$f":"+Storico_Piano_Tariffario!F63-'Rc'!D10+'Rc'!D11","v":0},{"$f":"+E29","v":0},0,0,0]
[null,"Ja calc post eventuali detrazioni",{"$f":"+IFERROR(C67/SUM(C55:C56),\"\")","v":""},{"$f":"+IFERROR(D67/SUM(D55:D56),\"\")","v":""},{"$f":"+IFERROR(E67/SUM(E55:E56),\"\")","v":""},"","",""]
[null,"Limite al VRGa post eventuali detrazioni",{"$f":"IFERROR(C70*SUM(C55:C56),\"\")","v":""},{"$f":"IFERROR(D70*SUM(D55:D56),\"\")","v":""},{"$f":"IFERROR(E70*SUM(E55:E56),\"\")","v":""},{"$f":"IFERROR(F70*SUM(F55:F56),\"\")","v":""},"",""]
[null,"Limite al moltiplicatore post eventuali detrazioni",{"$f":"Framework_schemi!C96","v":""},{"$f":"IFERROR(MIN(C70,C68)*Framework_schemi!C96,\"\")","v":""},{"$f":"IFERROR(MIN(D70,D68)*Framework_schemi!G86,\"\")","v":""},{"$f":"IFERROR(MIN(E70,E68)*Framework_schemi!H86,\"\")","v":""},{"$f":"IFERROR(MIN(F70,F68)*Framework_schemi!I86,\"\")","v":""},{"$f":"IFERROR(MIN(G70,G68)*Framework_schemi!J86,\"\")","v":""}]
[null,"info predisposizione intermedia",{"$f":"+IF(C68>C70,\"sovracap\",IF(AND(C67=0,C68=0,C69=0,C70=0),\"\",IF(Framework_schemi!C96=\"\",\"\",\"nei limiti\")))","v":""},{"$f":"+IF(D68>D70,\"sovracap\",IF(AND(D67=0,D68=0,D69=0,D70=0),\"\",IF(Framework_schemi!C96=\"\",\"\",\"nei limiti\")))","v":""},{"$f":"+IF(E68>E70,\"sovracap\",IF(AND(E67=0,E68=0,E69=0,E70=0),\"\",IF(Framework_schemi!G86=\"\",\"\",\"nei limiti\")))","v":""},{"$f":"+IF(F68>F70,\"sovracap\",IF(AND(F67=0,F68=0,F69=0,F70=0),\"\",IF(Framework_schemi!H86=\"\",\"\",\"nei limiti\")))","v":""},{"$f":"+IF(G68>G70,\"sovracap\",IF(AND(G67=0,G68=0,G69=0,G70=0),\"\",IF(Framework_schemi!I86=\"\",\"\",\"nei limiti\")))","v":""},{"$f":"+IF(H68>H70,\"sovracap\",IF(AND(H67=0,H68=0,H69=0,H70=0),\"\",IF(Framework_schemi!J86=\"\",\"\",\"nei limiti\")))","v":""}]
[]
[]
[null,"VRGa calc post ulteriori rimodulazioni",{"$f":"+Storico_Piano_Tariffario!E63","v":0},{"$f":"+Storico_Piano_Tariffario!F63","v":0},{"$f":"+E10+SUM(Input_per_calcoli_finali!K233:K235)","v":0},{"$f":"+F10+SUM(Input_per_calcoli_finali!L233:L235)","v":0},{"$f":"+G10+SUM(Input_per_calcoli_finali!M233:M235)","v":0},{"$f":"+H10+SUM(Input_per_calcoli_finali!N233:N235)","v":0}]
[null,"Ja calc post ulteriori rimodulazioni",{"$f":"+Storico_Piano_Tariffario!E66","v":0},{"$f":"+Storico_Piano_Tariffario!F66","v":0},{"$f":"+IFERROR(E74/SUM(E55:E56),\"\")","v":""},"","",""]
[null,"Limite al VRGa post ulteriori rimodulazioni",{"$f":"IFERROR(C77*SUM(C55:C56),\"\")","v":""},{"$f":"IFERROR(D77*SUM(D55:D56),\"\")","v":""},{"$f":"IFERROR(E77*SUM(E55:E56),\"\")","v":""},"","",""]
[null,"Limite al moltiplicatore post ulteriori rimodulazioni",{"$f":"Framework_schemi!C96","v":""},{"$f":"IFERROR(MIN(C77,C75)*Framework_schemi!C96,\"\")","v":""},{"$f":"IFERROR(MIN(C77,C75)*Framework_schemi!G86,\"\")","v":""},{"$f":"IFERROR(MIN(D77,D75)*Framework_schemi!H86,\"\")","v":""},{"$f":"IFERROR(MIN(E77,E75)*Framework_schemi!I86,\"\")","v":""},{"$f":"IFERROR(MIN(F77,F75)*Framework_schemi!J86,\"\")","v":""}]
[null,"info predisposizione finale",{"$f":"+IF(C75>C77,\"sovracap\",IF(AND(C74=0,C75=0,C76=0,C77=0),\"\",IF(Framework_schemi!C96=\"\",\"\",\"nei limiti\")))","v":""},{"$f":"+IF(D75>D77,\"sovracap\",IF(AND(D74=0,D75=0,D76=0,D77=0),\"\",IF(Framework_schemi!C96=\"\",\"\",\"nei limiti\")))","v":""},{"$f":"+IF(E75>E77,\"sovracap\",IF(AND(E74=0,E75=0,E76=0,E77=0),\"\",IF(Framework_schemi!G86=\"\",\"\",\"nei limiti\")))","v":""},{"$f":"+IF(F75>F77,\"sovracap\",IF(AND(F74=0,F75=0,F76=0,F77=0),\"\",IF(Framework_schemi!H86=\"\",\"\",\"nei limiti\")))","v":""},{"$f":"+IF(G75>G77,\"sovracap\",IF(AND(G74=0,G75=0,G76=0,G77=0),\"\",IF(Framework_schemi!I86=\"\",\"\",\"nei limiti\")))","v":""},{"$f":"+IF(H75>H77,\"sovracap\",IF(AND(H74=0,H75=0,H76=0,H77=0),\"\",IF(Framework_schemi!J86=\"\",\"\",\"nei limiti\")))","v":""}]
[]
[]
[null,"VRGa (calcolo per applicabile)",{"$f":"+Storico_Piano_Tariffario!E71","v":0},{"$f":"+Storico_Piano_Tariffario!F71","v":0},{"$f":"+E74-SUM(Input_per_calcoli_finali!K233:K235)","v":0},{"$f":"+F74-SUM(Input_per_calcoli_finali!L233:L235)","v":0},{"$f":"+G74-SUM(Input_per_calcoli_finali!M233:M235)","v":0},{"$f":"+H74-SUM(Input_per_calcoli_finali!N233:N235)","v":0}]
[null,"Ja (calcolo per applicabile)",{"$f":"+Storico_Piano_Tariffario!E72","v":0},{"$f":"+Storico_Piano_Tariffario!F72","v":0},{"$f":"+IFERROR(E81/SUM(E55:E56),\"\")","v":""},"","",""]
[null,"Limite al VRGa (calcolo per applicabile)",{"$f":"IFERROR(C84*SUM(C55:C56),\"\")","v":""},{"$f":"IFERROR(D84*SUM(D55:D56),\"\")","v":""},{"$f":"IFERROR(E84*SUM(E55:E56),\"\")","v":""},"","",""]
[null,"Limite al moltiplicatore (calcolo per applicabile)",{"$f":"Framework_schemi!C96","v":""},{"$f":"IFERROR(MIN(C82,C84)*Framework_schemi!C96,\"\")","v":""},{"$f":"IFERROR(MIN(D82,D84)*Framework_schemi!G86,\"\")","v":""},{"$f":"IFERROR(MIN(E82,E84)*Framework_schemi!H86,\"\")","v":""},{"$f":"IFERROR(MIN(F82,F84)*Framework_schemi!I86,\"\")","v":""},{"$f":"IFERROR(MIN(G82,G84)*Framework_schemi!J86,\"\")","v":""}]
[null,"info predisposizione applicabile",{"$f":"+IF(C82>C84,\"sovracap\",IF(AND(C81=0,C82=0,C83=0,C84=0),\"\",IF(Framework_schemi!C96=\"\",\"\",\"nei limiti\")))","v":""},{"$f":"+IF(D82>D84,\"sovracap\",IF(AND(D81=0,D82=0,D83=0,D84=0),\"\",IF(Framework_schemi!C96=\"\",\"\",\"nei limiti\")))","v":""},{"$f":"+IF(E82>E84,\"sovracap\",IF(AND(E81=0,E82=0,E83=0,E84=0),\"\",IF(Framework_schemi!G86=\"\",\"\",\"nei limiti\")))","v":""},{"$f":"+IF(F82>F84,\"sovracap\",IF(AND(F81=0,F82=0,F83=0,F84=0),\"\",IF(Framework_schemi!H86=\"\",\"\",\"nei limiti\")))","v":""},{"$f":"+IF(G82>G84,\"sovracap\",IF(AND(G81=0,G82=0,G83=0,G84=0),\"\",IF(Framework_schemi!I86=\"\",\"\",\"nei limiti\")))","v":""},{"$f":"+IF(H82>H84,\"sovracap\",IF(AND(H81=0,H82=0,H83=0,H84=0),\"\",IF(Framework_schemi!J86=\"\",\"\",\"nei limiti\")))","v":""}]
[]
[]
["Definizioni - All. A","Rb - Ricavi altre attività idriche"]
[]
[]
[]
[null,null,2024,2025,2026,2027,2028,2029]
[null,"Vendita di acqua non potabile o ad uso industriale",null,null,{"$f":"+Dati_conto_economico!F17","v":0},{"$f":"+Dati_conto_economico!L17","v":0},{"$f":"+F93","v":0},{"$f":"+G93","v":0}]
[null,"Prestazioni e servizi accessori",null,null,{"$f":"+Dati_conto_economico!F23","v":0},{"$f":"+Dati_conto_economico!L23","v":0},{"$f":"+F94","v":0},0]
[null,"Vendita di acqua con autobotte",null,null,{"$f":"+Dati_conto_economico!F24","v":0},{"$f":"+Dati_conto_economico!L24","v":0},0,0]
[null,"Trattamento percolati",null,null,{"$f":"+Dati_conto_economico!F25","v":0},{"$f":"+Dati_conto_economico!L25","v":0},0,0]
[null,"Trattamento bottini",null,null,{"$f":"+Dati_conto_economico!F26","v":0},{"$f":"+Dati_conto_economico!L26","v":0},0,0]
[null,"Installazione/manutenzione bocche antincendio",null,null,{"$f":"+Dati_conto_economico!F29","v":0},{"$f":"+Dati_conto_economico!L29","v":0},0,0]
[null,"Vendita di servizi a terzi",null,null,{"$f":"+Dati_conto_economico!F30","v":0},{"$f":"+Dati_conto_economico!L30","v":0},0,0]
[null,"Lavori conto terzi",null,null,{"$f":"+Dati_conto_economico!F31","v":0},{"$f":"+Dati_conto_economico!L31","v":0},0,0]
[null,"Spurgo pozzi neri",null,null,{"$f":"+Dati_conto_economico!F32","v":0},{"$f":"+Dati_conto_economico!L32","v":0},0,0]
[null,"Rilascio autorizzazioni allo scarico",null,null,{"$f":"+Dati_conto_economico!F33","v":0},{"$f":"+Dati_conto_economico!L33","v":0},0,0]
[null,"Lottizzazioni",null,null,{"$f":"+Dati_conto_economico!F34","v":0},{"$f":"+Dati_conto_economico!L34","v":0},0,0]
[null,"Riuso delle acque di depurazione"]
[null,"Case dell’acqua",null,null,{"$f":"+Dati_conto_economico!F36","v":0},{"$f":"+Dati_conto_economico!L36","v":0},0,0]
[null,"Ricavi da altre attività (non inclusi nelle suddette voci)",null,null,{"$f":"+MAX(Dati_conto_economico!F40,0)","v":0},{"$f":"+MAX(Dati_conto_economico!L40,0)","v":0},0,0]
[]
[null,"di cui, per \"Obiettivi di sostenibilità energetica e ambientale\""]
[null,"Totale Ra-2b2",null,null,{"$f":"SUM(Dati_conto_economico!D111:D113)","v":0},{"$f":"SUM(Dati_conto_economico!J111:J113)","v":0},{"$f":"+F109","v":0},{"$f":"+G109","v":0}]
[]
[null,"Totale Ra-2b1",null,null,{"$f":"+SUM(E93:E103,E105:E106)-E109","v":0},{"$f":"+SUM(F93:F103,F105:F106)-F109","v":0},{"$f":"+SUM(G93:G103,G105:G106)-G109","v":0},{"$f":"+SUM(H93:H103,H105:H106)-H109","v":0}]
[]
[]
[]
[]
["Definizioni - All. A","Cb - Costi altre attività idriche"]
[]
[]
[]
[null,null,2024,2025,2026,2027,2028,2029]
[null,"CO altre attività idriche",null,null,{"$f":"+Dati_conto_economico!F42-Dati_conto_economico!F65","v":0},{"$f":"+Dati_conto_economico!L42-Dati_conto_economico!L65","v":0},{"$f":"+D121","v":0},{"$f":"+G121","v":0}]
[null,"Accantonamenti e rettifiche in eccesso rispetto all'applicazione di norme tributarie",null,null,{"$f":"+Dati_conto_economico!F74","v":0},{"$f":"+Dati_conto_economico!L74","v":0},0,0]
[null,"Rettifiche di valori di attività finanziarie",null,null,{"$f":"+Dati_conto_economico!F75","v":0},{"$f":"+Dati_conto_economico!L75","v":0},0,0]
[null,"Costi connessi all'erogazione di liberalità",null,null,{"$f":"+Dati_conto_economico!F76","v":0},{"$f":"+Dati_conto_economico!L76","v":0},0,0]
[null,"Costi pubblicitari e di marketing (incluse le imposte connesse)",null,null,{"$f":"+Dati_conto_economico!F77","v":0},{"$f":"+Dati_conto_economico!L77","v":0},0,0]
[null,"Oneri per sanzioni, penalità, risarcimenti automatici e simili",null,null,{"$f":"+Dati_conto_economico!F78","v":0},{"$f":"+Dati_conto_economico!L78","v":0},0,0]
[null,"Oneri straordinari",null,null,{"$f":"+Dati_conto_economico!F79","v":0},{"$f":"+Dati_conto_economico!L79","v":0},0,0]
[null,"Spese processuali in cui la parte è risultata soccombente",null,null,{"$f":"+Dati_conto_economico!F81","v":0},{"$f":"+Dati_conto_economico!L81","v":0},0,0]
[null,"Perdite su crediti per la sola quota parte eccedente l'utilizzo del fondo",null,null,{"$f":"+Dati_conto_economico!F89","v":0},{"$f":"+Dati_conto_economico!L89","v":0},0,0]
[null,"Costi di strutturazione dei progetti di finanziamento (non capitalizzati)",null,null,{"$f":"+Dati_conto_economico!F90","v":0},{"$f":"+Dati_conto_economico!L90","v":0},0,0]
[null,"A2) Variazioni rimanenze di prodotti in corso di lavorazione, semilavorati e finiti",null,null,{"$f":"+Dati_conto_economico!F7","v":0},{"$f":"+Dati_conto_economico!L7","v":0},0,0]
[null,"A3) Variazioni dei lavori in corso su ordinazione",null,null,{"$f":"+Dati_conto_economico!F8","v":0},{"$f":"+Dati_conto_economico!L8","v":0},0,0]
[null,"A4) Incrementi di immobilizzazioni per lavori interni (inclusi costi del personale)",null,null,{"$f":"+Dati_conto_economico!F9","v":0},{"$f":"+Dati_conto_economico!L9","v":0},0,0]
[null,"Rimborsi e indennizzi",null,null,{"$f":"+Dati_conto_economico!F39","v":0},{"$f":"+Dati_conto_economico!L39","v":0},0,0]
[null,"Costi di realizzazione degli allacciamenti idrici e fognari",null,null,{"$f":"+Dati_conto_economico!F86","v":0},{"$f":"+Dati_conto_economico!L86","v":0},0,0]
[]
[null,"di cui, per \"Obiettivi di sostenibilità energetica e ambientale\""]
[null,"Totale Ca-2b2",null,null,{"$f":"+SUM(Dati_conto_economico!F111:F114)","v":0},{"$f":"+SUM(Dati_conto_economico!L111:L114)","v":0},{"$f":"+F138","v":0},{"$f":"+G138","v":0}]
[]
[null,"Totale Ca-2b1",null,null,{"$f":"MAX((E121-SUM(E122:E135)-E138),0)","v":0},{"$f":"MAX((F121-SUM(F122:F135)-F138),0)","v":0},{"$f":"+F140","v":0},{"$f":"+G140","v":0}]

{"sheet":"Capex","index":32,"n_rows":139,"n_cols":13,"rows_kept":139,"cut":false,"hidden":false,"merged":[]}
[]
["Titolo 3 MTI-4","Costi delle immobilizzazioni"]
[]
[null,"Sviluppo della componente Capex"]
[]
[]
[]
[]
[null,"Componenti nel Piano Tariffario",2024,2025,2026,2027,2028,2029]
[null,"Capex",{"$f":"SUM(C11:C14)","v":0},{"$f":"SUM(D11:D14)","v":0},{"$f":"SUM(E11:E14)","v":0},{"$f":"SUM(F11:F14)","v":0},{"$f":"SUM(G11:G14)","v":0},0]
[null,"OF",{"$f":"+C73","v":0},{"$f":"+D73","v":0},{"$f":"+E73","v":0},{"$f":"+F73","v":0},{"$f":"+G73","v":0},0]
[null,"OFisc",{"$f":"C81","v":0},{"$f":"D81","v":0},{"$f":"E81","v":0},{"$f":"F81","v":0},{"$f":"G81","v":0},0]
[null,"AMM",{"$f":"+C50","v":0},{"$f":"+D50","v":0},{"$f":"+E50","v":0},{"$f":"+F50","v":0},{"$f":"+G50","v":0},0]
[null,"ΔCUITcapex",{"$f":"+C139","v":0},{"$f":"+D139","v":0},{"$f":"+E139","v":0},{"$f":"+F139","v":0},{"$f":"+G139","v":0},0]
[]
[]
[]
[]
[]
[]
[]
[]
[]
[]
[]
[]
[]
[null,"Componenti calcolate",2024,2025,2026,2027,2028,2029]
[null,"Capex",null,null,{"$f":"SUM(E30:E33)","v":0},{"$f":"SUM(F30:F33)","v":0},{"$f":"SUM(G30:G33)","v":0},0]
[null,"OF",null,null,{"$f":"E71","v":0},{"$f":"F71","v":0},{"$f":"G71","v":0},0]
[null,"OFisc",null,null,{"$f":"E79","v":0},{"$f":"F79","v":0},{"$f":"G79","v":0},0]
[null,"AMM",null,null,{"$f":"E48","v":0},{"$f":"F48","v":0},{"$f":"G48","v":0},0]
[null,"ΔCUITcapex",null,null,{"$f":"+E139","v":0},{"$f":"+F139","v":0},{"$f":"+G139","v":0},0]
[]
[]
[]
[]
[]
["Art. 11 all. A\nArt. 12 All. A\nArt. 13 All. A","Ammortamento delle immobilizzazioni del gestore del SII\nOneri finanziari del gestore del SII\nOneri fiscali del gestore del SII"]
[]
[]
[]
[null,null,2024,2025,2026,2027,2028,2029]
[null,"Incidenza ERC parametrica",null,null,{"$f":"IF(AND(Nuovi_Investimenti!D11=\"\",Nuovi_Investimenti!D12=\"\"),\"\",IF(AND(Nuovi_Investimenti!D11<>\"\",Nuovi_Investimenti!D12<>\"\"),Nuovi_Investimenti!D11+Nuovi_Investimenti!D12,IF(Nuovi_Investimenti!D11=\"\",0,Nuovi_Investimenti!D11)+IF(Nuovi_Investimenti!D12=\"\",0,Nuovi_Investimenti!D12)))","v":""},{"$f":"IF(AND(Nuovi_Investimenti!E11=\"\",Nuovi_Investimenti!E12=\"\"),\"\",IF(AND(Nuovi_Investimenti!E11<>\"\",Nuovi_Investimenti!E12<>\"\"),Nuovi_Investimenti!E11+Nuovi_Investimenti!E12,IF(Nuovi_Investimenti!E11=\"\",0,Nuovi_Investimenti!E11)+IF(Nuovi_Investimenti!E12=\"\",0,Nuovi_Investimenti!E12)))","v":""},{"$f":"IF(AND(Nuovi_Investimenti!H11=\"\",Nuovi_Investimenti!H12=\"\"),\"\",IF(AND(Nuovi_Investimenti!H11<>\"\",Nuovi_Investimenti!H12<>\"\"),Nuovi_Investimenti!H11+Nuovi_Investimenti!H12,IF(Nuovi_Investimenti!H11=\"\",0,Nuovi_Investimenti!H11)+IF(Nuovi_Investimenti!H12=\"\",0,Nuovi_Investimenti!H12)))","v":""},{"$f":"IF(AND(Nuovi_Investimenti!I11=\"\",Nuovi_Investimenti!I12=\"\"),\"\",IF(AND(Nuovi_Investimenti!I11<>\"\",Nuovi_Investimenti!I12<>\"\"),Nuovi_Investimenti!I11+Nuovi_Investimenti!I12,IF(Nuovi_Investimenti!I11=\"\",0,Nuovi_Investimenti!I11)+IF(Nuovi_Investimenti!I12=\"\",0,Nuovi_Investimenti!I12)))","v":""}]
[]
[null,"AMM (componente calcolata)",null,null,{"$f":"+(TT_riepilogo_IMN!G9)","v":0},{"$f":"+(TT_riepilogo_IMN!H9)","v":0},{"$f":"+(TT_riepilogo_IMN!I9)","v":0},{"$f":"+(TT_riepilogo_IMN!J9)","v":0}]
[null,"AMMenv + AMMres",null,null,{"$f":"+ERC!E64+ERC!E105","v":0},{"$f":"+ERC!F64+ERC!F105","v":0},{"$f":"+ERC!G64+ERC!G105","v":0},{"$f":"+ERC!H64+ERC!H105","v":0}]
[null,"AMM (componente calcolata, al netto degli ERC)",null,null,{"$f":"+E46-E47","v":0},{"$f":"+F46-F47","v":0},{"$f":"+G46-G47","v":0},0]
[null,"AMM (eventuale detrazione da \"Input per calcoli finali\")",null,null,{"$f":"Input_per_calcoli_finali!K104","v":0},{"$f":"Input_per_calcoli_finali!L104","v":0},{"$f":"Input_per_calcoli_finali!M104","v":0},{"$f":"Input_per_calcoli_finali!N104","v":0}]
[null,"AMM ",{"$f":"+Dati_Anni_precedenti!E23","v":0},{"$f":"+Dati_Anni_precedenti!F23","v":0},{"$f":"+E48-E49","v":0},{"$f":"+F48-F49","v":0},{"$f":"+G48-G49","v":0},0,"al netto di quanto riconosciuto nella componente ERCcapex"]
[]
[]
[null,"LICord",null,null,{"$f":"'PdI-riepilogo'!E146","v":0},{"$f":"'PdI-riepilogo'!F146","v":0},{"$f":"'PdI-riepilogo'!G146","v":0},{"$f":"'PdI-riepilogo'!H146","v":0}]
[null,"LICpos",null,null,{"$f":"'PdI-riepilogo'!E150","v":0},{"$f":"'PdI-riepilogo'!F150","v":0},{"$f":"'PdI-riepilogo'!G150","v":0},{"$f":"'PdI-riepilogo'!H150","v":0}]
[]
[null,null,null,null,null,null,null,null,null,"Parametri finanziari e fiscali"]
[null,null,null,null,null,null,null,null,null,"Parametro",{"$f":"+TT_parametri!BC26","v":"MTI-4"},"Parametro",{"$f":"+TT_parametri!BC26","v":"MTI-4"}]
[null,null,2024,2025,2026,2027,2028,2029,null,"CS/CnS",{"$f":"+TT_parametri!BC27","v":1},"ERP",{"$f":"+TT_parametri!BC32","v":3.1E-2}]
[null,"CINfp",null,null,{"$f":"+E121","v":0},{"$f":"+F121","v":0},{"$f":"+G121","v":0},0,null,"risk free rate",{"$f":"+TT_parametri!BC28","v":2.1299999999999999E-2},"rpi",{"$f":"+TT_parametri!BC33","v":1.9E-2}]
[null,"CINfp / (CIN - LICord)",null,null,{"$f":"+IFERROR(E59/(E120-E53),0)","v":0},{"$f":"+IFERROR(F59/(F120-F53),0)","v":0},{"$f":"+IFERROR(G59/(G120-G53),0)","v":0},0,null,"Kd",{"$f":"+TT_parametri!BC29","v":0.03},"tc",{"$f":"+TT_parametri!BC34","v":0.24}]
[null,"Km",null,null,{"$f":"+(K59+K61)*(1-(K58/(1+K58)))+K60*(1-M60)*(K58/(1+K58))","v":3.1050000000000001E-2},{"$f":"+(K59+K61)*(1-(K58/(1+K58)))+K60*(1-M60)*(K58/(1+K58))","v":3.1050000000000001E-2},{"$f":"+(K59+K61)*(1-(K58/(1+K58)))+K60*(1-M60)*(K58/(1+K58))","v":3.1050000000000001E-2},{"$f":"+(K59+K61)*(1-(K58/(1+K58)))+K60*(1-M60)*(K58/(1+K58))","v":3.1050000000000001E-2},null,"WRP",{"$f":"+TT_parametri!BC30","v":1.7999999999999999E-2},"T",{"$f":"+TT_parametri!BC35","v":0.31900000000000001}]
[null,"α",null,null,{"$f":"+(1-(K58/(1+K58)))*K62*M58","v":1.2245000000000001E-2},{"$f":"+(1-(K58/(1+K58)))*K62*M58","v":1.2245000000000001E-2},{"$f":"+(1-(K58/(1+K58)))*K62*M58","v":1.2245000000000001E-2},{"$f":"+(1-(K58/(1+K58)))*K62*M58","v":1.2245000000000001E-2},null,"β levered",{"$f":"+TT_parametri!BC31","v":0.79},"time lag",{"$f":"+TT_parametri!BC36","v":0.01}]
[null,"SLIC",{"$f":"+$E63-(($E$63-$H$63)/5)*(COLUMN(C63)-COLUMN($E$63))","v":4.8613000000000003E-2},{"$f":"+$E63-(($E$63-$H$63)/5)*(COLUMN(D63)-COLUMN($E$63))","v":4.5954000000000002E-2},{"$f":"+E61+E62","v":4.3295E-2},{"$f":"+$E63-(($E$63-$H$63)/5)*(COLUMN(F63)-COLUMN($E$63))","v":4.0635999999999999E-2},{"$f":"+$E63-(($E$63-$H$63)/5)*(COLUMN(G63)-COLUMN($E$63))","v":3.7976999999999997E-2},{"$f":"+K60","v":0.03},"verificare, va applicata alla stratificazione"]
[]
[null,"OF (time lag)",null,null,{"$f":"+$M$62*(TT_riepilogo_IMN!G20-TT_riepilogo_IMN!G24)","v":0},{"$f":"+$M$62*(TT_riepilogo_IMN!H20-TT_riepilogo_IMN!H24)","v":0},{"$f":"+$M$62*(TT_riepilogo_IMN!I20-TT_riepilogo_IMN!I24)","v":0},{"$f":"+$M$62*(TT_riepilogo_IMN!J20-TT_riepilogo_IMN!J24)","v":0}]
[null,"OFimm",null,null,{"$f":"MAX(+(E61+E62)*(1-E60)*(E120-E53),0)","v":0},{"$f":"MAX(+(F61+F62)*(1-F60)*(F120-F53),0)","v":0},{"$f":"MAX(+(G61+G62)*(1-G60)*(G120-G53),0)","v":0},0]
[null,"OFlic, ord",null,null,{"$f":"+'PdI-riepilogo'!E142","v":0},{"$f":"+'PdI-riepilogo'!F142","v":0},{"$f":"+'PdI-riepilogo'!G142","v":0},{"$f":"+'PdI-riepilogo'!H142","v":0}]
[]
[null,"OF (componente calcolata)",null,null,{"$f":"+(E65+E66+E67)","v":0},{"$f":"+(F65+F66+F67)","v":0},{"$f":"+(G65+G66+G67)","v":0},0]
[null,"OFenv + OFres",null,null,{"$f":"+ERC!E85+ERC!E126","v":0},{"$f":"+ERC!F85+ERC!F126","v":0},{"$f":"+ERC!G85+ERC!G126","v":0},{"$f":"+ERC!H85+ERC!H126","v":0}]
[null,"OF (componente calcolata, al netto degli ERC)",null,null,{"$f":"+E69-E70","v":0},{"$f":"+F69-F70","v":0},{"$f":"+G69-G70","v":0},0]
[null,"OF (eventuale detrazione da \"Input per calcoli finali\")",null,null,{"$f":"Input_per_calcoli_finali!K108","v":0},{"$f":"Input_per_calcoli_finali!L108","v":0},{"$f":"Input_per_calcoli_finali!M108","v":0},{"$f":"Input_per_calcoli_finali!N108","v":0}]
[null,"OF ",{"$f":"+Dati_Anni_precedenti!E24","v":0},{"$f":"+Dati_Anni_precedenti!F24","v":0},{"$f":"+E71-E72","v":0},{"$f":"+F71-F72","v":0},{"$f":"+G71-G72","v":0},0,"valori già al netto di quanto riconosciuto nella componente ERCcapex"]
[]
[null,"Rai rate",null,null,{"$f":"+(((1+((E61+E62+1)*(1+$M59)-1)/(1-$M61))/(1+$M59))-1)","v":7.230982118024798E-2},{"$f":"+(((1+((F61+F62+1)*(1+$M59)-1)/(1-$M61))/(1+$M59))-1)","v":7.230982118024798E-2},{"$f":"+(((1+((G61+G62+1)*(1+$M59)-1)/(1-$M61))/(1+$M59))-1)","v":7.230982118024798E-2},{"$f":"+(((1+((H61+H62+1)*(1+$M59)-1)/(1-$M61))/(1+$M59))-1)","v":7.230982118024798E-2}]
[null,"Rai",null,null,{"$f":"+E75*(E120-E59)","v":0},{"$f":"+F75*(F120-F59)","v":0},{"$f":"+G75*(G120-G59)","v":0},0]
[null,"OFisc (componente calcolata)",null,null,{"$f":"MAX($M60*E76,0)","v":0},{"$f":"MAX($M60*F76,0)","v":0},{"$f":"MAX($M60*G76,0)","v":0},{"$f":"MAX($M60*H76,0)","v":0}]
[null,"OFISCenv + OFISCres",null,null,{"$f":"+ERC!E92+ERC!E133","v":0},{"$f":"+ERC!F92+ERC!F133","v":0},{"$f":"+ERC!G92+ERC!G133","v":0},{"$f":"+ERC!H92+ERC!H133","v":0}]
[null,"OFisc (componente calcolata, al netto degli ERC)",null,null,{"$f":"+E77-E78","v":0},{"$f":"+F77-F78","v":0},{"$f":"+G77-G78","v":0},0]
[null,"OFisc ( (eventuale detrazione da \"Input per calcoli finali\")",null,null,{"$f":"Input_per_calcoli_finali!K112","v":0},{"$f":"Input_per_calcoli_finali!L112","v":0},{"$f":"Input_per_calcoli_finali!M112","v":0},{"$f":"Input_per_calcoli_finali!N112","v":0}]
[null,"OFisc ",{"$f":"+Dati_Anni_precedenti!E25","v":0},{"$f":"+Dati_Anni_precedenti!F25","v":0},{"$f":"+E79-E80","v":0},{"$f":"+F79-F80","v":0},{"$f":"+G79-G80","v":0},0,"valori già al netto di quanto riconosciuto nella componente ERCcapex"]
[]
[]
[]
[]
[]
["Art. 10 All. A","CIN e CINfp - Capitale Investito Netto (valori inclusivi di ERC)"]
[]
[]
[]
[null,null,2024,2025,2026,2027,2028,2029]
[null,"IMN",{"$f":"+Dati_Anni_precedenti!E28","v":0},{"$f":"+Dati_Anni_precedenti!F28","v":0},{"$f":"(TT_riepilogo_IMN!G8)","v":0},{"$f":"(TT_riepilogo_IMN!H8)","v":0},{"$f":"(TT_riepilogo_IMN!I8)","v":0},{"$f":"(TT_riepilogo_IMN!J8)","v":0}]
[]
[]
[null,"Saldo LIC (ord+POS)",null,null,{"$f":"+E53+E54","v":0},{"$f":"+F53+F54","v":0},{"$f":"+G53+G54","v":0},0]
[null,"LIC",null,null,{"$f":"+E95","v":0},{"$f":"+F95","v":0},{"$f":"+G95","v":0},0]
[]
[]
[null,"TFR",null,null,{"$f":"+Altri_dati_eco_fin!E17","v":0},{"$f":"+Altri_dati_eco_fin!F17","v":0},{"$f":"+D99","v":0},{"$f":"+G99","v":0}]
[null,"Fondo di quiescenza",null,null,{"$f":"+Altri_dati_eco_fin!E18","v":0},{"$f":"+Altri_dati_eco_fin!F18","v":0},0,0]
[null,"Fondo rischi e oneri",null,null,{"$f":"+Altri_dati_eco_fin!E19","v":0},{"$f":"+Altri_dati_eco_fin!F19","v":0},0,0]
[null,"Fondo sentenza Corte Costituzionale 335/2008",null,null,{"$f":"+Altri_dati_eco_fin!E24","v":0},{"$f":"+Altri_dati_eco_fin!F24","v":0},0,0]
[null,"Fondo per il ripristino di beni di terzi",null,null,{"$f":"+Altri_dati_eco_fin!E25","v":0},{"$f":"+Altri_dati_eco_fin!F25","v":0},0,0]
[null,"Fondo vincolato al finanziamento della spesa per investimenti comma 10.1 lett. f) MTI-4",null,null,{"$f":"+Altri_dati_eco_fin!E26","v":0},{"$f":"+Altri_dati_eco_fin!F26","v":0},0,{"$f":"+G104","v":0}]
[null,"Fondo per il finanziamento di tariffe sociali o di solidarietà",null,null,{"$f":"+Altri_dati_eco_fin!E27","v":0},{"$f":"+Altri_dati_eco_fin!F27","v":0},0,{"$f":"+G105","v":0}]
[null,"Accantonamenti e rettifiche in eccesso rispetto all'applicazione di norme tributarie",null,null,{"$f":"+-ABS(Dati_conto_economico!C74)-ABS(Dati_conto_economico!F74)","v":0},{"$f":"+-ABS(Dati_conto_economico!I74)-ABS(Dati_conto_economico!L74)","v":0},0,0]
[]
[]
[null,"FACC",null,null,{"$f":"+SUM(E99:E106)","v":0},{"$f":"+SUM(F99:F106)","v":0},{"$f":"+SUM(G99:G106)","v":0},0]
[]
[null,"Ricavi,A1",null,null,{"$f":"+(SUM(Dati_conto_economico!C14:'Dati_conto_economico'!C21)+Dati_conto_economico!C23+Dati_conto_economico!C24+Dati_conto_economico!C27+Dati_conto_economico!C28)+(SUM(Dati_conto_economico!F14:'Dati_conto_economico'!F21)+Dati_conto_economico!F23+Dati_conto_economico!F24+Dati_conto_economico!F27+Dati_conto_economico!F28)","v":0},{"$f":"+(SUM(Dati_conto_economico!I14:'Dati_conto_economico'!I21)+Dati_conto_economico!I23+Dati_conto_economico!I24+Dati_conto_economico!I27+Dati_conto_economico!I28)+(SUM(Dati_conto_economico!L14:'Dati_conto_economico'!L21)+Dati_conto_economico!L23+Dati_conto_economico!L24+Dati_conto_economico!L27+Dati_conto_economico!L28)","v":0},{"$f":"+D111","v":0},{"$f":"+G111","v":0},null,"giorni di dilazione:"]
[null,"CO,B6+B7",null,null,{"$f":"+Dati_conto_economico!C43+SUM(Dati_conto_economico!C47:C58)++Dati_conto_economico!F43+SUM(Dati_conto_economico!F47:F58)","v":0},{"$f":"+Dati_conto_economico!I43+SUM(Dati_conto_economico!I47:I58)++Dati_conto_economico!L43+SUM(Dati_conto_economico!L47:L58)","v":0},{"$f":"+D112","v":0},0,null,"fatture",90]
[null,"CCN",null,null,{"$f":"($K$112/365*E111-$K$113/365*E112)*E125","v":0},{"$f":"($K$112/365*F111-$K$113/365*F112)*F125","v":0},{"$f":"($K$112/365*G111-$K$113/365*G112)*G125","v":0},{"$f":"($K$112/365*H111-$K$113/365*H112)*H125","v":0},null,"fornitori",60]
[]
[null,"CCN",null,null,{"$f":"+E113","v":0},{"$f":"+F113","v":0},{"$f":"+G113","v":0},0]
[]
[]
[null,"FoNIanon_inv",null,null,{"$f":"+FoNI!E122","v":0},{"$f":"+FoNI!F122","v":0},{"$f":"+FoNI!G122","v":0},{"$f":"+FoNI!H122","v":0}]
[]
[null,"CIN",null,null,{"$f":"+MAX(E92+E115+E96-E109-E118,0)","v":0},{"$f":"+MAX(F92+F115+F96-F109-F118,0)","v":0},{"$f":"+MAX(G92+G115+G96-G109-G118,0)","v":0},0]
[null,"CINfp",null,null,{"$f":"+(TT_riepilogo_IMN!G12)","v":0},{"$f":"+(TT_riepilogo_IMN!H12)","v":0},{"$f":"+(TT_riepilogo_IMN!I12)","v":0},{"$f":"+(TT_riepilogo_IMN!J12)","v":0}]
[]
[null,null,2024,2025,2026,2027,2028,2029]
[null,"dfl",{"$f":"+VLOOKUP(C91-2,ifl,C91 - 2010,FALSE)","v":1.0629520000000001},{"$f":"+VLOOKUP(D91-2,ifl,D91 - 2010,FALSE)","v":1.026972},{"$f":"+VLOOKUP(E91-2,ifl,E91 - 2010,FALSE)","v":0.99999899999999986},{"$f":"+VLOOKUP(F91-2,ifl,F91 - 2010,FALSE)","v":1.0009999999999999},{"$f":"+VLOOKUP(G91-2,ifl,G91 - 2010,FALSE)","v":1},1]
[null,"∏(1+It)",{"$f":"+TT_parametri!BP8","v":1.03224},{"$f":"+TT_parametri!BQ8","v":1.012},{"$f":"+TT_parametri!BN8","v":1.13696},{"$f":"+TT_parametri!BO8","v":1.1097600000000001},{"$f":"+TT_parametri!BR8","v":1},{"$f":"+TT_parametri!BS8","v":1}]
[]
[]
[]
[]
[]
["Art. 8 All. A","DCUITcapex"]
[]
[]
[]
[null,null,2024,2025,2026,2027,2028,2029]
[null,"ΔCUIT",null,null,{"$f":"+SUM(DCUIT!AD:AD)","v":0},{"$f":"+SUM(DCUIT!AE:AE)","v":0},{"$f":"+SUM(DCUIT!AF:AF)","v":0},{"$f":"+SUM(DCUIT!AG:AG)","v":0}]
[null,"ΔCUITcapex da foglio \"Altri dati economico_finanziari\"",null,null,{"$f":"+Altri_dati_eco_fin!G66","v":0},{"$f":"+Altri_dati_eco_fin!H66","v":0},{"$f":"+Altri_dati_eco_fin!I66","v":0},{"$f":"+Altri_dati_eco_fin!J66","v":0}]
[null,"ΔCUITcapex (controllo ammissibilità)",null,null,{"$f":"+IF(E137<=E136,\"SI\",\"NO\")","v":"SI"},{"$f":"+IF(F137<=F136,\"SI\",\"NO\")","v":"SI"},{"$f":"+IF(G137<=G136,\"SI\",\"NO\")","v":"SI"},"SI"]
[null,"ΔCUITcapex",{"$f":"+Dati_Anni_precedenti!E26","v":0},{"$f":"+Dati_Anni_precedenti!F26","v":0},{"$f":"+IF(E138=\"SI\",E137,0)","v":0},{"$f":"+IF(F138=\"SI\",F137,0)","v":0},{"$f":"+IF(G138=\"SI\",G137,0)","v":0},0]

{"sheet":"ERC","index":33,"n_rows":222,"n_cols":8,"rows_kept":222,"cut":false,"hidden":false,"merged":[]}
[]
["Titolo 6 MTI-4","Costi ambientali e della risorsa"]
[]
[null,"Sviluppo della componente ERC"]
[]
[]
[]
[]
[null,"Componenti nel Piano Tariffario",2024,2025,2026,2027,2028,2029]
[null,"ERC",{"$f":"+C11+C12","v":0},{"$f":"+D11+D12","v":0},{"$f":"+E11+E12","v":0},0,0,0]
[null,"ERCcapex",{"$f":"+C51","v":0},{"$f":"+D51","v":0},{"$f":"+E51","v":0},0,0,0]
[null,"ERCopex",{"$f":"+C150","v":0},{"$f":"+D150","v":0},{"$f":"+E150","v":0},0,0,0]
[]
[]
[]
[]
[]
[]
[]
[]
[]
[]
[]
[]
[]
[]
[]
[null,"Componenti calcolate",2024,2025,2026,2027,2028,2029]
[null,"ERC",null,null,{"$f":"+E30+E31","v":0},0,0,0]
[null,"ERCcapex",null,null,{"$f":"E49","v":0},0,0,0]
[null,"ERCopex",null,null,{"$f":"E148","v":0},0,0,0]
[]
[]
[]
[]
[]
[]
[]
[]
[]
[null,"Sviluppo della componente ERCcapex"]
[]
[]
[]
[null,null,2024,2025,2026,2027,2028,2029]
[null,"ENVcapex",{"$f":"Dati_Anni_precedenti!E55","v":0},{"$f":"Dati_Anni_precedenti!F55","v":0},{"$f":"+E64+E85+E92","v":0},0,0,0]
[null,"REScapex",{"$f":"Dati_Anni_precedenti!E56","v":0},{"$f":"Dati_Anni_precedenti!F56","v":0},{"$f":"+E105+E126+E133","v":0},0,0,0]
[]
[null,"ERCcapex da calcolo",null,null,{"$f":"+E46+E47","v":0},0,0,0]
[null,"ERCcapex  (eventuale detrazione da \"Input per calcoli finali\")",null,null,{"$f":"+Input_per_calcoli_finali!K161","v":0},{"$f":"+Input_per_calcoli_finali!L161","v":0},{"$f":"+Input_per_calcoli_finali!M161","v":0},{"$f":"+Input_per_calcoli_finali!N161","v":0}]
[null,"ERCcapex",{"$f":"+C46+C47","v":0},{"$f":"+D46+D47","v":0},{"$f":"+E49-E50","v":0},{"$f":"+F49-F50","v":0},{"$f":"+G46+G47","v":0},{"$f":"+H46+H47","v":0}]
[]
[]
[]
["Art. 26 All. A","Envcapex"]
[]
[]
[]
[null,null,2024,2025,2026,2027,2028,2029]
[null,"Incidenza ENV parametrica",null,null,{"$f":"+IF(Nuovi_Investimenti!D11<>\"\",Nuovi_Investimenti!D11,\"\")","v":""},{"$f":"+IF(Nuovi_Investimenti!E11<>\"\",Nuovi_Investimenti!E11,\"\")","v":""},{"$f":"+IF(Nuovi_Investimenti!F11<>\"\",Nuovi_Investimenti!F11,\"\")","v":""},{"$f":"+IF(Nuovi_Investimenti!G11<>\"\",Nuovi_Investimenti!G11,\"\")","v":""}]
[null,"AMMenv (eventuale valore parametrico)",null,null,{"$f":"+IFERROR(IF(E60>=0,E60*Capex!E46),\"\")","v":""},{"$f":"+IFERROR(IF(F60>=0,F60*Capex!F46),\"\")","v":""},{"$f":"+IFERROR(IF(G60>=0,G60*Capex!G46),\"\")","v":""},{"$f":"+IFERROR(IF(H60>=0,H60*Capex!H46),\"\")","v":""}]
[null,"AMMenv (valore puntuale)",null,null,{"$f":"+TT_riepilogo_IMN!G45","v":0},{"$f":"+TT_riepilogo_IMN!H45","v":0},{"$f":"+TT_riepilogo_IMN!I45","v":0},{"$f":"+TT_riepilogo_IMN!J45","v":0}]
[]
[null,"AMMenv",null,null,{"$f":"+IF(E60<>\"\",E61,E62)","v":0},0,0,0]
[]
[]
[null,"LICord",null,null,{"$f":"'PdI-riepilogo'!E145","v":0},{"$f":"'PdI-riepilogo'!F145","v":0},{"$f":"'PdI-riepilogo'!G145","v":0},{"$f":"'PdI-riepilogo'!H145","v":0}]
[null,"LICpos",null,null,{"$f":"'PdI-riepilogo'!E149","v":0},{"$f":"'PdI-riepilogo'!F149","v":0},{"$f":"'PdI-riepilogo'!G149","v":0},{"$f":"'PdI-riepilogo'!H149","v":0}]
[]
[]
[]
[null,null,2024,2025,2026,2027,2028,2029]
[null,"CINenv",null,null,{"$f":"+MAX(TT_riepilogo_IMN!G44,0)+E67+E68","v":0},{"$f":"+MAX(TT_riepilogo_IMN!H44,0)+F67+F68","v":0},{"$f":"+MAX(TT_riepilogo_IMN!I44,0)+G67+G68","v":0},{"$f":"+MAX(TT_riepilogo_IMN!J44,0)+H67+H68","v":0}]
[null,"CINfp / (CIN - LICord) env",null,null,{"$f":"+IFERROR(E81/(E73-E67),0)","v":0},0,0,0]
[null,"Km",null,null,{"$f":"Capex!$E$61","v":3.1050000000000001E-2},{"$f":"Capex!$F$61","v":3.1050000000000001E-2},{"$f":"+Capex!$G$61","v":3.1050000000000001E-2},{"$f":"+Capex!$H$61","v":3.1050000000000001E-2}]
[null,"α",null,null,{"$f":"Capex!$E$62","v":1.2245000000000001E-2},{"$f":"Capex!$F$62","v":1.2245000000000001E-2},{"$f":"+Capex!$G$62","v":1.2245000000000001E-2},{"$f":"+Capex!$H$62","v":1.2245000000000001E-2}]
[]
[null,"OFenv (time lag) ",null,null,{"$f":"Capex!$M$62*(TT_riepilogo_IMN!G68-TT_riepilogo_IMN!G72)","v":0},{"$f":"Capex!$M$62*(TT_riepilogo_IMN!H68-TT_riepilogo_IMN!H72)","v":0},{"$f":"Capex!$M$62*(TT_riepilogo_IMN!I68-TT_riepilogo_IMN!I72)","v":0},{"$f":"Capex!$M$62*(TT_riepilogo_IMN!J68-TT_riepilogo_IMN!J72)","v":0}]
[null,"OFimm env",null,null,{"$f":"+(E75+E76)*(1-E74)*(E73-E67)","v":0},0,0,0]
[null,"OFlic, ord env",null,null,{"$f":"'PdI-riepilogo'!E141","v":0},{"$f":"'PdI-riepilogo'!F141","v":0},{"$f":"'PdI-riepilogo'!G141","v":0},{"$f":"'PdI-riepilogo'!H141","v":0}]
[null,"CINfp,env",null,null,{"$f":"+MAX(TT_riepilogo_IMN!G48,0)","v":0},{"$f":"+MAX(TT_riepilogo_IMN!H48,0)","v":0},{"$f":"+MAX(TT_riepilogo_IMN!I48,0)","v":0},{"$f":"+MAX(TT_riepilogo_IMN!J48,0)","v":0}]
[]
[null,"OFenv (eventuale valore parametrico) ",null,null,{"$f":"+IFERROR(IF(E60>=0,E60*Capex!E69),\"\")","v":""},{"$f":"+IFERROR(IF(F60>=0,F60*Capex!F69),\"\")","v":""},{"$f":"+IFERROR(IF(G60>=0,G60*Capex!G69),\"\")","v":""},{"$f":"+IFERROR(IF(H60>=0,H60*Capex!H69),\"\")","v":""}]
[null,"OFenv (valore puntuale) ",null,null,{"$f":"+E78+E79+E80","v":0},0,0,0]
[null,"OFenv",null,null,{"$f":"+IF(E60<>\"\",E83,E84)","v":0},0,0,0]
[]
[null,"Rai rate",null,null,{"$f":"Capex!$E$75","v":7.230982118024798E-2},{"$f":"Capex!$F$75","v":7.230982118024798E-2},{"$f":"+Capex!$G$75","v":7.230982118024798E-2},{"$f":"+Capex!$H$75","v":7.230982118024798E-2}]
[null,"Raienv",null,null,{"$f":"+(E73-E81)*E87","v":0},0,0,0]
[]
[null,"OFISCenv (eventuale valore parametrico) ",null,null,{"$f":"+IFERROR(IF(E60>=0,E60*Capex!E77),\"\")","v":""},{"$f":"+IFERROR(IF(F60>=0,F60*Capex!F77),\"\")","v":""},{"$f":"+IFERROR(IF(G60>=0,G60*Capex!G77),\"\")","v":""},{"$f":"+IFERROR(IF(H60>=0,H60*Capex!H77),\"\")","v":""}]
[null,"OFISCenv (valore puntuale) ",null,null,{"$f":"+MAX(Capex!$M$60*E88,0)","v":0},{"$f":"+MAX(Capex!$M$60*F88,0)","v":0},{"$f":"+MAX(Capex!$M$60*G88,0)","v":0},{"$f":"+MAX(Capex!$M$60*H88,0)","v":0}]
[null,"OFiscenv",null,null,{"$f":"+IF(E60<>\"\",E90,E91)","v":0},0,0,0]
[]
[]
[]
["Art. 26 All. A","Rescapex"]
[]
[]
[]
[null,null,2024,2025,2026,2027,2028,2029]
[null,"Incidenza Res parametrica",null,null,{"$f":"+IF(Nuovi_Investimenti!D12<>\"\",Nuovi_Investimenti!D12,\"\")","v":""},{"$f":"+IF(Nuovi_Investimenti!E12<>\"\",Nuovi_Investimenti!E12,\"\")","v":""},{"$f":"+IF(Nuovi_Investimenti!F12<>\"\",Nuovi_Investimenti!F12,\"\")","v":""},{"$f":"+IF(Nuovi_Investimenti!G12<>\"\",Nuovi_Investimenti!G12,\"\")","v":""}]
[null,"AMMres (eventuale valore parametrico)",null,null,{"$f":"+IFERROR(IF(E101>=0,E101*Capex!E46),\"\")","v":""},{"$f":"+IFERROR(IF(F101>=0,F101*Capex!F46),\"\")","v":""},{"$f":"+IFERROR(IF(G101>=0,G101*Capex!G46),\"\")","v":""},{"$f":"+IFERROR(IF(H101>=0,H101*Capex!H46),\"\")","v":""}]
[null,"AMMres (valore puntuale)",null,null,{"$f":"+TT_riepilogo_IMN!G57","v":0},{"$f":"+TT_riepilogo_IMN!H57","v":0},{"$f":"+TT_riepilogo_IMN!I57","v":0},{"$f":"+TT_riepilogo_IMN!J57","v":0}]
[]
[null,"AMMres",null,null,{"$f":"+IF(E101<>\"\",E102,E103)","v":0},0,0,0]
[]
[]
[null,"LICord",null,null,{"$f":"'PdI-riepilogo'!E144","v":0},{"$f":"'PdI-riepilogo'!F144","v":0},{"$f":"'PdI-riepilogo'!G144","v":0},{"$f":"'PdI-riepilogo'!H144","v":0}]
[null,"LICpos",null,null,{"$f":"'PdI-riepilogo'!E148","v":0},{"$f":"'PdI-riepilogo'!F148","v":0},{"$f":"'PdI-riepilogo'!G148","v":0},{"$f":"'PdI-riepilogo'!H148","v":0}]
[]
[]
[]
[null,null,2024,2025,2026,2027,2028,2029]
[null,"CINres",null,null,{"$f":"+MAX(TT_riepilogo_IMN!G56,0)+E108+E109","v":0},{"$f":"+MAX(TT_riepilogo_IMN!H56,0)+F108+F109","v":0},{"$f":"+MAX(TT_riepilogo_IMN!I56,0)+G108+G109","v":0},{"$f":"+MAX(TT_riepilogo_IMN!J56,0)+H108+H109","v":0}]
[null,"CINfp / (CIN - LICord) res",null,null,{"$f":"+IFERROR(E122/(E114-E108),0)","v":0},0,0,0]
[null,"Km",null,null,{"$f":"Capex!$E$61","v":3.1050000000000001E-2},{"$f":"Capex!$F$61","v":3.1050000000000001E-2},{"$f":"+Capex!$G$61","v":3.1050000000000001E-2},{"$f":"+Capex!$H$61","v":3.1050000000000001E-2}]
[null,"α",null,null,{"$f":"Capex!$E$62","v":1.2245000000000001E-2},{"$f":"Capex!$F$62","v":1.2245000000000001E-2},{"$f":"+Capex!$G$62","v":1.2245000000000001E-2},{"$f":"+Capex!$H$62","v":1.2245000000000001E-2}]
[]
[null,"OFres (time lag) ",null,null,{"$f":"Capex!$M$62*(TT_riepilogo_IMN!G80-TT_riepilogo_IMN!G84)","v":0},{"$f":"Capex!$M$62*(TT_riepilogo_IMN!F80-TT_riepilogo_IMN!F84)","v":0},{"$f":"Capex!$M$62*(TT_riepilogo_IMN!I80-TT_riepilogo_IMN!I84)","v":0},{"$f":"Capex!$M$62*(TT_riepilogo_IMN!J80-TT_riepilogo_IMN!J84)","v":0}]
[null,"OFimm res",null,null,{"$f":"+(E75+E76)*(1-E115)*(E114-E108)","v":0},0,0,0]
[null,"OFlic, ord res",null,null,{"$f":"'PdI-riepilogo'!E140","v":0},{"$f":"'PdI-riepilogo'!F140","v":0},{"$f":"'PdI-riepilogo'!G140","v":0},{"$f":"'PdI-riepilogo'!H140","v":0}]
[null,"CINfp,res",null,null,{"$f":"+MAX(TT_riepilogo_IMN!G60,0)","v":0},{"$f":"+MAX(TT_riepilogo_IMN!H60,0)","v":0},{"$f":"+MAX(TT_riepilogo_IMN!I60,0)","v":0},{"$f":"+MAX(TT_riepilogo_IMN!J60,0)","v":0}]
[]
[null,"OFres (eventuale valore parametrico) ",null,null,{"$f":"+IFERROR(IF(E101>=0,E101*Capex!E69),\"\")","v":""},{"$f":"+IFERROR(IF(F101>=0,F101*Capex!F69),\"\")","v":""},{"$f":"+IFERROR(IF(G101>=0,G101*Capex!G69),\"\")","v":""},{"$f":"+IFERROR(IF(H101>=0,H101*Capex!H69),\"\")","v":""}]
[null,"OFres (valore puntuale) ",null,null,{"$f":"+E119+E120+E121","v":0},0,0,0]
[null,"OFres",null,null,{"$f":"+IF(E101<>\"\",E124,E125)","v":0},0,0,0]
[]
[null,"Rai rate",null,null,{"$f":"Capex!$E$75","v":7.230982118024798E-2},{"$f":"Capex!$F$75","v":7.230982118024798E-2},{"$f":"+Capex!$G$75","v":7.230982118024798E-2},{"$f":"+Capex!$H$75","v":7.230982118024798E-2}]
[null,"Raires",null,null,{"$f":"+(E114-E122)*E87","v":0},0,0,0]
[]
[null,"OFiscres (eventuale valore parametrico) ",null,null,{"$f":"+IFERROR(IF(E101>=0,E101*Capex!E77),\"\")","v":""},{"$f":"+IFERROR(IF(F101>=0,F101*Capex!F77),\"\")","v":""},{"$f":"+IFERROR(IF(G101>=0,G101*Capex!G77),\"\")","v":""},{"$f":"+IFERROR(IF(H101>=0,H101*Capex!H77),\"\")","v":""}]
[null,"OFiscres (valore puntuale) ",null,null,{"$f":"+MAX(Capex!$M$60*E129,0)","v":0},{"$f":"+MAX(Capex!$M$60*F129,0)","v":0},{"$f":"+MAX(Capex!$M$60*G129,0)","v":0},{"$f":"+MAX(Capex!$M$60*H129,0)","v":0}]
[null,"OFiscres",null,null,{"$f":"+IF(E101<>\"\",E131,E132)","v":0},0,0,0]
[]
[]
[]
[]
[]
[]
[null,"Sviluppo della componente ERCopex"]
[]
[]
[null,null,2024,2025,2026,2027,2028,2029]
[null,"ERCend",{"$f":"+C189","v":0},0,{"$f":"+E189","v":0},0,0,0]
[null,"ERCal",{"$f":"+C170","v":0},0,{"$f":"+E170","v":0},0,0,0]
[null,"ERCtel",{"$f":"+C206","v":0},0,{"$f":"+E206","v":0},0,0,0]
[]
[null,"ERCopex da calcolo",null,null,{"$f":"+SUM(E144:E146)","v":0},0,0,0]
[null,"ERCopex  (eventuale detrazione da \"Input per calcoli finali\")",null,null,{"$f":"+Input_per_calcoli_finali!K165","v":0},{"$f":"+Input_per_calcoli_finali!L165","v":0},{"$f":"+Input_per_calcoli_finali!M165","v":0},{"$f":"+Input_per_calcoli_finali!N165","v":0}]
[null,"ERCopex",{"$f":"+SUM(C144:C146)","v":0},{"$f":"+SUM(D144:D146)","v":0},{"$f":"+E148-E149","v":0},0,0,0]
[]
[]
[]
[]
[]
["Art. 27 All. A","ERCal - ERC aggiornabili"]
[]
[]
[]
[null,"Valori da bilancio dell'anno a-2",2024,2025,2026,2027,2028,2029]
[null,"Canoni di derivaz/sottens idrica (quota ERC)",null,null,{"$f":"+Dati_conto_economico!D98","v":0},{"$f":"+Dati_conto_economico!J98","v":0},{"$f":"+F161","v":0},{"$f":"+G161","v":0}]
[null,"contributi per consorzi di bonifica",null,null,{"$f":"+Dati_conto_economico!D99","v":0},{"$f":"+Dati_conto_economico!J99","v":0},{"$f":"+F162","v":0},0]
[null,"Comunità Montane (quota ERC)",null,null,{"$f":"+Dati_conto_economico!D100","v":0},{"$f":"+Dati_conto_economico!J100","v":0},0,0]
[null,"canoni per restituzione acque",null,null,{"$f":"+Dati_conto_economico!D101","v":0},{"$f":"+Dati_conto_economico!J101","v":0},0,0]
[null,"oneri per la gestione di aree di salvaguardia",null,null,{"$f":"+Dati_conto_economico!D102","v":0},{"$f":"+Dati_conto_economico!J102","v":0},0,0]
[]
[]
[null,"ERCaal da formula"]
[null,"ERCaal (detrazione)"]
[null,"ERCaal",{"$f":"+Dati_Anni_precedenti!E60","v":0},{"$f":"+Dati_Anni_precedenti!F60","v":0},{"$f":"+SUM(E161:E165)","v":0},0,0,0]
[]
[]
[]
["Art. 27 All. A","ERCend - ERC endogeni"]
[]
[]
[]
[null,"Valori da bilancio dell'anno a-2",2024,2025,2026,2027,2028,2029]
[null,"B6) Per materie prime, sussidiarie, di consumo e merci",null,null,{"$f":"+Dati_conto_economico!D43","v":0},{"$f":"+Dati_conto_economico!J43","v":0},{"$f":"+F179","v":0},{"$f":"+G179","v":0}]
[null,"B7) Altri servizi da altre imprese del gruppo",null,null,{"$f":"+Dati_conto_economico!D57","v":0},{"$f":"+Dati_conto_economico!J57","v":0},{"$f":"+F180","v":0},0]
[null,"B7) Altri servizi da altre imprese",null,null,{"$f":"+Dati_conto_economico!D58","v":0},{"$f":"+Dati_conto_economico!J58","v":0},0,0]
[null,"B8) Per godimento beni di terzi",null,null,{"$f":"+Dati_conto_economico!D59","v":0},{"$f":"+Dati_conto_economico!J59","v":0},0,0]
[null,"B9) Per il personale",null,null,{"$f":"+Dati_conto_economico!D62","v":0},{"$f":"+Dati_conto_economico!J62","v":0},0,0]
[null,"B14) Oneri diversi di gestione",null,null,{"$f":"+Dati_conto_economico!D72-SUM(E161:E165)","v":0},{"$f":"+Dati_conto_economico!J72-SUM(F161:F165)","v":0},0,0]
[null,"∏(1+It)",{"$f":"+VLOOKUP(\"da t-2 a t\",PINF,C178 - 2011,FALSE)","v":1.13696},{"$f":"+VLOOKUP(\"da t-2 a t\",PINF,D178 - 2011,FALSE)","v":1.1097600000000001},{"$f":"+VLOOKUP(\"da t-2 a t\",PINF,E178 - 2011,FALSE)","v":1.03224},1.012,1,1]
[]
[]
[]
[null,"ERCaend",{"$f":"+Dati_Anni_precedenti!E59","v":0},{"$f":"+Dati_Anni_precedenti!F59","v":0},{"$f":"++SUM(E179:E184)*E185","v":0},0,0,0]
[]
[]
[]
["Art. 27 All. A","ERCtel - specifiche finalità"]
[]
[]
[]
[null,null,2024,2025,2026,2027,2028,2029]
[null,"ERCQT comma 19.8 lett. a) - dati anni precedenti",{"$f":"+Dati_Anni_precedenti!E61","v":0},{"$f":"+Dati_Anni_precedenti!F61","v":0},{"$f":"+MIN(Dati_Anni_precedenti!$F$61,SUMIFS('PdI-crono_ges'!V:V,'PdI-crono_ges'!$J:$J,\"ENV\",'PdI-crono_ges'!$K:$K,\"lettera a)\")+SUMIFS('PdI-crono_ges'!V:V,'PdI-crono_ges'!$J:$J,\"RES\",'PdI-crono_ges'!$K:$K,\"lettera a)\"))","v":0},{"$f":"+MIN(Dati_Anni_precedenti!$F$61,SUMIFS('PdI-crono_ges'!W:W,'PdI-crono_ges'!$J:$J,\"ENV\",'PdI-crono_ges'!$K:$K,\"lettera a)\")+SUMIFS('PdI-crono_ges'!W:W,'PdI-crono_ges'!$J:$J,\"RES\",'PdI-crono_ges'!$K:$K,\"lettera a)\"))","v":0},{"$f":"+MIN(Dati_Anni_precedenti!$F$61,SUMIFS('PdI-crono_ges'!X:X,'PdI-crono_ges'!$J:$J,\"ENV\",'PdI-crono_ges'!$K:$K,\"lettera a)\")+SUMIFS('PdI-crono_ges'!X:X,'PdI-crono_ges'!$J:$J,\"RES\",'PdI-crono_ges'!$K:$K,\"lettera a)\"))","v":0},{"$f":"+MIN(Dati_Anni_precedenti!$F$61,SUMIFS('PdI-crono_ges'!Y:Y,'PdI-crono_ges'!$J:$J,\"ENV\",'PdI-crono_ges'!$K:$K,\"lettera a)\")+SUMIFS('PdI-crono_ges'!Y:Y,'PdI-crono_ges'!$J:$J,\"RES\",'PdI-crono_ges'!$K:$K,\"lettera a)\"))","v":0}]
[null,null,{"$f":"+Dati_Anni_precedenti!E62","v":0},{"$f":"+Dati_Anni_precedenti!F62","v":0}]
[null,"ERCQT comma 19.8 lett. b)",{"$f":"+Dati_Anni_precedenti!E63","v":0},{"$f":"+Dati_Anni_precedenti!F63","v":0},{"$f":"+SUMIFS('PdI-crono_ges'!V:V,'PdI-crono_ges'!$J:$J,\"ENV\",'PdI-crono_ges'!$K:$K,\"lettera b)\")+SUMIFS('PdI-crono_ges'!V:V,'PdI-crono_ges'!$J:$J,\"RES\",'PdI-crono_ges'!$K:$K,\"lettera b)\")","v":0},{"$f":"+SUMIFS('PdI-crono_ges'!W:W,'PdI-crono_ges'!$J:$J,\"ENV\",'PdI-crono_ges'!$K:$K,\"lettera b)\")+SUMIFS('PdI-crono_ges'!W:W,'PdI-crono_ges'!$J:$J,\"RES\",'PdI-crono_ges'!$K:$K,\"lettera b)\")","v":0},{"$f":"+SUMIFS('PdI-crono_ges'!X:X,'PdI-crono_ges'!$J:$J,\"ENV\",'PdI-crono_ges'!$K:$K,\"lettera b)\")+SUMIFS('PdI-crono_ges'!X:X,'PdI-crono_ges'!$J:$J,\"RES\",'PdI-crono_ges'!$K:$K,\"lettera b)\")","v":0},{"$f":"+SUMIFS('PdI-crono_ges'!Y:Y,'PdI-crono_ges'!$J:$J,\"ENV\",'PdI-crono_ges'!$K:$K,\"lettera b)\")+SUMIFS('PdI-crono_ges'!Y:Y,'PdI-crono_ges'!$J:$J,\"RES\",'PdI-crono_ges'!$K:$K,\"lettera b)\")","v":0}]
[null,"ERCQT comma 19.8 lett. c) 477/2023/R/IDR",{"$f":"+Dati_Anni_precedenti!E64","v":0},{"$f":"+Dati_Anni_precedenti!F64","v":0},{"$f":"+SUMIFS('PdI-crono_ges'!V:V,'PdI-crono_ges'!$J:$J,\"ENV\",'PdI-crono_ges'!$K:$K,\"lettera c) 477/2023/R/IDR\")+SUMIFS('PdI-crono_ges'!V:V,'PdI-crono_ges'!$J:$J,\"RES\",'PdI-crono_ges'!$K:$K,\"lettera c) 477/2023/R/IDR\")","v":0},{"$f":"+SUMIFS('PdI-crono_ges'!W:W,'PdI-crono_ges'!$J:$J,\"ENV\",'PdI-crono_ges'!$K:$K,\"lettera c) 477/2023/R/IDR\")+SUMIFS('PdI-crono_ges'!W:W,'PdI-crono_ges'!$J:$J,\"RES\",'PdI-crono_ges'!$K:$K,\"lettera c) 477/2023/R/IDR\")","v":0},{"$f":"+SUMIFS('PdI-crono_ges'!X:X,'PdI-crono_ges'!$J:$J,\"ENV\",'PdI-crono_ges'!$K:$K,\"lettera c) 477/2023/R/IDR\")+SUMIFS('PdI-crono_ges'!X:X,'PdI-crono_ges'!$J:$J,\"RES\",'PdI-crono_ges'!$K:$K,\"lettera c) 477/2023/R/IDR\")","v":0},{"$f":"+SUMIFS('PdI-crono_ges'!Y:Y,'PdI-crono_ges'!$J:$J,\"ENV\",'PdI-crono_ges'!$K:$K,\"lettera c) 477/2023/R/IDR\")+SUMIFS('PdI-crono_ges'!Y:Y,'PdI-crono_ges'!$J:$J,\"RES\",'PdI-crono_ges'!$K:$K,\"lettera c) 477/2023/R/IDR\")","v":0}]
[null,"ERCQT comma 19.8 lett. c) 225/2025/R/IDR",null,null,{"$f":"+SUMIFS('PdI-crono_ges'!V:V,'PdI-crono_ges'!$J:$J,\"ENV\",'PdI-crono_ges'!$K:$K,\"lettera c) 225/2025/R/IDR\")+SUMIFS('PdI-crono_ges'!V:V,'PdI-crono_ges'!$J:$J,\"RES\",'PdI-crono_ges'!$K:$K,\"lettera c) 225/2025/R/IDR\")","v":0},{"$f":"+SUMIFS('PdI-crono_ges'!W:W,'PdI-crono_ges'!$J:$J,\"ENV\",'PdI-crono_ges'!$K:$K,\"lettera c) 225/2025/R/IDR\")+SUMIFS('PdI-crono_ges'!W:W,'PdI-crono_ges'!$J:$J,\"RES\",'PdI-crono_ges'!$K:$K,\"lettera c) 225/2025/R/IDR\")","v":0},{"$f":"+SUMIFS('PdI-crono_ges'!X:X,'PdI-crono_ges'!$J:$J,\"ENV\",'PdI-crono_ges'!$K:$K,\"lettera c) 225/2025/R/IDR\")+SUMIFS('PdI-crono_ges'!X:X,'PdI-crono_ges'!$J:$J,\"RES\",'PdI-crono_ges'!$K:$K,\"lettera c) 225/2025/R/IDR\")","v":0},{"$f":"+SUMIFS('PdI-crono_ges'!Y:Y,'PdI-crono_ges'!$J:$J,\"ENV\",'PdI-crono_ges'!$K:$K,\"lettera c) 225/2025/R/IDR\")+SUMIFS('PdI-crono_ges'!Y:Y,'PdI-crono_ges'!$J:$J,\"RES\",'PdI-crono_ges'!$K:$K,\"lettera c) 225/2025/R/IDR\")","v":0}]
[null,"ERCa tel - di cui ERCQT",{"$f":"+MIN(C198:C199)+C200+C201","v":0},{"$f":"+MIN(D198:D199)+D200+D201","v":0},{"$f":"+E198+E200+E201+E202","v":0},{"$f":"+F198+F200+F201+F202","v":0},0,0]
[null,"ERCa tel - di cui Opnew",{"$f":"+Dati_Anni_precedenti!E64","v":0},{"$f":"+Dati_Anni_precedenti!F64","v":0},{"$f":"Altri_dati_eco_fin!G71","v":0},{"$f":"Altri_dati_eco_fin!H71","v":0},{"$f":"Altri_dati_eco_fin!I71","v":0},{"$f":"Altri_dati_eco_fin!J71","v":0}]
[]
[null,"ERCa tel",{"$f":"+C203+C204","v":0},{"$f":"+D203+D204","v":0},{"$f":"+E203+E204","v":0},0,0,0]
[]
[]
[]
[]
["Comma 25.1 All. A","Riepilogo della componente tariffaria a copertura dei costi ambientali e della risorsa"]
[]
[null,"Sviluppo dei costi ambientali (Env) e della risorsa (Res)"]
[]
[]
[null,null,2024,2025,2026,2027,2028,2029]
[null,"ERCcapex da piano tariffario",{"$f":"Storico_Piano_Tariffario!E41","v":0},{"$f":"Storico_Piano_Tariffario!F41","v":0},{"$f":"+E218+E219","v":0},0,0,0]
[null," di cui Envcapex",{"$f":"Dati_Anni_precedenti!E55","v":0},{"$f":"Dati_Anni_precedenti!F55","v":0},{"$f":"+IFERROR(E46-((E46/E51)*E50),0)","v":0},0,0,0]
[null," di cui Rescapex",{"$f":"Dati_Anni_precedenti!E56","v":0},{"$f":"Dati_Anni_precedenti!F56","v":0},{"$f":"+IFERROR(E47-((E47/E51)*E50),0)","v":0},0,0,0]
[null,"ERCopex da piano tariffario",{"$f":"Storico_Piano_Tariffario!E42","v":0},{"$f":"Storico_Piano_Tariffario!F42","v":0},{"$f":"+E150","v":0},0,0,0]
[null," di cui Envopex",{"$f":"Dati_Anni_precedenti!E57","v":0},{"$f":"Dati_Anni_precedenti!F57","v":0},{"$f":"+E220-E222","v":0},0,0,0]
[null," di cui Resopex",{"$f":"Dati_Anni_precedenti!E58","v":0},{"$f":"Dati_Anni_precedenti!F58","v":0},{"$f":"+Altri_dati_eco_fin!G91","v":0},{"$f":"+Altri_dati_eco_fin!H91","v":0},{"$f":"+Altri_dati_eco_fin!I91","v":0},{"$f":"+Altri_dati_eco_fin!J91","v":0}]

{"sheet":"FoNI","index":34,"n_rows":136,"n_cols":8,"rows_kept":136,"cut":false,"hidden":false,"merged":[]}
[]
["Titolo 3 MTI-4","Fondo nuovi investimenti"]
[]
[null,"Sviluppo della componente FoNI"]
[]
[]
[]
[]
[null,"Componenti nel Piano Tariffario",2024,2025,2026,2027,2028,2029]
[null,"FoNIa",{"$f":"+SUM(C11:C13)","v":0},{"$f":"+SUM(D11:D13)","v":0},{"$f":"+SUM(E11:E13)","v":0},0,0,0]
[null,"AMMaFoNI",{"$f":"C93","v":0},{"$f":"D93","v":0},{"$f":"E93","v":0},0,0,0]
[null,"FNIa",{"$f":"+C79","v":0},{"$f":"+D79","v":0},{"$f":"+E79","v":0},0,0,0]
[null,"ΔCUITaFoNI",{"$f":"+C107","v":0},{"$f":"+D107","v":0},{"$f":"+E107","v":0},0,0,0]
[]
[]
[]
[]
[]
[]
[]
[]
[]
[]
[]
[]
[]
[]
[null,"Componenti calcolate",2024,2025,2026,2027,2028,2029]
[null,"FoNIa",null,null,{"$f":"SUM(E30:E32)","v":0},0,0,0]
[null,"AMMaFoNI",null,null,{"$f":"+E90","v":0},0,0,0]
[null,"FNIa",null,null,{"$f":"+IF(OR(schema=\"IV\",schema=\"V\",schema=\"VI\"),E77,0)","v":0},0,0,0]
[null,"ΔCUITaFoNI",null,null,{"$f":"+E105","v":0},0,0,0]
[]
[]
[]
[]
[]
[]
[]
[]
[]
[]
[]
[]
[]
[]
[]
[]
[]
[]
[]
[]
[]
[]
[]
[]
[]
[]
[]
[]
[]
[]
[]
[]
[]
[]
[]
[]
["comma 16.2 All. A","FNI - Anticipazione per il finanziamento di nuovi investimenti"]
[]
[]
[]
[null,null,2024,2025,2026,2027,2028,2029]
[null,"Ipaexp ",null,null,{"$f":"'PdI-riepilogo'!F15-('PdI-riepilogo'!F21-'PdI-riepilogo'!F24)","v":0},{"$f":"'PdI-riepilogo'!G15-('PdI-riepilogo'!G21-'PdI-riepilogo'!G24)","v":0},{"$f":"'PdI-riepilogo'!H15-('PdI-riepilogo'!H21-'PdI-riepilogo'!H24)","v":0},{"$f":"'PdI-riepilogo'!I15-('PdI-riepilogo'!I21-'PdI-riepilogo'!I24)","v":0}]
[null,"Capexa",null,null,{"$f":"+Capex!E10+ERC!E11","v":0},{"$f":"+Capex!F10+ERC!F11","v":0},{"$f":"+Capex!G10+ERC!G11","v":0},{"$f":"+Capex!H10+ERC!H11","v":0}]
[null,"ψ [0,4÷0,8]",null,null,{"$f":"Input_per_calcoli_finali!$K$51","v":0},{"$f":"Input_per_calcoli_finali!$K$51","v":0},{"$f":"Input_per_calcoli_finali!$K$51","v":0},{"$f":"Input_per_calcoli_finali!$K$51","v":0}]
[null,"FNInew,a da formula",null,null,{"$f":"IF(OR(schema=\"IV\",schema=\"V\",schema=\"VI\"),MAX(0,E76*(E74-E75)),0)","v":0},0,0,0]
[null,"FNInew,a rinunciato da soggetto compilante",null,null,{"$f":"Input_per_calcoli_finali!K124","v":0},{"$f":"Input_per_calcoli_finali!L124","v":0},{"$f":"Input_per_calcoli_finali!M124","v":0},{"$f":"Input_per_calcoli_finali!N124","v":0}]
[null,"FNIa ",{"$f":"+Dati_Anni_precedenti!E32","v":0},{"$f":"+Dati_Anni_precedenti!F32","v":0},{"$f":"IF(OR(schema=\"IV\",schema=\"V\",schema=\"VI\"),MAX(0,E77-E78),0)","v":0},0,0,0]
[]
[]
[]
[]
[]
["comma 16.3 All. A","AMMFoNI - Ammortamento sui contributi a fondo perduto"]
[]
[]
[]
[null,null,2024,2025,2026,2027,2028,2029]
[null,"AMMaCFP da formula",null,null,{"$f":"TT_riepilogo_IMN!G13+SUMIF(IMN_Proprietari!$C:$C,\"Altra società privata\",IMN_Proprietari!$AT:$AT)","v":0},{"$f":"TT_riepilogo_IMN!H13+SUMIF(IMN_Proprietari!$C:$C,\"Altra società privata\",IMN_Proprietari!$BD:$BD)","v":0},{"$f":"TT_riepilogo_IMN!I13+SUMIF(IMN_Proprietari!$C:$C,\"Altra società privata\",IMN_Proprietari!$BN:$BN)","v":0},{"$f":"TT_riepilogo_IMN!J13+SUMIF(IMN_Proprietari!$C:$C,\"Altra società privata\",IMN_Proprietari!$BX:$BX)","v":0}]
[null,"AMMaCFP massimo nel FoNI (post controllo sull'eventuale presenza di FoNInoninv)",null,null,{"$f":"+IF(E136=\"SI\",0,E90)","v":0},0,0,0]
[null,"AMMaFoNI rinunciato da soggetto compilante",null,null,{"$f":"Input_per_calcoli_finali!K128","v":0},{"$f":"Input_per_calcoli_finali!L128","v":0},{"$f":"Input_per_calcoli_finali!M128","v":0},{"$f":"Input_per_calcoli_finali!N128","v":0}]
[null,"AMMaFoNI ",{"$f":"+Dati_Anni_precedenti!E30","v":0},{"$f":"+Dati_Anni_precedenti!F30","v":0},{"$f":"MAX(0,E91-E92)","v":0},0,0,0]
[]
[]
[]
[]
[]
["comma 16.4 All. A","DCUITFoNI - Eccedenza del costo per l’uso delle infrastrutture di terzi"]
[]
[]
[]
[null,null,2024,2025,2026,2027,2028,2029]
[null,"ΔCUITa da formula",null,null,{"$f":"+Capex!E136-Capex!E14","v":0},{"$f":"+Capex!F136-Capex!F14","v":0},{"$f":"+Capex!G136-Capex!G14","v":0},{"$f":"+Capex!H136-Capex!H14","v":0}]
[null,"ΔCUITa massimo nel FoNI\n (post controllo sull'eventuale presenza di FoNInoninv e Ammortamento finanziario)",null,null,{"$f":"+IF(E135=\"SI\",0,E104)","v":0},0,0,0]
[null,"ΔCUITaFoNI rinunciato dal soggetto compilante",null,null,{"$f":"+Input_per_calcoli_finali!K132","v":0},{"$f":"+Input_per_calcoli_finali!L132","v":0},{"$f":"+Input_per_calcoli_finali!M132","v":0},{"$f":"+Input_per_calcoli_finali!N132","v":0}]
[null,"ΔCUITaFoNI",{"$f":"+Dati_Anni_precedenti!E31","v":0},{"$f":"+Dati_Anni_precedenti!F31","v":0},{"$f":"MAX(0,E105-E106)","v":0},0,0,0]
[]
[]
[]
[]
[]
["Art. 36 All. A","Controllo sul rispetto del vincolo di destinazione del FoNI"]
[]
[]
[]
[null,"Controllo sull'eventuale presenza di FoNI - non speso"]
[]
[null,null,2024,2025,2026,2027,2028,2029]
[null,"FoNIa-2 dal foglio \"Dati anni precedenti\"",null,null,{"$f":"+SUM(Dati_Anni_precedenti!E30:E32)","v":0},{"$f":"+SUM(Dati_Anni_precedenti!F30:F32)","v":0},{"$f":"+E10","v":0},{"$f":"+F10","v":0}]
[null,"FoNIspesa  ai sensi del comma 36.3 del MTI-4",null,null,{"$f":"+Altri_dati_eco_fin!E56","v":0},{"$f":"+Altri_dati_eco_fin!F56","v":0},{"$f":"PdI_consolidamento!X6","v":0},{"$f":"PdI_consolidamento!Y6","v":0}]
[null,"FoNInoninv ",{"$f":"+Dati_Anni_precedenti!E92","v":0},{"$f":"+Dati_Anni_precedenti!F92","v":0},{"$f":"+MAX(E120-E121,0)","v":0},0,0,0]
[null,"SFoNInoninv (a moneta dell'anno)",{"$f":"+MAX(C122*C125,0)","v":0},{"$f":"+MAX(C123*VLOOKUP(D119-1,ifl,D119 - 2010,FALSE)+D122*D125,0)","v":0},{"$f":"+MAX(D123*VLOOKUP(E119-1,ifl,E119 - 2010,FALSE)+E122*E125,0)","v":0},{"$f":"+MAX(E123*VLOOKUP(F119-1,ifl,F119 - 2010,FALSE)+F122*F125,0)","v":0},{"$f":"+MAX(F123*VLOOKUP(G119-1,ifl,G119 - 2010,FALSE)+G122*G125,0)","v":0},{"$f":"+MAX(G123*VLOOKUP(H119-1,ifl,H119 - 2010,FALSE)+H122*H125,0)","v":0}]
[]
[null,"dfl",{"$f":"+VLOOKUP(C119-2,ifl,C119 - 2010,FALSE)","v":1.0629520000000001},{"$f":"+VLOOKUP(D119-2,ifl,D119 - 2010,FALSE)","v":1.026972},{"$f":"+VLOOKUP(E119-2,ifl,E119 - 2010,FALSE)","v":0.99999899999999986},1.0009999999999999,1,1]
[]
[null,"Verifica FoNIspesa",{"$f":"+IF(C123<>0,\"Verificare il valore del FoNIspesa\",\"OK\")","v":"OK"},{"$f":"+IF(D123<>0,\"Verificare il valore del FoNIspesa\",\"OK\")","v":"OK"},{"$f":"+IF(E123<>0,\"Verificare il valore del FoNIspesa\",\"OK\")","v":"OK"},"OK","OK","OK"]
[]
[null,"Condizioni di azzeramento delle componenti ΔCUITFoNI e AMMfoni"]
[]
[null,null,2024,2025,2026,2027,2028,2029]
[null,"Presenza FoNInoninv ",null,null,{"$f":"+IF(ROUND(E123,0)=0,\"NO\",\"SI\")","v":"NO"},"NO","NO","NO"]
[null,"AMMORTAMENTO FINANZIARIO ",null,null,{"$f":"Ammortamento_Finanziario!H4","v":"NO"},{"$f":"Ammortamento_Finanziario!I4","v":"NO"},{"$f":"Ammortamento_Finanziario!J4","v":"NO"},{"$f":"Ammortamento_Finanziario!K4","v":"NO"}]
[]
[null,"Azzeramento ΔCUITaFoNI",null,null,{"$f":"+IF(OR(E133=\"SI\",E132=\"SI\"),\"SI\",\"NO\")","v":"NO"},"NO","NO","NO"]
[null,"Azzeramento AMMaFoNI",null,null,{"$f":"+IF(AND(E132=\"SI\",E122>E107),\"SI\",\"NO\")","v":"NO"},"NO","NO","NO"]

{"sheet":"Opex","index":35,"n_rows":334,"n_cols":13,"rows_kept":334,"cut":false,"hidden":false,"merged":[]}
[]
["Titolo 5 MTI-4","Costi operativi"]
[]
[null,"Sviluppo della componente Opex"]
[]
[]
[]
[]
[null,"Componenti nel Piano Tariffario",2024,2025,2026,2027,2028,2029]
[null,"Opexa",{"$f":"+SUM(C11:C13)","v":0},{"$f":"+SUM(D11:D13)","v":0},{"$f":"+SUM(E11:E13)","v":0},0,0,0]
[null,"Opexend",{"$f":"+C57","v":0},{"$f":"+D57","v":0},{"$f":"+E57","v":0},0,0,0]
[null,"Opexal",{"$f":"+C155","v":0},{"$f":"+D155","v":0},{"$f":"+E155","v":0},0,0,0]
[null,"Opextel",{"$f":"+C72","v":0},{"$f":"+D72","v":0},{"$f":"+E72","v":0},0,0,0]
[]
[]
[]
[]
[]
[]
[]
[]
[]
[]
[]
[]
[]
[]
[null,"Componenti calcolate",2024,2025,2026,2027,2028,2029]
[null,"Opexa",null,null,{"$f":"+SUM(E30:E32)","v":0},0,0,0]
[null,"Opexend",null,null,{"$f":"+E55","v":0},0,0,0]
[null,"Opexal",null,null,{"$f":"+E153","v":0},0,0,0]
[null,"Opextel",null,null,{"$f":"+E72","v":0},0,0,0]
[]
[]
[]
[]
[]
["Art. 18 MTI-4","Opexend - Costi endogeni"]
[]
[]
[]
[null,null,2024,2025,2026,2027,2028,2029]
[null,"Classe (i)"]
[null,"Cluster (j)"]
[null,"γOP"]
[null,"Opexend 2020"]
[null,"Coeff 2020"]
[null,"ΔOpex"]
[null,"∏(1+It) (da 2022 ad a)",{"$f":"+VLOOKUP(\"da t-2 a t\",PINF,C$9 - 2011,FALSE)","v":1.13696},{"$f":"+VLOOKUP(\"da t-3 a t\",PINF,D$9 - 2011,FALSE)","v":1.1596991999999999},{"$f":"+VLOOKUP(\"da t-4 a t\",PINF,E$9 - 2011,FALSE)","v":1.1736155903999999},{"$f":"+VLOOKUP(\"da t-5 a t\",PINF,F$9 - 2011,FALSE)","v":1.1736155903999999},{"$f":"+VLOOKUP(\"da t-6 a t\",PINF,G$9 - 2011,FALSE)","v":1.1736155903999999},{"$f":"+VLOOKUP(\"da t-7 a t\",PINF,H$9 - 2011,FALSE)","v":1.1736155903999999}]
[null,"(1+γOPi,j)*max(0;ΔOpex)",{"$f":"+Storico_Piano_Tariffario!E77","v":0},{"$f":"+Storico_Piano_Tariffario!F77","v":0},{"$f":"+D50","v":0},{"$f":"+E50","v":0},{"$f":"+F50","v":0},{"$f":"+G50","v":0}]
[null,"Opex2025end, new",null,null,{"$f":"Altri_dati_eco_fin!F69","v":0},{"$f":"Altri_dati_eco_fin!F69","v":0},{"$f":"Altri_dati_eco_fin!F69","v":0},{"$f":"Altri_dati_eco_fin!F69","v":0}]
[null,"∏(1+It) (da 2025 ad a)",null,null,{"$f":"+VLOOKUP(\"da t-1 a t\",PINF,E$9 - 2011,FALSE)","v":1.012},{"$f":"+VLOOKUP(\"da t-2 a t\",PINF,F$9 - 2011,FALSE)","v":1.012},{"$f":"+VLOOKUP(\"da t-3 a t\",PINF,G$9 - 2011,FALSE)","v":1.012},{"$f":"+VLOOKUP(\"da t-4 a t\",PINF,H$9 - 2011,FALSE)","v":1.012}]
[null,"Opexend al lordo degli ERCend",null,null,{"$f":"+IFERROR((Dati_Anni_precedenti!$E$97+Dati_Anni_precedenti!$E$98)*E49-E50+(E51*E52),\"\")","v":0},{"$f":"+IFERROR((Dati_Anni_precedenti!$E$97+Dati_Anni_precedenti!$E$98)*F49-F50+(F51*F52),\"\")","v":0},{"$f":"+IFERROR((Dati_Anni_precedenti!$E$97+Dati_Anni_precedenti!$E$98)*G49-G50+(G51*G52),\"\")","v":0},{"$f":"+IFERROR((Dati_Anni_precedenti!$E$97+Dati_Anni_precedenti!$E$98)*H49-H50+(H51*H52),\"\")","v":0}]
[]
[null,"Opexend da formula",null,null,{"$f":"+IFERROR(E53-ERC!E189,0)","v":0},{"$f":"+IFERROR(F53-ERC!F189,0)","v":0},{"$f":"+IFERROR(G53-ERC!G189,0)","v":0},{"$f":"+IFERROR(H53-ERC!H189,0)","v":0}]
[null,"Opexend (eventuale detrazione da \"Input per calcoli finali\")",null,null,{"$f":"Input_per_calcoli_finali!K145","v":0},{"$f":"Input_per_calcoli_finali!L145","v":0},{"$f":"Input_per_calcoli_finali!M145","v":0},{"$f":"Input_per_calcoli_finali!N145","v":0}]
[null,"Opexend al netto degli ERCend",{"$f":"+Dati_Anni_precedenti!E54","v":0},{"$f":"+Dati_Anni_precedenti!F54","v":0},{"$f":"+IFERROR(E55-E56,0)","v":0},0,0,0]
[]
[]
[]
[]
["Art. 19 MTI-4","Opexatel - Costi operativi associati a specifiche finalità "]
[]
[]
[]
[null,null,2024,2025,2026,2027,2028,2029]
[null,"OPnew",{"$f":"C84","v":0},{"$f":"D84","v":0},{"$f":"E84","v":0},0,0,0]
[null,"OpexQT",{"$f":"C99","v":0},{"$f":"D99","v":0},{"$f":"E99","v":0},0,0,0]
[null,"OpexQC",{"$f":"C115","v":0},{"$f":"D115","v":0},{"$f":"E115","v":0},0,0,0]
[null,"Opsocial",{"$f":"C129","v":0},{"$f":"D129","v":0},{"$f":"E129","v":0},0,0,0]
[null,"Opmis",{"$f":"C141","v":0},{"$f":"D141","v":0},{"$f":"E141","v":0},0,0,0]
[null,"Opextel",{"$f":"+SUM(C67:C71)","v":0},{"$f":"+SUM(D67:D71)","v":0},{"$f":"+SUM(E67:E71)","v":0},0,0,0]
[]
[]
[]
[]
[]
["commi 19.1 a 19.7 All. A","Opnew,a - Costi per cambiamenti sistematici"]
[]
[]
[]
[null,null,2024,2025,2026,2027,2028,2029]
[null,"Opnew,a da foglio \"Input per calcoli finali\" (al netto della quota ERC)",{"$f":"Dati_Anni_precedenti!E33","v":0},{"$f":"Dati_Anni_precedenti!F33","v":0},{"$f":"Input_per_calcoli_finali!K30-ERC!E204","v":0},{"$f":"Input_per_calcoli_finali!L30-ERC!F204","v":0},{"$f":"Input_per_calcoli_finali!M30-ERC!G204","v":0},{"$f":"Input_per_calcoli_finali!N30-ERC!H204","v":0},"al netto della quota ERC eventualmente imputata "]
[null,"Opnew,a ",{"$f":"Dati_Anni_precedenti!E33","v":0},{"$f":"Dati_Anni_precedenti!F33","v":0},{"$f":"+IF(OR(TRIM(schema)=\"III\",TRIM(schema)=\"VI\"),E83,0)","v":0},{"$f":"+IF(OR(TRIM(schema)=\"III\",TRIM(schema)=\"VI\"),F83,0)","v":0},{"$f":"+IF(OR(TRIM(schema)=\"III\",TRIM(schema)=\"VI\"),G83,0)","v":0},{"$f":"+IF(OR(TRIM(schema)=\"III\",TRIM(schema)=\"VI\"),H83,0)","v":0}]
[]
[]
[]
[]
[]
["comma 19.8 All. A","OpexQT - Costi per gli adeguamenti agli standard di qualità tecnica"]
[]
[]
[]
[null,null,2024,2025,2026,2027,2028,2029]
[null,"OpexaQT lett. a)",{"$f":"Dati_Anni_precedenti!E34","v":0},{"$f":"Dati_Anni_precedenti!F34","v":0},{"$f":"MIN(Dati_Anni_precedenti!$F$34,SUMIFS('PdI-crono_ges'!V:V,'PdI-crono_ges'!$J:$J,\"Non ERC\",'PdI-crono_ges'!$K:$K,\"lettera a)\"))","v":0},{"$f":"MIN(Dati_Anni_precedenti!$F$34,SUMIFS('PdI-crono_ges'!W:W,'PdI-crono_ges'!$J:$J,\"Non ERC\",'PdI-crono_ges'!$K:$K,\"lettera a)\"))","v":0},{"$f":"MIN(Dati_Anni_precedenti!$F$34,SUMIFS('PdI-crono_ges'!X:X,'PdI-crono_ges'!$J:$J,\"Non ERC\",'PdI-crono_ges'!$K:$K,\"lettera a)\"))","v":0},{"$f":"MIN(Dati_Anni_precedenti!$F$34,SUMIFS('PdI-crono_ges'!Y:Y,'PdI-crono_ges'!$J:$J,\"Non ERC\",'PdI-crono_ges'!$K:$K,\"lettera a)\"))","v":0}]
[null,"OpexaQT lett. b)",{"$f":"+Dati_Anni_precedenti!E35","v":0},{"$f":"+Dati_Anni_precedenti!F35","v":0},{"$f":"+SUMIFS('PdI-crono_ges'!V:V,'PdI-crono_ges'!$J:$J,\"Non ERC\",'PdI-crono_ges'!$K:$K,\"lettera b)\")","v":0},{"$f":"+SUMIFS('PdI-crono_ges'!W:W,'PdI-crono_ges'!$J:$J,\"Non ERC\",'PdI-crono_ges'!$K:$K,\"lettera b)\")","v":0},{"$f":"+SUMIFS('PdI-crono_ges'!X:X,'PdI-crono_ges'!$J:$J,\"Non ERC\",'PdI-crono_ges'!$K:$K,\"lettera b)\")","v":0},{"$f":"+SUMIFS('PdI-crono_ges'!Y:Y,'PdI-crono_ges'!$J:$J,\"Non ERC\",'PdI-crono_ges'!$K:$K,\"lettera b)\")","v":0}]
[null,"OpexaQT lett. c) 477/2023/R/IDR",{"$f":"+Dati_Anni_precedenti!E36","v":0},{"$f":"+Dati_Anni_precedenti!F36","v":0},{"$f":"+SUMIFS('PdI-crono_ges'!V:V,'PdI-crono_ges'!$J:$J,\"Non ERC\",'PdI-crono_ges'!$K:$K,\"lettera c) 477/2023/R/IDR\")","v":0},{"$f":"+SUMIFS('PdI-crono_ges'!W:W,'PdI-crono_ges'!$J:$J,\"Non ERC\",'PdI-crono_ges'!$K:$K,\"lettera c) 477/2023/R/IDR\")","v":0},{"$f":"+SUMIFS('PdI-crono_ges'!X:X,'PdI-crono_ges'!$J:$J,\"Non ERC\",'PdI-crono_ges'!$K:$K,\"lettera c) 477/2023/R/IDR\")","v":0},{"$f":"+SUMIFS('PdI-crono_ges'!Y:Y,'PdI-crono_ges'!$J:$J,\"Non ERC\",'PdI-crono_ges'!$K:$K,\"lettera c) 477/2023/R/IDR\")","v":0}]
[null,"OpexaQT lett. c) 225/2025/R/IDR",null,null,{"$f":"+SUMIFS('PdI-crono_ges'!V:V,'PdI-crono_ges'!$J:$J,\"Non ERC\",'PdI-crono_ges'!$K:$K,\"lettera c) 225/2025/R/IDR\")","v":0},{"$f":"+SUMIFS('PdI-crono_ges'!W:W,'PdI-crono_ges'!$J:$J,\"Non ERC\",'PdI-crono_ges'!$K:$K,\"lettera c) 225/2025/R/IDR\")","v":0},{"$f":"+SUMIFS('PdI-crono_ges'!X:X,'PdI-crono_ges'!$J:$J,\"Non ERC\",'PdI-crono_ges'!$K:$K,\"lettera c) 225/2025/R/IDR\")","v":0},{"$f":"+SUMIFS('PdI-crono_ges'!Y:Y,'PdI-crono_ges'!$J:$J,\"Non ERC\",'PdI-crono_ges'!$K:$K,\"lettera c) 225/2025/R/IDR\")","v":0}]
[null,"OpexQT (al netto della componente ERCQT)",{"$f":"+SUM(C95:C97)","v":0},{"$f":"+SUM(D95:D97)","v":0},{"$f":"+SUM(E95:E98)","v":0},{"$f":"+SUM(F95:F98)","v":0},0,0]
[]
[]
[]
[]
[]
["comma 19.9 All. A","OpexaQC - Costi per gli adeguamenti standard qualità contrattuale e eventuali oneri aggiuntivi "]
[]
[]
[]
[null,null,2024,2025,2026,2027,2028,2029]
[null,"OpexaQC - adeguamenti agli standard di qualità contrattuale di cui alla deliberazione 655/2015/R/IDR\n(comma 19.9 lett. a)",{"$f":"Dati_Anni_precedenti!E37","v":0},{"$f":"Dati_Anni_precedenti!F37","v":0},{"$f":"MIN(Dati_Anni_precedenti!$F$37,Altri_dati_eco_fin!G76)","v":0},{"$f":"MIN(Dati_Anni_precedenti!$F$37,Altri_dati_eco_fin!H76)","v":0},{"$f":"MIN(Dati_Anni_precedenti!$F$37,Altri_dati_eco_fin!I76)","v":0},{"$f":"MIN(Dati_Anni_precedenti!$F$37,Altri_dati_eco_fin!J76)","v":0}]
[null,"OpexaQC - oneri aggiuntivi relativi per l'adeguamento agli obiettivi di cui alla deliberazione 547/2019/R/IDR\n(comma 19.9 lett. a)",{"$f":"+Dati_Anni_precedenti!E38","v":0},{"$f":"+Dati_Anni_precedenti!F38","v":0},{"$f":"MIN(Dati_Anni_precedenti!$F$38,,Altri_dati_eco_fin!G77)","v":0},{"$f":"MIN(Dati_Anni_precedenti!$F$38,,Altri_dati_eco_fin!H77)","v":0},{"$f":"MIN(Dati_Anni_precedenti!$F$38,,Altri_dati_eco_fin!I77)","v":0},{"$f":"MIN(Dati_Anni_precedenti!$F$38,,Altri_dati_eco_fin!J77)","v":0}]
[null,"OpexaQC - nuovi obiettivi di qualità contrattuale di cui alla deliberazione 579/2025/R/IDR\n(comma 19.9 lett. a-bis)",null,null,{"$f":"Altri_dati_eco_fin!G80","v":0},{"$f":"Altri_dati_eco_fin!H80","v":0},{"$f":"Altri_dati_eco_fin!I80","v":0},{"$f":"Altri_dati_eco_fin!J80","v":0}]
[null,"Opexaqc \n(commi 19.9 lettera b) - 476/2023/R/IDR e 28.1 MTI-4)",{"$f":"+Dati_Anni_precedenti!E39","v":0},{"$f":"+Dati_Anni_precedenti!F39","v":0},{"$f":"Altri_dati_eco_fin!G78","v":0},{"$f":"Altri_dati_eco_fin!H78","v":0},{"$f":"Altri_dati_eco_fin!I78","v":0},{"$f":"Altri_dati_eco_fin!J78","v":0}]
[null,"Opexaqc \n(commi 19.9 lettera b) - 277/2025/R/IDR e 28.1 MTI-4)",null,null,{"$f":"+Altri_dati_eco_fin!G79","v":0},{"$f":"+Altri_dati_eco_fin!H79","v":0},{"$f":"+Altri_dati_eco_fin!I79","v":0},{"$f":"+Altri_dati_eco_fin!J79","v":0}]
[null,"OpexaQC ",{"$f":"+SUM(C110:C111,C113)","v":0},{"$f":"+SUM(D110:D111,D113)","v":0},{"$f":"+SUM(E110:E114)","v":0},{"$f":"+SUM(F110:F114)","v":0},0,0]
[]
[]
[]
[]
[]
["comma 19.10 All. A","Opsocial"]
[]
[]
[]
[null,null,2024,2025,2026,2027,2028,2029]
[null,"Opasocial - lett. a)",{"$f":"Dati_Anni_precedenti!E40","v":0},{"$f":"Dati_Anni_precedenti!F40","v":0},{"$f":"+Altri_dati_eco_fin!G81","v":0},{"$f":"+Altri_dati_eco_fin!H81","v":0},{"$f":"+Altri_dati_eco_fin!I81","v":0},{"$f":"+Altri_dati_eco_fin!J81","v":0}]
[null,"Opasocial - lett. a-bis)",null,null,{"$f":"+Altri_dati_eco_fin!G82","v":0},{"$f":"+Altri_dati_eco_fin!H82","v":0},{"$f":"+Altri_dati_eco_fin!I82","v":0},{"$f":"+Altri_dati_eco_fin!J82","v":0}]
[null,"Opasocial - lett. b)",{"$f":"+Dati_Anni_precedenti!E41","v":0},{"$f":"+Dati_Anni_precedenti!F41","v":0},{"$f":"+Altri_dati_eco_fin!G83","v":0},{"$f":"+Altri_dati_eco_fin!H83","v":0},{"$f":"+Altri_dati_eco_fin!I83","v":0},{"$f":"+Altri_dati_eco_fin!J83","v":0}]
[null,"Opsocial ",{"$f":"+C126+C128","v":0},{"$f":"+D126+D128","v":0},{"$f":"SUM(E126:E128)","v":0},{"$f":"SUM(F126:F128)","v":0},0,0]
[]
[]
[]
[]
[]
["comma 19.11 All. A","Opmis"]
[]
[]
[]
[null,null,2024,2025,2026,2027,2028,2029]
[null,"Opmis",{"$f":"Dati_Anni_precedenti!E42","v":0},{"$f":"Dati_Anni_precedenti!F42","v":0},{"$f":"+Altri_dati_eco_fin!G84","v":0},{"$f":"+Altri_dati_eco_fin!H84","v":0},{"$f":"+Altri_dati_eco_fin!I84","v":0},{"$f":"+Altri_dati_eco_fin!J84","v":0}]
[null,"Opmis ",{"$f":"Dati_Anni_precedenti!E42","v":0},{"$f":"Dati_Anni_precedenti!F42","v":0},{"$f":"+E140","v":0},0,0,0]
[]
[]
[]
[]
[]
[]
["Art. 20 All. A","Opexal - Costi aggiornabili"]
[]
[]
[]
[null,null,2024,2025,2026,2027,2028,2029]
[null,"Opexala da formula",{"$f":"+C179+C192+C209+C242+C227","v":0},{"$f":"+D179+D192+D209+D242+D227","v":0},{"$f":"+E179+E192+E209+E242+E227","v":0},0,0,0]
[null,"Opexala  (eventuale detrazione da \"Input per calcoli finali\")",null,null,{"$f":"+Input_per_calcoli_finali!K149","v":0},{"$f":"+Input_per_calcoli_finali!L149","v":0},{"$f":"+Input_per_calcoli_finali!M149","v":0},{"$f":"+Input_per_calcoli_finali!N149","v":0}]
[null,"Opexala",{"$f":"+C153","v":0},0,{"$f":"+IFERROR(E153-E154,0)","v":0},0,0,0]
[]
[]
[]
[]
[]
["Art. 21 All. A","Coee - Costi di energia elettrica"]
[]
[]
[]
[null,null,2024,2025,2026,2027,2028,2029]
[null,"COeff,a-2EE massimo ammissibile",null,null,{"$f":"+SUM(Dati_conto_economico!C47:C48,Dati_conto_economico!F47:F48)","v":0},{"$f":"+SUM(Dati_conto_economico!I47:I48,Dati_conto_economico!L47:L48)","v":0},{"$f":"+F166","v":0},{"$f":"+G166","v":0}]
[null,"Anticipazione trend di diminuzione costo energia",null,null,{"$f":"+Altri_dati_eco_fin!G88","v":0},{"$f":"+Altri_dati_eco_fin!H88","v":0},{"$f":"+Altri_dati_eco_fin!I88","v":0},{"$f":"+Altri_dati_eco_fin!J88","v":0}]
[null,"COeff,a-2EE al netto dell'anticipazione",null,null,{"$f":"+E166-E167","v":0},0,0,0]
[null,"kWh a-2 (acquistati e consumati)",{"$f":"Dati_Anni_precedenti!E102","v":0},{"$f":"+Dati_tecnici!G5","v":0},{"$f":"Dati_tecnici!E5","v":0},{"$f":"Dati_tecnici!F5","v":0},{"$f":"+F169","v":0},{"$f":"+G169","v":0}]
[null,"kWhaut a-2 (autoprodotti e consumati)",{"$f":"Dati_Anni_precedenti!E103","v":0},{"$f":"+Dati_tecnici!G6","v":0},{"$f":"Dati_tecnici!E6","v":0},{"$f":"Dati_tecnici!F6","v":0},{"$f":"+F170","v":0},{"$f":"+G170","v":0}]
[null,"S(kWh+kWhAut)a-n/4",null,null,{"$f":"((Dati_Anni_precedenti!E115+Dati_Anni_precedenti!E116)+(Dati_Anni_precedenti!F115+Dati_Anni_precedenti!F116)+(Dati_Anni_precedenti!E102+Dati_Anni_precedenti!E103)+(Dati_tecnici!G5+Dati_tecnici!G6))/4","v":0},{"$f":"((Dati_Anni_precedenti!F115+Dati_Anni_precedenti!F116)+(Dati_Anni_precedenti!E102+Dati_Anni_precedenti!E103)+(Dati_tecnici!G5+Dati_tecnici!G6)+(Dati_tecnici!E5+Dati_tecnici!E6))/4","v":0},{"$f":"((Dati_Anni_precedenti!E102+Dati_Anni_precedenti!E103)+(Dati_tecnici!G5+Dati_tecnici!G6)+(Dati_tecnici!E5+Dati_tecnici!E6)+(Dati_tecnici!F5+Dati_tecnici!F6))/4","v":0},{"$f":"((Dati_tecnici!G5+Dati_tecnici!G6)+(Dati_tecnici!E5+Dati_tecnici!E6)+(Dati_tecnici!F5+Dati_tecnici!F6)+(G169+G170))/4","v":0}]
[null,"Assenza di double counting",null,null,{"$f":"Dati_tecnici!E7","v":0},{"$f":"Dati_tecnici!F7","v":0},{"$f":"+F172","v":0},{"$f":"+G172","v":0}]
[null,"Δrisparmionew ",null,null,{"$f":"+IFERROR((E171-(E170+E169))*(E168/E169),0)","v":0},{"$f":"+IFERROR((F171-(F170+F169))*(F168/F169),0)","v":0},0,0]
[null,"γEEnew",null,null,{"$f":"+IF(E173<0,0,0.25)","v":0.25},0.25,0.25,0.25]
[null,"∏(1+It)",{"$f":"+VLOOKUP(\"da t-2 a t\",PINF,C$9 - 2011,FALSE)","v":1.13696},{"$f":"+VLOOKUP(\"da t-2 a t\",PINF,D$9 - 2011,FALSE)","v":1.1097600000000001},{"$f":"+VLOOKUP(\"da t-2 a t\",PINF,E$9 - 2011,FALSE)","v":1.03224},1.012,1,1]
[]
[]
[]
[null,"COEE ",{"$f":"Dati_Anni_precedenti!E43","v":0},{"$f":"Dati_Anni_precedenti!F43","v":0},{"$f":"(E168+IF(E172=\"SI\",E170*E168/E169,0)+E174*E173)*E175","v":0},{"$f":"+(F168+IF(F172=\"SI\",F168*F170/F169,0)+F174*F173)*F175","v":0},0,0]
[]
[]
[]
[]
[]
["Art. 22 All. A","Cows - Costi all'ingrosso"]
[]
[]
[]
[null,null,2024,2025,2026,2027,2028,2029]
[null,"Opwsexp,a - comma 22.2 MTI-4",{"$f":"+Dati_Anni_precedenti!E45","v":0},{"$f":"+Dati_Anni_precedenti!F45","v":0},{"$f":"Altri_dati_eco_fin!G85","v":0},{"$f":"Altri_dati_eco_fin!H85","v":0},{"$f":"Altri_dati_eco_fin!I85","v":0},{"$f":"Altri_dati_eco_fin!J85","v":0}]
[null,"Cowseffettivi, a-2",{"$f":"Dati_Anni_precedenti!E44-Dati_Anni_precedenti!E45","v":0},{"$f":"Dati_Anni_precedenti!F44-Dati_Anni_precedenti!F45","v":0},{"$f":"+SUMIF(Acquisto_Servizi_ingrosso!$F:$F,E189-2,Acquisto_Servizi_ingrosso!$L:$L)","v":0},{"$f":"+SUMIF(Acquisto_Servizi_ingrosso!$F:$F,F189-2,Acquisto_Servizi_ingrosso!$L:$L)","v":0},{"$f":"+F191","v":0},{"$f":"+G191","v":0}]
[null,"COws",{"$f":"+C190+C191","v":0},{"$f":"+D190+D191","v":0},{"$f":"+E191+E190","v":0},0,0,0]
[]
[]
[]
[]
[]
["Art. 23 All. A","COΔfanghi - Oneri aggiuntivi per lo smaltimento dei fanghi di depurazione"]
[]
[]
[]
[null,null,2024,2025,2026,2027,2028,2029]
[null,"Coeffettivo,2017fanghi",{"$f":"+Dati_Anni_precedenti!$F$127","v":0},{"$f":"+Dati_Anni_precedenti!$F$127","v":0},{"$f":"+Dati_Anni_precedenti!$F$127","v":0},{"$f":"+Dati_Anni_precedenti!$F$127","v":0},{"$f":"+Dati_Anni_precedenti!$F$127","v":0},{"$f":"+Dati_Anni_precedenti!$F$127","v":0}]
[null,"Coeffettivo,a-2fanghi",null,null,{"$f":"+SUM(Dati_conto_economico!C53:C54,Dati_conto_economico!F53:F54,Dati_conto_economico!C92,Dati_conto_economico!F92)","v":0},{"$f":"+SUM(Dati_conto_economico!I53:I54,Dati_conto_economico!L53:L54,Dati_conto_economico!I92,Dati_conto_economico!L92)","v":0},{"$f":"+F204","v":0},{"$f":"+G204","v":0}]
[null,"F",0.02,0.02,0.02,0.02,0.02,0.02]
[null,"∏(1+It) (da 2017 a a-2)",{"$f":"+VLOOKUP({\"da t-5 a t\"},PINF,C$202 - 2011-2,FALSE)","v":1.0303234665583854},{"$f":"+VLOOKUP({\"da t-6 a t\"},PINF,D$202 - 2011-2,FALSE)","v":1.0766880225535127},{"$f":"+VLOOKUP(\"da t-7 a t\",PINF,E$202 - 2011-2,FALSE)","v":1.171436568538222},{"$f":"+VLOOKUP({\"da t-8 a t\"},PINF,F$202 - 2011-2,FALSE)","v":1.1948652999089864},{"$f":"+VLOOKUP({\"da t-9 a t\"},PINF,G$202 - 2011-2,FALSE)","v":1.2092036835078943},{"$f":"+VLOOKUP({\"da t-10 a t\"},PINF,H$202 - 2011-2,FALSE)","v":1.2092036835078943}]
[null,"∏(1+It) (da 2017 ad a )",{"$f":"+VLOOKUP({\"da t-7 a t\"},PINF,C$202 - 2011,FALSE)","v":1.171436568538222},{"$f":"+VLOOKUP({\"da t-8 a t\"},PINF,D$202 - 2011,FALSE)","v":1.1948652999089864},{"$f":"+VLOOKUP(\"da t-9 a t\",PINF,E$202 - 2011,FALSE)","v":1.2092036835078943},{"$f":"+VLOOKUP({\"da t-10 a t\"},PINF,F$202 - 2011,FALSE)","v":1.2092036835078943},{"$f":"+VLOOKUP({\"da t-11 a t\"},PINF,G$202 - 2011,FALSE)","v":1.2092036835078943},{"$f":"+VLOOKUP({\"da t-12 a t\"},PINF,H$202 - 2011,FALSE)","v":1.2092036835078943}]
[null,"COΔfanghi (rispetto condizionalità)",null,null,{"$f":"+IF(Altri_dati_eco_fin!$E$86=\"SI\",\"SI\",\"NO\")","v":"NO"},{"$f":"+IF(Altri_dati_eco_fin!$F$86=\"SI\",\"SI\",\"NO\")","v":"NO"},{"$f":"+D208","v":0},{"$f":"+G208","v":0}]
[null,"COΔfanghi ",{"$f":"Dati_Anni_precedenti!E46","v":0},{"$f":"Dati_Anni_precedenti!F46","v":0},{"$f":"+IFERROR(IF(E208=\"SI\",E203*E207*MAX(((E204/(E203*E206))-E205)-1,0),0),0)","v":0},0,0,0]
[]
[]
[]
[]
[]
[]
[]
["comma 20.1 All. A","MT, AC - Mutui e Altri corrispettivi"]
[]
[]
[]
[null,null,2024,2025,2026,2027,2028,2029]
[null,"MT",{"$f":"Dati_Anni_precedenti!E47","v":0},{"$f":"Dati_Anni_precedenti!F47","v":0},{"$f":"+SUM(Corrispettivi_proprietari!Y:Y)","v":0},{"$f":"+SUM(Corrispettivi_proprietari!Z:Z)","v":0},{"$f":"+SUM(Corrispettivi_proprietari!AA:AA)","v":0},{"$f":"+SUM(Corrispettivi_proprietari!AB:AB)","v":0}]
[null,"AC",{"$f":"Dati_Anni_precedenti!E48","v":0},{"$f":"Dati_Anni_precedenti!F48","v":0},{"$f":"+SUM(Corrispettivi_proprietari!AF:AF)","v":0},{"$f":"+SUM(Corrispettivi_proprietari!AG:AG)","v":0},{"$f":"+SUM(Corrispettivi_proprietari!AH:AH)","v":0},{"$f":"+SUM(Corrispettivi_proprietari!AI:AI)","v":0}]
[]
[]
[]
[null,"MT + AC ",{"$f":"+C222+C223","v":0},{"$f":"+D222+D223","v":0},{"$f":"+E222+E223","v":0},0,0,0]
[]
[]
[]
[]
[]
["Art. 24 All. A","Coaltri - Altri costi"]
[]
[]
[]
[null,null,2024,2025,2026,2027,2028,2029]
[null,"COATOa",{"$f":"+C265","v":0},{"$f":"+D265","v":0},{"$f":"+E265","v":0},0,0,0]
[null,"COARERAa",{"$f":"+C279","v":0},{"$f":"+D279","v":0},{"$f":"+E279","v":0},0,0,0]
[null,"COmora",{"$f":"+Opex!C298","v":0},{"$f":"+Opex!D298","v":0},{"$f":"+Opex!E298","v":0},{"$f":"+Opex!F298","v":0},{"$f":"+Opex!G298","v":0},{"$f":"+Opex!H298","v":0}]
[null,"COresa",{"$f":"+C312","v":0},{"$f":"+D312","v":0},{"$f":"+E312","v":0},0,0,0]
[null,"COaltria",{"$f":"+SUM(C238:C240,C241)","v":0},{"$f":"+SUM(D238:D240,D241)","v":0},{"$f":"+SUM(E238:E240,E241)","v":0},0,0,0]
[]
[]
[]
[]
[]
["comma 24.2 All. A","CoATO - Costi dell'ATO"]
[]
[]
[]
[null,"COmedio,2013ATO",null,null,{"$f":"+TT_parametri!$AV$50","v":1.01}]
[null,"popATO di competenza del gestore",null,null,{"$f":"IF(popolazione_ato<>0,popolazione_ato,MAX(Dati_tecnici!E15,Dati_tecnici!E23,Dati_tecnici!E29))","v":0}]
[null,"COmedio,2013ATO * pop2013*z",null,null,{"$f":"+E252*E253*3","v":0}]
[]
[]
[null,null,2024,2025,2026,2027,2028,2029]
[null,"COa-2ATO",null,null,{"$f":"+Dati_conto_economico!C84+Dati_conto_economico!F84","v":0},{"$f":"+Dati_conto_economico!I84+Dati_conto_economico!L84","v":0},{"$f":"+F258","v":0},{"$f":"+G258","v":0}]
[null,null,null,null,null,null,null,null,null,null,null,"SI","Accoglimento Istanza per soggetto competente"]
[null,"Produttoria(1+It) 2014 - anno a",{"$f":"+VLOOKUP(\"da t-\"&C257-2014+1&\" a t\",PINF,C257 - 2011,FALSE)","v":1.2008077341955539},{"$f":"+VLOOKUP(\"da t-\"&D257-2014+1&\" a t\",PINF,D257 - 2011,FALSE)","v":1.2248238888794649},{"$f":"+VLOOKUP(\"da t-\"&E257-2014+1&\" a t\",PINF,E257 - 2011,FALSE)","v":1.2395217755460186},1.2395217755460186,1.2395217755460186,1.2395217755460186]
[null,"Produttoria(1+It) mobile di 2 anni",{"$f":"+VLOOKUP(\"da t-2 a t\",PINF,C$9 - 2011,FALSE)","v":1.13696},{"$f":"+VLOOKUP(\"da t-2 a t\",PINF,D$9 - 2011,FALSE)","v":1.1097600000000001},{"$f":"+VLOOKUP(\"da t-2 a t\",PINF,E$9 - 2011,FALSE)","v":1.03224},1.012,1,1]
[]
[]
[]
[null,"COATOa ",{"$f":"Dati_Anni_precedenti!E49","v":0},{"$f":"Dati_Anni_precedenti!F49","v":0},{"$f":"MIN(E258*E261,$E$254*E260)","v":0},0,0,0]
[]
[]
[]
[]
[]
["comma 24.5 All. A","CoARERA - Costi dell'Autorità"]
[]
[]
[]
[null,null,2024,2025,2026,2027,2028,2029]
[null,"Ricavia-2A1+A5",null,null,{"$f":"+Dati_conto_economico!C5+Dati_conto_economico!C11","v":0},{"$f":"+Dati_conto_economico!I5+Dati_conto_economico!I11","v":0},{"$f":"+F276","v":0},{"$f":"+G276","v":0}]
[null,"quota%",{"$f":"+TT_parametri!$BC$60","v":2.7E-4},{"$f":"+TT_parametri!$BC$61","v":2.7E-4},{"$f":"+TT_parametri!$BC$62","v":2.7E-4},{"$f":"+TT_parametri!$BC$63","v":2.7E-4},{"$f":"+F277","v":2.7E-4},{"$f":"+G277","v":2.7E-4}]
[]
[null,"COaARERA ",{"$f":"Dati_Anni_precedenti!E50","v":0},{"$f":"Dati_Anni_precedenti!F50","v":0},{"$f":"+E276*E277","v":0},0,0,0]
[]
[]
[]
[]
[]
["Art. 30 All. A","Comor - Costi della morosità"]
[]
[]
[null,"Trattamento dei costi di morosità"]
[null,null,null,null,null,null,null,null,null,null,null,"+IVA 10%","Area Geogr"]
[null,null,2024,2025,2026,2027,2028,2029,null,null,null,{"$f":"1+0.1","v":1.1000000000000001},{"$f":"+IFERROR(VLOOKUP(VALUE(idato),TT_Comuni_ATO!N2:O99,2,FALSE),0)","v":0}]
[null,"fatturatoa-2",null,null,{"$f":"+(SUM(Dati_conto_economico!C14:'Dati_conto_economico'!C21)+(Dati_conto_economico!C23+Dati_conto_economico!C24+Dati_conto_economico!C27+Dati_conto_economico!C28+Dati_conto_economico!C35))*$L$290","v":0},{"$f":"+(SUM(Dati_conto_economico!I14:'Dati_conto_economico'!I21)+(Dati_conto_economico!I23+Dati_conto_economico!I24+Dati_conto_economico!I27+Dati_conto_economico!I28+Dati_conto_economico!I35))*$L$290","v":0},{"$f":"+F291","v":0},{"$f":"+G291","v":0}]
[null,"Unpaid Ratio [UR] reale",{"$f":"+F292","v":0},{"$f":"+C292","v":0},{"$f":"Altri_dati_eco_fin!E31","v":0},{"$f":"Altri_dati_eco_fin!$F$31","v":0},{"$f":"+F292","v":0},0]
[null,"Unpaid Ratio [UR] comma 30.2 / 30.2 bis MTI-4",{"$f":"IFERROR(VLOOKUP($M290,TT_parametri!$AU$55:$AV$57,2,FALSE),0)","v":0},{"$f":"IFERROR(VLOOKUP($M290,TT_parametri!$AU$55:$AV$57,2,FALSE),0)","v":0},{"$f":"IFERROR(\n   IF(Altri_dati_eco_fin!E34=\"SI\",\n      VLOOKUP($M290,TT_parametri!$AU$61:$AV$63,2,FALSE),\n      VLOOKUP($M290,TT_parametri!$AU$55:$AV$57,2,FALSE)),\n0)","v":0},{"$f":"+E293","v":0},{"$f":"+F293","v":0},{"$f":"+G293","v":0}]
[null,"Unpaid Ratio [UR] indicato",{"$f":"+Input_per_calcoli_finali!$K$68","v":0},{"$f":"+Input_per_calcoli_finali!$K$68","v":0},{"$f":"+Input_per_calcoli_finali!$K$68","v":0},{"$f":"+Input_per_calcoli_finali!$K$68","v":0},{"$f":"+Input_per_calcoli_finali!$K$68","v":0},{"$f":"+Input_per_calcoli_finali!$K$68","v":0}]
[]
[]
[]
[null,"COamor",{"$f":"Dati_Anni_precedenti!E51","v":0},{"$f":"Dati_Anni_precedenti!F51","v":0},{"$f":"MAX(E291*\nIF(E294=\"\",E293,\n      MIN(E294,E293)),0)","v":0},{"$f":"MAX(F291*\nIF(F294=\"\",F293,\n      MIN(F294,F293)),0)","v":0},{"$f":"MAX(G291*\nIF(G294=\"\",G293,\n      MIN(G294,G293)),0)","v":0},{"$f":"MAX(H291*\nIF(H294=\"\",H293,\n      MIN(H294,H293)),0)","v":0}]
[]
[]
[]
[]
[]
["comma 24.1 All. A","Cores - Oneri locali"]
[]
[]
[]
[null,null,2024,2025,2026,2027,2028,2029]
[null,"Oneri locali a-2 (esclusi ERC)",null,null,{"$f":"+SUM(Dati_conto_economico!E98:F103)","v":0},{"$f":"SUM(Dati_conto_economico!K98:L103)","v":0},{"$f":"+F309","v":0},{"$f":"+G309","v":0}]
[null,"Contributi in c/e a-2",null,null,{"$f":"+IF(Altri_dati_eco_fin!G89<>\"\",Altri_dati_eco_fin!G89,Dati_conto_economico!C38+Dati_conto_economico!F38)","v":0},{"$f":"+IF(Altri_dati_eco_fin!H89<>\"\",Altri_dati_eco_fin!H89,Dati_conto_economico!$I$38+Dati_conto_economico!$L$38)","v":0},{"$f":"+IF(Altri_dati_eco_fin!I89<>\"\",Altri_dati_eco_fin!I89,Dati_conto_economico!$I$38+Dati_conto_economico!$L$38)","v":0},{"$f":"+IF(Altri_dati_eco_fin!J89<>\"\",Altri_dati_eco_fin!J89,Dati_conto_economico!$I$38+Dati_conto_economico!$L$38)","v":0}]
[]
[null,"COares",{"$f":"Dati_Anni_precedenti!E52","v":0},{"$f":"Dati_Anni_precedenti!F52","v":0},{"$f":"+E309-E310","v":0},0,0,0]
[]
[]
[]
[]
[]
["Comma 18.3 e art. 37 All. A","Quota da recupero efficienza per alimentazione Fondo per la promozione dell'innovazione nel servizio idrico integrato"]
[]
[]
[]
[null,"Quota destinata a meccanismi incentivanti per la promozione della sostenibilità energetica e ambientale"]
[]
[null,null,2024,2025,2026,2027,2028,2029]
[null,"Quota da recupero efficienza (€/mc)",{"$f":"Storico_Piano_Tariffario!E76","v":0},{"$f":"Storico_Piano_Tariffario!F76","v":0},{"$f":"+IFERROR(E326/E327,\"\")","v":""},"","",""]
[null,"(1+γOPi,j)*max(0;ΔOpex)",{"$f":"Storico_Piano_Tariffario!E77","v":0},{"$f":"Storico_Piano_Tariffario!F77","v":0},{"$f":"Opex!E50","v":0},{"$f":"Opex!F50","v":0},{"$f":"Opex!G50","v":0},{"$f":"Opex!H50","v":0}]
[null,"Volumi",null,null,{"$f":"+IFERROR(E334,\"\")","v":0},0,0,0]
[]
[null,"Totale Volumi"]
[null,"Acquedotto",null,null,{"$f":"+SUMIF(Struttura_corrispettivi!$AG:$AG,\"Acquedotto\",Struttura_corrispettivi!Q:Q)","v":0},{"$f":"+SUMIF(Struttura_corrispettivi!$AG:$AG,\"Acquedotto\",Struttura_corrispettivi!R:R)","v":0},{"$f":"+F330","v":0},{"$f":"+G330","v":0}]
[null,"Fognatura",null,null,{"$f":"+SUMIF(Struttura_corrispettivi!$AG:$AG,\"Fognatura\",Struttura_corrispettivi!Q:Q)","v":0},{"$f":"+SUMIF(Struttura_corrispettivi!$AG:$AG,\"Fognatura\",Struttura_corrispettivi!R:R)","v":0},{"$f":"+F331","v":0},0]
[null,"Depurazione",null,null,{"$f":"+SUMIF(Struttura_corrispettivi!$AG:$AG,\"Depurazione\",Struttura_corrispettivi!Q:Q)","v":0},{"$f":"+SUMIF(Struttura_corrispettivi!$AG:$AG,\"Depurazione\",Struttura_corrispettivi!R:R)","v":0},0,0]
[null,"Volumi utenze industriali di cui al Titolo 4 (TICSI)",null,null,{"$f":"+SUM(Ricavi_Coll_Dep!C11,Ricavi_Coll_Dep!C12)","v":0},{"$f":"+SUM(Ricavi_Coll_Dep!D11,Ricavi_Coll_Dep!D12)","v":0},{"$f":"+F333","v":0},0]
[null,"Volumi per esprimere la quota da recupero efficienza in unità di consumo",null,null,{"$f":"+SUM(E330:E333)","v":0},0,0,0]

{"sheet":"Rc","index":36,"n_rows":340,"n_cols":14,"rows_kept":340,"cut":false,"hidden":false,"merged":[]}
[]
["Titolo 7 MTI-4","Sostenibilità finanziaria efficiente"]
[]
[null,"Sviluppo della componente Rc"]
[]
[]
[]
[]
[null,"Componenti nel Piano Tariffario",2024,2025,2026,2027,2028,2029]
[null,"RcTOTa",{"$f":"+C12","v":0},{"$f":"+D12","v":0},{"$f":"+E12","v":0},0,0,0]
[null,"RcTOTa calcolato (include inflazione)",{"$f":"+C19","v":0},{"$f":"+D19","v":0},{"$f":"+E19","v":0},0,0,0]
[null,"RcTOTa da input per calcoli finali",{"$f":"++IFERROR(Input_per_calcoli_finali!I222,0)","v":0},{"$f":"++IFERROR(Input_per_calcoli_finali!J222,0)","v":0},{"$f":"++IFERROR(Input_per_calcoli_finali!K222,0)","v":0},{"$f":"++IFERROR(Input_per_calcoli_finali!L222,0)","v":0},{"$f":"++IFERROR(Input_per_calcoli_finali!M222,0)","v":0},{"$f":"++IFERROR(Input_per_calcoli_finali!N222,0)","v":0}]
[]
[]
[]
[]
[]
[null,"Componenti post detrazioni",2024,2025,2026,2027,2028,2029]
[null,"RcTOTa",{"$f":"+SUM(C20:C24)","v":0},{"$f":"+SUM(D20:D24)","v":0},{"$f":"+SUM(E20:E24)","v":0},0,{"$f":"+SUM(G20:G24)","v":0},{"$f":"+SUM(H20:H24)","v":0},"Prima della eventuale ulteriore riallocazione dei conguagli"]
[null,"Rcvol ",{"$f":"(C53)","v":0},{"$f":"(D53)","v":0},{"$f":"(E53)*VLOOKUP(\"da t-2 a t\",PINF,E18 - 2011,FALSE)","v":0},0,0,0]
[null,"RcEE ",{"$f":"(C82)","v":0},{"$f":"(D82)","v":0},{"$f":"(E82)*VLOOKUP(\"da t-2 a t\",PINF,E18 - 2011,FALSE)","v":0},0,0,0]
[null,"RcWS ",{"$f":"(C102)","v":0},{"$f":"(D102)","v":0},{"$f":"(E102)*VLOOKUP(\"da t-2 a t\",PINF,E18 - 2011,FALSE)","v":0},0,0,0]
[null,"RcERC ",{"$f":"(C123)","v":0},{"$f":"(D123)","v":0},{"$f":"(E123)*VLOOKUP(\"da t-2 a t\",PINF,E18 - 2011,FALSE)","v":0},0,0,0]
[null,"RcALTRO ",{"$f":"(C158)","v":0},{"$f":"(D158)","v":0},{"$f":"(E158)*VLOOKUP(\"da t-2 a t\",PINF,E18 - 2011,FALSE)","v":0},0,0,0]
[]
[]
[]
[null,"Componenti calcolate",2024,2025,2026,2027,2028,2029]
[null,"RcTOTa",null,null,{"$f":"+SUM(E30:E34)+SUM(E288)*VLOOKUP(\"da t-2 a t\",PINF,E28-2011,FALSE)","v":0},{"$f":"+SUM(F30:F34)+SUM(F288)*VLOOKUP(\"da t-2 a t\",PINF,F28-2011,FALSE)","v":0},{"$f":"+SUM(G30:G34)","v":0},{"$f":"+SUM(H30:H34)","v":0}]
[null,"Rcvol ",null,null,{"$f":"(E51)*VLOOKUP(\"da t-2 a t\",PINF,E$28 - 2011,FALSE)","v":0},0,0,0]
[null,"RcEE ",null,null,{"$f":"(E80)*VLOOKUP(\"da t-2 a t\",PINF,E$28 - 2011,FALSE)","v":0},0,0,0]
[null,"RcWS ",null,null,{"$f":"(E100)*VLOOKUP(\"da t-2 a t\",PINF,E$28 - 2011,FALSE)","v":0},0,0,0]
[null,"RcERC ",null,null,{"$f":"(E121)*VLOOKUP(\"da t-2 a t\",PINF,E$28 - 2011,FALSE)","v":0},0,0,0]
[null,"RcALTRO ",null,null,{"$f":"(E156)*VLOOKUP(\"da t-2 a t\",PINF,E$28 - 2011,FALSE)","v":0},0,0,0]
[]
[]
[]
[]
[]
["comma 28.1 All. A","RCvol - recupero scostamento tariffe e volumi"]
[]
[]
[]
[null,null,2024,2025,2026,2027,2028,2029]
[null,"Ja-2 ai fini del calcolo dei conguagli",null,null,{"$f":"+IF(Dati_Anni_precedenti!E6=\"\",Dati_Anni_precedenti!E5,Dati_Anni_precedenti!E6)","v":0},{"$f":"+IF(Dati_Anni_precedenti!F6=\"\",Dati_Anni_precedenti!F5,Dati_Anni_precedenti!F6)","v":0},{"$f":"+Piano_Tariffario!G66","v":""},{"$f":"+Piano_Tariffario!H66","v":""}]
[null,"tarif2023*vscala-4 ",null,null,{"$f":"+SUM(Dati_Anni_precedenti!E18:E20)","v":0},{"$f":"+SUM(Dati_Anni_precedenti!F18:F20)","v":0},{"$f":"+F46","v":0},{"$f":"+G46","v":0}]
[null,"Ja-2*tarif2023/vscala-4 (minuendo, include dettaglio, ingrosso, ind)",null,null,{"$f":"+IFERROR(E45*E46,0)","v":0},0,0,0]
[null,"(tarifa-2vscala-2) (sottraendo, include dettaglio, ingrosso, ind)",null,null,{"$f":"SUM(Ricavi_bacini_tariffari!P:P)+SUM(Vendita_Servizi_ingrosso!AK:AK)+Ricavi_Coll_Dep!D27","v":0},{"$f":"SUM(Ricavi_bacini_tariffari!Q:Q)+SUM(Vendita_Servizi_ingrosso!AL:AL)+Ricavi_Coll_Dep!E27","v":0},{"$f":"+F48","v":0},{"$f":"+G48","v":0}]
[null,"Rcvol (per dettaglio, ingrosso, ind)",null,null,{"$f":"IF(E56=\"manca il dato di input\",0,E47-E48)","v":0},0,0,0]
[]
[null,"Rcvol da calcolo",null,null,{"$f":"IF(E56=\"manca il dato di input\",0,E47-E48)","v":0},0,0,0]
[null,"Rcvol  (eventuale detrazione da \"Input per calcoli finali\")",null,null,{"$f":"Input_per_calcoli_finali!K177","v":0},{"$f":"Input_per_calcoli_finali!L177","v":0},{"$f":"Input_per_calcoli_finali!M177","v":0},{"$f":"Input_per_calcoli_finali!N177","v":0}]
[null,"Rcvola ",{"$f":"+Dati_Anni_precedenti!E65","v":0},{"$f":"+Dati_Anni_precedenti!F65","v":0},{"$f":"+E51-E52","v":0},{"$f":"+F51-F52","v":0}]
[]
[]
[null,"controllo dati anni precedenti",null,null,{"$f":"+IF(E46=0,\"manca il dato di input\", \"ok\")","v":"manca il dato di input"},"manca il dato di input","manca il dato di input","manca il dato di input"]
[]
[]
[]
[]
[]
[]
[]
["comma 28.1 All. A","RCEE - recupero scostamento costi di energia elettrica"]
[]
[]
[]
[null,null,2024,2025,2026,2027,2028,2029]
[null,"COeff,a-2EE",null,null,{"$f":"+SUM(Dati_conto_economico!C47:C48,Dati_conto_economico!F47:F48)","v":0},{"$f":"+SUM(Dati_conto_economico!I47:I48,Dati_conto_economico!L47:L48)","v":0},{"$f":"+F69","v":0},{"$f":"+G69","v":0}]
[null,"COmedio,a-2EE / dal 2026: Benchmarka-2EE",null,null,{"$f":"+VLOOKUP(E68-2,TT_parametri!$AU$29:$AV$46,2,FALSE)","v":0.215},{"$f":"+VLOOKUP(F68-2,TT_parametri!$AU$29:$AV$46,2,FALSE)","v":0.221},{"$f":"+VLOOKUP(G68-2,TT_parametri!$AU$29:$AV$46,2,FALSE)","v":"da individuare"},{"$f":"+VLOOKUP(H68-2,TT_parametri!$AU$29:$AV$46,2,FALSE)","v":"da individuare"}]
[]
[null,"kWh a-2 (acquistati e consumati)",{"$f":"+Opex!C169","v":0},{"$f":"+Opex!D169","v":0},{"$f":"+Opex!E169","v":0},{"$f":"+Opex!F169","v":0},{"$f":"+Opex!G169","v":0},{"$f":"+Opex!H169","v":0}]
[null,"kWhaut a-2 (autoprodotti e consumati)",{"$f":"+Opex!C170","v":0},{"$f":"+Opex!D170","v":0},{"$f":"+Opex!E170","v":0},{"$f":"+Opex!F170","v":0},{"$f":"+Opex!G170","v":0},{"$f":"+Opex!H170","v":0}]
[null,"SkWh a-n/4 / dal 2026: S(kWh+kWhAut)a-n/4",null,null,{"$f":"+Opex!E171","v":0},{"$f":"+Opex!F171","v":0},{"$f":"+Opex!G171","v":0},{"$f":"+Opex!H171","v":0}]
[null,"COmedio,a-2EE * kWha-2*1,1"]
[null,"Δrisparmio / dal 2026: Δrisparmionew ",null,null,{"$f":"+IFERROR(IF(E69>=E70*E72,(E74-(E73+E72))*(MIN(E69/E72,E70*1.15)),(E74-(E73+E72))*0.5*(E69/E72+E70)),0)","v":0},{"$f":"+IFERROR(IF(F69>=F70*F72,(F74-(F73+F72))*(MIN(F69/F72,F70*1.15)),(F74-(F73+F72))*0.5*(F69/F72+F70)),0)","v":0},{"$f":"+IFERROR(IF(G69>=G70*G72,(G74-(G73+G72))*(MIN(G69/G72,G70*1.15)),(G74-(G73+G72))*0.5*(G69/G72+G70)),0)","v":0},0]
[null,"γEE / dal 2026: γEEnew",null,null,{"$f":"+IF(E76<0,0,0.25)","v":0.25},0.25,0.25,0.25]
[null,"COEEa-2",null,null,{"$f":"Dati_Anni_precedenti!E43","v":0},{"$f":"Dati_Anni_precedenti!F43","v":0},{"$f":"+Opex!E179","v":0},{"$f":"+Opex!F179","v":0}]
[]
[null,"RcEE da calcolo",null,null,{"$f":"+IFERROR(IF(E69>=(E70*E72),\n         (MIN(E69,E70*E72*1.15)+(MIN(E69,E70*E72*1.15)/E72)*E73+E77*E76)-E78,\n         (0.5*(E69+E70*E72)+(0.5*(E69+E70*E72)/E72)*E73+E77*E76)-E78),0)","v":0},{"$f":"+IFERROR(IF(F69>=(F70*F72),\n         (MIN(F69,F70*F72*1.15)+(MIN(F69,F70*F72*1.15)/F72)*F73+F77*F76)-F78,\n         (0.5*(F69+F70*F72)+(0.5*(F69+F70*F72)/F72)*F73+F77*F76)-F78),0)","v":0},0,0]
[null,"RcEE  (eventuale detrazione da \"Input per calcoli finali\")",null,null,{"$f":"+Input_per_calcoli_finali!K181","v":0},{"$f":"+Input_per_calcoli_finali!L181","v":0},{"$f":"+Input_per_calcoli_finali!M181","v":0},{"$f":"+Input_per_calcoli_finali!N181","v":0}]
[null,"RcEEa ",{"$f":"+Dati_Anni_precedenti!E66","v":0},{"$f":"+Dati_Anni_precedenti!F66","v":0},{"$f":"+E80-E81","v":0},0,0,0]
[]
[]
[null,"controllo dati anni precedenti",null,null,{"$f":"+IF(OR(E72=0,Dati_Anni_precedenti!E43=\"\"),\"manca il dato di input\", \"ok\")","v":"manca il dato di input"},{"$f":"+IF(OR(F72=0,Dati_Anni_precedenti!F43=\"\"),\"manca il dato di input\", \"ok\")","v":"manca il dato di input"},"ok","ok"]
[]
[]
[]
[]
[]
[]
[]
["comma 28.1 All. A","RCws - recupero scostamento costi all'ingrosso"]
[]
[]
[]
[null,null,2024,2025,2026,2027,2028,2029]
[null,"Cows,jeff,a-2",null,null,{"$f":"+SUMIF(Acquisto_Servizi_ingrosso!$F:$F,E97-2,Acquisto_Servizi_ingrosso!$W:$W)","v":0},{"$f":"+SUMIF(Acquisto_Servizi_ingrosso!$F:$F,F97-2,Acquisto_Servizi_ingrosso!$W:$W)","v":0},{"$f":"+Opex!E192","v":0},{"$f":"+Opex!E192","v":0}]
[null,"Cows,ja-2",null,null,{"$f":"+Dati_Anni_precedenti!E44","v":0},{"$f":"+Dati_Anni_precedenti!F44","v":0},{"$f":"+Opex!E192","v":0},{"$f":"+Opex!F192","v":0}]
[null,"Rcws da calcolo",null,null,{"$f":"+E98-E99","v":0},0,0,0]
[null,"Rcws  (eventuale detrazione da \"Input per calcoli finali\")",null,null,{"$f":"+Input_per_calcoli_finali!K185","v":0},{"$f":"+Input_per_calcoli_finali!L185","v":0},{"$f":"+Input_per_calcoli_finali!M185","v":0},{"$f":"+Input_per_calcoli_finali!N185","v":0}]
[null,"Rcwsa ",{"$f":"+Dati_Anni_precedenti!E67","v":0},{"$f":"+Dati_Anni_precedenti!F67","v":0},{"$f":"+E100-E101","v":0},0,0,0]
[]
[]
[]
[]
[]
[]
[]
[]
["comma 28.1 All. A","RCERC - recupero scostamento componente ERC"]
[]
[]
[]
[null,null,2024,2025,2026,2027,2028,2029]
[null,"ERCala-2 effettivo",null,null,{"$f":"+SUM(Dati_conto_economico!D98:D103)","v":0},{"$f":"+SUM(Dati_conto_economico!J98:J103)","v":0},{"$f":"+F116","v":0},{"$f":"+G116","v":0}]
[null,"ERCala-2",null,null,{"$f":"+Dati_Anni_precedenti!E60","v":0},{"$f":"+Dati_Anni_precedenti!F60","v":0},{"$f":"+ERC!E145","v":0},{"$f":"+ERC!F145","v":0}]
[null,"ERCQTa-2 effettivo",null,null,{"$f":"SUMIFS('PdI-crono_ges'!O:O,'PdI-crono_ges'!J:J,\"RES\",'PdI-crono_ges'!K:K,\"lettera a)\")+SUMIFS('PdI-crono_ges'!O:O,'PdI-crono_ges'!J:J,\"ENV\",'PdI-crono_ges'!K:K,\"lettera a)\")+SUMIFS('PdI-crono_ges'!O:O,'PdI-crono_ges'!J:J,\"RES\",'PdI-crono_ges'!K:K,\"lettera b)\")+SUMIFS('PdI-crono_ges'!O:O,'PdI-crono_ges'!J:J,\"ENV\",'PdI-crono_ges'!K:K,\"lettera b)\")+SUMIFS('PdI-crono_ges'!O:O,'PdI-crono_ges'!J:J,\"RES\",'PdI-crono_ges'!K:K,\"lettera c) 477/2023/R/IDR\")+SUMIFS('PdI-crono_ges'!O:O,'PdI-crono_ges'!J:J,\"ENV\",'PdI-crono_ges'!K:K,\"lettera c) 477/2023/R/IDR\")","v":0},{"$f":"SUMIFS('PdI-crono_ges'!S:S,'PdI-crono_ges'!J:J,\"RES\",'PdI-crono_ges'!K:K,\"lettera a)\")+SUMIFS('PdI-crono_ges'!S:S,'PdI-crono_ges'!J:J,\"ENV\",'PdI-crono_ges'!K:K,\"lettera a)\")+SUMIFS('PdI-crono_ges'!S:S,'PdI-crono_ges'!J:J,\"RES\",'PdI-crono_ges'!K:K,\"lettera b)\")+SUMIFS('PdI-crono_ges'!S:S,'PdI-crono_ges'!J:J,\"ENV\",'PdI-crono_ges'!K:K,\"lettera b)\")+SUMIFS('PdI-crono_ges'!S:S,'PdI-crono_ges'!J:J,\"RES\",'PdI-crono_ges'!K:K,\"lettera c) 477/2023/R/IDR\")+SUMIFS('PdI-crono_ges'!S:S,'PdI-crono_ges'!J:J,\"ENV\",'PdI-crono_ges'!K:K,\"lettera c) 477/2023/R/IDR\")","v":0},{"$f":"SUMIFS('PdI-crono_ges'!V:V,'PdI-crono_ges'!$J:$J,\"RES\")+SUMIFS('PdI-crono_ges'!V:V,'PdI-crono_ges'!$J:$J,\"ENV\")","v":0},{"$f":"SUMIFS('PdI-crono_ges'!W:W,'PdI-crono_ges'!$J:$J,\"RES\")+SUMIFS('PdI-crono_ges'!W:W,'PdI-crono_ges'!$J:$J,\"ENV\")","v":0}]
[null,"ERCQTa-2",null,null,{"$f":"+Dati_Anni_precedenti!E61+Dati_Anni_precedenti!E62+Dati_Anni_precedenti!E63","v":0},{"$f":"+Dati_Anni_precedenti!F61+Dati_Anni_precedenti!F62+Dati_Anni_precedenti!F63","v":0},{"$f":"ERC!E203","v":0},{"$f":"ERC!F203","v":0}]
[]
[null,"RcERC da calcolo",null,null,{"$f":"+E116-E117+MIN(E118-E119,0)","v":0},0,0,0]
[null,"RcERC  (eventuale detrazione da \"Input per calcoli finali\")",null,null,{"$f":"+Input_per_calcoli_finali!K189","v":0},{"$f":"+Input_per_calcoli_finali!L189","v":0},{"$f":"+Input_per_calcoli_finali!M189","v":0},{"$f":"+Input_per_calcoli_finali!N189","v":0}]
[null,"RcERCa ",{"$f":"+Dati_Anni_precedenti!E68","v":0},{"$f":"+Dati_Anni_precedenti!F68","v":0},{"$f":"+E121-E122","v":0},0,0,0]
[]
[]
[]
[]
[]
[]
[]
[]
["comma 28.1 All. A","RCALTRO - recupero altri scostamenti"]
[]
[]
[]
[null,null,2024,2025,2026,2027,2028,2029]
[null,"RcaAttiv b",{"$f":"+C180","v":0},0,{"$f":"E180","v":0},0,0,0]
[null,"Rcares",{"$f":"C195","v":0},{"$f":"D195","v":0},{"$f":"E195","v":0},0,0,0]
[null,"RcaARERA",{"$f":"C211","v":0},{"$f":"D211","v":0},{"$f":"E211","v":0},0,0,0]
[null,"Costo forniture all’ingrosso transfrontaliere",{"$f":"+Dati_Anni_precedenti!E73","v":0},{"$f":"+Dati_Anni_precedenti!F73","v":0},{"$f":"+Altri_dati_eco_fin!E53","v":0},{"$f":"+Altri_dati_eco_fin!F53","v":0}]
[null,"RcIP (valori a moneta a-2, include eventuale FoNInoninv)",{"$f":"+Dati_Anni_precedenti!E74","v":0},{"$f":"+Dati_Anni_precedenti!F74","v":0},{"$f":"-Altri_dati_eco_fin!E55","v":0},{"$f":"-Altri_dati_eco_fin!F55+SUM(Conferma_investimenti!AY:AY)","v":0}]
[null,"Costi per variazioni sistemiche / eventi eccezionali",{"$f":"+Dati_Anni_precedenti!E75","v":0},{"$f":"+Dati_Anni_precedenti!F75","v":0},{"$f":"+Altri_dati_eco_fin!E50","v":0},{"$f":"+Altri_dati_eco_fin!F50","v":0}]
[null,"Rimb335a",{"$f":"+Dati_Anni_precedenti!E78","v":0},{"$f":"+Dati_Anni_precedenti!F78","v":0},{"$f":"+Altri_dati_eco_fin!E54","v":0},{"$f":"+Altri_dati_eco_fin!F54","v":0}]
[null,"Rcaappr ",{"$f":"+Dati_Anni_precedenti!E79","v":0},{"$f":"+Dati_Anni_precedenti!F79","v":0},{"$f":"Input_per_calcoli_finali!K78","v":0},{"$f":"Input_per_calcoli_finali!L78","v":0},{"$f":"Input_per_calcoli_finali!M78","v":0},{"$f":"Input_per_calcoli_finali!N78","v":0}]
[null,"DOpexQC",{"$f":"C227","v":0},{"$f":"D227","v":0},{"$f":"E227","v":0},0,0,0]
[null,"DOpexQT",{"$f":"C243","v":0},{"$f":"D243","v":0},{"$f":"E243","v":0},0,0,0]
[null,"DOpsocial",{"$f":"+C259","v":0},{"$f":"+D259","v":0},{"$f":"+E259","v":0},0,0,0]
[null,"DOpmis",{"$f":"C273","v":0},{"$f":"D273","v":0},{"$f":"E273","v":0},0,0,0]
[null,"Penalità RQSII - Delibera 277/2025/R/IDR",{"$f":"+Dati_Anni_precedenti!E83","v":0},{"$f":"+Dati_Anni_precedenti!F83","v":0},{"$f":"-Altri_dati_eco_fin!E63","v":0},{"$f":"-Altri_dati_eco_fin!F63","v":0}]
[null,"Penalità RQTI - Delibera 225/2025/R/IDR",{"$f":"+Dati_Anni_precedenti!E84","v":0},{"$f":"+Dati_Anni_precedenti!F84","v":0},{"$f":"-Altri_dati_eco_fin!E64","v":0},{"$f":"-Altri_dati_eco_fin!F64","v":0}]
[null,"Recupero volumi 2021 / 2023",null,{"$f":"+Dati_Anni_precedenti!F87","v":0},null,{"$f":"+F301","v":0}]
[null,"Recupero energia elettrica 2021 / 2023",null,{"$f":"+Dati_Anni_precedenti!F88","v":0},null,{"$f":"+F322","v":0}]
[null,"Recupero straordinario inflazione",null,{"$f":"+Dati_Anni_precedenti!F89","v":0},null,{"$f":"$F$340","v":0}]
[]
[]
[null,"RcaAltro da calcolo",null,null,{"$f":"+SUM(E137:E150)","v":0},{"$f":"+SUM(F137:F153)","v":0},{"$f":"+SUM(G137:G139,G144:G148)","v":0},{"$f":"+SUM(H137:H139,H144:H148)","v":0}]
[null,"RcaAltro  (eventuale detrazione da \"Input per calcoli finali\")",null,null,{"$f":"+Input_per_calcoli_finali!K193","v":0},{"$f":"+Input_per_calcoli_finali!L193","v":0},{"$f":"+Input_per_calcoli_finali!M193","v":0},{"$f":"+Input_per_calcoli_finali!N193","v":0}]
[null,"RcaAltro ",{"$f":"+SUM(C137:C150)","v":0},{"$f":"+SUM(D137:D153)","v":0},{"$f":"+E156-E157","v":0},0,0,0]
[]
[]
[]
[]
[]
[]
[]
[null,"RCattività b "]
[]
[]
[]
[null,null,2024,2025,2026,2027,2028,2029]
[null,"%breg",null,null,0.5,0.5,0.5,0.5]
[null,"Rb1a-2",null,null,{"$f":"+VRG_Teta!E111","v":0},{"$f":"+VRG_Teta!F111","v":0},{"$f":"+VRG_Teta!G111","v":0},{"$f":"+VRG_Teta!H111","v":0}]
[null,"Cb1a-2",null,null,{"$f":"+VRG_Teta!E140","v":0},{"$f":"+VRG_Teta!F140","v":0},{"$f":"+VRG_Teta!G140","v":0},{"$f":"+VRG_Teta!H140","v":0}]
[null,"γb",null,null,0.5,0.5,0.5,0.5]
[null,"γb1com",null,null,{"$f":"+Affidamento!E16","v":0},{"$f":"+Affidamento!F16","v":0},{"$f":"+Affidamento!G16","v":0},{"$f":"+Affidamento!H16","v":0}]
[null,"Rb2a-2",null,null,{"$f":"VRG_Teta!E109","v":0},{"$f":"VRG_Teta!F109","v":0},{"$f":"VRG_Teta!G109","v":0},{"$f":"VRG_Teta!H109","v":0}]
[null,"Cb2a-2",null,null,{"$f":"VRG_Teta!E138","v":0},{"$f":"VRG_Teta!F138","v":0},{"$f":"VRG_Teta!G138","v":0},{"$f":"VRG_Teta!H138","v":0}]
[null,"Rcab1",{"$f":"+Dati_Anni_precedenti!E69","v":0},{"$f":"+Dati_Anni_precedenti!F69","v":0},{"$f":"+IF((E172+E176-E173-E177)>0,E171*(1+E175)*(E172-E173),0)","v":0},{"$f":"+IF((F172+F176-F173-F177)>0,F171*(1+F175)*(F172-F173),0)","v":0},{"$f":"+IF((G172+G176-G173-G177)>0,G171*(G172-G173),0)","v":0},0]
[null,"Rcab2",{"$f":"+Dati_Anni_precedenti!E70","v":0},{"$f":"+Dati_Anni_precedenti!F70","v":0},{"$f":"+IF((E172+E176-E173-E177)>0,(E171*(1+E174))*(E176-E177),0)","v":0},{"$f":"+IF((F172+F176-F173-F177)>0,(F171*(1+F174))*(F176-F177),0)","v":0},{"$f":"+IF((G172+G176-G173-G177)>0,(G171*(1+G174))*(G176-G177),0)","v":0},{"$f":"+IF((H172+H176-H173-H177)>0,(H171*(1+H174))*(H176-H177),0)","v":0}]
[null,"RcaAttività b",{"$f":"+C178+C179","v":0},{"$f":"+D178+D179","v":0},{"$f":"+IF((E172+E176-E173-E177)>0,E171*(1+E175)*(E172-E173)+(E171*(1+E174))*(E176-E177),0)","v":0},{"$f":"+IF((F172+F176-F173-F177)>0,F171*(1+F175)*(F172-F173)+(F171*(1+F174))*(F176-F177),0)","v":0},{"$f":"+IF((G172+G176-G173-G177)>0,G171*(1+G175)*(G172-G173)+(G171*(1+G174))*(G176-G177),0)","v":0},{"$f":"+IF((H172+H176-H173-H177)>0,H171*(1+H175)*(H172-H173)+(H171*(1+H174))*(H176-H177),0)","v":0}]
[]
[]
[]
[]
[]
[]
[]
[null,"RCres "]
[]
[]
[]
[null,null,2024,2025,2026,2027,2028,2029]
[null,"Oneri locali a-2",null,null,{"$f":"+SUM(Dati_conto_economico!E98:E103)+SUM(Dati_conto_economico!F98:F103)","v":0},{"$f":"SUM(Dati_conto_economico!K98:K103)+SUM(Dati_conto_economico!L98:L103)","v":0},{"$f":"+F193","v":0},{"$f":"+G193","v":0}]
[null,"COresa-2 (al lordo dei contributi)",null,null,{"$f":"Dati_Anni_precedenti!E52+Dati_Anni_precedenti!E53","v":0},{"$f":"Dati_Anni_precedenti!F52+Dati_Anni_precedenti!F53","v":0},{"$f":"Opex!E309","v":0},{"$f":"Opex!F309","v":0}]
[null,"Rcares",{"$f":"+Dati_Anni_precedenti!E71","v":0},{"$f":"+Dati_Anni_precedenti!F71","v":0},{"$f":"+E193-E194","v":0},0,0,0]
[]
[]
[]
[]
[]
[]
[]
[]
[null,"RCARERA  - Recupero COARERA"]
[]
[]
[]
[null,null,2024,2025,2026,2027,2028,2029]
[null,"COa-2ARERA,effettivo",null,null,{"$f":"+Altri_dati_eco_fin!E49","v":0},{"$f":"+Altri_dati_eco_fin!F49","v":0},{"$f":"+F209","v":0},{"$f":"+G209","v":0}]
[null,"COa-2ARERA",null,null,{"$f":"+Dati_Anni_precedenti!E50","v":0},{"$f":"+Dati_Anni_precedenti!F50","v":0},{"$f":"+Opex!E279","v":0},{"$f":"+Opex!F279","v":0}]
[null,"RcaARERA",{"$f":"+Dati_Anni_precedenti!E72","v":0},{"$f":"+Dati_Anni_precedenti!F72","v":0},{"$f":"+E209-E210","v":0},0,0,0]
[]
[]
[]
[]
[]
[]
[]
[]
[null,"DOpexQC - Recupero (a vantaggio utenza) OpexQC"]
[]
[]
[]
[null,null,2024,2025,2026,2027,2028,2029]
[null,"OpexQC effettivamente sostenuti dal gestore",null,null,{"$f":"Altri_dati_eco_fin!E76+Altri_dati_eco_fin!E77+Altri_dati_eco_fin!E78","v":0},{"$f":"Altri_dati_eco_fin!F76+Altri_dati_eco_fin!F77+Altri_dati_eco_fin!F78","v":0},{"$f":"+Opex!E115","v":0},{"$f":"+Opex!F115","v":0}]
[null,"Opexa-2QC",null,null,{"$f":"+Dati_Anni_precedenti!E37+Dati_Anni_precedenti!E38+Dati_Anni_precedenti!E39","v":0},{"$f":"+Dati_Anni_precedenti!F37+Dati_Anni_precedenti!F38+Dati_Anni_precedenti!F39","v":0},{"$f":"+Opex!E115","v":0},{"$f":"+Opex!F115","v":0}]
[null,"DOpexQC",{"$f":"+Dati_Anni_precedenti!E80","v":0},{"$f":"+Dati_Anni_precedenti!F80","v":0},{"$f":"+MIN(E225-E226,0)","v":0},0,0,0]
[]
[]
[]
[]
[]
[]
[]
[]
[null,"DOpexQT - Recupero (a vantaggio utenza) OpexQT"]
[]
[]
[]
[null,null,2024,2025,2026,2027,2028,2029]
[null,"OpexQT effettivamente sostenuti dal gestore",null,null,{"$f":"SUMIFS('PdI-crono_ges'!O:O,'PdI-crono_ges'!J:J,\"Non ERC\",'PdI-crono_ges'!K:K,\"lettera a)\")+SUMIFS('PdI-crono_ges'!O:O,'PdI-crono_ges'!J:J,\"Non ERC\",'PdI-crono_ges'!K:K,\"lettera b)\")+SUMIFS('PdI-crono_ges'!O:O,'PdI-crono_ges'!J:J,\"Non ERC\",'PdI-crono_ges'!K:K,\"lettera c) 477/2023/R/IDR\")","v":0},{"$f":"SUMIFS('PdI-crono_ges'!S:S,'PdI-crono_ges'!J:J,\"Non ERC\",'PdI-crono_ges'!K:K,\"lettera a)\")+SUMIFS('PdI-crono_ges'!S:S,'PdI-crono_ges'!J:J,\"Non ERC\",'PdI-crono_ges'!K:K,\"lettera b)\")+SUMIFS('PdI-crono_ges'!S:S,'PdI-crono_ges'!J:J,\"Non ERC\",'PdI-crono_ges'!K:K,\"lettera c) 477/2023/R/IDR\")","v":0},{"$f":"+SUMIFS('PdI-crono_ges'!V:V,'PdI-crono_ges'!J:J,\"Non ERC\")","v":0},{"$f":"+SUMIFS('PdI-crono_ges'!W:W,'PdI-crono_ges'!J:J,\"Non ERC\")","v":0}]
[null,"Opexa-2QT",null,null,{"$f":"+Dati_Anni_precedenti!E34+Dati_Anni_precedenti!E35+Dati_Anni_precedenti!E36","v":0},{"$f":"+Dati_Anni_precedenti!F34+Dati_Anni_precedenti!F35+Dati_Anni_precedenti!F36","v":0},{"$f":"+Opex!E99","v":0},{"$f":"+Opex!F99","v":0}]
[null,"DOpexQT",{"$f":"+Dati_Anni_precedenti!E81","v":0},{"$f":"+Dati_Anni_precedenti!F81","v":0},{"$f":"+MIN(E241-E242,0)","v":0},0,0,0]
[]
[]
[]
[null,null,null,null,null,null,null,null,"                             ",null,"                     "]
[null,null,"         ","               ",null,null,null,null,"                 "]
[null,null,"                                                                                                       ","                                                     "]
[null,null,null,"                           "]
[]
[null,"DOpsocial - Recupero Opsocial"]
[]
[]
[]
[null,null,2024,2025,2026,2027,2028,2029]
[null,"Opsocial effettivamente sostenuti dal gestore",null,null,{"$f":"SUM(Altri_dati_eco_fin!E81:E83)","v":0},{"$f":"SUM(Altri_dati_eco_fin!F81:F83)","v":0},{"$f":"+Opex!E129","v":0},{"$f":"+Opex!F129","v":0}]
[null,"Opsociala-2",null,null,{"$f":"+Dati_Anni_precedenti!E40+Dati_Anni_precedenti!E41","v":0},{"$f":"+Dati_Anni_precedenti!F40+Dati_Anni_precedenti!F41","v":0},{"$f":"+Opex!E129","v":0},{"$f":"+Opex!F129","v":0}]
[null,"DOpsocial",{"$f":"+Dati_Anni_precedenti!E82","v":0},{"$f":"+Dati_Anni_precedenti!F82","v":0},{"$f":"+E257-E258","v":0},0,0,0]
[]
[]
[]
[]
[]
[]
[null,"DOpmis - Recupero Opmis"]
[]
[]
[]
[null,null,2024,2025,2026,2027,2028,2029]
[null,"Opmis effettivamente sostenuti dal gestore",null,null,{"$f":"Altri_dati_eco_fin!E84","v":0},{"$f":"Altri_dati_eco_fin!F84","v":0},{"$f":"+Opex!E141","v":0},{"$f":"+Opex!F141","v":0}]
[null,"Opa-2mis",null,null,{"$f":"+Dati_Anni_precedenti!E42","v":0},{"$f":"+Dati_Anni_precedenti!F42","v":0},{"$f":"+Opex!E141","v":0},{"$f":"+Opex!F141","v":0}]
[null,"DOpmis",{"$f":"+Dati_Anni_precedenti!E85","v":0},{"$f":"+Dati_Anni_precedenti!F85","v":0},{"$f":"+E271-E272","v":0},0,0,0]
[]
[]
[]
[]
[]
[]
["Art. 29 All. A","Altre regole per i conguagli"]
[]
[]
[]
[null,null,2024,2025,2026,2027,2028,2029]
[null,"RCARC - art. 29 lett a) MTI-4"]
[null,"RCARC - art. 29 lett b) MTI-4"]
[null,"RCARC - art. 29 lett c) MTI-4"]
[null,"RCARC - art. 29 MTI-4",{"$f":"+Dati_Anni_precedenti!E86","v":0},{"$f":"+Dati_Anni_precedenti!F86","v":0}]
[]
[]
[]
[]
[]
[]
[]
["comma 28.1 All. A","Integrazioni componenti a conguaglio: recupero volumi"]
[]
[]
[]
[null,null,2024,2025,2026,2027,2028,2029]
[null,"Recupero volumi 2021 / 2023",null,{"$f":"+Dati_Anni_precedenti!F87","v":0},null,{"$f":"+Altri_dati_eco_fin!F57","v":0}]
[]
[]
[]
[]
[]
[]
[]
[]
[]
["comma 28.3 lett. a) All. A","Integrazioni componenti a conguaglio: recupero energia elettrica"]
[]
[]
[]
[null,null,2024,2025,2026,2027,2028,2029]
[null,"Coee,consuntivo 2023",null,null,null,{"$f":"+Dati_tecnici!G8","v":0},null,null,null,null,null,"anno","costo medio EE per calcolo COEE","u.d.m."]
[null,"Kwhconsuntivo 2023",null,null,null,{"$f":"+Dati_tecnici!G5","v":0},null,null,null,null,null,"639/2023",{"$f":"TT_parametri!$AV$41","v":0.24360000000000001},{"$f":"+TT_parametri!AW31","v":"€/KWh"}]
[null,"minuendoa-2",null,null,null,{"$f":"+MIN(F316,F317*M318*1.1)","v":0},null,null,null,null,null,2023,{"$f":"TT_parametri!$AV$41","v":0.24360000000000001},{"$f":"+TT_parametri!AW32","v":"€/KWh"}]
[null,"Coee,preconsuntivo 2023",null,null,null,{"$f":"+SUM(Dati_Anni_precedenti!F104:F107)","v":0}]
[null,"Kwhpreconsuntivo 2023",null,null,null,{"$f":"Dati_Anni_precedenti!$F$102","v":0}]
[null,"sottraendoa-2",null,null,null,{"$f":"+MIN(F319,F320*M317*1.1)","v":0}]
[null,"Recupero energia elettrica 2021 / 2023",null,{"$f":"+Dati_Anni_precedenti!F88","v":0},null,{"$f":"+IF(F325=\"manca il dato di input\",0,F318-F321)","v":0}]
[]
[]
[null,"controllo dati anni precedenti",null,null,null,{"$f":"+IF(AND(F318=0,F321=0),\"OK\",IF(OR(F318=0,F321=0),\"manca il dato di input\", \"ok\"))","v":"OK"}]
[]
[]
[]
[]
[]
[]
[]
["comma 28.3 lett. b) All. A","Integrazioni componenti a conguaglio: recupero straordinario inflazione"]
[]
[]
[]
[null,null,2024,2025,2026,2027,2028,2029]
[null,"Costi operativi e conguagli 2025",null,null,null,{"$f":"Altri_dati_eco_fin!F58","v":0}]
[null,"sottraendoa-2",null,null,null,{"$f":"+F338*1.02","v":0}]
[null,"Recupero straordinario inflazione",null,{"$f":"+Dati_Anni_precedenti!F89","v":0},null,{"$f":"+F339-F338","v":0}]

{"sheet":"Schema di convergenza","index":37,"n_rows":30,"n_cols":9,"rows_kept":30,"cut":false,"hidden":false,"merged":[]}
[]
["Titolo 8 MTI-4","Meccanismi di convergenza"]
[]
[null,"Schema regolatorio di convergenza"]
[]
[]
[]
[null,null,2024,2025,2026,2027,2028,2029]
[null,"Tipologia di schema adottato\nda foglio \"Input per calcoli finali\"",{"$f":"+IF(var=\"\",\"\",var)","v":""}]
[null,"Determinazione del parametro α\nda foglio \"Input per calcoli finali\"",{"$f":"+IF(incid=\"\",\"\",Input_per_calcoli_finali!F26&\": \"&incid)","v":""}]
[]
[null,"Numero delle gestioni integrate",null,null,{"$f":"+COUNTIFS(Info_eventuali_aggregazioni!$P:$P,\">0\",Info_eventuali_aggregazioni!$L:$L,\"<=\"&E$8)","v":0},{"$f":"+COUNTIFS(Info_eventuali_aggregazioni!$P:$P,\">0\",Info_eventuali_aggregazioni!$L:$L,\"<=\"&F$8)","v":0},{"$f":"+COUNTIFS(Info_eventuali_aggregazioni!$P:$P,\">0\",Info_eventuali_aggregazioni!$L:$L,\"<=\"&G$8)","v":0},{"$f":"+COUNTIFS(Info_eventuali_aggregazioni!$P:$P,\">0\",Info_eventuali_aggregazioni!$L:$L,\"<=\"&H$8)","v":0}]
[null,"Popolazione delle gestioni integrate",null,null,{"$f":"+SUMIFS(Info_eventuali_aggregazioni!$P:$P,Info_eventuali_aggregazioni!$Q:$Q,\"Schema regolatorio di convergenza\",Info_eventuali_aggregazioni!$L:$L,\"<=\"&E$8)","v":0},{"$f":"+SUMIFS(Info_eventuali_aggregazioni!$P:$P,Info_eventuali_aggregazioni!$Q:$Q,\"Schema regolatorio di convergenza\",Info_eventuali_aggregazioni!$L:$L,\"<=\"&F$8)","v":0},{"$f":"+SUMIFS(Info_eventuali_aggregazioni!$P:$P,Info_eventuali_aggregazioni!$Q:$Q,\"Schema regolatorio di convergenza\",Info_eventuali_aggregazioni!$L:$L,\"<=\"&G$8)","v":0},{"$f":"+SUMIFS(Info_eventuali_aggregazioni!$P:$P,Info_eventuali_aggregazioni!$Q:$Q,\"Schema regolatorio di convergenza\",Info_eventuali_aggregazioni!$L:$L,\"<=\"&H$8)","v":0}]
[null,"In caso di mancate aggregazioni compilare manualmente la popolazione di riferimento"]
[null,"Eventuale istanza ai sensi del comma 32.10 MTI-4","SI",null,null,null,null,null,"compilazione manuale"]
[null,"Eventuale procedura a evidenza pubblica con indispobibilità dei requisiti infomativi minimi art. 11 Allegato A Del. 347/2025/R/Idr","SI",null,null,null,null,null,"compilazione manuale"]
[]
[null,"Ja",null,null,{"$f":"+IFERROR(D18*E21,\"Non applicabile\")","v":0},{"$f":"+IFERROR(E18*F21,\"Non applicabile\")","v":0},{"$f":"+IFERROR(F18*G21,\"Non applicabile\")","v":0},{"$f":"+IFERROR(G18*H21,\"Non applicabile\")","v":0}]
[null,"Fattore di aggregazione α",null,null,{"$f":"+IF(RIGHT($C9,2)<>\"c)\",IF(RIGHT($C10,2)=\"SI\",1.5,1),\"Non applicabile\")","v":1},{"$f":"+IF(RIGHT($C9,2)<>\"c)\",IF(RIGHT($C10,2)=\"SI\",1.5,1),\"Non applicabile\")","v":1},{"$f":"+IF(RIGHT($C9,2)<>\"c)\",IF(RIGHT($C10,2)=\"SI\",1.5,1),\"Non applicabile\")","v":1},{"$f":"+IF(RIGHT($C9,2)<>\"c)\",IF(RIGHT($C10,2)=\"SI\",1.5,1),\"Non applicabile\")","v":1}]
[null,"Fattore di incremento Y",null,null,{"$f":"IF(RIGHT($C9,2)<>\"c)\",IF($C$15=\"\",\"Compilare la cella C15\",IF($C$15=\"SI\",7%,4%)),\"Non applicabile\")","v":7.0000000000000007E-2},{"$f":"IF(RIGHT($C9,2)<>\"c)\",IF($C$15=\"\",\"Compilare la cella C15\",IF($C$15=\"SI\",6%,3.5%)),\"Non applicabile\")","v":0.06},{"$f":"IF(RIGHT($C9,2)<>\"c)\",IF($C$15=\"\",\"Compilare la cella C15\",IF($C$15=\"SI\",5%,3%)),\"Non applicabile\")","v":0.05},{"$f":"IF(RIGHT($C9,2)<>\"c)\",IF($C$15=\"\",\"Compilare la cella C15\",IF($C$15=\"SI\",4.5%,2.5%)),\"Non applicabile\")","v":4.4999999999999998E-2}]
[null,"1+αY",null,null,{"$f":"IF($C$15=\"\",\"Compilare la cella C15\",IF(RIGHT($C9,2)<>\"c)\",1+E19*E20,\"Non applicabile\"))","v":1.07},{"$f":"IF($C$15=\"\",\"Compilare la cella C15\",IF(RIGHT($C9,2)<>\"c)\",1+F19*F20,\"Non applicabile\"))","v":1.06},{"$f":"IF($C$15=\"\",\"Compilare la cella C15\",IF(RIGHT($C9,2)<>\"c)\",1+G19*G20,\"Non applicabile\"))","v":1.05},{"$f":"IF($C$15=\"\",\"Compilare la cella C15\",IF(RIGHT($C9,2)<>\"c)\",1+H19*H20,\"Non applicabile\"))","v":1.0449999999999999}]
[]
[null,"COSTOT"]
[null,"Ricavi tariffari delle gestioni integrate",null,null,{"$f":"++SUMIF(Ricavi_bacini_tariffari!C:C,\"Bacino tariffario schema di convergenza\",Ricavi_bacini_tariffari!P:P)","v":0},{"$f":"+SUMIF(Ricavi_bacini_tariffari!C:C,\"Bacino tariffario schema di convergenza\",Ricavi_bacini_tariffari!Q:Q)","v":0},{"$f":"+F24","v":0},{"$f":"+G24","v":0}]
[null,"In caso di \"Schema di convergenza\" indicare un unico bacino tariffario scrivendo \"Bacino tariffario schema di convergenza\"\n nel foglio \"Elenco Bacini Tariffari\" e compilare conseguentemente i successivi fogli dei ricavi. "]
[null,"VRGconv",null,null,{"$f":"+IF(RIGHT($C9,2)=\"c)\",E27+E29,\"Non applicabile\")","v":"Non applicabile"},{"$f":"+IF(RIGHT($C9,2)=\"c)\",F27+F29,\"Non applicabile\")","v":"Non applicabile"},{"$f":"+IF(RIGHT($C9,2)=\"c)\",G27+G29,\"Non applicabile\")","v":"Non applicabile"},{"$f":"+IF(RIGHT($C9,2)=\"c)\",H27+H29,\"Non applicabile\")","v":"Non applicabile"}]
[null,"Capexconv",null,null,{"$f":"+IF(RIGHT($C9,2)=\"c)\",MAX(0.16*E29-IF($C16=\"SI\",E28,0),0),\"Non applicabile\")","v":"Non applicabile"},{"$f":"+IF(RIGHT($C9,2)=\"c)\",MAX(0.16*F29-IF($C16=\"SI\",F28,0),0),\"Non applicabile\")","v":"Non applicabile"},{"$f":"+IF(RIGHT($C9,2)=\"c)\",MAX(0.16*G29-IF($C16=\"SI\",G28,0),0),\"Non applicabile\")","v":"Non applicabile"},{"$f":"+IF(RIGHT($C9,2)=\"c)\",MAX(0.16*H29-IF($C16=\"SI\",H28,0),0),\"Non applicabile\")","v":"Non applicabile"}]
[null,"Eventuali detrazione al Capexconv di cui al comma 33.11-bis del MTI-4",null,null,{"$f":"Affidamento!E24","v":0},{"$f":"Affidamento!F24","v":0},{"$f":"Affidamento!G24","v":0},{"$f":"Affidamento!H24","v":0}]
[null,"COSconv",null,null,{"$f":"+IF(AND(RIGHT($C9,2)=\"c)\",($C$16=\"NO\")),74*1.1*E13,IF(AND(RIGHT($C9,2)=\"c)\",($C$16=\"SI\")),MAX(116*1.1*E13-E30,0),\"Non applicabile\"))","v":"Non applicabile"},{"$f":"+IF(AND(RIGHT($C9,2)=\"c)\",($C$16=\"NO\")),74*1.1*F13,IF(AND(RIGHT($C9,2)=\"c)\",($C$16=\"SI\")),MAX(116*1.1*F13-F30,0),\"Non applicabile\"))","v":"Non applicabile"},{"$f":"+IF(AND(RIGHT($C9,2)=\"c)\",($C$16=\"NO\")),74*1.1*G13,IF(AND(RIGHT($C9,2)=\"c)\",($C$16=\"SI\")),MAX(116*1.1*G13-G30,0),\"Non applicabile\"))","v":"Non applicabile"},{"$f":"+IF(AND(RIGHT($C9,2)=\"c)\",($C$16=\"NO\")),74*1.1*H13,IF(AND(RIGHT($C9,2)=\"c)\",($C$16=\"SI\")),MAX(116*1.1*H13-H30,0),\"Non applicabile\"))","v":"Non applicabile"}]
[null,"Eventuali detrazione al COSconv di cui al comma 33.11-bis del MTI-4",null,null,{"$f":"Affidamento!E25","v":0},{"$f":"Affidamento!F25","v":0},{"$f":"Affidamento!G25","v":0},{"$f":"Affidamento!H25","v":0}]

{"sheet":"Input_per_calcoli_finali","index":38,"n_rows":249,"n_cols":18,"rows_kept":249,"cut":false,"hidden":false,"merged":[[60,6,60,7],[61,6,61,7],[85,8,85,13],[58,8,58,13],[74,8,74,13],[78,6,78,7],[138,8,138,13],[118,8,118,13],[142,5,144,5],[142,6,142,7],[110,5,111,5],[147,5,148,5],[122,5,123,5],[126,5,127,5],[130,5,131,5],[143,6,143,7],[77,5,79,5],[88,6,88,7],[89,6,89,7],[102,5,103,5],[106,5,107,5],[79,6,79,7],[77,6,77,7],[10,6,10,7],[23,6,23,7],[11,6,11,7],[51,6,51,7],[48,6,48,7],[42,6,44,7],[37,6,37,7],[49,6,49,7],[38,6,38,7],[39,6,39,7],[24,6,27,7],[29,6,33,7],[12,6,18,7],[50,6,50,7],[88,14,92,14],[203,6,203,7],[63,6,63,7],[67,6,67,7],[101,6,103,7],[105,6,107,7],[109,6,111,7],[65,6,66,7],[129,6,131,7],[90,6,90,7],[91,6,91,7],[178,6,180,7],[182,6,184,7],[158,6,160,7],[155,8,155,13],[121,6,123,7],[244,14,248,14],[204,6,204,7],[205,6,205,7],[206,6,206,7],[248,6,248,7],[218,6,218,7],[222,6,222,7],[247,6,247,7],[219,6,220,7],[221,6,221,7],[232,6,232,7],[233,6,233,7],[234,6,234,7],[223,6,223,7],[203,14,207,14],[207,6,207,7],[187,5,188,5],[191,5,192,5],[190,6,192,7],[224,6,224,7],[225,6,225,7],[179,5,180,5],[159,5,160,5],[163,5,164,5],[175,5,176,5],[183,5,184,5],[246,6,246,7],[245,6,245,7],[217,6,217,7],[92,6,92,7],[241,8,241,13],[174,6,176,7],[186,6,188,7],[171,8,171,13],[200,8,200,13],[214,8,214,13],[230,8,230,13],[125,6,127,7],[146,6,148,7],[162,6,164,7],[244,6,244,7],[98,8,98,13]]}
[null,null,null,null,null,null,null,null,null,null,null,null,null,null,{"$f":"+O55","v":""}]
[null,null,null,null,null,null,null,null,null,null,null,null,null,null,null,null,null,"Sono presenti errori"]
[null,null,null,null,null,null,null,null,null,null,null,null,null,null,null,null,null,{"$f":"+O245<>\"Compilazione conclusa!\"","v":true}]
[null,null,null,null,null,null,"Compilare - secondo l'ordine proposto - tutti i campi.\nUtilizzare lo zero, quando è richiesto di \"compilare tutti i campi\", in luogo della cella vuota"]
[]
[null,null,null,null,null,null,"Area info",null,null,null,"Area di input per i soggetti competenti",null,null,null,"Area suggerimenti"]
[]
[null,null,null,null,null,null,null,null,"Sezione \"verifica cause di esclusione dall'aggiornamento tariffario\""]
[]
[]
[null,null,null,null,null,null,"info",null,null,null,"Dati MTI-4"]
[null,null,null,null,null,"Gestione in possesso di un titolo giuridico ad esercire il servizio conforme alla normativa, ovvero gestione interessata da procedure di affidamento già avviate","Compilare il campo in colonna K-->",null,null,null,null,null,null,null,{"$f":"+IF(K12=\"\",\"<-- Iniziare da qui la compilazione\",IF(OR(K12=\"SI\",K12=\"NO\"),\"OK, continuare la compilazione\",\"Compilare correttamente il campo\"))","v":"<-- Iniziare da qui la compilazione"}]
[null,null,null,null,null,"Tipo affidamento","Assicurarsi di aver correttamente\n fornito tali informazioni nel foglio dati tecnici",null,null,null,{"$f":"+IF(AND(Affidamento!E2<>\"\",LEFT(O12,2)=\"OK\"),Affidamento!E2,\"\")","v":""},null,null,null,{"$f":"++IF(LEFT(O12,2)=\"OK\",+IF(K13<>\"\",\"OK, continuare la compilazione\",\"Compilare il campo\"),\"\")","v":""}]
[null,null,null,null,null,"Data inizio affidamento",null,null,null,null,{"$f":"+IF(OR(K13=\"\",Affidamento!E3=\"\"),\"\",Affidamento!E3)","v":""},null,null,null,{"$f":"++IF(AND(LEFT(O13,2)=\"OK\",K13=\"Affidamento del SII\"),+IF(LEN(K14)=5,\"OK, continuare la compilazione\",\"Compilare correttamente il campo. \nFormato data: gg/mm/aaaa\"),IF(K13=\"\",\"\",\"OK, compilare o continuare la compilazione (formato gg/mm/aaaa)\"))","v":""}]
[null,null,null,null,null,"Data fine affidamento",null,null,null,null,{"$f":"+IF(OR(Affidamento!E4=\"\",K14=\"\"),\"\",Affidamento!E4)","v":""},null,null,null,{"$f":"++IF(AND(LEFT(O14,2)=\"OK\",K13=\"Affidamento del SII\"),+IF(LEN(K15)=5,\"OK, continuare la compilazione\",\"Compilare correttamente il campo. \nFormato data: gg/mm/aaaa\"),IF(AND(LEFT(O14,2)=\"OK\",K13=\"Affidamento del SII\",K15=\"\"),\"Compilare il campo\",IF(LEFT(O14,2)=\"OK\",\"OK, compilare o continuare la compilazione (formato gg/mm/aaaa)\",\"\")))","v":""}]
[null,null,null,null,null,"Presenza Carta dei servizi",null,null,null,null,{"$f":"+IF(OR(Affidamento!E5=\"\",K15=\"\"),\"\",Affidamento!E5)","v":""},null,null,null,{"$f":"++IF(LEFT(O15,2)=\"OK\",+IF(OR(K16=\"SI\",K16=\"NO\"),\"OK, continuare la compilazione\",\"Compilare correttamente il campo\"),\"\")","v":""}]
[null,null,null,null,null,"Assenza di un consumo minimo impegnato per la fatturazione alle utenze",null,null,null,null,{"$f":"+IF(OR(Affidamento!E6=\"\",K16=\"\"),\"\",Affidamento!E6)","v":""},null,null,null,{"$f":"++IF(LEFT(O16,2)=\"OK\",+IF(OR(K17=\"SI\",K17=\"NO\"),\"OK, continuare la compilazione\",\"Compilare correttamente il campo\"),\"\")","v":""}]
[null,null,null,null,null,"Versamento delle componenti perequative a CSEA",null,null,null,null,{"$f":"+IF(OR(Affidamento!E7=\"\",K17=\"\"),\"\",Affidamento!E7)","v":""},null,null,null,{"$f":"++IF(LEFT(O17,2)=\"OK\",+IF(OR(K18=\"SI\",K18=\"NO\"),\"OK, continuare la compilazione\",\"Compilare correttamente il campo\"),\"\")","v":""}]
[null,null,null,null,null,"Assenza di ritardi e carenze nell’implementazione dei piani (in precedenza comunicati all’Autorità) per il superamento della mancanza dei pertinenti prerequisiti",null,null,null,null,{"$f":"+IF(OR(Affidamento!E8=\"\",K18=\"\"),\"\",Affidamento!E8)","v":""},null,null,null,{"$f":"++IF(LEFT(O18,2)=\"OK\",+IF(OR(K19=\"SI\",K19=\"NO\"),\"OK, continuare la compilazione\",\"Compilare correttamente il campo\"),\"\")","v":""}]
[]
[]
[null,null,null,null,null,null,null,null,"Sezione \"Interventi sullo schema regolatorio\" e Oneri aggiuntivi"]
[]
[null,null,null,null,null,null,"info",null,null,null,"Dati MTI-4"]
[null,null,null,null,null,"Regolazione tariffaria applicabile","Compilare i campi in colonna K-->",null,null,null,null,null,null,null,{"$f":"+IF(AND(K25=\"Matrice di schemi regolatori\",LEFT(O19,2)=\"OK\"),\"OK, continuare la compilazione\",IF(AND(LEFT(O19,2)=\"OK\",K25<>\"\"),\"Schema regolatorio di convergenza\",IF(AND(LEFT(O19,2)=\"OK\",K25=\"\"),\"<--- Continuare da qui la compilazione\",\"\")))","v":""}]
[null,null,null,null,null,"Avvio dei processi di aggregazione del gestore unico d'ambito",null,null,null,null,null,null,null,null,{"$f":"+IF(AND(LEFT(O25,2)<>\"OK\",LEFT(O25,2)<>\"<-\"),IF(K26<>\"\",\"OK, continuare la compilazione\",IF(AND(LEFT(O25,2)<>\"OK\",K25=\"Schema regolatorio di convergenza\"),\"<--- Continuare da qui la compilazione\",IF(O25=\"\",\"\",\"OK, continuare la compilazione (il campo non va compilato)\"))),\"\")","v":""}]
[null,null,null,null,null,"Eventuale tipologia di Schema di convergenza",null,null,null,null,null,null,null,null,{"$f":"+IF(OR(K25<>\"Schema regolatorio di convergenza\",LEFT(O26,4)=\"<---\"),\"\",IF(AND(K25=\"Schema regolatorio di convergenza\",LEFT(O26,2)=\"OK\",var=\"\"),\"<--- Continuare da qui la compilazione\",IF(AND(K25=\"Schema regolatorio di convergenza\",LEFT(O26,2)=\"OK\",var<>\"\"),\"OK, compilazione completata!\",\"\")))","v":""}]
[null,null,null,null,null,"Aggregazioni o variazioni dei processi tecnici significative\n(comma 5.1, comma 19.4)",null,null,null,null,null,null,null,null,{"$f":"+IF(LEFT(O25,2)<>\"OK\",\"\",IF(AND(LEFT(O25,2)=\"OK\",integr=\"\"),\"<--- Continuare da qui la compilazione\",\"OK, continuare la compilazione\"))","v":""}]
[]
[null,null,null,null,null,"Opnew - da comma 19.2 a comma 19.7","Compilare i campi delle righe 30-33 a partire dalla colonna K considerando la sola quota di costi afferenti alle nuove attività o al nuovo perimetro gestito a partire dal 2024-->",null,{"$f":"+Dati_Anni_precedenti!E33","v":0},{"$f":"+Dati_Anni_precedenti!F33","v":0},{"$f":"+K31*IF(OR(RIGHT($O$31,1)=\")\",LEFT($O$28,2)<>\"OK\",$O$31=\"\"),0,1)+K32*IF(OR(RIGHT($O$32,1)=\")\",LEFT($O$28,2)<>\"OK\",$O$32=\"\"),0,1)+K33*IF(OR(RIGHT($O$33,1)=\")\",LEFT($O$28,2)<>\"OK\",$O$33=\"\"),0,1)+K34*IF(OR(RIGHT($O$34,1)=\")\",LEFT($O$28,2)<>\"OK\",$O$34=\"\"),0,1)","v":0},{"$f":"+L31*IF(OR(RIGHT($O$31,1)=\")\",LEFT($O$28,2)<>\"OK\",$O$31=\"\"),0,1)+L32*IF(OR(RIGHT($O$32,1)=\")\",LEFT($O$28,2)<>\"OK\",$O$32=\"\"),0,1)+L33*IF(OR(RIGHT($O$33,1)=\")\",LEFT($O$28,2)<>\"OK\",$O$33=\"\"),0,1)+L34*IF(OR(RIGHT($O$34,1)=\")\",LEFT($O$28,2)<>\"OK\",$O$34=\"\"),0,1)","v":0},0,0]
[null,null,null,null,null,"di cui per \"Integrazione di gestioni significative\"\ncomma 19.3 sub a) ",null,null,null,null,null,null,null,null,{"$f":"+IF(AND(LEFT(O$28,2)=\"OK\",OR(integr=\"integrazione territorio\",integr=\"entrambi\"),OR(K31=\"\",L31=\"\",M31=\"\",N31=\"\")),\"<--- Continuare da qui la compilazione (compilare tutti i campi)\",IF(AND(LEFT(O$28,2)=\"OK\",integr<>\"integrazione territorio\",integr<>\"entrambi\"),\"OK, continuare la compilazione (il campo non va compilato)\",IF(AND(K31<>\"\",L31<>\"\",M31<>\"\",N31<>\"\",LEFT(O$28,2)=\"OK\"),\"OK, continuare la compilazione\",\"\")))","v":""}]
[null,null,null,null,null,"di cui per \"Integrazione di gestioni d'ambito con corredo informativo completo in ATO diversi\" comma 19.3 sub b) ",null,null,null,null,null,null,null,null,{"$f":"+IF(AND(LEFT(O$28,2)=\"OK\",OR(integr=\"integrazione territorio\",integr=\"entrambi\"),OR(K32=\"\",L32=\"\",M32=\"\",N32=\"\")),\"<--- Continuare da qui la compilazione (compilare tutti i campi)\",IF(AND(LEFT(O$28,2)=\"OK\",integr<>\"integrazione territorio\",integr<>\"entrambi\"),\"OK, continuare la compilazione (il campo non va compilato)\",IF(AND(K32<>\"\",L32<>\"\",M32<>\"\",N32<>\"\",LEFT(O$28,2)=\"OK\"),\"OK, continuare la compilazione\",\"\")))","v":""}]
[null,null,null,null,null,"di cui per \"Presenza di nuovi processi tecnici gestiti\" comma 19.3 sub c)",null,null,null,null,null,null,null,null,{"$f":"+IF(AND(LEFT(O$28,2)=\"OK\",OR(integr=\"integrazione processi tecnici\",integr=\"entrambi\"),OR(K33=\"\",L33=\"\",M33=\"\",N33=\"\")),\"<--- Continuare da qui la compilazione (compilare tutti i campi)\",IF(AND(LEFT(O$28,2)=\"OK\",integr<>\"integrazione processi tecnici\",integr<>\"entrambi\"),\"OK, continuare la compilazione (il campo non va compilato)\",IF(AND(K33<>\"\",L33<>\"\",M33<>\"\",N33<>\"\",LEFT(O$28,2)=\"OK\"),\"OK, continuare la compilazione\",\"\")))","v":""}]
[null,null,null,null,null,"di cui associati a \"impianti non ulteriormente procrastinabili\" comma 19.6-bis",null,null,null,null,null,null,null,null,{"$f":"+IF(AND(LEFT(O$28,2)=\"OK\",OR(integr=\"integrazione processi tecnici\",integr=\"entrambi\"),OR(K34=\"\",L34=\"\",M34=\"\",N34=\"\")),\"<--- Continuare da qui la compilazione (compilare tutti i campi)\",IF(AND(LEFT(O$28,2)=\"OK\",integr<>\"integrazione processi tecnici\",integr<>\"entrambi\"),\"OK, continuare la compilazione (il campo non va compilato)\",IF(AND(K34<>\"\",L34<>\"\",M34<>\"\",N34<>\"\",LEFT(O$28,2)=\"OK\"),\"OK, continuare la compilazione\",\"\")))","v":""}]
[]
[]
[]
[null,null,null,null,null,"VRG2022 (per confronto con VRGPM)",{"$f":"IF(K38=\"\",IF(Storico_Piano_Tariffario!E6=\"\",\"\",Storico_Piano_Tariffario!E6),K38)","v":""}]
[null,null,null,null,null,"pop + 0,25 popflut",{"$f":"IF(K39=\"\",IF(Storico_Piano_Tariffario!E7=\"\",\"\",Storico_Piano_Tariffario!E7),K39)","v":""},null,null,null,null,null,null,null,{"$f":"+IF(LEFT(O33,2)=\"OK\",IF(G40=\"compilare correttamente i campi\",\"Attenzione: compilare i campi necessari\", \"OK, continuare la compilazione\"),\"\")","v":""}]
[null,null,null,null,null,"VRGPM,i",{"$f":"+IFERROR(K38/K39,IFERROR(G38/G39,IF(LEFT(O33,2)=\"OK\",\"Compilare correttamente i campi\",\"\")))","v":""},null,null,null,"non compilabile"]
[]
[]
[null,null,null,null,null,"∑Ipaexp + CFPaexp 2024-2029","non compilabile",null,{"$f":"+SUM(I44:N44)","v":0}]
[null,null,null,null,null,"Sviluppo Ipaexp + CFPaexp MTI-4 ",null,null,{"$f":"+Dati_Anni_precedenti!E13","v":0},{"$f":"+Dati_Anni_precedenti!F13","v":0},{"$f":"'PdI-riepilogo'!F15","v":0},{"$f":"'PdI-riepilogo'!G15","v":0},{"$f":"'PdI-riepilogo'!H15","v":0},{"$f":"'PdI-riepilogo'!I15","v":0},{"$f":"+IF(LEFT(O39,2)=\"OK\",IF(OR(I44=\"\",J44=\"\",K44=\"\",L44=\"\",M44=\"\",N44=\"\"),\"Attenzione: compilare tutti i campi\",\"OK, continuare la compilazione\"),\"\")","v":""}]
[null,null,null,null,null,"Sviluppo CFPaexp MTI-4 ",null,null,{"$f":"+Dati_Anni_precedenti!E14","v":0},{"$f":"+Dati_Anni_precedenti!F14","v":0},{"$f":"'PdI-riepilogo'!F21","v":0},{"$f":"'PdI-riepilogo'!G21","v":0},{"$f":"'PdI-riepilogo'!H21","v":0},{"$f":"'PdI-riepilogo'!I21","v":0},{"$f":"+IF(LEFT(O44,2)=\"OK\",IF(OR(I45=\"\",J45=\"\",K45=\"\",L45=\"\",M45=\"\",N45=\"\"),\"Attenzione: compilare tutti i campi\",\"OK, continuare la compilazione\"),\"\")","v":""}]
[]
[]
[]
[null,null,null,null,null,"RAB MTI-3",{"$f":"+IF(K49=\"\",Dati_Anni_precedenti!G10,K49)","v":0},null,null,null,null,null,null,null,{"$f":"+IF(LEFT(O45,2)=\"OK\",IF(G50<>\"\",\"OK, continuare la compilazione\",IF(mti_4<>\"schema regolatorio\",\"OK, continuare la compilazione\",\"Inserire valore RAB o controllare dati anni precedenti\")),\"\")","v":""}]
[null,null,null,null,null,"di supporto al calcolo per la selezione dello schema",{"$f":"+IF(mti_4<>\"schema regolatorio\",\"\",IFERROR(IFERROR(I43/K49,I43/G49),\"\"))","v":""}]
[null,null,null,null,null,"ψ (0,4-0,8)","Compilare i campi delle righe 48 e 50 in colonna K-->",null,null,null,null,null,null,null,{"$f":"+IF(AND(mti_4<>\"schema regolatorio\",LEFT(O45,2)=\"OK\"),\"OK, continuare la compilazione\",IF(LEFT(O49,2)=\"OK\",+IF(G49=0,\"Inserire valore RAB MTI-2 (cella I48)\",IF(G50<=omega,\"OK, continuare la compilazione (psi non necessario)\",IF(AND(G50>omega,K51=\"\"),\"<--- Continuare da qui la compilazione\",IF(OR(K51<0.4,K51>0.8),\"Attenzione: compilare correttamente i dati\",\"OK, continuare la compilazione\")))),\"\"))","v":""}]
[null,null,null,null,null,"Ammortamento finanziario ammissibile\n ai sensi del comma 11.8 lettera a)","non compilabile",null,null,null,{"$f":"+iAF","v":0}]
[]
[]
[null,null,null,null,null,"output","Tipo di elaborazione tariffaria:",null,null,null,null,null,null,null,{"$f":"+IF(LEFT(O51,2)=\"OK\",mti_4,\"\")","v":""}]
[null,null,null,null,null,"output","Eventuale schema regolatorio",null,null,null,null,null,null,null,{"$f":"IF(O55=\"schema regolatorio\",schema,IF(schema=\"\",\"\",\"verificare coerenza dati inseriti\"))","v":""}]
[]
[]
[null,null,null,null,null,null,null,null,"Sezione \"Trattamento costi di morosità - Unpaid ratio\""]
[]
[null,null,null,null,null,null,"info",null,2024,2025,2026,2027,2028,2029]
[null,null,null,null,null,null,null,null,null,null,null,null,null,null,{"$f":"+IF(LEFT(O51,2)=\"OK\",+IF(OR(K62<0,L62<0,I62<0,J62<0),\"Attenzione: valori fuori dominio\",IF(OR(K62=\"\",L62=\"\",I62=\"\",J62=\"\"),\"OK, compilare o continuare la compilazione\",\"OK, continuare la compilazione\")),\"\")","v":""}]
[]
[null,null,null,null,null,null,null,null,null,null,null,null,null,null,{"$f":"+IF(LEFT(O62,2)=\"OK\",+IF(AND(K64=\"\"),\"OK, compilare o continuare la compilazione\",IF(AND(K64<>\"\"),IF(OR(K64<K66,K64>100),\"Attenzione: valori fuori dominio\",\"OK, continuare la compilazione\"),\"Attenzione: compilare correttamente tutti i campi\")),\"\")","v":""}]
[]
[null,null,null,null,null,"Comor - art. 30 MTI-4 - valore di zona applicabile","non compilabile",null,{"$f":"+Opex!C293","v":0},{"$f":"+Opex!D293","v":0},{"$f":"+Opex!E293","v":0},{"$f":"+Opex!F293","v":0},{"$f":"+Opex!G293","v":0},{"$f":"+Opex!H293","v":0}]
[null,null,null,null,null,"Comor - art. 30 MTI-4 - valore effettivo del gestore",null,null,{"$f":"+Opex!C292","v":0},{"$f":"+Opex!D292","v":0},{"$f":"+Opex!E292","v":0},{"$f":"+Opex!F292","v":0},{"$f":"+Opex!G292","v":0},{"$f":"+Opex!H292","v":0}]
[null,null,null,null,null,"Comor - Unpaid ratio indicato dal soggetto competente\n(% compatibile con \"costo massimo riconosciuto\"\n come da comma 30.2 e 30.2-bis  MTI-4)","Compilare il campo in colonna K-->\n(valori in %)",null,null,null,null,null,null,null,{"$f":"+IF(LEFT(O51,2)=\"OK\",\"OK, compilare o continuare la compilazione\",IF(LEFT(O51,2)=\"\",\"\",IF(AND(K68<=K66,K68>=MIN(K67:K67),K68<>\"\",K68<L66,K68>=MIN(L67),K68<=I66,K68>=MIN(I67:I67),K68<=J66,K68>=MIN(J67:J67),K68<=M66,K68>=MIN(M67:M67),K68<=N66,K68>=MIN(N67:N67)),\"OK, continuare la compilazione\",\"Attenzione: compilare correttamente tutti i campi\n(diversi da 0, inferiori a quelli di zona, superiori a quelli del gestore)\")))","v":""}]
[]
[]
[]
[]
[]
[]
[null,null,null,null,null,null,null,null,"Sezione \"Sviluppo temporale dei conguagli MTI-3 aggiornamento rinviati al futuro\""]
[]
[null,null,null,null,null,null,null,null,2024,2025,2026,2027,2028,2029]
[null,null,null,null,null,"importo conguagli MTI-3 agg. post 2023 (valori a moneta 2023)",{"$f":"Dati_Anni_precedenti!$G$108","v":0},null,{"$f":"+Dati_Anni_precedenti!E79/1.13696","v":0},{"$f":"+Dati_Anni_precedenti!F79/1.088","v":0},null,null,null,null,{"$f":"+IF(LEFT(O68,2)=\"OK\",IF(SUM(K78:N78)>G78,\"compilazione non ammissibile\",\"OK compilare o proseguire la compilazione\"),\"\")","v":""}]
[null,null,null,null,null,null,"area di controllo",null,{"$f":"+IF(SUM($K$78:$N$78)>$G$78,\"verificare la compilazione\",I78)","v":0},0,0,0,0,0,{"$f":"+IF(OR(LEFT(O78,2)=\"OK\"),IF(G78=0,\"OK, ricontrollare dati storici o proseguire la compilazione\n(eventuali compilazioni non avranno impatti)\",IF(OR(K79=\"\",L79=\"\",I79=\"\",J79=\"\",M79=\"\",N79=\"\"),\"<--- Continuare da qui la compilazione\",IF(AND(K79<>\"\",L79<>\"\",I79<>\"\",J79<>\"\",M79<>\"\",N79<>\"\",K79>=0,L79>=0,I79>=0,J79>=0,M79>=0,N79>=0),\"OK, continuare la compilazione\",\"Attenzione: compilare correttamente i campi\"))),\"\")","v":""}]
[null,null,null,null,null,null,"Eventuale rinuncia -->",null,null,null,{"$f":"+MAX(G78-SUM(I79:N79),0)","v":0}]
[]
[]
[]
[]
[]
[null,null,null,null,null,null,null,null,"Elaborazioni Iniziali"]
[]
[null,null,null,null,null,null,null,null,2024,2025,2026,2027,2028,2029]
[null,null,null,null,null,"VRGa calcolato ","non compilabile",null,null,null,{"$f":"+IF($O$51<>\"\",VRG_Teta!E60,\"\")","v":""},{"$f":"+IF($O$51<>\"\",VRG_Teta!F60,\"\")","v":""},{"$f":"+IF($O$51<>\"\",VRG_Teta!G60,\"\")","v":""},{"$f":"+IF($O$51<>\"\",VRG_Teta!H60,\"\")","v":""},{"$f":"+IF(LEFT($O$78,2)=\"OK\",IF(AND(K93=\"nei limiti\",L93=\"nei limiti\",I93=\"nei limiti\",J93=\"nei limiti\",M93=\"nei limiti\",N93=\"nei limiti\"),\"OK, proseguire se necessario la compilazione\",\"ATTENZIONE: proposta sovracap per almeno un'annualità\"),\"\")","v":""}]
[null,null,null,null,null,"ϑa calcolato","non compilabile",null,null,null,{"$f":"+IF($O$51<>\"\",VRG_Teta!E61,\"\")","v":""},{"$f":"+IF($O$51<>\"\",VRG_Teta!F61,\"\")","v":""},{"$f":"+IF($O$51<>\"\",VRG_Teta!G61,\"\")","v":""},{"$f":"+IF($O$51<>\"\",VRG_Teta!H61,\"\")","v":""}]
[null,null,null,null,null,"VRGa al cap","non compilabile",null,null,null,{"$f":"+IF($O$51<>\"\",VRG_Teta!E62,\"\")","v":""},{"$f":"+IF($O$51<>\"\",VRG_Teta!F62,\"\")","v":""},{"$f":"+IF($O$51<>\"\",VRG_Teta!G62,\"\")","v":""},{"$f":"+IF($O$51<>\"\",VRG_Teta!H62,\"\")","v":""}]
[null,null,null,null,null,"ϑa massimo applicabile","non compilabile",null,null,null,{"$f":"+IF($O$51<>\"\",VRG_Teta!E63,\"\")","v":""},{"$f":"+IF($O$51<>\"\",VRG_Teta!F63,\"\")","v":""},{"$f":"+IF($O$51<>\"\",VRG_Teta!G63,\"\")","v":""},{"$f":"+IF($O$51<>\"\",VRG_Teta!H63,\"\")","v":""}]
[null,null,null,null,null,"info predisposizione","non compilabile",null,null,null,{"$f":"+IF($O$51<>\"\",VRG_Teta!E64,\"\")","v":""},{"$f":"+IF($O$51<>\"\",VRG_Teta!F64,\"\")","v":""},{"$f":"+IF($O$51<>\"\",VRG_Teta!G64,\"\")","v":""},{"$f":"+IF($O$51<>\"\",VRG_Teta!H64,\"\")","v":""}]
[]
[]
[]
[]
[]
[null,null,null,null,null,null,null,null,"Sezione \"Interventi sulle componenti del Capex\""]
[]
[null,null,null,null,null,null,null,null,2024,2025,2026,2027,2028,2029]
[null,null,null,null,null,"AMM calcolato","non compilabile",null,null,null,{"$f":"+Capex!E32","v":0},{"$f":"+Capex!F32","v":0},{"$f":"+Capex!G32","v":0},{"$f":"+Capex!H32","v":0}]
[null,null,null,null,null,"Detrazione della componente AMM",null,null,null,null,0,0,0,0,{"$f":"+IF(LEFT(O79,2)=\"OK\",+IF(OR(K102-K103<0,L102-L103<0,M102-M103<0,N102-N103<0),\"Attenzione: valori fuori dominio\",IF(AND(K103=\"\",L103=\"\",M103=\"\",N103=\"\"),\"<--- Continuare da qui la compilazione \n(compilare tutti i campi)\",\"OK, continuare la compilazione\")),\"\")","v":""}]
[null,null,null,null,null,null,null,null,null,null,{"$f":"+IFERROR(IF(K102-K103<0,0,K103),0)","v":0},0,0,0]
[]
[null,null,null,null,null,"OF calcolato","non compilabile",null,null,null,{"$f":"Capex!E30","v":0},{"$f":"Capex!F30","v":0},{"$f":"Capex!G30","v":0},{"$f":"Capex!H30","v":0}]
[null,null,null,null,null,"Detrazione della componente OF",null,null,null,null,0,0,0,0,{"$f":"+IF(LEFT(O103,2)=\"OK\",+IF(OR(K106-K107<0,L106-L107<0,M106-M107<0,N106-N107<0),\"Attenzione: valori fuori dominio\",IF(AND(K107=\"\",L107=\"\",M107=\"\",N107=\"\"),\"<--- Continuare da qui la compilazione \n(compilare tutti i campi)\",\"OK, continuare la compilazione\")),\"\")","v":""}]
[null,null,null,null,null,null,null,null,null,null,{"$f":"+IFERROR(IF(K106-K107<0,0,K107),0)","v":0},0,0,0]
[]
[null,null,null,null,null,"OFisc calcolato","non compilabile",null,null,null,{"$f":"Capex!E31","v":0},{"$f":"Capex!F31","v":0},{"$f":"Capex!G31","v":0},{"$f":"Capex!H31","v":0}]
[null,null,null,null,null,"Detrazione della componente OFisc",null,null,null,null,0,0,0,0,{"$f":"+IF(LEFT(O107,2)=\"OK\",+IF(OR(K110-K111<0,L110-L111<0,M110-M111<0,N110-N111<0),\"Attenzione: valori fuori dominio\",IF(AND(K111=\"\",L111=\"\",M111=\"\",N111=\"\"),\"<--- Continuare da qui la compilazione \n(compilare tutti i campi)\",\"OK, continuare la compilazione\")),\"\")","v":""}]
[null,null,null,null,null,null,null,null,null,null,{"$f":"+IFERROR(IF(K110-K111<0,0,K111),0)","v":0},0,0,0]
[]
[]
[]
[]
[]
[]
[null,null,null,null,null,null,null,null,"Sezione \"Interventi sulle componenti del FoNI\""]
[]
[null,null,null,null,null,null,null,null,2024,2025,2026,2027,2028,2029]
[null,null,null,null,null,"FNI calcolato","non compilabile",null,null,null,{"$f":"+FoNI!E77","v":0},{"$f":"+FoNI!F77","v":0},{"$f":"+FoNI!G77","v":0},{"$f":"+FoNI!H77","v":0}]
[null,null,null,null,null,"Detrazione della componente FNI",null,null,null,null,0,0,0,0,{"$f":"+IF(LEFT(O111,2)=\"OK\",+IF(OR(K123<0,L123<0,M123<0,N123<0,K123>K122,L123>L122,M123>M122,N123>N122),\"Attenzione: valori fuori dominio\",IF(AND(K123=\"\",L123=\"\",M123=\"\",N123=\"\"),\"<--- Continuare da qui la compilazione \n(compilare tutti i campi)\",\"OK, continuare la compilazione\")),\"\")","v":""}]
[null,null,null,null,null,null,null,null,null,null,{"$f":"+IFERROR(IF(K122-K123<0,0,K123),0)","v":0},0,0,0]
[]
[null,null,null,null,null,"AMMcfp calcolato","non compilabile",null,null,null,{"$f":"+FoNI!E91","v":0},{"$f":"+FoNI!F91","v":0},{"$f":"+FoNI!G91","v":0},{"$f":"+FoNI!H91","v":0}]
[null,null,null,null,null,"Detrazione della componente AMMcfp",null,null,null,null,0,0,0,0,{"$f":"+IF(LEFT(O123,2)=\"OK\",+IF(OR(K127<0,L127<0,M127<0,N127<0,K127>K126,L127>L126,M127>M126,N127>N126),\"Attenzione: valori fuori dominio\",IF(AND(K127=\"\",L127=\"\",M127=\"\",N127=\"\"),\"<--- Continuare da qui la compilazione \n(compilare tutti i campi)\",\"OK, continuare la compilazione\")),\"\")","v":""}]
[null,null,null,null,null,null,null,null,null,null,{"$f":"+IFERROR(IF(K126-K127<0,0,K127),0)","v":0},0,0,0]
[]
[null,null,null,null,null,"DCUIT massimo nel FoNI","non compilabile",null,null,null,{"$f":"+FoNI!E105","v":0},{"$f":"+FoNI!F105","v":0},{"$f":"+FoNI!G105","v":0},{"$f":"+FoNI!H105","v":0},{"$f":"+IF(LEFT($O$91,2)=\"OK\",\"OK, continuare la compilazione\",\"\")","v":""}]
[null,null,null,null,null,"Detrazione della componente DCUIT",null,null,null,null,0,0,0,0,{"$f":"+IF(LEFT(O127,2)=\"OK\",+IF(OR(K131<0,L131<0,M131<0,N131<0,K131>K130,L131>L130,M131>M130,N131>N130),\"Attenzione: valori fuori dominio\",IF(AND(K131=\"\",L131=\"\",M131=\"\",N131=\"\"),\"<--- Continuare da qui la compilazione \n(compilare tutti i campi)\",\"OK, continuare la compilazione\")),\"\")","v":""}]
[null,null,null,null,null,null,null,null,null,null,{"$f":"+IFERROR(IF(K130-K131<0,0,K131),0)","v":0},0,0,0]
[]
[]
[]
[]
[]
[]
[null,null,null,null,null,null,null,null,"Sezione \"Interventi sulle componenti dell'Opex\""]
[]
[null,null,null,null,null,null,null,null,2024,2025,2026,2027,2028,2029]
[null,null,null,null,null,"Opexend calcolato",null,null,null,null,{"$f":"+Opex!E30","v":0},{"$f":"+Opex!F30","v":0},{"$f":"+Opex!G30","v":0},{"$f":"+Opex!H30","v":0}]
[null,null,null,null,null,"Detrazione della componente Opexend","Detrazione da gara",null,null,null,0,0,0,0,{"$f":"+IF(LEFT(O131,2)=\"OK\",+IF(OR(K142-K143<0,L142-L143<0,M142-M143<0,N142-N143<0),\"Attenzione: valori fuori dominio\",IF(AND(K143=\"\",L143=\"\",M143=\"\",N143=\"\"),\"<--- Continuare da qui la compilazione \n(compilare tutti i campi)\",\"OK, continuare la compilazione\")),\"\")","v":""}]
[null,null,null,null,null,null,"Altra detrazione",null,null,null,0,0,0,0,{"$f":"+IF(LEFT(O131,2)=\"OK\",+IF(OR(K142-K144<0,L142-L144<0,M142-M144<0,N142-N144<0),\"Attenzione: valori fuori dominio\",IF(AND(K144=\"\",L144=\"\",M144=\"\",N144=\"\"),\"<--- Continuare da qui la compilazione \n(compilare tutti i campi)\",\"OK, continuare la compilazione\")),\"\")","v":""}]
[null,null,null,null,null,null,null,null,null,null,{"$f":"+IFERROR(IF(K142-K143-K144<0,0,K143+K144),0)","v":0},{"$f":"+IFERROR(IF(L142-L143-L144<0,0,L143+L144),0)","v":0},{"$f":"+IFERROR(IF(M142-M143-M144<0,0,M143+M144),0)","v":0},{"$f":"+IFERROR(IF(N142-N143-N144<0,0,N143+N144),0)","v":0}]
[]
[null,null,null,null,null,"Opexal calcolato","non compilabile",null,null,null,{"$f":"+Opex!E31","v":0},{"$f":"+Opex!F31","v":0},{"$f":"+Opex!G31","v":0},{"$f":"+Opex!H31","v":0}]
[null,null,null,null,null,"Detrazione della componente Opexal",null,null,null,null,0,0,0,0,{"$f":"+IF(LEFT(O144,2)=\"OK\",+IF(OR(K147-K148<0,L147-L148<0,M147-M148<0,N147-N148<0),\"Attenzione: valori fuori dominio\",IF(AND(K148=\"\",L148=\"\",M148=\"\",N148=\"\"),\"<--- Continuare da qui la compilazione \n(compilare tutti i campi)\",\"OK, continuare la compilazione\")),\"\")","v":""}]
[null,null,null,null,null,null,null,null,null,null,{"$f":"+IFERROR(IF(K147-K148<0,0,K148),0)","v":0},0,0,0]
[]
[]
[]
[]
[]
[]
[null,null,null,null,null,null,null,null,"Sezione \"Interventi sulle componenti dell'ERC\""]
[]
[null,null,null,null,null,null,null,null,2024,2025,2026,2027,2028,2029]
[null,null,null,null,null,"ERCcapex calcolato","non compilabile",null,null,null,{"$f":"ERC!E30","v":0},{"$f":"ERC!F30","v":0},{"$f":"ERC!G30","v":0},{"$f":"ERC!H30","v":0}]
[null,null,null,null,null,"Detrazione della componente ERCcapex",null,null,null,null,0,0,0,0,{"$f":"+IF(LEFT(O148,2)=\"OK\",+IF(OR(K159-K160<0,L159-L160<0,M159-M160<0,N159-N160<0),\"Attenzione: valori fuori dominio\",IF(AND(K160=\"\",L160=\"\",M160=\"\",N160=\"\"),\"<--- Continuare da qui la compilazione \n(compilare tutti i campi)\",\"OK, continuare la compilazione\")),\"\")","v":""}]
[null,null,null,null,null,null,null,null,null,null,{"$f":"+IFERROR(IF(K159-K160<0,0,K160),0)","v":0},0,0,0]
[]
[null,null,null,null,null,"ERCopex calcolato","non compilabile",null,null,null,{"$f":"ERC!E31","v":0},{"$f":"ERC!F31","v":0},{"$f":"ERC!G31","v":0},{"$f":"ERC!H31","v":0}]
[null,null,null,null,null,"Detrazione della componente ERCopex",null,null,null,null,0,0,0,0,{"$f":"+IF(LEFT(O160,2)=\"OK\",+IF(OR(K163-K164<0,L163-L164<0,M163-M164<0,N163-N164<0),\"Attenzione: valori fuori dominio\",IF(AND(K164=\"\",L164=\"\",M164=\"\",N164=\"\"),\"<--- Continuare da qui la compilazione \n(compilare tutti i campi)\",\"OK, continuare la compilazione\")),\"\")","v":""}]
[null,null,null,null,null,null,null,null,null,null,{"$f":"+IFERROR(IF(K163-K164<0,0,K164),0)","v":0},0,0,0]
[]
[]
[]
[]
[]
[]
[null,null,null,null,null,null,null,null,"Sezione \"Interventi sulle componenti dell'RC\""]
[]
[null,null,null,null,null,null,null,null,2024,2025,2026,2027,2028,2029]
[null,null,null,null,null,"RCvol calcolato","non compilabile",null,null,null,{"$f":"'Rc'!E30","v":0},{"$f":"'Rc'!F30","v":0},{"$f":"'Rc'!G30","v":0},{"$f":"'Rc'!H30","v":0}]
[null,null,null,null,null,"Detrazione della componente Rcvol",null,null,null,null,0,0,0,0,{"$f":"+IF(LEFT(O164,2)=\"OK\",+IF(OR(K175-K176<0,L175-L176<0,M175-M176<0,N175-N176<0),\"Attenzione: valori fuori dominio\",IF(AND(K176=\"\",L176=\"\",M176=\"\",N176=\"\"),\"<--- Continuare da qui la compilazione \n(compilare tutti i campi)\",\"OK, continuare la compilazione\")),\"\")","v":""}]
[null,null,null,null,null,null,null,null,null,null,{"$f":"+IFERROR(IF(K175-K176<0,0,K176),0)","v":0},0,0,0]
[]
[null,null,null,null,null,"RCEE calcolato","non compilabile",null,null,null,{"$f":"'Rc'!E31","v":0},{"$f":"'Rc'!F31","v":0},{"$f":"'Rc'!G31","v":0},{"$f":"'Rc'!H31","v":0}]
[null,null,null,null,null,"Detrazione della componente RcEE",null,null,null,null,0,0,0,0,{"$f":"+IF(LEFT(O176,2)=\"OK\",+IF(OR(K179-K180<0,L179-L180<0,M179-M180<0,N179-N180<0),\"Attenzione: valori fuori dominio\",IF(AND(K180=\"\",L180=\"\",M180=\"\",N180=\"\"),\"<--- Continuare da qui la compilazione \n(compilare tutti i campi)\",\"OK, continuare la compilazione\")),\"\")","v":""}]
[null,null,null,null,null,null,null,null,null,null,{"$f":"+IFERROR(IF(K179-K180<0,0,K180),0)","v":0},0,0,0]
[]
[null,null,null,null,null,"RCws calcolato","non compilabile",null,null,null,{"$f":"'Rc'!E32","v":0},{"$f":"'Rc'!F32","v":0},{"$f":"'Rc'!G32","v":0},{"$f":"'Rc'!H32","v":0}]
[null,null,null,null,null,"Detrazione della componente RCws",null,null,null,null,0,0,0,0,{"$f":"+IF(LEFT(O180,2)=\"OK\",+IF(OR(K183-K184<0,L183-L184<0,M183-M184<0,N183-N184<0),\"Attenzione: valori fuori dominio\",IF(AND(K184=\"\",L184=\"\",M184=\"\",N184=\"\"),\"<--- Continuare da qui la compilazione \n(compilare tutti i campi)\",\"OK, continuare la compilazione\")),\"\")","v":""}]
[null,null,null,null,null,null,null,null,null,null,{"$f":"+IFERROR(IF(K183-K184<0,0,K184),0)","v":0},0,0,0]
[]
[null,null,null,null,null,"RCERC calcolato","non compilabile",null,null,null,{"$f":"'Rc'!E33","v":0},{"$f":"'Rc'!F33","v":0},{"$f":"'Rc'!G33","v":0},{"$f":"'Rc'!H33","v":0}]
[null,null,null,null,null,"Detrazione della componente RCERC",null,null,null,null,0,0,0,0,{"$f":"+IF(LEFT(O184,2)=\"OK\",+IF(OR(K187-K188<0,L187-L188<0,M187-M188<0,N187-N188<0),\"Attenzione: valori fuori dominio\",IF(AND(K188=\"\",L188=\"\",M188=\"\",N188=\"\"),\"<--- Continuare da qui la compilazione \n(compilare tutti i campi)\",\"OK, continuare la compilazione\")),\"\")","v":""}]
[null,null,null,null,null,null,null,null,null,null,{"$f":"+IFERROR(IF(K187-K188<0,0,K188),0)","v":0},0,0,0]
[]
[null,null,null,null,null,"RCALTRO calcolato","non compilabile",null,null,null,{"$f":"'Rc'!E34","v":0},{"$f":"'Rc'!F34","v":0},{"$f":"'Rc'!G34","v":0},{"$f":"'Rc'!H34","v":0}]
[null,null,null,null,null,"Detrazione della componente RCALTRO",null,null,null,null,0,0,0,0,{"$f":"+IF(LEFT(O188,2)=\"OK\",+IF(OR(K191-K192<0,L191-L192<0,M191-M192<0,N191-N192<0),\"Attenzione: valori fuori dominio\",IF(AND(K192=\"\",L192=\"\",M192=\"\",N192=\"\"),\"<--- Continuare da qui la compilazione \n(compilare tutti i campi)\",\"OK, continuare la compilazione\")),\"\")","v":""}]
[null,null,null,null,null,null,null,null,null,null,{"$f":"+IFERROR(IF(K191-K192<0,0,K192),0)","v":0},0,0,0]
[]
[]
[]
[]
[]
[]
[]
[null,null,null,null,null,null,null,null,"Elaborazioni Intermedie"]
[]
[null,null,null,null,null,null,null,null,2024,2025,2026,2027,2028,2029]
[null,null,null,null,null,"VRGa calcolato ","non compilabile",null,{"$f":"+IF(mti_4<>\"\",VRG_Teta!C67,\"\")","v":""},{"$f":"+IF(mti_4<>\"\",VRG_Teta!D67,\"\")","v":""},{"$f":"+IF(mti_4<>\"\",VRG_Teta!E67,\"\")","v":""},{"$f":"+IF(mti_4<>\"\",VRG_Teta!F67,\"\")","v":""},{"$f":"+IF(mti_4<>\"\",VRG_Teta!G67,\"\")","v":""},{"$f":"+IF(mti_4<>\"\",VRG_Teta!H67,\"\")","v":""},{"$f":"+IF(O131<>\"\",IF(AND(K208=\"nei limiti\",L208=\"nei limiti\",I208=\"nei limiti\",J208=\"nei limiti\"),\"OK, proseguire se necessario la compilazione\",\"ATTENZIONE: proposta sovracap per almeno un'annualità\"),\"\")","v":""}]
[null,null,null,null,null,"ϑa calcolato","non compilabile",null,{"$f":"+IF(mti_4<>\"\",VRG_Teta!C68,\"\")","v":""},{"$f":"+IF(mti_4<>\"\",VRG_Teta!D68,\"\")","v":""},{"$f":"+IF(mti_4<>\"\",VRG_Teta!E68,\"\")","v":""},{"$f":"+IF(mti_4<>\"\",VRG_Teta!F68,\"\")","v":""},{"$f":"+IF(mti_4<>\"\",VRG_Teta!G68,\"\")","v":""},{"$f":"+IF(mti_4<>\"\",VRG_Teta!H68,\"\")","v":""}]
[null,null,null,null,null,"VRGa al cap","non compilabile",null,{"$f":"+IF(mti_4<>\"\",VRG_Teta!C69,\"\")","v":""},{"$f":"+IF(mti_4<>\"\",VRG_Teta!D69,\"\")","v":""},{"$f":"+IF(mti_4<>\"\",VRG_Teta!E69,\"\")","v":""},{"$f":"+IF(mti_4<>\"\",VRG_Teta!F69,\"\")","v":""},{"$f":"+IF(mti_4<>\"\",VRG_Teta!G69,\"\")","v":""},{"$f":"+IF(mti_4<>\"\",VRG_Teta!H69,\"\")","v":""}]
[null,null,null,null,null,"ϑa massimo applicabile","non compilabile",null,{"$f":"+IF(mti_4<>\"\",VRG_Teta!C70,\"\")","v":""},{"$f":"+IF(mti_4<>\"\",VRG_Teta!D70,\"\")","v":""},{"$f":"+IF(mti_4<>\"\",VRG_Teta!E70,\"\")","v":""},{"$f":"+IF(mti_4<>\"\",VRG_Teta!F70,\"\")","v":""},{"$f":"+IF(mti_4<>\"\",VRG_Teta!G70,\"\")","v":""},{"$f":"+IF(mti_4<>\"\",VRG_Teta!H70,\"\")","v":""}]
[null,null,null,null,null,"info predisposizione","non compilabile",null,{"$f":"+IF(mti_4<>\"\",VRG_Teta!C71,\"\")","v":""},{"$f":"+IF(mti_4<>\"\",VRG_Teta!D71,\"\")","v":""},{"$f":"+IF(mti_4<>\"\",VRG_Teta!E71,\"\")","v":""},{"$f":"+IF(mti_4<>\"\",VRG_Teta!F71,\"\")","v":""},{"$f":"+IF(mti_4<>\"\",VRG_Teta!G71,\"\")","v":""},{"$f":"+IF(mti_4<>\"\",VRG_Teta!H71,\"\")","v":""}]
[]
[]
[]
[]
[]
[]
[null,null,null,null,null,null,null,null,"Sezione \"Rimodulazioni degli RC\""]
[]
[null,null,null,null,null,null,null,null,2024,2025,2026,2027,2028,2029]
[null,null,null,null,null,"RCTOT MTI-4 calcolati (include inflazione)","non compilabile",null,{"$f":"'Rc'!C11","v":0},{"$f":"'Rc'!D11","v":0},{"$f":"'Rc'!E11","v":0},{"$f":"'Rc'!F11","v":0},{"$f":"'Rc'!G11","v":0},{"$f":"'Rc'!H11","v":0}]
[null,null,null,null,null,null,"non compilabile",null,null,null,{"$f":"+IF(ISERR(MAX(K91-K89,0)),0,MAX(K91-K89,0))","v":0},{"$f":"+IF(ISERR(MAX(L91-L89,0)),0,MAX(L91-L89,0))","v":0}]
[null,null,null,null,null,"Sviluppo richiesto dei conguagli MTI-4","non compilabile",null,null,null,null,null,null,null,{"$f":"+IF(LEFT(O192,2)=\"OK\",\n     IF(AND(K220>=0,L220>=0,M220>=0,N220>=0),\n     \"OK, continuare la compilazione\",\n\"OK,  riallocare conguagli oppure continuare la compilazione\"),\n\"\")","v":""}]
[null,null,null,null,null,"eventuale rinuncia a conguagli RC MTI-4",null,null,null,null,0,null,null,null,{"$f":"+IF(AND(LEFT(O220,2)=\"OK\",ISNUMBER(K221)=TRUE,K221>0,K221<SUM(K218:N218)),\n\"OK, continuare la compilazione\",\nIF(LEFT(O220,2)=\"OK\",\n   IF(OR(ISNUMBER(K221)=FALSE,K221<0,K221>SUM(K218:N218)),\n   \"Attenzione, compilare correttamente il campo\",\n\"OK, continuare la compilazione\"),\n\"\"))","v":""}]
[null,null,null,null,null,"RCTOT in piano tariffario MTI-4","non compilabile",null,{"$f":"+Dati_Anni_precedenti!E90","v":0},{"$f":"+Dati_Anni_precedenti!F90","v":0},{"$f":"+IF(K220=\"\",K218,K220)","v":0},0,0,0]
[null,null,null,null,null,"RC MTI-4 post 2029","non compilabile",null,null,null,{"$f":"+IF(LEFT(O221,2)=\"OK\",IF(SUM(I218:N218)-(SUM(I222:N222)+K221)<0,IF(SUM(I218:N218)<0,IF(SUM(I218:N218)-(SUM(I222:N222)+K221)<0,\"Attenzione, ricontrollare gli addendi\",SUM(I218:N218)-(SUM(I222:N222)+K221)),\"Attenzione, ricontrollare gli addendi\"),SUM(I218:N218)-(SUM(I222:N222)+K221)),\"\")","v":""},null,null,null,{"$f":"+IF(OR(K223=\"Attenzione, ricontrollare gli addendi\",K223=\"\"),\"\",\"OK, continuare la compilazione\")","v":""}]
[null,null,null,null,null,"RCTOT - verifica rispetto comma 28.2 MTI-4","info",null,null,null,{"$f":"+IF(OR(K223=\"\",K223<1),\"\",\"NECESSARIA MOTIVATA ISTANZA EX COMMA 28.2 MTI-4\")","v":""}]
[null,null,null,null,null,"verifica scadenza concessione","non compilabile",null,{"$f":"+IF(Affidamento!$E$4=\"\",\"\",IF(YEAR(Affidamento!$E$4)<=I217,1,0))","v":""},{"$f":"+IF(Affidamento!$E$4=\"\",\"\",IF(YEAR(Affidamento!$E$4)<=J217,1,0))","v":""},{"$f":"+IF(Affidamento!$E$4=\"\",\"\",IF(YEAR(Affidamento!$E$4)<=K217,1,0))","v":""},{"$f":"+IF(Affidamento!$E$4=\"\",\"\",IF(YEAR(Affidamento!$E$4)<=L217,1,0))","v":""},{"$f":"+IF(Affidamento!$E$4=\"\",\"\",IF(YEAR(Affidamento!$E$4)<=M217,1,0))","v":""},{"$f":"+IF(Affidamento!$E$4=\"\",\"\",IF(YEAR(Affidamento!$E$4)<=N217,1,0))","v":""}]
[null,null,null,null,null,"RCTOT - verifica rispetto comma 28.2-bis MTI-4","info",null,null,null,{"$f":"+IF(SUMPRODUCT(I218:N218,I225:N225)-SUM(I222:N222)-K221>0,\"Verificare condizioni di cui al commma 28.2-bis del MTI-4\",\"\")","v":""}]
[]
[]
[]
[]
[null,null,null,null,null,null,null,null,"Sezione \"Rimodulazioni\""]
[]
[null,null,null,null,null,"Rimodulazioni relative alla componente Capex","non compilabile",null,null,null,null,null,null,null,{"$f":"+IF(LEFT(O223,2)=\"OK\",\"OK, compilare tutti i campi o continuare la compilazione\",\"\")","v":""}]
[null,null,null,null,null,"Rimodulazioni relative alla componente Opex","non compilabile",null,null,null,null,null,null,null,{"$f":"+IF(LEFT(O233,2)=\"OK\",\"OK, compilare tutti i campi o continuare la compilazione\",\"\")","v":""}]
[null,null,null,null,null,"Rimodulazioni relative alla componente ERC","non compilabile",null,null,null,null,null,null,null,{"$f":"+IF(LEFT(O234,2)=\"OK\",\"OK, compilare tutti i campi o continuare la compilazione\",\"\")","v":""}]
[]
[]
[]
[]
[]
[]
[null,null,null,null,null,null,null,null,"Elaborazioni finali"]
[]
[null,null,null,null,null,null,null,null,2024,2025,2026,2027,2028,2029]
[null,null,null,null,null,"VRGa calcolato ","non compilabile",null,{"$f":"Storico_Piano_Tariffario!E63","v":0},{"$f":"Storico_Piano_Tariffario!F63","v":0},{"$f":"+IF($O$223<>\"\",VRG_Teta!E74,\"\")","v":""},{"$f":"+IF($O$223<>\"\",VRG_Teta!F74,\"\")","v":""},{"$f":"+IF($O$223<>\"\",VRG_Teta!G74,\"\")","v":""},{"$f":"+IF($O$223<>\"\",VRG_Teta!H74,\"\")","v":""},{"$f":"+IF(O223=\"\",\"\",IF(AND(K249=\"nei limiti\",L249=\"nei limiti\",I249=\"nei limiti\",J249=\"nei limiti\",M249=\"nei limiti\",N249=\"nei limiti\"),\"Compilazione conclusa!\",IF(OR(K249<>\"nei limiti\",L249<>\"nei limiti\",I249<>\"nei limiti\",J249<>\"nei limiti\",M249<>\"nei limiti\",N249<>\"nei limiti\"),\"ATTENZIONE: proposta sovracap per almeno un'annualità\",\"\")))","v":""}]
[null,null,null,null,null,"ϑa calcolato","non compilabile",null,{"$f":"Storico_Piano_Tariffario!E66","v":0},{"$f":"Storico_Piano_Tariffario!F66","v":0},{"$f":"+IF($O$223<>\"\",VRG_Teta!E75,\"\")","v":""},{"$f":"+IF($O$223<>\"\",VRG_Teta!F75,\"\")","v":""},{"$f":"+IF($O$223<>\"\",VRG_Teta!G75,\"\")","v":""},{"$f":"+IF($O$223<>\"\",VRG_Teta!H75,\"\")","v":""}]
[null,null,null,null,null,"VRGa al cap","non compilabile",null,{"$f":"Storico_Piano_Tariffario!E71","v":0},{"$f":"Storico_Piano_Tariffario!F71","v":0},{"$f":"+IF($O$223<>\"\",VRG_Teta!E76,\"\")","v":""},{"$f":"+IF($O$223<>\"\",VRG_Teta!F76,\"\")","v":""},{"$f":"+IF($O$223<>\"\",VRG_Teta!G76,\"\")","v":""},{"$f":"+IF($O$223<>\"\",VRG_Teta!H76,\"\")","v":""}]
[null,null,null,null,null,"ϑa massimo applicabile","non compilabile",null,{"$f":"Piano_Tariffario!E72","v":0},{"$f":"Piano_Tariffario!F72","v":0},{"$f":"+IF($O$223<>\"\",VRG_Teta!E84,\"\")","v":""},{"$f":"+IF($O$223<>\"\",VRG_Teta!F84,\"\")","v":""},{"$f":"+IF($O$223<>\"\",VRG_Teta!G84,\"\")","v":""},{"$f":"+IF($O$223<>\"\",VRG_Teta!H84,\"\")","v":""}]
[null,null,null,null,null,"info predisposizione","non compilabile",null,{"$f":"VRG_Teta!C78","v":""},{"$f":"VRG_Teta!D78","v":""},{"$f":"+IF($O$223<>\"\",VRG_Teta!E85,\"\")","v":""},{"$f":"+IF($O$223<>\"\",VRG_Teta!F85,\"\")","v":""},{"$f":"+IF($O$223<>\"\",VRG_Teta!G85,\"\")","v":""},{"$f":"+IF($O$223<>\"\",VRG_Teta!H85,\"\")","v":""}]

{"sheet":"VRG_riepilogo","index":39,"n_rows":108,"n_cols":21,"rows_kept":108,"cut":false,"hidden":false,"merged":[]}
[]
[null,null,null,null,null,null,null,null,null,null,null,"sono presenti errori"]
["Sezione","Voce",2024,2025,2026,2027,2028,2029,"2024-2029",null,null,{"$f":"+OR(O:U)","v":true},null,null,{"$f":"+OR(O5,O11,O13:O79,O81:O92,O96,O98,O107)","v":false},{"$f":"+OR(P5,P11,P13:P80,P81:P88,P91:P96,P98,P107)","v":false},{"$f":"+OR(Q5,Q11,Q13:Q79,Q81:Q88,Q96,Q98,Q107)","v":false},{"$f":"+OR(R5,R11,R13:R79,R81:R88,R96,R98,R107)","v":false},{"$f":"+OR(S5,S11,S13:S79,S81:S88,S96,S98,S107)","v":false},{"$f":"+OR(T5,T11,T13:T79,T81:T88,T96,T98,T107)","v":false},{"$f":"+OR(U8,U10:U11)","v":true}]
["Delibera Autorità","Delibera"]
["Delibera Autorità","J deliberato",{"$f":"Dati_Anni_precedenti!E5","v":0},{"$f":"Dati_Anni_precedenti!F5","v":0},{"$f":"+MIN(VRG_Teta!E75,VRG_Teta!E82)","v":0},{"$f":"+MIN(VRG_Teta!F75,VRG_Teta!F82)","v":0},{"$f":"+MIN(VRG_Teta!G75,VRG_Teta!G82)","v":0},{"$f":"+MIN(VRG_Teta!H75,VRG_Teta!H82)","v":0},null,null,null,null,null,null,{"$f":"+IF(ISNUMBER(C5),FALSE,TRUE)","v":false},{"$f":"+IF(ISNUMBER(D5),FALSE,TRUE)","v":false},false,false,false,false]
["Delibera Autorità","J medio",{"$f":"Dati_Anni_precedenti!E6","v":0},{"$f":"Dati_Anni_precedenti!F6","v":0}]
["Delibera Autorità","RC post",null,null,null,null,null,null,{"$f":"+IFERROR(VALUE(Input_per_calcoli_finali!K223),0)","v":0}]
["Schema regolatorio","(∑2024-2029 Ipaexp + CFPaexp ) ",null,null,null,null,null,null,{"$f":"+Piano_Tariffario!E10","v":0},null,null,null,null,null,null,null,null,null,null,null,{"$f":"+IF(ISNUMBER(I8),FALSE,TRUE)","v":false}]
["Schema regolatorio","ψ",null,null,null,null,null,null,{"$f":"Piano_Tariffario!$E$14","v":0}]
["Schema regolatorio","RAB MTI-3",null,null,null,null,null,null,{"$f":"+Input_per_calcoli_finali!G49","v":0},null,null,null,null,null,null,null,null,null,null,null,{"$f":"+IF(ISNUMBER(I10),FALSE,TRUE)","v":false}]
["Schema regolatorio","pop + 0,25 popflut",{"$f":"Dati_Anni_precedenti!E11","v":0},{"$f":"Dati_Anni_precedenti!F11","v":0},{"$f":"+MAX(Dati_tecnici!E15,Dati_tecnici!E23,Dati_tecnici!E29)+0.25*Dati_tecnici!E18","v":0},{"$f":"+MAX(Dati_tecnici!F15,Dati_tecnici!F23,Dati_tecnici!F29)+0.25*Dati_tecnici!F18","v":0},{"$f":"+D11","v":0},{"$f":"+G11","v":0},{"$f":"+Input_per_calcoli_finali!$G$39","v":""},null,null,null,null,null,{"$f":"+IF(ISNUMBER(C11),FALSE,TRUE)","v":false},false,false,false,false,false,{"$f":"+IF(ISNUMBER(I11),FALSE,TRUE)","v":true}]
["Schema regolatorio","Schema regolatorio",null,null,null,null,null,null,{"$f":"+Piano_Tariffario!E15","v":0}]
["Totale investimenti pianificati","Iptexp + CFPexp ",{"$f":"Dati_Anni_precedenti!E13","v":0},{"$f":"Dati_Anni_precedenti!F13","v":0},{"$f":"+Piano_Tariffario!G81","v":0},{"$f":"+Piano_Tariffario!H81","v":0},{"$f":"+Piano_Tariffario!I81","v":0},{"$f":"+Piano_Tariffario!J81","v":0},null,null,null,null,null,null,{"$f":"+IF(ISNUMBER(C13),FALSE,TRUE)","v":false},{"$f":"+IF(ISNUMBER(D13),FALSE,TRUE)","v":false},{"$f":"+IF(ISNUMBER(E13),FALSE,TRUE)","v":false},{"$f":"+IF(ISNUMBER(F13),FALSE,TRUE)","v":false},{"$f":"+IF(ISNUMBER(G13),FALSE,TRUE)","v":false},{"$f":"+IF(ISNUMBER(H13),FALSE,TRUE)","v":false}]
["Totale investimenti pianificati","CFPexp ",{"$f":"Dati_Anni_precedenti!E14","v":0},{"$f":"Dati_Anni_precedenti!F14","v":0},{"$f":"+Piano_Tariffario!G82","v":0},{"$f":"+Piano_Tariffario!H82","v":0},{"$f":"+Piano_Tariffario!I82","v":0},{"$f":"+Piano_Tariffario!J82","v":0},null,null,null,null,null,null,false,false,false,false,false,false]
["Totale investimenti pianificati","Iptexp",{"$f":"Dati_Anni_precedenti!E15","v":0},{"$f":"Dati_Anni_precedenti!F15","v":0},{"$f":"+Piano_Tariffario!G83","v":0},{"$f":"+Piano_Tariffario!H83","v":0},{"$f":"+Piano_Tariffario!I83","v":0},{"$f":"+Piano_Tariffario!J83","v":0},null,null,null,null,null,null,false,false,false,false,false,false]
["Moltiplicatore","VRG approvato",{"$f":"Dati_Anni_precedenti!E16","v":0},{"$f":"Dati_Anni_precedenti!F16","v":0},{"$f":"+Piano_Tariffario!G63","v":0},{"$f":"+Piano_Tariffario!H63","v":0},{"$f":"+Piano_Tariffario!I63","v":0},{"$f":"+Piano_Tariffario!J63","v":0},null,null,null,null,null,null,false,false,false,false,false,false]
["Moltiplicatore","∑tarif2023 * vscala-2",{"$f":"Dati_Anni_precedenti!E17","v":0},{"$f":"Dati_Anni_precedenti!F17","v":0},{"$f":"+Piano_Tariffario!G65","v":0},{"$f":"+Piano_Tariffario!H65","v":0},{"$f":"+Piano_Tariffario!I65","v":0},{"$f":"+Piano_Tariffario!J65","v":0},null,null,null,null,null,null,false,false,false,false,false,false]
["Moltiplicatore","di cui: Ricavi ws",{"$f":"Dati_Anni_precedenti!E18","v":0},{"$f":"Dati_Anni_precedenti!F18","v":0},{"$f":"+SUM(Vendita_Servizi_ingrosso!AI:AI)","v":0},{"$f":"+SUM(Vendita_Servizi_ingrosso!AJ:AJ)","v":0},{"$f":"+F18","v":0},{"$f":"+G18","v":0},null,null,null,null,null,null,false,false,false,false,false,false]
["Moltiplicatore","di cui: tarif2023 * vscala-2",{"$f":"Dati_Anni_precedenti!E19","v":0},{"$f":"Dati_Anni_precedenti!F19","v":0},{"$f":"+SUM(Ricavi_bacini_tariffari!N:N)","v":0},{"$f":"+SUM(Ricavi_bacini_tariffari!O:O)","v":0},{"$f":"+F19","v":0},0,null,null,null,null,null,null,false,false,false,false,false,false]
["Moltiplicatore","di cui: tarifindnew,2023vscalindnew,a-2",{"$f":"Dati_Anni_precedenti!E20","v":0},{"$f":"Dati_Anni_precedenti!F20","v":0},{"$f":"+Ricavi_Coll_Dep!D19","v":0},{"$f":"+Ricavi_Coll_Dep!E19","v":0},{"$f":"+F20","v":0},0,null,null,null,null,null,null,false,false,false,false,false,false]
["Moltiplicatore","Rba-2",{"$f":"Dati_Anni_precedenti!E21","v":0},{"$f":"Dati_Anni_precedenti!F21","v":0},{"$f":"+Piano_Tariffario!G64","v":0},{"$f":"+Piano_Tariffario!H64","v":0},{"$f":"+Piano_Tariffario!I64","v":0},{"$f":"+Piano_Tariffario!J64","v":0},null,null,null,null,null,null,false,false,false,false,false,false]
["Moltiplicatore","Cba-2",{"$f":"Dati_Anni_precedenti!E22","v":0},{"$f":"Dati_Anni_precedenti!F22","v":0},{"$f":"+VRG_Teta!E140+VRG_Teta!E138","v":0},{"$f":"+VRG_Teta!F140+VRG_Teta!F138","v":0},{"$f":"+VRG_Teta!G140+VRG_Teta!G138","v":0},{"$f":"+VRG_Teta!H140+VRG_Teta!H138","v":0},null,null,null,null,null,null,false,false,false,false,false,false]
["Costi delle immobilizzazioni","AMM",{"$f":"Dati_Anni_precedenti!E23","v":0},{"$f":"Dati_Anni_precedenti!F23","v":0},{"$f":"+Piano_Tariffario!G30","v":0},{"$f":"+Piano_Tariffario!H30","v":0},{"$f":"+Piano_Tariffario!I30","v":0},{"$f":"+Piano_Tariffario!J30","v":0},null,null,null,null,null,null,false,false,false,false,false,false]
["Costi delle immobilizzazioni","OF",{"$f":"Dati_Anni_precedenti!E24","v":0},{"$f":"Dati_Anni_precedenti!F24","v":0},{"$f":"+Piano_Tariffario!G31","v":0},{"$f":"+Piano_Tariffario!H31","v":0},{"$f":"+Piano_Tariffario!I31","v":0},{"$f":"+Piano_Tariffario!J31","v":0},null,null,null,null,null,null,false,false,false,false,false,false]
["Costi delle immobilizzazioni","OFisc",{"$f":"Dati_Anni_precedenti!E25","v":0},{"$f":"Dati_Anni_precedenti!F25","v":0},{"$f":"+Piano_Tariffario!G32","v":0},{"$f":"+Piano_Tariffario!H32","v":0},{"$f":"+Piano_Tariffario!I32","v":0},{"$f":"+Piano_Tariffario!J32","v":0},null,null,null,null,null,null,false,false,false,false,false,false]
["Costi delle immobilizzazioni","ΔCUITcapex",{"$f":"Dati_Anni_precedenti!E26","v":0},{"$f":"Dati_Anni_precedenti!F26","v":0},{"$f":"+Piano_Tariffario!G33","v":0},{"$f":"+Piano_Tariffario!H33","v":0},{"$f":"+Piano_Tariffario!I33","v":0},{"$f":"+Piano_Tariffario!J33","v":0},null,null,null,null,null,null,false,false,false,false,false,false]
["Immobilizzazioni","IML",{"$f":"Dati_Anni_precedenti!E27","v":0},{"$f":"Dati_Anni_precedenti!F27","v":0},{"$f":"+TT_riepilogo_IMN!G6","v":0},{"$f":"+TT_riepilogo_IMN!H6","v":0},{"$f":"+TT_riepilogo_IMN!I6","v":0},{"$f":"+TT_riepilogo_IMN!J6","v":0},null,null,null,null,null,null,false,false,false,false,false,false]
["Immobilizzazioni","IMN",{"$f":"Dati_Anni_precedenti!E28","v":0},{"$f":"Dati_Anni_precedenti!F28","v":0},{"$f":"+TT_riepilogo_IMN!G8","v":0},{"$f":"+TT_riepilogo_IMN!H8","v":0},{"$f":"+TT_riepilogo_IMN!I8","v":0},{"$f":"+TT_riepilogo_IMN!J8","v":0},null,null,null,null,null,null,false,false,false,false,false,false]
["Immobilizzazioni","FA",{"$f":"Dati_Anni_precedenti!E29","v":0},{"$f":"Dati_Anni_precedenti!F29","v":0},{"$f":"+TT_riepilogo_IMN!G7","v":0},{"$f":"+TT_riepilogo_IMN!H7","v":0},{"$f":"+TT_riepilogo_IMN!I7","v":0},{"$f":"+TT_riepilogo_IMN!J7","v":0},null,null,null,null,null,null,false,false,false,false,false,false]
["Fondo Nuovi Investimenti","AMMfoni",{"$f":"Dati_Anni_precedenti!E30","v":0},{"$f":"Dati_Anni_precedenti!F30","v":0},{"$f":"+Piano_Tariffario!G48","v":0},{"$f":"+Piano_Tariffario!H48","v":0},{"$f":"+Piano_Tariffario!I48","v":0},{"$f":"+Piano_Tariffario!J48","v":0},null,null,null,null,null,null,false,false,false,false,false,false]
["Fondo Nuovi Investimenti","ΔCUITfoni",{"$f":"Dati_Anni_precedenti!E31","v":0},{"$f":"Dati_Anni_precedenti!F31","v":0},{"$f":"+Piano_Tariffario!G49","v":0},{"$f":"+Piano_Tariffario!H49","v":0},{"$f":"+Piano_Tariffario!I49","v":0},{"$f":"+Piano_Tariffario!J49","v":0},null,null,null,null,null,null,false,false,false,false,false,false]
["Fondo Nuovi Investimenti","FNIfoni",{"$f":"Dati_Anni_precedenti!E32","v":0},{"$f":"Dati_Anni_precedenti!F32","v":0},{"$f":"+Piano_Tariffario!G47","v":0},{"$f":"+Piano_Tariffario!H47","v":0},{"$f":"+Piano_Tariffario!I47","v":0},{"$f":"+Piano_Tariffario!J47","v":0},null,null,null,null,null,null,false,false,false,false,false,false]
["Costi Operativi, specifiche finalità","Opnew,a",{"$f":"Dati_Anni_precedenti!E33","v":0},{"$f":"Dati_Anni_precedenti!F33","v":0},{"$f":"+Opex!E67","v":0},{"$f":"+Opex!F67","v":0},{"$f":"+Opex!G67","v":0},{"$f":"+Opex!H67","v":0},null,null,null,null,null,null,false,false,false,false,false,false]
["Costi Operativi, specifiche finalità","OpexQT lett. a)",{"$f":"Dati_Anni_precedenti!E34","v":0},{"$f":"Dati_Anni_precedenti!F34","v":0},{"$f":"Opex!E95","v":0},{"$f":"Opex!F95","v":0},{"$f":"Opex!G95","v":0},{"$f":"Opex!H95","v":0},null,null,null,null,null,null,false,false,false,false,false,false]
["Costi Operativi, specifiche finalità","OpexQT lett. b)",{"$f":"Dati_Anni_precedenti!E35","v":0},{"$f":"Dati_Anni_precedenti!F35","v":0},{"$f":"Opex!E96","v":0},{"$f":"Opex!F96","v":0},{"$f":"Opex!G96","v":0},{"$f":"Opex!H96","v":0},null,null,null,null,null,null,false,false,false,false,false,false]
["Costi Operativi, specifiche finalità","OpexQT lett. c) 477/2023/R/IDR",{"$f":"Dati_Anni_precedenti!E36","v":0},{"$f":"Dati_Anni_precedenti!F36","v":0},{"$f":"Opex!E97","v":0},{"$f":"Opex!F97","v":0},{"$f":"Opex!G97","v":0},{"$f":"Opex!H97","v":0},null,null,null,null,null,null,false,false,false,false,false,false]
["Costi Operativi, specifiche finalità","OpexQT lett. c) 225/2025/R/IDR",null,null,{"$f":"Opex!E98","v":0},{"$f":"Opex!F98","v":0},{"$f":"Opex!G98","v":0},{"$f":"Opex!H98","v":0},null,null,null,null,null,null,null,null,false,false,false,false]
["Costi Operativi, specifiche finalità","OpexaQC - adeguamenti standard 655/2015/R/IDR\n(comma 19.9 lett. a)",{"$f":"Dati_Anni_precedenti!E37","v":0},{"$f":"Dati_Anni_precedenti!F37","v":0},{"$f":"Opex!E110","v":0},{"$f":"Opex!F110","v":0},{"$f":"Opex!G110","v":0},{"$f":"Opex!H110","v":0},null,null,null,null,null,null,{"$f":"+IF(ISNUMBER(C38),FALSE,TRUE)","v":false},{"$f":"+IF(ISNUMBER(D38),FALSE,TRUE)","v":false},false,false,false,false]
["Costi Operativi, specifiche finalità","OpexaQC - adeguamento agli obiettivi 547/2019/R/IDR\n(comma 19.9 lett. a)",{"$f":"Dati_Anni_precedenti!E38","v":0},{"$f":"Dati_Anni_precedenti!F38","v":0},{"$f":"Opex!E111","v":0},{"$f":"Opex!F111","v":0},{"$f":"Opex!G111","v":0},{"$f":"Opex!H111","v":0},null,null,null,null,null,null,false,false,false,false,false,false]
["Costi Operativi, specifiche finalità","OpexaQC - nuovi obiettivi di qualità contrattuale di cui alla deliberazione 579/2025/R/IDR\n(comma 19.9 lett. a-bis)",null,null,{"$f":"Opex!E112","v":0},{"$f":"Opex!F112","v":0},{"$f":"Opex!G112","v":0},{"$f":"Opex!H112","v":0},null,null,null,null,null,null,null,null,false,false,false,false]
["Costi Operativi, specifiche finalità","OpexQc lett. c) 476/2023/R/IDR",{"$f":"Dati_Anni_precedenti!E39","v":0},{"$f":"Dati_Anni_precedenti!F39","v":0},{"$f":"Opex!E113","v":0},{"$f":"Opex!F113","v":0},{"$f":"Opex!G113","v":0},{"$f":"Opex!H113","v":0},null,null,null,null,null,null,{"$f":"+IF(ISNUMBER(C41),FALSE,TRUE)","v":false},false,false,false,false,false]
["Costi Operativi, specifiche finalità","OpexQc lett. c) 277/2025/R/IDR",null,null,{"$f":"Opex!E114","v":0},{"$f":"Opex!F114","v":0},{"$f":"Opex!G114","v":0},{"$f":"Opex!H114","v":0},null,null,null,null,null,null,null,null,false,false,false,false]
["Costi Operativi, specifiche finalità","Opsocial lett.a)",{"$f":"Dati_Anni_precedenti!E40","v":0},{"$f":"Dati_Anni_precedenti!F40","v":0},{"$f":"Opex!E126","v":0},{"$f":"Opex!F126","v":0},{"$f":"Opex!G126","v":0},{"$f":"Opex!H126","v":0},null,null,null,null,null,null,{"$f":"+IF(ISNUMBER(C43),FALSE,TRUE)","v":false},false,false,false,false,false]
["Costi Operativi, specifiche finalità","Opasocial - lett. a-bis)",null,null,{"$f":"Opex!E127","v":0},{"$f":"Opex!F127","v":0},{"$f":"Opex!G127","v":0},{"$f":"Opex!H127","v":0},null,null,null,null,null,null,null,null,false,false,false,false]
["Costi Operativi, specifiche finalità","Opsocial lett.b)",{"$f":"Dati_Anni_precedenti!E41","v":0},{"$f":"Dati_Anni_precedenti!F41","v":0},{"$f":"Opex!E128","v":0},{"$f":"Opex!F128","v":0},{"$f":"Opex!G128","v":0},{"$f":"Opex!H128","v":0},null,null,null,null,null,null,{"$f":"+IF(ISNUMBER(C45),FALSE,TRUE)","v":false},{"$f":"+IF(ISNUMBER(D45),FALSE,TRUE)","v":false},false,false,false,false]
["Costi Operativi, specifiche finalità","Opmis",{"$f":"Dati_Anni_precedenti!E42","v":0},{"$f":"Dati_Anni_precedenti!F42","v":0},{"$f":"+Opex!E71","v":0},{"$f":"+Opex!F71","v":0},{"$f":"+Opex!G71","v":0},{"$f":"+Opex!H71","v":0},null,null,null,null,null,null,false,false,false,false,false,false]
["Costi Operativi, aggiornabili","COee",{"$f":"Dati_Anni_precedenti!E43","v":0},{"$f":"Dati_Anni_precedenti!F43","v":0},{"$f":"Opex!E179","v":0},{"$f":"Opex!F179","v":0},{"$f":"Opex!G179","v":0},{"$f":"Opex!H179","v":0},null,null,null,null,null,null,false,false,false,false,false,false]
["Costi Operativi, aggiornabili","Cows ",{"$f":"Dati_Anni_precedenti!E44","v":0},{"$f":"Dati_Anni_precedenti!F44","v":0},{"$f":"Opex!E192","v":0},{"$f":"Opex!F192","v":0},{"$f":"Opex!G192","v":0},{"$f":"Opex!H192","v":0},null,null,null,null,null,null,false,false,false,false,false,false]
["Costi Operativi, aggiornabili","COws, di cui OPexpws",{"$f":"Dati_Anni_precedenti!E45","v":0},{"$f":"Dati_Anni_precedenti!F45","v":0},{"$f":"Opex!E190","v":0},{"$f":"Opex!F190","v":0},{"$f":"Opex!G190","v":0},{"$f":"Opex!H190","v":0},null,null,null,null,null,null,false,false,false,false,false,false]
["Costi Operativi, aggiornabili","CoΔfanghi",{"$f":"Dati_Anni_precedenti!E46","v":0},{"$f":"Dati_Anni_precedenti!F46","v":0},{"$f":"Opex!E209","v":0},{"$f":"Opex!F209","v":0},{"$f":"Opex!G209","v":0},{"$f":"Opex!H209","v":0},null,null,null,null,null,null,false,false,false,false,false,false]
["Costi Operativi, aggiornabili","MT",{"$f":"Dati_Anni_precedenti!E47","v":0},{"$f":"Dati_Anni_precedenti!F47","v":0},{"$f":"Opex!E222","v":0},{"$f":"Opex!F222","v":0},{"$f":"Opex!G222","v":0},{"$f":"Opex!H222","v":0},null,null,null,null,null,null,false,false,false,false,false,false]
["Costi Operativi, aggiornabili","AC",{"$f":"Dati_Anni_precedenti!E48","v":0},{"$f":"Dati_Anni_precedenti!F48","v":0},{"$f":"Opex!E223","v":0},{"$f":"Opex!F223","v":0},{"$f":"Opex!G223","v":0},{"$f":"Opex!H223","v":0},null,null,null,null,null,null,false,false,false,false,false,false]
["Costi Operativi, aggiornabili","COato ",{"$f":"Dati_Anni_precedenti!E49","v":0},{"$f":"Dati_Anni_precedenti!F49","v":0},{"$f":"Opex!E238","v":0},{"$f":"Opex!F238","v":0},{"$f":"Opex!G238","v":0},{"$f":"Opex!H238","v":0},null,null,null,null,null,null,false,false,false,false,false,false]
["Costi Operativi, aggiornabili","COARERA",{"$f":"Dati_Anni_precedenti!E50","v":0},{"$f":"Dati_Anni_precedenti!F50","v":0},{"$f":"Opex!E239","v":0},{"$f":"Opex!F239","v":0},{"$f":"Opex!G239","v":0},{"$f":"Opex!H239","v":0},null,null,null,null,null,null,false,false,false,false,false,false]
["Costi Operativi, aggiornabili","COmor",{"$f":"Dati_Anni_precedenti!E51","v":0},{"$f":"Dati_Anni_precedenti!F51","v":0},{"$f":"Opex!E240","v":0},{"$f":"Opex!F240","v":0},{"$f":"Opex!G240","v":0},{"$f":"Opex!H240","v":0},null,null,null,null,null,null,false,false,false,false,false,false]
["Costi Operativi, aggiornabili","COres",{"$f":"Dati_Anni_precedenti!E52","v":0},{"$f":"Dati_Anni_precedenti!F52","v":0},{"$f":"Opex!E241","v":0},{"$f":"Opex!F241","v":0},{"$f":"Opex!G241","v":0},{"$f":"Opex!H241","v":0},null,null,null,null,null,null,false,false,false,false,false,false]
["Costi Operativi, aggiornabili","Contributi c/e",{"$f":"Dati_Anni_precedenti!E53","v":0},{"$f":"Dati_Anni_precedenti!F53","v":0},{"$f":"Opex!E310","v":0},{"$f":"Opex!F310","v":0},{"$f":"Opex!G310","v":0},{"$f":"Opex!H310","v":0},null,null,null,null,null,null,false,false,false,false,false,false]
["Costi Operativi, endogeni","Opexend",{"$f":"Dati_Anni_precedenti!E54","v":0},{"$f":"Dati_Anni_precedenti!F54","v":0},{"$f":"+Opex!E11","v":0},{"$f":"+Opex!F11","v":0},{"$f":"+Opex!G11","v":0},{"$f":"+Opex!H11","v":0},null,null,null,null,null,null,false,false,false,false,false,false]
["Costi ambientali e della risorsa (immobilizzazioni)","ENVcapex",{"$f":"Dati_Anni_precedenti!E55","v":0},{"$f":"Dati_Anni_precedenti!F55","v":0},{"$f":"ERC!E46","v":0},{"$f":"ERC!F46","v":0},{"$f":"ERC!G46","v":0},{"$f":"ERC!H46","v":0},null,null,null,null,null,null,false,false,false,false,false,false]
["Costi ambientali e della risorsa (immobilizzazioni)","REScapex",{"$f":"Dati_Anni_precedenti!E56","v":0},{"$f":"Dati_Anni_precedenti!F56","v":0},{"$f":"ERC!E47","v":0},{"$f":"ERC!F47","v":0},{"$f":"ERC!G47","v":0},{"$f":"ERC!H47","v":0},null,null,null,null,null,null,false,false,false,false,false,false]
["Costi ambientali e della risorsa (costi operativi)","ENVopex",{"$f":"Dati_Anni_precedenti!E57","v":0},{"$f":"Dati_Anni_precedenti!F57","v":0},{"$f":"ERC!E221","v":0},{"$f":"ERC!F221","v":0},{"$f":"ERC!G221","v":0},{"$f":"ERC!H221","v":0},null,null,null,null,null,null,false,false,false,false,false,false]
["Costi ambientali e della risorsa (costi operativi)","RESopex",{"$f":"Dati_Anni_precedenti!E58","v":0},{"$f":"Dati_Anni_precedenti!F58","v":0},{"$f":"ERC!E222","v":0},{"$f":"ERC!F222","v":0},{"$f":"ERC!G222","v":0},{"$f":"ERC!H222","v":0},null,null,null,null,null,null,false,false,false,false,false,false]
["Costi ambientali e della risorsa (costi operativi)","ERCend",{"$f":"Dati_Anni_precedenti!E59","v":0},{"$f":"Dati_Anni_precedenti!F59","v":0},{"$f":"ERC!E144","v":0},{"$f":"ERC!F144","v":0},{"$f":"ERC!G144","v":0},{"$f":"ERC!H144","v":0},null,null,null,null,null,null,false,false,false,false,false,false]
["Costi ambientali e della risorsa (costi operativi)","ERCal",{"$f":"Dati_Anni_precedenti!E60","v":0},{"$f":"Dati_Anni_precedenti!F60","v":0},{"$f":"ERC!E145","v":0},{"$f":"ERC!F145","v":0},{"$f":"ERC!G145","v":0},{"$f":"ERC!H145","v":0},null,null,null,null,null,null,false,false,false,false,false,false]
["Costi ambientali e della risorsa (costi operativi)","ERCQT lett. a) ",{"$f":"Dati_Anni_precedenti!E61","v":0},{"$f":"Dati_Anni_precedenti!F61","v":0},{"$f":"MIN(ERC!E198,ERC!E199)","v":0},{"$f":"+E65","v":0},{"$f":"+D65","v":0},0,null,null,null,null,null,null,false,false,false,false,false,false]
["Costi ambientali e della risorsa (costi operativi)","ERCQT lett. b)",{"$f":"Dati_Anni_precedenti!E62","v":0},{"$f":"Dati_Anni_precedenti!F62","v":0},{"$f":"ERC!E200","v":0},{"$f":"ERC!F200","v":0},{"$f":"ERC!G200","v":0},{"$f":"ERC!H200","v":0},null,null,null,null,null,null,false,false,false,false,false,false]
["Costi ambientali e della risorsa (costi operativi)","ERCQT comma 19.8 lett. c) 477/2023/R/IDR",{"$f":"Dati_Anni_precedenti!E63","v":0},{"$f":"Dati_Anni_precedenti!F63","v":0},{"$f":"ERC!E201","v":0},{"$f":"ERC!F201","v":0},{"$f":"ERC!G201","v":0},{"$f":"ERC!H201","v":0},null,null,null,null,null,null,false,false,false,false,false,false]
["Costi ambientali e della risorsa (costi operativi)","ERCQT comma 19.8 lett. c) 225/2025/R/IDR",null,null,{"$f":"ERC!E202","v":0},{"$f":"ERC!F202","v":0},{"$f":"ERC!G202","v":0},{"$f":"ERC!H202","v":0},null,null,null,null,null,null,null,null,false,false,false,false]
["Costi ambientali e della risorsa (costi operativi)","ERCa tel - di cui Opnew lett. c)",{"$f":"Dati_Anni_precedenti!E64","v":0},{"$f":"Dati_Anni_precedenti!F64","v":0},{"$f":"ERC!E204","v":0},{"$f":"ERC!F204","v":0},{"$f":"ERC!G204","v":0},{"$f":"ERC!H204","v":0},null,null,null,null,null,null,{"$f":"+IF(ISNUMBER(C69),FALSE,TRUE)","v":false},{"$f":"+IF(ISNUMBER(D69),FALSE,TRUE)","v":false},false,false,false,false]
["Sezione Conguagli (include inflazione)","RcVOL",{"$f":"Dati_Anni_precedenti!E65","v":0},{"$f":"Dati_Anni_precedenti!F65","v":0},{"$f":"'Rc'!E20","v":0},{"$f":"'Rc'!F20","v":0},{"$f":"'Rc'!G20","v":0},{"$f":"'Rc'!H20","v":0},null,null,null,null,null,null,false,false,false,false,false,false]
["Sezione Conguagli (include inflazione)","RcEE",{"$f":"Dati_Anni_precedenti!E66","v":0},{"$f":"Dati_Anni_precedenti!F66","v":0},{"$f":"'Rc'!E21","v":0},{"$f":"'Rc'!F21","v":0},{"$f":"'Rc'!G21","v":0},{"$f":"'Rc'!H21","v":0},null,null,null,null,null,null,false,false,false,false,false,false]
["Sezione Conguagli (include inflazione)","RcWS",{"$f":"Dati_Anni_precedenti!E67","v":0},{"$f":"Dati_Anni_precedenti!F67","v":0},{"$f":"'Rc'!E22","v":0},{"$f":"'Rc'!F22","v":0},{"$f":"'Rc'!G22","v":0},{"$f":"'Rc'!H22","v":0},null,null,null,null,null,null,false,false,false,false,false,false]
["Sezione Conguagli (include inflazione)","RcERCa",{"$f":"Dati_Anni_precedenti!E68","v":0},{"$f":"Dati_Anni_precedenti!F68","v":0},{"$f":"'Rc'!E23","v":0},{"$f":"'Rc'!F23","v":0},{"$f":"'Rc'!G23","v":0},{"$f":"'Rc'!H23","v":0},null,null,null,null,null,null,false,false,false,false,false,false]
["Sezione Conguagli (include inflazione)","Rcab1",{"$f":"Dati_Anni_precedenti!E69","v":0},{"$f":"Dati_Anni_precedenti!F69","v":0},{"$f":"'Rc'!E178*VLOOKUP(\"da t-2 a t\",PINF,E$3 - 2011,FALSE)","v":0},{"$f":"'Rc'!F178*VLOOKUP(\"da t-2 a t\",PINF,F$3 - 2011,FALSE)","v":0},{"$f":"'Rc'!G178*VLOOKUP(\"da t-2 a t\",PINF,G$3 - 2011,FALSE)","v":0},{"$f":"'Rc'!H178*VLOOKUP(\"da t-2 a t\",PINF,H$3 - 2011,FALSE)","v":0},null,null,null,null,null,null,false,false,false,false,false,false]
["Sezione Conguagli (include inflazione)","Rcab2",{"$f":"Dati_Anni_precedenti!E70","v":0},{"$f":"Dati_Anni_precedenti!F70","v":0},{"$f":"'Rc'!E179*VLOOKUP(\"da t-2 a t\",PINF,E$3 - 2011,FALSE)","v":0},{"$f":"'Rc'!F179*VLOOKUP(\"da t-2 a t\",PINF,F$3 - 2011,FALSE)","v":0},{"$f":"'Rc'!G179*VLOOKUP(\"da t-2 a t\",PINF,G$3 - 2011,FALSE)","v":0},{"$f":"'Rc'!H179*VLOOKUP(\"da t-2 a t\",PINF,H$3 - 2011,FALSE)","v":0},null,null,null,null,null,null,false,false,false,false,false,false]
["Sezione Conguagli (include inflazione)","Rcab",{"$f":"+C75+C74","v":0},{"$f":"+D75+D74","v":0},{"$f":"'Rc'!E180*VLOOKUP(\"da t-2 a t\",PINF,E$3 - 2011,FALSE)","v":0},{"$f":"'Rc'!F180*VLOOKUP(\"da t-2 a t\",PINF,F$3 - 2011,FALSE)","v":0},{"$f":"'Rc'!G180*VLOOKUP(\"da t-2 a t\",PINF,G$3 - 2011,FALSE)","v":0},{"$f":"'Rc'!H180*VLOOKUP(\"da t-2 a t\",PINF,H$3 - 2011,FALSE)","v":0},null,null,null,null,null,null,false,false,false,false,false,false]
["Sezione Conguagli (include inflazione)","Rcares",{"$f":"Dati_Anni_precedenti!E71","v":0},{"$f":"Dati_Anni_precedenti!F71","v":0},{"$f":"+'Rc'!E138*VLOOKUP(\"da t-2 a t\",PINF,E$3 - 2011,FALSE)","v":0},{"$f":"+'Rc'!F138*VLOOKUP(\"da t-2 a t\",PINF,F$3 - 2011,FALSE)","v":0},{"$f":"+'Rc'!G138*VLOOKUP(\"da t-2 a t\",PINF,G$3 - 2011,FALSE)","v":0},{"$f":"+'Rc'!H138*VLOOKUP(\"da t-2 a t\",PINF,H$3 - 2011,FALSE)","v":0},null,null,null,null,null,null,false,false,{"$f":"+IF(ISNUMBER(E77),FALSE,TRUE)","v":false},{"$f":"+IF(ISNUMBER(F77),FALSE,TRUE)","v":false},{"$f":"+IF(ISNUMBER(G77),FALSE,TRUE)","v":false},{"$f":"+IF(ISNUMBER(H77),FALSE,TRUE)","v":false}]
["Sezione Conguagli (include inflazione)","RcaARERA",{"$f":"Dati_Anni_precedenti!E72","v":0},{"$f":"Dati_Anni_precedenti!F72","v":0},{"$f":"+'Rc'!E139*VLOOKUP(\"da t-2 a t\",PINF,E$3 - 2011,FALSE)","v":0},{"$f":"+'Rc'!F139*VLOOKUP(\"da t-2 a t\",PINF,F$3 - 2011,FALSE)","v":0},{"$f":"+'Rc'!G139*VLOOKUP(\"da t-2 a t\",PINF,G$3 - 2011,FALSE)","v":0},{"$f":"+'Rc'!H139*VLOOKUP(\"da t-2 a t\",PINF,H$3 - 2011,FALSE)","v":0},null,null,null,null,null,null,false,false,false,false,false,false]
["Sezione Conguagli (include inflazione)","Costo forniture all’ingrosso transfrontaliere",{"$f":"Dati_Anni_precedenti!E73","v":0},{"$f":"Dati_Anni_precedenti!F73","v":0},{"$f":"+'Rc'!E140*VLOOKUP(\"da t-2 a t\",PINF,E$3 - 2011,FALSE)","v":0},{"$f":"+'Rc'!F140*VLOOKUP(\"da t-2 a t\",PINF,F$3 - 2011,FALSE)","v":0},null,null,null,null,null,null,null,null,false,false,false,false]
["Sezione Conguagli (include inflazione)","RcIP (valori a moneta a-2, include eventuale FoNInoninv)",{"$f":"Dati_Anni_precedenti!E74","v":0},{"$f":"Dati_Anni_precedenti!F74","v":0},{"$f":"+'Rc'!E141*VLOOKUP(\"da t-2 a t\",PINF,E$3 - 2011,FALSE)","v":0},{"$f":"+'Rc'!F141*VLOOKUP(\"da t-2 a t\",PINF,F$3 - 2011,FALSE)","v":0},null,null,null,null,null,null,null,null,null,{"$f":"+IF(ISNUMBER(D80),FALSE,TRUE)","v":false},null,{"$f":"+IF(ISNUMBER(F80),FALSE,TRUE)","v":false}]
["Sezione Conguagli (include inflazione)","Costi per variazioni sistemiche / eventi eccezionali",{"$f":"Dati_Anni_precedenti!E75","v":0},{"$f":"Dati_Anni_precedenti!F75","v":0},{"$f":"+Altri_dati_eco_fin!E50*VLOOKUP(\"da t-2 a t\",PINF,E$3 - 2011,FALSE)","v":0},{"$f":"+Altri_dati_eco_fin!F50*VLOOKUP(\"da t-2 a t\",PINF,F$3 - 2011,FALSE)","v":0},null,null,null,null,null,null,null,null,{"$f":"+IF(ISNUMBER(C81),FALSE,TRUE)","v":false},false,false,false]
["Sezione Conguagli (include inflazione)","Variazioni sistemiche, di cui: per eventi eccezionali, energia elettrica",{"$f":"Dati_Anni_precedenti!E76","v":0},{"$f":"Dati_Anni_precedenti!F76","v":0},null,null,null,null,null,null,null,null,null,null,false,false]
["Sezione Conguagli (include inflazione)","Variazioni sistemiche, di cui: per eventi eccezionali, altro",{"$f":"Dati_Anni_precedenti!E77","v":0},{"$f":"Dati_Anni_precedenti!F77","v":0},{"$f":"Altri_dati_eco_fin!E52*VLOOKUP(\"da t-2 a t\",PINF,E$3 - 2011,FALSE)","v":0},{"$f":"Altri_dati_eco_fin!F52*VLOOKUP(\"da t-2 a t\",PINF,F$3 - 2011,FALSE)","v":0},null,null,null,null,null,null,null,null,false,false,{"$f":"+IF(ISNUMBER(E83),FALSE,TRUE)","v":false},{"$f":"+IF(ISNUMBER(F83),FALSE,TRUE)","v":false}]
["Sezione Conguagli (include inflazione)","Rimb335a",{"$f":"Dati_Anni_precedenti!E78","v":0},{"$f":"Dati_Anni_precedenti!F78","v":0},{"$f":"+'Rc'!E143*VLOOKUP(\"da t-2 a t\",PINF,E$3 - 2011,FALSE)","v":0},{"$f":"+'Rc'!F143*VLOOKUP(\"da t-2 a t\",PINF,F$3 - 2011,FALSE)","v":0},null,null,null,null,null,null,null,null,false,false,false,false]
["Sezione Conguagli (include inflazione)","Rcaappr",{"$f":"Dati_Anni_precedenti!E79","v":0},{"$f":"Dati_Anni_precedenti!F79","v":0},{"$f":"+'Rc'!E144*VLOOKUP(\"da t-2 a t\",PINF,E$3 - 2011,FALSE)","v":0},{"$f":"+'Rc'!F144*VLOOKUP(\"da t-2 a t\",PINF,F$3 - 2011,FALSE)","v":0},{"$f":"+'Rc'!G144*VLOOKUP(\"da t-2 a t\",PINF,G$3 - 2011,FALSE)","v":0},{"$f":"+'Rc'!H144*VLOOKUP(\"da t-2 a t\",PINF,H$3 - 2011,FALSE)","v":0},null,null,null,null,null,null,false,false,false,false,{"$f":"+IF(ISNUMBER(G85),FALSE,TRUE)","v":false},{"$f":"+IF(ISNUMBER(H85),FALSE,TRUE)","v":false}]
["Sezione Conguagli (include inflazione)","DOpexQC",{"$f":"Dati_Anni_precedenti!E80","v":0},{"$f":"Dati_Anni_precedenti!F80","v":0},{"$f":"+'Rc'!E145*VLOOKUP(\"da t-2 a t\",PINF,E$3 - 2011,FALSE)","v":0},{"$f":"+'Rc'!F145*VLOOKUP(\"da t-2 a t\",PINF,F$3 - 2011,FALSE)","v":0},{"$f":"+'Rc'!G145*VLOOKUP(\"da t-2 a t\",PINF,G$3 - 2011,FALSE)","v":0},{"$f":"+'Rc'!H145*VLOOKUP(\"da t-2 a t\",PINF,H$3 - 2011,FALSE)","v":0},null,null,null,null,null,null,false,false,false,false,false,false]
["Sezione Conguagli (include inflazione)","DOpexQT",{"$f":"Dati_Anni_precedenti!E81","v":0},{"$f":"Dati_Anni_precedenti!F81","v":0},{"$f":"+'Rc'!E146*VLOOKUP(\"da t-2 a t\",PINF,E$3 - 2011,FALSE)","v":0},{"$f":"+'Rc'!F146*VLOOKUP(\"da t-2 a t\",PINF,F$3 - 2011,FALSE)","v":0},{"$f":"+'Rc'!G146*VLOOKUP(\"da t-2 a t\",PINF,G$3 - 2011,FALSE)","v":0},{"$f":"+'Rc'!H146*VLOOKUP(\"da t-2 a t\",PINF,H$3 - 2011,FALSE)","v":0},null,null,null,null,null,null,false,false,false,false,false,false]
["Sezione Conguagli (include inflazione)","DOpsocial",{"$f":"Dati_Anni_precedenti!E82","v":0},{"$f":"Dati_Anni_precedenti!F82","v":0},{"$f":"+'Rc'!E147*VLOOKUP(\"da t-2 a t\",PINF,E$3 - 2011,FALSE)","v":0},{"$f":"+'Rc'!F147*VLOOKUP(\"da t-2 a t\",PINF,F$3 - 2011,FALSE)","v":0},{"$f":"+'Rc'!G147*VLOOKUP(\"da t-2 a t\",PINF,G$3 - 2011,FALSE)","v":0},{"$f":"+'Rc'!H147*VLOOKUP(\"da t-2 a t\",PINF,H$3 - 2011,FALSE)","v":0},null,null,null,null,null,null,false,false,false,false,false,false]
["Sezione Conguagli (include inflazione)","Penalità RQSII - Delibere 476/2023/R/IDR -  277/2025/R/IDR",{"$f":"Dati_Anni_precedenti!E83","v":0},{"$f":"Dati_Anni_precedenti!F83","v":0},{"$f":"'Rc'!E149*VLOOKUP(\"da t-2 a t\",PINF,E$3 - 2011,FALSE)","v":0},{"$f":"'Rc'!F149*VLOOKUP(\"da t-2 a t\",PINF,F$3 - 2011,FALSE)","v":0},null,null,null,null,null,null,null,null,false,false,false,false]
["Sezione Conguagli (include inflazione)","Penalità RQTI - Delibere 477/2023/R/IDR - 225/2025/R/IDR",{"$f":"Dati_Anni_precedenti!E84","v":0},{"$f":"Dati_Anni_precedenti!F84","v":0},{"$f":"'Rc'!E150*VLOOKUP(\"da t-2 a t\",PINF,E$3 - 2011,FALSE)","v":0},{"$f":"'Rc'!F150*VLOOKUP(\"da t-2 a t\",PINF,F$3 - 2011,FALSE)","v":0},null,null,null,null,null,null,null,null,false,false,false,false]
["Sezione Conguagli (include inflazione)","DOpmis",{"$f":"Dati_Anni_precedenti!E85","v":0},{"$f":"Dati_Anni_precedenti!F85","v":0},{"$f":"+'Rc'!E273*VLOOKUP(\"da t-2 a t\",PINF,E$3 - 2011,FALSE)","v":0},{"$f":"+'Rc'!F273*VLOOKUP(\"da t-2 a t\",PINF,F$3 - 2011,FALSE)","v":0},{"$f":"+'Rc'!G273*VLOOKUP(\"da t-2 a t\",PINF,G$3 - 2011,FALSE)","v":0},{"$f":"+'Rc'!H273*VLOOKUP(\"da t-2 a t\",PINF,H$3 - 2011,FALSE)","v":0},null,null,null,null,null,null,false,false,false,false,{"$f":"+IF(ISNUMBER(G91),FALSE,TRUE)","v":false},false]
["Sezione Conguagli (include inflazione)","RcARC",{"$f":"Dati_Anni_precedenti!E86","v":0},{"$f":"Dati_Anni_precedenti!F86","v":0},null,null,null,null,null,null,null,null,null,null,false,false]
["Sezione Conguagli (include inflazione)","Recupero volumi 2021/2023",null,{"$f":"Dati_Anni_precedenti!F87","v":0},null,{"$f":"+'Rc'!F151*VLOOKUP(\"da t-2 a t\",PINF,F$3 - 2011,FALSE)","v":0},null,null,null,null,null,null,null,null,null,false,null,false]
["Sezione Conguagli (include inflazione)","Recupero energia elettrica 2021/2023",null,{"$f":"Dati_Anni_precedenti!F88","v":0},null,{"$f":"+'Rc'!F152*VLOOKUP(\"da t-2 a t\",PINF,F$3 - 2011,FALSE)","v":0},null,null,null,null,null,null,null,null,null,false,null,false]
["Sezione Conguagli (include inflazione)","Recupero straordinario inflazione",null,{"$f":"Dati_Anni_precedenti!F89","v":0},null,{"$f":"+'Rc'!F153*VLOOKUP(\"da t-2 a t\",PINF,F$3 - 2011,FALSE)","v":0},null,null,null,null,null,null,null,null,null,false,null,false]
["Sezione Conguagli (include inflazione)","Rctot",{"$f":"Dati_Anni_precedenti!E90","v":0},{"$f":"Dati_Anni_precedenti!F90","v":0},{"$f":"+Piano_Tariffario!G57","v":0},{"$f":"+Piano_Tariffario!H57","v":0},{"$f":"+Piano_Tariffario!I57","v":0},{"$f":"+Piano_Tariffario!J57","v":0},null,null,null,null,null,null,{"$f":"+IF(ISNUMBER(C96),FALSE,TRUE)","v":false},false,false,false,false,false]
["Ammortamento finanziario","AF MTI-4",{"$f":"Dati_Anni_precedenti!E91","v":0},{"$f":"Dati_Anni_precedenti!F91","v":0},{"$f":"+Ammortamento_Finanziario!H4","v":"NO"},{"$f":"+Ammortamento_Finanziario!I4","v":"NO"},{"$f":"+Ammortamento_Finanziario!J4","v":"NO"},{"$f":"+Ammortamento_Finanziario!K4","v":"NO"}]
["Altro","FoNInoninv",{"$f":"Dati_Anni_precedenti!E92","v":0},{"$f":"Dati_Anni_precedenti!F92","v":0},{"$f":"+FoNI!E122","v":0},{"$f":"+FoNI!F122","v":0},{"$f":"+FoNI!G122","v":0},{"$f":"+FoNI!H122","v":0},null,null,null,null,null,null,{"$f":"+IF(ISNUMBER(C98),FALSE,TRUE)","v":false},false,false,false,false,false]
[]
[]
[]
[]
[]
[]
[]
[]
["Verifica VRG","VRG calc",{"$f":"+SUM(C23:C26,C30:C32,C33:C46,C47,C48,C50:C55,C56,C58,C59:C60,C63:C67,C96)","v":0},0,0,0,0,0,null,"riga di controllo",null,null,null,null,{"$f":"+IF(ABS(E108)<5,FALSE,TRUE)","v":false},{"$f":"+IF(ABS(F108)<5,FALSE,TRUE)","v":false},{"$f":"+IF(ABS(C108)<5,FALSE,TRUE)","v":false},{"$f":"+IF(ABS(D108)<5,FALSE,TRUE)","v":false},{"$f":"+IF(ABS(G108)<5,FALSE,TRUE)","v":false},false]
[null,null,{"$f":"+C107-C16","v":0},0,0,0,0,0]

{"sheet":"Piano_Tariffario","index":40,"n_rows":104,"n_cols":44,"rows_kept":104,"cut":false,"hidden":false,"merged":[]}
[]
[null,null,"PIANO TARIFFARIO"]
[null,null,"SCHEMI REGOLATORI"]
[]
[null,null,null,"UdM","Del. 639/2023/R/IDR",null,"Del. 582/2025/R/IDR"]
[null,null,"VRG2022","euro",{"$f":"Storico_Piano_Tariffario!E6","v":0},null,{"$f":"IF(Input_per_calcoli_finali!O55<>\"Schema regolatorio\",\"\",Framework_schemi!$C$76)","v":""}]
[null,null,"pop + 0,25 popflut","n. abitante",{"$f":"Storico_Piano_Tariffario!E7","v":0},null,{"$f":"IF(Input_per_calcoli_finali!O55<>\"Schema regolatorio\",\"\",Framework_schemi!$C$77)","v":""}]
[null,null,null,"SI/NO",{"$f":"Storico_Piano_Tariffario!E8","v":0},null,{"$f":"+IFERROR(IF((E6/E7)<=149,\"SI\",\"NO\"),\"\")","v":""}]
[null,null,"Nessuna aggregazione o variazione dei processi tecnici significativa:     (NO)\n                                                  oppure\nPresenza di aggregazioni o variazioni dei processi tecnici significative:    (SI)","SI/NO",{"$f":"Storico_Piano_Tariffario!E9","v":0},null,{"$f":"IF(Input_per_calcoli_finali!O55<>\"Schema regolatorio\",\"\",Framework_schemi!C75)","v":""}]
[null,null,null,"euro",{"$f":"Storico_Piano_Tariffario!E10","v":0},null,{"$f":"Framework_schemi!$C$66","v":0}]
[null,null,"RABMTI-3","euro",{"$f":"Storico_Piano_Tariffario!E11","v":0},null,{"$f":"+Framework_schemi!C67","v":0}]
[null,null,null,"SI/NO",{"$f":"Storico_Piano_Tariffario!E12","v":0},null,{"$f":"+IF(Framework_schemi!C70=\"\",\"\",IF(Framework_schemi!C70=1,\"SI\",\"NO\"))","v":""}]
[null,null,"SCHEMA REGOLATORIO                                         (A)\n\nSCHEMA REGOLATORIO DI CONVERGENZA           (B)","A/B",{"$f":"Storico_Piano_Tariffario!E13","v":0},null,{"$f":"+IF(mti_4=\"\",\"\",mti_4)","v":""}]
[null,null,"y","(0,4-0,8)",{"$f":"Storico_Piano_Tariffario!E14","v":0},null,{"$f":"+IF(Input_per_calcoli_finali!O55<>\"Schema regolatorio\",\"\",Input_per_calcoli_finali!$K$51)","v":""}]
[null,null,"SCHEMA REGOLATORIO","(I, II, III, IV, V, VI)",{"$f":"Storico_Piano_Tariffario!E15","v":0},null,{"$f":"+IF(Input_per_calcoli_finali!O55<>\"Schema regolatorio\",\"\",IF(OR(schema=\"I\",schema=\"II\",schema=\"III\",schema=\"IV\",schema=\"V\",schema=\"VI\"),schema,\"\"))","v":""}]
[]
[]
[]
[]
[null,null,"COMPONENTI DI COSTO Opex, Capex , FNInew, ERC"]
[null,null,null,"UdM","ANNO 2024","ANNO 2025","ANNO 2026","ANNO 2027","ANNO 2028","ANNO 2029","ANNO 2030","ANNO 2031","ANNO 2032","ANNO 2033","ANNO 2034","ANNO 2035","ANNO 2036","ANNO 2037","ANNO 2038","ANNO 2039","ANNO 2040","ANNO 2041","ANNO 2042","ANNO 2043","ANNO 2044","ANNO 2045","ANNO 2046","ANNO 2047","ANNO 2048","ANNO 2049","ANNO 2050","ANNO 2051","ANNO 2052","ANNO 2053","ANNO 2054","ANNO 2055","ANNO 2056","ANNO 2057","ANNO 2058","ANNO 2059","ANNO 2060","ANNO 2061","ANNO 2062","ANNO 2063"]
[null,null,"Opexaend ","euro",{"$f":"Storico_Piano_Tariffario!E22","v":0},{"$f":"Storico_Piano_Tariffario!F22","v":0},{"$f":"Opex!E11","v":0},{"$f":"Opex!F11","v":0},{"$f":"Opex!G11","v":0},{"$f":"Opex!H11","v":0}]
[null,null,"Opexaal ","euro",{"$f":"Storico_Piano_Tariffario!E23","v":0},{"$f":"Storico_Piano_Tariffario!F23","v":0},{"$f":"Opex!E12","v":0},{"$f":"Opex!F12","v":0},{"$f":"Opex!G12","v":0},{"$f":"Opex!H12","v":0}]
[null,null,"Opnew,a","euro",{"$f":"Storico_Piano_Tariffario!E24","v":0},{"$f":"Storico_Piano_Tariffario!F24","v":0},{"$f":"Opex!E67","v":0},{"$f":"Opex!F67","v":0},{"$f":"Opex!G67","v":0},{"$f":"Opex!H67","v":0}]
[null,null,"OpexaQT ","euro",{"$f":"Storico_Piano_Tariffario!E25","v":0},{"$f":"Storico_Piano_Tariffario!F25","v":0},{"$f":"Opex!E68","v":0},{"$f":"Opex!F68","v":0},{"$f":"Opex!G68","v":0},{"$f":"Opex!H68","v":0}]
[null,null,"OpexaQC","euro",{"$f":"Storico_Piano_Tariffario!E26","v":0},{"$f":"Storico_Piano_Tariffario!F26","v":0},{"$f":"Opex!E69","v":0},{"$f":"Opex!F69","v":0},{"$f":"Opex!G69","v":0},{"$f":"Opex!H69","v":0}]
[null,null,"Opasocial","euro",{"$f":"Storico_Piano_Tariffario!E27","v":0},{"$f":"Storico_Piano_Tariffario!F27","v":0},{"$f":"Opex!E70","v":0},{"$f":"Opex!F70","v":0},{"$f":"Opex!G70","v":0},{"$f":"Opex!H70","v":0}]
[null,null,"Opamis","euro",{"$f":"Storico_Piano_Tariffario!E28","v":0},{"$f":"Storico_Piano_Tariffario!F28","v":0},{"$f":"Opex!E71","v":0},{"$f":"Opex!F71","v":0},{"$f":"Opex!G71","v":0},{"$f":"Opex!H71","v":0}]
[null,null,"Opexa (al netto degli ERC)","euro",{"$f":"Storico_Piano_Tariffario!E29","v":0},{"$f":"Storico_Piano_Tariffario!F29","v":0},{"$f":"+SUM(G22:G28)","v":0},0,0,0]
[null,null,"AMMa","euro",{"$f":"Storico_Piano_Tariffario!E30","v":0},{"$f":"Storico_Piano_Tariffario!F30","v":0},{"$f":"+Capex!E13","v":0},{"$f":"+Capex!F13","v":0},{"$f":"+Capex!G13","v":0},{"$f":"+Capex!H13","v":0}]
[null,null,"OFa","euro",{"$f":"Storico_Piano_Tariffario!E31","v":0},{"$f":"Storico_Piano_Tariffario!F31","v":0},{"$f":"+Capex!E11","v":0},{"$f":"+Capex!F11","v":0},{"$f":"+Capex!G11","v":0},{"$f":"+Capex!H11","v":0}]
[null,null,"OFisca","euro",{"$f":"Storico_Piano_Tariffario!E32","v":0},{"$f":"Storico_Piano_Tariffario!F32","v":0},{"$f":"+Capex!E12","v":0},{"$f":"+Capex!F12","v":0},{"$f":"+Capex!G12","v":0},{"$f":"+Capex!H12","v":0}]
[null,null,"DCUITaCapex","euro",{"$f":"Storico_Piano_Tariffario!E33","v":0},{"$f":"Storico_Piano_Tariffario!F33","v":0},{"$f":"+Capex!E14","v":0},{"$f":"+Capex!F14","v":0},{"$f":"+Capex!G14","v":0},{"$f":"+Capex!H14","v":0}]
[null,null,"Capexa (al netto degli ERC)","euro",{"$f":"Storico_Piano_Tariffario!E34","v":0},{"$f":"Storico_Piano_Tariffario!F34","v":0},{"$f":"SUM(G30:G33)","v":0},0,0,0]
[null,null,"IPtexp","euro",{"$f":"Storico_Piano_Tariffario!E35","v":0},{"$f":"Storico_Piano_Tariffario!F35","v":0},{"$f":"FoNI!E74","v":0},{"$f":"FoNI!F74","v":0},{"$f":"FoNI!G74","v":0},{"$f":"FoNI!H74","v":0}]
[null,null,"Capexa","euro",{"$f":"Storico_Piano_Tariffario!E36","v":0},{"$f":"Storico_Piano_Tariffario!F36","v":0},{"$f":"FoNI!E75","v":0},{"$f":"FoNI!F75","v":0},{"$f":"FoNI!G75","v":0},{"$f":"FoNI!H75","v":0}]
[null,null,"FNInew,a","euro",{"$f":"Storico_Piano_Tariffario!E37","v":0},{"$f":"Storico_Piano_Tariffario!F37","v":0},{"$f":"+FoNI!E12","v":0},{"$f":"+FoNI!F12","v":0},{"$f":"+FoNI!G12","v":0},{"$f":"+FoNI!H12","v":0}]
[null,null,null,null,{"$f":"Storico_Piano_Tariffario!E38","v":0},{"$f":"Storico_Piano_Tariffario!F38","v":0}]
[null,null,null,null,{"$f":"Storico_Piano_Tariffario!E39","v":0},{"$f":"Storico_Piano_Tariffario!F39","v":0}]
[null,null,null,null,{"$f":"Storico_Piano_Tariffario!E40","v":0},{"$f":"Storico_Piano_Tariffario!F40","v":0}]
[null,null,"ERCacapex","euro",{"$f":"Storico_Piano_Tariffario!E41","v":0},{"$f":"Storico_Piano_Tariffario!F41","v":0},{"$f":"ERC!E11","v":0},{"$f":"ERC!F11","v":0},{"$f":"ERC!G11","v":0},{"$f":"ERC!H11","v":0}]
[null,null,"ERCaopex","euro",{"$f":"Storico_Piano_Tariffario!E42","v":0},{"$f":"Storico_Piano_Tariffario!F42","v":0},{"$f":"ERC!E12","v":0},{"$f":"ERC!F12","v":0},{"$f":"ERC!G12","v":0},{"$f":"ERC!H12","v":0}]
[null,null,"ERCa","euro",{"$f":"Storico_Piano_Tariffario!E43","v":0},{"$f":"Storico_Piano_Tariffario!F43","v":0},{"$f":"+G41+G42","v":0},0,0,0]
[]
[null,null,"FONDO NUOVI INVESTIMENTI"]
[null,null,null,"UdM","ANNO 2024","ANNO 2025","ANNO 2026","ANNO 2027","ANNO 2028","ANNO 2029","ANNO 2030","ANNO 2031","ANNO 2032","ANNO 2033","ANNO 2034","ANNO 2035","ANNO 2036","ANNO 2037","ANNO 2038","ANNO 2039","ANNO 2040","ANNO 2041","ANNO 2042","ANNO 2043","ANNO 2044","ANNO 2045","ANNO 2046","ANNO 2047","ANNO 2048","ANNO 2049","ANNO 2050","ANNO 2051","ANNO 2052","ANNO 2053","ANNO 2054","ANNO 2055","ANNO 2056","ANNO 2057","ANNO 2058","ANNO 2059","ANNO 2060","ANNO 2061","ANNO 2062","ANNO 2063"]
[null,null,"FNIaFoNI","euro",{"$f":"Storico_Piano_Tariffario!E47","v":0},{"$f":"Storico_Piano_Tariffario!F47","v":0},{"$f":"+FoNI!E12","v":0},{"$f":"+FoNI!F12","v":0},{"$f":"+FoNI!G12","v":0},{"$f":"+FoNI!H12","v":0}]
[null,null,"AMMaFoNI","euro",{"$f":"Storico_Piano_Tariffario!E48","v":0},{"$f":"Storico_Piano_Tariffario!F48","v":0},{"$f":"+FoNI!E11","v":0},{"$f":"+FoNI!F11","v":0},{"$f":"+FoNI!G11","v":0},{"$f":"+FoNI!H11","v":0}]
[null,null,"DCUITaFoNI","euro",{"$f":"Storico_Piano_Tariffario!E49","v":0},{"$f":"Storico_Piano_Tariffario!F49","v":0},{"$f":"+FoNI!E13","v":0},{"$f":"+FoNI!F13","v":0},{"$f":"+FoNI!G13","v":0},{"$f":"+FoNI!H13","v":0}]
[null,null,"FoNIa","euro",{"$f":"Storico_Piano_Tariffario!E50","v":0},{"$f":"Storico_Piano_Tariffario!F50","v":0},{"$f":"+SUM(G47:G49)","v":0},0,0,0]
[]
[null,null,"SVILUPPO DEL VRG predisposto dal soggetto competente (include eventuali rimodulazioni)"]
[null,null,null,"UdM","ANNO 2024","ANNO 2025","ANNO 2026","ANNO 2027","ANNO 2028","ANNO 2029","ANNO 2030","ANNO 2031","ANNO 2032","ANNO 2033","ANNO 2034","ANNO 2035","ANNO 2036","ANNO 2037","ANNO 2038","ANNO 2039","ANNO 2040","ANNO 2041","ANNO 2042","ANNO 2043","ANNO 2044","ANNO 2045","ANNO 2046","ANNO 2047","ANNO 2048","ANNO 2049","ANNO 2050","ANNO 2051","ANNO 2052","ANNO 2053","ANNO 2054","ANNO 2055","ANNO 2056","ANNO 2057","ANNO 2058","ANNO 2059","ANNO 2060","ANNO 2061","ANNO 2062","ANNO 2063"]
[null,null,"Opexa","euro",{"$f":"Storico_Piano_Tariffario!E54","v":0},{"$f":"Storico_Piano_Tariffario!F54","v":0},{"$f":"+G29+Input_per_calcoli_finali!K234","v":0},{"$f":"+H29+Input_per_calcoli_finali!L234","v":0},{"$f":"+I29+Input_per_calcoli_finali!M234","v":0},{"$f":"+J29+Input_per_calcoli_finali!N234","v":0}]
[null,null,"Capexa","euro",{"$f":"Storico_Piano_Tariffario!E55","v":0},{"$f":"Storico_Piano_Tariffario!F55","v":0},{"$f":"+G34+Input_per_calcoli_finali!K233","v":0},{"$f":"+H34+Input_per_calcoli_finali!L233","v":0},{"$f":"+I34+Input_per_calcoli_finali!M233","v":0},{"$f":"+J34+Input_per_calcoli_finali!N233","v":0}]
[null,null,"FoNIa","euro",{"$f":"Storico_Piano_Tariffario!E56","v":0},{"$f":"Storico_Piano_Tariffario!F56","v":0},{"$f":"+G50","v":0},0,0,0]
[null,null,"RCaTOT","euro",{"$f":"Storico_Piano_Tariffario!E57","v":0},{"$f":"Storico_Piano_Tariffario!F57","v":0},{"$f":"+'Rc'!E10","v":0},{"$f":"+'Rc'!F10","v":0},{"$f":"+'Rc'!G10","v":0},{"$f":"+'Rc'!H10","v":0}]
[null,null,"ERCa","euro",{"$f":"Storico_Piano_Tariffario!E58","v":0},{"$f":"Storico_Piano_Tariffario!F58","v":0},{"$f":"+G43+Input_per_calcoli_finali!K235","v":0},{"$f":"+H43+Input_per_calcoli_finali!L235","v":0},{"$f":"+I43+Input_per_calcoli_finali!M235","v":0},{"$f":"+J43+Input_per_calcoli_finali!N235","v":0}]
[null,null,"VRGa predisposto dal soggetto competente","euro",{"$f":"Storico_Piano_Tariffario!E59","v":0},{"$f":"Storico_Piano_Tariffario!F59","v":0},{"$f":"+SUM(G54:G58)","v":0},0,0,0]
[]
[null,null,"SVILUPPO DEL MOLTIPLICATORE TARIFFARIO predisposto dal soggetto competente"]
[null,null,null,"UdM","ANNO 2024","ANNO 2025","ANNO 2026","ANNO 2027","ANNO 2028","ANNO 2029","ANNO 2030","ANNO 2031","ANNO 2032","ANNO 2033","ANNO 2034","ANNO 2035","ANNO 2036","ANNO 2037","ANNO 2038","ANNO 2039","ANNO 2040","ANNO 2041","ANNO 2042","ANNO 2043","ANNO 2044","ANNO 2045","ANNO 2046","ANNO 2047","ANNO 2048","ANNO 2049","ANNO 2050","ANNO 2051","ANNO 2052","ANNO 2053","ANNO 2054","ANNO 2055","ANNO 2056","ANNO 2057","ANNO 2058","ANNO 2059","ANNO 2060","ANNO 2061","ANNO 2062","ANNO 2063"]
[null,null,"VRGa predisposto dal soggetto competente","euro",{"$f":"Storico_Piano_Tariffario!E63","v":0},{"$f":"Storico_Piano_Tariffario!F63","v":0},{"$f":"+G59","v":0},0,0,0]
[null,null,"Ra-2b","euro",{"$f":"Storico_Piano_Tariffario!E64","v":0},{"$f":"Storico_Piano_Tariffario!F64","v":0},{"$f":"+VRG_Teta!E56","v":0},{"$f":"+VRG_Teta!F56","v":0},{"$f":"+VRG_Teta!G56","v":0},{"$f":"+VRG_Teta!H56","v":0}]
[null,null,"S tarif2023*vscala-2","euro",{"$f":"Storico_Piano_Tariffario!E65","v":0},{"$f":"Storico_Piano_Tariffario!F65","v":0},{"$f":"+VRG_Teta!E55","v":0},{"$f":"+VRG_Teta!F55","v":0},{"$f":"+VRG_Teta!G55","v":0},{"$f":"+VRG_Teta!H55","v":0}]
[null,null,"Ja predisposto dal soggetto competente","n. (3 cifre decimali)",{"$f":"Storico_Piano_Tariffario!E66","v":0},{"$f":"Storico_Piano_Tariffario!F66","v":0},{"$f":"+VRG_Teta!E75","v":""},{"$f":"+VRG_Teta!F75","v":""},{"$f":"+VRG_Teta!G75","v":""},{"$f":"+VRG_Teta!H75","v":""}]
[]
[null,null,"SVILUPPO DEL MOLTIPLICATORE TARIFFARIO applicabile (nelle more dell'approvazione ARERA)"]
[null,null,null,"UdM","ANNO 2024","ANNO 2025","ANNO 2026","ANNO 2027","ANNO 2028","ANNO 2029","ANNO 2030","ANNO 2031","ANNO 2032","ANNO 2033","ANNO 2034","ANNO 2035","ANNO 2036","ANNO 2037","ANNO 2038","ANNO 2039","ANNO 2040","ANNO 2041","ANNO 2042","ANNO 2043","ANNO 2044","ANNO 2045","ANNO 2046","ANNO 2047","ANNO 2048","ANNO 2049","ANNO 2050","ANNO 2051","ANNO 2052","ANNO 2053","ANNO 2054","ANNO 2055","ANNO 2056","ANNO 2057","ANNO 2058","ANNO 2059","ANNO 2060","ANNO 2061","ANNO 2062","ANNO 2063"]
[null,null,"Limite al moltiplicatore tariffario","n. (3 cifre decimali)",{"$f":"Storico_Piano_Tariffario!E70","v":0},{"$f":"Storico_Piano_Tariffario!F70","v":0},{"$f":"+VRG_Teta!E84","v":""},{"$f":"+VRG_Teta!F84","v":""},{"$f":"+VRG_Teta!G84","v":""},{"$f":"+VRG_Teta!H84","v":""}]
[null,null,"VRGa (coerente con J applicabile)","euro",{"$f":"Storico_Piano_Tariffario!E71","v":0},{"$f":"Storico_Piano_Tariffario!F71","v":0},{"$f":"++MIN(VRG_Teta!E81,VRG_Teta!E83)","v":0},{"$f":"++MIN(VRG_Teta!F81,VRG_Teta!F83)","v":0},{"$f":"++MIN(VRG_Teta!G81,VRG_Teta!G83)","v":0},{"$f":"++MIN(VRG_Teta!H81,VRG_Teta!H83)","v":0}]
[null,null,"Ja applicabile","n. (3 cifre decimali)",{"$f":"Storico_Piano_Tariffario!E72","v":0},{"$f":"Storico_Piano_Tariffario!F72","v":0},{"$f":"+IFERROR(IF(mti_4=\"escluso dall'aggiornamento\",1,MIN(VRG_Teta!E82,+VRG_Teta!E84)),\"\")","v":""},{"$f":"+IFERROR(IF(mti_4=\"escluso dall'aggiornamento\",1,MIN(VRG_Teta!F82,+VRG_Teta!F84)),\"\")","v":""},{"$f":"+IFERROR(IF(mti_4=\"escluso dall'aggiornamento\",1,MIN(VRG_Teta!G82,+VRG_Teta!G84)),\"\")","v":""},{"$f":"+IFERROR(IF(mti_4=\"escluso dall'aggiornamento\",1,MIN(VRG_Teta!H82,+VRG_Teta!H84)),\"\")","v":""}]
[]
[null,null,"Quota da recupero efficienza per alimentazione Fondo per la promozione dell'innovazione nel servizio idrico integrato"]
[null,null,null,"UdM","ANNO 2024","ANNO 2025","ANNO 2026","ANNO 2027","ANNO 2028","ANNO 2029","ANNO 2030","ANNO 2031","ANNO 2032","ANNO 2033","ANNO 2034","ANNO 2035","ANNO 2036","ANNO 2037","ANNO 2038","ANNO 2039","ANNO 2040","ANNO 2041","ANNO 2042","ANNO 2043","ANNO 2044","ANNO 2045","ANNO 2046","ANNO 2047","ANNO 2048","ANNO 2049","ANNO 2050","ANNO 2051","ANNO 2052","ANNO 2053","ANNO 2054","ANNO 2055","ANNO 2056","ANNO 2057","ANNO 2058","ANNO 2059","ANNO 2060","ANNO 2061","ANNO 2062","ANNO 2063"]
[null,null,"Quota da recupero efficienza (€/mc)","€/mc",{"$f":"Storico_Piano_Tariffario!E76","v":0},{"$f":"Storico_Piano_Tariffario!F76","v":0},{"$f":"Opex!E325","v":""},{"$f":"Opex!F325","v":""},{"$f":"Opex!G325","v":""},{"$f":"Opex!H325","v":""}]
[null,null,"(1+γOPi,j)*max(0;ΔOpex)","euro",{"$f":"Storico_Piano_Tariffario!E77","v":0},{"$f":"Storico_Piano_Tariffario!F77","v":0},{"$f":"Opex!E326","v":0},{"$f":"Opex!F326","v":0},{"$f":"Opex!G326","v":0},{"$f":"Opex!H326","v":0}]
[]
[null,null,"INVESTIMENTI"]
[null,null,null,"UdM","ANNO 2024","ANNO 2025","ANNO 2026","ANNO 2027","ANNO 2028","ANNO 2029","ANNO 2030","ANNO 2031","ANNO 2032","ANNO 2033","ANNO 2034","ANNO 2035","ANNO 2036","ANNO 2037","ANNO 2038","ANNO 2039","ANNO 2040","ANNO 2041","ANNO 2042","ANNO 2043","ANNO 2044","ANNO 2045","ANNO 2046","ANNO 2047","ANNO 2048","ANNO 2049","ANNO 2050","ANNO 2051","ANNO 2052","ANNO 2053","ANNO 2054","ANNO 2055","ANNO 2056","ANNO 2057","ANNO 2058","ANNO 2059","ANNO 2060","ANNO 2061","ANNO 2062","ANNO 2063"]
[null,null,"Investimenti al lordo dei contributi","euro",{"$f":"Storico_Piano_Tariffario!E81","v":0},{"$f":"Storico_Piano_Tariffario!F81","v":0},{"$f":"+Input_per_calcoli_finali!K44","v":0},{"$f":"+Input_per_calcoli_finali!L44","v":0},{"$f":"+Input_per_calcoli_finali!M44","v":0},{"$f":"+Input_per_calcoli_finali!N44","v":0}]
[null,null,"Contributi","euro",{"$f":"Storico_Piano_Tariffario!E82","v":0},{"$f":"Storico_Piano_Tariffario!F82","v":0},{"$f":"+Input_per_calcoli_finali!K45","v":0},{"$f":"+Input_per_calcoli_finali!L45","v":0},{"$f":"+Input_per_calcoli_finali!M45","v":0},{"$f":"+Input_per_calcoli_finali!N45","v":0}]
[null,null,"Investimenti al netto dei contributi","euro",{"$f":"Storico_Piano_Tariffario!E83","v":0},{"$f":"Storico_Piano_Tariffario!F83","v":0},{"$f":"+G81-G82","v":0},0,0,0]
[null,null,"CIN","euro",{"$f":"Storico_Piano_Tariffario!E84","v":0},{"$f":"Storico_Piano_Tariffario!F84","v":0},{"$f":"+Capex!E120","v":0},{"$f":"+Capex!F120","v":0},{"$f":"+Capex!G120","v":0},{"$f":"+Capex!H120","v":0}]
[null,null,"CINfp","euro",{"$f":"Storico_Piano_Tariffario!E85","v":0},{"$f":"Storico_Piano_Tariffario!F85","v":0},{"$f":"+Capex!E121","v":0},{"$f":"+Capex!F121","v":0},{"$f":"+Capex!G121","v":0},{"$f":"+Capex!H121","v":0}]
[null,null,"OF/CIN","%",{"$f":"Storico_Piano_Tariffario!E86","v":0},{"$f":"Storico_Piano_Tariffario!F86","v":0},{"$f":"+IFERROR((G31+ERC!E85+ERC!E126)/G84,0)","v":0},{"$f":"+IFERROR((H31+ERC!F85+ERC!F126)/H84,0)","v":0},{"$f":"+IFERROR((I31+ERC!G85+ERC!G126)/I84,0)","v":0},{"$f":"+IFERROR((J31+ERC!H85+ERC!H126)/J84,0)","v":0}]
[]
[null,null,"Interventi funzionali alla risoluzione delle sentenze di condanna della Corte di Giustizia Europea e Contabilità speciale del Commissario Unico (Del. 440/2017/R/idr)"]
[null,null,null,"UdM","2024-2029"]
[null,null,"Fabbisogno degli investimenti per adeguamento agglomerati oggetto di condanne UE del 19/07/2012 e 10/04/2014","euro",{"$f":"'PdI-riepilogo'!D53","v":0}]
[null,null,"Fabbisogno di investimenti coperto da tariffa","euro",{"$f":"'PdI-riepilogo'!D54","v":0}]
[null,null,"Fabbisogno di investimenti coperto con risorse regionali o altre fonti pubbliche","euro",{"$f":"'PdI-riepilogo'!D55","v":0}]
[null,null,"Risorse da destinare alla contabilità speciale del Commissario Unico","euro",{"$f":"+E94+E95","v":0}]
[null,null,"Parte del VRG destinata alla contabilità speciale del Commissario Unico","euro",{"$f":"'PdI-riepilogo'!D56","v":0}]
[null,null,"Risorse regionali o altre fonti pubbliche destinate alla contabilità speciale del Commissario Unico","euro",{"$f":"'PdI-riepilogo'!D57","v":0}]
[]
[null,null,"VALORE RESIDUO A FINE CONCESSIONE"]
[null,null,null,"UdM","Del. 582/2025/R/IDR"]
[null,null,"Ipc,t","euro"]
[null,null,"FAIP,c,t","euro"]
[null,null,"CFPc,t","euro"]
[null,null,"FACFP,c,t","euro"]
[null,null,"LIC","euro"]
[null,null,"VR a fine concessione","euro"]

{"sheet":"Conto_Economico","index":41,"n_rows":19,"n_cols":49,"rows_kept":19,"cut":false,"hidden":false,"merged":[]}
[null,"CONTO ECONOMICO",null,null,null,null,null,null,null,null,null,null,null,null,null,null,null,null,null,null,null,null,null,null,null,null,null,null,null,null,null,null,null,null,null,null,null,null,null,null,null,null,null,null,null,null,null,null,"sono presenti errori"]
[null,"Voce_Conto_Economico","UdM","ANNO 2024","ANNO 2025","ANNO 2026","ANNO 2027","ANNO 2028","ANNO 2029","ANNO 2030","ANNO 2031","ANNO 2032","ANNO 2033","ANNO 2034","ANNO 2035","ANNO 2036","ANNO 2037","ANNO 2038","ANNO 2039","ANNO 2040","ANNO 2041","ANNO 2042","ANNO 2043","ANNO 2044","ANNO 2045","ANNO 2046","ANNO 2047","ANNO 2048","ANNO 2049","ANNO 2050","ANNO 2051","ANNO 2052","ANNO 2053","ANNO 2054","ANNO 2055","ANNO 2056","ANNO 2057","ANNO 2058","ANNO 2059","ANNO 2060","ANNO 2061","ANNO 2062","ANNO 2063",null,null,null,null,null,{"$f":"+IF(COUNT(D3:AQ19)=0,TRUE,FALSE)","v":true}]
[null,"Ricavi da tariffe","euro"]
[null,"Contributi di allacciamento","euro"]
[null,"Altri ricavi SII","euro"]
[null,"Ricavi da Altre Attività Idriche ","euro"]
[null,"Totale Ricavi","euro"]
[null,"Costi Operativi (al netto del costo del personale)","euro"]
[null,"Costo del personale","euro"]
[null,"Totale  Costi","euro"]
[null,"MOL","euro"]
[null,"Ammortamenti","euro"]
[null,"Reddito Operativo","euro"]
[null,"Interessi passivi","euro"]
[null,"Risultato ante imposte","euro"]
[null,"IRES","euro"]
[null,"IRAP","euro"]
[null,"Totale imposte","euro"]
[null,"Risultato di esercizio","euro"]

{"sheet":"Rendiconto_Finanziario","index":42,"n_rows":44,"n_cols":51,"rows_kept":44,"cut":false,"hidden":false,"merged":[]}
[null,"RENDICONTO FINANZIARIO",null,null,null,null,null,null,null,null,null,null,null,null,null,null,null,null,null,null,null,null,null,null,null,null,null,null,null,null,null,null,null,null,null,null,null,null,null,null,null,null,null,null,null,null,null,null,"sono presenti errori"]
[null,"Voce_Rendiconto_Finanziario","UdM","ANNO 2024","ANNO 2025","ANNO 2026","ANNO 2027","ANNO 2028","ANNO 2029","ANNO 2030","ANNO 2031","ANNO 2032","ANNO 2033","ANNO 2034","ANNO 2035","ANNO 2036","ANNO 2037","ANNO 2038","ANNO 2039","ANNO 2040","ANNO 2041","ANNO 2042","ANNO 2043","ANNO 2044","ANNO 2045","ANNO 2046","ANNO 2047","ANNO 2048","ANNO 2049","ANNO 2050","ANNO 2051","ANNO 2052","ANNO 2053","ANNO 2054","ANNO 2055","ANNO 2056","ANNO 2057","ANNO 2058","ANNO 2059","ANNO 2060","ANNO 2061","ANNO 2062","ANNO 2063",null,null,null,null,null,{"$f":"+OR(AX2,AY2)","v":true},{"$f":"+IF(COUNT(D3:AQ35)=0,TRUE,FALSE)","v":true},{"$f":"+IF(COUNT(D40:D44)=0,TRUE,FALSE)","v":true}]
[null,"Ricavi da Tariffa SII (al netto del FONI) ","euro"]
[null,"Contributi di allacciamento ","euro"]
[null,"Altri ricavi SII","euro"]
[null,"Ricavi da Altre Attività Idriche ","euro"]
[null,"RICAVI OPERATIVI ","euro"]
[null,"Costi operativi ","euro"]
[null,"COSTI OPERATIVI MONETARI ","euro"]
[null,"Imposte ","euro"]
[null,"IMPOSTE ","euro"]
[null,"FLUSSI DI CASSA ECONOMICO ","euro"]
[null,"Variazioni circolante commerciale ","euro"]
[null,"Variazione credito IVA ","euro"]
[null,"Variazione debito IVA ","euro"]
[null,"FLUSSI DI CASSA OPERATIVO ","euro"]
[null,"Investimenti con utilizzo del FoNI ","euro"]
[null,"Altri investimenti ","euro"]
[null,"FLUSSO DI CASSA ANTE FONTI FINANZIAMENTO ","euro"]
[null,"FoNI ","euro"]
[null,"Eventuale anticipazione da CSEA","euro"]
[null,"Erogazione debito finanziario a breve ","euro"]
[null,"Erogazione debito finanziario medio - lungo termine ","euro"]
[null,"Erogazione contributi pubblici ","euro"]
[null,"Apporto capitale sociale ","euro"]
[null,"FLUSSO DI CASSA DISPONIBILE PER RIMBORSI ","euro"]
[null,"Rimborso quota capitale per finanziamenti pregressi ","euro"]
[null,"Rimborso quota interessi per finanziamenti pregressi ","euro"]
[null,"Rimborso quota capitale per nuovi finanziamenti ","euro"]
[null,"Rimborso quota interessi per nuovi finanziamenti ","euro"]
[null,"Eventuale restituzione a CSEA","euro"]
[null,"TOTALE SERVIZIO DEL DEBITO ","euro"]
[null,"FLUSSO DI CASSA DISPONIBILE POST SERVIZIO DEL DEBITO ","euro"]
[null,"Valore residuo a fine concessione","euro"]
[null,"Stock di debito non rimborsato a fine affidamento (capitale + interessi)","euro"]
[]
[]
[null,"INDICATORI DI REDDITIVITA' E LIQUIDITA'"]
[null,"Indicatore","Udm"]
[null,"TIR unlevered ","%"]
[null,"TIR levered ","%"]
[null,"ADSCR","n."]
[null,"DSCR minimo","n."]
[null,"LLCR","n."]

{"sheet":"Stato_Patrimoniale","index":43,"n_rows":50,"n_cols":49,"rows_kept":50,"cut":false,"hidden":false,"merged":[]}
["STATO PATRIMONIALE",null,null,null,null,null,null,null,null,null,null,null,null,null,null,null,null,null,null,null,null,null,null,null,null,null,null,null,null,null,null,null,null,null,null,null,null,null,null,null,null,null,null,null,null,null,null,null,"sono presenti errori"]
[null,null,null,null,null,null,null,null,null,null,null,null,null,null,null,null,null,null,null,null,null,null,null,null,null,null,null,null,null,null,null,null,null,null,null,null,null,null,null,null,null,null,null,null,null,null,null,null,{"$f":"+IF(COUNT(B5:AO50)=0,TRUE,FALSE)","v":true}]
[]
[null,"ANNO 2024","ANNO 2025","ANNO 2026","ANNO 2027","ANNO 2028","ANNO 2029","ANNO 2030","ANNO 2031","ANNO 2032","ANNO 2033","ANNO 2034","ANNO 2035","ANNO 2036","ANNO 2037","ANNO 2038","ANNO 2039","ANNO 2040","ANNO 2041","ANNO 2042","ANNO 2043","ANNO 2044","ANNO 2045","ANNO 2046","ANNO 2047","ANNO 2048","ANNO 2049","ANNO 2050","ANNO 2051","ANNO 2052","ANNO 2053","ANNO 2054","ANNO 2055","ANNO 2056","ANNO 2057","ANNO 2058","ANNO 2059","ANNO 2060","ANNO 2061","ANNO 2062","ANNO 2063"]
["ATTIVO"]
["A) Crediti verso soci per versamenti ancora dovuti"]
["B) Immobilizzazioni, con separata indicazione di quelle concesse in locazione finanziaria"]
["I - Immobilizzazioni immateriali"]
["II - Immobilizzazioni materiali"]
["III - Immobilizzazioni finanziarie "]
["C) Attivo circolante"]
["I - Rimanenze"]
["II - Crediti"]
["III - Attività finanziarie che non costituiscono immobilizzazioni"]
["IV - Disponibilità liquide"]
["D) Ratei e risconti"]
[]
["PASSIVO"]
["A) Patrimonio netto"]
["I - Capitale"]
["II - Riserva da soprapprezzo delle azioni"]
["III - Riserve di rivalutazione"]
["IV - Riserva legale"]
["V - Riserve statutarie"]
["VI - Altre riserve"]
["VII - Riserva per operazioni di copertura dei flussi finanziari attesi"]
["VIII - Utile (perdita) portato a nuovo"]
["IX - Utile (perdita) dell'esercizio"]
["X - Riserva negativa per azioni proprie in portafoglio"]
["B) Fondi per rischi e oneri"]
["C) Trattamento di fine rapporto di lavoro subordinato"]
["D) Debiti"]
["1) obbligazioni"]
["2) obbligazioni convertibili"]
["3) debiti verso soci per finanziamenti"]
["4) debiti verso banche"]
["5) debiti verso altri finanziatori"]
["6) acconti"]
["7) debiti verso fornitori"]
["8) debiti rappresentati da titoli di credito"]
["9) debiti verso imprese controllate"]
["10) debiti verso imprese collegate"]
["11) debiti verso controllanti"]
["11-bis) debiti verso imprese sottoposte al controllo delle controllanti"]
["12) debiti tributari"]
["13) debiti verso istituti di previdenza e di sicurezza sociale"]
["14) altri debiti"]
["E) Ratei e risconti"]
[]
["Dividend Payout Ratio"]

{"sheet":"TT_Gestori","index":44,"n_rows":2086,"n_cols":4,"rows_kept":2086,"cut":false,"hidden":false,"merged":[]}
[]
[]
[]
[]
[]
["Area elenco gestori in Anagrafica Operatori",null,"aggiornata 09/03/2026"]
["IDARERA","P. IVA","Denominazione / Ragione Sociale",{"$f":"+A7","v":"IDARERA"}]
[39551,"01502980616","comune di santa maria la fossa",{"$f":"+A8","v":39551}]
[43888,"00673290805","COMUNE DI CARDETO",{"$f":"+A9","v":43888}]
[41131,"04137960136","COMUNE DI UGGIATE CON RONAGO",41131]
[41229,"11790730961","FAMILYHU S.R.L.",41229]
[34679,"00708900873","COMUNE DI MINEO",34679]
[34751,"00297930794","COMUNE DI NOCERA TERINESE",34751]
[38603,"00591090923","Comune di CAPOTERRA",38603]
[36847,"01358090130","COMUNE DI VAL REZZO",36847]
[37366,"05762250875","BLUE SRLS",37366]
[36086,"03937840878","Geomar di Musumeci Maria Pia",36086]
[36120,"00392000790","COMUNE DI NICOTERA",36120]
[30232,"01222670224","COMUNE DI GARNIGA TERME",30232]
[28831,"00282690809","Comune di  Grotteria",28831]
[30059,"00489260125","COMUNE DI CUNARDO",30059]
[29704,"00543570642","COMUNE DI ROCCA SAN FELICE",29704]
[29500,"03604020655","COMUNE MONTANO ANTILIA",29500]
[29395,"00333020790","comune di Vazzano",29395]
[28861,"00662180645","comune di vallata",28861]
[29530,"03548800659","COMUNE DI MORIGERATI",29530]
[29581,"00294520648","COMUNE DI SAN POTITO ULTRA",29581]
[29356,"00297890790","COMUNE DI BELCASTRO",29356]
[28730,"00085810943","comune Acquaviva d'Isernia",28730]
[28686,"00162630800","COMUNE DI CONDOFURI",28686]
[29497,"01338430612","COMUNE DI SAN PIETRO INFINE",29497]
[29546,"00392720785","comune di cellara",29546]
[28332,"00297670796","COMUNE DI MIGLIERINA",28332]
[28788,"00108070798","COMUNE DI TAVERNA",28788]
[28726,"00623030624","Comune di San Nicola Manfredi",28726]
[28379,"02707310617","VOLTURNO MULTIUTILITY SPA IN LIQUIDAZIONE",28379]
[29762,"01210140792","COMUNE DI ALBI",29762]
[28785,"00263860785","COMUNE DI FAGNANO CASTELLO",28785]
[28367,"01587530781","COMUNE DI SAN LORENZO BELLIZZI",28367]
[29565,"00900390618","comune di piedimonte matese",29565]
[28659,"00342960838","COMUNE DI NASO",28659]
[29692,"00162710628","COMUNE DI CAMPOLATTARO",29692]
[28740,"00396920837","Comune di Saponara",28740]
[29593,"00426710836","COMUNE DI MALVAGNA",29593]
[29647,"00444580062","COMUNE DI SPINETO SCRIVIA",29647]
[28507,"00890760804","COMUNE DI  CAULONIA",28507]
[29454,"00709150809","COMUNE DI CANOLO",29454]
[28994,"01903810610","Comune di Valle di Maddaloni",28994]
[29274,"00900370909","COMUNE DI AGGIUS",29274]
[28419,"00326540093","COMUNE DI ARNASCO",28419]
[28967,"00069960946","COMUNE DI SANT'ANGELO DEL PESCO",28967]
[29476,"00584850804","COMUNE DI TERRANOVA SAPPO MINULIO",29476]
[28537,"00282520808","COMUNE DI MARINA DI GIOIOSA IONICA",28537]
[33240,"01783570094","ACQUE PUBBLICHE SAVONESI S.C.P.A.",33240]
[30189,"00686480658","COMUNE DI ATENA LUCANA",30189]
[28629,"00294030648","COMUNE DI NUSCO",28629]
[29312,"00431430784","COMUNE DI GRISOLIA",29312]
[28388,"00388560781","COMUNE DI BIANCHI",28388]
[29563,"84001750656","Comune di Camerota",29563]
[29469,"01319630834","Comune di Malfa",29469]
[28664,"01468070782","COMUNE DI VILLAPIANA",28664]
[28615,"00314310798","COMUNE DI CIRO' MARINA",28615]
[29665,"00584860621","Comune di Sant'Arcangelo Trimonte",29665]
[28687,"00303930796","COMUNE DI CURINGA",28687]
[29467,"00323400796","comune di zaccanopoli",29467]
[29011,"00787220656","COMUNE DI VALLE DELL'ANGELO",29011]
[28489,"00393710785","COMUNE DI ACQUAFORMOSA",28489]
[32869,"00581260213","Comune di Marebbe",32869]
[31548,"00185610664","COMUNE DI MORINO",31548]
[28764,"01109380780","Comune di Cerisano",28764]
[29421,"01302760812","comune di santa ninfa",29421]
[29455,"01234470803","COMUNE DI COSOLETO",29455]
[24615,"02402160226","COMUNE DI BORGO CHIESE",{"$f":"+A73","v":24615}]
[27862,"01826020784","COMUNE DI MONTEGIORDANO",27862]
[28045,"00709480800","COMUNE DI SANT'ALESSIO IN ASPROMONTE",28045]
[26637,"00732840830","COMUNE DI SAN MARCO D'ALUNZIO",26637]
[28170,"03747990137","COMUNE DI CENTRO VALLE INTELVI",28170]
[24212,"02083310686","AZIENDA REGIONALE DELLE ATTIVITA PRODUTTIVE",24212]
[28364,"00734340805","COMUNE DI MONASTERACE",28364]
[28161,"00577640980","COMUNE DI PERTICA BASSA",28161]
[28085,"00388690786","COMUNE DI ACRI",28085]
[28036,"01722020789","COMUNE DI CROSIA",28036]
[28206,"00375970787","COMUNE DI CERZETO",28206]
[24179,"00375660784","COMUNE DI COLOSIMI",24179]
[25861,"02401990227","COMUNE DI PORTE DI RENDENA",25861]
[25815,"00422770032","COMUNE DI BACENO",25815]
[28171,"00395920788","COMUNE DI CELICO",28171]
[24734,"03507580136","COMUNE DI COLVERDE",24734]
[25313,"02970820821","COMUNE DI ROCCAMENA",25313]
[28316,"00296600794","COMUNE SAN PIETRO A MAIDA",28316]
[28186,"00241810944","COMUNE DI RIONERO SANNITICO",28186]
[24429,"03432640989","Servizi Idrici Valle Camonica",24429]
[28306,"01721500781","COMUNE DI CASTROREGIO",28306]
[27890,"00403460785","comune di mormanno",27890]
[25923,"02054220906","SI.EL. Srl",25923]
[25768,"01803490695","Consorzio Bonifica Sud",25768]
[28182,"00453630899","COMUNE DI SOLARINO",28182]
[28324,"01668940644","COMUNE DI GUARDIA LOMBARDI",28324]
[28309,"01552200782","Comune di Cerchiara di Calabria",28309]
[28308,"00355900796","COMUNE DI AMARONI",28308]
[28136,"00297440794","Comune di Girifalco",28136]
[28054,"00136550837","COMUNE DI ROMETTA",28054]
[28034,"00379460793","COMUNE DI SERRASTRETTA",28034]
[28018,"00100110618","comune di caserta",28018]
[28055,"01258050788","COMUNE DI SARACENA",28055]
[28009,"01572710612","COMUNE DI FRANCOLISE",28009]
[27228,"00343400834","COMUNE DI TORREGROTTA",27228]
[26590,"02117740502","COMUNE DI CASCIANA TERME LARI",26590]
[24810,"00574390985","Comune di Ponte di Legno",24810]
[26019,"01342050893","A.SPE.CO.N.",26019]
[25304,"02401760224","COMUNE DI VILLE D'ANAUNIA",25304]
[24423,"00861070787","comune bocchigliero",24423]
[26226,"00987710480","COMUNE DI CAPRAIA E LIMITE",26226]
[25789,"00899500789","COMUNE DI PAOLA",25789]
[25352,"01073000802","COMUNE DI BAGNARA CALABRA",25352]
[25274,"01546611219","COMUNE  di  ARZANO",25274]
[25329,"00324270834","COMUNE DI MOTTA D'AFFERMO",25329]
[27576,"02438370823","COMUNE DI CINISI",27576]
[27834,"01115330712","COMUNE DI FAETO",27834]
[25932,"00671320166","COMUNE DI MEZZOLDO",25932]
[24613,"00928660802","COMUNE DI BOVALINO",24613]
[27937,"00299100834","COMUNE DI TAORMINA",27937]
[28041,"00296900798","COMUNE DI GIMIGLIANO",28041]
[26014,"00425030830","Comune di Galati Mamertino",26014]
[27923,"01836330611","COMUNE DI VILLA DI BRIANO",27923]
[27953,"00320090798","Comune di Chiaravalle Centrale",27953]
[24725,"00275560837","Comune di Villafranca Tirrena",24725]
[28116,"80004000818","COMUNE DI ERICE",28116]
[25938,"01083431005","Comune di Morlupo",25938]
[25920,"00224500561","COMUNE DI MONTALTO DI CASTRO",25920]
[24394,"00140940925","Ente acque della Sardegna - Enas",24394]
[26053,"00191990456","Comune di Zeri",26053]
[27473,"02790570820","comune di collesano",27473]
[27875,"00324940790","COMUNE DI PARGHELIA",27875]
[25259,"02402000224","COMUNE DI ALTOPIANO DELLA VIGOLANA",25259]
[25327,"01742670613","COMUNE DI SANT'ANGELO D'ALIFE",25327]
[24920,"00532990827","Comune di Giardinello",{"$f":"+A137","v":24920}]
[25911,"00338260565","comune di onano",25911]
[25873,"00215240565","comune di capodimonte",25873]
[25340,"01345160830","COMUNE DI TORRENOVA",25340]
[25616,"00506170828","COMUNE DI MEZZOJUSO",25616]
[26645,"03545150827","C.A.M.A. srl",26645]
[26592,"01939430789","CONSORZIO VALLE CRATI",26592]
[26568,"06272150969","S.E.C.I. SRL",26568]
[25857,"02667970822","Comune di Caltavuturo",25857]
[25796,"02401930223","COMUNE DI ALTAVALLE",25796]
[24849,"00085160661","COMUNE DI CAMPOTOSTO",24849]
[26135,"00725530802","Comune di Ardore",26135]
[25813,"00212140560","COMUNE DI GRADOLI",25813]
[23881,"00524040045","COMUNE DI CASTELDELFINO",23881]
[23841,"00646310870","COMUNE DI MASCALI",23841]
[22995,"00790100804","COMUNE DI VILLA SAN GIOVANNI",22995]
[23146,"00236000923","COMUNE DI FLUMINIMAGGIORE",23146]
[22990,"01932680844","COMUNE DI SANTA MARGHERITA DI BELICE",22990]
[23724,"00328940168","Comune di Camerata Cornello",23724]
[23922,"00216540641","COMUNE DI CASTELVETERE SUL CALORE",23922]
[24054,"00550180822","Comune di Gratteri",24054]
[23838,"00261120901","COMUNE DI PERFUGAS",23838]
[23806,"00269920625","COMUNE DI REINO",23806]
[23002,"01463830909","COMUNE DI ESPORLATU",23002]
[23150,"00155310915","COMUNE DI SEUI",23150]
[23863,"01032850834","Comune di Castell'Umberto",23863]
[23904,"00279280697","COMUNE DI FALLO",23904]
[23068,"00197020902","COMUNE DI BOTTIDDA",23068]
[23798,"00619770167","Comune di Isola di Fondra",23798]
[22870,"00459940128","COMUNE DI GALLIATE LOMBARDO",22870]
[21504,"00285990644","COMUNE DI ALTAVILLA IRPINA",21504]
[20096,"00532480654","comune di padula",20096]
[21466,"00620980656","comune di giffoni valle piana",21466]
[22161,"00371360785","COMUNE DI MARZI",22161]
[21804,"00108010117","Comune di Maissana",21804]
[21733,"00508900636","Comune di Pozzuoli",21733]
[22128,"00225160704","COMUNE DI CASTELLINO DEL BIFERNO",22128]
[22916,"00342860095","COMUNE DI NASINO",22916]
[22781,"00254570625","Comune di Montefalcone di Val Fortore",22781]
[22755,"01117471001","COMUNE DI LABICO",22755]
[21461,"01033760651","COMUNE DI PIAGGINE",21461]
[22831,"00114000573","COMUNE DI COLLE DI TORA",22831]
[22808,"00283550127","COMUNE DI TAINO",22808]
[22782,"00259850121","COMUNE DI GAVIRATE",22782]
[22775,"00336110093","COMUNE DI CALIZZANO",22775]
[22780,"00308160126","COMUNE DI BIANDRONNO",22780]
[22765,"01033260652","COMUNE DI CONTURSI TERME",22765]
[21432,"00071920623","comune di baselice",21432]
[21401,"00299110643","COMUNE DI CANDIDA",21401]
[22245,"00417550787","COMUNE DI MANGONE",22245]
[21833,"00070290705","COMUNE DI PROVVIDENTI",21833]
[21387,"83002290654","comune di montesano sulla marcellana",21387]
[21543,"00554050625","Comune di San Giorgio del Sannio",21543]
[21834,"00070360706","COMUNE DI MONTELONGO",21834]
[20458,"00527720130","COMUNE DI PONNA",20458]
[22777,"02033030830","COMUNE DI TRIPI",22777]
[21567,"00274820083","COMUNE DI REZZO",21567]
[22757,"00559800123","COMUNE DI CASALZUIGNO",22757]
[20074,"00723580981","COMUNE DI NIARDO",20074]
[22920,"00078040573","COMUNE DI CONCERVIANO",22920]
[22878,"00338410095","comune di balestrino",22878]
[22844,"03128441213","COMUNE DI CARDITO",22844]
[22711,"00340950096","COMUNE DI ALBISOLA SUPERIORE",22711]
[19641,"00669730129","COMUNE DI MARCHIROLO",19641]
[20279,"00194560660","COMUNE DI BARREA",{"$f":"+A201","v":20279}]
[17435,"00884620212","Comune di San Martino in Badia",17435]
[17431,"00586020216","COMUNE DI SAN LORENZO DI SEBATO",17431]
[17268,"00125740076","COMUNE DI CHALLAND SAINT ANSELME",17268]
[17169,"00446990210","Comune San Martino in Passiria",17169]
[19967,"00222350563","COMUNE DI FABRICA DI ROMA",19967]
[19807,"00184530640","Comune di Avellino",19807]
[18864,"02641460015","Comune di Salza di Pinerolo",18864]
[17796,"01145190219","Amm.ne Separata Beni Usi Civici (ASBUC) della Frazione di Valles",17796]
[18756,"04567220019","COMUNE DI PERRERO",18756]
[17527,"00661610212","Comune di Laion - Gemeinde Lajen",17527]
[18541,"00239180615","COMUNE DI CARINARO",18541]
[17168,"00301080222","COMUNE DI DRO",17168]
[19617,"00098450075","COMUNE DI VALPELLINE",19617]
[17448,"00062810320","ACQUEDOTTO DEL CARSO S.P.A. -  KRASKI VODOVOD D.D.",17448]
[16947,"00271850224","COMUNE DI CASTEL CONDINO",16947]
[17497,"00804390219","COMUNE DI CASTELBELLO-CIARDES",17497]
[17355,"00852560218","Comune di Stelvio",17355]
[17175,"00302570213","Trinkwasser Genossenschaft Kastelruth m.b.H.",17175]
[17123,"01100140217","Comune di Barbiano",17123]
[15700,"01813440870","COMUNE DI MISTERBIANCO",15700]
[18590,"00291650224","COMUNE DI TORCEGNO",18590]
[18586,"00291640225","Comune di Ronchi Valsugana",18586]
[17416,"01114860214","Comune di Ultimo",17416]
[17673,"00100080076","COMUNE DI GIGNOD",17673]
[17241,"00249810227","COMUNE DI PIEVE TESINO",17241]
[16769,"03291390874","SIDRA S.P.A.",16769]
[13708,"00460490063","Comune Costa Vescovato",13708]
[14197,"00168550879","Acquedotti Ing. Sarino Pavone S.p.A.",14197]
[19555,"01976030013","COMUNE DI BUROLO",19555]
[15111,"00520110131","COMUNE DI TURATE",15111]
[14393,"00919470229","Comune di Dambel",14393]
[14630,"00270970221","COMUNE DI GIUSTINO",14630]
[14403,"00654470137","COMUNE DI ALBESE CON CASSANO",14403]
[14348,"00256240227","COMUNE DI CANAL SAN BOVO",14348]
[13991,"01068620663","COMUNE DI CALASCIO",13991]
[13662,"01966240465","GAIA SPA",13662]
[14639,"00473450229","COMUNE DI SEGONZANO",14639]
[14460,"00273990226","COMUNE DI BONDONE",14460]
[14370,"01112920226","COMUNE DI CIMONE",14370]
[14300,"03408010639","Ottogas Srl",14300]
[14211,"04163490263","ALTO TREVIGIANO SERVIZI S.P.A.",14211]
[13837,"00071500110","Società Acquedotti Tirreni",13837]
[14413,"01216560068","CONSORZIO ACQUEDOTTO MADONNA DELLA ROCCHETTA",14413]
[14938,"00304810229","COMUNE DI SPIAZZO",14938]
[14379,"00305970220","COMUNE DI SPORMAGGIORE",14379]
[14984,"00256270224","COMUNE DI LAVARONE",14984]
[15237,"00307740225","COMUNE DI CAMPODENNO",15237]
[14772,"00302450226","COMUNE DI CINTE TESINO",14772]
[14556,"00343390225","COMUNE DI RONZONE",14556]
[14354,"00309290120","Comune di Cavaria con Premezzo",14354]
[14231,"00423160076","COMUNE DI ALLEIN",14231]
[14562,"00170690705","COMUNE DI FERRAZZANO",14562]
[14417,"00625040134","COMUNE DI AROSIO",14417]
[14420,"00225330703","COMUNE DI TORELLA DEL SANNIO",14420]
[13795,"00208840702","COMUNE DI ACQUAVIVA COLLECROCE",13795]
[13781,"00220810790","COMUNE DI PENTONE",13781]
[14140,"00180270886","COMUNE DI RAGUSA",14140]
[14099,"00225270701","COMUNE DI PETACCIATO",14099]
[14083,"05216080829","Siciliacque S.p.A.",14083]
[13902,"00688460138","COMUNE DI VERCANA",13902]
[13757,"00590410981","COMUNE DI PIANCOGNO",13757]
[13752,"03006290872","ACQUE AURORA S.R.L.",13752]
[12936,"00583030986","COMUNE DI CORTENO GOLGI",12936]
[14317,"00292860228","COMUNE DI CAVEDAGO",{"$f":"+A265","v":14317}]
[7331,"01271960021","CO.R.D.A.R. VALSESIA spa",7331]
[5096,"00848050217","Comune di Lasa",5096]
[3659,"00508670213","Comune di Chienes",3659]
[3720,"00575930219","COMUNE DI SARENTINO",3720]
[245,"00110390226","COMUNE DI AVIO",245]
[542,"00319630224","COMUNE DI ANDALO",542]
[2332,"01081070219","Gemeinde Luesen / Comune di Luson",2332]
[298,"00378700223","COMUNE DI MALE'",298]
[259,"00291090876","COMUNE DI CASTIGLIONE DI SICILIA",259]
[1310,"00070680947","COMUNE DI FROSOLONE",1310]
[1927,"00827900218","COMUNE DI MALLES VENOSTA",1927]
[805,"00126510213","Gemeinde Sterzing / Comune di Vipiteno",805]
[630,"02728750247","ACQUE DEL CHIAMPO S.P.A. SOCIETA' BENEFIT",630]
[2967,"03278040245","ETRA SPA",2967]
[12911,"02537750040","ALTA LANGA SERVIZI S.P.A.",12911]
[12905,"02660800042","ALPI ACQUE",12905]
[43965,"04279151205","HERACQUAMODENA S.R.L.",43965]
[2468,"02216751202","UNIFLOTTE S.r.L.",2468]
[27152,"10146450969","Nepta S.p.A.",27152]
[18915,"03453020657","Sistemi Salerno - Servizi idrici Spa",18915]
[42010,"03105170652","IDROCILENTO S.C.P.A.",42010]
[38194,"00245000641","Comune di Teora",38194]
[38992,"00531540649","Comune di Taurano",38992]
[36267,"00637420811","COMUNE DI VALDERICE",36267]
[37076,"03021250844","A.I.C.A. - AZIENDA IDRICA COMUNI AGRIGENTINI",37076]
[35396,"00249310616","COMUNE DI ORTA DI ATELLA",35396]
[36162,"00298010794","COMUNE DI SAN MANGO D'AQUINO",36162]
[34360,"02570230223","COMUNE DI VILLE DI FIEMME",34360]
[38285,"01790440885","IBLEA ACQUE SPA IN HOUSE",38285]
[34861,"00372770891","COMUNE DI FRANCOFONTE",34861]
[38387,"10991660969","ABMGEO SRL",38387]
[28722,"00604670620","Comune di Cerreto Sannita",28722]
[28805,"02019370853","DIVINA SERVICE SRLS",28805]
[28616,"03807550136","COMUNE DI SOLBIATE CON CAGNO",28616]
[29169,"00256700808","COMUNE DI GALATRO",29169]
[28750,"00743620767","COMUNE DI ROTONDA",28750]
[29168,"00297830796","COMUNE DI MARCELLINARA",29168]
[29409,"00199100645","comune di calabritto",29409]
[28624,"00513260026","CAPT CONSORZIO ACQUA POTABILE DI TAVIGLIANO S.",28624]
[28522,"00472080837","COMUNE DI GIOIOSA MAREA",28522]
[28341,"00405550781","COMUNE DI PEDIVIGLIANO",28341]
[28362,"00203910641","Comune di Senerchia",28362]
[28732,"00376490793","COMUNE DI FALERNA",28732]
[29413,"01103860787","Comune di Vaccarizzo Albanese",29413]
[28779,"82000950848","Comune di Camastra",28779]
[29393,"01974610832","COMUNE DI SAN TEODORO",29393]
[29703,"01752120616","comune di giano vetusto",29703]
[29755,"01551140617","COMUNE DI RIARDO",29755]
[28948,"01240170835","comune di graniti",28948]
[29572,"00751420837","COMUNE DI MONTAGNAREALE",29572]
[29272,"01266750718","COMUNE DI VOLTURINO",29272]
[28834,"01334140785","comune di san lorenzo del vallo",28834]
[33936,"01959080787","COMUNE DI MANDATORICCIO",33936]
[30318,"00514760834","COMUNE DI FORZA D'AGRO'",30318]
[28812,"00462790783","Comune di Amendolara",28812]
[29229,"01205810789","COMUNE DI ORIOLO",29229]
[28528,"00297780793","COMUNE DI CORTALE",28528]
[28733,"00034280941","COMUNE DI SCAPOLI",28733]
[29486,"00437840614","Comune di San Gregorio Matese",29486]
[28887,"00627950652","Comune di Felitto",28887]
[29369,"00461950834","COMUNE DI MIRTO",29369]
[32984,"02571060223","COMUNE DI BORGO D'ANAUNIA",32984]
[29545,"00298080797","COMUNE DI CENTRACHE",29545]
[29697,"00427820717","Comune di Orsara di Puglia",{"$f":"+A329","v":29697}]
[28795,"00319390795","COMUNE DI CUTRO",28795]
[29473,"00296630791","COMUNE DI FOSSATO SERRALTA",29473]
[30240,"01635650227","COMUNE DI TIONE DI TRENTO",30240]
[29410,"00261180095","COMUNE DI MASSIMINO",29410]
[32027,"00686450164","COMUNE DI TORRE DE' BUSI",32027]
[30097,"02145771008","COMUNE DI CANTERANO",30097]
[29365,"00892760786","comune di caloveto",29365]
[28828,"01749360648","COMUNE DI STURNO",28828]
[28925,"00216210666","COMUNE DI CIVITELLA ROVETO",28925]
[28944,"01268330808","COMUNE DI RIACE",28944]
[28211,"02350240848","Comune di Santo Stefano Quisquina",28211]
[28031,"00345480784","COMUNE DI TERRANOVA DA SIBARI",28031]
[24649,"02401920224","COMUNE DI CASTEL IVANO",24649]
[25846,"00246860167","COMUNE DI BONATE SOPRA",25846]
[28172,"00398580787","COMUNE DI SAN DONATO DI NINEA",28172]
[27915,"00137710802","COMUNE DI GIOIA TAURO",27915]
[28125,"00281220640","COMUNE DI ARIANO IRPINO",28125]
[28122,"01252221211","Comune di Caivano",28122]
[27866,"00336440797","Comune di Argusto",27866]
[27910,"01710120617","comune di Castel di Sasso",27910]
[24910,"00297260796","COMUNE DI MONTEPAONE",24910]
[26032,"00559720123","COMUNE DI MARZIO",26032]
[26010,"00606860138","COMUNE DI NOVEDRATE",26010]
[25827,"00619750169","COMUNE DI BRANZI",25827]
[28154,"00379080781","COMUNE DI CROPALATI",28154]
[27999,"02491910614","Comune di Succivo",27999]
[25968,"01125561009","COMUNE DI GERANO",25968]
[24730,"01029780903","COMUNE DI BESSUDE",24730]
[29763,"00164790792","COMUNE DI BADOLATO",29763]
[27842,"01597120789","Comune di Cervicati",27842]
[25407,"01148000613","COMUNE DI PIETRAVAIRANO",25407]
[28157,"00394550784","COMUNE DI SANT'AGATA DI ESARO",28157]
[28020,"01245801210","COMUNE DI MUGNANO DI NAPOLI",28020]
[28107,"01702630615","COMUNE DI PORTICO DI CASERTA",28107]
[28050,"00455580613","Comune di Teverola",28050]
[28047,"00172190704","COMUNE DI BUSSO",28047]
[28037,"00297810798","Comune di Capistrano",28037]
[28025,"00134970805","COMUNE DI OPPIDO MAMERTINA",28025]
[28022,"02740990169","COMUNE DI MEDOLAGO",28022]
[27964,"00294190616","COMUNE DI SAN NICOLA LA STRADA",27964]
[25328,"00623750825","COMUNE DI POLLINA",25328]
[27441,"02715630824","COMUNE DI PRIZZI",27441]
[24565,"02354850220","COMUNE DI PREDAIA",24565]
[27898,"03697540619","COMUNE DI CASAL DI PRINCIPE",27898]
[29897,"01068101003","Comune di Valmontone",29897]
[27932,"00382800167","Comune di Rota d'Imagna",27932]
[26061,"03686280136","COMUNE DI ALTA VALLE INTELVI",26061]
[24486,"01214250167","COMUNE DI CUSIO",24486]
[25539,"00468980875","Comune di Giarre",25539]
[27845,"00391660784","COMUNE DI PANETTIERI",27845]
[25812,"00929150019","SOCIETA' COOPERATIVA ACQUA POTABILE DI CHIAVERANO",25812]
[30007,"00260620786","comune di carolei",30007]
[27818,"01688180817","COMUNE DI VITA",27818]
[28039,"00348180787","COMUNE DI SAN GIOVANNI IN FIORE",28039]
[28028,"00709140800","COMUNE DI SCILLA",28028]
[27100,"00562780361","Comune di Fanano",27100]
[27983,"00146680616","COMUNE DI SAN PRISCO",27983]
[24604,"00312730807","Comune di Maropati",24604]
[30016,"01792920785","COMUNE DI NOCARA",30016]
[24593,"00315870808","COMUNE DI STILO",24593]
[24215,"00310810825","Comune di Castelbuono",24215]
[28072,"00395970783","COMUNE DI SAN SOSTI",28072]
[27366,"00103330072","COMUNE DI COURMAYEUR",27366]
[27921,"02183980875","Comune di Ragalna",{"$f":"+A393","v":27921}]
[26913,"00290910223","COMUNE DI SAGRON MIS",26913]
[25892,"00136380805","Comune di Reggio di Calabria",25892]
[26215,"00320160500","COMUNE DI LAJATICO",26215]
[26270,"00127640472","COMUNE DI PIEVE A NIEVOLE",26270]
[26086,"00468360797","Consorzio Regionale per lo Sviluppo delle Attività Produttive della Regione Calabria",26086]
[25889,"00337920797","Comune di Carfizzi",25889]
[25962,"02797800642","sasso costruzioni s.r.l.",25962]
[23926,"01200850830","COMUNE DI ITALA",23926]
[23906,"01937820833","A.M.A.M. Azienda Meridionale Acque Messina S.p.A.",23906]
[23782,"00282190891","comune di priolo gargallo",23782]
[23888,"00447200619","COMUNE DI PIETRAMELARA",23888]
[23927,"01838990891","Servizi Integrati Acque del Mediterraneo - SIAM",23927]
[24019,"02134270871","S.I.S.  SOCIETA' IDROMINERALI  SICILIANA",24019]
[23586,"00289380974","GESTIONE IMPIANTI DEPURAZIONE ACQUE SPA",23586]
[23137,"00196880892","Comune di Portopalo di Capo Passero",23137]
[22114,"00069900942","COMUNE DI CASTELPIZZUTO",22114]
[22186,"00082350943","COMUNE DI SANT'ELENA SANNITA",22186]
[22788,"00309450120","COMUNE DI CASTIGLIONE OLONA",22788]
[22747,"00075820894","COMUNE DI MELILLI",22747]
[22967,"00197180250","Comune di San Nicolò di Comelico",22967]
[22859,"01748270640","COMUNE DI CASTELFRANCI",22859]
[22825,"00317720126","COMUNE DI VEDANO OLONA",22825]
[21969,"00308920222","comune di Drena",21969]
[21428,"00268840642","COMUNE DI FORINO",21428]
[22778,"00300460128","COMUNE DI CUGLIATE FABIASCO",22778]
[22763,"00094260890","comune di canicattini bagni",22763]
[20752,"00269180642","COMUNE DI DOMICELLA",20752]
[22786,"00312750433","COMUNE DI POGGIO SAN VICINO",22786]
[22766,"00300450129","Comune di Cadegliano Viconago",22766]
[22126,"00215860701","comune di casalciprano",22126]
[20331,"00471980094","Servizi Ambientali s.p.a.",20331]
[22962,"01457180634","comune di quarto",22962]
[22749,"00260520127","COMUNE DI DAVERIO",22749]
[22580,"00296280795","Comune di Cicala",22580]
[22446,"00056870942","COMUNE DI SESSANO DEL MOLISE",22446]
[21609,"00305670085","COMUNE DI ROCCHETTA NERVINA",21609]
[21726,"00428660047","comune di gottasecca",21726]
[22308,"00225210707","COMUNE DI GUARDIALFIERA",22308]
[21586,"01535470809","Jonica Multiservizi S.p.A.",21586]
[21562,"00246520084","COMUNE DI AQUILA D'ARROSCIA",21562]
[21503,"00248800641","Comune di Avella",21503]
[22965,"00342700093","Comune di Magliolo",22965]
[22855,"00339030090","COMUNE DI BARDINETO",22855]
[22841,"00080070881","COMUNE DI SCICLI",22841]
[22185,"00087290946","comune di Roccasicura",22185]
[22807,"00807170048","Comune di Rodello",22807]
[22754,"01107430033","COMUNE DI TRASQUERA",22754]
[22688,"00583090980","Comune di Breno",22688]
[22175,"00056600943","COMUNE DI BELMONTE DEL SANNIO",22175]
[22898,"01277110837","COMUNE DI ROCCELLA VALDEMONE",22898]
[22860,"00143390649","COMUNE DI VOLTURARA IRPINA",22860]
[22845,"00170330880","COMUNE DI POZZALLO",22845]
[22923,"01399790011","COMUNE DI VARISELLA",22923]
[22796,"00343860128","Comune di Germignaga",22796]
[22351,"01519250615","COMUNE DI CASTEL MORRONE",22351]
[22734,"00891180655","comune di roccagloriosa",22734]
[21591,"00246610083","COMUNE DI APRICALE",21591]
[21540,"00703370130","COMUNE DI BIZZARONE",21540]
[19775,"00245240643","Comune di Baiano",19775]
[17452,"00101620078","COMUNE DI VERRAYES",17452]
[15984,"00555080217","COMUNE DI EGNA",15984]
[20171,"00645800657","COMUNE DI POSTIGLIONE",20171]
[19771,"00228820643","Comune di Caposele",19771]
[19892,"00246350086","COMUNE DI MONTEGROSSO PIAN LATTE",{"$f":"+A457","v":19892}]
[19734,"00595780131","COMUNE DI LEZZENO",19734]
[19852,"00651160137","Comune di Rodero",19852]
[17423,"01357390218","COMUNE DI SELVA DEI MOLINI",17423]
[20010,"01399810017","COMUNE DI VALLO TORINESE",20010]
[19777,"00723540985","COMUNE DI GIANICO",19777]
[16977,"03479980876","S.ED.A. S.R.L. SOCIETA' EDUZIONE ACQUE",16977]
[16919,"00256420225","COMUNE NAGO-TORBOLE",16919]
[17514,"94032050216","Bodenverbesserungskonsortium Penon - Cons. Migl. Fond. Penone",17514]
[17126,"00434390217","Comune di Valdaora",17126]
[17489,"01339170217","Ammistrazione separata di beni di uso civico frazione San Benedetto",17489]
[16851,"00149130221","COMUNE DI PELLIZZANO",16851]
[17526,"00437840622","COMUNE DI CASTELFRANCO IN MISCANO",17526]
[17528,"00337460224","Provincia Autonoma di Trento - Agenzia per la Depurazione - Servizio Gestione degli Impianti",17528]
[19076,"03043330012","Comune di Prali",19076]
[17467,"01235170212","Comune Valle di Casies",17467]
[17055,"00269570628","COMUNE DI CASTELVETERE IN VAL FORTORE",17055]
[17422,"01309880217","COMUNE DI SENALES",17422]
[17368,"00383490216","Comune Campo di Trens",17368]
[17297,"00500900220","COMUNE DI SAMONE",17297]
[17151,"00356410217","Comune di Cermes",17151]
[17532,"00538970211","COOPERATIVA PER L'ACQUA POTABILE DI SAN COSTANTINO DI FIE'",17532]
[17442,"01240170215","Comune di Braies",17442]
[16925,"00374450229","COMUNE DI CANAZEI",16925]
[16673,"00575500210","COMUNE DI PRATO ALLO STELVIO",16673]
[17376,"00496810219","COMUNE DI SAN CANDIDO",17376]
[17258,"00213100126","COMUNE DI LAVENO MOMBELLO",17258]
[17100,"00443370218","Comune di Avelengo",17100]
[14923,"00490870227","COMUNE DI CAMPITELLO DI FASSA",14923]
[12341,"03988240960","BRIANZACQUE SRL",12341]
[12622,"00069690709","COMUNE DI FOSSALTO",12622]
[13707,"00225240704","COMUNE DI MAFALDA",13707]
[15124,"00333890093","Comune di Albissola Marina",15124]
[14895,"00149180226","COMUNE DI MOENA",14895]
[13658,"00309270122","COMUNE DI CAIRATE",13658]
[15280,"00225260702","COMUNE DI ORATINO",15280]
[14564,"00308770221","COMUNE DI FIAVE'",14564]
[13591,"00561660127","COMUNE DI BESANO",13591]
[14212,"04544770821","ACQUEDOTTO ROCCA ROSSA S.R.L.",14212]
[14365,"07679350632","ABC Acqua Bene Comune Napoli a.s.",14365]
[14286,"00202010666","comune di scontrone",14286]
[14240,"03204200871","ACQUE LO SCIUTO S.R.L.",14240]
[14033,"00085210896","COMUNE DI PALAZZOLO ACREIDE",14033]
[13918,"00372410068","COMUNE DI VOLTAGGIO",13918]
[13800,"01742310152","MM S.P.A.",13800]
[14782,"00274540228","COMUNE DI CAVEDINE",14782]
[14351,"00350700225","Comune di Pelugo",14351]
[13836,"00198130700","COMUNE DI CASTELMAURO",13836]
[14159,"03196760247","Viacqua S.p.A.",14159]
[14910,"00383060225","COMUNE DI LONA LASES",14910]
[15227,"00561110123","Comune di Cassano Valcuvia",15227]
[14833,"00292580222","COMUNE DI DENNO",14833]
[14352,"00309250124","COMUNE VENEGONO INFERIORE",14352]
[14611,"00837130228","COMUNE DI CALCERANICA AL LAGO",14611]
[14531,"00827970229","COMUNE DI VIGNOLA FALESINA",14531]
[14208,"03971840826","CAV. GIROLAMO GUERCIA COSTRUZIONI SRL",14208]
[14428,"02854170657","Comune di Sanza",14428]
[14200,"00270960222","Comune di Massimeno",14200]
[14139,"00140360074","COMUNE DI SAINT-OYEN",14139]
[13700,"00170280705","COMUNE DI MONTEFALCONE NEL SANNIO",13700]
[13976,"00208430876","ACQUE PONTE DI FERRO S.R.L.",13976]
[13851,"00090190703","CONSORZIO PER LO SVILUPPO IND.LE DELLA VALLE DEL BIFERNO",13851]
[12790,"02078000037","ACQUA NOVARA.VCO S.P.A.",12790]
[7702,"00182790659","Consac Gestioni Idriche S.p.a.",7702]
[7700,"01280290386","C.A.D.F. S.p.A.",{"$f":"+A521","v":7700}]
[5452,"00407860212","Gemeinde Villnöß / Comune di Funes",5452]
[8054,"02634920546","Umbra Acque S.p.A.",8054]
[3714,"00396990210","COMUNE DI LACES",3714]
[2872,"00146270228","COMUNE DI BASELGA DI PINE'",2872]
[349,"00114540669","COMUNE DI CASTEL DEL MONTE",349]
[1211,"00584970982","COMUNE DI VEZZA D'OGLIO",1211]
[1301,"00159240225","COMUNE DI OSSANA",1301]
[1761,"00132380874","ACOSET",1761]
[1879,"00144520665","COMUNE DI ROCCA PIA",1879]
[14172,"01198370114","Acam Acque SpA",14172]
[3045,"01791490343","IRETI S.p.A.",3045]
[37011,"02668270065","AM+ SPA",37011]
[1439,"00111860193","PADANIA ACQUE S.P.A.",1439]
[24816,"02484440207","AQA SRL SOCIETA' BENEFIT",24816]
[21358,"00103480299","COSTRUZIONI DONDI",21358]
[308,"02191980420","VIVA Servizi SpA",308]
[39381,"01462190438","Valli Varanensi s.r.l.",39381]
[39264,"00576860811","Comune di Buseto Palizzolo",39264]
[43766,"05487640871","NAIADI Srl",43766]
[44041,"00256700642","Comune di Montefusco",44041]
[43740,"03191430804","comune di ferruzzano",43740]
[44343,"01672950787","Comune di Malito",44343]
[34382,"00374200780","comune di figline vegliaturo",34382]
[35489,"01636160648","Comune di Pratola Serra",35489]
[38158,"02649530611","COMUNE DI CAMIGLIANO",38158]
[34672,"00774440622","comune di fragneto monforte",34672]
[36452,"14034831009","Kratos s.c.a.r.l.",36452]
[35731,"00298890161","COMUNE DI BREMBATE",35731]
[34441,"00291010221","COMUNE DI CIS",34441]
[29514,"00362830796","COMUNE DI OLIVADI",29514]
[29731,"00086220944","COMUNE DI CASTEL DEL GIUDICE",29731]
[30324,"03434470047","CONSORZIO GESTORI SERVIZI IDRICI S.C.R.L.",30324]
[28443,"00934250838","COMUNE DI FURNARI",28443]
[29571,"00287530646","COMUNE DI VILLANOVA DEL BATTISTA",29571]
[28807,"01846470787","COMUNE DI SERRA D'AIELLO",28807]
[29622,"01765150642","COMUNE DI SANTA PAOLINA",29622]
[33069,"00599710134","COMUNE DI BRIENNO",33069]
[29853,"00158370627","Comune di Faicchio",29853]
[28753,"00145100830","COMUNE DI ROCCALUMERA",28753]
[29490,"00708900808","Comune di San Procopio",29490]
[28618,"01262970617","COMUNE DI VAIRANO PATENORA",28618]
[28980,"00221370802","COMUNE DI MAMMOLA",28980]
[29552,"00275600831","COMUNE DI RACCUJA",29552]
[29511,"01988240717","COMUNE DI CELLE DI SAN VITO",29511]
[28676,"00324280833","Comune di Brolo",28676]
[28663,"00337960793","COMUNE DI SAN CALOGERO",28663]
[29765,"00283270643","Comune di Montaguto",29765]
[29341,"00243300811","comune di Poggioreale",29341]
[28735,"00336470836","COMUNE DI MOTTA CAMASTRA",28735]
[28692,"00276350782","Comune di Rende",28692]
[28376,"00296950090","COMUNE DI SASSELLO",28376]
[29576,"00451350615","COMUNE DI FORMICOLA",29576]
[29484,"01751310788","COMUNE DI PAPASIDERO",29484]
[28874,"01996080659","COMUNE DI PERITO",28874]
[28889,"00780640801","COMUNE DI MELICUCCA'",28889]
[28826,"00326670791","COMUNE DI CESSANITI",28826]
[30177,"00280410648","Comune di Trevico",30177]
[28955,"00711270801","COMUNE DI CARERI",28955]
[28631,"00361220791","COMUNE DI SPADOLA",28631]
[28390,"00676920820","COMUNE DI BISACQUINO",28390]
[30197,"00690020649","Comune di Manocalzati",30197]
[28789,"00256290784","COMUNE DI VERBICARO",28789]
[29638,"00552820623","COMUNE DI SANTA CROCE DEL SANNIO",29638]
[29349,"00689060135","COMUNE DI LIVO",{"$f":"+A585","v":29349}]
[28343,"00385040787","comune di longobucco",28343]
[30209,"03700710126","COMUNE DI CADREZZATE CON OSMATE",30209]
[29603,"00934880626","COMUNE DI APICE",29603]
[29996,"00084690940","COMUNE DI SAN PIETRO AVELLANA",29996]
[28573,"45632178900","nuova mix",28573]
[29772,"01096280613","comune di grazzanise",29772]
[30152,"02485300228","Comune di San Giovanni di Fassa - Sèn Jan",30152]
[29458,"01817970617","COMUNE DI FONTEGRECA",29458]
[29372,"00378460836","COMUNE DI MILITELLO ROSMARINO",29372]
[24373,"00297610792","COMUNE DI PALLAGORIO",24373]
[28076,"00329020804","COMUNE DI MOLOCHIO",28076]
[27792,"00920640042","COMUNE DI VINADIO",27792]
[27861,"00383810785","COMUNE DI SANTA DOMENICA TALAO",27861]
[27809,"00293920815","Comune di  Gibellina",27809]
[26037,"00561440124","COMUNE DI MERCALLO",26037]
[25997,"01214260166","COMUNE DI AVERARA",25997]
[25957,"01096141005","COMUNE DI CAPENA",25957]
[24703,"00468290044","comune di bosia",24703]
[24419,"00711050807","Comune di San Roberto",24419]
[27840,"04555900820","CONSORZIO BELLOLAMPO",27840]
[24598,"00407350834","Comune di Piraino",24598]
[24109,"00462610833","Comune di Santa Domenica Vittoria",24109]
[28061,"00327770798","comune di pizzo",28061]
[29373,"00390480614","COMUNE DI PRATA SANNITA",29373]
[27329,"00315660795","COMUNE DI CERENZIA",27329]
[26688,"00122530801","CONSORZIO INTERCOMUNALE ACQUEDOTTO VINA",26688]
[26582,"03722100652","ACQUEDOTTI DEL CALORE LUCANO S.P.A.",26582]
[25866,"02145971004","Comune di Anticoli Corrado",25866]
[24570,"00914010806","COMUNE DI PAZZANO",24570]
[28113,"03557570789","COMUNE DI CORIGLIANO-ROSSANO",28113]
[27215,"00710350802","COMUNE DI PALMI",27215]
[25979,"02823100165","COMUNE DI AMBIVERE",25979]
[28323,"00225220706","COMUNE DI LARINO",28323]
[24562,"00359470804","Comune di Bivongi",24562]
[27794,"00533320826","Comune di Montelepre",27794]
[29774,"01024090167","COMUNE DI CARVICO",29774]
[27872,"00399900786","Comune di Paterno Calabro",27872]
[27799,"00216350835","COMUNE DI SINAGRA",27799]
[27813,"00128180833","COMUNE DI UCRIA",27813]
[28014,"00296920796","Comune di Soveria Simeri",28014]
[25831,"00291470607","COMUNE DI FILETTINO",25831]
[28295,"00267230803","COMUNE DI CITTANOVA",28295]
[27963,"01283770616","COMUNE DI CAPODRISE",27963]
[28090,"00641070826","COMUNE DI VILLAFRATI",28090]
[28017,"00432870830","COMUNE DI ANTILLO (ME)",28017]
[28110,"00311700793","Comune di Sant'Onofrio",28110]
[25365,"02401890229","COMUNE DI PRIMIERO SAN MARTINO DI CASTROZZA",25365]
[25324,"02401940222","COMUNE DI VALLELAGHI",25324]
[27183,"01906470479","COMUNE DI ABETONE CUTIGLIANO",27183]
[25391,"00643580822","Comune di Terrasini",25391]
[24907,"00298190794","Comune di Satriano",24907]
[25934,"00727180168","COMUNE DI PIAZZOLO",25934]
[24745,"00190970665","comune di villetta barrea",24745]
[25578,"02401730227","COMUNE DI PIEVE DI BONO-PREZZO",25578]
[27930,"01593030610","COMUNE DI CAIANELLO",27930]
[27507,"00151990827","comune di belmonte mezzagno",27507]
[27839,"00774460828","Comune di Palazzo Adriano",27839]
[27931,"00529360786","COMUNE DI CASSANO ALL'IONIO",27931]
[24610,"01269290878","COMUNE DI RADDUSA",24610]
[27810,"00415010834","Comune di Venetico",27810]
[28043,"01525210645","COMUNE DI MIRABELLA ECLANO",28043]
[28000,"00288960800","COMUNE DI GIOIOSA IONICA",28000]
[27996,"00296480817","COMUNE DI CASTELVETRANO",27996]
[27914,"00360710792","Comune di Sellia Marina",{"$f":"+A649","v":27914}]
[27812,"00726930803","COMUNE DI CASIGNANA",27812]
[24093,"00119310621","comune di casalduni",24093]
[27883,"00601410137","COMUNE DI MOLTRASIO",27883]
[27081,"00202280343","COMUNE DI BERCETO",27081]
[26000,"00374900165","COMUNE DI AVIATICO",26000]
[24597,"00346700792","COMUNE DI MILETO",24597]
[24760,"00615010253","Consorzio Acquedotto Vicinia di Cojana",24760]
[28098,"00787540657","COMUNE DI SACCO",28098]
[27906,"02785040821","Comune di Polizzi Generosa",27906]
[28083,"00963470612","COMUNE DI ARIENZO",28083]
[28062,"00389920786","COMUNE DI SAN MARCO ARGENTANO",28062]
[28057,"00124750076","COMUNE DI SAINT-VINCENT",28057]
[26300,"00097460521","Comune di Poggibonsi",26300]
[26156,"00456790831","COMUNE DI REITANO",26156]
[25994,"02145801003","Comune di Marano Equo",25994]
[25868,"00219310562","Comune di Cellere",25868]
[24614,"00138500806","COMUNE DI LOCRI",24614]
[23807,"00319210167","COMUNE DI SANTA BRIGIDA",23807]
[23018,"00136920618","Comune di Maddaloni",23018]
[23843,"00200660918","COMUNE DI TERTENIA",23843]
[23010,"00194580916","COMUNE DI OLZAI",23010]
[23934,"00268010642","COMUNE DI QUADRELLE",23934]
[23893,"01861100012","COMUNE DI PALAZZO CANAVESE",23893]
[23698,"00286650502","Comune di Terricciola",23698]
[23949,"00550240642","Comune di Lauro",23949]
[23952,"01820400644","COMUNE DI PIETRADEFUSI",23952]
[23967,"00150590610","Comune di Capua",23967]
[23920,"80005130648","COMUNE DI VENTICANO",23920]
[21460,"00663490134","COMUNE DI LOCATE VARESINO",21460]
[22515,"00060040706","COMUNE DI CASTELBOTTACCIO",22515]
[22925,"00341140093","comune di erli",22925]
[21489,"00633460621","COMUNE DI SAN SALVATORE TELESINO",21489]
[22785,"00609670138","COMUNE DI BARNI",22785]
[22889,"00340200096","COMUNE DI CASTELBIANCO",22889]
[21438,"00232380642","Comune di Conza della Campania",21438]
[22904,"00427590831","COMUNE DI MOJO ALCANTARA",22904]
[22890,"01466940903","COMUNE DI BULTEI",22890]
[22263,"00038870945","COMUNE DI CARPINONE",22263]
[20136,"02145731002","COMUNE DI MANDELA",20136]
[21549,"01704560612","Comune di Rocchetta e Croce",21549]
[21831,"00536140650","Comune di Casalbuono",21831]
[22207,"00168050706","COMUNE DI GUGLIONESI",22207]
[21424,"00266020098","COMUNE DI PALLARE",21424]
[21386,"00497770651","comune di corleto monforte",21386]
[21471,"01074150721","EIPLI (Ente per lo sviluppo dell'irrigazione e la trasformazione fondiaria in Puglia Lucania e Irpinia)",21471]
[22171,"00723560983","COMUNE DI ESINE",22171]
[21528,"00457290138","COMUNE DI FALOPPIO",21528]
[20831,"00445110877","COMUNE DI MALETTO",20831]
[20035,"00500140652","COMUNE DI PETINA",20035]
[22956,"00110300571","COMUNE DI TURANIA",22956]
[22938,"00424320836","Comune di Castroreale",22938]
[21507,"01754310645","COMUNE DI TORRIONI",21507]
[21565,"00249250085","comune di caravonica",21565]
[21445,"02153090648","COMUNE DI PETRURO IRPINO",21445]
[22900,"00282280643","Comune di Roccabascerana",22900]
[21391,"00785160656","COMUNE DI SALVITELLE",21391]
[19779,"00583310982","COMUNE DI ARTOGNE",19779]
[19760,"00260750088","Comune di Bordighera",19760]
[19751,"00214800088","COMUNE DI TRIORA",19751]
[17522,"00056470701","COMUNE DI SAN POLO MATESE",17522]
[17506,"00202560702","COMUNE DI SAN BIASE",17506]
[19809,"02021450610","COMUNE DI LUSCIANO",19809]
[19781,"00574180980","COMUNE DI PIAN CAMUNO",19781]
[16955,"00308910223","COMUNE DI TENNO",{"$f":"+A713","v":16955}]
[16952,"00310910229","COMUNE DI VILLA LAGARINA",16952]
[19786,"00083920942","COMUNE DI CASTELVERRINO",19786]
[17436,"00616510210","Comune di Renon",17436]
[17049,"00125730077","COMUNE DI CHALLAND SAINT VICTOR",17049]
[17534,"00202720702","Comune di San Giovanni in Galdo",17534]
[17380,"00436290217","COMUNE DI SESTO",17380]
[19799,"00651150138","COMUNE DI VALMOREA",19799]
[17445,"00328950217","TRINKWASSERGENOSSENSCHAFT MISSIAN - UNTERRAIN",17445]
[17209,"00502440076","COMUNE DI SAINT-NICOLAS",17209]
[17379,"00497820217","COMUNE DI TERMENO SULLA STRADA DEL VINO",17379]
[17407,"00665590212","Comune di Villandro",17407]
[17501,"00054330709","COMUNE DI COLLE D'ANCHISE",17501]
[17415,"01260810211","Comune di Brennero",17415]
[17383,"00197920218","Comune di Anterivo",17383]
[17369,"01069990214","Comune di Villabassa",17369]
[16949,"00347080228","COMUNE DI BIENO",16949]
[16958,"00308700228","COMUNE DI BLEGGIO SUPERIORE",16958]
[17364,"00886010214","Comune di Falzes",17364]
[15276,"00318100096","Comune di Varazze",15276]
[14145,"00174500702","COMUNE DI SEPINO",14145]
[13325,"00457550432","A.P.M. SPA AZIENDA PLURISERVIZI MACERATA",13325]
[14405,"00627760135","COMUNE DI LAMBRUGO",14405]
[13874,"00375680410","COMUNE DI PIETRARUBBIA",13874]
[14361,"00838520633","ING. ANTONIO FIORE E C.",14361]
[14553,"00915040224","COMUNE DI GIOVO",14553]
[14318,"00226820124","comune di solbiate arno",14318]
[14230,"00069960706","COMUNE DI SALCITO",14230]
[14192,"00613570134","COMUNE ALZATE BRIANZA",14192]
[15023,"00126690221","Comune di Brentonico",15023]
[13618,"00462110123","COMUNE DI PORTO CERESIO",13618]
[13968,"00291490431","COMUNE DI FIASTRA",13968]
[13397,"01131060996","E.G.U.A. S.r.l.",13397]
[12850,"00622530822","COMUNE DI SCILLATO",12850]
[15115,"03815490879","acquedotti  U.C.C.",15115]
[14400,"00846180222","COMUNE DI FIEROZZO / GAMOA' VA VLAROTZ",14400]
[15031,"00411690217","COMUNE DI DOBBIACO",15031]
[14717,"00292750221","COMUNE DI TELVE",14717]
[14415,"00248280125","COMUNE DI CASTRONNO",14415]
[14346,"00592460984","Comune di Incudine",14346]
[14310,"00602620130","COMUNE DI LURAGO D'ERBA",14310]
[14274,"00441340122","COMUNE DI VARESE",14274]
[14666,"00301120226","COMUNE DI SCURELLE",14666]
[14170,"00415540137","COMUNE DI FIGINO SERENZA",14170]
[17235,"00271100224","COMUNE DI ALBIANO",17235]
[13792,"00439580028","COMUNE DI CIVIASCO",13792]
[14002,"00309230126","COMUNE DI MONVALLE",14002]
[13629,"00168960706","COMUNE DI DURONIA",13629]
[13186,"00056650948","COMUNE DI POGGIO SANNITA",13186]
[13117,"01424590030","Idrablu",13117]
[13014,"00103020053","Comune di Castello di Annone",13014]
[12619,"01526780216","Azienda Servizi Municipalizzati di Merano Spa",12619]
[8246,"01855890230","AZIENDA GARDESANA SERVIZI SPA",8246]
[7396,"01070220312","IRISACQUA SRL",7396]
[14854,"01704570611","COMUNE DI CALVI RISORTA",14854]
[7778,"01321570663","SACA SERVIZI AMBIENTALI CENTRO ABRUZZO",7778]
[5516,"00247030224","COMUNE DI CASTELLO TESINO",5516]
[5093,"00445350218","Comune di Lagundo",5093]
[2946,"00246330088","COMUNE DI MENDATICA",2946]
[2326,"00447010216","Gemeinde St. Leonhard in Passeier / Comune di San Leonardo in Passiria",2326]
[2323,"00177740214","Comune di Moso in Passiria",2323]
[1280,"02059030417","Marche Multiservizi S.p.A.",1280]
[2149,"00617120217","Comune di Cornedo all'Isarco",2149]
[990,"01938630025","ASM VERCELLI SPA",990]
[13656,"00304790538","ACQUEDOTTO DEL FIORA SPA",{"$f":"+A777","v":13656}]
[2937,"07937540016","SOCIETA' METROPOLITANA ACQUE TORINO",2937]
[841,"04245520376","HERA S.P.A.",841]
[8092,"03079180364","SORGEAQUA S.R.L.",8092]
[26004,"02525300063","SOCIETA' GESTIONE RIUNITA IDRICO S.P.A.",26004]
[12816,"00158530303","CAFC S.p.A.",12816]
[14138,"06765250631","ACQUA CAMPANIA SPA",14138]
[43963,"01750260646","COMUNE DI FONTANAROSA",43963]
[43731,"93544360725","CONSORZIO DI BONIFICA CENTRO SUD PUGLIA",43731]
[39187,"08184491218","EDIL GENERAL BUILDING SRL",39187]
[34869,"01272940618","COMUNE DI PRATELLA",34869]
[36283,"00855530903","CONSORZIO ZONA INDUSTRIALE DI INTERESSE REGIONALE DI CHILIVANI",36283]
[37275,"01259061008","Consorzio Acquedotto del Medio Tirreno in liquidazione",37275]
[38755,"00297900797","Comune di Cardinale",38755]
[29496,"00892690785","comune di civita",29496]
[29453,"00753410802","COMUNE DI CAMINI",29453]
[29291,"00263400806","COMUNE DI ANOIA",29291]
[30002,"00425340783","COMUNE DI ACQUAPPESA",30002]
[28452,"00298040791","COMUNE DI MOTTA SANTA LUCIA",28452]
[29600,"00301160792","Comune di Castelsilano",29600]
[29296,"00251040804","Comune di Giffone",29296]
[30279,"01358730610","COMUNE DI TORA E PICCILLI",30279]
[29502,"00404190787","COMUNE DI CARPANZANO",29502]
[29386,"00327310793","COMUNE DI MONTAURO",29386]
[29367,"00394620785","comune di Maierà",29367]
[29366,"00371570797","COMUNE DI FILOGASO",29366]
[28790,"00298100793","COMUNE DI PETRIZZI",28790]
[28479,"00733560809","COMUNE DI SANT'ILARIO DELLO IONIO",28479]
[30004,"01137730816","Comune di Favignana",30004]
[29805,"00123800641","COMUNE DI OSPEDALETTO D'ALPINOLO",29805]
[29405,"00204380943","Comune di Rocchetta a Volturno",29405]
[29553,"00775940653","Comune di Caselle in Pittari",29553]
[29271,"00402260780","COMUNE DI BUONVICINO",29271]
[29095,"00275230092","COMUNE DI MIOGLIA",29095]
[29354,"00240690792","COMUNE DI PALERMITI",29354]
[29400,"00362320780","comune di San Basile",29400]
[28700,"00285810800","COMUNE DI MOTTA SAN GIOVANNI",28700]
[29670,"00384190641","comune di monteverde",29670]
[29323,"00941340788","Comune di Francavilla Marittima",29323]
[29592,"00725760805","COMUNE DI ROCCAFORTE DEL GRECO",29592]
[28924,"00302030804","COMUNE DI SANTO STEFANO IN ASPROMONTE",28924]
[29494,"00291570711","COMUNE DI VOLTURARA APPULA",29494]
[29347,"00358500833","comune di Novara di sicilia",29347]
[28770,"00297630790","COMUNE DI MELISSA",28770]
[29525,"01637140789","COMUNE DI ALESSANDRIA DEL CARRETTO",29525]
[29287,"01147850612","COMUNE DI PRESENZANO",29287]
[29716,"00719660623","COMUNE DI PADULI",29716]
[28746,"00575760160","COMUNE DI CHIGNOLO D'ISOLA",28746]
[28442,"02529440618","Comune di Cancello ed Arnone",28442]
[29556,"00433190618","COMUNE DI SAN POTITO SANNITICO",29556]
[29334,"01637150788","COMUNE DI CALOPEZZATI",29334]
[29526,"00312790793","comune di San Mauro Marchesato",29526]
[28875,"00775970650","Comune di Cicerale",28875]
[29595,"00297380792","COMUNE DI AMATO",29595]
[29482,"02894940655","COMUNE NOVI VELIA",29482]
[29352,"00711160135","COMUNE DI MONTEMEZZO",29352]
[28467,"01286100787","COMUNE DI SPEZZANO ALBANESE",28467]
[30021,"01281140788","COMUNE DI BELMONTE CALABRO",30021]
[30000,"00362420788","COMUNE DI DIAMANTE",30000]
[29908,"01346800624","COMUNE DI ARPAISE",29908]
[29594,"00527130835","COMUNE DI SAN SALVATORE DI FITALIA",29594]
[29568,"00337940795","COMUNE DI SCANDALE",29568]
[28977,"00141570622","COMUNE DI AMOROSI",28977]
[28339,"00177830841","COMUNE DI CIANCIANA",28339]
[29406,"00730350808","COMUNE DI PORTIGLIOLA",{"$f":"+A841","v":29406}]
[22899,"00218950640","COMUNE DI CALITRI",22899]
[29463,"00250850781","Comune di Domanico",29463]
[28472,"00266660901","COMUNE DI CHEREMULE",28472]
[29523,"00785180654","comune di castel san lorenzo",29523]
[28612,"00346710809","COMUNE DI SAN GIOVANNI DI GERACE",28612]
[29479,"00248290090","COMUNE DI PONTINVREA",29479]
[29459,"01606620787","COMUNE DI CANNA",29459]
[28670,"00400390795","COMUNE DI GUARDAVALLE",28670]
[28550,"01239050808","COMUNE DI SEMINARA",28550]
[29331,"00374210789","COMUNE DI PIANE CRATI",29331]
[29460,"01829600616","Comune di Letino",29460]
[30071,"00247210644","COMUNE DI SUMMONTE",30071]
[29130,"00338220098","COMUNE DI CENGIO",29130]
[26194,"00297910796","COMUNE DI COTRONEI",26194]
[28188,"00255660680","COMUNE DI SANT'EUFEMIA A MAIELLA",28188]
[27849,"01040920785","COMUNE SAN PIETRO IN GUARANO",27849]
[25819,"00827230160","comune di vedeseta",25819]
[24581,"00465190833","COMUNE DI GALLODORO",24581]
[24759,"00169340254","Consorzio Acquedotto Campo-Salieto",24759]
[27948,"00297730798","Comune di Torre di Ruggiero",27948]
[24729,"00364720417","Comune di Maiolo",24729]
[25650,"02878800610","COMUNE DI RECALE",25650]
[25914,"02402200220","COMUNE DI TRE VILLE",25914]
[27876,"00291270791","COMUNE DI BORGIA",27876]
[24317,"00339970832","COMUNE DI MONTALBANO ELICONA",24317]
[28129,"01174860781","COMUNE DI FALCONARA ALBANESE",28129]
[27897,"02632181216","Comune di Calvizzano",27897]
[25755,"00300440823","COMUNE DI PETRALIA SOTTANA",25755]
[28117,"00982870610","COMUNE DI CELLOLE",28117]
[28138,"00257580811","Comune di Mazara del Vallo",28138]
[27970,"00401460787","Comune di Scalea",27970]
[27918,"00951830785","Comune di Cetraro",27918]
[26718,"03396710125","COMUNE DI MACCAGNO CON PINO E VEDDASCA",26718]
[28315,"01637380781","COMUNE DI SANTO STEFANO DI ROGLIANO",28315]
[27788,"00160510913","COMUNE DI GADONI",27788]
[24600,"00302030796","Comune di Vibo Valentia",24600]
[28289,"00341180099","COMUNE DI ORTOVERO",28289]
[28126,"00387320443","CONSORZIO DI SVILUPPO INDUSTRIALE DELLE VALLI DEL TRONTO DELL'ASO E DEL TESINO",28126]
[28027,"00008010803","COMUNE DI CINQUEFRONDI",28027]
[28019,"00582060802","COMUNE DI DELIANUOVA",28019]
[27805,"00253000806","comune di candidoni",27805]
[27202,"00756380838","Comune di San Piero Patti",27202]
[26012,"01100391000","Comune Civitella San Paolo",26012]
[24764,"00248530693","COMUNE DI PENNADOMO",24764]
[24663,"02401900226","COMUNE DI SELLA GIUDICARIE",24663]
[28003,"00263580789","COMUNE DI GUARDIA PIEMONTESE",28003]
[27961,"03555290612","Comune di San Marcellino",27961]
[25684,"02346480227","UNIONE DEI COMUNI DELL'ALTA ANAUNIA",25684]
[27945,"00074320623","comune di solopaca",27945]
[27823,"00206560880","Comune di Ispica",27823]
[27893,"00298560806","Comune di Taurianova",27893]
[27806,"00491510822","Comune di Ustica",27806]
[25320,"01138990575","Acqua Pubblica Sabina S.P.A.",25320]
[27446,"00518510821","COMUNE DI BORGETTO",27446]
[27950,"00719910630","AQUA CONSULT TRATTAMENTO ACQUE",27950]
[27858,"00423160787","Comune di Firmo",27858]
[27783,"00689220879","COMUNE DI RAMACCA",27783]
[27992,"00356650838","COMUNE DI CAPO D'ORLANDO",27992]
[27844,"00443640826","COMUNE DI CAMPOFELICE DI ROCCELLA",27844]
[27988,"00802550830","COMUNE DI CAPIZZI",27988]
[27954,"00419860788","COMUNE DI LAINO CASTELLO",27954]
[27929,"00226540839","COMUNE DI MILAZZO",27929]
[27922,"00288230642","COMUNE DI TORRE LE NOCELLE",27922]
[27936,"01781170871","COMUNE DI MANIACE",{"$f":"+A905","v":27936}]
[24580,"00411750839","COMUNE DI SANTA TERESA DI RIVA",24580]
[28082,"02618730796","ECOTEC S.R.L.",28082]
[25801,"00577220981","COMUNE DI CIGOLE",25801]
[24585,"00279020796","COMUNE DI POLIA",24585]
[24576,"00818910804","Comune di San Luca",24576]
[24693,"00327960092","COMUNE DI CASANOVA LERRONE",24693]
[26368,"00201900503","COMUNE DI PECCIOLI",26368]
[25832,"00221130560","COMUNE DI VASANELLO",25832]
[26136,"02703380614","comune di pastorano",26136]
[25995,"00655980167","COMUNE DI PONTIDA",25995]
[23989,"00256490806","COMUNE DI CALANNA",23989]
[23907,"00461850836","COMUNE DI CAPRI LEONE",23907]
[23791,"01763870019","COMUNE DI STRAMBINELLO",23791]
[23113,"02413680923","CONSORZIO INTERCOMUNALE SALVAGUARDIA AMBIENTALE",23113]
[23878,"00672650165","COMUNE DI LENNA",23878]
[23860,"00231710682","Comune di Bussi sul Tirino",23860]
[23717,"00190790915","COMUNE DI VILLAGRANDE STRISAILI",23717]
[23846,"00183900893","Comune di Lentini",23846]
[23865,"00086470572","CONSORZIO COMUNI DELLA MEDIA SABINA",23865]
[23839,"00150050839","COMUNE DI SANTA LUCIA DEL MELA",23839]
[23913,"00255420648","Comune di Quindici",23913]
[21574,"00245080080","COMUNE DI CHIUSANICO",21574]
[21622,"00246590087","comune di castel vittorio",21622]
[21686,"00541410049","COMUNE DI BATTIFOLLO",21686]
[21506,"00723590980","COMUNE DI BIENNO",21506]
[21614,"00249310087","COMUNE DI AURIGO",21614]
[22839,"00486930126","COMUNE DI MASCIAGO PRIMO",22839]
[21601,"00247030083","Comune di Prelà",21601]
[21464,"00215570649","COMUNE DI CASSANO IRPINO",21464]
[22129,"00323010793","comune di Francica",22129]
[22858,"00104390570","COMUNE DI LONGONE SABINO",22858]
[22751,"00227400124","COMUNE DI CARAVATE",22751]
[21566,"00247040082","COMUNE DI VASIA",21566]
[21431,"00221640642","COMUNE DI MONTEFALCIONE",21431]
[22728,"00174260893","COMUNE DI PACHINO",22728]
[22721,"00711040626","COMUNE DI APOLLOSA",22721]
[22706,"00707370136","Comune di Brunate",22706]
[21569,"00238700082","COMUNE DI AIROLE",21569]
[22793,"00724360987","COMUNE DI ADRO",22793]
[21617,"00246630081","COMUNE DI PIGNA",21617]
[21599,"00208720086","COMUNE DI BAJARDO",21599]
[21500,"00127190627","COMUNE DI SAN MARCO DEI CAVOTI",21500]
[22131,"00222840704","COMUNE DI SAN GIULIANO DEL SANNIO",22131]
[22146,"00070460704","Comune di Sant'Elia a Pianisi",22146]
[21643,"00084570944","COMUNE DI PIZZONE",21643]
[21470,"00554520627","COMUNE DI PONTELANDOLFO",21470]
[21551,"00616910139","Comune di Montano lucino",21551]
[22072,"00392090783","Comune di Praia a Mare",22072]
[21570,"00807070628","COMUNE SAN NAZZARO",21570]
[22856,"00077920577","COMUNE DI MARCETELLI",22856]
[22826,"00504690124","COMUNE DI SAMARATE",22826]
[22143,"00225340702","COMUNE DI TUFARA",22143]
[22814,"00308240126","COMUNE DI TRAVEDONA MONATE",22814]
[22794,"01505091213","COMUNE DI CASORIA",22794]
[22697,"00657140133","COMUNE DI STAZZONA",22697]
[22932,"00474490836","COMUNE DI VALDINA",22932]
[22912,"01383990718","COMUNE DI MONTELEONE DI PUGLIA",22912]
[17357,"00850870213","Comune di Meltina",17357]
[16880,"00285750220","COMUNE DI STORO",16880]
[19919,"00592550628","COMUNE DI CAMPOLI DEL MONTE TABURNO",19919]
[19952,"01679720787","COMUNE DI BELSITO",19952]
[19802,"00152040622","COMUNE DI PUGLIANELLO",19802]
[15486,"01485710691","S.A.S.I. S.p.A.",15486]
[19816,"00467880134","Comune di Bene Lario",{"$f":"+A969","v":19816}]
[16978,"00276510229","COMUNE DI IMER",16978]
[19891,"00689040137","Comune di Peglio",19891]
[19815,"00259250629","COMUNE DI AIROLA",19815]
[17440,"01024370213","AMMINISTRAZIONE SEP. B.U.C. RIO BIANCO",17440]
[17686,"00431880228","COMUNE DI CROVIANA",17686]
[17231,"00592090989","COMUNE DI CEVO",17231]
[18604,"00475910824","COMUNE DI GANGI",18604]
[17410,"01140550219","Comune di Rodengo",17410]
[17402,"00415100213","Comune di Santa Cristina Val Gardena",17402]
[17525,"00289770216","TRINKWASSER-GENOSSENSCHAFT ST.PAULS BERG",17525]
[17502,"00110350071","COMUNE DI MONTJOVET",17502]
[17139,"00206420218","Comune di Monguelfo-Tesido",17139]
[18822,"04897750016","Comune di Fenestrelle",18822]
[16971,"02146620220","COMUNE DI COMANO TERME",16971]
[17430,"02407940218","Società Cooperativa Energie Pfunders",17430]
[17472,"00164280661","comune di Capitignano",17472]
[16965,"00310930227","COMUNE DI POMAROLO",16965]
[17696,"00406670216","Comune di Andriano",17696]
[17665,"00144850070","COMUNE DI ROISAN",17665]
[17656,"01572880217","Trinkwasserinteressentschaft Albeins",17656]
[16770,"01343210215","Comune di Racines",16770]
[14399,"00252040225","COMUNE DI MEZZANA",14399]
[15328,"03529980876","FRATELLI  GRASSI  NICOTRA  ACQUE",15328]
[14875,"00252960224","COMUNE DI COMMEZZADURA",14875]
[13613,"00203500871","ACQUE PONTE DI FERRO S.n.c.dei SIGG. SANTAGATI",13613]
[13691,"00101350445","CIIP Cicli Integrati Impianti Primari S.p.A.",13691]
[14234,"00293350229","COMUNE DI CADERZONE TERME",14234]
[14883,"00390750222","COMUNE DI TELVE DI SOPRA",14883]
[14435,"02934390929","ABBANOA SPA",14435]
[14236,"00438230070","COMUNE DI SAINT-RHEMY-EN-BOSSES",14236]
[14101,"02180620987","Unione Comuni dell'Alta Valle Camonica",14101]
[14514,"00511190043","comune di torre bormida",14514]
[11605,"01887790341","MONTAGNA2000",11605]
[14323,"00278660642","COMUNE DI CHIUSANO DI SAN DOMENICO",14323]
[14307,"00334870227","Comune di Soraga di Fassa",14307]
[14196,"00101220077","Comune di Etroubles",14196]
[13873,"02239130871","SO.GE.IM. di Sorbello Rosario & C.",13873]
[13782,"00225310705","COMUNE DI TAVENNA",13782]
[13760,"00232220129","COMUNE DI GAZZADA SCHIANNO",13760]
[14143,"00056590896","Comune di Rosolini",14143]
[14133,"00700520133","COMUNE DI PIANELLO DEL LARIO",14133]
[13455,"00259700128","COMUNE DI CAZZAGO BRABBIA",13455]
[10612,"00064780281","acquevenete spa",10612]
[13573,"01616760516","nuove acque spa",13573]
[13146,"01683140931","HydroGEA spa",13146]
[13712,"00263850646","COMUNE DI SAN MANGO SUL CALORE",13712]
[13702,"00282850890","Comune di Sortino",13702]
[5657,"01452870619","COMUNE DI MIGNANO MONTE LUNGO",5657]
[8294,"01390570065","VALLE ORBA DEPURAZIONE S.R.L.",8294]
[7391,"00559790126","COMUNE DI BRUSIMPIANO",7391]
[9039,"04017080872","A.M.A. S.p.A.",9039]
[9768,"00593060650","AUSINO S.P.A",9768]
[9369,"00083520668","GRAN SASSO ACQUA S.P.A.",9369]
[7608,"04201250877","SERVIZI IDRICI ETNEI S.P.A",7608]
[7345,"00073940058","ACQUEDOTTO VALTIGLIONE S.P.A.",7345]
[3061,"01340850211","Comunità Comprensoriale Val Venosta",3061]
[52,"04015810874","SOGIP S.R.L.",52]
[1188,"01349510436","ATAC CIVITANOVA SPA",1188]
[1417,"01579450220","AIR AZIENDA INTERCOMUNALE ROTALIANA S.P.A. SOCIETÀ BENEFIT",1417]
[1352,"00149220220","COMUNE DI SANT'ORSOLA TERME",1352]
[1657,"01142420056","A.S.P. S.P.A.",1657]
[1953,"00672670163","COMUNE DI RONCOBELLO",1953]
[779,"00807660212","COMUNE DI SLUDERNO",779]
[723,"00414320218","COMUNE DI TUBRE",{"$f":"+A1033","v":723}]
[7725,"00934000621","Gestione Servizi Sannio - GE.SE.SA.",7725]
[12938,"00527910046","EGEA ACQUE S.P.A.",12938]
[1161,"02569060540","VALLE UMBRA SERVIZI S.P.A.",1161]
[1348,"00670090141","S.EC.AM. S.P.A.",1348]
[44911,"02680040017","CONSORZIO DI SVILUPPO AGRICOLO DI MILLAURES",44911]
[44740,"04526460615","aerarium pa",44740]
[42950,"01197040627","COMUNE DI SANT'ANGELO A CUPOLO",42950]
[39382,"01158370625","COMUNE DI PESCO SANNITA",39382]
[34874,"00280800640","Comune di Montefredane",34874]
[34455,"00447920224","COMUNE DI BRESIMO",34455]
[37429,"00522920834","Comune di Limina",37429]
[35793,"00500460829","GIBILROSSA ACQUE",35793]
[36247,"01239360801","Comune di Sant'Eufemia d'Aspromonte",36247]
[36302,"92014990888","Consorzio di Bonifica n. 8 Ragusa mandatario senza rappresentanza del Consorzio di Bonifica della Sicilia Orientale",36302]
[38233,"01231630839","COMUNE DI LENI",38233]
[34490,"00233900646","COMUNE DI PIETRASTORNINA",34490]
[29541,"01827510643","Comune di San Sossio Baronia",29541]
[29282,"01571330644","comune di Andretta",29282]
[29643,"01748220611","Comune di Roccaromana",29643]
[29591,"01649030796","COMUNE DI SAVELLI",29591]
[30065,"01207810795","COMUNE DI DECOLLATURA",30065]
[28897,"01026790616","COMUNE DI BAIA E LATINA",28897]
[34190,"00594290751","COMUNE DI CASARANO",34190]
[30169,"00203920640","comune di lioni",30169]
[28743,"00390470615","COMUNE DI GALLO MATESE",28743]
[28658,"01630950788","comune di Altomonte",28658]
[29353,"00559980123","COMUNE DI GRANTOLA",29353]
[30176,"00144310836","comune di alcara li fusi",30176]
[29533,"01771020615","COMUNE DI PONTELATONE",29533]
[29508,"00305160798","COMUNE DI MARCEDUSA",29508]
[28880,"00182160796","Comune di Squillace",28880]
[28756,"00276000809","COMUNE DI LAUREANA DI BORRELLO",28756]
[28622,"00285740809","COMUNE DI RIZZICONI",28622]
[29432,"00579050717","Comune di Alberona",29432]
[28912,"03468330836","Comune di San Fratello",28912]
[29292,"01565420781","COMUNE ROSETO CAPO SPULICO",29292]
[29605,"00840560627","COMUNE DI BUCCIANO",29605]
[28453,"02145901001","COMUNE DI CAMERATA NUOVA",28453]
[28557,"01515200788","COMUNE DI TARSIA",28557]
[29513,"00436200836","COMUNE DI ROCCAFIORITA",29513]
[28427,"00401530787","COMUNE DI SAN LUCIDO",28427]
[28809,"00296980790","COMUNE DI ISCA SULLO IONIO",28809]
[28787,"00390390789","COMUNE DI MARANO MARCHESATO",28787]
[28636,"00432590024","CUAPTI CONSORZIO UTENTI ACQUA POTATILE TAVIGLIANO INFERIORE",28636]
[29388,"03399400781","COMUNE DI PIETRAPAOLA",29388]
[29344,"01102630785","COMUNE DI CLETO",29344]
[28932,"01022270654","Comune di Serramezzana",28932]
[28505,"01334900774","Consorzio di Bonifica della Basilicata",28505]
[28839,"00297820797","COMUNE DI ARENA",28839]
[28742,"00344900782","COMUNE DI SANTA SOFIA D'EPIRO",28742]
[28737,"80002670810","Comune di Custonaci",28737]
[29582,"00286270640","comune di Marzano di Nola",29582]
[29627,"01067490613","comune di conca della campania",29627]
[29452,"00298160797","Comune di Mongiana",29452]
[29252,"00904540614","comune di galluccio",29252]
[28738,"00176920643","comune di montecalvo irpino",28738]
[29887,"01125531002","comune di colleferro",29887]
[29316,"00392350799","COMUNE FRANCAVILLA ANGITOLA",29316]
[28761,"00444090617","COMUNE DI GIOIA SANNITICA",28761]
[29398,"00811830801","COMUNE DI ROGHUDI",29398]
[28556,"01015640806","Comune di Samo",28556]
[30039,"00730360807","Comune di Staiti",30039]
[29285,"00346710791","COMUNE DI FILANDARI",29285]
[33662,"02570500229","Comune di Novella",{"$f":"+A1097","v":33662}]
[29570,"00297600793","COMUNE DI ANDALI",29570]
[29472,"00355620782","COMUNE DI SAN COSMO ALBANESE",29472]
[29736,"00452400229","Comune di Luserna",29736]
[28811,"00401030788","COMUNE DI APRIGLIANO",28811]
[29914,"00227100641","COMUNE DI TUFO",29914]
[29549,"00336400791","comune di cenadi",29549]
[29517,"01034110617","COMUNE DI CIORLANO",29517]
[29127,"01270860610","Comune di Roccamonfina",29127]
[28558,"00395370786","COMUNE DI SAN VINCENZO LA COSTA",28558]
[29401,"00087790945","comune di roccamandolfi",29401]
[29350,"00665280137","COMUNE DI CUSINO",29350]
[28793,"00661380360","Comune di Riolunato",28793]
[31409,"02430960753","Comune di Melpignano",31409]
[28345,"01332520848","Comune di Alessandria della Rocca",28345]
[31499,"01155460254","COMUNE DI LONGARONE",31499]
[29440,"00341680098","COMUNE DI OSIGLIA",29440]
[28777,"00330820838","comune di nizza di sicilia",28777]
[28342,"00405200783","COMUNE DI GRIMALDI",28342]
[29583,"00269590618","Comune di Ailano",29583]
[29301,"00303060792","Comune di Dinami",29301]
[32054,"00352950794","COMUNE DI SAN GREGORIO D'IPPONA",32054]
[28716,"00297110645","Comune di Bisaccia",28716]
[28549,"00082410812","comune di castellammare del golfo",28549]
[29304,"00396610784","COMUNE DI LAINO BORGO",29304]
[28229,"01165330786","COMUNE DI TORANO CASTELLO",28229]
[28074,"00296580798","Comune di San Pietro Apostolo",28074]
[28073,"00355760786","COMUNE DI ROGGIANO GRAVINA",28073]
[27941,"00671800878","COMUNE DI PIEDIMONTE ETNEO",27941]
[24211,"00281270801","Comune di Melito di Porto Salvo",24211]
[26652,"02401910225","COMUNE DI CONTA'",26652]
[24596,"00363920794","COMUNE DI MONTEROSSO CALABRO",24596]
[28349,"00392700787","COMUNE DI SPEZZANO DELLA SILA",28349]
[28135,"01192340683","COMUNE DI CORVARA",28135]
[27797,"00324460799","COMUNE DI VALLELONGA",27797]
[28230,"00695450130","COMUNE DI ARGEGNO",28230]
[28181,"00394310833","COMUNE DI ALI' TERME",28181]
[25978,"02401950221","COMUNE DI CEMBRA LISIGNAGO",25978]
[28212,"00336100094","Comune di Giustenice",28212]
[28179,"00297210791","COMUNE DI CRUCOLI",28179]
[24912,"00068380955","COMUNE DI SAN VERO MILIS",24912]
[28327,"00510570658","COMUNE DI ALTAVILLA SILENTINA",28327]
[27814,"00353710833","COMUNE DI PETTINEO",27814]
[28307,"00035480946","COMUNE DI CASTEL SAN VINCENZO",28307]
[27957,"00349860619","Comune di Gricignano di Aversa",27957]
[28319,"00287070643","COMUNE DI MORRA DE SANCTIS",28319]
[28059,"00348990789","COMUNE DI MONTALTO UFFUGO",28059]
[24800,"02403880822","Comune di Misilmeri",24800]
[24552,"01532380795","COMUNE DI MAIERATO",24552]
[28013,"01399270022","CONSORZIO ACQUA POTABILE CAUSSO",28013]
[28012,"00232920801","COMUNE DI POLISTENA",28012]
[28215,"00326580099","COMUNE DI ONZO",28215]
[28134,"00337920615","COMUNE DI PARETE",28134]
[28095,"00584590814","COMUNE DI PETROSINO",28095]
[28089,"01094200787","COMUNE DI PIETRAFITTA",28089]
[28016,"00217530807","COMUNE DI MELICUCCO",28016]
[24582,"00323900795","COMUNE DI SAN NICOLA DA CRISSA",24582]
[24218,"00094410560","COMUNE DI BAGNOREGIO",24218]
[25974,"00266100817","Comune di Calatafimi Segesta",25974]
[24669,"00251130621","CONSORZIO ACQUEDOTTO TRA I COMUNI DI FRAGNETO MONFORTE E FRAGNETO L'ABATE",24669]
[28004,"00277760807","Comune di Bova Marina",28004]
[27801,"00361970833","Comune di Furci Siculo",27801]
[27824,"00311550800","COMUNE DI CIMINA'",27824]
[25862,"00187650569","COMUNE DI SUTRI",25862]
[25884,"00216010561","COMUNE DI LUBRIANO",{"$f":"+A1161","v":25884}]
[28044,"00238090641","Comune di Monteforte Irpino",28044]
[28042,"00239730815","COMUNE DI SALEMI",28042]
[28001,"00707110805","COMUNE DI CARAFFA DEL BIANCO",28001]
[25822,"00524500030","COMUNE DI ANTRONA SCHIERANCO",25822]
[27975,"00337000020","CONSORZIO ACQUA POTABILE DI SAGLIANO MICCA",27975]
[27956,"01879170734","COMUNE DI SAVA",27956]
[28063,"01607300785","comune di Santa Caterina Albanese",28063]
[27972,"02584501213","COMUNE DI CRISPANO",27972]
[25838,"01442480016","cooperativa acqua potabile bienca srl",25838]
[25821,"00654490168","COMUNE DI OLMO AL BREMBO",25821]
[25954,"01064711003","COMUNE DI CINETO ROMANO",25954]
[25761,"02362480226","COMUNE DI SAN LORENZO DORSINO",25761]
[25315,"00433700788","Comune di santa maria del cedro",25315]
[24603,"00278200795","Comune di Serra San Bruno",24603]
[26340,"00420090839","COMUNE DI FRAZZANO'",26340]
[26252,"01175300480","COMUNE DI MONTESPERTOLI",26252]
[23875,"00171370885","COMUNE DI GIARRATANA",23875]
[23808,"00141580621","COMUNE DI LIMATOLA",23808]
[23935,"01221980095","C.I.R.A.  S.R.L.",23935]
[23859,"00575440987","COMUNE DI BORNO",23859]
[23953,"00285120648","COMUNE DI CHIANCHE",23953]
[22999,"00194980892","COMUNE DI FLORIDIA",22999]
[23948,"01110350871","comune di mirabella imbaccari",23948]
[22168,"00196790794","COMUNE DI VALLEFIORITA",22168]
[20262,"00467860136","Comune di Grandola ed Uniti",20262]
[22021,"00087410940","COMUNE DI MACCHIAGODENA",22021]
[21513,"00776040651","COMUNE DI MONTEFORTE CILENTO",21513]
[21427,"00095990644","COMUNE DI ATRIPALDA",21427]
[21522,"00231130642","comune di SANT'ANGELO A SCALA",21522]
[21604,"01025240621","SOCIETA' IMPIANTI TECNOLOGICI S.R.L. \"S.I.T. S.R.L.\"",21604]
[22098,"00369990783","COMUNE DI LAPPANO",22098]
[21550,"00118430644","Comune di Serino",21550]
[22948,"02609200619","COMUNE DI CESA",22948]
[22940,"00411450711","COMUNE DI MOTTA MONTECORVINO",22940]
[22725,"02120471004","Comune di Anguillara Sabazia",22725]
[22714,"01104351000","Comune di Civitavecchia",22714]
[21473,"00207480641","COMUNE DI PRATA DI PRINCIPATO ULTRA",21473]
[22226,"00060620705","COMUNE DI MONACILIONI",22226]
[20952,"82001870870","COMUNE DI PALAGONIA",20952]
[22166,"01190030781","COMUNE DI CAMPANA",22166]
[21544,"00772840138","Comune di Grandate",21544]
[21742,"00540190659","Comune di Laviano",21742]
[22539,"00166140707","COMUNE DI MATRICE",22539]
[22158,"00062380944","COMUNE DI FILIGNANO",22158]
[22815,"00259680122","COMUNE DI INARZO",22815]
[22811,"00804320885","COMUNE DI VITTORIA",22811]
[22906,"01471740694","COMUNE DI ROIO DEL SANGRO",22906]
[22863,"00347620437","Comune di Bolognola",22863]
[22936,"00283850691","COMUNE DI MONTEFERRANTE",22936]
[22819,"00561750126","COMUNE DI FERRERA DI VARESE",22819]
[21442,"00289760647","COMUNE DI LUOGOSANO",21442]
[20072,"00309330124","Comune di Sumirago",20072]
[19795,"00601540628","COMUNE DI SAN LORENZELLO",19795]
[19797,"00230080640","Comune di Casalbore",19797]
[17399,"01179900210","COMUNE DI GAIS",17399]
[16858,"01547311215","Comune di Afragola",16858]
[19812,"00141040626","COMUNE DI MOIANO",19812]
[17396,"01297980219","Comune di Tesimo",17396]
[19746,"00550530984","COMUNE DI DARFO BOARIO TERME",19746]
[19749,"00300630605","Comune di Trevi nel Lazio",19749]
[17159,"00840510218","Comune di Gargazzone",17159]
[16950,"00270850225","COMUNE DI NOGAREDO",16950]
[19187,"00232110213","Comune di Laives",19187]
[17426,"00561000217","Comune di Cortina sulla strada del vino",{"$f":"+A1225","v":17426}]
[17500,"00824210223","comune di frassilongo",17500]
[17831,"00411710213","Comune di Selva di Val Gardena",17831]
[17117,"00630910214","Comune di Martello",17117]
[17414,"00296510225","COMUNE DI RONCEGNO TERME",17414]
[15899,"00556730216","Marktgemeinde Kaltern an der Weinstraße / Comune di Caldaro sulla strada del vino",15899]
[17449,"01226060224","COMUNE DI OSPEDALETTO",17449]
[18913,"00291400877","COMUNE DI BRONTE",18913]
[17372,"00232480210","Comune di Ortisei",17372]
[17184,"00423290220","COMUNE DI CASTELNUOVO",17184]
[17438,"00341240216","AMMINISTRAZIONE SEP. B.U.C. LUTAGO",17438]
[17374,"00562710210","Comune di Bronzolo",17374]
[13762,"00250430121","COMUNE DI BODIO LOMNAGO",13762]
[14532,"00453840225","COMUNE DI SARNONICO",14532]
[13763,"00535400642","COMUNE DI GROTTOLELLA",13763]
[14353,"03516070632","REGIONE CAMPANIA",14353]
[14425,"00369850060","Comune di Carrosio",14425]
[13941,"00100070614","I.T.L. Spa",13941]
[14045,"02234900187","PAVIA ACQUE S.C.A.R.L.",14045]
[13612,"00225520121","Comune di Mesenzana",13612]
[14226,"00288640899","Comune di Cassaro",14226]
[14157,"00136270618","Comune di Santa Maria Capua Vetere",14157]
[13841,"00040890071","COMUNE DI AOSTA",13841]
[12786,"00201720943","comune di monteroduni",12786]
[14430,"00343350229","COMUNE DI CAVARENO",14430]
[14530,"00270830227","COMUNE DI TRAMBILENO",14530]
[14199,"00266100221","Comune di Bocenago",14199]
[14190,"00203670567","COMUNE DI CAPRAROLA",14190]
[14265,"00278180641","COMUNE DI SAVIGNANO IRPINO",14265]
[14198,"00263320228","Comune di Strembo",14198]
[13871,"01318460688","A.C.A. S.P.A. IN HOUSE PROVIDING",13871]
[14163,"02033280872","acque matteo scuderi eredi del dr s. scuderi &  C.",14163]
[13659,"00723600987","Comune di Ceto",13659]
[13925,"00125720078","COMUNE DI ARNAD",13925]
[13654,"00099020059","Acquedotto della Piana S.p.A.",13654]
[12785,"00459960126","COMUNE DI BARASSO",12785]
[14298,"00248270126","COMUNE DI MORAZZONE",14298]
[9229,"02504010345","EMILIAMBIENTE",9229]
[7942,"00131630873","Acque di Casalotto S.p.A.",7942]
[5461,"00264460213","Comune di Appiano sulla Strada del Vino",5461]
[7373,"03798601211","ENERGIA VERDE ED IDRICA S.P.A.",7373]
[4080,"00232370213","Comune di Marlengo",4080]
[3913,"00169490257","CONSORZIO PER L'ACQUEDOTTO DI AZZON",3913]
[2958,"00432110211","Comune Città di Glorenza",2958]
[2572,"00409320215","comune di Rasun-Anterselva",2572]
[2325,"00409340213","COMUNE DI PERCA",2325]
[201,"00149110223","COMUNE DI BESENELLO",201]
[544,"00482100211","Comune di Corvara in Badia",544]
[1440,"01522960671","RUZZO RETI SPA",1440]
[1531,"00129330213","COMUNE DI CAMPO TURES",1531]
[780,"01531350229","ASM TIONE - AZIENDA SERVIZI MUNICIPALIZZATI",780]
[199,"00272300229","COMUNE DI PALU' DEL FERSINA",199]
[1392,"01210690432","A.S.S.M. S.P.A. - TOLENTINO",1392]
[2136,"00125770073","COMUNE DI CHAMPDEPRAZ",2136]
[1976,"00070680707","COMUNE DI SAN GIULIANO DI PUGLIA",1976]
[436,"02231010212","SEAB - SERVIZI ENERGIA AMBIENTE BOLZANO S.P.A. / SEAB - ENERGIE- UMWELTBETRIEBE BOZEN A.G.",436]
[424,"01812230223","AMAMBIENTE",424]
[7381,"01880180060","GESTIONE ACQUA SPA",7381]
[926,"00930530324","AcegasApsAmga S.p.A.",926]
[992,"01405600220","NOVARETI SPA",992]
[39924,"03035810351","ARCA srl",39924]
[37305,"03094540212","Funivia Plan de Corones",37305]
[40227,"00168380624","Comune di Pannarano",40227]
[44596,"03261040780","SAIC S.R.L.",44596]
[39290,"00247690647","Comune di Sperone",{"$f":"+A1289","v":39290}]
[44203,"02532230410","COMUNE DI VALLEFOGLIA",44203]
[38362,"01277260079","SERVICES DES EAUXS VALDÔTAINES S.R.L.",38362]
[37570,"02307930871","COMUNE DI MASCALUCIA",37570]
[37081,"03938880139","COMUNE CAMPIONE D'ITALIA",37081]
[34394,"00237550611","comune di Marcianise",34394]
[36252,"05800300872","ACQUE LO CASTRO SRL",36252]
[36235,"01031640616","COMUNE DI CASALUCE",36235]
[29387,"00347570798","COMUNE DI PIZZONI",29387]
[30027,"00297920795","COMUNE DI SAN FLORO",30027]
[28529,"00532510823","COMUNE DI ISNELLO",28529]
[29691,"00280370644","Comune di Lacedonia",29691]
[28488,"00260270830","COMUNE DI MONFORTE SAN GIORGIO",28488]
[30035,"00352800783","COMUNE DI CASTROLIBERO",30035]
[29495,"00722090800","Comune di Fiumara",29495]
[29417,"00261780795","Comune di Sorianello",29417]
[29279,"00787430651","COMUNE DI SANTOMENNA",29279]
[33176,"00149000028","SOCIETA' ACQUE POTABILI DI COSSILA - S.R.L.",33176]
[30195,"01657500649","Comune di Frigento",30195]
[30073,"00323880799","comune di joppolo",30073]
[29096,"00877870626","COMUNE DI CALVI",29096]
[28988,"00168290799","comune di stalettì",28988]
[29273,"00710280801","Comune di Feroleto della Chiesa",29273]
[28801,"00561870122","COMUNE DI LUVINATE",28801]
[29380,"00709900807","comune di san pietro di caridà",29380]
[28674,"00202480612","COMUNE DI SAN TAMMARO",28674]
[28593,"00430420786","COMUNE DI LUNGRO",28593]
[32885,"00686650060","COMUNE DI CARREGA LIGURE",32885]
[29377,"00627060361","COMUNE DI FIUMALBO",29377]
[28609,"01079800783","COMUNE DI CARIATI",28609]
[29306,"00356330795","Comune di Sant'Andrea Apostolo dello Ionio",29306]
[30174,"00297440646","comune di salza irpina",30174]
[28371,"00409460789","COMUNE DI LONGOBARDI",28371]
[30048,"00468100789","COMUNE DI PLATACI",30048]
[29228,"00298600792","COMUNE DI DRAPIA",29228]
[29557,"00556080802","comune di scido",29557]
[28360,"00305870099","COMUNE DI CISANO SUL NEVA",28360]
[28375,"00061480943","COMUNE DI PIETRABBONDANTE",28375]
[29539,"00432860831","COMUNE DI SAVOCA",29539]
[29474,"00428020614","Comune di Raviscanina",29474]
[29245,"01205380809","Comune di Sinopoli",29245]
[29340,"83000850830","COMUNE DI MAZZARRA' SANT'ANDREA",29340]
[28833,"00108980830","COMUNE DI SANT'ANGELO DI BROLO",28833]
[29519,"01582160832","COMUNE DI FLORESTA",29519]
[29470,"00463870832","COMUNE DI MONGIUFFI MELIA",29470]
[29384,"03188690832","COMUNE DI ROCCAVALDINA",29384]
[28546,"01108650787","COMUNE DI SAN GIORGIO ALBANESE",28546]
[29852,"00197500119","Comune di Levanto",29852]
[29719,"00722650645","Comune di San Nicola Baronia",29719]
[29339,"00637690918","COMUNE DI LOTZORAI",29339]
[28365,"00264540808","COMUNE DI VARAPODIO",28365]
[29346,"00031500945","Comune di Colli a Volturno",29346]
[28711,"00787310655","COMUNE DI BUCCINO",28711]
[28877,"00255490641","comune di montemiletto",28877]
[29364,"00404880783","COMUNE DI ORSOMARSO",29364]
[30052,"00423460617","Comune di Falciano del Massico",30052]
[29531,"00279810642","comune di Pago del Vallo di Lauro",29531]
[29326,"00298220799","COMUNE DI GAGLIATO",29326]
[28853,"00347890832","COMUNE DI SANT'ALESSIO SICULO",28853]
[28187,"01385940786","COMUNE DI LAGO",28187]
[28208,"00230740847","comune di sambuca di sicilia",28208]
[28160,"00124600834","Comune di Patti",28160]
[26530,"02401960220","COMUNE DI AMBLAR-DON",26530]
[24369,"00281900894","Comune di Buccheri",24369]
[28127,"00753770650","COMUNE DI CAPACCIO PAESTUM",{"$f":"+A1353","v":28127}]
[28141,"00363060781","COMUNE DI AMANTEA",28141]
[27082,"00532640133","COMUNE DI SALA COMACINA",27082]
[24605,"00327470795","COMUNE DI STEFANACONI",24605]
[24086,"00300810793","Comune di Sersale",24086]
[24316,"00213320112","COMUNE DI CARRODANO",24316]
[27644,"01444690026","COMUNE DI RASSA",27644]
[25814,"00212130561","Comune di Latera",25814]
[25232,"00212940217","TRINKWASSER-GENOSSENSCHAFT TERLAN",25232]
[27993,"00561960717","Comune di Celenza Valfortore",27993]
[26624,"00345230783","COMUNE DI SAN NICOLA ARCELLA",26624]
[24587,"00336870803","COMUNE DI BRUZZANO ZEFFIRIO",24587]
[24122,"00245050794","Comune di Santa Caterina dello Ionio",24122]
[25984,"02401750225","COMUNE DI MADRUZZO",25984]
[28283,"00297960791","COMUNE DI TIRIOLO",28283]
[25820,"00675260160","Comune di Piazzatorre",25820]
[24692,"00326560091","Comune di Vendone",24692]
[28273,"00297640799","COMUNE DI MARTIRANO LOMBARDO",28273]
[28128,"01044730651","COMUNE DI LAURINO",28128]
[28223,"00297850794","Comune di Gizzeria",28223]
[24599,"00322880790","Comune di Spilinga",24599]
[24533,"03475190272","PIAVE SERVIZI S.P.A.",24533]
[28115,"00444370837","COMUNE DI FALCONE",28115]
[28108,"00391910783","COMUNE DI MENDICINO",28108]
[28021,"00297990798","COMUNE DI CARAFFA DI CATANZARO",28021]
[27808,"00354630832","Comune di Mandanici",27808]
[25017,"00298150798","COMUNE DI FABRIZIA",25017]
[25944,"02145861007","COMUNE DI RIOFREDDO",25944]
[25830,"03038600825","COMUNE DI PETRALIA SOPRANA",25830]
[25805,"00583050984","COMUNE DI LOSINE",25805]
[28005,"00239820814","comune di partanna",28005]
[24611,"00300090800","COMUNE DI BRANCALEONE",24611]
[27885,"01547930642","COMUNE DI ZUNGOLI",27885]
[25970,"00308110790","COMUNE DI PETRONA'",25970]
[24561,"00523990836","COMUNE DI TUSA",24561]
[25053,"00540780822","COMUNE GERACI SICULO",25053]
[24590,"00745140830","COMUNE DI SAN PIER NICETO",24590]
[28024,"02035220819","Comune di Campobello di Mazara",28024]
[27989,"02790550640","COMUNE DI MONTORO",27989]
[27798,"00482300837","comune di Librizzi",27798]
[28105,"00467550786","COMUNE DI MALVITO",28105]
[28094,"00378820781","Comune di Trebisacce",28094]
[28091,"00271570780","COMUNE DI ZUMPANO",28091]
[28081,"00296840796","COMUNE DI PIANOPOLI",28081]
[28068,"00341340099","COMUNE DI ROCCAVIGNALE",28068]
[27748,"00609230826","Comune di Altofonte",27748]
[27116,"13883061007","NOVITO ACQUE SRL",27116]
[29955,"02938180839","Azienda Consortile Acquedotto Vena e Niceto",29955]
[27920,"00323390799","Comune di Settingiano",27920]
[25343,"00396110835","COMUNE DI SPADAFORA",25343]
[24675,"00421660036","COMUNE DI ANZOLA D'OSSOLA",24675]
[26209,"00363790478","COMUNE DI MONSUMMANO TERME",26209]
[26025,"00568900120","CONSORZIO ACQUEDOTTO BARDELLO, BIANDRONNO, BREGANO E MALGESSO",26025]
[26576,"03484480797","Consorzio tra Comuni per la Gestione del Servizio Idrico Integrato nel Crotonese",26576]
[24608,"00731330809","COMUNE DI BENESTARE",24608]
[24170,"00084640838","Comune di Barcellona Pozzo di Gotto",24170]
[25959,"00224100602","COMUNE DI SAN BIAGIO SARACINISCO",25959]
[25898,"00214690562","COMUNE DI VALENTANO",25898]
[26117,"01659360612","Comune di Vitulazio",26117]
[24579,"00080280886","COMUNE DI ACATE",24579]
[23940,"00423040831","Comune di Gualtieri Sicaminò",23940]
[23965,"00288630890","Comune di Ferla",23965]
[23814,"00201210663","COMUNE DI ALFEDENA",23814]
[23943,"00297790644","Comune di Parolise",23943]
[24062,"00352170831","COMUNE DI FIUMEDINISI",{"$f":"+A1417","v":24062}]
[23042,"00548810639","Comune di Monte di Procida",23042]
[23032,"00723610986","COMUNE DI CIMBERGO",23032]
[23894,"00297790792","Comune di Filadelfia",23894]
[23007,"04268260272","Livenza Tagliamento Acque S.p.A.",23007]
[23818,"93238890722","CONSORZIO DI BONIFICA TERRE D'APULIA",23818]
[23911,"02146780842","Comune di Lampedusa e Linosa",23911]
[23835,"00250760808","COMUNE DI CAMPO CALABRO",23835]
[23354,"00068900950","COMUNE DI SANTU LUSSURGIU",23354]
[23849,"00723520987","COMUNE DI CAPO DI PONTE",23849]
[23082,"00186930921","COMUNE DI TEULADA",23082]
[23868,"00454800616","Comune di Curti",23868]
[23991,"02334630619","COMUNE DI LIBERI",23991]
[23800,"00129240917","COMUNE DI ARZANA",23800]
[23918,"00076020627","COMUNE DI GUARDIA SANFRAMONDI",23918]
[21108,"00550290878","COMUNE DI RANDAZZO",21108]
[20736,"01504060649","COMUNE DI SANT'ANGELO ALL'ESCA",20736]
[20605,"00250550084","COMUNE DI POMPEIANA",20605]
[22957,"00161500913","COMUNE DI MODOLO",22957]
[21682,"02423810205","COMUNE DI BORGO VIRGILIO",21682]
[21485,"03091710651","comune di san pietro al tanagro",21485]
[21373,"82002010658","COMUNE DI ROMAGNANO AL MONTE",21373]
[20702,"02131560613","COMUNE DI CASTELLO DEL MATESE",20702]
[20231,"01826320879","COMUNE DI BIANCAVILLA",20231]
[22822,"00249580127","COMUNE DI MORNAGO",22822]
[21598,"00354000135","COMUNE DI SAN FERMO DELLA BATTAGLIA",21598]
[22722,"00537650640","COMUNE DI SANT'ANDREA DI CONZA",22722]
[22698,"00313710790","COMUNE DI TROPEA",22698]
[21576,"00254630080","COMUNE DI BORGOMARO",21576]
[22093,"00200980704","COMUNE DI GILDONE",22093]
[21481,"00271270126","COMUNE DI INDUNO OLONA",21481]
[22214,"00059460949","COMUNE DI MIRANDA",22214]
[21648,"05167541217","Società Acqua Procida S.A.P. S.r.l.",21648]
[22157,"00326880796","Comune di Davoli",22157]
[22004,"00225500123","Comune di Montegrino Valtravaglia",22004]
[21476,"00331480095","Comune di Zuccarello",21476]
[21661,"00173470071","Comune di Oyace",21661]
[21563,"01567890080","RIVIERACQUA S.P.A",21563]
[22743,"00338310121","COMUNE DI ANGERA",22743]
[22682,"00226700128","Comune di Comerio",22682]
[22877,"00940160617","Comune di Teano",22877]
[22869,"00109530576","COMUNE DI ORVINIO",22869]
[22843,"00251050696","COMUNE DI COLLEDIMEZZO",22843]
[22789,"00238010128","comune di Luino",22789]
[21666,"00173460072","COMUNE DI BIONAZ",21666]
[21413,"00158780627","COMUNE DI PIETRAROJA",21413]
[22485,"00338310097","COMUNE DI MURIALDO",22485]
[19742,"00586120982","COMUNE DI CIVIDATE CAMUNO",19742]
[17545,"00775890650","COMUNE DI ALBANELLA",17545]
[17454,"01349430213","ASBUC SPINGA",17454]
[17484,"81030450217","Trink- und Löschwasserinteressentschaft Karnol",17484]
[17287,"00106960073","COMUNE DI AYAS",17287]
[19828,"00657120135","COMUNE DI DONGO",19828]
[19849,"00723570982","COMUNE DI MALEGNO",19849]
[16962,"01522200763","acquedotto lucano s.p.a.",16962]
[17138,"00198100216","COMUNE DI ALDINO",17138]
[17146,"00445330210","COMUNE DI TIROLO",17146]
[17083,"00323920223","COMUNE DI FOLGARIA",17083]
[17312,"00473460228","COMUNE DI BEDOLLO",17312]
[17199,"02524850217","ARA PUSTERIA SPA",17199]
[17232,"01210550834","COMUNE DI CASTEL DI LUCIO",17232]
[17363,"00843840216","Comune di Fié allo Sciliar",17363]
[17362,"00449290212","COMUNE DI NATURNO",17362]
[17350,"00109710079","COMUNE DI GRESSONEY-LA-TRINITE'",17350]
[17523,"00666400213","Società cooperativa acquedotto Laion/Villa",{"$f":"+A1481","v":17523}]
[17069,"00133870642","COMUNE DI BAGNOLI IRPINO",17069]
[17344,"00308580216","Acquedotto Soc.coop. Neptunia Siusi",17344]
[17229,"00342270212","Comune di Valle Aurina",17229]
[17531,"00685230211","Trinkwasserinteressentschaft Großberg-Meransen",17531]
[17513,"00401880216","Trinkwassergenossenschaft von Aufhofen",17513]
[16987,"00079880811","COMUNE DI TRAPANI",16987]
[17459,"00991250218","Comune di Val di Vizze",17459]
[17340,"01985420023","S.I.I. S.P.A.SERVIZIO IDRICO INTEGRATO DEL BIELLESE E VERCELLESE",17340]
[17217,"00440240216","Comune di Rifiano",17217]
[17429,"00136660214","COMUNE DI TRODENA NEL PARCO NATURALE",17429]
[18149,"00405990219","COMUNE DI NOVA PONENTE",18149]
[17160,"01279760217","COMUNE DI POSTAL",17160]
[17183,"00820670214","Comune di Ora",17183]
[17198,"00113100572","COMUNE DI POZZAGLIA SABINA",17198]
[16779,"05486580961","SOCIETA' ACQUA LODIGIANA SRL",16779]
[13767,"00309390128","COMUNE DI OGGIONA CON SANTO STEFANO",13767]
[14306,"00342900222","COMUNE DI RONZO-CHIENIS",14306]
[14398,"00532810652","Comune di Monte San Giacomo",14398]
[15243,"00341710127","COMUNE DI CASORATE SEMPIONE",15243]
[14644,"01095160212","Comune di Silandro",14644]
[13680,"00688320134","COMUNE DI ALBAVILLA",13680]
[14167,"04844450827","CIRONE DOMENICO & C. SAS",14167]
[14105,"02641830829","Acquedotto Consortile Biviere",14105]
[13898,"00140370073","UNITÉ DES COMMUNES VALDÔTAINES GRAND-COMBIN",13898]
[13565,"00605220128","COMUNE DI AZZIO",13565]
[14304,"00519350128","COMUNE DI GORNATE OLONA",14304]
[14237,"00120880877","GARAFFO  & SCILIO S.P.A.",14237]
[13645,"01977850138","LARIANA DEPUR",13645]
[13627,"02921240871","SOGEA Srl",13627]
[15005,"00671330876","ACQUE MADONNA DEL CARMINE",15005]
[14566,"00308120120","Comune di Buguggiate",14566]
[14309,"00501900229","COMUNE DI LIVO",14309]
[14125,"04704430828","SOCIETA' GESTIONE ACQUEDOTTI - MONITORAGGI - IMPIANTI DEPURAZIONE  SGAMID  S.R.L.",14125]
[14482,"00717150833","COMUNE DI LIPARI",14482]
[14409,"00775910656","comune di campagna",14409]
[14388,"00309210128","COMUNE DI COCQUIO-TREVISAGO",14388]
[14378,"00205850225","COMUNE DI PANCHIA'",14378]
[14376,"00263100125","COMUNE DI VARANO BORGHI",14376]
[13704,"00169140704","Comune di San Felice del Molise",13704]
[13524,"01184670873","società acque dell'etna e di s.giacomo",13524]
[13892,"00202700704","COMUNE DI CAMPODIPIETRA",13892]
[13641,"00225150705","COMUNE DI CAMPOMARINO",13641]
[13189,"01202730055","CONSORZIO DEI COMUNI PER L'ACQUEDOTTO DEL MONFERRATO",13189]
[13149,"00564180123","COMUNE DI CASCIAGO",13149]
[12856,"00055460943","COMUNE DI PESCHE",12856]
[7379,"00162000871","COMUNE DI ACI CASTELLO",7379]
[9253,"01866890021","CORDAR SPA BIELLA SERVIZI",9253]
[5462,"00668860216","Comune di Terento",5462]
[5720,"02093350516","ENTE ACQUE UMBRE-TOSCANE",5720]
[8051,"01270510660","CONSORZIO ACQUEDOTTISTICO MARSICANO SPA",8051]
[9281,"02180710879","ACQUE SUD S.R.L.",9281]
[5098,"00194370219","Comune di Lana",5098]
[4717,"00665580213","Comune di Naz-Sciaves",4717]
[3548,"01066120211","Gemeinde Terlan / Comune di Terlano",3548]
[2886,"00288090228","COMUNE DI CARISOLO",2886]
[314,"00159650837","COMUNE DI FRANCAVILLA DI SICILIA",314]
[230,"01210650436","A.S.SE.M. SPA",230]
[206,"00431040229","COMUNE DI FAI DELLA PAGANELLA",206]
[55,"00343510228","COMUNE DI VERMIGLIO",55]
[78,"00128850229","Comune di Castello - Molina di Fiemme",78]
[1643,"01531480216","ECO CENTER SPA",1643]
[1330,"01106460213","COMUNE DI VANDOIES",1330]
[1234,"00203870225","COMUNE DI ISERA",1234]
[5,"00734480213","AZIENDA PUBBLISERVIZI BRUNICO",{"$f":"+A1545","v":5}]
[1226,"00148590227","Comune di Predazzo",1226]
[1300,"02119730428","ACQUAMBIENTE MARCHE SRL",1300]
[1391,"00196170666","COMUNE DI PACENTRO",1391]
[1362,"00437620222","COMUNE DI CALDES",1362]
[1791,"01133700219","Comune di Rio di Pusteria",1791]
[1704,"02177670649","SOLOFRA SERVIZI SpA",1704]
[1961,"00337870406","Romagna Acque Società delle Fonti S.p.A.",1961]
[815,"00172780702","COMUNE DI JELSI",815]
[13809,"01087110860","ACQUAENNA S.C.P.A.",13809]
[13989,"05848061007","ACEA ATO2 S.P.A.",13989]
[13805,"02267050603","ACEA ATO 5 SPA",13805]
[9909,"05175700482","Acque S.p.A.",9909]
[10042,"01494020462","G.E.A.L. S.P.A. Gestione esercizio acquedotti Lucchesi",10042]
[1090,"00664670361","AIMAG S.P.A.",1090]
[927,"01581060223","ALTO GARDA SERVIZI SPA",927]
[26656,"03832490985","Acque Bresciane Srl",26656]
[24060,"02903940985","GANDOVERE DEPURAZIONE SRL",24060]
[25907,"03578271201","HERATECH S.R.L.",25907]
[10626,"02645680162","ABM NEXT SRL",10626]
[3125,"00347000721","ACQUEDOTTO PUGLIESE SPA",3125]
[44961,"08882040721","Acque del Sud s.p.a.",44961]
[44211,"00688690627","COMUNE DI GINESTRA DEGLI SCHIAVONI",44211]
[41198,"NESSUNAAA","Bara kane",41198]
[39422,"00113230627","COMUNE DI SAN GIORGIO LA MOLARA",39422]
[39515,"00341620508","Comune di Pisa",39515]
[34819,"00256240649","COMUNE DI SIRIGNANO",34819]
[36671,"05540510871","Associazione Temporanea di Scopo \"Maguli\"",36671]
[35474,"00205660673","COMUNE DI FANO ADRIANO",35474]
[36974,"01581830567","RAM S.R.L.",36974]
[38646,"03929670127","COMUNE DI BARDELLO CON MALGESSO E BREGANO",38646]
[29589,"00284260643","COMUNE DI SCAMPITELLA",29589]
[28646,"01103740781","COMUNE DI SAN DEMETRIO CORONE",28646]
[28666,"00746140805","COMUNE DI SAN FERDINANDO",28666]
[30056,"00282020791","COMUNE DI ZAGARISE",30056]
[29270,"00339420796","comune di simbario",29270]
[28827,"01602920645","COMUNE DI FLUMERI",28827]
[28776,"01498550787","COMUNE DI ROCCA IMPERIALE",28776]
[28623,"00158240838","COMUNE DI TERME VIGLIATORE",28623]
[29768,"00281080648","Comune di Bonito",29768]
[29649,"00677690802","comune di stignano",29649]
[29505,"00710510801","COMUNE DI LAGANADI",29505]
[28358,"00430880781","COMUNE DI SCALA COELI",28358]
[28840,"00280880642","COMUNE DI CONTRADA",28840]
[28669,"00304310790","COMUNE DI CROPANI",28669]
[28869,"01776600841","COMUNE DI BIVONA",28869]
[29390,"00347860793","Comune di Sorbo San Basile",29390]
[29403,"01291600615","COMUNE DI DRAGONI",29403]
[28383,"00399640838","COMUNE DI ALI'",28383]
[29509,"02317620652","COMUNE DI SANTA MARINA",29509]
[29567,"00946800786","COMUNE DI ROGLIANO",29567]
[29391,"00342150794","Comune di San Sostene",29391]
[29501,"02507750806","COMUNE DI BOVA",29501]
[28936,"00390090785","COMUNE DI BONIFATI",28936]
[28739,"80002000810","comune di san vito lo capo",28739]
[29264,"00180620833","COMUNE DI RODI' MILICI",29264]
[30010,"00883970626","COMUNE DI SAN LORENZO MAGGIORE",30010]
[28775,"00323370791","Comune di Limbadi",28775]
[34108,"00816130819","COMUNE DI SALAPARUTA",34108]
[29019,"00269900627","COMUNE DI CASTELVENERE",29019]
[28520,"00341640787","COMUNE DI FUSCALDO",28520]
[28351,"00284250800","COMUNE DI SERRATA",28351]
[28393,"00082370941","Comune di Sesto Campano",28393]
[29408,"00196700702","comune di lupara",29408]
[29447,"00547700658","comune di ottati",{"$f":"+A1609","v":29447}]
[28780,"00414810838","COMUNE DI PAGLIARA",28780]
[29724,"00513860767","COMUNE DI TERRANOVA DI POLLINO",29724]
[28718,"00298230798","comune di botricello",28718]
[28584,"00366940799","Comune di Martirano",28584]
[28992,"00323430793","comune di san costantino calabro",28992]
[29515,"00162590806","COMUNE DI PLACANICA",29515]
[29415,"00404280786","Comune di San Martino di Finita",29415]
[30041,"00217520808","COMUNE DI MARTONE",30041]
[29493,"02810650834","COMUNE DI LONGI",29493]
[29480,"00205770944","COMUNE DI FORLI' DEL SANNIO",29480]
[29407,"03328780832","comune di fondachelli fantina",29407]
[28610,"02820290829","COMUNE DI CONTESSA ENTELLINA",28610]
[29585,"00401300710","comune di carlantino",29585]
[29483,"00435020839","COMUNE DI CASTELMOLA",29483]
[29125,"00353840796","COMUNE DI SORIANO CALABRO",29125]
[24612,"00710370800","COMUNE DI AGNANA CALABRA",24612]
[28184,"00297970790","comune di Platania",28184]
[28272,"00298110792","COMUNE DI FEROLETO ANTICO",28272]
[27984,"00396700718","Comune di Panni",27984]
[27008,"00362030132","CAISCAP",27008]
[29843,"01000330629","Comune di Durazzano",29843]
[28151,"00283390805","COMUNE DI BAGALADI",28151]
[27949,"01244961213","comune di casavatore",27949]
[26705,"00210940433","Comune di Sefro",26705]
[25839,"00321890162","COMUNE DI SUISIO",25839]
[24609,"01240060804","COMUNE DI PLATI'",24609]
[24591,"00300480803","COMUNE DI BIANCO",24591]
[27901,"00378410831","COMUNE DI CASALVECCHIO SICULO",27901]
[27777,"87000530821","COMUNE DI TRABIA",27777]
[28318,"00322590795","comune di rombiolo",28318]
[27960,"03509990788","Comune di Casali del Manco",27960]
[27841,"00277970836","COMUNE DI CARONIA",27841]
[25967,"02146111006","Comune di Licenza",25967]
[25993,"00736930843","comune di palma di montechiaro",25993]
[28326,"00380690834","Comune di Basicò",28326]
[28053,"03529220828","COMUNE DI CASTELLANA SICULA",28053]
[27835,"01210220834","COMUNE DI MISTRETTA",27835]
[27816,"00139550818","COMUNE DI MARSALA",27816]
[28335,"01725440844","COMUNE DI CAMMARATA",28335]
[27873,"00391420783","COMUNE DI CASTIGLIONE COSENTINO",27873]
[28143,"00403120785","COMUNE DI LATTARICO",28143]
[28093,"00090570896","Comune di Avola",28093]
[25991,"00437320831","Comune di Condrò",25991]
[24894,"00475000824","Comune di Castronovo di Sicilia",24894]
[28006,"00162960629","Comune di Pago Veiano",28006]
[27986,"00432380020","COMUNE DI CAMPERTOGNO",27986]
[27968,"01061000616","COMUNE DI TRENTOLA DUCENTA",27968]
[28209,"01240160802","COMUNE DI GERACE",28209]
[28079,"00356630780","Comune di Frascineto",28079]
[25933,"02362470227","COMUNE DI VALDAONE",25933]
[26785,"00343940839","COMUNE DI GIARDINI NAXOS",26785]
[24589,"00313730798","COMUNE DI ZAMBRONE",24589]
[25950,"01139071003","COMUNE DI VALLEPIETRA",25950]
[25881,"05404220872","Acque  Ventrilla  di  Ventrilla  Tania",25881]
[25633,"00254640121","COMUNE DI CITTIGLIO",25633]
[27889,"00460150832","COMUNE DI MERI'",27889]
[27831,"00348230780","COMUNE DI ROVITO",27831]
[27856,"01086380787","Comune di Scigliano",27856]
[25953,"02146061003","Comune di Cerreto Laziale",25953]
[25875,"00426070033","COMUNE DI VANZONE CON SAN CARLO",25875]
[27926,"92001220877","Consorzio per la Depurazione dei Liquami Tra i Comuni di Giarre Riposto Mascali Fiumefreddo di Sicilia Sant'Alfio",27926]
[25271,"00296800253","Cooperativa gestione acquedotto vicinia Zuel di Sopra",25271]
[28026,"00443750229","COMUNE DI SPORMINORE",28026]
[24960,"00322890799","Comune di Ricadi",{"$f":"+A1673","v":24960}]
[25626,"02583080821","Comune di Sclafani Bagni",25626]
[27450,"00059300707","Comune di Campolieto",27450]
[25928,"02146001009","comune di roccagiovine",25928]
[30013,"00296880792","COMUNE DI BRIATICO",30013]
[28067,"00427870787","COMUNE DI ROSE",28067]
[28066,"00474710837","Comune di Sant'Agata Di Militello",28066]
[28065,"01072160656","COMUNE DI PALOMONTE",28065]
[24658,"02401970229","COMUNE DI DIMARO FOLGARIDA",24658]
[25936,"02134821004","Comune di Canale Monterano",25936]
[25910,"00460700040","Comune di Monasterolo Casotto",25910]
[24566,"00106030836","COMUNE DI PACE DEL MELA",24566]
[25323,"00532860830","COMUNE DI SANTO STEFANO DI CAMASTRA",25323]
[25996,"02145941007","COMUNE DI ARSOLI",25996]
[25964,"00220670566","COMUNE DI VITORCHIANO",25964]
[23833,"01418900161","COMUNE DI BONATE SOTTO",23833]
[23914,"01251551212","COMUNE DI FRATTAMINORE",23914]
[23861,"00288910896","COMUNE DI AUGUSTA",23861]
[23098,"00723620985","COMUNE DI PASPARDO",23098]
[24046,"00981210628","COMUNE DI DUGENTA",24046]
[24027,"00249230707","Azienda Speciale Regionale Molise Acque",24027]
[23804,"00586900987","COMUNE DI BERZO INFERIORE",23804]
[23891,"00143430700","COMUNE DI ROTELLO",23891]
[23862,"00393920830","COMUNE DI SCALETTA ZANCLEA",23862]
[23850,"00148160831","COMUNE DI SAN FILIPPO DEL MELA",23850]
[23968,"00183590629","COMUNE DI PAOLISI",23968]
[23917,"00601910649","COMUNE DI  MOSCHIANO",23917]
[23845,"00342680097","COMUNE DI MILLESIMO",23845]
[23097,"00072980956","COMUNE DI PAULILATINO",23097]
[20941,"00290400126","COMUNE DI BRUNELLO",20941]
[21575,"00244940086","Comune di Cesio",21575]
[21572,"00276040086","COMUNE DI ARMO",21572]
[20380,"00549420131","COMUNE DI MERONE",20380]
[21497,"00256450644","Comune di Mugnano del Cardinale",21497]
[22198,"00297870792","Comune di San Vito sullo Ionio",22198]
[21587,"00246270086","COMUNE DI PIETRABRUNA",21587]
[22684,"00188100796","Comune di Cerva",22684]
[22044,"00225250703","COMUNE DI MOLISE",22044]
[22820,"00561740127","COMUNE DI RANCIO VALCUVIA",22820]
[21652,"00469730048","COMUNE DI CASTELNUOVO DI CEVA",21652]
[21472,"00280990649","COMUNE DI CARIFE",21472]
[22649,"00296790793","Comune di Simeri Crichi",22649]
[21628,"00225320704","COMUNE DI TORO",21628]
[21478,"00776020653","COMUNE DI MAGLIANO VETERE",21478]
[21629,"00512950049","COMUNE DI LEQUIO BERRIA",21629]
[21624,"00160250619","Comune di Sessa Aurunca",21624]
[21539,"00665240131","COMUNE DI CORRIDO",21539]
[22142,"00065400707","COMUNE DI PIETRACUPA",22142]
[21600,"00238720080","COMUNE DI OLIVETTA SAN MICHELE",21600]
[21541,"00424960136","COMUNE DI INVERIGO",21541]
[22068,"00069680940","COMUNE DI BAGNOLI DEL TRIGNO",22068]
[22686,"00289020125","COMUNE DI CASTELVECCANA",22686]
[21433,"00225670645","COMUNE DI AIELLO DEL SABATO",21433]
[22952,"01571630647","Comune di Aquilonia",22952]
[22016,"00069890945","COMUNE DI LONGANO",22016]
[22746,"01547361210","COMUNE DI GIUGLIANO IN CAMPANIA",22746]
[22362,"00120060702","COMUNE DI MONTAGANO",22362]
[22928,"02836490926","DOMUS ACQUA SRL",22928]
[22719,"00392890125","COMUNE DI LONATE POZZOLO",22719]
[22701,"01383640131","comune di cerano d'intelvi",22701]
[22696,"00560020125","COMUNE DI ORINO",22696]
[17190,"00440830214","Comune di Caines",17190]
[17437,"00371870221","COMUNE DI SOVER",17437]
[16973,"00159270222","COMUNE DI ZIANO DI FIEMME",16973]
[19851,"00213100704","COMUNE DI MONTENERO DI BISACCIA",{"$f":"+A1737","v":19851}]
[17424,"00566730214","COMUNE DI VADENA",17424]
[17412,"00346660210","Consorzio per acqua potabile",17412]
[17078,"00678420134","COMUNE DI POGNANA LARIO",17078]
[17394,"00564860211","Comune di Proves",17394]
[19743,"05460810632","COMUNE DI BACOLI",19743]
[17498,"00173110701","COMUNE DI SANT'ANGELO LIMOSANO",17498]
[17370,"00092580075","COMUNE DI EMARESE",17370]
[19844,"00660580135","COMUNE DI CARLAZZO",19844]
[17134,"01181950211","Comunità Comprensoriale Valle Isarco",17134]
[18663,"00580940989","COMUNE DI VIONE",18663]
[16975,"00146380878","COMUNE DI ACI CATENA",16975]
[17595,"01219050216","TRINKWASSERINTERESSENTSCHAFT PERDONIG/GAID",17595]
[17400,"00415160076","COMUNE DI VALTOURNENCHE",17400]
[17490,"00571270214","COMUNE DI SALORNO SULLA STRADA DEL VINO",17490]
[17428,"00684020217","Comune di Varna",17428]
[17373,"00419860218","COMUNE DI VELTURNO",17373]
[17328,"01330200211","Comune di San Pancrazio",17328]
[17321,"00246310213","Comune di Fortezza",17321]
[17110,"00292600228","Comune di Ton",17110]
[17366,"00466190212","COMUNE DI CORTACCIA SULLA STRADA DEL VINO",17366]
[17612,"00113470579","COMUNE DI PAGANICO SABINO",17612]
[18410,"00291620227","COMUNE DI CAVIZZANA",18410]
[16890,"00278910229","COMUNE DI MEZZANO",16890]
[17152,"01606810214","Comune di Ponte Gardena",17152]
[16964,"00270840226","COMUNE DI VALLARSA",16964]
[17185,"01200660098","SERVIZI COMUNALI ASSOCIATI SRL",17185]
[13511,"02135000350","AZIENDA SPECIALE TOANO",13511]
[13649,"04797200823","AMAP Spa",13649]
[14278,"00127770824","SO.GE.A. S.R.L. SOCIETA' GESTIONE ACQUEDOTTI",14278]
[15117,"00279660229","COMUNE DI RABBI",15117]
[14411,"00145790226","COMUNE DI CALDONAZZO",14411]
[14517,"00291040228","COMUNE DI CARZANO",14517]
[14257,"00417480134","COMUNE DI COMO",14257]
[14391,"00575990981","COMUNE DI MONNO",14391]
[13224,"00251170940","COMUNE DI VASTOGIRARDI",13224]
[13731,"01142090875","IDROAGRICOLA S.R.L",13731]
[14148,"00837210822","BUCARO GIUSEPPE E C. S.R.L.",14148]
[14001,"02670280821","COMUNE DI VALLEDOLMO",14001]
[13761,"02111020596","ACQUALATINA SPA",13761]
[14856,"00249830225","Comune di Arco",14856]
[14534,"00340240225","COMUNE DI RUFFRE' MENDOLA",14534]
[14446,"00813410222","COMUNE DI SFRUZ",14446]
[13818,"00282190644","Comune di ROTONDI",13818]
[14209,"02559020793","Sorical",14209]
[14027,"00580370989","COMUNE DI TEMU'",14027]
[12732,"03567090232","Acque Veronesi s.c. a r.l.",12732]
[15035,"01767320565","TALETE S.P.A.",15035]
[15233,"00199400649","Comune di Mercogliano",15233]
[14814,"00069850949","Comune di Macchia d'Isernia",14814]
[14894,"02147150227","COMUNE DI LEDRO",14894]
[14406,"00698230133","COMUNE DI CARUGO",14406]
[14345,"00088660949","COMUNE DI MONTENERO VAL COCCHIARA",14345]
[14412,"00060670700","COMUNE DI BONEFRO",14412]
[13749,"00599700648","COMUNE DI CAPRIGLIA IRPINA",13749]
[13725,"01199390095","CONSORZIO PER LA DEPURAZIONE DELLE ACQUE DI SCARICO DEL SAVONESE S.P.A.",13725]
[14168,"04840770822","SOGEA srl",14168]
[13688,"00178720702","COMUNE DI CAMPOCHIARO",13688]
[13664,"02258260989","SEBINO SERVIZI SRL",13664]
[13887,"00204750871","SOCIETA' ACQUE IRRIGUE ACESE (S.A.I.A)",13887]
[13807,"00236750873","ACQUE BUFARDO E TORREROSSA SRL",13807]
[13756,"00762070621","COMUNE DI PIETRELCINA",13756]
[6188,"00095730560","COMUNE DI GROTTE DI CASTRO",6188]
[8302,"02102300064","COMUNI RIUNITI BELFORTE MONFERRATO SRL",8302]
[7806,"00451260046","ACQUEDOTTO LANGHE E ALPI CUNEESI SPA",{"$f":"+A1801","v":7806}]
[7534,"01250250550","SERVIZIO IDRICO INTEGRATO S.C.p.A.",7534]
[9844,"00268520657","ASIS SALERNITANA RETI E IMPIANTI S.P.A.",9844]
[2997,"00149170227","COMUNE DI TESERO",2997]
[258,"00161690664","COMUNE DI ANVERSA DEGLI ABRUZZI",258]
[188,"00148360662","COMUNE DI BARETE",188]
[183,"00100510213","COMUNE DI PARCINES",183]
[1218,"03119540130","LARIO RETI HOLDING",1218]
[1373,"00571350214","COMUNE DI CURON VENOSTA",1373]
[1812,"00166310433","COMUNE DI USSITA",1812]
[1859,"00876220633","UNIVERSITA' DEGLI STUDI DI NAPOLI FEDERICO II",1859]
[1042,"00453310211","Comune di Nalles",1042]
[650,"00149120222","COMUNE DI MOLVENO",650]
[3299,"03258180987","A2A CICLO IDRICO",3299]
[42391,"01891040337","IREN ACQUA PIACENZA S.R.L.",42391]
[14151,"01100710993","Iren Acqua Tigullio S.p.A.",14151]
[759,"01177760491","A.S.A. - AZIENDA SERVIZI AMBIENTALI SPA",759]
[335,"02066710605","AMEA S.P.A.",335]
[14267,"00136200094","Acquedotto San Lazzaro S.p.A.",14267]
[15008,"02197250208","SICAM SRL CON SOCIO UNICO",15008]
[1045,"01501460438","ASTEA SPA",1045]
[2189,"03341820276","VERITAS SPA",2189]
[464,"01474680418","ASET S.P.A.",464]
[44587,"02173670890","ARETUSACQUE SPA",44587]
[44243,"06058570877","Fonti Etnee",44243]
[39263,"00486530041","COMUNE DI BAGNOLO PIEMONTE",39263]
[42044,"00610630659","Comune di OGLIASTRO Cilento",42044]
[35222,"02071720615","Comune di Sparanise",35222]
[38196,"01884950708","GRIM SCARL",38196]
[35907,"01500350507","VALDERA ACQUE SRL",35907]
[34851,"01263291211","Comune di Sant'Antimo",34851]
[30598,"01421240480","COMUNE DI REGGELLO",30598]
[28882,"00283710804","COMUNE DI SAN LORENZO",28882]
[28752,"00164670622","Comune di San Leucio del Sannio",28752]
[28555,"00313680795","COMUNE DI ACQUARO",28555]
[28564,"00298720798","COMUNE DI BROGNATURO",28564]
[29611,"00720540806","COMUNE DI SANT'AGATA DEL BIANCO",29611]
[29580,"00231010646","COMUNE DI LAPIO",29580]
[28359,"01603830785","Comune di Terravecchia",28359]
[30490,"00322750902","C.I.P.N.E.S. Gallura",30490]
[29618,"01770970646","Comune di Gesualdo",29618]
[29741,"00266790641","COMUNE DI SORBO SERPICO",29741]
[28366,"00465450781","COMUNE DI SAN FILI",28366]
[30031,"02297690782","COMUNE DI DIPIGNANO",30031]
[29492,"00364800789","COMUNE DI PALUDI",29492]
[28760,"00724640628","COMUNE DI CEPPALONI",28760]
[28706,"00031730948","COMUNE DI SANTA MARIA DEL MOLISE",28706]
[28459,"00596080655","COMUNE DI CALVANICO",28459]
[29374,"00245650809","COMUNE DI ANTONIMINA",29374]
[29773,"01299510618","COMUNE SANTA MARIA A VICO",29773]
[28792,"00403220783","COMUNE DI SAN PIETRO IN AMANTEA",28792]
[29396,"00566190658","COMUNE DI SICIGNANO DEGLI ALBURNI",29396]
[28725,"00455290023","COMUNE DI CARCOFORO",28725]
[29520,"00785210659","COMUNE DI ORRIA",29520]
[29397,"04145950616","COMUNE DI RUVIANO",29397]
[28765,"00297290793","Comune di Soveria Mannelli",28765]
[29420,"00326650793","Comune di Dasà",29420]
[29381,"00520700782","COMUNE DI SAN BENEDETTO ULLANO",29381]
[32085,"00338420797","COMUNE DI BELVEDERE DI SPINELLO",32085]
[29906,"00323360792","COMUNE DI GEROCARNE",29906]
[29442,"00149690836","Comune di Santa Marina Salina",29442]
[29949,"00935280628","COMUNE DI SAN MARTINO SANNITA",29949]
[28424,"00671280881","Comune di Comiso",28424]
[28355,"01701660613","COMUNE DI PIGNATARO MAGGIORE",28355]
[30459,"02077720924","VILLASERVICE SPA",{"$f":"+A1865","v":30459}]
[30078,"00319140794","COMUNE DI NARDODIPACE",30078]
[29219,"01570180644","COMUNE DI PATERNOPOLI",29219]
[30046,"01794300614","comune di alife",30046]
[28813,"00297800799","Comune di Jacurso",28813]
[28377,"01534690654","CONSORZIO BONIFICA DI PAESTUM",28377]
[29573,"03513930655","COMUNE DI SALENTO",29573]
[28823,"01649740782","Comune di Fiumefreddo Bruzio",28823]
[29662,"01749600647","Comune di Greci",29662]
[29558,"00298090796","comune di umbriatico",29558]
[29335,"00401810783","comune di Sangineto",29335]
[29325,"00352000780","COMUNE DI PARENTI",29325]
[29547,"01302890841","Comune di Burgio",29547]
[28858,"00936740802","Comune di Africo",28858]
[28340,"00552610651","COMUNE  DI  ACERNO",28340]
[28587,"00114760838","COMUNE DI TORTORICI",28587]
[29926,"01379770785","COMUNE DI ALBIDONA",29926]
[29383,"00279600795","COMUNE DI MAGISANO",29383]
[28333,"00598370807","COMUNE DI SANTA CRISTINA D'ASPROMONTE",28333]
[29616,"00568840128","COMUNE DI CLIVIO",29616]
[29438,"00760550624","Comune di  San Lupo",29438]
[29488,"00588520619","COMUNE DI VALLE AGRICOLA",29488]
[29462,"00391170784","Comune di Aieta",29462]
[29392,"01417600614","COMUNE DI BELLONA",29392]
[25883,"00422780031","COMUNE DI FORMAZZA",25883]
[28246,"00580240984","COMUNE DI LIMONE SUL GARDA",28246]
[26007,"00683510622","COMUNE DI BUONALBERGO",26007]
[28144,"00359110830","COMUNE DI OLIVERI",28144]
[25118,"00379280092","COMUNE DI CASTELVECCHIO DI ROCCA BARBENA",25118]
[28199,"00283420644","comune di villamaina",28199]
[27791,"00255210817","COMUNE DI PACECO",27791]
[27832,"00376350781","COMUNE DI MARANO PRINCIPATO",27832]
[27556,"02569410828","COMUNE DI CAMPOFIORITO",27556]
[28346,"01266720711","comune di san marco la catola",28346]
[28077,"00275550838","COMUNE DI ACQUEDOLCI",28077]
[28035,"03633691211","COMUNE DI VILLARICCA",28035]
[27939,"00323420794","Comune di Jonadi",27939]
[27990,"00435590831","Comune di Cesarò",27990]
[26801,"03500441203","COMUNE DI ALTO RENO TERME",26801]
[26092,"02401740226","COMUNE DI BORGO LARES",26092]
[24700,"01231940907","COMUNE DI BURGOS",24700]
[28123,"00298170796","COMUNE DI CARLOPOLI",28123]
[28150,"00288790686","COMUNE DI SAN VALENTINO IN ABRUZZO CITERIORE",28150]
[27817,"00407150788","Comune di Tortora",27817]
[27867,"00311650790","Comune di Sellia",27867]
[26036,"00236310827","So.r.i spa",26036]
[28294,"00292200839","COMUNE DI FICARRA",28294]
[27959,"00937850782","COMUNE DI CASTROVILLARI",27959]
[28310,"00182150797","comune di gasperina",28310]
[28096,"00343630786","COMUNE DI MOTTAFOLLONE",28096]
[28084,"00679980649","Comune di Grottaminarda",28084]
[28046,"00314410788","Comune di Cosenza",28046]
[25797,"00215170564","COMUNE DI BASSANO IN TEVERINA",25797]
[28087,"00710360801","COMUNE DI MONTEBELLO JONICO",28087]
[25859,"00593390982","Comune di Ossimo",25859]
[27060,"00205580707","Consorzio per lo Sviluppo Industriale di Campobasso-Bojano Ente Pubblico Economico",27060]
[27010,"00571550136","COMUNE DI MAGREGLIO",27010]
[25869,"00478760044","COMUNE DI GORZEGNO",25869]
[27913,"00437760614","Comune Capriati a Volturno",27913]
[24865,"01434130843","CONSORZIO ACQUEDOTTO TRE SORGENTI",24865]
[27871,"00255090805","Comune di San Giorgio Morgeto",27871]
[24572,"00327070793","COMUNE DI ZUNGRI",24572]
[24198,"00129520797","comune di catanzaro",24198]
[27907,"00238090799","COMUNE DI CONFLENTI",27907]
[27852,"00431630789","COMUNE DI MONGRASSANO",{"$f":"+A1929","v":27852}]
[27891,"00368270781","COMUNE DI ROTA GRECA",27891]
[28051,"00346830789","COMUNE DI BELVEDERE MARITTIMO",28051]
[28040,"00522040799","COMUNE DI SOVERATO",28040]
[28015,"00275260784","Comune di Bisignano",28015]
[27825,"00361640717","comune di biccari",27825]
[25404,"01241900834","COMUNE DI GAGGI",25404]
[24557,"00725430805","Comune di Rosarno",24557]
[28106,"00540330651","COMUNE DI LUSTRA",28106]
[30012,"00297450793","COMUNE DI MAIDA",30012]
[29791,"02541640617","COMUNE DI FRIGNANO",29791]
[29779,"02462070166","Comune di Palazzago",29779]
[26541,"01141070480","COMUNE DI GAMBASSI TERME",26541]
[25353,"03481930125","ALFA S.r.l.",25353]
[28070,"03022340610","Comune di Villa Literno",28070]
[26299,"03378170488","COMUNE DI CERRETO GUIDI",26299]
[30045,"00284410610","COMUNE DI CAIAZZO",30045]
[30043,"00319580791","Comune di Caccuri",30043]
[26542,"01182120483","COMUNE DI MONTAIONE",26542]
[25341,"00390050839","COMUNE DI LETOJANNI",25341]
[25833,"00384900163","COMUNE DI TERNO D'ISOLA",25833]
[23855,"00204900666","Comune di Canistro",23855]
[23826,"00067610956","COMUNE DI BONARCADO",23826]
[23092,"01026810927","COMUNE DI SERRAMANNA",23092]
[23022,"01393700925","comune di nuxis",23022]
[23044,"00592940985","COMUNE DI ONO SAN PIETRO",23044]
[23873,"00117980623","COMUNE DI CUSANO MUTRI",23873]
[23038,"00272360801","COMUNE DI SIDERNO",23038]
[23186,"05696180636","Comune di Marano di Napoli",23186]
[23819,"00093580561","COMUNE DI RONCIGLIONE",23819]
[24052,"00532060134","COMUNE DI GERA LARIO",24052]
[20169,"00547920652","COMUNE DI TORCHIARA",20169]
[21533,"00286500640","COMUNE DI MONTEMARANO",21533]
[22231,"00053710943","COMUNE DI SANT'AGAPITO",22231]
[21650,"00469710040","COMUNE DI PRIERO",21650]
[21494,"01608070643","COMUNE DI SANT'ANGELO DEI LOMBARDI",21494]
[21487,"00243280120","Comune di Malnate",21487]
[22799,"00590990982","COMUNE DI SAVIORE DELL'ADAMELLO",22799]
[22944,"00534600655","Comune di Rofrano",22944]
[20158,"00225510122","COMUNE DI BRISSAGO VALTRAVAGLIA",20158]
[22554,"00195810700","COMUNE DI PIETRACATELLA",22554]
[21479,"81001610641","comune di vallesaccarda",21479]
[22943,"00462260712","COMUNE DI ROSETO VALFORTORE",22943]
[22823,"00430250043","COMUNE CASTELLETTO UZZONE",22823]
[22737,"00269940623","comune di circello",22737]
[22723,"00241950641","COMUNE DI TORELLA DEI LOMBARDI",22723]
[22846,"00338460041","COMUNE DI ROCCHETTA BELBO",22846]
[22121,"00067470948","COMUNE DI CHIAUCI",22121]
[20836,"00269760625","COMUNE DI SASSINORO",20836]
[21664,"00100650076","Comune di Verrès",21664]
[22010,"00070150701","COMUNE DI MONTORIO NEI FRENTANI",22010]
[21521,"03522110133","COMO ACQUA S.R.L.",21521]
[22165,"00925430787","Comune di Morano Calabro",22165]
[21559,"00245030085","COMUNE DI RANZO",21559]
[21557,"00247300080","COMUNE DI LUCINASCO",21557]
[21362,"03204110872","MACCARRONE MARIA",21362]
[22147,"00088320940","COMUNE DI FORNELLI",22147]
[21456,"00308220128","COMUNE DI CISLAGO",21456]
[22169,"00054500707","COMUNE DI LIMOSANO",22169]
[20123,"00122320088","CONSORZIO IRRIGUO E POTABILE DEI COMUNI DI CIPRESSA E COSTARAINERA",20123]
[22921,"00078230810","Comune di Alcamo",22921]
[22919,"00237220900","COMUNE DI ANELA",22919]
[22849,"00308140128","Comune di Azzate",22849]
[21474,"01672600648","Comune di Taurasi",21474]
[22813,"00943900035","COMUNE DI GURRO",{"$f":"+A1993","v":22813}]
[22753,"00281000646","COMUNE DI CASTEL BARONIA",22753]
[22159,"00060680949","COMUNE DI CANTALUPO NEL SANNIO",22159]
[22837,"00511030041","COMUNE DI BERGOLO",22837]
[21651,"00070170949","Comune di Carovilli",21651]
[22534,"00225230705","COMUNE DI LUCITO",22534]
[22581,"00085820942","COMUNE DI CASTELPETROSO",22581]
[19563,"04930470879","ACQUE FLORESTA SRL",19563]
[17555,"00225170703","COMUNE DI CERCEPICCOLA",17555]
[17464,"01736540210","Trinkwassergenossenschaft Reischach m.b.H",17464]
[17233,"00101810075","comune di ollomont",17233]
[20288,"00246210082","Comune di Cosio d'Arroscia",20288]
[19843,"00560000127","COMUNE DI CUVIO",19843]
[19735,"00605620137","COMUNE DI BELLAGIO",19735]
[18816,"00644530131","Comune di Maslianico",18816]
[17291,"01090780212","societa coop per utenti d´acqua potabile Eores",17291]
[19759,"00244500088","COMUNE DI PIEVE DI TECO",19759]
[19830,"00688470137","COMUNE DI DOMASO",19830]
[17432,"00127760213","Comune di Montagna sulla strada del vino/Gemeinde Montan an der Weinstraße",17432]
[17460,"00181030222","COMUNE DI VALFLORIANA",17460]
[17397,"00561740218","Comune di Lauregno",17397]
[19822,"00151070612","Comune di Casagiove",19822]
[19994,"00273580126","COMUNE DI GEMONIO",19994]
[19823,"00233230846","COMUNE DI MENFI",19823]
[18747,"00144860079","COMUNE DI DOUES",18747]
[17427,"00465770212","Comune di Predoi",17427]
[17499,"00229030218","Acquedotto Cooperativo di Fié allo Sciliar",17499]
[17451,"00972050215","Comune di Plaus",17451]
[17508,"00066290701","COMUNE DI SAN MASSIMO",17508]
[17434,"00616760211","Comune di Magrè sulla Strada del Vino",17434]
[17446,"00554670216","Comune di La Valle",17446]
[17381,"00543510218","Comune di Badia",17381]
[17188,"00701630212","Comunità comprensoriale Wipptal",17188]
[17097,"01295940215","Comune di Senale - San Felice",17097]
[16934,"00308750223","COMUNE DI STENICO",16934]
[17314,"00160190211","COOPERATIVA ACQUA POTABILE SAN MICHELE-APPIANO",17314]
[18679,"05219430013","COMUNE DI ROURE",18679]
[17515,"00171670706","COMUNE DI CASTROPIGNANO",17515]
[17493,"00197250707","COMUNE DI SPINETE",17493]
[17120,"01061910210","Comune di Castelrotto",17120]
[13744,"05040110487","PUBLIACQUA",13744]
[15242,"00441540127","COMUNE DI CASTELLO CABIAGLIO",15242]
[15032,"00858820228","COMUNE DI MAZZIN",15032]
[14600,"00514790229","COMUNE DI CAPRIANA",14600]
[14097,"01319611008","IDRICA",14097]
[13908,"00675230247","MEDIO CHIAMPO SPA",13908]
[14618,"00192880706","COMUNE DI MONTEMITRO",14618]
[13499,"00589640127","COMUNE DI SANGIANO",13499]
[14103,"00689510139","COMUNE DI ANZANO DEL PARCO",14103]
[14488,"00267990224","COMUNE DI TERRAGNOLO",14488]
[14429,"02130281005","COMUNE DI RIGNANO FLAMINIO",14429]
[14296,"02795950613","Acquedotti Scpa",14296]
[14552,"00147730220","COMUNE DI PINZOLO",14552]
[14519,"00453130221","COMUNE DI RUMO",14519]
[14424,"00112200829","Ente Acquedotti Siciliani in liquidazione coatta amministrativa",14424]
[14150,"00157980442","TENNACOLA SPA",14150]
[14195,"00245460894","Comune di Buscemi",14195]
[14487,"00247990815","comune di pantelleria",14487]
[14382,"00080810641","ALTO CALORE SERVIZI S.P.A.",14382]
[14350,"00933830226","COMUNE DI SANZENO",14350]
[14316,"00308670223","COMUNE DI PEIO",14316]
[14299,"00159200229","COMUNE DI TERZOLAS",14299]
[14194,"00171510563","COMUNE DI TUSCANIA",14194]
[14112,"00237790126","COMUNE DI FERNO",14112]
[10468,"02200370167","Realizzazione e gestione servizi pubblici locali spa, per brevità COGEIDE spa",{"$f":"+A2057","v":10468}]
[13660,"00194710216","GEMEINDE WELSCHNOFEN / COMUNE DI NOVA LEVANTE",13660]
[13652,"02254180413","AZIENDA SPECIALE COMUNI RIUNITI",13652]
[13599,"00067510701","Comune di SAN MARTINO IN PENSILIS",13599]
[13820,"02025280658","COMUNE DI SAN GREGORIO MAGNO",13820]
[12859,"00192920890","Comune di Carlentini",12859]
[13185,"00067360941","COMUNE DI CIVITANOVA DEL SANNIO",13185]
[12929,"02584940924","A.C.Q.U.A. V.I.T.A.N.A.",12929]
[13901,"00055450944","COMUNE DI PETTORANELLO DEL MOLISE",13901]
[9907,"00057170946","Comune di Capracotta",9907]
[7473,"00593600984","Comune di Cerveno",7473]
[7462,"03299640163","UNIACQUE SPA",7462]
[8241,"00133090878","ACQUE CARCACI DEL FASANO SPA",8241]
[5156,"01084890217","GEMEINDE JENESIEN / COMUNE DI SAN GENESIO ATESINO",5156]
[4917,"00446860215","Comune di Scena",4917]
[4082,"00253800213","Comune di Verano",4082]
[3577,"01093630216","Comune di Chiusa",3577]
[20219,"00578180655","Comune di Oliveto Citra",20219]
[79,"00124130220","COMUNE DI CAVALESE",79]
[1699,"00244230082","Comune di Molini di Triora",1699]
[1905,"00104260229","COMUNE DI CLES",1905]
[384,"00685130163","COMUNE DI MAPELLO",384]
[692,"00971870258","SERVIZI INTEGRATI BELLUNESI SPA",692]
[583,"00186560215","COMUNE DI TIRES",583]
[12701,"10200211000","ACEA MOLISE SRL",12701]
[10202,"07599620635","GORI S.p.A.",10202]
[1343,"01717730210","ASM Bressanone SpA",1343]
[15548,"01753240850","ACQUE DI CALTANISSETTA SPA",15548]
[14177,"13187590156","CAP HOLDING S.P.A",14177]
[2982,"07063880962","Lereti S.p.A.",2982]

{"sheet":"TT_Comuni_ATO","index":45,"n_rows":7895,"n_cols":32,"rows_kept":7895,"cut":false,"hidden":false,"merged":[]}
["REGIONE","Comune","Comune_Prov","Ente_Ambito","ID_ATO","ID_ATO","PROVINCIA","PROV","Istat_Comune","Comune",null,"ATO","ID_ATO","ID_ATO","N/C/S",null,"ID_Ente_Ambito","Ente_Ambito",null,null,null,"ID_ATO",null,"Comune_Prov","Istat_Comune","REGIONE","PROVINCIA","PROV","Comune","Ente_Ambito","ID_ATO","ID_ATO"]
["Piemonte","Agliè","Agliè (TO) ","Autorità d'ambito n. 3 Torinese",103,103,"Torino","TO","001001","Agliè",null,"ATO 1 - VERBANO-CUSIO-OSSOLA E PIANURA NOVARESE",101,101,"N",null,39628,"Assemblea territoriale idrica di Trapani"]
["Piemonte","Airasca","Airasca (TO) ","Autorità d'ambito n. 3 Torinese",103,103,"Torino","TO","001002","Airasca",null,"ATO 2 - BIELLESE, VERCELLESE, CASALESE",102,102,"N",null,37580,"A.T.I. ASSEMBLEA TERRITORIALE IDRICA ATO CALTANISSETTA"]
["Piemonte","Ala di Stura","Ala di Stura (TO) ","Autorità d'ambito n. 3 Torinese",103,103,"Torino","TO","001003","Ala di Stura",null,"ATO 3 - TORINO",103,103,"N",null,37239,"CONSIGLIO DI BACINO LAGUNA DI VENEZIA"]
["Piemonte","Albiano d'Ivrea","Albiano d'Ivrea (TO) ","Autorità d'ambito n. 3 Torinese",103,103,"Torino","TO","001004","Albiano d'Ivrea",null,"ATO 4 - CUNEO",104,104,"N",null,28178,"assemblea territoriale idrica di messina"]
["Piemonte","Almese","Almese (TO) ","Autorità d'ambito n. 3 Torinese",103,103,"Torino","TO","001006","Almese",null,"ATO 5 - ASTIGIANO, MONFERRATO",105,105,"N",null,27256,"Autorità Umbra Rifiuti Idrico"]
["Piemonte","Alpette","Alpette (TO) ","Autorità d'ambito n. 3 Torinese",103,103,"Torino","TO","001007","Alpette",null,"ATO 6 - ALESSANDRIA",106,106,"N",null,20492,"Autorità dell'Ambito Territoriale Ottimale n.3 Lazio Centrale - Rieti"]
["Piemonte","Alpignano","Alpignano (TO) ","Autorità d'ambito n. 3 Torinese",103,103,"Torino","TO","001008","Alpignano",null,"ATO VALLE D'AOSTA",201,201,"N",null,19901,"Ente di governo d'Ambito n.4 Cuneese per i Servizi Idrici"]
["Piemonte","Andezeno","Andezeno (TO) ","Autorità d'ambito n. 3 Torinese",103,103,"Torino","TO","001009","Andezeno",null,"ATO BG - BERGAMO",301,301,"N",null,19984,"Autorità d'Ambito Territoriale Ottimale 5 Lazio Meridionale - Frosinone"]
["Piemonte","Andrate","Andrate (TO) ","Autorità d'ambito n. 3 Torinese",103,103,"Torino","TO","001010","Andrate",null,"ATO BS - BRESCIA",302,302,"N",null,19883,"ENTE D'AMBITO TERRITORIALE OTTIMALE n4 \"LAZIO MERIDIONALE-LATINA\""]
["Piemonte","Angrogna","Angrogna (TO) ","Autorità d'ambito n. 3 Torinese",103,103,"Torino","TO","001011","Angrogna",null,"ATO CO - COMO",304,304,"N",null,20011,"Consorzio dei Comuni della Valle d'Aosta Bacino Imbrifero Montano"]
["Piemonte","Arignano","Arignano (TO) ","Autorità d'ambito n. 3 Torinese",103,103,"Torino","TO","001012","Arignano",null,"ATO CR - CREMONA",305,305,"N",null,19884,"ATO 2 Biellese, Vercellese e Casalese"]
["Piemonte","Avigliana","Avigliana (TO) ","Autorità d'ambito n. 3 Torinese",103,103,"Torino","TO","001013","Avigliana",null,"ATO LC - LECCO",306,306,"N",null,19947,"Ente di Governo dell'Ambito n. 5 Astigiano Monferrato"]
["Piemonte","Azeglio","Azeglio (TO) ","ATO 2 Biellese, Vercellese e Casalese",102,102,"Torino","TO","001014","Azeglio",null,"ATO LO - LODI",307,307,"N",null,19885,"Ufficio d'ambito di Lecco"]
["Piemonte","Bairo","Bairo (TO) ","Autorità d'ambito n. 3 Torinese",103,103,"Torino","TO","001015","Bairo",null,"ATO MI - Città Metropolitana di Milano",308,308,"N",null,26079,"Assemblea Territoriale Idrica AG9 - Agrigento"]
["Piemonte","Balangero","Balangero (TO) ","Autorità d'ambito n. 3 Torinese",103,103,"Torino","TO","001016","Balangero",null,"ATO MN - MANTOVA",309,309,"N",null,27302,"Ente Regionale per il Servizio Idrico Integrato"]
["Piemonte","Baldissero Canavese","Baldissero Canavese (TO) ","Autorità d'ambito n. 3 Torinese",103,103,"Torino","TO","001017","Baldissero Canavese",null,"ATO PV - PAVIA",310,310,"N",null,19905,"Ente di Governo d'Ambito Ottimale n.6 \"Alessandrino\""]
["Piemonte","Baldissero Torinese","Baldissero Torinese (TO) ","Autorità d'ambito n. 3 Torinese",103,103,"Torino","TO","001018","Baldissero Torinese",null,"ATO SO - SONDRIO",311,311,"N",null,19912,"Autorità di Ambito Territoriale Ottimale n. 4 MARCHE Centro Sud - Fermano e Maceratese"]
["Piemonte","Balme","Balme (TO) ","Autorità d'ambito n. 3 Torinese",103,103,"Torino","TO","001019","Balme",null,"ATO VA - VARESE",312,312,"N",null,19860,"UFFICIO D'AMBITO DELLA PROVINCIA DI SONDRIO"]
["Piemonte","Banchette","Banchette (TO) ","Autorità d'ambito n. 3 Torinese",103,103,"Torino","TO","001020","Banchette",null,"ATO MB - MONZA E DELLA BRIANZA",313,313,"N",null,19865,"Consiglio di Bacino Polesine"]
["Piemonte","Barbania","Barbania (TO) ","Autorità d'ambito n. 3 Torinese",103,103,"Torino","TO","001021","Barbania",null,"ATO NL - TRENTO",401,401,"N",null,27828,"Assemblea Territoriale Idrica Catania"]
["Piemonte","Bardonecchia","Bardonecchia (TO) ","Autorità d'ambito n. 3 Torinese",103,103,"Torino","TO","001022","Bardonecchia",null,"ATO BOLZANO",402,402,"N",null,20398,"REGIONE SICILIANA"]
["Piemonte","Barone Canavese","Barone Canavese (TO) ","Autorità d'ambito n. 3 Torinese",103,103,"Torino","TO","001023","Barone Canavese",null,"ATO PUSTERIA",403,403,"N",null,19855,"Consiglio di Bacino Brenta"]
["Piemonte","Beinasco","Beinasco (TO) ","Autorità d'ambito n. 3 Torinese",103,103,"Torino","TO","001024","Beinasco",null,"ATO VAL VENOSTA",404,404,"N",null,19862,"UFFICIO DI AMBITO DELLA PROVINCIA DI MANTOVA"]
["Piemonte","Bibiana","Bibiana (TO) ","Autorità d'ambito n. 3 Torinese",103,103,"Torino","TO","001025","Bibiana",null,"ATO VALLE ISARCO",405,405,"N",null,19898,"Ambito Territoriale Ottimale 2 Lazio Centrale - Roma"]
["Piemonte","Bobbio Pellice","Bobbio Pellice (TO) ","Autorità d'ambito n. 3 Torinese",103,103,"Torino","TO","001026","Bobbio Pellice",null,"ATO AV - ALTO VENETO",501,501,"N",null,19900,"UFFICIO D'AMBITO DI BERGAMO"]
["Piemonte","Bollengo","Bollengo (TO) ","Autorità d'ambito n. 3 Torinese",103,103,"Torino","TO","001027","Bollengo",null,"ATO B - BACCHIGLIONE",502,502,"N",null,38872,"Autorità Rifiuti e Risorse Idriche della Calabria"]
["Piemonte","Borgaro Torinese","Borgaro Torinese (TO) ","Autorità d'ambito n. 3 Torinese",103,103,"Torino","TO","001028","Borgaro Torinese",null,"ATO BR - BRENTA",503,503,"N",null,35319,"Assemblea Territoriale Idrica di Siracusa"]
["Piemonte","Borgiallo","Borgiallo (TO) ","Autorità d'ambito n. 3 Torinese",103,103,"Torino","TO","001029","Borgiallo",null,"ATO LV - LAGUNA DI VENEZIA",504,504,"N",null,19913,"Azienda Speciale \"Ufficio d'Ambito Territoriale Ottimale della Provincia di Pavia\""]
["Piemonte","Borgofranco d'Ivrea","Borgofranco d'Ivrea (TO) ","Autorità d'ambito n. 3 Torinese",103,103,"Torino","TO","001030","Borgofranco d'Ivrea",null,"ATO P - POLESINE",505,505,"N",null,25403,"Ente di Governo per i Rifiuti e le Risorse Idriche della Basilicata"]
["Piemonte","Borgomasino","Borgomasino (TO) ","Autorità d'ambito n. 3 Torinese",103,103,"Torino","TO","001031","Borgomasino",null,"ATO V - VERONA",506,506,"N",null,20361,"Autorità Ambito Teriitoriale Ottimale 1 Palermo in liquidazione"]
["Piemonte","Borgone Susa","Borgone Susa (TO) ","Autorità d'ambito n. 3 Torinese",103,103,"Torino","TO","001032","Borgone Susa",null,"ATO VC - VALLE DEL CHIAMPO",507,507,"N",null,19882,"Autorità Idrica Pugliese"]
["Piemonte","Bosconero","Bosconero (TO) ","Autorità d'ambito n. 3 Torinese",103,103,"Torino","TO","001033","Bosconero",null,"ATO VO - VENETO ORIENTALE",508,508,"N",null,19926,"CITTA' METROPOLITANA DI GENOVA ENTE DI GOVERNO D'AMBITO CENTRO EST"]
["Piemonte","Brandizzo","Brandizzo (TO) ","Autorità d'ambito n. 3 Torinese",103,103,"Torino","TO","001034","Brandizzo",null,"ATO Friuli-Venezia Giulia",605,605,"N",null,19934,"Assemblea di Ambito territoriale ottimale n.1 Marche Nord Pesaro e Urbino"]
["Piemonte","Bricherasio","Bricherasio (TO) ","Autorità d'ambito n. 3 Torinese",103,103,"Torino","TO","001035","Bricherasio",null,"ATO Centro-Est (GENOVA)",701,701,"N",null,19857,"ATO 1 Verbano Cusio Ossola e Pianura Novarese"]
["Piemonte","Brosso","Brosso (TO) ","Autorità d'ambito n. 3 Torinese",103,103,"Torino","TO","001036","Brosso",null,"ATO Ovest (IMPERIA)",702,702,"N",null,29854,"ASSEMBLEA TERRITORIALE IDRICA DI RAGUSA"]
["Piemonte","Brozolo","Brozolo (TO) ","Ente di Governo dell'Ambito n. 5 Astigiano Monferrato",105,105,"Torino","TO","001037","Brozolo",null,"ATO Est (LA SPEZIA)",703,703,"N",null,20426,"PROVINCIA DI SAVONA"]
["Piemonte","Bruino","Bruino (TO) ","Autorità d'ambito n. 3 Torinese",103,103,"Torino","TO","001038","Bruino",null,"ATO Centro-Ovest 1 (SAVONA)",705,705,"N",null,20129,"ATO EST: PROVINCIA DELLA SPEZIA"]
["Piemonte","Brusasco","Brusasco (TO) ","Ente di Governo dell'Ambito n. 5 Astigiano Monferrato",105,105,"Torino","TO","001039","Brusasco",null,"ATO Centro-Ovest 2 (SAVONA)",706,706,"N",null,19918,"Ufficio d'Ambito di Brescia"]
["Piemonte","Bruzolo","Bruzolo (TO) ","Autorità d'ambito n. 3 Torinese",103,103,"Torino","TO","001040","Bruzolo",null,"ATO 1 - PIACENZA",801,801,"N",null,19873,"A.T.O. - Ovest - Provincia di Imperia"]
["Piemonte","Buriasco","Buriasco (TO) ","Autorità d'ambito n. 3 Torinese",103,103,"Torino","TO","001041","Buriasco",null,"ATO 2 - PARMA",802,802,"N",null,19916,"Assemblea di Ambito Territoriale Ottimale n. 5 MARCHE SUD - ASCOLI PICENO E FERMO"]
["Piemonte","Burolo","Burolo (TO) ","Autorità d'ambito n. 3 Torinese",103,103,"Torino","TO","001042","Burolo",null,"ATO 3 - REGGIO NELL'EMILIA",803,803,"N",null,19964,"Autorità Idrica Toscana"]
["Piemonte","Busano","Busano (TO) ","Autorità d'ambito n. 3 Torinese",103,103,"Torino","TO","001043","Busano",null,"ATO 4 - MODENA",804,804,"N",null,19931,"ENTE DI GOVERNO DELL'AMBITO DELLA SARDEGNA"]
["Piemonte","Bussoleno","Bussoleno (TO) ","Autorità d'ambito n. 3 Torinese",103,103,"Torino","TO","001044","Bussoleno",null,"ATO 5 - BOLOGNA",805,805,"N",null,19881,"UFFICIO D'AMBITO DELLA PROVINCIA DI CREMONA"]
["Piemonte","Buttigliera Alta","Buttigliera Alta (TO) ","Autorità d'ambito n. 3 Torinese",103,103,"Torino","TO","001045","Buttigliera Alta",null,"ATO 6 - FERRARA",806,806,"N",null,19859,"Consiglio di Bacino Veronese"]
["Piemonte","Cafasse","Cafasse (TO) ","Autorità d'ambito n. 3 Torinese",103,103,"Torino","TO","001046","Cafasse",null,"ATO 7 - RAVENNA",807,807,"N",null,14353,"REGIONE CAMPANIA"]
["Piemonte","Caluso","Caluso (TO) ","Autorità d'ambito n. 3 Torinese",103,103,"Torino","TO","001047","Caluso",null,"ATO 8 - FORLI'-CESENA",808,808,"N",null,19938,"Ufficio d'ambito della Provincia di Monza Brianza"]
["Piemonte","Cambiano","Cambiano (TO) ","Autorità d'ambito n. 3 Torinese",103,103,"Torino","TO","001048","Cambiano",null,"ATO 9 - RIMINI",809,809,"N",null,19858,"Consiglio di Bacino Valle del Chiampo"]
["Piemonte","Campiglione Fenile","Campiglione Fenile (TO) ","Autorità d'ambito n. 3 Torinese",103,103,"Torino","TO","001049","Campiglione Fenile",null,"ATO 1 - TOSCANA NORD",901,901,"C",null,27432,"ASSEMBLEA TERRITORIALE IDRICA PALERMO"]
["Piemonte","Candia Canavese","Candia Canavese (TO) ","Autorità d'ambito n. 3 Torinese",103,103,"Torino","TO","001050","Candia Canavese",null,"ATO 2 - BASSO VALDARNO (PISA)",902,902,"C",null,19929,"Ufficio d'Ambito di Como"]
["Piemonte","Candiolo","Candiolo (TO) ","Autorità d'ambito n. 3 Torinese",103,103,"Torino","TO","001051","Candiolo",null,"ATO 3 - MEDIO VALDARNO (FIRENZE)",903,903,"C",null,19869,"Consiglio di Bacino Bacchiglione"]
["Piemonte","Canischio","Canischio (TO) ","Autorità d'ambito n. 3 Torinese",103,103,"Torino","TO","001052","Canischio",null,"ATO 4 - ALTO VALDARNO (AREZZO)",904,904,"C",null,19928,"Ufficio d'Ambito della Città Metropolitana di Milano"]
["Piemonte","Cantalupa","Cantalupa (TO) ","Autorità d'ambito n. 3 Torinese",103,103,"Torino","TO","001053","Cantalupa",null,"ATO 5 - TOSCANA COSTA",905,905,"C",null,19997,"AGENZIA TERRITORIALE DELL'EMILIA ROMAGNA PER I SERVIZI IDRICI E I RIFIUTI"]
["Piemonte","Cantoira","Cantoira (TO) ","Autorità d'ambito n. 3 Torinese",103,103,"Torino","TO","001054","Cantoira",null,"ATO 6 - OMBRONE (GROSSETO)",906,906,"C",null,19914,"Assemblea di Ambito Territoriale Ottimale n. 3 Marche Centro - Macerata"]
["Piemonte","Caprie","Caprie (TO) ","Autorità d'ambito n. 3 Torinese",103,103,"Torino","TO","001055","Caprie",null,"ATI 1 e 2 - Ambito 1 e Ambito 2",1001,1001,"C",null,35572,"ATI DI ENNA"]
["Piemonte","Caravino","Caravino (TO) ","Autorità d'ambito n. 3 Torinese",103,103,"Torino","TO","001056","Caravino",null,"ATI 3 - Ambito 3",1002,1002,"C",null,38454,"EGAM-Ente di Governo dell'Ambito del Molise per il servizio idrico integrato"]
["Piemonte","Carema","Carema (TO) ","Autorità d'ambito n. 3 Torinese",103,103,"Torino","TO","001057","Carema",null,"ATI 4 - Ambito 4",1003,1003,"C",null,30527,"AUTORITA' UNICA PER I SERVIZI IDRICI E I RIFIUTI"]
["Piemonte","Carignano","Carignano (TO) ","Autorità d'ambito n. 3 Torinese",103,103,"Torino","TO","001058","Carignano",null,"ATO 1 - MARCHE NORD PESARO E URBINO",1101,1101,"C",null,28469,"Ente Idrico Campano"]
["Piemonte","Carmagnola","Carmagnola (TO) ","Autorità d'ambito n. 3 Torinese",103,103,"Torino","TO","001059","Carmagnola",null,"ATO 2 - MARCHE CENTRO ANCONA",1102,1102,"C",null,26617,"Consorzio Acque di scarico Pusteria  ABWASSERKONSORTIUM Pustertal"]
["Piemonte","Casalborgone","Casalborgone (TO) ","Autorità d'ambito n. 3 Torinese",103,103,"Torino","TO","001060","Casalborgone",null,"ATO 3 - MARCHE CENTRO MACERATA",1103,1103,"C",null,19886,"Assemblea di Ambito territoriale ottimale n. 2 Marche Centro - Ancona"]
["Piemonte","Cascinette d'Ivrea","Cascinette d'Ivrea (TO) ","Autorità d'ambito n. 3 Torinese",103,103,"Torino","TO","001061","Cascinette d'Ivrea",null,"ATO 4 - MARCHE SUD ALTO PICENO MACERATESE",1104,1104,"C",null,19880,"UFFICIO D'AMBITO DI LODI"]
["Piemonte","Caselette","Caselette (TO) ","Autorità d'ambito n. 3 Torinese",103,103,"Torino","TO","001062","Caselette",null,"ATO 5 - MARCHE SUD ASCOLI PICENO",1105,1105,"C",null,19920,"Autorità d'ambito n. 3 Torinese"]
["Piemonte","Caselle Torinese","Caselle Torinese (TO) ","Autorità d'ambito n. 3 Torinese",103,103,"Torino","TO","001063","Caselle Torinese",null,"ATO 1 - LAZIO NORD VITERBO",1201,1201,"C",null,19992,"ENTE DI GOVERNO DELL'A.T.O. N° 1 LAZIO NORD - VITERBO"]
["Piemonte","Castagneto Po","Castagneto Po (TO) ","Autorità d'ambito n. 3 Torinese",103,103,"Torino","TO","001064","Castagneto Po",null,"ATO 2 - LAZIO CENTRALE ROMA",1202,1202,"C",null,19867,"Ufficio d'Ambito Territoriale Ottimale della Provincia di Varese"]
["Piemonte","Castagnole Piemonte","Castagnole Piemonte (TO) ","Autorità d'ambito n. 3 Torinese",103,103,"Torino","TO","001065","Castagnole Piemonte",null,"ATO 3 - LAZIO CENTRALE RIETI",1203,1203,"C",null,19872,"Consiglio di Bacino \"Veneto Orientale\""]
["Piemonte","Castellamonte","Castellamonte (TO) ","Autorità d'ambito n. 3 Torinese",103,103,"Torino","TO","001066","Castellamonte",null,"ATO 4 - LAZIO MERIDIONALE LATINA",1204,1204,"C",null,19864,"Consiglio di Bacino \"Dolomiti Bellunesi\""]
["Piemonte","Castelnuovo Nigra","Castelnuovo Nigra (TO) ","Autorità d'ambito n. 3 Torinese",103,103,"Torino","TO","001067","Castelnuovo Nigra",null,"ATO 5 - LAZIO MERIDIONALE FROSINONE",1205,1205,"C"]
["Piemonte","Castiglione Torinese","Castiglione Torinese (TO) ","Autorità d'ambito n. 3 Torinese",103,103,"Torino","TO","001068","Castiglione Torinese",null,"ATO 1 - AQUILANO",1301,1301,"S"]
["Piemonte","Cavagnolo","Cavagnolo (TO) ","Ente di Governo dell'Ambito n. 5 Astigiano Monferrato",105,105,"Torino","TO","001069","Cavagnolo",null,"ATO 2 - MARSICANO",1302,1302,"S"]
["Piemonte","Cavour","Cavour (TO) ","Autorità d'ambito n. 3 Torinese",103,103,"Torino","TO","001070","Cavour",null,"ATO 3 - PELIGNO ALTO SANGRO",1303,1303,"S"]
["Piemonte","Cercenasco","Cercenasco (TO) ","Autorità d'ambito n. 3 Torinese",103,103,"Torino","TO","001071","Cercenasco",null,"ATO 4 - PESCARA",1304,1304,"S"]
["Piemonte","Ceres","Ceres (TO) ","Autorità d'ambito n. 3 Torinese",103,103,"Torino","TO","001072","Ceres",null,"ATO 5 - TERAMO",1305,1305,"S"]
["Piemonte","Ceresole Reale","Ceresole Reale (TO) ","Autorità d'ambito n. 3 Torinese",103,103,"Torino","TO","001073","Ceresole Reale",null,"ATO 6 - CHIETI",1306,1306,"S"]
["Piemonte","Cesana Torinese","Cesana Torinese (TO) ","Autorità d'ambito n. 3 Torinese",103,103,"Torino","TO","001074","Cesana Torinese",null,"ATO MOLISE",1401,1401,"S"]
["Piemonte","Chialamberto","Chialamberto (TO) ","Autorità d'ambito n. 3 Torinese",103,103,"Torino","TO","001075","Chialamberto",null,"AMBITO DISTRETTUALE NAPOLI",1502,1502,"S"]
["Piemonte","Chianocco","Chianocco (TO) ","Autorità d'ambito n. 3 Torinese",103,103,"Torino","TO","001076","Chianocco",null,"AMBITO DISTRETTUALE SELE",1503,1503,"S"]
["Piemonte","Chiaverano","Chiaverano (TO) ","Autorità d'ambito n. 3 Torinese",103,103,"Torino","TO","001077","Chiaverano",null,"AMBITO DISTRETTUALE SARNESE-VESUVIANO",1504,1504,"S"]
["Piemonte","Chieri","Chieri (TO) ","Autorità d'ambito n. 3 Torinese",103,103,"Torino","TO","001078","Chieri",null,"AMBITO DISTRETTUALE CASERTA - TERRA DI LAVORO",1505,1505,"S"]
["Piemonte","Chiesanuova","Chiesanuova (TO) ","Autorità d'ambito n. 3 Torinese",103,103,"Torino","TO","001079","Chiesanuova",null,"ATO PUGLIA",1601,1601,"S"]
["Piemonte","Chiomonte","Chiomonte (TO) ","Autorità d'ambito n. 3 Torinese",103,103,"Torino","TO","001080","Chiomonte",null,"ATO BASILICATA",1701,1701,"S"]
["Piemonte","Chiusa di San Michele","Chiusa di San Michele (TO) ","Autorità d'ambito n. 3 Torinese",103,103,"Torino","TO","001081","Chiusa di San Michele",null,"ATO UNICO REGIONE CALABRIA",1806,1806,"S"]
["Piemonte","Chivasso","Chivasso (TO) ","Autorità d'ambito n. 3 Torinese",103,103,"Torino","TO","001082","Chivasso",null,"ATO 1 - PALERMO",1901,1901,"S"]
["Piemonte","Ciconio","Ciconio (TO) ","Autorità d'ambito n. 3 Torinese",103,103,"Torino","TO","001083","Ciconio",null,"ATO 2 - CATANIA",1902,1902,"S"]
["Piemonte","Cintano","Cintano (TO) ","Autorità d'ambito n. 3 Torinese",103,103,"Torino","TO","001084","Cintano",null,"ATO 3 - MESSINA",1903,1903,"S"]
["Piemonte","Cinzano","Cinzano (TO) ","Autorità d'ambito n. 3 Torinese",103,103,"Torino","TO","001085","Cinzano",null,"ATO 4 - RAGUSA",1904,1904,"S"]
["Piemonte","Ciriè","Ciriè (TO) ","Autorità d'ambito n. 3 Torinese",103,103,"Torino","TO","001086","Ciriè",null,"ATO 5 - ENNA",1905,1905,"S"]
["Piemonte","Claviere","Claviere (TO) ","Autorità d'ambito n. 3 Torinese",103,103,"Torino","TO","001087","Claviere",null,"ATO 6 - CALTANISSETTA",1906,1906,"S"]
["Piemonte","Coassolo Torinese","Coassolo Torinese (TO) ","Autorità d'ambito n. 3 Torinese",103,103,"Torino","TO","001088","Coassolo Torinese",null,"ATO 7 - TRAPANI",1907,1907,"S"]
["Piemonte","Coazze","Coazze (TO) ","Autorità d'ambito n. 3 Torinese",103,103,"Torino","TO","001089","Coazze",null,"ATO 8 - SIRACUSA",1908,1908,"S"]
["Piemonte","Collegno","Collegno (TO) ","Autorità d'ambito n. 3 Torinese",103,103,"Torino","TO","001090","Collegno",null,"ATO 9 - AGRIGENTO",1909,1909,"S"]
["Piemonte","Colleretto Castelnuovo","Colleretto Castelnuovo (TO) ","Autorità d'ambito n. 3 Torinese",103,103,"Torino","TO","001091","Colleretto Castelnuovo",null,"ATO SARDEGNA",2001,2001,"S"]
["Piemonte","Colleretto Giacosa","Colleretto Giacosa (TO) ","Autorità d'ambito n. 3 Torinese",103,103,"Torino","TO","001092","Colleretto Giacosa",null,"ATO - Distretto Irpino",1506,1506,"S"]
["Piemonte","Condove","Condove (TO) ","Autorità d'ambito n. 3 Torinese",103,103,"Torino","TO","001093","Condove",null,"ATO - Distretto Sannita",1507,1507,"S"]
["Piemonte","Corio","Corio (TO) ","Autorità d'ambito n. 3 Torinese",103,103,"Torino","TO","001094","Corio"]
["Piemonte","Cossano Canavese","Cossano Canavese (TO) ","Autorità d'ambito n. 3 Torinese",103,103,"Torino","TO","001095","Cossano Canavese"]
["Piemonte","Cuceglio","Cuceglio (TO) ","Autorità d'ambito n. 3 Torinese",103,103,"Torino","TO","001096","Cuceglio"]
["Piemonte","Cumiana","Cumiana (TO) ","Autorità d'ambito n. 3 Torinese",103,103,"Torino","TO","001097","Cumiana"]
["Piemonte","Cuorgnè","Cuorgnè (TO) ","Autorità d'ambito n. 3 Torinese",103,103,"Torino","TO","001098","Cuorgnè"]
["Piemonte","Druento","Druento (TO) ","Autorità d'ambito n. 3 Torinese",103,103,"Torino","TO","001099","Druento"]
["Piemonte","Exilles","Exilles (TO) ","Autorità d'ambito n. 3 Torinese",103,103,"Torino","TO","001100","Exilles"]
["Piemonte","Favria","Favria (TO) ","Autorità d'ambito n. 3 Torinese",103,103,"Torino","TO","001101","Favria"]
["Piemonte","Feletto","Feletto (TO) ","Autorità d'ambito n. 3 Torinese",103,103,"Torino","TO","001102","Feletto"]
["Piemonte","Fenestrelle","Fenestrelle (TO) ","Autorità d'ambito n. 3 Torinese",103,103,"Torino","TO","001103","Fenestrelle"]
["Piemonte","Fiano","Fiano (TO) ","Autorità d'ambito n. 3 Torinese",103,103,"Torino","TO","001104","Fiano"]
["Piemonte","Fiorano Canavese","Fiorano Canavese (TO) ","Autorità d'ambito n. 3 Torinese",103,103,"Torino","TO","001105","Fiorano Canavese"]
["Piemonte","Foglizzo","Foglizzo (TO) ","Autorità d'ambito n. 3 Torinese",103,103,"Torino","TO","001106","Foglizzo"]
["Piemonte","Forno Canavese","Forno Canavese (TO) ","Autorità d'ambito n. 3 Torinese",103,103,"Torino","TO","001107","Forno Canavese"]
["Piemonte","Frassinetto","Frassinetto (TO) ","Autorità d'ambito n. 3 Torinese",103,103,"Torino","TO","001108","Frassinetto"]
["Piemonte","Front","Front (TO) ","Autorità d'ambito n. 3 Torinese",103,103,"Torino","TO","001109","Front"]
["Piemonte","Frossasco","Frossasco (TO) ","Autorità d'ambito n. 3 Torinese",103,103,"Torino","TO","001110","Frossasco"]
["Piemonte","Garzigliana","Garzigliana (TO) ","Autorità d'ambito n. 3 Torinese",103,103,"Torino","TO","001111","Garzigliana"]
["Piemonte","Gassino Torinese","Gassino Torinese (TO) ","Autorità d'ambito n. 3 Torinese",103,103,"Torino","TO","001112","Gassino Torinese"]
["Piemonte","Germagnano","Germagnano (TO) ","Autorità d'ambito n. 3 Torinese",103,103,"Torino","TO","001113","Germagnano"]
["Piemonte","Giaglione","Giaglione (TO) ","Autorità d'ambito n. 3 Torinese",103,103,"Torino","TO","001114","Giaglione"]
["Piemonte","Giaveno","Giaveno (TO) ","Autorità d'ambito n. 3 Torinese",103,103,"Torino","TO","001115","Giaveno"]
["Piemonte","Givoletto","Givoletto (TO) ","Autorità d'ambito n. 3 Torinese",103,103,"Torino","TO","001116","Givoletto"]
["Piemonte","Gravere","Gravere (TO) ","Autorità d'ambito n. 3 Torinese",103,103,"Torino","TO","001117","Gravere"]
["Piemonte","Groscavallo","Groscavallo (TO) ","Autorità d'ambito n. 3 Torinese",103,103,"Torino","TO","001118","Groscavallo"]
["Piemonte","Grosso","Grosso (TO) ","Autorità d'ambito n. 3 Torinese",103,103,"Torino","TO","001119","Grosso"]
["Piemonte","Grugliasco","Grugliasco (TO) ","Autorità d'ambito n. 3 Torinese",103,103,"Torino","TO","001120","Grugliasco"]
["Piemonte","Ingria","Ingria (TO) ","Autorità d'ambito n. 3 Torinese",103,103,"Torino","TO","001121","Ingria"]
["Piemonte","Inverso Pinasca","Inverso Pinasca (TO) ","Autorità d'ambito n. 3 Torinese",103,103,"Torino","TO","001122","Inverso Pinasca"]
["Piemonte","Isolabella","Isolabella (TO) ","Autorità d'ambito n. 3 Torinese",103,103,"Torino","TO","001123","Isolabella"]
["Piemonte","Issiglio","Issiglio (TO) ","Autorità d'ambito n. 3 Torinese",103,103,"Torino","TO","001124","Issiglio"]
["Piemonte","Ivrea","Ivrea (TO) ","Autorità d'ambito n. 3 Torinese",103,103,"Torino","TO","001125","Ivrea"]
["Piemonte","La Cassa","La Cassa (TO) ","Autorità d'ambito n. 3 Torinese",103,103,"Torino","TO","001126","La Cassa"]
["Piemonte","La Loggia","La Loggia (TO) ","Autorità d'ambito n. 3 Torinese",103,103,"Torino","TO","001127","La Loggia"]
["Piemonte","Lanzo Torinese","Lanzo Torinese (TO) ","Autorità d'ambito n. 3 Torinese",103,103,"Torino","TO","001128","Lanzo Torinese"]
["Piemonte","Lauriano","Lauriano (TO) ","Ente di Governo dell'Ambito n. 5 Astigiano Monferrato",105,105,"Torino","TO","001129","Lauriano"]
["Piemonte","Leini","Leini (TO) ","Autorità d'ambito n. 3 Torinese",103,103,"Torino","TO","001130","Leini"]
["Piemonte","Lemie","Lemie (TO) ","Autorità d'ambito n. 3 Torinese",103,103,"Torino","TO","001131","Lemie"]
["Piemonte","Lessolo","Lessolo (TO) ","Autorità d'ambito n. 3 Torinese",103,103,"Torino","TO","001132","Lessolo"]
["Piemonte","Levone","Levone (TO) ","Autorità d'ambito n. 3 Torinese",103,103,"Torino","TO","001133","Levone"]
["Piemonte","Locana","Locana (TO) ","Autorità d'ambito n. 3 Torinese",103,103,"Torino","TO","001134","Locana"]
["Piemonte","Lombardore","Lombardore (TO) ","Autorità d'ambito n. 3 Torinese",103,103,"Torino","TO","001135","Lombardore"]
["Piemonte","Lombriasco","Lombriasco (TO) ","Autorità d'ambito n. 3 Torinese",103,103,"Torino","TO","001136","Lombriasco"]
["Piemonte","Loranzè","Loranzè (TO) ","Autorità d'ambito n. 3 Torinese",103,103,"Torino","TO","001137","Loranzè"]
["Piemonte","Luserna San Giovanni","Luserna San Giovanni (TO) ","Autorità d'ambito n. 3 Torinese",103,103,"Torino","TO","001139","Luserna San Giovanni"]
["Piemonte","Lusernetta","Lusernetta (TO) ","Autorità d'ambito n. 3 Torinese",103,103,"Torino","TO","001140","Lusernetta"]
["Piemonte","Lusigliè","Lusigliè (TO) ","Autorità d'ambito n. 3 Torinese",103,103,"Torino","TO","001141","Lusigliè"]
["Piemonte","Macello","Macello (TO) ","Autorità d'ambito n. 3 Torinese",103,103,"Torino","TO","001142","Macello"]
["Piemonte","Maglione","Maglione (TO) ","Autorità d'ambito n. 3 Torinese",103,103,"Torino","TO","001143","Maglione"]
["Piemonte","Marentino","Marentino (TO) ","Autorità d'ambito n. 3 Torinese",103,103,"Torino","TO","001144","Marentino"]
["Piemonte","Massello","Massello (TO) ","Autorità d'ambito n. 3 Torinese",103,103,"Torino","TO","001145","Massello"]
["Piemonte","Mathi","Mathi (TO) ","Autorità d'ambito n. 3 Torinese",103,103,"Torino","TO","001146","Mathi"]
["Piemonte","Mattie","Mattie (TO) ","Autorità d'ambito n. 3 Torinese",103,103,"Torino","TO","001147","Mattie"]
["Piemonte","Mazzè","Mazzè (TO) ","Autorità d'ambito n. 3 Torinese",103,103,"Torino","TO","001148","Mazzè"]
["Piemonte","Meana di Susa","Meana di Susa (TO) ","Autorità d'ambito n. 3 Torinese",103,103,"Torino","TO","001149","Meana di Susa"]
["Piemonte","Mercenasco","Mercenasco (TO) ","Autorità d'ambito n. 3 Torinese",103,103,"Torino","TO","001150","Mercenasco"]
["Piemonte","Mezzenile","Mezzenile (TO) ","Autorità d'ambito n. 3 Torinese",103,103,"Torino","TO","001152","Mezzenile"]
["Piemonte","Mombello di Torino","Mombello di Torino (TO) ","Autorità d'ambito n. 3 Torinese",103,103,"Torino","TO","001153","Mombello di Torino"]
["Piemonte","Mompantero","Mompantero (TO) ","Autorità d'ambito n. 3 Torinese",103,103,"Torino","TO","001154","Mompantero"]
["Piemonte","Monastero di Lanzo","Monastero di Lanzo (TO) ","Autorità d'ambito n. 3 Torinese",103,103,"Torino","TO","001155","Monastero di Lanzo"]
["Piemonte","Moncalieri","Moncalieri (TO) ","Autorità d'ambito n. 3 Torinese",103,103,"Torino","TO","001156","Moncalieri"]
["Piemonte","Moncenisio","Moncenisio (TO) ","Autorità d'ambito n. 3 Torinese",103,103,"Torino","TO","001157","Moncenisio"]
["Piemonte","Montaldo Torinese","Montaldo Torinese (TO) ","Autorità d'ambito n. 3 Torinese",103,103,"Torino","TO","001158","Montaldo Torinese"]
["Piemonte","Montalenghe","Montalenghe (TO) ","Autorità d'ambito n. 3 Torinese",103,103,"Torino","TO","001159","Montalenghe"]
["Piemonte","Montalto Dora","Montalto Dora (TO) ","Autorità d'ambito n. 3 Torinese",103,103,"Torino","TO","001160","Montalto Dora"]
["Piemonte","Montanaro","Montanaro (TO) ","Autorità d'ambito n. 3 Torinese",103,103,"Torino","TO","001161","Montanaro"]
["Piemonte","Monteu da Po","Monteu da Po (TO) ","Ente di Governo dell'Ambito n. 5 Astigiano Monferrato",105,105,"Torino","TO","001162","Monteu da Po"]
["Piemonte","Moriondo Torinese","Moriondo Torinese (TO) ","Ente di Governo dell'Ambito n. 5 Astigiano Monferrato",105,105,"Torino","TO","001163","Moriondo Torinese"]
["Piemonte","Nichelino","Nichelino (TO) ","Autorità d'ambito n. 3 Torinese",103,103,"Torino","TO","001164","Nichelino"]
["Piemonte","Noasca","Noasca (TO) ","Autorità d'ambito n. 3 Torinese",103,103,"Torino","TO","001165","Noasca"]
["Piemonte","Nole","Nole (TO) ","Autorità d'ambito n. 3 Torinese",103,103,"Torino","TO","001166","Nole"]
["Piemonte","Nomaglio","Nomaglio (TO) ","Autorità d'ambito n. 3 Torinese",103,103,"Torino","TO","001167","Nomaglio"]
["Piemonte","None","None (TO) ","Autorità d'ambito n. 3 Torinese",103,103,"Torino","TO","001168","None"]
["Piemonte","Novalesa","Novalesa (TO) ","Autorità d'ambito n. 3 Torinese",103,103,"Torino","TO","001169","Novalesa"]
["Piemonte","Oglianico","Oglianico (TO) ","Autorità d'ambito n. 3 Torinese",103,103,"Torino","TO","001170","Oglianico"]
["Piemonte","Orbassano","Orbassano (TO) ","Autorità d'ambito n. 3 Torinese",103,103,"Torino","TO","001171","Orbassano"]
["Piemonte","Orio Canavese","Orio Canavese (TO) ","Autorità d'ambito n. 3 Torinese",103,103,"Torino","TO","001172","Orio Canavese"]
["Piemonte","Osasco","Osasco (TO) ","Autorità d'ambito n. 3 Torinese",103,103,"Torino","TO","001173","Osasco"]
["Piemonte","Osasio","Osasio (TO) ","Autorità d'ambito n. 3 Torinese",103,103,"Torino","TO","001174","Osasio"]
["Piemonte","Oulx","Oulx (TO) ","Autorità d'ambito n. 3 Torinese",103,103,"Torino","TO","001175","Oulx"]
["Piemonte","Ozegna","Ozegna (TO) ","Autorità d'ambito n. 3 Torinese",103,103,"Torino","TO","001176","Ozegna"]
["Piemonte","Palazzo Canavese","Palazzo Canavese (TO) ","Autorità d'ambito n. 3 Torinese",103,103,"Torino","TO","001177","Palazzo Canavese"]
["Piemonte","Pancalieri","Pancalieri (TO) ","Autorità d'ambito n. 3 Torinese",103,103,"Torino","TO","001178","Pancalieri"]
["Piemonte","Parella","Parella (TO) ","Autorità d'ambito n. 3 Torinese",103,103,"Torino","TO","001179","Parella"]
["Piemonte","Pavarolo","Pavarolo (TO) ","Autorità d'ambito n. 3 Torinese",103,103,"Torino","TO","001180","Pavarolo"]
["Piemonte","Pavone Canavese","Pavone Canavese (TO) ","Autorità d'ambito n. 3 Torinese",103,103,"Torino","TO","001181","Pavone Canavese"]
["Piemonte","Pecetto Torinese","Pecetto Torinese (TO) ","Autorità d'ambito n. 3 Torinese",103,103,"Torino","TO","001183","Pecetto Torinese"]
["Piemonte","Perosa Argentina","Perosa Argentina (TO) ","Autorità d'ambito n. 3 Torinese",103,103,"Torino","TO","001184","Perosa Argentina"]
["Piemonte","Perosa Canavese","Perosa Canavese (TO) ","Autorità d'ambito n. 3 Torinese",103,103,"Torino","TO","001185","Perosa Canavese"]
["Piemonte","Perrero","Perrero (TO) ","Autorità d'ambito n. 3 Torinese",103,103,"Torino","TO","001186","Perrero"]
["Piemonte","Pertusio","Pertusio (TO) ","Autorità d'ambito n. 3 Torinese",103,103,"Torino","TO","001187","Pertusio"]
["Piemonte","Pessinetto","Pessinetto (TO) ","Autorità d'ambito n. 3 Torinese",103,103,"Torino","TO","001188","Pessinetto"]
["Piemonte","Pianezza","Pianezza (TO) ","Autorità d'ambito n. 3 Torinese",103,103,"Torino","TO","001189","Pianezza"]
["Piemonte","Pinasca","Pinasca (TO) ","Autorità d'ambito n. 3 Torinese",103,103,"Torino","TO","001190","Pinasca"]
["Piemonte","Pinerolo","Pinerolo (TO) ","Autorità d'ambito n. 3 Torinese",103,103,"Torino","TO","001191","Pinerolo"]
["Piemonte","Pino Torinese","Pino Torinese (TO) ","Autorità d'ambito n. 3 Torinese",103,103,"Torino","TO","001192","Pino Torinese"]
["Piemonte","Piobesi Torinese","Piobesi Torinese (TO) ","Autorità d'ambito n. 3 Torinese",103,103,"Torino","TO","001193","Piobesi Torinese"]
["Piemonte","Piossasco","Piossasco (TO) ","Autorità d'ambito n. 3 Torinese",103,103,"Torino","TO","001194","Piossasco"]
["Piemonte","Piscina","Piscina (TO) ","Autorità d'ambito n. 3 Torinese",103,103,"Torino","TO","001195","Piscina"]
["Piemonte","Piverone","Piverone (TO) ","ATO 2 Biellese, Vercellese e Casalese",102,102,"Torino","TO","001196","Piverone"]
["Piemonte","Poirino","Poirino (TO) ","Autorità d'ambito n. 3 Torinese",103,103,"Torino","TO","001197","Poirino"]
["Piemonte","Pomaretto","Pomaretto (TO) ","Autorità d'ambito n. 3 Torinese",103,103,"Torino","TO","001198","Pomaretto"]
["Piemonte","Pont Canavese","Pont Canavese (TO) ","Autorità d'ambito n. 3 Torinese",103,103,"Torino","TO","001199","Pont Canavese"]
["Piemonte","Porte","Porte (TO) ","Autorità d'ambito n. 3 Torinese",103,103,"Torino","TO","001200","Porte"]
["Piemonte","Pragelato","Pragelato (TO) ","Autorità d'ambito n. 3 Torinese",103,103,"Torino","TO","001201","Pragelato"]
["Piemonte","Prali","Prali (TO) ","Autorità d'ambito n. 3 Torinese",103,103,"Torino","TO","001202","Prali"]
["Piemonte","Pralormo","Pralormo (TO) ","Autorità d'ambito n. 3 Torinese",103,103,"Torino","TO","001203","Pralormo"]
["Piemonte","Pramollo","Pramollo (TO) ","Autorità d'ambito n. 3 Torinese",103,103,"Torino","TO","001204","Pramollo"]
["Piemonte","Prarostino","Prarostino (TO) ","Autorità d'ambito n. 3 Torinese",103,103,"Torino","TO","001205","Prarostino"]
["Piemonte","Prascorsano","Prascorsano (TO) ","Autorità d'ambito n. 3 Torinese",103,103,"Torino","TO","001206","Prascorsano"]
["Piemonte","Pratiglione","Pratiglione (TO) ","Autorità d'ambito n. 3 Torinese",103,103,"Torino","TO","001207","Pratiglione"]
["Piemonte","Quagliuzzo","Quagliuzzo (TO) ","Autorità d'ambito n. 3 Torinese",103,103,"Torino","TO","001208","Quagliuzzo"]
["Piemonte","Quassolo","Quassolo (TO) ","Autorità d'ambito n. 3 Torinese",103,103,"Torino","TO","001209","Quassolo"]
["Piemonte","Quincinetto","Quincinetto (TO) ","Autorità d'ambito n. 3 Torinese",103,103,"Torino","TO","001210","Quincinetto"]
["Piemonte","Reano","Reano (TO) ","Autorità d'ambito n. 3 Torinese",103,103,"Torino","TO","001211","Reano"]
["Piemonte","Ribordone","Ribordone (TO) ","Autorità d'ambito n. 3 Torinese",103,103,"Torino","TO","001212","Ribordone"]
["Piemonte","Rivalba","Rivalba (TO) ","Autorità d'ambito n. 3 Torinese",103,103,"Torino","TO","001213","Rivalba"]
["Piemonte","Rivalta di Torino","Rivalta di Torino (TO) ","Autorità d'ambito n. 3 Torinese",103,103,"Torino","TO","001214","Rivalta di Torino"]
["Piemonte","Riva presso Chieri","Riva presso Chieri (TO) ","Autorità d'ambito n. 3 Torinese",103,103,"Torino","TO","001215","Riva presso Chieri"]
["Piemonte","Rivara","Rivara (TO) ","Autorità d'ambito n. 3 Torinese",103,103,"Torino","TO","001216","Rivara"]
["Piemonte","Rivarolo Canavese","Rivarolo Canavese (TO) ","Autorità d'ambito n. 3 Torinese",103,103,"Torino","TO","001217","Rivarolo Canavese"]
["Piemonte","Rivarossa","Rivarossa (TO) ","Autorità d'ambito n. 3 Torinese",103,103,"Torino","TO","001218","Rivarossa"]
["Piemonte","Rivoli","Rivoli (TO) ","Autorità d'ambito n. 3 Torinese",103,103,"Torino","TO","001219","Rivoli"]
["Piemonte","Robassomero","Robassomero (TO) ","Autorità d'ambito n. 3 Torinese",103,103,"Torino","TO","001220","Robassomero"]
["Piemonte","Rocca Canavese","Rocca Canavese (TO) ","Autorità d'ambito n. 3 Torinese",103,103,"Torino","TO","001221","Rocca Canavese"]
["Piemonte","Roletto","Roletto (TO) ","Autorità d'ambito n. 3 Torinese",103,103,"Torino","TO","001222","Roletto"]
["Piemonte","Romano Canavese","Romano Canavese (TO) ","Autorità d'ambito n. 3 Torinese",103,103,"Torino","TO","001223","Romano Canavese"]
["Piemonte","Ronco Canavese","Ronco Canavese (TO) ","Autorità d'ambito n. 3 Torinese",103,103,"Torino","TO","001224","Ronco Canavese"]
["Piemonte","Rondissone","Rondissone (TO) ","Autorità d'ambito n. 3 Torinese",103,103,"Torino","TO","001225","Rondissone"]
["Piemonte","Rorà","Rorà (TO) ","Autorità d'ambito n. 3 Torinese",103,103,"Torino","TO","001226","Rorà"]
["Piemonte","Roure","Roure (TO) ","Autorità d'ambito n. 3 Torinese",103,103,"Torino","TO","001227","Roure"]
["Piemonte","Rosta","Rosta (TO) ","Autorità d'ambito n. 3 Torinese",103,103,"Torino","TO","001228","Rosta"]
["Piemonte","Rubiana","Rubiana (TO) ","Autorità d'ambito n. 3 Torinese",103,103,"Torino","TO","001229","Rubiana"]
["Piemonte","Rueglio","Rueglio (TO) ","Autorità d'ambito n. 3 Torinese",103,103,"Torino","TO","001230","Rueglio"]
["Piemonte","Salassa","Salassa (TO) ","Autorità d'ambito n. 3 Torinese",103,103,"Torino","TO","001231","Salassa"]
["Piemonte","Salbertrand","Salbertrand (TO) ","Autorità d'ambito n. 3 Torinese",103,103,"Torino","TO","001232","Salbertrand"]
["Piemonte","Salerano Canavese","Salerano Canavese (TO) ","Autorità d'ambito n. 3 Torinese",103,103,"Torino","TO","001233","Salerano Canavese"]
["Piemonte","Salza di Pinerolo","Salza di Pinerolo (TO) ","Autorità d'ambito n. 3 Torinese",103,103,"Torino","TO","001234","Salza di Pinerolo"]
["Piemonte","Samone","Samone (TO) ","Autorità d'ambito n. 3 Torinese",103,103,"Torino","TO","001235","Samone"]
["Piemonte","San Benigno Canavese","San Benigno Canavese (TO) ","Autorità d'ambito n. 3 Torinese",103,103,"Torino","TO","001236","San Benigno Canavese"]
["Piemonte","San Carlo Canavese","San Carlo Canavese (TO) ","Autorità d'ambito n. 3 Torinese",103,103,"Torino","TO","001237","San Carlo Canavese"]
["Piemonte","San Colombano Belmonte","San Colombano Belmonte (TO) ","Autorità d'ambito n. 3 Torinese",103,103,"Torino","TO","001238","San Colombano Belmonte"]
["Piemonte","San Didero","San Didero (TO) ","Autorità d'ambito n. 3 Torinese",103,103,"Torino","TO","001239","San Didero"]
["Piemonte","San Francesco al Campo","San Francesco al Campo (TO) ","Autorità d'ambito n. 3 Torinese",103,103,"Torino","TO","001240","San Francesco al Campo"]
["Piemonte","Sangano","Sangano (TO) ","Autorità d'ambito n. 3 Torinese",103,103,"Torino","TO","001241","Sangano"]
["Piemonte","San Germano Chisone","San Germano Chisone (TO) ","Autorità d'ambito n. 3 Torinese",103,103,"Torino","TO","001242","San Germano Chisone"]
["Piemonte","San Gillio","San Gillio (TO) ","Autorità d'ambito n. 3 Torinese",103,103,"Torino","TO","001243","San Gillio"]
["Piemonte","San Giorgio Canavese","San Giorgio Canavese (TO) ","Autorità d'ambito n. 3 Torinese",103,103,"Torino","TO","001244","San Giorgio Canavese"]
["Piemonte","San Giorio di Susa","San Giorio di Susa (TO) ","Autorità d'ambito n. 3 Torinese",103,103,"Torino","TO","001245","San Giorio di Susa"]
["Piemonte","San Giusto Canavese","San Giusto Canavese (TO) ","Autorità d'ambito n. 3 Torinese",103,103,"Torino","TO","001246","San Giusto Canavese"]
["Piemonte","San Martino Canavese","San Martino Canavese (TO) ","Autorità d'ambito n. 3 Torinese",103,103,"Torino","TO","001247","San Martino Canavese"]
["Piemonte","San Maurizio Canavese","San Maurizio Canavese (TO) ","Autorità d'ambito n. 3 Torinese",103,103,"Torino","TO","001248","San Maurizio Canavese"]
["Piemonte","San Mauro Torinese","San Mauro Torinese (TO) ","Autorità d'ambito n. 3 Torinese",103,103,"Torino","TO","001249","San Mauro Torinese"]
["Piemonte","San Pietro Val Lemina","San Pietro Val Lemina (TO) ","Autorità d'ambito n. 3 Torinese",103,103,"Torino","TO","001250","San Pietro Val Lemina"]
["Piemonte","San Ponso","San Ponso (TO) ","Autorità d'ambito n. 3 Torinese",103,103,"Torino","TO","001251","San Ponso"]
["Piemonte","San Raffaele Cimena","San Raffaele Cimena (TO) ","Autorità d'ambito n. 3 Torinese",103,103,"Torino","TO","001252","San Raffaele Cimena"]
["Piemonte","San Sebastiano da Po","San Sebastiano da Po (TO) ","Autorità d'ambito n. 3 Torinese",103,103,"Torino","TO","001253","San Sebastiano da Po"]
["Piemonte","San Secondo di Pinerolo","San Secondo di Pinerolo (TO) ","Autorità d'ambito n. 3 Torinese",103,103,"Torino","TO","001254","San Secondo di Pinerolo"]
["Piemonte","Sant'Ambrogio di Torino","Sant'Ambrogio di Torino (TO) ","Autorità d'ambito n. 3 Torinese",103,103,"Torino","TO","001255","Sant'Ambrogio di Torino"]
["Piemonte","Sant'Antonino di Susa","Sant'Antonino di Susa (TO) ","Autorità d'ambito n. 3 Torinese",103,103,"Torino","TO","001256","Sant'Antonino di Susa"]
["Piemonte","Santena","Santena (TO) ","Autorità d'ambito n. 3 Torinese",103,103,"Torino","TO","001257","Santena"]
["Piemonte","Sauze di Cesana","Sauze di Cesana (TO) ","Autorità d'ambito n. 3 Torinese",103,103,"Torino","TO","001258","Sauze di Cesana"]
["Piemonte","Sauze d'Oulx","Sauze d'Oulx (TO) ","Autorità d'ambito n. 3 Torinese",103,103,"Torino","TO","001259","Sauze d'Oulx"]
["Piemonte","Scalenghe","Scalenghe (TO) ","Autorità d'ambito n. 3 Torinese",103,103,"Torino","TO","001260","Scalenghe"]
["Piemonte","Scarmagno","Scarmagno (TO) ","Autorità d'ambito n. 3 Torinese",103,103,"Torino","TO","001261","Scarmagno"]
["Piemonte","Sciolze","Sciolze (TO) ","Autorità d'ambito n. 3 Torinese",103,103,"Torino","TO","001262","Sciolze"]
["Piemonte","Sestriere","Sestriere (TO) ","Autorità d'ambito n. 3 Torinese",103,103,"Torino","TO","001263","Sestriere"]
["Piemonte","Settimo Rottaro","Settimo Rottaro (TO) ","Autorità d'ambito n. 3 Torinese",103,103,"Torino","TO","001264","Settimo Rottaro"]
["Piemonte","Settimo Torinese","Settimo Torinese (TO) ","Autorità d'ambito n. 3 Torinese",103,103,"Torino","TO","001265","Settimo Torinese"]
["Piemonte","Settimo Vittone","Settimo Vittone (TO) ","Autorità d'ambito n. 3 Torinese",103,103,"Torino","TO","001266","Settimo Vittone"]
["Piemonte","Sparone","Sparone (TO) ","Autorità d'ambito n. 3 Torinese",103,103,"Torino","TO","001267","Sparone"]
["Piemonte","Strambinello","Strambinello (TO) ","Autorità d'ambito n. 3 Torinese",103,103,"Torino","TO","001268","Strambinello"]
["Piemonte","Strambino","Strambino (TO) ","Autorità d'ambito n. 3 Torinese",103,103,"Torino","TO","001269","Strambino"]
["Piemonte","Susa","Susa (TO) ","Autorità d'ambito n. 3 Torinese",103,103,"Torino","TO","001270","Susa"]
["Piemonte","Tavagnasco","Tavagnasco (TO) ","Autorità d'ambito n. 3 Torinese",103,103,"Torino","TO","001271","Tavagnasco"]
["Piemonte","Torino","Torino (TO) ","Autorità d'ambito n. 3 Torinese",103,103,"Torino","TO","001272","Torino"]
["Piemonte","Torrazza Piemonte","Torrazza Piemonte (TO) ","Autorità d'ambito n. 3 Torinese",103,103,"Torino","TO","001273","Torrazza Piemonte"]
["Piemonte","Torre Canavese","Torre Canavese (TO) ","Autorità d'ambito n. 3 Torinese",103,103,"Torino","TO","001274","Torre Canavese"]
["Piemonte","Torre Pellice","Torre Pellice (TO) ","Autorità d'ambito n. 3 Torinese",103,103,"Torino","TO","001275","Torre Pellice"]
["Piemonte","Trana","Trana (TO) ","Autorità d'ambito n. 3 Torinese",103,103,"Torino","TO","001276","Trana"]
["Piemonte","Traversella","Traversella (TO) ","Autorità d'ambito n. 3 Torinese",103,103,"Torino","TO","001278","Traversella"]
["Piemonte","Traves","Traves (TO) ","Autorità d'ambito n. 3 Torinese",103,103,"Torino","TO","001279","Traves"]
["Piemonte","Trofarello","Trofarello (TO) ","Autorità d'ambito n. 3 Torinese",103,103,"Torino","TO","001280","Trofarello"]
["Piemonte","Usseaux","Usseaux (TO) ","Autorità d'ambito n. 3 Torinese",103,103,"Torino","TO","001281","Usseaux"]
["Piemonte","Usseglio","Usseglio (TO) ","Autorità d'ambito n. 3 Torinese",103,103,"Torino","TO","001282","Usseglio"]
["Piemonte","Vaie","Vaie (TO) ","Autorità d'ambito n. 3 Torinese",103,103,"Torino","TO","001283","Vaie"]
["Piemonte","Val della Torre","Val della Torre (TO) ","Autorità d'ambito n. 3 Torinese",103,103,"Torino","TO","001284","Val della Torre"]
["Piemonte","Valgioie","Valgioie (TO) ","Autorità d'ambito n. 3 Torinese",103,103,"Torino","TO","001285","Valgioie"]
["Piemonte","Vallo Torinese","Vallo Torinese (TO) ","Autorità d'ambito n. 3 Torinese",103,103,"Torino","TO","001286","Vallo Torinese"]
["Piemonte","Valperga","Valperga (TO) ","Autorità d'ambito n. 3 Torinese",103,103,"Torino","TO","001287","Valperga"]
["Piemonte","Valprato Soana","Valprato Soana (TO) ","Autorità d'ambito n. 3 Torinese",103,103,"Torino","TO","001288","Valprato Soana"]
["Piemonte","Varisella","Varisella (TO) ","Autorità d'ambito n. 3 Torinese",103,103,"Torino","TO","001289","Varisella"]
["Piemonte","Vauda Canavese","Vauda Canavese (TO) ","Autorità d'ambito n. 3 Torinese",103,103,"Torino","TO","001290","Vauda Canavese"]
["Piemonte","Venaus","Venaus (TO) ","Autorità d'ambito n. 3 Torinese",103,103,"Torino","TO","001291","Venaus"]
["Piemonte","Venaria Reale","Venaria Reale (TO) ","Autorità d'ambito n. 3 Torinese",103,103,"Torino","TO","001292","Venaria Reale"]
["Piemonte","Verolengo","Verolengo (TO) ","Autorità d'ambito n. 3 Torinese",103,103,"Torino","TO","001293","Verolengo"]
["Piemonte","Verrua Savoia","Verrua Savoia (TO) ","Ente di Governo dell'Ambito n. 5 Astigiano Monferrato",105,105,"Torino","TO","001294","Verrua Savoia"]
["Piemonte","Vestignè","Vestignè (TO) ","Autorità d'ambito n. 3 Torinese",103,103,"Torino","TO","001295","Vestignè"]
["Piemonte","Vialfrè","Vialfrè (TO) ","Autorità d'ambito n. 3 Torinese",103,103,"Torino","TO","001296","Vialfrè"]
["Piemonte","Vidracco","Vidracco (TO) ","Autorità d'ambito n. 3 Torinese",103,103,"Torino","TO","001298","Vidracco"]
["Piemonte","Vigone","Vigone (TO) ","Autorità d'ambito n. 3 Torinese",103,103,"Torino","TO","001299","Vigone"]
["Piemonte","Villafranca Piemonte","Villafranca Piemonte (TO) ","Autorità d'ambito n. 3 Torinese",103,103,"Torino","TO","001300","Villafranca Piemonte"]
["Piemonte","Villanova Canavese","Villanova Canavese (TO) ","Autorità d'ambito n. 3 Torinese",103,103,"Torino","TO","001301","Villanova Canavese"]
["Piemonte","Villarbasse","Villarbasse (TO) ","Autorità d'ambito n. 3 Torinese",103,103,"Torino","TO","001302","Villarbasse"]
["Piemonte","Villar Dora","Villar Dora (TO) ","Autorità d'ambito n. 3 Torinese",103,103,"Torino","TO","001303","Villar Dora"]
["Piemonte","Villareggia","Villareggia (TO) ","Autorità d'ambito n. 3 Torinese",103,103,"Torino","TO","001304","Villareggia"]
["Piemonte","Villar Focchiardo","Villar Focchiardo (TO) ","Autorità d'ambito n. 3 Torinese",103,103,"Torino","TO","001305","Villar Focchiardo"]
["Piemonte","Villar Pellice","Villar Pellice (TO) ","Autorità d'ambito n. 3 Torinese",103,103,"Torino","TO","001306","Villar Pellice"]
["Piemonte","Villar Perosa","Villar Perosa (TO) ","Autorità d'ambito n. 3 Torinese",103,103,"Torino","TO","001307","Villar Perosa"]
["Piemonte","Villastellone","Villastellone (TO) ","Autorità d'ambito n. 3 Torinese",103,103,"Torino","TO","001308","Villastellone"]
["Piemonte","Vinovo","Vinovo (TO) ","Autorità d'ambito n. 3 Torinese",103,103,"Torino","TO","001309","Vinovo"]
["Piemonte","Virle Piemonte","Virle Piemonte (TO) ","Autorità d'ambito n. 3 Torinese",103,103,"Torino","TO","001310","Virle Piemonte"]
["Piemonte","Vische","Vische (TO) ","Autorità d'ambito n. 3 Torinese",103,103,"Torino","TO","001311","Vische"]
["Piemonte","Vistrorio","Vistrorio (TO) ","Autorità d'ambito n. 3 Torinese",103,103,"Torino","TO","001312","Vistrorio"]
["Piemonte","Viù","Viù (TO) ","Autorità d'ambito n. 3 Torinese",103,103,"Torino","TO","001313","Viù"]
["Piemonte","Volpiano","Volpiano (TO) ","Autorità d'ambito n. 3 Torinese",103,103,"Torino","TO","001314","Volpiano"]
["Piemonte","Volvera","Volvera (TO) ","Autorità d'ambito n. 3 Torinese",103,103,"Torino","TO","001315","Volvera"]
["Piemonte","Mappano","Mappano (TO) ","Autorità d'ambito n. 3 Torinese",103,103,"Torino","TO","001316","Mappano"]
["Piemonte","Val di Chy","Val di Chy (TO) ","Autorità d'ambito n. 3 Torinese",103,103,"Torino","TO","001317","Val di Chy"]
["Piemonte","Valchiusa","Valchiusa (TO) ","Autorità d'ambito n. 3 Torinese",103,103,"Torino","TO","001318","Valchiusa"]
["Piemonte","Alagna Valsesia","Alagna Valsesia (VC) ","ATO 2 Biellese, Vercellese e Casalese",102,102,"Vercelli","VC","002002","Alagna Valsesia"]
["Piemonte","Albano Vercellese","Albano Vercellese (VC) ","ATO 2 Biellese, Vercellese e Casalese",102,102,"Vercelli","VC","002003","Albano Vercellese"]
["Piemonte","Alice Castello","Alice Castello (VC) ","ATO 2 Biellese, Vercellese e Casalese",102,102,"Vercelli","VC","002004","Alice Castello"]
["Piemonte","Arborio","Arborio (VC) ","ATO 2 Biellese, Vercellese e Casalese",102,102,"Vercelli","VC","002006","Arborio"]
["Piemonte","Asigliano Vercellese","Asigliano Vercellese (VC) ","ATO 2 Biellese, Vercellese e Casalese",102,102,"Vercelli","VC","002007","Asigliano Vercellese"]
["Piemonte","Balmuccia","Balmuccia (VC) ","ATO 2 Biellese, Vercellese e Casalese",102,102,"Vercelli","VC","002008","Balmuccia"]
["Piemonte","Balocco","Balocco (VC) ","ATO 2 Biellese, Vercellese e Casalese",102,102,"Vercelli","VC","002009","Balocco"]
["Piemonte","Bianzè","Bianzè (VC) ","ATO 2 Biellese, Vercellese e Casalese",102,102,"Vercelli","VC","002011","Bianzè"]
["Piemonte","Boccioleto","Boccioleto (VC) ","ATO 2 Biellese, Vercellese e Casalese",102,102,"Vercelli","VC","002014","Boccioleto"]
["Piemonte","Borgo d'Ale","Borgo d'Ale (VC) ","ATO 2 Biellese, Vercellese e Casalese",102,102,"Vercelli","VC","002015","Borgo d'Ale"]
["Piemonte","Borgosesia","Borgosesia (VC) ","ATO 2 Biellese, Vercellese e Casalese",102,102,"Vercelli","VC","002016","Borgosesia"]
["Piemonte","Borgo Vercelli","Borgo Vercelli (VC) ","ATO 2 Biellese, Vercellese e Casalese",102,102,"Vercelli","VC","002017","Borgo Vercelli"]
["Piemonte","Buronzo","Buronzo (VC) ","ATO 2 Biellese, Vercellese e Casalese",102,102,"Vercelli","VC","002021","Buronzo"]
["Piemonte","Campertogno","Campertogno (VC) ","ATO 2 Biellese, Vercellese e Casalese",102,102,"Vercelli","VC","002025","Campertogno"]
["Piemonte","Carcoforo","Carcoforo (VC) ","ATO 2 Biellese, Vercellese e Casalese",102,102,"Vercelli","VC","002029","Carcoforo"]
["Piemonte","Caresana","Caresana (VC) ","ATO 2 Biellese, Vercellese e Casalese",102,102,"Vercelli","VC","002030","Caresana"]
["Piemonte","Caresanablot","Caresanablot (VC) ","ATO 2 Biellese, Vercellese e Casalese",102,102,"Vercelli","VC","002031","Caresanablot"]
["Piemonte","Carisio","Carisio (VC) ","ATO 2 Biellese, Vercellese e Casalese",102,102,"Vercelli","VC","002032","Carisio"]
["Piemonte","Casanova Elvo","Casanova Elvo (VC) ","ATO 2 Biellese, Vercellese e Casalese",102,102,"Vercelli","VC","002033","Casanova Elvo"]
["Piemonte","San Giacomo Vercellese","San Giacomo Vercellese (VC) ","ATO 2 Biellese, Vercellese e Casalese",102,102,"Vercelli","VC","002035","San Giacomo Vercellese"]
["Piemonte","Cervatto","Cervatto (VC) ","ATO 2 Biellese, Vercellese e Casalese",102,102,"Vercelli","VC","002041","Cervatto"]
["Piemonte","Cigliano","Cigliano (VC) ","ATO 2 Biellese, Vercellese e Casalese",102,102,"Vercelli","VC","002042","Cigliano"]
["Piemonte","Civiasco","Civiasco (VC) ","ATO 2 Biellese, Vercellese e Casalese",102,102,"Vercelli","VC","002043","Civiasco"]
["Piemonte","Collobiano","Collobiano (VC) ","ATO 2 Biellese, Vercellese e Casalese",102,102,"Vercelli","VC","002045","Collobiano"]
["Piemonte","Costanzana","Costanzana (VC) ","ATO 2 Biellese, Vercellese e Casalese",102,102,"Vercelli","VC","002047","Costanzana"]
["Piemonte","Cravagliana","Cravagliana (VC) ","ATO 2 Biellese, Vercellese e Casalese",102,102,"Vercelli","VC","002048","Cravagliana"]
["Piemonte","Crescentino","Crescentino (VC) ","ATO 2 Biellese, Vercellese e Casalese",102,102,"Vercelli","VC","002049","Crescentino"]
["Piemonte","Crova","Crova (VC) ","ATO 2 Biellese, Vercellese e Casalese",102,102,"Vercelli","VC","002052","Crova"]
["Piemonte","Desana","Desana (VC) ","ATO 2 Biellese, Vercellese e Casalese",102,102,"Vercelli","VC","002054","Desana"]
["Piemonte","Fobello","Fobello (VC) ","ATO 2 Biellese, Vercellese e Casalese",102,102,"Vercelli","VC","002057","Fobello"]
["Piemonte","Fontanetto Po","Fontanetto Po (VC) ","ATO 2 Biellese, Vercellese e Casalese",102,102,"Vercelli","VC","002058","Fontanetto Po"]
["Piemonte","Formigliana","Formigliana (VC) ","ATO 2 Biellese, Vercellese e Casalese",102,102,"Vercelli","VC","002059","Formigliana"]
["Piemonte","Gattinara","Gattinara (VC) ","ATO 2 Biellese, Vercellese e Casalese",102,102,"Vercelli","VC","002061","Gattinara"]
["Piemonte","Ghislarengo","Ghislarengo (VC) ","ATO 2 Biellese, Vercellese e Casalese",102,102,"Vercelli","VC","002062","Ghislarengo"]
["Piemonte","Greggio","Greggio (VC) ","ATO 2 Biellese, Vercellese e Casalese",102,102,"Vercelli","VC","002065","Greggio"]
["Piemonte","Guardabosone","Guardabosone (VC) ","ATO 2 Biellese, Vercellese e Casalese",102,102,"Vercelli","VC","002066","Guardabosone"]
["Piemonte","Lamporo","Lamporo (VC) ","ATO 2 Biellese, Vercellese e Casalese",102,102,"Vercelli","VC","002067","Lamporo"]
["Piemonte","Lenta","Lenta (VC) ","ATO 2 Biellese, Vercellese e Casalese",102,102,"Vercelli","VC","002068","Lenta"]
["Piemonte","Lignana","Lignana (VC) ","ATO 2 Biellese, Vercellese e Casalese",102,102,"Vercelli","VC","002070","Lignana"]
["Piemonte","Livorno Ferraris","Livorno Ferraris (VC) ","ATO 2 Biellese, Vercellese e Casalese",102,102,"Vercelli","VC","002071","Livorno Ferraris"]
["Piemonte","Lozzolo","Lozzolo (VC) ","ATO 2 Biellese, Vercellese e Casalese",102,102,"Vercelli","VC","002072","Lozzolo"]
["Piemonte","Mollia","Mollia (VC) ","ATO 2 Biellese, Vercellese e Casalese",102,102,"Vercelli","VC","002078","Mollia"]
["Piemonte","Moncrivello","Moncrivello (VC) ","ATO 2 Biellese, Vercellese e Casalese",102,102,"Vercelli","VC","002079","Moncrivello"]
["Piemonte","Motta de' Conti","Motta de' Conti (VC) ","ATO 2 Biellese, Vercellese e Casalese",102,102,"Vercelli","VC","002082","Motta de' Conti"]
["Piemonte","Olcenengo","Olcenengo (VC) ","ATO 2 Biellese, Vercellese e Casalese",102,102,"Vercelli","VC","002088","Olcenengo"]
["Piemonte","Oldenico","Oldenico (VC) ","ATO 2 Biellese, Vercellese e Casalese",102,102,"Vercelli","VC","002089","Oldenico"]
["Piemonte","Palazzolo Vercellese","Palazzolo Vercellese (VC) ","ATO 2 Biellese, Vercellese e Casalese",102,102,"Vercelli","VC","002090","Palazzolo Vercellese"]
["Piemonte","Pertengo","Pertengo (VC) ","ATO 2 Biellese, Vercellese e Casalese",102,102,"Vercelli","VC","002091","Pertengo"]
["Piemonte","Pezzana","Pezzana (VC) ","ATO 2 Biellese, Vercellese e Casalese",102,102,"Vercelli","VC","002093","Pezzana"]
["Piemonte","Pila","Pila (VC) ","ATO 2 Biellese, Vercellese e Casalese",102,102,"Vercelli","VC","002096","Pila"]
["Piemonte","Piode","Piode (VC) ","ATO 2 Biellese, Vercellese e Casalese",102,102,"Vercelli","VC","002097","Piode"]
["Piemonte","Postua","Postua (VC) ","ATO 2 Biellese, Vercellese e Casalese",102,102,"Vercelli","VC","002102","Postua"]
["Piemonte","Prarolo","Prarolo (VC) ","ATO 2 Biellese, Vercellese e Casalese",102,102,"Vercelli","VC","002104","Prarolo"]
["Piemonte","Quarona","Quarona (VC) ","ATO 2 Biellese, Vercellese e Casalese",102,102,"Vercelli","VC","002107","Quarona"]
["Piemonte","Quinto Vercellese","Quinto Vercellese (VC) ","ATO 2 Biellese, Vercellese e Casalese",102,102,"Vercelli","VC","002108","Quinto Vercellese"]
["Piemonte","Rassa","Rassa (VC) ","ATO 2 Biellese, Vercellese e Casalese",102,102,"Vercelli","VC","002110","Rassa"]
["Piemonte","Rimella","Rimella (VC) ","ATO 2 Biellese, Vercellese e Casalese",102,102,"Vercelli","VC","002113","Rimella"]
["Piemonte","Rive","Rive (VC) ","ATO 2 Biellese, Vercellese e Casalese",102,102,"Vercelli","VC","002115","Rive"]
["Piemonte","Roasio","Roasio (VC) ","ATO 2 Biellese, Vercellese e Casalese",102,102,"Vercelli","VC","002116","Roasio"]
["Piemonte","Ronsecco","Ronsecco (VC) ","ATO 2 Biellese, Vercellese e Casalese",102,102,"Vercelli","VC","002118","Ronsecco"]
["Piemonte","Rossa","Rossa (VC) ","ATO 2 Biellese, Vercellese e Casalese",102,102,"Vercelli","VC","002121","Rossa"]
["Piemonte","Rovasenda","Rovasenda (VC) ","ATO 2 Biellese, Vercellese e Casalese",102,102,"Vercelli","VC","002122","Rovasenda"]
["Piemonte","Salasco","Salasco (VC) ","ATO 2 Biellese, Vercellese e Casalese",102,102,"Vercelli","VC","002126","Salasco"]
["Piemonte","Sali Vercellese","Sali Vercellese (VC) ","ATO 2 Biellese, Vercellese e Casalese",102,102,"Vercelli","VC","002127","Sali Vercellese"]
["Piemonte","Saluggia","Saluggia (VC) ","ATO 2 Biellese, Vercellese e Casalese",102,102,"Vercelli","VC","002128","Saluggia"]
["Piemonte","San Germano Vercellese","San Germano Vercellese (VC) ","ATO 2 Biellese, Vercellese e Casalese",102,102,"Vercelli","VC","002131","San Germano Vercellese"]
["Piemonte","Santhià","Santhià (VC) ","ATO 2 Biellese, Vercellese e Casalese",102,102,"Vercelli","VC","002133","Santhià"]
["Piemonte","Scopa","Scopa (VC) ","ATO 2 Biellese, Vercellese e Casalese",102,102,"Vercelli","VC","002134","Scopa"]
["Piemonte","Scopello","Scopello (VC) ","ATO 2 Biellese, Vercellese e Casalese",102,102,"Vercelli","VC","002135","Scopello"]
["Piemonte","Serravalle Sesia","Serravalle Sesia (VC) ","ATO 2 Biellese, Vercellese e Casalese",102,102,"Vercelli","VC","002137","Serravalle Sesia"]
["Piemonte","Stroppiana","Stroppiana (VC) ","ATO 2 Biellese, Vercellese e Casalese",102,102,"Vercelli","VC","002142","Stroppiana"]
["Piemonte","Tricerro","Tricerro (VC) ","ATO 2 Biellese, Vercellese e Casalese",102,102,"Vercelli","VC","002147","Tricerro"]
["Piemonte","Trino","Trino (VC) ","ATO 2 Biellese, Vercellese e Casalese",102,102,"Vercelli","VC","002148","Trino"]
["Piemonte","Tronzano Vercellese","Tronzano Vercellese (VC) ","ATO 2 Biellese, Vercellese e Casalese",102,102,"Vercelli","VC","002150","Tronzano Vercellese"]
["Piemonte","Valduggia","Valduggia (VC) ","ATO 2 Biellese, Vercellese e Casalese",102,102,"Vercelli","VC","002152","Valduggia"]
["Piemonte","Varallo","Varallo (VC) ","ATO 2 Biellese, Vercellese e Casalese",102,102,"Vercelli","VC","002156","Varallo"]
["Piemonte","Vercelli","Vercelli (VC) ","ATO 2 Biellese, Vercellese e Casalese",102,102,"Vercelli","VC","002158","Vercelli"]
["Piemonte","Villarboit","Villarboit (VC) ","ATO 2 Biellese, Vercellese e Casalese",102,102,"Vercelli","VC","002163","Villarboit"]
["Piemonte","Villata","Villata (VC) ","ATO 2 Biellese, Vercellese e Casalese",102,102,"Vercelli","VC","002164","Villata"]
["Piemonte","Vocca","Vocca (VC) ","ATO 2 Biellese, Vercellese e Casalese",102,102,"Vercelli","VC","002166","Vocca"]
["Piemonte","Alto Sermenza","Alto Sermenza (VC) ","ATO 2 Biellese, Vercellese e Casalese",102,102,"Vercelli","VC","002170","Alto Sermenza"]
["Piemonte","Cellio con Breia","Cellio con Breia (VC) ","ATO 2 Biellese, Vercellese e Casalese",102,102,"Vercelli","VC","002171","Cellio con Breia"]
["Piemonte","Agrate Conturbia","Agrate Conturbia (NO) ","ATO 1 Verbano Cusio Ossola e Pianura Novarese",101,101,"Novara","NO","003001","Agrate Conturbia"]
["Piemonte","Ameno","Ameno (NO) ","ATO 1 Verbano Cusio Ossola e Pianura Novarese",101,101,"Novara","NO","003002","Ameno"]
["Piemonte","Armeno","Armeno (NO) ","ATO 1 Verbano Cusio Ossola e Pianura Novarese",101,101,"Novara","NO","003006","Armeno"]
["Piemonte","Arona","Arona (NO) ","ATO 1 Verbano Cusio Ossola e Pianura Novarese",101,101,"Novara","NO","003008","Arona"]
["Piemonte","Barengo","Barengo (NO) ","ATO 1 Verbano Cusio Ossola e Pianura Novarese",101,101,"Novara","NO","003012","Barengo"]
["Piemonte","Bellinzago Novarese","Bellinzago Novarese (NO) ","ATO 1 Verbano Cusio Ossola e Pianura Novarese",101,101,"Novara","NO","003016","Bellinzago Novarese"]
["Piemonte","Biandrate","Biandrate (NO) ","ATO 1 Verbano Cusio Ossola e Pianura Novarese",101,101,"Novara","NO","003018","Biandrate"]
["Piemonte","Boca","Boca (NO) ","ATO 1 Verbano Cusio Ossola e Pianura Novarese",101,101,"Novara","NO","003019","Boca"]
["Piemonte","Bogogno","Bogogno (NO) ","ATO 1 Verbano Cusio Ossola e Pianura Novarese",101,101,"Novara","NO","003021","Bogogno"]
["Piemonte","Bolzano Novarese","Bolzano Novarese (NO) ","ATO 1 Verbano Cusio Ossola e Pianura Novarese",101,101,"Novara","NO","003022","Bolzano Novarese"]
["Piemonte","Borgolavezzaro","Borgolavezzaro (NO) ","ATO 1 Verbano Cusio Ossola e Pianura Novarese",101,101,"Novara","NO","003023","Borgolavezzaro"]
["Piemonte","Borgomanero","Borgomanero (NO) ","ATO 1 Verbano Cusio Ossola e Pianura Novarese",101,101,"Novara","NO","003024","Borgomanero"]
["Piemonte","Borgo Ticino","Borgo Ticino (NO) ","ATO 1 Verbano Cusio Ossola e Pianura Novarese",101,101,"Novara","NO","003025","Borgo Ticino"]
["Piemonte","Briga Novarese","Briga Novarese (NO) ","ATO 1 Verbano Cusio Ossola e Pianura Novarese",101,101,"Novara","NO","003026","Briga Novarese"]
["Piemonte","Briona","Briona (NO) ","ATO 1 Verbano Cusio Ossola e Pianura Novarese",101,101,"Novara","NO","003027","Briona"]
["Piemonte","Caltignaga","Caltignaga (NO) ","ATO 1 Verbano Cusio Ossola e Pianura Novarese",101,101,"Novara","NO","003030","Caltignaga"]
["Piemonte","Cameri","Cameri (NO) ","ATO 1 Verbano Cusio Ossola e Pianura Novarese",101,101,"Novara","NO","003032","Cameri"]
["Piemonte","Carpignano Sesia","Carpignano Sesia (NO) ","ATO 1 Verbano Cusio Ossola e Pianura Novarese",101,101,"Novara","NO","003036","Carpignano Sesia"]
["Piemonte","Casalbeltrame","Casalbeltrame (NO) ","ATO 1 Verbano Cusio Ossola e Pianura Novarese",101,101,"Novara","NO","003037","Casalbeltrame"]
["Piemonte","Casaleggio Novara","Casaleggio Novara (NO) ","ATO 1 Verbano Cusio Ossola e Pianura Novarese",101,101,"Novara","NO","003039","Casaleggio Novara"]
["Piemonte","Casalino","Casalino (NO) ","ATO 1 Verbano Cusio Ossola e Pianura Novarese",101,101,"Novara","NO","003040","Casalino"]
["Piemonte","Casalvolone","Casalvolone (NO) ","ATO 1 Verbano Cusio Ossola e Pianura Novarese",101,101,"Novara","NO","003041","Casalvolone"]
["Piemonte","Castellazzo Novarese","Castellazzo Novarese (NO) ","ATO 1 Verbano Cusio Ossola e Pianura Novarese",101,101,"Novara","NO","003042","Castellazzo Novarese"]
["Piemonte","Castelletto sopra Ticino","Castelletto sopra Ticino (NO) ","ATO 1 Verbano Cusio Ossola e Pianura Novarese",101,101,"Novara","NO","003043","Castelletto sopra Ticino"]
["Piemonte","Cavaglietto","Cavaglietto (NO) ","ATO 1 Verbano Cusio Ossola e Pianura Novarese",101,101,"Novara","NO","003044","Cavaglietto"]
["Piemonte","Cavaglio d'Agogna","Cavaglio d'Agogna (NO) ","ATO 1 Verbano Cusio Ossola e Pianura Novarese",101,101,"Novara","NO","003045","Cavaglio d'Agogna"]
["Piemonte","Cavallirio","Cavallirio (NO) ","ATO 1 Verbano Cusio Ossola e Pianura Novarese",101,101,"Novara","NO","003047","Cavallirio"]
["Piemonte","Cerano","Cerano (NO) ","ATO 1 Verbano Cusio Ossola e Pianura Novarese",101,101,"Novara","NO","003049","Cerano"]
["Piemonte","Colazza","Colazza (NO) ","ATO 1 Verbano Cusio Ossola e Pianura Novarese",101,101,"Novara","NO","003051","Colazza"]
["Piemonte","Comignago","Comignago (NO) ","ATO 1 Verbano Cusio Ossola e Pianura Novarese",101,101,"Novara","NO","003052","Comignago"]
["Piemonte","Cressa","Cressa (NO) ","ATO 1 Verbano Cusio Ossola e Pianura Novarese",101,101,"Novara","NO","003055","Cressa"]
["Piemonte","Cureggio","Cureggio (NO) ","ATO 1 Verbano Cusio Ossola e Pianura Novarese",101,101,"Novara","NO","003058","Cureggio"]
["Piemonte","Divignano","Divignano (NO) ","ATO 1 Verbano Cusio Ossola e Pianura Novarese",101,101,"Novara","NO","003060","Divignano"]
["Piemonte","Dormelletto","Dormelletto (NO) ","ATO 1 Verbano Cusio Ossola e Pianura Novarese",101,101,"Novara","NO","003062","Dormelletto"]
["Piemonte","Fara Novarese","Fara Novarese (NO) ","ATO 1 Verbano Cusio Ossola e Pianura Novarese",101,101,"Novara","NO","003065","Fara Novarese"]
["Piemonte","Fontaneto d'Agogna","Fontaneto d'Agogna (NO) ","ATO 1 Verbano Cusio Ossola e Pianura Novarese",101,101,"Novara","NO","003066","Fontaneto d'Agogna"]
["Piemonte","Galliate","Galliate (NO) ","ATO 1 Verbano Cusio Ossola e Pianura Novarese",101,101,"Novara","NO","003068","Galliate"]
["Piemonte","Garbagna Novarese","Garbagna Novarese (NO) ","ATO 1 Verbano Cusio Ossola e Pianura Novarese",101,101,"Novara","NO","003069","Garbagna Novarese"]
["Piemonte","Gargallo","Gargallo (NO) ","ATO 1 Verbano Cusio Ossola e Pianura Novarese",101,101,"Novara","NO","003070","Gargallo"]
["Piemonte","Ghemme","Ghemme (NO) ","ATO 1 Verbano Cusio Ossola e Pianura Novarese",101,101,"Novara","NO","003073","Ghemme"]
["Piemonte","Gozzano","Gozzano (NO) ","ATO 1 Verbano Cusio Ossola e Pianura Novarese",101,101,"Novara","NO","003076","Gozzano"]
["Piemonte","Granozzo con Monticello","Granozzo con Monticello (NO) ","ATO 1 Verbano Cusio Ossola e Pianura Novarese",101,101,"Novara","NO","003077","Granozzo con Monticello"]
["Piemonte","Grignasco","Grignasco (NO) ","ATO 1 Verbano Cusio Ossola e Pianura Novarese",101,101,"Novara","NO","003079","Grignasco"]
["Piemonte","Invorio","Invorio (NO) ","ATO 1 Verbano Cusio Ossola e Pianura Novarese",101,101,"Novara","NO","003082","Invorio"]
["Piemonte","Landiona","Landiona (NO) ","ATO 1 Verbano Cusio Ossola e Pianura Novarese",101,101,"Novara","NO","003083","Landiona"]
["Piemonte","Lesa","Lesa (NO) ","ATO 1 Verbano Cusio Ossola e Pianura Novarese",101,101,"Novara","NO","003084","Lesa"]
["Piemonte","Maggiora","Maggiora (NO) ","ATO 1 Verbano Cusio Ossola e Pianura Novarese",101,101,"Novara","NO","003088","Maggiora"]
["Piemonte","Mandello Vitta","Mandello Vitta (NO) ","ATO 1 Verbano Cusio Ossola e Pianura Novarese",101,101,"Novara","NO","003090","Mandello Vitta"]
["Piemonte","Marano Ticino","Marano Ticino (NO) ","ATO 1 Verbano Cusio Ossola e Pianura Novarese",101,101,"Novara","NO","003091","Marano Ticino"]
["Piemonte","Massino Visconti","Massino Visconti (NO) ","ATO 1 Verbano Cusio Ossola e Pianura Novarese",101,101,"Novara","NO","003093","Massino Visconti"]
["Piemonte","Meina","Meina (NO) ","ATO 1 Verbano Cusio Ossola e Pianura Novarese",101,101,"Novara","NO","003095","Meina"]
["Piemonte","Mezzomerico","Mezzomerico (NO) ","ATO 1 Verbano Cusio Ossola e Pianura Novarese",101,101,"Novara","NO","003097","Mezzomerico"]
["Piemonte","Miasino","Miasino (NO) ","ATO 1 Verbano Cusio Ossola e Pianura Novarese",101,101,"Novara","NO","003098","Miasino"]
["Piemonte","Momo","Momo (NO) ","ATO 1 Verbano Cusio Ossola e Pianura Novarese",101,101,"Novara","NO","003100","Momo"]
["Piemonte","Nebbiuno","Nebbiuno (NO) ","ATO 1 Verbano Cusio Ossola e Pianura Novarese",101,101,"Novara","NO","003103","Nebbiuno"]
["Piemonte","Nibbiola","Nibbiola (NO) ","ATO 1 Verbano Cusio Ossola e Pianura Novarese",101,101,"Novara","NO","003104","Nibbiola"]
["Piemonte","Novara","Novara (NO) ","ATO 1 Verbano Cusio Ossola e Pianura Novarese",101,101,"Novara","NO","003106","Novara"]
["Piemonte","Oleggio","Oleggio (NO) ","ATO 1 Verbano Cusio Ossola e Pianura Novarese",101,101,"Novara","NO","003108","Oleggio"]
["Piemonte","Oleggio Castello","Oleggio Castello (NO) ","ATO 1 Verbano Cusio Ossola e Pianura Novarese",101,101,"Novara","NO","003109","Oleggio Castello"]
["Piemonte","Orta San Giulio","Orta San Giulio (NO) ","ATO 1 Verbano Cusio Ossola e Pianura Novarese",101,101,"Novara","NO","003112","Orta San Giulio"]
["Piemonte","Paruzzaro","Paruzzaro (NO) ","ATO 1 Verbano Cusio Ossola e Pianura Novarese",101,101,"Novara","NO","003114","Paruzzaro"]
["Piemonte","Pella","Pella (NO) ","ATO 1 Verbano Cusio Ossola e Pianura Novarese",101,101,"Novara","NO","003115","Pella"]
["Piemonte","Pettenasco","Pettenasco (NO) ","ATO 1 Verbano Cusio Ossola e Pianura Novarese",101,101,"Novara","NO","003116","Pettenasco"]
["Piemonte","Pisano","Pisano (NO) ","ATO 1 Verbano Cusio Ossola e Pianura Novarese",101,101,"Novara","NO","003119","Pisano"]
["Piemonte","Pogno","Pogno (NO) ","ATO 1 Verbano Cusio Ossola e Pianura Novarese",101,101,"Novara","NO","003120","Pogno"]
["Piemonte","Pombia","Pombia (NO) ","ATO 1 Verbano Cusio Ossola e Pianura Novarese",101,101,"Novara","NO","003121","Pombia"]
["Piemonte","Prato Sesia","Prato Sesia (NO) ","ATO 1 Verbano Cusio Ossola e Pianura Novarese",101,101,"Novara","NO","003122","Prato Sesia"]
["Piemonte","Recetto","Recetto (NO) ","ATO 1 Verbano Cusio Ossola e Pianura Novarese",101,101,"Novara","NO","003129","Recetto"]
["Piemonte","Romagnano Sesia","Romagnano Sesia (NO) ","ATO 1 Verbano Cusio Ossola e Pianura Novarese",101,101,"Novara","NO","003130","Romagnano Sesia"]
["Piemonte","Romentino","Romentino (NO) ","ATO 1 Verbano Cusio Ossola e Pianura Novarese",101,101,"Novara","NO","003131","Romentino"]
["Piemonte","San Maurizio d'Opaglio","San Maurizio d'Opaglio (NO) ","ATO 1 Verbano Cusio Ossola e Pianura Novarese",101,101,"Novara","NO","003133","San Maurizio d'Opaglio"]
["Piemonte","San Nazzaro Sesia","San Nazzaro Sesia (NO) ","ATO 1 Verbano Cusio Ossola e Pianura Novarese",101,101,"Novara","NO","003134","San Nazzaro Sesia"]
["Piemonte","San Pietro Mosezzo","San Pietro Mosezzo (NO) ","ATO 1 Verbano Cusio Ossola e Pianura Novarese",101,101,"Novara","NO","003135","San Pietro Mosezzo"]
["Piemonte","Sillavengo","Sillavengo (NO) ","ATO 1 Verbano Cusio Ossola e Pianura Novarese",101,101,"Novara","NO","003138","Sillavengo"]
["Piemonte","Sizzano","Sizzano (NO) ","ATO 1 Verbano Cusio Ossola e Pianura Novarese",101,101,"Novara","NO","003139","Sizzano"]
["Piemonte","Soriso","Soriso (NO) ","ATO 1 Verbano Cusio Ossola e Pianura Novarese",101,101,"Novara","NO","003140","Soriso"]
["Piemonte","Sozzago","Sozzago (NO) ","ATO 1 Verbano Cusio Ossola e Pianura Novarese",101,101,"Novara","NO","003141","Sozzago"]
["Piemonte","Suno","Suno (NO) ","ATO 1 Verbano Cusio Ossola e Pianura Novarese",101,101,"Novara","NO","003143","Suno"]
["Piemonte","Terdobbiate","Terdobbiate (NO) ","ATO 1 Verbano Cusio Ossola e Pianura Novarese",101,101,"Novara","NO","003144","Terdobbiate"]
["Piemonte","Tornaco","Tornaco (NO) ","ATO 1 Verbano Cusio Ossola e Pianura Novarese",101,101,"Novara","NO","003146","Tornaco"]
["Piemonte","Trecate","Trecate (NO) ","ATO 1 Verbano Cusio Ossola e Pianura Novarese",101,101,"Novara","NO","003149","Trecate"]
["Piemonte","Vaprio d'Agogna","Vaprio d'Agogna (NO) ","ATO 1 Verbano Cusio Ossola e Pianura Novarese",101,101,"Novara","NO","003153","Vaprio d'Agogna"]
["Piemonte","Varallo Pombia","Varallo Pombia (NO) ","ATO 1 Verbano Cusio Ossola e Pianura Novarese",101,101,"Novara","NO","003154","Varallo Pombia"]
["Piemonte","Vespolate","Vespolate (NO) ","ATO 1 Verbano Cusio Ossola e Pianura Novarese",101,101,"Novara","NO","003158","Vespolate"]
["Piemonte","Vicolungo","Vicolungo (NO) ","ATO 1 Verbano Cusio Ossola e Pianura Novarese",101,101,"Novara","NO","003159","Vicolungo"]
["Piemonte","Vinzaglio","Vinzaglio (NO) ","ATO 2 Biellese, Vercellese e Casalese",102,102,"Novara","NO","003164","Vinzaglio"]
["Piemonte","Gattico-Veruno","Gattico-Veruno (NO) ","ATO 1 Verbano Cusio Ossola e Pianura Novarese",101,101,"Novara","NO","003166","Gattico-Veruno"]
["Piemonte","Acceglio","Acceglio (CN) ","Ente di governo d'Ambito n.4 Cuneese per i Servizi Idrici",104,104,"Cuneo","CN","004001","Acceglio"]
["Piemonte","Aisone","Aisone (CN) ","Ente di governo d'Ambito n.4 Cuneese per i Servizi Idrici",104,104,"Cuneo","CN","004002","Aisone"]
["Piemonte","Alba","Alba (CN) ","Ente di governo d'Ambito n.4 Cuneese per i Servizi Idrici",104,104,"Cuneo","CN","004003","Alba"]
["Piemonte","Albaretto della Torre","Albaretto della Torre (CN) ","Ente di governo d'Ambito n.4 Cuneese per i Servizi Idrici",104,104,"Cuneo","CN","004004","Albaretto della Torre"]
["Piemonte","Alto","Alto (CN) ","Ente di governo d'Ambito n.4 Cuneese per i Servizi Idrici",104,104,"Cuneo","CN","004005","Alto"]
["Piemonte","Argentera","Argentera (CN) ","Ente di governo d'Ambito n.4 Cuneese per i Servizi Idrici",104,104,"Cuneo","CN","004006","Argentera"]
["Piemonte","Arguello","Arguello (CN) ","Ente di governo d'Ambito n.4 Cuneese per i Servizi Idrici",104,104,"Cuneo","CN","004007","Arguello"]
["Piemonte","Bagnasco","Bagnasco (CN) ","Ente di governo d'Ambito n.4 Cuneese per i Servizi Idrici",104,104,"Cuneo","CN","004008","Bagnasco"]
["Piemonte","Bagnolo Piemonte","Bagnolo Piemonte (CN) ","Ente di governo d'Ambito n.4 Cuneese per i Servizi Idrici",104,104,"Cuneo","CN","004009","Bagnolo Piemonte"]
["Piemonte","Baldissero d'Alba","Baldissero d'Alba (CN) ","Ente di governo d'Ambito n.4 Cuneese per i Servizi Idrici",104,104,"Cuneo","CN","004010","Baldissero d'Alba"]
["Piemonte","Barbaresco","Barbaresco (CN) ","Ente di governo d'Ambito n.4 Cuneese per i Servizi Idrici",104,104,"Cuneo","CN","004011","Barbaresco"]
["Piemonte","Barge","Barge (CN) ","Ente di governo d'Ambito n.4 Cuneese per i Servizi Idrici",104,104,"Cuneo","CN","004012","Barge"]
["Piemonte","Barolo","Barolo (CN) ","Ente di governo d'Ambito n.4 Cuneese per i Servizi Idrici",104,104,"Cuneo","CN","004013","Barolo"]
["Piemonte","Bastia Mondovì","Bastia Mondovì (CN) ","Ente di governo d'Ambito n.4 Cuneese per i Servizi Idrici",104,104,"Cuneo","CN","004014","Bastia Mondovì"]
["Piemonte","Battifollo","Battifollo (CN) ","Ente di governo d'Ambito n.4 Cuneese per i Servizi Idrici",104,104,"Cuneo","CN","004015","Battifollo"]
["Piemonte","Beinette","Beinette (CN) ","Ente di governo d'Ambito n.4 Cuneese per i Servizi Idrici",104,104,"Cuneo","CN","004016","Beinette"]
["Piemonte","Bellino","Bellino (CN) ","Ente di governo d'Ambito n.4 Cuneese per i Servizi Idrici",104,104,"Cuneo","CN","004017","Bellino"]
["Piemonte","Belvedere Langhe","Belvedere Langhe (CN) ","Ente di governo d'Ambito n.4 Cuneese per i Servizi Idrici",104,104,"Cuneo","CN","004018","Belvedere Langhe"]
["Piemonte","Bene Vagienna","Bene Vagienna (CN) ","Ente di governo d'Ambito n.4 Cuneese per i Servizi Idrici",104,104,"Cuneo","CN","004019","Bene Vagienna"]
["Piemonte","Benevello","Benevello (CN) ","Ente di governo d'Ambito n.4 Cuneese per i Servizi Idrici",104,104,"Cuneo","CN","004020","Benevello"]
["Piemonte","Bergolo","Bergolo (CN) ","Ente di governo d'Ambito n.4 Cuneese per i Servizi Idrici",104,104,"Cuneo","CN","004021","Bergolo"]
["Piemonte","Bernezzo","Bernezzo (CN) ","Ente di governo d'Ambito n.4 Cuneese per i Servizi Idrici",104,104,"Cuneo","CN","004022","Bernezzo"]
["Piemonte","Bonvicino","Bonvicino (CN) ","Ente di governo d'Ambito n.4 Cuneese per i Servizi Idrici",104,104,"Cuneo","CN","004023","Bonvicino"]
["Piemonte","Borgomale","Borgomale (CN) ","Ente di governo d'Ambito n.4 Cuneese per i Servizi Idrici",104,104,"Cuneo","CN","004024","Borgomale"]
["Piemonte","Borgo San Dalmazzo","Borgo San Dalmazzo (CN) ","Ente di governo d'Ambito n.4 Cuneese per i Servizi Idrici",104,104,"Cuneo","CN","004025","Borgo San Dalmazzo"]
["Piemonte","Bosia","Bosia (CN) ","Ente di governo d'Ambito n.4 Cuneese per i Servizi Idrici",104,104,"Cuneo","CN","004026","Bosia"]
["Piemonte","Bossolasco","Bossolasco (CN) ","Ente di governo d'Ambito n.4 Cuneese per i Servizi Idrici",104,104,"Cuneo","CN","004027","Bossolasco"]
["Piemonte","Boves","Boves (CN) ","Ente di governo d'Ambito n.4 Cuneese per i Servizi Idrici",104,104,"Cuneo","CN","004028","Boves"]
["Piemonte","Bra","Bra (CN) ","Ente di governo d'Ambito n.4 Cuneese per i Servizi Idrici",104,104,"Cuneo","CN","004029","Bra"]
["Piemonte","Briaglia","Briaglia (CN) ","Ente di governo d'Ambito n.4 Cuneese per i Servizi Idrici",104,104,"Cuneo","CN","004030","Briaglia"]
["Piemonte","Briga Alta","Briga Alta (CN) ","Ente di governo d'Ambito n.4 Cuneese per i Servizi Idrici",104,104,"Cuneo","CN","004031","Briga Alta"]
["Piemonte","Brondello","Brondello (CN) ","Ente di governo d'Ambito n.4 Cuneese per i Servizi Idrici",104,104,"Cuneo","CN","004032","Brondello"]
["Piemonte","Brossasco","Brossasco (CN) ","Ente di governo d'Ambito n.4 Cuneese per i Servizi Idrici",104,104,"Cuneo","CN","004033","Brossasco"]
["Piemonte","Busca","Busca (CN) ","Ente di governo d'Ambito n.4 Cuneese per i Servizi Idrici",104,104,"Cuneo","CN","004034","Busca"]
["Piemonte","Camerana","Camerana (CN) ","Ente di governo d'Ambito n.4 Cuneese per i Servizi Idrici",104,104,"Cuneo","CN","004035","Camerana"]
["Piemonte","Canale","Canale (CN) ","Ente di governo d'Ambito n.4 Cuneese per i Servizi Idrici",104,104,"Cuneo","CN","004037","Canale"]
["Piemonte","Canosio","Canosio (CN) ","Ente di governo d'Ambito n.4 Cuneese per i Servizi Idrici",104,104,"Cuneo","CN","004038","Canosio"]
["Piemonte","Caprauna","Caprauna (CN) ","Ente di governo d'Ambito n.4 Cuneese per i Servizi Idrici",104,104,"Cuneo","CN","004039","Caprauna"]
["Piemonte","Caraglio","Caraglio (CN) ","Ente di governo d'Ambito n.4 Cuneese per i Servizi Idrici",104,104,"Cuneo","CN","004040","Caraglio"]
["Piemonte","Caramagna Piemonte","Caramagna Piemonte (CN) ","Ente di governo d'Ambito n.4 Cuneese per i Servizi Idrici",104,104,"Cuneo","CN","004041","Caramagna Piemonte"]
["Piemonte","Cardè","Cardè (CN) ","Ente di governo d'Ambito n.4 Cuneese per i Servizi Idrici",104,104,"Cuneo","CN","004042","Cardè"]
["Piemonte","Carrù","Carrù (CN) ","Ente di governo d'Ambito n.4 Cuneese per i Servizi Idrici",104,104,"Cuneo","CN","004043","Carrù"]
["Piemonte","Cartignano","Cartignano (CN) ","Ente di governo d'Ambito n.4 Cuneese per i Servizi Idrici",104,104,"Cuneo","CN","004044","Cartignano"]
["Piemonte","Casalgrasso","Casalgrasso (CN) ","Ente di governo d'Ambito n.4 Cuneese per i Servizi Idrici",104,104,"Cuneo","CN","004045","Casalgrasso"]
["Piemonte","Castagnito","Castagnito (CN) ","Ente di governo d'Ambito n.4 Cuneese per i Servizi Idrici",104,104,"Cuneo","CN","004046","Castagnito"]
["Piemonte","Casteldelfino","Casteldelfino (CN) ","Ente di governo d'Ambito n.4 Cuneese per i Servizi Idrici",104,104,"Cuneo","CN","004047","Casteldelfino"]
["Piemonte","Castelletto Stura","Castelletto Stura (CN) ","Ente di governo d'Ambito n.4 Cuneese per i Servizi Idrici",104,104,"Cuneo","CN","004049","Castelletto Stura"]
["Piemonte","Castelletto Uzzone","Castelletto Uzzone (CN) ","Ente di governo d'Ambito n.4 Cuneese per i Servizi Idrici",104,104,"Cuneo","CN","004050","Castelletto Uzzone"]
["Piemonte","Castellinaldo d'Alba","Castellinaldo d'Alba (CN) ","Ente di governo d'Ambito n.4 Cuneese per i Servizi Idrici",104,104,"Cuneo","CN","004051","Castellinaldo d'Alba"]
["Piemonte","Castellino Tanaro","Castellino Tanaro (CN) ","Ente di governo d'Ambito n.4 Cuneese per i Servizi Idrici",104,104,"Cuneo","CN","004052","Castellino Tanaro"]
["Piemonte","Castelmagno","Castelmagno (CN) ","Ente di governo d'Ambito n.4 Cuneese per i Servizi Idrici",104,104,"Cuneo","CN","004053","Castelmagno"]
["Piemonte","Castelnuovo di Ceva","Castelnuovo di Ceva (CN) ","Ente di governo d'Ambito n.4 Cuneese per i Servizi Idrici",104,104,"Cuneo","CN","004054","Castelnuovo di Ceva"]
["Piemonte","Castiglione Falletto","Castiglione Falletto (CN) ","Ente di governo d'Ambito n.4 Cuneese per i Servizi Idrici",104,104,"Cuneo","CN","004055","Castiglione Falletto"]
["Piemonte","Castiglione Tinella","Castiglione Tinella (CN) ","Ente di governo d'Ambito n.4 Cuneese per i Servizi Idrici",104,104,"Cuneo","CN","004056","Castiglione Tinella"]
["Piemonte","Castino","Castino (CN) ","Ente di governo d'Ambito n.4 Cuneese per i Servizi Idrici",104,104,"Cuneo","CN","004057","Castino"]
["Piemonte","Cavallerleone","Cavallerleone (CN) ","Ente di governo d'Ambito n.4 Cuneese per i Servizi Idrici",104,104,"Cuneo","CN","004058","Cavallerleone"]
["Piemonte","Cavallermaggiore","Cavallermaggiore (CN) ","Ente di governo d'Ambito n.4 Cuneese per i Servizi Idrici",104,104,"Cuneo","CN","004059","Cavallermaggiore"]
["Piemonte","Celle di Macra","Celle di Macra (CN) ","Ente di governo d'Ambito n.4 Cuneese per i Servizi Idrici",104,104,"Cuneo","CN","004060","Celle di Macra"]
["Piemonte","Centallo","Centallo (CN) ","Ente di governo d'Ambito n.4 Cuneese per i Servizi Idrici",104,104,"Cuneo","CN","004061","Centallo"]
["Piemonte","Ceresole Alba","Ceresole Alba (CN) ","Ente di governo d'Ambito n.4 Cuneese per i Servizi Idrici",104,104,"Cuneo","CN","004062","Ceresole Alba"]
["Piemonte","Cerretto Langhe","Cerretto Langhe (CN) ","Ente di governo d'Ambito n.4 Cuneese per i Servizi Idrici",104,104,"Cuneo","CN","004063","Cerretto Langhe"]
["Piemonte","Cervasca","Cervasca (CN) ","Ente di governo d'Ambito n.4 Cuneese per i Servizi Idrici",104,104,"Cuneo","CN","004064","Cervasca"]
["Piemonte","Cervere","Cervere (CN) ","Ente di governo d'Ambito n.4 Cuneese per i Servizi Idrici",104,104,"Cuneo","CN","004065","Cervere"]
["Piemonte","Ceva","Ceva (CN) ","Ente di governo d'Ambito n.4 Cuneese per i Servizi Idrici",104,104,"Cuneo","CN","004066","Ceva"]
["Piemonte","Cherasco","Cherasco (CN) ","Ente di governo d'Ambito n.4 Cuneese per i Servizi Idrici",104,104,"Cuneo","CN","004067","Cherasco"]
["Piemonte","Chiusa di Pesio","Chiusa di Pesio (CN) ","Ente di governo d'Ambito n.4 Cuneese per i Servizi Idrici",104,104,"Cuneo","CN","004068","Chiusa di Pesio"]
["Piemonte","Cigliè","Cigliè (CN) ","Ente di governo d'Ambito n.4 Cuneese per i Servizi Idrici",104,104,"Cuneo","CN","004069","Cigliè"]
["Piemonte","Cissone","Cissone (CN) ","Ente di governo d'Ambito n.4 Cuneese per i Servizi Idrici",104,104,"Cuneo","CN","004070","Cissone"]
["Piemonte","Clavesana","Clavesana (CN) ","Ente di governo d'Ambito n.4 Cuneese per i Servizi Idrici",104,104,"Cuneo","CN","004071","Clavesana"]
["Piemonte","Corneliano d'Alba","Corneliano d'Alba (CN) ","Ente di governo d'Ambito n.4 Cuneese per i Servizi Idrici",104,104,"Cuneo","CN","004072","Corneliano d'Alba"]
["Piemonte","Cortemilia","Cortemilia (CN) ","Ente di governo d'Ambito n.4 Cuneese per i Servizi Idrici",104,104,"Cuneo","CN","004073","Cortemilia"]
["Piemonte","Cossano Belbo","Cossano Belbo (CN) ","Ente di governo d'Ambito n.4 Cuneese per i Servizi Idrici",104,104,"Cuneo","CN","004074","Cossano Belbo"]
["Piemonte","Costigliole Saluzzo","Costigliole Saluzzo (CN) ","Ente di governo d'Ambito n.4 Cuneese per i Servizi Idrici",104,104,"Cuneo","CN","004075","Costigliole Saluzzo"]
["Piemonte","Cravanzana","Cravanzana (CN) ","Ente di governo d'Ambito n.4 Cuneese per i Servizi Idrici",104,104,"Cuneo","CN","004076","Cravanzana"]
["Piemonte","Crissolo","Crissolo (CN) ","Ente di governo d'Ambito n.4 Cuneese per i Servizi Idrici",104,104,"Cuneo","CN","004077","Crissolo"]
["Piemonte","Cuneo","Cuneo (CN) ","Ente di governo d'Ambito n.4 Cuneese per i Servizi Idrici",104,104,"Cuneo","CN","004078","Cuneo"]
["Piemonte","Demonte","Demonte (CN) ","Ente di governo d'Ambito n.4 Cuneese per i Servizi Idrici",104,104,"Cuneo","CN","004079","Demonte"]
["Piemonte","Diano d'Alba","Diano d'Alba (CN) ","Ente di governo d'Ambito n.4 Cuneese per i Servizi Idrici",104,104,"Cuneo","CN","004080","Diano d'Alba"]
["Piemonte","Dogliani","Dogliani (CN) ","Ente di governo d'Ambito n.4 Cuneese per i Servizi Idrici",104,104,"Cuneo","CN","004081","Dogliani"]
["Piemonte","Dronero","Dronero (CN) ","Ente di governo d'Ambito n.4 Cuneese per i Servizi Idrici",104,104,"Cuneo","CN","004082","Dronero"]
["Piemonte","Elva","Elva (CN) ","Ente di governo d'Ambito n.4 Cuneese per i Servizi Idrici",104,104,"Cuneo","CN","004083","Elva"]
["Piemonte","Entracque","Entracque (CN) ","Ente di governo d'Ambito n.4 Cuneese per i Servizi Idrici",104,104,"Cuneo","CN","004084","Entracque"]
["Piemonte","Envie","Envie (CN) ","Ente di governo d'Ambito n.4 Cuneese per i Servizi Idrici",104,104,"Cuneo","CN","004085","Envie"]
["Piemonte","Farigliano","Farigliano (CN) ","Ente di governo d'Ambito n.4 Cuneese per i Servizi Idrici",104,104,"Cuneo","CN","004086","Farigliano"]
["Piemonte","Faule","Faule (CN) ","Ente di governo d'Ambito n.4 Cuneese per i Servizi Idrici",104,104,"Cuneo","CN","004087","Faule"]
["Piemonte","Feisoglio","Feisoglio (CN) ","Ente di governo d'Ambito n.4 Cuneese per i Servizi Idrici",104,104,"Cuneo","CN","004088","Feisoglio"]
["Piemonte","Fossano","Fossano (CN) ","Ente di governo d'Ambito n.4 Cuneese per i Servizi Idrici",104,104,"Cuneo","CN","004089","Fossano"]
["Piemonte","Frabosa Soprana","Frabosa Soprana (CN) ","Ente di governo d'Ambito n.4 Cuneese per i Servizi Idrici",104,104,"Cuneo","CN","004090","Frabosa Soprana"]
["Piemonte","Frabosa Sottana","Frabosa Sottana (CN) ","Ente di governo d'Ambito n.4 Cuneese per i Servizi Idrici",104,104,"Cuneo","CN","004091","Frabosa Sottana"]
["Piemonte","Frassino","Frassino (CN) ","Ente di governo d'Ambito n.4 Cuneese per i Servizi Idrici",104,104,"Cuneo","CN","004092","Frassino"]
["Piemonte","Gaiola","Gaiola (CN) ","Ente di governo d'Ambito n.4 Cuneese per i Servizi Idrici",104,104,"Cuneo","CN","004093","Gaiola"]
["Piemonte","Gambasca","Gambasca (CN) ","Ente di governo d'Ambito n.4 Cuneese per i Servizi Idrici",104,104,"Cuneo","CN","004094","Gambasca"]
["Piemonte","Garessio","Garessio (CN) ","Ente di governo d'Ambito n.4 Cuneese per i Servizi Idrici",104,104,"Cuneo","CN","004095","Garessio"]
["Piemonte","Genola","Genola (CN) ","Ente di governo d'Ambito n.4 Cuneese per i Servizi Idrici",104,104,"Cuneo","CN","004096","Genola"]
["Piemonte","Gorzegno","Gorzegno (CN) ","Ente di governo d'Ambito n.4 Cuneese per i Servizi Idrici",104,104,"Cuneo","CN","004097","Gorzegno"]
["Piemonte","Gottasecca","Gottasecca (CN) ","Ente di governo d'Ambito n.4 Cuneese per i Servizi Idrici",104,104,"Cuneo","CN","004098","Gottasecca"]
["Piemonte","Govone","Govone (CN) ","Ente di governo d'Ambito n.4 Cuneese per i Servizi Idrici",104,104,"Cuneo","CN","004099","Govone"]
["Piemonte","Grinzane Cavour","Grinzane Cavour (CN) ","Ente di governo d'Ambito n.4 Cuneese per i Servizi Idrici",104,104,"Cuneo","CN","004100","Grinzane Cavour"]
["Piemonte","Guarene","Guarene (CN) ","Ente di governo d'Ambito n.4 Cuneese per i Servizi Idrici",104,104,"Cuneo","CN","004101","Guarene"]
["Piemonte","Igliano","Igliano (CN) ","Ente di governo d'Ambito n.4 Cuneese per i Servizi Idrici",104,104,"Cuneo","CN","004102","Igliano"]
["Piemonte","Isasca","Isasca (CN) ","Ente di governo d'Ambito n.4 Cuneese per i Servizi Idrici",104,104,"Cuneo","CN","004103","Isasca"]
["Piemonte","Lagnasco","Lagnasco (CN) ","Ente di governo d'Ambito n.4 Cuneese per i Servizi Idrici",104,104,"Cuneo","CN","004104","Lagnasco"]
["Piemonte","La Morra","La Morra (CN) ","Ente di governo d'Ambito n.4 Cuneese per i Servizi Idrici",104,104,"Cuneo","CN","004105","La Morra"]
["Piemonte","Lequio Berria","Lequio Berria (CN) ","Ente di governo d'Ambito n.4 Cuneese per i Servizi Idrici",104,104,"Cuneo","CN","004106","Lequio Berria"]
["Piemonte","Lequio Tanaro","Lequio Tanaro (CN) ","Ente di governo d'Ambito n.4 Cuneese per i Servizi Idrici",104,104,"Cuneo","CN","004107","Lequio Tanaro"]
["Piemonte","Lesegno","Lesegno (CN) ","Ente di governo d'Ambito n.4 Cuneese per i Servizi Idrici",104,104,"Cuneo","CN","004108","Lesegno"]
["Piemonte","Levice","Levice (CN) ","Ente di governo d'Ambito n.4 Cuneese per i Servizi Idrici",104,104,"Cuneo","CN","004109","Levice"]
["Piemonte","Limone Piemonte","Limone Piemonte (CN) ","Ente di governo d'Ambito n.4 Cuneese per i Servizi Idrici",104,104,"Cuneo","CN","004110","Limone Piemonte"]
["Piemonte","Lisio","Lisio (CN) ","Ente di governo d'Ambito n.4 Cuneese per i Servizi Idrici",104,104,"Cuneo","CN","004111","Lisio"]
["Piemonte","Macra","Macra (CN) ","Ente di governo d'Ambito n.4 Cuneese per i Servizi Idrici",104,104,"Cuneo","CN","004112","Macra"]
["Piemonte","Magliano Alfieri","Magliano Alfieri (CN) ","Ente di governo d'Ambito n.4 Cuneese per i Servizi Idrici",104,104,"Cuneo","CN","004113","Magliano Alfieri"]
["Piemonte","Magliano Alpi","Magliano Alpi (CN) ","Ente di governo d'Ambito n.4 Cuneese per i Servizi Idrici",104,104,"Cuneo","CN","004114","Magliano Alpi"]
["Piemonte","Mango","Mango (CN) ","Ente di governo d'Ambito n.4 Cuneese per i Servizi Idrici",104,104,"Cuneo","CN","004115","Mango"]
["Piemonte","Manta","Manta (CN) ","Ente di governo d'Ambito n.4 Cuneese per i Servizi Idrici",104,104,"Cuneo","CN","004116","Manta"]
["Piemonte","Marene","Marene (CN) ","Ente di governo d'Ambito n.4 Cuneese per i Servizi Idrici",104,104,"Cuneo","CN","004117","Marene"]
["Piemonte","Margarita","Margarita (CN) ","Ente di governo d'Ambito n.4 Cuneese per i Servizi Idrici",104,104,"Cuneo","CN","004118","Margarita"]
["Piemonte","Marmora","Marmora (CN) ","Ente di governo d'Ambito n.4 Cuneese per i Servizi Idrici",104,104,"Cuneo","CN","004119","Marmora"]
["Piemonte","Marsaglia","Marsaglia (CN) ","Ente di governo d'Ambito n.4 Cuneese per i Servizi Idrici",104,104,"Cuneo","CN","004120","Marsaglia"]
["Piemonte","Martiniana Po","Martiniana Po (CN) ","Ente di governo d'Ambito n.4 Cuneese per i Servizi Idrici",104,104,"Cuneo","CN","004121","Martiniana Po"]
["Piemonte","Melle","Melle (CN) ","Ente di governo d'Ambito n.4 Cuneese per i Servizi Idrici",104,104,"Cuneo","CN","004122","Melle"]
["Piemonte","Moiola","Moiola (CN) ","Ente di governo d'Ambito n.4 Cuneese per i Servizi Idrici",104,104,"Cuneo","CN","004123","Moiola"]
["Piemonte","Mombarcaro","Mombarcaro (CN) ","Ente di governo d'Ambito n.4 Cuneese per i Servizi Idrici",104,104,"Cuneo","CN","004124","Mombarcaro"]
["Piemonte","Mombasiglio","Mombasiglio (CN) ","Ente di governo d'Ambito n.4 Cuneese per i Servizi Idrici",104,104,"Cuneo","CN","004125","Mombasiglio"]
["Piemonte","Monastero di Vasco","Monastero di Vasco (CN) ","Ente di governo d'Ambito n.4 Cuneese per i Servizi Idrici",104,104,"Cuneo","CN","004126","Monastero di Vasco"]
["Piemonte","Monasterolo Casotto","Monasterolo Casotto (CN) ","Ente di governo d'Ambito n.4 Cuneese per i Servizi Idrici",104,104,"Cuneo","CN","004127","Monasterolo Casotto"]
["Piemonte","Monasterolo di Savigliano","Monasterolo di Savigliano (CN) ","Ente di governo d'Ambito n.4 Cuneese per i Servizi Idrici",104,104,"Cuneo","CN","004128","Monasterolo di Savigliano"]
["Piemonte","Monchiero","Monchiero (CN) ","Ente di governo d'Ambito n.4 Cuneese per i Servizi Idrici",104,104,"Cuneo","CN","004129","Monchiero"]
["Piemonte","Mondovì","Mondovì (CN) ","Ente di governo d'Ambito n.4 Cuneese per i Servizi Idrici",104,104,"Cuneo","CN","004130","Mondovì"]
["Piemonte","Monesiglio","Monesiglio (CN) ","Ente di governo d'Ambito n.4 Cuneese per i Servizi Idrici",104,104,"Cuneo","CN","004131","Monesiglio"]
["Piemonte","Monforte d'Alba","Monforte d'Alba (CN) ","Ente di governo d'Ambito n.4 Cuneese per i Servizi Idrici",104,104,"Cuneo","CN","004132","Monforte d'Alba"]
["Piemonte","Montà","Montà (CN) ","Ente di governo d'Ambito n.4 Cuneese per i Servizi Idrici",104,104,"Cuneo","CN","004133","Montà"]
["Piemonte","Montaldo di Mondovì","Montaldo di Mondovì (CN) ","Ente di governo d'Ambito n.4 Cuneese per i Servizi Idrici",104,104,"Cuneo","CN","004134","Montaldo di Mondovì"]
["Piemonte","Montaldo Roero","Montaldo Roero (CN) ","Ente di governo d'Ambito n.4 Cuneese per i Servizi Idrici",104,104,"Cuneo","CN","004135","Montaldo Roero"]
["Piemonte","Montanera","Montanera (CN) ","Ente di governo d'Ambito n.4 Cuneese per i Servizi Idrici",104,104,"Cuneo","CN","004136","Montanera"]
["Piemonte","Montelupo Albese","Montelupo Albese (CN) ","Ente di governo d'Ambito n.4 Cuneese per i Servizi Idrici",104,104,"Cuneo","CN","004137","Montelupo Albese"]
["Piemonte","Montemale di Cuneo","Montemale di Cuneo (CN) ","Ente di governo d'Ambito n.4 Cuneese per i Servizi Idrici",104,104,"Cuneo","CN","004138","Montemale di Cuneo"]
["Piemonte","Monterosso Grana","Monterosso Grana (CN) ","Ente di governo d'Ambito n.4 Cuneese per i Servizi Idrici",104,104,"Cuneo","CN","004139","Monterosso Grana"]
["Piemonte","Monteu Roero","Monteu Roero (CN) ","Ente di governo d'Ambito n.4 Cuneese per i Servizi Idrici",104,104,"Cuneo","CN","004140","Monteu Roero"]
["Piemonte","Montezemolo","Montezemolo (CN) ","Ente di governo d'Ambito n.4 Cuneese per i Servizi Idrici",104,104,"Cuneo","CN","004141","Montezemolo"]
["Piemonte","Monticello d'Alba","Monticello d'Alba (CN) ","Ente di governo d'Ambito n.4 Cuneese per i Servizi Idrici",104,104,"Cuneo","CN","004142","Monticello d'Alba"]
["Piemonte","Moretta","Moretta (CN) ","Ente di governo d'Ambito n.4 Cuneese per i Servizi Idrici",104,104,"Cuneo","CN","004143","Moretta"]
["Piemonte","Morozzo","Morozzo (CN) ","Ente di governo d'Ambito n.4 Cuneese per i Servizi Idrici",104,104,"Cuneo","CN","004144","Morozzo"]
["Piemonte","Murazzano","Murazzano (CN) ","Ente di governo d'Ambito n.4 Cuneese per i Servizi Idrici",104,104,"Cuneo","CN","004145","Murazzano"]
["Piemonte","Murello","Murello (CN) ","Ente di governo d'Ambito n.4 Cuneese per i Servizi Idrici",104,104,"Cuneo","CN","004146","Murello"]
["Piemonte","Narzole","Narzole (CN) ","Ente di governo d'Ambito n.4 Cuneese per i Servizi Idrici",104,104,"Cuneo","CN","004147","Narzole"]
["Piemonte","Neive","Neive (CN) ","Ente di governo d'Ambito n.4 Cuneese per i Servizi Idrici",104,104,"Cuneo","CN","004148","Neive"]
["Piemonte","Neviglie","Neviglie (CN) ","Ente di governo d'Ambito n.4 Cuneese per i Servizi Idrici",104,104,"Cuneo","CN","004149","Neviglie"]
["Piemonte","Niella Belbo","Niella Belbo (CN) ","Ente di governo d'Ambito n.4 Cuneese per i Servizi Idrici",104,104,"Cuneo","CN","004150","Niella Belbo"]
["Piemonte","Niella Tanaro","Niella Tanaro (CN) ","Ente di governo d'Ambito n.4 Cuneese per i Servizi Idrici",104,104,"Cuneo","CN","004151","Niella Tanaro"]
["Piemonte","Novello","Novello (CN) ","Ente di governo d'Ambito n.4 Cuneese per i Servizi Idrici",104,104,"Cuneo","CN","004152","Novello"]
["Piemonte","Nucetto","Nucetto (CN) ","Ente di governo d'Ambito n.4 Cuneese per i Servizi Idrici",104,104,"Cuneo","CN","004153","Nucetto"]
["Piemonte","Oncino","Oncino (CN) ","Ente di governo d'Ambito n.4 Cuneese per i Servizi Idrici",104,104,"Cuneo","CN","004154","Oncino"]
["Piemonte","Ormea","Ormea (CN) ","Ente di governo d'Ambito n.4 Cuneese per i Servizi Idrici",104,104,"Cuneo","CN","004155","Ormea"]
["Piemonte","Ostana","Ostana (CN) ","Ente di governo d'Ambito n.4 Cuneese per i Servizi Idrici",104,104,"Cuneo","CN","004156","Ostana"]
["Piemonte","Paesana","Paesana (CN) ","Ente di governo d'Ambito n.4 Cuneese per i Servizi Idrici",104,104,"Cuneo","CN","004157","Paesana"]
["Piemonte","Pagno","Pagno (CN) ","Ente di governo d'Ambito n.4 Cuneese per i Servizi Idrici",104,104,"Cuneo","CN","004158","Pagno"]
["Piemonte","Pamparato","Pamparato (CN) ","Ente di governo d'Ambito n.4 Cuneese per i Servizi Idrici",104,104,"Cuneo","CN","004159","Pamparato"]
["Piemonte","Paroldo","Paroldo (CN) ","Ente di governo d'Ambito n.4 Cuneese per i Servizi Idrici",104,104,"Cuneo","CN","004160","Paroldo"]
["Piemonte","Perletto","Perletto (CN) ","Ente di governo d'Ambito n.4 Cuneese per i Servizi Idrici",104,104,"Cuneo","CN","004161","Perletto"]
["Piemonte","Perlo","Perlo (CN) ","Ente di governo d'Ambito n.4 Cuneese per i Servizi Idrici",104,104,"Cuneo","CN","004162","Perlo"]
["Piemonte","Peveragno","Peveragno (CN) ","Ente di governo d'Ambito n.4 Cuneese per i Servizi Idrici",104,104,"Cuneo","CN","004163","Peveragno"]
["Piemonte","Pezzolo Valle Uzzone","Pezzolo Valle Uzzone (CN) ","Ente di governo d'Ambito n.4 Cuneese per i Servizi Idrici",104,104,"Cuneo","CN","004164","Pezzolo Valle Uzzone"]
["Piemonte","Pianfei","Pianfei (CN) ","Ente di governo d'Ambito n.4 Cuneese per i Servizi Idrici",104,104,"Cuneo","CN","004165","Pianfei"]
["Piemonte","Piasco","Piasco (CN) ","Ente di governo d'Ambito n.4 Cuneese per i Servizi Idrici",104,104,"Cuneo","CN","004166","Piasco"]
["Piemonte","Pietraporzio","Pietraporzio (CN) ","Ente di governo d'Ambito n.4 Cuneese per i Servizi Idrici",104,104,"Cuneo","CN","004167","Pietraporzio"]
["Piemonte","Piobesi d'Alba","Piobesi d'Alba (CN) ","Ente di governo d'Ambito n.4 Cuneese per i Servizi Idrici",104,104,"Cuneo","CN","004168","Piobesi d'Alba"]
["Piemonte","Piozzo","Piozzo (CN) ","Ente di governo d'Ambito n.4 Cuneese per i Servizi Idrici",104,104,"Cuneo","CN","004169","Piozzo"]
["Piemonte","Pocapaglia","Pocapaglia (CN) ","Ente di governo d'Ambito n.4 Cuneese per i Servizi Idrici",104,104,"Cuneo","CN","004170","Pocapaglia"]
["Piemonte","Polonghera","Polonghera (CN) ","Ente di governo d'Ambito n.4 Cuneese per i Servizi Idrici",104,104,"Cuneo","CN","004171","Polonghera"]
["Piemonte","Pontechianale","Pontechianale (CN) ","Ente di governo d'Ambito n.4 Cuneese per i Servizi Idrici",104,104,"Cuneo","CN","004172","Pontechianale"]
["Piemonte","Pradleves","Pradleves (CN) ","Ente di governo d'Ambito n.4 Cuneese per i Servizi Idrici",104,104,"Cuneo","CN","004173","Pradleves"]
["Piemonte","Prazzo","Prazzo (CN) ","Ente di governo d'Ambito n.4 Cuneese per i Servizi Idrici",104,104,"Cuneo","CN","004174","Prazzo"]
["Piemonte","Priero","Priero (CN) ","Ente di governo d'Ambito n.4 Cuneese per i Servizi Idrici",104,104,"Cuneo","CN","004175","Priero"]
["Piemonte","Priocca","Priocca (CN) ","Ente di governo d'Ambito n.4 Cuneese per i Servizi Idrici",104,104,"Cuneo","CN","004176","Priocca"]
["Piemonte","Priola","Priola (CN) ","Ente di governo d'Ambito n.4 Cuneese per i Servizi Idrici",104,104,"Cuneo","CN","004177","Priola"]
["Piemonte","Prunetto","Prunetto (CN) ","Ente di governo d'Ambito n.4 Cuneese per i Servizi Idrici",104,104,"Cuneo","CN","004178","Prunetto"]
["Piemonte","Racconigi","Racconigi (CN) ","Ente di governo d'Ambito n.4 Cuneese per i Servizi Idrici",104,104,"Cuneo","CN","004179","Racconigi"]
["Piemonte","Revello","Revello (CN) ","Ente di governo d'Ambito n.4 Cuneese per i Servizi Idrici",104,104,"Cuneo","CN","004180","Revello"]
["Piemonte","Rifreddo","Rifreddo (CN) ","Ente di governo d'Ambito n.4 Cuneese per i Servizi Idrici",104,104,"Cuneo","CN","004181","Rifreddo"]
["Piemonte","Rittana","Rittana (CN) ","Ente di governo d'Ambito n.4 Cuneese per i Servizi Idrici",104,104,"Cuneo","CN","004182","Rittana"]
["Piemonte","Roaschia","Roaschia (CN) ","Ente di governo d'Ambito n.4 Cuneese per i Servizi Idrici",104,104,"Cuneo","CN","004183","Roaschia"]
["Piemonte","Roascio","Roascio (CN) ","Ente di governo d'Ambito n.4 Cuneese per i Servizi Idrici",104,104,"Cuneo","CN","004184","Roascio"]
["Piemonte","Robilante","Robilante (CN) ","Ente di governo d'Ambito n.4 Cuneese per i Servizi Idrici",104,104,"Cuneo","CN","004185","Robilante"]
["Piemonte","Roburent","Roburent (CN) ","Ente di governo d'Ambito n.4 Cuneese per i Servizi Idrici",104,104,"Cuneo","CN","004186","Roburent"]
["Piemonte","Roccabruna","Roccabruna (CN) ","Ente di governo d'Ambito n.4 Cuneese per i Servizi Idrici",104,104,"Cuneo","CN","004187","Roccabruna"]
["Piemonte","Rocca Cigliè","Rocca Cigliè (CN) ","Ente di governo d'Ambito n.4 Cuneese per i Servizi Idrici",104,104,"Cuneo","CN","004188","Rocca Cigliè"]
["Piemonte","Rocca de' Baldi","Rocca de' Baldi (CN) ","Ente di governo d'Ambito n.4 Cuneese per i Servizi Idrici",104,104,"Cuneo","CN","004189","Rocca de' Baldi"]
["Piemonte","Roccaforte Mondovì","Roccaforte Mondovì (CN) ","Ente di governo d'Ambito n.4 Cuneese per i Servizi Idrici",104,104,"Cuneo","CN","004190","Roccaforte Mondovì"]
["Piemonte","Roccasparvera","Roccasparvera (CN) ","Ente di governo d'Ambito n.4 Cuneese per i Servizi Idrici",104,104,"Cuneo","CN","004191","Roccasparvera"]
["Piemonte","Roccavione","Roccavione (CN) ","Ente di governo d'Ambito n.4 Cuneese per i Servizi Idrici",104,104,"Cuneo","CN","004192","Roccavione"]
["Piemonte","Rocchetta Belbo","Rocchetta Belbo (CN) ","Ente di governo d'Ambito n.4 Cuneese per i Servizi Idrici",104,104,"Cuneo","CN","004193","Rocchetta Belbo"]
["Piemonte","Roddi","Roddi (CN) ","Ente di governo d'Ambito n.4 Cuneese per i Servizi Idrici",104,104,"Cuneo","CN","004194","Roddi"]
["Piemonte","Roddino","Roddino (CN) ","Ente di governo d'Ambito n.4 Cuneese per i Servizi Idrici",104,104,"Cuneo","CN","004195","Roddino"]
["Piemonte","Rodello","Rodello (CN) ","Ente di governo d'Ambito n.4 Cuneese per i Servizi Idrici",104,104,"Cuneo","CN","004196","Rodello"]
["Piemonte","Rossana","Rossana (CN) ","Ente di governo d'Ambito n.4 Cuneese per i Servizi Idrici",104,104,"Cuneo","CN","004197","Rossana"]
["Piemonte","Ruffia","Ruffia (CN) ","Ente di governo d'Ambito n.4 Cuneese per i Servizi Idrici",104,104,"Cuneo","CN","004198","Ruffia"]
["Piemonte","Sale delle Langhe","Sale delle Langhe (CN) ","Ente di governo d'Ambito n.4 Cuneese per i Servizi Idrici",104,104,"Cuneo","CN","004199","Sale delle Langhe"]
["Piemonte","Sale San Giovanni","Sale San Giovanni (CN) ","Ente di governo d'Ambito n.4 Cuneese per i Servizi Idrici",104,104,"Cuneo","CN","004200","Sale San Giovanni"]
["Piemonte","Saliceto","Saliceto (CN) ","Ente di governo d'Ambito n.4 Cuneese per i Servizi Idrici",104,104,"Cuneo","CN","004201","Saliceto"]
["Piemonte","Salmour","Salmour (CN) ","Ente di governo d'Ambito n.4 Cuneese per i Servizi Idrici",104,104,"Cuneo","CN","004202","Salmour"]
["Piemonte","Saluzzo","Saluzzo (CN) ","Ente di governo d'Ambito n.4 Cuneese per i Servizi Idrici",104,104,"Cuneo","CN","004203","Saluzzo"]
["Piemonte","Sambuco","Sambuco (CN) ","Ente di governo d'Ambito n.4 Cuneese per i Servizi Idrici",104,104,"Cuneo","CN","004204","Sambuco"]
["Piemonte","Sampeyre","Sampeyre (CN) ","Ente di governo d'Ambito n.4 Cuneese per i Servizi Idrici",104,104,"Cuneo","CN","004205","Sampeyre"]
["Piemonte","San Benedetto Belbo","San Benedetto Belbo (CN) ","Ente di governo d'Ambito n.4 Cuneese per i Servizi Idrici",104,104,"Cuneo","CN","004206","San Benedetto Belbo"]
["Piemonte","San Damiano Macra","San Damiano Macra (CN) ","Ente di governo d'Ambito n.4 Cuneese per i Servizi Idrici",104,104,"Cuneo","CN","004207","San Damiano Macra"]
["Piemonte","Sanfrè","Sanfrè (CN) ","Ente di governo d'Ambito n.4 Cuneese per i Servizi Idrici",104,104,"Cuneo","CN","004208","Sanfrè"]
["Piemonte","Sanfront","Sanfront (CN) ","Ente di governo d'Ambito n.4 Cuneese per i Servizi Idrici",104,104,"Cuneo","CN","004209","Sanfront"]
["Piemonte","San Michele Mondovì","San Michele Mondovì (CN) ","Ente di governo d'Ambito n.4 Cuneese per i Servizi Idrici",104,104,"Cuneo","CN","004210","San Michele Mondovì"]
["Piemonte","Sant'Albano Stura","Sant'Albano Stura (CN) ","Ente di governo d'Ambito n.4 Cuneese per i Servizi Idrici",104,104,"Cuneo","CN","004211","Sant'Albano Stura"]
["Piemonte","Santa Vittoria d'Alba","Santa Vittoria d'Alba (CN) ","Ente di governo d'Ambito n.4 Cuneese per i Servizi Idrici",104,104,"Cuneo","CN","004212","Santa Vittoria d'Alba"]
["Piemonte","Santo Stefano Belbo","Santo Stefano Belbo (CN) ","Ente di governo d'Ambito n.4 Cuneese per i Servizi Idrici",104,104,"Cuneo","CN","004213","Santo Stefano Belbo"]
["Piemonte","Santo Stefano Roero","Santo Stefano Roero (CN) ","Ente di governo d'Ambito n.4 Cuneese per i Servizi Idrici",104,104,"Cuneo","CN","004214","Santo Stefano Roero"]
["Piemonte","Savigliano","Savigliano (CN) ","Ente di governo d'Ambito n.4 Cuneese per i Servizi Idrici",104,104,"Cuneo","CN","004215","Savigliano"]
["Piemonte","Scagnello","Scagnello (CN) ","Ente di governo d'Ambito n.4 Cuneese per i Servizi Idrici",104,104,"Cuneo","CN","004216","Scagnello"]
["Piemonte","Scarnafigi","Scarnafigi (CN) ","Ente di governo d'Ambito n.4 Cuneese per i Servizi Idrici",104,104,"Cuneo","CN","004217","Scarnafigi"]
["Piemonte","Serralunga d'Alba","Serralunga d'Alba (CN) ","Ente di governo d'Ambito n.4 Cuneese per i Servizi Idrici",104,104,"Cuneo","CN","004218","Serralunga d'Alba"]
["Piemonte","Serravalle Langhe","Serravalle Langhe (CN) ","Ente di governo d'Ambito n.4 Cuneese per i Servizi Idrici",104,104,"Cuneo","CN","004219","Serravalle Langhe"]
["Piemonte","Sinio","Sinio (CN) ","Ente di governo d'Ambito n.4 Cuneese per i Servizi Idrici",104,104,"Cuneo","CN","004220","Sinio"]
["Piemonte","Somano","Somano (CN) ","Ente di governo d'Ambito n.4 Cuneese per i Servizi Idrici",104,104,"Cuneo","CN","004221","Somano"]
["Piemonte","Sommariva del Bosco","Sommariva del Bosco (CN) ","Ente di governo d'Ambito n.4 Cuneese per i Servizi Idrici",104,104,"Cuneo","CN","004222","Sommariva del Bosco"]
["Piemonte","Sommariva Perno","Sommariva Perno (CN) ","Ente di governo d'Ambito n.4 Cuneese per i Servizi Idrici",104,104,"Cuneo","CN","004223","Sommariva Perno"]
["Piemonte","Stroppo","Stroppo (CN) ","Ente di governo d'Ambito n.4 Cuneese per i Servizi Idrici",104,104,"Cuneo","CN","004224","Stroppo"]
["Piemonte","Tarantasca","Tarantasca (CN) ","Ente di governo d'Ambito n.4 Cuneese per i Servizi Idrici",104,104,"Cuneo","CN","004225","Tarantasca"]
["Piemonte","Torre Bormida","Torre Bormida (CN) ","Ente di governo d'Ambito n.4 Cuneese per i Servizi Idrici",104,104,"Cuneo","CN","004226","Torre Bormida"]
["Piemonte","Torre Mondovì","Torre Mondovì (CN) ","Ente di governo d'Ambito n.4 Cuneese per i Servizi Idrici",104,104,"Cuneo","CN","004227","Torre Mondovì"]
["Piemonte","Torre San Giorgio","Torre San Giorgio (CN) ","Ente di governo d'Ambito n.4 Cuneese per i Servizi Idrici",104,104,"Cuneo","CN","004228","Torre San Giorgio"]
["Piemonte","Torresina","Torresina (CN) ","Ente di governo d'Ambito n.4 Cuneese per i Servizi Idrici",104,104,"Cuneo","CN","004229","Torresina"]
["Piemonte","Treiso","Treiso (CN) ","Ente di governo d'Ambito n.4 Cuneese per i Servizi Idrici",104,104,"Cuneo","CN","004230","Treiso"]
["Piemonte","Trezzo Tinella","Trezzo Tinella (CN) ","Ente di governo d'Ambito n.4 Cuneese per i Servizi Idrici",104,104,"Cuneo","CN","004231","Trezzo Tinella"]
["Piemonte","Trinità","Trinità (CN) ","Ente di governo d'Ambito n.4 Cuneese per i Servizi Idrici",104,104,"Cuneo","CN","004232","Trinità"]
["Piemonte","Valdieri","Valdieri (CN) ","Ente di governo d'Ambito n.4 Cuneese per i Servizi Idrici",104,104,"Cuneo","CN","004233","Valdieri"]
["Piemonte","Valgrana","Valgrana (CN) ","Ente di governo d'Ambito n.4 Cuneese per i Servizi Idrici",104,104,"Cuneo","CN","004234","Valgrana"]
["Piemonte","Valloriate","Valloriate (CN) ","Ente di governo d'Ambito n.4 Cuneese per i Servizi Idrici",104,104,"Cuneo","CN","004235","Valloriate"]
["Piemonte","Venasca","Venasca (CN) ","Ente di governo d'Ambito n.4 Cuneese per i Servizi Idrici",104,104,"Cuneo","CN","004237","Venasca"]
["Piemonte","Verduno","Verduno (CN) ","Ente di governo d'Ambito n.4 Cuneese per i Servizi Idrici",104,104,"Cuneo","CN","004238","Verduno"]
["Piemonte","Vernante","Vernante (CN) ","Ente di governo d'Ambito n.4 Cuneese per i Servizi Idrici",104,104,"Cuneo","CN","004239","Vernante"]
["Piemonte","Verzuolo","Verzuolo (CN) ","Ente di governo d'Ambito n.4 Cuneese per i Servizi Idrici",104,104,"Cuneo","CN","004240","Verzuolo"]
["Piemonte","Vezza d'Alba","Vezza d'Alba (CN) ","Ente di governo d'Ambito n.4 Cuneese per i Servizi Idrici",104,104,"Cuneo","CN","004241","Vezza d'Alba"]
["Piemonte","Vicoforte","Vicoforte (CN) ","Ente di governo d'Ambito n.4 Cuneese per i Servizi Idrici",104,104,"Cuneo","CN","004242","Vicoforte"]
["Piemonte","Vignolo","Vignolo (CN) ","Ente di governo d'Ambito n.4 Cuneese per i Servizi Idrici",104,104,"Cuneo","CN","004243","Vignolo"]
["Piemonte","Villafalletto","Villafalletto (CN) ","Ente di governo d'Ambito n.4 Cuneese per i Servizi Idrici",104,104,"Cuneo","CN","004244","Villafalletto"]
["Piemonte","Villanova Mondovì","Villanova Mondovì (CN) ","Ente di governo d'Ambito n.4 Cuneese per i Servizi Idrici",104,104,"Cuneo","CN","004245","Villanova Mondovì"]
["Piemonte","Villanova Solaro","Villanova Solaro (CN) ","Ente di governo d'Ambito n.4 Cuneese per i Servizi Idrici",104,104,"Cuneo","CN","004246","Villanova Solaro"]
["Piemonte","Villar San Costanzo","Villar San Costanzo (CN) ","Ente di governo d'Ambito n.4 Cuneese per i Servizi Idrici",104,104,"Cuneo","CN","004247","Villar San Costanzo"]
["Piemonte","Vinadio","Vinadio (CN) ","Ente di governo d'Ambito n.4 Cuneese per i Servizi Idrici",104,104,"Cuneo","CN","004248","Vinadio"]
["Piemonte","Viola","Viola (CN) ","Ente di governo d'Ambito n.4 Cuneese per i Servizi Idrici",104,104,"Cuneo","CN","004249","Viola"]
["Piemonte","Vottignasco","Vottignasco (CN) ","Ente di governo d'Ambito n.4 Cuneese per i Servizi Idrici",104,104,"Cuneo","CN","004250","Vottignasco"]
["Piemonte","Agliano Terme","Agliano Terme (AT) ","Ente di Governo dell'Ambito n. 5 Astigiano Monferrato",105,105,"Asti","AT","005001","Agliano Terme"]
["Piemonte","Albugnano","Albugnano (AT) ","Ente di Governo dell'Ambito n. 5 Astigiano Monferrato",105,105,"Asti","AT","005002","Albugnano"]
["Piemonte","Antignano","Antignano (AT) ","Ente di Governo dell'Ambito n. 5 Astigiano Monferrato",105,105,"Asti","AT","005003","Antignano"]
["Piemonte","Aramengo","Aramengo (AT) ","Ente di Governo dell'Ambito n. 5 Astigiano Monferrato",105,105,"Asti","AT","005004","Aramengo"]
["Piemonte","Asti","Asti (AT) ","Ente di Governo dell'Ambito n. 5 Astigiano Monferrato",105,105,"Asti","AT","005005","Asti"]
["Piemonte","Azzano d'Asti","Azzano d'Asti (AT) ","Ente di Governo dell'Ambito n. 5 Astigiano Monferrato",105,105,"Asti","AT","005006","Azzano d'Asti"]
["Piemonte","Baldichieri d'Asti","Baldichieri d'Asti (AT) ","Ente di Governo dell'Ambito n. 5 Astigiano Monferrato",105,105,"Asti","AT","005007","Baldichieri d'Asti"]
["Piemonte","Belveglio","Belveglio (AT) ","Ente di Governo dell'Ambito n. 5 Astigiano Monferrato",105,105,"Asti","AT","005008","Belveglio"]
["Piemonte","Berzano di San Pietro","Berzano di San Pietro (AT) ","Ente di Governo dell'Ambito n. 5 Astigiano Monferrato",105,105,"Asti","AT","005009","Berzano di San Pietro"]
["Piemonte","Bruno","Bruno (AT) ","Ente di Governo dell'Ambito n. 5 Astigiano Monferrato",105,105,"Asti","AT","005010","Bruno"]
["Piemonte","Bubbio","Bubbio (AT) ","Ente di Governo d'Ambito Ottimale n.6 \"Alessandrino\"",106,106,"Asti","AT","005011","Bubbio"]
["Piemonte","Buttigliera d'Asti","Buttigliera d'Asti (AT) ","Ente di Governo dell'Ambito n. 5 Astigiano Monferrato",105,105,"Asti","AT","005012","Buttigliera d'Asti"]
["Piemonte","Calamandrana","Calamandrana (AT) ","Ente di Governo dell'Ambito n. 5 Astigiano Monferrato",105,105,"Asti","AT","005013","Calamandrana"]
["Piemonte","Calliano Monferrato","Calliano Monferrato (AT) ","Ente di Governo dell'Ambito n. 5 Astigiano Monferrato",105,105,"Asti","AT","005014","Calliano Monferrato"]
["Piemonte","Calosso","Calosso (AT) ","Ente di Governo dell'Ambito n. 5 Astigiano Monferrato",105,105,"Asti","AT","005015","Calosso"]
["Piemonte","Camerano Casasco","Camerano Casasco (AT) ","Ente di Governo dell'Ambito n. 5 Astigiano Monferrato",105,105,"Asti","AT","005016","Camerano Casasco"]
["Piemonte","Canelli","Canelli (AT) ","Ente di Governo dell'Ambito n. 5 Astigiano Monferrato",105,105,"Asti","AT","005017","Canelli"]
["Piemonte","Cantarana","Cantarana (AT) ","Ente di Governo dell'Ambito n. 5 Astigiano Monferrato",105,105,"Asti","AT","005018","Cantarana"]
["Piemonte","Capriglio","Capriglio (AT) ","Ente di Governo dell'Ambito n. 5 Astigiano Monferrato",105,105,"Asti","AT","005019","Capriglio"]
["Piemonte","Casorzo Monferrato","Casorzo Monferrato (AT) ","Ente di Governo dell'Ambito n. 5 Astigiano Monferrato",105,105,"Asti","AT","005020","Casorzo Monferrato"]
["Piemonte","Cassinasco","Cassinasco (AT) ","Ente di Governo d'Ambito Ottimale n.6 \"Alessandrino\"",106,106,"Asti","AT","005021","Cassinasco"]
["Piemonte","Castagnole delle Lanze","Castagnole delle Lanze (AT) ","Ente di Governo dell'Ambito n. 5 Astigiano Monferrato",105,105,"Asti","AT","005022","Castagnole delle Lanze"]
["Piemonte","Castagnole Monferrato","Castagnole Monferrato (AT) ","Ente di Governo dell'Ambito n. 5 Astigiano Monferrato",105,105,"Asti","AT","005023","Castagnole Monferrato"]
["Piemonte","Castel Boglione","Castel Boglione (AT) ","Ente di Governo dell'Ambito n. 5 Astigiano Monferrato",105,105,"Asti","AT","005024","Castel Boglione"]
["Piemonte","Castell'Alfero","Castell'Alfero (AT) ","Ente di Governo dell'Ambito n. 5 Astigiano Monferrato",105,105,"Asti","AT","005025","Castell'Alfero"]
["Piemonte","Castellero","Castellero (AT) ","Ente di Governo dell'Ambito n. 5 Astigiano Monferrato",105,105,"Asti","AT","005026","Castellero"]
["Piemonte","Castelletto Molina","Castelletto Molina (AT) ","Ente di Governo dell'Ambito n. 5 Astigiano Monferrato",105,105,"Asti","AT","005027","Castelletto Molina"]
["Piemonte","Castello di Annone","Castello di Annone (AT) ","Ente di Governo dell'Ambito n. 5 Astigiano Monferrato",105,105,"Asti","AT","005028","Castello di Annone"]
["Piemonte","Castelnuovo Belbo","Castelnuovo Belbo (AT) ","Ente di Governo dell'Ambito n. 5 Astigiano Monferrato",105,105,"Asti","AT","005029","Castelnuovo Belbo"]
["Piemonte","Castelnuovo Calcea","Castelnuovo Calcea (AT) ","Ente di Governo dell'Ambito n. 5 Astigiano Monferrato",105,105,"Asti","AT","005030","Castelnuovo Calcea"]
["Piemonte","Castelnuovo Don Bosco","Castelnuovo Don Bosco (AT) ","Ente di Governo dell'Ambito n. 5 Astigiano Monferrato",105,105,"Asti","AT","005031","Castelnuovo Don Bosco"]
["Piemonte","Castel Rocchero","Castel Rocchero (AT) ","Ente di Governo dell'Ambito n. 5 Astigiano Monferrato",105,105,"Asti","AT","005032","Castel Rocchero"]
["Piemonte","Cellarengo","Cellarengo (AT) ","Ente di Governo dell'Ambito n. 5 Astigiano Monferrato",105,105,"Asti","AT","005033","Cellarengo"]
["Piemonte","Celle Enomondo","Celle Enomondo (AT) ","Ente di Governo dell'Ambito n. 5 Astigiano Monferrato",105,105,"Asti","AT","005034","Celle Enomondo"]
["Piemonte","Cerreto d'Asti","Cerreto d'Asti (AT) ","Ente di Governo dell'Ambito n. 5 Astigiano Monferrato",105,105,"Asti","AT","005035","Cerreto d'Asti"]
["Piemonte","Cerro Tanaro","Cerro Tanaro (AT) ","Ente di Governo dell'Ambito n. 5 Astigiano Monferrato",105,105,"Asti","AT","005036","Cerro Tanaro"]
["Piemonte","Cessole","Cessole (AT) ","Ente di Governo d'Ambito Ottimale n.6 \"Alessandrino\"",106,106,"Asti","AT","005037","Cessole"]
["Piemonte","Chiusano d'Asti","Chiusano d'Asti (AT) ","Ente di Governo dell'Ambito n. 5 Astigiano Monferrato",105,105,"Asti","AT","005038","Chiusano d'Asti"]
["Piemonte","Cinaglio","Cinaglio (AT) ","Ente di Governo dell'Ambito n. 5 Astigiano Monferrato",105,105,"Asti","AT","005039","Cinaglio"]
["Piemonte","Cisterna d'Asti","Cisterna d'Asti (AT) ","Ente di Governo dell'Ambito n. 5 Astigiano Monferrato",105,105,"Asti","AT","005040","Cisterna d'Asti"]
["Piemonte","Coazzolo","Coazzolo (AT) ","Ente di Governo dell'Ambito n. 5 Astigiano Monferrato",105,105,"Asti","AT","005041","Coazzolo"]
["Piemonte","Cocconato","Cocconato (AT) ","Ente di Governo dell'Ambito n. 5 Astigiano Monferrato",105,105,"Asti","AT","005042","Cocconato"]
["Piemonte","Corsione","Corsione (AT) ","Ente di Governo dell'Ambito n. 5 Astigiano Monferrato",105,105,"Asti","AT","005044","Corsione"]
["Piemonte","Cortandone","Cortandone (AT) ","Ente di Governo dell'Ambito n. 5 Astigiano Monferrato",105,105,"Asti","AT","005045","Cortandone"]
["Piemonte","Cortanze","Cortanze (AT) ","Ente di Governo dell'Ambito n. 5 Astigiano Monferrato",105,105,"Asti","AT","005046","Cortanze"]
["Piemonte","Cortazzone","Cortazzone (AT) ","Ente di Governo dell'Ambito n. 5 Astigiano Monferrato",105,105,"Asti","AT","005047","Cortazzone"]
["Piemonte","Cortiglione","Cortiglione (AT) ","Ente di Governo dell'Ambito n. 5 Astigiano Monferrato",105,105,"Asti","AT","005048","Cortiglione"]
["Piemonte","Cossombrato","Cossombrato (AT) ","Ente di Governo dell'Ambito n. 5 Astigiano Monferrato",105,105,"Asti","AT","005049","Cossombrato"]
["Piemonte","Costigliole d'Asti","Costigliole d'Asti (AT) ","Ente di Governo dell'Ambito n. 5 Astigiano Monferrato",105,105,"Asti","AT","005050","Costigliole d'Asti"]
["Piemonte","Cunico","Cunico (AT) ","Ente di Governo dell'Ambito n. 5 Astigiano Monferrato",105,105,"Asti","AT","005051","Cunico"]
["Piemonte","Dusino San Michele","Dusino San Michele (AT) ","Ente di Governo dell'Ambito n. 5 Astigiano Monferrato",105,105,"Asti","AT","005052","Dusino San Michele"]
["Piemonte","Ferrere","Ferrere (AT) ","Ente di Governo dell'Ambito n. 5 Astigiano Monferrato",105,105,"Asti","AT","005053","Ferrere"]
["Piemonte","Fontanile","Fontanile (AT) ","Ente di Governo dell'Ambito n. 5 Astigiano Monferrato",105,105,"Asti","AT","005054","Fontanile"]
["Piemonte","Frinco","Frinco (AT) ","Ente di Governo dell'Ambito n. 5 Astigiano Monferrato",105,105,"Asti","AT","005055","Frinco"]
["Piemonte","Grana Monferrato","Grana Monferrato (AT) ","Ente di Governo dell'Ambito n. 5 Astigiano Monferrato",105,105,"Asti","AT","005056","Grana Monferrato"]
["Piemonte","Grazzano Badoglio","Grazzano Badoglio (AT) ","Ente di Governo dell'Ambito n. 5 Astigiano Monferrato",105,105,"Asti","AT","005057","Grazzano Badoglio"]
["Piemonte","Incisa Scapaccino","Incisa Scapaccino (AT) ","Ente di Governo dell'Ambito n. 5 Astigiano Monferrato",105,105,"Asti","AT","005058","Incisa Scapaccino"]
["Piemonte","Isola d'Asti","Isola d'Asti (AT) ","Ente di Governo dell'Ambito n. 5 Astigiano Monferrato",105,105,"Asti","AT","005059","Isola d'Asti"]
["Piemonte","Loazzolo","Loazzolo (AT) ","Ente di Governo d'Ambito Ottimale n.6 \"Alessandrino\"",106,106,"Asti","AT","005060","Loazzolo"]
["Piemonte","Maranzana","Maranzana (AT) ","Ente di Governo dell'Ambito n. 5 Astigiano Monferrato",105,105,"Asti","AT","005061","Maranzana"]
["Piemonte","Maretto","Maretto (AT) ","Ente di Governo dell'Ambito n. 5 Astigiano Monferrato",105,105,"Asti","AT","005062","Maretto"]
["Piemonte","Moasca","Moasca (AT) ","Ente di Governo dell'Ambito n. 5 Astigiano Monferrato",105,105,"Asti","AT","005063","Moasca"]
["Piemonte","Mombaldone","Mombaldone (AT) ","Ente di Governo d'Ambito Ottimale n.6 \"Alessandrino\"",106,106,"Asti","AT","005064","Mombaldone"]
["Piemonte","Mombaruzzo","Mombaruzzo (AT) ","Ente di Governo dell'Ambito n. 5 Astigiano Monferrato",105,105,"Asti","AT","005065","Mombaruzzo"]
["Piemonte","Mombercelli","Mombercelli (AT) ","Ente di Governo dell'Ambito n. 5 Astigiano Monferrato",105,105,"Asti","AT","005066","Mombercelli"]
["Piemonte","Monale","Monale (AT) ","Ente di Governo dell'Ambito n. 5 Astigiano Monferrato",105,105,"Asti","AT","005067","Monale"]
["Piemonte","Monastero Bormida","Monastero Bormida (AT) ","Ente di Governo d'Ambito Ottimale n.6 \"Alessandrino\"",106,106,"Asti","AT","005068","Monastero Bormida"]
["Piemonte","Moncalvo","Moncalvo (AT) ","Ente di Governo dell'Ambito n. 5 Astigiano Monferrato",105,105,"Asti","AT","005069","Moncalvo"]
["Piemonte","Moncucco Torinese","Moncucco Torinese (AT) ","Ente di Governo dell'Ambito n. 5 Astigiano Monferrato",105,105,"Asti","AT","005070","Moncucco Torinese"]
["Piemonte","Mongardino","Mongardino (AT) ","Ente di Governo dell'Ambito n. 5 Astigiano Monferrato",105,105,"Asti","AT","005071","Mongardino"]
["Piemonte","Montabone","Montabone (AT) ","Ente di Governo d'Ambito Ottimale n.6 \"Alessandrino\"",106,106,"Asti","AT","005072","Montabone"]
["Piemonte","Montafia","Montafia (AT) ","Ente di Governo dell'Ambito n. 5 Astigiano Monferrato",105,105,"Asti","AT","005073","Montafia"]
["Piemonte","Montaldo Scarampi","Montaldo Scarampi (AT) ","Ente di Governo dell'Ambito n. 5 Astigiano Monferrato",105,105,"Asti","AT","005074","Montaldo Scarampi"]
["Piemonte","Montechiaro d'Asti","Montechiaro d'Asti (AT) ","Ente di Governo dell'Ambito n. 5 Astigiano Monferrato",105,105,"Asti","AT","005075","Montechiaro d'Asti"]
["Piemonte","Montegrosso d'Asti","Montegrosso d'Asti (AT) ","Ente di Governo dell'Ambito n. 5 Astigiano Monferrato",105,105,"Asti","AT","005076","Montegrosso d'Asti"]
["Piemonte","Montemagno Monferrato","Montemagno Monferrato (AT) ","Ente di Governo dell'Ambito n. 5 Astigiano Monferrato",105,105,"Asti","AT","005077","Montemagno Monferrato"]
["Piemonte","Nizza Monferrato","Nizza Monferrato (AT) ","Ente di Governo dell'Ambito n. 5 Astigiano Monferrato",105,105,"Asti","AT","005080","Nizza Monferrato"]
["Piemonte","Olmo Gentile","Olmo Gentile (AT) ","Ente di Governo d'Ambito Ottimale n.6 \"Alessandrino\"",106,106,"Asti","AT","005081","Olmo Gentile"]
["Piemonte","Passerano Marmorito","Passerano Marmorito (AT) ","Ente di Governo dell'Ambito n. 5 Astigiano Monferrato",105,105,"Asti","AT","005082","Passerano Marmorito"]
["Piemonte","Penango","Penango (AT) ","Ente di Governo dell'Ambito n. 5 Astigiano Monferrato",105,105,"Asti","AT","005083","Penango"]
["Piemonte","Piea","Piea (AT) ","Ente di Governo dell'Ambito n. 5 Astigiano Monferrato",105,105,"Asti","AT","005084","Piea"]
["Piemonte","Pino d'Asti","Pino d'Asti (AT) ","Ente di Governo dell'Ambito n. 5 Astigiano Monferrato",105,105,"Asti","AT","005085","Pino d'Asti"]
["Piemonte","Piovà Massaia","Piovà Massaia (AT) ","Ente di Governo dell'Ambito n. 5 Astigiano Monferrato",105,105,"Asti","AT","005086","Piovà Massaia"]
["Piemonte","Portacomaro","Portacomaro (AT) ","Ente di Governo dell'Ambito n. 5 Astigiano Monferrato",105,105,"Asti","AT","005087","Portacomaro"]
["Piemonte","Quaranti","Quaranti (AT) ","Ente di Governo dell'Ambito n. 5 Astigiano Monferrato",105,105,"Asti","AT","005088","Quaranti"]
["Piemonte","Refrancore","Refrancore (AT) ","Ente di Governo dell'Ambito n. 5 Astigiano Monferrato",105,105,"Asti","AT","005089","Refrancore"]
["Piemonte","Revigliasco d'Asti","Revigliasco d'Asti (AT) ","Ente di Governo dell'Ambito n. 5 Astigiano Monferrato",105,105,"Asti","AT","005090","Revigliasco d'Asti"]
["Piemonte","Roatto","Roatto (AT) ","Ente di Governo dell'Ambito n. 5 Astigiano Monferrato",105,105,"Asti","AT","005091","Roatto"]
["Piemonte","Robella","Robella (AT) ","Ente di Governo dell'Ambito n. 5 Astigiano Monferrato",105,105,"Asti","AT","005092","Robella"]
["Piemonte","Rocca d'Arazzo","Rocca d'Arazzo (AT) ","Ente di Governo dell'Ambito n. 5 Astigiano Monferrato",105,105,"Asti","AT","005093","Rocca d'Arazzo"]
["Piemonte","Roccaverano","Roccaverano (AT) ","Ente di Governo d'Ambito Ottimale n.6 \"Alessandrino\"",106,106,"Asti","AT","005094","Roccaverano"]
["Piemonte","Rocchetta Palafea","Rocchetta Palafea (AT) ","Ente di Governo d'Ambito Ottimale n.6 \"Alessandrino\"",106,106,"Asti","AT","005095","Rocchetta Palafea"]
["Piemonte","Rocchetta Tanaro","Rocchetta Tanaro (AT) ","Ente di Governo dell'Ambito n. 5 Astigiano Monferrato",105,105,"Asti","AT","005096","Rocchetta Tanaro"]
["Piemonte","San Damiano d'Asti","San Damiano d'Asti (AT) ","Ente di Governo dell'Ambito n. 5 Astigiano Monferrato",105,105,"Asti","AT","005097","San Damiano d'Asti"]
["Piemonte","San Giorgio Scarampi","San Giorgio Scarampi (AT) ","Ente di Governo d'Ambito Ottimale n.6 \"Alessandrino\"",106,106,"Asti","AT","005098","San Giorgio Scarampi"]
["Piemonte","San Martino Alfieri","San Martino Alfieri (AT) ","Ente di Governo dell'Ambito n. 5 Astigiano Monferrato",105,105,"Asti","AT","005099","San Martino Alfieri"]
["Piemonte","San Marzano Oliveto","San Marzano Oliveto (AT) ","Ente di Governo dell'Ambito n. 5 Astigiano Monferrato",105,105,"Asti","AT","005100","San Marzano Oliveto"]
["Piemonte","San Paolo Solbrito","San Paolo Solbrito (AT) ","Ente di Governo dell'Ambito n. 5 Astigiano Monferrato",105,105,"Asti","AT","005101","San Paolo Solbrito"]
["Piemonte","Scurzolengo","Scurzolengo (AT) ","Ente di Governo dell'Ambito n. 5 Astigiano Monferrato",105,105,"Asti","AT","005103","Scurzolengo"]
["Piemonte","Serole","Serole (AT) ","Ente di Governo d'Ambito Ottimale n.6 \"Alessandrino\"",106,106,"Asti","AT","005104","Serole"]
["Piemonte","Sessame","Sessame (AT) ","Ente di Governo d'Ambito Ottimale n.6 \"Alessandrino\"",106,106,"Asti","AT","005105","Sessame"]
["Piemonte","Settime","Settime (AT) ","Ente di Governo dell'Ambito n. 5 Astigiano Monferrato",105,105,"Asti","AT","005106","Settime"]
["Piemonte","Soglio","Soglio (AT) ","Ente di Governo dell'Ambito n. 5 Astigiano Monferrato",105,105,"Asti","AT","005107","Soglio"]
["Piemonte","Tigliole","Tigliole (AT) ","Ente di Governo dell'Ambito n. 5 Astigiano Monferrato",105,105,"Asti","AT","005108","Tigliole"]
["Piemonte","Tonco","Tonco (AT) ","Ente di Governo dell'Ambito n. 5 Astigiano Monferrato",105,105,"Asti","AT","005109","Tonco"]
["Piemonte","Vaglio Serra","Vaglio Serra (AT) ","Ente di Governo dell'Ambito n. 5 Astigiano Monferrato",105,105,"Asti","AT","005111","Vaglio Serra"]
["Piemonte","Valfenera","Valfenera (AT) ","Ente di Governo dell'Ambito n. 5 Astigiano Monferrato",105,105,"Asti","AT","005112","Valfenera"]
["Piemonte","Vesime","Vesime (AT) ","Ente di Governo d'Ambito Ottimale n.6 \"Alessandrino\"",106,106,"Asti","AT","005113","Vesime"]
["Piemonte","Viale","Viale (AT) ","Ente di Governo dell'Ambito n. 5 Astigiano Monferrato",105,105,"Asti","AT","005114","Viale"]
["Piemonte","Viarigi","Viarigi (AT) ","Ente di Governo dell'Ambito n. 5 Astigiano Monferrato",105,105,"Asti","AT","005115","Viarigi"]
["Piemonte","Vigliano d'Asti","Vigliano d'Asti (AT) ","Ente di Governo dell'Ambito n. 5 Astigiano Monferrato",105,105,"Asti","AT","005116","Vigliano d'Asti"]
["Piemonte","Villafranca d'Asti","Villafranca d'Asti (AT) ","Ente di Governo dell'Ambito n. 5 Astigiano Monferrato",105,105,"Asti","AT","005117","Villafranca d'Asti"]
["Piemonte","Villanova d'Asti","Villanova d'Asti (AT) ","Ente di Governo dell'Ambito n. 5 Astigiano Monferrato",105,105,"Asti","AT","005118","Villanova d'Asti"]
["Piemonte","Villa San Secondo","Villa San Secondo (AT) ","Ente di Governo dell'Ambito n. 5 Astigiano Monferrato",105,105,"Asti","AT","005119","Villa San Secondo"]
["Piemonte","Vinchio","Vinchio (AT) ","Ente di Governo dell'Ambito n. 5 Astigiano Monferrato",105,105,"Asti","AT","005120","Vinchio"]
["Piemonte","Montiglio Monferrato","Montiglio Monferrato (AT) ","Ente di Governo dell'Ambito n. 5 Astigiano Monferrato",105,105,"Asti","AT","005121","Montiglio Monferrato"]
["Piemonte","Moransengo-Tonengo","Moransengo-Tonengo (AT) ","Ente di Governo dell'Ambito n. 5 Astigiano Monferrato",105,105,"Asti","AT","005122","Moransengo-Tonengo"]
["Piemonte","Acqui Terme","Acqui Terme (AL) ","Ente di Governo d'Ambito Ottimale n.6 \"Alessandrino\"",106,106,"Alessandria","AL","006001","Acqui Terme"]
["Piemonte","Albera Ligure","Albera Ligure (AL) ","Ente di Governo d'Ambito Ottimale n.6 \"Alessandrino\"",106,106,"Alessandria","AL","006002","Albera Ligure"]
["Piemonte","Alessandria","Alessandria (AL) ","Ente di Governo d'Ambito Ottimale n.6 \"Alessandrino\"",106,106,"Alessandria","AL","006003","Alessandria"]
["Piemonte","Alfiano Natta","Alfiano Natta (AL) ","Ente di Governo dell'Ambito n. 5 Astigiano Monferrato",105,105,"Alessandria","AL","006004","Alfiano Natta"]
["Piemonte","Alice Bel Colle","Alice Bel Colle (AL) ","Ente di Governo d'Ambito Ottimale n.6 \"Alessandrino\"",106,106,"Alessandria","AL","006005","Alice Bel Colle"]
["Piemonte","Altavilla Monferrato","Altavilla Monferrato (AL) ","Ente di Governo dell'Ambito n. 5 Astigiano Monferrato",105,105,"Alessandria","AL","006007","Altavilla Monferrato"]
["Piemonte","Alzano Scrivia","Alzano Scrivia (AL) ","Ente di Governo d'Ambito Ottimale n.6 \"Alessandrino\"",106,106,"Alessandria","AL","006008","Alzano Scrivia"]
["Piemonte","Arquata Scrivia","Arquata Scrivia (AL) ","Ente di Governo d'Ambito Ottimale n.6 \"Alessandrino\"",106,106,"Alessandria","AL","006009","Arquata Scrivia"]
["Piemonte","Avolasca","Avolasca (AL) ","Ente di Governo d'Ambito Ottimale n.6 \"Alessandrino\"",106,106,"Alessandria","AL","006010","Avolasca"]
["Piemonte","Balzola","Balzola (AL) ","ATO 2 Biellese, Vercellese e Casalese",102,102,"Alessandria","AL","006011","Balzola"]
["Piemonte","Basaluzzo","Basaluzzo (AL) ","Ente di Governo d'Ambito Ottimale n.6 \"Alessandrino\"",106,106,"Alessandria","AL","006012","Basaluzzo"]
["Piemonte","Bassignana","Bassignana (AL) ","ATO 2 Biellese, Vercellese e Casalese",102,102,"Alessandria","AL","006013","Bassignana"]
["Piemonte","Belforte Monferrato","Belforte Monferrato (AL) ","Ente di Governo d'Ambito Ottimale n.6 \"Alessandrino\"",106,106,"Alessandria","AL","006014","Belforte Monferrato"]
["Piemonte","Bergamasco","Bergamasco (AL) ","Ente di Governo d'Ambito Ottimale n.6 \"Alessandrino\"",106,106,"Alessandria","AL","006015","Bergamasco"]
["Piemonte","Berzano di Tortona","Berzano di Tortona (AL) ","Ente di Governo d'Ambito Ottimale n.6 \"Alessandrino\"",106,106,"Alessandria","AL","006016","Berzano di Tortona"]
["Piemonte","Bistagno","Bistagno (AL) ","Ente di Governo d'Ambito Ottimale n.6 \"Alessandrino\"",106,106,"Alessandria","AL","006017","Bistagno"]
["Piemonte","Borghetto di Borbera","Borghetto di Borbera (AL) ","Ente di Governo d'Ambito Ottimale n.6 \"Alessandrino\"",106,106,"Alessandria","AL","006018","Borghetto di Borbera"]
["Piemonte","Borgoratto Alessandrino","Borgoratto Alessandrino (AL) ","Ente di Governo d'Ambito Ottimale n.6 \"Alessandrino\"",106,106,"Alessandria","AL","006019","Borgoratto Alessandrino"]
["Piemonte","Borgo San Martino","Borgo San Martino (AL) ","ATO 2 Biellese, Vercellese e Casalese",102,102,"Alessandria","AL","006020","Borgo San Martino"]
["Piemonte","Bosco Marengo","Bosco Marengo (AL) ","Ente di Governo d'Ambito Ottimale n.6 \"Alessandrino\"",106,106,"Alessandria","AL","006021","Bosco Marengo"]
["Piemonte","Bosio","Bosio (AL) ","Ente di Governo d'Ambito Ottimale n.6 \"Alessandrino\"",106,106,"Alessandria","AL","006022","Bosio"]
["Piemonte","Bozzole","Bozzole (AL) ","ATO 2 Biellese, Vercellese e Casalese",102,102,"Alessandria","AL","006023","Bozzole"]
["Piemonte","Brignano-Frascata","Brignano-Frascata (AL) ","Ente di Governo d'Ambito Ottimale n.6 \"Alessandrino\"",106,106,"Alessandria","AL","006024","Brignano-Frascata"]
["Piemonte","Cabella Ligure","Cabella Ligure (AL) ","Ente di Governo d'Ambito Ottimale n.6 \"Alessandrino\"",106,106,"Alessandria","AL","006025","Cabella Ligure"]
["Piemonte","Camagna Monferrato","Camagna Monferrato (AL) ","Ente di Governo dell'Ambito n. 5 Astigiano Monferrato",105,105,"Alessandria","AL","006026","Camagna Monferrato"]
["Piemonte","Camino","Camino (AL) ","Ente di Governo dell'Ambito n. 5 Astigiano Monferrato",105,105,"Alessandria","AL","006027","Camino"]
["Piemonte","Cantalupo Ligure","Cantalupo Ligure (AL) ","Ente di Governo d'Ambito Ottimale n.6 \"Alessandrino\"",106,106,"Alessandria","AL","006028","Cantalupo Ligure"]
["Piemonte","Capriata d'Orba","Capriata d'Orba (AL) ","Ente di Governo d'Ambito Ottimale n.6 \"Alessandrino\"",106,106,"Alessandria","AL","006029","Capriata d'Orba"]
["Piemonte","Carbonara Scrivia","Carbonara Scrivia (AL) ","Ente di Governo d'Ambito Ottimale n.6 \"Alessandrino\"",106,106,"Alessandria","AL","006030","Carbonara Scrivia"]
["Piemonte","Carentino","Carentino (AL) ","Ente di Governo d'Ambito Ottimale n.6 \"Alessandrino\"",106,106,"Alessandria","AL","006031","Carentino"]
["Piemonte","Carezzano","Carezzano (AL) ","Ente di Governo d'Ambito Ottimale n.6 \"Alessandrino\"",106,106,"Alessandria","AL","006032","Carezzano"]
["Piemonte","Carpeneto","Carpeneto (AL) ","Ente di Governo d'Ambito Ottimale n.6 \"Alessandrino\"",106,106,"Alessandria","AL","006033","Carpeneto"]
["Piemonte","Carrega Ligure","Carrega Ligure (AL) ","Ente di Governo d'Ambito Ottimale n.6 \"Alessandrino\"",106,106,"Alessandria","AL","006034","Carrega Ligure"]
["Piemonte","Carrosio","Carrosio (AL) ","Ente di Governo d'Ambito Ottimale n.6 \"Alessandrino\"",106,106,"Alessandria","AL","006035","Carrosio"]
["Piemonte","Cartosio","Cartosio (AL) ","Ente di Governo d'Ambito Ottimale n.6 \"Alessandrino\"",106,106,"Alessandria","AL","006036","Cartosio"]
["Piemonte","Casal Cermelli","Casal Cermelli (AL) ","Ente di Governo d'Ambito Ottimale n.6 \"Alessandrino\"",106,106,"Alessandria","AL","006037","Casal Cermelli"]
["Piemonte","Casaleggio Boiro","Casaleggio Boiro (AL) ","Ente di Governo d'Ambito Ottimale n.6 \"Alessandrino\"",106,106,"Alessandria","AL","006038","Casaleggio Boiro"]
["Piemonte","Casale Monferrato","Casale Monferrato (AL) ","ATO 2 Biellese, Vercellese e Casalese",102,102,"Alessandria","AL","006039","Casale Monferrato"]
["Piemonte","Casalnoceto","Casalnoceto (AL) ","Ente di Governo d'Ambito Ottimale n.6 \"Alessandrino\"",106,106,"Alessandria","AL","006040","Casalnoceto"]
["Piemonte","Casasco","Casasco (AL) ","Ente di Governo d'Ambito Ottimale n.6 \"Alessandrino\"",106,106,"Alessandria","AL","006041","Casasco"]
["Piemonte","Cassine","Cassine (AL) ","Ente di Governo d'Ambito Ottimale n.6 \"Alessandrino\"",106,106,"Alessandria","AL","006043","Cassine"]
["Piemonte","Cassinelle","Cassinelle (AL) ","Ente di Governo d'Ambito Ottimale n.6 \"Alessandrino\"",106,106,"Alessandria","AL","006044","Cassinelle"]
["Piemonte","Castellania Coppi","Castellania Coppi (AL) ","Ente di Governo d'Ambito Ottimale n.6 \"Alessandrino\"",106,106,"Alessandria","AL","006045","Castellania Coppi"]
["Piemonte","Castellar Guidobono","Castellar Guidobono (AL) ","Ente di Governo d'Ambito Ottimale n.6 \"Alessandrino\"",106,106,"Alessandria","AL","006046","Castellar Guidobono"]
["Piemonte","Castellazzo Bormida","Castellazzo Bormida (AL) ","Ente di Governo d'Ambito Ottimale n.6 \"Alessandrino\"",106,106,"Alessandria","AL","006047","Castellazzo Bormida"]
["Piemonte","Castelletto d'Erro","Castelletto d'Erro (AL) ","Ente di Governo d'Ambito Ottimale n.6 \"Alessandrino\"",106,106,"Alessandria","AL","006048","Castelletto d'Erro"]
["Piemonte","Castelletto d'Orba","Castelletto d'Orba (AL) ","Ente di Governo d'Ambito Ottimale n.6 \"Alessandrino\"",106,106,"Alessandria","AL","006049","Castelletto d'Orba"]
["Piemonte","Castelletto Merli","Castelletto Merli (AL) ","Ente di Governo dell'Ambito n. 5 Astigiano Monferrato",105,105,"Alessandria","AL","006050","Castelletto Merli"]
["Piemonte","Castelletto Monferrato","Castelletto Monferrato (AL) ","Ente di Governo dell'Ambito n. 5 Astigiano Monferrato",105,105,"Alessandria","AL","006051","Castelletto Monferrato"]
["Piemonte","Castelnuovo Bormida","Castelnuovo Bormida (AL) ","Ente di Governo d'Ambito Ottimale n.6 \"Alessandrino\"",106,106,"Alessandria","AL","006052","Castelnuovo Bormida"]
["Piemonte","Castelnuovo Scrivia","Castelnuovo Scrivia (AL) ","Ente di Governo d'Ambito Ottimale n.6 \"Alessandrino\"",106,106,"Alessandria","AL","006053","Castelnuovo Scrivia"]
["Piemonte","Castelspina","Castelspina (AL) ","Ente di Governo d'Ambito Ottimale n.6 \"Alessandrino\"",106,106,"Alessandria","AL","006054","Castelspina"]
["Piemonte","Cavatore","Cavatore (AL) ","Ente di Governo d'Ambito Ottimale n.6 \"Alessandrino\"",106,106,"Alessandria","AL","006055","Cavatore"]
["Piemonte","Cella Monte","Cella Monte (AL) ","Ente di Governo dell'Ambito n. 5 Astigiano Monferrato",105,105,"Alessandria","AL","006056","Cella Monte"]
["Piemonte","Cereseto","Cereseto (AL) ","Ente di Governo dell'Ambito n. 5 Astigiano Monferrato",105,105,"Alessandria","AL","006057","Cereseto"]
["Piemonte","Cerreto Grue","Cerreto Grue (AL) ","Ente di Governo d'Ambito Ottimale n.6 \"Alessandrino\"",106,106,"Alessandria","AL","006058","Cerreto Grue"]
["Piemonte","Cerrina Monferrato","Cerrina Monferrato (AL) ","Ente di Governo dell'Ambito n. 5 Astigiano Monferrato",105,105,"Alessandria","AL","006059","Cerrina Monferrato"]
["Piemonte","Coniolo","Coniolo (AL) ","Ente di Governo dell'Ambito n. 5 Astigiano Monferrato",105,105,"Alessandria","AL","006060","Coniolo"]
["Piemonte","Conzano","Conzano (AL) ","Ente di Governo dell'Ambito n. 5 Astigiano Monferrato",105,105,"Alessandria","AL","006061","Conzano"]
["Piemonte","Costa Vescovato","Costa Vescovato (AL) ","Ente di Governo d'Ambito Ottimale n.6 \"Alessandrino\"",106,106,"Alessandria","AL","006062","Costa Vescovato"]
["Piemonte","Cremolino","Cremolino (AL) ","Ente di Governo d'Ambito Ottimale n.6 \"Alessandrino\"",106,106,"Alessandria","AL","006063","Cremolino"]
["Piemonte","Denice","Denice (AL) ","Ente di Governo d'Ambito Ottimale n.6 \"Alessandrino\"",106,106,"Alessandria","AL","006065","Denice"]
["Piemonte","Dernice","Dernice (AL) ","Ente di Governo d'Ambito Ottimale n.6 \"Alessandrino\"",106,106,"Alessandria","AL","006066","Dernice"]
["Piemonte","Fabbrica Curone","Fabbrica Curone (AL) ","Ente di Governo d'Ambito Ottimale n.6 \"Alessandrino\"",106,106,"Alessandria","AL","006067","Fabbrica Curone"]
["Piemonte","Felizzano","Felizzano (AL) ","Ente di Governo dell'Ambito n. 5 Astigiano Monferrato",105,105,"Alessandria","AL","006068","Felizzano"]
["Piemonte","Fraconalto","Fraconalto (AL) ","Ente di Governo d'Ambito Ottimale n.6 \"Alessandrino\"",106,106,"Alessandria","AL","006069","Fraconalto"]
["Piemonte","Francavilla Bisio","Francavilla Bisio (AL) ","Ente di Governo d'Ambito Ottimale n.6 \"Alessandrino\"",106,106,"Alessandria","AL","006070","Francavilla Bisio"]
["Piemonte","Frascaro","Frascaro (AL) ","Ente di Governo d'Ambito Ottimale n.6 \"Alessandrino\"",106,106,"Alessandria","AL","006071","Frascaro"]
["Piemonte","Frassinello Monferrato","Frassinello Monferrato (AL) ","Ente di Governo dell'Ambito n. 5 Astigiano Monferrato",105,105,"Alessandria","AL","006072","Frassinello Monferrato"]
["Piemonte","Frassineto Po","Frassineto Po (AL) ","ATO 2 Biellese, Vercellese e Casalese",102,102,"Alessandria","AL","006073","Frassineto Po"]
["Piemonte","Fresonara","Fresonara (AL) ","Ente di Governo d'Ambito Ottimale n.6 \"Alessandrino\"",106,106,"Alessandria","AL","006074","Fresonara"]
["Piemonte","Frugarolo","Frugarolo (AL) ","Ente di Governo d'Ambito Ottimale n.6 \"Alessandrino\"",106,106,"Alessandria","AL","006075","Frugarolo"]
["Piemonte","Fubine Monferrato","Fubine Monferrato (AL) ","Ente di Governo dell'Ambito n. 5 Astigiano Monferrato",105,105,"Alessandria","AL","006076","Fubine Monferrato"]
["Piemonte","Gabiano","Gabiano (AL) ","Ente di Governo dell'Ambito n. 5 Astigiano Monferrato",105,105,"Alessandria","AL","006077","Gabiano"]
["Piemonte","Gamalero","Gamalero (AL) ","Ente di Governo d'Ambito Ottimale n.6 \"Alessandrino\"",106,106,"Alessandria","AL","006078","Gamalero"]
["Piemonte","Garbagna","Garbagna (AL) ","Ente di Governo d'Ambito Ottimale n.6 \"Alessandrino\"",106,106,"Alessandria","AL","006079","Garbagna"]
["Piemonte","Gavi","Gavi (AL) ","Ente di Governo d'Ambito Ottimale n.6 \"Alessandrino\"",106,106,"Alessandria","AL","006081","Gavi"]
["Piemonte","Giarole","Giarole (AL) ","ATO 2 Biellese, Vercellese e Casalese",102,102,"Alessandria","AL","006082","Giarole"]
["Piemonte","Gremiasco","Gremiasco (AL) ","Ente di Governo d'Ambito Ottimale n.6 \"Alessandrino\"",106,106,"Alessandria","AL","006083","Gremiasco"]
["Piemonte","Grognardo","Grognardo (AL) ","Ente di Governo d'Ambito Ottimale n.6 \"Alessandrino\"",106,106,"Alessandria","AL","006084","Grognardo"]
["Piemonte","Grondona","Grondona (AL) ","Ente di Governo d'Ambito Ottimale n.6 \"Alessandrino\"",106,106,"Alessandria","AL","006085","Grondona"]
["Piemonte","Guazzora","Guazzora (AL) ","Ente di Governo d'Ambito Ottimale n.6 \"Alessandrino\"",106,106,"Alessandria","AL","006086","Guazzora"]
["Piemonte","Isola Sant'Antonio","Isola Sant'Antonio (AL) ","Ente di Governo d'Ambito Ottimale n.6 \"Alessandrino\"",106,106,"Alessandria","AL","006087","Isola Sant'Antonio"]
["Piemonte","Lerma","Lerma (AL) ","Ente di Governo d'Ambito Ottimale n.6 \"Alessandrino\"",106,106,"Alessandria","AL","006088","Lerma"]
["Piemonte","Malvicino","Malvicino (AL) ","Ente di Governo d'Ambito Ottimale n.6 \"Alessandrino\"",106,106,"Alessandria","AL","006090","Malvicino"]
["Piemonte","Masio","Masio (AL) ","Ente di Governo d'Ambito Ottimale n.6 \"Alessandrino\"",106,106,"Alessandria","AL","006091","Masio"]
["Piemonte","Melazzo","Melazzo (AL) ","Ente di Governo d'Ambito Ottimale n.6 \"Alessandrino\"",106,106,"Alessandria","AL","006092","Melazzo"]
["Piemonte","Merana","Merana (AL) ","Ente di Governo d'Ambito Ottimale n.6 \"Alessandrino\"",106,106,"Alessandria","AL","006093","Merana"]
["Piemonte","Mirabello Monferrato","Mirabello Monferrato (AL) ","Ente di Governo dell'Ambito n. 5 Astigiano Monferrato",105,105,"Alessandria","AL","006094","Mirabello Monferrato"]
["Piemonte","Molare","Molare (AL) ","Ente di Governo d'Ambito Ottimale n.6 \"Alessandrino\"",106,106,"Alessandria","AL","006095","Molare"]
["Piemonte","Molino dei Torti","Molino dei Torti (AL) ","Ente di Governo d'Ambito Ottimale n.6 \"Alessandrino\"",106,106,"Alessandria","AL","006096","Molino dei Torti"]
["Piemonte","Mombello Monferrato","Mombello Monferrato (AL) ","Ente di Governo dell'Ambito n. 5 Astigiano Monferrato",105,105,"Alessandria","AL","006097","Mombello Monferrato"]
["Piemonte","Momperone","Momperone (AL) ","Ente di Governo d'Ambito Ottimale n.6 \"Alessandrino\"",106,106,"Alessandria","AL","006098","Momperone"]
["Piemonte","Moncestino","Moncestino (AL) ","Ente di Governo dell'Ambito n. 5 Astigiano Monferrato",105,105,"Alessandria","AL","006099","Moncestino"]
["Piemonte","Mongiardino Ligure","Mongiardino Ligure (AL) ","Ente di Governo d'Ambito Ottimale n.6 \"Alessandrino\"",106,106,"Alessandria","AL","006100","Mongiardino Ligure"]
["Piemonte","Monleale","Monleale (AL) ","Ente di Governo d'Ambito Ottimale n.6 \"Alessandrino\"",106,106,"Alessandria","AL","006101","Monleale"]
["Piemonte","Montacuto","Montacuto (AL) ","Ente di Governo d'Ambito Ottimale n.6 \"Alessandrino\"",106,106,"Alessandria","AL","006102","Montacuto"]
["Piemonte","Montaldeo","Montaldeo (AL) ","Ente di Governo d'Ambito Ottimale n.6 \"Alessandrino\"",106,106,"Alessandria","AL","006103","Montaldeo"]
["Piemonte","Montaldo Bormida","Montaldo Bormida (AL) ","Ente di Governo d'Ambito Ottimale n.6 \"Alessandrino\"",106,106,"Alessandria","AL","006104","Montaldo Bormida"]
["Piemonte","Montecastello","Montecastello (AL) ","Ente di Governo d'Ambito Ottimale n.6 \"Alessandrino\"",106,106,"Alessandria","AL","006105","Montecastello"]
["Piemonte","Montechiaro d'Acqui","Montechiaro d'Acqui (AL) ","Ente di Governo d'Ambito Ottimale n.6 \"Alessandrino\"",106,106,"Alessandria","AL","006106","Montechiaro d'Acqui"]
["Piemonte","Montegioco","Montegioco (AL) ","Ente di Governo d'Ambito Ottimale n.6 \"Alessandrino\"",106,106,"Alessandria","AL","006107","Montegioco"]
["Piemonte","Montemarzino","Montemarzino (AL) ","Ente di Governo d'Ambito Ottimale n.6 \"Alessandrino\"",106,106,"Alessandria","AL","006108","Montemarzino"]
["Piemonte","Morano sul Po","Morano sul Po (AL) ","ATO 2 Biellese, Vercellese e Casalese",102,102,"Alessandria","AL","006109","Morano sul Po"]
["Piemonte","Morbello","Morbello (AL) ","Ente di Governo d'Ambito Ottimale n.6 \"Alessandrino\"",106,106,"Alessandria","AL","006110","Morbello"]
["Piemonte","Mornese","Mornese (AL) ","Ente di Governo d'Ambito Ottimale n.6 \"Alessandrino\"",106,106,"Alessandria","AL","006111","Mornese"]
["Piemonte","Morsasco","Morsasco (AL) ","Ente di Governo d'Ambito Ottimale n.6 \"Alessandrino\"",106,106,"Alessandria","AL","006112","Morsasco"]
["Piemonte","Murisengo Monferrato","Murisengo Monferrato (AL) ","Ente di Governo dell'Ambito n. 5 Astigiano Monferrato",105,105,"Alessandria","AL","006113","Murisengo Monferrato"]
["Piemonte","Novi Ligure","Novi Ligure (AL) ","Ente di Governo d'Ambito Ottimale n.6 \"Alessandrino\"",106,106,"Alessandria","AL","006114","Novi Ligure"]
["Piemonte","Occimiano","Occimiano (AL) ","Ente di Governo dell'Ambito n. 5 Astigiano Monferrato",105,105,"Alessandria","AL","006115","Occimiano"]
["Piemonte","Odalengo Grande","Odalengo Grande (AL) ","Ente di Governo dell'Ambito n. 5 Astigiano Monferrato",105,105,"Alessandria","AL","006116","Odalengo Grande"]
["Piemonte","Odalengo Piccolo","Odalengo Piccolo (AL) ","Ente di Governo dell'Ambito n. 5 Astigiano Monferrato",105,105,"Alessandria","AL","006117","Odalengo Piccolo"]
["Piemonte","Olivola","Olivola (AL) ","Ente di Governo dell'Ambito n. 5 Astigiano Monferrato",105,105,"Alessandria","AL","006118","Olivola"]
["Piemonte","Orsara Bormida","Orsara Bormida (AL) ","Ente di Governo d'Ambito Ottimale n.6 \"Alessandrino\"",106,106,"Alessandria","AL","006119","Orsara Bormida"]
["Piemonte","Ottiglio","Ottiglio (AL) ","Ente di Governo dell'Ambito n. 5 Astigiano Monferrato",105,105,"Alessandria","AL","006120","Ottiglio"]
["Piemonte","Ovada","Ovada (AL) ","Ente di Governo d'Ambito Ottimale n.6 \"Alessandrino\"",106,106,"Alessandria","AL","006121","Ovada"]
["Piemonte","Oviglio","Oviglio (AL) ","Ente di Governo d'Ambito Ottimale n.6 \"Alessandrino\"",106,106,"Alessandria","AL","006122","Oviglio"]
["Piemonte","Ozzano Monferrato","Ozzano Monferrato (AL) ","Ente di Governo dell'Ambito n. 5 Astigiano Monferrato",105,105,"Alessandria","AL","006123","Ozzano Monferrato"]
["Piemonte","Paderna","Paderna (AL) ","Ente di Governo d'Ambito Ottimale n.6 \"Alessandrino\"",106,106,"Alessandria","AL","006124","Paderna"]
["Piemonte","Pareto","Pareto (AL) ","Ente di Governo d'Ambito Ottimale n.6 \"Alessandrino\"",106,106,"Alessandria","AL","006125","Pareto"]
["Piemonte","Parodi Ligure","Parodi Ligure (AL) ","Ente di Governo d'Ambito Ottimale n.6 \"Alessandrino\"",106,106,"Alessandria","AL","006126","Parodi Ligure"]
["Piemonte","Pasturana","Pasturana (AL) ","Ente di Governo d'Ambito Ottimale n.6 \"Alessandrino\"",106,106,"Alessandria","AL","006127","Pasturana"]
["Piemonte","Pecetto di Valenza","Pecetto di Valenza (AL) ","ATO 2 Biellese, Vercellese e Casalese",102,102,"Alessandria","AL","006128","Pecetto di Valenza"]
["Piemonte","Pietra Marazzi","Pietra Marazzi (AL) ","Ente di Governo d'Ambito Ottimale n.6 \"Alessandrino\"",106,106,"Alessandria","AL","006129","Pietra Marazzi"]
["Piemonte","Pomaro Monferrato","Pomaro Monferrato (AL) ","Ente di Governo dell'Ambito n. 5 Astigiano Monferrato",105,105,"Alessandria","AL","006131","Pomaro Monferrato"]
["Piemonte","Pontecurone","Pontecurone (AL) ","Ente di Governo d'Ambito Ottimale n.6 \"Alessandrino\"",106,106,"Alessandria","AL","006132","Pontecurone"]
["Piemonte","Pontestura","Pontestura (AL) ","Ente di Governo dell'Ambito n. 5 Astigiano Monferrato",105,105,"Alessandria","AL","006133","Pontestura"]
["Piemonte","Ponti","Ponti (AL) ","Ente di Governo d'Ambito Ottimale n.6 \"Alessandrino\"",106,106,"Alessandria","AL","006134","Ponti"]
["Piemonte","Ponzano Monferrato","Ponzano Monferrato (AL) ","Ente di Governo dell'Ambito n. 5 Astigiano Monferrato",105,105,"Alessandria","AL","006135","Ponzano Monferrato"]
["Piemonte","Ponzone","Ponzone (AL) ","Ente di Governo d'Ambito Ottimale n.6 \"Alessandrino\"",106,106,"Alessandria","AL","006136","Ponzone"]
["Piemonte","Pozzol Groppo","Pozzol Groppo (AL) ","Ente di Governo d'Ambito Ottimale n.6 \"Alessandrino\"",106,106,"Alessandria","AL","006137","Pozzol Groppo"]
["Piemonte","Pozzolo Formigaro","Pozzolo Formigaro (AL) ","Ente di Governo d'Ambito Ottimale n.6 \"Alessandrino\"",106,106,"Alessandria","AL","006138","Pozzolo Formigaro"]
["Piemonte","Prasco","Prasco (AL) ","Ente di Governo d'Ambito Ottimale n.6 \"Alessandrino\"",106,106,"Alessandria","AL","006139","Prasco"]
["Piemonte","Predosa","Predosa (AL) ","Ente di Governo d'Ambito Ottimale n.6 \"Alessandrino\"",106,106,"Alessandria","AL","006140","Predosa"]
["Piemonte","Quargnento","Quargnento (AL) ","Ente di Governo dell'Ambito n. 5 Astigiano Monferrato",105,105,"Alessandria","AL","006141","Quargnento"]
["Piemonte","Quattordio","Quattordio (AL) ","Ente di Governo dell'Ambito n. 5 Astigiano Monferrato",105,105,"Alessandria","AL","006142","Quattordio"]
["Piemonte","Ricaldone","Ricaldone (AL) ","Ente di Governo d'Ambito Ottimale n.6 \"Alessandrino\"",106,106,"Alessandria","AL","006143","Ricaldone"]
["Piemonte","Rivalta Bormida","Rivalta Bormida (AL) ","Ente di Governo d'Ambito Ottimale n.6 \"Alessandrino\"",106,106,"Alessandria","AL","006144","Rivalta Bormida"]
["Piemonte","Rivarone","Rivarone (AL) ","Ente di Governo d'Ambito Ottimale n.6 \"Alessandrino\"",106,106,"Alessandria","AL","006145","Rivarone"]
["Piemonte","Roccaforte Ligure","Roccaforte Ligure (AL) ","Ente di Governo d'Ambito Ottimale n.6 \"Alessandrino\"",106,106,"Alessandria","AL","006146","Roccaforte Ligure"]
["Piemonte","Rocca Grimalda","Rocca Grimalda (AL) ","Ente di Governo d'Ambito Ottimale n.6 \"Alessandrino\"",106,106,"Alessandria","AL","006147","Rocca Grimalda"]
["Piemonte","Rocchetta Ligure","Rocchetta Ligure (AL) ","Ente di Governo d'Ambito Ottimale n.6 \"Alessandrino\"",106,106,"Alessandria","AL","006148","Rocchetta Ligure"]
["Piemonte","Rosignano Monferrato","Rosignano Monferrato (AL) ","Ente di Governo dell'Ambito n. 5 Astigiano Monferrato",105,105,"Alessandria","AL","006149","Rosignano Monferrato"]
["Piemonte","Sala Monferrato","Sala Monferrato (AL) ","Ente di Governo dell'Ambito n. 5 Astigiano Monferrato",105,105,"Alessandria","AL","006150","Sala Monferrato"]
["Piemonte","Sale","Sale (AL) ","Ente di Governo d'Ambito Ottimale n.6 \"Alessandrino\"",106,106,"Alessandria","AL","006151","Sale"]
["Piemonte","San Cristoforo","San Cristoforo (AL) ","Ente di Governo d'Ambito Ottimale n.6 \"Alessandrino\"",106,106,"Alessandria","AL","006152","San Cristoforo"]
["Piemonte","San Giorgio Monferrato","San Giorgio Monferrato (AL) ","Ente di Governo dell'Ambito n. 5 Astigiano Monferrato",105,105,"Alessandria","AL","006153","San Giorgio Monferrato"]
["Piemonte","San Salvatore Monferrato","San Salvatore Monferrato (AL) ","Ente di Governo dell'Ambito n. 5 Astigiano Monferrato",105,105,"Alessandria","AL","006154","San Salvatore Monferrato"]
["Piemonte","San Sebastiano Curone","San Sebastiano Curone (AL) ","Ente di Governo d'Ambito Ottimale n.6 \"Alessandrino\"",106,106,"Alessandria","AL","006155","San Sebastiano Curone"]
["Piemonte","Sant'Agata Fossili","Sant'Agata Fossili (AL) ","Ente di Governo d'Ambito Ottimale n.6 \"Alessandrino\"",106,106,"Alessandria","AL","006156","Sant'Agata Fossili"]
["Piemonte","Sardigliano","Sardigliano (AL) ","Ente di Governo d'Ambito Ottimale n.6 \"Alessandrino\"",106,106,"Alessandria","AL","006157","Sardigliano"]
["Piemonte","Sarezzano","Sarezzano (AL) ","Ente di Governo d'Ambito Ottimale n.6 \"Alessandrino\"",106,106,"Alessandria","AL","006158","Sarezzano"]
["Piemonte","Serralunga di Crea","Serralunga di Crea (AL) ","Ente di Governo dell'Ambito n. 5 Astigiano Monferrato",105,105,"Alessandria","AL","006159","Serralunga di Crea"]
["Piemonte","Serravalle Scrivia","Serravalle Scrivia (AL) ","Ente di Governo d'Ambito Ottimale n.6 \"Alessandrino\"",106,106,"Alessandria","AL","006160","Serravalle Scrivia"]
["Piemonte","Sezzadio","Sezzadio (AL) ","Ente di Governo d'Ambito Ottimale n.6 \"Alessandrino\"",106,106,"Alessandria","AL","006161","Sezzadio"]
["Piemonte","Silvano d'Orba","Silvano d'Orba (AL) ","Ente di Governo d'Ambito Ottimale n.6 \"Alessandrino\"",106,106,"Alessandria","AL","006162","Silvano d'Orba"]
["Piemonte","Solero","Solero (AL) ","Ente di Governo d'Ambito Ottimale n.6 \"Alessandrino\"",106,106,"Alessandria","AL","006163","Solero"]
["Piemonte","Solonghello","Solonghello (AL) ","Ente di Governo dell'Ambito n. 5 Astigiano Monferrato",105,105,"Alessandria","AL","006164","Solonghello"]
["Piemonte","Spigno Monferrato","Spigno Monferrato (AL) ","Ente di Governo d'Ambito Ottimale n.6 \"Alessandrino\"",106,106,"Alessandria","AL","006165","Spigno Monferrato"]
["Piemonte","Spineto Scrivia","Spineto Scrivia (AL) ","Ente di Governo d'Ambito Ottimale n.6 \"Alessandrino\"",106,106,"Alessandria","AL","006166","Spineto Scrivia"]
["Piemonte","Stazzano","Stazzano (AL) ","Ente di Governo d'Ambito Ottimale n.6 \"Alessandrino\"",106,106,"Alessandria","AL","006167","Stazzano"]
["Piemonte","Strevi","Strevi (AL) ","Ente di Governo d'Ambito Ottimale n.6 \"Alessandrino\"",106,106,"Alessandria","AL","006168","Strevi"]
["Piemonte","Tagliolo Monferrato","Tagliolo Monferrato (AL) ","Ente di Governo d'Ambito Ottimale n.6 \"Alessandrino\"",106,106,"Alessandria","AL","006169","Tagliolo Monferrato"]
["Piemonte","Tassarolo","Tassarolo (AL) ","Ente di Governo d'Ambito Ottimale n.6 \"Alessandrino\"",106,106,"Alessandria","AL","006170","Tassarolo"]
["Piemonte","Terruggia","Terruggia (AL) ","Ente di Governo dell'Ambito n. 5 Astigiano Monferrato",105,105,"Alessandria","AL","006171","Terruggia"]
["Piemonte","Terzo","Terzo (AL) ","Ente di Governo d'Ambito Ottimale n.6 \"Alessandrino\"",106,106,"Alessandria","AL","006172","Terzo"]
["Piemonte","Ticineto","Ticineto (AL) ","ATO 2 Biellese, Vercellese e Casalese",102,102,"Alessandria","AL","006173","Ticineto"]
["Piemonte","Tortona","Tortona (AL) ","Ente di Governo d'Ambito Ottimale n.6 \"Alessandrino\"",106,106,"Alessandria","AL","006174","Tortona"]
["Piemonte","Treville","Treville (AL) ","Ente di Governo dell'Ambito n. 5 Astigiano Monferrato",105,105,"Alessandria","AL","006175","Treville"]
["Piemonte","Trisobbio","Trisobbio (AL) ","Ente di Governo d'Ambito Ottimale n.6 \"Alessandrino\"",106,106,"Alessandria","AL","006176","Trisobbio"]
["Piemonte","Valenza","Valenza (AL) ","ATO 2 Biellese, Vercellese e Casalese",102,102,"Alessandria","AL","006177","Valenza"]
["Piemonte","Valmacca","Valmacca (AL) ","ATO 2 Biellese, Vercellese e Casalese",102,102,"Alessandria","AL","006178","Valmacca"]
["Piemonte","Vignale Monferrato","Vignale Monferrato (AL) ","Ente di Governo dell'Ambito n. 5 Astigiano Monferrato",105,105,"Alessandria","AL","006179","Vignale Monferrato"]
["Piemonte","Vignole Borbera","Vignole Borbera (AL) ","Ente di Governo d'Ambito Ottimale n.6 \"Alessandrino\"",106,106,"Alessandria","AL","006180","Vignole Borbera"]
["Piemonte","Viguzzolo","Viguzzolo (AL) ","Ente di Governo d'Ambito Ottimale n.6 \"Alessandrino\"",106,106,"Alessandria","AL","006181","Viguzzolo"]
["Piemonte","Villadeati","Villadeati (AL) ","Ente di Governo dell'Ambito n. 5 Astigiano Monferrato",105,105,"Alessandria","AL","006182","Villadeati"]
["Piemonte","Villalvernia","Villalvernia (AL) ","Ente di Governo d'Ambito Ottimale n.6 \"Alessandrino\"",106,106,"Alessandria","AL","006183","Villalvernia"]
["Piemonte","Villamiroglio","Villamiroglio (AL) ","Ente di Governo dell'Ambito n. 5 Astigiano Monferrato",105,105,"Alessandria","AL","006184","Villamiroglio"]
["Piemonte","Villanova Monferrato","Villanova Monferrato (AL) ","ATO 2 Biellese, Vercellese e Casalese",102,102,"Alessandria","AL","006185","Villanova Monferrato"]
["Piemonte","Villaromagnano","Villaromagnano (AL) ","Ente di Governo d'Ambito Ottimale n.6 \"Alessandrino\"",106,106,"Alessandria","AL","006186","Villaromagnano"]
["Piemonte","Visone","Visone (AL) ","Ente di Governo d'Ambito Ottimale n.6 \"Alessandrino\"",106,106,"Alessandria","AL","006187","Visone"]
["Piemonte","Volpedo","Volpedo (AL) ","Ente di Governo d'Ambito Ottimale n.6 \"Alessandrino\"",106,106,"Alessandria","AL","006188","Volpedo"]
["Piemonte","Volpeglino","Volpeglino (AL) ","Ente di Governo d'Ambito Ottimale n.6 \"Alessandrino\"",106,106,"Alessandria","AL","006189","Volpeglino"]
["Piemonte","Voltaggio","Voltaggio (AL) ","Ente di Governo d'Ambito Ottimale n.6 \"Alessandrino\"",106,106,"Alessandria","AL","006190","Voltaggio"]
["Piemonte","Cassano Spinola","Cassano Spinola (AL) ","Ente di Governo d'Ambito Ottimale n.6 \"Alessandrino\"",106,106,"Alessandria","AL","006191","Cassano Spinola"]
["Piemonte","Alluvioni Piovera","Alluvioni Piovera (AL) ","Ente di Governo d'Ambito Ottimale n.6 \"Alessandrino\"",106,106,"Alessandria","AL","006192","Alluvioni Piovera"]
["Piemonte","Lu e Cuccaro Monferrato","Lu e Cuccaro Monferrato (AL) ","Ente di Governo dell'Ambito n. 5 Astigiano Monferrato",105,105,"Alessandria","AL","006193","Lu e Cuccaro Monferrato"]
["Valle d'Aosta/Vallée d'Aoste","Allein","Allein (AO) ","Consorzio dei Comuni della Valle d'Aosta Bacino Imbrifero Montano",201,201,"Valle d'Aosta/Vallée d'Aoste","AO","007001","Allein"]
["Valle d'Aosta/Vallée d'Aoste","Antey-Saint-André","Antey-Saint-André (AO) ","Consorzio dei Comuni della Valle d'Aosta Bacino Imbrifero Montano",201,201,"Valle d'Aosta/Vallée d'Aoste","AO","007002","Antey-Saint-André"]
["Valle d'Aosta/Vallée d'Aoste","Aosta","Aosta (AO) ","Consorzio dei Comuni della Valle d'Aosta Bacino Imbrifero Montano",201,201,"Valle d'Aosta/Vallée d'Aoste","AO","007003","Aosta"]
["Valle d'Aosta/Vallée d'Aoste","Arnad","Arnad (AO) ","Consorzio dei Comuni della Valle d'Aosta Bacino Imbrifero Montano",201,201,"Valle d'Aosta/Vallée d'Aoste","AO","007004","Arnad"]
["Valle d'Aosta/Vallée d'Aoste","Arvier","Arvier (AO) ","Consorzio dei Comuni della Valle d'Aosta Bacino Imbrifero Montano",201,201,"Valle d'Aosta/Vallée d'Aoste","AO","007005","Arvier"]
["Valle d'Aosta/Vallée d'Aoste","Avise","Avise (AO) ","Consorzio dei Comuni della Valle d'Aosta Bacino Imbrifero Montano",201,201,"Valle d'Aosta/Vallée d'Aoste","AO","007006","Avise"]
["Valle d'Aosta/Vallée d'Aoste","Ayas","Ayas (AO) ","Consorzio dei Comuni della Valle d'Aosta Bacino Imbrifero Montano",201,201,"Valle d'Aosta/Vallée d'Aoste","AO","007007","Ayas"]
["Valle d'Aosta/Vallée d'Aoste","Aymavilles","Aymavilles (AO) ","Consorzio dei Comuni della Valle d'Aosta Bacino Imbrifero Montano",201,201,"Valle d'Aosta/Vallée d'Aoste","AO","007008","Aymavilles"]
["Valle d'Aosta/Vallée d'Aoste","Bard","Bard (AO) ","Consorzio dei Comuni della Valle d'Aosta Bacino Imbrifero Montano",201,201,"Valle d'Aosta/Vallée d'Aoste","AO","007009","Bard"]
["Valle d'Aosta/Vallée d'Aoste","Bionaz","Bionaz (AO) ","Consorzio dei Comuni della Valle d'Aosta Bacino Imbrifero Montano",201,201,"Valle d'Aosta/Vallée d'Aoste","AO","007010","Bionaz"]
["Valle d'Aosta/Vallée d'Aoste","Brissogne","Brissogne (AO) ","Consorzio dei Comuni della Valle d'Aosta Bacino Imbrifero Montano",201,201,"Valle d'Aosta/Vallée d'Aoste","AO","007011","Brissogne"]
["Valle d'Aosta/Vallée d'Aoste","Brusson","Brusson (AO) ","Consorzio dei Comuni della Valle d'Aosta Bacino Imbrifero Montano",201,201,"Valle d'Aosta/Vallée d'Aoste","AO","007012","Brusson"]
["Valle d'Aosta/Vallée d'Aoste","Challand-Saint-Anselme","Challand-Saint-Anselme (AO) ","Consorzio dei Comuni della Valle d'Aosta Bacino Imbrifero Montano",201,201,"Valle d'Aosta/Vallée d'Aoste","AO","007013","Challand-Saint-Anselme"]
["Valle d'Aosta/Vallée d'Aoste","Challand-Saint-Victor","Challand-Saint-Victor (AO) ","Consorzio dei Comuni della Valle d'Aosta Bacino Imbrifero Montano",201,201,"Valle d'Aosta/Vallée d'Aoste","AO","007014","Challand-Saint-Victor"]
["Valle d'Aosta/Vallée d'Aoste","Chambave","Chambave (AO) ","Consorzio dei Comuni della Valle d'Aosta Bacino Imbrifero Montano",201,201,"Valle d'Aosta/Vallée d'Aoste","AO","007015","Chambave"]
["Valle d'Aosta/Vallée d'Aoste","Chamois","Chamois (AO) ","Consorzio dei Comuni della Valle d'Aosta Bacino Imbrifero Montano",201,201,"Valle d'Aosta/Vallée d'Aoste","AO","007016","Chamois"]
["Valle d'Aosta/Vallée d'Aoste","Champdepraz","Champdepraz (AO) ","Consorzio dei Comuni della Valle d'Aosta Bacino Imbrifero Montano",201,201,"Valle d'Aosta/Vallée d'Aoste","AO","007017","Champdepraz"]
["Valle d'Aosta/Vallée d'Aoste","Champorcher","Champorcher (AO) ","Consorzio dei Comuni della Valle d'Aosta Bacino Imbrifero Montano",201,201,"Valle d'Aosta/Vallée d'Aoste","AO","007018","Champorcher"]
["Valle d'Aosta/Vallée d'Aoste","Charvensod","Charvensod (AO) ","Consorzio dei Comuni della Valle d'Aosta Bacino Imbrifero Montano",201,201,"Valle d'Aosta/Vallée d'Aoste","AO","007019","Charvensod"]
["Valle d'Aosta/Vallée d'Aoste","Châtillon","Châtillon (AO) ","Consorzio dei Comuni della Valle d'Aosta Bacino Imbrifero Montano",201,201,"Valle d'Aosta/Vallée d'Aoste","AO","007020","Châtillon"]
["Valle d'Aosta/Vallée d'Aoste","Cogne","Cogne (AO) ","Consorzio dei Comuni della Valle d'Aosta Bacino Imbrifero Montano",201,201,"Valle d'Aosta/Vallée d'Aoste","AO","007021","Cogne"]
["Valle d'Aosta/Vallée d'Aoste","Courmayeur","Courmayeur (AO) ","Consorzio dei Comuni della Valle d'Aosta Bacino Imbrifero Montano",201,201,"Valle d'Aosta/Vallée d'Aoste","AO","007022","Courmayeur"]
["Valle d'Aosta/Vallée d'Aoste","Donnas","Donnas (AO) ","Consorzio dei Comuni della Valle d'Aosta Bacino Imbrifero Montano",201,201,"Valle d'Aosta/Vallée d'Aoste","AO","007023","Donnas"]
["Valle d'Aosta/Vallée d'Aoste","Doues","Doues (AO) ","Consorzio dei Comuni della Valle d'Aosta Bacino Imbrifero Montano",201,201,"Valle d'Aosta/Vallée d'Aoste","AO","007024","Doues"]
["Valle d'Aosta/Vallée d'Aoste","Emarèse","Emarèse (AO) ","Consorzio dei Comuni della Valle d'Aosta Bacino Imbrifero Montano",201,201,"Valle d'Aosta/Vallée d'Aoste","AO","007025","Emarèse"]
["Valle d'Aosta/Vallée d'Aoste","Etroubles","Etroubles (AO) ","Consorzio dei Comuni della Valle d'Aosta Bacino Imbrifero Montano",201,201,"Valle d'Aosta/Vallée d'Aoste","AO","007026","Etroubles"]
["Valle d'Aosta/Vallée d'Aoste","Fénis","Fénis (AO) ","Consorzio dei Comuni della Valle d'Aosta Bacino Imbrifero Montano",201,201,"Valle d'Aosta/Vallée d'Aoste","AO","007027","Fénis"]
["Valle d'Aosta/Vallée d'Aoste","Fontainemore","Fontainemore (AO) ","Consorzio dei Comuni della Valle d'Aosta Bacino Imbrifero Montano",201,201,"Valle d'Aosta/Vallée d'Aoste","AO","007028","Fontainemore"]
["Valle d'Aosta/Vallée d'Aoste","Gaby","Gaby (AO) ","Consorzio dei Comuni della Valle d'Aosta Bacino Imbrifero Montano",201,201,"Valle d'Aosta/Vallée d'Aoste","AO","007029","Gaby"]
["Valle d'Aosta/Vallée d'Aoste","Gignod","Gignod (AO) ","Consorzio dei Comuni della Valle d'Aosta Bacino Imbrifero Montano",201,201,"Valle d'Aosta/Vallée d'Aoste","AO","007030","Gignod"]
["Valle d'Aosta/Vallée d'Aoste","Gressan","Gressan (AO) ","Consorzio dei Comuni della Valle d'Aosta Bacino Imbrifero Montano",201,201,"Valle d'Aosta/Vallée d'Aoste","AO","007031","Gressan"]
["Valle d'Aosta/Vallée d'Aoste","Gressoney-La-Trinité","Gressoney-La-Trinité (AO) ","Consorzio dei Comuni della Valle d'Aosta Bacino Imbrifero Montano",201,201,"Valle d'Aosta/Vallée d'Aoste","AO","007032","Gressoney-La-Trinité"]
["Valle d'Aosta/Vallée d'Aoste","Gressoney-Saint-Jean","Gressoney-Saint-Jean (AO) ","Consorzio dei Comuni della Valle d'Aosta Bacino Imbrifero Montano",201,201,"Valle d'Aosta/Vallée d'Aoste","AO","007033","Gressoney-Saint-Jean"]
["Valle d'Aosta/Vallée d'Aoste","Hône","Hône (AO) ","Consorzio dei Comuni della Valle d'Aosta Bacino Imbrifero Montano",201,201,"Valle d'Aosta/Vallée d'Aoste","AO","007034","Hône"]
["Valle d'Aosta/Vallée d'Aoste","Introd","Introd (AO) ","Consorzio dei Comuni della Valle d'Aosta Bacino Imbrifero Montano",201,201,"Valle d'Aosta/Vallée d'Aoste","AO","007035","Introd"]
["Valle d'Aosta/Vallée d'Aoste","Issime","Issime (AO) ","Consorzio dei Comuni della Valle d'Aosta Bacino Imbrifero Montano",201,201,"Valle d'Aosta/Vallée d'Aoste","AO","007036","Issime"]
["Valle d'Aosta/Vallée d'Aoste","Issogne","Issogne (AO) ","Consorzio dei Comuni della Valle d'Aosta Bacino Imbrifero Montano",201,201,"Valle d'Aosta/Vallée d'Aoste","AO","007037","Issogne"]
["Valle d'Aosta/Vallée d'Aoste","Jovençan","Jovençan (AO) ","Consorzio dei Comuni della Valle d'Aosta Bacino Imbrifero Montano",201,201,"Valle d'Aosta/Vallée d'Aoste","AO","007038","Jovençan"]
["Valle d'Aosta/Vallée d'Aoste","La Magdeleine","La Magdeleine (AO) ","Consorzio dei Comuni della Valle d'Aosta Bacino Imbrifero Montano",201,201,"Valle d'Aosta/Vallée d'Aoste","AO","007039","La Magdeleine"]
["Valle d'Aosta/Vallée d'Aoste","La Salle","La Salle (AO) ","Consorzio dei Comuni della Valle d'Aosta Bacino Imbrifero Montano",201,201,"Valle d'Aosta/Vallée d'Aoste","AO","007040","La Salle"]
["Valle d'Aosta/Vallée d'Aoste","La Thuile","La Thuile (AO) ","Consorzio dei Comuni della Valle d'Aosta Bacino Imbrifero Montano",201,201,"Valle d'Aosta/Vallée d'Aoste","AO","007041","La Thuile"]
["Valle d'Aosta/Vallée d'Aoste","Lillianes","Lillianes (AO) ","Consorzio dei Comuni della Valle d'Aosta Bacino Imbrifero Montano",201,201,"Valle d'Aosta/Vallée d'Aoste","AO","007042","Lillianes"]
["Valle d'Aosta/Vallée d'Aoste","Montjovet","Montjovet (AO) ","Consorzio dei Comuni della Valle d'Aosta Bacino Imbrifero Montano",201,201,"Valle d'Aosta/Vallée d'Aoste","AO","007043","Montjovet"]
["Valle d'Aosta/Vallée d'Aoste","Morgex","Morgex (AO) ","Consorzio dei Comuni della Valle d'Aosta Bacino Imbrifero Montano",201,201,"Valle d'Aosta/Vallée d'Aoste","AO","007044","Morgex"]
["Valle d'Aosta/Vallée d'Aoste","Nus","Nus (AO) ","Consorzio dei Comuni della Valle d'Aosta Bacino Imbrifero Montano",201,201,"Valle d'Aosta/Vallée d'Aoste","AO","007045","Nus"]
["Valle d'Aosta/Vallée d'Aoste","Ollomont","Ollomont (AO) ","Consorzio dei Comuni della Valle d'Aosta Bacino Imbrifero Montano",201,201,"Valle d'Aosta/Vallée d'Aoste","AO","007046","Ollomont"]
["Valle d'Aosta/Vallée d'Aoste","Oyace","Oyace (AO) ","Consorzio dei Comuni della Valle d'Aosta Bacino Imbrifero Montano",201,201,"Valle d'Aosta/Vallée d'Aoste","AO","007047","Oyace"]
["Valle d'Aosta/Vallée d'Aoste","Perloz","Perloz (AO) ","Consorzio dei Comuni della Valle d'Aosta Bacino Imbrifero Montano",201,201,"Valle d'Aosta/Vallée d'Aoste","AO","007048","Perloz"]
["Valle d'Aosta/Vallée d'Aoste","Pollein","Pollein (AO) ","Consorzio dei Comuni della Valle d'Aosta Bacino Imbrifero Montano",201,201,"Valle d'Aosta/Vallée d'Aoste","AO","007049","Pollein"]
["Valle d'Aosta/Vallée d'Aoste","Pontboset","Pontboset (AO) ","Consorzio dei Comuni della Valle d'Aosta Bacino Imbrifero Montano",201,201,"Valle d'Aosta/Vallée d'Aoste","AO","007050","Pontboset"]
["Valle d'Aosta/Vallée d'Aoste","Pontey","Pontey (AO) ","Consorzio dei Comuni della Valle d'Aosta Bacino Imbrifero Montano",201,201,"Valle d'Aosta/Vallée d'Aoste","AO","007051","Pontey"]
["Valle d'Aosta/Vallée d'Aoste","Pont-Saint-Martin","Pont-Saint-Martin (AO) ","Consorzio dei Comuni della Valle d'Aosta Bacino Imbrifero Montano",201,201,"Valle d'Aosta/Vallée d'Aoste","AO","007052","Pont-Saint-Martin"]
["Valle d'Aosta/Vallée d'Aoste","Pré-Saint-Didier","Pré-Saint-Didier (AO) ","Consorzio dei Comuni della Valle d'Aosta Bacino Imbrifero Montano",201,201,"Valle d'Aosta/Vallée d'Aoste","AO","007053","Pré-Saint-Didier"]
["Valle d'Aosta/Vallée d'Aoste","Quart","Quart (AO) ","Consorzio dei Comuni della Valle d'Aosta Bacino Imbrifero Montano",201,201,"Valle d'Aosta/Vallée d'Aoste","AO","007054","Quart"]
["Valle d'Aosta/Vallée d'Aoste","Rhêmes-Notre-Dame","Rhêmes-Notre-Dame (AO) ","Consorzio dei Comuni della Valle d'Aosta Bacino Imbrifero Montano",201,201,"Valle d'Aosta/Vallée d'Aoste","AO","007055","Rhêmes-Notre-Dame"]
["Valle d'Aosta/Vallée d'Aoste","Rhêmes-Saint-Georges","Rhêmes-Saint-Georges (AO) ","Consorzio dei Comuni della Valle d'Aosta Bacino Imbrifero Montano",201,201,"Valle d'Aosta/Vallée d'Aoste","AO","007056","Rhêmes-Saint-Georges"]
["Valle d'Aosta/Vallée d'Aoste","Roisan","Roisan (AO) ","Consorzio dei Comuni della Valle d'Aosta Bacino Imbrifero Montano",201,201,"Valle d'Aosta/Vallée d'Aoste","AO","007057","Roisan"]
["Valle d'Aosta/Vallée d'Aoste","Saint-Christophe","Saint-Christophe (AO) ","Consorzio dei Comuni della Valle d'Aosta Bacino Imbrifero Montano",201,201,"Valle d'Aosta/Vallée d'Aoste","AO","007058","Saint-Christophe"]
["Valle d'Aosta/Vallée d'Aoste","Saint-Denis","Saint-Denis (AO) ","Consorzio dei Comuni della Valle d'Aosta Bacino Imbrifero Montano",201,201,"Valle d'Aosta/Vallée d'Aoste","AO","007059","Saint-Denis"]
["Valle d'Aosta/Vallée d'Aoste","Saint-Marcel","Saint-Marcel (AO) ","Consorzio dei Comuni della Valle d'Aosta Bacino Imbrifero Montano",201,201,"Valle d'Aosta/Vallée d'Aoste","AO","007060","Saint-Marcel"]
["Valle d'Aosta/Vallée d'Aoste","Saint-Nicolas","Saint-Nicolas (AO) ","Consorzio dei Comuni della Valle d'Aosta Bacino Imbrifero Montano",201,201,"Valle d'Aosta/Vallée d'Aoste","AO","007061","Saint-Nicolas"]
["Valle d'Aosta/Vallée d'Aoste","Saint-Oyen","Saint-Oyen (AO) ","Consorzio dei Comuni della Valle d'Aosta Bacino Imbrifero Montano",201,201,"Valle d'Aosta/Vallée d'Aoste","AO","007062","Saint-Oyen"]
["Valle d'Aosta/Vallée d'Aoste","Saint-Pierre","Saint-Pierre (AO) ","Consorzio dei Comuni della Valle d'Aosta Bacino Imbrifero Montano",201,201,"Valle d'Aosta/Vallée d'Aoste","AO","007063","Saint-Pierre"]
["Valle d'Aosta/Vallée d'Aoste","Saint-Rhémy-en-Bosses","Saint-Rhémy-en-Bosses (AO) ","Consorzio dei Comuni della Valle d'Aosta Bacino Imbrifero Montano",201,201,"Valle d'Aosta/Vallée d'Aoste","AO","007064","Saint-Rhémy-en-Bosses"]
["Valle d'Aosta/Vallée d'Aoste","Saint-Vincent","Saint-Vincent (AO) ","Consorzio dei Comuni della Valle d'Aosta Bacino Imbrifero Montano",201,201,"Valle d'Aosta/Vallée d'Aoste","AO","007065","Saint-Vincent"]
["Valle d'Aosta/Vallée d'Aoste","Sarre","Sarre (AO) ","Consorzio dei Comuni della Valle d'Aosta Bacino Imbrifero Montano",201,201,"Valle d'Aosta/Vallée d'Aoste","AO","007066","Sarre"]
["Valle d'Aosta/Vallée d'Aoste","Torgnon","Torgnon (AO) ","Consorzio dei Comuni della Valle d'Aosta Bacino Imbrifero Montano",201,201,"Valle d'Aosta/Vallée d'Aoste","AO","007067","Torgnon"]
["Valle d'Aosta/Vallée d'Aoste","Valgrisenche","Valgrisenche (AO) ","Consorzio dei Comuni della Valle d'Aosta Bacino Imbrifero Montano",201,201,"Valle d'Aosta/Vallée d'Aoste","AO","007068","Valgrisenche"]
["Valle d'Aosta/Vallée d'Aoste","Valpelline","Valpelline (AO) ","Consorzio dei Comuni della Valle d'Aosta Bacino Imbrifero Montano",201,201,"Valle d'Aosta/Vallée d'Aoste","AO","007069","Valpelline"]
["Valle d'Aosta/Vallée d'Aoste","Valsavarenche","Valsavarenche (AO) ","Consorzio dei Comuni della Valle d'Aosta Bacino Imbrifero Montano",201,201,"Valle d'Aosta/Vallée d'Aoste","AO","007070","Valsavarenche"]
["Valle d'Aosta/Vallée d'Aoste","Valtournenche","Valtournenche (AO) ","Consorzio dei Comuni della Valle d'Aosta Bacino Imbrifero Montano",201,201,"Valle d'Aosta/Vallée d'Aoste","AO","007071","Valtournenche"]
["Valle d'Aosta/Vallée d'Aoste","Verrayes","Verrayes (AO) ","Consorzio dei Comuni della Valle d'Aosta Bacino Imbrifero Montano",201,201,"Valle d'Aosta/Vallée d'Aoste","AO","007072","Verrayes"]
["Valle d'Aosta/Vallée d'Aoste","Verrès","Verrès (AO) ","Consorzio dei Comuni della Valle d'Aosta Bacino Imbrifero Montano",201,201,"Valle d'Aosta/Vallée d'Aoste","AO","007073","Verrès"]
["Valle d'Aosta/Vallée d'Aoste","Villeneuve","Villeneuve (AO) ","Consorzio dei Comuni della Valle d'Aosta Bacino Imbrifero Montano",201,201,"Valle d'Aosta/Vallée d'Aoste","AO","007074","Villeneuve"]
["Liguria","Airole","Airole (IM) ","A.T.O. - Ovest - Provincia di Imperia",702,702,"Imperia","IM","008001","Airole"]
["Liguria","Apricale","Apricale (IM) ","A.T.O. - Ovest - Provincia di Imperia",702,702,"Imperia","IM","008002","Apricale"]
["Liguria","Aquila d'Arroscia","Aquila d'Arroscia (IM) ","A.T.O. - Ovest - Provincia di Imperia",702,702,"Imperia","IM","008003","Aquila d'Arroscia"]
["Liguria","Armo","Armo (IM) ","A.T.O. - Ovest - Provincia di Imperia",702,702,"Imperia","IM","008004","Armo"]
["Liguria","Aurigo","Aurigo (IM) ","A.T.O. - Ovest - Provincia di Imperia",702,702,"Imperia","IM","008005","Aurigo"]
["Liguria","Badalucco","Badalucco (IM) ","A.T.O. - Ovest - Provincia di Imperia",702,702,"Imperia","IM","008006","Badalucco"]
["Liguria","Bajardo","Bajardo (IM) ","A.T.O. - Ovest - Provincia di Imperia",702,702,"Imperia","IM","008007","Bajardo"]
["Liguria","Bordighera","Bordighera (IM) ","A.T.O. - Ovest - Provincia di Imperia",702,702,"Imperia","IM","008008","Bordighera"]
["Liguria","Borghetto d'Arroscia","Borghetto d'Arroscia (IM) ","A.T.O. - Ovest - Provincia di Imperia",702,702,"Imperia","IM","008009","Borghetto d'Arroscia"]
["Liguria","Borgomaro","Borgomaro (IM) ","A.T.O. - Ovest - Provincia di Imperia",702,702,"Imperia","IM","008010","Borgomaro"]
["Liguria","Camporosso","Camporosso (IM) ","A.T.O. - Ovest - Provincia di Imperia",702,702,"Imperia","IM","008011","Camporosso"]
["Liguria","Caravonica","Caravonica (IM) ","A.T.O. - Ovest - Provincia di Imperia",702,702,"Imperia","IM","008012","Caravonica"]
["Liguria","Castellaro","Castellaro (IM) ","A.T.O. - Ovest - Provincia di Imperia",702,702,"Imperia","IM","008014","Castellaro"]
["Liguria","Castel Vittorio","Castel Vittorio (IM) ","A.T.O. - Ovest - Provincia di Imperia",702,702,"Imperia","IM","008015","Castel Vittorio"]
["Liguria","Ceriana","Ceriana (IM) ","A.T.O. - Ovest - Provincia di Imperia",702,702,"Imperia","IM","008016","Ceriana"]
["Liguria","Cervo","Cervo (IM) ","A.T.O. - Ovest - Provincia di Imperia",702,702,"Imperia","IM","008017","Cervo"]
["Liguria","Cesio","Cesio (IM) ","A.T.O. - Ovest - Provincia di Imperia",702,702,"Imperia","IM","008018","Cesio"]
["Liguria","Chiusanico","Chiusanico (IM) ","A.T.O. - Ovest - Provincia di Imperia",702,702,"Imperia","IM","008019","Chiusanico"]
["Liguria","Chiusavecchia","Chiusavecchia (IM) ","A.T.O. - Ovest - Provincia di Imperia",702,702,"Imperia","IM","008020","Chiusavecchia"]
["Liguria","Cipressa","Cipressa (IM) ","A.T.O. - Ovest - Provincia di Imperia",702,702,"Imperia","IM","008021","Cipressa"]
["Liguria","Civezza","Civezza (IM) ","A.T.O. - Ovest - Provincia di Imperia",702,702,"Imperia","IM","008022","Civezza"]
["Liguria","Cosio d'Arroscia","Cosio d'Arroscia (IM) ","A.T.O. - Ovest - Provincia di Imperia",702,702,"Imperia","IM","008023","Cosio d'Arroscia"]
["Liguria","Costarainera","Costarainera (IM) ","A.T.O. - Ovest - Provincia di Imperia",702,702,"Imperia","IM","008024","Costarainera"]
["Liguria","Diano Arentino","Diano Arentino (IM) ","A.T.O. - Ovest - Provincia di Imperia",702,702,"Imperia","IM","008025","Diano Arentino"]
["Liguria","Diano Castello","Diano Castello (IM) ","A.T.O. - Ovest - Provincia di Imperia",702,702,"Imperia","IM","008026","Diano Castello"]
["Liguria","Diano Marina","Diano Marina (IM) ","A.T.O. - Ovest - Provincia di Imperia",702,702,"Imperia","IM","008027","Diano Marina"]
["Liguria","Diano San Pietro","Diano San Pietro (IM) ","A.T.O. - Ovest - Provincia di Imperia",702,702,"Imperia","IM","008028","Diano San Pietro"]
["Liguria","Dolceacqua","Dolceacqua (IM) ","A.T.O. - Ovest - Provincia di Imperia",702,702,"Imperia","IM","008029","Dolceacqua"]
["Liguria","Dolcedo","Dolcedo (IM) ","A.T.O. - Ovest - Provincia di Imperia",702,702,"Imperia","IM","008030","Dolcedo"]
["Liguria","Imperia","Imperia (IM) ","A.T.O. - Ovest - Provincia di Imperia",702,702,"Imperia","IM","008031","Imperia"]
["Liguria","Isolabona","Isolabona (IM) ","A.T.O. - Ovest - Provincia di Imperia",702,702,"Imperia","IM","008032","Isolabona"]
["Liguria","Lucinasco","Lucinasco (IM) ","A.T.O. - Ovest - Provincia di Imperia",702,702,"Imperia","IM","008033","Lucinasco"]
["Liguria","Mendatica","Mendatica (IM) ","A.T.O. - Ovest - Provincia di Imperia",702,702,"Imperia","IM","008034","Mendatica"]
["Liguria","Molini di Triora","Molini di Triora (IM) ","A.T.O. - Ovest - Provincia di Imperia",702,702,"Imperia","IM","008035","Molini di Triora"]
["Liguria","Montegrosso Pian Latte","Montegrosso Pian Latte (IM) ","A.T.O. - Ovest - Provincia di Imperia",702,702,"Imperia","IM","008037","Montegrosso Pian Latte"]
["Liguria","Olivetta San Michele","Olivetta San Michele (IM) ","A.T.O. - Ovest - Provincia di Imperia",702,702,"Imperia","IM","008038","Olivetta San Michele"]
["Liguria","Ospedaletti","Ospedaletti (IM) ","A.T.O. - Ovest - Provincia di Imperia",702,702,"Imperia","IM","008039","Ospedaletti"]
["Liguria","Perinaldo","Perinaldo (IM) ","A.T.O. - Ovest - Provincia di Imperia",702,702,"Imperia","IM","008040","Perinaldo"]
["Liguria","Pietrabruna","Pietrabruna (IM) ","A.T.O. - Ovest - Provincia di Imperia",702,702,"Imperia","IM","008041","Pietrabruna"]
["Liguria","Pieve di Teco","Pieve di Teco (IM) ","A.T.O. - Ovest - Provincia di Imperia",702,702,"Imperia","IM","008042","Pieve di Teco"]
["Liguria","Pigna","Pigna (IM) ","A.T.O. - Ovest - Provincia di Imperia",702,702,"Imperia","IM","008043","Pigna"]
["Liguria","Pompeiana","Pompeiana (IM) ","A.T.O. - Ovest - Provincia di Imperia",702,702,"Imperia","IM","008044","Pompeiana"]
["Liguria","Pontedassio","Pontedassio (IM) ","A.T.O. - Ovest - Provincia di Imperia",702,702,"Imperia","IM","008045","Pontedassio"]
["Liguria","Pornassio","Pornassio (IM) ","A.T.O. - Ovest - Provincia di Imperia",702,702,"Imperia","IM","008046","Pornassio"]
["Liguria","Prelà","Prelà (IM) ","A.T.O. - Ovest - Provincia di Imperia",702,702,"Imperia","IM","008047","Prelà"]
["Liguria","Ranzo","Ranzo (IM) ","A.T.O. - Ovest - Provincia di Imperia",702,702,"Imperia","IM","008048","Ranzo"]
["Liguria","Rezzo","Rezzo (IM) ","A.T.O. - Ovest - Provincia di Imperia",702,702,"Imperia","IM","008049","Rezzo"]
["Liguria","Riva Ligure","Riva Ligure (IM) ","A.T.O. - Ovest - Provincia di Imperia",702,702,"Imperia","IM","008050","Riva Ligure"]
["Liguria","Rocchetta Nervina","Rocchetta Nervina (IM) ","A.T.O. - Ovest - Provincia di Imperia",702,702,"Imperia","IM","008051","Rocchetta Nervina"]
["Liguria","San Bartolomeo al Mare","San Bartolomeo al Mare (IM) ","A.T.O. - Ovest - Provincia di Imperia",702,702,"Imperia","IM","008052","San Bartolomeo al Mare"]
["Liguria","San Biagio della Cima","San Biagio della Cima (IM) ","A.T.O. - Ovest - Provincia di Imperia",702,702,"Imperia","IM","008053","San Biagio della Cima"]
["Liguria","San Lorenzo al Mare","San Lorenzo al Mare (IM) ","A.T.O. - Ovest - Provincia di Imperia",702,702,"Imperia","IM","008054","San Lorenzo al Mare"]
["Liguria","Sanremo","Sanremo (IM) ","A.T.O. - Ovest - Provincia di Imperia",702,702,"Imperia","IM","008055","Sanremo"]
["Liguria","Santo Stefano al Mare","Santo Stefano al Mare (IM) ","A.T.O. - Ovest - Provincia di Imperia",702,702,"Imperia","IM","008056","Santo Stefano al Mare"]
["Liguria","Seborga","Seborga (IM) ","A.T.O. - Ovest - Provincia di Imperia",702,702,"Imperia","IM","008057","Seborga"]
["Liguria","Soldano","Soldano (IM) ","A.T.O. - Ovest - Provincia di Imperia",702,702,"Imperia","IM","008058","Soldano"]
["Liguria","Taggia","Taggia (IM) ","A.T.O. - Ovest - Provincia di Imperia",702,702,"Imperia","IM","008059","Taggia"]
["Liguria","Terzorio","Terzorio (IM) ","A.T.O. - Ovest - Provincia di Imperia",702,702,"Imperia","IM","008060","Terzorio"]
["Liguria","Triora","Triora (IM) ","A.T.O. - Ovest - Provincia di Imperia",702,702,"Imperia","IM","008061","Triora"]
["Liguria","Vallebona","Vallebona (IM) ","A.T.O. - Ovest - Provincia di Imperia",702,702,"Imperia","IM","008062","Vallebona"]
["Liguria","Vallecrosia","Vallecrosia (IM) ","A.T.O. - Ovest - Provincia di Imperia",702,702,"Imperia","IM","008063","Vallecrosia"]
["Liguria","Vasia","Vasia (IM) ","A.T.O. - Ovest - Provincia di Imperia",702,702,"Imperia","IM","008064","Vasia"]
["Liguria","Ventimiglia","Ventimiglia (IM) ","A.T.O. - Ovest - Provincia di Imperia",702,702,"Imperia","IM","008065","Ventimiglia"]
["Liguria","Vessalico","Vessalico (IM) ","A.T.O. - Ovest - Provincia di Imperia",702,702,"Imperia","IM","008066","Vessalico"]
["Liguria","Villa Faraldi","Villa Faraldi (IM) ","A.T.O. - Ovest - Provincia di Imperia",702,702,"Imperia","IM","008067","Villa Faraldi"]
["Liguria","Montalto Carpasio","Montalto Carpasio (IM) ","A.T.O. - Ovest - Provincia di Imperia",702,702,"Imperia","IM","008068","Montalto Carpasio"]
["Liguria","Alassio","Alassio (SV) ","PROVINCIA DI SAVONA",705,705,"Savona","SV","009001","Alassio"]
["Liguria","Albenga","Albenga (SV) ","PROVINCIA DI SAVONA",705,705,"Savona","SV","009002","Albenga"]
["Liguria","Albissola Marina","Albissola Marina (SV) ","PROVINCIA DI SAVONA",705,705,"Savona","SV","009003","Albissola Marina"]
["Liguria","Albisola Superiore","Albisola Superiore (SV) ","PROVINCIA DI SAVONA",705,705,"Savona","SV","009004","Albisola Superiore"]
["Liguria","Altare","Altare (SV) ","PROVINCIA DI SAVONA",706,706,"Savona","SV","009005","Altare"]
["Liguria","Andora","Andora (SV) ","A.T.O. - Ovest - Provincia di Imperia",702,702,"Savona","SV","009006","Andora"]
["Liguria","Arnasco","Arnasco (SV) ","PROVINCIA DI SAVONA",705,705,"Savona","SV","009007","Arnasco"]
["Liguria","Balestrino","Balestrino (SV) ","PROVINCIA DI SAVONA",705,705,"Savona","SV","009008","Balestrino"]
["Liguria","Bardineto","Bardineto (SV) ","PROVINCIA DI SAVONA",706,706,"Savona","SV","009009","Bardineto"]
["Liguria","Bergeggi","Bergeggi (SV) ","PROVINCIA DI SAVONA",705,705,"Savona","SV","009010","Bergeggi"]
["Liguria","Boissano","Boissano (SV) ","PROVINCIA DI SAVONA",705,705,"Savona","SV","009011","Boissano"]
["Liguria","Borghetto Santo Spirito","Borghetto Santo Spirito (SV) ","PROVINCIA DI SAVONA",705,705,"Savona","SV","009012","Borghetto Santo Spirito"]
["Liguria","Borgio Verezzi","Borgio Verezzi (SV) ","PROVINCIA DI SAVONA",705,705,"Savona","SV","009013","Borgio Verezzi"]
["Liguria","Bormida","Bormida (SV) ","PROVINCIA DI SAVONA",706,706,"Savona","SV","009014","Bormida"]
["Liguria","Cairo Montenotte","Cairo Montenotte (SV) ","PROVINCIA DI SAVONA",706,706,"Savona","SV","009015","Cairo Montenotte"]
["Liguria","Calice Ligure","Calice Ligure (SV) ","PROVINCIA DI SAVONA",705,705,"Savona","SV","009016","Calice Ligure"]
["Liguria","Calizzano","Calizzano (SV) ","PROVINCIA DI SAVONA",706,706,"Savona","SV","009017","Calizzano"]
["Liguria","Carcare","Carcare (SV) ","PROVINCIA DI SAVONA",706,706,"Savona","SV","009018","Carcare"]
["Liguria","Casanova Lerrone","Casanova Lerrone (SV) ","PROVINCIA DI SAVONA",705,705,"Savona","SV","009019","Casanova Lerrone"]
["Liguria","Castelbianco","Castelbianco (SV) ","PROVINCIA DI SAVONA",705,705,"Savona","SV","009020","Castelbianco"]
["Liguria","Castelvecchio di Rocca Barbena","Castelvecchio di Rocca Barbena (SV) ","PROVINCIA DI SAVONA",705,705,"Savona","SV","009021","Castelvecchio di Rocca Barbena"]
["Liguria","Celle Ligure","Celle Ligure (SV) ","PROVINCIA DI SAVONA",705,705,"Savona","SV","009022","Celle Ligure"]
["Liguria","Cengio","Cengio (SV) ","PROVINCIA DI SAVONA",706,706,"Savona","SV","009023","Cengio"]
["Liguria","Ceriale","Ceriale (SV) ","PROVINCIA DI SAVONA",705,705,"Savona","SV","009024","Ceriale"]
["Liguria","Cisano sul Neva","Cisano sul Neva (SV) ","PROVINCIA DI SAVONA",705,705,"Savona","SV","009025","Cisano sul Neva"]
["Liguria","Cosseria","Cosseria (SV) ","PROVINCIA DI SAVONA",706,706,"Savona","SV","009026","Cosseria"]
["Liguria","Dego","Dego (SV) ","PROVINCIA DI SAVONA",706,706,"Savona","SV","009027","Dego"]
["Liguria","Erli","Erli (SV) ","PROVINCIA DI SAVONA",705,705,"Savona","SV","009028","Erli"]
["Liguria","Finale Ligure","Finale Ligure (SV) ","PROVINCIA DI SAVONA",705,705,"Savona","SV","009029","Finale Ligure"]
["Liguria","Garlenda","Garlenda (SV) ","PROVINCIA DI SAVONA",705,705,"Savona","SV","009030","Garlenda"]
["Liguria","Giustenice","Giustenice (SV) ","PROVINCIA DI SAVONA",705,705,"Savona","SV","009031","Giustenice"]
["Liguria","Giusvalla","Giusvalla (SV) ","PROVINCIA DI SAVONA",706,706,"Savona","SV","009032","Giusvalla"]
["Liguria","Laigueglia","Laigueglia (SV) ","PROVINCIA DI SAVONA",705,705,"Savona","SV","009033","Laigueglia"]
["Liguria","Loano","Loano (SV) ","PROVINCIA DI SAVONA",705,705,"Savona","SV","009034","Loano"]
["Liguria","Magliolo","Magliolo (SV) ","PROVINCIA DI SAVONA",705,705,"Savona","SV","009035","Magliolo"]
["Liguria","Mallare","Mallare (SV) ","PROVINCIA DI SAVONA",706,706,"Savona","SV","009036","Mallare"]
["Liguria","Massimino","Massimino (SV) ","PROVINCIA DI SAVONA",706,706,"Savona","SV","009037","Massimino"]
["Liguria","Millesimo","Millesimo (SV) ","PROVINCIA DI SAVONA",706,706,"Savona","SV","009038","Millesimo"]
["Liguria","Mioglia","Mioglia (SV) ","PROVINCIA DI SAVONA",706,706,"Savona","SV","009039","Mioglia"]
["Liguria","Murialdo","Murialdo (SV) ","PROVINCIA DI SAVONA",706,706,"Savona","SV","009040","Murialdo"]
["Liguria","Nasino","Nasino (SV) ","PROVINCIA DI SAVONA",705,705,"Savona","SV","009041","Nasino"]
["Liguria","Noli","Noli (SV) ","PROVINCIA DI SAVONA",705,705,"Savona","SV","009042","Noli"]
["Liguria","Onzo","Onzo (SV) ","PROVINCIA DI SAVONA",705,705,"Savona","SV","009043","Onzo"]
["Liguria","Orco Feglino","Orco Feglino (SV) ","PROVINCIA DI SAVONA",705,705,"Savona","SV","009044","Orco Feglino"]
["Liguria","Ortovero","Ortovero (SV) ","PROVINCIA DI SAVONA",705,705,"Savona","SV","009045","Ortovero"]
["Liguria","Osiglia","Osiglia (SV) ","PROVINCIA DI SAVONA",706,706,"Savona","SV","009046","Osiglia"]
["Liguria","Pallare","Pallare (SV) ","PROVINCIA DI SAVONA",706,706,"Savona","SV","009047","Pallare"]
["Liguria","Piana Crixia","Piana Crixia (SV) ","PROVINCIA DI SAVONA",706,706,"Savona","SV","009048","Piana Crixia"]
["Liguria","Pietra Ligure","Pietra Ligure (SV) ","PROVINCIA DI SAVONA",705,705,"Savona","SV","009049","Pietra Ligure"]
["Liguria","Plodio","Plodio (SV) ","PROVINCIA DI SAVONA",706,706,"Savona","SV","009050","Plodio"]
["Liguria","Pontinvrea","Pontinvrea (SV) ","PROVINCIA DI SAVONA",706,706,"Savona","SV","009051","Pontinvrea"]
["Liguria","Quiliano","Quiliano (SV) ","PROVINCIA DI SAVONA",705,705,"Savona","SV","009052","Quiliano"]
["Liguria","Rialto","Rialto (SV) ","PROVINCIA DI SAVONA",705,705,"Savona","SV","009053","Rialto"]
["Liguria","Roccavignale","Roccavignale (SV) ","PROVINCIA DI SAVONA",706,706,"Savona","SV","009054","Roccavignale"]
["Liguria","Sassello","Sassello (SV) ","PROVINCIA DI SAVONA",706,706,"Savona","SV","009055","Sassello"]
["Liguria","Savona","Savona (SV) ","PROVINCIA DI SAVONA",705,705,"Savona","SV","009056","Savona"]
["Liguria","Spotorno","Spotorno (SV) ","PROVINCIA DI SAVONA",705,705,"Savona","SV","009057","Spotorno"]
["Liguria","Stella","Stella (SV) ","PROVINCIA DI SAVONA",705,705,"Savona","SV","009058","Stella"]
["Liguria","Stellanello","Stellanello (SV) ","A.T.O. - Ovest - Provincia di Imperia",702,702,"Savona","SV","009059","Stellanello"]
["Liguria","Testico","Testico (SV) ","A.T.O. - Ovest - Provincia di Imperia",702,702,"Savona","SV","009060","Testico"]
["Liguria","Toirano","Toirano (SV) ","PROVINCIA DI SAVONA",705,705,"Savona","SV","009061","Toirano"]
["Liguria","Tovo San Giacomo","Tovo San Giacomo (SV) ","PROVINCIA DI SAVONA",705,705,"Savona","SV","009062","Tovo San Giacomo"]
["Liguria","Urbe","Urbe (SV) ","PROVINCIA DI SAVONA",706,706,"Savona","SV","009063","Urbe"]
["Liguria","Vado Ligure","Vado Ligure (SV) ","PROVINCIA DI SAVONA",705,705,"Savona","SV","009064","Vado Ligure"]
["Liguria","Varazze","Varazze (SV) ","PROVINCIA DI SAVONA",705,705,"Savona","SV","009065","Varazze"]
["Liguria","Vendone","Vendone (SV) ","PROVINCIA DI SAVONA",705,705,"Savona","SV","009066","Vendone"]
["Liguria","Vezzi Portio","Vezzi Portio (SV) ","PROVINCIA DI SAVONA",705,705,"Savona","SV","009067","Vezzi Portio"]
["Liguria","Villanova d'Albenga","Villanova d'Albenga (SV) ","PROVINCIA DI SAVONA",705,705,"Savona","SV","009068","Villanova d'Albenga"]
["Liguria","Zuccarello","Zuccarello (SV) ","PROVINCIA DI SAVONA",705,705,"Savona","SV","009069","Zuccarello"]
["Liguria","Arenzano","Arenzano (GE) ","CITTA' METROPOLITANA DI GENOVA ENTE DI GOVERNO D'AMBITO CENTRO EST",701,701,"Genova","GE","010001","Arenzano"]
["Liguria","Avegno","Avegno (GE) ","CITTA' METROPOLITANA DI GENOVA ENTE DI GOVERNO D'AMBITO CENTRO EST",701,701,"Genova","GE","010002","Avegno"]
["Liguria","Bargagli","Bargagli (GE) ","CITTA' METROPOLITANA DI GENOVA ENTE DI GOVERNO D'AMBITO CENTRO EST",701,701,"Genova","GE","010003","Bargagli"]
["Liguria","Bogliasco","Bogliasco (GE) ","CITTA' METROPOLITANA DI GENOVA ENTE DI GOVERNO D'AMBITO CENTRO EST",701,701,"Genova","GE","010004","Bogliasco"]
["Liguria","Borzonasca","Borzonasca (GE) ","CITTA' METROPOLITANA DI GENOVA ENTE DI GOVERNO D'AMBITO CENTRO EST",701,701,"Genova","GE","010005","Borzonasca"]
["Liguria","Busalla","Busalla (GE) ","CITTA' METROPOLITANA DI GENOVA ENTE DI GOVERNO D'AMBITO CENTRO EST",701,701,"Genova","GE","010006","Busalla"]
["Liguria","Camogli","Camogli (GE) ","CITTA' METROPOLITANA DI GENOVA ENTE DI GOVERNO D'AMBITO CENTRO EST",701,701,"Genova","GE","010007","Camogli"]
["Liguria","Campo Ligure","Campo Ligure (GE) ","CITTA' METROPOLITANA DI GENOVA ENTE DI GOVERNO D'AMBITO CENTRO EST",701,701,"Genova","GE","010008","Campo Ligure"]
["Liguria","Campomorone","Campomorone (GE) ","CITTA' METROPOLITANA DI GENOVA ENTE DI GOVERNO D'AMBITO CENTRO EST",701,701,"Genova","GE","010009","Campomorone"]
["Liguria","Carasco","Carasco (GE) ","CITTA' METROPOLITANA DI GENOVA ENTE DI GOVERNO D'AMBITO CENTRO EST",701,701,"Genova","GE","010010","Carasco"]
["Liguria","Casarza Ligure","Casarza Ligure (GE) ","CITTA' METROPOLITANA DI GENOVA ENTE DI GOVERNO D'AMBITO CENTRO EST",701,701,"Genova","GE","010011","Casarza Ligure"]
["Liguria","Casella","Casella (GE) ","CITTA' METROPOLITANA DI GENOVA ENTE DI GOVERNO D'AMBITO CENTRO EST",701,701,"Genova","GE","010012","Casella"]
["Liguria","Castiglione Chiavarese","Castiglione Chiavarese (GE) ","CITTA' METROPOLITANA DI GENOVA ENTE DI GOVERNO D'AMBITO CENTRO EST",701,701,"Genova","GE","010013","Castiglione Chiavarese"]
["Liguria","Ceranesi","Ceranesi (GE) ","CITTA' METROPOLITANA DI GENOVA ENTE DI GOVERNO D'AMBITO CENTRO EST",701,701,"Genova","GE","010014","Ceranesi"]
["Liguria","Chiavari","Chiavari (GE) ","CITTA' METROPOLITANA DI GENOVA ENTE DI GOVERNO D'AMBITO CENTRO EST",701,701,"Genova","GE","010015","Chiavari"]
["Liguria","Cicagna","Cicagna (GE) ","CITTA' METROPOLITANA DI GENOVA ENTE DI GOVERNO D'AMBITO CENTRO EST",701,701,"Genova","GE","010016","Cicagna"]
["Liguria","Cogoleto","Cogoleto (GE) ","CITTA' METROPOLITANA DI GENOVA ENTE DI GOVERNO D'AMBITO CENTRO EST",701,701,"Genova","GE","010017","Cogoleto"]
["Liguria","Cogorno","Cogorno (GE) ","CITTA' METROPOLITANA DI GENOVA ENTE DI GOVERNO D'AMBITO CENTRO EST",701,701,"Genova","GE","010018","Cogorno"]
["Liguria","Coreglia Ligure","Coreglia Ligure (GE) ","CITTA' METROPOLITANA DI GENOVA ENTE DI GOVERNO D'AMBITO CENTRO EST",701,701,"Genova","GE","010019","Coreglia Ligure"]
["Liguria","Crocefieschi","Crocefieschi (GE) ","CITTA' METROPOLITANA DI GENOVA ENTE DI GOVERNO D'AMBITO CENTRO EST",701,701,"Genova","GE","010020","Crocefieschi"]
["Liguria","Davagna","Davagna (GE) ","CITTA' METROPOLITANA DI GENOVA ENTE DI GOVERNO D'AMBITO CENTRO EST",701,701,"Genova","GE","010021","Davagna"]
["Liguria","Fascia","Fascia (GE) ","CITTA' METROPOLITANA DI GENOVA ENTE DI GOVERNO D'AMBITO CENTRO EST",701,701,"Genova","GE","010022","Fascia"]
["Liguria","Favale di Malvaro","Favale di Malvaro (GE) ","CITTA' METROPOLITANA DI GENOVA ENTE DI GOVERNO D'AMBITO CENTRO EST",701,701,"Genova","GE","010023","Favale di Malvaro"]
["Liguria","Fontanigorda","Fontanigorda (GE) ","CITTA' METROPOLITANA DI GENOVA ENTE DI GOVERNO D'AMBITO CENTRO EST",701,701,"Genova","GE","010024","Fontanigorda"]
["Liguria","Genova","Genova (GE) ","CITTA' METROPOLITANA DI GENOVA ENTE DI GOVERNO D'AMBITO CENTRO EST",701,701,"Genova","GE","010025","Genova"]
["Liguria","Gorreto","Gorreto (GE) ","CITTA' METROPOLITANA DI GENOVA ENTE DI GOVERNO D'AMBITO CENTRO EST",701,701,"Genova","GE","010026","Gorreto"]
["Liguria","Isola del Cantone","Isola del Cantone (GE) ","CITTA' METROPOLITANA DI GENOVA ENTE DI GOVERNO D'AMBITO CENTRO EST",701,701,"Genova","GE","010027","Isola del Cantone"]
["Liguria","Lavagna","Lavagna (GE) ","CITTA' METROPOLITANA DI GENOVA ENTE DI GOVERNO D'AMBITO CENTRO EST",701,701,"Genova","GE","010028","Lavagna"]
["Liguria","Leivi","Leivi (GE) ","CITTA' METROPOLITANA DI GENOVA ENTE DI GOVERNO D'AMBITO CENTRO EST",701,701,"Genova","GE","010029","Leivi"]
["Liguria","Lorsica","Lorsica (GE) ","CITTA' METROPOLITANA DI GENOVA ENTE DI GOVERNO D'AMBITO CENTRO EST",701,701,"Genova","GE","010030","Lorsica"]
["Liguria","Lumarzo","Lumarzo (GE) ","CITTA' METROPOLITANA DI GENOVA ENTE DI GOVERNO D'AMBITO CENTRO EST",701,701,"Genova","GE","010031","Lumarzo"]
["Liguria","Masone","Masone (GE) ","CITTA' METROPOLITANA DI GENOVA ENTE DI GOVERNO D'AMBITO CENTRO EST",701,701,"Genova","GE","010032","Masone"]
["Liguria","Mele","Mele (GE) ","CITTA' METROPOLITANA DI GENOVA ENTE DI GOVERNO D'AMBITO CENTRO EST",701,701,"Genova","GE","010033","Mele"]
["Liguria","Mezzanego","Mezzanego (GE) ","CITTA' METROPOLITANA DI GENOVA ENTE DI GOVERNO D'AMBITO CENTRO EST",701,701,"Genova","GE","010034","Mezzanego"]
["Liguria","Mignanego","Mignanego (GE) ","CITTA' METROPOLITANA DI GENOVA ENTE DI GOVERNO D'AMBITO CENTRO EST",701,701,"Genova","GE","010035","Mignanego"]
["Liguria","Moconesi","Moconesi (GE) ","CITTA' METROPOLITANA DI GENOVA ENTE DI GOVERNO D'AMBITO CENTRO EST",701,701,"Genova","GE","010036","Moconesi"]
["Liguria","Moneglia","Moneglia (GE) ","CITTA' METROPOLITANA DI GENOVA ENTE DI GOVERNO D'AMBITO CENTRO EST",701,701,"Genova","GE","010037","Moneglia"]
["Liguria","Montebruno","Montebruno (GE) ","CITTA' METROPOLITANA DI GENOVA ENTE DI GOVERNO D'AMBITO CENTRO EST",701,701,"Genova","GE","010038","Montebruno"]
["Liguria","Montoggio","Montoggio (GE) ","CITTA' METROPOLITANA DI GENOVA ENTE DI GOVERNO D'AMBITO CENTRO EST",701,701,"Genova","GE","010039","Montoggio"]
["Liguria","Ne","Ne (GE) ","CITTA' METROPOLITANA DI GENOVA ENTE DI GOVERNO D'AMBITO CENTRO EST",701,701,"Genova","GE","010040","Ne"]
["Liguria","Neirone","Neirone (GE) ","CITTA' METROPOLITANA DI GENOVA ENTE DI GOVERNO D'AMBITO CENTRO EST",701,701,"Genova","GE","010041","Neirone"]
["Liguria","Orero","Orero (GE) ","CITTA' METROPOLITANA DI GENOVA ENTE DI GOVERNO D'AMBITO CENTRO EST",701,701,"Genova","GE","010042","Orero"]
["Liguria","Pieve Ligure","Pieve Ligure (GE) ","CITTA' METROPOLITANA DI GENOVA ENTE DI GOVERNO D'AMBITO CENTRO EST",701,701,"Genova","GE","010043","Pieve Ligure"]
["Liguria","Portofino","Portofino (GE) ","CITTA' METROPOLITANA DI GENOVA ENTE DI GOVERNO D'AMBITO CENTRO EST",701,701,"Genova","GE","010044","Portofino"]
["Liguria","Propata","Propata (GE) ","CITTA' METROPOLITANA DI GENOVA ENTE DI GOVERNO D'AMBITO CENTRO EST",701,701,"Genova","GE","010045","Propata"]
["Liguria","Rapallo","Rapallo (GE) ","CITTA' METROPOLITANA DI GENOVA ENTE DI GOVERNO D'AMBITO CENTRO EST",701,701,"Genova","GE","010046","Rapallo"]
["Liguria","Recco","Recco (GE) ","CITTA' METROPOLITANA DI GENOVA ENTE DI GOVERNO D'AMBITO CENTRO EST",701,701,"Genova","GE","010047","Recco"]
["Liguria","Rezzoaglio","Rezzoaglio (GE) ","CITTA' METROPOLITANA DI GENOVA ENTE DI GOVERNO D'AMBITO CENTRO EST",701,701,"Genova","GE","010048","Rezzoaglio"]
["Liguria","Ronco Scrivia","Ronco Scrivia (GE) ","CITTA' METROPOLITANA DI GENOVA ENTE DI GOVERNO D'AMBITO CENTRO EST",701,701,"Genova","GE","010049","Ronco Scrivia"]
["Liguria","Rondanina","Rondanina (GE) ","CITTA' METROPOLITANA DI GENOVA ENTE DI GOVERNO D'AMBITO CENTRO EST",701,701,"Genova","GE","010050","Rondanina"]
["Liguria","Rossiglione","Rossiglione (GE) ","CITTA' METROPOLITANA DI GENOVA ENTE DI GOVERNO D'AMBITO CENTRO EST",701,701,"Genova","GE","010051","Rossiglione"]
["Liguria","Rovegno","Rovegno (GE) ","CITTA' METROPOLITANA DI GENOVA ENTE DI GOVERNO D'AMBITO CENTRO EST",701,701,"Genova","GE","010052","Rovegno"]
["Liguria","San Colombano Certenoli","San Colombano Certenoli (GE) ","CITTA' METROPOLITANA DI GENOVA ENTE DI GOVERNO D'AMBITO CENTRO EST",701,701,"Genova","GE","010053","San Colombano Certenoli"]
["Liguria","Santa Margherita Ligure","Santa Margherita Ligure (GE) ","CITTA' METROPOLITANA DI GENOVA ENTE DI GOVERNO D'AMBITO CENTRO EST",701,701,"Genova","GE","010054","Santa Margherita Ligure"]
["Liguria","Sant'Olcese","Sant'Olcese (GE) ","CITTA' METROPOLITANA DI GENOVA ENTE DI GOVERNO D'AMBITO CENTRO EST",701,701,"Genova","GE","010055","Sant'Olcese"]
["Liguria","Santo Stefano d'Aveto","Santo Stefano d'Aveto (GE) ","CITTA' METROPOLITANA DI GENOVA ENTE DI GOVERNO D'AMBITO CENTRO EST",701,701,"Genova","GE","010056","Santo Stefano d'Aveto"]
["Liguria","Savignone","Savignone (GE) ","CITTA' METROPOLITANA DI GENOVA ENTE DI GOVERNO D'AMBITO CENTRO EST",701,701,"Genova","GE","010057","Savignone"]
["Liguria","Serra Riccò","Serra Riccò (GE) ","CITTA' METROPOLITANA DI GENOVA ENTE DI GOVERNO D'AMBITO CENTRO EST",701,701,"Genova","GE","010058","Serra Riccò"]
["Liguria","Sestri Levante","Sestri Levante (GE) ","CITTA' METROPOLITANA DI GENOVA ENTE DI GOVERNO D'AMBITO CENTRO EST",701,701,"Genova","GE","010059","Sestri Levante"]
["Liguria","Sori","Sori (GE) ","CITTA' METROPOLITANA DI GENOVA ENTE DI GOVERNO D'AMBITO CENTRO EST",701,701,"Genova","GE","010060","Sori"]
["Liguria","Tiglieto","Tiglieto (GE) ","CITTA' METROPOLITANA DI GENOVA ENTE DI GOVERNO D'AMBITO CENTRO EST",701,701,"Genova","GE","010061","Tiglieto"]
["Liguria","Torriglia","Torriglia (GE) ","CITTA' METROPOLITANA DI GENOVA ENTE DI GOVERNO D'AMBITO CENTRO EST",701,701,"Genova","GE","010062","Torriglia"]
["Liguria","Tribogna","Tribogna (GE) ","CITTA' METROPOLITANA DI GENOVA ENTE DI GOVERNO D'AMBITO CENTRO EST",701,701,"Genova","GE","010063","Tribogna"]
["Liguria","Uscio","Uscio (GE) ","CITTA' METROPOLITANA DI GENOVA ENTE DI GOVERNO D'AMBITO CENTRO EST",701,701,"Genova","GE","010064","Uscio"]
["Liguria","Valbrevenna","Valbrevenna (GE) ","CITTA' METROPOLITANA DI GENOVA ENTE DI GOVERNO D'AMBITO CENTRO EST",701,701,"Genova","GE","010065","Valbrevenna"]
["Liguria","Vobbia","Vobbia (GE) ","CITTA' METROPOLITANA DI GENOVA ENTE DI GOVERNO D'AMBITO CENTRO EST",701,701,"Genova","GE","010066","Vobbia"]
["Liguria","Zoagli","Zoagli (GE) ","CITTA' METROPOLITANA DI GENOVA ENTE DI GOVERNO D'AMBITO CENTRO EST",701,701,"Genova","GE","010067","Zoagli"]
["Liguria","Ameglia","Ameglia (SP) ","ATO EST: PROVINCIA DELLA SPEZIA",703,703,"La Spezia","SP","011001","Ameglia"]
["Liguria","Arcola","Arcola (SP) ","ATO EST: PROVINCIA DELLA SPEZIA",703,703,"La Spezia","SP","011002","Arcola"]
["Liguria","Beverino","Beverino (SP) ","ATO EST: PROVINCIA DELLA SPEZIA",703,703,"La Spezia","SP","011003","Beverino"]
["Liguria","Bolano","Bolano (SP) ","ATO EST: PROVINCIA DELLA SPEZIA",703,703,"La Spezia","SP","011004","Bolano"]
["Liguria","Bonassola","Bonassola (SP) ","ATO EST: PROVINCIA DELLA SPEZIA",703,703,"La Spezia","SP","011005","Bonassola"]
["Liguria","Borghetto di Vara","Borghetto di Vara (SP) ","ATO EST: PROVINCIA DELLA SPEZIA",703,703,"La Spezia","SP","011006","Borghetto di Vara"]
["Liguria","Brugnato","Brugnato (SP) ","ATO EST: PROVINCIA DELLA SPEZIA",703,703,"La Spezia","SP","011007","Brugnato"]
["Liguria","Calice al Cornoviglio","Calice al Cornoviglio (SP) ","ATO EST: PROVINCIA DELLA SPEZIA",703,703,"La Spezia","SP","011008","Calice al Cornoviglio"]
["Liguria","Carro","Carro (SP) ","ATO EST: PROVINCIA DELLA SPEZIA",703,703,"La Spezia","SP","011009","Carro"]
["Liguria","Carrodano","Carrodano (SP) ","ATO EST: PROVINCIA DELLA SPEZIA",703,703,"La Spezia","SP","011010","Carrodano"]
["Liguria","Castelnuovo Magra","Castelnuovo Magra (SP) ","ATO EST: PROVINCIA DELLA SPEZIA",703,703,"La Spezia","SP","011011","Castelnuovo Magra"]
["Liguria","Deiva Marina","Deiva Marina (SP) ","ATO EST: PROVINCIA DELLA SPEZIA",703,703,"La Spezia","SP","011012","Deiva Marina"]
["Liguria","Follo","Follo (SP) ","ATO EST: PROVINCIA DELLA SPEZIA",703,703,"La Spezia","SP","011013","Follo"]
["Liguria","Framura","Framura (SP) ","ATO EST: PROVINCIA DELLA SPEZIA",703,703,"La Spezia","SP","011014","Framura"]
["Liguria","La Spezia","La Spezia (SP) ","ATO EST: PROVINCIA DELLA SPEZIA",703,703,"La Spezia","SP","011015","La Spezia"]
["Liguria","Lerici","Lerici (SP) ","ATO EST: PROVINCIA DELLA SPEZIA",703,703,"La Spezia","SP","011016","Lerici"]
["Liguria","Levanto","Levanto (SP) ","ATO EST: PROVINCIA DELLA SPEZIA",703,703,"La Spezia","SP","011017","Levanto"]
["Liguria","Maissana","Maissana (SP) ","ATO EST: PROVINCIA DELLA SPEZIA",703,703,"La Spezia","SP","011018","Maissana"]
["Liguria","Monterosso al Mare","Monterosso al Mare (SP) ","ATO EST: PROVINCIA DELLA SPEZIA",703,703,"La Spezia","SP","011019","Monterosso al Mare"]
["Liguria","Luni","Luni (SP) ","ATO EST: PROVINCIA DELLA SPEZIA",703,703,"La Spezia","SP","011020","Luni"]
["Liguria","Pignone","Pignone (SP) ","ATO EST: PROVINCIA DELLA SPEZIA",703,703,"La Spezia","SP","011021","Pignone"]
["Liguria","Portovenere","Portovenere (SP) ","ATO EST: PROVINCIA DELLA SPEZIA",703,703,"La Spezia","SP","011022","Portovenere"]
["Liguria","Riccò del Golfo di Spezia","Riccò del Golfo di Spezia (SP) ","ATO EST: PROVINCIA DELLA SPEZIA",703,703,"La Spezia","SP","011023","Riccò del Golfo di Spezia"]
["Liguria","Riomaggiore","Riomaggiore (SP) ","ATO EST: PROVINCIA DELLA SPEZIA",703,703,"La Spezia","SP","011024","Riomaggiore"]
["Liguria","Rocchetta di Vara","Rocchetta di Vara (SP) ","ATO EST: PROVINCIA DELLA SPEZIA",703,703,"La Spezia","SP","011025","Rocchetta di Vara"]
["Liguria","Santo Stefano di Magra","Santo Stefano di Magra (SP) ","ATO EST: PROVINCIA DELLA SPEZIA",703,703,"La Spezia","SP","011026","Santo Stefano di Magra"]
["Liguria","Sarzana","Sarzana (SP) ","ATO EST: PROVINCIA DELLA SPEZIA",703,703,"La Spezia","SP","011027","Sarzana"]
["Liguria","Sesta Godano","Sesta Godano (SP) ","ATO EST: PROVINCIA DELLA SPEZIA",703,703,"La Spezia","SP","011028","Sesta Godano"]
["Liguria","Varese Ligure","Varese Ligure (SP) ","ATO EST: PROVINCIA DELLA SPEZIA",703,703,"La Spezia","SP","011029","Varese Ligure"]
["Liguria","Vernazza","Vernazza (SP) ","ATO EST: PROVINCIA DELLA SPEZIA",703,703,"La Spezia","SP","011030","Vernazza"]
["Liguria","Vezzano Ligure","Vezzano Ligure (SP) ","ATO EST: PROVINCIA DELLA SPEZIA",703,703,"La Spezia","SP","011031","Vezzano Ligure"]
["Liguria","Zignago","Zignago (SP) ","ATO EST: PROVINCIA DELLA SPEZIA",703,703,"La Spezia","SP","011032","Zignago"]
["Lombardia","Agra","Agra (VA) ","Ufficio d'Ambito Territoriale Ottimale della Provincia di Varese",312,312,"Varese","VA","012001","Agra"]
["Lombardia","Albizzate","Albizzate (VA) ","Ufficio d'Ambito Territoriale Ottimale della Provincia di Varese",312,312,"Varese","VA","012002","Albizzate"]
["Lombardia","Angera","Angera (VA) ","Ufficio d'Ambito Territoriale Ottimale della Provincia di Varese",312,312,"Varese","VA","012003","Angera"]
["Lombardia","Arcisate","Arcisate (VA) ","Ufficio d'Ambito Territoriale Ottimale della Provincia di Varese",312,312,"Varese","VA","012004","Arcisate"]
["Lombardia","Arsago Seprio","Arsago Seprio (VA) ","Ufficio d'Ambito Territoriale Ottimale della Provincia di Varese",312,312,"Varese","VA","012005","Arsago Seprio"]
["Lombardia","Azzate","Azzate (VA) ","Ufficio d'Ambito Territoriale Ottimale della Provincia di Varese",312,312,"Varese","VA","012006","Azzate"]
["Lombardia","Azzio","Azzio (VA) ","Ufficio d'Ambito Territoriale Ottimale della Provincia di Varese",312,312,"Varese","VA","012007","Azzio"]
["Lombardia","Barasso","Barasso (VA) ","Ufficio d'Ambito Territoriale Ottimale della Provincia di Varese",312,312,"Varese","VA","012008","Barasso"]
["Lombardia","Bedero Valcuvia","Bedero Valcuvia (VA) ","Ufficio d'Ambito Territoriale Ottimale della Provincia di Varese",312,312,"Varese","VA","012010","Bedero Valcuvia"]
["Lombardia","Besano","Besano (VA) ","Ufficio d'Ambito Territoriale Ottimale della Provincia di Varese",312,312,"Varese","VA","012011","Besano"]
["Lombardia","Besnate","Besnate (VA) ","Ufficio d'Ambito Territoriale Ottimale della Provincia di Varese",312,312,"Varese","VA","012012","Besnate"]
["Lombardia","Besozzo","Besozzo (VA) ","Ufficio d'Ambito Territoriale Ottimale della Provincia di Varese",312,312,"Varese","VA","012013","Besozzo"]
["Lombardia","Biandronno","Biandronno (VA) ","Ufficio d'Ambito Territoriale Ottimale della Provincia di Varese",312,312,"Varese","VA","012014","Biandronno"]
["Lombardia","Bisuschio","Bisuschio (VA) ","Ufficio d'Ambito Territoriale Ottimale della Provincia di Varese",312,312,"Varese","VA","012015","Bisuschio"]
["Lombardia","Bodio Lomnago","Bodio Lomnago (VA) ","Ufficio d'Ambito Territoriale Ottimale della Provincia di Varese",312,312,"Varese","VA","012016","Bodio Lomnago"]
["Lombardia","Brebbia","Brebbia (VA) ","Ufficio d'Ambito Territoriale Ottimale della Provincia di Varese",312,312,"Varese","VA","012017","Brebbia"]
["Lombardia","Brenta","Brenta (VA) ","Ufficio d'Ambito Territoriale Ottimale della Provincia di Varese",312,312,"Varese","VA","012019","Brenta"]
["Lombardia","Brezzo di Bedero","Brezzo di Bedero (VA) ","Ufficio d'Ambito Territoriale Ottimale della Provincia di Varese",312,312,"Varese","VA","012020","Brezzo di Bedero"]
["Lombardia","Brinzio","Brinzio (VA) ","Ufficio d'Ambito Territoriale Ottimale della Provincia di Varese",312,312,"Varese","VA","012021","Brinzio"]
["Lombardia","Brissago-Valtravaglia","Brissago-Valtravaglia (VA) ","Ufficio d'Ambito Territoriale Ottimale della Provincia di Varese",312,312,"Varese","VA","012022","Brissago-Valtravaglia"]
["Lombardia","Brunello","Brunello (VA) ","Ufficio d'Ambito Territoriale Ottimale della Provincia di Varese",312,312,"Varese","VA","012023","Brunello"]
["Lombardia","Brusimpiano","Brusimpiano (VA) ","Ufficio d'Ambito Territoriale Ottimale della Provincia di Varese",312,312,"Varese","VA","012024","Brusimpiano"]
["Lombardia","Buguggiate","Buguggiate (VA) ","Ufficio d'Ambito Territoriale Ottimale della Provincia di Varese",312,312,"Varese","VA","012025","Buguggiate"]
["Lombardia","Busto Arsizio","Busto Arsizio (VA) ","Ufficio d'Ambito Territoriale Ottimale della Provincia di Varese",312,312,"Varese","VA","012026","Busto Arsizio"]
["Lombardia","Cadegliano-Viconago","Cadegliano-Viconago (VA) ","Ufficio d'Ambito Territoriale Ottimale della Provincia di Varese",312,312,"Varese","VA","012027","Cadegliano-Viconago"]
["Lombardia","Cairate","Cairate (VA) ","Ufficio d'Ambito Territoriale Ottimale della Provincia di Varese",312,312,"Varese","VA","012029","Cairate"]
["Lombardia","Cantello","Cantello (VA) ","Ufficio d'Ambito Territoriale Ottimale della Provincia di Varese",312,312,"Varese","VA","012030","Cantello"]
["Lombardia","Caravate","Caravate (VA) ","Ufficio d'Ambito Territoriale Ottimale della Provincia di Varese",312,312,"Varese","VA","012031","Caravate"]
["Lombardia","Cardano al Campo","Cardano al Campo (VA) ","Ufficio d'Ambito Territoriale Ottimale della Provincia di Varese",312,312,"Varese","VA","012032","Cardano al Campo"]
["Lombardia","Carnago","Carnago (VA) ","Ufficio d'Ambito Territoriale Ottimale della Provincia di Varese",312,312,"Varese","VA","012033","Carnago"]
["Lombardia","Caronno Pertusella","Caronno Pertusella (VA) ","Ufficio d'Ambito Territoriale Ottimale della Provincia di Varese",312,312,"Varese","VA","012034","Caronno Pertusella"]
["Lombardia","Caronno Varesino","Caronno Varesino (VA) ","Ufficio d'Ambito Territoriale Ottimale della Provincia di Varese",312,312,"Varese","VA","012035","Caronno Varesino"]
["Lombardia","Casale Litta","Casale Litta (VA) ","Ufficio d'Ambito Territoriale Ottimale della Provincia di Varese",312,312,"Varese","VA","012036","Casale Litta"]
["Lombardia","Casalzuigno","Casalzuigno (VA) ","Ufficio d'Ambito Territoriale Ottimale della Provincia di Varese",312,312,"Varese","VA","012037","Casalzuigno"]
["Lombardia","Casciago","Casciago (VA) ","Ufficio d'Ambito Territoriale Ottimale della Provincia di Varese",312,312,"Varese","VA","012038","Casciago"]
["Lombardia","Casorate Sempione","Casorate Sempione (VA) ","Ufficio d'Ambito Territoriale Ottimale della Provincia di Varese",312,312,"Varese","VA","012039","Casorate Sempione"]
["Lombardia","Cassano Magnago","Cassano Magnago (VA) ","Ufficio d'Ambito Territoriale Ottimale della Provincia di Varese",312,312,"Varese","VA","012040","Cassano Magnago"]
["Lombardia","Cassano Valcuvia","Cassano Valcuvia (VA) ","Ufficio d'Ambito Territoriale Ottimale della Provincia di Varese",312,312,"Varese","VA","012041","Cassano Valcuvia"]
["Lombardia","Castellanza","Castellanza (VA) ","Ufficio d'Ambito Territoriale Ottimale della Provincia di Varese",312,312,"Varese","VA","012042","Castellanza"]
["Lombardia","Castello Cabiaglio","Castello Cabiaglio (VA) ","Ufficio d'Ambito Territoriale Ottimale della Provincia di Varese",312,312,"Varese","VA","012043","Castello Cabiaglio"]
["Lombardia","Castelseprio","Castelseprio (VA) ","Ufficio d'Ambito Territoriale Ottimale della Provincia di Varese",312,312,"Varese","VA","012044","Castelseprio"]
["Lombardia","Castelveccana","Castelveccana (VA) ","Ufficio d'Ambito Territoriale Ottimale della Provincia di Varese",312,312,"Varese","VA","012045","Castelveccana"]
["Lombardia","Castiglione Olona","Castiglione Olona (VA) ","Ufficio d'Ambito Territoriale Ottimale della Provincia di Varese",312,312,"Varese","VA","012046","Castiglione Olona"]
["Lombardia","Castronno","Castronno (VA) ","Ufficio d'Ambito Territoriale Ottimale della Provincia di Varese",312,312,"Varese","VA","012047","Castronno"]
["Lombardia","Cavaria con Premezzo","Cavaria con Premezzo (VA) ","Ufficio d'Ambito Territoriale Ottimale della Provincia di Varese",312,312,"Varese","VA","012048","Cavaria con Premezzo"]
["Lombardia","Cazzago Brabbia","Cazzago Brabbia (VA) ","Ufficio d'Ambito Territoriale Ottimale della Provincia di Varese",312,312,"Varese","VA","012049","Cazzago Brabbia"]
["Lombardia","Cislago","Cislago (VA) ","Ufficio d'Ambito Territoriale Ottimale della Provincia di Varese",312,312,"Varese","VA","012050","Cislago"]
["Lombardia","Cittiglio","Cittiglio (VA) ","Ufficio d'Ambito Territoriale Ottimale della Provincia di Varese",312,312,"Varese","VA","012051","Cittiglio"]
["Lombardia","Clivio","Clivio (VA) ","Ufficio d'Ambito Territoriale Ottimale della Provincia di Varese",312,312,"Varese","VA","012052","Clivio"]
["Lombardia","Cocquio-Trevisago","Cocquio-Trevisago (VA) ","Ufficio d'Ambito Territoriale Ottimale della Provincia di Varese",312,312,"Varese","VA","012053","Cocquio-Trevisago"]
["Lombardia","Comabbio","Comabbio (VA) ","Ufficio d'Ambito Territoriale Ottimale della Provincia di Varese",312,312,"Varese","VA","012054","Comabbio"]
["Lombardia","Comerio","Comerio (VA) ","Ufficio d'Ambito Territoriale Ottimale della Provincia di Varese",312,312,"Varese","VA","012055","Comerio"]
["Lombardia","Cremenaga","Cremenaga (VA) ","Ufficio d'Ambito Territoriale Ottimale della Provincia di Varese",312,312,"Varese","VA","012056","Cremenaga"]
["Lombardia","Crosio della Valle","Crosio della Valle (VA) ","Ufficio d'Ambito Territoriale Ottimale della Provincia di Varese",312,312,"Varese","VA","012057","Crosio della Valle"]
["Lombardia","Cuasso al Monte","Cuasso al Monte (VA) ","Ufficio d'Ambito Territoriale Ottimale della Provincia di Varese",312,312,"Varese","VA","012058","Cuasso al Monte"]
["Lombardia","Cugliate-Fabiasco","Cugliate-Fabiasco (VA) ","Ufficio d'Ambito Territoriale Ottimale della Provincia di Varese",312,312,"Varese","VA","012059","Cugliate-Fabiasco"]
["Lombardia","Cunardo","Cunardo (VA) ","Ufficio d'Ambito Territoriale Ottimale della Provincia di Varese",312,312,"Varese","VA","012060","Cunardo"]
["Lombardia","Curiglia con Monteviasco","Curiglia con Monteviasco (VA) ","Ufficio d'Ambito Territoriale Ottimale della Provincia di Varese",312,312,"Varese","VA","012061","Curiglia con Monteviasco"]
["Lombardia","Cuveglio","Cuveglio (VA) ","Ufficio d'Ambito Territoriale Ottimale della Provincia di Varese",312,312,"Varese","VA","012062","Cuveglio"]
["Lombardia","Cuvio","Cuvio (VA) ","Ufficio d'Ambito Territoriale Ottimale della Provincia di Varese",312,312,"Varese","VA","012063","Cuvio"]
["Lombardia","Daverio","Daverio (VA) ","Ufficio d'Ambito Territoriale Ottimale della Provincia di Varese",312,312,"Varese","VA","012064","Daverio"]
["Lombardia","Dumenza","Dumenza (VA) ","Ufficio d'Ambito Territoriale Ottimale della Provincia di Varese",312,312,"Varese","VA","012065","Dumenza"]
["Lombardia","Duno","Duno (VA) ","Ufficio d'Ambito Territoriale Ottimale della Provincia di Varese",312,312,"Varese","VA","012066","Duno"]
["Lombardia","Fagnano Olona","Fagnano Olona (VA) ","Ufficio d'Ambito Territoriale Ottimale della Provincia di Varese",312,312,"Varese","VA","012067","Fagnano Olona"]
["Lombardia","Ferno","Ferno (VA) ","Ufficio d'Ambito Territoriale Ottimale della Provincia di Varese",312,312,"Varese","VA","012068","Ferno"]
["Lombardia","Ferrera di Varese","Ferrera di Varese (VA) ","Ufficio d'Ambito Territoriale Ottimale della Provincia di Varese",312,312,"Varese","VA","012069","Ferrera di Varese"]
["Lombardia","Gallarate","Gallarate (VA) ","Ufficio d'Ambito Territoriale Ottimale della Provincia di Varese",312,312,"Varese","VA","012070","Gallarate"]
["Lombardia","Galliate Lombardo","Galliate Lombardo (VA) ","Ufficio d'Ambito Territoriale Ottimale della Provincia di Varese",312,312,"Varese","VA","012071","Galliate Lombardo"]
["Lombardia","Gavirate","Gavirate (VA) ","Ufficio d'Ambito Territoriale Ottimale della Provincia di Varese",312,312,"Varese","VA","012072","Gavirate"]
["Lombardia","Gazzada Schianno","Gazzada Schianno (VA) ","Ufficio d'Ambito Territoriale Ottimale della Provincia di Varese",312,312,"Varese","VA","012073","Gazzada Schianno"]
["Lombardia","Gemonio","Gemonio (VA) ","Ufficio d'Ambito Territoriale Ottimale della Provincia di Varese",312,312,"Varese","VA","012074","Gemonio"]
["Lombardia","Gerenzano","Gerenzano (VA) ","Ufficio d'Ambito Territoriale Ottimale della Provincia di Varese",312,312,"Varese","VA","012075","Gerenzano"]
["Lombardia","Germignaga","Germignaga (VA) ","Ufficio d'Ambito Territoriale Ottimale della Provincia di Varese",312,312,"Varese","VA","012076","Germignaga"]
["Lombardia","Golasecca","Golasecca (VA) ","Ufficio d'Ambito Territoriale Ottimale della Provincia di Varese",312,312,"Varese","VA","012077","Golasecca"]
["Lombardia","Gorla Maggiore","Gorla Maggiore (VA) ","Ufficio d'Ambito Territoriale Ottimale della Provincia di Varese",312,312,"Varese","VA","012078","Gorla Maggiore"]
["Lombardia","Gorla Minore","Gorla Minore (VA) ","Ufficio d'Ambito Territoriale Ottimale della Provincia di Varese",312,312,"Varese","VA","012079","Gorla Minore"]
["Lombardia","Gornate Olona","Gornate Olona (VA) ","Ufficio d'Ambito Territoriale Ottimale della Provincia di Varese",312,312,"Varese","VA","012080","Gornate Olona"]
["Lombardia","Grantola","Grantola (VA) ","Ufficio d'Ambito Territoriale Ottimale della Provincia di Varese",312,312,"Varese","VA","012081","Grantola"]
["Lombardia","Inarzo","Inarzo (VA) ","Ufficio d'Ambito Territoriale Ottimale della Provincia di Varese",312,312,"Varese","VA","012082","Inarzo"]
["Lombardia","Induno Olona","Induno Olona (VA) ","Ufficio d'Ambito Territoriale Ottimale della Provincia di Varese",312,312,"Varese","VA","012083","Induno Olona"]
["Lombardia","Ispra","Ispra (VA) ","Ufficio d'Ambito Territoriale Ottimale della Provincia di Varese",312,312,"Varese","VA","012084","Ispra"]
["Lombardia","Jerago con Orago","Jerago con Orago (VA) ","Ufficio d'Ambito Territoriale Ottimale della Provincia di Varese",312,312,"Varese","VA","012085","Jerago con Orago"]
["Lombardia","Lavena Ponte Tresa","Lavena Ponte Tresa (VA) ","Ufficio d'Ambito Territoriale Ottimale della Provincia di Varese",312,312,"Varese","VA","012086","Lavena Ponte Tresa"]
["Lombardia","Laveno-Mombello","Laveno-Mombello (VA) ","Ufficio d'Ambito Territoriale Ottimale della Provincia di Varese",312,312,"Varese","VA","012087","Laveno-Mombello"]
["Lombardia","Leggiuno","Leggiuno (VA) ","Ufficio d'Ambito Territoriale Ottimale della Provincia di Varese",312,312,"Varese","VA","012088","Leggiuno"]
["Lombardia","Lonate Ceppino","Lonate Ceppino (VA) ","Ufficio d'Ambito Territoriale Ottimale della Provincia di Varese",312,312,"Varese","VA","012089","Lonate Ceppino"]
["Lombardia","Lonate Pozzolo","Lonate Pozzolo (VA) ","Ufficio d'Ambito Territoriale Ottimale della Provincia di Varese",312,312,"Varese","VA","012090","Lonate Pozzolo"]
["Lombardia","Lozza","Lozza (VA) ","Ufficio d'Ambito Territoriale Ottimale della Provincia di Varese",312,312,"Varese","VA","012091","Lozza"]
["Lombardia","Luino","Luino (VA) ","Ufficio d'Ambito Territoriale Ottimale della Provincia di Varese",312,312,"Varese","VA","012092","Luino"]
["Lombardia","Luvinate","Luvinate (VA) ","Ufficio d'Ambito Territoriale Ottimale della Provincia di Varese",312,312,"Varese","VA","012093","Luvinate"]
["Lombardia","Malnate","Malnate (VA) ","Ufficio d'Ambito Territoriale Ottimale della Provincia di Varese",312,312,"Varese","VA","012096","Malnate"]
["Lombardia","Marchirolo","Marchirolo (VA) ","Ufficio d'Ambito Territoriale Ottimale della Provincia di Varese",312,312,"Varese","VA","012097","Marchirolo"]
["Lombardia","Marnate","Marnate (VA) ","Ufficio d'Ambito Territoriale Ottimale della Provincia di Varese",312,312,"Varese","VA","012098","Marnate"]
["Lombardia","Marzio","Marzio (VA) ","Ufficio d'Ambito Territoriale Ottimale della Provincia di Varese",312,312,"Varese","VA","012099","Marzio"]
["Lombardia","Masciago Primo","Masciago Primo (VA) ","Ufficio d'Ambito Territoriale Ottimale della Provincia di Varese",312,312,"Varese","VA","012100","Masciago Primo"]
["Lombardia","Mercallo","Mercallo (VA) ","Ufficio d'Ambito Territoriale Ottimale della Provincia di Varese",312,312,"Varese","VA","012101","Mercallo"]
["Lombardia","Mesenzana","Mesenzana (VA) ","Ufficio d'Ambito Territoriale Ottimale della Provincia di Varese",312,312,"Varese","VA","012102","Mesenzana"]
["Lombardia","Montegrino Valtravaglia","Montegrino Valtravaglia (VA) ","Ufficio d'Ambito Territoriale Ottimale della Provincia di Varese",312,312,"Varese","VA","012103","Montegrino Valtravaglia"]
["Lombardia","Monvalle","Monvalle (VA) ","Ufficio d'Ambito Territoriale Ottimale della Provincia di Varese",312,312,"Varese","VA","012104","Monvalle"]
["Lombardia","Morazzone","Morazzone (VA) ","Ufficio d'Ambito Territoriale Ottimale della Provincia di Varese",312,312,"Varese","VA","012105","Morazzone"]
["Lombardia","Mornago","Mornago (VA) ","Ufficio d'Ambito Territoriale Ottimale della Provincia di Varese",312,312,"Varese","VA","012106","Mornago"]
["Lombardia","Oggiona con Santo Stefano","Oggiona con Santo Stefano (VA) ","Ufficio d'Ambito Territoriale Ottimale della Provincia di Varese",312,312,"Varese","VA","012107","Oggiona con Santo Stefano"]
["Lombardia","Olgiate Olona","Olgiate Olona (VA) ","Ufficio d'Ambito Territoriale Ottimale della Provincia di Varese",312,312,"Varese","VA","012108","Olgiate Olona"]
["Lombardia","Origgio","Origgio (VA) ","Ufficio d'Ambito Territoriale Ottimale della Provincia di Varese",312,312,"Varese","VA","012109","Origgio"]
["Lombardia","Orino","Orino (VA) ","Ufficio d'Ambito Territoriale Ottimale della Provincia di Varese",312,312,"Varese","VA","012110","Orino"]
["Lombardia","Porto Ceresio","Porto Ceresio (VA) ","Ufficio d'Ambito Territoriale Ottimale della Provincia di Varese",312,312,"Varese","VA","012113","Porto Ceresio"]
["Lombardia","Porto Valtravaglia","Porto Valtravaglia (VA) ","Ufficio d'Ambito Territoriale Ottimale della Provincia di Varese",312,312,"Varese","VA","012114","Porto Valtravaglia"]
["Lombardia","Rancio Valcuvia","Rancio Valcuvia (VA) ","Ufficio d'Ambito Territoriale Ottimale della Provincia di Varese",312,312,"Varese","VA","012115","Rancio Valcuvia"]
["Lombardia","Ranco","Ranco (VA) ","Ufficio d'Ambito Territoriale Ottimale della Provincia di Varese",312,312,"Varese","VA","012116","Ranco"]
["Lombardia","Saltrio","Saltrio (VA) ","Ufficio d'Ambito Territoriale Ottimale della Provincia di Varese",312,312,"Varese","VA","012117","Saltrio"]
["Lombardia","Samarate","Samarate (VA) ","Ufficio d'Ambito Territoriale Ottimale della Provincia di Varese",312,312,"Varese","VA","012118","Samarate"]
["Lombardia","Saronno","Saronno (VA) ","Ufficio d'Ambito Territoriale Ottimale della Provincia di Varese",312,312,"Varese","VA","012119","Saronno"]
["Lombardia","Sesto Calende","Sesto Calende (VA) ","Ufficio d'Ambito Territoriale Ottimale della Provincia di Varese",312,312,"Varese","VA","012120","Sesto Calende"]
["Lombardia","Solbiate Arno","Solbiate Arno (VA) ","Ufficio d'Ambito Territoriale Ottimale della Provincia di Varese",312,312,"Varese","VA","012121","Solbiate Arno"]
["Lombardia","Solbiate Olona","Solbiate Olona (VA) ","Ufficio d'Ambito Territoriale Ottimale della Provincia di Varese",312,312,"Varese","VA","012122","Solbiate Olona"]
["Lombardia","Somma Lombardo","Somma Lombardo (VA) ","Ufficio d'Ambito Territoriale Ottimale della Provincia di Varese",312,312,"Varese","VA","012123","Somma Lombardo"]
["Lombardia","Sumirago","Sumirago (VA) ","Ufficio d'Ambito Territoriale Ottimale della Provincia di Varese",312,312,"Varese","VA","012124","Sumirago"]
["Lombardia","Taino","Taino (VA) ","Ufficio d'Ambito Territoriale Ottimale della Provincia di Varese",312,312,"Varese","VA","012125","Taino"]
["Lombardia","Ternate","Ternate (VA) ","Ufficio d'Ambito Territoriale Ottimale della Provincia di Varese",312,312,"Varese","VA","012126","Ternate"]
["Lombardia","Tradate","Tradate (VA) ","Ufficio d'Ambito Territoriale Ottimale della Provincia di Varese",312,312,"Varese","VA","012127","Tradate"]
["Lombardia","Travedona-Monate","Travedona-Monate (VA) ","Ufficio d'Ambito Territoriale Ottimale della Provincia di Varese",312,312,"Varese","VA","012128","Travedona-Monate"]
["Lombardia","Tronzano Lago Maggiore","Tronzano Lago Maggiore (VA) ","Ufficio d'Ambito Territoriale Ottimale della Provincia di Varese",312,312,"Varese","VA","012129","Tronzano Lago Maggiore"]
["Lombardia","Uboldo","Uboldo (VA) ","Ufficio d'Ambito Territoriale Ottimale della Provincia di Varese",312,312,"Varese","VA","012130","Uboldo"]
["Lombardia","Valganna","Valganna (VA) ","Ufficio d'Ambito Territoriale Ottimale della Provincia di Varese",312,312,"Varese","VA","012131","Valganna"]
["Lombardia","Varano Borghi","Varano Borghi (VA) ","Ufficio d'Ambito Territoriale Ottimale della Provincia di Varese",312,312,"Varese","VA","012132","Varano Borghi"]
["Lombardia","Varese","Varese (VA) ","Ufficio d'Ambito Territoriale Ottimale della Provincia di Varese",312,312,"Varese","VA","012133","Varese"]
["Lombardia","Vedano Olona","Vedano Olona (VA) ","Ufficio d'Ambito Territoriale Ottimale della Provincia di Varese",312,312,"Varese","VA","012134","Vedano Olona"]
["Lombardia","Venegono Inferiore","Venegono Inferiore (VA) ","Ufficio d'Ambito Territoriale Ottimale della Provincia di Varese",312,312,"Varese","VA","012136","Venegono Inferiore"]
["Lombardia","Venegono Superiore","Venegono Superiore (VA) ","Ufficio d'Ambito Territoriale Ottimale della Provincia di Varese",312,312,"Varese","VA","012137","Venegono Superiore"]
["Lombardia","Vergiate","Vergiate (VA) ","Ufficio d'Ambito Territoriale Ottimale della Provincia di Varese",312,312,"Varese","VA","012138","Vergiate"]
["Lombardia","Viggiù","Viggiù (VA) ","Ufficio d'Ambito Territoriale Ottimale della Provincia di Varese",312,312,"Varese","VA","012139","Viggiù"]
["Lombardia","Vizzola Ticino","Vizzola Ticino (VA) ","Ufficio d'Ambito Territoriale Ottimale della Provincia di Varese",312,312,"Varese","VA","012140","Vizzola Ticino"]
["Lombardia","Sangiano","Sangiano (VA) ","Ufficio d'Ambito Territoriale Ottimale della Provincia di Varese",312,312,"Varese","VA","012141","Sangiano"]
["Lombardia","Maccagno con Pino e Veddasca","Maccagno con Pino e Veddasca (VA) ","Ufficio d'Ambito Territoriale Ottimale della Provincia di Varese",312,312,"Varese","VA","012142","Maccagno con Pino e Veddasca"]
["Lombardia","Cadrezzate con Osmate","Cadrezzate con Osmate (VA) ","Ufficio d'Ambito Territoriale Ottimale della Provincia di Varese",312,312,"Varese","VA","012143","Cadrezzate con Osmate"]
["Lombardia","Bardello con Malgesso e Bregano","Bardello con Malgesso e Bregano (VA) ","Ufficio d'Ambito Territoriale Ottimale della Provincia di Varese",312,312,"Varese","VA","012144","Bardello con Malgesso e Bregano"]
["Lombardia","Albavilla","Albavilla (CO) ","Ufficio d'Ambito di Como",304,304,"Como","CO","013003","Albavilla"]
["Lombardia","Albese con Cassano","Albese con Cassano (CO) ","Ufficio d'Ambito di Como",304,304,"Como","CO","013004","Albese con Cassano"]
["Lombardia","Albiolo","Albiolo (CO) ","Ufficio d'Ambito di Como",304,304,"Como","CO","013005","Albiolo"]
["Lombardia","Alserio","Alserio (CO) ","Ufficio d'Ambito di Como",304,304,"Como","CO","013006","Alserio"]
["Lombardia","Alzate Brianza","Alzate Brianza (CO) ","Ufficio d'Ambito di Como",304,304,"Como","CO","013007","Alzate Brianza"]
["Lombardia","Anzano del Parco","Anzano del Parco (CO) ","Ufficio d'Ambito di Como",304,304,"Como","CO","013009","Anzano del Parco"]
["Lombardia","Appiano Gentile","Appiano Gentile (CO) ","Ufficio d'Ambito di Como",304,304,"Como","CO","013010","Appiano Gentile"]
["Lombardia","Argegno","Argegno (CO) ","Ufficio d'Ambito di Como",304,304,"Como","CO","013011","Argegno"]
["Lombardia","Arosio","Arosio (CO) ","Ufficio d'Ambito di Como",304,304,"Como","CO","013012","Arosio"]
["Lombardia","Asso","Asso (CO) ","Ufficio d'Ambito di Como",304,304,"Como","CO","013013","Asso"]
["Lombardia","Barni","Barni (CO) ","Ufficio d'Ambito di Como",304,304,"Como","CO","013015","Barni"]
["Lombardia","Bene Lario","Bene Lario (CO) ","Ufficio d'Ambito di Como",304,304,"Como","CO","013021","Bene Lario"]
["Lombardia","Beregazzo con Figliaro","Beregazzo con Figliaro (CO) ","Ufficio d'Ambito di Como",304,304,"Como","CO","013022","Beregazzo con Figliaro"]
["Lombardia","Binago","Binago (CO) ","Ufficio d'Ambito di Como",304,304,"Como","CO","013023","Binago"]
["Lombardia","Bizzarone","Bizzarone (CO) ","Ufficio d'Ambito di Como",304,304,"Como","CO","013024","Bizzarone"]
["Lombardia","Blessagno","Blessagno (CO) ","Ufficio d'Ambito di Como",304,304,"Como","CO","013025","Blessagno"]
["Lombardia","Blevio","Blevio (CO) ","Ufficio d'Ambito di Como",304,304,"Como","CO","013026","Blevio"]
["Lombardia","Bregnano","Bregnano (CO) ","Ufficio d'Ambito di Como",304,304,"Como","CO","013028","Bregnano"]
["Lombardia","Brenna","Brenna (CO) ","Ufficio d'Ambito di Como",304,304,"Como","CO","013029","Brenna"]
["Lombardia","Brienno","Brienno (CO) ","Ufficio d'Ambito di Como",304,304,"Como","CO","013030","Brienno"]
["Lombardia","Brunate","Brunate (CO) ","Ufficio d'Ambito di Como",304,304,"Como","CO","013032","Brunate"]
["Lombardia","Bulgarograsso","Bulgarograsso (CO) ","Ufficio d'Ambito di Como",304,304,"Como","CO","013034","Bulgarograsso"]
["Lombardia","Cabiate","Cabiate (CO) ","Ufficio d'Ambito di Como",304,304,"Como","CO","013035","Cabiate"]
["Lombardia","Cadorago","Cadorago (CO) ","Ufficio d'Ambito di Como",304,304,"Como","CO","013036","Cadorago"]
["Lombardia","Caglio","Caglio (CO) ","Ufficio d'Ambito di Como",304,304,"Como","CO","013037","Caglio"]
["Lombardia","Campione d'Italia","Campione d'Italia (CO) ","",0,0,"Como","CO","013040","Campione d'Italia"]
["Lombardia","Cantù","Cantù (CO) ","Ufficio d'Ambito di Como",304,304,"Como","CO","013041","Cantù"]
["Lombardia","Canzo","Canzo (CO) ","Ufficio d'Ambito di Como",304,304,"Como","CO","013042","Canzo"]
["Lombardia","Capiago Intimiano","Capiago Intimiano (CO) ","Ufficio d'Ambito di Como",304,304,"Como","CO","013043","Capiago Intimiano"]
["Lombardia","Carate Urio","Carate Urio (CO) ","Ufficio d'Ambito di Como",304,304,"Como","CO","013044","Carate Urio"]
["Lombardia","Carbonate","Carbonate (CO) ","Ufficio d'Ambito di Como",304,304,"Como","CO","013045","Carbonate"]
["Lombardia","Carimate","Carimate (CO) ","Ufficio d'Ambito di Como",304,304,"Como","CO","013046","Carimate"]
["Lombardia","Carlazzo","Carlazzo (CO) ","Ufficio d'Ambito di Como",304,304,"Como","CO","013047","Carlazzo"]
["Lombardia","Carugo","Carugo (CO) ","Ufficio d'Ambito di Como",304,304,"Como","CO","013048","Carugo"]
["Lombardia","Caslino d'Erba","Caslino d'Erba (CO) ","Ufficio d'Ambito di Como",304,304,"Como","CO","013052","Caslino d'Erba"]
["Lombardia","Casnate con Bernate","Casnate con Bernate (CO) ","Ufficio d'Ambito di Como",304,304,"Como","CO","013053","Casnate con Bernate"]
["Lombardia","Cassina Rizzardi","Cassina Rizzardi (CO) ","Ufficio d'Ambito di Como",304,304,"Como","CO","013055","Cassina Rizzardi"]
["Lombardia","Castelmarte","Castelmarte (CO) ","Ufficio d'Ambito di Como",304,304,"Como","CO","013058","Castelmarte"]
["Lombardia","Castelnuovo Bozzente","Castelnuovo Bozzente (CO) ","Ufficio d'Ambito di Como",304,304,"Como","CO","013059","Castelnuovo Bozzente"]
["Lombardia","Cavargna","Cavargna (CO) ","Ufficio d'Ambito di Como",304,304,"Como","CO","013062","Cavargna"]
["Lombardia","Cerano d'Intelvi","Cerano d'Intelvi (CO) ","Ufficio d'Ambito di Como",304,304,"Como","CO","013063","Cerano d'Intelvi"]
["Lombardia","Cermenate","Cermenate (CO) ","Ufficio d'Ambito di Como",304,304,"Como","CO","013064","Cermenate"]
["Lombardia","Cernobbio","Cernobbio (CO) ","Ufficio d'Ambito di Como",304,304,"Como","CO","013065","Cernobbio"]
["Lombardia","Cirimido","Cirimido (CO) ","Ufficio d'Ambito di Como",304,304,"Como","CO","013068","Cirimido"]
["Lombardia","Claino con Osteno","Claino con Osteno (CO) ","Ufficio d'Ambito di Como",304,304,"Como","CO","013071","Claino con Osteno"]
["Lombardia","Colonno","Colonno (CO) ","Ufficio d'Ambito di Como",304,304,"Como","CO","013074","Colonno"]
["Lombardia","Como","Como (CO) ","Ufficio d'Ambito di Como",304,304,"Como","CO","013075","Como"]
["Lombardia","Corrido","Corrido (CO) ","Ufficio d'Ambito di Como",304,304,"Como","CO","013077","Corrido"]
["Lombardia","Cremia","Cremia (CO) ","Ufficio d'Ambito di Como",304,304,"Como","CO","013083","Cremia"]
["Lombardia","Cucciago","Cucciago (CO) ","Ufficio d'Ambito di Como",304,304,"Como","CO","013084","Cucciago"]
["Lombardia","Cusino","Cusino (CO) ","Ufficio d'Ambito di Como",304,304,"Como","CO","013085","Cusino"]
["Lombardia","Dizzasco","Dizzasco (CO) ","Ufficio d'Ambito di Como",304,304,"Como","CO","013087","Dizzasco"]
["Lombardia","Domaso","Domaso (CO) ","Ufficio d'Ambito di Como",304,304,"Como","CO","013089","Domaso"]
["Lombardia","Dongo","Dongo (CO) ","Ufficio d'Ambito di Como",304,304,"Como","CO","013090","Dongo"]
["Lombardia","Dosso del Liro","Dosso del Liro (CO) ","Ufficio d'Ambito di Como",304,304,"Como","CO","013092","Dosso del Liro"]
["Lombardia","Erba","Erba (CO) ","Ufficio d'Ambito di Como",304,304,"Como","CO","013095","Erba"]
["Lombardia","Eupilio","Eupilio (CO) ","Ufficio d'Ambito di Como",304,304,"Como","CO","013097","Eupilio"]
["Lombardia","Faggeto Lario","Faggeto Lario (CO) ","Ufficio d'Ambito di Como",304,304,"Como","CO","013098","Faggeto Lario"]
["Lombardia","Faloppio","Faloppio (CO) ","Ufficio d'Ambito di Como",304,304,"Como","CO","013099","Faloppio"]
["Lombardia","Fenegrò","Fenegrò (CO) ","Ufficio d'Ambito di Como",304,304,"Como","CO","013100","Fenegrò"]
["Lombardia","Figino Serenza","Figino Serenza (CO) ","Ufficio d'Ambito di Como",304,304,"Como","CO","013101","Figino Serenza"]
["Lombardia","Fino Mornasco","Fino Mornasco (CO) ","Ufficio d'Ambito di Como",304,304,"Como","CO","013102","Fino Mornasco"]
["Lombardia","Garzeno","Garzeno (CO) ","Ufficio d'Ambito di Como",304,304,"Como","CO","013106","Garzeno"]
["Lombardia","Gera Lario","Gera Lario (CO) ","Ufficio d'Ambito di Como",304,304,"Como","CO","013107","Gera Lario"]
["Lombardia","Grandate","Grandate (CO) ","Ufficio d'Ambito di Como",304,304,"Como","CO","013110","Grandate"]
["Lombardia","Grandola ed Uniti","Grandola ed Uniti (CO) ","Ufficio d'Ambito di Como",304,304,"Como","CO","013111","Grandola ed Uniti"]
["Lombardia","Griante","Griante (CO) ","Ufficio d'Ambito di Como",304,304,"Como","CO","013113","Griante"]
["Lombardia","Guanzate","Guanzate (CO) ","Ufficio d'Ambito di Como",304,304,"Como","CO","013114","Guanzate"]
["Lombardia","Inverigo","Inverigo (CO) ","Ufficio d'Ambito di Como",304,304,"Como","CO","013118","Inverigo"]
["Lombardia","Laglio","Laglio (CO) ","Ufficio d'Ambito di Como",304,304,"Como","CO","013119","Laglio"]
["Lombardia","Laino","Laino (CO) ","Ufficio d'Ambito di Como",304,304,"Como","CO","013120","Laino"]
["Lombardia","Lambrugo","Lambrugo (CO) ","Ufficio d'Ambito di Como",304,304,"Como","CO","013121","Lambrugo"]
["Lombardia","Lasnigo","Lasnigo (CO) ","Ufficio d'Ambito di Como",304,304,"Como","CO","013123","Lasnigo"]
["Lombardia","Lezzeno","Lezzeno (CO) ","Ufficio d'Ambito di Como",304,304,"Como","CO","013126","Lezzeno"]
["Lombardia","Limido Comasco","Limido Comasco (CO) ","Ufficio d'Ambito di Como",304,304,"Como","CO","013128","Limido Comasco"]
["Lombardia","Lipomo","Lipomo (CO) ","Ufficio d'Ambito di Como",304,304,"Como","CO","013129","Lipomo"]
["Lombardia","Livo","Livo (CO) ","Ufficio d'Ambito di Como",304,304,"Como","CO","013130","Livo"]
["Lombardia","Locate Varesino","Locate Varesino (CO) ","Ufficio d'Ambito di Como",304,304,"Como","CO","013131","Locate Varesino"]
["Lombardia","Lomazzo","Lomazzo (CO) ","Ufficio d'Ambito di Como",304,304,"Como","CO","013133","Lomazzo"]
["Lombardia","Longone al Segrino","Longone al Segrino (CO) ","Ufficio d'Ambito di Como",304,304,"Como","CO","013134","Longone al Segrino"]
["Lombardia","Luisago","Luisago (CO) ","Ufficio d'Ambito di Como",304,304,"Como","CO","013135","Luisago"]
["Lombardia","Lurago d'Erba","Lurago d'Erba (CO) ","Ufficio d'Ambito di Como",304,304,"Como","CO","013136","Lurago d'Erba"]
["Lombardia","Lurago Marinone","Lurago Marinone (CO) ","Ufficio d'Ambito di Como",304,304,"Como","CO","013137","Lurago Marinone"]
["Lombardia","Lurate Caccivio","Lurate Caccivio (CO) ","Ufficio d'Ambito di Como",304,304,"Como","CO","013138","Lurate Caccivio"]
["Lombardia","Magreglio","Magreglio (CO) ","Ufficio d'Ambito di Como",304,304,"Como","CO","013139","Magreglio"]
["Lombardia","Mariano Comense","Mariano Comense (CO) ","Ufficio d'Ambito di Como",304,304,"Como","CO","013143","Mariano Comense"]
["Lombardia","Maslianico","Maslianico (CO) ","Ufficio d'Ambito di Como",304,304,"Como","CO","013144","Maslianico"]
["Lombardia","Menaggio","Menaggio (CO) ","Ufficio d'Ambito di Como",304,304,"Como","CO","013145","Menaggio"]
["Lombardia","Merone","Merone (CO) ","Ufficio d'Ambito di Como",304,304,"Como","CO","013147","Merone"]
["Lombardia","Moltrasio","Moltrasio (CO) ","Ufficio d'Ambito di Como",304,304,"Como","CO","013152","Moltrasio"]
["Lombardia","Monguzzo","Monguzzo (CO) ","Ufficio d'Ambito di Como",304,304,"Como","CO","013153","Monguzzo"]
["Lombardia","Montano Lucino","Montano Lucino (CO) ","Ufficio d'Ambito di Como",304,304,"Como","CO","013154","Montano Lucino"]
["Lombardia","Montemezzo","Montemezzo (CO) ","Ufficio d'Ambito di Como",304,304,"Como","CO","013155","Montemezzo"]
["Lombardia","Montorfano","Montorfano (CO) ","Ufficio d'Ambito di Como",304,304,"Como","CO","013157","Montorfano"]
["Lombardia","Mozzate","Mozzate (CO) ","Ufficio d'Ambito di Como",304,304,"Como","CO","013159","Mozzate"]
["Lombardia","Musso","Musso (CO) ","Ufficio d'Ambito di Como",304,304,"Como","CO","013160","Musso"]
["Lombardia","Nesso","Nesso (CO) ","Ufficio d'Ambito di Como",304,304,"Como","CO","013161","Nesso"]
["Lombardia","Novedrate","Novedrate (CO) ","Ufficio d'Ambito di Como",304,304,"Como","CO","013163","Novedrate"]
["Lombardia","Olgiate Comasco","Olgiate Comasco (CO) ","Ufficio d'Ambito di Como",304,304,"Como","CO","013165","Olgiate Comasco"]
["Lombardia","Oltrona di San Mamette","Oltrona di San Mamette (CO) ","Ufficio d'Ambito di Como",304,304,"Como","CO","013169","Oltrona di San Mamette"]
["Lombardia","Orsenigo","Orsenigo (CO) ","Ufficio d'Ambito di Como",304,304,"Como","CO","013170","Orsenigo"]
["Lombardia","Peglio","Peglio (CO) ","Ufficio d'Ambito di Como",304,304,"Como","CO","013178","Peglio"]
["Lombardia","Pianello del Lario","Pianello del Lario (CO) ","Ufficio d'Ambito di Como",304,304,"Como","CO","013183","Pianello del Lario"]
["Lombardia","Pigra","Pigra (CO) ","Ufficio d'Ambito di Como",304,304,"Como","CO","013184","Pigra"]
["Lombardia","Plesio","Plesio (CO) ","Ufficio d'Ambito di Como",304,304,"Como","CO","013185","Plesio"]
["Lombardia","Pognana Lario","Pognana Lario (CO) ","Ufficio d'Ambito di Como",304,304,"Como","CO","013186","Pognana Lario"]
["Lombardia","Ponna","Ponna (CO) ","Ufficio d'Ambito di Como",304,304,"Como","CO","013187","Ponna"]
["Lombardia","Ponte Lambro","Ponte Lambro (CO) ","Ufficio d'Ambito di Como",304,304,"Como","CO","013188","Ponte Lambro"]
["Lombardia","Porlezza","Porlezza (CO) ","Ufficio d'Ambito di Como",304,304,"Como","CO","013189","Porlezza"]
["Lombardia","Proserpio","Proserpio (CO) ","Ufficio d'Ambito di Como",304,304,"Como","CO","013192","Proserpio"]
["Lombardia","Pusiano","Pusiano (CO) ","Ufficio d'Ambito di Como",304,304,"Como","CO","013193","Pusiano"]
["Lombardia","Rezzago","Rezzago (CO) ","Ufficio d'Ambito di Como",304,304,"Como","CO","013195","Rezzago"]
["Lombardia","Rodero","Rodero (CO) ","Ufficio d'Ambito di Como",304,304,"Como","CO","013197","Rodero"]
["Lombardia","Rovellasca","Rovellasca (CO) ","Ufficio d'Ambito di Como",304,304,"Como","CO","013201","Rovellasca"]
["Lombardia","Rovello Porro","Rovello Porro (CO) ","Ufficio d'Ambito di Como",304,304,"Como","CO","013202","Rovello Porro"]
["Lombardia","Sala Comacina","Sala Comacina (CO) ","Ufficio d'Ambito di Como",304,304,"Como","CO","013203","Sala Comacina"]
["Lombardia","San Bartolomeo Val Cavargna","San Bartolomeo Val Cavargna (CO) ","Ufficio d'Ambito di Como",304,304,"Como","CO","013204","San Bartolomeo Val Cavargna"]
["Lombardia","San Fermo della Battaglia","San Fermo della Battaglia (CO) ","Ufficio d'Ambito di Como",304,304,"Como","CO","013206","San Fermo della Battaglia"]
["Lombardia","San Nazzaro Val Cavargna","San Nazzaro Val Cavargna (CO) ","Ufficio d'Ambito di Como",304,304,"Como","CO","013207","San Nazzaro Val Cavargna"]
["Lombardia","Schignano","Schignano (CO) ","Ufficio d'Ambito di Como",304,304,"Como","CO","013211","Schignano"]
["Lombardia","Senna Comasco","Senna Comasco (CO) ","Ufficio d'Ambito di Como",304,304,"Como","CO","013212","Senna Comasco"]
["Lombardia","Sorico","Sorico (CO) ","Ufficio d'Ambito di Como",304,304,"Como","CO","013216","Sorico"]
["Lombardia","Sormano","Sormano (CO) ","Ufficio d'Ambito di Como",304,304,"Como","CO","013217","Sormano"]
["Lombardia","Stazzona","Stazzona (CO) ","Ufficio d'Ambito di Como",304,304,"Como","CO","013218","Stazzona"]
["Lombardia","Tavernerio","Tavernerio (CO) ","Ufficio d'Ambito di Como",304,304,"Como","CO","013222","Tavernerio"]
["Lombardia","Torno","Torno (CO) ","Ufficio d'Ambito di Como",304,304,"Como","CO","013223","Torno"]
["Lombardia","Trezzone","Trezzone (CO) ","Ufficio d'Ambito di Como",304,304,"Como","CO","013226","Trezzone"]
["Lombardia","Turate","Turate (CO) ","Ufficio d'Ambito di Como",304,304,"Como","CO","013227","Turate"]
["Lombardia","Valbrona","Valbrona (CO) ","Ufficio d'Ambito di Como",304,304,"Como","CO","013229","Valbrona"]
["Lombardia","Valmorea","Valmorea (CO) ","Ufficio d'Ambito di Como",304,304,"Como","CO","013232","Valmorea"]
["Lombardia","Val Rezzo","Val Rezzo (CO) ","Ufficio d'Ambito di Como",304,304,"Como","CO","013233","Val Rezzo"]
["Lombardia","Valsolda","Valsolda (CO) ","Ufficio d'Ambito di Como",304,304,"Como","CO","013234","Valsolda"]
["Lombardia","Veleso","Veleso (CO) ","Ufficio d'Ambito di Como",304,304,"Como","CO","013236","Veleso"]
["Lombardia","Veniano","Veniano (CO) ","Ufficio d'Ambito di Como",304,304,"Como","CO","013238","Veniano"]
["Lombardia","Vercana","Vercana (CO) ","Ufficio d'Ambito di Como",304,304,"Como","CO","013239","Vercana"]
["Lombardia","Vertemate con Minoprio","Vertemate con Minoprio (CO) ","Ufficio d'Ambito di Como",304,304,"Como","CO","013242","Vertemate con Minoprio"]
["Lombardia","Villa Guardia","Villa Guardia (CO) ","Ufficio d'Ambito di Como",304,304,"Como","CO","013245","Villa Guardia"]
["Lombardia","Zelbio","Zelbio (CO) ","Ufficio d'Ambito di Como",304,304,"Como","CO","013246","Zelbio"]
["Lombardia","San Siro","San Siro (CO) ","Ufficio d'Ambito di Como",304,304,"Como","CO","013248","San Siro"]
["Lombardia","Gravedona ed Uniti","Gravedona ed Uniti (CO) ","Ufficio d'Ambito di Como",304,304,"Como","CO","013249","Gravedona ed Uniti"]
["Lombardia","Bellagio","Bellagio (CO) ","Ufficio d'Ambito di Como",304,304,"Como","CO","013250","Bellagio"]
["Lombardia","Colverde","Colverde (CO) ","Ufficio d'Ambito di Como",304,304,"Como","CO","013251","Colverde"]
["Lombardia","Tremezzina","Tremezzina (CO) ","Ufficio d'Ambito di Como",304,304,"Como","CO","013252","Tremezzina"]
["Lombardia","Alta Valle Intelvi","Alta Valle Intelvi (CO) ","Ufficio d'Ambito di Como",304,304,"Como","CO","013253","Alta Valle Intelvi"]
["Lombardia","Centro Valle Intelvi","Centro Valle Intelvi (CO) ","Ufficio d'Ambito di Como",304,304,"Como","CO","013254","Centro Valle Intelvi"]
["Lombardia","Solbiate con Cagno","Solbiate con Cagno (CO) ","Ufficio d'Ambito di Como",304,304,"Como","CO","013255","Solbiate con Cagno"]
["Lombardia","Uggiate con Ronago","Uggiate con Ronago (CO) ","Ufficio d'Ambito di Como",304,304,"Como","CO","013256","Uggiate con Ronago"]
["Lombardia","Albaredo per San Marco","Albaredo per San Marco (SO) ","UFFICIO D'AMBITO DELLA PROVINCIA DI SONDRIO",311,311,"Sondrio","SO","014001","Albaredo per San Marco"]
["Lombardia","Albosaggia","Albosaggia (SO) ","UFFICIO D'AMBITO DELLA PROVINCIA DI SONDRIO",311,311,"Sondrio","SO","014002","Albosaggia"]
["Lombardia","Andalo Valtellino","Andalo Valtellino (SO) ","UFFICIO D'AMBITO DELLA PROVINCIA DI SONDRIO",311,311,"Sondrio","SO","014003","Andalo Valtellino"]
["Lombardia","Aprica","Aprica (SO) ","UFFICIO D'AMBITO DELLA PROVINCIA DI SONDRIO",311,311,"Sondrio","SO","014004","Aprica"]
["Lombardia","Ardenno","Ardenno (SO) ","UFFICIO D'AMBITO DELLA PROVINCIA DI SONDRIO",311,311,"Sondrio","SO","014005","Ardenno"]
["Lombardia","Bema","Bema (SO) ","UFFICIO D'AMBITO DELLA PROVINCIA DI SONDRIO",311,311,"Sondrio","SO","014006","Bema"]
["Lombardia","Berbenno di Valtellina","Berbenno di Valtellina (SO) ","UFFICIO D'AMBITO DELLA PROVINCIA DI SONDRIO",311,311,"Sondrio","SO","014007","Berbenno di Valtellina"]
["Lombardia","Bianzone","Bianzone (SO) ","UFFICIO D'AMBITO DELLA PROVINCIA DI SONDRIO",311,311,"Sondrio","SO","014008","Bianzone"]
["Lombardia","Bormio","Bormio (SO) ","UFFICIO D'AMBITO DELLA PROVINCIA DI SONDRIO",311,311,"Sondrio","SO","014009","Bormio"]
["Lombardia","Buglio in Monte","Buglio in Monte (SO) ","UFFICIO D'AMBITO DELLA PROVINCIA DI SONDRIO",311,311,"Sondrio","SO","014010","Buglio in Monte"]
["Lombardia","Caiolo","Caiolo (SO) ","UFFICIO D'AMBITO DELLA PROVINCIA DI SONDRIO",311,311,"Sondrio","SO","014011","Caiolo"]
["Lombardia","Campodolcino","Campodolcino (SO) ","UFFICIO D'AMBITO DELLA PROVINCIA DI SONDRIO",311,311,"Sondrio","SO","014012","Campodolcino"]
["Lombardia","Caspoggio","Caspoggio (SO) ","UFFICIO D'AMBITO DELLA PROVINCIA DI SONDRIO",311,311,"Sondrio","SO","014013","Caspoggio"]
["Lombardia","Castello dell'Acqua","Castello dell'Acqua (SO) ","UFFICIO D'AMBITO DELLA PROVINCIA DI SONDRIO",311,311,"Sondrio","SO","014014","Castello dell'Acqua"]
["Lombardia","Castione Andevenno","Castione Andevenno (SO) ","UFFICIO D'AMBITO DELLA PROVINCIA DI SONDRIO",311,311,"Sondrio","SO","014015","Castione Andevenno"]
["Lombardia","Cedrasco","Cedrasco (SO) ","UFFICIO D'AMBITO DELLA PROVINCIA DI SONDRIO",311,311,"Sondrio","SO","014016","Cedrasco"]
["Lombardia","Cercino","Cercino (SO) ","UFFICIO D'AMBITO DELLA PROVINCIA DI SONDRIO",311,311,"Sondrio","SO","014017","Cercino"]
["Lombardia","Chiavenna","Chiavenna (SO) ","UFFICIO D'AMBITO DELLA PROVINCIA DI SONDRIO",311,311,"Sondrio","SO","014018","Chiavenna"]
["Lombardia","Chiesa in Valmalenco","Chiesa in Valmalenco (SO) ","UFFICIO D'AMBITO DELLA PROVINCIA DI SONDRIO",311,311,"Sondrio","SO","014019","Chiesa in Valmalenco"]
["Lombardia","Chiuro","Chiuro (SO) ","UFFICIO D'AMBITO DELLA PROVINCIA DI SONDRIO",311,311,"Sondrio","SO","014020","Chiuro"]
["Lombardia","Cino","Cino (SO) ","UFFICIO D'AMBITO DELLA PROVINCIA DI SONDRIO",311,311,"Sondrio","SO","014021","Cino"]
["Lombardia","Civo","Civo (SO) ","UFFICIO D'AMBITO DELLA PROVINCIA DI SONDRIO",311,311,"Sondrio","SO","014022","Civo"]
["Lombardia","Colorina","Colorina (SO) ","UFFICIO D'AMBITO DELLA PROVINCIA DI SONDRIO",311,311,"Sondrio","SO","014023","Colorina"]
["Lombardia","Cosio Valtellino","Cosio Valtellino (SO) ","UFFICIO D'AMBITO DELLA PROVINCIA DI SONDRIO",311,311,"Sondrio","SO","014024","Cosio Valtellino"]
["Lombardia","Dazio","Dazio (SO) ","UFFICIO D'AMBITO DELLA PROVINCIA DI SONDRIO",311,311,"Sondrio","SO","014025","Dazio"]
["Lombardia","Delebio","Delebio (SO) ","UFFICIO D'AMBITO DELLA PROVINCIA DI SONDRIO",311,311,"Sondrio","SO","014026","Delebio"]
["Lombardia","Dubino","Dubino (SO) ","UFFICIO D'AMBITO DELLA PROVINCIA DI SONDRIO",311,311,"Sondrio","SO","014027","Dubino"]
["Lombardia","Faedo Valtellino","Faedo Valtellino (SO) ","UFFICIO D'AMBITO DELLA PROVINCIA DI SONDRIO",311,311,"Sondrio","SO","014028","Faedo Valtellino"]
["Lombardia","Forcola","Forcola (SO) ","UFFICIO D'AMBITO DELLA PROVINCIA DI SONDRIO",311,311,"Sondrio","SO","014029","Forcola"]
["Lombardia","Fusine","Fusine (SO) ","UFFICIO D'AMBITO DELLA PROVINCIA DI SONDRIO",311,311,"Sondrio","SO","014030","Fusine"]
["Lombardia","Gerola Alta","Gerola Alta (SO) ","UFFICIO D'AMBITO DELLA PROVINCIA DI SONDRIO",311,311,"Sondrio","SO","014031","Gerola Alta"]
["Lombardia","Gordona","Gordona (SO) ","UFFICIO D'AMBITO DELLA PROVINCIA DI SONDRIO",311,311,"Sondrio","SO","014032","Gordona"]
["Lombardia","Grosio","Grosio (SO) ","UFFICIO D'AMBITO DELLA PROVINCIA DI SONDRIO",311,311,"Sondrio","SO","014033","Grosio"]
["Lombardia","Grosotto","Grosotto (SO) ","UFFICIO D'AMBITO DELLA PROVINCIA DI SONDRIO",311,311,"Sondrio","SO","014034","Grosotto"]
["Lombardia","Madesimo","Madesimo (SO) ","UFFICIO D'AMBITO DELLA PROVINCIA DI SONDRIO",311,311,"Sondrio","SO","014035","Madesimo"]
["Lombardia","Lanzada","Lanzada (SO) ","UFFICIO D'AMBITO DELLA PROVINCIA DI SONDRIO",311,311,"Sondrio","SO","014036","Lanzada"]
["Lombardia","Livigno","Livigno (SO) ","UFFICIO D'AMBITO DELLA PROVINCIA DI SONDRIO",311,311,"Sondrio","SO","014037","Livigno"]
["Lombardia","Lovero","Lovero (SO) ","UFFICIO D'AMBITO DELLA PROVINCIA DI SONDRIO",311,311,"Sondrio","SO","014038","Lovero"]
["Lombardia","Mantello","Mantello (SO) ","UFFICIO D'AMBITO DELLA PROVINCIA DI SONDRIO",311,311,"Sondrio","SO","014039","Mantello"]
["Lombardia","Mazzo di Valtellina","Mazzo di Valtellina (SO) ","UFFICIO D'AMBITO DELLA PROVINCIA DI SONDRIO",311,311,"Sondrio","SO","014040","Mazzo di Valtellina"]
["Lombardia","Mello","Mello (SO) ","UFFICIO D'AMBITO DELLA PROVINCIA DI SONDRIO",311,311,"Sondrio","SO","014041","Mello"]
["Lombardia","Mese","Mese (SO) ","UFFICIO D'AMBITO DELLA PROVINCIA DI SONDRIO",311,311,"Sondrio","SO","014043","Mese"]
["Lombardia","Montagna in Valtellina","Montagna in Valtellina (SO) ","UFFICIO D'AMBITO DELLA PROVINCIA DI SONDRIO",311,311,"Sondrio","SO","014044","Montagna in Valtellina"]
["Lombardia","Morbegno","Morbegno (SO) ","UFFICIO D'AMBITO DELLA PROVINCIA DI SONDRIO",311,311,"Sondrio","SO","014045","Morbegno"]
["Lombardia","Novate Mezzola","Novate Mezzola (SO) ","UFFICIO D'AMBITO DELLA PROVINCIA DI SONDRIO",311,311,"Sondrio","SO","014046","Novate Mezzola"]
["Lombardia","Pedesina","Pedesina (SO) ","UFFICIO D'AMBITO DELLA PROVINCIA DI SONDRIO",311,311,"Sondrio","SO","014047","Pedesina"]
["Lombardia","Piantedo","Piantedo (SO) ","UFFICIO D'AMBITO DELLA PROVINCIA DI SONDRIO",311,311,"Sondrio","SO","014048","Piantedo"]
["Lombardia","Piateda","Piateda (SO) ","UFFICIO D'AMBITO DELLA PROVINCIA DI SONDRIO",311,311,"Sondrio","SO","014049","Piateda"]
["Lombardia","Piuro","Piuro (SO) ","UFFICIO D'AMBITO DELLA PROVINCIA DI SONDRIO",311,311,"Sondrio","SO","014050","Piuro"]
["Lombardia","Poggiridenti","Poggiridenti (SO) ","UFFICIO D'AMBITO DELLA PROVINCIA DI SONDRIO",311,311,"Sondrio","SO","014051","Poggiridenti"]
["Lombardia","Ponte in Valtellina","Ponte in Valtellina (SO) ","UFFICIO D'AMBITO DELLA PROVINCIA DI SONDRIO",311,311,"Sondrio","SO","014052","Ponte in Valtellina"]
["Lombardia","Postalesio","Postalesio (SO) ","UFFICIO D'AMBITO DELLA PROVINCIA DI SONDRIO",311,311,"Sondrio","SO","014053","Postalesio"]
["Lombardia","Prata Camportaccio","Prata Camportaccio (SO) ","UFFICIO D'AMBITO DELLA PROVINCIA DI SONDRIO",311,311,"Sondrio","SO","014054","Prata Camportaccio"]
["Lombardia","Rasura","Rasura (SO) ","UFFICIO D'AMBITO DELLA PROVINCIA DI SONDRIO",311,311,"Sondrio","SO","014055","Rasura"]
["Lombardia","Rogolo","Rogolo (SO) ","UFFICIO D'AMBITO DELLA PROVINCIA DI SONDRIO",311,311,"Sondrio","SO","014056","Rogolo"]
["Lombardia","Samolaco","Samolaco (SO) ","UFFICIO D'AMBITO DELLA PROVINCIA DI SONDRIO",311,311,"Sondrio","SO","014057","Samolaco"]
["Lombardia","San Giacomo Filippo","San Giacomo Filippo (SO) ","UFFICIO D'AMBITO DELLA PROVINCIA DI SONDRIO",311,311,"Sondrio","SO","014058","San Giacomo Filippo"]
["Lombardia","Sernio","Sernio (SO) ","UFFICIO D'AMBITO DELLA PROVINCIA DI SONDRIO",311,311,"Sondrio","SO","014059","Sernio"]
["Lombardia","Sondalo","Sondalo (SO) ","UFFICIO D'AMBITO DELLA PROVINCIA DI SONDRIO",311,311,"Sondrio","SO","014060","Sondalo"]
["Lombardia","Sondrio","Sondrio (SO) ","UFFICIO D'AMBITO DELLA PROVINCIA DI SONDRIO",311,311,"Sondrio","SO","014061","Sondrio"]
["Lombardia","Spriana","Spriana (SO) ","UFFICIO D'AMBITO DELLA PROVINCIA DI SONDRIO",311,311,"Sondrio","SO","014062","Spriana"]
["Lombardia","Talamona","Talamona (SO) ","UFFICIO D'AMBITO DELLA PROVINCIA DI SONDRIO",311,311,"Sondrio","SO","014063","Talamona"]
["Lombardia","Tartano","Tartano (SO) ","UFFICIO D'AMBITO DELLA PROVINCIA DI SONDRIO",311,311,"Sondrio","SO","014064","Tartano"]
["Lombardia","Teglio","Teglio (SO) ","UFFICIO D'AMBITO DELLA PROVINCIA DI SONDRIO",311,311,"Sondrio","SO","014065","Teglio"]
["Lombardia","Tirano","Tirano (SO) ","UFFICIO D'AMBITO DELLA PROVINCIA DI SONDRIO",311,311,"Sondrio","SO","014066","Tirano"]
["Lombardia","Torre di Santa Maria","Torre di Santa Maria (SO) ","UFFICIO D'AMBITO DELLA PROVINCIA DI SONDRIO",311,311,"Sondrio","SO","014067","Torre di Santa Maria"]
["Lombardia","Tovo di Sant'Agata","Tovo di Sant'Agata (SO) ","UFFICIO D'AMBITO DELLA PROVINCIA DI SONDRIO",311,311,"Sondrio","SO","014068","Tovo di Sant'Agata"]
["Lombardia","Traona","Traona (SO) ","UFFICIO D'AMBITO DELLA PROVINCIA DI SONDRIO",311,311,"Sondrio","SO","014069","Traona"]
["Lombardia","Tresivio","Tresivio (SO) ","UFFICIO D'AMBITO DELLA PROVINCIA DI SONDRIO",311,311,"Sondrio","SO","014070","Tresivio"]
["Lombardia","Valdidentro","Valdidentro (SO) ","UFFICIO D'AMBITO DELLA PROVINCIA DI SONDRIO",311,311,"Sondrio","SO","014071","Valdidentro"]
["Lombardia","Valdisotto","Valdisotto (SO) ","UFFICIO D'AMBITO DELLA PROVINCIA DI SONDRIO",311,311,"Sondrio","SO","014072","Valdisotto"]
["Lombardia","Valfurva","Valfurva (SO) ","UFFICIO D'AMBITO DELLA PROVINCIA DI SONDRIO",311,311,"Sondrio","SO","014073","Valfurva"]
["Lombardia","Val Masino","Val Masino (SO) ","UFFICIO D'AMBITO DELLA PROVINCIA DI SONDRIO",311,311,"Sondrio","SO","014074","Val Masino"]
["Lombardia","Verceia","Verceia (SO) ","UFFICIO D'AMBITO DELLA PROVINCIA DI SONDRIO",311,311,"Sondrio","SO","014075","Verceia"]
["Lombardia","Vervio","Vervio (SO) ","UFFICIO D'AMBITO DELLA PROVINCIA DI SONDRIO",311,311,"Sondrio","SO","014076","Vervio"]
["Lombardia","Villa di Chiavenna","Villa di Chiavenna (SO) ","UFFICIO D'AMBITO DELLA PROVINCIA DI SONDRIO",311,311,"Sondrio","SO","014077","Villa di Chiavenna"]
["Lombardia","Villa di Tirano","Villa di Tirano (SO) ","UFFICIO D'AMBITO DELLA PROVINCIA DI SONDRIO",311,311,"Sondrio","SO","014078","Villa di Tirano"]
["Lombardia","Abbiategrasso","Abbiategrasso (MI) ","Ufficio d'Ambito della Città Metropolitana di Milano",308,308,"Milano","MI","015002","Abbiategrasso"]
["Lombardia","Albairate","Albairate (MI) ","Ufficio d'Ambito della Città Metropolitana di Milano",308,308,"Milano","MI","015005","Albairate"]
["Lombardia","Arconate","Arconate (MI) ","Ufficio d'Ambito della Città Metropolitana di Milano",308,308,"Milano","MI","015007","Arconate"]
["Lombardia","Arese","Arese (MI) ","Ufficio d'Ambito della Città Metropolitana di Milano",308,308,"Milano","MI","015009","Arese"]
["Lombardia","Arluno","Arluno (MI) ","Ufficio d'Ambito della Città Metropolitana di Milano",308,308,"Milano","MI","015010","Arluno"]
["Lombardia","Assago","Assago (MI) ","Ufficio d'Ambito della Città Metropolitana di Milano",308,308,"Milano","MI","015011","Assago"]
["Lombardia","Bareggio","Bareggio (MI) ","Ufficio d'Ambito della Città Metropolitana di Milano",308,308,"Milano","MI","015012","Bareggio"]
["Lombardia","Basiano","Basiano (MI) ","Ufficio d'Ambito della Città Metropolitana di Milano",308,308,"Milano","MI","015014","Basiano"]
["Lombardia","Basiglio","Basiglio (MI) ","Ufficio d'Ambito della Città Metropolitana di Milano",308,308,"Milano","MI","015015","Basiglio"]
["Lombardia","Bellinzago Lombardo","Bellinzago Lombardo (MI) ","Ufficio d'Ambito della Città Metropolitana di Milano",308,308,"Milano","MI","015016","Bellinzago Lombardo"]
["Lombardia","Bernate Ticino","Bernate Ticino (MI) ","Ufficio d'Ambito della Città Metropolitana di Milano",308,308,"Milano","MI","015019","Bernate Ticino"]
["Lombardia","Besate","Besate (MI) ","Ufficio d'Ambito della Città Metropolitana di Milano",308,308,"Milano","MI","015022","Besate"]
["Lombardia","Binasco","Binasco (MI) ","Ufficio d'Ambito della Città Metropolitana di Milano",308,308,"Milano","MI","015024","Binasco"]
["Lombardia","Boffalora sopra Ticino","Boffalora sopra Ticino (MI) ","Ufficio d'Ambito della Città Metropolitana di Milano",308,308,"Milano","MI","015026","Boffalora sopra Ticino"]
["Lombardia","Bollate","Bollate (MI) ","Ufficio d'Ambito della Città Metropolitana di Milano",308,308,"Milano","MI","015027","Bollate"]
["Lombardia","Bresso","Bresso (MI) ","Ufficio d'Ambito della Città Metropolitana di Milano",308,308,"Milano","MI","015032","Bresso"]
["Lombardia","Bubbiano","Bubbiano (MI) ","Ufficio d'Ambito della Città Metropolitana di Milano",308,308,"Milano","MI","015035","Bubbiano"]
["Lombardia","Buccinasco","Buccinasco (MI) ","Ufficio d'Ambito della Città Metropolitana di Milano",308,308,"Milano","MI","015036","Buccinasco"]
["Lombardia","Buscate","Buscate (MI) ","Ufficio d'Ambito della Città Metropolitana di Milano",308,308,"Milano","MI","015038","Buscate"]
["Lombardia","Bussero","Bussero (MI) ","Ufficio d'Ambito della Città Metropolitana di Milano",308,308,"Milano","MI","015040","Bussero"]
["Lombardia","Busto Garolfo","Busto Garolfo (MI) ","Ufficio d'Ambito della Città Metropolitana di Milano",308,308,"Milano","MI","015041","Busto Garolfo"]
["Lombardia","Calvignasco","Calvignasco (MI) ","Ufficio d'Ambito della Città Metropolitana di Milano",308,308,"Milano","MI","015042","Calvignasco"]
["Lombardia","Cambiago","Cambiago (MI) ","Ufficio d'Ambito della Città Metropolitana di Milano",308,308,"Milano","MI","015044","Cambiago"]
["Lombardia","Canegrate","Canegrate (MI) ","Ufficio d'Ambito della Città Metropolitana di Milano",308,308,"Milano","MI","015046","Canegrate"]
["Lombardia","Carpiano","Carpiano (MI) ","Ufficio d'Ambito della Città Metropolitana di Milano",308,308,"Milano","MI","015050","Carpiano"]
["Lombardia","Carugate","Carugate (MI) ","Ufficio d'Ambito della Città Metropolitana di Milano",308,308,"Milano","MI","015051","Carugate"]
["Lombardia","Casarile","Casarile (MI) ","Ufficio d'Ambito della Città Metropolitana di Milano",308,308,"Milano","MI","015055","Casarile"]
["Lombardia","Casorezzo","Casorezzo (MI) ","Ufficio d'Ambito della Città Metropolitana di Milano",308,308,"Milano","MI","015058","Casorezzo"]
["Lombardia","Cassano d'Adda","Cassano d'Adda (MI) ","Ufficio d'Ambito della Città Metropolitana di Milano",308,308,"Milano","MI","015059","Cassano d'Adda"]
["Lombardia","Cassina de' Pecchi","Cassina de' Pecchi (MI) ","Ufficio d'Ambito della Città Metropolitana di Milano",308,308,"Milano","MI","015060","Cassina de' Pecchi"]
["Lombardia","Cassinetta di Lugagnano","Cassinetta di Lugagnano (MI) ","Ufficio d'Ambito della Città Metropolitana di Milano",308,308,"Milano","MI","015061","Cassinetta di Lugagnano"]
["Lombardia","Castano Primo","Castano Primo (MI) ","Ufficio d'Ambito della Città Metropolitana di Milano",308,308,"Milano","MI","015062","Castano Primo"]
["Lombardia","Cernusco sul Naviglio","Cernusco sul Naviglio (MI) ","Ufficio d'Ambito della Città Metropolitana di Milano",308,308,"Milano","MI","015070","Cernusco sul Naviglio"]
["Lombardia","Cerro al Lambro","Cerro al Lambro (MI) ","Ufficio d'Ambito della Città Metropolitana di Milano",308,308,"Milano","MI","015071","Cerro al Lambro"]
["Lombardia","Cerro Maggiore","Cerro Maggiore (MI) ","Ufficio d'Ambito della Città Metropolitana di Milano",308,308,"Milano","MI","015072","Cerro Maggiore"]
["Lombardia","Cesano Boscone","Cesano Boscone (MI) ","Ufficio d'Ambito della Città Metropolitana di Milano",308,308,"Milano","MI","015074","Cesano Boscone"]
["Lombardia","Cesate","Cesate (MI) ","Ufficio d'Ambito della Città Metropolitana di Milano",308,308,"Milano","MI","015076","Cesate"]
["Lombardia","Cinisello Balsamo","Cinisello Balsamo (MI) ","Ufficio d'Ambito della Città Metropolitana di Milano",308,308,"Milano","MI","015077","Cinisello Balsamo"]
["Lombardia","Cisliano","Cisliano (MI) ","Ufficio d'Ambito della Città Metropolitana di Milano",308,308,"Milano","MI","015078","Cisliano"]
["Lombardia","Cologno Monzese","Cologno Monzese (MI) ","Ufficio d'Ambito della Città Metropolitana di Milano",308,308,"Milano","MI","015081","Cologno Monzese"]
["Lombardia","Colturano","Colturano (MI) ","Ufficio d'Ambito della Città Metropolitana di Milano",308,308,"Milano","MI","015082","Colturano"]
["Lombardia","Corbetta","Corbetta (MI) ","Ufficio d'Ambito della Città Metropolitana di Milano",308,308,"Milano","MI","015085","Corbetta"]
["Lombardia","Cormano","Cormano (MI) ","Ufficio d'Ambito della Città Metropolitana di Milano",308,308,"Milano","MI","015086","Cormano"]
["Lombardia","Cornaredo","Cornaredo (MI) ","Ufficio d'Ambito della Città Metropolitana di Milano",308,308,"Milano","MI","015087","Cornaredo"]
["Lombardia","Corsico","Corsico (MI) ","Ufficio d'Ambito della Città Metropolitana di Milano",308,308,"Milano","MI","015093","Corsico"]
["Lombardia","Cuggiono","Cuggiono (MI) ","Ufficio d'Ambito della Città Metropolitana di Milano",308,308,"Milano","MI","015096","Cuggiono"]
["Lombardia","Cusago","Cusago (MI) ","Ufficio d'Ambito della Città Metropolitana di Milano",308,308,"Milano","MI","015097","Cusago"]
["Lombardia","Cusano Milanino","Cusano Milanino (MI) ","Ufficio d'Ambito della Città Metropolitana di Milano",308,308,"Milano","MI","015098","Cusano Milanino"]
["Lombardia","Dairago","Dairago (MI) ","Ufficio d'Ambito della Città Metropolitana di Milano",308,308,"Milano","MI","015099","Dairago"]
["Lombardia","Dresano","Dresano (MI) ","Ufficio d'Ambito della Città Metropolitana di Milano",308,308,"Milano","MI","015101","Dresano"]
["Lombardia","Gaggiano","Gaggiano (MI) ","Ufficio d'Ambito della Città Metropolitana di Milano",308,308,"Milano","MI","015103","Gaggiano"]
["Lombardia","Garbagnate Milanese","Garbagnate Milanese (MI) ","Ufficio d'Ambito della Città Metropolitana di Milano",308,308,"Milano","MI","015105","Garbagnate Milanese"]
["Lombardia","Gessate","Gessate (MI) ","Ufficio d'Ambito della Città Metropolitana di Milano",308,308,"Milano","MI","015106","Gessate"]
["Lombardia","Gorgonzola","Gorgonzola (MI) ","Ufficio d'Ambito della Città Metropolitana di Milano",308,308,"Milano","MI","015108","Gorgonzola"]
["Lombardia","Grezzago","Grezzago (MI) ","Ufficio d'Ambito della Città Metropolitana di Milano",308,308,"Milano","MI","015110","Grezzago"]
["Lombardia","Gudo Visconti","Gudo Visconti (MI) ","Ufficio d'Ambito della Città Metropolitana di Milano",308,308,"Milano","MI","015112","Gudo Visconti"]
["Lombardia","Inveruno","Inveruno (MI) ","Ufficio d'Ambito della Città Metropolitana di Milano",308,308,"Milano","MI","015113","Inveruno"]
["Lombardia","Inzago","Inzago (MI) ","Ufficio d'Ambito della Città Metropolitana di Milano",308,308,"Milano","MI","015114","Inzago"]
["Lombardia","Lacchiarella","Lacchiarella (MI) ","Ufficio d'Ambito della Città Metropolitana di Milano",308,308,"Milano","MI","015115","Lacchiarella"]
["Lombardia","Lainate","Lainate (MI) ","Ufficio d'Ambito della Città Metropolitana di Milano",308,308,"Milano","MI","015116","Lainate"]
["Lombardia","Legnano","Legnano (MI) ","Ufficio d'Ambito della Città Metropolitana di Milano",308,308,"Milano","MI","015118","Legnano"]
["Lombardia","Liscate","Liscate (MI) ","Ufficio d'Ambito della Città Metropolitana di Milano",308,308,"Milano","MI","015122","Liscate"]
["Lombardia","Locate di Triulzi","Locate di Triulzi (MI) ","Ufficio d'Ambito della Città Metropolitana di Milano",308,308,"Milano","MI","015125","Locate di Triulzi"]
["Lombardia","Magenta","Magenta (MI) ","Ufficio d'Ambito della Città Metropolitana di Milano",308,308,"Milano","MI","015130","Magenta"]
["Lombardia","Magnago","Magnago (MI) ","Ufficio d'Ambito della Città Metropolitana di Milano",308,308,"Milano","MI","015131","Magnago"]
["Lombardia","Marcallo con Casone","Marcallo con Casone (MI) ","Ufficio d'Ambito della Città Metropolitana di Milano",308,308,"Milano","MI","015134","Marcallo con Casone"]
["Lombardia","Masate","Masate (MI) ","Ufficio d'Ambito della Città Metropolitana di Milano",308,308,"Milano","MI","015136","Masate"]
["Lombardia","Mediglia","Mediglia (MI) ","Ufficio d'Ambito della Città Metropolitana di Milano",308,308,"Milano","MI","015139","Mediglia"]
["Lombardia","Melegnano","Melegnano (MI) ","Ufficio d'Ambito della Città Metropolitana di Milano",308,308,"Milano","MI","015140","Melegnano"]
["Lombardia","Melzo","Melzo (MI) ","Ufficio d'Ambito della Città Metropolitana di Milano",308,308,"Milano","MI","015142","Melzo"]
["Lombardia","Mesero","Mesero (MI) ","Ufficio d'Ambito della Città Metropolitana di Milano",308,308,"Milano","MI","015144","Mesero"]
["Lombardia","Milano","Milano (MI) ","Ufficio d'Ambito della Città Metropolitana di Milano",308,308,"Milano","MI","015146","Milano"]
["Lombardia","Morimondo","Morimondo (MI) ","Ufficio d'Ambito della Città Metropolitana di Milano",308,308,"Milano","MI","015150","Morimondo"]
["Lombardia","Motta Visconti","Motta Visconti (MI) ","Ufficio d'Ambito della Città Metropolitana di Milano",308,308,"Milano","MI","015151","Motta Visconti"]
["Lombardia","Nerviano","Nerviano (MI) ","Ufficio d'Ambito della Città Metropolitana di Milano",308,308,"Milano","MI","015154","Nerviano"]
["Lombardia","Nosate","Nosate (MI) ","Ufficio d'Ambito della Città Metropolitana di Milano",308,308,"Milano","MI","015155","Nosate"]
["Lombardia","Novate Milanese","Novate Milanese (MI) ","Ufficio d'Ambito della Città Metropolitana di Milano",308,308,"Milano","MI","015157","Novate Milanese"]
["Lombardia","Noviglio","Noviglio (MI) ","Ufficio d'Ambito della Città Metropolitana di Milano",308,308,"Milano","MI","015158","Noviglio"]
["Lombardia","Opera","Opera (MI) ","Ufficio d'Ambito della Città Metropolitana di Milano",308,308,"Milano","MI","015159","Opera"]
["Lombardia","Ossona","Ossona (MI) ","Ufficio d'Ambito della Città Metropolitana di Milano",308,308,"Milano","MI","015164","Ossona"]
["Lombardia","Ozzero","Ozzero (MI) ","Ufficio d'Ambito della Città Metropolitana di Milano",308,308,"Milano","MI","015165","Ozzero"]
["Lombardia","Paderno Dugnano","Paderno Dugnano (MI) ","Ufficio d'Ambito della Città Metropolitana di Milano",308,308,"Milano","MI","015166","Paderno Dugnano"]
["Lombardia","Pantigliate","Pantigliate (MI) ","Ufficio d'Ambito della Città Metropolitana di Milano",308,308,"Milano","MI","015167","Pantigliate"]
["Lombardia","Parabiago","Parabiago (MI) ","Ufficio d'Ambito della Città Metropolitana di Milano",308,308,"Milano","MI","015168","Parabiago"]
["Lombardia","Paullo","Paullo (MI) ","Ufficio d'Ambito della Città Metropolitana di Milano",308,308,"Milano","MI","015169","Paullo"]
["Lombardia","Pero","Pero (MI) ","Ufficio d'Ambito della Città Metropolitana di Milano",308,308,"Milano","MI","015170","Pero"]
["Lombardia","Peschiera Borromeo","Peschiera Borromeo (MI) ","Ufficio d'Ambito della Città Metropolitana di Milano",308,308,"Milano","MI","015171","Peschiera Borromeo"]
["Lombardia","Pessano con Bornago","Pessano con Bornago (MI) ","Ufficio d'Ambito della Città Metropolitana di Milano",308,308,"Milano","MI","015172","Pessano con Bornago"]
["Lombardia","Pieve Emanuele","Pieve Emanuele (MI) ","Ufficio d'Ambito della Città Metropolitana di Milano",308,308,"Milano","MI","015173","Pieve Emanuele"]
["Lombardia","Pioltello","Pioltello (MI) ","Ufficio d'Ambito della Città Metropolitana di Milano",308,308,"Milano","MI","015175","Pioltello"]
["Lombardia","Pogliano Milanese","Pogliano Milanese (MI) ","Ufficio d'Ambito della Città Metropolitana di Milano",308,308,"Milano","MI","015176","Pogliano Milanese"]
["Lombardia","Pozzo d'Adda","Pozzo d'Adda (MI) ","Ufficio d'Ambito della Città Metropolitana di Milano",308,308,"Milano","MI","015177","Pozzo d'Adda"]
["Lombardia","Pozzuolo Martesana","Pozzuolo Martesana (MI) ","Ufficio d'Ambito della Città Metropolitana di Milano",308,308,"Milano","MI","015178","Pozzuolo Martesana"]
["Lombardia","Pregnana Milanese","Pregnana Milanese (MI) ","Ufficio d'Ambito della Città Metropolitana di Milano",308,308,"Milano","MI","015179","Pregnana Milanese"]
["Lombardia","Rescaldina","Rescaldina (MI) ","Ufficio d'Ambito della Città Metropolitana di Milano",308,308,"Milano","MI","015181","Rescaldina"]
["Lombardia","Rho","Rho (MI) ","Ufficio d'Ambito della Città Metropolitana di Milano",308,308,"Milano","MI","015182","Rho"]
["Lombardia","Robecchetto con Induno","Robecchetto con Induno (MI) ","Ufficio d'Ambito della Città Metropolitana di Milano",308,308,"Milano","MI","015183","Robecchetto con Induno"]
["Lombardia","Robecco sul Naviglio","Robecco sul Naviglio (MI) ","Ufficio d'Ambito della Città Metropolitana di Milano",308,308,"Milano","MI","015184","Robecco sul Naviglio"]
["Lombardia","Rodano","Rodano (MI) ","Ufficio d'Ambito della Città Metropolitana di Milano",308,308,"Milano","MI","015185","Rodano"]
["Lombardia","Rosate","Rosate (MI) ","Ufficio d'Ambito della Città Metropolitana di Milano",308,308,"Milano","MI","015188","Rosate"]
["Lombardia","Rozzano","Rozzano (MI) ","Ufficio d'Ambito della Città Metropolitana di Milano",308,308,"Milano","MI","015189","Rozzano"]
["Lombardia","San Colombano al Lambro","San Colombano al Lambro (MI) ","Ufficio d'Ambito della Città Metropolitana di Milano",308,308,"Milano","MI","015191","San Colombano al Lambro"]
["Lombardia","San Donato Milanese","San Donato Milanese (MI) ","Ufficio d'Ambito della Città Metropolitana di Milano",308,308,"Milano","MI","015192","San Donato Milanese"]
["Lombardia","San Giorgio su Legnano","San Giorgio su Legnano (MI) ","Ufficio d'Ambito della Città Metropolitana di Milano",308,308,"Milano","MI","015194","San Giorgio su Legnano"]
["Lombardia","San Giuliano Milanese","San Giuliano Milanese (MI) ","Ufficio d'Ambito della Città Metropolitana di Milano",308,308,"Milano","MI","015195","San Giuliano Milanese"]
["Lombardia","Santo Stefano Ticino","Santo Stefano Ticino (MI) ","Ufficio d'Ambito della Città Metropolitana di Milano",308,308,"Milano","MI","015200","Santo Stefano Ticino"]
["Lombardia","San Vittore Olona","San Vittore Olona (MI) ","Ufficio d'Ambito della Città Metropolitana di Milano",308,308,"Milano","MI","015201","San Vittore Olona"]
["Lombardia","San Zenone al Lambro","San Zenone al Lambro (MI) ","Ufficio d'Ambito della Città Metropolitana di Milano",308,308,"Milano","MI","015202","San Zenone al Lambro"]
["Lombardia","Sedriano","Sedriano (MI) ","Ufficio d'Ambito della Città Metropolitana di Milano",308,308,"Milano","MI","015204","Sedriano"]
["Lombardia","Segrate","Segrate (MI) ","Ufficio d'Ambito della Città Metropolitana di Milano",308,308,"Milano","MI","015205","Segrate"]
["Lombardia","Senago","Senago (MI) ","Ufficio d'Ambito della Città Metropolitana di Milano",308,308,"Milano","MI","015206","Senago"]
["Lombardia","Sesto San Giovanni","Sesto San Giovanni (MI) ","Ufficio d'Ambito della Città Metropolitana di Milano",308,308,"Milano","MI","015209","Sesto San Giovanni"]
["Lombardia","Settala","Settala (MI) ","Ufficio d'Ambito della Città Metropolitana di Milano",308,308,"Milano","MI","015210","Settala"]
["Lombardia","Settimo Milanese","Settimo Milanese (MI) ","Ufficio d'Ambito della Città Metropolitana di Milano",308,308,"Milano","MI","015211","Settimo Milanese"]
["Lombardia","Solaro","Solaro (MI) ","Ufficio d'Ambito della Città Metropolitana di Milano",308,308,"Milano","MI","015213","Solaro"]
["Lombardia","Trezzano Rosa","Trezzano Rosa (MI) ","Ufficio d'Ambito della Città Metropolitana di Milano",308,308,"Milano","MI","015219","Trezzano Rosa"]
["Lombardia","Trezzano sul Naviglio","Trezzano sul Naviglio (MI) ","Ufficio d'Ambito della Città Metropolitana di Milano",308,308,"Milano","MI","015220","Trezzano sul Naviglio"]
["Lombardia","Trezzo sull'Adda","Trezzo sull'Adda (MI) ","Ufficio d'Ambito della Città Metropolitana di Milano",308,308,"Milano","MI","015221","Trezzo sull'Adda"]
["Lombardia","Tribiano","Tribiano (MI) ","Ufficio d'Ambito della Città Metropolitana di Milano",308,308,"Milano","MI","015222","Tribiano"]
["Lombardia","Truccazzano","Truccazzano (MI) ","Ufficio d'Ambito della Città Metropolitana di Milano",308,308,"Milano","MI","015224","Truccazzano"]
["Lombardia","Turbigo","Turbigo (MI) ","Ufficio d'Ambito della Città Metropolitana di Milano",308,308,"Milano","MI","015226","Turbigo"]
["Lombardia","Vanzago","Vanzago (MI) ","Ufficio d'Ambito della Città Metropolitana di Milano",308,308,"Milano","MI","015229","Vanzago"]
["Lombardia","Vaprio d'Adda","Vaprio d'Adda (MI) ","Ufficio d'Ambito della Città Metropolitana di Milano",308,308,"Milano","MI","015230","Vaprio d'Adda"]
["Lombardia","Vernate","Vernate (MI) ","Ufficio d'Ambito della Città Metropolitana di Milano",308,308,"Milano","MI","015236","Vernate"]
["Lombardia","Vignate","Vignate (MI) ","Ufficio d'Ambito della Città Metropolitana di Milano",308,308,"Milano","MI","015237","Vignate"]
["Lombardia","Vimodrone","Vimodrone (MI) ","Ufficio d'Ambito della Città Metropolitana di Milano",308,308,"Milano","MI","015242","Vimodrone"]
["Lombardia","Vittuone","Vittuone (MI) ","Ufficio d'Ambito della Città Metropolitana di Milano",308,308,"Milano","MI","015243","Vittuone"]
["Lombardia","Vizzolo Predabissi","Vizzolo Predabissi (MI) ","Ufficio d'Ambito della Città Metropolitana di Milano",308,308,"Milano","MI","015244","Vizzolo Predabissi"]
["Lombardia","Zibido San Giacomo","Zibido San Giacomo (MI) ","Ufficio d'Ambito della Città Metropolitana di Milano",308,308,"Milano","MI","015247","Zibido San Giacomo"]
["Lombardia","Villa Cortese","Villa Cortese (MI) ","Ufficio d'Ambito della Città Metropolitana di Milano",308,308,"Milano","MI","015248","Villa Cortese"]
["Lombardia","Vanzaghello","Vanzaghello (MI) ","Ufficio d'Ambito della Città Metropolitana di Milano",308,308,"Milano","MI","015249","Vanzaghello"]
["Lombardia","Baranzate","Baranzate (MI) ","Ufficio d'Ambito della Città Metropolitana di Milano",308,308,"Milano","MI","015250","Baranzate"]
["Lombardia","Vermezzo con Zelo","Vermezzo con Zelo (MI) ","Ufficio d'Ambito della Città Metropolitana di Milano",308,308,"Milano","MI","015251","Vermezzo con Zelo"]
["Lombardia","Adrara San Martino","Adrara San Martino (BG) ","UFFICIO D'AMBITO DI BERGAMO",301,301,"Bergamo","BG","016001","Adrara San Martino"]
["Lombardia","Adrara San Rocco","Adrara San Rocco (BG) ","UFFICIO D'AMBITO DI BERGAMO",301,301,"Bergamo","BG","016002","Adrara San Rocco"]
["Lombardia","Albano Sant'Alessandro","Albano Sant'Alessandro (BG) ","UFFICIO D'AMBITO DI BERGAMO",301,301,"Bergamo","BG","016003","Albano Sant'Alessandro"]
["Lombardia","Albino","Albino (BG) ","UFFICIO D'AMBITO DI BERGAMO",301,301,"Bergamo","BG","016004","Albino"]
["Lombardia","Almè","Almè (BG) ","UFFICIO D'AMBITO DI BERGAMO",301,301,"Bergamo","BG","016005","Almè"]
["Lombardia","Almenno San Bartolomeo","Almenno San Bartolomeo (BG) ","UFFICIO D'AMBITO DI BERGAMO",301,301,"Bergamo","BG","016006","Almenno San Bartolomeo"]
["Lombardia","Almenno San Salvatore","Almenno San Salvatore (BG) ","UFFICIO D'AMBITO DI BERGAMO",301,301,"Bergamo","BG","016007","Almenno San Salvatore"]
["Lombardia","Alzano Lombardo","Alzano Lombardo (BG) ","UFFICIO D'AMBITO DI BERGAMO",301,301,"Bergamo","BG","016008","Alzano Lombardo"]
["Lombardia","Ambivere","Ambivere (BG) ","UFFICIO D'AMBITO DI BERGAMO",301,301,"Bergamo","BG","016009","Ambivere"]
["Lombardia","Antegnate","Antegnate (BG) ","UFFICIO D'AMBITO DI BERGAMO",301,301,"Bergamo","BG","016010","Antegnate"]
["Lombardia","Arcene","Arcene (BG) ","UFFICIO D'AMBITO DI BERGAMO",301,301,"Bergamo","BG","016011","Arcene"]
["Lombardia","Ardesio","Ardesio (BG) ","UFFICIO D'AMBITO DI BERGAMO",301,301,"Bergamo","BG","016012","Ardesio"]
["Lombardia","Arzago d'Adda","Arzago d'Adda (BG) ","UFFICIO D'AMBITO DI BERGAMO",301,301,"Bergamo","BG","016013","Arzago d'Adda"]
["Lombardia","Averara","Averara (BG) ","UFFICIO D'AMBITO DI BERGAMO",301,301,"Bergamo","BG","016014","Averara"]
["Lombardia","Aviatico","Aviatico (BG) ","UFFICIO D'AMBITO DI BERGAMO",301,301,"Bergamo","BG","016015","Aviatico"]
["Lombardia","Azzano San Paolo","Azzano San Paolo (BG) ","UFFICIO D'AMBITO DI BERGAMO",301,301,"Bergamo","BG","016016","Azzano San Paolo"]
["Lombardia","Azzone","Azzone (BG) ","UFFICIO D'AMBITO DI BERGAMO",301,301,"Bergamo","BG","016017","Azzone"]
["Lombardia","Bagnatica","Bagnatica (BG) ","UFFICIO D'AMBITO DI BERGAMO",301,301,"Bergamo","BG","016018","Bagnatica"]
["Lombardia","Barbata","Barbata (BG) ","UFFICIO D'AMBITO DI BERGAMO",301,301,"Bergamo","BG","016019","Barbata"]
["Lombardia","Bariano","Bariano (BG) ","UFFICIO D'AMBITO DI BERGAMO",301,301,"Bergamo","BG","016020","Bariano"]
["Lombardia","Barzana","Barzana (BG) ","UFFICIO D'AMBITO DI BERGAMO",301,301,"Bergamo","BG","016021","Barzana"]
["Lombardia","Bedulita","Bedulita (BG) ","UFFICIO D'AMBITO DI BERGAMO",301,301,"Bergamo","BG","016022","Bedulita"]
["Lombardia","Berbenno","Berbenno (BG) ","UFFICIO D'AMBITO DI BERGAMO",301,301,"Bergamo","BG","016023","Berbenno"]
["Lombardia","Bergamo","Bergamo (BG) ","UFFICIO D'AMBITO DI BERGAMO",301,301,"Bergamo","BG","016024","Bergamo"]
["Lombardia","Berzo San Fermo","Berzo San Fermo (BG) ","UFFICIO D'AMBITO DI BERGAMO",301,301,"Bergamo","BG","016025","Berzo San Fermo"]
["Lombardia","Bianzano","Bianzano (BG) ","UFFICIO D'AMBITO DI BERGAMO",301,301,"Bergamo","BG","016026","Bianzano"]
["Lombardia","Blello","Blello (BG) ","UFFICIO D'AMBITO DI BERGAMO",301,301,"Bergamo","BG","016027","Blello"]
["Lombardia","Bolgare","Bolgare (BG) ","UFFICIO D'AMBITO DI BERGAMO",301,301,"Bergamo","BG","016028","Bolgare"]
["Lombardia","Boltiere","Boltiere (BG) ","UFFICIO D'AMBITO DI BERGAMO",301,301,"Bergamo","BG","016029","Boltiere"]
["Lombardia","Bonate Sopra","Bonate Sopra (BG) ","UFFICIO D'AMBITO DI BERGAMO",301,301,"Bergamo","BG","016030","Bonate Sopra"]
["Lombardia","Bonate Sotto","Bonate Sotto (BG) ","UFFICIO D'AMBITO DI BERGAMO",301,301,"Bergamo","BG","016031","Bonate Sotto"]
["Lombardia","Borgo di Terzo","Borgo di Terzo (BG) ","UFFICIO D'AMBITO DI BERGAMO",301,301,"Bergamo","BG","016032","Borgo di Terzo"]
["Lombardia","Bossico","Bossico (BG) ","UFFICIO D'AMBITO DI BERGAMO",301,301,"Bergamo","BG","016033","Bossico"]
["Lombardia","Bottanuco","Bottanuco (BG) ","UFFICIO D'AMBITO DI BERGAMO",301,301,"Bergamo","BG","016034","Bottanuco"]
["Lombardia","Bracca","Bracca (BG) ","UFFICIO D'AMBITO DI BERGAMO",301,301,"Bergamo","BG","016035","Bracca"]
["Lombardia","Branzi","Branzi (BG) ","UFFICIO D'AMBITO DI BERGAMO",301,301,"Bergamo","BG","016036","Branzi"]
["Lombardia","Brembate","Brembate (BG) ","UFFICIO D'AMBITO DI BERGAMO",301,301,"Bergamo","BG","016037","Brembate"]
["Lombardia","Brembate di Sopra","Brembate di Sopra (BG) ","UFFICIO D'AMBITO DI BERGAMO",301,301,"Bergamo","BG","016038","Brembate di Sopra"]
["Lombardia","Brignano Gera d'Adda","Brignano Gera d'Adda (BG) ","UFFICIO D'AMBITO DI BERGAMO",301,301,"Bergamo","BG","016040","Brignano Gera d'Adda"]
["Lombardia","Brumano","Brumano (BG) ","UFFICIO D'AMBITO DI BERGAMO",301,301,"Bergamo","BG","016041","Brumano"]
["Lombardia","Brusaporto","Brusaporto (BG) ","UFFICIO D'AMBITO DI BERGAMO",301,301,"Bergamo","BG","016042","Brusaporto"]
["Lombardia","Calcinate","Calcinate (BG) ","UFFICIO D'AMBITO DI BERGAMO",301,301,"Bergamo","BG","016043","Calcinate"]
["Lombardia","Calcio","Calcio (BG) ","UFFICIO D'AMBITO DI BERGAMO",301,301,"Bergamo","BG","016044","Calcio"]
["Lombardia","Calusco d'Adda","Calusco d'Adda (BG) ","UFFICIO D'AMBITO DI BERGAMO",301,301,"Bergamo","BG","016046","Calusco d'Adda"]
["Lombardia","Calvenzano","Calvenzano (BG) ","UFFICIO D'AMBITO DI BERGAMO",301,301,"Bergamo","BG","016047","Calvenzano"]
["Lombardia","Camerata Cornello","Camerata Cornello (BG) ","UFFICIO D'AMBITO DI BERGAMO",301,301,"Bergamo","BG","016048","Camerata Cornello"]
["Lombardia","Canonica d'Adda","Canonica d'Adda (BG) ","UFFICIO D'AMBITO DI BERGAMO",301,301,"Bergamo","BG","016049","Canonica d'Adda"]
["Lombardia","Capizzone","Capizzone (BG) ","UFFICIO D'AMBITO DI BERGAMO",301,301,"Bergamo","BG","016050","Capizzone"]
["Lombardia","Capriate San Gervasio","Capriate San Gervasio (BG) ","UFFICIO D'AMBITO DI BERGAMO",301,301,"Bergamo","BG","016051","Capriate San Gervasio"]
["Lombardia","Caprino Bergamasco","Caprino Bergamasco (BG) ","UFFICIO D'AMBITO DI BERGAMO",301,301,"Bergamo","BG","016052","Caprino Bergamasco"]
["Lombardia","Caravaggio","Caravaggio (BG) ","UFFICIO D'AMBITO DI BERGAMO",301,301,"Bergamo","BG","016053","Caravaggio"]
["Lombardia","Carobbio degli Angeli","Carobbio degli Angeli (BG) ","UFFICIO D'AMBITO DI BERGAMO",301,301,"Bergamo","BG","016055","Carobbio degli Angeli"]
["Lombardia","Carona","Carona (BG) ","UFFICIO D'AMBITO DI BERGAMO",301,301,"Bergamo","BG","016056","Carona"]
["Lombardia","Carvico","Carvico (BG) ","UFFICIO D'AMBITO DI BERGAMO",301,301,"Bergamo","BG","016057","Carvico"]
["Lombardia","Casazza","Casazza (BG) ","UFFICIO D'AMBITO DI BERGAMO",301,301,"Bergamo","BG","016058","Casazza"]
["Lombardia","Casirate d'Adda","Casirate d'Adda (BG) ","UFFICIO D'AMBITO DI BERGAMO",301,301,"Bergamo","BG","016059","Casirate d'Adda"]
["Lombardia","Casnigo","Casnigo (BG) ","UFFICIO D'AMBITO DI BERGAMO",301,301,"Bergamo","BG","016060","Casnigo"]
["Lombardia","Cassiglio","Cassiglio (BG) ","UFFICIO D'AMBITO DI BERGAMO",301,301,"Bergamo","BG","016061","Cassiglio"]
["Lombardia","Castelli Calepio","Castelli Calepio (BG) ","UFFICIO D'AMBITO DI BERGAMO",301,301,"Bergamo","BG","016062","Castelli Calepio"]
["Lombardia","Castel Rozzone","Castel Rozzone (BG) ","UFFICIO D'AMBITO DI BERGAMO",301,301,"Bergamo","BG","016063","Castel Rozzone"]
["Lombardia","Castione della Presolana","Castione della Presolana (BG) ","UFFICIO D'AMBITO DI BERGAMO",301,301,"Bergamo","BG","016064","Castione della Presolana"]
["Lombardia","Castro","Castro (BG) ","UFFICIO D'AMBITO DI BERGAMO",301,301,"Bergamo","BG","016065","Castro"]
["Lombardia","Cavernago","Cavernago (BG) ","UFFICIO D'AMBITO DI BERGAMO",301,301,"Bergamo","BG","016066","Cavernago"]
["Lombardia","Cazzano Sant'Andrea","Cazzano Sant'Andrea (BG) ","UFFICIO D'AMBITO DI BERGAMO",301,301,"Bergamo","BG","016067","Cazzano Sant'Andrea"]
["Lombardia","Cenate Sopra","Cenate Sopra (BG) ","UFFICIO D'AMBITO DI BERGAMO",301,301,"Bergamo","BG","016068","Cenate Sopra"]
["Lombardia","Cenate Sotto","Cenate Sotto (BG) ","UFFICIO D'AMBITO DI BERGAMO",301,301,"Bergamo","BG","016069","Cenate Sotto"]
["Lombardia","Cene","Cene (BG) ","UFFICIO D'AMBITO DI BERGAMO",301,301,"Bergamo","BG","016070","Cene"]
["Lombardia","Cerete","Cerete (BG) ","UFFICIO D'AMBITO DI BERGAMO",301,301,"Bergamo","BG","016071","Cerete"]
["Lombardia","Chignolo d'Isola","Chignolo d'Isola (BG) ","UFFICIO D'AMBITO DI BERGAMO",301,301,"Bergamo","BG","016072","Chignolo d'Isola"]
["Lombardia","Chiuduno","Chiuduno (BG) ","UFFICIO D'AMBITO DI BERGAMO",301,301,"Bergamo","BG","016073","Chiuduno"]
["Lombardia","Cisano Bergamasco","Cisano Bergamasco (BG) ","UFFICIO D'AMBITO DI BERGAMO",301,301,"Bergamo","BG","016074","Cisano Bergamasco"]
["Lombardia","Ciserano","Ciserano (BG) ","UFFICIO D'AMBITO DI BERGAMO",301,301,"Bergamo","BG","016075","Ciserano"]
["Lombardia","Cividate al Piano","Cividate al Piano (BG) ","UFFICIO D'AMBITO DI BERGAMO",301,301,"Bergamo","BG","016076","Cividate al Piano"]
["Lombardia","Clusone","Clusone (BG) ","UFFICIO D'AMBITO DI BERGAMO",301,301,"Bergamo","BG","016077","Clusone"]
["Lombardia","Colere","Colere (BG) ","UFFICIO D'AMBITO DI BERGAMO",301,301,"Bergamo","BG","016078","Colere"]
["Lombardia","Cologno al Serio","Cologno al Serio (BG) ","UFFICIO D'AMBITO DI BERGAMO",301,301,"Bergamo","BG","016079","Cologno al Serio"]
["Lombardia","Colzate","Colzate (BG) ","UFFICIO D'AMBITO DI BERGAMO",301,301,"Bergamo","BG","016080","Colzate"]
["Lombardia","Comun Nuovo","Comun Nuovo (BG) ","UFFICIO D'AMBITO DI BERGAMO",301,301,"Bergamo","BG","016081","Comun Nuovo"]
["Lombardia","Corna Imagna","Corna Imagna (BG) ","UFFICIO D'AMBITO DI BERGAMO",301,301,"Bergamo","BG","016082","Corna Imagna"]
["Lombardia","Cortenuova","Cortenuova (BG) ","UFFICIO D'AMBITO DI BERGAMO",301,301,"Bergamo","BG","016083","Cortenuova"]
["Lombardia","Costa di Mezzate","Costa di Mezzate (BG) ","UFFICIO D'AMBITO DI BERGAMO",301,301,"Bergamo","BG","016084","Costa di Mezzate"]
["Lombardia","Costa Valle Imagna","Costa Valle Imagna (BG) ","UFFICIO D'AMBITO DI BERGAMO",301,301,"Bergamo","BG","016085","Costa Valle Imagna"]
["Lombardia","Costa Volpino","Costa Volpino (BG) ","UFFICIO D'AMBITO DI BERGAMO",301,301,"Bergamo","BG","016086","Costa Volpino"]
["Lombardia","Covo","Covo (BG) ","UFFICIO D'AMBITO DI BERGAMO",301,301,"Bergamo","BG","016087","Covo"]
["Lombardia","Credaro","Credaro (BG) ","UFFICIO D'AMBITO DI BERGAMO",301,301,"Bergamo","BG","016088","Credaro"]
["Lombardia","Curno","Curno (BG) ","UFFICIO D'AMBITO DI BERGAMO",301,301,"Bergamo","BG","016089","Curno"]
["Lombardia","Cusio","Cusio (BG) ","UFFICIO D'AMBITO DI BERGAMO",301,301,"Bergamo","BG","016090","Cusio"]
["Lombardia","Dalmine","Dalmine (BG) ","UFFICIO D'AMBITO DI BERGAMO",301,301,"Bergamo","BG","016091","Dalmine"]
["Lombardia","Dossena","Dossena (BG) ","UFFICIO D'AMBITO DI BERGAMO",301,301,"Bergamo","BG","016092","Dossena"]
["Lombardia","Endine Gaiano","Endine Gaiano (BG) ","UFFICIO D'AMBITO DI BERGAMO",301,301,"Bergamo","BG","016093","Endine Gaiano"]
["Lombardia","Entratico","Entratico (BG) ","UFFICIO D'AMBITO DI BERGAMO",301,301,"Bergamo","BG","016094","Entratico"]
["Lombardia","Fara Gera d'Adda","Fara Gera d'Adda (BG) ","UFFICIO D'AMBITO DI BERGAMO",301,301,"Bergamo","BG","016096","Fara Gera d'Adda"]
["Lombardia","Fara Olivana con Sola","Fara Olivana con Sola (BG) ","UFFICIO D'AMBITO DI BERGAMO",301,301,"Bergamo","BG","016097","Fara Olivana con Sola"]
["Lombardia","Filago","Filago (BG) ","UFFICIO D'AMBITO DI BERGAMO",301,301,"Bergamo","BG","016098","Filago"]
["Lombardia","Fino del Monte","Fino del Monte (BG) ","UFFICIO D'AMBITO DI BERGAMO",301,301,"Bergamo","BG","016099","Fino del Monte"]
["Lombardia","Fiorano al Serio","Fiorano al Serio (BG) ","UFFICIO D'AMBITO DI BERGAMO",301,301,"Bergamo","BG","016100","Fiorano al Serio"]
["Lombardia","Fontanella","Fontanella (BG) ","UFFICIO D'AMBITO DI BERGAMO",301,301,"Bergamo","BG","016101","Fontanella"]
["Lombardia","Fonteno","Fonteno (BG) ","UFFICIO D'AMBITO DI BERGAMO",301,301,"Bergamo","BG","016102","Fonteno"]
["Lombardia","Foppolo","Foppolo (BG) ","UFFICIO D'AMBITO DI BERGAMO",301,301,"Bergamo","BG","016103","Foppolo"]
["Lombardia","Foresto Sparso","Foresto Sparso (BG) ","UFFICIO D'AMBITO DI BERGAMO",301,301,"Bergamo","BG","016104","Foresto Sparso"]
["Lombardia","Fornovo San Giovanni","Fornovo San Giovanni (BG) ","UFFICIO D'AMBITO DI BERGAMO",301,301,"Bergamo","BG","016105","Fornovo San Giovanni"]
["Lombardia","Fuipiano Valle Imagna","Fuipiano Valle Imagna (BG) ","UFFICIO D'AMBITO DI BERGAMO",301,301,"Bergamo","BG","016106","Fuipiano Valle Imagna"]
["Lombardia","Gandellino","Gandellino (BG) ","UFFICIO D'AMBITO DI BERGAMO",301,301,"Bergamo","BG","016107","Gandellino"]
["Lombardia","Gandino","Gandino (BG) ","UFFICIO D'AMBITO DI BERGAMO",301,301,"Bergamo","BG","016108","Gandino"]
["Lombardia","Gandosso","Gandosso (BG) ","UFFICIO D'AMBITO DI BERGAMO",301,301,"Bergamo","BG","016109","Gandosso"]
["Lombardia","Gaverina Terme","Gaverina Terme (BG) ","UFFICIO D'AMBITO DI BERGAMO",301,301,"Bergamo","BG","016110","Gaverina Terme"]
["Lombardia","Gazzaniga","Gazzaniga (BG) ","UFFICIO D'AMBITO DI BERGAMO",301,301,"Bergamo","BG","016111","Gazzaniga"]
["Lombardia","Ghisalba","Ghisalba (BG) ","UFFICIO D'AMBITO DI BERGAMO",301,301,"Bergamo","BG","016113","Ghisalba"]
["Lombardia","Gorlago","Gorlago (BG) ","UFFICIO D'AMBITO DI BERGAMO",301,301,"Bergamo","BG","016114","Gorlago"]
["Lombardia","Gorle","Gorle (BG) ","UFFICIO D'AMBITO DI BERGAMO",301,301,"Bergamo","BG","016115","Gorle"]
["Lombardia","Gorno","Gorno (BG) ","UFFICIO D'AMBITO DI BERGAMO",301,301,"Bergamo","BG","016116","Gorno"]
["Lombardia","Grassobbio","Grassobbio (BG) ","UFFICIO D'AMBITO DI BERGAMO",301,301,"Bergamo","BG","016117","Grassobbio"]
["Lombardia","Gromo","Gromo (BG) ","UFFICIO D'AMBITO DI BERGAMO",301,301,"Bergamo","BG","016118","Gromo"]
["Lombardia","Grone","Grone (BG) ","UFFICIO D'AMBITO DI BERGAMO",301,301,"Bergamo","BG","016119","Grone"]
["Lombardia","Grumello del Monte","Grumello del Monte (BG) ","UFFICIO D'AMBITO DI BERGAMO",301,301,"Bergamo","BG","016120","Grumello del Monte"]
["Lombardia","Isola di Fondra","Isola di Fondra (BG) ","UFFICIO D'AMBITO DI BERGAMO",301,301,"Bergamo","BG","016121","Isola di Fondra"]
["Lombardia","Isso","Isso (BG) ","UFFICIO D'AMBITO DI BERGAMO",301,301,"Bergamo","BG","016122","Isso"]
["Lombardia","Lallio","Lallio (BG) ","UFFICIO D'AMBITO DI BERGAMO",301,301,"Bergamo","BG","016123","Lallio"]
["Lombardia","Leffe","Leffe (BG) ","UFFICIO D'AMBITO DI BERGAMO",301,301,"Bergamo","BG","016124","Leffe"]
["Lombardia","Lenna","Lenna (BG) ","UFFICIO D'AMBITO DI BERGAMO",301,301,"Bergamo","BG","016125","Lenna"]
["Lombardia","Levate","Levate (BG) ","UFFICIO D'AMBITO DI BERGAMO",301,301,"Bergamo","BG","016126","Levate"]
["Lombardia","Locatello","Locatello (BG) ","UFFICIO D'AMBITO DI BERGAMO",301,301,"Bergamo","BG","016127","Locatello"]
["Lombardia","Lovere","Lovere (BG) ","UFFICIO D'AMBITO DI BERGAMO",301,301,"Bergamo","BG","016128","Lovere"]
["Lombardia","Lurano","Lurano (BG) ","UFFICIO D'AMBITO DI BERGAMO",301,301,"Bergamo","BG","016129","Lurano"]
["Lombardia","Luzzana","Luzzana (BG) ","UFFICIO D'AMBITO DI BERGAMO",301,301,"Bergamo","BG","016130","Luzzana"]
["Lombardia","Madone","Madone (BG) ","UFFICIO D'AMBITO DI BERGAMO",301,301,"Bergamo","BG","016131","Madone"]
["Lombardia","Mapello","Mapello (BG) ","UFFICIO D'AMBITO DI BERGAMO",301,301,"Bergamo","BG","016132","Mapello"]
["Lombardia","Martinengo","Martinengo (BG) ","UFFICIO D'AMBITO DI BERGAMO",301,301,"Bergamo","BG","016133","Martinengo"]
["Lombardia","Mezzoldo","Mezzoldo (BG) ","UFFICIO D'AMBITO DI BERGAMO",301,301,"Bergamo","BG","016134","Mezzoldo"]
["Lombardia","Misano di Gera d'Adda","Misano di Gera d'Adda (BG) ","UFFICIO D'AMBITO DI BERGAMO",301,301,"Bergamo","BG","016135","Misano di Gera d'Adda"]
["Lombardia","Moio de' Calvi","Moio de' Calvi (BG) ","UFFICIO D'AMBITO DI BERGAMO",301,301,"Bergamo","BG","016136","Moio de' Calvi"]
["Lombardia","Monasterolo del Castello","Monasterolo del Castello (BG) ","UFFICIO D'AMBITO DI BERGAMO",301,301,"Bergamo","BG","016137","Monasterolo del Castello"]
["Lombardia","Montello","Montello (BG) ","UFFICIO D'AMBITO DI BERGAMO",301,301,"Bergamo","BG","016139","Montello"]
["Lombardia","Morengo","Morengo (BG) ","UFFICIO D'AMBITO DI BERGAMO",301,301,"Bergamo","BG","016140","Morengo"]
["Lombardia","Mornico al Serio","Mornico al Serio (BG) ","UFFICIO D'AMBITO DI BERGAMO",301,301,"Bergamo","BG","016141","Mornico al Serio"]
["Lombardia","Mozzanica","Mozzanica (BG) ","UFFICIO D'AMBITO DI BERGAMO",301,301,"Bergamo","BG","016142","Mozzanica"]
["Lombardia","Mozzo","Mozzo (BG) ","UFFICIO D'AMBITO DI BERGAMO",301,301,"Bergamo","BG","016143","Mozzo"]
["Lombardia","Nembro","Nembro (BG) ","UFFICIO D'AMBITO DI BERGAMO",301,301,"Bergamo","BG","016144","Nembro"]
["Lombardia","Olmo al Brembo","Olmo al Brembo (BG) ","UFFICIO D'AMBITO DI BERGAMO",301,301,"Bergamo","BG","016145","Olmo al Brembo"]
["Lombardia","Oltre il Colle","Oltre il Colle (BG) ","UFFICIO D'AMBITO DI BERGAMO",301,301,"Bergamo","BG","016146","Oltre il Colle"]
["Lombardia","Oltressenda Alta","Oltressenda Alta (BG) ","UFFICIO D'AMBITO DI BERGAMO",301,301,"Bergamo","BG","016147","Oltressenda Alta"]
["Lombardia","Oneta","Oneta (BG) ","UFFICIO D'AMBITO DI BERGAMO",301,301,"Bergamo","BG","016148","Oneta"]
["Lombardia","Onore","Onore (BG) ","UFFICIO D'AMBITO DI BERGAMO",301,301,"Bergamo","BG","016149","Onore"]
["Lombardia","Orio al Serio","Orio al Serio (BG) ","UFFICIO D'AMBITO DI BERGAMO",301,301,"Bergamo","BG","016150","Orio al Serio"]
["Lombardia","Ornica","Ornica (BG) ","UFFICIO D'AMBITO DI BERGAMO",301,301,"Bergamo","BG","016151","Ornica"]
["Lombardia","Osio Sopra","Osio Sopra (BG) ","UFFICIO D'AMBITO DI BERGAMO",301,301,"Bergamo","BG","016152","Osio Sopra"]
["Lombardia","Osio Sotto","Osio Sotto (BG) ","UFFICIO D'AMBITO DI BERGAMO",301,301,"Bergamo","BG","016153","Osio Sotto"]
["Lombardia","Pagazzano","Pagazzano (BG) ","UFFICIO D'AMBITO DI BERGAMO",301,301,"Bergamo","BG","016154","Pagazzano"]
["Lombardia","Paladina","Paladina (BG) ","UFFICIO D'AMBITO DI BERGAMO",301,301,"Bergamo","BG","016155","Paladina"]
["Lombardia","Palazzago","Palazzago (BG) ","UFFICIO D'AMBITO DI BERGAMO",301,301,"Bergamo","BG","016156","Palazzago"]
["Lombardia","Palosco","Palosco (BG) ","UFFICIO D'AMBITO DI BERGAMO",301,301,"Bergamo","BG","016157","Palosco"]
["Lombardia","Parre","Parre (BG) ","UFFICIO D'AMBITO DI BERGAMO",301,301,"Bergamo","BG","016158","Parre"]
["Lombardia","Parzanica","Parzanica (BG) ","UFFICIO D'AMBITO DI BERGAMO",301,301,"Bergamo","BG","016159","Parzanica"]
["Lombardia","Pedrengo","Pedrengo (BG) ","UFFICIO D'AMBITO DI BERGAMO",301,301,"Bergamo","BG","016160","Pedrengo"]
["Lombardia","Peia","Peia (BG) ","UFFICIO D'AMBITO DI BERGAMO",301,301,"Bergamo","BG","016161","Peia"]
["Lombardia","Pianico","Pianico (BG) ","UFFICIO D'AMBITO DI BERGAMO",301,301,"Bergamo","BG","016162","Pianico"]
["Lombardia","Piario","Piario (BG) ","UFFICIO D'AMBITO DI BERGAMO",301,301,"Bergamo","BG","016163","Piario"]
["Lombardia","Piazza Brembana","Piazza Brembana (BG) ","UFFICIO D'AMBITO DI BERGAMO",301,301,"Bergamo","BG","016164","Piazza Brembana"]
["Lombardia","Piazzatorre","Piazzatorre (BG) ","UFFICIO D'AMBITO DI BERGAMO",301,301,"Bergamo","BG","016165","Piazzatorre"]
["Lombardia","Piazzolo","Piazzolo (BG) ","UFFICIO D'AMBITO DI BERGAMO",301,301,"Bergamo","BG","016166","Piazzolo"]
["Lombardia","Pognano","Pognano (BG) ","UFFICIO D'AMBITO DI BERGAMO",301,301,"Bergamo","BG","016167","Pognano"]
["Lombardia","Ponte Nossa","Ponte Nossa (BG) ","UFFICIO D'AMBITO DI BERGAMO",301,301,"Bergamo","BG","016168","Ponte Nossa"]
["Lombardia","Ponteranica","Ponteranica (BG) ","UFFICIO D'AMBITO DI BERGAMO",301,301,"Bergamo","BG","016169","Ponteranica"]
["Lombardia","Ponte San Pietro","Ponte San Pietro (BG) ","UFFICIO D'AMBITO DI BERGAMO",301,301,"Bergamo","BG","016170","Ponte San Pietro"]
["Lombardia","Pontida","Pontida (BG) ","UFFICIO D'AMBITO DI BERGAMO",301,301,"Bergamo","BG","016171","Pontida"]
["Lombardia","Pontirolo Nuovo","Pontirolo Nuovo (BG) ","UFFICIO D'AMBITO DI BERGAMO",301,301,"Bergamo","BG","016172","Pontirolo Nuovo"]
["Lombardia","Pradalunga","Pradalunga (BG) ","UFFICIO D'AMBITO DI BERGAMO",301,301,"Bergamo","BG","016173","Pradalunga"]
["Lombardia","Predore","Predore (BG) ","UFFICIO D'AMBITO DI BERGAMO",301,301,"Bergamo","BG","016174","Predore"]
["Lombardia","Premolo","Premolo (BG) ","UFFICIO D'AMBITO DI BERGAMO",301,301,"Bergamo","BG","016175","Premolo"]
["Lombardia","Presezzo","Presezzo (BG) ","UFFICIO D'AMBITO DI BERGAMO",301,301,"Bergamo","BG","016176","Presezzo"]
["Lombardia","Pumenengo","Pumenengo (BG) ","UFFICIO D'AMBITO DI BERGAMO",301,301,"Bergamo","BG","016177","Pumenengo"]
["Lombardia","Ranica","Ranica (BG) ","UFFICIO D'AMBITO DI BERGAMO",301,301,"Bergamo","BG","016178","Ranica"]
["Lombardia","Ranzanico","Ranzanico (BG) ","UFFICIO D'AMBITO DI BERGAMO",301,301,"Bergamo","BG","016179","Ranzanico"]
["Lombardia","Riva di Solto","Riva di Solto (BG) ","UFFICIO D'AMBITO DI BERGAMO",301,301,"Bergamo","BG","016180","Riva di Solto"]
["Lombardia","Rogno","Rogno (BG) ","UFFICIO D'AMBITO DI BERGAMO",301,301,"Bergamo","BG","016182","Rogno"]
["Lombardia","Romano di Lombardia","Romano di Lombardia (BG) ","UFFICIO D'AMBITO DI BERGAMO",301,301,"Bergamo","BG","016183","Romano di Lombardia"]
["Lombardia","Roncobello","Roncobello (BG) ","UFFICIO D'AMBITO DI BERGAMO",301,301,"Bergamo","BG","016184","Roncobello"]
["Lombardia","Roncola","Roncola (BG) ","UFFICIO D'AMBITO DI BERGAMO",301,301,"Bergamo","BG","016185","Roncola"]
["Lombardia","Rota d'Imagna","Rota d'Imagna (BG) ","UFFICIO D'AMBITO DI BERGAMO",301,301,"Bergamo","BG","016186","Rota d'Imagna"]
["Lombardia","Rovetta","Rovetta (BG) ","UFFICIO D'AMBITO DI BERGAMO",301,301,"Bergamo","BG","016187","Rovetta"]
["Lombardia","San Giovanni Bianco","San Giovanni Bianco (BG) ","UFFICIO D'AMBITO DI BERGAMO",301,301,"Bergamo","BG","016188","San Giovanni Bianco"]
["Lombardia","San Paolo d'Argon","San Paolo d'Argon (BG) ","UFFICIO D'AMBITO DI BERGAMO",301,301,"Bergamo","BG","016189","San Paolo d'Argon"]
["Lombardia","San Pellegrino Terme","San Pellegrino Terme (BG) ","UFFICIO D'AMBITO DI BERGAMO",301,301,"Bergamo","BG","016190","San Pellegrino Terme"]
["Lombardia","Santa Brigida","Santa Brigida (BG) ","UFFICIO D'AMBITO DI BERGAMO",301,301,"Bergamo","BG","016191","Santa Brigida"]
["Lombardia","Sarnico","Sarnico (BG) ","UFFICIO D'AMBITO DI BERGAMO",301,301,"Bergamo","BG","016193","Sarnico"]
["Lombardia","Scanzorosciate","Scanzorosciate (BG) ","UFFICIO D'AMBITO DI BERGAMO",301,301,"Bergamo","BG","016194","Scanzorosciate"]
["Lombardia","Schilpario","Schilpario (BG) ","UFFICIO D'AMBITO DI BERGAMO",301,301,"Bergamo","BG","016195","Schilpario"]
["Lombardia","Sedrina","Sedrina (BG) ","UFFICIO D'AMBITO DI BERGAMO",301,301,"Bergamo","BG","016196","Sedrina"]
["Lombardia","Selvino","Selvino (BG) ","UFFICIO D'AMBITO DI BERGAMO",301,301,"Bergamo","BG","016197","Selvino"]
["Lombardia","Seriate","Seriate (BG) ","UFFICIO D'AMBITO DI BERGAMO",301,301,"Bergamo","BG","016198","Seriate"]
["Lombardia","Serina","Serina (BG) ","UFFICIO D'AMBITO DI BERGAMO",301,301,"Bergamo","BG","016199","Serina"]
["Lombardia","Solto Collina","Solto Collina (BG) ","UFFICIO D'AMBITO DI BERGAMO",301,301,"Bergamo","BG","016200","Solto Collina"]
["Lombardia","Songavazzo","Songavazzo (BG) ","UFFICIO D'AMBITO DI BERGAMO",301,301,"Bergamo","BG","016201","Songavazzo"]
["Lombardia","Sorisole","Sorisole (BG) ","UFFICIO D'AMBITO DI BERGAMO",301,301,"Bergamo","BG","016202","Sorisole"]
["Lombardia","Sotto il Monte Giovanni XXIII","Sotto il Monte Giovanni XXIII (BG) ","UFFICIO D'AMBITO DI BERGAMO",301,301,"Bergamo","BG","016203","Sotto il Monte Giovanni XXIII"]
["Lombardia","Sovere","Sovere (BG) ","UFFICIO D'AMBITO DI BERGAMO",301,301,"Bergamo","BG","016204","Sovere"]
["Lombardia","Spinone al Lago","Spinone al Lago (BG) ","UFFICIO D'AMBITO DI BERGAMO",301,301,"Bergamo","BG","016205","Spinone al Lago"]
["Lombardia","Spirano","Spirano (BG) ","UFFICIO D'AMBITO DI BERGAMO",301,301,"Bergamo","BG","016206","Spirano"]
["Lombardia","Stezzano","Stezzano (BG) ","UFFICIO D'AMBITO DI BERGAMO",301,301,"Bergamo","BG","016207","Stezzano"]
["Lombardia","Strozza","Strozza (BG) ","UFFICIO D'AMBITO DI BERGAMO",301,301,"Bergamo","BG","016208","Strozza"]
["Lombardia","Suisio","Suisio (BG) ","UFFICIO D'AMBITO DI BERGAMO",301,301,"Bergamo","BG","016209","Suisio"]
["Lombardia","Taleggio","Taleggio (BG) ","UFFICIO D'AMBITO DI BERGAMO",301,301,"Bergamo","BG","016210","Taleggio"]
["Lombardia","Tavernola Bergamasca","Tavernola Bergamasca (BG) ","UFFICIO D'AMBITO DI BERGAMO",301,301,"Bergamo","BG","016211","Tavernola Bergamasca"]
["Lombardia","Telgate","Telgate (BG) ","UFFICIO D'AMBITO DI BERGAMO",301,301,"Bergamo","BG","016212","Telgate"]
["Lombardia","Terno d'Isola","Terno d'Isola (BG) ","UFFICIO D'AMBITO DI BERGAMO",301,301,"Bergamo","BG","016213","Terno d'Isola"]
["Lombardia","Torre Boldone","Torre Boldone (BG) ","UFFICIO D'AMBITO DI BERGAMO",301,301,"Bergamo","BG","016214","Torre Boldone"]
["Lombardia","Torre de' Busi","Torre de' Busi (BG) ","UFFICIO D'AMBITO DI BERGAMO",301,301,"Bergamo","BG","016215","Torre de' Busi"]
["Lombardia","Torre de' Roveri","Torre de' Roveri (BG) ","UFFICIO D'AMBITO DI BERGAMO",301,301,"Bergamo","BG","016216","Torre de' Roveri"]
["Lombardia","Torre Pallavicina","Torre Pallavicina (BG) ","UFFICIO D'AMBITO DI BERGAMO",301,301,"Bergamo","BG","016217","Torre Pallavicina"]
["Lombardia","Trescore Balneario","Trescore Balneario (BG) ","UFFICIO D'AMBITO DI BERGAMO",301,301,"Bergamo","BG","016218","Trescore Balneario"]
["Lombardia","Treviglio","Treviglio (BG) ","UFFICIO D'AMBITO DI BERGAMO",301,301,"Bergamo","BG","016219","Treviglio"]
["Lombardia","Treviolo","Treviolo (BG) ","UFFICIO D'AMBITO DI BERGAMO",301,301,"Bergamo","BG","016220","Treviolo"]
["Lombardia","Ubiale Clanezzo","Ubiale Clanezzo (BG) ","UFFICIO D'AMBITO DI BERGAMO",301,301,"Bergamo","BG","016221","Ubiale Clanezzo"]
["Lombardia","Urgnano","Urgnano (BG) ","UFFICIO D'AMBITO DI BERGAMO",301,301,"Bergamo","BG","016222","Urgnano"]
["Lombardia","Valbondione","Valbondione (BG) ","UFFICIO D'AMBITO DI BERGAMO",301,301,"Bergamo","BG","016223","Valbondione"]
["Lombardia","Valbrembo","Valbrembo (BG) ","UFFICIO D'AMBITO DI BERGAMO",301,301,"Bergamo","BG","016224","Valbrembo"]
["Lombardia","Valgoglio","Valgoglio (BG) ","UFFICIO D'AMBITO DI BERGAMO",301,301,"Bergamo","BG","016225","Valgoglio"]
["Lombardia","Valleve","Valleve (BG) ","UFFICIO D'AMBITO DI BERGAMO",301,301,"Bergamo","BG","016226","Valleve"]
["Lombardia","Valnegra","Valnegra (BG) ","UFFICIO D'AMBITO DI BERGAMO",301,301,"Bergamo","BG","016227","Valnegra"]
["Lombardia","Valtorta","Valtorta (BG) ","UFFICIO D'AMBITO DI BERGAMO",301,301,"Bergamo","BG","016229","Valtorta"]
["Lombardia","Vedeseta","Vedeseta (BG) ","UFFICIO D'AMBITO DI BERGAMO",301,301,"Bergamo","BG","016230","Vedeseta"]
["Lombardia","Verdellino","Verdellino (BG) ","UFFICIO D'AMBITO DI BERGAMO",301,301,"Bergamo","BG","016232","Verdellino"]
["Lombardia","Verdello","Verdello (BG) ","UFFICIO D'AMBITO DI BERGAMO",301,301,"Bergamo","BG","016233","Verdello"]
["Lombardia","Vertova","Vertova (BG) ","UFFICIO D'AMBITO DI BERGAMO",301,301,"Bergamo","BG","016234","Vertova"]
["Lombardia","Viadanica","Viadanica (BG) ","UFFICIO D'AMBITO DI BERGAMO",301,301,"Bergamo","BG","016235","Viadanica"]
["Lombardia","Vigano San Martino","Vigano San Martino (BG) ","UFFICIO D'AMBITO DI BERGAMO",301,301,"Bergamo","BG","016236","Vigano San Martino"]
["Lombardia","Vigolo","Vigolo (BG) ","UFFICIO D'AMBITO DI BERGAMO",301,301,"Bergamo","BG","016237","Vigolo"]
["Lombardia","Villa d'Adda","Villa d'Adda (BG) ","UFFICIO D'AMBITO DI BERGAMO",301,301,"Bergamo","BG","016238","Villa d'Adda"]
["Lombardia","Villa d'Almè","Villa d'Almè (BG) ","UFFICIO D'AMBITO DI BERGAMO",301,301,"Bergamo","BG","016239","Villa d'Almè"]
["Lombardia","Villa di Serio","Villa di Serio (BG) ","UFFICIO D'AMBITO DI BERGAMO",301,301,"Bergamo","BG","016240","Villa di Serio"]
["Lombardia","Villa d'Ogna","Villa d'Ogna (BG) ","UFFICIO D'AMBITO DI BERGAMO",301,301,"Bergamo","BG","016241","Villa d'Ogna"]
["Lombardia","Villongo","Villongo (BG) ","UFFICIO D'AMBITO DI BERGAMO",301,301,"Bergamo","BG","016242","Villongo"]
["Lombardia","Vilminore di Scalve","Vilminore di Scalve (BG) ","UFFICIO D'AMBITO DI BERGAMO",301,301,"Bergamo","BG","016243","Vilminore di Scalve"]
["Lombardia","Zandobbio","Zandobbio (BG) ","UFFICIO D'AMBITO DI BERGAMO",301,301,"Bergamo","BG","016244","Zandobbio"]
["Lombardia","Zanica","Zanica (BG) ","UFFICIO D'AMBITO DI BERGAMO",301,301,"Bergamo","BG","016245","Zanica"]
["Lombardia","Zogno","Zogno (BG) ","UFFICIO D'AMBITO DI BERGAMO",301,301,"Bergamo","BG","016246","Zogno"]
["Lombardia","Costa Serina","Costa Serina (BG) ","UFFICIO D'AMBITO DI BERGAMO",301,301,"Bergamo","BG","016247","Costa Serina"]
["Lombardia","Algua","Algua (BG) ","UFFICIO D'AMBITO DI BERGAMO",301,301,"Bergamo","BG","016248","Algua"]
["Lombardia","Cornalba","Cornalba (BG) ","UFFICIO D'AMBITO DI BERGAMO",301,301,"Bergamo","BG","016249","Cornalba"]
["Lombardia","Medolago","Medolago (BG) ","UFFICIO D'AMBITO DI BERGAMO",301,301,"Bergamo","BG","016250","Medolago"]
["Lombardia","Solza","Solza (BG) ","UFFICIO D'AMBITO DI BERGAMO",301,301,"Bergamo","BG","016251","Solza"]
["Lombardia","Sant'Omobono Terme","Sant'Omobono Terme (BG) ","UFFICIO D'AMBITO DI BERGAMO",301,301,"Bergamo","BG","016252","Sant'Omobono Terme"]
["Lombardia","Val Brembilla","Val Brembilla (BG) ","UFFICIO D'AMBITO DI BERGAMO",301,301,"Bergamo","BG","016253","Val Brembilla"]
["Lombardia","Acquafredda","Acquafredda (BS) ","Ufficio d'Ambito di Brescia",302,302,"Brescia","BS","017001","Acquafredda"]
["Lombardia","Adro","Adro (BS) ","Ufficio d'Ambito di Brescia",302,302,"Brescia","BS","017002","Adro"]
["Lombardia","Agnosine","Agnosine (BS) ","Ufficio d'Ambito di Brescia",302,302,"Brescia","BS","017003","Agnosine"]
["Lombardia","Alfianello","Alfianello (BS) ","Ufficio d'Ambito di Brescia",302,302,"Brescia","BS","017004","Alfianello"]
["Lombardia","Anfo","Anfo (BS) ","Ufficio d'Ambito di Brescia",302,302,"Brescia","BS","017005","Anfo"]
["Lombardia","Angolo Terme","Angolo Terme (BS) ","Ufficio d'Ambito di Brescia",302,302,"Brescia","BS","017006","Angolo Terme"]
["Lombardia","Artogne","Artogne (BS) ","Ufficio d'Ambito di Brescia",302,302,"Brescia","BS","017007","Artogne"]
["Lombardia","Azzano Mella","Azzano Mella (BS) ","Ufficio d'Ambito di Brescia",302,302,"Brescia","BS","017008","Azzano Mella"]
["Lombardia","Bagnolo Mella","Bagnolo Mella (BS) ","Ufficio d'Ambito di Brescia",302,302,"Brescia","BS","017009","Bagnolo Mella"]
["Lombardia","Bagolino","Bagolino (BS) ","Ufficio d'Ambito di Brescia",302,302,"Brescia","BS","017010","Bagolino"]
["Lombardia","Barbariga","Barbariga (BS) ","Ufficio d'Ambito di Brescia",302,302,"Brescia","BS","017011","Barbariga"]
["Lombardia","Barghe","Barghe (BS) ","Ufficio d'Ambito di Brescia",302,302,"Brescia","BS","017012","Barghe"]
["Lombardia","Bassano Bresciano","Bassano Bresciano (BS) ","Ufficio d'Ambito di Brescia",302,302,"Brescia","BS","017013","Bassano Bresciano"]
["Lombardia","Bedizzole","Bedizzole (BS) ","Ufficio d'Ambito di Brescia",302,302,"Brescia","BS","017014","Bedizzole"]
["Lombardia","Berlingo","Berlingo (BS) ","Ufficio d'Ambito di Brescia",302,302,"Brescia","BS","017015","Berlingo"]
["Lombardia","Berzo Demo","Berzo Demo (BS) ","Ufficio d'Ambito di Brescia",302,302,"Brescia","BS","017016","Berzo Demo"]
["Lombardia","Berzo Inferiore","Berzo Inferiore (BS) ","Ufficio d'Ambito di Brescia",302,302,"Brescia","BS","017017","Berzo Inferiore"]
["Lombardia","Bienno","Bienno (BS) ","Ufficio d'Ambito di Brescia",302,302,"Brescia","BS","017018","Bienno"]
["Lombardia","Bione","Bione (BS) ","Ufficio d'Ambito di Brescia",302,302,"Brescia","BS","017019","Bione"]
["Lombardia","Borgo San Giacomo","Borgo San Giacomo (BS) ","Ufficio d'Ambito di Brescia",302,302,"Brescia","BS","017020","Borgo San Giacomo"]
["Lombardia","Borgosatollo","Borgosatollo (BS) ","Ufficio d'Ambito di Brescia",302,302,"Brescia","BS","017021","Borgosatollo"]
["Lombardia","Borno","Borno (BS) ","Ufficio d'Ambito di Brescia",302,302,"Brescia","BS","017022","Borno"]
["Lombardia","Botticino","Botticino (BS) ","Ufficio d'Ambito di Brescia",302,302,"Brescia","BS","017023","Botticino"]
["Lombardia","Bovegno","Bovegno (BS) ","Ufficio d'Ambito di Brescia",302,302,"Brescia","BS","017024","Bovegno"]
["Lombardia","Bovezzo","Bovezzo (BS) ","Ufficio d'Ambito di Brescia",302,302,"Brescia","BS","017025","Bovezzo"]
["Lombardia","Brandico","Brandico (BS) ","Ufficio d'Ambito di Brescia",302,302,"Brescia","BS","017026","Brandico"]
["Lombardia","Braone","Braone (BS) ","Ufficio d'Ambito di Brescia",302,302,"Brescia","BS","017027","Braone"]
["Lombardia","Breno","Breno (BS) ","Ufficio d'Ambito di Brescia",302,302,"Brescia","BS","017028","Breno"]
["Lombardia","Brescia","Brescia (BS) ","Ufficio d'Ambito di Brescia",302,302,"Brescia","BS","017029","Brescia"]
["Lombardia","Brione","Brione (BS) ","Ufficio d'Ambito di Brescia",302,302,"Brescia","BS","017030","Brione"]
["Lombardia","Caino","Caino (BS) ","Ufficio d'Ambito di Brescia",302,302,"Brescia","BS","017031","Caino"]
["Lombardia","Calcinato","Calcinato (BS) ","Ufficio d'Ambito di Brescia",302,302,"Brescia","BS","017032","Calcinato"]
["Lombardia","Calvagese della Riviera","Calvagese della Riviera (BS) ","Ufficio d'Ambito di Brescia",302,302,"Brescia","BS","017033","Calvagese della Riviera"]
["Lombardia","Calvisano","Calvisano (BS) ","Ufficio d'Ambito di Brescia",302,302,"Brescia","BS","017034","Calvisano"]
["Lombardia","Capo di Ponte","Capo di Ponte (BS) ","Ufficio d'Ambito di Brescia",302,302,"Brescia","BS","017035","Capo di Ponte"]
["Lombardia","Capovalle","Capovalle (BS) ","Ufficio d'Ambito di Brescia",302,302,"Brescia","BS","017036","Capovalle"]
["Lombardia","Capriano del Colle","Capriano del Colle (BS) ","Ufficio d'Ambito di Brescia",302,302,"Brescia","BS","017037","Capriano del Colle"]
["Lombardia","Capriolo","Capriolo (BS) ","Ufficio d'Ambito di Brescia",302,302,"Brescia","BS","017038","Capriolo"]
["Lombardia","Carpenedolo","Carpenedolo (BS) ","Ufficio d'Ambito di Brescia",302,302,"Brescia","BS","017039","Carpenedolo"]
["Lombardia","Castegnato","Castegnato (BS) ","Ufficio d'Ambito di Brescia",302,302,"Brescia","BS","017040","Castegnato"]
["Lombardia","Castelcovati","Castelcovati (BS) ","Ufficio d'Ambito di Brescia",302,302,"Brescia","BS","017041","Castelcovati"]
["Lombardia","Castel Mella","Castel Mella (BS) ","Ufficio d'Ambito di Brescia",302,302,"Brescia","BS","017042","Castel Mella"]
["Lombardia","Castenedolo","Castenedolo (BS) ","Ufficio d'Ambito di Brescia",302,302,"Brescia","BS","017043","Castenedolo"]
["Lombardia","Casto","Casto (BS) ","Ufficio d'Ambito di Brescia",302,302,"Brescia","BS","017044","Casto"]
["Lombardia","Castrezzato","Castrezzato (BS) ","Ufficio d'Ambito di Brescia",302,302,"Brescia","BS","017045","Castrezzato"]
["Lombardia","Cazzago San Martino","Cazzago San Martino (BS) ","Ufficio d'Ambito di Brescia",302,302,"Brescia","BS","017046","Cazzago San Martino"]
["Lombardia","Cedegolo","Cedegolo (BS) ","Ufficio d'Ambito di Brescia",302,302,"Brescia","BS","017047","Cedegolo"]
["Lombardia","Cellatica","Cellatica (BS) ","Ufficio d'Ambito di Brescia",302,302,"Brescia","BS","017048","Cellatica"]
["Lombardia","Cerveno","Cerveno (BS) ","Ufficio d'Ambito di Brescia",302,302,"Brescia","BS","017049","Cerveno"]
["Lombardia","Ceto","Ceto (BS) ","Ufficio d'Ambito di Brescia",302,302,"Brescia","BS","017050","Ceto"]
["Lombardia","Cevo","Cevo (BS) ","Ufficio d'Ambito di Brescia",302,302,"Brescia","BS","017051","Cevo"]
["Lombardia","Chiari","Chiari (BS) ","Ufficio d'Ambito di Brescia",302,302,"Brescia","BS","017052","Chiari"]
["Lombardia","Cigole","Cigole (BS) ","Ufficio d'Ambito di Brescia",302,302,"Brescia","BS","017053","Cigole"]
["Lombardia","Cimbergo","Cimbergo (BS) ","Ufficio d'Ambito di Brescia",302,302,"Brescia","BS","017054","Cimbergo"]
["Lombardia","Cividate Camuno","Cividate Camuno (BS) ","Ufficio d'Ambito di Brescia",302,302,"Brescia","BS","017055","Cividate Camuno"]
["Lombardia","Coccaglio","Coccaglio (BS) ","Ufficio d'Ambito di Brescia",302,302,"Brescia","BS","017056","Coccaglio"]
["Lombardia","Collebeato","Collebeato (BS) ","Ufficio d'Ambito di Brescia",302,302,"Brescia","BS","017057","Collebeato"]
["Lombardia","Collio","Collio (BS) ","Ufficio d'Ambito di Brescia",302,302,"Brescia","BS","017058","Collio"]
["Lombardia","Cologne","Cologne (BS) ","Ufficio d'Ambito di Brescia",302,302,"Brescia","BS","017059","Cologne"]
["Lombardia","Comezzano-Cizzago","Comezzano-Cizzago (BS) ","Ufficio d'Ambito di Brescia",302,302,"Brescia","BS","017060","Comezzano-Cizzago"]
["Lombardia","Concesio","Concesio (BS) ","Ufficio d'Ambito di Brescia",302,302,"Brescia","BS","017061","Concesio"]
["Lombardia","Corte Franca","Corte Franca (BS) ","Ufficio d'Ambito di Brescia",302,302,"Brescia","BS","017062","Corte Franca"]
["Lombardia","Corteno Golgi","Corteno Golgi (BS) ","Ufficio d'Ambito di Brescia",302,302,"Brescia","BS","017063","Corteno Golgi"]
["Lombardia","Corzano","Corzano (BS) ","Ufficio d'Ambito di Brescia",302,302,"Brescia","BS","017064","Corzano"]
["Lombardia","Darfo Boario Terme","Darfo Boario Terme (BS) ","Ufficio d'Ambito di Brescia",302,302,"Brescia","BS","017065","Darfo Boario Terme"]
["Lombardia","Dello","Dello (BS) ","Ufficio d'Ambito di Brescia",302,302,"Brescia","BS","017066","Dello"]
["Lombardia","Desenzano del Garda","Desenzano del Garda (BS) ","Ufficio d'Ambito di Brescia",302,302,"Brescia","BS","017067","Desenzano del Garda"]
["Lombardia","Edolo","Edolo (BS) ","Ufficio d'Ambito di Brescia",302,302,"Brescia","BS","017068","Edolo"]
["Lombardia","Erbusco","Erbusco (BS) ","Ufficio d'Ambito di Brescia",302,302,"Brescia","BS","017069","Erbusco"]
["Lombardia","Esine","Esine (BS) ","Ufficio d'Ambito di Brescia",302,302,"Brescia","BS","017070","Esine"]
["Lombardia","Fiesse","Fiesse (BS) ","Ufficio d'Ambito di Brescia",302,302,"Brescia","BS","017071","Fiesse"]
["Lombardia","Flero","Flero (BS) ","Ufficio d'Ambito di Brescia",302,302,"Brescia","BS","017072","Flero"]
["Lombardia","Gambara","Gambara (BS) ","Ufficio d'Ambito di Brescia",302,302,"Brescia","BS","017073","Gambara"]
["Lombardia","Gardone Riviera","Gardone Riviera (BS) ","Ufficio d'Ambito di Brescia",302,302,"Brescia","BS","017074","Gardone Riviera"]
["Lombardia","Gardone Val Trompia","Gardone Val Trompia (BS) ","Ufficio d'Ambito di Brescia",302,302,"Brescia","BS","017075","Gardone Val Trompia"]
["Lombardia","Gargnano","Gargnano (BS) ","Ufficio d'Ambito di Brescia",302,302,"Brescia","BS","017076","Gargnano"]
["Lombardia","Gavardo","Gavardo (BS) ","Ufficio d'Ambito di Brescia",302,302,"Brescia","BS","017077","Gavardo"]
["Lombardia","Ghedi","Ghedi (BS) ","Ufficio d'Ambito di Brescia",302,302,"Brescia","BS","017078","Ghedi"]
["Lombardia","Gianico","Gianico (BS) ","Ufficio d'Ambito di Brescia",302,302,"Brescia","BS","017079","Gianico"]
["Lombardia","Gottolengo","Gottolengo (BS) ","Ufficio d'Ambito di Brescia",302,302,"Brescia","BS","017080","Gottolengo"]
["Lombardia","Gussago","Gussago (BS) ","Ufficio d'Ambito di Brescia",302,302,"Brescia","BS","017081","Gussago"]
["Lombardia","Idro","Idro (BS) ","Ufficio d'Ambito di Brescia",302,302,"Brescia","BS","017082","Idro"]
["Lombardia","Incudine","Incudine (BS) ","Ufficio d'Ambito di Brescia",302,302,"Brescia","BS","017083","Incudine"]
["Lombardia","Irma","Irma (BS) ","Ufficio d'Ambito di Brescia",302,302,"Brescia","BS","017084","Irma"]
["Lombardia","Iseo","Iseo (BS) ","Ufficio d'Ambito di Brescia",302,302,"Brescia","BS","017085","Iseo"]
["Lombardia","Isorella","Isorella (BS) ","Ufficio d'Ambito di Brescia",302,302,"Brescia","BS","017086","Isorella"]
["Lombardia","Lavenone","Lavenone (BS) ","Ufficio d'Ambito di Brescia",302,302,"Brescia","BS","017087","Lavenone"]
["Lombardia","Leno","Leno (BS) ","Ufficio d'Ambito di Brescia",302,302,"Brescia","BS","017088","Leno"]
["Lombardia","Limone sul Garda","Limone sul Garda (BS) ","Ufficio d'Ambito di Brescia",302,302,"Brescia","BS","017089","Limone sul Garda"]
["Lombardia","Lodrino","Lodrino (BS) ","Ufficio d'Ambito di Brescia",302,302,"Brescia","BS","017090","Lodrino"]
["Lombardia","Lograto","Lograto (BS) ","Ufficio d'Ambito di Brescia",302,302,"Brescia","BS","017091","Lograto"]
["Lombardia","Lonato del Garda","Lonato del Garda (BS) ","Ufficio d'Ambito di Brescia",302,302,"Brescia","BS","017092","Lonato del Garda"]
["Lombardia","Longhena","Longhena (BS) ","Ufficio d'Ambito di Brescia",302,302,"Brescia","BS","017093","Longhena"]
["Lombardia","Losine","Losine (BS) ","Ufficio d'Ambito di Brescia",302,302,"Brescia","BS","017094","Losine"]
["Lombardia","Lozio","Lozio (BS) ","Ufficio d'Ambito di Brescia",302,302,"Brescia","BS","017095","Lozio"]
["Lombardia","Lumezzane","Lumezzane (BS) ","Ufficio d'Ambito di Brescia",302,302,"Brescia","BS","017096","Lumezzane"]
["Lombardia","Maclodio","Maclodio (BS) ","Ufficio d'Ambito di Brescia",302,302,"Brescia","BS","017097","Maclodio"]
["Lombardia","Magasa","Magasa (BS) ","Ufficio d'Ambito di Brescia",302,302,"Brescia","BS","017098","Magasa"]
["Lombardia","Mairano","Mairano (BS) ","Ufficio d'Ambito di Brescia",302,302,"Brescia","BS","017099","Mairano"]
["Lombardia","Malegno","Malegno (BS) ","Ufficio d'Ambito di Brescia",302,302,"Brescia","BS","017100","Malegno"]
["Lombardia","Malonno","Malonno (BS) ","Ufficio d'Ambito di Brescia",302,302,"Brescia","BS","017101","Malonno"]
["Lombardia","Manerba del Garda","Manerba del Garda (BS) ","Ufficio d'Ambito di Brescia",302,302,"Brescia","BS","017102","Manerba del Garda"]
["Lombardia","Manerbio","Manerbio (BS) ","Ufficio d'Ambito di Brescia",302,302,"Brescia","BS","017103","Manerbio"]
["Lombardia","Marcheno","Marcheno (BS) ","Ufficio d'Ambito di Brescia",302,302,"Brescia","BS","017104","Marcheno"]
["Lombardia","Marmentino","Marmentino (BS) ","Ufficio d'Ambito di Brescia",302,302,"Brescia","BS","017105","Marmentino"]
["Lombardia","Marone","Marone (BS) ","Ufficio d'Ambito di Brescia",302,302,"Brescia","BS","017106","Marone"]
["Lombardia","Mazzano","Mazzano (BS) ","Ufficio d'Ambito di Brescia",302,302,"Brescia","BS","017107","Mazzano"]
["Lombardia","Milzano","Milzano (BS) ","Ufficio d'Ambito di Brescia",302,302,"Brescia","BS","017108","Milzano"]
["Lombardia","Moniga del Garda","Moniga del Garda (BS) ","Ufficio d'Ambito di Brescia",302,302,"Brescia","BS","017109","Moniga del Garda"]
["Lombardia","Monno","Monno (BS) ","Ufficio d'Ambito di Brescia",302,302,"Brescia","BS","017110","Monno"]
["Lombardia","Monte Isola","Monte Isola (BS) ","Ufficio d'Ambito di Brescia",302,302,"Brescia","BS","017111","Monte Isola"]
["Lombardia","Monticelli Brusati","Monticelli Brusati (BS) ","Ufficio d'Ambito di Brescia",302,302,"Brescia","BS","017112","Monticelli Brusati"]
["Lombardia","Montichiari","Montichiari (BS) ","Ufficio d'Ambito di Brescia",302,302,"Brescia","BS","017113","Montichiari"]
["Lombardia","Montirone","Montirone (BS) ","Ufficio d'Ambito di Brescia",302,302,"Brescia","BS","017114","Montirone"]
["Lombardia","Mura","Mura (BS) ","Ufficio d'Ambito di Brescia",302,302,"Brescia","BS","017115","Mura"]
["Lombardia","Muscoline","Muscoline (BS) ","Ufficio d'Ambito di Brescia",302,302,"Brescia","BS","017116","Muscoline"]
["Lombardia","Nave","Nave (BS) ","Ufficio d'Ambito di Brescia",302,302,"Brescia","BS","017117","Nave"]
["Lombardia","Niardo","Niardo (BS) ","Ufficio d'Ambito di Brescia",302,302,"Brescia","BS","017118","Niardo"]
["Lombardia","Nuvolento","Nuvolento (BS) ","Ufficio d'Ambito di Brescia",302,302,"Brescia","BS","017119","Nuvolento"]
["Lombardia","Nuvolera","Nuvolera (BS) ","Ufficio d'Ambito di Brescia",302,302,"Brescia","BS","017120","Nuvolera"]
["Lombardia","Odolo","Odolo (BS) ","Ufficio d'Ambito di Brescia",302,302,"Brescia","BS","017121","Odolo"]
["Lombardia","Offlaga","Offlaga (BS) ","Ufficio d'Ambito di Brescia",302,302,"Brescia","BS","017122","Offlaga"]
["Lombardia","Ome","Ome (BS) ","Ufficio d'Ambito di Brescia",302,302,"Brescia","BS","017123","Ome"]
["Lombardia","Ono San Pietro","Ono San Pietro (BS) ","Ufficio d'Ambito di Brescia",302,302,"Brescia","BS","017124","Ono San Pietro"]
["Lombardia","Orzinuovi","Orzinuovi (BS) ","Ufficio d'Ambito di Brescia",302,302,"Brescia","BS","017125","Orzinuovi"]
["Lombardia","Orzivecchi","Orzivecchi (BS) ","Ufficio d'Ambito di Brescia",302,302,"Brescia","BS","017126","Orzivecchi"]
["Lombardia","Ospitaletto","Ospitaletto (BS) ","Ufficio d'Ambito di Brescia",302,302,"Brescia","BS","017127","Ospitaletto"]
["Lombardia","Ossimo","Ossimo (BS) ","Ufficio d'Ambito di Brescia",302,302,"Brescia","BS","017128","Ossimo"]
["Lombardia","Padenghe sul Garda","Padenghe sul Garda (BS) ","Ufficio d'Ambito di Brescia",302,302,"Brescia","BS","017129","Padenghe sul Garda"]
["Lombardia","Paderno Franciacorta","Paderno Franciacorta (BS) ","Ufficio d'Ambito di Brescia",302,302,"Brescia","BS","017130","Paderno Franciacorta"]
["Lombardia","Paisco Loveno","Paisco Loveno (BS) ","Ufficio d'Ambito di Brescia",302,302,"Brescia","BS","017131","Paisco Loveno"]
["Lombardia","Paitone","Paitone (BS) ","Ufficio d'Ambito di Brescia",302,302,"Brescia","BS","017132","Paitone"]
["Lombardia","Palazzolo sull'Oglio","Palazzolo sull'Oglio (BS) ","Ufficio d'Ambito di Brescia",302,302,"Brescia","BS","017133","Palazzolo sull'Oglio"]
["Lombardia","Paratico","Paratico (BS) ","Ufficio d'Ambito di Brescia",302,302,"Brescia","BS","017134","Paratico"]
["Lombardia","Paspardo","Paspardo (BS) ","Ufficio d'Ambito di Brescia",302,302,"Brescia","BS","017135","Paspardo"]
["Lombardia","Passirano","Passirano (BS) ","Ufficio d'Ambito di Brescia",302,302,"Brescia","BS","017136","Passirano"]
["Lombardia","Pavone del Mella","Pavone del Mella (BS) ","Ufficio d'Ambito di Brescia",302,302,"Brescia","BS","017137","Pavone del Mella"]
["Lombardia","San Paolo","San Paolo (BS) ","Ufficio d'Ambito di Brescia",302,302,"Brescia","BS","017138","San Paolo"]
["Lombardia","Pertica Alta","Pertica Alta (BS) ","Ufficio d'Ambito di Brescia",302,302,"Brescia","BS","017139","Pertica Alta"]
["Lombardia","Pertica Bassa","Pertica Bassa (BS) ","Ufficio d'Ambito di Brescia",302,302,"Brescia","BS","017140","Pertica Bassa"]
["Lombardia","Pezzaze","Pezzaze (BS) ","Ufficio d'Ambito di Brescia",302,302,"Brescia","BS","017141","Pezzaze"]
["Lombardia","Pian Camuno","Pian Camuno (BS) ","Ufficio d'Ambito di Brescia",302,302,"Brescia","BS","017142","Pian Camuno"]
["Lombardia","Pisogne","Pisogne (BS) ","Ufficio d'Ambito di Brescia",302,302,"Brescia","BS","017143","Pisogne"]
["Lombardia","Polaveno","Polaveno (BS) ","Ufficio d'Ambito di Brescia",302,302,"Brescia","BS","017144","Polaveno"]
["Lombardia","Polpenazze del Garda","Polpenazze del Garda (BS) ","Ufficio d'Ambito di Brescia",302,302,"Brescia","BS","017145","Polpenazze del Garda"]
["Lombardia","Pompiano","Pompiano (BS) ","Ufficio d'Ambito di Brescia",302,302,"Brescia","BS","017146","Pompiano"]
["Lombardia","Poncarale","Poncarale (BS) ","Ufficio d'Ambito di Brescia",302,302,"Brescia","BS","017147","Poncarale"]
["Lombardia","Ponte di Legno","Ponte di Legno (BS) ","Ufficio d'Ambito di Brescia",302,302,"Brescia","BS","017148","Ponte di Legno"]
["Lombardia","Pontevico","Pontevico (BS) ","Ufficio d'Ambito di Brescia",302,302,"Brescia","BS","017149","Pontevico"]
["Lombardia","Pontoglio","Pontoglio (BS) ","Ufficio d'Ambito di Brescia",302,302,"Brescia","BS","017150","Pontoglio"]
["Lombardia","Pozzolengo","Pozzolengo (BS) ","Ufficio d'Ambito di Brescia",302,302,"Brescia","BS","017151","Pozzolengo"]
["Lombardia","Pralboino","Pralboino (BS) ","Ufficio d'Ambito di Brescia",302,302,"Brescia","BS","017152","Pralboino"]
["Lombardia","Preseglie","Preseglie (BS) ","Ufficio d'Ambito di Brescia",302,302,"Brescia","BS","017153","Preseglie"]
["Lombardia","Prevalle","Prevalle (BS) ","Ufficio d'Ambito di Brescia",302,302,"Brescia","BS","017155","Prevalle"]
["Lombardia","Provaglio d'Iseo","Provaglio d'Iseo (BS) ","Ufficio d'Ambito di Brescia",302,302,"Brescia","BS","017156","Provaglio d'Iseo"]
["Lombardia","Provaglio Val Sabbia","Provaglio Val Sabbia (BS) ","Ufficio d'Ambito di Brescia",302,302,"Brescia","BS","017157","Provaglio Val Sabbia"]
["Lombardia","Puegnago del Garda","Puegnago del Garda (BS) ","Ufficio d'Ambito di Brescia",302,302,"Brescia","BS","017158","Puegnago del Garda"]
["Lombardia","Quinzano d'Oglio","Quinzano d'Oglio (BS) ","Ufficio d'Ambito di Brescia",302,302,"Brescia","BS","017159","Quinzano d'Oglio"]
["Lombardia","Remedello","Remedello (BS) ","Ufficio d'Ambito di Brescia",302,302,"Brescia","BS","017160","Remedello"]
["Lombardia","Rezzato","Rezzato (BS) ","Ufficio d'Ambito di Brescia",302,302,"Brescia","BS","017161","Rezzato"]
["Lombardia","Roccafranca","Roccafranca (BS) ","Ufficio d'Ambito di Brescia",302,302,"Brescia","BS","017162","Roccafranca"]
["Lombardia","Rodengo Saiano","Rodengo Saiano (BS) ","Ufficio d'Ambito di Brescia",302,302,"Brescia","BS","017163","Rodengo Saiano"]
["Lombardia","Roè Volciano","Roè Volciano (BS) ","Ufficio d'Ambito di Brescia",302,302,"Brescia","BS","017164","Roè Volciano"]
["Lombardia","Roncadelle","Roncadelle (BS) ","Ufficio d'Ambito di Brescia",302,302,"Brescia","BS","017165","Roncadelle"]
["Lombardia","Rovato","Rovato (BS) ","Ufficio d'Ambito di Brescia",302,302,"Brescia","BS","017166","Rovato"]
["Lombardia","Rudiano","Rudiano (BS) ","Ufficio d'Ambito di Brescia",302,302,"Brescia","BS","017167","Rudiano"]
["Lombardia","Sabbio Chiese","Sabbio Chiese (BS) ","Ufficio d'Ambito di Brescia",302,302,"Brescia","BS","017168","Sabbio Chiese"]
["Lombardia","Sale Marasino","Sale Marasino (BS) ","Ufficio d'Ambito di Brescia",302,302,"Brescia","BS","017169","Sale Marasino"]
["Lombardia","Salò","Salò (BS) ","Ufficio d'Ambito di Brescia",302,302,"Brescia","BS","017170","Salò"]
["Lombardia","San Felice del Benaco","San Felice del Benaco (BS) ","Ufficio d'Ambito di Brescia",302,302,"Brescia","BS","017171","San Felice del Benaco"]
["Lombardia","San Gervasio Bresciano","San Gervasio Bresciano (BS) ","Ufficio d'Ambito di Brescia",302,302,"Brescia","BS","017172","San Gervasio Bresciano"]
["Lombardia","San Zeno Naviglio","San Zeno Naviglio (BS) ","Ufficio d'Ambito di Brescia",302,302,"Brescia","BS","017173","San Zeno Naviglio"]
["Lombardia","Sarezzo","Sarezzo (BS) ","Ufficio d'Ambito di Brescia",302,302,"Brescia","BS","017174","Sarezzo"]
["Lombardia","Saviore dell'Adamello","Saviore dell'Adamello (BS) ","Ufficio d'Ambito di Brescia",302,302,"Brescia","BS","017175","Saviore dell'Adamello"]
["Lombardia","Sellero","Sellero (BS) ","Ufficio d'Ambito di Brescia",302,302,"Brescia","BS","017176","Sellero"]
["Lombardia","Seniga","Seniga (BS) ","Ufficio d'Ambito di Brescia",302,302,"Brescia","BS","017177","Seniga"]
["Lombardia","Serle","Serle (BS) ","Ufficio d'Ambito di Brescia",302,302,"Brescia","BS","017178","Serle"]
["Lombardia","Sirmione","Sirmione (BS) ","Ufficio d'Ambito di Brescia",302,302,"Brescia","BS","017179","Sirmione"]
["Lombardia","Soiano del Lago","Soiano del Lago (BS) ","Ufficio d'Ambito di Brescia",302,302,"Brescia","BS","017180","Soiano del Lago"]
["Lombardia","Sonico","Sonico (BS) ","Ufficio d'Ambito di Brescia",302,302,"Brescia","BS","017181","Sonico"]
["Lombardia","Sulzano","Sulzano (BS) ","Ufficio d'Ambito di Brescia",302,302,"Brescia","BS","017182","Sulzano"]
["Lombardia","Tavernole sul Mella","Tavernole sul Mella (BS) ","Ufficio d'Ambito di Brescia",302,302,"Brescia","BS","017183","Tavernole sul Mella"]
["Lombardia","Temù","Temù (BS) ","Ufficio d'Ambito di Brescia",302,302,"Brescia","BS","017184","Temù"]
["Lombardia","Tignale","Tignale (BS) ","Ufficio d'Ambito di Brescia",302,302,"Brescia","BS","017185","Tignale"]
["Lombardia","Torbole Casaglia","Torbole Casaglia (BS) ","Ufficio d'Ambito di Brescia",302,302,"Brescia","BS","017186","Torbole Casaglia"]
["Lombardia","Toscolano-Maderno","Toscolano-Maderno (BS) ","Ufficio d'Ambito di Brescia",302,302,"Brescia","BS","017187","Toscolano-Maderno"]
["Lombardia","Travagliato","Travagliato (BS) ","Ufficio d'Ambito di Brescia",302,302,"Brescia","BS","017188","Travagliato"]
["Lombardia","Tremosine sul Garda","Tremosine sul Garda (BS) ","Ufficio d'Ambito di Brescia",302,302,"Brescia","BS","017189","Tremosine sul Garda"]
["Lombardia","Trenzano","Trenzano (BS) ","Ufficio d'Ambito di Brescia",302,302,"Brescia","BS","017190","Trenzano"]
["Lombardia","Treviso Bresciano","Treviso Bresciano (BS) ","Ufficio d'Ambito di Brescia",302,302,"Brescia","BS","017191","Treviso Bresciano"]
["Lombardia","Urago d'Oglio","Urago d'Oglio (BS) ","Ufficio d'Ambito di Brescia",302,302,"Brescia","BS","017192","Urago d'Oglio"]
["Lombardia","Vallio Terme","Vallio Terme (BS) ","Ufficio d'Ambito di Brescia",302,302,"Brescia","BS","017193","Vallio Terme"]
["Lombardia","Valvestino","Valvestino (BS) ","Ufficio d'Ambito di Brescia",302,302,"Brescia","BS","017194","Valvestino"]
["Lombardia","Verolanuova","Verolanuova (BS) ","Ufficio d'Ambito di Brescia",302,302,"Brescia","BS","017195","Verolanuova"]
["Lombardia","Verolavecchia","Verolavecchia (BS) ","Ufficio d'Ambito di Brescia",302,302,"Brescia","BS","017196","Verolavecchia"]
["Lombardia","Vestone","Vestone (BS) ","Ufficio d'Ambito di Brescia",302,302,"Brescia","BS","017197","Vestone"]
["Lombardia","Vezza d'Oglio","Vezza d'Oglio (BS) ","Ufficio d'Ambito di Brescia",302,302,"Brescia","BS","017198","Vezza d'Oglio"]
["Lombardia","Villa Carcina","Villa Carcina (BS) ","Ufficio d'Ambito di Brescia",302,302,"Brescia","BS","017199","Villa Carcina"]
["Lombardia","Villachiara","Villachiara (BS) ","Ufficio d'Ambito di Brescia",302,302,"Brescia","BS","017200","Villachiara"]
["Lombardia","Villanuova sul Clisi","Villanuova sul Clisi (BS) ","Ufficio d'Ambito di Brescia",302,302,"Brescia","BS","017201","Villanuova sul Clisi"]
["Lombardia","Vione","Vione (BS) ","Ufficio d'Ambito di Brescia",302,302,"Brescia","BS","017202","Vione"]
["Lombardia","Visano","Visano (BS) ","Ufficio d'Ambito di Brescia",302,302,"Brescia","BS","017203","Visano"]
["Lombardia","Vobarno","Vobarno (BS) ","Ufficio d'Ambito di Brescia",302,302,"Brescia","BS","017204","Vobarno"]
["Lombardia","Zone","Zone (BS) ","Ufficio d'Ambito di Brescia",302,302,"Brescia","BS","017205","Zone"]
["Lombardia","Piancogno","Piancogno (BS) ","Ufficio d'Ambito di Brescia",302,302,"Brescia","BS","017206","Piancogno"]
["Lombardia","Alagna","Alagna (PV) ","Azienda Speciale \"Ufficio d'Ambito Territoriale Ottimale della Provincia di Pavia\"",310,310,"Pavia","PV","018001","Alagna"]
["Lombardia","Albonese","Albonese (PV) ","Azienda Speciale \"Ufficio d'Ambito Territoriale Ottimale della Provincia di Pavia\"",310,310,"Pavia","PV","018003","Albonese"]
["Lombardia","Albuzzano","Albuzzano (PV) ","Azienda Speciale \"Ufficio d'Ambito Territoriale Ottimale della Provincia di Pavia\"",310,310,"Pavia","PV","018004","Albuzzano"]
["Lombardia","Arena Po","Arena Po (PV) ","Azienda Speciale \"Ufficio d'Ambito Territoriale Ottimale della Provincia di Pavia\"",310,310,"Pavia","PV","018005","Arena Po"]
["Lombardia","Badia Pavese","Badia Pavese (PV) ","Azienda Speciale \"Ufficio d'Ambito Territoriale Ottimale della Provincia di Pavia\"",310,310,"Pavia","PV","018006","Badia Pavese"]
["Lombardia","Bagnaria","Bagnaria (PV) ","Azienda Speciale \"Ufficio d'Ambito Territoriale Ottimale della Provincia di Pavia\"",310,310,"Pavia","PV","018007","Bagnaria"]
["Lombardia","Barbianello","Barbianello (PV) ","Azienda Speciale \"Ufficio d'Ambito Territoriale Ottimale della Provincia di Pavia\"",310,310,"Pavia","PV","018008","Barbianello"]
["Lombardia","Bascapè","Bascapè (PV) ","Azienda Speciale \"Ufficio d'Ambito Territoriale Ottimale della Provincia di Pavia\"",310,310,"Pavia","PV","018009","Bascapè"]
["Lombardia","Bastida Pancarana","Bastida Pancarana (PV) ","Azienda Speciale \"Ufficio d'Ambito Territoriale Ottimale della Provincia di Pavia\"",310,310,"Pavia","PV","018011","Bastida Pancarana"]
["Lombardia","Battuda","Battuda (PV) ","Azienda Speciale \"Ufficio d'Ambito Territoriale Ottimale della Provincia di Pavia\"",310,310,"Pavia","PV","018012","Battuda"]
["Lombardia","Belgioioso","Belgioioso (PV) ","Azienda Speciale \"Ufficio d'Ambito Territoriale Ottimale della Provincia di Pavia\"",310,310,"Pavia","PV","018013","Belgioioso"]
["Lombardia","Bereguardo","Bereguardo (PV) ","Azienda Speciale \"Ufficio d'Ambito Territoriale Ottimale della Provincia di Pavia\"",310,310,"Pavia","PV","018014","Bereguardo"]
["Lombardia","Borgarello","Borgarello (PV) ","Azienda Speciale \"Ufficio d'Ambito Territoriale Ottimale della Provincia di Pavia\"",310,310,"Pavia","PV","018015","Borgarello"]
["Lombardia","Borgo Priolo","Borgo Priolo (PV) ","Azienda Speciale \"Ufficio d'Ambito Territoriale Ottimale della Provincia di Pavia\"",310,310,"Pavia","PV","018016","Borgo Priolo"]
["Lombardia","Borgoratto Mormorolo","Borgoratto Mormorolo (PV) ","Azienda Speciale \"Ufficio d'Ambito Territoriale Ottimale della Provincia di Pavia\"",310,310,"Pavia","PV","018017","Borgoratto Mormorolo"]
["Lombardia","Borgo San Siro","Borgo San Siro (PV) ","Azienda Speciale \"Ufficio d'Ambito Territoriale Ottimale della Provincia di Pavia\"",310,310,"Pavia","PV","018018","Borgo San Siro"]
["Lombardia","Bornasco","Bornasco (PV) ","Azienda Speciale \"Ufficio d'Ambito Territoriale Ottimale della Provincia di Pavia\"",310,310,"Pavia","PV","018019","Bornasco"]
["Lombardia","Bosnasco","Bosnasco (PV) ","Azienda Speciale \"Ufficio d'Ambito Territoriale Ottimale della Provincia di Pavia\"",310,310,"Pavia","PV","018020","Bosnasco"]
["Lombardia","Brallo di Pregola","Brallo di Pregola (PV) ","Azienda Speciale \"Ufficio d'Ambito Territoriale Ottimale della Provincia di Pavia\"",310,310,"Pavia","PV","018021","Brallo di Pregola"]
["Lombardia","Breme","Breme (PV) ","Azienda Speciale \"Ufficio d'Ambito Territoriale Ottimale della Provincia di Pavia\"",310,310,"Pavia","PV","018022","Breme"]
["Lombardia","Bressana Bottarone","Bressana Bottarone (PV) ","Azienda Speciale \"Ufficio d'Ambito Territoriale Ottimale della Provincia di Pavia\"",310,310,"Pavia","PV","018023","Bressana Bottarone"]
["Lombardia","Broni","Broni (PV) ","Azienda Speciale \"Ufficio d'Ambito Territoriale Ottimale della Provincia di Pavia\"",310,310,"Pavia","PV","018024","Broni"]
["Lombardia","Calvignano","Calvignano (PV) ","Azienda Speciale \"Ufficio d'Ambito Territoriale Ottimale della Provincia di Pavia\"",310,310,"Pavia","PV","018025","Calvignano"]
["Lombardia","Campospinoso Albaredo","Campospinoso Albaredo (PV) ","Azienda Speciale \"Ufficio d'Ambito Territoriale Ottimale della Provincia di Pavia\"",310,310,"Pavia","PV","018026","Campospinoso Albaredo"]
["Lombardia","Candia Lomellina","Candia Lomellina (PV) ","Azienda Speciale \"Ufficio d'Ambito Territoriale Ottimale della Provincia di Pavia\"",310,310,"Pavia","PV","018027","Candia Lomellina"]
["Lombardia","Canneto Pavese","Canneto Pavese (PV) ","Azienda Speciale \"Ufficio d'Ambito Territoriale Ottimale della Provincia di Pavia\"",310,310,"Pavia","PV","018029","Canneto Pavese"]
["Lombardia","Carbonara al Ticino","Carbonara al Ticino (PV) ","Azienda Speciale \"Ufficio d'Ambito Territoriale Ottimale della Provincia di Pavia\"",310,310,"Pavia","PV","018030","Carbonara al Ticino"]
["Lombardia","Casanova Lonati","Casanova Lonati (PV) ","Azienda Speciale \"Ufficio d'Ambito Territoriale Ottimale della Provincia di Pavia\"",310,310,"Pavia","PV","018031","Casanova Lonati"]
["Lombardia","Casatisma","Casatisma (PV) ","Azienda Speciale \"Ufficio d'Ambito Territoriale Ottimale della Provincia di Pavia\"",310,310,"Pavia","PV","018032","Casatisma"]
["Lombardia","Casei Gerola","Casei Gerola (PV) ","Azienda Speciale \"Ufficio d'Ambito Territoriale Ottimale della Provincia di Pavia\"",310,310,"Pavia","PV","018033","Casei Gerola"]
["Lombardia","Casorate Primo","Casorate Primo (PV) ","Azienda Speciale \"Ufficio d'Ambito Territoriale Ottimale della Provincia di Pavia\"",310,310,"Pavia","PV","018034","Casorate Primo"]
["Lombardia","Cassolnovo","Cassolnovo (PV) ","Azienda Speciale \"Ufficio d'Ambito Territoriale Ottimale della Provincia di Pavia\"",310,310,"Pavia","PV","018035","Cassolnovo"]
["Lombardia","Castana","Castana (PV) ","Azienda Speciale \"Ufficio d'Ambito Territoriale Ottimale della Provincia di Pavia\"",310,310,"Pavia","PV","018036","Castana"]
["Lombardia","Casteggio","Casteggio (PV) ","Azienda Speciale \"Ufficio d'Ambito Territoriale Ottimale della Provincia di Pavia\"",310,310,"Pavia","PV","018037","Casteggio"]
["Lombardia","Castelletto di Branduzzo","Castelletto di Branduzzo (PV) ","Azienda Speciale \"Ufficio d'Ambito Territoriale Ottimale della Provincia di Pavia\"",310,310,"Pavia","PV","018038","Castelletto di Branduzzo"]
["Lombardia","Castello d'Agogna","Castello d'Agogna (PV) ","Azienda Speciale \"Ufficio d'Ambito Territoriale Ottimale della Provincia di Pavia\"",310,310,"Pavia","PV","018039","Castello d'Agogna"]
["Lombardia","Castelnovetto","Castelnovetto (PV) ","Azienda Speciale \"Ufficio d'Ambito Territoriale Ottimale della Provincia di Pavia\"",310,310,"Pavia","PV","018040","Castelnovetto"]
["Lombardia","Cava Manara","Cava Manara (PV) ","Azienda Speciale \"Ufficio d'Ambito Territoriale Ottimale della Provincia di Pavia\"",310,310,"Pavia","PV","018041","Cava Manara"]
["Lombardia","Cecima","Cecima (PV) ","Azienda Speciale \"Ufficio d'Ambito Territoriale Ottimale della Provincia di Pavia\"",310,310,"Pavia","PV","018042","Cecima"]
["Lombardia","Ceranova","Ceranova (PV) ","Azienda Speciale \"Ufficio d'Ambito Territoriale Ottimale della Provincia di Pavia\"",310,310,"Pavia","PV","018043","Ceranova"]
["Lombardia","Ceretto Lomellina","Ceretto Lomellina (PV) ","Azienda Speciale \"Ufficio d'Ambito Territoriale Ottimale della Provincia di Pavia\"",310,310,"Pavia","PV","018044","Ceretto Lomellina"]
["Lombardia","Cergnago","Cergnago (PV) ","Azienda Speciale \"Ufficio d'Ambito Territoriale Ottimale della Provincia di Pavia\"",310,310,"Pavia","PV","018045","Cergnago"]
["Lombardia","Certosa di Pavia","Certosa di Pavia (PV) ","Azienda Speciale \"Ufficio d'Ambito Territoriale Ottimale della Provincia di Pavia\"",310,310,"Pavia","PV","018046","Certosa di Pavia"]
["Lombardia","Cervesina","Cervesina (PV) ","Azienda Speciale \"Ufficio d'Ambito Territoriale Ottimale della Provincia di Pavia\"",310,310,"Pavia","PV","018047","Cervesina"]
["Lombardia","Chignolo Po","Chignolo Po (PV) ","Azienda Speciale \"Ufficio d'Ambito Territoriale Ottimale della Provincia di Pavia\"",310,310,"Pavia","PV","018048","Chignolo Po"]
["Lombardia","Cigognola","Cigognola (PV) ","Azienda Speciale \"Ufficio d'Ambito Territoriale Ottimale della Provincia di Pavia\"",310,310,"Pavia","PV","018049","Cigognola"]
["Lombardia","Cilavegna","Cilavegna (PV) ","Azienda Speciale \"Ufficio d'Ambito Territoriale Ottimale della Provincia di Pavia\"",310,310,"Pavia","PV","018050","Cilavegna"]
["Lombardia","Codevilla","Codevilla (PV) ","Azienda Speciale \"Ufficio d'Ambito Territoriale Ottimale della Provincia di Pavia\"",310,310,"Pavia","PV","018051","Codevilla"]
["Lombardia","Confienza","Confienza (PV) ","Azienda Speciale \"Ufficio d'Ambito Territoriale Ottimale della Provincia di Pavia\"",310,310,"Pavia","PV","018052","Confienza"]
["Lombardia","Copiano","Copiano (PV) ","Azienda Speciale \"Ufficio d'Ambito Territoriale Ottimale della Provincia di Pavia\"",310,310,"Pavia","PV","018053","Copiano"]
["Lombardia","Corana","Corana (PV) ","Azienda Speciale \"Ufficio d'Ambito Territoriale Ottimale della Provincia di Pavia\"",310,310,"Pavia","PV","018054","Corana"]
["Lombardia","Corvino San Quirico","Corvino San Quirico (PV) ","Azienda Speciale \"Ufficio d'Ambito Territoriale Ottimale della Provincia di Pavia\"",310,310,"Pavia","PV","018057","Corvino San Quirico"]
["Lombardia","Costa de' Nobili","Costa de' Nobili (PV) ","Azienda Speciale \"Ufficio d'Ambito Territoriale Ottimale della Provincia di Pavia\"",310,310,"Pavia","PV","018058","Costa de' Nobili"]
["Lombardia","Cozzo","Cozzo (PV) ","Azienda Speciale \"Ufficio d'Ambito Territoriale Ottimale della Provincia di Pavia\"",310,310,"Pavia","PV","018059","Cozzo"]
["Lombardia","Cura Carpignano","Cura Carpignano (PV) ","Azienda Speciale \"Ufficio d'Ambito Territoriale Ottimale della Provincia di Pavia\"",310,310,"Pavia","PV","018060","Cura Carpignano"]
["Lombardia","Dorno","Dorno (PV) ","Azienda Speciale \"Ufficio d'Ambito Territoriale Ottimale della Provincia di Pavia\"",310,310,"Pavia","PV","018061","Dorno"]
["Lombardia","Ferrera Erbognone","Ferrera Erbognone (PV) ","Azienda Speciale \"Ufficio d'Ambito Territoriale Ottimale della Provincia di Pavia\"",310,310,"Pavia","PV","018062","Ferrera Erbognone"]
["Lombardia","Filighera","Filighera (PV) ","Azienda Speciale \"Ufficio d'Ambito Territoriale Ottimale della Provincia di Pavia\"",310,310,"Pavia","PV","018063","Filighera"]
["Lombardia","Fortunago","Fortunago (PV) ","Azienda Speciale \"Ufficio d'Ambito Territoriale Ottimale della Provincia di Pavia\"",310,310,"Pavia","PV","018064","Fortunago"]
["Lombardia","Frascarolo","Frascarolo (PV) ","Azienda Speciale \"Ufficio d'Ambito Territoriale Ottimale della Provincia di Pavia\"",310,310,"Pavia","PV","018065","Frascarolo"]
["Lombardia","Galliavola","Galliavola (PV) ","Azienda Speciale \"Ufficio d'Ambito Territoriale Ottimale della Provincia di Pavia\"",310,310,"Pavia","PV","018066","Galliavola"]
["Lombardia","Gambarana","Gambarana (PV) ","Azienda Speciale \"Ufficio d'Ambito Territoriale Ottimale della Provincia di Pavia\"",310,310,"Pavia","PV","018067","Gambarana"]
["Lombardia","Gambolò","Gambolò (PV) ","Azienda Speciale \"Ufficio d'Ambito Territoriale Ottimale della Provincia di Pavia\"",310,310,"Pavia","PV","018068","Gambolò"]
["Lombardia","Garlasco","Garlasco (PV) ","Azienda Speciale \"Ufficio d'Ambito Territoriale Ottimale della Provincia di Pavia\"",310,310,"Pavia","PV","018069","Garlasco"]
["Lombardia","Gerenzago","Gerenzago (PV) ","Azienda Speciale \"Ufficio d'Ambito Territoriale Ottimale della Provincia di Pavia\"",310,310,"Pavia","PV","018071","Gerenzago"]
["Lombardia","Giussago","Giussago (PV) ","Azienda Speciale \"Ufficio d'Ambito Territoriale Ottimale della Provincia di Pavia\"",310,310,"Pavia","PV","018072","Giussago"]
["Lombardia","Godiasco Salice Terme","Godiasco Salice Terme (PV) ","Azienda Speciale \"Ufficio d'Ambito Territoriale Ottimale della Provincia di Pavia\"",310,310,"Pavia","PV","018073","Godiasco Salice Terme"]
["Lombardia","Golferenzo","Golferenzo (PV) ","Azienda Speciale \"Ufficio d'Ambito Territoriale Ottimale della Provincia di Pavia\"",310,310,"Pavia","PV","018074","Golferenzo"]
["Lombardia","Gravellona Lomellina","Gravellona Lomellina (PV) ","Azienda Speciale \"Ufficio d'Ambito Territoriale Ottimale della Provincia di Pavia\"",310,310,"Pavia","PV","018075","Gravellona Lomellina"]
["Lombardia","Gropello Cairoli","Gropello Cairoli (PV) ","Azienda Speciale \"Ufficio d'Ambito Territoriale Ottimale della Provincia di Pavia\"",310,310,"Pavia","PV","018076","Gropello Cairoli"]
["Lombardia","Inverno e Monteleone","Inverno e Monteleone (PV) ","Azienda Speciale \"Ufficio d'Ambito Territoriale Ottimale della Provincia di Pavia\"",310,310,"Pavia","PV","018077","Inverno e Monteleone"]
["Lombardia","Landriano","Landriano (PV) ","Azienda Speciale \"Ufficio d'Ambito Territoriale Ottimale della Provincia di Pavia\"",310,310,"Pavia","PV","018078","Landriano"]
["Lombardia","Langosco","Langosco (PV) ","Azienda Speciale \"Ufficio d'Ambito Territoriale Ottimale della Provincia di Pavia\"",310,310,"Pavia","PV","018079","Langosco"]
["Lombardia","Lardirago","Lardirago (PV) ","Azienda Speciale \"Ufficio d'Ambito Territoriale Ottimale della Provincia di Pavia\"",310,310,"Pavia","PV","018080","Lardirago"]
["Lombardia","Linarolo","Linarolo (PV) ","Azienda Speciale \"Ufficio d'Ambito Territoriale Ottimale della Provincia di Pavia\"",310,310,"Pavia","PV","018081","Linarolo"]
["Lombardia","Lomello","Lomello (PV) ","Azienda Speciale \"Ufficio d'Ambito Territoriale Ottimale della Provincia di Pavia\"",310,310,"Pavia","PV","018083","Lomello"]
["Lombardia","Lungavilla","Lungavilla (PV) ","Azienda Speciale \"Ufficio d'Ambito Territoriale Ottimale della Provincia di Pavia\"",310,310,"Pavia","PV","018084","Lungavilla"]
["Lombardia","Magherno","Magherno (PV) ","Azienda Speciale \"Ufficio d'Ambito Territoriale Ottimale della Provincia di Pavia\"",310,310,"Pavia","PV","018085","Magherno"]
["Lombardia","Marcignago","Marcignago (PV) ","Azienda Speciale \"Ufficio d'Ambito Territoriale Ottimale della Provincia di Pavia\"",310,310,"Pavia","PV","018086","Marcignago"]
["Lombardia","Marzano","Marzano (PV) ","Azienda Speciale \"Ufficio d'Ambito Territoriale Ottimale della Provincia di Pavia\"",310,310,"Pavia","PV","018087","Marzano"]
["Lombardia","Mede","Mede (PV) ","Azienda Speciale \"Ufficio d'Ambito Territoriale Ottimale della Provincia di Pavia\"",310,310,"Pavia","PV","018088","Mede"]
["Lombardia","Menconico","Menconico (PV) ","Azienda Speciale \"Ufficio d'Ambito Territoriale Ottimale della Provincia di Pavia\"",310,310,"Pavia","PV","018089","Menconico"]
["Lombardia","Mezzana Bigli","Mezzana Bigli (PV) ","Azienda Speciale \"Ufficio d'Ambito Territoriale Ottimale della Provincia di Pavia\"",310,310,"Pavia","PV","018090","Mezzana Bigli"]
["Lombardia","Mezzana Rabattone","Mezzana Rabattone (PV) ","Azienda Speciale \"Ufficio d'Ambito Territoriale Ottimale della Provincia di Pavia\"",310,310,"Pavia","PV","018091","Mezzana Rabattone"]
["Lombardia","Mezzanino","Mezzanino (PV) ","Azienda Speciale \"Ufficio d'Ambito Territoriale Ottimale della Provincia di Pavia\"",310,310,"Pavia","PV","018092","Mezzanino"]
["Lombardia","Miradolo Terme","Miradolo Terme (PV) ","Azienda Speciale \"Ufficio d'Ambito Territoriale Ottimale della Provincia di Pavia\"",310,310,"Pavia","PV","018093","Miradolo Terme"]
["Lombardia","Montalto Pavese","Montalto Pavese (PV) ","Azienda Speciale \"Ufficio d'Ambito Territoriale Ottimale della Provincia di Pavia\"",310,310,"Pavia","PV","018094","Montalto Pavese"]
["Lombardia","Montebello della Battaglia","Montebello della Battaglia (PV) ","Azienda Speciale \"Ufficio d'Ambito Territoriale Ottimale della Provincia di Pavia\"",310,310,"Pavia","PV","018095","Montebello della Battaglia"]
["Lombardia","Montecalvo Versiggia","Montecalvo Versiggia (PV) ","Azienda Speciale \"Ufficio d'Ambito Territoriale Ottimale della Provincia di Pavia\"",310,310,"Pavia","PV","018096","Montecalvo Versiggia"]
["Lombardia","Montescano","Montescano (PV) ","Azienda Speciale \"Ufficio d'Ambito Territoriale Ottimale della Provincia di Pavia\"",310,310,"Pavia","PV","018097","Montescano"]
["Lombardia","Montesegale","Montesegale (PV) ","Azienda Speciale \"Ufficio d'Ambito Territoriale Ottimale della Provincia di Pavia\"",310,310,"Pavia","PV","018098","Montesegale"]
["Lombardia","Monticelli Pavese","Monticelli Pavese (PV) ","Azienda Speciale \"Ufficio d'Ambito Territoriale Ottimale della Provincia di Pavia\"",310,310,"Pavia","PV","018099","Monticelli Pavese"]
["Lombardia","Montù Beccaria","Montù Beccaria (PV) ","Azienda Speciale \"Ufficio d'Ambito Territoriale Ottimale della Provincia di Pavia\"",310,310,"Pavia","PV","018100","Montù Beccaria"]
["Lombardia","Mornico Losana","Mornico Losana (PV) ","Azienda Speciale \"Ufficio d'Ambito Territoriale Ottimale della Provincia di Pavia\"",310,310,"Pavia","PV","018101","Mornico Losana"]
["Lombardia","Mortara","Mortara (PV) ","Azienda Speciale \"Ufficio d'Ambito Territoriale Ottimale della Provincia di Pavia\"",310,310,"Pavia","PV","018102","Mortara"]
["Lombardia","Nicorvo","Nicorvo (PV) ","Azienda Speciale \"Ufficio d'Ambito Territoriale Ottimale della Provincia di Pavia\"",310,310,"Pavia","PV","018103","Nicorvo"]
["Lombardia","Olevano di Lomellina","Olevano di Lomellina (PV) ","Azienda Speciale \"Ufficio d'Ambito Territoriale Ottimale della Provincia di Pavia\"",310,310,"Pavia","PV","018104","Olevano di Lomellina"]
["Lombardia","Oliva Gessi","Oliva Gessi (PV) ","Azienda Speciale \"Ufficio d'Ambito Territoriale Ottimale della Provincia di Pavia\"",310,310,"Pavia","PV","018105","Oliva Gessi"]
["Lombardia","Ottobiano","Ottobiano (PV) ","Azienda Speciale \"Ufficio d'Ambito Territoriale Ottimale della Provincia di Pavia\"",310,310,"Pavia","PV","018106","Ottobiano"]
["Lombardia","Palestro","Palestro (PV) ","Azienda Speciale \"Ufficio d'Ambito Territoriale Ottimale della Provincia di Pavia\"",310,310,"Pavia","PV","018107","Palestro"]
["Lombardia","Pancarana","Pancarana (PV) ","Azienda Speciale \"Ufficio d'Ambito Territoriale Ottimale della Provincia di Pavia\"",310,310,"Pavia","PV","018108","Pancarana"]
["Lombardia","Parona","Parona (PV) ","Azienda Speciale \"Ufficio d'Ambito Territoriale Ottimale della Provincia di Pavia\"",310,310,"Pavia","PV","018109","Parona"]
["Lombardia","Pavia","Pavia (PV) ","Azienda Speciale \"Ufficio d'Ambito Territoriale Ottimale della Provincia di Pavia\"",310,310,"Pavia","PV","018110","Pavia"]
["Lombardia","Pietra de' Giorgi","Pietra de' Giorgi (PV) ","Azienda Speciale \"Ufficio d'Ambito Territoriale Ottimale della Provincia di Pavia\"",310,310,"Pavia","PV","018111","Pietra de' Giorgi"]
["Lombardia","Pieve Albignola","Pieve Albignola (PV) ","Azienda Speciale \"Ufficio d'Ambito Territoriale Ottimale della Provincia di Pavia\"",310,310,"Pavia","PV","018112","Pieve Albignola"]
["Lombardia","Pieve del Cairo","Pieve del Cairo (PV) ","Azienda Speciale \"Ufficio d'Ambito Territoriale Ottimale della Provincia di Pavia\"",310,310,"Pavia","PV","018113","Pieve del Cairo"]
["Lombardia","Pieve Porto Morone","Pieve Porto Morone (PV) ","Azienda Speciale \"Ufficio d'Ambito Territoriale Ottimale della Provincia di Pavia\"",310,310,"Pavia","PV","018114","Pieve Porto Morone"]
["Lombardia","Pinarolo Po","Pinarolo Po (PV) ","Azienda Speciale \"Ufficio d'Ambito Territoriale Ottimale della Provincia di Pavia\"",310,310,"Pavia","PV","018115","Pinarolo Po"]
["Lombardia","Pizzale","Pizzale (PV) ","Azienda Speciale \"Ufficio d'Ambito Territoriale Ottimale della Provincia di Pavia\"",310,310,"Pavia","PV","018116","Pizzale"]
["Lombardia","Ponte Nizza","Ponte Nizza (PV) ","Azienda Speciale \"Ufficio d'Ambito Territoriale Ottimale della Provincia di Pavia\"",310,310,"Pavia","PV","018117","Ponte Nizza"]
["Lombardia","Portalbera","Portalbera (PV) ","Azienda Speciale \"Ufficio d'Ambito Territoriale Ottimale della Provincia di Pavia\"",310,310,"Pavia","PV","018118","Portalbera"]
["Lombardia","Rea","Rea (PV) ","Azienda Speciale \"Ufficio d'Ambito Territoriale Ottimale della Provincia di Pavia\"",310,310,"Pavia","PV","018119","Rea"]
["Lombardia","Redavalle","Redavalle (PV) ","Azienda Speciale \"Ufficio d'Ambito Territoriale Ottimale della Provincia di Pavia\"",310,310,"Pavia","PV","018120","Redavalle"]
["Lombardia","Retorbido","Retorbido (PV) ","Azienda Speciale \"Ufficio d'Ambito Territoriale Ottimale della Provincia di Pavia\"",310,310,"Pavia","PV","018121","Retorbido"]
["Lombardia","Rivanazzano Terme","Rivanazzano Terme (PV) ","Azienda Speciale \"Ufficio d'Ambito Territoriale Ottimale della Provincia di Pavia\"",310,310,"Pavia","PV","018122","Rivanazzano Terme"]
["Lombardia","Robbio","Robbio (PV) ","Azienda Speciale \"Ufficio d'Ambito Territoriale Ottimale della Provincia di Pavia\"",310,310,"Pavia","PV","018123","Robbio"]
["Lombardia","Robecco Pavese","Robecco Pavese (PV) ","Azienda Speciale \"Ufficio d'Ambito Territoriale Ottimale della Provincia di Pavia\"",310,310,"Pavia","PV","018124","Robecco Pavese"]
["Lombardia","Rocca de' Giorgi","Rocca de' Giorgi (PV) ","Azienda Speciale \"Ufficio d'Ambito Territoriale Ottimale della Provincia di Pavia\"",310,310,"Pavia","PV","018125","Rocca de' Giorgi"]
["Lombardia","Rocca Susella","Rocca Susella (PV) ","Azienda Speciale \"Ufficio d'Ambito Territoriale Ottimale della Provincia di Pavia\"",310,310,"Pavia","PV","018126","Rocca Susella"]
["Lombardia","Rognano","Rognano (PV) ","Azienda Speciale \"Ufficio d'Ambito Territoriale Ottimale della Provincia di Pavia\"",310,310,"Pavia","PV","018127","Rognano"]
["Lombardia","Romagnese","Romagnese (PV) ","Azienda Speciale \"Ufficio d'Ambito Territoriale Ottimale della Provincia di Pavia\"",310,310,"Pavia","PV","018128","Romagnese"]
["Lombardia","Roncaro","Roncaro (PV) ","Azienda Speciale \"Ufficio d'Ambito Territoriale Ottimale della Provincia di Pavia\"",310,310,"Pavia","PV","018129","Roncaro"]
["Lombardia","Rosasco","Rosasco (PV) ","Azienda Speciale \"Ufficio d'Ambito Territoriale Ottimale della Provincia di Pavia\"",310,310,"Pavia","PV","018130","Rosasco"]
["Lombardia","Rovescala","Rovescala (PV) ","Azienda Speciale \"Ufficio d'Ambito Territoriale Ottimale della Provincia di Pavia\"",310,310,"Pavia","PV","018131","Rovescala"]
["Lombardia","San Cipriano Po","San Cipriano Po (PV) ","Azienda Speciale \"Ufficio d'Ambito Territoriale Ottimale della Provincia di Pavia\"",310,310,"Pavia","PV","018133","San Cipriano Po"]
["Lombardia","San Damiano al Colle","San Damiano al Colle (PV) ","Azienda Speciale \"Ufficio d'Ambito Territoriale Ottimale della Provincia di Pavia\"",310,310,"Pavia","PV","018134","San Damiano al Colle"]
["Lombardia","San Genesio ed Uniti","San Genesio ed Uniti (PV) ","Azienda Speciale \"Ufficio d'Ambito Territoriale Ottimale della Provincia di Pavia\"",310,310,"Pavia","PV","018135","San Genesio ed Uniti"]
["Lombardia","San Giorgio di Lomellina","San Giorgio di Lomellina (PV) ","Azienda Speciale \"Ufficio d'Ambito Territoriale Ottimale della Provincia di Pavia\"",310,310,"Pavia","PV","018136","San Giorgio di Lomellina"]
["Lombardia","San Martino Siccomario","San Martino Siccomario (PV) ","Azienda Speciale \"Ufficio d'Ambito Territoriale Ottimale della Provincia di Pavia\"",310,310,"Pavia","PV","018137","San Martino Siccomario"]
["Lombardia","Sannazzaro de' Burgondi","Sannazzaro de' Burgondi (PV) ","Azienda Speciale \"Ufficio d'Ambito Territoriale Ottimale della Provincia di Pavia\"",310,310,"Pavia","PV","018138","Sannazzaro de' Burgondi"]
["Lombardia","Santa Cristina e Bissone","Santa Cristina e Bissone (PV) ","Azienda Speciale \"Ufficio d'Ambito Territoriale Ottimale della Provincia di Pavia\"",310,310,"Pavia","PV","018139","Santa Cristina e Bissone"]
["Lombardia","Santa Giuletta","Santa Giuletta (PV) ","Azienda Speciale \"Ufficio d'Ambito Territoriale Ottimale della Provincia di Pavia\"",310,310,"Pavia","PV","018140","Santa Giuletta"]
["Lombardia","Sant'Alessio con Vialone","Sant'Alessio con Vialone (PV) ","Azienda Speciale \"Ufficio d'Ambito Territoriale Ottimale della Provincia di Pavia\"",310,310,"Pavia","PV","018141","Sant'Alessio con Vialone"]
["Lombardia","Santa Margherita di Staffora","Santa Margherita di Staffora (PV) ","Azienda Speciale \"Ufficio d'Ambito Territoriale Ottimale della Provincia di Pavia\"",310,310,"Pavia","PV","018142","Santa Margherita di Staffora"]
["Lombardia","Santa Maria della Versa","Santa Maria della Versa (PV) ","Azienda Speciale \"Ufficio d'Ambito Territoriale Ottimale della Provincia di Pavia\"",310,310,"Pavia","PV","018143","Santa Maria della Versa"]
["Lombardia","Sant'Angelo Lomellina","Sant'Angelo Lomellina (PV) ","Azienda Speciale \"Ufficio d'Ambito Territoriale Ottimale della Provincia di Pavia\"",310,310,"Pavia","PV","018144","Sant'Angelo Lomellina"]
["Lombardia","San Zenone al Po","San Zenone al Po (PV) ","Azienda Speciale \"Ufficio d'Ambito Territoriale Ottimale della Provincia di Pavia\"",310,310,"Pavia","PV","018145","San Zenone al Po"]
["Lombardia","Sartirana Lomellina","Sartirana Lomellina (PV) ","Azienda Speciale \"Ufficio d'Ambito Territoriale Ottimale della Provincia di Pavia\"",310,310,"Pavia","PV","018146","Sartirana Lomellina"]
["Lombardia","Scaldasole","Scaldasole (PV) ","Azienda Speciale \"Ufficio d'Ambito Territoriale Ottimale della Provincia di Pavia\"",310,310,"Pavia","PV","018147","Scaldasole"]
["Lombardia","Semiana","Semiana (PV) ","Azienda Speciale \"Ufficio d'Ambito Territoriale Ottimale della Provincia di Pavia\"",310,310,"Pavia","PV","018148","Semiana"]
["Lombardia","Silvano Pietra","Silvano Pietra (PV) ","Azienda Speciale \"Ufficio d'Ambito Territoriale Ottimale della Provincia di Pavia\"",310,310,"Pavia","PV","018149","Silvano Pietra"]
["Lombardia","Siziano","Siziano (PV) ","Azienda Speciale \"Ufficio d'Ambito Territoriale Ottimale della Provincia di Pavia\"",310,310,"Pavia","PV","018150","Siziano"]
["Lombardia","Sommo","Sommo (PV) ","Azienda Speciale \"Ufficio d'Ambito Territoriale Ottimale della Provincia di Pavia\"",310,310,"Pavia","PV","018151","Sommo"]
["Lombardia","Spessa","Spessa (PV) ","Azienda Speciale \"Ufficio d'Ambito Territoriale Ottimale della Provincia di Pavia\"",310,310,"Pavia","PV","018152","Spessa"]
["Lombardia","Stradella","Stradella (PV) ","Azienda Speciale \"Ufficio d'Ambito Territoriale Ottimale della Provincia di Pavia\"",310,310,"Pavia","PV","018153","Stradella"]
["Lombardia","Suardi","Suardi (PV) ","Azienda Speciale \"Ufficio d'Ambito Territoriale Ottimale della Provincia di Pavia\"",310,310,"Pavia","PV","018154","Suardi"]
["Lombardia","Torrazza Coste","Torrazza Coste (PV) ","Azienda Speciale \"Ufficio d'Ambito Territoriale Ottimale della Provincia di Pavia\"",310,310,"Pavia","PV","018155","Torrazza Coste"]
["Lombardia","Torre Beretti e Castellaro","Torre Beretti e Castellaro (PV) ","Azienda Speciale \"Ufficio d'Ambito Territoriale Ottimale della Provincia di Pavia\"",310,310,"Pavia","PV","018156","Torre Beretti e Castellaro"]
["Lombardia","Torre d'Arese","Torre d'Arese (PV) ","Azienda Speciale \"Ufficio d'Ambito Territoriale Ottimale della Provincia di Pavia\"",310,310,"Pavia","PV","018157","Torre d'Arese"]
["Lombardia","Torre de' Negri","Torre de' Negri (PV) ","Azienda Speciale \"Ufficio d'Ambito Territoriale Ottimale della Provincia di Pavia\"",310,310,"Pavia","PV","018158","Torre de' Negri"]
["Lombardia","Torre d'Isola","Torre d'Isola (PV) ","Azienda Speciale \"Ufficio d'Ambito Territoriale Ottimale della Provincia di Pavia\"",310,310,"Pavia","PV","018159","Torre d'Isola"]
["Lombardia","Torrevecchia Pia","Torrevecchia Pia (PV) ","Azienda Speciale \"Ufficio d'Ambito Territoriale Ottimale della Provincia di Pavia\"",310,310,"Pavia","PV","018160","Torrevecchia Pia"]
["Lombardia","Torricella Verzate","Torricella Verzate (PV) ","Azienda Speciale \"Ufficio d'Ambito Territoriale Ottimale della Provincia di Pavia\"",310,310,"Pavia","PV","018161","Torricella Verzate"]
["Lombardia","Travacò Siccomario","Travacò Siccomario (PV) ","Azienda Speciale \"Ufficio d'Ambito Territoriale Ottimale della Provincia di Pavia\"",310,310,"Pavia","PV","018162","Travacò Siccomario"]
["Lombardia","Trivolzio","Trivolzio (PV) ","Azienda Speciale \"Ufficio d'Ambito Territoriale Ottimale della Provincia di Pavia\"",310,310,"Pavia","PV","018163","Trivolzio"]
["Lombardia","Tromello","Tromello (PV) ","Azienda Speciale \"Ufficio d'Ambito Territoriale Ottimale della Provincia di Pavia\"",310,310,"Pavia","PV","018164","Tromello"]
["Lombardia","Trovo","Trovo (PV) ","Azienda Speciale \"Ufficio d'Ambito Territoriale Ottimale della Provincia di Pavia\"",310,310,"Pavia","PV","018165","Trovo"]
["Lombardia","Val di Nizza","Val di Nizza (PV) ","Azienda Speciale \"Ufficio d'Ambito Territoriale Ottimale della Provincia di Pavia\"",310,310,"Pavia","PV","018166","Val di Nizza"]
["Lombardia","Valeggio","Valeggio (PV) ","Azienda Speciale \"Ufficio d'Ambito Territoriale Ottimale della Provincia di Pavia\"",310,310,"Pavia","PV","018167","Valeggio"]
["Lombardia","Valle Lomellina","Valle Lomellina (PV) ","Azienda Speciale \"Ufficio d'Ambito Territoriale Ottimale della Provincia di Pavia\"",310,310,"Pavia","PV","018168","Valle Lomellina"]
["Lombardia","Valle Salimbene","Valle Salimbene (PV) ","Azienda Speciale \"Ufficio d'Ambito Territoriale Ottimale della Provincia di Pavia\"",310,310,"Pavia","PV","018169","Valle Salimbene"]
["Lombardia","Varzi","Varzi (PV) ","Azienda Speciale \"Ufficio d'Ambito Territoriale Ottimale della Provincia di Pavia\"",310,310,"Pavia","PV","018171","Varzi"]
["Lombardia","Velezzo Lomellina","Velezzo Lomellina (PV) ","Azienda Speciale \"Ufficio d'Ambito Territoriale Ottimale della Provincia di Pavia\"",310,310,"Pavia","PV","018172","Velezzo Lomellina"]
["Lombardia","Vellezzo Bellini","Vellezzo Bellini (PV) ","Azienda Speciale \"Ufficio d'Ambito Territoriale Ottimale della Provincia di Pavia\"",310,310,"Pavia","PV","018173","Vellezzo Bellini"]
["Lombardia","Verretto","Verretto (PV) ","Azienda Speciale \"Ufficio d'Ambito Territoriale Ottimale della Provincia di Pavia\"",310,310,"Pavia","PV","018174","Verretto"]
["Lombardia","Verrua Po","Verrua Po (PV) ","Azienda Speciale \"Ufficio d'Ambito Territoriale Ottimale della Provincia di Pavia\"",310,310,"Pavia","PV","018175","Verrua Po"]
["Lombardia","Vidigulfo","Vidigulfo (PV) ","Azienda Speciale \"Ufficio d'Ambito Territoriale Ottimale della Provincia di Pavia\"",310,310,"Pavia","PV","018176","Vidigulfo"]
["Lombardia","Vigevano","Vigevano (PV) ","Azienda Speciale \"Ufficio d'Ambito Territoriale Ottimale della Provincia di Pavia\"",310,310,"Pavia","PV","018177","Vigevano"]
["Lombardia","Villa Biscossi","Villa Biscossi (PV) ","Azienda Speciale \"Ufficio d'Ambito Territoriale Ottimale della Provincia di Pavia\"",310,310,"Pavia","PV","018178","Villa Biscossi"]
["Lombardia","Villanova d'Ardenghi","Villanova d'Ardenghi (PV) ","Azienda Speciale \"Ufficio d'Ambito Territoriale Ottimale della Provincia di Pavia\"",310,310,"Pavia","PV","018179","Villanova d'Ardenghi"]
["Lombardia","Villanterio","Villanterio (PV) ","Azienda Speciale \"Ufficio d'Ambito Territoriale Ottimale della Provincia di Pavia\"",310,310,"Pavia","PV","018180","Villanterio"]
["Lombardia","Vistarino","Vistarino (PV) ","Azienda Speciale \"Ufficio d'Ambito Territoriale Ottimale della Provincia di Pavia\"",310,310,"Pavia","PV","018181","Vistarino"]
["Lombardia","Voghera","Voghera (PV) ","Azienda Speciale \"Ufficio d'Ambito Territoriale Ottimale della Provincia di Pavia\"",310,310,"Pavia","PV","018182","Voghera"]
["Lombardia","Volpara","Volpara (PV) ","Azienda Speciale \"Ufficio d'Ambito Territoriale Ottimale della Provincia di Pavia\"",310,310,"Pavia","PV","018183","Volpara"]
["Lombardia","Zavattarello","Zavattarello (PV) ","Azienda Speciale \"Ufficio d'Ambito Territoriale Ottimale della Provincia di Pavia\"",310,310,"Pavia","PV","018184","Zavattarello"]
["Lombardia","Zeccone","Zeccone (PV) ","Azienda Speciale \"Ufficio d'Ambito Territoriale Ottimale della Provincia di Pavia\"",310,310,"Pavia","PV","018185","Zeccone"]
["Lombardia","Zeme","Zeme (PV) ","Azienda Speciale \"Ufficio d'Ambito Territoriale Ottimale della Provincia di Pavia\"",310,310,"Pavia","PV","018186","Zeme"]
["Lombardia","Zenevredo","Zenevredo (PV) ","Azienda Speciale \"Ufficio d'Ambito Territoriale Ottimale della Provincia di Pavia\"",310,310,"Pavia","PV","018187","Zenevredo"]
["Lombardia","Zerbo","Zerbo (PV) ","Azienda Speciale \"Ufficio d'Ambito Territoriale Ottimale della Provincia di Pavia\"",310,310,"Pavia","PV","018188","Zerbo"]
["Lombardia","Zerbolò","Zerbolò (PV) ","Azienda Speciale \"Ufficio d'Ambito Territoriale Ottimale della Provincia di Pavia\"",310,310,"Pavia","PV","018189","Zerbolò"]
["Lombardia","Zinasco","Zinasco (PV) ","Azienda Speciale \"Ufficio d'Ambito Territoriale Ottimale della Provincia di Pavia\"",310,310,"Pavia","PV","018190","Zinasco"]
["Lombardia","Cornale e Bastida","Cornale e Bastida (PV) ","Azienda Speciale \"Ufficio d'Ambito Territoriale Ottimale della Provincia di Pavia\"",310,310,"Pavia","PV","018191","Cornale e Bastida"]
["Lombardia","Corteolona e Genzone","Corteolona e Genzone (PV) ","Azienda Speciale \"Ufficio d'Ambito Territoriale Ottimale della Provincia di Pavia\"",310,310,"Pavia","PV","018192","Corteolona e Genzone"]
["Lombardia","Colli Verdi","Colli Verdi (PV) ","Azienda Speciale \"Ufficio d'Ambito Territoriale Ottimale della Provincia di Pavia\"",310,310,"Pavia","PV","018193","Colli Verdi"]
["Lombardia","Acquanegra Cremonese","Acquanegra Cremonese (CR) ","UFFICIO D'AMBITO DELLA PROVINCIA DI CREMONA",305,305,"Cremona","CR","019001","Acquanegra Cremonese"]
["Lombardia","Agnadello","Agnadello (CR) ","UFFICIO D'AMBITO DELLA PROVINCIA DI CREMONA",305,305,"Cremona","CR","019002","Agnadello"]
["Lombardia","Annicco","Annicco (CR) ","UFFICIO D'AMBITO DELLA PROVINCIA DI CREMONA",305,305,"Cremona","CR","019003","Annicco"]
["Lombardia","Azzanello","Azzanello (CR) ","UFFICIO D'AMBITO DELLA PROVINCIA DI CREMONA",305,305,"Cremona","CR","019004","Azzanello"]
["Lombardia","Bagnolo Cremasco","Bagnolo Cremasco (CR) ","UFFICIO D'AMBITO DELLA PROVINCIA DI CREMONA",305,305,"Cremona","CR","019005","Bagnolo Cremasco"]
["Lombardia","Bonemerse","Bonemerse (CR) ","UFFICIO D'AMBITO DELLA PROVINCIA DI CREMONA",305,305,"Cremona","CR","019006","Bonemerse"]
["Lombardia","Bordolano","Bordolano (CR) ","UFFICIO D'AMBITO DELLA PROVINCIA DI CREMONA",305,305,"Cremona","CR","019007","Bordolano"]
["Lombardia","Calvatone","Calvatone (CR) ","UFFICIO D'AMBITO DELLA PROVINCIA DI CREMONA",305,305,"Cremona","CR","019009","Calvatone"]
["Lombardia","Camisano","Camisano (CR) ","UFFICIO D'AMBITO DELLA PROVINCIA DI CREMONA",305,305,"Cremona","CR","019010","Camisano"]
["Lombardia","Campagnola Cremasca","Campagnola Cremasca (CR) ","UFFICIO D'AMBITO DELLA PROVINCIA DI CREMONA",305,305,"Cremona","CR","019011","Campagnola Cremasca"]
["Lombardia","Capergnanica","Capergnanica (CR) ","UFFICIO D'AMBITO DELLA PROVINCIA DI CREMONA",305,305,"Cremona","CR","019012","Capergnanica"]
["Lombardia","Cappella Cantone","Cappella Cantone (CR) ","UFFICIO D'AMBITO DELLA PROVINCIA DI CREMONA",305,305,"Cremona","CR","019013","Cappella Cantone"]
["Lombardia","Cappella de' Picenardi","Cappella de' Picenardi (CR) ","UFFICIO D'AMBITO DELLA PROVINCIA DI CREMONA",305,305,"Cremona","CR","019014","Cappella de' Picenardi"]
["Lombardia","Capralba","Capralba (CR) ","UFFICIO D'AMBITO DELLA PROVINCIA DI CREMONA",305,305,"Cremona","CR","019015","Capralba"]
["Lombardia","Casalbuttano ed Uniti","Casalbuttano ed Uniti (CR) ","UFFICIO D'AMBITO DELLA PROVINCIA DI CREMONA",305,305,"Cremona","CR","019016","Casalbuttano ed Uniti"]
["Lombardia","Casale Cremasco-Vidolasco","Casale Cremasco-Vidolasco (CR) ","UFFICIO D'AMBITO DELLA PROVINCIA DI CREMONA",305,305,"Cremona","CR","019017","Casale Cremasco-Vidolasco"]
["Lombardia","Casaletto Ceredano","Casaletto Ceredano (CR) ","UFFICIO D'AMBITO DELLA PROVINCIA DI CREMONA",305,305,"Cremona","CR","019018","Casaletto Ceredano"]
["Lombardia","Casaletto di Sopra","Casaletto di Sopra (CR) ","UFFICIO D'AMBITO DELLA PROVINCIA DI CREMONA",305,305,"Cremona","CR","019019","Casaletto di Sopra"]
["Lombardia","Casaletto Vaprio","Casaletto Vaprio (CR) ","UFFICIO D'AMBITO DELLA PROVINCIA DI CREMONA",305,305,"Cremona","CR","019020","Casaletto Vaprio"]
["Lombardia","Casalmaggiore","Casalmaggiore (CR) ","UFFICIO D'AMBITO DELLA PROVINCIA DI CREMONA",305,305,"Cremona","CR","019021","Casalmaggiore"]
["Lombardia","Casalmorano","Casalmorano (CR) ","UFFICIO D'AMBITO DELLA PROVINCIA DI CREMONA",305,305,"Cremona","CR","019022","Casalmorano"]
["Lombardia","Casteldidone","Casteldidone (CR) ","UFFICIO D'AMBITO DELLA PROVINCIA DI CREMONA",305,305,"Cremona","CR","019023","Casteldidone"]
["Lombardia","Castel Gabbiano","Castel Gabbiano (CR) ","UFFICIO D'AMBITO DELLA PROVINCIA DI CREMONA",305,305,"Cremona","CR","019024","Castel Gabbiano"]
["Lombardia","Castelleone","Castelleone (CR) ","UFFICIO D'AMBITO DELLA PROVINCIA DI CREMONA",305,305,"Cremona","CR","019025","Castelleone"]
["Lombardia","Castelverde","Castelverde (CR) ","UFFICIO D'AMBITO DELLA PROVINCIA DI CREMONA",305,305,"Cremona","CR","019026","Castelverde"]
["Lombardia","Castelvisconti","Castelvisconti (CR) ","UFFICIO D'AMBITO DELLA PROVINCIA DI CREMONA",305,305,"Cremona","CR","019027","Castelvisconti"]
["Lombardia","Cella Dati","Cella Dati (CR) ","UFFICIO D'AMBITO DELLA PROVINCIA DI CREMONA",305,305,"Cremona","CR","019028","Cella Dati"]
["Lombardia","Chieve","Chieve (CR) ","UFFICIO D'AMBITO DELLA PROVINCIA DI CREMONA",305,305,"Cremona","CR","019029","Chieve"]
["Lombardia","Cicognolo","Cicognolo (CR) ","UFFICIO D'AMBITO DELLA PROVINCIA DI CREMONA",305,305,"Cremona","CR","019030","Cicognolo"]
["Lombardia","Cingia de' Botti","Cingia de' Botti (CR) ","UFFICIO D'AMBITO DELLA PROVINCIA DI CREMONA",305,305,"Cremona","CR","019031","Cingia de' Botti"]
["Lombardia","Corte de' Cortesi con Cignone","Corte de' Cortesi con Cignone (CR) ","UFFICIO D'AMBITO DELLA PROVINCIA DI CREMONA",305,305,"Cremona","CR","019032","Corte de' Cortesi con Cignone"]
["Lombardia","Corte de' Frati","Corte de' Frati (CR) ","UFFICIO D'AMBITO DELLA PROVINCIA DI CREMONA",305,305,"Cremona","CR","019033","Corte de' Frati"]
["Lombardia","Credera Rubbiano","Credera Rubbiano (CR) ","UFFICIO D'AMBITO DELLA PROVINCIA DI CREMONA",305,305,"Cremona","CR","019034","Credera Rubbiano"]
["Lombardia","Crema","Crema (CR) ","UFFICIO D'AMBITO DELLA PROVINCIA DI CREMONA",305,305,"Cremona","CR","019035","Crema"]
["Lombardia","Cremona","Cremona (CR) ","UFFICIO D'AMBITO DELLA PROVINCIA DI CREMONA",305,305,"Cremona","CR","019036","Cremona"]
["Lombardia","Cremosano","Cremosano (CR) ","UFFICIO D'AMBITO DELLA PROVINCIA DI CREMONA",305,305,"Cremona","CR","019037","Cremosano"]
["Lombardia","Crotta d'Adda","Crotta d'Adda (CR) ","UFFICIO D'AMBITO DELLA PROVINCIA DI CREMONA",305,305,"Cremona","CR","019038","Crotta d'Adda"]
["Lombardia","Cumignano sul Naviglio","Cumignano sul Naviglio (CR) ","UFFICIO D'AMBITO DELLA PROVINCIA DI CREMONA",305,305,"Cremona","CR","019039","Cumignano sul Naviglio"]
["Lombardia","Derovere","Derovere (CR) ","UFFICIO D'AMBITO DELLA PROVINCIA DI CREMONA",305,305,"Cremona","CR","019040","Derovere"]
["Lombardia","Dovera","Dovera (CR) ","UFFICIO D'AMBITO DELLA PROVINCIA DI CREMONA",305,305,"Cremona","CR","019041","Dovera"]
["Lombardia","Fiesco","Fiesco (CR) ","UFFICIO D'AMBITO DELLA PROVINCIA DI CREMONA",305,305,"Cremona","CR","019043","Fiesco"]
["Lombardia","Formigara","Formigara (CR) ","UFFICIO D'AMBITO DELLA PROVINCIA DI CREMONA",305,305,"Cremona","CR","019044","Formigara"]
["Lombardia","Gabbioneta-Binanuova","Gabbioneta-Binanuova (CR) ","UFFICIO D'AMBITO DELLA PROVINCIA DI CREMONA",305,305,"Cremona","CR","019045","Gabbioneta-Binanuova"]
["Lombardia","Gadesco-Pieve Delmona","Gadesco-Pieve Delmona (CR) ","UFFICIO D'AMBITO DELLA PROVINCIA DI CREMONA",305,305,"Cremona","CR","019046","Gadesco-Pieve Delmona"]
["Lombardia","Genivolta","Genivolta (CR) ","UFFICIO D'AMBITO DELLA PROVINCIA DI CREMONA",305,305,"Cremona","CR","019047","Genivolta"]
["Lombardia","Gerre de' Caprioli","Gerre de' Caprioli (CR) ","UFFICIO D'AMBITO DELLA PROVINCIA DI CREMONA",305,305,"Cremona","CR","019048","Gerre de' Caprioli"]
["Lombardia","Gombito","Gombito (CR) ","UFFICIO D'AMBITO DELLA PROVINCIA DI CREMONA",305,305,"Cremona","CR","019049","Gombito"]
["Lombardia","Grontardo","Grontardo (CR) ","UFFICIO D'AMBITO DELLA PROVINCIA DI CREMONA",305,305,"Cremona","CR","019050","Grontardo"]
["Lombardia","Grumello Cremonese ed Uniti","Grumello Cremonese ed Uniti (CR) ","UFFICIO D'AMBITO DELLA PROVINCIA DI CREMONA",305,305,"Cremona","CR","019051","Grumello Cremonese ed Uniti"]
["Lombardia","Gussola","Gussola (CR) ","UFFICIO D'AMBITO DELLA PROVINCIA DI CREMONA",305,305,"Cremona","CR","019052","Gussola"]
["Lombardia","Isola Dovarese","Isola Dovarese (CR) ","UFFICIO D'AMBITO DELLA PROVINCIA DI CREMONA",305,305,"Cremona","CR","019053","Isola Dovarese"]
["Lombardia","Izano","Izano (CR) ","UFFICIO D'AMBITO DELLA PROVINCIA DI CREMONA",305,305,"Cremona","CR","019054","Izano"]
["Lombardia","Madignano","Madignano (CR) ","UFFICIO D'AMBITO DELLA PROVINCIA DI CREMONA",305,305,"Cremona","CR","019055","Madignano"]
["Lombardia","Malagnino","Malagnino (CR) ","UFFICIO D'AMBITO DELLA PROVINCIA DI CREMONA",305,305,"Cremona","CR","019056","Malagnino"]
["Lombardia","Martignana di Po","Martignana di Po (CR) ","UFFICIO D'AMBITO DELLA PROVINCIA DI CREMONA",305,305,"Cremona","CR","019057","Martignana di Po"]
["Lombardia","Monte Cremasco","Monte Cremasco (CR) ","UFFICIO D'AMBITO DELLA PROVINCIA DI CREMONA",305,305,"Cremona","CR","019058","Monte Cremasco"]
["Lombardia","Montodine","Montodine (CR) ","UFFICIO D'AMBITO DELLA PROVINCIA DI CREMONA",305,305,"Cremona","CR","019059","Montodine"]
["Lombardia","Moscazzano","Moscazzano (CR) ","UFFICIO D'AMBITO DELLA PROVINCIA DI CREMONA",305,305,"Cremona","CR","019060","Moscazzano"]
["Lombardia","Motta Baluffi","Motta Baluffi (CR) ","UFFICIO D'AMBITO DELLA PROVINCIA DI CREMONA",305,305,"Cremona","CR","019061","Motta Baluffi"]
["Lombardia","Offanengo","Offanengo (CR) ","UFFICIO D'AMBITO DELLA PROVINCIA DI CREMONA",305,305,"Cremona","CR","019062","Offanengo"]
["Lombardia","Olmeneta","Olmeneta (CR) ","UFFICIO D'AMBITO DELLA PROVINCIA DI CREMONA",305,305,"Cremona","CR","019063","Olmeneta"]
["Lombardia","Ostiano","Ostiano (CR) ","UFFICIO D'AMBITO DELLA PROVINCIA DI CREMONA",305,305,"Cremona","CR","019064","Ostiano"]
["Lombardia","Paderno Ponchielli","Paderno Ponchielli (CR) ","UFFICIO D'AMBITO DELLA PROVINCIA DI CREMONA",305,305,"Cremona","CR","019065","Paderno Ponchielli"]
["Lombardia","Palazzo Pignano","Palazzo Pignano (CR) ","UFFICIO D'AMBITO DELLA PROVINCIA DI CREMONA",305,305,"Cremona","CR","019066","Palazzo Pignano"]
["Lombardia","Pandino","Pandino (CR) ","UFFICIO D'AMBITO DELLA PROVINCIA DI CREMONA",305,305,"Cremona","CR","019067","Pandino"]
["Lombardia","Persico Dosimo","Persico Dosimo (CR) ","UFFICIO D'AMBITO DELLA PROVINCIA DI CREMONA",305,305,"Cremona","CR","019068","Persico Dosimo"]
["Lombardia","Pescarolo ed Uniti","Pescarolo ed Uniti (CR) ","UFFICIO D'AMBITO DELLA PROVINCIA DI CREMONA",305,305,"Cremona","CR","019069","Pescarolo ed Uniti"]
["Lombardia","Pessina Cremonese","Pessina Cremonese (CR) ","UFFICIO D'AMBITO DELLA PROVINCIA DI CREMONA",305,305,"Cremona","CR","019070","Pessina Cremonese"]
["Lombardia","Pianengo","Pianengo (CR) ","UFFICIO D'AMBITO DELLA PROVINCIA DI CREMONA",305,305,"Cremona","CR","019072","Pianengo"]
["Lombardia","Pieranica","Pieranica (CR) ","UFFICIO D'AMBITO DELLA PROVINCIA DI CREMONA",305,305,"Cremona","CR","019073","Pieranica"]
["Lombardia","Pieve d'Olmi","Pieve d'Olmi (CR) ","UFFICIO D'AMBITO DELLA PROVINCIA DI CREMONA",305,305,"Cremona","CR","019074","Pieve d'Olmi"]
["Lombardia","Pieve San Giacomo","Pieve San Giacomo (CR) ","UFFICIO D'AMBITO DELLA PROVINCIA DI CREMONA",305,305,"Cremona","CR","019075","Pieve San Giacomo"]
["Lombardia","Pizzighettone","Pizzighettone (CR) ","UFFICIO D'AMBITO DELLA PROVINCIA DI CREMONA",305,305,"Cremona","CR","019076","Pizzighettone"]
["Lombardia","Pozzaglio ed Uniti","Pozzaglio ed Uniti (CR) ","UFFICIO D'AMBITO DELLA PROVINCIA DI CREMONA",305,305,"Cremona","CR","019077","Pozzaglio ed Uniti"]
["Lombardia","Quintano","Quintano (CR) ","UFFICIO D'AMBITO DELLA PROVINCIA DI CREMONA",305,305,"Cremona","CR","019078","Quintano"]
["Lombardia","Ricengo","Ricengo (CR) ","UFFICIO D'AMBITO DELLA PROVINCIA DI CREMONA",305,305,"Cremona","CR","019079","Ricengo"]
["Lombardia","Ripalta Arpina","Ripalta Arpina (CR) ","UFFICIO D'AMBITO DELLA PROVINCIA DI CREMONA",305,305,"Cremona","CR","019080","Ripalta Arpina"]
["Lombardia","Ripalta Cremasca","Ripalta Cremasca (CR) ","UFFICIO D'AMBITO DELLA PROVINCIA DI CREMONA",305,305,"Cremona","CR","019081","Ripalta Cremasca"]
["Lombardia","Ripalta Guerina","Ripalta Guerina (CR) ","UFFICIO D'AMBITO DELLA PROVINCIA DI CREMONA",305,305,"Cremona","CR","019082","Ripalta Guerina"]
["Lombardia","Rivarolo del Re ed Uniti","Rivarolo del Re ed Uniti (CR) ","UFFICIO D'AMBITO DELLA PROVINCIA DI CREMONA",305,305,"Cremona","CR","019083","Rivarolo del Re ed Uniti"]
["Lombardia","Rivolta d'Adda","Rivolta d'Adda (CR) ","UFFICIO D'AMBITO DELLA PROVINCIA DI CREMONA",305,305,"Cremona","CR","019084","Rivolta d'Adda"]
["Lombardia","Robecco d'Oglio","Robecco d'Oglio (CR) ","UFFICIO D'AMBITO DELLA PROVINCIA DI CREMONA",305,305,"Cremona","CR","019085","Robecco d'Oglio"]
["Lombardia","Romanengo","Romanengo (CR) ","UFFICIO D'AMBITO DELLA PROVINCIA DI CREMONA",305,305,"Cremona","CR","019086","Romanengo"]
["Lombardia","Salvirola","Salvirola (CR) ","UFFICIO D'AMBITO DELLA PROVINCIA DI CREMONA",305,305,"Cremona","CR","019087","Salvirola"]
["Lombardia","San Bassano","San Bassano (CR) ","UFFICIO D'AMBITO DELLA PROVINCIA DI CREMONA",305,305,"Cremona","CR","019088","San Bassano"]
["Lombardia","San Daniele Po","San Daniele Po (CR) ","UFFICIO D'AMBITO DELLA PROVINCIA DI CREMONA",305,305,"Cremona","CR","019089","San Daniele Po"]
["Lombardia","San Giovanni in Croce","San Giovanni in Croce (CR) ","UFFICIO D'AMBITO DELLA PROVINCIA DI CREMONA",305,305,"Cremona","CR","019090","San Giovanni in Croce"]
["Lombardia","San Martino del Lago","San Martino del Lago (CR) ","UFFICIO D'AMBITO DELLA PROVINCIA DI CREMONA",305,305,"Cremona","CR","019091","San Martino del Lago"]
["Lombardia","Scandolara Ravara","Scandolara Ravara (CR) ","UFFICIO D'AMBITO DELLA PROVINCIA DI CREMONA",305,305,"Cremona","CR","019092","Scandolara Ravara"]
["Lombardia","Scandolara Ripa d'Oglio","Scandolara Ripa d'Oglio (CR) ","UFFICIO D'AMBITO DELLA PROVINCIA DI CREMONA",305,305,"Cremona","CR","019093","Scandolara Ripa d'Oglio"]
["Lombardia","Sergnano","Sergnano (CR) ","UFFICIO D'AMBITO DELLA PROVINCIA DI CREMONA",305,305,"Cremona","CR","019094","Sergnano"]
["Lombardia","Sesto ed Uniti","Sesto ed Uniti (CR) ","UFFICIO D'AMBITO DELLA PROVINCIA DI CREMONA",305,305,"Cremona","CR","019095","Sesto ed Uniti"]
["Lombardia","Solarolo Rainerio","Solarolo Rainerio (CR) ","UFFICIO D'AMBITO DELLA PROVINCIA DI CREMONA",305,305,"Cremona","CR","019096","Solarolo Rainerio"]
["Lombardia","Soncino","Soncino (CR) ","UFFICIO D'AMBITO DELLA PROVINCIA DI CREMONA",305,305,"Cremona","CR","019097","Soncino"]
["Lombardia","Soresina","Soresina (CR) ","UFFICIO D'AMBITO DELLA PROVINCIA DI CREMONA",305,305,"Cremona","CR","019098","Soresina"]
["Lombardia","Sospiro","Sospiro (CR) ","UFFICIO D'AMBITO DELLA PROVINCIA DI CREMONA",305,305,"Cremona","CR","019099","Sospiro"]
["Lombardia","Spinadesco","Spinadesco (CR) ","UFFICIO D'AMBITO DELLA PROVINCIA DI CREMONA",305,305,"Cremona","CR","019100","Spinadesco"]
["Lombardia","Spineda","Spineda (CR) ","UFFICIO D'AMBITO DELLA PROVINCIA DI CREMONA",305,305,"Cremona","CR","019101","Spineda"]
["Lombardia","Spino d'Adda","Spino d'Adda (CR) ","UFFICIO D'AMBITO DELLA PROVINCIA DI CREMONA",305,305,"Cremona","CR","019102","Spino d'Adda"]
["Lombardia","Stagno Lombardo","Stagno Lombardo (CR) ","UFFICIO D'AMBITO DELLA PROVINCIA DI CREMONA",305,305,"Cremona","CR","019103","Stagno Lombardo"]
["Lombardia","Ticengo","Ticengo (CR) ","UFFICIO D'AMBITO DELLA PROVINCIA DI CREMONA",305,305,"Cremona","CR","019104","Ticengo"]
["Lombardia","Torlino Vimercati","Torlino Vimercati (CR) ","UFFICIO D'AMBITO DELLA PROVINCIA DI CREMONA",305,305,"Cremona","CR","019105","Torlino Vimercati"]
["Lombardia","Tornata","Tornata (CR) ","UFFICIO D'AMBITO DELLA PROVINCIA DI CREMONA",305,305,"Cremona","CR","019106","Tornata"]
["Lombardia","Torre de' Picenardi","Torre de' Picenardi (CR) ","UFFICIO D'AMBITO DELLA PROVINCIA DI CREMONA",305,305,"Cremona","CR","019107","Torre de' Picenardi"]
["Lombardia","Torricella del Pizzo","Torricella del Pizzo (CR) ","UFFICIO D'AMBITO DELLA PROVINCIA DI CREMONA",305,305,"Cremona","CR","019108","Torricella del Pizzo"]
["Lombardia","Trescore Cremasco","Trescore Cremasco (CR) ","UFFICIO D'AMBITO DELLA PROVINCIA DI CREMONA",305,305,"Cremona","CR","019109","Trescore Cremasco"]
["Lombardia","Trigolo","Trigolo (CR) ","UFFICIO D'AMBITO DELLA PROVINCIA DI CREMONA",305,305,"Cremona","CR","019110","Trigolo"]
["Lombardia","Vaiano Cremasco","Vaiano Cremasco (CR) ","UFFICIO D'AMBITO DELLA PROVINCIA DI CREMONA",305,305,"Cremona","CR","019111","Vaiano Cremasco"]
["Lombardia","Vailate","Vailate (CR) ","UFFICIO D'AMBITO DELLA PROVINCIA DI CREMONA",305,305,"Cremona","CR","019112","Vailate"]
["Lombardia","Vescovato","Vescovato (CR) ","UFFICIO D'AMBITO DELLA PROVINCIA DI CREMONA",305,305,"Cremona","CR","019113","Vescovato"]
["Lombardia","Volongo","Volongo (CR) ","UFFICIO D'AMBITO DELLA PROVINCIA DI CREMONA",305,305,"Cremona","CR","019114","Volongo"]
["Lombardia","Voltido","Voltido (CR) ","UFFICIO D'AMBITO DELLA PROVINCIA DI CREMONA",305,305,"Cremona","CR","019115","Voltido"]
["Lombardia","Piadena Drizzona","Piadena Drizzona (CR) ","UFFICIO D'AMBITO DELLA PROVINCIA DI CREMONA",305,305,"Cremona","CR","019116","Piadena Drizzona"]
["Lombardia","Acquanegra sul Chiese","Acquanegra sul Chiese (MN) ","UFFICIO DI AMBITO DELLA PROVINCIA DI MANTOVA",309,309,"Mantova","MN","020001","Acquanegra sul Chiese"]
["Lombardia","Asola","Asola (MN) ","UFFICIO DI AMBITO DELLA PROVINCIA DI MANTOVA",309,309,"Mantova","MN","020002","Asola"]
["Lombardia","Bagnolo San Vito","Bagnolo San Vito (MN) ","UFFICIO DI AMBITO DELLA PROVINCIA DI MANTOVA",309,309,"Mantova","MN","020003","Bagnolo San Vito"]
["Lombardia","Bozzolo","Bozzolo (MN) ","UFFICIO DI AMBITO DELLA PROVINCIA DI MANTOVA",309,309,"Mantova","MN","020007","Bozzolo"]
["Lombardia","Canneto sull'Oglio","Canneto sull'Oglio (MN) ","UFFICIO DI AMBITO DELLA PROVINCIA DI MANTOVA",309,309,"Mantova","MN","020008","Canneto sull'Oglio"]
["Lombardia","Casalmoro","Casalmoro (MN) ","UFFICIO DI AMBITO DELLA PROVINCIA DI MANTOVA",309,309,"Mantova","MN","020010","Casalmoro"]
["Lombardia","Casaloldo","Casaloldo (MN) ","UFFICIO DI AMBITO DELLA PROVINCIA DI MANTOVA",309,309,"Mantova","MN","020011","Casaloldo"]
["Lombardia","Casalromano","Casalromano (MN) ","UFFICIO DI AMBITO DELLA PROVINCIA DI MANTOVA",309,309,"Mantova","MN","020012","Casalromano"]
["Lombardia","Castelbelforte","Castelbelforte (MN) ","UFFICIO DI AMBITO DELLA PROVINCIA DI MANTOVA",309,309,"Mantova","MN","020013","Castelbelforte"]
["Lombardia","Castel d'Ario","Castel d'Ario (MN) ","UFFICIO DI AMBITO DELLA PROVINCIA DI MANTOVA",309,309,"Mantova","MN","020014","Castel d'Ario"]
["Lombardia","Castel Goffredo","Castel Goffredo (MN) ","UFFICIO DI AMBITO DELLA PROVINCIA DI MANTOVA",309,309,"Mantova","MN","020015","Castel Goffredo"]
["Lombardia","Castellucchio","Castellucchio (MN) ","UFFICIO DI AMBITO DELLA PROVINCIA DI MANTOVA",309,309,"Mantova","MN","020016","Castellucchio"]
["Lombardia","Castiglione delle Stiviere","Castiglione delle Stiviere (MN) ","UFFICIO DI AMBITO DELLA PROVINCIA DI MANTOVA",309,309,"Mantova","MN","020017","Castiglione delle Stiviere"]
["Lombardia","Cavriana","Cavriana (MN) ","UFFICIO DI AMBITO DELLA PROVINCIA DI MANTOVA",309,309,"Mantova","MN","020018","Cavriana"]
["Lombardia","Ceresara","Ceresara (MN) ","UFFICIO DI AMBITO DELLA PROVINCIA DI MANTOVA",309,309,"Mantova","MN","020019","Ceresara"]
["Lombardia","Commessaggio","Commessaggio (MN) ","UFFICIO DI AMBITO DELLA PROVINCIA DI MANTOVA",309,309,"Mantova","MN","020020","Commessaggio"]
["Lombardia","Curtatone","Curtatone (MN) ","UFFICIO DI AMBITO DELLA PROVINCIA DI MANTOVA",309,309,"Mantova","MN","020021","Curtatone"]
["Lombardia","Dosolo","Dosolo (MN) ","UFFICIO DI AMBITO DELLA PROVINCIA DI MANTOVA",309,309,"Mantova","MN","020022","Dosolo"]
["Lombardia","Gazoldo degli Ippoliti","Gazoldo degli Ippoliti (MN) ","UFFICIO DI AMBITO DELLA PROVINCIA DI MANTOVA",309,309,"Mantova","MN","020024","Gazoldo degli Ippoliti"]
["Lombardia","Gazzuolo","Gazzuolo (MN) ","UFFICIO DI AMBITO DELLA PROVINCIA DI MANTOVA",309,309,"Mantova","MN","020025","Gazzuolo"]
["Lombardia","Goito","Goito (MN) ","UFFICIO DI AMBITO DELLA PROVINCIA DI MANTOVA",309,309,"Mantova","MN","020026","Goito"]
["Lombardia","Gonzaga","Gonzaga (MN) ","UFFICIO DI AMBITO DELLA PROVINCIA DI MANTOVA",309,309,"Mantova","MN","020027","Gonzaga"]
["Lombardia","Guidizzolo","Guidizzolo (MN) ","UFFICIO DI AMBITO DELLA PROVINCIA DI MANTOVA",309,309,"Mantova","MN","020028","Guidizzolo"]
["Lombardia","Magnacavallo","Magnacavallo (MN) ","UFFICIO DI AMBITO DELLA PROVINCIA DI MANTOVA",309,309,"Mantova","MN","020029","Magnacavallo"]
["Lombardia","Mantova","Mantova (MN) ","UFFICIO DI AMBITO DELLA PROVINCIA DI MANTOVA",309,309,"Mantova","MN","020030","Mantova"]
["Lombardia","Marcaria","Marcaria (MN) ","UFFICIO DI AMBITO DELLA PROVINCIA DI MANTOVA",309,309,"Mantova","MN","020031","Marcaria"]
["Lombardia","Mariana Mantovana","Mariana Mantovana (MN) ","UFFICIO DI AMBITO DELLA PROVINCIA DI MANTOVA",309,309,"Mantova","MN","020032","Mariana Mantovana"]
["Lombardia","Marmirolo","Marmirolo (MN) ","UFFICIO DI AMBITO DELLA PROVINCIA DI MANTOVA",309,309,"Mantova","MN","020033","Marmirolo"]
["Lombardia","Medole","Medole (MN) ","UFFICIO DI AMBITO DELLA PROVINCIA DI MANTOVA",309,309,"Mantova","MN","020034","Medole"]
["Lombardia","Moglia","Moglia (MN) ","UFFICIO DI AMBITO DELLA PROVINCIA DI MANTOVA",309,309,"Mantova","MN","020035","Moglia"]
["Lombardia","Monzambano","Monzambano (MN) ","UFFICIO DI AMBITO DELLA PROVINCIA DI MANTOVA",309,309,"Mantova","MN","020036","Monzambano"]
["Lombardia","Motteggiana","Motteggiana (MN) ","UFFICIO DI AMBITO DELLA PROVINCIA DI MANTOVA",309,309,"Mantova","MN","020037","Motteggiana"]
["Lombardia","Ostiglia","Ostiglia (MN) ","UFFICIO DI AMBITO DELLA PROVINCIA DI MANTOVA",309,309,"Mantova","MN","020038","Ostiglia"]
["Lombardia","Pegognaga","Pegognaga (MN) ","UFFICIO DI AMBITO DELLA PROVINCIA DI MANTOVA",309,309,"Mantova","MN","020039","Pegognaga"]
["Lombardia","Piubega","Piubega (MN) ","UFFICIO DI AMBITO DELLA PROVINCIA DI MANTOVA",309,309,"Mantova","MN","020041","Piubega"]
["Lombardia","Poggio Rusco","Poggio Rusco (MN) ","UFFICIO DI AMBITO DELLA PROVINCIA DI MANTOVA",309,309,"Mantova","MN","020042","Poggio Rusco"]
["Lombardia","Pomponesco","Pomponesco (MN) ","UFFICIO DI AMBITO DELLA PROVINCIA DI MANTOVA",309,309,"Mantova","MN","020043","Pomponesco"]
["Lombardia","Ponti sul Mincio","Ponti sul Mincio (MN) ","UFFICIO DI AMBITO DELLA PROVINCIA DI MANTOVA",309,309,"Mantova","MN","020044","Ponti sul Mincio"]
["Lombardia","Porto Mantovano","Porto Mantovano (MN) ","UFFICIO DI AMBITO DELLA PROVINCIA DI MANTOVA",309,309,"Mantova","MN","020045","Porto Mantovano"]
["Lombardia","Quingentole","Quingentole (MN) ","UFFICIO DI AMBITO DELLA PROVINCIA DI MANTOVA",309,309,"Mantova","MN","020046","Quingentole"]
["Lombardia","Quistello","Quistello (MN) ","UFFICIO DI AMBITO DELLA PROVINCIA DI MANTOVA",309,309,"Mantova","MN","020047","Quistello"]
["Lombardia","Redondesco","Redondesco (MN) ","UFFICIO DI AMBITO DELLA PROVINCIA DI MANTOVA",309,309,"Mantova","MN","020048","Redondesco"]
["Lombardia","Rivarolo Mantovano","Rivarolo Mantovano (MN) ","UFFICIO DI AMBITO DELLA PROVINCIA DI MANTOVA",309,309,"Mantova","MN","020050","Rivarolo Mantovano"]
["Lombardia","Rodigo","Rodigo (MN) ","UFFICIO DI AMBITO DELLA PROVINCIA DI MANTOVA",309,309,"Mantova","MN","020051","Rodigo"]
["Lombardia","Roncoferraro","Roncoferraro (MN) ","UFFICIO DI AMBITO DELLA PROVINCIA DI MANTOVA",309,309,"Mantova","MN","020052","Roncoferraro"]
["Lombardia","Roverbella","Roverbella (MN) ","UFFICIO DI AMBITO DELLA PROVINCIA DI MANTOVA",309,309,"Mantova","MN","020053","Roverbella"]
["Lombardia","Sabbioneta","Sabbioneta (MN) ","UFFICIO DI AMBITO DELLA PROVINCIA DI MANTOVA",309,309,"Mantova","MN","020054","Sabbioneta"]
["Lombardia","San Benedetto Po","San Benedetto Po (MN) ","UFFICIO DI AMBITO DELLA PROVINCIA DI MANTOVA",309,309,"Mantova","MN","020055","San Benedetto Po"]
["Lombardia","San Giacomo delle Segnate","San Giacomo delle Segnate (MN) ","UFFICIO DI AMBITO DELLA PROVINCIA DI MANTOVA",309,309,"Mantova","MN","020056","San Giacomo delle Segnate"]
["Lombardia","San Giorgio Bigarello","San Giorgio Bigarello (MN) ","UFFICIO DI AMBITO DELLA PROVINCIA DI MANTOVA",309,309,"Mantova","MN","020057","San Giorgio Bigarello"]
["Lombardia","San Giovanni del Dosso","San Giovanni del Dosso (MN) ","UFFICIO DI AMBITO DELLA PROVINCIA DI MANTOVA",309,309,"Mantova","MN","020058","San Giovanni del Dosso"]
["Lombardia","San Martino dall'Argine","San Martino dall'Argine (MN) ","UFFICIO DI AMBITO DELLA PROVINCIA DI MANTOVA",309,309,"Mantova","MN","020059","San Martino dall'Argine"]
["Lombardia","Schivenoglia","Schivenoglia (MN) ","UFFICIO DI AMBITO DELLA PROVINCIA DI MANTOVA",309,309,"Mantova","MN","020060","Schivenoglia"]
["Lombardia","Sermide e Felonica","Sermide e Felonica (MN) ","UFFICIO DI AMBITO DELLA PROVINCIA DI MANTOVA",309,309,"Mantova","MN","020061","Sermide e Felonica"]
["Lombardia","Serravalle a Po","Serravalle a Po (MN) ","UFFICIO DI AMBITO DELLA PROVINCIA DI MANTOVA",309,309,"Mantova","MN","020062","Serravalle a Po"]
["Lombardia","Solferino","Solferino (MN) ","UFFICIO DI AMBITO DELLA PROVINCIA DI MANTOVA",309,309,"Mantova","MN","020063","Solferino"]
["Lombardia","Sustinente","Sustinente (MN) ","UFFICIO DI AMBITO DELLA PROVINCIA DI MANTOVA",309,309,"Mantova","MN","020064","Sustinente"]
["Lombardia","Suzzara","Suzzara (MN) ","UFFICIO DI AMBITO DELLA PROVINCIA DI MANTOVA",309,309,"Mantova","MN","020065","Suzzara"]
["Lombardia","Viadana","Viadana (MN) ","UFFICIO DI AMBITO DELLA PROVINCIA DI MANTOVA",309,309,"Mantova","MN","020066","Viadana"]
["Lombardia","Villimpenta","Villimpenta (MN) ","UFFICIO DI AMBITO DELLA PROVINCIA DI MANTOVA",309,309,"Mantova","MN","020068","Villimpenta"]
["Lombardia","Volta Mantovana","Volta Mantovana (MN) ","UFFICIO DI AMBITO DELLA PROVINCIA DI MANTOVA",309,309,"Mantova","MN","020070","Volta Mantovana"]
["Lombardia","Borgo Virgilio","Borgo Virgilio (MN) ","UFFICIO DI AMBITO DELLA PROVINCIA DI MANTOVA",309,309,"Mantova","MN","020071","Borgo Virgilio"]
["Lombardia","Borgo Mantovano","Borgo Mantovano (MN) ","UFFICIO DI AMBITO DELLA PROVINCIA DI MANTOVA",309,309,"Mantova","MN","020072","Borgo Mantovano"]
["Lombardia","Borgocarbonara","Borgocarbonara (MN) ","UFFICIO DI AMBITO DELLA PROVINCIA DI MANTOVA",309,309,"Mantova","MN","020073","Borgocarbonara"]
["Trentino-Alto Adige/Südtirol","Aldino","Aldino (BZ) ","ATO TRENTINO-ALTO ADIGE",402,402,"Bolzano/Bozen","BZ","021001","Aldino"]
["Trentino-Alto Adige/Südtirol","Andriano","Andriano (BZ) ","ATO TRENTINO-ALTO ADIGE",402,402,"Bolzano/Bozen","BZ","021002","Andriano"]
["Trentino-Alto Adige/Südtirol","Anterivo","Anterivo (BZ) ","ATO TRENTINO-ALTO ADIGE",402,402,"Bolzano/Bozen","BZ","021003","Anterivo"]
["Trentino-Alto Adige/Südtirol","Appiano sulla strada del vino","Appiano sulla strada del vino (BZ) ","ATO TRENTINO-ALTO ADIGE",402,402,"Bolzano/Bozen","BZ","021004","Appiano sulla strada del vino"]
["Trentino-Alto Adige/Südtirol","Avelengo","Avelengo (BZ) ","ATO TRENTINO-ALTO ADIGE",402,402,"Bolzano/Bozen","BZ","021005","Avelengo"]
["Trentino-Alto Adige/Südtirol","Badia","Badia (BZ) ","ATO TRENTINO-ALTO ADIGE",403,403,"Bolzano/Bozen","BZ","021006","Badia"]
["Trentino-Alto Adige/Südtirol","Barbiano","Barbiano (BZ) ","ATO TRENTINO-ALTO ADIGE",405,405,"Bolzano/Bozen","BZ","021007","Barbiano"]
["Trentino-Alto Adige/Südtirol","Bolzano","Bolzano (BZ) ","ATO TRENTINO-ALTO ADIGE",402,402,"Bolzano/Bozen","BZ","021008","Bolzano"]
["Trentino-Alto Adige/Südtirol","Braies","Braies (BZ) ","ATO TRENTINO-ALTO ADIGE",403,403,"Bolzano/Bozen","BZ","021009","Braies"]
["Trentino-Alto Adige/Südtirol","Brennero","Brennero (BZ) ","ATO TRENTINO-ALTO ADIGE",405,405,"Bolzano/Bozen","BZ","021010","Brennero"]
["Trentino-Alto Adige/Südtirol","Bressanone","Bressanone (BZ) ","ATO TRENTINO-ALTO ADIGE",405,405,"Bolzano/Bozen","BZ","021011","Bressanone"]
["Trentino-Alto Adige/Südtirol","Bronzolo","Bronzolo (BZ) ","ATO TRENTINO-ALTO ADIGE",402,402,"Bolzano/Bozen","BZ","021012","Bronzolo"]
["Trentino-Alto Adige/Südtirol","Brunico","Brunico (BZ) ","ATO TRENTINO-ALTO ADIGE",403,403,"Bolzano/Bozen","BZ","021013","Brunico"]
["Trentino-Alto Adige/Südtirol","Caines","Caines (BZ) ","ATO TRENTINO-ALTO ADIGE",402,402,"Bolzano/Bozen","BZ","021014","Caines"]
["Trentino-Alto Adige/Südtirol","Caldaro sulla strada del vino","Caldaro sulla strada del vino (BZ) ","ATO TRENTINO-ALTO ADIGE",402,402,"Bolzano/Bozen","BZ","021015","Caldaro sulla strada del vino"]
["Trentino-Alto Adige/Südtirol","Campo di Trens","Campo di Trens (BZ) ","ATO TRENTINO-ALTO ADIGE",405,405,"Bolzano/Bozen","BZ","021016","Campo di Trens"]
["Trentino-Alto Adige/Südtirol","Campo Tures","Campo Tures (BZ) ","ATO TRENTINO-ALTO ADIGE",403,403,"Bolzano/Bozen","BZ","021017","Campo Tures"]
["Trentino-Alto Adige/Südtirol","Castelbello-Ciardes","Castelbello-Ciardes (BZ) ","ATO TRENTINO-ALTO ADIGE",404,404,"Bolzano/Bozen","BZ","021018","Castelbello-Ciardes"]
["Trentino-Alto Adige/Südtirol","Castelrotto","Castelrotto (BZ) ","ATO TRENTINO-ALTO ADIGE",402,402,"Bolzano/Bozen","BZ","021019","Castelrotto"]
["Trentino-Alto Adige/Südtirol","Cermes","Cermes (BZ) ","ATO TRENTINO-ALTO ADIGE",402,402,"Bolzano/Bozen","BZ","021020","Cermes"]
["Trentino-Alto Adige/Südtirol","Chienes","Chienes (BZ) ","ATO TRENTINO-ALTO ADIGE",403,403,"Bolzano/Bozen","BZ","021021","Chienes"]
["Trentino-Alto Adige/Südtirol","Chiusa","Chiusa (BZ) ","ATO TRENTINO-ALTO ADIGE",405,405,"Bolzano/Bozen","BZ","021022","Chiusa"]
["Trentino-Alto Adige/Südtirol","Cornedo all'Isarco","Cornedo all'Isarco (BZ) ","ATO TRENTINO-ALTO ADIGE",402,402,"Bolzano/Bozen","BZ","021023","Cornedo all'Isarco"]
["Trentino-Alto Adige/Südtirol","Cortaccia sulla strada del vino","Cortaccia sulla strada del vino (BZ) ","ATO TRENTINO-ALTO ADIGE",402,402,"Bolzano/Bozen","BZ","021024","Cortaccia sulla strada del vino"]
["Trentino-Alto Adige/Südtirol","Cortina sulla strada del vino","Cortina sulla strada del vino (BZ) ","ATO TRENTINO-ALTO ADIGE",402,402,"Bolzano/Bozen","BZ","021025","Cortina sulla strada del vino"]
["Trentino-Alto Adige/Südtirol","Corvara in Badia","Corvara in Badia (BZ) ","ATO TRENTINO-ALTO ADIGE",403,403,"Bolzano/Bozen","BZ","021026","Corvara in Badia"]
["Trentino-Alto Adige/Südtirol","Curon Venosta","Curon Venosta (BZ) ","ATO TRENTINO-ALTO ADIGE",404,404,"Bolzano/Bozen","BZ","021027","Curon Venosta"]
["Trentino-Alto Adige/Südtirol","Dobbiaco","Dobbiaco (BZ) ","ATO TRENTINO-ALTO ADIGE",403,403,"Bolzano/Bozen","BZ","021028","Dobbiaco"]
["Trentino-Alto Adige/Südtirol","Egna","Egna (BZ) ","ATO TRENTINO-ALTO ADIGE",402,402,"Bolzano/Bozen","BZ","021029","Egna"]
["Trentino-Alto Adige/Südtirol","Falzes","Falzes (BZ) ","ATO TRENTINO-ALTO ADIGE",403,403,"Bolzano/Bozen","BZ","021030","Falzes"]
["Trentino-Alto Adige/Südtirol","Fiè allo Sciliar","Fiè allo Sciliar (BZ) ","ATO TRENTINO-ALTO ADIGE",402,402,"Bolzano/Bozen","BZ","021031","Fiè allo Sciliar"]
["Trentino-Alto Adige/Südtirol","Fortezza","Fortezza (BZ) ","ATO TRENTINO-ALTO ADIGE",405,405,"Bolzano/Bozen","BZ","021032","Fortezza"]
["Trentino-Alto Adige/Südtirol","Funes","Funes (BZ) ","ATO TRENTINO-ALTO ADIGE",405,405,"Bolzano/Bozen","BZ","021033","Funes"]
["Trentino-Alto Adige/Südtirol","Gais","Gais (BZ) ","ATO TRENTINO-ALTO ADIGE",403,403,"Bolzano/Bozen","BZ","021034","Gais"]
["Trentino-Alto Adige/Südtirol","Gargazzone","Gargazzone (BZ) ","ATO TRENTINO-ALTO ADIGE",402,402,"Bolzano/Bozen","BZ","021035","Gargazzone"]
["Trentino-Alto Adige/Südtirol","Glorenza","Glorenza (BZ) ","ATO TRENTINO-ALTO ADIGE",404,404,"Bolzano/Bozen","BZ","021036","Glorenza"]
["Trentino-Alto Adige/Südtirol","Laces","Laces (BZ) ","ATO TRENTINO-ALTO ADIGE",404,404,"Bolzano/Bozen","BZ","021037","Laces"]
["Trentino-Alto Adige/Südtirol","Lagundo","Lagundo (BZ) ","ATO TRENTINO-ALTO ADIGE",402,402,"Bolzano/Bozen","BZ","021038","Lagundo"]
["Trentino-Alto Adige/Südtirol","Laion","Laion (BZ) ","ATO TRENTINO-ALTO ADIGE",405,405,"Bolzano/Bozen","BZ","021039","Laion"]
["Trentino-Alto Adige/Südtirol","Laives","Laives (BZ) ","ATO TRENTINO-ALTO ADIGE",402,402,"Bolzano/Bozen","BZ","021040","Laives"]
["Trentino-Alto Adige/Südtirol","Lana","Lana (BZ) ","ATO TRENTINO-ALTO ADIGE",402,402,"Bolzano/Bozen","BZ","021041","Lana"]
["Trentino-Alto Adige/Südtirol","Lasa","Lasa (BZ) ","ATO TRENTINO-ALTO ADIGE",404,404,"Bolzano/Bozen","BZ","021042","Lasa"]
["Trentino-Alto Adige/Südtirol","Lauregno","Lauregno (BZ) ","ATO TRENTINO-ALTO ADIGE",402,402,"Bolzano/Bozen","BZ","021043","Lauregno"]
["Trentino-Alto Adige/Südtirol","Luson","Luson (BZ) ","ATO TRENTINO-ALTO ADIGE",405,405,"Bolzano/Bozen","BZ","021044","Luson"]
["Trentino-Alto Adige/Südtirol","Magrè sulla strada del vino","Magrè sulla strada del vino (BZ) ","ATO TRENTINO-ALTO ADIGE",402,402,"Bolzano/Bozen","BZ","021045","Magrè sulla strada del vino"]
["Trentino-Alto Adige/Südtirol","Malles Venosta","Malles Venosta (BZ) ","ATO TRENTINO-ALTO ADIGE",404,404,"Bolzano/Bozen","BZ","021046","Malles Venosta"]
["Trentino-Alto Adige/Südtirol","Marebbe","Marebbe (BZ) ","ATO TRENTINO-ALTO ADIGE",403,403,"Bolzano/Bozen","BZ","021047","Marebbe"]
["Trentino-Alto Adige/Südtirol","Marlengo","Marlengo (BZ) ","ATO TRENTINO-ALTO ADIGE",402,402,"Bolzano/Bozen","BZ","021048","Marlengo"]
["Trentino-Alto Adige/Südtirol","Martello","Martello (BZ) ","ATO TRENTINO-ALTO ADIGE",404,404,"Bolzano/Bozen","BZ","021049","Martello"]
["Trentino-Alto Adige/Südtirol","Meltina","Meltina (BZ) ","ATO TRENTINO-ALTO ADIGE",402,402,"Bolzano/Bozen","BZ","021050","Meltina"]
["Trentino-Alto Adige/Südtirol","Merano","Merano (BZ) ","ATO TRENTINO-ALTO ADIGE",402,402,"Bolzano/Bozen","BZ","021051","Merano"]
["Trentino-Alto Adige/Südtirol","Monguelfo-Tesido","Monguelfo-Tesido (BZ) ","ATO TRENTINO-ALTO ADIGE",403,403,"Bolzano/Bozen","BZ","021052","Monguelfo-Tesido"]
["Trentino-Alto Adige/Südtirol","Montagna sulla strada del vino","Montagna sulla strada del vino (BZ) ","ATO TRENTINO-ALTO ADIGE",402,402,"Bolzano/Bozen","BZ","021053","Montagna sulla strada del vino"]
["Trentino-Alto Adige/Südtirol","Moso in Passiria","Moso in Passiria (BZ) ","ATO TRENTINO-ALTO ADIGE",402,402,"Bolzano/Bozen","BZ","021054","Moso in Passiria"]
["Trentino-Alto Adige/Südtirol","Nalles","Nalles (BZ) ","ATO TRENTINO-ALTO ADIGE",402,402,"Bolzano/Bozen","BZ","021055","Nalles"]
["Trentino-Alto Adige/Südtirol","Naturno","Naturno (BZ) ","ATO TRENTINO-ALTO ADIGE",402,402,"Bolzano/Bozen","BZ","021056","Naturno"]
["Trentino-Alto Adige/Südtirol","Naz-Sciaves","Naz-Sciaves (BZ) ","ATO TRENTINO-ALTO ADIGE",405,405,"Bolzano/Bozen","BZ","021057","Naz-Sciaves"]
["Trentino-Alto Adige/Südtirol","Nova Levante","Nova Levante (BZ) ","ATO TRENTINO-ALTO ADIGE",402,402,"Bolzano/Bozen","BZ","021058","Nova Levante"]
["Trentino-Alto Adige/Südtirol","Nova Ponente","Nova Ponente (BZ) ","ATO TRENTINO-ALTO ADIGE",402,402,"Bolzano/Bozen","BZ","021059","Nova Ponente"]
["Trentino-Alto Adige/Südtirol","Ora","Ora (BZ) ","ATO TRENTINO-ALTO ADIGE",402,402,"Bolzano/Bozen","BZ","021060","Ora"]
["Trentino-Alto Adige/Südtirol","Ortisei","Ortisei (BZ) ","ATO TRENTINO-ALTO ADIGE",402,402,"Bolzano/Bozen","BZ","021061","Ortisei"]
["Trentino-Alto Adige/Südtirol","Parcines","Parcines (BZ) ","ATO TRENTINO-ALTO ADIGE",402,402,"Bolzano/Bozen","BZ","021062","Parcines"]
["Trentino-Alto Adige/Südtirol","Perca","Perca (BZ) ","ATO TRENTINO-ALTO ADIGE",403,403,"Bolzano/Bozen","BZ","021063","Perca"]
["Trentino-Alto Adige/Südtirol","Plaus","Plaus (BZ) ","ATO TRENTINO-ALTO ADIGE",402,402,"Bolzano/Bozen","BZ","021064","Plaus"]
["Trentino-Alto Adige/Südtirol","Ponte Gardena","Ponte Gardena (BZ) ","ATO TRENTINO-ALTO ADIGE",405,405,"Bolzano/Bozen","BZ","021065","Ponte Gardena"]
["Trentino-Alto Adige/Südtirol","Postal","Postal (BZ) ","ATO TRENTINO-ALTO ADIGE",402,402,"Bolzano/Bozen","BZ","021066","Postal"]
["Trentino-Alto Adige/Südtirol","Prato allo Stelvio","Prato allo Stelvio (BZ) ","ATO TRENTINO-ALTO ADIGE",404,404,"Bolzano/Bozen","BZ","021067","Prato allo Stelvio"]
["Trentino-Alto Adige/Südtirol","Predoi","Predoi (BZ) ","ATO TRENTINO-ALTO ADIGE",403,403,"Bolzano/Bozen","BZ","021068","Predoi"]
["Trentino-Alto Adige/Südtirol","Proves","Proves (BZ) ","ATO TRENTINO-ALTO ADIGE",402,402,"Bolzano/Bozen","BZ","021069","Proves"]
["Trentino-Alto Adige/Südtirol","Racines","Racines (BZ) ","ATO TRENTINO-ALTO ADIGE",405,405,"Bolzano/Bozen","BZ","021070","Racines"]
["Trentino-Alto Adige/Südtirol","Rasun-Anterselva","Rasun-Anterselva (BZ) ","ATO TRENTINO-ALTO ADIGE",403,403,"Bolzano/Bozen","BZ","021071","Rasun-Anterselva"]
["Trentino-Alto Adige/Südtirol","Renon","Renon (BZ) ","ATO TRENTINO-ALTO ADIGE",402,402,"Bolzano/Bozen","BZ","021072","Renon"]
["Trentino-Alto Adige/Südtirol","Rifiano","Rifiano (BZ) ","ATO TRENTINO-ALTO ADIGE",402,402,"Bolzano/Bozen","BZ","021073","Rifiano"]
["Trentino-Alto Adige/Südtirol","Rio di Pusteria","Rio di Pusteria (BZ) ","ATO TRENTINO-ALTO ADIGE",403,403,"Bolzano/Bozen","BZ","021074","Rio di Pusteria"]
["Trentino-Alto Adige/Südtirol","Rodengo","Rodengo (BZ) ","ATO TRENTINO-ALTO ADIGE",403,403,"Bolzano/Bozen","BZ","021075","Rodengo"]
["Trentino-Alto Adige/Südtirol","Salorno sulla strada del vino","Salorno sulla strada del vino (BZ) ","ATO TRENTINO-ALTO ADIGE",402,402,"Bolzano/Bozen","BZ","021076","Salorno sulla strada del vino"]
["Trentino-Alto Adige/Südtirol","San Candido","San Candido (BZ) ","ATO TRENTINO-ALTO ADIGE",403,403,"Bolzano/Bozen","BZ","021077","San Candido"]
["Trentino-Alto Adige/Südtirol","San Genesio Atesino","San Genesio Atesino (BZ) ","ATO TRENTINO-ALTO ADIGE",402,402,"Bolzano/Bozen","BZ","021079","San Genesio Atesino"]
["Trentino-Alto Adige/Südtirol","San Leonardo in Passiria","San Leonardo in Passiria (BZ) ","ATO TRENTINO-ALTO ADIGE",402,402,"Bolzano/Bozen","BZ","021080","San Leonardo in Passiria"]
["Trentino-Alto Adige/Südtirol","San Lorenzo di Sebato","San Lorenzo di Sebato (BZ) ","ATO TRENTINO-ALTO ADIGE",403,403,"Bolzano/Bozen","BZ","021081","San Lorenzo di Sebato"]
["Trentino-Alto Adige/Südtirol","San Martino in Badia","San Martino in Badia (BZ) ","ATO TRENTINO-ALTO ADIGE",403,403,"Bolzano/Bozen","BZ","021082","San Martino in Badia"]
["Trentino-Alto Adige/Südtirol","San Martino in Passiria","San Martino in Passiria (BZ) ","ATO TRENTINO-ALTO ADIGE",402,402,"Bolzano/Bozen","BZ","021083","San Martino in Passiria"]
["Trentino-Alto Adige/Südtirol","San Pancrazio","San Pancrazio (BZ) ","ATO TRENTINO-ALTO ADIGE",402,402,"Bolzano/Bozen","BZ","021084","San Pancrazio"]
["Trentino-Alto Adige/Südtirol","Santa Cristina Valgardena","Santa Cristina Valgardena (BZ) ","ATO TRENTINO-ALTO ADIGE",402,402,"Bolzano/Bozen","BZ","021085","Santa Cristina Valgardena"]
["Trentino-Alto Adige/Südtirol","Sarentino","Sarentino (BZ) ","ATO TRENTINO-ALTO ADIGE",402,402,"Bolzano/Bozen","BZ","021086","Sarentino"]
["Trentino-Alto Adige/Südtirol","Scena","Scena (BZ) ","ATO TRENTINO-ALTO ADIGE",402,402,"Bolzano/Bozen","BZ","021087","Scena"]
["Trentino-Alto Adige/Südtirol","Selva dei Molini","Selva dei Molini (BZ) ","ATO TRENTINO-ALTO ADIGE",403,403,"Bolzano/Bozen","BZ","021088","Selva dei Molini"]
["Trentino-Alto Adige/Südtirol","Selva di Val Gardena","Selva di Val Gardena (BZ) ","ATO TRENTINO-ALTO ADIGE",402,402,"Bolzano/Bozen","BZ","021089","Selva di Val Gardena"]
["Trentino-Alto Adige/Südtirol","Senales","Senales (BZ) ","ATO TRENTINO-ALTO ADIGE",404,404,"Bolzano/Bozen","BZ","021091","Senales"]
["Trentino-Alto Adige/Südtirol","Sesto","Sesto (BZ) ","ATO TRENTINO-ALTO ADIGE",403,403,"Bolzano/Bozen","BZ","021092","Sesto"]
["Trentino-Alto Adige/Südtirol","Silandro","Silandro (BZ) ","ATO TRENTINO-ALTO ADIGE",404,404,"Bolzano/Bozen","BZ","021093","Silandro"]
["Trentino-Alto Adige/Südtirol","Sluderno","Sluderno (BZ) ","ATO TRENTINO-ALTO ADIGE",404,404,"Bolzano/Bozen","BZ","021094","Sluderno"]
["Trentino-Alto Adige/Südtirol","Stelvio","Stelvio (BZ) ","ATO TRENTINO-ALTO ADIGE",404,404,"Bolzano/Bozen","BZ","021095","Stelvio"]
["Trentino-Alto Adige/Südtirol","Terento","Terento (BZ) ","ATO TRENTINO-ALTO ADIGE",403,403,"Bolzano/Bozen","BZ","021096","Terento"]
["Trentino-Alto Adige/Südtirol","Terlano","Terlano (BZ) ","ATO TRENTINO-ALTO ADIGE",402,402,"Bolzano/Bozen","BZ","021097","Terlano"]
["Trentino-Alto Adige/Südtirol","Termeno sulla strada del vino","Termeno sulla strada del vino (BZ) ","ATO TRENTINO-ALTO ADIGE",402,402,"Bolzano/Bozen","BZ","021098","Termeno sulla strada del vino"]
["Trentino-Alto Adige/Südtirol","Tesimo","Tesimo (BZ) ","ATO TRENTINO-ALTO ADIGE",402,402,"Bolzano/Bozen","BZ","021099","Tesimo"]
["Trentino-Alto Adige/Südtirol","Tires","Tires (BZ) ","ATO TRENTINO-ALTO ADIGE",402,402,"Bolzano/Bozen","BZ","021100","Tires"]
["Trentino-Alto Adige/Südtirol","Tirolo","Tirolo (BZ) ","ATO TRENTINO-ALTO ADIGE",402,402,"Bolzano/Bozen","BZ","021101","Tirolo"]
["Trentino-Alto Adige/Südtirol","Trodena nel parco naturale","Trodena nel parco naturale (BZ) ","ATO TRENTINO-ALTO ADIGE",402,402,"Bolzano/Bozen","BZ","021102","Trodena nel parco naturale"]
["Trentino-Alto Adige/Südtirol","Tubre","Tubre (BZ) ","ATO TRENTINO-ALTO ADIGE",402,402,"Bolzano/Bozen","BZ","021103","Tubre"]
["Trentino-Alto Adige/Südtirol","Ultimo","Ultimo (BZ) ","ATO TRENTINO-ALTO ADIGE",402,402,"Bolzano/Bozen","BZ","021104","Ultimo"]
["Trentino-Alto Adige/Südtirol","Vadena","Vadena (BZ) ","ATO TRENTINO-ALTO ADIGE",402,402,"Bolzano/Bozen","BZ","021105","Vadena"]
["Trentino-Alto Adige/Südtirol","Valdaora","Valdaora (BZ) ","ATO TRENTINO-ALTO ADIGE",403,403,"Bolzano/Bozen","BZ","021106","Valdaora"]
["Trentino-Alto Adige/Südtirol","Val di Vizze","Val di Vizze (BZ) ","ATO TRENTINO-ALTO ADIGE",405,405,"Bolzano/Bozen","BZ","021107","Val di Vizze"]
["Trentino-Alto Adige/Südtirol","Valle Aurina","Valle Aurina (BZ) ","ATO TRENTINO-ALTO ADIGE",403,403,"Bolzano/Bozen","BZ","021108","Valle Aurina"]
["Trentino-Alto Adige/Südtirol","Valle di Casies","Valle di Casies (BZ) ","NOVARETI SPA",401,401,"Bolzano/Bozen","BZ","021109","Valle di Casies"]
["Trentino-Alto Adige/Südtirol","Vandoies","Vandoies (BZ) ","ATO TRENTINO-ALTO ADIGE",403,403,"Bolzano/Bozen","BZ","021110","Vandoies"]
["Trentino-Alto Adige/Südtirol","Varna","Varna (BZ) ","ATO TRENTINO-ALTO ADIGE",405,405,"Bolzano/Bozen","BZ","021111","Varna"]
["Trentino-Alto Adige/Südtirol","Verano","Verano (BZ) ","ATO TRENTINO-ALTO ADIGE",402,402,"Bolzano/Bozen","BZ","021112","Verano"]
["Trentino-Alto Adige/Südtirol","Villabassa","Villabassa (BZ) ","ATO TRENTINO-ALTO ADIGE",403,403,"Bolzano/Bozen","BZ","021113","Villabassa"]
["Trentino-Alto Adige/Südtirol","Villandro","Villandro (BZ) ","ATO TRENTINO-ALTO ADIGE",405,405,"Bolzano/Bozen","BZ","021114","Villandro"]
["Trentino-Alto Adige/Südtirol","Vipiteno","Vipiteno (BZ) ","ATO TRENTINO-ALTO ADIGE",405,405,"Bolzano/Bozen","BZ","021115","Vipiteno"]
["Trentino-Alto Adige/Südtirol","Velturno","Velturno (BZ) ","ATO TRENTINO-ALTO ADIGE",405,405,"Bolzano/Bozen","BZ","021116","Velturno"]
["Trentino-Alto Adige/Südtirol","La Valle","La Valle (BZ) ","ATO TRENTINO-ALTO ADIGE",403,403,"Bolzano/Bozen","BZ","021117","La Valle"]
["Trentino-Alto Adige/Südtirol","Senale-San Felice","Senale-San Felice (BZ) ","ATO TRENTINO-ALTO ADIGE",402,402,"Bolzano/Bozen","BZ","021118","Senale-San Felice"]
["Trentino-Alto Adige/Südtirol","Ala","Ala (TN) ","NOVARETI SPA",401,401,"Trento","TN","022001","Ala"]
["Trentino-Alto Adige/Südtirol","Albiano","Albiano (TN) ","NOVARETI SPA",401,401,"Trento","TN","022002","Albiano"]
["Trentino-Alto Adige/Südtirol","Aldeno","Aldeno (TN) ","NOVARETI SPA",401,401,"Trento","TN","022003","Aldeno"]
["Trentino-Alto Adige/Südtirol","Andalo","Andalo (TN) ","NOVARETI SPA",401,401,"Trento","TN","022005","Andalo"]
["Trentino-Alto Adige/Südtirol","Arco","Arco (TN) ","NOVARETI SPA",401,401,"Trento","TN","022006","Arco"]
["Trentino-Alto Adige/Südtirol","Avio","Avio (TN) ","NOVARETI SPA",401,401,"Trento","TN","022007","Avio"]
["Trentino-Alto Adige/Südtirol","Baselga di Pinè","Baselga di Pinè (TN) ","NOVARETI SPA",401,401,"Trento","TN","022009","Baselga di Pinè"]
["Trentino-Alto Adige/Südtirol","Bedollo","Bedollo (TN) ","NOVARETI SPA",401,401,"Trento","TN","022011","Bedollo"]
["Trentino-Alto Adige/Südtirol","Besenello","Besenello (TN) ","NOVARETI SPA",401,401,"Trento","TN","022013","Besenello"]
["Trentino-Alto Adige/Südtirol","Bieno","Bieno (TN) ","NOVARETI SPA",401,401,"Trento","TN","022015","Bieno"]
["Trentino-Alto Adige/Südtirol","Bleggio Superiore","Bleggio Superiore (TN) ","NOVARETI SPA",401,401,"Trento","TN","022017","Bleggio Superiore"]
["Trentino-Alto Adige/Südtirol","Bocenago","Bocenago (TN) ","NOVARETI SPA",401,401,"Trento","TN","022018","Bocenago"]
["Trentino-Alto Adige/Südtirol","Bondone","Bondone (TN) ","NOVARETI SPA",401,401,"Trento","TN","022021","Bondone"]
["Trentino-Alto Adige/Südtirol","Borgo Valsugana","Borgo Valsugana (TN) ","NOVARETI SPA",401,401,"Trento","TN","022022","Borgo Valsugana"]
["Trentino-Alto Adige/Südtirol","Brentonico","Brentonico (TN) ","NOVARETI SPA",401,401,"Trento","TN","022025","Brentonico"]
["Trentino-Alto Adige/Südtirol","Bresimo","Bresimo (TN) ","NOVARETI SPA",401,401,"Trento","TN","022026","Bresimo"]
["Trentino-Alto Adige/Südtirol","Caderzone Terme","Caderzone Terme (TN) ","NOVARETI SPA",401,401,"Trento","TN","022029","Caderzone Terme"]
["Trentino-Alto Adige/Südtirol","Calceranica al Lago","Calceranica al Lago (TN) ","NOVARETI SPA",401,401,"Trento","TN","022032","Calceranica al Lago"]
["Trentino-Alto Adige/Südtirol","Caldes","Caldes (TN) ","NOVARETI SPA",401,401,"Trento","TN","022033","Caldes"]
["Trentino-Alto Adige/Südtirol","Caldonazzo","Caldonazzo (TN) ","NOVARETI SPA",401,401,"Trento","TN","022034","Caldonazzo"]
["Trentino-Alto Adige/Südtirol","Calliano","Calliano (TN) ","NOVARETI SPA",401,401,"Trento","TN","022035","Calliano"]
["Trentino-Alto Adige/Südtirol","Campitello di Fassa","Campitello di Fassa (TN) ","NOVARETI SPA",401,401,"Trento","TN","022036","Campitello di Fassa"]
["Trentino-Alto Adige/Südtirol","Campodenno","Campodenno (TN) ","NOVARETI SPA",401,401,"Trento","TN","022037","Campodenno"]
["Trentino-Alto Adige/Südtirol","Canal San Bovo","Canal San Bovo (TN) ","NOVARETI SPA",401,401,"Trento","TN","022038","Canal San Bovo"]
["Trentino-Alto Adige/Südtirol","Canazei","Canazei (TN) ","NOVARETI SPA",401,401,"Trento","TN","022039","Canazei"]
["Trentino-Alto Adige/Südtirol","Capriana","Capriana (TN) ","NOVARETI SPA",401,401,"Trento","TN","022040","Capriana"]
["Trentino-Alto Adige/Südtirol","Carisolo","Carisolo (TN) ","NOVARETI SPA",401,401,"Trento","TN","022042","Carisolo"]
["Trentino-Alto Adige/Südtirol","Carzano","Carzano (TN) ","NOVARETI SPA",401,401,"Trento","TN","022043","Carzano"]
["Trentino-Alto Adige/Südtirol","Castel Condino","Castel Condino (TN) ","NOVARETI SPA",401,401,"Trento","TN","022045","Castel Condino"]
["Trentino-Alto Adige/Südtirol","Castello-Molina di Fiemme","Castello-Molina di Fiemme (TN) ","NOVARETI SPA",401,401,"Trento","TN","022047","Castello-Molina di Fiemme"]
["Trentino-Alto Adige/Südtirol","Castello Tesino","Castello Tesino (TN) ","NOVARETI SPA",401,401,"Trento","TN","022048","Castello Tesino"]
["Trentino-Alto Adige/Südtirol","Castelnuovo","Castelnuovo (TN) ","NOVARETI SPA",401,401,"Trento","TN","022049","Castelnuovo"]
["Trentino-Alto Adige/Südtirol","Cavalese","Cavalese (TN) ","NOVARETI SPA",401,401,"Trento","TN","022050","Cavalese"]
["Trentino-Alto Adige/Südtirol","Cavareno","Cavareno (TN) ","NOVARETI SPA",401,401,"Trento","TN","022051","Cavareno"]
["Trentino-Alto Adige/Südtirol","Cavedago","Cavedago (TN) ","NOVARETI SPA",401,401,"Trento","TN","022052","Cavedago"]
["Trentino-Alto Adige/Südtirol","Cavedine","Cavedine (TN) ","NOVARETI SPA",401,401,"Trento","TN","022053","Cavedine"]
["Trentino-Alto Adige/Südtirol","Cavizzana","Cavizzana (TN) ","NOVARETI SPA",401,401,"Trento","TN","022054","Cavizzana"]
["Trentino-Alto Adige/Südtirol","Cimone","Cimone (TN) ","NOVARETI SPA",401,401,"Trento","TN","022058","Cimone"]
["Trentino-Alto Adige/Südtirol","Cinte Tesino","Cinte Tesino (TN) ","NOVARETI SPA",401,401,"Trento","TN","022059","Cinte Tesino"]
["Trentino-Alto Adige/Südtirol","Cis","Cis (TN) ","NOVARETI SPA",401,401,"Trento","TN","022060","Cis"]
["Trentino-Alto Adige/Südtirol","Civezzano","Civezzano (TN) ","NOVARETI SPA",401,401,"Trento","TN","022061","Civezzano"]
["Trentino-Alto Adige/Südtirol","Cles","Cles (TN) ","NOVARETI SPA",401,401,"Trento","TN","022062","Cles"]
["Trentino-Alto Adige/Südtirol","Commezzadura","Commezzadura (TN) ","NOVARETI SPA",401,401,"Trento","TN","022064","Commezzadura"]
["Trentino-Alto Adige/Südtirol","Croviana","Croviana (TN) ","NOVARETI SPA",401,401,"Trento","TN","022068","Croviana"]
["Trentino-Alto Adige/Südtirol","Dambel","Dambel (TN) ","NOVARETI SPA",401,401,"Trento","TN","022071","Dambel"]
["Trentino-Alto Adige/Südtirol","Denno","Denno (TN) ","NOVARETI SPA",401,401,"Trento","TN","022074","Denno"]
["Trentino-Alto Adige/Südtirol","Drena","Drena (TN) ","NOVARETI SPA",401,401,"Trento","TN","022078","Drena"]
["Trentino-Alto Adige/Südtirol","Dro","Dro (TN) ","NOVARETI SPA",401,401,"Trento","TN","022079","Dro"]
["Trentino-Alto Adige/Südtirol","Fai della Paganella","Fai della Paganella (TN) ","NOVARETI SPA",401,401,"Trento","TN","022081","Fai della Paganella"]
["Trentino-Alto Adige/Südtirol","Fiavè","Fiavè (TN) ","NOVARETI SPA",401,401,"Trento","TN","022083","Fiavè"]
["Trentino-Alto Adige/Südtirol","Fierozzo","Fierozzo (TN) ","NOVARETI SPA",401,401,"Trento","TN","022085","Fierozzo"]
["Trentino-Alto Adige/Südtirol","Folgaria","Folgaria (TN) ","NOVARETI SPA",401,401,"Trento","TN","022087","Folgaria"]
["Trentino-Alto Adige/Südtirol","Fornace","Fornace (TN) ","NOVARETI SPA",401,401,"Trento","TN","022089","Fornace"]
["Trentino-Alto Adige/Südtirol","Frassilongo","Frassilongo (TN) ","NOVARETI SPA",401,401,"Trento","TN","022090","Frassilongo"]
["Trentino-Alto Adige/Südtirol","Garniga Terme","Garniga Terme (TN) ","NOVARETI SPA",401,401,"Trento","TN","022091","Garniga Terme"]
["Trentino-Alto Adige/Südtirol","Giovo","Giovo (TN) ","NOVARETI SPA",401,401,"Trento","TN","022092","Giovo"]
["Trentino-Alto Adige/Südtirol","Giustino","Giustino (TN) ","NOVARETI SPA",401,401,"Trento","TN","022093","Giustino"]
["Trentino-Alto Adige/Südtirol","Grigno","Grigno (TN) ","NOVARETI SPA",401,401,"Trento","TN","022095","Grigno"]
["Trentino-Alto Adige/Südtirol","Imer","Imer (TN) ","NOVARETI SPA",401,401,"Trento","TN","022097","Imer"]
["Trentino-Alto Adige/Südtirol","Isera","Isera (TN) ","NOVARETI SPA",401,401,"Trento","TN","022098","Isera"]
["Trentino-Alto Adige/Südtirol","Lavarone","Lavarone (TN) ","NOVARETI SPA",401,401,"Trento","TN","022102","Lavarone"]
["Trentino-Alto Adige/Südtirol","Lavis","Lavis (TN) ","NOVARETI SPA",401,401,"Trento","TN","022103","Lavis"]
["Trentino-Alto Adige/Südtirol","Levico Terme","Levico Terme (TN) ","NOVARETI SPA",401,401,"Trento","TN","022104","Levico Terme"]
["Trentino-Alto Adige/Südtirol","Livo","Livo (TN) ","NOVARETI SPA",401,401,"Trento","TN","022106","Livo"]
["Trentino-Alto Adige/Südtirol","Lona-Lases","Lona-Lases (TN) ","NOVARETI SPA",401,401,"Trento","TN","022108","Lona-Lases"]
["Trentino-Alto Adige/Südtirol","Luserna","Luserna (TN) ","NOVARETI SPA",401,401,"Trento","TN","022109","Luserna"]
["Trentino-Alto Adige/Südtirol","Malé","Malé (TN) ","NOVARETI SPA",401,401,"Trento","TN","022110","Malé"]
["Trentino-Alto Adige/Südtirol","Massimeno","Massimeno (TN) ","NOVARETI SPA",401,401,"Trento","TN","022112","Massimeno"]
["Trentino-Alto Adige/Südtirol","Mazzin","Mazzin (TN) ","NOVARETI SPA",401,401,"Trento","TN","022113","Mazzin"]
["Trentino-Alto Adige/Südtirol","Mezzana","Mezzana (TN) ","NOVARETI SPA",401,401,"Trento","TN","022114","Mezzana"]
["Trentino-Alto Adige/Südtirol","Mezzano","Mezzano (TN) ","NOVARETI SPA",401,401,"Trento","TN","022115","Mezzano"]
["Trentino-Alto Adige/Südtirol","Mezzocorona","Mezzocorona (TN) ","NOVARETI SPA",401,401,"Trento","TN","022116","Mezzocorona"]
["Trentino-Alto Adige/Südtirol","Mezzolombardo","Mezzolombardo (TN) ","NOVARETI SPA",401,401,"Trento","TN","022117","Mezzolombardo"]
["Trentino-Alto Adige/Südtirol","Moena","Moena (TN) ","NOVARETI SPA",401,401,"Trento","TN","022118","Moena"]
["Trentino-Alto Adige/Südtirol","Molveno","Molveno (TN) ","NOVARETI SPA",401,401,"Trento","TN","022120","Molveno"]
["Trentino-Alto Adige/Südtirol","Mori","Mori (TN) ","NOVARETI SPA",401,401,"Trento","TN","022123","Mori"]
["Trentino-Alto Adige/Südtirol","Nago-Torbole","Nago-Torbole (TN) ","NOVARETI SPA",401,401,"Trento","TN","022124","Nago-Torbole"]
["Trentino-Alto Adige/Südtirol","Nogaredo","Nogaredo (TN) ","NOVARETI SPA",401,401,"Trento","TN","022127","Nogaredo"]
["Trentino-Alto Adige/Südtirol","Nomi","Nomi (TN) ","NOVARETI SPA",401,401,"Trento","TN","022128","Nomi"]
["Trentino-Alto Adige/Südtirol","Novaledo","Novaledo (TN) ","NOVARETI SPA",401,401,"Trento","TN","022129","Novaledo"]
["Trentino-Alto Adige/Südtirol","Ospedaletto","Ospedaletto (TN) ","NOVARETI SPA",401,401,"Trento","TN","022130","Ospedaletto"]
["Trentino-Alto Adige/Südtirol","Ossana","Ossana (TN) ","NOVARETI SPA",401,401,"Trento","TN","022131","Ossana"]
["Trentino-Alto Adige/Südtirol","Palù del Fersina","Palù del Fersina (TN) ","NOVARETI SPA",401,401,"Trento","TN","022133","Palù del Fersina"]
["Trentino-Alto Adige/Südtirol","Panchià","Panchià (TN) ","NOVARETI SPA",401,401,"Trento","TN","022134","Panchià"]
["Trentino-Alto Adige/Südtirol","Ronzo-Chienis","Ronzo-Chienis (TN) ","NOVARETI SPA",401,401,"Trento","TN","022135","Ronzo-Chienis"]
["Trentino-Alto Adige/Südtirol","Peio","Peio (TN) ","NOVARETI SPA",401,401,"Trento","TN","022136","Peio"]
["Trentino-Alto Adige/Südtirol","Pellizzano","Pellizzano (TN) ","NOVARETI SPA",401,401,"Trento","TN","022137","Pellizzano"]
["Trentino-Alto Adige/Südtirol","Pelugo","Pelugo (TN) ","NOVARETI SPA",401,401,"Trento","TN","022138","Pelugo"]
["Trentino-Alto Adige/Südtirol","Pergine Valsugana","Pergine Valsugana (TN) ","NOVARETI SPA",401,401,"Trento","TN","022139","Pergine Valsugana"]
["Trentino-Alto Adige/Südtirol","Pieve Tesino","Pieve Tesino (TN) ","NOVARETI SPA",401,401,"Trento","TN","022142","Pieve Tesino"]
["Trentino-Alto Adige/Südtirol","Pinzolo","Pinzolo (TN) ","NOVARETI SPA",401,401,"Trento","TN","022143","Pinzolo"]
["Trentino-Alto Adige/Südtirol","Pomarolo","Pomarolo (TN) ","NOVARETI SPA",401,401,"Trento","TN","022144","Pomarolo"]
["Trentino-Alto Adige/Südtirol","Predazzo","Predazzo (TN) ","NOVARETI SPA",401,401,"Trento","TN","022147","Predazzo"]
["Trentino-Alto Adige/Südtirol","Rabbi","Rabbi (TN) ","NOVARETI SPA",401,401,"Trento","TN","022150","Rabbi"]
["Trentino-Alto Adige/Südtirol","Riva del Garda","Riva del Garda (TN) ","NOVARETI SPA",401,401,"Trento","TN","022153","Riva del Garda"]
["Trentino-Alto Adige/Südtirol","Romeno","Romeno (TN) ","NOVARETI SPA",401,401,"Trento","TN","022155","Romeno"]
["Trentino-Alto Adige/Südtirol","Roncegno Terme","Roncegno Terme (TN) ","NOVARETI SPA",401,401,"Trento","TN","022156","Roncegno Terme"]
["Trentino-Alto Adige/Südtirol","Ronchi Valsugana","Ronchi Valsugana (TN) ","NOVARETI SPA",401,401,"Trento","TN","022157","Ronchi Valsugana"]
["Trentino-Alto Adige/Südtirol","Ronzone","Ronzone (TN) ","NOVARETI SPA",401,401,"Trento","TN","022159","Ronzone"]
["Trentino-Alto Adige/Südtirol","Roverè della Luna","Roverè della Luna (TN) ","NOVARETI SPA",401,401,"Trento","TN","022160","Roverè della Luna"]
["Trentino-Alto Adige/Südtirol","Rovereto","Rovereto (TN) ","NOVARETI SPA",401,401,"Trento","TN","022161","Rovereto"]
["Trentino-Alto Adige/Südtirol","Ruffrè-Mendola","Ruffrè-Mendola (TN) ","NOVARETI SPA",401,401,"Trento","TN","022162","Ruffrè-Mendola"]
["Trentino-Alto Adige/Südtirol","Rumo","Rumo (TN) ","NOVARETI SPA",401,401,"Trento","TN","022163","Rumo"]
["Trentino-Alto Adige/Südtirol","Sagron Mis","Sagron Mis (TN) ","NOVARETI SPA",401,401,"Trento","TN","022164","Sagron Mis"]
["Trentino-Alto Adige/Südtirol","Samone","Samone (TN) ","NOVARETI SPA",401,401,"Trento","TN","022165","Samone"]
["Trentino-Alto Adige/Südtirol","San Michele all'Adige","San Michele all'Adige (TN) ","NOVARETI SPA",401,401,"Trento","TN","022167","San Michele all'Adige"]
["Trentino-Alto Adige/Südtirol","Sant'Orsola Terme","Sant'Orsola Terme (TN) ","NOVARETI SPA",401,401,"Trento","TN","022168","Sant'Orsola Terme"]
["Trentino-Alto Adige/Südtirol","Sanzeno","Sanzeno (TN) ","NOVARETI SPA",401,401,"Trento","TN","022169","Sanzeno"]
["Trentino-Alto Adige/Südtirol","Sarnonico","Sarnonico (TN) ","NOVARETI SPA",401,401,"Trento","TN","022170","Sarnonico"]
["Trentino-Alto Adige/Südtirol","Scurelle","Scurelle (TN) ","NOVARETI SPA",401,401,"Trento","TN","022171","Scurelle"]
["Trentino-Alto Adige/Südtirol","Segonzano","Segonzano (TN) ","NOVARETI SPA",401,401,"Trento","TN","022172","Segonzano"]
["Trentino-Alto Adige/Südtirol","Sfruz","Sfruz (TN) ","NOVARETI SPA",401,401,"Trento","TN","022173","Sfruz"]
["Trentino-Alto Adige/Südtirol","Soraga di Fassa","Soraga di Fassa (TN) ","NOVARETI SPA",401,401,"Trento","TN","022176","Soraga di Fassa"]
["Trentino-Alto Adige/Südtirol","Sover","Sover (TN) ","NOVARETI SPA",401,401,"Trento","TN","022177","Sover"]
["Trentino-Alto Adige/Südtirol","Spiazzo","Spiazzo (TN) ","NOVARETI SPA",401,401,"Trento","TN","022179","Spiazzo"]
["Trentino-Alto Adige/Südtirol","Spormaggiore","Spormaggiore (TN) ","NOVARETI SPA",401,401,"Trento","TN","022180","Spormaggiore"]
["Trentino-Alto Adige/Südtirol","Sporminore","Sporminore (TN) ","NOVARETI SPA",401,401,"Trento","TN","022181","Sporminore"]
["Trentino-Alto Adige/Südtirol","Stenico","Stenico (TN) ","NOVARETI SPA",401,401,"Trento","TN","022182","Stenico"]
["Trentino-Alto Adige/Südtirol","Storo","Storo (TN) ","NOVARETI SPA",401,401,"Trento","TN","022183","Storo"]
["Trentino-Alto Adige/Südtirol","Strembo","Strembo (TN) ","NOVARETI SPA",401,401,"Trento","TN","022184","Strembo"]
["Trentino-Alto Adige/Südtirol","Telve","Telve (TN) ","NOVARETI SPA",401,401,"Trento","TN","022188","Telve"]
["Trentino-Alto Adige/Südtirol","Telve di Sopra","Telve di Sopra (TN) ","NOVARETI SPA",401,401,"Trento","TN","022189","Telve di Sopra"]
["Trentino-Alto Adige/Südtirol","Tenna","Tenna (TN) ","NOVARETI SPA",401,401,"Trento","TN","022190","Tenna"]
["Trentino-Alto Adige/Südtirol","Tenno","Tenno (TN) ","NOVARETI SPA",401,401,"Trento","TN","022191","Tenno"]
["Trentino-Alto Adige/Südtirol","Terragnolo","Terragnolo (TN) ","NOVARETI SPA",401,401,"Trento","TN","022193","Terragnolo"]
["Trentino-Alto Adige/Südtirol","Terzolas","Terzolas (TN) ","NOVARETI SPA",401,401,"Trento","TN","022195","Terzolas"]
["Trentino-Alto Adige/Südtirol","Tesero","Tesero (TN) ","NOVARETI SPA",401,401,"Trento","TN","022196","Tesero"]
["Trentino-Alto Adige/Südtirol","Tione di Trento","Tione di Trento (TN) ","NOVARETI SPA",401,401,"Trento","TN","022199","Tione di Trento"]
["Trentino-Alto Adige/Südtirol","Ton","Ton (TN) ","NOVARETI SPA",401,401,"Trento","TN","022200","Ton"]
["Trentino-Alto Adige/Südtirol","Torcegno","Torcegno (TN) ","NOVARETI SPA",401,401,"Trento","TN","022202","Torcegno"]
["Trentino-Alto Adige/Südtirol","Trambileno","Trambileno (TN) ","NOVARETI SPA",401,401,"Trento","TN","022203","Trambileno"]
["Trentino-Alto Adige/Südtirol","Trento","Trento (TN) ","NOVARETI SPA",401,401,"Trento","TN","022205","Trento"]
["Trentino-Alto Adige/Südtirol","Valfloriana","Valfloriana (TN) ","NOVARETI SPA",401,401,"Trento","TN","022209","Valfloriana"]
["Trentino-Alto Adige/Südtirol","Vallarsa","Vallarsa (TN) ","NOVARETI SPA",401,401,"Trento","TN","022210","Vallarsa"]
["Trentino-Alto Adige/Südtirol","Vermiglio","Vermiglio (TN) ","NOVARETI SPA",401,401,"Trento","TN","022213","Vermiglio"]
["Trentino-Alto Adige/Südtirol","Vignola-Falesina","Vignola-Falesina (TN) ","NOVARETI SPA",401,401,"Trento","TN","022216","Vignola-Falesina"]
["Trentino-Alto Adige/Südtirol","Villa Lagarina","Villa Lagarina (TN) ","NOVARETI SPA",401,401,"Trento","TN","022222","Villa Lagarina"]
["Trentino-Alto Adige/Südtirol","Volano","Volano (TN) ","NOVARETI SPA",401,401,"Trento","TN","022224","Volano"]
["Trentino-Alto Adige/Südtirol","Ziano di Fiemme","Ziano di Fiemme (TN) ","NOVARETI SPA",401,401,"Trento","TN","022226","Ziano di Fiemme"]
["Trentino-Alto Adige/Südtirol","Comano Terme","Comano Terme (TN) ","NOVARETI SPA",401,401,"Trento","TN","022228","Comano Terme"]
["Trentino-Alto Adige/Südtirol","Ledro","Ledro (TN) ","NOVARETI SPA",401,401,"Trento","TN","022229","Ledro"]
["Trentino-Alto Adige/Südtirol","Predaia","Predaia (TN) ","NOVARETI SPA",401,401,"Trento","TN","022230","Predaia"]
["Trentino-Alto Adige/Südtirol","San Lorenzo Dorsino","San Lorenzo Dorsino (TN) ","NOVARETI SPA",401,401,"Trento","TN","022231","San Lorenzo Dorsino"]
["Trentino-Alto Adige/Südtirol","Valdaone","Valdaone (TN) ","NOVARETI SPA",401,401,"Trento","TN","022232","Valdaone"]
["Trentino-Alto Adige/Südtirol","Dimaro Folgarida","Dimaro Folgarida (TN) ","NOVARETI SPA",401,401,"Trento","TN","022233","Dimaro Folgarida"]
["Trentino-Alto Adige/Südtirol","Pieve di Bono-Prezzo","Pieve di Bono-Prezzo (TN) ","NOVARETI SPA",401,401,"Trento","TN","022234","Pieve di Bono-Prezzo"]
["Trentino-Alto Adige/Südtirol","Altavalle","Altavalle (TN) ","NOVARETI SPA",401,401,"Trento","TN","022235","Altavalle"]
["Trentino-Alto Adige/Südtirol","Altopiano della Vigolana","Altopiano della Vigolana (TN) ","NOVARETI SPA",401,401,"Trento","TN","022236","Altopiano della Vigolana"]
["Trentino-Alto Adige/Südtirol","Amblar-Don","Amblar-Don (TN) ","NOVARETI SPA",401,401,"Trento","TN","022237","Amblar-Don"]
["Trentino-Alto Adige/Südtirol","Borgo Chiese","Borgo Chiese (TN) ","NOVARETI SPA",401,401,"Trento","TN","022238","Borgo Chiese"]
["Trentino-Alto Adige/Südtirol","Borgo Lares","Borgo Lares (TN) ","NOVARETI SPA",401,401,"Trento","TN","022239","Borgo Lares"]
["Trentino-Alto Adige/Südtirol","Castel Ivano","Castel Ivano (TN) ","NOVARETI SPA",401,401,"Trento","TN","022240","Castel Ivano"]
["Trentino-Alto Adige/Südtirol","Cembra Lisignago","Cembra Lisignago (TN) ","NOVARETI SPA",401,401,"Trento","TN","022241","Cembra Lisignago"]
["Trentino-Alto Adige/Südtirol","Contà","Contà (TN) ","NOVARETI SPA",401,401,"Trento","TN","022242","Contà"]
["Trentino-Alto Adige/Südtirol","Madruzzo","Madruzzo (TN) ","NOVARETI SPA",401,401,"Trento","TN","022243","Madruzzo"]
["Trentino-Alto Adige/Südtirol","Porte di Rendena","Porte di Rendena (TN) ","NOVARETI SPA",401,401,"Trento","TN","022244","Porte di Rendena"]
["Trentino-Alto Adige/Südtirol","Primiero San Martino di Castrozza","Primiero San Martino di Castrozza (TN) ","NOVARETI SPA",401,401,"Trento","TN","022245","Primiero San Martino di Castrozza"]
["Trentino-Alto Adige/Südtirol","Sella Giudicarie","Sella Giudicarie (TN) ","NOVARETI SPA",401,401,"Trento","TN","022246","Sella Giudicarie"]
["Trentino-Alto Adige/Südtirol","Tre Ville","Tre Ville (TN) ","NOVARETI SPA",401,401,"Trento","TN","022247","Tre Ville"]
["Trentino-Alto Adige/Südtirol","Vallelaghi","Vallelaghi (TN) ","NOVARETI SPA",401,401,"Trento","TN","022248","Vallelaghi"]
["Trentino-Alto Adige/Südtirol","Ville d'Anaunia","Ville d'Anaunia (TN) ","NOVARETI SPA",401,401,"Trento","TN","022249","Ville d'Anaunia"]
["Trentino-Alto Adige/Südtirol","San Giovanni di Fassa","San Giovanni di Fassa (TN) ","NOVARETI SPA",401,401,"Trento","TN","022250","San Giovanni di Fassa"]
["Trentino-Alto Adige/Südtirol","Terre d'Adige","Terre d'Adige (TN) ","NOVARETI SPA",401,401,"Trento","TN","022251","Terre d'Adige"]
["Trentino-Alto Adige/Südtirol","Borgo d'Anaunia","Borgo d'Anaunia (TN) ","NOVARETI SPA",401,401,"Trento","TN","022252","Borgo d'Anaunia"]
["Trentino-Alto Adige/Südtirol","Novella","Novella (TN) ","NOVARETI SPA",401,401,"Trento","TN","022253","Novella"]
["Trentino-Alto Adige/Südtirol","Ville di Fiemme","Ville di Fiemme (TN) ","NOVARETI SPA",401,401,"Trento","TN","022254","Ville di Fiemme"]
["Veneto","Affi","Affi (VR) ","Consiglio di Bacino Veronese",506,506,"Verona","VR","023001","Affi"]
["Veneto","Albaredo d'Adige","Albaredo d'Adige (VR) ","Consiglio di Bacino Veronese",506,506,"Verona","VR","023002","Albaredo d'Adige"]
["Veneto","Angiari","Angiari (VR) ","Consiglio di Bacino Veronese",506,506,"Verona","VR","023003","Angiari"]
["Veneto","Arcole","Arcole (VR) ","Consiglio di Bacino Veronese",506,506,"Verona","VR","023004","Arcole"]
["Veneto","Badia Calavena","Badia Calavena (VR) ","Consiglio di Bacino Veronese",506,506,"Verona","VR","023005","Badia Calavena"]
["Veneto","Bardolino","Bardolino (VR) ","Consiglio di Bacino Veronese",506,506,"Verona","VR","023006","Bardolino"]
["Veneto","Belfiore","Belfiore (VR) ","Consiglio di Bacino Veronese",506,506,"Verona","VR","023007","Belfiore"]
["Veneto","Bevilacqua","Bevilacqua (VR) ","Consiglio di Bacino Veronese",506,506,"Verona","VR","023008","Bevilacqua"]
["Veneto","Bonavigo","Bonavigo (VR) ","Consiglio di Bacino Veronese",506,506,"Verona","VR","023009","Bonavigo"]
["Veneto","Boschi Sant'Anna","Boschi Sant'Anna (VR) ","Consiglio di Bacino Veronese",506,506,"Verona","VR","023010","Boschi Sant'Anna"]
["Veneto","Bosco Chiesanuova","Bosco Chiesanuova (VR) ","Consiglio di Bacino Veronese",506,506,"Verona","VR","023011","Bosco Chiesanuova"]
["Veneto","Bovolone","Bovolone (VR) ","Consiglio di Bacino Veronese",506,506,"Verona","VR","023012","Bovolone"]
["Veneto","Brentino Belluno","Brentino Belluno (VR) ","Consiglio di Bacino Veronese",506,506,"Verona","VR","023013","Brentino Belluno"]
["Veneto","Brenzone sul Garda","Brenzone sul Garda (VR) ","Consiglio di Bacino Veronese",506,506,"Verona","VR","023014","Brenzone sul Garda"]
["Veneto","Bussolengo","Bussolengo (VR) ","Consiglio di Bacino Veronese",506,506,"Verona","VR","023015","Bussolengo"]
["Veneto","Buttapietra","Buttapietra (VR) ","Consiglio di Bacino Veronese",506,506,"Verona","VR","023016","Buttapietra"]
["Veneto","Caldiero","Caldiero (VR) ","Consiglio di Bacino Veronese",506,506,"Verona","VR","023017","Caldiero"]
["Veneto","Caprino Veronese","Caprino Veronese (VR) ","Consiglio di Bacino Veronese",506,506,"Verona","VR","023018","Caprino Veronese"]
["Veneto","Casaleone","Casaleone (VR) ","Consiglio di Bacino Veronese",506,506,"Verona","VR","023019","Casaleone"]
["Veneto","Castagnaro","Castagnaro (VR) ","Consiglio di Bacino Polesine",505,505,"Verona","VR","023020","Castagnaro"]
["Veneto","Castel d'Azzano","Castel d'Azzano (VR) ","Consiglio di Bacino Veronese",506,506,"Verona","VR","023021","Castel d'Azzano"]
["Veneto","Castelnuovo del Garda","Castelnuovo del Garda (VR) ","Consiglio di Bacino Veronese",506,506,"Verona","VR","023022","Castelnuovo del Garda"]
["Veneto","Cavaion Veronese","Cavaion Veronese (VR) ","Consiglio di Bacino Veronese",506,506,"Verona","VR","023023","Cavaion Veronese"]
["Veneto","Cazzano di Tramigna","Cazzano di Tramigna (VR) ","Consiglio di Bacino Veronese",506,506,"Verona","VR","023024","Cazzano di Tramigna"]
["Veneto","Cerea","Cerea (VR) ","Consiglio di Bacino Veronese",506,506,"Verona","VR","023025","Cerea"]
["Veneto","Cerro Veronese","Cerro Veronese (VR) ","Consiglio di Bacino Veronese",506,506,"Verona","VR","023026","Cerro Veronese"]
["Veneto","Cologna Veneta","Cologna Veneta (VR) ","Consiglio di Bacino Veronese",506,506,"Verona","VR","023027","Cologna Veneta"]
["Veneto","Colognola ai Colli","Colognola ai Colli (VR) ","Consiglio di Bacino Veronese",506,506,"Verona","VR","023028","Colognola ai Colli"]
["Veneto","Concamarise","Concamarise (VR) ","Consiglio di Bacino Veronese",506,506,"Verona","VR","023029","Concamarise"]
["Veneto","Costermano sul Garda","Costermano sul Garda (VR) ","Consiglio di Bacino Veronese",506,506,"Verona","VR","023030","Costermano sul Garda"]
["Veneto","Dolcè","Dolcè (VR) ","Consiglio di Bacino Veronese",506,506,"Verona","VR","023031","Dolcè"]
["Veneto","Erbè","Erbè (VR) ","Consiglio di Bacino Veronese",506,506,"Verona","VR","023032","Erbè"]
["Veneto","Erbezzo","Erbezzo (VR) ","Consiglio di Bacino Veronese",506,506,"Verona","VR","023033","Erbezzo"]
["Veneto","Ferrara di Monte Baldo","Ferrara di Monte Baldo (VR) ","Consiglio di Bacino Veronese",506,506,"Verona","VR","023034","Ferrara di Monte Baldo"]
["Veneto","Fumane","Fumane (VR) ","Consiglio di Bacino Veronese",506,506,"Verona","VR","023035","Fumane"]
["Veneto","Garda","Garda (VR) ","Consiglio di Bacino Veronese",506,506,"Verona","VR","023036","Garda"]
["Veneto","Gazzo Veronese","Gazzo Veronese (VR) ","Consiglio di Bacino Veronese",506,506,"Verona","VR","023037","Gazzo Veronese"]
["Veneto","Grezzana","Grezzana (VR) ","Consiglio di Bacino Veronese",506,506,"Verona","VR","023038","Grezzana"]
["Veneto","Illasi","Illasi (VR) ","Consiglio di Bacino Veronese",506,506,"Verona","VR","023039","Illasi"]
["Veneto","Isola della Scala","Isola della Scala (VR) ","Consiglio di Bacino Veronese",506,506,"Verona","VR","023040","Isola della Scala"]
["Veneto","Isola Rizza","Isola Rizza (VR) ","Consiglio di Bacino Veronese",506,506,"Verona","VR","023041","Isola Rizza"]
["Veneto","Lavagno","Lavagno (VR) ","Consiglio di Bacino Veronese",506,506,"Verona","VR","023042","Lavagno"]
["Veneto","Lazise","Lazise (VR) ","Consiglio di Bacino Veronese",506,506,"Verona","VR","023043","Lazise"]
["Veneto","Legnago","Legnago (VR) ","Consiglio di Bacino Veronese",506,506,"Verona","VR","023044","Legnago"]
["Veneto","Malcesine","Malcesine (VR) ","Consiglio di Bacino Veronese",506,506,"Verona","VR","023045","Malcesine"]
["Veneto","Marano di Valpolicella","Marano di Valpolicella (VR) ","Consiglio di Bacino Veronese",506,506,"Verona","VR","023046","Marano di Valpolicella"]
["Veneto","Mezzane di Sotto","Mezzane di Sotto (VR) ","Consiglio di Bacino Veronese",506,506,"Verona","VR","023047","Mezzane di Sotto"]
["Veneto","Minerbe","Minerbe (VR) ","Consiglio di Bacino Veronese",506,506,"Verona","VR","023048","Minerbe"]
["Veneto","Montecchia di Crosara","Montecchia di Crosara (VR) ","Consiglio di Bacino Veronese",506,506,"Verona","VR","023049","Montecchia di Crosara"]
["Veneto","Monteforte d'Alpone","Monteforte d'Alpone (VR) ","Consiglio di Bacino Veronese",506,506,"Verona","VR","023050","Monteforte d'Alpone"]
["Veneto","Mozzecane","Mozzecane (VR) ","Consiglio di Bacino Veronese",506,506,"Verona","VR","023051","Mozzecane"]
["Veneto","Negrar di Valpolicella","Negrar di Valpolicella (VR) ","Consiglio di Bacino Veronese",506,506,"Verona","VR","023052","Negrar di Valpolicella"]
["Veneto","Nogara","Nogara (VR) ","Consiglio di Bacino Veronese",506,506,"Verona","VR","023053","Nogara"]
["Veneto","Nogarole Rocca","Nogarole Rocca (VR) ","Consiglio di Bacino Veronese",506,506,"Verona","VR","023054","Nogarole Rocca"]
["Veneto","Oppeano","Oppeano (VR) ","Consiglio di Bacino Veronese",506,506,"Verona","VR","023055","Oppeano"]
["Veneto","Palù","Palù (VR) ","Consiglio di Bacino Veronese",506,506,"Verona","VR","023056","Palù"]
["Veneto","Pastrengo","Pastrengo (VR) ","Consiglio di Bacino Veronese",506,506,"Verona","VR","023057","Pastrengo"]
["Veneto","Pescantina","Pescantina (VR) ","Consiglio di Bacino Veronese",506,506,"Verona","VR","023058","Pescantina"]
["Veneto","Peschiera del Garda","Peschiera del Garda (VR) ","Consiglio di Bacino Veronese",506,506,"Verona","VR","023059","Peschiera del Garda"]
["Veneto","Povegliano Veronese","Povegliano Veronese (VR) ","Consiglio di Bacino Veronese",506,506,"Verona","VR","023060","Povegliano Veronese"]
["Veneto","Pressana","Pressana (VR) ","Consiglio di Bacino Veronese",506,506,"Verona","VR","023061","Pressana"]
["Veneto","Rivoli Veronese","Rivoli Veronese (VR) ","Consiglio di Bacino Veronese",506,506,"Verona","VR","023062","Rivoli Veronese"]
["Veneto","Roncà","Roncà (VR) ","Consiglio di Bacino Veronese",506,506,"Verona","VR","023063","Roncà"]
["Veneto","Ronco all'Adige","Ronco all'Adige (VR) ","Consiglio di Bacino Veronese",506,506,"Verona","VR","023064","Ronco all'Adige"]
["Veneto","Roverchiara","Roverchiara (VR) ","Consiglio di Bacino Veronese",506,506,"Verona","VR","023065","Roverchiara"]
["Veneto","Roveredo di Guà","Roveredo di Guà (VR) ","Consiglio di Bacino Veronese",506,506,"Verona","VR","023066","Roveredo di Guà"]
["Veneto","Roverè Veronese","Roverè Veronese (VR) ","Consiglio di Bacino Veronese",506,506,"Verona","VR","023067","Roverè Veronese"]
["Veneto","Salizzole","Salizzole (VR) ","Consiglio di Bacino Veronese",506,506,"Verona","VR","023068","Salizzole"]
["Veneto","San Bonifacio","San Bonifacio (VR) ","Consiglio di Bacino Veronese",506,506,"Verona","VR","023069","San Bonifacio"]
["Veneto","San Giovanni Ilarione","San Giovanni Ilarione (VR) ","Consiglio di Bacino Veronese",506,506,"Verona","VR","023070","San Giovanni Ilarione"]
["Veneto","San Giovanni Lupatoto","San Giovanni Lupatoto (VR) ","Consiglio di Bacino Veronese",506,506,"Verona","VR","023071","San Giovanni Lupatoto"]
["Veneto","Sanguinetto","Sanguinetto (VR) ","Consiglio di Bacino Veronese",506,506,"Verona","VR","023072","Sanguinetto"]
["Veneto","San Martino Buon Albergo","San Martino Buon Albergo (VR) ","Consiglio di Bacino Veronese",506,506,"Verona","VR","023073","San Martino Buon Albergo"]
["Veneto","San Mauro di Saline","San Mauro di Saline (VR) ","Consiglio di Bacino Veronese",506,506,"Verona","VR","023074","San Mauro di Saline"]
["Veneto","San Pietro di Morubio","San Pietro di Morubio (VR) ","Consiglio di Bacino Veronese",506,506,"Verona","VR","023075","San Pietro di Morubio"]
["Veneto","San Pietro in Cariano","San Pietro in Cariano (VR) ","Consiglio di Bacino Veronese",506,506,"Verona","VR","023076","San Pietro in Cariano"]
["Veneto","Sant'Ambrogio di Valpolicella","Sant'Ambrogio di Valpolicella (VR) ","Consiglio di Bacino Veronese",506,506,"Verona","VR","023077","Sant'Ambrogio di Valpolicella"]
["Veneto","Sant'Anna d'Alfaedo","Sant'Anna d'Alfaedo (VR) ","Consiglio di Bacino Veronese",506,506,"Verona","VR","023078","Sant'Anna d'Alfaedo"]
["Veneto","San Zeno di Montagna","San Zeno di Montagna (VR) ","Consiglio di Bacino Veronese",506,506,"Verona","VR","023079","San Zeno di Montagna"]
["Veneto","Selva di Progno","Selva di Progno (VR) ","Consiglio di Bacino Veronese",506,506,"Verona","VR","023080","Selva di Progno"]
["Veneto","Soave","Soave (VR) ","Consiglio di Bacino Veronese",506,506,"Verona","VR","023081","Soave"]
["Veneto","Sommacampagna","Sommacampagna (VR) ","Consiglio di Bacino Veronese",506,506,"Verona","VR","023082","Sommacampagna"]
["Veneto","Sona","Sona (VR) ","Consiglio di Bacino Veronese",506,506,"Verona","VR","023083","Sona"]
["Veneto","Sorgà","Sorgà (VR) ","Consiglio di Bacino Veronese",506,506,"Verona","VR","023084","Sorgà"]
["Veneto","Terrazzo","Terrazzo (VR) ","Consiglio di Bacino Veronese",506,506,"Verona","VR","023085","Terrazzo"]
["Veneto","Torri del Benaco","Torri del Benaco (VR) ","Consiglio di Bacino Veronese",506,506,"Verona","VR","023086","Torri del Benaco"]
["Veneto","Tregnago","Tregnago (VR) ","Consiglio di Bacino Veronese",506,506,"Verona","VR","023087","Tregnago"]
["Veneto","Trevenzuolo","Trevenzuolo (VR) ","Consiglio di Bacino Veronese",506,506,"Verona","VR","023088","Trevenzuolo"]
["Veneto","Valeggio sul Mincio","Valeggio sul Mincio (VR) ","Consiglio di Bacino Veronese",506,506,"Verona","VR","023089","Valeggio sul Mincio"]
["Veneto","Velo Veronese","Velo Veronese (VR) ","Consiglio di Bacino Veronese",506,506,"Verona","VR","023090","Velo Veronese"]
["Veneto","Verona","Verona (VR) ","Consiglio di Bacino Veronese",506,506,"Verona","VR","023091","Verona"]
["Veneto","Veronella","Veronella (VR) ","Consiglio di Bacino Veronese",506,506,"Verona","VR","023092","Veronella"]
["Veneto","Vestenanova","Vestenanova (VR) ","Consiglio di Bacino Veronese",506,506,"Verona","VR","023093","Vestenanova"]
["Veneto","Vigasio","Vigasio (VR) ","Consiglio di Bacino Veronese",506,506,"Verona","VR","023094","Vigasio"]
["Veneto","Villa Bartolomea","Villa Bartolomea (VR) ","Consiglio di Bacino Veronese",506,506,"Verona","VR","023095","Villa Bartolomea"]
["Veneto","Villafranca di Verona","Villafranca di Verona (VR) ","Consiglio di Bacino Veronese",506,506,"Verona","VR","023096","Villafranca di Verona"]
["Veneto","Zevio","Zevio (VR) ","Consiglio di Bacino Veronese",506,506,"Verona","VR","023097","Zevio"]
["Veneto","Zimella","Zimella (VR) ","Consiglio di Bacino Veronese",506,506,"Verona","VR","023098","Zimella"]
["Veneto","Agugliaro","Agugliaro (VI) ","Consiglio di Bacino Bacchiglione",502,502,"Vicenza","VI","024001","Agugliaro"]
["Veneto","Albettone","Albettone (VI) ","Consiglio di Bacino Bacchiglione",502,502,"Vicenza","VI","024002","Albettone"]
["Veneto","Alonte","Alonte (VI) ","Consiglio di Bacino Bacchiglione",502,502,"Vicenza","VI","024003","Alonte"]
["Veneto","Altavilla Vicentina","Altavilla Vicentina (VI) ","Consiglio di Bacino Bacchiglione",502,502,"Vicenza","VI","024004","Altavilla Vicentina"]
["Veneto","Altissimo","Altissimo (VI) ","Consiglio di Bacino Valle del Chiampo",507,507,"Vicenza","VI","024005","Altissimo"]
["Veneto","Arcugnano","Arcugnano (VI) ","Consiglio di Bacino Bacchiglione",502,502,"Vicenza","VI","024006","Arcugnano"]
["Veneto","Arsiero","Arsiero (VI) ","Consiglio di Bacino Bacchiglione",502,502,"Vicenza","VI","024007","Arsiero"]
["Veneto","Arzignano","Arzignano (VI) ","Consiglio di Bacino Valle del Chiampo",507,507,"Vicenza","VI","024008","Arzignano"]
["Veneto","Asiago","Asiago (VI) ","Consiglio di Bacino Brenta",503,503,"Vicenza","VI","024009","Asiago"]
["Veneto","Asigliano Veneto","Asigliano Veneto (VI) ","Consiglio di Bacino Bacchiglione",502,502,"Vicenza","VI","024010","Asigliano Veneto"]
["Veneto","Bassano del Grappa","Bassano del Grappa (VI) ","Consiglio di Bacino Brenta",503,503,"Vicenza","VI","024012","Bassano del Grappa"]
["Veneto","Bolzano Vicentino","Bolzano Vicentino (VI) ","Consiglio di Bacino Bacchiglione",502,502,"Vicenza","VI","024013","Bolzano Vicentino"]
["Veneto","Breganze","Breganze (VI) ","Consiglio di Bacino Bacchiglione",502,502,"Vicenza","VI","024014","Breganze"]
["Veneto","Brendola","Brendola (VI) ","Consiglio di Bacino Valle del Chiampo",507,507,"Vicenza","VI","024015","Brendola"]
["Veneto","Bressanvido","Bressanvido (VI) ","Consiglio di Bacino Bacchiglione",502,502,"Vicenza","VI","024016","Bressanvido"]
["Veneto","Brogliano","Brogliano (VI) ","Consiglio di Bacino Bacchiglione",502,502,"Vicenza","VI","024017","Brogliano"]
["Veneto","Caldogno","Caldogno (VI) ","Consiglio di Bacino Bacchiglione",502,502,"Vicenza","VI","024018","Caldogno"]
["Veneto","Caltrano","Caltrano (VI) ","Consiglio di Bacino Bacchiglione",502,502,"Vicenza","VI","024019","Caltrano"]
["Veneto","Calvene","Calvene (VI) ","Consiglio di Bacino Bacchiglione",502,502,"Vicenza","VI","024020","Calvene"]
["Veneto","Camisano Vicentino","Camisano Vicentino (VI) ","Consiglio di Bacino Bacchiglione",502,502,"Vicenza","VI","024021","Camisano Vicentino"]
["Veneto","Campiglia dei Berici","Campiglia dei Berici (VI) ","Consiglio di Bacino Bacchiglione",502,502,"Vicenza","VI","024022","Campiglia dei Berici"]
["Veneto","Carrè","Carrè (VI) ","Consiglio di Bacino Bacchiglione",502,502,"Vicenza","VI","024024","Carrè"]
["Veneto","Cartigliano","Cartigliano (VI) ","Consiglio di Bacino Brenta",503,503,"Vicenza","VI","024025","Cartigliano"]
["Veneto","Cassola","Cassola (VI) ","Consiglio di Bacino Brenta",503,503,"Vicenza","VI","024026","Cassola"]
["Veneto","Castelgomberto","Castelgomberto (VI) ","Consiglio di Bacino Bacchiglione",502,502,"Vicenza","VI","024028","Castelgomberto"]
["Veneto","Chiampo","Chiampo (VI) ","Consiglio di Bacino Valle del Chiampo",507,507,"Vicenza","VI","024029","Chiampo"]
["Veneto","Chiuppano","Chiuppano (VI) ","Consiglio di Bacino Bacchiglione",502,502,"Vicenza","VI","024030","Chiuppano"]
["Veneto","Cogollo del Cengio","Cogollo del Cengio (VI) ","Consiglio di Bacino Bacchiglione",502,502,"Vicenza","VI","024032","Cogollo del Cengio"]
["Veneto","Cornedo Vicentino","Cornedo Vicentino (VI) ","Consiglio di Bacino Bacchiglione",502,502,"Vicenza","VI","024034","Cornedo Vicentino"]
["Veneto","Costabissara","Costabissara (VI) ","Consiglio di Bacino Bacchiglione",502,502,"Vicenza","VI","024035","Costabissara"]
["Veneto","Creazzo","Creazzo (VI) ","Consiglio di Bacino Bacchiglione",502,502,"Vicenza","VI","024036","Creazzo"]
["Veneto","Crespadoro","Crespadoro (VI) ","Consiglio di Bacino Valle del Chiampo",507,507,"Vicenza","VI","024037","Crespadoro"]
["Veneto","Dueville","Dueville (VI) ","Consiglio di Bacino Bacchiglione",502,502,"Vicenza","VI","024038","Dueville"]
["Veneto","Enego","Enego (VI) ","Consiglio di Bacino Brenta",503,503,"Vicenza","VI","024039","Enego"]
["Veneto","Fara Vicentino","Fara Vicentino (VI) ","Consiglio di Bacino Bacchiglione",502,502,"Vicenza","VI","024040","Fara Vicentino"]
["Veneto","Foza","Foza (VI) ","Consiglio di Bacino Brenta",503,503,"Vicenza","VI","024041","Foza"]
["Veneto","Gallio","Gallio (VI) ","Consiglio di Bacino Brenta",503,503,"Vicenza","VI","024042","Gallio"]
["Veneto","Gambellara","Gambellara (VI) ","Consiglio di Bacino Valle del Chiampo",507,507,"Vicenza","VI","024043","Gambellara"]
["Veneto","Grisignano di Zocco","Grisignano di Zocco (VI) ","Consiglio di Bacino Bacchiglione",502,502,"Vicenza","VI","024046","Grisignano di Zocco"]
["Veneto","Grumolo delle Abbadesse","Grumolo delle Abbadesse (VI) ","Consiglio di Bacino Bacchiglione",502,502,"Vicenza","VI","024047","Grumolo delle Abbadesse"]
["Veneto","Isola Vicentina","Isola Vicentina (VI) ","Consiglio di Bacino Bacchiglione",502,502,"Vicenza","VI","024048","Isola Vicentina"]
["Veneto","Laghi","Laghi (VI) ","Consiglio di Bacino Bacchiglione",502,502,"Vicenza","VI","024049","Laghi"]
["Veneto","Lastebasse","Lastebasse (VI) ","Consiglio di Bacino Bacchiglione",502,502,"Vicenza","VI","024050","Lastebasse"]
["Veneto","Longare","Longare (VI) ","Consiglio di Bacino Bacchiglione",502,502,"Vicenza","VI","024051","Longare"]
["Veneto","Lonigo","Lonigo (VI) ","Consiglio di Bacino Valle del Chiampo",507,507,"Vicenza","VI","024052","Lonigo"]
["Veneto","Lugo di Vicenza","Lugo di Vicenza (VI) ","Consiglio di Bacino Bacchiglione",502,502,"Vicenza","VI","024053","Lugo di Vicenza"]
["Veneto","Malo","Malo (VI) ","Consiglio di Bacino Bacchiglione",502,502,"Vicenza","VI","024055","Malo"]
["Veneto","Marano Vicentino","Marano Vicentino (VI) ","Consiglio di Bacino Bacchiglione",502,502,"Vicenza","VI","024056","Marano Vicentino"]
["Veneto","Marostica","Marostica (VI) ","Consiglio di Bacino Brenta",503,503,"Vicenza","VI","024057","Marostica"]
["Veneto","Montebello Vicentino","Montebello Vicentino (VI) ","Consiglio di Bacino Valle del Chiampo",507,507,"Vicenza","VI","024060","Montebello Vicentino"]
["Veneto","Montecchio Maggiore","Montecchio Maggiore (VI) ","Consiglio di Bacino Valle del Chiampo",507,507,"Vicenza","VI","024061","Montecchio Maggiore"]
["Veneto","Montecchio Precalcino","Montecchio Precalcino (VI) ","Consiglio di Bacino Bacchiglione",502,502,"Vicenza","VI","024062","Montecchio Precalcino"]
["Veneto","Monte di Malo","Monte di Malo (VI) ","Consiglio di Bacino Bacchiglione",502,502,"Vicenza","VI","024063","Monte di Malo"]
["Veneto","Montegalda","Montegalda (VI) ","Consiglio di Bacino Bacchiglione",502,502,"Vicenza","VI","024064","Montegalda"]
["Veneto","Montegaldella","Montegaldella (VI) ","Consiglio di Bacino Bacchiglione",502,502,"Vicenza","VI","024065","Montegaldella"]
["Veneto","Monteviale","Monteviale (VI) ","Consiglio di Bacino Bacchiglione",502,502,"Vicenza","VI","024066","Monteviale"]
["Veneto","Monticello Conte Otto","Monticello Conte Otto (VI) ","Consiglio di Bacino Bacchiglione",502,502,"Vicenza","VI","024067","Monticello Conte Otto"]
["Veneto","Montorso Vicentino","Montorso Vicentino (VI) ","Consiglio di Bacino Valle del Chiampo",507,507,"Vicenza","VI","024068","Montorso Vicentino"]
["Veneto","Mussolente","Mussolente (VI) ","Consiglio di Bacino \"Veneto Orientale\"",508,508,"Vicenza","VI","024070","Mussolente"]
["Veneto","Nogarole Vicentino","Nogarole Vicentino (VI) ","Consiglio di Bacino Valle del Chiampo",507,507,"Vicenza","VI","024072","Nogarole Vicentino"]
["Veneto","Nove","Nove (VI) ","Consiglio di Bacino Brenta",503,503,"Vicenza","VI","024073","Nove"]
["Veneto","Noventa Vicentina","Noventa Vicentina (VI) ","Consiglio di Bacino Bacchiglione",502,502,"Vicenza","VI","024074","Noventa Vicentina"]
["Veneto","Orgiano","Orgiano (VI) ","Consiglio di Bacino Bacchiglione",502,502,"Vicenza","VI","024075","Orgiano"]
["Veneto","Pedemonte","Pedemonte (VI) ","Consiglio di Bacino Bacchiglione",502,502,"Vicenza","VI","024076","Pedemonte"]
["Veneto","Pianezze","Pianezze (VI) ","Consiglio di Bacino Brenta",503,503,"Vicenza","VI","024077","Pianezze"]
["Veneto","Piovene Rocchette","Piovene Rocchette (VI) ","Consiglio di Bacino Bacchiglione",502,502,"Vicenza","VI","024078","Piovene Rocchette"]
["Veneto","Pojana Maggiore","Pojana Maggiore (VI) ","Consiglio di Bacino Bacchiglione",502,502,"Vicenza","VI","024079","Pojana Maggiore"]
["Veneto","Posina","Posina (VI) ","Consiglio di Bacino Bacchiglione",502,502,"Vicenza","VI","024080","Posina"]
["Veneto","Pove del Grappa","Pove del Grappa (VI) ","Consiglio di Bacino Brenta",503,503,"Vicenza","VI","024081","Pove del Grappa"]
["Veneto","Pozzoleone","Pozzoleone (VI) ","Consiglio di Bacino Brenta",503,503,"Vicenza","VI","024082","Pozzoleone"]
["Veneto","Quinto Vicentino","Quinto Vicentino (VI) ","Consiglio di Bacino Bacchiglione",502,502,"Vicenza","VI","024083","Quinto Vicentino"]
["Veneto","Recoaro Terme","Recoaro Terme (VI) ","Consiglio di Bacino Bacchiglione",502,502,"Vicenza","VI","024084","Recoaro Terme"]
["Veneto","Roana","Roana (VI) ","Consiglio di Bacino Brenta",503,503,"Vicenza","VI","024085","Roana"]
["Veneto","Romano d'Ezzelino","Romano d'Ezzelino (VI) ","Consiglio di Bacino Brenta",503,503,"Vicenza","VI","024086","Romano d'Ezzelino"]
["Veneto","Rosà","Rosà (VI) ","Consiglio di Bacino Brenta",503,503,"Vicenza","VI","024087","Rosà"]
["Veneto","Rossano Veneto","Rossano Veneto (VI) ","Consiglio di Bacino Brenta",503,503,"Vicenza","VI","024088","Rossano Veneto"]
["Veneto","Rotzo","Rotzo (VI) ","Consiglio di Bacino Brenta",503,503,"Vicenza","VI","024089","Rotzo"]
["Veneto","Salcedo","Salcedo (VI) ","Consiglio di Bacino Bacchiglione",502,502,"Vicenza","VI","024090","Salcedo"]
["Veneto","Sandrigo","Sandrigo (VI) ","Consiglio di Bacino Bacchiglione",502,502,"Vicenza","VI","024091","Sandrigo"]
["Veneto","San Pietro Mussolino","San Pietro Mussolino (VI) ","Consiglio di Bacino Valle del Chiampo",507,507,"Vicenza","VI","024094","San Pietro Mussolino"]
["Veneto","Santorso","Santorso (VI) ","Consiglio di Bacino Bacchiglione",502,502,"Vicenza","VI","024095","Santorso"]
["Veneto","San Vito di Leguzzano","San Vito di Leguzzano (VI) ","Consiglio di Bacino Bacchiglione",502,502,"Vicenza","VI","024096","San Vito di Leguzzano"]
["Veneto","Sarcedo","Sarcedo (VI) ","Consiglio di Bacino Bacchiglione",502,502,"Vicenza","VI","024097","Sarcedo"]
["Veneto","Sarego","Sarego (VI) ","Consiglio di Bacino Bacchiglione",502,502,"Vicenza","VI","024098","Sarego"]
["Veneto","Schiavon","Schiavon (VI) ","Consiglio di Bacino Brenta",503,503,"Vicenza","VI","024099","Schiavon"]
["Veneto","Schio","Schio (VI) ","Consiglio di Bacino Bacchiglione",502,502,"Vicenza","VI","024100","Schio"]
["Veneto","Solagna","Solagna (VI) ","Consiglio di Bacino Brenta",503,503,"Vicenza","VI","024101","Solagna"]
["Veneto","Sossano","Sossano (VI) ","Consiglio di Bacino Bacchiglione",502,502,"Vicenza","VI","024102","Sossano"]
["Veneto","Tezze sul Brenta","Tezze sul Brenta (VI) ","Consiglio di Bacino Brenta",503,503,"Vicenza","VI","024104","Tezze sul Brenta"]
["Veneto","Thiene","Thiene (VI) ","Consiglio di Bacino Bacchiglione",502,502,"Vicenza","VI","024105","Thiene"]
["Veneto","Tonezza del Cimone","Tonezza del Cimone (VI) ","Consiglio di Bacino Bacchiglione",502,502,"Vicenza","VI","024106","Tonezza del Cimone"]
["Veneto","Torrebelvicino","Torrebelvicino (VI) ","Consiglio di Bacino Bacchiglione",502,502,"Vicenza","VI","024107","Torrebelvicino"]
["Veneto","Torri di Quartesolo","Torri di Quartesolo (VI) ","Consiglio di Bacino Bacchiglione",502,502,"Vicenza","VI","024108","Torri di Quartesolo"]
["Veneto","Trissino","Trissino (VI) ","Consiglio di Bacino Bacchiglione",502,502,"Vicenza","VI","024110","Trissino"]
["Veneto","Valdagno","Valdagno (VI) ","Consiglio di Bacino Bacchiglione",502,502,"Vicenza","VI","024111","Valdagno"]
["Veneto","Valdastico","Valdastico (VI) ","Consiglio di Bacino Bacchiglione",502,502,"Vicenza","VI","024112","Valdastico"]
["Veneto","Valli del Pasubio","Valli del Pasubio (VI) ","Consiglio di Bacino Bacchiglione",502,502,"Vicenza","VI","024113","Valli del Pasubio"]
["Veneto","Velo d'Astico","Velo d'Astico (VI) ","Consiglio di Bacino Bacchiglione",502,502,"Vicenza","VI","024115","Velo d'Astico"]
["Veneto","Vicenza","Vicenza (VI) ","Consiglio di Bacino Bacchiglione",502,502,"Vicenza","VI","024116","Vicenza"]
["Veneto","Villaga","Villaga (VI) ","Consiglio di Bacino Bacchiglione",502,502,"Vicenza","VI","024117","Villaga"]
["Veneto","Villaverla","Villaverla (VI) ","Consiglio di Bacino Bacchiglione",502,502,"Vicenza","VI","024118","Villaverla"]
["Veneto","Zanè","Zanè (VI) ","Consiglio di Bacino Bacchiglione",502,502,"Vicenza","VI","024119","Zanè"]
["Veneto","Zermeghedo","Zermeghedo (VI) ","Consiglio di Bacino Valle del Chiampo",507,507,"Vicenza","VI","024120","Zermeghedo"]
["Veneto","Zovencedo","Zovencedo (VI) ","Consiglio di Bacino Bacchiglione",502,502,"Vicenza","VI","024121","Zovencedo"]
["Veneto","Zugliano","Zugliano (VI) ","Consiglio di Bacino Bacchiglione",502,502,"Vicenza","VI","024122","Zugliano"]
["Veneto","Val Liona","Val Liona (VI) ","Consiglio di Bacino Bacchiglione",502,502,"Vicenza","VI","024123","Val Liona"]
["Veneto","Barbarano Mossano","Barbarano Mossano (VI) ","Consiglio di Bacino Bacchiglione",502,502,"Vicenza","VI","024124","Barbarano Mossano"]
["Veneto","Valbrenta","Valbrenta (VI) ","Consiglio di Bacino Brenta",503,503,"Vicenza","VI","024125","Valbrenta"]
["Veneto","Colceresa","Colceresa (VI) ","Consiglio di Bacino Brenta",503,503,"Vicenza","VI","024126","Colceresa"]
["Veneto","Lusiana Conco","Lusiana Conco (VI) ","Consiglio di Bacino Brenta",503,503,"Vicenza","VI","024127","Lusiana Conco"]
["Veneto","Sovizzo","Sovizzo (VI) ","Consiglio di Bacino Bacchiglione",502,502,"Vicenza","VI","024128","Sovizzo"]
["Veneto","Castegnero Nanto","Castegnero Nanto (VI) ","Consiglio di Bacino Bacchiglione",502,502,"Vicenza","VI","024129","Castegnero Nanto"]
["Veneto","Agordo","Agordo (BL) ","Consiglio di Bacino \"Dolomiti Bellunesi\"",501,501,"Belluno","BL","025001","Agordo"]
["Veneto","Alleghe","Alleghe (BL) ","Consiglio di Bacino \"Dolomiti Bellunesi\"",501,501,"Belluno","BL","025003","Alleghe"]
["Veneto","Arsiè","Arsiè (BL) ","Consiglio di Bacino \"Dolomiti Bellunesi\"",501,501,"Belluno","BL","025004","Arsiè"]
["Veneto","Auronzo di Cadore","Auronzo di Cadore (BL) ","Consiglio di Bacino \"Dolomiti Bellunesi\"",501,501,"Belluno","BL","025005","Auronzo di Cadore"]
["Veneto","Belluno","Belluno (BL) ","Consiglio di Bacino \"Dolomiti Bellunesi\"",501,501,"Belluno","BL","025006","Belluno"]
["Veneto","Borca di Cadore","Borca di Cadore (BL) ","Consiglio di Bacino \"Dolomiti Bellunesi\"",501,501,"Belluno","BL","025007","Borca di Cadore"]
["Veneto","Calalzo di Cadore","Calalzo di Cadore (BL) ","Consiglio di Bacino \"Dolomiti Bellunesi\"",501,501,"Belluno","BL","025008","Calalzo di Cadore"]
["Veneto","Cencenighe Agordino","Cencenighe Agordino (BL) ","Consiglio di Bacino \"Dolomiti Bellunesi\"",501,501,"Belluno","BL","025010","Cencenighe Agordino"]
["Veneto","Cesiomaggiore","Cesiomaggiore (BL) ","Consiglio di Bacino \"Dolomiti Bellunesi\"",501,501,"Belluno","BL","025011","Cesiomaggiore"]
["Veneto","Chies d'Alpago","Chies d'Alpago (BL) ","Consiglio di Bacino \"Dolomiti Bellunesi\"",501,501,"Belluno","BL","025012","Chies d'Alpago"]
["Veneto","Cibiana di Cadore","Cibiana di Cadore (BL) ","Consiglio di Bacino \"Dolomiti Bellunesi\"",501,501,"Belluno","BL","025013","Cibiana di Cadore"]
["Veneto","Colle Santa Lucia","Colle Santa Lucia (BL) ","Consiglio di Bacino \"Dolomiti Bellunesi\"",501,501,"Belluno","BL","025014","Colle Santa Lucia"]
["Veneto","Comelico Superiore","Comelico Superiore (BL) ","Consiglio di Bacino \"Dolomiti Bellunesi\"",501,501,"Belluno","BL","025015","Comelico Superiore"]
["Veneto","Cortina d'Ampezzo","Cortina d'Ampezzo (BL) ","Consiglio di Bacino \"Dolomiti Bellunesi\"",501,501,"Belluno","BL","025016","Cortina d'Ampezzo"]
["Veneto","Danta di Cadore","Danta di Cadore (BL) ","Consiglio di Bacino \"Dolomiti Bellunesi\"",501,501,"Belluno","BL","025017","Danta di Cadore"]
["Veneto","Domegge di Cadore","Domegge di Cadore (BL) ","Consiglio di Bacino \"Dolomiti Bellunesi\"",501,501,"Belluno","BL","025018","Domegge di Cadore"]
["Veneto","Falcade","Falcade (BL) ","Consiglio di Bacino \"Dolomiti Bellunesi\"",501,501,"Belluno","BL","025019","Falcade"]
["Veneto","Feltre","Feltre (BL) ","Consiglio di Bacino \"Dolomiti Bellunesi\"",501,501,"Belluno","BL","025021","Feltre"]
["Veneto","Fonzaso","Fonzaso (BL) ","Consiglio di Bacino \"Dolomiti Bellunesi\"",501,501,"Belluno","BL","025022","Fonzaso"]
["Veneto","Canale d'Agordo","Canale d'Agordo (BL) ","Consiglio di Bacino \"Dolomiti Bellunesi\"",501,501,"Belluno","BL","025023","Canale d'Agordo"]
["Veneto","Gosaldo","Gosaldo (BL) ","Consiglio di Bacino \"Dolomiti Bellunesi\"",501,501,"Belluno","BL","025025","Gosaldo"]
["Veneto","Lamon","Lamon (BL) ","Consiglio di Bacino \"Dolomiti Bellunesi\"",501,501,"Belluno","BL","025026","Lamon"]
["Veneto","La Valle Agordina","La Valle Agordina (BL) ","Consiglio di Bacino \"Dolomiti Bellunesi\"",501,501,"Belluno","BL","025027","La Valle Agordina"]
["Veneto","Limana","Limana (BL) ","Consiglio di Bacino \"Dolomiti Bellunesi\"",501,501,"Belluno","BL","025029","Limana"]
["Veneto","Livinallongo del Col di Lana","Livinallongo del Col di Lana (BL) ","Consiglio di Bacino \"Dolomiti Bellunesi\"",501,501,"Belluno","BL","025030","Livinallongo del Col di Lana"]
["Veneto","Lorenzago di Cadore","Lorenzago di Cadore (BL) ","Consiglio di Bacino \"Dolomiti Bellunesi\"",501,501,"Belluno","BL","025032","Lorenzago di Cadore"]
["Veneto","Lozzo di Cadore","Lozzo di Cadore (BL) ","Consiglio di Bacino \"Dolomiti Bellunesi\"",501,501,"Belluno","BL","025033","Lozzo di Cadore"]
["Veneto","Ospitale di Cadore","Ospitale di Cadore (BL) ","Consiglio di Bacino \"Dolomiti Bellunesi\"",501,501,"Belluno","BL","025035","Ospitale di Cadore"]
["Veneto","Pedavena","Pedavena (BL) ","Consiglio di Bacino \"Dolomiti Bellunesi\"",501,501,"Belluno","BL","025036","Pedavena"]
["Veneto","Perarolo di Cadore","Perarolo di Cadore (BL) ","Consiglio di Bacino \"Dolomiti Bellunesi\"",501,501,"Belluno","BL","025037","Perarolo di Cadore"]
["Veneto","Pieve di Cadore","Pieve di Cadore (BL) ","Consiglio di Bacino \"Dolomiti Bellunesi\"",501,501,"Belluno","BL","025039","Pieve di Cadore"]
["Veneto","Ponte nelle Alpi","Ponte nelle Alpi (BL) ","Consiglio di Bacino \"Dolomiti Bellunesi\"",501,501,"Belluno","BL","025040","Ponte nelle Alpi"]
["Veneto","Rivamonte Agordino","Rivamonte Agordino (BL) ","Consiglio di Bacino \"Dolomiti Bellunesi\"",501,501,"Belluno","BL","025043","Rivamonte Agordino"]
["Veneto","Rocca Pietore","Rocca Pietore (BL) ","Consiglio di Bacino \"Dolomiti Bellunesi\"",501,501,"Belluno","BL","025044","Rocca Pietore"]
["Veneto","San Gregorio nelle Alpi","San Gregorio nelle Alpi (BL) ","Consiglio di Bacino \"Dolomiti Bellunesi\"",501,501,"Belluno","BL","025045","San Gregorio nelle Alpi"]
["Veneto","San Nicolò di Comelico","San Nicolò di Comelico (BL) ","Consiglio di Bacino \"Dolomiti Bellunesi\"",501,501,"Belluno","BL","025046","San Nicolò di Comelico"]
["Veneto","San Pietro di Cadore","San Pietro di Cadore (BL) ","Consiglio di Bacino \"Dolomiti Bellunesi\"",501,501,"Belluno","BL","025047","San Pietro di Cadore"]
["Veneto","Santa Giustina","Santa Giustina (BL) ","Consiglio di Bacino \"Dolomiti Bellunesi\"",501,501,"Belluno","BL","025048","Santa Giustina"]
["Veneto","San Tomaso Agordino","San Tomaso Agordino (BL) ","Consiglio di Bacino \"Dolomiti Bellunesi\"",501,501,"Belluno","BL","025049","San Tomaso Agordino"]
["Veneto","Santo Stefano di Cadore","Santo Stefano di Cadore (BL) ","Consiglio di Bacino \"Dolomiti Bellunesi\"",501,501,"Belluno","BL","025050","Santo Stefano di Cadore"]
["Veneto","San Vito di Cadore","San Vito di Cadore (BL) ","Consiglio di Bacino \"Dolomiti Bellunesi\"",501,501,"Belluno","BL","025051","San Vito di Cadore"]
["Veneto","Sedico","Sedico (BL) ","Consiglio di Bacino \"Dolomiti Bellunesi\"",501,501,"Belluno","BL","025053","Sedico"]
["Veneto","Selva di Cadore","Selva di Cadore (BL) ","Consiglio di Bacino \"Dolomiti Bellunesi\"",501,501,"Belluno","BL","025054","Selva di Cadore"]
["Veneto","Seren del Grappa","Seren del Grappa (BL) ","Consiglio di Bacino \"Dolomiti Bellunesi\"",501,501,"Belluno","BL","025055","Seren del Grappa"]
["Veneto","Sospirolo","Sospirolo (BL) ","Consiglio di Bacino \"Dolomiti Bellunesi\"",501,501,"Belluno","BL","025056","Sospirolo"]
["Veneto","Soverzene","Soverzene (BL) ","Consiglio di Bacino \"Dolomiti Bellunesi\"",501,501,"Belluno","BL","025057","Soverzene"]
["Veneto","Sovramonte","Sovramonte (BL) ","Consiglio di Bacino \"Dolomiti Bellunesi\"",501,501,"Belluno","BL","025058","Sovramonte"]
["Veneto","Taibon Agordino","Taibon Agordino (BL) ","Consiglio di Bacino \"Dolomiti Bellunesi\"",501,501,"Belluno","BL","025059","Taibon Agordino"]
["Veneto","Tambre","Tambre (BL) ","Consiglio di Bacino \"Dolomiti Bellunesi\"",501,501,"Belluno","BL","025060","Tambre"]
["Veneto","Vallada Agordina","Vallada Agordina (BL) ","Consiglio di Bacino \"Dolomiti Bellunesi\"",501,501,"Belluno","BL","025062","Vallada Agordina"]
["Veneto","Valle di Cadore","Valle di Cadore (BL) ","Consiglio di Bacino \"Dolomiti Bellunesi\"",501,501,"Belluno","BL","025063","Valle di Cadore"]
["Veneto","Vigo di Cadore","Vigo di Cadore (BL) ","Consiglio di Bacino \"Dolomiti Bellunesi\"",501,501,"Belluno","BL","025065","Vigo di Cadore"]
["Veneto","Vodo Cadore","Vodo Cadore (BL) ","Consiglio di Bacino \"Dolomiti Bellunesi\"",501,501,"Belluno","BL","025066","Vodo Cadore"]
["Veneto","Voltago Agordino","Voltago Agordino (BL) ","Consiglio di Bacino \"Dolomiti Bellunesi\"",501,501,"Belluno","BL","025067","Voltago Agordino"]
["Veneto","Zoppè di Cadore","Zoppè di Cadore (BL) ","Consiglio di Bacino \"Dolomiti Bellunesi\"",501,501,"Belluno","BL","025069","Zoppè di Cadore"]
["Veneto","Longarone","Longarone (BL) ","Consiglio di Bacino \"Dolomiti Bellunesi\"",501,501,"Belluno","BL","025071","Longarone"]
["Veneto","Alpago","Alpago (BL) ","Consiglio di Bacino \"Dolomiti Bellunesi\"",501,501,"Belluno","BL","025072","Alpago"]
["Veneto","Val di Zoldo","Val di Zoldo (BL) ","Consiglio di Bacino \"Dolomiti Bellunesi\"",501,501,"Belluno","BL","025073","Val di Zoldo"]
["Veneto","Borgo Valbelluna","Borgo Valbelluna (BL) ","Consiglio di Bacino \"Dolomiti Bellunesi\"",501,501,"Belluno","BL","025074","Borgo Valbelluna"]
["Veneto","Setteville","Setteville (BL) ","Consiglio di Bacino \"Veneto Orientale\"",508,508,"Belluno","BL","025075","Setteville"]
["Veneto","Altivole","Altivole (TV) ","Consiglio di Bacino \"Veneto Orientale\"",508,508,"Treviso","TV","026001","Altivole"]
["Veneto","Arcade","Arcade (TV) ","Consiglio di Bacino \"Veneto Orientale\"",508,508,"Treviso","TV","026002","Arcade"]
["Veneto","Asolo","Asolo (TV) ","Consiglio di Bacino \"Veneto Orientale\"",508,508,"Treviso","TV","026003","Asolo"]
["Veneto","Borso del Grappa","Borso del Grappa (TV) ","Consiglio di Bacino \"Veneto Orientale\"",508,508,"Treviso","TV","026004","Borso del Grappa"]
["Veneto","Breda di Piave","Breda di Piave (TV) ","Consiglio di Bacino \"Veneto Orientale\"",508,508,"Treviso","TV","026005","Breda di Piave"]
["Veneto","Caerano di San Marco","Caerano di San Marco (TV) ","Consiglio di Bacino \"Veneto Orientale\"",508,508,"Treviso","TV","026006","Caerano di San Marco"]
["Veneto","Cappella Maggiore","Cappella Maggiore (TV) ","Consiglio di Bacino \"Veneto Orientale\"",508,508,"Treviso","TV","026007","Cappella Maggiore"]
["Veneto","Carbonera","Carbonera (TV) ","Consiglio di Bacino \"Veneto Orientale\"",508,508,"Treviso","TV","026008","Carbonera"]
["Veneto","Casale sul Sile","Casale sul Sile (TV) ","Consiglio di Bacino \"Veneto Orientale\"",508,508,"Treviso","TV","026009","Casale sul Sile"]
["Veneto","Casier","Casier (TV) ","Consiglio di Bacino \"Veneto Orientale\"",508,508,"Treviso","TV","026010","Casier"]
["Veneto","Castelcucco","Castelcucco (TV) ","Consiglio di Bacino \"Veneto Orientale\"",508,508,"Treviso","TV","026011","Castelcucco"]
["Veneto","Castelfranco Veneto","Castelfranco Veneto (TV) ","Consiglio di Bacino \"Veneto Orientale\"",508,508,"Treviso","TV","026012","Castelfranco Veneto"]
["Veneto","Castello di Godego","Castello di Godego (TV) ","Consiglio di Bacino \"Veneto Orientale\"",508,508,"Treviso","TV","026013","Castello di Godego"]
["Veneto","Cavaso del Tomba","Cavaso del Tomba (TV) ","Consiglio di Bacino \"Veneto Orientale\"",508,508,"Treviso","TV","026014","Cavaso del Tomba"]
["Veneto","Cessalto","Cessalto (TV) ","CONSIGLIO DI BACINO LAGUNA DI VENEZIA",504,504,"Treviso","TV","026015","Cessalto"]
["Veneto","Chiarano","Chiarano (TV) ","Consiglio di Bacino \"Veneto Orientale\"",508,508,"Treviso","TV","026016","Chiarano"]
["Veneto","Cimadolmo","Cimadolmo (TV) ","Consiglio di Bacino \"Veneto Orientale\"",508,508,"Treviso","TV","026017","Cimadolmo"]
["Veneto","Cison di Valmarino","Cison di Valmarino (TV) ","Consiglio di Bacino \"Veneto Orientale\"",508,508,"Treviso","TV","026018","Cison di Valmarino"]
["Veneto","Codognè","Codognè (TV) ","Consiglio di Bacino \"Veneto Orientale\"",508,508,"Treviso","TV","026019","Codognè"]
["Veneto","Colle Umberto","Colle Umberto (TV) ","Consiglio di Bacino \"Veneto Orientale\"",508,508,"Treviso","TV","026020","Colle Umberto"]
["Veneto","Conegliano","Conegliano (TV) ","Consiglio di Bacino \"Veneto Orientale\"",508,508,"Treviso","TV","026021","Conegliano"]
["Veneto","Cordignano","Cordignano (TV) ","Consiglio di Bacino \"Veneto Orientale\"",508,508,"Treviso","TV","026022","Cordignano"]
["Veneto","Cornuda","Cornuda (TV) ","Consiglio di Bacino \"Veneto Orientale\"",508,508,"Treviso","TV","026023","Cornuda"]
["Veneto","Crocetta del Montello","Crocetta del Montello (TV) ","Consiglio di Bacino \"Veneto Orientale\"",508,508,"Treviso","TV","026025","Crocetta del Montello"]
["Veneto","Farra di Soligo","Farra di Soligo (TV) ","Consiglio di Bacino \"Veneto Orientale\"",508,508,"Treviso","TV","026026","Farra di Soligo"]
["Veneto","Follina","Follina (TV) ","Consiglio di Bacino \"Veneto Orientale\"",508,508,"Treviso","TV","026027","Follina"]
["Veneto","Fontanelle","Fontanelle (TV) ","Consiglio di Bacino \"Veneto Orientale\"",508,508,"Treviso","TV","026028","Fontanelle"]
["Veneto","Fonte","Fonte (TV) ","Consiglio di Bacino \"Veneto Orientale\"",508,508,"Treviso","TV","026029","Fonte"]
["Veneto","Fregona","Fregona (TV) ","Consiglio di Bacino \"Veneto Orientale\"",508,508,"Treviso","TV","026030","Fregona"]
["Veneto","Gaiarine","Gaiarine (TV) ","Consiglio di Bacino \"Veneto Orientale\"",508,508,"Treviso","TV","026031","Gaiarine"]
["Veneto","Giavera del Montello","Giavera del Montello (TV) ","Consiglio di Bacino \"Veneto Orientale\"",508,508,"Treviso","TV","026032","Giavera del Montello"]
["Veneto","Godega di Sant'Urbano","Godega di Sant'Urbano (TV) ","Consiglio di Bacino \"Veneto Orientale\"",508,508,"Treviso","TV","026033","Godega di Sant'Urbano"]
["Veneto","Gorgo al Monticano","Gorgo al Monticano (TV) ","Consiglio di Bacino \"Veneto Orientale\"",508,508,"Treviso","TV","026034","Gorgo al Monticano"]
["Veneto","Istrana","Istrana (TV) ","Consiglio di Bacino \"Veneto Orientale\"",508,508,"Treviso","TV","026035","Istrana"]
["Veneto","Loria","Loria (TV) ","Consiglio di Bacino \"Veneto Orientale\"",508,508,"Treviso","TV","026036","Loria"]
["Veneto","Mansuè","Mansuè (TV) ","Consiglio di Bacino \"Veneto Orientale\"",508,508,"Treviso","TV","026037","Mansuè"]
["Veneto","Mareno di Piave","Mareno di Piave (TV) ","Consiglio di Bacino \"Veneto Orientale\"",508,508,"Treviso","TV","026038","Mareno di Piave"]
["Veneto","Maser","Maser (TV) ","Consiglio di Bacino \"Veneto Orientale\"",508,508,"Treviso","TV","026039","Maser"]
["Veneto","Maserada sul Piave","Maserada sul Piave (TV) ","Consiglio di Bacino \"Veneto Orientale\"",508,508,"Treviso","TV","026040","Maserada sul Piave"]
["Veneto","Meduna di Livenza","Meduna di Livenza (TV) ","AUTORITA' UNICA PER I SERVIZI IDRICI E I RIFIUTI",605,605,"Treviso","TV","026041","Meduna di Livenza"]
["Veneto","Miane","Miane (TV) ","Consiglio di Bacino \"Veneto Orientale\"",508,508,"Treviso","TV","026042","Miane"]
["Veneto","Mogliano Veneto","Mogliano Veneto (TV) ","CONSIGLIO DI BACINO LAGUNA DI VENEZIA",504,504,"Treviso","TV","026043","Mogliano Veneto"]
["Veneto","Monastier di Treviso","Monastier di Treviso (TV) ","Consiglio di Bacino \"Veneto Orientale\"",508,508,"Treviso","TV","026044","Monastier di Treviso"]
["Veneto","Monfumo","Monfumo (TV) ","Consiglio di Bacino \"Veneto Orientale\"",508,508,"Treviso","TV","026045","Monfumo"]
["Veneto","Montebelluna","Montebelluna (TV) ","Consiglio di Bacino \"Veneto Orientale\"",508,508,"Treviso","TV","026046","Montebelluna"]
["Veneto","Morgano","Morgano (TV) ","CONSIGLIO DI BACINO LAGUNA DI VENEZIA",504,504,"Treviso","TV","026047","Morgano"]
["Veneto","Moriago della Battaglia","Moriago della Battaglia (TV) ","Consiglio di Bacino \"Veneto Orientale\"",508,508,"Treviso","TV","026048","Moriago della Battaglia"]
["Veneto","Motta di Livenza","Motta di Livenza (TV) ","Consiglio di Bacino \"Veneto Orientale\"",508,508,"Treviso","TV","026049","Motta di Livenza"]
["Veneto","Nervesa della Battaglia","Nervesa della Battaglia (TV) ","Consiglio di Bacino \"Veneto Orientale\"",508,508,"Treviso","TV","026050","Nervesa della Battaglia"]
["Veneto","Oderzo","Oderzo (TV) ","Consiglio di Bacino \"Veneto Orientale\"",508,508,"Treviso","TV","026051","Oderzo"]
["Veneto","Ormelle","Ormelle (TV) ","Consiglio di Bacino \"Veneto Orientale\"",508,508,"Treviso","TV","026052","Ormelle"]
["Veneto","Orsago","Orsago (TV) ","Consiglio di Bacino \"Veneto Orientale\"",508,508,"Treviso","TV","026053","Orsago"]
["Veneto","Paese","Paese (TV) ","Consiglio di Bacino \"Veneto Orientale\"",508,508,"Treviso","TV","026055","Paese"]
["Veneto","Pederobba","Pederobba (TV) ","Consiglio di Bacino \"Veneto Orientale\"",508,508,"Treviso","TV","026056","Pederobba"]
["Veneto","Pieve di Soligo","Pieve di Soligo (TV) ","Consiglio di Bacino \"Veneto Orientale\"",508,508,"Treviso","TV","026057","Pieve di Soligo"]
["Veneto","Ponte di Piave","Ponte di Piave (TV) ","Consiglio di Bacino \"Veneto Orientale\"",508,508,"Treviso","TV","026058","Ponte di Piave"]
["Veneto","Ponzano Veneto","Ponzano Veneto (TV) ","Consiglio di Bacino \"Veneto Orientale\"",508,508,"Treviso","TV","026059","Ponzano Veneto"]
["Veneto","Portobuffolè","Portobuffolè (TV) ","Consiglio di Bacino \"Veneto Orientale\"",508,508,"Treviso","TV","026060","Portobuffolè"]
["Veneto","Possagno","Possagno (TV) ","Consiglio di Bacino \"Veneto Orientale\"",508,508,"Treviso","TV","026061","Possagno"]
["Veneto","Povegliano","Povegliano (TV) ","Consiglio di Bacino \"Veneto Orientale\"",508,508,"Treviso","TV","026062","Povegliano"]
["Veneto","Preganziol","Preganziol (TV) ","CONSIGLIO DI BACINO LAGUNA DI VENEZIA",504,504,"Treviso","TV","026063","Preganziol"]
["Veneto","Quinto di Treviso","Quinto di Treviso (TV) ","CONSIGLIO DI BACINO LAGUNA DI VENEZIA",504,504,"Treviso","TV","026064","Quinto di Treviso"]
["Veneto","Refrontolo","Refrontolo (TV) ","Consiglio di Bacino \"Veneto Orientale\"",508,508,"Treviso","TV","026065","Refrontolo"]
["Veneto","Resana","Resana (TV) ","Consiglio di Bacino Brenta",503,503,"Treviso","TV","026066","Resana"]
["Veneto","Revine Lago","Revine Lago (TV) ","Consiglio di Bacino \"Veneto Orientale\"",508,508,"Treviso","TV","026067","Revine Lago"]
["Veneto","Riese Pio X","Riese Pio X (TV) ","Consiglio di Bacino \"Veneto Orientale\"",508,508,"Treviso","TV","026068","Riese Pio X"]
["Veneto","Roncade","Roncade (TV) ","Consiglio di Bacino \"Veneto Orientale\"",508,508,"Treviso","TV","026069","Roncade"]
["Veneto","Salgareda","Salgareda (TV) ","Consiglio di Bacino \"Veneto Orientale\"",508,508,"Treviso","TV","026070","Salgareda"]
["Veneto","San Biagio di Callalta","San Biagio di Callalta (TV) ","Consiglio di Bacino \"Veneto Orientale\"",508,508,"Treviso","TV","026071","San Biagio di Callalta"]
["Veneto","San Fior","San Fior (TV) ","Consiglio di Bacino \"Veneto Orientale\"",508,508,"Treviso","TV","026072","San Fior"]
["Veneto","San Pietro di Feletto","San Pietro di Feletto (TV) ","Consiglio di Bacino \"Veneto Orientale\"",508,508,"Treviso","TV","026073","San Pietro di Feletto"]
["Veneto","San Polo di Piave","San Polo di Piave (TV) ","Consiglio di Bacino \"Veneto Orientale\"",508,508,"Treviso","TV","026074","San Polo di Piave"]
["Veneto","Santa Lucia di Piave","Santa Lucia di Piave (TV) ","Consiglio di Bacino \"Veneto Orientale\"",508,508,"Treviso","TV","026075","Santa Lucia di Piave"]
["Veneto","San Vendemiano","San Vendemiano (TV) ","Consiglio di Bacino \"Veneto Orientale\"",508,508,"Treviso","TV","026076","San Vendemiano"]
["Veneto","San Zenone degli Ezzelini","San Zenone degli Ezzelini (TV) ","Consiglio di Bacino \"Veneto Orientale\"",508,508,"Treviso","TV","026077","San Zenone degli Ezzelini"]
["Veneto","Sarmede","Sarmede (TV) ","Consiglio di Bacino \"Veneto Orientale\"",508,508,"Treviso","TV","026078","Sarmede"]
["Veneto","Segusino","Segusino (TV) ","Consiglio di Bacino \"Veneto Orientale\"",508,508,"Treviso","TV","026079","Segusino"]
["Veneto","Sernaglia della Battaglia","Sernaglia della Battaglia (TV) ","Consiglio di Bacino \"Veneto Orientale\"",508,508,"Treviso","TV","026080","Sernaglia della Battaglia"]
["Veneto","Silea","Silea (TV) ","Consiglio di Bacino \"Veneto Orientale\"",508,508,"Treviso","TV","026081","Silea"]
["Veneto","Spresiano","Spresiano (TV) ","Consiglio di Bacino \"Veneto Orientale\"",508,508,"Treviso","TV","026082","Spresiano"]
["Veneto","Susegana","Susegana (TV) ","Consiglio di Bacino \"Veneto Orientale\"",508,508,"Treviso","TV","026083","Susegana"]
["Veneto","Tarzo","Tarzo (TV) ","Consiglio di Bacino \"Veneto Orientale\"",508,508,"Treviso","TV","026084","Tarzo"]
["Veneto","Trevignano","Trevignano (TV) ","Consiglio di Bacino \"Veneto Orientale\"",508,508,"Treviso","TV","026085","Trevignano"]
["Veneto","Treviso","Treviso (TV) ","Consiglio di Bacino \"Veneto Orientale\"",508,508,"Treviso","TV","026086","Treviso"]
["Veneto","Valdobbiadene","Valdobbiadene (TV) ","Consiglio di Bacino \"Veneto Orientale\"",508,508,"Treviso","TV","026087","Valdobbiadene"]
["Veneto","Vazzola","Vazzola (TV) ","Consiglio di Bacino \"Veneto Orientale\"",508,508,"Treviso","TV","026088","Vazzola"]
["Veneto","Vedelago","Vedelago (TV) ","Consiglio di Bacino \"Veneto Orientale\"",508,508,"Treviso","TV","026089","Vedelago"]
["Veneto","Vidor","Vidor (TV) ","Consiglio di Bacino \"Veneto Orientale\"",508,508,"Treviso","TV","026090","Vidor"]
["Veneto","Villorba","Villorba (TV) ","Consiglio di Bacino \"Veneto Orientale\"",508,508,"Treviso","TV","026091","Villorba"]
["Veneto","Vittorio Veneto","Vittorio Veneto (TV) ","Consiglio di Bacino \"Veneto Orientale\"",508,508,"Treviso","TV","026092","Vittorio Veneto"]
["Veneto","Volpago del Montello","Volpago del Montello (TV) ","Consiglio di Bacino \"Veneto Orientale\"",508,508,"Treviso","TV","026093","Volpago del Montello"]
["Veneto","Zenson di Piave","Zenson di Piave (TV) ","CONSIGLIO DI BACINO LAGUNA DI VENEZIA",504,504,"Treviso","TV","026094","Zenson di Piave"]
["Veneto","Zero Branco","Zero Branco (TV) ","CONSIGLIO DI BACINO LAGUNA DI VENEZIA",504,504,"Treviso","TV","026095","Zero Branco"]
["Veneto","Pieve del Grappa","Pieve del Grappa (TV) ","Consiglio di Bacino \"Veneto Orientale\"",508,508,"Treviso","TV","026096","Pieve del Grappa"]
["Veneto","Annone Veneto","Annone Veneto (VE) ","AUTORITA' UNICA PER I SERVIZI IDRICI E I RIFIUTI",605,605,"Venezia","VE","027001","Annone Veneto"]
["Veneto","Campagna Lupia","Campagna Lupia (VE) ","CONSIGLIO DI BACINO LAGUNA DI VENEZIA",504,504,"Venezia","VE","027002","Campagna Lupia"]
["Veneto","Campolongo Maggiore","Campolongo Maggiore (VE) ","CONSIGLIO DI BACINO LAGUNA DI VENEZIA",504,504,"Venezia","VE","027003","Campolongo Maggiore"]
["Veneto","Camponogara","Camponogara (VE) ","CONSIGLIO DI BACINO LAGUNA DI VENEZIA",504,504,"Venezia","VE","027004","Camponogara"]
["Veneto","Caorle","Caorle (VE) ","CONSIGLIO DI BACINO LAGUNA DI VENEZIA",504,504,"Venezia","VE","027005","Caorle"]
["Veneto","Cavarzere","Cavarzere (VE) ","Consiglio di Bacino Polesine",505,505,"Venezia","VE","027006","Cavarzere"]
["Veneto","Ceggia","Ceggia (VE) ","CONSIGLIO DI BACINO LAGUNA DI VENEZIA",504,504,"Venezia","VE","027007","Ceggia"]
["Veneto","Chioggia","Chioggia (VE) ","CONSIGLIO DI BACINO LAGUNA DI VENEZIA",504,504,"Venezia","VE","027008","Chioggia"]
["Veneto","Cinto Caomaggiore","Cinto Caomaggiore (VE) ","AUTORITA' UNICA PER I SERVIZI IDRICI E I RIFIUTI",605,605,"Venezia","VE","027009","Cinto Caomaggiore"]
["Veneto","Cona","Cona (VE) ","Consiglio di Bacino Bacchiglione",502,502,"Venezia","VE","027010","Cona"]
["Veneto","Concordia Sagittaria","Concordia Sagittaria (VE) ","AUTORITA' UNICA PER I SERVIZI IDRICI E I RIFIUTI",605,605,"Venezia","VE","027011","Concordia Sagittaria"]
["Veneto","Dolo","Dolo (VE) ","CONSIGLIO DI BACINO LAGUNA DI VENEZIA",504,504,"Venezia","VE","027012","Dolo"]
["Veneto","Eraclea","Eraclea (VE) ","CONSIGLIO DI BACINO LAGUNA DI VENEZIA",504,504,"Venezia","VE","027013","Eraclea"]
["Veneto","Fiesso d'Artico","Fiesso d'Artico (VE) ","CONSIGLIO DI BACINO LAGUNA DI VENEZIA",504,504,"Venezia","VE","027014","Fiesso d'Artico"]
["Veneto","Fossalta di Piave","Fossalta di Piave (VE) ","CONSIGLIO DI BACINO LAGUNA DI VENEZIA",504,504,"Venezia","VE","027015","Fossalta di Piave"]
["Veneto","Fossalta di Portogruaro","Fossalta di Portogruaro (VE) ","AUTORITA' UNICA PER I SERVIZI IDRICI E I RIFIUTI",605,605,"Venezia","VE","027016","Fossalta di Portogruaro"]
["Veneto","Fossò","Fossò (VE) ","CONSIGLIO DI BACINO LAGUNA DI VENEZIA",504,504,"Venezia","VE","027017","Fossò"]
["Veneto","Gruaro","Gruaro (VE) ","AUTORITA' UNICA PER I SERVIZI IDRICI E I RIFIUTI",605,605,"Venezia","VE","027018","Gruaro"]
["Veneto","Jesolo","Jesolo (VE) ","CONSIGLIO DI BACINO LAGUNA DI VENEZIA",504,504,"Venezia","VE","027019","Jesolo"]
["Veneto","Marcon","Marcon (VE) ","Consiglio di Bacino \"Veneto Orientale\"",508,508,"Venezia","VE","027020","Marcon"]
["Veneto","Martellago","Martellago (VE) ","CONSIGLIO DI BACINO LAGUNA DI VENEZIA",504,504,"Venezia","VE","027021","Martellago"]
["Veneto","Meolo","Meolo (VE) ","Consiglio di Bacino \"Veneto Orientale\"",508,508,"Venezia","VE","027022","Meolo"]
["Veneto","Mira","Mira (VE) ","CONSIGLIO DI BACINO LAGUNA DI VENEZIA",504,504,"Venezia","VE","027023","Mira"]
["Veneto","Mirano","Mirano (VE) ","CONSIGLIO DI BACINO LAGUNA DI VENEZIA",504,504,"Venezia","VE","027024","Mirano"]
["Veneto","Musile di Piave","Musile di Piave (VE) ","CONSIGLIO DI BACINO LAGUNA DI VENEZIA",504,504,"Venezia","VE","027025","Musile di Piave"]
["Veneto","Noale","Noale (VE) ","CONSIGLIO DI BACINO LAGUNA DI VENEZIA",504,504,"Venezia","VE","027026","Noale"]
["Veneto","Noventa di Piave","Noventa di Piave (VE) ","CONSIGLIO DI BACINO LAGUNA DI VENEZIA",504,504,"Venezia","VE","027027","Noventa di Piave"]
["Veneto","Pianiga","Pianiga (VE) ","CONSIGLIO DI BACINO LAGUNA DI VENEZIA",504,504,"Venezia","VE","027028","Pianiga"]
["Veneto","Portogruaro","Portogruaro (VE) ","AUTORITA' UNICA PER I SERVIZI IDRICI E I RIFIUTI",605,605,"Venezia","VE","027029","Portogruaro"]
["Veneto","Pramaggiore","Pramaggiore (VE) ","AUTORITA' UNICA PER I SERVIZI IDRICI E I RIFIUTI",605,605,"Venezia","VE","027030","Pramaggiore"]
["Veneto","Quarto d'Altino","Quarto d'Altino (VE) ","Consiglio di Bacino \"Veneto Orientale\"",508,508,"Venezia","VE","027031","Quarto d'Altino"]
["Veneto","Salzano","Salzano (VE) ","CONSIGLIO DI BACINO LAGUNA DI VENEZIA",504,504,"Venezia","VE","027032","Salzano"]
["Veneto","San Donà di Piave","San Donà di Piave (VE) ","CONSIGLIO DI BACINO LAGUNA DI VENEZIA",504,504,"Venezia","VE","027033","San Donà di Piave"]
["Veneto","San Michele al Tagliamento","San Michele al Tagliamento (VE) ","AUTORITA' UNICA PER I SERVIZI IDRICI E I RIFIUTI",605,605,"Venezia","VE","027034","San Michele al Tagliamento"]
["Veneto","Santa Maria di Sala","Santa Maria di Sala (VE) ","CONSIGLIO DI BACINO LAGUNA DI VENEZIA",504,504,"Venezia","VE","027035","Santa Maria di Sala"]
["Veneto","San Stino di Livenza","San Stino di Livenza (VE) ","AUTORITA' UNICA PER I SERVIZI IDRICI E I RIFIUTI",605,605,"Venezia","VE","027036","San Stino di Livenza"]
["Veneto","Scorzè","Scorzè (VE) ","CONSIGLIO DI BACINO LAGUNA DI VENEZIA",504,504,"Venezia","VE","027037","Scorzè"]
["Veneto","Spinea","Spinea (VE) ","CONSIGLIO DI BACINO LAGUNA DI VENEZIA",504,504,"Venezia","VE","027038","Spinea"]
["Veneto","Stra","Stra (VE) ","CONSIGLIO DI BACINO LAGUNA DI VENEZIA",504,504,"Venezia","VE","027039","Stra"]
["Veneto","Teglio Veneto","Teglio Veneto (VE) ","AUTORITA' UNICA PER I SERVIZI IDRICI E I RIFIUTI",605,605,"Venezia","VE","027040","Teglio Veneto"]
["Veneto","Torre di Mosto","Torre di Mosto (VE) ","CONSIGLIO DI BACINO LAGUNA DI VENEZIA",504,504,"Venezia","VE","027041","Torre di Mosto"]
["Veneto","Venezia","Venezia (VE) ","CONSIGLIO DI BACINO LAGUNA DI VENEZIA",504,504,"Venezia","VE","027042","Venezia"]
["Veneto","Vigonovo","Vigonovo (VE) ","CONSIGLIO DI BACINO LAGUNA DI VENEZIA",504,504,"Venezia","VE","027043","Vigonovo"]
["Veneto","Cavallino-Treporti","Cavallino-Treporti (VE) ","CONSIGLIO DI BACINO LAGUNA DI VENEZIA",504,504,"Venezia","VE","027044","Cavallino-Treporti"]
["Veneto","Abano Terme","Abano Terme (PD) ","Consiglio di Bacino Bacchiglione",502,502,"Padova","PD","028001","Abano Terme"]
["Veneto","Agna","Agna (PD) ","Consiglio di Bacino Bacchiglione",502,502,"Padova","PD","028002","Agna"]
["Veneto","Albignasego","Albignasego (PD) ","Consiglio di Bacino Bacchiglione",502,502,"Padova","PD","028003","Albignasego"]
["Veneto","Anguillara Veneta","Anguillara Veneta (PD) ","Consiglio di Bacino Bacchiglione",502,502,"Padova","PD","028004","Anguillara Veneta"]
["Veneto","Arquà Petrarca","Arquà Petrarca (PD) ","Consiglio di Bacino Bacchiglione",502,502,"Padova","PD","028005","Arquà Petrarca"]
["Veneto","Arre","Arre (PD) ","Consiglio di Bacino Bacchiglione",502,502,"Padova","PD","028006","Arre"]
["Veneto","Arzergrande","Arzergrande (PD) ","Consiglio di Bacino Bacchiglione",502,502,"Padova","PD","028007","Arzergrande"]
["Veneto","Bagnoli di Sopra","Bagnoli di Sopra (PD) ","Consiglio di Bacino Bacchiglione",502,502,"Padova","PD","028008","Bagnoli di Sopra"]
["Veneto","Baone","Baone (PD) ","Consiglio di Bacino Bacchiglione",502,502,"Padova","PD","028009","Baone"]
["Veneto","Barbona","Barbona (PD) ","Consiglio di Bacino Bacchiglione",502,502,"Padova","PD","028010","Barbona"]
["Veneto","Battaglia Terme","Battaglia Terme (PD) ","Consiglio di Bacino Brenta",503,503,"Padova","PD","028011","Battaglia Terme"]
["Veneto","Boara Pisani","Boara Pisani (PD) ","Consiglio di Bacino Bacchiglione",502,502,"Padova","PD","028012","Boara Pisani"]
["Veneto","Borgoricco","Borgoricco (PD) ","Consiglio di Bacino Brenta",503,503,"Padova","PD","028013","Borgoricco"]
["Veneto","Bovolenta","Bovolenta (PD) ","Consiglio di Bacino Bacchiglione",502,502,"Padova","PD","028014","Bovolenta"]
["Veneto","Brugine","Brugine (PD) ","Consiglio di Bacino Bacchiglione",502,502,"Padova","PD","028015","Brugine"]
["Veneto","Cadoneghe","Cadoneghe (PD) ","Consiglio di Bacino Brenta",503,503,"Padova","PD","028016","Cadoneghe"]
["Veneto","Campodarsego","Campodarsego (PD) ","Consiglio di Bacino Brenta",503,503,"Padova","PD","028017","Campodarsego"]
["Veneto","Campodoro","Campodoro (PD) ","Consiglio di Bacino Brenta",503,503,"Padova","PD","028018","Campodoro"]
["Veneto","Camposampiero","Camposampiero (PD) ","Consiglio di Bacino Brenta",503,503,"Padova","PD","028019","Camposampiero"]
["Veneto","Campo San Martino","Campo San Martino (PD) ","Consiglio di Bacino Brenta",503,503,"Padova","PD","028020","Campo San Martino"]
["Veneto","Candiana","Candiana (PD) ","Consiglio di Bacino Bacchiglione",502,502,"Padova","PD","028021","Candiana"]
["Veneto","Carmignano di Brenta","Carmignano di Brenta (PD) ","Consiglio di Bacino Brenta",503,503,"Padova","PD","028023","Carmignano di Brenta"]
["Veneto","Cartura","Cartura (PD) ","Consiglio di Bacino Bacchiglione",502,502,"Padova","PD","028026","Cartura"]
["Veneto","Casale di Scodosia","Casale di Scodosia (PD) ","Consiglio di Bacino Bacchiglione",502,502,"Padova","PD","028027","Casale di Scodosia"]
["Veneto","Casalserugo","Casalserugo (PD) ","Consiglio di Bacino Bacchiglione",502,502,"Padova","PD","028028","Casalserugo"]
["Veneto","Castelbaldo","Castelbaldo (PD) ","Consiglio di Bacino Bacchiglione",502,502,"Padova","PD","028029","Castelbaldo"]
["Veneto","Cervarese Santa Croce","Cervarese Santa Croce (PD) ","Consiglio di Bacino Brenta",503,503,"Padova","PD","028030","Cervarese Santa Croce"]
["Veneto","Cinto Euganeo","Cinto Euganeo (PD) ","Consiglio di Bacino Bacchiglione",502,502,"Padova","PD","028031","Cinto Euganeo"]
["Veneto","Cittadella","Cittadella (PD) ","Consiglio di Bacino Brenta",503,503,"Padova","PD","028032","Cittadella"]
["Veneto","Codevigo","Codevigo (PD) ","Consiglio di Bacino Bacchiglione",502,502,"Padova","PD","028033","Codevigo"]
["Veneto","Conselve","Conselve (PD) ","Consiglio di Bacino Bacchiglione",502,502,"Padova","PD","028034","Conselve"]
["Veneto","Correzzola","Correzzola (PD) ","Consiglio di Bacino Bacchiglione",502,502,"Padova","PD","028035","Correzzola"]
["Veneto","Curtarolo","Curtarolo (PD) ","Consiglio di Bacino Brenta",503,503,"Padova","PD","028036","Curtarolo"]
["Veneto","Este","Este (PD) ","Consiglio di Bacino Bacchiglione",502,502,"Padova","PD","028037","Este"]
["Veneto","Fontaniva","Fontaniva (PD) ","Consiglio di Bacino Brenta",503,503,"Padova","PD","028038","Fontaniva"]
["Veneto","Galliera Veneta","Galliera Veneta (PD) ","Consiglio di Bacino Brenta",503,503,"Padova","PD","028039","Galliera Veneta"]
["Veneto","Galzignano Terme","Galzignano Terme (PD) ","Consiglio di Bacino Brenta",503,503,"Padova","PD","028040","Galzignano Terme"]
["Veneto","Gazzo","Gazzo (PD) ","Consiglio di Bacino Brenta",503,503,"Padova","PD","028041","Gazzo"]
["Veneto","Grantorto","Grantorto (PD) ","Consiglio di Bacino Brenta",503,503,"Padova","PD","028042","Grantorto"]
["Veneto","Granze","Granze (PD) ","Consiglio di Bacino Bacchiglione",502,502,"Padova","PD","028043","Granze"]
["Veneto","Legnaro","Legnaro (PD) ","Consiglio di Bacino Bacchiglione",502,502,"Padova","PD","028044","Legnaro"]
["Veneto","Limena","Limena (PD) ","Consiglio di Bacino Brenta",503,503,"Padova","PD","028045","Limena"]
["Veneto","Loreggia","Loreggia (PD) ","Consiglio di Bacino Brenta",503,503,"Padova","PD","028046","Loreggia"]
["Veneto","Lozzo Atestino","Lozzo Atestino (PD) ","Consiglio di Bacino Bacchiglione",502,502,"Padova","PD","028047","Lozzo Atestino"]
["Veneto","Maserà di Padova","Maserà di Padova (PD) ","Consiglio di Bacino Bacchiglione",502,502,"Padova","PD","028048","Maserà di Padova"]
["Veneto","Masi","Masi (PD) ","Consiglio di Bacino Bacchiglione",502,502,"Padova","PD","028049","Masi"]
["Veneto","Massanzago","Massanzago (PD) ","Consiglio di Bacino Brenta",503,503,"Padova","PD","028050","Massanzago"]
["Veneto","Megliadino San Vitale","Megliadino San Vitale (PD) ","Consiglio di Bacino Bacchiglione",502,502,"Padova","PD","028052","Megliadino San Vitale"]
["Veneto","Merlara","Merlara (PD) ","Consiglio di Bacino Bacchiglione",502,502,"Padova","PD","028053","Merlara"]
["Veneto","Mestrino","Mestrino (PD) ","Consiglio di Bacino Brenta",503,503,"Padova","PD","028054","Mestrino"]
["Veneto","Monselice","Monselice (PD) ","Consiglio di Bacino Bacchiglione",502,502,"Padova","PD","028055","Monselice"]
["Veneto","Montagnana","Montagnana (PD) ","Consiglio di Bacino Bacchiglione",502,502,"Padova","PD","028056","Montagnana"]
["Veneto","Montegrotto Terme","Montegrotto Terme (PD) ","Consiglio di Bacino Brenta",503,503,"Padova","PD","028057","Montegrotto Terme"]
["Veneto","Noventa Padovana","Noventa Padovana (PD) ","Consiglio di Bacino Brenta",503,503,"Padova","PD","028058","Noventa Padovana"]
["Veneto","Ospedaletto Euganeo","Ospedaletto Euganeo (PD) ","Consiglio di Bacino Bacchiglione",502,502,"Padova","PD","028059","Ospedaletto Euganeo"]
["Veneto","Padova","Padova (PD) ","Consiglio di Bacino Bacchiglione",502,502,"Padova","PD","028060","Padova"]
["Veneto","Pernumia","Pernumia (PD) ","Consiglio di Bacino Bacchiglione",502,502,"Padova","PD","028061","Pernumia"]
["Veneto","Piacenza d'Adige","Piacenza d'Adige (PD) ","Consiglio di Bacino Bacchiglione",502,502,"Padova","PD","028062","Piacenza d'Adige"]
["Veneto","Piazzola sul Brenta","Piazzola sul Brenta (PD) ","Consiglio di Bacino Brenta",503,503,"Padova","PD","028063","Piazzola sul Brenta"]
["Veneto","Piombino Dese","Piombino Dese (PD) ","Consiglio di Bacino Brenta",503,503,"Padova","PD","028064","Piombino Dese"]
["Veneto","Piove di Sacco","Piove di Sacco (PD) ","Consiglio di Bacino Bacchiglione",502,502,"Padova","PD","028065","Piove di Sacco"]
["Veneto","Polverara","Polverara (PD) ","Consiglio di Bacino Bacchiglione",502,502,"Padova","PD","028066","Polverara"]
["Veneto","Ponso","Ponso (PD) ","Consiglio di Bacino Bacchiglione",502,502,"Padova","PD","028067","Ponso"]
["Veneto","Pontelongo","Pontelongo (PD) ","Consiglio di Bacino Bacchiglione",502,502,"Padova","PD","028068","Pontelongo"]
["Veneto","Ponte San Nicolò","Ponte San Nicolò (PD) ","Consiglio di Bacino Bacchiglione",502,502,"Padova","PD","028069","Ponte San Nicolò"]
["Veneto","Pozzonovo","Pozzonovo (PD) ","Consiglio di Bacino Bacchiglione",502,502,"Padova","PD","028070","Pozzonovo"]
["Veneto","Rovolon","Rovolon (PD) ","Consiglio di Bacino Brenta",503,503,"Padova","PD","028071","Rovolon"]
["Veneto","Rubano","Rubano (PD) ","Consiglio di Bacino Brenta",503,503,"Padova","PD","028072","Rubano"]
["Veneto","Saccolongo","Saccolongo (PD) ","Consiglio di Bacino Brenta",503,503,"Padova","PD","028073","Saccolongo"]
["Veneto","San Giorgio delle Pertiche","San Giorgio delle Pertiche (PD) ","Consiglio di Bacino Brenta",503,503,"Padova","PD","028075","San Giorgio delle Pertiche"]
["Veneto","San Giorgio in Bosco","San Giorgio in Bosco (PD) ","Consiglio di Bacino Brenta",503,503,"Padova","PD","028076","San Giorgio in Bosco"]
["Veneto","San Martino di Lupari","San Martino di Lupari (PD) ","Consiglio di Bacino Brenta",503,503,"Padova","PD","028077","San Martino di Lupari"]
["Veneto","San Pietro in Gu","San Pietro in Gu (PD) ","Consiglio di Bacino Brenta",503,503,"Padova","PD","028078","San Pietro in Gu"]
["Veneto","San Pietro Viminario","San Pietro Viminario (PD) ","Consiglio di Bacino Bacchiglione",502,502,"Padova","PD","028079","San Pietro Viminario"]
["Veneto","Santa Giustina in Colle","Santa Giustina in Colle (PD) ","Consiglio di Bacino Brenta",503,503,"Padova","PD","028080","Santa Giustina in Colle"]
["Veneto","Sant'Angelo di Piove di Sacco","Sant'Angelo di Piove di Sacco (PD) ","Consiglio di Bacino Bacchiglione",502,502,"Padova","PD","028082","Sant'Angelo di Piove di Sacco"]
["Veneto","Sant'Elena","Sant'Elena (PD) ","Consiglio di Bacino Bacchiglione",502,502,"Padova","PD","028083","Sant'Elena"]
["Veneto","Sant'Urbano","Sant'Urbano (PD) ","Consiglio di Bacino Bacchiglione",502,502,"Padova","PD","028084","Sant'Urbano"]
["Veneto","Saonara","Saonara (PD) ","Consiglio di Bacino Brenta",503,503,"Padova","PD","028085","Saonara"]
["Veneto","Selvazzano Dentro","Selvazzano Dentro (PD) ","Consiglio di Bacino Brenta",503,503,"Padova","PD","028086","Selvazzano Dentro"]
["Veneto","Solesino","Solesino (PD) ","Consiglio di Bacino Bacchiglione",502,502,"Padova","PD","028087","Solesino"]
["Veneto","Stanghella","Stanghella (PD) ","Consiglio di Bacino Bacchiglione",502,502,"Padova","PD","028088","Stanghella"]
["Veneto","Teolo","Teolo (PD) ","Consiglio di Bacino Brenta",503,503,"Padova","PD","028089","Teolo"]
["Veneto","Terrassa Padovana","Terrassa Padovana (PD) ","Consiglio di Bacino Bacchiglione",502,502,"Padova","PD","028090","Terrassa Padovana"]
["Veneto","Tombolo","Tombolo (PD) ","Consiglio di Bacino Brenta",503,503,"Padova","PD","028091","Tombolo"]
["Veneto","Torreglia","Torreglia (PD) ","Consiglio di Bacino Brenta",503,503,"Padova","PD","028092","Torreglia"]
["Veneto","Trebaseleghe","Trebaseleghe (PD) ","Consiglio di Bacino Brenta",503,503,"Padova","PD","028093","Trebaseleghe"]
["Veneto","Tribano","Tribano (PD) ","Consiglio di Bacino Bacchiglione",502,502,"Padova","PD","028094","Tribano"]
["Veneto","Urbana","Urbana (PD) ","Consiglio di Bacino Bacchiglione",502,502,"Padova","PD","028095","Urbana"]
["Veneto","Veggiano","Veggiano (PD) ","Consiglio di Bacino Brenta",503,503,"Padova","PD","028096","Veggiano"]
["Veneto","Vescovana","Vescovana (PD) ","Consiglio di Bacino Bacchiglione",502,502,"Padova","PD","028097","Vescovana"]
["Veneto","Vigodarzere","Vigodarzere (PD) ","Consiglio di Bacino Brenta",503,503,"Padova","PD","028099","Vigodarzere"]
["Veneto","Vigonza","Vigonza (PD) ","Consiglio di Bacino Brenta",503,503,"Padova","PD","028100","Vigonza"]
["Veneto","Villa del Conte","Villa del Conte (PD) ","Consiglio di Bacino Brenta",503,503,"Padova","PD","028101","Villa del Conte"]
["Veneto","Villa Estense","Villa Estense (PD) ","Consiglio di Bacino Bacchiglione",502,502,"Padova","PD","028102","Villa Estense"]
["Veneto","Villafranca Padovana","Villafranca Padovana (PD) ","Consiglio di Bacino Brenta",503,503,"Padova","PD","028103","Villafranca Padovana"]
["Veneto","Villanova di Camposampiero","Villanova di Camposampiero (PD) ","Consiglio di Bacino Brenta",503,503,"Padova","PD","028104","Villanova di Camposampiero"]
["Veneto","Vo'","Vo' (PD) ","Consiglio di Bacino Bacchiglione",502,502,"Padova","PD","028105","Vo'"]
["Veneto","Due Carrare","Due Carrare (PD) ","Consiglio di Bacino Bacchiglione",502,502,"Padova","PD","028106","Due Carrare"]
["Veneto","Borgo Veneto","Borgo Veneto (PD) ","Consiglio di Bacino Bacchiglione",502,502,"Padova","PD","028107","Borgo Veneto"]
["Veneto","Santa Caterina d'Este","Santa Caterina d'Este (PD) ","Consiglio di Bacino Bacchiglione",502,502,"Padova","PD","028108","Santa Caterina d'Este"]
["Veneto","Adria","Adria (RO) ","Consiglio di Bacino Polesine",505,505,"Rovigo","RO","029001","Adria"]
["Veneto","Ariano nel Polesine","Ariano nel Polesine (RO) ","Consiglio di Bacino Polesine",505,505,"Rovigo","RO","029002","Ariano nel Polesine"]
["Veneto","Arquà Polesine","Arquà Polesine (RO) ","Consiglio di Bacino Polesine",505,505,"Rovigo","RO","029003","Arquà Polesine"]
["Veneto","Badia Polesine","Badia Polesine (RO) ","Consiglio di Bacino Polesine",505,505,"Rovigo","RO","029004","Badia Polesine"]
["Veneto","Bagnolo di Po","Bagnolo di Po (RO) ","Consiglio di Bacino Polesine",505,505,"Rovigo","RO","029005","Bagnolo di Po"]
["Veneto","Bergantino","Bergantino (RO) ","Consiglio di Bacino Polesine",505,505,"Rovigo","RO","029006","Bergantino"]
["Veneto","Bosaro","Bosaro (RO) ","Consiglio di Bacino Polesine",505,505,"Rovigo","RO","029007","Bosaro"]
["Veneto","Calto","Calto (RO) ","Consiglio di Bacino Polesine",505,505,"Rovigo","RO","029008","Calto"]
["Veneto","Canaro","Canaro (RO) ","Consiglio di Bacino Polesine",505,505,"Rovigo","RO","029009","Canaro"]
["Veneto","Canda","Canda (RO) ","Consiglio di Bacino Polesine",505,505,"Rovigo","RO","029010","Canda"]
["Veneto","Castelguglielmo","Castelguglielmo (RO) ","Consiglio di Bacino Polesine",505,505,"Rovigo","RO","029011","Castelguglielmo"]
["Veneto","Castelmassa","Castelmassa (RO) ","Consiglio di Bacino Polesine",505,505,"Rovigo","RO","029012","Castelmassa"]
["Veneto","Castelnovo Bariano","Castelnovo Bariano (RO) ","Consiglio di Bacino Polesine",505,505,"Rovigo","RO","029013","Castelnovo Bariano"]
["Veneto","Ceneselli","Ceneselli (RO) ","Consiglio di Bacino Polesine",505,505,"Rovigo","RO","029014","Ceneselli"]
["Veneto","Ceregnano","Ceregnano (RO) ","Consiglio di Bacino Polesine",505,505,"Rovigo","RO","029015","Ceregnano"]
["Veneto","Corbola","Corbola (RO) ","Consiglio di Bacino Polesine",505,505,"Rovigo","RO","029017","Corbola"]
["Veneto","Costa di Rovigo","Costa di Rovigo (RO) ","Consiglio di Bacino Polesine",505,505,"Rovigo","RO","029018","Costa di Rovigo"]
["Veneto","Crespino","Crespino (RO) ","Consiglio di Bacino Polesine",505,505,"Rovigo","RO","029019","Crespino"]
["Veneto","Ficarolo","Ficarolo (RO) ","Consiglio di Bacino Polesine",505,505,"Rovigo","RO","029021","Ficarolo"]
["Veneto","Fiesso Umbertiano","Fiesso Umbertiano (RO) ","Consiglio di Bacino Polesine",505,505,"Rovigo","RO","029022","Fiesso Umbertiano"]
["Veneto","Frassinelle Polesine","Frassinelle Polesine (RO) ","Consiglio di Bacino Polesine",505,505,"Rovigo","RO","029023","Frassinelle Polesine"]
["Veneto","Fratta Polesine","Fratta Polesine (RO) ","Consiglio di Bacino Polesine",505,505,"Rovigo","RO","029024","Fratta Polesine"]
["Veneto","Gaiba","Gaiba (RO) ","Consiglio di Bacino Polesine",505,505,"Rovigo","RO","029025","Gaiba"]
["Veneto","Gavello","Gavello (RO) ","Consiglio di Bacino Polesine",505,505,"Rovigo","RO","029026","Gavello"]
["Veneto","Giacciano con Baruchella","Giacciano con Baruchella (RO) ","Consiglio di Bacino Polesine",505,505,"Rovigo","RO","029027","Giacciano con Baruchella"]
["Veneto","Guarda Veneta","Guarda Veneta (RO) ","Consiglio di Bacino Polesine",505,505,"Rovigo","RO","029028","Guarda Veneta"]
["Veneto","Lendinara","Lendinara (RO) ","Consiglio di Bacino Polesine",505,505,"Rovigo","RO","029029","Lendinara"]
["Veneto","Loreo","Loreo (RO) ","Consiglio di Bacino Polesine",505,505,"Rovigo","RO","029030","Loreo"]
["Veneto","Lusia","Lusia (RO) ","Consiglio di Bacino Polesine",505,505,"Rovigo","RO","029031","Lusia"]
["Veneto","Melara","Melara (RO) ","Consiglio di Bacino Polesine",505,505,"Rovigo","RO","029032","Melara"]
["Veneto","Occhiobello","Occhiobello (RO) ","Consiglio di Bacino Polesine",505,505,"Rovigo","RO","029033","Occhiobello"]
["Veneto","Papozze","Papozze (RO) ","Consiglio di Bacino Polesine",505,505,"Rovigo","RO","029034","Papozze"]
["Veneto","Pettorazza Grimani","Pettorazza Grimani (RO) ","Consiglio di Bacino Polesine",505,505,"Rovigo","RO","029035","Pettorazza Grimani"]
["Veneto","Pincara","Pincara (RO) ","Consiglio di Bacino Polesine",505,505,"Rovigo","RO","029036","Pincara"]
["Veneto","Polesella","Polesella (RO) ","Consiglio di Bacino Polesine",505,505,"Rovigo","RO","029037","Polesella"]
["Veneto","Pontecchio Polesine","Pontecchio Polesine (RO) ","Consiglio di Bacino Polesine",505,505,"Rovigo","RO","029038","Pontecchio Polesine"]
["Veneto","Porto Tolle","Porto Tolle (RO) ","Consiglio di Bacino Polesine",505,505,"Rovigo","RO","029039","Porto Tolle"]
["Veneto","Rosolina","Rosolina (RO) ","Consiglio di Bacino Polesine",505,505,"Rovigo","RO","029040","Rosolina"]
["Veneto","Rovigo","Rovigo (RO) ","Consiglio di Bacino Polesine",505,505,"Rovigo","RO","029041","Rovigo"]
["Veneto","Salara","Salara (RO) ","Consiglio di Bacino Polesine",505,505,"Rovigo","RO","029042","Salara"]
["Veneto","San Bellino","San Bellino (RO) ","Consiglio di Bacino Polesine",505,505,"Rovigo","RO","029043","San Bellino"]
["Veneto","San Martino di Venezze","San Martino di Venezze (RO) ","Consiglio di Bacino Polesine",505,505,"Rovigo","RO","029044","San Martino di Venezze"]
["Veneto","Stienta","Stienta (RO) ","Consiglio di Bacino Polesine",505,505,"Rovigo","RO","029045","Stienta"]
["Veneto","Taglio di Po","Taglio di Po (RO) ","Consiglio di Bacino Polesine",505,505,"Rovigo","RO","029046","Taglio di Po"]
["Veneto","Trecenta","Trecenta (RO) ","Consiglio di Bacino Polesine",505,505,"Rovigo","RO","029047","Trecenta"]
["Veneto","Villadose","Villadose (RO) ","Consiglio di Bacino Polesine",505,505,"Rovigo","RO","029048","Villadose"]
["Veneto","Villamarzana","Villamarzana (RO) ","Consiglio di Bacino Polesine",505,505,"Rovigo","RO","029049","Villamarzana"]
["Veneto","Villanova del Ghebbo","Villanova del Ghebbo (RO) ","Consiglio di Bacino Polesine",505,505,"Rovigo","RO","029050","Villanova del Ghebbo"]
["Veneto","Villanova Marchesana","Villanova Marchesana (RO) ","Consiglio di Bacino Polesine",505,505,"Rovigo","RO","029051","Villanova Marchesana"]
["Veneto","Porto Viro","Porto Viro (RO) ","Consiglio di Bacino Polesine",505,505,"Rovigo","RO","029052","Porto Viro"]
["Friuli-Venezia Giulia","Aiello del Friuli","Aiello del Friuli (UD) ","AUTORITA' UNICA PER I SERVIZI IDRICI E I RIFIUTI",605,605,"Udine","UD","030001","Aiello del Friuli"]
["Friuli-Venezia Giulia","Amaro","Amaro (UD) ","AUTORITA' UNICA PER I SERVIZI IDRICI E I RIFIUTI",605,605,"Udine","UD","030002","Amaro"]
["Friuli-Venezia Giulia","Ampezzo","Ampezzo (UD) ","AUTORITA' UNICA PER I SERVIZI IDRICI E I RIFIUTI",605,605,"Udine","UD","030003","Ampezzo"]
["Friuli-Venezia Giulia","Aquileia","Aquileia (UD) ","AUTORITA' UNICA PER I SERVIZI IDRICI E I RIFIUTI",605,605,"Udine","UD","030004","Aquileia"]
["Friuli-Venezia Giulia","Arta Terme","Arta Terme (UD) ","AUTORITA' UNICA PER I SERVIZI IDRICI E I RIFIUTI",605,605,"Udine","UD","030005","Arta Terme"]
["Friuli-Venezia Giulia","Artegna","Artegna (UD) ","AUTORITA' UNICA PER I SERVIZI IDRICI E I RIFIUTI",605,605,"Udine","UD","030006","Artegna"]
["Friuli-Venezia Giulia","Attimis","Attimis (UD) ","AUTORITA' UNICA PER I SERVIZI IDRICI E I RIFIUTI",605,605,"Udine","UD","030007","Attimis"]
["Friuli-Venezia Giulia","Bagnaria Arsa","Bagnaria Arsa (UD) ","AUTORITA' UNICA PER I SERVIZI IDRICI E I RIFIUTI",605,605,"Udine","UD","030008","Bagnaria Arsa"]
["Friuli-Venezia Giulia","Basiliano","Basiliano (UD) ","AUTORITA' UNICA PER I SERVIZI IDRICI E I RIFIUTI",605,605,"Udine","UD","030009","Basiliano"]
["Friuli-Venezia Giulia","Bertiolo","Bertiolo (UD) ","AUTORITA' UNICA PER I SERVIZI IDRICI E I RIFIUTI",605,605,"Udine","UD","030010","Bertiolo"]
["Friuli-Venezia Giulia","Bicinicco","Bicinicco (UD) ","AUTORITA' UNICA PER I SERVIZI IDRICI E I RIFIUTI",605,605,"Udine","UD","030011","Bicinicco"]
["Friuli-Venezia Giulia","Bordano","Bordano (UD) ","AUTORITA' UNICA PER I SERVIZI IDRICI E I RIFIUTI",605,605,"Udine","UD","030012","Bordano"]
["Friuli-Venezia Giulia","Buja","Buja (UD) ","AUTORITA' UNICA PER I SERVIZI IDRICI E I RIFIUTI",605,605,"Udine","UD","030013","Buja"]
["Friuli-Venezia Giulia","Buttrio","Buttrio (UD) ","AUTORITA' UNICA PER I SERVIZI IDRICI E I RIFIUTI",605,605,"Udine","UD","030014","Buttrio"]
["Friuli-Venezia Giulia","Camino al Tagliamento","Camino al Tagliamento (UD) ","AUTORITA' UNICA PER I SERVIZI IDRICI E I RIFIUTI",605,605,"Udine","UD","030015","Camino al Tagliamento"]
["Friuli-Venezia Giulia","Campoformido","Campoformido (UD) ","AUTORITA' UNICA PER I SERVIZI IDRICI E I RIFIUTI",605,605,"Udine","UD","030016","Campoformido"]
["Friuli-Venezia Giulia","Carlino","Carlino (UD) ","AUTORITA' UNICA PER I SERVIZI IDRICI E I RIFIUTI",605,605,"Udine","UD","030018","Carlino"]
["Friuli-Venezia Giulia","Cassacco","Cassacco (UD) ","AUTORITA' UNICA PER I SERVIZI IDRICI E I RIFIUTI",605,605,"Udine","UD","030019","Cassacco"]
["Friuli-Venezia Giulia","Castions di Strada","Castions di Strada (UD) ","AUTORITA' UNICA PER I SERVIZI IDRICI E I RIFIUTI",605,605,"Udine","UD","030020","Castions di Strada"]
["Friuli-Venezia Giulia","Cavazzo Carnico","Cavazzo Carnico (UD) ","AUTORITA' UNICA PER I SERVIZI IDRICI E I RIFIUTI",605,605,"Udine","UD","030021","Cavazzo Carnico"]
["Friuli-Venezia Giulia","Cercivento","Cercivento (UD) ","AUTORITA' UNICA PER I SERVIZI IDRICI E I RIFIUTI",605,605,"Udine","UD","030022","Cercivento"]
["Friuli-Venezia Giulia","Cervignano del Friuli","Cervignano del Friuli (UD) ","AUTORITA' UNICA PER I SERVIZI IDRICI E I RIFIUTI",605,605,"Udine","UD","030023","Cervignano del Friuli"]
["Friuli-Venezia Giulia","Chiopris-Viscone","Chiopris-Viscone (UD) ","AUTORITA' UNICA PER I SERVIZI IDRICI E I RIFIUTI",605,605,"Udine","UD","030024","Chiopris-Viscone"]
["Friuli-Venezia Giulia","Chiusaforte","Chiusaforte (UD) ","AUTORITA' UNICA PER I SERVIZI IDRICI E I RIFIUTI",605,605,"Udine","UD","030025","Chiusaforte"]
["Friuli-Venezia Giulia","Cividale del Friuli","Cividale del Friuli (UD) ","AUTORITA' UNICA PER I SERVIZI IDRICI E I RIFIUTI",605,605,"Udine","UD","030026","Cividale del Friuli"]
["Friuli-Venezia Giulia","Codroipo","Codroipo (UD) ","AUTORITA' UNICA PER I SERVIZI IDRICI E I RIFIUTI",605,605,"Udine","UD","030027","Codroipo"]
["Friuli-Venezia Giulia","Colloredo di Monte Albano","Colloredo di Monte Albano (UD) ","AUTORITA' UNICA PER I SERVIZI IDRICI E I RIFIUTI",605,605,"Udine","UD","030028","Colloredo di Monte Albano"]
["Friuli-Venezia Giulia","Comeglians","Comeglians (UD) ","AUTORITA' UNICA PER I SERVIZI IDRICI E I RIFIUTI",605,605,"Udine","UD","030029","Comeglians"]
["Friuli-Venezia Giulia","Corno di Rosazzo","Corno di Rosazzo (UD) ","AUTORITA' UNICA PER I SERVIZI IDRICI E I RIFIUTI",605,605,"Udine","UD","030030","Corno di Rosazzo"]
["Friuli-Venezia Giulia","Coseano","Coseano (UD) ","AUTORITA' UNICA PER I SERVIZI IDRICI E I RIFIUTI",605,605,"Udine","UD","030031","Coseano"]
["Friuli-Venezia Giulia","Dignano","Dignano (UD) ","AUTORITA' UNICA PER I SERVIZI IDRICI E I RIFIUTI",605,605,"Udine","UD","030032","Dignano"]
["Friuli-Venezia Giulia","Dogna","Dogna (UD) ","AUTORITA' UNICA PER I SERVIZI IDRICI E I RIFIUTI",605,605,"Udine","UD","030033","Dogna"]
["Friuli-Venezia Giulia","Drenchia","Drenchia (UD) ","AUTORITA' UNICA PER I SERVIZI IDRICI E I RIFIUTI",605,605,"Udine","UD","030034","Drenchia"]
["Friuli-Venezia Giulia","Enemonzo","Enemonzo (UD) ","AUTORITA' UNICA PER I SERVIZI IDRICI E I RIFIUTI",605,605,"Udine","UD","030035","Enemonzo"]
["Friuli-Venezia Giulia","Faedis","Faedis (UD) ","AUTORITA' UNICA PER I SERVIZI IDRICI E I RIFIUTI",605,605,"Udine","UD","030036","Faedis"]
["Friuli-Venezia Giulia","Fagagna","Fagagna (UD) ","AUTORITA' UNICA PER I SERVIZI IDRICI E I RIFIUTI",605,605,"Udine","UD","030037","Fagagna"]
["Friuli-Venezia Giulia","Flaibano","Flaibano (UD) ","AUTORITA' UNICA PER I SERVIZI IDRICI E I RIFIUTI",605,605,"Udine","UD","030039","Flaibano"]
["Friuli-Venezia Giulia","Forni Avoltri","Forni Avoltri (UD) ","AUTORITA' UNICA PER I SERVIZI IDRICI E I RIFIUTI",605,605,"Udine","UD","030040","Forni Avoltri"]
["Friuli-Venezia Giulia","Forni di Sopra","Forni di Sopra (UD) ","AUTORITA' UNICA PER I SERVIZI IDRICI E I RIFIUTI",605,605,"Udine","UD","030041","Forni di Sopra"]
["Friuli-Venezia Giulia","Forni di Sotto","Forni di Sotto (UD) ","AUTORITA' UNICA PER I SERVIZI IDRICI E I RIFIUTI",605,605,"Udine","UD","030042","Forni di Sotto"]
["Friuli-Venezia Giulia","Gemona del Friuli","Gemona del Friuli (UD) ","AUTORITA' UNICA PER I SERVIZI IDRICI E I RIFIUTI",605,605,"Udine","UD","030043","Gemona del Friuli"]
["Friuli-Venezia Giulia","Gonars","Gonars (UD) ","AUTORITA' UNICA PER I SERVIZI IDRICI E I RIFIUTI",605,605,"Udine","UD","030044","Gonars"]
["Friuli-Venezia Giulia","Grimacco","Grimacco (UD) ","AUTORITA' UNICA PER I SERVIZI IDRICI E I RIFIUTI",605,605,"Udine","UD","030045","Grimacco"]
["Friuli-Venezia Giulia","Latisana","Latisana (UD) ","AUTORITA' UNICA PER I SERVIZI IDRICI E I RIFIUTI",605,605,"Udine","UD","030046","Latisana"]
["Friuli-Venezia Giulia","Lauco","Lauco (UD) ","AUTORITA' UNICA PER I SERVIZI IDRICI E I RIFIUTI",605,605,"Udine","UD","030047","Lauco"]
["Friuli-Venezia Giulia","Lestizza","Lestizza (UD) ","AUTORITA' UNICA PER I SERVIZI IDRICI E I RIFIUTI",605,605,"Udine","UD","030048","Lestizza"]
["Friuli-Venezia Giulia","Lignano Sabbiadoro","Lignano Sabbiadoro (UD) ","AUTORITA' UNICA PER I SERVIZI IDRICI E I RIFIUTI",605,605,"Udine","UD","030049","Lignano Sabbiadoro"]
["Friuli-Venezia Giulia","Lusevera","Lusevera (UD) ","AUTORITA' UNICA PER I SERVIZI IDRICI E I RIFIUTI",605,605,"Udine","UD","030051","Lusevera"]
["Friuli-Venezia Giulia","Magnano in Riviera","Magnano in Riviera (UD) ","AUTORITA' UNICA PER I SERVIZI IDRICI E I RIFIUTI",605,605,"Udine","UD","030052","Magnano in Riviera"]
["Friuli-Venezia Giulia","Majano","Majano (UD) ","AUTORITA' UNICA PER I SERVIZI IDRICI E I RIFIUTI",605,605,"Udine","UD","030053","Majano"]
["Friuli-Venezia Giulia","Malborghetto Valbruna","Malborghetto Valbruna (UD) ","AUTORITA' UNICA PER I SERVIZI IDRICI E I RIFIUTI",605,605,"Udine","UD","030054","Malborghetto Valbruna"]
["Friuli-Venezia Giulia","Manzano","Manzano (UD) ","AUTORITA' UNICA PER I SERVIZI IDRICI E I RIFIUTI",605,605,"Udine","UD","030055","Manzano"]
["Friuli-Venezia Giulia","Marano Lagunare","Marano Lagunare (UD) ","AUTORITA' UNICA PER I SERVIZI IDRICI E I RIFIUTI",605,605,"Udine","UD","030056","Marano Lagunare"]
["Friuli-Venezia Giulia","Martignacco","Martignacco (UD) ","AUTORITA' UNICA PER I SERVIZI IDRICI E I RIFIUTI",605,605,"Udine","UD","030057","Martignacco"]
["Friuli-Venezia Giulia","Mereto di Tomba","Mereto di Tomba (UD) ","AUTORITA' UNICA PER I SERVIZI IDRICI E I RIFIUTI",605,605,"Udine","UD","030058","Mereto di Tomba"]
["Friuli-Venezia Giulia","Moggio Udinese","Moggio Udinese (UD) ","AUTORITA' UNICA PER I SERVIZI IDRICI E I RIFIUTI",605,605,"Udine","UD","030059","Moggio Udinese"]
["Friuli-Venezia Giulia","Moimacco","Moimacco (UD) ","AUTORITA' UNICA PER I SERVIZI IDRICI E I RIFIUTI",605,605,"Udine","UD","030060","Moimacco"]
["Friuli-Venezia Giulia","Montenars","Montenars (UD) ","AUTORITA' UNICA PER I SERVIZI IDRICI E I RIFIUTI",605,605,"Udine","UD","030061","Montenars"]
["Friuli-Venezia Giulia","Mortegliano","Mortegliano (UD) ","AUTORITA' UNICA PER I SERVIZI IDRICI E I RIFIUTI",605,605,"Udine","UD","030062","Mortegliano"]
["Friuli-Venezia Giulia","Moruzzo","Moruzzo (UD) ","AUTORITA' UNICA PER I SERVIZI IDRICI E I RIFIUTI",605,605,"Udine","UD","030063","Moruzzo"]
["Friuli-Venezia Giulia","Muzzana del Turgnano","Muzzana del Turgnano (UD) ","AUTORITA' UNICA PER I SERVIZI IDRICI E I RIFIUTI",605,605,"Udine","UD","030064","Muzzana del Turgnano"]
["Friuli-Venezia Giulia","Nimis","Nimis (UD) ","AUTORITA' UNICA PER I SERVIZI IDRICI E I RIFIUTI",605,605,"Udine","UD","030065","Nimis"]
["Friuli-Venezia Giulia","Osoppo","Osoppo (UD) ","AUTORITA' UNICA PER I SERVIZI IDRICI E I RIFIUTI",605,605,"Udine","UD","030066","Osoppo"]
["Friuli-Venezia Giulia","Ovaro","Ovaro (UD) ","AUTORITA' UNICA PER I SERVIZI IDRICI E I RIFIUTI",605,605,"Udine","UD","030067","Ovaro"]
["Friuli-Venezia Giulia","Pagnacco","Pagnacco (UD) ","AUTORITA' UNICA PER I SERVIZI IDRICI E I RIFIUTI",605,605,"Udine","UD","030068","Pagnacco"]
["Friuli-Venezia Giulia","Palazzolo dello Stella","Palazzolo dello Stella (UD) ","AUTORITA' UNICA PER I SERVIZI IDRICI E I RIFIUTI",605,605,"Udine","UD","030069","Palazzolo dello Stella"]
["Friuli-Venezia Giulia","Palmanova","Palmanova (UD) ","AUTORITA' UNICA PER I SERVIZI IDRICI E I RIFIUTI",605,605,"Udine","UD","030070","Palmanova"]
["Friuli-Venezia Giulia","Paluzza","Paluzza (UD) ","AUTORITA' UNICA PER I SERVIZI IDRICI E I RIFIUTI",605,605,"Udine","UD","030071","Paluzza"]
["Friuli-Venezia Giulia","Pasian di Prato","Pasian di Prato (UD) ","AUTORITA' UNICA PER I SERVIZI IDRICI E I RIFIUTI",605,605,"Udine","UD","030072","Pasian di Prato"]
["Friuli-Venezia Giulia","Paularo","Paularo (UD) ","AUTORITA' UNICA PER I SERVIZI IDRICI E I RIFIUTI",605,605,"Udine","UD","030073","Paularo"]
["Friuli-Venezia Giulia","Pavia di Udine","Pavia di Udine (UD) ","AUTORITA' UNICA PER I SERVIZI IDRICI E I RIFIUTI",605,605,"Udine","UD","030074","Pavia di Udine"]
["Friuli-Venezia Giulia","Pocenia","Pocenia (UD) ","AUTORITA' UNICA PER I SERVIZI IDRICI E I RIFIUTI",605,605,"Udine","UD","030075","Pocenia"]
["Friuli-Venezia Giulia","Pontebba","Pontebba (UD) ","AUTORITA' UNICA PER I SERVIZI IDRICI E I RIFIUTI",605,605,"Udine","UD","030076","Pontebba"]
["Friuli-Venezia Giulia","Porpetto","Porpetto (UD) ","AUTORITA' UNICA PER I SERVIZI IDRICI E I RIFIUTI",605,605,"Udine","UD","030077","Porpetto"]
["Friuli-Venezia Giulia","Povoletto","Povoletto (UD) ","AUTORITA' UNICA PER I SERVIZI IDRICI E I RIFIUTI",605,605,"Udine","UD","030078","Povoletto"]
["Friuli-Venezia Giulia","Pozzuolo del Friuli","Pozzuolo del Friuli (UD) ","AUTORITA' UNICA PER I SERVIZI IDRICI E I RIFIUTI",605,605,"Udine","UD","030079","Pozzuolo del Friuli"]
["Friuli-Venezia Giulia","Pradamano","Pradamano (UD) ","AUTORITA' UNICA PER I SERVIZI IDRICI E I RIFIUTI",605,605,"Udine","UD","030080","Pradamano"]
["Friuli-Venezia Giulia","Prato Carnico","Prato Carnico (UD) ","AUTORITA' UNICA PER I SERVIZI IDRICI E I RIFIUTI",605,605,"Udine","UD","030081","Prato Carnico"]
["Friuli-Venezia Giulia","Precenicco","Precenicco (UD) ","AUTORITA' UNICA PER I SERVIZI IDRICI E I RIFIUTI",605,605,"Udine","UD","030082","Precenicco"]
["Friuli-Venezia Giulia","Premariacco","Premariacco (UD) ","AUTORITA' UNICA PER I SERVIZI IDRICI E I RIFIUTI",605,605,"Udine","UD","030083","Premariacco"]
["Friuli-Venezia Giulia","Preone","Preone (UD) ","AUTORITA' UNICA PER I SERVIZI IDRICI E I RIFIUTI",605,605,"Udine","UD","030084","Preone"]
["Friuli-Venezia Giulia","Prepotto","Prepotto (UD) ","AUTORITA' UNICA PER I SERVIZI IDRICI E I RIFIUTI",605,605,"Udine","UD","030085","Prepotto"]
["Friuli-Venezia Giulia","Pulfero","Pulfero (UD) ","AUTORITA' UNICA PER I SERVIZI IDRICI E I RIFIUTI",605,605,"Udine","UD","030086","Pulfero"]
["Friuli-Venezia Giulia","Ragogna","Ragogna (UD) ","AUTORITA' UNICA PER I SERVIZI IDRICI E I RIFIUTI",605,605,"Udine","UD","030087","Ragogna"]
["Friuli-Venezia Giulia","Ravascletto","Ravascletto (UD) ","AUTORITA' UNICA PER I SERVIZI IDRICI E I RIFIUTI",605,605,"Udine","UD","030088","Ravascletto"]
["Friuli-Venezia Giulia","Raveo","Raveo (UD) ","AUTORITA' UNICA PER I SERVIZI IDRICI E I RIFIUTI",605,605,"Udine","UD","030089","Raveo"]
["Friuli-Venezia Giulia","Reana del Rojale","Reana del Rojale (UD) ","AUTORITA' UNICA PER I SERVIZI IDRICI E I RIFIUTI",605,605,"Udine","UD","030090","Reana del Rojale"]
["Friuli-Venezia Giulia","Remanzacco","Remanzacco (UD) ","AUTORITA' UNICA PER I SERVIZI IDRICI E I RIFIUTI",605,605,"Udine","UD","030091","Remanzacco"]
["Friuli-Venezia Giulia","Resia","Resia (UD) ","AUTORITA' UNICA PER I SERVIZI IDRICI E I RIFIUTI",605,605,"Udine","UD","030092","Resia"]
["Friuli-Venezia Giulia","Resiutta","Resiutta (UD) ","AUTORITA' UNICA PER I SERVIZI IDRICI E I RIFIUTI",605,605,"Udine","UD","030093","Resiutta"]
["Friuli-Venezia Giulia","Rigolato","Rigolato (UD) ","AUTORITA' UNICA PER I SERVIZI IDRICI E I RIFIUTI",605,605,"Udine","UD","030094","Rigolato"]
["Friuli-Venezia Giulia","Rive d'Arcano","Rive d'Arcano (UD) ","AUTORITA' UNICA PER I SERVIZI IDRICI E I RIFIUTI",605,605,"Udine","UD","030095","Rive d'Arcano"]
["Friuli-Venezia Giulia","Ronchis","Ronchis (UD) ","AUTORITA' UNICA PER I SERVIZI IDRICI E I RIFIUTI",605,605,"Udine","UD","030097","Ronchis"]
["Friuli-Venezia Giulia","Ruda","Ruda (UD) ","AUTORITA' UNICA PER I SERVIZI IDRICI E I RIFIUTI",605,605,"Udine","UD","030098","Ruda"]
["Friuli-Venezia Giulia","San Daniele del Friuli","San Daniele del Friuli (UD) ","AUTORITA' UNICA PER I SERVIZI IDRICI E I RIFIUTI",605,605,"Udine","UD","030099","San Daniele del Friuli"]
["Friuli-Venezia Giulia","San Giorgio di Nogaro","San Giorgio di Nogaro (UD) ","AUTORITA' UNICA PER I SERVIZI IDRICI E I RIFIUTI",605,605,"Udine","UD","030100","San Giorgio di Nogaro"]
["Friuli-Venezia Giulia","San Giovanni al Natisone","San Giovanni al Natisone (UD) ","AUTORITA' UNICA PER I SERVIZI IDRICI E I RIFIUTI",605,605,"Udine","UD","030101","San Giovanni al Natisone"]
["Friuli-Venezia Giulia","San Leonardo","San Leonardo (UD) ","AUTORITA' UNICA PER I SERVIZI IDRICI E I RIFIUTI",605,605,"Udine","UD","030102","San Leonardo"]
["Friuli-Venezia Giulia","San Pietro al Natisone","San Pietro al Natisone (UD) ","AUTORITA' UNICA PER I SERVIZI IDRICI E I RIFIUTI",605,605,"Udine","UD","030103","San Pietro al Natisone"]
["Friuli-Venezia Giulia","Santa Maria la Longa","Santa Maria la Longa (UD) ","AUTORITA' UNICA PER I SERVIZI IDRICI E I RIFIUTI",605,605,"Udine","UD","030104","Santa Maria la Longa"]
["Friuli-Venezia Giulia","San Vito al Torre","San Vito al Torre (UD) ","AUTORITA' UNICA PER I SERVIZI IDRICI E I RIFIUTI",605,605,"Udine","UD","030105","San Vito al Torre"]
["Friuli-Venezia Giulia","San Vito di Fagagna","San Vito di Fagagna (UD) ","AUTORITA' UNICA PER I SERVIZI IDRICI E I RIFIUTI",605,605,"Udine","UD","030106","San Vito di Fagagna"]
["Friuli-Venezia Giulia","Sauris","Sauris (UD) ","AUTORITA' UNICA PER I SERVIZI IDRICI E I RIFIUTI",605,605,"Udine","UD","030107","Sauris"]
["Friuli-Venezia Giulia","Savogna","Savogna (UD) ","AUTORITA' UNICA PER I SERVIZI IDRICI E I RIFIUTI",605,605,"Udine","UD","030108","Savogna"]
["Friuli-Venezia Giulia","Sedegliano","Sedegliano (UD) ","AUTORITA' UNICA PER I SERVIZI IDRICI E I RIFIUTI",605,605,"Udine","UD","030109","Sedegliano"]
["Friuli-Venezia Giulia","Socchieve","Socchieve (UD) ","AUTORITA' UNICA PER I SERVIZI IDRICI E I RIFIUTI",605,605,"Udine","UD","030110","Socchieve"]
["Friuli-Venezia Giulia","Stregna","Stregna (UD) ","AUTORITA' UNICA PER I SERVIZI IDRICI E I RIFIUTI",605,605,"Udine","UD","030111","Stregna"]
["Friuli-Venezia Giulia","Sutrio","Sutrio (UD) ","AUTORITA' UNICA PER I SERVIZI IDRICI E I RIFIUTI",605,605,"Udine","UD","030112","Sutrio"]
["Friuli-Venezia Giulia","Taipana","Taipana (UD) ","AUTORITA' UNICA PER I SERVIZI IDRICI E I RIFIUTI",605,605,"Udine","UD","030113","Taipana"]
["Friuli-Venezia Giulia","Talmassons","Talmassons (UD) ","AUTORITA' UNICA PER I SERVIZI IDRICI E I RIFIUTI",605,605,"Udine","UD","030114","Talmassons"]
["Friuli-Venezia Giulia","Tarcento","Tarcento (UD) ","AUTORITA' UNICA PER I SERVIZI IDRICI E I RIFIUTI",605,605,"Udine","UD","030116","Tarcento"]
["Friuli-Venezia Giulia","Tarvisio","Tarvisio (UD) ","AUTORITA' UNICA PER I SERVIZI IDRICI E I RIFIUTI",605,605,"Udine","UD","030117","Tarvisio"]
["Friuli-Venezia Giulia","Tavagnacco","Tavagnacco (UD) ","AUTORITA' UNICA PER I SERVIZI IDRICI E I RIFIUTI",605,605,"Udine","UD","030118","Tavagnacco"]
["Friuli-Venezia Giulia","Terzo d'Aquileia","Terzo d'Aquileia (UD) ","AUTORITA' UNICA PER I SERVIZI IDRICI E I RIFIUTI",605,605,"Udine","UD","030120","Terzo d'Aquileia"]
["Friuli-Venezia Giulia","Tolmezzo","Tolmezzo (UD) ","AUTORITA' UNICA PER I SERVIZI IDRICI E I RIFIUTI",605,605,"Udine","UD","030121","Tolmezzo"]
["Friuli-Venezia Giulia","Torreano","Torreano (UD) ","AUTORITA' UNICA PER I SERVIZI IDRICI E I RIFIUTI",605,605,"Udine","UD","030122","Torreano"]
["Friuli-Venezia Giulia","Torviscosa","Torviscosa (UD) ","AUTORITA' UNICA PER I SERVIZI IDRICI E I RIFIUTI",605,605,"Udine","UD","030123","Torviscosa"]
["Friuli-Venezia Giulia","Trasaghis","Trasaghis (UD) ","AUTORITA' UNICA PER I SERVIZI IDRICI E I RIFIUTI",605,605,"Udine","UD","030124","Trasaghis"]
["Friuli-Venezia Giulia","Treppo Grande","Treppo Grande (UD) ","AUTORITA' UNICA PER I SERVIZI IDRICI E I RIFIUTI",605,605,"Udine","UD","030126","Treppo Grande"]
["Friuli-Venezia Giulia","Tricesimo","Tricesimo (UD) ","AUTORITA' UNICA PER I SERVIZI IDRICI E I RIFIUTI",605,605,"Udine","UD","030127","Tricesimo"]
["Friuli-Venezia Giulia","Trivignano Udinese","Trivignano Udinese (UD) ","AUTORITA' UNICA PER I SERVIZI IDRICI E I RIFIUTI",605,605,"Udine","UD","030128","Trivignano Udinese"]
["Friuli-Venezia Giulia","Udine","Udine (UD) ","AUTORITA' UNICA PER I SERVIZI IDRICI E I RIFIUTI",605,605,"Udine","UD","030129","Udine"]
["Friuli-Venezia Giulia","Varmo","Varmo (UD) ","AUTORITA' UNICA PER I SERVIZI IDRICI E I RIFIUTI",605,605,"Udine","UD","030130","Varmo"]
["Friuli-Venezia Giulia","Venzone","Venzone (UD) ","AUTORITA' UNICA PER I SERVIZI IDRICI E I RIFIUTI",605,605,"Udine","UD","030131","Venzone"]
["Friuli-Venezia Giulia","Verzegnis","Verzegnis (UD) ","AUTORITA' UNICA PER I SERVIZI IDRICI E I RIFIUTI",605,605,"Udine","UD","030132","Verzegnis"]
["Friuli-Venezia Giulia","Villa Santina","Villa Santina (UD) ","AUTORITA' UNICA PER I SERVIZI IDRICI E I RIFIUTI",605,605,"Udine","UD","030133","Villa Santina"]
["Friuli-Venezia Giulia","Visco","Visco (UD) ","AUTORITA' UNICA PER I SERVIZI IDRICI E I RIFIUTI",605,605,"Udine","UD","030135","Visco"]
["Friuli-Venezia Giulia","Zuglio","Zuglio (UD) ","AUTORITA' UNICA PER I SERVIZI IDRICI E I RIFIUTI",605,605,"Udine","UD","030136","Zuglio"]
["Friuli-Venezia Giulia","Forgaria nel Friuli","Forgaria nel Friuli (UD) ","AUTORITA' UNICA PER I SERVIZI IDRICI E I RIFIUTI",605,605,"Udine","UD","030137","Forgaria nel Friuli"]
["Friuli-Venezia Giulia","Campolongo Tapogliano","Campolongo Tapogliano (UD) ","AUTORITA' UNICA PER I SERVIZI IDRICI E I RIFIUTI",605,605,"Udine","UD","030138","Campolongo Tapogliano"]
["Friuli-Venezia Giulia","Rivignano Teor","Rivignano Teor (UD) ","AUTORITA' UNICA PER I SERVIZI IDRICI E I RIFIUTI",605,605,"Udine","UD","030188","Rivignano Teor"]
["Friuli-Venezia Giulia","Sappada","Sappada (UD) ","AUTORITA' UNICA PER I SERVIZI IDRICI E I RIFIUTI",605,605,"Udine","UD","030189","Sappada"]
["Friuli-Venezia Giulia","Fiumicello Villa Vicentina","Fiumicello Villa Vicentina (UD) ","AUTORITA' UNICA PER I SERVIZI IDRICI E I RIFIUTI",605,605,"Udine","UD","030190","Fiumicello Villa Vicentina"]
["Friuli-Venezia Giulia","Treppo Ligosullo","Treppo Ligosullo (UD) ","AUTORITA' UNICA PER I SERVIZI IDRICI E I RIFIUTI",605,605,"Udine","UD","030191","Treppo Ligosullo"]
["Friuli-Venezia Giulia","Capriva del Friuli","Capriva del Friuli (GO) ","AUTORITA' UNICA PER I SERVIZI IDRICI E I RIFIUTI",605,605,"Gorizia","GO","031001","Capriva del Friuli"]
["Friuli-Venezia Giulia","Cormons","Cormons (GO) ","AUTORITA' UNICA PER I SERVIZI IDRICI E I RIFIUTI",605,605,"Gorizia","GO","031002","Cormons"]
["Friuli-Venezia Giulia","Doberdò del Lago","Doberdò del Lago (GO) ","AUTORITA' UNICA PER I SERVIZI IDRICI E I RIFIUTI",605,605,"Gorizia","GO","031003","Doberdò del Lago"]
["Friuli-Venezia Giulia","Dolegna del Collio","Dolegna del Collio (GO) ","AUTORITA' UNICA PER I SERVIZI IDRICI E I RIFIUTI",605,605,"Gorizia","GO","031004","Dolegna del Collio"]
["Friuli-Venezia Giulia","Farra d'Isonzo","Farra d'Isonzo (GO) ","AUTORITA' UNICA PER I SERVIZI IDRICI E I RIFIUTI",605,605,"Gorizia","GO","031005","Farra d'Isonzo"]
["Friuli-Venezia Giulia","Fogliano Redipuglia","Fogliano Redipuglia (GO) ","AUTORITA' UNICA PER I SERVIZI IDRICI E I RIFIUTI",605,605,"Gorizia","GO","031006","Fogliano Redipuglia"]
["Friuli-Venezia Giulia","Gorizia","Gorizia (GO) ","AUTORITA' UNICA PER I SERVIZI IDRICI E I RIFIUTI",605,605,"Gorizia","GO","031007","Gorizia"]
["Friuli-Venezia Giulia","Gradisca d'Isonzo","Gradisca d'Isonzo (GO) ","AUTORITA' UNICA PER I SERVIZI IDRICI E I RIFIUTI",605,605,"Gorizia","GO","031008","Gradisca d'Isonzo"]
["Friuli-Venezia Giulia","Grado","Grado (GO) ","AUTORITA' UNICA PER I SERVIZI IDRICI E I RIFIUTI",605,605,"Gorizia","GO","031009","Grado"]
["Friuli-Venezia Giulia","Mariano del Friuli","Mariano del Friuli (GO) ","AUTORITA' UNICA PER I SERVIZI IDRICI E I RIFIUTI",605,605,"Gorizia","GO","031010","Mariano del Friuli"]
["Friuli-Venezia Giulia","Medea","Medea (GO) ","AUTORITA' UNICA PER I SERVIZI IDRICI E I RIFIUTI",605,605,"Gorizia","GO","031011","Medea"]
["Friuli-Venezia Giulia","Monfalcone","Monfalcone (GO) ","AUTORITA' UNICA PER I SERVIZI IDRICI E I RIFIUTI",605,605,"Gorizia","GO","031012","Monfalcone"]
["Friuli-Venezia Giulia","Moraro","Moraro (GO) ","AUTORITA' UNICA PER I SERVIZI IDRICI E I RIFIUTI",605,605,"Gorizia","GO","031013","Moraro"]
["Friuli-Venezia Giulia","Mossa","Mossa (GO) ","AUTORITA' UNICA PER I SERVIZI IDRICI E I RIFIUTI",605,605,"Gorizia","GO","031014","Mossa"]
["Friuli-Venezia Giulia","Romans d'Isonzo","Romans d'Isonzo (GO) ","AUTORITA' UNICA PER I SERVIZI IDRICI E I RIFIUTI",605,605,"Gorizia","GO","031015","Romans d'Isonzo"]
["Friuli-Venezia Giulia","Ronchi dei Legionari","Ronchi dei Legionari (GO) ","AUTORITA' UNICA PER I SERVIZI IDRICI E I RIFIUTI",605,605,"Gorizia","GO","031016","Ronchi dei Legionari"]
["Friuli-Venezia Giulia","Sagrado","Sagrado (GO) ","AUTORITA' UNICA PER I SERVIZI IDRICI E I RIFIUTI",605,605,"Gorizia","GO","031017","Sagrado"]
["Friuli-Venezia Giulia","San Canzian d'Isonzo","San Canzian d'Isonzo (GO) ","AUTORITA' UNICA PER I SERVIZI IDRICI E I RIFIUTI",605,605,"Gorizia","GO","031018","San Canzian d'Isonzo"]
["Friuli-Venezia Giulia","San Floriano del Collio","San Floriano del Collio (GO) ","AUTORITA' UNICA PER I SERVIZI IDRICI E I RIFIUTI",605,605,"Gorizia","GO","031019","San Floriano del Collio"]
["Friuli-Venezia Giulia","San Lorenzo Isontino","San Lorenzo Isontino (GO) ","AUTORITA' UNICA PER I SERVIZI IDRICI E I RIFIUTI",605,605,"Gorizia","GO","031020","San Lorenzo Isontino"]
["Friuli-Venezia Giulia","San Pier d'Isonzo","San Pier d'Isonzo (GO) ","AUTORITA' UNICA PER I SERVIZI IDRICI E I RIFIUTI",605,605,"Gorizia","GO","031021","San Pier d'Isonzo"]
["Friuli-Venezia Giulia","Savogna d'Isonzo","Savogna d'Isonzo (GO) ","AUTORITA' UNICA PER I SERVIZI IDRICI E I RIFIUTI",605,605,"Gorizia","GO","031022","Savogna d'Isonzo"]
["Friuli-Venezia Giulia","Staranzano","Staranzano (GO) ","AUTORITA' UNICA PER I SERVIZI IDRICI E I RIFIUTI",605,605,"Gorizia","GO","031023","Staranzano"]
["Friuli-Venezia Giulia","Turriaco","Turriaco (GO) ","AUTORITA' UNICA PER I SERVIZI IDRICI E I RIFIUTI",605,605,"Gorizia","GO","031024","Turriaco"]
["Friuli-Venezia Giulia","Villesse","Villesse (GO) ","AUTORITA' UNICA PER I SERVIZI IDRICI E I RIFIUTI",605,605,"Gorizia","GO","031025","Villesse"]
["Friuli-Venezia Giulia","Duino Aurisina","Duino Aurisina (TS) ","AUTORITA' UNICA PER I SERVIZI IDRICI E I RIFIUTI",605,605,"Trieste","TS","032001","Duino Aurisina"]
["Friuli-Venezia Giulia","Monrupino","Monrupino (TS) ","AUTORITA' UNICA PER I SERVIZI IDRICI E I RIFIUTI",605,605,"Trieste","TS","032002","Monrupino"]
["Friuli-Venezia Giulia","Muggia","Muggia (TS) ","AUTORITA' UNICA PER I SERVIZI IDRICI E I RIFIUTI",605,605,"Trieste","TS","032003","Muggia"]
["Friuli-Venezia Giulia","San Dorligo della Valle","San Dorligo della Valle (TS) ","AUTORITA' UNICA PER I SERVIZI IDRICI E I RIFIUTI",605,605,"Trieste","TS","032004","San Dorligo della Valle"]
["Friuli-Venezia Giulia","Sgonico","Sgonico (TS) ","AUTORITA' UNICA PER I SERVIZI IDRICI E I RIFIUTI",605,605,"Trieste","TS","032005","Sgonico"]
["Friuli-Venezia Giulia","Trieste","Trieste (TS) ","AUTORITA' UNICA PER I SERVIZI IDRICI E I RIFIUTI",605,605,"Trieste","TS","032006","Trieste"]
["Emilia-Romagna","Agazzano","Agazzano (PC) ","AGENZIA TERRITORIALE DELL'EMILIA ROMAGNA PER I SERVIZI IDRICI E I RIFIUTI",801,801,"Piacenza","PC","033001","Agazzano"]
["Emilia-Romagna","Alseno","Alseno (PC) ","AGENZIA TERRITORIALE DELL'EMILIA ROMAGNA PER I SERVIZI IDRICI E I RIFIUTI",801,801,"Piacenza","PC","033002","Alseno"]
["Emilia-Romagna","Besenzone","Besenzone (PC) ","AGENZIA TERRITORIALE DELL'EMILIA ROMAGNA PER I SERVIZI IDRICI E I RIFIUTI",801,801,"Piacenza","PC","033003","Besenzone"]
["Emilia-Romagna","Bettola","Bettola (PC) ","AGENZIA TERRITORIALE DELL'EMILIA ROMAGNA PER I SERVIZI IDRICI E I RIFIUTI",801,801,"Piacenza","PC","033004","Bettola"]
["Emilia-Romagna","Bobbio","Bobbio (PC) ","AGENZIA TERRITORIALE DELL'EMILIA ROMAGNA PER I SERVIZI IDRICI E I RIFIUTI",801,801,"Piacenza","PC","033005","Bobbio"]
["Emilia-Romagna","Borgonovo Val Tidone","Borgonovo Val Tidone (PC) ","AGENZIA TERRITORIALE DELL'EMILIA ROMAGNA PER I SERVIZI IDRICI E I RIFIUTI",801,801,"Piacenza","PC","033006","Borgonovo Val Tidone"]
["Emilia-Romagna","Cadeo","Cadeo (PC) ","AGENZIA TERRITORIALE DELL'EMILIA ROMAGNA PER I SERVIZI IDRICI E I RIFIUTI",801,801,"Piacenza","PC","033007","Cadeo"]
["Emilia-Romagna","Calendasco","Calendasco (PC) ","AGENZIA TERRITORIALE DELL'EMILIA ROMAGNA PER I SERVIZI IDRICI E I RIFIUTI",801,801,"Piacenza","PC","033008","Calendasco"]
["Emilia-Romagna","Caorso","Caorso (PC) ","AGENZIA TERRITORIALE DELL'EMILIA ROMAGNA PER I SERVIZI IDRICI E I RIFIUTI",801,801,"Piacenza","PC","033010","Caorso"]
["Emilia-Romagna","Carpaneto Piacentino","Carpaneto Piacentino (PC) ","AGENZIA TERRITORIALE DELL'EMILIA ROMAGNA PER I SERVIZI IDRICI E I RIFIUTI",801,801,"Piacenza","PC","033011","Carpaneto Piacentino"]
["Emilia-Romagna","Castell'Arquato","Castell'Arquato (PC) ","AGENZIA TERRITORIALE DELL'EMILIA ROMAGNA PER I SERVIZI IDRICI E I RIFIUTI",801,801,"Piacenza","PC","033012","Castell'Arquato"]
["Emilia-Romagna","Castel San Giovanni","Castel San Giovanni (PC) ","AGENZIA TERRITORIALE DELL'EMILIA ROMAGNA PER I SERVIZI IDRICI E I RIFIUTI",801,801,"Piacenza","PC","033013","Castel San Giovanni"]
["Emilia-Romagna","Castelvetro Piacentino","Castelvetro Piacentino (PC) ","AGENZIA TERRITORIALE DELL'EMILIA ROMAGNA PER I SERVIZI IDRICI E I RIFIUTI",801,801,"Piacenza","PC","033014","Castelvetro Piacentino"]
["Emilia-Romagna","Cerignale","Cerignale (PC) ","AGENZIA TERRITORIALE DELL'EMILIA ROMAGNA PER I SERVIZI IDRICI E I RIFIUTI",801,801,"Piacenza","PC","033015","Cerignale"]
["Emilia-Romagna","Coli","Coli (PC) ","AGENZIA TERRITORIALE DELL'EMILIA ROMAGNA PER I SERVIZI IDRICI E I RIFIUTI",801,801,"Piacenza","PC","033016","Coli"]
["Emilia-Romagna","Corte Brugnatella","Corte Brugnatella (PC) ","AGENZIA TERRITORIALE DELL'EMILIA ROMAGNA PER I SERVIZI IDRICI E I RIFIUTI",801,801,"Piacenza","PC","033017","Corte Brugnatella"]
["Emilia-Romagna","Cortemaggiore","Cortemaggiore (PC) ","AGENZIA TERRITORIALE DELL'EMILIA ROMAGNA PER I SERVIZI IDRICI E I RIFIUTI",801,801,"Piacenza","PC","033018","Cortemaggiore"]
["Emilia-Romagna","Farini","Farini (PC) ","AGENZIA TERRITORIALE DELL'EMILIA ROMAGNA PER I SERVIZI IDRICI E I RIFIUTI",801,801,"Piacenza","PC","033019","Farini"]
["Emilia-Romagna","Ferriere","Ferriere (PC) ","AGENZIA TERRITORIALE DELL'EMILIA ROMAGNA PER I SERVIZI IDRICI E I RIFIUTI",801,801,"Piacenza","PC","033020","Ferriere"]
["Emilia-Romagna","Fiorenzuola d'Arda","Fiorenzuola d'Arda (PC) ","AGENZIA TERRITORIALE DELL'EMILIA ROMAGNA PER I SERVIZI IDRICI E I RIFIUTI",801,801,"Piacenza","PC","033021","Fiorenzuola d'Arda"]
["Emilia-Romagna","Gazzola","Gazzola (PC) ","AGENZIA TERRITORIALE DELL'EMILIA ROMAGNA PER I SERVIZI IDRICI E I RIFIUTI",801,801,"Piacenza","PC","033022","Gazzola"]
["Emilia-Romagna","Gossolengo","Gossolengo (PC) ","AGENZIA TERRITORIALE DELL'EMILIA ROMAGNA PER I SERVIZI IDRICI E I RIFIUTI",801,801,"Piacenza","PC","033023","Gossolengo"]
["Emilia-Romagna","Gragnano Trebbiense","Gragnano Trebbiense (PC) ","AGENZIA TERRITORIALE DELL'EMILIA ROMAGNA PER I SERVIZI IDRICI E I RIFIUTI",801,801,"Piacenza","PC","033024","Gragnano Trebbiense"]
["Emilia-Romagna","Gropparello","Gropparello (PC) ","AGENZIA TERRITORIALE DELL'EMILIA ROMAGNA PER I SERVIZI IDRICI E I RIFIUTI",801,801,"Piacenza","PC","033025","Gropparello"]
["Emilia-Romagna","Lugagnano Val d'Arda","Lugagnano Val d'Arda (PC) ","AGENZIA TERRITORIALE DELL'EMILIA ROMAGNA PER I SERVIZI IDRICI E I RIFIUTI",801,801,"Piacenza","PC","033026","Lugagnano Val d'Arda"]
["Emilia-Romagna","Monticelli d'Ongina","Monticelli d'Ongina (PC) ","AGENZIA TERRITORIALE DELL'EMILIA ROMAGNA PER I SERVIZI IDRICI E I RIFIUTI",801,801,"Piacenza","PC","033027","Monticelli d'Ongina"]
["Emilia-Romagna","Morfasso","Morfasso (PC) ","AGENZIA TERRITORIALE DELL'EMILIA ROMAGNA PER I SERVIZI IDRICI E I RIFIUTI",801,801,"Piacenza","PC","033028","Morfasso"]
["Emilia-Romagna","Ottone","Ottone (PC) ","AGENZIA TERRITORIALE DELL'EMILIA ROMAGNA PER I SERVIZI IDRICI E I RIFIUTI",801,801,"Piacenza","PC","033030","Ottone"]
["Emilia-Romagna","Piacenza","Piacenza (PC) ","AGENZIA TERRITORIALE DELL'EMILIA ROMAGNA PER I SERVIZI IDRICI E I RIFIUTI",801,801,"Piacenza","PC","033032","Piacenza"]
["Emilia-Romagna","Pianello Val Tidone","Pianello Val Tidone (PC) ","AGENZIA TERRITORIALE DELL'EMILIA ROMAGNA PER I SERVIZI IDRICI E I RIFIUTI",801,801,"Piacenza","PC","033033","Pianello Val Tidone"]
["Emilia-Romagna","Piozzano","Piozzano (PC) ","AGENZIA TERRITORIALE DELL'EMILIA ROMAGNA PER I SERVIZI IDRICI E I RIFIUTI",801,801,"Piacenza","PC","033034","Piozzano"]
["Emilia-Romagna","Podenzano","Podenzano (PC) ","AGENZIA TERRITORIALE DELL'EMILIA ROMAGNA PER I SERVIZI IDRICI E I RIFIUTI",801,801,"Piacenza","PC","033035","Podenzano"]
["Emilia-Romagna","Ponte dell'Olio","Ponte dell'Olio (PC) ","AGENZIA TERRITORIALE DELL'EMILIA ROMAGNA PER I SERVIZI IDRICI E I RIFIUTI",801,801,"Piacenza","PC","033036","Ponte dell'Olio"]
["Emilia-Romagna","Pontenure","Pontenure (PC) ","AGENZIA TERRITORIALE DELL'EMILIA ROMAGNA PER I SERVIZI IDRICI E I RIFIUTI",801,801,"Piacenza","PC","033037","Pontenure"]
["Emilia-Romagna","Rivergaro","Rivergaro (PC) ","AGENZIA TERRITORIALE DELL'EMILIA ROMAGNA PER I SERVIZI IDRICI E I RIFIUTI",801,801,"Piacenza","PC","033038","Rivergaro"]
["Emilia-Romagna","Rottofreno","Rottofreno (PC) ","AGENZIA TERRITORIALE DELL'EMILIA ROMAGNA PER I SERVIZI IDRICI E I RIFIUTI",801,801,"Piacenza","PC","033039","Rottofreno"]
["Emilia-Romagna","San Giorgio Piacentino","San Giorgio Piacentino (PC) ","AGENZIA TERRITORIALE DELL'EMILIA ROMAGNA PER I SERVIZI IDRICI E I RIFIUTI",801,801,"Piacenza","PC","033040","San Giorgio Piacentino"]
["Emilia-Romagna","San Pietro in Cerro","San Pietro in Cerro (PC) ","AGENZIA TERRITORIALE DELL'EMILIA ROMAGNA PER I SERVIZI IDRICI E I RIFIUTI",801,801,"Piacenza","PC","033041","San Pietro in Cerro"]
["Emilia-Romagna","Sarmato","Sarmato (PC) ","AGENZIA TERRITORIALE DELL'EMILIA ROMAGNA PER I SERVIZI IDRICI E I RIFIUTI",801,801,"Piacenza","PC","033042","Sarmato"]
["Emilia-Romagna","Travo","Travo (PC) ","AGENZIA TERRITORIALE DELL'EMILIA ROMAGNA PER I SERVIZI IDRICI E I RIFIUTI",801,801,"Piacenza","PC","033043","Travo"]
["Emilia-Romagna","Vernasca","Vernasca (PC) ","AGENZIA TERRITORIALE DELL'EMILIA ROMAGNA PER I SERVIZI IDRICI E I RIFIUTI",801,801,"Piacenza","PC","033044","Vernasca"]
["Emilia-Romagna","Vigolzone","Vigolzone (PC) ","AGENZIA TERRITORIALE DELL'EMILIA ROMAGNA PER I SERVIZI IDRICI E I RIFIUTI",801,801,"Piacenza","PC","033045","Vigolzone"]
["Emilia-Romagna","Villanova sull'Arda","Villanova sull'Arda (PC) ","AGENZIA TERRITORIALE DELL'EMILIA ROMAGNA PER I SERVIZI IDRICI E I RIFIUTI",801,801,"Piacenza","PC","033046","Villanova sull'Arda"]
["Emilia-Romagna","Zerba","Zerba (PC) ","AGENZIA TERRITORIALE DELL'EMILIA ROMAGNA PER I SERVIZI IDRICI E I RIFIUTI",801,801,"Piacenza","PC","033047","Zerba"]
["Emilia-Romagna","Ziano Piacentino","Ziano Piacentino (PC) ","AGENZIA TERRITORIALE DELL'EMILIA ROMAGNA PER I SERVIZI IDRICI E I RIFIUTI",801,801,"Piacenza","PC","033048","Ziano Piacentino"]
["Emilia-Romagna","Alta Val Tidone","Alta Val Tidone (PC) ","AGENZIA TERRITORIALE DELL'EMILIA ROMAGNA PER I SERVIZI IDRICI E I RIFIUTI",801,801,"Piacenza","PC","033049","Alta Val Tidone"]
["Emilia-Romagna","Albareto","Albareto (PR) ","AGENZIA TERRITORIALE DELL'EMILIA ROMAGNA PER I SERVIZI IDRICI E I RIFIUTI",802,802,"Parma","PR","034001","Albareto"]
["Emilia-Romagna","Bardi","Bardi (PR) ","AGENZIA TERRITORIALE DELL'EMILIA ROMAGNA PER I SERVIZI IDRICI E I RIFIUTI",802,802,"Parma","PR","034002","Bardi"]
["Emilia-Romagna","Bedonia","Bedonia (PR) ","AGENZIA TERRITORIALE DELL'EMILIA ROMAGNA PER I SERVIZI IDRICI E I RIFIUTI",802,802,"Parma","PR","034003","Bedonia"]
["Emilia-Romagna","Berceto","Berceto (PR) ","AGENZIA TERRITORIALE DELL'EMILIA ROMAGNA PER I SERVIZI IDRICI E I RIFIUTI",802,802,"Parma","PR","034004","Berceto"]
["Emilia-Romagna","Bore","Bore (PR) ","AGENZIA TERRITORIALE DELL'EMILIA ROMAGNA PER I SERVIZI IDRICI E I RIFIUTI",802,802,"Parma","PR","034005","Bore"]
["Emilia-Romagna","Borgo Val di Taro","Borgo Val di Taro (PR) ","AGENZIA TERRITORIALE DELL'EMILIA ROMAGNA PER I SERVIZI IDRICI E I RIFIUTI",802,802,"Parma","PR","034006","Borgo Val di Taro"]
["Emilia-Romagna","Busseto","Busseto (PR) ","AGENZIA TERRITORIALE DELL'EMILIA ROMAGNA PER I SERVIZI IDRICI E I RIFIUTI",802,802,"Parma","PR","034007","Busseto"]
["Emilia-Romagna","Calestano","Calestano (PR) ","AGENZIA TERRITORIALE DELL'EMILIA ROMAGNA PER I SERVIZI IDRICI E I RIFIUTI",802,802,"Parma","PR","034008","Calestano"]
["Emilia-Romagna","Collecchio","Collecchio (PR) ","AGENZIA TERRITORIALE DELL'EMILIA ROMAGNA PER I SERVIZI IDRICI E I RIFIUTI",802,802,"Parma","PR","034009","Collecchio"]
["Emilia-Romagna","Colorno","Colorno (PR) ","AGENZIA TERRITORIALE DELL'EMILIA ROMAGNA PER I SERVIZI IDRICI E I RIFIUTI",802,802,"Parma","PR","034010","Colorno"]
["Emilia-Romagna","Compiano","Compiano (PR) ","AGENZIA TERRITORIALE DELL'EMILIA ROMAGNA PER I SERVIZI IDRICI E I RIFIUTI",802,802,"Parma","PR","034011","Compiano"]
["Emilia-Romagna","Corniglio","Corniglio (PR) ","AGENZIA TERRITORIALE DELL'EMILIA ROMAGNA PER I SERVIZI IDRICI E I RIFIUTI",802,802,"Parma","PR","034012","Corniglio"]
["Emilia-Romagna","Felino","Felino (PR) ","AGENZIA TERRITORIALE DELL'EMILIA ROMAGNA PER I SERVIZI IDRICI E I RIFIUTI",802,802,"Parma","PR","034013","Felino"]
["Emilia-Romagna","Fidenza","Fidenza (PR) ","AGENZIA TERRITORIALE DELL'EMILIA ROMAGNA PER I SERVIZI IDRICI E I RIFIUTI",802,802,"Parma","PR","034014","Fidenza"]
["Emilia-Romagna","Fontanellato","Fontanellato (PR) ","AGENZIA TERRITORIALE DELL'EMILIA ROMAGNA PER I SERVIZI IDRICI E I RIFIUTI",802,802,"Parma","PR","034015","Fontanellato"]
["Emilia-Romagna","Fontevivo","Fontevivo (PR) ","AGENZIA TERRITORIALE DELL'EMILIA ROMAGNA PER I SERVIZI IDRICI E I RIFIUTI",802,802,"Parma","PR","034016","Fontevivo"]
["Emilia-Romagna","Fornovo di Taro","Fornovo di Taro (PR) ","AGENZIA TERRITORIALE DELL'EMILIA ROMAGNA PER I SERVIZI IDRICI E I RIFIUTI",802,802,"Parma","PR","034017","Fornovo di Taro"]
["Emilia-Romagna","Langhirano","Langhirano (PR) ","AGENZIA TERRITORIALE DELL'EMILIA ROMAGNA PER I SERVIZI IDRICI E I RIFIUTI",802,802,"Parma","PR","034018","Langhirano"]
["Emilia-Romagna","Lesignano de' Bagni","Lesignano de' Bagni (PR) ","AGENZIA TERRITORIALE DELL'EMILIA ROMAGNA PER I SERVIZI IDRICI E I RIFIUTI",802,802,"Parma","PR","034019","Lesignano de' Bagni"]
["Emilia-Romagna","Medesano","Medesano (PR) ","AGENZIA TERRITORIALE DELL'EMILIA ROMAGNA PER I SERVIZI IDRICI E I RIFIUTI",802,802,"Parma","PR","034020","Medesano"]
["Emilia-Romagna","Monchio delle Corti","Monchio delle Corti (PR) ","AGENZIA TERRITORIALE DELL'EMILIA ROMAGNA PER I SERVIZI IDRICI E I RIFIUTI",802,802,"Parma","PR","034022","Monchio delle Corti"]
["Emilia-Romagna","Montechiarugolo","Montechiarugolo (PR) ","AGENZIA TERRITORIALE DELL'EMILIA ROMAGNA PER I SERVIZI IDRICI E I RIFIUTI",802,802,"Parma","PR","034023","Montechiarugolo"]
["Emilia-Romagna","Neviano degli Arduini","Neviano degli Arduini (PR) ","AGENZIA TERRITORIALE DELL'EMILIA ROMAGNA PER I SERVIZI IDRICI E I RIFIUTI",802,802,"Parma","PR","034024","Neviano degli Arduini"]
["Emilia-Romagna","Noceto","Noceto (PR) ","AGENZIA TERRITORIALE DELL'EMILIA ROMAGNA PER I SERVIZI IDRICI E I RIFIUTI",802,802,"Parma","PR","034025","Noceto"]
["Emilia-Romagna","Palanzano","Palanzano (PR) ","AGENZIA TERRITORIALE DELL'EMILIA ROMAGNA PER I SERVIZI IDRICI E I RIFIUTI",802,802,"Parma","PR","034026","Palanzano"]
["Emilia-Romagna","Parma","Parma (PR) ","AGENZIA TERRITORIALE DELL'EMILIA ROMAGNA PER I SERVIZI IDRICI E I RIFIUTI",802,802,"Parma","PR","034027","Parma"]
["Emilia-Romagna","Pellegrino Parmense","Pellegrino Parmense (PR) ","AGENZIA TERRITORIALE DELL'EMILIA ROMAGNA PER I SERVIZI IDRICI E I RIFIUTI",802,802,"Parma","PR","034028","Pellegrino Parmense"]
["Emilia-Romagna","Roccabianca","Roccabianca (PR) ","AGENZIA TERRITORIALE DELL'EMILIA ROMAGNA PER I SERVIZI IDRICI E I RIFIUTI",802,802,"Parma","PR","034030","Roccabianca"]
["Emilia-Romagna","Sala Baganza","Sala Baganza (PR) ","AGENZIA TERRITORIALE DELL'EMILIA ROMAGNA PER I SERVIZI IDRICI E I RIFIUTI",802,802,"Parma","PR","034031","Sala Baganza"]
["Emilia-Romagna","Salsomaggiore Terme","Salsomaggiore Terme (PR) ","AGENZIA TERRITORIALE DELL'EMILIA ROMAGNA PER I SERVIZI IDRICI E I RIFIUTI",802,802,"Parma","PR","034032","Salsomaggiore Terme"]
["Emilia-Romagna","San Secondo Parmense","San Secondo Parmense (PR) ","AGENZIA TERRITORIALE DELL'EMILIA ROMAGNA PER I SERVIZI IDRICI E I RIFIUTI",802,802,"Parma","PR","034033","San Secondo Parmense"]
["Emilia-Romagna","Solignano","Solignano (PR) ","AGENZIA TERRITORIALE DELL'EMILIA ROMAGNA PER I SERVIZI IDRICI E I RIFIUTI",802,802,"Parma","PR","034035","Solignano"]
["Emilia-Romagna","Soragna","Soragna (PR) ","AGENZIA TERRITORIALE DELL'EMILIA ROMAGNA PER I SERVIZI IDRICI E I RIFIUTI",802,802,"Parma","PR","034036","Soragna"]
["Emilia-Romagna","Terenzo","Terenzo (PR) ","AGENZIA TERRITORIALE DELL'EMILIA ROMAGNA PER I SERVIZI IDRICI E I RIFIUTI",802,802,"Parma","PR","034038","Terenzo"]
["Emilia-Romagna","Tizzano Val Parma","Tizzano Val Parma (PR) ","AGENZIA TERRITORIALE DELL'EMILIA ROMAGNA PER I SERVIZI IDRICI E I RIFIUTI",802,802,"Parma","PR","034039","Tizzano Val Parma"]
["Emilia-Romagna","Tornolo","Tornolo (PR) ","AGENZIA TERRITORIALE DELL'EMILIA ROMAGNA PER I SERVIZI IDRICI E I RIFIUTI",802,802,"Parma","PR","034040","Tornolo"]
["Emilia-Romagna","Torrile","Torrile (PR) ","AGENZIA TERRITORIALE DELL'EMILIA ROMAGNA PER I SERVIZI IDRICI E I RIFIUTI",802,802,"Parma","PR","034041","Torrile"]
["Emilia-Romagna","Traversetolo","Traversetolo (PR) ","AGENZIA TERRITORIALE DELL'EMILIA ROMAGNA PER I SERVIZI IDRICI E I RIFIUTI",802,802,"Parma","PR","034042","Traversetolo"]
["Emilia-Romagna","Valmozzola","Valmozzola (PR) ","AGENZIA TERRITORIALE DELL'EMILIA ROMAGNA PER I SERVIZI IDRICI E I RIFIUTI",802,802,"Parma","PR","034044","Valmozzola"]
["Emilia-Romagna","Varano de' Melegari","Varano de' Melegari (PR) ","AGENZIA TERRITORIALE DELL'EMILIA ROMAGNA PER I SERVIZI IDRICI E I RIFIUTI",802,802,"Parma","PR","034045","Varano de' Melegari"]
["Emilia-Romagna","Varsi","Varsi (PR) ","AGENZIA TERRITORIALE DELL'EMILIA ROMAGNA PER I SERVIZI IDRICI E I RIFIUTI",802,802,"Parma","PR","034046","Varsi"]
["Emilia-Romagna","Sissa Trecasali","Sissa Trecasali (PR) ","AGENZIA TERRITORIALE DELL'EMILIA ROMAGNA PER I SERVIZI IDRICI E I RIFIUTI",802,802,"Parma","PR","034049","Sissa Trecasali"]
["Emilia-Romagna","Polesine Zibello","Polesine Zibello (PR) ","AGENZIA TERRITORIALE DELL'EMILIA ROMAGNA PER I SERVIZI IDRICI E I RIFIUTI",802,802,"Parma","PR","034050","Polesine Zibello"]
["Emilia-Romagna","Sorbolo Mezzani","Sorbolo Mezzani (PR) ","AGENZIA TERRITORIALE DELL'EMILIA ROMAGNA PER I SERVIZI IDRICI E I RIFIUTI",802,802,"Parma","PR","034051","Sorbolo Mezzani"]
["Emilia-Romagna","Albinea","Albinea (RE) ","AGENZIA TERRITORIALE DELL'EMILIA ROMAGNA PER I SERVIZI IDRICI E I RIFIUTI",803,803,"Reggio nell'Emilia","RE","035001","Albinea"]
["Emilia-Romagna","Bagnolo in Piano","Bagnolo in Piano (RE) ","AGENZIA TERRITORIALE DELL'EMILIA ROMAGNA PER I SERVIZI IDRICI E I RIFIUTI",803,803,"Reggio nell'Emilia","RE","035002","Bagnolo in Piano"]
["Emilia-Romagna","Baiso","Baiso (RE) ","AGENZIA TERRITORIALE DELL'EMILIA ROMAGNA PER I SERVIZI IDRICI E I RIFIUTI",803,803,"Reggio nell'Emilia","RE","035003","Baiso"]
["Emilia-Romagna","Bibbiano","Bibbiano (RE) ","AGENZIA TERRITORIALE DELL'EMILIA ROMAGNA PER I SERVIZI IDRICI E I RIFIUTI",803,803,"Reggio nell'Emilia","RE","035004","Bibbiano"]
["Emilia-Romagna","Boretto","Boretto (RE) ","AGENZIA TERRITORIALE DELL'EMILIA ROMAGNA PER I SERVIZI IDRICI E I RIFIUTI",803,803,"Reggio nell'Emilia","RE","035005","Boretto"]
["Emilia-Romagna","Brescello","Brescello (RE) ","AGENZIA TERRITORIALE DELL'EMILIA ROMAGNA PER I SERVIZI IDRICI E I RIFIUTI",803,803,"Reggio nell'Emilia","RE","035006","Brescello"]
["Emilia-Romagna","Cadelbosco di Sopra","Cadelbosco di Sopra (RE) ","AGENZIA TERRITORIALE DELL'EMILIA ROMAGNA PER I SERVIZI IDRICI E I RIFIUTI",803,803,"Reggio nell'Emilia","RE","035008","Cadelbosco di Sopra"]
["Emilia-Romagna","Campagnola Emilia","Campagnola Emilia (RE) ","AGENZIA TERRITORIALE DELL'EMILIA ROMAGNA PER I SERVIZI IDRICI E I RIFIUTI",803,803,"Reggio nell'Emilia","RE","035009","Campagnola Emilia"]
["Emilia-Romagna","Campegine","Campegine (RE) ","AGENZIA TERRITORIALE DELL'EMILIA ROMAGNA PER I SERVIZI IDRICI E I RIFIUTI",803,803,"Reggio nell'Emilia","RE","035010","Campegine"]
["Emilia-Romagna","Carpineti","Carpineti (RE) ","AGENZIA TERRITORIALE DELL'EMILIA ROMAGNA PER I SERVIZI IDRICI E I RIFIUTI",803,803,"Reggio nell'Emilia","RE","035011","Carpineti"]
["Emilia-Romagna","Casalgrande","Casalgrande (RE) ","AGENZIA TERRITORIALE DELL'EMILIA ROMAGNA PER I SERVIZI IDRICI E I RIFIUTI",803,803,"Reggio nell'Emilia","RE","035012","Casalgrande"]
["Emilia-Romagna","Casina","Casina (RE) ","AGENZIA TERRITORIALE DELL'EMILIA ROMAGNA PER I SERVIZI IDRICI E I RIFIUTI",803,803,"Reggio nell'Emilia","RE","035013","Casina"]
["Emilia-Romagna","Castellarano","Castellarano (RE) ","AGENZIA TERRITORIALE DELL'EMILIA ROMAGNA PER I SERVIZI IDRICI E I RIFIUTI",803,803,"Reggio nell'Emilia","RE","035014","Castellarano"]
["Emilia-Romagna","Castelnovo di Sotto","Castelnovo di Sotto (RE) ","AGENZIA TERRITORIALE DELL'EMILIA ROMAGNA PER I SERVIZI IDRICI E I RIFIUTI",803,803,"Reggio nell'Emilia","RE","035015","Castelnovo di Sotto"]
["Emilia-Romagna","Castelnovo ne' Monti","Castelnovo ne' Monti (RE) ","AGENZIA TERRITORIALE DELL'EMILIA ROMAGNA PER I SERVIZI IDRICI E I RIFIUTI",803,803,"Reggio nell'Emilia","RE","035016","Castelnovo ne' Monti"]
["Emilia-Romagna","Cavriago","Cavriago (RE) ","AGENZIA TERRITORIALE DELL'EMILIA ROMAGNA PER I SERVIZI IDRICI E I RIFIUTI",803,803,"Reggio nell'Emilia","RE","035017","Cavriago"]
["Emilia-Romagna","Canossa","Canossa (RE) ","AGENZIA TERRITORIALE DELL'EMILIA ROMAGNA PER I SERVIZI IDRICI E I RIFIUTI",803,803,"Reggio nell'Emilia","RE","035018","Canossa"]
["Emilia-Romagna","Correggio","Correggio (RE) ","AGENZIA TERRITORIALE DELL'EMILIA ROMAGNA PER I SERVIZI IDRICI E I RIFIUTI",803,803,"Reggio nell'Emilia","RE","035020","Correggio"]
["Emilia-Romagna","Fabbrico","Fabbrico (RE) ","AGENZIA TERRITORIALE DELL'EMILIA ROMAGNA PER I SERVIZI IDRICI E I RIFIUTI",803,803,"Reggio nell'Emilia","RE","035021","Fabbrico"]
["Emilia-Romagna","Gattatico","Gattatico (RE) ","AGENZIA TERRITORIALE DELL'EMILIA ROMAGNA PER I SERVIZI IDRICI E I RIFIUTI",803,803,"Reggio nell'Emilia","RE","035022","Gattatico"]
["Emilia-Romagna","Gualtieri","Gualtieri (RE) ","AGENZIA TERRITORIALE DELL'EMILIA ROMAGNA PER I SERVIZI IDRICI E I RIFIUTI",803,803,"Reggio nell'Emilia","RE","035023","Gualtieri"]
["Emilia-Romagna","Guastalla","Guastalla (RE) ","AGENZIA TERRITORIALE DELL'EMILIA ROMAGNA PER I SERVIZI IDRICI E I RIFIUTI",803,803,"Reggio nell'Emilia","RE","035024","Guastalla"]
["Emilia-Romagna","Luzzara","Luzzara (RE) ","AGENZIA TERRITORIALE DELL'EMILIA ROMAGNA PER I SERVIZI IDRICI E I RIFIUTI",803,803,"Reggio nell'Emilia","RE","035026","Luzzara"]
["Emilia-Romagna","Montecchio Emilia","Montecchio Emilia (RE) ","AGENZIA TERRITORIALE DELL'EMILIA ROMAGNA PER I SERVIZI IDRICI E I RIFIUTI",803,803,"Reggio nell'Emilia","RE","035027","Montecchio Emilia"]
["Emilia-Romagna","Novellara","Novellara (RE) ","AGENZIA TERRITORIALE DELL'EMILIA ROMAGNA PER I SERVIZI IDRICI E I RIFIUTI",803,803,"Reggio nell'Emilia","RE","035028","Novellara"]
["Emilia-Romagna","Poviglio","Poviglio (RE) ","AGENZIA TERRITORIALE DELL'EMILIA ROMAGNA PER I SERVIZI IDRICI E I RIFIUTI",803,803,"Reggio nell'Emilia","RE","035029","Poviglio"]
["Emilia-Romagna","Quattro Castella","Quattro Castella (RE) ","AGENZIA TERRITORIALE DELL'EMILIA ROMAGNA PER I SERVIZI IDRICI E I RIFIUTI",803,803,"Reggio nell'Emilia","RE","035030","Quattro Castella"]
["Emilia-Romagna","Reggiolo","Reggiolo (RE) ","AGENZIA TERRITORIALE DELL'EMILIA ROMAGNA PER I SERVIZI IDRICI E I RIFIUTI",803,803,"Reggio nell'Emilia","RE","035032","Reggiolo"]
["Emilia-Romagna","Reggio nell'Emilia","Reggio nell'Emilia (RE) ","AGENZIA TERRITORIALE DELL'EMILIA ROMAGNA PER I SERVIZI IDRICI E I RIFIUTI",803,803,"Reggio nell'Emilia","RE","035033","Reggio nell'Emilia"]
["Emilia-Romagna","Rio Saliceto","Rio Saliceto (RE) ","AGENZIA TERRITORIALE DELL'EMILIA ROMAGNA PER I SERVIZI IDRICI E I RIFIUTI",803,803,"Reggio nell'Emilia","RE","035034","Rio Saliceto"]
["Emilia-Romagna","Rolo","Rolo (RE) ","AGENZIA TERRITORIALE DELL'EMILIA ROMAGNA PER I SERVIZI IDRICI E I RIFIUTI",803,803,"Reggio nell'Emilia","RE","035035","Rolo"]
["Emilia-Romagna","Rubiera","Rubiera (RE) ","AGENZIA TERRITORIALE DELL'EMILIA ROMAGNA PER I SERVIZI IDRICI E I RIFIUTI",803,803,"Reggio nell'Emilia","RE","035036","Rubiera"]
["Emilia-Romagna","San Martino in Rio","San Martino in Rio (RE) ","AGENZIA TERRITORIALE DELL'EMILIA ROMAGNA PER I SERVIZI IDRICI E I RIFIUTI",803,803,"Reggio nell'Emilia","RE","035037","San Martino in Rio"]
["Emilia-Romagna","San Polo d'Enza","San Polo d'Enza (RE) ","AGENZIA TERRITORIALE DELL'EMILIA ROMAGNA PER I SERVIZI IDRICI E I RIFIUTI",803,803,"Reggio nell'Emilia","RE","035038","San Polo d'Enza"]
["Emilia-Romagna","Sant'Ilario d'Enza","Sant'Ilario d'Enza (RE) ","AGENZIA TERRITORIALE DELL'EMILIA ROMAGNA PER I SERVIZI IDRICI E I RIFIUTI",803,803,"Reggio nell'Emilia","RE","035039","Sant'Ilario d'Enza"]
["Emilia-Romagna","Scandiano","Scandiano (RE) ","AGENZIA TERRITORIALE DELL'EMILIA ROMAGNA PER I SERVIZI IDRICI E I RIFIUTI",803,803,"Reggio nell'Emilia","RE","035040","Scandiano"]
["Emilia-Romagna","Toano","Toano (RE) ","AGENZIA TERRITORIALE DELL'EMILIA ROMAGNA PER I SERVIZI IDRICI E I RIFIUTI",803,803,"Reggio nell'Emilia","RE","035041","Toano"]
["Emilia-Romagna","Vetto","Vetto (RE) ","AGENZIA TERRITORIALE DELL'EMILIA ROMAGNA PER I SERVIZI IDRICI E I RIFIUTI",803,803,"Reggio nell'Emilia","RE","035042","Vetto"]
["Emilia-Romagna","Vezzano sul Crostolo","Vezzano sul Crostolo (RE) ","AGENZIA TERRITORIALE DELL'EMILIA ROMAGNA PER I SERVIZI IDRICI E I RIFIUTI",803,803,"Reggio nell'Emilia","RE","035043","Vezzano sul Crostolo"]
["Emilia-Romagna","Viano","Viano (RE) ","AGENZIA TERRITORIALE DELL'EMILIA ROMAGNA PER I SERVIZI IDRICI E I RIFIUTI",803,803,"Reggio nell'Emilia","RE","035044","Viano"]
["Emilia-Romagna","Villa Minozzo","Villa Minozzo (RE) ","AGENZIA TERRITORIALE DELL'EMILIA ROMAGNA PER I SERVIZI IDRICI E I RIFIUTI",803,803,"Reggio nell'Emilia","RE","035045","Villa Minozzo"]
["Emilia-Romagna","Ventasso","Ventasso (RE) ","AGENZIA TERRITORIALE DELL'EMILIA ROMAGNA PER I SERVIZI IDRICI E I RIFIUTI",803,803,"Reggio nell'Emilia","RE","035046","Ventasso"]
["Emilia-Romagna","Bastiglia","Bastiglia (MO) ","AGENZIA TERRITORIALE DELL'EMILIA ROMAGNA PER I SERVIZI IDRICI E I RIFIUTI",804,804,"Modena","MO","036001","Bastiglia"]
["Emilia-Romagna","Bomporto","Bomporto (MO) ","AGENZIA TERRITORIALE DELL'EMILIA ROMAGNA PER I SERVIZI IDRICI E I RIFIUTI",804,804,"Modena","MO","036002","Bomporto"]
["Emilia-Romagna","Campogalliano","Campogalliano (MO) ","AGENZIA TERRITORIALE DELL'EMILIA ROMAGNA PER I SERVIZI IDRICI E I RIFIUTI",804,804,"Modena","MO","036003","Campogalliano"]
["Emilia-Romagna","Camposanto","Camposanto (MO) ","AGENZIA TERRITORIALE DELL'EMILIA ROMAGNA PER I SERVIZI IDRICI E I RIFIUTI",804,804,"Modena","MO","036004","Camposanto"]
["Emilia-Romagna","Carpi","Carpi (MO) ","AGENZIA TERRITORIALE DELL'EMILIA ROMAGNA PER I SERVIZI IDRICI E I RIFIUTI",804,804,"Modena","MO","036005","Carpi"]
["Emilia-Romagna","Castelfranco Emilia","Castelfranco Emilia (MO) ","AGENZIA TERRITORIALE DELL'EMILIA ROMAGNA PER I SERVIZI IDRICI E I RIFIUTI",804,804,"Modena","MO","036006","Castelfranco Emilia"]
["Emilia-Romagna","Castelnuovo Rangone","Castelnuovo Rangone (MO) ","AGENZIA TERRITORIALE DELL'EMILIA ROMAGNA PER I SERVIZI IDRICI E I RIFIUTI",804,804,"Modena","MO","036007","Castelnuovo Rangone"]
["Emilia-Romagna","Castelvetro di Modena","Castelvetro di Modena (MO) ","AGENZIA TERRITORIALE DELL'EMILIA ROMAGNA PER I SERVIZI IDRICI E I RIFIUTI",804,804,"Modena","MO","036008","Castelvetro di Modena"]
["Emilia-Romagna","Cavezzo","Cavezzo (MO) ","AGENZIA TERRITORIALE DELL'EMILIA ROMAGNA PER I SERVIZI IDRICI E I RIFIUTI",804,804,"Modena","MO","036009","Cavezzo"]
["Emilia-Romagna","Concordia sulla Secchia","Concordia sulla Secchia (MO) ","AGENZIA TERRITORIALE DELL'EMILIA ROMAGNA PER I SERVIZI IDRICI E I RIFIUTI",804,804,"Modena","MO","036010","Concordia sulla Secchia"]
["Emilia-Romagna","Fanano","Fanano (MO) ","AGENZIA TERRITORIALE DELL'EMILIA ROMAGNA PER I SERVIZI IDRICI E I RIFIUTI",804,804,"Modena","MO","036011","Fanano"]
["Emilia-Romagna","Finale Emilia","Finale Emilia (MO) ","AGENZIA TERRITORIALE DELL'EMILIA ROMAGNA PER I SERVIZI IDRICI E I RIFIUTI",804,804,"Modena","MO","036012","Finale Emilia"]
["Emilia-Romagna","Fiorano Modenese","Fiorano Modenese (MO) ","AGENZIA TERRITORIALE DELL'EMILIA ROMAGNA PER I SERVIZI IDRICI E I RIFIUTI",804,804,"Modena","MO","036013","Fiorano Modenese"]
["Emilia-Romagna","Fiumalbo","Fiumalbo (MO) ","AGENZIA TERRITORIALE DELL'EMILIA ROMAGNA PER I SERVIZI IDRICI E I RIFIUTI",804,804,"Modena","MO","036014","Fiumalbo"]
["Emilia-Romagna","Formigine","Formigine (MO) ","AGENZIA TERRITORIALE DELL'EMILIA ROMAGNA PER I SERVIZI IDRICI E I RIFIUTI",804,804,"Modena","MO","036015","Formigine"]
["Emilia-Romagna","Frassinoro","Frassinoro (MO) ","AGENZIA TERRITORIALE DELL'EMILIA ROMAGNA PER I SERVIZI IDRICI E I RIFIUTI",804,804,"Modena","MO","036016","Frassinoro"]
["Emilia-Romagna","Guiglia","Guiglia (MO) ","AGENZIA TERRITORIALE DELL'EMILIA ROMAGNA PER I SERVIZI IDRICI E I RIFIUTI",804,804,"Modena","MO","036017","Guiglia"]
["Emilia-Romagna","Lama Mocogno","Lama Mocogno (MO) ","AGENZIA TERRITORIALE DELL'EMILIA ROMAGNA PER I SERVIZI IDRICI E I RIFIUTI",804,804,"Modena","MO","036018","Lama Mocogno"]
["Emilia-Romagna","Maranello","Maranello (MO) ","AGENZIA TERRITORIALE DELL'EMILIA ROMAGNA PER I SERVIZI IDRICI E I RIFIUTI",804,804,"Modena","MO","036019","Maranello"]
["Emilia-Romagna","Marano sul Panaro","Marano sul Panaro (MO) ","AGENZIA TERRITORIALE DELL'EMILIA ROMAGNA PER I SERVIZI IDRICI E I RIFIUTI",804,804,"Modena","MO","036020","Marano sul Panaro"]
["Emilia-Romagna","Medolla","Medolla (MO) ","AGENZIA TERRITORIALE DELL'EMILIA ROMAGNA PER I SERVIZI IDRICI E I RIFIUTI",804,804,"Modena","MO","036021","Medolla"]
["Emilia-Romagna","Mirandola","Mirandola (MO) ","AGENZIA TERRITORIALE DELL'EMILIA ROMAGNA PER I SERVIZI IDRICI E I RIFIUTI",804,804,"Modena","MO","036022","Mirandola"]
["Emilia-Romagna","Modena","Modena (MO) ","AGENZIA TERRITORIALE DELL'EMILIA ROMAGNA PER I SERVIZI IDRICI E I RIFIUTI",804,804,"Modena","MO","036023","Modena"]
["Emilia-Romagna","Montecreto","Montecreto (MO) ","AGENZIA TERRITORIALE DELL'EMILIA ROMAGNA PER I SERVIZI IDRICI E I RIFIUTI",804,804,"Modena","MO","036024","Montecreto"]
["Emilia-Romagna","Montefiorino","Montefiorino (MO) ","AGENZIA TERRITORIALE DELL'EMILIA ROMAGNA PER I SERVIZI IDRICI E I RIFIUTI",804,804,"Modena","MO","036025","Montefiorino"]
["Emilia-Romagna","Montese","Montese (MO) ","AGENZIA TERRITORIALE DELL'EMILIA ROMAGNA PER I SERVIZI IDRICI E I RIFIUTI",804,804,"Modena","MO","036026","Montese"]
["Emilia-Romagna","Nonantola","Nonantola (MO) ","AGENZIA TERRITORIALE DELL'EMILIA ROMAGNA PER I SERVIZI IDRICI E I RIFIUTI",804,804,"Modena","MO","036027","Nonantola"]
["Emilia-Romagna","Novi di Modena","Novi di Modena (MO) ","AGENZIA TERRITORIALE DELL'EMILIA ROMAGNA PER I SERVIZI IDRICI E I RIFIUTI",804,804,"Modena","MO","036028","Novi di Modena"]
["Emilia-Romagna","Palagano","Palagano (MO) ","AGENZIA TERRITORIALE DELL'EMILIA ROMAGNA PER I SERVIZI IDRICI E I RIFIUTI",804,804,"Modena","MO","036029","Palagano"]
["Emilia-Romagna","Pavullo nel Frignano","Pavullo nel Frignano (MO) ","AGENZIA TERRITORIALE DELL'EMILIA ROMAGNA PER I SERVIZI IDRICI E I RIFIUTI",804,804,"Modena","MO","036030","Pavullo nel Frignano"]
["Emilia-Romagna","Pievepelago","Pievepelago (MO) ","AGENZIA TERRITORIALE DELL'EMILIA ROMAGNA PER I SERVIZI IDRICI E I RIFIUTI",804,804,"Modena","MO","036031","Pievepelago"]
["Emilia-Romagna","Polinago","Polinago (MO) ","AGENZIA TERRITORIALE DELL'EMILIA ROMAGNA PER I SERVIZI IDRICI E I RIFIUTI",804,804,"Modena","MO","036032","Polinago"]
["Emilia-Romagna","Prignano sulla Secchia","Prignano sulla Secchia (MO) ","AGENZIA TERRITORIALE DELL'EMILIA ROMAGNA PER I SERVIZI IDRICI E I RIFIUTI",804,804,"Modena","MO","036033","Prignano sulla Secchia"]
["Emilia-Romagna","Ravarino","Ravarino (MO) ","AGENZIA TERRITORIALE DELL'EMILIA ROMAGNA PER I SERVIZI IDRICI E I RIFIUTI",804,804,"Modena","MO","036034","Ravarino"]
["Emilia-Romagna","Riolunato","Riolunato (MO) ","AGENZIA TERRITORIALE DELL'EMILIA ROMAGNA PER I SERVIZI IDRICI E I RIFIUTI",804,804,"Modena","MO","036035","Riolunato"]
["Emilia-Romagna","San Cesario sul Panaro","San Cesario sul Panaro (MO) ","AGENZIA TERRITORIALE DELL'EMILIA ROMAGNA PER I SERVIZI IDRICI E I RIFIUTI",804,804,"Modena","MO","036036","San Cesario sul Panaro"]
["Emilia-Romagna","San Felice sul Panaro","San Felice sul Panaro (MO) ","AGENZIA TERRITORIALE DELL'EMILIA ROMAGNA PER I SERVIZI IDRICI E I RIFIUTI",804,804,"Modena","MO","036037","San Felice sul Panaro"]
["Emilia-Romagna","San Possidonio","San Possidonio (MO) ","AGENZIA TERRITORIALE DELL'EMILIA ROMAGNA PER I SERVIZI IDRICI E I RIFIUTI",804,804,"Modena","MO","036038","San Possidonio"]
["Emilia-Romagna","San Prospero","San Prospero (MO) ","AGENZIA TERRITORIALE DELL'EMILIA ROMAGNA PER I SERVIZI IDRICI E I RIFIUTI",804,804,"Modena","MO","036039","San Prospero"]
["Emilia-Romagna","Sassuolo","Sassuolo (MO) ","AGENZIA TERRITORIALE DELL'EMILIA ROMAGNA PER I SERVIZI IDRICI E I RIFIUTI",804,804,"Modena","MO","036040","Sassuolo"]
["Emilia-Romagna","Savignano sul Panaro","Savignano sul Panaro (MO) ","AGENZIA TERRITORIALE DELL'EMILIA ROMAGNA PER I SERVIZI IDRICI E I RIFIUTI",804,804,"Modena","MO","036041","Savignano sul Panaro"]
["Emilia-Romagna","Serramazzoni","Serramazzoni (MO) ","AGENZIA TERRITORIALE DELL'EMILIA ROMAGNA PER I SERVIZI IDRICI E I RIFIUTI",804,804,"Modena","MO","036042","Serramazzoni"]
["Emilia-Romagna","Sestola","Sestola (MO) ","AGENZIA TERRITORIALE DELL'EMILIA ROMAGNA PER I SERVIZI IDRICI E I RIFIUTI",804,804,"Modena","MO","036043","Sestola"]
["Emilia-Romagna","Soliera","Soliera (MO) ","AGENZIA TERRITORIALE DELL'EMILIA ROMAGNA PER I SERVIZI IDRICI E I RIFIUTI",804,804,"Modena","MO","036044","Soliera"]
["Emilia-Romagna","Spilamberto","Spilamberto (MO) ","AGENZIA TERRITORIALE DELL'EMILIA ROMAGNA PER I SERVIZI IDRICI E I RIFIUTI",804,804,"Modena","MO","036045","Spilamberto"]
["Emilia-Romagna","Vignola","Vignola (MO) ","AGENZIA TERRITORIALE DELL'EMILIA ROMAGNA PER I SERVIZI IDRICI E I RIFIUTI",804,804,"Modena","MO","036046","Vignola"]
["Emilia-Romagna","Zocca","Zocca (MO) ","AGENZIA TERRITORIALE DELL'EMILIA ROMAGNA PER I SERVIZI IDRICI E I RIFIUTI",804,804,"Modena","MO","036047","Zocca"]
["Emilia-Romagna","Anzola dell'Emilia","Anzola dell'Emilia (BO) ","AGENZIA TERRITORIALE DELL'EMILIA ROMAGNA PER I SERVIZI IDRICI E I RIFIUTI",805,805,"Bologna","BO","037001","Anzola dell'Emilia"]
["Emilia-Romagna","Argelato","Argelato (BO) ","AGENZIA TERRITORIALE DELL'EMILIA ROMAGNA PER I SERVIZI IDRICI E I RIFIUTI",805,805,"Bologna","BO","037002","Argelato"]
["Emilia-Romagna","Baricella","Baricella (BO) ","AGENZIA TERRITORIALE DELL'EMILIA ROMAGNA PER I SERVIZI IDRICI E I RIFIUTI",805,805,"Bologna","BO","037003","Baricella"]
["Emilia-Romagna","Bentivoglio","Bentivoglio (BO) ","AGENZIA TERRITORIALE DELL'EMILIA ROMAGNA PER I SERVIZI IDRICI E I RIFIUTI",805,805,"Bologna","BO","037005","Bentivoglio"]
["Emilia-Romagna","Bologna","Bologna (BO) ","AGENZIA TERRITORIALE DELL'EMILIA ROMAGNA PER I SERVIZI IDRICI E I RIFIUTI",805,805,"Bologna","BO","037006","Bologna"]
["Emilia-Romagna","Borgo Tossignano","Borgo Tossignano (BO) ","AGENZIA TERRITORIALE DELL'EMILIA ROMAGNA PER I SERVIZI IDRICI E I RIFIUTI",805,805,"Bologna","BO","037007","Borgo Tossignano"]
["Emilia-Romagna","Budrio","Budrio (BO) ","AGENZIA TERRITORIALE DELL'EMILIA ROMAGNA PER I SERVIZI IDRICI E I RIFIUTI",805,805,"Bologna","BO","037008","Budrio"]
["Emilia-Romagna","Calderara di Reno","Calderara di Reno (BO) ","AGENZIA TERRITORIALE DELL'EMILIA ROMAGNA PER I SERVIZI IDRICI E I RIFIUTI",805,805,"Bologna","BO","037009","Calderara di Reno"]
["Emilia-Romagna","Camugnano","Camugnano (BO) ","AGENZIA TERRITORIALE DELL'EMILIA ROMAGNA PER I SERVIZI IDRICI E I RIFIUTI",805,805,"Bologna","BO","037010","Camugnano"]
["Emilia-Romagna","Casalecchio di Reno","Casalecchio di Reno (BO) ","AGENZIA TERRITORIALE DELL'EMILIA ROMAGNA PER I SERVIZI IDRICI E I RIFIUTI",805,805,"Bologna","BO","037011","Casalecchio di Reno"]
["Emilia-Romagna","Casalfiumanese","Casalfiumanese (BO) ","AGENZIA TERRITORIALE DELL'EMILIA ROMAGNA PER I SERVIZI IDRICI E I RIFIUTI",805,805,"Bologna","BO","037012","Casalfiumanese"]
["Emilia-Romagna","Castel d'Aiano","Castel d'Aiano (BO) ","AGENZIA TERRITORIALE DELL'EMILIA ROMAGNA PER I SERVIZI IDRICI E I RIFIUTI",805,805,"Bologna","BO","037013","Castel d'Aiano"]
["Emilia-Romagna","Castel del Rio","Castel del Rio (BO) ","AGENZIA TERRITORIALE DELL'EMILIA ROMAGNA PER I SERVIZI IDRICI E I RIFIUTI",805,805,"Bologna","BO","037014","Castel del Rio"]
["Emilia-Romagna","Castel di Casio","Castel di Casio (BO) ","AGENZIA TERRITORIALE DELL'EMILIA ROMAGNA PER I SERVIZI IDRICI E I RIFIUTI",805,805,"Bologna","BO","037015","Castel di Casio"]
["Emilia-Romagna","Castel Guelfo di Bologna","Castel Guelfo di Bologna (BO) ","AGENZIA TERRITORIALE DELL'EMILIA ROMAGNA PER I SERVIZI IDRICI E I RIFIUTI",805,805,"Bologna","BO","037016","Castel Guelfo di Bologna"]
["Emilia-Romagna","Castello d'Argile","Castello d'Argile (BO) ","AGENZIA TERRITORIALE DELL'EMILIA ROMAGNA PER I SERVIZI IDRICI E I RIFIUTI",805,805,"Bologna","BO","037017","Castello d'Argile"]
["Emilia-Romagna","Castel Maggiore","Castel Maggiore (BO) ","AGENZIA TERRITORIALE DELL'EMILIA ROMAGNA PER I SERVIZI IDRICI E I RIFIUTI",805,805,"Bologna","BO","037019","Castel Maggiore"]
["Emilia-Romagna","Castel San Pietro Terme","Castel San Pietro Terme (BO) ","AGENZIA TERRITORIALE DELL'EMILIA ROMAGNA PER I SERVIZI IDRICI E I RIFIUTI",805,805,"Bologna","BO","037020","Castel San Pietro Terme"]
["Emilia-Romagna","Castenaso","Castenaso (BO) ","AGENZIA TERRITORIALE DELL'EMILIA ROMAGNA PER I SERVIZI IDRICI E I RIFIUTI",805,805,"Bologna","BO","037021","Castenaso"]
["Emilia-Romagna","Castiglione dei Pepoli","Castiglione dei Pepoli (BO) ","AGENZIA TERRITORIALE DELL'EMILIA ROMAGNA PER I SERVIZI IDRICI E I RIFIUTI",805,805,"Bologna","BO","037022","Castiglione dei Pepoli"]
["Emilia-Romagna","Crevalcore","Crevalcore (BO) ","AGENZIA TERRITORIALE DELL'EMILIA ROMAGNA PER I SERVIZI IDRICI E I RIFIUTI",805,805,"Bologna","BO","037024","Crevalcore"]
["Emilia-Romagna","Dozza","Dozza (BO) ","AGENZIA TERRITORIALE DELL'EMILIA ROMAGNA PER I SERVIZI IDRICI E I RIFIUTI",805,805,"Bologna","BO","037025","Dozza"]
["Emilia-Romagna","Fontanelice","Fontanelice (BO) ","AGENZIA TERRITORIALE DELL'EMILIA ROMAGNA PER I SERVIZI IDRICI E I RIFIUTI",805,805,"Bologna","BO","037026","Fontanelice"]
["Emilia-Romagna","Gaggio Montano","Gaggio Montano (BO) ","AGENZIA TERRITORIALE DELL'EMILIA ROMAGNA PER I SERVIZI IDRICI E I RIFIUTI",805,805,"Bologna","BO","037027","Gaggio Montano"]
["Emilia-Romagna","Galliera","Galliera (BO) ","AGENZIA TERRITORIALE DELL'EMILIA ROMAGNA PER I SERVIZI IDRICI E I RIFIUTI",805,805,"Bologna","BO","037028","Galliera"]
["Emilia-Romagna","Granarolo dell'Emilia","Granarolo dell'Emilia (BO) ","AGENZIA TERRITORIALE DELL'EMILIA ROMAGNA PER I SERVIZI IDRICI E I RIFIUTI",805,805,"Bologna","BO","037030","Granarolo dell'Emilia"]
["Emilia-Romagna","Grizzana Morandi","Grizzana Morandi (BO) ","AGENZIA TERRITORIALE DELL'EMILIA ROMAGNA PER I SERVIZI IDRICI E I RIFIUTI",805,805,"Bologna","BO","037031","Grizzana Morandi"]
["Emilia-Romagna","Imola","Imola (BO) ","AGENZIA TERRITORIALE DELL'EMILIA ROMAGNA PER I SERVIZI IDRICI E I RIFIUTI",805,805,"Bologna","BO","037032","Imola"]
["Emilia-Romagna","Lizzano in Belvedere","Lizzano in Belvedere (BO) ","AGENZIA TERRITORIALE DELL'EMILIA ROMAGNA PER I SERVIZI IDRICI E I RIFIUTI",805,805,"Bologna","BO","037033","Lizzano in Belvedere"]
["Emilia-Romagna","Loiano","Loiano (BO) ","AGENZIA TERRITORIALE DELL'EMILIA ROMAGNA PER I SERVIZI IDRICI E I RIFIUTI",805,805,"Bologna","BO","037034","Loiano"]
["Emilia-Romagna","Malalbergo","Malalbergo (BO) ","AGENZIA TERRITORIALE DELL'EMILIA ROMAGNA PER I SERVIZI IDRICI E I RIFIUTI",805,805,"Bologna","BO","037035","Malalbergo"]
["Emilia-Romagna","Marzabotto","Marzabotto (BO) ","AGENZIA TERRITORIALE DELL'EMILIA ROMAGNA PER I SERVIZI IDRICI E I RIFIUTI",805,805,"Bologna","BO","037036","Marzabotto"]
["Emilia-Romagna","Medicina","Medicina (BO) ","AGENZIA TERRITORIALE DELL'EMILIA ROMAGNA PER I SERVIZI IDRICI E I RIFIUTI",805,805,"Bologna","BO","037037","Medicina"]
["Emilia-Romagna","Minerbio","Minerbio (BO) ","AGENZIA TERRITORIALE DELL'EMILIA ROMAGNA PER I SERVIZI IDRICI E I RIFIUTI",805,805,"Bologna","BO","037038","Minerbio"]
["Emilia-Romagna","Molinella","Molinella (BO) ","AGENZIA TERRITORIALE DELL'EMILIA ROMAGNA PER I SERVIZI IDRICI E I RIFIUTI",805,805,"Bologna","BO","037039","Molinella"]
["Emilia-Romagna","Monghidoro","Monghidoro (BO) ","AGENZIA TERRITORIALE DELL'EMILIA ROMAGNA PER I SERVIZI IDRICI E I RIFIUTI",805,805,"Bologna","BO","037040","Monghidoro"]
["Emilia-Romagna","Monterenzio","Monterenzio (BO) ","AGENZIA TERRITORIALE DELL'EMILIA ROMAGNA PER I SERVIZI IDRICI E I RIFIUTI",805,805,"Bologna","BO","037041","Monterenzio"]
["Emilia-Romagna","Monte San Pietro","Monte San Pietro (BO) ","AGENZIA TERRITORIALE DELL'EMILIA ROMAGNA PER I SERVIZI IDRICI E I RIFIUTI",805,805,"Bologna","BO","037042","Monte San Pietro"]
["Emilia-Romagna","Monzuno","Monzuno (BO) ","AGENZIA TERRITORIALE DELL'EMILIA ROMAGNA PER I SERVIZI IDRICI E I RIFIUTI",805,805,"Bologna","BO","037044","Monzuno"]
["Emilia-Romagna","Mordano","Mordano (BO) ","AGENZIA TERRITORIALE DELL'EMILIA ROMAGNA PER I SERVIZI IDRICI E I RIFIUTI",805,805,"Bologna","BO","037045","Mordano"]
["Emilia-Romagna","Ozzano dell'Emilia","Ozzano dell'Emilia (BO) ","AGENZIA TERRITORIALE DELL'EMILIA ROMAGNA PER I SERVIZI IDRICI E I RIFIUTI",805,805,"Bologna","BO","037046","Ozzano dell'Emilia"]
["Emilia-Romagna","Pianoro","Pianoro (BO) ","AGENZIA TERRITORIALE DELL'EMILIA ROMAGNA PER I SERVIZI IDRICI E I RIFIUTI",805,805,"Bologna","BO","037047","Pianoro"]
["Emilia-Romagna","Pieve di Cento","Pieve di Cento (BO) ","AGENZIA TERRITORIALE DELL'EMILIA ROMAGNA PER I SERVIZI IDRICI E I RIFIUTI",805,805,"Bologna","BO","037048","Pieve di Cento"]
["Emilia-Romagna","Sala Bolognese","Sala Bolognese (BO) ","AGENZIA TERRITORIALE DELL'EMILIA ROMAGNA PER I SERVIZI IDRICI E I RIFIUTI",805,805,"Bologna","BO","037050","Sala Bolognese"]
["Emilia-Romagna","San Benedetto Val di Sambro","San Benedetto Val di Sambro (BO) ","AGENZIA TERRITORIALE DELL'EMILIA ROMAGNA PER I SERVIZI IDRICI E I RIFIUTI",805,805,"Bologna","BO","037051","San Benedetto Val di Sambro"]
["Emilia-Romagna","San Giorgio di Piano","San Giorgio di Piano (BO) ","AGENZIA TERRITORIALE DELL'EMILIA ROMAGNA PER I SERVIZI IDRICI E I RIFIUTI",805,805,"Bologna","BO","037052","San Giorgio di Piano"]
["Emilia-Romagna","San Giovanni in Persiceto","San Giovanni in Persiceto (BO) ","AGENZIA TERRITORIALE DELL'EMILIA ROMAGNA PER I SERVIZI IDRICI E I RIFIUTI",805,805,"Bologna","BO","037053","San Giovanni in Persiceto"]
["Emilia-Romagna","San Lazzaro di Savena","San Lazzaro di Savena (BO) ","AGENZIA TERRITORIALE DELL'EMILIA ROMAGNA PER I SERVIZI IDRICI E I RIFIUTI",805,805,"Bologna","BO","037054","San Lazzaro di Savena"]
["Emilia-Romagna","San Pietro in Casale","San Pietro in Casale (BO) ","AGENZIA TERRITORIALE DELL'EMILIA ROMAGNA PER I SERVIZI IDRICI E I RIFIUTI",805,805,"Bologna","BO","037055","San Pietro in Casale"]
["Emilia-Romagna","Sant'Agata Bolognese","Sant'Agata Bolognese (BO) ","AGENZIA TERRITORIALE DELL'EMILIA ROMAGNA PER I SERVIZI IDRICI E I RIFIUTI",805,805,"Bologna","BO","037056","Sant'Agata Bolognese"]
["Emilia-Romagna","Sasso Marconi","Sasso Marconi (BO) ","AGENZIA TERRITORIALE DELL'EMILIA ROMAGNA PER I SERVIZI IDRICI E I RIFIUTI",805,805,"Bologna","BO","037057","Sasso Marconi"]
["Emilia-Romagna","Vergato","Vergato (BO) ","AGENZIA TERRITORIALE DELL'EMILIA ROMAGNA PER I SERVIZI IDRICI E I RIFIUTI",805,805,"Bologna","BO","037059","Vergato"]
["Emilia-Romagna","Zola Predosa","Zola Predosa (BO) ","AGENZIA TERRITORIALE DELL'EMILIA ROMAGNA PER I SERVIZI IDRICI E I RIFIUTI",805,805,"Bologna","BO","037060","Zola Predosa"]
["Emilia-Romagna","Valsamoggia","Valsamoggia (BO) ","AGENZIA TERRITORIALE DELL'EMILIA ROMAGNA PER I SERVIZI IDRICI E I RIFIUTI",805,805,"Bologna","BO","037061","Valsamoggia"]
["Emilia-Romagna","Alto Reno Terme","Alto Reno Terme (BO) ","AGENZIA TERRITORIALE DELL'EMILIA ROMAGNA PER I SERVIZI IDRICI E I RIFIUTI",805,805,"Bologna","BO","037062","Alto Reno Terme"]
["Emilia-Romagna","Argenta","Argenta (FE) ","AGENZIA TERRITORIALE DELL'EMILIA ROMAGNA PER I SERVIZI IDRICI E I RIFIUTI",806,806,"Ferrara","FE","038001","Argenta"]
["Emilia-Romagna","Bondeno","Bondeno (FE) ","AGENZIA TERRITORIALE DELL'EMILIA ROMAGNA PER I SERVIZI IDRICI E I RIFIUTI",806,806,"Ferrara","FE","038003","Bondeno"]
["Emilia-Romagna","Cento","Cento (FE) ","AGENZIA TERRITORIALE DELL'EMILIA ROMAGNA PER I SERVIZI IDRICI E I RIFIUTI",806,806,"Ferrara","FE","038004","Cento"]
["Emilia-Romagna","Codigoro","Codigoro (FE) ","AGENZIA TERRITORIALE DELL'EMILIA ROMAGNA PER I SERVIZI IDRICI E I RIFIUTI",806,806,"Ferrara","FE","038005","Codigoro"]
["Emilia-Romagna","Comacchio","Comacchio (FE) ","AGENZIA TERRITORIALE DELL'EMILIA ROMAGNA PER I SERVIZI IDRICI E I RIFIUTI",806,806,"Ferrara","FE","038006","Comacchio"]
["Emilia-Romagna","Copparo","Copparo (FE) ","AGENZIA TERRITORIALE DELL'EMILIA ROMAGNA PER I SERVIZI IDRICI E I RIFIUTI",806,806,"Ferrara","FE","038007","Copparo"]
["Emilia-Romagna","Ferrara","Ferrara (FE) ","AGENZIA TERRITORIALE DELL'EMILIA ROMAGNA PER I SERVIZI IDRICI E I RIFIUTI",806,806,"Ferrara","FE","038008","Ferrara"]
["Emilia-Romagna","Jolanda di Savoia","Jolanda di Savoia (FE) ","AGENZIA TERRITORIALE DELL'EMILIA ROMAGNA PER I SERVIZI IDRICI E I RIFIUTI",806,806,"Ferrara","FE","038010","Jolanda di Savoia"]
["Emilia-Romagna","Lagosanto","Lagosanto (FE) ","AGENZIA TERRITORIALE DELL'EMILIA ROMAGNA PER I SERVIZI IDRICI E I RIFIUTI",806,806,"Ferrara","FE","038011","Lagosanto"]
["Emilia-Romagna","Masi Torello","Masi Torello (FE) ","AGENZIA TERRITORIALE DELL'EMILIA ROMAGNA PER I SERVIZI IDRICI E I RIFIUTI",806,806,"Ferrara","FE","038012","Masi Torello"]
["Emilia-Romagna","Mesola","Mesola (FE) ","AGENZIA TERRITORIALE DELL'EMILIA ROMAGNA PER I SERVIZI IDRICI E I RIFIUTI",806,806,"Ferrara","FE","038014","Mesola"]
["Emilia-Romagna","Ostellato","Ostellato (FE) ","AGENZIA TERRITORIALE DELL'EMILIA ROMAGNA PER I SERVIZI IDRICI E I RIFIUTI",806,806,"Ferrara","FE","038017","Ostellato"]
["Emilia-Romagna","Poggio Renatico","Poggio Renatico (FE) ","AGENZIA TERRITORIALE DELL'EMILIA ROMAGNA PER I SERVIZI IDRICI E I RIFIUTI",806,806,"Ferrara","FE","038018","Poggio Renatico"]
["Emilia-Romagna","Portomaggiore","Portomaggiore (FE) ","AGENZIA TERRITORIALE DELL'EMILIA ROMAGNA PER I SERVIZI IDRICI E I RIFIUTI",806,806,"Ferrara","FE","038019","Portomaggiore"]
["Emilia-Romagna","Vigarano Mainarda","Vigarano Mainarda (FE) ","AGENZIA TERRITORIALE DELL'EMILIA ROMAGNA PER I SERVIZI IDRICI E I RIFIUTI",806,806,"Ferrara","FE","038022","Vigarano Mainarda"]
["Emilia-Romagna","Voghiera","Voghiera (FE) ","AGENZIA TERRITORIALE DELL'EMILIA ROMAGNA PER I SERVIZI IDRICI E I RIFIUTI",806,806,"Ferrara","FE","038023","Voghiera"]
["Emilia-Romagna","Goro","Goro (FE) ","AGENZIA TERRITORIALE DELL'EMILIA ROMAGNA PER I SERVIZI IDRICI E I RIFIUTI",806,806,"Ferrara","FE","038025","Goro"]
["Emilia-Romagna","Fiscaglia","Fiscaglia (FE) ","AGENZIA TERRITORIALE DELL'EMILIA ROMAGNA PER I SERVIZI IDRICI E I RIFIUTI",806,806,"Ferrara","FE","038027","Fiscaglia"]
["Emilia-Romagna","Terre del Reno","Terre del Reno (FE) ","AGENZIA TERRITORIALE DELL'EMILIA ROMAGNA PER I SERVIZI IDRICI E I RIFIUTI",806,806,"Ferrara","FE","038028","Terre del Reno"]
["Emilia-Romagna","Riva del Po","Riva del Po (FE) ","AGENZIA TERRITORIALE DELL'EMILIA ROMAGNA PER I SERVIZI IDRICI E I RIFIUTI",806,806,"Ferrara","FE","038029","Riva del Po"]
["Emilia-Romagna","Tresignana","Tresignana (FE) ","AGENZIA TERRITORIALE DELL'EMILIA ROMAGNA PER I SERVIZI IDRICI E I RIFIUTI",806,806,"Ferrara","FE","038030","Tresignana"]
["Emilia-Romagna","Alfonsine","Alfonsine (RA) ","AGENZIA TERRITORIALE DELL'EMILIA ROMAGNA PER I SERVIZI IDRICI E I RIFIUTI",807,807,"Ravenna","RA","039001","Alfonsine"]
["Emilia-Romagna","Bagnacavallo","Bagnacavallo (RA) ","AGENZIA TERRITORIALE DELL'EMILIA ROMAGNA PER I SERVIZI IDRICI E I RIFIUTI",807,807,"Ravenna","RA","039002","Bagnacavallo"]
["Emilia-Romagna","Bagnara di Romagna","Bagnara di Romagna (RA) ","AGENZIA TERRITORIALE DELL'EMILIA ROMAGNA PER I SERVIZI IDRICI E I RIFIUTI",807,807,"Ravenna","RA","039003","Bagnara di Romagna"]
["Emilia-Romagna","Brisighella","Brisighella (RA) ","AGENZIA TERRITORIALE DELL'EMILIA ROMAGNA PER I SERVIZI IDRICI E I RIFIUTI",807,807,"Ravenna","RA","039004","Brisighella"]
["Emilia-Romagna","Casola Valsenio","Casola Valsenio (RA) ","AGENZIA TERRITORIALE DELL'EMILIA ROMAGNA PER I SERVIZI IDRICI E I RIFIUTI",807,807,"Ravenna","RA","039005","Casola Valsenio"]
["Emilia-Romagna","Castel Bolognese","Castel Bolognese (RA) ","AGENZIA TERRITORIALE DELL'EMILIA ROMAGNA PER I SERVIZI IDRICI E I RIFIUTI",807,807,"Ravenna","RA","039006","Castel Bolognese"]
["Emilia-Romagna","Cervia","Cervia (RA) ","AGENZIA TERRITORIALE DELL'EMILIA ROMAGNA PER I SERVIZI IDRICI E I RIFIUTI",807,807,"Ravenna","RA","039007","Cervia"]
["Emilia-Romagna","Conselice","Conselice (RA) ","AGENZIA TERRITORIALE DELL'EMILIA ROMAGNA PER I SERVIZI IDRICI E I RIFIUTI",807,807,"Ravenna","RA","039008","Conselice"]
["Emilia-Romagna","Cotignola","Cotignola (RA) ","AGENZIA TERRITORIALE DELL'EMILIA ROMAGNA PER I SERVIZI IDRICI E I RIFIUTI",807,807,"Ravenna","RA","039009","Cotignola"]
["Emilia-Romagna","Faenza","Faenza (RA) ","AGENZIA TERRITORIALE DELL'EMILIA ROMAGNA PER I SERVIZI IDRICI E I RIFIUTI",807,807,"Ravenna","RA","039010","Faenza"]
["Emilia-Romagna","Fusignano","Fusignano (RA) ","AGENZIA TERRITORIALE DELL'EMILIA ROMAGNA PER I SERVIZI IDRICI E I RIFIUTI",807,807,"Ravenna","RA","039011","Fusignano"]
["Emilia-Romagna","Lugo","Lugo (RA) ","AGENZIA TERRITORIALE DELL'EMILIA ROMAGNA PER I SERVIZI IDRICI E I RIFIUTI",807,807,"Ravenna","RA","039012","Lugo"]
["Emilia-Romagna","Massa Lombarda","Massa Lombarda (RA) ","AGENZIA TERRITORIALE DELL'EMILIA ROMAGNA PER I SERVIZI IDRICI E I RIFIUTI",807,807,"Ravenna","RA","039013","Massa Lombarda"]
["Emilia-Romagna","Ravenna","Ravenna (RA) ","AGENZIA TERRITORIALE DELL'EMILIA ROMAGNA PER I SERVIZI IDRICI E I RIFIUTI",807,807,"Ravenna","RA","039014","Ravenna"]
["Emilia-Romagna","Riolo Terme","Riolo Terme (RA) ","AGENZIA TERRITORIALE DELL'EMILIA ROMAGNA PER I SERVIZI IDRICI E I RIFIUTI",807,807,"Ravenna","RA","039015","Riolo Terme"]
["Emilia-Romagna","Russi","Russi (RA) ","AGENZIA TERRITORIALE DELL'EMILIA ROMAGNA PER I SERVIZI IDRICI E I RIFIUTI",807,807,"Ravenna","RA","039016","Russi"]
["Emilia-Romagna","Sant'Agata sul Santerno","Sant'Agata sul Santerno (RA) ","AGENZIA TERRITORIALE DELL'EMILIA ROMAGNA PER I SERVIZI IDRICI E I RIFIUTI",807,807,"Ravenna","RA","039017","Sant'Agata sul Santerno"]
["Emilia-Romagna","Solarolo","Solarolo (RA) ","AGENZIA TERRITORIALE DELL'EMILIA ROMAGNA PER I SERVIZI IDRICI E I RIFIUTI",807,807,"Ravenna","RA","039018","Solarolo"]
["Emilia-Romagna","Bagno di Romagna","Bagno di Romagna (FC) ","AGENZIA TERRITORIALE DELL'EMILIA ROMAGNA PER I SERVIZI IDRICI E I RIFIUTI",808,808,"Forlì-Cesena","FC","040001","Bagno di Romagna"]
["Emilia-Romagna","Bertinoro","Bertinoro (FC) ","AGENZIA TERRITORIALE DELL'EMILIA ROMAGNA PER I SERVIZI IDRICI E I RIFIUTI",808,808,"Forlì-Cesena","FC","040003","Bertinoro"]
["Emilia-Romagna","Borghi","Borghi (FC) ","AGENZIA TERRITORIALE DELL'EMILIA ROMAGNA PER I SERVIZI IDRICI E I RIFIUTI",808,808,"Forlì-Cesena","FC","040004","Borghi"]
["Emilia-Romagna","Castrocaro Terme e Terra del Sole","Castrocaro Terme e Terra del Sole (FC) ","AGENZIA TERRITORIALE DELL'EMILIA ROMAGNA PER I SERVIZI IDRICI E I RIFIUTI",808,808,"Forlì-Cesena","FC","040005","Castrocaro Terme e Terra del Sole"]
["Emilia-Romagna","Cesena","Cesena (FC) ","AGENZIA TERRITORIALE DELL'EMILIA ROMAGNA PER I SERVIZI IDRICI E I RIFIUTI",808,808,"Forlì-Cesena","FC","040007","Cesena"]
["Emilia-Romagna","Cesenatico","Cesenatico (FC) ","AGENZIA TERRITORIALE DELL'EMILIA ROMAGNA PER I SERVIZI IDRICI E I RIFIUTI",808,808,"Forlì-Cesena","FC","040008","Cesenatico"]
["Emilia-Romagna","Civitella di Romagna","Civitella di Romagna (FC) ","AGENZIA TERRITORIALE DELL'EMILIA ROMAGNA PER I SERVIZI IDRICI E I RIFIUTI",808,808,"Forlì-Cesena","FC","040009","Civitella di Romagna"]
["Emilia-Romagna","Dovadola","Dovadola (FC) ","AGENZIA TERRITORIALE DELL'EMILIA ROMAGNA PER I SERVIZI IDRICI E I RIFIUTI",808,808,"Forlì-Cesena","FC","040011","Dovadola"]
["Emilia-Romagna","Forlì","Forlì (FC) ","AGENZIA TERRITORIALE DELL'EMILIA ROMAGNA PER I SERVIZI IDRICI E I RIFIUTI",808,808,"Forlì-Cesena","FC","040012","Forlì"]
["Emilia-Romagna","Forlimpopoli","Forlimpopoli (FC) ","AGENZIA TERRITORIALE DELL'EMILIA ROMAGNA PER I SERVIZI IDRICI E I RIFIUTI",808,808,"Forlì-Cesena","FC","040013","Forlimpopoli"]
["Emilia-Romagna","Galeata","Galeata (FC) ","AGENZIA TERRITORIALE DELL'EMILIA ROMAGNA PER I SERVIZI IDRICI E I RIFIUTI",808,808,"Forlì-Cesena","FC","040014","Galeata"]
["Emilia-Romagna","Gambettola","Gambettola (FC) ","AGENZIA TERRITORIALE DELL'EMILIA ROMAGNA PER I SERVIZI IDRICI E I RIFIUTI",808,808,"Forlì-Cesena","FC","040015","Gambettola"]
["Emilia-Romagna","Gatteo","Gatteo (FC) ","AGENZIA TERRITORIALE DELL'EMILIA ROMAGNA PER I SERVIZI IDRICI E I RIFIUTI",808,808,"Forlì-Cesena","FC","040016","Gatteo"]
["Emilia-Romagna","Longiano","Longiano (FC) ","AGENZIA TERRITORIALE DELL'EMILIA ROMAGNA PER I SERVIZI IDRICI E I RIFIUTI",808,808,"Forlì-Cesena","FC","040018","Longiano"]
["Emilia-Romagna","Meldola","Meldola (FC) ","AGENZIA TERRITORIALE DELL'EMILIA ROMAGNA PER I SERVIZI IDRICI E I RIFIUTI",808,808,"Forlì-Cesena","FC","040019","Meldola"]
["Emilia-Romagna","Mercato Saraceno","Mercato Saraceno (FC) ","AGENZIA TERRITORIALE DELL'EMILIA ROMAGNA PER I SERVIZI IDRICI E I RIFIUTI",808,808,"Forlì-Cesena","FC","040020","Mercato Saraceno"]
["Emilia-Romagna","Modigliana","Modigliana (FC) ","AGENZIA TERRITORIALE DELL'EMILIA ROMAGNA PER I SERVIZI IDRICI E I RIFIUTI",808,808,"Forlì-Cesena","FC","040022","Modigliana"]
["Emilia-Romagna","Montiano","Montiano (FC) ","AGENZIA TERRITORIALE DELL'EMILIA ROMAGNA PER I SERVIZI IDRICI E I RIFIUTI",808,808,"Forlì-Cesena","FC","040028","Montiano"]
["Emilia-Romagna","Portico e San Benedetto","Portico e San Benedetto (FC) ","AGENZIA TERRITORIALE DELL'EMILIA ROMAGNA PER I SERVIZI IDRICI E I RIFIUTI",808,808,"Forlì-Cesena","FC","040031","Portico e San Benedetto"]
["Emilia-Romagna","Predappio","Predappio (FC) ","AGENZIA TERRITORIALE DELL'EMILIA ROMAGNA PER I SERVIZI IDRICI E I RIFIUTI",808,808,"Forlì-Cesena","FC","040032","Predappio"]
["Emilia-Romagna","Premilcuore","Premilcuore (FC) ","AGENZIA TERRITORIALE DELL'EMILIA ROMAGNA PER I SERVIZI IDRICI E I RIFIUTI",808,808,"Forlì-Cesena","FC","040033","Premilcuore"]
["Emilia-Romagna","Rocca San Casciano","Rocca San Casciano (FC) ","AGENZIA TERRITORIALE DELL'EMILIA ROMAGNA PER I SERVIZI IDRICI E I RIFIUTI",808,808,"Forlì-Cesena","FC","040036","Rocca San Casciano"]
["Emilia-Romagna","Roncofreddo","Roncofreddo (FC) ","AGENZIA TERRITORIALE DELL'EMILIA ROMAGNA PER I SERVIZI IDRICI E I RIFIUTI",808,808,"Forlì-Cesena","FC","040037","Roncofreddo"]
["Emilia-Romagna","San Mauro Pascoli","San Mauro Pascoli (FC) ","AGENZIA TERRITORIALE DELL'EMILIA ROMAGNA PER I SERVIZI IDRICI E I RIFIUTI",808,808,"Forlì-Cesena","FC","040041","San Mauro Pascoli"]
["Emilia-Romagna","Santa Sofia","Santa Sofia (FC) ","AGENZIA TERRITORIALE DELL'EMILIA ROMAGNA PER I SERVIZI IDRICI E I RIFIUTI",808,808,"Forlì-Cesena","FC","040043","Santa Sofia"]
["Emilia-Romagna","Sarsina","Sarsina (FC) ","AGENZIA TERRITORIALE DELL'EMILIA ROMAGNA PER I SERVIZI IDRICI E I RIFIUTI",808,808,"Forlì-Cesena","FC","040044","Sarsina"]
["Emilia-Romagna","Savignano sul Rubicone","Savignano sul Rubicone (FC) ","AGENZIA TERRITORIALE DELL'EMILIA ROMAGNA PER I SERVIZI IDRICI E I RIFIUTI",808,808,"Forlì-Cesena","FC","040045","Savignano sul Rubicone"]
["Emilia-Romagna","Sogliano al Rubicone","Sogliano al Rubicone (FC) ","AGENZIA TERRITORIALE DELL'EMILIA ROMAGNA PER I SERVIZI IDRICI E I RIFIUTI",808,808,"Forlì-Cesena","FC","040046","Sogliano al Rubicone"]
["Emilia-Romagna","Tredozio","Tredozio (FC) ","AGENZIA TERRITORIALE DELL'EMILIA ROMAGNA PER I SERVIZI IDRICI E I RIFIUTI",808,808,"Forlì-Cesena","FC","040049","Tredozio"]
["Emilia-Romagna","Verghereto","Verghereto (FC) ","AGENZIA TERRITORIALE DELL'EMILIA ROMAGNA PER I SERVIZI IDRICI E I RIFIUTI",808,808,"Forlì-Cesena","FC","040050","Verghereto"]
["Marche","Acqualagna","Acqualagna (PU) ","Assemblea di Ambito territoriale ottimale n.1 Marche Nord Pesaro e Urbino",1101,1101,"Pesaro e Urbino","PU","041001","Acqualagna"]
["Marche","Apecchio","Apecchio (PU) ","Assemblea di Ambito territoriale ottimale n.1 Marche Nord Pesaro e Urbino",1101,1101,"Pesaro e Urbino","PU","041002","Apecchio"]
["Marche","Belforte all'Isauro","Belforte all'Isauro (PU) ","Assemblea di Ambito territoriale ottimale n.1 Marche Nord Pesaro e Urbino",1101,1101,"Pesaro e Urbino","PU","041005","Belforte all'Isauro"]
["Marche","Borgo Pace","Borgo Pace (PU) ","Assemblea di Ambito territoriale ottimale n.1 Marche Nord Pesaro e Urbino",1101,1101,"Pesaro e Urbino","PU","041006","Borgo Pace"]
["Marche","Cagli","Cagli (PU) ","Assemblea di Ambito territoriale ottimale n.1 Marche Nord Pesaro e Urbino",1101,1101,"Pesaro e Urbino","PU","041007","Cagli"]
["Marche","Cantiano","Cantiano (PU) ","Assemblea di Ambito territoriale ottimale n.1 Marche Nord Pesaro e Urbino",1101,1101,"Pesaro e Urbino","PU","041008","Cantiano"]
["Marche","Carpegna","Carpegna (PU) ","Assemblea di Ambito territoriale ottimale n.1 Marche Nord Pesaro e Urbino",1101,1101,"Pesaro e Urbino","PU","041009","Carpegna"]
["Marche","Cartoceto","Cartoceto (PU) ","Assemblea di Ambito territoriale ottimale n.1 Marche Nord Pesaro e Urbino",1101,1101,"Pesaro e Urbino","PU","041010","Cartoceto"]
["Marche","Fano","Fano (PU) ","Assemblea di Ambito territoriale ottimale n.1 Marche Nord Pesaro e Urbino",1101,1101,"Pesaro e Urbino","PU","041013","Fano"]
["Marche","Fermignano","Fermignano (PU) ","Assemblea di Ambito territoriale ottimale n.1 Marche Nord Pesaro e Urbino",1101,1101,"Pesaro e Urbino","PU","041014","Fermignano"]
["Marche","Fossombrone","Fossombrone (PU) ","Assemblea di Ambito territoriale ottimale n.1 Marche Nord Pesaro e Urbino",1101,1101,"Pesaro e Urbino","PU","041015","Fossombrone"]
["Marche","Fratte Rosa","Fratte Rosa (PU) ","Assemblea di Ambito territoriale ottimale n.1 Marche Nord Pesaro e Urbino",1101,1101,"Pesaro e Urbino","PU","041016","Fratte Rosa"]
["Marche","Frontino","Frontino (PU) ","Assemblea di Ambito territoriale ottimale n.1 Marche Nord Pesaro e Urbino",1101,1101,"Pesaro e Urbino","PU","041017","Frontino"]
["Marche","Frontone","Frontone (PU) ","Assemblea di Ambito territoriale ottimale n.1 Marche Nord Pesaro e Urbino",1101,1101,"Pesaro e Urbino","PU","041018","Frontone"]
["Marche","Gabicce Mare","Gabicce Mare (PU) ","Assemblea di Ambito territoriale ottimale n.1 Marche Nord Pesaro e Urbino",1101,1101,"Pesaro e Urbino","PU","041019","Gabicce Mare"]
["Marche","Gradara","Gradara (PU) ","Assemblea di Ambito territoriale ottimale n.1 Marche Nord Pesaro e Urbino",1101,1101,"Pesaro e Urbino","PU","041020","Gradara"]
["Marche","Isola del Piano","Isola del Piano (PU) ","Assemblea di Ambito territoriale ottimale n.1 Marche Nord Pesaro e Urbino",1101,1101,"Pesaro e Urbino","PU","041021","Isola del Piano"]
["Marche","Lunano","Lunano (PU) ","Assemblea di Ambito territoriale ottimale n.1 Marche Nord Pesaro e Urbino",1101,1101,"Pesaro e Urbino","PU","041022","Lunano"]
["Marche","Macerata Feltria","Macerata Feltria (PU) ","Assemblea di Ambito territoriale ottimale n.1 Marche Nord Pesaro e Urbino",1101,1101,"Pesaro e Urbino","PU","041023","Macerata Feltria"]
["Marche","Mercatello sul Metauro","Mercatello sul Metauro (PU) ","Assemblea di Ambito territoriale ottimale n.1 Marche Nord Pesaro e Urbino",1101,1101,"Pesaro e Urbino","PU","041025","Mercatello sul Metauro"]
["Marche","Mercatino Conca","Mercatino Conca (PU) ","Assemblea di Ambito territoriale ottimale n.1 Marche Nord Pesaro e Urbino",1101,1101,"Pesaro e Urbino","PU","041026","Mercatino Conca"]
["Marche","Mombaroccio","Mombaroccio (PU) ","Assemblea di Ambito territoriale ottimale n.1 Marche Nord Pesaro e Urbino",1101,1101,"Pesaro e Urbino","PU","041027","Mombaroccio"]
["Marche","Mondavio","Mondavio (PU) ","Assemblea di Ambito territoriale ottimale n.1 Marche Nord Pesaro e Urbino",1101,1101,"Pesaro e Urbino","PU","041028","Mondavio"]
["Marche","Mondolfo","Mondolfo (PU) ","Assemblea di Ambito territoriale ottimale n.1 Marche Nord Pesaro e Urbino",1101,1101,"Pesaro e Urbino","PU","041029","Mondolfo"]
["Marche","Montecalvo in Foglia","Montecalvo in Foglia (PU) ","Assemblea di Ambito territoriale ottimale n.1 Marche Nord Pesaro e Urbino",1101,1101,"Pesaro e Urbino","PU","041030","Montecalvo in Foglia"]
["Marche","Monte Cerignone","Monte Cerignone (PU) ","Assemblea di Ambito territoriale ottimale n.1 Marche Nord Pesaro e Urbino",1101,1101,"Pesaro e Urbino","PU","041031","Monte Cerignone"]
["Marche","Montefelcino","Montefelcino (PU) ","Assemblea di Ambito territoriale ottimale n.1 Marche Nord Pesaro e Urbino",1101,1101,"Pesaro e Urbino","PU","041034","Montefelcino"]
["Marche","Monte Grimano Terme","Monte Grimano Terme (PU) ","Assemblea di Ambito territoriale ottimale n.1 Marche Nord Pesaro e Urbino",1101,1101,"Pesaro e Urbino","PU","041035","Monte Grimano Terme"]
["Marche","Montelabbate","Montelabbate (PU) ","Assemblea di Ambito territoriale ottimale n.1 Marche Nord Pesaro e Urbino",1101,1101,"Pesaro e Urbino","PU","041036","Montelabbate"]
["Marche","Monte Porzio","Monte Porzio (PU) ","Assemblea di Ambito territoriale ottimale n.1 Marche Nord Pesaro e Urbino",1101,1101,"Pesaro e Urbino","PU","041038","Monte Porzio"]
["Marche","Peglio","Peglio (PU) ","Assemblea di Ambito territoriale ottimale n.1 Marche Nord Pesaro e Urbino",1101,1101,"Pesaro e Urbino","PU","041041","Peglio"]
["Marche","Pergola","Pergola (PU) ","Assemblea di Ambito territoriale ottimale n.1 Marche Nord Pesaro e Urbino",1101,1101,"Pesaro e Urbino","PU","041043","Pergola"]
["Marche","Pesaro","Pesaro (PU) ","Assemblea di Ambito territoriale ottimale n.1 Marche Nord Pesaro e Urbino",1101,1101,"Pesaro e Urbino","PU","041044","Pesaro"]
["Marche","Petriano","Petriano (PU) ","Assemblea di Ambito territoriale ottimale n.1 Marche Nord Pesaro e Urbino",1101,1101,"Pesaro e Urbino","PU","041045","Petriano"]
["Marche","Piandimeleto","Piandimeleto (PU) ","Assemblea di Ambito territoriale ottimale n.1 Marche Nord Pesaro e Urbino",1101,1101,"Pesaro e Urbino","PU","041047","Piandimeleto"]
["Marche","Pietrarubbia","Pietrarubbia (PU) ","Assemblea di Ambito territoriale ottimale n.1 Marche Nord Pesaro e Urbino",1101,1101,"Pesaro e Urbino","PU","041048","Pietrarubbia"]
["Marche","Piobbico","Piobbico (PU) ","Assemblea di Ambito territoriale ottimale n.1 Marche Nord Pesaro e Urbino",1101,1101,"Pesaro e Urbino","PU","041049","Piobbico"]
["Marche","San Costanzo","San Costanzo (PU) ","Assemblea di Ambito territoriale ottimale n.1 Marche Nord Pesaro e Urbino",1101,1101,"Pesaro e Urbino","PU","041051","San Costanzo"]
["Marche","San Lorenzo in Campo","San Lorenzo in Campo (PU) ","Assemblea di Ambito territoriale ottimale n.1 Marche Nord Pesaro e Urbino",1101,1101,"Pesaro e Urbino","PU","041054","San Lorenzo in Campo"]
["Marche","Sant'Angelo in Vado","Sant'Angelo in Vado (PU) ","Assemblea di Ambito territoriale ottimale n.1 Marche Nord Pesaro e Urbino",1101,1101,"Pesaro e Urbino","PU","041057","Sant'Angelo in Vado"]
["Marche","Sant'Ippolito","Sant'Ippolito (PU) ","Assemblea di Ambito territoriale ottimale n.1 Marche Nord Pesaro e Urbino",1101,1101,"Pesaro e Urbino","PU","041058","Sant'Ippolito"]
["Marche","Serra Sant'Abbondio","Serra Sant'Abbondio (PU) ","Assemblea di Ambito territoriale ottimale n.1 Marche Nord Pesaro e Urbino",1101,1101,"Pesaro e Urbino","PU","041061","Serra Sant'Abbondio"]
["Marche","Tavoleto","Tavoleto (PU) ","Assemblea di Ambito territoriale ottimale n.1 Marche Nord Pesaro e Urbino",1101,1101,"Pesaro e Urbino","PU","041064","Tavoleto"]
["Marche","Tavullia","Tavullia (PU) ","Assemblea di Ambito territoriale ottimale n.1 Marche Nord Pesaro e Urbino",1101,1101,"Pesaro e Urbino","PU","041065","Tavullia"]
["Marche","Urbania","Urbania (PU) ","Assemblea di Ambito territoriale ottimale n.1 Marche Nord Pesaro e Urbino",1101,1101,"Pesaro e Urbino","PU","041066","Urbania"]
["Marche","Urbino","Urbino (PU) ","Assemblea di Ambito territoriale ottimale n.1 Marche Nord Pesaro e Urbino",1101,1101,"Pesaro e Urbino","PU","041067","Urbino"]
["Marche","Vallefoglia","Vallefoglia (PU) ","Assemblea di Ambito territoriale ottimale n.1 Marche Nord Pesaro e Urbino",1101,1101,"Pesaro e Urbino","PU","041068","Vallefoglia"]
["Marche","Colli al Metauro","Colli al Metauro (PU) ","Assemblea di Ambito territoriale ottimale n.1 Marche Nord Pesaro e Urbino",1101,1101,"Pesaro e Urbino","PU","041069","Colli al Metauro"]
["Marche","Terre Roveresche","Terre Roveresche (PU) ","Assemblea di Ambito territoriale ottimale n.1 Marche Nord Pesaro e Urbino",1101,1101,"Pesaro e Urbino","PU","041070","Terre Roveresche"]
["Marche","Sassocorvaro Auditore","Sassocorvaro Auditore (PU) ","Assemblea di Ambito territoriale ottimale n.1 Marche Nord Pesaro e Urbino",1101,1101,"Pesaro e Urbino","PU","041071","Sassocorvaro Auditore"]
["Marche","Agugliano","Agugliano (AN) ","Assemblea di Ambito territoriale ottimale n. 2 Marche Centro - Ancona",1102,1102,"Ancona","AN","042001","Agugliano"]
["Marche","Ancona","Ancona (AN) ","Assemblea di Ambito territoriale ottimale n. 2 Marche Centro - Ancona",1102,1102,"Ancona","AN","042002","Ancona"]
["Marche","Arcevia","Arcevia (AN) ","Assemblea di Ambito territoriale ottimale n. 2 Marche Centro - Ancona",1102,1102,"Ancona","AN","042003","Arcevia"]
["Marche","Barbara","Barbara (AN) ","Assemblea di Ambito territoriale ottimale n. 2 Marche Centro - Ancona",1102,1102,"Ancona","AN","042004","Barbara"]
["Marche","Belvedere Ostrense","Belvedere Ostrense (AN) ","Assemblea di Ambito territoriale ottimale n. 2 Marche Centro - Ancona",1102,1102,"Ancona","AN","042005","Belvedere Ostrense"]
["Marche","Camerano","Camerano (AN) ","Assemblea di Ambito territoriale ottimale n. 2 Marche Centro - Ancona",1102,1102,"Ancona","AN","042006","Camerano"]
["Marche","Camerata Picena","Camerata Picena (AN) ","Assemblea di Ambito territoriale ottimale n. 2 Marche Centro - Ancona",1102,1102,"Ancona","AN","042007","Camerata Picena"]
["Marche","Castelbellino","Castelbellino (AN) ","Assemblea di Ambito territoriale ottimale n. 2 Marche Centro - Ancona",1102,1102,"Ancona","AN","042008","Castelbellino"]
["Marche","Castelfidardo","Castelfidardo (AN) ","Assemblea di Ambito Territoriale Ottimale n. 3 Marche Centro - Macerata",1103,1103,"Ancona","AN","042010","Castelfidardo"]
["Marche","Castelleone di Suasa","Castelleone di Suasa (AN) ","Assemblea di Ambito territoriale ottimale n. 2 Marche Centro - Ancona",1102,1102,"Ancona","AN","042011","Castelleone di Suasa"]
["Marche","Castelplanio","Castelplanio (AN) ","Assemblea di Ambito territoriale ottimale n. 2 Marche Centro - Ancona",1102,1102,"Ancona","AN","042012","Castelplanio"]
["Marche","Cerreto d'Esi","Cerreto d'Esi (AN) ","Assemblea di Ambito territoriale ottimale n. 2 Marche Centro - Ancona",1102,1102,"Ancona","AN","042013","Cerreto d'Esi"]
["Marche","Chiaravalle","Chiaravalle (AN) ","Assemblea di Ambito territoriale ottimale n. 2 Marche Centro - Ancona",1102,1102,"Ancona","AN","042014","Chiaravalle"]
["Marche","Corinaldo","Corinaldo (AN) ","Assemblea di Ambito territoriale ottimale n. 2 Marche Centro - Ancona",1102,1102,"Ancona","AN","042015","Corinaldo"]
["Marche","Cupramontana","Cupramontana (AN) ","Assemblea di Ambito territoriale ottimale n. 2 Marche Centro - Ancona",1102,1102,"Ancona","AN","042016","Cupramontana"]
["Marche","Fabriano","Fabriano (AN) ","Assemblea di Ambito territoriale ottimale n. 2 Marche Centro - Ancona",1102,1102,"Ancona","AN","042017","Fabriano"]
["Marche","Falconara Marittima","Falconara Marittima (AN) ","Assemblea di Ambito territoriale ottimale n. 2 Marche Centro - Ancona",1102,1102,"Ancona","AN","042018","Falconara Marittima"]
["Marche","Filottrano","Filottrano (AN) ","Assemblea di Ambito Territoriale Ottimale n. 3 Marche Centro - Macerata",1103,1103,"Ancona","AN","042019","Filottrano"]
["Marche","Genga","Genga (AN) ","Assemblea di Ambito territoriale ottimale n. 2 Marche Centro - Ancona",1102,1102,"Ancona","AN","042020","Genga"]
["Marche","Jesi","Jesi (AN) ","Assemblea di Ambito territoriale ottimale n. 2 Marche Centro - Ancona",1102,1102,"Ancona","AN","042021","Jesi"]
["Marche","Loreto","Loreto (AN) ","Assemblea di Ambito Territoriale Ottimale n. 3 Marche Centro - Macerata",1103,1103,"Ancona","AN","042022","Loreto"]
["Marche","Maiolati Spontini","Maiolati Spontini (AN) ","Assemblea di Ambito territoriale ottimale n. 2 Marche Centro - Ancona",1102,1102,"Ancona","AN","042023","Maiolati Spontini"]
["Marche","Mergo","Mergo (AN) ","Assemblea di Ambito territoriale ottimale n. 2 Marche Centro - Ancona",1102,1102,"Ancona","AN","042024","Mergo"]
["Marche","Monsano","Monsano (AN) ","Assemblea di Ambito territoriale ottimale n. 2 Marche Centro - Ancona",1102,1102,"Ancona","AN","042025","Monsano"]
["Marche","Montecarotto","Montecarotto (AN) ","Assemblea di Ambito territoriale ottimale n. 2 Marche Centro - Ancona",1102,1102,"Ancona","AN","042026","Montecarotto"]
["Marche","Montemarciano","Montemarciano (AN) ","Assemblea di Ambito territoriale ottimale n. 2 Marche Centro - Ancona",1102,1102,"Ancona","AN","042027","Montemarciano"]
["Marche","Monte Roberto","Monte Roberto (AN) ","Assemblea di Ambito territoriale ottimale n. 2 Marche Centro - Ancona",1102,1102,"Ancona","AN","042029","Monte Roberto"]
["Marche","Monte San Vito","Monte San Vito (AN) ","Assemblea di Ambito territoriale ottimale n. 2 Marche Centro - Ancona",1102,1102,"Ancona","AN","042030","Monte San Vito"]
["Marche","Morro d'Alba","Morro d'Alba (AN) ","Assemblea di Ambito territoriale ottimale n. 2 Marche Centro - Ancona",1102,1102,"Ancona","AN","042031","Morro d'Alba"]
["Marche","Numana","Numana (AN) ","Assemblea di Ambito Territoriale Ottimale n. 3 Marche Centro - Macerata",1103,1103,"Ancona","AN","042032","Numana"]
["Marche","Offagna","Offagna (AN) ","Assemblea di Ambito territoriale ottimale n. 2 Marche Centro - Ancona",1102,1102,"Ancona","AN","042033","Offagna"]
["Marche","Osimo","Osimo (AN) ","Assemblea di Ambito Territoriale Ottimale n. 3 Marche Centro - Macerata",1103,1103,"Ancona","AN","042034","Osimo"]
["Marche","Ostra","Ostra (AN) ","Assemblea di Ambito territoriale ottimale n. 2 Marche Centro - Ancona",1102,1102,"Ancona","AN","042035","Ostra"]
["Marche","Ostra Vetere","Ostra Vetere (AN) ","Assemblea di Ambito territoriale ottimale n. 2 Marche Centro - Ancona",1102,1102,"Ancona","AN","042036","Ostra Vetere"]
["Marche","Poggio San Marcello","Poggio San Marcello (AN) ","Assemblea di Ambito territoriale ottimale n. 2 Marche Centro - Ancona",1102,1102,"Ancona","AN","042037","Poggio San Marcello"]
["Marche","Polverigi","Polverigi (AN) ","Assemblea di Ambito territoriale ottimale n. 2 Marche Centro - Ancona",1102,1102,"Ancona","AN","042038","Polverigi"]
["Marche","Rosora","Rosora (AN) ","Assemblea di Ambito territoriale ottimale n. 2 Marche Centro - Ancona",1102,1102,"Ancona","AN","042040","Rosora"]
["Marche","San Marcello","San Marcello (AN) ","Assemblea di Ambito territoriale ottimale n. 2 Marche Centro - Ancona",1102,1102,"Ancona","AN","042041","San Marcello"]
["Marche","San Paolo di Jesi","San Paolo di Jesi (AN) ","Assemblea di Ambito territoriale ottimale n. 2 Marche Centro - Ancona",1102,1102,"Ancona","AN","042042","San Paolo di Jesi"]
["Marche","Santa Maria Nuova","Santa Maria Nuova (AN) ","Assemblea di Ambito territoriale ottimale n. 2 Marche Centro - Ancona",1102,1102,"Ancona","AN","042043","Santa Maria Nuova"]
["Marche","Sassoferrato","Sassoferrato (AN) ","Assemblea di Ambito territoriale ottimale n. 2 Marche Centro - Ancona",1102,1102,"Ancona","AN","042044","Sassoferrato"]
["Marche","Senigallia","Senigallia (AN) ","Assemblea di Ambito territoriale ottimale n. 2 Marche Centro - Ancona",1102,1102,"Ancona","AN","042045","Senigallia"]
["Marche","Serra de' Conti","Serra de' Conti (AN) ","Assemblea di Ambito territoriale ottimale n. 2 Marche Centro - Ancona",1102,1102,"Ancona","AN","042046","Serra de' Conti"]
["Marche","Serra San Quirico","Serra San Quirico (AN) ","Assemblea di Ambito territoriale ottimale n. 2 Marche Centro - Ancona",1102,1102,"Ancona","AN","042047","Serra San Quirico"]
["Marche","Sirolo","Sirolo (AN) ","Assemblea di Ambito Territoriale Ottimale n. 3 Marche Centro - Macerata",1103,1103,"Ancona","AN","042048","Sirolo"]
["Marche","Staffolo","Staffolo (AN) ","Assemblea di Ambito territoriale ottimale n. 2 Marche Centro - Ancona",1102,1102,"Ancona","AN","042049","Staffolo"]
["Marche","Trecastelli","Trecastelli (AN) ","Assemblea di Ambito territoriale ottimale n. 2 Marche Centro - Ancona",1102,1102,"Ancona","AN","042050","Trecastelli"]
["Marche","Apiro","Apiro (MC) ","Assemblea di Ambito Territoriale Ottimale n. 3 Marche Centro - Macerata",1103,1103,"Macerata","MC","043002","Apiro"]
["Marche","Appignano","Appignano (MC) ","Assemblea di Ambito Territoriale Ottimale n. 3 Marche Centro - Macerata",1103,1103,"Macerata","MC","043003","Appignano"]
["Marche","Belforte del Chienti","Belforte del Chienti (MC) ","Assemblea di Ambito Territoriale Ottimale n. 3 Marche Centro - Macerata",1103,1103,"Macerata","MC","043004","Belforte del Chienti"]
["Marche","Bolognola","Bolognola (MC) ","Assemblea di Ambito Territoriale Ottimale n. 3 Marche Centro - Macerata",1103,1103,"Macerata","MC","043005","Bolognola"]
["Marche","Caldarola","Caldarola (MC) ","Assemblea di Ambito Territoriale Ottimale n. 3 Marche Centro - Macerata",1103,1103,"Macerata","MC","043006","Caldarola"]
["Marche","Camerino","Camerino (MC) ","Assemblea di Ambito Territoriale Ottimale n. 3 Marche Centro - Macerata",1103,1103,"Macerata","MC","043007","Camerino"]
["Marche","Camporotondo di Fiastrone","Camporotondo di Fiastrone (MC) ","Assemblea di Ambito Territoriale Ottimale n. 3 Marche Centro - Macerata",1103,1103,"Macerata","MC","043008","Camporotondo di Fiastrone"]
["Marche","Castelraimondo","Castelraimondo (MC) ","Assemblea di Ambito Territoriale Ottimale n. 3 Marche Centro - Macerata",1103,1103,"Macerata","MC","043009","Castelraimondo"]
["Marche","Castelsantangelo sul Nera","Castelsantangelo sul Nera (MC) ","Assemblea di Ambito Territoriale Ottimale n. 3 Marche Centro - Macerata",1103,1103,"Macerata","MC","043010","Castelsantangelo sul Nera"]
["Marche","Cessapalombo","Cessapalombo (MC) ","Assemblea di Ambito Territoriale Ottimale n. 3 Marche Centro - Macerata",1103,1103,"Macerata","MC","043011","Cessapalombo"]
["Marche","Cingoli","Cingoli (MC) ","Assemblea di Ambito Territoriale Ottimale n. 3 Marche Centro - Macerata",1103,1103,"Macerata","MC","043012","Cingoli"]
["Marche","Civitanova Marche","Civitanova Marche (MC) ","Assemblea di Ambito Territoriale Ottimale n. 3 Marche Centro - Macerata",1103,1103,"Macerata","MC","043013","Civitanova Marche"]
["Marche","Colmurano","Colmurano (MC) ","Autorità di Ambito Territoriale Ottimale n. 4 MARCHE Centro Sud - Fermano e Maceratese",1104,1104,"Macerata","MC","043014","Colmurano"]
["Marche","Corridonia","Corridonia (MC) ","Assemblea di Ambito Territoriale Ottimale n. 3 Marche Centro - Macerata",1103,1103,"Macerata","MC","043015","Corridonia"]
["Marche","Esanatoglia","Esanatoglia (MC) ","Assemblea di Ambito territoriale ottimale n. 2 Marche Centro - Ancona",1102,1102,"Macerata","MC","043016","Esanatoglia"]
["Marche","Fiastra","Fiastra (MC) ","Assemblea di Ambito Territoriale Ottimale n. 3 Marche Centro - Macerata",1103,1103,"Macerata","MC","043017","Fiastra"]
["Marche","Fiuminata","Fiuminata (MC) ","Assemblea di Ambito Territoriale Ottimale n. 3 Marche Centro - Macerata",1103,1103,"Macerata","MC","043019","Fiuminata"]
["Marche","Gagliole","Gagliole (MC) ","Assemblea di Ambito Territoriale Ottimale n. 3 Marche Centro - Macerata",1103,1103,"Macerata","MC","043020","Gagliole"]
["Marche","Gualdo","Gualdo (MC) ","Autorità di Ambito Territoriale Ottimale n. 4 MARCHE Centro Sud - Fermano e Maceratese",1104,1104,"Macerata","MC","043021","Gualdo"]
["Marche","Loro Piceno","Loro Piceno (MC) ","Autorità di Ambito Territoriale Ottimale n. 4 MARCHE Centro Sud - Fermano e Maceratese",1104,1104,"Macerata","MC","043022","Loro Piceno"]
["Marche","Macerata","Macerata (MC) ","Assemblea di Ambito Territoriale Ottimale n. 3 Marche Centro - Macerata",1103,1103,"Macerata","MC","043023","Macerata"]
["Marche","Matelica","Matelica (MC) ","Assemblea di Ambito territoriale ottimale n. 2 Marche Centro - Ancona",1102,1102,"Macerata","MC","043024","Matelica"]
["Marche","Mogliano","Mogliano (MC) ","Autorità di Ambito Territoriale Ottimale n. 4 MARCHE Centro Sud - Fermano e Maceratese",1104,1104,"Macerata","MC","043025","Mogliano"]
["Marche","Montecassiano","Montecassiano (MC) ","Assemblea di Ambito Territoriale Ottimale n. 3 Marche Centro - Macerata",1103,1103,"Macerata","MC","043026","Montecassiano"]
["Marche","Monte Cavallo","Monte Cavallo (MC) ","Assemblea di Ambito Territoriale Ottimale n. 3 Marche Centro - Macerata",1103,1103,"Macerata","MC","043027","Monte Cavallo"]
["Marche","Montecosaro","Montecosaro (MC) ","Assemblea di Ambito Territoriale Ottimale n. 3 Marche Centro - Macerata",1103,1103,"Macerata","MC","043028","Montecosaro"]
["Marche","Montefano","Montefano (MC) ","Assemblea di Ambito Territoriale Ottimale n. 3 Marche Centro - Macerata",1103,1103,"Macerata","MC","043029","Montefano"]
["Marche","Montelupone","Montelupone (MC) ","Assemblea di Ambito Territoriale Ottimale n. 3 Marche Centro - Macerata",1103,1103,"Macerata","MC","043030","Montelupone"]
["Marche","Monte San Giusto","Monte San Giusto (MC) ","Autorità di Ambito Territoriale Ottimale n. 4 MARCHE Centro Sud - Fermano e Maceratese",1104,1104,"Macerata","MC","043031","Monte San Giusto"]
["Marche","Monte San Martino","Monte San Martino (MC) ","Autorità di Ambito Territoriale Ottimale n. 4 MARCHE Centro Sud - Fermano e Maceratese",1104,1104,"Macerata","MC","043032","Monte San Martino"]
["Marche","Morrovalle","Morrovalle (MC) ","Assemblea di Ambito Territoriale Ottimale n. 3 Marche Centro - Macerata",1103,1103,"Macerata","MC","043033","Morrovalle"]
["Marche","Muccia","Muccia (MC) ","Assemblea di Ambito Territoriale Ottimale n. 3 Marche Centro - Macerata",1103,1103,"Macerata","MC","043034","Muccia"]
["Marche","Penna San Giovanni","Penna San Giovanni (MC) ","Autorità di Ambito Territoriale Ottimale n. 4 MARCHE Centro Sud - Fermano e Maceratese",1104,1104,"Macerata","MC","043035","Penna San Giovanni"]
["Marche","Petriolo","Petriolo (MC) ","Autorità di Ambito Territoriale Ottimale n. 4 MARCHE Centro Sud - Fermano e Maceratese",1104,1104,"Macerata","MC","043036","Petriolo"]
["Marche","Pieve Torina","Pieve Torina (MC) ","Assemblea di Ambito Territoriale Ottimale n. 3 Marche Centro - Macerata",1103,1103,"Macerata","MC","043038","Pieve Torina"]
["Marche","Pioraco","Pioraco (MC) ","Assemblea di Ambito Territoriale Ottimale n. 3 Marche Centro - Macerata",1103,1103,"Macerata","MC","043039","Pioraco"]
["Marche","Poggio San Vicino","Poggio San Vicino (MC) ","Assemblea di Ambito Territoriale Ottimale n. 3 Marche Centro - Macerata",1103,1103,"Macerata","MC","043040","Poggio San Vicino"]
["Marche","Pollenza","Pollenza (MC) ","Assemblea di Ambito Territoriale Ottimale n. 3 Marche Centro - Macerata",1103,1103,"Macerata","MC","043041","Pollenza"]
["Marche","Porto Recanati","Porto Recanati (MC) ","Assemblea di Ambito Territoriale Ottimale n. 3 Marche Centro - Macerata",1103,1103,"Macerata","MC","043042","Porto Recanati"]
["Marche","Potenza Picena","Potenza Picena (MC) ","Assemblea di Ambito Territoriale Ottimale n. 3 Marche Centro - Macerata",1103,1103,"Macerata","MC","043043","Potenza Picena"]
["Marche","Recanati","Recanati (MC) ","Assemblea di Ambito Territoriale Ottimale n. 3 Marche Centro - Macerata",1103,1103,"Macerata","MC","043044","Recanati"]
["Marche","Ripe San Ginesio","Ripe San Ginesio (MC) ","Autorità di Ambito Territoriale Ottimale n. 4 MARCHE Centro Sud - Fermano e Maceratese",1104,1104,"Macerata","MC","043045","Ripe San Ginesio"]
["Marche","San Ginesio","San Ginesio (MC) ","Autorità di Ambito Territoriale Ottimale n. 4 MARCHE Centro Sud - Fermano e Maceratese",1104,1104,"Macerata","MC","043046","San Ginesio"]
["Marche","San Severino Marche","San Severino Marche (MC) ","Assemblea di Ambito Territoriale Ottimale n. 3 Marche Centro - Macerata",1103,1103,"Macerata","MC","043047","San Severino Marche"]
["Marche","Sant'Angelo in Pontano","Sant'Angelo in Pontano (MC) ","Autorità di Ambito Territoriale Ottimale n. 4 MARCHE Centro Sud - Fermano e Maceratese",1104,1104,"Macerata","MC","043048","Sant'Angelo in Pontano"]
["Marche","Sarnano","Sarnano (MC) ","Autorità di Ambito Territoriale Ottimale n. 4 MARCHE Centro Sud - Fermano e Maceratese",1104,1104,"Macerata","MC","043049","Sarnano"]
["Marche","Sefro","Sefro (MC) ","Assemblea di Ambito Territoriale Ottimale n. 3 Marche Centro - Macerata",1103,1103,"Macerata","MC","043050","Sefro"]
["Marche","Serrapetrona","Serrapetrona (MC) ","Assemblea di Ambito Territoriale Ottimale n. 3 Marche Centro - Macerata",1103,1103,"Macerata","MC","043051","Serrapetrona"]
["Marche","Serravalle di Chienti","Serravalle di Chienti (MC) ","Assemblea di Ambito Territoriale Ottimale n. 3 Marche Centro - Macerata",1103,1103,"Macerata","MC","043052","Serravalle di Chienti"]
["Marche","Tolentino","Tolentino (MC) ","Assemblea di Ambito Territoriale Ottimale n. 3 Marche Centro - Macerata",1103,1103,"Macerata","MC","043053","Tolentino"]
["Marche","Treia","Treia (MC) ","Assemblea di Ambito Territoriale Ottimale n. 3 Marche Centro - Macerata",1103,1103,"Macerata","MC","043054","Treia"]
["Marche","Urbisaglia","Urbisaglia (MC) ","Autorità di Ambito Territoriale Ottimale n. 4 MARCHE Centro Sud - Fermano e Maceratese",1104,1104,"Macerata","MC","043055","Urbisaglia"]
["Marche","Ussita","Ussita (MC) ","Assemblea di Ambito Territoriale Ottimale n. 3 Marche Centro - Macerata",1103,1103,"Macerata","MC","043056","Ussita"]
["Marche","Visso","Visso (MC) ","Assemblea di Ambito Territoriale Ottimale n. 3 Marche Centro - Macerata",1103,1103,"Macerata","MC","043057","Visso"]
["Marche","Valfornace","Valfornace (MC) ","Assemblea di Ambito Territoriale Ottimale n. 3 Marche Centro - Macerata",1103,1103,"Macerata","MC","043058","Valfornace"]
["Marche","Acquasanta Terme","Acquasanta Terme (AP) ","Assemblea di Ambito Territoriale Ottimale n. 5 MARCHE SUD - ASCOLI PICENO E FERMO",1105,1105,"Ascoli Piceno","AP","044001","Acquasanta Terme"]
["Marche","Acquaviva Picena","Acquaviva Picena (AP) ","Assemblea di Ambito Territoriale Ottimale n. 5 MARCHE SUD - ASCOLI PICENO E FERMO",1105,1105,"Ascoli Piceno","AP","044002","Acquaviva Picena"]
["Marche","Appignano del Tronto","Appignano del Tronto (AP) ","Assemblea di Ambito Territoriale Ottimale n. 5 MARCHE SUD - ASCOLI PICENO E FERMO",1105,1105,"Ascoli Piceno","AP","044005","Appignano del Tronto"]
["Marche","Arquata del Tronto","Arquata del Tronto (AP) ","Assemblea di Ambito Territoriale Ottimale n. 5 MARCHE SUD - ASCOLI PICENO E FERMO",1105,1105,"Ascoli Piceno","AP","044006","Arquata del Tronto"]
["Marche","Ascoli Piceno","Ascoli Piceno (AP) ","Assemblea di Ambito Territoriale Ottimale n. 5 MARCHE SUD - ASCOLI PICENO E FERMO",1105,1105,"Ascoli Piceno","AP","044007","Ascoli Piceno"]
["Marche","Carassai","Carassai (AP) ","Assemblea di Ambito Territoriale Ottimale n. 5 MARCHE SUD - ASCOLI PICENO E FERMO",1105,1105,"Ascoli Piceno","AP","044010","Carassai"]
["Marche","Castel di Lama","Castel di Lama (AP) ","Assemblea di Ambito Territoriale Ottimale n. 5 MARCHE SUD - ASCOLI PICENO E FERMO",1105,1105,"Ascoli Piceno","AP","044011","Castel di Lama"]
["Marche","Castignano","Castignano (AP) ","Assemblea di Ambito Territoriale Ottimale n. 5 MARCHE SUD - ASCOLI PICENO E FERMO",1105,1105,"Ascoli Piceno","AP","044012","Castignano"]
["Marche","Castorano","Castorano (AP) ","Assemblea di Ambito Territoriale Ottimale n. 5 MARCHE SUD - ASCOLI PICENO E FERMO",1105,1105,"Ascoli Piceno","AP","044013","Castorano"]
["Marche","Colli del Tronto","Colli del Tronto (AP) ","Assemblea di Ambito Territoriale Ottimale n. 5 MARCHE SUD - ASCOLI PICENO E FERMO",1105,1105,"Ascoli Piceno","AP","044014","Colli del Tronto"]
["Marche","Comunanza","Comunanza (AP) ","Assemblea di Ambito Territoriale Ottimale n. 5 MARCHE SUD - ASCOLI PICENO E FERMO",1105,1105,"Ascoli Piceno","AP","044015","Comunanza"]
["Marche","Cossignano","Cossignano (AP) ","Assemblea di Ambito Territoriale Ottimale n. 5 MARCHE SUD - ASCOLI PICENO E FERMO",1105,1105,"Ascoli Piceno","AP","044016","Cossignano"]
["Marche","Cupra Marittima","Cupra Marittima (AP) ","Assemblea di Ambito Territoriale Ottimale n. 5 MARCHE SUD - ASCOLI PICENO E FERMO",1105,1105,"Ascoli Piceno","AP","044017","Cupra Marittima"]
["Marche","Folignano","Folignano (AP) ","Assemblea di Ambito Territoriale Ottimale n. 5 MARCHE SUD - ASCOLI PICENO E FERMO",1105,1105,"Ascoli Piceno","AP","044020","Folignano"]
["Marche","Force","Force (AP) ","Assemblea di Ambito Territoriale Ottimale n. 5 MARCHE SUD - ASCOLI PICENO E FERMO",1105,1105,"Ascoli Piceno","AP","044021","Force"]
["Marche","Grottammare","Grottammare (AP) ","Assemblea di Ambito Territoriale Ottimale n. 5 MARCHE SUD - ASCOLI PICENO E FERMO",1105,1105,"Ascoli Piceno","AP","044023","Grottammare"]
["Marche","Maltignano","Maltignano (AP) ","Assemblea di Ambito Territoriale Ottimale n. 5 MARCHE SUD - ASCOLI PICENO E FERMO",1105,1105,"Ascoli Piceno","AP","044027","Maltignano"]
["Marche","Massignano","Massignano (AP) ","Assemblea di Ambito Territoriale Ottimale n. 5 MARCHE SUD - ASCOLI PICENO E FERMO",1105,1105,"Ascoli Piceno","AP","044029","Massignano"]
["Marche","Monsampolo del Tronto","Monsampolo del Tronto (AP) ","Assemblea di Ambito Territoriale Ottimale n. 5 MARCHE SUD - ASCOLI PICENO E FERMO",1105,1105,"Ascoli Piceno","AP","044031","Monsampolo del Tronto"]
["Marche","Montalto delle Marche","Montalto delle Marche (AP) ","Assemblea di Ambito Territoriale Ottimale n. 5 MARCHE SUD - ASCOLI PICENO E FERMO",1105,1105,"Ascoli Piceno","AP","044032","Montalto delle Marche"]
["Marche","Montedinove","Montedinove (AP) ","Assemblea di Ambito Territoriale Ottimale n. 5 MARCHE SUD - ASCOLI PICENO E FERMO",1105,1105,"Ascoli Piceno","AP","044034","Montedinove"]
["Marche","Montefiore dell'Aso","Montefiore dell'Aso (AP) ","Assemblea di Ambito Territoriale Ottimale n. 5 MARCHE SUD - ASCOLI PICENO E FERMO",1105,1105,"Ascoli Piceno","AP","044036","Montefiore dell'Aso"]
["Marche","Montegallo","Montegallo (AP) ","Assemblea di Ambito Territoriale Ottimale n. 5 MARCHE SUD - ASCOLI PICENO E FERMO",1105,1105,"Ascoli Piceno","AP","044038","Montegallo"]
["Marche","Montemonaco","Montemonaco (AP) ","Assemblea di Ambito Territoriale Ottimale n. 5 MARCHE SUD - ASCOLI PICENO E FERMO",1105,1105,"Ascoli Piceno","AP","044044","Montemonaco"]
["Marche","Monteprandone","Monteprandone (AP) ","Assemblea di Ambito Territoriale Ottimale n. 5 MARCHE SUD - ASCOLI PICENO E FERMO",1105,1105,"Ascoli Piceno","AP","044045","Monteprandone"]
["Marche","Offida","Offida (AP) ","Assemblea di Ambito Territoriale Ottimale n. 5 MARCHE SUD - ASCOLI PICENO E FERMO",1105,1105,"Ascoli Piceno","AP","044054","Offida"]
["Marche","Palmiano","Palmiano (AP) ","Assemblea di Ambito Territoriale Ottimale n. 5 MARCHE SUD - ASCOLI PICENO E FERMO",1105,1105,"Ascoli Piceno","AP","044056","Palmiano"]
["Marche","Ripatransone","Ripatransone (AP) ","Assemblea di Ambito Territoriale Ottimale n. 5 MARCHE SUD - ASCOLI PICENO E FERMO",1105,1105,"Ascoli Piceno","AP","044063","Ripatransone"]
["Marche","Roccafluvione","Roccafluvione (AP) ","Assemblea di Ambito Territoriale Ottimale n. 5 MARCHE SUD - ASCOLI PICENO E FERMO",1105,1105,"Ascoli Piceno","AP","044064","Roccafluvione"]
["Marche","Rotella","Rotella (AP) ","Assemblea di Ambito Territoriale Ottimale n. 5 MARCHE SUD - ASCOLI PICENO E FERMO",1105,1105,"Ascoli Piceno","AP","044065","Rotella"]
["Marche","San Benedetto del Tronto","San Benedetto del Tronto (AP) ","Assemblea di Ambito Territoriale Ottimale n. 5 MARCHE SUD - ASCOLI PICENO E FERMO",1105,1105,"Ascoli Piceno","AP","044066","San Benedetto del Tronto"]
["Marche","Spinetoli","Spinetoli (AP) ","Assemblea di Ambito Territoriale Ottimale n. 5 MARCHE SUD - ASCOLI PICENO E FERMO",1105,1105,"Ascoli Piceno","AP","044071","Spinetoli"]
["Marche","Venarotta","Venarotta (AP) ","Assemblea di Ambito Territoriale Ottimale n. 5 MARCHE SUD - ASCOLI PICENO E FERMO",1105,1105,"Ascoli Piceno","AP","044073","Venarotta"]
["Toscana","Aulla","Aulla (MS) ","Autorità Idrica Toscana",901,901,"Massa-Carrara","MS","045001","Aulla"]
["Toscana","Bagnone","Bagnone (MS) ","Autorità Idrica Toscana",901,901,"Massa-Carrara","MS","045002","Bagnone"]
["Toscana","Carrara","Carrara (MS) ","Autorità Idrica Toscana",901,901,"Massa-Carrara","MS","045003","Carrara"]
["Toscana","Casola in Lunigiana","Casola in Lunigiana (MS) ","Autorità Idrica Toscana",901,901,"Massa-Carrara","MS","045004","Casola in Lunigiana"]
["Toscana","Comano","Comano (MS) ","Autorità Idrica Toscana",901,901,"Massa-Carrara","MS","045005","Comano"]
["Toscana","Filattiera","Filattiera (MS) ","Autorità Idrica Toscana",901,901,"Massa-Carrara","MS","045006","Filattiera"]
["Toscana","Fivizzano","Fivizzano (MS) ","Autorità Idrica Toscana",901,901,"Massa-Carrara","MS","045007","Fivizzano"]
["Toscana","Fosdinovo","Fosdinovo (MS) ","Autorità Idrica Toscana",901,901,"Massa-Carrara","MS","045008","Fosdinovo"]
["Toscana","Licciana Nardi","Licciana Nardi (MS) ","Autorità Idrica Toscana",901,901,"Massa-Carrara","MS","045009","Licciana Nardi"]
["Toscana","Massa","Massa (MS) ","Autorità Idrica Toscana",901,901,"Massa-Carrara","MS","045010","Massa"]
["Toscana","Montignoso","Montignoso (MS) ","Autorità Idrica Toscana",901,901,"Massa-Carrara","MS","045011","Montignoso"]
["Toscana","Mulazzo","Mulazzo (MS) ","Autorità Idrica Toscana",901,901,"Massa-Carrara","MS","045012","Mulazzo"]
["Toscana","Podenzana","Podenzana (MS) ","Autorità Idrica Toscana",901,901,"Massa-Carrara","MS","045013","Podenzana"]
["Toscana","Pontremoli","Pontremoli (MS) ","Autorità Idrica Toscana",901,901,"Massa-Carrara","MS","045014","Pontremoli"]
["Toscana","Tresana","Tresana (MS) ","Autorità Idrica Toscana",901,901,"Massa-Carrara","MS","045015","Tresana"]
["Toscana","Villafranca in Lunigiana","Villafranca in Lunigiana (MS) ","Autorità Idrica Toscana",901,901,"Massa-Carrara","MS","045016","Villafranca in Lunigiana"]
["Toscana","Zeri","Zeri (MS) ","Autorità Idrica Toscana",901,901,"Massa-Carrara","MS","045017","Zeri"]
["Toscana","Altopascio","Altopascio (LU) ","Autorità Idrica Toscana",902,902,"Lucca","LU","046001","Altopascio"]
["Toscana","Bagni di Lucca","Bagni di Lucca (LU) ","Autorità Idrica Toscana",901,901,"Lucca","LU","046002","Bagni di Lucca"]
["Toscana","Barga","Barga (LU) ","Autorità Idrica Toscana",901,901,"Lucca","LU","046003","Barga"]
["Toscana","Borgo a Mozzano","Borgo a Mozzano (LU) ","Autorità Idrica Toscana",901,901,"Lucca","LU","046004","Borgo a Mozzano"]
["Toscana","Camaiore","Camaiore (LU) ","Autorità Idrica Toscana",901,901,"Lucca","LU","046005","Camaiore"]
["Toscana","Camporgiano","Camporgiano (LU) ","Autorità Idrica Toscana",901,901,"Lucca","LU","046006","Camporgiano"]
["Toscana","Capannori","Capannori (LU) ","Autorità Idrica Toscana",902,902,"Lucca","LU","046007","Capannori"]
["Toscana","Careggine","Careggine (LU) ","Autorità Idrica Toscana",901,901,"Lucca","LU","046008","Careggine"]
["Toscana","Castelnuovo di Garfagnana","Castelnuovo di Garfagnana (LU) ","Autorità Idrica Toscana",901,901,"Lucca","LU","046009","Castelnuovo di Garfagnana"]
["Toscana","Castiglione di Garfagnana","Castiglione di Garfagnana (LU) ","Autorità Idrica Toscana",901,901,"Lucca","LU","046010","Castiglione di Garfagnana"]
["Toscana","Coreglia Antelminelli","Coreglia Antelminelli (LU) ","Autorità Idrica Toscana",901,901,"Lucca","LU","046011","Coreglia Antelminelli"]
["Toscana","Forte dei Marmi","Forte dei Marmi (LU) ","Autorità Idrica Toscana",901,901,"Lucca","LU","046013","Forte dei Marmi"]
["Toscana","Fosciandora","Fosciandora (LU) ","Autorità Idrica Toscana",901,901,"Lucca","LU","046014","Fosciandora"]
["Toscana","Gallicano","Gallicano (LU) ","Autorità Idrica Toscana",901,901,"Lucca","LU","046015","Gallicano"]
["Toscana","Lucca","Lucca (LU) ","Autorità Idrica Toscana",901,901,"Lucca","LU","046017","Lucca"]
["Toscana","Massarosa","Massarosa (LU) ","Autorità Idrica Toscana",901,901,"Lucca","LU","046018","Massarosa"]
["Toscana","Minucciano","Minucciano (LU) ","Autorità Idrica Toscana",901,901,"Lucca","LU","046019","Minucciano"]
["Toscana","Molazzana","Molazzana (LU) ","Autorità Idrica Toscana",901,901,"Lucca","LU","046020","Molazzana"]
["Toscana","Montecarlo","Montecarlo (LU) ","Autorità Idrica Toscana",902,902,"Lucca","LU","046021","Montecarlo"]
["Toscana","Pescaglia","Pescaglia (LU) ","Autorità Idrica Toscana",901,901,"Lucca","LU","046022","Pescaglia"]
["Toscana","Piazza al Serchio","Piazza al Serchio (LU) ","Autorità Idrica Toscana",901,901,"Lucca","LU","046023","Piazza al Serchio"]
["Toscana","Pietrasanta","Pietrasanta (LU) ","Autorità Idrica Toscana",901,901,"Lucca","LU","046024","Pietrasanta"]
["Toscana","Pieve Fosciana","Pieve Fosciana (LU) ","Autorità Idrica Toscana",901,901,"Lucca","LU","046025","Pieve Fosciana"]
["Toscana","Porcari","Porcari (LU) ","Autorità Idrica Toscana",902,902,"Lucca","LU","046026","Porcari"]
["Toscana","San Romano in Garfagnana","San Romano in Garfagnana (LU) ","Autorità Idrica Toscana",901,901,"Lucca","LU","046027","San Romano in Garfagnana"]
["Toscana","Seravezza","Seravezza (LU) ","Autorità Idrica Toscana",901,901,"Lucca","LU","046028","Seravezza"]
["Toscana","Stazzema","Stazzema (LU) ","Autorità Idrica Toscana",901,901,"Lucca","LU","046030","Stazzema"]
["Toscana","Vagli Sotto","Vagli Sotto (LU) ","Autorità Idrica Toscana",901,901,"Lucca","LU","046031","Vagli Sotto"]
["Toscana","Viareggio","Viareggio (LU) ","Autorità Idrica Toscana",901,901,"Lucca","LU","046033","Viareggio"]
["Toscana","Villa Basilica","Villa Basilica (LU) ","Autorità Idrica Toscana",902,902,"Lucca","LU","046034","Villa Basilica"]
["Toscana","Villa Collemandina","Villa Collemandina (LU) ","Autorità Idrica Toscana",901,901,"Lucca","LU","046035","Villa Collemandina"]
["Toscana","Fabbriche di Vergemoli","Fabbriche di Vergemoli (LU) ","Autorità Idrica Toscana",901,901,"Lucca","LU","046036","Fabbriche di Vergemoli"]
["Toscana","Sillano Giuncugnano","Sillano Giuncugnano (LU) ","Autorità Idrica Toscana",901,901,"Lucca","LU","046037","Sillano Giuncugnano"]
["Toscana","Agliana","Agliana (PT) ","Autorità Idrica Toscana",903,903,"Pistoia","PT","047002","Agliana"]
["Toscana","Buggiano","Buggiano (PT) ","Autorità Idrica Toscana",902,902,"Pistoia","PT","047003","Buggiano"]
["Toscana","Lamporecchio","Lamporecchio (PT) ","Autorità Idrica Toscana",902,902,"Pistoia","PT","047005","Lamporecchio"]
["Toscana","Larciano","Larciano (PT) ","Autorità Idrica Toscana",902,902,"Pistoia","PT","047006","Larciano"]
["Toscana","Marliana","Marliana (PT) ","Autorità Idrica Toscana",902,902,"Pistoia","PT","047007","Marliana"]
["Toscana","Massa e Cozzile","Massa e Cozzile (PT) ","Autorità Idrica Toscana",902,902,"Pistoia","PT","047008","Massa e Cozzile"]
["Toscana","Monsummano Terme","Monsummano Terme (PT) ","Autorità Idrica Toscana",902,902,"Pistoia","PT","047009","Monsummano Terme"]
["Toscana","Montale","Montale (PT) ","Autorità Idrica Toscana",903,903,"Pistoia","PT","047010","Montale"]
["Toscana","Montecatini-Terme","Montecatini-Terme (PT) ","Autorità Idrica Toscana",902,902,"Pistoia","PT","047011","Montecatini-Terme"]
["Toscana","Pescia","Pescia (PT) ","Autorità Idrica Toscana",902,902,"Pistoia","PT","047012","Pescia"]
["Toscana","Pieve a Nievole","Pieve a Nievole (PT) ","Autorità Idrica Toscana",902,902,"Pistoia","PT","047013","Pieve a Nievole"]
["Toscana","Pistoia","Pistoia (PT) ","Autorità Idrica Toscana",903,903,"Pistoia","PT","047014","Pistoia"]
["Toscana","Ponte Buggianese","Ponte Buggianese (PT) ","Autorità Idrica Toscana",902,902,"Pistoia","PT","047016","Ponte Buggianese"]
["Toscana","Quarrata","Quarrata (PT) ","Autorità Idrica Toscana",903,903,"Pistoia","PT","047017","Quarrata"]
["Toscana","Sambuca Pistoiese","Sambuca Pistoiese (PT) ","Autorità Idrica Toscana",903,903,"Pistoia","PT","047018","Sambuca Pistoiese"]
["Toscana","Serravalle Pistoiese","Serravalle Pistoiese (PT) ","Autorità Idrica Toscana",903,903,"Pistoia","PT","047020","Serravalle Pistoiese"]
["Toscana","Uzzano","Uzzano (PT) ","Autorità Idrica Toscana",902,902,"Pistoia","PT","047021","Uzzano"]
["Toscana","Chiesina Uzzanese","Chiesina Uzzanese (PT) ","Autorità Idrica Toscana",902,902,"Pistoia","PT","047022","Chiesina Uzzanese"]
["Toscana","Abetone Cutigliano","Abetone Cutigliano (PT) ","Autorità Idrica Toscana",901,901,"Pistoia","PT","047023","Abetone Cutigliano"]
["Toscana","San Marcello Piteglio","San Marcello Piteglio (PT) ","Autorità Idrica Toscana",901,901,"Pistoia","PT","047024","San Marcello Piteglio"]
["Toscana","Bagno a Ripoli","Bagno a Ripoli (FI) ","Autorità Idrica Toscana",903,903,"Firenze","FI","048001","Bagno a Ripoli"]
["Toscana","Barberino di Mugello","Barberino di Mugello (FI) ","Autorità Idrica Toscana",903,903,"Firenze","FI","048002","Barberino di Mugello"]
["Toscana","Borgo San Lorenzo","Borgo San Lorenzo (FI) ","Autorità Idrica Toscana",903,903,"Firenze","FI","048004","Borgo San Lorenzo"]
["Toscana","Calenzano","Calenzano (FI) ","Autorità Idrica Toscana",903,903,"Firenze","FI","048005","Calenzano"]
["Toscana","Campi Bisenzio","Campi Bisenzio (FI) ","Autorità Idrica Toscana",903,903,"Firenze","FI","048006","Campi Bisenzio"]
["Toscana","Capraia e Limite","Capraia e Limite (FI) ","Autorità Idrica Toscana",902,902,"Firenze","FI","048008","Capraia e Limite"]
["Toscana","Castelfiorentino","Castelfiorentino (FI) ","Autorità Idrica Toscana",902,902,"Firenze","FI","048010","Castelfiorentino"]
["Toscana","Cerreto Guidi","Cerreto Guidi (FI) ","Autorità Idrica Toscana",902,902,"Firenze","FI","048011","Cerreto Guidi"]
["Toscana","Certaldo","Certaldo (FI) ","Autorità Idrica Toscana",902,902,"Firenze","FI","048012","Certaldo"]
["Toscana","Dicomano","Dicomano (FI) ","Autorità Idrica Toscana",903,903,"Firenze","FI","048013","Dicomano"]
["Toscana","Empoli","Empoli (FI) ","Autorità Idrica Toscana",902,902,"Firenze","FI","048014","Empoli"]
["Toscana","Fiesole","Fiesole (FI) ","Autorità Idrica Toscana",903,903,"Firenze","FI","048015","Fiesole"]
["Toscana","Firenze","Firenze (FI) ","Autorità Idrica Toscana",903,903,"Firenze","FI","048017","Firenze"]
["Toscana","Firenzuola","Firenzuola (FI) ","AGENZIA TERRITORIALE DELL'EMILIA ROMAGNA PER I SERVIZI IDRICI E I RIFIUTI",805,805,"Firenze","FI","048018","Firenzuola"]
["Toscana","Fucecchio","Fucecchio (FI) ","Autorità Idrica Toscana",902,902,"Firenze","FI","048019","Fucecchio"]
["Toscana","Gambassi Terme","Gambassi Terme (FI) ","Autorità Idrica Toscana",902,902,"Firenze","FI","048020","Gambassi Terme"]
["Toscana","Greve in Chianti","Greve in Chianti (FI) ","Autorità Idrica Toscana",903,903,"Firenze","FI","048021","Greve in Chianti"]
["Toscana","Impruneta","Impruneta (FI) ","Autorità Idrica Toscana",903,903,"Firenze","FI","048022","Impruneta"]
["Toscana","Lastra a Signa","Lastra a Signa (FI) ","Autorità Idrica Toscana",903,903,"Firenze","FI","048024","Lastra a Signa"]
["Toscana","Londa","Londa (FI) ","Autorità Idrica Toscana",903,903,"Firenze","FI","048025","Londa"]
["Toscana","Marradi","Marradi (FI) ","AGENZIA TERRITORIALE DELL'EMILIA ROMAGNA PER I SERVIZI IDRICI E I RIFIUTI",805,805,"Firenze","FI","048026","Marradi"]
["Toscana","Montaione","Montaione (FI) ","Autorità Idrica Toscana",902,902,"Firenze","FI","048027","Montaione"]
["Toscana","Montelupo Fiorentino","Montelupo Fiorentino (FI) ","Autorità Idrica Toscana",902,902,"Firenze","FI","048028","Montelupo Fiorentino"]
["Toscana","Montespertoli","Montespertoli (FI) ","Autorità Idrica Toscana",902,902,"Firenze","FI","048030","Montespertoli"]
["Toscana","Palazzuolo sul Senio","Palazzuolo sul Senio (FI) ","AGENZIA TERRITORIALE DELL'EMILIA ROMAGNA PER I SERVIZI IDRICI E I RIFIUTI",805,805,"Firenze","FI","048031","Palazzuolo sul Senio"]
["Toscana","Pelago","Pelago (FI) ","Autorità Idrica Toscana",903,903,"Firenze","FI","048032","Pelago"]
["Toscana","Pontassieve","Pontassieve (FI) ","Autorità Idrica Toscana",903,903,"Firenze","FI","048033","Pontassieve"]
["Toscana","Reggello","Reggello (FI) ","Autorità Idrica Toscana",903,903,"Firenze","FI","048035","Reggello"]
["Toscana","Rignano sull'Arno","Rignano sull'Arno (FI) ","Autorità Idrica Toscana",903,903,"Firenze","FI","048036","Rignano sull'Arno"]
["Toscana","Rufina","Rufina (FI) ","Autorità Idrica Toscana",903,903,"Firenze","FI","048037","Rufina"]
["Toscana","San Casciano in Val di Pesa","San Casciano in Val di Pesa (FI) ","Autorità Idrica Toscana",903,903,"Firenze","FI","048038","San Casciano in Val di Pesa"]
["Toscana","San Godenzo","San Godenzo (FI) ","Autorità Idrica Toscana",903,903,"Firenze","FI","048039","San Godenzo"]
["Toscana","Scandicci","Scandicci (FI) ","Autorità Idrica Toscana",903,903,"Firenze","FI","048041","Scandicci"]
["Toscana","Sesto Fiorentino","Sesto Fiorentino (FI) ","Autorità Idrica Toscana",903,903,"Firenze","FI","048043","Sesto Fiorentino"]
["Toscana","Signa","Signa (FI) ","Autorità Idrica Toscana",903,903,"Firenze","FI","048044","Signa"]
["Toscana","Vaglia","Vaglia (FI) ","Autorità Idrica Toscana",903,903,"Firenze","FI","048046","Vaglia"]
["Toscana","Vicchio","Vicchio (FI) ","Autorità Idrica Toscana",903,903,"Firenze","FI","048049","Vicchio"]
["Toscana","Vinci","Vinci (FI) ","Autorità Idrica Toscana",902,902,"Firenze","FI","048050","Vinci"]
["Toscana","Figline e Incisa Valdarno","Figline e Incisa Valdarno (FI) ","Autorità Idrica Toscana",903,903,"Firenze","FI","048052","Figline e Incisa Valdarno"]
["Toscana","Scarperia e San Piero","Scarperia e San Piero (FI) ","Autorità Idrica Toscana",903,903,"Firenze","FI","048053","Scarperia e San Piero"]
["Toscana","Barberino Tavarnelle","Barberino Tavarnelle (FI) ","Autorità Idrica Toscana",903,903,"Firenze","FI","048054","Barberino Tavarnelle"]
["Toscana","Bibbona","Bibbona (LI) ","Autorità Idrica Toscana",905,905,"Livorno","LI","049001","Bibbona"]
["Toscana","Campiglia Marittima","Campiglia Marittima (LI) ","Autorità Idrica Toscana",905,905,"Livorno","LI","049002","Campiglia Marittima"]
["Toscana","Campo nell'Elba","Campo nell'Elba (LI) ","Autorità Idrica Toscana",905,905,"Livorno","LI","049003","Campo nell'Elba"]
["Toscana","Capoliveri","Capoliveri (LI) ","Autorità Idrica Toscana",905,905,"Livorno","LI","049004","Capoliveri"]
["Toscana","Capraia Isola","Capraia Isola (LI) ","Autorità Idrica Toscana",905,905,"Livorno","LI","049005","Capraia Isola"]
["Toscana","Castagneto Carducci","Castagneto Carducci (LI) ","Autorità Idrica Toscana",905,905,"Livorno","LI","049006","Castagneto Carducci"]
["Toscana","Cecina","Cecina (LI) ","Autorità Idrica Toscana",905,905,"Livorno","LI","049007","Cecina"]
["Toscana","Collesalvetti","Collesalvetti (LI) ","Autorità Idrica Toscana",905,905,"Livorno","LI","049008","Collesalvetti"]
["Toscana","Livorno","Livorno (LI) ","Autorità Idrica Toscana",905,905,"Livorno","LI","049009","Livorno"]
["Toscana","Marciana","Marciana (LI) ","Autorità Idrica Toscana",905,905,"Livorno","LI","049010","Marciana"]
["Toscana","Marciana Marina","Marciana Marina (LI) ","Autorità Idrica Toscana",905,905,"Livorno","LI","049011","Marciana Marina"]
["Toscana","Piombino","Piombino (LI) ","Autorità Idrica Toscana",905,905,"Livorno","LI","049012","Piombino"]
["Toscana","Porto Azzurro","Porto Azzurro (LI) ","Autorità Idrica Toscana",905,905,"Livorno","LI","049013","Porto Azzurro"]
["Toscana","Portoferraio","Portoferraio (LI) ","Autorità Idrica Toscana",905,905,"Livorno","LI","049014","Portoferraio"]
["Toscana","Rosignano Marittimo","Rosignano Marittimo (LI) ","Autorità Idrica Toscana",905,905,"Livorno","LI","049017","Rosignano Marittimo"]
["Toscana","San Vincenzo","San Vincenzo (LI) ","Autorità Idrica Toscana",905,905,"Livorno","LI","049018","San Vincenzo"]
["Toscana","Sassetta","Sassetta (LI) ","Autorità Idrica Toscana",905,905,"Livorno","LI","049019","Sassetta"]
["Toscana","Suvereto","Suvereto (LI) ","Autorità Idrica Toscana",905,905,"Livorno","LI","049020","Suvereto"]
["Toscana","Rio","Rio (LI) ","Autorità Idrica Toscana",905,905,"Livorno","LI","049021","Rio"]
["Toscana","Bientina","Bientina (PI) ","Autorità Idrica Toscana",902,902,"Pisa","PI","050001","Bientina"]
["Toscana","Buti","Buti (PI) ","Autorità Idrica Toscana",902,902,"Pisa","PI","050002","Buti"]
["Toscana","Calci","Calci (PI) ","Autorità Idrica Toscana",902,902,"Pisa","PI","050003","Calci"]
["Toscana","Calcinaia","Calcinaia (PI) ","Autorità Idrica Toscana",902,902,"Pisa","PI","050004","Calcinaia"]
["Toscana","Capannoli","Capannoli (PI) ","Autorità Idrica Toscana",902,902,"Pisa","PI","050005","Capannoli"]
["Toscana","Casale Marittimo","Casale Marittimo (PI) ","Autorità Idrica Toscana",905,905,"Pisa","PI","050006","Casale Marittimo"]
["Toscana","Cascina","Cascina (PI) ","Autorità Idrica Toscana",902,902,"Pisa","PI","050008","Cascina"]
["Toscana","Castelfranco di Sotto","Castelfranco di Sotto (PI) ","Autorità Idrica Toscana",902,902,"Pisa","PI","050009","Castelfranco di Sotto"]
["Toscana","Castellina Marittima","Castellina Marittima (PI) ","Autorità Idrica Toscana",905,905,"Pisa","PI","050010","Castellina Marittima"]
["Toscana","Castelnuovo di Val di Cecina","Castelnuovo di Val di Cecina (PI) ","Autorità Idrica Toscana",905,905,"Pisa","PI","050011","Castelnuovo di Val di Cecina"]
["Toscana","Chianni","Chianni (PI) ","Autorità Idrica Toscana",902,902,"Pisa","PI","050012","Chianni"]
["Toscana","Fauglia","Fauglia (PI) ","Autorità Idrica Toscana",902,902,"Pisa","PI","050014","Fauglia"]
["Toscana","Guardistallo","Guardistallo (PI) ","Autorità Idrica Toscana",905,905,"Pisa","PI","050015","Guardistallo"]
["Toscana","Lajatico","Lajatico (PI) ","Autorità Idrica Toscana",902,902,"Pisa","PI","050016","Lajatico"]
["Toscana","Montecatini Val di Cecina","Montecatini Val di Cecina (PI) ","Autorità Idrica Toscana",905,905,"Pisa","PI","050019","Montecatini Val di Cecina"]
["Toscana","Montescudaio","Montescudaio (PI) ","Autorità Idrica Toscana",905,905,"Pisa","PI","050020","Montescudaio"]
["Toscana","Monteverdi Marittimo","Monteverdi Marittimo (PI) ","Autorità Idrica Toscana",905,905,"Pisa","PI","050021","Monteverdi Marittimo"]
["Toscana","Montopoli in Val d'Arno","Montopoli in Val d'Arno (PI) ","Autorità Idrica Toscana",902,902,"Pisa","PI","050022","Montopoli in Val d'Arno"]
["Toscana","Orciano Pisano","Orciano Pisano (PI) ","Autorità Idrica Toscana",905,905,"Pisa","PI","050023","Orciano Pisano"]
["Toscana","Palaia","Palaia (PI) ","Autorità Idrica Toscana",902,902,"Pisa","PI","050024","Palaia"]
["Toscana","Peccioli","Peccioli (PI) ","Autorità Idrica Toscana",902,902,"Pisa","PI","050025","Peccioli"]
["Toscana","Pisa","Pisa (PI) ","Autorità Idrica Toscana",902,902,"Pisa","PI","050026","Pisa"]
["Toscana","Pomarance","Pomarance (PI) ","Autorità Idrica Toscana",905,905,"Pisa","PI","050027","Pomarance"]
["Toscana","Ponsacco","Ponsacco (PI) ","Autorità Idrica Toscana",902,902,"Pisa","PI","050028","Ponsacco"]
["Toscana","Pontedera","Pontedera (PI) ","Autorità Idrica Toscana",902,902,"Pisa","PI","050029","Pontedera"]
["Toscana","Riparbella","Riparbella (PI) ","Autorità Idrica Toscana",905,905,"Pisa","PI","050030","Riparbella"]
["Toscana","San Giuliano Terme","San Giuliano Terme (PI) ","Autorità Idrica Toscana",902,902,"Pisa","PI","050031","San Giuliano Terme"]
["Toscana","San Miniato","San Miniato (PI) ","Autorità Idrica Toscana",902,902,"Pisa","PI","050032","San Miniato"]
["Toscana","Santa Croce sull'Arno","Santa Croce sull'Arno (PI) ","Autorità Idrica Toscana",902,902,"Pisa","PI","050033","Santa Croce sull'Arno"]
["Toscana","Santa Luce","Santa Luce (PI) ","Autorità Idrica Toscana",905,905,"Pisa","PI","050034","Santa Luce"]
["Toscana","Santa Maria a Monte","Santa Maria a Monte (PI) ","Autorità Idrica Toscana",902,902,"Pisa","PI","050035","Santa Maria a Monte"]
["Toscana","Terricciola","Terricciola (PI) ","Autorità Idrica Toscana",902,902,"Pisa","PI","050036","Terricciola"]
["Toscana","Vecchiano","Vecchiano (PI) ","Autorità Idrica Toscana",902,902,"Pisa","PI","050037","Vecchiano"]
["Toscana","Vicopisano","Vicopisano (PI) ","Autorità Idrica Toscana",902,902,"Pisa","PI","050038","Vicopisano"]
["Toscana","Volterra","Volterra (PI) ","Autorità Idrica Toscana",905,905,"Pisa","PI","050039","Volterra"]
["Toscana","Casciana Terme Lari","Casciana Terme Lari (PI) ","Autorità Idrica Toscana",902,902,"Pisa","PI","050040","Casciana Terme Lari"]
["Toscana","Crespina Lorenzana","Crespina Lorenzana (PI) ","Autorità Idrica Toscana",902,902,"Pisa","PI","050041","Crespina Lorenzana"]
["Toscana","Anghiari","Anghiari (AR) ","Autorità Idrica Toscana",904,904,"Arezzo","AR","051001","Anghiari"]
["Toscana","Arezzo","Arezzo (AR) ","Autorità Idrica Toscana",904,904,"Arezzo","AR","051002","Arezzo"]
["Toscana","Badia Tedalda","Badia Tedalda (AR) ","Autorità Idrica Toscana",904,904,"Arezzo","AR","051003","Badia Tedalda"]
["Toscana","Bibbiena","Bibbiena (AR) ","Autorità Idrica Toscana",904,904,"Arezzo","AR","051004","Bibbiena"]
["Toscana","Bucine","Bucine (AR) ","Autorità Idrica Toscana",904,904,"Arezzo","AR","051005","Bucine"]
["Toscana","Capolona","Capolona (AR) ","Autorità Idrica Toscana",904,904,"Arezzo","AR","051006","Capolona"]
["Toscana","Caprese Michelangelo","Caprese Michelangelo (AR) ","Autorità Idrica Toscana",904,904,"Arezzo","AR","051007","Caprese Michelangelo"]
["Toscana","Castel Focognano","Castel Focognano (AR) ","Autorità Idrica Toscana",904,904,"Arezzo","AR","051008","Castel Focognano"]
["Toscana","Castel San Niccolò","Castel San Niccolò (AR) ","Autorità Idrica Toscana",904,904,"Arezzo","AR","051010","Castel San Niccolò"]
["Toscana","Castiglion Fibocchi","Castiglion Fibocchi (AR) ","Autorità Idrica Toscana",904,904,"Arezzo","AR","051011","Castiglion Fibocchi"]
["Toscana","Castiglion Fiorentino","Castiglion Fiorentino (AR) ","Autorità Idrica Toscana",904,904,"Arezzo","AR","051012","Castiglion Fiorentino"]
["Toscana","Cavriglia","Cavriglia (AR) ","Autorità Idrica Toscana",903,903,"Arezzo","AR","051013","Cavriglia"]
["Toscana","Chitignano","Chitignano (AR) ","Autorità Idrica Toscana",904,904,"Arezzo","AR","051014","Chitignano"]
["Toscana","Chiusi della Verna","Chiusi della Verna (AR) ","Autorità Idrica Toscana",904,904,"Arezzo","AR","051015","Chiusi della Verna"]
["Toscana","Civitella in Val di Chiana","Civitella in Val di Chiana (AR) ","Autorità Idrica Toscana",904,904,"Arezzo","AR","051016","Civitella in Val di Chiana"]
["Toscana","Cortona","Cortona (AR) ","Autorità Idrica Toscana",904,904,"Arezzo","AR","051017","Cortona"]
["Toscana","Foiano della Chiana","Foiano della Chiana (AR) ","Autorità Idrica Toscana",904,904,"Arezzo","AR","051018","Foiano della Chiana"]
["Toscana","Loro Ciuffenna","Loro Ciuffenna (AR) ","Autorità Idrica Toscana",903,903,"Arezzo","AR","051020","Loro Ciuffenna"]
["Toscana","Lucignano","Lucignano (AR) ","Autorità Idrica Toscana",904,904,"Arezzo","AR","051021","Lucignano"]
["Toscana","Marciano della Chiana","Marciano della Chiana (AR) ","Autorità Idrica Toscana",904,904,"Arezzo","AR","051022","Marciano della Chiana"]
["Toscana","Montemignaio","Montemignaio (AR) ","Autorità Idrica Toscana",904,904,"Arezzo","AR","051023","Montemignaio"]
["Toscana","Monterchi","Monterchi (AR) ","Autorità Idrica Toscana",904,904,"Arezzo","AR","051024","Monterchi"]
["Toscana","Monte San Savino","Monte San Savino (AR) ","Autorità Idrica Toscana",904,904,"Arezzo","AR","051025","Monte San Savino"]
["Toscana","Montevarchi","Montevarchi (AR) ","Autorità Idrica Toscana",903,903,"Arezzo","AR","051026","Montevarchi"]
["Toscana","Ortignano Raggiolo","Ortignano Raggiolo (AR) ","Autorità Idrica Toscana",904,904,"Arezzo","AR","051027","Ortignano Raggiolo"]
["Toscana","Pieve Santo Stefano","Pieve Santo Stefano (AR) ","Autorità Idrica Toscana",904,904,"Arezzo","AR","051030","Pieve Santo Stefano"]
["Toscana","Poppi","Poppi (AR) ","Autorità Idrica Toscana",904,904,"Arezzo","AR","051031","Poppi"]
["Toscana","San Giovanni Valdarno","San Giovanni Valdarno (AR) ","Autorità Idrica Toscana",903,903,"Arezzo","AR","051033","San Giovanni Valdarno"]
["Toscana","Sansepolcro","Sansepolcro (AR) ","Autorità Idrica Toscana",904,904,"Arezzo","AR","051034","Sansepolcro"]
["Toscana","Sestino","Sestino (AR) ","Autorità Idrica Toscana",904,904,"Arezzo","AR","051035","Sestino"]
["Toscana","Subbiano","Subbiano (AR) ","Autorità Idrica Toscana",904,904,"Arezzo","AR","051037","Subbiano"]
["Toscana","Talla","Talla (AR) ","Autorità Idrica Toscana",904,904,"Arezzo","AR","051038","Talla"]
["Toscana","Terranuova Bracciolini","Terranuova Bracciolini (AR) ","Autorità Idrica Toscana",903,903,"Arezzo","AR","051039","Terranuova Bracciolini"]
["Toscana","Castelfranco Piandiscò","Castelfranco Piandiscò (AR) ","Autorità Idrica Toscana",903,903,"Arezzo","AR","051040","Castelfranco Piandiscò"]
["Toscana","Pratovecchio Stia","Pratovecchio Stia (AR) ","Autorità Idrica Toscana",904,904,"Arezzo","AR","051041","Pratovecchio Stia"]
["Toscana","Laterina Pergine Valdarno","Laterina Pergine Valdarno (AR) ","Autorità Idrica Toscana",904,904,"Arezzo","AR","051042","Laterina Pergine Valdarno"]
["Toscana","Abbadia San Salvatore","Abbadia San Salvatore (SI) ","Autorità Idrica Toscana",906,906,"Siena","SI","052001","Abbadia San Salvatore"]
["Toscana","Asciano","Asciano (SI) ","Autorità Idrica Toscana",906,906,"Siena","SI","052002","Asciano"]
["Toscana","Buonconvento","Buonconvento (SI) ","Autorità Idrica Toscana",906,906,"Siena","SI","052003","Buonconvento"]
["Toscana","Casole d'Elsa","Casole d'Elsa (SI) ","Autorità Idrica Toscana",906,906,"Siena","SI","052004","Casole d'Elsa"]
["Toscana","Castellina in Chianti","Castellina in Chianti (SI) ","Autorità Idrica Toscana",906,906,"Siena","SI","052005","Castellina in Chianti"]
["Toscana","Castelnuovo Berardenga","Castelnuovo Berardenga (SI) ","Autorità Idrica Toscana",906,906,"Siena","SI","052006","Castelnuovo Berardenga"]
["Toscana","Castiglione d'Orcia","Castiglione d'Orcia (SI) ","Autorità Idrica Toscana",906,906,"Siena","SI","052007","Castiglione d'Orcia"]
["Toscana","Cetona","Cetona (SI) ","Autorità Idrica Toscana",906,906,"Siena","SI","052008","Cetona"]
["Toscana","Chianciano Terme","Chianciano Terme (SI) ","Autorità Idrica Toscana",904,904,"Siena","SI","052009","Chianciano Terme"]
["Toscana","Chiusdino","Chiusdino (SI) ","Autorità Idrica Toscana",906,906,"Siena","SI","052010","Chiusdino"]
["Toscana","Chiusi","Chiusi (SI) ","Autorità Idrica Toscana",904,904,"Siena","SI","052011","Chiusi"]
["Toscana","Colle di Val d'Elsa","Colle di Val d'Elsa (SI) ","Autorità Idrica Toscana",906,906,"Siena","SI","052012","Colle di Val d'Elsa"]
["Toscana","Gaiole in Chianti","Gaiole in Chianti (SI) ","Autorità Idrica Toscana",906,906,"Siena","SI","052013","Gaiole in Chianti"]
["Toscana","Montepulciano","Montepulciano (SI) ","Autorità Idrica Toscana",904,904,"Siena","SI","052015","Montepulciano"]
["Toscana","Monteriggioni","Monteriggioni (SI) ","Autorità Idrica Toscana",906,906,"Siena","SI","052016","Monteriggioni"]
["Toscana","Monteroni d'Arbia","Monteroni d'Arbia (SI) ","Autorità Idrica Toscana",906,906,"Siena","SI","052017","Monteroni d'Arbia"]
["Toscana","Monticiano","Monticiano (SI) ","Autorità Idrica Toscana",906,906,"Siena","SI","052018","Monticiano"]
["Toscana","Murlo","Murlo (SI) ","Autorità Idrica Toscana",906,906,"Siena","SI","052019","Murlo"]
["Toscana","Piancastagnaio","Piancastagnaio (SI) ","Autorità Idrica Toscana",906,906,"Siena","SI","052020","Piancastagnaio"]
["Toscana","Pienza","Pienza (SI) ","Autorità Idrica Toscana",906,906,"Siena","SI","052021","Pienza"]
["Toscana","Poggibonsi","Poggibonsi (SI) ","Autorità Idrica Toscana",902,902,"Siena","SI","052022","Poggibonsi"]
["Toscana","Radda in Chianti","Radda in Chianti (SI) ","Autorità Idrica Toscana",906,906,"Siena","SI","052023","Radda in Chianti"]
["Toscana","Radicofani","Radicofani (SI) ","Autorità Idrica Toscana",906,906,"Siena","SI","052024","Radicofani"]
["Toscana","Radicondoli","Radicondoli (SI) ","Autorità Idrica Toscana",905,905,"Siena","SI","052025","Radicondoli"]
["Toscana","Rapolano Terme","Rapolano Terme (SI) ","Autorità Idrica Toscana",906,906,"Siena","SI","052026","Rapolano Terme"]
["Toscana","San Casciano dei Bagni","San Casciano dei Bagni (SI) ","Autorità Idrica Toscana",906,906,"Siena","SI","052027","San Casciano dei Bagni"]
["Toscana","San Gimignano","San Gimignano (SI) ","Autorità Idrica Toscana",902,902,"Siena","SI","052028","San Gimignano"]
["Toscana","San Quirico d'Orcia","San Quirico d'Orcia (SI) ","Autorità Idrica Toscana",906,906,"Siena","SI","052030","San Quirico d'Orcia"]
["Toscana","Sarteano","Sarteano (SI) ","Autorità Idrica Toscana",906,906,"Siena","SI","052031","Sarteano"]
["Toscana","Siena","Siena (SI) ","Autorità Idrica Toscana",906,906,"Siena","SI","052032","Siena"]
["Toscana","Sinalunga","Sinalunga (SI) ","Autorità Idrica Toscana",904,904,"Siena","SI","052033","Sinalunga"]
["Toscana","Sovicille","Sovicille (SI) ","Autorità Idrica Toscana",906,906,"Siena","SI","052034","Sovicille"]
["Toscana","Torrita di Siena","Torrita di Siena (SI) ","Autorità Idrica Toscana",904,904,"Siena","SI","052035","Torrita di Siena"]
["Toscana","Trequanda","Trequanda (SI) ","Autorità Idrica Toscana",906,906,"Siena","SI","052036","Trequanda"]
["Toscana","Montalcino","Montalcino (SI) ","Autorità Idrica Toscana",906,906,"Siena","SI","052037","Montalcino"]
["Toscana","Arcidosso","Arcidosso (GR) ","Autorità Idrica Toscana",906,906,"Grosseto","GR","053001","Arcidosso"]
["Toscana","Campagnatico","Campagnatico (GR) ","Autorità Idrica Toscana",906,906,"Grosseto","GR","053002","Campagnatico"]
["Toscana","Capalbio","Capalbio (GR) ","Autorità Idrica Toscana",906,906,"Grosseto","GR","053003","Capalbio"]
["Toscana","Castel del Piano","Castel del Piano (GR) ","Autorità Idrica Toscana",906,906,"Grosseto","GR","053004","Castel del Piano"]
["Toscana","Castell'Azzara","Castell'Azzara (GR) ","Autorità Idrica Toscana",906,906,"Grosseto","GR","053005","Castell'Azzara"]
["Toscana","Castiglione della Pescaia","Castiglione della Pescaia (GR) ","Autorità Idrica Toscana",906,906,"Grosseto","GR","053006","Castiglione della Pescaia"]
["Toscana","Cinigiano","Cinigiano (GR) ","Autorità Idrica Toscana",906,906,"Grosseto","GR","053007","Cinigiano"]
["Toscana","Civitella Paganico","Civitella Paganico (GR) ","Autorità Idrica Toscana",906,906,"Grosseto","GR","053008","Civitella Paganico"]
["Toscana","Follonica","Follonica (GR) ","Autorità Idrica Toscana",906,906,"Grosseto","GR","053009","Follonica"]
["Toscana","Gavorrano","Gavorrano (GR) ","Autorità Idrica Toscana",906,906,"Grosseto","GR","053010","Gavorrano"]
["Toscana","Grosseto","Grosseto (GR) ","Autorità Idrica Toscana",906,906,"Grosseto","GR","053011","Grosseto"]
["Toscana","Isola del Giglio","Isola del Giglio (GR) ","Autorità Idrica Toscana",906,906,"Grosseto","GR","053012","Isola del Giglio"]
["Toscana","Magliano in Toscana","Magliano in Toscana (GR) ","Autorità Idrica Toscana",906,906,"Grosseto","GR","053013","Magliano in Toscana"]
["Toscana","Manciano","Manciano (GR) ","Autorità Idrica Toscana",906,906,"Grosseto","GR","053014","Manciano"]
["Toscana","Massa Marittima","Massa Marittima (GR) ","Autorità Idrica Toscana",906,906,"Grosseto","GR","053015","Massa Marittima"]
["Toscana","Monte Argentario","Monte Argentario (GR) ","Autorità Idrica Toscana",906,906,"Grosseto","GR","053016","Monte Argentario"]
["Toscana","Montieri","Montieri (GR) ","Autorità Idrica Toscana",906,906,"Grosseto","GR","053017","Montieri"]
["Toscana","Orbetello","Orbetello (GR) ","Autorità Idrica Toscana",906,906,"Grosseto","GR","053018","Orbetello"]
["Toscana","Pitigliano","Pitigliano (GR) ","Autorità Idrica Toscana",906,906,"Grosseto","GR","053019","Pitigliano"]
["Toscana","Roccalbegna","Roccalbegna (GR) ","Autorità Idrica Toscana",906,906,"Grosseto","GR","053020","Roccalbegna"]
["Toscana","Roccastrada","Roccastrada (GR) ","Autorità Idrica Toscana",906,906,"Grosseto","GR","053021","Roccastrada"]
["Toscana","Santa Fiora","Santa Fiora (GR) ","Autorità Idrica Toscana",906,906,"Grosseto","GR","053022","Santa Fiora"]
["Toscana","Scansano","Scansano (GR) ","Autorità Idrica Toscana",906,906,"Grosseto","GR","053023","Scansano"]
["Toscana","Scarlino","Scarlino (GR) ","Autorità Idrica Toscana",906,906,"Grosseto","GR","053024","Scarlino"]
["Toscana","Seggiano","Seggiano (GR) ","Autorità Idrica Toscana",906,906,"Grosseto","GR","053025","Seggiano"]
["Toscana","Sorano","Sorano (GR) ","Autorità Idrica Toscana",906,906,"Grosseto","GR","053026","Sorano"]
["Toscana","Monterotondo Marittimo","Monterotondo Marittimo (GR) ","Autorità Idrica Toscana",906,906,"Grosseto","GR","053027","Monterotondo Marittimo"]
["Toscana","Semproniano","Semproniano (GR) ","Autorità Idrica Toscana",906,906,"Grosseto","GR","053028","Semproniano"]
["Umbria","Assisi","Assisi (PG) ","Autorità Umbra Rifiuti Idrico",1001,1001,"Perugia","PG","054001","Assisi"]
["Umbria","Bastia Umbra","Bastia Umbra (PG) ","Autorità Umbra Rifiuti Idrico",1001,1001,"Perugia","PG","054002","Bastia Umbra"]
["Umbria","Bettona","Bettona (PG) ","Autorità Umbra Rifiuti Idrico",1001,1001,"Perugia","PG","054003","Bettona"]
["Umbria","Bevagna","Bevagna (PG) ","Autorità Umbra Rifiuti Idrico",1002,1002,"Perugia","PG","054004","Bevagna"]
["Umbria","Campello sul Clitunno","Campello sul Clitunno (PG) ","Autorità Umbra Rifiuti Idrico",1002,1002,"Perugia","PG","054005","Campello sul Clitunno"]
["Umbria","Cannara","Cannara (PG) ","Autorità Umbra Rifiuti Idrico",1001,1001,"Perugia","PG","054006","Cannara"]
["Umbria","Cascia","Cascia (PG) ","Autorità Umbra Rifiuti Idrico",1002,1002,"Perugia","PG","054007","Cascia"]
["Umbria","Castel Ritaldi","Castel Ritaldi (PG) ","Autorità Umbra Rifiuti Idrico",1002,1002,"Perugia","PG","054008","Castel Ritaldi"]
["Umbria","Castiglione del Lago","Castiglione del Lago (PG) ","Autorità Umbra Rifiuti Idrico",1001,1001,"Perugia","PG","054009","Castiglione del Lago"]
["Umbria","Cerreto di Spoleto","Cerreto di Spoleto (PG) ","Autorità Umbra Rifiuti Idrico",1002,1002,"Perugia","PG","054010","Cerreto di Spoleto"]
["Umbria","Citerna","Citerna (PG) ","Autorità Umbra Rifiuti Idrico",1001,1001,"Perugia","PG","054011","Citerna"]
["Umbria","Città della Pieve","Città della Pieve (PG) ","Autorità Umbra Rifiuti Idrico",1001,1001,"Perugia","PG","054012","Città della Pieve"]
["Umbria","Città di Castello","Città di Castello (PG) ","Autorità Umbra Rifiuti Idrico",1001,1001,"Perugia","PG","054013","Città di Castello"]
["Umbria","Collazzone","Collazzone (PG) ","Autorità Umbra Rifiuti Idrico",1001,1001,"Perugia","PG","054014","Collazzone"]
["Umbria","Corciano","Corciano (PG) ","Autorità Umbra Rifiuti Idrico",1001,1001,"Perugia","PG","054015","Corciano"]
["Umbria","Costacciaro","Costacciaro (PG) ","Autorità Umbra Rifiuti Idrico",1001,1001,"Perugia","PG","054016","Costacciaro"]
["Umbria","Deruta","Deruta (PG) ","Autorità Umbra Rifiuti Idrico",1001,1001,"Perugia","PG","054017","Deruta"]
["Umbria","Foligno","Foligno (PG) ","Autorità Umbra Rifiuti Idrico",1002,1002,"Perugia","PG","054018","Foligno"]
["Umbria","Fossato di Vico","Fossato di Vico (PG) ","Autorità Umbra Rifiuti Idrico",1001,1001,"Perugia","PG","054019","Fossato di Vico"]
["Umbria","Fratta Todina","Fratta Todina (PG) ","Autorità Umbra Rifiuti Idrico",1001,1001,"Perugia","PG","054020","Fratta Todina"]
["Umbria","Giano dell'Umbria","Giano dell'Umbria (PG) ","Autorità Umbra Rifiuti Idrico",1002,1002,"Perugia","PG","054021","Giano dell'Umbria"]
["Umbria","Gualdo Cattaneo","Gualdo Cattaneo (PG) ","Autorità Umbra Rifiuti Idrico",1002,1002,"Perugia","PG","054022","Gualdo Cattaneo"]
["Umbria","Gualdo Tadino","Gualdo Tadino (PG) ","Autorità Umbra Rifiuti Idrico",1001,1001,"Perugia","PG","054023","Gualdo Tadino"]
["Umbria","Gubbio","Gubbio (PG) ","Autorità Umbra Rifiuti Idrico",1001,1001,"Perugia","PG","054024","Gubbio"]
["Umbria","Lisciano Niccone","Lisciano Niccone (PG) ","Autorità Umbra Rifiuti Idrico",1001,1001,"Perugia","PG","054025","Lisciano Niccone"]
["Umbria","Magione","Magione (PG) ","Autorità Umbra Rifiuti Idrico",1001,1001,"Perugia","PG","054026","Magione"]
["Umbria","Marsciano","Marsciano (PG) ","Autorità Umbra Rifiuti Idrico",1001,1001,"Perugia","PG","054027","Marsciano"]
["Umbria","Massa Martana","Massa Martana (PG) ","Autorità Umbra Rifiuti Idrico",1001,1001,"Perugia","PG","054028","Massa Martana"]
["Umbria","Monte Castello di Vibio","Monte Castello di Vibio (PG) ","Autorità Umbra Rifiuti Idrico",1001,1001,"Perugia","PG","054029","Monte Castello di Vibio"]
["Umbria","Montefalco","Montefalco (PG) ","Autorità Umbra Rifiuti Idrico",1002,1002,"Perugia","PG","054030","Montefalco"]
["Umbria","Monteleone di Spoleto","Monteleone di Spoleto (PG) ","Autorità Umbra Rifiuti Idrico",1002,1002,"Perugia","PG","054031","Monteleone di Spoleto"]
["Umbria","Monte Santa Maria Tiberina","Monte Santa Maria Tiberina (PG) ","Autorità Umbra Rifiuti Idrico",1001,1001,"Perugia","PG","054032","Monte Santa Maria Tiberina"]
["Umbria","Montone","Montone (PG) ","Autorità Umbra Rifiuti Idrico",1001,1001,"Perugia","PG","054033","Montone"]
["Umbria","Nocera Umbra","Nocera Umbra (PG) ","Autorità Umbra Rifiuti Idrico",1002,1002,"Perugia","PG","054034","Nocera Umbra"]
["Umbria","Norcia","Norcia (PG) ","Autorità Umbra Rifiuti Idrico",1002,1002,"Perugia","PG","054035","Norcia"]
["Umbria","Paciano","Paciano (PG) ","Autorità Umbra Rifiuti Idrico",1001,1001,"Perugia","PG","054036","Paciano"]
["Umbria","Panicale","Panicale (PG) ","Autorità Umbra Rifiuti Idrico",1001,1001,"Perugia","PG","054037","Panicale"]
["Umbria","Passignano sul Trasimeno","Passignano sul Trasimeno (PG) ","Autorità Umbra Rifiuti Idrico",1001,1001,"Perugia","PG","054038","Passignano sul Trasimeno"]
["Umbria","Perugia","Perugia (PG) ","Autorità Umbra Rifiuti Idrico",1001,1001,"Perugia","PG","054039","Perugia"]
["Umbria","Piegaro","Piegaro (PG) ","Autorità Umbra Rifiuti Idrico",1001,1001,"Perugia","PG","054040","Piegaro"]
["Umbria","Pietralunga","Pietralunga (PG) ","Autorità Umbra Rifiuti Idrico",1001,1001,"Perugia","PG","054041","Pietralunga"]
["Umbria","Poggiodomo","Poggiodomo (PG) ","Autorità Umbra Rifiuti Idrico",1002,1002,"Perugia","PG","054042","Poggiodomo"]
["Umbria","Preci","Preci (PG) ","Autorità Umbra Rifiuti Idrico",1002,1002,"Perugia","PG","054043","Preci"]
["Umbria","San Giustino","San Giustino (PG) ","Autorità Umbra Rifiuti Idrico",1001,1001,"Perugia","PG","054044","San Giustino"]
["Umbria","Sant'Anatolia di Narco","Sant'Anatolia di Narco (PG) ","Autorità Umbra Rifiuti Idrico",1002,1002,"Perugia","PG","054045","Sant'Anatolia di Narco"]
["Umbria","Scheggia e Pascelupo","Scheggia e Pascelupo (PG) ","Autorità Umbra Rifiuti Idrico",1001,1001,"Perugia","PG","054046","Scheggia e Pascelupo"]
["Umbria","Scheggino","Scheggino (PG) ","Autorità Umbra Rifiuti Idrico",1002,1002,"Perugia","PG","054047","Scheggino"]
["Umbria","Sellano","Sellano (PG) ","Autorità Umbra Rifiuti Idrico",1002,1002,"Perugia","PG","054048","Sellano"]
["Umbria","Sigillo","Sigillo (PG) ","Autorità Umbra Rifiuti Idrico",1001,1001,"Perugia","PG","054049","Sigillo"]
["Umbria","Spello","Spello (PG) ","Autorità Umbra Rifiuti Idrico",1002,1002,"Perugia","PG","054050","Spello"]
["Umbria","Spoleto","Spoleto (PG) ","Autorità Umbra Rifiuti Idrico",1002,1002,"Perugia","PG","054051","Spoleto"]
["Umbria","Todi","Todi (PG) ","Autorità Umbra Rifiuti Idrico",1001,1001,"Perugia","PG","054052","Todi"]
["Umbria","Torgiano","Torgiano (PG) ","Autorità Umbra Rifiuti Idrico",1001,1001,"Perugia","PG","054053","Torgiano"]
["Umbria","Trevi","Trevi (PG) ","Autorità Umbra Rifiuti Idrico",1002,1002,"Perugia","PG","054054","Trevi"]
["Umbria","Tuoro sul Trasimeno","Tuoro sul Trasimeno (PG) ","Autorità Umbra Rifiuti Idrico",1001,1001,"Perugia","PG","054055","Tuoro sul Trasimeno"]
["Umbria","Umbertide","Umbertide (PG) ","Autorità Umbra Rifiuti Idrico",1001,1001,"Perugia","PG","054056","Umbertide"]
["Umbria","Valfabbrica","Valfabbrica (PG) ","Autorità Umbra Rifiuti Idrico",1001,1001,"Perugia","PG","054057","Valfabbrica"]
["Umbria","Vallo di Nera","Vallo di Nera (PG) ","Autorità Umbra Rifiuti Idrico",1002,1002,"Perugia","PG","054058","Vallo di Nera"]
["Umbria","Valtopina","Valtopina (PG) ","Autorità Umbra Rifiuti Idrico",1002,1002,"Perugia","PG","054059","Valtopina"]
["Umbria","Acquasparta","Acquasparta (TR) ","Autorità Umbra Rifiuti Idrico",1003,1003,"Terni","TR","055001","Acquasparta"]
["Umbria","Allerona","Allerona (TR) ","Autorità Umbra Rifiuti Idrico",1003,1003,"Terni","TR","055002","Allerona"]
["Umbria","Alviano","Alviano (TR) ","Autorità Umbra Rifiuti Idrico",1003,1003,"Terni","TR","055003","Alviano"]
["Umbria","Amelia","Amelia (TR) ","Autorità Umbra Rifiuti Idrico",1003,1003,"Terni","TR","055004","Amelia"]
["Umbria","Arrone","Arrone (TR) ","Autorità Umbra Rifiuti Idrico",1003,1003,"Terni","TR","055005","Arrone"]
["Umbria","Attigliano","Attigliano (TR) ","Autorità Umbra Rifiuti Idrico",1003,1003,"Terni","TR","055006","Attigliano"]
["Umbria","Baschi","Baschi (TR) ","Autorità Umbra Rifiuti Idrico",1003,1003,"Terni","TR","055007","Baschi"]
["Umbria","Calvi dell'Umbria","Calvi dell'Umbria (TR) ","Autorità Umbra Rifiuti Idrico",1003,1003,"Terni","TR","055008","Calvi dell'Umbria"]
["Umbria","Castel Giorgio","Castel Giorgio (TR) ","Autorità Umbra Rifiuti Idrico",1003,1003,"Terni","TR","055009","Castel Giorgio"]
["Umbria","Castel Viscardo","Castel Viscardo (TR) ","Autorità Umbra Rifiuti Idrico",1003,1003,"Terni","TR","055010","Castel Viscardo"]
["Umbria","Fabro","Fabro (TR) ","Autorità Umbra Rifiuti Idrico",1003,1003,"Terni","TR","055011","Fabro"]
["Umbria","Ferentillo","Ferentillo (TR) ","Autorità Umbra Rifiuti Idrico",1003,1003,"Terni","TR","055012","Ferentillo"]
["Umbria","Ficulle","Ficulle (TR) ","Autorità Umbra Rifiuti Idrico",1003,1003,"Terni","TR","055013","Ficulle"]
["Umbria","Giove","Giove (TR) ","Autorità Umbra Rifiuti Idrico",1003,1003,"Terni","TR","055014","Giove"]
["Umbria","Guardea","Guardea (TR) ","Autorità Umbra Rifiuti Idrico",1003,1003,"Terni","TR","055015","Guardea"]
["Umbria","Lugnano in Teverina","Lugnano in Teverina (TR) ","Autorità Umbra Rifiuti Idrico",1003,1003,"Terni","TR","055016","Lugnano in Teverina"]
["Umbria","Montecastrilli","Montecastrilli (TR) ","Autorità Umbra Rifiuti Idrico",1003,1003,"Terni","TR","055017","Montecastrilli"]
["Umbria","Montecchio","Montecchio (TR) ","Autorità Umbra Rifiuti Idrico",1003,1003,"Terni","TR","055018","Montecchio"]
["Umbria","Montefranco","Montefranco (TR) ","Autorità Umbra Rifiuti Idrico",1003,1003,"Terni","TR","055019","Montefranco"]
["Umbria","Montegabbione","Montegabbione (TR) ","Autorità Umbra Rifiuti Idrico",1003,1003,"Terni","TR","055020","Montegabbione"]
["Umbria","Monteleone d'Orvieto","Monteleone d'Orvieto (TR) ","Autorità Umbra Rifiuti Idrico",1003,1003,"Terni","TR","055021","Monteleone d'Orvieto"]
["Umbria","Narni","Narni (TR) ","Autorità Umbra Rifiuti Idrico",1003,1003,"Terni","TR","055022","Narni"]
["Umbria","Orvieto","Orvieto (TR) ","Autorità Umbra Rifiuti Idrico",1003,1003,"Terni","TR","055023","Orvieto"]
["Umbria","Otricoli","Otricoli (TR) ","Autorità Umbra Rifiuti Idrico",1003,1003,"Terni","TR","055024","Otricoli"]
["Umbria","Parrano","Parrano (TR) ","Autorità Umbra Rifiuti Idrico",1003,1003,"Terni","TR","055025","Parrano"]
["Umbria","Penna in Teverina","Penna in Teverina (TR) ","Autorità Umbra Rifiuti Idrico",1003,1003,"Terni","TR","055026","Penna in Teverina"]
["Umbria","Polino","Polino (TR) ","Autorità Umbra Rifiuti Idrico",1003,1003,"Terni","TR","055027","Polino"]
["Umbria","Porano","Porano (TR) ","Autorità Umbra Rifiuti Idrico",1003,1003,"Terni","TR","055028","Porano"]
["Umbria","San Gemini","San Gemini (TR) ","Autorità Umbra Rifiuti Idrico",1003,1003,"Terni","TR","055029","San Gemini"]
["Umbria","San Venanzo","San Venanzo (TR) ","Autorità Umbra Rifiuti Idrico",1001,1001,"Terni","TR","055030","San Venanzo"]
["Umbria","Stroncone","Stroncone (TR) ","Autorità Umbra Rifiuti Idrico",1003,1003,"Terni","TR","055031","Stroncone"]
["Umbria","Terni","Terni (TR) ","Autorità Umbra Rifiuti Idrico",1003,1003,"Terni","TR","055032","Terni"]
["Umbria","Avigliano Umbro","Avigliano Umbro (TR) ","Autorità Umbra Rifiuti Idrico",1003,1003,"Terni","TR","055033","Avigliano Umbro"]
["Lazio","Acquapendente","Acquapendente (VT) ","ENTE DI GOVERNO DELL'A.T.O. N° 1 LAZIO NORD - VITERBO",1201,1201,"Viterbo","VT","056001","Acquapendente"]
["Lazio","Arlena di Castro","Arlena di Castro (VT) ","ENTE DI GOVERNO DELL'A.T.O. N° 1 LAZIO NORD - VITERBO",1201,1201,"Viterbo","VT","056002","Arlena di Castro"]
["Lazio","Bagnoregio","Bagnoregio (VT) ","ENTE DI GOVERNO DELL'A.T.O. N° 1 LAZIO NORD - VITERBO",1201,1201,"Viterbo","VT","056003","Bagnoregio"]
["Lazio","Barbarano Romano","Barbarano Romano (VT) ","ENTE DI GOVERNO DELL'A.T.O. N° 1 LAZIO NORD - VITERBO",1201,1201,"Viterbo","VT","056004","Barbarano Romano"]
["Lazio","Bassano Romano","Bassano Romano (VT) ","ENTE DI GOVERNO DELL'A.T.O. N° 1 LAZIO NORD - VITERBO",1201,1201,"Viterbo","VT","056005","Bassano Romano"]
["Lazio","Bassano in Teverina","Bassano in Teverina (VT) ","ENTE DI GOVERNO DELL'A.T.O. N° 1 LAZIO NORD - VITERBO",1201,1201,"Viterbo","VT","056006","Bassano in Teverina"]
["Lazio","Blera","Blera (VT) ","ENTE DI GOVERNO DELL'A.T.O. N° 1 LAZIO NORD - VITERBO",1201,1201,"Viterbo","VT","056007","Blera"]
["Lazio","Bolsena","Bolsena (VT) ","ENTE DI GOVERNO DELL'A.T.O. N° 1 LAZIO NORD - VITERBO",1201,1201,"Viterbo","VT","056008","Bolsena"]
["Lazio","Bomarzo","Bomarzo (VT) ","ENTE DI GOVERNO DELL'A.T.O. N° 1 LAZIO NORD - VITERBO",1201,1201,"Viterbo","VT","056009","Bomarzo"]
["Lazio","Calcata","Calcata (VT) ","ENTE DI GOVERNO DELL'A.T.O. N° 1 LAZIO NORD - VITERBO",1201,1201,"Viterbo","VT","056010","Calcata"]
["Lazio","Canepina","Canepina (VT) ","ENTE DI GOVERNO DELL'A.T.O. N° 1 LAZIO NORD - VITERBO",1201,1201,"Viterbo","VT","056011","Canepina"]
["Lazio","Canino","Canino (VT) ","ENTE DI GOVERNO DELL'A.T.O. N° 1 LAZIO NORD - VITERBO",1201,1201,"Viterbo","VT","056012","Canino"]
["Lazio","Capodimonte","Capodimonte (VT) ","ENTE DI GOVERNO DELL'A.T.O. N° 1 LAZIO NORD - VITERBO",1201,1201,"Viterbo","VT","056013","Capodimonte"]
["Lazio","Capranica","Capranica (VT) ","ENTE DI GOVERNO DELL'A.T.O. N° 1 LAZIO NORD - VITERBO",1201,1201,"Viterbo","VT","056014","Capranica"]
["Lazio","Caprarola","Caprarola (VT) ","ENTE DI GOVERNO DELL'A.T.O. N° 1 LAZIO NORD - VITERBO",1201,1201,"Viterbo","VT","056015","Caprarola"]
["Lazio","Carbognano","Carbognano (VT) ","ENTE DI GOVERNO DELL'A.T.O. N° 1 LAZIO NORD - VITERBO",1201,1201,"Viterbo","VT","056016","Carbognano"]
["Lazio","Castel Sant'Elia","Castel Sant'Elia (VT) ","ENTE DI GOVERNO DELL'A.T.O. N° 1 LAZIO NORD - VITERBO",1201,1201,"Viterbo","VT","056017","Castel Sant'Elia"]
["Lazio","Castiglione in Teverina","Castiglione in Teverina (VT) ","ENTE DI GOVERNO DELL'A.T.O. N° 1 LAZIO NORD - VITERBO",1201,1201,"Viterbo","VT","056018","Castiglione in Teverina"]
["Lazio","Celleno","Celleno (VT) ","ENTE DI GOVERNO DELL'A.T.O. N° 1 LAZIO NORD - VITERBO",1201,1201,"Viterbo","VT","056019","Celleno"]
["Lazio","Cellere","Cellere (VT) ","ENTE DI GOVERNO DELL'A.T.O. N° 1 LAZIO NORD - VITERBO",1201,1201,"Viterbo","VT","056020","Cellere"]
["Lazio","Civita Castellana","Civita Castellana (VT) ","ENTE DI GOVERNO DELL'A.T.O. N° 1 LAZIO NORD - VITERBO",1201,1201,"Viterbo","VT","056021","Civita Castellana"]
["Lazio","Civitella d'Agliano","Civitella d'Agliano (VT) ","ENTE DI GOVERNO DELL'A.T.O. N° 1 LAZIO NORD - VITERBO",1201,1201,"Viterbo","VT","056022","Civitella d'Agliano"]
["Lazio","Corchiano","Corchiano (VT) ","ENTE DI GOVERNO DELL'A.T.O. N° 1 LAZIO NORD - VITERBO",1201,1201,"Viterbo","VT","056023","Corchiano"]
["Lazio","Fabrica di Roma","Fabrica di Roma (VT) ","ENTE DI GOVERNO DELL'A.T.O. N° 1 LAZIO NORD - VITERBO",1201,1201,"Viterbo","VT","056024","Fabrica di Roma"]
["Lazio","Faleria","Faleria (VT) ","ENTE DI GOVERNO DELL'A.T.O. N° 1 LAZIO NORD - VITERBO",1201,1201,"Viterbo","VT","056025","Faleria"]
["Lazio","Farnese","Farnese (VT) ","ENTE DI GOVERNO DELL'A.T.O. N° 1 LAZIO NORD - VITERBO",1201,1201,"Viterbo","VT","056026","Farnese"]
["Lazio","Gallese","Gallese (VT) ","ENTE DI GOVERNO DELL'A.T.O. N° 1 LAZIO NORD - VITERBO",1201,1201,"Viterbo","VT","056027","Gallese"]
["Lazio","Gradoli","Gradoli (VT) ","ENTE DI GOVERNO DELL'A.T.O. N° 1 LAZIO NORD - VITERBO",1201,1201,"Viterbo","VT","056028","Gradoli"]
["Lazio","Graffignano","Graffignano (VT) ","ENTE DI GOVERNO DELL'A.T.O. N° 1 LAZIO NORD - VITERBO",1201,1201,"Viterbo","VT","056029","Graffignano"]
["Lazio","Grotte di Castro","Grotte di Castro (VT) ","ENTE DI GOVERNO DELL'A.T.O. N° 1 LAZIO NORD - VITERBO",1201,1201,"Viterbo","VT","056030","Grotte di Castro"]
["Lazio","Ischia di Castro","Ischia di Castro (VT) ","ENTE DI GOVERNO DELL'A.T.O. N° 1 LAZIO NORD - VITERBO",1201,1201,"Viterbo","VT","056031","Ischia di Castro"]
["Lazio","Latera","Latera (VT) ","ENTE DI GOVERNO DELL'A.T.O. N° 1 LAZIO NORD - VITERBO",1201,1201,"Viterbo","VT","056032","Latera"]
["Lazio","Lubriano","Lubriano (VT) ","ENTE DI GOVERNO DELL'A.T.O. N° 1 LAZIO NORD - VITERBO",1201,1201,"Viterbo","VT","056033","Lubriano"]
["Lazio","Marta","Marta (VT) ","ENTE DI GOVERNO DELL'A.T.O. N° 1 LAZIO NORD - VITERBO",1201,1201,"Viterbo","VT","056034","Marta"]
["Lazio","Montalto di Castro","Montalto di Castro (VT) ","ENTE DI GOVERNO DELL'A.T.O. N° 1 LAZIO NORD - VITERBO",1201,1201,"Viterbo","VT","056035","Montalto di Castro"]
["Lazio","Montefiascone","Montefiascone (VT) ","ENTE DI GOVERNO DELL'A.T.O. N° 1 LAZIO NORD - VITERBO",1201,1201,"Viterbo","VT","056036","Montefiascone"]
["Lazio","Monte Romano","Monte Romano (VT) ","ENTE DI GOVERNO DELL'A.T.O. N° 1 LAZIO NORD - VITERBO",1201,1201,"Viterbo","VT","056037","Monte Romano"]
["Lazio","Monterosi","Monterosi (VT) ","ENTE DI GOVERNO DELL'A.T.O. N° 1 LAZIO NORD - VITERBO",1201,1201,"Viterbo","VT","056038","Monterosi"]
["Lazio","Nepi","Nepi (VT) ","ENTE DI GOVERNO DELL'A.T.O. N° 1 LAZIO NORD - VITERBO",1201,1201,"Viterbo","VT","056039","Nepi"]
["Lazio","Onano","Onano (VT) ","ENTE DI GOVERNO DELL'A.T.O. N° 1 LAZIO NORD - VITERBO",1201,1201,"Viterbo","VT","056040","Onano"]
["Lazio","Oriolo Romano","Oriolo Romano (VT) ","Ambito Territoriale Ottimale 2 Lazio Centrale - Roma",1202,1202,"Viterbo","VT","056041","Oriolo Romano"]
["Lazio","Orte","Orte (VT) ","ENTE DI GOVERNO DELL'A.T.O. N° 1 LAZIO NORD - VITERBO",1201,1201,"Viterbo","VT","056042","Orte"]
["Lazio","Piansano","Piansano (VT) ","ENTE DI GOVERNO DELL'A.T.O. N° 1 LAZIO NORD - VITERBO",1201,1201,"Viterbo","VT","056043","Piansano"]
["Lazio","Proceno","Proceno (VT) ","ENTE DI GOVERNO DELL'A.T.O. N° 1 LAZIO NORD - VITERBO",1201,1201,"Viterbo","VT","056044","Proceno"]
["Lazio","Ronciglione","Ronciglione (VT) ","ENTE DI GOVERNO DELL'A.T.O. N° 1 LAZIO NORD - VITERBO",1201,1201,"Viterbo","VT","056045","Ronciglione"]
["Lazio","Villa San Giovanni in Tuscia","Villa San Giovanni in Tuscia (VT) ","ENTE DI GOVERNO DELL'A.T.O. N° 1 LAZIO NORD - VITERBO",1201,1201,"Viterbo","VT","056046","Villa San Giovanni in Tuscia"]
["Lazio","San Lorenzo Nuovo","San Lorenzo Nuovo (VT) ","ENTE DI GOVERNO DELL'A.T.O. N° 1 LAZIO NORD - VITERBO",1201,1201,"Viterbo","VT","056047","San Lorenzo Nuovo"]
["Lazio","Soriano nel Cimino","Soriano nel Cimino (VT) ","ENTE DI GOVERNO DELL'A.T.O. N° 1 LAZIO NORD - VITERBO",1201,1201,"Viterbo","VT","056048","Soriano nel Cimino"]
["Lazio","Sutri","Sutri (VT) ","ENTE DI GOVERNO DELL'A.T.O. N° 1 LAZIO NORD - VITERBO",1201,1201,"Viterbo","VT","056049","Sutri"]
["Lazio","Tarquinia","Tarquinia (VT) ","ENTE DI GOVERNO DELL'A.T.O. N° 1 LAZIO NORD - VITERBO",1201,1201,"Viterbo","VT","056050","Tarquinia"]
["Lazio","Tessennano","Tessennano (VT) ","ENTE DI GOVERNO DELL'A.T.O. N° 1 LAZIO NORD - VITERBO",1201,1201,"Viterbo","VT","056051","Tessennano"]
["Lazio","Tuscania","Tuscania (VT) ","ENTE DI GOVERNO DELL'A.T.O. N° 1 LAZIO NORD - VITERBO",1201,1201,"Viterbo","VT","056052","Tuscania"]
["Lazio","Valentano","Valentano (VT) ","ENTE DI GOVERNO DELL'A.T.O. N° 1 LAZIO NORD - VITERBO",1201,1201,"Viterbo","VT","056053","Valentano"]
["Lazio","Vallerano","Vallerano (VT) ","ENTE DI GOVERNO DELL'A.T.O. N° 1 LAZIO NORD - VITERBO",1201,1201,"Viterbo","VT","056054","Vallerano"]
["Lazio","Vasanello","Vasanello (VT) ","ENTE DI GOVERNO DELL'A.T.O. N° 1 LAZIO NORD - VITERBO",1201,1201,"Viterbo","VT","056055","Vasanello"]
["Lazio","Vejano","Vejano (VT) ","Ambito Territoriale Ottimale 2 Lazio Centrale - Roma",1202,1202,"Viterbo","VT","056056","Vejano"]
["Lazio","Vetralla","Vetralla (VT) ","ENTE DI GOVERNO DELL'A.T.O. N° 1 LAZIO NORD - VITERBO",1201,1201,"Viterbo","VT","056057","Vetralla"]
["Lazio","Vignanello","Vignanello (VT) ","ENTE DI GOVERNO DELL'A.T.O. N° 1 LAZIO NORD - VITERBO",1201,1201,"Viterbo","VT","056058","Vignanello"]
["Lazio","Viterbo","Viterbo (VT) ","ENTE DI GOVERNO DELL'A.T.O. N° 1 LAZIO NORD - VITERBO",1201,1201,"Viterbo","VT","056059","Viterbo"]
["Lazio","Vitorchiano","Vitorchiano (VT) ","ENTE DI GOVERNO DELL'A.T.O. N° 1 LAZIO NORD - VITERBO",1201,1201,"Viterbo","VT","056060","Vitorchiano"]
["Lazio","Accumoli","Accumoli (RI) ","Autorità dell'Ambito Territoriale Ottimale n.3 Lazio Centrale - Rieti",1203,1203,"Rieti","RI","057001","Accumoli"]
["Lazio","Amatrice","Amatrice (RI) ","Autorità dell'Ambito Territoriale Ottimale n.3 Lazio Centrale - Rieti",1203,1203,"Rieti","RI","057002","Amatrice"]
["Lazio","Antrodoco","Antrodoco (RI) ","Autorità dell'Ambito Territoriale Ottimale n.3 Lazio Centrale - Rieti",1203,1203,"Rieti","RI","057003","Antrodoco"]
["Lazio","Ascrea","Ascrea (RI) ","Autorità dell'Ambito Territoriale Ottimale n.3 Lazio Centrale - Rieti",1203,1203,"Rieti","RI","057004","Ascrea"]
["Lazio","Belmonte in Sabina","Belmonte in Sabina (RI) ","Autorità dell'Ambito Territoriale Ottimale n.3 Lazio Centrale - Rieti",1203,1203,"Rieti","RI","057005","Belmonte in Sabina"]
["Lazio","Borbona","Borbona (RI) ","Autorità dell'Ambito Territoriale Ottimale n.3 Lazio Centrale - Rieti",1203,1203,"Rieti","RI","057006","Borbona"]
["Lazio","Borgorose","Borgorose (RI) ","Autorità dell'Ambito Territoriale Ottimale n.3 Lazio Centrale - Rieti",1203,1203,"Rieti","RI","057007","Borgorose"]
["Lazio","Borgo Velino","Borgo Velino (RI) ","Autorità dell'Ambito Territoriale Ottimale n.3 Lazio Centrale - Rieti",1203,1203,"Rieti","RI","057008","Borgo Velino"]
["Lazio","Cantalice","Cantalice (RI) ","Autorità dell'Ambito Territoriale Ottimale n.3 Lazio Centrale - Rieti",1203,1203,"Rieti","RI","057009","Cantalice"]
["Lazio","Cantalupo in Sabina","Cantalupo in Sabina (RI) ","Autorità dell'Ambito Territoriale Ottimale n.3 Lazio Centrale - Rieti",1203,1203,"Rieti","RI","057010","Cantalupo in Sabina"]
["Lazio","Casaprota","Casaprota (RI) ","Autorità dell'Ambito Territoriale Ottimale n.3 Lazio Centrale - Rieti",1203,1203,"Rieti","RI","057011","Casaprota"]
["Lazio","Casperia","Casperia (RI) ","Autorità dell'Ambito Territoriale Ottimale n.3 Lazio Centrale - Rieti",1203,1203,"Rieti","RI","057012","Casperia"]
["Lazio","Castel di Tora","Castel di Tora (RI) ","Autorità dell'Ambito Territoriale Ottimale n.3 Lazio Centrale - Rieti",1203,1203,"Rieti","RI","057013","Castel di Tora"]
["Lazio","Castelnuovo di Farfa","Castelnuovo di Farfa (RI) ","Autorità dell'Ambito Territoriale Ottimale n.3 Lazio Centrale - Rieti",1203,1203,"Rieti","RI","057014","Castelnuovo di Farfa"]
["Lazio","Castel Sant'Angelo","Castel Sant'Angelo (RI) ","Autorità dell'Ambito Territoriale Ottimale n.3 Lazio Centrale - Rieti",1203,1203,"Rieti","RI","057015","Castel Sant'Angelo"]
["Lazio","Cittaducale","Cittaducale (RI) ","Autorità dell'Ambito Territoriale Ottimale n.3 Lazio Centrale - Rieti",1203,1203,"Rieti","RI","057016","Cittaducale"]
["Lazio","Cittareale","Cittareale (RI) ","Autorità dell'Ambito Territoriale Ottimale n.3 Lazio Centrale - Rieti",1203,1203,"Rieti","RI","057017","Cittareale"]
["Lazio","Collalto Sabino","Collalto Sabino (RI) ","Autorità dell'Ambito Territoriale Ottimale n.3 Lazio Centrale - Rieti",1203,1203,"Rieti","RI","057018","Collalto Sabino"]
["Lazio","Colle di Tora","Colle di Tora (RI) ","Autorità dell'Ambito Territoriale Ottimale n.3 Lazio Centrale - Rieti",1203,1203,"Rieti","RI","057019","Colle di Tora"]
["Lazio","Collegiove","Collegiove (RI) ","Autorità dell'Ambito Territoriale Ottimale n.3 Lazio Centrale - Rieti",1203,1203,"Rieti","RI","057020","Collegiove"]
["Lazio","Collevecchio","Collevecchio (RI) ","Autorità dell'Ambito Territoriale Ottimale n.3 Lazio Centrale - Rieti",1203,1203,"Rieti","RI","057021","Collevecchio"]
["Lazio","Colli sul Velino","Colli sul Velino (RI) ","Autorità dell'Ambito Territoriale Ottimale n.3 Lazio Centrale - Rieti",1203,1203,"Rieti","RI","057022","Colli sul Velino"]
["Lazio","Concerviano","Concerviano (RI) ","Autorità dell'Ambito Territoriale Ottimale n.3 Lazio Centrale - Rieti",1203,1203,"Rieti","RI","057023","Concerviano"]
["Lazio","Configni","Configni (RI) ","Autorità dell'Ambito Territoriale Ottimale n.3 Lazio Centrale - Rieti",1203,1203,"Rieti","RI","057024","Configni"]
["Lazio","Contigliano","Contigliano (RI) ","Autorità dell'Ambito Territoriale Ottimale n.3 Lazio Centrale - Rieti",1203,1203,"Rieti","RI","057025","Contigliano"]
["Lazio","Cottanello","Cottanello (RI) ","Autorità dell'Ambito Territoriale Ottimale n.3 Lazio Centrale - Rieti",1203,1203,"Rieti","RI","057026","Cottanello"]
["Lazio","Fara in Sabina","Fara in Sabina (RI) ","Autorità dell'Ambito Territoriale Ottimale n.3 Lazio Centrale - Rieti",1203,1203,"Rieti","RI","057027","Fara in Sabina"]
["Lazio","Fiamignano","Fiamignano (RI) ","Autorità dell'Ambito Territoriale Ottimale n.3 Lazio Centrale - Rieti",1203,1203,"Rieti","RI","057028","Fiamignano"]
["Lazio","Forano","Forano (RI) ","Autorità dell'Ambito Territoriale Ottimale n.3 Lazio Centrale - Rieti",1203,1203,"Rieti","RI","057029","Forano"]
["Lazio","Frasso Sabino","Frasso Sabino (RI) ","Autorità dell'Ambito Territoriale Ottimale n.3 Lazio Centrale - Rieti",1203,1203,"Rieti","RI","057030","Frasso Sabino"]
["Lazio","Greccio","Greccio (RI) ","Autorità dell'Ambito Territoriale Ottimale n.3 Lazio Centrale - Rieti",1203,1203,"Rieti","RI","057031","Greccio"]
["Lazio","Labro","Labro (RI) ","Autorità dell'Ambito Territoriale Ottimale n.3 Lazio Centrale - Rieti",1203,1203,"Rieti","RI","057032","Labro"]
["Lazio","Leonessa","Leonessa (RI) ","Autorità dell'Ambito Territoriale Ottimale n.3 Lazio Centrale - Rieti",1203,1203,"Rieti","RI","057033","Leonessa"]
["Lazio","Longone Sabino","Longone Sabino (RI) ","Autorità dell'Ambito Territoriale Ottimale n.3 Lazio Centrale - Rieti",1203,1203,"Rieti","RI","057034","Longone Sabino"]
["Lazio","Magliano Sabina","Magliano Sabina (RI) ","Autorità dell'Ambito Territoriale Ottimale n.3 Lazio Centrale - Rieti",1203,1203,"Rieti","RI","057035","Magliano Sabina"]
["Lazio","Marcetelli","Marcetelli (RI) ","Autorità dell'Ambito Territoriale Ottimale n.3 Lazio Centrale - Rieti",1203,1203,"Rieti","RI","057036","Marcetelli"]
["Lazio","Micigliano","Micigliano (RI) ","Autorità dell'Ambito Territoriale Ottimale n.3 Lazio Centrale - Rieti",1203,1203,"Rieti","RI","057037","Micigliano"]
["Lazio","Mompeo","Mompeo (RI) ","Autorità dell'Ambito Territoriale Ottimale n.3 Lazio Centrale - Rieti",1203,1203,"Rieti","RI","057038","Mompeo"]
["Lazio","Montasola","Montasola (RI) ","Autorità dell'Ambito Territoriale Ottimale n.3 Lazio Centrale - Rieti",1203,1203,"Rieti","RI","057039","Montasola"]
["Lazio","Montebuono","Montebuono (RI) ","Autorità dell'Ambito Territoriale Ottimale n.3 Lazio Centrale - Rieti",1203,1203,"Rieti","RI","057040","Montebuono"]
["Lazio","Monteleone Sabino","Monteleone Sabino (RI) ","Autorità dell'Ambito Territoriale Ottimale n.3 Lazio Centrale - Rieti",1203,1203,"Rieti","RI","057041","Monteleone Sabino"]
["Lazio","Montenero Sabino","Montenero Sabino (RI) ","Autorità dell'Ambito Territoriale Ottimale n.3 Lazio Centrale - Rieti",1203,1203,"Rieti","RI","057042","Montenero Sabino"]
["Lazio","Monte San Giovanni in Sabina","Monte San Giovanni in Sabina (RI) ","Autorità dell'Ambito Territoriale Ottimale n.3 Lazio Centrale - Rieti",1203,1203,"Rieti","RI","057043","Monte San Giovanni in Sabina"]
["Lazio","Montopoli di Sabina","Montopoli di Sabina (RI) ","Autorità dell'Ambito Territoriale Ottimale n.3 Lazio Centrale - Rieti",1203,1203,"Rieti","RI","057044","Montopoli di Sabina"]
["Lazio","Morro Reatino","Morro Reatino (RI) ","Autorità dell'Ambito Territoriale Ottimale n.3 Lazio Centrale - Rieti",1203,1203,"Rieti","RI","057045","Morro Reatino"]
["Lazio","Nespolo","Nespolo (RI) ","Autorità dell'Ambito Territoriale Ottimale n.3 Lazio Centrale - Rieti",1203,1203,"Rieti","RI","057046","Nespolo"]
["Lazio","Orvinio","Orvinio (RI) ","Autorità dell'Ambito Territoriale Ottimale n.3 Lazio Centrale - Rieti",1203,1203,"Rieti","RI","057047","Orvinio"]
["Lazio","Paganico Sabino","Paganico Sabino (RI) ","Autorità dell'Ambito Territoriale Ottimale n.3 Lazio Centrale - Rieti",1203,1203,"Rieti","RI","057048","Paganico Sabino"]
["Lazio","Pescorocchiano","Pescorocchiano (RI) ","Autorità dell'Ambito Territoriale Ottimale n.3 Lazio Centrale - Rieti",1203,1203,"Rieti","RI","057049","Pescorocchiano"]
["Lazio","Petrella Salto","Petrella Salto (RI) ","Autorità dell'Ambito Territoriale Ottimale n.3 Lazio Centrale - Rieti",1203,1203,"Rieti","RI","057050","Petrella Salto"]
["Lazio","Poggio Bustone","Poggio Bustone (RI) ","Autorità dell'Ambito Territoriale Ottimale n.3 Lazio Centrale - Rieti",1203,1203,"Rieti","RI","057051","Poggio Bustone"]
["Lazio","Poggio Catino","Poggio Catino (RI) ","Autorità dell'Ambito Territoriale Ottimale n.3 Lazio Centrale - Rieti",1203,1203,"Rieti","RI","057052","Poggio Catino"]
["Lazio","Poggio Mirteto","Poggio Mirteto (RI) ","Autorità dell'Ambito Territoriale Ottimale n.3 Lazio Centrale - Rieti",1203,1203,"Rieti","RI","057053","Poggio Mirteto"]
["Lazio","Poggio Moiano","Poggio Moiano (RI) ","Autorità dell'Ambito Territoriale Ottimale n.3 Lazio Centrale - Rieti",1203,1203,"Rieti","RI","057054","Poggio Moiano"]
["Lazio","Poggio Nativo","Poggio Nativo (RI) ","Autorità dell'Ambito Territoriale Ottimale n.3 Lazio Centrale - Rieti",1203,1203,"Rieti","RI","057055","Poggio Nativo"]
["Lazio","Poggio San Lorenzo","Poggio San Lorenzo (RI) ","Autorità dell'Ambito Territoriale Ottimale n.3 Lazio Centrale - Rieti",1203,1203,"Rieti","RI","057056","Poggio San Lorenzo"]
["Lazio","Posta","Posta (RI) ","Autorità dell'Ambito Territoriale Ottimale n.3 Lazio Centrale - Rieti",1203,1203,"Rieti","RI","057057","Posta"]
["Lazio","Pozzaglia Sabina","Pozzaglia Sabina (RI) ","Autorità dell'Ambito Territoriale Ottimale n.3 Lazio Centrale - Rieti",1203,1203,"Rieti","RI","057058","Pozzaglia Sabina"]
["Lazio","Rieti","Rieti (RI) ","Autorità dell'Ambito Territoriale Ottimale n.3 Lazio Centrale - Rieti",1203,1203,"Rieti","RI","057059","Rieti"]
["Lazio","Rivodutri","Rivodutri (RI) ","Autorità dell'Ambito Territoriale Ottimale n.3 Lazio Centrale - Rieti",1203,1203,"Rieti","RI","057060","Rivodutri"]
["Lazio","Roccantica","Roccantica (RI) ","Autorità dell'Ambito Territoriale Ottimale n.3 Lazio Centrale - Rieti",1203,1203,"Rieti","RI","057061","Roccantica"]
["Lazio","Rocca Sinibalda","Rocca Sinibalda (RI) ","Autorità dell'Ambito Territoriale Ottimale n.3 Lazio Centrale - Rieti",1203,1203,"Rieti","RI","057062","Rocca Sinibalda"]
["Lazio","Salisano","Salisano (RI) ","Autorità dell'Ambito Territoriale Ottimale n.3 Lazio Centrale - Rieti",1203,1203,"Rieti","RI","057063","Salisano"]
["Lazio","Scandriglia","Scandriglia (RI) ","Autorità dell'Ambito Territoriale Ottimale n.3 Lazio Centrale - Rieti",1203,1203,"Rieti","RI","057064","Scandriglia"]
["Lazio","Selci","Selci (RI) ","Autorità dell'Ambito Territoriale Ottimale n.3 Lazio Centrale - Rieti",1203,1203,"Rieti","RI","057065","Selci"]
["Lazio","Stimigliano","Stimigliano (RI) ","Autorità dell'Ambito Territoriale Ottimale n.3 Lazio Centrale - Rieti",1203,1203,"Rieti","RI","057066","Stimigliano"]
["Lazio","Tarano","Tarano (RI) ","Autorità dell'Ambito Territoriale Ottimale n.3 Lazio Centrale - Rieti",1203,1203,"Rieti","RI","057067","Tarano"]
["Lazio","Toffia","Toffia (RI) ","Autorità dell'Ambito Territoriale Ottimale n.3 Lazio Centrale - Rieti",1203,1203,"Rieti","RI","057068","Toffia"]
["Lazio","Torricella in Sabina","Torricella in Sabina (RI) ","Autorità dell'Ambito Territoriale Ottimale n.3 Lazio Centrale - Rieti",1203,1203,"Rieti","RI","057069","Torricella in Sabina"]
["Lazio","Torri in Sabina","Torri in Sabina (RI) ","Autorità dell'Ambito Territoriale Ottimale n.3 Lazio Centrale - Rieti",1203,1203,"Rieti","RI","057070","Torri in Sabina"]
["Lazio","Turania","Turania (RI) ","Autorità dell'Ambito Territoriale Ottimale n.3 Lazio Centrale - Rieti",1203,1203,"Rieti","RI","057071","Turania"]
["Lazio","Vacone","Vacone (RI) ","Autorità dell'Ambito Territoriale Ottimale n.3 Lazio Centrale - Rieti",1203,1203,"Rieti","RI","057072","Vacone"]
["Lazio","Varco Sabino","Varco Sabino (RI) ","Autorità dell'Ambito Territoriale Ottimale n.3 Lazio Centrale - Rieti",1203,1203,"Rieti","RI","057073","Varco Sabino"]
["Lazio","Affile","Affile (RM) ","Ambito Territoriale Ottimale 2 Lazio Centrale - Roma",1202,1202,"Roma","RM","058001","Affile"]
["Lazio","Agosta","Agosta (RM) ","Ambito Territoriale Ottimale 2 Lazio Centrale - Roma",1202,1202,"Roma","RM","058002","Agosta"]
["Lazio","Albano Laziale","Albano Laziale (RM) ","Ambito Territoriale Ottimale 2 Lazio Centrale - Roma",1202,1202,"Roma","RM","058003","Albano Laziale"]
["Lazio","Allumiere","Allumiere (RM) ","Ambito Territoriale Ottimale 2 Lazio Centrale - Roma",1202,1202,"Roma","RM","058004","Allumiere"]
["Lazio","Anguillara Sabazia","Anguillara Sabazia (RM) ","Ambito Territoriale Ottimale 2 Lazio Centrale - Roma",1202,1202,"Roma","RM","058005","Anguillara Sabazia"]
["Lazio","Anticoli Corrado","Anticoli Corrado (RM) ","Ambito Territoriale Ottimale 2 Lazio Centrale - Roma",1202,1202,"Roma","RM","058006","Anticoli Corrado"]
["Lazio","Anzio","Anzio (RM) ","ENTE D'AMBITO TERRITORIALE OTTIMALE n4 \"LAZIO MERIDIONALE-LATINA\"",1204,1204,"Roma","RM","058007","Anzio"]
["Lazio","Arcinazzo Romano","Arcinazzo Romano (RM) ","Ambito Territoriale Ottimale 2 Lazio Centrale - Roma",1202,1202,"Roma","RM","058008","Arcinazzo Romano"]
["Lazio","Ariccia","Ariccia (RM) ","Ambito Territoriale Ottimale 2 Lazio Centrale - Roma",1202,1202,"Roma","RM","058009","Ariccia"]
["Lazio","Arsoli","Arsoli (RM) ","Ambito Territoriale Ottimale 2 Lazio Centrale - Roma",1202,1202,"Roma","RM","058010","Arsoli"]
["Lazio","Artena","Artena (RM) ","Ambito Territoriale Ottimale 2 Lazio Centrale - Roma",1202,1202,"Roma","RM","058011","Artena"]
["Lazio","Bellegra","Bellegra (RM) ","Ambito Territoriale Ottimale 2 Lazio Centrale - Roma",1202,1202,"Roma","RM","058012","Bellegra"]
["Lazio","Bracciano","Bracciano (RM) ","Ambito Territoriale Ottimale 2 Lazio Centrale - Roma",1202,1202,"Roma","RM","058013","Bracciano"]
["Lazio","Camerata Nuova","Camerata Nuova (RM) ","Ambito Territoriale Ottimale 2 Lazio Centrale - Roma",1202,1202,"Roma","RM","058014","Camerata Nuova"]
["Lazio","Campagnano di Roma","Campagnano di Roma (RM) ","Ambito Territoriale Ottimale 2 Lazio Centrale - Roma",1202,1202,"Roma","RM","058015","Campagnano di Roma"]
["Lazio","Canale Monterano","Canale Monterano (RM) ","Ambito Territoriale Ottimale 2 Lazio Centrale - Roma",1202,1202,"Roma","RM","058016","Canale Monterano"]
["Lazio","Canterano","Canterano (RM) ","Ambito Territoriale Ottimale 2 Lazio Centrale - Roma",1202,1202,"Roma","RM","058017","Canterano"]
["Lazio","Capena","Capena (RM) ","Ambito Territoriale Ottimale 2 Lazio Centrale - Roma",1202,1202,"Roma","RM","058018","Capena"]
["Lazio","Capranica Prenestina","Capranica Prenestina (RM) ","Ambito Territoriale Ottimale 2 Lazio Centrale - Roma",1202,1202,"Roma","RM","058019","Capranica Prenestina"]
["Lazio","Carpineto Romano","Carpineto Romano (RM) ","Ambito Territoriale Ottimale 2 Lazio Centrale - Roma",1202,1202,"Roma","RM","058020","Carpineto Romano"]
["Lazio","Casape","Casape (RM) ","Ambito Territoriale Ottimale 2 Lazio Centrale - Roma",1202,1202,"Roma","RM","058021","Casape"]
["Lazio","Castel Gandolfo","Castel Gandolfo (RM) ","Ambito Territoriale Ottimale 2 Lazio Centrale - Roma",1202,1202,"Roma","RM","058022","Castel Gandolfo"]
["Lazio","Castel Madama","Castel Madama (RM) ","Ambito Territoriale Ottimale 2 Lazio Centrale - Roma",1202,1202,"Roma","RM","058023","Castel Madama"]
["Lazio","Castelnuovo di Porto","Castelnuovo di Porto (RM) ","Ambito Territoriale Ottimale 2 Lazio Centrale - Roma",1202,1202,"Roma","RM","058024","Castelnuovo di Porto"]
["Lazio","Castel San Pietro Romano","Castel San Pietro Romano (RM) ","Ambito Territoriale Ottimale 2 Lazio Centrale - Roma",1202,1202,"Roma","RM","058025","Castel San Pietro Romano"]
["Lazio","Cave","Cave (RM) ","Ambito Territoriale Ottimale 2 Lazio Centrale - Roma",1202,1202,"Roma","RM","058026","Cave"]
["Lazio","Cerreto Laziale","Cerreto Laziale (RM) ","Ambito Territoriale Ottimale 2 Lazio Centrale - Roma",1202,1202,"Roma","RM","058027","Cerreto Laziale"]
["Lazio","Cervara di Roma","Cervara di Roma (RM) ","Ambito Territoriale Ottimale 2 Lazio Centrale - Roma",1202,1202,"Roma","RM","058028","Cervara di Roma"]
["Lazio","Cerveteri","Cerveteri (RM) ","Ambito Territoriale Ottimale 2 Lazio Centrale - Roma",1202,1202,"Roma","RM","058029","Cerveteri"]
["Lazio","Ciciliano","Ciciliano (RM) ","Ambito Territoriale Ottimale 2 Lazio Centrale - Roma",1202,1202,"Roma","RM","058030","Ciciliano"]
["Lazio","Cineto Romano","Cineto Romano (RM) ","Ambito Territoriale Ottimale 2 Lazio Centrale - Roma",1202,1202,"Roma","RM","058031","Cineto Romano"]
["Lazio","Civitavecchia","Civitavecchia (RM) ","Ambito Territoriale Ottimale 2 Lazio Centrale - Roma",1202,1202,"Roma","RM","058032","Civitavecchia"]
["Lazio","Civitella San Paolo","Civitella San Paolo (RM) ","Ambito Territoriale Ottimale 2 Lazio Centrale - Roma",1202,1202,"Roma","RM","058033","Civitella San Paolo"]
["Lazio","Colleferro","Colleferro (RM) ","Ambito Territoriale Ottimale 2 Lazio Centrale - Roma",1202,1202,"Roma","RM","058034","Colleferro"]
["Lazio","Colonna","Colonna (RM) ","Ambito Territoriale Ottimale 2 Lazio Centrale - Roma",1202,1202,"Roma","RM","058035","Colonna"]
["Lazio","Fiano Romano","Fiano Romano (RM) ","Ambito Territoriale Ottimale 2 Lazio Centrale - Roma",1202,1202,"Roma","RM","058036","Fiano Romano"]
["Lazio","Filacciano","Filacciano (RM) ","Ambito Territoriale Ottimale 2 Lazio Centrale - Roma",1202,1202,"Roma","RM","058037","Filacciano"]
["Lazio","Formello","Formello (RM) ","Ambito Territoriale Ottimale 2 Lazio Centrale - Roma",1202,1202,"Roma","RM","058038","Formello"]
["Lazio","Frascati","Frascati (RM) ","Ambito Territoriale Ottimale 2 Lazio Centrale - Roma",1202,1202,"Roma","RM","058039","Frascati"]
["Lazio","Gallicano nel Lazio","Gallicano nel Lazio (RM) ","Ambito Territoriale Ottimale 2 Lazio Centrale - Roma",1202,1202,"Roma","RM","058040","Gallicano nel Lazio"]
["Lazio","Gavignano","Gavignano (RM) ","Ambito Territoriale Ottimale 2 Lazio Centrale - Roma",1202,1202,"Roma","RM","058041","Gavignano"]
["Lazio","Genazzano","Genazzano (RM) ","Ambito Territoriale Ottimale 2 Lazio Centrale - Roma",1202,1202,"Roma","RM","058042","Genazzano"]
["Lazio","Genzano di Roma","Genzano di Roma (RM) ","Ambito Territoriale Ottimale 2 Lazio Centrale - Roma",1202,1202,"Roma","RM","058043","Genzano di Roma"]
["Lazio","Gerano","Gerano (RM) ","Ambito Territoriale Ottimale 2 Lazio Centrale - Roma",1202,1202,"Roma","RM","058044","Gerano"]
["Lazio","Gorga","Gorga (RM) ","Ambito Territoriale Ottimale 2 Lazio Centrale - Roma",1202,1202,"Roma","RM","058045","Gorga"]
["Lazio","Grottaferrata","Grottaferrata (RM) ","Ambito Territoriale Ottimale 2 Lazio Centrale - Roma",1202,1202,"Roma","RM","058046","Grottaferrata"]
["Lazio","Guidonia Montecelio","Guidonia Montecelio (RM) ","Ambito Territoriale Ottimale 2 Lazio Centrale - Roma",1202,1202,"Roma","RM","058047","Guidonia Montecelio"]
["Lazio","Jenne","Jenne (RM) ","Ambito Territoriale Ottimale 2 Lazio Centrale - Roma",1202,1202,"Roma","RM","058048","Jenne"]
["Lazio","Labico","Labico (RM) ","Ambito Territoriale Ottimale 2 Lazio Centrale - Roma",1202,1202,"Roma","RM","058049","Labico"]
["Lazio","Lanuvio","Lanuvio (RM) ","Ambito Territoriale Ottimale 2 Lazio Centrale - Roma",1202,1202,"Roma","RM","058050","Lanuvio"]
["Lazio","Licenza","Licenza (RM) ","Ambito Territoriale Ottimale 2 Lazio Centrale - Roma",1202,1202,"Roma","RM","058051","Licenza"]
["Lazio","Magliano Romano","Magliano Romano (RM) ","ENTE DI GOVERNO DELL'A.T.O. N° 1 LAZIO NORD - VITERBO",1201,1201,"Roma","RM","058052","Magliano Romano"]
["Lazio","Mandela","Mandela (RM) ","Ambito Territoriale Ottimale 2 Lazio Centrale - Roma",1202,1202,"Roma","RM","058053","Mandela"]
["Lazio","Manziana","Manziana (RM) ","Ambito Territoriale Ottimale 2 Lazio Centrale - Roma",1202,1202,"Roma","RM","058054","Manziana"]
["Lazio","Marano Equo","Marano Equo (RM) ","Ambito Territoriale Ottimale 2 Lazio Centrale - Roma",1202,1202,"Roma","RM","058055","Marano Equo"]
["Lazio","Marcellina","Marcellina (RM) ","Ambito Territoriale Ottimale 2 Lazio Centrale - Roma",1202,1202,"Roma","RM","058056","Marcellina"]
["Lazio","Marino","Marino (RM) ","Ambito Territoriale Ottimale 2 Lazio Centrale - Roma",1202,1202,"Roma","RM","058057","Marino"]
["Lazio","Mazzano Romano","Mazzano Romano (RM) ","ENTE DI GOVERNO DELL'A.T.O. N° 1 LAZIO NORD - VITERBO",1201,1201,"Roma","RM","058058","Mazzano Romano"]
["Lazio","Mentana","Mentana (RM) ","Ambito Territoriale Ottimale 2 Lazio Centrale - Roma",1202,1202,"Roma","RM","058059","Mentana"]
["Lazio","Monte Compatri","Monte Compatri (RM) ","Ambito Territoriale Ottimale 2 Lazio Centrale - Roma",1202,1202,"Roma","RM","058060","Monte Compatri"]
["Lazio","Monteflavio","Monteflavio (RM) ","Autorità dell'Ambito Territoriale Ottimale n.3 Lazio Centrale - Rieti",1203,1203,"Roma","RM","058061","Monteflavio"]
["Lazio","Montelanico","Montelanico (RM) ","Ambito Territoriale Ottimale 2 Lazio Centrale - Roma",1202,1202,"Roma","RM","058062","Montelanico"]
["Lazio","Montelibretti","Montelibretti (RM) ","Autorità dell'Ambito Territoriale Ottimale n.3 Lazio Centrale - Rieti",1203,1203,"Roma","RM","058063","Montelibretti"]
["Lazio","Monte Porzio Catone","Monte Porzio Catone (RM) ","Ambito Territoriale Ottimale 2 Lazio Centrale - Roma",1202,1202,"Roma","RM","058064","Monte Porzio Catone"]
["Lazio","Monterotondo","Monterotondo (RM) ","Ambito Territoriale Ottimale 2 Lazio Centrale - Roma",1202,1202,"Roma","RM","058065","Monterotondo"]
["Lazio","Montorio Romano","Montorio Romano (RM) ","Autorità dell'Ambito Territoriale Ottimale n.3 Lazio Centrale - Rieti",1203,1203,"Roma","RM","058066","Montorio Romano"]
["Lazio","Moricone","Moricone (RM) ","Autorità dell'Ambito Territoriale Ottimale n.3 Lazio Centrale - Rieti",1203,1203,"Roma","RM","058067","Moricone"]
["Lazio","Morlupo","Morlupo (RM) ","Ambito Territoriale Ottimale 2 Lazio Centrale - Roma",1202,1202,"Roma","RM","058068","Morlupo"]
["Lazio","Nazzano","Nazzano (RM) ","Ambito Territoriale Ottimale 2 Lazio Centrale - Roma",1202,1202,"Roma","RM","058069","Nazzano"]
["Lazio","Nemi","Nemi (RM) ","Ambito Territoriale Ottimale 2 Lazio Centrale - Roma",1202,1202,"Roma","RM","058070","Nemi"]
["Lazio","Nerola","Nerola (RM) ","Autorità dell'Ambito Territoriale Ottimale n.3 Lazio Centrale - Rieti",1203,1203,"Roma","RM","058071","Nerola"]
["Lazio","Nettuno","Nettuno (RM) ","ENTE D'AMBITO TERRITORIALE OTTIMALE n4 \"LAZIO MERIDIONALE-LATINA\"",1204,1204,"Roma","RM","058072","Nettuno"]
["Lazio","Olevano Romano","Olevano Romano (RM) ","Ambito Territoriale Ottimale 2 Lazio Centrale - Roma",1202,1202,"Roma","RM","058073","Olevano Romano"]
["Lazio","Palestrina","Palestrina (RM) ","Ambito Territoriale Ottimale 2 Lazio Centrale - Roma",1202,1202,"Roma","RM","058074","Palestrina"]
["Lazio","Palombara Sabina","Palombara Sabina (RM) ","Autorità dell'Ambito Territoriale Ottimale n.3 Lazio Centrale - Rieti",1203,1203,"Roma","RM","058075","Palombara Sabina"]
["Lazio","Percile","Percile (RM) ","Ambito Territoriale Ottimale 2 Lazio Centrale - Roma",1202,1202,"Roma","RM","058076","Percile"]
["Lazio","Pisoniano","Pisoniano (RM) ","Ambito Territoriale Ottimale 2 Lazio Centrale - Roma",1202,1202,"Roma","RM","058077","Pisoniano"]
["Lazio","Poli","Poli (RM) ","Ambito Territoriale Ottimale 2 Lazio Centrale - Roma",1202,1202,"Roma","RM","058078","Poli"]
["Lazio","Pomezia","Pomezia (RM) ","Ambito Territoriale Ottimale 2 Lazio Centrale - Roma",1202,1202,"Roma","RM","058079","Pomezia"]
["Lazio","Ponzano Romano","Ponzano Romano (RM) ","Ambito Territoriale Ottimale 2 Lazio Centrale - Roma",1202,1202,"Roma","RM","058080","Ponzano Romano"]
["Lazio","Riano","Riano (RM) ","Ambito Territoriale Ottimale 2 Lazio Centrale - Roma",1202,1202,"Roma","RM","058081","Riano"]
["Lazio","Rignano Flaminio","Rignano Flaminio (RM) ","Ambito Territoriale Ottimale 2 Lazio Centrale - Roma",1202,1202,"Roma","RM","058082","Rignano Flaminio"]
["Lazio","Riofreddo","Riofreddo (RM) ","Ambito Territoriale Ottimale 2 Lazio Centrale - Roma",1202,1202,"Roma","RM","058083","Riofreddo"]
["Lazio","Rocca Canterano","Rocca Canterano (RM) ","Ambito Territoriale Ottimale 2 Lazio Centrale - Roma",1202,1202,"Roma","RM","058084","Rocca Canterano"]
["Lazio","Rocca di Cave","Rocca di Cave (RM) ","Ambito Territoriale Ottimale 2 Lazio Centrale - Roma",1202,1202,"Roma","RM","058085","Rocca di Cave"]
["Lazio","Rocca di Papa","Rocca di Papa (RM) ","Ambito Territoriale Ottimale 2 Lazio Centrale - Roma",1202,1202,"Roma","RM","058086","Rocca di Papa"]
["Lazio","Roccagiovine","Roccagiovine (RM) ","Ambito Territoriale Ottimale 2 Lazio Centrale - Roma",1202,1202,"Roma","RM","058087","Roccagiovine"]
["Lazio","Rocca Priora","Rocca Priora (RM) ","Ambito Territoriale Ottimale 2 Lazio Centrale - Roma",1202,1202,"Roma","RM","058088","Rocca Priora"]
["Lazio","Rocca Santo Stefano","Rocca Santo Stefano (RM) ","Ambito Territoriale Ottimale 2 Lazio Centrale - Roma",1202,1202,"Roma","RM","058089","Rocca Santo Stefano"]
["Lazio","Roiate","Roiate (RM) ","Ambito Territoriale Ottimale 2 Lazio Centrale - Roma",1202,1202,"Roma","RM","058090","Roiate"]
["Lazio","Roma","Roma (RM) ","Ambito Territoriale Ottimale 2 Lazio Centrale - Roma",1202,1202,"Roma","RM","058091","Roma"]
["Lazio","Roviano","Roviano (RM) ","Ambito Territoriale Ottimale 2 Lazio Centrale - Roma",1202,1202,"Roma","RM","058092","Roviano"]
["Lazio","Sacrofano","Sacrofano (RM) ","Ambito Territoriale Ottimale 2 Lazio Centrale - Roma",1202,1202,"Roma","RM","058093","Sacrofano"]
["Lazio","Sambuci","Sambuci (RM) ","Ambito Territoriale Ottimale 2 Lazio Centrale - Roma",1202,1202,"Roma","RM","058094","Sambuci"]
["Lazio","San Gregorio da Sassola","San Gregorio da Sassola (RM) ","Ambito Territoriale Ottimale 2 Lazio Centrale - Roma",1202,1202,"Roma","RM","058095","San Gregorio da Sassola"]
["Lazio","San Polo dei Cavalieri","San Polo dei Cavalieri (RM) ","Ambito Territoriale Ottimale 2 Lazio Centrale - Roma",1202,1202,"Roma","RM","058096","San Polo dei Cavalieri"]
["Lazio","Santa Marinella","Santa Marinella (RM) ","Ambito Territoriale Ottimale 2 Lazio Centrale - Roma",1202,1202,"Roma","RM","058097","Santa Marinella"]
["Lazio","Sant'Angelo Romano","Sant'Angelo Romano (RM) ","Ambito Territoriale Ottimale 2 Lazio Centrale - Roma",1202,1202,"Roma","RM","058098","Sant'Angelo Romano"]
["Lazio","Sant'Oreste","Sant'Oreste (RM) ","Ambito Territoriale Ottimale 2 Lazio Centrale - Roma",1202,1202,"Roma","RM","058099","Sant'Oreste"]
["Lazio","San Vito Romano","San Vito Romano (RM) ","Ambito Territoriale Ottimale 2 Lazio Centrale - Roma",1202,1202,"Roma","RM","058100","San Vito Romano"]
["Lazio","Saracinesco","Saracinesco (RM) ","Ambito Territoriale Ottimale 2 Lazio Centrale - Roma",1202,1202,"Roma","RM","058101","Saracinesco"]
["Lazio","Segni","Segni (RM) ","Ambito Territoriale Ottimale 2 Lazio Centrale - Roma",1202,1202,"Roma","RM","058102","Segni"]
["Lazio","Subiaco","Subiaco (RM) ","Ambito Territoriale Ottimale 2 Lazio Centrale - Roma",1202,1202,"Roma","RM","058103","Subiaco"]
["Lazio","Tivoli","Tivoli (RM) ","Ambito Territoriale Ottimale 2 Lazio Centrale - Roma",1202,1202,"Roma","RM","058104","Tivoli"]
["Lazio","Tolfa","Tolfa (RM) ","Ambito Territoriale Ottimale 2 Lazio Centrale - Roma",1202,1202,"Roma","RM","058105","Tolfa"]
["Lazio","Torrita Tiberina","Torrita Tiberina (RM) ","Ambito Territoriale Ottimale 2 Lazio Centrale - Roma",1202,1202,"Roma","RM","058106","Torrita Tiberina"]
["Lazio","Trevignano Romano","Trevignano Romano (RM) ","Ambito Territoriale Ottimale 2 Lazio Centrale - Roma",1202,1202,"Roma","RM","058107","Trevignano Romano"]
["Lazio","Vallepietra","Vallepietra (RM) ","Ambito Territoriale Ottimale 2 Lazio Centrale - Roma",1202,1202,"Roma","RM","058108","Vallepietra"]
["Lazio","Vallinfreda","Vallinfreda (RM) ","Autorità dell'Ambito Territoriale Ottimale n.3 Lazio Centrale - Rieti",1203,1203,"Roma","RM","058109","Vallinfreda"]
["Lazio","Valmontone","Valmontone (RM) ","Ambito Territoriale Ottimale 2 Lazio Centrale - Roma",1202,1202,"Roma","RM","058110","Valmontone"]
["Lazio","Velletri","Velletri (RM) ","Ambito Territoriale Ottimale 2 Lazio Centrale - Roma",1202,1202,"Roma","RM","058111","Velletri"]
["Lazio","Vicovaro","Vicovaro (RM) ","Ambito Territoriale Ottimale 2 Lazio Centrale - Roma",1202,1202,"Roma","RM","058112","Vicovaro"]
["Lazio","Vivaro Romano","Vivaro Romano (RM) ","Autorità dell'Ambito Territoriale Ottimale n.3 Lazio Centrale - Rieti",1203,1203,"Roma","RM","058113","Vivaro Romano"]
["Lazio","Zagarolo","Zagarolo (RM) ","Ambito Territoriale Ottimale 2 Lazio Centrale - Roma",1202,1202,"Roma","RM","058114","Zagarolo"]
["Lazio","Lariano","Lariano (RM) ","Ambito Territoriale Ottimale 2 Lazio Centrale - Roma",1202,1202,"Roma","RM","058115","Lariano"]
["Lazio","Ladispoli","Ladispoli (RM) ","Ambito Territoriale Ottimale 2 Lazio Centrale - Roma",1202,1202,"Roma","RM","058116","Ladispoli"]
["Lazio","Ardea","Ardea (RM) ","Ambito Territoriale Ottimale 2 Lazio Centrale - Roma",1202,1202,"Roma","RM","058117","Ardea"]
["Lazio","Ciampino","Ciampino (RM) ","Ambito Territoriale Ottimale 2 Lazio Centrale - Roma",1202,1202,"Roma","RM","058118","Ciampino"]
["Lazio","San Cesareo","San Cesareo (RM) ","Ambito Territoriale Ottimale 2 Lazio Centrale - Roma",1202,1202,"Roma","RM","058119","San Cesareo"]
["Lazio","Fiumicino","Fiumicino (RM) ","Ambito Territoriale Ottimale 2 Lazio Centrale - Roma",1202,1202,"Roma","RM","058120","Fiumicino"]
["Lazio","Fonte Nuova","Fonte Nuova (RM) ","Ambito Territoriale Ottimale 2 Lazio Centrale - Roma",1202,1202,"Roma","RM","058122","Fonte Nuova"]
["Lazio","Aprilia","Aprilia (LT) ","ENTE D'AMBITO TERRITORIALE OTTIMALE n4 \"LAZIO MERIDIONALE-LATINA\"",1204,1204,"Latina","LT","059001","Aprilia"]
["Lazio","Bassiano","Bassiano (LT) ","ENTE D'AMBITO TERRITORIALE OTTIMALE n4 \"LAZIO MERIDIONALE-LATINA\"",1204,1204,"Latina","LT","059002","Bassiano"]
["Lazio","Campodimele","Campodimele (LT) ","Autorità d'Ambito Territoriale Ottimale 5 Lazio Meridionale - Frosinone",1205,1205,"Latina","LT","059003","Campodimele"]
["Lazio","Castelforte","Castelforte (LT) ","ENTE D'AMBITO TERRITORIALE OTTIMALE n4 \"LAZIO MERIDIONALE-LATINA\"",1204,1204,"Latina","LT","059004","Castelforte"]
["Lazio","Cisterna di Latina","Cisterna di Latina (LT) ","ENTE D'AMBITO TERRITORIALE OTTIMALE n4 \"LAZIO MERIDIONALE-LATINA\"",1204,1204,"Latina","LT","059005","Cisterna di Latina"]
["Lazio","Cori","Cori (LT) ","ENTE D'AMBITO TERRITORIALE OTTIMALE n4 \"LAZIO MERIDIONALE-LATINA\"",1204,1204,"Latina","LT","059006","Cori"]
["Lazio","Fondi","Fondi (LT) ","ENTE D'AMBITO TERRITORIALE OTTIMALE n4 \"LAZIO MERIDIONALE-LATINA\"",1204,1204,"Latina","LT","059007","Fondi"]
["Lazio","Formia","Formia (LT) ","ENTE D'AMBITO TERRITORIALE OTTIMALE n4 \"LAZIO MERIDIONALE-LATINA\"",1204,1204,"Latina","LT","059008","Formia"]
["Lazio","Gaeta","Gaeta (LT) ","ENTE D'AMBITO TERRITORIALE OTTIMALE n4 \"LAZIO MERIDIONALE-LATINA\"",1204,1204,"Latina","LT","059009","Gaeta"]
["Lazio","Itri","Itri (LT) ","ENTE D'AMBITO TERRITORIALE OTTIMALE n4 \"LAZIO MERIDIONALE-LATINA\"",1204,1204,"Latina","LT","059010","Itri"]
["Lazio","Latina","Latina (LT) ","ENTE D'AMBITO TERRITORIALE OTTIMALE n4 \"LAZIO MERIDIONALE-LATINA\"",1204,1204,"Latina","LT","059011","Latina"]
["Lazio","Lenola","Lenola (LT) ","ENTE D'AMBITO TERRITORIALE OTTIMALE n4 \"LAZIO MERIDIONALE-LATINA\"",1204,1204,"Latina","LT","059012","Lenola"]
["Lazio","Maenza","Maenza (LT) ","ENTE D'AMBITO TERRITORIALE OTTIMALE n4 \"LAZIO MERIDIONALE-LATINA\"",1204,1204,"Latina","LT","059013","Maenza"]
["Lazio","Minturno","Minturno (LT) ","ENTE D'AMBITO TERRITORIALE OTTIMALE n4 \"LAZIO MERIDIONALE-LATINA\"",1204,1204,"Latina","LT","059014","Minturno"]
["Lazio","Monte San Biagio","Monte San Biagio (LT) ","ENTE D'AMBITO TERRITORIALE OTTIMALE n4 \"LAZIO MERIDIONALE-LATINA\"",1204,1204,"Latina","LT","059015","Monte San Biagio"]
["Lazio","Norma","Norma (LT) ","ENTE D'AMBITO TERRITORIALE OTTIMALE n4 \"LAZIO MERIDIONALE-LATINA\"",1204,1204,"Latina","LT","059016","Norma"]
["Lazio","Pontinia","Pontinia (LT) ","ENTE D'AMBITO TERRITORIALE OTTIMALE n4 \"LAZIO MERIDIONALE-LATINA\"",1204,1204,"Latina","LT","059017","Pontinia"]
["Lazio","Ponza","Ponza (LT) ","ENTE D'AMBITO TERRITORIALE OTTIMALE n4 \"LAZIO MERIDIONALE-LATINA\"",1204,1204,"Latina","LT","059018","Ponza"]
["Lazio","Priverno","Priverno (LT) ","ENTE D'AMBITO TERRITORIALE OTTIMALE n4 \"LAZIO MERIDIONALE-LATINA\"",1204,1204,"Latina","LT","059019","Priverno"]
["Lazio","Prossedi","Prossedi (LT) ","ENTE D'AMBITO TERRITORIALE OTTIMALE n4 \"LAZIO MERIDIONALE-LATINA\"",1204,1204,"Latina","LT","059020","Prossedi"]
["Lazio","Roccagorga","Roccagorga (LT) ","ENTE D'AMBITO TERRITORIALE OTTIMALE n4 \"LAZIO MERIDIONALE-LATINA\"",1204,1204,"Latina","LT","059021","Roccagorga"]
["Lazio","Rocca Massima","Rocca Massima (LT) ","ENTE D'AMBITO TERRITORIALE OTTIMALE n4 \"LAZIO MERIDIONALE-LATINA\"",1204,1204,"Latina","LT","059022","Rocca Massima"]
["Lazio","Roccasecca dei Volsci","Roccasecca dei Volsci (LT) ","ENTE D'AMBITO TERRITORIALE OTTIMALE n4 \"LAZIO MERIDIONALE-LATINA\"",1204,1204,"Latina","LT","059023","Roccasecca dei Volsci"]
["Lazio","Sabaudia","Sabaudia (LT) ","ENTE D'AMBITO TERRITORIALE OTTIMALE n4 \"LAZIO MERIDIONALE-LATINA\"",1204,1204,"Latina","LT","059024","Sabaudia"]
["Lazio","San Felice Circeo","San Felice Circeo (LT) ","ENTE D'AMBITO TERRITORIALE OTTIMALE n4 \"LAZIO MERIDIONALE-LATINA\"",1204,1204,"Latina","LT","059025","San Felice Circeo"]
["Lazio","Santi Cosma e Damiano","Santi Cosma e Damiano (LT) ","ENTE D'AMBITO TERRITORIALE OTTIMALE n4 \"LAZIO MERIDIONALE-LATINA\"",1204,1204,"Latina","LT","059026","Santi Cosma e Damiano"]
["Lazio","Sermoneta","Sermoneta (LT) ","ENTE D'AMBITO TERRITORIALE OTTIMALE n4 \"LAZIO MERIDIONALE-LATINA\"",1204,1204,"Latina","LT","059027","Sermoneta"]
["Lazio","Sezze","Sezze (LT) ","ENTE D'AMBITO TERRITORIALE OTTIMALE n4 \"LAZIO MERIDIONALE-LATINA\"",1204,1204,"Latina","LT","059028","Sezze"]
["Lazio","Sonnino","Sonnino (LT) ","ENTE D'AMBITO TERRITORIALE OTTIMALE n4 \"LAZIO MERIDIONALE-LATINA\"",1204,1204,"Latina","LT","059029","Sonnino"]
["Lazio","Sperlonga","Sperlonga (LT) ","ENTE D'AMBITO TERRITORIALE OTTIMALE n4 \"LAZIO MERIDIONALE-LATINA\"",1204,1204,"Latina","LT","059030","Sperlonga"]
["Lazio","Spigno Saturnia","Spigno Saturnia (LT) ","ENTE D'AMBITO TERRITORIALE OTTIMALE n4 \"LAZIO MERIDIONALE-LATINA\"",1204,1204,"Latina","LT","059031","Spigno Saturnia"]
["Lazio","Terracina","Terracina (LT) ","ENTE D'AMBITO TERRITORIALE OTTIMALE n4 \"LAZIO MERIDIONALE-LATINA\"",1204,1204,"Latina","LT","059032","Terracina"]
["Lazio","Ventotene","Ventotene (LT) ","ENTE D'AMBITO TERRITORIALE OTTIMALE n4 \"LAZIO MERIDIONALE-LATINA\"",1204,1204,"Latina","LT","059033","Ventotene"]
["Lazio","Acquafondata","Acquafondata (FR) ","Autorità d'Ambito Territoriale Ottimale 5 Lazio Meridionale - Frosinone",1205,1205,"Frosinone","FR","060001","Acquafondata"]
["Lazio","Acuto","Acuto (FR) ","Autorità d'Ambito Territoriale Ottimale 5 Lazio Meridionale - Frosinone",1205,1205,"Frosinone","FR","060002","Acuto"]
["Lazio","Alatri","Alatri (FR) ","Autorità d'Ambito Territoriale Ottimale 5 Lazio Meridionale - Frosinone",1205,1205,"Frosinone","FR","060003","Alatri"]
["Lazio","Alvito","Alvito (FR) ","Autorità d'Ambito Territoriale Ottimale 5 Lazio Meridionale - Frosinone",1205,1205,"Frosinone","FR","060004","Alvito"]
["Lazio","Amaseno","Amaseno (FR) ","ENTE D'AMBITO TERRITORIALE OTTIMALE n4 \"LAZIO MERIDIONALE-LATINA\"",1204,1204,"Frosinone","FR","060005","Amaseno"]
["Lazio","Anagni","Anagni (FR) ","Autorità d'Ambito Territoriale Ottimale 5 Lazio Meridionale - Frosinone",1205,1205,"Frosinone","FR","060006","Anagni"]
["Lazio","Aquino","Aquino (FR) ","Autorità d'Ambito Territoriale Ottimale 5 Lazio Meridionale - Frosinone",1205,1205,"Frosinone","FR","060007","Aquino"]
["Lazio","Arce","Arce (FR) ","Autorità d'Ambito Territoriale Ottimale 5 Lazio Meridionale - Frosinone",1205,1205,"Frosinone","FR","060008","Arce"]
["Lazio","Arnara","Arnara (FR) ","Autorità d'Ambito Territoriale Ottimale 5 Lazio Meridionale - Frosinone",1205,1205,"Frosinone","FR","060009","Arnara"]
["Lazio","Arpino","Arpino (FR) ","Autorità d'Ambito Territoriale Ottimale 5 Lazio Meridionale - Frosinone",1205,1205,"Frosinone","FR","060010","Arpino"]
["Lazio","Atina","Atina (FR) ","Autorità d'Ambito Territoriale Ottimale 5 Lazio Meridionale - Frosinone",1205,1205,"Frosinone","FR","060011","Atina"]
["Lazio","Ausonia","Ausonia (FR) ","Autorità d'Ambito Territoriale Ottimale 5 Lazio Meridionale - Frosinone",1205,1205,"Frosinone","FR","060012","Ausonia"]
["Lazio","Belmonte Castello","Belmonte Castello (FR) ","Autorità d'Ambito Territoriale Ottimale 5 Lazio Meridionale - Frosinone",1205,1205,"Frosinone","FR","060013","Belmonte Castello"]
["Lazio","Boville Ernica","Boville Ernica (FR) ","Autorità d'Ambito Territoriale Ottimale 5 Lazio Meridionale - Frosinone",1205,1205,"Frosinone","FR","060014","Boville Ernica"]
["Lazio","Broccostella","Broccostella (FR) ","Autorità d'Ambito Territoriale Ottimale 5 Lazio Meridionale - Frosinone",1205,1205,"Frosinone","FR","060015","Broccostella"]
["Lazio","Campoli Appennino","Campoli Appennino (FR) ","Autorità d'Ambito Territoriale Ottimale 5 Lazio Meridionale - Frosinone",1205,1205,"Frosinone","FR","060016","Campoli Appennino"]
["Lazio","Casalattico","Casalattico (FR) ","Autorità d'Ambito Territoriale Ottimale 5 Lazio Meridionale - Frosinone",1205,1205,"Frosinone","FR","060017","Casalattico"]
["Lazio","Casalvieri","Casalvieri (FR) ","Autorità d'Ambito Territoriale Ottimale 5 Lazio Meridionale - Frosinone",1205,1205,"Frosinone","FR","060018","Casalvieri"]
["Lazio","Cassino","Cassino (FR) ","Autorità d'Ambito Territoriale Ottimale 5 Lazio Meridionale - Frosinone",1205,1205,"Frosinone","FR","060019","Cassino"]
["Lazio","Castelliri","Castelliri (FR) ","Autorità d'Ambito Territoriale Ottimale 5 Lazio Meridionale - Frosinone",1205,1205,"Frosinone","FR","060020","Castelliri"]
["Lazio","Castelnuovo Parano","Castelnuovo Parano (FR) ","Autorità d'Ambito Territoriale Ottimale 5 Lazio Meridionale - Frosinone",1205,1205,"Frosinone","FR","060021","Castelnuovo Parano"]
["Lazio","Castrocielo","Castrocielo (FR) ","Autorità d'Ambito Territoriale Ottimale 5 Lazio Meridionale - Frosinone",1205,1205,"Frosinone","FR","060022","Castrocielo"]
["Lazio","Castro dei Volsci","Castro dei Volsci (FR) ","Autorità d'Ambito Territoriale Ottimale 5 Lazio Meridionale - Frosinone",1205,1205,"Frosinone","FR","060023","Castro dei Volsci"]
["Lazio","Ceccano","Ceccano (FR) ","Autorità d'Ambito Territoriale Ottimale 5 Lazio Meridionale - Frosinone",1205,1205,"Frosinone","FR","060024","Ceccano"]
["Lazio","Ceprano","Ceprano (FR) ","Autorità d'Ambito Territoriale Ottimale 5 Lazio Meridionale - Frosinone",1205,1205,"Frosinone","FR","060025","Ceprano"]
["Lazio","Cervaro","Cervaro (FR) ","Autorità d'Ambito Territoriale Ottimale 5 Lazio Meridionale - Frosinone",1205,1205,"Frosinone","FR","060026","Cervaro"]
["Lazio","Colfelice","Colfelice (FR) ","Autorità d'Ambito Territoriale Ottimale 5 Lazio Meridionale - Frosinone",1205,1205,"Frosinone","FR","060027","Colfelice"]
["Lazio","Collepardo","Collepardo (FR) ","Autorità d'Ambito Territoriale Ottimale 5 Lazio Meridionale - Frosinone",1205,1205,"Frosinone","FR","060028","Collepardo"]
["Lazio","Colle San Magno","Colle San Magno (FR) ","Autorità d'Ambito Territoriale Ottimale 5 Lazio Meridionale - Frosinone",1205,1205,"Frosinone","FR","060029","Colle San Magno"]
["Lazio","Coreno Ausonio","Coreno Ausonio (FR) ","Autorità d'Ambito Territoriale Ottimale 5 Lazio Meridionale - Frosinone",1205,1205,"Frosinone","FR","060030","Coreno Ausonio"]
["Lazio","Esperia","Esperia (FR) ","Autorità d'Ambito Territoriale Ottimale 5 Lazio Meridionale - Frosinone",1205,1205,"Frosinone","FR","060031","Esperia"]
["Lazio","Falvaterra","Falvaterra (FR) ","Autorità d'Ambito Territoriale Ottimale 5 Lazio Meridionale - Frosinone",1205,1205,"Frosinone","FR","060032","Falvaterra"]
["Lazio","Ferentino","Ferentino (FR) ","Autorità d'Ambito Territoriale Ottimale 5 Lazio Meridionale - Frosinone",1205,1205,"Frosinone","FR","060033","Ferentino"]
["Lazio","Filettino","Filettino (FR) ","Ambito Territoriale Ottimale 2 Lazio Centrale - Roma",1202,1202,"Frosinone","FR","060034","Filettino"]
["Lazio","Fiuggi","Fiuggi (FR) ","Autorità d'Ambito Territoriale Ottimale 5 Lazio Meridionale - Frosinone",1205,1205,"Frosinone","FR","060035","Fiuggi"]
["Lazio","Fontana Liri","Fontana Liri (FR) ","Autorità d'Ambito Territoriale Ottimale 5 Lazio Meridionale - Frosinone",1205,1205,"Frosinone","FR","060036","Fontana Liri"]
["Lazio","Fontechiari","Fontechiari (FR) ","Autorità d'Ambito Territoriale Ottimale 5 Lazio Meridionale - Frosinone",1205,1205,"Frosinone","FR","060037","Fontechiari"]
["Lazio","Frosinone","Frosinone (FR) ","Autorità d'Ambito Territoriale Ottimale 5 Lazio Meridionale - Frosinone",1205,1205,"Frosinone","FR","060038","Frosinone"]
["Lazio","Fumone","Fumone (FR) ","Autorità d'Ambito Territoriale Ottimale 5 Lazio Meridionale - Frosinone",1205,1205,"Frosinone","FR","060039","Fumone"]
["Lazio","Gallinaro","Gallinaro (FR) ","Autorità d'Ambito Territoriale Ottimale 5 Lazio Meridionale - Frosinone",1205,1205,"Frosinone","FR","060040","Gallinaro"]
["Lazio","Giuliano di Roma","Giuliano di Roma (FR) ","ENTE D'AMBITO TERRITORIALE OTTIMALE n4 \"LAZIO MERIDIONALE-LATINA\"",1204,1204,"Frosinone","FR","060041","Giuliano di Roma"]
["Lazio","Guarcino","Guarcino (FR) ","Autorità d'Ambito Territoriale Ottimale 5 Lazio Meridionale - Frosinone",1205,1205,"Frosinone","FR","060042","Guarcino"]
["Lazio","Isola del Liri","Isola del Liri (FR) ","Autorità d'Ambito Territoriale Ottimale 5 Lazio Meridionale - Frosinone",1205,1205,"Frosinone","FR","060043","Isola del Liri"]
["Lazio","Monte San Giovanni Campano","Monte San Giovanni Campano (FR) ","Autorità d'Ambito Territoriale Ottimale 5 Lazio Meridionale - Frosinone",1205,1205,"Frosinone","FR","060044","Monte San Giovanni Campano"]
["Lazio","Morolo","Morolo (FR) ","Autorità d'Ambito Territoriale Ottimale 5 Lazio Meridionale - Frosinone",1205,1205,"Frosinone","FR","060045","Morolo"]
["Lazio","Paliano","Paliano (FR) ","Autorità d'Ambito Territoriale Ottimale 5 Lazio Meridionale - Frosinone",1205,1205,"Frosinone","FR","060046","Paliano"]
["Lazio","Pastena","Pastena (FR) ","Autorità d'Ambito Territoriale Ottimale 5 Lazio Meridionale - Frosinone",1205,1205,"Frosinone","FR","060047","Pastena"]
["Lazio","Patrica","Patrica (FR) ","Autorità d'Ambito Territoriale Ottimale 5 Lazio Meridionale - Frosinone",1205,1205,"Frosinone","FR","060048","Patrica"]
["Lazio","Pescosolido","Pescosolido (FR) ","Autorità d'Ambito Territoriale Ottimale 5 Lazio Meridionale - Frosinone",1205,1205,"Frosinone","FR","060049","Pescosolido"]
["Lazio","Picinisco","Picinisco (FR) ","Autorità d'Ambito Territoriale Ottimale 5 Lazio Meridionale - Frosinone",1205,1205,"Frosinone","FR","060050","Picinisco"]
["Lazio","Pico","Pico (FR) ","Autorità d'Ambito Territoriale Ottimale 5 Lazio Meridionale - Frosinone",1205,1205,"Frosinone","FR","060051","Pico"]
["Lazio","Piedimonte San Germano","Piedimonte San Germano (FR) ","Autorità d'Ambito Territoriale Ottimale 5 Lazio Meridionale - Frosinone",1205,1205,"Frosinone","FR","060052","Piedimonte San Germano"]
["Lazio","Piglio","Piglio (FR) ","Autorità d'Ambito Territoriale Ottimale 5 Lazio Meridionale - Frosinone",1205,1205,"Frosinone","FR","060053","Piglio"]
["Lazio","Pignataro Interamna","Pignataro Interamna (FR) ","Autorità d'Ambito Territoriale Ottimale 5 Lazio Meridionale - Frosinone",1205,1205,"Frosinone","FR","060054","Pignataro Interamna"]
["Lazio","Pofi","Pofi (FR) ","Autorità d'Ambito Territoriale Ottimale 5 Lazio Meridionale - Frosinone",1205,1205,"Frosinone","FR","060055","Pofi"]
["Lazio","Pontecorvo","Pontecorvo (FR) ","Autorità d'Ambito Territoriale Ottimale 5 Lazio Meridionale - Frosinone",1205,1205,"Frosinone","FR","060056","Pontecorvo"]
["Lazio","Posta Fibreno","Posta Fibreno (FR) ","Autorità d'Ambito Territoriale Ottimale 5 Lazio Meridionale - Frosinone",1205,1205,"Frosinone","FR","060057","Posta Fibreno"]
["Lazio","Ripi","Ripi (FR) ","Autorità d'Ambito Territoriale Ottimale 5 Lazio Meridionale - Frosinone",1205,1205,"Frosinone","FR","060058","Ripi"]
["Lazio","Rocca d'Arce","Rocca d'Arce (FR) ","Autorità d'Ambito Territoriale Ottimale 5 Lazio Meridionale - Frosinone",1205,1205,"Frosinone","FR","060059","Rocca d'Arce"]
["Lazio","Roccasecca","Roccasecca (FR) ","Autorità d'Ambito Territoriale Ottimale 5 Lazio Meridionale - Frosinone",1205,1205,"Frosinone","FR","060060","Roccasecca"]
["Lazio","San Biagio Saracinisco","San Biagio Saracinisco (FR) ","Autorità d'Ambito Territoriale Ottimale 5 Lazio Meridionale - Frosinone",1205,1205,"Frosinone","FR","060061","San Biagio Saracinisco"]
["Lazio","San Donato Val di Comino","San Donato Val di Comino (FR) ","Autorità d'Ambito Territoriale Ottimale 5 Lazio Meridionale - Frosinone",1205,1205,"Frosinone","FR","060062","San Donato Val di Comino"]
["Lazio","San Giorgio a Liri","San Giorgio a Liri (FR) ","Autorità d'Ambito Territoriale Ottimale 5 Lazio Meridionale - Frosinone",1205,1205,"Frosinone","FR","060063","San Giorgio a Liri"]
["Lazio","San Giovanni Incarico","San Giovanni Incarico (FR) ","Autorità d'Ambito Territoriale Ottimale 5 Lazio Meridionale - Frosinone",1205,1205,"Frosinone","FR","060064","San Giovanni Incarico"]
["Lazio","Sant'Ambrogio sul Garigliano","Sant'Ambrogio sul Garigliano (FR) ","Autorità d'Ambito Territoriale Ottimale 5 Lazio Meridionale - Frosinone",1205,1205,"Frosinone","FR","060065","Sant'Ambrogio sul Garigliano"]
["Lazio","Sant'Andrea del Garigliano","Sant'Andrea del Garigliano (FR) ","Autorità d'Ambito Territoriale Ottimale 5 Lazio Meridionale - Frosinone",1205,1205,"Frosinone","FR","060066","Sant'Andrea del Garigliano"]
["Lazio","Sant'Apollinare","Sant'Apollinare (FR) ","Autorità d'Ambito Territoriale Ottimale 5 Lazio Meridionale - Frosinone",1205,1205,"Frosinone","FR","060067","Sant'Apollinare"]
["Lazio","Sant'Elia Fiumerapido","Sant'Elia Fiumerapido (FR) ","Autorità d'Ambito Territoriale Ottimale 5 Lazio Meridionale - Frosinone",1205,1205,"Frosinone","FR","060068","Sant'Elia Fiumerapido"]
["Lazio","Santopadre","Santopadre (FR) ","Autorità d'Ambito Territoriale Ottimale 5 Lazio Meridionale - Frosinone",1205,1205,"Frosinone","FR","060069","Santopadre"]
["Lazio","San Vittore del Lazio","San Vittore del Lazio (FR) ","Autorità d'Ambito Territoriale Ottimale 5 Lazio Meridionale - Frosinone",1205,1205,"Frosinone","FR","060070","San Vittore del Lazio"]
["Lazio","Serrone","Serrone (FR) ","Autorità d'Ambito Territoriale Ottimale 5 Lazio Meridionale - Frosinone",1205,1205,"Frosinone","FR","060071","Serrone"]
["Lazio","Settefrati","Settefrati (FR) ","Autorità d'Ambito Territoriale Ottimale 5 Lazio Meridionale - Frosinone",1205,1205,"Frosinone","FR","060072","Settefrati"]
["Lazio","Sgurgola","Sgurgola (FR) ","Autorità d'Ambito Territoriale Ottimale 5 Lazio Meridionale - Frosinone",1205,1205,"Frosinone","FR","060073","Sgurgola"]
["Lazio","Sora","Sora (FR) ","Autorità d'Ambito Territoriale Ottimale 5 Lazio Meridionale - Frosinone",1205,1205,"Frosinone","FR","060074","Sora"]
["Lazio","Strangolagalli","Strangolagalli (FR) ","Autorità d'Ambito Territoriale Ottimale 5 Lazio Meridionale - Frosinone",1205,1205,"Frosinone","FR","060075","Strangolagalli"]
["Lazio","Supino","Supino (FR) ","Autorità d'Ambito Territoriale Ottimale 5 Lazio Meridionale - Frosinone",1205,1205,"Frosinone","FR","060076","Supino"]
["Lazio","Terelle","Terelle (FR) ","Autorità d'Ambito Territoriale Ottimale 5 Lazio Meridionale - Frosinone",1205,1205,"Frosinone","FR","060077","Terelle"]
["Lazio","Torre Cajetani","Torre Cajetani (FR) ","Autorità d'Ambito Territoriale Ottimale 5 Lazio Meridionale - Frosinone",1205,1205,"Frosinone","FR","060078","Torre Cajetani"]
["Lazio","Torrice","Torrice (FR) ","Autorità d'Ambito Territoriale Ottimale 5 Lazio Meridionale - Frosinone",1205,1205,"Frosinone","FR","060079","Torrice"]
["Lazio","Trevi nel Lazio","Trevi nel Lazio (FR) ","Ambito Territoriale Ottimale 2 Lazio Centrale - Roma",1202,1202,"Frosinone","FR","060080","Trevi nel Lazio"]
["Lazio","Trivigliano","Trivigliano (FR) ","Autorità d'Ambito Territoriale Ottimale 5 Lazio Meridionale - Frosinone",1205,1205,"Frosinone","FR","060081","Trivigliano"]
["Lazio","Vallecorsa","Vallecorsa (FR) ","ENTE D'AMBITO TERRITORIALE OTTIMALE n4 \"LAZIO MERIDIONALE-LATINA\"",1204,1204,"Frosinone","FR","060082","Vallecorsa"]
["Lazio","Vallemaio","Vallemaio (FR) ","Autorità d'Ambito Territoriale Ottimale 5 Lazio Meridionale - Frosinone",1205,1205,"Frosinone","FR","060083","Vallemaio"]
["Lazio","Vallerotonda","Vallerotonda (FR) ","Autorità d'Ambito Territoriale Ottimale 5 Lazio Meridionale - Frosinone",1205,1205,"Frosinone","FR","060084","Vallerotonda"]
["Lazio","Veroli","Veroli (FR) ","Autorità d'Ambito Territoriale Ottimale 5 Lazio Meridionale - Frosinone",1205,1205,"Frosinone","FR","060085","Veroli"]
["Lazio","Vicalvi","Vicalvi (FR) ","Autorità d'Ambito Territoriale Ottimale 5 Lazio Meridionale - Frosinone",1205,1205,"Frosinone","FR","060086","Vicalvi"]
["Lazio","Vico nel Lazio","Vico nel Lazio (FR) ","Autorità d'Ambito Territoriale Ottimale 5 Lazio Meridionale - Frosinone",1205,1205,"Frosinone","FR","060087","Vico nel Lazio"]
["Lazio","Villa Latina","Villa Latina (FR) ","Autorità d'Ambito Territoriale Ottimale 5 Lazio Meridionale - Frosinone",1205,1205,"Frosinone","FR","060088","Villa Latina"]
["Lazio","Villa Santa Lucia","Villa Santa Lucia (FR) ","Autorità d'Ambito Territoriale Ottimale 5 Lazio Meridionale - Frosinone",1205,1205,"Frosinone","FR","060089","Villa Santa Lucia"]
["Lazio","Villa Santo Stefano","Villa Santo Stefano (FR) ","ENTE D'AMBITO TERRITORIALE OTTIMALE n4 \"LAZIO MERIDIONALE-LATINA\"",1204,1204,"Frosinone","FR","060090","Villa Santo Stefano"]
["Lazio","Viticuso","Viticuso (FR) ","Autorità d'Ambito Territoriale Ottimale 5 Lazio Meridionale - Frosinone",1205,1205,"Frosinone","FR","060091","Viticuso"]
["Campania","Ailano","Ailano (CE) ","Ente Idrico Campano",1505,1505,"Caserta","CE","061001","Ailano"]
["Campania","Alife","Alife (CE) ","Ente Idrico Campano",1505,1505,"Caserta","CE","061002","Alife"]
["Campania","Alvignano","Alvignano (CE) ","Ente Idrico Campano",1505,1505,"Caserta","CE","061003","Alvignano"]
["Campania","Arienzo","Arienzo (CE) ","Ente Idrico Campano",1505,1505,"Caserta","CE","061004","Arienzo"]
["Campania","Aversa","Aversa (CE) ","Ente Idrico Campano",1505,1505,"Caserta","CE","061005","Aversa"]
["Campania","Baia e Latina","Baia e Latina (CE) ","Ente Idrico Campano",1505,1505,"Caserta","CE","061006","Baia e Latina"]
["Campania","Bellona","Bellona (CE) ","Ente Idrico Campano",1505,1505,"Caserta","CE","061007","Bellona"]
["Campania","Caianello","Caianello (CE) ","Ente Idrico Campano",1505,1505,"Caserta","CE","061008","Caianello"]
["Campania","Caiazzo","Caiazzo (CE) ","Ente Idrico Campano",1505,1505,"Caserta","CE","061009","Caiazzo"]
["Campania","Calvi Risorta","Calvi Risorta (CE) ","Ente Idrico Campano",1505,1505,"Caserta","CE","061010","Calvi Risorta"]
["Campania","Camigliano","Camigliano (CE) ","Ente Idrico Campano",1505,1505,"Caserta","CE","061011","Camigliano"]
["Campania","Cancello ed Arnone","Cancello ed Arnone (CE) ","Ente Idrico Campano",1505,1505,"Caserta","CE","061012","Cancello ed Arnone"]
["Campania","Capodrise","Capodrise (CE) ","Ente Idrico Campano",1505,1505,"Caserta","CE","061013","Capodrise"]
["Campania","Capriati a Volturno","Capriati a Volturno (CE) ","Ente Idrico Campano",1505,1505,"Caserta","CE","061014","Capriati a Volturno"]
["Campania","Capua","Capua (CE) ","Ente Idrico Campano",1505,1505,"Caserta","CE","061015","Capua"]
["Campania","Carinaro","Carinaro (CE) ","Ente Idrico Campano",1505,1505,"Caserta","CE","061016","Carinaro"]
["Campania","Carinola","Carinola (CE) ","Ente Idrico Campano",1505,1505,"Caserta","CE","061017","Carinola"]
["Campania","Casagiove","Casagiove (CE) ","Ente Idrico Campano",1505,1505,"Caserta","CE","061018","Casagiove"]
["Campania","Casal di Principe","Casal di Principe (CE) ","Ente Idrico Campano",1505,1505,"Caserta","CE","061019","Casal di Principe"]
["Campania","Casaluce","Casaluce (CE) ","Ente Idrico Campano",1505,1505,"Caserta","CE","061020","Casaluce"]
["Campania","Casapulla","Casapulla (CE) ","Ente Idrico Campano",1505,1505,"Caserta","CE","061021","Casapulla"]
["Campania","Caserta","Caserta (CE) ","Ente Idrico Campano",1505,1505,"Caserta","CE","061022","Caserta"]
["Campania","Castel Campagnano","Castel Campagnano (CE) ","Ente Idrico Campano",1505,1505,"Caserta","CE","061023","Castel Campagnano"]
["Campania","Castel di Sasso","Castel di Sasso (CE) ","Ente Idrico Campano",1505,1505,"Caserta","CE","061024","Castel di Sasso"]
["Campania","Castello del Matese","Castello del Matese (CE) ","Ente Idrico Campano",1505,1505,"Caserta","CE","061025","Castello del Matese"]
["Campania","Castel Morrone","Castel Morrone (CE) ","Ente Idrico Campano",1505,1505,"Caserta","CE","061026","Castel Morrone"]
["Campania","Castel Volturno","Castel Volturno (CE) ","Ente Idrico Campano",1505,1505,"Caserta","CE","061027","Castel Volturno"]
["Campania","Cervino","Cervino (CE) ","Ente Idrico Campano",1505,1505,"Caserta","CE","061028","Cervino"]
["Campania","Cesa","Cesa (CE) ","Ente Idrico Campano",1505,1505,"Caserta","CE","061029","Cesa"]
["Campania","Ciorlano","Ciorlano (CE) ","Ente Idrico Campano",1505,1505,"Caserta","CE","061030","Ciorlano"]
["Campania","Conca della Campania","Conca della Campania (CE) ","Ente Idrico Campano",1505,1505,"Caserta","CE","061031","Conca della Campania"]
["Campania","Curti","Curti (CE) ","Ente Idrico Campano",1505,1505,"Caserta","CE","061032","Curti"]
["Campania","Dragoni","Dragoni (CE) ","Ente Idrico Campano",1505,1505,"Caserta","CE","061033","Dragoni"]
["Campania","Fontegreca","Fontegreca (CE) ","Ente Idrico Campano",1505,1505,"Caserta","CE","061034","Fontegreca"]
["Campania","Formicola","Formicola (CE) ","Ente Idrico Campano",1505,1505,"Caserta","CE","061035","Formicola"]
["Campania","Francolise","Francolise (CE) ","Ente Idrico Campano",1505,1505,"Caserta","CE","061036","Francolise"]
["Campania","Frignano","Frignano (CE) ","Ente Idrico Campano",1505,1505,"Caserta","CE","061037","Frignano"]
["Campania","Gallo Matese","Gallo Matese (CE) ","Ente Idrico Campano",1505,1505,"Caserta","CE","061038","Gallo Matese"]
["Campania","Galluccio","Galluccio (CE) ","Ente Idrico Campano",1505,1505,"Caserta","CE","061039","Galluccio"]
["Campania","Giano Vetusto","Giano Vetusto (CE) ","Ente Idrico Campano",1505,1505,"Caserta","CE","061040","Giano Vetusto"]
["Campania","Gioia Sannitica","Gioia Sannitica (CE) ","Ente Idrico Campano",1505,1505,"Caserta","CE","061041","Gioia Sannitica"]
["Campania","Grazzanise","Grazzanise (CE) ","Ente Idrico Campano",1505,1505,"Caserta","CE","061042","Grazzanise"]
["Campania","Gricignano di Aversa","Gricignano di Aversa (CE) ","Ente Idrico Campano",1505,1505,"Caserta","CE","061043","Gricignano di Aversa"]
["Campania","Letino","Letino (CE) ","Ente Idrico Campano",1505,1505,"Caserta","CE","061044","Letino"]
["Campania","Liberi","Liberi (CE) ","Ente Idrico Campano",1505,1505,"Caserta","CE","061045","Liberi"]
["Campania","Lusciano","Lusciano (CE) ","Ente Idrico Campano",1505,1505,"Caserta","CE","061046","Lusciano"]
["Campania","Macerata Campania","Macerata Campania (CE) ","Ente Idrico Campano",1505,1505,"Caserta","CE","061047","Macerata Campania"]
["Campania","Maddaloni","Maddaloni (CE) ","Ente Idrico Campano",1505,1505,"Caserta","CE","061048","Maddaloni"]
["Campania","Marcianise","Marcianise (CE) ","Ente Idrico Campano",1505,1505,"Caserta","CE","061049","Marcianise"]
["Campania","Marzano Appio","Marzano Appio (CE) ","Ente Idrico Campano",1505,1505,"Caserta","CE","061050","Marzano Appio"]
["Campania","Mignano Monte Lungo","Mignano Monte Lungo (CE) ","Ente Idrico Campano",1505,1505,"Caserta","CE","061051","Mignano Monte Lungo"]
["Campania","Mondragone","Mondragone (CE) ","Ente Idrico Campano",1505,1505,"Caserta","CE","061052","Mondragone"]
["Campania","Orta di Atella","Orta di Atella (CE) ","Ente Idrico Campano",1505,1505,"Caserta","CE","061053","Orta di Atella"]
["Campania","Parete","Parete (CE) ","Ente Idrico Campano",1505,1505,"Caserta","CE","061054","Parete"]
["Campania","Pastorano","Pastorano (CE) ","Ente Idrico Campano",1505,1505,"Caserta","CE","061055","Pastorano"]
["Campania","Piana di Monte Verna","Piana di Monte Verna (CE) ","Ente Idrico Campano",1505,1505,"Caserta","CE","061056","Piana di Monte Verna"]
["Campania","Piedimonte Matese","Piedimonte Matese (CE) ","Ente Idrico Campano",1505,1505,"Caserta","CE","061057","Piedimonte Matese"]
["Campania","Pietramelara","Pietramelara (CE) ","Ente Idrico Campano",1505,1505,"Caserta","CE","061058","Pietramelara"]
["Campania","Pietravairano","Pietravairano (CE) ","Ente Idrico Campano",1505,1505,"Caserta","CE","061059","Pietravairano"]
["Campania","Pignataro Maggiore","Pignataro Maggiore (CE) ","Ente Idrico Campano",1505,1505,"Caserta","CE","061060","Pignataro Maggiore"]
["Campania","Pontelatone","Pontelatone (CE) ","Ente Idrico Campano",1505,1505,"Caserta","CE","061061","Pontelatone"]
["Campania","Portico di Caserta","Portico di Caserta (CE) ","Ente Idrico Campano",1505,1505,"Caserta","CE","061062","Portico di Caserta"]
["Campania","Prata Sannita","Prata Sannita (CE) ","Ente Idrico Campano",1505,1505,"Caserta","CE","061063","Prata Sannita"]
["Campania","Pratella","Pratella (CE) ","Ente Idrico Campano",1505,1505,"Caserta","CE","061064","Pratella"]
["Campania","Presenzano","Presenzano (CE) ","Ente Idrico Campano",1505,1505,"Caserta","CE","061065","Presenzano"]
["Campania","Raviscanina","Raviscanina (CE) ","Ente Idrico Campano",1505,1505,"Caserta","CE","061066","Raviscanina"]
["Campania","Recale","Recale (CE) ","Ente Idrico Campano",1505,1505,"Caserta","CE","061067","Recale"]
["Campania","Riardo","Riardo (CE) ","Ente Idrico Campano",1505,1505,"Caserta","CE","061068","Riardo"]
["Campania","Rocca d'Evandro","Rocca d'Evandro (CE) ","Ente Idrico Campano",1505,1505,"Caserta","CE","061069","Rocca d'Evandro"]
["Campania","Roccamonfina","Roccamonfina (CE) ","Ente Idrico Campano",1505,1505,"Caserta","CE","061070","Roccamonfina"]
["Campania","Roccaromana","Roccaromana (CE) ","Ente Idrico Campano",1505,1505,"Caserta","CE","061071","Roccaromana"]
["Campania","Rocchetta e Croce","Rocchetta e Croce (CE) ","Ente Idrico Campano",1505,1505,"Caserta","CE","061072","Rocchetta e Croce"]
["Campania","Ruviano","Ruviano (CE) ","Ente Idrico Campano",1505,1505,"Caserta","CE","061073","Ruviano"]
["Campania","San Cipriano d'Aversa","San Cipriano d'Aversa (CE) ","Ente Idrico Campano",1505,1505,"Caserta","CE","061074","San Cipriano d'Aversa"]
["Campania","San Felice a Cancello","San Felice a Cancello (CE) ","Ente Idrico Campano",1505,1505,"Caserta","CE","061075","San Felice a Cancello"]
["Campania","San Gregorio Matese","San Gregorio Matese (CE) ","Ente Idrico Campano",1505,1505,"Caserta","CE","061076","San Gregorio Matese"]
["Campania","San Marcellino","San Marcellino (CE) ","Ente Idrico Campano",1505,1505,"Caserta","CE","061077","San Marcellino"]
["Campania","San Nicola la Strada","San Nicola la Strada (CE) ","Ente Idrico Campano",1505,1505,"Caserta","CE","061078","San Nicola la Strada"]
["Campania","San Pietro Infine","San Pietro Infine (CE) ","Ente Idrico Campano",1505,1505,"Caserta","CE","061079","San Pietro Infine"]
["Campania","San Potito Sannitico","San Potito Sannitico (CE) ","Ente Idrico Campano",1505,1505,"Caserta","CE","061080","San Potito Sannitico"]
["Campania","San Prisco","San Prisco (CE) ","Ente Idrico Campano",1505,1505,"Caserta","CE","061081","San Prisco"]
["Campania","Santa Maria a Vico","Santa Maria a Vico (CE) ","Ente Idrico Campano",1505,1505,"Caserta","CE","061082","Santa Maria a Vico"]
["Campania","Santa Maria Capua Vetere","Santa Maria Capua Vetere (CE) ","Ente Idrico Campano",1505,1505,"Caserta","CE","061083","Santa Maria Capua Vetere"]
["Campania","Santa Maria la Fossa","Santa Maria la Fossa (CE) ","Ente Idrico Campano",1505,1505,"Caserta","CE","061084","Santa Maria la Fossa"]
["Campania","San Tammaro","San Tammaro (CE) ","Ente Idrico Campano",1505,1505,"Caserta","CE","061085","San Tammaro"]
["Campania","Sant'Angelo d'Alife","Sant'Angelo d'Alife (CE) ","Ente Idrico Campano",1505,1505,"Caserta","CE","061086","Sant'Angelo d'Alife"]
["Campania","Sant'Arpino","Sant'Arpino (CE) ","Ente Idrico Campano",1505,1505,"Caserta","CE","061087","Sant'Arpino"]
["Campania","Sessa Aurunca","Sessa Aurunca (CE) ","Ente Idrico Campano",1505,1505,"Caserta","CE","061088","Sessa Aurunca"]
["Campania","Sparanise","Sparanise (CE) ","Ente Idrico Campano",1505,1505,"Caserta","CE","061089","Sparanise"]
["Campania","Succivo","Succivo (CE) ","Ente Idrico Campano",1505,1505,"Caserta","CE","061090","Succivo"]
["Campania","Teano","Teano (CE) ","Ente Idrico Campano",1505,1505,"Caserta","CE","061091","Teano"]
["Campania","Teverola","Teverola (CE) ","Ente Idrico Campano",1505,1505,"Caserta","CE","061092","Teverola"]
["Campania","Tora e Piccilli","Tora e Piccilli (CE) ","Ente Idrico Campano",1505,1505,"Caserta","CE","061093","Tora e Piccilli"]
["Campania","Trentola Ducenta","Trentola Ducenta (CE) ","Ente Idrico Campano",1505,1505,"Caserta","CE","061094","Trentola Ducenta"]
["Campania","Vairano Patenora","Vairano Patenora (CE) ","Ente Idrico Campano",1505,1505,"Caserta","CE","061095","Vairano Patenora"]
["Campania","Valle Agricola","Valle Agricola (CE) ","Ente Idrico Campano",1505,1505,"Caserta","CE","061096","Valle Agricola"]
["Campania","Valle di Maddaloni","Valle di Maddaloni (CE) ","Ente Idrico Campano",1505,1505,"Caserta","CE","061097","Valle di Maddaloni"]
["Campania","Villa di Briano","Villa di Briano (CE) ","Ente Idrico Campano",1505,1505,"Caserta","CE","061098","Villa di Briano"]
["Campania","Villa Literno","Villa Literno (CE) ","Ente Idrico Campano",1505,1505,"Caserta","CE","061099","Villa Literno"]
["Campania","Vitulazio","Vitulazio (CE) ","Ente Idrico Campano",1505,1505,"Caserta","CE","061100","Vitulazio"]
["Campania","Falciano del Massico","Falciano del Massico (CE) ","Ente Idrico Campano",1505,1505,"Caserta","CE","061101","Falciano del Massico"]
["Campania","Cellole","Cellole (CE) ","Ente Idrico Campano",1505,1505,"Caserta","CE","061102","Cellole"]
["Campania","Casapesenna","Casapesenna (CE) ","Ente Idrico Campano",1505,1505,"Caserta","CE","061103","Casapesenna"]
["Campania","San Marco Evangelista","San Marco Evangelista (CE) ","Ente Idrico Campano",1505,1505,"Caserta","CE","061104","San Marco Evangelista"]
["Campania","Airola","Airola (BN) ","Ente Idrico Campano",1507,1507,"Benevento","BN","062001","Airola"]
["Campania","Amorosi","Amorosi (BN) ","Ente Idrico Campano",1507,1507,"Benevento","BN","062002","Amorosi"]
["Campania","Apice","Apice (BN) ","Ente Idrico Campano",1507,1507,"Benevento","BN","062003","Apice"]
["Campania","Apollosa","Apollosa (BN) ","Ente Idrico Campano",1507,1507,"Benevento","BN","062004","Apollosa"]
["Campania","Arpaia","Arpaia (BN) ","Ente Idrico Campano",1507,1507,"Benevento","BN","062005","Arpaia"]
["Campania","Arpaise","Arpaise (BN) ","Ente Idrico Campano",1507,1507,"Benevento","BN","062006","Arpaise"]
["Campania","Baselice","Baselice (BN) ","Ente Idrico Campano",1507,1507,"Benevento","BN","062007","Baselice"]
["Campania","Benevento","Benevento (BN) ","Ente Idrico Campano",1507,1507,"Benevento","BN","062008","Benevento"]
["Campania","Bonea","Bonea (BN) ","Ente Idrico Campano",1507,1507,"Benevento","BN","062009","Bonea"]
["Campania","Bucciano","Bucciano (BN) ","Ente Idrico Campano",1507,1507,"Benevento","BN","062010","Bucciano"]
["Campania","Buonalbergo","Buonalbergo (BN) ","Ente Idrico Campano",1507,1507,"Benevento","BN","062011","Buonalbergo"]
["Campania","Calvi","Calvi (BN) ","Ente Idrico Campano",1507,1507,"Benevento","BN","062012","Calvi"]
["Campania","Campolattaro","Campolattaro (BN) ","Ente Idrico Campano",1507,1507,"Benevento","BN","062013","Campolattaro"]
["Campania","Campoli del Monte Taburno","Campoli del Monte Taburno (BN) ","Ente Idrico Campano",1507,1507,"Benevento","BN","062014","Campoli del Monte Taburno"]
["Campania","Casalduni","Casalduni (BN) ","Ente Idrico Campano",1507,1507,"Benevento","BN","062015","Casalduni"]
["Campania","Castelfranco in Miscano","Castelfranco in Miscano (BN) ","Ente Idrico Campano",1507,1507,"Benevento","BN","062016","Castelfranco in Miscano"]
["Campania","Castelpagano","Castelpagano (BN) ","Ente Idrico Campano",1507,1507,"Benevento","BN","062017","Castelpagano"]
["Campania","Castelpoto","Castelpoto (BN) ","Ente Idrico Campano",1507,1507,"Benevento","BN","062018","Castelpoto"]
["Campania","Castelvenere","Castelvenere (BN) ","Ente Idrico Campano",1507,1507,"Benevento","BN","062019","Castelvenere"]
["Campania","Castelvetere in Val Fortore","Castelvetere in Val Fortore (BN) ","Ente Idrico Campano",1507,1507,"Benevento","BN","062020","Castelvetere in Val Fortore"]
["Campania","Cautano","Cautano (BN) ","Ente Idrico Campano",1507,1507,"Benevento","BN","062021","Cautano"]
["Campania","Ceppaloni","Ceppaloni (BN) ","Ente Idrico Campano",1507,1507,"Benevento","BN","062022","Ceppaloni"]
["Campania","Cerreto Sannita","Cerreto Sannita (BN) ","Ente Idrico Campano",1507,1507,"Benevento","BN","062023","Cerreto Sannita"]
["Campania","Circello","Circello (BN) ","Ente Idrico Campano",1507,1507,"Benevento","BN","062024","Circello"]
["Campania","Colle Sannita","Colle Sannita (BN) ","Ente Idrico Campano",1507,1507,"Benevento","BN","062025","Colle Sannita"]
["Campania","Cusano Mutri","Cusano Mutri (BN) ","Ente Idrico Campano",1507,1507,"Benevento","BN","062026","Cusano Mutri"]
["Campania","Dugenta","Dugenta (BN) ","Ente Idrico Campano",1507,1507,"Benevento","BN","062027","Dugenta"]
["Campania","Durazzano","Durazzano (BN) ","Ente Idrico Campano",1507,1507,"Benevento","BN","062028","Durazzano"]
["Campania","Faicchio","Faicchio (BN) ","Ente Idrico Campano",1507,1507,"Benevento","BN","062029","Faicchio"]
["Campania","Foglianise","Foglianise (BN) ","Ente Idrico Campano",1507,1507,"Benevento","BN","062030","Foglianise"]
["Campania","Foiano di Val Fortore","Foiano di Val Fortore (BN) ","Ente Idrico Campano",1507,1507,"Benevento","BN","062031","Foiano di Val Fortore"]
["Campania","Forchia","Forchia (BN) ","Ente Idrico Campano",1507,1507,"Benevento","BN","062032","Forchia"]
["Campania","Fragneto l'Abate","Fragneto l'Abate (BN) ","Ente Idrico Campano",1507,1507,"Benevento","BN","062033","Fragneto l'Abate"]
["Campania","Fragneto Monforte","Fragneto Monforte (BN) ","Ente Idrico Campano",1507,1507,"Benevento","BN","062034","Fragneto Monforte"]
["Campania","Frasso Telesino","Frasso Telesino (BN) ","Ente Idrico Campano",1507,1507,"Benevento","BN","062035","Frasso Telesino"]
["Campania","Ginestra degli Schiavoni","Ginestra degli Schiavoni (BN) ","Ente Idrico Campano",1507,1507,"Benevento","BN","062036","Ginestra degli Schiavoni"]
["Campania","Guardia Sanframondi","Guardia Sanframondi (BN) ","Ente Idrico Campano",1507,1507,"Benevento","BN","062037","Guardia Sanframondi"]
["Campania","Limatola","Limatola (BN) ","Ente Idrico Campano",1507,1507,"Benevento","BN","062038","Limatola"]
["Campania","Melizzano","Melizzano (BN) ","Ente Idrico Campano",1507,1507,"Benevento","BN","062039","Melizzano"]
["Campania","Moiano","Moiano (BN) ","Ente Idrico Campano",1507,1507,"Benevento","BN","062040","Moiano"]
["Campania","Molinara","Molinara (BN) ","Ente Idrico Campano",1507,1507,"Benevento","BN","062041","Molinara"]
["Campania","Montefalcone di Val Fortore","Montefalcone di Val Fortore (BN) ","Ente Idrico Campano",1507,1507,"Benevento","BN","062042","Montefalcone di Val Fortore"]
["Campania","Montesarchio","Montesarchio (BN) ","Ente Idrico Campano",1507,1507,"Benevento","BN","062043","Montesarchio"]
["Campania","Morcone","Morcone (BN) ","Ente Idrico Campano",1507,1507,"Benevento","BN","062044","Morcone"]
["Campania","Paduli","Paduli (BN) ","Ente Idrico Campano",1507,1507,"Benevento","BN","062045","Paduli"]
["Campania","Pago Veiano","Pago Veiano (BN) ","Ente Idrico Campano",1507,1507,"Benevento","BN","062046","Pago Veiano"]
["Campania","Pannarano","Pannarano (BN) ","Ente Idrico Campano",1507,1507,"Benevento","BN","062047","Pannarano"]
["Campania","Paolisi","Paolisi (BN) ","Ente Idrico Campano",1507,1507,"Benevento","BN","062048","Paolisi"]
["Campania","Paupisi","Paupisi (BN) ","Ente Idrico Campano",1507,1507,"Benevento","BN","062049","Paupisi"]
["Campania","Pesco Sannita","Pesco Sannita (BN) ","Ente Idrico Campano",1507,1507,"Benevento","BN","062050","Pesco Sannita"]
["Campania","Pietraroja","Pietraroja (BN) ","Ente Idrico Campano",1507,1507,"Benevento","BN","062051","Pietraroja"]
["Campania","Pietrelcina","Pietrelcina (BN) ","Ente Idrico Campano",1507,1507,"Benevento","BN","062052","Pietrelcina"]
["Campania","Ponte","Ponte (BN) ","Ente Idrico Campano",1507,1507,"Benevento","BN","062053","Ponte"]
["Campania","Pontelandolfo","Pontelandolfo (BN) ","Ente Idrico Campano",1507,1507,"Benevento","BN","062054","Pontelandolfo"]
["Campania","Puglianello","Puglianello (BN) ","Ente Idrico Campano",1507,1507,"Benevento","BN","062055","Puglianello"]
["Campania","Reino","Reino (BN) ","Ente Idrico Campano",1507,1507,"Benevento","BN","062056","Reino"]
["Campania","San Bartolomeo in Galdo","San Bartolomeo in Galdo (BN) ","Ente Idrico Campano",1507,1507,"Benevento","BN","062057","San Bartolomeo in Galdo"]
["Campania","San Giorgio del Sannio","San Giorgio del Sannio (BN) ","Ente Idrico Campano",1507,1507,"Benevento","BN","062058","San Giorgio del Sannio"]
["Campania","San Giorgio La Molara","San Giorgio La Molara (BN) ","Ente Idrico Campano",1507,1507,"Benevento","BN","062059","San Giorgio La Molara"]
["Campania","San Leucio del Sannio","San Leucio del Sannio (BN) ","Ente Idrico Campano",1507,1507,"Benevento","BN","062060","San Leucio del Sannio"]
["Campania","San Lorenzello","San Lorenzello (BN) ","Ente Idrico Campano",1507,1507,"Benevento","BN","062061","San Lorenzello"]
["Campania","San Lorenzo Maggiore","San Lorenzo Maggiore (BN) ","Ente Idrico Campano",1507,1507,"Benevento","BN","062062","San Lorenzo Maggiore"]
["Campania","San Lupo","San Lupo (BN) ","Ente Idrico Campano",1507,1507,"Benevento","BN","062063","San Lupo"]
["Campania","San Marco dei Cavoti","San Marco dei Cavoti (BN) ","Ente Idrico Campano",1507,1507,"Benevento","BN","062064","San Marco dei Cavoti"]
["Campania","San Martino Sannita","San Martino Sannita (BN) ","Ente Idrico Campano",1507,1507,"Benevento","BN","062065","San Martino Sannita"]
["Campania","San Nazzaro","San Nazzaro (BN) ","Ente Idrico Campano",1507,1507,"Benevento","BN","062066","San Nazzaro"]
["Campania","San Nicola Manfredi","San Nicola Manfredi (BN) ","Ente Idrico Campano",1507,1507,"Benevento","BN","062067","San Nicola Manfredi"]
["Campania","San Salvatore Telesino","San Salvatore Telesino (BN) ","Ente Idrico Campano",1507,1507,"Benevento","BN","062068","San Salvatore Telesino"]
["Campania","Santa Croce del Sannio","Santa Croce del Sannio (BN) ","Ente Idrico Campano",1507,1507,"Benevento","BN","062069","Santa Croce del Sannio"]
["Campania","Sant'Agata de' Goti","Sant'Agata de' Goti (BN) ","Ente Idrico Campano",1507,1507,"Benevento","BN","062070","Sant'Agata de' Goti"]
["Campania","Sant'Angelo a Cupolo","Sant'Angelo a Cupolo (BN) ","Ente Idrico Campano",1507,1507,"Benevento","BN","062071","Sant'Angelo a Cupolo"]
["Campania","Sassinoro","Sassinoro (BN) ","Ente Idrico Campano",1507,1507,"Benevento","BN","062072","Sassinoro"]
["Campania","Solopaca","Solopaca (BN) ","Ente Idrico Campano",1507,1507,"Benevento","BN","062073","Solopaca"]
["Campania","Telese Terme","Telese Terme (BN) ","Ente Idrico Campano",1507,1507,"Benevento","BN","062074","Telese Terme"]
["Campania","Tocco Caudio","Tocco Caudio (BN) ","Ente Idrico Campano",1507,1507,"Benevento","BN","062075","Tocco Caudio"]
["Campania","Torrecuso","Torrecuso (BN) ","Ente Idrico Campano",1507,1507,"Benevento","BN","062076","Torrecuso"]
["Campania","Vitulano","Vitulano (BN) ","Ente Idrico Campano",1507,1507,"Benevento","BN","062077","Vitulano"]
["Campania","Sant'Arcangelo Trimonte","Sant'Arcangelo Trimonte (BN) ","Ente Idrico Campano",1507,1507,"Benevento","BN","062078","Sant'Arcangelo Trimonte"]
["Campania","Acerra","Acerra (NA) ","Ente Idrico Campano",1502,1502,"Napoli","NA","063001","Acerra"]
["Campania","Afragola","Afragola (NA) ","Ente Idrico Campano",1502,1502,"Napoli","NA","063002","Afragola"]
["Campania","Agerola","Agerola (NA) ","Ente Idrico Campano",1503,1503,"Napoli","NA","063003","Agerola"]
["Campania","Anacapri","Anacapri (NA) ","Ente Idrico Campano",1504,1504,"Napoli","NA","063004","Anacapri"]
["Campania","Arzano","Arzano (NA) ","Ente Idrico Campano",1502,1502,"Napoli","NA","063005","Arzano"]
["Campania","Bacoli","Bacoli (NA) ","Ente Idrico Campano",1502,1502,"Napoli","NA","063006","Bacoli"]
["Campania","Barano d'Ischia","Barano d'Ischia (NA) ","Ente Idrico Campano",1502,1502,"Napoli","NA","063007","Barano d'Ischia"]
["Campania","Boscoreale","Boscoreale (NA) ","Ente Idrico Campano",1504,1504,"Napoli","NA","063008","Boscoreale"]
["Campania","Boscotrecase","Boscotrecase (NA) ","Ente Idrico Campano",1504,1504,"Napoli","NA","063009","Boscotrecase"]
["Campania","Brusciano","Brusciano (NA) ","Ente Idrico Campano",1504,1504,"Napoli","NA","063010","Brusciano"]
["Campania","Caivano","Caivano (NA) ","Ente Idrico Campano",1502,1502,"Napoli","NA","063011","Caivano"]
["Campania","Calvizzano","Calvizzano (NA) ","Ente Idrico Campano",1502,1502,"Napoli","NA","063012","Calvizzano"]
["Campania","Camposano","Camposano (NA) ","Ente Idrico Campano",1504,1504,"Napoli","NA","063013","Camposano"]
["Campania","Capri","Capri (NA) ","Ente Idrico Campano",1504,1504,"Napoli","NA","063014","Capri"]
["Campania","Carbonara di Nola","Carbonara di Nola (NA) ","Ente Idrico Campano",1504,1504,"Napoli","NA","063015","Carbonara di Nola"]
["Campania","Cardito","Cardito (NA) ","Ente Idrico Campano",1502,1502,"Napoli","NA","063016","Cardito"]
["Campania","Casalnuovo di Napoli","Casalnuovo di Napoli (NA) ","Ente Idrico Campano",1504,1504,"Napoli","NA","063017","Casalnuovo di Napoli"]
["Campania","Casamarciano","Casamarciano (NA) ","Ente Idrico Campano",1504,1504,"Napoli","NA","063018","Casamarciano"]
["Campania","Casamicciola Terme","Casamicciola Terme (NA) ","Ente Idrico Campano",1502,1502,"Napoli","NA","063019","Casamicciola Terme"]
["Campania","Casandrino","Casandrino (NA) ","Ente Idrico Campano",1502,1502,"Napoli","NA","063020","Casandrino"]
["Campania","Casavatore","Casavatore (NA) ","Ente Idrico Campano",1502,1502,"Napoli","NA","063021","Casavatore"]
["Campania","Casola di Napoli","Casola di Napoli (NA) ","Ente Idrico Campano",1504,1504,"Napoli","NA","063022","Casola di Napoli"]
["Campania","Casoria","Casoria (NA) ","Ente Idrico Campano",1502,1502,"Napoli","NA","063023","Casoria"]
["Campania","Castellammare di Stabia","Castellammare di Stabia (NA) ","Ente Idrico Campano",1504,1504,"Napoli","NA","063024","Castellammare di Stabia"]
["Campania","Castello di Cisterna","Castello di Cisterna (NA) ","Ente Idrico Campano",1504,1504,"Napoli","NA","063025","Castello di Cisterna"]
["Campania","Cercola","Cercola (NA) ","Ente Idrico Campano",1504,1504,"Napoli","NA","063026","Cercola"]
["Campania","Cicciano","Cicciano (NA) ","Ente Idrico Campano",1504,1504,"Napoli","NA","063027","Cicciano"]
["Campania","Cimitile","Cimitile (NA) ","Ente Idrico Campano",1504,1504,"Napoli","NA","063028","Cimitile"]
["Campania","Comiziano","Comiziano (NA) ","Ente Idrico Campano",1504,1504,"Napoli","NA","063029","Comiziano"]
["Campania","Crispano","Crispano (NA) ","Ente Idrico Campano",1502,1502,"Napoli","NA","063030","Crispano"]
["Campania","Forio","Forio (NA) ","Ente Idrico Campano",1502,1502,"Napoli","NA","063031","Forio"]
["Campania","Frattamaggiore","Frattamaggiore (NA) ","Ente Idrico Campano",1502,1502,"Napoli","NA","063032","Frattamaggiore"]
["Campania","Frattaminore","Frattaminore (NA) ","Ente Idrico Campano",1502,1502,"Napoli","NA","063033","Frattaminore"]
["Campania","Giugliano in Campania","Giugliano in Campania (NA) ","Ente Idrico Campano",1502,1502,"Napoli","NA","063034","Giugliano in Campania"]
["Campania","Gragnano","Gragnano (NA) ","Ente Idrico Campano",1504,1504,"Napoli","NA","063035","Gragnano"]
["Campania","Grumo Nevano","Grumo Nevano (NA) ","Ente Idrico Campano",1502,1502,"Napoli","NA","063036","Grumo Nevano"]
["Campania","Ischia","Ischia (NA) ","Ente Idrico Campano",1502,1502,"Napoli","NA","063037","Ischia"]
["Campania","Lacco Ameno","Lacco Ameno (NA) ","Ente Idrico Campano",1502,1502,"Napoli","NA","063038","Lacco Ameno"]
["Campania","Lettere","Lettere (NA) ","Ente Idrico Campano",1504,1504,"Napoli","NA","063039","Lettere"]
["Campania","Liveri","Liveri (NA) ","Ente Idrico Campano",1504,1504,"Napoli","NA","063040","Liveri"]
["Campania","Marano di Napoli","Marano di Napoli (NA) ","Ente Idrico Campano",1502,1502,"Napoli","NA","063041","Marano di Napoli"]
["Campania","Mariglianella","Mariglianella (NA) ","Ente Idrico Campano",1504,1504,"Napoli","NA","063042","Mariglianella"]
["Campania","Marigliano","Marigliano (NA) ","Ente Idrico Campano",1504,1504,"Napoli","NA","063043","Marigliano"]
["Campania","Massa Lubrense","Massa Lubrense (NA) ","Ente Idrico Campano",1504,1504,"Napoli","NA","063044","Massa Lubrense"]
["Campania","Melito di Napoli","Melito di Napoli (NA) ","Ente Idrico Campano",1502,1502,"Napoli","NA","063045","Melito di Napoli"]
["Campania","Meta","Meta (NA) ","Ente Idrico Campano",1504,1504,"Napoli","NA","063046","Meta"]
["Campania","Monte di Procida","Monte di Procida (NA) ","Ente Idrico Campano",1502,1502,"Napoli","NA","063047","Monte di Procida"]
["Campania","Mugnano di Napoli","Mugnano di Napoli (NA) ","Ente Idrico Campano",1502,1502,"Napoli","NA","063048","Mugnano di Napoli"]
["Campania","Napoli","Napoli (NA) ","Ente Idrico Campano",1502,1502,"Napoli","NA","063049","Napoli"]
["Campania","Nola","Nola (NA) ","Ente Idrico Campano",1504,1504,"Napoli","NA","063050","Nola"]
["Campania","Ottaviano","Ottaviano (NA) ","Ente Idrico Campano",1504,1504,"Napoli","NA","063051","Ottaviano"]
["Campania","Palma Campania","Palma Campania (NA) ","Ente Idrico Campano",1504,1504,"Napoli","NA","063052","Palma Campania"]
["Campania","Piano di Sorrento","Piano di Sorrento (NA) ","Ente Idrico Campano",1504,1504,"Napoli","NA","063053","Piano di Sorrento"]
["Campania","Pimonte","Pimonte (NA) ","Ente Idrico Campano",1504,1504,"Napoli","NA","063054","Pimonte"]
["Campania","Poggiomarino","Poggiomarino (NA) ","Ente Idrico Campano",1504,1504,"Napoli","NA","063055","Poggiomarino"]
["Campania","Pollena Trocchia","Pollena Trocchia (NA) ","Ente Idrico Campano",1504,1504,"Napoli","NA","063056","Pollena Trocchia"]
["Campania","Pomigliano d'Arco","Pomigliano d'Arco (NA) ","Ente Idrico Campano",1504,1504,"Napoli","NA","063057","Pomigliano d'Arco"]
["Campania","Pompei","Pompei (NA) ","Ente Idrico Campano",1504,1504,"Napoli","NA","063058","Pompei"]
["Campania","Portici","Portici (NA) ","Ente Idrico Campano",1504,1504,"Napoli","NA","063059","Portici"]
["Campania","Pozzuoli","Pozzuoli (NA) ","Ente Idrico Campano",1502,1502,"Napoli","NA","063060","Pozzuoli"]
["Campania","Procida","Procida (NA) ","Ente Idrico Campano",1502,1502,"Napoli","NA","063061","Procida"]
["Campania","Qualiano","Qualiano (NA) ","Ente Idrico Campano",1502,1502,"Napoli","NA","063062","Qualiano"]
["Campania","Quarto","Quarto (NA) ","Ente Idrico Campano",1502,1502,"Napoli","NA","063063","Quarto"]
["Campania","Ercolano","Ercolano (NA) ","Ente Idrico Campano",1504,1504,"Napoli","NA","063064","Ercolano"]
["Campania","Roccarainola","Roccarainola (NA) ","Ente Idrico Campano",1504,1504,"Napoli","NA","063065","Roccarainola"]
["Campania","San Gennaro Vesuviano","San Gennaro Vesuviano (NA) ","Ente Idrico Campano",1504,1504,"Napoli","NA","063066","San Gennaro Vesuviano"]
["Campania","San Giorgio a Cremano","San Giorgio a Cremano (NA) ","Ente Idrico Campano",1504,1504,"Napoli","NA","063067","San Giorgio a Cremano"]
["Campania","San Giuseppe Vesuviano","San Giuseppe Vesuviano (NA) ","Ente Idrico Campano",1504,1504,"Napoli","NA","063068","San Giuseppe Vesuviano"]
["Campania","San Paolo Bel Sito","San Paolo Bel Sito (NA) ","Ente Idrico Campano",1504,1504,"Napoli","NA","063069","San Paolo Bel Sito"]
["Campania","San Sebastiano al Vesuvio","San Sebastiano al Vesuvio (NA) ","Ente Idrico Campano",1504,1504,"Napoli","NA","063070","San Sebastiano al Vesuvio"]
["Campania","Sant'Agnello","Sant'Agnello (NA) ","Ente Idrico Campano",1504,1504,"Napoli","NA","063071","Sant'Agnello"]
["Campania","Sant'Anastasia","Sant'Anastasia (NA) ","Ente Idrico Campano",1504,1504,"Napoli","NA","063072","Sant'Anastasia"]
["Campania","Sant'Antimo","Sant'Antimo (NA) ","Ente Idrico Campano",1502,1502,"Napoli","NA","063073","Sant'Antimo"]
["Campania","Sant'Antonio Abate","Sant'Antonio Abate (NA) ","Ente Idrico Campano",1504,1504,"Napoli","NA","063074","Sant'Antonio Abate"]
["Campania","San Vitaliano","San Vitaliano (NA) ","Ente Idrico Campano",1504,1504,"Napoli","NA","063075","San Vitaliano"]
["Campania","Saviano","Saviano (NA) ","Ente Idrico Campano",1504,1504,"Napoli","NA","063076","Saviano"]
["Campania","Scisciano","Scisciano (NA) ","Ente Idrico Campano",1504,1504,"Napoli","NA","063077","Scisciano"]
["Campania","Serrara Fontana","Serrara Fontana (NA) ","Ente Idrico Campano",1502,1502,"Napoli","NA","063078","Serrara Fontana"]
["Campania","Somma Vesuviana","Somma Vesuviana (NA) ","Ente Idrico Campano",1504,1504,"Napoli","NA","063079","Somma Vesuviana"]
["Campania","Sorrento","Sorrento (NA) ","Ente Idrico Campano",1504,1504,"Napoli","NA","063080","Sorrento"]
["Campania","Striano","Striano (NA) ","Ente Idrico Campano",1504,1504,"Napoli","NA","063081","Striano"]
["Campania","Terzigno","Terzigno (NA) ","Ente Idrico Campano",1504,1504,"Napoli","NA","063082","Terzigno"]
["Campania","Torre Annunziata","Torre Annunziata (NA) ","Ente Idrico Campano",1504,1504,"Napoli","NA","063083","Torre Annunziata"]
["Campania","Torre del Greco","Torre del Greco (NA) ","Ente Idrico Campano",1504,1504,"Napoli","NA","063084","Torre del Greco"]
["Campania","Tufino","Tufino (NA) ","Ente Idrico Campano",1504,1504,"Napoli","NA","063085","Tufino"]
["Campania","Vico Equense","Vico Equense (NA) ","Ente Idrico Campano",1504,1504,"Napoli","NA","063086","Vico Equense"]
["Campania","Villaricca","Villaricca (NA) ","Ente Idrico Campano",1502,1502,"Napoli","NA","063087","Villaricca"]
["Campania","Visciano","Visciano (NA) ","Ente Idrico Campano",1504,1504,"Napoli","NA","063088","Visciano"]
["Campania","Volla","Volla (NA) ","Ente Idrico Campano",1504,1504,"Napoli","NA","063089","Volla"]
["Campania","Santa Maria la Carità","Santa Maria la Carità (NA) ","Ente Idrico Campano",1504,1504,"Napoli","NA","063090","Santa Maria la Carità"]
["Campania","Trecase","Trecase (NA) ","Ente Idrico Campano",1504,1504,"Napoli","NA","063091","Trecase"]
["Campania","Massa di Somma","Massa di Somma (NA) ","Ente Idrico Campano",1504,1504,"Napoli","NA","063092","Massa di Somma"]
["Campania","Aiello del Sabato","Aiello del Sabato (AV) ","Ente Idrico Campano",1506,1506,"Avellino","AV","064001","Aiello del Sabato"]
["Campania","Altavilla Irpina","Altavilla Irpina (AV) ","Ente Idrico Campano",1506,1506,"Avellino","AV","064002","Altavilla Irpina"]
["Campania","Andretta","Andretta (AV) ","Ente Idrico Campano",1506,1506,"Avellino","AV","064003","Andretta"]
["Campania","Aquilonia","Aquilonia (AV) ","Ente Idrico Campano",1506,1506,"Avellino","AV","064004","Aquilonia"]
["Campania","Ariano Irpino","Ariano Irpino (AV) ","Ente Idrico Campano",1506,1506,"Avellino","AV","064005","Ariano Irpino"]
["Campania","Atripalda","Atripalda (AV) ","Ente Idrico Campano",1506,1506,"Avellino","AV","064006","Atripalda"]
["Campania","Avella","Avella (AV) ","Ente Idrico Campano",1506,1506,"Avellino","AV","064007","Avella"]
["Campania","Avellino","Avellino (AV) ","Ente Idrico Campano",1506,1506,"Avellino","AV","064008","Avellino"]
["Campania","Bagnoli Irpino","Bagnoli Irpino (AV) ","Ente Idrico Campano",1506,1506,"Avellino","AV","064009","Bagnoli Irpino"]
["Campania","Baiano","Baiano (AV) ","Ente Idrico Campano",1506,1506,"Avellino","AV","064010","Baiano"]
["Campania","Bisaccia","Bisaccia (AV) ","Ente Idrico Campano",1506,1506,"Avellino","AV","064011","Bisaccia"]
["Campania","Bonito","Bonito (AV) ","Ente Idrico Campano",1506,1506,"Avellino","AV","064012","Bonito"]
["Campania","Cairano","Cairano (AV) ","Ente Idrico Campano",1506,1506,"Avellino","AV","064013","Cairano"]
["Campania","Calabritto","Calabritto (AV) ","Ente Idrico Campano",1503,1503,"Avellino","AV","064014","Calabritto"]
["Campania","Calitri","Calitri (AV) ","Ente Idrico Campano",1506,1506,"Avellino","AV","064015","Calitri"]
["Campania","Candida","Candida (AV) ","Ente Idrico Campano",1506,1506,"Avellino","AV","064016","Candida"]
["Campania","Caposele","Caposele (AV) ","Ente Idrico Campano",1506,1506,"Avellino","AV","064017","Caposele"]
["Campania","Capriglia Irpina","Capriglia Irpina (AV) ","Ente Idrico Campano",1506,1506,"Avellino","AV","064018","Capriglia Irpina"]
["Campania","Carife","Carife (AV) ","Ente Idrico Campano",1506,1506,"Avellino","AV","064019","Carife"]
["Campania","Casalbore","Casalbore (AV) ","Ente Idrico Campano",1506,1506,"Avellino","AV","064020","Casalbore"]
["Campania","Cassano Irpino","Cassano Irpino (AV) ","Ente Idrico Campano",1506,1506,"Avellino","AV","064021","Cassano Irpino"]
["Campania","Castel Baronia","Castel Baronia (AV) ","Ente Idrico Campano",1506,1506,"Avellino","AV","064022","Castel Baronia"]
["Campania","Castelfranci","Castelfranci (AV) ","Ente Idrico Campano",1506,1506,"Avellino","AV","064023","Castelfranci"]
["Campania","Castelvetere sul Calore","Castelvetere sul Calore (AV) ","Ente Idrico Campano",1506,1506,"Avellino","AV","064024","Castelvetere sul Calore"]
["Campania","Cervinara","Cervinara (AV) ","Ente Idrico Campano",1506,1506,"Avellino","AV","064025","Cervinara"]
["Campania","Cesinali","Cesinali (AV) ","Ente Idrico Campano",1506,1506,"Avellino","AV","064026","Cesinali"]
["Campania","Chianche","Chianche (AV) ","Ente Idrico Campano",1506,1506,"Avellino","AV","064027","Chianche"]
["Campania","Chiusano di San Domenico","Chiusano di San Domenico (AV) ","Ente Idrico Campano",1506,1506,"Avellino","AV","064028","Chiusano di San Domenico"]
["Campania","Contrada","Contrada (AV) ","Ente Idrico Campano",1506,1506,"Avellino","AV","064029","Contrada"]
["Campania","Conza della Campania","Conza della Campania (AV) ","Ente Idrico Campano",1506,1506,"Avellino","AV","064030","Conza della Campania"]
["Campania","Domicella","Domicella (AV) ","Ente Idrico Campano",1506,1506,"Avellino","AV","064031","Domicella"]
["Campania","Flumeri","Flumeri (AV) ","Ente Idrico Campano",1506,1506,"Avellino","AV","064032","Flumeri"]
["Campania","Fontanarosa","Fontanarosa (AV) ","Ente Idrico Campano",1506,1506,"Avellino","AV","064033","Fontanarosa"]
["Campania","Forino","Forino (AV) ","Ente Idrico Campano",1506,1506,"Avellino","AV","064034","Forino"]
["Campania","Frigento","Frigento (AV) ","Ente Idrico Campano",1506,1506,"Avellino","AV","064035","Frigento"]
["Campania","Gesualdo","Gesualdo (AV) ","Ente Idrico Campano",1506,1506,"Avellino","AV","064036","Gesualdo"]
["Campania","Greci","Greci (AV) ","Ente Idrico Campano",1506,1506,"Avellino","AV","064037","Greci"]
["Campania","Grottaminarda","Grottaminarda (AV) ","Ente Idrico Campano",1506,1506,"Avellino","AV","064038","Grottaminarda"]
["Campania","Grottolella","Grottolella (AV) ","Ente Idrico Campano",1506,1506,"Avellino","AV","064039","Grottolella"]
["Campania","Guardia Lombardi","Guardia Lombardi (AV) ","Ente Idrico Campano",1506,1506,"Avellino","AV","064040","Guardia Lombardi"]
["Campania","Lacedonia","Lacedonia (AV) ","Ente Idrico Campano",1506,1506,"Avellino","AV","064041","Lacedonia"]
["Campania","Lapio","Lapio (AV) ","Ente Idrico Campano",1506,1506,"Avellino","AV","064042","Lapio"]
["Campania","Lauro","Lauro (AV) ","Ente Idrico Campano",1506,1506,"Avellino","AV","064043","Lauro"]
["Campania","Lioni","Lioni (AV) ","Ente Idrico Campano",1506,1506,"Avellino","AV","064044","Lioni"]
["Campania","Luogosano","Luogosano (AV) ","Ente Idrico Campano",1506,1506,"Avellino","AV","064045","Luogosano"]
["Campania","Manocalzati","Manocalzati (AV) ","Ente Idrico Campano",1506,1506,"Avellino","AV","064046","Manocalzati"]
["Campania","Marzano di Nola","Marzano di Nola (AV) ","Ente Idrico Campano",1506,1506,"Avellino","AV","064047","Marzano di Nola"]
["Campania","Melito Irpino","Melito Irpino (AV) ","Ente Idrico Campano",1506,1506,"Avellino","AV","064048","Melito Irpino"]
["Campania","Mercogliano","Mercogliano (AV) ","Ente Idrico Campano",1506,1506,"Avellino","AV","064049","Mercogliano"]
["Campania","Mirabella Eclano","Mirabella Eclano (AV) ","Ente Idrico Campano",1506,1506,"Avellino","AV","064050","Mirabella Eclano"]
["Campania","Montaguto","Montaguto (AV) ","Ente Idrico Campano",1506,1506,"Avellino","AV","064051","Montaguto"]
["Campania","Montecalvo Irpino","Montecalvo Irpino (AV) ","Ente Idrico Campano",1506,1506,"Avellino","AV","064052","Montecalvo Irpino"]
["Campania","Montefalcione","Montefalcione (AV) ","Ente Idrico Campano",1506,1506,"Avellino","AV","064053","Montefalcione"]
["Campania","Monteforte Irpino","Monteforte Irpino (AV) ","Ente Idrico Campano",1506,1506,"Avellino","AV","064054","Monteforte Irpino"]
["Campania","Montefredane","Montefredane (AV) ","Ente Idrico Campano",1506,1506,"Avellino","AV","064055","Montefredane"]
["Campania","Montefusco","Montefusco (AV) ","Ente Idrico Campano",1506,1506,"Avellino","AV","064056","Montefusco"]
["Campania","Montella","Montella (AV) ","Ente Idrico Campano",1506,1506,"Avellino","AV","064057","Montella"]
["Campania","Montemarano","Montemarano (AV) ","Ente Idrico Campano",1506,1506,"Avellino","AV","064058","Montemarano"]
["Campania","Montemiletto","Montemiletto (AV) ","Ente Idrico Campano",1506,1506,"Avellino","AV","064059","Montemiletto"]
["Campania","Monteverde","Monteverde (AV) ","Ente Idrico Campano",1506,1506,"Avellino","AV","064060","Monteverde"]
["Campania","Morra De Sanctis","Morra De Sanctis (AV) ","Ente Idrico Campano",1506,1506,"Avellino","AV","064063","Morra De Sanctis"]
["Campania","Moschiano","Moschiano (AV) ","Ente Idrico Campano",1506,1506,"Avellino","AV","064064","Moschiano"]
["Campania","Mugnano del Cardinale","Mugnano del Cardinale (AV) ","Ente Idrico Campano",1506,1506,"Avellino","AV","064065","Mugnano del Cardinale"]
["Campania","Nusco","Nusco (AV) ","Ente Idrico Campano",1506,1506,"Avellino","AV","064066","Nusco"]
["Campania","Ospedaletto d'Alpinolo","Ospedaletto d'Alpinolo (AV) ","Ente Idrico Campano",1506,1506,"Avellino","AV","064067","Ospedaletto d'Alpinolo"]
["Campania","Pago del Vallo di Lauro","Pago del Vallo di Lauro (AV) ","Ente Idrico Campano",1506,1506,"Avellino","AV","064068","Pago del Vallo di Lauro"]
["Campania","Parolise","Parolise (AV) ","Ente Idrico Campano",1506,1506,"Avellino","AV","064069","Parolise"]
["Campania","Paternopoli","Paternopoli (AV) ","Ente Idrico Campano",1506,1506,"Avellino","AV","064070","Paternopoli"]
["Campania","Petruro Irpino","Petruro Irpino (AV) ","Ente Idrico Campano",1506,1506,"Avellino","AV","064071","Petruro Irpino"]
["Campania","Pietradefusi","Pietradefusi (AV) ","Ente Idrico Campano",1506,1506,"Avellino","AV","064072","Pietradefusi"]
["Campania","Pietrastornina","Pietrastornina (AV) ","Ente Idrico Campano",1506,1506,"Avellino","AV","064073","Pietrastornina"]
["Campania","Prata di Principato Ultra","Prata di Principato Ultra (AV) ","Ente Idrico Campano",1506,1506,"Avellino","AV","064074","Prata di Principato Ultra"]
["Campania","Pratola Serra","Pratola Serra (AV) ","Ente Idrico Campano",1506,1506,"Avellino","AV","064075","Pratola Serra"]
["Campania","Quadrelle","Quadrelle (AV) ","Ente Idrico Campano",1506,1506,"Avellino","AV","064076","Quadrelle"]
["Campania","Quindici","Quindici (AV) ","Ente Idrico Campano",1506,1506,"Avellino","AV","064077","Quindici"]
["Campania","Roccabascerana","Roccabascerana (AV) ","Ente Idrico Campano",1506,1506,"Avellino","AV","064078","Roccabascerana"]
["Campania","Rocca San Felice","Rocca San Felice (AV) ","Ente Idrico Campano",1506,1506,"Avellino","AV","064079","Rocca San Felice"]
["Campania","Rotondi","Rotondi (AV) ","Ente Idrico Campano",1506,1506,"Avellino","AV","064080","Rotondi"]
["Campania","Salza Irpina","Salza Irpina (AV) ","Ente Idrico Campano",1506,1506,"Avellino","AV","064081","Salza Irpina"]
["Campania","San Mango sul Calore","San Mango sul Calore (AV) ","Ente Idrico Campano",1506,1506,"Avellino","AV","064082","San Mango sul Calore"]
["Campania","San Martino Valle Caudina","San Martino Valle Caudina (AV) ","Ente Idrico Campano",1506,1506,"Avellino","AV","064083","San Martino Valle Caudina"]
["Campania","San Michele di Serino","San Michele di Serino (AV) ","Ente Idrico Campano",1506,1506,"Avellino","AV","064084","San Michele di Serino"]
["Campania","San Nicola Baronia","San Nicola Baronia (AV) ","Ente Idrico Campano",1506,1506,"Avellino","AV","064085","San Nicola Baronia"]
["Campania","San Potito Ultra","San Potito Ultra (AV) ","Ente Idrico Campano",1506,1506,"Avellino","AV","064086","San Potito Ultra"]
["Campania","San Sossio Baronia","San Sossio Baronia (AV) ","Ente Idrico Campano",1506,1506,"Avellino","AV","064087","San Sossio Baronia"]
["Campania","Santa Lucia di Serino","Santa Lucia di Serino (AV) ","Ente Idrico Campano",1506,1506,"Avellino","AV","064088","Santa Lucia di Serino"]
["Campania","Sant'Andrea di Conza","Sant'Andrea di Conza (AV) ","Ente Idrico Campano",1506,1506,"Avellino","AV","064089","Sant'Andrea di Conza"]
["Campania","Sant'Angelo all'Esca","Sant'Angelo all'Esca (AV) ","Ente Idrico Campano",1506,1506,"Avellino","AV","064090","Sant'Angelo all'Esca"]
["Campania","Sant'Angelo a Scala","Sant'Angelo a Scala (AV) ","Ente Idrico Campano",1506,1506,"Avellino","AV","064091","Sant'Angelo a Scala"]
["Campania","Sant'Angelo dei Lombardi","Sant'Angelo dei Lombardi (AV) ","Ente Idrico Campano",1506,1506,"Avellino","AV","064092","Sant'Angelo dei Lombardi"]
["Campania","Santa Paolina","Santa Paolina (AV) ","Ente Idrico Campano",1506,1506,"Avellino","AV","064093","Santa Paolina"]
["Campania","Santo Stefano del Sole","Santo Stefano del Sole (AV) ","Ente Idrico Campano",1506,1506,"Avellino","AV","064095","Santo Stefano del Sole"]
["Campania","Savignano Irpino","Savignano Irpino (AV) ","Ente Idrico Campano",1506,1506,"Avellino","AV","064096","Savignano Irpino"]
["Campania","Scampitella","Scampitella (AV) ","Ente Idrico Campano",1506,1506,"Avellino","AV","064097","Scampitella"]
["Campania","Senerchia","Senerchia (AV) ","Ente Idrico Campano",1503,1503,"Avellino","AV","064098","Senerchia"]
["Campania","Serino","Serino (AV) ","Ente Idrico Campano",1506,1506,"Avellino","AV","064099","Serino"]
["Campania","Sirignano","Sirignano (AV) ","Ente Idrico Campano",1506,1506,"Avellino","AV","064100","Sirignano"]
["Campania","Solofra","Solofra (AV) ","Ente Idrico Campano",1506,1506,"Avellino","AV","064101","Solofra"]
["Campania","Sorbo Serpico","Sorbo Serpico (AV) ","Ente Idrico Campano",1506,1506,"Avellino","AV","064102","Sorbo Serpico"]
["Campania","Sperone","Sperone (AV) ","Ente Idrico Campano",1506,1506,"Avellino","AV","064103","Sperone"]
["Campania","Sturno","Sturno (AV) ","Ente Idrico Campano",1506,1506,"Avellino","AV","064104","Sturno"]
["Campania","Summonte","Summonte (AV) ","Ente Idrico Campano",1506,1506,"Avellino","AV","064105","Summonte"]
["Campania","Taurano","Taurano (AV) ","Ente Idrico Campano",1506,1506,"Avellino","AV","064106","Taurano"]
["Campania","Taurasi","Taurasi (AV) ","Ente Idrico Campano",1506,1506,"Avellino","AV","064107","Taurasi"]
["Campania","Teora","Teora (AV) ","Ente Idrico Campano",1506,1506,"Avellino","AV","064108","Teora"]
["Campania","Torella dei Lombardi","Torella dei Lombardi (AV) ","Ente Idrico Campano",1506,1506,"Avellino","AV","064109","Torella dei Lombardi"]
["Campania","Torre Le Nocelle","Torre Le Nocelle (AV) ","Ente Idrico Campano",1506,1506,"Avellino","AV","064110","Torre Le Nocelle"]
["Campania","Torrioni","Torrioni (AV) ","Ente Idrico Campano",1506,1506,"Avellino","AV","064111","Torrioni"]
["Campania","Trevico","Trevico (AV) ","Ente Idrico Campano",1506,1506,"Avellino","AV","064112","Trevico"]
["Campania","Tufo","Tufo (AV) ","Ente Idrico Campano",1506,1506,"Avellino","AV","064113","Tufo"]
["Campania","Vallata","Vallata (AV) ","Ente Idrico Campano",1506,1506,"Avellino","AV","064114","Vallata"]
["Campania","Vallesaccarda","Vallesaccarda (AV) ","Ente Idrico Campano",1506,1506,"Avellino","AV","064115","Vallesaccarda"]
["Campania","Venticano","Venticano (AV) ","Ente Idrico Campano",1506,1506,"Avellino","AV","064116","Venticano"]
["Campania","Villamaina","Villamaina (AV) ","Ente Idrico Campano",1506,1506,"Avellino","AV","064117","Villamaina"]
["Campania","Villanova del Battista","Villanova del Battista (AV) ","Ente Idrico Campano",1506,1506,"Avellino","AV","064118","Villanova del Battista"]
["Campania","Volturara Irpina","Volturara Irpina (AV) ","Ente Idrico Campano",1506,1506,"Avellino","AV","064119","Volturara Irpina"]
["Campania","Zungoli","Zungoli (AV) ","Ente Idrico Campano",1506,1506,"Avellino","AV","064120","Zungoli"]
["Campania","Montoro","Montoro (AV) ","Ente Idrico Campano",1506,1506,"Avellino","AV","064121","Montoro"]
["Campania","Acerno","Acerno (SA) ","Ente Idrico Campano",1503,1503,"Salerno","SA","065001","Acerno"]
["Campania","Agropoli","Agropoli (SA) ","Ente Idrico Campano",1503,1503,"Salerno","SA","065002","Agropoli"]
["Campania","Albanella","Albanella (SA) ","Ente Idrico Campano",1503,1503,"Salerno","SA","065003","Albanella"]
["Campania","Alfano","Alfano (SA) ","Ente Idrico Campano",1503,1503,"Salerno","SA","065004","Alfano"]
["Campania","Altavilla Silentina","Altavilla Silentina (SA) ","Ente Idrico Campano",1503,1503,"Salerno","SA","065005","Altavilla Silentina"]
["Campania","Amalfi","Amalfi (SA) ","Ente Idrico Campano",1503,1503,"Salerno","SA","065006","Amalfi"]
["Campania","Angri","Angri (SA) ","Ente Idrico Campano",1504,1504,"Salerno","SA","065007","Angri"]
["Campania","Aquara","Aquara (SA) ","Ente Idrico Campano",1503,1503,"Salerno","SA","065008","Aquara"]
["Campania","Ascea","Ascea (SA) ","Ente Idrico Campano",1503,1503,"Salerno","SA","065009","Ascea"]
["Campania","Atena Lucana","Atena Lucana (SA) ","Ente Idrico Campano",1503,1503,"Salerno","SA","065010","Atena Lucana"]
["Campania","Atrani","Atrani (SA) ","Ente Idrico Campano",1503,1503,"Salerno","SA","065011","Atrani"]
["Campania","Auletta","Auletta (SA) ","Ente Idrico Campano",1503,1503,"Salerno","SA","065012","Auletta"]
["Campania","Baronissi","Baronissi (SA) ","Ente Idrico Campano",1503,1503,"Salerno","SA","065013","Baronissi"]
["Campania","Battipaglia","Battipaglia (SA) ","Ente Idrico Campano",1503,1503,"Salerno","SA","065014","Battipaglia"]
["Campania","Bellosguardo","Bellosguardo (SA) ","Ente Idrico Campano",1503,1503,"Salerno","SA","065015","Bellosguardo"]
["Campania","Bracigliano","Bracigliano (SA) ","Ente Idrico Campano",1504,1504,"Salerno","SA","065016","Bracigliano"]
["Campania","Buccino","Buccino (SA) ","Ente Idrico Campano",1503,1503,"Salerno","SA","065017","Buccino"]
["Campania","Buonabitacolo","Buonabitacolo (SA) ","Ente Idrico Campano",1503,1503,"Salerno","SA","065018","Buonabitacolo"]
["Campania","Caggiano","Caggiano (SA) ","Ente Idrico Campano",1503,1503,"Salerno","SA","065019","Caggiano"]
["Campania","Calvanico","Calvanico (SA) ","Ente Idrico Campano",1504,1504,"Salerno","SA","065020","Calvanico"]
["Campania","Camerota","Camerota (SA) ","Ente Idrico Campano",1503,1503,"Salerno","SA","065021","Camerota"]
["Campania","Campagna","Campagna (SA) ","Ente Idrico Campano",1503,1503,"Salerno","SA","065022","Campagna"]
["Campania","Campora","Campora (SA) ","Ente Idrico Campano",1503,1503,"Salerno","SA","065023","Campora"]
["Campania","Cannalonga","Cannalonga (SA) ","Ente Idrico Campano",1503,1503,"Salerno","SA","065024","Cannalonga"]
["Campania","Capaccio Paestum","Capaccio Paestum (SA) ","Ente Idrico Campano",1503,1503,"Salerno","SA","065025","Capaccio Paestum"]
["Campania","Casalbuono","Casalbuono (SA) ","Ente Idrico Campano",1503,1503,"Salerno","SA","065026","Casalbuono"]
["Campania","Casaletto Spartano","Casaletto Spartano (SA) ","Ente Idrico Campano",1503,1503,"Salerno","SA","065027","Casaletto Spartano"]
["Campania","Casal Velino","Casal Velino (SA) ","Ente Idrico Campano",1503,1503,"Salerno","SA","065028","Casal Velino"]
["Campania","Caselle in Pittari","Caselle in Pittari (SA) ","Ente Idrico Campano",1503,1503,"Salerno","SA","065029","Caselle in Pittari"]
["Campania","Castelcivita","Castelcivita (SA) ","Ente Idrico Campano",1503,1503,"Salerno","SA","065030","Castelcivita"]
["Campania","Castellabate","Castellabate (SA) ","Ente Idrico Campano",1503,1503,"Salerno","SA","065031","Castellabate"]
["Campania","Castelnuovo Cilento","Castelnuovo Cilento (SA) ","Ente Idrico Campano",1503,1503,"Salerno","SA","065032","Castelnuovo Cilento"]
["Campania","Castelnuovo di Conza","Castelnuovo di Conza (SA) ","Ente Idrico Campano",1503,1503,"Salerno","SA","065033","Castelnuovo di Conza"]
["Campania","Castel San Giorgio","Castel San Giorgio (SA) ","Ente Idrico Campano",1504,1504,"Salerno","SA","065034","Castel San Giorgio"]
["Campania","Castel San Lorenzo","Castel San Lorenzo (SA) ","Ente Idrico Campano",1503,1503,"Salerno","SA","065035","Castel San Lorenzo"]
["Campania","Castiglione del Genovesi","Castiglione del Genovesi (SA) ","Ente Idrico Campano",1503,1503,"Salerno","SA","065036","Castiglione del Genovesi"]
["Campania","Cava de' Tirreni","Cava de' Tirreni (SA) ","Ente Idrico Campano",1503,1503,"Salerno","SA","065037","Cava de' Tirreni"]
["Campania","Celle di Bulgheria","Celle di Bulgheria (SA) ","Ente Idrico Campano",1503,1503,"Salerno","SA","065038","Celle di Bulgheria"]
["Campania","Centola","Centola (SA) ","Ente Idrico Campano",1503,1503,"Salerno","SA","065039","Centola"]
["Campania","Ceraso","Ceraso (SA) ","Ente Idrico Campano",1503,1503,"Salerno","SA","065040","Ceraso"]
["Campania","Cetara","Cetara (SA) ","Ente Idrico Campano",1503,1503,"Salerno","SA","065041","Cetara"]
["Campania","Cicerale","Cicerale (SA) ","Ente Idrico Campano",1503,1503,"Salerno","SA","065042","Cicerale"]
["Campania","Colliano","Colliano (SA) ","Ente Idrico Campano",1503,1503,"Salerno","SA","065043","Colliano"]
["Campania","Conca dei Marini","Conca dei Marini (SA) ","Ente Idrico Campano",1503,1503,"Salerno","SA","065044","Conca dei Marini"]
["Campania","Controne","Controne (SA) ","Ente Idrico Campano",1503,1503,"Salerno","SA","065045","Controne"]
["Campania","Contursi Terme","Contursi Terme (SA) ","Ente Idrico Campano",1503,1503,"Salerno","SA","065046","Contursi Terme"]
["Campania","Corbara","Corbara (SA) ","Ente Idrico Campano",1504,1504,"Salerno","SA","065047","Corbara"]
["Campania","Corleto Monforte","Corleto Monforte (SA) ","Ente Idrico Campano",1503,1503,"Salerno","SA","065048","Corleto Monforte"]
["Campania","Cuccaro Vetere","Cuccaro Vetere (SA) ","Ente Idrico Campano",1503,1503,"Salerno","SA","065049","Cuccaro Vetere"]
["Campania","Eboli","Eboli (SA) ","Ente Idrico Campano",1503,1503,"Salerno","SA","065050","Eboli"]
["Campania","Felitto","Felitto (SA) ","Ente Idrico Campano",1503,1503,"Salerno","SA","065051","Felitto"]
["Campania","Fisciano","Fisciano (SA) ","Ente Idrico Campano",1504,1504,"Salerno","SA","065052","Fisciano"]
["Campania","Furore","Furore (SA) ","Ente Idrico Campano",1503,1503,"Salerno","SA","065053","Furore"]
["Campania","Futani","Futani (SA) ","Ente Idrico Campano",1503,1503,"Salerno","SA","065054","Futani"]
["Campania","Giffoni Sei Casali","Giffoni Sei Casali (SA) ","Ente Idrico Campano",1503,1503,"Salerno","SA","065055","Giffoni Sei Casali"]
["Campania","Giffoni Valle Piana","Giffoni Valle Piana (SA) ","Ente Idrico Campano",1503,1503,"Salerno","SA","065056","Giffoni Valle Piana"]
["Campania","Gioi","Gioi (SA) ","Ente Idrico Campano",1503,1503,"Salerno","SA","065057","Gioi"]
["Campania","Giungano","Giungano (SA) ","Ente Idrico Campano",1503,1503,"Salerno","SA","065058","Giungano"]
["Campania","Ispani","Ispani (SA) ","Ente Idrico Campano",1503,1503,"Salerno","SA","065059","Ispani"]
["Campania","Laureana Cilento","Laureana Cilento (SA) ","Ente Idrico Campano",1503,1503,"Salerno","SA","065060","Laureana Cilento"]
["Campania","Laurino","Laurino (SA) ","Ente Idrico Campano",1503,1503,"Salerno","SA","065061","Laurino"]
["Campania","Laurito","Laurito (SA) ","Ente Idrico Campano",1503,1503,"Salerno","SA","065062","Laurito"]
["Campania","Laviano","Laviano (SA) ","Ente Idrico Campano",1503,1503,"Salerno","SA","065063","Laviano"]
["Campania","Lustra","Lustra (SA) ","Ente Idrico Campano",1503,1503,"Salerno","SA","065064","Lustra"]
["Campania","Magliano Vetere","Magliano Vetere (SA) ","Ente Idrico Campano",1503,1503,"Salerno","SA","065065","Magliano Vetere"]
["Campania","Maiori","Maiori (SA) ","Ente Idrico Campano",1503,1503,"Salerno","SA","065066","Maiori"]
["Campania","Mercato San Severino","Mercato San Severino (SA) ","Ente Idrico Campano",1504,1504,"Salerno","SA","065067","Mercato San Severino"]
["Campania","Minori","Minori (SA) ","Ente Idrico Campano",1503,1503,"Salerno","SA","065068","Minori"]
["Campania","Moio della Civitella","Moio della Civitella (SA) ","Ente Idrico Campano",1503,1503,"Salerno","SA","065069","Moio della Civitella"]
["Campania","Montano Antilia","Montano Antilia (SA) ","Ente Idrico Campano",1503,1503,"Salerno","SA","065070","Montano Antilia"]
["Campania","Montecorice","Montecorice (SA) ","Ente Idrico Campano",1503,1503,"Salerno","SA","065071","Montecorice"]
["Campania","Montecorvino Pugliano","Montecorvino Pugliano (SA) ","Ente Idrico Campano",1503,1503,"Salerno","SA","065072","Montecorvino Pugliano"]
["Campania","Montecorvino Rovella","Montecorvino Rovella (SA) ","Ente Idrico Campano",1503,1503,"Salerno","SA","065073","Montecorvino Rovella"]
["Campania","Monteforte Cilento","Monteforte Cilento (SA) ","Ente Idrico Campano",1503,1503,"Salerno","SA","065074","Monteforte Cilento"]
["Campania","Monte San Giacomo","Monte San Giacomo (SA) ","Ente Idrico Campano",1503,1503,"Salerno","SA","065075","Monte San Giacomo"]
["Campania","Montesano sulla Marcellana","Montesano sulla Marcellana (SA) ","Ente Idrico Campano",1503,1503,"Salerno","SA","065076","Montesano sulla Marcellana"]
["Campania","Morigerati","Morigerati (SA) ","Ente Idrico Campano",1503,1503,"Salerno","SA","065077","Morigerati"]
["Campania","Nocera Inferiore","Nocera Inferiore (SA) ","Ente Idrico Campano",1504,1504,"Salerno","SA","065078","Nocera Inferiore"]
["Campania","Nocera Superiore","Nocera Superiore (SA) ","Ente Idrico Campano",1504,1504,"Salerno","SA","065079","Nocera Superiore"]
["Campania","Novi Velia","Novi Velia (SA) ","Ente Idrico Campano",1503,1503,"Salerno","SA","065080","Novi Velia"]
["Campania","Ogliastro Cilento","Ogliastro Cilento (SA) ","Ente Idrico Campano",1503,1503,"Salerno","SA","065081","Ogliastro Cilento"]
["Campania","Olevano sul Tusciano","Olevano sul Tusciano (SA) ","Ente Idrico Campano",1503,1503,"Salerno","SA","065082","Olevano sul Tusciano"]
["Campania","Oliveto Citra","Oliveto Citra (SA) ","Ente Idrico Campano",1503,1503,"Salerno","SA","065083","Oliveto Citra"]
["Campania","Omignano","Omignano (SA) ","Ente Idrico Campano",1503,1503,"Salerno","SA","065084","Omignano"]
["Campania","Orria","Orria (SA) ","Ente Idrico Campano",1503,1503,"Salerno","SA","065085","Orria"]
["Campania","Ottati","Ottati (SA) ","Ente Idrico Campano",1503,1503,"Salerno","SA","065086","Ottati"]
["Campania","Padula","Padula (SA) ","Ente Idrico Campano",1503,1503,"Salerno","SA","065087","Padula"]
["Campania","Pagani","Pagani (SA) ","Ente Idrico Campano",1504,1504,"Salerno","SA","065088","Pagani"]
["Campania","Palomonte","Palomonte (SA) ","Ente Idrico Campano",1503,1503,"Salerno","SA","065089","Palomonte"]
["Campania","Pellezzano","Pellezzano (SA) ","Ente Idrico Campano",1503,1503,"Salerno","SA","065090","Pellezzano"]
["Campania","Perdifumo","Perdifumo (SA) ","Ente Idrico Campano",1503,1503,"Salerno","SA","065091","Perdifumo"]
["Campania","Perito","Perito (SA) ","Ente Idrico Campano",1503,1503,"Salerno","SA","065092","Perito"]
["Campania","Pertosa","Pertosa (SA) ","Ente Idrico Campano",1503,1503,"Salerno","SA","065093","Pertosa"]
["Campania","Petina","Petina (SA) ","Ente Idrico Campano",1503,1503,"Salerno","SA","065094","Petina"]
["Campania","Piaggine","Piaggine (SA) ","Ente Idrico Campano",1503,1503,"Salerno","SA","065095","Piaggine"]
["Campania","Pisciotta","Pisciotta (SA) ","Ente Idrico Campano",1503,1503,"Salerno","SA","065096","Pisciotta"]
["Campania","Polla","Polla (SA) ","Ente Idrico Campano",1503,1503,"Salerno","SA","065097","Polla"]
["Campania","Pollica","Pollica (SA) ","Ente Idrico Campano",1503,1503,"Salerno","SA","065098","Pollica"]
["Campania","Pontecagnano Faiano","Pontecagnano Faiano (SA) ","Ente Idrico Campano",1503,1503,"Salerno","SA","065099","Pontecagnano Faiano"]
["Campania","Positano","Positano (SA) ","Ente Idrico Campano",1503,1503,"Salerno","SA","065100","Positano"]
["Campania","Postiglione","Postiglione (SA) ","Ente Idrico Campano",1503,1503,"Salerno","SA","065101","Postiglione"]
["Campania","Praiano","Praiano (SA) ","Ente Idrico Campano",1503,1503,"Salerno","SA","065102","Praiano"]
["Campania","Prignano Cilento","Prignano Cilento (SA) ","Ente Idrico Campano",1503,1503,"Salerno","SA","065103","Prignano Cilento"]
["Campania","Ravello","Ravello (SA) ","Ente Idrico Campano",1503,1503,"Salerno","SA","065104","Ravello"]
["Campania","Ricigliano","Ricigliano (SA) ","Ente Idrico Campano",1503,1503,"Salerno","SA","065105","Ricigliano"]
["Campania","Roccadaspide","Roccadaspide (SA) ","Ente Idrico Campano",1503,1503,"Salerno","SA","065106","Roccadaspide"]
["Campania","Roccagloriosa","Roccagloriosa (SA) ","Ente Idrico Campano",1503,1503,"Salerno","SA","065107","Roccagloriosa"]
["Campania","Roccapiemonte","Roccapiemonte (SA) ","Ente Idrico Campano",1504,1504,"Salerno","SA","065108","Roccapiemonte"]
["Campania","Rofrano","Rofrano (SA) ","Ente Idrico Campano",1503,1503,"Salerno","SA","065109","Rofrano"]
["Campania","Romagnano al Monte","Romagnano al Monte (SA) ","Ente Idrico Campano",1503,1503,"Salerno","SA","065110","Romagnano al Monte"]
["Campania","Roscigno","Roscigno (SA) ","Ente Idrico Campano",1503,1503,"Salerno","SA","065111","Roscigno"]
["Campania","Rutino","Rutino (SA) ","Ente Idrico Campano",1503,1503,"Salerno","SA","065112","Rutino"]
["Campania","Sacco","Sacco (SA) ","Ente Idrico Campano",1503,1503,"Salerno","SA","065113","Sacco"]
["Campania","Sala Consilina","Sala Consilina (SA) ","Ente Idrico Campano",1503,1503,"Salerno","SA","065114","Sala Consilina"]
["Campania","Salento","Salento (SA) ","Ente Idrico Campano",1503,1503,"Salerno","SA","065115","Salento"]
["Campania","Salerno","Salerno (SA) ","Ente Idrico Campano",1503,1503,"Salerno","SA","065116","Salerno"]
["Campania","Salvitelle","Salvitelle (SA) ","Ente Idrico Campano",1503,1503,"Salerno","SA","065117","Salvitelle"]
["Campania","San Cipriano Picentino","San Cipriano Picentino (SA) ","Ente Idrico Campano",1503,1503,"Salerno","SA","065118","San Cipriano Picentino"]
["Campania","San Giovanni a Piro","San Giovanni a Piro (SA) ","Ente Idrico Campano",1503,1503,"Salerno","SA","065119","San Giovanni a Piro"]
["Campania","San Gregorio Magno","San Gregorio Magno (SA) ","Ente Idrico Campano",1503,1503,"Salerno","SA","065120","San Gregorio Magno"]
["Campania","San Mango Piemonte","San Mango Piemonte (SA) ","Ente Idrico Campano",1503,1503,"Salerno","SA","065121","San Mango Piemonte"]
["Campania","San Marzano sul Sarno","San Marzano sul Sarno (SA) ","Ente Idrico Campano",1504,1504,"Salerno","SA","065122","San Marzano sul Sarno"]
["Campania","San Mauro Cilento","San Mauro Cilento (SA) ","Ente Idrico Campano",1503,1503,"Salerno","SA","065123","San Mauro Cilento"]
["Campania","San Mauro la Bruca","San Mauro la Bruca (SA) ","Ente Idrico Campano",1503,1503,"Salerno","SA","065124","San Mauro la Bruca"]
["Campania","San Pietro al Tanagro","San Pietro al Tanagro (SA) ","Ente Idrico Campano",1503,1503,"Salerno","SA","065125","San Pietro al Tanagro"]
["Campania","San Rufo","San Rufo (SA) ","Ente Idrico Campano",1503,1503,"Salerno","SA","065126","San Rufo"]
["Campania","Santa Marina","Santa Marina (SA) ","Ente Idrico Campano",1503,1503,"Salerno","SA","065127","Santa Marina"]
["Campania","Sant'Angelo a Fasanella","Sant'Angelo a Fasanella (SA) ","Ente Idrico Campano",1503,1503,"Salerno","SA","065128","Sant'Angelo a Fasanella"]
["Campania","Sant'Arsenio","Sant'Arsenio (SA) ","Ente Idrico Campano",1503,1503,"Salerno","SA","065129","Sant'Arsenio"]
["Campania","Sant'Egidio del Monte Albino","Sant'Egidio del Monte Albino (SA) ","Ente Idrico Campano",1504,1504,"Salerno","SA","065130","Sant'Egidio del Monte Albino"]
["Campania","Santomenna","Santomenna (SA) ","Ente Idrico Campano",1503,1503,"Salerno","SA","065131","Santomenna"]
["Campania","San Valentino Torio","San Valentino Torio (SA) ","Ente Idrico Campano",1504,1504,"Salerno","SA","065132","San Valentino Torio"]
["Campania","Sanza","Sanza (SA) ","Ente Idrico Campano",1503,1503,"Salerno","SA","065133","Sanza"]
["Campania","Sapri","Sapri (SA) ","Ente Idrico Campano",1503,1503,"Salerno","SA","065134","Sapri"]
["Campania","Sarno","Sarno (SA) ","Ente Idrico Campano",1504,1504,"Salerno","SA","065135","Sarno"]
["Campania","Sassano","Sassano (SA) ","Ente Idrico Campano",1503,1503,"Salerno","SA","065136","Sassano"]
["Campania","Scafati","Scafati (SA) ","Ente Idrico Campano",1504,1504,"Salerno","SA","065137","Scafati"]
["Campania","Scala","Scala (SA) ","Ente Idrico Campano",1503,1503,"Salerno","SA","065138","Scala"]
["Campania","Serramezzana","Serramezzana (SA) ","Ente Idrico Campano",1503,1503,"Salerno","SA","065139","Serramezzana"]
["Campania","Serre","Serre (SA) ","Ente Idrico Campano",1503,1503,"Salerno","SA","065140","Serre"]
["Campania","Sessa Cilento","Sessa Cilento (SA) ","Ente Idrico Campano",1503,1503,"Salerno","SA","065141","Sessa Cilento"]
["Campania","Siano","Siano (SA) ","Ente Idrico Campano",1504,1504,"Salerno","SA","065142","Siano"]
["Campania","Sicignano degli Alburni","Sicignano degli Alburni (SA) ","Ente Idrico Campano",1503,1503,"Salerno","SA","065143","Sicignano degli Alburni"]
["Campania","Stella Cilento","Stella Cilento (SA) ","Ente Idrico Campano",1503,1503,"Salerno","SA","065144","Stella Cilento"]
["Campania","Stio","Stio (SA) ","Ente Idrico Campano",1503,1503,"Salerno","SA","065145","Stio"]
["Campania","Teggiano","Teggiano (SA) ","Ente Idrico Campano",1503,1503,"Salerno","SA","065146","Teggiano"]
["Campania","Torchiara","Torchiara (SA) ","Ente Idrico Campano",1503,1503,"Salerno","SA","065147","Torchiara"]
["Campania","Torraca","Torraca (SA) ","Ente Idrico Campano",1503,1503,"Salerno","SA","065148","Torraca"]
["Campania","Torre Orsaia","Torre Orsaia (SA) ","Ente Idrico Campano",1503,1503,"Salerno","SA","065149","Torre Orsaia"]
["Campania","Tortorella","Tortorella (SA) ","Ente Idrico Campano",1503,1503,"Salerno","SA","065150","Tortorella"]
["Campania","Tramonti","Tramonti (SA) ","Ente Idrico Campano",1503,1503,"Salerno","SA","065151","Tramonti"]
["Campania","Trentinara","Trentinara (SA) ","Ente Idrico Campano",1503,1503,"Salerno","SA","065152","Trentinara"]
["Campania","Valle dell'Angelo","Valle dell'Angelo (SA) ","Ente Idrico Campano",1503,1503,"Salerno","SA","065153","Valle dell'Angelo"]
["Campania","Vallo della Lucania","Vallo della Lucania (SA) ","Ente Idrico Campano",1503,1503,"Salerno","SA","065154","Vallo della Lucania"]
["Campania","Valva","Valva (SA) ","Ente Idrico Campano",1503,1503,"Salerno","SA","065155","Valva"]
["Campania","Vibonati","Vibonati (SA) ","Ente Idrico Campano",1503,1503,"Salerno","SA","065156","Vibonati"]
["Campania","Vietri sul Mare","Vietri sul Mare (SA) ","Ente Idrico Campano",1503,1503,"Salerno","SA","065157","Vietri sul Mare"]
["Campania","Bellizzi","Bellizzi (SA) ","Ente Idrico Campano",1503,1503,"Salerno","SA","065158","Bellizzi"]
["Abruzzo","Acciano","Acciano (AQ) ","Ente Regionale per il Servizio Idrico Integrato",1301,1301,"L'Aquila","AQ","066001","Acciano"]
["Abruzzo","Aielli","Aielli (AQ) ","Ente Regionale per il Servizio Idrico Integrato",1302,1302,"L'Aquila","AQ","066002","Aielli"]
["Abruzzo","Alfedena","Alfedena (AQ) ","Ente Regionale per il Servizio Idrico Integrato",1303,1303,"L'Aquila","AQ","066003","Alfedena"]
["Abruzzo","Anversa degli Abruzzi","Anversa degli Abruzzi (AQ) ","Ente Regionale per il Servizio Idrico Integrato",1303,1303,"L'Aquila","AQ","066004","Anversa degli Abruzzi"]
["Abruzzo","Ateleta","Ateleta (AQ) ","Ente Regionale per il Servizio Idrico Integrato",1303,1303,"L'Aquila","AQ","066005","Ateleta"]
["Abruzzo","Avezzano","Avezzano (AQ) ","Ente Regionale per il Servizio Idrico Integrato",1302,1302,"L'Aquila","AQ","066006","Avezzano"]
["Abruzzo","Balsorano","Balsorano (AQ) ","Ente Regionale per il Servizio Idrico Integrato",1302,1302,"L'Aquila","AQ","066007","Balsorano"]
["Abruzzo","Barete","Barete (AQ) ","Ente Regionale per il Servizio Idrico Integrato",1301,1301,"L'Aquila","AQ","066008","Barete"]
["Abruzzo","Barisciano","Barisciano (AQ) ","Ente Regionale per il Servizio Idrico Integrato",1301,1301,"L'Aquila","AQ","066009","Barisciano"]
["Abruzzo","Barrea","Barrea (AQ) ","Ente Regionale per il Servizio Idrico Integrato",1303,1303,"L'Aquila","AQ","066010","Barrea"]
["Abruzzo","Bisegna","Bisegna (AQ) ","Ente Regionale per il Servizio Idrico Integrato",1302,1302,"L'Aquila","AQ","066011","Bisegna"]
["Abruzzo","Bugnara","Bugnara (AQ) ","Ente Regionale per il Servizio Idrico Integrato",1303,1303,"L'Aquila","AQ","066012","Bugnara"]
["Abruzzo","Cagnano Amiterno","Cagnano Amiterno (AQ) ","Ente Regionale per il Servizio Idrico Integrato",1301,1301,"L'Aquila","AQ","066013","Cagnano Amiterno"]
["Abruzzo","Calascio","Calascio (AQ) ","Ente Regionale per il Servizio Idrico Integrato",1301,1301,"L'Aquila","AQ","066014","Calascio"]
["Abruzzo","Campo di Giove","Campo di Giove (AQ) ","Ente Regionale per il Servizio Idrico Integrato",1303,1303,"L'Aquila","AQ","066015","Campo di Giove"]
["Abruzzo","Campotosto","Campotosto (AQ) ","Ente Regionale per il Servizio Idrico Integrato",1301,1301,"L'Aquila","AQ","066016","Campotosto"]
["Abruzzo","Canistro","Canistro (AQ) ","Ente Regionale per il Servizio Idrico Integrato",1302,1302,"L'Aquila","AQ","066017","Canistro"]
["Abruzzo","Cansano","Cansano (AQ) ","Ente Regionale per il Servizio Idrico Integrato",1303,1303,"L'Aquila","AQ","066018","Cansano"]
["Abruzzo","Capestrano","Capestrano (AQ) ","Ente Regionale per il Servizio Idrico Integrato",1301,1301,"L'Aquila","AQ","066019","Capestrano"]
["Abruzzo","Capistrello","Capistrello (AQ) ","Ente Regionale per il Servizio Idrico Integrato",1302,1302,"L'Aquila","AQ","066020","Capistrello"]
["Abruzzo","Capitignano","Capitignano (AQ) ","Ente Regionale per il Servizio Idrico Integrato",1301,1301,"L'Aquila","AQ","066021","Capitignano"]
["Abruzzo","Caporciano","Caporciano (AQ) ","Ente Regionale per il Servizio Idrico Integrato",1301,1301,"L'Aquila","AQ","066022","Caporciano"]
["Abruzzo","Cappadocia","Cappadocia (AQ) ","Ente Regionale per il Servizio Idrico Integrato",1302,1302,"L'Aquila","AQ","066023","Cappadocia"]
["Abruzzo","Carapelle Calvisio","Carapelle Calvisio (AQ) ","Ente Regionale per il Servizio Idrico Integrato",1301,1301,"L'Aquila","AQ","066024","Carapelle Calvisio"]
["Abruzzo","Carsoli","Carsoli (AQ) ","Ente Regionale per il Servizio Idrico Integrato",1302,1302,"L'Aquila","AQ","066025","Carsoli"]
["Abruzzo","Castel del Monte","Castel del Monte (AQ) ","Ente Regionale per il Servizio Idrico Integrato",1301,1301,"L'Aquila","AQ","066026","Castel del Monte"]
["Abruzzo","Castel di Ieri","Castel di Ieri (AQ) ","Ente Regionale per il Servizio Idrico Integrato",1303,1303,"L'Aquila","AQ","066027","Castel di Ieri"]
["Abruzzo","Castel di Sangro","Castel di Sangro (AQ) ","Ente Regionale per il Servizio Idrico Integrato",1303,1303,"L'Aquila","AQ","066028","Castel di Sangro"]
["Abruzzo","Castellafiume","Castellafiume (AQ) ","Ente Regionale per il Servizio Idrico Integrato",1302,1302,"L'Aquila","AQ","066029","Castellafiume"]
["Abruzzo","Castelvecchio Calvisio","Castelvecchio Calvisio (AQ) ","Ente Regionale per il Servizio Idrico Integrato",1301,1301,"L'Aquila","AQ","066030","Castelvecchio Calvisio"]
["Abruzzo","Castelvecchio Subequo","Castelvecchio Subequo (AQ) ","Ente Regionale per il Servizio Idrico Integrato",1303,1303,"L'Aquila","AQ","066031","Castelvecchio Subequo"]
["Abruzzo","Celano","Celano (AQ) ","Ente Regionale per il Servizio Idrico Integrato",1302,1302,"L'Aquila","AQ","066032","Celano"]
["Abruzzo","Cerchio","Cerchio (AQ) ","Ente Regionale per il Servizio Idrico Integrato",1302,1302,"L'Aquila","AQ","066033","Cerchio"]
["Abruzzo","Civita d'Antino","Civita d'Antino (AQ) ","Ente Regionale per il Servizio Idrico Integrato",1302,1302,"L'Aquila","AQ","066034","Civita d'Antino"]
["Abruzzo","Civitella Alfedena","Civitella Alfedena (AQ) ","Ente Regionale per il Servizio Idrico Integrato",1303,1303,"L'Aquila","AQ","066035","Civitella Alfedena"]
["Abruzzo","Civitella Roveto","Civitella Roveto (AQ) ","Ente Regionale per il Servizio Idrico Integrato",1302,1302,"L'Aquila","AQ","066036","Civitella Roveto"]
["Abruzzo","Cocullo","Cocullo (AQ) ","Ente Regionale per il Servizio Idrico Integrato",1303,1303,"L'Aquila","AQ","066037","Cocullo"]
["Abruzzo","Collarmele","Collarmele (AQ) ","Ente Regionale per il Servizio Idrico Integrato",1302,1302,"L'Aquila","AQ","066038","Collarmele"]
["Abruzzo","Collelongo","Collelongo (AQ) ","Ente Regionale per il Servizio Idrico Integrato",1302,1302,"L'Aquila","AQ","066039","Collelongo"]
["Abruzzo","Collepietro","Collepietro (AQ) ","Ente Regionale per il Servizio Idrico Integrato",1301,1301,"L'Aquila","AQ","066040","Collepietro"]
["Abruzzo","Corfinio","Corfinio (AQ) ","Ente Regionale per il Servizio Idrico Integrato",1303,1303,"L'Aquila","AQ","066041","Corfinio"]
["Abruzzo","Fagnano Alto","Fagnano Alto (AQ) ","Ente Regionale per il Servizio Idrico Integrato",1301,1301,"L'Aquila","AQ","066042","Fagnano Alto"]
["Abruzzo","Fontecchio","Fontecchio (AQ) ","Ente Regionale per il Servizio Idrico Integrato",1301,1301,"L'Aquila","AQ","066043","Fontecchio"]
["Abruzzo","Fossa","Fossa (AQ) ","Ente Regionale per il Servizio Idrico Integrato",1301,1301,"L'Aquila","AQ","066044","Fossa"]
["Abruzzo","Gagliano Aterno","Gagliano Aterno (AQ) ","Ente Regionale per il Servizio Idrico Integrato",1303,1303,"L'Aquila","AQ","066045","Gagliano Aterno"]
["Abruzzo","Gioia dei Marsi","Gioia dei Marsi (AQ) ","Ente Regionale per il Servizio Idrico Integrato",1302,1302,"L'Aquila","AQ","066046","Gioia dei Marsi"]
["Abruzzo","Goriano Sicoli","Goriano Sicoli (AQ) ","Ente Regionale per il Servizio Idrico Integrato",1303,1303,"L'Aquila","AQ","066047","Goriano Sicoli"]
["Abruzzo","Introdacqua","Introdacqua (AQ) ","Ente Regionale per il Servizio Idrico Integrato",1303,1303,"L'Aquila","AQ","066048","Introdacqua"]
["Abruzzo","L'Aquila","L'Aquila (AQ) ","Ente Regionale per il Servizio Idrico Integrato",1301,1301,"L'Aquila","AQ","066049","L'Aquila"]
["Abruzzo","Lecce nei Marsi","Lecce nei Marsi (AQ) ","Ente Regionale per il Servizio Idrico Integrato",1302,1302,"L'Aquila","AQ","066050","Lecce nei Marsi"]
["Abruzzo","Luco dei Marsi","Luco dei Marsi (AQ) ","Ente Regionale per il Servizio Idrico Integrato",1302,1302,"L'Aquila","AQ","066051","Luco dei Marsi"]
["Abruzzo","Lucoli","Lucoli (AQ) ","Ente Regionale per il Servizio Idrico Integrato",1301,1301,"L'Aquila","AQ","066052","Lucoli"]
["Abruzzo","Magliano de' Marsi","Magliano de' Marsi (AQ) ","Ente Regionale per il Servizio Idrico Integrato",1302,1302,"L'Aquila","AQ","066053","Magliano de' Marsi"]
["Abruzzo","Massa d'Albe","Massa d'Albe (AQ) ","Ente Regionale per il Servizio Idrico Integrato",1302,1302,"L'Aquila","AQ","066054","Massa d'Albe"]
["Abruzzo","Molina Aterno","Molina Aterno (AQ) ","Ente Regionale per il Servizio Idrico Integrato",1303,1303,"L'Aquila","AQ","066055","Molina Aterno"]
["Abruzzo","Montereale","Montereale (AQ) ","Ente Regionale per il Servizio Idrico Integrato",1301,1301,"L'Aquila","AQ","066056","Montereale"]
["Abruzzo","Morino","Morino (AQ) ","Ente Regionale per il Servizio Idrico Integrato",1302,1302,"L'Aquila","AQ","066057","Morino"]
["Abruzzo","Navelli","Navelli (AQ) ","Ente Regionale per il Servizio Idrico Integrato",1301,1301,"L'Aquila","AQ","066058","Navelli"]
["Abruzzo","Ocre","Ocre (AQ) ","Ente Regionale per il Servizio Idrico Integrato",1301,1301,"L'Aquila","AQ","066059","Ocre"]
["Abruzzo","Ofena","Ofena (AQ) ","Ente Regionale per il Servizio Idrico Integrato",1301,1301,"L'Aquila","AQ","066060","Ofena"]
["Abruzzo","Opi","Opi (AQ) ","Ente Regionale per il Servizio Idrico Integrato",1303,1303,"L'Aquila","AQ","066061","Opi"]
["Abruzzo","Oricola","Oricola (AQ) ","Ente Regionale per il Servizio Idrico Integrato",1302,1302,"L'Aquila","AQ","066062","Oricola"]
["Abruzzo","Ortona dei Marsi","Ortona dei Marsi (AQ) ","Ente Regionale per il Servizio Idrico Integrato",1302,1302,"L'Aquila","AQ","066063","Ortona dei Marsi"]
["Abruzzo","Ortucchio","Ortucchio (AQ) ","Ente Regionale per il Servizio Idrico Integrato",1302,1302,"L'Aquila","AQ","066064","Ortucchio"]
["Abruzzo","Ovindoli","Ovindoli (AQ) ","Ente Regionale per il Servizio Idrico Integrato",1302,1302,"L'Aquila","AQ","066065","Ovindoli"]
["Abruzzo","Pacentro","Pacentro (AQ) ","Ente Regionale per il Servizio Idrico Integrato",1303,1303,"L'Aquila","AQ","066066","Pacentro"]
["Abruzzo","Pereto","Pereto (AQ) ","Ente Regionale per il Servizio Idrico Integrato",1302,1302,"L'Aquila","AQ","066067","Pereto"]
["Abruzzo","Pescasseroli","Pescasseroli (AQ) ","Ente Regionale per il Servizio Idrico Integrato",1303,1303,"L'Aquila","AQ","066068","Pescasseroli"]
["Abruzzo","Pescina","Pescina (AQ) ","Ente Regionale per il Servizio Idrico Integrato",1302,1302,"L'Aquila","AQ","066069","Pescina"]
["Abruzzo","Pescocostanzo","Pescocostanzo (AQ) ","Ente Regionale per il Servizio Idrico Integrato",1303,1303,"L'Aquila","AQ","066070","Pescocostanzo"]
["Abruzzo","Pettorano sul Gizio","Pettorano sul Gizio (AQ) ","Ente Regionale per il Servizio Idrico Integrato",1303,1303,"L'Aquila","AQ","066071","Pettorano sul Gizio"]
["Abruzzo","Pizzoli","Pizzoli (AQ) ","Ente Regionale per il Servizio Idrico Integrato",1301,1301,"L'Aquila","AQ","066072","Pizzoli"]
["Abruzzo","Poggio Picenze","Poggio Picenze (AQ) ","Ente Regionale per il Servizio Idrico Integrato",1301,1301,"L'Aquila","AQ","066073","Poggio Picenze"]
["Abruzzo","Prata d'Ansidonia","Prata d'Ansidonia (AQ) ","Ente Regionale per il Servizio Idrico Integrato",1301,1301,"L'Aquila","AQ","066074","Prata d'Ansidonia"]
["Abruzzo","Pratola Peligna","Pratola Peligna (AQ) ","Ente Regionale per il Servizio Idrico Integrato",1303,1303,"L'Aquila","AQ","066075","Pratola Peligna"]
["Abruzzo","Prezza","Prezza (AQ) ","Ente Regionale per il Servizio Idrico Integrato",1303,1303,"L'Aquila","AQ","066076","Prezza"]
["Abruzzo","Raiano","Raiano (AQ) ","Ente Regionale per il Servizio Idrico Integrato",1303,1303,"L'Aquila","AQ","066077","Raiano"]
["Abruzzo","Rivisondoli","Rivisondoli (AQ) ","Ente Regionale per il Servizio Idrico Integrato",1303,1303,"L'Aquila","AQ","066078","Rivisondoli"]
["Abruzzo","Roccacasale","Roccacasale (AQ) ","Ente Regionale per il Servizio Idrico Integrato",1303,1303,"L'Aquila","AQ","066079","Roccacasale"]
["Abruzzo","Rocca di Botte","Rocca di Botte (AQ) ","Ente Regionale per il Servizio Idrico Integrato",1302,1302,"L'Aquila","AQ","066080","Rocca di Botte"]
["Abruzzo","Rocca di Cambio","Rocca di Cambio (AQ) ","Ente Regionale per il Servizio Idrico Integrato",1301,1301,"L'Aquila","AQ","066081","Rocca di Cambio"]
["Abruzzo","Rocca di Mezzo","Rocca di Mezzo (AQ) ","Ente Regionale per il Servizio Idrico Integrato",1301,1301,"L'Aquila","AQ","066082","Rocca di Mezzo"]
["Abruzzo","Rocca Pia","Rocca Pia (AQ) ","Ente Regionale per il Servizio Idrico Integrato",1303,1303,"L'Aquila","AQ","066083","Rocca Pia"]
["Abruzzo","Roccaraso","Roccaraso (AQ) ","Ente Regionale per il Servizio Idrico Integrato",1303,1303,"L'Aquila","AQ","066084","Roccaraso"]
["Abruzzo","San Benedetto dei Marsi","San Benedetto dei Marsi (AQ) ","Ente Regionale per il Servizio Idrico Integrato",1302,1302,"L'Aquila","AQ","066085","San Benedetto dei Marsi"]
["Abruzzo","San Benedetto in Perillis","San Benedetto in Perillis (AQ) ","Ente Regionale per il Servizio Idrico Integrato",1301,1301,"L'Aquila","AQ","066086","San Benedetto in Perillis"]
["Abruzzo","San Demetrio ne' Vestini","San Demetrio ne' Vestini (AQ) ","Ente Regionale per il Servizio Idrico Integrato",1301,1301,"L'Aquila","AQ","066087","San Demetrio ne' Vestini"]
["Abruzzo","San Pio delle Camere","San Pio delle Camere (AQ) ","Ente Regionale per il Servizio Idrico Integrato",1301,1301,"L'Aquila","AQ","066088","San Pio delle Camere"]
["Abruzzo","Sante Marie","Sante Marie (AQ) ","Ente Regionale per il Servizio Idrico Integrato",1302,1302,"L'Aquila","AQ","066089","Sante Marie"]
["Abruzzo","Sant'Eusanio Forconese","Sant'Eusanio Forconese (AQ) ","Ente Regionale per il Servizio Idrico Integrato",1301,1301,"L'Aquila","AQ","066090","Sant'Eusanio Forconese"]
["Abruzzo","Santo Stefano di Sessanio","Santo Stefano di Sessanio (AQ) ","Ente Regionale per il Servizio Idrico Integrato",1301,1301,"L'Aquila","AQ","066091","Santo Stefano di Sessanio"]
["Abruzzo","San Vincenzo Valle Roveto","San Vincenzo Valle Roveto (AQ) ","Ente Regionale per il Servizio Idrico Integrato",1302,1302,"L'Aquila","AQ","066092","San Vincenzo Valle Roveto"]
["Abruzzo","Scanno","Scanno (AQ) ","Ente Regionale per il Servizio Idrico Integrato",1303,1303,"L'Aquila","AQ","066093","Scanno"]
["Abruzzo","Scontrone","Scontrone (AQ) ","Ente Regionale per il Servizio Idrico Integrato",1303,1303,"L'Aquila","AQ","066094","Scontrone"]
["Abruzzo","Scoppito","Scoppito (AQ) ","Ente Regionale per il Servizio Idrico Integrato",1301,1301,"L'Aquila","AQ","066095","Scoppito"]
["Abruzzo","Scurcola Marsicana","Scurcola Marsicana (AQ) ","Ente Regionale per il Servizio Idrico Integrato",1302,1302,"L'Aquila","AQ","066096","Scurcola Marsicana"]
["Abruzzo","Secinaro","Secinaro (AQ) ","Ente Regionale per il Servizio Idrico Integrato",1303,1303,"L'Aquila","AQ","066097","Secinaro"]
["Abruzzo","Sulmona","Sulmona (AQ) ","Ente Regionale per il Servizio Idrico Integrato",1303,1303,"L'Aquila","AQ","066098","Sulmona"]
["Abruzzo","Tagliacozzo","Tagliacozzo (AQ) ","Ente Regionale per il Servizio Idrico Integrato",1302,1302,"L'Aquila","AQ","066099","Tagliacozzo"]
["Abruzzo","Tione degli Abruzzi","Tione degli Abruzzi (AQ) ","Ente Regionale per il Servizio Idrico Integrato",1301,1301,"L'Aquila","AQ","066100","Tione degli Abruzzi"]
["Abruzzo","Tornimparte","Tornimparte (AQ) ","Ente Regionale per il Servizio Idrico Integrato",1301,1301,"L'Aquila","AQ","066101","Tornimparte"]
["Abruzzo","Trasacco","Trasacco (AQ) ","Ente Regionale per il Servizio Idrico Integrato",1302,1302,"L'Aquila","AQ","066102","Trasacco"]
["Abruzzo","Villalago","Villalago (AQ) ","Ente Regionale per il Servizio Idrico Integrato",1303,1303,"L'Aquila","AQ","066103","Villalago"]
["Abruzzo","Villa Santa Lucia degli Abruzzi","Villa Santa Lucia degli Abruzzi (AQ) ","Ente Regionale per il Servizio Idrico Integrato",1301,1301,"L'Aquila","AQ","066104","Villa Santa Lucia degli Abruzzi"]
["Abruzzo","Villa Sant'Angelo","Villa Sant'Angelo (AQ) ","Ente Regionale per il Servizio Idrico Integrato",1301,1301,"L'Aquila","AQ","066105","Villa Sant'Angelo"]
["Abruzzo","Villavallelonga","Villavallelonga (AQ) ","Ente Regionale per il Servizio Idrico Integrato",1302,1302,"L'Aquila","AQ","066106","Villavallelonga"]
["Abruzzo","Villetta Barrea","Villetta Barrea (AQ) ","Ente Regionale per il Servizio Idrico Integrato",1303,1303,"L'Aquila","AQ","066107","Villetta Barrea"]
["Abruzzo","Vittorito","Vittorito (AQ) ","Ente Regionale per il Servizio Idrico Integrato",1303,1303,"L'Aquila","AQ","066108","Vittorito"]
["Abruzzo","Alba Adriatica","Alba Adriatica (TE) ","Ente Regionale per il Servizio Idrico Integrato",1305,1305,"Teramo","TE","067001","Alba Adriatica"]
["Abruzzo","Ancarano","Ancarano (TE) ","Ente Regionale per il Servizio Idrico Integrato",1305,1305,"Teramo","TE","067002","Ancarano"]
["Abruzzo","Arsita","Arsita (TE) ","Ente Regionale per il Servizio Idrico Integrato",1304,1304,"Teramo","TE","067003","Arsita"]
["Abruzzo","Atri","Atri (TE) ","Ente Regionale per il Servizio Idrico Integrato",1304,1304,"Teramo","TE","067004","Atri"]
["Abruzzo","Basciano","Basciano (TE) ","Ente Regionale per il Servizio Idrico Integrato",1305,1305,"Teramo","TE","067005","Basciano"]
["Abruzzo","Bellante","Bellante (TE) ","Ente Regionale per il Servizio Idrico Integrato",1305,1305,"Teramo","TE","067006","Bellante"]
["Abruzzo","Bisenti","Bisenti (TE) ","Ente Regionale per il Servizio Idrico Integrato",1304,1304,"Teramo","TE","067007","Bisenti"]
["Abruzzo","Campli","Campli (TE) ","Ente Regionale per il Servizio Idrico Integrato",1305,1305,"Teramo","TE","067008","Campli"]
["Abruzzo","Canzano","Canzano (TE) ","Ente Regionale per il Servizio Idrico Integrato",1305,1305,"Teramo","TE","067009","Canzano"]
["Abruzzo","Castel Castagna","Castel Castagna (TE) ","Ente Regionale per il Servizio Idrico Integrato",1305,1305,"Teramo","TE","067010","Castel Castagna"]
["Abruzzo","Castellalto","Castellalto (TE) ","Ente Regionale per il Servizio Idrico Integrato",1305,1305,"Teramo","TE","067011","Castellalto"]
["Abruzzo","Castelli","Castelli (TE) ","Ente Regionale per il Servizio Idrico Integrato",1305,1305,"Teramo","TE","067012","Castelli"]
["Abruzzo","Castiglione Messer Raimondo","Castiglione Messer Raimondo (TE) ","Ente Regionale per il Servizio Idrico Integrato",1304,1304,"Teramo","TE","067013","Castiglione Messer Raimondo"]
["Abruzzo","Castilenti","Castilenti (TE) ","Ente Regionale per il Servizio Idrico Integrato",1304,1304,"Teramo","TE","067014","Castilenti"]
["Abruzzo","Cellino Attanasio","Cellino Attanasio (TE) ","Ente Regionale per il Servizio Idrico Integrato",1305,1305,"Teramo","TE","067015","Cellino Attanasio"]
["Abruzzo","Cermignano","Cermignano (TE) ","Ente Regionale per il Servizio Idrico Integrato",1305,1305,"Teramo","TE","067016","Cermignano"]
["Abruzzo","Civitella del Tronto","Civitella del Tronto (TE) ","Ente Regionale per il Servizio Idrico Integrato",1305,1305,"Teramo","TE","067017","Civitella del Tronto"]
["Abruzzo","Colledara","Colledara (TE) ","Ente Regionale per il Servizio Idrico Integrato",1305,1305,"Teramo","TE","067018","Colledara"]
["Abruzzo","Colonnella","Colonnella (TE) ","Ente Regionale per il Servizio Idrico Integrato",1305,1305,"Teramo","TE","067019","Colonnella"]
["Abruzzo","Controguerra","Controguerra (TE) ","Ente Regionale per il Servizio Idrico Integrato",1305,1305,"Teramo","TE","067020","Controguerra"]
["Abruzzo","Corropoli","Corropoli (TE) ","Ente Regionale per il Servizio Idrico Integrato",1305,1305,"Teramo","TE","067021","Corropoli"]
["Abruzzo","Cortino","Cortino (TE) ","Ente Regionale per il Servizio Idrico Integrato",1305,1305,"Teramo","TE","067022","Cortino"]
["Abruzzo","Crognaleto","Crognaleto (TE) ","Ente Regionale per il Servizio Idrico Integrato",1305,1305,"Teramo","TE","067023","Crognaleto"]
["Abruzzo","Fano Adriano","Fano Adriano (TE) ","Ente Regionale per il Servizio Idrico Integrato",1305,1305,"Teramo","TE","067024","Fano Adriano"]
["Abruzzo","Giulianova","Giulianova (TE) ","Ente Regionale per il Servizio Idrico Integrato",1305,1305,"Teramo","TE","067025","Giulianova"]
["Abruzzo","Isola del Gran Sasso d'Italia","Isola del Gran Sasso d'Italia (TE) ","Ente Regionale per il Servizio Idrico Integrato",1305,1305,"Teramo","TE","067026","Isola del Gran Sasso d'Italia"]
["Abruzzo","Montefino","Montefino (TE) ","Ente Regionale per il Servizio Idrico Integrato",1304,1304,"Teramo","TE","067027","Montefino"]
["Abruzzo","Montorio al Vomano","Montorio al Vomano (TE) ","Ente Regionale per il Servizio Idrico Integrato",1305,1305,"Teramo","TE","067028","Montorio al Vomano"]
["Abruzzo","Morro d'Oro","Morro d'Oro (TE) ","Ente Regionale per il Servizio Idrico Integrato",1305,1305,"Teramo","TE","067029","Morro d'Oro"]
["Abruzzo","Mosciano Sant'Angelo","Mosciano Sant'Angelo (TE) ","Ente Regionale per il Servizio Idrico Integrato",1305,1305,"Teramo","TE","067030","Mosciano Sant'Angelo"]
["Abruzzo","Nereto","Nereto (TE) ","Ente Regionale per il Servizio Idrico Integrato",1305,1305,"Teramo","TE","067031","Nereto"]
["Abruzzo","Notaresco","Notaresco (TE) ","Ente Regionale per il Servizio Idrico Integrato",1305,1305,"Teramo","TE","067032","Notaresco"]
["Abruzzo","Penna Sant'Andrea","Penna Sant'Andrea (TE) ","Ente Regionale per il Servizio Idrico Integrato",1305,1305,"Teramo","TE","067033","Penna Sant'Andrea"]
["Abruzzo","Pietracamela","Pietracamela (TE) ","Ente Regionale per il Servizio Idrico Integrato",1305,1305,"Teramo","TE","067034","Pietracamela"]
["Abruzzo","Pineto","Pineto (TE) ","Ente Regionale per il Servizio Idrico Integrato",1305,1305,"Teramo","TE","067035","Pineto"]
["Abruzzo","Rocca Santa Maria","Rocca Santa Maria (TE) ","Ente Regionale per il Servizio Idrico Integrato",1305,1305,"Teramo","TE","067036","Rocca Santa Maria"]
["Abruzzo","Roseto degli Abruzzi","Roseto degli Abruzzi (TE) ","Ente Regionale per il Servizio Idrico Integrato",1305,1305,"Teramo","TE","067037","Roseto degli Abruzzi"]
["Abruzzo","Sant'Egidio alla Vibrata","Sant'Egidio alla Vibrata (TE) ","Ente Regionale per il Servizio Idrico Integrato",1305,1305,"Teramo","TE","067038","Sant'Egidio alla Vibrata"]
["Abruzzo","Sant'Omero","Sant'Omero (TE) ","Ente Regionale per il Servizio Idrico Integrato",1305,1305,"Teramo","TE","067039","Sant'Omero"]
["Abruzzo","Silvi","Silvi (TE) ","Ente Regionale per il Servizio Idrico Integrato",1304,1304,"Teramo","TE","067040","Silvi"]
["Abruzzo","Teramo","Teramo (TE) ","Ente Regionale per il Servizio Idrico Integrato",1305,1305,"Teramo","TE","067041","Teramo"]
["Abruzzo","Torano Nuovo","Torano Nuovo (TE) ","Ente Regionale per il Servizio Idrico Integrato",1305,1305,"Teramo","TE","067042","Torano Nuovo"]
["Abruzzo","Torricella Sicura","Torricella Sicura (TE) ","Ente Regionale per il Servizio Idrico Integrato",1305,1305,"Teramo","TE","067043","Torricella Sicura"]
["Abruzzo","Tortoreto","Tortoreto (TE) ","Ente Regionale per il Servizio Idrico Integrato",1305,1305,"Teramo","TE","067044","Tortoreto"]
["Abruzzo","Tossicia","Tossicia (TE) ","Ente Regionale per il Servizio Idrico Integrato",1305,1305,"Teramo","TE","067045","Tossicia"]
["Abruzzo","Valle Castellana","Valle Castellana (TE) ","Ente Regionale per il Servizio Idrico Integrato",1305,1305,"Teramo","TE","067046","Valle Castellana"]
["Abruzzo","Martinsicuro","Martinsicuro (TE) ","Ente Regionale per il Servizio Idrico Integrato",1305,1305,"Teramo","TE","067047","Martinsicuro"]
["Abruzzo","Abbateggio","Abbateggio (PE) ","Ente Regionale per il Servizio Idrico Integrato",1304,1304,"Pescara","PE","068001","Abbateggio"]
["Abruzzo","Alanno","Alanno (PE) ","Ente Regionale per il Servizio Idrico Integrato",1304,1304,"Pescara","PE","068002","Alanno"]
["Abruzzo","Bolognano","Bolognano (PE) ","Ente Regionale per il Servizio Idrico Integrato",1304,1304,"Pescara","PE","068003","Bolognano"]
["Abruzzo","Brittoli","Brittoli (PE) ","Ente Regionale per il Servizio Idrico Integrato",1304,1304,"Pescara","PE","068004","Brittoli"]
["Abruzzo","Bussi sul Tirino","Bussi sul Tirino (PE) ","Ente Regionale per il Servizio Idrico Integrato",1304,1304,"Pescara","PE","068005","Bussi sul Tirino"]
["Abruzzo","Cappelle sul Tavo","Cappelle sul Tavo (PE) ","Ente Regionale per il Servizio Idrico Integrato",1304,1304,"Pescara","PE","068006","Cappelle sul Tavo"]
["Abruzzo","Caramanico Terme","Caramanico Terme (PE) ","Ente Regionale per il Servizio Idrico Integrato",1304,1304,"Pescara","PE","068007","Caramanico Terme"]
["Abruzzo","Carpineto della Nora","Carpineto della Nora (PE) ","Ente Regionale per il Servizio Idrico Integrato",1304,1304,"Pescara","PE","068008","Carpineto della Nora"]
["Abruzzo","Castiglione a Casauria","Castiglione a Casauria (PE) ","Ente Regionale per il Servizio Idrico Integrato",1304,1304,"Pescara","PE","068009","Castiglione a Casauria"]
["Abruzzo","Catignano","Catignano (PE) ","Ente Regionale per il Servizio Idrico Integrato",1304,1304,"Pescara","PE","068010","Catignano"]
["Abruzzo","Cepagatti","Cepagatti (PE) ","Ente Regionale per il Servizio Idrico Integrato",1304,1304,"Pescara","PE","068011","Cepagatti"]
["Abruzzo","Città Sant'Angelo","Città Sant'Angelo (PE) ","Ente Regionale per il Servizio Idrico Integrato",1304,1304,"Pescara","PE","068012","Città Sant'Angelo"]
["Abruzzo","Civitaquana","Civitaquana (PE) ","Ente Regionale per il Servizio Idrico Integrato",1304,1304,"Pescara","PE","068013","Civitaquana"]
["Abruzzo","Civitella Casanova","Civitella Casanova (PE) ","Ente Regionale per il Servizio Idrico Integrato",1304,1304,"Pescara","PE","068014","Civitella Casanova"]
["Abruzzo","Collecorvino","Collecorvino (PE) ","Ente Regionale per il Servizio Idrico Integrato",1304,1304,"Pescara","PE","068015","Collecorvino"]
["Abruzzo","Corvara","Corvara (PE) ","Ente Regionale per il Servizio Idrico Integrato",1304,1304,"Pescara","PE","068016","Corvara"]
["Abruzzo","Cugnoli","Cugnoli (PE) ","Ente Regionale per il Servizio Idrico Integrato",1304,1304,"Pescara","PE","068017","Cugnoli"]
["Abruzzo","Elice","Elice (PE) ","Ente Regionale per il Servizio Idrico Integrato",1304,1304,"Pescara","PE","068018","Elice"]
["Abruzzo","Farindola","Farindola (PE) ","Ente Regionale per il Servizio Idrico Integrato",1304,1304,"Pescara","PE","068019","Farindola"]
["Abruzzo","Lettomanoppello","Lettomanoppello (PE) ","Ente Regionale per il Servizio Idrico Integrato",1304,1304,"Pescara","PE","068020","Lettomanoppello"]
["Abruzzo","Loreto Aprutino","Loreto Aprutino (PE) ","Ente Regionale per il Servizio Idrico Integrato",1304,1304,"Pescara","PE","068021","Loreto Aprutino"]
["Abruzzo","Manoppello","Manoppello (PE) ","Ente Regionale per il Servizio Idrico Integrato",1304,1304,"Pescara","PE","068022","Manoppello"]
["Abruzzo","Montebello di Bertona","Montebello di Bertona (PE) ","Ente Regionale per il Servizio Idrico Integrato",1304,1304,"Pescara","PE","068023","Montebello di Bertona"]
["Abruzzo","Montesilvano","Montesilvano (PE) ","Ente Regionale per il Servizio Idrico Integrato",1304,1304,"Pescara","PE","068024","Montesilvano"]
["Abruzzo","Moscufo","Moscufo (PE) ","Ente Regionale per il Servizio Idrico Integrato",1304,1304,"Pescara","PE","068025","Moscufo"]
["Abruzzo","Nocciano","Nocciano (PE) ","Ente Regionale per il Servizio Idrico Integrato",1304,1304,"Pescara","PE","068026","Nocciano"]
["Abruzzo","Penne","Penne (PE) ","Ente Regionale per il Servizio Idrico Integrato",1304,1304,"Pescara","PE","068027","Penne"]
["Abruzzo","Pescara","Pescara (PE) ","Ente Regionale per il Servizio Idrico Integrato",1304,1304,"Pescara","PE","068028","Pescara"]
["Abruzzo","Pescosansonesco","Pescosansonesco (PE) ","Ente Regionale per il Servizio Idrico Integrato",1304,1304,"Pescara","PE","068029","Pescosansonesco"]
["Abruzzo","Pianella","Pianella (PE) ","Ente Regionale per il Servizio Idrico Integrato",1304,1304,"Pescara","PE","068030","Pianella"]
["Abruzzo","Picciano","Picciano (PE) ","Ente Regionale per il Servizio Idrico Integrato",1304,1304,"Pescara","PE","068031","Picciano"]
["Abruzzo","Pietranico","Pietranico (PE) ","Ente Regionale per il Servizio Idrico Integrato",1304,1304,"Pescara","PE","068032","Pietranico"]
["Abruzzo","Popoli Terme","Popoli Terme (PE) ","Ente Regionale per il Servizio Idrico Integrato",1304,1304,"Pescara","PE","068033","Popoli Terme"]
["Abruzzo","Roccamorice","Roccamorice (PE) ","Ente Regionale per il Servizio Idrico Integrato",1304,1304,"Pescara","PE","068034","Roccamorice"]
["Abruzzo","Rosciano","Rosciano (PE) ","Ente Regionale per il Servizio Idrico Integrato",1304,1304,"Pescara","PE","068035","Rosciano"]
["Abruzzo","Salle","Salle (PE) ","Ente Regionale per il Servizio Idrico Integrato",1304,1304,"Pescara","PE","068036","Salle"]
["Abruzzo","Sant'Eufemia a Maiella","Sant'Eufemia a Maiella (PE) ","Ente Regionale per il Servizio Idrico Integrato",1304,1304,"Pescara","PE","068037","Sant'Eufemia a Maiella"]
["Abruzzo","San Valentino in Abruzzo Citeriore","San Valentino in Abruzzo Citeriore (PE) ","Ente Regionale per il Servizio Idrico Integrato",1304,1304,"Pescara","PE","068038","San Valentino in Abruzzo Citeriore"]
["Abruzzo","Scafa","Scafa (PE) ","Ente Regionale per il Servizio Idrico Integrato",1304,1304,"Pescara","PE","068039","Scafa"]
["Abruzzo","Serramonacesca","Serramonacesca (PE) ","Ente Regionale per il Servizio Idrico Integrato",1304,1304,"Pescara","PE","068040","Serramonacesca"]
["Abruzzo","Spoltore","Spoltore (PE) ","Ente Regionale per il Servizio Idrico Integrato",1304,1304,"Pescara","PE","068041","Spoltore"]
["Abruzzo","Tocco da Casauria","Tocco da Casauria (PE) ","Ente Regionale per il Servizio Idrico Integrato",1304,1304,"Pescara","PE","068042","Tocco da Casauria"]
["Abruzzo","Torre de' Passeri","Torre de' Passeri (PE) ","Ente Regionale per il Servizio Idrico Integrato",1304,1304,"Pescara","PE","068043","Torre de' Passeri"]
["Abruzzo","Turrivalignani","Turrivalignani (PE) ","Ente Regionale per il Servizio Idrico Integrato",1304,1304,"Pescara","PE","068044","Turrivalignani"]
["Abruzzo","Vicoli","Vicoli (PE) ","Ente Regionale per il Servizio Idrico Integrato",1304,1304,"Pescara","PE","068045","Vicoli"]
["Abruzzo","Villa Celiera","Villa Celiera (PE) ","Ente Regionale per il Servizio Idrico Integrato",1304,1304,"Pescara","PE","068046","Villa Celiera"]
["Abruzzo","Altino","Altino (CH) ","Ente Regionale per il Servizio Idrico Integrato",1306,1306,"Chieti","CH","069001","Altino"]
["Abruzzo","Archi","Archi (CH) ","Ente Regionale per il Servizio Idrico Integrato",1306,1306,"Chieti","CH","069002","Archi"]
["Abruzzo","Ari","Ari (CH) ","Ente Regionale per il Servizio Idrico Integrato",1306,1306,"Chieti","CH","069003","Ari"]
["Abruzzo","Arielli","Arielli (CH) ","Ente Regionale per il Servizio Idrico Integrato",1306,1306,"Chieti","CH","069004","Arielli"]
["Abruzzo","Atessa","Atessa (CH) ","Ente Regionale per il Servizio Idrico Integrato",1306,1306,"Chieti","CH","069005","Atessa"]
["Abruzzo","Bomba","Bomba (CH) ","Ente Regionale per il Servizio Idrico Integrato",1306,1306,"Chieti","CH","069006","Bomba"]
["Abruzzo","Borrello","Borrello (CH) ","Ente Regionale per il Servizio Idrico Integrato",1306,1306,"Chieti","CH","069007","Borrello"]
["Abruzzo","Bucchianico","Bucchianico (CH) ","Ente Regionale per il Servizio Idrico Integrato",1304,1304,"Chieti","CH","069008","Bucchianico"]
["Abruzzo","Montebello sul Sangro","Montebello sul Sangro (CH) ","Ente Regionale per il Servizio Idrico Integrato",1306,1306,"Chieti","CH","069009","Montebello sul Sangro"]
["Abruzzo","Canosa Sannita","Canosa Sannita (CH) ","Ente Regionale per il Servizio Idrico Integrato",1306,1306,"Chieti","CH","069010","Canosa Sannita"]
["Abruzzo","Carpineto Sinello","Carpineto Sinello (CH) ","Ente Regionale per il Servizio Idrico Integrato",1306,1306,"Chieti","CH","069011","Carpineto Sinello"]
["Abruzzo","Carunchio","Carunchio (CH) ","Ente Regionale per il Servizio Idrico Integrato",1306,1306,"Chieti","CH","069012","Carunchio"]
["Abruzzo","Casacanditella","Casacanditella (CH) ","Ente Regionale per il Servizio Idrico Integrato",1306,1306,"Chieti","CH","069013","Casacanditella"]
["Abruzzo","Casalanguida","Casalanguida (CH) ","Ente Regionale per il Servizio Idrico Integrato",1306,1306,"Chieti","CH","069014","Casalanguida"]
["Abruzzo","Casalbordino","Casalbordino (CH) ","Ente Regionale per il Servizio Idrico Integrato",1306,1306,"Chieti","CH","069015","Casalbordino"]
["Abruzzo","Casalincontrada","Casalincontrada (CH) ","Ente Regionale per il Servizio Idrico Integrato",1304,1304,"Chieti","CH","069016","Casalincontrada"]
["Abruzzo","Casoli","Casoli (CH) ","Ente Regionale per il Servizio Idrico Integrato",1306,1306,"Chieti","CH","069017","Casoli"]
["Abruzzo","Castel Frentano","Castel Frentano (CH) ","Ente Regionale per il Servizio Idrico Integrato",1306,1306,"Chieti","CH","069018","Castel Frentano"]
["Abruzzo","Castelguidone","Castelguidone (CH) ","Ente Regionale per il Servizio Idrico Integrato",1306,1306,"Chieti","CH","069019","Castelguidone"]
["Abruzzo","Castiglione Messer Marino","Castiglione Messer Marino (CH) ","Ente Regionale per il Servizio Idrico Integrato",1306,1306,"Chieti","CH","069020","Castiglione Messer Marino"]
["Abruzzo","Celenza sul Trigno","Celenza sul Trigno (CH) ","Ente Regionale per il Servizio Idrico Integrato",1306,1306,"Chieti","CH","069021","Celenza sul Trigno"]
["Abruzzo","Chieti","Chieti (CH) ","Ente Regionale per il Servizio Idrico Integrato",1304,1304,"Chieti","CH","069022","Chieti"]
["Abruzzo","Civitaluparella","Civitaluparella (CH) ","Ente Regionale per il Servizio Idrico Integrato",1306,1306,"Chieti","CH","069023","Civitaluparella"]
["Abruzzo","Civitella Messer Raimondo","Civitella Messer Raimondo (CH) ","Ente Regionale per il Servizio Idrico Integrato",1306,1306,"Chieti","CH","069024","Civitella Messer Raimondo"]
["Abruzzo","Colledimacine","Colledimacine (CH) ","Ente Regionale per il Servizio Idrico Integrato",1306,1306,"Chieti","CH","069025","Colledimacine"]
["Abruzzo","Colledimezzo","Colledimezzo (CH) ","Ente Regionale per il Servizio Idrico Integrato",1306,1306,"Chieti","CH","069026","Colledimezzo"]
["Abruzzo","Crecchio","Crecchio (CH) ","Ente Regionale per il Servizio Idrico Integrato",1306,1306,"Chieti","CH","069027","Crecchio"]
["Abruzzo","Cupello","Cupello (CH) ","Ente Regionale per il Servizio Idrico Integrato",1306,1306,"Chieti","CH","069028","Cupello"]
["Abruzzo","Dogliola","Dogliola (CH) ","Ente Regionale per il Servizio Idrico Integrato",1306,1306,"Chieti","CH","069029","Dogliola"]
["Abruzzo","Fara Filiorum Petri","Fara Filiorum Petri (CH) ","Ente Regionale per il Servizio Idrico Integrato",1304,1304,"Chieti","CH","069030","Fara Filiorum Petri"]
["Abruzzo","Fara San Martino","Fara San Martino (CH) ","Ente Regionale per il Servizio Idrico Integrato",1306,1306,"Chieti","CH","069031","Fara San Martino"]
["Abruzzo","Filetto","Filetto (CH) ","Ente Regionale per il Servizio Idrico Integrato",1306,1306,"Chieti","CH","069032","Filetto"]
["Abruzzo","Fossacesia","Fossacesia (CH) ","Ente Regionale per il Servizio Idrico Integrato",1306,1306,"Chieti","CH","069033","Fossacesia"]
["Abruzzo","Fraine","Fraine (CH) ","Ente Regionale per il Servizio Idrico Integrato",1306,1306,"Chieti","CH","069034","Fraine"]
["Abruzzo","Francavilla al Mare","Francavilla al Mare (CH) ","Ente Regionale per il Servizio Idrico Integrato",1304,1304,"Chieti","CH","069035","Francavilla al Mare"]
["Abruzzo","Fresagrandinaria","Fresagrandinaria (CH) ","Ente Regionale per il Servizio Idrico Integrato",1306,1306,"Chieti","CH","069036","Fresagrandinaria"]
["Abruzzo","Frisa","Frisa (CH) ","Ente Regionale per il Servizio Idrico Integrato",1306,1306,"Chieti","CH","069037","Frisa"]
["Abruzzo","Furci","Furci (CH) ","Ente Regionale per il Servizio Idrico Integrato",1306,1306,"Chieti","CH","069038","Furci"]
["Abruzzo","Gamberale","Gamberale (CH) ","Ente Regionale per il Servizio Idrico Integrato",1306,1306,"Chieti","CH","069039","Gamberale"]
["Abruzzo","Gessopalena","Gessopalena (CH) ","Ente Regionale per il Servizio Idrico Integrato",1306,1306,"Chieti","CH","069040","Gessopalena"]
["Abruzzo","Gissi","Gissi (CH) ","Ente Regionale per il Servizio Idrico Integrato",1306,1306,"Chieti","CH","069041","Gissi"]
["Abruzzo","Giuliano Teatino","Giuliano Teatino (CH) ","Ente Regionale per il Servizio Idrico Integrato",1306,1306,"Chieti","CH","069042","Giuliano Teatino"]
["Abruzzo","Guardiagrele","Guardiagrele (CH) ","Ente Regionale per il Servizio Idrico Integrato",1306,1306,"Chieti","CH","069043","Guardiagrele"]
["Abruzzo","Guilmi","Guilmi (CH) ","Ente Regionale per il Servizio Idrico Integrato",1306,1306,"Chieti","CH","069044","Guilmi"]
["Abruzzo","Lama dei Peligni","Lama dei Peligni (CH) ","Ente Regionale per il Servizio Idrico Integrato",1306,1306,"Chieti","CH","069045","Lama dei Peligni"]
["Abruzzo","Lanciano","Lanciano (CH) ","Ente Regionale per il Servizio Idrico Integrato",1306,1306,"Chieti","CH","069046","Lanciano"]
["Abruzzo","Lentella","Lentella (CH) ","Ente Regionale per il Servizio Idrico Integrato",1306,1306,"Chieti","CH","069047","Lentella"]
["Abruzzo","Lettopalena","Lettopalena (CH) ","Ente Regionale per il Servizio Idrico Integrato",1306,1306,"Chieti","CH","069048","Lettopalena"]
["Abruzzo","Liscia","Liscia (CH) ","Ente Regionale per il Servizio Idrico Integrato",1306,1306,"Chieti","CH","069049","Liscia"]
["Abruzzo","Miglianico","Miglianico (CH) ","Ente Regionale per il Servizio Idrico Integrato",1304,1304,"Chieti","CH","069050","Miglianico"]
["Abruzzo","Montazzoli","Montazzoli (CH) ","Ente Regionale per il Servizio Idrico Integrato",1306,1306,"Chieti","CH","069051","Montazzoli"]
["Abruzzo","Monteferrante","Monteferrante (CH) ","Ente Regionale per il Servizio Idrico Integrato",1306,1306,"Chieti","CH","069052","Monteferrante"]
["Abruzzo","Montelapiano","Montelapiano (CH) ","Ente Regionale per il Servizio Idrico Integrato",1306,1306,"Chieti","CH","069053","Montelapiano"]
["Abruzzo","Montenerodomo","Montenerodomo (CH) ","Ente Regionale per il Servizio Idrico Integrato",1306,1306,"Chieti","CH","069054","Montenerodomo"]
["Abruzzo","Monteodorisio","Monteodorisio (CH) ","Ente Regionale per il Servizio Idrico Integrato",1306,1306,"Chieti","CH","069055","Monteodorisio"]
["Abruzzo","Mozzagrogna","Mozzagrogna (CH) ","Ente Regionale per il Servizio Idrico Integrato",1306,1306,"Chieti","CH","069056","Mozzagrogna"]
["Abruzzo","Orsogna","Orsogna (CH) ","Ente Regionale per il Servizio Idrico Integrato",1306,1306,"Chieti","CH","069057","Orsogna"]
["Abruzzo","Ortona","Ortona (CH) ","Ente Regionale per il Servizio Idrico Integrato",1306,1306,"Chieti","CH","069058","Ortona"]
["Abruzzo","Paglieta","Paglieta (CH) ","Ente Regionale per il Servizio Idrico Integrato",1306,1306,"Chieti","CH","069059","Paglieta"]
["Abruzzo","Palena","Palena (CH) ","Ente Regionale per il Servizio Idrico Integrato",1306,1306,"Chieti","CH","069060","Palena"]
["Abruzzo","Palmoli","Palmoli (CH) ","Ente Regionale per il Servizio Idrico Integrato",1306,1306,"Chieti","CH","069061","Palmoli"]
["Abruzzo","Palombaro","Palombaro (CH) ","Ente Regionale per il Servizio Idrico Integrato",1306,1306,"Chieti","CH","069062","Palombaro"]
["Abruzzo","Pennadomo","Pennadomo (CH) ","Ente Regionale per il Servizio Idrico Integrato",1306,1306,"Chieti","CH","069063","Pennadomo"]
["Abruzzo","Pennapiedimonte","Pennapiedimonte (CH) ","Ente Regionale per il Servizio Idrico Integrato",1306,1306,"Chieti","CH","069064","Pennapiedimonte"]
["Abruzzo","Perano","Perano (CH) ","Ente Regionale per il Servizio Idrico Integrato",1306,1306,"Chieti","CH","069065","Perano"]
["Abruzzo","Pizzoferrato","Pizzoferrato (CH) ","Ente Regionale per il Servizio Idrico Integrato",1306,1306,"Chieti","CH","069066","Pizzoferrato"]
["Abruzzo","Poggiofiorito","Poggiofiorito (CH) ","Ente Regionale per il Servizio Idrico Integrato",1306,1306,"Chieti","CH","069067","Poggiofiorito"]
["Abruzzo","Pollutri","Pollutri (CH) ","Ente Regionale per il Servizio Idrico Integrato",1306,1306,"Chieti","CH","069068","Pollutri"]
["Abruzzo","Pretoro","Pretoro (CH) ","Ente Regionale per il Servizio Idrico Integrato",1304,1304,"Chieti","CH","069069","Pretoro"]
["Abruzzo","Quadri","Quadri (CH) ","Ente Regionale per il Servizio Idrico Integrato",1306,1306,"Chieti","CH","069070","Quadri"]
["Abruzzo","Rapino","Rapino (CH) ","Ente Regionale per il Servizio Idrico Integrato",1304,1304,"Chieti","CH","069071","Rapino"]
["Abruzzo","Ripa Teatina","Ripa Teatina (CH) ","Ente Regionale per il Servizio Idrico Integrato",1304,1304,"Chieti","CH","069072","Ripa Teatina"]
["Abruzzo","Roccamontepiano","Roccamontepiano (CH) ","Ente Regionale per il Servizio Idrico Integrato",1304,1304,"Chieti","CH","069073","Roccamontepiano"]
["Abruzzo","Rocca San Giovanni","Rocca San Giovanni (CH) ","Ente Regionale per il Servizio Idrico Integrato",1306,1306,"Chieti","CH","069074","Rocca San Giovanni"]
["Abruzzo","Roccascalegna","Roccascalegna (CH) ","Ente Regionale per il Servizio Idrico Integrato",1306,1306,"Chieti","CH","069075","Roccascalegna"]
["Abruzzo","Roccaspinalveti","Roccaspinalveti (CH) ","Ente Regionale per il Servizio Idrico Integrato",1306,1306,"Chieti","CH","069076","Roccaspinalveti"]
["Abruzzo","Roio del Sangro","Roio del Sangro (CH) ","Ente Regionale per il Servizio Idrico Integrato",1306,1306,"Chieti","CH","069077","Roio del Sangro"]
["Abruzzo","Rosello","Rosello (CH) ","Ente Regionale per il Servizio Idrico Integrato",1306,1306,"Chieti","CH","069078","Rosello"]
["Abruzzo","San Buono","San Buono (CH) ","Ente Regionale per il Servizio Idrico Integrato",1306,1306,"Chieti","CH","069079","San Buono"]
["Abruzzo","San Giovanni Lipioni","San Giovanni Lipioni (CH) ","Ente Regionale per il Servizio Idrico Integrato",1306,1306,"Chieti","CH","069080","San Giovanni Lipioni"]
["Abruzzo","San Giovanni Teatino","San Giovanni Teatino (CH) ","Ente Regionale per il Servizio Idrico Integrato",1304,1304,"Chieti","CH","069081","San Giovanni Teatino"]
["Abruzzo","San Martino sulla Marrucina","San Martino sulla Marrucina (CH) ","Ente Regionale per il Servizio Idrico Integrato",1306,1306,"Chieti","CH","069082","San Martino sulla Marrucina"]
["Abruzzo","San Salvo","San Salvo (CH) ","Ente Regionale per il Servizio Idrico Integrato",1306,1306,"Chieti","CH","069083","San Salvo"]
["Abruzzo","Santa Maria Imbaro","Santa Maria Imbaro (CH) ","Ente Regionale per il Servizio Idrico Integrato",1306,1306,"Chieti","CH","069084","Santa Maria Imbaro"]
["Abruzzo","Sant'Eusanio del Sangro","Sant'Eusanio del Sangro (CH) ","Ente Regionale per il Servizio Idrico Integrato",1306,1306,"Chieti","CH","069085","Sant'Eusanio del Sangro"]
["Abruzzo","San Vito Chietino","San Vito Chietino (CH) ","Ente Regionale per il Servizio Idrico Integrato",1306,1306,"Chieti","CH","069086","San Vito Chietino"]
["Abruzzo","Scerni","Scerni (CH) ","Ente Regionale per il Servizio Idrico Integrato",1306,1306,"Chieti","CH","069087","Scerni"]
["Abruzzo","Schiavi di Abruzzo","Schiavi di Abruzzo (CH) ","Ente Regionale per il Servizio Idrico Integrato",1306,1306,"Chieti","CH","069088","Schiavi di Abruzzo"]
["Abruzzo","Taranta Peligna","Taranta Peligna (CH) ","Ente Regionale per il Servizio Idrico Integrato",1306,1306,"Chieti","CH","069089","Taranta Peligna"]
["Abruzzo","Tollo","Tollo (CH) ","Ente Regionale per il Servizio Idrico Integrato",1306,1306,"Chieti","CH","069090","Tollo"]
["Abruzzo","Torino di Sangro","Torino di Sangro (CH) ","Ente Regionale per il Servizio Idrico Integrato",1306,1306,"Chieti","CH","069091","Torino di Sangro"]
["Abruzzo","Tornareccio","Tornareccio (CH) ","Ente Regionale per il Servizio Idrico Integrato",1306,1306,"Chieti","CH","069092","Tornareccio"]
["Abruzzo","Torrebruna","Torrebruna (CH) ","Ente Regionale per il Servizio Idrico Integrato",1306,1306,"Chieti","CH","069093","Torrebruna"]
["Abruzzo","Torrevecchia Teatina","Torrevecchia Teatina (CH) ","Ente Regionale per il Servizio Idrico Integrato",1304,1304,"Chieti","CH","069094","Torrevecchia Teatina"]
["Abruzzo","Torricella Peligna","Torricella Peligna (CH) ","Ente Regionale per il Servizio Idrico Integrato",1306,1306,"Chieti","CH","069095","Torricella Peligna"]
["Abruzzo","Treglio","Treglio (CH) ","Ente Regionale per il Servizio Idrico Integrato",1306,1306,"Chieti","CH","069096","Treglio"]
["Abruzzo","Tufillo","Tufillo (CH) ","Ente Regionale per il Servizio Idrico Integrato",1306,1306,"Chieti","CH","069097","Tufillo"]
["Abruzzo","Vacri","Vacri (CH) ","Ente Regionale per il Servizio Idrico Integrato",1306,1306,"Chieti","CH","069098","Vacri"]
["Abruzzo","Vasto","Vasto (CH) ","Ente Regionale per il Servizio Idrico Integrato",1306,1306,"Chieti","CH","069099","Vasto"]
["Abruzzo","Villalfonsina","Villalfonsina (CH) ","Ente Regionale per il Servizio Idrico Integrato",1306,1306,"Chieti","CH","069100","Villalfonsina"]
["Abruzzo","Villamagna","Villamagna (CH) ","Ente Regionale per il Servizio Idrico Integrato",1306,1306,"Chieti","CH","069101","Villamagna"]
["Abruzzo","Villa Santa Maria","Villa Santa Maria (CH) ","Ente Regionale per il Servizio Idrico Integrato",1306,1306,"Chieti","CH","069102","Villa Santa Maria"]
["Abruzzo","Pietraferrazzana","Pietraferrazzana (CH) ","Ente Regionale per il Servizio Idrico Integrato",1306,1306,"Chieti","CH","069103","Pietraferrazzana"]
["Abruzzo","Fallo","Fallo (CH) ","Ente Regionale per il Servizio Idrico Integrato",1306,1306,"Chieti","CH","069104","Fallo"]
["Molise","Acquaviva Collecroce","Acquaviva Collecroce (CB) ","EGAM-Ente di Governo dell'Ambito del Molise per il servizio idrico integrato",1401,1401,"Campobasso","CB","070001","Acquaviva Collecroce"]
["Molise","Baranello","Baranello (CB) ","EGAM-Ente di Governo dell'Ambito del Molise per il servizio idrico integrato",1401,1401,"Campobasso","CB","070002","Baranello"]
["Molise","Bojano","Bojano (CB) ","EGAM-Ente di Governo dell'Ambito del Molise per il servizio idrico integrato",1401,1401,"Campobasso","CB","070003","Bojano"]
["Molise","Bonefro","Bonefro (CB) ","EGAM-Ente di Governo dell'Ambito del Molise per il servizio idrico integrato",1401,1401,"Campobasso","CB","070004","Bonefro"]
["Molise","Busso","Busso (CB) ","EGAM-Ente di Governo dell'Ambito del Molise per il servizio idrico integrato",1401,1401,"Campobasso","CB","070005","Busso"]
["Molise","Campobasso","Campobasso (CB) ","EGAM-Ente di Governo dell'Ambito del Molise per il servizio idrico integrato",1401,1401,"Campobasso","CB","070006","Campobasso"]
["Molise","Campochiaro","Campochiaro (CB) ","EGAM-Ente di Governo dell'Ambito del Molise per il servizio idrico integrato",1401,1401,"Campobasso","CB","070007","Campochiaro"]
["Molise","Campodipietra","Campodipietra (CB) ","EGAM-Ente di Governo dell'Ambito del Molise per il servizio idrico integrato",1401,1401,"Campobasso","CB","070008","Campodipietra"]
["Molise","Campolieto","Campolieto (CB) ","EGAM-Ente di Governo dell'Ambito del Molise per il servizio idrico integrato",1401,1401,"Campobasso","CB","070009","Campolieto"]
["Molise","Campomarino","Campomarino (CB) ","EGAM-Ente di Governo dell'Ambito del Molise per il servizio idrico integrato",1401,1401,"Campobasso","CB","070010","Campomarino"]
["Molise","Casacalenda","Casacalenda (CB) ","EGAM-Ente di Governo dell'Ambito del Molise per il servizio idrico integrato",1401,1401,"Campobasso","CB","070011","Casacalenda"]
["Molise","Casalciprano","Casalciprano (CB) ","EGAM-Ente di Governo dell'Ambito del Molise per il servizio idrico integrato",1401,1401,"Campobasso","CB","070012","Casalciprano"]
["Molise","Castelbottaccio","Castelbottaccio (CB) ","EGAM-Ente di Governo dell'Ambito del Molise per il servizio idrico integrato",1401,1401,"Campobasso","CB","070013","Castelbottaccio"]
["Molise","Castellino del Biferno","Castellino del Biferno (CB) ","EGAM-Ente di Governo dell'Ambito del Molise per il servizio idrico integrato",1401,1401,"Campobasso","CB","070014","Castellino del Biferno"]
["Molise","Castelmauro","Castelmauro (CB) ","EGAM-Ente di Governo dell'Ambito del Molise per il servizio idrico integrato",1401,1401,"Campobasso","CB","070015","Castelmauro"]
["Molise","Castropignano","Castropignano (CB) ","EGAM-Ente di Governo dell'Ambito del Molise per il servizio idrico integrato",1401,1401,"Campobasso","CB","070016","Castropignano"]
["Molise","Cercemaggiore","Cercemaggiore (CB) ","EGAM-Ente di Governo dell'Ambito del Molise per il servizio idrico integrato",1401,1401,"Campobasso","CB","070017","Cercemaggiore"]
["Molise","Cercepiccola","Cercepiccola (CB) ","EGAM-Ente di Governo dell'Ambito del Molise per il servizio idrico integrato",1401,1401,"Campobasso","CB","070018","Cercepiccola"]
["Molise","Civitacampomarano","Civitacampomarano (CB) ","EGAM-Ente di Governo dell'Ambito del Molise per il servizio idrico integrato",1401,1401,"Campobasso","CB","070019","Civitacampomarano"]
["Molise","Colle d'Anchise","Colle d'Anchise (CB) ","EGAM-Ente di Governo dell'Ambito del Molise per il servizio idrico integrato",1401,1401,"Campobasso","CB","070020","Colle d'Anchise"]
["Molise","Colletorto","Colletorto (CB) ","EGAM-Ente di Governo dell'Ambito del Molise per il servizio idrico integrato",1401,1401,"Campobasso","CB","070021","Colletorto"]
["Molise","Duronia","Duronia (CB) ","EGAM-Ente di Governo dell'Ambito del Molise per il servizio idrico integrato",1401,1401,"Campobasso","CB","070022","Duronia"]
["Molise","Ferrazzano","Ferrazzano (CB) ","EGAM-Ente di Governo dell'Ambito del Molise per il servizio idrico integrato",1401,1401,"Campobasso","CB","070023","Ferrazzano"]
["Molise","Fossalto","Fossalto (CB) ","EGAM-Ente di Governo dell'Ambito del Molise per il servizio idrico integrato",1401,1401,"Campobasso","CB","070024","Fossalto"]
["Molise","Gambatesa","Gambatesa (CB) ","EGAM-Ente di Governo dell'Ambito del Molise per il servizio idrico integrato",1401,1401,"Campobasso","CB","070025","Gambatesa"]
["Molise","Gildone","Gildone (CB) ","EGAM-Ente di Governo dell'Ambito del Molise per il servizio idrico integrato",1401,1401,"Campobasso","CB","070026","Gildone"]
["Molise","Guardialfiera","Guardialfiera (CB) ","EGAM-Ente di Governo dell'Ambito del Molise per il servizio idrico integrato",1401,1401,"Campobasso","CB","070027","Guardialfiera"]
["Molise","Guardiaregia","Guardiaregia (CB) ","EGAM-Ente di Governo dell'Ambito del Molise per il servizio idrico integrato",1401,1401,"Campobasso","CB","070028","Guardiaregia"]
["Molise","Guglionesi","Guglionesi (CB) ","EGAM-Ente di Governo dell'Ambito del Molise per il servizio idrico integrato",1401,1401,"Campobasso","CB","070029","Guglionesi"]
["Molise","Jelsi","Jelsi (CB) ","EGAM-Ente di Governo dell'Ambito del Molise per il servizio idrico integrato",1401,1401,"Campobasso","CB","070030","Jelsi"]
["Molise","Larino","Larino (CB) ","EGAM-Ente di Governo dell'Ambito del Molise per il servizio idrico integrato",1401,1401,"Campobasso","CB","070031","Larino"]
["Molise","Limosano","Limosano (CB) ","EGAM-Ente di Governo dell'Ambito del Molise per il servizio idrico integrato",1401,1401,"Campobasso","CB","070032","Limosano"]
["Molise","Lucito","Lucito (CB) ","EGAM-Ente di Governo dell'Ambito del Molise per il servizio idrico integrato",1401,1401,"Campobasso","CB","070033","Lucito"]
["Molise","Lupara","Lupara (CB) ","EGAM-Ente di Governo dell'Ambito del Molise per il servizio idrico integrato",1401,1401,"Campobasso","CB","070034","Lupara"]
["Molise","Macchia Valfortore","Macchia Valfortore (CB) ","EGAM-Ente di Governo dell'Ambito del Molise per il servizio idrico integrato",1401,1401,"Campobasso","CB","070035","Macchia Valfortore"]
["Molise","Mafalda","Mafalda (CB) ","EGAM-Ente di Governo dell'Ambito del Molise per il servizio idrico integrato",1401,1401,"Campobasso","CB","070036","Mafalda"]
["Molise","Matrice","Matrice (CB) ","EGAM-Ente di Governo dell'Ambito del Molise per il servizio idrico integrato",1401,1401,"Campobasso","CB","070037","Matrice"]
["Molise","Mirabello Sannitico","Mirabello Sannitico (CB) ","EGAM-Ente di Governo dell'Ambito del Molise per il servizio idrico integrato",1401,1401,"Campobasso","CB","070038","Mirabello Sannitico"]
["Molise","Molise","Molise (CB) ","EGAM-Ente di Governo dell'Ambito del Molise per il servizio idrico integrato",1401,1401,"Campobasso","CB","070039","Molise"]
["Molise","Monacilioni","Monacilioni (CB) ","EGAM-Ente di Governo dell'Ambito del Molise per il servizio idrico integrato",1401,1401,"Campobasso","CB","070040","Monacilioni"]
["Molise","Montagano","Montagano (CB) ","EGAM-Ente di Governo dell'Ambito del Molise per il servizio idrico integrato",1401,1401,"Campobasso","CB","070041","Montagano"]
["Molise","Montecilfone","Montecilfone (CB) ","EGAM-Ente di Governo dell'Ambito del Molise per il servizio idrico integrato",1401,1401,"Campobasso","CB","070042","Montecilfone"]
["Molise","Montefalcone nel Sannio","Montefalcone nel Sannio (CB) ","EGAM-Ente di Governo dell'Ambito del Molise per il servizio idrico integrato",1401,1401,"Campobasso","CB","070043","Montefalcone nel Sannio"]
["Molise","Montelongo","Montelongo (CB) ","EGAM-Ente di Governo dell'Ambito del Molise per il servizio idrico integrato",1401,1401,"Campobasso","CB","070044","Montelongo"]
["Molise","Montemitro","Montemitro (CB) ","EGAM-Ente di Governo dell'Ambito del Molise per il servizio idrico integrato",1401,1401,"Campobasso","CB","070045","Montemitro"]
["Molise","Montenero di Bisaccia","Montenero di Bisaccia (CB) ","EGAM-Ente di Governo dell'Ambito del Molise per il servizio idrico integrato",1401,1401,"Campobasso","CB","070046","Montenero di Bisaccia"]
["Molise","Montorio nei Frentani","Montorio nei Frentani (CB) ","EGAM-Ente di Governo dell'Ambito del Molise per il servizio idrico integrato",1401,1401,"Campobasso","CB","070047","Montorio nei Frentani"]
["Molise","Morrone del Sannio","Morrone del Sannio (CB) ","EGAM-Ente di Governo dell'Ambito del Molise per il servizio idrico integrato",1401,1401,"Campobasso","CB","070048","Morrone del Sannio"]
["Molise","Oratino","Oratino (CB) ","EGAM-Ente di Governo dell'Ambito del Molise per il servizio idrico integrato",1401,1401,"Campobasso","CB","070049","Oratino"]
["Molise","Palata","Palata (CB) ","EGAM-Ente di Governo dell'Ambito del Molise per il servizio idrico integrato",1401,1401,"Campobasso","CB","070050","Palata"]
["Molise","Petacciato","Petacciato (CB) ","EGAM-Ente di Governo dell'Ambito del Molise per il servizio idrico integrato",1401,1401,"Campobasso","CB","070051","Petacciato"]
["Molise","Petrella Tifernina","Petrella Tifernina (CB) ","EGAM-Ente di Governo dell'Ambito del Molise per il servizio idrico integrato",1401,1401,"Campobasso","CB","070052","Petrella Tifernina"]
["Molise","Pietracatella","Pietracatella (CB) ","EGAM-Ente di Governo dell'Ambito del Molise per il servizio idrico integrato",1401,1401,"Campobasso","CB","070053","Pietracatella"]
["Molise","Pietracupa","Pietracupa (CB) ","EGAM-Ente di Governo dell'Ambito del Molise per il servizio idrico integrato",1401,1401,"Campobasso","CB","070054","Pietracupa"]
["Molise","Portocannone","Portocannone (CB) ","EGAM-Ente di Governo dell'Ambito del Molise per il servizio idrico integrato",1401,1401,"Campobasso","CB","070055","Portocannone"]
["Molise","Provvidenti","Provvidenti (CB) ","EGAM-Ente di Governo dell'Ambito del Molise per il servizio idrico integrato",1401,1401,"Campobasso","CB","070056","Provvidenti"]
["Molise","Riccia","Riccia (CB) ","EGAM-Ente di Governo dell'Ambito del Molise per il servizio idrico integrato",1401,1401,"Campobasso","CB","070057","Riccia"]
["Molise","Ripabottoni","Ripabottoni (CB) ","EGAM-Ente di Governo dell'Ambito del Molise per il servizio idrico integrato",1401,1401,"Campobasso","CB","070058","Ripabottoni"]
["Molise","Ripalimosani","Ripalimosani (CB) ","EGAM-Ente di Governo dell'Ambito del Molise per il servizio idrico integrato",1401,1401,"Campobasso","CB","070059","Ripalimosani"]
["Molise","Roccavivara","Roccavivara (CB) ","EGAM-Ente di Governo dell'Ambito del Molise per il servizio idrico integrato",1401,1401,"Campobasso","CB","070060","Roccavivara"]
["Molise","Rotello","Rotello (CB) ","EGAM-Ente di Governo dell'Ambito del Molise per il servizio idrico integrato",1401,1401,"Campobasso","CB","070061","Rotello"]
["Molise","Salcito","Salcito (CB) ","EGAM-Ente di Governo dell'Ambito del Molise per il servizio idrico integrato",1401,1401,"Campobasso","CB","070062","Salcito"]
["Molise","San Biase","San Biase (CB) ","EGAM-Ente di Governo dell'Ambito del Molise per il servizio idrico integrato",1401,1401,"Campobasso","CB","070063","San Biase"]
["Molise","San Felice del Molise","San Felice del Molise (CB) ","EGAM-Ente di Governo dell'Ambito del Molise per il servizio idrico integrato",1401,1401,"Campobasso","CB","070064","San Felice del Molise"]
["Molise","San Giacomo degli Schiavoni","San Giacomo degli Schiavoni (CB) ","EGAM-Ente di Governo dell'Ambito del Molise per il servizio idrico integrato",1401,1401,"Campobasso","CB","070065","San Giacomo degli Schiavoni"]
["Molise","San Giovanni in Galdo","San Giovanni in Galdo (CB) ","EGAM-Ente di Governo dell'Ambito del Molise per il servizio idrico integrato",1401,1401,"Campobasso","CB","070066","San Giovanni in Galdo"]
["Molise","San Giuliano del Sannio","San Giuliano del Sannio (CB) ","EGAM-Ente di Governo dell'Ambito del Molise per il servizio idrico integrato",1401,1401,"Campobasso","CB","070067","San Giuliano del Sannio"]
["Molise","San Giuliano di Puglia","San Giuliano di Puglia (CB) ","EGAM-Ente di Governo dell'Ambito del Molise per il servizio idrico integrato",1401,1401,"Campobasso","CB","070068","San Giuliano di Puglia"]
["Molise","San Martino in Pensilis","San Martino in Pensilis (CB) ","EGAM-Ente di Governo dell'Ambito del Molise per il servizio idrico integrato",1401,1401,"Campobasso","CB","070069","San Martino in Pensilis"]
["Molise","San Massimo","San Massimo (CB) ","EGAM-Ente di Governo dell'Ambito del Molise per il servizio idrico integrato",1401,1401,"Campobasso","CB","070070","San Massimo"]
["Molise","San Polo Matese","San Polo Matese (CB) ","EGAM-Ente di Governo dell'Ambito del Molise per il servizio idrico integrato",1401,1401,"Campobasso","CB","070071","San Polo Matese"]
["Molise","Santa Croce di Magliano","Santa Croce di Magliano (CB) ","EGAM-Ente di Governo dell'Ambito del Molise per il servizio idrico integrato",1401,1401,"Campobasso","CB","070072","Santa Croce di Magliano"]
["Molise","Sant'Angelo Limosano","Sant'Angelo Limosano (CB) ","EGAM-Ente di Governo dell'Ambito del Molise per il servizio idrico integrato",1401,1401,"Campobasso","CB","070073","Sant'Angelo Limosano"]
["Molise","Sant'Elia a Pianisi","Sant'Elia a Pianisi (CB) ","EGAM-Ente di Governo dell'Ambito del Molise per il servizio idrico integrato",1401,1401,"Campobasso","CB","070074","Sant'Elia a Pianisi"]
["Molise","Sepino","Sepino (CB) ","EGAM-Ente di Governo dell'Ambito del Molise per il servizio idrico integrato",1401,1401,"Campobasso","CB","070075","Sepino"]
["Molise","Spinete","Spinete (CB) ","EGAM-Ente di Governo dell'Ambito del Molise per il servizio idrico integrato",1401,1401,"Campobasso","CB","070076","Spinete"]
["Molise","Tavenna","Tavenna (CB) ","EGAM-Ente di Governo dell'Ambito del Molise per il servizio idrico integrato",1401,1401,"Campobasso","CB","070077","Tavenna"]
["Molise","Termoli","Termoli (CB) ","EGAM-Ente di Governo dell'Ambito del Molise per il servizio idrico integrato",1401,1401,"Campobasso","CB","070078","Termoli"]
["Molise","Torella del Sannio","Torella del Sannio (CB) ","EGAM-Ente di Governo dell'Ambito del Molise per il servizio idrico integrato",1401,1401,"Campobasso","CB","070079","Torella del Sannio"]
["Molise","Toro","Toro (CB) ","EGAM-Ente di Governo dell'Ambito del Molise per il servizio idrico integrato",1401,1401,"Campobasso","CB","070080","Toro"]
["Molise","Trivento","Trivento (CB) ","EGAM-Ente di Governo dell'Ambito del Molise per il servizio idrico integrato",1401,1401,"Campobasso","CB","070081","Trivento"]
["Molise","Tufara","Tufara (CB) ","EGAM-Ente di Governo dell'Ambito del Molise per il servizio idrico integrato",1401,1401,"Campobasso","CB","070082","Tufara"]
["Molise","Ururi","Ururi (CB) ","EGAM-Ente di Governo dell'Ambito del Molise per il servizio idrico integrato",1401,1401,"Campobasso","CB","070083","Ururi"]
["Molise","Vinchiaturo","Vinchiaturo (CB) ","EGAM-Ente di Governo dell'Ambito del Molise per il servizio idrico integrato",1401,1401,"Campobasso","CB","070084","Vinchiaturo"]
["Puglia","Accadia","Accadia (FG) ","Autorità Idrica Pugliese",1601,1601,"Foggia","FG","071001","Accadia"]
["Puglia","Alberona","Alberona (FG) ","Autorità Idrica Pugliese",1601,1601,"Foggia","FG","071002","Alberona"]
["Puglia","Anzano di Puglia","Anzano di Puglia (FG) ","Autorità Idrica Pugliese",1601,1601,"Foggia","FG","071003","Anzano di Puglia"]
["Puglia","Apricena","Apricena (FG) ","Autorità Idrica Pugliese",1601,1601,"Foggia","FG","071004","Apricena"]
["Puglia","Ascoli Satriano","Ascoli Satriano (FG) ","Autorità Idrica Pugliese",1601,1601,"Foggia","FG","071005","Ascoli Satriano"]
["Puglia","Biccari","Biccari (FG) ","Autorità Idrica Pugliese",1601,1601,"Foggia","FG","071006","Biccari"]
["Puglia","Bovino","Bovino (FG) ","Autorità Idrica Pugliese",1601,1601,"Foggia","FG","071007","Bovino"]
["Puglia","Cagnano Varano","Cagnano Varano (FG) ","Autorità Idrica Pugliese",1601,1601,"Foggia","FG","071008","Cagnano Varano"]
["Puglia","Candela","Candela (FG) ","Autorità Idrica Pugliese",1601,1601,"Foggia","FG","071009","Candela"]
["Puglia","Carapelle","Carapelle (FG) ","Autorità Idrica Pugliese",1601,1601,"Foggia","FG","071010","Carapelle"]
["Puglia","Carlantino","Carlantino (FG) ","Autorità Idrica Pugliese",1601,1601,"Foggia","FG","071011","Carlantino"]
["Puglia","Carpino","Carpino (FG) ","Autorità Idrica Pugliese",1601,1601,"Foggia","FG","071012","Carpino"]
["Puglia","Casalnuovo Monterotaro","Casalnuovo Monterotaro (FG) ","Autorità Idrica Pugliese",1601,1601,"Foggia","FG","071013","Casalnuovo Monterotaro"]
["Puglia","Casalvecchio di Puglia","Casalvecchio di Puglia (FG) ","Autorità Idrica Pugliese",1601,1601,"Foggia","FG","071014","Casalvecchio di Puglia"]
["Puglia","Castelluccio dei Sauri","Castelluccio dei Sauri (FG) ","Autorità Idrica Pugliese",1601,1601,"Foggia","FG","071015","Castelluccio dei Sauri"]
["Puglia","Castelluccio Valmaggiore","Castelluccio Valmaggiore (FG) ","Autorità Idrica Pugliese",1601,1601,"Foggia","FG","071016","Castelluccio Valmaggiore"]
["Puglia","Castelnuovo della Daunia","Castelnuovo della Daunia (FG) ","Autorità Idrica Pugliese",1601,1601,"Foggia","FG","071017","Castelnuovo della Daunia"]
["Puglia","Celenza Valfortore","Celenza Valfortore (FG) ","Autorità Idrica Pugliese",1601,1601,"Foggia","FG","071018","Celenza Valfortore"]
["Puglia","Celle di San Vito","Celle di San Vito (FG) ","Autorità Idrica Pugliese",1601,1601,"Foggia","FG","071019","Celle di San Vito"]
["Puglia","Cerignola","Cerignola (FG) ","Autorità Idrica Pugliese",1601,1601,"Foggia","FG","071020","Cerignola"]
["Puglia","Chieuti","Chieuti (FG) ","Autorità Idrica Pugliese",1601,1601,"Foggia","FG","071021","Chieuti"]
["Puglia","Deliceto","Deliceto (FG) ","Autorità Idrica Pugliese",1601,1601,"Foggia","FG","071022","Deliceto"]
["Puglia","Faeto","Faeto (FG) ","Autorità Idrica Pugliese",1601,1601,"Foggia","FG","071023","Faeto"]
["Puglia","Foggia","Foggia (FG) ","Autorità Idrica Pugliese",1601,1601,"Foggia","FG","071024","Foggia"]
["Puglia","Ischitella","Ischitella (FG) ","Autorità Idrica Pugliese",1601,1601,"Foggia","FG","071025","Ischitella"]
["Puglia","Isole Tremiti","Isole Tremiti (FG) ","Autorità Idrica Pugliese",1601,1601,"Foggia","FG","071026","Isole Tremiti"]
["Puglia","Lesina","Lesina (FG) ","Autorità Idrica Pugliese",1601,1601,"Foggia","FG","071027","Lesina"]
["Puglia","Lucera","Lucera (FG) ","Autorità Idrica Pugliese",1601,1601,"Foggia","FG","071028","Lucera"]
["Puglia","Manfredonia","Manfredonia (FG) ","Autorità Idrica Pugliese",1601,1601,"Foggia","FG","071029","Manfredonia"]
["Puglia","Mattinata","Mattinata (FG) ","Autorità Idrica Pugliese",1601,1601,"Foggia","FG","071031","Mattinata"]
["Puglia","Monteleone di Puglia","Monteleone di Puglia (FG) ","Autorità Idrica Pugliese",1601,1601,"Foggia","FG","071032","Monteleone di Puglia"]
["Puglia","Monte Sant'Angelo","Monte Sant'Angelo (FG) ","Autorità Idrica Pugliese",1601,1601,"Foggia","FG","071033","Monte Sant'Angelo"]
["Puglia","Motta Montecorvino","Motta Montecorvino (FG) ","Autorità Idrica Pugliese",1601,1601,"Foggia","FG","071034","Motta Montecorvino"]
["Puglia","Orsara di Puglia","Orsara di Puglia (FG) ","Autorità Idrica Pugliese",1601,1601,"Foggia","FG","071035","Orsara di Puglia"]
["Puglia","Orta Nova","Orta Nova (FG) ","Autorità Idrica Pugliese",1601,1601,"Foggia","FG","071036","Orta Nova"]
["Puglia","Panni","Panni (FG) ","Autorità Idrica Pugliese",1601,1601,"Foggia","FG","071037","Panni"]
["Puglia","Peschici","Peschici (FG) ","Autorità Idrica Pugliese",1601,1601,"Foggia","FG","071038","Peschici"]
["Puglia","Pietramontecorvino","Pietramontecorvino (FG) ","Autorità Idrica Pugliese",1601,1601,"Foggia","FG","071039","Pietramontecorvino"]
["Puglia","Poggio Imperiale","Poggio Imperiale (FG) ","Autorità Idrica Pugliese",1601,1601,"Foggia","FG","071040","Poggio Imperiale"]
["Puglia","Rignano Garganico","Rignano Garganico (FG) ","Autorità Idrica Pugliese",1601,1601,"Foggia","FG","071041","Rignano Garganico"]
["Puglia","Rocchetta Sant'Antonio","Rocchetta Sant'Antonio (FG) ","Autorità Idrica Pugliese",1601,1601,"Foggia","FG","071042","Rocchetta Sant'Antonio"]
["Puglia","Rodi Garganico","Rodi Garganico (FG) ","Autorità Idrica Pugliese",1601,1601,"Foggia","FG","071043","Rodi Garganico"]
["Puglia","Roseto Valfortore","Roseto Valfortore (FG) ","Autorità Idrica Pugliese",1601,1601,"Foggia","FG","071044","Roseto Valfortore"]
["Puglia","San Giovanni Rotondo","San Giovanni Rotondo (FG) ","Autorità Idrica Pugliese",1601,1601,"Foggia","FG","071046","San Giovanni Rotondo"]
["Puglia","San Marco in Lamis","San Marco in Lamis (FG) ","Autorità Idrica Pugliese",1601,1601,"Foggia","FG","071047","San Marco in Lamis"]
["Puglia","San Marco la Catola","San Marco la Catola (FG) ","Autorità Idrica Pugliese",1601,1601,"Foggia","FG","071048","San Marco la Catola"]
["Puglia","San Nicandro Garganico","San Nicandro Garganico (FG) ","Autorità Idrica Pugliese",1601,1601,"Foggia","FG","071049","San Nicandro Garganico"]
["Puglia","San Paolo di Civitate","San Paolo di Civitate (FG) ","Autorità Idrica Pugliese",1601,1601,"Foggia","FG","071050","San Paolo di Civitate"]
["Puglia","San Severo","San Severo (FG) ","Autorità Idrica Pugliese",1601,1601,"Foggia","FG","071051","San Severo"]
["Puglia","Sant'Agata di Puglia","Sant'Agata di Puglia (FG) ","Autorità Idrica Pugliese",1601,1601,"Foggia","FG","071052","Sant'Agata di Puglia"]
["Puglia","Serracapriola","Serracapriola (FG) ","Autorità Idrica Pugliese",1601,1601,"Foggia","FG","071053","Serracapriola"]
["Puglia","Stornara","Stornara (FG) ","Autorità Idrica Pugliese",1601,1601,"Foggia","FG","071054","Stornara"]
["Puglia","Stornarella","Stornarella (FG) ","Autorità Idrica Pugliese",1601,1601,"Foggia","FG","071055","Stornarella"]
["Puglia","Torremaggiore","Torremaggiore (FG) ","Autorità Idrica Pugliese",1601,1601,"Foggia","FG","071056","Torremaggiore"]
["Puglia","Troia","Troia (FG) ","Autorità Idrica Pugliese",1601,1601,"Foggia","FG","071058","Troia"]
["Puglia","Vico del Gargano","Vico del Gargano (FG) ","Autorità Idrica Pugliese",1601,1601,"Foggia","FG","071059","Vico del Gargano"]
["Puglia","Vieste","Vieste (FG) ","Autorità Idrica Pugliese",1601,1601,"Foggia","FG","071060","Vieste"]
["Puglia","Volturara Appula","Volturara Appula (FG) ","Autorità Idrica Pugliese",1601,1601,"Foggia","FG","071061","Volturara Appula"]
["Puglia","Volturino","Volturino (FG) ","Autorità Idrica Pugliese",1601,1601,"Foggia","FG","071062","Volturino"]
["Puglia","Ordona","Ordona (FG) ","Autorità Idrica Pugliese",1601,1601,"Foggia","FG","071063","Ordona"]
["Puglia","Zapponeta","Zapponeta (FG) ","Autorità Idrica Pugliese",1601,1601,"Foggia","FG","071064","Zapponeta"]
["Puglia","Acquaviva delle Fonti","Acquaviva delle Fonti (BA) ","Autorità Idrica Pugliese",1601,1601,"Bari","BA","072001","Acquaviva delle Fonti"]
["Puglia","Adelfia","Adelfia (BA) ","Autorità Idrica Pugliese",1601,1601,"Bari","BA","072002","Adelfia"]
["Puglia","Alberobello","Alberobello (BA) ","Autorità Idrica Pugliese",1601,1601,"Bari","BA","072003","Alberobello"]
["Puglia","Altamura","Altamura (BA) ","Autorità Idrica Pugliese",1601,1601,"Bari","BA","072004","Altamura"]
["Puglia","Bari","Bari (BA) ","Autorità Idrica Pugliese",1601,1601,"Bari","BA","072006","Bari"]
["Puglia","Binetto","Binetto (BA) ","Autorità Idrica Pugliese",1601,1601,"Bari","BA","072008","Binetto"]
["Puglia","Bitetto","Bitetto (BA) ","Autorità Idrica Pugliese",1601,1601,"Bari","BA","072010","Bitetto"]
["Puglia","Bitonto","Bitonto (BA) ","Autorità Idrica Pugliese",1601,1601,"Bari","BA","072011","Bitonto"]
["Puglia","Bitritto","Bitritto (BA) ","Autorità Idrica Pugliese",1601,1601,"Bari","BA","072012","Bitritto"]
["Puglia","Capurso","Capurso (BA) ","Autorità Idrica Pugliese",1601,1601,"Bari","BA","072014","Capurso"]
["Puglia","Casamassima","Casamassima (BA) ","Autorità Idrica Pugliese",1601,1601,"Bari","BA","072015","Casamassima"]
["Puglia","Cassano delle Murge","Cassano delle Murge (BA) ","Autorità Idrica Pugliese",1601,1601,"Bari","BA","072016","Cassano delle Murge"]
["Puglia","Castellana Grotte","Castellana Grotte (BA) ","Autorità Idrica Pugliese",1601,1601,"Bari","BA","072017","Castellana Grotte"]
["Puglia","Cellamare","Cellamare (BA) ","Autorità Idrica Pugliese",1601,1601,"Bari","BA","072018","Cellamare"]
["Puglia","Conversano","Conversano (BA) ","Autorità Idrica Pugliese",1601,1601,"Bari","BA","072019","Conversano"]
["Puglia","Corato","Corato (BA) ","Autorità Idrica Pugliese",1601,1601,"Bari","BA","072020","Corato"]
["Puglia","Gioia del Colle","Gioia del Colle (BA) ","Autorità Idrica Pugliese",1601,1601,"Bari","BA","072021","Gioia del Colle"]
["Puglia","Giovinazzo","Giovinazzo (BA) ","Autorità Idrica Pugliese",1601,1601,"Bari","BA","072022","Giovinazzo"]
["Puglia","Gravina in Puglia","Gravina in Puglia (BA) ","Autorità Idrica Pugliese",1601,1601,"Bari","BA","072023","Gravina in Puglia"]
["Puglia","Grumo Appula","Grumo Appula (BA) ","Autorità Idrica Pugliese",1601,1601,"Bari","BA","072024","Grumo Appula"]
["Puglia","Locorotondo","Locorotondo (BA) ","Autorità Idrica Pugliese",1601,1601,"Bari","BA","072025","Locorotondo"]
["Puglia","Modugno","Modugno (BA) ","Autorità Idrica Pugliese",1601,1601,"Bari","BA","072027","Modugno"]
["Puglia","Mola di Bari","Mola di Bari (BA) ","Autorità Idrica Pugliese",1601,1601,"Bari","BA","072028","Mola di Bari"]
["Puglia","Molfetta","Molfetta (BA) ","Autorità Idrica Pugliese",1601,1601,"Bari","BA","072029","Molfetta"]
["Puglia","Monopoli","Monopoli (BA) ","Autorità Idrica Pugliese",1601,1601,"Bari","BA","072030","Monopoli"]
["Puglia","Noci","Noci (BA) ","Autorità Idrica Pugliese",1601,1601,"Bari","BA","072031","Noci"]
["Puglia","Noicattaro","Noicattaro (BA) ","Autorità Idrica Pugliese",1601,1601,"Bari","BA","072032","Noicattaro"]
["Puglia","Palo del Colle","Palo del Colle (BA) ","Autorità Idrica Pugliese",1601,1601,"Bari","BA","072033","Palo del Colle"]
["Puglia","Poggiorsini","Poggiorsini (BA) ","Autorità Idrica Pugliese",1601,1601,"Bari","BA","072034","Poggiorsini"]
["Puglia","Polignano a Mare","Polignano a Mare (BA) ","Autorità Idrica Pugliese",1601,1601,"Bari","BA","072035","Polignano a Mare"]
["Puglia","Putignano","Putignano (BA) ","Autorità Idrica Pugliese",1601,1601,"Bari","BA","072036","Putignano"]
["Puglia","Rutigliano","Rutigliano (BA) ","Autorità Idrica Pugliese",1601,1601,"Bari","BA","072037","Rutigliano"]
["Puglia","Ruvo di Puglia","Ruvo di Puglia (BA) ","Autorità Idrica Pugliese",1601,1601,"Bari","BA","072038","Ruvo di Puglia"]
["Puglia","Sammichele di Bari","Sammichele di Bari (BA) ","Autorità Idrica Pugliese",1601,1601,"Bari","BA","072039","Sammichele di Bari"]
["Puglia","Sannicandro di Bari","Sannicandro di Bari (BA) ","Autorità Idrica Pugliese",1601,1601,"Bari","BA","072040","Sannicandro di Bari"]
["Puglia","Santeramo in Colle","Santeramo in Colle (BA) ","Autorità Idrica Pugliese",1601,1601,"Bari","BA","072041","Santeramo in Colle"]
["Puglia","Terlizzi","Terlizzi (BA) ","Autorità Idrica Pugliese",1601,1601,"Bari","BA","072043","Terlizzi"]
["Puglia","Toritto","Toritto (BA) ","Autorità Idrica Pugliese",1601,1601,"Bari","BA","072044","Toritto"]
["Puglia","Triggiano","Triggiano (BA) ","Autorità Idrica Pugliese",1601,1601,"Bari","BA","072046","Triggiano"]
["Puglia","Turi","Turi (BA) ","Autorità Idrica Pugliese",1601,1601,"Bari","BA","072047","Turi"]
["Puglia","Valenzano","Valenzano (BA) ","Autorità Idrica Pugliese",1601,1601,"Bari","BA","072048","Valenzano"]
["Puglia","Avetrana","Avetrana (TA) ","Autorità Idrica Pugliese",1601,1601,"Taranto","TA","073001","Avetrana"]
["Puglia","Carosino","Carosino (TA) ","Autorità Idrica Pugliese",1601,1601,"Taranto","TA","073002","Carosino"]
["Puglia","Castellaneta","Castellaneta (TA) ","Autorità Idrica Pugliese",1601,1601,"Taranto","TA","073003","Castellaneta"]
["Puglia","Crispiano","Crispiano (TA) ","Autorità Idrica Pugliese",1601,1601,"Taranto","TA","073004","Crispiano"]
["Puglia","Faggiano","Faggiano (TA) ","Autorità Idrica Pugliese",1601,1601,"Taranto","TA","073005","Faggiano"]
["Puglia","Fragagnano","Fragagnano (TA) ","Autorità Idrica Pugliese",1601,1601,"Taranto","TA","073006","Fragagnano"]
["Puglia","Ginosa","Ginosa (TA) ","Autorità Idrica Pugliese",1601,1601,"Taranto","TA","073007","Ginosa"]
["Puglia","Grottaglie","Grottaglie (TA) ","Autorità Idrica Pugliese",1601,1601,"Taranto","TA","073008","Grottaglie"]
["Puglia","Laterza","Laterza (TA) ","Autorità Idrica Pugliese",1601,1601,"Taranto","TA","073009","Laterza"]
["Puglia","Leporano","Leporano (TA) ","Autorità Idrica Pugliese",1601,1601,"Taranto","TA","073010","Leporano"]
["Puglia","Lizzano","Lizzano (TA) ","Autorità Idrica Pugliese",1601,1601,"Taranto","TA","073011","Lizzano"]
["Puglia","Manduria","Manduria (TA) ","Autorità Idrica Pugliese",1601,1601,"Taranto","TA","073012","Manduria"]
["Puglia","Martina Franca","Martina Franca (TA) ","Autorità Idrica Pugliese",1601,1601,"Taranto","TA","073013","Martina Franca"]
["Puglia","Maruggio","Maruggio (TA) ","Autorità Idrica Pugliese",1601,1601,"Taranto","TA","073014","Maruggio"]
["Puglia","Massafra","Massafra (TA) ","Autorità Idrica Pugliese",1601,1601,"Taranto","TA","073015","Massafra"]
["Puglia","Monteiasi","Monteiasi (TA) ","Autorità Idrica Pugliese",1601,1601,"Taranto","TA","073016","Monteiasi"]
["Puglia","Montemesola","Montemesola (TA) ","Autorità Idrica Pugliese",1601,1601,"Taranto","TA","073017","Montemesola"]
["Puglia","Monteparano","Monteparano (TA) ","Autorità Idrica Pugliese",1601,1601,"Taranto","TA","073018","Monteparano"]
["Puglia","Mottola","Mottola (TA) ","Autorità Idrica Pugliese",1601,1601,"Taranto","TA","073019","Mottola"]
["Puglia","Palagianello","Palagianello (TA) ","Autorità Idrica Pugliese",1601,1601,"Taranto","TA","073020","Palagianello"]
["Puglia","Palagiano","Palagiano (TA) ","Autorità Idrica Pugliese",1601,1601,"Taranto","TA","073021","Palagiano"]
["Puglia","Pulsano","Pulsano (TA) ","Autorità Idrica Pugliese",1601,1601,"Taranto","TA","073022","Pulsano"]
["Puglia","Roccaforzata","Roccaforzata (TA) ","Autorità Idrica Pugliese",1601,1601,"Taranto","TA","073023","Roccaforzata"]
["Puglia","San Giorgio Ionico","San Giorgio Ionico (TA) ","Autorità Idrica Pugliese",1601,1601,"Taranto","TA","073024","San Giorgio Ionico"]
["Puglia","San Marzano di San Giuseppe","San Marzano di San Giuseppe (TA) ","Autorità Idrica Pugliese",1601,1601,"Taranto","TA","073025","San Marzano di San Giuseppe"]
["Puglia","Sava","Sava (TA) ","Autorità Idrica Pugliese",1601,1601,"Taranto","TA","073026","Sava"]
["Puglia","Taranto","Taranto (TA) ","Autorità Idrica Pugliese",1601,1601,"Taranto","TA","073027","Taranto"]
["Puglia","Torricella","Torricella (TA) ","Autorità Idrica Pugliese",1601,1601,"Taranto","TA","073028","Torricella"]
["Puglia","Statte","Statte (TA) ","Autorità Idrica Pugliese",1601,1601,"Taranto","TA","073029","Statte"]
["Puglia","Brindisi","Brindisi (BR) ","Autorità Idrica Pugliese",1601,1601,"Brindisi","BR","074001","Brindisi"]
["Puglia","Carovigno","Carovigno (BR) ","Autorità Idrica Pugliese",1601,1601,"Brindisi","BR","074002","Carovigno"]
["Puglia","Ceglie Messapica","Ceglie Messapica (BR) ","Autorità Idrica Pugliese",1601,1601,"Brindisi","BR","074003","Ceglie Messapica"]
["Puglia","Cellino San Marco","Cellino San Marco (BR) ","Autorità Idrica Pugliese",1601,1601,"Brindisi","BR","074004","Cellino San Marco"]
["Puglia","Cisternino","Cisternino (BR) ","Autorità Idrica Pugliese",1601,1601,"Brindisi","BR","074005","Cisternino"]
["Puglia","Erchie","Erchie (BR) ","Autorità Idrica Pugliese",1601,1601,"Brindisi","BR","074006","Erchie"]
["Puglia","Fasano","Fasano (BR) ","Autorità Idrica Pugliese",1601,1601,"Brindisi","BR","074007","Fasano"]
["Puglia","Francavilla Fontana","Francavilla Fontana (BR) ","Autorità Idrica Pugliese",1601,1601,"Brindisi","BR","074008","Francavilla Fontana"]
["Puglia","Latiano","Latiano (BR) ","Autorità Idrica Pugliese",1601,1601,"Brindisi","BR","074009","Latiano"]
["Puglia","Mesagne","Mesagne (BR) ","Autorità Idrica Pugliese",1601,1601,"Brindisi","BR","074010","Mesagne"]
["Puglia","Oria","Oria (BR) ","Autorità Idrica Pugliese",1601,1601,"Brindisi","BR","074011","Oria"]
["Puglia","Ostuni","Ostuni (BR) ","Autorità Idrica Pugliese",1601,1601,"Brindisi","BR","074012","Ostuni"]
["Puglia","San Donaci","San Donaci (BR) ","Autorità Idrica Pugliese",1601,1601,"Brindisi","BR","074013","San Donaci"]
["Puglia","San Michele Salentino","San Michele Salentino (BR) ","Autorità Idrica Pugliese",1601,1601,"Brindisi","BR","074014","San Michele Salentino"]
["Puglia","San Pancrazio Salentino","San Pancrazio Salentino (BR) ","Autorità Idrica Pugliese",1601,1601,"Brindisi","BR","074015","San Pancrazio Salentino"]
["Puglia","San Pietro Vernotico","San Pietro Vernotico (BR) ","Autorità Idrica Pugliese",1601,1601,"Brindisi","BR","074016","San Pietro Vernotico"]
["Puglia","San Vito dei Normanni","San Vito dei Normanni (BR) ","Autorità Idrica Pugliese",1601,1601,"Brindisi","BR","074017","San Vito dei Normanni"]
["Puglia","Torchiarolo","Torchiarolo (BR) ","Autorità Idrica Pugliese",1601,1601,"Brindisi","BR","074018","Torchiarolo"]
["Puglia","Torre Santa Susanna","Torre Santa Susanna (BR) ","Autorità Idrica Pugliese",1601,1601,"Brindisi","BR","074019","Torre Santa Susanna"]
["Puglia","Villa Castelli","Villa Castelli (BR) ","Autorità Idrica Pugliese",1601,1601,"Brindisi","BR","074020","Villa Castelli"]
["Puglia","Alessano","Alessano (LE) ","Autorità Idrica Pugliese",1601,1601,"Lecce","LE","075002","Alessano"]
["Puglia","Alezio","Alezio (LE) ","Autorità Idrica Pugliese",1601,1601,"Lecce","LE","075003","Alezio"]
["Puglia","Alliste","Alliste (LE) ","Autorità Idrica Pugliese",1601,1601,"Lecce","LE","075004","Alliste"]
["Puglia","Andrano","Andrano (LE) ","Autorità Idrica Pugliese",1601,1601,"Lecce","LE","075005","Andrano"]
["Puglia","Aradeo","Aradeo (LE) ","Autorità Idrica Pugliese",1601,1601,"Lecce","LE","075006","Aradeo"]
["Puglia","Arnesano","Arnesano (LE) ","Autorità Idrica Pugliese",1601,1601,"Lecce","LE","075007","Arnesano"]
["Puglia","Bagnolo del Salento","Bagnolo del Salento (LE) ","Autorità Idrica Pugliese",1601,1601,"Lecce","LE","075008","Bagnolo del Salento"]
["Puglia","Botrugno","Botrugno (LE) ","Autorità Idrica Pugliese",1601,1601,"Lecce","LE","075009","Botrugno"]
["Puglia","Calimera","Calimera (LE) ","Autorità Idrica Pugliese",1601,1601,"Lecce","LE","075010","Calimera"]
["Puglia","Campi Salentina","Campi Salentina (LE) ","Autorità Idrica Pugliese",1601,1601,"Lecce","LE","075011","Campi Salentina"]
["Puglia","Cannole","Cannole (LE) ","Autorità Idrica Pugliese",1601,1601,"Lecce","LE","075012","Cannole"]
["Puglia","Caprarica di Lecce","Caprarica di Lecce (LE) ","Autorità Idrica Pugliese",1601,1601,"Lecce","LE","075013","Caprarica di Lecce"]
["Puglia","Carmiano","Carmiano (LE) ","Autorità Idrica Pugliese",1601,1601,"Lecce","LE","075014","Carmiano"]
["Puglia","Carpignano Salentino","Carpignano Salentino (LE) ","Autorità Idrica Pugliese",1601,1601,"Lecce","LE","075015","Carpignano Salentino"]
["Puglia","Casarano","Casarano (LE) ","Autorità Idrica Pugliese",1601,1601,"Lecce","LE","075016","Casarano"]
["Puglia","Castri di Lecce","Castri di Lecce (LE) ","Autorità Idrica Pugliese",1601,1601,"Lecce","LE","075017","Castri di Lecce"]
["Puglia","Castrignano de' Greci","Castrignano de' Greci (LE) ","Autorità Idrica Pugliese",1601,1601,"Lecce","LE","075018","Castrignano de' Greci"]
["Puglia","Castrignano del Capo","Castrignano del Capo (LE) ","Autorità Idrica Pugliese",1601,1601,"Lecce","LE","075019","Castrignano del Capo"]
["Puglia","Cavallino","Cavallino (LE) ","Autorità Idrica Pugliese",1601,1601,"Lecce","LE","075020","Cavallino"]
["Puglia","Collepasso","Collepasso (LE) ","Autorità Idrica Pugliese",1601,1601,"Lecce","LE","075021","Collepasso"]
["Puglia","Copertino","Copertino (LE) ","Autorità Idrica Pugliese",1601,1601,"Lecce","LE","075022","Copertino"]
["Puglia","Corigliano d'Otranto","Corigliano d'Otranto (LE) ","Autorità Idrica Pugliese",1601,1601,"Lecce","LE","075023","Corigliano d'Otranto"]
["Puglia","Corsano","Corsano (LE) ","Autorità Idrica Pugliese",1601,1601,"Lecce","LE","075024","Corsano"]
["Puglia","Cursi","Cursi (LE) ","Autorità Idrica Pugliese",1601,1601,"Lecce","LE","075025","Cursi"]
["Puglia","Cutrofiano","Cutrofiano (LE) ","Autorità Idrica Pugliese",1601,1601,"Lecce","LE","075026","Cutrofiano"]
["Puglia","Diso","Diso (LE) ","Autorità Idrica Pugliese",1601,1601,"Lecce","LE","075027","Diso"]
["Puglia","Gagliano del Capo","Gagliano del Capo (LE) ","Autorità Idrica Pugliese",1601,1601,"Lecce","LE","075028","Gagliano del Capo"]
["Puglia","Galatina","Galatina (LE) ","Autorità Idrica Pugliese",1601,1601,"Lecce","LE","075029","Galatina"]
["Puglia","Galatone","Galatone (LE) ","Autorità Idrica Pugliese",1601,1601,"Lecce","LE","075030","Galatone"]
["Puglia","Gallipoli","Gallipoli (LE) ","Autorità Idrica Pugliese",1601,1601,"Lecce","LE","075031","Gallipoli"]
["Puglia","Giuggianello","Giuggianello (LE) ","Autorità Idrica Pugliese",1601,1601,"Lecce","LE","075032","Giuggianello"]
["Puglia","Giurdignano","Giurdignano (LE) ","Autorità Idrica Pugliese",1601,1601,"Lecce","LE","075033","Giurdignano"]
["Puglia","Guagnano","Guagnano (LE) ","Autorità Idrica Pugliese",1601,1601,"Lecce","LE","075034","Guagnano"]
["Puglia","Lecce","Lecce (LE) ","Autorità Idrica Pugliese",1601,1601,"Lecce","LE","075035","Lecce"]
["Puglia","Lequile","Lequile (LE) ","Autorità Idrica Pugliese",1601,1601,"Lecce","LE","075036","Lequile"]
["Puglia","Leverano","Leverano (LE) ","Autorità Idrica Pugliese",1601,1601,"Lecce","LE","075037","Leverano"]
["Puglia","Lizzanello","Lizzanello (LE) ","Autorità Idrica Pugliese",1601,1601,"Lecce","LE","075038","Lizzanello"]
["Puglia","Maglie","Maglie (LE) ","Autorità Idrica Pugliese",1601,1601,"Lecce","LE","075039","Maglie"]
["Puglia","Martano","Martano (LE) ","Autorità Idrica Pugliese",1601,1601,"Lecce","LE","075040","Martano"]
["Puglia","Martignano","Martignano (LE) ","Autorità Idrica Pugliese",1601,1601,"Lecce","LE","075041","Martignano"]
["Puglia","Matino","Matino (LE) ","Autorità Idrica Pugliese",1601,1601,"Lecce","LE","075042","Matino"]
["Puglia","Melendugno","Melendugno (LE) ","Autorità Idrica Pugliese",1601,1601,"Lecce","LE","075043","Melendugno"]
["Puglia","Melissano","Melissano (LE) ","Autorità Idrica Pugliese",1601,1601,"Lecce","LE","075044","Melissano"]
["Puglia","Melpignano","Melpignano (LE) ","Autorità Idrica Pugliese",1601,1601,"Lecce","LE","075045","Melpignano"]
["Puglia","Miggiano","Miggiano (LE) ","Autorità Idrica Pugliese",1601,1601,"Lecce","LE","075046","Miggiano"]
["Puglia","Minervino di Lecce","Minervino di Lecce (LE) ","Autorità Idrica Pugliese",1601,1601,"Lecce","LE","075047","Minervino di Lecce"]
["Puglia","Monteroni di Lecce","Monteroni di Lecce (LE) ","Autorità Idrica Pugliese",1601,1601,"Lecce","LE","075048","Monteroni di Lecce"]
["Puglia","Montesano Salentino","Montesano Salentino (LE) ","Autorità Idrica Pugliese",1601,1601,"Lecce","LE","075049","Montesano Salentino"]
["Puglia","Morciano di Leuca","Morciano di Leuca (LE) ","Autorità Idrica Pugliese",1601,1601,"Lecce","LE","075050","Morciano di Leuca"]
["Puglia","Muro Leccese","Muro Leccese (LE) ","Autorità Idrica Pugliese",1601,1601,"Lecce","LE","075051","Muro Leccese"]
["Puglia","Nardò","Nardò (LE) ","Autorità Idrica Pugliese",1601,1601,"Lecce","LE","075052","Nardò"]
["Puglia","Neviano","Neviano (LE) ","Autorità Idrica Pugliese",1601,1601,"Lecce","LE","075053","Neviano"]
["Puglia","Nociglia","Nociglia (LE) ","Autorità Idrica Pugliese",1601,1601,"Lecce","LE","075054","Nociglia"]
["Puglia","Novoli","Novoli (LE) ","Autorità Idrica Pugliese",1601,1601,"Lecce","LE","075055","Novoli"]
["Puglia","Ortelle","Ortelle (LE) ","Autorità Idrica Pugliese",1601,1601,"Lecce","LE","075056","Ortelle"]
["Puglia","Otranto","Otranto (LE) ","Autorità Idrica Pugliese",1601,1601,"Lecce","LE","075057","Otranto"]
["Puglia","Palmariggi","Palmariggi (LE) ","Autorità Idrica Pugliese",1601,1601,"Lecce","LE","075058","Palmariggi"]
["Puglia","Parabita","Parabita (LE) ","Autorità Idrica Pugliese",1601,1601,"Lecce","LE","075059","Parabita"]
["Puglia","Patù","Patù (LE) ","Autorità Idrica Pugliese",1601,1601,"Lecce","LE","075060","Patù"]
["Puglia","Poggiardo","Poggiardo (LE) ","Autorità Idrica Pugliese",1601,1601,"Lecce","LE","075061","Poggiardo"]
["Puglia","Racale","Racale (LE) ","Autorità Idrica Pugliese",1601,1601,"Lecce","LE","075063","Racale"]
["Puglia","Ruffano","Ruffano (LE) ","Autorità Idrica Pugliese",1601,1601,"Lecce","LE","075064","Ruffano"]
["Puglia","Salice Salentino","Salice Salentino (LE) ","Autorità Idrica Pugliese",1601,1601,"Lecce","LE","075065","Salice Salentino"]
["Puglia","Salve","Salve (LE) ","Autorità Idrica Pugliese",1601,1601,"Lecce","LE","075066","Salve"]
["Puglia","Sanarica","Sanarica (LE) ","Autorità Idrica Pugliese",1601,1601,"Lecce","LE","075067","Sanarica"]
["Puglia","San Cesario di Lecce","San Cesario di Lecce (LE) ","Autorità Idrica Pugliese",1601,1601,"Lecce","LE","075068","San Cesario di Lecce"]
["Puglia","San Donato di Lecce","San Donato di Lecce (LE) ","Autorità Idrica Pugliese",1601,1601,"Lecce","LE","075069","San Donato di Lecce"]
["Puglia","Sannicola","Sannicola (LE) ","Autorità Idrica Pugliese",1601,1601,"Lecce","LE","075070","Sannicola"]
["Puglia","San Pietro in Lama","San Pietro in Lama (LE) ","Autorità Idrica Pugliese",1601,1601,"Lecce","LE","075071","San Pietro in Lama"]
["Puglia","Santa Cesarea Terme","Santa Cesarea Terme (LE) ","Autorità Idrica Pugliese",1601,1601,"Lecce","LE","075072","Santa Cesarea Terme"]
["Puglia","Scorrano","Scorrano (LE) ","Autorità Idrica Pugliese",1601,1601,"Lecce","LE","075073","Scorrano"]
["Puglia","Seclì","Seclì (LE) ","Autorità Idrica Pugliese",1601,1601,"Lecce","LE","075074","Seclì"]
["Puglia","Sogliano Cavour","Sogliano Cavour (LE) ","Autorità Idrica Pugliese",1601,1601,"Lecce","LE","075075","Sogliano Cavour"]
["Puglia","Soleto","Soleto (LE) ","Autorità Idrica Pugliese",1601,1601,"Lecce","LE","075076","Soleto"]
["Puglia","Specchia","Specchia (LE) ","Autorità Idrica Pugliese",1601,1601,"Lecce","LE","075077","Specchia"]
["Puglia","Spongano","Spongano (LE) ","Autorità Idrica Pugliese",1601,1601,"Lecce","LE","075078","Spongano"]
["Puglia","Squinzano","Squinzano (LE) ","Autorità Idrica Pugliese",1601,1601,"Lecce","LE","075079","Squinzano"]
["Puglia","Sternatia","Sternatia (LE) ","Autorità Idrica Pugliese",1601,1601,"Lecce","LE","075080","Sternatia"]
["Puglia","Supersano","Supersano (LE) ","Autorità Idrica Pugliese",1601,1601,"Lecce","LE","075081","Supersano"]
["Puglia","Surano","Surano (LE) ","Autorità Idrica Pugliese",1601,1601,"Lecce","LE","075082","Surano"]
["Puglia","Surbo","Surbo (LE) ","Autorità Idrica Pugliese",1601,1601,"Lecce","LE","075083","Surbo"]
["Puglia","Taurisano","Taurisano (LE) ","Autorità Idrica Pugliese",1601,1601,"Lecce","LE","075084","Taurisano"]
["Puglia","Taviano","Taviano (LE) ","Autorità Idrica Pugliese",1601,1601,"Lecce","LE","075085","Taviano"]
["Puglia","Tiggiano","Tiggiano (LE) ","Autorità Idrica Pugliese",1601,1601,"Lecce","LE","075086","Tiggiano"]
["Puglia","Trepuzzi","Trepuzzi (LE) ","Autorità Idrica Pugliese",1601,1601,"Lecce","LE","075087","Trepuzzi"]
["Puglia","Tricase","Tricase (LE) ","Autorità Idrica Pugliese",1601,1601,"Lecce","LE","075088","Tricase"]
["Puglia","Tuglie","Tuglie (LE) ","Autorità Idrica Pugliese",1601,1601,"Lecce","LE","075089","Tuglie"]
["Puglia","Ugento","Ugento (LE) ","Autorità Idrica Pugliese",1601,1601,"Lecce","LE","075090","Ugento"]
["Puglia","Uggiano la Chiesa","Uggiano la Chiesa (LE) ","Autorità Idrica Pugliese",1601,1601,"Lecce","LE","075091","Uggiano la Chiesa"]
["Puglia","Veglie","Veglie (LE) ","Autorità Idrica Pugliese",1601,1601,"Lecce","LE","075092","Veglie"]
["Puglia","Vernole","Vernole (LE) ","Autorità Idrica Pugliese",1601,1601,"Lecce","LE","075093","Vernole"]
["Puglia","Zollino","Zollino (LE) ","Autorità Idrica Pugliese",1601,1601,"Lecce","LE","075094","Zollino"]
["Puglia","San Cassiano","San Cassiano (LE) ","Autorità Idrica Pugliese",1601,1601,"Lecce","LE","075095","San Cassiano"]
["Puglia","Castro","Castro (LE) ","Autorità Idrica Pugliese",1601,1601,"Lecce","LE","075096","Castro"]
["Puglia","Porto Cesareo","Porto Cesareo (LE) ","Autorità Idrica Pugliese",1601,1601,"Lecce","LE","075097","Porto Cesareo"]
["Puglia","Presicce-Acquarica","Presicce-Acquarica (LE) ","Autorità Idrica Pugliese",1601,1601,"Lecce","LE","075098","Presicce-Acquarica"]
["Basilicata","Abriola","Abriola (PZ) ","Ente di Governo per i Rifiuti e le Risorse Idriche della Basilicata",1701,1701,"Potenza","PZ","076001","Abriola"]
["Basilicata","Acerenza","Acerenza (PZ) ","Ente di Governo per i Rifiuti e le Risorse Idriche della Basilicata",1701,1701,"Potenza","PZ","076002","Acerenza"]
["Basilicata","Albano di Lucania","Albano di Lucania (PZ) ","Ente di Governo per i Rifiuti e le Risorse Idriche della Basilicata",1701,1701,"Potenza","PZ","076003","Albano di Lucania"]
["Basilicata","Anzi","Anzi (PZ) ","Ente di Governo per i Rifiuti e le Risorse Idriche della Basilicata",1701,1701,"Potenza","PZ","076004","Anzi"]
["Basilicata","Armento","Armento (PZ) ","Ente di Governo per i Rifiuti e le Risorse Idriche della Basilicata",1701,1701,"Potenza","PZ","076005","Armento"]
["Basilicata","Atella","Atella (PZ) ","Ente di Governo per i Rifiuti e le Risorse Idriche della Basilicata",1701,1701,"Potenza","PZ","076006","Atella"]
["Basilicata","Avigliano","Avigliano (PZ) ","Ente di Governo per i Rifiuti e le Risorse Idriche della Basilicata",1701,1701,"Potenza","PZ","076007","Avigliano"]
["Basilicata","Balvano","Balvano (PZ) ","Ente di Governo per i Rifiuti e le Risorse Idriche della Basilicata",1701,1701,"Potenza","PZ","076008","Balvano"]
["Basilicata","Banzi","Banzi (PZ) ","Ente di Governo per i Rifiuti e le Risorse Idriche della Basilicata",1701,1701,"Potenza","PZ","076009","Banzi"]
["Basilicata","Baragiano","Baragiano (PZ) ","Ente di Governo per i Rifiuti e le Risorse Idriche della Basilicata",1701,1701,"Potenza","PZ","076010","Baragiano"]
["Basilicata","Barile","Barile (PZ) ","Ente di Governo per i Rifiuti e le Risorse Idriche della Basilicata",1701,1701,"Potenza","PZ","076011","Barile"]
["Basilicata","Bella","Bella (PZ) ","Ente di Governo per i Rifiuti e le Risorse Idriche della Basilicata",1701,1701,"Potenza","PZ","076012","Bella"]
["Basilicata","Brienza","Brienza (PZ) ","Ente di Governo per i Rifiuti e le Risorse Idriche della Basilicata",1701,1701,"Potenza","PZ","076013","Brienza"]
["Basilicata","Brindisi Montagna","Brindisi Montagna (PZ) ","Ente di Governo per i Rifiuti e le Risorse Idriche della Basilicata",1701,1701,"Potenza","PZ","076014","Brindisi Montagna"]
["Basilicata","Calvello","Calvello (PZ) ","Ente di Governo per i Rifiuti e le Risorse Idriche della Basilicata",1701,1701,"Potenza","PZ","076015","Calvello"]
["Basilicata","Calvera","Calvera (PZ) ","Ente di Governo per i Rifiuti e le Risorse Idriche della Basilicata",1701,1701,"Potenza","PZ","076016","Calvera"]
["Basilicata","Campomaggiore","Campomaggiore (PZ) ","Ente di Governo per i Rifiuti e le Risorse Idriche della Basilicata",1701,1701,"Potenza","PZ","076017","Campomaggiore"]
["Basilicata","Cancellara","Cancellara (PZ) ","Ente di Governo per i Rifiuti e le Risorse Idriche della Basilicata",1701,1701,"Potenza","PZ","076018","Cancellara"]
["Basilicata","Carbone","Carbone (PZ) ","Ente di Governo per i Rifiuti e le Risorse Idriche della Basilicata",1701,1701,"Potenza","PZ","076019","Carbone"]
["Basilicata","San Paolo Albanese","San Paolo Albanese (PZ) ","Ente di Governo per i Rifiuti e le Risorse Idriche della Basilicata",1701,1701,"Potenza","PZ","076020","San Paolo Albanese"]
["Basilicata","Castelgrande","Castelgrande (PZ) ","Ente di Governo per i Rifiuti e le Risorse Idriche della Basilicata",1701,1701,"Potenza","PZ","076021","Castelgrande"]
["Basilicata","Castelluccio Inferiore","Castelluccio Inferiore (PZ) ","Ente di Governo per i Rifiuti e le Risorse Idriche della Basilicata",1701,1701,"Potenza","PZ","076022","Castelluccio Inferiore"]
["Basilicata","Castelluccio Superiore","Castelluccio Superiore (PZ) ","Ente di Governo per i Rifiuti e le Risorse Idriche della Basilicata",1701,1701,"Potenza","PZ","076023","Castelluccio Superiore"]
["Basilicata","Castelmezzano","Castelmezzano (PZ) ","Ente di Governo per i Rifiuti e le Risorse Idriche della Basilicata",1701,1701,"Potenza","PZ","076024","Castelmezzano"]
["Basilicata","Castelsaraceno","Castelsaraceno (PZ) ","Ente di Governo per i Rifiuti e le Risorse Idriche della Basilicata",1701,1701,"Potenza","PZ","076025","Castelsaraceno"]
["Basilicata","Castronuovo di Sant'Andrea","Castronuovo di Sant'Andrea (PZ) ","Ente di Governo per i Rifiuti e le Risorse Idriche della Basilicata",1701,1701,"Potenza","PZ","076026","Castronuovo di Sant'Andrea"]
["Basilicata","Cersosimo","Cersosimo (PZ) ","Ente di Governo per i Rifiuti e le Risorse Idriche della Basilicata",1701,1701,"Potenza","PZ","076027","Cersosimo"]
["Basilicata","Chiaromonte","Chiaromonte (PZ) ","Ente di Governo per i Rifiuti e le Risorse Idriche della Basilicata",1701,1701,"Potenza","PZ","076028","Chiaromonte"]
["Basilicata","Corleto Perticara","Corleto Perticara (PZ) ","Ente di Governo per i Rifiuti e le Risorse Idriche della Basilicata",1701,1701,"Potenza","PZ","076029","Corleto Perticara"]
["Basilicata","Episcopia","Episcopia (PZ) ","Ente di Governo per i Rifiuti e le Risorse Idriche della Basilicata",1701,1701,"Potenza","PZ","076030","Episcopia"]
["Basilicata","Fardella","Fardella (PZ) ","Ente di Governo per i Rifiuti e le Risorse Idriche della Basilicata",1701,1701,"Potenza","PZ","076031","Fardella"]
["Basilicata","Filiano","Filiano (PZ) ","Ente di Governo per i Rifiuti e le Risorse Idriche della Basilicata",1701,1701,"Potenza","PZ","076032","Filiano"]
["Basilicata","Forenza","Forenza (PZ) ","Ente di Governo per i Rifiuti e le Risorse Idriche della Basilicata",1701,1701,"Potenza","PZ","076033","Forenza"]
["Basilicata","Francavilla in Sinni","Francavilla in Sinni (PZ) ","Ente di Governo per i Rifiuti e le Risorse Idriche della Basilicata",1701,1701,"Potenza","PZ","076034","Francavilla in Sinni"]
["Basilicata","Gallicchio","Gallicchio (PZ) ","Ente di Governo per i Rifiuti e le Risorse Idriche della Basilicata",1701,1701,"Potenza","PZ","076035","Gallicchio"]
["Basilicata","Genzano di Lucania","Genzano di Lucania (PZ) ","Ente di Governo per i Rifiuti e le Risorse Idriche della Basilicata",1701,1701,"Potenza","PZ","076036","Genzano di Lucania"]
["Basilicata","Grumento Nova","Grumento Nova (PZ) ","Ente di Governo per i Rifiuti e le Risorse Idriche della Basilicata",1701,1701,"Potenza","PZ","076037","Grumento Nova"]
["Basilicata","Guardia Perticara","Guardia Perticara (PZ) ","Ente di Governo per i Rifiuti e le Risorse Idriche della Basilicata",1701,1701,"Potenza","PZ","076038","Guardia Perticara"]
["Basilicata","Lagonegro","Lagonegro (PZ) ","Ente di Governo per i Rifiuti e le Risorse Idriche della Basilicata",1701,1701,"Potenza","PZ","076039","Lagonegro"]
["Basilicata","Latronico","Latronico (PZ) ","Ente di Governo per i Rifiuti e le Risorse Idriche della Basilicata",1701,1701,"Potenza","PZ","076040","Latronico"]
["Basilicata","Laurenzana","Laurenzana (PZ) ","Ente di Governo per i Rifiuti e le Risorse Idriche della Basilicata",1701,1701,"Potenza","PZ","076041","Laurenzana"]
["Basilicata","Lauria","Lauria (PZ) ","Ente di Governo per i Rifiuti e le Risorse Idriche della Basilicata",1701,1701,"Potenza","PZ","076042","Lauria"]
["Basilicata","Lavello","Lavello (PZ) ","Ente di Governo per i Rifiuti e le Risorse Idriche della Basilicata",1701,1701,"Potenza","PZ","076043","Lavello"]
["Basilicata","Maratea","Maratea (PZ) ","Ente di Governo per i Rifiuti e le Risorse Idriche della Basilicata",1701,1701,"Potenza","PZ","076044","Maratea"]
["Basilicata","Marsico Nuovo","Marsico Nuovo (PZ) ","Ente di Governo per i Rifiuti e le Risorse Idriche della Basilicata",1701,1701,"Potenza","PZ","076045","Marsico Nuovo"]
["Basilicata","Marsicovetere","Marsicovetere (PZ) ","Ente di Governo per i Rifiuti e le Risorse Idriche della Basilicata",1701,1701,"Potenza","PZ","076046","Marsicovetere"]
["Basilicata","Maschito","Maschito (PZ) ","Ente di Governo per i Rifiuti e le Risorse Idriche della Basilicata",1701,1701,"Potenza","PZ","076047","Maschito"]
["Basilicata","Melfi","Melfi (PZ) ","Ente di Governo per i Rifiuti e le Risorse Idriche della Basilicata",1701,1701,"Potenza","PZ","076048","Melfi"]
["Basilicata","Missanello","Missanello (PZ) ","Ente di Governo per i Rifiuti e le Risorse Idriche della Basilicata",1701,1701,"Potenza","PZ","076049","Missanello"]
["Basilicata","Moliterno","Moliterno (PZ) ","Ente di Governo per i Rifiuti e le Risorse Idriche della Basilicata",1701,1701,"Potenza","PZ","076050","Moliterno"]
["Basilicata","Montemilone","Montemilone (PZ) ","Ente di Governo per i Rifiuti e le Risorse Idriche della Basilicata",1701,1701,"Potenza","PZ","076051","Montemilone"]
["Basilicata","Montemurro","Montemurro (PZ) ","Ente di Governo per i Rifiuti e le Risorse Idriche della Basilicata",1701,1701,"Potenza","PZ","076052","Montemurro"]
["Basilicata","Muro Lucano","Muro Lucano (PZ) ","Ente di Governo per i Rifiuti e le Risorse Idriche della Basilicata",1701,1701,"Potenza","PZ","076053","Muro Lucano"]
["Basilicata","Nemoli","Nemoli (PZ) ","Ente di Governo per i Rifiuti e le Risorse Idriche della Basilicata",1701,1701,"Potenza","PZ","076054","Nemoli"]
["Basilicata","Noepoli","Noepoli (PZ) ","Ente di Governo per i Rifiuti e le Risorse Idriche della Basilicata",1701,1701,"Potenza","PZ","076055","Noepoli"]
["Basilicata","Oppido Lucano","Oppido Lucano (PZ) ","Ente di Governo per i Rifiuti e le Risorse Idriche della Basilicata",1701,1701,"Potenza","PZ","076056","Oppido Lucano"]
["Basilicata","Palazzo San Gervasio","Palazzo San Gervasio (PZ) ","Ente di Governo per i Rifiuti e le Risorse Idriche della Basilicata",1701,1701,"Potenza","PZ","076057","Palazzo San Gervasio"]
["Basilicata","Pescopagano","Pescopagano (PZ) ","Ente di Governo per i Rifiuti e le Risorse Idriche della Basilicata",1701,1701,"Potenza","PZ","076058","Pescopagano"]
["Basilicata","Picerno","Picerno (PZ) ","Ente di Governo per i Rifiuti e le Risorse Idriche della Basilicata",1701,1701,"Potenza","PZ","076059","Picerno"]
["Basilicata","Pietragalla","Pietragalla (PZ) ","Ente di Governo per i Rifiuti e le Risorse Idriche della Basilicata",1701,1701,"Potenza","PZ","076060","Pietragalla"]
["Basilicata","Pietrapertosa","Pietrapertosa (PZ) ","Ente di Governo per i Rifiuti e le Risorse Idriche della Basilicata",1701,1701,"Potenza","PZ","076061","Pietrapertosa"]
["Basilicata","Pignola","Pignola (PZ) ","Ente di Governo per i Rifiuti e le Risorse Idriche della Basilicata",1701,1701,"Potenza","PZ","076062","Pignola"]
["Basilicata","Potenza","Potenza (PZ) ","Ente di Governo per i Rifiuti e le Risorse Idriche della Basilicata",1701,1701,"Potenza","PZ","076063","Potenza"]
["Basilicata","Rapolla","Rapolla (PZ) ","Ente di Governo per i Rifiuti e le Risorse Idriche della Basilicata",1701,1701,"Potenza","PZ","076064","Rapolla"]
["Basilicata","Rapone","Rapone (PZ) ","Ente di Governo per i Rifiuti e le Risorse Idriche della Basilicata",1701,1701,"Potenza","PZ","076065","Rapone"]
["Basilicata","Rionero in Vulture","Rionero in Vulture (PZ) ","Ente di Governo per i Rifiuti e le Risorse Idriche della Basilicata",1701,1701,"Potenza","PZ","076066","Rionero in Vulture"]
["Basilicata","Ripacandida","Ripacandida (PZ) ","Ente di Governo per i Rifiuti e le Risorse Idriche della Basilicata",1701,1701,"Potenza","PZ","076067","Ripacandida"]
["Basilicata","Rivello","Rivello (PZ) ","Ente di Governo per i Rifiuti e le Risorse Idriche della Basilicata",1701,1701,"Potenza","PZ","076068","Rivello"]
["Basilicata","Roccanova","Roccanova (PZ) ","Ente di Governo per i Rifiuti e le Risorse Idriche della Basilicata",1701,1701,"Potenza","PZ","076069","Roccanova"]
["Basilicata","Rotonda","Rotonda (PZ) ","Ente di Governo per i Rifiuti e le Risorse Idriche della Basilicata",1701,1701,"Potenza","PZ","076070","Rotonda"]
["Basilicata","Ruoti","Ruoti (PZ) ","Ente di Governo per i Rifiuti e le Risorse Idriche della Basilicata",1701,1701,"Potenza","PZ","076071","Ruoti"]
["Basilicata","Ruvo del Monte","Ruvo del Monte (PZ) ","Ente di Governo per i Rifiuti e le Risorse Idriche della Basilicata",1701,1701,"Potenza","PZ","076072","Ruvo del Monte"]
["Basilicata","San Chirico Nuovo","San Chirico Nuovo (PZ) ","Ente di Governo per i Rifiuti e le Risorse Idriche della Basilicata",1701,1701,"Potenza","PZ","076073","San Chirico Nuovo"]
["Basilicata","San Chirico Raparo","San Chirico Raparo (PZ) ","Ente di Governo per i Rifiuti e le Risorse Idriche della Basilicata",1701,1701,"Potenza","PZ","076074","San Chirico Raparo"]
["Basilicata","San Costantino Albanese","San Costantino Albanese (PZ) ","Ente di Governo per i Rifiuti e le Risorse Idriche della Basilicata",1701,1701,"Potenza","PZ","076075","San Costantino Albanese"]
["Basilicata","San Fele","San Fele (PZ) ","Ente di Governo per i Rifiuti e le Risorse Idriche della Basilicata",1701,1701,"Potenza","PZ","076076","San Fele"]
["Basilicata","San Martino d'Agri","San Martino d'Agri (PZ) ","Ente di Governo per i Rifiuti e le Risorse Idriche della Basilicata",1701,1701,"Potenza","PZ","076077","San Martino d'Agri"]
["Basilicata","San Severino Lucano","San Severino Lucano (PZ) ","Ente di Governo per i Rifiuti e le Risorse Idriche della Basilicata",1701,1701,"Potenza","PZ","076078","San Severino Lucano"]
["Basilicata","Sant'Angelo Le Fratte","Sant'Angelo Le Fratte (PZ) ","Ente di Governo per i Rifiuti e le Risorse Idriche della Basilicata",1701,1701,"Potenza","PZ","076079","Sant'Angelo Le Fratte"]
["Basilicata","Sant'Arcangelo","Sant'Arcangelo (PZ) ","Ente di Governo per i Rifiuti e le Risorse Idriche della Basilicata",1701,1701,"Potenza","PZ","076080","Sant'Arcangelo"]
["Basilicata","Sarconi","Sarconi (PZ) ","Ente di Governo per i Rifiuti e le Risorse Idriche della Basilicata",1701,1701,"Potenza","PZ","076081","Sarconi"]
["Basilicata","Sasso di Castalda","Sasso di Castalda (PZ) ","Ente di Governo per i Rifiuti e le Risorse Idriche della Basilicata",1701,1701,"Potenza","PZ","076082","Sasso di Castalda"]
["Basilicata","Satriano di Lucania","Satriano di Lucania (PZ) ","Ente di Governo per i Rifiuti e le Risorse Idriche della Basilicata",1701,1701,"Potenza","PZ","076083","Satriano di Lucania"]
["Basilicata","Savoia di Lucania","Savoia di Lucania (PZ) ","Ente di Governo per i Rifiuti e le Risorse Idriche della Basilicata",1701,1701,"Potenza","PZ","076084","Savoia di Lucania"]
["Basilicata","Senise","Senise (PZ) ","Ente di Governo per i Rifiuti e le Risorse Idriche della Basilicata",1701,1701,"Potenza","PZ","076085","Senise"]
["Basilicata","Spinoso","Spinoso (PZ) ","Ente di Governo per i Rifiuti e le Risorse Idriche della Basilicata",1701,1701,"Potenza","PZ","076086","Spinoso"]
["Basilicata","Teana","Teana (PZ) ","Ente di Governo per i Rifiuti e le Risorse Idriche della Basilicata",1701,1701,"Potenza","PZ","076087","Teana"]
["Basilicata","Terranova di Pollino","Terranova di Pollino (PZ) ","Ente di Governo per i Rifiuti e le Risorse Idriche della Basilicata",1701,1701,"Potenza","PZ","076088","Terranova di Pollino"]
["Basilicata","Tito","Tito (PZ) ","Ente di Governo per i Rifiuti e le Risorse Idriche della Basilicata",1701,1701,"Potenza","PZ","076089","Tito"]
["Basilicata","Tolve","Tolve (PZ) ","Ente di Governo per i Rifiuti e le Risorse Idriche della Basilicata",1701,1701,"Potenza","PZ","076090","Tolve"]
["Basilicata","Tramutola","Tramutola (PZ) ","Ente di Governo per i Rifiuti e le Risorse Idriche della Basilicata",1701,1701,"Potenza","PZ","076091","Tramutola"]
["Basilicata","Trecchina","Trecchina (PZ) ","Ente di Governo per i Rifiuti e le Risorse Idriche della Basilicata",1701,1701,"Potenza","PZ","076092","Trecchina"]
["Basilicata","Trivigno","Trivigno (PZ) ","Ente di Governo per i Rifiuti e le Risorse Idriche della Basilicata",1701,1701,"Potenza","PZ","076093","Trivigno"]
["Basilicata","Vaglio Basilicata","Vaglio Basilicata (PZ) ","Ente di Governo per i Rifiuti e le Risorse Idriche della Basilicata",1701,1701,"Potenza","PZ","076094","Vaglio Basilicata"]
["Basilicata","Venosa","Venosa (PZ) ","Ente di Governo per i Rifiuti e le Risorse Idriche della Basilicata",1701,1701,"Potenza","PZ","076095","Venosa"]
["Basilicata","Vietri di Potenza","Vietri di Potenza (PZ) ","Ente di Governo per i Rifiuti e le Risorse Idriche della Basilicata",1701,1701,"Potenza","PZ","076096","Vietri di Potenza"]
["Basilicata","Viggianello","Viggianello (PZ) ","Ente di Governo per i Rifiuti e le Risorse Idriche della Basilicata",1701,1701,"Potenza","PZ","076097","Viggianello"]
["Basilicata","Viggiano","Viggiano (PZ) ","Ente di Governo per i Rifiuti e le Risorse Idriche della Basilicata",1701,1701,"Potenza","PZ","076098","Viggiano"]
["Basilicata","Ginestra","Ginestra (PZ) ","Ente di Governo per i Rifiuti e le Risorse Idriche della Basilicata",1701,1701,"Potenza","PZ","076099","Ginestra"]
["Basilicata","Paterno","Paterno (PZ) ","Ente di Governo per i Rifiuti e le Risorse Idriche della Basilicata",1701,1701,"Potenza","PZ","076100","Paterno"]
["Basilicata","Accettura","Accettura (MT) ","Ente di Governo per i Rifiuti e le Risorse Idriche della Basilicata",1701,1701,"Matera","MT","077001","Accettura"]
["Basilicata","Aliano","Aliano (MT) ","Ente di Governo per i Rifiuti e le Risorse Idriche della Basilicata",1701,1701,"Matera","MT","077002","Aliano"]
["Basilicata","Bernalda","Bernalda (MT) ","Ente di Governo per i Rifiuti e le Risorse Idriche della Basilicata",1701,1701,"Matera","MT","077003","Bernalda"]
["Basilicata","Calciano","Calciano (MT) ","Ente di Governo per i Rifiuti e le Risorse Idriche della Basilicata",1701,1701,"Matera","MT","077004","Calciano"]
["Basilicata","Cirigliano","Cirigliano (MT) ","Ente di Governo per i Rifiuti e le Risorse Idriche della Basilicata",1701,1701,"Matera","MT","077005","Cirigliano"]
["Basilicata","Colobraro","Colobraro (MT) ","Ente di Governo per i Rifiuti e le Risorse Idriche della Basilicata",1701,1701,"Matera","MT","077006","Colobraro"]
["Basilicata","Craco","Craco (MT) ","Ente di Governo per i Rifiuti e le Risorse Idriche della Basilicata",1701,1701,"Matera","MT","077007","Craco"]
["Basilicata","Ferrandina","Ferrandina (MT) ","Ente di Governo per i Rifiuti e le Risorse Idriche della Basilicata",1701,1701,"Matera","MT","077008","Ferrandina"]
["Basilicata","Garaguso","Garaguso (MT) ","Ente di Governo per i Rifiuti e le Risorse Idriche della Basilicata",1701,1701,"Matera","MT","077009","Garaguso"]
["Basilicata","Gorgoglione","Gorgoglione (MT) ","Ente di Governo per i Rifiuti e le Risorse Idriche della Basilicata",1701,1701,"Matera","MT","077010","Gorgoglione"]
["Basilicata","Grassano","Grassano (MT) ","Ente di Governo per i Rifiuti e le Risorse Idriche della Basilicata",1701,1701,"Matera","MT","077011","Grassano"]
["Basilicata","Grottole","Grottole (MT) ","Ente di Governo per i Rifiuti e le Risorse Idriche della Basilicata",1701,1701,"Matera","MT","077012","Grottole"]
["Basilicata","Irsina","Irsina (MT) ","Ente di Governo per i Rifiuti e le Risorse Idriche della Basilicata",1701,1701,"Matera","MT","077013","Irsina"]
["Basilicata","Matera","Matera (MT) ","Ente di Governo per i Rifiuti e le Risorse Idriche della Basilicata",1701,1701,"Matera","MT","077014","Matera"]
["Basilicata","Miglionico","Miglionico (MT) ","Ente di Governo per i Rifiuti e le Risorse Idriche della Basilicata",1701,1701,"Matera","MT","077015","Miglionico"]
["Basilicata","Montalbano Jonico","Montalbano Jonico (MT) ","Ente di Governo per i Rifiuti e le Risorse Idriche della Basilicata",1701,1701,"Matera","MT","077016","Montalbano Jonico"]
["Basilicata","Montescaglioso","Montescaglioso (MT) ","Ente di Governo per i Rifiuti e le Risorse Idriche della Basilicata",1701,1701,"Matera","MT","077017","Montescaglioso"]
["Basilicata","Nova Siri","Nova Siri (MT) ","Ente di Governo per i Rifiuti e le Risorse Idriche della Basilicata",1701,1701,"Matera","MT","077018","Nova Siri"]
["Basilicata","Oliveto Lucano","Oliveto Lucano (MT) ","Ente di Governo per i Rifiuti e le Risorse Idriche della Basilicata",1701,1701,"Matera","MT","077019","Oliveto Lucano"]
["Basilicata","Pisticci","Pisticci (MT) ","Ente di Governo per i Rifiuti e le Risorse Idriche della Basilicata",1701,1701,"Matera","MT","077020","Pisticci"]
["Basilicata","Policoro","Policoro (MT) ","Ente di Governo per i Rifiuti e le Risorse Idriche della Basilicata",1701,1701,"Matera","MT","077021","Policoro"]
["Basilicata","Pomarico","Pomarico (MT) ","Ente di Governo per i Rifiuti e le Risorse Idriche della Basilicata",1701,1701,"Matera","MT","077022","Pomarico"]
["Basilicata","Rotondella","Rotondella (MT) ","Ente di Governo per i Rifiuti e le Risorse Idriche della Basilicata",1701,1701,"Matera","MT","077023","Rotondella"]
["Basilicata","Salandra","Salandra (MT) ","Ente di Governo per i Rifiuti e le Risorse Idriche della Basilicata",1701,1701,"Matera","MT","077024","Salandra"]
["Basilicata","San Giorgio Lucano","San Giorgio Lucano (MT) ","Ente di Governo per i Rifiuti e le Risorse Idriche della Basilicata",1701,1701,"Matera","MT","077025","San Giorgio Lucano"]
["Basilicata","San Mauro Forte","San Mauro Forte (MT) ","Ente di Governo per i Rifiuti e le Risorse Idriche della Basilicata",1701,1701,"Matera","MT","077026","San Mauro Forte"]
["Basilicata","Stigliano","Stigliano (MT) ","Ente di Governo per i Rifiuti e le Risorse Idriche della Basilicata",1701,1701,"Matera","MT","077027","Stigliano"]
["Basilicata","Tricarico","Tricarico (MT) ","Ente di Governo per i Rifiuti e le Risorse Idriche della Basilicata",1701,1701,"Matera","MT","077028","Tricarico"]
["Basilicata","Tursi","Tursi (MT) ","Ente di Governo per i Rifiuti e le Risorse Idriche della Basilicata",1701,1701,"Matera","MT","077029","Tursi"]
["Basilicata","Valsinni","Valsinni (MT) ","Ente di Governo per i Rifiuti e le Risorse Idriche della Basilicata",1701,1701,"Matera","MT","077030","Valsinni"]
["Basilicata","Scanzano Jonico","Scanzano Jonico (MT) ","Ente di Governo per i Rifiuti e le Risorse Idriche della Basilicata",1701,1701,"Matera","MT","077031","Scanzano Jonico"]
["Calabria","Acquaformosa","Acquaformosa (CS) ","Autorità Rifiuti e Risorse Idriche della Calabria",1806,1806,"Cosenza","CS","078001","Acquaformosa"]
["Calabria","Acquappesa","Acquappesa (CS) ","Autorità Rifiuti e Risorse Idriche della Calabria",1806,1806,"Cosenza","CS","078002","Acquappesa"]
["Calabria","Acri","Acri (CS) ","Autorità Rifiuti e Risorse Idriche della Calabria",1806,1806,"Cosenza","CS","078003","Acri"]
["Calabria","Aiello Calabro","Aiello Calabro (CS) ","Autorità Rifiuti e Risorse Idriche della Calabria",1806,1806,"Cosenza","CS","078004","Aiello Calabro"]
["Calabria","Aieta","Aieta (CS) ","Autorità Rifiuti e Risorse Idriche della Calabria",1806,1806,"Cosenza","CS","078005","Aieta"]
["Calabria","Albidona","Albidona (CS) ","Autorità Rifiuti e Risorse Idriche della Calabria",1806,1806,"Cosenza","CS","078006","Albidona"]
["Calabria","Alessandria del Carretto","Alessandria del Carretto (CS) ","Autorità Rifiuti e Risorse Idriche della Calabria",1806,1806,"Cosenza","CS","078007","Alessandria del Carretto"]
["Calabria","Altilia","Altilia (CS) ","Autorità Rifiuti e Risorse Idriche della Calabria",1806,1806,"Cosenza","CS","078008","Altilia"]
["Calabria","Altomonte","Altomonte (CS) ","Autorità Rifiuti e Risorse Idriche della Calabria",1806,1806,"Cosenza","CS","078009","Altomonte"]
["Calabria","Amantea","Amantea (CS) ","Autorità Rifiuti e Risorse Idriche della Calabria",1806,1806,"Cosenza","CS","078010","Amantea"]
["Calabria","Amendolara","Amendolara (CS) ","Autorità Rifiuti e Risorse Idriche della Calabria",1806,1806,"Cosenza","CS","078011","Amendolara"]
["Calabria","Aprigliano","Aprigliano (CS) ","Autorità Rifiuti e Risorse Idriche della Calabria",1806,1806,"Cosenza","CS","078012","Aprigliano"]
["Calabria","Belmonte Calabro","Belmonte Calabro (CS) ","Autorità Rifiuti e Risorse Idriche della Calabria",1806,1806,"Cosenza","CS","078013","Belmonte Calabro"]
["Calabria","Belsito","Belsito (CS) ","Autorità Rifiuti e Risorse Idriche della Calabria",1806,1806,"Cosenza","CS","078014","Belsito"]
["Calabria","Belvedere Marittimo","Belvedere Marittimo (CS) ","Autorità Rifiuti e Risorse Idriche della Calabria",1806,1806,"Cosenza","CS","078015","Belvedere Marittimo"]
["Calabria","Bianchi","Bianchi (CS) ","Autorità Rifiuti e Risorse Idriche della Calabria",1806,1806,"Cosenza","CS","078016","Bianchi"]
["Calabria","Bisignano","Bisignano (CS) ","Autorità Rifiuti e Risorse Idriche della Calabria",1806,1806,"Cosenza","CS","078017","Bisignano"]
["Calabria","Bocchigliero","Bocchigliero (CS) ","Autorità Rifiuti e Risorse Idriche della Calabria",1806,1806,"Cosenza","CS","078018","Bocchigliero"]
["Calabria","Bonifati","Bonifati (CS) ","Autorità Rifiuti e Risorse Idriche della Calabria",1806,1806,"Cosenza","CS","078019","Bonifati"]
["Calabria","Buonvicino","Buonvicino (CS) ","Autorità Rifiuti e Risorse Idriche della Calabria",1806,1806,"Cosenza","CS","078020","Buonvicino"]
["Calabria","Calopezzati","Calopezzati (CS) ","Autorità Rifiuti e Risorse Idriche della Calabria",1806,1806,"Cosenza","CS","078021","Calopezzati"]
["Calabria","Caloveto","Caloveto (CS) ","Autorità Rifiuti e Risorse Idriche della Calabria",1806,1806,"Cosenza","CS","078022","Caloveto"]
["Calabria","Campana","Campana (CS) ","Autorità Rifiuti e Risorse Idriche della Calabria",1806,1806,"Cosenza","CS","078023","Campana"]
["Calabria","Canna","Canna (CS) ","Autorità Rifiuti e Risorse Idriche della Calabria",1806,1806,"Cosenza","CS","078024","Canna"]
["Calabria","Cariati","Cariati (CS) ","Autorità Rifiuti e Risorse Idriche della Calabria",1806,1806,"Cosenza","CS","078025","Cariati"]
["Calabria","Carolei","Carolei (CS) ","Autorità Rifiuti e Risorse Idriche della Calabria",1806,1806,"Cosenza","CS","078026","Carolei"]
["Calabria","Carpanzano","Carpanzano (CS) ","Autorità Rifiuti e Risorse Idriche della Calabria",1806,1806,"Cosenza","CS","078027","Carpanzano"]
["Calabria","Cassano all'Ionio","Cassano all'Ionio (CS) ","Autorità Rifiuti e Risorse Idriche della Calabria",1806,1806,"Cosenza","CS","078029","Cassano all'Ionio"]
["Calabria","Castiglione Cosentino","Castiglione Cosentino (CS) ","Autorità Rifiuti e Risorse Idriche della Calabria",1806,1806,"Cosenza","CS","078030","Castiglione Cosentino"]
["Calabria","Castrolibero","Castrolibero (CS) ","Autorità Rifiuti e Risorse Idriche della Calabria",1806,1806,"Cosenza","CS","078031","Castrolibero"]
["Calabria","Castroregio","Castroregio (CS) ","Autorità Rifiuti e Risorse Idriche della Calabria",1806,1806,"Cosenza","CS","078032","Castroregio"]
["Calabria","Castrovillari","Castrovillari (CS) ","Autorità Rifiuti e Risorse Idriche della Calabria",1806,1806,"Cosenza","CS","078033","Castrovillari"]
["Calabria","Celico","Celico (CS) ","Autorità Rifiuti e Risorse Idriche della Calabria",1806,1806,"Cosenza","CS","078034","Celico"]
["Calabria","Cellara","Cellara (CS) ","Autorità Rifiuti e Risorse Idriche della Calabria",1806,1806,"Cosenza","CS","078035","Cellara"]
["Calabria","Cerchiara di Calabria","Cerchiara di Calabria (CS) ","Autorità Rifiuti e Risorse Idriche della Calabria",1806,1806,"Cosenza","CS","078036","Cerchiara di Calabria"]
["Calabria","Cerisano","Cerisano (CS) ","Autorità Rifiuti e Risorse Idriche della Calabria",1806,1806,"Cosenza","CS","078037","Cerisano"]
["Calabria","Cervicati","Cervicati (CS) ","Autorità Rifiuti e Risorse Idriche della Calabria",1806,1806,"Cosenza","CS","078038","Cervicati"]
["Calabria","Cerzeto","Cerzeto (CS) ","Autorità Rifiuti e Risorse Idriche della Calabria",1806,1806,"Cosenza","CS","078039","Cerzeto"]
["Calabria","Cetraro","Cetraro (CS) ","Autorità Rifiuti e Risorse Idriche della Calabria",1806,1806,"Cosenza","CS","078040","Cetraro"]
["Calabria","Civita","Civita (CS) ","Autorità Rifiuti e Risorse Idriche della Calabria",1806,1806,"Cosenza","CS","078041","Civita"]
["Calabria","Cleto","Cleto (CS) ","Autorità Rifiuti e Risorse Idriche della Calabria",1806,1806,"Cosenza","CS","078042","Cleto"]
["Calabria","Colosimi","Colosimi (CS) ","Autorità Rifiuti e Risorse Idriche della Calabria",1806,1806,"Cosenza","CS","078043","Colosimi"]
["Calabria","Cosenza","Cosenza (CS) ","Autorità Rifiuti e Risorse Idriche della Calabria",1806,1806,"Cosenza","CS","078045","Cosenza"]
["Calabria","Cropalati","Cropalati (CS) ","Autorità Rifiuti e Risorse Idriche della Calabria",1806,1806,"Cosenza","CS","078046","Cropalati"]
["Calabria","Crosia","Crosia (CS) ","Autorità Rifiuti e Risorse Idriche della Calabria",1806,1806,"Cosenza","CS","078047","Crosia"]
["Calabria","Diamante","Diamante (CS) ","Autorità Rifiuti e Risorse Idriche della Calabria",1806,1806,"Cosenza","CS","078048","Diamante"]
["Calabria","Dipignano","Dipignano (CS) ","Autorità Rifiuti e Risorse Idriche della Calabria",1806,1806,"Cosenza","CS","078049","Dipignano"]
["Calabria","Domanico","Domanico (CS) ","Autorità Rifiuti e Risorse Idriche della Calabria",1806,1806,"Cosenza","CS","078050","Domanico"]
["Calabria","Fagnano Castello","Fagnano Castello (CS) ","Autorità Rifiuti e Risorse Idriche della Calabria",1806,1806,"Cosenza","CS","078051","Fagnano Castello"]
["Calabria","Falconara Albanese","Falconara Albanese (CS) ","Autorità Rifiuti e Risorse Idriche della Calabria",1806,1806,"Cosenza","CS","078052","Falconara Albanese"]
["Calabria","Figline Vegliaturo","Figline Vegliaturo (CS) ","Autorità Rifiuti e Risorse Idriche della Calabria",1806,1806,"Cosenza","CS","078053","Figline Vegliaturo"]
["Calabria","Firmo","Firmo (CS) ","Autorità Rifiuti e Risorse Idriche della Calabria",1806,1806,"Cosenza","CS","078054","Firmo"]
["Calabria","Fiumefreddo Bruzio","Fiumefreddo Bruzio (CS) ","Autorità Rifiuti e Risorse Idriche della Calabria",1806,1806,"Cosenza","CS","078055","Fiumefreddo Bruzio"]
["Calabria","Francavilla Marittima","Francavilla Marittima (CS) ","Autorità Rifiuti e Risorse Idriche della Calabria",1806,1806,"Cosenza","CS","078056","Francavilla Marittima"]
["Calabria","Frascineto","Frascineto (CS) ","Autorità Rifiuti e Risorse Idriche della Calabria",1806,1806,"Cosenza","CS","078057","Frascineto"]
["Calabria","Fuscaldo","Fuscaldo (CS) ","Autorità Rifiuti e Risorse Idriche della Calabria",1806,1806,"Cosenza","CS","078058","Fuscaldo"]
["Calabria","Grimaldi","Grimaldi (CS) ","Autorità Rifiuti e Risorse Idriche della Calabria",1806,1806,"Cosenza","CS","078059","Grimaldi"]
["Calabria","Grisolia","Grisolia (CS) ","Autorità Rifiuti e Risorse Idriche della Calabria",1806,1806,"Cosenza","CS","078060","Grisolia"]
["Calabria","Guardia Piemontese","Guardia Piemontese (CS) ","Autorità Rifiuti e Risorse Idriche della Calabria",1806,1806,"Cosenza","CS","078061","Guardia Piemontese"]
["Calabria","Lago","Lago (CS) ","Autorità Rifiuti e Risorse Idriche della Calabria",1806,1806,"Cosenza","CS","078062","Lago"]
["Calabria","Laino Borgo","Laino Borgo (CS) ","Autorità Rifiuti e Risorse Idriche della Calabria",1806,1806,"Cosenza","CS","078063","Laino Borgo"]
["Calabria","Laino Castello","Laino Castello (CS) ","Autorità Rifiuti e Risorse Idriche della Calabria",1806,1806,"Cosenza","CS","078064","Laino Castello"]
["Calabria","Lappano","Lappano (CS) ","Autorità Rifiuti e Risorse Idriche della Calabria",1806,1806,"Cosenza","CS","078065","Lappano"]
["Calabria","Lattarico","Lattarico (CS) ","Autorità Rifiuti e Risorse Idriche della Calabria",1806,1806,"Cosenza","CS","078066","Lattarico"]
["Calabria","Longobardi","Longobardi (CS) ","Autorità Rifiuti e Risorse Idriche della Calabria",1806,1806,"Cosenza","CS","078067","Longobardi"]
["Calabria","Longobucco","Longobucco (CS) ","Autorità Rifiuti e Risorse Idriche della Calabria",1806,1806,"Cosenza","CS","078068","Longobucco"]
["Calabria","Lungro","Lungro (CS) ","Autorità Rifiuti e Risorse Idriche della Calabria",1806,1806,"Cosenza","CS","078069","Lungro"]
["Calabria","Luzzi","Luzzi (CS) ","Autorità Rifiuti e Risorse Idriche della Calabria",1806,1806,"Cosenza","CS","078070","Luzzi"]
["Calabria","Maierà","Maierà (CS) ","Autorità Rifiuti e Risorse Idriche della Calabria",1806,1806,"Cosenza","CS","078071","Maierà"]
["Calabria","Malito","Malito (CS) ","Autorità Rifiuti e Risorse Idriche della Calabria",1806,1806,"Cosenza","CS","078072","Malito"]
["Calabria","Malvito","Malvito (CS) ","Autorità Rifiuti e Risorse Idriche della Calabria",1806,1806,"Cosenza","CS","078073","Malvito"]
["Calabria","Mandatoriccio","Mandatoriccio (CS) ","Autorità Rifiuti e Risorse Idriche della Calabria",1806,1806,"Cosenza","CS","078074","Mandatoriccio"]
["Calabria","Mangone","Mangone (CS) ","Autorità Rifiuti e Risorse Idriche della Calabria",1806,1806,"Cosenza","CS","078075","Mangone"]
["Calabria","Marano Marchesato","Marano Marchesato (CS) ","Autorità Rifiuti e Risorse Idriche della Calabria",1806,1806,"Cosenza","CS","078076","Marano Marchesato"]
["Calabria","Marano Principato","Marano Principato (CS) ","Autorità Rifiuti e Risorse Idriche della Calabria",1806,1806,"Cosenza","CS","078077","Marano Principato"]
["Calabria","Marzi","Marzi (CS) ","Autorità Rifiuti e Risorse Idriche della Calabria",1806,1806,"Cosenza","CS","078078","Marzi"]
["Calabria","Mendicino","Mendicino (CS) ","Autorità Rifiuti e Risorse Idriche della Calabria",1806,1806,"Cosenza","CS","078079","Mendicino"]
["Calabria","Mongrassano","Mongrassano (CS) ","Autorità Rifiuti e Risorse Idriche della Calabria",1806,1806,"Cosenza","CS","078080","Mongrassano"]
["Calabria","Montalto Uffugo","Montalto Uffugo (CS) ","Autorità Rifiuti e Risorse Idriche della Calabria",1806,1806,"Cosenza","CS","078081","Montalto Uffugo"]
["Calabria","Montegiordano","Montegiordano (CS) ","Autorità Rifiuti e Risorse Idriche della Calabria",1806,1806,"Cosenza","CS","078082","Montegiordano"]
["Calabria","Morano Calabro","Morano Calabro (CS) ","Autorità Rifiuti e Risorse Idriche della Calabria",1806,1806,"Cosenza","CS","078083","Morano Calabro"]
["Calabria","Mormanno","Mormanno (CS) ","Autorità Rifiuti e Risorse Idriche della Calabria",1806,1806,"Cosenza","CS","078084","Mormanno"]
["Calabria","Mottafollone","Mottafollone (CS) ","Autorità Rifiuti e Risorse Idriche della Calabria",1806,1806,"Cosenza","CS","078085","Mottafollone"]
["Calabria","Nocara","Nocara (CS) ","Autorità Rifiuti e Risorse Idriche della Calabria",1806,1806,"Cosenza","CS","078086","Nocara"]
["Calabria","Oriolo","Oriolo (CS) ","Autorità Rifiuti e Risorse Idriche della Calabria",1806,1806,"Cosenza","CS","078087","Oriolo"]
["Calabria","Orsomarso","Orsomarso (CS) ","Autorità Rifiuti e Risorse Idriche della Calabria",1806,1806,"Cosenza","CS","078088","Orsomarso"]
["Calabria","Paludi","Paludi (CS) ","Autorità Rifiuti e Risorse Idriche della Calabria",1806,1806,"Cosenza","CS","078089","Paludi"]
["Calabria","Panettieri","Panettieri (CS) ","Autorità Rifiuti e Risorse Idriche della Calabria",1806,1806,"Cosenza","CS","078090","Panettieri"]
["Calabria","Paola","Paola (CS) ","Autorità Rifiuti e Risorse Idriche della Calabria",1806,1806,"Cosenza","CS","078091","Paola"]
["Calabria","Papasidero","Papasidero (CS) ","Autorità Rifiuti e Risorse Idriche della Calabria",1806,1806,"Cosenza","CS","078092","Papasidero"]
["Calabria","Parenti","Parenti (CS) ","Autorità Rifiuti e Risorse Idriche della Calabria",1806,1806,"Cosenza","CS","078093","Parenti"]
["Calabria","Paterno Calabro","Paterno Calabro (CS) ","Autorità Rifiuti e Risorse Idriche della Calabria",1806,1806,"Cosenza","CS","078094","Paterno Calabro"]
["Calabria","Pedivigliano","Pedivigliano (CS) ","Autorità Rifiuti e Risorse Idriche della Calabria",1806,1806,"Cosenza","CS","078096","Pedivigliano"]
["Calabria","Piane Crati","Piane Crati (CS) ","Autorità Rifiuti e Risorse Idriche della Calabria",1806,1806,"Cosenza","CS","078097","Piane Crati"]
["Calabria","Pietrafitta","Pietrafitta (CS) ","Autorità Rifiuti e Risorse Idriche della Calabria",1806,1806,"Cosenza","CS","078098","Pietrafitta"]
["Calabria","Pietrapaola","Pietrapaola (CS) ","Autorità Rifiuti e Risorse Idriche della Calabria",1806,1806,"Cosenza","CS","078099","Pietrapaola"]
["Calabria","Plataci","Plataci (CS) ","Autorità Rifiuti e Risorse Idriche della Calabria",1806,1806,"Cosenza","CS","078100","Plataci"]
["Calabria","Praia a Mare","Praia a Mare (CS) ","Autorità Rifiuti e Risorse Idriche della Calabria",1806,1806,"Cosenza","CS","078101","Praia a Mare"]
["Calabria","Rende","Rende (CS) ","Autorità Rifiuti e Risorse Idriche della Calabria",1806,1806,"Cosenza","CS","078102","Rende"]
["Calabria","Rocca Imperiale","Rocca Imperiale (CS) ","Autorità Rifiuti e Risorse Idriche della Calabria",1806,1806,"Cosenza","CS","078103","Rocca Imperiale"]
["Calabria","Roggiano Gravina","Roggiano Gravina (CS) ","Autorità Rifiuti e Risorse Idriche della Calabria",1806,1806,"Cosenza","CS","078104","Roggiano Gravina"]
["Calabria","Rogliano","Rogliano (CS) ","Autorità Rifiuti e Risorse Idriche della Calabria",1806,1806,"Cosenza","CS","078105","Rogliano"]
["Calabria","Rose","Rose (CS) ","Autorità Rifiuti e Risorse Idriche della Calabria",1806,1806,"Cosenza","CS","078106","Rose"]
["Calabria","Roseto Capo Spulico","Roseto Capo Spulico (CS) ","Autorità Rifiuti e Risorse Idriche della Calabria",1806,1806,"Cosenza","CS","078107","Roseto Capo Spulico"]
["Calabria","Rota Greca","Rota Greca (CS) ","Autorità Rifiuti e Risorse Idriche della Calabria",1806,1806,"Cosenza","CS","078109","Rota Greca"]
["Calabria","Rovito","Rovito (CS) ","Autorità Rifiuti e Risorse Idriche della Calabria",1806,1806,"Cosenza","CS","078110","Rovito"]
["Calabria","San Basile","San Basile (CS) ","Autorità Rifiuti e Risorse Idriche della Calabria",1806,1806,"Cosenza","CS","078111","San Basile"]
["Calabria","San Benedetto Ullano","San Benedetto Ullano (CS) ","Autorità Rifiuti e Risorse Idriche della Calabria",1806,1806,"Cosenza","CS","078112","San Benedetto Ullano"]
["Calabria","San Cosmo Albanese","San Cosmo Albanese (CS) ","Autorità Rifiuti e Risorse Idriche della Calabria",1806,1806,"Cosenza","CS","078113","San Cosmo Albanese"]
["Calabria","San Demetrio Corone","San Demetrio Corone (CS) ","Autorità Rifiuti e Risorse Idriche della Calabria",1806,1806,"Cosenza","CS","078114","San Demetrio Corone"]
["Calabria","San Donato di Ninea","San Donato di Ninea (CS) ","Autorità Rifiuti e Risorse Idriche della Calabria",1806,1806,"Cosenza","CS","078115","San Donato di Ninea"]
["Calabria","San Fili","San Fili (CS) ","Autorità Rifiuti e Risorse Idriche della Calabria",1806,1806,"Cosenza","CS","078116","San Fili"]
["Calabria","Sangineto","Sangineto (CS) ","Autorità Rifiuti e Risorse Idriche della Calabria",1806,1806,"Cosenza","CS","078117","Sangineto"]
["Calabria","San Giorgio Albanese","San Giorgio Albanese (CS) ","Autorità Rifiuti e Risorse Idriche della Calabria",1806,1806,"Cosenza","CS","078118","San Giorgio Albanese"]
["Calabria","San Giovanni in Fiore","San Giovanni in Fiore (CS) ","Autorità Rifiuti e Risorse Idriche della Calabria",1806,1806,"Cosenza","CS","078119","San Giovanni in Fiore"]
["Calabria","San Lorenzo Bellizzi","San Lorenzo Bellizzi (CS) ","Autorità Rifiuti e Risorse Idriche della Calabria",1806,1806,"Cosenza","CS","078120","San Lorenzo Bellizzi"]
["Calabria","San Lorenzo del Vallo","San Lorenzo del Vallo (CS) ","Autorità Rifiuti e Risorse Idriche della Calabria",1806,1806,"Cosenza","CS","078121","San Lorenzo del Vallo"]
["Calabria","San Lucido","San Lucido (CS) ","Autorità Rifiuti e Risorse Idriche della Calabria",1806,1806,"Cosenza","CS","078122","San Lucido"]
["Calabria","San Marco Argentano","San Marco Argentano (CS) ","Autorità Rifiuti e Risorse Idriche della Calabria",1806,1806,"Cosenza","CS","078123","San Marco Argentano"]
["Calabria","San Martino di Finita","San Martino di Finita (CS) ","Autorità Rifiuti e Risorse Idriche della Calabria",1806,1806,"Cosenza","CS","078124","San Martino di Finita"]
["Calabria","San Nicola Arcella","San Nicola Arcella (CS) ","Autorità Rifiuti e Risorse Idriche della Calabria",1806,1806,"Cosenza","CS","078125","San Nicola Arcella"]
["Calabria","San Pietro in Amantea","San Pietro in Amantea (CS) ","Autorità Rifiuti e Risorse Idriche della Calabria",1806,1806,"Cosenza","CS","078126","San Pietro in Amantea"]
["Calabria","San Pietro in Guarano","San Pietro in Guarano (CS) ","Autorità Rifiuti e Risorse Idriche della Calabria",1806,1806,"Cosenza","CS","078127","San Pietro in Guarano"]
["Calabria","San Sosti","San Sosti (CS) ","Autorità Rifiuti e Risorse Idriche della Calabria",1806,1806,"Cosenza","CS","078128","San Sosti"]
["Calabria","Santa Caterina Albanese","Santa Caterina Albanese (CS) ","Autorità Rifiuti e Risorse Idriche della Calabria",1806,1806,"Cosenza","CS","078129","Santa Caterina Albanese"]
["Calabria","Santa Domenica Talao","Santa Domenica Talao (CS) ","Autorità Rifiuti e Risorse Idriche della Calabria",1806,1806,"Cosenza","CS","078130","Santa Domenica Talao"]
["Calabria","Sant'Agata di Esaro","Sant'Agata di Esaro (CS) ","Autorità Rifiuti e Risorse Idriche della Calabria",1806,1806,"Cosenza","CS","078131","Sant'Agata di Esaro"]
["Calabria","Santa Maria del Cedro","Santa Maria del Cedro (CS) ","Autorità Rifiuti e Risorse Idriche della Calabria",1806,1806,"Cosenza","CS","078132","Santa Maria del Cedro"]
["Calabria","Santa Sofia d'Epiro","Santa Sofia d'Epiro (CS) ","Autorità Rifiuti e Risorse Idriche della Calabria",1806,1806,"Cosenza","CS","078133","Santa Sofia d'Epiro"]
["Calabria","Santo Stefano di Rogliano","Santo Stefano di Rogliano (CS) ","Autorità Rifiuti e Risorse Idriche della Calabria",1806,1806,"Cosenza","CS","078134","Santo Stefano di Rogliano"]
["Calabria","San Vincenzo La Costa","San Vincenzo La Costa (CS) ","Autorità Rifiuti e Risorse Idriche della Calabria",1806,1806,"Cosenza","CS","078135","San Vincenzo La Costa"]
["Calabria","Saracena","Saracena (CS) ","Autorità Rifiuti e Risorse Idriche della Calabria",1806,1806,"Cosenza","CS","078136","Saracena"]
["Calabria","Scala Coeli","Scala Coeli (CS) ","Autorità Rifiuti e Risorse Idriche della Calabria",1806,1806,"Cosenza","CS","078137","Scala Coeli"]
["Calabria","Scalea","Scalea (CS) ","Autorità Rifiuti e Risorse Idriche della Calabria",1806,1806,"Cosenza","CS","078138","Scalea"]
["Calabria","Scigliano","Scigliano (CS) ","Autorità Rifiuti e Risorse Idriche della Calabria",1806,1806,"Cosenza","CS","078139","Scigliano"]
["Calabria","Serra d'Aiello","Serra d'Aiello (CS) ","Autorità Rifiuti e Risorse Idriche della Calabria",1806,1806,"Cosenza","CS","078140","Serra d'Aiello"]
["Calabria","Spezzano Albanese","Spezzano Albanese (CS) ","Autorità Rifiuti e Risorse Idriche della Calabria",1806,1806,"Cosenza","CS","078142","Spezzano Albanese"]
["Calabria","Spezzano della Sila","Spezzano della Sila (CS) ","Autorità Rifiuti e Risorse Idriche della Calabria",1806,1806,"Cosenza","CS","078143","Spezzano della Sila"]
["Calabria","Tarsia","Tarsia (CS) ","Autorità Rifiuti e Risorse Idriche della Calabria",1806,1806,"Cosenza","CS","078145","Tarsia"]
["Calabria","Terranova da Sibari","Terranova da Sibari (CS) ","Autorità Rifiuti e Risorse Idriche della Calabria",1806,1806,"Cosenza","CS","078146","Terranova da Sibari"]
["Calabria","Terravecchia","Terravecchia (CS) ","Autorità Rifiuti e Risorse Idriche della Calabria",1806,1806,"Cosenza","CS","078147","Terravecchia"]
["Calabria","Torano Castello","Torano Castello (CS) ","Autorità Rifiuti e Risorse Idriche della Calabria",1806,1806,"Cosenza","CS","078148","Torano Castello"]
["Calabria","Tortora","Tortora (CS) ","Autorità Rifiuti e Risorse Idriche della Calabria",1806,1806,"Cosenza","CS","078149","Tortora"]
["Calabria","Trebisacce","Trebisacce (CS) ","Autorità Rifiuti e Risorse Idriche della Calabria",1806,1806,"Cosenza","CS","078150","Trebisacce"]
["Calabria","Vaccarizzo Albanese","Vaccarizzo Albanese (CS) ","Autorità Rifiuti e Risorse Idriche della Calabria",1806,1806,"Cosenza","CS","078152","Vaccarizzo Albanese"]
["Calabria","Verbicaro","Verbicaro (CS) ","Autorità Rifiuti e Risorse Idriche della Calabria",1806,1806,"Cosenza","CS","078153","Verbicaro"]
["Calabria","Villapiana","Villapiana (CS) ","Autorità Rifiuti e Risorse Idriche della Calabria",1806,1806,"Cosenza","CS","078154","Villapiana"]
["Calabria","Zumpano","Zumpano (CS) ","Autorità Rifiuti e Risorse Idriche della Calabria",1806,1806,"Cosenza","CS","078155","Zumpano"]
["Calabria","Casali del Manco","Casali del Manco (CS) ","Autorità Rifiuti e Risorse Idriche della Calabria",1806,1806,"Cosenza","CS","078156","Casali del Manco"]
["Calabria","Corigliano-Rossano","Corigliano-Rossano (CS) ","Autorità Rifiuti e Risorse Idriche della Calabria",1806,1806,"Cosenza","CS","078157","Corigliano-Rossano"]
["Calabria","Albi","Albi (CZ) ","Autorità Rifiuti e Risorse Idriche della Calabria",1806,1806,"Catanzaro","CZ","079002","Albi"]
["Calabria","Amaroni","Amaroni (CZ) ","Autorità Rifiuti e Risorse Idriche della Calabria",1806,1806,"Catanzaro","CZ","079003","Amaroni"]
["Calabria","Amato","Amato (CZ) ","Autorità Rifiuti e Risorse Idriche della Calabria",1806,1806,"Catanzaro","CZ","079004","Amato"]
["Calabria","Andali","Andali (CZ) ","Autorità Rifiuti e Risorse Idriche della Calabria",1806,1806,"Catanzaro","CZ","079005","Andali"]
["Calabria","Argusto","Argusto (CZ) ","Autorità Rifiuti e Risorse Idriche della Calabria",1806,1806,"Catanzaro","CZ","079007","Argusto"]
["Calabria","Badolato","Badolato (CZ) ","Autorità Rifiuti e Risorse Idriche della Calabria",1806,1806,"Catanzaro","CZ","079008","Badolato"]
["Calabria","Belcastro","Belcastro (CZ) ","Autorità Rifiuti e Risorse Idriche della Calabria",1806,1806,"Catanzaro","CZ","079009","Belcastro"]
["Calabria","Borgia","Borgia (CZ) ","Autorità Rifiuti e Risorse Idriche della Calabria",1806,1806,"Catanzaro","CZ","079011","Borgia"]
["Calabria","Botricello","Botricello (CZ) ","Autorità Rifiuti e Risorse Idriche della Calabria",1806,1806,"Catanzaro","CZ","079012","Botricello"]
["Calabria","Caraffa di Catanzaro","Caraffa di Catanzaro (CZ) ","Autorità Rifiuti e Risorse Idriche della Calabria",1806,1806,"Catanzaro","CZ","079017","Caraffa di Catanzaro"]
["Calabria","Cardinale","Cardinale (CZ) ","Autorità Rifiuti e Risorse Idriche della Calabria",1806,1806,"Catanzaro","CZ","079018","Cardinale"]
["Calabria","Carlopoli","Carlopoli (CZ) ","Autorità Rifiuti e Risorse Idriche della Calabria",1806,1806,"Catanzaro","CZ","079020","Carlopoli"]
["Calabria","Catanzaro","Catanzaro (CZ) ","Autorità Rifiuti e Risorse Idriche della Calabria",1806,1806,"Catanzaro","CZ","079023","Catanzaro"]
["Calabria","Cenadi","Cenadi (CZ) ","Autorità Rifiuti e Risorse Idriche della Calabria",1806,1806,"Catanzaro","CZ","079024","Cenadi"]
["Calabria","Centrache","Centrache (CZ) ","Autorità Rifiuti e Risorse Idriche della Calabria",1806,1806,"Catanzaro","CZ","079025","Centrache"]
["Calabria","Cerva","Cerva (CZ) ","Autorità Rifiuti e Risorse Idriche della Calabria",1806,1806,"Catanzaro","CZ","079027","Cerva"]
["Calabria","Chiaravalle Centrale","Chiaravalle Centrale (CZ) ","Autorità Rifiuti e Risorse Idriche della Calabria",1806,1806,"Catanzaro","CZ","079029","Chiaravalle Centrale"]
["Calabria","Cicala","Cicala (CZ) ","Autorità Rifiuti e Risorse Idriche della Calabria",1806,1806,"Catanzaro","CZ","079030","Cicala"]
["Calabria","Conflenti","Conflenti (CZ) ","Autorità Rifiuti e Risorse Idriche della Calabria",1806,1806,"Catanzaro","CZ","079033","Conflenti"]
["Calabria","Cortale","Cortale (CZ) ","Autorità Rifiuti e Risorse Idriche della Calabria",1806,1806,"Catanzaro","CZ","079034","Cortale"]
["Calabria","Cropani","Cropani (CZ) ","Autorità Rifiuti e Risorse Idriche della Calabria",1806,1806,"Catanzaro","CZ","079036","Cropani"]
["Calabria","Curinga","Curinga (CZ) ","Autorità Rifiuti e Risorse Idriche della Calabria",1806,1806,"Catanzaro","CZ","079039","Curinga"]
["Calabria","Davoli","Davoli (CZ) ","Autorità Rifiuti e Risorse Idriche della Calabria",1806,1806,"Catanzaro","CZ","079042","Davoli"]
["Calabria","Decollatura","Decollatura (CZ) ","Autorità Rifiuti e Risorse Idriche della Calabria",1806,1806,"Catanzaro","CZ","079043","Decollatura"]
["Calabria","Falerna","Falerna (CZ) ","Autorità Rifiuti e Risorse Idriche della Calabria",1806,1806,"Catanzaro","CZ","079047","Falerna"]
["Calabria","Feroleto Antico","Feroleto Antico (CZ) ","Autorità Rifiuti e Risorse Idriche della Calabria",1806,1806,"Catanzaro","CZ","079048","Feroleto Antico"]
["Calabria","Fossato Serralta","Fossato Serralta (CZ) ","Autorità Rifiuti e Risorse Idriche della Calabria",1806,1806,"Catanzaro","CZ","079052","Fossato Serralta"]
["Calabria","Gagliato","Gagliato (CZ) ","Autorità Rifiuti e Risorse Idriche della Calabria",1806,1806,"Catanzaro","CZ","079055","Gagliato"]
["Calabria","Gasperina","Gasperina (CZ) ","Autorità Rifiuti e Risorse Idriche della Calabria",1806,1806,"Catanzaro","CZ","079056","Gasperina"]
["Calabria","Gimigliano","Gimigliano (CZ) ","Autorità Rifiuti e Risorse Idriche della Calabria",1806,1806,"Catanzaro","CZ","079058","Gimigliano"]
["Calabria","Girifalco","Girifalco (CZ) ","Autorità Rifiuti e Risorse Idriche della Calabria",1806,1806,"Catanzaro","CZ","079059","Girifalco"]
["Calabria","Gizzeria","Gizzeria (CZ) ","Autorità Rifiuti e Risorse Idriche della Calabria",1806,1806,"Catanzaro","CZ","079060","Gizzeria"]
["Calabria","Guardavalle","Guardavalle (CZ) ","Autorità Rifiuti e Risorse Idriche della Calabria",1806,1806,"Catanzaro","CZ","079061","Guardavalle"]
["Calabria","Isca sullo Ionio","Isca sullo Ionio (CZ) ","Autorità Rifiuti e Risorse Idriche della Calabria",1806,1806,"Catanzaro","CZ","079063","Isca sullo Ionio"]
["Calabria","Jacurso","Jacurso (CZ) ","Autorità Rifiuti e Risorse Idriche della Calabria",1806,1806,"Catanzaro","CZ","079065","Jacurso"]
["Calabria","Magisano","Magisano (CZ) ","Autorità Rifiuti e Risorse Idriche della Calabria",1806,1806,"Catanzaro","CZ","079068","Magisano"]
["Calabria","Maida","Maida (CZ) ","Autorità Rifiuti e Risorse Idriche della Calabria",1806,1806,"Catanzaro","CZ","079069","Maida"]
["Calabria","Marcedusa","Marcedusa (CZ) ","Autorità Rifiuti e Risorse Idriche della Calabria",1806,1806,"Catanzaro","CZ","079071","Marcedusa"]
["Calabria","Marcellinara","Marcellinara (CZ) ","Autorità Rifiuti e Risorse Idriche della Calabria",1806,1806,"Catanzaro","CZ","079072","Marcellinara"]
["Calabria","Martirano","Martirano (CZ) ","Autorità Rifiuti e Risorse Idriche della Calabria",1806,1806,"Catanzaro","CZ","079073","Martirano"]
["Calabria","Martirano Lombardo","Martirano Lombardo (CZ) ","Autorità Rifiuti e Risorse Idriche della Calabria",1806,1806,"Catanzaro","CZ","079074","Martirano Lombardo"]
["Calabria","Miglierina","Miglierina (CZ) ","Autorità Rifiuti e Risorse Idriche della Calabria",1806,1806,"Catanzaro","CZ","079077","Miglierina"]
["Calabria","Montauro","Montauro (CZ) ","Autorità Rifiuti e Risorse Idriche della Calabria",1806,1806,"Catanzaro","CZ","079080","Montauro"]
["Calabria","Montepaone","Montepaone (CZ) ","Autorità Rifiuti e Risorse Idriche della Calabria",1806,1806,"Catanzaro","CZ","079081","Montepaone"]
["Calabria","Motta Santa Lucia","Motta Santa Lucia (CZ) ","Autorità Rifiuti e Risorse Idriche della Calabria",1806,1806,"Catanzaro","CZ","079083","Motta Santa Lucia"]
["Calabria","Nocera Terinese","Nocera Terinese (CZ) ","Autorità Rifiuti e Risorse Idriche della Calabria",1806,1806,"Catanzaro","CZ","079087","Nocera Terinese"]
["Calabria","Olivadi","Olivadi (CZ) ","Autorità Rifiuti e Risorse Idriche della Calabria",1806,1806,"Catanzaro","CZ","079088","Olivadi"]
["Calabria","Palermiti","Palermiti (CZ) ","Autorità Rifiuti e Risorse Idriche della Calabria",1806,1806,"Catanzaro","CZ","079089","Palermiti"]
["Calabria","Pentone","Pentone (CZ) ","Autorità Rifiuti e Risorse Idriche della Calabria",1806,1806,"Catanzaro","CZ","079092","Pentone"]
["Calabria","Petrizzi","Petrizzi (CZ) ","Autorità Rifiuti e Risorse Idriche della Calabria",1806,1806,"Catanzaro","CZ","079094","Petrizzi"]
["Calabria","Petronà","Petronà (CZ) ","Autorità Rifiuti e Risorse Idriche della Calabria",1806,1806,"Catanzaro","CZ","079095","Petronà"]
["Calabria","Pianopoli","Pianopoli (CZ) ","Autorità Rifiuti e Risorse Idriche della Calabria",1806,1806,"Catanzaro","CZ","079096","Pianopoli"]
["Calabria","Platania","Platania (CZ) ","Autorità Rifiuti e Risorse Idriche della Calabria",1806,1806,"Catanzaro","CZ","079099","Platania"]
["Calabria","San Floro","San Floro (CZ) ","Autorità Rifiuti e Risorse Idriche della Calabria",1806,1806,"Catanzaro","CZ","079108","San Floro"]
["Calabria","San Mango d'Aquino","San Mango d'Aquino (CZ) ","Autorità Rifiuti e Risorse Idriche della Calabria",1806,1806,"Catanzaro","CZ","079110","San Mango d'Aquino"]
["Calabria","San Pietro a Maida","San Pietro a Maida (CZ) ","Autorità Rifiuti e Risorse Idriche della Calabria",1806,1806,"Catanzaro","CZ","079114","San Pietro a Maida"]
["Calabria","San Pietro Apostolo","San Pietro Apostolo (CZ) ","Autorità Rifiuti e Risorse Idriche della Calabria",1806,1806,"Catanzaro","CZ","079115","San Pietro Apostolo"]
["Calabria","San Sostene","San Sostene (CZ) ","Autorità Rifiuti e Risorse Idriche della Calabria",1806,1806,"Catanzaro","CZ","079116","San Sostene"]
["Calabria","Santa Caterina dello Ionio","Santa Caterina dello Ionio (CZ) ","Autorità Rifiuti e Risorse Idriche della Calabria",1806,1806,"Catanzaro","CZ","079117","Santa Caterina dello Ionio"]
["Calabria","Sant'Andrea Apostolo dello Ionio","Sant'Andrea Apostolo dello Ionio (CZ) ","Autorità Rifiuti e Risorse Idriche della Calabria",1806,1806,"Catanzaro","CZ","079118","Sant'Andrea Apostolo dello Ionio"]
["Calabria","San Vito sullo Ionio","San Vito sullo Ionio (CZ) ","Autorità Rifiuti e Risorse Idriche della Calabria",1806,1806,"Catanzaro","CZ","079122","San Vito sullo Ionio"]
["Calabria","Satriano","Satriano (CZ) ","Autorità Rifiuti e Risorse Idriche della Calabria",1806,1806,"Catanzaro","CZ","079123","Satriano"]
["Calabria","Sellia","Sellia (CZ) ","Autorità Rifiuti e Risorse Idriche della Calabria",1806,1806,"Catanzaro","CZ","079126","Sellia"]
["Calabria","Sellia Marina","Sellia Marina (CZ) ","Autorità Rifiuti e Risorse Idriche della Calabria",1806,1806,"Catanzaro","CZ","079127","Sellia Marina"]
["Calabria","Serrastretta","Serrastretta (CZ) ","Autorità Rifiuti e Risorse Idriche della Calabria",1806,1806,"Catanzaro","CZ","079129","Serrastretta"]
["Calabria","Sersale","Sersale (CZ) ","Autorità Rifiuti e Risorse Idriche della Calabria",1806,1806,"Catanzaro","CZ","079130","Sersale"]
["Calabria","Settingiano","Settingiano (CZ) ","Autorità Rifiuti e Risorse Idriche della Calabria",1806,1806,"Catanzaro","CZ","079131","Settingiano"]
["Calabria","Simeri Crichi","Simeri Crichi (CZ) ","Autorità Rifiuti e Risorse Idriche della Calabria",1806,1806,"Catanzaro","CZ","079133","Simeri Crichi"]
["Calabria","Sorbo San Basile","Sorbo San Basile (CZ) ","Autorità Rifiuti e Risorse Idriche della Calabria",1806,1806,"Catanzaro","CZ","079134","Sorbo San Basile"]
["Calabria","Soverato","Soverato (CZ) ","Autorità Rifiuti e Risorse Idriche della Calabria",1806,1806,"Catanzaro","CZ","079137","Soverato"]
["Calabria","Soveria Mannelli","Soveria Mannelli (CZ) ","Autorità Rifiuti e Risorse Idriche della Calabria",1806,1806,"Catanzaro","CZ","079138","Soveria Mannelli"]
["Calabria","Soveria Simeri","Soveria Simeri (CZ) ","Autorità Rifiuti e Risorse Idriche della Calabria",1806,1806,"Catanzaro","CZ","079139","Soveria Simeri"]
["Calabria","Squillace","Squillace (CZ) ","Autorità Rifiuti e Risorse Idriche della Calabria",1806,1806,"Catanzaro","CZ","079142","Squillace"]
["Calabria","Stalettì","Stalettì (CZ) ","Autorità Rifiuti e Risorse Idriche della Calabria",1806,1806,"Catanzaro","CZ","079143","Stalettì"]
["Calabria","Taverna","Taverna (CZ) ","Autorità Rifiuti e Risorse Idriche della Calabria",1806,1806,"Catanzaro","CZ","079146","Taverna"]
["Calabria","Tiriolo","Tiriolo (CZ) ","Autorità Rifiuti e Risorse Idriche della Calabria",1806,1806,"Catanzaro","CZ","079147","Tiriolo"]
["Calabria","Torre di Ruggiero","Torre di Ruggiero (CZ) ","Autorità Rifiuti e Risorse Idriche della Calabria",1806,1806,"Catanzaro","CZ","079148","Torre di Ruggiero"]
["Calabria","Vallefiorita","Vallefiorita (CZ) ","Autorità Rifiuti e Risorse Idriche della Calabria",1806,1806,"Catanzaro","CZ","079151","Vallefiorita"]
["Calabria","Zagarise","Zagarise (CZ) ","Autorità Rifiuti e Risorse Idriche della Calabria",1806,1806,"Catanzaro","CZ","079157","Zagarise"]
["Calabria","Lamezia Terme","Lamezia Terme (CZ) ","Autorità Rifiuti e Risorse Idriche della Calabria",1806,1806,"Catanzaro","CZ","079160","Lamezia Terme"]
["Calabria","Africo","Africo (RC) ","Autorità Rifiuti e Risorse Idriche della Calabria",1806,1806,"Reggio Calabria","RC","080001","Africo"]
["Calabria","Agnana Calabra","Agnana Calabra (RC) ","Autorità Rifiuti e Risorse Idriche della Calabria",1806,1806,"Reggio Calabria","RC","080002","Agnana Calabra"]
["Calabria","Anoia","Anoia (RC) ","Autorità Rifiuti e Risorse Idriche della Calabria",1806,1806,"Reggio Calabria","RC","080003","Anoia"]
["Calabria","Antonimina","Antonimina (RC) ","Autorità Rifiuti e Risorse Idriche della Calabria",1806,1806,"Reggio Calabria","RC","080004","Antonimina"]
["Calabria","Ardore","Ardore (RC) ","Autorità Rifiuti e Risorse Idriche della Calabria",1806,1806,"Reggio Calabria","RC","080005","Ardore"]
["Calabria","Bagaladi","Bagaladi (RC) ","Autorità Rifiuti e Risorse Idriche della Calabria",1806,1806,"Reggio Calabria","RC","080006","Bagaladi"]
["Calabria","Bagnara Calabra","Bagnara Calabra (RC) ","Autorità Rifiuti e Risorse Idriche della Calabria",1806,1806,"Reggio Calabria","RC","080007","Bagnara Calabra"]
["Calabria","Benestare","Benestare (RC) ","Autorità Rifiuti e Risorse Idriche della Calabria",1806,1806,"Reggio Calabria","RC","080008","Benestare"]
["Calabria","Bianco","Bianco (RC) ","Autorità Rifiuti e Risorse Idriche della Calabria",1806,1806,"Reggio Calabria","RC","080009","Bianco"]
["Calabria","Bivongi","Bivongi (RC) ","Autorità Rifiuti e Risorse Idriche della Calabria",1806,1806,"Reggio Calabria","RC","080010","Bivongi"]
["Calabria","Bova","Bova (RC) ","Autorità Rifiuti e Risorse Idriche della Calabria",1806,1806,"Reggio Calabria","RC","080011","Bova"]
["Calabria","Bovalino","Bovalino (RC) ","Autorità Rifiuti e Risorse Idriche della Calabria",1806,1806,"Reggio Calabria","RC","080012","Bovalino"]
["Calabria","Bova Marina","Bova Marina (RC) ","Autorità Rifiuti e Risorse Idriche della Calabria",1806,1806,"Reggio Calabria","RC","080013","Bova Marina"]
["Calabria","Brancaleone","Brancaleone (RC) ","Autorità Rifiuti e Risorse Idriche della Calabria",1806,1806,"Reggio Calabria","RC","080014","Brancaleone"]
["Calabria","Bruzzano Zeffirio","Bruzzano Zeffirio (RC) ","Autorità Rifiuti e Risorse Idriche della Calabria",1806,1806,"Reggio Calabria","RC","080015","Bruzzano Zeffirio"]
["Calabria","Calanna","Calanna (RC) ","Autorità Rifiuti e Risorse Idriche della Calabria",1806,1806,"Reggio Calabria","RC","080016","Calanna"]
["Calabria","Camini","Camini (RC) ","Autorità Rifiuti e Risorse Idriche della Calabria",1806,1806,"Reggio Calabria","RC","080017","Camini"]
["Calabria","Campo Calabro","Campo Calabro (RC) ","Autorità Rifiuti e Risorse Idriche della Calabria",1806,1806,"Reggio Calabria","RC","080018","Campo Calabro"]
["Calabria","Candidoni","Candidoni (RC) ","Autorità Rifiuti e Risorse Idriche della Calabria",1806,1806,"Reggio Calabria","RC","080019","Candidoni"]
["Calabria","Canolo","Canolo (RC) ","Autorità Rifiuti e Risorse Idriche della Calabria",1806,1806,"Reggio Calabria","RC","080020","Canolo"]
["Calabria","Caraffa del Bianco","Caraffa del Bianco (RC) ","Autorità Rifiuti e Risorse Idriche della Calabria",1806,1806,"Reggio Calabria","RC","080021","Caraffa del Bianco"]
["Calabria","Cardeto","Cardeto (RC) ","Autorità Rifiuti e Risorse Idriche della Calabria",1806,1806,"Reggio Calabria","RC","080022","Cardeto"]
["Calabria","Careri","Careri (RC) ","Autorità Rifiuti e Risorse Idriche della Calabria",1806,1806,"Reggio Calabria","RC","080023","Careri"]
["Calabria","Casignana","Casignana (RC) ","Autorità Rifiuti e Risorse Idriche della Calabria",1806,1806,"Reggio Calabria","RC","080024","Casignana"]
["Calabria","Caulonia","Caulonia (RC) ","Autorità Rifiuti e Risorse Idriche della Calabria",1806,1806,"Reggio Calabria","RC","080025","Caulonia"]
["Calabria","Ciminà","Ciminà (RC) ","Autorità Rifiuti e Risorse Idriche della Calabria",1806,1806,"Reggio Calabria","RC","080026","Ciminà"]
["Calabria","Cinquefrondi","Cinquefrondi (RC) ","Autorità Rifiuti e Risorse Idriche della Calabria",1806,1806,"Reggio Calabria","RC","080027","Cinquefrondi"]
["Calabria","Cittanova","Cittanova (RC) ","Autorità Rifiuti e Risorse Idriche della Calabria",1806,1806,"Reggio Calabria","RC","080028","Cittanova"]
["Calabria","Condofuri","Condofuri (RC) ","Autorità Rifiuti e Risorse Idriche della Calabria",1806,1806,"Reggio Calabria","RC","080029","Condofuri"]
["Calabria","Cosoleto","Cosoleto (RC) ","Autorità Rifiuti e Risorse Idriche della Calabria",1806,1806,"Reggio Calabria","RC","080030","Cosoleto"]
["Calabria","Delianuova","Delianuova (RC) ","Autorità Rifiuti e Risorse Idriche della Calabria",1806,1806,"Reggio Calabria","RC","080031","Delianuova"]
["Calabria","Feroleto della Chiesa","Feroleto della Chiesa (RC) ","Autorità Rifiuti e Risorse Idriche della Calabria",1806,1806,"Reggio Calabria","RC","080032","Feroleto della Chiesa"]
["Calabria","Ferruzzano","Ferruzzano (RC) ","Autorità Rifiuti e Risorse Idriche della Calabria",1806,1806,"Reggio Calabria","RC","080033","Ferruzzano"]
["Calabria","Fiumara","Fiumara (RC) ","Autorità Rifiuti e Risorse Idriche della Calabria",1806,1806,"Reggio Calabria","RC","080034","Fiumara"]
["Calabria","Galatro","Galatro (RC) ","Autorità Rifiuti e Risorse Idriche della Calabria",1806,1806,"Reggio Calabria","RC","080035","Galatro"]
["Calabria","Gerace","Gerace (RC) ","Autorità Rifiuti e Risorse Idriche della Calabria",1806,1806,"Reggio Calabria","RC","080036","Gerace"]
["Calabria","Giffone","Giffone (RC) ","Autorità Rifiuti e Risorse Idriche della Calabria",1806,1806,"Reggio Calabria","RC","080037","Giffone"]
["Calabria","Gioia Tauro","Gioia Tauro (RC) ","Autorità Rifiuti e Risorse Idriche della Calabria",1806,1806,"Reggio Calabria","RC","080038","Gioia Tauro"]
["Calabria","Gioiosa Ionica","Gioiosa Ionica (RC) ","Autorità Rifiuti e Risorse Idriche della Calabria",1806,1806,"Reggio Calabria","RC","080039","Gioiosa Ionica"]
["Calabria","Grotteria","Grotteria (RC) ","Autorità Rifiuti e Risorse Idriche della Calabria",1806,1806,"Reggio Calabria","RC","080040","Grotteria"]
["Calabria","Laganadi","Laganadi (RC) ","Autorità Rifiuti e Risorse Idriche della Calabria",1806,1806,"Reggio Calabria","RC","080041","Laganadi"]
["Calabria","Laureana di Borrello","Laureana di Borrello (RC) ","Autorità Rifiuti e Risorse Idriche della Calabria",1806,1806,"Reggio Calabria","RC","080042","Laureana di Borrello"]
["Calabria","Locri","Locri (RC) ","Autorità Rifiuti e Risorse Idriche della Calabria",1806,1806,"Reggio Calabria","RC","080043","Locri"]
["Calabria","Mammola","Mammola (RC) ","Autorità Rifiuti e Risorse Idriche della Calabria",1806,1806,"Reggio Calabria","RC","080044","Mammola"]
["Calabria","Marina di Gioiosa Ionica","Marina di Gioiosa Ionica (RC) ","Autorità Rifiuti e Risorse Idriche della Calabria",1806,1806,"Reggio Calabria","RC","080045","Marina di Gioiosa Ionica"]
["Calabria","Maropati","Maropati (RC) ","Autorità Rifiuti e Risorse Idriche della Calabria",1806,1806,"Reggio Calabria","RC","080046","Maropati"]
["Calabria","Martone","Martone (RC) ","Autorità Rifiuti e Risorse Idriche della Calabria",1806,1806,"Reggio Calabria","RC","080047","Martone"]
["Calabria","Melicuccà","Melicuccà (RC) ","Autorità Rifiuti e Risorse Idriche della Calabria",1806,1806,"Reggio Calabria","RC","080048","Melicuccà"]
["Calabria","Melicucco","Melicucco (RC) ","Autorità Rifiuti e Risorse Idriche della Calabria",1806,1806,"Reggio Calabria","RC","080049","Melicucco"]
["Calabria","Melito di Porto Salvo","Melito di Porto Salvo (RC) ","Autorità Rifiuti e Risorse Idriche della Calabria",1806,1806,"Reggio Calabria","RC","080050","Melito di Porto Salvo"]
["Calabria","Molochio","Molochio (RC) ","Autorità Rifiuti e Risorse Idriche della Calabria",1806,1806,"Reggio Calabria","RC","080051","Molochio"]
["Calabria","Monasterace","Monasterace (RC) ","Autorità Rifiuti e Risorse Idriche della Calabria",1806,1806,"Reggio Calabria","RC","080052","Monasterace"]
["Calabria","Montebello Jonico","Montebello Jonico (RC) ","Autorità Rifiuti e Risorse Idriche della Calabria",1806,1806,"Reggio Calabria","RC","080053","Montebello Jonico"]
["Calabria","Motta San Giovanni","Motta San Giovanni (RC) ","Autorità Rifiuti e Risorse Idriche della Calabria",1806,1806,"Reggio Calabria","RC","080054","Motta San Giovanni"]
["Calabria","Oppido Mamertina","Oppido Mamertina (RC) ","Autorità Rifiuti e Risorse Idriche della Calabria",1806,1806,"Reggio Calabria","RC","080055","Oppido Mamertina"]
["Calabria","Palizzi","Palizzi (RC) ","Autorità Rifiuti e Risorse Idriche della Calabria",1806,1806,"Reggio Calabria","RC","080056","Palizzi"]
["Calabria","Palmi","Palmi (RC) ","Autorità Rifiuti e Risorse Idriche della Calabria",1806,1806,"Reggio Calabria","RC","080057","Palmi"]
["Calabria","Pazzano","Pazzano (RC) ","Autorità Rifiuti e Risorse Idriche della Calabria",1806,1806,"Reggio Calabria","RC","080058","Pazzano"]
["Calabria","Placanica","Placanica (RC) ","Autorità Rifiuti e Risorse Idriche della Calabria",1806,1806,"Reggio Calabria","RC","080059","Placanica"]
["Calabria","Platì","Platì (RC) ","Autorità Rifiuti e Risorse Idriche della Calabria",1806,1806,"Reggio Calabria","RC","080060","Platì"]
["Calabria","Polistena","Polistena (RC) ","Autorità Rifiuti e Risorse Idriche della Calabria",1806,1806,"Reggio Calabria","RC","080061","Polistena"]
["Calabria","Portigliola","Portigliola (RC) ","Autorità Rifiuti e Risorse Idriche della Calabria",1806,1806,"Reggio Calabria","RC","080062","Portigliola"]
["Calabria","Reggio di Calabria","Reggio di Calabria (RC) ","Autorità Rifiuti e Risorse Idriche della Calabria",1806,1806,"Reggio Calabria","RC","080063","Reggio di Calabria"]
["Calabria","Riace","Riace (RC) ","Autorità Rifiuti e Risorse Idriche della Calabria",1806,1806,"Reggio Calabria","RC","080064","Riace"]
["Calabria","Rizziconi","Rizziconi (RC) ","Autorità Rifiuti e Risorse Idriche della Calabria",1806,1806,"Reggio Calabria","RC","080065","Rizziconi"]
["Calabria","Roccaforte del Greco","Roccaforte del Greco (RC) ","Autorità Rifiuti e Risorse Idriche della Calabria",1806,1806,"Reggio Calabria","RC","080066","Roccaforte del Greco"]
["Calabria","Roccella Ionica","Roccella Ionica (RC) ","Autorità Rifiuti e Risorse Idriche della Calabria",1806,1806,"Reggio Calabria","RC","080067","Roccella Ionica"]
["Calabria","Roghudi","Roghudi (RC) ","Autorità Rifiuti e Risorse Idriche della Calabria",1806,1806,"Reggio Calabria","RC","080068","Roghudi"]
["Calabria","Rosarno","Rosarno (RC) ","Autorità Rifiuti e Risorse Idriche della Calabria",1806,1806,"Reggio Calabria","RC","080069","Rosarno"]
["Calabria","Samo","Samo (RC) ","Autorità Rifiuti e Risorse Idriche della Calabria",1806,1806,"Reggio Calabria","RC","080070","Samo"]
["Calabria","San Giorgio Morgeto","San Giorgio Morgeto (RC) ","Autorità Rifiuti e Risorse Idriche della Calabria",1806,1806,"Reggio Calabria","RC","080071","San Giorgio Morgeto"]
["Calabria","San Giovanni di Gerace","San Giovanni di Gerace (RC) ","Autorità Rifiuti e Risorse Idriche della Calabria",1806,1806,"Reggio Calabria","RC","080072","San Giovanni di Gerace"]
["Calabria","San Lorenzo","San Lorenzo (RC) ","Autorità Rifiuti e Risorse Idriche della Calabria",1806,1806,"Reggio Calabria","RC","080073","San Lorenzo"]
["Calabria","San Luca","San Luca (RC) ","Autorità Rifiuti e Risorse Idriche della Calabria",1806,1806,"Reggio Calabria","RC","080074","San Luca"]
["Calabria","San Pietro di Caridà","San Pietro di Caridà (RC) ","Autorità Rifiuti e Risorse Idriche della Calabria",1806,1806,"Reggio Calabria","RC","080075","San Pietro di Caridà"]
["Calabria","San Procopio","San Procopio (RC) ","Autorità Rifiuti e Risorse Idriche della Calabria",1806,1806,"Reggio Calabria","RC","080076","San Procopio"]
["Calabria","San Roberto","San Roberto (RC) ","Autorità Rifiuti e Risorse Idriche della Calabria",1806,1806,"Reggio Calabria","RC","080077","San Roberto"]
["Calabria","Santa Cristina d'Aspromonte","Santa Cristina d'Aspromonte (RC) ","Autorità Rifiuti e Risorse Idriche della Calabria",1806,1806,"Reggio Calabria","RC","080078","Santa Cristina d'Aspromonte"]
["Calabria","Sant'Agata del Bianco","Sant'Agata del Bianco (RC) ","Autorità Rifiuti e Risorse Idriche della Calabria",1806,1806,"Reggio Calabria","RC","080079","Sant'Agata del Bianco"]
["Calabria","Sant'Alessio in Aspromonte","Sant'Alessio in Aspromonte (RC) ","Autorità Rifiuti e Risorse Idriche della Calabria",1806,1806,"Reggio Calabria","RC","080080","Sant'Alessio in Aspromonte"]
["Calabria","Sant'Eufemia d'Aspromonte","Sant'Eufemia d'Aspromonte (RC) ","Autorità Rifiuti e Risorse Idriche della Calabria",1806,1806,"Reggio Calabria","RC","080081","Sant'Eufemia d'Aspromonte"]
["Calabria","Sant'Ilario dello Ionio","Sant'Ilario dello Ionio (RC) ","Autorità Rifiuti e Risorse Idriche della Calabria",1806,1806,"Reggio Calabria","RC","080082","Sant'Ilario dello Ionio"]
["Calabria","Santo Stefano in Aspromonte","Santo Stefano in Aspromonte (RC) ","Autorità Rifiuti e Risorse Idriche della Calabria",1806,1806,"Reggio Calabria","RC","080083","Santo Stefano in Aspromonte"]
["Calabria","Scido","Scido (RC) ","Autorità Rifiuti e Risorse Idriche della Calabria",1806,1806,"Reggio Calabria","RC","080084","Scido"]
["Calabria","Scilla","Scilla (RC) ","Autorità Rifiuti e Risorse Idriche della Calabria",1806,1806,"Reggio Calabria","RC","080085","Scilla"]
["Calabria","Seminara","Seminara (RC) ","Autorità Rifiuti e Risorse Idriche della Calabria",1806,1806,"Reggio Calabria","RC","080086","Seminara"]
["Calabria","Serrata","Serrata (RC) ","Autorità Rifiuti e Risorse Idriche della Calabria",1806,1806,"Reggio Calabria","RC","080087","Serrata"]
["Calabria","Siderno","Siderno (RC) ","Autorità Rifiuti e Risorse Idriche della Calabria",1806,1806,"Reggio Calabria","RC","080088","Siderno"]
["Calabria","Sinopoli","Sinopoli (RC) ","Autorità Rifiuti e Risorse Idriche della Calabria",1806,1806,"Reggio Calabria","RC","080089","Sinopoli"]
["Calabria","Staiti","Staiti (RC) ","Autorità Rifiuti e Risorse Idriche della Calabria",1806,1806,"Reggio Calabria","RC","080090","Staiti"]
["Calabria","Stignano","Stignano (RC) ","Autorità Rifiuti e Risorse Idriche della Calabria",1806,1806,"Reggio Calabria","RC","080091","Stignano"]
["Calabria","Stilo","Stilo (RC) ","Autorità Rifiuti e Risorse Idriche della Calabria",1806,1806,"Reggio Calabria","RC","080092","Stilo"]
["Calabria","Taurianova","Taurianova (RC) ","Autorità Rifiuti e Risorse Idriche della Calabria",1806,1806,"Reggio Calabria","RC","080093","Taurianova"]
["Calabria","Terranova Sappo Minulio","Terranova Sappo Minulio (RC) ","Autorità Rifiuti e Risorse Idriche della Calabria",1806,1806,"Reggio Calabria","RC","080094","Terranova Sappo Minulio"]
["Calabria","Varapodio","Varapodio (RC) ","Autorità Rifiuti e Risorse Idriche della Calabria",1806,1806,"Reggio Calabria","RC","080095","Varapodio"]
["Calabria","Villa San Giovanni","Villa San Giovanni (RC) ","Autorità Rifiuti e Risorse Idriche della Calabria",1806,1806,"Reggio Calabria","RC","080096","Villa San Giovanni"]
["Calabria","San Ferdinando","San Ferdinando (RC) ","Autorità Rifiuti e Risorse Idriche della Calabria",1806,1806,"Reggio Calabria","RC","080097","San Ferdinando"]
["Sicilia","Alcamo","Alcamo (TP) ","Assemblea territoriale idrica di Trapani",1907,1907,"Trapani","TP","081001","Alcamo"]
["Sicilia","Buseto Palizzolo","Buseto Palizzolo (TP) ","Assemblea territoriale idrica di Trapani",1907,1907,"Trapani","TP","081002","Buseto Palizzolo"]
["Sicilia","Calatafimi-Segesta","Calatafimi-Segesta (TP) ","Assemblea territoriale idrica di Trapani",1907,1907,"Trapani","TP","081003","Calatafimi-Segesta"]
["Sicilia","Campobello di Mazara","Campobello di Mazara (TP) ","Assemblea territoriale idrica di Trapani",1907,1907,"Trapani","TP","081004","Campobello di Mazara"]
["Sicilia","Castellammare del Golfo","Castellammare del Golfo (TP) ","Assemblea territoriale idrica di Trapani",1907,1907,"Trapani","TP","081005","Castellammare del Golfo"]
["Sicilia","Castelvetrano","Castelvetrano (TP) ","Assemblea territoriale idrica di Trapani",1907,1907,"Trapani","TP","081006","Castelvetrano"]
["Sicilia","Custonaci","Custonaci (TP) ","Assemblea territoriale idrica di Trapani",1907,1907,"Trapani","TP","081007","Custonaci"]
["Sicilia","Erice","Erice (TP) ","Assemblea territoriale idrica di Trapani",1907,1907,"Trapani","TP","081008","Erice"]
["Sicilia","Favignana","Favignana (TP) ","Assemblea territoriale idrica di Trapani",1907,1907,"Trapani","TP","081009","Favignana"]
["Sicilia","Gibellina","Gibellina (TP) ","Assemblea territoriale idrica di Trapani",1907,1907,"Trapani","TP","081010","Gibellina"]
["Sicilia","Marsala","Marsala (TP) ","Assemblea territoriale idrica di Trapani",1907,1907,"Trapani","TP","081011","Marsala"]
["Sicilia","Mazara del Vallo","Mazara del Vallo (TP) ","Assemblea territoriale idrica di Trapani",1907,1907,"Trapani","TP","081012","Mazara del Vallo"]
["Sicilia","Paceco","Paceco (TP) ","Assemblea territoriale idrica di Trapani",1907,1907,"Trapani","TP","081013","Paceco"]
["Sicilia","Pantelleria","Pantelleria (TP) ","Assemblea territoriale idrica di Trapani",1907,1907,"Trapani","TP","081014","Pantelleria"]
["Sicilia","Partanna","Partanna (TP) ","Assemblea territoriale idrica di Trapani",1907,1907,"Trapani","TP","081015","Partanna"]
["Sicilia","Poggioreale","Poggioreale (TP) ","Assemblea territoriale idrica di Trapani",1907,1907,"Trapani","TP","081016","Poggioreale"]
["Sicilia","Salaparuta","Salaparuta (TP) ","Assemblea territoriale idrica di Trapani",1907,1907,"Trapani","TP","081017","Salaparuta"]
["Sicilia","Salemi","Salemi (TP) ","Assemblea territoriale idrica di Trapani",1907,1907,"Trapani","TP","081018","Salemi"]
["Sicilia","Santa Ninfa","Santa Ninfa (TP) ","Assemblea territoriale idrica di Trapani",1907,1907,"Trapani","TP","081019","Santa Ninfa"]
["Sicilia","San Vito Lo Capo","San Vito Lo Capo (TP) ","Assemblea territoriale idrica di Trapani",1907,1907,"Trapani","TP","081020","San Vito Lo Capo"]
["Sicilia","Trapani","Trapani (TP) ","Assemblea territoriale idrica di Trapani",1907,1907,"Trapani","TP","081021","Trapani"]
["Sicilia","Valderice","Valderice (TP) ","Assemblea territoriale idrica di Trapani",1907,1907,"Trapani","TP","081022","Valderice"]
["Sicilia","Vita","Vita (TP) ","Assemblea territoriale idrica di Trapani",1907,1907,"Trapani","TP","081023","Vita"]
["Sicilia","Petrosino","Petrosino (TP) ","Assemblea territoriale idrica di Trapani",1907,1907,"Trapani","TP","081024","Petrosino"]
["Sicilia","Misiliscemi","Misiliscemi (TP) ","Assemblea territoriale idrica di Trapani",1907,1907,"Trapani","TP","081025","Misiliscemi"]
["Sicilia","Alia","Alia (PA) ","ASSEMBLEA TERRITORIALE IDRICA PALERMO",1901,1901,"Palermo","PA","082001","Alia"]
["Sicilia","Alimena","Alimena (PA) ","ASSEMBLEA TERRITORIALE IDRICA PALERMO",1901,1901,"Palermo","PA","082002","Alimena"]
["Sicilia","Aliminusa","Aliminusa (PA) ","ASSEMBLEA TERRITORIALE IDRICA PALERMO",1901,1901,"Palermo","PA","082003","Aliminusa"]
["Sicilia","Altavilla Milicia","Altavilla Milicia (PA) ","ASSEMBLEA TERRITORIALE IDRICA PALERMO",1901,1901,"Palermo","PA","082004","Altavilla Milicia"]
["Sicilia","Altofonte","Altofonte (PA) ","ASSEMBLEA TERRITORIALE IDRICA PALERMO",1901,1901,"Palermo","PA","082005","Altofonte"]
["Sicilia","Bagheria","Bagheria (PA) ","ASSEMBLEA TERRITORIALE IDRICA PALERMO",1901,1901,"Palermo","PA","082006","Bagheria"]
["Sicilia","Balestrate","Balestrate (PA) ","ASSEMBLEA TERRITORIALE IDRICA PALERMO",1901,1901,"Palermo","PA","082007","Balestrate"]
["Sicilia","Baucina","Baucina (PA) ","ASSEMBLEA TERRITORIALE IDRICA PALERMO",1901,1901,"Palermo","PA","082008","Baucina"]
["Sicilia","Belmonte Mezzagno","Belmonte Mezzagno (PA) ","ASSEMBLEA TERRITORIALE IDRICA PALERMO",1901,1901,"Palermo","PA","082009","Belmonte Mezzagno"]
["Sicilia","Bisacquino","Bisacquino (PA) ","ASSEMBLEA TERRITORIALE IDRICA PALERMO",1901,1901,"Palermo","PA","082010","Bisacquino"]
["Sicilia","Bolognetta","Bolognetta (PA) ","ASSEMBLEA TERRITORIALE IDRICA PALERMO",1901,1901,"Palermo","PA","082011","Bolognetta"]
["Sicilia","Bompietro","Bompietro (PA) ","ASSEMBLEA TERRITORIALE IDRICA PALERMO",1901,1901,"Palermo","PA","082012","Bompietro"]
["Sicilia","Borgetto","Borgetto (PA) ","ASSEMBLEA TERRITORIALE IDRICA PALERMO",1901,1901,"Palermo","PA","082013","Borgetto"]
["Sicilia","Caccamo","Caccamo (PA) ","ASSEMBLEA TERRITORIALE IDRICA PALERMO",1901,1901,"Palermo","PA","082014","Caccamo"]
["Sicilia","Caltavuturo","Caltavuturo (PA) ","ASSEMBLEA TERRITORIALE IDRICA PALERMO",1901,1901,"Palermo","PA","082015","Caltavuturo"]
["Sicilia","Campofelice di Fitalia","Campofelice di Fitalia (PA) ","ASSEMBLEA TERRITORIALE IDRICA PALERMO",1901,1901,"Palermo","PA","082016","Campofelice di Fitalia"]
["Sicilia","Campofelice di Roccella","Campofelice di Roccella (PA) ","ASSEMBLEA TERRITORIALE IDRICA PALERMO",1901,1901,"Palermo","PA","082017","Campofelice di Roccella"]
["Sicilia","Campofiorito","Campofiorito (PA) ","ASSEMBLEA TERRITORIALE IDRICA PALERMO",1901,1901,"Palermo","PA","082018","Campofiorito"]
["Sicilia","Camporeale","Camporeale (PA) ","ASSEMBLEA TERRITORIALE IDRICA PALERMO",1901,1901,"Palermo","PA","082019","Camporeale"]
["Sicilia","Capaci","Capaci (PA) ","ASSEMBLEA TERRITORIALE IDRICA PALERMO",1901,1901,"Palermo","PA","082020","Capaci"]
["Sicilia","Carini","Carini (PA) ","ASSEMBLEA TERRITORIALE IDRICA PALERMO",1901,1901,"Palermo","PA","082021","Carini"]
["Sicilia","Castelbuono","Castelbuono (PA) ","ASSEMBLEA TERRITORIALE IDRICA PALERMO",1901,1901,"Palermo","PA","082022","Castelbuono"]
["Sicilia","Casteldaccia","Casteldaccia (PA) ","ASSEMBLEA TERRITORIALE IDRICA PALERMO",1901,1901,"Palermo","PA","082023","Casteldaccia"]
["Sicilia","Castellana Sicula","Castellana Sicula (PA) ","ASSEMBLEA TERRITORIALE IDRICA PALERMO",1901,1901,"Palermo","PA","082024","Castellana Sicula"]
["Sicilia","Castronovo di Sicilia","Castronovo di Sicilia (PA) ","ASSEMBLEA TERRITORIALE IDRICA PALERMO",1901,1901,"Palermo","PA","082025","Castronovo di Sicilia"]
["Sicilia","Cefalà Diana","Cefalà Diana (PA) ","ASSEMBLEA TERRITORIALE IDRICA PALERMO",1901,1901,"Palermo","PA","082026","Cefalà Diana"]
["Sicilia","Cefalù","Cefalù (PA) ","ASSEMBLEA TERRITORIALE IDRICA PALERMO",1901,1901,"Palermo","PA","082027","Cefalù"]
["Sicilia","Cerda","Cerda (PA) ","ASSEMBLEA TERRITORIALE IDRICA PALERMO",1901,1901,"Palermo","PA","082028","Cerda"]
["Sicilia","Chiusa Sclafani","Chiusa Sclafani (PA) ","ASSEMBLEA TERRITORIALE IDRICA PALERMO",1901,1901,"Palermo","PA","082029","Chiusa Sclafani"]
["Sicilia","Ciminna","Ciminna (PA) ","ASSEMBLEA TERRITORIALE IDRICA PALERMO",1901,1901,"Palermo","PA","082030","Ciminna"]
["Sicilia","Cinisi","Cinisi (PA) ","ASSEMBLEA TERRITORIALE IDRICA PALERMO",1901,1901,"Palermo","PA","082031","Cinisi"]
["Sicilia","Collesano","Collesano (PA) ","ASSEMBLEA TERRITORIALE IDRICA PALERMO",1901,1901,"Palermo","PA","082032","Collesano"]
["Sicilia","Contessa Entellina","Contessa Entellina (PA) ","ASSEMBLEA TERRITORIALE IDRICA PALERMO",1901,1901,"Palermo","PA","082033","Contessa Entellina"]
["Sicilia","Corleone","Corleone (PA) ","ASSEMBLEA TERRITORIALE IDRICA PALERMO",1901,1901,"Palermo","PA","082034","Corleone"]
["Sicilia","Ficarazzi","Ficarazzi (PA) ","ASSEMBLEA TERRITORIALE IDRICA PALERMO",1901,1901,"Palermo","PA","082035","Ficarazzi"]
["Sicilia","Gangi","Gangi (PA) ","ASSEMBLEA TERRITORIALE IDRICA PALERMO",1901,1901,"Palermo","PA","082036","Gangi"]
["Sicilia","Geraci Siculo","Geraci Siculo (PA) ","ASSEMBLEA TERRITORIALE IDRICA PALERMO",1901,1901,"Palermo","PA","082037","Geraci Siculo"]
["Sicilia","Giardinello","Giardinello (PA) ","ASSEMBLEA TERRITORIALE IDRICA PALERMO",1901,1901,"Palermo","PA","082038","Giardinello"]
["Sicilia","Giuliana","Giuliana (PA) ","ASSEMBLEA TERRITORIALE IDRICA PALERMO",1901,1901,"Palermo","PA","082039","Giuliana"]
["Sicilia","Godrano","Godrano (PA) ","ASSEMBLEA TERRITORIALE IDRICA PALERMO",1901,1901,"Palermo","PA","082040","Godrano"]
["Sicilia","Gratteri","Gratteri (PA) ","ASSEMBLEA TERRITORIALE IDRICA PALERMO",1901,1901,"Palermo","PA","082041","Gratteri"]
["Sicilia","Isnello","Isnello (PA) ","ASSEMBLEA TERRITORIALE IDRICA PALERMO",1901,1901,"Palermo","PA","082042","Isnello"]
["Sicilia","Isola delle Femmine","Isola delle Femmine (PA) ","ASSEMBLEA TERRITORIALE IDRICA PALERMO",1901,1901,"Palermo","PA","082043","Isola delle Femmine"]
["Sicilia","Lascari","Lascari (PA) ","ASSEMBLEA TERRITORIALE IDRICA PALERMO",1901,1901,"Palermo","PA","082044","Lascari"]
["Sicilia","Lercara Friddi","Lercara Friddi (PA) ","ASSEMBLEA TERRITORIALE IDRICA PALERMO",1901,1901,"Palermo","PA","082045","Lercara Friddi"]
["Sicilia","Marineo","Marineo (PA) ","ASSEMBLEA TERRITORIALE IDRICA PALERMO",1901,1901,"Palermo","PA","082046","Marineo"]
["Sicilia","Mezzojuso","Mezzojuso (PA) ","ASSEMBLEA TERRITORIALE IDRICA PALERMO",1901,1901,"Palermo","PA","082047","Mezzojuso"]
["Sicilia","Misilmeri","Misilmeri (PA) ","ASSEMBLEA TERRITORIALE IDRICA PALERMO",1901,1901,"Palermo","PA","082048","Misilmeri"]
["Sicilia","Monreale","Monreale (PA) ","ASSEMBLEA TERRITORIALE IDRICA PALERMO",1901,1901,"Palermo","PA","082049","Monreale"]
["Sicilia","Montelepre","Montelepre (PA) ","ASSEMBLEA TERRITORIALE IDRICA PALERMO",1901,1901,"Palermo","PA","082050","Montelepre"]
["Sicilia","Montemaggiore Belsito","Montemaggiore Belsito (PA) ","ASSEMBLEA TERRITORIALE IDRICA PALERMO",1901,1901,"Palermo","PA","082051","Montemaggiore Belsito"]
["Sicilia","Palazzo Adriano","Palazzo Adriano (PA) ","ASSEMBLEA TERRITORIALE IDRICA PALERMO",1901,1901,"Palermo","PA","082052","Palazzo Adriano"]
["Sicilia","Palermo","Palermo (PA) ","ASSEMBLEA TERRITORIALE IDRICA PALERMO",1901,1901,"Palermo","PA","082053","Palermo"]
["Sicilia","Partinico","Partinico (PA) ","ASSEMBLEA TERRITORIALE IDRICA PALERMO",1901,1901,"Palermo","PA","082054","Partinico"]
["Sicilia","Petralia Soprana","Petralia Soprana (PA) ","ASSEMBLEA TERRITORIALE IDRICA PALERMO",1901,1901,"Palermo","PA","082055","Petralia Soprana"]
["Sicilia","Petralia Sottana","Petralia Sottana (PA) ","ASSEMBLEA TERRITORIALE IDRICA PALERMO",1901,1901,"Palermo","PA","082056","Petralia Sottana"]
["Sicilia","Piana degli Albanesi","Piana degli Albanesi (PA) ","ASSEMBLEA TERRITORIALE IDRICA PALERMO",1901,1901,"Palermo","PA","082057","Piana degli Albanesi"]
["Sicilia","Polizzi Generosa","Polizzi Generosa (PA) ","ASSEMBLEA TERRITORIALE IDRICA PALERMO",1901,1901,"Palermo","PA","082058","Polizzi Generosa"]
["Sicilia","Pollina","Pollina (PA) ","ASSEMBLEA TERRITORIALE IDRICA PALERMO",1901,1901,"Palermo","PA","082059","Pollina"]
["Sicilia","Prizzi","Prizzi (PA) ","ASSEMBLEA TERRITORIALE IDRICA PALERMO",1901,1901,"Palermo","PA","082060","Prizzi"]
["Sicilia","Roccamena","Roccamena (PA) ","ASSEMBLEA TERRITORIALE IDRICA PALERMO",1901,1901,"Palermo","PA","082061","Roccamena"]
["Sicilia","Roccapalumba","Roccapalumba (PA) ","ASSEMBLEA TERRITORIALE IDRICA PALERMO",1901,1901,"Palermo","PA","082062","Roccapalumba"]
["Sicilia","San Cipirello","San Cipirello (PA) ","ASSEMBLEA TERRITORIALE IDRICA PALERMO",1901,1901,"Palermo","PA","082063","San Cipirello"]
["Sicilia","San Giuseppe Jato","San Giuseppe Jato (PA) ","ASSEMBLEA TERRITORIALE IDRICA PALERMO",1901,1901,"Palermo","PA","082064","San Giuseppe Jato"]
["Sicilia","San Mauro Castelverde","San Mauro Castelverde (PA) ","ASSEMBLEA TERRITORIALE IDRICA PALERMO",1901,1901,"Palermo","PA","082065","San Mauro Castelverde"]
["Sicilia","Santa Cristina Gela","Santa Cristina Gela (PA) ","ASSEMBLEA TERRITORIALE IDRICA PALERMO",1901,1901,"Palermo","PA","082066","Santa Cristina Gela"]
["Sicilia","Santa Flavia","Santa Flavia (PA) ","ASSEMBLEA TERRITORIALE IDRICA PALERMO",1901,1901,"Palermo","PA","082067","Santa Flavia"]
["Sicilia","Sciara","Sciara (PA) ","ASSEMBLEA TERRITORIALE IDRICA PALERMO",1901,1901,"Palermo","PA","082068","Sciara"]
["Sicilia","Sclafani Bagni","Sclafani Bagni (PA) ","ASSEMBLEA TERRITORIALE IDRICA PALERMO",1901,1901,"Palermo","PA","082069","Sclafani Bagni"]
["Sicilia","Termini Imerese","Termini Imerese (PA) ","ASSEMBLEA TERRITORIALE IDRICA PALERMO",1901,1901,"Palermo","PA","082070","Termini Imerese"]
["Sicilia","Terrasini","Terrasini (PA) ","ASSEMBLEA TERRITORIALE IDRICA PALERMO",1901,1901,"Palermo","PA","082071","Terrasini"]
["Sicilia","Torretta","Torretta (PA) ","ASSEMBLEA TERRITORIALE IDRICA PALERMO",1901,1901,"Palermo","PA","082072","Torretta"]
["Sicilia","Trabia","Trabia (PA) ","ASSEMBLEA TERRITORIALE IDRICA PALERMO",1901,1901,"Palermo","PA","082073","Trabia"]
["Sicilia","Trappeto","Trappeto (PA) ","ASSEMBLEA TERRITORIALE IDRICA PALERMO",1901,1901,"Palermo","PA","082074","Trappeto"]
["Sicilia","Ustica","Ustica (PA) ","ASSEMBLEA TERRITORIALE IDRICA PALERMO",1901,1901,"Palermo","PA","082075","Ustica"]
["Sicilia","Valledolmo","Valledolmo (PA) ","ASSEMBLEA TERRITORIALE IDRICA PALERMO",1901,1901,"Palermo","PA","082076","Valledolmo"]
["Sicilia","Ventimiglia di Sicilia","Ventimiglia di Sicilia (PA) ","ASSEMBLEA TERRITORIALE IDRICA PALERMO",1901,1901,"Palermo","PA","082077","Ventimiglia di Sicilia"]
["Sicilia","Vicari","Vicari (PA) ","ASSEMBLEA TERRITORIALE IDRICA PALERMO",1901,1901,"Palermo","PA","082078","Vicari"]
["Sicilia","Villabate","Villabate (PA) ","ASSEMBLEA TERRITORIALE IDRICA PALERMO",1901,1901,"Palermo","PA","082079","Villabate"]
["Sicilia","Villafrati","Villafrati (PA) ","ASSEMBLEA TERRITORIALE IDRICA PALERMO",1901,1901,"Palermo","PA","082080","Villafrati"]
["Sicilia","Scillato","Scillato (PA) ","ASSEMBLEA TERRITORIALE IDRICA PALERMO",1901,1901,"Palermo","PA","082081","Scillato"]
["Sicilia","Blufi","Blufi (PA) ","ASSEMBLEA TERRITORIALE IDRICA PALERMO",1901,1901,"Palermo","PA","082082","Blufi"]
["Sicilia","Alcara li Fusi","Alcara li Fusi (ME) ","assemblea territoriale idrica di messina",1903,1903,"Messina","ME","083001","Alcara li Fusi"]
["Sicilia","Alì","Alì (ME) ","assemblea territoriale idrica di messina",1903,1903,"Messina","ME","083002","Alì"]
["Sicilia","Alì Terme","Alì Terme (ME) ","assemblea territoriale idrica di messina",1903,1903,"Messina","ME","083003","Alì Terme"]
["Sicilia","Antillo","Antillo (ME) ","assemblea territoriale idrica di messina",1903,1903,"Messina","ME","083004","Antillo"]
["Sicilia","Barcellona Pozzo di Gotto","Barcellona Pozzo di Gotto (ME) ","assemblea territoriale idrica di messina",1903,1903,"Messina","ME","083005","Barcellona Pozzo di Gotto"]
["Sicilia","Basicò","Basicò (ME) ","assemblea territoriale idrica di messina",1903,1903,"Messina","ME","083006","Basicò"]
["Sicilia","Brolo","Brolo (ME) ","assemblea territoriale idrica di messina",1903,1903,"Messina","ME","083007","Brolo"]
["Sicilia","Capizzi","Capizzi (ME) ","assemblea territoriale idrica di messina",1903,1903,"Messina","ME","083008","Capizzi"]
["Sicilia","Capo d'Orlando","Capo d'Orlando (ME) ","assemblea territoriale idrica di messina",1903,1903,"Messina","ME","083009","Capo d'Orlando"]
["Sicilia","Capri Leone","Capri Leone (ME) ","assemblea territoriale idrica di messina",1903,1903,"Messina","ME","083010","Capri Leone"]
["Sicilia","Caronia","Caronia (ME) ","assemblea territoriale idrica di messina",1903,1903,"Messina","ME","083011","Caronia"]
["Sicilia","Casalvecchio Siculo","Casalvecchio Siculo (ME) ","assemblea territoriale idrica di messina",1903,1903,"Messina","ME","083012","Casalvecchio Siculo"]
["Sicilia","Castel di Lucio","Castel di Lucio (ME) ","assemblea territoriale idrica di messina",1903,1903,"Messina","ME","083013","Castel di Lucio"]
["Sicilia","Castell'Umberto","Castell'Umberto (ME) ","assemblea territoriale idrica di messina",1903,1903,"Messina","ME","083014","Castell'Umberto"]
["Sicilia","Castelmola","Castelmola (ME) ","assemblea territoriale idrica di messina",1903,1903,"Messina","ME","083015","Castelmola"]
["Sicilia","Castroreale","Castroreale (ME) ","assemblea territoriale idrica di messina",1903,1903,"Messina","ME","083016","Castroreale"]
["Sicilia","Cesarò","Cesarò (ME) ","assemblea territoriale idrica di messina",1903,1903,"Messina","ME","083017","Cesarò"]
["Sicilia","Condrò","Condrò (ME) ","assemblea territoriale idrica di messina",1903,1903,"Messina","ME","083018","Condrò"]
["Sicilia","Falcone","Falcone (ME) ","assemblea territoriale idrica di messina",1903,1903,"Messina","ME","083019","Falcone"]
["Sicilia","Ficarra","Ficarra (ME) ","assemblea territoriale idrica di messina",1903,1903,"Messina","ME","083020","Ficarra"]
["Sicilia","Fiumedinisi","Fiumedinisi (ME) ","assemblea territoriale idrica di messina",1903,1903,"Messina","ME","083021","Fiumedinisi"]
["Sicilia","Floresta","Floresta (ME) ","assemblea territoriale idrica di messina",1903,1903,"Messina","ME","083022","Floresta"]
["Sicilia","Fondachelli-Fantina","Fondachelli-Fantina (ME) ","assemblea territoriale idrica di messina",1903,1903,"Messina","ME","083023","Fondachelli-Fantina"]
["Sicilia","Forza d'Agrò","Forza d'Agrò (ME) ","assemblea territoriale idrica di messina",1903,1903,"Messina","ME","083024","Forza d'Agrò"]
["Sicilia","Francavilla di Sicilia","Francavilla di Sicilia (ME) ","assemblea territoriale idrica di messina",1903,1903,"Messina","ME","083025","Francavilla di Sicilia"]
["Sicilia","Frazzanò","Frazzanò (ME) ","assemblea territoriale idrica di messina",1903,1903,"Messina","ME","083026","Frazzanò"]
["Sicilia","Furci Siculo","Furci Siculo (ME) ","assemblea territoriale idrica di messina",1903,1903,"Messina","ME","083027","Furci Siculo"]
["Sicilia","Furnari","Furnari (ME) ","assemblea territoriale idrica di messina",1903,1903,"Messina","ME","083028","Furnari"]
["Sicilia","Gaggi","Gaggi (ME) ","assemblea territoriale idrica di messina",1903,1903,"Messina","ME","083029","Gaggi"]
["Sicilia","Galati Mamertino","Galati Mamertino (ME) ","assemblea territoriale idrica di messina",1903,1903,"Messina","ME","083030","Galati Mamertino"]
["Sicilia","Gallodoro","Gallodoro (ME) ","assemblea territoriale idrica di messina",1903,1903,"Messina","ME","083031","Gallodoro"]
["Sicilia","Giardini-Naxos","Giardini-Naxos (ME) ","assemblea territoriale idrica di messina",1903,1903,"Messina","ME","083032","Giardini-Naxos"]
["Sicilia","Gioiosa Marea","Gioiosa Marea (ME) ","assemblea territoriale idrica di messina",1903,1903,"Messina","ME","083033","Gioiosa Marea"]
["Sicilia","Graniti","Graniti (ME) ","assemblea territoriale idrica di messina",1903,1903,"Messina","ME","083034","Graniti"]
["Sicilia","Gualtieri Sicaminò","Gualtieri Sicaminò (ME) ","assemblea territoriale idrica di messina",1903,1903,"Messina","ME","083035","Gualtieri Sicaminò"]
["Sicilia","Itala","Itala (ME) ","assemblea territoriale idrica di messina",1903,1903,"Messina","ME","083036","Itala"]
["Sicilia","Leni","Leni (ME) ","assemblea territoriale idrica di messina",1903,1903,"Messina","ME","083037","Leni"]
["Sicilia","Letojanni","Letojanni (ME) ","assemblea territoriale idrica di messina",1903,1903,"Messina","ME","083038","Letojanni"]
["Sicilia","Librizzi","Librizzi (ME) ","assemblea territoriale idrica di messina",1903,1903,"Messina","ME","083039","Librizzi"]
["Sicilia","Limina","Limina (ME) ","assemblea territoriale idrica di messina",1903,1903,"Messina","ME","083040","Limina"]
["Sicilia","Lipari","Lipari (ME) ","assemblea territoriale idrica di messina",1903,1903,"Messina","ME","083041","Lipari"]
["Sicilia","Longi","Longi (ME) ","assemblea territoriale idrica di messina",1903,1903,"Messina","ME","083042","Longi"]
["Sicilia","Malfa","Malfa (ME) ","assemblea territoriale idrica di messina",1903,1903,"Messina","ME","083043","Malfa"]
["Sicilia","Malvagna","Malvagna (ME) ","assemblea territoriale idrica di messina",1903,1903,"Messina","ME","083044","Malvagna"]
["Sicilia","Mandanici","Mandanici (ME) ","assemblea territoriale idrica di messina",1903,1903,"Messina","ME","083045","Mandanici"]
["Sicilia","Mazzarrà Sant'Andrea","Mazzarrà Sant'Andrea (ME) ","assemblea territoriale idrica di messina",1903,1903,"Messina","ME","083046","Mazzarrà Sant'Andrea"]
["Sicilia","Merì","Merì (ME) ","assemblea territoriale idrica di messina",1903,1903,"Messina","ME","083047","Merì"]
["Sicilia","Messina","Messina (ME) ","assemblea territoriale idrica di messina",1903,1903,"Messina","ME","083048","Messina"]
["Sicilia","Milazzo","Milazzo (ME) ","assemblea territoriale idrica di messina",1903,1903,"Messina","ME","083049","Milazzo"]
["Sicilia","Militello Rosmarino","Militello Rosmarino (ME) ","assemblea territoriale idrica di messina",1903,1903,"Messina","ME","083050","Militello Rosmarino"]
["Sicilia","Mirto","Mirto (ME) ","assemblea territoriale idrica di messina",1903,1903,"Messina","ME","083051","Mirto"]
["Sicilia","Mistretta","Mistretta (ME) ","assemblea territoriale idrica di messina",1903,1903,"Messina","ME","083052","Mistretta"]
["Sicilia","Moio Alcantara","Moio Alcantara (ME) ","assemblea territoriale idrica di messina",1903,1903,"Messina","ME","083053","Moio Alcantara"]
["Sicilia","Monforte San Giorgio","Monforte San Giorgio (ME) ","assemblea territoriale idrica di messina",1903,1903,"Messina","ME","083054","Monforte San Giorgio"]
["Sicilia","Mongiuffi Melia","Mongiuffi Melia (ME) ","assemblea territoriale idrica di messina",1903,1903,"Messina","ME","083055","Mongiuffi Melia"]
["Sicilia","Montagnareale","Montagnareale (ME) ","assemblea territoriale idrica di messina",1903,1903,"Messina","ME","083056","Montagnareale"]
["Sicilia","Montalbano Elicona","Montalbano Elicona (ME) ","assemblea territoriale idrica di messina",1903,1903,"Messina","ME","083057","Montalbano Elicona"]
["Sicilia","Motta Camastra","Motta Camastra (ME) ","assemblea territoriale idrica di messina",1903,1903,"Messina","ME","083058","Motta Camastra"]
["Sicilia","Motta d'Affermo","Motta d'Affermo (ME) ","assemblea territoriale idrica di messina",1903,1903,"Messina","ME","083059","Motta d'Affermo"]
["Sicilia","Naso","Naso (ME) ","assemblea territoriale idrica di messina",1903,1903,"Messina","ME","083060","Naso"]
["Sicilia","Nizza di Sicilia","Nizza di Sicilia (ME) ","assemblea territoriale idrica di messina",1903,1903,"Messina","ME","083061","Nizza di Sicilia"]
["Sicilia","Novara di Sicilia","Novara di Sicilia (ME) ","assemblea territoriale idrica di messina",1903,1903,"Messina","ME","083062","Novara di Sicilia"]
["Sicilia","Oliveri","Oliveri (ME) ","assemblea territoriale idrica di messina",1903,1903,"Messina","ME","083063","Oliveri"]
["Sicilia","Pace del Mela","Pace del Mela (ME) ","assemblea territoriale idrica di messina",1903,1903,"Messina","ME","083064","Pace del Mela"]
["Sicilia","Pagliara","Pagliara (ME) ","assemblea territoriale idrica di messina",1903,1903,"Messina","ME","083065","Pagliara"]
["Sicilia","Patti","Patti (ME) ","assemblea territoriale idrica di messina",1903,1903,"Messina","ME","083066","Patti"]
["Sicilia","Pettineo","Pettineo (ME) ","assemblea territoriale idrica di messina",1903,1903,"Messina","ME","083067","Pettineo"]
["Sicilia","Piraino","Piraino (ME) ","assemblea territoriale idrica di messina",1903,1903,"Messina","ME","083068","Piraino"]
["Sicilia","Raccuja","Raccuja (ME) ","assemblea territoriale idrica di messina",1903,1903,"Messina","ME","083069","Raccuja"]
["Sicilia","Reitano","Reitano (ME) ","assemblea territoriale idrica di messina",1903,1903,"Messina","ME","083070","Reitano"]
["Sicilia","Roccafiorita","Roccafiorita (ME) ","assemblea territoriale idrica di messina",1903,1903,"Messina","ME","083071","Roccafiorita"]
["Sicilia","Roccalumera","Roccalumera (ME) ","assemblea territoriale idrica di messina",1903,1903,"Messina","ME","083072","Roccalumera"]
["Sicilia","Roccavaldina","Roccavaldina (ME) ","assemblea territoriale idrica di messina",1903,1903,"Messina","ME","083073","Roccavaldina"]
["Sicilia","Roccella Valdemone","Roccella Valdemone (ME) ","assemblea territoriale idrica di messina",1903,1903,"Messina","ME","083074","Roccella Valdemone"]
["Sicilia","Rodì Milici","Rodì Milici (ME) ","assemblea territoriale idrica di messina",1903,1903,"Messina","ME","083075","Rodì Milici"]
["Sicilia","Rometta","Rometta (ME) ","assemblea territoriale idrica di messina",1903,1903,"Messina","ME","083076","Rometta"]
["Sicilia","San Filippo del Mela","San Filippo del Mela (ME) ","assemblea territoriale idrica di messina",1903,1903,"Messina","ME","083077","San Filippo del Mela"]
["Sicilia","San Fratello","San Fratello (ME) ","assemblea territoriale idrica di messina",1903,1903,"Messina","ME","083078","San Fratello"]
["Sicilia","San Marco d'Alunzio","San Marco d'Alunzio (ME) ","assemblea territoriale idrica di messina",1903,1903,"Messina","ME","083079","San Marco d'Alunzio"]
["Sicilia","San Pier Niceto","San Pier Niceto (ME) ","assemblea territoriale idrica di messina",1903,1903,"Messina","ME","083080","San Pier Niceto"]
["Sicilia","San Piero Patti","San Piero Patti (ME) ","assemblea territoriale idrica di messina",1903,1903,"Messina","ME","083081","San Piero Patti"]
["Sicilia","San Salvatore di Fitalia","San Salvatore di Fitalia (ME) ","assemblea territoriale idrica di messina",1903,1903,"Messina","ME","083082","San Salvatore di Fitalia"]
["Sicilia","Santa Domenica Vittoria","Santa Domenica Vittoria (ME) ","assemblea territoriale idrica di messina",1903,1903,"Messina","ME","083083","Santa Domenica Vittoria"]
["Sicilia","Sant'Agata di Militello","Sant'Agata di Militello (ME) ","assemblea territoriale idrica di messina",1903,1903,"Messina","ME","083084","Sant'Agata di Militello"]
["Sicilia","Sant'Alessio Siculo","Sant'Alessio Siculo (ME) ","assemblea territoriale idrica di messina",1903,1903,"Messina","ME","083085","Sant'Alessio Siculo"]
["Sicilia","Santa Lucia del Mela","Santa Lucia del Mela (ME) ","assemblea territoriale idrica di messina",1903,1903,"Messina","ME","083086","Santa Lucia del Mela"]
["Sicilia","Santa Marina Salina","Santa Marina Salina (ME) ","assemblea territoriale idrica di messina",1903,1903,"Messina","ME","083087","Santa Marina Salina"]
["Sicilia","Sant'Angelo di Brolo","Sant'Angelo di Brolo (ME) ","assemblea territoriale idrica di messina",1903,1903,"Messina","ME","083088","Sant'Angelo di Brolo"]
["Sicilia","Santa Teresa di Riva","Santa Teresa di Riva (ME) ","assemblea territoriale idrica di messina",1903,1903,"Messina","ME","083089","Santa Teresa di Riva"]
["Sicilia","San Teodoro","San Teodoro (ME) ","assemblea territoriale idrica di messina",1903,1903,"Messina","ME","083090","San Teodoro"]
["Sicilia","Santo Stefano di Camastra","Santo Stefano di Camastra (ME) ","assemblea territoriale idrica di messina",1903,1903,"Messina","ME","083091","Santo Stefano di Camastra"]
["Sicilia","Saponara","Saponara (ME) ","assemblea territoriale idrica di messina",1903,1903,"Messina","ME","083092","Saponara"]
["Sicilia","Savoca","Savoca (ME) ","assemblea territoriale idrica di messina",1903,1903,"Messina","ME","083093","Savoca"]
["Sicilia","Scaletta Zanclea","Scaletta Zanclea (ME) ","assemblea territoriale idrica di messina",1903,1903,"Messina","ME","083094","Scaletta Zanclea"]
["Sicilia","Sinagra","Sinagra (ME) ","assemblea territoriale idrica di messina",1903,1903,"Messina","ME","083095","Sinagra"]
["Sicilia","Spadafora","Spadafora (ME) ","assemblea territoriale idrica di messina",1903,1903,"Messina","ME","083096","Spadafora"]
["Sicilia","Taormina","Taormina (ME) ","assemblea territoriale idrica di messina",1903,1903,"Messina","ME","083097","Taormina"]
["Sicilia","Torregrotta","Torregrotta (ME) ","assemblea territoriale idrica di messina",1903,1903,"Messina","ME","083098","Torregrotta"]
["Sicilia","Tortorici","Tortorici (ME) ","assemblea territoriale idrica di messina",1903,1903,"Messina","ME","083099","Tortorici"]
["Sicilia","Tripi - Abakainon","Tripi - Abakainon (ME) ","assemblea territoriale idrica di messina",1903,1903,"Messina","ME","083100","Tripi - Abakainon"]
["Sicilia","Tusa","Tusa (ME) ","assemblea territoriale idrica di messina",1903,1903,"Messina","ME","083101","Tusa"]
["Sicilia","Ucria","Ucria (ME) ","assemblea territoriale idrica di messina",1903,1903,"Messina","ME","083102","Ucria"]
["Sicilia","Valdina","Valdina (ME) ","assemblea territoriale idrica di messina",1903,1903,"Messina","ME","083103","Valdina"]
["Sicilia","Venetico","Venetico (ME) ","assemblea territoriale idrica di messina",1903,1903,"Messina","ME","083104","Venetico"]
["Sicilia","Villafranca Tirrena","Villafranca Tirrena (ME) ","assemblea territoriale idrica di messina",1903,1903,"Messina","ME","083105","Villafranca Tirrena"]
["Sicilia","Terme Vigliatore","Terme Vigliatore (ME) ","assemblea territoriale idrica di messina",1903,1903,"Messina","ME","083106","Terme Vigliatore"]
["Sicilia","Acquedolci","Acquedolci (ME) ","assemblea territoriale idrica di messina",1903,1903,"Messina","ME","083107","Acquedolci"]
["Sicilia","Torrenova","Torrenova (ME) ","assemblea territoriale idrica di messina",1903,1903,"Messina","ME","083108","Torrenova"]
["Sicilia","Agrigento","Agrigento (AG) ","Assemblea Territoriale Idrica AG9 - Agrigento",1909,1909,"Agrigento","AG","084001","Agrigento"]
["Sicilia","Alessandria della Rocca","Alessandria della Rocca (AG) ","Assemblea Territoriale Idrica AG9 - Agrigento",1909,1909,"Agrigento","AG","084002","Alessandria della Rocca"]
["Sicilia","Aragona","Aragona (AG) ","Assemblea Territoriale Idrica AG9 - Agrigento",1909,1909,"Agrigento","AG","084003","Aragona"]
["Sicilia","Bivona","Bivona (AG) ","Assemblea Territoriale Idrica AG9 - Agrigento",1909,1909,"Agrigento","AG","084004","Bivona"]
["Sicilia","Burgio","Burgio (AG) ","Assemblea Territoriale Idrica AG9 - Agrigento",1909,1909,"Agrigento","AG","084005","Burgio"]
["Sicilia","Calamonaci","Calamonaci (AG) ","Assemblea Territoriale Idrica AG9 - Agrigento",1909,1909,"Agrigento","AG","084006","Calamonaci"]
["Sicilia","Caltabellotta","Caltabellotta (AG) ","Assemblea Territoriale Idrica AG9 - Agrigento",1909,1909,"Agrigento","AG","084007","Caltabellotta"]
["Sicilia","Camastra","Camastra (AG) ","Assemblea Territoriale Idrica AG9 - Agrigento",1909,1909,"Agrigento","AG","084008","Camastra"]
["Sicilia","Cammarata","Cammarata (AG) ","Assemblea Territoriale Idrica AG9 - Agrigento",1909,1909,"Agrigento","AG","084009","Cammarata"]
["Sicilia","Campobello di Licata","Campobello di Licata (AG) ","Assemblea Territoriale Idrica AG9 - Agrigento",1909,1909,"Agrigento","AG","084010","Campobello di Licata"]
["Sicilia","Canicattì","Canicattì (AG) ","Assemblea Territoriale Idrica AG9 - Agrigento",1909,1909,"Agrigento","AG","084011","Canicattì"]
["Sicilia","Casteltermini","Casteltermini (AG) ","Assemblea Territoriale Idrica AG9 - Agrigento",1909,1909,"Agrigento","AG","084012","Casteltermini"]
["Sicilia","Castrofilippo","Castrofilippo (AG) ","Assemblea Territoriale Idrica AG9 - Agrigento",1909,1909,"Agrigento","AG","084013","Castrofilippo"]
["Sicilia","Cattolica Eraclea","Cattolica Eraclea (AG) ","Assemblea Territoriale Idrica AG9 - Agrigento",1909,1909,"Agrigento","AG","084014","Cattolica Eraclea"]
["Sicilia","Cianciana","Cianciana (AG) ","Assemblea Territoriale Idrica AG9 - Agrigento",1909,1909,"Agrigento","AG","084015","Cianciana"]
["Sicilia","Comitini","Comitini (AG) ","Assemblea Territoriale Idrica AG9 - Agrigento",1909,1909,"Agrigento","AG","084016","Comitini"]
["Sicilia","Favara","Favara (AG) ","Assemblea Territoriale Idrica AG9 - Agrigento",1909,1909,"Agrigento","AG","084017","Favara"]
["Sicilia","Grotte","Grotte (AG) ","Assemblea Territoriale Idrica AG9 - Agrigento",1909,1909,"Agrigento","AG","084018","Grotte"]
["Sicilia","Joppolo Giancaxio","Joppolo Giancaxio (AG) ","Assemblea Territoriale Idrica AG9 - Agrigento",1909,1909,"Agrigento","AG","084019","Joppolo Giancaxio"]
["Sicilia","Lampedusa e Linosa","Lampedusa e Linosa (AG) ","Assemblea Territoriale Idrica AG9 - Agrigento",1909,1909,"Agrigento","AG","084020","Lampedusa e Linosa"]
["Sicilia","Licata","Licata (AG) ","Assemblea Territoriale Idrica AG9 - Agrigento",1909,1909,"Agrigento","AG","084021","Licata"]
["Sicilia","Lucca Sicula","Lucca Sicula (AG) ","Assemblea Territoriale Idrica AG9 - Agrigento",1909,1909,"Agrigento","AG","084022","Lucca Sicula"]
["Sicilia","Menfi","Menfi (AG) ","Assemblea Territoriale Idrica AG9 - Agrigento",1909,1909,"Agrigento","AG","084023","Menfi"]
["Sicilia","Montallegro","Montallegro (AG) ","Assemblea Territoriale Idrica AG9 - Agrigento",1909,1909,"Agrigento","AG","084024","Montallegro"]
["Sicilia","Montevago","Montevago (AG) ","Assemblea Territoriale Idrica AG9 - Agrigento",1909,1909,"Agrigento","AG","084025","Montevago"]
["Sicilia","Naro","Naro (AG) ","Assemblea Territoriale Idrica AG9 - Agrigento",1909,1909,"Agrigento","AG","084026","Naro"]
["Sicilia","Palma di Montechiaro","Palma di Montechiaro (AG) ","Assemblea Territoriale Idrica AG9 - Agrigento",1909,1909,"Agrigento","AG","084027","Palma di Montechiaro"]
["Sicilia","Porto Empedocle","Porto Empedocle (AG) ","Assemblea Territoriale Idrica AG9 - Agrigento",1909,1909,"Agrigento","AG","084028","Porto Empedocle"]
["Sicilia","Racalmuto","Racalmuto (AG) ","Assemblea Territoriale Idrica AG9 - Agrigento",1909,1909,"Agrigento","AG","084029","Racalmuto"]
["Sicilia","Raffadali","Raffadali (AG) ","Assemblea Territoriale Idrica AG9 - Agrigento",1909,1909,"Agrigento","AG","084030","Raffadali"]
["Sicilia","Ravanusa","Ravanusa (AG) ","Assemblea Territoriale Idrica AG9 - Agrigento",1909,1909,"Agrigento","AG","084031","Ravanusa"]
["Sicilia","Realmonte","Realmonte (AG) ","Assemblea Territoriale Idrica AG9 - Agrigento",1909,1909,"Agrigento","AG","084032","Realmonte"]
["Sicilia","Ribera","Ribera (AG) ","Assemblea Territoriale Idrica AG9 - Agrigento",1909,1909,"Agrigento","AG","084033","Ribera"]
["Sicilia","Sambuca di Sicilia","Sambuca di Sicilia (AG) ","Assemblea Territoriale Idrica AG9 - Agrigento",1909,1909,"Agrigento","AG","084034","Sambuca di Sicilia"]
["Sicilia","San Biagio Platani","San Biagio Platani (AG) ","Assemblea Territoriale Idrica AG9 - Agrigento",1909,1909,"Agrigento","AG","084035","San Biagio Platani"]
["Sicilia","San Giovanni Gemini","San Giovanni Gemini (AG) ","Assemblea Territoriale Idrica AG9 - Agrigento",1909,1909,"Agrigento","AG","084036","San Giovanni Gemini"]
["Sicilia","Santa Elisabetta","Santa Elisabetta (AG) ","Assemblea Territoriale Idrica AG9 - Agrigento",1909,1909,"Agrigento","AG","084037","Santa Elisabetta"]
["Sicilia","Santa Margherita di Belice","Santa Margherita di Belice (AG) ","Assemblea Territoriale Idrica AG9 - Agrigento",1909,1909,"Agrigento","AG","084038","Santa Margherita di Belice"]
["Sicilia","Sant'Angelo Muxaro","Sant'Angelo Muxaro (AG) ","Assemblea Territoriale Idrica AG9 - Agrigento",1909,1909,"Agrigento","AG","084039","Sant'Angelo Muxaro"]
["Sicilia","Santo Stefano Quisquina","Santo Stefano Quisquina (AG) ","Assemblea Territoriale Idrica AG9 - Agrigento",1909,1909,"Agrigento","AG","084040","Santo Stefano Quisquina"]
["Sicilia","Sciacca","Sciacca (AG) ","Assemblea Territoriale Idrica AG9 - Agrigento",1909,1909,"Agrigento","AG","084041","Sciacca"]
["Sicilia","Siculiana","Siculiana (AG) ","Assemblea Territoriale Idrica AG9 - Agrigento",1909,1909,"Agrigento","AG","084042","Siculiana"]
["Sicilia","Villafranca Sicula","Villafranca Sicula (AG) ","Assemblea Territoriale Idrica AG9 - Agrigento",1909,1909,"Agrigento","AG","084043","Villafranca Sicula"]
["Sicilia","Acquaviva Platani","Acquaviva Platani (CL) ","A.T.I. ASSEMBLEA TERRITORIALE IDRICA ATO CALTANISSETTA",1906,1906,"Caltanissetta","CL","085001","Acquaviva Platani"]
["Sicilia","Bompensiere","Bompensiere (CL) ","A.T.I. ASSEMBLEA TERRITORIALE IDRICA ATO CALTANISSETTA",1906,1906,"Caltanissetta","CL","085002","Bompensiere"]
["Sicilia","Butera","Butera (CL) ","A.T.I. ASSEMBLEA TERRITORIALE IDRICA ATO CALTANISSETTA",1906,1906,"Caltanissetta","CL","085003","Butera"]
["Sicilia","Caltanissetta","Caltanissetta (CL) ","A.T.I. ASSEMBLEA TERRITORIALE IDRICA ATO CALTANISSETTA",1906,1906,"Caltanissetta","CL","085004","Caltanissetta"]
["Sicilia","Campofranco","Campofranco (CL) ","A.T.I. ASSEMBLEA TERRITORIALE IDRICA ATO CALTANISSETTA",1906,1906,"Caltanissetta","CL","085005","Campofranco"]
["Sicilia","Delia","Delia (CL) ","A.T.I. ASSEMBLEA TERRITORIALE IDRICA ATO CALTANISSETTA",1906,1906,"Caltanissetta","CL","085006","Delia"]
["Sicilia","Gela","Gela (CL) ","A.T.I. ASSEMBLEA TERRITORIALE IDRICA ATO CALTANISSETTA",1906,1906,"Caltanissetta","CL","085007","Gela"]
["Sicilia","Marianopoli","Marianopoli (CL) ","A.T.I. ASSEMBLEA TERRITORIALE IDRICA ATO CALTANISSETTA",1906,1906,"Caltanissetta","CL","085008","Marianopoli"]
["Sicilia","Mazzarino","Mazzarino (CL) ","A.T.I. ASSEMBLEA TERRITORIALE IDRICA ATO CALTANISSETTA",1906,1906,"Caltanissetta","CL","085009","Mazzarino"]
["Sicilia","Milena","Milena (CL) ","A.T.I. ASSEMBLEA TERRITORIALE IDRICA ATO CALTANISSETTA",1906,1906,"Caltanissetta","CL","085010","Milena"]
["Sicilia","Montedoro","Montedoro (CL) ","A.T.I. ASSEMBLEA TERRITORIALE IDRICA ATO CALTANISSETTA",1906,1906,"Caltanissetta","CL","085011","Montedoro"]
["Sicilia","Mussomeli","Mussomeli (CL) ","A.T.I. ASSEMBLEA TERRITORIALE IDRICA ATO CALTANISSETTA",1906,1906,"Caltanissetta","CL","085012","Mussomeli"]
["Sicilia","Niscemi","Niscemi (CL) ","A.T.I. ASSEMBLEA TERRITORIALE IDRICA ATO CALTANISSETTA",1906,1906,"Caltanissetta","CL","085013","Niscemi"]
["Sicilia","Resuttano","Resuttano (CL) ","A.T.I. ASSEMBLEA TERRITORIALE IDRICA ATO CALTANISSETTA",1906,1906,"Caltanissetta","CL","085014","Resuttano"]
["Sicilia","Riesi","Riesi (CL) ","A.T.I. ASSEMBLEA TERRITORIALE IDRICA ATO CALTANISSETTA",1906,1906,"Caltanissetta","CL","085015","Riesi"]
["Sicilia","San Cataldo","San Cataldo (CL) ","A.T.I. ASSEMBLEA TERRITORIALE IDRICA ATO CALTANISSETTA",1906,1906,"Caltanissetta","CL","085016","San Cataldo"]
["Sicilia","Santa Caterina Villarmosa","Santa Caterina Villarmosa (CL) ","A.T.I. ASSEMBLEA TERRITORIALE IDRICA ATO CALTANISSETTA",1906,1906,"Caltanissetta","CL","085017","Santa Caterina Villarmosa"]
["Sicilia","Serradifalco","Serradifalco (CL) ","A.T.I. ASSEMBLEA TERRITORIALE IDRICA ATO CALTANISSETTA",1906,1906,"Caltanissetta","CL","085018","Serradifalco"]
["Sicilia","Sommatino","Sommatino (CL) ","A.T.I. ASSEMBLEA TERRITORIALE IDRICA ATO CALTANISSETTA",1906,1906,"Caltanissetta","CL","085019","Sommatino"]
["Sicilia","Sutera","Sutera (CL) ","A.T.I. ASSEMBLEA TERRITORIALE IDRICA ATO CALTANISSETTA",1906,1906,"Caltanissetta","CL","085020","Sutera"]
["Sicilia","Vallelunga Pratameno","Vallelunga Pratameno (CL) ","A.T.I. ASSEMBLEA TERRITORIALE IDRICA ATO CALTANISSETTA",1906,1906,"Caltanissetta","CL","085021","Vallelunga Pratameno"]
["Sicilia","Villalba","Villalba (CL) ","A.T.I. ASSEMBLEA TERRITORIALE IDRICA ATO CALTANISSETTA",1906,1906,"Caltanissetta","CL","085022","Villalba"]
["Sicilia","Agira","Agira (EN) ","ATI DI ENNA",1905,1905,"Enna","EN","086001","Agira"]
["Sicilia","Aidone","Aidone (EN) ","ATI DI ENNA",1905,1905,"Enna","EN","086002","Aidone"]
["Sicilia","Assoro","Assoro (EN) ","ATI DI ENNA",1905,1905,"Enna","EN","086003","Assoro"]
["Sicilia","Barrafranca","Barrafranca (EN) ","ATI DI ENNA",1905,1905,"Enna","EN","086004","Barrafranca"]
["Sicilia","Calascibetta","Calascibetta (EN) ","ATI DI ENNA",1905,1905,"Enna","EN","086005","Calascibetta"]
["Sicilia","Catenanuova","Catenanuova (EN) ","ATI DI ENNA",1905,1905,"Enna","EN","086006","Catenanuova"]
["Sicilia","Centuripe","Centuripe (EN) ","ATI DI ENNA",1905,1905,"Enna","EN","086007","Centuripe"]
["Sicilia","Cerami","Cerami (EN) ","ATI DI ENNA",1905,1905,"Enna","EN","086008","Cerami"]
["Sicilia","Enna","Enna (EN) ","ATI DI ENNA",1905,1905,"Enna","EN","086009","Enna"]
["Sicilia","Gagliano Castelferrato","Gagliano Castelferrato (EN) ","ATI DI ENNA",1905,1905,"Enna","EN","086010","Gagliano Castelferrato"]
["Sicilia","Leonforte","Leonforte (EN) ","ATI DI ENNA",1905,1905,"Enna","EN","086011","Leonforte"]
["Sicilia","Nicosia","Nicosia (EN) ","ATI DI ENNA",1905,1905,"Enna","EN","086012","Nicosia"]
["Sicilia","Nissoria","Nissoria (EN) ","ATI DI ENNA",1905,1905,"Enna","EN","086013","Nissoria"]
["Sicilia","Piazza Armerina","Piazza Armerina (EN) ","ATI DI ENNA",1905,1905,"Enna","EN","086014","Piazza Armerina"]
["Sicilia","Pietraperzia","Pietraperzia (EN) ","ATI DI ENNA",1905,1905,"Enna","EN","086015","Pietraperzia"]
["Sicilia","Regalbuto","Regalbuto (EN) ","ATI DI ENNA",1905,1905,"Enna","EN","086016","Regalbuto"]
["Sicilia","Sperlinga","Sperlinga (EN) ","ATI DI ENNA",1905,1905,"Enna","EN","086017","Sperlinga"]
["Sicilia","Troina","Troina (EN) ","ATI DI ENNA",1905,1905,"Enna","EN","086018","Troina"]
["Sicilia","Valguarnera Caropepe","Valguarnera Caropepe (EN) ","ATI DI ENNA",1905,1905,"Enna","EN","086019","Valguarnera Caropepe"]
["Sicilia","Villarosa","Villarosa (EN) ","ATI DI ENNA",1905,1905,"Enna","EN","086020","Villarosa"]
["Sicilia","Aci Bonaccorsi","Aci Bonaccorsi (CT) ","Assemblea Territoriale Idrica Catania",1902,1902,"Catania","CT","087001","Aci Bonaccorsi"]
["Sicilia","Aci Castello","Aci Castello (CT) ","Assemblea Territoriale Idrica Catania",1902,1902,"Catania","CT","087002","Aci Castello"]
["Sicilia","Aci Catena","Aci Catena (CT) ","Assemblea Territoriale Idrica Catania",1902,1902,"Catania","CT","087003","Aci Catena"]
["Sicilia","Acireale","Acireale (CT) ","Assemblea Territoriale Idrica Catania",1902,1902,"Catania","CT","087004","Acireale"]
["Sicilia","Aci Sant'Antonio","Aci Sant'Antonio (CT) ","Assemblea Territoriale Idrica Catania",1902,1902,"Catania","CT","087005","Aci Sant'Antonio"]
["Sicilia","Adrano","Adrano (CT) ","Assemblea Territoriale Idrica Catania",1902,1902,"Catania","CT","087006","Adrano"]
["Sicilia","Belpasso","Belpasso (CT) ","Assemblea Territoriale Idrica Catania",1902,1902,"Catania","CT","087007","Belpasso"]
["Sicilia","Biancavilla","Biancavilla (CT) ","Assemblea Territoriale Idrica Catania",1902,1902,"Catania","CT","087008","Biancavilla"]
["Sicilia","Bronte","Bronte (CT) ","Assemblea Territoriale Idrica Catania",1902,1902,"Catania","CT","087009","Bronte"]
["Sicilia","Calatabiano","Calatabiano (CT) ","Assemblea Territoriale Idrica Catania",1902,1902,"Catania","CT","087010","Calatabiano"]
["Sicilia","Caltagirone","Caltagirone (CT) ","Assemblea Territoriale Idrica Catania",1902,1902,"Catania","CT","087011","Caltagirone"]
["Sicilia","Camporotondo Etneo","Camporotondo Etneo (CT) ","Assemblea Territoriale Idrica Catania",1902,1902,"Catania","CT","087012","Camporotondo Etneo"]
["Sicilia","Castel di Iudica","Castel di Iudica (CT) ","Assemblea Territoriale Idrica Catania",1902,1902,"Catania","CT","087013","Castel di Iudica"]
["Sicilia","Castiglione di Sicilia","Castiglione di Sicilia (CT) ","Assemblea Territoriale Idrica Catania",1902,1902,"Catania","CT","087014","Castiglione di Sicilia"]
["Sicilia","Catania","Catania (CT) ","Assemblea Territoriale Idrica Catania",1902,1902,"Catania","CT","087015","Catania"]
["Sicilia","Fiumefreddo di Sicilia","Fiumefreddo di Sicilia (CT) ","Assemblea Territoriale Idrica Catania",1902,1902,"Catania","CT","087016","Fiumefreddo di Sicilia"]
["Sicilia","Giarre","Giarre (CT) ","Assemblea Territoriale Idrica Catania",1902,1902,"Catania","CT","087017","Giarre"]
["Sicilia","Grammichele","Grammichele (CT) ","Assemblea Territoriale Idrica Catania",1902,1902,"Catania","CT","087018","Grammichele"]
["Sicilia","Gravina di Catania","Gravina di Catania (CT) ","Assemblea Territoriale Idrica Catania",1902,1902,"Catania","CT","087019","Gravina di Catania"]
["Sicilia","Licodia Eubea","Licodia Eubea (CT) ","Assemblea Territoriale Idrica Catania",1902,1902,"Catania","CT","087020","Licodia Eubea"]
["Sicilia","Linguaglossa","Linguaglossa (CT) ","Assemblea Territoriale Idrica Catania",1902,1902,"Catania","CT","087021","Linguaglossa"]
["Sicilia","Maletto","Maletto (CT) ","Assemblea Territoriale Idrica Catania",1902,1902,"Catania","CT","087022","Maletto"]
["Sicilia","Mascali","Mascali (CT) ","Assemblea Territoriale Idrica Catania",1902,1902,"Catania","CT","087023","Mascali"]
["Sicilia","Mascalucia","Mascalucia (CT) ","Assemblea Territoriale Idrica Catania",1902,1902,"Catania","CT","087024","Mascalucia"]
["Sicilia","Militello in Val di Catania","Militello in Val di Catania (CT) ","Assemblea Territoriale Idrica Catania",1902,1902,"Catania","CT","087025","Militello in Val di Catania"]
["Sicilia","Milo","Milo (CT) ","Assemblea Territoriale Idrica Catania",1902,1902,"Catania","CT","087026","Milo"]
["Sicilia","Mineo","Mineo (CT) ","Assemblea Territoriale Idrica Catania",1902,1902,"Catania","CT","087027","Mineo"]
["Sicilia","Mirabella Imbaccari","Mirabella Imbaccari (CT) ","Assemblea Territoriale Idrica Catania",1902,1902,"Catania","CT","087028","Mirabella Imbaccari"]
["Sicilia","Misterbianco","Misterbianco (CT) ","Assemblea Territoriale Idrica Catania",1902,1902,"Catania","CT","087029","Misterbianco"]
["Sicilia","Motta Sant'Anastasia","Motta Sant'Anastasia (CT) ","Assemblea Territoriale Idrica Catania",1902,1902,"Catania","CT","087030","Motta Sant'Anastasia"]
["Sicilia","Nicolosi","Nicolosi (CT) ","Assemblea Territoriale Idrica Catania",1902,1902,"Catania","CT","087031","Nicolosi"]
["Sicilia","Palagonia","Palagonia (CT) ","Assemblea Territoriale Idrica Catania",1902,1902,"Catania","CT","087032","Palagonia"]
["Sicilia","Paternò","Paternò (CT) ","Assemblea Territoriale Idrica Catania",1902,1902,"Catania","CT","087033","Paternò"]
["Sicilia","Pedara","Pedara (CT) ","Assemblea Territoriale Idrica Catania",1902,1902,"Catania","CT","087034","Pedara"]
["Sicilia","Piedimonte Etneo","Piedimonte Etneo (CT) ","Assemblea Territoriale Idrica Catania",1902,1902,"Catania","CT","087035","Piedimonte Etneo"]
["Sicilia","Raddusa","Raddusa (CT) ","Assemblea Territoriale Idrica Catania",1902,1902,"Catania","CT","087036","Raddusa"]
["Sicilia","Ramacca","Ramacca (CT) ","Assemblea Territoriale Idrica Catania",1902,1902,"Catania","CT","087037","Ramacca"]
["Sicilia","Randazzo","Randazzo (CT) ","Assemblea Territoriale Idrica Catania",1902,1902,"Catania","CT","087038","Randazzo"]
["Sicilia","Riposto","Riposto (CT) ","Assemblea Territoriale Idrica Catania",1902,1902,"Catania","CT","087039","Riposto"]
["Sicilia","San Cono","San Cono (CT) ","Assemblea Territoriale Idrica Catania",1902,1902,"Catania","CT","087040","San Cono"]
["Sicilia","San Giovanni la Punta","San Giovanni la Punta (CT) ","Assemblea Territoriale Idrica Catania",1902,1902,"Catania","CT","087041","San Giovanni la Punta"]
["Sicilia","San Gregorio di Catania","San Gregorio di Catania (CT) ","Assemblea Territoriale Idrica Catania",1902,1902,"Catania","CT","087042","San Gregorio di Catania"]
["Sicilia","San Michele di Ganzaria","San Michele di Ganzaria (CT) ","Assemblea Territoriale Idrica Catania",1902,1902,"Catania","CT","087043","San Michele di Ganzaria"]
["Sicilia","San Pietro Clarenza","San Pietro Clarenza (CT) ","Assemblea Territoriale Idrica Catania",1902,1902,"Catania","CT","087044","San Pietro Clarenza"]
["Sicilia","Sant'Agata li Battiati","Sant'Agata li Battiati (CT) ","Assemblea Territoriale Idrica Catania",1902,1902,"Catania","CT","087045","Sant'Agata li Battiati"]
["Sicilia","Sant'Alfio","Sant'Alfio (CT) ","Assemblea Territoriale Idrica Catania",1902,1902,"Catania","CT","087046","Sant'Alfio"]
["Sicilia","Santa Maria di Licodia","Santa Maria di Licodia (CT) ","Assemblea Territoriale Idrica Catania",1902,1902,"Catania","CT","087047","Santa Maria di Licodia"]
["Sicilia","Santa Venerina","Santa Venerina (CT) ","Assemblea Territoriale Idrica Catania",1902,1902,"Catania","CT","087048","Santa Venerina"]
["Sicilia","Scordia","Scordia (CT) ","Assemblea Territoriale Idrica Catania",1902,1902,"Catania","CT","087049","Scordia"]
["Sicilia","Trecastagni","Trecastagni (CT) ","Assemblea Territoriale Idrica Catania",1902,1902,"Catania","CT","087050","Trecastagni"]
["Sicilia","Tremestieri Etneo","Tremestieri Etneo (CT) ","Assemblea Territoriale Idrica Catania",1902,1902,"Catania","CT","087051","Tremestieri Etneo"]
["Sicilia","Valverde","Valverde (CT) ","Assemblea Territoriale Idrica Catania",1902,1902,"Catania","CT","087052","Valverde"]
["Sicilia","Viagrande","Viagrande (CT) ","Assemblea Territoriale Idrica Catania",1902,1902,"Catania","CT","087053","Viagrande"]
["Sicilia","Vizzini","Vizzini (CT) ","Assemblea Territoriale Idrica Catania",1902,1902,"Catania","CT","087054","Vizzini"]
["Sicilia","Zafferana Etnea","Zafferana Etnea (CT) ","Assemblea Territoriale Idrica Catania",1902,1902,"Catania","CT","087055","Zafferana Etnea"]
["Sicilia","Mazzarrone","Mazzarrone (CT) ","Assemblea Territoriale Idrica Catania",1902,1902,"Catania","CT","087056","Mazzarrone"]
["Sicilia","Maniace","Maniace (CT) ","Assemblea Territoriale Idrica Catania",1902,1902,"Catania","CT","087057","Maniace"]
["Sicilia","Ragalna","Ragalna (CT) ","Assemblea Territoriale Idrica Catania",1902,1902,"Catania","CT","087058","Ragalna"]
["Sicilia","Acate","Acate (RG) ","ASSEMBLEA TERRITORIALE IDRICA DI RAGUSA",1904,1904,"Ragusa","RG","088001","Acate"]
["Sicilia","Chiaramonte Gulfi","Chiaramonte Gulfi (RG) ","ASSEMBLEA TERRITORIALE IDRICA DI RAGUSA",1904,1904,"Ragusa","RG","088002","Chiaramonte Gulfi"]
["Sicilia","Comiso","Comiso (RG) ","ASSEMBLEA TERRITORIALE IDRICA DI RAGUSA",1904,1904,"Ragusa","RG","088003","Comiso"]
["Sicilia","Giarratana","Giarratana (RG) ","ASSEMBLEA TERRITORIALE IDRICA DI RAGUSA",1904,1904,"Ragusa","RG","088004","Giarratana"]
["Sicilia","Ispica","Ispica (RG) ","ASSEMBLEA TERRITORIALE IDRICA DI RAGUSA",1904,1904,"Ragusa","RG","088005","Ispica"]
["Sicilia","Modica","Modica (RG) ","ASSEMBLEA TERRITORIALE IDRICA DI RAGUSA",1904,1904,"Ragusa","RG","088006","Modica"]
["Sicilia","Monterosso Almo","Monterosso Almo (RG) ","ASSEMBLEA TERRITORIALE IDRICA DI RAGUSA",1904,1904,"Ragusa","RG","088007","Monterosso Almo"]
["Sicilia","Pozzallo","Pozzallo (RG) ","ASSEMBLEA TERRITORIALE IDRICA DI RAGUSA",1904,1904,"Ragusa","RG","088008","Pozzallo"]
["Sicilia","Ragusa","Ragusa (RG) ","ASSEMBLEA TERRITORIALE IDRICA DI RAGUSA",1904,1904,"Ragusa","RG","088009","Ragusa"]
["Sicilia","Santa Croce Camerina","Santa Croce Camerina (RG) ","ASSEMBLEA TERRITORIALE IDRICA DI RAGUSA",1904,1904,"Ragusa","RG","088010","Santa Croce Camerina"]
["Sicilia","Scicli","Scicli (RG) ","ASSEMBLEA TERRITORIALE IDRICA DI RAGUSA",1904,1904,"Ragusa","RG","088011","Scicli"]
["Sicilia","Vittoria","Vittoria (RG) ","ASSEMBLEA TERRITORIALE IDRICA DI RAGUSA",1904,1904,"Ragusa","RG","088012","Vittoria"]
["Sicilia","Augusta","Augusta (SR) ","Assemblea Territoriale Idrica di Siracusa",1908,1908,"Siracusa","SR","089001","Augusta"]
["Sicilia","Avola","Avola (SR) ","Assemblea Territoriale Idrica di Siracusa",1908,1908,"Siracusa","SR","089002","Avola"]
["Sicilia","Buccheri","Buccheri (SR) ","Assemblea Territoriale Idrica di Siracusa",1908,1908,"Siracusa","SR","089003","Buccheri"]
["Sicilia","Buscemi","Buscemi (SR) ","Assemblea Territoriale Idrica di Siracusa",1908,1908,"Siracusa","SR","089004","Buscemi"]
["Sicilia","Canicattini Bagni","Canicattini Bagni (SR) ","Assemblea Territoriale Idrica di Siracusa",1908,1908,"Siracusa","SR","089005","Canicattini Bagni"]
["Sicilia","Carlentini","Carlentini (SR) ","Assemblea Territoriale Idrica di Siracusa",1908,1908,"Siracusa","SR","089006","Carlentini"]
["Sicilia","Cassaro","Cassaro (SR) ","Assemblea Territoriale Idrica di Siracusa",1908,1908,"Siracusa","SR","089007","Cassaro"]
["Sicilia","Ferla","Ferla (SR) ","Assemblea Territoriale Idrica di Siracusa",1908,1908,"Siracusa","SR","089008","Ferla"]
["Sicilia","Floridia","Floridia (SR) ","Assemblea Territoriale Idrica di Siracusa",1908,1908,"Siracusa","SR","089009","Floridia"]
["Sicilia","Francofonte","Francofonte (SR) ","Assemblea Territoriale Idrica di Siracusa",1908,1908,"Siracusa","SR","089010","Francofonte"]
["Sicilia","Lentini","Lentini (SR) ","Assemblea Territoriale Idrica di Siracusa",1908,1908,"Siracusa","SR","089011","Lentini"]
["Sicilia","Melilli","Melilli (SR) ","Assemblea Territoriale Idrica di Siracusa",1908,1908,"Siracusa","SR","089012","Melilli"]
["Sicilia","Noto","Noto (SR) ","Assemblea Territoriale Idrica di Siracusa",1908,1908,"Siracusa","SR","089013","Noto"]
["Sicilia","Pachino","Pachino (SR) ","Assemblea Territoriale Idrica di Siracusa",1908,1908,"Siracusa","SR","089014","Pachino"]
["Sicilia","Palazzolo Acreide","Palazzolo Acreide (SR) ","Assemblea Territoriale Idrica di Siracusa",1908,1908,"Siracusa","SR","089015","Palazzolo Acreide"]
["Sicilia","Rosolini","Rosolini (SR) ","Assemblea Territoriale Idrica di Siracusa",1908,1908,"Siracusa","SR","089016","Rosolini"]
["Sicilia","Siracusa","Siracusa (SR) ","Assemblea Territoriale Idrica di Siracusa",1908,1908,"Siracusa","SR","089017","Siracusa"]
["Sicilia","Solarino","Solarino (SR) ","Assemblea Territoriale Idrica di Siracusa",1908,1908,"Siracusa","SR","089018","Solarino"]
["Sicilia","Sortino","Sortino (SR) ","Assemblea Territoriale Idrica di Siracusa",1908,1908,"Siracusa","SR","089019","Sortino"]
["Sicilia","Portopalo di Capo Passero","Portopalo di Capo Passero (SR) ","Assemblea Territoriale Idrica di Siracusa",1908,1908,"Siracusa","SR","089020","Portopalo di Capo Passero"]
["Sicilia","Priolo Gargallo","Priolo Gargallo (SR) ","Assemblea Territoriale Idrica di Siracusa",1908,1908,"Siracusa","SR","089021","Priolo Gargallo"]
["Friuli-Venezia Giulia","Andreis","Andreis (PN) ","AUTORITA' UNICA PER I SERVIZI IDRICI E I RIFIUTI",605,605,"Pordenone","PN","093001","Andreis"]
["Friuli-Venezia Giulia","Arba","Arba (PN) ","AUTORITA' UNICA PER I SERVIZI IDRICI E I RIFIUTI",605,605,"Pordenone","PN","093002","Arba"]
["Friuli-Venezia Giulia","Aviano","Aviano (PN) ","AUTORITA' UNICA PER I SERVIZI IDRICI E I RIFIUTI",605,605,"Pordenone","PN","093004","Aviano"]
["Friuli-Venezia Giulia","Azzano Decimo","Azzano Decimo (PN) ","AUTORITA' UNICA PER I SERVIZI IDRICI E I RIFIUTI",605,605,"Pordenone","PN","093005","Azzano Decimo"]
["Friuli-Venezia Giulia","Barcis","Barcis (PN) ","AUTORITA' UNICA PER I SERVIZI IDRICI E I RIFIUTI",605,605,"Pordenone","PN","093006","Barcis"]
["Friuli-Venezia Giulia","Brugnera","Brugnera (PN) ","AUTORITA' UNICA PER I SERVIZI IDRICI E I RIFIUTI",605,605,"Pordenone","PN","093007","Brugnera"]
["Friuli-Venezia Giulia","Budoia","Budoia (PN) ","AUTORITA' UNICA PER I SERVIZI IDRICI E I RIFIUTI",605,605,"Pordenone","PN","093008","Budoia"]
["Friuli-Venezia Giulia","Caneva","Caneva (PN) ","AUTORITA' UNICA PER I SERVIZI IDRICI E I RIFIUTI",605,605,"Pordenone","PN","093009","Caneva"]
["Friuli-Venezia Giulia","Casarsa della Delizia","Casarsa della Delizia (PN) ","AUTORITA' UNICA PER I SERVIZI IDRICI E I RIFIUTI",605,605,"Pordenone","PN","093010","Casarsa della Delizia"]
["Friuli-Venezia Giulia","Castelnovo del Friuli","Castelnovo del Friuli (PN) ","AUTORITA' UNICA PER I SERVIZI IDRICI E I RIFIUTI",605,605,"Pordenone","PN","093011","Castelnovo del Friuli"]
["Friuli-Venezia Giulia","Cavasso Nuovo","Cavasso Nuovo (PN) ","AUTORITA' UNICA PER I SERVIZI IDRICI E I RIFIUTI",605,605,"Pordenone","PN","093012","Cavasso Nuovo"]
["Friuli-Venezia Giulia","Chions","Chions (PN) ","AUTORITA' UNICA PER I SERVIZI IDRICI E I RIFIUTI",605,605,"Pordenone","PN","093013","Chions"]
["Friuli-Venezia Giulia","Cimolais","Cimolais (PN) ","AUTORITA' UNICA PER I SERVIZI IDRICI E I RIFIUTI",605,605,"Pordenone","PN","093014","Cimolais"]
["Friuli-Venezia Giulia","Claut","Claut (PN) ","AUTORITA' UNICA PER I SERVIZI IDRICI E I RIFIUTI",605,605,"Pordenone","PN","093015","Claut"]
["Friuli-Venezia Giulia","Clauzetto","Clauzetto (PN) ","AUTORITA' UNICA PER I SERVIZI IDRICI E I RIFIUTI",605,605,"Pordenone","PN","093016","Clauzetto"]
["Friuli-Venezia Giulia","Cordenons","Cordenons (PN) ","AUTORITA' UNICA PER I SERVIZI IDRICI E I RIFIUTI",605,605,"Pordenone","PN","093017","Cordenons"]
["Friuli-Venezia Giulia","Cordovado","Cordovado (PN) ","AUTORITA' UNICA PER I SERVIZI IDRICI E I RIFIUTI",605,605,"Pordenone","PN","093018","Cordovado"]
["Friuli-Venezia Giulia","Erto e Casso","Erto e Casso (PN) ","AUTORITA' UNICA PER I SERVIZI IDRICI E I RIFIUTI",605,605,"Pordenone","PN","093019","Erto e Casso"]
["Friuli-Venezia Giulia","Fanna","Fanna (PN) ","AUTORITA' UNICA PER I SERVIZI IDRICI E I RIFIUTI",605,605,"Pordenone","PN","093020","Fanna"]
["Friuli-Venezia Giulia","Fiume Veneto","Fiume Veneto (PN) ","AUTORITA' UNICA PER I SERVIZI IDRICI E I RIFIUTI",605,605,"Pordenone","PN","093021","Fiume Veneto"]
["Friuli-Venezia Giulia","Fontanafredda","Fontanafredda (PN) ","AUTORITA' UNICA PER I SERVIZI IDRICI E I RIFIUTI",605,605,"Pordenone","PN","093022","Fontanafredda"]
["Friuli-Venezia Giulia","Frisanco","Frisanco (PN) ","AUTORITA' UNICA PER I SERVIZI IDRICI E I RIFIUTI",605,605,"Pordenone","PN","093024","Frisanco"]
["Friuli-Venezia Giulia","Maniago","Maniago (PN) ","AUTORITA' UNICA PER I SERVIZI IDRICI E I RIFIUTI",605,605,"Pordenone","PN","093025","Maniago"]
["Friuli-Venezia Giulia","Meduno","Meduno (PN) ","AUTORITA' UNICA PER I SERVIZI IDRICI E I RIFIUTI",605,605,"Pordenone","PN","093026","Meduno"]
["Friuli-Venezia Giulia","Montereale Valcellina","Montereale Valcellina (PN) ","AUTORITA' UNICA PER I SERVIZI IDRICI E I RIFIUTI",605,605,"Pordenone","PN","093027","Montereale Valcellina"]
["Friuli-Venezia Giulia","Morsano al Tagliamento","Morsano al Tagliamento (PN) ","AUTORITA' UNICA PER I SERVIZI IDRICI E I RIFIUTI",605,605,"Pordenone","PN","093028","Morsano al Tagliamento"]
["Friuli-Venezia Giulia","Pasiano di Pordenone","Pasiano di Pordenone (PN) ","AUTORITA' UNICA PER I SERVIZI IDRICI E I RIFIUTI",605,605,"Pordenone","PN","093029","Pasiano di Pordenone"]
["Friuli-Venezia Giulia","Pinzano al Tagliamento","Pinzano al Tagliamento (PN) ","AUTORITA' UNICA PER I SERVIZI IDRICI E I RIFIUTI",605,605,"Pordenone","PN","093030","Pinzano al Tagliamento"]
["Friuli-Venezia Giulia","Polcenigo","Polcenigo (PN) ","AUTORITA' UNICA PER I SERVIZI IDRICI E I RIFIUTI",605,605,"Pordenone","PN","093031","Polcenigo"]
["Friuli-Venezia Giulia","Porcia","Porcia (PN) ","AUTORITA' UNICA PER I SERVIZI IDRICI E I RIFIUTI",605,605,"Pordenone","PN","093032","Porcia"]
["Friuli-Venezia Giulia","Pordenone","Pordenone (PN) ","AUTORITA' UNICA PER I SERVIZI IDRICI E I RIFIUTI",605,605,"Pordenone","PN","093033","Pordenone"]
["Friuli-Venezia Giulia","Prata di Pordenone","Prata di Pordenone (PN) ","AUTORITA' UNICA PER I SERVIZI IDRICI E I RIFIUTI",605,605,"Pordenone","PN","093034","Prata di Pordenone"]
["Friuli-Venezia Giulia","Pravisdomini","Pravisdomini (PN) ","AUTORITA' UNICA PER I SERVIZI IDRICI E I RIFIUTI",605,605,"Pordenone","PN","093035","Pravisdomini"]
["Friuli-Venezia Giulia","Roveredo in Piano","Roveredo in Piano (PN) ","AUTORITA' UNICA PER I SERVIZI IDRICI E I RIFIUTI",605,605,"Pordenone","PN","093036","Roveredo in Piano"]
["Friuli-Venezia Giulia","Sacile","Sacile (PN) ","AUTORITA' UNICA PER I SERVIZI IDRICI E I RIFIUTI",605,605,"Pordenone","PN","093037","Sacile"]
["Friuli-Venezia Giulia","San Giorgio della Richinvelda","San Giorgio della Richinvelda (PN) ","AUTORITA' UNICA PER I SERVIZI IDRICI E I RIFIUTI",605,605,"Pordenone","PN","093038","San Giorgio della Richinvelda"]
["Friuli-Venezia Giulia","San Martino al Tagliamento","San Martino al Tagliamento (PN) ","AUTORITA' UNICA PER I SERVIZI IDRICI E I RIFIUTI",605,605,"Pordenone","PN","093039","San Martino al Tagliamento"]
["Friuli-Venezia Giulia","San Quirino","San Quirino (PN) ","AUTORITA' UNICA PER I SERVIZI IDRICI E I RIFIUTI",605,605,"Pordenone","PN","093040","San Quirino"]
["Friuli-Venezia Giulia","San Vito al Tagliamento","San Vito al Tagliamento (PN) ","AUTORITA' UNICA PER I SERVIZI IDRICI E I RIFIUTI",605,605,"Pordenone","PN","093041","San Vito al Tagliamento"]
["Friuli-Venezia Giulia","Sequals","Sequals (PN) ","AUTORITA' UNICA PER I SERVIZI IDRICI E I RIFIUTI",605,605,"Pordenone","PN","093042","Sequals"]
["Friuli-Venezia Giulia","Sesto al Reghena","Sesto al Reghena (PN) ","AUTORITA' UNICA PER I SERVIZI IDRICI E I RIFIUTI",605,605,"Pordenone","PN","093043","Sesto al Reghena"]
["Friuli-Venezia Giulia","Spilimbergo","Spilimbergo (PN) ","AUTORITA' UNICA PER I SERVIZI IDRICI E I RIFIUTI",605,605,"Pordenone","PN","093044","Spilimbergo"]
["Friuli-Venezia Giulia","Tramonti di Sopra","Tramonti di Sopra (PN) ","AUTORITA' UNICA PER I SERVIZI IDRICI E I RIFIUTI",605,605,"Pordenone","PN","093045","Tramonti di Sopra"]
["Friuli-Venezia Giulia","Tramonti di Sotto","Tramonti di Sotto (PN) ","AUTORITA' UNICA PER I SERVIZI IDRICI E I RIFIUTI",605,605,"Pordenone","PN","093046","Tramonti di Sotto"]
["Friuli-Venezia Giulia","Travesio","Travesio (PN) ","AUTORITA' UNICA PER I SERVIZI IDRICI E I RIFIUTI",605,605,"Pordenone","PN","093047","Travesio"]
["Friuli-Venezia Giulia","Vito d'Asio","Vito d'Asio (PN) ","AUTORITA' UNICA PER I SERVIZI IDRICI E I RIFIUTI",605,605,"Pordenone","PN","093049","Vito d'Asio"]
["Friuli-Venezia Giulia","Vivaro","Vivaro (PN) ","AUTORITA' UNICA PER I SERVIZI IDRICI E I RIFIUTI",605,605,"Pordenone","PN","093050","Vivaro"]
["Friuli-Venezia Giulia","Zoppola","Zoppola (PN) ","AUTORITA' UNICA PER I SERVIZI IDRICI E I RIFIUTI",605,605,"Pordenone","PN","093051","Zoppola"]
["Friuli-Venezia Giulia","Vajont","Vajont (PN) ","AUTORITA' UNICA PER I SERVIZI IDRICI E I RIFIUTI",605,605,"Pordenone","PN","093052","Vajont"]
["Friuli-Venezia Giulia","Valvasone Arzene","Valvasone Arzene (PN) ","AUTORITA' UNICA PER I SERVIZI IDRICI E I RIFIUTI",605,605,"Pordenone","PN","093053","Valvasone Arzene"]
["Molise","Acquaviva d'Isernia","Acquaviva d'Isernia (IS) ","EGAM-Ente di Governo dell'Ambito del Molise per il servizio idrico integrato",1401,1401,"Isernia","IS","094001","Acquaviva d'Isernia"]
["Molise","Agnone","Agnone (IS) ","EGAM-Ente di Governo dell'Ambito del Molise per il servizio idrico integrato",1401,1401,"Isernia","IS","094002","Agnone"]
["Molise","Bagnoli del Trigno","Bagnoli del Trigno (IS) ","EGAM-Ente di Governo dell'Ambito del Molise per il servizio idrico integrato",1401,1401,"Isernia","IS","094003","Bagnoli del Trigno"]
["Molise","Belmonte del Sannio","Belmonte del Sannio (IS) ","EGAM-Ente di Governo dell'Ambito del Molise per il servizio idrico integrato",1401,1401,"Isernia","IS","094004","Belmonte del Sannio"]
["Molise","Cantalupo nel Sannio","Cantalupo nel Sannio (IS) ","EGAM-Ente di Governo dell'Ambito del Molise per il servizio idrico integrato",1401,1401,"Isernia","IS","094005","Cantalupo nel Sannio"]
["Molise","Capracotta","Capracotta (IS) ","EGAM-Ente di Governo dell'Ambito del Molise per il servizio idrico integrato",1401,1401,"Isernia","IS","094006","Capracotta"]
["Molise","Carovilli","Carovilli (IS) ","EGAM-Ente di Governo dell'Ambito del Molise per il servizio idrico integrato",1401,1401,"Isernia","IS","094007","Carovilli"]
["Molise","Carpinone","Carpinone (IS) ","EGAM-Ente di Governo dell'Ambito del Molise per il servizio idrico integrato",1401,1401,"Isernia","IS","094008","Carpinone"]
["Molise","Castel del Giudice","Castel del Giudice (IS) ","EGAM-Ente di Governo dell'Ambito del Molise per il servizio idrico integrato",1401,1401,"Isernia","IS","094009","Castel del Giudice"]
["Molise","Castelpetroso","Castelpetroso (IS) ","EGAM-Ente di Governo dell'Ambito del Molise per il servizio idrico integrato",1401,1401,"Isernia","IS","094010","Castelpetroso"]
["Molise","Castelpizzuto","Castelpizzuto (IS) ","EGAM-Ente di Governo dell'Ambito del Molise per il servizio idrico integrato",1401,1401,"Isernia","IS","094011","Castelpizzuto"]
["Molise","Castel San Vincenzo","Castel San Vincenzo (IS) ","EGAM-Ente di Governo dell'Ambito del Molise per il servizio idrico integrato",1401,1401,"Isernia","IS","094012","Castel San Vincenzo"]
["Molise","Castelverrino","Castelverrino (IS) ","EGAM-Ente di Governo dell'Ambito del Molise per il servizio idrico integrato",1401,1401,"Isernia","IS","094013","Castelverrino"]
["Molise","Cerro al Volturno","Cerro al Volturno (IS) ","EGAM-Ente di Governo dell'Ambito del Molise per il servizio idrico integrato",1401,1401,"Isernia","IS","094014","Cerro al Volturno"]
["Molise","Chiauci","Chiauci (IS) ","EGAM-Ente di Governo dell'Ambito del Molise per il servizio idrico integrato",1401,1401,"Isernia","IS","094015","Chiauci"]
["Molise","Civitanova del Sannio","Civitanova del Sannio (IS) ","EGAM-Ente di Governo dell'Ambito del Molise per il servizio idrico integrato",1401,1401,"Isernia","IS","094016","Civitanova del Sannio"]
["Molise","Colli a Volturno","Colli a Volturno (IS) ","EGAM-Ente di Governo dell'Ambito del Molise per il servizio idrico integrato",1401,1401,"Isernia","IS","094017","Colli a Volturno"]
["Molise","Conca Casale","Conca Casale (IS) ","EGAM-Ente di Governo dell'Ambito del Molise per il servizio idrico integrato",1401,1401,"Isernia","IS","094018","Conca Casale"]
["Molise","Filignano","Filignano (IS) ","EGAM-Ente di Governo dell'Ambito del Molise per il servizio idrico integrato",1401,1401,"Isernia","IS","094019","Filignano"]
["Molise","Forlì del Sannio","Forlì del Sannio (IS) ","EGAM-Ente di Governo dell'Ambito del Molise per il servizio idrico integrato",1401,1401,"Isernia","IS","094020","Forlì del Sannio"]
["Molise","Fornelli","Fornelli (IS) ","EGAM-Ente di Governo dell'Ambito del Molise per il servizio idrico integrato",1401,1401,"Isernia","IS","094021","Fornelli"]
["Molise","Frosolone","Frosolone (IS) ","EGAM-Ente di Governo dell'Ambito del Molise per il servizio idrico integrato",1401,1401,"Isernia","IS","094022","Frosolone"]
["Molise","Isernia","Isernia (IS) ","EGAM-Ente di Governo dell'Ambito del Molise per il servizio idrico integrato",1401,1401,"Isernia","IS","094023","Isernia"]
["Molise","Longano","Longano (IS) ","EGAM-Ente di Governo dell'Ambito del Molise per il servizio idrico integrato",1401,1401,"Isernia","IS","094024","Longano"]
["Molise","Macchia d'Isernia","Macchia d'Isernia (IS) ","EGAM-Ente di Governo dell'Ambito del Molise per il servizio idrico integrato",1401,1401,"Isernia","IS","094025","Macchia d'Isernia"]
["Molise","Macchiagodena","Macchiagodena (IS) ","EGAM-Ente di Governo dell'Ambito del Molise per il servizio idrico integrato",1401,1401,"Isernia","IS","094026","Macchiagodena"]
["Molise","Miranda","Miranda (IS) ","EGAM-Ente di Governo dell'Ambito del Molise per il servizio idrico integrato",1401,1401,"Isernia","IS","094027","Miranda"]
["Molise","Montaquila","Montaquila (IS) ","EGAM-Ente di Governo dell'Ambito del Molise per il servizio idrico integrato",1401,1401,"Isernia","IS","094028","Montaquila"]
["Molise","Montenero Val Cocchiara","Montenero Val Cocchiara (IS) ","EGAM-Ente di Governo dell'Ambito del Molise per il servizio idrico integrato",1401,1401,"Isernia","IS","094029","Montenero Val Cocchiara"]
["Molise","Monteroduni","Monteroduni (IS) ","EGAM-Ente di Governo dell'Ambito del Molise per il servizio idrico integrato",1401,1401,"Isernia","IS","094030","Monteroduni"]
["Molise","Pesche","Pesche (IS) ","EGAM-Ente di Governo dell'Ambito del Molise per il servizio idrico integrato",1401,1401,"Isernia","IS","094031","Pesche"]
["Molise","Pescolanciano","Pescolanciano (IS) ","EGAM-Ente di Governo dell'Ambito del Molise per il servizio idrico integrato",1401,1401,"Isernia","IS","094032","Pescolanciano"]
["Molise","Pescopennataro","Pescopennataro (IS) ","EGAM-Ente di Governo dell'Ambito del Molise per il servizio idrico integrato",1401,1401,"Isernia","IS","094033","Pescopennataro"]
["Molise","Pettoranello del Molise","Pettoranello del Molise (IS) ","EGAM-Ente di Governo dell'Ambito del Molise per il servizio idrico integrato",1401,1401,"Isernia","IS","094034","Pettoranello del Molise"]
["Molise","Pietrabbondante","Pietrabbondante (IS) ","EGAM-Ente di Governo dell'Ambito del Molise per il servizio idrico integrato",1401,1401,"Isernia","IS","094035","Pietrabbondante"]
["Molise","Pizzone","Pizzone (IS) ","EGAM-Ente di Governo dell'Ambito del Molise per il servizio idrico integrato",1401,1401,"Isernia","IS","094036","Pizzone"]
["Molise","Poggio Sannita","Poggio Sannita (IS) ","EGAM-Ente di Governo dell'Ambito del Molise per il servizio idrico integrato",1401,1401,"Isernia","IS","094037","Poggio Sannita"]
["Molise","Pozzilli","Pozzilli (IS) ","EGAM-Ente di Governo dell'Ambito del Molise per il servizio idrico integrato",1401,1401,"Isernia","IS","094038","Pozzilli"]
["Molise","Rionero Sannitico","Rionero Sannitico (IS) ","EGAM-Ente di Governo dell'Ambito del Molise per il servizio idrico integrato",1401,1401,"Isernia","IS","094039","Rionero Sannitico"]
["Molise","Roccamandolfi","Roccamandolfi (IS) ","EGAM-Ente di Governo dell'Ambito del Molise per il servizio idrico integrato",1401,1401,"Isernia","IS","094040","Roccamandolfi"]
["Molise","Roccasicura","Roccasicura (IS) ","EGAM-Ente di Governo dell'Ambito del Molise per il servizio idrico integrato",1401,1401,"Isernia","IS","094041","Roccasicura"]
["Molise","Rocchetta a Volturno","Rocchetta a Volturno (IS) ","EGAM-Ente di Governo dell'Ambito del Molise per il servizio idrico integrato",1401,1401,"Isernia","IS","094042","Rocchetta a Volturno"]
["Molise","San Pietro Avellana","San Pietro Avellana (IS) ","EGAM-Ente di Governo dell'Ambito del Molise per il servizio idrico integrato",1401,1401,"Isernia","IS","094043","San Pietro Avellana"]
["Molise","Sant'Agapito","Sant'Agapito (IS) ","EGAM-Ente di Governo dell'Ambito del Molise per il servizio idrico integrato",1401,1401,"Isernia","IS","094044","Sant'Agapito"]
["Molise","Santa Maria del Molise","Santa Maria del Molise (IS) ","EGAM-Ente di Governo dell'Ambito del Molise per il servizio idrico integrato",1401,1401,"Isernia","IS","094045","Santa Maria del Molise"]
["Molise","Sant'Angelo del Pesco","Sant'Angelo del Pesco (IS) ","EGAM-Ente di Governo dell'Ambito del Molise per il servizio idrico integrato",1401,1401,"Isernia","IS","094046","Sant'Angelo del Pesco"]
["Molise","Sant'Elena Sannita","Sant'Elena Sannita (IS) ","EGAM-Ente di Governo dell'Ambito del Molise per il servizio idrico integrato",1401,1401,"Isernia","IS","094047","Sant'Elena Sannita"]
["Molise","Scapoli","Scapoli (IS) ","EGAM-Ente di Governo dell'Ambito del Molise per il servizio idrico integrato",1401,1401,"Isernia","IS","094048","Scapoli"]
["Molise","Sessano del Molise","Sessano del Molise (IS) ","EGAM-Ente di Governo dell'Ambito del Molise per il servizio idrico integrato",1401,1401,"Isernia","IS","094049","Sessano del Molise"]
["Molise","Sesto Campano","Sesto Campano (IS) ","EGAM-Ente di Governo dell'Ambito del Molise per il servizio idrico integrato",1401,1401,"Isernia","IS","094050","Sesto Campano"]
["Molise","Vastogirardi","Vastogirardi (IS) ","EGAM-Ente di Governo dell'Ambito del Molise per il servizio idrico integrato",1401,1401,"Isernia","IS","094051","Vastogirardi"]
["Molise","Venafro","Venafro (IS) ","EGAM-Ente di Governo dell'Ambito del Molise per il servizio idrico integrato",1401,1401,"Isernia","IS","094052","Venafro"]
["Piemonte","Ailoche","Ailoche (BI) ","ATO 2 Biellese, Vercellese e Casalese",102,102,"Biella","BI","096001","Ailoche"]
["Piemonte","Andorno Micca","Andorno Micca (BI) ","ATO 2 Biellese, Vercellese e Casalese",102,102,"Biella","BI","096002","Andorno Micca"]
["Piemonte","Benna","Benna (BI) ","ATO 2 Biellese, Vercellese e Casalese",102,102,"Biella","BI","096003","Benna"]
["Piemonte","Biella","Biella (BI) ","ATO 2 Biellese, Vercellese e Casalese",102,102,"Biella","BI","096004","Biella"]
["Piemonte","Bioglio","Bioglio (BI) ","ATO 2 Biellese, Vercellese e Casalese",102,102,"Biella","BI","096005","Bioglio"]
["Piemonte","Borriana","Borriana (BI) ","ATO 2 Biellese, Vercellese e Casalese",102,102,"Biella","BI","096006","Borriana"]
["Piemonte","Brusnengo","Brusnengo (BI) ","ATO 2 Biellese, Vercellese e Casalese",102,102,"Biella","BI","096007","Brusnengo"]
["Piemonte","Callabiana","Callabiana (BI) ","ATO 2 Biellese, Vercellese e Casalese",102,102,"Biella","BI","096008","Callabiana"]
["Piemonte","Camandona","Camandona (BI) ","ATO 2 Biellese, Vercellese e Casalese",102,102,"Biella","BI","096009","Camandona"]
["Piemonte","Camburzano","Camburzano (BI) ","ATO 2 Biellese, Vercellese e Casalese",102,102,"Biella","BI","096010","Camburzano"]
["Piemonte","Candelo","Candelo (BI) ","ATO 2 Biellese, Vercellese e Casalese",102,102,"Biella","BI","096012","Candelo"]
["Piemonte","Caprile","Caprile (BI) ","ATO 2 Biellese, Vercellese e Casalese",102,102,"Biella","BI","096013","Caprile"]
["Piemonte","Casapinta","Casapinta (BI) ","ATO 2 Biellese, Vercellese e Casalese",102,102,"Biella","BI","096014","Casapinta"]
["Piemonte","Castelletto Cervo","Castelletto Cervo (BI) ","ATO 2 Biellese, Vercellese e Casalese",102,102,"Biella","BI","096015","Castelletto Cervo"]
["Piemonte","Cavaglià","Cavaglià (BI) ","ATO 2 Biellese, Vercellese e Casalese",102,102,"Biella","BI","096016","Cavaglià"]
["Piemonte","Cerrione","Cerrione (BI) ","ATO 2 Biellese, Vercellese e Casalese",102,102,"Biella","BI","096018","Cerrione"]
["Piemonte","Coggiola","Coggiola (BI) ","ATO 2 Biellese, Vercellese e Casalese",102,102,"Biella","BI","096019","Coggiola"]
["Piemonte","Cossato","Cossato (BI) ","ATO 2 Biellese, Vercellese e Casalese",102,102,"Biella","BI","096020","Cossato"]
["Piemonte","Crevacuore","Crevacuore (BI) ","ATO 2 Biellese, Vercellese e Casalese",102,102,"Biella","BI","096021","Crevacuore"]
["Piemonte","Curino","Curino (BI) ","ATO 2 Biellese, Vercellese e Casalese",102,102,"Biella","BI","096023","Curino"]
["Piemonte","Donato","Donato (BI) ","ATO 2 Biellese, Vercellese e Casalese",102,102,"Biella","BI","096024","Donato"]
["Piemonte","Dorzano","Dorzano (BI) ","ATO 2 Biellese, Vercellese e Casalese",102,102,"Biella","BI","096025","Dorzano"]
["Piemonte","Gaglianico","Gaglianico (BI) ","ATO 2 Biellese, Vercellese e Casalese",102,102,"Biella","BI","096026","Gaglianico"]
["Piemonte","Gifflenga","Gifflenga (BI) ","ATO 2 Biellese, Vercellese e Casalese",102,102,"Biella","BI","096027","Gifflenga"]
["Piemonte","Graglia","Graglia (BI) ","ATO 2 Biellese, Vercellese e Casalese",102,102,"Biella","BI","096028","Graglia"]
["Piemonte","Magnano","Magnano (BI) ","ATO 2 Biellese, Vercellese e Casalese",102,102,"Biella","BI","096030","Magnano"]
["Piemonte","Massazza","Massazza (BI) ","ATO 2 Biellese, Vercellese e Casalese",102,102,"Biella","BI","096031","Massazza"]
["Piemonte","Masserano","Masserano (BI) ","ATO 2 Biellese, Vercellese e Casalese",102,102,"Biella","BI","096032","Masserano"]
["Piemonte","Mezzana Mortigliengo","Mezzana Mortigliengo (BI) ","ATO 2 Biellese, Vercellese e Casalese",102,102,"Biella","BI","096033","Mezzana Mortigliengo"]
["Piemonte","Miagliano","Miagliano (BI) ","ATO 2 Biellese, Vercellese e Casalese",102,102,"Biella","BI","096034","Miagliano"]
["Piemonte","Mongrando","Mongrando (BI) ","ATO 2 Biellese, Vercellese e Casalese",102,102,"Biella","BI","096035","Mongrando"]
["Piemonte","Mottalciata","Mottalciata (BI) ","ATO 2 Biellese, Vercellese e Casalese",102,102,"Biella","BI","096037","Mottalciata"]
["Piemonte","Muzzano","Muzzano (BI) ","ATO 2 Biellese, Vercellese e Casalese",102,102,"Biella","BI","096038","Muzzano"]
["Piemonte","Netro","Netro (BI) ","ATO 2 Biellese, Vercellese e Casalese",102,102,"Biella","BI","096039","Netro"]
["Piemonte","Occhieppo Inferiore","Occhieppo Inferiore (BI) ","ATO 2 Biellese, Vercellese e Casalese",102,102,"Biella","BI","096040","Occhieppo Inferiore"]
["Piemonte","Occhieppo Superiore","Occhieppo Superiore (BI) ","ATO 2 Biellese, Vercellese e Casalese",102,102,"Biella","BI","096041","Occhieppo Superiore"]
["Piemonte","Pettinengo","Pettinengo (BI) ","ATO 2 Biellese, Vercellese e Casalese",102,102,"Biella","BI","096042","Pettinengo"]
["Piemonte","Piatto","Piatto (BI) ","ATO 2 Biellese, Vercellese e Casalese",102,102,"Biella","BI","096043","Piatto"]
["Piemonte","Piedicavallo","Piedicavallo (BI) ","ATO 2 Biellese, Vercellese e Casalese",102,102,"Biella","BI","096044","Piedicavallo"]
["Piemonte","Pollone","Pollone (BI) ","ATO 2 Biellese, Vercellese e Casalese",102,102,"Biella","BI","096046","Pollone"]
["Piemonte","Ponderano","Ponderano (BI) ","ATO 2 Biellese, Vercellese e Casalese",102,102,"Biella","BI","096047","Ponderano"]
["Piemonte","Portula","Portula (BI) ","ATO 2 Biellese, Vercellese e Casalese",102,102,"Biella","BI","096048","Portula"]
["Piemonte","Pralungo","Pralungo (BI) ","ATO 2 Biellese, Vercellese e Casalese",102,102,"Biella","BI","096049","Pralungo"]
["Piemonte","Pray","Pray (BI) ","ATO 2 Biellese, Vercellese e Casalese",102,102,"Biella","BI","096050","Pray"]
["Piemonte","Ronco Biellese","Ronco Biellese (BI) ","ATO 2 Biellese, Vercellese e Casalese",102,102,"Biella","BI","096053","Ronco Biellese"]
["Piemonte","Roppolo","Roppolo (BI) ","ATO 2 Biellese, Vercellese e Casalese",102,102,"Biella","BI","096054","Roppolo"]
["Piemonte","Rosazza","Rosazza (BI) ","ATO 2 Biellese, Vercellese e Casalese",102,102,"Biella","BI","096055","Rosazza"]
["Piemonte","Sagliano Micca","Sagliano Micca (BI) ","ATO 2 Biellese, Vercellese e Casalese",102,102,"Biella","BI","096056","Sagliano Micca"]
["Piemonte","Sala Biellese","Sala Biellese (BI) ","ATO 2 Biellese, Vercellese e Casalese",102,102,"Biella","BI","096057","Sala Biellese"]
["Piemonte","Salussola","Salussola (BI) ","ATO 2 Biellese, Vercellese e Casalese",102,102,"Biella","BI","096058","Salussola"]
["Piemonte","Sandigliano","Sandigliano (BI) ","ATO 2 Biellese, Vercellese e Casalese",102,102,"Biella","BI","096059","Sandigliano"]
["Piemonte","Sordevolo","Sordevolo (BI) ","ATO 2 Biellese, Vercellese e Casalese",102,102,"Biella","BI","096063","Sordevolo"]
["Piemonte","Sostegno","Sostegno (BI) ","ATO 2 Biellese, Vercellese e Casalese",102,102,"Biella","BI","096064","Sostegno"]
["Piemonte","Strona","Strona (BI) ","ATO 2 Biellese, Vercellese e Casalese",102,102,"Biella","BI","096065","Strona"]
["Piemonte","Tavigliano","Tavigliano (BI) ","ATO 2 Biellese, Vercellese e Casalese",102,102,"Biella","BI","096066","Tavigliano"]
["Piemonte","Ternengo","Ternengo (BI) ","ATO 2 Biellese, Vercellese e Casalese",102,102,"Biella","BI","096067","Ternengo"]
["Piemonte","Tollegno","Tollegno (BI) ","ATO 2 Biellese, Vercellese e Casalese",102,102,"Biella","BI","096068","Tollegno"]
["Piemonte","Torrazzo","Torrazzo (BI) ","ATO 2 Biellese, Vercellese e Casalese",102,102,"Biella","BI","096069","Torrazzo"]
["Piemonte","Valdengo","Valdengo (BI) ","ATO 2 Biellese, Vercellese e Casalese",102,102,"Biella","BI","096071","Valdengo"]
["Piemonte","Vallanzengo","Vallanzengo (BI) ","ATO 2 Biellese, Vercellese e Casalese",102,102,"Biella","BI","096072","Vallanzengo"]
["Piemonte","Valle San Nicolao","Valle San Nicolao (BI) ","ATO 2 Biellese, Vercellese e Casalese",102,102,"Biella","BI","096074","Valle San Nicolao"]
["Piemonte","Veglio","Veglio (BI) ","ATO 2 Biellese, Vercellese e Casalese",102,102,"Biella","BI","096075","Veglio"]
["Piemonte","Verrone","Verrone (BI) ","ATO 2 Biellese, Vercellese e Casalese",102,102,"Biella","BI","096076","Verrone"]
["Piemonte","Vigliano Biellese","Vigliano Biellese (BI) ","ATO 2 Biellese, Vercellese e Casalese",102,102,"Biella","BI","096077","Vigliano Biellese"]
["Piemonte","Villa del Bosco","Villa del Bosco (BI) ","ATO 2 Biellese, Vercellese e Casalese",102,102,"Biella","BI","096078","Villa del Bosco"]
["Piemonte","Villanova Biellese","Villanova Biellese (BI) ","ATO 2 Biellese, Vercellese e Casalese",102,102,"Biella","BI","096079","Villanova Biellese"]
["Piemonte","Viverone","Viverone (BI) ","ATO 2 Biellese, Vercellese e Casalese",102,102,"Biella","BI","096080","Viverone"]
["Piemonte","Zimone","Zimone (BI) ","ATO 2 Biellese, Vercellese e Casalese",102,102,"Biella","BI","096081","Zimone"]
["Piemonte","Zubiena","Zubiena (BI) ","ATO 2 Biellese, Vercellese e Casalese",102,102,"Biella","BI","096082","Zubiena"]
["Piemonte","Zumaglia","Zumaglia (BI) ","ATO 2 Biellese, Vercellese e Casalese",102,102,"Biella","BI","096083","Zumaglia"]
["Piemonte","Lessona","Lessona (BI) ","ATO 2 Biellese, Vercellese e Casalese",102,102,"Biella","BI","096085","Lessona"]
["Piemonte","Campiglia Cervo","Campiglia Cervo (BI) ","ATO 2 Biellese, Vercellese e Casalese",102,102,"Biella","BI","096086","Campiglia Cervo"]
["Piemonte","Quaregna Cerreto","Quaregna Cerreto (BI) ","ATO 2 Biellese, Vercellese e Casalese",102,102,"Biella","BI","096087","Quaregna Cerreto"]
["Piemonte","Valdilana","Valdilana (BI) ","ATO 2 Biellese, Vercellese e Casalese",102,102,"Biella","BI","096088","Valdilana"]
["Lombardia","Abbadia Lariana","Abbadia Lariana (LC) ","Ufficio d'ambito di Lecco",306,306,"Lecco","LC","097001","Abbadia Lariana"]
["Lombardia","Airuno","Airuno (LC) ","Ufficio d'ambito di Lecco",306,306,"Lecco","LC","097002","Airuno"]
["Lombardia","Annone di Brianza","Annone di Brianza (LC) ","Ufficio d'ambito di Lecco",306,306,"Lecco","LC","097003","Annone di Brianza"]
["Lombardia","Ballabio","Ballabio (LC) ","Ufficio d'ambito di Lecco",306,306,"Lecco","LC","097004","Ballabio"]
["Lombardia","Barzago","Barzago (LC) ","Ufficio d'ambito di Lecco",306,306,"Lecco","LC","097005","Barzago"]
["Lombardia","Barzanò","Barzanò (LC) ","Ufficio d'ambito di Lecco",306,306,"Lecco","LC","097006","Barzanò"]
["Lombardia","Barzio","Barzio (LC) ","Ufficio d'ambito di Lecco",306,306,"Lecco","LC","097007","Barzio"]
["Lombardia","Bellano","Bellano (LC) ","Ufficio d'ambito di Lecco",306,306,"Lecco","LC","097008","Bellano"]
["Lombardia","Bosisio Parini","Bosisio Parini (LC) ","Ufficio d'ambito di Lecco",306,306,"Lecco","LC","097009","Bosisio Parini"]
["Lombardia","Brivio","Brivio (LC) ","Ufficio d'ambito di Lecco",306,306,"Lecco","LC","097010","Brivio"]
["Lombardia","Bulciago","Bulciago (LC) ","Ufficio d'ambito di Lecco",306,306,"Lecco","LC","097011","Bulciago"]
["Lombardia","Calco","Calco (LC) ","Ufficio d'ambito di Lecco",306,306,"Lecco","LC","097012","Calco"]
["Lombardia","Calolziocorte","Calolziocorte (LC) ","Ufficio d'ambito di Lecco",306,306,"Lecco","LC","097013","Calolziocorte"]
["Lombardia","Carenno","Carenno (LC) ","Ufficio d'ambito di Lecco",306,306,"Lecco","LC","097014","Carenno"]
["Lombardia","Casargo","Casargo (LC) ","Ufficio d'ambito di Lecco",306,306,"Lecco","LC","097015","Casargo"]
["Lombardia","Casatenovo","Casatenovo (LC) ","Ufficio d'ambito di Lecco",306,306,"Lecco","LC","097016","Casatenovo"]
["Lombardia","Cassago Brianza","Cassago Brianza (LC) ","Ufficio d'ambito di Lecco",306,306,"Lecco","LC","097017","Cassago Brianza"]
["Lombardia","Cassina Valsassina","Cassina Valsassina (LC) ","Ufficio d'ambito di Lecco",306,306,"Lecco","LC","097018","Cassina Valsassina"]
["Lombardia","Castello di Brianza","Castello di Brianza (LC) ","Ufficio d'ambito di Lecco",306,306,"Lecco","LC","097019","Castello di Brianza"]
["Lombardia","Cernusco Lombardone","Cernusco Lombardone (LC) ","Ufficio d'ambito di Lecco",306,306,"Lecco","LC","097020","Cernusco Lombardone"]
["Lombardia","Cesana Brianza","Cesana Brianza (LC) ","Ufficio d'ambito di Lecco",306,306,"Lecco","LC","097021","Cesana Brianza"]
["Lombardia","Civate","Civate (LC) ","Ufficio d'ambito di Lecco",306,306,"Lecco","LC","097022","Civate"]
["Lombardia","Colico","Colico (LC) ","Ufficio d'ambito di Lecco",306,306,"Lecco","LC","097023","Colico"]
["Lombardia","Colle Brianza","Colle Brianza (LC) ","Ufficio d'ambito di Lecco",306,306,"Lecco","LC","097024","Colle Brianza"]
["Lombardia","Cortenova","Cortenova (LC) ","Ufficio d'ambito di Lecco",306,306,"Lecco","LC","097025","Cortenova"]
["Lombardia","Costa Masnaga","Costa Masnaga (LC) ","Ufficio d'ambito di Lecco",306,306,"Lecco","LC","097026","Costa Masnaga"]
["Lombardia","Crandola Valsassina","Crandola Valsassina (LC) ","Ufficio d'ambito di Lecco",306,306,"Lecco","LC","097027","Crandola Valsassina"]
["Lombardia","Cremella","Cremella (LC) ","Ufficio d'ambito di Lecco",306,306,"Lecco","LC","097028","Cremella"]
["Lombardia","Cremeno","Cremeno (LC) ","Ufficio d'ambito di Lecco",306,306,"Lecco","LC","097029","Cremeno"]
["Lombardia","Dervio","Dervio (LC) ","Ufficio d'ambito di Lecco",306,306,"Lecco","LC","097030","Dervio"]
["Lombardia","Dolzago","Dolzago (LC) ","Ufficio d'ambito di Lecco",306,306,"Lecco","LC","097031","Dolzago"]
["Lombardia","Dorio","Dorio (LC) ","Ufficio d'ambito di Lecco",306,306,"Lecco","LC","097032","Dorio"]
["Lombardia","Ello","Ello (LC) ","Ufficio d'ambito di Lecco",306,306,"Lecco","LC","097033","Ello"]
["Lombardia","Erve","Erve (LC) ","Ufficio d'ambito di Lecco",306,306,"Lecco","LC","097034","Erve"]
["Lombardia","Esino Lario","Esino Lario (LC) ","Ufficio d'ambito di Lecco",306,306,"Lecco","LC","097035","Esino Lario"]
["Lombardia","Galbiate","Galbiate (LC) ","Ufficio d'ambito di Lecco",306,306,"Lecco","LC","097036","Galbiate"]
["Lombardia","Garbagnate Monastero","Garbagnate Monastero (LC) ","Ufficio d'ambito di Lecco",306,306,"Lecco","LC","097037","Garbagnate Monastero"]
["Lombardia","Garlate","Garlate (LC) ","Ufficio d'ambito di Lecco",306,306,"Lecco","LC","097038","Garlate"]
["Lombardia","Imbersago","Imbersago (LC) ","Ufficio d'ambito di Lecco",306,306,"Lecco","LC","097039","Imbersago"]
["Lombardia","Introbio","Introbio (LC) ","Ufficio d'ambito di Lecco",306,306,"Lecco","LC","097040","Introbio"]
["Lombardia","Lecco","Lecco (LC) ","Ufficio d'ambito di Lecco",306,306,"Lecco","LC","097042","Lecco"]
["Lombardia","Lierna","Lierna (LC) ","Ufficio d'ambito di Lecco",306,306,"Lecco","LC","097043","Lierna"]
["Lombardia","Lomagna","Lomagna (LC) ","Ufficio d'ambito di Lecco",306,306,"Lecco","LC","097044","Lomagna"]
["Lombardia","Malgrate","Malgrate (LC) ","Ufficio d'ambito di Lecco",306,306,"Lecco","LC","097045","Malgrate"]
["Lombardia","Mandello del Lario","Mandello del Lario (LC) ","Ufficio d'ambito di Lecco",306,306,"Lecco","LC","097046","Mandello del Lario"]
["Lombardia","Margno","Margno (LC) ","Ufficio d'ambito di Lecco",306,306,"Lecco","LC","097047","Margno"]
["Lombardia","Merate","Merate (LC) ","Ufficio d'ambito di Lecco",306,306,"Lecco","LC","097048","Merate"]
["Lombardia","Missaglia","Missaglia (LC) ","Ufficio d'ambito di Lecco",306,306,"Lecco","LC","097049","Missaglia"]
["Lombardia","Moggio","Moggio (LC) ","Ufficio d'ambito di Lecco",306,306,"Lecco","LC","097050","Moggio"]
["Lombardia","Molteno","Molteno (LC) ","Ufficio d'ambito di Lecco",306,306,"Lecco","LC","097051","Molteno"]
["Lombardia","Monte Marenzo","Monte Marenzo (LC) ","Ufficio d'ambito di Lecco",306,306,"Lecco","LC","097052","Monte Marenzo"]
["Lombardia","Montevecchia","Montevecchia (LC) ","Ufficio d'ambito di Lecco",306,306,"Lecco","LC","097053","Montevecchia"]
["Lombardia","Monticello Brianza","Monticello Brianza (LC) ","Ufficio d'ambito di Lecco",306,306,"Lecco","LC","097054","Monticello Brianza"]
["Lombardia","Morterone","Morterone (LC) ","Ufficio d'ambito di Lecco",306,306,"Lecco","LC","097055","Morterone"]
["Lombardia","Nibionno","Nibionno (LC) ","Ufficio d'ambito di Lecco",306,306,"Lecco","LC","097056","Nibionno"]
["Lombardia","Oggiono","Oggiono (LC) ","Ufficio d'ambito di Lecco",306,306,"Lecco","LC","097057","Oggiono"]
["Lombardia","Olgiate Molgora","Olgiate Molgora (LC) ","Ufficio d'ambito di Lecco",306,306,"Lecco","LC","097058","Olgiate Molgora"]
["Lombardia","Olginate","Olginate (LC) ","Ufficio d'ambito di Lecco",306,306,"Lecco","LC","097059","Olginate"]
["Lombardia","Oliveto Lario","Oliveto Lario (LC) ","Ufficio d'ambito di Lecco",306,306,"Lecco","LC","097060","Oliveto Lario"]
["Lombardia","Osnago","Osnago (LC) ","Ufficio d'ambito di Lecco",306,306,"Lecco","LC","097061","Osnago"]
["Lombardia","Paderno d'Adda","Paderno d'Adda (LC) ","Ufficio d'ambito di Lecco",306,306,"Lecco","LC","097062","Paderno d'Adda"]
["Lombardia","Pagnona","Pagnona (LC) ","Ufficio d'ambito di Lecco",306,306,"Lecco","LC","097063","Pagnona"]
["Lombardia","Parlasco","Parlasco (LC) ","Ufficio d'ambito di Lecco",306,306,"Lecco","LC","097064","Parlasco"]
["Lombardia","Pasturo","Pasturo (LC) ","Ufficio d'ambito di Lecco",306,306,"Lecco","LC","097065","Pasturo"]
["Lombardia","Perledo","Perledo (LC) ","Ufficio d'ambito di Lecco",306,306,"Lecco","LC","097067","Perledo"]
["Lombardia","Pescate","Pescate (LC) ","Ufficio d'ambito di Lecco",306,306,"Lecco","LC","097068","Pescate"]
["Lombardia","Premana","Premana (LC) ","Ufficio d'ambito di Lecco",306,306,"Lecco","LC","097069","Premana"]
["Lombardia","Primaluna","Primaluna (LC) ","Ufficio d'ambito di Lecco",306,306,"Lecco","LC","097070","Primaluna"]
["Lombardia","Robbiate","Robbiate (LC) ","Ufficio d'ambito di Lecco",306,306,"Lecco","LC","097071","Robbiate"]
["Lombardia","Rogeno","Rogeno (LC) ","Ufficio d'ambito di Lecco",306,306,"Lecco","LC","097072","Rogeno"]
["Lombardia","Santa Maria Hoè","Santa Maria Hoè (LC) ","Ufficio d'ambito di Lecco",306,306,"Lecco","LC","097074","Santa Maria Hoè"]
["Lombardia","Sirone","Sirone (LC) ","Ufficio d'ambito di Lecco",306,306,"Lecco","LC","097075","Sirone"]
["Lombardia","Sirtori","Sirtori (LC) ","Ufficio d'ambito di Lecco",306,306,"Lecco","LC","097076","Sirtori"]
["Lombardia","Sueglio","Sueglio (LC) ","Ufficio d'ambito di Lecco",306,306,"Lecco","LC","097077","Sueglio"]
["Lombardia","Suello","Suello (LC) ","Ufficio d'ambito di Lecco",306,306,"Lecco","LC","097078","Suello"]
["Lombardia","Taceno","Taceno (LC) ","Ufficio d'ambito di Lecco",306,306,"Lecco","LC","097079","Taceno"]
["Lombardia","Valgreghentino","Valgreghentino (LC) ","Ufficio d'ambito di Lecco",306,306,"Lecco","LC","097082","Valgreghentino"]
["Lombardia","Valmadrera","Valmadrera (LC) ","Ufficio d'ambito di Lecco",306,306,"Lecco","LC","097083","Valmadrera"]
["Lombardia","Varenna","Varenna (LC) ","Ufficio d'ambito di Lecco",306,306,"Lecco","LC","097084","Varenna"]
["Lombardia","Vercurago","Vercurago (LC) ","Ufficio d'ambito di Lecco",306,306,"Lecco","LC","097086","Vercurago"]
["Lombardia","Viganò","Viganò (LC) ","Ufficio d'ambito di Lecco",306,306,"Lecco","LC","097090","Viganò"]
["Lombardia","Verderio","Verderio (LC) ","Ufficio d'ambito di Lecco",306,306,"Lecco","LC","097091","Verderio"]
["Lombardia","La Valletta Brianza","La Valletta Brianza (LC) ","Ufficio d'ambito di Lecco",306,306,"Lecco","LC","097092","La Valletta Brianza"]
["Lombardia","Valvarrone","Valvarrone (LC) ","Ufficio d'ambito di Lecco",306,306,"Lecco","LC","097093","Valvarrone"]
["Lombardia","Abbadia Cerreto","Abbadia Cerreto (LO) ","UFFICIO D'AMBITO DI LODI",307,307,"Lodi","LO","098001","Abbadia Cerreto"]
["Lombardia","Bertonico","Bertonico (LO) ","UFFICIO D'AMBITO DI LODI",307,307,"Lodi","LO","098002","Bertonico"]
["Lombardia","Boffalora d'Adda","Boffalora d'Adda (LO) ","UFFICIO D'AMBITO DI LODI",307,307,"Lodi","LO","098003","Boffalora d'Adda"]
["Lombardia","Borghetto Lodigiano","Borghetto Lodigiano (LO) ","UFFICIO D'AMBITO DI LODI",307,307,"Lodi","LO","098004","Borghetto Lodigiano"]
["Lombardia","Borgo San Giovanni","Borgo San Giovanni (LO) ","UFFICIO D'AMBITO DI LODI",307,307,"Lodi","LO","098005","Borgo San Giovanni"]
["Lombardia","Brembio","Brembio (LO) ","UFFICIO D'AMBITO DI LODI",307,307,"Lodi","LO","098006","Brembio"]
["Lombardia","Casaletto Lodigiano","Casaletto Lodigiano (LO) ","UFFICIO D'AMBITO DI LODI",307,307,"Lodi","LO","098008","Casaletto Lodigiano"]
["Lombardia","Casalmaiocco","Casalmaiocco (LO) ","UFFICIO D'AMBITO DI LODI",307,307,"Lodi","LO","098009","Casalmaiocco"]
["Lombardia","Casalpusterlengo","Casalpusterlengo (LO) ","UFFICIO D'AMBITO DI LODI",307,307,"Lodi","LO","098010","Casalpusterlengo"]
["Lombardia","Caselle Landi","Caselle Landi (LO) ","UFFICIO D'AMBITO DI LODI",307,307,"Lodi","LO","098011","Caselle Landi"]
["Lombardia","Caselle Lurani","Caselle Lurani (LO) ","UFFICIO D'AMBITO DI LODI",307,307,"Lodi","LO","098012","Caselle Lurani"]
["Lombardia","Castelnuovo Bocca d'Adda","Castelnuovo Bocca d'Adda (LO) ","UFFICIO D'AMBITO DI LODI",307,307,"Lodi","LO","098013","Castelnuovo Bocca d'Adda"]
["Lombardia","Castiglione d'Adda","Castiglione d'Adda (LO) ","UFFICIO D'AMBITO DI LODI",307,307,"Lodi","LO","098014","Castiglione d'Adda"]
["Lombardia","Castiraga Vidardo","Castiraga Vidardo (LO) ","UFFICIO D'AMBITO DI LODI",307,307,"Lodi","LO","098015","Castiraga Vidardo"]
["Lombardia","Cavenago d'Adda","Cavenago d'Adda (LO) ","UFFICIO D'AMBITO DI LODI",307,307,"Lodi","LO","098017","Cavenago d'Adda"]
["Lombardia","Cervignano d'Adda","Cervignano d'Adda (LO) ","UFFICIO D'AMBITO DI LODI",307,307,"Lodi","LO","098018","Cervignano d'Adda"]
["Lombardia","Codogno","Codogno (LO) ","UFFICIO D'AMBITO DI LODI",307,307,"Lodi","LO","098019","Codogno"]
["Lombardia","Comazzo","Comazzo (LO) ","UFFICIO D'AMBITO DI LODI",307,307,"Lodi","LO","098020","Comazzo"]
["Lombardia","Cornegliano Laudense","Cornegliano Laudense (LO) ","UFFICIO D'AMBITO DI LODI",307,307,"Lodi","LO","098021","Cornegliano Laudense"]
["Lombardia","Corno Giovine","Corno Giovine (LO) ","UFFICIO D'AMBITO DI LODI",307,307,"Lodi","LO","098022","Corno Giovine"]
["Lombardia","Cornovecchio","Cornovecchio (LO) ","UFFICIO D'AMBITO DI LODI",307,307,"Lodi","LO","098023","Cornovecchio"]
["Lombardia","Corte Palasio","Corte Palasio (LO) ","UFFICIO D'AMBITO DI LODI",307,307,"Lodi","LO","098024","Corte Palasio"]
["Lombardia","Crespiatica","Crespiatica (LO) ","UFFICIO D'AMBITO DI LODI",307,307,"Lodi","LO","098025","Crespiatica"]
["Lombardia","Fombio","Fombio (LO) ","UFFICIO D'AMBITO DI LODI",307,307,"Lodi","LO","098026","Fombio"]
["Lombardia","Galgagnano","Galgagnano (LO) ","UFFICIO D'AMBITO DI LODI",307,307,"Lodi","LO","098027","Galgagnano"]
["Lombardia","Graffignana","Graffignana (LO) ","UFFICIO D'AMBITO DI LODI",307,307,"Lodi","LO","098028","Graffignana"]
["Lombardia","Guardamiglio","Guardamiglio (LO) ","UFFICIO D'AMBITO DI LODI",307,307,"Lodi","LO","098029","Guardamiglio"]
["Lombardia","Livraga","Livraga (LO) ","UFFICIO D'AMBITO DI LODI",307,307,"Lodi","LO","098030","Livraga"]
["Lombardia","Lodi","Lodi (LO) ","UFFICIO D'AMBITO DI LODI",307,307,"Lodi","LO","098031","Lodi"]
["Lombardia","Lodi Vecchio","Lodi Vecchio (LO) ","UFFICIO D'AMBITO DI LODI",307,307,"Lodi","LO","098032","Lodi Vecchio"]
["Lombardia","Maccastorna","Maccastorna (LO) ","UFFICIO D'AMBITO DI LODI",307,307,"Lodi","LO","098033","Maccastorna"]
["Lombardia","Mairago","Mairago (LO) ","UFFICIO D'AMBITO DI LODI",307,307,"Lodi","LO","098034","Mairago"]
["Lombardia","Maleo","Maleo (LO) ","UFFICIO D'AMBITO DI LODI",307,307,"Lodi","LO","098035","Maleo"]
["Lombardia","Marudo","Marudo (LO) ","UFFICIO D'AMBITO DI LODI",307,307,"Lodi","LO","098036","Marudo"]
["Lombardia","Massalengo","Massalengo (LO) ","UFFICIO D'AMBITO DI LODI",307,307,"Lodi","LO","098037","Massalengo"]
["Lombardia","Meleti","Meleti (LO) ","UFFICIO D'AMBITO DI LODI",307,307,"Lodi","LO","098038","Meleti"]
["Lombardia","Merlino","Merlino (LO) ","UFFICIO D'AMBITO DI LODI",307,307,"Lodi","LO","098039","Merlino"]
["Lombardia","Montanaso Lombardo","Montanaso Lombardo (LO) ","UFFICIO D'AMBITO DI LODI",307,307,"Lodi","LO","098040","Montanaso Lombardo"]
["Lombardia","Mulazzano","Mulazzano (LO) ","UFFICIO D'AMBITO DI LODI",307,307,"Lodi","LO","098041","Mulazzano"]
["Lombardia","Orio Litta","Orio Litta (LO) ","UFFICIO D'AMBITO DI LODI",307,307,"Lodi","LO","098042","Orio Litta"]
["Lombardia","Ospedaletto Lodigiano","Ospedaletto Lodigiano (LO) ","UFFICIO D'AMBITO DI LODI",307,307,"Lodi","LO","098043","Ospedaletto Lodigiano"]
["Lombardia","Ossago Lodigiano","Ossago Lodigiano (LO) ","UFFICIO D'AMBITO DI LODI",307,307,"Lodi","LO","098044","Ossago Lodigiano"]
["Lombardia","Pieve Fissiraga","Pieve Fissiraga (LO) ","UFFICIO D'AMBITO DI LODI",307,307,"Lodi","LO","098045","Pieve Fissiraga"]
["Lombardia","Salerano sul Lambro","Salerano sul Lambro (LO) ","UFFICIO D'AMBITO DI LODI",307,307,"Lodi","LO","098046","Salerano sul Lambro"]
["Lombardia","San Fiorano","San Fiorano (LO) ","UFFICIO D'AMBITO DI LODI",307,307,"Lodi","LO","098047","San Fiorano"]
["Lombardia","San Martino in Strada","San Martino in Strada (LO) ","UFFICIO D'AMBITO DI LODI",307,307,"Lodi","LO","098048","San Martino in Strada"]
["Lombardia","San Rocco al Porto","San Rocco al Porto (LO) ","UFFICIO D'AMBITO DI LODI",307,307,"Lodi","LO","098049","San Rocco al Porto"]
["Lombardia","Sant'Angelo Lodigiano","Sant'Angelo Lodigiano (LO) ","UFFICIO D'AMBITO DI LODI",307,307,"Lodi","LO","098050","Sant'Angelo Lodigiano"]
["Lombardia","Santo Stefano Lodigiano","Santo Stefano Lodigiano (LO) ","UFFICIO D'AMBITO DI LODI",307,307,"Lodi","LO","098051","Santo Stefano Lodigiano"]
["Lombardia","Secugnago","Secugnago (LO) ","UFFICIO D'AMBITO DI LODI",307,307,"Lodi","LO","098052","Secugnago"]
["Lombardia","Senna Lodigiana","Senna Lodigiana (LO) ","UFFICIO D'AMBITO DI LODI",307,307,"Lodi","LO","098053","Senna Lodigiana"]
["Lombardia","Somaglia","Somaglia (LO) ","UFFICIO D'AMBITO DI LODI",307,307,"Lodi","LO","098054","Somaglia"]
["Lombardia","Sordio","Sordio (LO) ","UFFICIO D'AMBITO DI LODI",307,307,"Lodi","LO","098055","Sordio"]
["Lombardia","Tavazzano con Villavesco","Tavazzano con Villavesco (LO) ","UFFICIO D'AMBITO DI LODI",307,307,"Lodi","LO","098056","Tavazzano con Villavesco"]
["Lombardia","Terranova dei Passerini","Terranova dei Passerini (LO) ","UFFICIO D'AMBITO DI LODI",307,307,"Lodi","LO","098057","Terranova dei Passerini"]
["Lombardia","Turano Lodigiano","Turano Lodigiano (LO) ","UFFICIO D'AMBITO DI LODI",307,307,"Lodi","LO","098058","Turano Lodigiano"]
["Lombardia","Valera Fratta","Valera Fratta (LO) ","UFFICIO D'AMBITO DI LODI",307,307,"Lodi","LO","098059","Valera Fratta"]
["Lombardia","Villanova del Sillaro","Villanova del Sillaro (LO) ","UFFICIO D'AMBITO DI LODI",307,307,"Lodi","LO","098060","Villanova del Sillaro"]
["Lombardia","Zelo Buon Persico","Zelo Buon Persico (LO) ","UFFICIO D'AMBITO DI LODI",307,307,"Lodi","LO","098061","Zelo Buon Persico"]
["Lombardia","Castelgerundo","Castelgerundo (LO) ","UFFICIO D'AMBITO DI LODI",307,307,"Lodi","LO","098062","Castelgerundo"]
["Emilia-Romagna","Bellaria-Igea Marina","Bellaria-Igea Marina (RN) ","AGENZIA TERRITORIALE DELL'EMILIA ROMAGNA PER I SERVIZI IDRICI E I RIFIUTI",809,809,"Rimini","RN","099001","Bellaria-Igea Marina"]
["Emilia-Romagna","Cattolica","Cattolica (RN) ","AGENZIA TERRITORIALE DELL'EMILIA ROMAGNA PER I SERVIZI IDRICI E I RIFIUTI",809,809,"Rimini","RN","099002","Cattolica"]
["Emilia-Romagna","Coriano","Coriano (RN) ","AGENZIA TERRITORIALE DELL'EMILIA ROMAGNA PER I SERVIZI IDRICI E I RIFIUTI",809,809,"Rimini","RN","099003","Coriano"]
["Emilia-Romagna","Gemmano","Gemmano (RN) ","AGENZIA TERRITORIALE DELL'EMILIA ROMAGNA PER I SERVIZI IDRICI E I RIFIUTI",809,809,"Rimini","RN","099004","Gemmano"]
["Emilia-Romagna","Misano Adriatico","Misano Adriatico (RN) ","AGENZIA TERRITORIALE DELL'EMILIA ROMAGNA PER I SERVIZI IDRICI E I RIFIUTI",809,809,"Rimini","RN","099005","Misano Adriatico"]
["Emilia-Romagna","Mondaino","Mondaino (RN) ","AGENZIA TERRITORIALE DELL'EMILIA ROMAGNA PER I SERVIZI IDRICI E I RIFIUTI",809,809,"Rimini","RN","099006","Mondaino"]
["Emilia-Romagna","Montefiore Conca","Montefiore Conca (RN) ","AGENZIA TERRITORIALE DELL'EMILIA ROMAGNA PER I SERVIZI IDRICI E I RIFIUTI",809,809,"Rimini","RN","099008","Montefiore Conca"]
["Emilia-Romagna","Montegridolfo","Montegridolfo (RN) ","AGENZIA TERRITORIALE DELL'EMILIA ROMAGNA PER I SERVIZI IDRICI E I RIFIUTI",809,809,"Rimini","RN","099009","Montegridolfo"]
["Emilia-Romagna","Morciano di Romagna","Morciano di Romagna (RN) ","AGENZIA TERRITORIALE DELL'EMILIA ROMAGNA PER I SERVIZI IDRICI E I RIFIUTI",809,809,"Rimini","RN","099011","Morciano di Romagna"]
["Emilia-Romagna","Riccione","Riccione (RN) ","AGENZIA TERRITORIALE DELL'EMILIA ROMAGNA PER I SERVIZI IDRICI E I RIFIUTI",809,809,"Rimini","RN","099013","Riccione"]
["Emilia-Romagna","Rimini","Rimini (RN) ","AGENZIA TERRITORIALE DELL'EMILIA ROMAGNA PER I SERVIZI IDRICI E I RIFIUTI",809,809,"Rimini","RN","099014","Rimini"]
["Emilia-Romagna","Saludecio","Saludecio (RN) ","AGENZIA TERRITORIALE DELL'EMILIA ROMAGNA PER I SERVIZI IDRICI E I RIFIUTI",809,809,"Rimini","RN","099015","Saludecio"]
["Emilia-Romagna","San Clemente","San Clemente (RN) ","AGENZIA TERRITORIALE DELL'EMILIA ROMAGNA PER I SERVIZI IDRICI E I RIFIUTI",809,809,"Rimini","RN","099016","San Clemente"]
["Emilia-Romagna","San Giovanni in Marignano","San Giovanni in Marignano (RN) ","AGENZIA TERRITORIALE DELL'EMILIA ROMAGNA PER I SERVIZI IDRICI E I RIFIUTI",809,809,"Rimini","RN","099017","San Giovanni in Marignano"]
["Emilia-Romagna","Santarcangelo di Romagna","Santarcangelo di Romagna (RN) ","AGENZIA TERRITORIALE DELL'EMILIA ROMAGNA PER I SERVIZI IDRICI E I RIFIUTI",809,809,"Rimini","RN","099018","Santarcangelo di Romagna"]
["Emilia-Romagna","Verucchio","Verucchio (RN) ","AGENZIA TERRITORIALE DELL'EMILIA ROMAGNA PER I SERVIZI IDRICI E I RIFIUTI",809,809,"Rimini","RN","099020","Verucchio"]
["Emilia-Romagna","Casteldelci","Casteldelci (RN) ","AGENZIA TERRITORIALE DELL'EMILIA ROMAGNA PER I SERVIZI IDRICI E I RIFIUTI",809,809,"Rimini","RN","099021","Casteldelci"]
["Emilia-Romagna","Maiolo","Maiolo (RN) ","AGENZIA TERRITORIALE DELL'EMILIA ROMAGNA PER I SERVIZI IDRICI E I RIFIUTI",809,809,"Rimini","RN","099022","Maiolo"]
["Emilia-Romagna","Novafeltria","Novafeltria (RN) ","AGENZIA TERRITORIALE DELL'EMILIA ROMAGNA PER I SERVIZI IDRICI E I RIFIUTI",809,809,"Rimini","RN","099023","Novafeltria"]
["Emilia-Romagna","Pennabilli","Pennabilli (RN) ","AGENZIA TERRITORIALE DELL'EMILIA ROMAGNA PER I SERVIZI IDRICI E I RIFIUTI",809,809,"Rimini","RN","099024","Pennabilli"]
["Emilia-Romagna","San Leo","San Leo (RN) ","AGENZIA TERRITORIALE DELL'EMILIA ROMAGNA PER I SERVIZI IDRICI E I RIFIUTI",809,809,"Rimini","RN","099025","San Leo"]
["Emilia-Romagna","Sant'Agata Feltria","Sant'Agata Feltria (RN) ","AGENZIA TERRITORIALE DELL'EMILIA ROMAGNA PER I SERVIZI IDRICI E I RIFIUTI",809,809,"Rimini","RN","099026","Sant'Agata Feltria"]
["Emilia-Romagna","Talamello","Talamello (RN) ","AGENZIA TERRITORIALE DELL'EMILIA ROMAGNA PER I SERVIZI IDRICI E I RIFIUTI",809,809,"Rimini","RN","099027","Talamello"]
["Emilia-Romagna","Poggio Torriana","Poggio Torriana (RN) ","AGENZIA TERRITORIALE DELL'EMILIA ROMAGNA PER I SERVIZI IDRICI E I RIFIUTI",809,809,"Rimini","RN","099028","Poggio Torriana"]
["Emilia-Romagna","Montescudo-Monte Colombo","Montescudo-Monte Colombo (RN) ","AGENZIA TERRITORIALE DELL'EMILIA ROMAGNA PER I SERVIZI IDRICI E I RIFIUTI",809,809,"Rimini","RN","099029","Montescudo-Monte Colombo"]
["Emilia-Romagna","Montecopiolo","Montecopiolo (RN) ","AGENZIA TERRITORIALE DELL'EMILIA ROMAGNA PER I SERVIZI IDRICI E I RIFIUTI",809,809,"Rimini","RN","099030","Montecopiolo"]
["Emilia-Romagna","Sassofeltrio","Sassofeltrio (RN) ","AGENZIA TERRITORIALE DELL'EMILIA ROMAGNA PER I SERVIZI IDRICI E I RIFIUTI",809,809,"Rimini","RN","099031","Sassofeltrio"]
["Toscana","Cantagallo","Cantagallo (PO) ","Autorità Idrica Toscana",903,903,"Prato","PO","100001","Cantagallo"]
["Toscana","Carmignano","Carmignano (PO) ","Autorità Idrica Toscana",903,903,"Prato","PO","100002","Carmignano"]
["Toscana","Montemurlo","Montemurlo (PO) ","Autorità Idrica Toscana",903,903,"Prato","PO","100003","Montemurlo"]
["Toscana","Poggio a Caiano","Poggio a Caiano (PO) ","Autorità Idrica Toscana",903,903,"Prato","PO","100004","Poggio a Caiano"]
["Toscana","Prato","Prato (PO) ","Autorità Idrica Toscana",903,903,"Prato","PO","100005","Prato"]
["Toscana","Vaiano","Vaiano (PO) ","Autorità Idrica Toscana",903,903,"Prato","PO","100006","Vaiano"]
["Toscana","Vernio","Vernio (PO) ","Autorità Idrica Toscana",903,903,"Prato","PO","100007","Vernio"]
["Calabria","Belvedere di Spinello","Belvedere di Spinello (KR) ","Autorità Rifiuti e Risorse Idriche della Calabria",1806,1806,"Crotone","KR","101001","Belvedere di Spinello"]
["Calabria","Caccuri","Caccuri (KR) ","Autorità Rifiuti e Risorse Idriche della Calabria",1806,1806,"Crotone","KR","101002","Caccuri"]
["Calabria","Carfizzi","Carfizzi (KR) ","Autorità Rifiuti e Risorse Idriche della Calabria",1806,1806,"Crotone","KR","101003","Carfizzi"]
["Calabria","Casabona","Casabona (KR) ","Autorità Rifiuti e Risorse Idriche della Calabria",1806,1806,"Crotone","KR","101004","Casabona"]
["Calabria","Castelsilano","Castelsilano (KR) ","Autorità Rifiuti e Risorse Idriche della Calabria",1806,1806,"Crotone","KR","101005","Castelsilano"]
["Calabria","Cerenzia","Cerenzia (KR) ","Autorità Rifiuti e Risorse Idriche della Calabria",1806,1806,"Crotone","KR","101006","Cerenzia"]
["Calabria","Cirò","Cirò (KR) ","Autorità Rifiuti e Risorse Idriche della Calabria",1806,1806,"Crotone","KR","101007","Cirò"]
["Calabria","Cirò Marina","Cirò Marina (KR) ","Autorità Rifiuti e Risorse Idriche della Calabria",1806,1806,"Crotone","KR","101008","Cirò Marina"]
["Calabria","Cotronei","Cotronei (KR) ","Autorità Rifiuti e Risorse Idriche della Calabria",1806,1806,"Crotone","KR","101009","Cotronei"]
["Calabria","Crotone","Crotone (KR) ","Autorità Rifiuti e Risorse Idriche della Calabria",1806,1806,"Crotone","KR","101010","Crotone"]
["Calabria","Crucoli","Crucoli (KR) ","Autorità Rifiuti e Risorse Idriche della Calabria",1806,1806,"Crotone","KR","101011","Crucoli"]
["Calabria","Cutro","Cutro (KR) ","Autorità Rifiuti e Risorse Idriche della Calabria",1806,1806,"Crotone","KR","101012","Cutro"]
["Calabria","Isola di Capo Rizzuto","Isola di Capo Rizzuto (KR) ","Autorità Rifiuti e Risorse Idriche della Calabria",1806,1806,"Crotone","KR","101013","Isola di Capo Rizzuto"]
["Calabria","Melissa","Melissa (KR) ","Autorità Rifiuti e Risorse Idriche della Calabria",1806,1806,"Crotone","KR","101014","Melissa"]
["Calabria","Mesoraca","Mesoraca (KR) ","Autorità Rifiuti e Risorse Idriche della Calabria",1806,1806,"Crotone","KR","101015","Mesoraca"]
["Calabria","Pallagorio","Pallagorio (KR) ","Autorità Rifiuti e Risorse Idriche della Calabria",1806,1806,"Crotone","KR","101016","Pallagorio"]
["Calabria","Petilia Policastro","Petilia Policastro (KR) ","Autorità Rifiuti e Risorse Idriche della Calabria",1806,1806,"Crotone","KR","101017","Petilia Policastro"]
["Calabria","Roccabernarda","Roccabernarda (KR) ","Autorità Rifiuti e Risorse Idriche della Calabria",1806,1806,"Crotone","KR","101018","Roccabernarda"]
["Calabria","Rocca di Neto","Rocca di Neto (KR) ","Autorità Rifiuti e Risorse Idriche della Calabria",1806,1806,"Crotone","KR","101019","Rocca di Neto"]
["Calabria","San Mauro Marchesato","San Mauro Marchesato (KR) ","Autorità Rifiuti e Risorse Idriche della Calabria",1806,1806,"Crotone","KR","101020","San Mauro Marchesato"]
["Calabria","San Nicola dell'Alto","San Nicola dell'Alto (KR) ","Autorità Rifiuti e Risorse Idriche della Calabria",1806,1806,"Crotone","KR","101021","San Nicola dell'Alto"]
["Calabria","Santa Severina","Santa Severina (KR) ","Autorità Rifiuti e Risorse Idriche della Calabria",1806,1806,"Crotone","KR","101022","Santa Severina"]
["Calabria","Savelli","Savelli (KR) ","Autorità Rifiuti e Risorse Idriche della Calabria",1806,1806,"Crotone","KR","101023","Savelli"]
["Calabria","Scandale","Scandale (KR) ","Autorità Rifiuti e Risorse Idriche della Calabria",1806,1806,"Crotone","KR","101024","Scandale"]
["Calabria","Strongoli","Strongoli (KR) ","Autorità Rifiuti e Risorse Idriche della Calabria",1806,1806,"Crotone","KR","101025","Strongoli"]
["Calabria","Umbriatico","Umbriatico (KR) ","Autorità Rifiuti e Risorse Idriche della Calabria",1806,1806,"Crotone","KR","101026","Umbriatico"]
["Calabria","Verzino","Verzino (KR) ","Autorità Rifiuti e Risorse Idriche della Calabria",1806,1806,"Crotone","KR","101027","Verzino"]
["Calabria","Acquaro","Acquaro (VV) ","Autorità Rifiuti e Risorse Idriche della Calabria",1806,1806,"Vibo Valentia","VV","102001","Acquaro"]
["Calabria","Arena","Arena (VV) ","Autorità Rifiuti e Risorse Idriche della Calabria",1806,1806,"Vibo Valentia","VV","102002","Arena"]
["Calabria","Briatico","Briatico (VV) ","Autorità Rifiuti e Risorse Idriche della Calabria",1806,1806,"Vibo Valentia","VV","102003","Briatico"]
["Calabria","Brognaturo","Brognaturo (VV) ","Autorità Rifiuti e Risorse Idriche della Calabria",1806,1806,"Vibo Valentia","VV","102004","Brognaturo"]
["Calabria","Capistrano","Capistrano (VV) ","Autorità Rifiuti e Risorse Idriche della Calabria",1806,1806,"Vibo Valentia","VV","102005","Capistrano"]
["Calabria","Cessaniti","Cessaniti (VV) ","Autorità Rifiuti e Risorse Idriche della Calabria",1806,1806,"Vibo Valentia","VV","102006","Cessaniti"]
["Calabria","Dasà","Dasà (VV) ","Autorità Rifiuti e Risorse Idriche della Calabria",1806,1806,"Vibo Valentia","VV","102007","Dasà"]
["Calabria","Dinami","Dinami (VV) ","Autorità Rifiuti e Risorse Idriche della Calabria",1806,1806,"Vibo Valentia","VV","102008","Dinami"]
["Calabria","Drapia","Drapia (VV) ","Autorità Rifiuti e Risorse Idriche della Calabria",1806,1806,"Vibo Valentia","VV","102009","Drapia"]
["Calabria","Fabrizia","Fabrizia (VV) ","Autorità Rifiuti e Risorse Idriche della Calabria",1806,1806,"Vibo Valentia","VV","102010","Fabrizia"]
["Calabria","Filadelfia","Filadelfia (VV) ","Autorità Rifiuti e Risorse Idriche della Calabria",1806,1806,"Vibo Valentia","VV","102011","Filadelfia"]
["Calabria","Filandari","Filandari (VV) ","Autorità Rifiuti e Risorse Idriche della Calabria",1806,1806,"Vibo Valentia","VV","102012","Filandari"]
["Calabria","Filogaso","Filogaso (VV) ","Autorità Rifiuti e Risorse Idriche della Calabria",1806,1806,"Vibo Valentia","VV","102013","Filogaso"]
["Calabria","Francavilla Angitola","Francavilla Angitola (VV) ","Autorità Rifiuti e Risorse Idriche della Calabria",1806,1806,"Vibo Valentia","VV","102014","Francavilla Angitola"]
["Calabria","Francica","Francica (VV) ","Autorità Rifiuti e Risorse Idriche della Calabria",1806,1806,"Vibo Valentia","VV","102015","Francica"]
["Calabria","Gerocarne","Gerocarne (VV) ","Autorità Rifiuti e Risorse Idriche della Calabria",1806,1806,"Vibo Valentia","VV","102016","Gerocarne"]
["Calabria","Jonadi","Jonadi (VV) ","Autorità Rifiuti e Risorse Idriche della Calabria",1806,1806,"Vibo Valentia","VV","102017","Jonadi"]
["Calabria","Joppolo","Joppolo (VV) ","Autorità Rifiuti e Risorse Idriche della Calabria",1806,1806,"Vibo Valentia","VV","102018","Joppolo"]
["Calabria","Limbadi","Limbadi (VV) ","Autorità Rifiuti e Risorse Idriche della Calabria",1806,1806,"Vibo Valentia","VV","102019","Limbadi"]
["Calabria","Maierato","Maierato (VV) ","Autorità Rifiuti e Risorse Idriche della Calabria",1806,1806,"Vibo Valentia","VV","102020","Maierato"]
["Calabria","Mileto","Mileto (VV) ","Autorità Rifiuti e Risorse Idriche della Calabria",1806,1806,"Vibo Valentia","VV","102021","Mileto"]
["Calabria","Mongiana","Mongiana (VV) ","Autorità Rifiuti e Risorse Idriche della Calabria",1806,1806,"Vibo Valentia","VV","102022","Mongiana"]
["Calabria","Monterosso Calabro","Monterosso Calabro (VV) ","Autorità Rifiuti e Risorse Idriche della Calabria",1806,1806,"Vibo Valentia","VV","102023","Monterosso Calabro"]
["Calabria","Nardodipace","Nardodipace (VV) ","Autorità Rifiuti e Risorse Idriche della Calabria",1806,1806,"Vibo Valentia","VV","102024","Nardodipace"]
["Calabria","Nicotera","Nicotera (VV) ","Autorità Rifiuti e Risorse Idriche della Calabria",1806,1806,"Vibo Valentia","VV","102025","Nicotera"]
["Calabria","Parghelia","Parghelia (VV) ","Autorità Rifiuti e Risorse Idriche della Calabria",1806,1806,"Vibo Valentia","VV","102026","Parghelia"]
["Calabria","Pizzo","Pizzo (VV) ","Autorità Rifiuti e Risorse Idriche della Calabria",1806,1806,"Vibo Valentia","VV","102027","Pizzo"]
["Calabria","Pizzoni","Pizzoni (VV) ","Autorità Rifiuti e Risorse Idriche della Calabria",1806,1806,"Vibo Valentia","VV","102028","Pizzoni"]
["Calabria","Polia","Polia (VV) ","Autorità Rifiuti e Risorse Idriche della Calabria",1806,1806,"Vibo Valentia","VV","102029","Polia"]
["Calabria","Ricadi","Ricadi (VV) ","Autorità Rifiuti e Risorse Idriche della Calabria",1806,1806,"Vibo Valentia","VV","102030","Ricadi"]
["Calabria","Rombiolo","Rombiolo (VV) ","Autorità Rifiuti e Risorse Idriche della Calabria",1806,1806,"Vibo Valentia","VV","102031","Rombiolo"]
["Calabria","San Calogero","San Calogero (VV) ","Autorità Rifiuti e Risorse Idriche della Calabria",1806,1806,"Vibo Valentia","VV","102032","San Calogero"]
["Calabria","San Costantino Calabro","San Costantino Calabro (VV) ","Autorità Rifiuti e Risorse Idriche della Calabria",1806,1806,"Vibo Valentia","VV","102033","San Costantino Calabro"]
["Calabria","San Gregorio d'Ippona","San Gregorio d'Ippona (VV) ","Autorità Rifiuti e Risorse Idriche della Calabria",1806,1806,"Vibo Valentia","VV","102034","San Gregorio d'Ippona"]
["Calabria","San Nicola da Crissa","San Nicola da Crissa (VV) ","Autorità Rifiuti e Risorse Idriche della Calabria",1806,1806,"Vibo Valentia","VV","102035","San Nicola da Crissa"]
["Calabria","Sant'Onofrio","Sant'Onofrio (VV) ","Autorità Rifiuti e Risorse Idriche della Calabria",1806,1806,"Vibo Valentia","VV","102036","Sant'Onofrio"]
["Calabria","Serra San Bruno","Serra San Bruno (VV) ","Autorità Rifiuti e Risorse Idriche della Calabria",1806,1806,"Vibo Valentia","VV","102037","Serra San Bruno"]
["Calabria","Simbario","Simbario (VV) ","Autorità Rifiuti e Risorse Idriche della Calabria",1806,1806,"Vibo Valentia","VV","102038","Simbario"]
["Calabria","Sorianello","Sorianello (VV) ","Autorità Rifiuti e Risorse Idriche della Calabria",1806,1806,"Vibo Valentia","VV","102039","Sorianello"]
["Calabria","Soriano Calabro","Soriano Calabro (VV) ","Autorità Rifiuti e Risorse Idriche della Calabria",1806,1806,"Vibo Valentia","VV","102040","Soriano Calabro"]
["Calabria","Spadola","Spadola (VV) ","Autorità Rifiuti e Risorse Idriche della Calabria",1806,1806,"Vibo Valentia","VV","102041","Spadola"]
["Calabria","Spilinga","Spilinga (VV) ","Autorità Rifiuti e Risorse Idriche della Calabria",1806,1806,"Vibo Valentia","VV","102042","Spilinga"]
["Calabria","Stefanaconi","Stefanaconi (VV) ","Autorità Rifiuti e Risorse Idriche della Calabria",1806,1806,"Vibo Valentia","VV","102043","Stefanaconi"]
["Calabria","Tropea","Tropea (VV) ","Autorità Rifiuti e Risorse Idriche della Calabria",1806,1806,"Vibo Valentia","VV","102044","Tropea"]
["Calabria","Vallelonga","Vallelonga (VV) ","Autorità Rifiuti e Risorse Idriche della Calabria",1806,1806,"Vibo Valentia","VV","102045","Vallelonga"]
["Calabria","Vazzano","Vazzano (VV) ","Autorità Rifiuti e Risorse Idriche della Calabria",1806,1806,"Vibo Valentia","VV","102046","Vazzano"]
["Calabria","Vibo Valentia","Vibo Valentia (VV) ","Autorità Rifiuti e Risorse Idriche della Calabria",1806,1806,"Vibo Valentia","VV","102047","Vibo Valentia"]
["Calabria","Zaccanopoli","Zaccanopoli (VV) ","Autorità Rifiuti e Risorse Idriche della Calabria",1806,1806,"Vibo Valentia","VV","102048","Zaccanopoli"]
["Calabria","Zambrone","Zambrone (VV) ","Autorità Rifiuti e Risorse Idriche della Calabria",1806,1806,"Vibo Valentia","VV","102049","Zambrone"]
["Calabria","Zungri","Zungri (VV) ","Autorità Rifiuti e Risorse Idriche della Calabria",1806,1806,"Vibo Valentia","VV","102050","Zungri"]
["Piemonte","Antrona Schieranco","Antrona Schieranco (VB) ","ATO 1 Verbano Cusio Ossola e Pianura Novarese",101,101,"Verbano-Cusio-Ossola","VB","103001","Antrona Schieranco"]
["Piemonte","Anzola d'Ossola","Anzola d'Ossola (VB) ","ATO 1 Verbano Cusio Ossola e Pianura Novarese",101,101,"Verbano-Cusio-Ossola","VB","103002","Anzola d'Ossola"]
["Piemonte","Arizzano","Arizzano (VB) ","ATO 1 Verbano Cusio Ossola e Pianura Novarese",101,101,"Verbano-Cusio-Ossola","VB","103003","Arizzano"]
["Piemonte","Arola","Arola (VB) ","ATO 1 Verbano Cusio Ossola e Pianura Novarese",101,101,"Verbano-Cusio-Ossola","VB","103004","Arola"]
["Piemonte","Aurano","Aurano (VB) ","ATO 1 Verbano Cusio Ossola e Pianura Novarese",101,101,"Verbano-Cusio-Ossola","VB","103005","Aurano"]
["Piemonte","Baceno","Baceno (VB) ","ATO 1 Verbano Cusio Ossola e Pianura Novarese",101,101,"Verbano-Cusio-Ossola","VB","103006","Baceno"]
["Piemonte","Bannio Anzino","Bannio Anzino (VB) ","ATO 1 Verbano Cusio Ossola e Pianura Novarese",101,101,"Verbano-Cusio-Ossola","VB","103007","Bannio Anzino"]
["Piemonte","Baveno","Baveno (VB) ","ATO 1 Verbano Cusio Ossola e Pianura Novarese",101,101,"Verbano-Cusio-Ossola","VB","103008","Baveno"]
["Piemonte","Bee","Bee (VB) ","ATO 1 Verbano Cusio Ossola e Pianura Novarese",101,101,"Verbano-Cusio-Ossola","VB","103009","Bee"]
["Piemonte","Belgirate","Belgirate (VB) ","ATO 1 Verbano Cusio Ossola e Pianura Novarese",101,101,"Verbano-Cusio-Ossola","VB","103010","Belgirate"]
["Piemonte","Beura-Cardezza","Beura-Cardezza (VB) ","ATO 1 Verbano Cusio Ossola e Pianura Novarese",101,101,"Verbano-Cusio-Ossola","VB","103011","Beura-Cardezza"]
["Piemonte","Bognanco","Bognanco (VB) ","ATO 1 Verbano Cusio Ossola e Pianura Novarese",101,101,"Verbano-Cusio-Ossola","VB","103012","Bognanco"]
["Piemonte","Brovello-Carpugnino","Brovello-Carpugnino (VB) ","ATO 1 Verbano Cusio Ossola e Pianura Novarese",101,101,"Verbano-Cusio-Ossola","VB","103013","Brovello-Carpugnino"]
["Piemonte","Calasca-Castiglione","Calasca-Castiglione (VB) ","ATO 1 Verbano Cusio Ossola e Pianura Novarese",101,101,"Verbano-Cusio-Ossola","VB","103014","Calasca-Castiglione"]
["Piemonte","Cambiasca","Cambiasca (VB) ","ATO 1 Verbano Cusio Ossola e Pianura Novarese",101,101,"Verbano-Cusio-Ossola","VB","103015","Cambiasca"]
["Piemonte","Cannero Riviera","Cannero Riviera (VB) ","ATO 1 Verbano Cusio Ossola e Pianura Novarese",101,101,"Verbano-Cusio-Ossola","VB","103016","Cannero Riviera"]
["Piemonte","Cannobio","Cannobio (VB) ","ATO 1 Verbano Cusio Ossola e Pianura Novarese",101,101,"Verbano-Cusio-Ossola","VB","103017","Cannobio"]
["Piemonte","Caprezzo","Caprezzo (VB) ","ATO 1 Verbano Cusio Ossola e Pianura Novarese",101,101,"Verbano-Cusio-Ossola","VB","103018","Caprezzo"]
["Piemonte","Casale Corte Cerro","Casale Corte Cerro (VB) ","ATO 1 Verbano Cusio Ossola e Pianura Novarese",101,101,"Verbano-Cusio-Ossola","VB","103019","Casale Corte Cerro"]
["Piemonte","Ceppo Morelli","Ceppo Morelli (VB) ","ATO 1 Verbano Cusio Ossola e Pianura Novarese",101,101,"Verbano-Cusio-Ossola","VB","103021","Ceppo Morelli"]
["Piemonte","Cesara","Cesara (VB) ","ATO 1 Verbano Cusio Ossola e Pianura Novarese",101,101,"Verbano-Cusio-Ossola","VB","103022","Cesara"]
["Piemonte","Cossogno","Cossogno (VB) ","ATO 1 Verbano Cusio Ossola e Pianura Novarese",101,101,"Verbano-Cusio-Ossola","VB","103023","Cossogno"]
["Piemonte","Craveggia","Craveggia (VB) ","ATO 1 Verbano Cusio Ossola e Pianura Novarese",101,101,"Verbano-Cusio-Ossola","VB","103024","Craveggia"]
["Piemonte","Crevoladossola","Crevoladossola (VB) ","ATO 1 Verbano Cusio Ossola e Pianura Novarese",101,101,"Verbano-Cusio-Ossola","VB","103025","Crevoladossola"]
["Piemonte","Crodo","Crodo (VB) ","ATO 1 Verbano Cusio Ossola e Pianura Novarese",101,101,"Verbano-Cusio-Ossola","VB","103026","Crodo"]
["Piemonte","Domodossola","Domodossola (VB) ","ATO 1 Verbano Cusio Ossola e Pianura Novarese",101,101,"Verbano-Cusio-Ossola","VB","103028","Domodossola"]
["Piemonte","Druogno","Druogno (VB) ","ATO 1 Verbano Cusio Ossola e Pianura Novarese",101,101,"Verbano-Cusio-Ossola","VB","103029","Druogno"]
["Piemonte","Formazza","Formazza (VB) ","ATO 1 Verbano Cusio Ossola e Pianura Novarese",101,101,"Verbano-Cusio-Ossola","VB","103031","Formazza"]
["Piemonte","Germagno","Germagno (VB) ","ATO 1 Verbano Cusio Ossola e Pianura Novarese",101,101,"Verbano-Cusio-Ossola","VB","103032","Germagno"]
["Piemonte","Ghiffa","Ghiffa (VB) ","ATO 1 Verbano Cusio Ossola e Pianura Novarese",101,101,"Verbano-Cusio-Ossola","VB","103033","Ghiffa"]
["Piemonte","Gignese","Gignese (VB) ","ATO 1 Verbano Cusio Ossola e Pianura Novarese",101,101,"Verbano-Cusio-Ossola","VB","103034","Gignese"]
["Piemonte","Gravellona Toce","Gravellona Toce (VB) ","ATO 1 Verbano Cusio Ossola e Pianura Novarese",101,101,"Verbano-Cusio-Ossola","VB","103035","Gravellona Toce"]
["Piemonte","Gurro","Gurro (VB) ","ATO 1 Verbano Cusio Ossola e Pianura Novarese",101,101,"Verbano-Cusio-Ossola","VB","103036","Gurro"]
["Piemonte","Intragna","Intragna (VB) ","ATO 1 Verbano Cusio Ossola e Pianura Novarese",101,101,"Verbano-Cusio-Ossola","VB","103037","Intragna"]
["Piemonte","Loreglia","Loreglia (VB) ","ATO 1 Verbano Cusio Ossola e Pianura Novarese",101,101,"Verbano-Cusio-Ossola","VB","103038","Loreglia"]
["Piemonte","Macugnaga","Macugnaga (VB) ","ATO 1 Verbano Cusio Ossola e Pianura Novarese",101,101,"Verbano-Cusio-Ossola","VB","103039","Macugnaga"]
["Piemonte","Madonna del Sasso","Madonna del Sasso (VB) ","ATO 1 Verbano Cusio Ossola e Pianura Novarese",101,101,"Verbano-Cusio-Ossola","VB","103040","Madonna del Sasso"]
["Piemonte","Malesco","Malesco (VB) ","ATO 1 Verbano Cusio Ossola e Pianura Novarese",101,101,"Verbano-Cusio-Ossola","VB","103041","Malesco"]
["Piemonte","Masera","Masera (VB) ","ATO 1 Verbano Cusio Ossola e Pianura Novarese",101,101,"Verbano-Cusio-Ossola","VB","103042","Masera"]
["Piemonte","Massiola","Massiola (VB) ","ATO 1 Verbano Cusio Ossola e Pianura Novarese",101,101,"Verbano-Cusio-Ossola","VB","103043","Massiola"]
["Piemonte","Mergozzo","Mergozzo (VB) ","ATO 1 Verbano Cusio Ossola e Pianura Novarese",101,101,"Verbano-Cusio-Ossola","VB","103044","Mergozzo"]
["Piemonte","Miazzina","Miazzina (VB) ","ATO 1 Verbano Cusio Ossola e Pianura Novarese",101,101,"Verbano-Cusio-Ossola","VB","103045","Miazzina"]
["Piemonte","Montecrestese","Montecrestese (VB) ","ATO 1 Verbano Cusio Ossola e Pianura Novarese",101,101,"Verbano-Cusio-Ossola","VB","103046","Montecrestese"]
["Piemonte","Montescheno","Montescheno (VB) ","ATO 1 Verbano Cusio Ossola e Pianura Novarese",101,101,"Verbano-Cusio-Ossola","VB","103047","Montescheno"]
["Piemonte","Nonio","Nonio (VB) ","ATO 1 Verbano Cusio Ossola e Pianura Novarese",101,101,"Verbano-Cusio-Ossola","VB","103048","Nonio"]
["Piemonte","Oggebbio","Oggebbio (VB) ","ATO 1 Verbano Cusio Ossola e Pianura Novarese",101,101,"Verbano-Cusio-Ossola","VB","103049","Oggebbio"]
["Piemonte","Omegna","Omegna (VB) ","ATO 1 Verbano Cusio Ossola e Pianura Novarese",101,101,"Verbano-Cusio-Ossola","VB","103050","Omegna"]
["Piemonte","Ornavasso","Ornavasso (VB) ","ATO 1 Verbano Cusio Ossola e Pianura Novarese",101,101,"Verbano-Cusio-Ossola","VB","103051","Ornavasso"]
["Piemonte","Pallanzeno","Pallanzeno (VB) ","ATO 1 Verbano Cusio Ossola e Pianura Novarese",101,101,"Verbano-Cusio-Ossola","VB","103052","Pallanzeno"]
["Piemonte","Piedimulera","Piedimulera (VB) ","ATO 1 Verbano Cusio Ossola e Pianura Novarese",101,101,"Verbano-Cusio-Ossola","VB","103053","Piedimulera"]
["Piemonte","Pieve Vergonte","Pieve Vergonte (VB) ","ATO 1 Verbano Cusio Ossola e Pianura Novarese",101,101,"Verbano-Cusio-Ossola","VB","103054","Pieve Vergonte"]
["Piemonte","Premeno","Premeno (VB) ","ATO 1 Verbano Cusio Ossola e Pianura Novarese",101,101,"Verbano-Cusio-Ossola","VB","103055","Premeno"]
["Piemonte","Premia","Premia (VB) ","ATO 1 Verbano Cusio Ossola e Pianura Novarese",101,101,"Verbano-Cusio-Ossola","VB","103056","Premia"]
["Piemonte","Premosello-Chiovenda","Premosello-Chiovenda (VB) ","ATO 1 Verbano Cusio Ossola e Pianura Novarese",101,101,"Verbano-Cusio-Ossola","VB","103057","Premosello-Chiovenda"]
["Piemonte","Quarna Sopra","Quarna Sopra (VB) ","ATO 1 Verbano Cusio Ossola e Pianura Novarese",101,101,"Verbano-Cusio-Ossola","VB","103058","Quarna Sopra"]
["Piemonte","Quarna Sotto","Quarna Sotto (VB) ","ATO 1 Verbano Cusio Ossola e Pianura Novarese",101,101,"Verbano-Cusio-Ossola","VB","103059","Quarna Sotto"]
["Piemonte","Re","Re (VB) ","ATO 1 Verbano Cusio Ossola e Pianura Novarese",101,101,"Verbano-Cusio-Ossola","VB","103060","Re"]
["Piemonte","San Bernardino Verbano","San Bernardino Verbano (VB) ","ATO 1 Verbano Cusio Ossola e Pianura Novarese",101,101,"Verbano-Cusio-Ossola","VB","103061","San Bernardino Verbano"]
["Piemonte","Santa Maria Maggiore","Santa Maria Maggiore (VB) ","ATO 1 Verbano Cusio Ossola e Pianura Novarese",101,101,"Verbano-Cusio-Ossola","VB","103062","Santa Maria Maggiore"]
["Piemonte","Stresa","Stresa (VB) ","ATO 1 Verbano Cusio Ossola e Pianura Novarese",101,101,"Verbano-Cusio-Ossola","VB","103064","Stresa"]
["Piemonte","Toceno","Toceno (VB) ","ATO 1 Verbano Cusio Ossola e Pianura Novarese",101,101,"Verbano-Cusio-Ossola","VB","103065","Toceno"]
["Piemonte","Trarego Viggiona","Trarego Viggiona (VB) ","ATO 1 Verbano Cusio Ossola e Pianura Novarese",101,101,"Verbano-Cusio-Ossola","VB","103066","Trarego Viggiona"]
["Piemonte","Trasquera","Trasquera (VB) ","ATO 1 Verbano Cusio Ossola e Pianura Novarese",101,101,"Verbano-Cusio-Ossola","VB","103067","Trasquera"]
["Piemonte","Trontano","Trontano (VB) ","ATO 1 Verbano Cusio Ossola e Pianura Novarese",101,101,"Verbano-Cusio-Ossola","VB","103068","Trontano"]
["Piemonte","Valstrona","Valstrona (VB) ","ATO 1 Verbano Cusio Ossola e Pianura Novarese",101,101,"Verbano-Cusio-Ossola","VB","103069","Valstrona"]
["Piemonte","Vanzone con San Carlo","Vanzone con San Carlo (VB) ","ATO 1 Verbano Cusio Ossola e Pianura Novarese",101,101,"Verbano-Cusio-Ossola","VB","103070","Vanzone con San Carlo"]
["Piemonte","Varzo","Varzo (VB) ","ATO 1 Verbano Cusio Ossola e Pianura Novarese",101,101,"Verbano-Cusio-Ossola","VB","103071","Varzo"]
["Piemonte","Verbania","Verbania (VB) ","ATO 1 Verbano Cusio Ossola e Pianura Novarese",101,101,"Verbano-Cusio-Ossola","VB","103072","Verbania"]
["Piemonte","Vignone","Vignone (VB) ","ATO 1 Verbano Cusio Ossola e Pianura Novarese",101,101,"Verbano-Cusio-Ossola","VB","103074","Vignone"]
["Piemonte","Villadossola","Villadossola (VB) ","ATO 1 Verbano Cusio Ossola e Pianura Novarese",101,101,"Verbano-Cusio-Ossola","VB","103075","Villadossola"]
["Piemonte","Villette","Villette (VB) ","ATO 1 Verbano Cusio Ossola e Pianura Novarese",101,101,"Verbano-Cusio-Ossola","VB","103076","Villette"]
["Piemonte","Vogogna","Vogogna (VB) ","ATO 1 Verbano Cusio Ossola e Pianura Novarese",101,101,"Verbano-Cusio-Ossola","VB","103077","Vogogna"]
["Piemonte","Borgomezzavalle","Borgomezzavalle (VB) ","ATO 1 Verbano Cusio Ossola e Pianura Novarese",101,101,"Verbano-Cusio-Ossola","VB","103078","Borgomezzavalle"]
["Piemonte","Valle Cannobina","Valle Cannobina (VB) ","ATO 1 Verbano Cusio Ossola e Pianura Novarese",101,101,"Verbano-Cusio-Ossola","VB","103079","Valle Cannobina"]
["Lombardia","Agrate Brianza","Agrate Brianza (MB) ","Ufficio d'ambito della Provincia di Monza Brianza",313,313,"Monza e della Brianza","MB","108001","Agrate Brianza"]
["Lombardia","Aicurzio","Aicurzio (MB) ","Ufficio d'ambito della Provincia di Monza Brianza",313,313,"Monza e della Brianza","MB","108002","Aicurzio"]
["Lombardia","Albiate","Albiate (MB) ","Ufficio d'ambito della Provincia di Monza Brianza",313,313,"Monza e della Brianza","MB","108003","Albiate"]
["Lombardia","Arcore","Arcore (MB) ","Ufficio d'ambito della Provincia di Monza Brianza",313,313,"Monza e della Brianza","MB","108004","Arcore"]
["Lombardia","Barlassina","Barlassina (MB) ","Ufficio d'ambito della Provincia di Monza Brianza",313,313,"Monza e della Brianza","MB","108005","Barlassina"]
["Lombardia","Bellusco","Bellusco (MB) ","Ufficio d'ambito della Provincia di Monza Brianza",313,313,"Monza e della Brianza","MB","108006","Bellusco"]
["Lombardia","Bernareggio","Bernareggio (MB) ","Ufficio d'ambito della Provincia di Monza Brianza",313,313,"Monza e della Brianza","MB","108007","Bernareggio"]
["Lombardia","Besana in Brianza","Besana in Brianza (MB) ","Ufficio d'ambito della Provincia di Monza Brianza",313,313,"Monza e della Brianza","MB","108008","Besana in Brianza"]
["Lombardia","Biassono","Biassono (MB) ","Ufficio d'ambito della Provincia di Monza Brianza",313,313,"Monza e della Brianza","MB","108009","Biassono"]
["Lombardia","Bovisio-Masciago","Bovisio-Masciago (MB) ","Ufficio d'ambito della Provincia di Monza Brianza",313,313,"Monza e della Brianza","MB","108010","Bovisio-Masciago"]
["Lombardia","Briosco","Briosco (MB) ","Ufficio d'ambito della Provincia di Monza Brianza",313,313,"Monza e della Brianza","MB","108011","Briosco"]
["Lombardia","Brugherio","Brugherio (MB) ","Ufficio d'ambito della Provincia di Monza Brianza",313,313,"Monza e della Brianza","MB","108012","Brugherio"]
["Lombardia","Burago di Molgora","Burago di Molgora (MB) ","Ufficio d'ambito della Provincia di Monza Brianza",313,313,"Monza e della Brianza","MB","108013","Burago di Molgora"]
["Lombardia","Camparada","Camparada (MB) ","Ufficio d'ambito della Provincia di Monza Brianza",313,313,"Monza e della Brianza","MB","108014","Camparada"]
["Lombardia","Carate Brianza","Carate Brianza (MB) ","Ufficio d'ambito della Provincia di Monza Brianza",313,313,"Monza e della Brianza","MB","108015","Carate Brianza"]
["Lombardia","Carnate","Carnate (MB) ","Ufficio d'ambito della Provincia di Monza Brianza",313,313,"Monza e della Brianza","MB","108016","Carnate"]
["Lombardia","Cavenago di Brianza","Cavenago di Brianza (MB) ","Ufficio d'ambito della Provincia di Monza Brianza",313,313,"Monza e della Brianza","MB","108017","Cavenago di Brianza"]
["Lombardia","Ceriano Laghetto","Ceriano Laghetto (MB) ","Ufficio d'ambito della Provincia di Monza Brianza",313,313,"Monza e della Brianza","MB","108018","Ceriano Laghetto"]
["Lombardia","Cesano Maderno","Cesano Maderno (MB) ","Ufficio d'ambito della Provincia di Monza Brianza",313,313,"Monza e della Brianza","MB","108019","Cesano Maderno"]
["Lombardia","Cogliate","Cogliate (MB) ","Ufficio d'ambito della Provincia di Monza Brianza",313,313,"Monza e della Brianza","MB","108020","Cogliate"]
["Lombardia","Concorezzo","Concorezzo (MB) ","Ufficio d'ambito della Provincia di Monza Brianza",313,313,"Monza e della Brianza","MB","108021","Concorezzo"]
["Lombardia","Correzzana","Correzzana (MB) ","Ufficio d'ambito della Provincia di Monza Brianza",313,313,"Monza e della Brianza","MB","108022","Correzzana"]
["Lombardia","Desio","Desio (MB) ","Ufficio d'ambito della Provincia di Monza Brianza",313,313,"Monza e della Brianza","MB","108023","Desio"]
["Lombardia","Giussano","Giussano (MB) ","Ufficio d'ambito della Provincia di Monza Brianza",313,313,"Monza e della Brianza","MB","108024","Giussano"]
["Lombardia","Lazzate","Lazzate (MB) ","Ufficio d'ambito della Provincia di Monza Brianza",313,313,"Monza e della Brianza","MB","108025","Lazzate"]
["Lombardia","Lesmo","Lesmo (MB) ","Ufficio d'ambito della Provincia di Monza Brianza",313,313,"Monza e della Brianza","MB","108026","Lesmo"]
["Lombardia","Limbiate","Limbiate (MB) ","Ufficio d'ambito della Provincia di Monza Brianza",313,313,"Monza e della Brianza","MB","108027","Limbiate"]
["Lombardia","Lissone","Lissone (MB) ","Ufficio d'ambito della Provincia di Monza Brianza",313,313,"Monza e della Brianza","MB","108028","Lissone"]
["Lombardia","Macherio","Macherio (MB) ","Ufficio d'ambito della Provincia di Monza Brianza",313,313,"Monza e della Brianza","MB","108029","Macherio"]
["Lombardia","Meda","Meda (MB) ","Ufficio d'ambito della Provincia di Monza Brianza",313,313,"Monza e della Brianza","MB","108030","Meda"]
["Lombardia","Mezzago","Mezzago (MB) ","Ufficio d'ambito della Provincia di Monza Brianza",313,313,"Monza e della Brianza","MB","108031","Mezzago"]
["Lombardia","Misinto","Misinto (MB) ","Ufficio d'ambito della Provincia di Monza Brianza",313,313,"Monza e della Brianza","MB","108032","Misinto"]
["Lombardia","Monza","Monza (MB) ","Ufficio d'ambito della Provincia di Monza Brianza",313,313,"Monza e della Brianza","MB","108033","Monza"]
["Lombardia","Muggiò","Muggiò (MB) ","Ufficio d'ambito della Provincia di Monza Brianza",313,313,"Monza e della Brianza","MB","108034","Muggiò"]
["Lombardia","Nova Milanese","Nova Milanese (MB) ","Ufficio d'ambito della Provincia di Monza Brianza",313,313,"Monza e della Brianza","MB","108035","Nova Milanese"]
["Lombardia","Ornago","Ornago (MB) ","Ufficio d'ambito della Provincia di Monza Brianza",313,313,"Monza e della Brianza","MB","108036","Ornago"]
["Lombardia","Renate","Renate (MB) ","Ufficio d'ambito della Provincia di Monza Brianza",313,313,"Monza e della Brianza","MB","108037","Renate"]
["Lombardia","Ronco Briantino","Ronco Briantino (MB) ","Ufficio d'ambito della Provincia di Monza Brianza",313,313,"Monza e della Brianza","MB","108038","Ronco Briantino"]
["Lombardia","Seregno","Seregno (MB) ","Ufficio d'ambito della Provincia di Monza Brianza",313,313,"Monza e della Brianza","MB","108039","Seregno"]
["Lombardia","Seveso","Seveso (MB) ","Ufficio d'ambito della Provincia di Monza Brianza",313,313,"Monza e della Brianza","MB","108040","Seveso"]
["Lombardia","Sovico","Sovico (MB) ","Ufficio d'ambito della Provincia di Monza Brianza",313,313,"Monza e della Brianza","MB","108041","Sovico"]
["Lombardia","Sulbiate","Sulbiate (MB) ","Ufficio d'ambito della Provincia di Monza Brianza",313,313,"Monza e della Brianza","MB","108042","Sulbiate"]
["Lombardia","Triuggio","Triuggio (MB) ","Ufficio d'ambito della Provincia di Monza Brianza",313,313,"Monza e della Brianza","MB","108043","Triuggio"]
["Lombardia","Usmate Velate","Usmate Velate (MB) ","Ufficio d'ambito della Provincia di Monza Brianza",313,313,"Monza e della Brianza","MB","108044","Usmate Velate"]
["Lombardia","Varedo","Varedo (MB) ","Ufficio d'ambito della Provincia di Monza Brianza",313,313,"Monza e della Brianza","MB","108045","Varedo"]
["Lombardia","Vedano al Lambro","Vedano al Lambro (MB) ","Ufficio d'ambito della Provincia di Monza Brianza",313,313,"Monza e della Brianza","MB","108046","Vedano al Lambro"]
["Lombardia","Veduggio con Colzano","Veduggio con Colzano (MB) ","Ufficio d'ambito della Provincia di Monza Brianza",313,313,"Monza e della Brianza","MB","108047","Veduggio con Colzano"]
["Lombardia","Verano Brianza","Verano Brianza (MB) ","Ufficio d'ambito della Provincia di Monza Brianza",313,313,"Monza e della Brianza","MB","108048","Verano Brianza"]
["Lombardia","Villasanta","Villasanta (MB) ","Ufficio d'ambito della Provincia di Monza Brianza",313,313,"Monza e della Brianza","MB","108049","Villasanta"]
["Lombardia","Vimercate","Vimercate (MB) ","Ufficio d'ambito della Provincia di Monza Brianza",313,313,"Monza e della Brianza","MB","108050","Vimercate"]
["Lombardia","Busnago","Busnago (MB) ","Ufficio d'ambito della Provincia di Monza Brianza",313,313,"Monza e della Brianza","MB","108051","Busnago"]
["Lombardia","Caponago","Caponago (MB) ","Ufficio d'ambito della Provincia di Monza Brianza",313,313,"Monza e della Brianza","MB","108052","Caponago"]
["Lombardia","Cornate d'Adda","Cornate d'Adda (MB) ","Ufficio d'ambito della Provincia di Monza Brianza",313,313,"Monza e della Brianza","MB","108053","Cornate d'Adda"]
["Lombardia","Lentate sul Seveso","Lentate sul Seveso (MB) ","Ufficio d'ambito della Provincia di Monza Brianza",313,313,"Monza e della Brianza","MB","108054","Lentate sul Seveso"]
["Lombardia","Roncello","Roncello (MB) ","Ufficio d'ambito della Provincia di Monza Brianza",313,313,"Monza e della Brianza","MB","108055","Roncello"]
["Marche","Altidona","Altidona (FM) ","Assemblea di Ambito Territoriale Ottimale n. 5 MARCHE SUD - ASCOLI PICENO E FERMO",1105,1105,"Fermo","FM","109001","Altidona"]
["Marche","Amandola","Amandola (FM) ","Assemblea di Ambito Territoriale Ottimale n. 5 MARCHE SUD - ASCOLI PICENO E FERMO",1105,1105,"Fermo","FM","109002","Amandola"]
["Marche","Belmonte Piceno","Belmonte Piceno (FM) ","Assemblea di Ambito Territoriale Ottimale n. 5 MARCHE SUD - ASCOLI PICENO E FERMO",1105,1105,"Fermo","FM","109003","Belmonte Piceno"]
["Marche","Campofilone","Campofilone (FM) ","Assemblea di Ambito Territoriale Ottimale n. 5 MARCHE SUD - ASCOLI PICENO E FERMO",1105,1105,"Fermo","FM","109004","Campofilone"]
["Marche","Falerone","Falerone (FM) ","Autorità di Ambito Territoriale Ottimale n. 4 MARCHE Centro Sud - Fermano e Maceratese",1104,1104,"Fermo","FM","109005","Falerone"]
["Marche","Fermo","Fermo (FM) ","Assemblea di Ambito Territoriale Ottimale n. 5 MARCHE SUD - ASCOLI PICENO E FERMO",1105,1105,"Fermo","FM","109006","Fermo"]
["Marche","Francavilla d'Ete","Francavilla d'Ete (FM) ","Autorità di Ambito Territoriale Ottimale n. 4 MARCHE Centro Sud - Fermano e Maceratese",1104,1104,"Fermo","FM","109007","Francavilla d'Ete"]
["Marche","Grottazzolina","Grottazzolina (FM) ","Assemblea di Ambito Territoriale Ottimale n. 5 MARCHE SUD - ASCOLI PICENO E FERMO",1105,1105,"Fermo","FM","109008","Grottazzolina"]
["Marche","Lapedona","Lapedona (FM) ","Assemblea di Ambito Territoriale Ottimale n. 5 MARCHE SUD - ASCOLI PICENO E FERMO",1105,1105,"Fermo","FM","109009","Lapedona"]
["Marche","Magliano di Tenna","Magliano di Tenna (FM) ","Autorità di Ambito Territoriale Ottimale n. 4 MARCHE Centro Sud - Fermano e Maceratese",1104,1104,"Fermo","FM","109010","Magliano di Tenna"]
["Marche","Massa Fermana","Massa Fermana (FM) ","Autorità di Ambito Territoriale Ottimale n. 4 MARCHE Centro Sud - Fermano e Maceratese",1104,1104,"Fermo","FM","109011","Massa Fermana"]
["Marche","Monsampietro Morico","Monsampietro Morico (FM) ","Assemblea di Ambito Territoriale Ottimale n. 5 MARCHE SUD - ASCOLI PICENO E FERMO",1105,1105,"Fermo","FM","109012","Monsampietro Morico"]
["Marche","Montappone","Montappone (FM) ","Autorità di Ambito Territoriale Ottimale n. 4 MARCHE Centro Sud - Fermano e Maceratese",1104,1104,"Fermo","FM","109013","Montappone"]
["Marche","Montefalcone Appennino","Montefalcone Appennino (FM) ","Assemblea di Ambito Territoriale Ottimale n. 5 MARCHE SUD - ASCOLI PICENO E FERMO",1105,1105,"Fermo","FM","109014","Montefalcone Appennino"]
["Marche","Montefortino","Montefortino (FM) ","Assemblea di Ambito Territoriale Ottimale n. 5 MARCHE SUD - ASCOLI PICENO E FERMO",1105,1105,"Fermo","FM","109015","Montefortino"]
["Marche","Monte Giberto","Monte Giberto (FM) ","Assemblea di Ambito Territoriale Ottimale n. 5 MARCHE SUD - ASCOLI PICENO E FERMO",1105,1105,"Fermo","FM","109016","Monte Giberto"]
["Marche","Montegiorgio","Montegiorgio (FM) ","Autorità di Ambito Territoriale Ottimale n. 4 MARCHE Centro Sud - Fermano e Maceratese",1104,1104,"Fermo","FM","109017","Montegiorgio"]
["Marche","Montegranaro","Montegranaro (FM) ","Autorità di Ambito Territoriale Ottimale n. 4 MARCHE Centro Sud - Fermano e Maceratese",1104,1104,"Fermo","FM","109018","Montegranaro"]
["Marche","Monteleone di Fermo","Monteleone di Fermo (FM) ","Assemblea di Ambito Territoriale Ottimale n. 5 MARCHE SUD - ASCOLI PICENO E FERMO",1105,1105,"Fermo","FM","109019","Monteleone di Fermo"]
["Marche","Montelparo","Montelparo (FM) ","Assemblea di Ambito Territoriale Ottimale n. 5 MARCHE SUD - ASCOLI PICENO E FERMO",1105,1105,"Fermo","FM","109020","Montelparo"]
["Marche","Monte Rinaldo","Monte Rinaldo (FM) ","Assemblea di Ambito Territoriale Ottimale n. 5 MARCHE SUD - ASCOLI PICENO E FERMO",1105,1105,"Fermo","FM","109021","Monte Rinaldo"]
["Marche","Monterubbiano","Monterubbiano (FM) ","Assemblea di Ambito Territoriale Ottimale n. 5 MARCHE SUD - ASCOLI PICENO E FERMO",1105,1105,"Fermo","FM","109022","Monterubbiano"]
["Marche","Monte San Pietrangeli","Monte San Pietrangeli (FM) ","Autorità di Ambito Territoriale Ottimale n. 4 MARCHE Centro Sud - Fermano e Maceratese",1104,1104,"Fermo","FM","109023","Monte San Pietrangeli"]
["Marche","Monte Urano","Monte Urano (FM) ","Autorità di Ambito Territoriale Ottimale n. 4 MARCHE Centro Sud - Fermano e Maceratese",1104,1104,"Fermo","FM","109024","Monte Urano"]
["Marche","Monte Vidon Combatte","Monte Vidon Combatte (FM) ","Assemblea di Ambito Territoriale Ottimale n. 5 MARCHE SUD - ASCOLI PICENO E FERMO",1105,1105,"Fermo","FM","109025","Monte Vidon Combatte"]
["Marche","Monte Vidon Corrado","Monte Vidon Corrado (FM) ","Autorità di Ambito Territoriale Ottimale n. 4 MARCHE Centro Sud - Fermano e Maceratese",1104,1104,"Fermo","FM","109026","Monte Vidon Corrado"]
["Marche","Montottone","Montottone (FM) ","Assemblea di Ambito Territoriale Ottimale n. 5 MARCHE SUD - ASCOLI PICENO E FERMO",1105,1105,"Fermo","FM","109027","Montottone"]
["Marche","Moresco","Moresco (FM) ","Assemblea di Ambito Territoriale Ottimale n. 5 MARCHE SUD - ASCOLI PICENO E FERMO",1105,1105,"Fermo","FM","109028","Moresco"]
["Marche","Ortezzano","Ortezzano (FM) ","Assemblea di Ambito Territoriale Ottimale n. 5 MARCHE SUD - ASCOLI PICENO E FERMO",1105,1105,"Fermo","FM","109029","Ortezzano"]
["Marche","Pedaso","Pedaso (FM) ","Assemblea di Ambito Territoriale Ottimale n. 5 MARCHE SUD - ASCOLI PICENO E FERMO",1105,1105,"Fermo","FM","109030","Pedaso"]
["Marche","Petritoli","Petritoli (FM) ","Assemblea di Ambito Territoriale Ottimale n. 5 MARCHE SUD - ASCOLI PICENO E FERMO",1105,1105,"Fermo","FM","109031","Petritoli"]
["Marche","Ponzano di Fermo","Ponzano di Fermo (FM) ","Assemblea di Ambito Territoriale Ottimale n. 5 MARCHE SUD - ASCOLI PICENO E FERMO",1105,1105,"Fermo","FM","109032","Ponzano di Fermo"]
["Marche","Porto San Giorgio","Porto San Giorgio (FM) ","Assemblea di Ambito Territoriale Ottimale n. 5 MARCHE SUD - ASCOLI PICENO E FERMO",1105,1105,"Fermo","FM","109033","Porto San Giorgio"]
["Marche","Porto Sant'Elpidio","Porto Sant'Elpidio (FM) ","Autorità di Ambito Territoriale Ottimale n. 4 MARCHE Centro Sud - Fermano e Maceratese",1104,1104,"Fermo","FM","109034","Porto Sant'Elpidio"]
["Marche","Rapagnano","Rapagnano (FM) ","Autorità di Ambito Territoriale Ottimale n. 4 MARCHE Centro Sud - Fermano e Maceratese",1104,1104,"Fermo","FM","109035","Rapagnano"]
["Marche","Santa Vittoria in Matenano","Santa Vittoria in Matenano (FM) ","Assemblea di Ambito Territoriale Ottimale n. 5 MARCHE SUD - ASCOLI PICENO E FERMO",1105,1105,"Fermo","FM","109036","Santa Vittoria in Matenano"]
["Marche","Sant'Elpidio a Mare","Sant'Elpidio a Mare (FM) ","Autorità di Ambito Territoriale Ottimale n. 4 MARCHE Centro Sud - Fermano e Maceratese",1104,1104,"Fermo","FM","109037","Sant'Elpidio a Mare"]
["Marche","Servigliano","Servigliano (FM) ","Assemblea di Ambito Territoriale Ottimale n. 5 MARCHE SUD - ASCOLI PICENO E FERMO",1105,1105,"Fermo","FM","109038","Servigliano"]
["Marche","Smerillo","Smerillo (FM) ","Assemblea di Ambito Territoriale Ottimale n. 5 MARCHE SUD - ASCOLI PICENO E FERMO",1105,1105,"Fermo","FM","109039","Smerillo"]
["Marche","Torre San Patrizio","Torre San Patrizio (FM) ","Autorità di Ambito Territoriale Ottimale n. 4 MARCHE Centro Sud - Fermano e Maceratese",1104,1104,"Fermo","FM","109040","Torre San Patrizio"]
["Puglia","Andria","Andria (BT) ","Autorità Idrica Pugliese",1601,1601,"Barletta-Andria-Trani","BT","110001","Andria"]
["Puglia","Barletta","Barletta (BT) ","Autorità Idrica Pugliese",1601,1601,"Barletta-Andria-Trani","BT","110002","Barletta"]
["Puglia","Bisceglie","Bisceglie (BT) ","Autorità Idrica Pugliese",1601,1601,"Barletta-Andria-Trani","BT","110003","Bisceglie"]
["Puglia","Canosa di Puglia","Canosa di Puglia (BT) ","Autorità Idrica Pugliese",1601,1601,"Barletta-Andria-Trani","BT","110004","Canosa di Puglia"]
["Puglia","Margherita di Savoia","Margherita di Savoia (BT) ","Autorità Idrica Pugliese",1601,1601,"Barletta-Andria-Trani","BT","110005","Margherita di Savoia"]
["Puglia","Minervino Murge","Minervino Murge (BT) ","Autorità Idrica Pugliese",1601,1601,"Barletta-Andria-Trani","BT","110006","Minervino Murge"]
["Puglia","San Ferdinando di Puglia","San Ferdinando di Puglia (BT) ","Autorità Idrica Pugliese",1601,1601,"Barletta-Andria-Trani","BT","110007","San Ferdinando di Puglia"]
["Puglia","Spinazzola","Spinazzola (BT) ","Autorità Idrica Pugliese",1601,1601,"Barletta-Andria-Trani","BT","110008","Spinazzola"]
["Puglia","Trani","Trani (BT) ","Autorità Idrica Pugliese",1601,1601,"Barletta-Andria-Trani","BT","110009","Trani"]
["Puglia","Trinitapoli","Trinitapoli (BT) ","Autorità Idrica Pugliese",1601,1601,"Barletta-Andria-Trani","BT","110010","Trinitapoli"]
["Sardegna","Alghero","Alghero (SS) ","ENTE DI GOVERNO DELL'AMBITO DELLA SARDEGNA",2001,2001,"Sassari","SS","112001","Alghero"]
["Sardegna","Anela","Anela (SS) ","ENTE DI GOVERNO DELL'AMBITO DELLA SARDEGNA",2001,2001,"Sassari","SS","112002","Anela"]
["Sardegna","Ardara","Ardara (SS) ","ENTE DI GOVERNO DELL'AMBITO DELLA SARDEGNA",2001,2001,"Sassari","SS","112003","Ardara"]
["Sardegna","Banari","Banari (SS) ","ENTE DI GOVERNO DELL'AMBITO DELLA SARDEGNA",2001,2001,"Sassari","SS","112004","Banari"]
["Sardegna","Benetutti","Benetutti (SS) ","ENTE DI GOVERNO DELL'AMBITO DELLA SARDEGNA",2001,2001,"Sassari","SS","112005","Benetutti"]
["Sardegna","Bessude","Bessude (SS) ","ENTE DI GOVERNO DELL'AMBITO DELLA SARDEGNA",2001,2001,"Sassari","SS","112006","Bessude"]
["Sardegna","Bonnanaro","Bonnanaro (SS) ","ENTE DI GOVERNO DELL'AMBITO DELLA SARDEGNA",2001,2001,"Sassari","SS","112007","Bonnanaro"]
["Sardegna","Bono","Bono (SS) ","ENTE DI GOVERNO DELL'AMBITO DELLA SARDEGNA",2001,2001,"Sassari","SS","112008","Bono"]
["Sardegna","Bonorva","Bonorva (SS) ","ENTE DI GOVERNO DELL'AMBITO DELLA SARDEGNA",2001,2001,"Sassari","SS","112009","Bonorva"]
["Sardegna","Borutta","Borutta (SS) ","ENTE DI GOVERNO DELL'AMBITO DELLA SARDEGNA",2001,2001,"Sassari","SS","112010","Borutta"]
["Sardegna","Bottidda","Bottidda (SS) ","ENTE DI GOVERNO DELL'AMBITO DELLA SARDEGNA",2001,2001,"Sassari","SS","112011","Bottidda"]
["Sardegna","Bultei","Bultei (SS) ","ENTE DI GOVERNO DELL'AMBITO DELLA SARDEGNA",2001,2001,"Sassari","SS","112012","Bultei"]
["Sardegna","Bulzi","Bulzi (SS) ","ENTE DI GOVERNO DELL'AMBITO DELLA SARDEGNA",2001,2001,"Sassari","SS","112013","Bulzi"]
["Sardegna","Burgos","Burgos (SS) ","ENTE DI GOVERNO DELL'AMBITO DELLA SARDEGNA",2001,2001,"Sassari","SS","112014","Burgos"]
["Sardegna","Cargeghe","Cargeghe (SS) ","ENTE DI GOVERNO DELL'AMBITO DELLA SARDEGNA",2001,2001,"Sassari","SS","112015","Cargeghe"]
["Sardegna","Castelsardo","Castelsardo (SS) ","ENTE DI GOVERNO DELL'AMBITO DELLA SARDEGNA",2001,2001,"Sassari","SS","112016","Castelsardo"]
["Sardegna","Cheremule","Cheremule (SS) ","ENTE DI GOVERNO DELL'AMBITO DELLA SARDEGNA",2001,2001,"Sassari","SS","112017","Cheremule"]
["Sardegna","Chiaramonti","Chiaramonti (SS) ","ENTE DI GOVERNO DELL'AMBITO DELLA SARDEGNA",2001,2001,"Sassari","SS","112018","Chiaramonti"]
["Sardegna","Codrongianos","Codrongianos (SS) ","ENTE DI GOVERNO DELL'AMBITO DELLA SARDEGNA",2001,2001,"Sassari","SS","112019","Codrongianos"]
["Sardegna","Cossoine","Cossoine (SS) ","ENTE DI GOVERNO DELL'AMBITO DELLA SARDEGNA",2001,2001,"Sassari","SS","112020","Cossoine"]
["Sardegna","Erula","Erula (SS) ","ENTE DI GOVERNO DELL'AMBITO DELLA SARDEGNA",2001,2001,"Sassari","SS","112021","Erula"]
["Sardegna","Esporlatu","Esporlatu (SS) ","ENTE DI GOVERNO DELL'AMBITO DELLA SARDEGNA",2001,2001,"Sassari","SS","112022","Esporlatu"]
["Sardegna","Florinas","Florinas (SS) ","ENTE DI GOVERNO DELL'AMBITO DELLA SARDEGNA",2001,2001,"Sassari","SS","112023","Florinas"]
["Sardegna","Giave","Giave (SS) ","ENTE DI GOVERNO DELL'AMBITO DELLA SARDEGNA",2001,2001,"Sassari","SS","112024","Giave"]
["Sardegna","Illorai","Illorai (SS) ","ENTE DI GOVERNO DELL'AMBITO DELLA SARDEGNA",2001,2001,"Sassari","SS","112025","Illorai"]
["Sardegna","Ittireddu","Ittireddu (SS) ","ENTE DI GOVERNO DELL'AMBITO DELLA SARDEGNA",2001,2001,"Sassari","SS","112026","Ittireddu"]
["Sardegna","Ittiri","Ittiri (SS) ","ENTE DI GOVERNO DELL'AMBITO DELLA SARDEGNA",2001,2001,"Sassari","SS","112027","Ittiri"]
["Sardegna","Laerru","Laerru (SS) ","ENTE DI GOVERNO DELL'AMBITO DELLA SARDEGNA",2001,2001,"Sassari","SS","112028","Laerru"]
["Sardegna","Mara","Mara (SS) ","ENTE DI GOVERNO DELL'AMBITO DELLA SARDEGNA",2001,2001,"Sassari","SS","112029","Mara"]
["Sardegna","Martis","Martis (SS) ","ENTE DI GOVERNO DELL'AMBITO DELLA SARDEGNA",2001,2001,"Sassari","SS","112030","Martis"]
["Sardegna","Monteleone Rocca Doria","Monteleone Rocca Doria (SS) ","ENTE DI GOVERNO DELL'AMBITO DELLA SARDEGNA",2001,2001,"Sassari","SS","112031","Monteleone Rocca Doria"]
["Sardegna","Mores","Mores (SS) ","ENTE DI GOVERNO DELL'AMBITO DELLA SARDEGNA",2001,2001,"Sassari","SS","112032","Mores"]
["Sardegna","Muros","Muros (SS) ","ENTE DI GOVERNO DELL'AMBITO DELLA SARDEGNA",2001,2001,"Sassari","SS","112033","Muros"]
["Sardegna","Nughedu San Nicolò","Nughedu San Nicolò (SS) ","ENTE DI GOVERNO DELL'AMBITO DELLA SARDEGNA",2001,2001,"Sassari","SS","112034","Nughedu San Nicolò"]
["Sardegna","Nule","Nule (SS) ","ENTE DI GOVERNO DELL'AMBITO DELLA SARDEGNA",2001,2001,"Sassari","SS","112035","Nule"]
["Sardegna","Nulvi","Nulvi (SS) ","ENTE DI GOVERNO DELL'AMBITO DELLA SARDEGNA",2001,2001,"Sassari","SS","112036","Nulvi"]
["Sardegna","Olmedo","Olmedo (SS) ","ENTE DI GOVERNO DELL'AMBITO DELLA SARDEGNA",2001,2001,"Sassari","SS","112037","Olmedo"]
["Sardegna","Osilo","Osilo (SS) ","ENTE DI GOVERNO DELL'AMBITO DELLA SARDEGNA",2001,2001,"Sassari","SS","112038","Osilo"]
["Sardegna","Ossi","Ossi (SS) ","ENTE DI GOVERNO DELL'AMBITO DELLA SARDEGNA",2001,2001,"Sassari","SS","112039","Ossi"]
["Sardegna","Ozieri","Ozieri (SS) ","ENTE DI GOVERNO DELL'AMBITO DELLA SARDEGNA",2001,2001,"Sassari","SS","112040","Ozieri"]
["Sardegna","Padria","Padria (SS) ","ENTE DI GOVERNO DELL'AMBITO DELLA SARDEGNA",2001,2001,"Sassari","SS","112041","Padria"]
["Sardegna","Pattada","Pattada (SS) ","ENTE DI GOVERNO DELL'AMBITO DELLA SARDEGNA",2001,2001,"Sassari","SS","112042","Pattada"]
["Sardegna","Perfugas","Perfugas (SS) ","ENTE DI GOVERNO DELL'AMBITO DELLA SARDEGNA",2001,2001,"Sassari","SS","112043","Perfugas"]
["Sardegna","Ploaghe","Ploaghe (SS) ","ENTE DI GOVERNO DELL'AMBITO DELLA SARDEGNA",2001,2001,"Sassari","SS","112044","Ploaghe"]
["Sardegna","Porto Torres","Porto Torres (SS) ","ENTE DI GOVERNO DELL'AMBITO DELLA SARDEGNA",2001,2001,"Sassari","SS","112045","Porto Torres"]
["Sardegna","Pozzomaggiore","Pozzomaggiore (SS) ","ENTE DI GOVERNO DELL'AMBITO DELLA SARDEGNA",2001,2001,"Sassari","SS","112046","Pozzomaggiore"]
["Sardegna","Putifigari","Putifigari (SS) ","ENTE DI GOVERNO DELL'AMBITO DELLA SARDEGNA",2001,2001,"Sassari","SS","112047","Putifigari"]
["Sardegna","Romana","Romana (SS) ","ENTE DI GOVERNO DELL'AMBITO DELLA SARDEGNA",2001,2001,"Sassari","SS","112048","Romana"]
["Sardegna","Santa Maria Coghinas","Santa Maria Coghinas (SS) ","ENTE DI GOVERNO DELL'AMBITO DELLA SARDEGNA",2001,2001,"Sassari","SS","112049","Santa Maria Coghinas"]
["Sardegna","Sassari","Sassari (SS) ","ENTE DI GOVERNO DELL'AMBITO DELLA SARDEGNA",2001,2001,"Sassari","SS","112050","Sassari"]
["Sardegna","Sedini","Sedini (SS) ","ENTE DI GOVERNO DELL'AMBITO DELLA SARDEGNA",2001,2001,"Sassari","SS","112051","Sedini"]
["Sardegna","Semestene","Semestene (SS) ","ENTE DI GOVERNO DELL'AMBITO DELLA SARDEGNA",2001,2001,"Sassari","SS","112052","Semestene"]
["Sardegna","Sennori","Sennori (SS) ","ENTE DI GOVERNO DELL'AMBITO DELLA SARDEGNA",2001,2001,"Sassari","SS","112053","Sennori"]
["Sardegna","Siligo","Siligo (SS) ","ENTE DI GOVERNO DELL'AMBITO DELLA SARDEGNA",2001,2001,"Sassari","SS","112054","Siligo"]
["Sardegna","Sorso","Sorso (SS) ","ENTE DI GOVERNO DELL'AMBITO DELLA SARDEGNA",2001,2001,"Sassari","SS","112055","Sorso"]
["Sardegna","Stintino","Stintino (SS) ","ENTE DI GOVERNO DELL'AMBITO DELLA SARDEGNA",2001,2001,"Sassari","SS","112056","Stintino"]
["Sardegna","Tergu","Tergu (SS) ","ENTE DI GOVERNO DELL'AMBITO DELLA SARDEGNA",2001,2001,"Sassari","SS","112057","Tergu"]
["Sardegna","Thiesi","Thiesi (SS) ","ENTE DI GOVERNO DELL'AMBITO DELLA SARDEGNA",2001,2001,"Sassari","SS","112058","Thiesi"]
["Sardegna","Tissi","Tissi (SS) ","ENTE DI GOVERNO DELL'AMBITO DELLA SARDEGNA",2001,2001,"Sassari","SS","112059","Tissi"]
["Sardegna","Torralba","Torralba (SS) ","ENTE DI GOVERNO DELL'AMBITO DELLA SARDEGNA",2001,2001,"Sassari","SS","112060","Torralba"]
["Sardegna","Tula","Tula (SS) ","ENTE DI GOVERNO DELL'AMBITO DELLA SARDEGNA",2001,2001,"Sassari","SS","112061","Tula"]
["Sardegna","Uri","Uri (SS) ","ENTE DI GOVERNO DELL'AMBITO DELLA SARDEGNA",2001,2001,"Sassari","SS","112062","Uri"]
["Sardegna","Usini","Usini (SS) ","ENTE DI GOVERNO DELL'AMBITO DELLA SARDEGNA",2001,2001,"Sassari","SS","112063","Usini"]
["Sardegna","Valledoria","Valledoria (SS) ","ENTE DI GOVERNO DELL'AMBITO DELLA SARDEGNA",2001,2001,"Sassari","SS","112064","Valledoria"]
["Sardegna","Viddalba","Viddalba (SS) ","ENTE DI GOVERNO DELL'AMBITO DELLA SARDEGNA",2001,2001,"Sassari","SS","112065","Viddalba"]
["Sardegna","Villanova Monteleone","Villanova Monteleone (SS) ","ENTE DI GOVERNO DELL'AMBITO DELLA SARDEGNA",2001,2001,"Sassari","SS","112066","Villanova Monteleone"]
["Sardegna","Aggius","Aggius (OT) ","ENTE DI GOVERNO DELL'AMBITO DELLA SARDEGNA",2001,2001,"Gallura Nord-Est Sardegna","OT","113001","Aggius"]
["Sardegna","Aglientu","Aglientu (OT) ","ENTE DI GOVERNO DELL'AMBITO DELLA SARDEGNA",2001,2001,"Gallura Nord-Est Sardegna","OT","113002","Aglientu"]
["Sardegna","Alà dei Sardi","Alà dei Sardi (OT) ","ENTE DI GOVERNO DELL'AMBITO DELLA SARDEGNA",2001,2001,"Gallura Nord-Est Sardegna","OT","113003","Alà dei Sardi"]
["Sardegna","Arzachena","Arzachena (OT) ","ENTE DI GOVERNO DELL'AMBITO DELLA SARDEGNA",2001,2001,"Gallura Nord-Est Sardegna","OT","113004","Arzachena"]
["Sardegna","Badesi","Badesi (OT) ","ENTE DI GOVERNO DELL'AMBITO DELLA SARDEGNA",2001,2001,"Gallura Nord-Est Sardegna","OT","113005","Badesi"]
["Sardegna","Berchidda","Berchidda (OT) ","ENTE DI GOVERNO DELL'AMBITO DELLA SARDEGNA",2001,2001,"Gallura Nord-Est Sardegna","OT","113006","Berchidda"]
["Sardegna","Bortigiadas","Bortigiadas (OT) ","ENTE DI GOVERNO DELL'AMBITO DELLA SARDEGNA",2001,2001,"Gallura Nord-Est Sardegna","OT","113007","Bortigiadas"]
["Sardegna","Buddusò","Buddusò (OT) ","ENTE DI GOVERNO DELL'AMBITO DELLA SARDEGNA",2001,2001,"Gallura Nord-Est Sardegna","OT","113008","Buddusò"]
["Sardegna","Budoni","Budoni (OT) ","ENTE DI GOVERNO DELL'AMBITO DELLA SARDEGNA",2001,2001,"Gallura Nord-Est Sardegna","OT","113009","Budoni"]
["Sardegna","Calangianus","Calangianus (OT) ","ENTE DI GOVERNO DELL'AMBITO DELLA SARDEGNA",2001,2001,"Gallura Nord-Est Sardegna","OT","113010","Calangianus"]
["Sardegna","Golfo Aranci","Golfo Aranci (OT) ","ENTE DI GOVERNO DELL'AMBITO DELLA SARDEGNA",2001,2001,"Gallura Nord-Est Sardegna","OT","113011","Golfo Aranci"]
["Sardegna","La Maddalena","La Maddalena (OT) ","ENTE DI GOVERNO DELL'AMBITO DELLA SARDEGNA",2001,2001,"Gallura Nord-Est Sardegna","OT","113012","La Maddalena"]
["Sardegna","Loiri Porto San Paolo","Loiri Porto San Paolo (OT) ","ENTE DI GOVERNO DELL'AMBITO DELLA SARDEGNA",2001,2001,"Gallura Nord-Est Sardegna","OT","113013","Loiri Porto San Paolo"]
["Sardegna","Luogosanto","Luogosanto (OT) ","ENTE DI GOVERNO DELL'AMBITO DELLA SARDEGNA",2001,2001,"Gallura Nord-Est Sardegna","OT","113014","Luogosanto"]
["Sardegna","Luras","Luras (OT) ","ENTE DI GOVERNO DELL'AMBITO DELLA SARDEGNA",2001,2001,"Gallura Nord-Est Sardegna","OT","113015","Luras"]
["Sardegna","Monti","Monti (OT) ","ENTE DI GOVERNO DELL'AMBITO DELLA SARDEGNA",2001,2001,"Gallura Nord-Est Sardegna","OT","113016","Monti"]
["Sardegna","Olbia","Olbia (OT) ","ENTE DI GOVERNO DELL'AMBITO DELLA SARDEGNA",2001,2001,"Gallura Nord-Est Sardegna","OT","113017","Olbia"]
["Sardegna","Oschiri","Oschiri (OT) ","ENTE DI GOVERNO DELL'AMBITO DELLA SARDEGNA",2001,2001,"Gallura Nord-Est Sardegna","OT","113018","Oschiri"]
["Sardegna","Padru","Padru (OT) ","ENTE DI GOVERNO DELL'AMBITO DELLA SARDEGNA",2001,2001,"Gallura Nord-Est Sardegna","OT","113019","Padru"]
["Sardegna","Palau","Palau (OT) ","ENTE DI GOVERNO DELL'AMBITO DELLA SARDEGNA",2001,2001,"Gallura Nord-Est Sardegna","OT","113020","Palau"]
["Sardegna","San Teodoro","San Teodoro (OT) ","ENTE DI GOVERNO DELL'AMBITO DELLA SARDEGNA",2001,2001,"Gallura Nord-Est Sardegna","OT","113021","San Teodoro"]
["Sardegna","Santa Teresa Gallura","Santa Teresa Gallura (OT) ","ENTE DI GOVERNO DELL'AMBITO DELLA SARDEGNA",2001,2001,"Gallura Nord-Est Sardegna","OT","113022","Santa Teresa Gallura"]
["Sardegna","Sant'Antonio di Gallura","Sant'Antonio di Gallura (OT) ","ENTE DI GOVERNO DELL'AMBITO DELLA SARDEGNA",2001,2001,"Gallura Nord-Est Sardegna","OT","113023","Sant'Antonio di Gallura"]
["Sardegna","Telti","Telti (OT) ","ENTE DI GOVERNO DELL'AMBITO DELLA SARDEGNA",2001,2001,"Gallura Nord-Est Sardegna","OT","113024","Telti"]
["Sardegna","Tempio Pausania","Tempio Pausania (OT) ","ENTE DI GOVERNO DELL'AMBITO DELLA SARDEGNA",2001,2001,"Gallura Nord-Est Sardegna","OT","113025","Tempio Pausania"]
["Sardegna","Trinità d'Agultu e Vignola","Trinità d'Agultu e Vignola (OT) ","ENTE DI GOVERNO DELL'AMBITO DELLA SARDEGNA",2001,2001,"Gallura Nord-Est Sardegna","OT","113026","Trinità d'Agultu e Vignola"]
["Sardegna","Aritzo","Aritzo (NU) ","ENTE DI GOVERNO DELL'AMBITO DELLA SARDEGNA",2001,2001,"Nuoro","NU","114001","Aritzo"]
["Sardegna","Atzara","Atzara (NU) ","ENTE DI GOVERNO DELL'AMBITO DELLA SARDEGNA",2001,2001,"Nuoro","NU","114002","Atzara"]
["Sardegna","Austis","Austis (NU) ","ENTE DI GOVERNO DELL'AMBITO DELLA SARDEGNA",2001,2001,"Nuoro","NU","114003","Austis"]
["Sardegna","Belvì","Belvì (NU) ","ENTE DI GOVERNO DELL'AMBITO DELLA SARDEGNA",2001,2001,"Nuoro","NU","114004","Belvì"]
["Sardegna","Birori","Birori (NU) ","ENTE DI GOVERNO DELL'AMBITO DELLA SARDEGNA",2001,2001,"Nuoro","NU","114005","Birori"]
["Sardegna","Bitti","Bitti (NU) ","ENTE DI GOVERNO DELL'AMBITO DELLA SARDEGNA",2001,2001,"Nuoro","NU","114006","Bitti"]
["Sardegna","Bolotana","Bolotana (NU) ","ENTE DI GOVERNO DELL'AMBITO DELLA SARDEGNA",2001,2001,"Nuoro","NU","114007","Bolotana"]
["Sardegna","Borore","Borore (NU) ","ENTE DI GOVERNO DELL'AMBITO DELLA SARDEGNA",2001,2001,"Nuoro","NU","114008","Borore"]
["Sardegna","Bortigali","Bortigali (NU) ","ENTE DI GOVERNO DELL'AMBITO DELLA SARDEGNA",2001,2001,"Nuoro","NU","114009","Bortigali"]
["Sardegna","Desulo","Desulo (NU) ","ENTE DI GOVERNO DELL'AMBITO DELLA SARDEGNA",2001,2001,"Nuoro","NU","114010","Desulo"]
["Sardegna","Dorgali","Dorgali (NU) ","ENTE DI GOVERNO DELL'AMBITO DELLA SARDEGNA",2001,2001,"Nuoro","NU","114011","Dorgali"]
["Sardegna","Dualchi","Dualchi (NU) ","ENTE DI GOVERNO DELL'AMBITO DELLA SARDEGNA",2001,2001,"Nuoro","NU","114012","Dualchi"]
["Sardegna","Fonni","Fonni (NU) ","ENTE DI GOVERNO DELL'AMBITO DELLA SARDEGNA",2001,2001,"Nuoro","NU","114013","Fonni"]
["Sardegna","Gadoni","Gadoni (NU) ","ENTE DI GOVERNO DELL'AMBITO DELLA SARDEGNA",2001,2001,"Nuoro","NU","114014","Gadoni"]
["Sardegna","Galtellì","Galtellì (NU) ","ENTE DI GOVERNO DELL'AMBITO DELLA SARDEGNA",2001,2001,"Nuoro","NU","114015","Galtellì"]
["Sardegna","Gavoi","Gavoi (NU) ","ENTE DI GOVERNO DELL'AMBITO DELLA SARDEGNA",2001,2001,"Nuoro","NU","114016","Gavoi"]
["Sardegna","Irgoli","Irgoli (NU) ","ENTE DI GOVERNO DELL'AMBITO DELLA SARDEGNA",2001,2001,"Nuoro","NU","114017","Irgoli"]
["Sardegna","Lei","Lei (NU) ","ENTE DI GOVERNO DELL'AMBITO DELLA SARDEGNA",2001,2001,"Nuoro","NU","114018","Lei"]
["Sardegna","Loculi","Loculi (NU) ","ENTE DI GOVERNO DELL'AMBITO DELLA SARDEGNA",2001,2001,"Nuoro","NU","114019","Loculi"]
["Sardegna","Lodè","Lodè (NU) ","ENTE DI GOVERNO DELL'AMBITO DELLA SARDEGNA",2001,2001,"Nuoro","NU","114020","Lodè"]
["Sardegna","Lodine","Lodine (NU) ","ENTE DI GOVERNO DELL'AMBITO DELLA SARDEGNA",2001,2001,"Nuoro","NU","114021","Lodine"]
["Sardegna","Lula","Lula (NU) ","ENTE DI GOVERNO DELL'AMBITO DELLA SARDEGNA",2001,2001,"Nuoro","NU","114022","Lula"]
["Sardegna","Macomer","Macomer (NU) ","ENTE DI GOVERNO DELL'AMBITO DELLA SARDEGNA",2001,2001,"Nuoro","NU","114023","Macomer"]
["Sardegna","Mamoiada","Mamoiada (NU) ","ENTE DI GOVERNO DELL'AMBITO DELLA SARDEGNA",2001,2001,"Nuoro","NU","114024","Mamoiada"]
["Sardegna","Meana Sardo","Meana Sardo (NU) ","ENTE DI GOVERNO DELL'AMBITO DELLA SARDEGNA",2001,2001,"Nuoro","NU","114025","Meana Sardo"]
["Sardegna","Noragugume","Noragugume (NU) ","ENTE DI GOVERNO DELL'AMBITO DELLA SARDEGNA",2001,2001,"Nuoro","NU","114026","Noragugume"]
["Sardegna","Nuoro","Nuoro (NU) ","ENTE DI GOVERNO DELL'AMBITO DELLA SARDEGNA",2001,2001,"Nuoro","NU","114027","Nuoro"]
["Sardegna","Oliena","Oliena (NU) ","ENTE DI GOVERNO DELL'AMBITO DELLA SARDEGNA",2001,2001,"Nuoro","NU","114028","Oliena"]
["Sardegna","Ollolai","Ollolai (NU) ","ENTE DI GOVERNO DELL'AMBITO DELLA SARDEGNA",2001,2001,"Nuoro","NU","114029","Ollolai"]
["Sardegna","Olzai","Olzai (NU) ","ENTE DI GOVERNO DELL'AMBITO DELLA SARDEGNA",2001,2001,"Nuoro","NU","114030","Olzai"]
["Sardegna","Onanì","Onanì (NU) ","ENTE DI GOVERNO DELL'AMBITO DELLA SARDEGNA",2001,2001,"Nuoro","NU","114031","Onanì"]
["Sardegna","Onifai","Onifai (NU) ","ENTE DI GOVERNO DELL'AMBITO DELLA SARDEGNA",2001,2001,"Nuoro","NU","114032","Onifai"]
["Sardegna","Oniferi","Oniferi (NU) ","ENTE DI GOVERNO DELL'AMBITO DELLA SARDEGNA",2001,2001,"Nuoro","NU","114033","Oniferi"]
["Sardegna","Orani","Orani (NU) ","ENTE DI GOVERNO DELL'AMBITO DELLA SARDEGNA",2001,2001,"Nuoro","NU","114034","Orani"]
["Sardegna","Orgosolo","Orgosolo (NU) ","ENTE DI GOVERNO DELL'AMBITO DELLA SARDEGNA",2001,2001,"Nuoro","NU","114035","Orgosolo"]
["Sardegna","Orosei","Orosei (NU) ","ENTE DI GOVERNO DELL'AMBITO DELLA SARDEGNA",2001,2001,"Nuoro","NU","114036","Orosei"]
["Sardegna","Orotelli","Orotelli (NU) ","ENTE DI GOVERNO DELL'AMBITO DELLA SARDEGNA",2001,2001,"Nuoro","NU","114037","Orotelli"]
["Sardegna","Ortueri","Ortueri (NU) ","ENTE DI GOVERNO DELL'AMBITO DELLA SARDEGNA",2001,2001,"Nuoro","NU","114038","Ortueri"]
["Sardegna","Orune","Orune (NU) ","ENTE DI GOVERNO DELL'AMBITO DELLA SARDEGNA",2001,2001,"Nuoro","NU","114039","Orune"]
["Sardegna","Osidda","Osidda (NU) ","ENTE DI GOVERNO DELL'AMBITO DELLA SARDEGNA",2001,2001,"Nuoro","NU","114040","Osidda"]
["Sardegna","Ottana","Ottana (NU) ","ENTE DI GOVERNO DELL'AMBITO DELLA SARDEGNA",2001,2001,"Nuoro","NU","114041","Ottana"]
["Sardegna","Ovodda","Ovodda (NU) ","ENTE DI GOVERNO DELL'AMBITO DELLA SARDEGNA",2001,2001,"Nuoro","NU","114042","Ovodda"]
["Sardegna","Posada","Posada (NU) ","ENTE DI GOVERNO DELL'AMBITO DELLA SARDEGNA",2001,2001,"Nuoro","NU","114043","Posada"]
["Sardegna","Sarule","Sarule (NU) ","ENTE DI GOVERNO DELL'AMBITO DELLA SARDEGNA",2001,2001,"Nuoro","NU","114044","Sarule"]
["Sardegna","Seulo","Seulo (NU) ","ENTE DI GOVERNO DELL'AMBITO DELLA SARDEGNA",2001,2001,"Nuoro","NU","114045","Seulo"]
["Sardegna","Silanus","Silanus (NU) ","ENTE DI GOVERNO DELL'AMBITO DELLA SARDEGNA",2001,2001,"Nuoro","NU","114046","Silanus"]
["Sardegna","Sindia","Sindia (NU) ","ENTE DI GOVERNO DELL'AMBITO DELLA SARDEGNA",2001,2001,"Nuoro","NU","114047","Sindia"]
["Sardegna","Siniscola","Siniscola (NU) ","ENTE DI GOVERNO DELL'AMBITO DELLA SARDEGNA",2001,2001,"Nuoro","NU","114048","Siniscola"]
["Sardegna","Sorgono","Sorgono (NU) ","ENTE DI GOVERNO DELL'AMBITO DELLA SARDEGNA",2001,2001,"Nuoro","NU","114049","Sorgono"]
["Sardegna","Teti","Teti (NU) ","ENTE DI GOVERNO DELL'AMBITO DELLA SARDEGNA",2001,2001,"Nuoro","NU","114050","Teti"]
["Sardegna","Tiana","Tiana (NU) ","ENTE DI GOVERNO DELL'AMBITO DELLA SARDEGNA",2001,2001,"Nuoro","NU","114051","Tiana"]
["Sardegna","Tonara","Tonara (NU) ","ENTE DI GOVERNO DELL'AMBITO DELLA SARDEGNA",2001,2001,"Nuoro","NU","114052","Tonara"]
["Sardegna","Torpè","Torpè (NU) ","ENTE DI GOVERNO DELL'AMBITO DELLA SARDEGNA",2001,2001,"Nuoro","NU","114053","Torpè"]
["Sardegna","Abbasanta","Abbasanta (OR) ","ENTE DI GOVERNO DELL'AMBITO DELLA SARDEGNA",2001,2001,"Oristano","OR","115001","Abbasanta"]
["Sardegna","Aidomaggiore","Aidomaggiore (OR) ","ENTE DI GOVERNO DELL'AMBITO DELLA SARDEGNA",2001,2001,"Oristano","OR","115002","Aidomaggiore"]
["Sardegna","Albagiara","Albagiara (OR) ","ENTE DI GOVERNO DELL'AMBITO DELLA SARDEGNA",2001,2001,"Oristano","OR","115003","Albagiara"]
["Sardegna","Ales","Ales (OR) ","ENTE DI GOVERNO DELL'AMBITO DELLA SARDEGNA",2001,2001,"Oristano","OR","115004","Ales"]
["Sardegna","Allai","Allai (OR) ","ENTE DI GOVERNO DELL'AMBITO DELLA SARDEGNA",2001,2001,"Oristano","OR","115005","Allai"]
["Sardegna","Arborea","Arborea (OR) ","ENTE DI GOVERNO DELL'AMBITO DELLA SARDEGNA",2001,2001,"Oristano","OR","115006","Arborea"]
["Sardegna","Ardauli","Ardauli (OR) ","ENTE DI GOVERNO DELL'AMBITO DELLA SARDEGNA",2001,2001,"Oristano","OR","115007","Ardauli"]
["Sardegna","Assolo","Assolo (OR) ","ENTE DI GOVERNO DELL'AMBITO DELLA SARDEGNA",2001,2001,"Oristano","OR","115008","Assolo"]
["Sardegna","Asuni","Asuni (OR) ","ENTE DI GOVERNO DELL'AMBITO DELLA SARDEGNA",2001,2001,"Oristano","OR","115009","Asuni"]
["Sardegna","Baradili","Baradili (OR) ","ENTE DI GOVERNO DELL'AMBITO DELLA SARDEGNA",2001,2001,"Oristano","OR","115010","Baradili"]
["Sardegna","Baratili San Pietro","Baratili San Pietro (OR) ","ENTE DI GOVERNO DELL'AMBITO DELLA SARDEGNA",2001,2001,"Oristano","OR","115011","Baratili San Pietro"]
["Sardegna","Baressa","Baressa (OR) ","ENTE DI GOVERNO DELL'AMBITO DELLA SARDEGNA",2001,2001,"Oristano","OR","115012","Baressa"]
["Sardegna","Bauladu","Bauladu (OR) ","ENTE DI GOVERNO DELL'AMBITO DELLA SARDEGNA",2001,2001,"Oristano","OR","115013","Bauladu"]
["Sardegna","Bidonì","Bidonì (OR) ","ENTE DI GOVERNO DELL'AMBITO DELLA SARDEGNA",2001,2001,"Oristano","OR","115014","Bidonì"]
["Sardegna","Bonarcado","Bonarcado (OR) ","ENTE DI GOVERNO DELL'AMBITO DELLA SARDEGNA",2001,2001,"Oristano","OR","115015","Bonarcado"]
["Sardegna","Boroneddu","Boroneddu (OR) ","ENTE DI GOVERNO DELL'AMBITO DELLA SARDEGNA",2001,2001,"Oristano","OR","115016","Boroneddu"]
["Sardegna","Bosa","Bosa (OR) ","ENTE DI GOVERNO DELL'AMBITO DELLA SARDEGNA",2001,2001,"Oristano","OR","115017","Bosa"]
["Sardegna","Busachi","Busachi (OR) ","ENTE DI GOVERNO DELL'AMBITO DELLA SARDEGNA",2001,2001,"Oristano","OR","115018","Busachi"]
["Sardegna","Cabras","Cabras (OR) ","ENTE DI GOVERNO DELL'AMBITO DELLA SARDEGNA",2001,2001,"Oristano","OR","115019","Cabras"]
["Sardegna","Cuglieri","Cuglieri (OR) ","ENTE DI GOVERNO DELL'AMBITO DELLA SARDEGNA",2001,2001,"Oristano","OR","115020","Cuglieri"]
["Sardegna","Curcuris","Curcuris (OR) ","ENTE DI GOVERNO DELL'AMBITO DELLA SARDEGNA",2001,2001,"Oristano","OR","115021","Curcuris"]
["Sardegna","Flussio","Flussio (OR) ","ENTE DI GOVERNO DELL'AMBITO DELLA SARDEGNA",2001,2001,"Oristano","OR","115022","Flussio"]
["Sardegna","Fordongianus","Fordongianus (OR) ","ENTE DI GOVERNO DELL'AMBITO DELLA SARDEGNA",2001,2001,"Oristano","OR","115023","Fordongianus"]
["Sardegna","Ghilarza","Ghilarza (OR) ","ENTE DI GOVERNO DELL'AMBITO DELLA SARDEGNA",2001,2001,"Oristano","OR","115024","Ghilarza"]
["Sardegna","Gonnoscodina","Gonnoscodina (OR) ","ENTE DI GOVERNO DELL'AMBITO DELLA SARDEGNA",2001,2001,"Oristano","OR","115025","Gonnoscodina"]
["Sardegna","Gonnosnò","Gonnosnò (OR) ","ENTE DI GOVERNO DELL'AMBITO DELLA SARDEGNA",2001,2001,"Oristano","OR","115026","Gonnosnò"]
["Sardegna","Gonnostramatza","Gonnostramatza (OR) ","ENTE DI GOVERNO DELL'AMBITO DELLA SARDEGNA",2001,2001,"Oristano","OR","115027","Gonnostramatza"]
["Sardegna","Laconi","Laconi (OR) ","ENTE DI GOVERNO DELL'AMBITO DELLA SARDEGNA",2001,2001,"Oristano","OR","115028","Laconi"]
["Sardegna","Magomadas","Magomadas (OR) ","ENTE DI GOVERNO DELL'AMBITO DELLA SARDEGNA",2001,2001,"Oristano","OR","115029","Magomadas"]
["Sardegna","Marrubiu","Marrubiu (OR) ","ENTE DI GOVERNO DELL'AMBITO DELLA SARDEGNA",2001,2001,"Oristano","OR","115030","Marrubiu"]
["Sardegna","Masullas","Masullas (OR) ","ENTE DI GOVERNO DELL'AMBITO DELLA SARDEGNA",2001,2001,"Oristano","OR","115031","Masullas"]
["Sardegna","Milis","Milis (OR) ","ENTE DI GOVERNO DELL'AMBITO DELLA SARDEGNA",2001,2001,"Oristano","OR","115032","Milis"]
["Sardegna","Modolo","Modolo (OR) ","ENTE DI GOVERNO DELL'AMBITO DELLA SARDEGNA",2001,2001,"Oristano","OR","115033","Modolo"]
["Sardegna","Mogorella","Mogorella (OR) ","ENTE DI GOVERNO DELL'AMBITO DELLA SARDEGNA",2001,2001,"Oristano","OR","115034","Mogorella"]
["Sardegna","Mogoro","Mogoro (OR) ","ENTE DI GOVERNO DELL'AMBITO DELLA SARDEGNA",2001,2001,"Oristano","OR","115035","Mogoro"]
["Sardegna","Montresta","Montresta (OR) ","ENTE DI GOVERNO DELL'AMBITO DELLA SARDEGNA",2001,2001,"Oristano","OR","115036","Montresta"]
["Sardegna","Morgongiori","Morgongiori (OR) ","ENTE DI GOVERNO DELL'AMBITO DELLA SARDEGNA",2001,2001,"Oristano","OR","115037","Morgongiori"]
["Sardegna","Narbolia","Narbolia (OR) ","ENTE DI GOVERNO DELL'AMBITO DELLA SARDEGNA",2001,2001,"Oristano","OR","115038","Narbolia"]
["Sardegna","Neoneli","Neoneli (OR) ","ENTE DI GOVERNO DELL'AMBITO DELLA SARDEGNA",2001,2001,"Oristano","OR","115039","Neoneli"]
["Sardegna","Norbello","Norbello (OR) ","ENTE DI GOVERNO DELL'AMBITO DELLA SARDEGNA",2001,2001,"Oristano","OR","115040","Norbello"]
["Sardegna","Nughedu Santa Vittoria","Nughedu Santa Vittoria (OR) ","ENTE DI GOVERNO DELL'AMBITO DELLA SARDEGNA",2001,2001,"Oristano","OR","115041","Nughedu Santa Vittoria"]
["Sardegna","Nurachi","Nurachi (OR) ","ENTE DI GOVERNO DELL'AMBITO DELLA SARDEGNA",2001,2001,"Oristano","OR","115042","Nurachi"]
["Sardegna","Nureci","Nureci (OR) ","ENTE DI GOVERNO DELL'AMBITO DELLA SARDEGNA",2001,2001,"Oristano","OR","115043","Nureci"]
["Sardegna","Ollastra","Ollastra (OR) ","ENTE DI GOVERNO DELL'AMBITO DELLA SARDEGNA",2001,2001,"Oristano","OR","115044","Ollastra"]
["Sardegna","Oristano","Oristano (OR) ","ENTE DI GOVERNO DELL'AMBITO DELLA SARDEGNA",2001,2001,"Oristano","OR","115045","Oristano"]
["Sardegna","Palmas Arborea","Palmas Arborea (OR) ","ENTE DI GOVERNO DELL'AMBITO DELLA SARDEGNA",2001,2001,"Oristano","OR","115046","Palmas Arborea"]
["Sardegna","Pau","Pau (OR) ","ENTE DI GOVERNO DELL'AMBITO DELLA SARDEGNA",2001,2001,"Oristano","OR","115047","Pau"]
["Sardegna","Paulilatino","Paulilatino (OR) ","ENTE DI GOVERNO DELL'AMBITO DELLA SARDEGNA",2001,2001,"Oristano","OR","115048","Paulilatino"]
["Sardegna","Pompu","Pompu (OR) ","ENTE DI GOVERNO DELL'AMBITO DELLA SARDEGNA",2001,2001,"Oristano","OR","115049","Pompu"]
["Sardegna","Riola Sardo","Riola Sardo (OR) ","ENTE DI GOVERNO DELL'AMBITO DELLA SARDEGNA",2001,2001,"Oristano","OR","115050","Riola Sardo"]
["Sardegna","Ruinas","Ruinas (OR) ","ENTE DI GOVERNO DELL'AMBITO DELLA SARDEGNA",2001,2001,"Oristano","OR","115051","Ruinas"]
["Sardegna","Sagama","Sagama (OR) ","ENTE DI GOVERNO DELL'AMBITO DELLA SARDEGNA",2001,2001,"Oristano","OR","115052","Sagama"]
["Sardegna","Samugheo","Samugheo (OR) ","ENTE DI GOVERNO DELL'AMBITO DELLA SARDEGNA",2001,2001,"Oristano","OR","115053","Samugheo"]
["Sardegna","San Nicolò d'Arcidano","San Nicolò d'Arcidano (OR) ","ENTE DI GOVERNO DELL'AMBITO DELLA SARDEGNA",2001,2001,"Oristano","OR","115054","San Nicolò d'Arcidano"]
["Sardegna","San Vero Milis","San Vero Milis (OR) ","ENTE DI GOVERNO DELL'AMBITO DELLA SARDEGNA",2001,2001,"Oristano","OR","115055","San Vero Milis"]
["Sardegna","Santa Giusta","Santa Giusta (OR) ","ENTE DI GOVERNO DELL'AMBITO DELLA SARDEGNA",2001,2001,"Oristano","OR","115056","Santa Giusta"]
["Sardegna","Santu Lussurgiu","Santu Lussurgiu (OR) ","ENTE DI GOVERNO DELL'AMBITO DELLA SARDEGNA",2001,2001,"Oristano","OR","115057","Santu Lussurgiu"]
["Sardegna","Scano di Montiferro","Scano di Montiferro (OR) ","ENTE DI GOVERNO DELL'AMBITO DELLA SARDEGNA",2001,2001,"Oristano","OR","115058","Scano di Montiferro"]
["Sardegna","Sedilo","Sedilo (OR) ","ENTE DI GOVERNO DELL'AMBITO DELLA SARDEGNA",2001,2001,"Oristano","OR","115059","Sedilo"]
["Sardegna","Seneghe","Seneghe (OR) ","ENTE DI GOVERNO DELL'AMBITO DELLA SARDEGNA",2001,2001,"Oristano","OR","115060","Seneghe"]
["Sardegna","Senis","Senis (OR) ","ENTE DI GOVERNO DELL'AMBITO DELLA SARDEGNA",2001,2001,"Oristano","OR","115061","Senis"]
["Sardegna","Sennariolo","Sennariolo (OR) ","ENTE DI GOVERNO DELL'AMBITO DELLA SARDEGNA",2001,2001,"Oristano","OR","115062","Sennariolo"]
["Sardegna","Siamaggiore","Siamaggiore (OR) ","ENTE DI GOVERNO DELL'AMBITO DELLA SARDEGNA",2001,2001,"Oristano","OR","115063","Siamaggiore"]
["Sardegna","Siamanna","Siamanna (OR) ","ENTE DI GOVERNO DELL'AMBITO DELLA SARDEGNA",2001,2001,"Oristano","OR","115064","Siamanna"]
["Sardegna","Siapiccia","Siapiccia (OR) ","ENTE DI GOVERNO DELL'AMBITO DELLA SARDEGNA",2001,2001,"Oristano","OR","115065","Siapiccia"]
["Sardegna","Simala","Simala (OR) ","ENTE DI GOVERNO DELL'AMBITO DELLA SARDEGNA",2001,2001,"Oristano","OR","115066","Simala"]
["Sardegna","Simaxis","Simaxis (OR) ","ENTE DI GOVERNO DELL'AMBITO DELLA SARDEGNA",2001,2001,"Oristano","OR","115067","Simaxis"]
["Sardegna","Sini","Sini (OR) ","ENTE DI GOVERNO DELL'AMBITO DELLA SARDEGNA",2001,2001,"Oristano","OR","115068","Sini"]
["Sardegna","Siris","Siris (OR) ","ENTE DI GOVERNO DELL'AMBITO DELLA SARDEGNA",2001,2001,"Oristano","OR","115069","Siris"]
["Sardegna","Soddì","Soddì (OR) ","ENTE DI GOVERNO DELL'AMBITO DELLA SARDEGNA",2001,2001,"Oristano","OR","115070","Soddì"]
["Sardegna","Solarussa","Solarussa (OR) ","ENTE DI GOVERNO DELL'AMBITO DELLA SARDEGNA",2001,2001,"Oristano","OR","115071","Solarussa"]
["Sardegna","Sorradile","Sorradile (OR) ","ENTE DI GOVERNO DELL'AMBITO DELLA SARDEGNA",2001,2001,"Oristano","OR","115072","Sorradile"]
["Sardegna","Suni","Suni (OR) ","ENTE DI GOVERNO DELL'AMBITO DELLA SARDEGNA",2001,2001,"Oristano","OR","115073","Suni"]
["Sardegna","Tadasuni","Tadasuni (OR) ","ENTE DI GOVERNO DELL'AMBITO DELLA SARDEGNA",2001,2001,"Oristano","OR","115074","Tadasuni"]
["Sardegna","Terralba","Terralba (OR) ","ENTE DI GOVERNO DELL'AMBITO DELLA SARDEGNA",2001,2001,"Oristano","OR","115075","Terralba"]
["Sardegna","Tinnura","Tinnura (OR) ","ENTE DI GOVERNO DELL'AMBITO DELLA SARDEGNA",2001,2001,"Oristano","OR","115076","Tinnura"]
["Sardegna","Tramatza","Tramatza (OR) ","ENTE DI GOVERNO DELL'AMBITO DELLA SARDEGNA",2001,2001,"Oristano","OR","115077","Tramatza"]
["Sardegna","Tresnuraghes","Tresnuraghes (OR) ","ENTE DI GOVERNO DELL'AMBITO DELLA SARDEGNA",2001,2001,"Oristano","OR","115078","Tresnuraghes"]
["Sardegna","Ulà Tirso","Ulà Tirso (OR) ","ENTE DI GOVERNO DELL'AMBITO DELLA SARDEGNA",2001,2001,"Oristano","OR","115079","Ulà Tirso"]
["Sardegna","Uras","Uras (OR) ","ENTE DI GOVERNO DELL'AMBITO DELLA SARDEGNA",2001,2001,"Oristano","OR","115080","Uras"]
["Sardegna","Usellus","Usellus (OR) ","ENTE DI GOVERNO DELL'AMBITO DELLA SARDEGNA",2001,2001,"Oristano","OR","115081","Usellus"]
["Sardegna","Villa Sant'Antonio","Villa Sant'Antonio (OR) ","ENTE DI GOVERNO DELL'AMBITO DELLA SARDEGNA",2001,2001,"Oristano","OR","115082","Villa Sant'Antonio"]
["Sardegna","Villa Verde","Villa Verde (OR) ","ENTE DI GOVERNO DELL'AMBITO DELLA SARDEGNA",2001,2001,"Oristano","OR","115083","Villa Verde"]
["Sardegna","Villanova Truschedu","Villanova Truschedu (OR) ","ENTE DI GOVERNO DELL'AMBITO DELLA SARDEGNA",2001,2001,"Oristano","OR","115084","Villanova Truschedu"]
["Sardegna","Villaurbana","Villaurbana (OR) ","ENTE DI GOVERNO DELL'AMBITO DELLA SARDEGNA",2001,2001,"Oristano","OR","115085","Villaurbana"]
["Sardegna","Zeddiani","Zeddiani (OR) ","ENTE DI GOVERNO DELL'AMBITO DELLA SARDEGNA",2001,2001,"Oristano","OR","115086","Zeddiani"]
["Sardegna","Zerfaliu","Zerfaliu (OR) ","ENTE DI GOVERNO DELL'AMBITO DELLA SARDEGNA",2001,2001,"Oristano","OR","115087","Zerfaliu"]
["Sardegna","Arzana","Arzana (OG) ","ENTE DI GOVERNO DELL'AMBITO DELLA SARDEGNA",2001,2001,"Ogliastra","OG","116001","Arzana"]
["Sardegna","Bari Sardo","Bari Sardo (OG) ","ENTE DI GOVERNO DELL'AMBITO DELLA SARDEGNA",2001,2001,"Ogliastra","OG","116002","Bari Sardo"]
["Sardegna","Baunei","Baunei (OG) ","ENTE DI GOVERNO DELL'AMBITO DELLA SARDEGNA",2001,2001,"Ogliastra","OG","116003","Baunei"]
["Sardegna","Cardedu","Cardedu (OG) ","ENTE DI GOVERNO DELL'AMBITO DELLA SARDEGNA",2001,2001,"Ogliastra","OG","116004","Cardedu"]
["Sardegna","Elini","Elini (OG) ","ENTE DI GOVERNO DELL'AMBITO DELLA SARDEGNA",2001,2001,"Ogliastra","OG","116005","Elini"]
["Sardegna","Gairo","Gairo (OG) ","ENTE DI GOVERNO DELL'AMBITO DELLA SARDEGNA",2001,2001,"Ogliastra","OG","116006","Gairo"]
["Sardegna","Girasole","Girasole (OG) ","ENTE DI GOVERNO DELL'AMBITO DELLA SARDEGNA",2001,2001,"Ogliastra","OG","116007","Girasole"]
["Sardegna","Ilbono","Ilbono (OG) ","ENTE DI GOVERNO DELL'AMBITO DELLA SARDEGNA",2001,2001,"Ogliastra","OG","116008","Ilbono"]
["Sardegna","Jerzu","Jerzu (OG) ","ENTE DI GOVERNO DELL'AMBITO DELLA SARDEGNA",2001,2001,"Ogliastra","OG","116009","Jerzu"]
["Sardegna","Lanusei","Lanusei (OG) ","ENTE DI GOVERNO DELL'AMBITO DELLA SARDEGNA",2001,2001,"Ogliastra","OG","116010","Lanusei"]
["Sardegna","Loceri","Loceri (OG) ","ENTE DI GOVERNO DELL'AMBITO DELLA SARDEGNA",2001,2001,"Ogliastra","OG","116011","Loceri"]
["Sardegna","Lotzorai","Lotzorai (OG) ","ENTE DI GOVERNO DELL'AMBITO DELLA SARDEGNA",2001,2001,"Ogliastra","OG","116012","Lotzorai"]
["Sardegna","Osini","Osini (OG) ","ENTE DI GOVERNO DELL'AMBITO DELLA SARDEGNA",2001,2001,"Ogliastra","OG","116013","Osini"]
["Sardegna","Perdasdefogu","Perdasdefogu (OG) ","ENTE DI GOVERNO DELL'AMBITO DELLA SARDEGNA",2001,2001,"Ogliastra","OG","116014","Perdasdefogu"]
["Sardegna","Talana","Talana (OG) ","ENTE DI GOVERNO DELL'AMBITO DELLA SARDEGNA",2001,2001,"Ogliastra","OG","116015","Talana"]
["Sardegna","Tertenia","Tertenia (OG) ","ENTE DI GOVERNO DELL'AMBITO DELLA SARDEGNA",2001,2001,"Ogliastra","OG","116016","Tertenia"]
["Sardegna","Tortolì","Tortolì (OG) ","ENTE DI GOVERNO DELL'AMBITO DELLA SARDEGNA",2001,2001,"Ogliastra","OG","116017","Tortolì"]
["Sardegna","Triei","Triei (OG) ","ENTE DI GOVERNO DELL'AMBITO DELLA SARDEGNA",2001,2001,"Ogliastra","OG","116018","Triei"]
["Sardegna","Ulassai","Ulassai (OG) ","ENTE DI GOVERNO DELL'AMBITO DELLA SARDEGNA",2001,2001,"Ogliastra","OG","116019","Ulassai"]
["Sardegna","Urzulei","Urzulei (OG) ","ENTE DI GOVERNO DELL'AMBITO DELLA SARDEGNA",2001,2001,"Ogliastra","OG","116020","Urzulei"]
["Sardegna","Ussassai","Ussassai (OG) ","ENTE DI GOVERNO DELL'AMBITO DELLA SARDEGNA",2001,2001,"Ogliastra","OG","116021","Ussassai"]
["Sardegna","Villagrande Strisaili","Villagrande Strisaili (OG) ","ENTE DI GOVERNO DELL'AMBITO DELLA SARDEGNA",2001,2001,"Ogliastra","OG","116022","Villagrande Strisaili"]
["Sardegna","Seui","Seui (OG) ","ENTE DI GOVERNO DELL'AMBITO DELLA SARDEGNA",2001,2001,"Ogliastra","OG","116023","Seui"]
["Sardegna","Arbus","Arbus (VS) ","ENTE DI GOVERNO DELL'AMBITO DELLA SARDEGNA",2001,2001,"Medio Campidano","VS","117001","Arbus"]
["Sardegna","Barumini","Barumini (VS) ","ENTE DI GOVERNO DELL'AMBITO DELLA SARDEGNA",2001,2001,"Medio Campidano","VS","117002","Barumini"]
["Sardegna","Collinas","Collinas (VS) ","ENTE DI GOVERNO DELL'AMBITO DELLA SARDEGNA",2001,2001,"Medio Campidano","VS","117003","Collinas"]
["Sardegna","Furtei","Furtei (VS) ","ENTE DI GOVERNO DELL'AMBITO DELLA SARDEGNA",2001,2001,"Medio Campidano","VS","117004","Furtei"]
["Sardegna","Genuri","Genuri (VS) ","ENTE DI GOVERNO DELL'AMBITO DELLA SARDEGNA",2001,2001,"Medio Campidano","VS","117005","Genuri"]
["Sardegna","Gesturi","Gesturi (VS) ","ENTE DI GOVERNO DELL'AMBITO DELLA SARDEGNA",2001,2001,"Medio Campidano","VS","117006","Gesturi"]
["Sardegna","Gonnosfanadiga","Gonnosfanadiga (VS) ","ENTE DI GOVERNO DELL'AMBITO DELLA SARDEGNA",2001,2001,"Medio Campidano","VS","117007","Gonnosfanadiga"]
["Sardegna","Guspini","Guspini (VS) ","ENTE DI GOVERNO DELL'AMBITO DELLA SARDEGNA",2001,2001,"Medio Campidano","VS","117008","Guspini"]
["Sardegna","Las Plassas","Las Plassas (VS) ","ENTE DI GOVERNO DELL'AMBITO DELLA SARDEGNA",2001,2001,"Medio Campidano","VS","117009","Las Plassas"]
["Sardegna","Lunamatrona","Lunamatrona (VS) ","ENTE DI GOVERNO DELL'AMBITO DELLA SARDEGNA",2001,2001,"Medio Campidano","VS","117010","Lunamatrona"]
["Sardegna","Pabillonis","Pabillonis (VS) ","ENTE DI GOVERNO DELL'AMBITO DELLA SARDEGNA",2001,2001,"Medio Campidano","VS","117011","Pabillonis"]
["Sardegna","Pauli Arbarei","Pauli Arbarei (VS) ","ENTE DI GOVERNO DELL'AMBITO DELLA SARDEGNA",2001,2001,"Medio Campidano","VS","117012","Pauli Arbarei"]
["Sardegna","Samassi","Samassi (VS) ","ENTE DI GOVERNO DELL'AMBITO DELLA SARDEGNA",2001,2001,"Medio Campidano","VS","117013","Samassi"]
["Sardegna","San Gavino Monreale","San Gavino Monreale (VS) ","ENTE DI GOVERNO DELL'AMBITO DELLA SARDEGNA",2001,2001,"Medio Campidano","VS","117014","San Gavino Monreale"]
["Sardegna","Sanluri","Sanluri (VS) ","ENTE DI GOVERNO DELL'AMBITO DELLA SARDEGNA",2001,2001,"Medio Campidano","VS","117015","Sanluri"]
["Sardegna","Sardara","Sardara (VS) ","ENTE DI GOVERNO DELL'AMBITO DELLA SARDEGNA",2001,2001,"Medio Campidano","VS","117016","Sardara"]
["Sardegna","Segariu","Segariu (VS) ","ENTE DI GOVERNO DELL'AMBITO DELLA SARDEGNA",2001,2001,"Medio Campidano","VS","117017","Segariu"]
["Sardegna","Serramanna","Serramanna (VS) ","ENTE DI GOVERNO DELL'AMBITO DELLA SARDEGNA",2001,2001,"Medio Campidano","VS","117018","Serramanna"]
["Sardegna","Serrenti","Serrenti (VS) ","ENTE DI GOVERNO DELL'AMBITO DELLA SARDEGNA",2001,2001,"Medio Campidano","VS","117019","Serrenti"]
["Sardegna","Setzu","Setzu (VS) ","ENTE DI GOVERNO DELL'AMBITO DELLA SARDEGNA",2001,2001,"Medio Campidano","VS","117020","Setzu"]
["Sardegna","Siddi","Siddi (VS) ","ENTE DI GOVERNO DELL'AMBITO DELLA SARDEGNA",2001,2001,"Medio Campidano","VS","117021","Siddi"]
["Sardegna","Tuili","Tuili (VS) ","ENTE DI GOVERNO DELL'AMBITO DELLA SARDEGNA",2001,2001,"Medio Campidano","VS","117022","Tuili"]
["Sardegna","Turri","Turri (VS) ","ENTE DI GOVERNO DELL'AMBITO DELLA SARDEGNA",2001,2001,"Medio Campidano","VS","117023","Turri"]
["Sardegna","Ussaramanna","Ussaramanna (VS) ","ENTE DI GOVERNO DELL'AMBITO DELLA SARDEGNA",2001,2001,"Medio Campidano","VS","117024","Ussaramanna"]
["Sardegna","Villacidro","Villacidro (VS) ","ENTE DI GOVERNO DELL'AMBITO DELLA SARDEGNA",2001,2001,"Medio Campidano","VS","117025","Villacidro"]
["Sardegna","Villamar","Villamar (VS) ","ENTE DI GOVERNO DELL'AMBITO DELLA SARDEGNA",2001,2001,"Medio Campidano","VS","117026","Villamar"]
["Sardegna","Villanovaforru","Villanovaforru (VS) ","ENTE DI GOVERNO DELL'AMBITO DELLA SARDEGNA",2001,2001,"Medio Campidano","VS","117027","Villanovaforru"]
["Sardegna","Villanovafranca","Villanovafranca (VS) ","ENTE DI GOVERNO DELL'AMBITO DELLA SARDEGNA",2001,2001,"Medio Campidano","VS","117028","Villanovafranca"]
["Sardegna","Armungia","Armungia (CA) ","ENTE DI GOVERNO DELL'AMBITO DELLA SARDEGNA",2001,2001,"Cagliari","CA","118001","Armungia"]
["Sardegna","Assemini","Assemini (CA) ","ENTE DI GOVERNO DELL'AMBITO DELLA SARDEGNA",2001,2001,"Cagliari","CA","118002","Assemini"]
["Sardegna","Ballao","Ballao (CA) ","ENTE DI GOVERNO DELL'AMBITO DELLA SARDEGNA",2001,2001,"Cagliari","CA","118003","Ballao"]
["Sardegna","Barrali","Barrali (CA) ","ENTE DI GOVERNO DELL'AMBITO DELLA SARDEGNA",2001,2001,"Cagliari","CA","118004","Barrali"]
["Sardegna","Burcei","Burcei (CA) ","ENTE DI GOVERNO DELL'AMBITO DELLA SARDEGNA",2001,2001,"Cagliari","CA","118005","Burcei"]
["Sardegna","Cagliari","Cagliari (CA) ","ENTE DI GOVERNO DELL'AMBITO DELLA SARDEGNA",2001,2001,"Cagliari","CA","118006","Cagliari"]
["Sardegna","Capoterra","Capoterra (CA) ","ENTE DI GOVERNO DELL'AMBITO DELLA SARDEGNA",2001,2001,"Cagliari","CA","118007","Capoterra"]
["Sardegna","Castiadas","Castiadas (CA) ","ENTE DI GOVERNO DELL'AMBITO DELLA SARDEGNA",2001,2001,"Cagliari","CA","118008","Castiadas"]
["Sardegna","Decimomannu","Decimomannu (CA) ","ENTE DI GOVERNO DELL'AMBITO DELLA SARDEGNA",2001,2001,"Cagliari","CA","118009","Decimomannu"]
["Sardegna","Decimoputzu","Decimoputzu (CA) ","ENTE DI GOVERNO DELL'AMBITO DELLA SARDEGNA",2001,2001,"Cagliari","CA","118010","Decimoputzu"]
["Sardegna","Dolianova","Dolianova (CA) ","ENTE DI GOVERNO DELL'AMBITO DELLA SARDEGNA",2001,2001,"Cagliari","CA","118011","Dolianova"]
["Sardegna","Domus de Maria","Domus de Maria (CA) ","ENTE DI GOVERNO DELL'AMBITO DELLA SARDEGNA",2001,2001,"Cagliari","CA","118012","Domus de Maria"]
["Sardegna","Donori","Donori (CA) ","ENTE DI GOVERNO DELL'AMBITO DELLA SARDEGNA",2001,2001,"Cagliari","CA","118013","Donori"]
["Sardegna","Elmas","Elmas (CA) ","ENTE DI GOVERNO DELL'AMBITO DELLA SARDEGNA",2001,2001,"Cagliari","CA","118014","Elmas"]
["Sardegna","Escalaplano","Escalaplano (CA) ","ENTE DI GOVERNO DELL'AMBITO DELLA SARDEGNA",2001,2001,"Cagliari","CA","118015","Escalaplano"]
["Sardegna","Escolca","Escolca (CA) ","ENTE DI GOVERNO DELL'AMBITO DELLA SARDEGNA",2001,2001,"Cagliari","CA","118016","Escolca"]
["Sardegna","Esterzili","Esterzili (CA) ","ENTE DI GOVERNO DELL'AMBITO DELLA SARDEGNA",2001,2001,"Cagliari","CA","118017","Esterzili"]
["Sardegna","Genoni","Genoni (CA) ","ENTE DI GOVERNO DELL'AMBITO DELLA SARDEGNA",2001,2001,"Cagliari","CA","118018","Genoni"]
["Sardegna","Gergei","Gergei (CA) ","ENTE DI GOVERNO DELL'AMBITO DELLA SARDEGNA",2001,2001,"Cagliari","CA","118019","Gergei"]
["Sardegna","Gesico","Gesico (CA) ","ENTE DI GOVERNO DELL'AMBITO DELLA SARDEGNA",2001,2001,"Cagliari","CA","118020","Gesico"]
["Sardegna","Goni","Goni (CA) ","ENTE DI GOVERNO DELL'AMBITO DELLA SARDEGNA",2001,2001,"Cagliari","CA","118021","Goni"]
["Sardegna","Guamaggiore","Guamaggiore (CA) ","ENTE DI GOVERNO DELL'AMBITO DELLA SARDEGNA",2001,2001,"Cagliari","CA","118022","Guamaggiore"]
["Sardegna","Guasila","Guasila (CA) ","ENTE DI GOVERNO DELL'AMBITO DELLA SARDEGNA",2001,2001,"Cagliari","CA","118023","Guasila"]
["Sardegna","Isili","Isili (CA) ","ENTE DI GOVERNO DELL'AMBITO DELLA SARDEGNA",2001,2001,"Cagliari","CA","118024","Isili"]
["Sardegna","Mandas","Mandas (CA) ","ENTE DI GOVERNO DELL'AMBITO DELLA SARDEGNA",2001,2001,"Cagliari","CA","118025","Mandas"]
["Sardegna","Maracalagonis","Maracalagonis (CA) ","ENTE DI GOVERNO DELL'AMBITO DELLA SARDEGNA",2001,2001,"Cagliari","CA","118026","Maracalagonis"]
["Sardegna","Monastir","Monastir (CA) ","ENTE DI GOVERNO DELL'AMBITO DELLA SARDEGNA",2001,2001,"Cagliari","CA","118027","Monastir"]
["Sardegna","Monserrato","Monserrato (CA) ","ENTE DI GOVERNO DELL'AMBITO DELLA SARDEGNA",2001,2001,"Cagliari","CA","118028","Monserrato"]
["Sardegna","Muravera","Muravera (CA) ","ENTE DI GOVERNO DELL'AMBITO DELLA SARDEGNA",2001,2001,"Cagliari","CA","118029","Muravera"]
["Sardegna","Nuragus","Nuragus (CA) ","ENTE DI GOVERNO DELL'AMBITO DELLA SARDEGNA",2001,2001,"Cagliari","CA","118030","Nuragus"]
["Sardegna","Nurallao","Nurallao (CA) ","ENTE DI GOVERNO DELL'AMBITO DELLA SARDEGNA",2001,2001,"Cagliari","CA","118031","Nurallao"]
["Sardegna","Nuraminis","Nuraminis (CA) ","ENTE DI GOVERNO DELL'AMBITO DELLA SARDEGNA",2001,2001,"Cagliari","CA","118032","Nuraminis"]
["Sardegna","Nurri","Nurri (CA) ","ENTE DI GOVERNO DELL'AMBITO DELLA SARDEGNA",2001,2001,"Cagliari","CA","118033","Nurri"]
["Sardegna","Orroli","Orroli (CA) ","ENTE DI GOVERNO DELL'AMBITO DELLA SARDEGNA",2001,2001,"Cagliari","CA","118034","Orroli"]
["Sardegna","Ortacesus","Ortacesus (CA) ","ENTE DI GOVERNO DELL'AMBITO DELLA SARDEGNA",2001,2001,"Cagliari","CA","118035","Ortacesus"]
["Sardegna","Pimentel","Pimentel (CA) ","ENTE DI GOVERNO DELL'AMBITO DELLA SARDEGNA",2001,2001,"Cagliari","CA","118036","Pimentel"]
["Sardegna","Pula","Pula (CA) ","ENTE DI GOVERNO DELL'AMBITO DELLA SARDEGNA",2001,2001,"Cagliari","CA","118037","Pula"]
["Sardegna","Quartu Sant'Elena","Quartu Sant'Elena (CA) ","ENTE DI GOVERNO DELL'AMBITO DELLA SARDEGNA",2001,2001,"Cagliari","CA","118038","Quartu Sant'Elena"]
["Sardegna","Quartucciu","Quartucciu (CA) ","ENTE DI GOVERNO DELL'AMBITO DELLA SARDEGNA",2001,2001,"Cagliari","CA","118039","Quartucciu"]
["Sardegna","Sadali","Sadali (CA) ","ENTE DI GOVERNO DELL'AMBITO DELLA SARDEGNA",2001,2001,"Cagliari","CA","118040","Sadali"]
["Sardegna","Samatzai","Samatzai (CA) ","ENTE DI GOVERNO DELL'AMBITO DELLA SARDEGNA",2001,2001,"Cagliari","CA","118041","Samatzai"]
["Sardegna","San Basilio","San Basilio (CA) ","ENTE DI GOVERNO DELL'AMBITO DELLA SARDEGNA",2001,2001,"Cagliari","CA","118042","San Basilio"]
["Sardegna","San Nicolò Gerrei","San Nicolò Gerrei (CA) ","ENTE DI GOVERNO DELL'AMBITO DELLA SARDEGNA",2001,2001,"Cagliari","CA","118043","San Nicolò Gerrei"]
["Sardegna","San Sperate","San Sperate (CA) ","ENTE DI GOVERNO DELL'AMBITO DELLA SARDEGNA",2001,2001,"Cagliari","CA","118044","San Sperate"]
["Sardegna","San Vito","San Vito (CA) ","ENTE DI GOVERNO DELL'AMBITO DELLA SARDEGNA",2001,2001,"Cagliari","CA","118045","San Vito"]
["Sardegna","Sant'Andrea Frius","Sant'Andrea Frius (CA) ","ENTE DI GOVERNO DELL'AMBITO DELLA SARDEGNA",2001,2001,"Cagliari","CA","118046","Sant'Andrea Frius"]
["Sardegna","Sarroch","Sarroch (CA) ","ENTE DI GOVERNO DELL'AMBITO DELLA SARDEGNA",2001,2001,"Cagliari","CA","118047","Sarroch"]
["Sardegna","Selargius","Selargius (CA) ","ENTE DI GOVERNO DELL'AMBITO DELLA SARDEGNA",2001,2001,"Cagliari","CA","118048","Selargius"]
["Sardegna","Selegas","Selegas (CA) ","ENTE DI GOVERNO DELL'AMBITO DELLA SARDEGNA",2001,2001,"Cagliari","CA","118049","Selegas"]
["Sardegna","Senorbì","Senorbì (CA) ","ENTE DI GOVERNO DELL'AMBITO DELLA SARDEGNA",2001,2001,"Cagliari","CA","118050","Senorbì"]
["Sardegna","Serdiana","Serdiana (CA) ","ENTE DI GOVERNO DELL'AMBITO DELLA SARDEGNA",2001,2001,"Cagliari","CA","118051","Serdiana"]
["Sardegna","Serri","Serri (CA) ","ENTE DI GOVERNO DELL'AMBITO DELLA SARDEGNA",2001,2001,"Cagliari","CA","118052","Serri"]
["Sardegna","Sestu","Sestu (CA) ","ENTE DI GOVERNO DELL'AMBITO DELLA SARDEGNA",2001,2001,"Cagliari","CA","118053","Sestu"]
["Sardegna","Settimo San Pietro","Settimo San Pietro (CA) ","ENTE DI GOVERNO DELL'AMBITO DELLA SARDEGNA",2001,2001,"Cagliari","CA","118054","Settimo San Pietro"]
["Sardegna","Siliqua","Siliqua (CA) ","ENTE DI GOVERNO DELL'AMBITO DELLA SARDEGNA",2001,2001,"Cagliari","CA","118056","Siliqua"]
["Sardegna","Silius","Silius (CA) ","ENTE DI GOVERNO DELL'AMBITO DELLA SARDEGNA",2001,2001,"Cagliari","CA","118057","Silius"]
["Sardegna","Sinnai","Sinnai (CA) ","ENTE DI GOVERNO DELL'AMBITO DELLA SARDEGNA",2001,2001,"Cagliari","CA","118058","Sinnai"]
["Sardegna","Siurgus Donigala","Siurgus Donigala (CA) ","ENTE DI GOVERNO DELL'AMBITO DELLA SARDEGNA",2001,2001,"Cagliari","CA","118059","Siurgus Donigala"]
["Sardegna","Soleminis","Soleminis (CA) ","ENTE DI GOVERNO DELL'AMBITO DELLA SARDEGNA",2001,2001,"Cagliari","CA","118060","Soleminis"]
["Sardegna","Suelli","Suelli (CA) ","ENTE DI GOVERNO DELL'AMBITO DELLA SARDEGNA",2001,2001,"Cagliari","CA","118061","Suelli"]
["Sardegna","Ussana","Ussana (CA) ","ENTE DI GOVERNO DELL'AMBITO DELLA SARDEGNA",2001,2001,"Cagliari","CA","118063","Ussana"]
["Sardegna","Uta","Uta (CA) ","ENTE DI GOVERNO DELL'AMBITO DELLA SARDEGNA",2001,2001,"Cagliari","CA","118064","Uta"]
["Sardegna","Vallermosa","Vallermosa (CA) ","ENTE DI GOVERNO DELL'AMBITO DELLA SARDEGNA",2001,2001,"Cagliari","CA","118065","Vallermosa"]
["Sardegna","Villa San Pietro","Villa San Pietro (CA) ","ENTE DI GOVERNO DELL'AMBITO DELLA SARDEGNA",2001,2001,"Cagliari","CA","118066","Villa San Pietro"]
["Sardegna","Villanova Tulo","Villanova Tulo (CA) ","ENTE DI GOVERNO DELL'AMBITO DELLA SARDEGNA",2001,2001,"Cagliari","CA","118067","Villanova Tulo"]
["Sardegna","Villaputzu","Villaputzu (CA) ","ENTE DI GOVERNO DELL'AMBITO DELLA SARDEGNA",2001,2001,"Cagliari","CA","118068","Villaputzu"]
["Sardegna","Villasalto","Villasalto (CA) ","ENTE DI GOVERNO DELL'AMBITO DELLA SARDEGNA",2001,2001,"Cagliari","CA","118069","Villasalto"]
["Sardegna","Villasimius","Villasimius (CA) ","ENTE DI GOVERNO DELL'AMBITO DELLA SARDEGNA",2001,2001,"Cagliari","CA","118070","Villasimius"]
["Sardegna","Villasor","Villasor (CA) ","ENTE DI GOVERNO DELL'AMBITO DELLA SARDEGNA",2001,2001,"Cagliari","CA","118071","Villasor"]
["Sardegna","Villaspeciosa","Villaspeciosa (CA) ","ENTE DI GOVERNO DELL'AMBITO DELLA SARDEGNA",2001,2001,"Cagliari","CA","118072","Villaspeciosa"]
["Sardegna","Buggerru","Buggerru (CI) ","ENTE DI GOVERNO DELL'AMBITO DELLA SARDEGNA",2001,2001,"Sulcis Iglesiente","CI","119001","Buggerru"]
["Sardegna","Calasetta","Calasetta (CI) ","ENTE DI GOVERNO DELL'AMBITO DELLA SARDEGNA",2001,2001,"Sulcis Iglesiente","CI","119002","Calasetta"]
["Sardegna","Carbonia","Carbonia (CI) ","ENTE DI GOVERNO DELL'AMBITO DELLA SARDEGNA",2001,2001,"Sulcis Iglesiente","CI","119003","Carbonia"]
["Sardegna","Carloforte","Carloforte (CI) ","ENTE DI GOVERNO DELL'AMBITO DELLA SARDEGNA",2001,2001,"Sulcis Iglesiente","CI","119004","Carloforte"]
["Sardegna","Domusnovas","Domusnovas (CI) ","ENTE DI GOVERNO DELL'AMBITO DELLA SARDEGNA",2001,2001,"Sulcis Iglesiente","CI","119005","Domusnovas"]
["Sardegna","Fluminimaggiore","Fluminimaggiore (CI) ","ENTE DI GOVERNO DELL'AMBITO DELLA SARDEGNA",2001,2001,"Sulcis Iglesiente","CI","119006","Fluminimaggiore"]
["Sardegna","Giba","Giba (CI) ","ENTE DI GOVERNO DELL'AMBITO DELLA SARDEGNA",2001,2001,"Sulcis Iglesiente","CI","119007","Giba"]
["Sardegna","Gonnesa","Gonnesa (CI) ","ENTE DI GOVERNO DELL'AMBITO DELLA SARDEGNA",2001,2001,"Sulcis Iglesiente","CI","119008","Gonnesa"]
["Sardegna","Iglesias","Iglesias (CI) ","ENTE DI GOVERNO DELL'AMBITO DELLA SARDEGNA",2001,2001,"Sulcis Iglesiente","CI","119009","Iglesias"]
["Sardegna","Masainas","Masainas (CI) ","ENTE DI GOVERNO DELL'AMBITO DELLA SARDEGNA",2001,2001,"Sulcis Iglesiente","CI","119010","Masainas"]
["Sardegna","Musei","Musei (CI) ","ENTE DI GOVERNO DELL'AMBITO DELLA SARDEGNA",2001,2001,"Sulcis Iglesiente","CI","119011","Musei"]
["Sardegna","Narcao","Narcao (CI) ","ENTE DI GOVERNO DELL'AMBITO DELLA SARDEGNA",2001,2001,"Sulcis Iglesiente","CI","119012","Narcao"]
["Sardegna","Nuxis","Nuxis (CI) ","ENTE DI GOVERNO DELL'AMBITO DELLA SARDEGNA",2001,2001,"Sulcis Iglesiente","CI","119013","Nuxis"]
["Sardegna","Perdaxius","Perdaxius (CI) ","ENTE DI GOVERNO DELL'AMBITO DELLA SARDEGNA",2001,2001,"Sulcis Iglesiente","CI","119014","Perdaxius"]
["Sardegna","Piscinas","Piscinas (CI) ","ENTE DI GOVERNO DELL'AMBITO DELLA SARDEGNA",2001,2001,"Sulcis Iglesiente","CI","119015","Piscinas"]
["Sardegna","Portoscuso","Portoscuso (CI) ","ENTE DI GOVERNO DELL'AMBITO DELLA SARDEGNA",2001,2001,"Sulcis Iglesiente","CI","119016","Portoscuso"]
["Sardegna","San Giovanni Suergiu","San Giovanni Suergiu (CI) ","ENTE DI GOVERNO DELL'AMBITO DELLA SARDEGNA",2001,2001,"Sulcis Iglesiente","CI","119017","San Giovanni Suergiu"]
["Sardegna","Santadi","Santadi (CI) ","ENTE DI GOVERNO DELL'AMBITO DELLA SARDEGNA",2001,2001,"Sulcis Iglesiente","CI","119018","Santadi"]
["Sardegna","Sant'Anna Arresi","Sant'Anna Arresi (CI) ","ENTE DI GOVERNO DELL'AMBITO DELLA SARDEGNA",2001,2001,"Sulcis Iglesiente","CI","119019","Sant'Anna Arresi"]
["Sardegna","Sant'Antioco","Sant'Antioco (CI) ","ENTE DI GOVERNO DELL'AMBITO DELLA SARDEGNA",2001,2001,"Sulcis Iglesiente","CI","119020","Sant'Antioco"]
["Sardegna","Tratalias","Tratalias (CI) ","ENTE DI GOVERNO DELL'AMBITO DELLA SARDEGNA",2001,2001,"Sulcis Iglesiente","CI","119021","Tratalias"]
["Sardegna","Villamassargia","Villamassargia (CI) ","ENTE DI GOVERNO DELL'AMBITO DELLA SARDEGNA",2001,2001,"Sulcis Iglesiente","CI","119022","Villamassargia"]
["Sardegna","Villaperuccio","Villaperuccio (CI) ","ENTE DI GOVERNO DELL'AMBITO DELLA SARDEGNA",2001,2001,"Sulcis Iglesiente","CI","119023","Villaperuccio"]
["Sardegna","Teulada","Teulada (CI) ","ENTE DI GOVERNO DELL'AMBITO DELLA SARDEGNA",2001,2001,"Sulcis Iglesiente","CI","119024","Teulada"]

{"sheet":"TT_Tabelle_Riferimento","index":46,"n_rows":175,"n_cols":12,"rows_kept":175,"cut":false,"hidden":false,"merged":[[74,6,74,7]]}
["scambi ingrosso costi Water e Other"]
["IDServizio_Dettaglio","Servizio_Dettaglio","grossista (1=water,0=other)",null,"SI/NO","ID","Categoria_IMMOBILIZZAZIONI","ID","Anno Cespite","Anno Cespite","RIF","AF (SI/NO)"]
[1,"Captazione",1,null,"SI",1,"Servizio idrico integrato",1,2014,2011,"MTT",{"$f":"+IF(iAF=\"SI\",\"SI\",\"NO\")","v":"NO"}]
[2,"Potabilizzazione",1,null,"NO",2,"Fognatura bianca e pulizia / manutenzione caditoie stradali",2,2015,2012,"MTI",{"$f":"+IF(OR(Dati_Anni_precedenti!E133=1,Dati_Anni_precedenti!E133=\"SI\"),\"SI\",IF(iAF=\"SI\",\"SI\",\"NO\"))","v":"NO"}]
[3,"Adduzione",1,null,null,3,"Altri servizi idrici",3,2016,2013,"MTI",{"$f":"+IF(OR(Dati_Anni_precedenti!F133=1,Dati_Anni_precedenti!F133=\"SI\"),\"SI\",IF(iAF=\"SI\",\"SI\",\"NO\"))","v":"NO"}]
[4,"Acquedotto distribuzione",1,null,null,4,"Attività non idriche che utilizzano anche infrastrutture del servizio idrico",4,2017,2014,"MTI-2",{"$f":"+IF(OR(Dati_Anni_precedenti!E128=1,Dati_Anni_precedenti!E128=\"SI\"),\"SI\",IF(iAF=\"SI\",\"SI\",\"NO\"))","v":"NO"}]
[5,"Fognatura (nera e mista)",0,null,null,null,null,null,null,2015,"MTI-2",{"$f":"+IF(OR(Dati_Anni_precedenti!F128=1,Dati_Anni_precedenti!F128=\"SI\"),\"SI\",IF(iAF=\"SI\",\"SI\",\"NO\"))","v":"NO"}]
[6,"Depurazione",0,null,null,null,null,null,null,2016,"MTI-2 agg",{"$f":"+IF(OR(Dati_Anni_precedenti!E122=1,Dati_Anni_precedenti!E122=\"SI\"),\"SI\",IF(iAF=\"SI\",\"SI\",\"NO\"))","v":"NO"}]
[7,"Fognatura bianca e pulizia / manutenzione caditoie stradali",0,null,null,null,null,null,null,2017,"MTI-2 agg",{"$f":"+IF(OR(Dati_Anni_precedenti!F122=1,Dati_Anni_precedenti!F122=\"SI\"),\"SI\",IF(iAF=\"SI\",\"SI\",\"NO\"))","v":"NO"}]
[8,"Altri servizi idrici",0,null,null,null,null,null,null,2018,"MTI-3",{"$f":"+IF(OR(Dati_Anni_precedenti!E117=1,Dati_Anni_precedenti!E117=\"SI\"),\"SI\",IF(iAF=\"SI\",\"SI\",\"NO\"))","v":"NO"}]
[null,null,null,null,null,null,null,null,null,2019,"MTI-3",{"$f":"+IF(OR(Dati_Anni_precedenti!F117=1,Dati_Anni_precedenti!F117=\"SI\"),\"SI\",IF(iAF=\"SI\",\"SI\",\"NO\"))","v":"NO"}]
[null,null,null,null,null,null,null,null,null,2020,"MTI-3 agg",{"$f":"+IF(OR(Dati_Anni_precedenti!E109=1,Dati_Anni_precedenti!E109=\"SI\"),\"SI\",IF(iAF=\"SI\",\"SI\",\"NO\"))","v":"NO"}]
[null,"tipologia di proprietario","natura giuridica del gestore","servizi_idrici","tipologia d'uso",null,"tipo di affidamento",null,"Conformità",2021,"MTI-3 agg",{"$f":"+IF(OR(Dati_Anni_precedenti!F109=1,Dati_Anni_precedenti!F109=\"SI\"),\"SI\",IF(iAF=\"SI\",\"SI\",\"NO\"))","v":"NO"}]
[null,"Altra società privata","Azienda speciale","acquedotto","1-Uso domestico",null,"Affidamento del SII",null,"conforme",2022,"MTI-4",{"$f":"+IF(OR(Ammortamento_Finanziario!F4=1,Ammortamento_Finanziario!F4=\"SI\"),\"SI\",IF(iAF=\"SI\",\"SI\",\"NO\"))","v":"NO"}]
[null,"Altra società pubblica","Azienda speciale consortile","depurazione","1bis-Uso domestico non residenti",null,"Gestioni in comuni montani con popolazione inferiore a 1.000 abitanti e già istituite (comma 2-bis, lett. a), art. 147 d.lgs 152/06",null,"non conforme",2023,"MTI-4",{"$f":"+IF(OR(Ammortamento_Finanziario!G4=1,Ammortamento_Finanziario!G4=\"SI\"),\"SI\",IF(iAF=\"SI\",\"SI\",\"NO\"))","v":"NO"}]
[null,"Comune","Consorzio","fognatura","2-Uso agricolo",null,"Gestioni in forma autonoma individuate ex comma 2-bis, lett. b), art. 147 d.lgs 152/06",null,null,2024,"MTI-4",{"$f":"+IF(OR(Ammortamento_Finanziario!H4=1,Ammortamento_Finanziario!H4=\"SI\"),\"SI\",IF(iAF=\"SI\",\"SI\",\"NO\"))","v":"NO"}]
[null,"Comunità montana","Gestione in economia",null,"3-Uso allevamento animali",null,"Aziende speciali, gestioni in economia non salvaguardate",null,null,2025,"MTI-4",{"$f":"+IF(OR(Ammortamento_Finanziario!I4=1,Ammortamento_Finanziario!I4=\"SI\"),\"SI\",IF(iAF=\"SI\",\"SI\",\"NO\"))","v":"NO"}]
[null,"Consorzio","Società a responsabilità limitata (S.r.l.)",null,"4-Uso artigianale",null,"Gestioni tutelate, concessioni esistenti",null,null,2026,"MTI-4",{"$f":"+IF(OR(Ammortamento_Finanziario!J4=1,Ammortamento_Finanziario!J4=\"SI\"),\"SI\",IF(iAF=\"SI\",\"SI\",\"NO\"))","v":"NO"}]
[null,"Società del patrimonio","Società consortile S.p.A.",null,"5-Uso commerciale",null,null,null,null,2027,"MTI-4",{"$f":"+IF(OR(Ammortamento_Finanziario!K4=1,Ammortamento_Finanziario!K4=\"SI\"),\"SI\",IF(iAF=\"SI\",\"SI\",\"NO\"))","v":"NO"}]
[null,null,"Società consortile S.r.l.",null,"6-Uso industriale",null,"tipo di integrazione (incidenza popolazione deliberata d'ufficio)"]
[null,"SCHEMA REGOLATORIO","Società cooperativa a r.l.",null,"7-Usi diversi",null,"nessuna integrazione di territorio"]
[null,"I","Società in accomandita semplice (S.a.s.)",null,"8-Altri usi",null,"Pop servita >= 50% del gestore risultante"]
[null,"II","Società in nome colletivo (S.n.c.)",null,"9-Bocche antincendio",null,"Pop servita < 50% del gestore risultante"]
[null,"III","Società per azioni (S.p.A.)"]
[null,"IV",null,null,null,null,"presenza variazioni"]
[null,"V",null,null,null,null,"integrazione processi tecnici o territorio"]
[null,"VI",null,null,null,null,"nessuna variazione"]
[]
[null,"X"]
[]
[null,null,null,null,null,"ID","Categoria Cespite","ID","VU"]
[null,null,null,null,null,1,"Terreni",1,"-"]
[null,null,null,null,null,2,"Fabbricati non industriali",2,40]
[null,"ulteriori rimodulazioni del VRG",null,null,null,3,"Fabbricati industriali",3,40]
[null,"Capex",null,null,null,4,"Costruzioni leggere",4,40]
[null,"ERC",null,null,null,5,"Condutture e opere idrauliche fisse",5,40]
[null,"Opex",null,null,null,6,"Serbatoi",6,50]
[null,null,null,null,null,7,"Impianti di trattamento",7,12]
[null,null,null,null,null,8,"Impianti di sollevamento e pompaggio",8,8]
[null,"grado di completezza dei dati",null,null,null,9,"Gruppi di misura meccanici",9,15]
[null,"dati completi",null,null,null,10,"Gruppi di misura elettronici",10,15]
[null,"dati non completi",null,null,null,11,"Altri impianti",11,20]
[null,null,null,null,null,12,"Laboratori",12,10]
[null,"grado di acquisizione della gestione",null,null,null,13,"Telecontrollo",13,8]
[null,"acquisizione totale",null,null,null,14,"Autoveicoli",14,5]
[null,"acquisizione parziale",null,null,null,15,"Studi, ricerche, brevetti, diritti di utilizzazione",15,5]
[null,null,null,null,null,16,"Altre immobilizzazioni materiali e immateriali",16,7]
[null,"gestore / proprietario",null,null,null,17,"Immobilizzazioni immateriali: avviamenti, capitalizzazione concessione, etc.",17,"-"]
[null,"gestore",null,null,null,38,"Grandi dighe (sbarramenti che superano i quindici metri di altezza o che determinano un invaso superiore a 1 milione di metri cubi)",38,60]
[null,"proprietario",null,null,null,39,"Piccole dighe (sbarramenti che non superano i quindici metri di altezza o che determinano un invaso non superiore a 1 milione di metri cubi)",39,30]
[]
[null,"tipo di dati",null,null,null,null,"tipo di integrazione (servizio o territorio servito)"]
[null,"dati consuntivi",null,null,null,null,"integrazione processi tecnici"]
[null,"dati preconsuntivi",null,null,null,null,"integrazione territorio"]
[null,null,null,null,null,null,"entrambi"]
[null,null,null,null,null,null,"nessuna"]
[null,"Tipologia di costo sotteso"]
[null,"Res"]
[null,"Env"]
[null,"Non ERC"]
[]
[null,"attività"]
[null,"Acquedotto",null,null,null,null,"TICSI_tipologia d'uso"]
[null,"Fognatura",null,null,null,null,"a) uso domestico"]
[null,"Depurazione",null,null,null,null,"b) uso industriale"]
[null,"Comune",null,null,null,null,"c) uso artigianale e commerciale"]
[null,null,null,null,null,null,"d) uso agricolo e zootecnico"]
[null,null,null,null,null,null,"e) uso pubblico non disalimentabile"]
[null,null,null,null,null,null,"f) uso pubblico disalimentabile"]
[null,"TIMSII_modalità_INVIO",null,null,null,null,"g) altri usi (categoria residuale)"]
[null,"cartacea"]
[null,"e-mail"]
[null,"telefono"]
[null,"messaggistica"]
[null,"tramite amministratore o referente utenza raggruppata",null,null,null,null,"TICSI_tipologia-sottotipologia_d'uso"]
[null,"altro",null,null,null,null,"a) uso domestico","uso domestico residente (procapite standard)"]
[null,null,null,null,null,null,"a) uso domestico","uso condominiale"]
[null,null,null,null,null,null,"a) uso domestico","uso domestico non residente"]
[null,"TIMSII_modalità_fruizione_strumento_calcolo",null,null,null,null,"a) uso domestico","altro 1 (specificare in relazione)"]
[null,"applicazione web online",null,null,null,null,"a) uso domestico","altro 2 (specificare in relazione)"]
[null,"in download da sito web",null,null,null,null,"a) uso domestico","procapite puntuale (1 componente)"]
[null,"altro",null,null,null,null,"a) uso domestico","procapite puntuale (2 componenti)"]
[null,null,null,null,null,null,"a) uso domestico","procapite puntuale (3 componenti)"]
[null,null,null,null,null,null,"a) uso domestico","procapite puntuale (4 componenti)"]
[null,null,null,null,null,null,"a) uso domestico","procapite puntuale (5 componenti)"]
[null,"Motivazione della realizzazione da parte di terzi","Dettaglio","Voce",null,null,"a) uso domestico","procapite puntuale (6 componenti)"]
[null,"Infrastrutture improcrastinabili","Infrastrutture improcrastinabili in contesti in cui il gestore non ha  ancora conseguito la necessaria capacità di ricorso al credito e di attrazione delle necessarie competenze specialistiche","Infrastrutture improcrastinabili",null,null,"a) uso domestico","procapite puntuale (7 componenti)"]
[null,"Opere di rilievo sovra-ambito","Infrastrutture riconducibili ad opere di rilievo sovra-ambito per il superamento delle criticità legate al Climate Change o per la sostenibilità ambientale","Opere di rilievo sovra-ambito",null,null,"a) uso domestico","procapite puntuale (8 componenti)"]
[null,null,null,null,null,null,"a) uso domestico","procapite puntuale (9 componenti)"]
[null,null,null,null,null,null,"a) uso domestico","procapite puntuale (>=10 componenti)"]
[null,null,null,null,null,null,"b) uso industriale","Sottotipologia 1 di cui al Titolo 3, Articolo 9 del TICSI (specificare)"]
[null,null,null,null,null,null,"c) uso artigianale e commerciale","Sottotipologia 2 di cui al Titolo 3, Articolo 9 del TICSI (specificare)"]
[null,null,null,null,null,null,"d) uso agricolo e zootecnico"]
[null,null,null,null,null,null,"e) uso pubblico non disalimentabile"]
[null,null,null,null,null,null,"f) uso pubblico disalimentabile"]
[null,null,null,null,null,null,"g) altri usi (categoria residuale)"]
[]
[]
[]
[]
[]
[null,null,null,null,null,"ID","Categoria Nuovi investimenti","ID"]
[null,null,null,null,null,1,"Terreni",1]
[null,null,null,null,null,2,"Fabbricati non industriali",2]
[null,null,null,null,null,3,"Fabbricati industriali",3]
[null,null,null,null,null,4,"Costruzioni leggere",4]
[null,null,null,null,null,5,"Condutture e opere idrauliche fisse",5]
[null,null,null,null,null,6,"Serbatoi",6]
[null,null,null,null,null,7,"Impianti di trattamento",7]
[null,null,null,null,null,8,"Impianti di sollevamento e pompaggio",8]
[null,null,null,null,null,9,"Gruppi di misura meccanici",9]
[null,null,null,null,null,10,"Gruppi di misura elettronici",10]
[null,null,null,null,null,11,"Altri impianti",11]
[null,null,null,null,null,12,"Laboratori",12]
[null,null,null,null,null,13,"Telecontrollo",13]
[null,null,null,null,null,14,"Autoveicoli",14]
[null,null,null,null,null,15,"Studi, ricerche, brevetti, diritti di utilizzazione",15]
[null,null,null,null,null,16,"Altre immobilizzazioni materiali e immateriali",16]
[null,null,null,null,null,17,"Immobilizzazioni immateriali: avviamenti, capitalizzazione concessione, etc.",17]
[null,null,null,null,null,38,"Grandi dighe (sbarramenti che superano i quindici metri di altezza o che determinano un invaso superiore a 1 milione di metri cubi)",38]
[null,null,null,null,null,39,"Piccole dighe (sbarramenti che non superano i quindici metri di altezza o che determinano un invaso non superiore a 1 milione di metri cubi)",39]
[]
[]
[]
[]
[null,null,null,"id","Attività","Macro-indicatore di riferimento*","Categoria di immobilizzazioni","VUc,t","Attività","Macro-indicatore di riferimento","id"]
[null,null,null,38,"Acquedotto","M0","Grandi dighe (sbarramenti che superano i quindici metri di altezza o che determinano un invaso superiore a 1 milione di metri cubi)",60,"Acquedotto","M0",38]
[null,null,null,39,"Acquedotto","M0","Piccole dighe (sbarramenti che non superano i quindici metri di altezza o che determinano un invaso non superiore a 1 milione di metri cubi)",30,"Acquedotto","M0",39]
[null,null,null,2,"Acquedotto","M1-M2-MC1","Condotte di acquedotto",40,"Acquedotto","M1-M2-MC1",2]
[null,null,null,3,"Acquedotto","M1-M2-M3","Opere idrauliche fisse di acquedotto",40,"Acquedotto","M1-M2-M3",3]
[null,null,null,4,"Acquedotto","M1-M2","Serbatoi",40,"Acquedotto","M1-M2",4]
[null,null,null,5,"Acquedotto","M1-M2-M3","Impianti di sollevamento e pompaggio di acquedotto",8,"Acquedotto","M1-M2-M3",5]
[null,null,null,6,"Acquedotto","M3","Impianti di potabilizzazione",20,"Acquedotto","M3",6]
[null,null,null,7,"Acquedotto","M3","Altri trattamenti di potabilizzazione (tra cui dispositivi di disinfezione, stacciatura, filtrazione, addolcimento)",12,"Acquedotto","M3",7]
[null,null,null,8,"Acquedotto","M1-MC1-MC2","Gruppi di misura - altre attrezzature di acquedotto",10,"Acquedotto","M1-MC1-MC2",8]
[null,null,null,9,"Acquedotto","M1-M2-M3","Sistemi informativi di acquedotto",5,"Acquedotto","M1-M2-M3",9]
[null,null,null,10,"Acquedotto","M1-M2-M3","Telecontrollo e teletrasmissione di acquedotto",8,"Acquedotto","M1-M2-M3",10]
[null,null,null,11,"Fognatura","M4","Condotte fognarie",50,"Fognatura","M4",11]
[null,null,null,12,"Fognatura","M4","Sifoni e scaricatori di piena e altre opere idrauliche fisse di fognatura",40,"Fognatura","M4",12]
[null,null,null,13,"Fognatura","M4","Vasche di laminazione e vasche di prima pioggia",40,"Fognatura","M4",13]
[null,null,null,14,"Fognatura","M4","Impianti di sollevamento e pompaggio di fognatura",8,"Fognatura","M4",14]
[null,null,null,15,"Fognatura","M4","Gruppi di misura - altre attrezzature di fognatura",10,"Fognatura","M4",15]
[null,null,null,16,"Fognatura","M4","Sistemi informativi di fognatura",5,"Fognatura","M4",16]
[null,null,null,18,"Fognatura","M4","Telecontrollo e teletrasmissione di fognatura",8,"Fognatura","M4",18]
[null,null,null,19,"Depurazione","M5-M6","Impianti di sollevamento e pompaggio di depurazione",8,"Depurazione","M5-M6",19]
[null,null,null,20,"Depurazione","M6","Tecniche naturali di depurazione (tra cui fitodepurazione e lagunaggio)",40,"Depurazione","M6",20]
[null,null,null,21,"Depurazione","M6","Impianti di depurazione – trattamenti sino al preliminare, integrativo, primario - fosse settiche e fosse Imhoff",20,"Depurazione","M6",21]
[null,null,null,22,"Depurazione","M5-M6","Impianti di depurazione – trattamenti sino al secondario",20,"Depurazione","M5-M6",22]
[null,null,null,23,"Depurazione","M5-M6","Impianti di depurazione – trattamenti sino al terziario e terziario avanzato",20,"Depurazione","M5-M6",23]
[null,null,null,24,"Depurazione","M5","Impianti di essiccamento fanghi e di valorizzazione dei fanghi (tra cui mono-incenerimento, pirolisi, gassificazione)",20,"Depurazione","M5",24]
[null,null,null,25,"Depurazione","M5-M6","Gruppi di misura - altre attrezzature di depurazione",10,"Depurazione","M5-M6",25]
[null,null,null,26,"Depurazione","M5-M6","Sistemi informativi di depurazione",5,"Depurazione","M5-M6",26]
[null,null,null,27,"Depurazione","M6","Telecontrollo e teletrasmissione di depurazione",8,"Depurazione","M6",27]
[null,null,null,28,"Comune","M1-M2-M3-M4-M5-M6","Altri impianti",20,"Comune","M1-M2-M3-M4-M5-M6",28]
[null,null,null,29,"Comune","M3-M6","Laboratori e attrezzature",10,"Comune","M3-M6",29]
[null,null,null,30,"Comune","MC1-MC2-M1-M2-M3-M4-M5-M6","Sistemi informativi",5,"Comune","MC1-MC2-M1-M2-M3-M4-M5-M6",30]
[null,null,null,31,"Comune","M1-M2-M3-M4-M5-M6","Telecontrollo e teletrasmissione",8,"Comune","M1-M2-M3-M4-M5-M6",31]
[null,null,null,32,"Comune","MC1-MC2- M1-M2-M3-M4-M5-M6","Autoveicoli - automezzi",5,"Comune","MC1-MC2- M1-M2-M3-M4-M5-M6",32]
[null,null,null,1,"Comune","-","Terreni","-","Comune","-",1]
[null,null,null,33,"Comune","MC1-MC2","Fabbricati non industriali",40,"Comune","MC1-MC2",33]
[null,null,null,34,"Comune","M1-M2-M3-M4-M5-M6","Fabbricati industriali",40,"Comune","M1-M2-M3-M4-M5-M6",34]
[null,null,null,35,"Comune","-","Costruzioni leggere",20,"Comune","-",35]
[null,null,null,36,"Comune","M1-M2-M3-M4-M5-M6","Studi, ricerche, brevetti, diritti di utilizzazione",5,"Comune","M1-M2-M3-M4-M5-M6",36]
[null,null,null,37,"Comune","M3-M6-MC1-MC2","Altre immobilizzazioni materiali e immateriali",7,"Comune","M3-M6-MC1-MC2",37]
[]
[]
[]
[]
[]
[]
[null,null,null,null,null,"ID","Categoria_IMMOBILIZZAZIONI","ID"]
[null,null,null,null,null,1,"Servizio idrico integrato",1]
[null,null,null,null,null,2,"Fognatura bianca e pulizia / manutenzione caditoie stradali",2]
[null,null,null,null,null,3,"Altri servizi idrici",3]
[null,null,null,null,null,4,"Attività non idriche che utilizzano anche infrastrutture del servizio idrico",4]

{"sheet":"TT_parametri","index":47,"n_rows":109,"n_cols":71,"rows_kept":109,"cut":false,"hidden":false,"merged":[[103,57,103,58],[103,55,103,56],[103,53,104,53],[103,54,104,54]]}
[]
[null,"dfl - Deflatore degli investimenti / VU - Vite Utili Regolatorie / altri parametri"]
[]
["Deflatore degli investimenti fissi lordi",null,null,null,null,null,1.0029999999999999,0.998,1.004,1.0069999999999999,1.0049999999999999,1.004,1.034,1.028,0.999,1.0009999999999999,0,0,0,0,0,0,0,0,0,0,0,0,0,0,0,0,0,0,0,0,0,0,0,0,0,0,0,0,0,null,"Vite regolatorie",null,null,null,"Inflazione",null,null,null,null,"Produttorie d'inflazione"]
[null,null,null,null,null,null,null,null,null,null,null,null,null,null,null,null,null,null,null,null,null,null,null,null,null,null,null,null,null,null,null,null,null,null,null,null,null,null,null,null,null,null,null,null,null,null,"(input dei fogli stratificazione)"]
["ANNO"," Deflatore per anno 2012"," Deflatore per anno 2013"," Deflatore per anno 2014"," Deflatore per anno 2015"," Deflatore per anno 2016"," Deflatore per anno 2017"," Deflatore per anno 2018"," Deflatore per anno 2019"," Deflatore per anno 2020"," Deflatore per anno 2021"," Deflatore per anno 2022"," Deflatore per anno 2023"," Deflatore per anno 2024"," Deflatore per anno 2025"," Deflatore per anno 2026"," Deflatore per anno 2027"," Deflatore per anno 2028"," Deflatore per anno 2029"," Deflatore per anno 2030"," Deflatore per anno 2031"," Deflatore per anno 2032"," Deflatore per anno 2033"," Deflatore per anno 2034"," Deflatore per anno 2035"," Deflatore per anno 2036"," Deflatore per anno 2037"," Deflatore per anno 2038"," Deflatore per anno 2039"," Deflatore per anno 2040"," Deflatore per anno 2041"," Deflatore per anno 2042"," Deflatore per anno 2043"," Deflatore per anno 2044"," Deflatore per anno 2045"," Deflatore per anno 2046"," Deflatore per anno 2047"," Deflatore per anno 2048"," Deflatore per anno 2049"," Deflatore per anno 2050"," Deflatore per anno 2051"," Deflatore per anno 2052"," Deflatore per anno 2053"," Deflatore per anno 2054"," Deflatore per anno 2055",null,"Codice","Categoria di cespiti","Vita utile",null,"ANNO","valore",null,"∏(1+It) / ANNO",2013,2014,2015,2016,2017,2018,2019,2020,2021,2022,2023,2024,2025,2026,2027,2028,2029]
[1961,29.864999999999998,30.670999999999999,31.039000000000001,31.008012947999998,31.132044999791997,{"$f":"+F7*(G$4)","v":31.225441134791371},31.162990252521787,31.287642213531875,31.506655709026596,31.664188987571727,31.790845743522013,32.871734498801764,33.792143064768212,{"$f":"+N7*(O$4)","v":33.758350921703446},{"$f":"+O7*(P$4)","v":33.792109272625147},{"$f":"+P7*(1+Q$4)","v":33.792109272625147},{"$f":"+Q7*(1+R$4)","v":33.792109272625147},{"$f":"+R7*(1+S$4)","v":33.792109272625147},{"$f":"+S7*(1+T$4)","v":33.792109272625147},{"$f":"+T7*(1+U$4)","v":33.792109272625147},{"$f":"+U7*(1+V$4)","v":33.792109272625147},{"$f":"+V7*(1+W$4)","v":33.792109272625147},{"$f":"+W7*(1+X$4)","v":33.792109272625147},{"$f":"+X7*(1+Y$4)","v":33.792109272625147},{"$f":"+Y7*(1+Z$4)","v":33.792109272625147},{"$f":"+Z7*(1+AA$4)","v":33.792109272625147},{"$f":"+AA7*(1+AB$4)","v":33.792109272625147},{"$f":"+AB7*(1+AC$4)","v":33.792109272625147},{"$f":"+AC7*(1+AD$4)","v":33.792109272625147},{"$f":"+AD7*(1+AE$4)","v":33.792109272625147},{"$f":"+AE7*(1+AF$4)","v":33.792109272625147},{"$f":"+AF7*(1+AG$4)","v":33.792109272625147},{"$f":"+AG7*(1+AH$4)","v":33.792109272625147},{"$f":"+AH7*(1+AI$4)","v":33.792109272625147},{"$f":"+AI7*(1+AJ$4)","v":33.792109272625147},{"$f":"+AJ7*(1+AK$4)","v":33.792109272625147},{"$f":"+AK7*(1+AL$4)","v":33.792109272625147},{"$f":"+AL7*(1+AM$4)","v":33.792109272625147},{"$f":"+AM7*(1+AN$4)","v":33.792109272625147},{"$f":"+AN7*(1+AO$4)","v":33.792109272625147},{"$f":"+AO7*(1+AP$4)","v":33.792109272625147},{"$f":"+AP7*(1+AQ$4)","v":33.792109272625147},{"$f":"+AQ7*(1+AR$4)","v":33.792109272625147},{"$f":"+AR7*(1+AS$4)","v":33.792109272625147},null,1,"Terreni",0,null,2013,3.0960000000000001E-2,null,"da t-1 a t",{"$f":"+AZ7+1","v":1.0309600000000001},{"$f":"+AZ8+1","v":1.0209999999999999},{"$f":"+AZ9+1","v":1.006},{"$f":"+AZ10+1","v":0.999},{"$f":"+AZ11+1","v":0.999},{"$f":"+AZ12+1","v":1.0069999999999999},{"$f":"+AZ13+1","v":1.0089999999999999},{"$f":"+AZ14+1","v":1.0109999999999999},{"$f":"+AZ15+1","v":1.0009999999999999},{"$f":"+AZ16+1","v":1.002},{"$f":"+AZ17+1","v":1.0449999999999999},{"$f":"+AZ18+1","v":1.0880000000000001},{"$f":"+AZ19+1","v":1.02},{"$f":"+AZ20+1","v":1.012},1,1,1]
[1962,28.648,29.422000000000001,29.774999999999999,29.745288936000001,29.864270091744,{"$f":"+F8*(G$4)","v":29.953862902019228},29.89395517621519,30.01353099692005,{"$f":"+I8*(J$4)","v":30.223625713898485},{"$f":"+J8*(K$4)","v":30.374743842467975},30.496242817837846,31.533115073644332,{"$f":"+M8*(N$4)","v":32.416042295706376},{"$f":"+N8*(O$4)","v":32.383626253410668},32.416009879664074,32.416009879664074,32.416009879664074,32.416009879664074,32.416009879664074,32.416009879664074,32.416009879664074,32.416009879664074,32.416009879664074,32.416009879664074,32.416009879664074,32.416009879664074,32.416009879664074,32.416009879664074,32.416009879664074,32.416009879664074,32.416009879664074,32.416009879664074,32.416009879664074,32.416009879664074,32.416009879664074,32.416009879664074,32.416009879664074,32.416009879664074,32.416009879664074,32.416009879664074,32.416009879664074,32.416009879664074,32.416009879664074,32.416009879664074,null,2,"Fabbricati non industriali",40,null,2014,2.1000000000000001E-2,null,"da t-2 a t",null,{"$f":"+PRODUCT(BC7:$BD7)","v":1.05261016},{"$f":"+PRODUCT(BD7:$BE7)","v":1.027126},{"$f":"+PRODUCT(BE7:$BF7)","v":1.0049939999999999},{"$f":"+PRODUCT(BF7:$BG7)","v":0.99800100000000003},{"$f":"+PRODUCT(BG7:$BH7)","v":1.0059929999999999},{"$f":"+PRODUCT(BH7:$BI7)","v":1.0160629999999997},{"$f":"+PRODUCT($BI7:BJ7)","v":1.0200989999999999},{"$f":"+PRODUCT($BJ7:BK7)","v":1.0120109999999998},{"$f":"+PRODUCT($BK7:BL7)","v":1.0030019999999999},{"$f":"+PRODUCT($BL7:BM7)","v":1.0470899999999999},{"$f":"+PRODUCT($BM7:BN7)","v":1.13696},{"$f":"+PRODUCT(BN$7:BO$7)","v":1.1097600000000001},{"$f":"+PRODUCT(BO$7:BP$7)","v":1.03224},{"$f":"+PRODUCT(BP$7:BQ$7)","v":1.012},{"$f":"+PRODUCT(BQ$7:BR$7)","v":1},{"$f":"+PRODUCT(BR$7:BS$7)","v":1}]
[1963,26.498999999999999,27.215,27.542000000000002,27.514038419999999,27.624094573679997,27.706966857401035,27.651552923686232,27.762159135380976,27.956494249328639,28.096276720575279,28.208661827457579,29.167756329591139,29.98445350681969,29.95446905331287,29.984423522366178,29.984423522366178,29.984423522366178,29.984423522366178,29.984423522366178,29.984423522366178,29.984423522366178,29.984423522366178,29.984423522366178,29.984423522366178,29.984423522366178,29.984423522366178,29.984423522366178,29.984423522366178,29.984423522366178,29.984423522366178,29.984423522366178,29.984423522366178,29.984423522366178,29.984423522366178,29.984423522366178,29.984423522366178,29.984423522366178,29.984423522366178,29.984423522366178,29.984423522366178,29.984423522366178,29.984423522366178,29.984423522366178,29.984423522366178,null,3,"Fabbricati industriali",40,null,2015,6.0000000000000001E-3,null,"da t-3 a t",null,null,{"$f":"+PRODUCT($BC7:BE7)","v":1.0589258209599999},{"$f":"+PRODUCT($BD7:BF7)","v":1.0260988739999999},{"$f":"+PRODUCT($BE7:BG7)","v":1.0039890059999999},{"$f":"+PRODUCT($BF7:BH7)","v":1.004987007},{"$f":"+PRODUCT($BG7:BI7)","v":1.0150469369999997},{"$f":"+PRODUCT($BH7:BJ7)","v":1.0272396929999996},{"$f":"+PRODUCT($BI7:BK7)","v":1.0211190989999999},{"$f":"+PRODUCT($BJ7:BL7)","v":1.0140350219999998},{"$f":"+PRODUCT($BK7:BM7)","v":1.0481370899999998},{"$f":"+PRODUCT($BL7:BN7)","v":1.1392339199999999},{"$f":"+PRODUCT(BM$7:BO$7)","v":1.1596991999999999},{"$f":"+PRODUCT(BN$7:BP$7)","v":1.12307712},{"$f":"+PRODUCT(BO$7:BQ$7)","v":1.03224},{"$f":"+PRODUCT(BP$7:BR$7)","v":1.012},{"$f":"+PRODUCT(BQ$7:BS$7)","v":1}]
[1964,25.39,26.074999999999999,26.388000000000002,26.361512099999999,26.4669581484,26.546359022845198,26.493266304799509,26.599239370018708,26.785434045608834,26.919361215836876,27.027038660700224,27.945957975164031,28.728444798468626,28.699716353670158,28.728416070023826,28.728416070023826,28.728416070023826,28.728416070023826,28.728416070023826,28.728416070023826,28.728416070023826,28.728416070023826,28.728416070023826,28.728416070023826,28.728416070023826,28.728416070023826,28.728416070023826,28.728416070023826,28.728416070023826,28.728416070023826,28.728416070023826,28.728416070023826,28.728416070023826,28.728416070023826,28.728416070023826,28.728416070023826,28.728416070023826,28.728416070023826,28.728416070023826,28.728416070023826,28.728416070023826,28.728416070023826,28.728416070023826,28.728416070023826,null,4,"Costruzioni leggere",40,null,2016,-1E-3,null,"da t-4 a t",null,null,null,{"$f":"+PRODUCT($BC7:BF7)","v":1.05786689513904},{"$f":"+PRODUCT($BD7:BG7)","v":1.0250727751259998},{"$f":"+PRODUCT($BE7:BH7)","v":1.0110169290419997},{"$f":"+PRODUCT($BF7:BI7)","v":1.0140318900629999},{"$f":"+PRODUCT($BG7:BJ7)","v":1.0262124533069996},{"$f":"+PRODUCT($BH7:BK7)","v":1.0282669326929994},{"$f":"+PRODUCT($BI7:BL7)","v":1.023161337198},{"$f":"+PRODUCT($BJ7:BM7)","v":1.0596665979899997},{"$f":"+PRODUCT($BK7:BN7)","v":1.1403731539199999},{"$f":"+PRODUCT(BL$7:BO$7)","v":1.1620185984},{"$f":"+PRODUCT(BM$7:BP$7)","v":1.1736155903999999},{"$f":"+PRODUCT(BN$7:BQ$7)","v":1.12307712},{"$f":"+PRODUCT(BO$7:BR$7)","v":1.03224},{"$f":"+PRODUCT(BP$7:BS$7)","v":1.012}]
[1965,25.31,25.992999999999999,26.305,26.278611083999998,26.383725528335997,26.462876704921001,26.40995095151116,26.515590755317206,26.701199890604425,26.834705890057442,26.942044713617673,27.858074233880675,28.638100312429334,28.609462212116906,28.638071674329019,28.638071674329019,28.638071674329019,28.638071674329019,28.638071674329019,28.638071674329019,28.638071674329019,28.638071674329019,28.638071674329019,28.638071674329019,28.638071674329019,28.638071674329019,28.638071674329019,28.638071674329019,28.638071674329019,28.638071674329019,28.638071674329019,28.638071674329019,28.638071674329019,28.638071674329019,28.638071674329019,28.638071674329019,28.638071674329019,28.638071674329019,28.638071674329019,28.638071674329019,28.638071674329019,28.638071674329019,28.638071674329019,28.638071674329019,null,5,"Condutture e opere idrauliche fisse",40,null,2017,-1E-3,null,"da t-5 a t",null,null,null,null,{"$f":"+PRODUCT($BC7:BG7)","v":1.0568090282439009},{"$f":"+PRODUCT($BD7:BH7)","v":1.0322482845518817},{"$f":"+PRODUCT($BE7:BI7)","v":1.0201160814033776},{"$f":"+PRODUCT($BF7:BJ7)","v":1.0251862408536927},{"$f":"+PRODUCT($BG7:BK7)","v":1.0272386657603065},{"$f":"+PRODUCT($BH7:BL7)","v":1.0303234665583854},{"$f":"+PRODUCT($BI7:BM7)","v":1.0692035973719098},{"$f":"+PRODUCT($BJ7:BN7)","v":1.1529172586131198},{"$f":"+PRODUCT(BK$7:BO$7)","v":1.1631806169984},{"$f":"+PRODUCT(BL$7:BP$7)","v":1.1759628215808},{"$f":"+PRODUCT(BM$7:BQ$7)","v":1.1736155903999999},{"$f":"+PRODUCT(BN$7:BR$7)","v":1.12307712},{"$f":"+PRODUCT(BO$7:BS$7)","v":1.03224}]
[1966,24.629000000000001,25.292999999999999,25.597000000000001,25.570919484000001,25.673203161936001,25.750222771421807,25.698722325878965,25.801517215182482,25.982127835688758,26.112038474867198,26.216486628766667,27.107847174144734,27.866866895020788,27.839000028125767,27.86683902815389,27.86683902815389,27.86683902815389,27.86683902815389,27.86683902815389,27.86683902815389,27.86683902815389,27.86683902815389,27.86683902815389,27.86683902815389,27.86683902815389,27.86683902815389,27.86683902815389,27.86683902815389,27.86683902815389,27.86683902815389,27.86683902815389,27.86683902815389,27.86683902815389,27.86683902815389,27.86683902815389,27.86683902815389,27.86683902815389,27.86683902815389,27.86683902815389,27.86683902815389,27.86683902815389,27.86683902815389,27.86683902815389,27.86683902815389,null,6,"Serbatoi",50,null,2018,7.0000000000000001E-3,null,"da t-6 a t",null,null,null,null,null,{"$f":"+PRODUCT($BC7:BH7)","v":1.0642066914416082},{"$f":"+PRODUCT($BD7:BI7)","v":1.0415385191128486},{"$f":"+PRODUCT($BE7:BJ7)","v":1.0313373582988146},{"$f":"+PRODUCT($BF7:BK7)","v":1.0262114270945464},{"$f":"+PRODUCT($BG7:BL7)","v":1.0292931430918271},{"$f":"+PRODUCT($BH7:BM7)","v":1.0766880225535127},{"$f":"+PRODUCT($BI7:BN7)","v":1.163293513940638},{"$f":"+PRODUCT(BJ$7:BO$7)","v":1.1759756037853821},{"$f":"+PRODUCT(BK$7:BP$7)","v":1.1771387844023808},{"$f":"+PRODUCT(BL$7:BQ$7)","v":1.1759628215808},{"$f":"+PRODUCT(BM$7:BR$7)","v":1.1736155903999999},{"$f":"+PRODUCT(BN$7:BS$7)","v":1.12307712}]
[1967,23.818999999999999,24.462,24.756,24.730788455999999,24.829711609823999,24.904200744653469,24.854392343164161,24.953809912536819,25.128486581924573,25.254129014834195,25.35514553089353,26.217220478943911,26.951302652354343,26.92435134970199,26.951275701051689,26.951275701051689,26.951275701051689,26.951275701051689,26.951275701051689,26.951275701051689,26.951275701051689,26.951275701051689,26.951275701051689,26.951275701051689,26.951275701051689,26.951275701051689,26.951275701051689,26.951275701051689,26.951275701051689,26.951275701051689,26.951275701051689,26.951275701051689,26.951275701051689,26.951275701051689,26.951275701051689,26.951275701051689,26.951275701051689,26.951275701051689,26.951275701051689,26.951275701051689,26.951275701051689,26.951275701051689,26.951275701051689,26.951275701051689,null,7,"Impianti di trattamento",12,null,2019,8.9999999999999993E-3,null,"da t-7 a t",null,null,null,null,null,null,{"$f":"+PRODUCT($BC7:BI7)","v":1.0737845516645825},{"$f":"+PRODUCT($BD7:BJ7)","v":1.0529954428230899},{"$f":"+PRODUCT($BE7:BK7)","v":1.0323686956571132},{"$f":"+PRODUCT($BF7:BL7)","v":1.0282638499487355},{"$f":"+PRODUCT($BG7:BM7)","v":1.0756113345309593},{"$f":"+PRODUCT($BH7:BN7)","v":1.171436568538222},{"$f":"+PRODUCT(BI$7:BO$7)","v":1.1865593842194508},{"$f":"+PRODUCT(BJ$7:BP$7)","v":1.1900873110308068},{"$f":"+PRODUCT(BK$7:BQ$7)","v":1.1771387844023808},{"$f":"+PRODUCT(BL$7:BR$7)","v":1.1759628215808},{"$f":"+PRODUCT(BM$7:BS$7)","v":1.1736155903999999}]
[1968,23.283000000000001,23.911999999999999,24.199000000000002,24.174745056000003,24.271444036224004,24.344258368332675,24.29556985159601,24.392752131002393,24.563501395919406,24.686318902899,24.785064178510595,25.627756360579955,26.345333538676194,26.318988205137519,26.345307193342652,26.345307193342652,26.345307193342652,26.345307193342652,26.345307193342652,26.345307193342652,26.345307193342652,26.345307193342652,26.345307193342652,26.345307193342652,26.345307193342652,26.345307193342652,26.345307193342652,26.345307193342652,26.345307193342652,26.345307193342652,26.345307193342652,26.345307193342652,26.345307193342652,26.345307193342652,26.345307193342652,26.345307193342652,26.345307193342652,26.345307193342652,26.345307193342652,26.345307193342652,26.345307193342652,26.345307193342652,26.345307193342652,26.345307193342652,null,8,"Impianti di sollevamento e pompaggio",8,null,2020,1.0999999999999999E-2,null,"da t-8 a t",null,null,null,null,null,null,null,{"$f":"+PRODUCT($BC7:BJ7)","v":1.0855961817328927},{"$f":"+PRODUCT($BD7:BK7)","v":1.0540484382659128},{"$f":"+PRODUCT($BE7:BL7)","v":1.0344334330484275},{"$f":"+PRODUCT($BF7:BM7)","v":1.0745357231964285},{"$f":"+PRODUCT($BG7:BN7)","v":1.1702651319696837},{"$f":"+PRODUCT(BH$7:BO$7)","v":1.1948652999089864},{"$f":"+PRODUCT(BI$7:BP$7)","v":1.2007980968300842},{"$f":"+PRODUCT(BJ$7:BQ$7)","v":1.1900873110308068},{"$f":"+PRODUCT(BK$7:BR$7)","v":1.1771387844023808},{"$f":"+PRODUCT(BL$7:BS$7)","v":1.1759628215808}]
[1969,21.986000000000001,22.579000000000001,22.85,22.827098052,22.918406444207999,22.987161663540622,22.941187340213542,23.032952089574398,23.194182754201417,23.310153667972422,23.40339428264431,24.199109688254218,24.876684759525336,24.85180807476581,24.876659882840574,24.876659882840574,24.876659882840574,24.876659882840574,24.876659882840574,24.876659882840574,24.876659882840574,24.876659882840574,24.876659882840574,24.876659882840574,24.876659882840574,24.876659882840574,24.876659882840574,24.876659882840574,24.876659882840574,24.876659882840574,24.876659882840574,24.876659882840574,24.876659882840574,24.876659882840574,24.876659882840574,24.876659882840574,24.876659882840574,24.876659882840574,24.876659882840574,24.876659882840574,24.876659882840574,24.876659882840574,24.876659882840574,24.876659882840574,null,9,"Gruppi di misura meccanici",15,null,2021,1E-3,null,"da t-9 a t",null,null,null,null,null,null,null,null,{"$f":"+PRODUCT($BC7:BK7)","v":1.0866817779146256},{"$f":"+PRODUCT($BD7:BL7)","v":1.0561565351424447},{"$f":"+PRODUCT($BE7:BM7)","v":1.0809829375356066},{"$f":"+PRODUCT($BF7:BN7)","v":1.1690948668377144},{"$f":"+PRODUCT(BG$7:BO$7)","v":1.1936704346090774},{"$f":"+PRODUCT(BH$7:BP$7)","v":1.2092036835078943},{"$f":"+PRODUCT(BI$7:BQ$7)","v":1.2007980968300842},{"$f":"+PRODUCT(BJ$7:BR$7)","v":1.1900873110308068},{"$f":"+PRODUCT(BK$7:BS$7)","v":1.1771387844023808}]
[1970,19.349,19.872,20.11,20.090353536000002,20.170714950144003,20.231227094994434,20.190764640804446,20.271527699367663,20.413428393263235,20.515495535229547,20.597557517370465,21.297874472961063,21.894214958203971,21.872320743245766,21.894193063989007,21.894193063989007,21.894193063989007,21.894193063989007,21.894193063989007,21.894193063989007,21.894193063989007,21.894193063989007,21.894193063989007,21.894193063989007,21.894193063989007,21.894193063989007,21.894193063989007,21.894193063989007,21.894193063989007,21.894193063989007,21.894193063989007,21.894193063989007,21.894193063989007,21.894193063989007,21.894193063989007,21.894193063989007,21.894193063989007,21.894193063989007,21.894193063989007,21.894193063989007,21.894193063989007,21.894193063989007,21.894193063989007,21.894193063989007,null,10,"Gruppi di misura elettronici",15,null,2022,2E-3,null,"da t-10 a t",null,null,null,null,null,null,null,null,null,{"$f":"+PRODUCT($BC7:BL7)","v":1.0888551414704548},{"$f":"+PRODUCT($BD7:BM7)","v":1.1036835792238546},{"$f":"+PRODUCT($BE7:BN7)","v":1.1761094360387401},{"$f":"+PRODUCT(BF$7:BO$7)","v":1.1924767641744687},{"$f":"+PRODUCT(BG$7:BP$7)","v":1.2079944798243862},{"$f":"+PRODUCT(BH$7:BQ$7)","v":1.2092036835078943},{"$f":"+PRODUCT(BI$7:BR$7)","v":1.2007980968300842},{"$f":"+PRODUCT(BJ$7:BS$7)","v":1.1900873110308068}]
[1971,18.373999999999999,18.87,19.096,19.077343560000003,19.153652934240004,19.211113893042722,19.172691665256636,19.249382431917663,19.384128108941084,19.481048749485787,19.558972944483731,20.223978024596178,20.790249409284872,20.769459159875588,20.79022861903546,20.79022861903546,20.79022861903546,20.79022861903546,20.79022861903546,20.79022861903546,20.79022861903546,20.79022861903546,20.79022861903546,20.79022861903546,20.79022861903546,20.79022861903546,20.79022861903546,20.79022861903546,20.79022861903546,20.79022861903546,20.79022861903546,20.79022861903546,20.79022861903546,20.79022861903546,20.79022861903546,20.79022861903546,20.79022861903546,20.79022861903546,20.79022861903546,20.79022861903546,20.79022861903546,20.79022861903546,20.79022861903546,20.79022861903546,null,11,"Altri impianti",20,null,2023,4.4999999999999998E-2,null,"da t-11 a t",null,null,null,null,null,null,null,null,null,null,null,{"$f":"+PRODUCT(BD7:BN7)","v":1.2008077341955539},1.1996316247595149,1.2067864853445622,1.2079944798243862,1.2092036835078943,1.2007980968300842]
[1972,17.789000000000001,18.27,18.489000000000001,18.470750759999998,18.544633763039997,18.600267664329113,18.563067129000455,18.637319397516457,18.767780633299068,18.861619536465561,18.937066014611425,19.580926259108214,20.129192194363245,20.109063002168881,20.129172065171048,20.129172065171048,20.129172065171048,20.129172065171048,20.129172065171048,20.129172065171048,20.129172065171048,20.129172065171048,20.129172065171048,20.129172065171048,20.129172065171048,20.129172065171048,20.129172065171048,20.129172065171048,20.129172065171048,20.129172065171048,20.129172065171048,20.129172065171048,20.129172065171048,20.129172065171048,20.129172065171048,20.129172065171048,20.129172065171048,20.129172065171048,20.129172065171048,20.129172065171048,20.129172065171048,20.129172065171048,20.129172065171048,20.129172065171048,null,12,"Laboratori",10,null,2024,8.7999999999999995E-2,null,"da t-12 a t",null,null,null,null,null,null,null,null,null,null,null,null,{"$f":"+PRODUCT(BD7:BO7)","v":1.2248238888794649},{"$f":"+PRODUCT(BE7:BP7)","v":1.2140272042566291},{"$f":"+PRODUCT(BF7:BQ7)","v":1.2067864853445622},{"$f":"+PRODUCT(BG7:BR7)","v":1.2079944798243862},{"$f":"+PRODUCT(BH7:BS7)","v":1.2092036835078943}]
[1973,14.843999999999999,15.244,15.427,15.411501072,15.473147076288001,15.519566517516862,15.488527384481829,15.550481494019756,15.659334864477893,15.737631538800281,15.800582064955483,16.337801855163971,16.795260307108563,16.778465046801454,16.795243511848252,16.795243511848252,16.795243511848252,16.795243511848252,16.795243511848252,16.795243511848252,16.795243511848252,16.795243511848252,16.795243511848252,16.795243511848252,16.795243511848252,16.795243511848252,16.795243511848252,16.795243511848252,16.795243511848252,16.795243511848252,16.795243511848252,16.795243511848252,16.795243511848252,16.795243511848252,16.795243511848252,16.795243511848252,16.795243511848252,16.795243511848252,16.795243511848252,16.795243511848252,16.795243511848252,16.795243511848252,16.795243511848252,16.795243511848252,null,13,"Telecontrollo e teletrasmissione",8,null,2025,0.02,null,"da t-13 a t",null,null,null,null,null,null,null,null,null,null,null,null,null,{"$f":"+PRODUCT(BD7:BP7)","v":1.2395217755460186},{"$f":"+PRODUCT(BE7:BQ7)","v":1.2140272042566291},{"$f":"+PRODUCT(BF7:BR7)","v":1.2067864853445622},{"$f":"+PRODUCT(BG7:BS7)","v":1.2079944798243862}]
[1974,11.452999999999999,11.763,11.904,11.892251844,11.939820851376,11.975640313930127,11.951689033302266,11.999495789435475,12.083492259961522,12.143909721261329,12.192485360146375,12.607029862391352,12.960026698538311,12.947066671839773,12.960013738511611,12.960013738511611,12.960013738511611,12.960013738511611,12.960013738511611,12.960013738511611,12.960013738511611,12.960013738511611,12.960013738511611,12.960013738511611,12.960013738511611,12.960013738511611,12.960013738511611,12.960013738511611,12.960013738511611,12.960013738511611,12.960013738511611,12.960013738511611,12.960013738511611,12.960013738511611,12.960013738511611,12.960013738511611,12.960013738511611,12.960013738511611,12.960013738511611,12.960013738511611,12.960013738511611,12.960013738511611,12.960013738511611,12.960013738511611,null,14,"Autoveicoli",5,null,2026,1.2E-2,null,"da t-14 a t",null,null,null,null,null,null,null,null,null,null,null,null,null,null,{"$f":"+PRODUCT(BD7:BQ7)","v":1.2395217755460186},{"$f":"+PRODUCT(BE7:BR7)","v":1.2140272042566291},{"$f":"+PRODUCT(BF7:BS7)","v":1.2067864853445622}]
[1975,9.77,10.034000000000001,10.154,10.144253592,10.184830606368001,10.215385098187104,10.194954327990731,10.235734145302693,10.307384284319811,10.358921205741408,10.400356890564375,10.753969024843563,11.055080157539184,11.044025077381644,11.055069102459024,11.055069102459024,11.055069102459024,11.055069102459024,11.055069102459024,11.055069102459024,11.055069102459024,11.055069102459024,11.055069102459024,11.055069102459024,11.055069102459024,11.055069102459024,11.055069102459024,11.055069102459024,11.055069102459024,11.055069102459024,11.055069102459024,11.055069102459024,11.055069102459024,11.055069102459024,11.055069102459024,11.055069102459024,11.055069102459024,11.055069102459024,11.055069102459024,11.055069102459024,11.055069102459024,11.055069102459024,11.055069102459024,11.055069102459024,null,15,"Studi, ricerche, brevetti, diritti di utilizzazione",5,null,null,null,null,"da t-15 a t",null,null,null,null,null,null,null,null,null,null,null,null,null,null,null,{"$f":"+PRODUCT(BD7:BR7)","v":1.2395217755460186},{"$f":"+PRODUCT(BE7:BS7)","v":1.2140272042566291}]
[1976,8.1649999999999991,8.3859999999999992,8.4870000000000001,8.4781453679999998,8.5120579494720001,8.5375941233204156,8.520518935073774,8.5546010108140695,8.6144832178897666,8.6575556339792143,8.6921858565151311,8.987720175636646,9.2393763405544718,9.2301369642139175,9.2393671011781304,9.2393671011781304,9.2393671011781304,9.2393671011781304,9.2393671011781304,9.2393671011781304,9.2393671011781304,9.2393671011781304,9.2393671011781304,9.2393671011781304,9.2393671011781304,9.2393671011781304,9.2393671011781304,9.2393671011781304,9.2393671011781304,9.2393671011781304,9.2393671011781304,9.2393671011781304,9.2393671011781304,9.2393671011781304,9.2393671011781304,9.2393671011781304,9.2393671011781304,9.2393671011781304,9.2393671011781304,9.2393671011781304,9.2393671011781304,9.2393671011781304,9.2393671011781304,9.2393671011781304,null,16,"Altre immobilizzazioni materiali e immateriali (al netto categoria successiva)",7,null,null,null,null,"da t-16 a t",null,null,null,null,null,null,null,null,null,null,null,null,null,null,null,null,{"$f":"+PRODUCT(BD7:BS7)","v":1.2395217755460186}]
[1977,6.9539999999999997,7.1420000000000003,7.2279999999999998,7.2204762960000002,7.2493582011840001,7.2711062757875515,7.2565640632359765,7.2855903194889207,7.3365894517253425,7.3732723989839686,7.4027654885799041,7.654459515191621,7.8687843816169867,7.8609155972353699,7.8687765128326044,7.8687765128326044,7.8687765128326044,7.8687765128326044,7.8687765128326044,7.8687765128326044,7.8687765128326044,7.8687765128326044,7.8687765128326044,7.8687765128326044,7.8687765128326044,7.8687765128326044,7.8687765128326044,7.8687765128326044,7.8687765128326044,7.8687765128326044,7.8687765128326044,7.8687765128326044,7.8687765128326044,7.8687765128326044,7.8687765128326044,7.8687765128326044,7.8687765128326044,7.8687765128326044,7.8687765128326044,7.8687765128326044,7.8687765128326044,7.8687765128326044,7.8687765128326044,7.8687765128326044,null,17,"Avviamenti, capitalizzazioni della concessione, ecc.",0]
[1978,6.141,6.3070000000000004,6.383,6.3763013160000002,6.4018065212640005,6.4210119408277917,6.4081699169461359,6.4338025966139201,6.4788392147902165,6.5112334108641665,6.537278344507623,6.7595458082208824,6.9488130908510675,6.9418642777602164,6.9488061420379763,6.9488061420379763,6.9488061420379763,6.9488061420379763,6.9488061420379763,6.9488061420379763,6.9488061420379763,6.9488061420379763,6.9488061420379763,6.9488061420379763,6.9488061420379763,6.9488061420379763,6.9488061420379763,6.9488061420379763,6.9488061420379763,6.9488061420379763,6.9488061420379763,6.9488061420379763,6.9488061420379763,6.9488061420379763,6.9488061420379763,6.9488061420379763,6.9488061420379763,6.9488061420379763,6.9488061420379763,6.9488061420379763,6.9488061420379763,6.9488061420379763,6.9488061420379763,6.9488061420379763,null,38,"Grandi dighe (sbarramenti che superano i quindici metri di altezza o che determinano un invaso superiore a 1 milione di metri cubi)",60]
[1979,5.3390000000000004,5.484,5.55,5.544258192,5.566435224768,5.5831345304423037,5.5719682613814188,5.5942561344269448,5.633415927367933,5.6615830070047721,5.6842293390327914,5.8774931365599068,6.0420629443835843,6.0360208814392005,6.0420569023206392,6.0420569023206392,6.0420569023206392,6.0420569023206392,6.0420569023206392,6.0420569023206392,6.0420569023206392,6.0420569023206392,6.0420569023206392,6.0420569023206392,6.0420569023206392,6.0420569023206392,6.0420569023206392,6.0420569023206392,6.0420569023206392,6.0420569023206392,6.0420569023206392,6.0420569023206392,6.0420569023206392,6.0420569023206392,6.0420569023206392,6.0420569023206392,6.0420569023206392,6.0420569023206392,6.0420569023206392,6.0420569023206392,6.0420569023206392,6.0420569023206392,6.0420569023206392,6.0420569023206392,null,39,"Piccole dighe (sbarramenti che non superano i quindici metri di altezza o che determinano un invaso non superiore a 1 milione di metri cubi)",30,null,null,null,null,"IMN - gestore",null,null,"IMN - proprietari"]
[1980,4.3099999999999996,4.4260000000000002,4.4790000000000001,4.4746328880000004,4.4925314195520007,4.5060090138106563,4.4969969957830349,4.5149849837661673,4.5465898786525303,4.5693228280457925,4.5876001193579761,4.7435785234161472,4.8763987220717997,4.871522323349728,4.8763938456730775,4.8763938456730775,4.8763938456730775,4.8763938456730775,4.8763938456730775,4.8763938456730775,4.8763938456730775,4.8763938456730775,4.8763938456730775,4.8763938456730775,4.8763938456730775,4.8763938456730775,4.8763938456730775,4.8763938456730775,4.8763938456730775,4.8763938456730775,4.8763938456730775,4.8763938456730775,4.8763938456730775,4.8763938456730775,4.8763938456730775,4.8763938456730775,4.8763938456730775,4.8763938456730775,4.8763938456730775,4.8763938456730775,4.8763938456730775,4.8763938456730775,4.8763938456730775,4.8763938456730775,null,null,null,null,null,null,null,null,"Voce","MTI-4",null,"Voce","MTI-4"]
[1981,3.5249999999999999,3.62,3.6629999999999998,3.6597765600000001,3.6744156662400003,3.6854389132387197,3.6780680354122421,3.6927803075538912,3.7186297697067681,3.7372229185553016,3.7521718102295227,3.8797456517773266,3.988378530027092,3.984390151497065,3.9883745416485614,3.9883745416485614,3.9883745416485614,3.9883745416485614,3.9883745416485614,3.9883745416485614,3.9883745416485614,3.9883745416485614,3.9883745416485614,3.9883745416485614,3.9883745416485614,3.9883745416485614,3.9883745416485614,3.9883745416485614,3.9883745416485614,3.9883745416485614,3.9883745416485614,3.9883745416485614,3.9883745416485614,3.9883745416485614,3.9883745416485614,3.9883745416485614,3.9883745416485614,3.9883745416485614,3.9883745416485614,3.9883745416485614,3.9883745416485614,3.9883745416485614,3.9883745416485614,3.9883745416485614,null,null,null,null,null,null,null,null,"CS/CnS",1,null,"CS/CnS",{"$f":"+TT_parametri!$BC$27","v":1}]
[1982,3.0630000000000002,3.1459999999999999,3.1840000000000002,3.1805682480000002,3.1932905209919999,3.2028703925549755,3.1964646517698654,3.2092505103769446,3.231715263949583,3.2478738402693303,3.2608653356304078,3.3717347570418417,3.4661433302390132,3.462677186908774,3.4661398640956822,3.4661398640956822,3.4661398640956822,3.4661398640956822,3.4661398640956822,3.4661398640956822,3.4661398640956822,3.4661398640956822,3.4661398640956822,3.4661398640956822,3.4661398640956822,3.4661398640956822,3.4661398640956822,3.4661398640956822,3.4661398640956822,3.4661398640956822,3.4661398640956822,3.4661398640956822,3.4661398640956822,3.4661398640956822,3.4661398640956822,3.4661398640956822,3.4661398640956822,3.4661398640956822,3.4661398640956822,3.4661398640956822,3.4661398640956822,3.4661398640956822,3.4661398640956822,3.4661398640956822,null,null,null,null,null,null,null,null,"risk free rate",2.1299999999999999E-2,null,"risk free rate",{"$f":"+TT_parametri!$BC$28","v":2.1299999999999999E-2}]
[1983,2.746,2.82,2.8540000000000001,2.8509861599999997,2.8623901046399998,2.8709772749539195,2.8652353204040115,2.8766962616856278,2.896833135517427,2.9113173011950138,2.9229625703997937,3.0223432977933866,3.1069689101316014,3.1038619412214699,3.1069658031626908,3.1069658031626908,3.1069658031626908,3.1069658031626908,3.1069658031626908,3.1069658031626908,3.1069658031626908,3.1069658031626908,3.1069658031626908,3.1069658031626908,3.1069658031626908,3.1069658031626908,3.1069658031626908,3.1069658031626908,3.1069658031626908,3.1069658031626908,3.1069658031626908,3.1069658031626908,3.1069658031626908,3.1069658031626908,3.1069658031626908,3.1069658031626908,3.1069658031626908,3.1069658031626908,3.1069658031626908,3.1069658031626908,3.1069658031626908,3.1069658031626908,3.1069658031626908,3.1069658031626908,null,"anno","costo medio EE per calcolo COEE","u.d.m.",null,null,null,null,"Kd",0.03,null,"Kd",{"$f":"+TT_parametri!$BC$29","v":0.03}]
[1984,2.5150000000000001,2.5830000000000002,2.6139999999999999,2.6113820040000002,2.6218275320160003,2.6296930146120481,2.6244336285828238,2.6349313630971549,2.6533758826388349,2.666642762052029,2.6773093331002373,2.7683378504256453,2.8458513102375633,2.8430054589273257,2.8458484643862527,2.8458484643862527,2.8458484643862527,2.8458484643862527,2.8458484643862527,2.8458484643862527,2.8458484643862527,2.8458484643862527,2.8458484643862527,2.8458484643862527,2.8458484643862527,2.8458484643862527,2.8458484643862527,2.8458484643862527,2.8458484643862527,2.8458484643862527,2.8458484643862527,2.8458484643862527,2.8458484643862527,2.8458484643862527,2.8458484643862527,2.8458484643862527,2.8458484643862527,2.8458484643862527,2.8458484643862527,2.8458484643862527,2.8458484643862527,2.8458484643862527,2.8458484643862527,2.8458484643862527,null,2012,0.15164,"€/KWh",null,null,null,null,"WRP",1.7999999999999999E-2,null,"WRP",{"$f":"+TT_parametri!$BC$30","v":1.7999999999999999E-2}]
[1985,2.3069999999999999,2.3690000000000002,2.3969999999999998,2.395030572,2.4046106942879999,2.4118245263708635,2.4070008773181217,2.4166288808273944,2.4335452829931858,2.4457130094081516,2.455495861445784,2.5389827207349409,2.6100742369155192,2.6074641626786037,2.610071626841282,2.610071626841282,2.610071626841282,2.610071626841282,2.610071626841282,2.610071626841282,2.610071626841282,2.610071626841282,2.610071626841282,2.610071626841282,2.610071626841282,2.610071626841282,2.610071626841282,2.610071626841282,2.610071626841282,2.610071626841282,2.610071626841282,2.610071626841282,2.610071626841282,2.610071626841282,2.610071626841282,2.610071626841282,2.610071626841282,2.610071626841282,2.610071626841282,2.610071626841282,2.610071626841282,2.610071626841282,2.610071626841282,2.610071626841282,null,2013,0.15164,"€/KWh",null,null,null,null,"β levered",0.79,null,"β levered",{"$f":"+TT_parametri!$BC$31","v":0.79}]
[1986,2.222,2.2810000000000001,2.3079999999999998,2.3060636280000004,2.3152878825120005,2.3222337461595361,2.3175892786672172,2.326859635781886,2.343147653232359,2.3548633914985206,2.3642828450645146,2.444668461796708,2.513119178727016,2.5106060595482891,2.513116665607837,2.513116665607837,2.513116665607837,2.513116665607837,2.513116665607837,2.513116665607837,2.513116665607837,2.513116665607837,2.513116665607837,2.513116665607837,2.513116665607837,2.513116665607837,2.513116665607837,2.513116665607837,2.513116665607837,2.513116665607837,2.513116665607837,2.513116665607837,2.513116665607837,2.513116665607837,2.513116665607837,2.513116665607837,2.513116665607837,2.513116665607837,2.513116665607837,2.513116665607837,2.513116665607837,2.513116665607837,2.513116665607837,2.513116665607837,null,2014,0.16739999999999999,"€/KWh",null,null,null,null,"ERP",3.1E-2,null,"ERP",{"$f":"+TT_parametri!$BC$32","v":3.1E-2}]
[1987,2.1280000000000001,2.1859999999999999,2.2120000000000002,2.2100197679999996,2.2188598470719993,2.2255164266132152,2.2210653937599889,2.2299496553350289,2.2455593029223739,2.2567870994369854,2.2658142478347334,2.3428519322611145,2.4084517863644259,2.4060433345780616,2.4084493779126395,2.4084493779126395,2.4084493779126395,2.4084493779126395,2.4084493779126395,2.4084493779126395,2.4084493779126395,2.4084493779126395,2.4084493779126395,2.4084493779126395,2.4084493779126395,2.4084493779126395,2.4084493779126395,2.4084493779126395,2.4084493779126395,2.4084493779126395,2.4084493779126395,2.4084493779126395,2.4084493779126395,2.4084493779126395,2.4084493779126395,2.4084493779126395,2.4084493779126395,2.4084493779126395,2.4084493779126395,2.4084493779126395,2.4084493779126395,2.4084493779126395,2.4084493779126395,2.4084493779126395,null,2015,0.16739999999999999,"€/KWh",null,null,null,null,"rpi",{"$f":"+BC43","v":1.9E-2},null,"rpi",{"$f":"+TT_parametri!$BC$33","v":1.9E-2}]
[1988,2.016,2.0710000000000002,2.0960000000000001,2.0937561480000002,2.1021311725920002,2.1084375661097758,2.1042206909775563,2.1126375737414667,2.1274260367576567,2.1380631669414449,2.1466154196092107,2.219600343875924,2.2817491535044501,2.2794674043509455,2.281746871755296,2.281746871755296,2.281746871755296,2.281746871755296,2.281746871755296,2.281746871755296,2.281746871755296,2.281746871755296,2.281746871755296,2.281746871755296,2.281746871755296,2.281746871755296,2.281746871755296,2.281746871755296,2.281746871755296,2.281746871755296,2.281746871755296,2.281746871755296,2.281746871755296,2.281746871755296,2.281746871755296,2.281746871755296,2.281746871755296,2.281746871755296,2.281746871755296,2.281746871755296,2.281746871755296,2.281746871755296,2.281746871755296,2.281746871755296,null,2016,0.1585,"€/KWh",null,null,null,null,"tc",0.24,null,"tc",{"$f":"+TT_parametri!$BC$34","v":0.24}]
[1989,1.913,1.964,1.988,1.9855804319999999,1.9935227537279998,1.9995033219891836,1.9955043153452052,2.0034863326065859,2.017510736934832,2.027598290619506,2.035708683781984,2.1049227790305713,2.1638606168434276,2.1616967562265841,2.1638584529828102,2.1638584529828102,2.1638584529828102,2.1638584529828102,2.1638584529828102,2.1638584529828102,2.1638584529828102,2.1638584529828102,2.1638584529828102,2.1638584529828102,2.1638584529828102,2.1638584529828102,2.1638584529828102,2.1638584529828102,2.1638584529828102,2.1638584529828102,2.1638584529828102,2.1638584529828102,2.1638584529828102,2.1638584529828102,2.1638584529828102,2.1638584529828102,2.1638584529828102,2.1638584529828102,2.1638584529828102,2.1638584529828102,2.1638584529828102,2.1638584529828102,2.1638584529828102,2.1638584529828102,null,2017,0.1585,"€/KWh",null,null,null,null,"T",0.31900000000000001,null,"T",{"$f":"+TT_parametri!$BC$35","v":0.31900000000000001}]
[1990,1.794,1.8420000000000001,1.8640000000000001,1.8622398960000002,1.8696888555840001,1.875297922150752,1.8715473263064504,1.8790335156116762,1.8921867502209577,1.9016476839720624,1.9092542747079506,1.974168920048021,2.0294456498093658,2.0274162041595565,2.0294436203637156,2.0294436203637156,2.0294436203637156,2.0294436203637156,2.0294436203637156,2.0294436203637156,2.0294436203637156,2.0294436203637156,2.0294436203637156,2.0294436203637156,2.0294436203637156,2.0294436203637156,2.0294436203637156,2.0294436203637156,2.0294436203637156,2.0294436203637156,2.0294436203637156,2.0294436203637156,2.0294436203637156,2.0294436203637156,2.0294436203637156,2.0294436203637156,2.0294436203637156,2.0294436203637156,2.0294436203637156,2.0294436203637156,2.0294436203637156,2.0294436203637156,2.0294436203637156,2.0294436203637156,null,2018,0.14729999999999999,"€/KWh",null,null,null,null,"time lag",0.01,null,"km",{"$f":"+((1/(1+$BF$27))*($BF$28+$BF$30))+($BF$29*(1-$BF$34)*($BF$27/(1+$BF$27)))","v":3.1050000000000001E-2}]
[1991,1.6950000000000001,1.7410000000000001,1.762,1.760130108,1.7671706284320001,1.7724721403172958,1.7689271960366613,1.7760029048208079,1.7884349251545535,1.797377099780326,1.8045666081794474,1.8659218728575486,1.91816768529756,1.9162495176122625,1.9181657671298746,1.9181657671298746,1.9181657671298746,1.9181657671298746,1.9181657671298746,1.9181657671298746,1.9181657671298746,1.9181657671298746,1.9181657671298746,1.9181657671298746,1.9181657671298746,1.9181657671298746,1.9181657671298746,1.9181657671298746,1.9181657671298746,1.9181657671298746,1.9181657671298746,1.9181657671298746,1.9181657671298746,1.9181657671298746,1.9181657671298746,1.9181657671298746,1.9181657671298746,1.9181657671298746,1.9181657671298746,1.9181657671298746,1.9181657671298746,1.9181657671298746,1.9181657671298746,1.9181657671298746,null,2019,0.15970000000000001,"€/KWh",null,null,null,null,null,null,null,"α",{"$f":"+$BF$31*$BF$32*(1/(1+$BF$27))","v":1.2245000000000001E-2}]
[1992,1.63,1.6739999999999999,1.694,1.692393912,1.699163487648,1.7042609781109437,1.7008524561547218,1.7076558659793406,1.7196094570411957,1.7282075043264016,1.7351203343437072,1.7941144257113932,1.8443496296313122,1.842505280001681,1.8443477852816825,1.8443477852816825,1.8443477852816825,1.8443477852816825,1.8443477852816825,1.8443477852816825,1.8443477852816825,1.8443477852816825,1.8443477852816825,1.8443477852816825,1.8443477852816825,1.8443477852816825,1.8443477852816825,1.8443477852816825,1.8443477852816825,1.8443477852816825,1.8443477852816825,1.8443477852816825,1.8443477852816825,1.8443477852816825,1.8443477852816825,1.8443477852816825,1.8443477852816825,1.8443477852816825,1.8443477852816825,1.8443477852816825,1.8443477852816825,1.8443477852816825,1.8443477852816825,1.8443477852816825,null,2020,0.15429999999999999,"€/KWh"]
[1993,1.57,1.6120000000000001,1.631,1.6297126560000001,1.6362315066240001,1.6411402011438718,1.637857920741584,1.6444093524245502,1.655920217891522,1.6641998189809795,1.6708566182569033,1.7276657432776381,1.7760403840894121,1.7742643437053227,1.7760386080490278,1.7760386080490278,1.7760386080490278,1.7760386080490278,1.7760386080490278,1.7760386080490278,1.7760386080490278,1.7760386080490278,1.7760386080490278,1.7760386080490278,1.7760386080490278,1.7760386080490278,1.7760386080490278,1.7760386080490278,1.7760386080490278,1.7760386080490278,1.7760386080490278,1.7760386080490278,1.7760386080490278,1.7760386080490278,1.7760386080490278,1.7760386080490278,1.7760386080490278,1.7760386080490278,1.7760386080490278,1.7760386080490278,1.7760386080490278,1.7760386080490278,1.7760386080490278,1.7760386080490278,null,2021,0.1618,"€/KWh"]
[1994,1.518,1.5589999999999999,1.5780000000000001,1.576130292,1.5824348131679999,1.5871821176075038,1.5840077533722887,1.5903437843857779,1.6014761908764783,1.6094835718308604,1.615921506118184,1.6708628373262022,1.7176469967713359,1.7159293497745647,1.7176452791243391,1.7176452791243391,1.7176452791243391,1.7176452791243391,1.7176452791243391,1.7176452791243391,1.7176452791243391,1.7176452791243391,1.7176452791243391,1.7176452791243391,1.7176452791243391,1.7176452791243391,1.7176452791243391,1.7176452791243391,1.7176452791243391,1.7176452791243391,1.7176452791243391,1.7176452791243391,1.7176452791243391,1.7176452791243391,1.7176452791243391,1.7176452791243391,1.7176452791243391,1.7176452791243391,1.7176452791243391,1.7176452791243391,1.7176452791243391,1.7176452791243391,1.7176452791243391,1.7176452791243391,null,2022,0.28549999999999998,"€/KWh"]
[1995,1.4590000000000001,1.4990000000000001,1.5169999999999999,1.5154710120000001,1.5215328960480001,1.5260974947361439,1.5230452997466715,1.5291374809456582,1.5398414433122776,1.5475406505288387,1.5537308131309542,1.6065576607774066,1.651541275279174,1.6498897340038949,1.6515396237378988,1.6515396237378988,1.6515396237378988,1.6515396237378988,1.6515396237378988,1.6515396237378988,1.6515396237378988,1.6515396237378988,1.6515396237378988,1.6515396237378988,1.6515396237378988,1.6515396237378988,1.6515396237378988,1.6515396237378988,1.6515396237378988,1.6515396237378988,1.6515396237378988,1.6515396237378988,1.6515396237378988,1.6515396237378988,1.6515396237378988,1.6515396237378988,1.6515396237378988,1.6515396237378988,1.6515396237378988,1.6515396237378988,1.6515396237378988,1.6515396237378988,1.6515396237378988,1.6515396237378988,null,2023,0.24360000000000001,"€/KWh",null,null,null,null,"Voce","MTI-4"]
[1996,1.4179999999999999,1.4570000000000001,1.474,1.4730095160000001,1.478901554064,1.4833382587261918,1.4803715822087395,1.4862930685375746,1.4966971200173376,1.5041806056174241,1.5101973280398937,1.5615440371932501,1.6052672702346611,1.6036620029644264,1.6052656649673906,1.6052656649673906,1.6052656649673906,1.6052656649673906,1.6052656649673906,1.6052656649673906,1.6052656649673906,1.6052656649673906,1.6052656649673906,1.6052656649673906,1.6052656649673906,1.6052656649673906,1.6052656649673906,1.6052656649673906,1.6052656649673906,1.6052656649673906,1.6052656649673906,1.6052656649673906,1.6052656649673906,1.6052656649673906,1.6052656649673906,1.6052656649673906,1.6052656649673906,1.6052656649673906,1.6052656649673906,1.6052656649673906,1.6052656649673906,1.6052656649673906,1.6052656649673906,1.6052656649673906,null,"anno","BenchmarkEE per calcolo COEE","u.d.m.",null,null,null,null,"ω",0.5]
[1997,1.381,1.4179999999999999,1.4350000000000001,1.4335809839999998,1.4393153079359997,1.4436332538598076,1.440745987352088,1.4465089713014965,1.4566345341006068,1.4639177067711098,1.4697733775981943,1.519745672436533,1.562298551264756,1.5607362527134914,1.5622969889662046,1.5622969889662046,1.5622969889662046,1.5622969889662046,1.5622969889662046,1.5622969889662046,1.5622969889662046,1.5622969889662046,1.5622969889662046,1.5622969889662046,1.5622969889662046,1.5622969889662046,1.5622969889662046,1.5622969889662046,1.5622969889662046,1.5622969889662046,1.5622969889662046,1.5622969889662046,1.5622969889662046,1.5622969889662046,1.5622969889662046,1.5622969889662046,1.5622969889662046,1.5622969889662046,1.5622969889662046,1.5622969889662046,1.5622969889662046,1.5622969889662046,1.5622969889662046,1.5622969889662046,null,2024,0.215,"€/KWh",null,null,null,null,"rpi",1.9E-2]
[1998,1.3560000000000001,1.3919999999999999,1.409,1.407295296,1.4129244771839999,1.4171632506155518,1.4143289241143207,1.4199862398107779,1.4299261434894532,1.4370757742069002,1.4428240773037277,1.4918800959320546,1.5336527386181522,1.5321190858795342,1.5336512049654136,1.5336512049654136,1.5336512049654136,1.5336512049654136,1.5336512049654136,1.5336512049654136,1.5336512049654136,1.5336512049654136,1.5336512049654136,1.5336512049654136,1.5336512049654136,1.5336512049654136,1.5336512049654136,1.5336512049654136,1.5336512049654136,1.5336512049654136,1.5336512049654136,1.5336512049654136,1.5336512049654136,1.5336512049654136,1.5336512049654136,1.5336512049654136,1.5336512049654136,1.5336512049654136,1.5336512049654136,1.5336512049654136,1.5336512049654136,1.5336512049654136,1.5336512049654136,1.5336512049654136,null,2025,0.221,"€/KWh",null,null,null,null,"Kreg",0.05]
[1999,1.34,1.3759999999999999,1.393,1.391119488,1.3966839659520001,1.400874017849856,1.3980722698141563,1.4036645588934129,1.4134902108056666,1.4205576618596949,1.4262398925071338,1.4747320488523763,1.5160245462202429,1.5145085216740226,1.5160230301956965,1.5160230301956965,1.5160230301956965,1.5160230301956965,1.5160230301956965,1.5160230301956965,1.5160230301956965,1.5160230301956965,1.5160230301956965,1.5160230301956965,1.5160230301956965,1.5160230301956965,1.5160230301956965,1.5160230301956965,1.5160230301956965,1.5160230301956965,1.5160230301956965,1.5160230301956965,1.5160230301956965,1.5160230301956965,1.5160230301956965,1.5160230301956965,1.5160230301956965,1.5160230301956965,1.5160230301956965,1.5160230301956965,1.5160230301956965,1.5160230301956965,1.5160230301956965,1.5160230301956965,null,2026,"da individuare","€/KWh",null,null,null,null,"Xreg",1.4999999999999999E-2]
[2000,1.302,1.337,1.353,1.3516909559999999,1.357097719824,1.3611690129834717,1.3584466749575048,1.3638804616573348,1.3734276248889359,1.3802947630133804,1.3858159420654339,1.4329336840956588,1.4730558272503373,1.4715827714230869,1.4730543541945098,1.4730543541945098,1.4730543541945098,1.4730543541945098,1.4730543541945098,1.4730543541945098,1.4730543541945098,1.4730543541945098,1.4730543541945098,1.4730543541945098,1.4730543541945098,1.4730543541945098,1.4730543541945098,1.4730543541945098,1.4730543541945098,1.4730543541945098,1.4730543541945098,1.4730543541945098,1.4730543541945098,1.4730543541945098,1.4730543541945098,1.4730543541945098,1.4730543541945098,1.4730543541945098,1.4730543541945098,1.4730543541945098,1.4730543541945098,1.4730543541945098,1.4730543541945098,1.4730543541945098,null,2027,"da individuare","€/KWh",null,null,null,null,"VRGPM",159]
[2001,1.2749999999999999,1.31,1.3260000000000001,1.3243942799999999,1.3296918571199998,1.3336809326913597,1.3310135708259769,1.3363376251092809,1.3456919884850458,1.3524204484274709,1.3578301302211808,1.4039963546487011,1.4433082525788647,1.4418649443262859,1.4433068092706121,1.4433068092706121,1.4433068092706121,1.4433068092706121,1.4433068092706121,1.4433068092706121,1.4433068092706121,1.4433068092706121,1.4433068092706121,1.4433068092706121,1.4433068092706121,1.4433068092706121,1.4433068092706121,1.4433068092706121,1.4433068092706121,1.4433068092706121,1.4433068092706121,1.4433068092706121,1.4433068092706121,1.4433068092706121,1.4433068092706121,1.4433068092706121,1.4433068092706121,1.4433068092706121,1.4433068092706121,1.4433068092706121,1.4433068092706121,1.4433068092706121,1.4433068092706121,1.4433068092706121,null,null,null,null,null,null,null,null,"y min",0.4]
[2002,1.2390000000000001,1.2729999999999999,1.288,1.2869877240000001,1.292135674896,1.296012081920688,1.2934200577568467,1.298593737987874,1.3076838941537889,1.3142223136245577,1.3194792028790558,1.3643414957769437,1.4025430576586981,1.4011405146010394,1.4025416551156402,1.4025416551156402,1.4025416551156402,1.4025416551156402,1.4025416551156402,1.4025416551156402,1.4025416551156402,1.4025416551156402,1.4025416551156402,1.4025416551156402,1.4025416551156402,1.4025416551156402,1.4025416551156402,1.4025416551156402,1.4025416551156402,1.4025416551156402,1.4025416551156402,1.4025416551156402,1.4025416551156402,1.4025416551156402,1.4025416551156402,1.4025416551156402,1.4025416551156402,1.4025416551156402,1.4025416551156402,1.4025416551156402,1.4025416551156402,1.4025416551156402,1.4025416551156402,1.4025416551156402,null,"anno","costo medio ATO per calcolo COATO","u.d.m.",null,null,null,null,"y max",0.8]
[2003,1.22,1.2529999999999999,1.268,1.266767964,1.271835035856,1.2756505409635679,1.2730992398816408,1.2781916368411672,1.2871389782990552,1.2935746731905504,1.2987489718833127,1.3429064369273453,1.380507817161311,1.3791273093441496,1.3805064366534936,1.3805064366534936,1.3805064366534936,1.3805064366534936,1.3805064366534936,1.3805064366534936,1.3805064366534936,1.3805064366534936,1.3805064366534936,1.3805064366534936,1.3805064366534936,1.3805064366534936,1.3805064366534936,1.3805064366534936,1.3805064366534936,1.3805064366534936,1.3805064366534936,1.3805064366534936,1.3805064366534936,1.3805064366534936,1.3805064366534936,1.3805064366534936,1.3805064366534936,1.3805064366534936,1.3805064366534936,1.3805064366534936,1.3805064366534936,1.3805064366534936,1.3805064366534936,1.3805064366534936,null,2012,1.01,"€/abit"]
[2004,1.1879999999999999,1.22,1.2350000000000001,1.2334053599999999,1.2383389814399999,1.2420539983843197,1.2395698903875512,1.2445281699491013,1.2532398671387448,1.2595060664744384,1.2645440907403362,1.3075385898255076,1.3441496703406219,1.3428055206702814,1.3441483261909515,1.3441483261909515,1.3441483261909515,1.3441483261909515,1.3441483261909515,1.3441483261909515,1.3441483261909515,1.3441483261909515,1.3441483261909515,1.3441483261909515,1.3441483261909515,1.3441483261909515,1.3441483261909515,1.3441483261909515,1.3441483261909515,1.3441483261909515,1.3441483261909515,1.3441483261909515,1.3441483261909515,1.3441483261909515,1.3441483261909515,1.3441483261909515,1.3441483261909515,1.3441483261909515,1.3441483261909515,1.3441483261909515,1.3441483261909515,1.3441483261909515,1.3441483261909515,1.3441483261909515,null,2013,{"$f":"+AV49","v":1.01},"€/abit"]
[2005,1.1539999999999999,1.1850000000000001,1.1990000000000001,1.1980207800000002,1.2028128631200001,1.2064213017093599,1.2040084591059412,1.208824492942365,1.2172862643929614,1.223372695714926,1.2282661864977857,1.2700272368387104,1.3055879994701944,1.3042824114707243,1.3055866938821949,1.3055866938821949,1.3055866938821949,1.3055866938821949,1.3055866938821949,1.3055866938821949,1.3055866938821949,1.3055866938821949,1.3055866938821949,1.3055866938821949,1.3055866938821949,1.3055866938821949,1.3055866938821949,1.3055866938821949,1.3055866938821949,1.3055866938821949,1.3055866938821949,1.3055866938821949,1.3055866938821949,1.3055866938821949,1.3055866938821949,1.3055866938821949,1.3055866938821949,1.3055866938821949,1.3055866938821949,1.3055866938821949,1.3055866938821949,1.3055866938821949,1.3055866938821949,1.3055866938821949,null,null,null,null,null,null,null,null,"quota % contributo Autorità"]
[2006,1.123,1.153,1.167,1.1656691640000001,1.1703318406560002,1.173842836177968,1.1714951505056121,1.1761811311076347,1.1844143990253879,1.1903364710205147,1.1950978169045967,1.2357311426793531,1.2703316146743751,1.2690612830597008,1.2703303443427603,1.2703303443427603,1.2703303443427603,1.2703303443427603,1.2703303443427603,1.2703303443427603,1.2703303443427603,1.2703303443427603,1.2703303443427603,1.2703303443427603,1.2703303443427603,1.2703303443427603,1.2703303443427603,1.2703303443427603,1.2703303443427603,1.2703303443427603,1.2703303443427603,1.2703303443427603,1.2703303443427603,1.2703303443427603,1.2703303443427603,1.2703303443427603,1.2703303443427603,1.2703303443427603,1.2703303443427603,1.2703303443427603,1.2703303443427603,1.2703303443427603,1.2703303443427603,1.2703303443427603,null,null,null,null,null,null,null,null,2014,{"$f":"0.25/1000","v":2.5000000000000001E-4}]
[2007,1.091,1.121,1.1339999999999999,1.133317548,1.137850818192,1.1412643706465759,1.1389818419052828,1.1435377692729041,1.1515425336578142,1.1573002463261031,1.1619294473114075,1.2014350485199954,1.2350752298785552,1.2338401546486766,1.2350739948033251,1.2350739948033251,1.2350739948033251,1.2350739948033251,1.2350739948033251,1.2350739948033251,1.2350739948033251,1.2350739948033251,1.2350739948033251,1.2350739948033251,1.2350739948033251,1.2350739948033251,1.2350739948033251,1.2350739948033251,1.2350739948033251,1.2350739948033251,1.2350739948033251,1.2350739948033251,1.2350739948033251,1.2350739948033251,1.2350739948033251,1.2350739948033251,1.2350739948033251,1.2350739948033251,1.2350739948033251,1.2350739948033251,1.2350739948033251,1.2350739948033251,1.2350739948033251,1.2350739948033251,null,null,null,null,null,null,null,null,2015,{"$f":"0.25/1000","v":2.5000000000000001E-4}]
[2008,1.0580000000000001,1.0860000000000001,1.099,1.0979329680000001,1.102324699872,1.1056316739716159,1.1034204106236727,1.1078340922661674,1.1155889309120304,1.1211668755665904,1.1256515430688567,1.163923695533198,1.1965135590081275,1.1953170454491193,1.1965123624945684,1.1965123624945684,1.1965123624945684,1.1965123624945684,1.1965123624945684,1.1965123624945684,1.1965123624945684,1.1965123624945684,1.1965123624945684,1.1965123624945684,1.1965123624945684,1.1965123624945684,1.1965123624945684,1.1965123624945684,1.1965123624945684,1.1965123624945684,1.1965123624945684,1.1965123624945684,1.1965123624945684,1.1965123624945684,1.1965123624945684,1.1965123624945684,1.1965123624945684,1.1965123624945684,1.1965123624945684,1.1965123624945684,1.1965123624945684,1.1965123624945684,1.1965123624945684,1.1965123624945684,null,"area","morosità - art.30.2",null,null,null,null,null,2016,{"$f":"0.25/1000","v":2.5000000000000001E-4}]
[2009,1.05,1.0780000000000001,1.091,1.0898450640000001,1.0942044442560002,1.0974870575887681,1.0952920834735906,1.099673251807485,1.1073709645701373,1.1129078193929878,1.1173594506705598,1.1553496719933589,1.187699462809173,1.1865117633463638,1.18769827510971,1.18769827510971,1.18769827510971,1.18769827510971,1.18769827510971,1.18769827510971,1.18769827510971,1.18769827510971,1.18769827510971,1.18769827510971,1.18769827510971,1.18769827510971,1.18769827510971,1.18769827510971,1.18769827510971,1.18769827510971,1.18769827510971,1.18769827510971,1.18769827510971,1.18769827510971,1.18769827510971,1.18769827510971,1.18769827510971,1.18769827510971,1.18769827510971,1.18769827510971,1.18769827510971,1.18769827510971,1.18769827510971,1.18769827510971,null,"N",2.4E-2,null,null,null,null,null,2017,{"$f":"0.27/1000","v":2.7E-4}]
[2010,1.05,1.0780000000000001,1.091,1.0898450640000001,1.0942044442560002,1.0974870575887681,1.0952920834735906,1.099673251807485,1.1073709645701373,1.1129078193929878,1.1173594506705598,1.1553496719933589,1.187699462809173,1.1865117633463638,1.18769827510971,1.18769827510971,1.18769827510971,1.18769827510971,1.18769827510971,1.18769827510971,1.18769827510971,1.18769827510971,1.18769827510971,1.18769827510971,1.18769827510971,1.18769827510971,1.18769827510971,1.18769827510971,1.18769827510971,1.18769827510971,1.18769827510971,1.18769827510971,1.18769827510971,1.18769827510971,1.18769827510971,1.18769827510971,1.18769827510971,1.18769827510971,1.18769827510971,1.18769827510971,1.18769827510971,1.18769827510971,1.18769827510971,1.18769827510971,null,"C",3.5000000000000003E-2,null,null,null,null,null,2018,{"$f":"0.27/1000","v":2.7E-4}]
[2011,1.034,1.0620000000000001,1.075,1.0736692560000001,1.0779639330240001,1.081197824823072,1.0790354291734259,1.0833515708901196,1.0909350318863502,1.0963897070457818,1.1007752658739649,1.1382016249136797,1.1700712704112628,1.1689011991408516,1.1700701003399923,1.1700701003399923,1.1700701003399923,1.1700701003399923,1.1700701003399923,1.1700701003399923,1.1700701003399923,1.1700701003399923,1.1700701003399923,1.1700701003399923,1.1700701003399923,1.1700701003399923,1.1700701003399923,1.1700701003399923,1.1700701003399923,1.1700701003399923,1.1700701003399923,1.1700701003399923,1.1700701003399923,1.1700701003399923,1.1700701003399923,1.1700701003399923,1.1700701003399923,1.1700701003399923,1.1700701003399923,1.1700701003399923,1.1700701003399923,1.1700701003399923,1.1700701003399923,1.1700701003399923,null,"S",7.9000000000000001E-2,null,null,null,null,null,2019,{"$f":"0.27/1000","v":2.7E-4}]
[2012,1,1.0269999999999999,1.0389999999999999,1.038284676,1.0424378147039999,1.0455651281481118,1.0434739978918155,1.0476478938833829,1.0549814291405664,1.0602563362862691,1.0644973616314142,1.1006902719268823,1.1315095995408351,1.1303780899412943,1.1315084680312355,1.1315084680312355,1.1315084680312355,1.1315084680312355,1.1315084680312355,1.1315084680312355,1.1315084680312355,1.1315084680312355,1.1315084680312355,1.1315084680312355,1.1315084680312355,1.1315084680312355,1.1315084680312355,1.1315084680312355,1.1315084680312355,1.1315084680312355,1.1315084680312355,1.1315084680312355,1.1315084680312355,1.1315084680312355,1.1315084680312355,1.1315084680312355,1.1315084680312355,1.1315084680312355,1.1315084680312355,1.1315084680312355,1.1315084680312355,1.1315084680312355,1.1315084680312355,1.1315084680312355,null,null,null,null,null,null,null,null,2020,2.7E-4]
[2013,null,1,1.012,1.010988,1.015031952,1.018077047856,1.0160408937602881,1.0201050573353292,1.0272457927366765,1.0323820217003599,1.0365115497871613,1.0717529424799248,1.1017620248693627,1.1006602628444933,1.1017609231073375,1.1017609231073375,1.1017609231073375,1.1017609231073375,1.1017609231073375,1.1017609231073375,1.1017609231073375,1.1017609231073375,1.1017609231073375,1.1017609231073375,1.1017609231073375,1.1017609231073375,1.1017609231073375,1.1017609231073375,1.1017609231073375,1.1017609231073375,1.1017609231073375,1.1017609231073375,1.1017609231073375,1.1017609231073375,1.1017609231073375,1.1017609231073375,1.1017609231073375,1.1017609231073375,1.1017609231073375,1.1017609231073375,1.1017609231073375,1.1017609231073375,1.1017609231073375,1.1017609231073375,null,null,null,null,null,null,null,null,2021,2.7E-4]
[2014,null,null,1,0.999,1.002996,1.0060049879999999,1.003992978024,1.008008949936096,1.0150650125856486,1.0201403376485767,1.024220898999171,1.0590444095651428,1.0886976530329668,1.087608955379934,1.0886965643353137,1.0886965643353137,1.0886965643353137,1.0886965643353137,1.0886965643353137,1.0886965643353137,1.0886965643353137,1.0886965643353137,1.0886965643353137,1.0886965643353137,1.0886965643353137,1.0886965643353137,1.0886965643353137,1.0886965643353137,1.0886965643353137,1.0886965643353137,1.0886965643353137,1.0886965643353137,1.0886965643353137,1.0886965643353137,1.0886965643353137,1.0886965643353137,1.0886965643353137,1.0886965643353137,1.0886965643353137,1.0886965643353137,1.0886965643353137,1.0886965643353137,1.0886965643353137,1.0886965643353137,null,"area","morosità - art.30.2-bis",null,null,null,null,null,2022,2.7E-4]
[2015,null,null,null,1,1.004,1.0070119999999998,1.0049979759999998,1.0090179679039999,1.0160810936793279,1.0211614991477245,1.0252461451443153,1.060104514079222,1.0897874404734402,1.0886976530329668,1.0897863506859997,1.0897863506859997,1.0897863506859997,1.0897863506859997,1.0897863506859997,1.0897863506859997,1.0897863506859997,1.0897863506859997,1.0897863506859997,1.0897863506859997,1.0897863506859997,1.0897863506859997,1.0897863506859997,1.0897863506859997,1.0897863506859997,1.0897863506859997,1.0897863506859997,1.0897863506859997,1.0897863506859997,1.0897863506859997,1.0897863506859997,1.0897863506859997,1.0897863506859997,1.0897863506859997,1.0897863506859997,1.0897863506859997,1.0897863506859997,1.0897863506859997,1.0897863506859997,1.0897863506859997,null,"N",4.3999999999999997E-2,null,null,null,null,null,2023,2.7E-4]
[2016,null,null,null,null,1,1.0029999999999999,1.0009939999999999,1.0049979759999998,1.0120329618319996,1.0170931266411596,1.0211614991477242,1.0558809901187469,1.0854456578420719,1.08436021218423,1.0854445723964141,1.0854445723964141,1.0854445723964141,1.0854445723964141,1.0854445723964141,1.0854445723964141,1.0854445723964141,1.0854445723964141,1.0854445723964141,1.0854445723964141,1.0854445723964141,1.0854445723964141,1.0854445723964141,1.0854445723964141,1.0854445723964141,1.0854445723964141,1.0854445723964141,1.0854445723964141,1.0854445723964141,1.0854445723964141,1.0854445723964141,1.0854445723964141,1.0854445723964141,1.0854445723964141,1.0854445723964141,1.0854445723964141,1.0854445723964141,1.0854445723964141,1.0854445723964141,1.0854445723964141,null,"C",5.5E-2,null,null,null,null,null,2024,2.7E-4]
[2017,null,null,null,null,null,1,{"$f":"+G63*(H$4)","v":0.998},{"$f":"+H63*(I$4)","v":1.001992},1.0090059439999999,1.0140509737199999,1.0181071776148798,1.0527228216537858,1.082199060660092,1.081116861599432,1.0821979784610314,1.0821979784610314,1.0821979784610314,1.0821979784610314,1.0821979784610314,1.0821979784610314,1.0821979784610314,1.0821979784610314,1.0821979784610314,1.0821979784610314,1.0821979784610314,1.0821979784610314,1.0821979784610314,1.0821979784610314,1.0821979784610314,1.0821979784610314,1.0821979784610314,1.0821979784610314,1.0821979784610314,1.0821979784610314,1.0821979784610314,1.0821979784610314,1.0821979784610314,1.0821979784610314,1.0821979784610314,1.0821979784610314,1.0821979784610314,1.0821979784610314,1.0821979784610314,1.0821979784610314,null,"S",9.1499999999999998E-2,null,null,null,null,null,2025,2.7E-4]
[2018,null,null,null,null,null,null,1,{"$f":"+H64*(I$4)","v":1.004},1.0110279999999998,1.0160831399999997,1.0201474725599997,1.0548324866270398,1.0843677962525968,1.0832834284563442,1.0843667118848004,1.0843667118848004,1.0843667118848004,1.0843667118848004,1.0843667118848004,1.0843667118848004,1.0843667118848004,1.0843667118848004,1.0843667118848004,1.0843667118848004,1.0843667118848004,1.0843667118848004,1.0843667118848004,1.0843667118848004,1.0843667118848004,1.0843667118848004,1.0843667118848004,1.0843667118848004,1.0843667118848004,1.0843667118848004,1.0843667118848004,1.0843667118848004,1.0843667118848004,1.0843667118848004,1.0843667118848004,1.0843667118848004,1.0843667118848004,1.0843667118848004,1.0843667118848004,1.0843667118848004]
[2019,null,null,null,null,null,null,null,1,1.0069999999999999,1.0120349999999998,1.0160831399999999,1.0506299667599999,1.0800476058292798,1.0789675582234506,1.0800465257816738,1.0800465257816738,1.0800465257816738,1.0800465257816738,1.0800465257816738,1.0800465257816738,1.0800465257816738,1.0800465257816738,1.0800465257816738,1.0800465257816738,1.0800465257816738,1.0800465257816738,1.0800465257816738,1.0800465257816738,1.0800465257816738,1.0800465257816738,1.0800465257816738,1.0800465257816738,1.0800465257816738,1.0800465257816738,1.0800465257816738,1.0800465257816738,1.0800465257816738,1.0800465257816738,1.0800465257816738,1.0800465257816738,1.0800465257816738,1.0800465257816738,1.0800465257816738,1.0800465257816738]
[2020,null,null,null,null,null,null,null,null,1,1.0049999999999999,1.0090199999999998,1.0433266799999998,1.0725398270399999,1.07146728721296,1.0725387545001728,1.0725387545001728,1.0725387545001728,1.0725387545001728,1.0725387545001728,1.0725387545001728,1.0725387545001728,1.0725387545001728,1.0725387545001728,1.0725387545001728,1.0725387545001728,1.0725387545001728,1.0725387545001728,1.0725387545001728,1.0725387545001728,1.0725387545001728,1.0725387545001728,1.0725387545001728,1.0725387545001728,1.0725387545001728,1.0725387545001728,1.0725387545001728,1.0725387545001728,1.0725387545001728,1.0725387545001728,1.0725387545001728,1.0725387545001728,1.0725387545001728,1.0725387545001728,1.0725387545001728,null,null,null,null,null,null,null,null,"elenco"]
[2021,null,null,null,null,null,null,null,null,null,1,{"$f":"+K67*(L$4)","v":1.004},{"$f":"+L67*(M$4)","v":1.0381359999999999},{"$f":"+M67*(N$4)","v":1.0672038079999999},1.066136604192,1.0672027407961919,1.0672027407961919,1.0672027407961919,1.0672027407961919,1.0672027407961919,1.0672027407961919,1.0672027407961919,1.0672027407961919,1.0672027407961919,1.0672027407961919,1.0672027407961919,1.0672027407961919,1.0672027407961919,1.0672027407961919,1.0672027407961919,1.0672027407961919,1.0672027407961919,1.0672027407961919,1.0672027407961919,1.0672027407961919,1.0672027407961919,1.0672027407961919,1.0672027407961919,1.0672027407961919,1.0672027407961919,1.0672027407961919,1.0672027407961919,1.0672027407961919,1.0672027407961919,1.0672027407961919]
[2022,null,null,null,null,null,null,null,null,null,null,1,{"$f":"+L68*(M$4)","v":1.034},{"$f":"+M68*(N$4)","v":1.0629520000000001},1.0618890480000001,1.0629509370479999,1.0629509370479999,1.0629509370479999,1.0629509370479999,1.0629509370479999,1.0629509370479999,1.0629509370479999,1.0629509370479999,1.0629509370479999,1.0629509370479999,1.0629509370479999,1.0629509370479999,1.0629509370479999,1.0629509370479999,1.0629509370479999,1.0629509370479999,1.0629509370479999,1.0629509370479999,1.0629509370479999,1.0629509370479999,1.0629509370479999,1.0629509370479999,1.0629509370479999,1.0629509370479999,1.0629509370479999,1.0629509370479999,1.0629509370479999,1.0629509370479999,1.0629509370479999,1.0629509370479999,null,null,null,null,null,null,null,null,"X"]
[2023,null,null,null,null,null,null,null,null,null,null,null,1,{"$f":"+M69*(N$4)","v":1.028},1.026972,1.0279989719999998,1.0279989719999998,1.0279989719999998,1.0279989719999998,1.0279989719999998,1.0279989719999998,1.0279989719999998,1.0279989719999998,1.0279989719999998,1.0279989719999998,1.0279989719999998,1.0279989719999998,1.0279989719999998,1.0279989719999998,1.0279989719999998,1.0279989719999998,1.0279989719999998,1.0279989719999998,1.0279989719999998,1.0279989719999998,1.0279989719999998,1.0279989719999998,1.0279989719999998,1.0279989719999998,1.0279989719999998,1.0279989719999998,1.0279989719999998,1.0279989719999998,1.0279989719999998,1.0279989719999998]
[2024,null,null,null,null,null,null,null,null,null,null,null,null,1,0.999,0.99999899999999986,0.99999899999999986,0.99999899999999986,0.99999899999999986,0.99999899999999986,0.99999899999999986,0.99999899999999986,0.99999899999999986,0.99999899999999986,0.99999899999999986,0.99999899999999986,0.99999899999999986,0.99999899999999986,0.99999899999999986,0.99999899999999986,0.99999899999999986,0.99999899999999986,0.99999899999999986,0.99999899999999986,0.99999899999999986,0.99999899999999986,0.99999899999999986,0.99999899999999986,0.99999899999999986,0.99999899999999986,0.99999899999999986,0.99999899999999986,0.99999899999999986,0.99999899999999986,0.99999899999999986]
[2025,null,null,null,null,null,null,null,null,null,null,null,null,null,1,{"$f":"+O71*(P$4)","v":1.0009999999999999},{"$f":"+P71*(1+Q$4)","v":1.0009999999999999},1.0009999999999999,1.0009999999999999,1.0009999999999999,{"$f":"+T71*(1+U$4)","v":1.0009999999999999},{"$f":"+U71*(1+V$4)","v":1.0009999999999999},{"$f":"+V71*(1+W$4)","v":1.0009999999999999},{"$f":"+W71*(1+X$4)","v":1.0009999999999999},{"$f":"+X71*(1+Y$4)","v":1.0009999999999999},{"$f":"+Y71*(1+Z$4)","v":1.0009999999999999},{"$f":"+Z71*(1+AA$4)","v":1.0009999999999999},{"$f":"+AA71*(1+AB$4)","v":1.0009999999999999},{"$f":"+AB71*(1+AC$4)","v":1.0009999999999999},{"$f":"+AC71*(1+AD$4)","v":1.0009999999999999},{"$f":"+AD71*(1+AE$4)","v":1.0009999999999999},{"$f":"+AE71*(1+AF$4)","v":1.0009999999999999},{"$f":"+AF71*(1+AG$4)","v":1.0009999999999999},{"$f":"+AG71*(1+AH$4)","v":1.0009999999999999},{"$f":"+AH71*(1+AI$4)","v":1.0009999999999999},{"$f":"+AI71*(1+AJ$4)","v":1.0009999999999999},{"$f":"+AJ71*(1+AK$4)","v":1.0009999999999999},{"$f":"+AK71*(1+AL$4)","v":1.0009999999999999},{"$f":"+AL71*(1+AM$4)","v":1.0009999999999999},{"$f":"+AM71*(1+AN$4)","v":1.0009999999999999},{"$f":"+AN71*(1+AO$4)","v":1.0009999999999999},{"$f":"+AO71*(1+AP$4)","v":1.0009999999999999},{"$f":"+AP71*(1+AQ$4)","v":1.0009999999999999},{"$f":"+AQ71*(1+AR$4)","v":1.0009999999999999},{"$f":"+AR71*(1+AS$4)","v":1.0009999999999999}]
[2026,null,null,null,null,null,null,null,null,null,null,null,null,null,null,1,1,1,1,1,1,{"$f":"+U72*(1+V$4)","v":1},{"$f":"+V72*(1+W$4)","v":1},1,1,1,1,1,1,1,1,1,1,1,1,1,1,1,1,1,1,1,1,1,1]
[2027,null,null,null,null,null,null,null,null,null,null,null,null,null,null,null,1,{"$f":"+Q73*(1+R$4)","v":1},{"$f":"+R73*(1+S$4)","v":1},{"$f":"+S73*(1+T$4)","v":1},1,{"$f":"+U73*(1+V$4)","v":1},{"$f":"+V73*(1+W$4)","v":1},1,1,1,1,1,1,1,1,1,1,1,1,1,1,1,1,1,1,1,1,1,1]
[2028,null,null,null,null,null,null,null,null,null,null,null,null,null,null,null,null,1,{"$f":"+R74*(1+S$4)","v":1},{"$f":"+S74*(1+T$4)","v":1},1,{"$f":"+U74*(1+V$4)","v":1},1,1,1,1,1,1,1,1,1,1,1,1,1,1,1,1,1,1,1,1,1,1,1]
[2029,null,null,null,null,null,null,null,null,null,null,null,null,null,null,null,null,null,1,{"$f":"+S75*(1+T$4)","v":1},1,{"$f":"+U75*(1+V$4)","v":1},1,1,1,1,1,1,1,1,1,1,1,1,1,1,1,1,1,1,1,1,1,1,1]
[2030,null,null,null,null,null,null,null,null,null,null,null,null,null,null,null,null,null,null,1,1,{"$f":"+U76*(1+V$4)","v":1},1,1,1,1,1,1,1,1,1,1,1,1,1,1,1,1,1,1,1,1,1,1,1]
[2031,null,null,null,null,null,null,null,null,null,null,null,null,null,null,null,null,null,null,null,1,{"$f":"+U77*(1+V$4)","v":1},1,1,1,1,1,1,1,1,1,1,1,1,1,1,1,1,1,1,1,1,1,1,1]
[2032,null,null,null,null,null,null,null,null,null,null,null,null,null,null,null,null,null,null,null,null,1,1,1,1,1,1,1,1,1,1,1,1,1,1,1,1,1,1,1,1,1,1,1,1]
[2033,null,null,null,null,null,null,null,null,null,null,null,null,null,null,null,null,null,null,null,null,null,1,1,{"$f":"+X79*(1+Y$4)","v":1},1,1,1,1,1,1,1,1,1,1,1,1,1,1,1,1,1,1,1,1]
[2034,null,null,null,null,null,null,null,null,null,null,null,null,null,null,null,null,null,null,null,null,null,null,1,{"$f":"+X80*(1+Y$4)","v":1},1,1,1,1,1,1,1,1,1,1,1,1,1,1,1,1,1,1,1,1]
[2035,null,null,null,null,null,null,null,null,null,null,null,null,null,null,null,null,null,null,null,null,null,null,null,1,1,1,1,1,1,1,1,1,1,1,1,1,1,1,1,1,1,1,1,1]
[2036,null,null,null,null,null,null,null,null,null,null,null,null,null,null,null,null,null,null,null,null,null,null,null,null,1,1,1,1,1,1,1,1,1,1,1,1,1,1,1,1,1,1,1,1]
[2037,null,null,null,null,null,null,null,null,null,null,null,null,null,null,null,null,null,null,null,null,null,null,null,null,null,1,1,1,1,1,1,1,1,1,1,1,1,1,1,1,1,1,1,1]
[2038,null,null,null,null,null,null,null,null,null,null,null,null,null,null,null,null,null,null,null,null,null,null,null,null,null,null,1,1,1,1,1,1,1,1,1,1,1,1,1,1,1,1,1,1]
[2039,null,null,null,null,null,null,null,null,null,null,null,null,null,null,null,null,null,null,null,null,null,null,null,null,null,null,null,1,1,1,1,1,1,1,1,1,1,1,1,1,1,1,1,1]
[2040,null,null,null,null,null,null,null,null,null,null,null,null,null,null,null,null,null,null,null,null,null,null,null,null,null,null,null,null,1,1,1,1,1,1,1,1,1,1,1,1,1,1,1,1]
[2041,null,null,null,null,null,null,null,null,null,null,null,null,null,null,null,null,null,null,null,null,null,null,null,null,null,null,null,null,null,1,{"$f":"+AE87*(1+AF$4)","v":1},{"$f":"+AF87*(1+AG$4)","v":1},{"$f":"+AG87*(1+AH$4)","v":1},{"$f":"+AH87*(1+AI$4)","v":1},{"$f":"+AI87*(1+AJ$4)","v":1},{"$f":"+AJ87*(1+AK$4)","v":1},{"$f":"+AK87*(1+AL$4)","v":1},{"$f":"+AL87*(1+AM$4)","v":1},{"$f":"+AM87*(1+AN$4)","v":1},{"$f":"+AN87*(1+AO$4)","v":1},{"$f":"+AO87*(1+AP$4)","v":1},{"$f":"+AP87*(1+AQ$4)","v":1},{"$f":"+AQ87*(1+AR$4)","v":1},1]
[2042,null,null,null,null,null,null,null,null,null,null,null,null,null,null,null,null,null,null,null,null,null,null,null,null,null,null,null,null,null,null,1,{"$f":"+AF88*(1+AG$4)","v":1},{"$f":"+AG88*(1+AH$4)","v":1},{"$f":"+AH88*(1+AI$4)","v":1},{"$f":"+AI88*(1+AJ$4)","v":1},1,1,1,1,1,1,1,1,1]
[2043,null,null,null,null,null,null,null,null,null,null,null,null,null,null,null,null,null,null,null,null,null,null,null,null,null,null,null,null,null,null,null,1,{"$f":"+AG89*(1+AH$4)","v":1},{"$f":"+AH89*(1+AI$4)","v":1},{"$f":"+AI89*(1+AJ$4)","v":1},1,1,1,1,1,1,1,1,1]
[2044,null,null,null,null,null,null,null,null,null,null,null,null,null,null,null,null,null,null,null,null,null,null,null,null,null,null,null,null,null,null,null,null,1,{"$f":"+AH90*(1+AI$4)","v":1},{"$f":"+AI90*(1+AJ$4)","v":1},1,1,1,1,1,1,1,1,1]
[2045,null,null,null,null,null,null,null,null,null,null,null,null,null,null,null,null,null,null,null,null,null,null,null,null,null,null,null,null,null,null,null,null,null,1,{"$f":"+AI91*(1+AJ$4)","v":1},1,1,1,1,1,1,1,1,1]
[2046,null,null,null,null,null,null,null,null,null,null,null,null,null,null,null,null,null,null,null,null,null,null,null,null,null,null,null,null,null,null,null,null,null,null,1,1,1,1,1,1,1,1,1,1]
[2047,null,null,null,null,null,null,null,null,null,null,null,null,null,null,null,null,null,null,null,null,null,null,null,null,null,null,null,null,null,null,null,null,null,null,null,1,1,1,1,1,1,1,1,1]
[2048,null,null,null,null,null,null,null,null,null,null,null,null,null,null,null,null,null,null,null,null,null,null,null,null,null,null,null,null,null,null,null,null,null,null,null,null,1,1,1,1,1,1,1,1]
[2049,null,null,null,null,null,null,null,null,null,null,null,null,null,null,null,null,null,null,null,null,null,null,null,null,null,null,null,null,null,null,null,null,null,null,null,null,null,1,1,1,1,1,1,1]
[2050,null,null,null,null,null,null,null,null,null,null,null,null,null,null,null,null,null,null,null,null,null,null,null,null,null,null,null,null,null,null,null,null,null,null,null,null,null,null,1,1,1,1,1,1]
[2051,null,null,null,null,null,null,null,null,null,null,null,null,null,null,null,null,null,null,null,null,null,null,null,null,null,null,null,null,null,null,null,null,null,null,null,null,null,null,null,1,1,1,1,1]
[2052,null,null,null,null,null,null,null,null,null,null,null,null,null,null,null,null,null,null,null,null,null,null,null,null,null,null,null,null,null,null,null,null,null,null,null,null,null,null,null,null,1,1,1,1]
[2053,null,null,null,null,null,null,null,null,null,null,null,null,null,null,null,null,null,null,null,null,null,null,null,null,null,null,null,null,null,null,null,null,null,null,null,null,null,null,null,null,null,1,1,1]
[2054,null,null,null,null,null,null,null,null,null,null,null,null,null,null,null,null,null,null,null,null,null,null,null,null,null,null,null,null,null,null,null,null,null,null,null,null,null,null,null,null,null,null,1,1]
[2055,null,null,null,null,null,null,null,null,null,null,null,null,null,null,null,null,null,null,null,null,null,null,null,null,null,null,null,null,null,null,null,null,null,null,null,null,null,null,null,null,null,null,null,1]
[]
[]
[null,null,null,null,null,null,null,null,null,null,null,null,null,null,null,null,null,null,null,null,null,null,null,null,null,null,null,null,null,null,null,null,null,null,null,null,null,null,null,null,null,null,null,null,null,null,null,null,null,null,null,null,null,"Classe","Obiettivo base","MC1",null,"MC2"]
[null,null,null,null,null,null,null,null,null,null,null,null,null,null,null,null,null,null,null,null,null,null,null,null,null,null,null,null,null,null,null,null,null,null,null,null,null,null,null,null,null,null,null,null,null,null,null,null,null,null,null,null,null,null,null,"Obiettivo gradualità","Obiettivo complessivo","Obiettivo gradualità","Obiettivo complessivo"]
[null,null,null,null,null,null,null,null,null,null,null,null,null,null,null,null,null,null,null,null,null,null,null,null,null,null,null,null,null,null,null,null,null,null,null,null,null,null,null,null,null,null,null,null,null,null,null,null,null,null,null,null,null,"A","mantenimento",{"$f":"+BC106","v":"mantenimento"},{"$f":"+BC106","v":"mantenimento"},{"$f":"+BC106","v":"mantenimento"},{"$f":"+BC106","v":"mantenimento"}]
[null,null,null,null,null,null,null,null,null,null,null,null,null,null,null,null,null,null,null,null,null,null,null,null,null,null,null,null,null,null,null,null,null,null,null,null,null,null,null,null,null,null,null,null,null,null,null,null,null,null,null,null,null,"B","+1%",0.98001000000000005,"+1% o MC1>98%",0.96001000000000003,"+1% o MC2>96%"]
[null,null,null,null,null,null,null,null,null,null,null,null,null,null,null,null,null,null,null,null,null,null,null,null,null,null,null,null,null,null,null,null,null,null,null,null,null,null,null,null,null,null,null,null,null,null,null,null,null,null,null,null,null,"C","+2%",0.95001000000000002,"+2% o MC1>95%",0.94001000000000001,"+2% o MC2>94%"]
[null,null,null,null,null,null,null,null,null,null,null,null,null,null,null,null,null,null,null,null,null,null,null,null,null,null,null,null,null,null,null,null,null,null,null,null,null,null,null,null,null,null,null,null,null,null,null,null,null,null,null,null,null,"D","+3%",0.92000999999999999,"+3% o MC1>92%",0.92000999999999999,"+3% o MC2>92%"]

{"sheet":"TT_riepilogo_IMN","index":48,"n_rows":141,"n_cols":490,"rows_kept":141,"cut":false,"hidden":false,"merged":[]}
[]
[]
[null,null,null,null,null,null,null,null,null,null,null,null,"Nelle colonne sono riportate le vite utili per lo sviluppo della RAB secondo la sequenza \"Anno del cespite\" - \"Anno di calcolo\"",null,null,null,null,null,null,null,null,null,null,null,null,null,null,null,null,null,null,null,null,null,null,null,null,null,null,null,null,null,null,null,null,null,null,null,null,null,null,null,null,null,null,null,null,null,null,null,null,null,null,null,null,null,null,null,null,null,null,null,null,null,null,null,null,null,null,null,null,null,null,null,null,null,null,null,null,null,null,null,null,null,null,null,null,null,null,null,null,null,null,null,null,null,null,null,null,null,null,null,null,null,null,null,null,null,null,2014,null,null,null,null,null,null,null,null,null,null,null,null,null,null,null,null,null,null,null,null,null,null,null,null,null,null,null,null,null,null,null,null,2015,null,null,null,null,null,null,null,null,null,null,null,null,null,null,null,null,null,null,null,null,null,null,null,null,null,null,null,null,null,null,null,2016,null,null,null,null,null,null,null,null,null,null,null,null,null,null,null,null,null,null,null,null,null,null,null,null,null,null,null,null,null,null,2017,null,null,null,null,null,null,null,null,null,null,null,null,null,null,null,null,null,null,null,null,null,null,null,null,null,null,null,null,null,2018,null,null,null,null,null,null,null,null,null,null,null,null,null,null,null,null,null,null,null,null,null,null,null,null,null,null,null,null,2019]
[null,null,null,"Immobilizzazioni nette del gestore"]
[null,null,null,null,2024,2025,2026,2027,2028,2029]
[null,null,null,"IML",{"$f":"+SUM(IMN_gestore!$P:$P)","v":0},{"$f":"+SUM(IMN_gestore!$AA:$AA)","v":0},{"$f":"+SUM(IMN_gestore!$AL:$AL)","v":0},{"$f":"+SUM(IMN_gestore!$AW:$AW)","v":0},{"$f":"+SUM(IMN_gestore!$BH:$BH)","v":0},{"$f":"+SUM(IMN_gestore!$BS:$BS)","v":0},null,null,"Codice","2011-2012","2011-2013","2011-2014","2011-2015","2011-2016","2011-2017","2011-2018","2011-2019","2011-2020","2011-2021","2011-2022","2011-2023","2011-2024","2011-2025","2011-2026","2011-2027","2011-2028","2011-2029","2011-2030","2011-2031","2011-2032","2011-2033","2011-2034","2011-2035","2011-2036","2011-2037","2011-2038","2011-2039","2011-2040","2011-2041","2011-2042","2011-2043","2011-2044","2011-2045","2011-2046","2011-2047","2011-2048","2012-2014","2012-2015","2012-2016","2012-2017","2012-2018","2012-2019","2012-2020","2012-2021","2012-2022","2012-2023","2012-2024","2012-2025","2012-2026","2012-2027","2012-2028","2012-2029","2012-2030","2012-2031","2012-2032","2012-2033","2012-2034","2012-2035","2012-2036","2012-2037","2012-2038","2012-2039","2012-2040","2012-2041","2012-2042","2012-2043","2012-2044","2012-2045","2012-2046","2012-2047","2012-2048","2013-2015","2013-2016","2013-2017","2013-2018","2013-2019","2013-2020","2013-2021","2013-2022","2013-2023","2013-2024","2013-2025","2013-2026","2013-2027","2013-2028","2013-2029","2013-2030","2013-2031","2013-2032","2013-2033","2013-2034","2013-2035","2013-2036","2013-2037","2013-2038","2013-2039","2013-2040","2013-2041","2013-2042","2013-2043","2013-2044","2013-2045","2013-2046","2013-2047","2013-2048","2014-2016","2014-2017","2014-2018","2014-2019","2014-2020","2014-2021","2014-2022","2014-2023","2014-2024","2014-2025","2014-2026","2014-2027","2014-2028","2014-2029","2014-2030","2014-2031","2014-2032","2014-2033","2014-2034","2014-2035","2014-2036","2014-2037","2014-2038","2014-2039","2014-2040","2014-2041","2014-2042","2014-2043","2014-2044","2014-2045","2014-2046","2014-2047","2014-2048","2015-2017","2015-2018","2015-2019","2015-2020","2015-2021","2015-2022","2015-2023","2015-2024","2015-2025","2015-2026","2015-2027","2015-2028","2015-2029","2015-2030","2015-2031","2015-2032","2015-2033","2015-2034","2015-2035","2015-2036","2015-2037","2015-2038","2015-2039","2015-2040","2015-2041","2015-2042","2015-2043","2015-2044","2015-2045","2015-2046","2015-2047","2015-2048","2016-2018","2016-2019","2016-2020","2016-2021","2016-2022","2016-2023","2016-2024","2016-2025","2016-2026","2016-2027","2016-2028","2016-2029","2016-2030","2016-2031","2016-2032","2016-2033","2016-2034","2016-2035","2016-2036","2016-2037","2016-2038","2016-2039","2016-2040","2016-2041","2016-2042","2016-2043","2016-2044","2016-2045","2016-2046","2016-2047","2016-2048","2017-2019","2017-2020","2017-2021","2017-2022","2017-2023","2017-2024","2017-2025","2017-2026","2017-2027","2017-2028","2017-2029","2017-2030","2017-2031","2017-2032","2017-2033","2017-2034","2017-2035","2017-2036","2017-2037","2017-2038","2017-2039","2017-2040","2017-2041","2017-2042","2017-2043","2017-2044","2017-2045","2017-2046","2017-2047","2017-2048","2018-2020","2018-2021","2018-2022","2018-2023","2018-2024","2018-2025","2018-2026","2018-2027","2018-2028","2018-2029","2018-2030","2018-2031","2018-2032","2018-2033","2018-2034","2018-2035","2018-2036","2018-2037","2018-2038","2018-2039","2018-2040","2018-2041","2018-2042","2018-2043","2018-2044","2018-2045","2018-2046","2018-2047","2018-2048","2019-2021","2019-2022","2019-2023","2019-2024","2019-2025","2019-2026","2019-2027","2019-2028","2019-2029","2019-2030","2019-2031","2019-2032","2019-2033","2019-2034","2019-2035","2019-2036","2019-2037","2019-2038","2019-2039","2019-2040","2019-2041","2019-2042","2019-2043","2019-2044","2019-2045","2019-2046","2019-2047","2019-2048","2020-2022","2020-2023","2020-2024","2020-2025","2020-2026","2020-2027","2020-2028","2020-2029","2020-2030","2020-2031","2020-2032","2020-2033","2020-2034","2020-2035","2020-2036","2020-2037","2020-2038","2020-2039","2020-2040","2020-2041","2020-2042","2020-2043","2020-2044","2020-2045","2020-2046","2020-2047","2020-2048","2021-2023","2021-2024","2021-2025","2021-2026","2021-2027","2021-2028","2021-2029","2021-2030","2021-2031","2021-2032","2021-2033","2021-2034","2021-2035","2021-2036","2021-2037","2021-2038","2021-2039","2021-2040","2021-2041","2021-2042","2021-2043","2021-2044","2021-2045","2021-2046","2021-2047","2021-2048","2022-2024","2022-2025","2022-2026","2022-2027","2022-2028","2022-2029","2022-2030","2022-2031","2022-2032","2022-2033","2022-2034","2022-2035","2022-2036","2022-2037","2022-2038","2022-2039","2022-2040","2022-2041","2022-2042","2022-2043","2022-2044","2022-2045","2022-2046","2022-2047","2022-2048","2023-2025","2023-2026","2023-2027","2023-2028","2023-2029","2023-2030","2023-2031","2023-2032","2023-2033","2023-2034","2023-2035","2023-2036","2023-2037","2023-2038","2023-2039","2023-2040","2023-2041","2023-2042","2023-2043","2023-2044","2023-2045","2023-2046","2023-2047","2023-2048","2024-2026","2024-2027","2024-2028","2024-2029","2024-2030","2024-2031","2024-2032","2024-2033","2024-2034","2024-2035","2024-2036","2024-2037","2024-2038","2024-2039","2024-2040","2024-2041","2024-2042","2024-2043","2024-2044","2024-2045","2024-2046","2024-2047","2024-2048","2025-2027","2025-2028","2025-2029","2025-2030","2025-2031","2025-2032","2025-2033","2025-2034","2025-2035","2025-2036","2025-2037","2025-2038","2025-2039","2025-2040","2025-2041","2025-2042","2025-2043","2025-2044","2025-2045","2025-2046","2025-2047","2025-2048","2026-2028","2026-2029","2026-2030","2026-2031","2026-2032","2026-2033","2026-2034","2026-2035","2026-2036","2026-2037","2026-2038","2026-2039","2026-2040","2026-2041","2026-2042","2026-2043","2026-2044","2026-2045","2026-2046","2026-2047","2026-2048","2027-2029","2027-2030","2027-2031","2027-2032","2027-2033","2027-2034","2027-2035","2027-2036","2027-2037","2027-2038","2027-2039","2027-2040","2027-2041","2027-2042","2027-2043","2027-2044","2027-2045","2027-2046","2027-2047","2027-2048"]
[null,null,null,"FA",{"$f":"+SUM(IMN_gestore!$Q:$Q)","v":0},{"$f":"+SUM(IMN_gestore!$AB:$AB)","v":0},{"$f":"+SUM(IMN_gestore!$AM:$AM)","v":0},{"$f":"+SUM(IMN_gestore!$AX:$AX)","v":0},{"$f":"+SUM(IMN_gestore!$BI:$BI)","v":0},{"$f":"+SUM(IMN_gestore!$BT:$BT)","v":0},null,null,1,0,0,0,0,0,0,0,0,0,0,0,0,0,0,0,0,0,0,0,0,0,0,0,0,0,0,0,0,0,0,0,0,0,0,0,0,0,0,0,0,0,0,0,0,0,0,0,0,0,0,0,0,0,0,0,0,0,0,0,0,0,0,0,0,0,0,0,0,0,0,0,0,0,0,0,0,0,0,0,0,0,0,0,0,0,0,0,0,0,0,0,0,0,0,0,0,0,0,0,0,0,0,0,0,0,0,0,0,0,0,0,0,0,0,0,0,0,0,0,0,0,0,0,0,0,0,0,0,0,0,0,0,0,0,0,0,0,0,0,0,0,0,0,0,0,0,0,0,0,0,0,0,0,0,0,0,0,0,0,0,0,0,0,0,0,0,0,0,0,0,0,0,0,0,0,0,0,0,0,0,0,0,0,0,0,0,0,0,0,0,0,0,0,0,0,0,0,0,0,0,0,0,0,0,0,0,0,0,0,0,0,0,0,0,0,0,0,0,0,0,0,0,0,0,0,0,0,0,0,0,0,0,0,0,0,0,0,0,0,0,0,0,0,0,0,0,0,0,0,0,0,0,0,0,0,0,0,0,0,0,0,0,0,0,0,0,0,0,0,0,0,0,0,0,0,0,0,0,0,0,0,0,0,0,0,0,0,0,0,0,0,0,0,0,0,0,0,0,0,0,0,0,0,0,0,0,0,0,0,0,0,0,0,0,0,0,0,0,0,0,0,0,0,0,0,0,0,0,0,0,0,0,0,0,0,0,0,0,0,0,0,0,0,0,0,0,0,0,0,0,0,0,0,0,0,0,0,0,0,0,0,0,0,0,0,0,0,0,0,0,0,0,0,0,0,0,0,0,0,0,0,0,0,0,0,0,0,0,0,0,0,0,0,0,0,0,0,0,0,0,0,0,0,0,0,0,0,0,0,0,0,0,0,0,0,0,0,0,0,0,0,0,0,0,0,0,0,0,0,0,0,0,0,0,0,0,0,0,0,0,0,0,0,0,0,0,0,0,0,0,0,0,0,0,0,0,0,0,0,0,0,0,0,0,0,0,0,0,0,0,0,0,0,0,0,0,0]
[null,null,null,"IMN",{"$f":"+SUM(IMN_gestore!$R:$R)","v":0},{"$f":"+SUM(IMN_gestore!$AC:$AC)","v":0},{"$f":"+SUM(IMN_gestore!$AN:$AN)","v":0},{"$f":"+SUM(IMN_gestore!$AY:$AY)","v":0},{"$f":"+SUM(IMN_gestore!BJ:BJ)","v":0},{"$f":"+SUM(IMN_gestore!$BU:$BU)","v":0},null,null,2,{"$f":"+IFERROR(VLOOKUP(N$6&\"-\"&$M8&\"_old\",Ammortamento_Finanziario!$H:$L,5,FALSE),VLOOKUP($M8,TT_Tabelle_Riferimento!$H$31:$I$50,2,FALSE))","v":40},{"$f":"+IFERROR(VLOOKUP(O$6&\"-\"&$M8&\"_old\",Ammortamento_Finanziario!$H:$L,5,FALSE),VLOOKUP($M8,TT_Tabelle_Riferimento!$H$31:$I$50,2,FALSE))","v":40},{"$f":"+IFERROR(VLOOKUP(P$6&\"-\"&$M8&\"_old\",Ammortamento_Finanziario!$H:$L,5,FALSE),VLOOKUP($M8,TT_Tabelle_Riferimento!$H$31:$I$50,2,FALSE))","v":40},{"$f":"+IFERROR(VLOOKUP(Q$6&\"-\"&$M8&\"_old\",Ammortamento_Finanziario!$H:$L,5,FALSE),VLOOKUP($M8,TT_Tabelle_Riferimento!$H$31:$I$50,2,FALSE))","v":40},{"$f":"+IFERROR(VLOOKUP(R$6&\"-\"&$M8&\"_old\",Ammortamento_Finanziario!$H:$L,5,FALSE),VLOOKUP($M8,TT_Tabelle_Riferimento!$H$31:$I$50,2,FALSE))","v":40},{"$f":"+IFERROR(VLOOKUP(S$6&\"-\"&$M8&\"_old\",Ammortamento_Finanziario!$H:$L,5,FALSE),VLOOKUP($M8,TT_Tabelle_Riferimento!$H$31:$I$50,2,FALSE))","v":40},{"$f":"+IFERROR(VLOOKUP(T$6&\"-\"&$M8&\"_old\",Ammortamento_Finanziario!$H:$L,5,FALSE),VLOOKUP($M8,TT_Tabelle_Riferimento!$H$31:$I$50,2,FALSE))","v":40},{"$f":"+IFERROR(VLOOKUP(U$6&\"-\"&$M8&\"_old\",Ammortamento_Finanziario!$H:$L,5,FALSE),VLOOKUP($M8,TT_Tabelle_Riferimento!$H$31:$I$50,2,FALSE))","v":40},{"$f":"+IFERROR(VLOOKUP(V$6&\"-\"&$M8&\"_old\",Ammortamento_Finanziario!$H:$L,5,FALSE),VLOOKUP($M8,TT_Tabelle_Riferimento!$H$31:$I$50,2,FALSE))","v":40},{"$f":"+IFERROR(VLOOKUP(W$6&\"-\"&$M8&\"_old\",Ammortamento_Finanziario!$H:$L,5,FALSE),VLOOKUP($M8,TT_Tabelle_Riferimento!$H$31:$I$50,2,FALSE))","v":40},{"$f":"+IFERROR(VLOOKUP(X$6&\"-\"&$M8&\"_old\",Ammortamento_Finanziario!$H:$L,5,FALSE),VLOOKUP($M8,TT_Tabelle_Riferimento!$H$31:$I$50,2,FALSE))","v":40},{"$f":"+IFERROR(VLOOKUP(Y$6&\"-\"&$M8&\"_old\",Ammortamento_Finanziario!$H:$L,5,FALSE),VLOOKUP($M8,TT_Tabelle_Riferimento!$H$31:$I$50,2,FALSE))","v":40},{"$f":"+IFERROR(VLOOKUP(Z$6&\"-\"&$M8&\"_old\",Ammortamento_Finanziario!$H:$L,5,FALSE),VLOOKUP($M8,TT_Tabelle_Riferimento!$H$31:$I$50,2,FALSE))","v":40},{"$f":"+IFERROR(VLOOKUP(AA$6&\"-\"&$M8&\"_old\",Ammortamento_Finanziario!$H:$L,5,FALSE),VLOOKUP($M8,TT_Tabelle_Riferimento!$H$31:$I$50,2,FALSE))","v":40},{"$f":"+IFERROR(VLOOKUP(AB$6&\"-\"&$M8&\"_old\",Ammortamento_Finanziario!$H:$L,5,FALSE),VLOOKUP($M8,TT_Tabelle_Riferimento!$H$31:$I$50,2,FALSE))","v":40},{"$f":"+IFERROR(VLOOKUP(AC$6&\"-\"&$M8&\"_old\",Ammortamento_Finanziario!$H:$L,5,FALSE),VLOOKUP($M8,TT_Tabelle_Riferimento!$H$31:$I$50,2,FALSE))","v":40},{"$f":"+IFERROR(VLOOKUP(AD$6&\"-\"&$M8&\"_old\",Ammortamento_Finanziario!$H:$L,5,FALSE),VLOOKUP($M8,TT_Tabelle_Riferimento!$H$31:$I$50,2,FALSE))","v":40},{"$f":"+IFERROR(VLOOKUP(AE$6&\"-\"&$M8&\"_old\",Ammortamento_Finanziario!$H:$L,5,FALSE),VLOOKUP($M8,TT_Tabelle_Riferimento!$H$31:$I$50,2,FALSE))","v":40},{"$f":"+IFERROR(VLOOKUP(AF$6&\"-\"&$M8&\"_old\",Ammortamento_Finanziario!$H:$L,5,FALSE),VLOOKUP($M8,TT_Tabelle_Riferimento!$H$31:$I$50,2,FALSE))","v":40},{"$f":"+IFERROR(VLOOKUP(AG$6&\"-\"&$M8&\"_old\",Ammortamento_Finanziario!$H:$L,5,FALSE),VLOOKUP($M8,TT_Tabelle_Riferimento!$H$31:$I$50,2,FALSE))","v":40},{"$f":"+IFERROR(VLOOKUP(AH$6&\"-\"&$M8&\"_old\",Ammortamento_Finanziario!$H:$L,5,FALSE),VLOOKUP($M8,TT_Tabelle_Riferimento!$H$31:$I$50,2,FALSE))","v":40},{"$f":"+IFERROR(VLOOKUP(AI$6&\"-\"&$M8&\"_old\",Ammortamento_Finanziario!$H:$L,5,FALSE),VLOOKUP($M8,TT_Tabelle_Riferimento!$H$31:$I$50,2,FALSE))","v":40},{"$f":"+IFERROR(VLOOKUP(AJ$6&\"-\"&$M8&\"_old\",Ammortamento_Finanziario!$H:$L,5,FALSE),VLOOKUP($M8,TT_Tabelle_Riferimento!$H$31:$I$50,2,FALSE))","v":40},{"$f":"+IFERROR(VLOOKUP(AK$6&\"-\"&$M8&\"_old\",Ammortamento_Finanziario!$H:$L,5,FALSE),VLOOKUP($M8,TT_Tabelle_Riferimento!$H$31:$I$50,2,FALSE))","v":40},{"$f":"+IFERROR(VLOOKUP(AL$6&\"-\"&$M8&\"_old\",Ammortamento_Finanziario!$H:$L,5,FALSE),VLOOKUP($M8,TT_Tabelle_Riferimento!$H$31:$I$50,2,FALSE))","v":40},{"$f":"+IFERROR(VLOOKUP(AM$6&\"-\"&$M8&\"_old\",Ammortamento_Finanziario!$H:$L,5,FALSE),VLOOKUP($M8,TT_Tabelle_Riferimento!$H$31:$I$50,2,FALSE))","v":40},{"$f":"+IFERROR(VLOOKUP(AN$6&\"-\"&$M8&\"_old\",Ammortamento_Finanziario!$H:$L,5,FALSE),VLOOKUP($M8,TT_Tabelle_Riferimento!$H$31:$I$50,2,FALSE))","v":40},{"$f":"+IFERROR(VLOOKUP(AO$6&\"-\"&$M8&\"_old\",Ammortamento_Finanziario!$H:$L,5,FALSE),VLOOKUP($M8,TT_Tabelle_Riferimento!$H$31:$I$50,2,FALSE))","v":40},{"$f":"+IFERROR(VLOOKUP(AP$6&\"-\"&$M8&\"_old\",Ammortamento_Finanziario!$H:$L,5,FALSE),VLOOKUP($M8,TT_Tabelle_Riferimento!$H$31:$I$50,2,FALSE))","v":40},{"$f":"+IFERROR(VLOOKUP(AQ$6&\"-\"&$M8&\"_old\",Ammortamento_Finanziario!$H:$L,5,FALSE),VLOOKUP($M8,TT_Tabelle_Riferimento!$H$31:$I$50,2,FALSE))","v":40},{"$f":"+IFERROR(VLOOKUP(AR$6&\"-\"&$M8&\"_old\",Ammortamento_Finanziario!$H:$L,5,FALSE),VLOOKUP($M8,TT_Tabelle_Riferimento!$H$31:$I$50,2,FALSE))","v":40},{"$f":"+IFERROR(VLOOKUP(AS$6&\"-\"&$M8&\"_old\",Ammortamento_Finanziario!$H:$L,5,FALSE),VLOOKUP($M8,TT_Tabelle_Riferimento!$H$31:$I$50,2,FALSE))","v":40},{"$f":"+IFERROR(VLOOKUP(AT$6&\"-\"&$M8&\"_old\",Ammortamento_Finanziario!$H:$L,5,FALSE),VLOOKUP($M8,TT_Tabelle_Riferimento!$H$31:$I$50,2,FALSE))","v":40},{"$f":"+IFERROR(VLOOKUP(AU$6&\"-\"&$M8&\"_old\",Ammortamento_Finanziario!$H:$L,5,FALSE),VLOOKUP($M8,TT_Tabelle_Riferimento!$H$31:$I$50,2,FALSE))","v":40},{"$f":"+IFERROR(VLOOKUP(AV$6&\"-\"&$M8&\"_old\",Ammortamento_Finanziario!$H:$L,5,FALSE),VLOOKUP($M8,TT_Tabelle_Riferimento!$H$31:$I$50,2,FALSE))","v":40},{"$f":"+IFERROR(VLOOKUP(AW$6&\"-\"&$M8&\"_old\",Ammortamento_Finanziario!$H:$L,5,FALSE),VLOOKUP($M8,TT_Tabelle_Riferimento!$H$31:$I$50,2,FALSE))","v":40},{"$f":"+IFERROR(VLOOKUP(AX$6&\"-\"&$M8&\"_old\",Ammortamento_Finanziario!$H:$L,5,FALSE),VLOOKUP($M8,TT_Tabelle_Riferimento!$H$31:$I$50,2,FALSE))","v":40},{"$f":"+IFERROR(VLOOKUP(AY$6&\"-\"&$M8&\"_old\",Ammortamento_Finanziario!$H:$L,5,FALSE),VLOOKUP($M8,TT_Tabelle_Riferimento!$H$31:$I$50,2,FALSE))","v":40},{"$f":"+IFERROR(VLOOKUP(AZ$6&\"-\"&$M8&\"_old\",Ammortamento_Finanziario!$H:$L,5,FALSE),VLOOKUP($M8,TT_Tabelle_Riferimento!$H$31:$I$50,2,FALSE))","v":40},{"$f":"+IFERROR(VLOOKUP(BA$6&\"-\"&$M8&\"_old\",Ammortamento_Finanziario!$H:$L,5,FALSE),VLOOKUP($M8,TT_Tabelle_Riferimento!$H$31:$I$50,2,FALSE))","v":40},{"$f":"+IFERROR(VLOOKUP(BB$6&\"-\"&$M8&\"_old\",Ammortamento_Finanziario!$H:$L,5,FALSE),VLOOKUP($M8,TT_Tabelle_Riferimento!$H$31:$I$50,2,FALSE))","v":40},{"$f":"+IFERROR(VLOOKUP(BC$6&\"-\"&$M8&\"_old\",Ammortamento_Finanziario!$H:$L,5,FALSE),VLOOKUP($M8,TT_Tabelle_Riferimento!$H$31:$I$50,2,FALSE))","v":40},{"$f":"+IFERROR(VLOOKUP(BD$6&\"-\"&$M8&\"_old\",Ammortamento_Finanziario!$H:$L,5,FALSE),VLOOKUP($M8,TT_Tabelle_Riferimento!$H$31:$I$50,2,FALSE))","v":40},{"$f":"+IFERROR(VLOOKUP(BE$6&\"-\"&$M8&\"_old\",Ammortamento_Finanziario!$H:$L,5,FALSE),VLOOKUP($M8,TT_Tabelle_Riferimento!$H$31:$I$50,2,FALSE))","v":40},{"$f":"+IFERROR(VLOOKUP(BF$6&\"-\"&$M8&\"_old\",Ammortamento_Finanziario!$H:$L,5,FALSE),VLOOKUP($M8,TT_Tabelle_Riferimento!$H$31:$I$50,2,FALSE))","v":40},{"$f":"+IFERROR(VLOOKUP(BG$6&\"-\"&$M8&\"_old\",Ammortamento_Finanziario!$H:$L,5,FALSE),VLOOKUP($M8,TT_Tabelle_Riferimento!$H$31:$I$50,2,FALSE))","v":40},{"$f":"+IFERROR(VLOOKUP(BH$6&\"-\"&$M8&\"_old\",Ammortamento_Finanziario!$H:$L,5,FALSE),VLOOKUP($M8,TT_Tabelle_Riferimento!$H$31:$I$50,2,FALSE))","v":40},{"$f":"+IFERROR(VLOOKUP(BI$6&\"-\"&$M8&\"_old\",Ammortamento_Finanziario!$H:$L,5,FALSE),VLOOKUP($M8,TT_Tabelle_Riferimento!$H$31:$I$50,2,FALSE))","v":40},{"$f":"+IFERROR(VLOOKUP(BJ$6&\"-\"&$M8&\"_old\",Ammortamento_Finanziario!$H:$L,5,FALSE),VLOOKUP($M8,TT_Tabelle_Riferimento!$H$31:$I$50,2,FALSE))","v":40},{"$f":"+IFERROR(VLOOKUP(BK$6&\"-\"&$M8&\"_old\",Ammortamento_Finanziario!$H:$L,5,FALSE),VLOOKUP($M8,TT_Tabelle_Riferimento!$H$31:$I$50,2,FALSE))","v":40},{"$f":"+IFERROR(VLOOKUP(BL$6&\"-\"&$M8&\"_old\",Ammortamento_Finanziario!$H:$L,5,FALSE),VLOOKUP($M8,TT_Tabelle_Riferimento!$H$31:$I$50,2,FALSE))","v":40},{"$f":"+IFERROR(VLOOKUP(BM$6&\"-\"&$M8&\"_old\",Ammortamento_Finanziario!$H:$L,5,FALSE),VLOOKUP($M8,TT_Tabelle_Riferimento!$H$31:$I$50,2,FALSE))","v":40},{"$f":"+IFERROR(VLOOKUP(BN$6&\"-\"&$M8&\"_old\",Ammortamento_Finanziario!$H:$L,5,FALSE),VLOOKUP($M8,TT_Tabelle_Riferimento!$H$31:$I$50,2,FALSE))","v":40},{"$f":"+IFERROR(VLOOKUP(BO$6&\"-\"&$M8&\"_old\",Ammortamento_Finanziario!$H:$L,5,FALSE),VLOOKUP($M8,TT_Tabelle_Riferimento!$H$31:$I$50,2,FALSE))","v":40},{"$f":"+IFERROR(VLOOKUP(BP$6&\"-\"&$M8&\"_old\",Ammortamento_Finanziario!$H:$L,5,FALSE),VLOOKUP($M8,TT_Tabelle_Riferimento!$H$31:$I$50,2,FALSE))","v":40},{"$f":"+IFERROR(VLOOKUP(BQ$6&\"-\"&$M8&\"_old\",Ammortamento_Finanziario!$H:$L,5,FALSE),VLOOKUP($M8,TT_Tabelle_Riferimento!$H$31:$I$50,2,FALSE))","v":40},{"$f":"+IFERROR(VLOOKUP(BR$6&\"-\"&$M8&\"_old\",Ammortamento_Finanziario!$H:$L,5,FALSE),VLOOKUP($M8,TT_Tabelle_Riferimento!$H$31:$I$50,2,FALSE))","v":40},{"$f":"+IFERROR(VLOOKUP(BS$6&\"-\"&$M8&\"_old\",Ammortamento_Finanziario!$H:$L,5,FALSE),VLOOKUP($M8,TT_Tabelle_Riferimento!$H$31:$I$50,2,FALSE))","v":40},{"$f":"+IFERROR(VLOOKUP(BT$6&\"-\"&$M8&\"_old\",Ammortamento_Finanziario!$H:$L,5,FALSE),VLOOKUP($M8,TT_Tabelle_Riferimento!$H$31:$I$50,2,FALSE))","v":40},{"$f":"+IFERROR(VLOOKUP(BU$6&\"-\"&$M8&\"_old\",Ammortamento_Finanziario!$H:$L,5,FALSE),VLOOKUP($M8,TT_Tabelle_Riferimento!$H$31:$I$50,2,FALSE))","v":40},{"$f":"+IFERROR(VLOOKUP(BV$6&\"-\"&$M8&\"_old\",Ammortamento_Finanziario!$H:$L,5,FALSE),VLOOKUP($M8,TT_Tabelle_Riferimento!$H$31:$I$50,2,FALSE))","v":40},{"$f":"+IFERROR(VLOOKUP(BW$6&\"-\"&$M8&\"_old\",Ammortamento_Finanziario!$H:$L,5,FALSE),VLOOKUP($M8,TT_Tabelle_Riferimento!$H$31:$I$50,2,FALSE))","v":40},{"$f":"+IFERROR(VLOOKUP(BX$6&\"-\"&$M8&\"_old\",Ammortamento_Finanziario!$H:$L,5,FALSE),VLOOKUP($M8,TT_Tabelle_Riferimento!$H$31:$I$50,2,FALSE))","v":40},{"$f":"+IFERROR(VLOOKUP(BY$6&\"-\"&$M8&\"_old\",Ammortamento_Finanziario!$H:$L,5,FALSE),VLOOKUP($M8,TT_Tabelle_Riferimento!$H$31:$I$50,2,FALSE))","v":40},{"$f":"+IFERROR(VLOOKUP(BZ$6&\"-\"&$M8&\"_old\",Ammortamento_Finanziario!$H:$L,5,FALSE),VLOOKUP($M8,TT_Tabelle_Riferimento!$H$31:$I$50,2,FALSE))","v":40},{"$f":"+IFERROR(VLOOKUP(CA$6&\"-\"&$M8&\"_old\",Ammortamento_Finanziario!$H:$L,5,FALSE),VLOOKUP($M8,TT_Tabelle_Riferimento!$H$31:$I$50,2,FALSE))","v":40},{"$f":"+IFERROR(VLOOKUP(CB$6&\"-\"&$M8&\"_old\",Ammortamento_Finanziario!$H:$L,5,FALSE),VLOOKUP($M8,TT_Tabelle_Riferimento!$H$31:$I$50,2,FALSE))","v":40},{"$f":"+IFERROR(VLOOKUP(CC$6&\"-\"&$M8&\"_old\",Ammortamento_Finanziario!$H:$L,5,FALSE),VLOOKUP($M8,TT_Tabelle_Riferimento!$H$31:$I$50,2,FALSE))","v":40},{"$f":"+IFERROR(VLOOKUP(CD$6&\"-\"&$M8&\"_old\",Ammortamento_Finanziario!$H:$L,5,FALSE),VLOOKUP($M8,TT_Tabelle_Riferimento!$H$31:$I$50,2,FALSE))","v":40},{"$f":"+IFERROR(VLOOKUP(CE$6&\"-\"&$M8&\"_old\",Ammortamento_Finanziario!$H:$L,5,FALSE),VLOOKUP($M8,TT_Tabelle_Riferimento!$H$31:$I$50,2,FALSE))","v":40},{"$f":"+IFERROR(VLOOKUP(CF$6&\"-\"&$M8&\"_old\",Ammortamento_Finanziario!$H:$L,5,FALSE),VLOOKUP($M8,TT_Tabelle_Riferimento!$H$31:$I$50,2,FALSE))","v":40},{"$f":"+IFERROR(VLOOKUP(CG$6&\"-\"&$M8&\"_old\",Ammortamento_Finanziario!$H:$L,5,FALSE),VLOOKUP($M8,TT_Tabelle_Riferimento!$H$31:$I$50,2,FALSE))","v":40},{"$f":"+IFERROR(VLOOKUP(CH$6&\"-\"&$M8&\"_old\",Ammortamento_Finanziario!$H:$L,5,FALSE),VLOOKUP($M8,TT_Tabelle_Riferimento!$H$31:$I$50,2,FALSE))","v":40},{"$f":"+IFERROR(VLOOKUP(CI$6&\"-\"&$M8&\"_old\",Ammortamento_Finanziario!$H:$L,5,FALSE),VLOOKUP($M8,TT_Tabelle_Riferimento!$H$31:$I$50,2,FALSE))","v":40},{"$f":"+IFERROR(VLOOKUP(CJ$6&\"-\"&$M8&\"_old\",Ammortamento_Finanziario!$H:$L,5,FALSE),VLOOKUP($M8,TT_Tabelle_Riferimento!$H$31:$I$50,2,FALSE))","v":40},{"$f":"+IFERROR(VLOOKUP(CK$6&\"-\"&$M8&\"_old\",Ammortamento_Finanziario!$H:$L,5,FALSE),VLOOKUP($M8,TT_Tabelle_Riferimento!$H$31:$I$50,2,FALSE))","v":40},{"$f":"+IFERROR(VLOOKUP(CL$6&\"-\"&$M8&\"_old\",Ammortamento_Finanziario!$H:$L,5,FALSE),VLOOKUP($M8,TT_Tabelle_Riferimento!$H$31:$I$50,2,FALSE))","v":40},{"$f":"+IFERROR(VLOOKUP(CM$6&\"-\"&$M8&\"_old\",Ammortamento_Finanziario!$H:$L,5,FALSE),VLOOKUP($M8,TT_Tabelle_Riferimento!$H$31:$I$50,2,FALSE))","v":40},{"$f":"+IFERROR(VLOOKUP(CN$6&\"-\"&$M8&\"_old\",Ammortamento_Finanziario!$H:$L,5,FALSE),VLOOKUP($M8,TT_Tabelle_Riferimento!$H$31:$I$50,2,FALSE))","v":40},{"$f":"+IFERROR(VLOOKUP(CO$6&\"-\"&$M8&\"_old\",Ammortamento_Finanziario!$H:$L,5,FALSE),VLOOKUP($M8,TT_Tabelle_Riferimento!$H$31:$I$50,2,FALSE))","v":40},{"$f":"+IFERROR(VLOOKUP(CP$6&\"-\"&$M8&\"_old\",Ammortamento_Finanziario!$H:$L,5,FALSE),VLOOKUP($M8,TT_Tabelle_Riferimento!$H$31:$I$50,2,FALSE))","v":40},{"$f":"+IFERROR(VLOOKUP(CQ$6&\"-\"&$M8&\"_old\",Ammortamento_Finanziario!$H:$L,5,FALSE),VLOOKUP($M8,TT_Tabelle_Riferimento!$H$31:$I$50,2,FALSE))","v":40},{"$f":"+IFERROR(VLOOKUP(CR$6&\"-\"&$M8&\"_old\",Ammortamento_Finanziario!$H:$L,5,FALSE),VLOOKUP($M8,TT_Tabelle_Riferimento!$H$31:$I$50,2,FALSE))","v":40},{"$f":"+IFERROR(VLOOKUP(CS$6&\"-\"&$M8&\"_old\",Ammortamento_Finanziario!$H:$L,5,FALSE),VLOOKUP($M8,TT_Tabelle_Riferimento!$H$31:$I$50,2,FALSE))","v":40},{"$f":"+IFERROR(VLOOKUP(CT$6&\"-\"&$M8&\"_old\",Ammortamento_Finanziario!$H:$L,5,FALSE),VLOOKUP($M8,TT_Tabelle_Riferimento!$H$31:$I$50,2,FALSE))","v":40},{"$f":"+IFERROR(VLOOKUP(CU$6&\"-\"&$M8&\"_old\",Ammortamento_Finanziario!$H:$L,5,FALSE),VLOOKUP($M8,TT_Tabelle_Riferimento!$H$31:$I$50,2,FALSE))","v":40},{"$f":"+IFERROR(VLOOKUP(CV$6&\"-\"&$M8&\"_old\",Ammortamento_Finanziario!$H:$L,5,FALSE),VLOOKUP($M8,TT_Tabelle_Riferimento!$H$31:$I$50,2,FALSE))","v":40},{"$f":"+IFERROR(VLOOKUP(CW$6&\"-\"&$M8&\"_old\",Ammortamento_Finanziario!$H:$L,5,FALSE),VLOOKUP($M8,TT_Tabelle_Riferimento!$H$31:$I$50,2,FALSE))","v":40},{"$f":"+IFERROR(VLOOKUP(CX$6&\"-\"&$M8&\"_old\",Ammortamento_Finanziario!$H:$L,5,FALSE),VLOOKUP($M8,TT_Tabelle_Riferimento!$H$31:$I$50,2,FALSE))","v":40},{"$f":"+IFERROR(VLOOKUP(CY$6&\"-\"&$M8&\"_old\",Ammortamento_Finanziario!$H:$L,5,FALSE),VLOOKUP($M8,TT_Tabelle_Riferimento!$H$31:$I$50,2,FALSE))","v":40},{"$f":"+IFERROR(VLOOKUP(CZ$6&\"-\"&$M8&\"_old\",Ammortamento_Finanziario!$H:$L,5,FALSE),VLOOKUP($M8,TT_Tabelle_Riferimento!$H$31:$I$50,2,FALSE))","v":40},{"$f":"+IFERROR(VLOOKUP(DA$6&\"-\"&$M8&\"_old\",Ammortamento_Finanziario!$H:$L,5,FALSE),VLOOKUP($M8,TT_Tabelle_Riferimento!$H$31:$I$50,2,FALSE))","v":40},{"$f":"+IFERROR(VLOOKUP(DB$6&\"-\"&$M8&\"_old\",Ammortamento_Finanziario!$H:$L,5,FALSE),VLOOKUP($M8,TT_Tabelle_Riferimento!$H$31:$I$50,2,FALSE))","v":40},{"$f":"+IFERROR(VLOOKUP(DC$6&\"-\"&$M8&\"_old\",Ammortamento_Finanziario!$H:$L,5,FALSE),VLOOKUP($M8,TT_Tabelle_Riferimento!$H$31:$I$50,2,FALSE))","v":40},{"$f":"+IFERROR(VLOOKUP(DD$6&\"-\"&$M8&\"_old\",Ammortamento_Finanziario!$H:$L,5,FALSE),VLOOKUP($M8,TT_Tabelle_Riferimento!$H$31:$I$50,2,FALSE))","v":40},{"$f":"+IFERROR(VLOOKUP(DE$6&\"-\"&$M8&\"_old\",Ammortamento_Finanziario!$H:$L,5,FALSE),VLOOKUP($M8,TT_Tabelle_Riferimento!$H$31:$I$50,2,FALSE))","v":40},{"$f":"+IFERROR(VLOOKUP(DF$6&\"-\"&$M8&\"_old\",Ammortamento_Finanziario!$H:$L,5,FALSE),VLOOKUP($M8,TT_Tabelle_Riferimento!$H$31:$I$50,2,FALSE))","v":40},{"$f":"+IFERROR(VLOOKUP(DG$6&\"-\"&$M8&\"_old\",Ammortamento_Finanziario!$H:$L,5,FALSE),VLOOKUP($M8,TT_Tabelle_Riferimento!$H$31:$I$50,2,FALSE))","v":40},{"$f":"+IFERROR(VLOOKUP(DH$6&\"-\"&$M8&\"_old\",Ammortamento_Finanziario!$H:$L,5,FALSE),VLOOKUP($M8,TT_Tabelle_Riferimento!$H$31:$I$50,2,FALSE))","v":40},{"$f":"+IFERROR(VLOOKUP(DI$6&\"-\"&$M8&\"_old\",Ammortamento_Finanziario!$H:$L,5,FALSE),VLOOKUP($M8,TT_Tabelle_Riferimento!$H$31:$I$50,2,FALSE))","v":40},{"$f":"+IFERROR(VLOOKUP(DJ$6&\"-\"&$M8&\"_old\",Ammortamento_Finanziario!$H:$L,5,FALSE),VLOOKUP($M8,TT_Tabelle_Riferimento!$H$31:$I$50,2,FALSE))","v":40},{"$f":"+IFERROR(VLOOKUP(DK$6&\"-\"&$M8&\"_old\",Ammortamento_Finanziario!$H:$L,5,FALSE),VLOOKUP($M8,TT_Tabelle_Riferimento!$H$31:$I$50,2,FALSE))","v":40},{"$f":"+IFERROR(VLOOKUP(DL$6&\"-\"&$M8&\"_old\",Ammortamento_Finanziario!$H:$L,5,FALSE),VLOOKUP($M8,TT_Tabelle_Riferimento!$H$31:$I$50,2,FALSE))","v":40},{"$f":"+IFERROR(VLOOKUP(DM$6&\"-\"&$M8&\"_old\",Ammortamento_Finanziario!$H:$L,5,FALSE),VLOOKUP($M8,TT_Tabelle_Riferimento!$H$31:$I$50,2,FALSE))","v":40},{"$f":"+IFERROR(VLOOKUP(DN$6&\"-\"&$M8&\"_old\",Ammortamento_Finanziario!$H:$L,5,FALSE),VLOOKUP($M8,TT_Tabelle_Riferimento!$H$31:$I$50,2,FALSE))","v":40},{"$f":"+IFERROR(VLOOKUP(DO$6&\"-\"&$M8&\"_old\",Ammortamento_Finanziario!$H:$L,5,FALSE),VLOOKUP($M8,TT_Tabelle_Riferimento!$H$31:$I$50,2,FALSE))","v":40},{"$f":"+IFERROR(VLOOKUP(DP$6&\"-\"&$M8&\"_old\",Ammortamento_Finanziario!$H:$L,5,FALSE),VLOOKUP($M8,TT_Tabelle_Riferimento!$H$31:$I$50,2,FALSE))","v":40},{"$f":"+IFERROR(VLOOKUP(DQ$6&\"-\"&$M8&\"_old\",Ammortamento_Finanziario!$H:$L,5,FALSE),VLOOKUP($M8,TT_Tabelle_Riferimento!$H$31:$I$50,2,FALSE))","v":40},{"$f":"+IFERROR(VLOOKUP(DR$6&\"-\"&$M8&\"_old\",Ammortamento_Finanziario!$H:$L,5,FALSE),VLOOKUP($M8,TT_Tabelle_Riferimento!$H$31:$I$50,2,FALSE))","v":40},{"$f":"+IFERROR(VLOOKUP(DS$6&\"-\"&$M8&\"_old\",Ammortamento_Finanziario!$H:$L,5,FALSE),VLOOKUP($M8,TT_Tabelle_Riferimento!$H$31:$I$50,2,FALSE))","v":40},{"$f":"+IFERROR(VLOOKUP(DT$6&\"-\"&$M8&\"_old\",Ammortamento_Finanziario!$H:$L,5,FALSE),VLOOKUP($M8,TT_Tabelle_Riferimento!$H$31:$I$50,2,FALSE))","v":40},{"$f":"+IFERROR(VLOOKUP(DU$6&\"-\"&$M8&\"_old\",Ammortamento_Finanziario!$H:$L,5,FALSE),VLOOKUP($M8,TT_Tabelle_Riferimento!$H$31:$I$50,2,FALSE))","v":40},{"$f":"+IFERROR(VLOOKUP(DV$6&\"-\"&$M8&\"_old\",Ammortamento_Finanziario!$H:$L,5,FALSE),VLOOKUP($M8,TT_Tabelle_Riferimento!$H$31:$I$50,2,FALSE))","v":40},{"$f":"+IFERROR(VLOOKUP(DW$6&\"-\"&$M8&\"_old\",Ammortamento_Finanziario!$H:$L,5,FALSE),VLOOKUP($M8,TT_Tabelle_Riferimento!$H$31:$I$50,2,FALSE))","v":40},{"$f":"+IFERROR(VLOOKUP(DX$6&\"-\"&$M8&\"_old\",Ammortamento_Finanziario!$H:$L,5,FALSE),VLOOKUP($M8,TT_Tabelle_Riferimento!$H$31:$I$50,2,FALSE))","v":40},{"$f":"+IFERROR(VLOOKUP(DY$6&\"-\"&$M8&\"_old\",Ammortamento_Finanziario!$H:$L,5,FALSE),VLOOKUP($M8,TT_Tabelle_Riferimento!$H$31:$I$50,2,FALSE))","v":40},{"$f":"+IFERROR(VLOOKUP(DZ$6&\"-\"&$M8&\"_old\",Ammortamento_Finanziario!$H:$L,5,FALSE),VLOOKUP($M8,TT_Tabelle_Riferimento!$H$31:$I$50,2,FALSE))","v":40},{"$f":"+IFERROR(VLOOKUP(EA$6&\"-\"&$M8&\"_old\",Ammortamento_Finanziario!$H:$L,5,FALSE),VLOOKUP($M8,TT_Tabelle_Riferimento!$H$31:$I$50,2,FALSE))","v":40},{"$f":"+IFERROR(VLOOKUP(EB$6&\"-\"&$M8&\"_old\",Ammortamento_Finanziario!$H:$L,5,FALSE),VLOOKUP($M8,TT_Tabelle_Riferimento!$H$31:$I$50,2,FALSE))","v":40},{"$f":"+IFERROR(VLOOKUP(EC$6&\"-\"&$M8&\"_old\",Ammortamento_Finanziario!$H:$L,5,FALSE),VLOOKUP($M8,TT_Tabelle_Riferimento!$H$31:$I$50,2,FALSE))","v":40},{"$f":"+IFERROR(VLOOKUP(ED$6&\"-\"&$M8&\"_old\",Ammortamento_Finanziario!$H:$L,5,FALSE),VLOOKUP($M8,TT_Tabelle_Riferimento!$H$31:$I$50,2,FALSE))","v":40},{"$f":"+IFERROR(VLOOKUP(EE$6&\"-\"&$M8&\"_old\",Ammortamento_Finanziario!$H:$L,5,FALSE),VLOOKUP($M8,TT_Tabelle_Riferimento!$H$31:$I$50,2,FALSE))","v":40},{"$f":"+IFERROR(VLOOKUP(EF$6&\"-\"&$M8&\"_old\",Ammortamento_Finanziario!$H:$L,5,FALSE),VLOOKUP($M8,TT_Tabelle_Riferimento!$H$31:$I$50,2,FALSE))","v":40},{"$f":"+IFERROR(VLOOKUP(EG$6&\"-\"&$M8&\"_old\",Ammortamento_Finanziario!$H:$L,5,FALSE),VLOOKUP($M8,TT_Tabelle_Riferimento!$H$31:$I$50,2,FALSE))","v":40},{"$f":"+IFERROR(VLOOKUP(EH$6&\"-\"&$M8&\"_old\",Ammortamento_Finanziario!$H:$L,5,FALSE),VLOOKUP($M8,TT_Tabelle_Riferimento!$H$31:$I$50,2,FALSE))","v":40},{"$f":"+IFERROR(VLOOKUP(EI$6&\"-\"&$M8&\"_old\",Ammortamento_Finanziario!$H:$L,5,FALSE),VLOOKUP($M8,TT_Tabelle_Riferimento!$H$31:$I$50,2,FALSE))","v":40},{"$f":"+IFERROR(VLOOKUP(EJ$6&\"-\"&$M8&\"_old\",Ammortamento_Finanziario!$H:$L,5,FALSE),VLOOKUP($M8,TT_Tabelle_Riferimento!$H$31:$I$50,2,FALSE))","v":40},{"$f":"+IFERROR(VLOOKUP(EK$6&\"-\"&$M8&\"_old\",Ammortamento_Finanziario!$H:$L,5,FALSE),VLOOKUP($M8,TT_Tabelle_Riferimento!$H$31:$I$50,2,FALSE))","v":40},{"$f":"+IFERROR(VLOOKUP(EL$6&\"-\"&$M8&\"_old\",Ammortamento_Finanziario!$H:$L,5,FALSE),VLOOKUP($M8,TT_Tabelle_Riferimento!$H$31:$I$50,2,FALSE))","v":40},{"$f":"+IFERROR(VLOOKUP(EM$6&\"-\"&$M8&\"_old\",Ammortamento_Finanziario!$H:$L,5,FALSE),VLOOKUP($M8,TT_Tabelle_Riferimento!$H$31:$I$50,2,FALSE))","v":40},{"$f":"+IFERROR(VLOOKUP(EN$6&\"-\"&$M8&\"_old\",Ammortamento_Finanziario!$H:$L,5,FALSE),VLOOKUP($M8,TT_Tabelle_Riferimento!$H$31:$I$50,2,FALSE))","v":40},{"$f":"+IFERROR(VLOOKUP(EO$6&\"-\"&$M8&\"_old\",Ammortamento_Finanziario!$H:$L,5,FALSE),VLOOKUP($M8,TT_Tabelle_Riferimento!$H$31:$I$50,2,FALSE))","v":40},{"$f":"+IFERROR(VLOOKUP(EP$6&\"-\"&$M8&\"_old\",Ammortamento_Finanziario!$H:$L,5,FALSE),VLOOKUP($M8,TT_Tabelle_Riferimento!$H$31:$I$50,2,FALSE))","v":40},{"$f":"+IFERROR(VLOOKUP(EQ$6&\"-\"&$M8&\"_old\",Ammortamento_Finanziario!$H:$L,5,FALSE),VLOOKUP($M8,TT_Tabelle_Riferimento!$H$31:$I$50,2,FALSE))","v":40},{"$f":"+IFERROR(VLOOKUP(ER$6&\"-\"&$M8&\"_old\",Ammortamento_Finanziario!$H:$L,5,FALSE),VLOOKUP($M8,TT_Tabelle_Riferimento!$H$31:$I$50,2,FALSE))","v":40},{"$f":"+IFERROR(VLOOKUP(ES$6&\"-\"&$M8&\"_old\",Ammortamento_Finanziario!$H:$L,5,FALSE),VLOOKUP($M8,TT_Tabelle_Riferimento!$H$31:$I$50,2,FALSE))","v":40},{"$f":"+IFERROR(VLOOKUP(ET$6&\"-\"&$M8&\"_old\",Ammortamento_Finanziario!$H:$L,5,FALSE),VLOOKUP($M8,TT_Tabelle_Riferimento!$H$31:$I$50,2,FALSE))","v":40},{"$f":"+IFERROR(VLOOKUP(EU$6&\"-\"&$M8&\"_old\",Ammortamento_Finanziario!$H:$L,5,FALSE),VLOOKUP($M8,TT_Tabelle_Riferimento!$H$31:$I$50,2,FALSE))","v":40},{"$f":"+IFERROR(VLOOKUP(EV$6&\"-\"&$M8&\"_old\",Ammortamento_Finanziario!$H:$L,5,FALSE),VLOOKUP($M8,TT_Tabelle_Riferimento!$H$31:$I$50,2,FALSE))","v":40},{"$f":"+IFERROR(VLOOKUP(EW$6&\"-\"&$M8&\"_old\",Ammortamento_Finanziario!$H:$L,5,FALSE),VLOOKUP($M8,TT_Tabelle_Riferimento!$H$31:$I$50,2,FALSE))","v":40},{"$f":"+IFERROR(VLOOKUP(EX$6&\"-\"&$M8&\"_old\",Ammortamento_Finanziario!$H:$L,5,FALSE),VLOOKUP($M8,TT_Tabelle_Riferimento!$H$31:$I$50,2,FALSE))","v":40},{"$f":"+IFERROR(VLOOKUP(EY$6&\"-\"&$M8&\"_old\",Ammortamento_Finanziario!$H:$L,5,FALSE),VLOOKUP($M8,TT_Tabelle_Riferimento!$H$31:$I$50,2,FALSE))","v":40},{"$f":"+IFERROR(VLOOKUP(EZ$6&\"-\"&$M8&\"_old\",Ammortamento_Finanziario!$H:$L,5,FALSE),VLOOKUP($M8,TT_Tabelle_Riferimento!$H$31:$I$50,2,FALSE))","v":40},{"$f":"+IFERROR(VLOOKUP(FA$6&\"-\"&$M8&\"_old\",Ammortamento_Finanziario!$H:$L,5,FALSE),VLOOKUP($M8,TT_Tabelle_Riferimento!$H$31:$I$50,2,FALSE))","v":40},{"$f":"+IFERROR(VLOOKUP(FB$6&\"-\"&$M8&\"_old\",Ammortamento_Finanziario!$H:$L,5,FALSE),VLOOKUP($M8,TT_Tabelle_Riferimento!$H$31:$I$50,2,FALSE))","v":40},{"$f":"+IFERROR(VLOOKUP(FC$6&\"-\"&$M8&\"_old\",Ammortamento_Finanziario!$H:$L,5,FALSE),VLOOKUP($M8,TT_Tabelle_Riferimento!$H$31:$I$50,2,FALSE))","v":40},{"$f":"+IFERROR(VLOOKUP(FD$6&\"-\"&$M8&\"_old\",Ammortamento_Finanziario!$H:$L,5,FALSE),VLOOKUP($M8,TT_Tabelle_Riferimento!$H$31:$I$50,2,FALSE))","v":40},{"$f":"+IFERROR(VLOOKUP(FE$6&\"-\"&$M8&\"_old\",Ammortamento_Finanziario!$H:$L,5,FALSE),VLOOKUP($M8,TT_Tabelle_Riferimento!$H$31:$I$50,2,FALSE))","v":40},{"$f":"+IFERROR(VLOOKUP(FF$6&\"-\"&$M8&\"_old\",Ammortamento_Finanziario!$H:$L,5,FALSE),VLOOKUP($M8,TT_Tabelle_Riferimento!$H$31:$I$50,2,FALSE))","v":40},{"$f":"+IFERROR(VLOOKUP(FG$6&\"-\"&$M8&\"_old\",Ammortamento_Finanziario!$H:$L,5,FALSE),VLOOKUP($M8,TT_Tabelle_Riferimento!$H$31:$I$50,2,FALSE))","v":40},{"$f":"+IFERROR(VLOOKUP(FH$6&\"-\"&$M8&\"_old\",Ammortamento_Finanziario!$H:$L,5,FALSE),VLOOKUP($M8,TT_Tabelle_Riferimento!$H$31:$I$50,2,FALSE))","v":40},{"$f":"+IFERROR(VLOOKUP(FI$6&\"-\"&$M8&\"_old\",Ammortamento_Finanziario!$H:$L,5,FALSE),VLOOKUP($M8,TT_Tabelle_Riferimento!$H$31:$I$50,2,FALSE))","v":40},{"$f":"+IFERROR(VLOOKUP(FJ$6&\"-\"&$M8&\"_old\",Ammortamento_Finanziario!$H:$L,5,FALSE),VLOOKUP($M8,TT_Tabelle_Riferimento!$H$31:$I$50,2,FALSE))","v":40},{"$f":"+IFERROR(VLOOKUP(FK$6&\"-\"&$M8&\"_old\",Ammortamento_Finanziario!$H:$L,5,FALSE),VLOOKUP($M8,TT_Tabelle_Riferimento!$H$31:$I$50,2,FALSE))","v":40},{"$f":"+IFERROR(VLOOKUP(FL$6&\"-\"&$M8&\"_old\",Ammortamento_Finanziario!$H:$L,5,FALSE),VLOOKUP($M8,TT_Tabelle_Riferimento!$H$31:$I$50,2,FALSE))","v":40},{"$f":"+IFERROR(VLOOKUP(FM$6&\"-\"&$M8&\"_old\",Ammortamento_Finanziario!$H:$L,5,FALSE),VLOOKUP($M8,TT_Tabelle_Riferimento!$H$31:$I$50,2,FALSE))","v":40},{"$f":"+IFERROR(VLOOKUP(FN$6&\"-\"&$M8&\"_old\",Ammortamento_Finanziario!$H:$L,5,FALSE),VLOOKUP($M8,TT_Tabelle_Riferimento!$H$31:$I$50,2,FALSE))","v":40},{"$f":"+IFERROR(VLOOKUP(FO$6&\"-\"&$M8&\"_old\",Ammortamento_Finanziario!$H:$L,5,FALSE),VLOOKUP($M8,TT_Tabelle_Riferimento!$H$31:$I$50,2,FALSE))","v":40},{"$f":"+IFERROR(VLOOKUP(FP$6&\"-\"&$M8&\"_old\",Ammortamento_Finanziario!$H:$L,5,FALSE),VLOOKUP($M8,TT_Tabelle_Riferimento!$H$31:$I$50,2,FALSE))","v":40},{"$f":"+IFERROR(VLOOKUP(FQ$6&\"-\"&$M8&\"_old\",Ammortamento_Finanziario!$H:$L,5,FALSE),VLOOKUP($M8,TT_Tabelle_Riferimento!$H$31:$I$50,2,FALSE))","v":40},{"$f":"+IFERROR(VLOOKUP(FR$6&\"-\"&$M8&\"_old\",Ammortamento_Finanziario!$H:$L,5,FALSE),VLOOKUP($M8,TT_Tabelle_Riferimento!$H$31:$I$50,2,FALSE))","v":40},{"$f":"+IFERROR(VLOOKUP(FS$6&\"-\"&$M8&\"_old\",Ammortamento_Finanziario!$H:$L,5,FALSE),VLOOKUP($M8,TT_Tabelle_Riferimento!$H$31:$I$50,2,FALSE))","v":40},{"$f":"+IFERROR(VLOOKUP(FT$6&\"-\"&$M8&\"_old\",Ammortamento_Finanziario!$H:$L,5,FALSE),VLOOKUP($M8,TT_Tabelle_Riferimento!$H$31:$I$50,2,FALSE))","v":40},{"$f":"+IFERROR(VLOOKUP(FU$6&\"-\"&$M8&\"_old\",Ammortamento_Finanziario!$H:$L,5,FALSE),VLOOKUP($M8,TT_Tabelle_Riferimento!$H$31:$I$50,2,FALSE))","v":40},{"$f":"+IFERROR(VLOOKUP(FV$6&\"-\"&$M8&\"_old\",Ammortamento_Finanziario!$H:$L,5,FALSE),VLOOKUP($M8,TT_Tabelle_Riferimento!$H$31:$I$50,2,FALSE))","v":40},{"$f":"+IFERROR(VLOOKUP(FW$6&\"-\"&$M8&\"_old\",Ammortamento_Finanziario!$H:$L,5,FALSE),VLOOKUP($M8,TT_Tabelle_Riferimento!$H$31:$I$50,2,FALSE))","v":40},{"$f":"+IFERROR(VLOOKUP(FX$6&\"-\"&$M8&\"_old\",Ammortamento_Finanziario!$H:$L,5,FALSE),VLOOKUP($M8,TT_Tabelle_Riferimento!$H$31:$I$50,2,FALSE))","v":40},{"$f":"+IFERROR(VLOOKUP(FY$6&\"-\"&$M8&\"_old\",Ammortamento_Finanziario!$H:$L,5,FALSE),VLOOKUP($M8,TT_Tabelle_Riferimento!$H$31:$I$50,2,FALSE))","v":40},{"$f":"+IFERROR(VLOOKUP(FZ$6&\"-\"&$M8&\"_old\",Ammortamento_Finanziario!$H:$L,5,FALSE),VLOOKUP($M8,TT_Tabelle_Riferimento!$H$31:$I$50,2,FALSE))","v":40},{"$f":"+IFERROR(VLOOKUP(GA$6&\"-\"&$M8&\"_old\",Ammortamento_Finanziario!$H:$L,5,FALSE),VLOOKUP($M8,TT_Tabelle_Riferimento!$H$31:$I$50,2,FALSE))","v":40},{"$f":"+IFERROR(VLOOKUP(GB$6&\"-\"&$M8&\"_old\",Ammortamento_Finanziario!$H:$L,5,FALSE),VLOOKUP($M8,TT_Tabelle_Riferimento!$H$31:$I$50,2,FALSE))","v":40},{"$f":"+IFERROR(VLOOKUP(GC$6&\"-\"&$M8&\"_old\",Ammortamento_Finanziario!$H:$L,5,FALSE),VLOOKUP($M8,TT_Tabelle_Riferimento!$H$31:$I$50,2,FALSE))","v":40},{"$f":"+IFERROR(VLOOKUP(GD$6&\"-\"&$M8&\"_old\",Ammortamento_Finanziario!$H:$L,5,FALSE),VLOOKUP($M8,TT_Tabelle_Riferimento!$H$31:$I$50,2,FALSE))","v":40},{"$f":"+IFERROR(VLOOKUP(GE$6&\"-\"&$M8&\"_old\",Ammortamento_Finanziario!$H:$L,5,FALSE),VLOOKUP($M8,TT_Tabelle_Riferimento!$H$31:$I$50,2,FALSE))","v":40},{"$f":"+IFERROR(VLOOKUP(GF$6&\"-\"&$M8&\"_old\",Ammortamento_Finanziario!$H:$L,5,FALSE),VLOOKUP($M8,TT_Tabelle_Riferimento!$H$31:$I$50,2,FALSE))","v":40},{"$f":"+IFERROR(VLOOKUP(GG$6&\"-\"&$M8&\"_old\",Ammortamento_Finanziario!$H:$L,5,FALSE),VLOOKUP($M8,TT_Tabelle_Riferimento!$H$31:$I$50,2,FALSE))","v":40},{"$f":"+IFERROR(VLOOKUP(GH$6&\"-\"&$M8&\"_old\",Ammortamento_Finanziario!$H:$L,5,FALSE),VLOOKUP($M8,TT_Tabelle_Riferimento!$H$31:$I$50,2,FALSE))","v":40},{"$f":"+IFERROR(VLOOKUP(GI$6&\"-\"&$M8&\"_old\",Ammortamento_Finanziario!$H:$L,5,FALSE),VLOOKUP($M8,TT_Tabelle_Riferimento!$H$31:$I$50,2,FALSE))","v":40},{"$f":"+IFERROR(VLOOKUP(GJ$6&\"-\"&$M8&\"_old\",Ammortamento_Finanziario!$H:$L,5,FALSE),VLOOKUP($M8,TT_Tabelle_Riferimento!$H$31:$I$50,2,FALSE))","v":40},{"$f":"+IFERROR(VLOOKUP(GK$6&\"-\"&$M8&\"_old\",Ammortamento_Finanziario!$H:$L,5,FALSE),VLOOKUP($M8,TT_Tabelle_Riferimento!$H$31:$I$50,2,FALSE))","v":40},{"$f":"+IFERROR(VLOOKUP(GL$6&\"-\"&$M8&\"_old\",Ammortamento_Finanziario!$H:$L,5,FALSE),VLOOKUP($M8,TT_Tabelle_Riferimento!$H$31:$I$50,2,FALSE))","v":40},{"$f":"+IFERROR(VLOOKUP(GM$6&\"-\"&$M8&\"_old\",Ammortamento_Finanziario!$H:$L,5,FALSE),VLOOKUP($M8,TT_Tabelle_Riferimento!$H$31:$I$50,2,FALSE))","v":40},{"$f":"+IFERROR(VLOOKUP(GN$6&\"-\"&$M8&\"_old\",Ammortamento_Finanziario!$H:$L,5,FALSE),VLOOKUP($M8,TT_Tabelle_Riferimento!$H$31:$I$50,2,FALSE))","v":40},{"$f":"+IFERROR(VLOOKUP(GO$6&\"-\"&$M8&\"_old\",Ammortamento_Finanziario!$H:$L,5,FALSE),VLOOKUP($M8,TT_Tabelle_Riferimento!$H$31:$I$50,2,FALSE))","v":40},{"$f":"+IFERROR(VLOOKUP(GP$6&\"-\"&$M8&\"_old\",Ammortamento_Finanziario!$H:$L,5,FALSE),VLOOKUP($M8,TT_Tabelle_Riferimento!$H$31:$I$50,2,FALSE))","v":40},{"$f":"+IFERROR(VLOOKUP(GQ$6&\"-\"&$M8&\"_old\",Ammortamento_Finanziario!$H:$L,5,FALSE),VLOOKUP($M8,TT_Tabelle_Riferimento!$H$31:$I$50,2,FALSE))","v":40},{"$f":"+IFERROR(VLOOKUP(GR$6&\"-\"&$M8&\"_old\",Ammortamento_Finanziario!$H:$L,5,FALSE),VLOOKUP($M8,TT_Tabelle_Riferimento!$H$31:$I$50,2,FALSE))","v":40},{"$f":"+IFERROR(VLOOKUP(GS$6&\"-\"&$M8&\"_old\",Ammortamento_Finanziario!$H:$L,5,FALSE),VLOOKUP($M8,TT_Tabelle_Riferimento!$H$31:$I$50,2,FALSE))","v":40},{"$f":"+IFERROR(VLOOKUP(GT$6&\"-\"&$M8&\"_old\",Ammortamento_Finanziario!$H:$L,5,FALSE),VLOOKUP($M8,TT_Tabelle_Riferimento!$H$31:$I$50,2,FALSE))","v":40},{"$f":"+IFERROR(VLOOKUP(GU$6&\"-\"&$M8&\"_old\",Ammortamento_Finanziario!$H:$L,5,FALSE),VLOOKUP($M8,TT_Tabelle_Riferimento!$H$31:$I$50,2,FALSE))","v":40},{"$f":"+IFERROR(VLOOKUP(GV$6&\"-\"&$M8&\"_old\",Ammortamento_Finanziario!$H:$L,5,FALSE),VLOOKUP($M8,TT_Tabelle_Riferimento!$H$31:$I$50,2,FALSE))","v":40},{"$f":"+IFERROR(VLOOKUP(GW$6&\"-\"&$M8&\"_old\",Ammortamento_Finanziario!$H:$L,5,FALSE),VLOOKUP($M8,TT_Tabelle_Riferimento!$H$31:$I$50,2,FALSE))","v":40},{"$f":"+IFERROR(VLOOKUP(GX$6&\"-\"&$M8&\"_old\",Ammortamento_Finanziario!$H:$L,5,FALSE),VLOOKUP($M8,TT_Tabelle_Riferimento!$H$31:$I$50,2,FALSE))","v":40},{"$f":"+IFERROR(VLOOKUP(GY$6&\"-\"&$M8&\"_old\",Ammortamento_Finanziario!$H:$L,5,FALSE),VLOOKUP($M8,TT_Tabelle_Riferimento!$H$31:$I$50,2,FALSE))","v":40},{"$f":"+IFERROR(VLOOKUP(GZ$6&\"-\"&$M8&\"_old\",Ammortamento_Finanziario!$H:$L,5,FALSE),VLOOKUP($M8,TT_Tabelle_Riferimento!$H$31:$I$50,2,FALSE))","v":40},{"$f":"+IFERROR(VLOOKUP(HA$6&\"-\"&$M8&\"_old\",Ammortamento_Finanziario!$H:$L,5,FALSE),VLOOKUP($M8,TT_Tabelle_Riferimento!$H$31:$I$50,2,FALSE))","v":40},{"$f":"+IFERROR(VLOOKUP(HB$6&\"-\"&$M8&\"_old\",Ammortamento_Finanziario!$H:$L,5,FALSE),VLOOKUP($M8,TT_Tabelle_Riferimento!$H$31:$I$50,2,FALSE))","v":40},{"$f":"+IFERROR(VLOOKUP(HC$6&\"-\"&$M8&\"_old\",Ammortamento_Finanziario!$H:$L,5,FALSE),VLOOKUP($M8,TT_Tabelle_Riferimento!$H$31:$I$50,2,FALSE))","v":40},{"$f":"+IFERROR(VLOOKUP(HD$6&\"-\"&$M8&\"_old\",Ammortamento_Finanziario!$H:$L,5,FALSE),VLOOKUP($M8,TT_Tabelle_Riferimento!$H$31:$I$50,2,FALSE))","v":40},{"$f":"+IFERROR(VLOOKUP(HE$6&\"-\"&$M8&\"_old\",Ammortamento_Finanziario!$H:$L,5,FALSE),VLOOKUP($M8,TT_Tabelle_Riferimento!$H$31:$I$50,2,FALSE))","v":40},{"$f":"+IFERROR(VLOOKUP(HF$6&\"-\"&$M8&\"_old\",Ammortamento_Finanziario!$H:$L,5,FALSE),VLOOKUP($M8,TT_Tabelle_Riferimento!$H$31:$I$50,2,FALSE))","v":40},{"$f":"+IFERROR(VLOOKUP(HG$6&\"-\"&$M8&\"_old\",Ammortamento_Finanziario!$H:$L,5,FALSE),VLOOKUP($M8,TT_Tabelle_Riferimento!$H$31:$I$50,2,FALSE))","v":40},{"$f":"+IFERROR(VLOOKUP(HH$6&\"-\"&$M8&\"_old\",Ammortamento_Finanziario!$H:$L,5,FALSE),VLOOKUP($M8,TT_Tabelle_Riferimento!$H$31:$I$50,2,FALSE))","v":40},{"$f":"+IFERROR(VLOOKUP(HI$6&\"-\"&$M8&\"_old\",Ammortamento_Finanziario!$H:$L,5,FALSE),VLOOKUP($M8,TT_Tabelle_Riferimento!$H$31:$I$50,2,FALSE))","v":40},{"$f":"+IFERROR(VLOOKUP(HJ$6&\"-\"&$M8&\"_old\",Ammortamento_Finanziario!$H:$L,5,FALSE),VLOOKUP($M8,TT_Tabelle_Riferimento!$H$31:$I$50,2,FALSE))","v":40},{"$f":"+IFERROR(VLOOKUP(HK$6&\"-\"&$M8&\"_old\",Ammortamento_Finanziario!$H:$L,5,FALSE),VLOOKUP($M8,TT_Tabelle_Riferimento!$H$31:$I$50,2,FALSE))","v":40},{"$f":"+IFERROR(VLOOKUP(HL$6&\"-\"&$M8&\"_old\",Ammortamento_Finanziario!$H:$L,5,FALSE),VLOOKUP($M8,TT_Tabelle_Riferimento!$H$31:$I$50,2,FALSE))","v":40},{"$f":"+IFERROR(VLOOKUP(HM$6&\"-\"&$M8&\"_old\",Ammortamento_Finanziario!$H:$L,5,FALSE),VLOOKUP($M8,TT_Tabelle_Riferimento!$H$31:$I$50,2,FALSE))","v":40},{"$f":"+IFERROR(VLOOKUP(HN$6&\"-\"&$M8&\"_old\",Ammortamento_Finanziario!$H:$L,5,FALSE),VLOOKUP($M8,TT_Tabelle_Riferimento!$H$31:$I$50,2,FALSE))","v":40},{"$f":"+IFERROR(VLOOKUP(HO$6&\"-\"&$M8&\"_old\",Ammortamento_Finanziario!$H:$L,5,FALSE),VLOOKUP($M8,TT_Tabelle_Riferimento!$H$31:$I$50,2,FALSE))","v":40},{"$f":"+IFERROR(VLOOKUP(HP$6&\"-\"&$M8&\"_old\",Ammortamento_Finanziario!$H:$L,5,FALSE),VLOOKUP($M8,TT_Tabelle_Riferimento!$H$31:$I$50,2,FALSE))","v":40},{"$f":"+IFERROR(VLOOKUP(HQ$6&\"-\"&$M8&\"_old\",Ammortamento_Finanziario!$H:$L,5,FALSE),VLOOKUP($M8,TT_Tabelle_Riferimento!$H$31:$I$50,2,FALSE))","v":40},{"$f":"+IFERROR(VLOOKUP(HR$6&\"-\"&$M8&\"_old\",Ammortamento_Finanziario!$H:$L,5,FALSE),VLOOKUP($M8,TT_Tabelle_Riferimento!$H$31:$I$50,2,FALSE))","v":40},{"$f":"+IFERROR(VLOOKUP(HS$6&\"-\"&$M8&\"_old\",Ammortamento_Finanziario!$H:$L,5,FALSE),VLOOKUP($M8,TT_Tabelle_Riferimento!$H$31:$I$50,2,FALSE))","v":40},{"$f":"+IFERROR(VLOOKUP(HT$6&\"-\"&$M8&\"_old\",Ammortamento_Finanziario!$H:$L,5,FALSE),VLOOKUP($M8,TT_Tabelle_Riferimento!$H$31:$I$50,2,FALSE))","v":40},{"$f":"+IFERROR(VLOOKUP(HU$6&\"-\"&$M8&\"_old\",Ammortamento_Finanziario!$H:$L,5,FALSE),VLOOKUP($M8,TT_Tabelle_Riferimento!$H$31:$I$50,2,FALSE))","v":40},{"$f":"+IFERROR(VLOOKUP(HV$6&\"-\"&$M8&\"_old\",Ammortamento_Finanziario!$H:$L,5,FALSE),VLOOKUP($M8,TT_Tabelle_Riferimento!$H$31:$I$50,2,FALSE))","v":40},{"$f":"+IFERROR(VLOOKUP(HW$6&\"-\"&$M8&\"_old\",Ammortamento_Finanziario!$H:$L,5,FALSE),VLOOKUP($M8,TT_Tabelle_Riferimento!$H$31:$I$50,2,FALSE))","v":40},{"$f":"+IFERROR(VLOOKUP(HX$6&\"-\"&$M8&\"_old\",Ammortamento_Finanziario!$H:$L,5,FALSE),VLOOKUP($M8,TT_Tabelle_Riferimento!$H$31:$I$50,2,FALSE))","v":40},{"$f":"+IFERROR(VLOOKUP(HY$6&\"-\"&$M8&\"_old\",Ammortamento_Finanziario!$H:$L,5,FALSE),VLOOKUP($M8,TT_Tabelle_Riferimento!$H$31:$I$50,2,FALSE))","v":40},{"$f":"+IFERROR(VLOOKUP(HZ$6&\"-\"&$M8&\"_old\",Ammortamento_Finanziario!$H:$L,5,FALSE),VLOOKUP($M8,TT_Tabelle_Riferimento!$H$31:$I$50,2,FALSE))","v":40},{"$f":"+IFERROR(VLOOKUP(IA$6&\"-\"&$M8&\"_old\",Ammortamento_Finanziario!$H:$L,5,FALSE),VLOOKUP($M8,TT_Tabelle_Riferimento!$H$31:$I$50,2,FALSE))","v":40},{"$f":"+IFERROR(VLOOKUP(IB$6&\"-\"&$M8&\"_old\",Ammortamento_Finanziario!$H:$L,5,FALSE),VLOOKUP($M8,TT_Tabelle_Riferimento!$H$31:$I$50,2,FALSE))","v":40},{"$f":"+IFERROR(VLOOKUP(IC$6&\"-\"&$M8&\"_old\",Ammortamento_Finanziario!$H:$L,5,FALSE),VLOOKUP($M8,TT_Tabelle_Riferimento!$H$31:$I$50,2,FALSE))","v":40},{"$f":"+IFERROR(VLOOKUP(ID$6&\"-\"&$M8&\"_old\",Ammortamento_Finanziario!$H:$L,5,FALSE),VLOOKUP($M8,TT_Tabelle_Riferimento!$H$31:$I$50,2,FALSE))","v":40},{"$f":"+IFERROR(VLOOKUP(IE$6&\"-\"&$M8&\"_old\",Ammortamento_Finanziario!$H:$L,5,FALSE),VLOOKUP($M8,TT_Tabelle_Riferimento!$H$31:$I$50,2,FALSE))","v":40},{"$f":"+IFERROR(VLOOKUP(IF$6&\"-\"&$M8&\"_old\",Ammortamento_Finanziario!$H:$L,5,FALSE),VLOOKUP($M8,TT_Tabelle_Riferimento!$H$31:$I$50,2,FALSE))","v":40},{"$f":"+IFERROR(VLOOKUP(IG$6&\"-\"&$M8&\"_old\",Ammortamento_Finanziario!$H:$L,5,FALSE),VLOOKUP($M8,TT_Tabelle_Riferimento!$H$31:$I$50,2,FALSE))","v":40},{"$f":"+IFERROR(VLOOKUP(IH$6&\"-\"&$M8&\"_old\",Ammortamento_Finanziario!$H:$L,5,FALSE),VLOOKUP($M8,TT_Tabelle_Riferimento!$H$31:$I$50,2,FALSE))","v":40},{"$f":"+IFERROR(VLOOKUP(II$6&\"-\"&$M8&\"_old\",Ammortamento_Finanziario!$H:$L,5,FALSE),VLOOKUP($M8,TT_Tabelle_Riferimento!$H$31:$I$50,2,FALSE))","v":40},{"$f":"+IFERROR(VLOOKUP(IJ$6&\"-\"&$M8&\"_old\",Ammortamento_Finanziario!$H:$L,5,FALSE),VLOOKUP($M8,TT_Tabelle_Riferimento!$H$31:$I$50,2,FALSE))","v":40},{"$f":"+IFERROR(VLOOKUP(IK$6&\"-\"&$M8&\"_old\",Ammortamento_Finanziario!$H:$L,5,FALSE),VLOOKUP($M8,TT_Tabelle_Riferimento!$H$31:$I$50,2,FALSE))","v":40},{"$f":"+IFERROR(VLOOKUP(IL$6&\"-\"&$M8&\"_old\",Ammortamento_Finanziario!$H:$L,5,FALSE),VLOOKUP($M8,TT_Tabelle_Riferimento!$H$31:$I$50,2,FALSE))","v":40},{"$f":"+IFERROR(VLOOKUP(IM$6&\"-\"&$M8&\"_old\",Ammortamento_Finanziario!$H:$L,5,FALSE),VLOOKUP($M8,TT_Tabelle_Riferimento!$H$31:$I$50,2,FALSE))","v":40},{"$f":"+IFERROR(VLOOKUP(IN$6&\"-\"&$M8&\"_old\",Ammortamento_Finanziario!$H:$L,5,FALSE),VLOOKUP($M8,TT_Tabelle_Riferimento!$H$31:$I$50,2,FALSE))","v":40},{"$f":"+IFERROR(VLOOKUP(IO$6&\"-\"&$M8&\"_old\",Ammortamento_Finanziario!$H:$L,5,FALSE),VLOOKUP($M8,TT_Tabelle_Riferimento!$H$31:$I$50,2,FALSE))","v":40},{"$f":"+IFERROR(VLOOKUP(IP$6&\"-\"&$M8&\"_old\",Ammortamento_Finanziario!$H:$L,5,FALSE),VLOOKUP($M8,TT_Tabelle_Riferimento!$H$31:$I$50,2,FALSE))","v":40},{"$f":"+IFERROR(VLOOKUP(IQ$6&\"-\"&$M8&\"_old\",Ammortamento_Finanziario!$H:$L,5,FALSE),VLOOKUP($M8,TT_Tabelle_Riferimento!$H$31:$I$50,2,FALSE))","v":40},{"$f":"+IFERROR(VLOOKUP(IR$6&\"-\"&$M8&\"_old\",Ammortamento_Finanziario!$H:$L,5,FALSE),VLOOKUP($M8,TT_Tabelle_Riferimento!$H$31:$I$50,2,FALSE))","v":40},{"$f":"+IFERROR(VLOOKUP(IS$6&\"-\"&$M8&\"_old\",Ammortamento_Finanziario!$H:$L,5,FALSE),VLOOKUP($M8,TT_Tabelle_Riferimento!$H$31:$I$50,2,FALSE))","v":40},{"$f":"+IFERROR(VLOOKUP(IT$6&\"-\"&$M8&\"_old\",Ammortamento_Finanziario!$H:$L,5,FALSE),VLOOKUP($M8,TT_Tabelle_Riferimento!$H$31:$I$50,2,FALSE))","v":40},{"$f":"+IFERROR(VLOOKUP(IU$6&\"-\"&$M8&\"_old\",Ammortamento_Finanziario!$H:$L,5,FALSE),VLOOKUP($M8,TT_Tabelle_Riferimento!$H$31:$I$50,2,FALSE))","v":40},{"$f":"+IFERROR(VLOOKUP(IV$6&\"-\"&$M8&\"_old\",Ammortamento_Finanziario!$H:$L,5,FALSE),VLOOKUP($M8,TT_Tabelle_Riferimento!$H$31:$I$50,2,FALSE))","v":40},{"$f":"+IFERROR(VLOOKUP(IW$6&\"-\"&$M8&\"_old\",Ammortamento_Finanziario!$H:$L,5,FALSE),VLOOKUP($M8,TT_Tabelle_Riferimento!$H$31:$I$50,2,FALSE))","v":40},{"$f":"+IFERROR(VLOOKUP(IX$6&\"-\"&$M8&\"_old\",Ammortamento_Finanziario!$H:$L,5,FALSE),VLOOKUP($M8,TT_Tabelle_Riferimento!$H$31:$I$50,2,FALSE))","v":40},{"$f":"+IFERROR(VLOOKUP(IY$6&\"-\"&$M8&\"_old\",Ammortamento_Finanziario!$H:$L,5,FALSE),VLOOKUP($M8,TT_Tabelle_Riferimento!$H$31:$I$50,2,FALSE))","v":40},{"$f":"+IFERROR(VLOOKUP(IZ$6&\"-\"&$M8&\"_old\",Ammortamento_Finanziario!$H:$L,5,FALSE),VLOOKUP($M8,TT_Tabelle_Riferimento!$H$31:$I$50,2,FALSE))","v":40},{"$f":"+IFERROR(VLOOKUP(JA$6&\"-\"&$M8&\"_old\",Ammortamento_Finanziario!$H:$L,5,FALSE),VLOOKUP($M8,TT_Tabelle_Riferimento!$H$31:$I$50,2,FALSE))","v":40},{"$f":"+IFERROR(VLOOKUP(JB$6&\"-\"&$M8&\"_old\",Ammortamento_Finanziario!$H:$L,5,FALSE),VLOOKUP($M8,TT_Tabelle_Riferimento!$H$31:$I$50,2,FALSE))","v":40},{"$f":"+IFERROR(VLOOKUP(JC$6&\"-\"&$M8&\"_old\",Ammortamento_Finanziario!$H:$L,5,FALSE),VLOOKUP($M8,TT_Tabelle_Riferimento!$H$31:$I$50,2,FALSE))","v":40},{"$f":"+IFERROR(VLOOKUP(JD$6&\"-\"&$M8&\"_old\",Ammortamento_Finanziario!$H:$L,5,FALSE),VLOOKUP($M8,TT_Tabelle_Riferimento!$H$31:$I$50,2,FALSE))","v":40},{"$f":"+IFERROR(VLOOKUP(JE$6&\"-\"&$M8&\"_old\",Ammortamento_Finanziario!$H:$L,5,FALSE),VLOOKUP($M8,TT_Tabelle_Riferimento!$H$31:$I$50,2,FALSE))","v":40},{"$f":"+IFERROR(VLOOKUP(JF$6&\"-\"&$M8&\"_old\",Ammortamento_Finanziario!$H:$L,5,FALSE),VLOOKUP($M8,TT_Tabelle_Riferimento!$H$31:$I$50,2,FALSE))","v":40},{"$f":"+IFERROR(VLOOKUP(JG$6&\"-\"&$M8&\"_old\",Ammortamento_Finanziario!$H:$L,5,FALSE),VLOOKUP($M8,TT_Tabelle_Riferimento!$H$31:$I$50,2,FALSE))","v":40},{"$f":"+IFERROR(VLOOKUP(JH$6&\"-\"&$M8&\"_old\",Ammortamento_Finanziario!$H:$L,5,FALSE),VLOOKUP($M8,TT_Tabelle_Riferimento!$H$31:$I$50,2,FALSE))","v":40},{"$f":"+IFERROR(VLOOKUP(JI$6&\"-\"&$M8&\"_old\",Ammortamento_Finanziario!$H:$L,5,FALSE),VLOOKUP($M8,TT_Tabelle_Riferimento!$H$31:$I$50,2,FALSE))","v":40},{"$f":"+IFERROR(VLOOKUP(JJ$6&\"-\"&$M8&\"_old\",Ammortamento_Finanziario!$H:$L,5,FALSE),VLOOKUP($M8,TT_Tabelle_Riferimento!$H$31:$I$50,2,FALSE))","v":40},{"$f":"+IFERROR(VLOOKUP(JK$6&\"-\"&$M8&\"_old\",Ammortamento_Finanziario!$H:$L,5,FALSE),VLOOKUP($M8,TT_Tabelle_Riferimento!$H$31:$I$50,2,FALSE))","v":40},{"$f":"+IFERROR(VLOOKUP(JL$6&\"-\"&$M8&\"_old\",Ammortamento_Finanziario!$H:$L,5,FALSE),VLOOKUP($M8,TT_Tabelle_Riferimento!$H$31:$I$50,2,FALSE))","v":40},{"$f":"+IFERROR(VLOOKUP(JM$6&\"-\"&$M8&\"_old\",Ammortamento_Finanziario!$H:$L,5,FALSE),VLOOKUP($M8,TT_Tabelle_Riferimento!$H$31:$I$50,2,FALSE))","v":40},{"$f":"+IFERROR(VLOOKUP(JN$6&\"-\"&$M8&\"_old\",Ammortamento_Finanziario!$H:$L,5,FALSE),VLOOKUP($M8,TT_Tabelle_Riferimento!$H$31:$I$50,2,FALSE))","v":40},{"$f":"+IFERROR(VLOOKUP(JO$6&\"-\"&$M8&\"_old\",Ammortamento_Finanziario!$H:$L,5,FALSE),VLOOKUP($M8,TT_Tabelle_Riferimento!$H$31:$I$50,2,FALSE))","v":40},{"$f":"+IFERROR(VLOOKUP(JP$6&\"-\"&$M8&\"_old\",Ammortamento_Finanziario!$H:$L,5,FALSE),VLOOKUP($M8,TT_Tabelle_Riferimento!$H$31:$I$50,2,FALSE))","v":40},{"$f":"+IFERROR(VLOOKUP(JQ$6&\"-\"&$M8&\"_old\",Ammortamento_Finanziario!$H:$L,5,FALSE),VLOOKUP($M8,TT_Tabelle_Riferimento!$H$31:$I$50,2,FALSE))","v":40},{"$f":"+IFERROR(VLOOKUP(JR$6&\"-\"&$M8&\"_old\",Ammortamento_Finanziario!$H:$L,5,FALSE),VLOOKUP($M8,TT_Tabelle_Riferimento!$H$31:$I$50,2,FALSE))","v":40},{"$f":"+IFERROR(VLOOKUP(JS$6&\"-\"&$M8&\"_old\",Ammortamento_Finanziario!$H:$L,5,FALSE),VLOOKUP($M8,TT_Tabelle_Riferimento!$H$31:$I$50,2,FALSE))","v":40},{"$f":"+IFERROR(VLOOKUP(JT$6&\"-\"&$M8&\"_old\",Ammortamento_Finanziario!$H:$L,5,FALSE),VLOOKUP($M8,TT_Tabelle_Riferimento!$H$31:$I$50,2,FALSE))","v":40},{"$f":"+IFERROR(VLOOKUP(JU$6&\"-\"&$M8&\"_old\",Ammortamento_Finanziario!$H:$L,5,FALSE),VLOOKUP($M8,TT_Tabelle_Riferimento!$H$31:$I$50,2,FALSE))","v":40},{"$f":"+IFERROR(VLOOKUP(JV$6&\"-\"&$M8&\"_old\",Ammortamento_Finanziario!$H:$L,5,FALSE),VLOOKUP($M8,TT_Tabelle_Riferimento!$H$31:$I$50,2,FALSE))","v":40},{"$f":"+IFERROR(VLOOKUP(JW$6&\"-\"&$M8&\"_old\",Ammortamento_Finanziario!$H:$L,5,FALSE),VLOOKUP($M8,TT_Tabelle_Riferimento!$H$31:$I$50,2,FALSE))","v":40},{"$f":"+IFERROR(VLOOKUP(JX$6&\"-\"&$M8&\"_old\",Ammortamento_Finanziario!$H:$L,5,FALSE),VLOOKUP($M8,TT_Tabelle_Riferimento!$H$31:$I$50,2,FALSE))","v":40},{"$f":"+IFERROR(VLOOKUP(JY$6&\"-\"&$M8&\"_old\",Ammortamento_Finanziario!$H:$L,5,FALSE),VLOOKUP($M8,TT_Tabelle_Riferimento!$H$31:$I$50,2,FALSE))","v":40},{"$f":"+IFERROR(VLOOKUP(JZ$6&\"-\"&$M8&\"_old\",Ammortamento_Finanziario!$H:$L,5,FALSE),VLOOKUP($M8,TT_Tabelle_Riferimento!$H$31:$I$50,2,FALSE))","v":40},{"$f":"+IFERROR(VLOOKUP(KA$6&\"-\"&$M8&\"_old\",Ammortamento_Finanziario!$H:$L,5,FALSE),VLOOKUP($M8,TT_Tabelle_Riferimento!$H$31:$I$50,2,FALSE))","v":40},{"$f":"+IFERROR(VLOOKUP(KB$6&\"-\"&$M8&\"_old\",Ammortamento_Finanziario!$H:$L,5,FALSE),VLOOKUP($M8,TT_Tabelle_Riferimento!$H$31:$I$50,2,FALSE))","v":40},{"$f":"+IFERROR(VLOOKUP(KC$6&\"-\"&$M8&\"_old\",Ammortamento_Finanziario!$H:$L,5,FALSE),VLOOKUP($M8,TT_Tabelle_Riferimento!$H$31:$I$50,2,FALSE))","v":40},{"$f":"+IFERROR(VLOOKUP(KD$6&\"-\"&$M8&\"_old\",Ammortamento_Finanziario!$H:$L,5,FALSE),VLOOKUP($M8,TT_Tabelle_Riferimento!$H$31:$I$50,2,FALSE))","v":40},{"$f":"+IFERROR(VLOOKUP(KE$6&\"-\"&$M8&\"_old\",Ammortamento_Finanziario!$H:$L,5,FALSE),VLOOKUP($M8,TT_Tabelle_Riferimento!$H$31:$I$50,2,FALSE))","v":40},{"$f":"+IFERROR(VLOOKUP(KF$6&\"-\"&$M8&\"_old\",Ammortamento_Finanziario!$H:$L,5,FALSE),VLOOKUP($M8,TT_Tabelle_Riferimento!$H$31:$I$50,2,FALSE))","v":40},{"$f":"+IFERROR(VLOOKUP(KG$6&\"-\"&$M8&\"_old\",Ammortamento_Finanziario!$H:$L,5,FALSE),VLOOKUP($M8,TT_Tabelle_Riferimento!$H$31:$I$50,2,FALSE))","v":40},{"$f":"+IFERROR(VLOOKUP(KH$6&\"-\"&$M8&\"_old\",Ammortamento_Finanziario!$H:$L,5,FALSE),VLOOKUP($M8,TT_Tabelle_Riferimento!$H$31:$I$50,2,FALSE))","v":40},{"$f":"+IFERROR(VLOOKUP(KI$6&\"-\"&$M8&\"_old\",Ammortamento_Finanziario!$H:$L,5,FALSE),VLOOKUP($M8,TT_Tabelle_Riferimento!$H$31:$I$50,2,FALSE))","v":40},{"$f":"+IFERROR(VLOOKUP(KJ$6&\"-\"&$M8&\"_old\",Ammortamento_Finanziario!$H:$L,5,FALSE),VLOOKUP($M8,TT_Tabelle_Riferimento!$H$31:$I$50,2,FALSE))","v":40},{"$f":"+IFERROR(VLOOKUP(KK$6&\"-\"&$M8&\"_old\",Ammortamento_Finanziario!$H:$L,5,FALSE),VLOOKUP($M8,TT_Tabelle_Riferimento!$H$31:$I$50,2,FALSE))","v":40},{"$f":"+IFERROR(VLOOKUP(KL$6&\"-\"&$M8&\"_old\",Ammortamento_Finanziario!$H:$L,5,FALSE),VLOOKUP($M8,TT_Tabelle_Riferimento!$H$31:$I$50,2,FALSE))","v":40},{"$f":"+IFERROR(VLOOKUP(KM$6&\"-\"&$M8&\"_old\",Ammortamento_Finanziario!$H:$L,5,FALSE),VLOOKUP($M8,TT_Tabelle_Riferimento!$H$31:$I$50,2,FALSE))","v":40},{"$f":"+IFERROR(VLOOKUP(KN$6&\"-\"&$M8&\"_old\",Ammortamento_Finanziario!$H:$L,5,FALSE),VLOOKUP($M8,TT_Tabelle_Riferimento!$H$31:$I$50,2,FALSE))","v":40},{"$f":"+IFERROR(VLOOKUP(KO$6&\"-\"&$M8&\"_old\",Ammortamento_Finanziario!$H:$L,5,FALSE),VLOOKUP($M8,TT_Tabelle_Riferimento!$H$31:$I$50,2,FALSE))","v":40},{"$f":"+IFERROR(VLOOKUP(KP$6&\"-\"&$M8&\"_old\",Ammortamento_Finanziario!$H:$L,5,FALSE),VLOOKUP($M8,TT_Tabelle_Riferimento!$H$31:$I$50,2,FALSE))","v":40},{"$f":"+IFERROR(VLOOKUP(KQ$6&\"-\"&$M8&\"_old\",Ammortamento_Finanziario!$H:$L,5,FALSE),VLOOKUP($M8,TT_Tabelle_Riferimento!$H$31:$I$50,2,FALSE))","v":40},{"$f":"+IFERROR(VLOOKUP(KR$6&\"-\"&$M8&\"_old\",Ammortamento_Finanziario!$H:$L,5,FALSE),VLOOKUP($M8,TT_Tabelle_Riferimento!$H$31:$I$50,2,FALSE))","v":40},{"$f":"+IFERROR(VLOOKUP(KS$6&\"-\"&$M8&\"_old\",Ammortamento_Finanziario!$H:$L,5,FALSE),VLOOKUP($M8,TT_Tabelle_Riferimento!$H$31:$I$50,2,FALSE))","v":40},{"$f":"+IFERROR(VLOOKUP(KT$6&\"-\"&$M8&\"_old\",Ammortamento_Finanziario!$H:$L,5,FALSE),VLOOKUP($M8,TT_Tabelle_Riferimento!$H$31:$I$50,2,FALSE))","v":40},{"$f":"+IFERROR(VLOOKUP(KU$6&\"-\"&$M8&\"_old\",Ammortamento_Finanziario!$H:$L,5,FALSE),VLOOKUP($M8,TT_Tabelle_Riferimento!$H$31:$I$50,2,FALSE))","v":40},{"$f":"+IFERROR(VLOOKUP(KV$6&\"-\"&$M8&\"_old\",Ammortamento_Finanziario!$H:$L,5,FALSE),VLOOKUP($M8,TT_Tabelle_Riferimento!$H$31:$I$50,2,FALSE))","v":40},{"$f":"+IFERROR(VLOOKUP(KW$6&\"-\"&$M8&\"_old\",Ammortamento_Finanziario!$H:$L,5,FALSE),VLOOKUP($M8,TT_Tabelle_Riferimento!$H$31:$I$50,2,FALSE))","v":40},{"$f":"+IFERROR(VLOOKUP(KX$6&\"-\"&$M8&\"_old\",Ammortamento_Finanziario!$H:$L,5,FALSE),VLOOKUP($M8,TT_Tabelle_Riferimento!$H$31:$I$50,2,FALSE))","v":40},{"$f":"+IFERROR(VLOOKUP(KY$6&\"-\"&$M8&\"_old\",Ammortamento_Finanziario!$H:$L,5,FALSE),VLOOKUP($M8,TT_Tabelle_Riferimento!$H$31:$I$50,2,FALSE))","v":40},{"$f":"+IFERROR(VLOOKUP(KZ$6&\"-\"&$M8&\"_old\",Ammortamento_Finanziario!$H:$L,5,FALSE),VLOOKUP($M8,TT_Tabelle_Riferimento!$H$31:$I$50,2,FALSE))","v":40},{"$f":"+IFERROR(VLOOKUP(LA$6&\"-\"&$M8&\"_old\",Ammortamento_Finanziario!$H:$L,5,FALSE),VLOOKUP($M8,TT_Tabelle_Riferimento!$H$31:$I$50,2,FALSE))","v":40},{"$f":"+IFERROR(VLOOKUP(LB$6&\"-\"&$M8&\"_old\",Ammortamento_Finanziario!$H:$L,5,FALSE),VLOOKUP($M8,TT_Tabelle_Riferimento!$H$31:$I$50,2,FALSE))","v":40},{"$f":"+IFERROR(VLOOKUP(LC$6&\"-\"&$M8&\"_old\",Ammortamento_Finanziario!$H:$L,5,FALSE),VLOOKUP($M8,TT_Tabelle_Riferimento!$H$31:$I$50,2,FALSE))","v":40},{"$f":"+IFERROR(VLOOKUP(LD$6&\"-\"&$M8&\"_old\",Ammortamento_Finanziario!$H:$L,5,FALSE),VLOOKUP($M8,TT_Tabelle_Riferimento!$H$31:$I$50,2,FALSE))","v":40},{"$f":"+IFERROR(VLOOKUP(LE$6&\"-\"&$M8&\"_old\",Ammortamento_Finanziario!$H:$L,5,FALSE),VLOOKUP($M8,TT_Tabelle_Riferimento!$H$31:$I$50,2,FALSE))","v":40},{"$f":"+IFERROR(VLOOKUP(LF$6&\"-\"&$M8&\"_old\",Ammortamento_Finanziario!$H:$L,5,FALSE),VLOOKUP($M8,TT_Tabelle_Riferimento!$H$31:$I$50,2,FALSE))","v":40},{"$f":"+IFERROR(VLOOKUP(LG$6&\"-\"&$M8&\"_old\",Ammortamento_Finanziario!$H:$L,5,FALSE),VLOOKUP($M8,TT_Tabelle_Riferimento!$H$31:$I$50,2,FALSE))","v":40},{"$f":"+IFERROR(VLOOKUP(LH$6&\"-\"&$M8&\"_old\",Ammortamento_Finanziario!$H:$L,5,FALSE),VLOOKUP($M8,TT_Tabelle_Riferimento!$H$31:$I$50,2,FALSE))","v":40},{"$f":"+IFERROR(VLOOKUP(LI$6&\"-\"&$M8&\"_old\",Ammortamento_Finanziario!$H:$L,5,FALSE),VLOOKUP($M8,TT_Tabelle_Riferimento!$H$31:$I$50,2,FALSE))","v":40},{"$f":"+IFERROR(VLOOKUP(LJ$6&\"-\"&$M8&\"_old\",Ammortamento_Finanziario!$H:$L,5,FALSE),VLOOKUP($M8,TT_Tabelle_Riferimento!$H$31:$I$50,2,FALSE))","v":40},{"$f":"+IFERROR(VLOOKUP(LK$6&\"-\"&$M8&\"_old\",Ammortamento_Finanziario!$H:$L,5,FALSE),VLOOKUP($M8,TT_Tabelle_Riferimento!$H$31:$I$50,2,FALSE))","v":40},{"$f":"+IFERROR(VLOOKUP(LL$6&\"-\"&$M8&\"_old\",Ammortamento_Finanziario!$H:$L,5,FALSE),VLOOKUP($M8,TT_Tabelle_Riferimento!$H$31:$I$50,2,FALSE))","v":40},{"$f":"+IFERROR(VLOOKUP(LM$6&\"-\"&$M8&\"_old\",Ammortamento_Finanziario!$H:$L,5,FALSE),VLOOKUP($M8,TT_Tabelle_Riferimento!$H$31:$I$50,2,FALSE))","v":40},{"$f":"+IFERROR(VLOOKUP(LN$6&\"-\"&$M8&\"_old\",Ammortamento_Finanziario!$H:$L,5,FALSE),VLOOKUP($M8,TT_Tabelle_Riferimento!$H$31:$I$50,2,FALSE))","v":40},{"$f":"+IFERROR(VLOOKUP(LO$6&\"-\"&$M8&\"_old\",Ammortamento_Finanziario!$H:$L,5,FALSE),VLOOKUP($M8,TT_Tabelle_Riferimento!$H$31:$I$50,2,FALSE))","v":40},{"$f":"+IFERROR(VLOOKUP(LP$6&\"-\"&$M8&\"_old\",Ammortamento_Finanziario!$H:$L,5,FALSE),VLOOKUP($M8,TT_Tabelle_Riferimento!$H$31:$I$50,2,FALSE))","v":40},{"$f":"+IFERROR(VLOOKUP(LQ$6&\"-\"&$M8&\"_old\",Ammortamento_Finanziario!$H:$L,5,FALSE),VLOOKUP($M8,TT_Tabelle_Riferimento!$H$31:$I$50,2,FALSE))","v":40},{"$f":"+IFERROR(VLOOKUP(LR$6&\"-\"&$M8&\"_old\",Ammortamento_Finanziario!$H:$L,5,FALSE),VLOOKUP($M8,TT_Tabelle_Riferimento!$H$31:$I$50,2,FALSE))","v":40},{"$f":"+IFERROR(VLOOKUP(LS$6&\"-\"&$M8&\"_old\",Ammortamento_Finanziario!$H:$L,5,FALSE),VLOOKUP($M8,TT_Tabelle_Riferimento!$H$31:$I$50,2,FALSE))","v":40},{"$f":"+IFERROR(VLOOKUP(LT$6&\"-\"&$M8&\"_old\",Ammortamento_Finanziario!$H:$L,5,FALSE),VLOOKUP($M8,TT_Tabelle_Riferimento!$H$31:$I$50,2,FALSE))","v":40},{"$f":"+IFERROR(VLOOKUP(LU$6&\"-\"&$M8&\"_old\",Ammortamento_Finanziario!$H:$L,5,FALSE),VLOOKUP($M8,TT_Tabelle_Riferimento!$H$31:$I$50,2,FALSE))","v":40},{"$f":"+IFERROR(VLOOKUP(LV$6&\"-\"&$M8&\"_old\",Ammortamento_Finanziario!$H:$L,5,FALSE),VLOOKUP($M8,TT_Tabelle_Riferimento!$H$31:$I$50,2,FALSE))","v":40},{"$f":"+IFERROR(VLOOKUP(LW$6&\"-\"&$M8&\"_old\",Ammortamento_Finanziario!$H:$L,5,FALSE),VLOOKUP($M8,TT_Tabelle_Riferimento!$H$31:$I$50,2,FALSE))","v":40},{"$f":"+IFERROR(VLOOKUP(LX$6&\"-\"&$M8&\"_old\",Ammortamento_Finanziario!$H:$L,5,FALSE),VLOOKUP($M8,TT_Tabelle_Riferimento!$H$31:$I$50,2,FALSE))","v":40},{"$f":"+IFERROR(VLOOKUP(LY$6&\"-\"&$M8&\"_old\",Ammortamento_Finanziario!$H:$L,5,FALSE),VLOOKUP($M8,TT_Tabelle_Riferimento!$H$31:$I$50,2,FALSE))","v":40},{"$f":"+IFERROR(VLOOKUP(LZ$6&\"-\"&$M8&\"_old\",Ammortamento_Finanziario!$H:$L,5,FALSE),VLOOKUP($M8,TT_Tabelle_Riferimento!$H$31:$I$50,2,FALSE))","v":40},{"$f":"+IFERROR(VLOOKUP(MA$6&\"-\"&$M8&\"_old\",Ammortamento_Finanziario!$H:$L,5,FALSE),VLOOKUP($M8,TT_Tabelle_Riferimento!$H$31:$I$50,2,FALSE))","v":40},{"$f":"+IFERROR(VLOOKUP(MB$6&\"-\"&$M8&\"_old\",Ammortamento_Finanziario!$H:$L,5,FALSE),VLOOKUP($M8,TT_Tabelle_Riferimento!$H$31:$I$50,2,FALSE))","v":40},{"$f":"+IFERROR(VLOOKUP(MC$6&\"-\"&$M8&\"_old\",Ammortamento_Finanziario!$H:$L,5,FALSE),VLOOKUP($M8,TT_Tabelle_Riferimento!$H$31:$I$50,2,FALSE))","v":40},{"$f":"+IFERROR(VLOOKUP(MD$6&\"-\"&$M8&\"_old\",Ammortamento_Finanziario!$H:$L,5,FALSE),VLOOKUP($M8,TT_Tabelle_Riferimento!$H$31:$I$50,2,FALSE))","v":40},{"$f":"+IFERROR(VLOOKUP(ME$6&\"-\"&$M8&\"_old\",Ammortamento_Finanziario!$H:$L,5,FALSE),VLOOKUP($M8,TT_Tabelle_Riferimento!$H$31:$I$50,2,FALSE))","v":40},{"$f":"+IFERROR(VLOOKUP(MF$6&\"-\"&$M8&\"_old\",Ammortamento_Finanziario!$H:$L,5,FALSE),VLOOKUP($M8,TT_Tabelle_Riferimento!$H$31:$I$50,2,FALSE))","v":40},{"$f":"+IFERROR(VLOOKUP(MG$6&\"-\"&$M8&\"_old\",Ammortamento_Finanziario!$H:$L,5,FALSE),VLOOKUP($M8,TT_Tabelle_Riferimento!$H$31:$I$50,2,FALSE))","v":40},{"$f":"+IFERROR(VLOOKUP(MH$6&\"-\"&$M8&\"_old\",Ammortamento_Finanziario!$H:$L,5,FALSE),VLOOKUP($M8,TT_Tabelle_Riferimento!$H$31:$I$50,2,FALSE))","v":40},{"$f":"+IFERROR(VLOOKUP(MI$6&\"-\"&$M8&\"_old\",Ammortamento_Finanziario!$H:$L,5,FALSE),VLOOKUP($M8,TT_Tabelle_Riferimento!$H$31:$I$50,2,FALSE))","v":40},{"$f":"+IFERROR(VLOOKUP(MJ$6&\"-\"&$M8&\"_old\",Ammortamento_Finanziario!$H:$L,5,FALSE),VLOOKUP($M8,TT_Tabelle_Riferimento!$H$31:$I$50,2,FALSE))","v":40},{"$f":"+IFERROR(VLOOKUP(MK$6&\"-\"&$M8&\"_old\",Ammortamento_Finanziario!$H:$L,5,FALSE),VLOOKUP($M8,TT_Tabelle_Riferimento!$H$31:$I$50,2,FALSE))","v":40},{"$f":"+IFERROR(VLOOKUP(ML$6&\"-\"&$M8&\"_old\",Ammortamento_Finanziario!$H:$L,5,FALSE),VLOOKUP($M8,TT_Tabelle_Riferimento!$H$31:$I$50,2,FALSE))","v":40},{"$f":"+IFERROR(VLOOKUP(MM$6&\"-\"&$M8&\"_old\",Ammortamento_Finanziario!$H:$L,5,FALSE),VLOOKUP($M8,TT_Tabelle_Riferimento!$H$31:$I$50,2,FALSE))","v":40},{"$f":"+IFERROR(VLOOKUP(MN$6&\"-\"&$M8&\"_old\",Ammortamento_Finanziario!$H:$L,5,FALSE),VLOOKUP($M8,TT_Tabelle_Riferimento!$H$31:$I$50,2,FALSE))","v":40},{"$f":"+IFERROR(VLOOKUP(MO$6&\"-\"&$M8&\"_old\",Ammortamento_Finanziario!$H:$L,5,FALSE),VLOOKUP($M8,TT_Tabelle_Riferimento!$H$31:$I$50,2,FALSE))","v":40},{"$f":"+IFERROR(VLOOKUP(MP$6&\"-\"&$M8&\"_old\",Ammortamento_Finanziario!$H:$L,5,FALSE),VLOOKUP($M8,TT_Tabelle_Riferimento!$H$31:$I$50,2,FALSE))","v":40},{"$f":"+IFERROR(VLOOKUP(MQ$6&\"-\"&$M8&\"_old\",Ammortamento_Finanziario!$H:$L,5,FALSE),VLOOKUP($M8,TT_Tabelle_Riferimento!$H$31:$I$50,2,FALSE))","v":40},{"$f":"+IFERROR(VLOOKUP(MR$6&\"-\"&$M8&\"_old\",Ammortamento_Finanziario!$H:$L,5,FALSE),VLOOKUP($M8,TT_Tabelle_Riferimento!$H$31:$I$50,2,FALSE))","v":40},{"$f":"+IFERROR(VLOOKUP(MS$6&\"-\"&$M8&\"_old\",Ammortamento_Finanziario!$H:$L,5,FALSE),VLOOKUP($M8,TT_Tabelle_Riferimento!$H$31:$I$50,2,FALSE))","v":40},{"$f":"+IFERROR(VLOOKUP(MT$6&\"-\"&$M8&\"_old\",Ammortamento_Finanziario!$H:$L,5,FALSE),VLOOKUP($M8,TT_Tabelle_Riferimento!$H$31:$I$50,2,FALSE))","v":40},{"$f":"+IFERROR(VLOOKUP(MU$6&\"-\"&$M8&\"_old\",Ammortamento_Finanziario!$H:$L,5,FALSE),VLOOKUP($M8,TT_Tabelle_Riferimento!$H$31:$I$50,2,FALSE))","v":40},{"$f":"+IFERROR(VLOOKUP(MV$6&\"-\"&$M8&\"_old\",Ammortamento_Finanziario!$H:$L,5,FALSE),VLOOKUP($M8,TT_Tabelle_Riferimento!$H$31:$I$50,2,FALSE))","v":40},{"$f":"+IFERROR(VLOOKUP(MW$6&\"-\"&$M8&\"_old\",Ammortamento_Finanziario!$H:$L,5,FALSE),VLOOKUP($M8,TT_Tabelle_Riferimento!$H$31:$I$50,2,FALSE))","v":40},{"$f":"+IFERROR(VLOOKUP(MX$6&\"-\"&$M8&\"_old\",Ammortamento_Finanziario!$H:$L,5,FALSE),VLOOKUP($M8,TT_Tabelle_Riferimento!$H$31:$I$50,2,FALSE))","v":40},{"$f":"+IFERROR(VLOOKUP(MY$6&\"-\"&$M8&\"_old\",Ammortamento_Finanziario!$H:$L,5,FALSE),VLOOKUP($M8,TT_Tabelle_Riferimento!$H$31:$I$50,2,FALSE))","v":40},{"$f":"+IFERROR(VLOOKUP(MZ$6&\"-\"&$M8&\"_old\",Ammortamento_Finanziario!$H:$L,5,FALSE),VLOOKUP($M8,TT_Tabelle_Riferimento!$H$31:$I$50,2,FALSE))","v":40},{"$f":"+IFERROR(VLOOKUP(NA$6&\"-\"&$M8&\"_old\",Ammortamento_Finanziario!$H:$L,5,FALSE),VLOOKUP($M8,TT_Tabelle_Riferimento!$H$31:$I$50,2,FALSE))","v":40},{"$f":"+IFERROR(VLOOKUP(NB$6&\"-\"&$M8&\"_old\",Ammortamento_Finanziario!$H:$L,5,FALSE),VLOOKUP($M8,TT_Tabelle_Riferimento!$H$31:$I$50,2,FALSE))","v":40},{"$f":"+IFERROR(VLOOKUP(NC$6&\"-\"&$M8&\"_old\",Ammortamento_Finanziario!$H:$L,5,FALSE),VLOOKUP($M8,TT_Tabelle_Riferimento!$H$31:$I$50,2,FALSE))","v":40},{"$f":"+IFERROR(VLOOKUP(ND$6&\"-\"&$M8&\"_old\",Ammortamento_Finanziario!$H:$L,5,FALSE),VLOOKUP($M8,TT_Tabelle_Riferimento!$H$31:$I$50,2,FALSE))","v":40},{"$f":"+IFERROR(VLOOKUP(NE$6&\"-\"&$M8&\"_old\",Ammortamento_Finanziario!$H:$L,5,FALSE),VLOOKUP($M8,TT_Tabelle_Riferimento!$H$31:$I$50,2,FALSE))","v":40},{"$f":"+IFERROR(VLOOKUP(NF$6&\"-\"&$M8&\"_old\",Ammortamento_Finanziario!$H:$L,5,FALSE),VLOOKUP($M8,TT_Tabelle_Riferimento!$H$31:$I$50,2,FALSE))","v":40},{"$f":"+IFERROR(VLOOKUP(NG$6&\"-\"&$M8&\"_old\",Ammortamento_Finanziario!$H:$L,5,FALSE),VLOOKUP($M8,TT_Tabelle_Riferimento!$H$31:$I$50,2,FALSE))","v":40},{"$f":"+IFERROR(VLOOKUP(NH$6&\"-\"&$M8&\"_old\",Ammortamento_Finanziario!$H:$L,5,FALSE),VLOOKUP($M8,TT_Tabelle_Riferimento!$H$31:$I$50,2,FALSE))","v":40},{"$f":"+IFERROR(VLOOKUP(NI$6&\"-\"&$M8&\"_old\",Ammortamento_Finanziario!$H:$L,5,FALSE),VLOOKUP($M8,TT_Tabelle_Riferimento!$H$31:$I$50,2,FALSE))","v":40},{"$f":"+IFERROR(VLOOKUP(NJ$6&\"-\"&$M8&\"_old\",Ammortamento_Finanziario!$H:$L,5,FALSE),VLOOKUP($M8,TT_Tabelle_Riferimento!$H$31:$I$50,2,FALSE))","v":40},{"$f":"+IFERROR(VLOOKUP(NK$6&\"-\"&$M8&\"_old\",Ammortamento_Finanziario!$H:$L,5,FALSE),VLOOKUP($M8,TT_Tabelle_Riferimento!$H$31:$I$50,2,FALSE))","v":40},{"$f":"+IFERROR(VLOOKUP(NL$6&\"-\"&$M8&\"_old\",Ammortamento_Finanziario!$H:$L,5,FALSE),VLOOKUP($M8,TT_Tabelle_Riferimento!$H$31:$I$50,2,FALSE))","v":40},{"$f":"+IFERROR(VLOOKUP(NM$6&\"-\"&$M8&\"_old\",Ammortamento_Finanziario!$H:$L,5,FALSE),VLOOKUP($M8,TT_Tabelle_Riferimento!$H$31:$I$50,2,FALSE))","v":40},{"$f":"+IFERROR(VLOOKUP(NN$6&\"-\"&$M8&\"_old\",Ammortamento_Finanziario!$H:$L,5,FALSE),VLOOKUP($M8,TT_Tabelle_Riferimento!$H$31:$I$50,2,FALSE))","v":40},{"$f":"+IFERROR(VLOOKUP(NO$6&\"-\"&$M8&\"_old\",Ammortamento_Finanziario!$H:$L,5,FALSE),VLOOKUP($M8,TT_Tabelle_Riferimento!$H$31:$I$50,2,FALSE))","v":40},{"$f":"+IFERROR(VLOOKUP(NP$6&\"-\"&$M8&\"_old\",Ammortamento_Finanziario!$H:$L,5,FALSE),VLOOKUP($M8,TT_Tabelle_Riferimento!$H$31:$I$50,2,FALSE))","v":40},{"$f":"+IFERROR(VLOOKUP(NQ$6&\"-\"&$M8&\"_old\",Ammortamento_Finanziario!$H:$L,5,FALSE),VLOOKUP($M8,TT_Tabelle_Riferimento!$H$31:$I$50,2,FALSE))","v":40},{"$f":"+IFERROR(VLOOKUP(NR$6&\"-\"&$M8&\"_old\",Ammortamento_Finanziario!$H:$L,5,FALSE),VLOOKUP($M8,TT_Tabelle_Riferimento!$H$31:$I$50,2,FALSE))","v":40},{"$f":"+IFERROR(VLOOKUP(NS$6&\"-\"&$M8&\"_old\",Ammortamento_Finanziario!$H:$L,5,FALSE),VLOOKUP($M8,TT_Tabelle_Riferimento!$H$31:$I$50,2,FALSE))","v":40},{"$f":"+IFERROR(VLOOKUP(NT$6&\"-\"&$M8&\"_old\",Ammortamento_Finanziario!$H:$L,5,FALSE),VLOOKUP($M8,TT_Tabelle_Riferimento!$H$31:$I$50,2,FALSE))","v":40},{"$f":"+IFERROR(VLOOKUP(NU$6&\"-\"&$M8&\"_old\",Ammortamento_Finanziario!$H:$L,5,FALSE),VLOOKUP($M8,TT_Tabelle_Riferimento!$H$31:$I$50,2,FALSE))","v":40},{"$f":"+IFERROR(VLOOKUP(NV$6&\"-\"&$M8&\"_old\",Ammortamento_Finanziario!$H:$L,5,FALSE),VLOOKUP($M8,TT_Tabelle_Riferimento!$H$31:$I$50,2,FALSE))","v":40},{"$f":"+IFERROR(VLOOKUP(NW$6&\"-\"&$M8&\"_old\",Ammortamento_Finanziario!$H:$L,5,FALSE),VLOOKUP($M8,TT_Tabelle_Riferimento!$H$31:$I$50,2,FALSE))","v":40},{"$f":"+IFERROR(VLOOKUP(NX$6&\"-\"&$M8&\"_old\",Ammortamento_Finanziario!$H:$L,5,FALSE),VLOOKUP($M8,TT_Tabelle_Riferimento!$H$31:$I$50,2,FALSE))","v":40},{"$f":"+IFERROR(VLOOKUP(NY$6&\"-\"&$M8&\"_old\",Ammortamento_Finanziario!$H:$L,5,FALSE),VLOOKUP($M8,TT_Tabelle_Riferimento!$H$31:$I$50,2,FALSE))","v":40},{"$f":"+IFERROR(VLOOKUP(NZ$6&\"-\"&$M8&\"_old\",Ammortamento_Finanziario!$H:$L,5,FALSE),VLOOKUP($M8,TT_Tabelle_Riferimento!$H$31:$I$50,2,FALSE))","v":40},{"$f":"+IFERROR(VLOOKUP(OA$6&\"-\"&$M8&\"_old\",Ammortamento_Finanziario!$H:$L,5,FALSE),VLOOKUP($M8,TT_Tabelle_Riferimento!$H$31:$I$50,2,FALSE))","v":40},{"$f":"+IFERROR(VLOOKUP(OB$6&\"-\"&$M8&\"_old\",Ammortamento_Finanziario!$H:$L,5,FALSE),VLOOKUP($M8,TT_Tabelle_Riferimento!$H$31:$I$50,2,FALSE))","v":40},{"$f":"+IFERROR(VLOOKUP(OC$6&\"-\"&$M8&\"_old\",Ammortamento_Finanziario!$H:$L,5,FALSE),VLOOKUP($M8,TT_Tabelle_Riferimento!$H$31:$I$50,2,FALSE))","v":40},{"$f":"+IFERROR(VLOOKUP(OD$6&\"-\"&$M8&\"_old\",Ammortamento_Finanziario!$H:$L,5,FALSE),VLOOKUP($M8,TT_Tabelle_Riferimento!$H$31:$I$50,2,FALSE))","v":40},{"$f":"+IFERROR(VLOOKUP(OE$6&\"-\"&$M8&\"_old\",Ammortamento_Finanziario!$H:$L,5,FALSE),VLOOKUP($M8,TT_Tabelle_Riferimento!$H$31:$I$50,2,FALSE))","v":40},{"$f":"+IFERROR(VLOOKUP(OF$6&\"-\"&$M8&\"_old\",Ammortamento_Finanziario!$H:$L,5,FALSE),VLOOKUP($M8,TT_Tabelle_Riferimento!$H$31:$I$50,2,FALSE))","v":40},{"$f":"+IFERROR(VLOOKUP(OG$6&\"-\"&$M8&\"_old\",Ammortamento_Finanziario!$H:$L,5,FALSE),VLOOKUP($M8,TT_Tabelle_Riferimento!$H$31:$I$50,2,FALSE))","v":40},{"$f":"+IFERROR(VLOOKUP(OH$6&\"-\"&$M8&\"_old\",Ammortamento_Finanziario!$H:$L,5,FALSE),VLOOKUP($M8,TT_Tabelle_Riferimento!$H$31:$I$50,2,FALSE))","v":40},{"$f":"+IFERROR(VLOOKUP(OI$6&\"-\"&$M8&\"_old\",Ammortamento_Finanziario!$H:$L,5,FALSE),VLOOKUP($M8,TT_Tabelle_Riferimento!$H$31:$I$50,2,FALSE))","v":40},{"$f":"+IFERROR(VLOOKUP(OJ$6&\"-\"&$M8&\"_old\",Ammortamento_Finanziario!$H:$L,5,FALSE),VLOOKUP($M8,TT_Tabelle_Riferimento!$H$31:$I$50,2,FALSE))","v":40},{"$f":"+IFERROR(VLOOKUP(OK$6&\"-\"&$M8&\"_old\",Ammortamento_Finanziario!$H:$L,5,FALSE),VLOOKUP($M8,TT_Tabelle_Riferimento!$H$31:$I$50,2,FALSE))","v":40},{"$f":"+IFERROR(VLOOKUP(OL$6&\"-\"&$M8&\"_old\",Ammortamento_Finanziario!$H:$L,5,FALSE),VLOOKUP($M8,TT_Tabelle_Riferimento!$H$31:$I$50,2,FALSE))","v":40},{"$f":"+IFERROR(VLOOKUP(OM$6&\"-\"&$M8&\"_old\",Ammortamento_Finanziario!$H:$L,5,FALSE),VLOOKUP($M8,TT_Tabelle_Riferimento!$H$31:$I$50,2,FALSE))","v":40},{"$f":"+IFERROR(VLOOKUP(ON$6&\"-\"&$M8&\"_old\",Ammortamento_Finanziario!$H:$L,5,FALSE),VLOOKUP($M8,TT_Tabelle_Riferimento!$H$31:$I$50,2,FALSE))","v":40},{"$f":"+IFERROR(VLOOKUP(OO$6&\"-\"&$M8&\"_old\",Ammortamento_Finanziario!$H:$L,5,FALSE),VLOOKUP($M8,TT_Tabelle_Riferimento!$H$31:$I$50,2,FALSE))","v":40},{"$f":"+IFERROR(VLOOKUP(OP$6&\"-\"&$M8&\"_old\",Ammortamento_Finanziario!$H:$L,5,FALSE),VLOOKUP($M8,TT_Tabelle_Riferimento!$H$31:$I$50,2,FALSE))","v":40},{"$f":"+IFERROR(VLOOKUP(OQ$6&\"-\"&$M8&\"_old\",Ammortamento_Finanziario!$H:$L,5,FALSE),VLOOKUP($M8,TT_Tabelle_Riferimento!$H$31:$I$50,2,FALSE))","v":40},{"$f":"+IFERROR(VLOOKUP(OR$6&\"-\"&$M8&\"_old\",Ammortamento_Finanziario!$H:$L,5,FALSE),VLOOKUP($M8,TT_Tabelle_Riferimento!$H$31:$I$50,2,FALSE))","v":40},{"$f":"+IFERROR(VLOOKUP(OS$6&\"-\"&$M8&\"_old\",Ammortamento_Finanziario!$H:$L,5,FALSE),VLOOKUP($M8,TT_Tabelle_Riferimento!$H$31:$I$50,2,FALSE))","v":40},{"$f":"+IFERROR(VLOOKUP(OT$6&\"-\"&$M8&\"_old\",Ammortamento_Finanziario!$H:$L,5,FALSE),VLOOKUP($M8,TT_Tabelle_Riferimento!$H$31:$I$50,2,FALSE))","v":40},{"$f":"+IFERROR(VLOOKUP(OU$6&\"-\"&$M8&\"_old\",Ammortamento_Finanziario!$H:$L,5,FALSE),VLOOKUP($M8,TT_Tabelle_Riferimento!$H$31:$I$50,2,FALSE))","v":40},{"$f":"+IFERROR(VLOOKUP(OV$6&\"-\"&$M8&\"_old\",Ammortamento_Finanziario!$H:$L,5,FALSE),VLOOKUP($M8,TT_Tabelle_Riferimento!$H$31:$I$50,2,FALSE))","v":40},{"$f":"+IFERROR(VLOOKUP(OW$6&\"-\"&$M8&\"_old\",Ammortamento_Finanziario!$H:$L,5,FALSE),VLOOKUP($M8,TT_Tabelle_Riferimento!$H$31:$I$50,2,FALSE))","v":40},{"$f":"+IFERROR(VLOOKUP(OX$6&\"-\"&$M8&\"_old\",Ammortamento_Finanziario!$H:$L,5,FALSE),VLOOKUP($M8,TT_Tabelle_Riferimento!$H$31:$I$50,2,FALSE))","v":40},{"$f":"+IFERROR(VLOOKUP(OY$6&\"-\"&$M8&\"_old\",Ammortamento_Finanziario!$H:$L,5,FALSE),VLOOKUP($M8,TT_Tabelle_Riferimento!$H$31:$I$50,2,FALSE))","v":40},{"$f":"+IFERROR(VLOOKUP(OZ$6&\"-\"&$M8&\"_old\",Ammortamento_Finanziario!$H:$L,5,FALSE),VLOOKUP($M8,TT_Tabelle_Riferimento!$H$31:$I$50,2,FALSE))","v":40},{"$f":"+IFERROR(VLOOKUP(PA$6&\"-\"&$M8&\"_old\",Ammortamento_Finanziario!$H:$L,5,FALSE),VLOOKUP($M8,TT_Tabelle_Riferimento!$H$31:$I$50,2,FALSE))","v":40},{"$f":"+IFERROR(VLOOKUP(PB$6&\"-\"&$M8&\"_old\",Ammortamento_Finanziario!$H:$L,5,FALSE),VLOOKUP($M8,TT_Tabelle_Riferimento!$H$31:$I$50,2,FALSE))","v":40},{"$f":"+IFERROR(VLOOKUP(PC$6&\"-\"&$M8&\"_old\",Ammortamento_Finanziario!$H:$L,5,FALSE),VLOOKUP($M8,TT_Tabelle_Riferimento!$H$31:$I$50,2,FALSE))","v":40},{"$f":"+IFERROR(VLOOKUP(PD$6&\"-\"&$M8&\"_old\",Ammortamento_Finanziario!$H:$L,5,FALSE),VLOOKUP($M8,TT_Tabelle_Riferimento!$H$31:$I$50,2,FALSE))","v":40},{"$f":"+IFERROR(VLOOKUP(PE$6&\"-\"&$M8&\"_old\",Ammortamento_Finanziario!$H:$L,5,FALSE),VLOOKUP($M8,TT_Tabelle_Riferimento!$H$31:$I$50,2,FALSE))","v":40},{"$f":"+IFERROR(VLOOKUP(PF$6&\"-\"&$M8&\"_old\",Ammortamento_Finanziario!$H:$L,5,FALSE),VLOOKUP($M8,TT_Tabelle_Riferimento!$H$31:$I$50,2,FALSE))","v":40},{"$f":"+IFERROR(VLOOKUP(PG$6&\"-\"&$M8&\"_old\",Ammortamento_Finanziario!$H:$L,5,FALSE),VLOOKUP($M8,TT_Tabelle_Riferimento!$H$31:$I$50,2,FALSE))","v":40},{"$f":"+IFERROR(VLOOKUP(PH$6&\"-\"&$M8&\"_old\",Ammortamento_Finanziario!$H:$L,5,FALSE),VLOOKUP($M8,TT_Tabelle_Riferimento!$H$31:$I$50,2,FALSE))","v":40},{"$f":"+IFERROR(VLOOKUP(PI$6&\"-\"&$M8&\"_old\",Ammortamento_Finanziario!$H:$L,5,FALSE),VLOOKUP($M8,TT_Tabelle_Riferimento!$H$31:$I$50,2,FALSE))","v":40},{"$f":"+IFERROR(VLOOKUP(PJ$6&\"-\"&$M8&\"_old\",Ammortamento_Finanziario!$H:$L,5,FALSE),VLOOKUP($M8,TT_Tabelle_Riferimento!$H$31:$I$50,2,FALSE))","v":40},{"$f":"+IFERROR(VLOOKUP(PK$6&\"-\"&$M8&\"_old\",Ammortamento_Finanziario!$H:$L,5,FALSE),VLOOKUP($M8,TT_Tabelle_Riferimento!$H$31:$I$50,2,FALSE))","v":40},{"$f":"+IFERROR(VLOOKUP(PL$6&\"-\"&$M8&\"_old\",Ammortamento_Finanziario!$H:$L,5,FALSE),VLOOKUP($M8,TT_Tabelle_Riferimento!$H$31:$I$50,2,FALSE))","v":40},{"$f":"+IFERROR(VLOOKUP(PM$6&\"-\"&$M8&\"_old\",Ammortamento_Finanziario!$H:$L,5,FALSE),VLOOKUP($M8,TT_Tabelle_Riferimento!$H$31:$I$50,2,FALSE))","v":40},{"$f":"+IFERROR(VLOOKUP(PN$6&\"-\"&$M8&\"_old\",Ammortamento_Finanziario!$H:$L,5,FALSE),VLOOKUP($M8,TT_Tabelle_Riferimento!$H$31:$I$50,2,FALSE))","v":40},{"$f":"+IFERROR(VLOOKUP(PO$6&\"-\"&$M8&\"_old\",Ammortamento_Finanziario!$H:$L,5,FALSE),VLOOKUP($M8,TT_Tabelle_Riferimento!$H$31:$I$50,2,FALSE))","v":40},{"$f":"+IFERROR(VLOOKUP(PP$6&\"-\"&$M8&\"_old\",Ammortamento_Finanziario!$H:$L,5,FALSE),VLOOKUP($M8,TT_Tabelle_Riferimento!$H$31:$I$50,2,FALSE))","v":40},{"$f":"+IFERROR(VLOOKUP(PQ$6&\"-\"&$M8&\"_old\",Ammortamento_Finanziario!$H:$L,5,FALSE),VLOOKUP($M8,TT_Tabelle_Riferimento!$H$31:$I$50,2,FALSE))","v":40},{"$f":"+IFERROR(VLOOKUP(PR$6&\"-\"&$M8&\"_old\",Ammortamento_Finanziario!$H:$L,5,FALSE),VLOOKUP($M8,TT_Tabelle_Riferimento!$H$31:$I$50,2,FALSE))","v":40},{"$f":"+IFERROR(VLOOKUP(PS$6&\"-\"&$M8&\"_old\",Ammortamento_Finanziario!$H:$L,5,FALSE),VLOOKUP($M8,TT_Tabelle_Riferimento!$H$31:$I$50,2,FALSE))","v":40},{"$f":"+IFERROR(VLOOKUP(PT$6&\"-\"&$M8&\"_old\",Ammortamento_Finanziario!$H:$L,5,FALSE),VLOOKUP($M8,TT_Tabelle_Riferimento!$H$31:$I$50,2,FALSE))","v":40},{"$f":"+IFERROR(VLOOKUP(PU$6&\"-\"&$M8&\"_old\",Ammortamento_Finanziario!$H:$L,5,FALSE),VLOOKUP($M8,TT_Tabelle_Riferimento!$H$31:$I$50,2,FALSE))","v":40},{"$f":"+IFERROR(VLOOKUP(PV$6&\"-\"&$M8&\"_old\",Ammortamento_Finanziario!$H:$L,5,FALSE),VLOOKUP($M8,TT_Tabelle_Riferimento!$H$31:$I$50,2,FALSE))","v":40},{"$f":"+IFERROR(VLOOKUP(PW$6&\"-\"&$M8&\"_old\",Ammortamento_Finanziario!$H:$L,5,FALSE),VLOOKUP($M8,TT_Tabelle_Riferimento!$H$31:$I$50,2,FALSE))","v":40},{"$f":"+IFERROR(VLOOKUP(PX$6&\"-\"&$M8&\"_old\",Ammortamento_Finanziario!$H:$L,5,FALSE),VLOOKUP($M8,TT_Tabelle_Riferimento!$H$31:$I$50,2,FALSE))","v":40},{"$f":"+IFERROR(VLOOKUP(PY$6&\"-\"&$M8&\"_old\",Ammortamento_Finanziario!$H:$L,5,FALSE),VLOOKUP($M8,TT_Tabelle_Riferimento!$H$31:$I$50,2,FALSE))","v":40},{"$f":"+IFERROR(VLOOKUP(PZ$6&\"-\"&$M8&\"_old\",Ammortamento_Finanziario!$H:$L,5,FALSE),VLOOKUP($M8,TT_Tabelle_Riferimento!$H$31:$I$50,2,FALSE))","v":40},{"$f":"+IFERROR(VLOOKUP(QA$6&\"-\"&$M8&\"_old\",Ammortamento_Finanziario!$H:$L,5,FALSE),VLOOKUP($M8,TT_Tabelle_Riferimento!$H$31:$I$50,2,FALSE))","v":40},{"$f":"+IFERROR(VLOOKUP(QB$6&\"-\"&$M8&\"_old\",Ammortamento_Finanziario!$H:$L,5,FALSE),VLOOKUP($M8,TT_Tabelle_Riferimento!$H$31:$I$50,2,FALSE))","v":40},{"$f":"+IFERROR(VLOOKUP(QC$6&\"-\"&$M8&\"_old\",Ammortamento_Finanziario!$H:$L,5,FALSE),VLOOKUP($M8,TT_Tabelle_Riferimento!$H$31:$I$50,2,FALSE))","v":40},{"$f":"+IFERROR(VLOOKUP(QD$6&\"-\"&$M8&\"_old\",Ammortamento_Finanziario!$H:$L,5,FALSE),VLOOKUP($M8,TT_Tabelle_Riferimento!$H$31:$I$50,2,FALSE))","v":40},{"$f":"+IFERROR(VLOOKUP(QE$6&\"-\"&$M8&\"_old\",Ammortamento_Finanziario!$H:$L,5,FALSE),VLOOKUP($M8,TT_Tabelle_Riferimento!$H$31:$I$50,2,FALSE))","v":40},{"$f":"+IFERROR(VLOOKUP(QF$6&\"-\"&$M8&\"_old\",Ammortamento_Finanziario!$H:$L,5,FALSE),VLOOKUP($M8,TT_Tabelle_Riferimento!$H$31:$I$50,2,FALSE))","v":40},{"$f":"+IFERROR(VLOOKUP(QG$6&\"-\"&$M8&\"_old\",Ammortamento_Finanziario!$H:$L,5,FALSE),VLOOKUP($M8,TT_Tabelle_Riferimento!$H$31:$I$50,2,FALSE))","v":40},{"$f":"+IFERROR(VLOOKUP(QH$6&\"-\"&$M8&\"_old\",Ammortamento_Finanziario!$H:$L,5,FALSE),VLOOKUP($M8,TT_Tabelle_Riferimento!$H$31:$I$50,2,FALSE))","v":40},{"$f":"+IFERROR(VLOOKUP(QI$6&\"-\"&$M8&\"_old\",Ammortamento_Finanziario!$H:$L,5,FALSE),VLOOKUP($M8,TT_Tabelle_Riferimento!$H$31:$I$50,2,FALSE))","v":40},{"$f":"+IFERROR(VLOOKUP(QJ$6&\"-\"&$M8&\"_old\",Ammortamento_Finanziario!$H:$L,5,FALSE),VLOOKUP($M8,TT_Tabelle_Riferimento!$H$31:$I$50,2,FALSE))","v":40},{"$f":"+IFERROR(VLOOKUP(QK$6&\"-\"&$M8&\"_old\",Ammortamento_Finanziario!$H:$L,5,FALSE),VLOOKUP($M8,TT_Tabelle_Riferimento!$H$31:$I$50,2,FALSE))","v":40},{"$f":"+IFERROR(VLOOKUP(QL$6&\"-\"&$M8&\"_old\",Ammortamento_Finanziario!$H:$L,5,FALSE),VLOOKUP($M8,TT_Tabelle_Riferimento!$H$31:$I$50,2,FALSE))","v":40},{"$f":"+IFERROR(VLOOKUP(QM$6&\"-\"&$M8&\"_old\",Ammortamento_Finanziario!$H:$L,5,FALSE),VLOOKUP($M8,TT_Tabelle_Riferimento!$H$31:$I$50,2,FALSE))","v":40},{"$f":"+IFERROR(VLOOKUP(QN$6&\"-\"&$M8&\"_old\",Ammortamento_Finanziario!$H:$L,5,FALSE),VLOOKUP($M8,TT_Tabelle_Riferimento!$H$31:$I$50,2,FALSE))","v":40},{"$f":"+IFERROR(VLOOKUP(QO$6&\"-\"&$M8&\"_old\",Ammortamento_Finanziario!$H:$L,5,FALSE),VLOOKUP($M8,TT_Tabelle_Riferimento!$H$31:$I$50,2,FALSE))","v":40},{"$f":"+IFERROR(VLOOKUP(QP$6&\"-\"&$M8&\"_old\",Ammortamento_Finanziario!$H:$L,5,FALSE),VLOOKUP($M8,TT_Tabelle_Riferimento!$H$31:$I$50,2,FALSE))","v":40},{"$f":"+IFERROR(VLOOKUP(QQ$6&\"-\"&$M8&\"_old\",Ammortamento_Finanziario!$H:$L,5,FALSE),VLOOKUP($M8,TT_Tabelle_Riferimento!$H$31:$I$50,2,FALSE))","v":40},{"$f":"+IFERROR(VLOOKUP(QR$6&\"-\"&$M8&\"_old\",Ammortamento_Finanziario!$H:$L,5,FALSE),VLOOKUP($M8,TT_Tabelle_Riferimento!$H$31:$I$50,2,FALSE))","v":40},{"$f":"+IFERROR(VLOOKUP(QS$6&\"-\"&$M8&\"_old\",Ammortamento_Finanziario!$H:$L,5,FALSE),VLOOKUP($M8,TT_Tabelle_Riferimento!$H$31:$I$50,2,FALSE))","v":40},{"$f":"+IFERROR(VLOOKUP(QT$6&\"-\"&$M8&\"_old\",Ammortamento_Finanziario!$H:$L,5,FALSE),VLOOKUP($M8,TT_Tabelle_Riferimento!$H$31:$I$50,2,FALSE))","v":40},{"$f":"+IFERROR(VLOOKUP(QU$6&\"-\"&$M8&\"_old\",Ammortamento_Finanziario!$H:$L,5,FALSE),VLOOKUP($M8,TT_Tabelle_Riferimento!$H$31:$I$50,2,FALSE))","v":40},{"$f":"+IFERROR(VLOOKUP(QV$6&\"-\"&$M8&\"_old\",Ammortamento_Finanziario!$H:$L,5,FALSE),VLOOKUP($M8,TT_Tabelle_Riferimento!$H$31:$I$50,2,FALSE))","v":40},{"$f":"+IFERROR(VLOOKUP(QW$6&\"-\"&$M8&\"_old\",Ammortamento_Finanziario!$H:$L,5,FALSE),VLOOKUP($M8,TT_Tabelle_Riferimento!$H$31:$I$50,2,FALSE))","v":40},{"$f":"+IFERROR(VLOOKUP(QX$6&\"-\"&$M8&\"_old\",Ammortamento_Finanziario!$H:$L,5,FALSE),VLOOKUP($M8,TT_Tabelle_Riferimento!$H$31:$I$50,2,FALSE))","v":40},{"$f":"+IFERROR(VLOOKUP(QY$6&\"-\"&$M8&\"_old\",Ammortamento_Finanziario!$H:$L,5,FALSE),VLOOKUP($M8,TT_Tabelle_Riferimento!$H$31:$I$50,2,FALSE))","v":40},{"$f":"+IFERROR(VLOOKUP(QZ$6&\"-\"&$M8&\"_old\",Ammortamento_Finanziario!$H:$L,5,FALSE),VLOOKUP($M8,TT_Tabelle_Riferimento!$H$31:$I$50,2,FALSE))","v":40},{"$f":"+IFERROR(VLOOKUP(RA$6&\"-\"&$M8&\"_old\",Ammortamento_Finanziario!$H:$L,5,FALSE),VLOOKUP($M8,TT_Tabelle_Riferimento!$H$31:$I$50,2,FALSE))","v":40},{"$f":"+IFERROR(VLOOKUP(RB$6&\"-\"&$M8&\"_old\",Ammortamento_Finanziario!$H:$L,5,FALSE),VLOOKUP($M8,TT_Tabelle_Riferimento!$H$31:$I$50,2,FALSE))","v":40},{"$f":"+IFERROR(VLOOKUP(RC$6&\"-\"&$M8&\"_old\",Ammortamento_Finanziario!$H:$L,5,FALSE),VLOOKUP($M8,TT_Tabelle_Riferimento!$H$31:$I$50,2,FALSE))","v":40},{"$f":"+IFERROR(VLOOKUP(RD$6&\"-\"&$M8&\"_old\",Ammortamento_Finanziario!$H:$L,5,FALSE),VLOOKUP($M8,TT_Tabelle_Riferimento!$H$31:$I$50,2,FALSE))","v":40},{"$f":"+IFERROR(VLOOKUP(RE$6&\"-\"&$M8&\"_old\",Ammortamento_Finanziario!$H:$L,5,FALSE),VLOOKUP($M8,TT_Tabelle_Riferimento!$H$31:$I$50,2,FALSE))","v":40},{"$f":"+IFERROR(VLOOKUP(RF$6&\"-\"&$M8&\"_old\",Ammortamento_Finanziario!$H:$L,5,FALSE),VLOOKUP($M8,TT_Tabelle_Riferimento!$H$31:$I$50,2,FALSE))","v":40},{"$f":"+IFERROR(VLOOKUP(RG$6&\"-\"&$M8&\"_old\",Ammortamento_Finanziario!$H:$L,5,FALSE),VLOOKUP($M8,TT_Tabelle_Riferimento!$H$31:$I$50,2,FALSE))","v":40},{"$f":"+IFERROR(VLOOKUP(RH$6&\"-\"&$M8&\"_old\",Ammortamento_Finanziario!$H:$L,5,FALSE),VLOOKUP($M8,TT_Tabelle_Riferimento!$H$31:$I$50,2,FALSE))","v":40},{"$f":"+IFERROR(VLOOKUP(RI$6&\"-\"&$M8&\"_old\",Ammortamento_Finanziario!$H:$L,5,FALSE),VLOOKUP($M8,TT_Tabelle_Riferimento!$H$31:$I$50,2,FALSE))","v":40},{"$f":"+IFERROR(VLOOKUP(RJ$6&\"-\"&$M8&\"_old\",Ammortamento_Finanziario!$H:$L,5,FALSE),VLOOKUP($M8,TT_Tabelle_Riferimento!$H$31:$I$50,2,FALSE))","v":40},{"$f":"+IFERROR(VLOOKUP(RK$6&\"-\"&$M8&\"_old\",Ammortamento_Finanziario!$H:$L,5,FALSE),VLOOKUP($M8,TT_Tabelle_Riferimento!$H$31:$I$50,2,FALSE))","v":40},{"$f":"+IFERROR(VLOOKUP(RL$6&\"-\"&$M8&\"_old\",Ammortamento_Finanziario!$H:$L,5,FALSE),VLOOKUP($M8,TT_Tabelle_Riferimento!$H$31:$I$50,2,FALSE))","v":40},{"$f":"+IFERROR(VLOOKUP(RM$6&\"-\"&$M8&\"_old\",Ammortamento_Finanziario!$H:$L,5,FALSE),VLOOKUP($M8,TT_Tabelle_Riferimento!$H$31:$I$50,2,FALSE))","v":40},{"$f":"+IFERROR(VLOOKUP(RN$6&\"-\"&$M8&\"_old\",Ammortamento_Finanziario!$H:$L,5,FALSE),VLOOKUP($M8,TT_Tabelle_Riferimento!$H$31:$I$50,2,FALSE))","v":40},{"$f":"+IFERROR(VLOOKUP(RO$6&\"-\"&$M8&\"_old\",Ammortamento_Finanziario!$H:$L,5,FALSE),VLOOKUP($M8,TT_Tabelle_Riferimento!$H$31:$I$50,2,FALSE))","v":40},{"$f":"+IFERROR(VLOOKUP(RP$6&\"-\"&$M8&\"_old\",Ammortamento_Finanziario!$H:$L,5,FALSE),VLOOKUP($M8,TT_Tabelle_Riferimento!$H$31:$I$50,2,FALSE))","v":40},{"$f":"+IFERROR(VLOOKUP(RQ$6&\"-\"&$M8&\"_old\",Ammortamento_Finanziario!$H:$L,5,FALSE),VLOOKUP($M8,TT_Tabelle_Riferimento!$H$31:$I$50,2,FALSE))","v":40},{"$f":"+IFERROR(VLOOKUP(RR$6&\"-\"&$M8&\"_old\",Ammortamento_Finanziario!$H:$L,5,FALSE),VLOOKUP($M8,TT_Tabelle_Riferimento!$H$31:$I$50,2,FALSE))","v":40},{"$f":"+IFERROR(VLOOKUP(RS$6&\"-\"&$M8&\"_old\",Ammortamento_Finanziario!$H:$L,5,FALSE),VLOOKUP($M8,TT_Tabelle_Riferimento!$H$31:$I$50,2,FALSE))","v":40},{"$f":"+IFERROR(VLOOKUP(RT$6&\"-\"&$M8&\"_old\",Ammortamento_Finanziario!$H:$L,5,FALSE),VLOOKUP($M8,TT_Tabelle_Riferimento!$H$31:$I$50,2,FALSE))","v":40},{"$f":"+IFERROR(VLOOKUP(RU$6&\"-\"&$M8&\"_old\",Ammortamento_Finanziario!$H:$L,5,FALSE),VLOOKUP($M8,TT_Tabelle_Riferimento!$H$31:$I$50,2,FALSE))","v":40},{"$f":"+IFERROR(VLOOKUP(RV$6&\"-\"&$M8&\"_old\",Ammortamento_Finanziario!$H:$L,5,FALSE),VLOOKUP($M8,TT_Tabelle_Riferimento!$H$31:$I$50,2,FALSE))","v":40}]
[null,null,null,"AMM",{"$f":"+SUM(IMN_gestore!$T:$T)","v":0},{"$f":"+SUM(IMN_gestore!$AE:$AE)","v":0},{"$f":"+SUM(IMN_gestore!$AP:$AP)","v":0},{"$f":"+SUM(IMN_gestore!$BA:$BA)","v":0},{"$f":"+SUM(IMN_gestore!BL:BL)","v":0},{"$f":"+SUM(IMN_gestore!$BW:$BW)","v":0},null,null,3,{"$f":"+IFERROR(VLOOKUP(N$6&\"-\"&$M9&\"_old\",Ammortamento_Finanziario!$H:$L,5,FALSE),VLOOKUP($M9,TT_Tabelle_Riferimento!$H$31:$I$50,2,FALSE))","v":40},{"$f":"+IFERROR(VLOOKUP(O$6&\"-\"&$M9&\"_old\",Ammortamento_Finanziario!$H:$L,5,FALSE),VLOOKUP($M9,TT_Tabelle_Riferimento!$H$31:$I$50,2,FALSE))","v":40},{"$f":"+IFERROR(VLOOKUP(P$6&\"-\"&$M9&\"_old\",Ammortamento_Finanziario!$H:$L,5,FALSE),VLOOKUP($M9,TT_Tabelle_Riferimento!$H$31:$I$50,2,FALSE))","v":40},{"$f":"+IFERROR(VLOOKUP(Q$6&\"-\"&$M9&\"_old\",Ammortamento_Finanziario!$H:$L,5,FALSE),VLOOKUP($M9,TT_Tabelle_Riferimento!$H$31:$I$50,2,FALSE))","v":40},{"$f":"+IFERROR(VLOOKUP(R$6&\"-\"&$M9&\"_old\",Ammortamento_Finanziario!$H:$L,5,FALSE),VLOOKUP($M9,TT_Tabelle_Riferimento!$H$31:$I$50,2,FALSE))","v":40},{"$f":"+IFERROR(VLOOKUP(S$6&\"-\"&$M9&\"_old\",Ammortamento_Finanziario!$H:$L,5,FALSE),VLOOKUP($M9,TT_Tabelle_Riferimento!$H$31:$I$50,2,FALSE))","v":40},{"$f":"+IFERROR(VLOOKUP(T$6&\"-\"&$M9&\"_old\",Ammortamento_Finanziario!$H:$L,5,FALSE),VLOOKUP($M9,TT_Tabelle_Riferimento!$H$31:$I$50,2,FALSE))","v":40},{"$f":"+IFERROR(VLOOKUP(U$6&\"-\"&$M9&\"_old\",Ammortamento_Finanziario!$H:$L,5,FALSE),VLOOKUP($M9,TT_Tabelle_Riferimento!$H$31:$I$50,2,FALSE))","v":40},{"$f":"+IFERROR(VLOOKUP(V$6&\"-\"&$M9&\"_old\",Ammortamento_Finanziario!$H:$L,5,FALSE),VLOOKUP($M9,TT_Tabelle_Riferimento!$H$31:$I$50,2,FALSE))","v":40},{"$f":"+IFERROR(VLOOKUP(W$6&\"-\"&$M9&\"_old\",Ammortamento_Finanziario!$H:$L,5,FALSE),VLOOKUP($M9,TT_Tabelle_Riferimento!$H$31:$I$50,2,FALSE))","v":40},{"$f":"+IFERROR(VLOOKUP(X$6&\"-\"&$M9&\"_old\",Ammortamento_Finanziario!$H:$L,5,FALSE),VLOOKUP($M9,TT_Tabelle_Riferimento!$H$31:$I$50,2,FALSE))","v":40},{"$f":"+IFERROR(VLOOKUP(Y$6&\"-\"&$M9&\"_old\",Ammortamento_Finanziario!$H:$L,5,FALSE),VLOOKUP($M9,TT_Tabelle_Riferimento!$H$31:$I$50,2,FALSE))","v":40},{"$f":"+IFERROR(VLOOKUP(Z$6&\"-\"&$M9&\"_old\",Ammortamento_Finanziario!$H:$L,5,FALSE),VLOOKUP($M9,TT_Tabelle_Riferimento!$H$31:$I$50,2,FALSE))","v":40},{"$f":"+IFERROR(VLOOKUP(AA$6&\"-\"&$M9&\"_old\",Ammortamento_Finanziario!$H:$L,5,FALSE),VLOOKUP($M9,TT_Tabelle_Riferimento!$H$31:$I$50,2,FALSE))","v":40},{"$f":"+IFERROR(VLOOKUP(AB$6&\"-\"&$M9&\"_old\",Ammortamento_Finanziario!$H:$L,5,FALSE),VLOOKUP($M9,TT_Tabelle_Riferimento!$H$31:$I$50,2,FALSE))","v":40},{"$f":"+IFERROR(VLOOKUP(AC$6&\"-\"&$M9&\"_old\",Ammortamento_Finanziario!$H:$L,5,FALSE),VLOOKUP($M9,TT_Tabelle_Riferimento!$H$31:$I$50,2,FALSE))","v":40},{"$f":"+IFERROR(VLOOKUP(AD$6&\"-\"&$M9&\"_old\",Ammortamento_Finanziario!$H:$L,5,FALSE),VLOOKUP($M9,TT_Tabelle_Riferimento!$H$31:$I$50,2,FALSE))","v":40},{"$f":"+IFERROR(VLOOKUP(AE$6&\"-\"&$M9&\"_old\",Ammortamento_Finanziario!$H:$L,5,FALSE),VLOOKUP($M9,TT_Tabelle_Riferimento!$H$31:$I$50,2,FALSE))","v":40},{"$f":"+IFERROR(VLOOKUP(AF$6&\"-\"&$M9&\"_old\",Ammortamento_Finanziario!$H:$L,5,FALSE),VLOOKUP($M9,TT_Tabelle_Riferimento!$H$31:$I$50,2,FALSE))","v":40},{"$f":"+IFERROR(VLOOKUP(AG$6&\"-\"&$M9&\"_old\",Ammortamento_Finanziario!$H:$L,5,FALSE),VLOOKUP($M9,TT_Tabelle_Riferimento!$H$31:$I$50,2,FALSE))","v":40},{"$f":"+IFERROR(VLOOKUP(AH$6&\"-\"&$M9&\"_old\",Ammortamento_Finanziario!$H:$L,5,FALSE),VLOOKUP($M9,TT_Tabelle_Riferimento!$H$31:$I$50,2,FALSE))","v":40},{"$f":"+IFERROR(VLOOKUP(AI$6&\"-\"&$M9&\"_old\",Ammortamento_Finanziario!$H:$L,5,FALSE),VLOOKUP($M9,TT_Tabelle_Riferimento!$H$31:$I$50,2,FALSE))","v":40},{"$f":"+IFERROR(VLOOKUP(AJ$6&\"-\"&$M9&\"_old\",Ammortamento_Finanziario!$H:$L,5,FALSE),VLOOKUP($M9,TT_Tabelle_Riferimento!$H$31:$I$50,2,FALSE))","v":40},{"$f":"+IFERROR(VLOOKUP(AK$6&\"-\"&$M9&\"_old\",Ammortamento_Finanziario!$H:$L,5,FALSE),VLOOKUP($M9,TT_Tabelle_Riferimento!$H$31:$I$50,2,FALSE))","v":40},{"$f":"+IFERROR(VLOOKUP(AL$6&\"-\"&$M9&\"_old\",Ammortamento_Finanziario!$H:$L,5,FALSE),VLOOKUP($M9,TT_Tabelle_Riferimento!$H$31:$I$50,2,FALSE))","v":40},{"$f":"+IFERROR(VLOOKUP(AM$6&\"-\"&$M9&\"_old\",Ammortamento_Finanziario!$H:$L,5,FALSE),VLOOKUP($M9,TT_Tabelle_Riferimento!$H$31:$I$50,2,FALSE))","v":40},{"$f":"+IFERROR(VLOOKUP(AN$6&\"-\"&$M9&\"_old\",Ammortamento_Finanziario!$H:$L,5,FALSE),VLOOKUP($M9,TT_Tabelle_Riferimento!$H$31:$I$50,2,FALSE))","v":40},{"$f":"+IFERROR(VLOOKUP(AO$6&\"-\"&$M9&\"_old\",Ammortamento_Finanziario!$H:$L,5,FALSE),VLOOKUP($M9,TT_Tabelle_Riferimento!$H$31:$I$50,2,FALSE))","v":40},{"$f":"+IFERROR(VLOOKUP(AP$6&\"-\"&$M9&\"_old\",Ammortamento_Finanziario!$H:$L,5,FALSE),VLOOKUP($M9,TT_Tabelle_Riferimento!$H$31:$I$50,2,FALSE))","v":40},{"$f":"+IFERROR(VLOOKUP(AQ$6&\"-\"&$M9&\"_old\",Ammortamento_Finanziario!$H:$L,5,FALSE),VLOOKUP($M9,TT_Tabelle_Riferimento!$H$31:$I$50,2,FALSE))","v":40},{"$f":"+IFERROR(VLOOKUP(AR$6&\"-\"&$M9&\"_old\",Ammortamento_Finanziario!$H:$L,5,FALSE),VLOOKUP($M9,TT_Tabelle_Riferimento!$H$31:$I$50,2,FALSE))","v":40},{"$f":"+IFERROR(VLOOKUP(AS$6&\"-\"&$M9&\"_old\",Ammortamento_Finanziario!$H:$L,5,FALSE),VLOOKUP($M9,TT_Tabelle_Riferimento!$H$31:$I$50,2,FALSE))","v":40},{"$f":"+IFERROR(VLOOKUP(AT$6&\"-\"&$M9&\"_old\",Ammortamento_Finanziario!$H:$L,5,FALSE),VLOOKUP($M9,TT_Tabelle_Riferimento!$H$31:$I$50,2,FALSE))","v":40},{"$f":"+IFERROR(VLOOKUP(AU$6&\"-\"&$M9&\"_old\",Ammortamento_Finanziario!$H:$L,5,FALSE),VLOOKUP($M9,TT_Tabelle_Riferimento!$H$31:$I$50,2,FALSE))","v":40},{"$f":"+IFERROR(VLOOKUP(AV$6&\"-\"&$M9&\"_old\",Ammortamento_Finanziario!$H:$L,5,FALSE),VLOOKUP($M9,TT_Tabelle_Riferimento!$H$31:$I$50,2,FALSE))","v":40},{"$f":"+IFERROR(VLOOKUP(AW$6&\"-\"&$M9&\"_old\",Ammortamento_Finanziario!$H:$L,5,FALSE),VLOOKUP($M9,TT_Tabelle_Riferimento!$H$31:$I$50,2,FALSE))","v":40},{"$f":"+IFERROR(VLOOKUP(AX$6&\"-\"&$M9&\"_old\",Ammortamento_Finanziario!$H:$L,5,FALSE),VLOOKUP($M9,TT_Tabelle_Riferimento!$H$31:$I$50,2,FALSE))","v":40},{"$f":"+IFERROR(VLOOKUP(AY$6&\"-\"&$M9&\"_old\",Ammortamento_Finanziario!$H:$L,5,FALSE),VLOOKUP($M9,TT_Tabelle_Riferimento!$H$31:$I$50,2,FALSE))","v":40},{"$f":"+IFERROR(VLOOKUP(AZ$6&\"-\"&$M9&\"_old\",Ammortamento_Finanziario!$H:$L,5,FALSE),VLOOKUP($M9,TT_Tabelle_Riferimento!$H$31:$I$50,2,FALSE))","v":40},{"$f":"+IFERROR(VLOOKUP(BA$6&\"-\"&$M9&\"_old\",Ammortamento_Finanziario!$H:$L,5,FALSE),VLOOKUP($M9,TT_Tabelle_Riferimento!$H$31:$I$50,2,FALSE))","v":40},{"$f":"+IFERROR(VLOOKUP(BB$6&\"-\"&$M9&\"_old\",Ammortamento_Finanziario!$H:$L,5,FALSE),VLOOKUP($M9,TT_Tabelle_Riferimento!$H$31:$I$50,2,FALSE))","v":40},{"$f":"+IFERROR(VLOOKUP(BC$6&\"-\"&$M9&\"_old\",Ammortamento_Finanziario!$H:$L,5,FALSE),VLOOKUP($M9,TT_Tabelle_Riferimento!$H$31:$I$50,2,FALSE))","v":40},{"$f":"+IFERROR(VLOOKUP(BD$6&\"-\"&$M9&\"_old\",Ammortamento_Finanziario!$H:$L,5,FALSE),VLOOKUP($M9,TT_Tabelle_Riferimento!$H$31:$I$50,2,FALSE))","v":40},{"$f":"+IFERROR(VLOOKUP(BE$6&\"-\"&$M9&\"_old\",Ammortamento_Finanziario!$H:$L,5,FALSE),VLOOKUP($M9,TT_Tabelle_Riferimento!$H$31:$I$50,2,FALSE))","v":40},{"$f":"+IFERROR(VLOOKUP(BF$6&\"-\"&$M9&\"_old\",Ammortamento_Finanziario!$H:$L,5,FALSE),VLOOKUP($M9,TT_Tabelle_Riferimento!$H$31:$I$50,2,FALSE))","v":40},{"$f":"+IFERROR(VLOOKUP(BG$6&\"-\"&$M9&\"_old\",Ammortamento_Finanziario!$H:$L,5,FALSE),VLOOKUP($M9,TT_Tabelle_Riferimento!$H$31:$I$50,2,FALSE))","v":40},{"$f":"+IFERROR(VLOOKUP(BH$6&\"-\"&$M9&\"_old\",Ammortamento_Finanziario!$H:$L,5,FALSE),VLOOKUP($M9,TT_Tabelle_Riferimento!$H$31:$I$50,2,FALSE))","v":40},{"$f":"+IFERROR(VLOOKUP(BI$6&\"-\"&$M9&\"_old\",Ammortamento_Finanziario!$H:$L,5,FALSE),VLOOKUP($M9,TT_Tabelle_Riferimento!$H$31:$I$50,2,FALSE))","v":40},{"$f":"+IFERROR(VLOOKUP(BJ$6&\"-\"&$M9&\"_old\",Ammortamento_Finanziario!$H:$L,5,FALSE),VLOOKUP($M9,TT_Tabelle_Riferimento!$H$31:$I$50,2,FALSE))","v":40},{"$f":"+IFERROR(VLOOKUP(BK$6&\"-\"&$M9&\"_old\",Ammortamento_Finanziario!$H:$L,5,FALSE),VLOOKUP($M9,TT_Tabelle_Riferimento!$H$31:$I$50,2,FALSE))","v":40},{"$f":"+IFERROR(VLOOKUP(BL$6&\"-\"&$M9&\"_old\",Ammortamento_Finanziario!$H:$L,5,FALSE),VLOOKUP($M9,TT_Tabelle_Riferimento!$H$31:$I$50,2,FALSE))","v":40},{"$f":"+IFERROR(VLOOKUP(BM$6&\"-\"&$M9&\"_old\",Ammortamento_Finanziario!$H:$L,5,FALSE),VLOOKUP($M9,TT_Tabelle_Riferimento!$H$31:$I$50,2,FALSE))","v":40},{"$f":"+IFERROR(VLOOKUP(BN$6&\"-\"&$M9&\"_old\",Ammortamento_Finanziario!$H:$L,5,FALSE),VLOOKUP($M9,TT_Tabelle_Riferimento!$H$31:$I$50,2,FALSE))","v":40},{"$f":"+IFERROR(VLOOKUP(BO$6&\"-\"&$M9&\"_old\",Ammortamento_Finanziario!$H:$L,5,FALSE),VLOOKUP($M9,TT_Tabelle_Riferimento!$H$31:$I$50,2,FALSE))","v":40},{"$f":"+IFERROR(VLOOKUP(BP$6&\"-\"&$M9&\"_old\",Ammortamento_Finanziario!$H:$L,5,FALSE),VLOOKUP($M9,TT_Tabelle_Riferimento!$H$31:$I$50,2,FALSE))","v":40},{"$f":"+IFERROR(VLOOKUP(BQ$6&\"-\"&$M9&\"_old\",Ammortamento_Finanziario!$H:$L,5,FALSE),VLOOKUP($M9,TT_Tabelle_Riferimento!$H$31:$I$50,2,FALSE))","v":40},{"$f":"+IFERROR(VLOOKUP(BR$6&\"-\"&$M9&\"_old\",Ammortamento_Finanziario!$H:$L,5,FALSE),VLOOKUP($M9,TT_Tabelle_Riferimento!$H$31:$I$50,2,FALSE))","v":40},{"$f":"+IFERROR(VLOOKUP(BS$6&\"-\"&$M9&\"_old\",Ammortamento_Finanziario!$H:$L,5,FALSE),VLOOKUP($M9,TT_Tabelle_Riferimento!$H$31:$I$50,2,FALSE))","v":40},{"$f":"+IFERROR(VLOOKUP(BT$6&\"-\"&$M9&\"_old\",Ammortamento_Finanziario!$H:$L,5,FALSE),VLOOKUP($M9,TT_Tabelle_Riferimento!$H$31:$I$50,2,FALSE))","v":40},{"$f":"+IFERROR(VLOOKUP(BU$6&\"-\"&$M9&\"_old\",Ammortamento_Finanziario!$H:$L,5,FALSE),VLOOKUP($M9,TT_Tabelle_Riferimento!$H$31:$I$50,2,FALSE))","v":40},{"$f":"+IFERROR(VLOOKUP(BV$6&\"-\"&$M9&\"_old\",Ammortamento_Finanziario!$H:$L,5,FALSE),VLOOKUP($M9,TT_Tabelle_Riferimento!$H$31:$I$50,2,FALSE))","v":40},{"$f":"+IFERROR(VLOOKUP(BW$6&\"-\"&$M9&\"_old\",Ammortamento_Finanziario!$H:$L,5,FALSE),VLOOKUP($M9,TT_Tabelle_Riferimento!$H$31:$I$50,2,FALSE))","v":40},{"$f":"+IFERROR(VLOOKUP(BX$6&\"-\"&$M9&\"_old\",Ammortamento_Finanziario!$H:$L,5,FALSE),VLOOKUP($M9,TT_Tabelle_Riferimento!$H$31:$I$50,2,FALSE))","v":40},{"$f":"+IFERROR(VLOOKUP(BY$6&\"-\"&$M9&\"_old\",Ammortamento_Finanziario!$H:$L,5,FALSE),VLOOKUP($M9,TT_Tabelle_Riferimento!$H$31:$I$50,2,FALSE))","v":40},{"$f":"+IFERROR(VLOOKUP(BZ$6&\"-\"&$M9&\"_old\",Ammortamento_Finanziario!$H:$L,5,FALSE),VLOOKUP($M9,TT_Tabelle_Riferimento!$H$31:$I$50,2,FALSE))","v":40},{"$f":"+IFERROR(VLOOKUP(CA$6&\"-\"&$M9&\"_old\",Ammortamento_Finanziario!$H:$L,5,FALSE),VLOOKUP($M9,TT_Tabelle_Riferimento!$H$31:$I$50,2,FALSE))","v":40},{"$f":"+IFERROR(VLOOKUP(CB$6&\"-\"&$M9&\"_old\",Ammortamento_Finanziario!$H:$L,5,FALSE),VLOOKUP($M9,TT_Tabelle_Riferimento!$H$31:$I$50,2,FALSE))","v":40},{"$f":"+IFERROR(VLOOKUP(CC$6&\"-\"&$M9&\"_old\",Ammortamento_Finanziario!$H:$L,5,FALSE),VLOOKUP($M9,TT_Tabelle_Riferimento!$H$31:$I$50,2,FALSE))","v":40},{"$f":"+IFERROR(VLOOKUP(CD$6&\"-\"&$M9&\"_old\",Ammortamento_Finanziario!$H:$L,5,FALSE),VLOOKUP($M9,TT_Tabelle_Riferimento!$H$31:$I$50,2,FALSE))","v":40},{"$f":"+IFERROR(VLOOKUP(CE$6&\"-\"&$M9&\"_old\",Ammortamento_Finanziario!$H:$L,5,FALSE),VLOOKUP($M9,TT_Tabelle_Riferimento!$H$31:$I$50,2,FALSE))","v":40},{"$f":"+IFERROR(VLOOKUP(CF$6&\"-\"&$M9&\"_old\",Ammortamento_Finanziario!$H:$L,5,FALSE),VLOOKUP($M9,TT_Tabelle_Riferimento!$H$31:$I$50,2,FALSE))","v":40},{"$f":"+IFERROR(VLOOKUP(CG$6&\"-\"&$M9&\"_old\",Ammortamento_Finanziario!$H:$L,5,FALSE),VLOOKUP($M9,TT_Tabelle_Riferimento!$H$31:$I$50,2,FALSE))","v":40},{"$f":"+IFERROR(VLOOKUP(CH$6&\"-\"&$M9&\"_old\",Ammortamento_Finanziario!$H:$L,5,FALSE),VLOOKUP($M9,TT_Tabelle_Riferimento!$H$31:$I$50,2,FALSE))","v":40},{"$f":"+IFERROR(VLOOKUP(CI$6&\"-\"&$M9&\"_old\",Ammortamento_Finanziario!$H:$L,5,FALSE),VLOOKUP($M9,TT_Tabelle_Riferimento!$H$31:$I$50,2,FALSE))","v":40},{"$f":"+IFERROR(VLOOKUP(CJ$6&\"-\"&$M9&\"_old\",Ammortamento_Finanziario!$H:$L,5,FALSE),VLOOKUP($M9,TT_Tabelle_Riferimento!$H$31:$I$50,2,FALSE))","v":40},{"$f":"+IFERROR(VLOOKUP(CK$6&\"-\"&$M9&\"_old\",Ammortamento_Finanziario!$H:$L,5,FALSE),VLOOKUP($M9,TT_Tabelle_Riferimento!$H$31:$I$50,2,FALSE))","v":40},{"$f":"+IFERROR(VLOOKUP(CL$6&\"-\"&$M9&\"_old\",Ammortamento_Finanziario!$H:$L,5,FALSE),VLOOKUP($M9,TT_Tabelle_Riferimento!$H$31:$I$50,2,FALSE))","v":40},{"$f":"+IFERROR(VLOOKUP(CM$6&\"-\"&$M9&\"_old\",Ammortamento_Finanziario!$H:$L,5,FALSE),VLOOKUP($M9,TT_Tabelle_Riferimento!$H$31:$I$50,2,FALSE))","v":40},{"$f":"+IFERROR(VLOOKUP(CN$6&\"-\"&$M9&\"_old\",Ammortamento_Finanziario!$H:$L,5,FALSE),VLOOKUP($M9,TT_Tabelle_Riferimento!$H$31:$I$50,2,FALSE))","v":40},{"$f":"+IFERROR(VLOOKUP(CO$6&\"-\"&$M9&\"_old\",Ammortamento_Finanziario!$H:$L,5,FALSE),VLOOKUP($M9,TT_Tabelle_Riferimento!$H$31:$I$50,2,FALSE))","v":40},{"$f":"+IFERROR(VLOOKUP(CP$6&\"-\"&$M9&\"_old\",Ammortamento_Finanziario!$H:$L,5,FALSE),VLOOKUP($M9,TT_Tabelle_Riferimento!$H$31:$I$50,2,FALSE))","v":40},{"$f":"+IFERROR(VLOOKUP(CQ$6&\"-\"&$M9&\"_old\",Ammortamento_Finanziario!$H:$L,5,FALSE),VLOOKUP($M9,TT_Tabelle_Riferimento!$H$31:$I$50,2,FALSE))","v":40},{"$f":"+IFERROR(VLOOKUP(CR$6&\"-\"&$M9&\"_old\",Ammortamento_Finanziario!$H:$L,5,FALSE),VLOOKUP($M9,TT_Tabelle_Riferimento!$H$31:$I$50,2,FALSE))","v":40},{"$f":"+IFERROR(VLOOKUP(CS$6&\"-\"&$M9&\"_old\",Ammortamento_Finanziario!$H:$L,5,FALSE),VLOOKUP($M9,TT_Tabelle_Riferimento!$H$31:$I$50,2,FALSE))","v":40},{"$f":"+IFERROR(VLOOKUP(CT$6&\"-\"&$M9&\"_old\",Ammortamento_Finanziario!$H:$L,5,FALSE),VLOOKUP($M9,TT_Tabelle_Riferimento!$H$31:$I$50,2,FALSE))","v":40},{"$f":"+IFERROR(VLOOKUP(CU$6&\"-\"&$M9&\"_old\",Ammortamento_Finanziario!$H:$L,5,FALSE),VLOOKUP($M9,TT_Tabelle_Riferimento!$H$31:$I$50,2,FALSE))","v":40},{"$f":"+IFERROR(VLOOKUP(CV$6&\"-\"&$M9&\"_old\",Ammortamento_Finanziario!$H:$L,5,FALSE),VLOOKUP($M9,TT_Tabelle_Riferimento!$H$31:$I$50,2,FALSE))","v":40},{"$f":"+IFERROR(VLOOKUP(CW$6&\"-\"&$M9&\"_old\",Ammortamento_Finanziario!$H:$L,5,FALSE),VLOOKUP($M9,TT_Tabelle_Riferimento!$H$31:$I$50,2,FALSE))","v":40},{"$f":"+IFERROR(VLOOKUP(CX$6&\"-\"&$M9&\"_old\",Ammortamento_Finanziario!$H:$L,5,FALSE),VLOOKUP($M9,TT_Tabelle_Riferimento!$H$31:$I$50,2,FALSE))","v":40},{"$f":"+IFERROR(VLOOKUP(CY$6&\"-\"&$M9&\"_old\",Ammortamento_Finanziario!$H:$L,5,FALSE),VLOOKUP($M9,TT_Tabelle_Riferimento!$H$31:$I$50,2,FALSE))","v":40},{"$f":"+IFERROR(VLOOKUP(CZ$6&\"-\"&$M9&\"_old\",Ammortamento_Finanziario!$H:$L,5,FALSE),VLOOKUP($M9,TT_Tabelle_Riferimento!$H$31:$I$50,2,FALSE))","v":40},{"$f":"+IFERROR(VLOOKUP(DA$6&\"-\"&$M9&\"_old\",Ammortamento_Finanziario!$H:$L,5,FALSE),VLOOKUP($M9,TT_Tabelle_Riferimento!$H$31:$I$50,2,FALSE))","v":40},{"$f":"+IFERROR(VLOOKUP(DB$6&\"-\"&$M9&\"_old\",Ammortamento_Finanziario!$H:$L,5,FALSE),VLOOKUP($M9,TT_Tabelle_Riferimento!$H$31:$I$50,2,FALSE))","v":40},{"$f":"+IFERROR(VLOOKUP(DC$6&\"-\"&$M9&\"_old\",Ammortamento_Finanziario!$H:$L,5,FALSE),VLOOKUP($M9,TT_Tabelle_Riferimento!$H$31:$I$50,2,FALSE))","v":40},{"$f":"+IFERROR(VLOOKUP(DD$6&\"-\"&$M9&\"_old\",Ammortamento_Finanziario!$H:$L,5,FALSE),VLOOKUP($M9,TT_Tabelle_Riferimento!$H$31:$I$50,2,FALSE))","v":40},{"$f":"+IFERROR(VLOOKUP(DE$6&\"-\"&$M9&\"_old\",Ammortamento_Finanziario!$H:$L,5,FALSE),VLOOKUP($M9,TT_Tabelle_Riferimento!$H$31:$I$50,2,FALSE))","v":40},{"$f":"+IFERROR(VLOOKUP(DF$6&\"-\"&$M9&\"_old\",Ammortamento_Finanziario!$H:$L,5,FALSE),VLOOKUP($M9,TT_Tabelle_Riferimento!$H$31:$I$50,2,FALSE))","v":40},{"$f":"+IFERROR(VLOOKUP(DG$6&\"-\"&$M9&\"_old\",Ammortamento_Finanziario!$H:$L,5,FALSE),VLOOKUP($M9,TT_Tabelle_Riferimento!$H$31:$I$50,2,FALSE))","v":40},{"$f":"+IFERROR(VLOOKUP(DH$6&\"-\"&$M9&\"_old\",Ammortamento_Finanziario!$H:$L,5,FALSE),VLOOKUP($M9,TT_Tabelle_Riferimento!$H$31:$I$50,2,FALSE))","v":40},{"$f":"+IFERROR(VLOOKUP(DI$6&\"-\"&$M9&\"_old\",Ammortamento_Finanziario!$H:$L,5,FALSE),VLOOKUP($M9,TT_Tabelle_Riferimento!$H$31:$I$50,2,FALSE))","v":40},{"$f":"+IFERROR(VLOOKUP(DJ$6&\"-\"&$M9&\"_old\",Ammortamento_Finanziario!$H:$L,5,FALSE),VLOOKUP($M9,TT_Tabelle_Riferimento!$H$31:$I$50,2,FALSE))","v":40},{"$f":"+IFERROR(VLOOKUP(DK$6&\"-\"&$M9&\"_old\",Ammortamento_Finanziario!$H:$L,5,FALSE),VLOOKUP($M9,TT_Tabelle_Riferimento!$H$31:$I$50,2,FALSE))","v":40},{"$f":"+IFERROR(VLOOKUP(DL$6&\"-\"&$M9&\"_old\",Ammortamento_Finanziario!$H:$L,5,FALSE),VLOOKUP($M9,TT_Tabelle_Riferimento!$H$31:$I$50,2,FALSE))","v":40},{"$f":"+IFERROR(VLOOKUP(DM$6&\"-\"&$M9&\"_old\",Ammortamento_Finanziario!$H:$L,5,FALSE),VLOOKUP($M9,TT_Tabelle_Riferimento!$H$31:$I$50,2,FALSE))","v":40},{"$f":"+IFERROR(VLOOKUP(DN$6&\"-\"&$M9&\"_old\",Ammortamento_Finanziario!$H:$L,5,FALSE),VLOOKUP($M9,TT_Tabelle_Riferimento!$H$31:$I$50,2,FALSE))","v":40},{"$f":"+IFERROR(VLOOKUP(DO$6&\"-\"&$M9&\"_old\",Ammortamento_Finanziario!$H:$L,5,FALSE),VLOOKUP($M9,TT_Tabelle_Riferimento!$H$31:$I$50,2,FALSE))","v":40},{"$f":"+IFERROR(VLOOKUP(DP$6&\"-\"&$M9&\"_old\",Ammortamento_Finanziario!$H:$L,5,FALSE),VLOOKUP($M9,TT_Tabelle_Riferimento!$H$31:$I$50,2,FALSE))","v":40},{"$f":"+IFERROR(VLOOKUP(DQ$6&\"-\"&$M9&\"_old\",Ammortamento_Finanziario!$H:$L,5,FALSE),VLOOKUP($M9,TT_Tabelle_Riferimento!$H$31:$I$50,2,FALSE))","v":40},{"$f":"+IFERROR(VLOOKUP(DR$6&\"-\"&$M9&\"_old\",Ammortamento_Finanziario!$H:$L,5,FALSE),VLOOKUP($M9,TT_Tabelle_Riferimento!$H$31:$I$50,2,FALSE))","v":40},{"$f":"+IFERROR(VLOOKUP(DS$6&\"-\"&$M9&\"_old\",Ammortamento_Finanziario!$H:$L,5,FALSE),VLOOKUP($M9,TT_Tabelle_Riferimento!$H$31:$I$50,2,FALSE))","v":40},{"$f":"+IFERROR(VLOOKUP(DT$6&\"-\"&$M9&\"_old\",Ammortamento_Finanziario!$H:$L,5,FALSE),VLOOKUP($M9,TT_Tabelle_Riferimento!$H$31:$I$50,2,FALSE))","v":40},{"$f":"+IFERROR(VLOOKUP(DU$6&\"-\"&$M9&\"_old\",Ammortamento_Finanziario!$H:$L,5,FALSE),VLOOKUP($M9,TT_Tabelle_Riferimento!$H$31:$I$50,2,FALSE))","v":40},{"$f":"+IFERROR(VLOOKUP(DV$6&\"-\"&$M9&\"_old\",Ammortamento_Finanziario!$H:$L,5,FALSE),VLOOKUP($M9,TT_Tabelle_Riferimento!$H$31:$I$50,2,FALSE))","v":40},{"$f":"+IFERROR(VLOOKUP(DW$6&\"-\"&$M9&\"_old\",Ammortamento_Finanziario!$H:$L,5,FALSE),VLOOKUP($M9,TT_Tabelle_Riferimento!$H$31:$I$50,2,FALSE))","v":40},{"$f":"+IFERROR(VLOOKUP(DX$6&\"-\"&$M9&\"_old\",Ammortamento_Finanziario!$H:$L,5,FALSE),VLOOKUP($M9,TT_Tabelle_Riferimento!$H$31:$I$50,2,FALSE))","v":40},{"$f":"+IFERROR(VLOOKUP(DY$6&\"-\"&$M9&\"_old\",Ammortamento_Finanziario!$H:$L,5,FALSE),VLOOKUP($M9,TT_Tabelle_Riferimento!$H$31:$I$50,2,FALSE))","v":40},{"$f":"+IFERROR(VLOOKUP(DZ$6&\"-\"&$M9&\"_old\",Ammortamento_Finanziario!$H:$L,5,FALSE),VLOOKUP($M9,TT_Tabelle_Riferimento!$H$31:$I$50,2,FALSE))","v":40},{"$f":"+IFERROR(VLOOKUP(EA$6&\"-\"&$M9&\"_old\",Ammortamento_Finanziario!$H:$L,5,FALSE),VLOOKUP($M9,TT_Tabelle_Riferimento!$H$31:$I$50,2,FALSE))","v":40},{"$f":"+IFERROR(VLOOKUP(EB$6&\"-\"&$M9&\"_old\",Ammortamento_Finanziario!$H:$L,5,FALSE),VLOOKUP($M9,TT_Tabelle_Riferimento!$H$31:$I$50,2,FALSE))","v":40},{"$f":"+IFERROR(VLOOKUP(EC$6&\"-\"&$M9&\"_old\",Ammortamento_Finanziario!$H:$L,5,FALSE),VLOOKUP($M9,TT_Tabelle_Riferimento!$H$31:$I$50,2,FALSE))","v":40},{"$f":"+IFERROR(VLOOKUP(ED$6&\"-\"&$M9&\"_old\",Ammortamento_Finanziario!$H:$L,5,FALSE),VLOOKUP($M9,TT_Tabelle_Riferimento!$H$31:$I$50,2,FALSE))","v":40},{"$f":"+IFERROR(VLOOKUP(EE$6&\"-\"&$M9&\"_old\",Ammortamento_Finanziario!$H:$L,5,FALSE),VLOOKUP($M9,TT_Tabelle_Riferimento!$H$31:$I$50,2,FALSE))","v":40},{"$f":"+IFERROR(VLOOKUP(EF$6&\"-\"&$M9&\"_old\",Ammortamento_Finanziario!$H:$L,5,FALSE),VLOOKUP($M9,TT_Tabelle_Riferimento!$H$31:$I$50,2,FALSE))","v":40},{"$f":"+IFERROR(VLOOKUP(EG$6&\"-\"&$M9&\"_old\",Ammortamento_Finanziario!$H:$L,5,FALSE),VLOOKUP($M9,TT_Tabelle_Riferimento!$H$31:$I$50,2,FALSE))","v":40},{"$f":"+IFERROR(VLOOKUP(EH$6&\"-\"&$M9&\"_old\",Ammortamento_Finanziario!$H:$L,5,FALSE),VLOOKUP($M9,TT_Tabelle_Riferimento!$H$31:$I$50,2,FALSE))","v":40},{"$f":"+IFERROR(VLOOKUP(EI$6&\"-\"&$M9&\"_old\",Ammortamento_Finanziario!$H:$L,5,FALSE),VLOOKUP($M9,TT_Tabelle_Riferimento!$H$31:$I$50,2,FALSE))","v":40},{"$f":"+IFERROR(VLOOKUP(EJ$6&\"-\"&$M9&\"_old\",Ammortamento_Finanziario!$H:$L,5,FALSE),VLOOKUP($M9,TT_Tabelle_Riferimento!$H$31:$I$50,2,FALSE))","v":40},{"$f":"+IFERROR(VLOOKUP(EK$6&\"-\"&$M9&\"_old\",Ammortamento_Finanziario!$H:$L,5,FALSE),VLOOKUP($M9,TT_Tabelle_Riferimento!$H$31:$I$50,2,FALSE))","v":40},{"$f":"+IFERROR(VLOOKUP(EL$6&\"-\"&$M9&\"_old\",Ammortamento_Finanziario!$H:$L,5,FALSE),VLOOKUP($M9,TT_Tabelle_Riferimento!$H$31:$I$50,2,FALSE))","v":40},{"$f":"+IFERROR(VLOOKUP(EM$6&\"-\"&$M9&\"_old\",Ammortamento_Finanziario!$H:$L,5,FALSE),VLOOKUP($M9,TT_Tabelle_Riferimento!$H$31:$I$50,2,FALSE))","v":40},{"$f":"+IFERROR(VLOOKUP(EN$6&\"-\"&$M9&\"_old\",Ammortamento_Finanziario!$H:$L,5,FALSE),VLOOKUP($M9,TT_Tabelle_Riferimento!$H$31:$I$50,2,FALSE))","v":40},{"$f":"+IFERROR(VLOOKUP(EO$6&\"-\"&$M9&\"_old\",Ammortamento_Finanziario!$H:$L,5,FALSE),VLOOKUP($M9,TT_Tabelle_Riferimento!$H$31:$I$50,2,FALSE))","v":40},{"$f":"+IFERROR(VLOOKUP(EP$6&\"-\"&$M9&\"_old\",Ammortamento_Finanziario!$H:$L,5,FALSE),VLOOKUP($M9,TT_Tabelle_Riferimento!$H$31:$I$50,2,FALSE))","v":40},{"$f":"+IFERROR(VLOOKUP(EQ$6&\"-\"&$M9&\"_old\",Ammortamento_Finanziario!$H:$L,5,FALSE),VLOOKUP($M9,TT_Tabelle_Riferimento!$H$31:$I$50,2,FALSE))","v":40},{"$f":"+IFERROR(VLOOKUP(ER$6&\"-\"&$M9&\"_old\",Ammortamento_Finanziario!$H:$L,5,FALSE),VLOOKUP($M9,TT_Tabelle_Riferimento!$H$31:$I$50,2,FALSE))","v":40},{"$f":"+IFERROR(VLOOKUP(ES$6&\"-\"&$M9&\"_old\",Ammortamento_Finanziario!$H:$L,5,FALSE),VLOOKUP($M9,TT_Tabelle_Riferimento!$H$31:$I$50,2,FALSE))","v":40},{"$f":"+IFERROR(VLOOKUP(ET$6&\"-\"&$M9&\"_old\",Ammortamento_Finanziario!$H:$L,5,FALSE),VLOOKUP($M9,TT_Tabelle_Riferimento!$H$31:$I$50,2,FALSE))","v":40},{"$f":"+IFERROR(VLOOKUP(EU$6&\"-\"&$M9&\"_old\",Ammortamento_Finanziario!$H:$L,5,FALSE),VLOOKUP($M9,TT_Tabelle_Riferimento!$H$31:$I$50,2,FALSE))","v":40},{"$f":"+IFERROR(VLOOKUP(EV$6&\"-\"&$M9&\"_old\",Ammortamento_Finanziario!$H:$L,5,FALSE),VLOOKUP($M9,TT_Tabelle_Riferimento!$H$31:$I$50,2,FALSE))","v":40},{"$f":"+IFERROR(VLOOKUP(EW$6&\"-\"&$M9&\"_old\",Ammortamento_Finanziario!$H:$L,5,FALSE),VLOOKUP($M9,TT_Tabelle_Riferimento!$H$31:$I$50,2,FALSE))","v":40},{"$f":"+IFERROR(VLOOKUP(EX$6&\"-\"&$M9&\"_old\",Ammortamento_Finanziario!$H:$L,5,FALSE),VLOOKUP($M9,TT_Tabelle_Riferimento!$H$31:$I$50,2,FALSE))","v":40},{"$f":"+IFERROR(VLOOKUP(EY$6&\"-\"&$M9&\"_old\",Ammortamento_Finanziario!$H:$L,5,FALSE),VLOOKUP($M9,TT_Tabelle_Riferimento!$H$31:$I$50,2,FALSE))","v":40},{"$f":"+IFERROR(VLOOKUP(EZ$6&\"-\"&$M9&\"_old\",Ammortamento_Finanziario!$H:$L,5,FALSE),VLOOKUP($M9,TT_Tabelle_Riferimento!$H$31:$I$50,2,FALSE))","v":40},{"$f":"+IFERROR(VLOOKUP(FA$6&\"-\"&$M9&\"_old\",Ammortamento_Finanziario!$H:$L,5,FALSE),VLOOKUP($M9,TT_Tabelle_Riferimento!$H$31:$I$50,2,FALSE))","v":40},{"$f":"+IFERROR(VLOOKUP(FB$6&\"-\"&$M9&\"_old\",Ammortamento_Finanziario!$H:$L,5,FALSE),VLOOKUP($M9,TT_Tabelle_Riferimento!$H$31:$I$50,2,FALSE))","v":40},{"$f":"+IFERROR(VLOOKUP(FC$6&\"-\"&$M9&\"_old\",Ammortamento_Finanziario!$H:$L,5,FALSE),VLOOKUP($M9,TT_Tabelle_Riferimento!$H$31:$I$50,2,FALSE))","v":40},{"$f":"+IFERROR(VLOOKUP(FD$6&\"-\"&$M9&\"_old\",Ammortamento_Finanziario!$H:$L,5,FALSE),VLOOKUP($M9,TT_Tabelle_Riferimento!$H$31:$I$50,2,FALSE))","v":40},{"$f":"+IFERROR(VLOOKUP(FE$6&\"-\"&$M9&\"_old\",Ammortamento_Finanziario!$H:$L,5,FALSE),VLOOKUP($M9,TT_Tabelle_Riferimento!$H$31:$I$50,2,FALSE))","v":40},{"$f":"+IFERROR(VLOOKUP(FF$6&\"-\"&$M9&\"_old\",Ammortamento_Finanziario!$H:$L,5,FALSE),VLOOKUP($M9,TT_Tabelle_Riferimento!$H$31:$I$50,2,FALSE))","v":40},{"$f":"+IFERROR(VLOOKUP(FG$6&\"-\"&$M9&\"_old\",Ammortamento_Finanziario!$H:$L,5,FALSE),VLOOKUP($M9,TT_Tabelle_Riferimento!$H$31:$I$50,2,FALSE))","v":40},{"$f":"+IFERROR(VLOOKUP(FH$6&\"-\"&$M9&\"_old\",Ammortamento_Finanziario!$H:$L,5,FALSE),VLOOKUP($M9,TT_Tabelle_Riferimento!$H$31:$I$50,2,FALSE))","v":40},{"$f":"+IFERROR(VLOOKUP(FI$6&\"-\"&$M9&\"_old\",Ammortamento_Finanziario!$H:$L,5,FALSE),VLOOKUP($M9,TT_Tabelle_Riferimento!$H$31:$I$50,2,FALSE))","v":40},{"$f":"+IFERROR(VLOOKUP(FJ$6&\"-\"&$M9&\"_old\",Ammortamento_Finanziario!$H:$L,5,FALSE),VLOOKUP($M9,TT_Tabelle_Riferimento!$H$31:$I$50,2,FALSE))","v":40},{"$f":"+IFERROR(VLOOKUP(FK$6&\"-\"&$M9&\"_old\",Ammortamento_Finanziario!$H:$L,5,FALSE),VLOOKUP($M9,TT_Tabelle_Riferimento!$H$31:$I$50,2,FALSE))","v":40},{"$f":"+IFERROR(VLOOKUP(FL$6&\"-\"&$M9&\"_old\",Ammortamento_Finanziario!$H:$L,5,FALSE),VLOOKUP($M9,TT_Tabelle_Riferimento!$H$31:$I$50,2,FALSE))","v":40},{"$f":"+IFERROR(VLOOKUP(FM$6&\"-\"&$M9&\"_old\",Ammortamento_Finanziario!$H:$L,5,FALSE),VLOOKUP($M9,TT_Tabelle_Riferimento!$H$31:$I$50,2,FALSE))","v":40},{"$f":"+IFERROR(VLOOKUP(FN$6&\"-\"&$M9&\"_old\",Ammortamento_Finanziario!$H:$L,5,FALSE),VLOOKUP($M9,TT_Tabelle_Riferimento!$H$31:$I$50,2,FALSE))","v":40},{"$f":"+IFERROR(VLOOKUP(FO$6&\"-\"&$M9&\"_old\",Ammortamento_Finanziario!$H:$L,5,FALSE),VLOOKUP($M9,TT_Tabelle_Riferimento!$H$31:$I$50,2,FALSE))","v":40},{"$f":"+IFERROR(VLOOKUP(FP$6&\"-\"&$M9&\"_old\",Ammortamento_Finanziario!$H:$L,5,FALSE),VLOOKUP($M9,TT_Tabelle_Riferimento!$H$31:$I$50,2,FALSE))","v":40},{"$f":"+IFERROR(VLOOKUP(FQ$6&\"-\"&$M9&\"_old\",Ammortamento_Finanziario!$H:$L,5,FALSE),VLOOKUP($M9,TT_Tabelle_Riferimento!$H$31:$I$50,2,FALSE))","v":40},{"$f":"+IFERROR(VLOOKUP(FR$6&\"-\"&$M9&\"_old\",Ammortamento_Finanziario!$H:$L,5,FALSE),VLOOKUP($M9,TT_Tabelle_Riferimento!$H$31:$I$50,2,FALSE))","v":40},{"$f":"+IFERROR(VLOOKUP(FS$6&\"-\"&$M9&\"_old\",Ammortamento_Finanziario!$H:$L,5,FALSE),VLOOKUP($M9,TT_Tabelle_Riferimento!$H$31:$I$50,2,FALSE))","v":40},{"$f":"+IFERROR(VLOOKUP(FT$6&\"-\"&$M9&\"_old\",Ammortamento_Finanziario!$H:$L,5,FALSE),VLOOKUP($M9,TT_Tabelle_Riferimento!$H$31:$I$50,2,FALSE))","v":40},{"$f":"+IFERROR(VLOOKUP(FU$6&\"-\"&$M9&\"_old\",Ammortamento_Finanziario!$H:$L,5,FALSE),VLOOKUP($M9,TT_Tabelle_Riferimento!$H$31:$I$50,2,FALSE))","v":40},{"$f":"+IFERROR(VLOOKUP(FV$6&\"-\"&$M9&\"_old\",Ammortamento_Finanziario!$H:$L,5,FALSE),VLOOKUP($M9,TT_Tabelle_Riferimento!$H$31:$I$50,2,FALSE))","v":40},{"$f":"+IFERROR(VLOOKUP(FW$6&\"-\"&$M9&\"_old\",Ammortamento_Finanziario!$H:$L,5,FALSE),VLOOKUP($M9,TT_Tabelle_Riferimento!$H$31:$I$50,2,FALSE))","v":40},{"$f":"+IFERROR(VLOOKUP(FX$6&\"-\"&$M9&\"_old\",Ammortamento_Finanziario!$H:$L,5,FALSE),VLOOKUP($M9,TT_Tabelle_Riferimento!$H$31:$I$50,2,FALSE))","v":40},{"$f":"+IFERROR(VLOOKUP(FY$6&\"-\"&$M9&\"_old\",Ammortamento_Finanziario!$H:$L,5,FALSE),VLOOKUP($M9,TT_Tabelle_Riferimento!$H$31:$I$50,2,FALSE))","v":40},{"$f":"+IFERROR(VLOOKUP(FZ$6&\"-\"&$M9&\"_old\",Ammortamento_Finanziario!$H:$L,5,FALSE),VLOOKUP($M9,TT_Tabelle_Riferimento!$H$31:$I$50,2,FALSE))","v":40},{"$f":"+IFERROR(VLOOKUP(GA$6&\"-\"&$M9&\"_old\",Ammortamento_Finanziario!$H:$L,5,FALSE),VLOOKUP($M9,TT_Tabelle_Riferimento!$H$31:$I$50,2,FALSE))","v":40},{"$f":"+IFERROR(VLOOKUP(GB$6&\"-\"&$M9&\"_old\",Ammortamento_Finanziario!$H:$L,5,FALSE),VLOOKUP($M9,TT_Tabelle_Riferimento!$H$31:$I$50,2,FALSE))","v":40},{"$f":"+IFERROR(VLOOKUP(GC$6&\"-\"&$M9&\"_old\",Ammortamento_Finanziario!$H:$L,5,FALSE),VLOOKUP($M9,TT_Tabelle_Riferimento!$H$31:$I$50,2,FALSE))","v":40},{"$f":"+IFERROR(VLOOKUP(GD$6&\"-\"&$M9&\"_old\",Ammortamento_Finanziario!$H:$L,5,FALSE),VLOOKUP($M9,TT_Tabelle_Riferimento!$H$31:$I$50,2,FALSE))","v":40},{"$f":"+IFERROR(VLOOKUP(GE$6&\"-\"&$M9&\"_old\",Ammortamento_Finanziario!$H:$L,5,FALSE),VLOOKUP($M9,TT_Tabelle_Riferimento!$H$31:$I$50,2,FALSE))","v":40},{"$f":"+IFERROR(VLOOKUP(GF$6&\"-\"&$M9&\"_old\",Ammortamento_Finanziario!$H:$L,5,FALSE),VLOOKUP($M9,TT_Tabelle_Riferimento!$H$31:$I$50,2,FALSE))","v":40},{"$f":"+IFERROR(VLOOKUP(GG$6&\"-\"&$M9&\"_old\",Ammortamento_Finanziario!$H:$L,5,FALSE),VLOOKUP($M9,TT_Tabelle_Riferimento!$H$31:$I$50,2,FALSE))","v":40},{"$f":"+IFERROR(VLOOKUP(GH$6&\"-\"&$M9&\"_old\",Ammortamento_Finanziario!$H:$L,5,FALSE),VLOOKUP($M9,TT_Tabelle_Riferimento!$H$31:$I$50,2,FALSE))","v":40},{"$f":"+IFERROR(VLOOKUP(GI$6&\"-\"&$M9&\"_old\",Ammortamento_Finanziario!$H:$L,5,FALSE),VLOOKUP($M9,TT_Tabelle_Riferimento!$H$31:$I$50,2,FALSE))","v":40},{"$f":"+IFERROR(VLOOKUP(GJ$6&\"-\"&$M9&\"_old\",Ammortamento_Finanziario!$H:$L,5,FALSE),VLOOKUP($M9,TT_Tabelle_Riferimento!$H$31:$I$50,2,FALSE))","v":40},{"$f":"+IFERROR(VLOOKUP(GK$6&\"-\"&$M9&\"_old\",Ammortamento_Finanziario!$H:$L,5,FALSE),VLOOKUP($M9,TT_Tabelle_Riferimento!$H$31:$I$50,2,FALSE))","v":40},{"$f":"+IFERROR(VLOOKUP(GL$6&\"-\"&$M9&\"_old\",Ammortamento_Finanziario!$H:$L,5,FALSE),VLOOKUP($M9,TT_Tabelle_Riferimento!$H$31:$I$50,2,FALSE))","v":40},{"$f":"+IFERROR(VLOOKUP(GM$6&\"-\"&$M9&\"_old\",Ammortamento_Finanziario!$H:$L,5,FALSE),VLOOKUP($M9,TT_Tabelle_Riferimento!$H$31:$I$50,2,FALSE))","v":40},{"$f":"+IFERROR(VLOOKUP(GN$6&\"-\"&$M9&\"_old\",Ammortamento_Finanziario!$H:$L,5,FALSE),VLOOKUP($M9,TT_Tabelle_Riferimento!$H$31:$I$50,2,FALSE))","v":40},{"$f":"+IFERROR(VLOOKUP(GO$6&\"-\"&$M9&\"_old\",Ammortamento_Finanziario!$H:$L,5,FALSE),VLOOKUP($M9,TT_Tabelle_Riferimento!$H$31:$I$50,2,FALSE))","v":40},{"$f":"+IFERROR(VLOOKUP(GP$6&\"-\"&$M9&\"_old\",Ammortamento_Finanziario!$H:$L,5,FALSE),VLOOKUP($M9,TT_Tabelle_Riferimento!$H$31:$I$50,2,FALSE))","v":40},{"$f":"+IFERROR(VLOOKUP(GQ$6&\"-\"&$M9&\"_old\",Ammortamento_Finanziario!$H:$L,5,FALSE),VLOOKUP($M9,TT_Tabelle_Riferimento!$H$31:$I$50,2,FALSE))","v":40},{"$f":"+IFERROR(VLOOKUP(GR$6&\"-\"&$M9&\"_old\",Ammortamento_Finanziario!$H:$L,5,FALSE),VLOOKUP($M9,TT_Tabelle_Riferimento!$H$31:$I$50,2,FALSE))","v":40},{"$f":"+IFERROR(VLOOKUP(GS$6&\"-\"&$M9&\"_old\",Ammortamento_Finanziario!$H:$L,5,FALSE),VLOOKUP($M9,TT_Tabelle_Riferimento!$H$31:$I$50,2,FALSE))","v":40},{"$f":"+IFERROR(VLOOKUP(GT$6&\"-\"&$M9&\"_old\",Ammortamento_Finanziario!$H:$L,5,FALSE),VLOOKUP($M9,TT_Tabelle_Riferimento!$H$31:$I$50,2,FALSE))","v":40},{"$f":"+IFERROR(VLOOKUP(GU$6&\"-\"&$M9&\"_old\",Ammortamento_Finanziario!$H:$L,5,FALSE),VLOOKUP($M9,TT_Tabelle_Riferimento!$H$31:$I$50,2,FALSE))","v":40},{"$f":"+IFERROR(VLOOKUP(GV$6&\"-\"&$M9&\"_old\",Ammortamento_Finanziario!$H:$L,5,FALSE),VLOOKUP($M9,TT_Tabelle_Riferimento!$H$31:$I$50,2,FALSE))","v":40},{"$f":"+IFERROR(VLOOKUP(GW$6&\"-\"&$M9&\"_old\",Ammortamento_Finanziario!$H:$L,5,FALSE),VLOOKUP($M9,TT_Tabelle_Riferimento!$H$31:$I$50,2,FALSE))","v":40},{"$f":"+IFERROR(VLOOKUP(GX$6&\"-\"&$M9&\"_old\",Ammortamento_Finanziario!$H:$L,5,FALSE),VLOOKUP($M9,TT_Tabelle_Riferimento!$H$31:$I$50,2,FALSE))","v":40},{"$f":"+IFERROR(VLOOKUP(GY$6&\"-\"&$M9&\"_old\",Ammortamento_Finanziario!$H:$L,5,FALSE),VLOOKUP($M9,TT_Tabelle_Riferimento!$H$31:$I$50,2,FALSE))","v":40},{"$f":"+IFERROR(VLOOKUP(GZ$6&\"-\"&$M9&\"_old\",Ammortamento_Finanziario!$H:$L,5,FALSE),VLOOKUP($M9,TT_Tabelle_Riferimento!$H$31:$I$50,2,FALSE))","v":40},{"$f":"+IFERROR(VLOOKUP(HA$6&\"-\"&$M9&\"_old\",Ammortamento_Finanziario!$H:$L,5,FALSE),VLOOKUP($M9,TT_Tabelle_Riferimento!$H$31:$I$50,2,FALSE))","v":40},{"$f":"+IFERROR(VLOOKUP(HB$6&\"-\"&$M9&\"_old\",Ammortamento_Finanziario!$H:$L,5,FALSE),VLOOKUP($M9,TT_Tabelle_Riferimento!$H$31:$I$50,2,FALSE))","v":40},{"$f":"+IFERROR(VLOOKUP(HC$6&\"-\"&$M9&\"_old\",Ammortamento_Finanziario!$H:$L,5,FALSE),VLOOKUP($M9,TT_Tabelle_Riferimento!$H$31:$I$50,2,FALSE))","v":40},{"$f":"+IFERROR(VLOOKUP(HD$6&\"-\"&$M9&\"_old\",Ammortamento_Finanziario!$H:$L,5,FALSE),VLOOKUP($M9,TT_Tabelle_Riferimento!$H$31:$I$50,2,FALSE))","v":40},{"$f":"+IFERROR(VLOOKUP(HE$6&\"-\"&$M9&\"_old\",Ammortamento_Finanziario!$H:$L,5,FALSE),VLOOKUP($M9,TT_Tabelle_Riferimento!$H$31:$I$50,2,FALSE))","v":40},{"$f":"+IFERROR(VLOOKUP(HF$6&\"-\"&$M9&\"_old\",Ammortamento_Finanziario!$H:$L,5,FALSE),VLOOKUP($M9,TT_Tabelle_Riferimento!$H$31:$I$50,2,FALSE))","v":40},{"$f":"+IFERROR(VLOOKUP(HG$6&\"-\"&$M9&\"_old\",Ammortamento_Finanziario!$H:$L,5,FALSE),VLOOKUP($M9,TT_Tabelle_Riferimento!$H$31:$I$50,2,FALSE))","v":40},{"$f":"+IFERROR(VLOOKUP(HH$6&\"-\"&$M9&\"_old\",Ammortamento_Finanziario!$H:$L,5,FALSE),VLOOKUP($M9,TT_Tabelle_Riferimento!$H$31:$I$50,2,FALSE))","v":40},{"$f":"+IFERROR(VLOOKUP(HI$6&\"-\"&$M9&\"_old\",Ammortamento_Finanziario!$H:$L,5,FALSE),VLOOKUP($M9,TT_Tabelle_Riferimento!$H$31:$I$50,2,FALSE))","v":40},{"$f":"+IFERROR(VLOOKUP(HJ$6&\"-\"&$M9&\"_old\",Ammortamento_Finanziario!$H:$L,5,FALSE),VLOOKUP($M9,TT_Tabelle_Riferimento!$H$31:$I$50,2,FALSE))","v":40},{"$f":"+IFERROR(VLOOKUP(HK$6&\"-\"&$M9&\"_old\",Ammortamento_Finanziario!$H:$L,5,FALSE),VLOOKUP($M9,TT_Tabelle_Riferimento!$H$31:$I$50,2,FALSE))","v":40},{"$f":"+IFERROR(VLOOKUP(HL$6&\"-\"&$M9&\"_old\",Ammortamento_Finanziario!$H:$L,5,FALSE),VLOOKUP($M9,TT_Tabelle_Riferimento!$H$31:$I$50,2,FALSE))","v":40},{"$f":"+IFERROR(VLOOKUP(HM$6&\"-\"&$M9&\"_old\",Ammortamento_Finanziario!$H:$L,5,FALSE),VLOOKUP($M9,TT_Tabelle_Riferimento!$H$31:$I$50,2,FALSE))","v":40},{"$f":"+IFERROR(VLOOKUP(HN$6&\"-\"&$M9&\"_old\",Ammortamento_Finanziario!$H:$L,5,FALSE),VLOOKUP($M9,TT_Tabelle_Riferimento!$H$31:$I$50,2,FALSE))","v":40},{"$f":"+IFERROR(VLOOKUP(HO$6&\"-\"&$M9&\"_old\",Ammortamento_Finanziario!$H:$L,5,FALSE),VLOOKUP($M9,TT_Tabelle_Riferimento!$H$31:$I$50,2,FALSE))","v":40},{"$f":"+IFERROR(VLOOKUP(HP$6&\"-\"&$M9&\"_old\",Ammortamento_Finanziario!$H:$L,5,FALSE),VLOOKUP($M9,TT_Tabelle_Riferimento!$H$31:$I$50,2,FALSE))","v":40},{"$f":"+IFERROR(VLOOKUP(HQ$6&\"-\"&$M9&\"_old\",Ammortamento_Finanziario!$H:$L,5,FALSE),VLOOKUP($M9,TT_Tabelle_Riferimento!$H$31:$I$50,2,FALSE))","v":40},{"$f":"+IFERROR(VLOOKUP(HR$6&\"-\"&$M9&\"_old\",Ammortamento_Finanziario!$H:$L,5,FALSE),VLOOKUP($M9,TT_Tabelle_Riferimento!$H$31:$I$50,2,FALSE))","v":40},{"$f":"+IFERROR(VLOOKUP(HS$6&\"-\"&$M9&\"_old\",Ammortamento_Finanziario!$H:$L,5,FALSE),VLOOKUP($M9,TT_Tabelle_Riferimento!$H$31:$I$50,2,FALSE))","v":40},{"$f":"+IFERROR(VLOOKUP(HT$6&\"-\"&$M9&\"_old\",Ammortamento_Finanziario!$H:$L,5,FALSE),VLOOKUP($M9,TT_Tabelle_Riferimento!$H$31:$I$50,2,FALSE))","v":40},{"$f":"+IFERROR(VLOOKUP(HU$6&\"-\"&$M9&\"_old\",Ammortamento_Finanziario!$H:$L,5,FALSE),VLOOKUP($M9,TT_Tabelle_Riferimento!$H$31:$I$50,2,FALSE))","v":40},{"$f":"+IFERROR(VLOOKUP(HV$6&\"-\"&$M9&\"_old\",Ammortamento_Finanziario!$H:$L,5,FALSE),VLOOKUP($M9,TT_Tabelle_Riferimento!$H$31:$I$50,2,FALSE))","v":40},{"$f":"+IFERROR(VLOOKUP(HW$6&\"-\"&$M9&\"_old\",Ammortamento_Finanziario!$H:$L,5,FALSE),VLOOKUP($M9,TT_Tabelle_Riferimento!$H$31:$I$50,2,FALSE))","v":40},{"$f":"+IFERROR(VLOOKUP(HX$6&\"-\"&$M9&\"_old\",Ammortamento_Finanziario!$H:$L,5,FALSE),VLOOKUP($M9,TT_Tabelle_Riferimento!$H$31:$I$50,2,FALSE))","v":40},{"$f":"+IFERROR(VLOOKUP(HY$6&\"-\"&$M9&\"_old\",Ammortamento_Finanziario!$H:$L,5,FALSE),VLOOKUP($M9,TT_Tabelle_Riferimento!$H$31:$I$50,2,FALSE))","v":40},{"$f":"+IFERROR(VLOOKUP(HZ$6&\"-\"&$M9&\"_old\",Ammortamento_Finanziario!$H:$L,5,FALSE),VLOOKUP($M9,TT_Tabelle_Riferimento!$H$31:$I$50,2,FALSE))","v":40},{"$f":"+IFERROR(VLOOKUP(IA$6&\"-\"&$M9&\"_old\",Ammortamento_Finanziario!$H:$L,5,FALSE),VLOOKUP($M9,TT_Tabelle_Riferimento!$H$31:$I$50,2,FALSE))","v":40},{"$f":"+IFERROR(VLOOKUP(IB$6&\"-\"&$M9&\"_old\",Ammortamento_Finanziario!$H:$L,5,FALSE),VLOOKUP($M9,TT_Tabelle_Riferimento!$H$31:$I$50,2,FALSE))","v":40},{"$f":"+IFERROR(VLOOKUP(IC$6&\"-\"&$M9&\"_old\",Ammortamento_Finanziario!$H:$L,5,FALSE),VLOOKUP($M9,TT_Tabelle_Riferimento!$H$31:$I$50,2,FALSE))","v":40},{"$f":"+IFERROR(VLOOKUP(ID$6&\"-\"&$M9&\"_old\",Ammortamento_Finanziario!$H:$L,5,FALSE),VLOOKUP($M9,TT_Tabelle_Riferimento!$H$31:$I$50,2,FALSE))","v":40},{"$f":"+IFERROR(VLOOKUP(IE$6&\"-\"&$M9&\"_old\",Ammortamento_Finanziario!$H:$L,5,FALSE),VLOOKUP($M9,TT_Tabelle_Riferimento!$H$31:$I$50,2,FALSE))","v":40},{"$f":"+IFERROR(VLOOKUP(IF$6&\"-\"&$M9&\"_old\",Ammortamento_Finanziario!$H:$L,5,FALSE),VLOOKUP($M9,TT_Tabelle_Riferimento!$H$31:$I$50,2,FALSE))","v":40},{"$f":"+IFERROR(VLOOKUP(IG$6&\"-\"&$M9&\"_old\",Ammortamento_Finanziario!$H:$L,5,FALSE),VLOOKUP($M9,TT_Tabelle_Riferimento!$H$31:$I$50,2,FALSE))","v":40},{"$f":"+IFERROR(VLOOKUP(IH$6&\"-\"&$M9&\"_old\",Ammortamento_Finanziario!$H:$L,5,FALSE),VLOOKUP($M9,TT_Tabelle_Riferimento!$H$31:$I$50,2,FALSE))","v":40},{"$f":"+IFERROR(VLOOKUP(II$6&\"-\"&$M9&\"_old\",Ammortamento_Finanziario!$H:$L,5,FALSE),VLOOKUP($M9,TT_Tabelle_Riferimento!$H$31:$I$50,2,FALSE))","v":40},{"$f":"+IFERROR(VLOOKUP(IJ$6&\"-\"&$M9&\"_old\",Ammortamento_Finanziario!$H:$L,5,FALSE),VLOOKUP($M9,TT_Tabelle_Riferimento!$H$31:$I$50,2,FALSE))","v":40},{"$f":"+IFERROR(VLOOKUP(IK$6&\"-\"&$M9&\"_old\",Ammortamento_Finanziario!$H:$L,5,FALSE),VLOOKUP($M9,TT_Tabelle_Riferimento!$H$31:$I$50,2,FALSE))","v":40},{"$f":"+IFERROR(VLOOKUP(IL$6&\"-\"&$M9&\"_old\",Ammortamento_Finanziario!$H:$L,5,FALSE),VLOOKUP($M9,TT_Tabelle_Riferimento!$H$31:$I$50,2,FALSE))","v":40},{"$f":"+IFERROR(VLOOKUP(IM$6&\"-\"&$M9&\"_old\",Ammortamento_Finanziario!$H:$L,5,FALSE),VLOOKUP($M9,TT_Tabelle_Riferimento!$H$31:$I$50,2,FALSE))","v":40},{"$f":"+IFERROR(VLOOKUP(IN$6&\"-\"&$M9&\"_old\",Ammortamento_Finanziario!$H:$L,5,FALSE),VLOOKUP($M9,TT_Tabelle_Riferimento!$H$31:$I$50,2,FALSE))","v":40},{"$f":"+IFERROR(VLOOKUP(IO$6&\"-\"&$M9&\"_old\",Ammortamento_Finanziario!$H:$L,5,FALSE),VLOOKUP($M9,TT_Tabelle_Riferimento!$H$31:$I$50,2,FALSE))","v":40},{"$f":"+IFERROR(VLOOKUP(IP$6&\"-\"&$M9&\"_old\",Ammortamento_Finanziario!$H:$L,5,FALSE),VLOOKUP($M9,TT_Tabelle_Riferimento!$H$31:$I$50,2,FALSE))","v":40},{"$f":"+IFERROR(VLOOKUP(IQ$6&\"-\"&$M9&\"_old\",Ammortamento_Finanziario!$H:$L,5,FALSE),VLOOKUP($M9,TT_Tabelle_Riferimento!$H$31:$I$50,2,FALSE))","v":40},{"$f":"+IFERROR(VLOOKUP(IR$6&\"-\"&$M9&\"_old\",Ammortamento_Finanziario!$H:$L,5,FALSE),VLOOKUP($M9,TT_Tabelle_Riferimento!$H$31:$I$50,2,FALSE))","v":40},{"$f":"+IFERROR(VLOOKUP(IS$6&\"-\"&$M9&\"_old\",Ammortamento_Finanziario!$H:$L,5,FALSE),VLOOKUP($M9,TT_Tabelle_Riferimento!$H$31:$I$50,2,FALSE))","v":40},{"$f":"+IFERROR(VLOOKUP(IT$6&\"-\"&$M9&\"_old\",Ammortamento_Finanziario!$H:$L,5,FALSE),VLOOKUP($M9,TT_Tabelle_Riferimento!$H$31:$I$50,2,FALSE))","v":40},{"$f":"+IFERROR(VLOOKUP(IU$6&\"-\"&$M9&\"_old\",Ammortamento_Finanziario!$H:$L,5,FALSE),VLOOKUP($M9,TT_Tabelle_Riferimento!$H$31:$I$50,2,FALSE))","v":40},{"$f":"+IFERROR(VLOOKUP(IV$6&\"-\"&$M9&\"_old\",Ammortamento_Finanziario!$H:$L,5,FALSE),VLOOKUP($M9,TT_Tabelle_Riferimento!$H$31:$I$50,2,FALSE))","v":40},{"$f":"+IFERROR(VLOOKUP(IW$6&\"-\"&$M9&\"_old\",Ammortamento_Finanziario!$H:$L,5,FALSE),VLOOKUP($M9,TT_Tabelle_Riferimento!$H$31:$I$50,2,FALSE))","v":40},{"$f":"+IFERROR(VLOOKUP(IX$6&\"-\"&$M9&\"_old\",Ammortamento_Finanziario!$H:$L,5,FALSE),VLOOKUP($M9,TT_Tabelle_Riferimento!$H$31:$I$50,2,FALSE))","v":40},{"$f":"+IFERROR(VLOOKUP(IY$6&\"-\"&$M9&\"_old\",Ammortamento_Finanziario!$H:$L,5,FALSE),VLOOKUP($M9,TT_Tabelle_Riferimento!$H$31:$I$50,2,FALSE))","v":40},{"$f":"+IFERROR(VLOOKUP(IZ$6&\"-\"&$M9&\"_old\",Ammortamento_Finanziario!$H:$L,5,FALSE),VLOOKUP($M9,TT_Tabelle_Riferimento!$H$31:$I$50,2,FALSE))","v":40},{"$f":"+IFERROR(VLOOKUP(JA$6&\"-\"&$M9&\"_old\",Ammortamento_Finanziario!$H:$L,5,FALSE),VLOOKUP($M9,TT_Tabelle_Riferimento!$H$31:$I$50,2,FALSE))","v":40},{"$f":"+IFERROR(VLOOKUP(JB$6&\"-\"&$M9&\"_old\",Ammortamento_Finanziario!$H:$L,5,FALSE),VLOOKUP($M9,TT_Tabelle_Riferimento!$H$31:$I$50,2,FALSE))","v":40},{"$f":"+IFERROR(VLOOKUP(JC$6&\"-\"&$M9&\"_old\",Ammortamento_Finanziario!$H:$L,5,FALSE),VLOOKUP($M9,TT_Tabelle_Riferimento!$H$31:$I$50,2,FALSE))","v":40},{"$f":"+IFERROR(VLOOKUP(JD$6&\"-\"&$M9&\"_old\",Ammortamento_Finanziario!$H:$L,5,FALSE),VLOOKUP($M9,TT_Tabelle_Riferimento!$H$31:$I$50,2,FALSE))","v":40},{"$f":"+IFERROR(VLOOKUP(JE$6&\"-\"&$M9&\"_old\",Ammortamento_Finanziario!$H:$L,5,FALSE),VLOOKUP($M9,TT_Tabelle_Riferimento!$H$31:$I$50,2,FALSE))","v":40},{"$f":"+IFERROR(VLOOKUP(JF$6&\"-\"&$M9&\"_old\",Ammortamento_Finanziario!$H:$L,5,FALSE),VLOOKUP($M9,TT_Tabelle_Riferimento!$H$31:$I$50,2,FALSE))","v":40},{"$f":"+IFERROR(VLOOKUP(JG$6&\"-\"&$M9&\"_old\",Ammortamento_Finanziario!$H:$L,5,FALSE),VLOOKUP($M9,TT_Tabelle_Riferimento!$H$31:$I$50,2,FALSE))","v":40},{"$f":"+IFERROR(VLOOKUP(JH$6&\"-\"&$M9&\"_old\",Ammortamento_Finanziario!$H:$L,5,FALSE),VLOOKUP($M9,TT_Tabelle_Riferimento!$H$31:$I$50,2,FALSE))","v":40},{"$f":"+IFERROR(VLOOKUP(JI$6&\"-\"&$M9&\"_old\",Ammortamento_Finanziario!$H:$L,5,FALSE),VLOOKUP($M9,TT_Tabelle_Riferimento!$H$31:$I$50,2,FALSE))","v":40},{"$f":"+IFERROR(VLOOKUP(JJ$6&\"-\"&$M9&\"_old\",Ammortamento_Finanziario!$H:$L,5,FALSE),VLOOKUP($M9,TT_Tabelle_Riferimento!$H$31:$I$50,2,FALSE))","v":40},{"$f":"+IFERROR(VLOOKUP(JK$6&\"-\"&$M9&\"_old\",Ammortamento_Finanziario!$H:$L,5,FALSE),VLOOKUP($M9,TT_Tabelle_Riferimento!$H$31:$I$50,2,FALSE))","v":40},{"$f":"+IFERROR(VLOOKUP(JL$6&\"-\"&$M9&\"_old\",Ammortamento_Finanziario!$H:$L,5,FALSE),VLOOKUP($M9,TT_Tabelle_Riferimento!$H$31:$I$50,2,FALSE))","v":40},{"$f":"+IFERROR(VLOOKUP(JM$6&\"-\"&$M9&\"_old\",Ammortamento_Finanziario!$H:$L,5,FALSE),VLOOKUP($M9,TT_Tabelle_Riferimento!$H$31:$I$50,2,FALSE))","v":40},{"$f":"+IFERROR(VLOOKUP(JN$6&\"-\"&$M9&\"_old\",Ammortamento_Finanziario!$H:$L,5,FALSE),VLOOKUP($M9,TT_Tabelle_Riferimento!$H$31:$I$50,2,FALSE))","v":40},{"$f":"+IFERROR(VLOOKUP(JO$6&\"-\"&$M9&\"_old\",Ammortamento_Finanziario!$H:$L,5,FALSE),VLOOKUP($M9,TT_Tabelle_Riferimento!$H$31:$I$50,2,FALSE))","v":40},{"$f":"+IFERROR(VLOOKUP(JP$6&\"-\"&$M9&\"_old\",Ammortamento_Finanziario!$H:$L,5,FALSE),VLOOKUP($M9,TT_Tabelle_Riferimento!$H$31:$I$50,2,FALSE))","v":40},{"$f":"+IFERROR(VLOOKUP(JQ$6&\"-\"&$M9&\"_old\",Ammortamento_Finanziario!$H:$L,5,FALSE),VLOOKUP($M9,TT_Tabelle_Riferimento!$H$31:$I$50,2,FALSE))","v":40},{"$f":"+IFERROR(VLOOKUP(JR$6&\"-\"&$M9&\"_old\",Ammortamento_Finanziario!$H:$L,5,FALSE),VLOOKUP($M9,TT_Tabelle_Riferimento!$H$31:$I$50,2,FALSE))","v":40},{"$f":"+IFERROR(VLOOKUP(JS$6&\"-\"&$M9&\"_old\",Ammortamento_Finanziario!$H:$L,5,FALSE),VLOOKUP($M9,TT_Tabelle_Riferimento!$H$31:$I$50,2,FALSE))","v":40},{"$f":"+IFERROR(VLOOKUP(JT$6&\"-\"&$M9&\"_old\",Ammortamento_Finanziario!$H:$L,5,FALSE),VLOOKUP($M9,TT_Tabelle_Riferimento!$H$31:$I$50,2,FALSE))","v":40},{"$f":"+IFERROR(VLOOKUP(JU$6&\"-\"&$M9&\"_old\",Ammortamento_Finanziario!$H:$L,5,FALSE),VLOOKUP($M9,TT_Tabelle_Riferimento!$H$31:$I$50,2,FALSE))","v":40},{"$f":"+IFERROR(VLOOKUP(JV$6&\"-\"&$M9&\"_old\",Ammortamento_Finanziario!$H:$L,5,FALSE),VLOOKUP($M9,TT_Tabelle_Riferimento!$H$31:$I$50,2,FALSE))","v":40},{"$f":"+IFERROR(VLOOKUP(JW$6&\"-\"&$M9&\"_old\",Ammortamento_Finanziario!$H:$L,5,FALSE),VLOOKUP($M9,TT_Tabelle_Riferimento!$H$31:$I$50,2,FALSE))","v":40},{"$f":"+IFERROR(VLOOKUP(JX$6&\"-\"&$M9&\"_old\",Ammortamento_Finanziario!$H:$L,5,FALSE),VLOOKUP($M9,TT_Tabelle_Riferimento!$H$31:$I$50,2,FALSE))","v":40},{"$f":"+IFERROR(VLOOKUP(JY$6&\"-\"&$M9&\"_old\",Ammortamento_Finanziario!$H:$L,5,FALSE),VLOOKUP($M9,TT_Tabelle_Riferimento!$H$31:$I$50,2,FALSE))","v":40},{"$f":"+IFERROR(VLOOKUP(JZ$6&\"-\"&$M9&\"_old\",Ammortamento_Finanziario!$H:$L,5,FALSE),VLOOKUP($M9,TT_Tabelle_Riferimento!$H$31:$I$50,2,FALSE))","v":40},{"$f":"+IFERROR(VLOOKUP(KA$6&\"-\"&$M9&\"_old\",Ammortamento_Finanziario!$H:$L,5,FALSE),VLOOKUP($M9,TT_Tabelle_Riferimento!$H$31:$I$50,2,FALSE))","v":40},{"$f":"+IFERROR(VLOOKUP(KB$6&\"-\"&$M9&\"_old\",Ammortamento_Finanziario!$H:$L,5,FALSE),VLOOKUP($M9,TT_Tabelle_Riferimento!$H$31:$I$50,2,FALSE))","v":40},{"$f":"+IFERROR(VLOOKUP(KC$6&\"-\"&$M9&\"_old\",Ammortamento_Finanziario!$H:$L,5,FALSE),VLOOKUP($M9,TT_Tabelle_Riferimento!$H$31:$I$50,2,FALSE))","v":40},{"$f":"+IFERROR(VLOOKUP(KD$6&\"-\"&$M9&\"_old\",Ammortamento_Finanziario!$H:$L,5,FALSE),VLOOKUP($M9,TT_Tabelle_Riferimento!$H$31:$I$50,2,FALSE))","v":40},{"$f":"+IFERROR(VLOOKUP(KE$6&\"-\"&$M9&\"_old\",Ammortamento_Finanziario!$H:$L,5,FALSE),VLOOKUP($M9,TT_Tabelle_Riferimento!$H$31:$I$50,2,FALSE))","v":40},{"$f":"+IFERROR(VLOOKUP(KF$6&\"-\"&$M9&\"_old\",Ammortamento_Finanziario!$H:$L,5,FALSE),VLOOKUP($M9,TT_Tabelle_Riferimento!$H$31:$I$50,2,FALSE))","v":40},{"$f":"+IFERROR(VLOOKUP(KG$6&\"-\"&$M9&\"_old\",Ammortamento_Finanziario!$H:$L,5,FALSE),VLOOKUP($M9,TT_Tabelle_Riferimento!$H$31:$I$50,2,FALSE))","v":40},{"$f":"+IFERROR(VLOOKUP(KH$6&\"-\"&$M9&\"_old\",Ammortamento_Finanziario!$H:$L,5,FALSE),VLOOKUP($M9,TT_Tabelle_Riferimento!$H$31:$I$50,2,FALSE))","v":40},{"$f":"+IFERROR(VLOOKUP(KI$6&\"-\"&$M9&\"_old\",Ammortamento_Finanziario!$H:$L,5,FALSE),VLOOKUP($M9,TT_Tabelle_Riferimento!$H$31:$I$50,2,FALSE))","v":40},{"$f":"+IFERROR(VLOOKUP(KJ$6&\"-\"&$M9&\"_old\",Ammortamento_Finanziario!$H:$L,5,FALSE),VLOOKUP($M9,TT_Tabelle_Riferimento!$H$31:$I$50,2,FALSE))","v":40},{"$f":"+IFERROR(VLOOKUP(KK$6&\"-\"&$M9&\"_old\",Ammortamento_Finanziario!$H:$L,5,FALSE),VLOOKUP($M9,TT_Tabelle_Riferimento!$H$31:$I$50,2,FALSE))","v":40},{"$f":"+IFERROR(VLOOKUP(KL$6&\"-\"&$M9&\"_old\",Ammortamento_Finanziario!$H:$L,5,FALSE),VLOOKUP($M9,TT_Tabelle_Riferimento!$H$31:$I$50,2,FALSE))","v":40},{"$f":"+IFERROR(VLOOKUP(KM$6&\"-\"&$M9&\"_old\",Ammortamento_Finanziario!$H:$L,5,FALSE),VLOOKUP($M9,TT_Tabelle_Riferimento!$H$31:$I$50,2,FALSE))","v":40},{"$f":"+IFERROR(VLOOKUP(KN$6&\"-\"&$M9&\"_old\",Ammortamento_Finanziario!$H:$L,5,FALSE),VLOOKUP($M9,TT_Tabelle_Riferimento!$H$31:$I$50,2,FALSE))","v":40},{"$f":"+IFERROR(VLOOKUP(KO$6&\"-\"&$M9&\"_old\",Ammortamento_Finanziario!$H:$L,5,FALSE),VLOOKUP($M9,TT_Tabelle_Riferimento!$H$31:$I$50,2,FALSE))","v":40},{"$f":"+IFERROR(VLOOKUP(KP$6&\"-\"&$M9&\"_old\",Ammortamento_Finanziario!$H:$L,5,FALSE),VLOOKUP($M9,TT_Tabelle_Riferimento!$H$31:$I$50,2,FALSE))","v":40},{"$f":"+IFERROR(VLOOKUP(KQ$6&\"-\"&$M9&\"_old\",Ammortamento_Finanziario!$H:$L,5,FALSE),VLOOKUP($M9,TT_Tabelle_Riferimento!$H$31:$I$50,2,FALSE))","v":40},{"$f":"+IFERROR(VLOOKUP(KR$6&\"-\"&$M9&\"_old\",Ammortamento_Finanziario!$H:$L,5,FALSE),VLOOKUP($M9,TT_Tabelle_Riferimento!$H$31:$I$50,2,FALSE))","v":40},{"$f":"+IFERROR(VLOOKUP(KS$6&\"-\"&$M9&\"_old\",Ammortamento_Finanziario!$H:$L,5,FALSE),VLOOKUP($M9,TT_Tabelle_Riferimento!$H$31:$I$50,2,FALSE))","v":40},{"$f":"+IFERROR(VLOOKUP(KT$6&\"-\"&$M9&\"_old\",Ammortamento_Finanziario!$H:$L,5,FALSE),VLOOKUP($M9,TT_Tabelle_Riferimento!$H$31:$I$50,2,FALSE))","v":40},{"$f":"+IFERROR(VLOOKUP(KU$6&\"-\"&$M9&\"_old\",Ammortamento_Finanziario!$H:$L,5,FALSE),VLOOKUP($M9,TT_Tabelle_Riferimento!$H$31:$I$50,2,FALSE))","v":40},{"$f":"+IFERROR(VLOOKUP(KV$6&\"-\"&$M9&\"_old\",Ammortamento_Finanziario!$H:$L,5,FALSE),VLOOKUP($M9,TT_Tabelle_Riferimento!$H$31:$I$50,2,FALSE))","v":40},{"$f":"+IFERROR(VLOOKUP(KW$6&\"-\"&$M9&\"_old\",Ammortamento_Finanziario!$H:$L,5,FALSE),VLOOKUP($M9,TT_Tabelle_Riferimento!$H$31:$I$50,2,FALSE))","v":40},{"$f":"+IFERROR(VLOOKUP(KX$6&\"-\"&$M9&\"_old\",Ammortamento_Finanziario!$H:$L,5,FALSE),VLOOKUP($M9,TT_Tabelle_Riferimento!$H$31:$I$50,2,FALSE))","v":40},{"$f":"+IFERROR(VLOOKUP(KY$6&\"-\"&$M9&\"_old\",Ammortamento_Finanziario!$H:$L,5,FALSE),VLOOKUP($M9,TT_Tabelle_Riferimento!$H$31:$I$50,2,FALSE))","v":40},{"$f":"+IFERROR(VLOOKUP(KZ$6&\"-\"&$M9&\"_old\",Ammortamento_Finanziario!$H:$L,5,FALSE),VLOOKUP($M9,TT_Tabelle_Riferimento!$H$31:$I$50,2,FALSE))","v":40},{"$f":"+IFERROR(VLOOKUP(LA$6&\"-\"&$M9&\"_old\",Ammortamento_Finanziario!$H:$L,5,FALSE),VLOOKUP($M9,TT_Tabelle_Riferimento!$H$31:$I$50,2,FALSE))","v":40},{"$f":"+IFERROR(VLOOKUP(LB$6&\"-\"&$M9&\"_old\",Ammortamento_Finanziario!$H:$L,5,FALSE),VLOOKUP($M9,TT_Tabelle_Riferimento!$H$31:$I$50,2,FALSE))","v":40},{"$f":"+IFERROR(VLOOKUP(LC$6&\"-\"&$M9&\"_old\",Ammortamento_Finanziario!$H:$L,5,FALSE),VLOOKUP($M9,TT_Tabelle_Riferimento!$H$31:$I$50,2,FALSE))","v":40},{"$f":"+IFERROR(VLOOKUP(LD$6&\"-\"&$M9&\"_old\",Ammortamento_Finanziario!$H:$L,5,FALSE),VLOOKUP($M9,TT_Tabelle_Riferimento!$H$31:$I$50,2,FALSE))","v":40},{"$f":"+IFERROR(VLOOKUP(LE$6&\"-\"&$M9&\"_old\",Ammortamento_Finanziario!$H:$L,5,FALSE),VLOOKUP($M9,TT_Tabelle_Riferimento!$H$31:$I$50,2,FALSE))","v":40},{"$f":"+IFERROR(VLOOKUP(LF$6&\"-\"&$M9&\"_old\",Ammortamento_Finanziario!$H:$L,5,FALSE),VLOOKUP($M9,TT_Tabelle_Riferimento!$H$31:$I$50,2,FALSE))","v":40},{"$f":"+IFERROR(VLOOKUP(LG$6&\"-\"&$M9&\"_old\",Ammortamento_Finanziario!$H:$L,5,FALSE),VLOOKUP($M9,TT_Tabelle_Riferimento!$H$31:$I$50,2,FALSE))","v":40},{"$f":"+IFERROR(VLOOKUP(LH$6&\"-\"&$M9&\"_old\",Ammortamento_Finanziario!$H:$L,5,FALSE),VLOOKUP($M9,TT_Tabelle_Riferimento!$H$31:$I$50,2,FALSE))","v":40},{"$f":"+IFERROR(VLOOKUP(LI$6&\"-\"&$M9&\"_old\",Ammortamento_Finanziario!$H:$L,5,FALSE),VLOOKUP($M9,TT_Tabelle_Riferimento!$H$31:$I$50,2,FALSE))","v":40},{"$f":"+IFERROR(VLOOKUP(LJ$6&\"-\"&$M9&\"_old\",Ammortamento_Finanziario!$H:$L,5,FALSE),VLOOKUP($M9,TT_Tabelle_Riferimento!$H$31:$I$50,2,FALSE))","v":40},{"$f":"+IFERROR(VLOOKUP(LK$6&\"-\"&$M9&\"_old\",Ammortamento_Finanziario!$H:$L,5,FALSE),VLOOKUP($M9,TT_Tabelle_Riferimento!$H$31:$I$50,2,FALSE))","v":40},{"$f":"+IFERROR(VLOOKUP(LL$6&\"-\"&$M9&\"_old\",Ammortamento_Finanziario!$H:$L,5,FALSE),VLOOKUP($M9,TT_Tabelle_Riferimento!$H$31:$I$50,2,FALSE))","v":40},{"$f":"+IFERROR(VLOOKUP(LM$6&\"-\"&$M9&\"_old\",Ammortamento_Finanziario!$H:$L,5,FALSE),VLOOKUP($M9,TT_Tabelle_Riferimento!$H$31:$I$50,2,FALSE))","v":40},{"$f":"+IFERROR(VLOOKUP(LN$6&\"-\"&$M9&\"_old\",Ammortamento_Finanziario!$H:$L,5,FALSE),VLOOKUP($M9,TT_Tabelle_Riferimento!$H$31:$I$50,2,FALSE))","v":40},{"$f":"+IFERROR(VLOOKUP(LO$6&\"-\"&$M9&\"_old\",Ammortamento_Finanziario!$H:$L,5,FALSE),VLOOKUP($M9,TT_Tabelle_Riferimento!$H$31:$I$50,2,FALSE))","v":40},{"$f":"+IFERROR(VLOOKUP(LP$6&\"-\"&$M9&\"_old\",Ammortamento_Finanziario!$H:$L,5,FALSE),VLOOKUP($M9,TT_Tabelle_Riferimento!$H$31:$I$50,2,FALSE))","v":40},{"$f":"+IFERROR(VLOOKUP(LQ$6&\"-\"&$M9&\"_old\",Ammortamento_Finanziario!$H:$L,5,FALSE),VLOOKUP($M9,TT_Tabelle_Riferimento!$H$31:$I$50,2,FALSE))","v":40},{"$f":"+IFERROR(VLOOKUP(LR$6&\"-\"&$M9&\"_old\",Ammortamento_Finanziario!$H:$L,5,FALSE),VLOOKUP($M9,TT_Tabelle_Riferimento!$H$31:$I$50,2,FALSE))","v":40},{"$f":"+IFERROR(VLOOKUP(LS$6&\"-\"&$M9&\"_old\",Ammortamento_Finanziario!$H:$L,5,FALSE),VLOOKUP($M9,TT_Tabelle_Riferimento!$H$31:$I$50,2,FALSE))","v":40},{"$f":"+IFERROR(VLOOKUP(LT$6&\"-\"&$M9&\"_old\",Ammortamento_Finanziario!$H:$L,5,FALSE),VLOOKUP($M9,TT_Tabelle_Riferimento!$H$31:$I$50,2,FALSE))","v":40},{"$f":"+IFERROR(VLOOKUP(LU$6&\"-\"&$M9&\"_old\",Ammortamento_Finanziario!$H:$L,5,FALSE),VLOOKUP($M9,TT_Tabelle_Riferimento!$H$31:$I$50,2,FALSE))","v":40},{"$f":"+IFERROR(VLOOKUP(LV$6&\"-\"&$M9&\"_old\",Ammortamento_Finanziario!$H:$L,5,FALSE),VLOOKUP($M9,TT_Tabelle_Riferimento!$H$31:$I$50,2,FALSE))","v":40},{"$f":"+IFERROR(VLOOKUP(LW$6&\"-\"&$M9&\"_old\",Ammortamento_Finanziario!$H:$L,5,FALSE),VLOOKUP($M9,TT_Tabelle_Riferimento!$H$31:$I$50,2,FALSE))","v":40},{"$f":"+IFERROR(VLOOKUP(LX$6&\"-\"&$M9&\"_old\",Ammortamento_Finanziario!$H:$L,5,FALSE),VLOOKUP($M9,TT_Tabelle_Riferimento!$H$31:$I$50,2,FALSE))","v":40},{"$f":"+IFERROR(VLOOKUP(LY$6&\"-\"&$M9&\"_old\",Ammortamento_Finanziario!$H:$L,5,FALSE),VLOOKUP($M9,TT_Tabelle_Riferimento!$H$31:$I$50,2,FALSE))","v":40},{"$f":"+IFERROR(VLOOKUP(LZ$6&\"-\"&$M9&\"_old\",Ammortamento_Finanziario!$H:$L,5,FALSE),VLOOKUP($M9,TT_Tabelle_Riferimento!$H$31:$I$50,2,FALSE))","v":40},{"$f":"+IFERROR(VLOOKUP(MA$6&\"-\"&$M9&\"_old\",Ammortamento_Finanziario!$H:$L,5,FALSE),VLOOKUP($M9,TT_Tabelle_Riferimento!$H$31:$I$50,2,FALSE))","v":40},{"$f":"+IFERROR(VLOOKUP(MB$6&\"-\"&$M9&\"_old\",Ammortamento_Finanziario!$H:$L,5,FALSE),VLOOKUP($M9,TT_Tabelle_Riferimento!$H$31:$I$50,2,FALSE))","v":40},{"$f":"+IFERROR(VLOOKUP(MC$6&\"-\"&$M9&\"_old\",Ammortamento_Finanziario!$H:$L,5,FALSE),VLOOKUP($M9,TT_Tabelle_Riferimento!$H$31:$I$50,2,FALSE))","v":40},{"$f":"+IFERROR(VLOOKUP(MD$6&\"-\"&$M9&\"_old\",Ammortamento_Finanziario!$H:$L,5,FALSE),VLOOKUP($M9,TT_Tabelle_Riferimento!$H$31:$I$50,2,FALSE))","v":40},{"$f":"+IFERROR(VLOOKUP(ME$6&\"-\"&$M9&\"_old\",Ammortamento_Finanziario!$H:$L,5,FALSE),VLOOKUP($M9,TT_Tabelle_Riferimento!$H$31:$I$50,2,FALSE))","v":40},{"$f":"+IFERROR(VLOOKUP(MF$6&\"-\"&$M9&\"_old\",Ammortamento_Finanziario!$H:$L,5,FALSE),VLOOKUP($M9,TT_Tabelle_Riferimento!$H$31:$I$50,2,FALSE))","v":40},{"$f":"+IFERROR(VLOOKUP(MG$6&\"-\"&$M9&\"_old\",Ammortamento_Finanziario!$H:$L,5,FALSE),VLOOKUP($M9,TT_Tabelle_Riferimento!$H$31:$I$50,2,FALSE))","v":40},{"$f":"+IFERROR(VLOOKUP(MH$6&\"-\"&$M9&\"_old\",Ammortamento_Finanziario!$H:$L,5,FALSE),VLOOKUP($M9,TT_Tabelle_Riferimento!$H$31:$I$50,2,FALSE))","v":40},{"$f":"+IFERROR(VLOOKUP(MI$6&\"-\"&$M9&\"_old\",Ammortamento_Finanziario!$H:$L,5,FALSE),VLOOKUP($M9,TT_Tabelle_Riferimento!$H$31:$I$50,2,FALSE))","v":40},{"$f":"+IFERROR(VLOOKUP(MJ$6&\"-\"&$M9&\"_old\",Ammortamento_Finanziario!$H:$L,5,FALSE),VLOOKUP($M9,TT_Tabelle_Riferimento!$H$31:$I$50,2,FALSE))","v":40},{"$f":"+IFERROR(VLOOKUP(MK$6&\"-\"&$M9&\"_old\",Ammortamento_Finanziario!$H:$L,5,FALSE),VLOOKUP($M9,TT_Tabelle_Riferimento!$H$31:$I$50,2,FALSE))","v":40},{"$f":"+IFERROR(VLOOKUP(ML$6&\"-\"&$M9&\"_old\",Ammortamento_Finanziario!$H:$L,5,FALSE),VLOOKUP($M9,TT_Tabelle_Riferimento!$H$31:$I$50,2,FALSE))","v":40},{"$f":"+IFERROR(VLOOKUP(MM$6&\"-\"&$M9&\"_old\",Ammortamento_Finanziario!$H:$L,5,FALSE),VLOOKUP($M9,TT_Tabelle_Riferimento!$H$31:$I$50,2,FALSE))","v":40},{"$f":"+IFERROR(VLOOKUP(MN$6&\"-\"&$M9&\"_old\",Ammortamento_Finanziario!$H:$L,5,FALSE),VLOOKUP($M9,TT_Tabelle_Riferimento!$H$31:$I$50,2,FALSE))","v":40},{"$f":"+IFERROR(VLOOKUP(MO$6&\"-\"&$M9&\"_old\",Ammortamento_Finanziario!$H:$L,5,FALSE),VLOOKUP($M9,TT_Tabelle_Riferimento!$H$31:$I$50,2,FALSE))","v":40},{"$f":"+IFERROR(VLOOKUP(MP$6&\"-\"&$M9&\"_old\",Ammortamento_Finanziario!$H:$L,5,FALSE),VLOOKUP($M9,TT_Tabelle_Riferimento!$H$31:$I$50,2,FALSE))","v":40},{"$f":"+IFERROR(VLOOKUP(MQ$6&\"-\"&$M9&\"_old\",Ammortamento_Finanziario!$H:$L,5,FALSE),VLOOKUP($M9,TT_Tabelle_Riferimento!$H$31:$I$50,2,FALSE))","v":40},{"$f":"+IFERROR(VLOOKUP(MR$6&\"-\"&$M9&\"_old\",Ammortamento_Finanziario!$H:$L,5,FALSE),VLOOKUP($M9,TT_Tabelle_Riferimento!$H$31:$I$50,2,FALSE))","v":40},{"$f":"+IFERROR(VLOOKUP(MS$6&\"-\"&$M9&\"_old\",Ammortamento_Finanziario!$H:$L,5,FALSE),VLOOKUP($M9,TT_Tabelle_Riferimento!$H$31:$I$50,2,FALSE))","v":40},{"$f":"+IFERROR(VLOOKUP(MT$6&\"-\"&$M9&\"_old\",Ammortamento_Finanziario!$H:$L,5,FALSE),VLOOKUP($M9,TT_Tabelle_Riferimento!$H$31:$I$50,2,FALSE))","v":40},{"$f":"+IFERROR(VLOOKUP(MU$6&\"-\"&$M9&\"_old\",Ammortamento_Finanziario!$H:$L,5,FALSE),VLOOKUP($M9,TT_Tabelle_Riferimento!$H$31:$I$50,2,FALSE))","v":40},{"$f":"+IFERROR(VLOOKUP(MV$6&\"-\"&$M9&\"_old\",Ammortamento_Finanziario!$H:$L,5,FALSE),VLOOKUP($M9,TT_Tabelle_Riferimento!$H$31:$I$50,2,FALSE))","v":40},{"$f":"+IFERROR(VLOOKUP(MW$6&\"-\"&$M9&\"_old\",Ammortamento_Finanziario!$H:$L,5,FALSE),VLOOKUP($M9,TT_Tabelle_Riferimento!$H$31:$I$50,2,FALSE))","v":40},{"$f":"+IFERROR(VLOOKUP(MX$6&\"-\"&$M9&\"_old\",Ammortamento_Finanziario!$H:$L,5,FALSE),VLOOKUP($M9,TT_Tabelle_Riferimento!$H$31:$I$50,2,FALSE))","v":40},{"$f":"+IFERROR(VLOOKUP(MY$6&\"-\"&$M9&\"_old\",Ammortamento_Finanziario!$H:$L,5,FALSE),VLOOKUP($M9,TT_Tabelle_Riferimento!$H$31:$I$50,2,FALSE))","v":40},{"$f":"+IFERROR(VLOOKUP(MZ$6&\"-\"&$M9&\"_old\",Ammortamento_Finanziario!$H:$L,5,FALSE),VLOOKUP($M9,TT_Tabelle_Riferimento!$H$31:$I$50,2,FALSE))","v":40},{"$f":"+IFERROR(VLOOKUP(NA$6&\"-\"&$M9&\"_old\",Ammortamento_Finanziario!$H:$L,5,FALSE),VLOOKUP($M9,TT_Tabelle_Riferimento!$H$31:$I$50,2,FALSE))","v":40},{"$f":"+IFERROR(VLOOKUP(NB$6&\"-\"&$M9&\"_old\",Ammortamento_Finanziario!$H:$L,5,FALSE),VLOOKUP($M9,TT_Tabelle_Riferimento!$H$31:$I$50,2,FALSE))","v":40},{"$f":"+IFERROR(VLOOKUP(NC$6&\"-\"&$M9&\"_old\",Ammortamento_Finanziario!$H:$L,5,FALSE),VLOOKUP($M9,TT_Tabelle_Riferimento!$H$31:$I$50,2,FALSE))","v":40},{"$f":"+IFERROR(VLOOKUP(ND$6&\"-\"&$M9&\"_old\",Ammortamento_Finanziario!$H:$L,5,FALSE),VLOOKUP($M9,TT_Tabelle_Riferimento!$H$31:$I$50,2,FALSE))","v":40},{"$f":"+IFERROR(VLOOKUP(NE$6&\"-\"&$M9&\"_old\",Ammortamento_Finanziario!$H:$L,5,FALSE),VLOOKUP($M9,TT_Tabelle_Riferimento!$H$31:$I$50,2,FALSE))","v":40},{"$f":"+IFERROR(VLOOKUP(NF$6&\"-\"&$M9&\"_old\",Ammortamento_Finanziario!$H:$L,5,FALSE),VLOOKUP($M9,TT_Tabelle_Riferimento!$H$31:$I$50,2,FALSE))","v":40},{"$f":"+IFERROR(VLOOKUP(NG$6&\"-\"&$M9&\"_old\",Ammortamento_Finanziario!$H:$L,5,FALSE),VLOOKUP($M9,TT_Tabelle_Riferimento!$H$31:$I$50,2,FALSE))","v":40},{"$f":"+IFERROR(VLOOKUP(NH$6&\"-\"&$M9&\"_old\",Ammortamento_Finanziario!$H:$L,5,FALSE),VLOOKUP($M9,TT_Tabelle_Riferimento!$H$31:$I$50,2,FALSE))","v":40},{"$f":"+IFERROR(VLOOKUP(NI$6&\"-\"&$M9&\"_old\",Ammortamento_Finanziario!$H:$L,5,FALSE),VLOOKUP($M9,TT_Tabelle_Riferimento!$H$31:$I$50,2,FALSE))","v":40},{"$f":"+IFERROR(VLOOKUP(NJ$6&\"-\"&$M9&\"_old\",Ammortamento_Finanziario!$H:$L,5,FALSE),VLOOKUP($M9,TT_Tabelle_Riferimento!$H$31:$I$50,2,FALSE))","v":40},{"$f":"+IFERROR(VLOOKUP(NK$6&\"-\"&$M9&\"_old\",Ammortamento_Finanziario!$H:$L,5,FALSE),VLOOKUP($M9,TT_Tabelle_Riferimento!$H$31:$I$50,2,FALSE))","v":40},{"$f":"+IFERROR(VLOOKUP(NL$6&\"-\"&$M9&\"_old\",Ammortamento_Finanziario!$H:$L,5,FALSE),VLOOKUP($M9,TT_Tabelle_Riferimento!$H$31:$I$50,2,FALSE))","v":40},{"$f":"+IFERROR(VLOOKUP(NM$6&\"-\"&$M9&\"_old\",Ammortamento_Finanziario!$H:$L,5,FALSE),VLOOKUP($M9,TT_Tabelle_Riferimento!$H$31:$I$50,2,FALSE))","v":40},{"$f":"+IFERROR(VLOOKUP(NN$6&\"-\"&$M9&\"_old\",Ammortamento_Finanziario!$H:$L,5,FALSE),VLOOKUP($M9,TT_Tabelle_Riferimento!$H$31:$I$50,2,FALSE))","v":40},{"$f":"+IFERROR(VLOOKUP(NO$6&\"-\"&$M9&\"_old\",Ammortamento_Finanziario!$H:$L,5,FALSE),VLOOKUP($M9,TT_Tabelle_Riferimento!$H$31:$I$50,2,FALSE))","v":40},{"$f":"+IFERROR(VLOOKUP(NP$6&\"-\"&$M9&\"_old\",Ammortamento_Finanziario!$H:$L,5,FALSE),VLOOKUP($M9,TT_Tabelle_Riferimento!$H$31:$I$50,2,FALSE))","v":40},{"$f":"+IFERROR(VLOOKUP(NQ$6&\"-\"&$M9&\"_old\",Ammortamento_Finanziario!$H:$L,5,FALSE),VLOOKUP($M9,TT_Tabelle_Riferimento!$H$31:$I$50,2,FALSE))","v":40},{"$f":"+IFERROR(VLOOKUP(NR$6&\"-\"&$M9&\"_old\",Ammortamento_Finanziario!$H:$L,5,FALSE),VLOOKUP($M9,TT_Tabelle_Riferimento!$H$31:$I$50,2,FALSE))","v":40},{"$f":"+IFERROR(VLOOKUP(NS$6&\"-\"&$M9&\"_old\",Ammortamento_Finanziario!$H:$L,5,FALSE),VLOOKUP($M9,TT_Tabelle_Riferimento!$H$31:$I$50,2,FALSE))","v":40},{"$f":"+IFERROR(VLOOKUP(NT$6&\"-\"&$M9&\"_old\",Ammortamento_Finanziario!$H:$L,5,FALSE),VLOOKUP($M9,TT_Tabelle_Riferimento!$H$31:$I$50,2,FALSE))","v":40},{"$f":"+IFERROR(VLOOKUP(NU$6&\"-\"&$M9&\"_old\",Ammortamento_Finanziario!$H:$L,5,FALSE),VLOOKUP($M9,TT_Tabelle_Riferimento!$H$31:$I$50,2,FALSE))","v":40},{"$f":"+IFERROR(VLOOKUP(NV$6&\"-\"&$M9&\"_old\",Ammortamento_Finanziario!$H:$L,5,FALSE),VLOOKUP($M9,TT_Tabelle_Riferimento!$H$31:$I$50,2,FALSE))","v":40},{"$f":"+IFERROR(VLOOKUP(NW$6&\"-\"&$M9&\"_old\",Ammortamento_Finanziario!$H:$L,5,FALSE),VLOOKUP($M9,TT_Tabelle_Riferimento!$H$31:$I$50,2,FALSE))","v":40},{"$f":"+IFERROR(VLOOKUP(NX$6&\"-\"&$M9&\"_old\",Ammortamento_Finanziario!$H:$L,5,FALSE),VLOOKUP($M9,TT_Tabelle_Riferimento!$H$31:$I$50,2,FALSE))","v":40},{"$f":"+IFERROR(VLOOKUP(NY$6&\"-\"&$M9&\"_old\",Ammortamento_Finanziario!$H:$L,5,FALSE),VLOOKUP($M9,TT_Tabelle_Riferimento!$H$31:$I$50,2,FALSE))","v":40},{"$f":"+IFERROR(VLOOKUP(NZ$6&\"-\"&$M9&\"_old\",Ammortamento_Finanziario!$H:$L,5,FALSE),VLOOKUP($M9,TT_Tabelle_Riferimento!$H$31:$I$50,2,FALSE))","v":40},{"$f":"+IFERROR(VLOOKUP(OA$6&\"-\"&$M9&\"_old\",Ammortamento_Finanziario!$H:$L,5,FALSE),VLOOKUP($M9,TT_Tabelle_Riferimento!$H$31:$I$50,2,FALSE))","v":40},{"$f":"+IFERROR(VLOOKUP(OB$6&\"-\"&$M9&\"_old\",Ammortamento_Finanziario!$H:$L,5,FALSE),VLOOKUP($M9,TT_Tabelle_Riferimento!$H$31:$I$50,2,FALSE))","v":40},{"$f":"+IFERROR(VLOOKUP(OC$6&\"-\"&$M9&\"_old\",Ammortamento_Finanziario!$H:$L,5,FALSE),VLOOKUP($M9,TT_Tabelle_Riferimento!$H$31:$I$50,2,FALSE))","v":40},{"$f":"+IFERROR(VLOOKUP(OD$6&\"-\"&$M9&\"_old\",Ammortamento_Finanziario!$H:$L,5,FALSE),VLOOKUP($M9,TT_Tabelle_Riferimento!$H$31:$I$50,2,FALSE))","v":40},{"$f":"+IFERROR(VLOOKUP(OE$6&\"-\"&$M9&\"_old\",Ammortamento_Finanziario!$H:$L,5,FALSE),VLOOKUP($M9,TT_Tabelle_Riferimento!$H$31:$I$50,2,FALSE))","v":40},{"$f":"+IFERROR(VLOOKUP(OF$6&\"-\"&$M9&\"_old\",Ammortamento_Finanziario!$H:$L,5,FALSE),VLOOKUP($M9,TT_Tabelle_Riferimento!$H$31:$I$50,2,FALSE))","v":40},{"$f":"+IFERROR(VLOOKUP(OG$6&\"-\"&$M9&\"_old\",Ammortamento_Finanziario!$H:$L,5,FALSE),VLOOKUP($M9,TT_Tabelle_Riferimento!$H$31:$I$50,2,FALSE))","v":40},{"$f":"+IFERROR(VLOOKUP(OH$6&\"-\"&$M9&\"_old\",Ammortamento_Finanziario!$H:$L,5,FALSE),VLOOKUP($M9,TT_Tabelle_Riferimento!$H$31:$I$50,2,FALSE))","v":40},{"$f":"+IFERROR(VLOOKUP(OI$6&\"-\"&$M9&\"_old\",Ammortamento_Finanziario!$H:$L,5,FALSE),VLOOKUP($M9,TT_Tabelle_Riferimento!$H$31:$I$50,2,FALSE))","v":40},{"$f":"+IFERROR(VLOOKUP(OJ$6&\"-\"&$M9&\"_old\",Ammortamento_Finanziario!$H:$L,5,FALSE),VLOOKUP($M9,TT_Tabelle_Riferimento!$H$31:$I$50,2,FALSE))","v":40},{"$f":"+IFERROR(VLOOKUP(OK$6&\"-\"&$M9&\"_old\",Ammortamento_Finanziario!$H:$L,5,FALSE),VLOOKUP($M9,TT_Tabelle_Riferimento!$H$31:$I$50,2,FALSE))","v":40},{"$f":"+IFERROR(VLOOKUP(OL$6&\"-\"&$M9&\"_old\",Ammortamento_Finanziario!$H:$L,5,FALSE),VLOOKUP($M9,TT_Tabelle_Riferimento!$H$31:$I$50,2,FALSE))","v":40},{"$f":"+IFERROR(VLOOKUP(OM$6&\"-\"&$M9&\"_old\",Ammortamento_Finanziario!$H:$L,5,FALSE),VLOOKUP($M9,TT_Tabelle_Riferimento!$H$31:$I$50,2,FALSE))","v":40},{"$f":"+IFERROR(VLOOKUP(ON$6&\"-\"&$M9&\"_old\",Ammortamento_Finanziario!$H:$L,5,FALSE),VLOOKUP($M9,TT_Tabelle_Riferimento!$H$31:$I$50,2,FALSE))","v":40},{"$f":"+IFERROR(VLOOKUP(OO$6&\"-\"&$M9&\"_old\",Ammortamento_Finanziario!$H:$L,5,FALSE),VLOOKUP($M9,TT_Tabelle_Riferimento!$H$31:$I$50,2,FALSE))","v":40},{"$f":"+IFERROR(VLOOKUP(OP$6&\"-\"&$M9&\"_old\",Ammortamento_Finanziario!$H:$L,5,FALSE),VLOOKUP($M9,TT_Tabelle_Riferimento!$H$31:$I$50,2,FALSE))","v":40},{"$f":"+IFERROR(VLOOKUP(OQ$6&\"-\"&$M9&\"_old\",Ammortamento_Finanziario!$H:$L,5,FALSE),VLOOKUP($M9,TT_Tabelle_Riferimento!$H$31:$I$50,2,FALSE))","v":40},{"$f":"+IFERROR(VLOOKUP(OR$6&\"-\"&$M9&\"_old\",Ammortamento_Finanziario!$H:$L,5,FALSE),VLOOKUP($M9,TT_Tabelle_Riferimento!$H$31:$I$50,2,FALSE))","v":40},{"$f":"+IFERROR(VLOOKUP(OS$6&\"-\"&$M9&\"_old\",Ammortamento_Finanziario!$H:$L,5,FALSE),VLOOKUP($M9,TT_Tabelle_Riferimento!$H$31:$I$50,2,FALSE))","v":40},{"$f":"+IFERROR(VLOOKUP(OT$6&\"-\"&$M9&\"_old\",Ammortamento_Finanziario!$H:$L,5,FALSE),VLOOKUP($M9,TT_Tabelle_Riferimento!$H$31:$I$50,2,FALSE))","v":40},{"$f":"+IFERROR(VLOOKUP(OU$6&\"-\"&$M9&\"_old\",Ammortamento_Finanziario!$H:$L,5,FALSE),VLOOKUP($M9,TT_Tabelle_Riferimento!$H$31:$I$50,2,FALSE))","v":40},{"$f":"+IFERROR(VLOOKUP(OV$6&\"-\"&$M9&\"_old\",Ammortamento_Finanziario!$H:$L,5,FALSE),VLOOKUP($M9,TT_Tabelle_Riferimento!$H$31:$I$50,2,FALSE))","v":40},{"$f":"+IFERROR(VLOOKUP(OW$6&\"-\"&$M9&\"_old\",Ammortamento_Finanziario!$H:$L,5,FALSE),VLOOKUP($M9,TT_Tabelle_Riferimento!$H$31:$I$50,2,FALSE))","v":40},{"$f":"+IFERROR(VLOOKUP(OX$6&\"-\"&$M9&\"_old\",Ammortamento_Finanziario!$H:$L,5,FALSE),VLOOKUP($M9,TT_Tabelle_Riferimento!$H$31:$I$50,2,FALSE))","v":40},{"$f":"+IFERROR(VLOOKUP(OY$6&\"-\"&$M9&\"_old\",Ammortamento_Finanziario!$H:$L,5,FALSE),VLOOKUP($M9,TT_Tabelle_Riferimento!$H$31:$I$50,2,FALSE))","v":40},{"$f":"+IFERROR(VLOOKUP(OZ$6&\"-\"&$M9&\"_old\",Ammortamento_Finanziario!$H:$L,5,FALSE),VLOOKUP($M9,TT_Tabelle_Riferimento!$H$31:$I$50,2,FALSE))","v":40},{"$f":"+IFERROR(VLOOKUP(PA$6&\"-\"&$M9&\"_old\",Ammortamento_Finanziario!$H:$L,5,FALSE),VLOOKUP($M9,TT_Tabelle_Riferimento!$H$31:$I$50,2,FALSE))","v":40},{"$f":"+IFERROR(VLOOKUP(PB$6&\"-\"&$M9&\"_old\",Ammortamento_Finanziario!$H:$L,5,FALSE),VLOOKUP($M9,TT_Tabelle_Riferimento!$H$31:$I$50,2,FALSE))","v":40},{"$f":"+IFERROR(VLOOKUP(PC$6&\"-\"&$M9&\"_old\",Ammortamento_Finanziario!$H:$L,5,FALSE),VLOOKUP($M9,TT_Tabelle_Riferimento!$H$31:$I$50,2,FALSE))","v":40},{"$f":"+IFERROR(VLOOKUP(PD$6&\"-\"&$M9&\"_old\",Ammortamento_Finanziario!$H:$L,5,FALSE),VLOOKUP($M9,TT_Tabelle_Riferimento!$H$31:$I$50,2,FALSE))","v":40},{"$f":"+IFERROR(VLOOKUP(PE$6&\"-\"&$M9&\"_old\",Ammortamento_Finanziario!$H:$L,5,FALSE),VLOOKUP($M9,TT_Tabelle_Riferimento!$H$31:$I$50,2,FALSE))","v":40},{"$f":"+IFERROR(VLOOKUP(PF$6&\"-\"&$M9&\"_old\",Ammortamento_Finanziario!$H:$L,5,FALSE),VLOOKUP($M9,TT_Tabelle_Riferimento!$H$31:$I$50,2,FALSE))","v":40},{"$f":"+IFERROR(VLOOKUP(PG$6&\"-\"&$M9&\"_old\",Ammortamento_Finanziario!$H:$L,5,FALSE),VLOOKUP($M9,TT_Tabelle_Riferimento!$H$31:$I$50,2,FALSE))","v":40},{"$f":"+IFERROR(VLOOKUP(PH$6&\"-\"&$M9&\"_old\",Ammortamento_Finanziario!$H:$L,5,FALSE),VLOOKUP($M9,TT_Tabelle_Riferimento!$H$31:$I$50,2,FALSE))","v":40},{"$f":"+IFERROR(VLOOKUP(PI$6&\"-\"&$M9&\"_old\",Ammortamento_Finanziario!$H:$L,5,FALSE),VLOOKUP($M9,TT_Tabelle_Riferimento!$H$31:$I$50,2,FALSE))","v":40},{"$f":"+IFERROR(VLOOKUP(PJ$6&\"-\"&$M9&\"_old\",Ammortamento_Finanziario!$H:$L,5,FALSE),VLOOKUP($M9,TT_Tabelle_Riferimento!$H$31:$I$50,2,FALSE))","v":40},{"$f":"+IFERROR(VLOOKUP(PK$6&\"-\"&$M9&\"_old\",Ammortamento_Finanziario!$H:$L,5,FALSE),VLOOKUP($M9,TT_Tabelle_Riferimento!$H$31:$I$50,2,FALSE))","v":40},{"$f":"+IFERROR(VLOOKUP(PL$6&\"-\"&$M9&\"_old\",Ammortamento_Finanziario!$H:$L,5,FALSE),VLOOKUP($M9,TT_Tabelle_Riferimento!$H$31:$I$50,2,FALSE))","v":40},{"$f":"+IFERROR(VLOOKUP(PM$6&\"-\"&$M9&\"_old\",Ammortamento_Finanziario!$H:$L,5,FALSE),VLOOKUP($M9,TT_Tabelle_Riferimento!$H$31:$I$50,2,FALSE))","v":40},{"$f":"+IFERROR(VLOOKUP(PN$6&\"-\"&$M9&\"_old\",Ammortamento_Finanziario!$H:$L,5,FALSE),VLOOKUP($M9,TT_Tabelle_Riferimento!$H$31:$I$50,2,FALSE))","v":40},{"$f":"+IFERROR(VLOOKUP(PO$6&\"-\"&$M9&\"_old\",Ammortamento_Finanziario!$H:$L,5,FALSE),VLOOKUP($M9,TT_Tabelle_Riferimento!$H$31:$I$50,2,FALSE))","v":40},{"$f":"+IFERROR(VLOOKUP(PP$6&\"-\"&$M9&\"_old\",Ammortamento_Finanziario!$H:$L,5,FALSE),VLOOKUP($M9,TT_Tabelle_Riferimento!$H$31:$I$50,2,FALSE))","v":40},{"$f":"+IFERROR(VLOOKUP(PQ$6&\"-\"&$M9&\"_old\",Ammortamento_Finanziario!$H:$L,5,FALSE),VLOOKUP($M9,TT_Tabelle_Riferimento!$H$31:$I$50,2,FALSE))","v":40},{"$f":"+IFERROR(VLOOKUP(PR$6&\"-\"&$M9&\"_old\",Ammortamento_Finanziario!$H:$L,5,FALSE),VLOOKUP($M9,TT_Tabelle_Riferimento!$H$31:$I$50,2,FALSE))","v":40},{"$f":"+IFERROR(VLOOKUP(PS$6&\"-\"&$M9&\"_old\",Ammortamento_Finanziario!$H:$L,5,FALSE),VLOOKUP($M9,TT_Tabelle_Riferimento!$H$31:$I$50,2,FALSE))","v":40},{"$f":"+IFERROR(VLOOKUP(PT$6&\"-\"&$M9&\"_old\",Ammortamento_Finanziario!$H:$L,5,FALSE),VLOOKUP($M9,TT_Tabelle_Riferimento!$H$31:$I$50,2,FALSE))","v":40},{"$f":"+IFERROR(VLOOKUP(PU$6&\"-\"&$M9&\"_old\",Ammortamento_Finanziario!$H:$L,5,FALSE),VLOOKUP($M9,TT_Tabelle_Riferimento!$H$31:$I$50,2,FALSE))","v":40},{"$f":"+IFERROR(VLOOKUP(PV$6&\"-\"&$M9&\"_old\",Ammortamento_Finanziario!$H:$L,5,FALSE),VLOOKUP($M9,TT_Tabelle_Riferimento!$H$31:$I$50,2,FALSE))","v":40},{"$f":"+IFERROR(VLOOKUP(PW$6&\"-\"&$M9&\"_old\",Ammortamento_Finanziario!$H:$L,5,FALSE),VLOOKUP($M9,TT_Tabelle_Riferimento!$H$31:$I$50,2,FALSE))","v":40},{"$f":"+IFERROR(VLOOKUP(PX$6&\"-\"&$M9&\"_old\",Ammortamento_Finanziario!$H:$L,5,FALSE),VLOOKUP($M9,TT_Tabelle_Riferimento!$H$31:$I$50,2,FALSE))","v":40},{"$f":"+IFERROR(VLOOKUP(PY$6&\"-\"&$M9&\"_old\",Ammortamento_Finanziario!$H:$L,5,FALSE),VLOOKUP($M9,TT_Tabelle_Riferimento!$H$31:$I$50,2,FALSE))","v":40},{"$f":"+IFERROR(VLOOKUP(PZ$6&\"-\"&$M9&\"_old\",Ammortamento_Finanziario!$H:$L,5,FALSE),VLOOKUP($M9,TT_Tabelle_Riferimento!$H$31:$I$50,2,FALSE))","v":40},{"$f":"+IFERROR(VLOOKUP(QA$6&\"-\"&$M9&\"_old\",Ammortamento_Finanziario!$H:$L,5,FALSE),VLOOKUP($M9,TT_Tabelle_Riferimento!$H$31:$I$50,2,FALSE))","v":40},{"$f":"+IFERROR(VLOOKUP(QB$6&\"-\"&$M9&\"_old\",Ammortamento_Finanziario!$H:$L,5,FALSE),VLOOKUP($M9,TT_Tabelle_Riferimento!$H$31:$I$50,2,FALSE))","v":40},{"$f":"+IFERROR(VLOOKUP(QC$6&\"-\"&$M9&\"_old\",Ammortamento_Finanziario!$H:$L,5,FALSE),VLOOKUP($M9,TT_Tabelle_Riferimento!$H$31:$I$50,2,FALSE))","v":40},{"$f":"+IFERROR(VLOOKUP(QD$6&\"-\"&$M9&\"_old\",Ammortamento_Finanziario!$H:$L,5,FALSE),VLOOKUP($M9,TT_Tabelle_Riferimento!$H$31:$I$50,2,FALSE))","v":40},{"$f":"+IFERROR(VLOOKUP(QE$6&\"-\"&$M9&\"_old\",Ammortamento_Finanziario!$H:$L,5,FALSE),VLOOKUP($M9,TT_Tabelle_Riferimento!$H$31:$I$50,2,FALSE))","v":40},{"$f":"+IFERROR(VLOOKUP(QF$6&\"-\"&$M9&\"_old\",Ammortamento_Finanziario!$H:$L,5,FALSE),VLOOKUP($M9,TT_Tabelle_Riferimento!$H$31:$I$50,2,FALSE))","v":40},{"$f":"+IFERROR(VLOOKUP(QG$6&\"-\"&$M9&\"_old\",Ammortamento_Finanziario!$H:$L,5,FALSE),VLOOKUP($M9,TT_Tabelle_Riferimento!$H$31:$I$50,2,FALSE))","v":40},{"$f":"+IFERROR(VLOOKUP(QH$6&\"-\"&$M9&\"_old\",Ammortamento_Finanziario!$H:$L,5,FALSE),VLOOKUP($M9,TT_Tabelle_Riferimento!$H$31:$I$50,2,FALSE))","v":40},{"$f":"+IFERROR(VLOOKUP(QI$6&\"-\"&$M9&\"_old\",Ammortamento_Finanziario!$H:$L,5,FALSE),VLOOKUP($M9,TT_Tabelle_Riferimento!$H$31:$I$50,2,FALSE))","v":40},{"$f":"+IFERROR(VLOOKUP(QJ$6&\"-\"&$M9&\"_old\",Ammortamento_Finanziario!$H:$L,5,FALSE),VLOOKUP($M9,TT_Tabelle_Riferimento!$H$31:$I$50,2,FALSE))","v":40},{"$f":"+IFERROR(VLOOKUP(QK$6&\"-\"&$M9&\"_old\",Ammortamento_Finanziario!$H:$L,5,FALSE),VLOOKUP($M9,TT_Tabelle_Riferimento!$H$31:$I$50,2,FALSE))","v":40},{"$f":"+IFERROR(VLOOKUP(QL$6&\"-\"&$M9&\"_old\",Ammortamento_Finanziario!$H:$L,5,FALSE),VLOOKUP($M9,TT_Tabelle_Riferimento!$H$31:$I$50,2,FALSE))","v":40},{"$f":"+IFERROR(VLOOKUP(QM$6&\"-\"&$M9&\"_old\",Ammortamento_Finanziario!$H:$L,5,FALSE),VLOOKUP($M9,TT_Tabelle_Riferimento!$H$31:$I$50,2,FALSE))","v":40},{"$f":"+IFERROR(VLOOKUP(QN$6&\"-\"&$M9&\"_old\",Ammortamento_Finanziario!$H:$L,5,FALSE),VLOOKUP($M9,TT_Tabelle_Riferimento!$H$31:$I$50,2,FALSE))","v":40},{"$f":"+IFERROR(VLOOKUP(QO$6&\"-\"&$M9&\"_old\",Ammortamento_Finanziario!$H:$L,5,FALSE),VLOOKUP($M9,TT_Tabelle_Riferimento!$H$31:$I$50,2,FALSE))","v":40},{"$f":"+IFERROR(VLOOKUP(QP$6&\"-\"&$M9&\"_old\",Ammortamento_Finanziario!$H:$L,5,FALSE),VLOOKUP($M9,TT_Tabelle_Riferimento!$H$31:$I$50,2,FALSE))","v":40},{"$f":"+IFERROR(VLOOKUP(QQ$6&\"-\"&$M9&\"_old\",Ammortamento_Finanziario!$H:$L,5,FALSE),VLOOKUP($M9,TT_Tabelle_Riferimento!$H$31:$I$50,2,FALSE))","v":40},{"$f":"+IFERROR(VLOOKUP(QR$6&\"-\"&$M9&\"_old\",Ammortamento_Finanziario!$H:$L,5,FALSE),VLOOKUP($M9,TT_Tabelle_Riferimento!$H$31:$I$50,2,FALSE))","v":40},{"$f":"+IFERROR(VLOOKUP(QS$6&\"-\"&$M9&\"_old\",Ammortamento_Finanziario!$H:$L,5,FALSE),VLOOKUP($M9,TT_Tabelle_Riferimento!$H$31:$I$50,2,FALSE))","v":40},{"$f":"+IFERROR(VLOOKUP(QT$6&\"-\"&$M9&\"_old\",Ammortamento_Finanziario!$H:$L,5,FALSE),VLOOKUP($M9,TT_Tabelle_Riferimento!$H$31:$I$50,2,FALSE))","v":40},{"$f":"+IFERROR(VLOOKUP(QU$6&\"-\"&$M9&\"_old\",Ammortamento_Finanziario!$H:$L,5,FALSE),VLOOKUP($M9,TT_Tabelle_Riferimento!$H$31:$I$50,2,FALSE))","v":40},{"$f":"+IFERROR(VLOOKUP(QV$6&\"-\"&$M9&\"_old\",Ammortamento_Finanziario!$H:$L,5,FALSE),VLOOKUP($M9,TT_Tabelle_Riferimento!$H$31:$I$50,2,FALSE))","v":40},{"$f":"+IFERROR(VLOOKUP(QW$6&\"-\"&$M9&\"_old\",Ammortamento_Finanziario!$H:$L,5,FALSE),VLOOKUP($M9,TT_Tabelle_Riferimento!$H$31:$I$50,2,FALSE))","v":40},{"$f":"+IFERROR(VLOOKUP(QX$6&\"-\"&$M9&\"_old\",Ammortamento_Finanziario!$H:$L,5,FALSE),VLOOKUP($M9,TT_Tabelle_Riferimento!$H$31:$I$50,2,FALSE))","v":40},{"$f":"+IFERROR(VLOOKUP(QY$6&\"-\"&$M9&\"_old\",Ammortamento_Finanziario!$H:$L,5,FALSE),VLOOKUP($M9,TT_Tabelle_Riferimento!$H$31:$I$50,2,FALSE))","v":40},{"$f":"+IFERROR(VLOOKUP(QZ$6&\"-\"&$M9&\"_old\",Ammortamento_Finanziario!$H:$L,5,FALSE),VLOOKUP($M9,TT_Tabelle_Riferimento!$H$31:$I$50,2,FALSE))","v":40},{"$f":"+IFERROR(VLOOKUP(RA$6&\"-\"&$M9&\"_old\",Ammortamento_Finanziario!$H:$L,5,FALSE),VLOOKUP($M9,TT_Tabelle_Riferimento!$H$31:$I$50,2,FALSE))","v":40},{"$f":"+IFERROR(VLOOKUP(RB$6&\"-\"&$M9&\"_old\",Ammortamento_Finanziario!$H:$L,5,FALSE),VLOOKUP($M9,TT_Tabelle_Riferimento!$H$31:$I$50,2,FALSE))","v":40},{"$f":"+IFERROR(VLOOKUP(RC$6&\"-\"&$M9&\"_old\",Ammortamento_Finanziario!$H:$L,5,FALSE),VLOOKUP($M9,TT_Tabelle_Riferimento!$H$31:$I$50,2,FALSE))","v":40},{"$f":"+IFERROR(VLOOKUP(RD$6&\"-\"&$M9&\"_old\",Ammortamento_Finanziario!$H:$L,5,FALSE),VLOOKUP($M9,TT_Tabelle_Riferimento!$H$31:$I$50,2,FALSE))","v":40},{"$f":"+IFERROR(VLOOKUP(RE$6&\"-\"&$M9&\"_old\",Ammortamento_Finanziario!$H:$L,5,FALSE),VLOOKUP($M9,TT_Tabelle_Riferimento!$H$31:$I$50,2,FALSE))","v":40},{"$f":"+IFERROR(VLOOKUP(RF$6&\"-\"&$M9&\"_old\",Ammortamento_Finanziario!$H:$L,5,FALSE),VLOOKUP($M9,TT_Tabelle_Riferimento!$H$31:$I$50,2,FALSE))","v":40},{"$f":"+IFERROR(VLOOKUP(RG$6&\"-\"&$M9&\"_old\",Ammortamento_Finanziario!$H:$L,5,FALSE),VLOOKUP($M9,TT_Tabelle_Riferimento!$H$31:$I$50,2,FALSE))","v":40},{"$f":"+IFERROR(VLOOKUP(RH$6&\"-\"&$M9&\"_old\",Ammortamento_Finanziario!$H:$L,5,FALSE),VLOOKUP($M9,TT_Tabelle_Riferimento!$H$31:$I$50,2,FALSE))","v":40},{"$f":"+IFERROR(VLOOKUP(RI$6&\"-\"&$M9&\"_old\",Ammortamento_Finanziario!$H:$L,5,FALSE),VLOOKUP($M9,TT_Tabelle_Riferimento!$H$31:$I$50,2,FALSE))","v":40},{"$f":"+IFERROR(VLOOKUP(RJ$6&\"-\"&$M9&\"_old\",Ammortamento_Finanziario!$H:$L,5,FALSE),VLOOKUP($M9,TT_Tabelle_Riferimento!$H$31:$I$50,2,FALSE))","v":40},{"$f":"+IFERROR(VLOOKUP(RK$6&\"-\"&$M9&\"_old\",Ammortamento_Finanziario!$H:$L,5,FALSE),VLOOKUP($M9,TT_Tabelle_Riferimento!$H$31:$I$50,2,FALSE))","v":40},{"$f":"+IFERROR(VLOOKUP(RL$6&\"-\"&$M9&\"_old\",Ammortamento_Finanziario!$H:$L,5,FALSE),VLOOKUP($M9,TT_Tabelle_Riferimento!$H$31:$I$50,2,FALSE))","v":40},{"$f":"+IFERROR(VLOOKUP(RM$6&\"-\"&$M9&\"_old\",Ammortamento_Finanziario!$H:$L,5,FALSE),VLOOKUP($M9,TT_Tabelle_Riferimento!$H$31:$I$50,2,FALSE))","v":40},{"$f":"+IFERROR(VLOOKUP(RN$6&\"-\"&$M9&\"_old\",Ammortamento_Finanziario!$H:$L,5,FALSE),VLOOKUP($M9,TT_Tabelle_Riferimento!$H$31:$I$50,2,FALSE))","v":40},{"$f":"+IFERROR(VLOOKUP(RO$6&\"-\"&$M9&\"_old\",Ammortamento_Finanziario!$H:$L,5,FALSE),VLOOKUP($M9,TT_Tabelle_Riferimento!$H$31:$I$50,2,FALSE))","v":40},{"$f":"+IFERROR(VLOOKUP(RP$6&\"-\"&$M9&\"_old\",Ammortamento_Finanziario!$H:$L,5,FALSE),VLOOKUP($M9,TT_Tabelle_Riferimento!$H$31:$I$50,2,FALSE))","v":40},{"$f":"+IFERROR(VLOOKUP(RQ$6&\"-\"&$M9&\"_old\",Ammortamento_Finanziario!$H:$L,5,FALSE),VLOOKUP($M9,TT_Tabelle_Riferimento!$H$31:$I$50,2,FALSE))","v":40},{"$f":"+IFERROR(VLOOKUP(RR$6&\"-\"&$M9&\"_old\",Ammortamento_Finanziario!$H:$L,5,FALSE),VLOOKUP($M9,TT_Tabelle_Riferimento!$H$31:$I$50,2,FALSE))","v":40},{"$f":"+IFERROR(VLOOKUP(RS$6&\"-\"&$M9&\"_old\",Ammortamento_Finanziario!$H:$L,5,FALSE),VLOOKUP($M9,TT_Tabelle_Riferimento!$H$31:$I$50,2,FALSE))","v":40},{"$f":"+IFERROR(VLOOKUP(RT$6&\"-\"&$M9&\"_old\",Ammortamento_Finanziario!$H:$L,5,FALSE),VLOOKUP($M9,TT_Tabelle_Riferimento!$H$31:$I$50,2,FALSE))","v":40},{"$f":"+IFERROR(VLOOKUP(RU$6&\"-\"&$M9&\"_old\",Ammortamento_Finanziario!$H:$L,5,FALSE),VLOOKUP($M9,TT_Tabelle_Riferimento!$H$31:$I$50,2,FALSE))","v":40},{"$f":"+IFERROR(VLOOKUP(RV$6&\"-\"&$M9&\"_old\",Ammortamento_Finanziario!$H:$L,5,FALSE),VLOOKUP($M9,TT_Tabelle_Riferimento!$H$31:$I$50,2,FALSE))","v":40}]
[null,null,null,"CFP",{"$f":"+SUM(IMN_gestore!$U:$U)","v":0},{"$f":"+SUM(IMN_gestore!$AF:$AF)","v":0},{"$f":"+SUM(IMN_gestore!$AQ:$AQ)","v":0},{"$f":"+SUM(IMN_gestore!$BB:$BB)","v":0},{"$f":"+SUM(IMN_gestore!BM:BM)","v":0},{"$f":"+SUM(IMN_gestore!$BX:$BX)","v":0},null,null,4,{"$f":"+IFERROR(VLOOKUP(N$6&\"-\"&$M10&\"_old\",Ammortamento_Finanziario!$H:$L,5,FALSE),VLOOKUP($M10,TT_Tabelle_Riferimento!$H$31:$I$50,2,FALSE))","v":40},{"$f":"+IFERROR(VLOOKUP(O$6&\"-\"&$M10&\"_old\",Ammortamento_Finanziario!$H:$L,5,FALSE),VLOOKUP($M10,TT_Tabelle_Riferimento!$H$31:$I$50,2,FALSE))","v":40},{"$f":"+IFERROR(VLOOKUP(P$6&\"-\"&$M10&\"_old\",Ammortamento_Finanziario!$H:$L,5,FALSE),VLOOKUP($M10,TT_Tabelle_Riferimento!$H$31:$I$50,2,FALSE))","v":40},{"$f":"+IFERROR(VLOOKUP(Q$6&\"-\"&$M10&\"_old\",Ammortamento_Finanziario!$H:$L,5,FALSE),VLOOKUP($M10,TT_Tabelle_Riferimento!$H$31:$I$50,2,FALSE))","v":40},{"$f":"+IFERROR(VLOOKUP(R$6&\"-\"&$M10&\"_old\",Ammortamento_Finanziario!$H:$L,5,FALSE),VLOOKUP($M10,TT_Tabelle_Riferimento!$H$31:$I$50,2,FALSE))","v":40},{"$f":"+IFERROR(VLOOKUP(S$6&\"-\"&$M10&\"_old\",Ammortamento_Finanziario!$H:$L,5,FALSE),VLOOKUP($M10,TT_Tabelle_Riferimento!$H$31:$I$50,2,FALSE))","v":40},{"$f":"+IFERROR(VLOOKUP(T$6&\"-\"&$M10&\"_old\",Ammortamento_Finanziario!$H:$L,5,FALSE),VLOOKUP($M10,TT_Tabelle_Riferimento!$H$31:$I$50,2,FALSE))","v":40},{"$f":"+IFERROR(VLOOKUP(U$6&\"-\"&$M10&\"_old\",Ammortamento_Finanziario!$H:$L,5,FALSE),VLOOKUP($M10,TT_Tabelle_Riferimento!$H$31:$I$50,2,FALSE))","v":40},{"$f":"+IFERROR(VLOOKUP(V$6&\"-\"&$M10&\"_old\",Ammortamento_Finanziario!$H:$L,5,FALSE),VLOOKUP($M10,TT_Tabelle_Riferimento!$H$31:$I$50,2,FALSE))","v":40},{"$f":"+IFERROR(VLOOKUP(W$6&\"-\"&$M10&\"_old\",Ammortamento_Finanziario!$H:$L,5,FALSE),VLOOKUP($M10,TT_Tabelle_Riferimento!$H$31:$I$50,2,FALSE))","v":40},{"$f":"+IFERROR(VLOOKUP(X$6&\"-\"&$M10&\"_old\",Ammortamento_Finanziario!$H:$L,5,FALSE),VLOOKUP($M10,TT_Tabelle_Riferimento!$H$31:$I$50,2,FALSE))","v":40},{"$f":"+IFERROR(VLOOKUP(Y$6&\"-\"&$M10&\"_old\",Ammortamento_Finanziario!$H:$L,5,FALSE),VLOOKUP($M10,TT_Tabelle_Riferimento!$H$31:$I$50,2,FALSE))","v":40},{"$f":"+IFERROR(VLOOKUP(Z$6&\"-\"&$M10&\"_old\",Ammortamento_Finanziario!$H:$L,5,FALSE),VLOOKUP($M10,TT_Tabelle_Riferimento!$H$31:$I$50,2,FALSE))","v":40},{"$f":"+IFERROR(VLOOKUP(AA$6&\"-\"&$M10&\"_old\",Ammortamento_Finanziario!$H:$L,5,FALSE),VLOOKUP($M10,TT_Tabelle_Riferimento!$H$31:$I$50,2,FALSE))","v":40},{"$f":"+IFERROR(VLOOKUP(AB$6&\"-\"&$M10&\"_old\",Ammortamento_Finanziario!$H:$L,5,FALSE),VLOOKUP($M10,TT_Tabelle_Riferimento!$H$31:$I$50,2,FALSE))","v":40},{"$f":"+IFERROR(VLOOKUP(AC$6&\"-\"&$M10&\"_old\",Ammortamento_Finanziario!$H:$L,5,FALSE),VLOOKUP($M10,TT_Tabelle_Riferimento!$H$31:$I$50,2,FALSE))","v":40},{"$f":"+IFERROR(VLOOKUP(AD$6&\"-\"&$M10&\"_old\",Ammortamento_Finanziario!$H:$L,5,FALSE),VLOOKUP($M10,TT_Tabelle_Riferimento!$H$31:$I$50,2,FALSE))","v":40},{"$f":"+IFERROR(VLOOKUP(AE$6&\"-\"&$M10&\"_old\",Ammortamento_Finanziario!$H:$L,5,FALSE),VLOOKUP($M10,TT_Tabelle_Riferimento!$H$31:$I$50,2,FALSE))","v":40},{"$f":"+IFERROR(VLOOKUP(AF$6&\"-\"&$M10&\"_old\",Ammortamento_Finanziario!$H:$L,5,FALSE),VLOOKUP($M10,TT_Tabelle_Riferimento!$H$31:$I$50,2,FALSE))","v":40},{"$f":"+IFERROR(VLOOKUP(AG$6&\"-\"&$M10&\"_old\",Ammortamento_Finanziario!$H:$L,5,FALSE),VLOOKUP($M10,TT_Tabelle_Riferimento!$H$31:$I$50,2,FALSE))","v":40},{"$f":"+IFERROR(VLOOKUP(AH$6&\"-\"&$M10&\"_old\",Ammortamento_Finanziario!$H:$L,5,FALSE),VLOOKUP($M10,TT_Tabelle_Riferimento!$H$31:$I$50,2,FALSE))","v":40},{"$f":"+IFERROR(VLOOKUP(AI$6&\"-\"&$M10&\"_old\",Ammortamento_Finanziario!$H:$L,5,FALSE),VLOOKUP($M10,TT_Tabelle_Riferimento!$H$31:$I$50,2,FALSE))","v":40},{"$f":"+IFERROR(VLOOKUP(AJ$6&\"-\"&$M10&\"_old\",Ammortamento_Finanziario!$H:$L,5,FALSE),VLOOKUP($M10,TT_Tabelle_Riferimento!$H$31:$I$50,2,FALSE))","v":40},{"$f":"+IFERROR(VLOOKUP(AK$6&\"-\"&$M10&\"_old\",Ammortamento_Finanziario!$H:$L,5,FALSE),VLOOKUP($M10,TT_Tabelle_Riferimento!$H$31:$I$50,2,FALSE))","v":40},{"$f":"+IFERROR(VLOOKUP(AL$6&\"-\"&$M10&\"_old\",Ammortamento_Finanziario!$H:$L,5,FALSE),VLOOKUP($M10,TT_Tabelle_Riferimento!$H$31:$I$50,2,FALSE))","v":40},{"$f":"+IFERROR(VLOOKUP(AM$6&\"-\"&$M10&\"_old\",Ammortamento_Finanziario!$H:$L,5,FALSE),VLOOKUP($M10,TT_Tabelle_Riferimento!$H$31:$I$50,2,FALSE))","v":40},{"$f":"+IFERROR(VLOOKUP(AN$6&\"-\"&$M10&\"_old\",Ammortamento_Finanziario!$H:$L,5,FALSE),VLOOKUP($M10,TT_Tabelle_Riferimento!$H$31:$I$50,2,FALSE))","v":40},{"$f":"+IFERROR(VLOOKUP(AO$6&\"-\"&$M10&\"_old\",Ammortamento_Finanziario!$H:$L,5,FALSE),VLOOKUP($M10,TT_Tabelle_Riferimento!$H$31:$I$50,2,FALSE))","v":40},{"$f":"+IFERROR(VLOOKUP(AP$6&\"-\"&$M10&\"_old\",Ammortamento_Finanziario!$H:$L,5,FALSE),VLOOKUP($M10,TT_Tabelle_Riferimento!$H$31:$I$50,2,FALSE))","v":40},{"$f":"+IFERROR(VLOOKUP(AQ$6&\"-\"&$M10&\"_old\",Ammortamento_Finanziario!$H:$L,5,FALSE),VLOOKUP($M10,TT_Tabelle_Riferimento!$H$31:$I$50,2,FALSE))","v":40},{"$f":"+IFERROR(VLOOKUP(AR$6&\"-\"&$M10&\"_old\",Ammortamento_Finanziario!$H:$L,5,FALSE),VLOOKUP($M10,TT_Tabelle_Riferimento!$H$31:$I$50,2,FALSE))","v":40},{"$f":"+IFERROR(VLOOKUP(AS$6&\"-\"&$M10&\"_old\",Ammortamento_Finanziario!$H:$L,5,FALSE),VLOOKUP($M10,TT_Tabelle_Riferimento!$H$31:$I$50,2,FALSE))","v":40},{"$f":"+IFERROR(VLOOKUP(AT$6&\"-\"&$M10&\"_old\",Ammortamento_Finanziario!$H:$L,5,FALSE),VLOOKUP($M10,TT_Tabelle_Riferimento!$H$31:$I$50,2,FALSE))","v":40},{"$f":"+IFERROR(VLOOKUP(AU$6&\"-\"&$M10&\"_old\",Ammortamento_Finanziario!$H:$L,5,FALSE),VLOOKUP($M10,TT_Tabelle_Riferimento!$H$31:$I$50,2,FALSE))","v":40},{"$f":"+IFERROR(VLOOKUP(AV$6&\"-\"&$M10&\"_old\",Ammortamento_Finanziario!$H:$L,5,FALSE),VLOOKUP($M10,TT_Tabelle_Riferimento!$H$31:$I$50,2,FALSE))","v":40},{"$f":"+IFERROR(VLOOKUP(AW$6&\"-\"&$M10&\"_old\",Ammortamento_Finanziario!$H:$L,5,FALSE),VLOOKUP($M10,TT_Tabelle_Riferimento!$H$31:$I$50,2,FALSE))","v":40},{"$f":"+IFERROR(VLOOKUP(AX$6&\"-\"&$M10&\"_old\",Ammortamento_Finanziario!$H:$L,5,FALSE),VLOOKUP($M10,TT_Tabelle_Riferimento!$H$31:$I$50,2,FALSE))","v":40},{"$f":"+IFERROR(VLOOKUP(AY$6&\"-\"&$M10&\"_old\",Ammortamento_Finanziario!$H:$L,5,FALSE),VLOOKUP($M10,TT_Tabelle_Riferimento!$H$31:$I$50,2,FALSE))","v":40},{"$f":"+IFERROR(VLOOKUP(AZ$6&\"-\"&$M10&\"_old\",Ammortamento_Finanziario!$H:$L,5,FALSE),VLOOKUP($M10,TT_Tabelle_Riferimento!$H$31:$I$50,2,FALSE))","v":40},{"$f":"+IFERROR(VLOOKUP(BA$6&\"-\"&$M10&\"_old\",Ammortamento_Finanziario!$H:$L,5,FALSE),VLOOKUP($M10,TT_Tabelle_Riferimento!$H$31:$I$50,2,FALSE))","v":40},{"$f":"+IFERROR(VLOOKUP(BB$6&\"-\"&$M10&\"_old\",Ammortamento_Finanziario!$H:$L,5,FALSE),VLOOKUP($M10,TT_Tabelle_Riferimento!$H$31:$I$50,2,FALSE))","v":40},{"$f":"+IFERROR(VLOOKUP(BC$6&\"-\"&$M10&\"_old\",Ammortamento_Finanziario!$H:$L,5,FALSE),VLOOKUP($M10,TT_Tabelle_Riferimento!$H$31:$I$50,2,FALSE))","v":40},{"$f":"+IFERROR(VLOOKUP(BD$6&\"-\"&$M10&\"_old\",Ammortamento_Finanziario!$H:$L,5,FALSE),VLOOKUP($M10,TT_Tabelle_Riferimento!$H$31:$I$50,2,FALSE))","v":40},{"$f":"+IFERROR(VLOOKUP(BE$6&\"-\"&$M10&\"_old\",Ammortamento_Finanziario!$H:$L,5,FALSE),VLOOKUP($M10,TT_Tabelle_Riferimento!$H$31:$I$50,2,FALSE))","v":40},{"$f":"+IFERROR(VLOOKUP(BF$6&\"-\"&$M10&\"_old\",Ammortamento_Finanziario!$H:$L,5,FALSE),VLOOKUP($M10,TT_Tabelle_Riferimento!$H$31:$I$50,2,FALSE))","v":40},{"$f":"+IFERROR(VLOOKUP(BG$6&\"-\"&$M10&\"_old\",Ammortamento_Finanziario!$H:$L,5,FALSE),VLOOKUP($M10,TT_Tabelle_Riferimento!$H$31:$I$50,2,FALSE))","v":40},{"$f":"+IFERROR(VLOOKUP(BH$6&\"-\"&$M10&\"_old\",Ammortamento_Finanziario!$H:$L,5,FALSE),VLOOKUP($M10,TT_Tabelle_Riferimento!$H$31:$I$50,2,FALSE))","v":40},{"$f":"+IFERROR(VLOOKUP(BI$6&\"-\"&$M10&\"_old\",Ammortamento_Finanziario!$H:$L,5,FALSE),VLOOKUP($M10,TT_Tabelle_Riferimento!$H$31:$I$50,2,FALSE))","v":40},{"$f":"+IFERROR(VLOOKUP(BJ$6&\"-\"&$M10&\"_old\",Ammortamento_Finanziario!$H:$L,5,FALSE),VLOOKUP($M10,TT_Tabelle_Riferimento!$H$31:$I$50,2,FALSE))","v":40},{"$f":"+IFERROR(VLOOKUP(BK$6&\"-\"&$M10&\"_old\",Ammortamento_Finanziario!$H:$L,5,FALSE),VLOOKUP($M10,TT_Tabelle_Riferimento!$H$31:$I$50,2,FALSE))","v":40},{"$f":"+IFERROR(VLOOKUP(BL$6&\"-\"&$M10&\"_old\",Ammortamento_Finanziario!$H:$L,5,FALSE),VLOOKUP($M10,TT_Tabelle_Riferimento!$H$31:$I$50,2,FALSE))","v":40},{"$f":"+IFERROR(VLOOKUP(BM$6&\"-\"&$M10&\"_old\",Ammortamento_Finanziario!$H:$L,5,FALSE),VLOOKUP($M10,TT_Tabelle_Riferimento!$H$31:$I$50,2,FALSE))","v":40},{"$f":"+IFERROR(VLOOKUP(BN$6&\"-\"&$M10&\"_old\",Ammortamento_Finanziario!$H:$L,5,FALSE),VLOOKUP($M10,TT_Tabelle_Riferimento!$H$31:$I$50,2,FALSE))","v":40},{"$f":"+IFERROR(VLOOKUP(BO$6&\"-\"&$M10&\"_old\",Ammortamento_Finanziario!$H:$L,5,FALSE),VLOOKUP($M10,TT_Tabelle_Riferimento!$H$31:$I$50,2,FALSE))","v":40},{"$f":"+IFERROR(VLOOKUP(BP$6&\"-\"&$M10&\"_old\",Ammortamento_Finanziario!$H:$L,5,FALSE),VLOOKUP($M10,TT_Tabelle_Riferimento!$H$31:$I$50,2,FALSE))","v":40},{"$f":"+IFERROR(VLOOKUP(BQ$6&\"-\"&$M10&\"_old\",Ammortamento_Finanziario!$H:$L,5,FALSE),VLOOKUP($M10,TT_Tabelle_Riferimento!$H$31:$I$50,2,FALSE))","v":40},{"$f":"+IFERROR(VLOOKUP(BR$6&\"-\"&$M10&\"_old\",Ammortamento_Finanziario!$H:$L,5,FALSE),VLOOKUP($M10,TT_Tabelle_Riferimento!$H$31:$I$50,2,FALSE))","v":40},{"$f":"+IFERROR(VLOOKUP(BS$6&\"-\"&$M10&\"_old\",Ammortamento_Finanziario!$H:$L,5,FALSE),VLOOKUP($M10,TT_Tabelle_Riferimento!$H$31:$I$50,2,FALSE))","v":40},{"$f":"+IFERROR(VLOOKUP(BT$6&\"-\"&$M10&\"_old\",Ammortamento_Finanziario!$H:$L,5,FALSE),VLOOKUP($M10,TT_Tabelle_Riferimento!$H$31:$I$50,2,FALSE))","v":40},{"$f":"+IFERROR(VLOOKUP(BU$6&\"-\"&$M10&\"_old\",Ammortamento_Finanziario!$H:$L,5,FALSE),VLOOKUP($M10,TT_Tabelle_Riferimento!$H$31:$I$50,2,FALSE))","v":40},{"$f":"+IFERROR(VLOOKUP(BV$6&\"-\"&$M10&\"_old\",Ammortamento_Finanziario!$H:$L,5,FALSE),VLOOKUP($M10,TT_Tabelle_Riferimento!$H$31:$I$50,2,FALSE))","v":40},{"$f":"+IFERROR(VLOOKUP(BW$6&\"-\"&$M10&\"_old\",Ammortamento_Finanziario!$H:$L,5,FALSE),VLOOKUP($M10,TT_Tabelle_Riferimento!$H$31:$I$50,2,FALSE))","v":40},{"$f":"+IFERROR(VLOOKUP(BX$6&\"-\"&$M10&\"_old\",Ammortamento_Finanziario!$H:$L,5,FALSE),VLOOKUP($M10,TT_Tabelle_Riferimento!$H$31:$I$50,2,FALSE))","v":40},{"$f":"+IFERROR(VLOOKUP(BY$6&\"-\"&$M10&\"_old\",Ammortamento_Finanziario!$H:$L,5,FALSE),VLOOKUP($M10,TT_Tabelle_Riferimento!$H$31:$I$50,2,FALSE))","v":40},{"$f":"+IFERROR(VLOOKUP(BZ$6&\"-\"&$M10&\"_old\",Ammortamento_Finanziario!$H:$L,5,FALSE),VLOOKUP($M10,TT_Tabelle_Riferimento!$H$31:$I$50,2,FALSE))","v":40},{"$f":"+IFERROR(VLOOKUP(CA$6&\"-\"&$M10&\"_old\",Ammortamento_Finanziario!$H:$L,5,FALSE),VLOOKUP($M10,TT_Tabelle_Riferimento!$H$31:$I$50,2,FALSE))","v":40},{"$f":"+IFERROR(VLOOKUP(CB$6&\"-\"&$M10&\"_old\",Ammortamento_Finanziario!$H:$L,5,FALSE),VLOOKUP($M10,TT_Tabelle_Riferimento!$H$31:$I$50,2,FALSE))","v":40},{"$f":"+IFERROR(VLOOKUP(CC$6&\"-\"&$M10&\"_old\",Ammortamento_Finanziario!$H:$L,5,FALSE),VLOOKUP($M10,TT_Tabelle_Riferimento!$H$31:$I$50,2,FALSE))","v":40},{"$f":"+IFERROR(VLOOKUP(CD$6&\"-\"&$M10&\"_old\",Ammortamento_Finanziario!$H:$L,5,FALSE),VLOOKUP($M10,TT_Tabelle_Riferimento!$H$31:$I$50,2,FALSE))","v":40},{"$f":"+IFERROR(VLOOKUP(CE$6&\"-\"&$M10&\"_old\",Ammortamento_Finanziario!$H:$L,5,FALSE),VLOOKUP($M10,TT_Tabelle_Riferimento!$H$31:$I$50,2,FALSE))","v":40},{"$f":"+IFERROR(VLOOKUP(CF$6&\"-\"&$M10&\"_old\",Ammortamento_Finanziario!$H:$L,5,FALSE),VLOOKUP($M10,TT_Tabelle_Riferimento!$H$31:$I$50,2,FALSE))","v":40},{"$f":"+IFERROR(VLOOKUP(CG$6&\"-\"&$M10&\"_old\",Ammortamento_Finanziario!$H:$L,5,FALSE),VLOOKUP($M10,TT_Tabelle_Riferimento!$H$31:$I$50,2,FALSE))","v":40},{"$f":"+IFERROR(VLOOKUP(CH$6&\"-\"&$M10&\"_old\",Ammortamento_Finanziario!$H:$L,5,FALSE),VLOOKUP($M10,TT_Tabelle_Riferimento!$H$31:$I$50,2,FALSE))","v":40},{"$f":"+IFERROR(VLOOKUP(CI$6&\"-\"&$M10&\"_old\",Ammortamento_Finanziario!$H:$L,5,FALSE),VLOOKUP($M10,TT_Tabelle_Riferimento!$H$31:$I$50,2,FALSE))","v":40},{"$f":"+IFERROR(VLOOKUP(CJ$6&\"-\"&$M10&\"_old\",Ammortamento_Finanziario!$H:$L,5,FALSE),VLOOKUP($M10,TT_Tabelle_Riferimento!$H$31:$I$50,2,FALSE))","v":40},{"$f":"+IFERROR(VLOOKUP(CK$6&\"-\"&$M10&\"_old\",Ammortamento_Finanziario!$H:$L,5,FALSE),VLOOKUP($M10,TT_Tabelle_Riferimento!$H$31:$I$50,2,FALSE))","v":40},{"$f":"+IFERROR(VLOOKUP(CL$6&\"-\"&$M10&\"_old\",Ammortamento_Finanziario!$H:$L,5,FALSE),VLOOKUP($M10,TT_Tabelle_Riferimento!$H$31:$I$50,2,FALSE))","v":40},{"$f":"+IFERROR(VLOOKUP(CM$6&\"-\"&$M10&\"_old\",Ammortamento_Finanziario!$H:$L,5,FALSE),VLOOKUP($M10,TT_Tabelle_Riferimento!$H$31:$I$50,2,FALSE))","v":40},{"$f":"+IFERROR(VLOOKUP(CN$6&\"-\"&$M10&\"_old\",Ammortamento_Finanziario!$H:$L,5,FALSE),VLOOKUP($M10,TT_Tabelle_Riferimento!$H$31:$I$50,2,FALSE))","v":40},{"$f":"+IFERROR(VLOOKUP(CO$6&\"-\"&$M10&\"_old\",Ammortamento_Finanziario!$H:$L,5,FALSE),VLOOKUP($M10,TT_Tabelle_Riferimento!$H$31:$I$50,2,FALSE))","v":40},{"$f":"+IFERROR(VLOOKUP(CP$6&\"-\"&$M10&\"_old\",Ammortamento_Finanziario!$H:$L,5,FALSE),VLOOKUP($M10,TT_Tabelle_Riferimento!$H$31:$I$50,2,FALSE))","v":40},{"$f":"+IFERROR(VLOOKUP(CQ$6&\"-\"&$M10&\"_old\",Ammortamento_Finanziario!$H:$L,5,FALSE),VLOOKUP($M10,TT_Tabelle_Riferimento!$H$31:$I$50,2,FALSE))","v":40},{"$f":"+IFERROR(VLOOKUP(CR$6&\"-\"&$M10&\"_old\",Ammortamento_Finanziario!$H:$L,5,FALSE),VLOOKUP($M10,TT_Tabelle_Riferimento!$H$31:$I$50,2,FALSE))","v":40},{"$f":"+IFERROR(VLOOKUP(CS$6&\"-\"&$M10&\"_old\",Ammortamento_Finanziario!$H:$L,5,FALSE),VLOOKUP($M10,TT_Tabelle_Riferimento!$H$31:$I$50,2,FALSE))","v":40},{"$f":"+IFERROR(VLOOKUP(CT$6&\"-\"&$M10&\"_old\",Ammortamento_Finanziario!$H:$L,5,FALSE),VLOOKUP($M10,TT_Tabelle_Riferimento!$H$31:$I$50,2,FALSE))","v":40},{"$f":"+IFERROR(VLOOKUP(CU$6&\"-\"&$M10&\"_old\",Ammortamento_Finanziario!$H:$L,5,FALSE),VLOOKUP($M10,TT_Tabelle_Riferimento!$H$31:$I$50,2,FALSE))","v":40},{"$f":"+IFERROR(VLOOKUP(CV$6&\"-\"&$M10&\"_old\",Ammortamento_Finanziario!$H:$L,5,FALSE),VLOOKUP($M10,TT_Tabelle_Riferimento!$H$31:$I$50,2,FALSE))","v":40},{"$f":"+IFERROR(VLOOKUP(CW$6&\"-\"&$M10&\"_old\",Ammortamento_Finanziario!$H:$L,5,FALSE),VLOOKUP($M10,TT_Tabelle_Riferimento!$H$31:$I$50,2,FALSE))","v":40},{"$f":"+IFERROR(VLOOKUP(CX$6&\"-\"&$M10&\"_old\",Ammortamento_Finanziario!$H:$L,5,FALSE),VLOOKUP($M10,TT_Tabelle_Riferimento!$H$31:$I$50,2,FALSE))","v":40},{"$f":"+IFERROR(VLOOKUP(CY$6&\"-\"&$M10&\"_old\",Ammortamento_Finanziario!$H:$L,5,FALSE),VLOOKUP($M10,TT_Tabelle_Riferimento!$H$31:$I$50,2,FALSE))","v":40},{"$f":"+IFERROR(VLOOKUP(CZ$6&\"-\"&$M10&\"_old\",Ammortamento_Finanziario!$H:$L,5,FALSE),VLOOKUP($M10,TT_Tabelle_Riferimento!$H$31:$I$50,2,FALSE))","v":40},{"$f":"+IFERROR(VLOOKUP(DA$6&\"-\"&$M10&\"_old\",Ammortamento_Finanziario!$H:$L,5,FALSE),VLOOKUP($M10,TT_Tabelle_Riferimento!$H$31:$I$50,2,FALSE))","v":40},{"$f":"+IFERROR(VLOOKUP(DB$6&\"-\"&$M10&\"_old\",Ammortamento_Finanziario!$H:$L,5,FALSE),VLOOKUP($M10,TT_Tabelle_Riferimento!$H$31:$I$50,2,FALSE))","v":40},{"$f":"+IFERROR(VLOOKUP(DC$6&\"-\"&$M10&\"_old\",Ammortamento_Finanziario!$H:$L,5,FALSE),VLOOKUP($M10,TT_Tabelle_Riferimento!$H$31:$I$50,2,FALSE))","v":40},{"$f":"+IFERROR(VLOOKUP(DD$6&\"-\"&$M10&\"_old\",Ammortamento_Finanziario!$H:$L,5,FALSE),VLOOKUP($M10,TT_Tabelle_Riferimento!$H$31:$I$50,2,FALSE))","v":40},{"$f":"+IFERROR(VLOOKUP(DE$6&\"-\"&$M10&\"_old\",Ammortamento_Finanziario!$H:$L,5,FALSE),VLOOKUP($M10,TT_Tabelle_Riferimento!$H$31:$I$50,2,FALSE))","v":40},{"$f":"+IFERROR(VLOOKUP(DF$6&\"-\"&$M10&\"_old\",Ammortamento_Finanziario!$H:$L,5,FALSE),VLOOKUP($M10,TT_Tabelle_Riferimento!$H$31:$I$50,2,FALSE))","v":40},{"$f":"+IFERROR(VLOOKUP(DG$6&\"-\"&$M10&\"_old\",Ammortamento_Finanziario!$H:$L,5,FALSE),VLOOKUP($M10,TT_Tabelle_Riferimento!$H$31:$I$50,2,FALSE))","v":40},{"$f":"+IFERROR(VLOOKUP(DH$6&\"-\"&$M10&\"_old\",Ammortamento_Finanziario!$H:$L,5,FALSE),VLOOKUP($M10,TT_Tabelle_Riferimento!$H$31:$I$50,2,FALSE))","v":40},{"$f":"+IFERROR(VLOOKUP(DI$6&\"-\"&$M10&\"_old\",Ammortamento_Finanziario!$H:$L,5,FALSE),VLOOKUP($M10,TT_Tabelle_Riferimento!$H$31:$I$50,2,FALSE))","v":40},{"$f":"+IFERROR(VLOOKUP(DJ$6&\"-\"&$M10&\"_old\",Ammortamento_Finanziario!$H:$L,5,FALSE),VLOOKUP($M10,TT_Tabelle_Riferimento!$H$31:$I$50,2,FALSE))","v":40},{"$f":"+IFERROR(VLOOKUP(DK$6&\"-\"&$M10&\"_old\",Ammortamento_Finanziario!$H:$L,5,FALSE),VLOOKUP($M10,TT_Tabelle_Riferimento!$H$31:$I$50,2,FALSE))","v":40},{"$f":"+IFERROR(VLOOKUP(DL$6&\"-\"&$M10&\"_old\",Ammortamento_Finanziario!$H:$L,5,FALSE),VLOOKUP($M10,TT_Tabelle_Riferimento!$H$31:$I$50,2,FALSE))","v":40},{"$f":"+IFERROR(VLOOKUP(DM$6&\"-\"&$M10&\"_old\",Ammortamento_Finanziario!$H:$L,5,FALSE),VLOOKUP($M10,TT_Tabelle_Riferimento!$H$31:$I$50,2,FALSE))","v":40},{"$f":"+IFERROR(VLOOKUP(DN$6&\"-\"&$M10&\"_old\",Ammortamento_Finanziario!$H:$L,5,FALSE),VLOOKUP($M10,TT_Tabelle_Riferimento!$H$31:$I$50,2,FALSE))","v":40},{"$f":"+IFERROR(VLOOKUP(DO$6&\"-\"&$M10&\"_old\",Ammortamento_Finanziario!$H:$L,5,FALSE),VLOOKUP($M10,TT_Tabelle_Riferimento!$H$31:$I$50,2,FALSE))","v":40},{"$f":"+IFERROR(VLOOKUP(DP$6&\"-\"&$M10&\"_old\",Ammortamento_Finanziario!$H:$L,5,FALSE),VLOOKUP($M10,TT_Tabelle_Riferimento!$H$31:$I$50,2,FALSE))","v":40},{"$f":"+IFERROR(VLOOKUP(DQ$6&\"-\"&$M10&\"_old\",Ammortamento_Finanziario!$H:$L,5,FALSE),VLOOKUP($M10,TT_Tabelle_Riferimento!$H$31:$I$50,2,FALSE))","v":40},{"$f":"+IFERROR(VLOOKUP(DR$6&\"-\"&$M10&\"_old\",Ammortamento_Finanziario!$H:$L,5,FALSE),VLOOKUP($M10,TT_Tabelle_Riferimento!$H$31:$I$50,2,FALSE))","v":40},{"$f":"+IFERROR(VLOOKUP(DS$6&\"-\"&$M10&\"_old\",Ammortamento_Finanziario!$H:$L,5,FALSE),VLOOKUP($M10,TT_Tabelle_Riferimento!$H$31:$I$50,2,FALSE))","v":40},{"$f":"+IFERROR(VLOOKUP(DT$6&\"-\"&$M10&\"_old\",Ammortamento_Finanziario!$H:$L,5,FALSE),VLOOKUP($M10,TT_Tabelle_Riferimento!$H$31:$I$50,2,FALSE))","v":40},{"$f":"+IFERROR(VLOOKUP(DU$6&\"-\"&$M10&\"_old\",Ammortamento_Finanziario!$H:$L,5,FALSE),VLOOKUP($M10,TT_Tabelle_Riferimento!$H$31:$I$50,2,FALSE))","v":40},{"$f":"+IFERROR(VLOOKUP(DV$6&\"-\"&$M10&\"_old\",Ammortamento_Finanziario!$H:$L,5,FALSE),VLOOKUP($M10,TT_Tabelle_Riferimento!$H$31:$I$50,2,FALSE))","v":40},{"$f":"+IFERROR(VLOOKUP(DW$6&\"-\"&$M10&\"_old\",Ammortamento_Finanziario!$H:$L,5,FALSE),VLOOKUP($M10,TT_Tabelle_Riferimento!$H$31:$I$50,2,FALSE))","v":40},{"$f":"+IFERROR(VLOOKUP(DX$6&\"-\"&$M10&\"_old\",Ammortamento_Finanziario!$H:$L,5,FALSE),VLOOKUP($M10,TT_Tabelle_Riferimento!$H$31:$I$50,2,FALSE))","v":40},{"$f":"+IFERROR(VLOOKUP(DY$6&\"-\"&$M10&\"_old\",Ammortamento_Finanziario!$H:$L,5,FALSE),VLOOKUP($M10,TT_Tabelle_Riferimento!$H$31:$I$50,2,FALSE))","v":40},{"$f":"+IFERROR(VLOOKUP(DZ$6&\"-\"&$M10&\"_old\",Ammortamento_Finanziario!$H:$L,5,FALSE),VLOOKUP($M10,TT_Tabelle_Riferimento!$H$31:$I$50,2,FALSE))","v":40},{"$f":"+IFERROR(VLOOKUP(EA$6&\"-\"&$M10&\"_old\",Ammortamento_Finanziario!$H:$L,5,FALSE),VLOOKUP($M10,TT_Tabelle_Riferimento!$H$31:$I$50,2,FALSE))","v":40},{"$f":"+IFERROR(VLOOKUP(EB$6&\"-\"&$M10&\"_old\",Ammortamento_Finanziario!$H:$L,5,FALSE),VLOOKUP($M10,TT_Tabelle_Riferimento!$H$31:$I$50,2,FALSE))","v":40},{"$f":"+IFERROR(VLOOKUP(EC$6&\"-\"&$M10&\"_old\",Ammortamento_Finanziario!$H:$L,5,FALSE),VLOOKUP($M10,TT_Tabelle_Riferimento!$H$31:$I$50,2,FALSE))","v":40},{"$f":"+IFERROR(VLOOKUP(ED$6&\"-\"&$M10&\"_old\",Ammortamento_Finanziario!$H:$L,5,FALSE),VLOOKUP($M10,TT_Tabelle_Riferimento!$H$31:$I$50,2,FALSE))","v":40},{"$f":"+IFERROR(VLOOKUP(EE$6&\"-\"&$M10&\"_old\",Ammortamento_Finanziario!$H:$L,5,FALSE),VLOOKUP($M10,TT_Tabelle_Riferimento!$H$31:$I$50,2,FALSE))","v":40},{"$f":"+IFERROR(VLOOKUP(EF$6&\"-\"&$M10&\"_old\",Ammortamento_Finanziario!$H:$L,5,FALSE),VLOOKUP($M10,TT_Tabelle_Riferimento!$H$31:$I$50,2,FALSE))","v":40},{"$f":"+IFERROR(VLOOKUP(EG$6&\"-\"&$M10&\"_old\",Ammortamento_Finanziario!$H:$L,5,FALSE),VLOOKUP($M10,TT_Tabelle_Riferimento!$H$31:$I$50,2,FALSE))","v":40},{"$f":"+IFERROR(VLOOKUP(EH$6&\"-\"&$M10&\"_old\",Ammortamento_Finanziario!$H:$L,5,FALSE),VLOOKUP($M10,TT_Tabelle_Riferimento!$H$31:$I$50,2,FALSE))","v":40},{"$f":"+IFERROR(VLOOKUP(EI$6&\"-\"&$M10&\"_old\",Ammortamento_Finanziario!$H:$L,5,FALSE),VLOOKUP($M10,TT_Tabelle_Riferimento!$H$31:$I$50,2,FALSE))","v":40},{"$f":"+IFERROR(VLOOKUP(EJ$6&\"-\"&$M10&\"_old\",Ammortamento_Finanziario!$H:$L,5,FALSE),VLOOKUP($M10,TT_Tabelle_Riferimento!$H$31:$I$50,2,FALSE))","v":40},{"$f":"+IFERROR(VLOOKUP(EK$6&\"-\"&$M10&\"_old\",Ammortamento_Finanziario!$H:$L,5,FALSE),VLOOKUP($M10,TT_Tabelle_Riferimento!$H$31:$I$50,2,FALSE))","v":40},{"$f":"+IFERROR(VLOOKUP(EL$6&\"-\"&$M10&\"_old\",Ammortamento_Finanziario!$H:$L,5,FALSE),VLOOKUP($M10,TT_Tabelle_Riferimento!$H$31:$I$50,2,FALSE))","v":40},{"$f":"+IFERROR(VLOOKUP(EM$6&\"-\"&$M10&\"_old\",Ammortamento_Finanziario!$H:$L,5,FALSE),VLOOKUP($M10,TT_Tabelle_Riferimento!$H$31:$I$50,2,FALSE))","v":40},{"$f":"+IFERROR(VLOOKUP(EN$6&\"-\"&$M10&\"_old\",Ammortamento_Finanziario!$H:$L,5,FALSE),VLOOKUP($M10,TT_Tabelle_Riferimento!$H$31:$I$50,2,FALSE))","v":40},{"$f":"+IFERROR(VLOOKUP(EO$6&\"-\"&$M10&\"_old\",Ammortamento_Finanziario!$H:$L,5,FALSE),VLOOKUP($M10,TT_Tabelle_Riferimento!$H$31:$I$50,2,FALSE))","v":40},{"$f":"+IFERROR(VLOOKUP(EP$6&\"-\"&$M10&\"_old\",Ammortamento_Finanziario!$H:$L,5,FALSE),VLOOKUP($M10,TT_Tabelle_Riferimento!$H$31:$I$50,2,FALSE))","v":40},{"$f":"+IFERROR(VLOOKUP(EQ$6&\"-\"&$M10&\"_old\",Ammortamento_Finanziario!$H:$L,5,FALSE),VLOOKUP($M10,TT_Tabelle_Riferimento!$H$31:$I$50,2,FALSE))","v":40},{"$f":"+IFERROR(VLOOKUP(ER$6&\"-\"&$M10&\"_old\",Ammortamento_Finanziario!$H:$L,5,FALSE),VLOOKUP($M10,TT_Tabelle_Riferimento!$H$31:$I$50,2,FALSE))","v":40},{"$f":"+IFERROR(VLOOKUP(ES$6&\"-\"&$M10&\"_old\",Ammortamento_Finanziario!$H:$L,5,FALSE),VLOOKUP($M10,TT_Tabelle_Riferimento!$H$31:$I$50,2,FALSE))","v":40},{"$f":"+IFERROR(VLOOKUP(ET$6&\"-\"&$M10&\"_old\",Ammortamento_Finanziario!$H:$L,5,FALSE),VLOOKUP($M10,TT_Tabelle_Riferimento!$H$31:$I$50,2,FALSE))","v":40},{"$f":"+IFERROR(VLOOKUP(EU$6&\"-\"&$M10&\"_old\",Ammortamento_Finanziario!$H:$L,5,FALSE),VLOOKUP($M10,TT_Tabelle_Riferimento!$H$31:$I$50,2,FALSE))","v":40},{"$f":"+IFERROR(VLOOKUP(EV$6&\"-\"&$M10&\"_old\",Ammortamento_Finanziario!$H:$L,5,FALSE),VLOOKUP($M10,TT_Tabelle_Riferimento!$H$31:$I$50,2,FALSE))","v":40},{"$f":"+IFERROR(VLOOKUP(EW$6&\"-\"&$M10&\"_old\",Ammortamento_Finanziario!$H:$L,5,FALSE),VLOOKUP($M10,TT_Tabelle_Riferimento!$H$31:$I$50,2,FALSE))","v":40},{"$f":"+IFERROR(VLOOKUP(EX$6&\"-\"&$M10&\"_old\",Ammortamento_Finanziario!$H:$L,5,FALSE),VLOOKUP($M10,TT_Tabelle_Riferimento!$H$31:$I$50,2,FALSE))","v":40},{"$f":"+IFERROR(VLOOKUP(EY$6&\"-\"&$M10&\"_old\",Ammortamento_Finanziario!$H:$L,5,FALSE),VLOOKUP($M10,TT_Tabelle_Riferimento!$H$31:$I$50,2,FALSE))","v":40},{"$f":"+IFERROR(VLOOKUP(EZ$6&\"-\"&$M10&\"_old\",Ammortamento_Finanziario!$H:$L,5,FALSE),VLOOKUP($M10,TT_Tabelle_Riferimento!$H$31:$I$50,2,FALSE))","v":40},{"$f":"+IFERROR(VLOOKUP(FA$6&\"-\"&$M10&\"_old\",Ammortamento_Finanziario!$H:$L,5,FALSE),VLOOKUP($M10,TT_Tabelle_Riferimento!$H$31:$I$50,2,FALSE))","v":40},{"$f":"+IFERROR(VLOOKUP(FB$6&\"-\"&$M10&\"_old\",Ammortamento_Finanziario!$H:$L,5,FALSE),VLOOKUP($M10,TT_Tabelle_Riferimento!$H$31:$I$50,2,FALSE))","v":40},{"$f":"+IFERROR(VLOOKUP(FC$6&\"-\"&$M10&\"_old\",Ammortamento_Finanziario!$H:$L,5,FALSE),VLOOKUP($M10,TT_Tabelle_Riferimento!$H$31:$I$50,2,FALSE))","v":40},{"$f":"+IFERROR(VLOOKUP(FD$6&\"-\"&$M10&\"_old\",Ammortamento_Finanziario!$H:$L,5,FALSE),VLOOKUP($M10,TT_Tabelle_Riferimento!$H$31:$I$50,2,FALSE))","v":40},{"$f":"+IFERROR(VLOOKUP(FE$6&\"-\"&$M10&\"_old\",Ammortamento_Finanziario!$H:$L,5,FALSE),VLOOKUP($M10,TT_Tabelle_Riferimento!$H$31:$I$50,2,FALSE))","v":40},{"$f":"+IFERROR(VLOOKUP(FF$6&\"-\"&$M10&\"_old\",Ammortamento_Finanziario!$H:$L,5,FALSE),VLOOKUP($M10,TT_Tabelle_Riferimento!$H$31:$I$50,2,FALSE))","v":40},{"$f":"+IFERROR(VLOOKUP(FG$6&\"-\"&$M10&\"_old\",Ammortamento_Finanziario!$H:$L,5,FALSE),VLOOKUP($M10,TT_Tabelle_Riferimento!$H$31:$I$50,2,FALSE))","v":40},{"$f":"+IFERROR(VLOOKUP(FH$6&\"-\"&$M10&\"_old\",Ammortamento_Finanziario!$H:$L,5,FALSE),VLOOKUP($M10,TT_Tabelle_Riferimento!$H$31:$I$50,2,FALSE))","v":40},{"$f":"+IFERROR(VLOOKUP(FI$6&\"-\"&$M10&\"_old\",Ammortamento_Finanziario!$H:$L,5,FALSE),VLOOKUP($M10,TT_Tabelle_Riferimento!$H$31:$I$50,2,FALSE))","v":40},{"$f":"+IFERROR(VLOOKUP(FJ$6&\"-\"&$M10&\"_old\",Ammortamento_Finanziario!$H:$L,5,FALSE),VLOOKUP($M10,TT_Tabelle_Riferimento!$H$31:$I$50,2,FALSE))","v":40},{"$f":"+IFERROR(VLOOKUP(FK$6&\"-\"&$M10&\"_old\",Ammortamento_Finanziario!$H:$L,5,FALSE),VLOOKUP($M10,TT_Tabelle_Riferimento!$H$31:$I$50,2,FALSE))","v":40},{"$f":"+IFERROR(VLOOKUP(FL$6&\"-\"&$M10&\"_old\",Ammortamento_Finanziario!$H:$L,5,FALSE),VLOOKUP($M10,TT_Tabelle_Riferimento!$H$31:$I$50,2,FALSE))","v":40},{"$f":"+IFERROR(VLOOKUP(FM$6&\"-\"&$M10&\"_old\",Ammortamento_Finanziario!$H:$L,5,FALSE),VLOOKUP($M10,TT_Tabelle_Riferimento!$H$31:$I$50,2,FALSE))","v":40},{"$f":"+IFERROR(VLOOKUP(FN$6&\"-\"&$M10&\"_old\",Ammortamento_Finanziario!$H:$L,5,FALSE),VLOOKUP($M10,TT_Tabelle_Riferimento!$H$31:$I$50,2,FALSE))","v":40},{"$f":"+IFERROR(VLOOKUP(FO$6&\"-\"&$M10&\"_old\",Ammortamento_Finanziario!$H:$L,5,FALSE),VLOOKUP($M10,TT_Tabelle_Riferimento!$H$31:$I$50,2,FALSE))","v":40},{"$f":"+IFERROR(VLOOKUP(FP$6&\"-\"&$M10&\"_old\",Ammortamento_Finanziario!$H:$L,5,FALSE),VLOOKUP($M10,TT_Tabelle_Riferimento!$H$31:$I$50,2,FALSE))","v":40},{"$f":"+IFERROR(VLOOKUP(FQ$6&\"-\"&$M10&\"_old\",Ammortamento_Finanziario!$H:$L,5,FALSE),VLOOKUP($M10,TT_Tabelle_Riferimento!$H$31:$I$50,2,FALSE))","v":40},{"$f":"+IFERROR(VLOOKUP(FR$6&\"-\"&$M10&\"_old\",Ammortamento_Finanziario!$H:$L,5,FALSE),VLOOKUP($M10,TT_Tabelle_Riferimento!$H$31:$I$50,2,FALSE))","v":40},{"$f":"+IFERROR(VLOOKUP(FS$6&\"-\"&$M10&\"_old\",Ammortamento_Finanziario!$H:$L,5,FALSE),VLOOKUP($M10,TT_Tabelle_Riferimento!$H$31:$I$50,2,FALSE))","v":40},{"$f":"+IFERROR(VLOOKUP(FT$6&\"-\"&$M10&\"_old\",Ammortamento_Finanziario!$H:$L,5,FALSE),VLOOKUP($M10,TT_Tabelle_Riferimento!$H$31:$I$50,2,FALSE))","v":40},{"$f":"+IFERROR(VLOOKUP(FU$6&\"-\"&$M10&\"_old\",Ammortamento_Finanziario!$H:$L,5,FALSE),VLOOKUP($M10,TT_Tabelle_Riferimento!$H$31:$I$50,2,FALSE))","v":40},{"$f":"+IFERROR(VLOOKUP(FV$6&\"-\"&$M10&\"_old\",Ammortamento_Finanziario!$H:$L,5,FALSE),VLOOKUP($M10,TT_Tabelle_Riferimento!$H$31:$I$50,2,FALSE))","v":40},{"$f":"+IFERROR(VLOOKUP(FW$6&\"-\"&$M10&\"_old\",Ammortamento_Finanziario!$H:$L,5,FALSE),VLOOKUP($M10,TT_Tabelle_Riferimento!$H$31:$I$50,2,FALSE))","v":40},{"$f":"+IFERROR(VLOOKUP(FX$6&\"-\"&$M10&\"_old\",Ammortamento_Finanziario!$H:$L,5,FALSE),VLOOKUP($M10,TT_Tabelle_Riferimento!$H$31:$I$50,2,FALSE))","v":40},{"$f":"+IFERROR(VLOOKUP(FY$6&\"-\"&$M10&\"_old\",Ammortamento_Finanziario!$H:$L,5,FALSE),VLOOKUP($M10,TT_Tabelle_Riferimento!$H$31:$I$50,2,FALSE))","v":40},{"$f":"+IFERROR(VLOOKUP(FZ$6&\"-\"&$M10&\"_old\",Ammortamento_Finanziario!$H:$L,5,FALSE),VLOOKUP($M10,TT_Tabelle_Riferimento!$H$31:$I$50,2,FALSE))","v":40},{"$f":"+IFERROR(VLOOKUP(GA$6&\"-\"&$M10&\"_old\",Ammortamento_Finanziario!$H:$L,5,FALSE),VLOOKUP($M10,TT_Tabelle_Riferimento!$H$31:$I$50,2,FALSE))","v":40},{"$f":"+IFERROR(VLOOKUP(GB$6&\"-\"&$M10&\"_old\",Ammortamento_Finanziario!$H:$L,5,FALSE),VLOOKUP($M10,TT_Tabelle_Riferimento!$H$31:$I$50,2,FALSE))","v":40},{"$f":"+IFERROR(VLOOKUP(GC$6&\"-\"&$M10&\"_old\",Ammortamento_Finanziario!$H:$L,5,FALSE),VLOOKUP($M10,TT_Tabelle_Riferimento!$H$31:$I$50,2,FALSE))","v":40},{"$f":"+IFERROR(VLOOKUP(GD$6&\"-\"&$M10&\"_old\",Ammortamento_Finanziario!$H:$L,5,FALSE),VLOOKUP($M10,TT_Tabelle_Riferimento!$H$31:$I$50,2,FALSE))","v":40},{"$f":"+IFERROR(VLOOKUP(GE$6&\"-\"&$M10&\"_old\",Ammortamento_Finanziario!$H:$L,5,FALSE),VLOOKUP($M10,TT_Tabelle_Riferimento!$H$31:$I$50,2,FALSE))","v":40},{"$f":"+IFERROR(VLOOKUP(GF$6&\"-\"&$M10&\"_old\",Ammortamento_Finanziario!$H:$L,5,FALSE),VLOOKUP($M10,TT_Tabelle_Riferimento!$H$31:$I$50,2,FALSE))","v":40},{"$f":"+IFERROR(VLOOKUP(GG$6&\"-\"&$M10&\"_old\",Ammortamento_Finanziario!$H:$L,5,FALSE),VLOOKUP($M10,TT_Tabelle_Riferimento!$H$31:$I$50,2,FALSE))","v":40},{"$f":"+IFERROR(VLOOKUP(GH$6&\"-\"&$M10&\"_old\",Ammortamento_Finanziario!$H:$L,5,FALSE),VLOOKUP($M10,TT_Tabelle_Riferimento!$H$31:$I$50,2,FALSE))","v":40},{"$f":"+IFERROR(VLOOKUP(GI$6&\"-\"&$M10&\"_old\",Ammortamento_Finanziario!$H:$L,5,FALSE),VLOOKUP($M10,TT_Tabelle_Riferimento!$H$31:$I$50,2,FALSE))","v":40},{"$f":"+IFERROR(VLOOKUP(GJ$6&\"-\"&$M10&\"_old\",Ammortamento_Finanziario!$H:$L,5,FALSE),VLOOKUP($M10,TT_Tabelle_Riferimento!$H$31:$I$50,2,FALSE))","v":40},{"$f":"+IFERROR(VLOOKUP(GK$6&\"-\"&$M10&\"_old\",Ammortamento_Finanziario!$H:$L,5,FALSE),VLOOKUP($M10,TT_Tabelle_Riferimento!$H$31:$I$50,2,FALSE))","v":40},{"$f":"+IFERROR(VLOOKUP(GL$6&\"-\"&$M10&\"_old\",Ammortamento_Finanziario!$H:$L,5,FALSE),VLOOKUP($M10,TT_Tabelle_Riferimento!$H$31:$I$50,2,FALSE))","v":40},{"$f":"+IFERROR(VLOOKUP(GM$6&\"-\"&$M10&\"_old\",Ammortamento_Finanziario!$H:$L,5,FALSE),VLOOKUP($M10,TT_Tabelle_Riferimento!$H$31:$I$50,2,FALSE))","v":40},{"$f":"+IFERROR(VLOOKUP(GN$6&\"-\"&$M10&\"_old\",Ammortamento_Finanziario!$H:$L,5,FALSE),VLOOKUP($M10,TT_Tabelle_Riferimento!$H$31:$I$50,2,FALSE))","v":40},{"$f":"+IFERROR(VLOOKUP(GO$6&\"-\"&$M10&\"_old\",Ammortamento_Finanziario!$H:$L,5,FALSE),VLOOKUP($M10,TT_Tabelle_Riferimento!$H$31:$I$50,2,FALSE))","v":40},{"$f":"+IFERROR(VLOOKUP(GP$6&\"-\"&$M10&\"_old\",Ammortamento_Finanziario!$H:$L,5,FALSE),VLOOKUP($M10,TT_Tabelle_Riferimento!$H$31:$I$50,2,FALSE))","v":40},{"$f":"+IFERROR(VLOOKUP(GQ$6&\"-\"&$M10&\"_old\",Ammortamento_Finanziario!$H:$L,5,FALSE),VLOOKUP($M10,TT_Tabelle_Riferimento!$H$31:$I$50,2,FALSE))","v":40},{"$f":"+IFERROR(VLOOKUP(GR$6&\"-\"&$M10&\"_old\",Ammortamento_Finanziario!$H:$L,5,FALSE),VLOOKUP($M10,TT_Tabelle_Riferimento!$H$31:$I$50,2,FALSE))","v":40},{"$f":"+IFERROR(VLOOKUP(GS$6&\"-\"&$M10&\"_old\",Ammortamento_Finanziario!$H:$L,5,FALSE),VLOOKUP($M10,TT_Tabelle_Riferimento!$H$31:$I$50,2,FALSE))","v":40},{"$f":"+IFERROR(VLOOKUP(GT$6&\"-\"&$M10&\"_old\",Ammortamento_Finanziario!$H:$L,5,FALSE),VLOOKUP($M10,TT_Tabelle_Riferimento!$H$31:$I$50,2,FALSE))","v":40},{"$f":"+IFERROR(VLOOKUP(GU$6&\"-\"&$M10&\"_old\",Ammortamento_Finanziario!$H:$L,5,FALSE),VLOOKUP($M10,TT_Tabelle_Riferimento!$H$31:$I$50,2,FALSE))","v":40},{"$f":"+IFERROR(VLOOKUP(GV$6&\"-\"&$M10&\"_old\",Ammortamento_Finanziario!$H:$L,5,FALSE),VLOOKUP($M10,TT_Tabelle_Riferimento!$H$31:$I$50,2,FALSE))","v":40},{"$f":"+IFERROR(VLOOKUP(GW$6&\"-\"&$M10&\"_old\",Ammortamento_Finanziario!$H:$L,5,FALSE),VLOOKUP($M10,TT_Tabelle_Riferimento!$H$31:$I$50,2,FALSE))","v":40},{"$f":"+IFERROR(VLOOKUP(GX$6&\"-\"&$M10&\"_old\",Ammortamento_Finanziario!$H:$L,5,FALSE),VLOOKUP($M10,TT_Tabelle_Riferimento!$H$31:$I$50,2,FALSE))","v":40},{"$f":"+IFERROR(VLOOKUP(GY$6&\"-\"&$M10&\"_old\",Ammortamento_Finanziario!$H:$L,5,FALSE),VLOOKUP($M10,TT_Tabelle_Riferimento!$H$31:$I$50,2,FALSE))","v":40},{"$f":"+IFERROR(VLOOKUP(GZ$6&\"-\"&$M10&\"_old\",Ammortamento_Finanziario!$H:$L,5,FALSE),VLOOKUP($M10,TT_Tabelle_Riferimento!$H$31:$I$50,2,FALSE))","v":40},{"$f":"+IFERROR(VLOOKUP(HA$6&\"-\"&$M10&\"_old\",Ammortamento_Finanziario!$H:$L,5,FALSE),VLOOKUP($M10,TT_Tabelle_Riferimento!$H$31:$I$50,2,FALSE))","v":40},{"$f":"+IFERROR(VLOOKUP(HB$6&\"-\"&$M10&\"_old\",Ammortamento_Finanziario!$H:$L,5,FALSE),VLOOKUP($M10,TT_Tabelle_Riferimento!$H$31:$I$50,2,FALSE))","v":40},{"$f":"+IFERROR(VLOOKUP(HC$6&\"-\"&$M10&\"_old\",Ammortamento_Finanziario!$H:$L,5,FALSE),VLOOKUP($M10,TT_Tabelle_Riferimento!$H$31:$I$50,2,FALSE))","v":40},{"$f":"+IFERROR(VLOOKUP(HD$6&\"-\"&$M10&\"_old\",Ammortamento_Finanziario!$H:$L,5,FALSE),VLOOKUP($M10,TT_Tabelle_Riferimento!$H$31:$I$50,2,FALSE))","v":40},{"$f":"+IFERROR(VLOOKUP(HE$6&\"-\"&$M10&\"_old\",Ammortamento_Finanziario!$H:$L,5,FALSE),VLOOKUP($M10,TT_Tabelle_Riferimento!$H$31:$I$50,2,FALSE))","v":40},{"$f":"+IFERROR(VLOOKUP(HF$6&\"-\"&$M10&\"_old\",Ammortamento_Finanziario!$H:$L,5,FALSE),VLOOKUP($M10,TT_Tabelle_Riferimento!$H$31:$I$50,2,FALSE))","v":40},{"$f":"+IFERROR(VLOOKUP(HG$6&\"-\"&$M10&\"_old\",Ammortamento_Finanziario!$H:$L,5,FALSE),VLOOKUP($M10,TT_Tabelle_Riferimento!$H$31:$I$50,2,FALSE))","v":40},{"$f":"+IFERROR(VLOOKUP(HH$6&\"-\"&$M10&\"_old\",Ammortamento_Finanziario!$H:$L,5,FALSE),VLOOKUP($M10,TT_Tabelle_Riferimento!$H$31:$I$50,2,FALSE))","v":40},{"$f":"+IFERROR(VLOOKUP(HI$6&\"-\"&$M10&\"_old\",Ammortamento_Finanziario!$H:$L,5,FALSE),VLOOKUP($M10,TT_Tabelle_Riferimento!$H$31:$I$50,2,FALSE))","v":40},{"$f":"+IFERROR(VLOOKUP(HJ$6&\"-\"&$M10&\"_old\",Ammortamento_Finanziario!$H:$L,5,FALSE),VLOOKUP($M10,TT_Tabelle_Riferimento!$H$31:$I$50,2,FALSE))","v":40},{"$f":"+IFERROR(VLOOKUP(HK$6&\"-\"&$M10&\"_old\",Ammortamento_Finanziario!$H:$L,5,FALSE),VLOOKUP($M10,TT_Tabelle_Riferimento!$H$31:$I$50,2,FALSE))","v":40},{"$f":"+IFERROR(VLOOKUP(HL$6&\"-\"&$M10&\"_old\",Ammortamento_Finanziario!$H:$L,5,FALSE),VLOOKUP($M10,TT_Tabelle_Riferimento!$H$31:$I$50,2,FALSE))","v":40},{"$f":"+IFERROR(VLOOKUP(HM$6&\"-\"&$M10&\"_old\",Ammortamento_Finanziario!$H:$L,5,FALSE),VLOOKUP($M10,TT_Tabelle_Riferimento!$H$31:$I$50,2,FALSE))","v":40},{"$f":"+IFERROR(VLOOKUP(HN$6&\"-\"&$M10&\"_old\",Ammortamento_Finanziario!$H:$L,5,FALSE),VLOOKUP($M10,TT_Tabelle_Riferimento!$H$31:$I$50,2,FALSE))","v":40},{"$f":"+IFERROR(VLOOKUP(HO$6&\"-\"&$M10&\"_old\",Ammortamento_Finanziario!$H:$L,5,FALSE),VLOOKUP($M10,TT_Tabelle_Riferimento!$H$31:$I$50,2,FALSE))","v":40},{"$f":"+IFERROR(VLOOKUP(HP$6&\"-\"&$M10&\"_old\",Ammortamento_Finanziario!$H:$L,5,FALSE),VLOOKUP($M10,TT_Tabelle_Riferimento!$H$31:$I$50,2,FALSE))","v":40},{"$f":"+IFERROR(VLOOKUP(HQ$6&\"-\"&$M10&\"_old\",Ammortamento_Finanziario!$H:$L,5,FALSE),VLOOKUP($M10,TT_Tabelle_Riferimento!$H$31:$I$50,2,FALSE))","v":40},{"$f":"+IFERROR(VLOOKUP(HR$6&\"-\"&$M10&\"_old\",Ammortamento_Finanziario!$H:$L,5,FALSE),VLOOKUP($M10,TT_Tabelle_Riferimento!$H$31:$I$50,2,FALSE))","v":40},{"$f":"+IFERROR(VLOOKUP(HS$6&\"-\"&$M10&\"_old\",Ammortamento_Finanziario!$H:$L,5,FALSE),VLOOKUP($M10,TT_Tabelle_Riferimento!$H$31:$I$50,2,FALSE))","v":40},{"$f":"+IFERROR(VLOOKUP(HT$6&\"-\"&$M10&\"_old\",Ammortamento_Finanziario!$H:$L,5,FALSE),VLOOKUP($M10,TT_Tabelle_Riferimento!$H$31:$I$50,2,FALSE))","v":40},{"$f":"+IFERROR(VLOOKUP(HU$6&\"-\"&$M10&\"_old\",Ammortamento_Finanziario!$H:$L,5,FALSE),VLOOKUP($M10,TT_Tabelle_Riferimento!$H$31:$I$50,2,FALSE))","v":40},{"$f":"+IFERROR(VLOOKUP(HV$6&\"-\"&$M10&\"_old\",Ammortamento_Finanziario!$H:$L,5,FALSE),VLOOKUP($M10,TT_Tabelle_Riferimento!$H$31:$I$50,2,FALSE))","v":40},{"$f":"+IFERROR(VLOOKUP(HW$6&\"-\"&$M10&\"_old\",Ammortamento_Finanziario!$H:$L,5,FALSE),VLOOKUP($M10,TT_Tabelle_Riferimento!$H$31:$I$50,2,FALSE))","v":40},{"$f":"+IFERROR(VLOOKUP(HX$6&\"-\"&$M10&\"_old\",Ammortamento_Finanziario!$H:$L,5,FALSE),VLOOKUP($M10,TT_Tabelle_Riferimento!$H$31:$I$50,2,FALSE))","v":40},{"$f":"+IFERROR(VLOOKUP(HY$6&\"-\"&$M10&\"_old\",Ammortamento_Finanziario!$H:$L,5,FALSE),VLOOKUP($M10,TT_Tabelle_Riferimento!$H$31:$I$50,2,FALSE))","v":40},{"$f":"+IFERROR(VLOOKUP(HZ$6&\"-\"&$M10&\"_old\",Ammortamento_Finanziario!$H:$L,5,FALSE),VLOOKUP($M10,TT_Tabelle_Riferimento!$H$31:$I$50,2,FALSE))","v":40},{"$f":"+IFERROR(VLOOKUP(IA$6&\"-\"&$M10&\"_old\",Ammortamento_Finanziario!$H:$L,5,FALSE),VLOOKUP($M10,TT_Tabelle_Riferimento!$H$31:$I$50,2,FALSE))","v":40},{"$f":"+IFERROR(VLOOKUP(IB$6&\"-\"&$M10&\"_old\",Ammortamento_Finanziario!$H:$L,5,FALSE),VLOOKUP($M10,TT_Tabelle_Riferimento!$H$31:$I$50,2,FALSE))","v":40},{"$f":"+IFERROR(VLOOKUP(IC$6&\"-\"&$M10&\"_old\",Ammortamento_Finanziario!$H:$L,5,FALSE),VLOOKUP($M10,TT_Tabelle_Riferimento!$H$31:$I$50,2,FALSE))","v":40},{"$f":"+IFERROR(VLOOKUP(ID$6&\"-\"&$M10&\"_old\",Ammortamento_Finanziario!$H:$L,5,FALSE),VLOOKUP($M10,TT_Tabelle_Riferimento!$H$31:$I$50,2,FALSE))","v":40},{"$f":"+IFERROR(VLOOKUP(IE$6&\"-\"&$M10&\"_old\",Ammortamento_Finanziario!$H:$L,5,FALSE),VLOOKUP($M10,TT_Tabelle_Riferimento!$H$31:$I$50,2,FALSE))","v":40},{"$f":"+IFERROR(VLOOKUP(IF$6&\"-\"&$M10&\"_old\",Ammortamento_Finanziario!$H:$L,5,FALSE),VLOOKUP($M10,TT_Tabelle_Riferimento!$H$31:$I$50,2,FALSE))","v":40},{"$f":"+IFERROR(VLOOKUP(IG$6&\"-\"&$M10&\"_old\",Ammortamento_Finanziario!$H:$L,5,FALSE),VLOOKUP($M10,TT_Tabelle_Riferimento!$H$31:$I$50,2,FALSE))","v":40},{"$f":"+IFERROR(VLOOKUP(IH$6&\"-\"&$M10&\"_old\",Ammortamento_Finanziario!$H:$L,5,FALSE),VLOOKUP($M10,TT_Tabelle_Riferimento!$H$31:$I$50,2,FALSE))","v":40},{"$f":"+IFERROR(VLOOKUP(II$6&\"-\"&$M10&\"_old\",Ammortamento_Finanziario!$H:$L,5,FALSE),VLOOKUP($M10,TT_Tabelle_Riferimento!$H$31:$I$50,2,FALSE))","v":40},{"$f":"+IFERROR(VLOOKUP(IJ$6&\"-\"&$M10&\"_old\",Ammortamento_Finanziario!$H:$L,5,FALSE),VLOOKUP($M10,TT_Tabelle_Riferimento!$H$31:$I$50,2,FALSE))","v":40},{"$f":"+IFERROR(VLOOKUP(IK$6&\"-\"&$M10&\"_old\",Ammortamento_Finanziario!$H:$L,5,FALSE),VLOOKUP($M10,TT_Tabelle_Riferimento!$H$31:$I$50,2,FALSE))","v":40},{"$f":"+IFERROR(VLOOKUP(IL$6&\"-\"&$M10&\"_old\",Ammortamento_Finanziario!$H:$L,5,FALSE),VLOOKUP($M10,TT_Tabelle_Riferimento!$H$31:$I$50,2,FALSE))","v":40},{"$f":"+IFERROR(VLOOKUP(IM$6&\"-\"&$M10&\"_old\",Ammortamento_Finanziario!$H:$L,5,FALSE),VLOOKUP($M10,TT_Tabelle_Riferimento!$H$31:$I$50,2,FALSE))","v":40},{"$f":"+IFERROR(VLOOKUP(IN$6&\"-\"&$M10&\"_old\",Ammortamento_Finanziario!$H:$L,5,FALSE),VLOOKUP($M10,TT_Tabelle_Riferimento!$H$31:$I$50,2,FALSE))","v":40},{"$f":"+IFERROR(VLOOKUP(IO$6&\"-\"&$M10&\"_old\",Ammortamento_Finanziario!$H:$L,5,FALSE),VLOOKUP($M10,TT_Tabelle_Riferimento!$H$31:$I$50,2,FALSE))","v":40},{"$f":"+IFERROR(VLOOKUP(IP$6&\"-\"&$M10&\"_old\",Ammortamento_Finanziario!$H:$L,5,FALSE),VLOOKUP($M10,TT_Tabelle_Riferimento!$H$31:$I$50,2,FALSE))","v":40},{"$f":"+IFERROR(VLOOKUP(IQ$6&\"-\"&$M10&\"_old\",Ammortamento_Finanziario!$H:$L,5,FALSE),VLOOKUP($M10,TT_Tabelle_Riferimento!$H$31:$I$50,2,FALSE))","v":40},{"$f":"+IFERROR(VLOOKUP(IR$6&\"-\"&$M10&\"_old\",Ammortamento_Finanziario!$H:$L,5,FALSE),VLOOKUP($M10,TT_Tabelle_Riferimento!$H$31:$I$50,2,FALSE))","v":40},{"$f":"+IFERROR(VLOOKUP(IS$6&\"-\"&$M10&\"_old\",Ammortamento_Finanziario!$H:$L,5,FALSE),VLOOKUP($M10,TT_Tabelle_Riferimento!$H$31:$I$50,2,FALSE))","v":40},{"$f":"+IFERROR(VLOOKUP(IT$6&\"-\"&$M10&\"_old\",Ammortamento_Finanziario!$H:$L,5,FALSE),VLOOKUP($M10,TT_Tabelle_Riferimento!$H$31:$I$50,2,FALSE))","v":40},{"$f":"+IFERROR(VLOOKUP(IU$6&\"-\"&$M10&\"_old\",Ammortamento_Finanziario!$H:$L,5,FALSE),VLOOKUP($M10,TT_Tabelle_Riferimento!$H$31:$I$50,2,FALSE))","v":40},{"$f":"+IFERROR(VLOOKUP(IV$6&\"-\"&$M10&\"_old\",Ammortamento_Finanziario!$H:$L,5,FALSE),VLOOKUP($M10,TT_Tabelle_Riferimento!$H$31:$I$50,2,FALSE))","v":40},{"$f":"+IFERROR(VLOOKUP(IW$6&\"-\"&$M10&\"_old\",Ammortamento_Finanziario!$H:$L,5,FALSE),VLOOKUP($M10,TT_Tabelle_Riferimento!$H$31:$I$50,2,FALSE))","v":40},{"$f":"+IFERROR(VLOOKUP(IX$6&\"-\"&$M10&\"_old\",Ammortamento_Finanziario!$H:$L,5,FALSE),VLOOKUP($M10,TT_Tabelle_Riferimento!$H$31:$I$50,2,FALSE))","v":40},{"$f":"+IFERROR(VLOOKUP(IY$6&\"-\"&$M10&\"_old\",Ammortamento_Finanziario!$H:$L,5,FALSE),VLOOKUP($M10,TT_Tabelle_Riferimento!$H$31:$I$50,2,FALSE))","v":40},{"$f":"+IFERROR(VLOOKUP(IZ$6&\"-\"&$M10&\"_old\",Ammortamento_Finanziario!$H:$L,5,FALSE),VLOOKUP($M10,TT_Tabelle_Riferimento!$H$31:$I$50,2,FALSE))","v":40},{"$f":"+IFERROR(VLOOKUP(JA$6&\"-\"&$M10&\"_old\",Ammortamento_Finanziario!$H:$L,5,FALSE),VLOOKUP($M10,TT_Tabelle_Riferimento!$H$31:$I$50,2,FALSE))","v":40},{"$f":"+IFERROR(VLOOKUP(JB$6&\"-\"&$M10&\"_old\",Ammortamento_Finanziario!$H:$L,5,FALSE),VLOOKUP($M10,TT_Tabelle_Riferimento!$H$31:$I$50,2,FALSE))","v":40},{"$f":"+IFERROR(VLOOKUP(JC$6&\"-\"&$M10&\"_old\",Ammortamento_Finanziario!$H:$L,5,FALSE),VLOOKUP($M10,TT_Tabelle_Riferimento!$H$31:$I$50,2,FALSE))","v":40},{"$f":"+IFERROR(VLOOKUP(JD$6&\"-\"&$M10&\"_old\",Ammortamento_Finanziario!$H:$L,5,FALSE),VLOOKUP($M10,TT_Tabelle_Riferimento!$H$31:$I$50,2,FALSE))","v":40},{"$f":"+IFERROR(VLOOKUP(JE$6&\"-\"&$M10&\"_old\",Ammortamento_Finanziario!$H:$L,5,FALSE),VLOOKUP($M10,TT_Tabelle_Riferimento!$H$31:$I$50,2,FALSE))","v":40},{"$f":"+IFERROR(VLOOKUP(JF$6&\"-\"&$M10&\"_old\",Ammortamento_Finanziario!$H:$L,5,FALSE),VLOOKUP($M10,TT_Tabelle_Riferimento!$H$31:$I$50,2,FALSE))","v":40},{"$f":"+IFERROR(VLOOKUP(JG$6&\"-\"&$M10&\"_old\",Ammortamento_Finanziario!$H:$L,5,FALSE),VLOOKUP($M10,TT_Tabelle_Riferimento!$H$31:$I$50,2,FALSE))","v":40},{"$f":"+IFERROR(VLOOKUP(JH$6&\"-\"&$M10&\"_old\",Ammortamento_Finanziario!$H:$L,5,FALSE),VLOOKUP($M10,TT_Tabelle_Riferimento!$H$31:$I$50,2,FALSE))","v":40},{"$f":"+IFERROR(VLOOKUP(JI$6&\"-\"&$M10&\"_old\",Ammortamento_Finanziario!$H:$L,5,FALSE),VLOOKUP($M10,TT_Tabelle_Riferimento!$H$31:$I$50,2,FALSE))","v":40},{"$f":"+IFERROR(VLOOKUP(JJ$6&\"-\"&$M10&\"_old\",Ammortamento_Finanziario!$H:$L,5,FALSE),VLOOKUP($M10,TT_Tabelle_Riferimento!$H$31:$I$50,2,FALSE))","v":40},{"$f":"+IFERROR(VLOOKUP(JK$6&\"-\"&$M10&\"_old\",Ammortamento_Finanziario!$H:$L,5,FALSE),VLOOKUP($M10,TT_Tabelle_Riferimento!$H$31:$I$50,2,FALSE))","v":40},{"$f":"+IFERROR(VLOOKUP(JL$6&\"-\"&$M10&\"_old\",Ammortamento_Finanziario!$H:$L,5,FALSE),VLOOKUP($M10,TT_Tabelle_Riferimento!$H$31:$I$50,2,FALSE))","v":40},{"$f":"+IFERROR(VLOOKUP(JM$6&\"-\"&$M10&\"_old\",Ammortamento_Finanziario!$H:$L,5,FALSE),VLOOKUP($M10,TT_Tabelle_Riferimento!$H$31:$I$50,2,FALSE))","v":40},{"$f":"+IFERROR(VLOOKUP(JN$6&\"-\"&$M10&\"_old\",Ammortamento_Finanziario!$H:$L,5,FALSE),VLOOKUP($M10,TT_Tabelle_Riferimento!$H$31:$I$50,2,FALSE))","v":40},{"$f":"+IFERROR(VLOOKUP(JO$6&\"-\"&$M10&\"_old\",Ammortamento_Finanziario!$H:$L,5,FALSE),VLOOKUP($M10,TT_Tabelle_Riferimento!$H$31:$I$50,2,FALSE))","v":40},{"$f":"+IFERROR(VLOOKUP(JP$6&\"-\"&$M10&\"_old\",Ammortamento_Finanziario!$H:$L,5,FALSE),VLOOKUP($M10,TT_Tabelle_Riferimento!$H$31:$I$50,2,FALSE))","v":40},{"$f":"+IFERROR(VLOOKUP(JQ$6&\"-\"&$M10&\"_old\",Ammortamento_Finanziario!$H:$L,5,FALSE),VLOOKUP($M10,TT_Tabelle_Riferimento!$H$31:$I$50,2,FALSE))","v":40},{"$f":"+IFERROR(VLOOKUP(JR$6&\"-\"&$M10&\"_old\",Ammortamento_Finanziario!$H:$L,5,FALSE),VLOOKUP($M10,TT_Tabelle_Riferimento!$H$31:$I$50,2,FALSE))","v":40},{"$f":"+IFERROR(VLOOKUP(JS$6&\"-\"&$M10&\"_old\",Ammortamento_Finanziario!$H:$L,5,FALSE),VLOOKUP($M10,TT_Tabelle_Riferimento!$H$31:$I$50,2,FALSE))","v":40},{"$f":"+IFERROR(VLOOKUP(JT$6&\"-\"&$M10&\"_old\",Ammortamento_Finanziario!$H:$L,5,FALSE),VLOOKUP($M10,TT_Tabelle_Riferimento!$H$31:$I$50,2,FALSE))","v":40},{"$f":"+IFERROR(VLOOKUP(JU$6&\"-\"&$M10&\"_old\",Ammortamento_Finanziario!$H:$L,5,FALSE),VLOOKUP($M10,TT_Tabelle_Riferimento!$H$31:$I$50,2,FALSE))","v":40},{"$f":"+IFERROR(VLOOKUP(JV$6&\"-\"&$M10&\"_old\",Ammortamento_Finanziario!$H:$L,5,FALSE),VLOOKUP($M10,TT_Tabelle_Riferimento!$H$31:$I$50,2,FALSE))","v":40},{"$f":"+IFERROR(VLOOKUP(JW$6&\"-\"&$M10&\"_old\",Ammortamento_Finanziario!$H:$L,5,FALSE),VLOOKUP($M10,TT_Tabelle_Riferimento!$H$31:$I$50,2,FALSE))","v":40},{"$f":"+IFERROR(VLOOKUP(JX$6&\"-\"&$M10&\"_old\",Ammortamento_Finanziario!$H:$L,5,FALSE),VLOOKUP($M10,TT_Tabelle_Riferimento!$H$31:$I$50,2,FALSE))","v":40},{"$f":"+IFERROR(VLOOKUP(JY$6&\"-\"&$M10&\"_old\",Ammortamento_Finanziario!$H:$L,5,FALSE),VLOOKUP($M10,TT_Tabelle_Riferimento!$H$31:$I$50,2,FALSE))","v":40},{"$f":"+IFERROR(VLOOKUP(JZ$6&\"-\"&$M10&\"_old\",Ammortamento_Finanziario!$H:$L,5,FALSE),VLOOKUP($M10,TT_Tabelle_Riferimento!$H$31:$I$50,2,FALSE))","v":40},{"$f":"+IFERROR(VLOOKUP(KA$6&\"-\"&$M10&\"_old\",Ammortamento_Finanziario!$H:$L,5,FALSE),VLOOKUP($M10,TT_Tabelle_Riferimento!$H$31:$I$50,2,FALSE))","v":40},{"$f":"+IFERROR(VLOOKUP(KB$6&\"-\"&$M10&\"_old\",Ammortamento_Finanziario!$H:$L,5,FALSE),VLOOKUP($M10,TT_Tabelle_Riferimento!$H$31:$I$50,2,FALSE))","v":40},{"$f":"+IFERROR(VLOOKUP(KC$6&\"-\"&$M10&\"_old\",Ammortamento_Finanziario!$H:$L,5,FALSE),VLOOKUP($M10,TT_Tabelle_Riferimento!$H$31:$I$50,2,FALSE))","v":40},{"$f":"+IFERROR(VLOOKUP(KD$6&\"-\"&$M10&\"_old\",Ammortamento_Finanziario!$H:$L,5,FALSE),VLOOKUP($M10,TT_Tabelle_Riferimento!$H$31:$I$50,2,FALSE))","v":40},{"$f":"+IFERROR(VLOOKUP(KE$6&\"-\"&$M10&\"_old\",Ammortamento_Finanziario!$H:$L,5,FALSE),VLOOKUP($M10,TT_Tabelle_Riferimento!$H$31:$I$50,2,FALSE))","v":40},{"$f":"+IFERROR(VLOOKUP(KF$6&\"-\"&$M10&\"_old\",Ammortamento_Finanziario!$H:$L,5,FALSE),VLOOKUP($M10,TT_Tabelle_Riferimento!$H$31:$I$50,2,FALSE))","v":40},{"$f":"+IFERROR(VLOOKUP(KG$6&\"-\"&$M10&\"_old\",Ammortamento_Finanziario!$H:$L,5,FALSE),VLOOKUP($M10,TT_Tabelle_Riferimento!$H$31:$I$50,2,FALSE))","v":40},{"$f":"+IFERROR(VLOOKUP(KH$6&\"-\"&$M10&\"_old\",Ammortamento_Finanziario!$H:$L,5,FALSE),VLOOKUP($M10,TT_Tabelle_Riferimento!$H$31:$I$50,2,FALSE))","v":40},{"$f":"+IFERROR(VLOOKUP(KI$6&\"-\"&$M10&\"_old\",Ammortamento_Finanziario!$H:$L,5,FALSE),VLOOKUP($M10,TT_Tabelle_Riferimento!$H$31:$I$50,2,FALSE))","v":40},{"$f":"+IFERROR(VLOOKUP(KJ$6&\"-\"&$M10&\"_old\",Ammortamento_Finanziario!$H:$L,5,FALSE),VLOOKUP($M10,TT_Tabelle_Riferimento!$H$31:$I$50,2,FALSE))","v":40},{"$f":"+IFERROR(VLOOKUP(KK$6&\"-\"&$M10&\"_old\",Ammortamento_Finanziario!$H:$L,5,FALSE),VLOOKUP($M10,TT_Tabelle_Riferimento!$H$31:$I$50,2,FALSE))","v":40},{"$f":"+IFERROR(VLOOKUP(KL$6&\"-\"&$M10&\"_old\",Ammortamento_Finanziario!$H:$L,5,FALSE),VLOOKUP($M10,TT_Tabelle_Riferimento!$H$31:$I$50,2,FALSE))","v":40},{"$f":"+IFERROR(VLOOKUP(KM$6&\"-\"&$M10&\"_old\",Ammortamento_Finanziario!$H:$L,5,FALSE),VLOOKUP($M10,TT_Tabelle_Riferimento!$H$31:$I$50,2,FALSE))","v":40},{"$f":"+IFERROR(VLOOKUP(KN$6&\"-\"&$M10&\"_old\",Ammortamento_Finanziario!$H:$L,5,FALSE),VLOOKUP($M10,TT_Tabelle_Riferimento!$H$31:$I$50,2,FALSE))","v":40},{"$f":"+IFERROR(VLOOKUP(KO$6&\"-\"&$M10&\"_old\",Ammortamento_Finanziario!$H:$L,5,FALSE),VLOOKUP($M10,TT_Tabelle_Riferimento!$H$31:$I$50,2,FALSE))","v":40},{"$f":"+IFERROR(VLOOKUP(KP$6&\"-\"&$M10&\"_old\",Ammortamento_Finanziario!$H:$L,5,FALSE),VLOOKUP($M10,TT_Tabelle_Riferimento!$H$31:$I$50,2,FALSE))","v":40},{"$f":"+IFERROR(VLOOKUP(KQ$6&\"-\"&$M10&\"_old\",Ammortamento_Finanziario!$H:$L,5,FALSE),VLOOKUP($M10,TT_Tabelle_Riferimento!$H$31:$I$50,2,FALSE))","v":40},{"$f":"+IFERROR(VLOOKUP(KR$6&\"-\"&$M10&\"_old\",Ammortamento_Finanziario!$H:$L,5,FALSE),VLOOKUP($M10,TT_Tabelle_Riferimento!$H$31:$I$50,2,FALSE))","v":40},{"$f":"+IFERROR(VLOOKUP(KS$6&\"-\"&$M10&\"_old\",Ammortamento_Finanziario!$H:$L,5,FALSE),VLOOKUP($M10,TT_Tabelle_Riferimento!$H$31:$I$50,2,FALSE))","v":40},{"$f":"+IFERROR(VLOOKUP(KT$6&\"-\"&$M10&\"_old\",Ammortamento_Finanziario!$H:$L,5,FALSE),VLOOKUP($M10,TT_Tabelle_Riferimento!$H$31:$I$50,2,FALSE))","v":40},{"$f":"+IFERROR(VLOOKUP(KU$6&\"-\"&$M10&\"_old\",Ammortamento_Finanziario!$H:$L,5,FALSE),VLOOKUP($M10,TT_Tabelle_Riferimento!$H$31:$I$50,2,FALSE))","v":40},{"$f":"+IFERROR(VLOOKUP(KV$6&\"-\"&$M10&\"_old\",Ammortamento_Finanziario!$H:$L,5,FALSE),VLOOKUP($M10,TT_Tabelle_Riferimento!$H$31:$I$50,2,FALSE))","v":40},{"$f":"+IFERROR(VLOOKUP(KW$6&\"-\"&$M10&\"_old\",Ammortamento_Finanziario!$H:$L,5,FALSE),VLOOKUP($M10,TT_Tabelle_Riferimento!$H$31:$I$50,2,FALSE))","v":40},{"$f":"+IFERROR(VLOOKUP(KX$6&\"-\"&$M10&\"_old\",Ammortamento_Finanziario!$H:$L,5,FALSE),VLOOKUP($M10,TT_Tabelle_Riferimento!$H$31:$I$50,2,FALSE))","v":40},{"$f":"+IFERROR(VLOOKUP(KY$6&\"-\"&$M10&\"_old\",Ammortamento_Finanziario!$H:$L,5,FALSE),VLOOKUP($M10,TT_Tabelle_Riferimento!$H$31:$I$50,2,FALSE))","v":40},{"$f":"+IFERROR(VLOOKUP(KZ$6&\"-\"&$M10&\"_old\",Ammortamento_Finanziario!$H:$L,5,FALSE),VLOOKUP($M10,TT_Tabelle_Riferimento!$H$31:$I$50,2,FALSE))","v":40},{"$f":"+IFERROR(VLOOKUP(LA$6&\"-\"&$M10&\"_old\",Ammortamento_Finanziario!$H:$L,5,FALSE),VLOOKUP($M10,TT_Tabelle_Riferimento!$H$31:$I$50,2,FALSE))","v":40},{"$f":"+IFERROR(VLOOKUP(LB$6&\"-\"&$M10&\"_old\",Ammortamento_Finanziario!$H:$L,5,FALSE),VLOOKUP($M10,TT_Tabelle_Riferimento!$H$31:$I$50,2,FALSE))","v":40},{"$f":"+IFERROR(VLOOKUP(LC$6&\"-\"&$M10&\"_old\",Ammortamento_Finanziario!$H:$L,5,FALSE),VLOOKUP($M10,TT_Tabelle_Riferimento!$H$31:$I$50,2,FALSE))","v":40},{"$f":"+IFERROR(VLOOKUP(LD$6&\"-\"&$M10&\"_old\",Ammortamento_Finanziario!$H:$L,5,FALSE),VLOOKUP($M10,TT_Tabelle_Riferimento!$H$31:$I$50,2,FALSE))","v":40},{"$f":"+IFERROR(VLOOKUP(LE$6&\"-\"&$M10&\"_old\",Ammortamento_Finanziario!$H:$L,5,FALSE),VLOOKUP($M10,TT_Tabelle_Riferimento!$H$31:$I$50,2,FALSE))","v":40},{"$f":"+IFERROR(VLOOKUP(LF$6&\"-\"&$M10&\"_old\",Ammortamento_Finanziario!$H:$L,5,FALSE),VLOOKUP($M10,TT_Tabelle_Riferimento!$H$31:$I$50,2,FALSE))","v":40},{"$f":"+IFERROR(VLOOKUP(LG$6&\"-\"&$M10&\"_old\",Ammortamento_Finanziario!$H:$L,5,FALSE),VLOOKUP($M10,TT_Tabelle_Riferimento!$H$31:$I$50,2,FALSE))","v":40},{"$f":"+IFERROR(VLOOKUP(LH$6&\"-\"&$M10&\"_old\",Ammortamento_Finanziario!$H:$L,5,FALSE),VLOOKUP($M10,TT_Tabelle_Riferimento!$H$31:$I$50,2,FALSE))","v":40},{"$f":"+IFERROR(VLOOKUP(LI$6&\"-\"&$M10&\"_old\",Ammortamento_Finanziario!$H:$L,5,FALSE),VLOOKUP($M10,TT_Tabelle_Riferimento!$H$31:$I$50,2,FALSE))","v":40},{"$f":"+IFERROR(VLOOKUP(LJ$6&\"-\"&$M10&\"_old\",Ammortamento_Finanziario!$H:$L,5,FALSE),VLOOKUP($M10,TT_Tabelle_Riferimento!$H$31:$I$50,2,FALSE))","v":40},{"$f":"+IFERROR(VLOOKUP(LK$6&\"-\"&$M10&\"_old\",Ammortamento_Finanziario!$H:$L,5,FALSE),VLOOKUP($M10,TT_Tabelle_Riferimento!$H$31:$I$50,2,FALSE))","v":40},{"$f":"+IFERROR(VLOOKUP(LL$6&\"-\"&$M10&\"_old\",Ammortamento_Finanziario!$H:$L,5,FALSE),VLOOKUP($M10,TT_Tabelle_Riferimento!$H$31:$I$50,2,FALSE))","v":40},{"$f":"+IFERROR(VLOOKUP(LM$6&\"-\"&$M10&\"_old\",Ammortamento_Finanziario!$H:$L,5,FALSE),VLOOKUP($M10,TT_Tabelle_Riferimento!$H$31:$I$50,2,FALSE))","v":40},{"$f":"+IFERROR(VLOOKUP(LN$6&\"-\"&$M10&\"_old\",Ammortamento_Finanziario!$H:$L,5,FALSE),VLOOKUP($M10,TT_Tabelle_Riferimento!$H$31:$I$50,2,FALSE))","v":40},{"$f":"+IFERROR(VLOOKUP(LO$6&\"-\"&$M10&\"_old\",Ammortamento_Finanziario!$H:$L,5,FALSE),VLOOKUP($M10,TT_Tabelle_Riferimento!$H$31:$I$50,2,FALSE))","v":40},{"$f":"+IFERROR(VLOOKUP(LP$6&\"-\"&$M10&\"_old\",Ammortamento_Finanziario!$H:$L,5,FALSE),VLOOKUP($M10,TT_Tabelle_Riferimento!$H$31:$I$50,2,FALSE))","v":40},{"$f":"+IFERROR(VLOOKUP(LQ$6&\"-\"&$M10&\"_old\",Ammortamento_Finanziario!$H:$L,5,FALSE),VLOOKUP($M10,TT_Tabelle_Riferimento!$H$31:$I$50,2,FALSE))","v":40},{"$f":"+IFERROR(VLOOKUP(LR$6&\"-\"&$M10&\"_old\",Ammortamento_Finanziario!$H:$L,5,FALSE),VLOOKUP($M10,TT_Tabelle_Riferimento!$H$31:$I$50,2,FALSE))","v":40},{"$f":"+IFERROR(VLOOKUP(LS$6&\"-\"&$M10&\"_old\",Ammortamento_Finanziario!$H:$L,5,FALSE),VLOOKUP($M10,TT_Tabelle_Riferimento!$H$31:$I$50,2,FALSE))","v":40},{"$f":"+IFERROR(VLOOKUP(LT$6&\"-\"&$M10&\"_old\",Ammortamento_Finanziario!$H:$L,5,FALSE),VLOOKUP($M10,TT_Tabelle_Riferimento!$H$31:$I$50,2,FALSE))","v":40},{"$f":"+IFERROR(VLOOKUP(LU$6&\"-\"&$M10&\"_old\",Ammortamento_Finanziario!$H:$L,5,FALSE),VLOOKUP($M10,TT_Tabelle_Riferimento!$H$31:$I$50,2,FALSE))","v":40},{"$f":"+IFERROR(VLOOKUP(LV$6&\"-\"&$M10&\"_old\",Ammortamento_Finanziario!$H:$L,5,FALSE),VLOOKUP($M10,TT_Tabelle_Riferimento!$H$31:$I$50,2,FALSE))","v":40},{"$f":"+IFERROR(VLOOKUP(LW$6&\"-\"&$M10&\"_old\",Ammortamento_Finanziario!$H:$L,5,FALSE),VLOOKUP($M10,TT_Tabelle_Riferimento!$H$31:$I$50,2,FALSE))","v":40},{"$f":"+IFERROR(VLOOKUP(LX$6&\"-\"&$M10&\"_old\",Ammortamento_Finanziario!$H:$L,5,FALSE),VLOOKUP($M10,TT_Tabelle_Riferimento!$H$31:$I$50,2,FALSE))","v":40},{"$f":"+IFERROR(VLOOKUP(LY$6&\"-\"&$M10&\"_old\",Ammortamento_Finanziario!$H:$L,5,FALSE),VLOOKUP($M10,TT_Tabelle_Riferimento!$H$31:$I$50,2,FALSE))","v":40},{"$f":"+IFERROR(VLOOKUP(LZ$6&\"-\"&$M10&\"_old\",Ammortamento_Finanziario!$H:$L,5,FALSE),VLOOKUP($M10,TT_Tabelle_Riferimento!$H$31:$I$50,2,FALSE))","v":40},{"$f":"+IFERROR(VLOOKUP(MA$6&\"-\"&$M10&\"_old\",Ammortamento_Finanziario!$H:$L,5,FALSE),VLOOKUP($M10,TT_Tabelle_Riferimento!$H$31:$I$50,2,FALSE))","v":40},{"$f":"+IFERROR(VLOOKUP(MB$6&\"-\"&$M10&\"_old\",Ammortamento_Finanziario!$H:$L,5,FALSE),VLOOKUP($M10,TT_Tabelle_Riferimento!$H$31:$I$50,2,FALSE))","v":40},{"$f":"+IFERROR(VLOOKUP(MC$6&\"-\"&$M10&\"_old\",Ammortamento_Finanziario!$H:$L,5,FALSE),VLOOKUP($M10,TT_Tabelle_Riferimento!$H$31:$I$50,2,FALSE))","v":40},{"$f":"+IFERROR(VLOOKUP(MD$6&\"-\"&$M10&\"_old\",Ammortamento_Finanziario!$H:$L,5,FALSE),VLOOKUP($M10,TT_Tabelle_Riferimento!$H$31:$I$50,2,FALSE))","v":40},{"$f":"+IFERROR(VLOOKUP(ME$6&\"-\"&$M10&\"_old\",Ammortamento_Finanziario!$H:$L,5,FALSE),VLOOKUP($M10,TT_Tabelle_Riferimento!$H$31:$I$50,2,FALSE))","v":40},{"$f":"+IFERROR(VLOOKUP(MF$6&\"-\"&$M10&\"_old\",Ammortamento_Finanziario!$H:$L,5,FALSE),VLOOKUP($M10,TT_Tabelle_Riferimento!$H$31:$I$50,2,FALSE))","v":40},{"$f":"+IFERROR(VLOOKUP(MG$6&\"-\"&$M10&\"_old\",Ammortamento_Finanziario!$H:$L,5,FALSE),VLOOKUP($M10,TT_Tabelle_Riferimento!$H$31:$I$50,2,FALSE))","v":40},{"$f":"+IFERROR(VLOOKUP(MH$6&\"-\"&$M10&\"_old\",Ammortamento_Finanziario!$H:$L,5,FALSE),VLOOKUP($M10,TT_Tabelle_Riferimento!$H$31:$I$50,2,FALSE))","v":40},{"$f":"+IFERROR(VLOOKUP(MI$6&\"-\"&$M10&\"_old\",Ammortamento_Finanziario!$H:$L,5,FALSE),VLOOKUP($M10,TT_Tabelle_Riferimento!$H$31:$I$50,2,FALSE))","v":40},{"$f":"+IFERROR(VLOOKUP(MJ$6&\"-\"&$M10&\"_old\",Ammortamento_Finanziario!$H:$L,5,FALSE),VLOOKUP($M10,TT_Tabelle_Riferimento!$H$31:$I$50,2,FALSE))","v":40},{"$f":"+IFERROR(VLOOKUP(MK$6&\"-\"&$M10&\"_old\",Ammortamento_Finanziario!$H:$L,5,FALSE),VLOOKUP($M10,TT_Tabelle_Riferimento!$H$31:$I$50,2,FALSE))","v":40},{"$f":"+IFERROR(VLOOKUP(ML$6&\"-\"&$M10&\"_old\",Ammortamento_Finanziario!$H:$L,5,FALSE),VLOOKUP($M10,TT_Tabelle_Riferimento!$H$31:$I$50,2,FALSE))","v":40},{"$f":"+IFERROR(VLOOKUP(MM$6&\"-\"&$M10&\"_old\",Ammortamento_Finanziario!$H:$L,5,FALSE),VLOOKUP($M10,TT_Tabelle_Riferimento!$H$31:$I$50,2,FALSE))","v":40},{"$f":"+IFERROR(VLOOKUP(MN$6&\"-\"&$M10&\"_old\",Ammortamento_Finanziario!$H:$L,5,FALSE),VLOOKUP($M10,TT_Tabelle_Riferimento!$H$31:$I$50,2,FALSE))","v":40},{"$f":"+IFERROR(VLOOKUP(MO$6&\"-\"&$M10&\"_old\",Ammortamento_Finanziario!$H:$L,5,FALSE),VLOOKUP($M10,TT_Tabelle_Riferimento!$H$31:$I$50,2,FALSE))","v":40},{"$f":"+IFERROR(VLOOKUP(MP$6&\"-\"&$M10&\"_old\",Ammortamento_Finanziario!$H:$L,5,FALSE),VLOOKUP($M10,TT_Tabelle_Riferimento!$H$31:$I$50,2,FALSE))","v":40},{"$f":"+IFERROR(VLOOKUP(MQ$6&\"-\"&$M10&\"_old\",Ammortamento_Finanziario!$H:$L,5,FALSE),VLOOKUP($M10,TT_Tabelle_Riferimento!$H$31:$I$50,2,FALSE))","v":40},{"$f":"+IFERROR(VLOOKUP(MR$6&\"-\"&$M10&\"_old\",Ammortamento_Finanziario!$H:$L,5,FALSE),VLOOKUP($M10,TT_Tabelle_Riferimento!$H$31:$I$50,2,FALSE))","v":40},{"$f":"+IFERROR(VLOOKUP(MS$6&\"-\"&$M10&\"_old\",Ammortamento_Finanziario!$H:$L,5,FALSE),VLOOKUP($M10,TT_Tabelle_Riferimento!$H$31:$I$50,2,FALSE))","v":40},{"$f":"+IFERROR(VLOOKUP(MT$6&\"-\"&$M10&\"_old\",Ammortamento_Finanziario!$H:$L,5,FALSE),VLOOKUP($M10,TT_Tabelle_Riferimento!$H$31:$I$50,2,FALSE))","v":40},{"$f":"+IFERROR(VLOOKUP(MU$6&\"-\"&$M10&\"_old\",Ammortamento_Finanziario!$H:$L,5,FALSE),VLOOKUP($M10,TT_Tabelle_Riferimento!$H$31:$I$50,2,FALSE))","v":40},{"$f":"+IFERROR(VLOOKUP(MV$6&\"-\"&$M10&\"_old\",Ammortamento_Finanziario!$H:$L,5,FALSE),VLOOKUP($M10,TT_Tabelle_Riferimento!$H$31:$I$50,2,FALSE))","v":40},{"$f":"+IFERROR(VLOOKUP(MW$6&\"-\"&$M10&\"_old\",Ammortamento_Finanziario!$H:$L,5,FALSE),VLOOKUP($M10,TT_Tabelle_Riferimento!$H$31:$I$50,2,FALSE))","v":40},{"$f":"+IFERROR(VLOOKUP(MX$6&\"-\"&$M10&\"_old\",Ammortamento_Finanziario!$H:$L,5,FALSE),VLOOKUP($M10,TT_Tabelle_Riferimento!$H$31:$I$50,2,FALSE))","v":40},{"$f":"+IFERROR(VLOOKUP(MY$6&\"-\"&$M10&\"_old\",Ammortamento_Finanziario!$H:$L,5,FALSE),VLOOKUP($M10,TT_Tabelle_Riferimento!$H$31:$I$50,2,FALSE))","v":40},{"$f":"+IFERROR(VLOOKUP(MZ$6&\"-\"&$M10&\"_old\",Ammortamento_Finanziario!$H:$L,5,FALSE),VLOOKUP($M10,TT_Tabelle_Riferimento!$H$31:$I$50,2,FALSE))","v":40},{"$f":"+IFERROR(VLOOKUP(NA$6&\"-\"&$M10&\"_old\",Ammortamento_Finanziario!$H:$L,5,FALSE),VLOOKUP($M10,TT_Tabelle_Riferimento!$H$31:$I$50,2,FALSE))","v":40},{"$f":"+IFERROR(VLOOKUP(NB$6&\"-\"&$M10&\"_old\",Ammortamento_Finanziario!$H:$L,5,FALSE),VLOOKUP($M10,TT_Tabelle_Riferimento!$H$31:$I$50,2,FALSE))","v":40},{"$f":"+IFERROR(VLOOKUP(NC$6&\"-\"&$M10&\"_old\",Ammortamento_Finanziario!$H:$L,5,FALSE),VLOOKUP($M10,TT_Tabelle_Riferimento!$H$31:$I$50,2,FALSE))","v":40},{"$f":"+IFERROR(VLOOKUP(ND$6&\"-\"&$M10&\"_old\",Ammortamento_Finanziario!$H:$L,5,FALSE),VLOOKUP($M10,TT_Tabelle_Riferimento!$H$31:$I$50,2,FALSE))","v":40},{"$f":"+IFERROR(VLOOKUP(NE$6&\"-\"&$M10&\"_old\",Ammortamento_Finanziario!$H:$L,5,FALSE),VLOOKUP($M10,TT_Tabelle_Riferimento!$H$31:$I$50,2,FALSE))","v":40},{"$f":"+IFERROR(VLOOKUP(NF$6&\"-\"&$M10&\"_old\",Ammortamento_Finanziario!$H:$L,5,FALSE),VLOOKUP($M10,TT_Tabelle_Riferimento!$H$31:$I$50,2,FALSE))","v":40},{"$f":"+IFERROR(VLOOKUP(NG$6&\"-\"&$M10&\"_old\",Ammortamento_Finanziario!$H:$L,5,FALSE),VLOOKUP($M10,TT_Tabelle_Riferimento!$H$31:$I$50,2,FALSE))","v":40},{"$f":"+IFERROR(VLOOKUP(NH$6&\"-\"&$M10&\"_old\",Ammortamento_Finanziario!$H:$L,5,FALSE),VLOOKUP($M10,TT_Tabelle_Riferimento!$H$31:$I$50,2,FALSE))","v":40},{"$f":"+IFERROR(VLOOKUP(NI$6&\"-\"&$M10&\"_old\",Ammortamento_Finanziario!$H:$L,5,FALSE),VLOOKUP($M10,TT_Tabelle_Riferimento!$H$31:$I$50,2,FALSE))","v":40},{"$f":"+IFERROR(VLOOKUP(NJ$6&\"-\"&$M10&\"_old\",Ammortamento_Finanziario!$H:$L,5,FALSE),VLOOKUP($M10,TT_Tabelle_Riferimento!$H$31:$I$50,2,FALSE))","v":40},{"$f":"+IFERROR(VLOOKUP(NK$6&\"-\"&$M10&\"_old\",Ammortamento_Finanziario!$H:$L,5,FALSE),VLOOKUP($M10,TT_Tabelle_Riferimento!$H$31:$I$50,2,FALSE))","v":40},{"$f":"+IFERROR(VLOOKUP(NL$6&\"-\"&$M10&\"_old\",Ammortamento_Finanziario!$H:$L,5,FALSE),VLOOKUP($M10,TT_Tabelle_Riferimento!$H$31:$I$50,2,FALSE))","v":40},{"$f":"+IFERROR(VLOOKUP(NM$6&\"-\"&$M10&\"_old\",Ammortamento_Finanziario!$H:$L,5,FALSE),VLOOKUP($M10,TT_Tabelle_Riferimento!$H$31:$I$50,2,FALSE))","v":40},{"$f":"+IFERROR(VLOOKUP(NN$6&\"-\"&$M10&\"_old\",Ammortamento_Finanziario!$H:$L,5,FALSE),VLOOKUP($M10,TT_Tabelle_Riferimento!$H$31:$I$50,2,FALSE))","v":40},{"$f":"+IFERROR(VLOOKUP(NO$6&\"-\"&$M10&\"_old\",Ammortamento_Finanziario!$H:$L,5,FALSE),VLOOKUP($M10,TT_Tabelle_Riferimento!$H$31:$I$50,2,FALSE))","v":40},{"$f":"+IFERROR(VLOOKUP(NP$6&\"-\"&$M10&\"_old\",Ammortamento_Finanziario!$H:$L,5,FALSE),VLOOKUP($M10,TT_Tabelle_Riferimento!$H$31:$I$50,2,FALSE))","v":40},{"$f":"+IFERROR(VLOOKUP(NQ$6&\"-\"&$M10&\"_old\",Ammortamento_Finanziario!$H:$L,5,FALSE),VLOOKUP($M10,TT_Tabelle_Riferimento!$H$31:$I$50,2,FALSE))","v":40},{"$f":"+IFERROR(VLOOKUP(NR$6&\"-\"&$M10&\"_old\",Ammortamento_Finanziario!$H:$L,5,FALSE),VLOOKUP($M10,TT_Tabelle_Riferimento!$H$31:$I$50,2,FALSE))","v":40},{"$f":"+IFERROR(VLOOKUP(NS$6&\"-\"&$M10&\"_old\",Ammortamento_Finanziario!$H:$L,5,FALSE),VLOOKUP($M10,TT_Tabelle_Riferimento!$H$31:$I$50,2,FALSE))","v":40},{"$f":"+IFERROR(VLOOKUP(NT$6&\"-\"&$M10&\"_old\",Ammortamento_Finanziario!$H:$L,5,FALSE),VLOOKUP($M10,TT_Tabelle_Riferimento!$H$31:$I$50,2,FALSE))","v":40},{"$f":"+IFERROR(VLOOKUP(NU$6&\"-\"&$M10&\"_old\",Ammortamento_Finanziario!$H:$L,5,FALSE),VLOOKUP($M10,TT_Tabelle_Riferimento!$H$31:$I$50,2,FALSE))","v":40},{"$f":"+IFERROR(VLOOKUP(NV$6&\"-\"&$M10&\"_old\",Ammortamento_Finanziario!$H:$L,5,FALSE),VLOOKUP($M10,TT_Tabelle_Riferimento!$H$31:$I$50,2,FALSE))","v":40},{"$f":"+IFERROR(VLOOKUP(NW$6&\"-\"&$M10&\"_old\",Ammortamento_Finanziario!$H:$L,5,FALSE),VLOOKUP($M10,TT_Tabelle_Riferimento!$H$31:$I$50,2,FALSE))","v":40},{"$f":"+IFERROR(VLOOKUP(NX$6&\"-\"&$M10&\"_old\",Ammortamento_Finanziario!$H:$L,5,FALSE),VLOOKUP($M10,TT_Tabelle_Riferimento!$H$31:$I$50,2,FALSE))","v":40},{"$f":"+IFERROR(VLOOKUP(NY$6&\"-\"&$M10&\"_old\",Ammortamento_Finanziario!$H:$L,5,FALSE),VLOOKUP($M10,TT_Tabelle_Riferimento!$H$31:$I$50,2,FALSE))","v":40},{"$f":"+IFERROR(VLOOKUP(NZ$6&\"-\"&$M10&\"_old\",Ammortamento_Finanziario!$H:$L,5,FALSE),VLOOKUP($M10,TT_Tabelle_Riferimento!$H$31:$I$50,2,FALSE))","v":40},{"$f":"+IFERROR(VLOOKUP(OA$6&\"-\"&$M10&\"_old\",Ammortamento_Finanziario!$H:$L,5,FALSE),VLOOKUP($M10,TT_Tabelle_Riferimento!$H$31:$I$50,2,FALSE))","v":40},{"$f":"+IFERROR(VLOOKUP(OB$6&\"-\"&$M10&\"_old\",Ammortamento_Finanziario!$H:$L,5,FALSE),VLOOKUP($M10,TT_Tabelle_Riferimento!$H$31:$I$50,2,FALSE))","v":40},{"$f":"+IFERROR(VLOOKUP(OC$6&\"-\"&$M10&\"_old\",Ammortamento_Finanziario!$H:$L,5,FALSE),VLOOKUP($M10,TT_Tabelle_Riferimento!$H$31:$I$50,2,FALSE))","v":40},{"$f":"+IFERROR(VLOOKUP(OD$6&\"-\"&$M10&\"_old\",Ammortamento_Finanziario!$H:$L,5,FALSE),VLOOKUP($M10,TT_Tabelle_Riferimento!$H$31:$I$50,2,FALSE))","v":40},{"$f":"+IFERROR(VLOOKUP(OE$6&\"-\"&$M10&\"_old\",Ammortamento_Finanziario!$H:$L,5,FALSE),VLOOKUP($M10,TT_Tabelle_Riferimento!$H$31:$I$50,2,FALSE))","v":40},{"$f":"+IFERROR(VLOOKUP(OF$6&\"-\"&$M10&\"_old\",Ammortamento_Finanziario!$H:$L,5,FALSE),VLOOKUP($M10,TT_Tabelle_Riferimento!$H$31:$I$50,2,FALSE))","v":40},{"$f":"+IFERROR(VLOOKUP(OG$6&\"-\"&$M10&\"_old\",Ammortamento_Finanziario!$H:$L,5,FALSE),VLOOKUP($M10,TT_Tabelle_Riferimento!$H$31:$I$50,2,FALSE))","v":40},{"$f":"+IFERROR(VLOOKUP(OH$6&\"-\"&$M10&\"_old\",Ammortamento_Finanziario!$H:$L,5,FALSE),VLOOKUP($M10,TT_Tabelle_Riferimento!$H$31:$I$50,2,FALSE))","v":40},{"$f":"+IFERROR(VLOOKUP(OI$6&\"-\"&$M10&\"_old\",Ammortamento_Finanziario!$H:$L,5,FALSE),VLOOKUP($M10,TT_Tabelle_Riferimento!$H$31:$I$50,2,FALSE))","v":40},{"$f":"+IFERROR(VLOOKUP(OJ$6&\"-\"&$M10&\"_old\",Ammortamento_Finanziario!$H:$L,5,FALSE),VLOOKUP($M10,TT_Tabelle_Riferimento!$H$31:$I$50,2,FALSE))","v":40},{"$f":"+IFERROR(VLOOKUP(OK$6&\"-\"&$M10&\"_old\",Ammortamento_Finanziario!$H:$L,5,FALSE),VLOOKUP($M10,TT_Tabelle_Riferimento!$H$31:$I$50,2,FALSE))","v":40},{"$f":"+IFERROR(VLOOKUP(OL$6&\"-\"&$M10&\"_old\",Ammortamento_Finanziario!$H:$L,5,FALSE),VLOOKUP($M10,TT_Tabelle_Riferimento!$H$31:$I$50,2,FALSE))","v":40},{"$f":"+IFERROR(VLOOKUP(OM$6&\"-\"&$M10&\"_old\",Ammortamento_Finanziario!$H:$L,5,FALSE),VLOOKUP($M10,TT_Tabelle_Riferimento!$H$31:$I$50,2,FALSE))","v":40},{"$f":"+IFERROR(VLOOKUP(ON$6&\"-\"&$M10&\"_old\",Ammortamento_Finanziario!$H:$L,5,FALSE),VLOOKUP($M10,TT_Tabelle_Riferimento!$H$31:$I$50,2,FALSE))","v":40},{"$f":"+IFERROR(VLOOKUP(OO$6&\"-\"&$M10&\"_old\",Ammortamento_Finanziario!$H:$L,5,FALSE),VLOOKUP($M10,TT_Tabelle_Riferimento!$H$31:$I$50,2,FALSE))","v":40},{"$f":"+IFERROR(VLOOKUP(OP$6&\"-\"&$M10&\"_old\",Ammortamento_Finanziario!$H:$L,5,FALSE),VLOOKUP($M10,TT_Tabelle_Riferimento!$H$31:$I$50,2,FALSE))","v":40},{"$f":"+IFERROR(VLOOKUP(OQ$6&\"-\"&$M10&\"_old\",Ammortamento_Finanziario!$H:$L,5,FALSE),VLOOKUP($M10,TT_Tabelle_Riferimento!$H$31:$I$50,2,FALSE))","v":40},{"$f":"+IFERROR(VLOOKUP(OR$6&\"-\"&$M10&\"_old\",Ammortamento_Finanziario!$H:$L,5,FALSE),VLOOKUP($M10,TT_Tabelle_Riferimento!$H$31:$I$50,2,FALSE))","v":40},{"$f":"+IFERROR(VLOOKUP(OS$6&\"-\"&$M10&\"_old\",Ammortamento_Finanziario!$H:$L,5,FALSE),VLOOKUP($M10,TT_Tabelle_Riferimento!$H$31:$I$50,2,FALSE))","v":40},{"$f":"+IFERROR(VLOOKUP(OT$6&\"-\"&$M10&\"_old\",Ammortamento_Finanziario!$H:$L,5,FALSE),VLOOKUP($M10,TT_Tabelle_Riferimento!$H$31:$I$50,2,FALSE))","v":40},{"$f":"+IFERROR(VLOOKUP(OU$6&\"-\"&$M10&\"_old\",Ammortamento_Finanziario!$H:$L,5,FALSE),VLOOKUP($M10,TT_Tabelle_Riferimento!$H$31:$I$50,2,FALSE))","v":40},{"$f":"+IFERROR(VLOOKUP(OV$6&\"-\"&$M10&\"_old\",Ammortamento_Finanziario!$H:$L,5,FALSE),VLOOKUP($M10,TT_Tabelle_Riferimento!$H$31:$I$50,2,FALSE))","v":40},{"$f":"+IFERROR(VLOOKUP(OW$6&\"-\"&$M10&\"_old\",Ammortamento_Finanziario!$H:$L,5,FALSE),VLOOKUP($M10,TT_Tabelle_Riferimento!$H$31:$I$50,2,FALSE))","v":40},{"$f":"+IFERROR(VLOOKUP(OX$6&\"-\"&$M10&\"_old\",Ammortamento_Finanziario!$H:$L,5,FALSE),VLOOKUP($M10,TT_Tabelle_Riferimento!$H$31:$I$50,2,FALSE))","v":40},{"$f":"+IFERROR(VLOOKUP(OY$6&\"-\"&$M10&\"_old\",Ammortamento_Finanziario!$H:$L,5,FALSE),VLOOKUP($M10,TT_Tabelle_Riferimento!$H$31:$I$50,2,FALSE))","v":40},{"$f":"+IFERROR(VLOOKUP(OZ$6&\"-\"&$M10&\"_old\",Ammortamento_Finanziario!$H:$L,5,FALSE),VLOOKUP($M10,TT_Tabelle_Riferimento!$H$31:$I$50,2,FALSE))","v":40},{"$f":"+IFERROR(VLOOKUP(PA$6&\"-\"&$M10&\"_old\",Ammortamento_Finanziario!$H:$L,5,FALSE),VLOOKUP($M10,TT_Tabelle_Riferimento!$H$31:$I$50,2,FALSE))","v":40},{"$f":"+IFERROR(VLOOKUP(PB$6&\"-\"&$M10&\"_old\",Ammortamento_Finanziario!$H:$L,5,FALSE),VLOOKUP($M10,TT_Tabelle_Riferimento!$H$31:$I$50,2,FALSE))","v":40},{"$f":"+IFERROR(VLOOKUP(PC$6&\"-\"&$M10&\"_old\",Ammortamento_Finanziario!$H:$L,5,FALSE),VLOOKUP($M10,TT_Tabelle_Riferimento!$H$31:$I$50,2,FALSE))","v":40},{"$f":"+IFERROR(VLOOKUP(PD$6&\"-\"&$M10&\"_old\",Ammortamento_Finanziario!$H:$L,5,FALSE),VLOOKUP($M10,TT_Tabelle_Riferimento!$H$31:$I$50,2,FALSE))","v":40},{"$f":"+IFERROR(VLOOKUP(PE$6&\"-\"&$M10&\"_old\",Ammortamento_Finanziario!$H:$L,5,FALSE),VLOOKUP($M10,TT_Tabelle_Riferimento!$H$31:$I$50,2,FALSE))","v":40},{"$f":"+IFERROR(VLOOKUP(PF$6&\"-\"&$M10&\"_old\",Ammortamento_Finanziario!$H:$L,5,FALSE),VLOOKUP($M10,TT_Tabelle_Riferimento!$H$31:$I$50,2,FALSE))","v":40},{"$f":"+IFERROR(VLOOKUP(PG$6&\"-\"&$M10&\"_old\",Ammortamento_Finanziario!$H:$L,5,FALSE),VLOOKUP($M10,TT_Tabelle_Riferimento!$H$31:$I$50,2,FALSE))","v":40},{"$f":"+IFERROR(VLOOKUP(PH$6&\"-\"&$M10&\"_old\",Ammortamento_Finanziario!$H:$L,5,FALSE),VLOOKUP($M10,TT_Tabelle_Riferimento!$H$31:$I$50,2,FALSE))","v":40},{"$f":"+IFERROR(VLOOKUP(PI$6&\"-\"&$M10&\"_old\",Ammortamento_Finanziario!$H:$L,5,FALSE),VLOOKUP($M10,TT_Tabelle_Riferimento!$H$31:$I$50,2,FALSE))","v":40},{"$f":"+IFERROR(VLOOKUP(PJ$6&\"-\"&$M10&\"_old\",Ammortamento_Finanziario!$H:$L,5,FALSE),VLOOKUP($M10,TT_Tabelle_Riferimento!$H$31:$I$50,2,FALSE))","v":40},{"$f":"+IFERROR(VLOOKUP(PK$6&\"-\"&$M10&\"_old\",Ammortamento_Finanziario!$H:$L,5,FALSE),VLOOKUP($M10,TT_Tabelle_Riferimento!$H$31:$I$50,2,FALSE))","v":40},{"$f":"+IFERROR(VLOOKUP(PL$6&\"-\"&$M10&\"_old\",Ammortamento_Finanziario!$H:$L,5,FALSE),VLOOKUP($M10,TT_Tabelle_Riferimento!$H$31:$I$50,2,FALSE))","v":40},{"$f":"+IFERROR(VLOOKUP(PM$6&\"-\"&$M10&\"_old\",Ammortamento_Finanziario!$H:$L,5,FALSE),VLOOKUP($M10,TT_Tabelle_Riferimento!$H$31:$I$50,2,FALSE))","v":40},{"$f":"+IFERROR(VLOOKUP(PN$6&\"-\"&$M10&\"_old\",Ammortamento_Finanziario!$H:$L,5,FALSE),VLOOKUP($M10,TT_Tabelle_Riferimento!$H$31:$I$50,2,FALSE))","v":40},{"$f":"+IFERROR(VLOOKUP(PO$6&\"-\"&$M10&\"_old\",Ammortamento_Finanziario!$H:$L,5,FALSE),VLOOKUP($M10,TT_Tabelle_Riferimento!$H$31:$I$50,2,FALSE))","v":40},{"$f":"+IFERROR(VLOOKUP(PP$6&\"-\"&$M10&\"_old\",Ammortamento_Finanziario!$H:$L,5,FALSE),VLOOKUP($M10,TT_Tabelle_Riferimento!$H$31:$I$50,2,FALSE))","v":40},{"$f":"+IFERROR(VLOOKUP(PQ$6&\"-\"&$M10&\"_old\",Ammortamento_Finanziario!$H:$L,5,FALSE),VLOOKUP($M10,TT_Tabelle_Riferimento!$H$31:$I$50,2,FALSE))","v":40},{"$f":"+IFERROR(VLOOKUP(PR$6&\"-\"&$M10&\"_old\",Ammortamento_Finanziario!$H:$L,5,FALSE),VLOOKUP($M10,TT_Tabelle_Riferimento!$H$31:$I$50,2,FALSE))","v":40},{"$f":"+IFERROR(VLOOKUP(PS$6&\"-\"&$M10&\"_old\",Ammortamento_Finanziario!$H:$L,5,FALSE),VLOOKUP($M10,TT_Tabelle_Riferimento!$H$31:$I$50,2,FALSE))","v":40},{"$f":"+IFERROR(VLOOKUP(PT$6&\"-\"&$M10&\"_old\",Ammortamento_Finanziario!$H:$L,5,FALSE),VLOOKUP($M10,TT_Tabelle_Riferimento!$H$31:$I$50,2,FALSE))","v":40},{"$f":"+IFERROR(VLOOKUP(PU$6&\"-\"&$M10&\"_old\",Ammortamento_Finanziario!$H:$L,5,FALSE),VLOOKUP($M10,TT_Tabelle_Riferimento!$H$31:$I$50,2,FALSE))","v":40},{"$f":"+IFERROR(VLOOKUP(PV$6&\"-\"&$M10&\"_old\",Ammortamento_Finanziario!$H:$L,5,FALSE),VLOOKUP($M10,TT_Tabelle_Riferimento!$H$31:$I$50,2,FALSE))","v":40},{"$f":"+IFERROR(VLOOKUP(PW$6&\"-\"&$M10&\"_old\",Ammortamento_Finanziario!$H:$L,5,FALSE),VLOOKUP($M10,TT_Tabelle_Riferimento!$H$31:$I$50,2,FALSE))","v":40},{"$f":"+IFERROR(VLOOKUP(PX$6&\"-\"&$M10&\"_old\",Ammortamento_Finanziario!$H:$L,5,FALSE),VLOOKUP($M10,TT_Tabelle_Riferimento!$H$31:$I$50,2,FALSE))","v":40},{"$f":"+IFERROR(VLOOKUP(PY$6&\"-\"&$M10&\"_old\",Ammortamento_Finanziario!$H:$L,5,FALSE),VLOOKUP($M10,TT_Tabelle_Riferimento!$H$31:$I$50,2,FALSE))","v":40},{"$f":"+IFERROR(VLOOKUP(PZ$6&\"-\"&$M10&\"_old\",Ammortamento_Finanziario!$H:$L,5,FALSE),VLOOKUP($M10,TT_Tabelle_Riferimento!$H$31:$I$50,2,FALSE))","v":40},{"$f":"+IFERROR(VLOOKUP(QA$6&\"-\"&$M10&\"_old\",Ammortamento_Finanziario!$H:$L,5,FALSE),VLOOKUP($M10,TT_Tabelle_Riferimento!$H$31:$I$50,2,FALSE))","v":40},{"$f":"+IFERROR(VLOOKUP(QB$6&\"-\"&$M10&\"_old\",Ammortamento_Finanziario!$H:$L,5,FALSE),VLOOKUP($M10,TT_Tabelle_Riferimento!$H$31:$I$50,2,FALSE))","v":40},{"$f":"+IFERROR(VLOOKUP(QC$6&\"-\"&$M10&\"_old\",Ammortamento_Finanziario!$H:$L,5,FALSE),VLOOKUP($M10,TT_Tabelle_Riferimento!$H$31:$I$50,2,FALSE))","v":40},{"$f":"+IFERROR(VLOOKUP(QD$6&\"-\"&$M10&\"_old\",Ammortamento_Finanziario!$H:$L,5,FALSE),VLOOKUP($M10,TT_Tabelle_Riferimento!$H$31:$I$50,2,FALSE))","v":40},{"$f":"+IFERROR(VLOOKUP(QE$6&\"-\"&$M10&\"_old\",Ammortamento_Finanziario!$H:$L,5,FALSE),VLOOKUP($M10,TT_Tabelle_Riferimento!$H$31:$I$50,2,FALSE))","v":40},{"$f":"+IFERROR(VLOOKUP(QF$6&\"-\"&$M10&\"_old\",Ammortamento_Finanziario!$H:$L,5,FALSE),VLOOKUP($M10,TT_Tabelle_Riferimento!$H$31:$I$50,2,FALSE))","v":40},{"$f":"+IFERROR(VLOOKUP(QG$6&\"-\"&$M10&\"_old\",Ammortamento_Finanziario!$H:$L,5,FALSE),VLOOKUP($M10,TT_Tabelle_Riferimento!$H$31:$I$50,2,FALSE))","v":40},{"$f":"+IFERROR(VLOOKUP(QH$6&\"-\"&$M10&\"_old\",Ammortamento_Finanziario!$H:$L,5,FALSE),VLOOKUP($M10,TT_Tabelle_Riferimento!$H$31:$I$50,2,FALSE))","v":40},{"$f":"+IFERROR(VLOOKUP(QI$6&\"-\"&$M10&\"_old\",Ammortamento_Finanziario!$H:$L,5,FALSE),VLOOKUP($M10,TT_Tabelle_Riferimento!$H$31:$I$50,2,FALSE))","v":40},{"$f":"+IFERROR(VLOOKUP(QJ$6&\"-\"&$M10&\"_old\",Ammortamento_Finanziario!$H:$L,5,FALSE),VLOOKUP($M10,TT_Tabelle_Riferimento!$H$31:$I$50,2,FALSE))","v":40},{"$f":"+IFERROR(VLOOKUP(QK$6&\"-\"&$M10&\"_old\",Ammortamento_Finanziario!$H:$L,5,FALSE),VLOOKUP($M10,TT_Tabelle_Riferimento!$H$31:$I$50,2,FALSE))","v":40},{"$f":"+IFERROR(VLOOKUP(QL$6&\"-\"&$M10&\"_old\",Ammortamento_Finanziario!$H:$L,5,FALSE),VLOOKUP($M10,TT_Tabelle_Riferimento!$H$31:$I$50,2,FALSE))","v":40},{"$f":"+IFERROR(VLOOKUP(QM$6&\"-\"&$M10&\"_old\",Ammortamento_Finanziario!$H:$L,5,FALSE),VLOOKUP($M10,TT_Tabelle_Riferimento!$H$31:$I$50,2,FALSE))","v":40},{"$f":"+IFERROR(VLOOKUP(QN$6&\"-\"&$M10&\"_old\",Ammortamento_Finanziario!$H:$L,5,FALSE),VLOOKUP($M10,TT_Tabelle_Riferimento!$H$31:$I$50,2,FALSE))","v":40},{"$f":"+IFERROR(VLOOKUP(QO$6&\"-\"&$M10&\"_old\",Ammortamento_Finanziario!$H:$L,5,FALSE),VLOOKUP($M10,TT_Tabelle_Riferimento!$H$31:$I$50,2,FALSE))","v":40},{"$f":"+IFERROR(VLOOKUP(QP$6&\"-\"&$M10&\"_old\",Ammortamento_Finanziario!$H:$L,5,FALSE),VLOOKUP($M10,TT_Tabelle_Riferimento!$H$31:$I$50,2,FALSE))","v":40},{"$f":"+IFERROR(VLOOKUP(QQ$6&\"-\"&$M10&\"_old\",Ammortamento_Finanziario!$H:$L,5,FALSE),VLOOKUP($M10,TT_Tabelle_Riferimento!$H$31:$I$50,2,FALSE))","v":40},{"$f":"+IFERROR(VLOOKUP(QR$6&\"-\"&$M10&\"_old\",Ammortamento_Finanziario!$H:$L,5,FALSE),VLOOKUP($M10,TT_Tabelle_Riferimento!$H$31:$I$50,2,FALSE))","v":40},{"$f":"+IFERROR(VLOOKUP(QS$6&\"-\"&$M10&\"_old\",Ammortamento_Finanziario!$H:$L,5,FALSE),VLOOKUP($M10,TT_Tabelle_Riferimento!$H$31:$I$50,2,FALSE))","v":40},{"$f":"+IFERROR(VLOOKUP(QT$6&\"-\"&$M10&\"_old\",Ammortamento_Finanziario!$H:$L,5,FALSE),VLOOKUP($M10,TT_Tabelle_Riferimento!$H$31:$I$50,2,FALSE))","v":40},{"$f":"+IFERROR(VLOOKUP(QU$6&\"-\"&$M10&\"_old\",Ammortamento_Finanziario!$H:$L,5,FALSE),VLOOKUP($M10,TT_Tabelle_Riferimento!$H$31:$I$50,2,FALSE))","v":40},{"$f":"+IFERROR(VLOOKUP(QV$6&\"-\"&$M10&\"_old\",Ammortamento_Finanziario!$H:$L,5,FALSE),VLOOKUP($M10,TT_Tabelle_Riferimento!$H$31:$I$50,2,FALSE))","v":40},{"$f":"+IFERROR(VLOOKUP(QW$6&\"-\"&$M10&\"_old\",Ammortamento_Finanziario!$H:$L,5,FALSE),VLOOKUP($M10,TT_Tabelle_Riferimento!$H$31:$I$50,2,FALSE))","v":40},{"$f":"+IFERROR(VLOOKUP(QX$6&\"-\"&$M10&\"_old\",Ammortamento_Finanziario!$H:$L,5,FALSE),VLOOKUP($M10,TT_Tabelle_Riferimento!$H$31:$I$50,2,FALSE))","v":40},{"$f":"+IFERROR(VLOOKUP(QY$6&\"-\"&$M10&\"_old\",Ammortamento_Finanziario!$H:$L,5,FALSE),VLOOKUP($M10,TT_Tabelle_Riferimento!$H$31:$I$50,2,FALSE))","v":40},{"$f":"+IFERROR(VLOOKUP(QZ$6&\"-\"&$M10&\"_old\",Ammortamento_Finanziario!$H:$L,5,FALSE),VLOOKUP($M10,TT_Tabelle_Riferimento!$H$31:$I$50,2,FALSE))","v":40},{"$f":"+IFERROR(VLOOKUP(RA$6&\"-\"&$M10&\"_old\",Ammortamento_Finanziario!$H:$L,5,FALSE),VLOOKUP($M10,TT_Tabelle_Riferimento!$H$31:$I$50,2,FALSE))","v":40},{"$f":"+IFERROR(VLOOKUP(RB$6&\"-\"&$M10&\"_old\",Ammortamento_Finanziario!$H:$L,5,FALSE),VLOOKUP($M10,TT_Tabelle_Riferimento!$H$31:$I$50,2,FALSE))","v":40},{"$f":"+IFERROR(VLOOKUP(RC$6&\"-\"&$M10&\"_old\",Ammortamento_Finanziario!$H:$L,5,FALSE),VLOOKUP($M10,TT_Tabelle_Riferimento!$H$31:$I$50,2,FALSE))","v":40},{"$f":"+IFERROR(VLOOKUP(RD$6&\"-\"&$M10&\"_old\",Ammortamento_Finanziario!$H:$L,5,FALSE),VLOOKUP($M10,TT_Tabelle_Riferimento!$H$31:$I$50,2,FALSE))","v":40},{"$f":"+IFERROR(VLOOKUP(RE$6&\"-\"&$M10&\"_old\",Ammortamento_Finanziario!$H:$L,5,FALSE),VLOOKUP($M10,TT_Tabelle_Riferimento!$H$31:$I$50,2,FALSE))","v":40},{"$f":"+IFERROR(VLOOKUP(RF$6&\"-\"&$M10&\"_old\",Ammortamento_Finanziario!$H:$L,5,FALSE),VLOOKUP($M10,TT_Tabelle_Riferimento!$H$31:$I$50,2,FALSE))","v":40},{"$f":"+IFERROR(VLOOKUP(RG$6&\"-\"&$M10&\"_old\",Ammortamento_Finanziario!$H:$L,5,FALSE),VLOOKUP($M10,TT_Tabelle_Riferimento!$H$31:$I$50,2,FALSE))","v":40},{"$f":"+IFERROR(VLOOKUP(RH$6&\"-\"&$M10&\"_old\",Ammortamento_Finanziario!$H:$L,5,FALSE),VLOOKUP($M10,TT_Tabelle_Riferimento!$H$31:$I$50,2,FALSE))","v":40},{"$f":"+IFERROR(VLOOKUP(RI$6&\"-\"&$M10&\"_old\",Ammortamento_Finanziario!$H:$L,5,FALSE),VLOOKUP($M10,TT_Tabelle_Riferimento!$H$31:$I$50,2,FALSE))","v":40},{"$f":"+IFERROR(VLOOKUP(RJ$6&\"-\"&$M10&\"_old\",Ammortamento_Finanziario!$H:$L,5,FALSE),VLOOKUP($M10,TT_Tabelle_Riferimento!$H$31:$I$50,2,FALSE))","v":40},{"$f":"+IFERROR(VLOOKUP(RK$6&\"-\"&$M10&\"_old\",Ammortamento_Finanziario!$H:$L,5,FALSE),VLOOKUP($M10,TT_Tabelle_Riferimento!$H$31:$I$50,2,FALSE))","v":40},{"$f":"+IFERROR(VLOOKUP(RL$6&\"-\"&$M10&\"_old\",Ammortamento_Finanziario!$H:$L,5,FALSE),VLOOKUP($M10,TT_Tabelle_Riferimento!$H$31:$I$50,2,FALSE))","v":40},{"$f":"+IFERROR(VLOOKUP(RM$6&\"-\"&$M10&\"_old\",Ammortamento_Finanziario!$H:$L,5,FALSE),VLOOKUP($M10,TT_Tabelle_Riferimento!$H$31:$I$50,2,FALSE))","v":40},{"$f":"+IFERROR(VLOOKUP(RN$6&\"-\"&$M10&\"_old\",Ammortamento_Finanziario!$H:$L,5,FALSE),VLOOKUP($M10,TT_Tabelle_Riferimento!$H$31:$I$50,2,FALSE))","v":40},{"$f":"+IFERROR(VLOOKUP(RO$6&\"-\"&$M10&\"_old\",Ammortamento_Finanziario!$H:$L,5,FALSE),VLOOKUP($M10,TT_Tabelle_Riferimento!$H$31:$I$50,2,FALSE))","v":40},{"$f":"+IFERROR(VLOOKUP(RP$6&\"-\"&$M10&\"_old\",Ammortamento_Finanziario!$H:$L,5,FALSE),VLOOKUP($M10,TT_Tabelle_Riferimento!$H$31:$I$50,2,FALSE))","v":40},{"$f":"+IFERROR(VLOOKUP(RQ$6&\"-\"&$M10&\"_old\",Ammortamento_Finanziario!$H:$L,5,FALSE),VLOOKUP($M10,TT_Tabelle_Riferimento!$H$31:$I$50,2,FALSE))","v":40},{"$f":"+IFERROR(VLOOKUP(RR$6&\"-\"&$M10&\"_old\",Ammortamento_Finanziario!$H:$L,5,FALSE),VLOOKUP($M10,TT_Tabelle_Riferimento!$H$31:$I$50,2,FALSE))","v":40},{"$f":"+IFERROR(VLOOKUP(RS$6&\"-\"&$M10&\"_old\",Ammortamento_Finanziario!$H:$L,5,FALSE),VLOOKUP($M10,TT_Tabelle_Riferimento!$H$31:$I$50,2,FALSE))","v":40},{"$f":"+IFERROR(VLOOKUP(RT$6&\"-\"&$M10&\"_old\",Ammortamento_Finanziario!$H:$L,5,FALSE),VLOOKUP($M10,TT_Tabelle_Riferimento!$H$31:$I$50,2,FALSE))","v":40},{"$f":"+IFERROR(VLOOKUP(RU$6&\"-\"&$M10&\"_old\",Ammortamento_Finanziario!$H:$L,5,FALSE),VLOOKUP($M10,TT_Tabelle_Riferimento!$H$31:$I$50,2,FALSE))","v":40},{"$f":"+IFERROR(VLOOKUP(RV$6&\"-\"&$M10&\"_old\",Ammortamento_Finanziario!$H:$L,5,FALSE),VLOOKUP($M10,TT_Tabelle_Riferimento!$H$31:$I$50,2,FALSE))","v":40}]
[null,null,null,"FA CFP",{"$f":"+SUM(IMN_gestore!$V:$V)","v":0},{"$f":"+SUM(IMN_gestore!$AG:$AG)","v":0},{"$f":"+SUM(IMN_gestore!$AR:$AR)","v":0},{"$f":"+SUM(IMN_gestore!$BC:$BC)","v":0},{"$f":"+SUM(IMN_gestore!BN:BN)","v":0},{"$f":"+SUM(IMN_gestore!$BY:$BY)","v":0},null,null,5,{"$f":"+IFERROR(VLOOKUP(N$6&\"-\"&$M11&\"_old\",Ammortamento_Finanziario!$H:$L,5,FALSE),VLOOKUP($M11,TT_Tabelle_Riferimento!$H$31:$I$50,2,FALSE))","v":40},{"$f":"+IFERROR(VLOOKUP(O$6&\"-\"&$M11&\"_old\",Ammortamento_Finanziario!$H:$L,5,FALSE),VLOOKUP($M11,TT_Tabelle_Riferimento!$H$31:$I$50,2,FALSE))","v":40},{"$f":"+IFERROR(VLOOKUP(P$6&\"-\"&$M11&\"_old\",Ammortamento_Finanziario!$H:$L,5,FALSE),VLOOKUP($M11,TT_Tabelle_Riferimento!$H$31:$I$50,2,FALSE))","v":40},{"$f":"+IFERROR(VLOOKUP(Q$6&\"-\"&$M11&\"_old\",Ammortamento_Finanziario!$H:$L,5,FALSE),VLOOKUP($M11,TT_Tabelle_Riferimento!$H$31:$I$50,2,FALSE))","v":40},{"$f":"+IFERROR(VLOOKUP(R$6&\"-\"&$M11&\"_old\",Ammortamento_Finanziario!$H:$L,5,FALSE),VLOOKUP($M11,TT_Tabelle_Riferimento!$H$31:$I$50,2,FALSE))","v":40},{"$f":"+IFERROR(VLOOKUP(S$6&\"-\"&$M11&\"_old\",Ammortamento_Finanziario!$H:$L,5,FALSE),VLOOKUP($M11,TT_Tabelle_Riferimento!$H$31:$I$50,2,FALSE))","v":40},{"$f":"+IFERROR(VLOOKUP(T$6&\"-\"&$M11&\"_old\",Ammortamento_Finanziario!$H:$L,5,FALSE),VLOOKUP($M11,TT_Tabelle_Riferimento!$H$31:$I$50,2,FALSE))","v":40},{"$f":"+IFERROR(VLOOKUP(U$6&\"-\"&$M11&\"_old\",Ammortamento_Finanziario!$H:$L,5,FALSE),VLOOKUP($M11,TT_Tabelle_Riferimento!$H$31:$I$50,2,FALSE))","v":40},{"$f":"+IFERROR(VLOOKUP(V$6&\"-\"&$M11&\"_old\",Ammortamento_Finanziario!$H:$L,5,FALSE),VLOOKUP($M11,TT_Tabelle_Riferimento!$H$31:$I$50,2,FALSE))","v":40},{"$f":"+IFERROR(VLOOKUP(W$6&\"-\"&$M11&\"_old\",Ammortamento_Finanziario!$H:$L,5,FALSE),VLOOKUP($M11,TT_Tabelle_Riferimento!$H$31:$I$50,2,FALSE))","v":40},{"$f":"+IFERROR(VLOOKUP(X$6&\"-\"&$M11&\"_old\",Ammortamento_Finanziario!$H:$L,5,FALSE),VLOOKUP($M11,TT_Tabelle_Riferimento!$H$31:$I$50,2,FALSE))","v":40},{"$f":"+IFERROR(VLOOKUP(Y$6&\"-\"&$M11&\"_old\",Ammortamento_Finanziario!$H:$L,5,FALSE),VLOOKUP($M11,TT_Tabelle_Riferimento!$H$31:$I$50,2,FALSE))","v":40},{"$f":"+IFERROR(VLOOKUP(Z$6&\"-\"&$M11&\"_old\",Ammortamento_Finanziario!$H:$L,5,FALSE),VLOOKUP($M11,TT_Tabelle_Riferimento!$H$31:$I$50,2,FALSE))","v":40},{"$f":"+IFERROR(VLOOKUP(AA$6&\"-\"&$M11&\"_old\",Ammortamento_Finanziario!$H:$L,5,FALSE),VLOOKUP($M11,TT_Tabelle_Riferimento!$H$31:$I$50,2,FALSE))","v":40},{"$f":"+IFERROR(VLOOKUP(AB$6&\"-\"&$M11&\"_old\",Ammortamento_Finanziario!$H:$L,5,FALSE),VLOOKUP($M11,TT_Tabelle_Riferimento!$H$31:$I$50,2,FALSE))","v":40},{"$f":"+IFERROR(VLOOKUP(AC$6&\"-\"&$M11&\"_old\",Ammortamento_Finanziario!$H:$L,5,FALSE),VLOOKUP($M11,TT_Tabelle_Riferimento!$H$31:$I$50,2,FALSE))","v":40},{"$f":"+IFERROR(VLOOKUP(AD$6&\"-\"&$M11&\"_old\",Ammortamento_Finanziario!$H:$L,5,FALSE),VLOOKUP($M11,TT_Tabelle_Riferimento!$H$31:$I$50,2,FALSE))","v":40},{"$f":"+IFERROR(VLOOKUP(AE$6&\"-\"&$M11&\"_old\",Ammortamento_Finanziario!$H:$L,5,FALSE),VLOOKUP($M11,TT_Tabelle_Riferimento!$H$31:$I$50,2,FALSE))","v":40},{"$f":"+IFERROR(VLOOKUP(AF$6&\"-\"&$M11&\"_old\",Ammortamento_Finanziario!$H:$L,5,FALSE),VLOOKUP($M11,TT_Tabelle_Riferimento!$H$31:$I$50,2,FALSE))","v":40},{"$f":"+IFERROR(VLOOKUP(AG$6&\"-\"&$M11&\"_old\",Ammortamento_Finanziario!$H:$L,5,FALSE),VLOOKUP($M11,TT_Tabelle_Riferimento!$H$31:$I$50,2,FALSE))","v":40},{"$f":"+IFERROR(VLOOKUP(AH$6&\"-\"&$M11&\"_old\",Ammortamento_Finanziario!$H:$L,5,FALSE),VLOOKUP($M11,TT_Tabelle_Riferimento!$H$31:$I$50,2,FALSE))","v":40},{"$f":"+IFERROR(VLOOKUP(AI$6&\"-\"&$M11&\"_old\",Ammortamento_Finanziario!$H:$L,5,FALSE),VLOOKUP($M11,TT_Tabelle_Riferimento!$H$31:$I$50,2,FALSE))","v":40},{"$f":"+IFERROR(VLOOKUP(AJ$6&\"-\"&$M11&\"_old\",Ammortamento_Finanziario!$H:$L,5,FALSE),VLOOKUP($M11,TT_Tabelle_Riferimento!$H$31:$I$50,2,FALSE))","v":40},{"$f":"+IFERROR(VLOOKUP(AK$6&\"-\"&$M11&\"_old\",Ammortamento_Finanziario!$H:$L,5,FALSE),VLOOKUP($M11,TT_Tabelle_Riferimento!$H$31:$I$50,2,FALSE))","v":40},{"$f":"+IFERROR(VLOOKUP(AL$6&\"-\"&$M11&\"_old\",Ammortamento_Finanziario!$H:$L,5,FALSE),VLOOKUP($M11,TT_Tabelle_Riferimento!$H$31:$I$50,2,FALSE))","v":40},{"$f":"+IFERROR(VLOOKUP(AM$6&\"-\"&$M11&\"_old\",Ammortamento_Finanziario!$H:$L,5,FALSE),VLOOKUP($M11,TT_Tabelle_Riferimento!$H$31:$I$50,2,FALSE))","v":40},{"$f":"+IFERROR(VLOOKUP(AN$6&\"-\"&$M11&\"_old\",Ammortamento_Finanziario!$H:$L,5,FALSE),VLOOKUP($M11,TT_Tabelle_Riferimento!$H$31:$I$50,2,FALSE))","v":40},{"$f":"+IFERROR(VLOOKUP(AO$6&\"-\"&$M11&\"_old\",Ammortamento_Finanziario!$H:$L,5,FALSE),VLOOKUP($M11,TT_Tabelle_Riferimento!$H$31:$I$50,2,FALSE))","v":40},{"$f":"+IFERROR(VLOOKUP(AP$6&\"-\"&$M11&\"_old\",Ammortamento_Finanziario!$H:$L,5,FALSE),VLOOKUP($M11,TT_Tabelle_Riferimento!$H$31:$I$50,2,FALSE))","v":40},{"$f":"+IFERROR(VLOOKUP(AQ$6&\"-\"&$M11&\"_old\",Ammortamento_Finanziario!$H:$L,5,FALSE),VLOOKUP($M11,TT_Tabelle_Riferimento!$H$31:$I$50,2,FALSE))","v":40},{"$f":"+IFERROR(VLOOKUP(AR$6&\"-\"&$M11&\"_old\",Ammortamento_Finanziario!$H:$L,5,FALSE),VLOOKUP($M11,TT_Tabelle_Riferimento!$H$31:$I$50,2,FALSE))","v":40},{"$f":"+IFERROR(VLOOKUP(AS$6&\"-\"&$M11&\"_old\",Ammortamento_Finanziario!$H:$L,5,FALSE),VLOOKUP($M11,TT_Tabelle_Riferimento!$H$31:$I$50,2,FALSE))","v":40},{"$f":"+IFERROR(VLOOKUP(AT$6&\"-\"&$M11&\"_old\",Ammortamento_Finanziario!$H:$L,5,FALSE),VLOOKUP($M11,TT_Tabelle_Riferimento!$H$31:$I$50,2,FALSE))","v":40},{"$f":"+IFERROR(VLOOKUP(AU$6&\"-\"&$M11&\"_old\",Ammortamento_Finanziario!$H:$L,5,FALSE),VLOOKUP($M11,TT_Tabelle_Riferimento!$H$31:$I$50,2,FALSE))","v":40},{"$f":"+IFERROR(VLOOKUP(AV$6&\"-\"&$M11&\"_old\",Ammortamento_Finanziario!$H:$L,5,FALSE),VLOOKUP($M11,TT_Tabelle_Riferimento!$H$31:$I$50,2,FALSE))","v":40},{"$f":"+IFERROR(VLOOKUP(AW$6&\"-\"&$M11&\"_old\",Ammortamento_Finanziario!$H:$L,5,FALSE),VLOOKUP($M11,TT_Tabelle_Riferimento!$H$31:$I$50,2,FALSE))","v":40},{"$f":"+IFERROR(VLOOKUP(AX$6&\"-\"&$M11&\"_old\",Ammortamento_Finanziario!$H:$L,5,FALSE),VLOOKUP($M11,TT_Tabelle_Riferimento!$H$31:$I$50,2,FALSE))","v":40},{"$f":"+IFERROR(VLOOKUP(AY$6&\"-\"&$M11&\"_old\",Ammortamento_Finanziario!$H:$L,5,FALSE),VLOOKUP($M11,TT_Tabelle_Riferimento!$H$31:$I$50,2,FALSE))","v":40},{"$f":"+IFERROR(VLOOKUP(AZ$6&\"-\"&$M11&\"_old\",Ammortamento_Finanziario!$H:$L,5,FALSE),VLOOKUP($M11,TT_Tabelle_Riferimento!$H$31:$I$50,2,FALSE))","v":40},{"$f":"+IFERROR(VLOOKUP(BA$6&\"-\"&$M11&\"_old\",Ammortamento_Finanziario!$H:$L,5,FALSE),VLOOKUP($M11,TT_Tabelle_Riferimento!$H$31:$I$50,2,FALSE))","v":40},{"$f":"+IFERROR(VLOOKUP(BB$6&\"-\"&$M11&\"_old\",Ammortamento_Finanziario!$H:$L,5,FALSE),VLOOKUP($M11,TT_Tabelle_Riferimento!$H$31:$I$50,2,FALSE))","v":40},{"$f":"+IFERROR(VLOOKUP(BC$6&\"-\"&$M11&\"_old\",Ammortamento_Finanziario!$H:$L,5,FALSE),VLOOKUP($M11,TT_Tabelle_Riferimento!$H$31:$I$50,2,FALSE))","v":40},{"$f":"+IFERROR(VLOOKUP(BD$6&\"-\"&$M11&\"_old\",Ammortamento_Finanziario!$H:$L,5,FALSE),VLOOKUP($M11,TT_Tabelle_Riferimento!$H$31:$I$50,2,FALSE))","v":40},{"$f":"+IFERROR(VLOOKUP(BE$6&\"-\"&$M11&\"_old\",Ammortamento_Finanziario!$H:$L,5,FALSE),VLOOKUP($M11,TT_Tabelle_Riferimento!$H$31:$I$50,2,FALSE))","v":40},{"$f":"+IFERROR(VLOOKUP(BF$6&\"-\"&$M11&\"_old\",Ammortamento_Finanziario!$H:$L,5,FALSE),VLOOKUP($M11,TT_Tabelle_Riferimento!$H$31:$I$50,2,FALSE))","v":40},{"$f":"+IFERROR(VLOOKUP(BG$6&\"-\"&$M11&\"_old\",Ammortamento_Finanziario!$H:$L,5,FALSE),VLOOKUP($M11,TT_Tabelle_Riferimento!$H$31:$I$50,2,FALSE))","v":40},{"$f":"+IFERROR(VLOOKUP(BH$6&\"-\"&$M11&\"_old\",Ammortamento_Finanziario!$H:$L,5,FALSE),VLOOKUP($M11,TT_Tabelle_Riferimento!$H$31:$I$50,2,FALSE))","v":40},{"$f":"+IFERROR(VLOOKUP(BI$6&\"-\"&$M11&\"_old\",Ammortamento_Finanziario!$H:$L,5,FALSE),VLOOKUP($M11,TT_Tabelle_Riferimento!$H$31:$I$50,2,FALSE))","v":40},{"$f":"+IFERROR(VLOOKUP(BJ$6&\"-\"&$M11&\"_old\",Ammortamento_Finanziario!$H:$L,5,FALSE),VLOOKUP($M11,TT_Tabelle_Riferimento!$H$31:$I$50,2,FALSE))","v":40},{"$f":"+IFERROR(VLOOKUP(BK$6&\"-\"&$M11&\"_old\",Ammortamento_Finanziario!$H:$L,5,FALSE),VLOOKUP($M11,TT_Tabelle_Riferimento!$H$31:$I$50,2,FALSE))","v":40},{"$f":"+IFERROR(VLOOKUP(BL$6&\"-\"&$M11&\"_old\",Ammortamento_Finanziario!$H:$L,5,FALSE),VLOOKUP($M11,TT_Tabelle_Riferimento!$H$31:$I$50,2,FALSE))","v":40},{"$f":"+IFERROR(VLOOKUP(BM$6&\"-\"&$M11&\"_old\",Ammortamento_Finanziario!$H:$L,5,FALSE),VLOOKUP($M11,TT_Tabelle_Riferimento!$H$31:$I$50,2,FALSE))","v":40},{"$f":"+IFERROR(VLOOKUP(BN$6&\"-\"&$M11&\"_old\",Ammortamento_Finanziario!$H:$L,5,FALSE),VLOOKUP($M11,TT_Tabelle_Riferimento!$H$31:$I$50,2,FALSE))","v":40},{"$f":"+IFERROR(VLOOKUP(BO$6&\"-\"&$M11&\"_old\",Ammortamento_Finanziario!$H:$L,5,FALSE),VLOOKUP($M11,TT_Tabelle_Riferimento!$H$31:$I$50,2,FALSE))","v":40},{"$f":"+IFERROR(VLOOKUP(BP$6&\"-\"&$M11&\"_old\",Ammortamento_Finanziario!$H:$L,5,FALSE),VLOOKUP($M11,TT_Tabelle_Riferimento!$H$31:$I$50,2,FALSE))","v":40},{"$f":"+IFERROR(VLOOKUP(BQ$6&\"-\"&$M11&\"_old\",Ammortamento_Finanziario!$H:$L,5,FALSE),VLOOKUP($M11,TT_Tabelle_Riferimento!$H$31:$I$50,2,FALSE))","v":40},{"$f":"+IFERROR(VLOOKUP(BR$6&\"-\"&$M11&\"_old\",Ammortamento_Finanziario!$H:$L,5,FALSE),VLOOKUP($M11,TT_Tabelle_Riferimento!$H$31:$I$50,2,FALSE))","v":40},{"$f":"+IFERROR(VLOOKUP(BS$6&\"-\"&$M11&\"_old\",Ammortamento_Finanziario!$H:$L,5,FALSE),VLOOKUP($M11,TT_Tabelle_Riferimento!$H$31:$I$50,2,FALSE))","v":40},{"$f":"+IFERROR(VLOOKUP(BT$6&\"-\"&$M11&\"_old\",Ammortamento_Finanziario!$H:$L,5,FALSE),VLOOKUP($M11,TT_Tabelle_Riferimento!$H$31:$I$50,2,FALSE))","v":40},{"$f":"+IFERROR(VLOOKUP(BU$6&\"-\"&$M11&\"_old\",Ammortamento_Finanziario!$H:$L,5,FALSE),VLOOKUP($M11,TT_Tabelle_Riferimento!$H$31:$I$50,2,FALSE))","v":40},{"$f":"+IFERROR(VLOOKUP(BV$6&\"-\"&$M11&\"_old\",Ammortamento_Finanziario!$H:$L,5,FALSE),VLOOKUP($M11,TT_Tabelle_Riferimento!$H$31:$I$50,2,FALSE))","v":40},{"$f":"+IFERROR(VLOOKUP(BW$6&\"-\"&$M11&\"_old\",Ammortamento_Finanziario!$H:$L,5,FALSE),VLOOKUP($M11,TT_Tabelle_Riferimento!$H$31:$I$50,2,FALSE))","v":40},{"$f":"+IFERROR(VLOOKUP(BX$6&\"-\"&$M11&\"_old\",Ammortamento_Finanziario!$H:$L,5,FALSE),VLOOKUP($M11,TT_Tabelle_Riferimento!$H$31:$I$50,2,FALSE))","v":40},{"$f":"+IFERROR(VLOOKUP(BY$6&\"-\"&$M11&\"_old\",Ammortamento_Finanziario!$H:$L,5,FALSE),VLOOKUP($M11,TT_Tabelle_Riferimento!$H$31:$I$50,2,FALSE))","v":40},{"$f":"+IFERROR(VLOOKUP(BZ$6&\"-\"&$M11&\"_old\",Ammortamento_Finanziario!$H:$L,5,FALSE),VLOOKUP($M11,TT_Tabelle_Riferimento!$H$31:$I$50,2,FALSE))","v":40},{"$f":"+IFERROR(VLOOKUP(CA$6&\"-\"&$M11&\"_old\",Ammortamento_Finanziario!$H:$L,5,FALSE),VLOOKUP($M11,TT_Tabelle_Riferimento!$H$31:$I$50,2,FALSE))","v":40},{"$f":"+IFERROR(VLOOKUP(CB$6&\"-\"&$M11&\"_old\",Ammortamento_Finanziario!$H:$L,5,FALSE),VLOOKUP($M11,TT_Tabelle_Riferimento!$H$31:$I$50,2,FALSE))","v":40},{"$f":"+IFERROR(VLOOKUP(CC$6&\"-\"&$M11&\"_old\",Ammortamento_Finanziario!$H:$L,5,FALSE),VLOOKUP($M11,TT_Tabelle_Riferimento!$H$31:$I$50,2,FALSE))","v":40},{"$f":"+IFERROR(VLOOKUP(CD$6&\"-\"&$M11&\"_old\",Ammortamento_Finanziario!$H:$L,5,FALSE),VLOOKUP($M11,TT_Tabelle_Riferimento!$H$31:$I$50,2,FALSE))","v":40},{"$f":"+IFERROR(VLOOKUP(CE$6&\"-\"&$M11&\"_old\",Ammortamento_Finanziario!$H:$L,5,FALSE),VLOOKUP($M11,TT_Tabelle_Riferimento!$H$31:$I$50,2,FALSE))","v":40},{"$f":"+IFERROR(VLOOKUP(CF$6&\"-\"&$M11&\"_old\",Ammortamento_Finanziario!$H:$L,5,FALSE),VLOOKUP($M11,TT_Tabelle_Riferimento!$H$31:$I$50,2,FALSE))","v":40},{"$f":"+IFERROR(VLOOKUP(CG$6&\"-\"&$M11&\"_old\",Ammortamento_Finanziario!$H:$L,5,FALSE),VLOOKUP($M11,TT_Tabelle_Riferimento!$H$31:$I$50,2,FALSE))","v":40},{"$f":"+IFERROR(VLOOKUP(CH$6&\"-\"&$M11&\"_old\",Ammortamento_Finanziario!$H:$L,5,FALSE),VLOOKUP($M11,TT_Tabelle_Riferimento!$H$31:$I$50,2,FALSE))","v":40},{"$f":"+IFERROR(VLOOKUP(CI$6&\"-\"&$M11&\"_old\",Ammortamento_Finanziario!$H:$L,5,FALSE),VLOOKUP($M11,TT_Tabelle_Riferimento!$H$31:$I$50,2,FALSE))","v":40},{"$f":"+IFERROR(VLOOKUP(CJ$6&\"-\"&$M11&\"_old\",Ammortamento_Finanziario!$H:$L,5,FALSE),VLOOKUP($M11,TT_Tabelle_Riferimento!$H$31:$I$50,2,FALSE))","v":40},{"$f":"+IFERROR(VLOOKUP(CK$6&\"-\"&$M11&\"_old\",Ammortamento_Finanziario!$H:$L,5,FALSE),VLOOKUP($M11,TT_Tabelle_Riferimento!$H$31:$I$50,2,FALSE))","v":40},{"$f":"+IFERROR(VLOOKUP(CL$6&\"-\"&$M11&\"_old\",Ammortamento_Finanziario!$H:$L,5,FALSE),VLOOKUP($M11,TT_Tabelle_Riferimento!$H$31:$I$50,2,FALSE))","v":40},{"$f":"+IFERROR(VLOOKUP(CM$6&\"-\"&$M11&\"_old\",Ammortamento_Finanziario!$H:$L,5,FALSE),VLOOKUP($M11,TT_Tabelle_Riferimento!$H$31:$I$50,2,FALSE))","v":40},{"$f":"+IFERROR(VLOOKUP(CN$6&\"-\"&$M11&\"_old\",Ammortamento_Finanziario!$H:$L,5,FALSE),VLOOKUP($M11,TT_Tabelle_Riferimento!$H$31:$I$50,2,FALSE))","v":40},{"$f":"+IFERROR(VLOOKUP(CO$6&\"-\"&$M11&\"_old\",Ammortamento_Finanziario!$H:$L,5,FALSE),VLOOKUP($M11,TT_Tabelle_Riferimento!$H$31:$I$50,2,FALSE))","v":40},{"$f":"+IFERROR(VLOOKUP(CP$6&\"-\"&$M11&\"_old\",Ammortamento_Finanziario!$H:$L,5,FALSE),VLOOKUP($M11,TT_Tabelle_Riferimento!$H$31:$I$50,2,FALSE))","v":40},{"$f":"+IFERROR(VLOOKUP(CQ$6&\"-\"&$M11&\"_old\",Ammortamento_Finanziario!$H:$L,5,FALSE),VLOOKUP($M11,TT_Tabelle_Riferimento!$H$31:$I$50,2,FALSE))","v":40},{"$f":"+IFERROR(VLOOKUP(CR$6&\"-\"&$M11&\"_old\",Ammortamento_Finanziario!$H:$L,5,FALSE),VLOOKUP($M11,TT_Tabelle_Riferimento!$H$31:$I$50,2,FALSE))","v":40},{"$f":"+IFERROR(VLOOKUP(CS$6&\"-\"&$M11&\"_old\",Ammortamento_Finanziario!$H:$L,5,FALSE),VLOOKUP($M11,TT_Tabelle_Riferimento!$H$31:$I$50,2,FALSE))","v":40},{"$f":"+IFERROR(VLOOKUP(CT$6&\"-\"&$M11&\"_old\",Ammortamento_Finanziario!$H:$L,5,FALSE),VLOOKUP($M11,TT_Tabelle_Riferimento!$H$31:$I$50,2,FALSE))","v":40},{"$f":"+IFERROR(VLOOKUP(CU$6&\"-\"&$M11&\"_old\",Ammortamento_Finanziario!$H:$L,5,FALSE),VLOOKUP($M11,TT_Tabelle_Riferimento!$H$31:$I$50,2,FALSE))","v":40},{"$f":"+IFERROR(VLOOKUP(CV$6&\"-\"&$M11&\"_old\",Ammortamento_Finanziario!$H:$L,5,FALSE),VLOOKUP($M11,TT_Tabelle_Riferimento!$H$31:$I$50,2,FALSE))","v":40},{"$f":"+IFERROR(VLOOKUP(CW$6&\"-\"&$M11&\"_old\",Ammortamento_Finanziario!$H:$L,5,FALSE),VLOOKUP($M11,TT_Tabelle_Riferimento!$H$31:$I$50,2,FALSE))","v":40},{"$f":"+IFERROR(VLOOKUP(CX$6&\"-\"&$M11&\"_old\",Ammortamento_Finanziario!$H:$L,5,FALSE),VLOOKUP($M11,TT_Tabelle_Riferimento!$H$31:$I$50,2,FALSE))","v":40},{"$f":"+IFERROR(VLOOKUP(CY$6&\"-\"&$M11&\"_old\",Ammortamento_Finanziario!$H:$L,5,FALSE),VLOOKUP($M11,TT_Tabelle_Riferimento!$H$31:$I$50,2,FALSE))","v":40},{"$f":"+IFERROR(VLOOKUP(CZ$6&\"-\"&$M11&\"_old\",Ammortamento_Finanziario!$H:$L,5,FALSE),VLOOKUP($M11,TT_Tabelle_Riferimento!$H$31:$I$50,2,FALSE))","v":40},{"$f":"+IFERROR(VLOOKUP(DA$6&\"-\"&$M11&\"_old\",Ammortamento_Finanziario!$H:$L,5,FALSE),VLOOKUP($M11,TT_Tabelle_Riferimento!$H$31:$I$50,2,FALSE))","v":40},{"$f":"+IFERROR(VLOOKUP(DB$6&\"-\"&$M11&\"_old\",Ammortamento_Finanziario!$H:$L,5,FALSE),VLOOKUP($M11,TT_Tabelle_Riferimento!$H$31:$I$50,2,FALSE))","v":40},{"$f":"+IFERROR(VLOOKUP(DC$6&\"-\"&$M11&\"_old\",Ammortamento_Finanziario!$H:$L,5,FALSE),VLOOKUP($M11,TT_Tabelle_Riferimento!$H$31:$I$50,2,FALSE))","v":40},{"$f":"+IFERROR(VLOOKUP(DD$6&\"-\"&$M11&\"_old\",Ammortamento_Finanziario!$H:$L,5,FALSE),VLOOKUP($M11,TT_Tabelle_Riferimento!$H$31:$I$50,2,FALSE))","v":40},{"$f":"+IFERROR(VLOOKUP(DE$6&\"-\"&$M11&\"_old\",Ammortamento_Finanziario!$H:$L,5,FALSE),VLOOKUP($M11,TT_Tabelle_Riferimento!$H$31:$I$50,2,FALSE))","v":40},{"$f":"+IFERROR(VLOOKUP(DF$6&\"-\"&$M11&\"_old\",Ammortamento_Finanziario!$H:$L,5,FALSE),VLOOKUP($M11,TT_Tabelle_Riferimento!$H$31:$I$50,2,FALSE))","v":40},{"$f":"+IFERROR(VLOOKUP(DG$6&\"-\"&$M11&\"_old\",Ammortamento_Finanziario!$H:$L,5,FALSE),VLOOKUP($M11,TT_Tabelle_Riferimento!$H$31:$I$50,2,FALSE))","v":40},{"$f":"+IFERROR(VLOOKUP(DH$6&\"-\"&$M11&\"_old\",Ammortamento_Finanziario!$H:$L,5,FALSE),VLOOKUP($M11,TT_Tabelle_Riferimento!$H$31:$I$50,2,FALSE))","v":40},{"$f":"+IFERROR(VLOOKUP(DI$6&\"-\"&$M11&\"_old\",Ammortamento_Finanziario!$H:$L,5,FALSE),VLOOKUP($M11,TT_Tabelle_Riferimento!$H$31:$I$50,2,FALSE))","v":40},{"$f":"+IFERROR(VLOOKUP(DJ$6&\"-\"&$M11&\"_old\",Ammortamento_Finanziario!$H:$L,5,FALSE),VLOOKUP($M11,TT_Tabelle_Riferimento!$H$31:$I$50,2,FALSE))","v":40},{"$f":"+IFERROR(VLOOKUP(DK$6&\"-\"&$M11&\"_old\",Ammortamento_Finanziario!$H:$L,5,FALSE),VLOOKUP($M11,TT_Tabelle_Riferimento!$H$31:$I$50,2,FALSE))","v":40},{"$f":"+IFERROR(VLOOKUP(DL$6&\"-\"&$M11&\"_old\",Ammortamento_Finanziario!$H:$L,5,FALSE),VLOOKUP($M11,TT_Tabelle_Riferimento!$H$31:$I$50,2,FALSE))","v":40},{"$f":"+IFERROR(VLOOKUP(DM$6&\"-\"&$M11&\"_old\",Ammortamento_Finanziario!$H:$L,5,FALSE),VLOOKUP($M11,TT_Tabelle_Riferimento!$H$31:$I$50,2,FALSE))","v":40},{"$f":"+IFERROR(VLOOKUP(DN$6&\"-\"&$M11&\"_old\",Ammortamento_Finanziario!$H:$L,5,FALSE),VLOOKUP($M11,TT_Tabelle_Riferimento!$H$31:$I$50,2,FALSE))","v":40},{"$f":"+IFERROR(VLOOKUP(DO$6&\"-\"&$M11&\"_old\",Ammortamento_Finanziario!$H:$L,5,FALSE),VLOOKUP($M11,TT_Tabelle_Riferimento!$H$31:$I$50,2,FALSE))","v":40},{"$f":"+IFERROR(VLOOKUP(DP$6&\"-\"&$M11&\"_old\",Ammortamento_Finanziario!$H:$L,5,FALSE),VLOOKUP($M11,TT_Tabelle_Riferimento!$H$31:$I$50,2,FALSE))","v":40},{"$f":"+IFERROR(VLOOKUP(DQ$6&\"-\"&$M11&\"_old\",Ammortamento_Finanziario!$H:$L,5,FALSE),VLOOKUP($M11,TT_Tabelle_Riferimento!$H$31:$I$50,2,FALSE))","v":40},{"$f":"+IFERROR(VLOOKUP(DR$6&\"-\"&$M11&\"_old\",Ammortamento_Finanziario!$H:$L,5,FALSE),VLOOKUP($M11,TT_Tabelle_Riferimento!$H$31:$I$50,2,FALSE))","v":40},{"$f":"+IFERROR(VLOOKUP(DS$6&\"-\"&$M11&\"_old\",Ammortamento_Finanziario!$H:$L,5,FALSE),VLOOKUP($M11,TT_Tabelle_Riferimento!$H$31:$I$50,2,FALSE))","v":40},{"$f":"+IFERROR(VLOOKUP(DT$6&\"-\"&$M11&\"_old\",Ammortamento_Finanziario!$H:$L,5,FALSE),VLOOKUP($M11,TT_Tabelle_Riferimento!$H$31:$I$50,2,FALSE))","v":40},{"$f":"+IFERROR(VLOOKUP(DU$6&\"-\"&$M11&\"_old\",Ammortamento_Finanziario!$H:$L,5,FALSE),VLOOKUP($M11,TT_Tabelle_Riferimento!$H$31:$I$50,2,FALSE))","v":40},{"$f":"+IFERROR(VLOOKUP(DV$6&\"-\"&$M11&\"_old\",Ammortamento_Finanziario!$H:$L,5,FALSE),VLOOKUP($M11,TT_Tabelle_Riferimento!$H$31:$I$50,2,FALSE))","v":40},{"$f":"+IFERROR(VLOOKUP(DW$6&\"-\"&$M11&\"_old\",Ammortamento_Finanziario!$H:$L,5,FALSE),VLOOKUP($M11,TT_Tabelle_Riferimento!$H$31:$I$50,2,FALSE))","v":40},{"$f":"+IFERROR(VLOOKUP(DX$6&\"-\"&$M11&\"_old\",Ammortamento_Finanziario!$H:$L,5,FALSE),VLOOKUP($M11,TT_Tabelle_Riferimento!$H$31:$I$50,2,FALSE))","v":40},{"$f":"+IFERROR(VLOOKUP(DY$6&\"-\"&$M11&\"_old\",Ammortamento_Finanziario!$H:$L,5,FALSE),VLOOKUP($M11,TT_Tabelle_Riferimento!$H$31:$I$50,2,FALSE))","v":40},{"$f":"+IFERROR(VLOOKUP(DZ$6&\"-\"&$M11&\"_old\",Ammortamento_Finanziario!$H:$L,5,FALSE),VLOOKUP($M11,TT_Tabelle_Riferimento!$H$31:$I$50,2,FALSE))","v":40},{"$f":"+IFERROR(VLOOKUP(EA$6&\"-\"&$M11&\"_old\",Ammortamento_Finanziario!$H:$L,5,FALSE),VLOOKUP($M11,TT_Tabelle_Riferimento!$H$31:$I$50,2,FALSE))","v":40},{"$f":"+IFERROR(VLOOKUP(EB$6&\"-\"&$M11&\"_old\",Ammortamento_Finanziario!$H:$L,5,FALSE),VLOOKUP($M11,TT_Tabelle_Riferimento!$H$31:$I$50,2,FALSE))","v":40},{"$f":"+IFERROR(VLOOKUP(EC$6&\"-\"&$M11&\"_old\",Ammortamento_Finanziario!$H:$L,5,FALSE),VLOOKUP($M11,TT_Tabelle_Riferimento!$H$31:$I$50,2,FALSE))","v":40},{"$f":"+IFERROR(VLOOKUP(ED$6&\"-\"&$M11&\"_old\",Ammortamento_Finanziario!$H:$L,5,FALSE),VLOOKUP($M11,TT_Tabelle_Riferimento!$H$31:$I$50,2,FALSE))","v":40},{"$f":"+IFERROR(VLOOKUP(EE$6&\"-\"&$M11&\"_old\",Ammortamento_Finanziario!$H:$L,5,FALSE),VLOOKUP($M11,TT_Tabelle_Riferimento!$H$31:$I$50,2,FALSE))","v":40},{"$f":"+IFERROR(VLOOKUP(EF$6&\"-\"&$M11&\"_old\",Ammortamento_Finanziario!$H:$L,5,FALSE),VLOOKUP($M11,TT_Tabelle_Riferimento!$H$31:$I$50,2,FALSE))","v":40},{"$f":"+IFERROR(VLOOKUP(EG$6&\"-\"&$M11&\"_old\",Ammortamento_Finanziario!$H:$L,5,FALSE),VLOOKUP($M11,TT_Tabelle_Riferimento!$H$31:$I$50,2,FALSE))","v":40},{"$f":"+IFERROR(VLOOKUP(EH$6&\"-\"&$M11&\"_old\",Ammortamento_Finanziario!$H:$L,5,FALSE),VLOOKUP($M11,TT_Tabelle_Riferimento!$H$31:$I$50,2,FALSE))","v":40},{"$f":"+IFERROR(VLOOKUP(EI$6&\"-\"&$M11&\"_old\",Ammortamento_Finanziario!$H:$L,5,FALSE),VLOOKUP($M11,TT_Tabelle_Riferimento!$H$31:$I$50,2,FALSE))","v":40},{"$f":"+IFERROR(VLOOKUP(EJ$6&\"-\"&$M11&\"_old\",Ammortamento_Finanziario!$H:$L,5,FALSE),VLOOKUP($M11,TT_Tabelle_Riferimento!$H$31:$I$50,2,FALSE))","v":40},{"$f":"+IFERROR(VLOOKUP(EK$6&\"-\"&$M11&\"_old\",Ammortamento_Finanziario!$H:$L,5,FALSE),VLOOKUP($M11,TT_Tabelle_Riferimento!$H$31:$I$50,2,FALSE))","v":40},{"$f":"+IFERROR(VLOOKUP(EL$6&\"-\"&$M11&\"_old\",Ammortamento_Finanziario!$H:$L,5,FALSE),VLOOKUP($M11,TT_Tabelle_Riferimento!$H$31:$I$50,2,FALSE))","v":40},{"$f":"+IFERROR(VLOOKUP(EM$6&\"-\"&$M11&\"_old\",Ammortamento_Finanziario!$H:$L,5,FALSE),VLOOKUP($M11,TT_Tabelle_Riferimento!$H$31:$I$50,2,FALSE))","v":40},{"$f":"+IFERROR(VLOOKUP(EN$6&\"-\"&$M11&\"_old\",Ammortamento_Finanziario!$H:$L,5,FALSE),VLOOKUP($M11,TT_Tabelle_Riferimento!$H$31:$I$50,2,FALSE))","v":40},{"$f":"+IFERROR(VLOOKUP(EO$6&\"-\"&$M11&\"_old\",Ammortamento_Finanziario!$H:$L,5,FALSE),VLOOKUP($M11,TT_Tabelle_Riferimento!$H$31:$I$50,2,FALSE))","v":40},{"$f":"+IFERROR(VLOOKUP(EP$6&\"-\"&$M11&\"_old\",Ammortamento_Finanziario!$H:$L,5,FALSE),VLOOKUP($M11,TT_Tabelle_Riferimento!$H$31:$I$50,2,FALSE))","v":40},{"$f":"+IFERROR(VLOOKUP(EQ$6&\"-\"&$M11&\"_old\",Ammortamento_Finanziario!$H:$L,5,FALSE),VLOOKUP($M11,TT_Tabelle_Riferimento!$H$31:$I$50,2,FALSE))","v":40},{"$f":"+IFERROR(VLOOKUP(ER$6&\"-\"&$M11&\"_old\",Ammortamento_Finanziario!$H:$L,5,FALSE),VLOOKUP($M11,TT_Tabelle_Riferimento!$H$31:$I$50,2,FALSE))","v":40},{"$f":"+IFERROR(VLOOKUP(ES$6&\"-\"&$M11&\"_old\",Ammortamento_Finanziario!$H:$L,5,FALSE),VLOOKUP($M11,TT_Tabelle_Riferimento!$H$31:$I$50,2,FALSE))","v":40},{"$f":"+IFERROR(VLOOKUP(ET$6&\"-\"&$M11&\"_old\",Ammortamento_Finanziario!$H:$L,5,FALSE),VLOOKUP($M11,TT_Tabelle_Riferimento!$H$31:$I$50,2,FALSE))","v":40},{"$f":"+IFERROR(VLOOKUP(EU$6&\"-\"&$M11&\"_old\",Ammortamento_Finanziario!$H:$L,5,FALSE),VLOOKUP($M11,TT_Tabelle_Riferimento!$H$31:$I$50,2,FALSE))","v":40},{"$f":"+IFERROR(VLOOKUP(EV$6&\"-\"&$M11&\"_old\",Ammortamento_Finanziario!$H:$L,5,FALSE),VLOOKUP($M11,TT_Tabelle_Riferimento!$H$31:$I$50,2,FALSE))","v":40},{"$f":"+IFERROR(VLOOKUP(EW$6&\"-\"&$M11&\"_old\",Ammortamento_Finanziario!$H:$L,5,FALSE),VLOOKUP($M11,TT_Tabelle_Riferimento!$H$31:$I$50,2,FALSE))","v":40},{"$f":"+IFERROR(VLOOKUP(EX$6&\"-\"&$M11&\"_old\",Ammortamento_Finanziario!$H:$L,5,FALSE),VLOOKUP($M11,TT_Tabelle_Riferimento!$H$31:$I$50,2,FALSE))","v":40},{"$f":"+IFERROR(VLOOKUP(EY$6&\"-\"&$M11&\"_old\",Ammortamento_Finanziario!$H:$L,5,FALSE),VLOOKUP($M11,TT_Tabelle_Riferimento!$H$31:$I$50,2,FALSE))","v":40},{"$f":"+IFERROR(VLOOKUP(EZ$6&\"-\"&$M11&\"_old\",Ammortamento_Finanziario!$H:$L,5,FALSE),VLOOKUP($M11,TT_Tabelle_Riferimento!$H$31:$I$50,2,FALSE))","v":40},{"$f":"+IFERROR(VLOOKUP(FA$6&\"-\"&$M11&\"_old\",Ammortamento_Finanziario!$H:$L,5,FALSE),VLOOKUP($M11,TT_Tabelle_Riferimento!$H$31:$I$50,2,FALSE))","v":40},{"$f":"+IFERROR(VLOOKUP(FB$6&\"-\"&$M11&\"_old\",Ammortamento_Finanziario!$H:$L,5,FALSE),VLOOKUP($M11,TT_Tabelle_Riferimento!$H$31:$I$50,2,FALSE))","v":40},{"$f":"+IFERROR(VLOOKUP(FC$6&\"-\"&$M11&\"_old\",Ammortamento_Finanziario!$H:$L,5,FALSE),VLOOKUP($M11,TT_Tabelle_Riferimento!$H$31:$I$50,2,FALSE))","v":40},{"$f":"+IFERROR(VLOOKUP(FD$6&\"-\"&$M11&\"_old\",Ammortamento_Finanziario!$H:$L,5,FALSE),VLOOKUP($M11,TT_Tabelle_Riferimento!$H$31:$I$50,2,FALSE))","v":40},{"$f":"+IFERROR(VLOOKUP(FE$6&\"-\"&$M11&\"_old\",Ammortamento_Finanziario!$H:$L,5,FALSE),VLOOKUP($M11,TT_Tabelle_Riferimento!$H$31:$I$50,2,FALSE))","v":40},{"$f":"+IFERROR(VLOOKUP(FF$6&\"-\"&$M11&\"_old\",Ammortamento_Finanziario!$H:$L,5,FALSE),VLOOKUP($M11,TT_Tabelle_Riferimento!$H$31:$I$50,2,FALSE))","v":40},{"$f":"+IFERROR(VLOOKUP(FG$6&\"-\"&$M11&\"_old\",Ammortamento_Finanziario!$H:$L,5,FALSE),VLOOKUP($M11,TT_Tabelle_Riferimento!$H$31:$I$50,2,FALSE))","v":40},{"$f":"+IFERROR(VLOOKUP(FH$6&\"-\"&$M11&\"_old\",Ammortamento_Finanziario!$H:$L,5,FALSE),VLOOKUP($M11,TT_Tabelle_Riferimento!$H$31:$I$50,2,FALSE))","v":40},{"$f":"+IFERROR(VLOOKUP(FI$6&\"-\"&$M11&\"_old\",Ammortamento_Finanziario!$H:$L,5,FALSE),VLOOKUP($M11,TT_Tabelle_Riferimento!$H$31:$I$50,2,FALSE))","v":40},{"$f":"+IFERROR(VLOOKUP(FJ$6&\"-\"&$M11&\"_old\",Ammortamento_Finanziario!$H:$L,5,FALSE),VLOOKUP($M11,TT_Tabelle_Riferimento!$H$31:$I$50,2,FALSE))","v":40},{"$f":"+IFERROR(VLOOKUP(FK$6&\"-\"&$M11&\"_old\",Ammortamento_Finanziario!$H:$L,5,FALSE),VLOOKUP($M11,TT_Tabelle_Riferimento!$H$31:$I$50,2,FALSE))","v":40},{"$f":"+IFERROR(VLOOKUP(FL$6&\"-\"&$M11&\"_old\",Ammortamento_Finanziario!$H:$L,5,FALSE),VLOOKUP($M11,TT_Tabelle_Riferimento!$H$31:$I$50,2,FALSE))","v":40},{"$f":"+IFERROR(VLOOKUP(FM$6&\"-\"&$M11&\"_old\",Ammortamento_Finanziario!$H:$L,5,FALSE),VLOOKUP($M11,TT_Tabelle_Riferimento!$H$31:$I$50,2,FALSE))","v":40},{"$f":"+IFERROR(VLOOKUP(FN$6&\"-\"&$M11&\"_old\",Ammortamento_Finanziario!$H:$L,5,FALSE),VLOOKUP($M11,TT_Tabelle_Riferimento!$H$31:$I$50,2,FALSE))","v":40},{"$f":"+IFERROR(VLOOKUP(FO$6&\"-\"&$M11&\"_old\",Ammortamento_Finanziario!$H:$L,5,FALSE),VLOOKUP($M11,TT_Tabelle_Riferimento!$H$31:$I$50,2,FALSE))","v":40},{"$f":"+IFERROR(VLOOKUP(FP$6&\"-\"&$M11&\"_old\",Ammortamento_Finanziario!$H:$L,5,FALSE),VLOOKUP($M11,TT_Tabelle_Riferimento!$H$31:$I$50,2,FALSE))","v":40},{"$f":"+IFERROR(VLOOKUP(FQ$6&\"-\"&$M11&\"_old\",Ammortamento_Finanziario!$H:$L,5,FALSE),VLOOKUP($M11,TT_Tabelle_Riferimento!$H$31:$I$50,2,FALSE))","v":40},{"$f":"+IFERROR(VLOOKUP(FR$6&\"-\"&$M11&\"_old\",Ammortamento_Finanziario!$H:$L,5,FALSE),VLOOKUP($M11,TT_Tabelle_Riferimento!$H$31:$I$50,2,FALSE))","v":40},{"$f":"+IFERROR(VLOOKUP(FS$6&\"-\"&$M11&\"_old\",Ammortamento_Finanziario!$H:$L,5,FALSE),VLOOKUP($M11,TT_Tabelle_Riferimento!$H$31:$I$50,2,FALSE))","v":40},{"$f":"+IFERROR(VLOOKUP(FT$6&\"-\"&$M11&\"_old\",Ammortamento_Finanziario!$H:$L,5,FALSE),VLOOKUP($M11,TT_Tabelle_Riferimento!$H$31:$I$50,2,FALSE))","v":40},{"$f":"+IFERROR(VLOOKUP(FU$6&\"-\"&$M11&\"_old\",Ammortamento_Finanziario!$H:$L,5,FALSE),VLOOKUP($M11,TT_Tabelle_Riferimento!$H$31:$I$50,2,FALSE))","v":40},{"$f":"+IFERROR(VLOOKUP(FV$6&\"-\"&$M11&\"_old\",Ammortamento_Finanziario!$H:$L,5,FALSE),VLOOKUP($M11,TT_Tabelle_Riferimento!$H$31:$I$50,2,FALSE))","v":40},{"$f":"+IFERROR(VLOOKUP(FW$6&\"-\"&$M11&\"_old\",Ammortamento_Finanziario!$H:$L,5,FALSE),VLOOKUP($M11,TT_Tabelle_Riferimento!$H$31:$I$50,2,FALSE))","v":40},{"$f":"+IFERROR(VLOOKUP(FX$6&\"-\"&$M11&\"_old\",Ammortamento_Finanziario!$H:$L,5,FALSE),VLOOKUP($M11,TT_Tabelle_Riferimento!$H$31:$I$50,2,FALSE))","v":40},{"$f":"+IFERROR(VLOOKUP(FY$6&\"-\"&$M11&\"_old\",Ammortamento_Finanziario!$H:$L,5,FALSE),VLOOKUP($M11,TT_Tabelle_Riferimento!$H$31:$I$50,2,FALSE))","v":40},{"$f":"+IFERROR(VLOOKUP(FZ$6&\"-\"&$M11&\"_old\",Ammortamento_Finanziario!$H:$L,5,FALSE),VLOOKUP($M11,TT_Tabelle_Riferimento!$H$31:$I$50,2,FALSE))","v":40},{"$f":"+IFERROR(VLOOKUP(GA$6&\"-\"&$M11&\"_old\",Ammortamento_Finanziario!$H:$L,5,FALSE),VLOOKUP($M11,TT_Tabelle_Riferimento!$H$31:$I$50,2,FALSE))","v":40},{"$f":"+IFERROR(VLOOKUP(GB$6&\"-\"&$M11&\"_old\",Ammortamento_Finanziario!$H:$L,5,FALSE),VLOOKUP($M11,TT_Tabelle_Riferimento!$H$31:$I$50,2,FALSE))","v":40},{"$f":"+IFERROR(VLOOKUP(GC$6&\"-\"&$M11&\"_old\",Ammortamento_Finanziario!$H:$L,5,FALSE),VLOOKUP($M11,TT_Tabelle_Riferimento!$H$31:$I$50,2,FALSE))","v":40},{"$f":"+IFERROR(VLOOKUP(GD$6&\"-\"&$M11&\"_old\",Ammortamento_Finanziario!$H:$L,5,FALSE),VLOOKUP($M11,TT_Tabelle_Riferimento!$H$31:$I$50,2,FALSE))","v":40},{"$f":"+IFERROR(VLOOKUP(GE$6&\"-\"&$M11&\"_old\",Ammortamento_Finanziario!$H:$L,5,FALSE),VLOOKUP($M11,TT_Tabelle_Riferimento!$H$31:$I$50,2,FALSE))","v":40},{"$f":"+IFERROR(VLOOKUP(GF$6&\"-\"&$M11&\"_old\",Ammortamento_Finanziario!$H:$L,5,FALSE),VLOOKUP($M11,TT_Tabelle_Riferimento!$H$31:$I$50,2,FALSE))","v":40},{"$f":"+IFERROR(VLOOKUP(GG$6&\"-\"&$M11&\"_old\",Ammortamento_Finanziario!$H:$L,5,FALSE),VLOOKUP($M11,TT_Tabelle_Riferimento!$H$31:$I$50,2,FALSE))","v":40},{"$f":"+IFERROR(VLOOKUP(GH$6&\"-\"&$M11&\"_old\",Ammortamento_Finanziario!$H:$L,5,FALSE),VLOOKUP($M11,TT_Tabelle_Riferimento!$H$31:$I$50,2,FALSE))","v":40},{"$f":"+IFERROR(VLOOKUP(GI$6&\"-\"&$M11&\"_old\",Ammortamento_Finanziario!$H:$L,5,FALSE),VLOOKUP($M11,TT_Tabelle_Riferimento!$H$31:$I$50,2,FALSE))","v":40},{"$f":"+IFERROR(VLOOKUP(GJ$6&\"-\"&$M11&\"_old\",Ammortamento_Finanziario!$H:$L,5,FALSE),VLOOKUP($M11,TT_Tabelle_Riferimento!$H$31:$I$50,2,FALSE))","v":40},{"$f":"+IFERROR(VLOOKUP(GK$6&\"-\"&$M11&\"_old\",Ammortamento_Finanziario!$H:$L,5,FALSE),VLOOKUP($M11,TT_Tabelle_Riferimento!$H$31:$I$50,2,FALSE))","v":40},{"$f":"+IFERROR(VLOOKUP(GL$6&\"-\"&$M11&\"_old\",Ammortamento_Finanziario!$H:$L,5,FALSE),VLOOKUP($M11,TT_Tabelle_Riferimento!$H$31:$I$50,2,FALSE))","v":40},{"$f":"+IFERROR(VLOOKUP(GM$6&\"-\"&$M11&\"_old\",Ammortamento_Finanziario!$H:$L,5,FALSE),VLOOKUP($M11,TT_Tabelle_Riferimento!$H$31:$I$50,2,FALSE))","v":40},{"$f":"+IFERROR(VLOOKUP(GN$6&\"-\"&$M11&\"_old\",Ammortamento_Finanziario!$H:$L,5,FALSE),VLOOKUP($M11,TT_Tabelle_Riferimento!$H$31:$I$50,2,FALSE))","v":40},{"$f":"+IFERROR(VLOOKUP(GO$6&\"-\"&$M11&\"_old\",Ammortamento_Finanziario!$H:$L,5,FALSE),VLOOKUP($M11,TT_Tabelle_Riferimento!$H$31:$I$50,2,FALSE))","v":40},{"$f":"+IFERROR(VLOOKUP(GP$6&\"-\"&$M11&\"_old\",Ammortamento_Finanziario!$H:$L,5,FALSE),VLOOKUP($M11,TT_Tabelle_Riferimento!$H$31:$I$50,2,FALSE))","v":40},{"$f":"+IFERROR(VLOOKUP(GQ$6&\"-\"&$M11&\"_old\",Ammortamento_Finanziario!$H:$L,5,FALSE),VLOOKUP($M11,TT_Tabelle_Riferimento!$H$31:$I$50,2,FALSE))","v":40},{"$f":"+IFERROR(VLOOKUP(GR$6&\"-\"&$M11&\"_old\",Ammortamento_Finanziario!$H:$L,5,FALSE),VLOOKUP($M11,TT_Tabelle_Riferimento!$H$31:$I$50,2,FALSE))","v":40},{"$f":"+IFERROR(VLOOKUP(GS$6&\"-\"&$M11&\"_old\",Ammortamento_Finanziario!$H:$L,5,FALSE),VLOOKUP($M11,TT_Tabelle_Riferimento!$H$31:$I$50,2,FALSE))","v":40},{"$f":"+IFERROR(VLOOKUP(GT$6&\"-\"&$M11&\"_old\",Ammortamento_Finanziario!$H:$L,5,FALSE),VLOOKUP($M11,TT_Tabelle_Riferimento!$H$31:$I$50,2,FALSE))","v":40},{"$f":"+IFERROR(VLOOKUP(GU$6&\"-\"&$M11&\"_old\",Ammortamento_Finanziario!$H:$L,5,FALSE),VLOOKUP($M11,TT_Tabelle_Riferimento!$H$31:$I$50,2,FALSE))","v":40},{"$f":"+IFERROR(VLOOKUP(GV$6&\"-\"&$M11&\"_old\",Ammortamento_Finanziario!$H:$L,5,FALSE),VLOOKUP($M11,TT_Tabelle_Riferimento!$H$31:$I$50,2,FALSE))","v":40},{"$f":"+IFERROR(VLOOKUP(GW$6&\"-\"&$M11&\"_old\",Ammortamento_Finanziario!$H:$L,5,FALSE),VLOOKUP($M11,TT_Tabelle_Riferimento!$H$31:$I$50,2,FALSE))","v":40},{"$f":"+IFERROR(VLOOKUP(GX$6&\"-\"&$M11&\"_old\",Ammortamento_Finanziario!$H:$L,5,FALSE),VLOOKUP($M11,TT_Tabelle_Riferimento!$H$31:$I$50,2,FALSE))","v":40},{"$f":"+IFERROR(VLOOKUP(GY$6&\"-\"&$M11&\"_old\",Ammortamento_Finanziario!$H:$L,5,FALSE),VLOOKUP($M11,TT_Tabelle_Riferimento!$H$31:$I$50,2,FALSE))","v":40},{"$f":"+IFERROR(VLOOKUP(GZ$6&\"-\"&$M11&\"_old\",Ammortamento_Finanziario!$H:$L,5,FALSE),VLOOKUP($M11,TT_Tabelle_Riferimento!$H$31:$I$50,2,FALSE))","v":40},{"$f":"+IFERROR(VLOOKUP(HA$6&\"-\"&$M11&\"_old\",Ammortamento_Finanziario!$H:$L,5,FALSE),VLOOKUP($M11,TT_Tabelle_Riferimento!$H$31:$I$50,2,FALSE))","v":40},{"$f":"+IFERROR(VLOOKUP(HB$6&\"-\"&$M11&\"_old\",Ammortamento_Finanziario!$H:$L,5,FALSE),VLOOKUP($M11,TT_Tabelle_Riferimento!$H$31:$I$50,2,FALSE))","v":40},{"$f":"+IFERROR(VLOOKUP(HC$6&\"-\"&$M11&\"_old\",Ammortamento_Finanziario!$H:$L,5,FALSE),VLOOKUP($M11,TT_Tabelle_Riferimento!$H$31:$I$50,2,FALSE))","v":40},{"$f":"+IFERROR(VLOOKUP(HD$6&\"-\"&$M11&\"_old\",Ammortamento_Finanziario!$H:$L,5,FALSE),VLOOKUP($M11,TT_Tabelle_Riferimento!$H$31:$I$50,2,FALSE))","v":40},{"$f":"+IFERROR(VLOOKUP(HE$6&\"-\"&$M11&\"_old\",Ammortamento_Finanziario!$H:$L,5,FALSE),VLOOKUP($M11,TT_Tabelle_Riferimento!$H$31:$I$50,2,FALSE))","v":40},{"$f":"+IFERROR(VLOOKUP(HF$6&\"-\"&$M11&\"_old\",Ammortamento_Finanziario!$H:$L,5,FALSE),VLOOKUP($M11,TT_Tabelle_Riferimento!$H$31:$I$50,2,FALSE))","v":40},{"$f":"+IFERROR(VLOOKUP(HG$6&\"-\"&$M11&\"_old\",Ammortamento_Finanziario!$H:$L,5,FALSE),VLOOKUP($M11,TT_Tabelle_Riferimento!$H$31:$I$50,2,FALSE))","v":40},{"$f":"+IFERROR(VLOOKUP(HH$6&\"-\"&$M11&\"_old\",Ammortamento_Finanziario!$H:$L,5,FALSE),VLOOKUP($M11,TT_Tabelle_Riferimento!$H$31:$I$50,2,FALSE))","v":40},{"$f":"+IFERROR(VLOOKUP(HI$6&\"-\"&$M11&\"_old\",Ammortamento_Finanziario!$H:$L,5,FALSE),VLOOKUP($M11,TT_Tabelle_Riferimento!$H$31:$I$50,2,FALSE))","v":40},{"$f":"+IFERROR(VLOOKUP(HJ$6&\"-\"&$M11&\"_old\",Ammortamento_Finanziario!$H:$L,5,FALSE),VLOOKUP($M11,TT_Tabelle_Riferimento!$H$31:$I$50,2,FALSE))","v":40},{"$f":"+IFERROR(VLOOKUP(HK$6&\"-\"&$M11&\"_old\",Ammortamento_Finanziario!$H:$L,5,FALSE),VLOOKUP($M11,TT_Tabelle_Riferimento!$H$31:$I$50,2,FALSE))","v":40},{"$f":"+IFERROR(VLOOKUP(HL$6&\"-\"&$M11&\"_old\",Ammortamento_Finanziario!$H:$L,5,FALSE),VLOOKUP($M11,TT_Tabelle_Riferimento!$H$31:$I$50,2,FALSE))","v":40},{"$f":"+IFERROR(VLOOKUP(HM$6&\"-\"&$M11&\"_old\",Ammortamento_Finanziario!$H:$L,5,FALSE),VLOOKUP($M11,TT_Tabelle_Riferimento!$H$31:$I$50,2,FALSE))","v":40},{"$f":"+IFERROR(VLOOKUP(HN$6&\"-\"&$M11&\"_old\",Ammortamento_Finanziario!$H:$L,5,FALSE),VLOOKUP($M11,TT_Tabelle_Riferimento!$H$31:$I$50,2,FALSE))","v":40},{"$f":"+IFERROR(VLOOKUP(HO$6&\"-\"&$M11&\"_old\",Ammortamento_Finanziario!$H:$L,5,FALSE),VLOOKUP($M11,TT_Tabelle_Riferimento!$H$31:$I$50,2,FALSE))","v":40},{"$f":"+IFERROR(VLOOKUP(HP$6&\"-\"&$M11&\"_old\",Ammortamento_Finanziario!$H:$L,5,FALSE),VLOOKUP($M11,TT_Tabelle_Riferimento!$H$31:$I$50,2,FALSE))","v":40},{"$f":"+IFERROR(VLOOKUP(HQ$6&\"-\"&$M11&\"_old\",Ammortamento_Finanziario!$H:$L,5,FALSE),VLOOKUP($M11,TT_Tabelle_Riferimento!$H$31:$I$50,2,FALSE))","v":40},{"$f":"+IFERROR(VLOOKUP(HR$6&\"-\"&$M11&\"_old\",Ammortamento_Finanziario!$H:$L,5,FALSE),VLOOKUP($M11,TT_Tabelle_Riferimento!$H$31:$I$50,2,FALSE))","v":40},{"$f":"+IFERROR(VLOOKUP(HS$6&\"-\"&$M11&\"_old\",Ammortamento_Finanziario!$H:$L,5,FALSE),VLOOKUP($M11,TT_Tabelle_Riferimento!$H$31:$I$50,2,FALSE))","v":40},{"$f":"+IFERROR(VLOOKUP(HT$6&\"-\"&$M11&\"_old\",Ammortamento_Finanziario!$H:$L,5,FALSE),VLOOKUP($M11,TT_Tabelle_Riferimento!$H$31:$I$50,2,FALSE))","v":40},{"$f":"+IFERROR(VLOOKUP(HU$6&\"-\"&$M11&\"_old\",Ammortamento_Finanziario!$H:$L,5,FALSE),VLOOKUP($M11,TT_Tabelle_Riferimento!$H$31:$I$50,2,FALSE))","v":40},{"$f":"+IFERROR(VLOOKUP(HV$6&\"-\"&$M11&\"_old\",Ammortamento_Finanziario!$H:$L,5,FALSE),VLOOKUP($M11,TT_Tabelle_Riferimento!$H$31:$I$50,2,FALSE))","v":40},{"$f":"+IFERROR(VLOOKUP(HW$6&\"-\"&$M11&\"_old\",Ammortamento_Finanziario!$H:$L,5,FALSE),VLOOKUP($M11,TT_Tabelle_Riferimento!$H$31:$I$50,2,FALSE))","v":40},{"$f":"+IFERROR(VLOOKUP(HX$6&\"-\"&$M11&\"_old\",Ammortamento_Finanziario!$H:$L,5,FALSE),VLOOKUP($M11,TT_Tabelle_Riferimento!$H$31:$I$50,2,FALSE))","v":40},{"$f":"+IFERROR(VLOOKUP(HY$6&\"-\"&$M11&\"_old\",Ammortamento_Finanziario!$H:$L,5,FALSE),VLOOKUP($M11,TT_Tabelle_Riferimento!$H$31:$I$50,2,FALSE))","v":40},{"$f":"+IFERROR(VLOOKUP(HZ$6&\"-\"&$M11&\"_old\",Ammortamento_Finanziario!$H:$L,5,FALSE),VLOOKUP($M11,TT_Tabelle_Riferimento!$H$31:$I$50,2,FALSE))","v":40},{"$f":"+IFERROR(VLOOKUP(IA$6&\"-\"&$M11&\"_old\",Ammortamento_Finanziario!$H:$L,5,FALSE),VLOOKUP($M11,TT_Tabelle_Riferimento!$H$31:$I$50,2,FALSE))","v":40},{"$f":"+IFERROR(VLOOKUP(IB$6&\"-\"&$M11&\"_old\",Ammortamento_Finanziario!$H:$L,5,FALSE),VLOOKUP($M11,TT_Tabelle_Riferimento!$H$31:$I$50,2,FALSE))","v":40},{"$f":"+IFERROR(VLOOKUP(IC$6&\"-\"&$M11&\"_old\",Ammortamento_Finanziario!$H:$L,5,FALSE),VLOOKUP($M11,TT_Tabelle_Riferimento!$H$31:$I$50,2,FALSE))","v":40},{"$f":"+IFERROR(VLOOKUP(ID$6&\"-\"&$M11&\"_old\",Ammortamento_Finanziario!$H:$L,5,FALSE),VLOOKUP($M11,TT_Tabelle_Riferimento!$H$31:$I$50,2,FALSE))","v":40},{"$f":"+IFERROR(VLOOKUP(IE$6&\"-\"&$M11&\"_old\",Ammortamento_Finanziario!$H:$L,5,FALSE),VLOOKUP($M11,TT_Tabelle_Riferimento!$H$31:$I$50,2,FALSE))","v":40},{"$f":"+IFERROR(VLOOKUP(IF$6&\"-\"&$M11&\"_old\",Ammortamento_Finanziario!$H:$L,5,FALSE),VLOOKUP($M11,TT_Tabelle_Riferimento!$H$31:$I$50,2,FALSE))","v":40},{"$f":"+IFERROR(VLOOKUP(IG$6&\"-\"&$M11&\"_old\",Ammortamento_Finanziario!$H:$L,5,FALSE),VLOOKUP($M11,TT_Tabelle_Riferimento!$H$31:$I$50,2,FALSE))","v":40},{"$f":"+IFERROR(VLOOKUP(IH$6&\"-\"&$M11&\"_old\",Ammortamento_Finanziario!$H:$L,5,FALSE),VLOOKUP($M11,TT_Tabelle_Riferimento!$H$31:$I$50,2,FALSE))","v":40},{"$f":"+IFERROR(VLOOKUP(II$6&\"-\"&$M11&\"_old\",Ammortamento_Finanziario!$H:$L,5,FALSE),VLOOKUP($M11,TT_Tabelle_Riferimento!$H$31:$I$50,2,FALSE))","v":40},{"$f":"+IFERROR(VLOOKUP(IJ$6&\"-\"&$M11&\"_old\",Ammortamento_Finanziario!$H:$L,5,FALSE),VLOOKUP($M11,TT_Tabelle_Riferimento!$H$31:$I$50,2,FALSE))","v":40},{"$f":"+IFERROR(VLOOKUP(IK$6&\"-\"&$M11&\"_old\",Ammortamento_Finanziario!$H:$L,5,FALSE),VLOOKUP($M11,TT_Tabelle_Riferimento!$H$31:$I$50,2,FALSE))","v":40},{"$f":"+IFERROR(VLOOKUP(IL$6&\"-\"&$M11&\"_old\",Ammortamento_Finanziario!$H:$L,5,FALSE),VLOOKUP($M11,TT_Tabelle_Riferimento!$H$31:$I$50,2,FALSE))","v":40},{"$f":"+IFERROR(VLOOKUP(IM$6&\"-\"&$M11&\"_old\",Ammortamento_Finanziario!$H:$L,5,FALSE),VLOOKUP($M11,TT_Tabelle_Riferimento!$H$31:$I$50,2,FALSE))","v":40},{"$f":"+IFERROR(VLOOKUP(IN$6&\"-\"&$M11&\"_old\",Ammortamento_Finanziario!$H:$L,5,FALSE),VLOOKUP($M11,TT_Tabelle_Riferimento!$H$31:$I$50,2,FALSE))","v":40},{"$f":"+IFERROR(VLOOKUP(IO$6&\"-\"&$M11&\"_old\",Ammortamento_Finanziario!$H:$L,5,FALSE),VLOOKUP($M11,TT_Tabelle_Riferimento!$H$31:$I$50,2,FALSE))","v":40},{"$f":"+IFERROR(VLOOKUP(IP$6&\"-\"&$M11&\"_old\",Ammortamento_Finanziario!$H:$L,5,FALSE),VLOOKUP($M11,TT_Tabelle_Riferimento!$H$31:$I$50,2,FALSE))","v":40},{"$f":"+IFERROR(VLOOKUP(IQ$6&\"-\"&$M11&\"_old\",Ammortamento_Finanziario!$H:$L,5,FALSE),VLOOKUP($M11,TT_Tabelle_Riferimento!$H$31:$I$50,2,FALSE))","v":40},{"$f":"+IFERROR(VLOOKUP(IR$6&\"-\"&$M11&\"_old\",Ammortamento_Finanziario!$H:$L,5,FALSE),VLOOKUP($M11,TT_Tabelle_Riferimento!$H$31:$I$50,2,FALSE))","v":40},{"$f":"+IFERROR(VLOOKUP(IS$6&\"-\"&$M11&\"_old\",Ammortamento_Finanziario!$H:$L,5,FALSE),VLOOKUP($M11,TT_Tabelle_Riferimento!$H$31:$I$50,2,FALSE))","v":40},{"$f":"+IFERROR(VLOOKUP(IT$6&\"-\"&$M11&\"_old\",Ammortamento_Finanziario!$H:$L,5,FALSE),VLOOKUP($M11,TT_Tabelle_Riferimento!$H$31:$I$50,2,FALSE))","v":40},{"$f":"+IFERROR(VLOOKUP(IU$6&\"-\"&$M11&\"_old\",Ammortamento_Finanziario!$H:$L,5,FALSE),VLOOKUP($M11,TT_Tabelle_Riferimento!$H$31:$I$50,2,FALSE))","v":40},{"$f":"+IFERROR(VLOOKUP(IV$6&\"-\"&$M11&\"_old\",Ammortamento_Finanziario!$H:$L,5,FALSE),VLOOKUP($M11,TT_Tabelle_Riferimento!$H$31:$I$50,2,FALSE))","v":40},{"$f":"+IFERROR(VLOOKUP(IW$6&\"-\"&$M11&\"_old\",Ammortamento_Finanziario!$H:$L,5,FALSE),VLOOKUP($M11,TT_Tabelle_Riferimento!$H$31:$I$50,2,FALSE))","v":40},{"$f":"+IFERROR(VLOOKUP(IX$6&\"-\"&$M11&\"_old\",Ammortamento_Finanziario!$H:$L,5,FALSE),VLOOKUP($M11,TT_Tabelle_Riferimento!$H$31:$I$50,2,FALSE))","v":40},{"$f":"+IFERROR(VLOOKUP(IY$6&\"-\"&$M11&\"_old\",Ammortamento_Finanziario!$H:$L,5,FALSE),VLOOKUP($M11,TT_Tabelle_Riferimento!$H$31:$I$50,2,FALSE))","v":40},{"$f":"+IFERROR(VLOOKUP(IZ$6&\"-\"&$M11&\"_old\",Ammortamento_Finanziario!$H:$L,5,FALSE),VLOOKUP($M11,TT_Tabelle_Riferimento!$H$31:$I$50,2,FALSE))","v":40},{"$f":"+IFERROR(VLOOKUP(JA$6&\"-\"&$M11&\"_old\",Ammortamento_Finanziario!$H:$L,5,FALSE),VLOOKUP($M11,TT_Tabelle_Riferimento!$H$31:$I$50,2,FALSE))","v":40},{"$f":"+IFERROR(VLOOKUP(JB$6&\"-\"&$M11&\"_old\",Ammortamento_Finanziario!$H:$L,5,FALSE),VLOOKUP($M11,TT_Tabelle_Riferimento!$H$31:$I$50,2,FALSE))","v":40},{"$f":"+IFERROR(VLOOKUP(JC$6&\"-\"&$M11&\"_old\",Ammortamento_Finanziario!$H:$L,5,FALSE),VLOOKUP($M11,TT_Tabelle_Riferimento!$H$31:$I$50,2,FALSE))","v":40},{"$f":"+IFERROR(VLOOKUP(JD$6&\"-\"&$M11&\"_old\",Ammortamento_Finanziario!$H:$L,5,FALSE),VLOOKUP($M11,TT_Tabelle_Riferimento!$H$31:$I$50,2,FALSE))","v":40},{"$f":"+IFERROR(VLOOKUP(JE$6&\"-\"&$M11&\"_old\",Ammortamento_Finanziario!$H:$L,5,FALSE),VLOOKUP($M11,TT_Tabelle_Riferimento!$H$31:$I$50,2,FALSE))","v":40},{"$f":"+IFERROR(VLOOKUP(JF$6&\"-\"&$M11&\"_old\",Ammortamento_Finanziario!$H:$L,5,FALSE),VLOOKUP($M11,TT_Tabelle_Riferimento!$H$31:$I$50,2,FALSE))","v":40},{"$f":"+IFERROR(VLOOKUP(JG$6&\"-\"&$M11&\"_old\",Ammortamento_Finanziario!$H:$L,5,FALSE),VLOOKUP($M11,TT_Tabelle_Riferimento!$H$31:$I$50,2,FALSE))","v":40},{"$f":"+IFERROR(VLOOKUP(JH$6&\"-\"&$M11&\"_old\",Ammortamento_Finanziario!$H:$L,5,FALSE),VLOOKUP($M11,TT_Tabelle_Riferimento!$H$31:$I$50,2,FALSE))","v":40},{"$f":"+IFERROR(VLOOKUP(JI$6&\"-\"&$M11&\"_old\",Ammortamento_Finanziario!$H:$L,5,FALSE),VLOOKUP($M11,TT_Tabelle_Riferimento!$H$31:$I$50,2,FALSE))","v":40},{"$f":"+IFERROR(VLOOKUP(JJ$6&\"-\"&$M11&\"_old\",Ammortamento_Finanziario!$H:$L,5,FALSE),VLOOKUP($M11,TT_Tabelle_Riferimento!$H$31:$I$50,2,FALSE))","v":40},{"$f":"+IFERROR(VLOOKUP(JK$6&\"-\"&$M11&\"_old\",Ammortamento_Finanziario!$H:$L,5,FALSE),VLOOKUP($M11,TT_Tabelle_Riferimento!$H$31:$I$50,2,FALSE))","v":40},{"$f":"+IFERROR(VLOOKUP(JL$6&\"-\"&$M11&\"_old\",Ammortamento_Finanziario!$H:$L,5,FALSE),VLOOKUP($M11,TT_Tabelle_Riferimento!$H$31:$I$50,2,FALSE))","v":40},{"$f":"+IFERROR(VLOOKUP(JM$6&\"-\"&$M11&\"_old\",Ammortamento_Finanziario!$H:$L,5,FALSE),VLOOKUP($M11,TT_Tabelle_Riferimento!$H$31:$I$50,2,FALSE))","v":40},{"$f":"+IFERROR(VLOOKUP(JN$6&\"-\"&$M11&\"_old\",Ammortamento_Finanziario!$H:$L,5,FALSE),VLOOKUP($M11,TT_Tabelle_Riferimento!$H$31:$I$50,2,FALSE))","v":40},{"$f":"+IFERROR(VLOOKUP(JO$6&\"-\"&$M11&\"_old\",Ammortamento_Finanziario!$H:$L,5,FALSE),VLOOKUP($M11,TT_Tabelle_Riferimento!$H$31:$I$50,2,FALSE))","v":40},{"$f":"+IFERROR(VLOOKUP(JP$6&\"-\"&$M11&\"_old\",Ammortamento_Finanziario!$H:$L,5,FALSE),VLOOKUP($M11,TT_Tabelle_Riferimento!$H$31:$I$50,2,FALSE))","v":40},{"$f":"+IFERROR(VLOOKUP(JQ$6&\"-\"&$M11&\"_old\",Ammortamento_Finanziario!$H:$L,5,FALSE),VLOOKUP($M11,TT_Tabelle_Riferimento!$H$31:$I$50,2,FALSE))","v":40},{"$f":"+IFERROR(VLOOKUP(JR$6&\"-\"&$M11&\"_old\",Ammortamento_Finanziario!$H:$L,5,FALSE),VLOOKUP($M11,TT_Tabelle_Riferimento!$H$31:$I$50,2,FALSE))","v":40},{"$f":"+IFERROR(VLOOKUP(JS$6&\"-\"&$M11&\"_old\",Ammortamento_Finanziario!$H:$L,5,FALSE),VLOOKUP($M11,TT_Tabelle_Riferimento!$H$31:$I$50,2,FALSE))","v":40},{"$f":"+IFERROR(VLOOKUP(JT$6&\"-\"&$M11&\"_old\",Ammortamento_Finanziario!$H:$L,5,FALSE),VLOOKUP($M11,TT_Tabelle_Riferimento!$H$31:$I$50,2,FALSE))","v":40},{"$f":"+IFERROR(VLOOKUP(JU$6&\"-\"&$M11&\"_old\",Ammortamento_Finanziario!$H:$L,5,FALSE),VLOOKUP($M11,TT_Tabelle_Riferimento!$H$31:$I$50,2,FALSE))","v":40},{"$f":"+IFERROR(VLOOKUP(JV$6&\"-\"&$M11&\"_old\",Ammortamento_Finanziario!$H:$L,5,FALSE),VLOOKUP($M11,TT_Tabelle_Riferimento!$H$31:$I$50,2,FALSE))","v":40},{"$f":"+IFERROR(VLOOKUP(JW$6&\"-\"&$M11&\"_old\",Ammortamento_Finanziario!$H:$L,5,FALSE),VLOOKUP($M11,TT_Tabelle_Riferimento!$H$31:$I$50,2,FALSE))","v":40},{"$f":"+IFERROR(VLOOKUP(JX$6&\"-\"&$M11&\"_old\",Ammortamento_Finanziario!$H:$L,5,FALSE),VLOOKUP($M11,TT_Tabelle_Riferimento!$H$31:$I$50,2,FALSE))","v":40},{"$f":"+IFERROR(VLOOKUP(JY$6&\"-\"&$M11&\"_old\",Ammortamento_Finanziario!$H:$L,5,FALSE),VLOOKUP($M11,TT_Tabelle_Riferimento!$H$31:$I$50,2,FALSE))","v":40},{"$f":"+IFERROR(VLOOKUP(JZ$6&\"-\"&$M11&\"_old\",Ammortamento_Finanziario!$H:$L,5,FALSE),VLOOKUP($M11,TT_Tabelle_Riferimento!$H$31:$I$50,2,FALSE))","v":40},{"$f":"+IFERROR(VLOOKUP(KA$6&\"-\"&$M11&\"_old\",Ammortamento_Finanziario!$H:$L,5,FALSE),VLOOKUP($M11,TT_Tabelle_Riferimento!$H$31:$I$50,2,FALSE))","v":40},{"$f":"+IFERROR(VLOOKUP(KB$6&\"-\"&$M11&\"_old\",Ammortamento_Finanziario!$H:$L,5,FALSE),VLOOKUP($M11,TT_Tabelle_Riferimento!$H$31:$I$50,2,FALSE))","v":40},{"$f":"+IFERROR(VLOOKUP(KC$6&\"-\"&$M11&\"_old\",Ammortamento_Finanziario!$H:$L,5,FALSE),VLOOKUP($M11,TT_Tabelle_Riferimento!$H$31:$I$50,2,FALSE))","v":40},{"$f":"+IFERROR(VLOOKUP(KD$6&\"-\"&$M11&\"_old\",Ammortamento_Finanziario!$H:$L,5,FALSE),VLOOKUP($M11,TT_Tabelle_Riferimento!$H$31:$I$50,2,FALSE))","v":40},{"$f":"+IFERROR(VLOOKUP(KE$6&\"-\"&$M11&\"_old\",Ammortamento_Finanziario!$H:$L,5,FALSE),VLOOKUP($M11,TT_Tabelle_Riferimento!$H$31:$I$50,2,FALSE))","v":40},{"$f":"+IFERROR(VLOOKUP(KF$6&\"-\"&$M11&\"_old\",Ammortamento_Finanziario!$H:$L,5,FALSE),VLOOKUP($M11,TT_Tabelle_Riferimento!$H$31:$I$50,2,FALSE))","v":40},{"$f":"+IFERROR(VLOOKUP(KG$6&\"-\"&$M11&\"_old\",Ammortamento_Finanziario!$H:$L,5,FALSE),VLOOKUP($M11,TT_Tabelle_Riferimento!$H$31:$I$50,2,FALSE))","v":40},{"$f":"+IFERROR(VLOOKUP(KH$6&\"-\"&$M11&\"_old\",Ammortamento_Finanziario!$H:$L,5,FALSE),VLOOKUP($M11,TT_Tabelle_Riferimento!$H$31:$I$50,2,FALSE))","v":40},{"$f":"+IFERROR(VLOOKUP(KI$6&\"-\"&$M11&\"_old\",Ammortamento_Finanziario!$H:$L,5,FALSE),VLOOKUP($M11,TT_Tabelle_Riferimento!$H$31:$I$50,2,FALSE))","v":40},{"$f":"+IFERROR(VLOOKUP(KJ$6&\"-\"&$M11&\"_old\",Ammortamento_Finanziario!$H:$L,5,FALSE),VLOOKUP($M11,TT_Tabelle_Riferimento!$H$31:$I$50,2,FALSE))","v":40},{"$f":"+IFERROR(VLOOKUP(KK$6&\"-\"&$M11&\"_old\",Ammortamento_Finanziario!$H:$L,5,FALSE),VLOOKUP($M11,TT_Tabelle_Riferimento!$H$31:$I$50,2,FALSE))","v":40},{"$f":"+IFERROR(VLOOKUP(KL$6&\"-\"&$M11&\"_old\",Ammortamento_Finanziario!$H:$L,5,FALSE),VLOOKUP($M11,TT_Tabelle_Riferimento!$H$31:$I$50,2,FALSE))","v":40},{"$f":"+IFERROR(VLOOKUP(KM$6&\"-\"&$M11&\"_old\",Ammortamento_Finanziario!$H:$L,5,FALSE),VLOOKUP($M11,TT_Tabelle_Riferimento!$H$31:$I$50,2,FALSE))","v":40},{"$f":"+IFERROR(VLOOKUP(KN$6&\"-\"&$M11&\"_old\",Ammortamento_Finanziario!$H:$L,5,FALSE),VLOOKUP($M11,TT_Tabelle_Riferimento!$H$31:$I$50,2,FALSE))","v":40},{"$f":"+IFERROR(VLOOKUP(KO$6&\"-\"&$M11&\"_old\",Ammortamento_Finanziario!$H:$L,5,FALSE),VLOOKUP($M11,TT_Tabelle_Riferimento!$H$31:$I$50,2,FALSE))","v":40},{"$f":"+IFERROR(VLOOKUP(KP$6&\"-\"&$M11&\"_old\",Ammortamento_Finanziario!$H:$L,5,FALSE),VLOOKUP($M11,TT_Tabelle_Riferimento!$H$31:$I$50,2,FALSE))","v":40},{"$f":"+IFERROR(VLOOKUP(KQ$6&\"-\"&$M11&\"_old\",Ammortamento_Finanziario!$H:$L,5,FALSE),VLOOKUP($M11,TT_Tabelle_Riferimento!$H$31:$I$50,2,FALSE))","v":40},{"$f":"+IFERROR(VLOOKUP(KR$6&\"-\"&$M11&\"_old\",Ammortamento_Finanziario!$H:$L,5,FALSE),VLOOKUP($M11,TT_Tabelle_Riferimento!$H$31:$I$50,2,FALSE))","v":40},{"$f":"+IFERROR(VLOOKUP(KS$6&\"-\"&$M11&\"_old\",Ammortamento_Finanziario!$H:$L,5,FALSE),VLOOKUP($M11,TT_Tabelle_Riferimento!$H$31:$I$50,2,FALSE))","v":40},{"$f":"+IFERROR(VLOOKUP(KT$6&\"-\"&$M11&\"_old\",Ammortamento_Finanziario!$H:$L,5,FALSE),VLOOKUP($M11,TT_Tabelle_Riferimento!$H$31:$I$50,2,FALSE))","v":40},{"$f":"+IFERROR(VLOOKUP(KU$6&\"-\"&$M11&\"_old\",Ammortamento_Finanziario!$H:$L,5,FALSE),VLOOKUP($M11,TT_Tabelle_Riferimento!$H$31:$I$50,2,FALSE))","v":40},{"$f":"+IFERROR(VLOOKUP(KV$6&\"-\"&$M11&\"_old\",Ammortamento_Finanziario!$H:$L,5,FALSE),VLOOKUP($M11,TT_Tabelle_Riferimento!$H$31:$I$50,2,FALSE))","v":40},{"$f":"+IFERROR(VLOOKUP(KW$6&\"-\"&$M11&\"_old\",Ammortamento_Finanziario!$H:$L,5,FALSE),VLOOKUP($M11,TT_Tabelle_Riferimento!$H$31:$I$50,2,FALSE))","v":40},{"$f":"+IFERROR(VLOOKUP(KX$6&\"-\"&$M11&\"_old\",Ammortamento_Finanziario!$H:$L,5,FALSE),VLOOKUP($M11,TT_Tabelle_Riferimento!$H$31:$I$50,2,FALSE))","v":40},{"$f":"+IFERROR(VLOOKUP(KY$6&\"-\"&$M11&\"_old\",Ammortamento_Finanziario!$H:$L,5,FALSE),VLOOKUP($M11,TT_Tabelle_Riferimento!$H$31:$I$50,2,FALSE))","v":40},{"$f":"+IFERROR(VLOOKUP(KZ$6&\"-\"&$M11&\"_old\",Ammortamento_Finanziario!$H:$L,5,FALSE),VLOOKUP($M11,TT_Tabelle_Riferimento!$H$31:$I$50,2,FALSE))","v":40},{"$f":"+IFERROR(VLOOKUP(LA$6&\"-\"&$M11&\"_old\",Ammortamento_Finanziario!$H:$L,5,FALSE),VLOOKUP($M11,TT_Tabelle_Riferimento!$H$31:$I$50,2,FALSE))","v":40},{"$f":"+IFERROR(VLOOKUP(LB$6&\"-\"&$M11&\"_old\",Ammortamento_Finanziario!$H:$L,5,FALSE),VLOOKUP($M11,TT_Tabelle_Riferimento!$H$31:$I$50,2,FALSE))","v":40},{"$f":"+IFERROR(VLOOKUP(LC$6&\"-\"&$M11&\"_old\",Ammortamento_Finanziario!$H:$L,5,FALSE),VLOOKUP($M11,TT_Tabelle_Riferimento!$H$31:$I$50,2,FALSE))","v":40},{"$f":"+IFERROR(VLOOKUP(LD$6&\"-\"&$M11&\"_old\",Ammortamento_Finanziario!$H:$L,5,FALSE),VLOOKUP($M11,TT_Tabelle_Riferimento!$H$31:$I$50,2,FALSE))","v":40},{"$f":"+IFERROR(VLOOKUP(LE$6&\"-\"&$M11&\"_old\",Ammortamento_Finanziario!$H:$L,5,FALSE),VLOOKUP($M11,TT_Tabelle_Riferimento!$H$31:$I$50,2,FALSE))","v":40},{"$f":"+IFERROR(VLOOKUP(LF$6&\"-\"&$M11&\"_old\",Ammortamento_Finanziario!$H:$L,5,FALSE),VLOOKUP($M11,TT_Tabelle_Riferimento!$H$31:$I$50,2,FALSE))","v":40},{"$f":"+IFERROR(VLOOKUP(LG$6&\"-\"&$M11&\"_old\",Ammortamento_Finanziario!$H:$L,5,FALSE),VLOOKUP($M11,TT_Tabelle_Riferimento!$H$31:$I$50,2,FALSE))","v":40},{"$f":"+IFERROR(VLOOKUP(LH$6&\"-\"&$M11&\"_old\",Ammortamento_Finanziario!$H:$L,5,FALSE),VLOOKUP($M11,TT_Tabelle_Riferimento!$H$31:$I$50,2,FALSE))","v":40},{"$f":"+IFERROR(VLOOKUP(LI$6&\"-\"&$M11&\"_old\",Ammortamento_Finanziario!$H:$L,5,FALSE),VLOOKUP($M11,TT_Tabelle_Riferimento!$H$31:$I$50,2,FALSE))","v":40},{"$f":"+IFERROR(VLOOKUP(LJ$6&\"-\"&$M11&\"_old\",Ammortamento_Finanziario!$H:$L,5,FALSE),VLOOKUP($M11,TT_Tabelle_Riferimento!$H$31:$I$50,2,FALSE))","v":40},{"$f":"+IFERROR(VLOOKUP(LK$6&\"-\"&$M11&\"_old\",Ammortamento_Finanziario!$H:$L,5,FALSE),VLOOKUP($M11,TT_Tabelle_Riferimento!$H$31:$I$50,2,FALSE))","v":40},{"$f":"+IFERROR(VLOOKUP(LL$6&\"-\"&$M11&\"_old\",Ammortamento_Finanziario!$H:$L,5,FALSE),VLOOKUP($M11,TT_Tabelle_Riferimento!$H$31:$I$50,2,FALSE))","v":40},{"$f":"+IFERROR(VLOOKUP(LM$6&\"-\"&$M11&\"_old\",Ammortamento_Finanziario!$H:$L,5,FALSE),VLOOKUP($M11,TT_Tabelle_Riferimento!$H$31:$I$50,2,FALSE))","v":40},{"$f":"+IFERROR(VLOOKUP(LN$6&\"-\"&$M11&\"_old\",Ammortamento_Finanziario!$H:$L,5,FALSE),VLOOKUP($M11,TT_Tabelle_Riferimento!$H$31:$I$50,2,FALSE))","v":40},{"$f":"+IFERROR(VLOOKUP(LO$6&\"-\"&$M11&\"_old\",Ammortamento_Finanziario!$H:$L,5,FALSE),VLOOKUP($M11,TT_Tabelle_Riferimento!$H$31:$I$50,2,FALSE))","v":40},{"$f":"+IFERROR(VLOOKUP(LP$6&\"-\"&$M11&\"_old\",Ammortamento_Finanziario!$H:$L,5,FALSE),VLOOKUP($M11,TT_Tabelle_Riferimento!$H$31:$I$50,2,FALSE))","v":40},{"$f":"+IFERROR(VLOOKUP(LQ$6&\"-\"&$M11&\"_old\",Ammortamento_Finanziario!$H:$L,5,FALSE),VLOOKUP($M11,TT_Tabelle_Riferimento!$H$31:$I$50,2,FALSE))","v":40},{"$f":"+IFERROR(VLOOKUP(LR$6&\"-\"&$M11&\"_old\",Ammortamento_Finanziario!$H:$L,5,FALSE),VLOOKUP($M11,TT_Tabelle_Riferimento!$H$31:$I$50,2,FALSE))","v":40},{"$f":"+IFERROR(VLOOKUP(LS$6&\"-\"&$M11&\"_old\",Ammortamento_Finanziario!$H:$L,5,FALSE),VLOOKUP($M11,TT_Tabelle_Riferimento!$H$31:$I$50,2,FALSE))","v":40},{"$f":"+IFERROR(VLOOKUP(LT$6&\"-\"&$M11&\"_old\",Ammortamento_Finanziario!$H:$L,5,FALSE),VLOOKUP($M11,TT_Tabelle_Riferimento!$H$31:$I$50,2,FALSE))","v":40},{"$f":"+IFERROR(VLOOKUP(LU$6&\"-\"&$M11&\"_old\",Ammortamento_Finanziario!$H:$L,5,FALSE),VLOOKUP($M11,TT_Tabelle_Riferimento!$H$31:$I$50,2,FALSE))","v":40},{"$f":"+IFERROR(VLOOKUP(LV$6&\"-\"&$M11&\"_old\",Ammortamento_Finanziario!$H:$L,5,FALSE),VLOOKUP($M11,TT_Tabelle_Riferimento!$H$31:$I$50,2,FALSE))","v":40},{"$f":"+IFERROR(VLOOKUP(LW$6&\"-\"&$M11&\"_old\",Ammortamento_Finanziario!$H:$L,5,FALSE),VLOOKUP($M11,TT_Tabelle_Riferimento!$H$31:$I$50,2,FALSE))","v":40},{"$f":"+IFERROR(VLOOKUP(LX$6&\"-\"&$M11&\"_old\",Ammortamento_Finanziario!$H:$L,5,FALSE),VLOOKUP($M11,TT_Tabelle_Riferimento!$H$31:$I$50,2,FALSE))","v":40},{"$f":"+IFERROR(VLOOKUP(LY$6&\"-\"&$M11&\"_old\",Ammortamento_Finanziario!$H:$L,5,FALSE),VLOOKUP($M11,TT_Tabelle_Riferimento!$H$31:$I$50,2,FALSE))","v":40},{"$f":"+IFERROR(VLOOKUP(LZ$6&\"-\"&$M11&\"_old\",Ammortamento_Finanziario!$H:$L,5,FALSE),VLOOKUP($M11,TT_Tabelle_Riferimento!$H$31:$I$50,2,FALSE))","v":40},{"$f":"+IFERROR(VLOOKUP(MA$6&\"-\"&$M11&\"_old\",Ammortamento_Finanziario!$H:$L,5,FALSE),VLOOKUP($M11,TT_Tabelle_Riferimento!$H$31:$I$50,2,FALSE))","v":40},{"$f":"+IFERROR(VLOOKUP(MB$6&\"-\"&$M11&\"_old\",Ammortamento_Finanziario!$H:$L,5,FALSE),VLOOKUP($M11,TT_Tabelle_Riferimento!$H$31:$I$50,2,FALSE))","v":40},{"$f":"+IFERROR(VLOOKUP(MC$6&\"-\"&$M11&\"_old\",Ammortamento_Finanziario!$H:$L,5,FALSE),VLOOKUP($M11,TT_Tabelle_Riferimento!$H$31:$I$50,2,FALSE))","v":40},{"$f":"+IFERROR(VLOOKUP(MD$6&\"-\"&$M11&\"_old\",Ammortamento_Finanziario!$H:$L,5,FALSE),VLOOKUP($M11,TT_Tabelle_Riferimento!$H$31:$I$50,2,FALSE))","v":40},{"$f":"+IFERROR(VLOOKUP(ME$6&\"-\"&$M11&\"_old\",Ammortamento_Finanziario!$H:$L,5,FALSE),VLOOKUP($M11,TT_Tabelle_Riferimento!$H$31:$I$50,2,FALSE))","v":40},{"$f":"+IFERROR(VLOOKUP(MF$6&\"-\"&$M11&\"_old\",Ammortamento_Finanziario!$H:$L,5,FALSE),VLOOKUP($M11,TT_Tabelle_Riferimento!$H$31:$I$50,2,FALSE))","v":40},{"$f":"+IFERROR(VLOOKUP(MG$6&\"-\"&$M11&\"_old\",Ammortamento_Finanziario!$H:$L,5,FALSE),VLOOKUP($M11,TT_Tabelle_Riferimento!$H$31:$I$50,2,FALSE))","v":40},{"$f":"+IFERROR(VLOOKUP(MH$6&\"-\"&$M11&\"_old\",Ammortamento_Finanziario!$H:$L,5,FALSE),VLOOKUP($M11,TT_Tabelle_Riferimento!$H$31:$I$50,2,FALSE))","v":40},{"$f":"+IFERROR(VLOOKUP(MI$6&\"-\"&$M11&\"_old\",Ammortamento_Finanziario!$H:$L,5,FALSE),VLOOKUP($M11,TT_Tabelle_Riferimento!$H$31:$I$50,2,FALSE))","v":40},{"$f":"+IFERROR(VLOOKUP(MJ$6&\"-\"&$M11&\"_old\",Ammortamento_Finanziario!$H:$L,5,FALSE),VLOOKUP($M11,TT_Tabelle_Riferimento!$H$31:$I$50,2,FALSE))","v":40},{"$f":"+IFERROR(VLOOKUP(MK$6&\"-\"&$M11&\"_old\",Ammortamento_Finanziario!$H:$L,5,FALSE),VLOOKUP($M11,TT_Tabelle_Riferimento!$H$31:$I$50,2,FALSE))","v":40},{"$f":"+IFERROR(VLOOKUP(ML$6&\"-\"&$M11&\"_old\",Ammortamento_Finanziario!$H:$L,5,FALSE),VLOOKUP($M11,TT_Tabelle_Riferimento!$H$31:$I$50,2,FALSE))","v":40},{"$f":"+IFERROR(VLOOKUP(MM$6&\"-\"&$M11&\"_old\",Ammortamento_Finanziario!$H:$L,5,FALSE),VLOOKUP($M11,TT_Tabelle_Riferimento!$H$31:$I$50,2,FALSE))","v":40},{"$f":"+IFERROR(VLOOKUP(MN$6&\"-\"&$M11&\"_old\",Ammortamento_Finanziario!$H:$L,5,FALSE),VLOOKUP($M11,TT_Tabelle_Riferimento!$H$31:$I$50,2,FALSE))","v":40},{"$f":"+IFERROR(VLOOKUP(MO$6&\"-\"&$M11&\"_old\",Ammortamento_Finanziario!$H:$L,5,FALSE),VLOOKUP($M11,TT_Tabelle_Riferimento!$H$31:$I$50,2,FALSE))","v":40},{"$f":"+IFERROR(VLOOKUP(MP$6&\"-\"&$M11&\"_old\",Ammortamento_Finanziario!$H:$L,5,FALSE),VLOOKUP($M11,TT_Tabelle_Riferimento!$H$31:$I$50,2,FALSE))","v":40},{"$f":"+IFERROR(VLOOKUP(MQ$6&\"-\"&$M11&\"_old\",Ammortamento_Finanziario!$H:$L,5,FALSE),VLOOKUP($M11,TT_Tabelle_Riferimento!$H$31:$I$50,2,FALSE))","v":40},{"$f":"+IFERROR(VLOOKUP(MR$6&\"-\"&$M11&\"_old\",Ammortamento_Finanziario!$H:$L,5,FALSE),VLOOKUP($M11,TT_Tabelle_Riferimento!$H$31:$I$50,2,FALSE))","v":40},{"$f":"+IFERROR(VLOOKUP(MS$6&\"-\"&$M11&\"_old\",Ammortamento_Finanziario!$H:$L,5,FALSE),VLOOKUP($M11,TT_Tabelle_Riferimento!$H$31:$I$50,2,FALSE))","v":40},{"$f":"+IFERROR(VLOOKUP(MT$6&\"-\"&$M11&\"_old\",Ammortamento_Finanziario!$H:$L,5,FALSE),VLOOKUP($M11,TT_Tabelle_Riferimento!$H$31:$I$50,2,FALSE))","v":40},{"$f":"+IFERROR(VLOOKUP(MU$6&\"-\"&$M11&\"_old\",Ammortamento_Finanziario!$H:$L,5,FALSE),VLOOKUP($M11,TT_Tabelle_Riferimento!$H$31:$I$50,2,FALSE))","v":40},{"$f":"+IFERROR(VLOOKUP(MV$6&\"-\"&$M11&\"_old\",Ammortamento_Finanziario!$H:$L,5,FALSE),VLOOKUP($M11,TT_Tabelle_Riferimento!$H$31:$I$50,2,FALSE))","v":40},{"$f":"+IFERROR(VLOOKUP(MW$6&\"-\"&$M11&\"_old\",Ammortamento_Finanziario!$H:$L,5,FALSE),VLOOKUP($M11,TT_Tabelle_Riferimento!$H$31:$I$50,2,FALSE))","v":40},{"$f":"+IFERROR(VLOOKUP(MX$6&\"-\"&$M11&\"_old\",Ammortamento_Finanziario!$H:$L,5,FALSE),VLOOKUP($M11,TT_Tabelle_Riferimento!$H$31:$I$50,2,FALSE))","v":40},{"$f":"+IFERROR(VLOOKUP(MY$6&\"-\"&$M11&\"_old\",Ammortamento_Finanziario!$H:$L,5,FALSE),VLOOKUP($M11,TT_Tabelle_Riferimento!$H$31:$I$50,2,FALSE))","v":40},{"$f":"+IFERROR(VLOOKUP(MZ$6&\"-\"&$M11&\"_old\",Ammortamento_Finanziario!$H:$L,5,FALSE),VLOOKUP($M11,TT_Tabelle_Riferimento!$H$31:$I$50,2,FALSE))","v":40},{"$f":"+IFERROR(VLOOKUP(NA$6&\"-\"&$M11&\"_old\",Ammortamento_Finanziario!$H:$L,5,FALSE),VLOOKUP($M11,TT_Tabelle_Riferimento!$H$31:$I$50,2,FALSE))","v":40},{"$f":"+IFERROR(VLOOKUP(NB$6&\"-\"&$M11&\"_old\",Ammortamento_Finanziario!$H:$L,5,FALSE),VLOOKUP($M11,TT_Tabelle_Riferimento!$H$31:$I$50,2,FALSE))","v":40},{"$f":"+IFERROR(VLOOKUP(NC$6&\"-\"&$M11&\"_old\",Ammortamento_Finanziario!$H:$L,5,FALSE),VLOOKUP($M11,TT_Tabelle_Riferimento!$H$31:$I$50,2,FALSE))","v":40},{"$f":"+IFERROR(VLOOKUP(ND$6&\"-\"&$M11&\"_old\",Ammortamento_Finanziario!$H:$L,5,FALSE),VLOOKUP($M11,TT_Tabelle_Riferimento!$H$31:$I$50,2,FALSE))","v":40},{"$f":"+IFERROR(VLOOKUP(NE$6&\"-\"&$M11&\"_old\",Ammortamento_Finanziario!$H:$L,5,FALSE),VLOOKUP($M11,TT_Tabelle_Riferimento!$H$31:$I$50,2,FALSE))","v":40},{"$f":"+IFERROR(VLOOKUP(NF$6&\"-\"&$M11&\"_old\",Ammortamento_Finanziario!$H:$L,5,FALSE),VLOOKUP($M11,TT_Tabelle_Riferimento!$H$31:$I$50,2,FALSE))","v":40},{"$f":"+IFERROR(VLOOKUP(NG$6&\"-\"&$M11&\"_old\",Ammortamento_Finanziario!$H:$L,5,FALSE),VLOOKUP($M11,TT_Tabelle_Riferimento!$H$31:$I$50,2,FALSE))","v":40},{"$f":"+IFERROR(VLOOKUP(NH$6&\"-\"&$M11&\"_old\",Ammortamento_Finanziario!$H:$L,5,FALSE),VLOOKUP($M11,TT_Tabelle_Riferimento!$H$31:$I$50,2,FALSE))","v":40},{"$f":"+IFERROR(VLOOKUP(NI$6&\"-\"&$M11&\"_old\",Ammortamento_Finanziario!$H:$L,5,FALSE),VLOOKUP($M11,TT_Tabelle_Riferimento!$H$31:$I$50,2,FALSE))","v":40},{"$f":"+IFERROR(VLOOKUP(NJ$6&\"-\"&$M11&\"_old\",Ammortamento_Finanziario!$H:$L,5,FALSE),VLOOKUP($M11,TT_Tabelle_Riferimento!$H$31:$I$50,2,FALSE))","v":40},{"$f":"+IFERROR(VLOOKUP(NK$6&\"-\"&$M11&\"_old\",Ammortamento_Finanziario!$H:$L,5,FALSE),VLOOKUP($M11,TT_Tabelle_Riferimento!$H$31:$I$50,2,FALSE))","v":40},{"$f":"+IFERROR(VLOOKUP(NL$6&\"-\"&$M11&\"_old\",Ammortamento_Finanziario!$H:$L,5,FALSE),VLOOKUP($M11,TT_Tabelle_Riferimento!$H$31:$I$50,2,FALSE))","v":40},{"$f":"+IFERROR(VLOOKUP(NM$6&\"-\"&$M11&\"_old\",Ammortamento_Finanziario!$H:$L,5,FALSE),VLOOKUP($M11,TT_Tabelle_Riferimento!$H$31:$I$50,2,FALSE))","v":40},{"$f":"+IFERROR(VLOOKUP(NN$6&\"-\"&$M11&\"_old\",Ammortamento_Finanziario!$H:$L,5,FALSE),VLOOKUP($M11,TT_Tabelle_Riferimento!$H$31:$I$50,2,FALSE))","v":40},{"$f":"+IFERROR(VLOOKUP(NO$6&\"-\"&$M11&\"_old\",Ammortamento_Finanziario!$H:$L,5,FALSE),VLOOKUP($M11,TT_Tabelle_Riferimento!$H$31:$I$50,2,FALSE))","v":40},{"$f":"+IFERROR(VLOOKUP(NP$6&\"-\"&$M11&\"_old\",Ammortamento_Finanziario!$H:$L,5,FALSE),VLOOKUP($M11,TT_Tabelle_Riferimento!$H$31:$I$50,2,FALSE))","v":40},{"$f":"+IFERROR(VLOOKUP(NQ$6&\"-\"&$M11&\"_old\",Ammortamento_Finanziario!$H:$L,5,FALSE),VLOOKUP($M11,TT_Tabelle_Riferimento!$H$31:$I$50,2,FALSE))","v":40},{"$f":"+IFERROR(VLOOKUP(NR$6&\"-\"&$M11&\"_old\",Ammortamento_Finanziario!$H:$L,5,FALSE),VLOOKUP($M11,TT_Tabelle_Riferimento!$H$31:$I$50,2,FALSE))","v":40},{"$f":"+IFERROR(VLOOKUP(NS$6&\"-\"&$M11&\"_old\",Ammortamento_Finanziario!$H:$L,5,FALSE),VLOOKUP($M11,TT_Tabelle_Riferimento!$H$31:$I$50,2,FALSE))","v":40},{"$f":"+IFERROR(VLOOKUP(NT$6&\"-\"&$M11&\"_old\",Ammortamento_Finanziario!$H:$L,5,FALSE),VLOOKUP($M11,TT_Tabelle_Riferimento!$H$31:$I$50,2,FALSE))","v":40},{"$f":"+IFERROR(VLOOKUP(NU$6&\"-\"&$M11&\"_old\",Ammortamento_Finanziario!$H:$L,5,FALSE),VLOOKUP($M11,TT_Tabelle_Riferimento!$H$31:$I$50,2,FALSE))","v":40},{"$f":"+IFERROR(VLOOKUP(NV$6&\"-\"&$M11&\"_old\",Ammortamento_Finanziario!$H:$L,5,FALSE),VLOOKUP($M11,TT_Tabelle_Riferimento!$H$31:$I$50,2,FALSE))","v":40},{"$f":"+IFERROR(VLOOKUP(NW$6&\"-\"&$M11&\"_old\",Ammortamento_Finanziario!$H:$L,5,FALSE),VLOOKUP($M11,TT_Tabelle_Riferimento!$H$31:$I$50,2,FALSE))","v":40},{"$f":"+IFERROR(VLOOKUP(NX$6&\"-\"&$M11&\"_old\",Ammortamento_Finanziario!$H:$L,5,FALSE),VLOOKUP($M11,TT_Tabelle_Riferimento!$H$31:$I$50,2,FALSE))","v":40},{"$f":"+IFERROR(VLOOKUP(NY$6&\"-\"&$M11&\"_old\",Ammortamento_Finanziario!$H:$L,5,FALSE),VLOOKUP($M11,TT_Tabelle_Riferimento!$H$31:$I$50,2,FALSE))","v":40},{"$f":"+IFERROR(VLOOKUP(NZ$6&\"-\"&$M11&\"_old\",Ammortamento_Finanziario!$H:$L,5,FALSE),VLOOKUP($M11,TT_Tabelle_Riferimento!$H$31:$I$50,2,FALSE))","v":40},{"$f":"+IFERROR(VLOOKUP(OA$6&\"-\"&$M11&\"_old\",Ammortamento_Finanziario!$H:$L,5,FALSE),VLOOKUP($M11,TT_Tabelle_Riferimento!$H$31:$I$50,2,FALSE))","v":40},{"$f":"+IFERROR(VLOOKUP(OB$6&\"-\"&$M11&\"_old\",Ammortamento_Finanziario!$H:$L,5,FALSE),VLOOKUP($M11,TT_Tabelle_Riferimento!$H$31:$I$50,2,FALSE))","v":40},{"$f":"+IFERROR(VLOOKUP(OC$6&\"-\"&$M11&\"_old\",Ammortamento_Finanziario!$H:$L,5,FALSE),VLOOKUP($M11,TT_Tabelle_Riferimento!$H$31:$I$50,2,FALSE))","v":40},{"$f":"+IFERROR(VLOOKUP(OD$6&\"-\"&$M11&\"_old\",Ammortamento_Finanziario!$H:$L,5,FALSE),VLOOKUP($M11,TT_Tabelle_Riferimento!$H$31:$I$50,2,FALSE))","v":40},{"$f":"+IFERROR(VLOOKUP(OE$6&\"-\"&$M11&\"_old\",Ammortamento_Finanziario!$H:$L,5,FALSE),VLOOKUP($M11,TT_Tabelle_Riferimento!$H$31:$I$50,2,FALSE))","v":40},{"$f":"+IFERROR(VLOOKUP(OF$6&\"-\"&$M11&\"_old\",Ammortamento_Finanziario!$H:$L,5,FALSE),VLOOKUP($M11,TT_Tabelle_Riferimento!$H$31:$I$50,2,FALSE))","v":40},{"$f":"+IFERROR(VLOOKUP(OG$6&\"-\"&$M11&\"_old\",Ammortamento_Finanziario!$H:$L,5,FALSE),VLOOKUP($M11,TT_Tabelle_Riferimento!$H$31:$I$50,2,FALSE))","v":40},{"$f":"+IFERROR(VLOOKUP(OH$6&\"-\"&$M11&\"_old\",Ammortamento_Finanziario!$H:$L,5,FALSE),VLOOKUP($M11,TT_Tabelle_Riferimento!$H$31:$I$50,2,FALSE))","v":40},{"$f":"+IFERROR(VLOOKUP(OI$6&\"-\"&$M11&\"_old\",Ammortamento_Finanziario!$H:$L,5,FALSE),VLOOKUP($M11,TT_Tabelle_Riferimento!$H$31:$I$50,2,FALSE))","v":40},{"$f":"+IFERROR(VLOOKUP(OJ$6&\"-\"&$M11&\"_old\",Ammortamento_Finanziario!$H:$L,5,FALSE),VLOOKUP($M11,TT_Tabelle_Riferimento!$H$31:$I$50,2,FALSE))","v":40},{"$f":"+IFERROR(VLOOKUP(OK$6&\"-\"&$M11&\"_old\",Ammortamento_Finanziario!$H:$L,5,FALSE),VLOOKUP($M11,TT_Tabelle_Riferimento!$H$31:$I$50,2,FALSE))","v":40},{"$f":"+IFERROR(VLOOKUP(OL$6&\"-\"&$M11&\"_old\",Ammortamento_Finanziario!$H:$L,5,FALSE),VLOOKUP($M11,TT_Tabelle_Riferimento!$H$31:$I$50,2,FALSE))","v":40},{"$f":"+IFERROR(VLOOKUP(OM$6&\"-\"&$M11&\"_old\",Ammortamento_Finanziario!$H:$L,5,FALSE),VLOOKUP($M11,TT_Tabelle_Riferimento!$H$31:$I$50,2,FALSE))","v":40},{"$f":"+IFERROR(VLOOKUP(ON$6&\"-\"&$M11&\"_old\",Ammortamento_Finanziario!$H:$L,5,FALSE),VLOOKUP($M11,TT_Tabelle_Riferimento!$H$31:$I$50,2,FALSE))","v":40},{"$f":"+IFERROR(VLOOKUP(OO$6&\"-\"&$M11&\"_old\",Ammortamento_Finanziario!$H:$L,5,FALSE),VLOOKUP($M11,TT_Tabelle_Riferimento!$H$31:$I$50,2,FALSE))","v":40},{"$f":"+IFERROR(VLOOKUP(OP$6&\"-\"&$M11&\"_old\",Ammortamento_Finanziario!$H:$L,5,FALSE),VLOOKUP($M11,TT_Tabelle_Riferimento!$H$31:$I$50,2,FALSE))","v":40},{"$f":"+IFERROR(VLOOKUP(OQ$6&\"-\"&$M11&\"_old\",Ammortamento_Finanziario!$H:$L,5,FALSE),VLOOKUP($M11,TT_Tabelle_Riferimento!$H$31:$I$50,2,FALSE))","v":40},{"$f":"+IFERROR(VLOOKUP(OR$6&\"-\"&$M11&\"_old\",Ammortamento_Finanziario!$H:$L,5,FALSE),VLOOKUP($M11,TT_Tabelle_Riferimento!$H$31:$I$50,2,FALSE))","v":40},{"$f":"+IFERROR(VLOOKUP(OS$6&\"-\"&$M11&\"_old\",Ammortamento_Finanziario!$H:$L,5,FALSE),VLOOKUP($M11,TT_Tabelle_Riferimento!$H$31:$I$50,2,FALSE))","v":40},{"$f":"+IFERROR(VLOOKUP(OT$6&\"-\"&$M11&\"_old\",Ammortamento_Finanziario!$H:$L,5,FALSE),VLOOKUP($M11,TT_Tabelle_Riferimento!$H$31:$I$50,2,FALSE))","v":40},{"$f":"+IFERROR(VLOOKUP(OU$6&\"-\"&$M11&\"_old\",Ammortamento_Finanziario!$H:$L,5,FALSE),VLOOKUP($M11,TT_Tabelle_Riferimento!$H$31:$I$50,2,FALSE))","v":40},{"$f":"+IFERROR(VLOOKUP(OV$6&\"-\"&$M11&\"_old\",Ammortamento_Finanziario!$H:$L,5,FALSE),VLOOKUP($M11,TT_Tabelle_Riferimento!$H$31:$I$50,2,FALSE))","v":40},{"$f":"+IFERROR(VLOOKUP(OW$6&\"-\"&$M11&\"_old\",Ammortamento_Finanziario!$H:$L,5,FALSE),VLOOKUP($M11,TT_Tabelle_Riferimento!$H$31:$I$50,2,FALSE))","v":40},{"$f":"+IFERROR(VLOOKUP(OX$6&\"-\"&$M11&\"_old\",Ammortamento_Finanziario!$H:$L,5,FALSE),VLOOKUP($M11,TT_Tabelle_Riferimento!$H$31:$I$50,2,FALSE))","v":40},{"$f":"+IFERROR(VLOOKUP(OY$6&\"-\"&$M11&\"_old\",Ammortamento_Finanziario!$H:$L,5,FALSE),VLOOKUP($M11,TT_Tabelle_Riferimento!$H$31:$I$50,2,FALSE))","v":40},{"$f":"+IFERROR(VLOOKUP(OZ$6&\"-\"&$M11&\"_old\",Ammortamento_Finanziario!$H:$L,5,FALSE),VLOOKUP($M11,TT_Tabelle_Riferimento!$H$31:$I$50,2,FALSE))","v":40},{"$f":"+IFERROR(VLOOKUP(PA$6&\"-\"&$M11&\"_old\",Ammortamento_Finanziario!$H:$L,5,FALSE),VLOOKUP($M11,TT_Tabelle_Riferimento!$H$31:$I$50,2,FALSE))","v":40},{"$f":"+IFERROR(VLOOKUP(PB$6&\"-\"&$M11&\"_old\",Ammortamento_Finanziario!$H:$L,5,FALSE),VLOOKUP($M11,TT_Tabelle_Riferimento!$H$31:$I$50,2,FALSE))","v":40},{"$f":"+IFERROR(VLOOKUP(PC$6&\"-\"&$M11&\"_old\",Ammortamento_Finanziario!$H:$L,5,FALSE),VLOOKUP($M11,TT_Tabelle_Riferimento!$H$31:$I$50,2,FALSE))","v":40},{"$f":"+IFERROR(VLOOKUP(PD$6&\"-\"&$M11&\"_old\",Ammortamento_Finanziario!$H:$L,5,FALSE),VLOOKUP($M11,TT_Tabelle_Riferimento!$H$31:$I$50,2,FALSE))","v":40},{"$f":"+IFERROR(VLOOKUP(PE$6&\"-\"&$M11&\"_old\",Ammortamento_Finanziario!$H:$L,5,FALSE),VLOOKUP($M11,TT_Tabelle_Riferimento!$H$31:$I$50,2,FALSE))","v":40},{"$f":"+IFERROR(VLOOKUP(PF$6&\"-\"&$M11&\"_old\",Ammortamento_Finanziario!$H:$L,5,FALSE),VLOOKUP($M11,TT_Tabelle_Riferimento!$H$31:$I$50,2,FALSE))","v":40},{"$f":"+IFERROR(VLOOKUP(PG$6&\"-\"&$M11&\"_old\",Ammortamento_Finanziario!$H:$L,5,FALSE),VLOOKUP($M11,TT_Tabelle_Riferimento!$H$31:$I$50,2,FALSE))","v":40},{"$f":"+IFERROR(VLOOKUP(PH$6&\"-\"&$M11&\"_old\",Ammortamento_Finanziario!$H:$L,5,FALSE),VLOOKUP($M11,TT_Tabelle_Riferimento!$H$31:$I$50,2,FALSE))","v":40},{"$f":"+IFERROR(VLOOKUP(PI$6&\"-\"&$M11&\"_old\",Ammortamento_Finanziario!$H:$L,5,FALSE),VLOOKUP($M11,TT_Tabelle_Riferimento!$H$31:$I$50,2,FALSE))","v":40},{"$f":"+IFERROR(VLOOKUP(PJ$6&\"-\"&$M11&\"_old\",Ammortamento_Finanziario!$H:$L,5,FALSE),VLOOKUP($M11,TT_Tabelle_Riferimento!$H$31:$I$50,2,FALSE))","v":40},{"$f":"+IFERROR(VLOOKUP(PK$6&\"-\"&$M11&\"_old\",Ammortamento_Finanziario!$H:$L,5,FALSE),VLOOKUP($M11,TT_Tabelle_Riferimento!$H$31:$I$50,2,FALSE))","v":40},{"$f":"+IFERROR(VLOOKUP(PL$6&\"-\"&$M11&\"_old\",Ammortamento_Finanziario!$H:$L,5,FALSE),VLOOKUP($M11,TT_Tabelle_Riferimento!$H$31:$I$50,2,FALSE))","v":40},{"$f":"+IFERROR(VLOOKUP(PM$6&\"-\"&$M11&\"_old\",Ammortamento_Finanziario!$H:$L,5,FALSE),VLOOKUP($M11,TT_Tabelle_Riferimento!$H$31:$I$50,2,FALSE))","v":40},{"$f":"+IFERROR(VLOOKUP(PN$6&\"-\"&$M11&\"_old\",Ammortamento_Finanziario!$H:$L,5,FALSE),VLOOKUP($M11,TT_Tabelle_Riferimento!$H$31:$I$50,2,FALSE))","v":40},{"$f":"+IFERROR(VLOOKUP(PO$6&\"-\"&$M11&\"_old\",Ammortamento_Finanziario!$H:$L,5,FALSE),VLOOKUP($M11,TT_Tabelle_Riferimento!$H$31:$I$50,2,FALSE))","v":40},{"$f":"+IFERROR(VLOOKUP(PP$6&\"-\"&$M11&\"_old\",Ammortamento_Finanziario!$H:$L,5,FALSE),VLOOKUP($M11,TT_Tabelle_Riferimento!$H$31:$I$50,2,FALSE))","v":40},{"$f":"+IFERROR(VLOOKUP(PQ$6&\"-\"&$M11&\"_old\",Ammortamento_Finanziario!$H:$L,5,FALSE),VLOOKUP($M11,TT_Tabelle_Riferimento!$H$31:$I$50,2,FALSE))","v":40},{"$f":"+IFERROR(VLOOKUP(PR$6&\"-\"&$M11&\"_old\",Ammortamento_Finanziario!$H:$L,5,FALSE),VLOOKUP($M11,TT_Tabelle_Riferimento!$H$31:$I$50,2,FALSE))","v":40},{"$f":"+IFERROR(VLOOKUP(PS$6&\"-\"&$M11&\"_old\",Ammortamento_Finanziario!$H:$L,5,FALSE),VLOOKUP($M11,TT_Tabelle_Riferimento!$H$31:$I$50,2,FALSE))","v":40},{"$f":"+IFERROR(VLOOKUP(PT$6&\"-\"&$M11&\"_old\",Ammortamento_Finanziario!$H:$L,5,FALSE),VLOOKUP($M11,TT_Tabelle_Riferimento!$H$31:$I$50,2,FALSE))","v":40},{"$f":"+IFERROR(VLOOKUP(PU$6&\"-\"&$M11&\"_old\",Ammortamento_Finanziario!$H:$L,5,FALSE),VLOOKUP($M11,TT_Tabelle_Riferimento!$H$31:$I$50,2,FALSE))","v":40},{"$f":"+IFERROR(VLOOKUP(PV$6&\"-\"&$M11&\"_old\",Ammortamento_Finanziario!$H:$L,5,FALSE),VLOOKUP($M11,TT_Tabelle_Riferimento!$H$31:$I$50,2,FALSE))","v":40},{"$f":"+IFERROR(VLOOKUP(PW$6&\"-\"&$M11&\"_old\",Ammortamento_Finanziario!$H:$L,5,FALSE),VLOOKUP($M11,TT_Tabelle_Riferimento!$H$31:$I$50,2,FALSE))","v":40},{"$f":"+IFERROR(VLOOKUP(PX$6&\"-\"&$M11&\"_old\",Ammortamento_Finanziario!$H:$L,5,FALSE),VLOOKUP($M11,TT_Tabelle_Riferimento!$H$31:$I$50,2,FALSE))","v":40},{"$f":"+IFERROR(VLOOKUP(PY$6&\"-\"&$M11&\"_old\",Ammortamento_Finanziario!$H:$L,5,FALSE),VLOOKUP($M11,TT_Tabelle_Riferimento!$H$31:$I$50,2,FALSE))","v":40},{"$f":"+IFERROR(VLOOKUP(PZ$6&\"-\"&$M11&\"_old\",Ammortamento_Finanziario!$H:$L,5,FALSE),VLOOKUP($M11,TT_Tabelle_Riferimento!$H$31:$I$50,2,FALSE))","v":40},{"$f":"+IFERROR(VLOOKUP(QA$6&\"-\"&$M11&\"_old\",Ammortamento_Finanziario!$H:$L,5,FALSE),VLOOKUP($M11,TT_Tabelle_Riferimento!$H$31:$I$50,2,FALSE))","v":40},{"$f":"+IFERROR(VLOOKUP(QB$6&\"-\"&$M11&\"_old\",Ammortamento_Finanziario!$H:$L,5,FALSE),VLOOKUP($M11,TT_Tabelle_Riferimento!$H$31:$I$50,2,FALSE))","v":40},{"$f":"+IFERROR(VLOOKUP(QC$6&\"-\"&$M11&\"_old\",Ammortamento_Finanziario!$H:$L,5,FALSE),VLOOKUP($M11,TT_Tabelle_Riferimento!$H$31:$I$50,2,FALSE))","v":40},{"$f":"+IFERROR(VLOOKUP(QD$6&\"-\"&$M11&\"_old\",Ammortamento_Finanziario!$H:$L,5,FALSE),VLOOKUP($M11,TT_Tabelle_Riferimento!$H$31:$I$50,2,FALSE))","v":40},{"$f":"+IFERROR(VLOOKUP(QE$6&\"-\"&$M11&\"_old\",Ammortamento_Finanziario!$H:$L,5,FALSE),VLOOKUP($M11,TT_Tabelle_Riferimento!$H$31:$I$50,2,FALSE))","v":40},{"$f":"+IFERROR(VLOOKUP(QF$6&\"-\"&$M11&\"_old\",Ammortamento_Finanziario!$H:$L,5,FALSE),VLOOKUP($M11,TT_Tabelle_Riferimento!$H$31:$I$50,2,FALSE))","v":40},{"$f":"+IFERROR(VLOOKUP(QG$6&\"-\"&$M11&\"_old\",Ammortamento_Finanziario!$H:$L,5,FALSE),VLOOKUP($M11,TT_Tabelle_Riferimento!$H$31:$I$50,2,FALSE))","v":40},{"$f":"+IFERROR(VLOOKUP(QH$6&\"-\"&$M11&\"_old\",Ammortamento_Finanziario!$H:$L,5,FALSE),VLOOKUP($M11,TT_Tabelle_Riferimento!$H$31:$I$50,2,FALSE))","v":40},{"$f":"+IFERROR(VLOOKUP(QI$6&\"-\"&$M11&\"_old\",Ammortamento_Finanziario!$H:$L,5,FALSE),VLOOKUP($M11,TT_Tabelle_Riferimento!$H$31:$I$50,2,FALSE))","v":40},{"$f":"+IFERROR(VLOOKUP(QJ$6&\"-\"&$M11&\"_old\",Ammortamento_Finanziario!$H:$L,5,FALSE),VLOOKUP($M11,TT_Tabelle_Riferimento!$H$31:$I$50,2,FALSE))","v":40},{"$f":"+IFERROR(VLOOKUP(QK$6&\"-\"&$M11&\"_old\",Ammortamento_Finanziario!$H:$L,5,FALSE),VLOOKUP($M11,TT_Tabelle_Riferimento!$H$31:$I$50,2,FALSE))","v":40},{"$f":"+IFERROR(VLOOKUP(QL$6&\"-\"&$M11&\"_old\",Ammortamento_Finanziario!$H:$L,5,FALSE),VLOOKUP($M11,TT_Tabelle_Riferimento!$H$31:$I$50,2,FALSE))","v":40},{"$f":"+IFERROR(VLOOKUP(QM$6&\"-\"&$M11&\"_old\",Ammortamento_Finanziario!$H:$L,5,FALSE),VLOOKUP($M11,TT_Tabelle_Riferimento!$H$31:$I$50,2,FALSE))","v":40},{"$f":"+IFERROR(VLOOKUP(QN$6&\"-\"&$M11&\"_old\",Ammortamento_Finanziario!$H:$L,5,FALSE),VLOOKUP($M11,TT_Tabelle_Riferimento!$H$31:$I$50,2,FALSE))","v":40},{"$f":"+IFERROR(VLOOKUP(QO$6&\"-\"&$M11&\"_old\",Ammortamento_Finanziario!$H:$L,5,FALSE),VLOOKUP($M11,TT_Tabelle_Riferimento!$H$31:$I$50,2,FALSE))","v":40},{"$f":"+IFERROR(VLOOKUP(QP$6&\"-\"&$M11&\"_old\",Ammortamento_Finanziario!$H:$L,5,FALSE),VLOOKUP($M11,TT_Tabelle_Riferimento!$H$31:$I$50,2,FALSE))","v":40},{"$f":"+IFERROR(VLOOKUP(QQ$6&\"-\"&$M11&\"_old\",Ammortamento_Finanziario!$H:$L,5,FALSE),VLOOKUP($M11,TT_Tabelle_Riferimento!$H$31:$I$50,2,FALSE))","v":40},{"$f":"+IFERROR(VLOOKUP(QR$6&\"-\"&$M11&\"_old\",Ammortamento_Finanziario!$H:$L,5,FALSE),VLOOKUP($M11,TT_Tabelle_Riferimento!$H$31:$I$50,2,FALSE))","v":40},{"$f":"+IFERROR(VLOOKUP(QS$6&\"-\"&$M11&\"_old\",Ammortamento_Finanziario!$H:$L,5,FALSE),VLOOKUP($M11,TT_Tabelle_Riferimento!$H$31:$I$50,2,FALSE))","v":40},{"$f":"+IFERROR(VLOOKUP(QT$6&\"-\"&$M11&\"_old\",Ammortamento_Finanziario!$H:$L,5,FALSE),VLOOKUP($M11,TT_Tabelle_Riferimento!$H$31:$I$50,2,FALSE))","v":40},{"$f":"+IFERROR(VLOOKUP(QU$6&\"-\"&$M11&\"_old\",Ammortamento_Finanziario!$H:$L,5,FALSE),VLOOKUP($M11,TT_Tabelle_Riferimento!$H$31:$I$50,2,FALSE))","v":40},{"$f":"+IFERROR(VLOOKUP(QV$6&\"-\"&$M11&\"_old\",Ammortamento_Finanziario!$H:$L,5,FALSE),VLOOKUP($M11,TT_Tabelle_Riferimento!$H$31:$I$50,2,FALSE))","v":40},{"$f":"+IFERROR(VLOOKUP(QW$6&\"-\"&$M11&\"_old\",Ammortamento_Finanziario!$H:$L,5,FALSE),VLOOKUP($M11,TT_Tabelle_Riferimento!$H$31:$I$50,2,FALSE))","v":40},{"$f":"+IFERROR(VLOOKUP(QX$6&\"-\"&$M11&\"_old\",Ammortamento_Finanziario!$H:$L,5,FALSE),VLOOKUP($M11,TT_Tabelle_Riferimento!$H$31:$I$50,2,FALSE))","v":40},{"$f":"+IFERROR(VLOOKUP(QY$6&\"-\"&$M11&\"_old\",Ammortamento_Finanziario!$H:$L,5,FALSE),VLOOKUP($M11,TT_Tabelle_Riferimento!$H$31:$I$50,2,FALSE))","v":40},{"$f":"+IFERROR(VLOOKUP(QZ$6&\"-\"&$M11&\"_old\",Ammortamento_Finanziario!$H:$L,5,FALSE),VLOOKUP($M11,TT_Tabelle_Riferimento!$H$31:$I$50,2,FALSE))","v":40},{"$f":"+IFERROR(VLOOKUP(RA$6&\"-\"&$M11&\"_old\",Ammortamento_Finanziario!$H:$L,5,FALSE),VLOOKUP($M11,TT_Tabelle_Riferimento!$H$31:$I$50,2,FALSE))","v":40},{"$f":"+IFERROR(VLOOKUP(RB$6&\"-\"&$M11&\"_old\",Ammortamento_Finanziario!$H:$L,5,FALSE),VLOOKUP($M11,TT_Tabelle_Riferimento!$H$31:$I$50,2,FALSE))","v":40},{"$f":"+IFERROR(VLOOKUP(RC$6&\"-\"&$M11&\"_old\",Ammortamento_Finanziario!$H:$L,5,FALSE),VLOOKUP($M11,TT_Tabelle_Riferimento!$H$31:$I$50,2,FALSE))","v":40},{"$f":"+IFERROR(VLOOKUP(RD$6&\"-\"&$M11&\"_old\",Ammortamento_Finanziario!$H:$L,5,FALSE),VLOOKUP($M11,TT_Tabelle_Riferimento!$H$31:$I$50,2,FALSE))","v":40},{"$f":"+IFERROR(VLOOKUP(RE$6&\"-\"&$M11&\"_old\",Ammortamento_Finanziario!$H:$L,5,FALSE),VLOOKUP($M11,TT_Tabelle_Riferimento!$H$31:$I$50,2,FALSE))","v":40},{"$f":"+IFERROR(VLOOKUP(RF$6&\"-\"&$M11&\"_old\",Ammortamento_Finanziario!$H:$L,5,FALSE),VLOOKUP($M11,TT_Tabelle_Riferimento!$H$31:$I$50,2,FALSE))","v":40},{"$f":"+IFERROR(VLOOKUP(RG$6&\"-\"&$M11&\"_old\",Ammortamento_Finanziario!$H:$L,5,FALSE),VLOOKUP($M11,TT_Tabelle_Riferimento!$H$31:$I$50,2,FALSE))","v":40},{"$f":"+IFERROR(VLOOKUP(RH$6&\"-\"&$M11&\"_old\",Ammortamento_Finanziario!$H:$L,5,FALSE),VLOOKUP($M11,TT_Tabelle_Riferimento!$H$31:$I$50,2,FALSE))","v":40},{"$f":"+IFERROR(VLOOKUP(RI$6&\"-\"&$M11&\"_old\",Ammortamento_Finanziario!$H:$L,5,FALSE),VLOOKUP($M11,TT_Tabelle_Riferimento!$H$31:$I$50,2,FALSE))","v":40},{"$f":"+IFERROR(VLOOKUP(RJ$6&\"-\"&$M11&\"_old\",Ammortamento_Finanziario!$H:$L,5,FALSE),VLOOKUP($M11,TT_Tabelle_Riferimento!$H$31:$I$50,2,FALSE))","v":40},{"$f":"+IFERROR(VLOOKUP(RK$6&\"-\"&$M11&\"_old\",Ammortamento_Finanziario!$H:$L,5,FALSE),VLOOKUP($M11,TT_Tabelle_Riferimento!$H$31:$I$50,2,FALSE))","v":40},{"$f":"+IFERROR(VLOOKUP(RL$6&\"-\"&$M11&\"_old\",Ammortamento_Finanziario!$H:$L,5,FALSE),VLOOKUP($M11,TT_Tabelle_Riferimento!$H$31:$I$50,2,FALSE))","v":40},{"$f":"+IFERROR(VLOOKUP(RM$6&\"-\"&$M11&\"_old\",Ammortamento_Finanziario!$H:$L,5,FALSE),VLOOKUP($M11,TT_Tabelle_Riferimento!$H$31:$I$50,2,FALSE))","v":40},{"$f":"+IFERROR(VLOOKUP(RN$6&\"-\"&$M11&\"_old\",Ammortamento_Finanziario!$H:$L,5,FALSE),VLOOKUP($M11,TT_Tabelle_Riferimento!$H$31:$I$50,2,FALSE))","v":40},{"$f":"+IFERROR(VLOOKUP(RO$6&\"-\"&$M11&\"_old\",Ammortamento_Finanziario!$H:$L,5,FALSE),VLOOKUP($M11,TT_Tabelle_Riferimento!$H$31:$I$50,2,FALSE))","v":40},{"$f":"+IFERROR(VLOOKUP(RP$6&\"-\"&$M11&\"_old\",Ammortamento_Finanziario!$H:$L,5,FALSE),VLOOKUP($M11,TT_Tabelle_Riferimento!$H$31:$I$50,2,FALSE))","v":40},{"$f":"+IFERROR(VLOOKUP(RQ$6&\"-\"&$M11&\"_old\",Ammortamento_Finanziario!$H:$L,5,FALSE),VLOOKUP($M11,TT_Tabelle_Riferimento!$H$31:$I$50,2,FALSE))","v":40},{"$f":"+IFERROR(VLOOKUP(RR$6&\"-\"&$M11&\"_old\",Ammortamento_Finanziario!$H:$L,5,FALSE),VLOOKUP($M11,TT_Tabelle_Riferimento!$H$31:$I$50,2,FALSE))","v":40},{"$f":"+IFERROR(VLOOKUP(RS$6&\"-\"&$M11&\"_old\",Ammortamento_Finanziario!$H:$L,5,FALSE),VLOOKUP($M11,TT_Tabelle_Riferimento!$H$31:$I$50,2,FALSE))","v":40},{"$f":"+IFERROR(VLOOKUP(RT$6&\"-\"&$M11&\"_old\",Ammortamento_Finanziario!$H:$L,5,FALSE),VLOOKUP($M11,TT_Tabelle_Riferimento!$H$31:$I$50,2,FALSE))","v":40},{"$f":"+IFERROR(VLOOKUP(RU$6&\"-\"&$M11&\"_old\",Ammortamento_Finanziario!$H:$L,5,FALSE),VLOOKUP($M11,TT_Tabelle_Riferimento!$H$31:$I$50,2,FALSE))","v":40},{"$f":"+IFERROR(VLOOKUP(RV$6&\"-\"&$M11&\"_old\",Ammortamento_Finanziario!$H:$L,5,FALSE),VLOOKUP($M11,TT_Tabelle_Riferimento!$H$31:$I$50,2,FALSE))","v":40}]
[null,null,null,"CINfp",{"$f":"+SUM(IMN_gestore!$W:$W)","v":0},{"$f":"+SUM(IMN_gestore!$AH:$AH)","v":0},{"$f":"+SUM(IMN_gestore!$AS:$AS)","v":0},{"$f":"+SUM(IMN_gestore!$BD:$BD)","v":0},{"$f":"+SUM(IMN_gestore!BO:BO)","v":0},{"$f":"+SUM(IMN_gestore!$BZ:$BZ)","v":0},null,null,6,{"$f":"+IFERROR(VLOOKUP(N$6&\"-\"&$M12&\"_old\",Ammortamento_Finanziario!$H:$L,5,FALSE),VLOOKUP($M12,TT_Tabelle_Riferimento!$H$31:$I$50,2,FALSE))","v":50},{"$f":"+IFERROR(VLOOKUP(O$6&\"-\"&$M12&\"_old\",Ammortamento_Finanziario!$H:$L,5,FALSE),VLOOKUP($M12,TT_Tabelle_Riferimento!$H$31:$I$50,2,FALSE))","v":50},{"$f":"+IFERROR(VLOOKUP(P$6&\"-\"&$M12&\"_old\",Ammortamento_Finanziario!$H:$L,5,FALSE),VLOOKUP($M12,TT_Tabelle_Riferimento!$H$31:$I$50,2,FALSE))","v":50},{"$f":"+IFERROR(VLOOKUP(Q$6&\"-\"&$M12&\"_old\",Ammortamento_Finanziario!$H:$L,5,FALSE),VLOOKUP($M12,TT_Tabelle_Riferimento!$H$31:$I$50,2,FALSE))","v":50},{"$f":"+IFERROR(VLOOKUP(R$6&\"-\"&$M12&\"_old\",Ammortamento_Finanziario!$H:$L,5,FALSE),VLOOKUP($M12,TT_Tabelle_Riferimento!$H$31:$I$50,2,FALSE))","v":50},{"$f":"+IFERROR(VLOOKUP(S$6&\"-\"&$M12&\"_old\",Ammortamento_Finanziario!$H:$L,5,FALSE),VLOOKUP($M12,TT_Tabelle_Riferimento!$H$31:$I$50,2,FALSE))","v":50},{"$f":"+IFERROR(VLOOKUP(T$6&\"-\"&$M12&\"_old\",Ammortamento_Finanziario!$H:$L,5,FALSE),VLOOKUP($M12,TT_Tabelle_Riferimento!$H$31:$I$50,2,FALSE))","v":50},{"$f":"+IFERROR(VLOOKUP(U$6&\"-\"&$M12&\"_old\",Ammortamento_Finanziario!$H:$L,5,FALSE),VLOOKUP($M12,TT_Tabelle_Riferimento!$H$31:$I$50,2,FALSE))","v":50},{"$f":"+IFERROR(VLOOKUP(V$6&\"-\"&$M12&\"_old\",Ammortamento_Finanziario!$H:$L,5,FALSE),VLOOKUP($M12,TT_Tabelle_Riferimento!$H$31:$I$50,2,FALSE))","v":50},{"$f":"+IFERROR(VLOOKUP(W$6&\"-\"&$M12&\"_old\",Ammortamento_Finanziario!$H:$L,5,FALSE),VLOOKUP($M12,TT_Tabelle_Riferimento!$H$31:$I$50,2,FALSE))","v":50},{"$f":"+IFERROR(VLOOKUP(X$6&\"-\"&$M12&\"_old\",Ammortamento_Finanziario!$H:$L,5,FALSE),VLOOKUP($M12,TT_Tabelle_Riferimento!$H$31:$I$50,2,FALSE))","v":50},{"$f":"+IFERROR(VLOOKUP(Y$6&\"-\"&$M12&\"_old\",Ammortamento_Finanziario!$H:$L,5,FALSE),VLOOKUP($M12,TT_Tabelle_Riferimento!$H$31:$I$50,2,FALSE))","v":50},{"$f":"+IFERROR(VLOOKUP(Z$6&\"-\"&$M12&\"_old\",Ammortamento_Finanziario!$H:$L,5,FALSE),VLOOKUP($M12,TT_Tabelle_Riferimento!$H$31:$I$50,2,FALSE))","v":50},{"$f":"+IFERROR(VLOOKUP(AA$6&\"-\"&$M12&\"_old\",Ammortamento_Finanziario!$H:$L,5,FALSE),VLOOKUP($M12,TT_Tabelle_Riferimento!$H$31:$I$50,2,FALSE))","v":50},{"$f":"+IFERROR(VLOOKUP(AB$6&\"-\"&$M12&\"_old\",Ammortamento_Finanziario!$H:$L,5,FALSE),VLOOKUP($M12,TT_Tabelle_Riferimento!$H$31:$I$50,2,FALSE))","v":50},{"$f":"+IFERROR(VLOOKUP(AC$6&\"-\"&$M12&\"_old\",Ammortamento_Finanziario!$H:$L,5,FALSE),VLOOKUP($M12,TT_Tabelle_Riferimento!$H$31:$I$50,2,FALSE))","v":50},{"$f":"+IFERROR(VLOOKUP(AD$6&\"-\"&$M12&\"_old\",Ammortamento_Finanziario!$H:$L,5,FALSE),VLOOKUP($M12,TT_Tabelle_Riferimento!$H$31:$I$50,2,FALSE))","v":50},{"$f":"+IFERROR(VLOOKUP(AE$6&\"-\"&$M12&\"_old\",Ammortamento_Finanziario!$H:$L,5,FALSE),VLOOKUP($M12,TT_Tabelle_Riferimento!$H$31:$I$50,2,FALSE))","v":50},{"$f":"+IFERROR(VLOOKUP(AF$6&\"-\"&$M12&\"_old\",Ammortamento_Finanziario!$H:$L,5,FALSE),VLOOKUP($M12,TT_Tabelle_Riferimento!$H$31:$I$50,2,FALSE))","v":50},{"$f":"+IFERROR(VLOOKUP(AG$6&\"-\"&$M12&\"_old\",Ammortamento_Finanziario!$H:$L,5,FALSE),VLOOKUP($M12,TT_Tabelle_Riferimento!$H$31:$I$50,2,FALSE))","v":50},{"$f":"+IFERROR(VLOOKUP(AH$6&\"-\"&$M12&\"_old\",Ammortamento_Finanziario!$H:$L,5,FALSE),VLOOKUP($M12,TT_Tabelle_Riferimento!$H$31:$I$50,2,FALSE))","v":50},{"$f":"+IFERROR(VLOOKUP(AI$6&\"-\"&$M12&\"_old\",Ammortamento_Finanziario!$H:$L,5,FALSE),VLOOKUP($M12,TT_Tabelle_Riferimento!$H$31:$I$50,2,FALSE))","v":50},{"$f":"+IFERROR(VLOOKUP(AJ$6&\"-\"&$M12&\"_old\",Ammortamento_Finanziario!$H:$L,5,FALSE),VLOOKUP($M12,TT_Tabelle_Riferimento!$H$31:$I$50,2,FALSE))","v":50},{"$f":"+IFERROR(VLOOKUP(AK$6&\"-\"&$M12&\"_old\",Ammortamento_Finanziario!$H:$L,5,FALSE),VLOOKUP($M12,TT_Tabelle_Riferimento!$H$31:$I$50,2,FALSE))","v":50},{"$f":"+IFERROR(VLOOKUP(AL$6&\"-\"&$M12&\"_old\",Ammortamento_Finanziario!$H:$L,5,FALSE),VLOOKUP($M12,TT_Tabelle_Riferimento!$H$31:$I$50,2,FALSE))","v":50},{"$f":"+IFERROR(VLOOKUP(AM$6&\"-\"&$M12&\"_old\",Ammortamento_Finanziario!$H:$L,5,FALSE),VLOOKUP($M12,TT_Tabelle_Riferimento!$H$31:$I$50,2,FALSE))","v":50},{"$f":"+IFERROR(VLOOKUP(AN$6&\"-\"&$M12&\"_old\",Ammortamento_Finanziario!$H:$L,5,FALSE),VLOOKUP($M12,TT_Tabelle_Riferimento!$H$31:$I$50,2,FALSE))","v":50},{"$f":"+IFERROR(VLOOKUP(AO$6&\"-\"&$M12&\"_old\",Ammortamento_Finanziario!$H:$L,5,FALSE),VLOOKUP($M12,TT_Tabelle_Riferimento!$H$31:$I$50,2,FALSE))","v":50},{"$f":"+IFERROR(VLOOKUP(AP$6&\"-\"&$M12&\"_old\",Ammortamento_Finanziario!$H:$L,5,FALSE),VLOOKUP($M12,TT_Tabelle_Riferimento!$H$31:$I$50,2,FALSE))","v":50},{"$f":"+IFERROR(VLOOKUP(AQ$6&\"-\"&$M12&\"_old\",Ammortamento_Finanziario!$H:$L,5,FALSE),VLOOKUP($M12,TT_Tabelle_Riferimento!$H$31:$I$50,2,FALSE))","v":50},{"$f":"+IFERROR(VLOOKUP(AR$6&\"-\"&$M12&\"_old\",Ammortamento_Finanziario!$H:$L,5,FALSE),VLOOKUP($M12,TT_Tabelle_Riferimento!$H$31:$I$50,2,FALSE))","v":50},{"$f":"+IFERROR(VLOOKUP(AS$6&\"-\"&$M12&\"_old\",Ammortamento_Finanziario!$H:$L,5,FALSE),VLOOKUP($M12,TT_Tabelle_Riferimento!$H$31:$I$50,2,FALSE))","v":50},{"$f":"+IFERROR(VLOOKUP(AT$6&\"-\"&$M12&\"_old\",Ammortamento_Finanziario!$H:$L,5,FALSE),VLOOKUP($M12,TT_Tabelle_Riferimento!$H$31:$I$50,2,FALSE))","v":50},{"$f":"+IFERROR(VLOOKUP(AU$6&\"-\"&$M12&\"_old\",Ammortamento_Finanziario!$H:$L,5,FALSE),VLOOKUP($M12,TT_Tabelle_Riferimento!$H$31:$I$50,2,FALSE))","v":50},{"$f":"+IFERROR(VLOOKUP(AV$6&\"-\"&$M12&\"_old\",Ammortamento_Finanziario!$H:$L,5,FALSE),VLOOKUP($M12,TT_Tabelle_Riferimento!$H$31:$I$50,2,FALSE))","v":50},{"$f":"+IFERROR(VLOOKUP(AW$6&\"-\"&$M12&\"_old\",Ammortamento_Finanziario!$H:$L,5,FALSE),VLOOKUP($M12,TT_Tabelle_Riferimento!$H$31:$I$50,2,FALSE))","v":50},{"$f":"+IFERROR(VLOOKUP(AX$6&\"-\"&$M12&\"_old\",Ammortamento_Finanziario!$H:$L,5,FALSE),VLOOKUP($M12,TT_Tabelle_Riferimento!$H$31:$I$50,2,FALSE))","v":50},{"$f":"+IFERROR(VLOOKUP(AY$6&\"-\"&$M12&\"_old\",Ammortamento_Finanziario!$H:$L,5,FALSE),VLOOKUP($M12,TT_Tabelle_Riferimento!$H$31:$I$50,2,FALSE))","v":50},{"$f":"+IFERROR(VLOOKUP(AZ$6&\"-\"&$M12&\"_old\",Ammortamento_Finanziario!$H:$L,5,FALSE),VLOOKUP($M12,TT_Tabelle_Riferimento!$H$31:$I$50,2,FALSE))","v":50},{"$f":"+IFERROR(VLOOKUP(BA$6&\"-\"&$M12&\"_old\",Ammortamento_Finanziario!$H:$L,5,FALSE),VLOOKUP($M12,TT_Tabelle_Riferimento!$H$31:$I$50,2,FALSE))","v":50},{"$f":"+IFERROR(VLOOKUP(BB$6&\"-\"&$M12&\"_old\",Ammortamento_Finanziario!$H:$L,5,FALSE),VLOOKUP($M12,TT_Tabelle_Riferimento!$H$31:$I$50,2,FALSE))","v":50},{"$f":"+IFERROR(VLOOKUP(BC$6&\"-\"&$M12&\"_old\",Ammortamento_Finanziario!$H:$L,5,FALSE),VLOOKUP($M12,TT_Tabelle_Riferimento!$H$31:$I$50,2,FALSE))","v":50},{"$f":"+IFERROR(VLOOKUP(BD$6&\"-\"&$M12&\"_old\",Ammortamento_Finanziario!$H:$L,5,FALSE),VLOOKUP($M12,TT_Tabelle_Riferimento!$H$31:$I$50,2,FALSE))","v":50},{"$f":"+IFERROR(VLOOKUP(BE$6&\"-\"&$M12&\"_old\",Ammortamento_Finanziario!$H:$L,5,FALSE),VLOOKUP($M12,TT_Tabelle_Riferimento!$H$31:$I$50,2,FALSE))","v":50},{"$f":"+IFERROR(VLOOKUP(BF$6&\"-\"&$M12&\"_old\",Ammortamento_Finanziario!$H:$L,5,FALSE),VLOOKUP($M12,TT_Tabelle_Riferimento!$H$31:$I$50,2,FALSE))","v":50},{"$f":"+IFERROR(VLOOKUP(BG$6&\"-\"&$M12&\"_old\",Ammortamento_Finanziario!$H:$L,5,FALSE),VLOOKUP($M12,TT_Tabelle_Riferimento!$H$31:$I$50,2,FALSE))","v":50},{"$f":"+IFERROR(VLOOKUP(BH$6&\"-\"&$M12&\"_old\",Ammortamento_Finanziario!$H:$L,5,FALSE),VLOOKUP($M12,TT_Tabelle_Riferimento!$H$31:$I$50,2,FALSE))","v":50},{"$f":"+IFERROR(VLOOKUP(BI$6&\"-\"&$M12&\"_old\",Ammortamento_Finanziario!$H:$L,5,FALSE),VLOOKUP($M12,TT_Tabelle_Riferimento!$H$31:$I$50,2,FALSE))","v":50},{"$f":"+IFERROR(VLOOKUP(BJ$6&\"-\"&$M12&\"_old\",Ammortamento_Finanziario!$H:$L,5,FALSE),VLOOKUP($M12,TT_Tabelle_Riferimento!$H$31:$I$50,2,FALSE))","v":50},{"$f":"+IFERROR(VLOOKUP(BK$6&\"-\"&$M12&\"_old\",Ammortamento_Finanziario!$H:$L,5,FALSE),VLOOKUP($M12,TT_Tabelle_Riferimento!$H$31:$I$50,2,FALSE))","v":50},{"$f":"+IFERROR(VLOOKUP(BL$6&\"-\"&$M12&\"_old\",Ammortamento_Finanziario!$H:$L,5,FALSE),VLOOKUP($M12,TT_Tabelle_Riferimento!$H$31:$I$50,2,FALSE))","v":50},{"$f":"+IFERROR(VLOOKUP(BM$6&\"-\"&$M12&\"_old\",Ammortamento_Finanziario!$H:$L,5,FALSE),VLOOKUP($M12,TT_Tabelle_Riferimento!$H$31:$I$50,2,FALSE))","v":50},{"$f":"+IFERROR(VLOOKUP(BN$6&\"-\"&$M12&\"_old\",Ammortamento_Finanziario!$H:$L,5,FALSE),VLOOKUP($M12,TT_Tabelle_Riferimento!$H$31:$I$50,2,FALSE))","v":50},{"$f":"+IFERROR(VLOOKUP(BO$6&\"-\"&$M12&\"_old\",Ammortamento_Finanziario!$H:$L,5,FALSE),VLOOKUP($M12,TT_Tabelle_Riferimento!$H$31:$I$50,2,FALSE))","v":50},{"$f":"+IFERROR(VLOOKUP(BP$6&\"-\"&$M12&\"_old\",Ammortamento_Finanziario!$H:$L,5,FALSE),VLOOKUP($M12,TT_Tabelle_Riferimento!$H$31:$I$50,2,FALSE))","v":50},{"$f":"+IFERROR(VLOOKUP(BQ$6&\"-\"&$M12&\"_old\",Ammortamento_Finanziario!$H:$L,5,FALSE),VLOOKUP($M12,TT_Tabelle_Riferimento!$H$31:$I$50,2,FALSE))","v":50},{"$f":"+IFERROR(VLOOKUP(BR$6&\"-\"&$M12&\"_old\",Ammortamento_Finanziario!$H:$L,5,FALSE),VLOOKUP($M12,TT_Tabelle_Riferimento!$H$31:$I$50,2,FALSE))","v":50},{"$f":"+IFERROR(VLOOKUP(BS$6&\"-\"&$M12&\"_old\",Ammortamento_Finanziario!$H:$L,5,FALSE),VLOOKUP($M12,TT_Tabelle_Riferimento!$H$31:$I$50,2,FALSE))","v":50},{"$f":"+IFERROR(VLOOKUP(BT$6&\"-\"&$M12&\"_old\",Ammortamento_Finanziario!$H:$L,5,FALSE),VLOOKUP($M12,TT_Tabelle_Riferimento!$H$31:$I$50,2,FALSE))","v":50},{"$f":"+IFERROR(VLOOKUP(BU$6&\"-\"&$M12&\"_old\",Ammortamento_Finanziario!$H:$L,5,FALSE),VLOOKUP($M12,TT_Tabelle_Riferimento!$H$31:$I$50,2,FALSE))","v":50},{"$f":"+IFERROR(VLOOKUP(BV$6&\"-\"&$M12&\"_old\",Ammortamento_Finanziario!$H:$L,5,FALSE),VLOOKUP($M12,TT_Tabelle_Riferimento!$H$31:$I$50,2,FALSE))","v":50},{"$f":"+IFERROR(VLOOKUP(BW$6&\"-\"&$M12&\"_old\",Ammortamento_Finanziario!$H:$L,5,FALSE),VLOOKUP($M12,TT_Tabelle_Riferimento!$H$31:$I$50,2,FALSE))","v":50},{"$f":"+IFERROR(VLOOKUP(BX$6&\"-\"&$M12&\"_old\",Ammortamento_Finanziario!$H:$L,5,FALSE),VLOOKUP($M12,TT_Tabelle_Riferimento!$H$31:$I$50,2,FALSE))","v":50},{"$f":"+IFERROR(VLOOKUP(BY$6&\"-\"&$M12&\"_old\",Ammortamento_Finanziario!$H:$L,5,FALSE),VLOOKUP($M12,TT_Tabelle_Riferimento!$H$31:$I$50,2,FALSE))","v":50},{"$f":"+IFERROR(VLOOKUP(BZ$6&\"-\"&$M12&\"_old\",Ammortamento_Finanziario!$H:$L,5,FALSE),VLOOKUP($M12,TT_Tabelle_Riferimento!$H$31:$I$50,2,FALSE))","v":50},{"$f":"+IFERROR(VLOOKUP(CA$6&\"-\"&$M12&\"_old\",Ammortamento_Finanziario!$H:$L,5,FALSE),VLOOKUP($M12,TT_Tabelle_Riferimento!$H$31:$I$50,2,FALSE))","v":50},{"$f":"+IFERROR(VLOOKUP(CB$6&\"-\"&$M12&\"_old\",Ammortamento_Finanziario!$H:$L,5,FALSE),VLOOKUP($M12,TT_Tabelle_Riferimento!$H$31:$I$50,2,FALSE))","v":50},{"$f":"+IFERROR(VLOOKUP(CC$6&\"-\"&$M12&\"_old\",Ammortamento_Finanziario!$H:$L,5,FALSE),VLOOKUP($M12,TT_Tabelle_Riferimento!$H$31:$I$50,2,FALSE))","v":50},{"$f":"+IFERROR(VLOOKUP(CD$6&\"-\"&$M12&\"_old\",Ammortamento_Finanziario!$H:$L,5,FALSE),VLOOKUP($M12,TT_Tabelle_Riferimento!$H$31:$I$50,2,FALSE))","v":50},{"$f":"+IFERROR(VLOOKUP(CE$6&\"-\"&$M12&\"_old\",Ammortamento_Finanziario!$H:$L,5,FALSE),VLOOKUP($M12,TT_Tabelle_Riferimento!$H$31:$I$50,2,FALSE))","v":50},{"$f":"+IFERROR(VLOOKUP(CF$6&\"-\"&$M12&\"_old\",Ammortamento_Finanziario!$H:$L,5,FALSE),VLOOKUP($M12,TT_Tabelle_Riferimento!$H$31:$I$50,2,FALSE))","v":50},{"$f":"+IFERROR(VLOOKUP(CG$6&\"-\"&$M12&\"_old\",Ammortamento_Finanziario!$H:$L,5,FALSE),VLOOKUP($M12,TT_Tabelle_Riferimento!$H$31:$I$50,2,FALSE))","v":50},{"$f":"+IFERROR(VLOOKUP(CH$6&\"-\"&$M12&\"_old\",Ammortamento_Finanziario!$H:$L,5,FALSE),VLOOKUP($M12,TT_Tabelle_Riferimento!$H$31:$I$50,2,FALSE))","v":50},{"$f":"+IFERROR(VLOOKUP(CI$6&\"-\"&$M12&\"_old\",Ammortamento_Finanziario!$H:$L,5,FALSE),VLOOKUP($M12,TT_Tabelle_Riferimento!$H$31:$I$50,2,FALSE))","v":50},{"$f":"+IFERROR(VLOOKUP(CJ$6&\"-\"&$M12&\"_old\",Ammortamento_Finanziario!$H:$L,5,FALSE),VLOOKUP($M12,TT_Tabelle_Riferimento!$H$31:$I$50,2,FALSE))","v":50},{"$f":"+IFERROR(VLOOKUP(CK$6&\"-\"&$M12&\"_old\",Ammortamento_Finanziario!$H:$L,5,FALSE),VLOOKUP($M12,TT_Tabelle_Riferimento!$H$31:$I$50,2,FALSE))","v":50},{"$f":"+IFERROR(VLOOKUP(CL$6&\"-\"&$M12&\"_old\",Ammortamento_Finanziario!$H:$L,5,FALSE),VLOOKUP($M12,TT_Tabelle_Riferimento!$H$31:$I$50,2,FALSE))","v":50},{"$f":"+IFERROR(VLOOKUP(CM$6&\"-\"&$M12&\"_old\",Ammortamento_Finanziario!$H:$L,5,FALSE),VLOOKUP($M12,TT_Tabelle_Riferimento!$H$31:$I$50,2,FALSE))","v":50},{"$f":"+IFERROR(VLOOKUP(CN$6&\"-\"&$M12&\"_old\",Ammortamento_Finanziario!$H:$L,5,FALSE),VLOOKUP($M12,TT_Tabelle_Riferimento!$H$31:$I$50,2,FALSE))","v":50},{"$f":"+IFERROR(VLOOKUP(CO$6&\"-\"&$M12&\"_old\",Ammortamento_Finanziario!$H:$L,5,FALSE),VLOOKUP($M12,TT_Tabelle_Riferimento!$H$31:$I$50,2,FALSE))","v":50},{"$f":"+IFERROR(VLOOKUP(CP$6&\"-\"&$M12&\"_old\",Ammortamento_Finanziario!$H:$L,5,FALSE),VLOOKUP($M12,TT_Tabelle_Riferimento!$H$31:$I$50,2,FALSE))","v":50},{"$f":"+IFERROR(VLOOKUP(CQ$6&\"-\"&$M12&\"_old\",Ammortamento_Finanziario!$H:$L,5,FALSE),VLOOKUP($M12,TT_Tabelle_Riferimento!$H$31:$I$50,2,FALSE))","v":50},{"$f":"+IFERROR(VLOOKUP(CR$6&\"-\"&$M12&\"_old\",Ammortamento_Finanziario!$H:$L,5,FALSE),VLOOKUP($M12,TT_Tabelle_Riferimento!$H$31:$I$50,2,FALSE))","v":50},{"$f":"+IFERROR(VLOOKUP(CS$6&\"-\"&$M12&\"_old\",Ammortamento_Finanziario!$H:$L,5,FALSE),VLOOKUP($M12,TT_Tabelle_Riferimento!$H$31:$I$50,2,FALSE))","v":50},{"$f":"+IFERROR(VLOOKUP(CT$6&\"-\"&$M12&\"_old\",Ammortamento_Finanziario!$H:$L,5,FALSE),VLOOKUP($M12,TT_Tabelle_Riferimento!$H$31:$I$50,2,FALSE))","v":50},{"$f":"+IFERROR(VLOOKUP(CU$6&\"-\"&$M12&\"_old\",Ammortamento_Finanziario!$H:$L,5,FALSE),VLOOKUP($M12,TT_Tabelle_Riferimento!$H$31:$I$50,2,FALSE))","v":50},{"$f":"+IFERROR(VLOOKUP(CV$6&\"-\"&$M12&\"_old\",Ammortamento_Finanziario!$H:$L,5,FALSE),VLOOKUP($M12,TT_Tabelle_Riferimento!$H$31:$I$50,2,FALSE))","v":50},{"$f":"+IFERROR(VLOOKUP(CW$6&\"-\"&$M12&\"_old\",Ammortamento_Finanziario!$H:$L,5,FALSE),VLOOKUP($M12,TT_Tabelle_Riferimento!$H$31:$I$50,2,FALSE))","v":50},{"$f":"+IFERROR(VLOOKUP(CX$6&\"-\"&$M12&\"_old\",Ammortamento_Finanziario!$H:$L,5,FALSE),VLOOKUP($M12,TT_Tabelle_Riferimento!$H$31:$I$50,2,FALSE))","v":50},{"$f":"+IFERROR(VLOOKUP(CY$6&\"-\"&$M12&\"_old\",Ammortamento_Finanziario!$H:$L,5,FALSE),VLOOKUP($M12,TT_Tabelle_Riferimento!$H$31:$I$50,2,FALSE))","v":50},{"$f":"+IFERROR(VLOOKUP(CZ$6&\"-\"&$M12&\"_old\",Ammortamento_Finanziario!$H:$L,5,FALSE),VLOOKUP($M12,TT_Tabelle_Riferimento!$H$31:$I$50,2,FALSE))","v":50},{"$f":"+IFERROR(VLOOKUP(DA$6&\"-\"&$M12&\"_old\",Ammortamento_Finanziario!$H:$L,5,FALSE),VLOOKUP($M12,TT_Tabelle_Riferimento!$H$31:$I$50,2,FALSE))","v":50},{"$f":"+IFERROR(VLOOKUP(DB$6&\"-\"&$M12&\"_old\",Ammortamento_Finanziario!$H:$L,5,FALSE),VLOOKUP($M12,TT_Tabelle_Riferimento!$H$31:$I$50,2,FALSE))","v":50},{"$f":"+IFERROR(VLOOKUP(DC$6&\"-\"&$M12&\"_old\",Ammortamento_Finanziario!$H:$L,5,FALSE),VLOOKUP($M12,TT_Tabelle_Riferimento!$H$31:$I$50,2,FALSE))","v":50},{"$f":"+IFERROR(VLOOKUP(DD$6&\"-\"&$M12&\"_old\",Ammortamento_Finanziario!$H:$L,5,FALSE),VLOOKUP($M12,TT_Tabelle_Riferimento!$H$31:$I$50,2,FALSE))","v":50},{"$f":"+IFERROR(VLOOKUP(DE$6&\"-\"&$M12&\"_old\",Ammortamento_Finanziario!$H:$L,5,FALSE),VLOOKUP($M12,TT_Tabelle_Riferimento!$H$31:$I$50,2,FALSE))","v":50},{"$f":"+IFERROR(VLOOKUP(DF$6&\"-\"&$M12&\"_old\",Ammortamento_Finanziario!$H:$L,5,FALSE),VLOOKUP($M12,TT_Tabelle_Riferimento!$H$31:$I$50,2,FALSE))","v":50},{"$f":"+IFERROR(VLOOKUP(DG$6&\"-\"&$M12&\"_old\",Ammortamento_Finanziario!$H:$L,5,FALSE),VLOOKUP($M12,TT_Tabelle_Riferimento!$H$31:$I$50,2,FALSE))","v":50},{"$f":"+IFERROR(VLOOKUP(DH$6&\"-\"&$M12&\"_old\",Ammortamento_Finanziario!$H:$L,5,FALSE),VLOOKUP($M12,TT_Tabelle_Riferimento!$H$31:$I$50,2,FALSE))","v":50},{"$f":"+IFERROR(VLOOKUP(DI$6&\"-\"&$M12&\"_old\",Ammortamento_Finanziario!$H:$L,5,FALSE),VLOOKUP($M12,TT_Tabelle_Riferimento!$H$31:$I$50,2,FALSE))","v":50},{"$f":"+IFERROR(VLOOKUP(DJ$6&\"-\"&$M12&\"_old\",Ammortamento_Finanziario!$H:$L,5,FALSE),VLOOKUP($M12,TT_Tabelle_Riferimento!$H$31:$I$50,2,FALSE))","v":50},{"$f":"+IFERROR(VLOOKUP(DK$6&\"-\"&$M12&\"_old\",Ammortamento_Finanziario!$H:$L,5,FALSE),VLOOKUP($M12,TT_Tabelle_Riferimento!$H$31:$I$50,2,FALSE))","v":50},{"$f":"+IFERROR(VLOOKUP(DL$6&\"-\"&$M12&\"_old\",Ammortamento_Finanziario!$H:$L,5,FALSE),VLOOKUP($M12,TT_Tabelle_Riferimento!$H$31:$I$50,2,FALSE))","v":50},{"$f":"+IFERROR(VLOOKUP(DM$6&\"-\"&$M12&\"_old\",Ammortamento_Finanziario!$H:$L,5,FALSE),VLOOKUP($M12,TT_Tabelle_Riferimento!$H$31:$I$50,2,FALSE))","v":50},{"$f":"+IFERROR(VLOOKUP(DN$6&\"-\"&$M12&\"_old\",Ammortamento_Finanziario!$H:$L,5,FALSE),VLOOKUP($M12,TT_Tabelle_Riferimento!$H$31:$I$50,2,FALSE))","v":50},{"$f":"+IFERROR(VLOOKUP(DO$6&\"-\"&$M12&\"_old\",Ammortamento_Finanziario!$H:$L,5,FALSE),VLOOKUP($M12,TT_Tabelle_Riferimento!$H$31:$I$50,2,FALSE))","v":50},{"$f":"+IFERROR(VLOOKUP(DP$6&\"-\"&$M12&\"_old\",Ammortamento_Finanziario!$H:$L,5,FALSE),VLOOKUP($M12,TT_Tabelle_Riferimento!$H$31:$I$50,2,FALSE))","v":50},{"$f":"+IFERROR(VLOOKUP(DQ$6&\"-\"&$M12&\"_old\",Ammortamento_Finanziario!$H:$L,5,FALSE),VLOOKUP($M12,TT_Tabelle_Riferimento!$H$31:$I$50,2,FALSE))","v":50},{"$f":"+IFERROR(VLOOKUP(DR$6&\"-\"&$M12&\"_old\",Ammortamento_Finanziario!$H:$L,5,FALSE),VLOOKUP($M12,TT_Tabelle_Riferimento!$H$31:$I$50,2,FALSE))","v":50},{"$f":"+IFERROR(VLOOKUP(DS$6&\"-\"&$M12&\"_old\",Ammortamento_Finanziario!$H:$L,5,FALSE),VLOOKUP($M12,TT_Tabelle_Riferimento!$H$31:$I$50,2,FALSE))","v":50},{"$f":"+IFERROR(VLOOKUP(DT$6&\"-\"&$M12&\"_old\",Ammortamento_Finanziario!$H:$L,5,FALSE),VLOOKUP($M12,TT_Tabelle_Riferimento!$H$31:$I$50,2,FALSE))","v":50},{"$f":"+IFERROR(VLOOKUP(DU$6&\"-\"&$M12&\"_old\",Ammortamento_Finanziario!$H:$L,5,FALSE),VLOOKUP($M12,TT_Tabelle_Riferimento!$H$31:$I$50,2,FALSE))","v":50},{"$f":"+IFERROR(VLOOKUP(DV$6&\"-\"&$M12&\"_old\",Ammortamento_Finanziario!$H:$L,5,FALSE),VLOOKUP($M12,TT_Tabelle_Riferimento!$H$31:$I$50,2,FALSE))","v":50},{"$f":"+IFERROR(VLOOKUP(DW$6&\"-\"&$M12&\"_old\",Ammortamento_Finanziario!$H:$L,5,FALSE),VLOOKUP($M12,TT_Tabelle_Riferimento!$H$31:$I$50,2,FALSE))","v":50},{"$f":"+IFERROR(VLOOKUP(DX$6&\"-\"&$M12&\"_old\",Ammortamento_Finanziario!$H:$L,5,FALSE),VLOOKUP($M12,TT_Tabelle_Riferimento!$H$31:$I$50,2,FALSE))","v":50},{"$f":"+IFERROR(VLOOKUP(DY$6&\"-\"&$M12&\"_old\",Ammortamento_Finanziario!$H:$L,5,FALSE),VLOOKUP($M12,TT_Tabelle_Riferimento!$H$31:$I$50,2,FALSE))","v":50},{"$f":"+IFERROR(VLOOKUP(DZ$6&\"-\"&$M12&\"_old\",Ammortamento_Finanziario!$H:$L,5,FALSE),VLOOKUP($M12,TT_Tabelle_Riferimento!$H$31:$I$50,2,FALSE))","v":50},{"$f":"+IFERROR(VLOOKUP(EA$6&\"-\"&$M12&\"_old\",Ammortamento_Finanziario!$H:$L,5,FALSE),VLOOKUP($M12,TT_Tabelle_Riferimento!$H$31:$I$50,2,FALSE))","v":50},{"$f":"+IFERROR(VLOOKUP(EB$6&\"-\"&$M12&\"_old\",Ammortamento_Finanziario!$H:$L,5,FALSE),VLOOKUP($M12,TT_Tabelle_Riferimento!$H$31:$I$50,2,FALSE))","v":50},{"$f":"+IFERROR(VLOOKUP(EC$6&\"-\"&$M12&\"_old\",Ammortamento_Finanziario!$H:$L,5,FALSE),VLOOKUP($M12,TT_Tabelle_Riferimento!$H$31:$I$50,2,FALSE))","v":50},{"$f":"+IFERROR(VLOOKUP(ED$6&\"-\"&$M12&\"_old\",Ammortamento_Finanziario!$H:$L,5,FALSE),VLOOKUP($M12,TT_Tabelle_Riferimento!$H$31:$I$50,2,FALSE))","v":50},{"$f":"+IFERROR(VLOOKUP(EE$6&\"-\"&$M12&\"_old\",Ammortamento_Finanziario!$H:$L,5,FALSE),VLOOKUP($M12,TT_Tabelle_Riferimento!$H$31:$I$50,2,FALSE))","v":50},{"$f":"+IFERROR(VLOOKUP(EF$6&\"-\"&$M12&\"_old\",Ammortamento_Finanziario!$H:$L,5,FALSE),VLOOKUP($M12,TT_Tabelle_Riferimento!$H$31:$I$50,2,FALSE))","v":50},{"$f":"+IFERROR(VLOOKUP(EG$6&\"-\"&$M12&\"_old\",Ammortamento_Finanziario!$H:$L,5,FALSE),VLOOKUP($M12,TT_Tabelle_Riferimento!$H$31:$I$50,2,FALSE))","v":50},{"$f":"+IFERROR(VLOOKUP(EH$6&\"-\"&$M12&\"_old\",Ammortamento_Finanziario!$H:$L,5,FALSE),VLOOKUP($M12,TT_Tabelle_Riferimento!$H$31:$I$50,2,FALSE))","v":50},{"$f":"+IFERROR(VLOOKUP(EI$6&\"-\"&$M12&\"_old\",Ammortamento_Finanziario!$H:$L,5,FALSE),VLOOKUP($M12,TT_Tabelle_Riferimento!$H$31:$I$50,2,FALSE))","v":50},{"$f":"+IFERROR(VLOOKUP(EJ$6&\"-\"&$M12&\"_old\",Ammortamento_Finanziario!$H:$L,5,FALSE),VLOOKUP($M12,TT_Tabelle_Riferimento!$H$31:$I$50,2,FALSE))","v":50},{"$f":"+IFERROR(VLOOKUP(EK$6&\"-\"&$M12&\"_old\",Ammortamento_Finanziario!$H:$L,5,FALSE),VLOOKUP($M12,TT_Tabelle_Riferimento!$H$31:$I$50,2,FALSE))","v":50},{"$f":"+IFERROR(VLOOKUP(EL$6&\"-\"&$M12&\"_old\",Ammortamento_Finanziario!$H:$L,5,FALSE),VLOOKUP($M12,TT_Tabelle_Riferimento!$H$31:$I$50,2,FALSE))","v":50},{"$f":"+IFERROR(VLOOKUP(EM$6&\"-\"&$M12&\"_old\",Ammortamento_Finanziario!$H:$L,5,FALSE),VLOOKUP($M12,TT_Tabelle_Riferimento!$H$31:$I$50,2,FALSE))","v":50},{"$f":"+IFERROR(VLOOKUP(EN$6&\"-\"&$M12&\"_old\",Ammortamento_Finanziario!$H:$L,5,FALSE),VLOOKUP($M12,TT_Tabelle_Riferimento!$H$31:$I$50,2,FALSE))","v":50},{"$f":"+IFERROR(VLOOKUP(EO$6&\"-\"&$M12&\"_old\",Ammortamento_Finanziario!$H:$L,5,FALSE),VLOOKUP($M12,TT_Tabelle_Riferimento!$H$31:$I$50,2,FALSE))","v":50},{"$f":"+IFERROR(VLOOKUP(EP$6&\"-\"&$M12&\"_old\",Ammortamento_Finanziario!$H:$L,5,FALSE),VLOOKUP($M12,TT_Tabelle_Riferimento!$H$31:$I$50,2,FALSE))","v":50},{"$f":"+IFERROR(VLOOKUP(EQ$6&\"-\"&$M12&\"_old\",Ammortamento_Finanziario!$H:$L,5,FALSE),VLOOKUP($M12,TT_Tabelle_Riferimento!$H$31:$I$50,2,FALSE))","v":50},{"$f":"+IFERROR(VLOOKUP(ER$6&\"-\"&$M12&\"_old\",Ammortamento_Finanziario!$H:$L,5,FALSE),VLOOKUP($M12,TT_Tabelle_Riferimento!$H$31:$I$50,2,FALSE))","v":50},{"$f":"+IFERROR(VLOOKUP(ES$6&\"-\"&$M12&\"_old\",Ammortamento_Finanziario!$H:$L,5,FALSE),VLOOKUP($M12,TT_Tabelle_Riferimento!$H$31:$I$50,2,FALSE))","v":50},{"$f":"+IFERROR(VLOOKUP(ET$6&\"-\"&$M12&\"_old\",Ammortamento_Finanziario!$H:$L,5,FALSE),VLOOKUP($M12,TT_Tabelle_Riferimento!$H$31:$I$50,2,FALSE))","v":50},{"$f":"+IFERROR(VLOOKUP(EU$6&\"-\"&$M12&\"_old\",Ammortamento_Finanziario!$H:$L,5,FALSE),VLOOKUP($M12,TT_Tabelle_Riferimento!$H$31:$I$50,2,FALSE))","v":50},{"$f":"+IFERROR(VLOOKUP(EV$6&\"-\"&$M12&\"_old\",Ammortamento_Finanziario!$H:$L,5,FALSE),VLOOKUP($M12,TT_Tabelle_Riferimento!$H$31:$I$50,2,FALSE))","v":50},{"$f":"+IFERROR(VLOOKUP(EW$6&\"-\"&$M12&\"_old\",Ammortamento_Finanziario!$H:$L,5,FALSE),VLOOKUP($M12,TT_Tabelle_Riferimento!$H$31:$I$50,2,FALSE))","v":50},{"$f":"+IFERROR(VLOOKUP(EX$6&\"-\"&$M12&\"_old\",Ammortamento_Finanziario!$H:$L,5,FALSE),VLOOKUP($M12,TT_Tabelle_Riferimento!$H$31:$I$50,2,FALSE))","v":50},{"$f":"+IFERROR(VLOOKUP(EY$6&\"-\"&$M12&\"_old\",Ammortamento_Finanziario!$H:$L,5,FALSE),VLOOKUP($M12,TT_Tabelle_Riferimento!$H$31:$I$50,2,FALSE))","v":50},{"$f":"+IFERROR(VLOOKUP(EZ$6&\"-\"&$M12&\"_old\",Ammortamento_Finanziario!$H:$L,5,FALSE),VLOOKUP($M12,TT_Tabelle_Riferimento!$H$31:$I$50,2,FALSE))","v":50},{"$f":"+IFERROR(VLOOKUP(FA$6&\"-\"&$M12&\"_old\",Ammortamento_Finanziario!$H:$L,5,FALSE),VLOOKUP($M12,TT_Tabelle_Riferimento!$H$31:$I$50,2,FALSE))","v":50},{"$f":"+IFERROR(VLOOKUP(FB$6&\"-\"&$M12&\"_old\",Ammortamento_Finanziario!$H:$L,5,FALSE),VLOOKUP($M12,TT_Tabelle_Riferimento!$H$31:$I$50,2,FALSE))","v":50},{"$f":"+IFERROR(VLOOKUP(FC$6&\"-\"&$M12&\"_old\",Ammortamento_Finanziario!$H:$L,5,FALSE),VLOOKUP($M12,TT_Tabelle_Riferimento!$H$31:$I$50,2,FALSE))","v":50},{"$f":"+IFERROR(VLOOKUP(FD$6&\"-\"&$M12&\"_old\",Ammortamento_Finanziario!$H:$L,5,FALSE),VLOOKUP($M12,TT_Tabelle_Riferimento!$H$31:$I$50,2,FALSE))","v":50},{"$f":"+IFERROR(VLOOKUP(FE$6&\"-\"&$M12&\"_old\",Ammortamento_Finanziario!$H:$L,5,FALSE),VLOOKUP($M12,TT_Tabelle_Riferimento!$H$31:$I$50,2,FALSE))","v":50},{"$f":"+IFERROR(VLOOKUP(FF$6&\"-\"&$M12&\"_old\",Ammortamento_Finanziario!$H:$L,5,FALSE),VLOOKUP($M12,TT_Tabelle_Riferimento!$H$31:$I$50,2,FALSE))","v":50},{"$f":"+IFERROR(VLOOKUP(FG$6&\"-\"&$M12&\"_old\",Ammortamento_Finanziario!$H:$L,5,FALSE),VLOOKUP($M12,TT_Tabelle_Riferimento!$H$31:$I$50,2,FALSE))","v":50},{"$f":"+IFERROR(VLOOKUP(FH$6&\"-\"&$M12&\"_old\",Ammortamento_Finanziario!$H:$L,5,FALSE),VLOOKUP($M12,TT_Tabelle_Riferimento!$H$31:$I$50,2,FALSE))","v":50},{"$f":"+IFERROR(VLOOKUP(FI$6&\"-\"&$M12&\"_old\",Ammortamento_Finanziario!$H:$L,5,FALSE),VLOOKUP($M12,TT_Tabelle_Riferimento!$H$31:$I$50,2,FALSE))","v":50},{"$f":"+IFERROR(VLOOKUP(FJ$6&\"-\"&$M12&\"_old\",Ammortamento_Finanziario!$H:$L,5,FALSE),VLOOKUP($M12,TT_Tabelle_Riferimento!$H$31:$I$50,2,FALSE))","v":50},{"$f":"+IFERROR(VLOOKUP(FK$6&\"-\"&$M12&\"_old\",Ammortamento_Finanziario!$H:$L,5,FALSE),VLOOKUP($M12,TT_Tabelle_Riferimento!$H$31:$I$50,2,FALSE))","v":50},{"$f":"+IFERROR(VLOOKUP(FL$6&\"-\"&$M12&\"_old\",Ammortamento_Finanziario!$H:$L,5,FALSE),VLOOKUP($M12,TT_Tabelle_Riferimento!$H$31:$I$50,2,FALSE))","v":50},{"$f":"+IFERROR(VLOOKUP(FM$6&\"-\"&$M12&\"_old\",Ammortamento_Finanziario!$H:$L,5,FALSE),VLOOKUP($M12,TT_Tabelle_Riferimento!$H$31:$I$50,2,FALSE))","v":50},{"$f":"+IFERROR(VLOOKUP(FN$6&\"-\"&$M12&\"_old\",Ammortamento_Finanziario!$H:$L,5,FALSE),VLOOKUP($M12,TT_Tabelle_Riferimento!$H$31:$I$50,2,FALSE))","v":50},{"$f":"+IFERROR(VLOOKUP(FO$6&\"-\"&$M12&\"_old\",Ammortamento_Finanziario!$H:$L,5,FALSE),VLOOKUP($M12,TT_Tabelle_Riferimento!$H$31:$I$50,2,FALSE))","v":50},{"$f":"+IFERROR(VLOOKUP(FP$6&\"-\"&$M12&\"_old\",Ammortamento_Finanziario!$H:$L,5,FALSE),VLOOKUP($M12,TT_Tabelle_Riferimento!$H$31:$I$50,2,FALSE))","v":50},{"$f":"+IFERROR(VLOOKUP(FQ$6&\"-\"&$M12&\"_old\",Ammortamento_Finanziario!$H:$L,5,FALSE),VLOOKUP($M12,TT_Tabelle_Riferimento!$H$31:$I$50,2,FALSE))","v":50},{"$f":"+IFERROR(VLOOKUP(FR$6&\"-\"&$M12&\"_old\",Ammortamento_Finanziario!$H:$L,5,FALSE),VLOOKUP($M12,TT_Tabelle_Riferimento!$H$31:$I$50,2,FALSE))","v":50},{"$f":"+IFERROR(VLOOKUP(FS$6&\"-\"&$M12&\"_old\",Ammortamento_Finanziario!$H:$L,5,FALSE),VLOOKUP($M12,TT_Tabelle_Riferimento!$H$31:$I$50,2,FALSE))","v":50},{"$f":"+IFERROR(VLOOKUP(FT$6&\"-\"&$M12&\"_old\",Ammortamento_Finanziario!$H:$L,5,FALSE),VLOOKUP($M12,TT_Tabelle_Riferimento!$H$31:$I$50,2,FALSE))","v":50},{"$f":"+IFERROR(VLOOKUP(FU$6&\"-\"&$M12&\"_old\",Ammortamento_Finanziario!$H:$L,5,FALSE),VLOOKUP($M12,TT_Tabelle_Riferimento!$H$31:$I$50,2,FALSE))","v":50},{"$f":"+IFERROR(VLOOKUP(FV$6&\"-\"&$M12&\"_old\",Ammortamento_Finanziario!$H:$L,5,FALSE),VLOOKUP($M12,TT_Tabelle_Riferimento!$H$31:$I$50,2,FALSE))","v":50},{"$f":"+IFERROR(VLOOKUP(FW$6&\"-\"&$M12&\"_old\",Ammortamento_Finanziario!$H:$L,5,FALSE),VLOOKUP($M12,TT_Tabelle_Riferimento!$H$31:$I$50,2,FALSE))","v":50},{"$f":"+IFERROR(VLOOKUP(FX$6&\"-\"&$M12&\"_old\",Ammortamento_Finanziario!$H:$L,5,FALSE),VLOOKUP($M12,TT_Tabelle_Riferimento!$H$31:$I$50,2,FALSE))","v":50},{"$f":"+IFERROR(VLOOKUP(FY$6&\"-\"&$M12&\"_old\",Ammortamento_Finanziario!$H:$L,5,FALSE),VLOOKUP($M12,TT_Tabelle_Riferimento!$H$31:$I$50,2,FALSE))","v":50},{"$f":"+IFERROR(VLOOKUP(FZ$6&\"-\"&$M12&\"_old\",Ammortamento_Finanziario!$H:$L,5,FALSE),VLOOKUP($M12,TT_Tabelle_Riferimento!$H$31:$I$50,2,FALSE))","v":50},{"$f":"+IFERROR(VLOOKUP(GA$6&\"-\"&$M12&\"_old\",Ammortamento_Finanziario!$H:$L,5,FALSE),VLOOKUP($M12,TT_Tabelle_Riferimento!$H$31:$I$50,2,FALSE))","v":50},{"$f":"+IFERROR(VLOOKUP(GB$6&\"-\"&$M12&\"_old\",Ammortamento_Finanziario!$H:$L,5,FALSE),VLOOKUP($M12,TT_Tabelle_Riferimento!$H$31:$I$50,2,FALSE))","v":50},{"$f":"+IFERROR(VLOOKUP(GC$6&\"-\"&$M12&\"_old\",Ammortamento_Finanziario!$H:$L,5,FALSE),VLOOKUP($M12,TT_Tabelle_Riferimento!$H$31:$I$50,2,FALSE))","v":50},{"$f":"+IFERROR(VLOOKUP(GD$6&\"-\"&$M12&\"_old\",Ammortamento_Finanziario!$H:$L,5,FALSE),VLOOKUP($M12,TT_Tabelle_Riferimento!$H$31:$I$50,2,FALSE))","v":50},{"$f":"+IFERROR(VLOOKUP(GE$6&\"-\"&$M12&\"_old\",Ammortamento_Finanziario!$H:$L,5,FALSE),VLOOKUP($M12,TT_Tabelle_Riferimento!$H$31:$I$50,2,FALSE))","v":50},{"$f":"+IFERROR(VLOOKUP(GF$6&\"-\"&$M12&\"_old\",Ammortamento_Finanziario!$H:$L,5,FALSE),VLOOKUP($M12,TT_Tabelle_Riferimento!$H$31:$I$50,2,FALSE))","v":50},{"$f":"+IFERROR(VLOOKUP(GG$6&\"-\"&$M12&\"_old\",Ammortamento_Finanziario!$H:$L,5,FALSE),VLOOKUP($M12,TT_Tabelle_Riferimento!$H$31:$I$50,2,FALSE))","v":50},{"$f":"+IFERROR(VLOOKUP(GH$6&\"-\"&$M12&\"_old\",Ammortamento_Finanziario!$H:$L,5,FALSE),VLOOKUP($M12,TT_Tabelle_Riferimento!$H$31:$I$50,2,FALSE))","v":50},{"$f":"+IFERROR(VLOOKUP(GI$6&\"-\"&$M12&\"_old\",Ammortamento_Finanziario!$H:$L,5,FALSE),VLOOKUP($M12,TT_Tabelle_Riferimento!$H$31:$I$50,2,FALSE))","v":50},{"$f":"+IFERROR(VLOOKUP(GJ$6&\"-\"&$M12&\"_old\",Ammortamento_Finanziario!$H:$L,5,FALSE),VLOOKUP($M12,TT_Tabelle_Riferimento!$H$31:$I$50,2,FALSE))","v":50},{"$f":"+IFERROR(VLOOKUP(GK$6&\"-\"&$M12&\"_old\",Ammortamento_Finanziario!$H:$L,5,FALSE),VLOOKUP($M12,TT_Tabelle_Riferimento!$H$31:$I$50,2,FALSE))","v":50},{"$f":"+IFERROR(VLOOKUP(GL$6&\"-\"&$M12&\"_old\",Ammortamento_Finanziario!$H:$L,5,FALSE),VLOOKUP($M12,TT_Tabelle_Riferimento!$H$31:$I$50,2,FALSE))","v":50},{"$f":"+IFERROR(VLOOKUP(GM$6&\"-\"&$M12&\"_old\",Ammortamento_Finanziario!$H:$L,5,FALSE),VLOOKUP($M12,TT_Tabelle_Riferimento!$H$31:$I$50,2,FALSE))","v":50},{"$f":"+IFERROR(VLOOKUP(GN$6&\"-\"&$M12&\"_old\",Ammortamento_Finanziario!$H:$L,5,FALSE),VLOOKUP($M12,TT_Tabelle_Riferimento!$H$31:$I$50,2,FALSE))","v":50},{"$f":"+IFERROR(VLOOKUP(GO$6&\"-\"&$M12&\"_old\",Ammortamento_Finanziario!$H:$L,5,FALSE),VLOOKUP($M12,TT_Tabelle_Riferimento!$H$31:$I$50,2,FALSE))","v":50},{"$f":"+IFERROR(VLOOKUP(GP$6&\"-\"&$M12&\"_old\",Ammortamento_Finanziario!$H:$L,5,FALSE),VLOOKUP($M12,TT_Tabelle_Riferimento!$H$31:$I$50,2,FALSE))","v":50},{"$f":"+IFERROR(VLOOKUP(GQ$6&\"-\"&$M12&\"_old\",Ammortamento_Finanziario!$H:$L,5,FALSE),VLOOKUP($M12,TT_Tabelle_Riferimento!$H$31:$I$50,2,FALSE))","v":50},{"$f":"+IFERROR(VLOOKUP(GR$6&\"-\"&$M12&\"_old\",Ammortamento_Finanziario!$H:$L,5,FALSE),VLOOKUP($M12,TT_Tabelle_Riferimento!$H$31:$I$50,2,FALSE))","v":50},{"$f":"+IFERROR(VLOOKUP(GS$6&\"-\"&$M12&\"_old\",Ammortamento_Finanziario!$H:$L,5,FALSE),VLOOKUP($M12,TT_Tabelle_Riferimento!$H$31:$I$50,2,FALSE))","v":50},{"$f":"+IFERROR(VLOOKUP(GT$6&\"-\"&$M12&\"_old\",Ammortamento_Finanziario!$H:$L,5,FALSE),VLOOKUP($M12,TT_Tabelle_Riferimento!$H$31:$I$50,2,FALSE))","v":50},{"$f":"+IFERROR(VLOOKUP(GU$6&\"-\"&$M12&\"_old\",Ammortamento_Finanziario!$H:$L,5,FALSE),VLOOKUP($M12,TT_Tabelle_Riferimento!$H$31:$I$50,2,FALSE))","v":50},{"$f":"+IFERROR(VLOOKUP(GV$6&\"-\"&$M12&\"_old\",Ammortamento_Finanziario!$H:$L,5,FALSE),VLOOKUP($M12,TT_Tabelle_Riferimento!$H$31:$I$50,2,FALSE))","v":50},{"$f":"+IFERROR(VLOOKUP(GW$6&\"-\"&$M12&\"_old\",Ammortamento_Finanziario!$H:$L,5,FALSE),VLOOKUP($M12,TT_Tabelle_Riferimento!$H$31:$I$50,2,FALSE))","v":50},{"$f":"+IFERROR(VLOOKUP(GX$6&\"-\"&$M12&\"_old\",Ammortamento_Finanziario!$H:$L,5,FALSE),VLOOKUP($M12,TT_Tabelle_Riferimento!$H$31:$I$50,2,FALSE))","v":50},{"$f":"+IFERROR(VLOOKUP(GY$6&\"-\"&$M12&\"_old\",Ammortamento_Finanziario!$H:$L,5,FALSE),VLOOKUP($M12,TT_Tabelle_Riferimento!$H$31:$I$50,2,FALSE))","v":50},{"$f":"+IFERROR(VLOOKUP(GZ$6&\"-\"&$M12&\"_old\",Ammortamento_Finanziario!$H:$L,5,FALSE),VLOOKUP($M12,TT_Tabelle_Riferimento!$H$31:$I$50,2,FALSE))","v":50},{"$f":"+IFERROR(VLOOKUP(HA$6&\"-\"&$M12&\"_old\",Ammortamento_Finanziario!$H:$L,5,FALSE),VLOOKUP($M12,TT_Tabelle_Riferimento!$H$31:$I$50,2,FALSE))","v":50},{"$f":"+IFERROR(VLOOKUP(HB$6&\"-\"&$M12&\"_old\",Ammortamento_Finanziario!$H:$L,5,FALSE),VLOOKUP($M12,TT_Tabelle_Riferimento!$H$31:$I$50,2,FALSE))","v":50},{"$f":"+IFERROR(VLOOKUP(HC$6&\"-\"&$M12&\"_old\",Ammortamento_Finanziario!$H:$L,5,FALSE),VLOOKUP($M12,TT_Tabelle_Riferimento!$H$31:$I$50,2,FALSE))","v":50},{"$f":"+IFERROR(VLOOKUP(HD$6&\"-\"&$M12&\"_old\",Ammortamento_Finanziario!$H:$L,5,FALSE),VLOOKUP($M12,TT_Tabelle_Riferimento!$H$31:$I$50,2,FALSE))","v":50},{"$f":"+IFERROR(VLOOKUP(HE$6&\"-\"&$M12&\"_old\",Ammortamento_Finanziario!$H:$L,5,FALSE),VLOOKUP($M12,TT_Tabelle_Riferimento!$H$31:$I$50,2,FALSE))","v":50},{"$f":"+IFERROR(VLOOKUP(HF$6&\"-\"&$M12&\"_old\",Ammortamento_Finanziario!$H:$L,5,FALSE),VLOOKUP($M12,TT_Tabelle_Riferimento!$H$31:$I$50,2,FALSE))","v":50},{"$f":"+IFERROR(VLOOKUP(HG$6&\"-\"&$M12&\"_old\",Ammortamento_Finanziario!$H:$L,5,FALSE),VLOOKUP($M12,TT_Tabelle_Riferimento!$H$31:$I$50,2,FALSE))","v":50},{"$f":"+IFERROR(VLOOKUP(HH$6&\"-\"&$M12&\"_old\",Ammortamento_Finanziario!$H:$L,5,FALSE),VLOOKUP($M12,TT_Tabelle_Riferimento!$H$31:$I$50,2,FALSE))","v":50},{"$f":"+IFERROR(VLOOKUP(HI$6&\"-\"&$M12&\"_old\",Ammortamento_Finanziario!$H:$L,5,FALSE),VLOOKUP($M12,TT_Tabelle_Riferimento!$H$31:$I$50,2,FALSE))","v":50},{"$f":"+IFERROR(VLOOKUP(HJ$6&\"-\"&$M12&\"_old\",Ammortamento_Finanziario!$H:$L,5,FALSE),VLOOKUP($M12,TT_Tabelle_Riferimento!$H$31:$I$50,2,FALSE))","v":50},{"$f":"+IFERROR(VLOOKUP(HK$6&\"-\"&$M12&\"_old\",Ammortamento_Finanziario!$H:$L,5,FALSE),VLOOKUP($M12,TT_Tabelle_Riferimento!$H$31:$I$50,2,FALSE))","v":50},{"$f":"+IFERROR(VLOOKUP(HL$6&\"-\"&$M12&\"_old\",Ammortamento_Finanziario!$H:$L,5,FALSE),VLOOKUP($M12,TT_Tabelle_Riferimento!$H$31:$I$50,2,FALSE))","v":50},{"$f":"+IFERROR(VLOOKUP(HM$6&\"-\"&$M12&\"_old\",Ammortamento_Finanziario!$H:$L,5,FALSE),VLOOKUP($M12,TT_Tabelle_Riferimento!$H$31:$I$50,2,FALSE))","v":50},{"$f":"+IFERROR(VLOOKUP(HN$6&\"-\"&$M12&\"_old\",Ammortamento_Finanziario!$H:$L,5,FALSE),VLOOKUP($M12,TT_Tabelle_Riferimento!$H$31:$I$50,2,FALSE))","v":50},{"$f":"+IFERROR(VLOOKUP(HO$6&\"-\"&$M12&\"_old\",Ammortamento_Finanziario!$H:$L,5,FALSE),VLOOKUP($M12,TT_Tabelle_Riferimento!$H$31:$I$50,2,FALSE))","v":50},{"$f":"+IFERROR(VLOOKUP(HP$6&\"-\"&$M12&\"_old\",Ammortamento_Finanziario!$H:$L,5,FALSE),VLOOKUP($M12,TT_Tabelle_Riferimento!$H$31:$I$50,2,FALSE))","v":50},{"$f":"+IFERROR(VLOOKUP(HQ$6&\"-\"&$M12&\"_old\",Ammortamento_Finanziario!$H:$L,5,FALSE),VLOOKUP($M12,TT_Tabelle_Riferimento!$H$31:$I$50,2,FALSE))","v":50},{"$f":"+IFERROR(VLOOKUP(HR$6&\"-\"&$M12&\"_old\",Ammortamento_Finanziario!$H:$L,5,FALSE),VLOOKUP($M12,TT_Tabelle_Riferimento!$H$31:$I$50,2,FALSE))","v":50},{"$f":"+IFERROR(VLOOKUP(HS$6&\"-\"&$M12&\"_old\",Ammortamento_Finanziario!$H:$L,5,FALSE),VLOOKUP($M12,TT_Tabelle_Riferimento!$H$31:$I$50,2,FALSE))","v":50},{"$f":"+IFERROR(VLOOKUP(HT$6&\"-\"&$M12&\"_old\",Ammortamento_Finanziario!$H:$L,5,FALSE),VLOOKUP($M12,TT_Tabelle_Riferimento!$H$31:$I$50,2,FALSE))","v":50},{"$f":"+IFERROR(VLOOKUP(HU$6&\"-\"&$M12&\"_old\",Ammortamento_Finanziario!$H:$L,5,FALSE),VLOOKUP($M12,TT_Tabelle_Riferimento!$H$31:$I$50,2,FALSE))","v":50},{"$f":"+IFERROR(VLOOKUP(HV$6&\"-\"&$M12&\"_old\",Ammortamento_Finanziario!$H:$L,5,FALSE),VLOOKUP($M12,TT_Tabelle_Riferimento!$H$31:$I$50,2,FALSE))","v":50},{"$f":"+IFERROR(VLOOKUP(HW$6&\"-\"&$M12&\"_old\",Ammortamento_Finanziario!$H:$L,5,FALSE),VLOOKUP($M12,TT_Tabelle_Riferimento!$H$31:$I$50,2,FALSE))","v":50},{"$f":"+IFERROR(VLOOKUP(HX$6&\"-\"&$M12&\"_old\",Ammortamento_Finanziario!$H:$L,5,FALSE),VLOOKUP($M12,TT_Tabelle_Riferimento!$H$31:$I$50,2,FALSE))","v":50},{"$f":"+IFERROR(VLOOKUP(HY$6&\"-\"&$M12&\"_old\",Ammortamento_Finanziario!$H:$L,5,FALSE),VLOOKUP($M12,TT_Tabelle_Riferimento!$H$31:$I$50,2,FALSE))","v":50},{"$f":"+IFERROR(VLOOKUP(HZ$6&\"-\"&$M12&\"_old\",Ammortamento_Finanziario!$H:$L,5,FALSE),VLOOKUP($M12,TT_Tabelle_Riferimento!$H$31:$I$50,2,FALSE))","v":50},{"$f":"+IFERROR(VLOOKUP(IA$6&\"-\"&$M12&\"_old\",Ammortamento_Finanziario!$H:$L,5,FALSE),VLOOKUP($M12,TT_Tabelle_Riferimento!$H$31:$I$50,2,FALSE))","v":50},{"$f":"+IFERROR(VLOOKUP(IB$6&\"-\"&$M12&\"_old\",Ammortamento_Finanziario!$H:$L,5,FALSE),VLOOKUP($M12,TT_Tabelle_Riferimento!$H$31:$I$50,2,FALSE))","v":50},{"$f":"+IFERROR(VLOOKUP(IC$6&\"-\"&$M12&\"_old\",Ammortamento_Finanziario!$H:$L,5,FALSE),VLOOKUP($M12,TT_Tabelle_Riferimento!$H$31:$I$50,2,FALSE))","v":50},{"$f":"+IFERROR(VLOOKUP(ID$6&\"-\"&$M12&\"_old\",Ammortamento_Finanziario!$H:$L,5,FALSE),VLOOKUP($M12,TT_Tabelle_Riferimento!$H$31:$I$50,2,FALSE))","v":50},{"$f":"+IFERROR(VLOOKUP(IE$6&\"-\"&$M12&\"_old\",Ammortamento_Finanziario!$H:$L,5,FALSE),VLOOKUP($M12,TT_Tabelle_Riferimento!$H$31:$I$50,2,FALSE))","v":50},{"$f":"+IFERROR(VLOOKUP(IF$6&\"-\"&$M12&\"_old\",Ammortamento_Finanziario!$H:$L,5,FALSE),VLOOKUP($M12,TT_Tabelle_Riferimento!$H$31:$I$50,2,FALSE))","v":50},{"$f":"+IFERROR(VLOOKUP(IG$6&\"-\"&$M12&\"_old\",Ammortamento_Finanziario!$H:$L,5,FALSE),VLOOKUP($M12,TT_Tabelle_Riferimento!$H$31:$I$50,2,FALSE))","v":50},{"$f":"+IFERROR(VLOOKUP(IH$6&\"-\"&$M12&\"_old\",Ammortamento_Finanziario!$H:$L,5,FALSE),VLOOKUP($M12,TT_Tabelle_Riferimento!$H$31:$I$50,2,FALSE))","v":50},{"$f":"+IFERROR(VLOOKUP(II$6&\"-\"&$M12&\"_old\",Ammortamento_Finanziario!$H:$L,5,FALSE),VLOOKUP($M12,TT_Tabelle_Riferimento!$H$31:$I$50,2,FALSE))","v":50},{"$f":"+IFERROR(VLOOKUP(IJ$6&\"-\"&$M12&\"_old\",Ammortamento_Finanziario!$H:$L,5,FALSE),VLOOKUP($M12,TT_Tabelle_Riferimento!$H$31:$I$50,2,FALSE))","v":50},{"$f":"+IFERROR(VLOOKUP(IK$6&\"-\"&$M12&\"_old\",Ammortamento_Finanziario!$H:$L,5,FALSE),VLOOKUP($M12,TT_Tabelle_Riferimento!$H$31:$I$50,2,FALSE))","v":50},{"$f":"+IFERROR(VLOOKUP(IL$6&\"-\"&$M12&\"_old\",Ammortamento_Finanziario!$H:$L,5,FALSE),VLOOKUP($M12,TT_Tabelle_Riferimento!$H$31:$I$50,2,FALSE))","v":50},{"$f":"+IFERROR(VLOOKUP(IM$6&\"-\"&$M12&\"_old\",Ammortamento_Finanziario!$H:$L,5,FALSE),VLOOKUP($M12,TT_Tabelle_Riferimento!$H$31:$I$50,2,FALSE))","v":50},{"$f":"+IFERROR(VLOOKUP(IN$6&\"-\"&$M12&\"_old\",Ammortamento_Finanziario!$H:$L,5,FALSE),VLOOKUP($M12,TT_Tabelle_Riferimento!$H$31:$I$50,2,FALSE))","v":50},{"$f":"+IFERROR(VLOOKUP(IO$6&\"-\"&$M12&\"_old\",Ammortamento_Finanziario!$H:$L,5,FALSE),VLOOKUP($M12,TT_Tabelle_Riferimento!$H$31:$I$50,2,FALSE))","v":50},{"$f":"+IFERROR(VLOOKUP(IP$6&\"-\"&$M12&\"_old\",Ammortamento_Finanziario!$H:$L,5,FALSE),VLOOKUP($M12,TT_Tabelle_Riferimento!$H$31:$I$50,2,FALSE))","v":50},{"$f":"+IFERROR(VLOOKUP(IQ$6&\"-\"&$M12&\"_old\",Ammortamento_Finanziario!$H:$L,5,FALSE),VLOOKUP($M12,TT_Tabelle_Riferimento!$H$31:$I$50,2,FALSE))","v":50},{"$f":"+IFERROR(VLOOKUP(IR$6&\"-\"&$M12&\"_old\",Ammortamento_Finanziario!$H:$L,5,FALSE),VLOOKUP($M12,TT_Tabelle_Riferimento!$H$31:$I$50,2,FALSE))","v":50},{"$f":"+IFERROR(VLOOKUP(IS$6&\"-\"&$M12&\"_old\",Ammortamento_Finanziario!$H:$L,5,FALSE),VLOOKUP($M12,TT_Tabelle_Riferimento!$H$31:$I$50,2,FALSE))","v":50},{"$f":"+IFERROR(VLOOKUP(IT$6&\"-\"&$M12&\"_old\",Ammortamento_Finanziario!$H:$L,5,FALSE),VLOOKUP($M12,TT_Tabelle_Riferimento!$H$31:$I$50,2,FALSE))","v":50},{"$f":"+IFERROR(VLOOKUP(IU$6&\"-\"&$M12&\"_old\",Ammortamento_Finanziario!$H:$L,5,FALSE),VLOOKUP($M12,TT_Tabelle_Riferimento!$H$31:$I$50,2,FALSE))","v":50},{"$f":"+IFERROR(VLOOKUP(IV$6&\"-\"&$M12&\"_old\",Ammortamento_Finanziario!$H:$L,5,FALSE),VLOOKUP($M12,TT_Tabelle_Riferimento!$H$31:$I$50,2,FALSE))","v":50},{"$f":"+IFERROR(VLOOKUP(IW$6&\"-\"&$M12&\"_old\",Ammortamento_Finanziario!$H:$L,5,FALSE),VLOOKUP($M12,TT_Tabelle_Riferimento!$H$31:$I$50,2,FALSE))","v":50},{"$f":"+IFERROR(VLOOKUP(IX$6&\"-\"&$M12&\"_old\",Ammortamento_Finanziario!$H:$L,5,FALSE),VLOOKUP($M12,TT_Tabelle_Riferimento!$H$31:$I$50,2,FALSE))","v":50},{"$f":"+IFERROR(VLOOKUP(IY$6&\"-\"&$M12&\"_old\",Ammortamento_Finanziario!$H:$L,5,FALSE),VLOOKUP($M12,TT_Tabelle_Riferimento!$H$31:$I$50,2,FALSE))","v":50},{"$f":"+IFERROR(VLOOKUP(IZ$6&\"-\"&$M12&\"_old\",Ammortamento_Finanziario!$H:$L,5,FALSE),VLOOKUP($M12,TT_Tabelle_Riferimento!$H$31:$I$50,2,FALSE))","v":50},{"$f":"+IFERROR(VLOOKUP(JA$6&\"-\"&$M12&\"_old\",Ammortamento_Finanziario!$H:$L,5,FALSE),VLOOKUP($M12,TT_Tabelle_Riferimento!$H$31:$I$50,2,FALSE))","v":50},{"$f":"+IFERROR(VLOOKUP(JB$6&\"-\"&$M12&\"_old\",Ammortamento_Finanziario!$H:$L,5,FALSE),VLOOKUP($M12,TT_Tabelle_Riferimento!$H$31:$I$50,2,FALSE))","v":50},{"$f":"+IFERROR(VLOOKUP(JC$6&\"-\"&$M12&\"_old\",Ammortamento_Finanziario!$H:$L,5,FALSE),VLOOKUP($M12,TT_Tabelle_Riferimento!$H$31:$I$50,2,FALSE))","v":50},{"$f":"+IFERROR(VLOOKUP(JD$6&\"-\"&$M12&\"_old\",Ammortamento_Finanziario!$H:$L,5,FALSE),VLOOKUP($M12,TT_Tabelle_Riferimento!$H$31:$I$50,2,FALSE))","v":50},{"$f":"+IFERROR(VLOOKUP(JE$6&\"-\"&$M12&\"_old\",Ammortamento_Finanziario!$H:$L,5,FALSE),VLOOKUP($M12,TT_Tabelle_Riferimento!$H$31:$I$50,2,FALSE))","v":50},{"$f":"+IFERROR(VLOOKUP(JF$6&\"-\"&$M12&\"_old\",Ammortamento_Finanziario!$H:$L,5,FALSE),VLOOKUP($M12,TT_Tabelle_Riferimento!$H$31:$I$50,2,FALSE))","v":50},{"$f":"+IFERROR(VLOOKUP(JG$6&\"-\"&$M12&\"_old\",Ammortamento_Finanziario!$H:$L,5,FALSE),VLOOKUP($M12,TT_Tabelle_Riferimento!$H$31:$I$50,2,FALSE))","v":50},{"$f":"+IFERROR(VLOOKUP(JH$6&\"-\"&$M12&\"_old\",Ammortamento_Finanziario!$H:$L,5,FALSE),VLOOKUP($M12,TT_Tabelle_Riferimento!$H$31:$I$50,2,FALSE))","v":50},{"$f":"+IFERROR(VLOOKUP(JI$6&\"-\"&$M12&\"_old\",Ammortamento_Finanziario!$H:$L,5,FALSE),VLOOKUP($M12,TT_Tabelle_Riferimento!$H$31:$I$50,2,FALSE))","v":50},{"$f":"+IFERROR(VLOOKUP(JJ$6&\"-\"&$M12&\"_old\",Ammortamento_Finanziario!$H:$L,5,FALSE),VLOOKUP($M12,TT_Tabelle_Riferimento!$H$31:$I$50,2,FALSE))","v":50},{"$f":"+IFERROR(VLOOKUP(JK$6&\"-\"&$M12&\"_old\",Ammortamento_Finanziario!$H:$L,5,FALSE),VLOOKUP($M12,TT_Tabelle_Riferimento!$H$31:$I$50,2,FALSE))","v":50},{"$f":"+IFERROR(VLOOKUP(JL$6&\"-\"&$M12&\"_old\",Ammortamento_Finanziario!$H:$L,5,FALSE),VLOOKUP($M12,TT_Tabelle_Riferimento!$H$31:$I$50,2,FALSE))","v":50},{"$f":"+IFERROR(VLOOKUP(JM$6&\"-\"&$M12&\"_old\",Ammortamento_Finanziario!$H:$L,5,FALSE),VLOOKUP($M12,TT_Tabelle_Riferimento!$H$31:$I$50,2,FALSE))","v":50},{"$f":"+IFERROR(VLOOKUP(JN$6&\"-\"&$M12&\"_old\",Ammortamento_Finanziario!$H:$L,5,FALSE),VLOOKUP($M12,TT_Tabelle_Riferimento!$H$31:$I$50,2,FALSE))","v":50},{"$f":"+IFERROR(VLOOKUP(JO$6&\"-\"&$M12&\"_old\",Ammortamento_Finanziario!$H:$L,5,FALSE),VLOOKUP($M12,TT_Tabelle_Riferimento!$H$31:$I$50,2,FALSE))","v":50},{"$f":"+IFERROR(VLOOKUP(JP$6&\"-\"&$M12&\"_old\",Ammortamento_Finanziario!$H:$L,5,FALSE),VLOOKUP($M12,TT_Tabelle_Riferimento!$H$31:$I$50,2,FALSE))","v":50},{"$f":"+IFERROR(VLOOKUP(JQ$6&\"-\"&$M12&\"_old\",Ammortamento_Finanziario!$H:$L,5,FALSE),VLOOKUP($M12,TT_Tabelle_Riferimento!$H$31:$I$50,2,FALSE))","v":50},{"$f":"+IFERROR(VLOOKUP(JR$6&\"-\"&$M12&\"_old\",Ammortamento_Finanziario!$H:$L,5,FALSE),VLOOKUP($M12,TT_Tabelle_Riferimento!$H$31:$I$50,2,FALSE))","v":50},{"$f":"+IFERROR(VLOOKUP(JS$6&\"-\"&$M12&\"_old\",Ammortamento_Finanziario!$H:$L,5,FALSE),VLOOKUP($M12,TT_Tabelle_Riferimento!$H$31:$I$50,2,FALSE))","v":50},{"$f":"+IFERROR(VLOOKUP(JT$6&\"-\"&$M12&\"_old\",Ammortamento_Finanziario!$H:$L,5,FALSE),VLOOKUP($M12,TT_Tabelle_Riferimento!$H$31:$I$50,2,FALSE))","v":50},{"$f":"+IFERROR(VLOOKUP(JU$6&\"-\"&$M12&\"_old\",Ammortamento_Finanziario!$H:$L,5,FALSE),VLOOKUP($M12,TT_Tabelle_Riferimento!$H$31:$I$50,2,FALSE))","v":50},{"$f":"+IFERROR(VLOOKUP(JV$6&\"-\"&$M12&\"_old\",Ammortamento_Finanziario!$H:$L,5,FALSE),VLOOKUP($M12,TT_Tabelle_Riferimento!$H$31:$I$50,2,FALSE))","v":50},{"$f":"+IFERROR(VLOOKUP(JW$6&\"-\"&$M12&\"_old\",Ammortamento_Finanziario!$H:$L,5,FALSE),VLOOKUP($M12,TT_Tabelle_Riferimento!$H$31:$I$50,2,FALSE))","v":50},{"$f":"+IFERROR(VLOOKUP(JX$6&\"-\"&$M12&\"_old\",Ammortamento_Finanziario!$H:$L,5,FALSE),VLOOKUP($M12,TT_Tabelle_Riferimento!$H$31:$I$50,2,FALSE))","v":50},{"$f":"+IFERROR(VLOOKUP(JY$6&\"-\"&$M12&\"_old\",Ammortamento_Finanziario!$H:$L,5,FALSE),VLOOKUP($M12,TT_Tabelle_Riferimento!$H$31:$I$50,2,FALSE))","v":50},{"$f":"+IFERROR(VLOOKUP(JZ$6&\"-\"&$M12&\"_old\",Ammortamento_Finanziario!$H:$L,5,FALSE),VLOOKUP($M12,TT_Tabelle_Riferimento!$H$31:$I$50,2,FALSE))","v":50},{"$f":"+IFERROR(VLOOKUP(KA$6&\"-\"&$M12&\"_old\",Ammortamento_Finanziario!$H:$L,5,FALSE),VLOOKUP($M12,TT_Tabelle_Riferimento!$H$31:$I$50,2,FALSE))","v":50},{"$f":"+IFERROR(VLOOKUP(KB$6&\"-\"&$M12&\"_old\",Ammortamento_Finanziario!$H:$L,5,FALSE),VLOOKUP($M12,TT_Tabelle_Riferimento!$H$31:$I$50,2,FALSE))","v":50},{"$f":"+IFERROR(VLOOKUP(KC$6&\"-\"&$M12&\"_old\",Ammortamento_Finanziario!$H:$L,5,FALSE),VLOOKUP($M12,TT_Tabelle_Riferimento!$H$31:$I$50,2,FALSE))","v":50},{"$f":"+IFERROR(VLOOKUP(KD$6&\"-\"&$M12&\"_old\",Ammortamento_Finanziario!$H:$L,5,FALSE),VLOOKUP($M12,TT_Tabelle_Riferimento!$H$31:$I$50,2,FALSE))","v":50},{"$f":"+IFERROR(VLOOKUP(KE$6&\"-\"&$M12&\"_old\",Ammortamento_Finanziario!$H:$L,5,FALSE),VLOOKUP($M12,TT_Tabelle_Riferimento!$H$31:$I$50,2,FALSE))","v":50},{"$f":"+IFERROR(VLOOKUP(KF$6&\"-\"&$M12&\"_old\",Ammortamento_Finanziario!$H:$L,5,FALSE),VLOOKUP($M12,TT_Tabelle_Riferimento!$H$31:$I$50,2,FALSE))","v":50},{"$f":"+IFERROR(VLOOKUP(KG$6&\"-\"&$M12&\"_old\",Ammortamento_Finanziario!$H:$L,5,FALSE),VLOOKUP($M12,TT_Tabelle_Riferimento!$H$31:$I$50,2,FALSE))","v":50},{"$f":"+IFERROR(VLOOKUP(KH$6&\"-\"&$M12&\"_old\",Ammortamento_Finanziario!$H:$L,5,FALSE),VLOOKUP($M12,TT_Tabelle_Riferimento!$H$31:$I$50,2,FALSE))","v":50},{"$f":"+IFERROR(VLOOKUP(KI$6&\"-\"&$M12&\"_old\",Ammortamento_Finanziario!$H:$L,5,FALSE),VLOOKUP($M12,TT_Tabelle_Riferimento!$H$31:$I$50,2,FALSE))","v":50},{"$f":"+IFERROR(VLOOKUP(KJ$6&\"-\"&$M12&\"_old\",Ammortamento_Finanziario!$H:$L,5,FALSE),VLOOKUP($M12,TT_Tabelle_Riferimento!$H$31:$I$50,2,FALSE))","v":50},{"$f":"+IFERROR(VLOOKUP(KK$6&\"-\"&$M12&\"_old\",Ammortamento_Finanziario!$H:$L,5,FALSE),VLOOKUP($M12,TT_Tabelle_Riferimento!$H$31:$I$50,2,FALSE))","v":50},{"$f":"+IFERROR(VLOOKUP(KL$6&\"-\"&$M12&\"_old\",Ammortamento_Finanziario!$H:$L,5,FALSE),VLOOKUP($M12,TT_Tabelle_Riferimento!$H$31:$I$50,2,FALSE))","v":50},{"$f":"+IFERROR(VLOOKUP(KM$6&\"-\"&$M12&\"_old\",Ammortamento_Finanziario!$H:$L,5,FALSE),VLOOKUP($M12,TT_Tabelle_Riferimento!$H$31:$I$50,2,FALSE))","v":50},{"$f":"+IFERROR(VLOOKUP(KN$6&\"-\"&$M12&\"_old\",Ammortamento_Finanziario!$H:$L,5,FALSE),VLOOKUP($M12,TT_Tabelle_Riferimento!$H$31:$I$50,2,FALSE))","v":50},{"$f":"+IFERROR(VLOOKUP(KO$6&\"-\"&$M12&\"_old\",Ammortamento_Finanziario!$H:$L,5,FALSE),VLOOKUP($M12,TT_Tabelle_Riferimento!$H$31:$I$50,2,FALSE))","v":50},{"$f":"+IFERROR(VLOOKUP(KP$6&\"-\"&$M12&\"_old\",Ammortamento_Finanziario!$H:$L,5,FALSE),VLOOKUP($M12,TT_Tabelle_Riferimento!$H$31:$I$50,2,FALSE))","v":50},{"$f":"+IFERROR(VLOOKUP(KQ$6&\"-\"&$M12&\"_old\",Ammortamento_Finanziario!$H:$L,5,FALSE),VLOOKUP($M12,TT_Tabelle_Riferimento!$H$31:$I$50,2,FALSE))","v":50},{"$f":"+IFERROR(VLOOKUP(KR$6&\"-\"&$M12&\"_old\",Ammortamento_Finanziario!$H:$L,5,FALSE),VLOOKUP($M12,TT_Tabelle_Riferimento!$H$31:$I$50,2,FALSE))","v":50},{"$f":"+IFERROR(VLOOKUP(KS$6&\"-\"&$M12&\"_old\",Ammortamento_Finanziario!$H:$L,5,FALSE),VLOOKUP($M12,TT_Tabelle_Riferimento!$H$31:$I$50,2,FALSE))","v":50},{"$f":"+IFERROR(VLOOKUP(KT$6&\"-\"&$M12&\"_old\",Ammortamento_Finanziario!$H:$L,5,FALSE),VLOOKUP($M12,TT_Tabelle_Riferimento!$H$31:$I$50,2,FALSE))","v":50},{"$f":"+IFERROR(VLOOKUP(KU$6&\"-\"&$M12&\"_old\",Ammortamento_Finanziario!$H:$L,5,FALSE),VLOOKUP($M12,TT_Tabelle_Riferimento!$H$31:$I$50,2,FALSE))","v":50},{"$f":"+IFERROR(VLOOKUP(KV$6&\"-\"&$M12&\"_old\",Ammortamento_Finanziario!$H:$L,5,FALSE),VLOOKUP($M12,TT_Tabelle_Riferimento!$H$31:$I$50,2,FALSE))","v":50},{"$f":"+IFERROR(VLOOKUP(KW$6&\"-\"&$M12&\"_old\",Ammortamento_Finanziario!$H:$L,5,FALSE),VLOOKUP($M12,TT_Tabelle_Riferimento!$H$31:$I$50,2,FALSE))","v":50},{"$f":"+IFERROR(VLOOKUP(KX$6&\"-\"&$M12&\"_old\",Ammortamento_Finanziario!$H:$L,5,FALSE),VLOOKUP($M12,TT_Tabelle_Riferimento!$H$31:$I$50,2,FALSE))","v":50},{"$f":"+IFERROR(VLOOKUP(KY$6&\"-\"&$M12&\"_old\",Ammortamento_Finanziario!$H:$L,5,FALSE),VLOOKUP($M12,TT_Tabelle_Riferimento!$H$31:$I$50,2,FALSE))","v":50},{"$f":"+IFERROR(VLOOKUP(KZ$6&\"-\"&$M12&\"_old\",Ammortamento_Finanziario!$H:$L,5,FALSE),VLOOKUP($M12,TT_Tabelle_Riferimento!$H$31:$I$50,2,FALSE))","v":50},{"$f":"+IFERROR(VLOOKUP(LA$6&\"-\"&$M12&\"_old\",Ammortamento_Finanziario!$H:$L,5,FALSE),VLOOKUP($M12,TT_Tabelle_Riferimento!$H$31:$I$50,2,FALSE))","v":50},{"$f":"+IFERROR(VLOOKUP(LB$6&\"-\"&$M12&\"_old\",Ammortamento_Finanziario!$H:$L,5,FALSE),VLOOKUP($M12,TT_Tabelle_Riferimento!$H$31:$I$50,2,FALSE))","v":50},{"$f":"+IFERROR(VLOOKUP(LC$6&\"-\"&$M12&\"_old\",Ammortamento_Finanziario!$H:$L,5,FALSE),VLOOKUP($M12,TT_Tabelle_Riferimento!$H$31:$I$50,2,FALSE))","v":50},{"$f":"+IFERROR(VLOOKUP(LD$6&\"-\"&$M12&\"_old\",Ammortamento_Finanziario!$H:$L,5,FALSE),VLOOKUP($M12,TT_Tabelle_Riferimento!$H$31:$I$50,2,FALSE))","v":50},{"$f":"+IFERROR(VLOOKUP(LE$6&\"-\"&$M12&\"_old\",Ammortamento_Finanziario!$H:$L,5,FALSE),VLOOKUP($M12,TT_Tabelle_Riferimento!$H$31:$I$50,2,FALSE))","v":50},{"$f":"+IFERROR(VLOOKUP(LF$6&\"-\"&$M12&\"_old\",Ammortamento_Finanziario!$H:$L,5,FALSE),VLOOKUP($M12,TT_Tabelle_Riferimento!$H$31:$I$50,2,FALSE))","v":50},{"$f":"+IFERROR(VLOOKUP(LG$6&\"-\"&$M12&\"_old\",Ammortamento_Finanziario!$H:$L,5,FALSE),VLOOKUP($M12,TT_Tabelle_Riferimento!$H$31:$I$50,2,FALSE))","v":50},{"$f":"+IFERROR(VLOOKUP(LH$6&\"-\"&$M12&\"_old\",Ammortamento_Finanziario!$H:$L,5,FALSE),VLOOKUP($M12,TT_Tabelle_Riferimento!$H$31:$I$50,2,FALSE))","v":50},{"$f":"+IFERROR(VLOOKUP(LI$6&\"-\"&$M12&\"_old\",Ammortamento_Finanziario!$H:$L,5,FALSE),VLOOKUP($M12,TT_Tabelle_Riferimento!$H$31:$I$50,2,FALSE))","v":50},{"$f":"+IFERROR(VLOOKUP(LJ$6&\"-\"&$M12&\"_old\",Ammortamento_Finanziario!$H:$L,5,FALSE),VLOOKUP($M12,TT_Tabelle_Riferimento!$H$31:$I$50,2,FALSE))","v":50},{"$f":"+IFERROR(VLOOKUP(LK$6&\"-\"&$M12&\"_old\",Ammortamento_Finanziario!$H:$L,5,FALSE),VLOOKUP($M12,TT_Tabelle_Riferimento!$H$31:$I$50,2,FALSE))","v":50},{"$f":"+IFERROR(VLOOKUP(LL$6&\"-\"&$M12&\"_old\",Ammortamento_Finanziario!$H:$L,5,FALSE),VLOOKUP($M12,TT_Tabelle_Riferimento!$H$31:$I$50,2,FALSE))","v":50},{"$f":"+IFERROR(VLOOKUP(LM$6&\"-\"&$M12&\"_old\",Ammortamento_Finanziario!$H:$L,5,FALSE),VLOOKUP($M12,TT_Tabelle_Riferimento!$H$31:$I$50,2,FALSE))","v":50},{"$f":"+IFERROR(VLOOKUP(LN$6&\"-\"&$M12&\"_old\",Ammortamento_Finanziario!$H:$L,5,FALSE),VLOOKUP($M12,TT_Tabelle_Riferimento!$H$31:$I$50,2,FALSE))","v":50},{"$f":"+IFERROR(VLOOKUP(LO$6&\"-\"&$M12&\"_old\",Ammortamento_Finanziario!$H:$L,5,FALSE),VLOOKUP($M12,TT_Tabelle_Riferimento!$H$31:$I$50,2,FALSE))","v":50},{"$f":"+IFERROR(VLOOKUP(LP$6&\"-\"&$M12&\"_old\",Ammortamento_Finanziario!$H:$L,5,FALSE),VLOOKUP($M12,TT_Tabelle_Riferimento!$H$31:$I$50,2,FALSE))","v":50},{"$f":"+IFERROR(VLOOKUP(LQ$6&\"-\"&$M12&\"_old\",Ammortamento_Finanziario!$H:$L,5,FALSE),VLOOKUP($M12,TT_Tabelle_Riferimento!$H$31:$I$50,2,FALSE))","v":50},{"$f":"+IFERROR(VLOOKUP(LR$6&\"-\"&$M12&\"_old\",Ammortamento_Finanziario!$H:$L,5,FALSE),VLOOKUP($M12,TT_Tabelle_Riferimento!$H$31:$I$50,2,FALSE))","v":50},{"$f":"+IFERROR(VLOOKUP(LS$6&\"-\"&$M12&\"_old\",Ammortamento_Finanziario!$H:$L,5,FALSE),VLOOKUP($M12,TT_Tabelle_Riferimento!$H$31:$I$50,2,FALSE))","v":50},{"$f":"+IFERROR(VLOOKUP(LT$6&\"-\"&$M12&\"_old\",Ammortamento_Finanziario!$H:$L,5,FALSE),VLOOKUP($M12,TT_Tabelle_Riferimento!$H$31:$I$50,2,FALSE))","v":50},{"$f":"+IFERROR(VLOOKUP(LU$6&\"-\"&$M12&\"_old\",Ammortamento_Finanziario!$H:$L,5,FALSE),VLOOKUP($M12,TT_Tabelle_Riferimento!$H$31:$I$50,2,FALSE))","v":50},{"$f":"+IFERROR(VLOOKUP(LV$6&\"-\"&$M12&\"_old\",Ammortamento_Finanziario!$H:$L,5,FALSE),VLOOKUP($M12,TT_Tabelle_Riferimento!$H$31:$I$50,2,FALSE))","v":50},{"$f":"+IFERROR(VLOOKUP(LW$6&\"-\"&$M12&\"_old\",Ammortamento_Finanziario!$H:$L,5,FALSE),VLOOKUP($M12,TT_Tabelle_Riferimento!$H$31:$I$50,2,FALSE))","v":50},{"$f":"+IFERROR(VLOOKUP(LX$6&\"-\"&$M12&\"_old\",Ammortamento_Finanziario!$H:$L,5,FALSE),VLOOKUP($M12,TT_Tabelle_Riferimento!$H$31:$I$50,2,FALSE))","v":50},{"$f":"+IFERROR(VLOOKUP(LY$6&\"-\"&$M12&\"_old\",Ammortamento_Finanziario!$H:$L,5,FALSE),VLOOKUP($M12,TT_Tabelle_Riferimento!$H$31:$I$50,2,FALSE))","v":50},{"$f":"+IFERROR(VLOOKUP(LZ$6&\"-\"&$M12&\"_old\",Ammortamento_Finanziario!$H:$L,5,FALSE),VLOOKUP($M12,TT_Tabelle_Riferimento!$H$31:$I$50,2,FALSE))","v":50},{"$f":"+IFERROR(VLOOKUP(MA$6&\"-\"&$M12&\"_old\",Ammortamento_Finanziario!$H:$L,5,FALSE),VLOOKUP($M12,TT_Tabelle_Riferimento!$H$31:$I$50,2,FALSE))","v":50},{"$f":"+IFERROR(VLOOKUP(MB$6&\"-\"&$M12&\"_old\",Ammortamento_Finanziario!$H:$L,5,FALSE),VLOOKUP($M12,TT_Tabelle_Riferimento!$H$31:$I$50,2,FALSE))","v":50},{"$f":"+IFERROR(VLOOKUP(MC$6&\"-\"&$M12&\"_old\",Ammortamento_Finanziario!$H:$L,5,FALSE),VLOOKUP($M12,TT_Tabelle_Riferimento!$H$31:$I$50,2,FALSE))","v":50},{"$f":"+IFERROR(VLOOKUP(MD$6&\"-\"&$M12&\"_old\",Ammortamento_Finanziario!$H:$L,5,FALSE),VLOOKUP($M12,TT_Tabelle_Riferimento!$H$31:$I$50,2,FALSE))","v":50},{"$f":"+IFERROR(VLOOKUP(ME$6&\"-\"&$M12&\"_old\",Ammortamento_Finanziario!$H:$L,5,FALSE),VLOOKUP($M12,TT_Tabelle_Riferimento!$H$31:$I$50,2,FALSE))","v":50},{"$f":"+IFERROR(VLOOKUP(MF$6&\"-\"&$M12&\"_old\",Ammortamento_Finanziario!$H:$L,5,FALSE),VLOOKUP($M12,TT_Tabelle_Riferimento!$H$31:$I$50,2,FALSE))","v":50},{"$f":"+IFERROR(VLOOKUP(MG$6&\"-\"&$M12&\"_old\",Ammortamento_Finanziario!$H:$L,5,FALSE),VLOOKUP($M12,TT_Tabelle_Riferimento!$H$31:$I$50,2,FALSE))","v":50},{"$f":"+IFERROR(VLOOKUP(MH$6&\"-\"&$M12&\"_old\",Ammortamento_Finanziario!$H:$L,5,FALSE),VLOOKUP($M12,TT_Tabelle_Riferimento!$H$31:$I$50,2,FALSE))","v":50},{"$f":"+IFERROR(VLOOKUP(MI$6&\"-\"&$M12&\"_old\",Ammortamento_Finanziario!$H:$L,5,FALSE),VLOOKUP($M12,TT_Tabelle_Riferimento!$H$31:$I$50,2,FALSE))","v":50},{"$f":"+IFERROR(VLOOKUP(MJ$6&\"-\"&$M12&\"_old\",Ammortamento_Finanziario!$H:$L,5,FALSE),VLOOKUP($M12,TT_Tabelle_Riferimento!$H$31:$I$50,2,FALSE))","v":50},{"$f":"+IFERROR(VLOOKUP(MK$6&\"-\"&$M12&\"_old\",Ammortamento_Finanziario!$H:$L,5,FALSE),VLOOKUP($M12,TT_Tabelle_Riferimento!$H$31:$I$50,2,FALSE))","v":50},{"$f":"+IFERROR(VLOOKUP(ML$6&\"-\"&$M12&\"_old\",Ammortamento_Finanziario!$H:$L,5,FALSE),VLOOKUP($M12,TT_Tabelle_Riferimento!$H$31:$I$50,2,FALSE))","v":50},{"$f":"+IFERROR(VLOOKUP(MM$6&\"-\"&$M12&\"_old\",Ammortamento_Finanziario!$H:$L,5,FALSE),VLOOKUP($M12,TT_Tabelle_Riferimento!$H$31:$I$50,2,FALSE))","v":50},{"$f":"+IFERROR(VLOOKUP(MN$6&\"-\"&$M12&\"_old\",Ammortamento_Finanziario!$H:$L,5,FALSE),VLOOKUP($M12,TT_Tabelle_Riferimento!$H$31:$I$50,2,FALSE))","v":50},{"$f":"+IFERROR(VLOOKUP(MO$6&\"-\"&$M12&\"_old\",Ammortamento_Finanziario!$H:$L,5,FALSE),VLOOKUP($M12,TT_Tabelle_Riferimento!$H$31:$I$50,2,FALSE))","v":50},{"$f":"+IFERROR(VLOOKUP(MP$6&\"-\"&$M12&\"_old\",Ammortamento_Finanziario!$H:$L,5,FALSE),VLOOKUP($M12,TT_Tabelle_Riferimento!$H$31:$I$50,2,FALSE))","v":50},{"$f":"+IFERROR(VLOOKUP(MQ$6&\"-\"&$M12&\"_old\",Ammortamento_Finanziario!$H:$L,5,FALSE),VLOOKUP($M12,TT_Tabelle_Riferimento!$H$31:$I$50,2,FALSE))","v":50},{"$f":"+IFERROR(VLOOKUP(MR$6&\"-\"&$M12&\"_old\",Ammortamento_Finanziario!$H:$L,5,FALSE),VLOOKUP($M12,TT_Tabelle_Riferimento!$H$31:$I$50,2,FALSE))","v":50},{"$f":"+IFERROR(VLOOKUP(MS$6&\"-\"&$M12&\"_old\",Ammortamento_Finanziario!$H:$L,5,FALSE),VLOOKUP($M12,TT_Tabelle_Riferimento!$H$31:$I$50,2,FALSE))","v":50},{"$f":"+IFERROR(VLOOKUP(MT$6&\"-\"&$M12&\"_old\",Ammortamento_Finanziario!$H:$L,5,FALSE),VLOOKUP($M12,TT_Tabelle_Riferimento!$H$31:$I$50,2,FALSE))","v":50},{"$f":"+IFERROR(VLOOKUP(MU$6&\"-\"&$M12&\"_old\",Ammortamento_Finanziario!$H:$L,5,FALSE),VLOOKUP($M12,TT_Tabelle_Riferimento!$H$31:$I$50,2,FALSE))","v":50},{"$f":"+IFERROR(VLOOKUP(MV$6&\"-\"&$M12&\"_old\",Ammortamento_Finanziario!$H:$L,5,FALSE),VLOOKUP($M12,TT_Tabelle_Riferimento!$H$31:$I$50,2,FALSE))","v":50},{"$f":"+IFERROR(VLOOKUP(MW$6&\"-\"&$M12&\"_old\",Ammortamento_Finanziario!$H:$L,5,FALSE),VLOOKUP($M12,TT_Tabelle_Riferimento!$H$31:$I$50,2,FALSE))","v":50},{"$f":"+IFERROR(VLOOKUP(MX$6&\"-\"&$M12&\"_old\",Ammortamento_Finanziario!$H:$L,5,FALSE),VLOOKUP($M12,TT_Tabelle_Riferimento!$H$31:$I$50,2,FALSE))","v":50},{"$f":"+IFERROR(VLOOKUP(MY$6&\"-\"&$M12&\"_old\",Ammortamento_Finanziario!$H:$L,5,FALSE),VLOOKUP($M12,TT_Tabelle_Riferimento!$H$31:$I$50,2,FALSE))","v":50},{"$f":"+IFERROR(VLOOKUP(MZ$6&\"-\"&$M12&\"_old\",Ammortamento_Finanziario!$H:$L,5,FALSE),VLOOKUP($M12,TT_Tabelle_Riferimento!$H$31:$I$50,2,FALSE))","v":50},{"$f":"+IFERROR(VLOOKUP(NA$6&\"-\"&$M12&\"_old\",Ammortamento_Finanziario!$H:$L,5,FALSE),VLOOKUP($M12,TT_Tabelle_Riferimento!$H$31:$I$50,2,FALSE))","v":50},{"$f":"+IFERROR(VLOOKUP(NB$6&\"-\"&$M12&\"_old\",Ammortamento_Finanziario!$H:$L,5,FALSE),VLOOKUP($M12,TT_Tabelle_Riferimento!$H$31:$I$50,2,FALSE))","v":50},{"$f":"+IFERROR(VLOOKUP(NC$6&\"-\"&$M12&\"_old\",Ammortamento_Finanziario!$H:$L,5,FALSE),VLOOKUP($M12,TT_Tabelle_Riferimento!$H$31:$I$50,2,FALSE))","v":50},{"$f":"+IFERROR(VLOOKUP(ND$6&\"-\"&$M12&\"_old\",Ammortamento_Finanziario!$H:$L,5,FALSE),VLOOKUP($M12,TT_Tabelle_Riferimento!$H$31:$I$50,2,FALSE))","v":50},{"$f":"+IFERROR(VLOOKUP(NE$6&\"-\"&$M12&\"_old\",Ammortamento_Finanziario!$H:$L,5,FALSE),VLOOKUP($M12,TT_Tabelle_Riferimento!$H$31:$I$50,2,FALSE))","v":50},{"$f":"+IFERROR(VLOOKUP(NF$6&\"-\"&$M12&\"_old\",Ammortamento_Finanziario!$H:$L,5,FALSE),VLOOKUP($M12,TT_Tabelle_Riferimento!$H$31:$I$50,2,FALSE))","v":50},{"$f":"+IFERROR(VLOOKUP(NG$6&\"-\"&$M12&\"_old\",Ammortamento_Finanziario!$H:$L,5,FALSE),VLOOKUP($M12,TT_Tabelle_Riferimento!$H$31:$I$50,2,FALSE))","v":50},{"$f":"+IFERROR(VLOOKUP(NH$6&\"-\"&$M12&\"_old\",Ammortamento_Finanziario!$H:$L,5,FALSE),VLOOKUP($M12,TT_Tabelle_Riferimento!$H$31:$I$50,2,FALSE))","v":50},{"$f":"+IFERROR(VLOOKUP(NI$6&\"-\"&$M12&\"_old\",Ammortamento_Finanziario!$H:$L,5,FALSE),VLOOKUP($M12,TT_Tabelle_Riferimento!$H$31:$I$50,2,FALSE))","v":50},{"$f":"+IFERROR(VLOOKUP(NJ$6&\"-\"&$M12&\"_old\",Ammortamento_Finanziario!$H:$L,5,FALSE),VLOOKUP($M12,TT_Tabelle_Riferimento!$H$31:$I$50,2,FALSE))","v":50},{"$f":"+IFERROR(VLOOKUP(NK$6&\"-\"&$M12&\"_old\",Ammortamento_Finanziario!$H:$L,5,FALSE),VLOOKUP($M12,TT_Tabelle_Riferimento!$H$31:$I$50,2,FALSE))","v":50},{"$f":"+IFERROR(VLOOKUP(NL$6&\"-\"&$M12&\"_old\",Ammortamento_Finanziario!$H:$L,5,FALSE),VLOOKUP($M12,TT_Tabelle_Riferimento!$H$31:$I$50,2,FALSE))","v":50},{"$f":"+IFERROR(VLOOKUP(NM$6&\"-\"&$M12&\"_old\",Ammortamento_Finanziario!$H:$L,5,FALSE),VLOOKUP($M12,TT_Tabelle_Riferimento!$H$31:$I$50,2,FALSE))","v":50},{"$f":"+IFERROR(VLOOKUP(NN$6&\"-\"&$M12&\"_old\",Ammortamento_Finanziario!$H:$L,5,FALSE),VLOOKUP($M12,TT_Tabelle_Riferimento!$H$31:$I$50,2,FALSE))","v":50},{"$f":"+IFERROR(VLOOKUP(NO$6&\"-\"&$M12&\"_old\",Ammortamento_Finanziario!$H:$L,5,FALSE),VLOOKUP($M12,TT_Tabelle_Riferimento!$H$31:$I$50,2,FALSE))","v":50},{"$f":"+IFERROR(VLOOKUP(NP$6&\"-\"&$M12&\"_old\",Ammortamento_Finanziario!$H:$L,5,FALSE),VLOOKUP($M12,TT_Tabelle_Riferimento!$H$31:$I$50,2,FALSE))","v":50},{"$f":"+IFERROR(VLOOKUP(NQ$6&\"-\"&$M12&\"_old\",Ammortamento_Finanziario!$H:$L,5,FALSE),VLOOKUP($M12,TT_Tabelle_Riferimento!$H$31:$I$50,2,FALSE))","v":50},{"$f":"+IFERROR(VLOOKUP(NR$6&\"-\"&$M12&\"_old\",Ammortamento_Finanziario!$H:$L,5,FALSE),VLOOKUP($M12,TT_Tabelle_Riferimento!$H$31:$I$50,2,FALSE))","v":50},{"$f":"+IFERROR(VLOOKUP(NS$6&\"-\"&$M12&\"_old\",Ammortamento_Finanziario!$H:$L,5,FALSE),VLOOKUP($M12,TT_Tabelle_Riferimento!$H$31:$I$50,2,FALSE))","v":50},{"$f":"+IFERROR(VLOOKUP(NT$6&\"-\"&$M12&\"_old\",Ammortamento_Finanziario!$H:$L,5,FALSE),VLOOKUP($M12,TT_Tabelle_Riferimento!$H$31:$I$50,2,FALSE))","v":50},{"$f":"+IFERROR(VLOOKUP(NU$6&\"-\"&$M12&\"_old\",Ammortamento_Finanziario!$H:$L,5,FALSE),VLOOKUP($M12,TT_Tabelle_Riferimento!$H$31:$I$50,2,FALSE))","v":50},{"$f":"+IFERROR(VLOOKUP(NV$6&\"-\"&$M12&\"_old\",Ammortamento_Finanziario!$H:$L,5,FALSE),VLOOKUP($M12,TT_Tabelle_Riferimento!$H$31:$I$50,2,FALSE))","v":50},{"$f":"+IFERROR(VLOOKUP(NW$6&\"-\"&$M12&\"_old\",Ammortamento_Finanziario!$H:$L,5,FALSE),VLOOKUP($M12,TT_Tabelle_Riferimento!$H$31:$I$50,2,FALSE))","v":50},{"$f":"+IFERROR(VLOOKUP(NX$6&\"-\"&$M12&\"_old\",Ammortamento_Finanziario!$H:$L,5,FALSE),VLOOKUP($M12,TT_Tabelle_Riferimento!$H$31:$I$50,2,FALSE))","v":50},{"$f":"+IFERROR(VLOOKUP(NY$6&\"-\"&$M12&\"_old\",Ammortamento_Finanziario!$H:$L,5,FALSE),VLOOKUP($M12,TT_Tabelle_Riferimento!$H$31:$I$50,2,FALSE))","v":50},{"$f":"+IFERROR(VLOOKUP(NZ$6&\"-\"&$M12&\"_old\",Ammortamento_Finanziario!$H:$L,5,FALSE),VLOOKUP($M12,TT_Tabelle_Riferimento!$H$31:$I$50,2,FALSE))","v":50},{"$f":"+IFERROR(VLOOKUP(OA$6&\"-\"&$M12&\"_old\",Ammortamento_Finanziario!$H:$L,5,FALSE),VLOOKUP($M12,TT_Tabelle_Riferimento!$H$31:$I$50,2,FALSE))","v":50},{"$f":"+IFERROR(VLOOKUP(OB$6&\"-\"&$M12&\"_old\",Ammortamento_Finanziario!$H:$L,5,FALSE),VLOOKUP($M12,TT_Tabelle_Riferimento!$H$31:$I$50,2,FALSE))","v":50},{"$f":"+IFERROR(VLOOKUP(OC$6&\"-\"&$M12&\"_old\",Ammortamento_Finanziario!$H:$L,5,FALSE),VLOOKUP($M12,TT_Tabelle_Riferimento!$H$31:$I$50,2,FALSE))","v":50},{"$f":"+IFERROR(VLOOKUP(OD$6&\"-\"&$M12&\"_old\",Ammortamento_Finanziario!$H:$L,5,FALSE),VLOOKUP($M12,TT_Tabelle_Riferimento!$H$31:$I$50,2,FALSE))","v":50},{"$f":"+IFERROR(VLOOKUP(OE$6&\"-\"&$M12&\"_old\",Ammortamento_Finanziario!$H:$L,5,FALSE),VLOOKUP($M12,TT_Tabelle_Riferimento!$H$31:$I$50,2,FALSE))","v":50},{"$f":"+IFERROR(VLOOKUP(OF$6&\"-\"&$M12&\"_old\",Ammortamento_Finanziario!$H:$L,5,FALSE),VLOOKUP($M12,TT_Tabelle_Riferimento!$H$31:$I$50,2,FALSE))","v":50},{"$f":"+IFERROR(VLOOKUP(OG$6&\"-\"&$M12&\"_old\",Ammortamento_Finanziario!$H:$L,5,FALSE),VLOOKUP($M12,TT_Tabelle_Riferimento!$H$31:$I$50,2,FALSE))","v":50},{"$f":"+IFERROR(VLOOKUP(OH$6&\"-\"&$M12&\"_old\",Ammortamento_Finanziario!$H:$L,5,FALSE),VLOOKUP($M12,TT_Tabelle_Riferimento!$H$31:$I$50,2,FALSE))","v":50},{"$f":"+IFERROR(VLOOKUP(OI$6&\"-\"&$M12&\"_old\",Ammortamento_Finanziario!$H:$L,5,FALSE),VLOOKUP($M12,TT_Tabelle_Riferimento!$H$31:$I$50,2,FALSE))","v":50},{"$f":"+IFERROR(VLOOKUP(OJ$6&\"-\"&$M12&\"_old\",Ammortamento_Finanziario!$H:$L,5,FALSE),VLOOKUP($M12,TT_Tabelle_Riferimento!$H$31:$I$50,2,FALSE))","v":50},{"$f":"+IFERROR(VLOOKUP(OK$6&\"-\"&$M12&\"_old\",Ammortamento_Finanziario!$H:$L,5,FALSE),VLOOKUP($M12,TT_Tabelle_Riferimento!$H$31:$I$50,2,FALSE))","v":50},{"$f":"+IFERROR(VLOOKUP(OL$6&\"-\"&$M12&\"_old\",Ammortamento_Finanziario!$H:$L,5,FALSE),VLOOKUP($M12,TT_Tabelle_Riferimento!$H$31:$I$50,2,FALSE))","v":50},{"$f":"+IFERROR(VLOOKUP(OM$6&\"-\"&$M12&\"_old\",Ammortamento_Finanziario!$H:$L,5,FALSE),VLOOKUP($M12,TT_Tabelle_Riferimento!$H$31:$I$50,2,FALSE))","v":50},{"$f":"+IFERROR(VLOOKUP(ON$6&\"-\"&$M12&\"_old\",Ammortamento_Finanziario!$H:$L,5,FALSE),VLOOKUP($M12,TT_Tabelle_Riferimento!$H$31:$I$50,2,FALSE))","v":50},{"$f":"+IFERROR(VLOOKUP(OO$6&\"-\"&$M12&\"_old\",Ammortamento_Finanziario!$H:$L,5,FALSE),VLOOKUP($M12,TT_Tabelle_Riferimento!$H$31:$I$50,2,FALSE))","v":50},{"$f":"+IFERROR(VLOOKUP(OP$6&\"-\"&$M12&\"_old\",Ammortamento_Finanziario!$H:$L,5,FALSE),VLOOKUP($M12,TT_Tabelle_Riferimento!$H$31:$I$50,2,FALSE))","v":50},{"$f":"+IFERROR(VLOOKUP(OQ$6&\"-\"&$M12&\"_old\",Ammortamento_Finanziario!$H:$L,5,FALSE),VLOOKUP($M12,TT_Tabelle_Riferimento!$H$31:$I$50,2,FALSE))","v":50},{"$f":"+IFERROR(VLOOKUP(OR$6&\"-\"&$M12&\"_old\",Ammortamento_Finanziario!$H:$L,5,FALSE),VLOOKUP($M12,TT_Tabelle_Riferimento!$H$31:$I$50,2,FALSE))","v":50},{"$f":"+IFERROR(VLOOKUP(OS$6&\"-\"&$M12&\"_old\",Ammortamento_Finanziario!$H:$L,5,FALSE),VLOOKUP($M12,TT_Tabelle_Riferimento!$H$31:$I$50,2,FALSE))","v":50},{"$f":"+IFERROR(VLOOKUP(OT$6&\"-\"&$M12&\"_old\",Ammortamento_Finanziario!$H:$L,5,FALSE),VLOOKUP($M12,TT_Tabelle_Riferimento!$H$31:$I$50,2,FALSE))","v":50},{"$f":"+IFERROR(VLOOKUP(OU$6&\"-\"&$M12&\"_old\",Ammortamento_Finanziario!$H:$L,5,FALSE),VLOOKUP($M12,TT_Tabelle_Riferimento!$H$31:$I$50,2,FALSE))","v":50},{"$f":"+IFERROR(VLOOKUP(OV$6&\"-\"&$M12&\"_old\",Ammortamento_Finanziario!$H:$L,5,FALSE),VLOOKUP($M12,TT_Tabelle_Riferimento!$H$31:$I$50,2,FALSE))","v":50},{"$f":"+IFERROR(VLOOKUP(OW$6&\"-\"&$M12&\"_old\",Ammortamento_Finanziario!$H:$L,5,FALSE),VLOOKUP($M12,TT_Tabelle_Riferimento!$H$31:$I$50,2,FALSE))","v":50},{"$f":"+IFERROR(VLOOKUP(OX$6&\"-\"&$M12&\"_old\",Ammortamento_Finanziario!$H:$L,5,FALSE),VLOOKUP($M12,TT_Tabelle_Riferimento!$H$31:$I$50,2,FALSE))","v":50},{"$f":"+IFERROR(VLOOKUP(OY$6&\"-\"&$M12&\"_old\",Ammortamento_Finanziario!$H:$L,5,FALSE),VLOOKUP($M12,TT_Tabelle_Riferimento!$H$31:$I$50,2,FALSE))","v":50},{"$f":"+IFERROR(VLOOKUP(OZ$6&\"-\"&$M12&\"_old\",Ammortamento_Finanziario!$H:$L,5,FALSE),VLOOKUP($M12,TT_Tabelle_Riferimento!$H$31:$I$50,2,FALSE))","v":50},{"$f":"+IFERROR(VLOOKUP(PA$6&\"-\"&$M12&\"_old\",Ammortamento_Finanziario!$H:$L,5,FALSE),VLOOKUP($M12,TT_Tabelle_Riferimento!$H$31:$I$50,2,FALSE))","v":50},{"$f":"+IFERROR(VLOOKUP(PB$6&\"-\"&$M12&\"_old\",Ammortamento_Finanziario!$H:$L,5,FALSE),VLOOKUP($M12,TT_Tabelle_Riferimento!$H$31:$I$50,2,FALSE))","v":50},{"$f":"+IFERROR(VLOOKUP(PC$6&\"-\"&$M12&\"_old\",Ammortamento_Finanziario!$H:$L,5,FALSE),VLOOKUP($M12,TT_Tabelle_Riferimento!$H$31:$I$50,2,FALSE))","v":50},{"$f":"+IFERROR(VLOOKUP(PD$6&\"-\"&$M12&\"_old\",Ammortamento_Finanziario!$H:$L,5,FALSE),VLOOKUP($M12,TT_Tabelle_Riferimento!$H$31:$I$50,2,FALSE))","v":50},{"$f":"+IFERROR(VLOOKUP(PE$6&\"-\"&$M12&\"_old\",Ammortamento_Finanziario!$H:$L,5,FALSE),VLOOKUP($M12,TT_Tabelle_Riferimento!$H$31:$I$50,2,FALSE))","v":50},{"$f":"+IFERROR(VLOOKUP(PF$6&\"-\"&$M12&\"_old\",Ammortamento_Finanziario!$H:$L,5,FALSE),VLOOKUP($M12,TT_Tabelle_Riferimento!$H$31:$I$50,2,FALSE))","v":50},{"$f":"+IFERROR(VLOOKUP(PG$6&\"-\"&$M12&\"_old\",Ammortamento_Finanziario!$H:$L,5,FALSE),VLOOKUP($M12,TT_Tabelle_Riferimento!$H$31:$I$50,2,FALSE))","v":50},{"$f":"+IFERROR(VLOOKUP(PH$6&\"-\"&$M12&\"_old\",Ammortamento_Finanziario!$H:$L,5,FALSE),VLOOKUP($M12,TT_Tabelle_Riferimento!$H$31:$I$50,2,FALSE))","v":50},{"$f":"+IFERROR(VLOOKUP(PI$6&\"-\"&$M12&\"_old\",Ammortamento_Finanziario!$H:$L,5,FALSE),VLOOKUP($M12,TT_Tabelle_Riferimento!$H$31:$I$50,2,FALSE))","v":50},{"$f":"+IFERROR(VLOOKUP(PJ$6&\"-\"&$M12&\"_old\",Ammortamento_Finanziario!$H:$L,5,FALSE),VLOOKUP($M12,TT_Tabelle_Riferimento!$H$31:$I$50,2,FALSE))","v":50},{"$f":"+IFERROR(VLOOKUP(PK$6&\"-\"&$M12&\"_old\",Ammortamento_Finanziario!$H:$L,5,FALSE),VLOOKUP($M12,TT_Tabelle_Riferimento!$H$31:$I$50,2,FALSE))","v":50},{"$f":"+IFERROR(VLOOKUP(PL$6&\"-\"&$M12&\"_old\",Ammortamento_Finanziario!$H:$L,5,FALSE),VLOOKUP($M12,TT_Tabelle_Riferimento!$H$31:$I$50,2,FALSE))","v":50},{"$f":"+IFERROR(VLOOKUP(PM$6&\"-\"&$M12&\"_old\",Ammortamento_Finanziario!$H:$L,5,FALSE),VLOOKUP($M12,TT_Tabelle_Riferimento!$H$31:$I$50,2,FALSE))","v":50},{"$f":"+IFERROR(VLOOKUP(PN$6&\"-\"&$M12&\"_old\",Ammortamento_Finanziario!$H:$L,5,FALSE),VLOOKUP($M12,TT_Tabelle_Riferimento!$H$31:$I$50,2,FALSE))","v":50},{"$f":"+IFERROR(VLOOKUP(PO$6&\"-\"&$M12&\"_old\",Ammortamento_Finanziario!$H:$L,5,FALSE),VLOOKUP($M12,TT_Tabelle_Riferimento!$H$31:$I$50,2,FALSE))","v":50},{"$f":"+IFERROR(VLOOKUP(PP$6&\"-\"&$M12&\"_old\",Ammortamento_Finanziario!$H:$L,5,FALSE),VLOOKUP($M12,TT_Tabelle_Riferimento!$H$31:$I$50,2,FALSE))","v":50},{"$f":"+IFERROR(VLOOKUP(PQ$6&\"-\"&$M12&\"_old\",Ammortamento_Finanziario!$H:$L,5,FALSE),VLOOKUP($M12,TT_Tabelle_Riferimento!$H$31:$I$50,2,FALSE))","v":50},{"$f":"+IFERROR(VLOOKUP(PR$6&\"-\"&$M12&\"_old\",Ammortamento_Finanziario!$H:$L,5,FALSE),VLOOKUP($M12,TT_Tabelle_Riferimento!$H$31:$I$50,2,FALSE))","v":50},{"$f":"+IFERROR(VLOOKUP(PS$6&\"-\"&$M12&\"_old\",Ammortamento_Finanziario!$H:$L,5,FALSE),VLOOKUP($M12,TT_Tabelle_Riferimento!$H$31:$I$50,2,FALSE))","v":50},{"$f":"+IFERROR(VLOOKUP(PT$6&\"-\"&$M12&\"_old\",Ammortamento_Finanziario!$H:$L,5,FALSE),VLOOKUP($M12,TT_Tabelle_Riferimento!$H$31:$I$50,2,FALSE))","v":50},{"$f":"+IFERROR(VLOOKUP(PU$6&\"-\"&$M12&\"_old\",Ammortamento_Finanziario!$H:$L,5,FALSE),VLOOKUP($M12,TT_Tabelle_Riferimento!$H$31:$I$50,2,FALSE))","v":50},{"$f":"+IFERROR(VLOOKUP(PV$6&\"-\"&$M12&\"_old\",Ammortamento_Finanziario!$H:$L,5,FALSE),VLOOKUP($M12,TT_Tabelle_Riferimento!$H$31:$I$50,2,FALSE))","v":50},{"$f":"+IFERROR(VLOOKUP(PW$6&\"-\"&$M12&\"_old\",Ammortamento_Finanziario!$H:$L,5,FALSE),VLOOKUP($M12,TT_Tabelle_Riferimento!$H$31:$I$50,2,FALSE))","v":50},{"$f":"+IFERROR(VLOOKUP(PX$6&\"-\"&$M12&\"_old\",Ammortamento_Finanziario!$H:$L,5,FALSE),VLOOKUP($M12,TT_Tabelle_Riferimento!$H$31:$I$50,2,FALSE))","v":50},{"$f":"+IFERROR(VLOOKUP(PY$6&\"-\"&$M12&\"_old\",Ammortamento_Finanziario!$H:$L,5,FALSE),VLOOKUP($M12,TT_Tabelle_Riferimento!$H$31:$I$50,2,FALSE))","v":50},{"$f":"+IFERROR(VLOOKUP(PZ$6&\"-\"&$M12&\"_old\",Ammortamento_Finanziario!$H:$L,5,FALSE),VLOOKUP($M12,TT_Tabelle_Riferimento!$H$31:$I$50,2,FALSE))","v":50},{"$f":"+IFERROR(VLOOKUP(QA$6&\"-\"&$M12&\"_old\",Ammortamento_Finanziario!$H:$L,5,FALSE),VLOOKUP($M12,TT_Tabelle_Riferimento!$H$31:$I$50,2,FALSE))","v":50},{"$f":"+IFERROR(VLOOKUP(QB$6&\"-\"&$M12&\"_old\",Ammortamento_Finanziario!$H:$L,5,FALSE),VLOOKUP($M12,TT_Tabelle_Riferimento!$H$31:$I$50,2,FALSE))","v":50},{"$f":"+IFERROR(VLOOKUP(QC$6&\"-\"&$M12&\"_old\",Ammortamento_Finanziario!$H:$L,5,FALSE),VLOOKUP($M12,TT_Tabelle_Riferimento!$H$31:$I$50,2,FALSE))","v":50},{"$f":"+IFERROR(VLOOKUP(QD$6&\"-\"&$M12&\"_old\",Ammortamento_Finanziario!$H:$L,5,FALSE),VLOOKUP($M12,TT_Tabelle_Riferimento!$H$31:$I$50,2,FALSE))","v":50},{"$f":"+IFERROR(VLOOKUP(QE$6&\"-\"&$M12&\"_old\",Ammortamento_Finanziario!$H:$L,5,FALSE),VLOOKUP($M12,TT_Tabelle_Riferimento!$H$31:$I$50,2,FALSE))","v":50},{"$f":"+IFERROR(VLOOKUP(QF$6&\"-\"&$M12&\"_old\",Ammortamento_Finanziario!$H:$L,5,FALSE),VLOOKUP($M12,TT_Tabelle_Riferimento!$H$31:$I$50,2,FALSE))","v":50},{"$f":"+IFERROR(VLOOKUP(QG$6&\"-\"&$M12&\"_old\",Ammortamento_Finanziario!$H:$L,5,FALSE),VLOOKUP($M12,TT_Tabelle_Riferimento!$H$31:$I$50,2,FALSE))","v":50},{"$f":"+IFERROR(VLOOKUP(QH$6&\"-\"&$M12&\"_old\",Ammortamento_Finanziario!$H:$L,5,FALSE),VLOOKUP($M12,TT_Tabelle_Riferimento!$H$31:$I$50,2,FALSE))","v":50},{"$f":"+IFERROR(VLOOKUP(QI$6&\"-\"&$M12&\"_old\",Ammortamento_Finanziario!$H:$L,5,FALSE),VLOOKUP($M12,TT_Tabelle_Riferimento!$H$31:$I$50,2,FALSE))","v":50},{"$f":"+IFERROR(VLOOKUP(QJ$6&\"-\"&$M12&\"_old\",Ammortamento_Finanziario!$H:$L,5,FALSE),VLOOKUP($M12,TT_Tabelle_Riferimento!$H$31:$I$50,2,FALSE))","v":50},{"$f":"+IFERROR(VLOOKUP(QK$6&\"-\"&$M12&\"_old\",Ammortamento_Finanziario!$H:$L,5,FALSE),VLOOKUP($M12,TT_Tabelle_Riferimento!$H$31:$I$50,2,FALSE))","v":50},{"$f":"+IFERROR(VLOOKUP(QL$6&\"-\"&$M12&\"_old\",Ammortamento_Finanziario!$H:$L,5,FALSE),VLOOKUP($M12,TT_Tabelle_Riferimento!$H$31:$I$50,2,FALSE))","v":50},{"$f":"+IFERROR(VLOOKUP(QM$6&\"-\"&$M12&\"_old\",Ammortamento_Finanziario!$H:$L,5,FALSE),VLOOKUP($M12,TT_Tabelle_Riferimento!$H$31:$I$50,2,FALSE))","v":50},{"$f":"+IFERROR(VLOOKUP(QN$6&\"-\"&$M12&\"_old\",Ammortamento_Finanziario!$H:$L,5,FALSE),VLOOKUP($M12,TT_Tabelle_Riferimento!$H$31:$I$50,2,FALSE))","v":50},{"$f":"+IFERROR(VLOOKUP(QO$6&\"-\"&$M12&\"_old\",Ammortamento_Finanziario!$H:$L,5,FALSE),VLOOKUP($M12,TT_Tabelle_Riferimento!$H$31:$I$50,2,FALSE))","v":50},{"$f":"+IFERROR(VLOOKUP(QP$6&\"-\"&$M12&\"_old\",Ammortamento_Finanziario!$H:$L,5,FALSE),VLOOKUP($M12,TT_Tabelle_Riferimento!$H$31:$I$50,2,FALSE))","v":50},{"$f":"+IFERROR(VLOOKUP(QQ$6&\"-\"&$M12&\"_old\",Ammortamento_Finanziario!$H:$L,5,FALSE),VLOOKUP($M12,TT_Tabelle_Riferimento!$H$31:$I$50,2,FALSE))","v":50},{"$f":"+IFERROR(VLOOKUP(QR$6&\"-\"&$M12&\"_old\",Ammortamento_Finanziario!$H:$L,5,FALSE),VLOOKUP($M12,TT_Tabelle_Riferimento!$H$31:$I$50,2,FALSE))","v":50},{"$f":"+IFERROR(VLOOKUP(QS$6&\"-\"&$M12&\"_old\",Ammortamento_Finanziario!$H:$L,5,FALSE),VLOOKUP($M12,TT_Tabelle_Riferimento!$H$31:$I$50,2,FALSE))","v":50},{"$f":"+IFERROR(VLOOKUP(QT$6&\"-\"&$M12&\"_old\",Ammortamento_Finanziario!$H:$L,5,FALSE),VLOOKUP($M12,TT_Tabelle_Riferimento!$H$31:$I$50,2,FALSE))","v":50},{"$f":"+IFERROR(VLOOKUP(QU$6&\"-\"&$M12&\"_old\",Ammortamento_Finanziario!$H:$L,5,FALSE),VLOOKUP($M12,TT_Tabelle_Riferimento!$H$31:$I$50,2,FALSE))","v":50},{"$f":"+IFERROR(VLOOKUP(QV$6&\"-\"&$M12&\"_old\",Ammortamento_Finanziario!$H:$L,5,FALSE),VLOOKUP($M12,TT_Tabelle_Riferimento!$H$31:$I$50,2,FALSE))","v":50},{"$f":"+IFERROR(VLOOKUP(QW$6&\"-\"&$M12&\"_old\",Ammortamento_Finanziario!$H:$L,5,FALSE),VLOOKUP($M12,TT_Tabelle_Riferimento!$H$31:$I$50,2,FALSE))","v":50},{"$f":"+IFERROR(VLOOKUP(QX$6&\"-\"&$M12&\"_old\",Ammortamento_Finanziario!$H:$L,5,FALSE),VLOOKUP($M12,TT_Tabelle_Riferimento!$H$31:$I$50,2,FALSE))","v":50},{"$f":"+IFERROR(VLOOKUP(QY$6&\"-\"&$M12&\"_old\",Ammortamento_Finanziario!$H:$L,5,FALSE),VLOOKUP($M12,TT_Tabelle_Riferimento!$H$31:$I$50,2,FALSE))","v":50},{"$f":"+IFERROR(VLOOKUP(QZ$6&\"-\"&$M12&\"_old\",Ammortamento_Finanziario!$H:$L,5,FALSE),VLOOKUP($M12,TT_Tabelle_Riferimento!$H$31:$I$50,2,FALSE))","v":50},{"$f":"+IFERROR(VLOOKUP(RA$6&\"-\"&$M12&\"_old\",Ammortamento_Finanziario!$H:$L,5,FALSE),VLOOKUP($M12,TT_Tabelle_Riferimento!$H$31:$I$50,2,FALSE))","v":50},{"$f":"+IFERROR(VLOOKUP(RB$6&\"-\"&$M12&\"_old\",Ammortamento_Finanziario!$H:$L,5,FALSE),VLOOKUP($M12,TT_Tabelle_Riferimento!$H$31:$I$50,2,FALSE))","v":50},{"$f":"+IFERROR(VLOOKUP(RC$6&\"-\"&$M12&\"_old\",Ammortamento_Finanziario!$H:$L,5,FALSE),VLOOKUP($M12,TT_Tabelle_Riferimento!$H$31:$I$50,2,FALSE))","v":50},{"$f":"+IFERROR(VLOOKUP(RD$6&\"-\"&$M12&\"_old\",Ammortamento_Finanziario!$H:$L,5,FALSE),VLOOKUP($M12,TT_Tabelle_Riferimento!$H$31:$I$50,2,FALSE))","v":50},{"$f":"+IFERROR(VLOOKUP(RE$6&\"-\"&$M12&\"_old\",Ammortamento_Finanziario!$H:$L,5,FALSE),VLOOKUP($M12,TT_Tabelle_Riferimento!$H$31:$I$50,2,FALSE))","v":50},{"$f":"+IFERROR(VLOOKUP(RF$6&\"-\"&$M12&\"_old\",Ammortamento_Finanziario!$H:$L,5,FALSE),VLOOKUP($M12,TT_Tabelle_Riferimento!$H$31:$I$50,2,FALSE))","v":50},{"$f":"+IFERROR(VLOOKUP(RG$6&\"-\"&$M12&\"_old\",Ammortamento_Finanziario!$H:$L,5,FALSE),VLOOKUP($M12,TT_Tabelle_Riferimento!$H$31:$I$50,2,FALSE))","v":50},{"$f":"+IFERROR(VLOOKUP(RH$6&\"-\"&$M12&\"_old\",Ammortamento_Finanziario!$H:$L,5,FALSE),VLOOKUP($M12,TT_Tabelle_Riferimento!$H$31:$I$50,2,FALSE))","v":50},{"$f":"+IFERROR(VLOOKUP(RI$6&\"-\"&$M12&\"_old\",Ammortamento_Finanziario!$H:$L,5,FALSE),VLOOKUP($M12,TT_Tabelle_Riferimento!$H$31:$I$50,2,FALSE))","v":50},{"$f":"+IFERROR(VLOOKUP(RJ$6&\"-\"&$M12&\"_old\",Ammortamento_Finanziario!$H:$L,5,FALSE),VLOOKUP($M12,TT_Tabelle_Riferimento!$H$31:$I$50,2,FALSE))","v":50},{"$f":"+IFERROR(VLOOKUP(RK$6&\"-\"&$M12&\"_old\",Ammortamento_Finanziario!$H:$L,5,FALSE),VLOOKUP($M12,TT_Tabelle_Riferimento!$H$31:$I$50,2,FALSE))","v":50},{"$f":"+IFERROR(VLOOKUP(RL$6&\"-\"&$M12&\"_old\",Ammortamento_Finanziario!$H:$L,5,FALSE),VLOOKUP($M12,TT_Tabelle_Riferimento!$H$31:$I$50,2,FALSE))","v":50},{"$f":"+IFERROR(VLOOKUP(RM$6&\"-\"&$M12&\"_old\",Ammortamento_Finanziario!$H:$L,5,FALSE),VLOOKUP($M12,TT_Tabelle_Riferimento!$H$31:$I$50,2,FALSE))","v":50},{"$f":"+IFERROR(VLOOKUP(RN$6&\"-\"&$M12&\"_old\",Ammortamento_Finanziario!$H:$L,5,FALSE),VLOOKUP($M12,TT_Tabelle_Riferimento!$H$31:$I$50,2,FALSE))","v":50},{"$f":"+IFERROR(VLOOKUP(RO$6&\"-\"&$M12&\"_old\",Ammortamento_Finanziario!$H:$L,5,FALSE),VLOOKUP($M12,TT_Tabelle_Riferimento!$H$31:$I$50,2,FALSE))","v":50},{"$f":"+IFERROR(VLOOKUP(RP$6&\"-\"&$M12&\"_old\",Ammortamento_Finanziario!$H:$L,5,FALSE),VLOOKUP($M12,TT_Tabelle_Riferimento!$H$31:$I$50,2,FALSE))","v":50},{"$f":"+IFERROR(VLOOKUP(RQ$6&\"-\"&$M12&\"_old\",Ammortamento_Finanziario!$H:$L,5,FALSE),VLOOKUP($M12,TT_Tabelle_Riferimento!$H$31:$I$50,2,FALSE))","v":50},{"$f":"+IFERROR(VLOOKUP(RR$6&\"-\"&$M12&\"_old\",Ammortamento_Finanziario!$H:$L,5,FALSE),VLOOKUP($M12,TT_Tabelle_Riferimento!$H$31:$I$50,2,FALSE))","v":50},{"$f":"+IFERROR(VLOOKUP(RS$6&\"-\"&$M12&\"_old\",Ammortamento_Finanziario!$H:$L,5,FALSE),VLOOKUP($M12,TT_Tabelle_Riferimento!$H$31:$I$50,2,FALSE))","v":50},{"$f":"+IFERROR(VLOOKUP(RT$6&\"-\"&$M12&\"_old\",Ammortamento_Finanziario!$H:$L,5,FALSE),VLOOKUP($M12,TT_Tabelle_Riferimento!$H$31:$I$50,2,FALSE))","v":50},{"$f":"+IFERROR(VLOOKUP(RU$6&\"-\"&$M12&\"_old\",Ammortamento_Finanziario!$H:$L,5,FALSE),VLOOKUP($M12,TT_Tabelle_Riferimento!$H$31:$I$50,2,FALSE))","v":50},{"$f":"+IFERROR(VLOOKUP(RV$6&\"-\"&$M12&\"_old\",Ammortamento_Finanziario!$H:$L,5,FALSE),VLOOKUP($M12,TT_Tabelle_Riferimento!$H$31:$I$50,2,FALSE))","v":50}]
[null,null,null,"AMMcfp",{"$f":"+SUM(IMN_gestore!$X:$X)","v":0},{"$f":"+SUM(IMN_gestore!$AI:$AI)","v":0},{"$f":"+SUM(IMN_gestore!$AT:$AT)","v":0},{"$f":"+SUM(IMN_gestore!$BE:$BE)","v":0},{"$f":"+SUM(IMN_gestore!BP:BP)","v":0},{"$f":"+SUM(IMN_gestore!$CA:$CA)","v":0},null,null,7,{"$f":"+IFERROR(VLOOKUP(N$6&\"-\"&$M13&\"_old\",Ammortamento_Finanziario!$H:$L,5,FALSE),VLOOKUP($M13,TT_Tabelle_Riferimento!$H$31:$I$50,2,FALSE))","v":12},{"$f":"+IFERROR(VLOOKUP(O$6&\"-\"&$M13&\"_old\",Ammortamento_Finanziario!$H:$L,5,FALSE),VLOOKUP($M13,TT_Tabelle_Riferimento!$H$31:$I$50,2,FALSE))","v":12},{"$f":"+IFERROR(VLOOKUP(P$6&\"-\"&$M13&\"_old\",Ammortamento_Finanziario!$H:$L,5,FALSE),VLOOKUP($M13,TT_Tabelle_Riferimento!$H$31:$I$50,2,FALSE))","v":12},{"$f":"+IFERROR(VLOOKUP(Q$6&\"-\"&$M13&\"_old\",Ammortamento_Finanziario!$H:$L,5,FALSE),VLOOKUP($M13,TT_Tabelle_Riferimento!$H$31:$I$50,2,FALSE))","v":12},{"$f":"+IFERROR(VLOOKUP(R$6&\"-\"&$M13&\"_old\",Ammortamento_Finanziario!$H:$L,5,FALSE),VLOOKUP($M13,TT_Tabelle_Riferimento!$H$31:$I$50,2,FALSE))","v":12},{"$f":"+IFERROR(VLOOKUP(S$6&\"-\"&$M13&\"_old\",Ammortamento_Finanziario!$H:$L,5,FALSE),VLOOKUP($M13,TT_Tabelle_Riferimento!$H$31:$I$50,2,FALSE))","v":12},{"$f":"+IFERROR(VLOOKUP(T$6&\"-\"&$M13&\"_old\",Ammortamento_Finanziario!$H:$L,5,FALSE),VLOOKUP($M13,TT_Tabelle_Riferimento!$H$31:$I$50,2,FALSE))","v":12},{"$f":"+IFERROR(VLOOKUP(U$6&\"-\"&$M13&\"_old\",Ammortamento_Finanziario!$H:$L,5,FALSE),VLOOKUP($M13,TT_Tabelle_Riferimento!$H$31:$I$50,2,FALSE))","v":12},{"$f":"+IFERROR(VLOOKUP(V$6&\"-\"&$M13&\"_old\",Ammortamento_Finanziario!$H:$L,5,FALSE),VLOOKUP($M13,TT_Tabelle_Riferimento!$H$31:$I$50,2,FALSE))","v":12},{"$f":"+IFERROR(VLOOKUP(W$6&\"-\"&$M13&\"_old\",Ammortamento_Finanziario!$H:$L,5,FALSE),VLOOKUP($M13,TT_Tabelle_Riferimento!$H$31:$I$50,2,FALSE))","v":12},{"$f":"+IFERROR(VLOOKUP(X$6&\"-\"&$M13&\"_old\",Ammortamento_Finanziario!$H:$L,5,FALSE),VLOOKUP($M13,TT_Tabelle_Riferimento!$H$31:$I$50,2,FALSE))","v":12},{"$f":"+IFERROR(VLOOKUP(Y$6&\"-\"&$M13&\"_old\",Ammortamento_Finanziario!$H:$L,5,FALSE),VLOOKUP($M13,TT_Tabelle_Riferimento!$H$31:$I$50,2,FALSE))","v":12},{"$f":"+IFERROR(VLOOKUP(Z$6&\"-\"&$M13&\"_old\",Ammortamento_Finanziario!$H:$L,5,FALSE),VLOOKUP($M13,TT_Tabelle_Riferimento!$H$31:$I$50,2,FALSE))","v":12},{"$f":"+IFERROR(VLOOKUP(AA$6&\"-\"&$M13&\"_old\",Ammortamento_Finanziario!$H:$L,5,FALSE),VLOOKUP($M13,TT_Tabelle_Riferimento!$H$31:$I$50,2,FALSE))","v":12},{"$f":"+IFERROR(VLOOKUP(AB$6&\"-\"&$M13&\"_old\",Ammortamento_Finanziario!$H:$L,5,FALSE),VLOOKUP($M13,TT_Tabelle_Riferimento!$H$31:$I$50,2,FALSE))","v":12},{"$f":"+IFERROR(VLOOKUP(AC$6&\"-\"&$M13&\"_old\",Ammortamento_Finanziario!$H:$L,5,FALSE),VLOOKUP($M13,TT_Tabelle_Riferimento!$H$31:$I$50,2,FALSE))","v":12},{"$f":"+IFERROR(VLOOKUP(AD$6&\"-\"&$M13&\"_old\",Ammortamento_Finanziario!$H:$L,5,FALSE),VLOOKUP($M13,TT_Tabelle_Riferimento!$H$31:$I$50,2,FALSE))","v":12},{"$f":"+IFERROR(VLOOKUP(AE$6&\"-\"&$M13&\"_old\",Ammortamento_Finanziario!$H:$L,5,FALSE),VLOOKUP($M13,TT_Tabelle_Riferimento!$H$31:$I$50,2,FALSE))","v":12},{"$f":"+IFERROR(VLOOKUP(AF$6&\"-\"&$M13&\"_old\",Ammortamento_Finanziario!$H:$L,5,FALSE),VLOOKUP($M13,TT_Tabelle_Riferimento!$H$31:$I$50,2,FALSE))","v":12},{"$f":"+IFERROR(VLOOKUP(AG$6&\"-\"&$M13&\"_old\",Ammortamento_Finanziario!$H:$L,5,FALSE),VLOOKUP($M13,TT_Tabelle_Riferimento!$H$31:$I$50,2,FALSE))","v":12},{"$f":"+IFERROR(VLOOKUP(AH$6&\"-\"&$M13&\"_old\",Ammortamento_Finanziario!$H:$L,5,FALSE),VLOOKUP($M13,TT_Tabelle_Riferimento!$H$31:$I$50,2,FALSE))","v":12},{"$f":"+IFERROR(VLOOKUP(AI$6&\"-\"&$M13&\"_old\",Ammortamento_Finanziario!$H:$L,5,FALSE),VLOOKUP($M13,TT_Tabelle_Riferimento!$H$31:$I$50,2,FALSE))","v":12},{"$f":"+IFERROR(VLOOKUP(AJ$6&\"-\"&$M13&\"_old\",Ammortamento_Finanziario!$H:$L,5,FALSE),VLOOKUP($M13,TT_Tabelle_Riferimento!$H$31:$I$50,2,FALSE))","v":12},{"$f":"+IFERROR(VLOOKUP(AK$6&\"-\"&$M13&\"_old\",Ammortamento_Finanziario!$H:$L,5,FALSE),VLOOKUP($M13,TT_Tabelle_Riferimento!$H$31:$I$50,2,FALSE))","v":12},{"$f":"+IFERROR(VLOOKUP(AL$6&\"-\"&$M13&\"_old\",Ammortamento_Finanziario!$H:$L,5,FALSE),VLOOKUP($M13,TT_Tabelle_Riferimento!$H$31:$I$50,2,FALSE))","v":12},{"$f":"+IFERROR(VLOOKUP(AM$6&\"-\"&$M13&\"_old\",Ammortamento_Finanziario!$H:$L,5,FALSE),VLOOKUP($M13,TT_Tabelle_Riferimento!$H$31:$I$50,2,FALSE))","v":12},{"$f":"+IFERROR(VLOOKUP(AN$6&\"-\"&$M13&\"_old\",Ammortamento_Finanziario!$H:$L,5,FALSE),VLOOKUP($M13,TT_Tabelle_Riferimento!$H$31:$I$50,2,FALSE))","v":12},{"$f":"+IFERROR(VLOOKUP(AO$6&\"-\"&$M13&\"_old\",Ammortamento_Finanziario!$H:$L,5,FALSE),VLOOKUP($M13,TT_Tabelle_Riferimento!$H$31:$I$50,2,FALSE))","v":12},{"$f":"+IFERROR(VLOOKUP(AP$6&\"-\"&$M13&\"_old\",Ammortamento_Finanziario!$H:$L,5,FALSE),VLOOKUP($M13,TT_Tabelle_Riferimento!$H$31:$I$50,2,FALSE))","v":12},{"$f":"+IFERROR(VLOOKUP(AQ$6&\"-\"&$M13&\"_old\",Ammortamento_Finanziario!$H:$L,5,FALSE),VLOOKUP($M13,TT_Tabelle_Riferimento!$H$31:$I$50,2,FALSE))","v":12},{"$f":"+IFERROR(VLOOKUP(AR$6&\"-\"&$M13&\"_old\",Ammortamento_Finanziario!$H:$L,5,FALSE),VLOOKUP($M13,TT_Tabelle_Riferimento!$H$31:$I$50,2,FALSE))","v":12},{"$f":"+IFERROR(VLOOKUP(AS$6&\"-\"&$M13&\"_old\",Ammortamento_Finanziario!$H:$L,5,FALSE),VLOOKUP($M13,TT_Tabelle_Riferimento!$H$31:$I$50,2,FALSE))","v":12},{"$f":"+IFERROR(VLOOKUP(AT$6&\"-\"&$M13&\"_old\",Ammortamento_Finanziario!$H:$L,5,FALSE),VLOOKUP($M13,TT_Tabelle_Riferimento!$H$31:$I$50,2,FALSE))","v":12},{"$f":"+IFERROR(VLOOKUP(AU$6&\"-\"&$M13&\"_old\",Ammortamento_Finanziario!$H:$L,5,FALSE),VLOOKUP($M13,TT_Tabelle_Riferimento!$H$31:$I$50,2,FALSE))","v":12},{"$f":"+IFERROR(VLOOKUP(AV$6&\"-\"&$M13&\"_old\",Ammortamento_Finanziario!$H:$L,5,FALSE),VLOOKUP($M13,TT_Tabelle_Riferimento!$H$31:$I$50,2,FALSE))","v":12},{"$f":"+IFERROR(VLOOKUP(AW$6&\"-\"&$M13&\"_old\",Ammortamento_Finanziario!$H:$L,5,FALSE),VLOOKUP($M13,TT_Tabelle_Riferimento!$H$31:$I$50,2,FALSE))","v":12},{"$f":"+IFERROR(VLOOKUP(AX$6&\"-\"&$M13&\"_old\",Ammortamento_Finanziario!$H:$L,5,FALSE),VLOOKUP($M13,TT_Tabelle_Riferimento!$H$31:$I$50,2,FALSE))","v":12},{"$f":"+IFERROR(VLOOKUP(AY$6&\"-\"&$M13&\"_old\",Ammortamento_Finanziario!$H:$L,5,FALSE),VLOOKUP($M13,TT_Tabelle_Riferimento!$H$31:$I$50,2,FALSE))","v":12},{"$f":"+IFERROR(VLOOKUP(AZ$6&\"-\"&$M13&\"_old\",Ammortamento_Finanziario!$H:$L,5,FALSE),VLOOKUP($M13,TT_Tabelle_Riferimento!$H$31:$I$50,2,FALSE))","v":12},{"$f":"+IFERROR(VLOOKUP(BA$6&\"-\"&$M13&\"_old\",Ammortamento_Finanziario!$H:$L,5,FALSE),VLOOKUP($M13,TT_Tabelle_Riferimento!$H$31:$I$50,2,FALSE))","v":12},{"$f":"+IFERROR(VLOOKUP(BB$6&\"-\"&$M13&\"_old\",Ammortamento_Finanziario!$H:$L,5,FALSE),VLOOKUP($M13,TT_Tabelle_Riferimento!$H$31:$I$50,2,FALSE))","v":12},{"$f":"+IFERROR(VLOOKUP(BC$6&\"-\"&$M13&\"_old\",Ammortamento_Finanziario!$H:$L,5,FALSE),VLOOKUP($M13,TT_Tabelle_Riferimento!$H$31:$I$50,2,FALSE))","v":12},{"$f":"+IFERROR(VLOOKUP(BD$6&\"-\"&$M13&\"_old\",Ammortamento_Finanziario!$H:$L,5,FALSE),VLOOKUP($M13,TT_Tabelle_Riferimento!$H$31:$I$50,2,FALSE))","v":12},{"$f":"+IFERROR(VLOOKUP(BE$6&\"-\"&$M13&\"_old\",Ammortamento_Finanziario!$H:$L,5,FALSE),VLOOKUP($M13,TT_Tabelle_Riferimento!$H$31:$I$50,2,FALSE))","v":12},{"$f":"+IFERROR(VLOOKUP(BF$6&\"-\"&$M13&\"_old\",Ammortamento_Finanziario!$H:$L,5,FALSE),VLOOKUP($M13,TT_Tabelle_Riferimento!$H$31:$I$50,2,FALSE))","v":12},{"$f":"+IFERROR(VLOOKUP(BG$6&\"-\"&$M13&\"_old\",Ammortamento_Finanziario!$H:$L,5,FALSE),VLOOKUP($M13,TT_Tabelle_Riferimento!$H$31:$I$50,2,FALSE))","v":12},{"$f":"+IFERROR(VLOOKUP(BH$6&\"-\"&$M13&\"_old\",Ammortamento_Finanziario!$H:$L,5,FALSE),VLOOKUP($M13,TT_Tabelle_Riferimento!$H$31:$I$50,2,FALSE))","v":12},{"$f":"+IFERROR(VLOOKUP(BI$6&\"-\"&$M13&\"_old\",Ammortamento_Finanziario!$H:$L,5,FALSE),VLOOKUP($M13,TT_Tabelle_Riferimento!$H$31:$I$50,2,FALSE))","v":12},{"$f":"+IFERROR(VLOOKUP(BJ$6&\"-\"&$M13&\"_old\",Ammortamento_Finanziario!$H:$L,5,FALSE),VLOOKUP($M13,TT_Tabelle_Riferimento!$H$31:$I$50,2,FALSE))","v":12},{"$f":"+IFERROR(VLOOKUP(BK$6&\"-\"&$M13&\"_old\",Ammortamento_Finanziario!$H:$L,5,FALSE),VLOOKUP($M13,TT_Tabelle_Riferimento!$H$31:$I$50,2,FALSE))","v":12},{"$f":"+IFERROR(VLOOKUP(BL$6&\"-\"&$M13&\"_old\",Ammortamento_Finanziario!$H:$L,5,FALSE),VLOOKUP($M13,TT_Tabelle_Riferimento!$H$31:$I$50,2,FALSE))","v":12},{"$f":"+IFERROR(VLOOKUP(BM$6&\"-\"&$M13&\"_old\",Ammortamento_Finanziario!$H:$L,5,FALSE),VLOOKUP($M13,TT_Tabelle_Riferimento!$H$31:$I$50,2,FALSE))","v":12},{"$f":"+IFERROR(VLOOKUP(BN$6&\"-\"&$M13&\"_old\",Ammortamento_Finanziario!$H:$L,5,FALSE),VLOOKUP($M13,TT_Tabelle_Riferimento!$H$31:$I$50,2,FALSE))","v":12},{"$f":"+IFERROR(VLOOKUP(BO$6&\"-\"&$M13&\"_old\",Ammortamento_Finanziario!$H:$L,5,FALSE),VLOOKUP($M13,TT_Tabelle_Riferimento!$H$31:$I$50,2,FALSE))","v":12},{"$f":"+IFERROR(VLOOKUP(BP$6&\"-\"&$M13&\"_old\",Ammortamento_Finanziario!$H:$L,5,FALSE),VLOOKUP($M13,TT_Tabelle_Riferimento!$H$31:$I$50,2,FALSE))","v":12},{"$f":"+IFERROR(VLOOKUP(BQ$6&\"-\"&$M13&\"_old\",Ammortamento_Finanziario!$H:$L,5,FALSE),VLOOKUP($M13,TT_Tabelle_Riferimento!$H$31:$I$50,2,FALSE))","v":12},{"$f":"+IFERROR(VLOOKUP(BR$6&\"-\"&$M13&\"_old\",Ammortamento_Finanziario!$H:$L,5,FALSE),VLOOKUP($M13,TT_Tabelle_Riferimento!$H$31:$I$50,2,FALSE))","v":12},{"$f":"+IFERROR(VLOOKUP(BS$6&\"-\"&$M13&\"_old\",Ammortamento_Finanziario!$H:$L,5,FALSE),VLOOKUP($M13,TT_Tabelle_Riferimento!$H$31:$I$50,2,FALSE))","v":12},{"$f":"+IFERROR(VLOOKUP(BT$6&\"-\"&$M13&\"_old\",Ammortamento_Finanziario!$H:$L,5,FALSE),VLOOKUP($M13,TT_Tabelle_Riferimento!$H$31:$I$50,2,FALSE))","v":12},{"$f":"+IFERROR(VLOOKUP(BU$6&\"-\"&$M13&\"_old\",Ammortamento_Finanziario!$H:$L,5,FALSE),VLOOKUP($M13,TT_Tabelle_Riferimento!$H$31:$I$50,2,FALSE))","v":12},{"$f":"+IFERROR(VLOOKUP(BV$6&\"-\"&$M13&\"_old\",Ammortamento_Finanziario!$H:$L,5,FALSE),VLOOKUP($M13,TT_Tabelle_Riferimento!$H$31:$I$50,2,FALSE))","v":12},{"$f":"+IFERROR(VLOOKUP(BW$6&\"-\"&$M13&\"_old\",Ammortamento_Finanziario!$H:$L,5,FALSE),VLOOKUP($M13,TT_Tabelle_Riferimento!$H$31:$I$50,2,FALSE))","v":12},{"$f":"+IFERROR(VLOOKUP(BX$6&\"-\"&$M13&\"_old\",Ammortamento_Finanziario!$H:$L,5,FALSE),VLOOKUP($M13,TT_Tabelle_Riferimento!$H$31:$I$50,2,FALSE))","v":12},{"$f":"+IFERROR(VLOOKUP(BY$6&\"-\"&$M13&\"_old\",Ammortamento_Finanziario!$H:$L,5,FALSE),VLOOKUP($M13,TT_Tabelle_Riferimento!$H$31:$I$50,2,FALSE))","v":12},{"$f":"+IFERROR(VLOOKUP(BZ$6&\"-\"&$M13&\"_old\",Ammortamento_Finanziario!$H:$L,5,FALSE),VLOOKUP($M13,TT_Tabelle_Riferimento!$H$31:$I$50,2,FALSE))","v":12},{"$f":"+IFERROR(VLOOKUP(CA$6&\"-\"&$M13&\"_old\",Ammortamento_Finanziario!$H:$L,5,FALSE),VLOOKUP($M13,TT_Tabelle_Riferimento!$H$31:$I$50,2,FALSE))","v":12},{"$f":"+IFERROR(VLOOKUP(CB$6&\"-\"&$M13&\"_old\",Ammortamento_Finanziario!$H:$L,5,FALSE),VLOOKUP($M13,TT_Tabelle_Riferimento!$H$31:$I$50,2,FALSE))","v":12},{"$f":"+IFERROR(VLOOKUP(CC$6&\"-\"&$M13&\"_old\",Ammortamento_Finanziario!$H:$L,5,FALSE),VLOOKUP($M13,TT_Tabelle_Riferimento!$H$31:$I$50,2,FALSE))","v":12},{"$f":"+IFERROR(VLOOKUP(CD$6&\"-\"&$M13&\"_old\",Ammortamento_Finanziario!$H:$L,5,FALSE),VLOOKUP($M13,TT_Tabelle_Riferimento!$H$31:$I$50,2,FALSE))","v":12},{"$f":"+IFERROR(VLOOKUP(CE$6&\"-\"&$M13&\"_old\",Ammortamento_Finanziario!$H:$L,5,FALSE),VLOOKUP($M13,TT_Tabelle_Riferimento!$H$31:$I$50,2,FALSE))","v":12},{"$f":"+IFERROR(VLOOKUP(CF$6&\"-\"&$M13&\"_old\",Ammortamento_Finanziario!$H:$L,5,FALSE),VLOOKUP($M13,TT_Tabelle_Riferimento!$H$31:$I$50,2,FALSE))","v":12},{"$f":"+IFERROR(VLOOKUP(CG$6&\"-\"&$M13&\"_old\",Ammortamento_Finanziario!$H:$L,5,FALSE),VLOOKUP($M13,TT_Tabelle_Riferimento!$H$31:$I$50,2,FALSE))","v":12},{"$f":"+IFERROR(VLOOKUP(CH$6&\"-\"&$M13&\"_old\",Ammortamento_Finanziario!$H:$L,5,FALSE),VLOOKUP($M13,TT_Tabelle_Riferimento!$H$31:$I$50,2,FALSE))","v":12},{"$f":"+IFERROR(VLOOKUP(CI$6&\"-\"&$M13&\"_old\",Ammortamento_Finanziario!$H:$L,5,FALSE),VLOOKUP($M13,TT_Tabelle_Riferimento!$H$31:$I$50,2,FALSE))","v":12},{"$f":"+IFERROR(VLOOKUP(CJ$6&\"-\"&$M13&\"_old\",Ammortamento_Finanziario!$H:$L,5,FALSE),VLOOKUP($M13,TT_Tabelle_Riferimento!$H$31:$I$50,2,FALSE))","v":12},{"$f":"+IFERROR(VLOOKUP(CK$6&\"-\"&$M13&\"_old\",Ammortamento_Finanziario!$H:$L,5,FALSE),VLOOKUP($M13,TT_Tabelle_Riferimento!$H$31:$I$50,2,FALSE))","v":12},{"$f":"+IFERROR(VLOOKUP(CL$6&\"-\"&$M13&\"_old\",Ammortamento_Finanziario!$H:$L,5,FALSE),VLOOKUP($M13,TT_Tabelle_Riferimento!$H$31:$I$50,2,FALSE))","v":12},{"$f":"+IFERROR(VLOOKUP(CM$6&\"-\"&$M13&\"_old\",Ammortamento_Finanziario!$H:$L,5,FALSE),VLOOKUP($M13,TT_Tabelle_Riferimento!$H$31:$I$50,2,FALSE))","v":12},{"$f":"+IFERROR(VLOOKUP(CN$6&\"-\"&$M13&\"_old\",Ammortamento_Finanziario!$H:$L,5,FALSE),VLOOKUP($M13,TT_Tabelle_Riferimento!$H$31:$I$50,2,FALSE))","v":12},{"$f":"+IFERROR(VLOOKUP(CO$6&\"-\"&$M13&\"_old\",Ammortamento_Finanziario!$H:$L,5,FALSE),VLOOKUP($M13,TT_Tabelle_Riferimento!$H$31:$I$50,2,FALSE))","v":12},{"$f":"+IFERROR(VLOOKUP(CP$6&\"-\"&$M13&\"_old\",Ammortamento_Finanziario!$H:$L,5,FALSE),VLOOKUP($M13,TT_Tabelle_Riferimento!$H$31:$I$50,2,FALSE))","v":12},{"$f":"+IFERROR(VLOOKUP(CQ$6&\"-\"&$M13&\"_old\",Ammortamento_Finanziario!$H:$L,5,FALSE),VLOOKUP($M13,TT_Tabelle_Riferimento!$H$31:$I$50,2,FALSE))","v":12},{"$f":"+IFERROR(VLOOKUP(CR$6&\"-\"&$M13&\"_old\",Ammortamento_Finanziario!$H:$L,5,FALSE),VLOOKUP($M13,TT_Tabelle_Riferimento!$H$31:$I$50,2,FALSE))","v":12},{"$f":"+IFERROR(VLOOKUP(CS$6&\"-\"&$M13&\"_old\",Ammortamento_Finanziario!$H:$L,5,FALSE),VLOOKUP($M13,TT_Tabelle_Riferimento!$H$31:$I$50,2,FALSE))","v":12},{"$f":"+IFERROR(VLOOKUP(CT$6&\"-\"&$M13&\"_old\",Ammortamento_Finanziario!$H:$L,5,FALSE),VLOOKUP($M13,TT_Tabelle_Riferimento!$H$31:$I$50,2,FALSE))","v":12},{"$f":"+IFERROR(VLOOKUP(CU$6&\"-\"&$M13&\"_old\",Ammortamento_Finanziario!$H:$L,5,FALSE),VLOOKUP($M13,TT_Tabelle_Riferimento!$H$31:$I$50,2,FALSE))","v":12},{"$f":"+IFERROR(VLOOKUP(CV$6&\"-\"&$M13&\"_old\",Ammortamento_Finanziario!$H:$L,5,FALSE),VLOOKUP($M13,TT_Tabelle_Riferimento!$H$31:$I$50,2,FALSE))","v":12},{"$f":"+IFERROR(VLOOKUP(CW$6&\"-\"&$M13&\"_old\",Ammortamento_Finanziario!$H:$L,5,FALSE),VLOOKUP($M13,TT_Tabelle_Riferimento!$H$31:$I$50,2,FALSE))","v":12},{"$f":"+IFERROR(VLOOKUP(CX$6&\"-\"&$M13&\"_old\",Ammortamento_Finanziario!$H:$L,5,FALSE),VLOOKUP($M13,TT_Tabelle_Riferimento!$H$31:$I$50,2,FALSE))","v":12},{"$f":"+IFERROR(VLOOKUP(CY$6&\"-\"&$M13&\"_old\",Ammortamento_Finanziario!$H:$L,5,FALSE),VLOOKUP($M13,TT_Tabelle_Riferimento!$H$31:$I$50,2,FALSE))","v":12},{"$f":"+IFERROR(VLOOKUP(CZ$6&\"-\"&$M13&\"_old\",Ammortamento_Finanziario!$H:$L,5,FALSE),VLOOKUP($M13,TT_Tabelle_Riferimento!$H$31:$I$50,2,FALSE))","v":12},{"$f":"+IFERROR(VLOOKUP(DA$6&\"-\"&$M13&\"_old\",Ammortamento_Finanziario!$H:$L,5,FALSE),VLOOKUP($M13,TT_Tabelle_Riferimento!$H$31:$I$50,2,FALSE))","v":12},{"$f":"+IFERROR(VLOOKUP(DB$6&\"-\"&$M13&\"_old\",Ammortamento_Finanziario!$H:$L,5,FALSE),VLOOKUP($M13,TT_Tabelle_Riferimento!$H$31:$I$50,2,FALSE))","v":12},{"$f":"+IFERROR(VLOOKUP(DC$6&\"-\"&$M13&\"_old\",Ammortamento_Finanziario!$H:$L,5,FALSE),VLOOKUP($M13,TT_Tabelle_Riferimento!$H$31:$I$50,2,FALSE))","v":12},{"$f":"+IFERROR(VLOOKUP(DD$6&\"-\"&$M13&\"_old\",Ammortamento_Finanziario!$H:$L,5,FALSE),VLOOKUP($M13,TT_Tabelle_Riferimento!$H$31:$I$50,2,FALSE))","v":12},{"$f":"+IFERROR(VLOOKUP(DE$6&\"-\"&$M13&\"_old\",Ammortamento_Finanziario!$H:$L,5,FALSE),VLOOKUP($M13,TT_Tabelle_Riferimento!$H$31:$I$50,2,FALSE))","v":12},{"$f":"+IFERROR(VLOOKUP(DF$6&\"-\"&$M13&\"_old\",Ammortamento_Finanziario!$H:$L,5,FALSE),VLOOKUP($M13,TT_Tabelle_Riferimento!$H$31:$I$50,2,FALSE))","v":12},{"$f":"+IFERROR(VLOOKUP(DG$6&\"-\"&$M13&\"_old\",Ammortamento_Finanziario!$H:$L,5,FALSE),VLOOKUP($M13,TT_Tabelle_Riferimento!$H$31:$I$50,2,FALSE))","v":12},{"$f":"+IFERROR(VLOOKUP(DH$6&\"-\"&$M13&\"_old\",Ammortamento_Finanziario!$H:$L,5,FALSE),VLOOKUP($M13,TT_Tabelle_Riferimento!$H$31:$I$50,2,FALSE))","v":12},{"$f":"+IFERROR(VLOOKUP(DI$6&\"-\"&$M13&\"_old\",Ammortamento_Finanziario!$H:$L,5,FALSE),VLOOKUP($M13,TT_Tabelle_Riferimento!$H$31:$I$50,2,FALSE))","v":12},{"$f":"+IFERROR(VLOOKUP(DJ$6&\"-\"&$M13&\"_old\",Ammortamento_Finanziario!$H:$L,5,FALSE),VLOOKUP($M13,TT_Tabelle_Riferimento!$H$31:$I$50,2,FALSE))","v":12},{"$f":"+IFERROR(VLOOKUP(DK$6&\"-\"&$M13&\"_old\",Ammortamento_Finanziario!$H:$L,5,FALSE),VLOOKUP($M13,TT_Tabelle_Riferimento!$H$31:$I$50,2,FALSE))","v":12},{"$f":"+IFERROR(VLOOKUP(DL$6&\"-\"&$M13&\"_old\",Ammortamento_Finanziario!$H:$L,5,FALSE),VLOOKUP($M13,TT_Tabelle_Riferimento!$H$31:$I$50,2,FALSE))","v":12},{"$f":"+IFERROR(VLOOKUP(DM$6&\"-\"&$M13&\"_old\",Ammortamento_Finanziario!$H:$L,5,FALSE),VLOOKUP($M13,TT_Tabelle_Riferimento!$H$31:$I$50,2,FALSE))","v":12},{"$f":"+IFERROR(VLOOKUP(DN$6&\"-\"&$M13&\"_old\",Ammortamento_Finanziario!$H:$L,5,FALSE),VLOOKUP($M13,TT_Tabelle_Riferimento!$H$31:$I$50,2,FALSE))","v":12},{"$f":"+IFERROR(VLOOKUP(DO$6&\"-\"&$M13&\"_old\",Ammortamento_Finanziario!$H:$L,5,FALSE),VLOOKUP($M13,TT_Tabelle_Riferimento!$H$31:$I$50,2,FALSE))","v":12},{"$f":"+IFERROR(VLOOKUP(DP$6&\"-\"&$M13&\"_old\",Ammortamento_Finanziario!$H:$L,5,FALSE),VLOOKUP($M13,TT_Tabelle_Riferimento!$H$31:$I$50,2,FALSE))","v":12},{"$f":"+IFERROR(VLOOKUP(DQ$6&\"-\"&$M13&\"_old\",Ammortamento_Finanziario!$H:$L,5,FALSE),VLOOKUP($M13,TT_Tabelle_Riferimento!$H$31:$I$50,2,FALSE))","v":12},{"$f":"+IFERROR(VLOOKUP(DR$6&\"-\"&$M13&\"_old\",Ammortamento_Finanziario!$H:$L,5,FALSE),VLOOKUP($M13,TT_Tabelle_Riferimento!$H$31:$I$50,2,FALSE))","v":12},{"$f":"+IFERROR(VLOOKUP(DS$6&\"-\"&$M13&\"_old\",Ammortamento_Finanziario!$H:$L,5,FALSE),VLOOKUP($M13,TT_Tabelle_Riferimento!$H$31:$I$50,2,FALSE))","v":12},{"$f":"+IFERROR(VLOOKUP(DT$6&\"-\"&$M13&\"_old\",Ammortamento_Finanziario!$H:$L,5,FALSE),VLOOKUP($M13,TT_Tabelle_Riferimento!$H$31:$I$50,2,FALSE))","v":12},{"$f":"+IFERROR(VLOOKUP(DU$6&\"-\"&$M13&\"_old\",Ammortamento_Finanziario!$H:$L,5,FALSE),VLOOKUP($M13,TT_Tabelle_Riferimento!$H$31:$I$50,2,FALSE))","v":12},{"$f":"+IFERROR(VLOOKUP(DV$6&\"-\"&$M13&\"_old\",Ammortamento_Finanziario!$H:$L,5,FALSE),VLOOKUP($M13,TT_Tabelle_Riferimento!$H$31:$I$50,2,FALSE))","v":12},{"$f":"+IFERROR(VLOOKUP(DW$6&\"-\"&$M13&\"_old\",Ammortamento_Finanziario!$H:$L,5,FALSE),VLOOKUP($M13,TT_Tabelle_Riferimento!$H$31:$I$50,2,FALSE))","v":12},{"$f":"+IFERROR(VLOOKUP(DX$6&\"-\"&$M13&\"_old\",Ammortamento_Finanziario!$H:$L,5,FALSE),VLOOKUP($M13,TT_Tabelle_Riferimento!$H$31:$I$50,2,FALSE))","v":12},{"$f":"+IFERROR(VLOOKUP(DY$6&\"-\"&$M13&\"_old\",Ammortamento_Finanziario!$H:$L,5,FALSE),VLOOKUP($M13,TT_Tabelle_Riferimento!$H$31:$I$50,2,FALSE))","v":12},{"$f":"+IFERROR(VLOOKUP(DZ$6&\"-\"&$M13&\"_old\",Ammortamento_Finanziario!$H:$L,5,FALSE),VLOOKUP($M13,TT_Tabelle_Riferimento!$H$31:$I$50,2,FALSE))","v":12},{"$f":"+IFERROR(VLOOKUP(EA$6&\"-\"&$M13&\"_old\",Ammortamento_Finanziario!$H:$L,5,FALSE),VLOOKUP($M13,TT_Tabelle_Riferimento!$H$31:$I$50,2,FALSE))","v":12},{"$f":"+IFERROR(VLOOKUP(EB$6&\"-\"&$M13&\"_old\",Ammortamento_Finanziario!$H:$L,5,FALSE),VLOOKUP($M13,TT_Tabelle_Riferimento!$H$31:$I$50,2,FALSE))","v":12},{"$f":"+IFERROR(VLOOKUP(EC$6&\"-\"&$M13&\"_old\",Ammortamento_Finanziario!$H:$L,5,FALSE),VLOOKUP($M13,TT_Tabelle_Riferimento!$H$31:$I$50,2,FALSE))","v":12},{"$f":"+IFERROR(VLOOKUP(ED$6&\"-\"&$M13&\"_old\",Ammortamento_Finanziario!$H:$L,5,FALSE),VLOOKUP($M13,TT_Tabelle_Riferimento!$H$31:$I$50,2,FALSE))","v":12},{"$f":"+IFERROR(VLOOKUP(EE$6&\"-\"&$M13&\"_old\",Ammortamento_Finanziario!$H:$L,5,FALSE),VLOOKUP($M13,TT_Tabelle_Riferimento!$H$31:$I$50,2,FALSE))","v":12},{"$f":"+IFERROR(VLOOKUP(EF$6&\"-\"&$M13&\"_old\",Ammortamento_Finanziario!$H:$L,5,FALSE),VLOOKUP($M13,TT_Tabelle_Riferimento!$H$31:$I$50,2,FALSE))","v":12},{"$f":"+IFERROR(VLOOKUP(EG$6&\"-\"&$M13&\"_old\",Ammortamento_Finanziario!$H:$L,5,FALSE),VLOOKUP($M13,TT_Tabelle_Riferimento!$H$31:$I$50,2,FALSE))","v":12},{"$f":"+IFERROR(VLOOKUP(EH$6&\"-\"&$M13&\"_old\",Ammortamento_Finanziario!$H:$L,5,FALSE),VLOOKUP($M13,TT_Tabelle_Riferimento!$H$31:$I$50,2,FALSE))","v":12},{"$f":"+IFERROR(VLOOKUP(EI$6&\"-\"&$M13&\"_old\",Ammortamento_Finanziario!$H:$L,5,FALSE),VLOOKUP($M13,TT_Tabelle_Riferimento!$H$31:$I$50,2,FALSE))","v":12},{"$f":"+IFERROR(VLOOKUP(EJ$6&\"-\"&$M13&\"_old\",Ammortamento_Finanziario!$H:$L,5,FALSE),VLOOKUP($M13,TT_Tabelle_Riferimento!$H$31:$I$50,2,FALSE))","v":12},{"$f":"+IFERROR(VLOOKUP(EK$6&\"-\"&$M13&\"_old\",Ammortamento_Finanziario!$H:$L,5,FALSE),VLOOKUP($M13,TT_Tabelle_Riferimento!$H$31:$I$50,2,FALSE))","v":12},{"$f":"+IFERROR(VLOOKUP(EL$6&\"-\"&$M13&\"_old\",Ammortamento_Finanziario!$H:$L,5,FALSE),VLOOKUP($M13,TT_Tabelle_Riferimento!$H$31:$I$50,2,FALSE))","v":12},{"$f":"+IFERROR(VLOOKUP(EM$6&\"-\"&$M13&\"_old\",Ammortamento_Finanziario!$H:$L,5,FALSE),VLOOKUP($M13,TT_Tabelle_Riferimento!$H$31:$I$50,2,FALSE))","v":12},{"$f":"+IFERROR(VLOOKUP(EN$6&\"-\"&$M13&\"_old\",Ammortamento_Finanziario!$H:$L,5,FALSE),VLOOKUP($M13,TT_Tabelle_Riferimento!$H$31:$I$50,2,FALSE))","v":12},{"$f":"+IFERROR(VLOOKUP(EO$6&\"-\"&$M13&\"_old\",Ammortamento_Finanziario!$H:$L,5,FALSE),VLOOKUP($M13,TT_Tabelle_Riferimento!$H$31:$I$50,2,FALSE))","v":12},{"$f":"+IFERROR(VLOOKUP(EP$6&\"-\"&$M13&\"_old\",Ammortamento_Finanziario!$H:$L,5,FALSE),VLOOKUP($M13,TT_Tabelle_Riferimento!$H$31:$I$50,2,FALSE))","v":12},{"$f":"+IFERROR(VLOOKUP(EQ$6&\"-\"&$M13&\"_old\",Ammortamento_Finanziario!$H:$L,5,FALSE),VLOOKUP($M13,TT_Tabelle_Riferimento!$H$31:$I$50,2,FALSE))","v":12},{"$f":"+IFERROR(VLOOKUP(ER$6&\"-\"&$M13&\"_old\",Ammortamento_Finanziario!$H:$L,5,FALSE),VLOOKUP($M13,TT_Tabelle_Riferimento!$H$31:$I$50,2,FALSE))","v":12},{"$f":"+IFERROR(VLOOKUP(ES$6&\"-\"&$M13&\"_old\",Ammortamento_Finanziario!$H:$L,5,FALSE),VLOOKUP($M13,TT_Tabelle_Riferimento!$H$31:$I$50,2,FALSE))","v":12},{"$f":"+IFERROR(VLOOKUP(ET$6&\"-\"&$M13&\"_old\",Ammortamento_Finanziario!$H:$L,5,FALSE),VLOOKUP($M13,TT_Tabelle_Riferimento!$H$31:$I$50,2,FALSE))","v":12},{"$f":"+IFERROR(VLOOKUP(EU$6&\"-\"&$M13&\"_old\",Ammortamento_Finanziario!$H:$L,5,FALSE),VLOOKUP($M13,TT_Tabelle_Riferimento!$H$31:$I$50,2,FALSE))","v":12},{"$f":"+IFERROR(VLOOKUP(EV$6&\"-\"&$M13&\"_old\",Ammortamento_Finanziario!$H:$L,5,FALSE),VLOOKUP($M13,TT_Tabelle_Riferimento!$H$31:$I$50,2,FALSE))","v":12},{"$f":"+IFERROR(VLOOKUP(EW$6&\"-\"&$M13&\"_old\",Ammortamento_Finanziario!$H:$L,5,FALSE),VLOOKUP($M13,TT_Tabelle_Riferimento!$H$31:$I$50,2,FALSE))","v":12},{"$f":"+IFERROR(VLOOKUP(EX$6&\"-\"&$M13&\"_old\",Ammortamento_Finanziario!$H:$L,5,FALSE),VLOOKUP($M13,TT_Tabelle_Riferimento!$H$31:$I$50,2,FALSE))","v":12},{"$f":"+IFERROR(VLOOKUP(EY$6&\"-\"&$M13&\"_old\",Ammortamento_Finanziario!$H:$L,5,FALSE),VLOOKUP($M13,TT_Tabelle_Riferimento!$H$31:$I$50,2,FALSE))","v":12},{"$f":"+IFERROR(VLOOKUP(EZ$6&\"-\"&$M13&\"_old\",Ammortamento_Finanziario!$H:$L,5,FALSE),VLOOKUP($M13,TT_Tabelle_Riferimento!$H$31:$I$50,2,FALSE))","v":12},{"$f":"+IFERROR(VLOOKUP(FA$6&\"-\"&$M13&\"_old\",Ammortamento_Finanziario!$H:$L,5,FALSE),VLOOKUP($M13,TT_Tabelle_Riferimento!$H$31:$I$50,2,FALSE))","v":12},{"$f":"+IFERROR(VLOOKUP(FB$6&\"-\"&$M13&\"_old\",Ammortamento_Finanziario!$H:$L,5,FALSE),VLOOKUP($M13,TT_Tabelle_Riferimento!$H$31:$I$50,2,FALSE))","v":12},{"$f":"+IFERROR(VLOOKUP(FC$6&\"-\"&$M13&\"_old\",Ammortamento_Finanziario!$H:$L,5,FALSE),VLOOKUP($M13,TT_Tabelle_Riferimento!$H$31:$I$50,2,FALSE))","v":12},{"$f":"+IFERROR(VLOOKUP(FD$6&\"-\"&$M13&\"_old\",Ammortamento_Finanziario!$H:$L,5,FALSE),VLOOKUP($M13,TT_Tabelle_Riferimento!$H$31:$I$50,2,FALSE))","v":12},{"$f":"+IFERROR(VLOOKUP(FE$6&\"-\"&$M13&\"_old\",Ammortamento_Finanziario!$H:$L,5,FALSE),VLOOKUP($M13,TT_Tabelle_Riferimento!$H$31:$I$50,2,FALSE))","v":12},{"$f":"+IFERROR(VLOOKUP(FF$6&\"-\"&$M13&\"_old\",Ammortamento_Finanziario!$H:$L,5,FALSE),VLOOKUP($M13,TT_Tabelle_Riferimento!$H$31:$I$50,2,FALSE))","v":12},{"$f":"+IFERROR(VLOOKUP(FG$6&\"-\"&$M13&\"_old\",Ammortamento_Finanziario!$H:$L,5,FALSE),VLOOKUP($M13,TT_Tabelle_Riferimento!$H$31:$I$50,2,FALSE))","v":12},{"$f":"+IFERROR(VLOOKUP(FH$6&\"-\"&$M13&\"_old\",Ammortamento_Finanziario!$H:$L,5,FALSE),VLOOKUP($M13,TT_Tabelle_Riferimento!$H$31:$I$50,2,FALSE))","v":12},{"$f":"+IFERROR(VLOOKUP(FI$6&\"-\"&$M13&\"_old\",Ammortamento_Finanziario!$H:$L,5,FALSE),VLOOKUP($M13,TT_Tabelle_Riferimento!$H$31:$I$50,2,FALSE))","v":12},{"$f":"+IFERROR(VLOOKUP(FJ$6&\"-\"&$M13&\"_old\",Ammortamento_Finanziario!$H:$L,5,FALSE),VLOOKUP($M13,TT_Tabelle_Riferimento!$H$31:$I$50,2,FALSE))","v":12},{"$f":"+IFERROR(VLOOKUP(FK$6&\"-\"&$M13&\"_old\",Ammortamento_Finanziario!$H:$L,5,FALSE),VLOOKUP($M13,TT_Tabelle_Riferimento!$H$31:$I$50,2,FALSE))","v":12},{"$f":"+IFERROR(VLOOKUP(FL$6&\"-\"&$M13&\"_old\",Ammortamento_Finanziario!$H:$L,5,FALSE),VLOOKUP($M13,TT_Tabelle_Riferimento!$H$31:$I$50,2,FALSE))","v":12},{"$f":"+IFERROR(VLOOKUP(FM$6&\"-\"&$M13&\"_old\",Ammortamento_Finanziario!$H:$L,5,FALSE),VLOOKUP($M13,TT_Tabelle_Riferimento!$H$31:$I$50,2,FALSE))","v":12},{"$f":"+IFERROR(VLOOKUP(FN$6&\"-\"&$M13&\"_old\",Ammortamento_Finanziario!$H:$L,5,FALSE),VLOOKUP($M13,TT_Tabelle_Riferimento!$H$31:$I$50,2,FALSE))","v":12},{"$f":"+IFERROR(VLOOKUP(FO$6&\"-\"&$M13&\"_old\",Ammortamento_Finanziario!$H:$L,5,FALSE),VLOOKUP($M13,TT_Tabelle_Riferimento!$H$31:$I$50,2,FALSE))","v":12},{"$f":"+IFERROR(VLOOKUP(FP$6&\"-\"&$M13&\"_old\",Ammortamento_Finanziario!$H:$L,5,FALSE),VLOOKUP($M13,TT_Tabelle_Riferimento!$H$31:$I$50,2,FALSE))","v":12},{"$f":"+IFERROR(VLOOKUP(FQ$6&\"-\"&$M13&\"_old\",Ammortamento_Finanziario!$H:$L,5,FALSE),VLOOKUP($M13,TT_Tabelle_Riferimento!$H$31:$I$50,2,FALSE))","v":12},{"$f":"+IFERROR(VLOOKUP(FR$6&\"-\"&$M13&\"_old\",Ammortamento_Finanziario!$H:$L,5,FALSE),VLOOKUP($M13,TT_Tabelle_Riferimento!$H$31:$I$50,2,FALSE))","v":12},{"$f":"+IFERROR(VLOOKUP(FS$6&\"-\"&$M13&\"_old\",Ammortamento_Finanziario!$H:$L,5,FALSE),VLOOKUP($M13,TT_Tabelle_Riferimento!$H$31:$I$50,2,FALSE))","v":12},{"$f":"+IFERROR(VLOOKUP(FT$6&\"-\"&$M13&\"_old\",Ammortamento_Finanziario!$H:$L,5,FALSE),VLOOKUP($M13,TT_Tabelle_Riferimento!$H$31:$I$50,2,FALSE))","v":12},{"$f":"+IFERROR(VLOOKUP(FU$6&\"-\"&$M13&\"_old\",Ammortamento_Finanziario!$H:$L,5,FALSE),VLOOKUP($M13,TT_Tabelle_Riferimento!$H$31:$I$50,2,FALSE))","v":12},{"$f":"+IFERROR(VLOOKUP(FV$6&\"-\"&$M13&\"_old\",Ammortamento_Finanziario!$H:$L,5,FALSE),VLOOKUP($M13,TT_Tabelle_Riferimento!$H$31:$I$50,2,FALSE))","v":12},{"$f":"+IFERROR(VLOOKUP(FW$6&\"-\"&$M13&\"_old\",Ammortamento_Finanziario!$H:$L,5,FALSE),VLOOKUP($M13,TT_Tabelle_Riferimento!$H$31:$I$50,2,FALSE))","v":12},{"$f":"+IFERROR(VLOOKUP(FX$6&\"-\"&$M13&\"_old\",Ammortamento_Finanziario!$H:$L,5,FALSE),VLOOKUP($M13,TT_Tabelle_Riferimento!$H$31:$I$50,2,FALSE))","v":12},{"$f":"+IFERROR(VLOOKUP(FY$6&\"-\"&$M13&\"_old\",Ammortamento_Finanziario!$H:$L,5,FALSE),VLOOKUP($M13,TT_Tabelle_Riferimento!$H$31:$I$50,2,FALSE))","v":12},{"$f":"+IFERROR(VLOOKUP(FZ$6&\"-\"&$M13&\"_old\",Ammortamento_Finanziario!$H:$L,5,FALSE),VLOOKUP($M13,TT_Tabelle_Riferimento!$H$31:$I$50,2,FALSE))","v":12},{"$f":"+IFERROR(VLOOKUP(GA$6&\"-\"&$M13&\"_old\",Ammortamento_Finanziario!$H:$L,5,FALSE),VLOOKUP($M13,TT_Tabelle_Riferimento!$H$31:$I$50,2,FALSE))","v":12},{"$f":"+IFERROR(VLOOKUP(GB$6&\"-\"&$M13&\"_old\",Ammortamento_Finanziario!$H:$L,5,FALSE),VLOOKUP($M13,TT_Tabelle_Riferimento!$H$31:$I$50,2,FALSE))","v":12},{"$f":"+IFERROR(VLOOKUP(GC$6&\"-\"&$M13&\"_old\",Ammortamento_Finanziario!$H:$L,5,FALSE),VLOOKUP($M13,TT_Tabelle_Riferimento!$H$31:$I$50,2,FALSE))","v":12},{"$f":"+IFERROR(VLOOKUP(GD$6&\"-\"&$M13&\"_old\",Ammortamento_Finanziario!$H:$L,5,FALSE),VLOOKUP($M13,TT_Tabelle_Riferimento!$H$31:$I$50,2,FALSE))","v":12},{"$f":"+IFERROR(VLOOKUP(GE$6&\"-\"&$M13&\"_old\",Ammortamento_Finanziario!$H:$L,5,FALSE),VLOOKUP($M13,TT_Tabelle_Riferimento!$H$31:$I$50,2,FALSE))","v":12},{"$f":"+IFERROR(VLOOKUP(GF$6&\"-\"&$M13&\"_old\",Ammortamento_Finanziario!$H:$L,5,FALSE),VLOOKUP($M13,TT_Tabelle_Riferimento!$H$31:$I$50,2,FALSE))","v":12},{"$f":"+IFERROR(VLOOKUP(GG$6&\"-\"&$M13&\"_old\",Ammortamento_Finanziario!$H:$L,5,FALSE),VLOOKUP($M13,TT_Tabelle_Riferimento!$H$31:$I$50,2,FALSE))","v":12},{"$f":"+IFERROR(VLOOKUP(GH$6&\"-\"&$M13&\"_old\",Ammortamento_Finanziario!$H:$L,5,FALSE),VLOOKUP($M13,TT_Tabelle_Riferimento!$H$31:$I$50,2,FALSE))","v":12},{"$f":"+IFERROR(VLOOKUP(GI$6&\"-\"&$M13&\"_old\",Ammortamento_Finanziario!$H:$L,5,FALSE),VLOOKUP($M13,TT_Tabelle_Riferimento!$H$31:$I$50,2,FALSE))","v":12},{"$f":"+IFERROR(VLOOKUP(GJ$6&\"-\"&$M13&\"_old\",Ammortamento_Finanziario!$H:$L,5,FALSE),VLOOKUP($M13,TT_Tabelle_Riferimento!$H$31:$I$50,2,FALSE))","v":12},{"$f":"+IFERROR(VLOOKUP(GK$6&\"-\"&$M13&\"_old\",Ammortamento_Finanziario!$H:$L,5,FALSE),VLOOKUP($M13,TT_Tabelle_Riferimento!$H$31:$I$50,2,FALSE))","v":12},{"$f":"+IFERROR(VLOOKUP(GL$6&\"-\"&$M13&\"_old\",Ammortamento_Finanziario!$H:$L,5,FALSE),VLOOKUP($M13,TT_Tabelle_Riferimento!$H$31:$I$50,2,FALSE))","v":12},{"$f":"+IFERROR(VLOOKUP(GM$6&\"-\"&$M13&\"_old\",Ammortamento_Finanziario!$H:$L,5,FALSE),VLOOKUP($M13,TT_Tabelle_Riferimento!$H$31:$I$50,2,FALSE))","v":12},{"$f":"+IFERROR(VLOOKUP(GN$6&\"-\"&$M13&\"_old\",Ammortamento_Finanziario!$H:$L,5,FALSE),VLOOKUP($M13,TT_Tabelle_Riferimento!$H$31:$I$50,2,FALSE))","v":12},{"$f":"+IFERROR(VLOOKUP(GO$6&\"-\"&$M13&\"_old\",Ammortamento_Finanziario!$H:$L,5,FALSE),VLOOKUP($M13,TT_Tabelle_Riferimento!$H$31:$I$50,2,FALSE))","v":12},{"$f":"+IFERROR(VLOOKUP(GP$6&\"-\"&$M13&\"_old\",Ammortamento_Finanziario!$H:$L,5,FALSE),VLOOKUP($M13,TT_Tabelle_Riferimento!$H$31:$I$50,2,FALSE))","v":12},{"$f":"+IFERROR(VLOOKUP(GQ$6&\"-\"&$M13&\"_old\",Ammortamento_Finanziario!$H:$L,5,FALSE),VLOOKUP($M13,TT_Tabelle_Riferimento!$H$31:$I$50,2,FALSE))","v":12},{"$f":"+IFERROR(VLOOKUP(GR$6&\"-\"&$M13&\"_old\",Ammortamento_Finanziario!$H:$L,5,FALSE),VLOOKUP($M13,TT_Tabelle_Riferimento!$H$31:$I$50,2,FALSE))","v":12},{"$f":"+IFERROR(VLOOKUP(GS$6&\"-\"&$M13&\"_old\",Ammortamento_Finanziario!$H:$L,5,FALSE),VLOOKUP($M13,TT_Tabelle_Riferimento!$H$31:$I$50,2,FALSE))","v":12},{"$f":"+IFERROR(VLOOKUP(GT$6&\"-\"&$M13&\"_old\",Ammortamento_Finanziario!$H:$L,5,FALSE),VLOOKUP($M13,TT_Tabelle_Riferimento!$H$31:$I$50,2,FALSE))","v":12},{"$f":"+IFERROR(VLOOKUP(GU$6&\"-\"&$M13&\"_old\",Ammortamento_Finanziario!$H:$L,5,FALSE),VLOOKUP($M13,TT_Tabelle_Riferimento!$H$31:$I$50,2,FALSE))","v":12},{"$f":"+IFERROR(VLOOKUP(GV$6&\"-\"&$M13&\"_old\",Ammortamento_Finanziario!$H:$L,5,FALSE),VLOOKUP($M13,TT_Tabelle_Riferimento!$H$31:$I$50,2,FALSE))","v":12},{"$f":"+IFERROR(VLOOKUP(GW$6&\"-\"&$M13&\"_old\",Ammortamento_Finanziario!$H:$L,5,FALSE),VLOOKUP($M13,TT_Tabelle_Riferimento!$H$31:$I$50,2,FALSE))","v":12},{"$f":"+IFERROR(VLOOKUP(GX$6&\"-\"&$M13&\"_old\",Ammortamento_Finanziario!$H:$L,5,FALSE),VLOOKUP($M13,TT_Tabelle_Riferimento!$H$31:$I$50,2,FALSE))","v":12},{"$f":"+IFERROR(VLOOKUP(GY$6&\"-\"&$M13&\"_old\",Ammortamento_Finanziario!$H:$L,5,FALSE),VLOOKUP($M13,TT_Tabelle_Riferimento!$H$31:$I$50,2,FALSE))","v":12},{"$f":"+IFERROR(VLOOKUP(GZ$6&\"-\"&$M13&\"_old\",Ammortamento_Finanziario!$H:$L,5,FALSE),VLOOKUP($M13,TT_Tabelle_Riferimento!$H$31:$I$50,2,FALSE))","v":12},{"$f":"+IFERROR(VLOOKUP(HA$6&\"-\"&$M13&\"_old\",Ammortamento_Finanziario!$H:$L,5,FALSE),VLOOKUP($M13,TT_Tabelle_Riferimento!$H$31:$I$50,2,FALSE))","v":12},{"$f":"+IFERROR(VLOOKUP(HB$6&\"-\"&$M13&\"_old\",Ammortamento_Finanziario!$H:$L,5,FALSE),VLOOKUP($M13,TT_Tabelle_Riferimento!$H$31:$I$50,2,FALSE))","v":12},{"$f":"+IFERROR(VLOOKUP(HC$6&\"-\"&$M13&\"_old\",Ammortamento_Finanziario!$H:$L,5,FALSE),VLOOKUP($M13,TT_Tabelle_Riferimento!$H$31:$I$50,2,FALSE))","v":12},{"$f":"+IFERROR(VLOOKUP(HD$6&\"-\"&$M13&\"_old\",Ammortamento_Finanziario!$H:$L,5,FALSE),VLOOKUP($M13,TT_Tabelle_Riferimento!$H$31:$I$50,2,FALSE))","v":12},{"$f":"+IFERROR(VLOOKUP(HE$6&\"-\"&$M13&\"_old\",Ammortamento_Finanziario!$H:$L,5,FALSE),VLOOKUP($M13,TT_Tabelle_Riferimento!$H$31:$I$50,2,FALSE))","v":12},{"$f":"+IFERROR(VLOOKUP(HF$6&\"-\"&$M13&\"_old\",Ammortamento_Finanziario!$H:$L,5,FALSE),VLOOKUP($M13,TT_Tabelle_Riferimento!$H$31:$I$50,2,FALSE))","v":12},{"$f":"+IFERROR(VLOOKUP(HG$6&\"-\"&$M13&\"_old\",Ammortamento_Finanziario!$H:$L,5,FALSE),VLOOKUP($M13,TT_Tabelle_Riferimento!$H$31:$I$50,2,FALSE))","v":12},{"$f":"+IFERROR(VLOOKUP(HH$6&\"-\"&$M13&\"_old\",Ammortamento_Finanziario!$H:$L,5,FALSE),VLOOKUP($M13,TT_Tabelle_Riferimento!$H$31:$I$50,2,FALSE))","v":12},{"$f":"+IFERROR(VLOOKUP(HI$6&\"-\"&$M13&\"_old\",Ammortamento_Finanziario!$H:$L,5,FALSE),VLOOKUP($M13,TT_Tabelle_Riferimento!$H$31:$I$50,2,FALSE))","v":12},{"$f":"+IFERROR(VLOOKUP(HJ$6&\"-\"&$M13&\"_old\",Ammortamento_Finanziario!$H:$L,5,FALSE),VLOOKUP($M13,TT_Tabelle_Riferimento!$H$31:$I$50,2,FALSE))","v":12},{"$f":"+IFERROR(VLOOKUP(HK$6&\"-\"&$M13&\"_old\",Ammortamento_Finanziario!$H:$L,5,FALSE),VLOOKUP($M13,TT_Tabelle_Riferimento!$H$31:$I$50,2,FALSE))","v":12},{"$f":"+IFERROR(VLOOKUP(HL$6&\"-\"&$M13&\"_old\",Ammortamento_Finanziario!$H:$L,5,FALSE),VLOOKUP($M13,TT_Tabelle_Riferimento!$H$31:$I$50,2,FALSE))","v":12},{"$f":"+IFERROR(VLOOKUP(HM$6&\"-\"&$M13&\"_old\",Ammortamento_Finanziario!$H:$L,5,FALSE),VLOOKUP($M13,TT_Tabelle_Riferimento!$H$31:$I$50,2,FALSE))","v":12},{"$f":"+IFERROR(VLOOKUP(HN$6&\"-\"&$M13&\"_old\",Ammortamento_Finanziario!$H:$L,5,FALSE),VLOOKUP($M13,TT_Tabelle_Riferimento!$H$31:$I$50,2,FALSE))","v":12},{"$f":"+IFERROR(VLOOKUP(HO$6&\"-\"&$M13&\"_old\",Ammortamento_Finanziario!$H:$L,5,FALSE),VLOOKUP($M13,TT_Tabelle_Riferimento!$H$31:$I$50,2,FALSE))","v":12},{"$f":"+IFERROR(VLOOKUP(HP$6&\"-\"&$M13&\"_old\",Ammortamento_Finanziario!$H:$L,5,FALSE),VLOOKUP($M13,TT_Tabelle_Riferimento!$H$31:$I$50,2,FALSE))","v":12},{"$f":"+IFERROR(VLOOKUP(HQ$6&\"-\"&$M13&\"_old\",Ammortamento_Finanziario!$H:$L,5,FALSE),VLOOKUP($M13,TT_Tabelle_Riferimento!$H$31:$I$50,2,FALSE))","v":12},{"$f":"+IFERROR(VLOOKUP(HR$6&\"-\"&$M13&\"_old\",Ammortamento_Finanziario!$H:$L,5,FALSE),VLOOKUP($M13,TT_Tabelle_Riferimento!$H$31:$I$50,2,FALSE))","v":12},{"$f":"+IFERROR(VLOOKUP(HS$6&\"-\"&$M13&\"_old\",Ammortamento_Finanziario!$H:$L,5,FALSE),VLOOKUP($M13,TT_Tabelle_Riferimento!$H$31:$I$50,2,FALSE))","v":12},{"$f":"+IFERROR(VLOOKUP(HT$6&\"-\"&$M13&\"_old\",Ammortamento_Finanziario!$H:$L,5,FALSE),VLOOKUP($M13,TT_Tabelle_Riferimento!$H$31:$I$50,2,FALSE))","v":12},{"$f":"+IFERROR(VLOOKUP(HU$6&\"-\"&$M13&\"_old\",Ammortamento_Finanziario!$H:$L,5,FALSE),VLOOKUP($M13,TT_Tabelle_Riferimento!$H$31:$I$50,2,FALSE))","v":12},{"$f":"+IFERROR(VLOOKUP(HV$6&\"-\"&$M13&\"_old\",Ammortamento_Finanziario!$H:$L,5,FALSE),VLOOKUP($M13,TT_Tabelle_Riferimento!$H$31:$I$50,2,FALSE))","v":12},{"$f":"+IFERROR(VLOOKUP(HW$6&\"-\"&$M13&\"_old\",Ammortamento_Finanziario!$H:$L,5,FALSE),VLOOKUP($M13,TT_Tabelle_Riferimento!$H$31:$I$50,2,FALSE))","v":12},{"$f":"+IFERROR(VLOOKUP(HX$6&\"-\"&$M13&\"_old\",Ammortamento_Finanziario!$H:$L,5,FALSE),VLOOKUP($M13,TT_Tabelle_Riferimento!$H$31:$I$50,2,FALSE))","v":12},{"$f":"+IFERROR(VLOOKUP(HY$6&\"-\"&$M13&\"_old\",Ammortamento_Finanziario!$H:$L,5,FALSE),VLOOKUP($M13,TT_Tabelle_Riferimento!$H$31:$I$50,2,FALSE))","v":12},{"$f":"+IFERROR(VLOOKUP(HZ$6&\"-\"&$M13&\"_old\",Ammortamento_Finanziario!$H:$L,5,FALSE),VLOOKUP($M13,TT_Tabelle_Riferimento!$H$31:$I$50,2,FALSE))","v":12},{"$f":"+IFERROR(VLOOKUP(IA$6&\"-\"&$M13&\"_old\",Ammortamento_Finanziario!$H:$L,5,FALSE),VLOOKUP($M13,TT_Tabelle_Riferimento!$H$31:$I$50,2,FALSE))","v":12},{"$f":"+IFERROR(VLOOKUP(IB$6&\"-\"&$M13&\"_old\",Ammortamento_Finanziario!$H:$L,5,FALSE),VLOOKUP($M13,TT_Tabelle_Riferimento!$H$31:$I$50,2,FALSE))","v":12},{"$f":"+IFERROR(VLOOKUP(IC$6&\"-\"&$M13&\"_old\",Ammortamento_Finanziario!$H:$L,5,FALSE),VLOOKUP($M13,TT_Tabelle_Riferimento!$H$31:$I$50,2,FALSE))","v":12},{"$f":"+IFERROR(VLOOKUP(ID$6&\"-\"&$M13&\"_old\",Ammortamento_Finanziario!$H:$L,5,FALSE),VLOOKUP($M13,TT_Tabelle_Riferimento!$H$31:$I$50,2,FALSE))","v":12},{"$f":"+IFERROR(VLOOKUP(IE$6&\"-\"&$M13&\"_old\",Ammortamento_Finanziario!$H:$L,5,FALSE),VLOOKUP($M13,TT_Tabelle_Riferimento!$H$31:$I$50,2,FALSE))","v":12},{"$f":"+IFERROR(VLOOKUP(IF$6&\"-\"&$M13&\"_old\",Ammortamento_Finanziario!$H:$L,5,FALSE),VLOOKUP($M13,TT_Tabelle_Riferimento!$H$31:$I$50,2,FALSE))","v":12},{"$f":"+IFERROR(VLOOKUP(IG$6&\"-\"&$M13&\"_old\",Ammortamento_Finanziario!$H:$L,5,FALSE),VLOOKUP($M13,TT_Tabelle_Riferimento!$H$31:$I$50,2,FALSE))","v":12},{"$f":"+IFERROR(VLOOKUP(IH$6&\"-\"&$M13&\"_old\",Ammortamento_Finanziario!$H:$L,5,FALSE),VLOOKUP($M13,TT_Tabelle_Riferimento!$H$31:$I$50,2,FALSE))","v":12},{"$f":"+IFERROR(VLOOKUP(II$6&\"-\"&$M13&\"_old\",Ammortamento_Finanziario!$H:$L,5,FALSE),VLOOKUP($M13,TT_Tabelle_Riferimento!$H$31:$I$50,2,FALSE))","v":12},{"$f":"+IFERROR(VLOOKUP(IJ$6&\"-\"&$M13&\"_old\",Ammortamento_Finanziario!$H:$L,5,FALSE),VLOOKUP($M13,TT_Tabelle_Riferimento!$H$31:$I$50,2,FALSE))","v":12},{"$f":"+IFERROR(VLOOKUP(IK$6&\"-\"&$M13&\"_old\",Ammortamento_Finanziario!$H:$L,5,FALSE),VLOOKUP($M13,TT_Tabelle_Riferimento!$H$31:$I$50,2,FALSE))","v":12},{"$f":"+IFERROR(VLOOKUP(IL$6&\"-\"&$M13&\"_old\",Ammortamento_Finanziario!$H:$L,5,FALSE),VLOOKUP($M13,TT_Tabelle_Riferimento!$H$31:$I$50,2,FALSE))","v":12},{"$f":"+IFERROR(VLOOKUP(IM$6&\"-\"&$M13&\"_old\",Ammortamento_Finanziario!$H:$L,5,FALSE),VLOOKUP($M13,TT_Tabelle_Riferimento!$H$31:$I$50,2,FALSE))","v":12},{"$f":"+IFERROR(VLOOKUP(IN$6&\"-\"&$M13&\"_old\",Ammortamento_Finanziario!$H:$L,5,FALSE),VLOOKUP($M13,TT_Tabelle_Riferimento!$H$31:$I$50,2,FALSE))","v":12},{"$f":"+IFERROR(VLOOKUP(IO$6&\"-\"&$M13&\"_old\",Ammortamento_Finanziario!$H:$L,5,FALSE),VLOOKUP($M13,TT_Tabelle_Riferimento!$H$31:$I$50,2,FALSE))","v":12},{"$f":"+IFERROR(VLOOKUP(IP$6&\"-\"&$M13&\"_old\",Ammortamento_Finanziario!$H:$L,5,FALSE),VLOOKUP($M13,TT_Tabelle_Riferimento!$H$31:$I$50,2,FALSE))","v":12},{"$f":"+IFERROR(VLOOKUP(IQ$6&\"-\"&$M13&\"_old\",Ammortamento_Finanziario!$H:$L,5,FALSE),VLOOKUP($M13,TT_Tabelle_Riferimento!$H$31:$I$50,2,FALSE))","v":12},{"$f":"+IFERROR(VLOOKUP(IR$6&\"-\"&$M13&\"_old\",Ammortamento_Finanziario!$H:$L,5,FALSE),VLOOKUP($M13,TT_Tabelle_Riferimento!$H$31:$I$50,2,FALSE))","v":12},{"$f":"+IFERROR(VLOOKUP(IS$6&\"-\"&$M13&\"_old\",Ammortamento_Finanziario!$H:$L,5,FALSE),VLOOKUP($M13,TT_Tabelle_Riferimento!$H$31:$I$50,2,FALSE))","v":12},{"$f":"+IFERROR(VLOOKUP(IT$6&\"-\"&$M13&\"_old\",Ammortamento_Finanziario!$H:$L,5,FALSE),VLOOKUP($M13,TT_Tabelle_Riferimento!$H$31:$I$50,2,FALSE))","v":12},{"$f":"+IFERROR(VLOOKUP(IU$6&\"-\"&$M13&\"_old\",Ammortamento_Finanziario!$H:$L,5,FALSE),VLOOKUP($M13,TT_Tabelle_Riferimento!$H$31:$I$50,2,FALSE))","v":12},{"$f":"+IFERROR(VLOOKUP(IV$6&\"-\"&$M13&\"_old\",Ammortamento_Finanziario!$H:$L,5,FALSE),VLOOKUP($M13,TT_Tabelle_Riferimento!$H$31:$I$50,2,FALSE))","v":12},{"$f":"+IFERROR(VLOOKUP(IW$6&\"-\"&$M13&\"_old\",Ammortamento_Finanziario!$H:$L,5,FALSE),VLOOKUP($M13,TT_Tabelle_Riferimento!$H$31:$I$50,2,FALSE))","v":12},{"$f":"+IFERROR(VLOOKUP(IX$6&\"-\"&$M13&\"_old\",Ammortamento_Finanziario!$H:$L,5,FALSE),VLOOKUP($M13,TT_Tabelle_Riferimento!$H$31:$I$50,2,FALSE))","v":12},{"$f":"+IFERROR(VLOOKUP(IY$6&\"-\"&$M13&\"_old\",Ammortamento_Finanziario!$H:$L,5,FALSE),VLOOKUP($M13,TT_Tabelle_Riferimento!$H$31:$I$50,2,FALSE))","v":12},{"$f":"+IFERROR(VLOOKUP(IZ$6&\"-\"&$M13&\"_old\",Ammortamento_Finanziario!$H:$L,5,FALSE),VLOOKUP($M13,TT_Tabelle_Riferimento!$H$31:$I$50,2,FALSE))","v":12},{"$f":"+IFERROR(VLOOKUP(JA$6&\"-\"&$M13&\"_old\",Ammortamento_Finanziario!$H:$L,5,FALSE),VLOOKUP($M13,TT_Tabelle_Riferimento!$H$31:$I$50,2,FALSE))","v":12},{"$f":"+IFERROR(VLOOKUP(JB$6&\"-\"&$M13&\"_old\",Ammortamento_Finanziario!$H:$L,5,FALSE),VLOOKUP($M13,TT_Tabelle_Riferimento!$H$31:$I$50,2,FALSE))","v":12},{"$f":"+IFERROR(VLOOKUP(JC$6&\"-\"&$M13&\"_old\",Ammortamento_Finanziario!$H:$L,5,FALSE),VLOOKUP($M13,TT_Tabelle_Riferimento!$H$31:$I$50,2,FALSE))","v":12},{"$f":"+IFERROR(VLOOKUP(JD$6&\"-\"&$M13&\"_old\",Ammortamento_Finanziario!$H:$L,5,FALSE),VLOOKUP($M13,TT_Tabelle_Riferimento!$H$31:$I$50,2,FALSE))","v":12},{"$f":"+IFERROR(VLOOKUP(JE$6&\"-\"&$M13&\"_old\",Ammortamento_Finanziario!$H:$L,5,FALSE),VLOOKUP($M13,TT_Tabelle_Riferimento!$H$31:$I$50,2,FALSE))","v":12},{"$f":"+IFERROR(VLOOKUP(JF$6&\"-\"&$M13&\"_old\",Ammortamento_Finanziario!$H:$L,5,FALSE),VLOOKUP($M13,TT_Tabelle_Riferimento!$H$31:$I$50,2,FALSE))","v":12},{"$f":"+IFERROR(VLOOKUP(JG$6&\"-\"&$M13&\"_old\",Ammortamento_Finanziario!$H:$L,5,FALSE),VLOOKUP($M13,TT_Tabelle_Riferimento!$H$31:$I$50,2,FALSE))","v":12},{"$f":"+IFERROR(VLOOKUP(JH$6&\"-\"&$M13&\"_old\",Ammortamento_Finanziario!$H:$L,5,FALSE),VLOOKUP($M13,TT_Tabelle_Riferimento!$H$31:$I$50,2,FALSE))","v":12},{"$f":"+IFERROR(VLOOKUP(JI$6&\"-\"&$M13&\"_old\",Ammortamento_Finanziario!$H:$L,5,FALSE),VLOOKUP($M13,TT_Tabelle_Riferimento!$H$31:$I$50,2,FALSE))","v":12},{"$f":"+IFERROR(VLOOKUP(JJ$6&\"-\"&$M13&\"_old\",Ammortamento_Finanziario!$H:$L,5,FALSE),VLOOKUP($M13,TT_Tabelle_Riferimento!$H$31:$I$50,2,FALSE))","v":12},{"$f":"+IFERROR(VLOOKUP(JK$6&\"-\"&$M13&\"_old\",Ammortamento_Finanziario!$H:$L,5,FALSE),VLOOKUP($M13,TT_Tabelle_Riferimento!$H$31:$I$50,2,FALSE))","v":12},{"$f":"+IFERROR(VLOOKUP(JL$6&\"-\"&$M13&\"_old\",Ammortamento_Finanziario!$H:$L,5,FALSE),VLOOKUP($M13,TT_Tabelle_Riferimento!$H$31:$I$50,2,FALSE))","v":12},{"$f":"+IFERROR(VLOOKUP(JM$6&\"-\"&$M13&\"_old\",Ammortamento_Finanziario!$H:$L,5,FALSE),VLOOKUP($M13,TT_Tabelle_Riferimento!$H$31:$I$50,2,FALSE))","v":12},{"$f":"+IFERROR(VLOOKUP(JN$6&\"-\"&$M13&\"_old\",Ammortamento_Finanziario!$H:$L,5,FALSE),VLOOKUP($M13,TT_Tabelle_Riferimento!$H$31:$I$50,2,FALSE))","v":12},{"$f":"+IFERROR(VLOOKUP(JO$6&\"-\"&$M13&\"_old\",Ammortamento_Finanziario!$H:$L,5,FALSE),VLOOKUP($M13,TT_Tabelle_Riferimento!$H$31:$I$50,2,FALSE))","v":12},{"$f":"+IFERROR(VLOOKUP(JP$6&\"-\"&$M13&\"_old\",Ammortamento_Finanziario!$H:$L,5,FALSE),VLOOKUP($M13,TT_Tabelle_Riferimento!$H$31:$I$50,2,FALSE))","v":12},{"$f":"+IFERROR(VLOOKUP(JQ$6&\"-\"&$M13&\"_old\",Ammortamento_Finanziario!$H:$L,5,FALSE),VLOOKUP($M13,TT_Tabelle_Riferimento!$H$31:$I$50,2,FALSE))","v":12},{"$f":"+IFERROR(VLOOKUP(JR$6&\"-\"&$M13&\"_old\",Ammortamento_Finanziario!$H:$L,5,FALSE),VLOOKUP($M13,TT_Tabelle_Riferimento!$H$31:$I$50,2,FALSE))","v":12},{"$f":"+IFERROR(VLOOKUP(JS$6&\"-\"&$M13&\"_old\",Ammortamento_Finanziario!$H:$L,5,FALSE),VLOOKUP($M13,TT_Tabelle_Riferimento!$H$31:$I$50,2,FALSE))","v":12},{"$f":"+IFERROR(VLOOKUP(JT$6&\"-\"&$M13&\"_old\",Ammortamento_Finanziario!$H:$L,5,FALSE),VLOOKUP($M13,TT_Tabelle_Riferimento!$H$31:$I$50,2,FALSE))","v":12},{"$f":"+IFERROR(VLOOKUP(JU$6&\"-\"&$M13&\"_old\",Ammortamento_Finanziario!$H:$L,5,FALSE),VLOOKUP($M13,TT_Tabelle_Riferimento!$H$31:$I$50,2,FALSE))","v":12},{"$f":"+IFERROR(VLOOKUP(JV$6&\"-\"&$M13&\"_old\",Ammortamento_Finanziario!$H:$L,5,FALSE),VLOOKUP($M13,TT_Tabelle_Riferimento!$H$31:$I$50,2,FALSE))","v":12},{"$f":"+IFERROR(VLOOKUP(JW$6&\"-\"&$M13&\"_old\",Ammortamento_Finanziario!$H:$L,5,FALSE),VLOOKUP($M13,TT_Tabelle_Riferimento!$H$31:$I$50,2,FALSE))","v":12},{"$f":"+IFERROR(VLOOKUP(JX$6&\"-\"&$M13&\"_old\",Ammortamento_Finanziario!$H:$L,5,FALSE),VLOOKUP($M13,TT_Tabelle_Riferimento!$H$31:$I$50,2,FALSE))","v":12},{"$f":"+IFERROR(VLOOKUP(JY$6&\"-\"&$M13&\"_old\",Ammortamento_Finanziario!$H:$L,5,FALSE),VLOOKUP($M13,TT_Tabelle_Riferimento!$H$31:$I$50,2,FALSE))","v":12},{"$f":"+IFERROR(VLOOKUP(JZ$6&\"-\"&$M13&\"_old\",Ammortamento_Finanziario!$H:$L,5,FALSE),VLOOKUP($M13,TT_Tabelle_Riferimento!$H$31:$I$50,2,FALSE))","v":12},{"$f":"+IFERROR(VLOOKUP(KA$6&\"-\"&$M13&\"_old\",Ammortamento_Finanziario!$H:$L,5,FALSE),VLOOKUP($M13,TT_Tabelle_Riferimento!$H$31:$I$50,2,FALSE))","v":12},{"$f":"+IFERROR(VLOOKUP(KB$6&\"-\"&$M13&\"_old\",Ammortamento_Finanziario!$H:$L,5,FALSE),VLOOKUP($M13,TT_Tabelle_Riferimento!$H$31:$I$50,2,FALSE))","v":12},{"$f":"+IFERROR(VLOOKUP(KC$6&\"-\"&$M13&\"_old\",Ammortamento_Finanziario!$H:$L,5,FALSE),VLOOKUP($M13,TT_Tabelle_Riferimento!$H$31:$I$50,2,FALSE))","v":12},{"$f":"+IFERROR(VLOOKUP(KD$6&\"-\"&$M13&\"_old\",Ammortamento_Finanziario!$H:$L,5,FALSE),VLOOKUP($M13,TT_Tabelle_Riferimento!$H$31:$I$50,2,FALSE))","v":12},{"$f":"+IFERROR(VLOOKUP(KE$6&\"-\"&$M13&\"_old\",Ammortamento_Finanziario!$H:$L,5,FALSE),VLOOKUP($M13,TT_Tabelle_Riferimento!$H$31:$I$50,2,FALSE))","v":12},{"$f":"+IFERROR(VLOOKUP(KF$6&\"-\"&$M13&\"_old\",Ammortamento_Finanziario!$H:$L,5,FALSE),VLOOKUP($M13,TT_Tabelle_Riferimento!$H$31:$I$50,2,FALSE))","v":12},{"$f":"+IFERROR(VLOOKUP(KG$6&\"-\"&$M13&\"_old\",Ammortamento_Finanziario!$H:$L,5,FALSE),VLOOKUP($M13,TT_Tabelle_Riferimento!$H$31:$I$50,2,FALSE))","v":12},{"$f":"+IFERROR(VLOOKUP(KH$6&\"-\"&$M13&\"_old\",Ammortamento_Finanziario!$H:$L,5,FALSE),VLOOKUP($M13,TT_Tabelle_Riferimento!$H$31:$I$50,2,FALSE))","v":12},{"$f":"+IFERROR(VLOOKUP(KI$6&\"-\"&$M13&\"_old\",Ammortamento_Finanziario!$H:$L,5,FALSE),VLOOKUP($M13,TT_Tabelle_Riferimento!$H$31:$I$50,2,FALSE))","v":12},{"$f":"+IFERROR(VLOOKUP(KJ$6&\"-\"&$M13&\"_old\",Ammortamento_Finanziario!$H:$L,5,FALSE),VLOOKUP($M13,TT_Tabelle_Riferimento!$H$31:$I$50,2,FALSE))","v":12},{"$f":"+IFERROR(VLOOKUP(KK$6&\"-\"&$M13&\"_old\",Ammortamento_Finanziario!$H:$L,5,FALSE),VLOOKUP($M13,TT_Tabelle_Riferimento!$H$31:$I$50,2,FALSE))","v":12},{"$f":"+IFERROR(VLOOKUP(KL$6&\"-\"&$M13&\"_old\",Ammortamento_Finanziario!$H:$L,5,FALSE),VLOOKUP($M13,TT_Tabelle_Riferimento!$H$31:$I$50,2,FALSE))","v":12},{"$f":"+IFERROR(VLOOKUP(KM$6&\"-\"&$M13&\"_old\",Ammortamento_Finanziario!$H:$L,5,FALSE),VLOOKUP($M13,TT_Tabelle_Riferimento!$H$31:$I$50,2,FALSE))","v":12},{"$f":"+IFERROR(VLOOKUP(KN$6&\"-\"&$M13&\"_old\",Ammortamento_Finanziario!$H:$L,5,FALSE),VLOOKUP($M13,TT_Tabelle_Riferimento!$H$31:$I$50,2,FALSE))","v":12},{"$f":"+IFERROR(VLOOKUP(KO$6&\"-\"&$M13&\"_old\",Ammortamento_Finanziario!$H:$L,5,FALSE),VLOOKUP($M13,TT_Tabelle_Riferimento!$H$31:$I$50,2,FALSE))","v":12},{"$f":"+IFERROR(VLOOKUP(KP$6&\"-\"&$M13&\"_old\",Ammortamento_Finanziario!$H:$L,5,FALSE),VLOOKUP($M13,TT_Tabelle_Riferimento!$H$31:$I$50,2,FALSE))","v":12},{"$f":"+IFERROR(VLOOKUP(KQ$6&\"-\"&$M13&\"_old\",Ammortamento_Finanziario!$H:$L,5,FALSE),VLOOKUP($M13,TT_Tabelle_Riferimento!$H$31:$I$50,2,FALSE))","v":12},{"$f":"+IFERROR(VLOOKUP(KR$6&\"-\"&$M13&\"_old\",Ammortamento_Finanziario!$H:$L,5,FALSE),VLOOKUP($M13,TT_Tabelle_Riferimento!$H$31:$I$50,2,FALSE))","v":12},{"$f":"+IFERROR(VLOOKUP(KS$6&\"-\"&$M13&\"_old\",Ammortamento_Finanziario!$H:$L,5,FALSE),VLOOKUP($M13,TT_Tabelle_Riferimento!$H$31:$I$50,2,FALSE))","v":12},{"$f":"+IFERROR(VLOOKUP(KT$6&\"-\"&$M13&\"_old\",Ammortamento_Finanziario!$H:$L,5,FALSE),VLOOKUP($M13,TT_Tabelle_Riferimento!$H$31:$I$50,2,FALSE))","v":12},{"$f":"+IFERROR(VLOOKUP(KU$6&\"-\"&$M13&\"_old\",Ammortamento_Finanziario!$H:$L,5,FALSE),VLOOKUP($M13,TT_Tabelle_Riferimento!$H$31:$I$50,2,FALSE))","v":12},{"$f":"+IFERROR(VLOOKUP(KV$6&\"-\"&$M13&\"_old\",Ammortamento_Finanziario!$H:$L,5,FALSE),VLOOKUP($M13,TT_Tabelle_Riferimento!$H$31:$I$50,2,FALSE))","v":12},{"$f":"+IFERROR(VLOOKUP(KW$6&\"-\"&$M13&\"_old\",Ammortamento_Finanziario!$H:$L,5,FALSE),VLOOKUP($M13,TT_Tabelle_Riferimento!$H$31:$I$50,2,FALSE))","v":12},{"$f":"+IFERROR(VLOOKUP(KX$6&\"-\"&$M13&\"_old\",Ammortamento_Finanziario!$H:$L,5,FALSE),VLOOKUP($M13,TT_Tabelle_Riferimento!$H$31:$I$50,2,FALSE))","v":12},{"$f":"+IFERROR(VLOOKUP(KY$6&\"-\"&$M13&\"_old\",Ammortamento_Finanziario!$H:$L,5,FALSE),VLOOKUP($M13,TT_Tabelle_Riferimento!$H$31:$I$50,2,FALSE))","v":12},{"$f":"+IFERROR(VLOOKUP(KZ$6&\"-\"&$M13&\"_old\",Ammortamento_Finanziario!$H:$L,5,FALSE),VLOOKUP($M13,TT_Tabelle_Riferimento!$H$31:$I$50,2,FALSE))","v":12},{"$f":"+IFERROR(VLOOKUP(LA$6&\"-\"&$M13&\"_old\",Ammortamento_Finanziario!$H:$L,5,FALSE),VLOOKUP($M13,TT_Tabelle_Riferimento!$H$31:$I$50,2,FALSE))","v":12},{"$f":"+IFERROR(VLOOKUP(LB$6&\"-\"&$M13&\"_old\",Ammortamento_Finanziario!$H:$L,5,FALSE),VLOOKUP($M13,TT_Tabelle_Riferimento!$H$31:$I$50,2,FALSE))","v":12},{"$f":"+IFERROR(VLOOKUP(LC$6&\"-\"&$M13&\"_old\",Ammortamento_Finanziario!$H:$L,5,FALSE),VLOOKUP($M13,TT_Tabelle_Riferimento!$H$31:$I$50,2,FALSE))","v":12},{"$f":"+IFERROR(VLOOKUP(LD$6&\"-\"&$M13&\"_old\",Ammortamento_Finanziario!$H:$L,5,FALSE),VLOOKUP($M13,TT_Tabelle_Riferimento!$H$31:$I$50,2,FALSE))","v":12},{"$f":"+IFERROR(VLOOKUP(LE$6&\"-\"&$M13&\"_old\",Ammortamento_Finanziario!$H:$L,5,FALSE),VLOOKUP($M13,TT_Tabelle_Riferimento!$H$31:$I$50,2,FALSE))","v":12},{"$f":"+IFERROR(VLOOKUP(LF$6&\"-\"&$M13&\"_old\",Ammortamento_Finanziario!$H:$L,5,FALSE),VLOOKUP($M13,TT_Tabelle_Riferimento!$H$31:$I$50,2,FALSE))","v":12},{"$f":"+IFERROR(VLOOKUP(LG$6&\"-\"&$M13&\"_old\",Ammortamento_Finanziario!$H:$L,5,FALSE),VLOOKUP($M13,TT_Tabelle_Riferimento!$H$31:$I$50,2,FALSE))","v":12},{"$f":"+IFERROR(VLOOKUP(LH$6&\"-\"&$M13&\"_old\",Ammortamento_Finanziario!$H:$L,5,FALSE),VLOOKUP($M13,TT_Tabelle_Riferimento!$H$31:$I$50,2,FALSE))","v":12},{"$f":"+IFERROR(VLOOKUP(LI$6&\"-\"&$M13&\"_old\",Ammortamento_Finanziario!$H:$L,5,FALSE),VLOOKUP($M13,TT_Tabelle_Riferimento!$H$31:$I$50,2,FALSE))","v":12},{"$f":"+IFERROR(VLOOKUP(LJ$6&\"-\"&$M13&\"_old\",Ammortamento_Finanziario!$H:$L,5,FALSE),VLOOKUP($M13,TT_Tabelle_Riferimento!$H$31:$I$50,2,FALSE))","v":12},{"$f":"+IFERROR(VLOOKUP(LK$6&\"-\"&$M13&\"_old\",Ammortamento_Finanziario!$H:$L,5,FALSE),VLOOKUP($M13,TT_Tabelle_Riferimento!$H$31:$I$50,2,FALSE))","v":12},{"$f":"+IFERROR(VLOOKUP(LL$6&\"-\"&$M13&\"_old\",Ammortamento_Finanziario!$H:$L,5,FALSE),VLOOKUP($M13,TT_Tabelle_Riferimento!$H$31:$I$50,2,FALSE))","v":12},{"$f":"+IFERROR(VLOOKUP(LM$6&\"-\"&$M13&\"_old\",Ammortamento_Finanziario!$H:$L,5,FALSE),VLOOKUP($M13,TT_Tabelle_Riferimento!$H$31:$I$50,2,FALSE))","v":12},{"$f":"+IFERROR(VLOOKUP(LN$6&\"-\"&$M13&\"_old\",Ammortamento_Finanziario!$H:$L,5,FALSE),VLOOKUP($M13,TT_Tabelle_Riferimento!$H$31:$I$50,2,FALSE))","v":12},{"$f":"+IFERROR(VLOOKUP(LO$6&\"-\"&$M13&\"_old\",Ammortamento_Finanziario!$H:$L,5,FALSE),VLOOKUP($M13,TT_Tabelle_Riferimento!$H$31:$I$50,2,FALSE))","v":12},{"$f":"+IFERROR(VLOOKUP(LP$6&\"-\"&$M13&\"_old\",Ammortamento_Finanziario!$H:$L,5,FALSE),VLOOKUP($M13,TT_Tabelle_Riferimento!$H$31:$I$50,2,FALSE))","v":12},{"$f":"+IFERROR(VLOOKUP(LQ$6&\"-\"&$M13&\"_old\",Ammortamento_Finanziario!$H:$L,5,FALSE),VLOOKUP($M13,TT_Tabelle_Riferimento!$H$31:$I$50,2,FALSE))","v":12},{"$f":"+IFERROR(VLOOKUP(LR$6&\"-\"&$M13&\"_old\",Ammortamento_Finanziario!$H:$L,5,FALSE),VLOOKUP($M13,TT_Tabelle_Riferimento!$H$31:$I$50,2,FALSE))","v":12},{"$f":"+IFERROR(VLOOKUP(LS$6&\"-\"&$M13&\"_old\",Ammortamento_Finanziario!$H:$L,5,FALSE),VLOOKUP($M13,TT_Tabelle_Riferimento!$H$31:$I$50,2,FALSE))","v":12},{"$f":"+IFERROR(VLOOKUP(LT$6&\"-\"&$M13&\"_old\",Ammortamento_Finanziario!$H:$L,5,FALSE),VLOOKUP($M13,TT_Tabelle_Riferimento!$H$31:$I$50,2,FALSE))","v":12},{"$f":"+IFERROR(VLOOKUP(LU$6&\"-\"&$M13&\"_old\",Ammortamento_Finanziario!$H:$L,5,FALSE),VLOOKUP($M13,TT_Tabelle_Riferimento!$H$31:$I$50,2,FALSE))","v":12},{"$f":"+IFERROR(VLOOKUP(LV$6&\"-\"&$M13&\"_old\",Ammortamento_Finanziario!$H:$L,5,FALSE),VLOOKUP($M13,TT_Tabelle_Riferimento!$H$31:$I$50,2,FALSE))","v":12},{"$f":"+IFERROR(VLOOKUP(LW$6&\"-\"&$M13&\"_old\",Ammortamento_Finanziario!$H:$L,5,FALSE),VLOOKUP($M13,TT_Tabelle_Riferimento!$H$31:$I$50,2,FALSE))","v":12},{"$f":"+IFERROR(VLOOKUP(LX$6&\"-\"&$M13&\"_old\",Ammortamento_Finanziario!$H:$L,5,FALSE),VLOOKUP($M13,TT_Tabelle_Riferimento!$H$31:$I$50,2,FALSE))","v":12},{"$f":"+IFERROR(VLOOKUP(LY$6&\"-\"&$M13&\"_old\",Ammortamento_Finanziario!$H:$L,5,FALSE),VLOOKUP($M13,TT_Tabelle_Riferimento!$H$31:$I$50,2,FALSE))","v":12},{"$f":"+IFERROR(VLOOKUP(LZ$6&\"-\"&$M13&\"_old\",Ammortamento_Finanziario!$H:$L,5,FALSE),VLOOKUP($M13,TT_Tabelle_Riferimento!$H$31:$I$50,2,FALSE))","v":12},{"$f":"+IFERROR(VLOOKUP(MA$6&\"-\"&$M13&\"_old\",Ammortamento_Finanziario!$H:$L,5,FALSE),VLOOKUP($M13,TT_Tabelle_Riferimento!$H$31:$I$50,2,FALSE))","v":12},{"$f":"+IFERROR(VLOOKUP(MB$6&\"-\"&$M13&\"_old\",Ammortamento_Finanziario!$H:$L,5,FALSE),VLOOKUP($M13,TT_Tabelle_Riferimento!$H$31:$I$50,2,FALSE))","v":12},{"$f":"+IFERROR(VLOOKUP(MC$6&\"-\"&$M13&\"_old\",Ammortamento_Finanziario!$H:$L,5,FALSE),VLOOKUP($M13,TT_Tabelle_Riferimento!$H$31:$I$50,2,FALSE))","v":12},{"$f":"+IFERROR(VLOOKUP(MD$6&\"-\"&$M13&\"_old\",Ammortamento_Finanziario!$H:$L,5,FALSE),VLOOKUP($M13,TT_Tabelle_Riferimento!$H$31:$I$50,2,FALSE))","v":12},{"$f":"+IFERROR(VLOOKUP(ME$6&\"-\"&$M13&\"_old\",Ammortamento_Finanziario!$H:$L,5,FALSE),VLOOKUP($M13,TT_Tabelle_Riferimento!$H$31:$I$50,2,FALSE))","v":12},{"$f":"+IFERROR(VLOOKUP(MF$6&\"-\"&$M13&\"_old\",Ammortamento_Finanziario!$H:$L,5,FALSE),VLOOKUP($M13,TT_Tabelle_Riferimento!$H$31:$I$50,2,FALSE))","v":12},{"$f":"+IFERROR(VLOOKUP(MG$6&\"-\"&$M13&\"_old\",Ammortamento_Finanziario!$H:$L,5,FALSE),VLOOKUP($M13,TT_Tabelle_Riferimento!$H$31:$I$50,2,FALSE))","v":12},{"$f":"+IFERROR(VLOOKUP(MH$6&\"-\"&$M13&\"_old\",Ammortamento_Finanziario!$H:$L,5,FALSE),VLOOKUP($M13,TT_Tabelle_Riferimento!$H$31:$I$50,2,FALSE))","v":12},{"$f":"+IFERROR(VLOOKUP(MI$6&\"-\"&$M13&\"_old\",Ammortamento_Finanziario!$H:$L,5,FALSE),VLOOKUP($M13,TT_Tabelle_Riferimento!$H$31:$I$50,2,FALSE))","v":12},{"$f":"+IFERROR(VLOOKUP(MJ$6&\"-\"&$M13&\"_old\",Ammortamento_Finanziario!$H:$L,5,FALSE),VLOOKUP($M13,TT_Tabelle_Riferimento!$H$31:$I$50,2,FALSE))","v":12},{"$f":"+IFERROR(VLOOKUP(MK$6&\"-\"&$M13&\"_old\",Ammortamento_Finanziario!$H:$L,5,FALSE),VLOOKUP($M13,TT_Tabelle_Riferimento!$H$31:$I$50,2,FALSE))","v":12},{"$f":"+IFERROR(VLOOKUP(ML$6&\"-\"&$M13&\"_old\",Ammortamento_Finanziario!$H:$L,5,FALSE),VLOOKUP($M13,TT_Tabelle_Riferimento!$H$31:$I$50,2,FALSE))","v":12},{"$f":"+IFERROR(VLOOKUP(MM$6&\"-\"&$M13&\"_old\",Ammortamento_Finanziario!$H:$L,5,FALSE),VLOOKUP($M13,TT_Tabelle_Riferimento!$H$31:$I$50,2,FALSE))","v":12},{"$f":"+IFERROR(VLOOKUP(MN$6&\"-\"&$M13&\"_old\",Ammortamento_Finanziario!$H:$L,5,FALSE),VLOOKUP($M13,TT_Tabelle_Riferimento!$H$31:$I$50,2,FALSE))","v":12},{"$f":"+IFERROR(VLOOKUP(MO$6&\"-\"&$M13&\"_old\",Ammortamento_Finanziario!$H:$L,5,FALSE),VLOOKUP($M13,TT_Tabelle_Riferimento!$H$31:$I$50,2,FALSE))","v":12},{"$f":"+IFERROR(VLOOKUP(MP$6&\"-\"&$M13&\"_old\",Ammortamento_Finanziario!$H:$L,5,FALSE),VLOOKUP($M13,TT_Tabelle_Riferimento!$H$31:$I$50,2,FALSE))","v":12},{"$f":"+IFERROR(VLOOKUP(MQ$6&\"-\"&$M13&\"_old\",Ammortamento_Finanziario!$H:$L,5,FALSE),VLOOKUP($M13,TT_Tabelle_Riferimento!$H$31:$I$50,2,FALSE))","v":12},{"$f":"+IFERROR(VLOOKUP(MR$6&\"-\"&$M13&\"_old\",Ammortamento_Finanziario!$H:$L,5,FALSE),VLOOKUP($M13,TT_Tabelle_Riferimento!$H$31:$I$50,2,FALSE))","v":12},{"$f":"+IFERROR(VLOOKUP(MS$6&\"-\"&$M13&\"_old\",Ammortamento_Finanziario!$H:$L,5,FALSE),VLOOKUP($M13,TT_Tabelle_Riferimento!$H$31:$I$50,2,FALSE))","v":12},{"$f":"+IFERROR(VLOOKUP(MT$6&\"-\"&$M13&\"_old\",Ammortamento_Finanziario!$H:$L,5,FALSE),VLOOKUP($M13,TT_Tabelle_Riferimento!$H$31:$I$50,2,FALSE))","v":12},{"$f":"+IFERROR(VLOOKUP(MU$6&\"-\"&$M13&\"_old\",Ammortamento_Finanziario!$H:$L,5,FALSE),VLOOKUP($M13,TT_Tabelle_Riferimento!$H$31:$I$50,2,FALSE))","v":12},{"$f":"+IFERROR(VLOOKUP(MV$6&\"-\"&$M13&\"_old\",Ammortamento_Finanziario!$H:$L,5,FALSE),VLOOKUP($M13,TT_Tabelle_Riferimento!$H$31:$I$50,2,FALSE))","v":12},{"$f":"+IFERROR(VLOOKUP(MW$6&\"-\"&$M13&\"_old\",Ammortamento_Finanziario!$H:$L,5,FALSE),VLOOKUP($M13,TT_Tabelle_Riferimento!$H$31:$I$50,2,FALSE))","v":12},{"$f":"+IFERROR(VLOOKUP(MX$6&\"-\"&$M13&\"_old\",Ammortamento_Finanziario!$H:$L,5,FALSE),VLOOKUP($M13,TT_Tabelle_Riferimento!$H$31:$I$50,2,FALSE))","v":12},{"$f":"+IFERROR(VLOOKUP(MY$6&\"-\"&$M13&\"_old\",Ammortamento_Finanziario!$H:$L,5,FALSE),VLOOKUP($M13,TT_Tabelle_Riferimento!$H$31:$I$50,2,FALSE))","v":12},{"$f":"+IFERROR(VLOOKUP(MZ$6&\"-\"&$M13&\"_old\",Ammortamento_Finanziario!$H:$L,5,FALSE),VLOOKUP($M13,TT_Tabelle_Riferimento!$H$31:$I$50,2,FALSE))","v":12},{"$f":"+IFERROR(VLOOKUP(NA$6&\"-\"&$M13&\"_old\",Ammortamento_Finanziario!$H:$L,5,FALSE),VLOOKUP($M13,TT_Tabelle_Riferimento!$H$31:$I$50,2,FALSE))","v":12},{"$f":"+IFERROR(VLOOKUP(NB$6&\"-\"&$M13&\"_old\",Ammortamento_Finanziario!$H:$L,5,FALSE),VLOOKUP($M13,TT_Tabelle_Riferimento!$H$31:$I$50,2,FALSE))","v":12},{"$f":"+IFERROR(VLOOKUP(NC$6&\"-\"&$M13&\"_old\",Ammortamento_Finanziario!$H:$L,5,FALSE),VLOOKUP($M13,TT_Tabelle_Riferimento!$H$31:$I$50,2,FALSE))","v":12},{"$f":"+IFERROR(VLOOKUP(ND$6&\"-\"&$M13&\"_old\",Ammortamento_Finanziario!$H:$L,5,FALSE),VLOOKUP($M13,TT_Tabelle_Riferimento!$H$31:$I$50,2,FALSE))","v":12},{"$f":"+IFERROR(VLOOKUP(NE$6&\"-\"&$M13&\"_old\",Ammortamento_Finanziario!$H:$L,5,FALSE),VLOOKUP($M13,TT_Tabelle_Riferimento!$H$31:$I$50,2,FALSE))","v":12},{"$f":"+IFERROR(VLOOKUP(NF$6&\"-\"&$M13&\"_old\",Ammortamento_Finanziario!$H:$L,5,FALSE),VLOOKUP($M13,TT_Tabelle_Riferimento!$H$31:$I$50,2,FALSE))","v":12},{"$f":"+IFERROR(VLOOKUP(NG$6&\"-\"&$M13&\"_old\",Ammortamento_Finanziario!$H:$L,5,FALSE),VLOOKUP($M13,TT_Tabelle_Riferimento!$H$31:$I$50,2,FALSE))","v":12},{"$f":"+IFERROR(VLOOKUP(NH$6&\"-\"&$M13&\"_old\",Ammortamento_Finanziario!$H:$L,5,FALSE),VLOOKUP($M13,TT_Tabelle_Riferimento!$H$31:$I$50,2,FALSE))","v":12},{"$f":"+IFERROR(VLOOKUP(NI$6&\"-\"&$M13&\"_old\",Ammortamento_Finanziario!$H:$L,5,FALSE),VLOOKUP($M13,TT_Tabelle_Riferimento!$H$31:$I$50,2,FALSE))","v":12},{"$f":"+IFERROR(VLOOKUP(NJ$6&\"-\"&$M13&\"_old\",Ammortamento_Finanziario!$H:$L,5,FALSE),VLOOKUP($M13,TT_Tabelle_Riferimento!$H$31:$I$50,2,FALSE))","v":12},{"$f":"+IFERROR(VLOOKUP(NK$6&\"-\"&$M13&\"_old\",Ammortamento_Finanziario!$H:$L,5,FALSE),VLOOKUP($M13,TT_Tabelle_Riferimento!$H$31:$I$50,2,FALSE))","v":12},{"$f":"+IFERROR(VLOOKUP(NL$6&\"-\"&$M13&\"_old\",Ammortamento_Finanziario!$H:$L,5,FALSE),VLOOKUP($M13,TT_Tabelle_Riferimento!$H$31:$I$50,2,FALSE))","v":12},{"$f":"+IFERROR(VLOOKUP(NM$6&\"-\"&$M13&\"_old\",Ammortamento_Finanziario!$H:$L,5,FALSE),VLOOKUP($M13,TT_Tabelle_Riferimento!$H$31:$I$50,2,FALSE))","v":12},{"$f":"+IFERROR(VLOOKUP(NN$6&\"-\"&$M13&\"_old\",Ammortamento_Finanziario!$H:$L,5,FALSE),VLOOKUP($M13,TT_Tabelle_Riferimento!$H$31:$I$50,2,FALSE))","v":12},{"$f":"+IFERROR(VLOOKUP(NO$6&\"-\"&$M13&\"_old\",Ammortamento_Finanziario!$H:$L,5,FALSE),VLOOKUP($M13,TT_Tabelle_Riferimento!$H$31:$I$50,2,FALSE))","v":12},{"$f":"+IFERROR(VLOOKUP(NP$6&\"-\"&$M13&\"_old\",Ammortamento_Finanziario!$H:$L,5,FALSE),VLOOKUP($M13,TT_Tabelle_Riferimento!$H$31:$I$50,2,FALSE))","v":12},{"$f":"+IFERROR(VLOOKUP(NQ$6&\"-\"&$M13&\"_old\",Ammortamento_Finanziario!$H:$L,5,FALSE),VLOOKUP($M13,TT_Tabelle_Riferimento!$H$31:$I$50,2,FALSE))","v":12},{"$f":"+IFERROR(VLOOKUP(NR$6&\"-\"&$M13&\"_old\",Ammortamento_Finanziario!$H:$L,5,FALSE),VLOOKUP($M13,TT_Tabelle_Riferimento!$H$31:$I$50,2,FALSE))","v":12},{"$f":"+IFERROR(VLOOKUP(NS$6&\"-\"&$M13&\"_old\",Ammortamento_Finanziario!$H:$L,5,FALSE),VLOOKUP($M13,TT_Tabelle_Riferimento!$H$31:$I$50,2,FALSE))","v":12},{"$f":"+IFERROR(VLOOKUP(NT$6&\"-\"&$M13&\"_old\",Ammortamento_Finanziario!$H:$L,5,FALSE),VLOOKUP($M13,TT_Tabelle_Riferimento!$H$31:$I$50,2,FALSE))","v":12},{"$f":"+IFERROR(VLOOKUP(NU$6&\"-\"&$M13&\"_old\",Ammortamento_Finanziario!$H:$L,5,FALSE),VLOOKUP($M13,TT_Tabelle_Riferimento!$H$31:$I$50,2,FALSE))","v":12},{"$f":"+IFERROR(VLOOKUP(NV$6&\"-\"&$M13&\"_old\",Ammortamento_Finanziario!$H:$L,5,FALSE),VLOOKUP($M13,TT_Tabelle_Riferimento!$H$31:$I$50,2,FALSE))","v":12},{"$f":"+IFERROR(VLOOKUP(NW$6&\"-\"&$M13&\"_old\",Ammortamento_Finanziario!$H:$L,5,FALSE),VLOOKUP($M13,TT_Tabelle_Riferimento!$H$31:$I$50,2,FALSE))","v":12},{"$f":"+IFERROR(VLOOKUP(NX$6&\"-\"&$M13&\"_old\",Ammortamento_Finanziario!$H:$L,5,FALSE),VLOOKUP($M13,TT_Tabelle_Riferimento!$H$31:$I$50,2,FALSE))","v":12},{"$f":"+IFERROR(VLOOKUP(NY$6&\"-\"&$M13&\"_old\",Ammortamento_Finanziario!$H:$L,5,FALSE),VLOOKUP($M13,TT_Tabelle_Riferimento!$H$31:$I$50,2,FALSE))","v":12},{"$f":"+IFERROR(VLOOKUP(NZ$6&\"-\"&$M13&\"_old\",Ammortamento_Finanziario!$H:$L,5,FALSE),VLOOKUP($M13,TT_Tabelle_Riferimento!$H$31:$I$50,2,FALSE))","v":12},{"$f":"+IFERROR(VLOOKUP(OA$6&\"-\"&$M13&\"_old\",Ammortamento_Finanziario!$H:$L,5,FALSE),VLOOKUP($M13,TT_Tabelle_Riferimento!$H$31:$I$50,2,FALSE))","v":12},{"$f":"+IFERROR(VLOOKUP(OB$6&\"-\"&$M13&\"_old\",Ammortamento_Finanziario!$H:$L,5,FALSE),VLOOKUP($M13,TT_Tabelle_Riferimento!$H$31:$I$50,2,FALSE))","v":12},{"$f":"+IFERROR(VLOOKUP(OC$6&\"-\"&$M13&\"_old\",Ammortamento_Finanziario!$H:$L,5,FALSE),VLOOKUP($M13,TT_Tabelle_Riferimento!$H$31:$I$50,2,FALSE))","v":12},{"$f":"+IFERROR(VLOOKUP(OD$6&\"-\"&$M13&\"_old\",Ammortamento_Finanziario!$H:$L,5,FALSE),VLOOKUP($M13,TT_Tabelle_Riferimento!$H$31:$I$50,2,FALSE))","v":12},{"$f":"+IFERROR(VLOOKUP(OE$6&\"-\"&$M13&\"_old\",Ammortamento_Finanziario!$H:$L,5,FALSE),VLOOKUP($M13,TT_Tabelle_Riferimento!$H$31:$I$50,2,FALSE))","v":12},{"$f":"+IFERROR(VLOOKUP(OF$6&\"-\"&$M13&\"_old\",Ammortamento_Finanziario!$H:$L,5,FALSE),VLOOKUP($M13,TT_Tabelle_Riferimento!$H$31:$I$50,2,FALSE))","v":12},{"$f":"+IFERROR(VLOOKUP(OG$6&\"-\"&$M13&\"_old\",Ammortamento_Finanziario!$H:$L,5,FALSE),VLOOKUP($M13,TT_Tabelle_Riferimento!$H$31:$I$50,2,FALSE))","v":12},{"$f":"+IFERROR(VLOOKUP(OH$6&\"-\"&$M13&\"_old\",Ammortamento_Finanziario!$H:$L,5,FALSE),VLOOKUP($M13,TT_Tabelle_Riferimento!$H$31:$I$50,2,FALSE))","v":12},{"$f":"+IFERROR(VLOOKUP(OI$6&\"-\"&$M13&\"_old\",Ammortamento_Finanziario!$H:$L,5,FALSE),VLOOKUP($M13,TT_Tabelle_Riferimento!$H$31:$I$50,2,FALSE))","v":12},{"$f":"+IFERROR(VLOOKUP(OJ$6&\"-\"&$M13&\"_old\",Ammortamento_Finanziario!$H:$L,5,FALSE),VLOOKUP($M13,TT_Tabelle_Riferimento!$H$31:$I$50,2,FALSE))","v":12},{"$f":"+IFERROR(VLOOKUP(OK$6&\"-\"&$M13&\"_old\",Ammortamento_Finanziario!$H:$L,5,FALSE),VLOOKUP($M13,TT_Tabelle_Riferimento!$H$31:$I$50,2,FALSE))","v":12},{"$f":"+IFERROR(VLOOKUP(OL$6&\"-\"&$M13&\"_old\",Ammortamento_Finanziario!$H:$L,5,FALSE),VLOOKUP($M13,TT_Tabelle_Riferimento!$H$31:$I$50,2,FALSE))","v":12},{"$f":"+IFERROR(VLOOKUP(OM$6&\"-\"&$M13&\"_old\",Ammortamento_Finanziario!$H:$L,5,FALSE),VLOOKUP($M13,TT_Tabelle_Riferimento!$H$31:$I$50,2,FALSE))","v":12},{"$f":"+IFERROR(VLOOKUP(ON$6&\"-\"&$M13&\"_old\",Ammortamento_Finanziario!$H:$L,5,FALSE),VLOOKUP($M13,TT_Tabelle_Riferimento!$H$31:$I$50,2,FALSE))","v":12},{"$f":"+IFERROR(VLOOKUP(OO$6&\"-\"&$M13&\"_old\",Ammortamento_Finanziario!$H:$L,5,FALSE),VLOOKUP($M13,TT_Tabelle_Riferimento!$H$31:$I$50,2,FALSE))","v":12},{"$f":"+IFERROR(VLOOKUP(OP$6&\"-\"&$M13&\"_old\",Ammortamento_Finanziario!$H:$L,5,FALSE),VLOOKUP($M13,TT_Tabelle_Riferimento!$H$31:$I$50,2,FALSE))","v":12},{"$f":"+IFERROR(VLOOKUP(OQ$6&\"-\"&$M13&\"_old\",Ammortamento_Finanziario!$H:$L,5,FALSE),VLOOKUP($M13,TT_Tabelle_Riferimento!$H$31:$I$50,2,FALSE))","v":12},{"$f":"+IFERROR(VLOOKUP(OR$6&\"-\"&$M13&\"_old\",Ammortamento_Finanziario!$H:$L,5,FALSE),VLOOKUP($M13,TT_Tabelle_Riferimento!$H$31:$I$50,2,FALSE))","v":12},{"$f":"+IFERROR(VLOOKUP(OS$6&\"-\"&$M13&\"_old\",Ammortamento_Finanziario!$H:$L,5,FALSE),VLOOKUP($M13,TT_Tabelle_Riferimento!$H$31:$I$50,2,FALSE))","v":12},{"$f":"+IFERROR(VLOOKUP(OT$6&\"-\"&$M13&\"_old\",Ammortamento_Finanziario!$H:$L,5,FALSE),VLOOKUP($M13,TT_Tabelle_Riferimento!$H$31:$I$50,2,FALSE))","v":12},{"$f":"+IFERROR(VLOOKUP(OU$6&\"-\"&$M13&\"_old\",Ammortamento_Finanziario!$H:$L,5,FALSE),VLOOKUP($M13,TT_Tabelle_Riferimento!$H$31:$I$50,2,FALSE))","v":12},{"$f":"+IFERROR(VLOOKUP(OV$6&\"-\"&$M13&\"_old\",Ammortamento_Finanziario!$H:$L,5,FALSE),VLOOKUP($M13,TT_Tabelle_Riferimento!$H$31:$I$50,2,FALSE))","v":12},{"$f":"+IFERROR(VLOOKUP(OW$6&\"-\"&$M13&\"_old\",Ammortamento_Finanziario!$H:$L,5,FALSE),VLOOKUP($M13,TT_Tabelle_Riferimento!$H$31:$I$50,2,FALSE))","v":12},{"$f":"+IFERROR(VLOOKUP(OX$6&\"-\"&$M13&\"_old\",Ammortamento_Finanziario!$H:$L,5,FALSE),VLOOKUP($M13,TT_Tabelle_Riferimento!$H$31:$I$50,2,FALSE))","v":12},{"$f":"+IFERROR(VLOOKUP(OY$6&\"-\"&$M13&\"_old\",Ammortamento_Finanziario!$H:$L,5,FALSE),VLOOKUP($M13,TT_Tabelle_Riferimento!$H$31:$I$50,2,FALSE))","v":12},{"$f":"+IFERROR(VLOOKUP(OZ$6&\"-\"&$M13&\"_old\",Ammortamento_Finanziario!$H:$L,5,FALSE),VLOOKUP($M13,TT_Tabelle_Riferimento!$H$31:$I$50,2,FALSE))","v":12},{"$f":"+IFERROR(VLOOKUP(PA$6&\"-\"&$M13&\"_old\",Ammortamento_Finanziario!$H:$L,5,FALSE),VLOOKUP($M13,TT_Tabelle_Riferimento!$H$31:$I$50,2,FALSE))","v":12},{"$f":"+IFERROR(VLOOKUP(PB$6&\"-\"&$M13&\"_old\",Ammortamento_Finanziario!$H:$L,5,FALSE),VLOOKUP($M13,TT_Tabelle_Riferimento!$H$31:$I$50,2,FALSE))","v":12},{"$f":"+IFERROR(VLOOKUP(PC$6&\"-\"&$M13&\"_old\",Ammortamento_Finanziario!$H:$L,5,FALSE),VLOOKUP($M13,TT_Tabelle_Riferimento!$H$31:$I$50,2,FALSE))","v":12},{"$f":"+IFERROR(VLOOKUP(PD$6&\"-\"&$M13&\"_old\",Ammortamento_Finanziario!$H:$L,5,FALSE),VLOOKUP($M13,TT_Tabelle_Riferimento!$H$31:$I$50,2,FALSE))","v":12},{"$f":"+IFERROR(VLOOKUP(PE$6&\"-\"&$M13&\"_old\",Ammortamento_Finanziario!$H:$L,5,FALSE),VLOOKUP($M13,TT_Tabelle_Riferimento!$H$31:$I$50,2,FALSE))","v":12},{"$f":"+IFERROR(VLOOKUP(PF$6&\"-\"&$M13&\"_old\",Ammortamento_Finanziario!$H:$L,5,FALSE),VLOOKUP($M13,TT_Tabelle_Riferimento!$H$31:$I$50,2,FALSE))","v":12},{"$f":"+IFERROR(VLOOKUP(PG$6&\"-\"&$M13&\"_old\",Ammortamento_Finanziario!$H:$L,5,FALSE),VLOOKUP($M13,TT_Tabelle_Riferimento!$H$31:$I$50,2,FALSE))","v":12},{"$f":"+IFERROR(VLOOKUP(PH$6&\"-\"&$M13&\"_old\",Ammortamento_Finanziario!$H:$L,5,FALSE),VLOOKUP($M13,TT_Tabelle_Riferimento!$H$31:$I$50,2,FALSE))","v":12},{"$f":"+IFERROR(VLOOKUP(PI$6&\"-\"&$M13&\"_old\",Ammortamento_Finanziario!$H:$L,5,FALSE),VLOOKUP($M13,TT_Tabelle_Riferimento!$H$31:$I$50,2,FALSE))","v":12},{"$f":"+IFERROR(VLOOKUP(PJ$6&\"-\"&$M13&\"_old\",Ammortamento_Finanziario!$H:$L,5,FALSE),VLOOKUP($M13,TT_Tabelle_Riferimento!$H$31:$I$50,2,FALSE))","v":12},{"$f":"+IFERROR(VLOOKUP(PK$6&\"-\"&$M13&\"_old\",Ammortamento_Finanziario!$H:$L,5,FALSE),VLOOKUP($M13,TT_Tabelle_Riferimento!$H$31:$I$50,2,FALSE))","v":12},{"$f":"+IFERROR(VLOOKUP(PL$6&\"-\"&$M13&\"_old\",Ammortamento_Finanziario!$H:$L,5,FALSE),VLOOKUP($M13,TT_Tabelle_Riferimento!$H$31:$I$50,2,FALSE))","v":12},{"$f":"+IFERROR(VLOOKUP(PM$6&\"-\"&$M13&\"_old\",Ammortamento_Finanziario!$H:$L,5,FALSE),VLOOKUP($M13,TT_Tabelle_Riferimento!$H$31:$I$50,2,FALSE))","v":12},{"$f":"+IFERROR(VLOOKUP(PN$6&\"-\"&$M13&\"_old\",Ammortamento_Finanziario!$H:$L,5,FALSE),VLOOKUP($M13,TT_Tabelle_Riferimento!$H$31:$I$50,2,FALSE))","v":12},{"$f":"+IFERROR(VLOOKUP(PO$6&\"-\"&$M13&\"_old\",Ammortamento_Finanziario!$H:$L,5,FALSE),VLOOKUP($M13,TT_Tabelle_Riferimento!$H$31:$I$50,2,FALSE))","v":12},{"$f":"+IFERROR(VLOOKUP(PP$6&\"-\"&$M13&\"_old\",Ammortamento_Finanziario!$H:$L,5,FALSE),VLOOKUP($M13,TT_Tabelle_Riferimento!$H$31:$I$50,2,FALSE))","v":12},{"$f":"+IFERROR(VLOOKUP(PQ$6&\"-\"&$M13&\"_old\",Ammortamento_Finanziario!$H:$L,5,FALSE),VLOOKUP($M13,TT_Tabelle_Riferimento!$H$31:$I$50,2,FALSE))","v":12},{"$f":"+IFERROR(VLOOKUP(PR$6&\"-\"&$M13&\"_old\",Ammortamento_Finanziario!$H:$L,5,FALSE),VLOOKUP($M13,TT_Tabelle_Riferimento!$H$31:$I$50,2,FALSE))","v":12},{"$f":"+IFERROR(VLOOKUP(PS$6&\"-\"&$M13&\"_old\",Ammortamento_Finanziario!$H:$L,5,FALSE),VLOOKUP($M13,TT_Tabelle_Riferimento!$H$31:$I$50,2,FALSE))","v":12},{"$f":"+IFERROR(VLOOKUP(PT$6&\"-\"&$M13&\"_old\",Ammortamento_Finanziario!$H:$L,5,FALSE),VLOOKUP($M13,TT_Tabelle_Riferimento!$H$31:$I$50,2,FALSE))","v":12},{"$f":"+IFERROR(VLOOKUP(PU$6&\"-\"&$M13&\"_old\",Ammortamento_Finanziario!$H:$L,5,FALSE),VLOOKUP($M13,TT_Tabelle_Riferimento!$H$31:$I$50,2,FALSE))","v":12},{"$f":"+IFERROR(VLOOKUP(PV$6&\"-\"&$M13&\"_old\",Ammortamento_Finanziario!$H:$L,5,FALSE),VLOOKUP($M13,TT_Tabelle_Riferimento!$H$31:$I$50,2,FALSE))","v":12},{"$f":"+IFERROR(VLOOKUP(PW$6&\"-\"&$M13&\"_old\",Ammortamento_Finanziario!$H:$L,5,FALSE),VLOOKUP($M13,TT_Tabelle_Riferimento!$H$31:$I$50,2,FALSE))","v":12},{"$f":"+IFERROR(VLOOKUP(PX$6&\"-\"&$M13&\"_old\",Ammortamento_Finanziario!$H:$L,5,FALSE),VLOOKUP($M13,TT_Tabelle_Riferimento!$H$31:$I$50,2,FALSE))","v":12},{"$f":"+IFERROR(VLOOKUP(PY$6&\"-\"&$M13&\"_old\",Ammortamento_Finanziario!$H:$L,5,FALSE),VLOOKUP($M13,TT_Tabelle_Riferimento!$H$31:$I$50,2,FALSE))","v":12},{"$f":"+IFERROR(VLOOKUP(PZ$6&\"-\"&$M13&\"_old\",Ammortamento_Finanziario!$H:$L,5,FALSE),VLOOKUP($M13,TT_Tabelle_Riferimento!$H$31:$I$50,2,FALSE))","v":12},{"$f":"+IFERROR(VLOOKUP(QA$6&\"-\"&$M13&\"_old\",Ammortamento_Finanziario!$H:$L,5,FALSE),VLOOKUP($M13,TT_Tabelle_Riferimento!$H$31:$I$50,2,FALSE))","v":12},{"$f":"+IFERROR(VLOOKUP(QB$6&\"-\"&$M13&\"_old\",Ammortamento_Finanziario!$H:$L,5,FALSE),VLOOKUP($M13,TT_Tabelle_Riferimento!$H$31:$I$50,2,FALSE))","v":12},{"$f":"+IFERROR(VLOOKUP(QC$6&\"-\"&$M13&\"_old\",Ammortamento_Finanziario!$H:$L,5,FALSE),VLOOKUP($M13,TT_Tabelle_Riferimento!$H$31:$I$50,2,FALSE))","v":12},{"$f":"+IFERROR(VLOOKUP(QD$6&\"-\"&$M13&\"_old\",Ammortamento_Finanziario!$H:$L,5,FALSE),VLOOKUP($M13,TT_Tabelle_Riferimento!$H$31:$I$50,2,FALSE))","v":12},{"$f":"+IFERROR(VLOOKUP(QE$6&\"-\"&$M13&\"_old\",Ammortamento_Finanziario!$H:$L,5,FALSE),VLOOKUP($M13,TT_Tabelle_Riferimento!$H$31:$I$50,2,FALSE))","v":12},{"$f":"+IFERROR(VLOOKUP(QF$6&\"-\"&$M13&\"_old\",Ammortamento_Finanziario!$H:$L,5,FALSE),VLOOKUP($M13,TT_Tabelle_Riferimento!$H$31:$I$50,2,FALSE))","v":12},{"$f":"+IFERROR(VLOOKUP(QG$6&\"-\"&$M13&\"_old\",Ammortamento_Finanziario!$H:$L,5,FALSE),VLOOKUP($M13,TT_Tabelle_Riferimento!$H$31:$I$50,2,FALSE))","v":12},{"$f":"+IFERROR(VLOOKUP(QH$6&\"-\"&$M13&\"_old\",Ammortamento_Finanziario!$H:$L,5,FALSE),VLOOKUP($M13,TT_Tabelle_Riferimento!$H$31:$I$50,2,FALSE))","v":12},{"$f":"+IFERROR(VLOOKUP(QI$6&\"-\"&$M13&\"_old\",Ammortamento_Finanziario!$H:$L,5,FALSE),VLOOKUP($M13,TT_Tabelle_Riferimento!$H$31:$I$50,2,FALSE))","v":12},{"$f":"+IFERROR(VLOOKUP(QJ$6&\"-\"&$M13&\"_old\",Ammortamento_Finanziario!$H:$L,5,FALSE),VLOOKUP($M13,TT_Tabelle_Riferimento!$H$31:$I$50,2,FALSE))","v":12},{"$f":"+IFERROR(VLOOKUP(QK$6&\"-\"&$M13&\"_old\",Ammortamento_Finanziario!$H:$L,5,FALSE),VLOOKUP($M13,TT_Tabelle_Riferimento!$H$31:$I$50,2,FALSE))","v":12},{"$f":"+IFERROR(VLOOKUP(QL$6&\"-\"&$M13&\"_old\",Ammortamento_Finanziario!$H:$L,5,FALSE),VLOOKUP($M13,TT_Tabelle_Riferimento!$H$31:$I$50,2,FALSE))","v":12},{"$f":"+IFERROR(VLOOKUP(QM$6&\"-\"&$M13&\"_old\",Ammortamento_Finanziario!$H:$L,5,FALSE),VLOOKUP($M13,TT_Tabelle_Riferimento!$H$31:$I$50,2,FALSE))","v":12},{"$f":"+IFERROR(VLOOKUP(QN$6&\"-\"&$M13&\"_old\",Ammortamento_Finanziario!$H:$L,5,FALSE),VLOOKUP($M13,TT_Tabelle_Riferimento!$H$31:$I$50,2,FALSE))","v":12},{"$f":"+IFERROR(VLOOKUP(QO$6&\"-\"&$M13&\"_old\",Ammortamento_Finanziario!$H:$L,5,FALSE),VLOOKUP($M13,TT_Tabelle_Riferimento!$H$31:$I$50,2,FALSE))","v":12},{"$f":"+IFERROR(VLOOKUP(QP$6&\"-\"&$M13&\"_old\",Ammortamento_Finanziario!$H:$L,5,FALSE),VLOOKUP($M13,TT_Tabelle_Riferimento!$H$31:$I$50,2,FALSE))","v":12},{"$f":"+IFERROR(VLOOKUP(QQ$6&\"-\"&$M13&\"_old\",Ammortamento_Finanziario!$H:$L,5,FALSE),VLOOKUP($M13,TT_Tabelle_Riferimento!$H$31:$I$50,2,FALSE))","v":12},{"$f":"+IFERROR(VLOOKUP(QR$6&\"-\"&$M13&\"_old\",Ammortamento_Finanziario!$H:$L,5,FALSE),VLOOKUP($M13,TT_Tabelle_Riferimento!$H$31:$I$50,2,FALSE))","v":12},{"$f":"+IFERROR(VLOOKUP(QS$6&\"-\"&$M13&\"_old\",Ammortamento_Finanziario!$H:$L,5,FALSE),VLOOKUP($M13,TT_Tabelle_Riferimento!$H$31:$I$50,2,FALSE))","v":12},{"$f":"+IFERROR(VLOOKUP(QT$6&\"-\"&$M13&\"_old\",Ammortamento_Finanziario!$H:$L,5,FALSE),VLOOKUP($M13,TT_Tabelle_Riferimento!$H$31:$I$50,2,FALSE))","v":12},{"$f":"+IFERROR(VLOOKUP(QU$6&\"-\"&$M13&\"_old\",Ammortamento_Finanziario!$H:$L,5,FALSE),VLOOKUP($M13,TT_Tabelle_Riferimento!$H$31:$I$50,2,FALSE))","v":12},{"$f":"+IFERROR(VLOOKUP(QV$6&\"-\"&$M13&\"_old\",Ammortamento_Finanziario!$H:$L,5,FALSE),VLOOKUP($M13,TT_Tabelle_Riferimento!$H$31:$I$50,2,FALSE))","v":12},{"$f":"+IFERROR(VLOOKUP(QW$6&\"-\"&$M13&\"_old\",Ammortamento_Finanziario!$H:$L,5,FALSE),VLOOKUP($M13,TT_Tabelle_Riferimento!$H$31:$I$50,2,FALSE))","v":12},{"$f":"+IFERROR(VLOOKUP(QX$6&\"-\"&$M13&\"_old\",Ammortamento_Finanziario!$H:$L,5,FALSE),VLOOKUP($M13,TT_Tabelle_Riferimento!$H$31:$I$50,2,FALSE))","v":12},{"$f":"+IFERROR(VLOOKUP(QY$6&\"-\"&$M13&\"_old\",Ammortamento_Finanziario!$H:$L,5,FALSE),VLOOKUP($M13,TT_Tabelle_Riferimento!$H$31:$I$50,2,FALSE))","v":12},{"$f":"+IFERROR(VLOOKUP(QZ$6&\"-\"&$M13&\"_old\",Ammortamento_Finanziario!$H:$L,5,FALSE),VLOOKUP($M13,TT_Tabelle_Riferimento!$H$31:$I$50,2,FALSE))","v":12},{"$f":"+IFERROR(VLOOKUP(RA$6&\"-\"&$M13&\"_old\",Ammortamento_Finanziario!$H:$L,5,FALSE),VLOOKUP($M13,TT_Tabelle_Riferimento!$H$31:$I$50,2,FALSE))","v":12},{"$f":"+IFERROR(VLOOKUP(RB$6&\"-\"&$M13&\"_old\",Ammortamento_Finanziario!$H:$L,5,FALSE),VLOOKUP($M13,TT_Tabelle_Riferimento!$H$31:$I$50,2,FALSE))","v":12},{"$f":"+IFERROR(VLOOKUP(RC$6&\"-\"&$M13&\"_old\",Ammortamento_Finanziario!$H:$L,5,FALSE),VLOOKUP($M13,TT_Tabelle_Riferimento!$H$31:$I$50,2,FALSE))","v":12},{"$f":"+IFERROR(VLOOKUP(RD$6&\"-\"&$M13&\"_old\",Ammortamento_Finanziario!$H:$L,5,FALSE),VLOOKUP($M13,TT_Tabelle_Riferimento!$H$31:$I$50,2,FALSE))","v":12},{"$f":"+IFERROR(VLOOKUP(RE$6&\"-\"&$M13&\"_old\",Ammortamento_Finanziario!$H:$L,5,FALSE),VLOOKUP($M13,TT_Tabelle_Riferimento!$H$31:$I$50,2,FALSE))","v":12},{"$f":"+IFERROR(VLOOKUP(RF$6&\"-\"&$M13&\"_old\",Ammortamento_Finanziario!$H:$L,5,FALSE),VLOOKUP($M13,TT_Tabelle_Riferimento!$H$31:$I$50,2,FALSE))","v":12},{"$f":"+IFERROR(VLOOKUP(RG$6&\"-\"&$M13&\"_old\",Ammortamento_Finanziario!$H:$L,5,FALSE),VLOOKUP($M13,TT_Tabelle_Riferimento!$H$31:$I$50,2,FALSE))","v":12},{"$f":"+IFERROR(VLOOKUP(RH$6&\"-\"&$M13&\"_old\",Ammortamento_Finanziario!$H:$L,5,FALSE),VLOOKUP($M13,TT_Tabelle_Riferimento!$H$31:$I$50,2,FALSE))","v":12},{"$f":"+IFERROR(VLOOKUP(RI$6&\"-\"&$M13&\"_old\",Ammortamento_Finanziario!$H:$L,5,FALSE),VLOOKUP($M13,TT_Tabelle_Riferimento!$H$31:$I$50,2,FALSE))","v":12},{"$f":"+IFERROR(VLOOKUP(RJ$6&\"-\"&$M13&\"_old\",Ammortamento_Finanziario!$H:$L,5,FALSE),VLOOKUP($M13,TT_Tabelle_Riferimento!$H$31:$I$50,2,FALSE))","v":12},{"$f":"+IFERROR(VLOOKUP(RK$6&\"-\"&$M13&\"_old\",Ammortamento_Finanziario!$H:$L,5,FALSE),VLOOKUP($M13,TT_Tabelle_Riferimento!$H$31:$I$50,2,FALSE))","v":12},{"$f":"+IFERROR(VLOOKUP(RL$6&\"-\"&$M13&\"_old\",Ammortamento_Finanziario!$H:$L,5,FALSE),VLOOKUP($M13,TT_Tabelle_Riferimento!$H$31:$I$50,2,FALSE))","v":12},{"$f":"+IFERROR(VLOOKUP(RM$6&\"-\"&$M13&\"_old\",Ammortamento_Finanziario!$H:$L,5,FALSE),VLOOKUP($M13,TT_Tabelle_Riferimento!$H$31:$I$50,2,FALSE))","v":12},{"$f":"+IFERROR(VLOOKUP(RN$6&\"-\"&$M13&\"_old\",Ammortamento_Finanziario!$H:$L,5,FALSE),VLOOKUP($M13,TT_Tabelle_Riferimento!$H$31:$I$50,2,FALSE))","v":12},{"$f":"+IFERROR(VLOOKUP(RO$6&\"-\"&$M13&\"_old\",Ammortamento_Finanziario!$H:$L,5,FALSE),VLOOKUP($M13,TT_Tabelle_Riferimento!$H$31:$I$50,2,FALSE))","v":12},{"$f":"+IFERROR(VLOOKUP(RP$6&\"-\"&$M13&\"_old\",Ammortamento_Finanziario!$H:$L,5,FALSE),VLOOKUP($M13,TT_Tabelle_Riferimento!$H$31:$I$50,2,FALSE))","v":12},{"$f":"+IFERROR(VLOOKUP(RQ$6&\"-\"&$M13&\"_old\",Ammortamento_Finanziario!$H:$L,5,FALSE),VLOOKUP($M13,TT_Tabelle_Riferimento!$H$31:$I$50,2,FALSE))","v":12},{"$f":"+IFERROR(VLOOKUP(RR$6&\"-\"&$M13&\"_old\",Ammortamento_Finanziario!$H:$L,5,FALSE),VLOOKUP($M13,TT_Tabelle_Riferimento!$H$31:$I$50,2,FALSE))","v":12},{"$f":"+IFERROR(VLOOKUP(RS$6&\"-\"&$M13&\"_old\",Ammortamento_Finanziario!$H:$L,5,FALSE),VLOOKUP($M13,TT_Tabelle_Riferimento!$H$31:$I$50,2,FALSE))","v":12},{"$f":"+IFERROR(VLOOKUP(RT$6&\"-\"&$M13&\"_old\",Ammortamento_Finanziario!$H:$L,5,FALSE),VLOOKUP($M13,TT_Tabelle_Riferimento!$H$31:$I$50,2,FALSE))","v":12},{"$f":"+IFERROR(VLOOKUP(RU$6&\"-\"&$M13&\"_old\",Ammortamento_Finanziario!$H:$L,5,FALSE),VLOOKUP($M13,TT_Tabelle_Riferimento!$H$31:$I$50,2,FALSE))","v":12},{"$f":"+IFERROR(VLOOKUP(RV$6&\"-\"&$M13&\"_old\",Ammortamento_Finanziario!$H:$L,5,FALSE),VLOOKUP($M13,TT_Tabelle_Riferimento!$H$31:$I$50,2,FALSE))","v":12}]
[null,null,null,null,null,null,null,null,null,null,null,null,8,{"$f":"+IFERROR(VLOOKUP(N$6&\"-\"&$M14&\"_old\",Ammortamento_Finanziario!$H:$L,5,FALSE),VLOOKUP($M14,TT_Tabelle_Riferimento!$H$31:$I$50,2,FALSE))","v":8},{"$f":"+IFERROR(VLOOKUP(O$6&\"-\"&$M14&\"_old\",Ammortamento_Finanziario!$H:$L,5,FALSE),VLOOKUP($M14,TT_Tabelle_Riferimento!$H$31:$I$50,2,FALSE))","v":8},{"$f":"+IFERROR(VLOOKUP(P$6&\"-\"&$M14&\"_old\",Ammortamento_Finanziario!$H:$L,5,FALSE),VLOOKUP($M14,TT_Tabelle_Riferimento!$H$31:$I$50,2,FALSE))","v":8},{"$f":"+IFERROR(VLOOKUP(Q$6&\"-\"&$M14&\"_old\",Ammortamento_Finanziario!$H:$L,5,FALSE),VLOOKUP($M14,TT_Tabelle_Riferimento!$H$31:$I$50,2,FALSE))","v":8},{"$f":"+IFERROR(VLOOKUP(R$6&\"-\"&$M14&\"_old\",Ammortamento_Finanziario!$H:$L,5,FALSE),VLOOKUP($M14,TT_Tabelle_Riferimento!$H$31:$I$50,2,FALSE))","v":8},{"$f":"+IFERROR(VLOOKUP(S$6&\"-\"&$M14&\"_old\",Ammortamento_Finanziario!$H:$L,5,FALSE),VLOOKUP($M14,TT_Tabelle_Riferimento!$H$31:$I$50,2,FALSE))","v":8},{"$f":"+IFERROR(VLOOKUP(T$6&\"-\"&$M14&\"_old\",Ammortamento_Finanziario!$H:$L,5,FALSE),VLOOKUP($M14,TT_Tabelle_Riferimento!$H$31:$I$50,2,FALSE))","v":8},{"$f":"+IFERROR(VLOOKUP(U$6&\"-\"&$M14&\"_old\",Ammortamento_Finanziario!$H:$L,5,FALSE),VLOOKUP($M14,TT_Tabelle_Riferimento!$H$31:$I$50,2,FALSE))","v":8},{"$f":"+IFERROR(VLOOKUP(V$6&\"-\"&$M14&\"_old\",Ammortamento_Finanziario!$H:$L,5,FALSE),VLOOKUP($M14,TT_Tabelle_Riferimento!$H$31:$I$50,2,FALSE))","v":8},{"$f":"+IFERROR(VLOOKUP(W$6&\"-\"&$M14&\"_old\",Ammortamento_Finanziario!$H:$L,5,FALSE),VLOOKUP($M14,TT_Tabelle_Riferimento!$H$31:$I$50,2,FALSE))","v":8},{"$f":"+IFERROR(VLOOKUP(X$6&\"-\"&$M14&\"_old\",Ammortamento_Finanziario!$H:$L,5,FALSE),VLOOKUP($M14,TT_Tabelle_Riferimento!$H$31:$I$50,2,FALSE))","v":8},{"$f":"+IFERROR(VLOOKUP(Y$6&\"-\"&$M14&\"_old\",Ammortamento_Finanziario!$H:$L,5,FALSE),VLOOKUP($M14,TT_Tabelle_Riferimento!$H$31:$I$50,2,FALSE))","v":8},{"$f":"+IFERROR(VLOOKUP(Z$6&\"-\"&$M14&\"_old\",Ammortamento_Finanziario!$H:$L,5,FALSE),VLOOKUP($M14,TT_Tabelle_Riferimento!$H$31:$I$50,2,FALSE))","v":8},{"$f":"+IFERROR(VLOOKUP(AA$6&\"-\"&$M14&\"_old\",Ammortamento_Finanziario!$H:$L,5,FALSE),VLOOKUP($M14,TT_Tabelle_Riferimento!$H$31:$I$50,2,FALSE))","v":8},{"$f":"+IFERROR(VLOOKUP(AB$6&\"-\"&$M14&\"_old\",Ammortamento_Finanziario!$H:$L,5,FALSE),VLOOKUP($M14,TT_Tabelle_Riferimento!$H$31:$I$50,2,FALSE))","v":8},{"$f":"+IFERROR(VLOOKUP(AC$6&\"-\"&$M14&\"_old\",Ammortamento_Finanziario!$H:$L,5,FALSE),VLOOKUP($M14,TT_Tabelle_Riferimento!$H$31:$I$50,2,FALSE))","v":8},{"$f":"+IFERROR(VLOOKUP(AD$6&\"-\"&$M14&\"_old\",Ammortamento_Finanziario!$H:$L,5,FALSE),VLOOKUP($M14,TT_Tabelle_Riferimento!$H$31:$I$50,2,FALSE))","v":8},{"$f":"+IFERROR(VLOOKUP(AE$6&\"-\"&$M14&\"_old\",Ammortamento_Finanziario!$H:$L,5,FALSE),VLOOKUP($M14,TT_Tabelle_Riferimento!$H$31:$I$50,2,FALSE))","v":8},{"$f":"+IFERROR(VLOOKUP(AF$6&\"-\"&$M14&\"_old\",Ammortamento_Finanziario!$H:$L,5,FALSE),VLOOKUP($M14,TT_Tabelle_Riferimento!$H$31:$I$50,2,FALSE))","v":8},{"$f":"+IFERROR(VLOOKUP(AG$6&\"-\"&$M14&\"_old\",Ammortamento_Finanziario!$H:$L,5,FALSE),VLOOKUP($M14,TT_Tabelle_Riferimento!$H$31:$I$50,2,FALSE))","v":8},{"$f":"+IFERROR(VLOOKUP(AH$6&\"-\"&$M14&\"_old\",Ammortamento_Finanziario!$H:$L,5,FALSE),VLOOKUP($M14,TT_Tabelle_Riferimento!$H$31:$I$50,2,FALSE))","v":8},{"$f":"+IFERROR(VLOOKUP(AI$6&\"-\"&$M14&\"_old\",Ammortamento_Finanziario!$H:$L,5,FALSE),VLOOKUP($M14,TT_Tabelle_Riferimento!$H$31:$I$50,2,FALSE))","v":8},{"$f":"+IFERROR(VLOOKUP(AJ$6&\"-\"&$M14&\"_old\",Ammortamento_Finanziario!$H:$L,5,FALSE),VLOOKUP($M14,TT_Tabelle_Riferimento!$H$31:$I$50,2,FALSE))","v":8},{"$f":"+IFERROR(VLOOKUP(AK$6&\"-\"&$M14&\"_old\",Ammortamento_Finanziario!$H:$L,5,FALSE),VLOOKUP($M14,TT_Tabelle_Riferimento!$H$31:$I$50,2,FALSE))","v":8},{"$f":"+IFERROR(VLOOKUP(AL$6&\"-\"&$M14&\"_old\",Ammortamento_Finanziario!$H:$L,5,FALSE),VLOOKUP($M14,TT_Tabelle_Riferimento!$H$31:$I$50,2,FALSE))","v":8},{"$f":"+IFERROR(VLOOKUP(AM$6&\"-\"&$M14&\"_old\",Ammortamento_Finanziario!$H:$L,5,FALSE),VLOOKUP($M14,TT_Tabelle_Riferimento!$H$31:$I$50,2,FALSE))","v":8},{"$f":"+IFERROR(VLOOKUP(AN$6&\"-\"&$M14&\"_old\",Ammortamento_Finanziario!$H:$L,5,FALSE),VLOOKUP($M14,TT_Tabelle_Riferimento!$H$31:$I$50,2,FALSE))","v":8},{"$f":"+IFERROR(VLOOKUP(AO$6&\"-\"&$M14&\"_old\",Ammortamento_Finanziario!$H:$L,5,FALSE),VLOOKUP($M14,TT_Tabelle_Riferimento!$H$31:$I$50,2,FALSE))","v":8},{"$f":"+IFERROR(VLOOKUP(AP$6&\"-\"&$M14&\"_old\",Ammortamento_Finanziario!$H:$L,5,FALSE),VLOOKUP($M14,TT_Tabelle_Riferimento!$H$31:$I$50,2,FALSE))","v":8},{"$f":"+IFERROR(VLOOKUP(AQ$6&\"-\"&$M14&\"_old\",Ammortamento_Finanziario!$H:$L,5,FALSE),VLOOKUP($M14,TT_Tabelle_Riferimento!$H$31:$I$50,2,FALSE))","v":8},{"$f":"+IFERROR(VLOOKUP(AR$6&\"-\"&$M14&\"_old\",Ammortamento_Finanziario!$H:$L,5,FALSE),VLOOKUP($M14,TT_Tabelle_Riferimento!$H$31:$I$50,2,FALSE))","v":8},{"$f":"+IFERROR(VLOOKUP(AS$6&\"-\"&$M14&\"_old\",Ammortamento_Finanziario!$H:$L,5,FALSE),VLOOKUP($M14,TT_Tabelle_Riferimento!$H$31:$I$50,2,FALSE))","v":8},{"$f":"+IFERROR(VLOOKUP(AT$6&\"-\"&$M14&\"_old\",Ammortamento_Finanziario!$H:$L,5,FALSE),VLOOKUP($M14,TT_Tabelle_Riferimento!$H$31:$I$50,2,FALSE))","v":8},{"$f":"+IFERROR(VLOOKUP(AU$6&\"-\"&$M14&\"_old\",Ammortamento_Finanziario!$H:$L,5,FALSE),VLOOKUP($M14,TT_Tabelle_Riferimento!$H$31:$I$50,2,FALSE))","v":8},{"$f":"+IFERROR(VLOOKUP(AV$6&\"-\"&$M14&\"_old\",Ammortamento_Finanziario!$H:$L,5,FALSE),VLOOKUP($M14,TT_Tabelle_Riferimento!$H$31:$I$50,2,FALSE))","v":8},{"$f":"+IFERROR(VLOOKUP(AW$6&\"-\"&$M14&\"_old\",Ammortamento_Finanziario!$H:$L,5,FALSE),VLOOKUP($M14,TT_Tabelle_Riferimento!$H$31:$I$50,2,FALSE))","v":8},{"$f":"+IFERROR(VLOOKUP(AX$6&\"-\"&$M14&\"_old\",Ammortamento_Finanziario!$H:$L,5,FALSE),VLOOKUP($M14,TT_Tabelle_Riferimento!$H$31:$I$50,2,FALSE))","v":8},{"$f":"+IFERROR(VLOOKUP(AY$6&\"-\"&$M14&\"_old\",Ammortamento_Finanziario!$H:$L,5,FALSE),VLOOKUP($M14,TT_Tabelle_Riferimento!$H$31:$I$50,2,FALSE))","v":8},{"$f":"+IFERROR(VLOOKUP(AZ$6&\"-\"&$M14&\"_old\",Ammortamento_Finanziario!$H:$L,5,FALSE),VLOOKUP($M14,TT_Tabelle_Riferimento!$H$31:$I$50,2,FALSE))","v":8},{"$f":"+IFERROR(VLOOKUP(BA$6&\"-\"&$M14&\"_old\",Ammortamento_Finanziario!$H:$L,5,FALSE),VLOOKUP($M14,TT_Tabelle_Riferimento!$H$31:$I$50,2,FALSE))","v":8},{"$f":"+IFERROR(VLOOKUP(BB$6&\"-\"&$M14&\"_old\",Ammortamento_Finanziario!$H:$L,5,FALSE),VLOOKUP($M14,TT_Tabelle_Riferimento!$H$31:$I$50,2,FALSE))","v":8},{"$f":"+IFERROR(VLOOKUP(BC$6&\"-\"&$M14&\"_old\",Ammortamento_Finanziario!$H:$L,5,FALSE),VLOOKUP($M14,TT_Tabelle_Riferimento!$H$31:$I$50,2,FALSE))","v":8},{"$f":"+IFERROR(VLOOKUP(BD$6&\"-\"&$M14&\"_old\",Ammortamento_Finanziario!$H:$L,5,FALSE),VLOOKUP($M14,TT_Tabelle_Riferimento!$H$31:$I$50,2,FALSE))","v":8},{"$f":"+IFERROR(VLOOKUP(BE$6&\"-\"&$M14&\"_old\",Ammortamento_Finanziario!$H:$L,5,FALSE),VLOOKUP($M14,TT_Tabelle_Riferimento!$H$31:$I$50,2,FALSE))","v":8},{"$f":"+IFERROR(VLOOKUP(BF$6&\"-\"&$M14&\"_old\",Ammortamento_Finanziario!$H:$L,5,FALSE),VLOOKUP($M14,TT_Tabelle_Riferimento!$H$31:$I$50,2,FALSE))","v":8},{"$f":"+IFERROR(VLOOKUP(BG$6&\"-\"&$M14&\"_old\",Ammortamento_Finanziario!$H:$L,5,FALSE),VLOOKUP($M14,TT_Tabelle_Riferimento!$H$31:$I$50,2,FALSE))","v":8},{"$f":"+IFERROR(VLOOKUP(BH$6&\"-\"&$M14&\"_old\",Ammortamento_Finanziario!$H:$L,5,FALSE),VLOOKUP($M14,TT_Tabelle_Riferimento!$H$31:$I$50,2,FALSE))","v":8},{"$f":"+IFERROR(VLOOKUP(BI$6&\"-\"&$M14&\"_old\",Ammortamento_Finanziario!$H:$L,5,FALSE),VLOOKUP($M14,TT_Tabelle_Riferimento!$H$31:$I$50,2,FALSE))","v":8},{"$f":"+IFERROR(VLOOKUP(BJ$6&\"-\"&$M14&\"_old\",Ammortamento_Finanziario!$H:$L,5,FALSE),VLOOKUP($M14,TT_Tabelle_Riferimento!$H$31:$I$50,2,FALSE))","v":8},{"$f":"+IFERROR(VLOOKUP(BK$6&\"-\"&$M14&\"_old\",Ammortamento_Finanziario!$H:$L,5,FALSE),VLOOKUP($M14,TT_Tabelle_Riferimento!$H$31:$I$50,2,FALSE))","v":8},{"$f":"+IFERROR(VLOOKUP(BL$6&\"-\"&$M14&\"_old\",Ammortamento_Finanziario!$H:$L,5,FALSE),VLOOKUP($M14,TT_Tabelle_Riferimento!$H$31:$I$50,2,FALSE))","v":8},{"$f":"+IFERROR(VLOOKUP(BM$6&\"-\"&$M14&\"_old\",Ammortamento_Finanziario!$H:$L,5,FALSE),VLOOKUP($M14,TT_Tabelle_Riferimento!$H$31:$I$50,2,FALSE))","v":8},{"$f":"+IFERROR(VLOOKUP(BN$6&\"-\"&$M14&\"_old\",Ammortamento_Finanziario!$H:$L,5,FALSE),VLOOKUP($M14,TT_Tabelle_Riferimento!$H$31:$I$50,2,FALSE))","v":8},{"$f":"+IFERROR(VLOOKUP(BO$6&\"-\"&$M14&\"_old\",Ammortamento_Finanziario!$H:$L,5,FALSE),VLOOKUP($M14,TT_Tabelle_Riferimento!$H$31:$I$50,2,FALSE))","v":8},{"$f":"+IFERROR(VLOOKUP(BP$6&\"-\"&$M14&\"_old\",Ammortamento_Finanziario!$H:$L,5,FALSE),VLOOKUP($M14,TT_Tabelle_Riferimento!$H$31:$I$50,2,FALSE))","v":8},{"$f":"+IFERROR(VLOOKUP(BQ$6&\"-\"&$M14&\"_old\",Ammortamento_Finanziario!$H:$L,5,FALSE),VLOOKUP($M14,TT_Tabelle_Riferimento!$H$31:$I$50,2,FALSE))","v":8},{"$f":"+IFERROR(VLOOKUP(BR$6&\"-\"&$M14&\"_old\",Ammortamento_Finanziario!$H:$L,5,FALSE),VLOOKUP($M14,TT_Tabelle_Riferimento!$H$31:$I$50,2,FALSE))","v":8},{"$f":"+IFERROR(VLOOKUP(BS$6&\"-\"&$M14&\"_old\",Ammortamento_Finanziario!$H:$L,5,FALSE),VLOOKUP($M14,TT_Tabelle_Riferimento!$H$31:$I$50,2,FALSE))","v":8},{"$f":"+IFERROR(VLOOKUP(BT$6&\"-\"&$M14&\"_old\",Ammortamento_Finanziario!$H:$L,5,FALSE),VLOOKUP($M14,TT_Tabelle_Riferimento!$H$31:$I$50,2,FALSE))","v":8},{"$f":"+IFERROR(VLOOKUP(BU$6&\"-\"&$M14&\"_old\",Ammortamento_Finanziario!$H:$L,5,FALSE),VLOOKUP($M14,TT_Tabelle_Riferimento!$H$31:$I$50,2,FALSE))","v":8},{"$f":"+IFERROR(VLOOKUP(BV$6&\"-\"&$M14&\"_old\",Ammortamento_Finanziario!$H:$L,5,FALSE),VLOOKUP($M14,TT_Tabelle_Riferimento!$H$31:$I$50,2,FALSE))","v":8},{"$f":"+IFERROR(VLOOKUP(BW$6&\"-\"&$M14&\"_old\",Ammortamento_Finanziario!$H:$L,5,FALSE),VLOOKUP($M14,TT_Tabelle_Riferimento!$H$31:$I$50,2,FALSE))","v":8},{"$f":"+IFERROR(VLOOKUP(BX$6&\"-\"&$M14&\"_old\",Ammortamento_Finanziario!$H:$L,5,FALSE),VLOOKUP($M14,TT_Tabelle_Riferimento!$H$31:$I$50,2,FALSE))","v":8},{"$f":"+IFERROR(VLOOKUP(BY$6&\"-\"&$M14&\"_old\",Ammortamento_Finanziario!$H:$L,5,FALSE),VLOOKUP($M14,TT_Tabelle_Riferimento!$H$31:$I$50,2,FALSE))","v":8},{"$f":"+IFERROR(VLOOKUP(BZ$6&\"-\"&$M14&\"_old\",Ammortamento_Finanziario!$H:$L,5,FALSE),VLOOKUP($M14,TT_Tabelle_Riferimento!$H$31:$I$50,2,FALSE))","v":8},{"$f":"+IFERROR(VLOOKUP(CA$6&\"-\"&$M14&\"_old\",Ammortamento_Finanziario!$H:$L,5,FALSE),VLOOKUP($M14,TT_Tabelle_Riferimento!$H$31:$I$50,2,FALSE))","v":8},{"$f":"+IFERROR(VLOOKUP(CB$6&\"-\"&$M14&\"_old\",Ammortamento_Finanziario!$H:$L,5,FALSE),VLOOKUP($M14,TT_Tabelle_Riferimento!$H$31:$I$50,2,FALSE))","v":8},{"$f":"+IFERROR(VLOOKUP(CC$6&\"-\"&$M14&\"_old\",Ammortamento_Finanziario!$H:$L,5,FALSE),VLOOKUP($M14,TT_Tabelle_Riferimento!$H$31:$I$50,2,FALSE))","v":8},{"$f":"+IFERROR(VLOOKUP(CD$6&\"-\"&$M14&\"_old\",Ammortamento_Finanziario!$H:$L,5,FALSE),VLOOKUP($M14,TT_Tabelle_Riferimento!$H$31:$I$50,2,FALSE))","v":8},{"$f":"+IFERROR(VLOOKUP(CE$6&\"-\"&$M14&\"_old\",Ammortamento_Finanziario!$H:$L,5,FALSE),VLOOKUP($M14,TT_Tabelle_Riferimento!$H$31:$I$50,2,FALSE))","v":8},{"$f":"+IFERROR(VLOOKUP(CF$6&\"-\"&$M14&\"_old\",Ammortamento_Finanziario!$H:$L,5,FALSE),VLOOKUP($M14,TT_Tabelle_Riferimento!$H$31:$I$50,2,FALSE))","v":8},{"$f":"+IFERROR(VLOOKUP(CG$6&\"-\"&$M14&\"_old\",Ammortamento_Finanziario!$H:$L,5,FALSE),VLOOKUP($M14,TT_Tabelle_Riferimento!$H$31:$I$50,2,FALSE))","v":8},{"$f":"+IFERROR(VLOOKUP(CH$6&\"-\"&$M14&\"_old\",Ammortamento_Finanziario!$H:$L,5,FALSE),VLOOKUP($M14,TT_Tabelle_Riferimento!$H$31:$I$50,2,FALSE))","v":8},{"$f":"+IFERROR(VLOOKUP(CI$6&\"-\"&$M14&\"_old\",Ammortamento_Finanziario!$H:$L,5,FALSE),VLOOKUP($M14,TT_Tabelle_Riferimento!$H$31:$I$50,2,FALSE))","v":8},{"$f":"+IFERROR(VLOOKUP(CJ$6&\"-\"&$M14&\"_old\",Ammortamento_Finanziario!$H:$L,5,FALSE),VLOOKUP($M14,TT_Tabelle_Riferimento!$H$31:$I$50,2,FALSE))","v":8},{"$f":"+IFERROR(VLOOKUP(CK$6&\"-\"&$M14&\"_old\",Ammortamento_Finanziario!$H:$L,5,FALSE),VLOOKUP($M14,TT_Tabelle_Riferimento!$H$31:$I$50,2,FALSE))","v":8},{"$f":"+IFERROR(VLOOKUP(CL$6&\"-\"&$M14&\"_old\",Ammortamento_Finanziario!$H:$L,5,FALSE),VLOOKUP($M14,TT_Tabelle_Riferimento!$H$31:$I$50,2,FALSE))","v":8},{"$f":"+IFERROR(VLOOKUP(CM$6&\"-\"&$M14&\"_old\",Ammortamento_Finanziario!$H:$L,5,FALSE),VLOOKUP($M14,TT_Tabelle_Riferimento!$H$31:$I$50,2,FALSE))","v":8},{"$f":"+IFERROR(VLOOKUP(CN$6&\"-\"&$M14&\"_old\",Ammortamento_Finanziario!$H:$L,5,FALSE),VLOOKUP($M14,TT_Tabelle_Riferimento!$H$31:$I$50,2,FALSE))","v":8},{"$f":"+IFERROR(VLOOKUP(CO$6&\"-\"&$M14&\"_old\",Ammortamento_Finanziario!$H:$L,5,FALSE),VLOOKUP($M14,TT_Tabelle_Riferimento!$H$31:$I$50,2,FALSE))","v":8},{"$f":"+IFERROR(VLOOKUP(CP$6&\"-\"&$M14&\"_old\",Ammortamento_Finanziario!$H:$L,5,FALSE),VLOOKUP($M14,TT_Tabelle_Riferimento!$H$31:$I$50,2,FALSE))","v":8},{"$f":"+IFERROR(VLOOKUP(CQ$6&\"-\"&$M14&\"_old\",Ammortamento_Finanziario!$H:$L,5,FALSE),VLOOKUP($M14,TT_Tabelle_Riferimento!$H$31:$I$50,2,FALSE))","v":8},{"$f":"+IFERROR(VLOOKUP(CR$6&\"-\"&$M14&\"_old\",Ammortamento_Finanziario!$H:$L,5,FALSE),VLOOKUP($M14,TT_Tabelle_Riferimento!$H$31:$I$50,2,FALSE))","v":8},{"$f":"+IFERROR(VLOOKUP(CS$6&\"-\"&$M14&\"_old\",Ammortamento_Finanziario!$H:$L,5,FALSE),VLOOKUP($M14,TT_Tabelle_Riferimento!$H$31:$I$50,2,FALSE))","v":8},{"$f":"+IFERROR(VLOOKUP(CT$6&\"-\"&$M14&\"_old\",Ammortamento_Finanziario!$H:$L,5,FALSE),VLOOKUP($M14,TT_Tabelle_Riferimento!$H$31:$I$50,2,FALSE))","v":8},{"$f":"+IFERROR(VLOOKUP(CU$6&\"-\"&$M14&\"_old\",Ammortamento_Finanziario!$H:$L,5,FALSE),VLOOKUP($M14,TT_Tabelle_Riferimento!$H$31:$I$50,2,FALSE))","v":8},{"$f":"+IFERROR(VLOOKUP(CV$6&\"-\"&$M14&\"_old\",Ammortamento_Finanziario!$H:$L,5,FALSE),VLOOKUP($M14,TT_Tabelle_Riferimento!$H$31:$I$50,2,FALSE))","v":8},{"$f":"+IFERROR(VLOOKUP(CW$6&\"-\"&$M14&\"_old\",Ammortamento_Finanziario!$H:$L,5,FALSE),VLOOKUP($M14,TT_Tabelle_Riferimento!$H$31:$I$50,2,FALSE))","v":8},{"$f":"+IFERROR(VLOOKUP(CX$6&\"-\"&$M14&\"_old\",Ammortamento_Finanziario!$H:$L,5,FALSE),VLOOKUP($M14,TT_Tabelle_Riferimento!$H$31:$I$50,2,FALSE))","v":8},{"$f":"+IFERROR(VLOOKUP(CY$6&\"-\"&$M14&\"_old\",Ammortamento_Finanziario!$H:$L,5,FALSE),VLOOKUP($M14,TT_Tabelle_Riferimento!$H$31:$I$50,2,FALSE))","v":8},{"$f":"+IFERROR(VLOOKUP(CZ$6&\"-\"&$M14&\"_old\",Ammortamento_Finanziario!$H:$L,5,FALSE),VLOOKUP($M14,TT_Tabelle_Riferimento!$H$31:$I$50,2,FALSE))","v":8},{"$f":"+IFERROR(VLOOKUP(DA$6&\"-\"&$M14&\"_old\",Ammortamento_Finanziario!$H:$L,5,FALSE),VLOOKUP($M14,TT_Tabelle_Riferimento!$H$31:$I$50,2,FALSE))","v":8},{"$f":"+IFERROR(VLOOKUP(DB$6&\"-\"&$M14&\"_old\",Ammortamento_Finanziario!$H:$L,5,FALSE),VLOOKUP($M14,TT_Tabelle_Riferimento!$H$31:$I$50,2,FALSE))","v":8},{"$f":"+IFERROR(VLOOKUP(DC$6&\"-\"&$M14&\"_old\",Ammortamento_Finanziario!$H:$L,5,FALSE),VLOOKUP($M14,TT_Tabelle_Riferimento!$H$31:$I$50,2,FALSE))","v":8},{"$f":"+IFERROR(VLOOKUP(DD$6&\"-\"&$M14&\"_old\",Ammortamento_Finanziario!$H:$L,5,FALSE),VLOOKUP($M14,TT_Tabelle_Riferimento!$H$31:$I$50,2,FALSE))","v":8},{"$f":"+IFERROR(VLOOKUP(DE$6&\"-\"&$M14&\"_old\",Ammortamento_Finanziario!$H:$L,5,FALSE),VLOOKUP($M14,TT_Tabelle_Riferimento!$H$31:$I$50,2,FALSE))","v":8},{"$f":"+IFERROR(VLOOKUP(DF$6&\"-\"&$M14&\"_old\",Ammortamento_Finanziario!$H:$L,5,FALSE),VLOOKUP($M14,TT_Tabelle_Riferimento!$H$31:$I$50,2,FALSE))","v":8},{"$f":"+IFERROR(VLOOKUP(DG$6&\"-\"&$M14&\"_old\",Ammortamento_Finanziario!$H:$L,5,FALSE),VLOOKUP($M14,TT_Tabelle_Riferimento!$H$31:$I$50,2,FALSE))","v":8},{"$f":"+IFERROR(VLOOKUP(DH$6&\"-\"&$M14&\"_old\",Ammortamento_Finanziario!$H:$L,5,FALSE),VLOOKUP($M14,TT_Tabelle_Riferimento!$H$31:$I$50,2,FALSE))","v":8},{"$f":"+IFERROR(VLOOKUP(DI$6&\"-\"&$M14&\"_old\",Ammortamento_Finanziario!$H:$L,5,FALSE),VLOOKUP($M14,TT_Tabelle_Riferimento!$H$31:$I$50,2,FALSE))","v":8},{"$f":"+IFERROR(VLOOKUP(DJ$6&\"-\"&$M14&\"_old\",Ammortamento_Finanziario!$H:$L,5,FALSE),VLOOKUP($M14,TT_Tabelle_Riferimento!$H$31:$I$50,2,FALSE))","v":8},{"$f":"+IFERROR(VLOOKUP(DK$6&\"-\"&$M14&\"_old\",Ammortamento_Finanziario!$H:$L,5,FALSE),VLOOKUP($M14,TT_Tabelle_Riferimento!$H$31:$I$50,2,FALSE))","v":8},{"$f":"+IFERROR(VLOOKUP(DL$6&\"-\"&$M14&\"_old\",Ammortamento_Finanziario!$H:$L,5,FALSE),VLOOKUP($M14,TT_Tabelle_Riferimento!$H$31:$I$50,2,FALSE))","v":8},{"$f":"+IFERROR(VLOOKUP(DM$6&\"-\"&$M14&\"_old\",Ammortamento_Finanziario!$H:$L,5,FALSE),VLOOKUP($M14,TT_Tabelle_Riferimento!$H$31:$I$50,2,FALSE))","v":8},{"$f":"+IFERROR(VLOOKUP(DN$6&\"-\"&$M14&\"_old\",Ammortamento_Finanziario!$H:$L,5,FALSE),VLOOKUP($M14,TT_Tabelle_Riferimento!$H$31:$I$50,2,FALSE))","v":8},{"$f":"+IFERROR(VLOOKUP(DO$6&\"-\"&$M14&\"_old\",Ammortamento_Finanziario!$H:$L,5,FALSE),VLOOKUP($M14,TT_Tabelle_Riferimento!$H$31:$I$50,2,FALSE))","v":8},{"$f":"+IFERROR(VLOOKUP(DP$6&\"-\"&$M14&\"_old\",Ammortamento_Finanziario!$H:$L,5,FALSE),VLOOKUP($M14,TT_Tabelle_Riferimento!$H$31:$I$50,2,FALSE))","v":8},{"$f":"+IFERROR(VLOOKUP(DQ$6&\"-\"&$M14&\"_old\",Ammortamento_Finanziario!$H:$L,5,FALSE),VLOOKUP($M14,TT_Tabelle_Riferimento!$H$31:$I$50,2,FALSE))","v":8},{"$f":"+IFERROR(VLOOKUP(DR$6&\"-\"&$M14&\"_old\",Ammortamento_Finanziario!$H:$L,5,FALSE),VLOOKUP($M14,TT_Tabelle_Riferimento!$H$31:$I$50,2,FALSE))","v":8},{"$f":"+IFERROR(VLOOKUP(DS$6&\"-\"&$M14&\"_old\",Ammortamento_Finanziario!$H:$L,5,FALSE),VLOOKUP($M14,TT_Tabelle_Riferimento!$H$31:$I$50,2,FALSE))","v":8},{"$f":"+IFERROR(VLOOKUP(DT$6&\"-\"&$M14&\"_old\",Ammortamento_Finanziario!$H:$L,5,FALSE),VLOOKUP($M14,TT_Tabelle_Riferimento!$H$31:$I$50,2,FALSE))","v":8},{"$f":"+IFERROR(VLOOKUP(DU$6&\"-\"&$M14&\"_old\",Ammortamento_Finanziario!$H:$L,5,FALSE),VLOOKUP($M14,TT_Tabelle_Riferimento!$H$31:$I$50,2,FALSE))","v":8},{"$f":"+IFERROR(VLOOKUP(DV$6&\"-\"&$M14&\"_old\",Ammortamento_Finanziario!$H:$L,5,FALSE),VLOOKUP($M14,TT_Tabelle_Riferimento!$H$31:$I$50,2,FALSE))","v":8},{"$f":"+IFERROR(VLOOKUP(DW$6&\"-\"&$M14&\"_old\",Ammortamento_Finanziario!$H:$L,5,FALSE),VLOOKUP($M14,TT_Tabelle_Riferimento!$H$31:$I$50,2,FALSE))","v":8},{"$f":"+IFERROR(VLOOKUP(DX$6&\"-\"&$M14&\"_old\",Ammortamento_Finanziario!$H:$L,5,FALSE),VLOOKUP($M14,TT_Tabelle_Riferimento!$H$31:$I$50,2,FALSE))","v":8},{"$f":"+IFERROR(VLOOKUP(DY$6&\"-\"&$M14&\"_old\",Ammortamento_Finanziario!$H:$L,5,FALSE),VLOOKUP($M14,TT_Tabelle_Riferimento!$H$31:$I$50,2,FALSE))","v":8},{"$f":"+IFERROR(VLOOKUP(DZ$6&\"-\"&$M14&\"_old\",Ammortamento_Finanziario!$H:$L,5,FALSE),VLOOKUP($M14,TT_Tabelle_Riferimento!$H$31:$I$50,2,FALSE))","v":8},{"$f":"+IFERROR(VLOOKUP(EA$6&\"-\"&$M14&\"_old\",Ammortamento_Finanziario!$H:$L,5,FALSE),VLOOKUP($M14,TT_Tabelle_Riferimento!$H$31:$I$50,2,FALSE))","v":8},{"$f":"+IFERROR(VLOOKUP(EB$6&\"-\"&$M14&\"_old\",Ammortamento_Finanziario!$H:$L,5,FALSE),VLOOKUP($M14,TT_Tabelle_Riferimento!$H$31:$I$50,2,FALSE))","v":8},{"$f":"+IFERROR(VLOOKUP(EC$6&\"-\"&$M14&\"_old\",Ammortamento_Finanziario!$H:$L,5,FALSE),VLOOKUP($M14,TT_Tabelle_Riferimento!$H$31:$I$50,2,FALSE))","v":8},{"$f":"+IFERROR(VLOOKUP(ED$6&\"-\"&$M14&\"_old\",Ammortamento_Finanziario!$H:$L,5,FALSE),VLOOKUP($M14,TT_Tabelle_Riferimento!$H$31:$I$50,2,FALSE))","v":8},{"$f":"+IFERROR(VLOOKUP(EE$6&\"-\"&$M14&\"_old\",Ammortamento_Finanziario!$H:$L,5,FALSE),VLOOKUP($M14,TT_Tabelle_Riferimento!$H$31:$I$50,2,FALSE))","v":8},{"$f":"+IFERROR(VLOOKUP(EF$6&\"-\"&$M14&\"_old\",Ammortamento_Finanziario!$H:$L,5,FALSE),VLOOKUP($M14,TT_Tabelle_Riferimento!$H$31:$I$50,2,FALSE))","v":8},{"$f":"+IFERROR(VLOOKUP(EG$6&\"-\"&$M14&\"_old\",Ammortamento_Finanziario!$H:$L,5,FALSE),VLOOKUP($M14,TT_Tabelle_Riferimento!$H$31:$I$50,2,FALSE))","v":8},{"$f":"+IFERROR(VLOOKUP(EH$6&\"-\"&$M14&\"_old\",Ammortamento_Finanziario!$H:$L,5,FALSE),VLOOKUP($M14,TT_Tabelle_Riferimento!$H$31:$I$50,2,FALSE))","v":8},{"$f":"+IFERROR(VLOOKUP(EI$6&\"-\"&$M14&\"_old\",Ammortamento_Finanziario!$H:$L,5,FALSE),VLOOKUP($M14,TT_Tabelle_Riferimento!$H$31:$I$50,2,FALSE))","v":8},{"$f":"+IFERROR(VLOOKUP(EJ$6&\"-\"&$M14&\"_old\",Ammortamento_Finanziario!$H:$L,5,FALSE),VLOOKUP($M14,TT_Tabelle_Riferimento!$H$31:$I$50,2,FALSE))","v":8},{"$f":"+IFERROR(VLOOKUP(EK$6&\"-\"&$M14&\"_old\",Ammortamento_Finanziario!$H:$L,5,FALSE),VLOOKUP($M14,TT_Tabelle_Riferimento!$H$31:$I$50,2,FALSE))","v":8},{"$f":"+IFERROR(VLOOKUP(EL$6&\"-\"&$M14&\"_old\",Ammortamento_Finanziario!$H:$L,5,FALSE),VLOOKUP($M14,TT_Tabelle_Riferimento!$H$31:$I$50,2,FALSE))","v":8},{"$f":"+IFERROR(VLOOKUP(EM$6&\"-\"&$M14&\"_old\",Ammortamento_Finanziario!$H:$L,5,FALSE),VLOOKUP($M14,TT_Tabelle_Riferimento!$H$31:$I$50,2,FALSE))","v":8},{"$f":"+IFERROR(VLOOKUP(EN$6&\"-\"&$M14&\"_old\",Ammortamento_Finanziario!$H:$L,5,FALSE),VLOOKUP($M14,TT_Tabelle_Riferimento!$H$31:$I$50,2,FALSE))","v":8},{"$f":"+IFERROR(VLOOKUP(EO$6&\"-\"&$M14&\"_old\",Ammortamento_Finanziario!$H:$L,5,FALSE),VLOOKUP($M14,TT_Tabelle_Riferimento!$H$31:$I$50,2,FALSE))","v":8},{"$f":"+IFERROR(VLOOKUP(EP$6&\"-\"&$M14&\"_old\",Ammortamento_Finanziario!$H:$L,5,FALSE),VLOOKUP($M14,TT_Tabelle_Riferimento!$H$31:$I$50,2,FALSE))","v":8},{"$f":"+IFERROR(VLOOKUP(EQ$6&\"-\"&$M14&\"_old\",Ammortamento_Finanziario!$H:$L,5,FALSE),VLOOKUP($M14,TT_Tabelle_Riferimento!$H$31:$I$50,2,FALSE))","v":8},{"$f":"+IFERROR(VLOOKUP(ER$6&\"-\"&$M14&\"_old\",Ammortamento_Finanziario!$H:$L,5,FALSE),VLOOKUP($M14,TT_Tabelle_Riferimento!$H$31:$I$50,2,FALSE))","v":8},{"$f":"+IFERROR(VLOOKUP(ES$6&\"-\"&$M14&\"_old\",Ammortamento_Finanziario!$H:$L,5,FALSE),VLOOKUP($M14,TT_Tabelle_Riferimento!$H$31:$I$50,2,FALSE))","v":8},{"$f":"+IFERROR(VLOOKUP(ET$6&\"-\"&$M14&\"_old\",Ammortamento_Finanziario!$H:$L,5,FALSE),VLOOKUP($M14,TT_Tabelle_Riferimento!$H$31:$I$50,2,FALSE))","v":8},{"$f":"+IFERROR(VLOOKUP(EU$6&\"-\"&$M14&\"_old\",Ammortamento_Finanziario!$H:$L,5,FALSE),VLOOKUP($M14,TT_Tabelle_Riferimento!$H$31:$I$50,2,FALSE))","v":8},{"$f":"+IFERROR(VLOOKUP(EV$6&\"-\"&$M14&\"_old\",Ammortamento_Finanziario!$H:$L,5,FALSE),VLOOKUP($M14,TT_Tabelle_Riferimento!$H$31:$I$50,2,FALSE))","v":8},{"$f":"+IFERROR(VLOOKUP(EW$6&\"-\"&$M14&\"_old\",Ammortamento_Finanziario!$H:$L,5,FALSE),VLOOKUP($M14,TT_Tabelle_Riferimento!$H$31:$I$50,2,FALSE))","v":8},{"$f":"+IFERROR(VLOOKUP(EX$6&\"-\"&$M14&\"_old\",Ammortamento_Finanziario!$H:$L,5,FALSE),VLOOKUP($M14,TT_Tabelle_Riferimento!$H$31:$I$50,2,FALSE))","v":8},{"$f":"+IFERROR(VLOOKUP(EY$6&\"-\"&$M14&\"_old\",Ammortamento_Finanziario!$H:$L,5,FALSE),VLOOKUP($M14,TT_Tabelle_Riferimento!$H$31:$I$50,2,FALSE))","v":8},{"$f":"+IFERROR(VLOOKUP(EZ$6&\"-\"&$M14&\"_old\",Ammortamento_Finanziario!$H:$L,5,FALSE),VLOOKUP($M14,TT_Tabelle_Riferimento!$H$31:$I$50,2,FALSE))","v":8},{"$f":"+IFERROR(VLOOKUP(FA$6&\"-\"&$M14&\"_old\",Ammortamento_Finanziario!$H:$L,5,FALSE),VLOOKUP($M14,TT_Tabelle_Riferimento!$H$31:$I$50,2,FALSE))","v":8},{"$f":"+IFERROR(VLOOKUP(FB$6&\"-\"&$M14&\"_old\",Ammortamento_Finanziario!$H:$L,5,FALSE),VLOOKUP($M14,TT_Tabelle_Riferimento!$H$31:$I$50,2,FALSE))","v":8},{"$f":"+IFERROR(VLOOKUP(FC$6&\"-\"&$M14&\"_old\",Ammortamento_Finanziario!$H:$L,5,FALSE),VLOOKUP($M14,TT_Tabelle_Riferimento!$H$31:$I$50,2,FALSE))","v":8},{"$f":"+IFERROR(VLOOKUP(FD$6&\"-\"&$M14&\"_old\",Ammortamento_Finanziario!$H:$L,5,FALSE),VLOOKUP($M14,TT_Tabelle_Riferimento!$H$31:$I$50,2,FALSE))","v":8},{"$f":"+IFERROR(VLOOKUP(FE$6&\"-\"&$M14&\"_old\",Ammortamento_Finanziario!$H:$L,5,FALSE),VLOOKUP($M14,TT_Tabelle_Riferimento!$H$31:$I$50,2,FALSE))","v":8},{"$f":"+IFERROR(VLOOKUP(FF$6&\"-\"&$M14&\"_old\",Ammortamento_Finanziario!$H:$L,5,FALSE),VLOOKUP($M14,TT_Tabelle_Riferimento!$H$31:$I$50,2,FALSE))","v":8},{"$f":"+IFERROR(VLOOKUP(FG$6&\"-\"&$M14&\"_old\",Ammortamento_Finanziario!$H:$L,5,FALSE),VLOOKUP($M14,TT_Tabelle_Riferimento!$H$31:$I$50,2,FALSE))","v":8},{"$f":"+IFERROR(VLOOKUP(FH$6&\"-\"&$M14&\"_old\",Ammortamento_Finanziario!$H:$L,5,FALSE),VLOOKUP($M14,TT_Tabelle_Riferimento!$H$31:$I$50,2,FALSE))","v":8},{"$f":"+IFERROR(VLOOKUP(FI$6&\"-\"&$M14&\"_old\",Ammortamento_Finanziario!$H:$L,5,FALSE),VLOOKUP($M14,TT_Tabelle_Riferimento!$H$31:$I$50,2,FALSE))","v":8},{"$f":"+IFERROR(VLOOKUP(FJ$6&\"-\"&$M14&\"_old\",Ammortamento_Finanziario!$H:$L,5,FALSE),VLOOKUP($M14,TT_Tabelle_Riferimento!$H$31:$I$50,2,FALSE))","v":8},{"$f":"+IFERROR(VLOOKUP(FK$6&\"-\"&$M14&\"_old\",Ammortamento_Finanziario!$H:$L,5,FALSE),VLOOKUP($M14,TT_Tabelle_Riferimento!$H$31:$I$50,2,FALSE))","v":8},{"$f":"+IFERROR(VLOOKUP(FL$6&\"-\"&$M14&\"_old\",Ammortamento_Finanziario!$H:$L,5,FALSE),VLOOKUP($M14,TT_Tabelle_Riferimento!$H$31:$I$50,2,FALSE))","v":8},{"$f":"+IFERROR(VLOOKUP(FM$6&\"-\"&$M14&\"_old\",Ammortamento_Finanziario!$H:$L,5,FALSE),VLOOKUP($M14,TT_Tabelle_Riferimento!$H$31:$I$50,2,FALSE))","v":8},{"$f":"+IFERROR(VLOOKUP(FN$6&\"-\"&$M14&\"_old\",Ammortamento_Finanziario!$H:$L,5,FALSE),VLOOKUP($M14,TT_Tabelle_Riferimento!$H$31:$I$50,2,FALSE))","v":8},{"$f":"+IFERROR(VLOOKUP(FO$6&\"-\"&$M14&\"_old\",Ammortamento_Finanziario!$H:$L,5,FALSE),VLOOKUP($M14,TT_Tabelle_Riferimento!$H$31:$I$50,2,FALSE))","v":8},{"$f":"+IFERROR(VLOOKUP(FP$6&\"-\"&$M14&\"_old\",Ammortamento_Finanziario!$H:$L,5,FALSE),VLOOKUP($M14,TT_Tabelle_Riferimento!$H$31:$I$50,2,FALSE))","v":8},{"$f":"+IFERROR(VLOOKUP(FQ$6&\"-\"&$M14&\"_old\",Ammortamento_Finanziario!$H:$L,5,FALSE),VLOOKUP($M14,TT_Tabelle_Riferimento!$H$31:$I$50,2,FALSE))","v":8},{"$f":"+IFERROR(VLOOKUP(FR$6&\"-\"&$M14&\"_old\",Ammortamento_Finanziario!$H:$L,5,FALSE),VLOOKUP($M14,TT_Tabelle_Riferimento!$H$31:$I$50,2,FALSE))","v":8},{"$f":"+IFERROR(VLOOKUP(FS$6&\"-\"&$M14&\"_old\",Ammortamento_Finanziario!$H:$L,5,FALSE),VLOOKUP($M14,TT_Tabelle_Riferimento!$H$31:$I$50,2,FALSE))","v":8},{"$f":"+IFERROR(VLOOKUP(FT$6&\"-\"&$M14&\"_old\",Ammortamento_Finanziario!$H:$L,5,FALSE),VLOOKUP($M14,TT_Tabelle_Riferimento!$H$31:$I$50,2,FALSE))","v":8},{"$f":"+IFERROR(VLOOKUP(FU$6&\"-\"&$M14&\"_old\",Ammortamento_Finanziario!$H:$L,5,FALSE),VLOOKUP($M14,TT_Tabelle_Riferimento!$H$31:$I$50,2,FALSE))","v":8},{"$f":"+IFERROR(VLOOKUP(FV$6&\"-\"&$M14&\"_old\",Ammortamento_Finanziario!$H:$L,5,FALSE),VLOOKUP($M14,TT_Tabelle_Riferimento!$H$31:$I$50,2,FALSE))","v":8},{"$f":"+IFERROR(VLOOKUP(FW$6&\"-\"&$M14&\"_old\",Ammortamento_Finanziario!$H:$L,5,FALSE),VLOOKUP($M14,TT_Tabelle_Riferimento!$H$31:$I$50,2,FALSE))","v":8},{"$f":"+IFERROR(VLOOKUP(FX$6&\"-\"&$M14&\"_old\",Ammortamento_Finanziario!$H:$L,5,FALSE),VLOOKUP($M14,TT_Tabelle_Riferimento!$H$31:$I$50,2,FALSE))","v":8},{"$f":"+IFERROR(VLOOKUP(FY$6&\"-\"&$M14&\"_old\",Ammortamento_Finanziario!$H:$L,5,FALSE),VLOOKUP($M14,TT_Tabelle_Riferimento!$H$31:$I$50,2,FALSE))","v":8},{"$f":"+IFERROR(VLOOKUP(FZ$6&\"-\"&$M14&\"_old\",Ammortamento_Finanziario!$H:$L,5,FALSE),VLOOKUP($M14,TT_Tabelle_Riferimento!$H$31:$I$50,2,FALSE))","v":8},{"$f":"+IFERROR(VLOOKUP(GA$6&\"-\"&$M14&\"_old\",Ammortamento_Finanziario!$H:$L,5,FALSE),VLOOKUP($M14,TT_Tabelle_Riferimento!$H$31:$I$50,2,FALSE))","v":8},{"$f":"+IFERROR(VLOOKUP(GB$6&\"-\"&$M14&\"_old\",Ammortamento_Finanziario!$H:$L,5,FALSE),VLOOKUP($M14,TT_Tabelle_Riferimento!$H$31:$I$50,2,FALSE))","v":8},{"$f":"+IFERROR(VLOOKUP(GC$6&\"-\"&$M14&\"_old\",Ammortamento_Finanziario!$H:$L,5,FALSE),VLOOKUP($M14,TT_Tabelle_Riferimento!$H$31:$I$50,2,FALSE))","v":8},{"$f":"+IFERROR(VLOOKUP(GD$6&\"-\"&$M14&\"_old\",Ammortamento_Finanziario!$H:$L,5,FALSE),VLOOKUP($M14,TT_Tabelle_Riferimento!$H$31:$I$50,2,FALSE))","v":8},{"$f":"+IFERROR(VLOOKUP(GE$6&\"-\"&$M14&\"_old\",Ammortamento_Finanziario!$H:$L,5,FALSE),VLOOKUP($M14,TT_Tabelle_Riferimento!$H$31:$I$50,2,FALSE))","v":8},{"$f":"+IFERROR(VLOOKUP(GF$6&\"-\"&$M14&\"_old\",Ammortamento_Finanziario!$H:$L,5,FALSE),VLOOKUP($M14,TT_Tabelle_Riferimento!$H$31:$I$50,2,FALSE))","v":8},{"$f":"+IFERROR(VLOOKUP(GG$6&\"-\"&$M14&\"_old\",Ammortamento_Finanziario!$H:$L,5,FALSE),VLOOKUP($M14,TT_Tabelle_Riferimento!$H$31:$I$50,2,FALSE))","v":8},{"$f":"+IFERROR(VLOOKUP(GH$6&\"-\"&$M14&\"_old\",Ammortamento_Finanziario!$H:$L,5,FALSE),VLOOKUP($M14,TT_Tabelle_Riferimento!$H$31:$I$50,2,FALSE))","v":8},{"$f":"+IFERROR(VLOOKUP(GI$6&\"-\"&$M14&\"_old\",Ammortamento_Finanziario!$H:$L,5,FALSE),VLOOKUP($M14,TT_Tabelle_Riferimento!$H$31:$I$50,2,FALSE))","v":8},{"$f":"+IFERROR(VLOOKUP(GJ$6&\"-\"&$M14&\"_old\",Ammortamento_Finanziario!$H:$L,5,FALSE),VLOOKUP($M14,TT_Tabelle_Riferimento!$H$31:$I$50,2,FALSE))","v":8},{"$f":"+IFERROR(VLOOKUP(GK$6&\"-\"&$M14&\"_old\",Ammortamento_Finanziario!$H:$L,5,FALSE),VLOOKUP($M14,TT_Tabelle_Riferimento!$H$31:$I$50,2,FALSE))","v":8},{"$f":"+IFERROR(VLOOKUP(GL$6&\"-\"&$M14&\"_old\",Ammortamento_Finanziario!$H:$L,5,FALSE),VLOOKUP($M14,TT_Tabelle_Riferimento!$H$31:$I$50,2,FALSE))","v":8},{"$f":"+IFERROR(VLOOKUP(GM$6&\"-\"&$M14&\"_old\",Ammortamento_Finanziario!$H:$L,5,FALSE),VLOOKUP($M14,TT_Tabelle_Riferimento!$H$31:$I$50,2,FALSE))","v":8},{"$f":"+IFERROR(VLOOKUP(GN$6&\"-\"&$M14&\"_old\",Ammortamento_Finanziario!$H:$L,5,FALSE),VLOOKUP($M14,TT_Tabelle_Riferimento!$H$31:$I$50,2,FALSE))","v":8},{"$f":"+IFERROR(VLOOKUP(GO$6&\"-\"&$M14&\"_old\",Ammortamento_Finanziario!$H:$L,5,FALSE),VLOOKUP($M14,TT_Tabelle_Riferimento!$H$31:$I$50,2,FALSE))","v":8},{"$f":"+IFERROR(VLOOKUP(GP$6&\"-\"&$M14&\"_old\",Ammortamento_Finanziario!$H:$L,5,FALSE),VLOOKUP($M14,TT_Tabelle_Riferimento!$H$31:$I$50,2,FALSE))","v":8},{"$f":"+IFERROR(VLOOKUP(GQ$6&\"-\"&$M14&\"_old\",Ammortamento_Finanziario!$H:$L,5,FALSE),VLOOKUP($M14,TT_Tabelle_Riferimento!$H$31:$I$50,2,FALSE))","v":8},{"$f":"+IFERROR(VLOOKUP(GR$6&\"-\"&$M14&\"_old\",Ammortamento_Finanziario!$H:$L,5,FALSE),VLOOKUP($M14,TT_Tabelle_Riferimento!$H$31:$I$50,2,FALSE))","v":8},{"$f":"+IFERROR(VLOOKUP(GS$6&\"-\"&$M14&\"_old\",Ammortamento_Finanziario!$H:$L,5,FALSE),VLOOKUP($M14,TT_Tabelle_Riferimento!$H$31:$I$50,2,FALSE))","v":8},{"$f":"+IFERROR(VLOOKUP(GT$6&\"-\"&$M14&\"_old\",Ammortamento_Finanziario!$H:$L,5,FALSE),VLOOKUP($M14,TT_Tabelle_Riferimento!$H$31:$I$50,2,FALSE))","v":8},{"$f":"+IFERROR(VLOOKUP(GU$6&\"-\"&$M14&\"_old\",Ammortamento_Finanziario!$H:$L,5,FALSE),VLOOKUP($M14,TT_Tabelle_Riferimento!$H$31:$I$50,2,FALSE))","v":8},{"$f":"+IFERROR(VLOOKUP(GV$6&\"-\"&$M14&\"_old\",Ammortamento_Finanziario!$H:$L,5,FALSE),VLOOKUP($M14,TT_Tabelle_Riferimento!$H$31:$I$50,2,FALSE))","v":8},{"$f":"+IFERROR(VLOOKUP(GW$6&\"-\"&$M14&\"_old\",Ammortamento_Finanziario!$H:$L,5,FALSE),VLOOKUP($M14,TT_Tabelle_Riferimento!$H$31:$I$50,2,FALSE))","v":8},{"$f":"+IFERROR(VLOOKUP(GX$6&\"-\"&$M14&\"_old\",Ammortamento_Finanziario!$H:$L,5,FALSE),VLOOKUP($M14,TT_Tabelle_Riferimento!$H$31:$I$50,2,FALSE))","v":8},{"$f":"+IFERROR(VLOOKUP(GY$6&\"-\"&$M14&\"_old\",Ammortamento_Finanziario!$H:$L,5,FALSE),VLOOKUP($M14,TT_Tabelle_Riferimento!$H$31:$I$50,2,FALSE))","v":8},{"$f":"+IFERROR(VLOOKUP(GZ$6&\"-\"&$M14&\"_old\",Ammortamento_Finanziario!$H:$L,5,FALSE),VLOOKUP($M14,TT_Tabelle_Riferimento!$H$31:$I$50,2,FALSE))","v":8},{"$f":"+IFERROR(VLOOKUP(HA$6&\"-\"&$M14&\"_old\",Ammortamento_Finanziario!$H:$L,5,FALSE),VLOOKUP($M14,TT_Tabelle_Riferimento!$H$31:$I$50,2,FALSE))","v":8},{"$f":"+IFERROR(VLOOKUP(HB$6&\"-\"&$M14&\"_old\",Ammortamento_Finanziario!$H:$L,5,FALSE),VLOOKUP($M14,TT_Tabelle_Riferimento!$H$31:$I$50,2,FALSE))","v":8},{"$f":"+IFERROR(VLOOKUP(HC$6&\"-\"&$M14&\"_old\",Ammortamento_Finanziario!$H:$L,5,FALSE),VLOOKUP($M14,TT_Tabelle_Riferimento!$H$31:$I$50,2,FALSE))","v":8},{"$f":"+IFERROR(VLOOKUP(HD$6&\"-\"&$M14&\"_old\",Ammortamento_Finanziario!$H:$L,5,FALSE),VLOOKUP($M14,TT_Tabelle_Riferimento!$H$31:$I$50,2,FALSE))","v":8},{"$f":"+IFERROR(VLOOKUP(HE$6&\"-\"&$M14&\"_old\",Ammortamento_Finanziario!$H:$L,5,FALSE),VLOOKUP($M14,TT_Tabelle_Riferimento!$H$31:$I$50,2,FALSE))","v":8},{"$f":"+IFERROR(VLOOKUP(HF$6&\"-\"&$M14&\"_old\",Ammortamento_Finanziario!$H:$L,5,FALSE),VLOOKUP($M14,TT_Tabelle_Riferimento!$H$31:$I$50,2,FALSE))","v":8},{"$f":"+IFERROR(VLOOKUP(HG$6&\"-\"&$M14&\"_old\",Ammortamento_Finanziario!$H:$L,5,FALSE),VLOOKUP($M14,TT_Tabelle_Riferimento!$H$31:$I$50,2,FALSE))","v":8},{"$f":"+IFERROR(VLOOKUP(HH$6&\"-\"&$M14&\"_old\",Ammortamento_Finanziario!$H:$L,5,FALSE),VLOOKUP($M14,TT_Tabelle_Riferimento!$H$31:$I$50,2,FALSE))","v":8},{"$f":"+IFERROR(VLOOKUP(HI$6&\"-\"&$M14&\"_old\",Ammortamento_Finanziario!$H:$L,5,FALSE),VLOOKUP($M14,TT_Tabelle_Riferimento!$H$31:$I$50,2,FALSE))","v":8},{"$f":"+IFERROR(VLOOKUP(HJ$6&\"-\"&$M14&\"_old\",Ammortamento_Finanziario!$H:$L,5,FALSE),VLOOKUP($M14,TT_Tabelle_Riferimento!$H$31:$I$50,2,FALSE))","v":8},{"$f":"+IFERROR(VLOOKUP(HK$6&\"-\"&$M14&\"_old\",Ammortamento_Finanziario!$H:$L,5,FALSE),VLOOKUP($M14,TT_Tabelle_Riferimento!$H$31:$I$50,2,FALSE))","v":8},{"$f":"+IFERROR(VLOOKUP(HL$6&\"-\"&$M14&\"_old\",Ammortamento_Finanziario!$H:$L,5,FALSE),VLOOKUP($M14,TT_Tabelle_Riferimento!$H$31:$I$50,2,FALSE))","v":8},{"$f":"+IFERROR(VLOOKUP(HM$6&\"-\"&$M14&\"_old\",Ammortamento_Finanziario!$H:$L,5,FALSE),VLOOKUP($M14,TT_Tabelle_Riferimento!$H$31:$I$50,2,FALSE))","v":8},{"$f":"+IFERROR(VLOOKUP(HN$6&\"-\"&$M14&\"_old\",Ammortamento_Finanziario!$H:$L,5,FALSE),VLOOKUP($M14,TT_Tabelle_Riferimento!$H$31:$I$50,2,FALSE))","v":8},{"$f":"+IFERROR(VLOOKUP(HO$6&\"-\"&$M14&\"_old\",Ammortamento_Finanziario!$H:$L,5,FALSE),VLOOKUP($M14,TT_Tabelle_Riferimento!$H$31:$I$50,2,FALSE))","v":8},{"$f":"+IFERROR(VLOOKUP(HP$6&\"-\"&$M14&\"_old\",Ammortamento_Finanziario!$H:$L,5,FALSE),VLOOKUP($M14,TT_Tabelle_Riferimento!$H$31:$I$50,2,FALSE))","v":8},{"$f":"+IFERROR(VLOOKUP(HQ$6&\"-\"&$M14&\"_old\",Ammortamento_Finanziario!$H:$L,5,FALSE),VLOOKUP($M14,TT_Tabelle_Riferimento!$H$31:$I$50,2,FALSE))","v":8},{"$f":"+IFERROR(VLOOKUP(HR$6&\"-\"&$M14&\"_old\",Ammortamento_Finanziario!$H:$L,5,FALSE),VLOOKUP($M14,TT_Tabelle_Riferimento!$H$31:$I$50,2,FALSE))","v":8},{"$f":"+IFERROR(VLOOKUP(HS$6&\"-\"&$M14&\"_old\",Ammortamento_Finanziario!$H:$L,5,FALSE),VLOOKUP($M14,TT_Tabelle_Riferimento!$H$31:$I$50,2,FALSE))","v":8},{"$f":"+IFERROR(VLOOKUP(HT$6&\"-\"&$M14&\"_old\",Ammortamento_Finanziario!$H:$L,5,FALSE),VLOOKUP($M14,TT_Tabelle_Riferimento!$H$31:$I$50,2,FALSE))","v":8},{"$f":"+IFERROR(VLOOKUP(HU$6&\"-\"&$M14&\"_old\",Ammortamento_Finanziario!$H:$L,5,FALSE),VLOOKUP($M14,TT_Tabelle_Riferimento!$H$31:$I$50,2,FALSE))","v":8},{"$f":"+IFERROR(VLOOKUP(HV$6&\"-\"&$M14&\"_old\",Ammortamento_Finanziario!$H:$L,5,FALSE),VLOOKUP($M14,TT_Tabelle_Riferimento!$H$31:$I$50,2,FALSE))","v":8},{"$f":"+IFERROR(VLOOKUP(HW$6&\"-\"&$M14&\"_old\",Ammortamento_Finanziario!$H:$L,5,FALSE),VLOOKUP($M14,TT_Tabelle_Riferimento!$H$31:$I$50,2,FALSE))","v":8},{"$f":"+IFERROR(VLOOKUP(HX$6&\"-\"&$M14&\"_old\",Ammortamento_Finanziario!$H:$L,5,FALSE),VLOOKUP($M14,TT_Tabelle_Riferimento!$H$31:$I$50,2,FALSE))","v":8},{"$f":"+IFERROR(VLOOKUP(HY$6&\"-\"&$M14&\"_old\",Ammortamento_Finanziario!$H:$L,5,FALSE),VLOOKUP($M14,TT_Tabelle_Riferimento!$H$31:$I$50,2,FALSE))","v":8},{"$f":"+IFERROR(VLOOKUP(HZ$6&\"-\"&$M14&\"_old\",Ammortamento_Finanziario!$H:$L,5,FALSE),VLOOKUP($M14,TT_Tabelle_Riferimento!$H$31:$I$50,2,FALSE))","v":8},{"$f":"+IFERROR(VLOOKUP(IA$6&\"-\"&$M14&\"_old\",Ammortamento_Finanziario!$H:$L,5,FALSE),VLOOKUP($M14,TT_Tabelle_Riferimento!$H$31:$I$50,2,FALSE))","v":8},{"$f":"+IFERROR(VLOOKUP(IB$6&\"-\"&$M14&\"_old\",Ammortamento_Finanziario!$H:$L,5,FALSE),VLOOKUP($M14,TT_Tabelle_Riferimento!$H$31:$I$50,2,FALSE))","v":8},{"$f":"+IFERROR(VLOOKUP(IC$6&\"-\"&$M14&\"_old\",Ammortamento_Finanziario!$H:$L,5,FALSE),VLOOKUP($M14,TT_Tabelle_Riferimento!$H$31:$I$50,2,FALSE))","v":8},{"$f":"+IFERROR(VLOOKUP(ID$6&\"-\"&$M14&\"_old\",Ammortamento_Finanziario!$H:$L,5,FALSE),VLOOKUP($M14,TT_Tabelle_Riferimento!$H$31:$I$50,2,FALSE))","v":8},{"$f":"+IFERROR(VLOOKUP(IE$6&\"-\"&$M14&\"_old\",Ammortamento_Finanziario!$H:$L,5,FALSE),VLOOKUP($M14,TT_Tabelle_Riferimento!$H$31:$I$50,2,FALSE))","v":8},{"$f":"+IFERROR(VLOOKUP(IF$6&\"-\"&$M14&\"_old\",Ammortamento_Finanziario!$H:$L,5,FALSE),VLOOKUP($M14,TT_Tabelle_Riferimento!$H$31:$I$50,2,FALSE))","v":8},{"$f":"+IFERROR(VLOOKUP(IG$6&\"-\"&$M14&\"_old\",Ammortamento_Finanziario!$H:$L,5,FALSE),VLOOKUP($M14,TT_Tabelle_Riferimento!$H$31:$I$50,2,FALSE))","v":8},{"$f":"+IFERROR(VLOOKUP(IH$6&\"-\"&$M14&\"_old\",Ammortamento_Finanziario!$H:$L,5,FALSE),VLOOKUP($M14,TT_Tabelle_Riferimento!$H$31:$I$50,2,FALSE))","v":8},{"$f":"+IFERROR(VLOOKUP(II$6&\"-\"&$M14&\"_old\",Ammortamento_Finanziario!$H:$L,5,FALSE),VLOOKUP($M14,TT_Tabelle_Riferimento!$H$31:$I$50,2,FALSE))","v":8},{"$f":"+IFERROR(VLOOKUP(IJ$6&\"-\"&$M14&\"_old\",Ammortamento_Finanziario!$H:$L,5,FALSE),VLOOKUP($M14,TT_Tabelle_Riferimento!$H$31:$I$50,2,FALSE))","v":8},{"$f":"+IFERROR(VLOOKUP(IK$6&\"-\"&$M14&\"_old\",Ammortamento_Finanziario!$H:$L,5,FALSE),VLOOKUP($M14,TT_Tabelle_Riferimento!$H$31:$I$50,2,FALSE))","v":8},{"$f":"+IFERROR(VLOOKUP(IL$6&\"-\"&$M14&\"_old\",Ammortamento_Finanziario!$H:$L,5,FALSE),VLOOKUP($M14,TT_Tabelle_Riferimento!$H$31:$I$50,2,FALSE))","v":8},{"$f":"+IFERROR(VLOOKUP(IM$6&\"-\"&$M14&\"_old\",Ammortamento_Finanziario!$H:$L,5,FALSE),VLOOKUP($M14,TT_Tabelle_Riferimento!$H$31:$I$50,2,FALSE))","v":8},{"$f":"+IFERROR(VLOOKUP(IN$6&\"-\"&$M14&\"_old\",Ammortamento_Finanziario!$H:$L,5,FALSE),VLOOKUP($M14,TT_Tabelle_Riferimento!$H$31:$I$50,2,FALSE))","v":8},{"$f":"+IFERROR(VLOOKUP(IO$6&\"-\"&$M14&\"_old\",Ammortamento_Finanziario!$H:$L,5,FALSE),VLOOKUP($M14,TT_Tabelle_Riferimento!$H$31:$I$50,2,FALSE))","v":8},{"$f":"+IFERROR(VLOOKUP(IP$6&\"-\"&$M14&\"_old\",Ammortamento_Finanziario!$H:$L,5,FALSE),VLOOKUP($M14,TT_Tabelle_Riferimento!$H$31:$I$50,2,FALSE))","v":8},{"$f":"+IFERROR(VLOOKUP(IQ$6&\"-\"&$M14&\"_old\",Ammortamento_Finanziario!$H:$L,5,FALSE),VLOOKUP($M14,TT_Tabelle_Riferimento!$H$31:$I$50,2,FALSE))","v":8},{"$f":"+IFERROR(VLOOKUP(IR$6&\"-\"&$M14&\"_old\",Ammortamento_Finanziario!$H:$L,5,FALSE),VLOOKUP($M14,TT_Tabelle_Riferimento!$H$31:$I$50,2,FALSE))","v":8},{"$f":"+IFERROR(VLOOKUP(IS$6&\"-\"&$M14&\"_old\",Ammortamento_Finanziario!$H:$L,5,FALSE),VLOOKUP($M14,TT_Tabelle_Riferimento!$H$31:$I$50,2,FALSE))","v":8},{"$f":"+IFERROR(VLOOKUP(IT$6&\"-\"&$M14&\"_old\",Ammortamento_Finanziario!$H:$L,5,FALSE),VLOOKUP($M14,TT_Tabelle_Riferimento!$H$31:$I$50,2,FALSE))","v":8},{"$f":"+IFERROR(VLOOKUP(IU$6&\"-\"&$M14&\"_old\",Ammortamento_Finanziario!$H:$L,5,FALSE),VLOOKUP($M14,TT_Tabelle_Riferimento!$H$31:$I$50,2,FALSE))","v":8},{"$f":"+IFERROR(VLOOKUP(IV$6&\"-\"&$M14&\"_old\",Ammortamento_Finanziario!$H:$L,5,FALSE),VLOOKUP($M14,TT_Tabelle_Riferimento!$H$31:$I$50,2,FALSE))","v":8},{"$f":"+IFERROR(VLOOKUP(IW$6&\"-\"&$M14&\"_old\",Ammortamento_Finanziario!$H:$L,5,FALSE),VLOOKUP($M14,TT_Tabelle_Riferimento!$H$31:$I$50,2,FALSE))","v":8},{"$f":"+IFERROR(VLOOKUP(IX$6&\"-\"&$M14&\"_old\",Ammortamento_Finanziario!$H:$L,5,FALSE),VLOOKUP($M14,TT_Tabelle_Riferimento!$H$31:$I$50,2,FALSE))","v":8},{"$f":"+IFERROR(VLOOKUP(IY$6&\"-\"&$M14&\"_old\",Ammortamento_Finanziario!$H:$L,5,FALSE),VLOOKUP($M14,TT_Tabelle_Riferimento!$H$31:$I$50,2,FALSE))","v":8},{"$f":"+IFERROR(VLOOKUP(IZ$6&\"-\"&$M14&\"_old\",Ammortamento_Finanziario!$H:$L,5,FALSE),VLOOKUP($M14,TT_Tabelle_Riferimento!$H$31:$I$50,2,FALSE))","v":8},{"$f":"+IFERROR(VLOOKUP(JA$6&\"-\"&$M14&\"_old\",Ammortamento_Finanziario!$H:$L,5,FALSE),VLOOKUP($M14,TT_Tabelle_Riferimento!$H$31:$I$50,2,FALSE))","v":8},{"$f":"+IFERROR(VLOOKUP(JB$6&\"-\"&$M14&\"_old\",Ammortamento_Finanziario!$H:$L,5,FALSE),VLOOKUP($M14,TT_Tabelle_Riferimento!$H$31:$I$50,2,FALSE))","v":8},{"$f":"+IFERROR(VLOOKUP(JC$6&\"-\"&$M14&\"_old\",Ammortamento_Finanziario!$H:$L,5,FALSE),VLOOKUP($M14,TT_Tabelle_Riferimento!$H$31:$I$50,2,FALSE))","v":8},{"$f":"+IFERROR(VLOOKUP(JD$6&\"-\"&$M14&\"_old\",Ammortamento_Finanziario!$H:$L,5,FALSE),VLOOKUP($M14,TT_Tabelle_Riferimento!$H$31:$I$50,2,FALSE))","v":8},{"$f":"+IFERROR(VLOOKUP(JE$6&\"-\"&$M14&\"_old\",Ammortamento_Finanziario!$H:$L,5,FALSE),VLOOKUP($M14,TT_Tabelle_Riferimento!$H$31:$I$50,2,FALSE))","v":8},{"$f":"+IFERROR(VLOOKUP(JF$6&\"-\"&$M14&\"_old\",Ammortamento_Finanziario!$H:$L,5,FALSE),VLOOKUP($M14,TT_Tabelle_Riferimento!$H$31:$I$50,2,FALSE))","v":8},{"$f":"+IFERROR(VLOOKUP(JG$6&\"-\"&$M14&\"_old\",Ammortamento_Finanziario!$H:$L,5,FALSE),VLOOKUP($M14,TT_Tabelle_Riferimento!$H$31:$I$50,2,FALSE))","v":8},{"$f":"+IFERROR(VLOOKUP(JH$6&\"-\"&$M14&\"_old\",Ammortamento_Finanziario!$H:$L,5,FALSE),VLOOKUP($M14,TT_Tabelle_Riferimento!$H$31:$I$50,2,FALSE))","v":8},{"$f":"+IFERROR(VLOOKUP(JI$6&\"-\"&$M14&\"_old\",Ammortamento_Finanziario!$H:$L,5,FALSE),VLOOKUP($M14,TT_Tabelle_Riferimento!$H$31:$I$50,2,FALSE))","v":8},{"$f":"+IFERROR(VLOOKUP(JJ$6&\"-\"&$M14&\"_old\",Ammortamento_Finanziario!$H:$L,5,FALSE),VLOOKUP($M14,TT_Tabelle_Riferimento!$H$31:$I$50,2,FALSE))","v":8},{"$f":"+IFERROR(VLOOKUP(JK$6&\"-\"&$M14&\"_old\",Ammortamento_Finanziario!$H:$L,5,FALSE),VLOOKUP($M14,TT_Tabelle_Riferimento!$H$31:$I$50,2,FALSE))","v":8},{"$f":"+IFERROR(VLOOKUP(JL$6&\"-\"&$M14&\"_old\",Ammortamento_Finanziario!$H:$L,5,FALSE),VLOOKUP($M14,TT_Tabelle_Riferimento!$H$31:$I$50,2,FALSE))","v":8},{"$f":"+IFERROR(VLOOKUP(JM$6&\"-\"&$M14&\"_old\",Ammortamento_Finanziario!$H:$L,5,FALSE),VLOOKUP($M14,TT_Tabelle_Riferimento!$H$31:$I$50,2,FALSE))","v":8},{"$f":"+IFERROR(VLOOKUP(JN$6&\"-\"&$M14&\"_old\",Ammortamento_Finanziario!$H:$L,5,FALSE),VLOOKUP($M14,TT_Tabelle_Riferimento!$H$31:$I$50,2,FALSE))","v":8},{"$f":"+IFERROR(VLOOKUP(JO$6&\"-\"&$M14&\"_old\",Ammortamento_Finanziario!$H:$L,5,FALSE),VLOOKUP($M14,TT_Tabelle_Riferimento!$H$31:$I$50,2,FALSE))","v":8},{"$f":"+IFERROR(VLOOKUP(JP$6&\"-\"&$M14&\"_old\",Ammortamento_Finanziario!$H:$L,5,FALSE),VLOOKUP($M14,TT_Tabelle_Riferimento!$H$31:$I$50,2,FALSE))","v":8},{"$f":"+IFERROR(VLOOKUP(JQ$6&\"-\"&$M14&\"_old\",Ammortamento_Finanziario!$H:$L,5,FALSE),VLOOKUP($M14,TT_Tabelle_Riferimento!$H$31:$I$50,2,FALSE))","v":8},{"$f":"+IFERROR(VLOOKUP(JR$6&\"-\"&$M14&\"_old\",Ammortamento_Finanziario!$H:$L,5,FALSE),VLOOKUP($M14,TT_Tabelle_Riferimento!$H$31:$I$50,2,FALSE))","v":8},{"$f":"+IFERROR(VLOOKUP(JS$6&\"-\"&$M14&\"_old\",Ammortamento_Finanziario!$H:$L,5,FALSE),VLOOKUP($M14,TT_Tabelle_Riferimento!$H$31:$I$50,2,FALSE))","v":8},{"$f":"+IFERROR(VLOOKUP(JT$6&\"-\"&$M14&\"_old\",Ammortamento_Finanziario!$H:$L,5,FALSE),VLOOKUP($M14,TT_Tabelle_Riferimento!$H$31:$I$50,2,FALSE))","v":8},{"$f":"+IFERROR(VLOOKUP(JU$6&\"-\"&$M14&\"_old\",Ammortamento_Finanziario!$H:$L,5,FALSE),VLOOKUP($M14,TT_Tabelle_Riferimento!$H$31:$I$50,2,FALSE))","v":8},{"$f":"+IFERROR(VLOOKUP(JV$6&\"-\"&$M14&\"_old\",Ammortamento_Finanziario!$H:$L,5,FALSE),VLOOKUP($M14,TT_Tabelle_Riferimento!$H$31:$I$50,2,FALSE))","v":8},{"$f":"+IFERROR(VLOOKUP(JW$6&\"-\"&$M14&\"_old\",Ammortamento_Finanziario!$H:$L,5,FALSE),VLOOKUP($M14,TT_Tabelle_Riferimento!$H$31:$I$50,2,FALSE))","v":8},{"$f":"+IFERROR(VLOOKUP(JX$6&\"-\"&$M14&\"_old\",Ammortamento_Finanziario!$H:$L,5,FALSE),VLOOKUP($M14,TT_Tabelle_Riferimento!$H$31:$I$50,2,FALSE))","v":8},{"$f":"+IFERROR(VLOOKUP(JY$6&\"-\"&$M14&\"_old\",Ammortamento_Finanziario!$H:$L,5,FALSE),VLOOKUP($M14,TT_Tabelle_Riferimento!$H$31:$I$50,2,FALSE))","v":8},{"$f":"+IFERROR(VLOOKUP(JZ$6&\"-\"&$M14&\"_old\",Ammortamento_Finanziario!$H:$L,5,FALSE),VLOOKUP($M14,TT_Tabelle_Riferimento!$H$31:$I$50,2,FALSE))","v":8},{"$f":"+IFERROR(VLOOKUP(KA$6&\"-\"&$M14&\"_old\",Ammortamento_Finanziario!$H:$L,5,FALSE),VLOOKUP($M14,TT_Tabelle_Riferimento!$H$31:$I$50,2,FALSE))","v":8},{"$f":"+IFERROR(VLOOKUP(KB$6&\"-\"&$M14&\"_old\",Ammortamento_Finanziario!$H:$L,5,FALSE),VLOOKUP($M14,TT_Tabelle_Riferimento!$H$31:$I$50,2,FALSE))","v":8},{"$f":"+IFERROR(VLOOKUP(KC$6&\"-\"&$M14&\"_old\",Ammortamento_Finanziario!$H:$L,5,FALSE),VLOOKUP($M14,TT_Tabelle_Riferimento!$H$31:$I$50,2,FALSE))","v":8},{"$f":"+IFERROR(VLOOKUP(KD$6&\"-\"&$M14&\"_old\",Ammortamento_Finanziario!$H:$L,5,FALSE),VLOOKUP($M14,TT_Tabelle_Riferimento!$H$31:$I$50,2,FALSE))","v":8},{"$f":"+IFERROR(VLOOKUP(KE$6&\"-\"&$M14&\"_old\",Ammortamento_Finanziario!$H:$L,5,FALSE),VLOOKUP($M14,TT_Tabelle_Riferimento!$H$31:$I$50,2,FALSE))","v":8},{"$f":"+IFERROR(VLOOKUP(KF$6&\"-\"&$M14&\"_old\",Ammortamento_Finanziario!$H:$L,5,FALSE),VLOOKUP($M14,TT_Tabelle_Riferimento!$H$31:$I$50,2,FALSE))","v":8},{"$f":"+IFERROR(VLOOKUP(KG$6&\"-\"&$M14&\"_old\",Ammortamento_Finanziario!$H:$L,5,FALSE),VLOOKUP($M14,TT_Tabelle_Riferimento!$H$31:$I$50,2,FALSE))","v":8},{"$f":"+IFERROR(VLOOKUP(KH$6&\"-\"&$M14&\"_old\",Ammortamento_Finanziario!$H:$L,5,FALSE),VLOOKUP($M14,TT_Tabelle_Riferimento!$H$31:$I$50,2,FALSE))","v":8},{"$f":"+IFERROR(VLOOKUP(KI$6&\"-\"&$M14&\"_old\",Ammortamento_Finanziario!$H:$L,5,FALSE),VLOOKUP($M14,TT_Tabelle_Riferimento!$H$31:$I$50,2,FALSE))","v":8},{"$f":"+IFERROR(VLOOKUP(KJ$6&\"-\"&$M14&\"_old\",Ammortamento_Finanziario!$H:$L,5,FALSE),VLOOKUP($M14,TT_Tabelle_Riferimento!$H$31:$I$50,2,FALSE))","v":8},{"$f":"+IFERROR(VLOOKUP(KK$6&\"-\"&$M14&\"_old\",Ammortamento_Finanziario!$H:$L,5,FALSE),VLOOKUP($M14,TT_Tabelle_Riferimento!$H$31:$I$50,2,FALSE))","v":8},{"$f":"+IFERROR(VLOOKUP(KL$6&\"-\"&$M14&\"_old\",Ammortamento_Finanziario!$H:$L,5,FALSE),VLOOKUP($M14,TT_Tabelle_Riferimento!$H$31:$I$50,2,FALSE))","v":8},{"$f":"+IFERROR(VLOOKUP(KM$6&\"-\"&$M14&\"_old\",Ammortamento_Finanziario!$H:$L,5,FALSE),VLOOKUP($M14,TT_Tabelle_Riferimento!$H$31:$I$50,2,FALSE))","v":8},{"$f":"+IFERROR(VLOOKUP(KN$6&\"-\"&$M14&\"_old\",Ammortamento_Finanziario!$H:$L,5,FALSE),VLOOKUP($M14,TT_Tabelle_Riferimento!$H$31:$I$50,2,FALSE))","v":8},{"$f":"+IFERROR(VLOOKUP(KO$6&\"-\"&$M14&\"_old\",Ammortamento_Finanziario!$H:$L,5,FALSE),VLOOKUP($M14,TT_Tabelle_Riferimento!$H$31:$I$50,2,FALSE))","v":8},{"$f":"+IFERROR(VLOOKUP(KP$6&\"-\"&$M14&\"_old\",Ammortamento_Finanziario!$H:$L,5,FALSE),VLOOKUP($M14,TT_Tabelle_Riferimento!$H$31:$I$50,2,FALSE))","v":8},{"$f":"+IFERROR(VLOOKUP(KQ$6&\"-\"&$M14&\"_old\",Ammortamento_Finanziario!$H:$L,5,FALSE),VLOOKUP($M14,TT_Tabelle_Riferimento!$H$31:$I$50,2,FALSE))","v":8},{"$f":"+IFERROR(VLOOKUP(KR$6&\"-\"&$M14&\"_old\",Ammortamento_Finanziario!$H:$L,5,FALSE),VLOOKUP($M14,TT_Tabelle_Riferimento!$H$31:$I$50,2,FALSE))","v":8},{"$f":"+IFERROR(VLOOKUP(KS$6&\"-\"&$M14&\"_old\",Ammortamento_Finanziario!$H:$L,5,FALSE),VLOOKUP($M14,TT_Tabelle_Riferimento!$H$31:$I$50,2,FALSE))","v":8},{"$f":"+IFERROR(VLOOKUP(KT$6&\"-\"&$M14&\"_old\",Ammortamento_Finanziario!$H:$L,5,FALSE),VLOOKUP($M14,TT_Tabelle_Riferimento!$H$31:$I$50,2,FALSE))","v":8},{"$f":"+IFERROR(VLOOKUP(KU$6&\"-\"&$M14&\"_old\",Ammortamento_Finanziario!$H:$L,5,FALSE),VLOOKUP($M14,TT_Tabelle_Riferimento!$H$31:$I$50,2,FALSE))","v":8},{"$f":"+IFERROR(VLOOKUP(KV$6&\"-\"&$M14&\"_old\",Ammortamento_Finanziario!$H:$L,5,FALSE),VLOOKUP($M14,TT_Tabelle_Riferimento!$H$31:$I$50,2,FALSE))","v":8},{"$f":"+IFERROR(VLOOKUP(KW$6&\"-\"&$M14&\"_old\",Ammortamento_Finanziario!$H:$L,5,FALSE),VLOOKUP($M14,TT_Tabelle_Riferimento!$H$31:$I$50,2,FALSE))","v":8},{"$f":"+IFERROR(VLOOKUP(KX$6&\"-\"&$M14&\"_old\",Ammortamento_Finanziario!$H:$L,5,FALSE),VLOOKUP($M14,TT_Tabelle_Riferimento!$H$31:$I$50,2,FALSE))","v":8},{"$f":"+IFERROR(VLOOKUP(KY$6&\"-\"&$M14&\"_old\",Ammortamento_Finanziario!$H:$L,5,FALSE),VLOOKUP($M14,TT_Tabelle_Riferimento!$H$31:$I$50,2,FALSE))","v":8},{"$f":"+IFERROR(VLOOKUP(KZ$6&\"-\"&$M14&\"_old\",Ammortamento_Finanziario!$H:$L,5,FALSE),VLOOKUP($M14,TT_Tabelle_Riferimento!$H$31:$I$50,2,FALSE))","v":8},{"$f":"+IFERROR(VLOOKUP(LA$6&\"-\"&$M14&\"_old\",Ammortamento_Finanziario!$H:$L,5,FALSE),VLOOKUP($M14,TT_Tabelle_Riferimento!$H$31:$I$50,2,FALSE))","v":8},{"$f":"+IFERROR(VLOOKUP(LB$6&\"-\"&$M14&\"_old\",Ammortamento_Finanziario!$H:$L,5,FALSE),VLOOKUP($M14,TT_Tabelle_Riferimento!$H$31:$I$50,2,FALSE))","v":8},{"$f":"+IFERROR(VLOOKUP(LC$6&\"-\"&$M14&\"_old\",Ammortamento_Finanziario!$H:$L,5,FALSE),VLOOKUP($M14,TT_Tabelle_Riferimento!$H$31:$I$50,2,FALSE))","v":8},{"$f":"+IFERROR(VLOOKUP(LD$6&\"-\"&$M14&\"_old\",Ammortamento_Finanziario!$H:$L,5,FALSE),VLOOKUP($M14,TT_Tabelle_Riferimento!$H$31:$I$50,2,FALSE))","v":8},{"$f":"+IFERROR(VLOOKUP(LE$6&\"-\"&$M14&\"_old\",Ammortamento_Finanziario!$H:$L,5,FALSE),VLOOKUP($M14,TT_Tabelle_Riferimento!$H$31:$I$50,2,FALSE))","v":8},{"$f":"+IFERROR(VLOOKUP(LF$6&\"-\"&$M14&\"_old\",Ammortamento_Finanziario!$H:$L,5,FALSE),VLOOKUP($M14,TT_Tabelle_Riferimento!$H$31:$I$50,2,FALSE))","v":8},{"$f":"+IFERROR(VLOOKUP(LG$6&\"-\"&$M14&\"_old\",Ammortamento_Finanziario!$H:$L,5,FALSE),VLOOKUP($M14,TT_Tabelle_Riferimento!$H$31:$I$50,2,FALSE))","v":8},{"$f":"+IFERROR(VLOOKUP(LH$6&\"-\"&$M14&\"_old\",Ammortamento_Finanziario!$H:$L,5,FALSE),VLOOKUP($M14,TT_Tabelle_Riferimento!$H$31:$I$50,2,FALSE))","v":8},{"$f":"+IFERROR(VLOOKUP(LI$6&\"-\"&$M14&\"_old\",Ammortamento_Finanziario!$H:$L,5,FALSE),VLOOKUP($M14,TT_Tabelle_Riferimento!$H$31:$I$50,2,FALSE))","v":8},{"$f":"+IFERROR(VLOOKUP(LJ$6&\"-\"&$M14&\"_old\",Ammortamento_Finanziario!$H:$L,5,FALSE),VLOOKUP($M14,TT_Tabelle_Riferimento!$H$31:$I$50,2,FALSE))","v":8},{"$f":"+IFERROR(VLOOKUP(LK$6&\"-\"&$M14&\"_old\",Ammortamento_Finanziario!$H:$L,5,FALSE),VLOOKUP($M14,TT_Tabelle_Riferimento!$H$31:$I$50,2,FALSE))","v":8},{"$f":"+IFERROR(VLOOKUP(LL$6&\"-\"&$M14&\"_old\",Ammortamento_Finanziario!$H:$L,5,FALSE),VLOOKUP($M14,TT_Tabelle_Riferimento!$H$31:$I$50,2,FALSE))","v":8},{"$f":"+IFERROR(VLOOKUP(LM$6&\"-\"&$M14&\"_old\",Ammortamento_Finanziario!$H:$L,5,FALSE),VLOOKUP($M14,TT_Tabelle_Riferimento!$H$31:$I$50,2,FALSE))","v":8},{"$f":"+IFERROR(VLOOKUP(LN$6&\"-\"&$M14&\"_old\",Ammortamento_Finanziario!$H:$L,5,FALSE),VLOOKUP($M14,TT_Tabelle_Riferimento!$H$31:$I$50,2,FALSE))","v":8},{"$f":"+IFERROR(VLOOKUP(LO$6&\"-\"&$M14&\"_old\",Ammortamento_Finanziario!$H:$L,5,FALSE),VLOOKUP($M14,TT_Tabelle_Riferimento!$H$31:$I$50,2,FALSE))","v":8},{"$f":"+IFERROR(VLOOKUP(LP$6&\"-\"&$M14&\"_old\",Ammortamento_Finanziario!$H:$L,5,FALSE),VLOOKUP($M14,TT_Tabelle_Riferimento!$H$31:$I$50,2,FALSE))","v":8},{"$f":"+IFERROR(VLOOKUP(LQ$6&\"-\"&$M14&\"_old\",Ammortamento_Finanziario!$H:$L,5,FALSE),VLOOKUP($M14,TT_Tabelle_Riferimento!$H$31:$I$50,2,FALSE))","v":8},{"$f":"+IFERROR(VLOOKUP(LR$6&\"-\"&$M14&\"_old\",Ammortamento_Finanziario!$H:$L,5,FALSE),VLOOKUP($M14,TT_Tabelle_Riferimento!$H$31:$I$50,2,FALSE))","v":8},{"$f":"+IFERROR(VLOOKUP(LS$6&\"-\"&$M14&\"_old\",Ammortamento_Finanziario!$H:$L,5,FALSE),VLOOKUP($M14,TT_Tabelle_Riferimento!$H$31:$I$50,2,FALSE))","v":8},{"$f":"+IFERROR(VLOOKUP(LT$6&\"-\"&$M14&\"_old\",Ammortamento_Finanziario!$H:$L,5,FALSE),VLOOKUP($M14,TT_Tabelle_Riferimento!$H$31:$I$50,2,FALSE))","v":8},{"$f":"+IFERROR(VLOOKUP(LU$6&\"-\"&$M14&\"_old\",Ammortamento_Finanziario!$H:$L,5,FALSE),VLOOKUP($M14,TT_Tabelle_Riferimento!$H$31:$I$50,2,FALSE))","v":8},{"$f":"+IFERROR(VLOOKUP(LV$6&\"-\"&$M14&\"_old\",Ammortamento_Finanziario!$H:$L,5,FALSE),VLOOKUP($M14,TT_Tabelle_Riferimento!$H$31:$I$50,2,FALSE))","v":8},{"$f":"+IFERROR(VLOOKUP(LW$6&\"-\"&$M14&\"_old\",Ammortamento_Finanziario!$H:$L,5,FALSE),VLOOKUP($M14,TT_Tabelle_Riferimento!$H$31:$I$50,2,FALSE))","v":8},{"$f":"+IFERROR(VLOOKUP(LX$6&\"-\"&$M14&\"_old\",Ammortamento_Finanziario!$H:$L,5,FALSE),VLOOKUP($M14,TT_Tabelle_Riferimento!$H$31:$I$50,2,FALSE))","v":8},{"$f":"+IFERROR(VLOOKUP(LY$6&\"-\"&$M14&\"_old\",Ammortamento_Finanziario!$H:$L,5,FALSE),VLOOKUP($M14,TT_Tabelle_Riferimento!$H$31:$I$50,2,FALSE))","v":8},{"$f":"+IFERROR(VLOOKUP(LZ$6&\"-\"&$M14&\"_old\",Ammortamento_Finanziario!$H:$L,5,FALSE),VLOOKUP($M14,TT_Tabelle_Riferimento!$H$31:$I$50,2,FALSE))","v":8},{"$f":"+IFERROR(VLOOKUP(MA$6&\"-\"&$M14&\"_old\",Ammortamento_Finanziario!$H:$L,5,FALSE),VLOOKUP($M14,TT_Tabelle_Riferimento!$H$31:$I$50,2,FALSE))","v":8},{"$f":"+IFERROR(VLOOKUP(MB$6&\"-\"&$M14&\"_old\",Ammortamento_Finanziario!$H:$L,5,FALSE),VLOOKUP($M14,TT_Tabelle_Riferimento!$H$31:$I$50,2,FALSE))","v":8},{"$f":"+IFERROR(VLOOKUP(MC$6&\"-\"&$M14&\"_old\",Ammortamento_Finanziario!$H:$L,5,FALSE),VLOOKUP($M14,TT_Tabelle_Riferimento!$H$31:$I$50,2,FALSE))","v":8},{"$f":"+IFERROR(VLOOKUP(MD$6&\"-\"&$M14&\"_old\",Ammortamento_Finanziario!$H:$L,5,FALSE),VLOOKUP($M14,TT_Tabelle_Riferimento!$H$31:$I$50,2,FALSE))","v":8},{"$f":"+IFERROR(VLOOKUP(ME$6&\"-\"&$M14&\"_old\",Ammortamento_Finanziario!$H:$L,5,FALSE),VLOOKUP($M14,TT_Tabelle_Riferimento!$H$31:$I$50,2,FALSE))","v":8},{"$f":"+IFERROR(VLOOKUP(MF$6&\"-\"&$M14&\"_old\",Ammortamento_Finanziario!$H:$L,5,FALSE),VLOOKUP($M14,TT_Tabelle_Riferimento!$H$31:$I$50,2,FALSE))","v":8},{"$f":"+IFERROR(VLOOKUP(MG$6&\"-\"&$M14&\"_old\",Ammortamento_Finanziario!$H:$L,5,FALSE),VLOOKUP($M14,TT_Tabelle_Riferimento!$H$31:$I$50,2,FALSE))","v":8},{"$f":"+IFERROR(VLOOKUP(MH$6&\"-\"&$M14&\"_old\",Ammortamento_Finanziario!$H:$L,5,FALSE),VLOOKUP($M14,TT_Tabelle_Riferimento!$H$31:$I$50,2,FALSE))","v":8},{"$f":"+IFERROR(VLOOKUP(MI$6&\"-\"&$M14&\"_old\",Ammortamento_Finanziario!$H:$L,5,FALSE),VLOOKUP($M14,TT_Tabelle_Riferimento!$H$31:$I$50,2,FALSE))","v":8},{"$f":"+IFERROR(VLOOKUP(MJ$6&\"-\"&$M14&\"_old\",Ammortamento_Finanziario!$H:$L,5,FALSE),VLOOKUP($M14,TT_Tabelle_Riferimento!$H$31:$I$50,2,FALSE))","v":8},{"$f":"+IFERROR(VLOOKUP(MK$6&\"-\"&$M14&\"_old\",Ammortamento_Finanziario!$H:$L,5,FALSE),VLOOKUP($M14,TT_Tabelle_Riferimento!$H$31:$I$50,2,FALSE))","v":8},{"$f":"+IFERROR(VLOOKUP(ML$6&\"-\"&$M14&\"_old\",Ammortamento_Finanziario!$H:$L,5,FALSE),VLOOKUP($M14,TT_Tabelle_Riferimento!$H$31:$I$50,2,FALSE))","v":8},{"$f":"+IFERROR(VLOOKUP(MM$6&\"-\"&$M14&\"_old\",Ammortamento_Finanziario!$H:$L,5,FALSE),VLOOKUP($M14,TT_Tabelle_Riferimento!$H$31:$I$50,2,FALSE))","v":8},{"$f":"+IFERROR(VLOOKUP(MN$6&\"-\"&$M14&\"_old\",Ammortamento_Finanziario!$H:$L,5,FALSE),VLOOKUP($M14,TT_Tabelle_Riferimento!$H$31:$I$50,2,FALSE))","v":8},{"$f":"+IFERROR(VLOOKUP(MO$6&\"-\"&$M14&\"_old\",Ammortamento_Finanziario!$H:$L,5,FALSE),VLOOKUP($M14,TT_Tabelle_Riferimento!$H$31:$I$50,2,FALSE))","v":8},{"$f":"+IFERROR(VLOOKUP(MP$6&\"-\"&$M14&\"_old\",Ammortamento_Finanziario!$H:$L,5,FALSE),VLOOKUP($M14,TT_Tabelle_Riferimento!$H$31:$I$50,2,FALSE))","v":8},{"$f":"+IFERROR(VLOOKUP(MQ$6&\"-\"&$M14&\"_old\",Ammortamento_Finanziario!$H:$L,5,FALSE),VLOOKUP($M14,TT_Tabelle_Riferimento!$H$31:$I$50,2,FALSE))","v":8},{"$f":"+IFERROR(VLOOKUP(MR$6&\"-\"&$M14&\"_old\",Ammortamento_Finanziario!$H:$L,5,FALSE),VLOOKUP($M14,TT_Tabelle_Riferimento!$H$31:$I$50,2,FALSE))","v":8},{"$f":"+IFERROR(VLOOKUP(MS$6&\"-\"&$M14&\"_old\",Ammortamento_Finanziario!$H:$L,5,FALSE),VLOOKUP($M14,TT_Tabelle_Riferimento!$H$31:$I$50,2,FALSE))","v":8},{"$f":"+IFERROR(VLOOKUP(MT$6&\"-\"&$M14&\"_old\",Ammortamento_Finanziario!$H:$L,5,FALSE),VLOOKUP($M14,TT_Tabelle_Riferimento!$H$31:$I$50,2,FALSE))","v":8},{"$f":"+IFERROR(VLOOKUP(MU$6&\"-\"&$M14&\"_old\",Ammortamento_Finanziario!$H:$L,5,FALSE),VLOOKUP($M14,TT_Tabelle_Riferimento!$H$31:$I$50,2,FALSE))","v":8},{"$f":"+IFERROR(VLOOKUP(MV$6&\"-\"&$M14&\"_old\",Ammortamento_Finanziario!$H:$L,5,FALSE),VLOOKUP($M14,TT_Tabelle_Riferimento!$H$31:$I$50,2,FALSE))","v":8},{"$f":"+IFERROR(VLOOKUP(MW$6&\"-\"&$M14&\"_old\",Ammortamento_Finanziario!$H:$L,5,FALSE),VLOOKUP($M14,TT_Tabelle_Riferimento!$H$31:$I$50,2,FALSE))","v":8},{"$f":"+IFERROR(VLOOKUP(MX$6&\"-\"&$M14&\"_old\",Ammortamento_Finanziario!$H:$L,5,FALSE),VLOOKUP($M14,TT_Tabelle_Riferimento!$H$31:$I$50,2,FALSE))","v":8},{"$f":"+IFERROR(VLOOKUP(MY$6&\"-\"&$M14&\"_old\",Ammortamento_Finanziario!$H:$L,5,FALSE),VLOOKUP($M14,TT_Tabelle_Riferimento!$H$31:$I$50,2,FALSE))","v":8},{"$f":"+IFERROR(VLOOKUP(MZ$6&\"-\"&$M14&\"_old\",Ammortamento_Finanziario!$H:$L,5,FALSE),VLOOKUP($M14,TT_Tabelle_Riferimento!$H$31:$I$50,2,FALSE))","v":8},{"$f":"+IFERROR(VLOOKUP(NA$6&\"-\"&$M14&\"_old\",Ammortamento_Finanziario!$H:$L,5,FALSE),VLOOKUP($M14,TT_Tabelle_Riferimento!$H$31:$I$50,2,FALSE))","v":8},{"$f":"+IFERROR(VLOOKUP(NB$6&\"-\"&$M14&\"_old\",Ammortamento_Finanziario!$H:$L,5,FALSE),VLOOKUP($M14,TT_Tabelle_Riferimento!$H$31:$I$50,2,FALSE))","v":8},{"$f":"+IFERROR(VLOOKUP(NC$6&\"-\"&$M14&\"_old\",Ammortamento_Finanziario!$H:$L,5,FALSE),VLOOKUP($M14,TT_Tabelle_Riferimento!$H$31:$I$50,2,FALSE))","v":8},{"$f":"+IFERROR(VLOOKUP(ND$6&\"-\"&$M14&\"_old\",Ammortamento_Finanziario!$H:$L,5,FALSE),VLOOKUP($M14,TT_Tabelle_Riferimento!$H$31:$I$50,2,FALSE))","v":8},{"$f":"+IFERROR(VLOOKUP(NE$6&\"-\"&$M14&\"_old\",Ammortamento_Finanziario!$H:$L,5,FALSE),VLOOKUP($M14,TT_Tabelle_Riferimento!$H$31:$I$50,2,FALSE))","v":8},{"$f":"+IFERROR(VLOOKUP(NF$6&\"-\"&$M14&\"_old\",Ammortamento_Finanziario!$H:$L,5,FALSE),VLOOKUP($M14,TT_Tabelle_Riferimento!$H$31:$I$50,2,FALSE))","v":8},{"$f":"+IFERROR(VLOOKUP(NG$6&\"-\"&$M14&\"_old\",Ammortamento_Finanziario!$H:$L,5,FALSE),VLOOKUP($M14,TT_Tabelle_Riferimento!$H$31:$I$50,2,FALSE))","v":8},{"$f":"+IFERROR(VLOOKUP(NH$6&\"-\"&$M14&\"_old\",Ammortamento_Finanziario!$H:$L,5,FALSE),VLOOKUP($M14,TT_Tabelle_Riferimento!$H$31:$I$50,2,FALSE))","v":8},{"$f":"+IFERROR(VLOOKUP(NI$6&\"-\"&$M14&\"_old\",Ammortamento_Finanziario!$H:$L,5,FALSE),VLOOKUP($M14,TT_Tabelle_Riferimento!$H$31:$I$50,2,FALSE))","v":8},{"$f":"+IFERROR(VLOOKUP(NJ$6&\"-\"&$M14&\"_old\",Ammortamento_Finanziario!$H:$L,5,FALSE),VLOOKUP($M14,TT_Tabelle_Riferimento!$H$31:$I$50,2,FALSE))","v":8},{"$f":"+IFERROR(VLOOKUP(NK$6&\"-\"&$M14&\"_old\",Ammortamento_Finanziario!$H:$L,5,FALSE),VLOOKUP($M14,TT_Tabelle_Riferimento!$H$31:$I$50,2,FALSE))","v":8},{"$f":"+IFERROR(VLOOKUP(NL$6&\"-\"&$M14&\"_old\",Ammortamento_Finanziario!$H:$L,5,FALSE),VLOOKUP($M14,TT_Tabelle_Riferimento!$H$31:$I$50,2,FALSE))","v":8},{"$f":"+IFERROR(VLOOKUP(NM$6&\"-\"&$M14&\"_old\",Ammortamento_Finanziario!$H:$L,5,FALSE),VLOOKUP($M14,TT_Tabelle_Riferimento!$H$31:$I$50,2,FALSE))","v":8},{"$f":"+IFERROR(VLOOKUP(NN$6&\"-\"&$M14&\"_old\",Ammortamento_Finanziario!$H:$L,5,FALSE),VLOOKUP($M14,TT_Tabelle_Riferimento!$H$31:$I$50,2,FALSE))","v":8},{"$f":"+IFERROR(VLOOKUP(NO$6&\"-\"&$M14&\"_old\",Ammortamento_Finanziario!$H:$L,5,FALSE),VLOOKUP($M14,TT_Tabelle_Riferimento!$H$31:$I$50,2,FALSE))","v":8},{"$f":"+IFERROR(VLOOKUP(NP$6&\"-\"&$M14&\"_old\",Ammortamento_Finanziario!$H:$L,5,FALSE),VLOOKUP($M14,TT_Tabelle_Riferimento!$H$31:$I$50,2,FALSE))","v":8},{"$f":"+IFERROR(VLOOKUP(NQ$6&\"-\"&$M14&\"_old\",Ammortamento_Finanziario!$H:$L,5,FALSE),VLOOKUP($M14,TT_Tabelle_Riferimento!$H$31:$I$50,2,FALSE))","v":8},{"$f":"+IFERROR(VLOOKUP(NR$6&\"-\"&$M14&\"_old\",Ammortamento_Finanziario!$H:$L,5,FALSE),VLOOKUP($M14,TT_Tabelle_Riferimento!$H$31:$I$50,2,FALSE))","v":8},{"$f":"+IFERROR(VLOOKUP(NS$6&\"-\"&$M14&\"_old\",Ammortamento_Finanziario!$H:$L,5,FALSE),VLOOKUP($M14,TT_Tabelle_Riferimento!$H$31:$I$50,2,FALSE))","v":8},{"$f":"+IFERROR(VLOOKUP(NT$6&\"-\"&$M14&\"_old\",Ammortamento_Finanziario!$H:$L,5,FALSE),VLOOKUP($M14,TT_Tabelle_Riferimento!$H$31:$I$50,2,FALSE))","v":8},{"$f":"+IFERROR(VLOOKUP(NU$6&\"-\"&$M14&\"_old\",Ammortamento_Finanziario!$H:$L,5,FALSE),VLOOKUP($M14,TT_Tabelle_Riferimento!$H$31:$I$50,2,FALSE))","v":8},{"$f":"+IFERROR(VLOOKUP(NV$6&\"-\"&$M14&\"_old\",Ammortamento_Finanziario!$H:$L,5,FALSE),VLOOKUP($M14,TT_Tabelle_Riferimento!$H$31:$I$50,2,FALSE))","v":8},{"$f":"+IFERROR(VLOOKUP(NW$6&\"-\"&$M14&\"_old\",Ammortamento_Finanziario!$H:$L,5,FALSE),VLOOKUP($M14,TT_Tabelle_Riferimento!$H$31:$I$50,2,FALSE))","v":8},{"$f":"+IFERROR(VLOOKUP(NX$6&\"-\"&$M14&\"_old\",Ammortamento_Finanziario!$H:$L,5,FALSE),VLOOKUP($M14,TT_Tabelle_Riferimento!$H$31:$I$50,2,FALSE))","v":8},{"$f":"+IFERROR(VLOOKUP(NY$6&\"-\"&$M14&\"_old\",Ammortamento_Finanziario!$H:$L,5,FALSE),VLOOKUP($M14,TT_Tabelle_Riferimento!$H$31:$I$50,2,FALSE))","v":8},{"$f":"+IFERROR(VLOOKUP(NZ$6&\"-\"&$M14&\"_old\",Ammortamento_Finanziario!$H:$L,5,FALSE),VLOOKUP($M14,TT_Tabelle_Riferimento!$H$31:$I$50,2,FALSE))","v":8},{"$f":"+IFERROR(VLOOKUP(OA$6&\"-\"&$M14&\"_old\",Ammortamento_Finanziario!$H:$L,5,FALSE),VLOOKUP($M14,TT_Tabelle_Riferimento!$H$31:$I$50,2,FALSE))","v":8},{"$f":"+IFERROR(VLOOKUP(OB$6&\"-\"&$M14&\"_old\",Ammortamento_Finanziario!$H:$L,5,FALSE),VLOOKUP($M14,TT_Tabelle_Riferimento!$H$31:$I$50,2,FALSE))","v":8},{"$f":"+IFERROR(VLOOKUP(OC$6&\"-\"&$M14&\"_old\",Ammortamento_Finanziario!$H:$L,5,FALSE),VLOOKUP($M14,TT_Tabelle_Riferimento!$H$31:$I$50,2,FALSE))","v":8},{"$f":"+IFERROR(VLOOKUP(OD$6&\"-\"&$M14&\"_old\",Ammortamento_Finanziario!$H:$L,5,FALSE),VLOOKUP($M14,TT_Tabelle_Riferimento!$H$31:$I$50,2,FALSE))","v":8},{"$f":"+IFERROR(VLOOKUP(OE$6&\"-\"&$M14&\"_old\",Ammortamento_Finanziario!$H:$L,5,FALSE),VLOOKUP($M14,TT_Tabelle_Riferimento!$H$31:$I$50,2,FALSE))","v":8},{"$f":"+IFERROR(VLOOKUP(OF$6&\"-\"&$M14&\"_old\",Ammortamento_Finanziario!$H:$L,5,FALSE),VLOOKUP($M14,TT_Tabelle_Riferimento!$H$31:$I$50,2,FALSE))","v":8},{"$f":"+IFERROR(VLOOKUP(OG$6&\"-\"&$M14&\"_old\",Ammortamento_Finanziario!$H:$L,5,FALSE),VLOOKUP($M14,TT_Tabelle_Riferimento!$H$31:$I$50,2,FALSE))","v":8},{"$f":"+IFERROR(VLOOKUP(OH$6&\"-\"&$M14&\"_old\",Ammortamento_Finanziario!$H:$L,5,FALSE),VLOOKUP($M14,TT_Tabelle_Riferimento!$H$31:$I$50,2,FALSE))","v":8},{"$f":"+IFERROR(VLOOKUP(OI$6&\"-\"&$M14&\"_old\",Ammortamento_Finanziario!$H:$L,5,FALSE),VLOOKUP($M14,TT_Tabelle_Riferimento!$H$31:$I$50,2,FALSE))","v":8},{"$f":"+IFERROR(VLOOKUP(OJ$6&\"-\"&$M14&\"_old\",Ammortamento_Finanziario!$H:$L,5,FALSE),VLOOKUP($M14,TT_Tabelle_Riferimento!$H$31:$I$50,2,FALSE))","v":8},{"$f":"+IFERROR(VLOOKUP(OK$6&\"-\"&$M14&\"_old\",Ammortamento_Finanziario!$H:$L,5,FALSE),VLOOKUP($M14,TT_Tabelle_Riferimento!$H$31:$I$50,2,FALSE))","v":8},{"$f":"+IFERROR(VLOOKUP(OL$6&\"-\"&$M14&\"_old\",Ammortamento_Finanziario!$H:$L,5,FALSE),VLOOKUP($M14,TT_Tabelle_Riferimento!$H$31:$I$50,2,FALSE))","v":8},{"$f":"+IFERROR(VLOOKUP(OM$6&\"-\"&$M14&\"_old\",Ammortamento_Finanziario!$H:$L,5,FALSE),VLOOKUP($M14,TT_Tabelle_Riferimento!$H$31:$I$50,2,FALSE))","v":8},{"$f":"+IFERROR(VLOOKUP(ON$6&\"-\"&$M14&\"_old\",Ammortamento_Finanziario!$H:$L,5,FALSE),VLOOKUP($M14,TT_Tabelle_Riferimento!$H$31:$I$50,2,FALSE))","v":8},{"$f":"+IFERROR(VLOOKUP(OO$6&\"-\"&$M14&\"_old\",Ammortamento_Finanziario!$H:$L,5,FALSE),VLOOKUP($M14,TT_Tabelle_Riferimento!$H$31:$I$50,2,FALSE))","v":8},{"$f":"+IFERROR(VLOOKUP(OP$6&\"-\"&$M14&\"_old\",Ammortamento_Finanziario!$H:$L,5,FALSE),VLOOKUP($M14,TT_Tabelle_Riferimento!$H$31:$I$50,2,FALSE))","v":8},{"$f":"+IFERROR(VLOOKUP(OQ$6&\"-\"&$M14&\"_old\",Ammortamento_Finanziario!$H:$L,5,FALSE),VLOOKUP($M14,TT_Tabelle_Riferimento!$H$31:$I$50,2,FALSE))","v":8},{"$f":"+IFERROR(VLOOKUP(OR$6&\"-\"&$M14&\"_old\",Ammortamento_Finanziario!$H:$L,5,FALSE),VLOOKUP($M14,TT_Tabelle_Riferimento!$H$31:$I$50,2,FALSE))","v":8},{"$f":"+IFERROR(VLOOKUP(OS$6&\"-\"&$M14&\"_old\",Ammortamento_Finanziario!$H:$L,5,FALSE),VLOOKUP($M14,TT_Tabelle_Riferimento!$H$31:$I$50,2,FALSE))","v":8},{"$f":"+IFERROR(VLOOKUP(OT$6&\"-\"&$M14&\"_old\",Ammortamento_Finanziario!$H:$L,5,FALSE),VLOOKUP($M14,TT_Tabelle_Riferimento!$H$31:$I$50,2,FALSE))","v":8},{"$f":"+IFERROR(VLOOKUP(OU$6&\"-\"&$M14&\"_old\",Ammortamento_Finanziario!$H:$L,5,FALSE),VLOOKUP($M14,TT_Tabelle_Riferimento!$H$31:$I$50,2,FALSE))","v":8},{"$f":"+IFERROR(VLOOKUP(OV$6&\"-\"&$M14&\"_old\",Ammortamento_Finanziario!$H:$L,5,FALSE),VLOOKUP($M14,TT_Tabelle_Riferimento!$H$31:$I$50,2,FALSE))","v":8},{"$f":"+IFERROR(VLOOKUP(OW$6&\"-\"&$M14&\"_old\",Ammortamento_Finanziario!$H:$L,5,FALSE),VLOOKUP($M14,TT_Tabelle_Riferimento!$H$31:$I$50,2,FALSE))","v":8},{"$f":"+IFERROR(VLOOKUP(OX$6&\"-\"&$M14&\"_old\",Ammortamento_Finanziario!$H:$L,5,FALSE),VLOOKUP($M14,TT_Tabelle_Riferimento!$H$31:$I$50,2,FALSE))","v":8},{"$f":"+IFERROR(VLOOKUP(OY$6&\"-\"&$M14&\"_old\",Ammortamento_Finanziario!$H:$L,5,FALSE),VLOOKUP($M14,TT_Tabelle_Riferimento!$H$31:$I$50,2,FALSE))","v":8},{"$f":"+IFERROR(VLOOKUP(OZ$6&\"-\"&$M14&\"_old\",Ammortamento_Finanziario!$H:$L,5,FALSE),VLOOKUP($M14,TT_Tabelle_Riferimento!$H$31:$I$50,2,FALSE))","v":8},{"$f":"+IFERROR(VLOOKUP(PA$6&\"-\"&$M14&\"_old\",Ammortamento_Finanziario!$H:$L,5,FALSE),VLOOKUP($M14,TT_Tabelle_Riferimento!$H$31:$I$50,2,FALSE))","v":8},{"$f":"+IFERROR(VLOOKUP(PB$6&\"-\"&$M14&\"_old\",Ammortamento_Finanziario!$H:$L,5,FALSE),VLOOKUP($M14,TT_Tabelle_Riferimento!$H$31:$I$50,2,FALSE))","v":8},{"$f":"+IFERROR(VLOOKUP(PC$6&\"-\"&$M14&\"_old\",Ammortamento_Finanziario!$H:$L,5,FALSE),VLOOKUP($M14,TT_Tabelle_Riferimento!$H$31:$I$50,2,FALSE))","v":8},{"$f":"+IFERROR(VLOOKUP(PD$6&\"-\"&$M14&\"_old\",Ammortamento_Finanziario!$H:$L,5,FALSE),VLOOKUP($M14,TT_Tabelle_Riferimento!$H$31:$I$50,2,FALSE))","v":8},{"$f":"+IFERROR(VLOOKUP(PE$6&\"-\"&$M14&\"_old\",Ammortamento_Finanziario!$H:$L,5,FALSE),VLOOKUP($M14,TT_Tabelle_Riferimento!$H$31:$I$50,2,FALSE))","v":8},{"$f":"+IFERROR(VLOOKUP(PF$6&\"-\"&$M14&\"_old\",Ammortamento_Finanziario!$H:$L,5,FALSE),VLOOKUP($M14,TT_Tabelle_Riferimento!$H$31:$I$50,2,FALSE))","v":8},{"$f":"+IFERROR(VLOOKUP(PG$6&\"-\"&$M14&\"_old\",Ammortamento_Finanziario!$H:$L,5,FALSE),VLOOKUP($M14,TT_Tabelle_Riferimento!$H$31:$I$50,2,FALSE))","v":8},{"$f":"+IFERROR(VLOOKUP(PH$6&\"-\"&$M14&\"_old\",Ammortamento_Finanziario!$H:$L,5,FALSE),VLOOKUP($M14,TT_Tabelle_Riferimento!$H$31:$I$50,2,FALSE))","v":8},{"$f":"+IFERROR(VLOOKUP(PI$6&\"-\"&$M14&\"_old\",Ammortamento_Finanziario!$H:$L,5,FALSE),VLOOKUP($M14,TT_Tabelle_Riferimento!$H$31:$I$50,2,FALSE))","v":8},{"$f":"+IFERROR(VLOOKUP(PJ$6&\"-\"&$M14&\"_old\",Ammortamento_Finanziario!$H:$L,5,FALSE),VLOOKUP($M14,TT_Tabelle_Riferimento!$H$31:$I$50,2,FALSE))","v":8},{"$f":"+IFERROR(VLOOKUP(PK$6&\"-\"&$M14&\"_old\",Ammortamento_Finanziario!$H:$L,5,FALSE),VLOOKUP($M14,TT_Tabelle_Riferimento!$H$31:$I$50,2,FALSE))","v":8},{"$f":"+IFERROR(VLOOKUP(PL$6&\"-\"&$M14&\"_old\",Ammortamento_Finanziario!$H:$L,5,FALSE),VLOOKUP($M14,TT_Tabelle_Riferimento!$H$31:$I$50,2,FALSE))","v":8},{"$f":"+IFERROR(VLOOKUP(PM$6&\"-\"&$M14&\"_old\",Ammortamento_Finanziario!$H:$L,5,FALSE),VLOOKUP($M14,TT_Tabelle_Riferimento!$H$31:$I$50,2,FALSE))","v":8},{"$f":"+IFERROR(VLOOKUP(PN$6&\"-\"&$M14&\"_old\",Ammortamento_Finanziario!$H:$L,5,FALSE),VLOOKUP($M14,TT_Tabelle_Riferimento!$H$31:$I$50,2,FALSE))","v":8},{"$f":"+IFERROR(VLOOKUP(PO$6&\"-\"&$M14&\"_old\",Ammortamento_Finanziario!$H:$L,5,FALSE),VLOOKUP($M14,TT_Tabelle_Riferimento!$H$31:$I$50,2,FALSE))","v":8},{"$f":"+IFERROR(VLOOKUP(PP$6&\"-\"&$M14&\"_old\",Ammortamento_Finanziario!$H:$L,5,FALSE),VLOOKUP($M14,TT_Tabelle_Riferimento!$H$31:$I$50,2,FALSE))","v":8},{"$f":"+IFERROR(VLOOKUP(PQ$6&\"-\"&$M14&\"_old\",Ammortamento_Finanziario!$H:$L,5,FALSE),VLOOKUP($M14,TT_Tabelle_Riferimento!$H$31:$I$50,2,FALSE))","v":8},{"$f":"+IFERROR(VLOOKUP(PR$6&\"-\"&$M14&\"_old\",Ammortamento_Finanziario!$H:$L,5,FALSE),VLOOKUP($M14,TT_Tabelle_Riferimento!$H$31:$I$50,2,FALSE))","v":8},{"$f":"+IFERROR(VLOOKUP(PS$6&\"-\"&$M14&\"_old\",Ammortamento_Finanziario!$H:$L,5,FALSE),VLOOKUP($M14,TT_Tabelle_Riferimento!$H$31:$I$50,2,FALSE))","v":8},{"$f":"+IFERROR(VLOOKUP(PT$6&\"-\"&$M14&\"_old\",Ammortamento_Finanziario!$H:$L,5,FALSE),VLOOKUP($M14,TT_Tabelle_Riferimento!$H$31:$I$50,2,FALSE))","v":8},{"$f":"+IFERROR(VLOOKUP(PU$6&\"-\"&$M14&\"_old\",Ammortamento_Finanziario!$H:$L,5,FALSE),VLOOKUP($M14,TT_Tabelle_Riferimento!$H$31:$I$50,2,FALSE))","v":8},{"$f":"+IFERROR(VLOOKUP(PV$6&\"-\"&$M14&\"_old\",Ammortamento_Finanziario!$H:$L,5,FALSE),VLOOKUP($M14,TT_Tabelle_Riferimento!$H$31:$I$50,2,FALSE))","v":8},{"$f":"+IFERROR(VLOOKUP(PW$6&\"-\"&$M14&\"_old\",Ammortamento_Finanziario!$H:$L,5,FALSE),VLOOKUP($M14,TT_Tabelle_Riferimento!$H$31:$I$50,2,FALSE))","v":8},{"$f":"+IFERROR(VLOOKUP(PX$6&\"-\"&$M14&\"_old\",Ammortamento_Finanziario!$H:$L,5,FALSE),VLOOKUP($M14,TT_Tabelle_Riferimento!$H$31:$I$50,2,FALSE))","v":8},{"$f":"+IFERROR(VLOOKUP(PY$6&\"-\"&$M14&\"_old\",Ammortamento_Finanziario!$H:$L,5,FALSE),VLOOKUP($M14,TT_Tabelle_Riferimento!$H$31:$I$50,2,FALSE))","v":8},{"$f":"+IFERROR(VLOOKUP(PZ$6&\"-\"&$M14&\"_old\",Ammortamento_Finanziario!$H:$L,5,FALSE),VLOOKUP($M14,TT_Tabelle_Riferimento!$H$31:$I$50,2,FALSE))","v":8},{"$f":"+IFERROR(VLOOKUP(QA$6&\"-\"&$M14&\"_old\",Ammortamento_Finanziario!$H:$L,5,FALSE),VLOOKUP($M14,TT_Tabelle_Riferimento!$H$31:$I$50,2,FALSE))","v":8},{"$f":"+IFERROR(VLOOKUP(QB$6&\"-\"&$M14&\"_old\",Ammortamento_Finanziario!$H:$L,5,FALSE),VLOOKUP($M14,TT_Tabelle_Riferimento!$H$31:$I$50,2,FALSE))","v":8},{"$f":"+IFERROR(VLOOKUP(QC$6&\"-\"&$M14&\"_old\",Ammortamento_Finanziario!$H:$L,5,FALSE),VLOOKUP($M14,TT_Tabelle_Riferimento!$H$31:$I$50,2,FALSE))","v":8},{"$f":"+IFERROR(VLOOKUP(QD$6&\"-\"&$M14&\"_old\",Ammortamento_Finanziario!$H:$L,5,FALSE),VLOOKUP($M14,TT_Tabelle_Riferimento!$H$31:$I$50,2,FALSE))","v":8},{"$f":"+IFERROR(VLOOKUP(QE$6&\"-\"&$M14&\"_old\",Ammortamento_Finanziario!$H:$L,5,FALSE),VLOOKUP($M14,TT_Tabelle_Riferimento!$H$31:$I$50,2,FALSE))","v":8},{"$f":"+IFERROR(VLOOKUP(QF$6&\"-\"&$M14&\"_old\",Ammortamento_Finanziario!$H:$L,5,FALSE),VLOOKUP($M14,TT_Tabelle_Riferimento!$H$31:$I$50,2,FALSE))","v":8},{"$f":"+IFERROR(VLOOKUP(QG$6&\"-\"&$M14&\"_old\",Ammortamento_Finanziario!$H:$L,5,FALSE),VLOOKUP($M14,TT_Tabelle_Riferimento!$H$31:$I$50,2,FALSE))","v":8},{"$f":"+IFERROR(VLOOKUP(QH$6&\"-\"&$M14&\"_old\",Ammortamento_Finanziario!$H:$L,5,FALSE),VLOOKUP($M14,TT_Tabelle_Riferimento!$H$31:$I$50,2,FALSE))","v":8},{"$f":"+IFERROR(VLOOKUP(QI$6&\"-\"&$M14&\"_old\",Ammortamento_Finanziario!$H:$L,5,FALSE),VLOOKUP($M14,TT_Tabelle_Riferimento!$H$31:$I$50,2,FALSE))","v":8},{"$f":"+IFERROR(VLOOKUP(QJ$6&\"-\"&$M14&\"_old\",Ammortamento_Finanziario!$H:$L,5,FALSE),VLOOKUP($M14,TT_Tabelle_Riferimento!$H$31:$I$50,2,FALSE))","v":8},{"$f":"+IFERROR(VLOOKUP(QK$6&\"-\"&$M14&\"_old\",Ammortamento_Finanziario!$H:$L,5,FALSE),VLOOKUP($M14,TT_Tabelle_Riferimento!$H$31:$I$50,2,FALSE))","v":8},{"$f":"+IFERROR(VLOOKUP(QL$6&\"-\"&$M14&\"_old\",Ammortamento_Finanziario!$H:$L,5,FALSE),VLOOKUP($M14,TT_Tabelle_Riferimento!$H$31:$I$50,2,FALSE))","v":8},{"$f":"+IFERROR(VLOOKUP(QM$6&\"-\"&$M14&\"_old\",Ammortamento_Finanziario!$H:$L,5,FALSE),VLOOKUP($M14,TT_Tabelle_Riferimento!$H$31:$I$50,2,FALSE))","v":8},{"$f":"+IFERROR(VLOOKUP(QN$6&\"-\"&$M14&\"_old\",Ammortamento_Finanziario!$H:$L,5,FALSE),VLOOKUP($M14,TT_Tabelle_Riferimento!$H$31:$I$50,2,FALSE))","v":8},{"$f":"+IFERROR(VLOOKUP(QO$6&\"-\"&$M14&\"_old\",Ammortamento_Finanziario!$H:$L,5,FALSE),VLOOKUP($M14,TT_Tabelle_Riferimento!$H$31:$I$50,2,FALSE))","v":8},{"$f":"+IFERROR(VLOOKUP(QP$6&\"-\"&$M14&\"_old\",Ammortamento_Finanziario!$H:$L,5,FALSE),VLOOKUP($M14,TT_Tabelle_Riferimento!$H$31:$I$50,2,FALSE))","v":8},{"$f":"+IFERROR(VLOOKUP(QQ$6&\"-\"&$M14&\"_old\",Ammortamento_Finanziario!$H:$L,5,FALSE),VLOOKUP($M14,TT_Tabelle_Riferimento!$H$31:$I$50,2,FALSE))","v":8},{"$f":"+IFERROR(VLOOKUP(QR$6&\"-\"&$M14&\"_old\",Ammortamento_Finanziario!$H:$L,5,FALSE),VLOOKUP($M14,TT_Tabelle_Riferimento!$H$31:$I$50,2,FALSE))","v":8},{"$f":"+IFERROR(VLOOKUP(QS$6&\"-\"&$M14&\"_old\",Ammortamento_Finanziario!$H:$L,5,FALSE),VLOOKUP($M14,TT_Tabelle_Riferimento!$H$31:$I$50,2,FALSE))","v":8},{"$f":"+IFERROR(VLOOKUP(QT$6&\"-\"&$M14&\"_old\",Ammortamento_Finanziario!$H:$L,5,FALSE),VLOOKUP($M14,TT_Tabelle_Riferimento!$H$31:$I$50,2,FALSE))","v":8},{"$f":"+IFERROR(VLOOKUP(QU$6&\"-\"&$M14&\"_old\",Ammortamento_Finanziario!$H:$L,5,FALSE),VLOOKUP($M14,TT_Tabelle_Riferimento!$H$31:$I$50,2,FALSE))","v":8},{"$f":"+IFERROR(VLOOKUP(QV$6&\"-\"&$M14&\"_old\",Ammortamento_Finanziario!$H:$L,5,FALSE),VLOOKUP($M14,TT_Tabelle_Riferimento!$H$31:$I$50,2,FALSE))","v":8},{"$f":"+IFERROR(VLOOKUP(QW$6&\"-\"&$M14&\"_old\",Ammortamento_Finanziario!$H:$L,5,FALSE),VLOOKUP($M14,TT_Tabelle_Riferimento!$H$31:$I$50,2,FALSE))","v":8},{"$f":"+IFERROR(VLOOKUP(QX$6&\"-\"&$M14&\"_old\",Ammortamento_Finanziario!$H:$L,5,FALSE),VLOOKUP($M14,TT_Tabelle_Riferimento!$H$31:$I$50,2,FALSE))","v":8},{"$f":"+IFERROR(VLOOKUP(QY$6&\"-\"&$M14&\"_old\",Ammortamento_Finanziario!$H:$L,5,FALSE),VLOOKUP($M14,TT_Tabelle_Riferimento!$H$31:$I$50,2,FALSE))","v":8},{"$f":"+IFERROR(VLOOKUP(QZ$6&\"-\"&$M14&\"_old\",Ammortamento_Finanziario!$H:$L,5,FALSE),VLOOKUP($M14,TT_Tabelle_Riferimento!$H$31:$I$50,2,FALSE))","v":8},{"$f":"+IFERROR(VLOOKUP(RA$6&\"-\"&$M14&\"_old\",Ammortamento_Finanziario!$H:$L,5,FALSE),VLOOKUP($M14,TT_Tabelle_Riferimento!$H$31:$I$50,2,FALSE))","v":8},{"$f":"+IFERROR(VLOOKUP(RB$6&\"-\"&$M14&\"_old\",Ammortamento_Finanziario!$H:$L,5,FALSE),VLOOKUP($M14,TT_Tabelle_Riferimento!$H$31:$I$50,2,FALSE))","v":8},{"$f":"+IFERROR(VLOOKUP(RC$6&\"-\"&$M14&\"_old\",Ammortamento_Finanziario!$H:$L,5,FALSE),VLOOKUP($M14,TT_Tabelle_Riferimento!$H$31:$I$50,2,FALSE))","v":8},{"$f":"+IFERROR(VLOOKUP(RD$6&\"-\"&$M14&\"_old\",Ammortamento_Finanziario!$H:$L,5,FALSE),VLOOKUP($M14,TT_Tabelle_Riferimento!$H$31:$I$50,2,FALSE))","v":8},{"$f":"+IFERROR(VLOOKUP(RE$6&\"-\"&$M14&\"_old\",Ammortamento_Finanziario!$H:$L,5,FALSE),VLOOKUP($M14,TT_Tabelle_Riferimento!$H$31:$I$50,2,FALSE))","v":8},{"$f":"+IFERROR(VLOOKUP(RF$6&\"-\"&$M14&\"_old\",Ammortamento_Finanziario!$H:$L,5,FALSE),VLOOKUP($M14,TT_Tabelle_Riferimento!$H$31:$I$50,2,FALSE))","v":8},{"$f":"+IFERROR(VLOOKUP(RG$6&\"-\"&$M14&\"_old\",Ammortamento_Finanziario!$H:$L,5,FALSE),VLOOKUP($M14,TT_Tabelle_Riferimento!$H$31:$I$50,2,FALSE))","v":8},{"$f":"+IFERROR(VLOOKUP(RH$6&\"-\"&$M14&\"_old\",Ammortamento_Finanziario!$H:$L,5,FALSE),VLOOKUP($M14,TT_Tabelle_Riferimento!$H$31:$I$50,2,FALSE))","v":8},{"$f":"+IFERROR(VLOOKUP(RI$6&\"-\"&$M14&\"_old\",Ammortamento_Finanziario!$H:$L,5,FALSE),VLOOKUP($M14,TT_Tabelle_Riferimento!$H$31:$I$50,2,FALSE))","v":8},{"$f":"+IFERROR(VLOOKUP(RJ$6&\"-\"&$M14&\"_old\",Ammortamento_Finanziario!$H:$L,5,FALSE),VLOOKUP($M14,TT_Tabelle_Riferimento!$H$31:$I$50,2,FALSE))","v":8},{"$f":"+IFERROR(VLOOKUP(RK$6&\"-\"&$M14&\"_old\",Ammortamento_Finanziario!$H:$L,5,FALSE),VLOOKUP($M14,TT_Tabelle_Riferimento!$H$31:$I$50,2,FALSE))","v":8},{"$f":"+IFERROR(VLOOKUP(RL$6&\"-\"&$M14&\"_old\",Ammortamento_Finanziario!$H:$L,5,FALSE),VLOOKUP($M14,TT_Tabelle_Riferimento!$H$31:$I$50,2,FALSE))","v":8},{"$f":"+IFERROR(VLOOKUP(RM$6&\"-\"&$M14&\"_old\",Ammortamento_Finanziario!$H:$L,5,FALSE),VLOOKUP($M14,TT_Tabelle_Riferimento!$H$31:$I$50,2,FALSE))","v":8},{"$f":"+IFERROR(VLOOKUP(RN$6&\"-\"&$M14&\"_old\",Ammortamento_Finanziario!$H:$L,5,FALSE),VLOOKUP($M14,TT_Tabelle_Riferimento!$H$31:$I$50,2,FALSE))","v":8},{"$f":"+IFERROR(VLOOKUP(RO$6&\"-\"&$M14&\"_old\",Ammortamento_Finanziario!$H:$L,5,FALSE),VLOOKUP($M14,TT_Tabelle_Riferimento!$H$31:$I$50,2,FALSE))","v":8},{"$f":"+IFERROR(VLOOKUP(RP$6&\"-\"&$M14&\"_old\",Ammortamento_Finanziario!$H:$L,5,FALSE),VLOOKUP($M14,TT_Tabelle_Riferimento!$H$31:$I$50,2,FALSE))","v":8},{"$f":"+IFERROR(VLOOKUP(RQ$6&\"-\"&$M14&\"_old\",Ammortamento_Finanziario!$H:$L,5,FALSE),VLOOKUP($M14,TT_Tabelle_Riferimento!$H$31:$I$50,2,FALSE))","v":8},{"$f":"+IFERROR(VLOOKUP(RR$6&\"-\"&$M14&\"_old\",Ammortamento_Finanziario!$H:$L,5,FALSE),VLOOKUP($M14,TT_Tabelle_Riferimento!$H$31:$I$50,2,FALSE))","v":8},{"$f":"+IFERROR(VLOOKUP(RS$6&\"-\"&$M14&\"_old\",Ammortamento_Finanziario!$H:$L,5,FALSE),VLOOKUP($M14,TT_Tabelle_Riferimento!$H$31:$I$50,2,FALSE))","v":8},{"$f":"+IFERROR(VLOOKUP(RT$6&\"-\"&$M14&\"_old\",Ammortamento_Finanziario!$H:$L,5,FALSE),VLOOKUP($M14,TT_Tabelle_Riferimento!$H$31:$I$50,2,FALSE))","v":8},{"$f":"+IFERROR(VLOOKUP(RU$6&\"-\"&$M14&\"_old\",Ammortamento_Finanziario!$H:$L,5,FALSE),VLOOKUP($M14,TT_Tabelle_Riferimento!$H$31:$I$50,2,FALSE))","v":8},{"$f":"+IFERROR(VLOOKUP(RV$6&\"-\"&$M14&\"_old\",Ammortamento_Finanziario!$H:$L,5,FALSE),VLOOKUP($M14,TT_Tabelle_Riferimento!$H$31:$I$50,2,FALSE))","v":8}]
[null,null,null,null,null,null,null,null,null,null,null,null,9,{"$f":"+IFERROR(VLOOKUP(N$6&\"-\"&$M15&\"_old\",Ammortamento_Finanziario!$H:$L,5,FALSE),VLOOKUP($M15,TT_Tabelle_Riferimento!$H$31:$I$50,2,FALSE))","v":15},{"$f":"+IFERROR(VLOOKUP(O$6&\"-\"&$M15&\"_old\",Ammortamento_Finanziario!$H:$L,5,FALSE),VLOOKUP($M15,TT_Tabelle_Riferimento!$H$31:$I$50,2,FALSE))","v":15},{"$f":"+IFERROR(VLOOKUP(P$6&\"-\"&$M15&\"_old\",Ammortamento_Finanziario!$H:$L,5,FALSE),VLOOKUP($M15,TT_Tabelle_Riferimento!$H$31:$I$50,2,FALSE))","v":15},{"$f":"+IFERROR(VLOOKUP(Q$6&\"-\"&$M15&\"_old\",Ammortamento_Finanziario!$H:$L,5,FALSE),VLOOKUP($M15,TT_Tabelle_Riferimento!$H$31:$I$50,2,FALSE))","v":15},{"$f":"+IFERROR(VLOOKUP(R$6&\"-\"&$M15&\"_old\",Ammortamento_Finanziario!$H:$L,5,FALSE),VLOOKUP($M15,TT_Tabelle_Riferimento!$H$31:$I$50,2,FALSE))","v":15},{"$f":"+IFERROR(VLOOKUP(S$6&\"-\"&$M15&\"_old\",Ammortamento_Finanziario!$H:$L,5,FALSE),VLOOKUP($M15,TT_Tabelle_Riferimento!$H$31:$I$50,2,FALSE))","v":15},{"$f":"+IFERROR(VLOOKUP(T$6&\"-\"&$M15&\"_old\",Ammortamento_Finanziario!$H:$L,5,FALSE),VLOOKUP($M15,TT_Tabelle_Riferimento!$H$31:$I$50,2,FALSE))","v":15},{"$f":"+IFERROR(VLOOKUP(U$6&\"-\"&$M15&\"_old\",Ammortamento_Finanziario!$H:$L,5,FALSE),VLOOKUP($M15,TT_Tabelle_Riferimento!$H$31:$I$50,2,FALSE))","v":15},{"$f":"+IFERROR(VLOOKUP(V$6&\"-\"&$M15&\"_old\",Ammortamento_Finanziario!$H:$L,5,FALSE),VLOOKUP($M15,TT_Tabelle_Riferimento!$H$31:$I$50,2,FALSE))","v":15},{"$f":"+IFERROR(VLOOKUP(W$6&\"-\"&$M15&\"_old\",Ammortamento_Finanziario!$H:$L,5,FALSE),VLOOKUP($M15,TT_Tabelle_Riferimento!$H$31:$I$50,2,FALSE))","v":15},{"$f":"+IFERROR(VLOOKUP(X$6&\"-\"&$M15&\"_old\",Ammortamento_Finanziario!$H:$L,5,FALSE),VLOOKUP($M15,TT_Tabelle_Riferimento!$H$31:$I$50,2,FALSE))","v":15},{"$f":"+IFERROR(VLOOKUP(Y$6&\"-\"&$M15&\"_old\",Ammortamento_Finanziario!$H:$L,5,FALSE),VLOOKUP($M15,TT_Tabelle_Riferimento!$H$31:$I$50,2,FALSE))","v":15},{"$f":"+IFERROR(VLOOKUP(Z$6&\"-\"&$M15&\"_old\",Ammortamento_Finanziario!$H:$L,5,FALSE),VLOOKUP($M15,TT_Tabelle_Riferimento!$H$31:$I$50,2,FALSE))","v":15},{"$f":"+IFERROR(VLOOKUP(AA$6&\"-\"&$M15&\"_old\",Ammortamento_Finanziario!$H:$L,5,FALSE),VLOOKUP($M15,TT_Tabelle_Riferimento!$H$31:$I$50,2,FALSE))","v":15},{"$f":"+IFERROR(VLOOKUP(AB$6&\"-\"&$M15&\"_old\",Ammortamento_Finanziario!$H:$L,5,FALSE),VLOOKUP($M15,TT_Tabelle_Riferimento!$H$31:$I$50,2,FALSE))","v":15},{"$f":"+IFERROR(VLOOKUP(AC$6&\"-\"&$M15&\"_old\",Ammortamento_Finanziario!$H:$L,5,FALSE),VLOOKUP($M15,TT_Tabelle_Riferimento!$H$31:$I$50,2,FALSE))","v":15},{"$f":"+IFERROR(VLOOKUP(AD$6&\"-\"&$M15&\"_old\",Ammortamento_Finanziario!$H:$L,5,FALSE),VLOOKUP($M15,TT_Tabelle_Riferimento!$H$31:$I$50,2,FALSE))","v":15},{"$f":"+IFERROR(VLOOKUP(AE$6&\"-\"&$M15&\"_old\",Ammortamento_Finanziario!$H:$L,5,FALSE),VLOOKUP($M15,TT_Tabelle_Riferimento!$H$31:$I$50,2,FALSE))","v":15},{"$f":"+IFERROR(VLOOKUP(AF$6&\"-\"&$M15&\"_old\",Ammortamento_Finanziario!$H:$L,5,FALSE),VLOOKUP($M15,TT_Tabelle_Riferimento!$H$31:$I$50,2,FALSE))","v":15},{"$f":"+IFERROR(VLOOKUP(AG$6&\"-\"&$M15&\"_old\",Ammortamento_Finanziario!$H:$L,5,FALSE),VLOOKUP($M15,TT_Tabelle_Riferimento!$H$31:$I$50,2,FALSE))","v":15},{"$f":"+IFERROR(VLOOKUP(AH$6&\"-\"&$M15&\"_old\",Ammortamento_Finanziario!$H:$L,5,FALSE),VLOOKUP($M15,TT_Tabelle_Riferimento!$H$31:$I$50,2,FALSE))","v":15},{"$f":"+IFERROR(VLOOKUP(AI$6&\"-\"&$M15&\"_old\",Ammortamento_Finanziario!$H:$L,5,FALSE),VLOOKUP($M15,TT_Tabelle_Riferimento!$H$31:$I$50,2,FALSE))","v":15},{"$f":"+IFERROR(VLOOKUP(AJ$6&\"-\"&$M15&\"_old\",Ammortamento_Finanziario!$H:$L,5,FALSE),VLOOKUP($M15,TT_Tabelle_Riferimento!$H$31:$I$50,2,FALSE))","v":15},{"$f":"+IFERROR(VLOOKUP(AK$6&\"-\"&$M15&\"_old\",Ammortamento_Finanziario!$H:$L,5,FALSE),VLOOKUP($M15,TT_Tabelle_Riferimento!$H$31:$I$50,2,FALSE))","v":15},{"$f":"+IFERROR(VLOOKUP(AL$6&\"-\"&$M15&\"_old\",Ammortamento_Finanziario!$H:$L,5,FALSE),VLOOKUP($M15,TT_Tabelle_Riferimento!$H$31:$I$50,2,FALSE))","v":15},{"$f":"+IFERROR(VLOOKUP(AM$6&\"-\"&$M15&\"_old\",Ammortamento_Finanziario!$H:$L,5,FALSE),VLOOKUP($M15,TT_Tabelle_Riferimento!$H$31:$I$50,2,FALSE))","v":15},{"$f":"+IFERROR(VLOOKUP(AN$6&\"-\"&$M15&\"_old\",Ammortamento_Finanziario!$H:$L,5,FALSE),VLOOKUP($M15,TT_Tabelle_Riferimento!$H$31:$I$50,2,FALSE))","v":15},{"$f":"+IFERROR(VLOOKUP(AO$6&\"-\"&$M15&\"_old\",Ammortamento_Finanziario!$H:$L,5,FALSE),VLOOKUP($M15,TT_Tabelle_Riferimento!$H$31:$I$50,2,FALSE))","v":15},{"$f":"+IFERROR(VLOOKUP(AP$6&\"-\"&$M15&\"_old\",Ammortamento_Finanziario!$H:$L,5,FALSE),VLOOKUP($M15,TT_Tabelle_Riferimento!$H$31:$I$50,2,FALSE))","v":15},{"$f":"+IFERROR(VLOOKUP(AQ$6&\"-\"&$M15&\"_old\",Ammortamento_Finanziario!$H:$L,5,FALSE),VLOOKUP($M15,TT_Tabelle_Riferimento!$H$31:$I$50,2,FALSE))","v":15},{"$f":"+IFERROR(VLOOKUP(AR$6&\"-\"&$M15&\"_old\",Ammortamento_Finanziario!$H:$L,5,FALSE),VLOOKUP($M15,TT_Tabelle_Riferimento!$H$31:$I$50,2,FALSE))","v":15},{"$f":"+IFERROR(VLOOKUP(AS$6&\"-\"&$M15&\"_old\",Ammortamento_Finanziario!$H:$L,5,FALSE),VLOOKUP($M15,TT_Tabelle_Riferimento!$H$31:$I$50,2,FALSE))","v":15},{"$f":"+IFERROR(VLOOKUP(AT$6&\"-\"&$M15&\"_old\",Ammortamento_Finanziario!$H:$L,5,FALSE),VLOOKUP($M15,TT_Tabelle_Riferimento!$H$31:$I$50,2,FALSE))","v":15},{"$f":"+IFERROR(VLOOKUP(AU$6&\"-\"&$M15&\"_old\",Ammortamento_Finanziario!$H:$L,5,FALSE),VLOOKUP($M15,TT_Tabelle_Riferimento!$H$31:$I$50,2,FALSE))","v":15},{"$f":"+IFERROR(VLOOKUP(AV$6&\"-\"&$M15&\"_old\",Ammortamento_Finanziario!$H:$L,5,FALSE),VLOOKUP($M15,TT_Tabelle_Riferimento!$H$31:$I$50,2,FALSE))","v":15},{"$f":"+IFERROR(VLOOKUP(AW$6&\"-\"&$M15&\"_old\",Ammortamento_Finanziario!$H:$L,5,FALSE),VLOOKUP($M15,TT_Tabelle_Riferimento!$H$31:$I$50,2,FALSE))","v":15},{"$f":"+IFERROR(VLOOKUP(AX$6&\"-\"&$M15&\"_old\",Ammortamento_Finanziario!$H:$L,5,FALSE),VLOOKUP($M15,TT_Tabelle_Riferimento!$H$31:$I$50,2,FALSE))","v":15},{"$f":"+IFERROR(VLOOKUP(AY$6&\"-\"&$M15&\"_old\",Ammortamento_Finanziario!$H:$L,5,FALSE),VLOOKUP($M15,TT_Tabelle_Riferimento!$H$31:$I$50,2,FALSE))","v":15},{"$f":"+IFERROR(VLOOKUP(AZ$6&\"-\"&$M15&\"_old\",Ammortamento_Finanziario!$H:$L,5,FALSE),VLOOKUP($M15,TT_Tabelle_Riferimento!$H$31:$I$50,2,FALSE))","v":15},{"$f":"+IFERROR(VLOOKUP(BA$6&\"-\"&$M15&\"_old\",Ammortamento_Finanziario!$H:$L,5,FALSE),VLOOKUP($M15,TT_Tabelle_Riferimento!$H$31:$I$50,2,FALSE))","v":15},{"$f":"+IFERROR(VLOOKUP(BB$6&\"-\"&$M15&\"_old\",Ammortamento_Finanziario!$H:$L,5,FALSE),VLOOKUP($M15,TT_Tabelle_Riferimento!$H$31:$I$50,2,FALSE))","v":15},{"$f":"+IFERROR(VLOOKUP(BC$6&\"-\"&$M15&\"_old\",Ammortamento_Finanziario!$H:$L,5,FALSE),VLOOKUP($M15,TT_Tabelle_Riferimento!$H$31:$I$50,2,FALSE))","v":15},{"$f":"+IFERROR(VLOOKUP(BD$6&\"-\"&$M15&\"_old\",Ammortamento_Finanziario!$H:$L,5,FALSE),VLOOKUP($M15,TT_Tabelle_Riferimento!$H$31:$I$50,2,FALSE))","v":15},{"$f":"+IFERROR(VLOOKUP(BE$6&\"-\"&$M15&\"_old\",Ammortamento_Finanziario!$H:$L,5,FALSE),VLOOKUP($M15,TT_Tabelle_Riferimento!$H$31:$I$50,2,FALSE))","v":15},{"$f":"+IFERROR(VLOOKUP(BF$6&\"-\"&$M15&\"_old\",Ammortamento_Finanziario!$H:$L,5,FALSE),VLOOKUP($M15,TT_Tabelle_Riferimento!$H$31:$I$50,2,FALSE))","v":15},{"$f":"+IFERROR(VLOOKUP(BG$6&\"-\"&$M15&\"_old\",Ammortamento_Finanziario!$H:$L,5,FALSE),VLOOKUP($M15,TT_Tabelle_Riferimento!$H$31:$I$50,2,FALSE))","v":15},{"$f":"+IFERROR(VLOOKUP(BH$6&\"-\"&$M15&\"_old\",Ammortamento_Finanziario!$H:$L,5,FALSE),VLOOKUP($M15,TT_Tabelle_Riferimento!$H$31:$I$50,2,FALSE))","v":15},{"$f":"+IFERROR(VLOOKUP(BI$6&\"-\"&$M15&\"_old\",Ammortamento_Finanziario!$H:$L,5,FALSE),VLOOKUP($M15,TT_Tabelle_Riferimento!$H$31:$I$50,2,FALSE))","v":15},{"$f":"+IFERROR(VLOOKUP(BJ$6&\"-\"&$M15&\"_old\",Ammortamento_Finanziario!$H:$L,5,FALSE),VLOOKUP($M15,TT_Tabelle_Riferimento!$H$31:$I$50,2,FALSE))","v":15},{"$f":"+IFERROR(VLOOKUP(BK$6&\"-\"&$M15&\"_old\",Ammortamento_Finanziario!$H:$L,5,FALSE),VLOOKUP($M15,TT_Tabelle_Riferimento!$H$31:$I$50,2,FALSE))","v":15},{"$f":"+IFERROR(VLOOKUP(BL$6&\"-\"&$M15&\"_old\",Ammortamento_Finanziario!$H:$L,5,FALSE),VLOOKUP($M15,TT_Tabelle_Riferimento!$H$31:$I$50,2,FALSE))","v":15},{"$f":"+IFERROR(VLOOKUP(BM$6&\"-\"&$M15&\"_old\",Ammortamento_Finanziario!$H:$L,5,FALSE),VLOOKUP($M15,TT_Tabelle_Riferimento!$H$31:$I$50,2,FALSE))","v":15},{"$f":"+IFERROR(VLOOKUP(BN$6&\"-\"&$M15&\"_old\",Ammortamento_Finanziario!$H:$L,5,FALSE),VLOOKUP($M15,TT_Tabelle_Riferimento!$H$31:$I$50,2,FALSE))","v":15},{"$f":"+IFERROR(VLOOKUP(BO$6&\"-\"&$M15&\"_old\",Ammortamento_Finanziario!$H:$L,5,FALSE),VLOOKUP($M15,TT_Tabelle_Riferimento!$H$31:$I$50,2,FALSE))","v":15},{"$f":"+IFERROR(VLOOKUP(BP$6&\"-\"&$M15&\"_old\",Ammortamento_Finanziario!$H:$L,5,FALSE),VLOOKUP($M15,TT_Tabelle_Riferimento!$H$31:$I$50,2,FALSE))","v":15},{"$f":"+IFERROR(VLOOKUP(BQ$6&\"-\"&$M15&\"_old\",Ammortamento_Finanziario!$H:$L,5,FALSE),VLOOKUP($M15,TT_Tabelle_Riferimento!$H$31:$I$50,2,FALSE))","v":15},{"$f":"+IFERROR(VLOOKUP(BR$6&\"-\"&$M15&\"_old\",Ammortamento_Finanziario!$H:$L,5,FALSE),VLOOKUP($M15,TT_Tabelle_Riferimento!$H$31:$I$50,2,FALSE))","v":15},{"$f":"+IFERROR(VLOOKUP(BS$6&\"-\"&$M15&\"_old\",Ammortamento_Finanziario!$H:$L,5,FALSE),VLOOKUP($M15,TT_Tabelle_Riferimento!$H$31:$I$50,2,FALSE))","v":15},{"$f":"+IFERROR(VLOOKUP(BT$6&\"-\"&$M15&\"_old\",Ammortamento_Finanziario!$H:$L,5,FALSE),VLOOKUP($M15,TT_Tabelle_Riferimento!$H$31:$I$50,2,FALSE))","v":15},{"$f":"+IFERROR(VLOOKUP(BU$6&\"-\"&$M15&\"_old\",Ammortamento_Finanziario!$H:$L,5,FALSE),VLOOKUP($M15,TT_Tabelle_Riferimento!$H$31:$I$50,2,FALSE))","v":15},{"$f":"+IFERROR(VLOOKUP(BV$6&\"-\"&$M15&\"_old\",Ammortamento_Finanziario!$H:$L,5,FALSE),VLOOKUP($M15,TT_Tabelle_Riferimento!$H$31:$I$50,2,FALSE))","v":15},{"$f":"+IFERROR(VLOOKUP(BW$6&\"-\"&$M15&\"_old\",Ammortamento_Finanziario!$H:$L,5,FALSE),VLOOKUP($M15,TT_Tabelle_Riferimento!$H$31:$I$50,2,FALSE))","v":15},{"$f":"+IFERROR(VLOOKUP(BX$6&\"-\"&$M15&\"_old\",Ammortamento_Finanziario!$H:$L,5,FALSE),VLOOKUP($M15,TT_Tabelle_Riferimento!$H$31:$I$50,2,FALSE))","v":15},{"$f":"+IFERROR(VLOOKUP(BY$6&\"-\"&$M15&\"_old\",Ammortamento_Finanziario!$H:$L,5,FALSE),VLOOKUP($M15,TT_Tabelle_Riferimento!$H$31:$I$50,2,FALSE))","v":15},{"$f":"+IFERROR(VLOOKUP(BZ$6&\"-\"&$M15&\"_old\",Ammortamento_Finanziario!$H:$L,5,FALSE),VLOOKUP($M15,TT_Tabelle_Riferimento!$H$31:$I$50,2,FALSE))","v":15},{"$f":"+IFERROR(VLOOKUP(CA$6&\"-\"&$M15&\"_old\",Ammortamento_Finanziario!$H:$L,5,FALSE),VLOOKUP($M15,TT_Tabelle_Riferimento!$H$31:$I$50,2,FALSE))","v":15},{"$f":"+IFERROR(VLOOKUP(CB$6&\"-\"&$M15&\"_old\",Ammortamento_Finanziario!$H:$L,5,FALSE),VLOOKUP($M15,TT_Tabelle_Riferimento!$H$31:$I$50,2,FALSE))","v":15},{"$f":"+IFERROR(VLOOKUP(CC$6&\"-\"&$M15&\"_old\",Ammortamento_Finanziario!$H:$L,5,FALSE),VLOOKUP($M15,TT_Tabelle_Riferimento!$H$31:$I$50,2,FALSE))","v":15},{"$f":"+IFERROR(VLOOKUP(CD$6&\"-\"&$M15&\"_old\",Ammortamento_Finanziario!$H:$L,5,FALSE),VLOOKUP($M15,TT_Tabelle_Riferimento!$H$31:$I$50,2,FALSE))","v":15},{"$f":"+IFERROR(VLOOKUP(CE$6&\"-\"&$M15&\"_old\",Ammortamento_Finanziario!$H:$L,5,FALSE),VLOOKUP($M15,TT_Tabelle_Riferimento!$H$31:$I$50,2,FALSE))","v":15},{"$f":"+IFERROR(VLOOKUP(CF$6&\"-\"&$M15&\"_old\",Ammortamento_Finanziario!$H:$L,5,FALSE),VLOOKUP($M15,TT_Tabelle_Riferimento!$H$31:$I$50,2,FALSE))","v":15},{"$f":"+IFERROR(VLOOKUP(CG$6&\"-\"&$M15&\"_old\",Ammortamento_Finanziario!$H:$L,5,FALSE),VLOOKUP($M15,TT_Tabelle_Riferimento!$H$31:$I$50,2,FALSE))","v":15},{"$f":"+IFERROR(VLOOKUP(CH$6&\"-\"&$M15&\"_old\",Ammortamento_Finanziario!$H:$L,5,FALSE),VLOOKUP($M15,TT_Tabelle_Riferimento!$H$31:$I$50,2,FALSE))","v":15},{"$f":"+IFERROR(VLOOKUP(CI$6&\"-\"&$M15&\"_old\",Ammortamento_Finanziario!$H:$L,5,FALSE),VLOOKUP($M15,TT_Tabelle_Riferimento!$H$31:$I$50,2,FALSE))","v":15},{"$f":"+IFERROR(VLOOKUP(CJ$6&\"-\"&$M15&\"_old\",Ammortamento_Finanziario!$H:$L,5,FALSE),VLOOKUP($M15,TT_Tabelle_Riferimento!$H$31:$I$50,2,FALSE))","v":15},{"$f":"+IFERROR(VLOOKUP(CK$6&\"-\"&$M15&\"_old\",Ammortamento_Finanziario!$H:$L,5,FALSE),VLOOKUP($M15,TT_Tabelle_Riferimento!$H$31:$I$50,2,FALSE))","v":15},{"$f":"+IFERROR(VLOOKUP(CL$6&\"-\"&$M15&\"_old\",Ammortamento_Finanziario!$H:$L,5,FALSE),VLOOKUP($M15,TT_Tabelle_Riferimento!$H$31:$I$50,2,FALSE))","v":15},{"$f":"+IFERROR(VLOOKUP(CM$6&\"-\"&$M15&\"_old\",Ammortamento_Finanziario!$H:$L,5,FALSE),VLOOKUP($M15,TT_Tabelle_Riferimento!$H$31:$I$50,2,FALSE))","v":15},{"$f":"+IFERROR(VLOOKUP(CN$6&\"-\"&$M15&\"_old\",Ammortamento_Finanziario!$H:$L,5,FALSE),VLOOKUP($M15,TT_Tabelle_Riferimento!$H$31:$I$50,2,FALSE))","v":15},{"$f":"+IFERROR(VLOOKUP(CO$6&\"-\"&$M15&\"_old\",Ammortamento_Finanziario!$H:$L,5,FALSE),VLOOKUP($M15,TT_Tabelle_Riferimento!$H$31:$I$50,2,FALSE))","v":15},{"$f":"+IFERROR(VLOOKUP(CP$6&\"-\"&$M15&\"_old\",Ammortamento_Finanziario!$H:$L,5,FALSE),VLOOKUP($M15,TT_Tabelle_Riferimento!$H$31:$I$50,2,FALSE))","v":15},{"$f":"+IFERROR(VLOOKUP(CQ$6&\"-\"&$M15&\"_old\",Ammortamento_Finanziario!$H:$L,5,FALSE),VLOOKUP($M15,TT_Tabelle_Riferimento!$H$31:$I$50,2,FALSE))","v":15},{"$f":"+IFERROR(VLOOKUP(CR$6&\"-\"&$M15&\"_old\",Ammortamento_Finanziario!$H:$L,5,FALSE),VLOOKUP($M15,TT_Tabelle_Riferimento!$H$31:$I$50,2,FALSE))","v":15},{"$f":"+IFERROR(VLOOKUP(CS$6&\"-\"&$M15&\"_old\",Ammortamento_Finanziario!$H:$L,5,FALSE),VLOOKUP($M15,TT_Tabelle_Riferimento!$H$31:$I$50,2,FALSE))","v":15},{"$f":"+IFERROR(VLOOKUP(CT$6&\"-\"&$M15&\"_old\",Ammortamento_Finanziario!$H:$L,5,FALSE),VLOOKUP($M15,TT_Tabelle_Riferimento!$H$31:$I$50,2,FALSE))","v":15},{"$f":"+IFERROR(VLOOKUP(CU$6&\"-\"&$M15&\"_old\",Ammortamento_Finanziario!$H:$L,5,FALSE),VLOOKUP($M15,TT_Tabelle_Riferimento!$H$31:$I$50,2,FALSE))","v":15},{"$f":"+IFERROR(VLOOKUP(CV$6&\"-\"&$M15&\"_old\",Ammortamento_Finanziario!$H:$L,5,FALSE),VLOOKUP($M15,TT_Tabelle_Riferimento!$H$31:$I$50,2,FALSE))","v":15},{"$f":"+IFERROR(VLOOKUP(CW$6&\"-\"&$M15&\"_old\",Ammortamento_Finanziario!$H:$L,5,FALSE),VLOOKUP($M15,TT_Tabelle_Riferimento!$H$31:$I$50,2,FALSE))","v":15},{"$f":"+IFERROR(VLOOKUP(CX$6&\"-\"&$M15&\"_old\",Ammortamento_Finanziario!$H:$L,5,FALSE),VLOOKUP($M15,TT_Tabelle_Riferimento!$H$31:$I$50,2,FALSE))","v":15},{"$f":"+IFERROR(VLOOKUP(CY$6&\"-\"&$M15&\"_old\",Ammortamento_Finanziario!$H:$L,5,FALSE),VLOOKUP($M15,TT_Tabelle_Riferimento!$H$31:$I$50,2,FALSE))","v":15},{"$f":"+IFERROR(VLOOKUP(CZ$6&\"-\"&$M15&\"_old\",Ammortamento_Finanziario!$H:$L,5,FALSE),VLOOKUP($M15,TT_Tabelle_Riferimento!$H$31:$I$50,2,FALSE))","v":15},{"$f":"+IFERROR(VLOOKUP(DA$6&\"-\"&$M15&\"_old\",Ammortamento_Finanziario!$H:$L,5,FALSE),VLOOKUP($M15,TT_Tabelle_Riferimento!$H$31:$I$50,2,FALSE))","v":15},{"$f":"+IFERROR(VLOOKUP(DB$6&\"-\"&$M15&\"_old\",Ammortamento_Finanziario!$H:$L,5,FALSE),VLOOKUP($M15,TT_Tabelle_Riferimento!$H$31:$I$50,2,FALSE))","v":15},{"$f":"+IFERROR(VLOOKUP(DC$6&\"-\"&$M15&\"_old\",Ammortamento_Finanziario!$H:$L,5,FALSE),VLOOKUP($M15,TT_Tabelle_Riferimento!$H$31:$I$50,2,FALSE))","v":15},{"$f":"+IFERROR(VLOOKUP(DD$6&\"-\"&$M15&\"_old\",Ammortamento_Finanziario!$H:$L,5,FALSE),VLOOKUP($M15,TT_Tabelle_Riferimento!$H$31:$I$50,2,FALSE))","v":15},{"$f":"+IFERROR(VLOOKUP(DE$6&\"-\"&$M15&\"_old\",Ammortamento_Finanziario!$H:$L,5,FALSE),VLOOKUP($M15,TT_Tabelle_Riferimento!$H$31:$I$50,2,FALSE))","v":15},{"$f":"+IFERROR(VLOOKUP(DF$6&\"-\"&$M15&\"_old\",Ammortamento_Finanziario!$H:$L,5,FALSE),VLOOKUP($M15,TT_Tabelle_Riferimento!$H$31:$I$50,2,FALSE))","v":15},{"$f":"+IFERROR(VLOOKUP(DG$6&\"-\"&$M15&\"_old\",Ammortamento_Finanziario!$H:$L,5,FALSE),VLOOKUP($M15,TT_Tabelle_Riferimento!$H$31:$I$50,2,FALSE))","v":15},{"$f":"+IFERROR(VLOOKUP(DH$6&\"-\"&$M15&\"_old\",Ammortamento_Finanziario!$H:$L,5,FALSE),VLOOKUP($M15,TT_Tabelle_Riferimento!$H$31:$I$50,2,FALSE))","v":15},{"$f":"+IFERROR(VLOOKUP(DI$6&\"-\"&$M15&\"_old\",Ammortamento_Finanziario!$H:$L,5,FALSE),VLOOKUP($M15,TT_Tabelle_Riferimento!$H$31:$I$50,2,FALSE))","v":15},{"$f":"+IFERROR(VLOOKUP(DJ$6&\"-\"&$M15&\"_old\",Ammortamento_Finanziario!$H:$L,5,FALSE),VLOOKUP($M15,TT_Tabelle_Riferimento!$H$31:$I$50,2,FALSE))","v":15},{"$f":"+IFERROR(VLOOKUP(DK$6&\"-\"&$M15&\"_old\",Ammortamento_Finanziario!$H:$L,5,FALSE),VLOOKUP($M15,TT_Tabelle_Riferimento!$H$31:$I$50,2,FALSE))","v":15},{"$f":"+IFERROR(VLOOKUP(DL$6&\"-\"&$M15&\"_old\",Ammortamento_Finanziario!$H:$L,5,FALSE),VLOOKUP($M15,TT_Tabelle_Riferimento!$H$31:$I$50,2,FALSE))","v":15},{"$f":"+IFERROR(VLOOKUP(DM$6&\"-\"&$M15&\"_old\",Ammortamento_Finanziario!$H:$L,5,FALSE),VLOOKUP($M15,TT_Tabelle_Riferimento!$H$31:$I$50,2,FALSE))","v":15},{"$f":"+IFERROR(VLOOKUP(DN$6&\"-\"&$M15&\"_old\",Ammortamento_Finanziario!$H:$L,5,FALSE),VLOOKUP($M15,TT_Tabelle_Riferimento!$H$31:$I$50,2,FALSE))","v":15},{"$f":"+IFERROR(VLOOKUP(DO$6&\"-\"&$M15&\"_old\",Ammortamento_Finanziario!$H:$L,5,FALSE),VLOOKUP($M15,TT_Tabelle_Riferimento!$H$31:$I$50,2,FALSE))","v":15},{"$f":"+IFERROR(VLOOKUP(DP$6&\"-\"&$M15&\"_old\",Ammortamento_Finanziario!$H:$L,5,FALSE),VLOOKUP($M15,TT_Tabelle_Riferimento!$H$31:$I$50,2,FALSE))","v":15},{"$f":"+IFERROR(VLOOKUP(DQ$6&\"-\"&$M15&\"_old\",Ammortamento_Finanziario!$H:$L,5,FALSE),VLOOKUP($M15,TT_Tabelle_Riferimento!$H$31:$I$50,2,FALSE))","v":15},{"$f":"+IFERROR(VLOOKUP(DR$6&\"-\"&$M15&\"_old\",Ammortamento_Finanziario!$H:$L,5,FALSE),VLOOKUP($M15,TT_Tabelle_Riferimento!$H$31:$I$50,2,FALSE))","v":15},{"$f":"+IFERROR(VLOOKUP(DS$6&\"-\"&$M15&\"_old\",Ammortamento_Finanziario!$H:$L,5,FALSE),VLOOKUP($M15,TT_Tabelle_Riferimento!$H$31:$I$50,2,FALSE))","v":15},{"$f":"+IFERROR(VLOOKUP(DT$6&\"-\"&$M15&\"_old\",Ammortamento_Finanziario!$H:$L,5,FALSE),VLOOKUP($M15,TT_Tabelle_Riferimento!$H$31:$I$50,2,FALSE))","v":15},{"$f":"+IFERROR(VLOOKUP(DU$6&\"-\"&$M15&\"_old\",Ammortamento_Finanziario!$H:$L,5,FALSE),VLOOKUP($M15,TT_Tabelle_Riferimento!$H$31:$I$50,2,FALSE))","v":15},{"$f":"+IFERROR(VLOOKUP(DV$6&\"-\"&$M15&\"_old\",Ammortamento_Finanziario!$H:$L,5,FALSE),VLOOKUP($M15,TT_Tabelle_Riferimento!$H$31:$I$50,2,FALSE))","v":15},{"$f":"+IFERROR(VLOOKUP(DW$6&\"-\"&$M15&\"_old\",Ammortamento_Finanziario!$H:$L,5,FALSE),VLOOKUP($M15,TT_Tabelle_Riferimento!$H$31:$I$50,2,FALSE))","v":15},{"$f":"+IFERROR(VLOOKUP(DX$6&\"-\"&$M15&\"_old\",Ammortamento_Finanziario!$H:$L,5,FALSE),VLOOKUP($M15,TT_Tabelle_Riferimento!$H$31:$I$50,2,FALSE))","v":15},{"$f":"+IFERROR(VLOOKUP(DY$6&\"-\"&$M15&\"_old\",Ammortamento_Finanziario!$H:$L,5,FALSE),VLOOKUP($M15,TT_Tabelle_Riferimento!$H$31:$I$50,2,FALSE))","v":15},{"$f":"+IFERROR(VLOOKUP(DZ$6&\"-\"&$M15&\"_old\",Ammortamento_Finanziario!$H:$L,5,FALSE),VLOOKUP($M15,TT_Tabelle_Riferimento!$H$31:$I$50,2,FALSE))","v":15},{"$f":"+IFERROR(VLOOKUP(EA$6&\"-\"&$M15&\"_old\",Ammortamento_Finanziario!$H:$L,5,FALSE),VLOOKUP($M15,TT_Tabelle_Riferimento!$H$31:$I$50,2,FALSE))","v":15},{"$f":"+IFERROR(VLOOKUP(EB$6&\"-\"&$M15&\"_old\",Ammortamento_Finanziario!$H:$L,5,FALSE),VLOOKUP($M15,TT_Tabelle_Riferimento!$H$31:$I$50,2,FALSE))","v":15},{"$f":"+IFERROR(VLOOKUP(EC$6&\"-\"&$M15&\"_old\",Ammortamento_Finanziario!$H:$L,5,FALSE),VLOOKUP($M15,TT_Tabelle_Riferimento!$H$31:$I$50,2,FALSE))","v":15},{"$f":"+IFERROR(VLOOKUP(ED$6&\"-\"&$M15&\"_old\",Ammortamento_Finanziario!$H:$L,5,FALSE),VLOOKUP($M15,TT_Tabelle_Riferimento!$H$31:$I$50,2,FALSE))","v":15},{"$f":"+IFERROR(VLOOKUP(EE$6&\"-\"&$M15&\"_old\",Ammortamento_Finanziario!$H:$L,5,FALSE),VLOOKUP($M15,TT_Tabelle_Riferimento!$H$31:$I$50,2,FALSE))","v":15},{"$f":"+IFERROR(VLOOKUP(EF$6&\"-\"&$M15&\"_old\",Ammortamento_Finanziario!$H:$L,5,FALSE),VLOOKUP($M15,TT_Tabelle_Riferimento!$H$31:$I$50,2,FALSE))","v":15},{"$f":"+IFERROR(VLOOKUP(EG$6&\"-\"&$M15&\"_old\",Ammortamento_Finanziario!$H:$L,5,FALSE),VLOOKUP($M15,TT_Tabelle_Riferimento!$H$31:$I$50,2,FALSE))","v":15},{"$f":"+IFERROR(VLOOKUP(EH$6&\"-\"&$M15&\"_old\",Ammortamento_Finanziario!$H:$L,5,FALSE),VLOOKUP($M15,TT_Tabelle_Riferimento!$H$31:$I$50,2,FALSE))","v":15},{"$f":"+IFERROR(VLOOKUP(EI$6&\"-\"&$M15&\"_old\",Ammortamento_Finanziario!$H:$L,5,FALSE),VLOOKUP($M15,TT_Tabelle_Riferimento!$H$31:$I$50,2,FALSE))","v":15},{"$f":"+IFERROR(VLOOKUP(EJ$6&\"-\"&$M15&\"_old\",Ammortamento_Finanziario!$H:$L,5,FALSE),VLOOKUP($M15,TT_Tabelle_Riferimento!$H$31:$I$50,2,FALSE))","v":15},{"$f":"+IFERROR(VLOOKUP(EK$6&\"-\"&$M15&\"_old\",Ammortamento_Finanziario!$H:$L,5,FALSE),VLOOKUP($M15,TT_Tabelle_Riferimento!$H$31:$I$50,2,FALSE))","v":15},{"$f":"+IFERROR(VLOOKUP(EL$6&\"-\"&$M15&\"_old\",Ammortamento_Finanziario!$H:$L,5,FALSE),VLOOKUP($M15,TT_Tabelle_Riferimento!$H$31:$I$50,2,FALSE))","v":15},{"$f":"+IFERROR(VLOOKUP(EM$6&\"-\"&$M15&\"_old\",Ammortamento_Finanziario!$H:$L,5,FALSE),VLOOKUP($M15,TT_Tabelle_Riferimento!$H$31:$I$50,2,FALSE))","v":15},{"$f":"+IFERROR(VLOOKUP(EN$6&\"-\"&$M15&\"_old\",Ammortamento_Finanziario!$H:$L,5,FALSE),VLOOKUP($M15,TT_Tabelle_Riferimento!$H$31:$I$50,2,FALSE))","v":15},{"$f":"+IFERROR(VLOOKUP(EO$6&\"-\"&$M15&\"_old\",Ammortamento_Finanziario!$H:$L,5,FALSE),VLOOKUP($M15,TT_Tabelle_Riferimento!$H$31:$I$50,2,FALSE))","v":15},{"$f":"+IFERROR(VLOOKUP(EP$6&\"-\"&$M15&\"_old\",Ammortamento_Finanziario!$H:$L,5,FALSE),VLOOKUP($M15,TT_Tabelle_Riferimento!$H$31:$I$50,2,FALSE))","v":15},{"$f":"+IFERROR(VLOOKUP(EQ$6&\"-\"&$M15&\"_old\",Ammortamento_Finanziario!$H:$L,5,FALSE),VLOOKUP($M15,TT_Tabelle_Riferimento!$H$31:$I$50,2,FALSE))","v":15},{"$f":"+IFERROR(VLOOKUP(ER$6&\"-\"&$M15&\"_old\",Ammortamento_Finanziario!$H:$L,5,FALSE),VLOOKUP($M15,TT_Tabelle_Riferimento!$H$31:$I$50,2,FALSE))","v":15},{"$f":"+IFERROR(VLOOKUP(ES$6&\"-\"&$M15&\"_old\",Ammortamento_Finanziario!$H:$L,5,FALSE),VLOOKUP($M15,TT_Tabelle_Riferimento!$H$31:$I$50,2,FALSE))","v":15},{"$f":"+IFERROR(VLOOKUP(ET$6&\"-\"&$M15&\"_old\",Ammortamento_Finanziario!$H:$L,5,FALSE),VLOOKUP($M15,TT_Tabelle_Riferimento!$H$31:$I$50,2,FALSE))","v":15},{"$f":"+IFERROR(VLOOKUP(EU$6&\"-\"&$M15&\"_old\",Ammortamento_Finanziario!$H:$L,5,FALSE),VLOOKUP($M15,TT_Tabelle_Riferimento!$H$31:$I$50,2,FALSE))","v":15},{"$f":"+IFERROR(VLOOKUP(EV$6&\"-\"&$M15&\"_old\",Ammortamento_Finanziario!$H:$L,5,FALSE),VLOOKUP($M15,TT_Tabelle_Riferimento!$H$31:$I$50,2,FALSE))","v":15},{"$f":"+IFERROR(VLOOKUP(EW$6&\"-\"&$M15&\"_old\",Ammortamento_Finanziario!$H:$L,5,FALSE),VLOOKUP($M15,TT_Tabelle_Riferimento!$H$31:$I$50,2,FALSE))","v":15},{"$f":"+IFERROR(VLOOKUP(EX$6&\"-\"&$M15&\"_old\",Ammortamento_Finanziario!$H:$L,5,FALSE),VLOOKUP($M15,TT_Tabelle_Riferimento!$H$31:$I$50,2,FALSE))","v":15},{"$f":"+IFERROR(VLOOKUP(EY$6&\"-\"&$M15&\"_old\",Ammortamento_Finanziario!$H:$L,5,FALSE),VLOOKUP($M15,TT_Tabelle_Riferimento!$H$31:$I$50,2,FALSE))","v":15},{"$f":"+IFERROR(VLOOKUP(EZ$6&\"-\"&$M15&\"_old\",Ammortamento_Finanziario!$H:$L,5,FALSE),VLOOKUP($M15,TT_Tabelle_Riferimento!$H$31:$I$50,2,FALSE))","v":15},{"$f":"+IFERROR(VLOOKUP(FA$6&\"-\"&$M15&\"_old\",Ammortamento_Finanziario!$H:$L,5,FALSE),VLOOKUP($M15,TT_Tabelle_Riferimento!$H$31:$I$50,2,FALSE))","v":15},{"$f":"+IFERROR(VLOOKUP(FB$6&\"-\"&$M15&\"_old\",Ammortamento_Finanziario!$H:$L,5,FALSE),VLOOKUP($M15,TT_Tabelle_Riferimento!$H$31:$I$50,2,FALSE))","v":15},{"$f":"+IFERROR(VLOOKUP(FC$6&\"-\"&$M15&\"_old\",Ammortamento_Finanziario!$H:$L,5,FALSE),VLOOKUP($M15,TT_Tabelle_Riferimento!$H$31:$I$50,2,FALSE))","v":15},{"$f":"+IFERROR(VLOOKUP(FD$6&\"-\"&$M15&\"_old\",Ammortamento_Finanziario!$H:$L,5,FALSE),VLOOKUP($M15,TT_Tabelle_Riferimento!$H$31:$I$50,2,FALSE))","v":15},{"$f":"+IFERROR(VLOOKUP(FE$6&\"-\"&$M15&\"_old\",Ammortamento_Finanziario!$H:$L,5,FALSE),VLOOKUP($M15,TT_Tabelle_Riferimento!$H$31:$I$50,2,FALSE))","v":15},{"$f":"+IFERROR(VLOOKUP(FF$6&\"-\"&$M15&\"_old\",Ammortamento_Finanziario!$H:$L,5,FALSE),VLOOKUP($M15,TT_Tabelle_Riferimento!$H$31:$I$50,2,FALSE))","v":15},{"$f":"+IFERROR(VLOOKUP(FG$6&\"-\"&$M15&\"_old\",Ammortamento_Finanziario!$H:$L,5,FALSE),VLOOKUP($M15,TT_Tabelle_Riferimento!$H$31:$I$50,2,FALSE))","v":15},{"$f":"+IFERROR(VLOOKUP(FH$6&\"-\"&$M15&\"_old\",Ammortamento_Finanziario!$H:$L,5,FALSE),VLOOKUP($M15,TT_Tabelle_Riferimento!$H$31:$I$50,2,FALSE))","v":15},{"$f":"+IFERROR(VLOOKUP(FI$6&\"-\"&$M15&\"_old\",Ammortamento_Finanziario!$H:$L,5,FALSE),VLOOKUP($M15,TT_Tabelle_Riferimento!$H$31:$I$50,2,FALSE))","v":15},{"$f":"+IFERROR(VLOOKUP(FJ$6&\"-\"&$M15&\"_old\",Ammortamento_Finanziario!$H:$L,5,FALSE),VLOOKUP($M15,TT_Tabelle_Riferimento!$H$31:$I$50,2,FALSE))","v":15},{"$f":"+IFERROR(VLOOKUP(FK$6&\"-\"&$M15&\"_old\",Ammortamento_Finanziario!$H:$L,5,FALSE),VLOOKUP($M15,TT_Tabelle_Riferimento!$H$31:$I$50,2,FALSE))","v":15},{"$f":"+IFERROR(VLOOKUP(FL$6&\"-\"&$M15&\"_old\",Ammortamento_Finanziario!$H:$L,5,FALSE),VLOOKUP($M15,TT_Tabelle_Riferimento!$H$31:$I$50,2,FALSE))","v":15},{"$f":"+IFERROR(VLOOKUP(FM$6&\"-\"&$M15&\"_old\",Ammortamento_Finanziario!$H:$L,5,FALSE),VLOOKUP($M15,TT_Tabelle_Riferimento!$H$31:$I$50,2,FALSE))","v":15},{"$f":"+IFERROR(VLOOKUP(FN$6&\"-\"&$M15&\"_old\",Ammortamento_Finanziario!$H:$L,5,FALSE),VLOOKUP($M15,TT_Tabelle_Riferimento!$H$31:$I$50,2,FALSE))","v":15},{"$f":"+IFERROR(VLOOKUP(FO$6&\"-\"&$M15&\"_old\",Ammortamento_Finanziario!$H:$L,5,FALSE),VLOOKUP($M15,TT_Tabelle_Riferimento!$H$31:$I$50,2,FALSE))","v":15},{"$f":"+IFERROR(VLOOKUP(FP$6&\"-\"&$M15&\"_old\",Ammortamento_Finanziario!$H:$L,5,FALSE),VLOOKUP($M15,TT_Tabelle_Riferimento!$H$31:$I$50,2,FALSE))","v":15},{"$f":"+IFERROR(VLOOKUP(FQ$6&\"-\"&$M15&\"_old\",Ammortamento_Finanziario!$H:$L,5,FALSE),VLOOKUP($M15,TT_Tabelle_Riferimento!$H$31:$I$50,2,FALSE))","v":15},{"$f":"+IFERROR(VLOOKUP(FR$6&\"-\"&$M15&\"_old\",Ammortamento_Finanziario!$H:$L,5,FALSE),VLOOKUP($M15,TT_Tabelle_Riferimento!$H$31:$I$50,2,FALSE))","v":15},{"$f":"+IFERROR(VLOOKUP(FS$6&\"-\"&$M15&\"_old\",Ammortamento_Finanziario!$H:$L,5,FALSE),VLOOKUP($M15,TT_Tabelle_Riferimento!$H$31:$I$50,2,FALSE))","v":15},{"$f":"+IFERROR(VLOOKUP(FT$6&\"-\"&$M15&\"_old\",Ammortamento_Finanziario!$H:$L,5,FALSE),VLOOKUP($M15,TT_Tabelle_Riferimento!$H$31:$I$50,2,FALSE))","v":15},{"$f":"+IFERROR(VLOOKUP(FU$6&\"-\"&$M15&\"_old\",Ammortamento_Finanziario!$H:$L,5,FALSE),VLOOKUP($M15,TT_Tabelle_Riferimento!$H$31:$I$50,2,FALSE))","v":15},{"$f":"+IFERROR(VLOOKUP(FV$6&\"-\"&$M15&\"_old\",Ammortamento_Finanziario!$H:$L,5,FALSE),VLOOKUP($M15,TT_Tabelle_Riferimento!$H$31:$I$50,2,FALSE))","v":15},{"$f":"+IFERROR(VLOOKUP(FW$6&\"-\"&$M15&\"_old\",Ammortamento_Finanziario!$H:$L,5,FALSE),VLOOKUP($M15,TT_Tabelle_Riferimento!$H$31:$I$50,2,FALSE))","v":15},{"$f":"+IFERROR(VLOOKUP(FX$6&\"-\"&$M15&\"_old\",Ammortamento_Finanziario!$H:$L,5,FALSE),VLOOKUP($M15,TT_Tabelle_Riferimento!$H$31:$I$50,2,FALSE))","v":15},{"$f":"+IFERROR(VLOOKUP(FY$6&\"-\"&$M15&\"_old\",Ammortamento_Finanziario!$H:$L,5,FALSE),VLOOKUP($M15,TT_Tabelle_Riferimento!$H$31:$I$50,2,FALSE))","v":15},{"$f":"+IFERROR(VLOOKUP(FZ$6&\"-\"&$M15&\"_old\",Ammortamento_Finanziario!$H:$L,5,FALSE),VLOOKUP($M15,TT_Tabelle_Riferimento!$H$31:$I$50,2,FALSE))","v":15},{"$f":"+IFERROR(VLOOKUP(GA$6&\"-\"&$M15&\"_old\",Ammortamento_Finanziario!$H:$L,5,FALSE),VLOOKUP($M15,TT_Tabelle_Riferimento!$H$31:$I$50,2,FALSE))","v":15},{"$f":"+IFERROR(VLOOKUP(GB$6&\"-\"&$M15&\"_old\",Ammortamento_Finanziario!$H:$L,5,FALSE),VLOOKUP($M15,TT_Tabelle_Riferimento!$H$31:$I$50,2,FALSE))","v":15},{"$f":"+IFERROR(VLOOKUP(GC$6&\"-\"&$M15&\"_old\",Ammortamento_Finanziario!$H:$L,5,FALSE),VLOOKUP($M15,TT_Tabelle_Riferimento!$H$31:$I$50,2,FALSE))","v":15},{"$f":"+IFERROR(VLOOKUP(GD$6&\"-\"&$M15&\"_old\",Ammortamento_Finanziario!$H:$L,5,FALSE),VLOOKUP($M15,TT_Tabelle_Riferimento!$H$31:$I$50,2,FALSE))","v":15},{"$f":"+IFERROR(VLOOKUP(GE$6&\"-\"&$M15&\"_old\",Ammortamento_Finanziario!$H:$L,5,FALSE),VLOOKUP($M15,TT_Tabelle_Riferimento!$H$31:$I$50,2,FALSE))","v":15},{"$f":"+IFERROR(VLOOKUP(GF$6&\"-\"&$M15&\"_old\",Ammortamento_Finanziario!$H:$L,5,FALSE),VLOOKUP($M15,TT_Tabelle_Riferimento!$H$31:$I$50,2,FALSE))","v":15},{"$f":"+IFERROR(VLOOKUP(GG$6&\"-\"&$M15&\"_old\",Ammortamento_Finanziario!$H:$L,5,FALSE),VLOOKUP($M15,TT_Tabelle_Riferimento!$H$31:$I$50,2,FALSE))","v":15},{"$f":"+IFERROR(VLOOKUP(GH$6&\"-\"&$M15&\"_old\",Ammortamento_Finanziario!$H:$L,5,FALSE),VLOOKUP($M15,TT_Tabelle_Riferimento!$H$31:$I$50,2,FALSE))","v":15},{"$f":"+IFERROR(VLOOKUP(GI$6&\"-\"&$M15&\"_old\",Ammortamento_Finanziario!$H:$L,5,FALSE),VLOOKUP($M15,TT_Tabelle_Riferimento!$H$31:$I$50,2,FALSE))","v":15},{"$f":"+IFERROR(VLOOKUP(GJ$6&\"-\"&$M15&\"_old\",Ammortamento_Finanziario!$H:$L,5,FALSE),VLOOKUP($M15,TT_Tabelle_Riferimento!$H$31:$I$50,2,FALSE))","v":15},{"$f":"+IFERROR(VLOOKUP(GK$6&\"-\"&$M15&\"_old\",Ammortamento_Finanziario!$H:$L,5,FALSE),VLOOKUP($M15,TT_Tabelle_Riferimento!$H$31:$I$50,2,FALSE))","v":15},{"$f":"+IFERROR(VLOOKUP(GL$6&\"-\"&$M15&\"_old\",Ammortamento_Finanziario!$H:$L,5,FALSE),VLOOKUP($M15,TT_Tabelle_Riferimento!$H$31:$I$50,2,FALSE))","v":15},{"$f":"+IFERROR(VLOOKUP(GM$6&\"-\"&$M15&\"_old\",Ammortamento_Finanziario!$H:$L,5,FALSE),VLOOKUP($M15,TT_Tabelle_Riferimento!$H$31:$I$50,2,FALSE))","v":15},{"$f":"+IFERROR(VLOOKUP(GN$6&\"-\"&$M15&\"_old\",Ammortamento_Finanziario!$H:$L,5,FALSE),VLOOKUP($M15,TT_Tabelle_Riferimento!$H$31:$I$50,2,FALSE))","v":15},{"$f":"+IFERROR(VLOOKUP(GO$6&\"-\"&$M15&\"_old\",Ammortamento_Finanziario!$H:$L,5,FALSE),VLOOKUP($M15,TT_Tabelle_Riferimento!$H$31:$I$50,2,FALSE))","v":15},{"$f":"+IFERROR(VLOOKUP(GP$6&\"-\"&$M15&\"_old\",Ammortamento_Finanziario!$H:$L,5,FALSE),VLOOKUP($M15,TT_Tabelle_Riferimento!$H$31:$I$50,2,FALSE))","v":15},{"$f":"+IFERROR(VLOOKUP(GQ$6&\"-\"&$M15&\"_old\",Ammortamento_Finanziario!$H:$L,5,FALSE),VLOOKUP($M15,TT_Tabelle_Riferimento!$H$31:$I$50,2,FALSE))","v":15},{"$f":"+IFERROR(VLOOKUP(GR$6&\"-\"&$M15&\"_old\",Ammortamento_Finanziario!$H:$L,5,FALSE),VLOOKUP($M15,TT_Tabelle_Riferimento!$H$31:$I$50,2,FALSE))","v":15},{"$f":"+IFERROR(VLOOKUP(GS$6&\"-\"&$M15&\"_old\",Ammortamento_Finanziario!$H:$L,5,FALSE),VLOOKUP($M15,TT_Tabelle_Riferimento!$H$31:$I$50,2,FALSE))","v":15},{"$f":"+IFERROR(VLOOKUP(GT$6&\"-\"&$M15&\"_old\",Ammortamento_Finanziario!$H:$L,5,FALSE),VLOOKUP($M15,TT_Tabelle_Riferimento!$H$31:$I$50,2,FALSE))","v":15},{"$f":"+IFERROR(VLOOKUP(GU$6&\"-\"&$M15&\"_old\",Ammortamento_Finanziario!$H:$L,5,FALSE),VLOOKUP($M15,TT_Tabelle_Riferimento!$H$31:$I$50,2,FALSE))","v":15},{"$f":"+IFERROR(VLOOKUP(GV$6&\"-\"&$M15&\"_old\",Ammortamento_Finanziario!$H:$L,5,FALSE),VLOOKUP($M15,TT_Tabelle_Riferimento!$H$31:$I$50,2,FALSE))","v":15},{"$f":"+IFERROR(VLOOKUP(GW$6&\"-\"&$M15&\"_old\",Ammortamento_Finanziario!$H:$L,5,FALSE),VLOOKUP($M15,TT_Tabelle_Riferimento!$H$31:$I$50,2,FALSE))","v":15},{"$f":"+IFERROR(VLOOKUP(GX$6&\"-\"&$M15&\"_old\",Ammortamento_Finanziario!$H:$L,5,FALSE),VLOOKUP($M15,TT_Tabelle_Riferimento!$H$31:$I$50,2,FALSE))","v":15},{"$f":"+IFERROR(VLOOKUP(GY$6&\"-\"&$M15&\"_old\",Ammortamento_Finanziario!$H:$L,5,FALSE),VLOOKUP($M15,TT_Tabelle_Riferimento!$H$31:$I$50,2,FALSE))","v":15},{"$f":"+IFERROR(VLOOKUP(GZ$6&\"-\"&$M15&\"_old\",Ammortamento_Finanziario!$H:$L,5,FALSE),VLOOKUP($M15,TT_Tabelle_Riferimento!$H$31:$I$50,2,FALSE))","v":15},{"$f":"+IFERROR(VLOOKUP(HA$6&\"-\"&$M15&\"_old\",Ammortamento_Finanziario!$H:$L,5,FALSE),VLOOKUP($M15,TT_Tabelle_Riferimento!$H$31:$I$50,2,FALSE))","v":15},{"$f":"+IFERROR(VLOOKUP(HB$6&\"-\"&$M15&\"_old\",Ammortamento_Finanziario!$H:$L,5,FALSE),VLOOKUP($M15,TT_Tabelle_Riferimento!$H$31:$I$50,2,FALSE))","v":15},{"$f":"+IFERROR(VLOOKUP(HC$6&\"-\"&$M15&\"_old\",Ammortamento_Finanziario!$H:$L,5,FALSE),VLOOKUP($M15,TT_Tabelle_Riferimento!$H$31:$I$50,2,FALSE))","v":15},{"$f":"+IFERROR(VLOOKUP(HD$6&\"-\"&$M15&\"_old\",Ammortamento_Finanziario!$H:$L,5,FALSE),VLOOKUP($M15,TT_Tabelle_Riferimento!$H$31:$I$50,2,FALSE))","v":15},{"$f":"+IFERROR(VLOOKUP(HE$6&\"-\"&$M15&\"_old\",Ammortamento_Finanziario!$H:$L,5,FALSE),VLOOKUP($M15,TT_Tabelle_Riferimento!$H$31:$I$50,2,FALSE))","v":15},{"$f":"+IFERROR(VLOOKUP(HF$6&\"-\"&$M15&\"_old\",Ammortamento_Finanziario!$H:$L,5,FALSE),VLOOKUP($M15,TT_Tabelle_Riferimento!$H$31:$I$50,2,FALSE))","v":15},{"$f":"+IFERROR(VLOOKUP(HG$6&\"-\"&$M15&\"_old\",Ammortamento_Finanziario!$H:$L,5,FALSE),VLOOKUP($M15,TT_Tabelle_Riferimento!$H$31:$I$50,2,FALSE))","v":15},{"$f":"+IFERROR(VLOOKUP(HH$6&\"-\"&$M15&\"_old\",Ammortamento_Finanziario!$H:$L,5,FALSE),VLOOKUP($M15,TT_Tabelle_Riferimento!$H$31:$I$50,2,FALSE))","v":15},{"$f":"+IFERROR(VLOOKUP(HI$6&\"-\"&$M15&\"_old\",Ammortamento_Finanziario!$H:$L,5,FALSE),VLOOKUP($M15,TT_Tabelle_Riferimento!$H$31:$I$50,2,FALSE))","v":15},{"$f":"+IFERROR(VLOOKUP(HJ$6&\"-\"&$M15&\"_old\",Ammortamento_Finanziario!$H:$L,5,FALSE),VLOOKUP($M15,TT_Tabelle_Riferimento!$H$31:$I$50,2,FALSE))","v":15},{"$f":"+IFERROR(VLOOKUP(HK$6&\"-\"&$M15&\"_old\",Ammortamento_Finanziario!$H:$L,5,FALSE),VLOOKUP($M15,TT_Tabelle_Riferimento!$H$31:$I$50,2,FALSE))","v":15},{"$f":"+IFERROR(VLOOKUP(HL$6&\"-\"&$M15&\"_old\",Ammortamento_Finanziario!$H:$L,5,FALSE),VLOOKUP($M15,TT_Tabelle_Riferimento!$H$31:$I$50,2,FALSE))","v":15},{"$f":"+IFERROR(VLOOKUP(HM$6&\"-\"&$M15&\"_old\",Ammortamento_Finanziario!$H:$L,5,FALSE),VLOOKUP($M15,TT_Tabelle_Riferimento!$H$31:$I$50,2,FALSE))","v":15},{"$f":"+IFERROR(VLOOKUP(HN$6&\"-\"&$M15&\"_old\",Ammortamento_Finanziario!$H:$L,5,FALSE),VLOOKUP($M15,TT_Tabelle_Riferimento!$H$31:$I$50,2,FALSE))","v":15},{"$f":"+IFERROR(VLOOKUP(HO$6&\"-\"&$M15&\"_old\",Ammortamento_Finanziario!$H:$L,5,FALSE),VLOOKUP($M15,TT_Tabelle_Riferimento!$H$31:$I$50,2,FALSE))","v":15},{"$f":"+IFERROR(VLOOKUP(HP$6&\"-\"&$M15&\"_old\",Ammortamento_Finanziario!$H:$L,5,FALSE),VLOOKUP($M15,TT_Tabelle_Riferimento!$H$31:$I$50,2,FALSE))","v":15},{"$f":"+IFERROR(VLOOKUP(HQ$6&\"-\"&$M15&\"_old\",Ammortamento_Finanziario!$H:$L,5,FALSE),VLOOKUP($M15,TT_Tabelle_Riferimento!$H$31:$I$50,2,FALSE))","v":15},{"$f":"+IFERROR(VLOOKUP(HR$6&\"-\"&$M15&\"_old\",Ammortamento_Finanziario!$H:$L,5,FALSE),VLOOKUP($M15,TT_Tabelle_Riferimento!$H$31:$I$50,2,FALSE))","v":15},{"$f":"+IFERROR(VLOOKUP(HS$6&\"-\"&$M15&\"_old\",Ammortamento_Finanziario!$H:$L,5,FALSE),VLOOKUP($M15,TT_Tabelle_Riferimento!$H$31:$I$50,2,FALSE))","v":15},{"$f":"+IFERROR(VLOOKUP(HT$6&\"-\"&$M15&\"_old\",Ammortamento_Finanziario!$H:$L,5,FALSE),VLOOKUP($M15,TT_Tabelle_Riferimento!$H$31:$I$50,2,FALSE))","v":15},{"$f":"+IFERROR(VLOOKUP(HU$6&\"-\"&$M15&\"_old\",Ammortamento_Finanziario!$H:$L,5,FALSE),VLOOKUP($M15,TT_Tabelle_Riferimento!$H$31:$I$50,2,FALSE))","v":15},{"$f":"+IFERROR(VLOOKUP(HV$6&\"-\"&$M15&\"_old\",Ammortamento_Finanziario!$H:$L,5,FALSE),VLOOKUP($M15,TT_Tabelle_Riferimento!$H$31:$I$50,2,FALSE))","v":15},{"$f":"+IFERROR(VLOOKUP(HW$6&\"-\"&$M15&\"_old\",Ammortamento_Finanziario!$H:$L,5,FALSE),VLOOKUP($M15,TT_Tabelle_Riferimento!$H$31:$I$50,2,FALSE))","v":15},{"$f":"+IFERROR(VLOOKUP(HX$6&\"-\"&$M15&\"_old\",Ammortamento_Finanziario!$H:$L,5,FALSE),VLOOKUP($M15,TT_Tabelle_Riferimento!$H$31:$I$50,2,FALSE))","v":15},{"$f":"+IFERROR(VLOOKUP(HY$6&\"-\"&$M15&\"_old\",Ammortamento_Finanziario!$H:$L,5,FALSE),VLOOKUP($M15,TT_Tabelle_Riferimento!$H$31:$I$50,2,FALSE))","v":15},{"$f":"+IFERROR(VLOOKUP(HZ$6&\"-\"&$M15&\"_old\",Ammortamento_Finanziario!$H:$L,5,FALSE),VLOOKUP($M15,TT_Tabelle_Riferimento!$H$31:$I$50,2,FALSE))","v":15},{"$f":"+IFERROR(VLOOKUP(IA$6&\"-\"&$M15&\"_old\",Ammortamento_Finanziario!$H:$L,5,FALSE),VLOOKUP($M15,TT_Tabelle_Riferimento!$H$31:$I$50,2,FALSE))","v":15},{"$f":"+IFERROR(VLOOKUP(IB$6&\"-\"&$M15&\"_old\",Ammortamento_Finanziario!$H:$L,5,FALSE),VLOOKUP($M15,TT_Tabelle_Riferimento!$H$31:$I$50,2,FALSE))","v":15},{"$f":"+IFERROR(VLOOKUP(IC$6&\"-\"&$M15&\"_old\",Ammortamento_Finanziario!$H:$L,5,FALSE),VLOOKUP($M15,TT_Tabelle_Riferimento!$H$31:$I$50,2,FALSE))","v":15},{"$f":"+IFERROR(VLOOKUP(ID$6&\"-\"&$M15&\"_old\",Ammortamento_Finanziario!$H:$L,5,FALSE),VLOOKUP($M15,TT_Tabelle_Riferimento!$H$31:$I$50,2,FALSE))","v":15},{"$f":"+IFERROR(VLOOKUP(IE$6&\"-\"&$M15&\"_old\",Ammortamento_Finanziario!$H:$L,5,FALSE),VLOOKUP($M15,TT_Tabelle_Riferimento!$H$31:$I$50,2,FALSE))","v":15},{"$f":"+IFERROR(VLOOKUP(IF$6&\"-\"&$M15&\"_old\",Ammortamento_Finanziario!$H:$L,5,FALSE),VLOOKUP($M15,TT_Tabelle_Riferimento!$H$31:$I$50,2,FALSE))","v":15},{"$f":"+IFERROR(VLOOKUP(IG$6&\"-\"&$M15&\"_old\",Ammortamento_Finanziario!$H:$L,5,FALSE),VLOOKUP($M15,TT_Tabelle_Riferimento!$H$31:$I$50,2,FALSE))","v":15},{"$f":"+IFERROR(VLOOKUP(IH$6&\"-\"&$M15&\"_old\",Ammortamento_Finanziario!$H:$L,5,FALSE),VLOOKUP($M15,TT_Tabelle_Riferimento!$H$31:$I$50,2,FALSE))","v":15},{"$f":"+IFERROR(VLOOKUP(II$6&\"-\"&$M15&\"_old\",Ammortamento_Finanziario!$H:$L,5,FALSE),VLOOKUP($M15,TT_Tabelle_Riferimento!$H$31:$I$50,2,FALSE))","v":15},{"$f":"+IFERROR(VLOOKUP(IJ$6&\"-\"&$M15&\"_old\",Ammortamento_Finanziario!$H:$L,5,FALSE),VLOOKUP($M15,TT_Tabelle_Riferimento!$H$31:$I$50,2,FALSE))","v":15},{"$f":"+IFERROR(VLOOKUP(IK$6&\"-\"&$M15&\"_old\",Ammortamento_Finanziario!$H:$L,5,FALSE),VLOOKUP($M15,TT_Tabelle_Riferimento!$H$31:$I$50,2,FALSE))","v":15},{"$f":"+IFERROR(VLOOKUP(IL$6&\"-\"&$M15&\"_old\",Ammortamento_Finanziario!$H:$L,5,FALSE),VLOOKUP($M15,TT_Tabelle_Riferimento!$H$31:$I$50,2,FALSE))","v":15},{"$f":"+IFERROR(VLOOKUP(IM$6&\"-\"&$M15&\"_old\",Ammortamento_Finanziario!$H:$L,5,FALSE),VLOOKUP($M15,TT_Tabelle_Riferimento!$H$31:$I$50,2,FALSE))","v":15},{"$f":"+IFERROR(VLOOKUP(IN$6&\"-\"&$M15&\"_old\",Ammortamento_Finanziario!$H:$L,5,FALSE),VLOOKUP($M15,TT_Tabelle_Riferimento!$H$31:$I$50,2,FALSE))","v":15},{"$f":"+IFERROR(VLOOKUP(IO$6&\"-\"&$M15&\"_old\",Ammortamento_Finanziario!$H:$L,5,FALSE),VLOOKUP($M15,TT_Tabelle_Riferimento!$H$31:$I$50,2,FALSE))","v":15},{"$f":"+IFERROR(VLOOKUP(IP$6&\"-\"&$M15&\"_old\",Ammortamento_Finanziario!$H:$L,5,FALSE),VLOOKUP($M15,TT_Tabelle_Riferimento!$H$31:$I$50,2,FALSE))","v":15},{"$f":"+IFERROR(VLOOKUP(IQ$6&\"-\"&$M15&\"_old\",Ammortamento_Finanziario!$H:$L,5,FALSE),VLOOKUP($M15,TT_Tabelle_Riferimento!$H$31:$I$50,2,FALSE))","v":15},{"$f":"+IFERROR(VLOOKUP(IR$6&\"-\"&$M15&\"_old\",Ammortamento_Finanziario!$H:$L,5,FALSE),VLOOKUP($M15,TT_Tabelle_Riferimento!$H$31:$I$50,2,FALSE))","v":15},{"$f":"+IFERROR(VLOOKUP(IS$6&\"-\"&$M15&\"_old\",Ammortamento_Finanziario!$H:$L,5,FALSE),VLOOKUP($M15,TT_Tabelle_Riferimento!$H$31:$I$50,2,FALSE))","v":15},{"$f":"+IFERROR(VLOOKUP(IT$6&\"-\"&$M15&\"_old\",Ammortamento_Finanziario!$H:$L,5,FALSE),VLOOKUP($M15,TT_Tabelle_Riferimento!$H$31:$I$50,2,FALSE))","v":15},{"$f":"+IFERROR(VLOOKUP(IU$6&\"-\"&$M15&\"_old\",Ammortamento_Finanziario!$H:$L,5,FALSE),VLOOKUP($M15,TT_Tabelle_Riferimento!$H$31:$I$50,2,FALSE))","v":15},{"$f":"+IFERROR(VLOOKUP(IV$6&\"-\"&$M15&\"_old\",Ammortamento_Finanziario!$H:$L,5,FALSE),VLOOKUP($M15,TT_Tabelle_Riferimento!$H$31:$I$50,2,FALSE))","v":15},{"$f":"+IFERROR(VLOOKUP(IW$6&\"-\"&$M15&\"_old\",Ammortamento_Finanziario!$H:$L,5,FALSE),VLOOKUP($M15,TT_Tabelle_Riferimento!$H$31:$I$50,2,FALSE))","v":15},{"$f":"+IFERROR(VLOOKUP(IX$6&\"-\"&$M15&\"_old\",Ammortamento_Finanziario!$H:$L,5,FALSE),VLOOKUP($M15,TT_Tabelle_Riferimento!$H$31:$I$50,2,FALSE))","v":15},{"$f":"+IFERROR(VLOOKUP(IY$6&\"-\"&$M15&\"_old\",Ammortamento_Finanziario!$H:$L,5,FALSE),VLOOKUP($M15,TT_Tabelle_Riferimento!$H$31:$I$50,2,FALSE))","v":15},{"$f":"+IFERROR(VLOOKUP(IZ$6&\"-\"&$M15&\"_old\",Ammortamento_Finanziario!$H:$L,5,FALSE),VLOOKUP($M15,TT_Tabelle_Riferimento!$H$31:$I$50,2,FALSE))","v":15},{"$f":"+IFERROR(VLOOKUP(JA$6&\"-\"&$M15&\"_old\",Ammortamento_Finanziario!$H:$L,5,FALSE),VLOOKUP($M15,TT_Tabelle_Riferimento!$H$31:$I$50,2,FALSE))","v":15},{"$f":"+IFERROR(VLOOKUP(JB$6&\"-\"&$M15&\"_old\",Ammortamento_Finanziario!$H:$L,5,FALSE),VLOOKUP($M15,TT_Tabelle_Riferimento!$H$31:$I$50,2,FALSE))","v":15},{"$f":"+IFERROR(VLOOKUP(JC$6&\"-\"&$M15&\"_old\",Ammortamento_Finanziario!$H:$L,5,FALSE),VLOOKUP($M15,TT_Tabelle_Riferimento!$H$31:$I$50,2,FALSE))","v":15},{"$f":"+IFERROR(VLOOKUP(JD$6&\"-\"&$M15&\"_old\",Ammortamento_Finanziario!$H:$L,5,FALSE),VLOOKUP($M15,TT_Tabelle_Riferimento!$H$31:$I$50,2,FALSE))","v":15},{"$f":"+IFERROR(VLOOKUP(JE$6&\"-\"&$M15&\"_old\",Ammortamento_Finanziario!$H:$L,5,FALSE),VLOOKUP($M15,TT_Tabelle_Riferimento!$H$31:$I$50,2,FALSE))","v":15},{"$f":"+IFERROR(VLOOKUP(JF$6&\"-\"&$M15&\"_old\",Ammortamento_Finanziario!$H:$L,5,FALSE),VLOOKUP($M15,TT_Tabelle_Riferimento!$H$31:$I$50,2,FALSE))","v":15},{"$f":"+IFERROR(VLOOKUP(JG$6&\"-\"&$M15&\"_old\",Ammortamento_Finanziario!$H:$L,5,FALSE),VLOOKUP($M15,TT_Tabelle_Riferimento!$H$31:$I$50,2,FALSE))","v":15},{"$f":"+IFERROR(VLOOKUP(JH$6&\"-\"&$M15&\"_old\",Ammortamento_Finanziario!$H:$L,5,FALSE),VLOOKUP($M15,TT_Tabelle_Riferimento!$H$31:$I$50,2,FALSE))","v":15},{"$f":"+IFERROR(VLOOKUP(JI$6&\"-\"&$M15&\"_old\",Ammortamento_Finanziario!$H:$L,5,FALSE),VLOOKUP($M15,TT_Tabelle_Riferimento!$H$31:$I$50,2,FALSE))","v":15},{"$f":"+IFERROR(VLOOKUP(JJ$6&\"-\"&$M15&\"_old\",Ammortamento_Finanziario!$H:$L,5,FALSE),VLOOKUP($M15,TT_Tabelle_Riferimento!$H$31:$I$50,2,FALSE))","v":15},{"$f":"+IFERROR(VLOOKUP(JK$6&\"-\"&$M15&\"_old\",Ammortamento_Finanziario!$H:$L,5,FALSE),VLOOKUP($M15,TT_Tabelle_Riferimento!$H$31:$I$50,2,FALSE))","v":15},{"$f":"+IFERROR(VLOOKUP(JL$6&\"-\"&$M15&\"_old\",Ammortamento_Finanziario!$H:$L,5,FALSE),VLOOKUP($M15,TT_Tabelle_Riferimento!$H$31:$I$50,2,FALSE))","v":15},{"$f":"+IFERROR(VLOOKUP(JM$6&\"-\"&$M15&\"_old\",Ammortamento_Finanziario!$H:$L,5,FALSE),VLOOKUP($M15,TT_Tabelle_Riferimento!$H$31:$I$50,2,FALSE))","v":15},{"$f":"+IFERROR(VLOOKUP(JN$6&\"-\"&$M15&\"_old\",Ammortamento_Finanziario!$H:$L,5,FALSE),VLOOKUP($M15,TT_Tabelle_Riferimento!$H$31:$I$50,2,FALSE))","v":15},{"$f":"+IFERROR(VLOOKUP(JO$6&\"-\"&$M15&\"_old\",Ammortamento_Finanziario!$H:$L,5,FALSE),VLOOKUP($M15,TT_Tabelle_Riferimento!$H$31:$I$50,2,FALSE))","v":15},{"$f":"+IFERROR(VLOOKUP(JP$6&\"-\"&$M15&\"_old\",Ammortamento_Finanziario!$H:$L,5,FALSE),VLOOKUP($M15,TT_Tabelle_Riferimento!$H$31:$I$50,2,FALSE))","v":15},{"$f":"+IFERROR(VLOOKUP(JQ$6&\"-\"&$M15&\"_old\",Ammortamento_Finanziario!$H:$L,5,FALSE),VLOOKUP($M15,TT_Tabelle_Riferimento!$H$31:$I$50,2,FALSE))","v":15},{"$f":"+IFERROR(VLOOKUP(JR$6&\"-\"&$M15&\"_old\",Ammortamento_Finanziario!$H:$L,5,FALSE),VLOOKUP($M15,TT_Tabelle_Riferimento!$H$31:$I$50,2,FALSE))","v":15},{"$f":"+IFERROR(VLOOKUP(JS$6&\"-\"&$M15&\"_old\",Ammortamento_Finanziario!$H:$L,5,FALSE),VLOOKUP($M15,TT_Tabelle_Riferimento!$H$31:$I$50,2,FALSE))","v":15},{"$f":"+IFERROR(VLOOKUP(JT$6&\"-\"&$M15&\"_old\",Ammortamento_Finanziario!$H:$L,5,FALSE),VLOOKUP($M15,TT_Tabelle_Riferimento!$H$31:$I$50,2,FALSE))","v":15},{"$f":"+IFERROR(VLOOKUP(JU$6&\"-\"&$M15&\"_old\",Ammortamento_Finanziario!$H:$L,5,FALSE),VLOOKUP($M15,TT_Tabelle_Riferimento!$H$31:$I$50,2,FALSE))","v":15},{"$f":"+IFERROR(VLOOKUP(JV$6&\"-\"&$M15&\"_old\",Ammortamento_Finanziario!$H:$L,5,FALSE),VLOOKUP($M15,TT_Tabelle_Riferimento!$H$31:$I$50,2,FALSE))","v":15},{"$f":"+IFERROR(VLOOKUP(JW$6&\"-\"&$M15&\"_old\",Ammortamento_Finanziario!$H:$L,5,FALSE),VLOOKUP($M15,TT_Tabelle_Riferimento!$H$31:$I$50,2,FALSE))","v":15},{"$f":"+IFERROR(VLOOKUP(JX$6&\"-\"&$M15&\"_old\",Ammortamento_Finanziario!$H:$L,5,FALSE),VLOOKUP($M15,TT_Tabelle_Riferimento!$H$31:$I$50,2,FALSE))","v":15},{"$f":"+IFERROR(VLOOKUP(JY$6&\"-\"&$M15&\"_old\",Ammortamento_Finanziario!$H:$L,5,FALSE),VLOOKUP($M15,TT_Tabelle_Riferimento!$H$31:$I$50,2,FALSE))","v":15},{"$f":"+IFERROR(VLOOKUP(JZ$6&\"-\"&$M15&\"_old\",Ammortamento_Finanziario!$H:$L,5,FALSE),VLOOKUP($M15,TT_Tabelle_Riferimento!$H$31:$I$50,2,FALSE))","v":15},{"$f":"+IFERROR(VLOOKUP(KA$6&\"-\"&$M15&\"_old\",Ammortamento_Finanziario!$H:$L,5,FALSE),VLOOKUP($M15,TT_Tabelle_Riferimento!$H$31:$I$50,2,FALSE))","v":15},{"$f":"+IFERROR(VLOOKUP(KB$6&\"-\"&$M15&\"_old\",Ammortamento_Finanziario!$H:$L,5,FALSE),VLOOKUP($M15,TT_Tabelle_Riferimento!$H$31:$I$50,2,FALSE))","v":15},{"$f":"+IFERROR(VLOOKUP(KC$6&\"-\"&$M15&\"_old\",Ammortamento_Finanziario!$H:$L,5,FALSE),VLOOKUP($M15,TT_Tabelle_Riferimento!$H$31:$I$50,2,FALSE))","v":15},{"$f":"+IFERROR(VLOOKUP(KD$6&\"-\"&$M15&\"_old\",Ammortamento_Finanziario!$H:$L,5,FALSE),VLOOKUP($M15,TT_Tabelle_Riferimento!$H$31:$I$50,2,FALSE))","v":15},{"$f":"+IFERROR(VLOOKUP(KE$6&\"-\"&$M15&\"_old\",Ammortamento_Finanziario!$H:$L,5,FALSE),VLOOKUP($M15,TT_Tabelle_Riferimento!$H$31:$I$50,2,FALSE))","v":15},{"$f":"+IFERROR(VLOOKUP(KF$6&\"-\"&$M15&\"_old\",Ammortamento_Finanziario!$H:$L,5,FALSE),VLOOKUP($M15,TT_Tabelle_Riferimento!$H$31:$I$50,2,FALSE))","v":15},{"$f":"+IFERROR(VLOOKUP(KG$6&\"-\"&$M15&\"_old\",Ammortamento_Finanziario!$H:$L,5,FALSE),VLOOKUP($M15,TT_Tabelle_Riferimento!$H$31:$I$50,2,FALSE))","v":15},{"$f":"+IFERROR(VLOOKUP(KH$6&\"-\"&$M15&\"_old\",Ammortamento_Finanziario!$H:$L,5,FALSE),VLOOKUP($M15,TT_Tabelle_Riferimento!$H$31:$I$50,2,FALSE))","v":15},{"$f":"+IFERROR(VLOOKUP(KI$6&\"-\"&$M15&\"_old\",Ammortamento_Finanziario!$H:$L,5,FALSE),VLOOKUP($M15,TT_Tabelle_Riferimento!$H$31:$I$50,2,FALSE))","v":15},{"$f":"+IFERROR(VLOOKUP(KJ$6&\"-\"&$M15&\"_old\",Ammortamento_Finanziario!$H:$L,5,FALSE),VLOOKUP($M15,TT_Tabelle_Riferimento!$H$31:$I$50,2,FALSE))","v":15},{"$f":"+IFERROR(VLOOKUP(KK$6&\"-\"&$M15&\"_old\",Ammortamento_Finanziario!$H:$L,5,FALSE),VLOOKUP($M15,TT_Tabelle_Riferimento!$H$31:$I$50,2,FALSE))","v":15},{"$f":"+IFERROR(VLOOKUP(KL$6&\"-\"&$M15&\"_old\",Ammortamento_Finanziario!$H:$L,5,FALSE),VLOOKUP($M15,TT_Tabelle_Riferimento!$H$31:$I$50,2,FALSE))","v":15},{"$f":"+IFERROR(VLOOKUP(KM$6&\"-\"&$M15&\"_old\",Ammortamento_Finanziario!$H:$L,5,FALSE),VLOOKUP($M15,TT_Tabelle_Riferimento!$H$31:$I$50,2,FALSE))","v":15},{"$f":"+IFERROR(VLOOKUP(KN$6&\"-\"&$M15&\"_old\",Ammortamento_Finanziario!$H:$L,5,FALSE),VLOOKUP($M15,TT_Tabelle_Riferimento!$H$31:$I$50,2,FALSE))","v":15},{"$f":"+IFERROR(VLOOKUP(KO$6&\"-\"&$M15&\"_old\",Ammortamento_Finanziario!$H:$L,5,FALSE),VLOOKUP($M15,TT_Tabelle_Riferimento!$H$31:$I$50,2,FALSE))","v":15},{"$f":"+IFERROR(VLOOKUP(KP$6&\"-\"&$M15&\"_old\",Ammortamento_Finanziario!$H:$L,5,FALSE),VLOOKUP($M15,TT_Tabelle_Riferimento!$H$31:$I$50,2,FALSE))","v":15},{"$f":"+IFERROR(VLOOKUP(KQ$6&\"-\"&$M15&\"_old\",Ammortamento_Finanziario!$H:$L,5,FALSE),VLOOKUP($M15,TT_Tabelle_Riferimento!$H$31:$I$50,2,FALSE))","v":15},{"$f":"+IFERROR(VLOOKUP(KR$6&\"-\"&$M15&\"_old\",Ammortamento_Finanziario!$H:$L,5,FALSE),VLOOKUP($M15,TT_Tabelle_Riferimento!$H$31:$I$50,2,FALSE))","v":15},{"$f":"+IFERROR(VLOOKUP(KS$6&\"-\"&$M15&\"_old\",Ammortamento_Finanziario!$H:$L,5,FALSE),VLOOKUP($M15,TT_Tabelle_Riferimento!$H$31:$I$50,2,FALSE))","v":15},{"$f":"+IFERROR(VLOOKUP(KT$6&\"-\"&$M15&\"_old\",Ammortamento_Finanziario!$H:$L,5,FALSE),VLOOKUP($M15,TT_Tabelle_Riferimento!$H$31:$I$50,2,FALSE))","v":15},{"$f":"+IFERROR(VLOOKUP(KU$6&\"-\"&$M15&\"_old\",Ammortamento_Finanziario!$H:$L,5,FALSE),VLOOKUP($M15,TT_Tabelle_Riferimento!$H$31:$I$50,2,FALSE))","v":15},{"$f":"+IFERROR(VLOOKUP(KV$6&\"-\"&$M15&\"_old\",Ammortamento_Finanziario!$H:$L,5,FALSE),VLOOKUP($M15,TT_Tabelle_Riferimento!$H$31:$I$50,2,FALSE))","v":15},{"$f":"+IFERROR(VLOOKUP(KW$6&\"-\"&$M15&\"_old\",Ammortamento_Finanziario!$H:$L,5,FALSE),VLOOKUP($M15,TT_Tabelle_Riferimento!$H$31:$I$50,2,FALSE))","v":15},{"$f":"+IFERROR(VLOOKUP(KX$6&\"-\"&$M15&\"_old\",Ammortamento_Finanziario!$H:$L,5,FALSE),VLOOKUP($M15,TT_Tabelle_Riferimento!$H$31:$I$50,2,FALSE))","v":15},{"$f":"+IFERROR(VLOOKUP(KY$6&\"-\"&$M15&\"_old\",Ammortamento_Finanziario!$H:$L,5,FALSE),VLOOKUP($M15,TT_Tabelle_Riferimento!$H$31:$I$50,2,FALSE))","v":15},{"$f":"+IFERROR(VLOOKUP(KZ$6&\"-\"&$M15&\"_old\",Ammortamento_Finanziario!$H:$L,5,FALSE),VLOOKUP($M15,TT_Tabelle_Riferimento!$H$31:$I$50,2,FALSE))","v":15},{"$f":"+IFERROR(VLOOKUP(LA$6&\"-\"&$M15&\"_old\",Ammortamento_Finanziario!$H:$L,5,FALSE),VLOOKUP($M15,TT_Tabelle_Riferimento!$H$31:$I$50,2,FALSE))","v":15},{"$f":"+IFERROR(VLOOKUP(LB$6&\"-\"&$M15&\"_old\",Ammortamento_Finanziario!$H:$L,5,FALSE),VLOOKUP($M15,TT_Tabelle_Riferimento!$H$31:$I$50,2,FALSE))","v":15},{"$f":"+IFERROR(VLOOKUP(LC$6&\"-\"&$M15&\"_old\",Ammortamento_Finanziario!$H:$L,5,FALSE),VLOOKUP($M15,TT_Tabelle_Riferimento!$H$31:$I$50,2,FALSE))","v":15},{"$f":"+IFERROR(VLOOKUP(LD$6&\"-\"&$M15&\"_old\",Ammortamento_Finanziario!$H:$L,5,FALSE),VLOOKUP($M15,TT_Tabelle_Riferimento!$H$31:$I$50,2,FALSE))","v":15},{"$f":"+IFERROR(VLOOKUP(LE$6&\"-\"&$M15&\"_old\",Ammortamento_Finanziario!$H:$L,5,FALSE),VLOOKUP($M15,TT_Tabelle_Riferimento!$H$31:$I$50,2,FALSE))","v":15},{"$f":"+IFERROR(VLOOKUP(LF$6&\"-\"&$M15&\"_old\",Ammortamento_Finanziario!$H:$L,5,FALSE),VLOOKUP($M15,TT_Tabelle_Riferimento!$H$31:$I$50,2,FALSE))","v":15},{"$f":"+IFERROR(VLOOKUP(LG$6&\"-\"&$M15&\"_old\",Ammortamento_Finanziario!$H:$L,5,FALSE),VLOOKUP($M15,TT_Tabelle_Riferimento!$H$31:$I$50,2,FALSE))","v":15},{"$f":"+IFERROR(VLOOKUP(LH$6&\"-\"&$M15&\"_old\",Ammortamento_Finanziario!$H:$L,5,FALSE),VLOOKUP($M15,TT_Tabelle_Riferimento!$H$31:$I$50,2,FALSE))","v":15},{"$f":"+IFERROR(VLOOKUP(LI$6&\"-\"&$M15&\"_old\",Ammortamento_Finanziario!$H:$L,5,FALSE),VLOOKUP($M15,TT_Tabelle_Riferimento!$H$31:$I$50,2,FALSE))","v":15},{"$f":"+IFERROR(VLOOKUP(LJ$6&\"-\"&$M15&\"_old\",Ammortamento_Finanziario!$H:$L,5,FALSE),VLOOKUP($M15,TT_Tabelle_Riferimento!$H$31:$I$50,2,FALSE))","v":15},{"$f":"+IFERROR(VLOOKUP(LK$6&\"-\"&$M15&\"_old\",Ammortamento_Finanziario!$H:$L,5,FALSE),VLOOKUP($M15,TT_Tabelle_Riferimento!$H$31:$I$50,2,FALSE))","v":15},{"$f":"+IFERROR(VLOOKUP(LL$6&\"-\"&$M15&\"_old\",Ammortamento_Finanziario!$H:$L,5,FALSE),VLOOKUP($M15,TT_Tabelle_Riferimento!$H$31:$I$50,2,FALSE))","v":15},{"$f":"+IFERROR(VLOOKUP(LM$6&\"-\"&$M15&\"_old\",Ammortamento_Finanziario!$H:$L,5,FALSE),VLOOKUP($M15,TT_Tabelle_Riferimento!$H$31:$I$50,2,FALSE))","v":15},{"$f":"+IFERROR(VLOOKUP(LN$6&\"-\"&$M15&\"_old\",Ammortamento_Finanziario!$H:$L,5,FALSE),VLOOKUP($M15,TT_Tabelle_Riferimento!$H$31:$I$50,2,FALSE))","v":15},{"$f":"+IFERROR(VLOOKUP(LO$6&\"-\"&$M15&\"_old\",Ammortamento_Finanziario!$H:$L,5,FALSE),VLOOKUP($M15,TT_Tabelle_Riferimento!$H$31:$I$50,2,FALSE))","v":15},{"$f":"+IFERROR(VLOOKUP(LP$6&\"-\"&$M15&\"_old\",Ammortamento_Finanziario!$H:$L,5,FALSE),VLOOKUP($M15,TT_Tabelle_Riferimento!$H$31:$I$50,2,FALSE))","v":15},{"$f":"+IFERROR(VLOOKUP(LQ$6&\"-\"&$M15&\"_old\",Ammortamento_Finanziario!$H:$L,5,FALSE),VLOOKUP($M15,TT_Tabelle_Riferimento!$H$31:$I$50,2,FALSE))","v":15},{"$f":"+IFERROR(VLOOKUP(LR$6&\"-\"&$M15&\"_old\",Ammortamento_Finanziario!$H:$L,5,FALSE),VLOOKUP($M15,TT_Tabelle_Riferimento!$H$31:$I$50,2,FALSE))","v":15},{"$f":"+IFERROR(VLOOKUP(LS$6&\"-\"&$M15&\"_old\",Ammortamento_Finanziario!$H:$L,5,FALSE),VLOOKUP($M15,TT_Tabelle_Riferimento!$H$31:$I$50,2,FALSE))","v":15},{"$f":"+IFERROR(VLOOKUP(LT$6&\"-\"&$M15&\"_old\",Ammortamento_Finanziario!$H:$L,5,FALSE),VLOOKUP($M15,TT_Tabelle_Riferimento!$H$31:$I$50,2,FALSE))","v":15},{"$f":"+IFERROR(VLOOKUP(LU$6&\"-\"&$M15&\"_old\",Ammortamento_Finanziario!$H:$L,5,FALSE),VLOOKUP($M15,TT_Tabelle_Riferimento!$H$31:$I$50,2,FALSE))","v":15},{"$f":"+IFERROR(VLOOKUP(LV$6&\"-\"&$M15&\"_old\",Ammortamento_Finanziario!$H:$L,5,FALSE),VLOOKUP($M15,TT_Tabelle_Riferimento!$H$31:$I$50,2,FALSE))","v":15},{"$f":"+IFERROR(VLOOKUP(LW$6&\"-\"&$M15&\"_old\",Ammortamento_Finanziario!$H:$L,5,FALSE),VLOOKUP($M15,TT_Tabelle_Riferimento!$H$31:$I$50,2,FALSE))","v":15},{"$f":"+IFERROR(VLOOKUP(LX$6&\"-\"&$M15&\"_old\",Ammortamento_Finanziario!$H:$L,5,FALSE),VLOOKUP($M15,TT_Tabelle_Riferimento!$H$31:$I$50,2,FALSE))","v":15},{"$f":"+IFERROR(VLOOKUP(LY$6&\"-\"&$M15&\"_old\",Ammortamento_Finanziario!$H:$L,5,FALSE),VLOOKUP($M15,TT_Tabelle_Riferimento!$H$31:$I$50,2,FALSE))","v":15},{"$f":"+IFERROR(VLOOKUP(LZ$6&\"-\"&$M15&\"_old\",Ammortamento_Finanziario!$H:$L,5,FALSE),VLOOKUP($M15,TT_Tabelle_Riferimento!$H$31:$I$50,2,FALSE))","v":15},{"$f":"+IFERROR(VLOOKUP(MA$6&\"-\"&$M15&\"_old\",Ammortamento_Finanziario!$H:$L,5,FALSE),VLOOKUP($M15,TT_Tabelle_Riferimento!$H$31:$I$50,2,FALSE))","v":15},{"$f":"+IFERROR(VLOOKUP(MB$6&\"-\"&$M15&\"_old\",Ammortamento_Finanziario!$H:$L,5,FALSE),VLOOKUP($M15,TT_Tabelle_Riferimento!$H$31:$I$50,2,FALSE))","v":15},{"$f":"+IFERROR(VLOOKUP(MC$6&\"-\"&$M15&\"_old\",Ammortamento_Finanziario!$H:$L,5,FALSE),VLOOKUP($M15,TT_Tabelle_Riferimento!$H$31:$I$50,2,FALSE))","v":15},{"$f":"+IFERROR(VLOOKUP(MD$6&\"-\"&$M15&\"_old\",Ammortamento_Finanziario!$H:$L,5,FALSE),VLOOKUP($M15,TT_Tabelle_Riferimento!$H$31:$I$50,2,FALSE))","v":15},{"$f":"+IFERROR(VLOOKUP(ME$6&\"-\"&$M15&\"_old\",Ammortamento_Finanziario!$H:$L,5,FALSE),VLOOKUP($M15,TT_Tabelle_Riferimento!$H$31:$I$50,2,FALSE))","v":15},{"$f":"+IFERROR(VLOOKUP(MF$6&\"-\"&$M15&\"_old\",Ammortamento_Finanziario!$H:$L,5,FALSE),VLOOKUP($M15,TT_Tabelle_Riferimento!$H$31:$I$50,2,FALSE))","v":15},{"$f":"+IFERROR(VLOOKUP(MG$6&\"-\"&$M15&\"_old\",Ammortamento_Finanziario!$H:$L,5,FALSE),VLOOKUP($M15,TT_Tabelle_Riferimento!$H$31:$I$50,2,FALSE))","v":15},{"$f":"+IFERROR(VLOOKUP(MH$6&\"-\"&$M15&\"_old\",Ammortamento_Finanziario!$H:$L,5,FALSE),VLOOKUP($M15,TT_Tabelle_Riferimento!$H$31:$I$50,2,FALSE))","v":15},{"$f":"+IFERROR(VLOOKUP(MI$6&\"-\"&$M15&\"_old\",Ammortamento_Finanziario!$H:$L,5,FALSE),VLOOKUP($M15,TT_Tabelle_Riferimento!$H$31:$I$50,2,FALSE))","v":15},{"$f":"+IFERROR(VLOOKUP(MJ$6&\"-\"&$M15&\"_old\",Ammortamento_Finanziario!$H:$L,5,FALSE),VLOOKUP($M15,TT_Tabelle_Riferimento!$H$31:$I$50,2,FALSE))","v":15},{"$f":"+IFERROR(VLOOKUP(MK$6&\"-\"&$M15&\"_old\",Ammortamento_Finanziario!$H:$L,5,FALSE),VLOOKUP($M15,TT_Tabelle_Riferimento!$H$31:$I$50,2,FALSE))","v":15},{"$f":"+IFERROR(VLOOKUP(ML$6&\"-\"&$M15&\"_old\",Ammortamento_Finanziario!$H:$L,5,FALSE),VLOOKUP($M15,TT_Tabelle_Riferimento!$H$31:$I$50,2,FALSE))","v":15},{"$f":"+IFERROR(VLOOKUP(MM$6&\"-\"&$M15&\"_old\",Ammortamento_Finanziario!$H:$L,5,FALSE),VLOOKUP($M15,TT_Tabelle_Riferimento!$H$31:$I$50,2,FALSE))","v":15},{"$f":"+IFERROR(VLOOKUP(MN$6&\"-\"&$M15&\"_old\",Ammortamento_Finanziario!$H:$L,5,FALSE),VLOOKUP($M15,TT_Tabelle_Riferimento!$H$31:$I$50,2,FALSE))","v":15},{"$f":"+IFERROR(VLOOKUP(MO$6&\"-\"&$M15&\"_old\",Ammortamento_Finanziario!$H:$L,5,FALSE),VLOOKUP($M15,TT_Tabelle_Riferimento!$H$31:$I$50,2,FALSE))","v":15},{"$f":"+IFERROR(VLOOKUP(MP$6&\"-\"&$M15&\"_old\",Ammortamento_Finanziario!$H:$L,5,FALSE),VLOOKUP($M15,TT_Tabelle_Riferimento!$H$31:$I$50,2,FALSE))","v":15},{"$f":"+IFERROR(VLOOKUP(MQ$6&\"-\"&$M15&\"_old\",Ammortamento_Finanziario!$H:$L,5,FALSE),VLOOKUP($M15,TT_Tabelle_Riferimento!$H$31:$I$50,2,FALSE))","v":15},{"$f":"+IFERROR(VLOOKUP(MR$6&\"-\"&$M15&\"_old\",Ammortamento_Finanziario!$H:$L,5,FALSE),VLOOKUP($M15,TT_Tabelle_Riferimento!$H$31:$I$50,2,FALSE))","v":15},{"$f":"+IFERROR(VLOOKUP(MS$6&\"-\"&$M15&\"_old\",Ammortamento_Finanziario!$H:$L,5,FALSE),VLOOKUP($M15,TT_Tabelle_Riferimento!$H$31:$I$50,2,FALSE))","v":15},{"$f":"+IFERROR(VLOOKUP(MT$6&\"-\"&$M15&\"_old\",Ammortamento_Finanziario!$H:$L,5,FALSE),VLOOKUP($M15,TT_Tabelle_Riferimento!$H$31:$I$50,2,FALSE))","v":15},{"$f":"+IFERROR(VLOOKUP(MU$6&\"-\"&$M15&\"_old\",Ammortamento_Finanziario!$H:$L,5,FALSE),VLOOKUP($M15,TT_Tabelle_Riferimento!$H$31:$I$50,2,FALSE))","v":15},{"$f":"+IFERROR(VLOOKUP(MV$6&\"-\"&$M15&\"_old\",Ammortamento_Finanziario!$H:$L,5,FALSE),VLOOKUP($M15,TT_Tabelle_Riferimento!$H$31:$I$50,2,FALSE))","v":15},{"$f":"+IFERROR(VLOOKUP(MW$6&\"-\"&$M15&\"_old\",Ammortamento_Finanziario!$H:$L,5,FALSE),VLOOKUP($M15,TT_Tabelle_Riferimento!$H$31:$I$50,2,FALSE))","v":15},{"$f":"+IFERROR(VLOOKUP(MX$6&\"-\"&$M15&\"_old\",Ammortamento_Finanziario!$H:$L,5,FALSE),VLOOKUP($M15,TT_Tabelle_Riferimento!$H$31:$I$50,2,FALSE))","v":15},{"$f":"+IFERROR(VLOOKUP(MY$6&\"-\"&$M15&\"_old\",Ammortamento_Finanziario!$H:$L,5,FALSE),VLOOKUP($M15,TT_Tabelle_Riferimento!$H$31:$I$50,2,FALSE))","v":15},{"$f":"+IFERROR(VLOOKUP(MZ$6&\"-\"&$M15&\"_old\",Ammortamento_Finanziario!$H:$L,5,FALSE),VLOOKUP($M15,TT_Tabelle_Riferimento!$H$31:$I$50,2,FALSE))","v":15},{"$f":"+IFERROR(VLOOKUP(NA$6&\"-\"&$M15&\"_old\",Ammortamento_Finanziario!$H:$L,5,FALSE),VLOOKUP($M15,TT_Tabelle_Riferimento!$H$31:$I$50,2,FALSE))","v":15},{"$f":"+IFERROR(VLOOKUP(NB$6&\"-\"&$M15&\"_old\",Ammortamento_Finanziario!$H:$L,5,FALSE),VLOOKUP($M15,TT_Tabelle_Riferimento!$H$31:$I$50,2,FALSE))","v":15},{"$f":"+IFERROR(VLOOKUP(NC$6&\"-\"&$M15&\"_old\",Ammortamento_Finanziario!$H:$L,5,FALSE),VLOOKUP($M15,TT_Tabelle_Riferimento!$H$31:$I$50,2,FALSE))","v":15},{"$f":"+IFERROR(VLOOKUP(ND$6&\"-\"&$M15&\"_old\",Ammortamento_Finanziario!$H:$L,5,FALSE),VLOOKUP($M15,TT_Tabelle_Riferimento!$H$31:$I$50,2,FALSE))","v":15},{"$f":"+IFERROR(VLOOKUP(NE$6&\"-\"&$M15&\"_old\",Ammortamento_Finanziario!$H:$L,5,FALSE),VLOOKUP($M15,TT_Tabelle_Riferimento!$H$31:$I$50,2,FALSE))","v":15},{"$f":"+IFERROR(VLOOKUP(NF$6&\"-\"&$M15&\"_old\",Ammortamento_Finanziario!$H:$L,5,FALSE),VLOOKUP($M15,TT_Tabelle_Riferimento!$H$31:$I$50,2,FALSE))","v":15},{"$f":"+IFERROR(VLOOKUP(NG$6&\"-\"&$M15&\"_old\",Ammortamento_Finanziario!$H:$L,5,FALSE),VLOOKUP($M15,TT_Tabelle_Riferimento!$H$31:$I$50,2,FALSE))","v":15},{"$f":"+IFERROR(VLOOKUP(NH$6&\"-\"&$M15&\"_old\",Ammortamento_Finanziario!$H:$L,5,FALSE),VLOOKUP($M15,TT_Tabelle_Riferimento!$H$31:$I$50,2,FALSE))","v":15},{"$f":"+IFERROR(VLOOKUP(NI$6&\"-\"&$M15&\"_old\",Ammortamento_Finanziario!$H:$L,5,FALSE),VLOOKUP($M15,TT_Tabelle_Riferimento!$H$31:$I$50,2,FALSE))","v":15},{"$f":"+IFERROR(VLOOKUP(NJ$6&\"-\"&$M15&\"_old\",Ammortamento_Finanziario!$H:$L,5,FALSE),VLOOKUP($M15,TT_Tabelle_Riferimento!$H$31:$I$50,2,FALSE))","v":15},{"$f":"+IFERROR(VLOOKUP(NK$6&\"-\"&$M15&\"_old\",Ammortamento_Finanziario!$H:$L,5,FALSE),VLOOKUP($M15,TT_Tabelle_Riferimento!$H$31:$I$50,2,FALSE))","v":15},{"$f":"+IFERROR(VLOOKUP(NL$6&\"-\"&$M15&\"_old\",Ammortamento_Finanziario!$H:$L,5,FALSE),VLOOKUP($M15,TT_Tabelle_Riferimento!$H$31:$I$50,2,FALSE))","v":15},{"$f":"+IFERROR(VLOOKUP(NM$6&\"-\"&$M15&\"_old\",Ammortamento_Finanziario!$H:$L,5,FALSE),VLOOKUP($M15,TT_Tabelle_Riferimento!$H$31:$I$50,2,FALSE))","v":15},{"$f":"+IFERROR(VLOOKUP(NN$6&\"-\"&$M15&\"_old\",Ammortamento_Finanziario!$H:$L,5,FALSE),VLOOKUP($M15,TT_Tabelle_Riferimento!$H$31:$I$50,2,FALSE))","v":15},{"$f":"+IFERROR(VLOOKUP(NO$6&\"-\"&$M15&\"_old\",Ammortamento_Finanziario!$H:$L,5,FALSE),VLOOKUP($M15,TT_Tabelle_Riferimento!$H$31:$I$50,2,FALSE))","v":15},{"$f":"+IFERROR(VLOOKUP(NP$6&\"-\"&$M15&\"_old\",Ammortamento_Finanziario!$H:$L,5,FALSE),VLOOKUP($M15,TT_Tabelle_Riferimento!$H$31:$I$50,2,FALSE))","v":15},{"$f":"+IFERROR(VLOOKUP(NQ$6&\"-\"&$M15&\"_old\",Ammortamento_Finanziario!$H:$L,5,FALSE),VLOOKUP($M15,TT_Tabelle_Riferimento!$H$31:$I$50,2,FALSE))","v":15},{"$f":"+IFERROR(VLOOKUP(NR$6&\"-\"&$M15&\"_old\",Ammortamento_Finanziario!$H:$L,5,FALSE),VLOOKUP($M15,TT_Tabelle_Riferimento!$H$31:$I$50,2,FALSE))","v":15},{"$f":"+IFERROR(VLOOKUP(NS$6&\"-\"&$M15&\"_old\",Ammortamento_Finanziario!$H:$L,5,FALSE),VLOOKUP($M15,TT_Tabelle_Riferimento!$H$31:$I$50,2,FALSE))","v":15},{"$f":"+IFERROR(VLOOKUP(NT$6&\"-\"&$M15&\"_old\",Ammortamento_Finanziario!$H:$L,5,FALSE),VLOOKUP($M15,TT_Tabelle_Riferimento!$H$31:$I$50,2,FALSE))","v":15},{"$f":"+IFERROR(VLOOKUP(NU$6&\"-\"&$M15&\"_old\",Ammortamento_Finanziario!$H:$L,5,FALSE),VLOOKUP($M15,TT_Tabelle_Riferimento!$H$31:$I$50,2,FALSE))","v":15},{"$f":"+IFERROR(VLOOKUP(NV$6&\"-\"&$M15&\"_old\",Ammortamento_Finanziario!$H:$L,5,FALSE),VLOOKUP($M15,TT_Tabelle_Riferimento!$H$31:$I$50,2,FALSE))","v":15},{"$f":"+IFERROR(VLOOKUP(NW$6&\"-\"&$M15&\"_old\",Ammortamento_Finanziario!$H:$L,5,FALSE),VLOOKUP($M15,TT_Tabelle_Riferimento!$H$31:$I$50,2,FALSE))","v":15},{"$f":"+IFERROR(VLOOKUP(NX$6&\"-\"&$M15&\"_old\",Ammortamento_Finanziario!$H:$L,5,FALSE),VLOOKUP($M15,TT_Tabelle_Riferimento!$H$31:$I$50,2,FALSE))","v":15},{"$f":"+IFERROR(VLOOKUP(NY$6&\"-\"&$M15&\"_old\",Ammortamento_Finanziario!$H:$L,5,FALSE),VLOOKUP($M15,TT_Tabelle_Riferimento!$H$31:$I$50,2,FALSE))","v":15},{"$f":"+IFERROR(VLOOKUP(NZ$6&\"-\"&$M15&\"_old\",Ammortamento_Finanziario!$H:$L,5,FALSE),VLOOKUP($M15,TT_Tabelle_Riferimento!$H$31:$I$50,2,FALSE))","v":15},{"$f":"+IFERROR(VLOOKUP(OA$6&\"-\"&$M15&\"_old\",Ammortamento_Finanziario!$H:$L,5,FALSE),VLOOKUP($M15,TT_Tabelle_Riferimento!$H$31:$I$50,2,FALSE))","v":15},{"$f":"+IFERROR(VLOOKUP(OB$6&\"-\"&$M15&\"_old\",Ammortamento_Finanziario!$H:$L,5,FALSE),VLOOKUP($M15,TT_Tabelle_Riferimento!$H$31:$I$50,2,FALSE))","v":15},{"$f":"+IFERROR(VLOOKUP(OC$6&\"-\"&$M15&\"_old\",Ammortamento_Finanziario!$H:$L,5,FALSE),VLOOKUP($M15,TT_Tabelle_Riferimento!$H$31:$I$50,2,FALSE))","v":15},{"$f":"+IFERROR(VLOOKUP(OD$6&\"-\"&$M15&\"_old\",Ammortamento_Finanziario!$H:$L,5,FALSE),VLOOKUP($M15,TT_Tabelle_Riferimento!$H$31:$I$50,2,FALSE))","v":15},{"$f":"+IFERROR(VLOOKUP(OE$6&\"-\"&$M15&\"_old\",Ammortamento_Finanziario!$H:$L,5,FALSE),VLOOKUP($M15,TT_Tabelle_Riferimento!$H$31:$I$50,2,FALSE))","v":15},{"$f":"+IFERROR(VLOOKUP(OF$6&\"-\"&$M15&\"_old\",Ammortamento_Finanziario!$H:$L,5,FALSE),VLOOKUP($M15,TT_Tabelle_Riferimento!$H$31:$I$50,2,FALSE))","v":15},{"$f":"+IFERROR(VLOOKUP(OG$6&\"-\"&$M15&\"_old\",Ammortamento_Finanziario!$H:$L,5,FALSE),VLOOKUP($M15,TT_Tabelle_Riferimento!$H$31:$I$50,2,FALSE))","v":15},{"$f":"+IFERROR(VLOOKUP(OH$6&\"-\"&$M15&\"_old\",Ammortamento_Finanziario!$H:$L,5,FALSE),VLOOKUP($M15,TT_Tabelle_Riferimento!$H$31:$I$50,2,FALSE))","v":15},{"$f":"+IFERROR(VLOOKUP(OI$6&\"-\"&$M15&\"_old\",Ammortamento_Finanziario!$H:$L,5,FALSE),VLOOKUP($M15,TT_Tabelle_Riferimento!$H$31:$I$50,2,FALSE))","v":15},{"$f":"+IFERROR(VLOOKUP(OJ$6&\"-\"&$M15&\"_old\",Ammortamento_Finanziario!$H:$L,5,FALSE),VLOOKUP($M15,TT_Tabelle_Riferimento!$H$31:$I$50,2,FALSE))","v":15},{"$f":"+IFERROR(VLOOKUP(OK$6&\"-\"&$M15&\"_old\",Ammortamento_Finanziario!$H:$L,5,FALSE),VLOOKUP($M15,TT_Tabelle_Riferimento!$H$31:$I$50,2,FALSE))","v":15},{"$f":"+IFERROR(VLOOKUP(OL$6&\"-\"&$M15&\"_old\",Ammortamento_Finanziario!$H:$L,5,FALSE),VLOOKUP($M15,TT_Tabelle_Riferimento!$H$31:$I$50,2,FALSE))","v":15},{"$f":"+IFERROR(VLOOKUP(OM$6&\"-\"&$M15&\"_old\",Ammortamento_Finanziario!$H:$L,5,FALSE),VLOOKUP($M15,TT_Tabelle_Riferimento!$H$31:$I$50,2,FALSE))","v":15},{"$f":"+IFERROR(VLOOKUP(ON$6&\"-\"&$M15&\"_old\",Ammortamento_Finanziario!$H:$L,5,FALSE),VLOOKUP($M15,TT_Tabelle_Riferimento!$H$31:$I$50,2,FALSE))","v":15},{"$f":"+IFERROR(VLOOKUP(OO$6&\"-\"&$M15&\"_old\",Ammortamento_Finanziario!$H:$L,5,FALSE),VLOOKUP($M15,TT_Tabelle_Riferimento!$H$31:$I$50,2,FALSE))","v":15},{"$f":"+IFERROR(VLOOKUP(OP$6&\"-\"&$M15&\"_old\",Ammortamento_Finanziario!$H:$L,5,FALSE),VLOOKUP($M15,TT_Tabelle_Riferimento!$H$31:$I$50,2,FALSE))","v":15},{"$f":"+IFERROR(VLOOKUP(OQ$6&\"-\"&$M15&\"_old\",Ammortamento_Finanziario!$H:$L,5,FALSE),VLOOKUP($M15,TT_Tabelle_Riferimento!$H$31:$I$50,2,FALSE))","v":15},{"$f":"+IFERROR(VLOOKUP(OR$6&\"-\"&$M15&\"_old\",Ammortamento_Finanziario!$H:$L,5,FALSE),VLOOKUP($M15,TT_Tabelle_Riferimento!$H$31:$I$50,2,FALSE))","v":15},{"$f":"+IFERROR(VLOOKUP(OS$6&\"-\"&$M15&\"_old\",Ammortamento_Finanziario!$H:$L,5,FALSE),VLOOKUP($M15,TT_Tabelle_Riferimento!$H$31:$I$50,2,FALSE))","v":15},{"$f":"+IFERROR(VLOOKUP(OT$6&\"-\"&$M15&\"_old\",Ammortamento_Finanziario!$H:$L,5,FALSE),VLOOKUP($M15,TT_Tabelle_Riferimento!$H$31:$I$50,2,FALSE))","v":15},{"$f":"+IFERROR(VLOOKUP(OU$6&\"-\"&$M15&\"_old\",Ammortamento_Finanziario!$H:$L,5,FALSE),VLOOKUP($M15,TT_Tabelle_Riferimento!$H$31:$I$50,2,FALSE))","v":15},{"$f":"+IFERROR(VLOOKUP(OV$6&\"-\"&$M15&\"_old\",Ammortamento_Finanziario!$H:$L,5,FALSE),VLOOKUP($M15,TT_Tabelle_Riferimento!$H$31:$I$50,2,FALSE))","v":15},{"$f":"+IFERROR(VLOOKUP(OW$6&\"-\"&$M15&\"_old\",Ammortamento_Finanziario!$H:$L,5,FALSE),VLOOKUP($M15,TT_Tabelle_Riferimento!$H$31:$I$50,2,FALSE))","v":15},{"$f":"+IFERROR(VLOOKUP(OX$6&\"-\"&$M15&\"_old\",Ammortamento_Finanziario!$H:$L,5,FALSE),VLOOKUP($M15,TT_Tabelle_Riferimento!$H$31:$I$50,2,FALSE))","v":15},{"$f":"+IFERROR(VLOOKUP(OY$6&\"-\"&$M15&\"_old\",Ammortamento_Finanziario!$H:$L,5,FALSE),VLOOKUP($M15,TT_Tabelle_Riferimento!$H$31:$I$50,2,FALSE))","v":15},{"$f":"+IFERROR(VLOOKUP(OZ$6&\"-\"&$M15&\"_old\",Ammortamento_Finanziario!$H:$L,5,FALSE),VLOOKUP($M15,TT_Tabelle_Riferimento!$H$31:$I$50,2,FALSE))","v":15},{"$f":"+IFERROR(VLOOKUP(PA$6&\"-\"&$M15&\"_old\",Ammortamento_Finanziario!$H:$L,5,FALSE),VLOOKUP($M15,TT_Tabelle_Riferimento!$H$31:$I$50,2,FALSE))","v":15},{"$f":"+IFERROR(VLOOKUP(PB$6&\"-\"&$M15&\"_old\",Ammortamento_Finanziario!$H:$L,5,FALSE),VLOOKUP($M15,TT_Tabelle_Riferimento!$H$31:$I$50,2,FALSE))","v":15},{"$f":"+IFERROR(VLOOKUP(PC$6&\"-\"&$M15&\"_old\",Ammortamento_Finanziario!$H:$L,5,FALSE),VLOOKUP($M15,TT_Tabelle_Riferimento!$H$31:$I$50,2,FALSE))","v":15},{"$f":"+IFERROR(VLOOKUP(PD$6&\"-\"&$M15&\"_old\",Ammortamento_Finanziario!$H:$L,5,FALSE),VLOOKUP($M15,TT_Tabelle_Riferimento!$H$31:$I$50,2,FALSE))","v":15},{"$f":"+IFERROR(VLOOKUP(PE$6&\"-\"&$M15&\"_old\",Ammortamento_Finanziario!$H:$L,5,FALSE),VLOOKUP($M15,TT_Tabelle_Riferimento!$H$31:$I$50,2,FALSE))","v":15},{"$f":"+IFERROR(VLOOKUP(PF$6&\"-\"&$M15&\"_old\",Ammortamento_Finanziario!$H:$L,5,FALSE),VLOOKUP($M15,TT_Tabelle_Riferimento!$H$31:$I$50,2,FALSE))","v":15},{"$f":"+IFERROR(VLOOKUP(PG$6&\"-\"&$M15&\"_old\",Ammortamento_Finanziario!$H:$L,5,FALSE),VLOOKUP($M15,TT_Tabelle_Riferimento!$H$31:$I$50,2,FALSE))","v":15},{"$f":"+IFERROR(VLOOKUP(PH$6&\"-\"&$M15&\"_old\",Ammortamento_Finanziario!$H:$L,5,FALSE),VLOOKUP($M15,TT_Tabelle_Riferimento!$H$31:$I$50,2,FALSE))","v":15},{"$f":"+IFERROR(VLOOKUP(PI$6&\"-\"&$M15&\"_old\",Ammortamento_Finanziario!$H:$L,5,FALSE),VLOOKUP($M15,TT_Tabelle_Riferimento!$H$31:$I$50,2,FALSE))","v":15},{"$f":"+IFERROR(VLOOKUP(PJ$6&\"-\"&$M15&\"_old\",Ammortamento_Finanziario!$H:$L,5,FALSE),VLOOKUP($M15,TT_Tabelle_Riferimento!$H$31:$I$50,2,FALSE))","v":15},{"$f":"+IFERROR(VLOOKUP(PK$6&\"-\"&$M15&\"_old\",Ammortamento_Finanziario!$H:$L,5,FALSE),VLOOKUP($M15,TT_Tabelle_Riferimento!$H$31:$I$50,2,FALSE))","v":15},{"$f":"+IFERROR(VLOOKUP(PL$6&\"-\"&$M15&\"_old\",Ammortamento_Finanziario!$H:$L,5,FALSE),VLOOKUP($M15,TT_Tabelle_Riferimento!$H$31:$I$50,2,FALSE))","v":15},{"$f":"+IFERROR(VLOOKUP(PM$6&\"-\"&$M15&\"_old\",Ammortamento_Finanziario!$H:$L,5,FALSE),VLOOKUP($M15,TT_Tabelle_Riferimento!$H$31:$I$50,2,FALSE))","v":15},{"$f":"+IFERROR(VLOOKUP(PN$6&\"-\"&$M15&\"_old\",Ammortamento_Finanziario!$H:$L,5,FALSE),VLOOKUP($M15,TT_Tabelle_Riferimento!$H$31:$I$50,2,FALSE))","v":15},{"$f":"+IFERROR(VLOOKUP(PO$6&\"-\"&$M15&\"_old\",Ammortamento_Finanziario!$H:$L,5,FALSE),VLOOKUP($M15,TT_Tabelle_Riferimento!$H$31:$I$50,2,FALSE))","v":15},{"$f":"+IFERROR(VLOOKUP(PP$6&\"-\"&$M15&\"_old\",Ammortamento_Finanziario!$H:$L,5,FALSE),VLOOKUP($M15,TT_Tabelle_Riferimento!$H$31:$I$50,2,FALSE))","v":15},{"$f":"+IFERROR(VLOOKUP(PQ$6&\"-\"&$M15&\"_old\",Ammortamento_Finanziario!$H:$L,5,FALSE),VLOOKUP($M15,TT_Tabelle_Riferimento!$H$31:$I$50,2,FALSE))","v":15},{"$f":"+IFERROR(VLOOKUP(PR$6&\"-\"&$M15&\"_old\",Ammortamento_Finanziario!$H:$L,5,FALSE),VLOOKUP($M15,TT_Tabelle_Riferimento!$H$31:$I$50,2,FALSE))","v":15},{"$f":"+IFERROR(VLOOKUP(PS$6&\"-\"&$M15&\"_old\",Ammortamento_Finanziario!$H:$L,5,FALSE),VLOOKUP($M15,TT_Tabelle_Riferimento!$H$31:$I$50,2,FALSE))","v":15},{"$f":"+IFERROR(VLOOKUP(PT$6&\"-\"&$M15&\"_old\",Ammortamento_Finanziario!$H:$L,5,FALSE),VLOOKUP($M15,TT_Tabelle_Riferimento!$H$31:$I$50,2,FALSE))","v":15},{"$f":"+IFERROR(VLOOKUP(PU$6&\"-\"&$M15&\"_old\",Ammortamento_Finanziario!$H:$L,5,FALSE),VLOOKUP($M15,TT_Tabelle_Riferimento!$H$31:$I$50,2,FALSE))","v":15},{"$f":"+IFERROR(VLOOKUP(PV$6&\"-\"&$M15&\"_old\",Ammortamento_Finanziario!$H:$L,5,FALSE),VLOOKUP($M15,TT_Tabelle_Riferimento!$H$31:$I$50,2,FALSE))","v":15},{"$f":"+IFERROR(VLOOKUP(PW$6&\"-\"&$M15&\"_old\",Ammortamento_Finanziario!$H:$L,5,FALSE),VLOOKUP($M15,TT_Tabelle_Riferimento!$H$31:$I$50,2,FALSE))","v":15},{"$f":"+IFERROR(VLOOKUP(PX$6&\"-\"&$M15&\"_old\",Ammortamento_Finanziario!$H:$L,5,FALSE),VLOOKUP($M15,TT_Tabelle_Riferimento!$H$31:$I$50,2,FALSE))","v":15},{"$f":"+IFERROR(VLOOKUP(PY$6&\"-\"&$M15&\"_old\",Ammortamento_Finanziario!$H:$L,5,FALSE),VLOOKUP($M15,TT_Tabelle_Riferimento!$H$31:$I$50,2,FALSE))","v":15},{"$f":"+IFERROR(VLOOKUP(PZ$6&\"-\"&$M15&\"_old\",Ammortamento_Finanziario!$H:$L,5,FALSE),VLOOKUP($M15,TT_Tabelle_Riferimento!$H$31:$I$50,2,FALSE))","v":15},{"$f":"+IFERROR(VLOOKUP(QA$6&\"-\"&$M15&\"_old\",Ammortamento_Finanziario!$H:$L,5,FALSE),VLOOKUP($M15,TT_Tabelle_Riferimento!$H$31:$I$50,2,FALSE))","v":15},{"$f":"+IFERROR(VLOOKUP(QB$6&\"-\"&$M15&\"_old\",Ammortamento_Finanziario!$H:$L,5,FALSE),VLOOKUP($M15,TT_Tabelle_Riferimento!$H$31:$I$50,2,FALSE))","v":15},{"$f":"+IFERROR(VLOOKUP(QC$6&\"-\"&$M15&\"_old\",Ammortamento_Finanziario!$H:$L,5,FALSE),VLOOKUP($M15,TT_Tabelle_Riferimento!$H$31:$I$50,2,FALSE))","v":15},{"$f":"+IFERROR(VLOOKUP(QD$6&\"-\"&$M15&\"_old\",Ammortamento_Finanziario!$H:$L,5,FALSE),VLOOKUP($M15,TT_Tabelle_Riferimento!$H$31:$I$50,2,FALSE))","v":15},{"$f":"+IFERROR(VLOOKUP(QE$6&\"-\"&$M15&\"_old\",Ammortamento_Finanziario!$H:$L,5,FALSE),VLOOKUP($M15,TT_Tabelle_Riferimento!$H$31:$I$50,2,FALSE))","v":15},{"$f":"+IFERROR(VLOOKUP(QF$6&\"-\"&$M15&\"_old\",Ammortamento_Finanziario!$H:$L,5,FALSE),VLOOKUP($M15,TT_Tabelle_Riferimento!$H$31:$I$50,2,FALSE))","v":15},{"$f":"+IFERROR(VLOOKUP(QG$6&\"-\"&$M15&\"_old\",Ammortamento_Finanziario!$H:$L,5,FALSE),VLOOKUP($M15,TT_Tabelle_Riferimento!$H$31:$I$50,2,FALSE))","v":15},{"$f":"+IFERROR(VLOOKUP(QH$6&\"-\"&$M15&\"_old\",Ammortamento_Finanziario!$H:$L,5,FALSE),VLOOKUP($M15,TT_Tabelle_Riferimento!$H$31:$I$50,2,FALSE))","v":15},{"$f":"+IFERROR(VLOOKUP(QI$6&\"-\"&$M15&\"_old\",Ammortamento_Finanziario!$H:$L,5,FALSE),VLOOKUP($M15,TT_Tabelle_Riferimento!$H$31:$I$50,2,FALSE))","v":15},{"$f":"+IFERROR(VLOOKUP(QJ$6&\"-\"&$M15&\"_old\",Ammortamento_Finanziario!$H:$L,5,FALSE),VLOOKUP($M15,TT_Tabelle_Riferimento!$H$31:$I$50,2,FALSE))","v":15},{"$f":"+IFERROR(VLOOKUP(QK$6&\"-\"&$M15&\"_old\",Ammortamento_Finanziario!$H:$L,5,FALSE),VLOOKUP($M15,TT_Tabelle_Riferimento!$H$31:$I$50,2,FALSE))","v":15},{"$f":"+IFERROR(VLOOKUP(QL$6&\"-\"&$M15&\"_old\",Ammortamento_Finanziario!$H:$L,5,FALSE),VLOOKUP($M15,TT_Tabelle_Riferimento!$H$31:$I$50,2,FALSE))","v":15},{"$f":"+IFERROR(VLOOKUP(QM$6&\"-\"&$M15&\"_old\",Ammortamento_Finanziario!$H:$L,5,FALSE),VLOOKUP($M15,TT_Tabelle_Riferimento!$H$31:$I$50,2,FALSE))","v":15},{"$f":"+IFERROR(VLOOKUP(QN$6&\"-\"&$M15&\"_old\",Ammortamento_Finanziario!$H:$L,5,FALSE),VLOOKUP($M15,TT_Tabelle_Riferimento!$H$31:$I$50,2,FALSE))","v":15},{"$f":"+IFERROR(VLOOKUP(QO$6&\"-\"&$M15&\"_old\",Ammortamento_Finanziario!$H:$L,5,FALSE),VLOOKUP($M15,TT_Tabelle_Riferimento!$H$31:$I$50,2,FALSE))","v":15},{"$f":"+IFERROR(VLOOKUP(QP$6&\"-\"&$M15&\"_old\",Ammortamento_Finanziario!$H:$L,5,FALSE),VLOOKUP($M15,TT_Tabelle_Riferimento!$H$31:$I$50,2,FALSE))","v":15},{"$f":"+IFERROR(VLOOKUP(QQ$6&\"-\"&$M15&\"_old\",Ammortamento_Finanziario!$H:$L,5,FALSE),VLOOKUP($M15,TT_Tabelle_Riferimento!$H$31:$I$50,2,FALSE))","v":15},{"$f":"+IFERROR(VLOOKUP(QR$6&\"-\"&$M15&\"_old\",Ammortamento_Finanziario!$H:$L,5,FALSE),VLOOKUP($M15,TT_Tabelle_Riferimento!$H$31:$I$50,2,FALSE))","v":15},{"$f":"+IFERROR(VLOOKUP(QS$6&\"-\"&$M15&\"_old\",Ammortamento_Finanziario!$H:$L,5,FALSE),VLOOKUP($M15,TT_Tabelle_Riferimento!$H$31:$I$50,2,FALSE))","v":15},{"$f":"+IFERROR(VLOOKUP(QT$6&\"-\"&$M15&\"_old\",Ammortamento_Finanziario!$H:$L,5,FALSE),VLOOKUP($M15,TT_Tabelle_Riferimento!$H$31:$I$50,2,FALSE))","v":15},{"$f":"+IFERROR(VLOOKUP(QU$6&\"-\"&$M15&\"_old\",Ammortamento_Finanziario!$H:$L,5,FALSE),VLOOKUP($M15,TT_Tabelle_Riferimento!$H$31:$I$50,2,FALSE))","v":15},{"$f":"+IFERROR(VLOOKUP(QV$6&\"-\"&$M15&\"_old\",Ammortamento_Finanziario!$H:$L,5,FALSE),VLOOKUP($M15,TT_Tabelle_Riferimento!$H$31:$I$50,2,FALSE))","v":15},{"$f":"+IFERROR(VLOOKUP(QW$6&\"-\"&$M15&\"_old\",Ammortamento_Finanziario!$H:$L,5,FALSE),VLOOKUP($M15,TT_Tabelle_Riferimento!$H$31:$I$50,2,FALSE))","v":15},{"$f":"+IFERROR(VLOOKUP(QX$6&\"-\"&$M15&\"_old\",Ammortamento_Finanziario!$H:$L,5,FALSE),VLOOKUP($M15,TT_Tabelle_Riferimento!$H$31:$I$50,2,FALSE))","v":15},{"$f":"+IFERROR(VLOOKUP(QY$6&\"-\"&$M15&\"_old\",Ammortamento_Finanziario!$H:$L,5,FALSE),VLOOKUP($M15,TT_Tabelle_Riferimento!$H$31:$I$50,2,FALSE))","v":15},{"$f":"+IFERROR(VLOOKUP(QZ$6&\"-\"&$M15&\"_old\",Ammortamento_Finanziario!$H:$L,5,FALSE),VLOOKUP($M15,TT_Tabelle_Riferimento!$H$31:$I$50,2,FALSE))","v":15},{"$f":"+IFERROR(VLOOKUP(RA$6&\"-\"&$M15&\"_old\",Ammortamento_Finanziario!$H:$L,5,FALSE),VLOOKUP($M15,TT_Tabelle_Riferimento!$H$31:$I$50,2,FALSE))","v":15},{"$f":"+IFERROR(VLOOKUP(RB$6&\"-\"&$M15&\"_old\",Ammortamento_Finanziario!$H:$L,5,FALSE),VLOOKUP($M15,TT_Tabelle_Riferimento!$H$31:$I$50,2,FALSE))","v":15},{"$f":"+IFERROR(VLOOKUP(RC$6&\"-\"&$M15&\"_old\",Ammortamento_Finanziario!$H:$L,5,FALSE),VLOOKUP($M15,TT_Tabelle_Riferimento!$H$31:$I$50,2,FALSE))","v":15},{"$f":"+IFERROR(VLOOKUP(RD$6&\"-\"&$M15&\"_old\",Ammortamento_Finanziario!$H:$L,5,FALSE),VLOOKUP($M15,TT_Tabelle_Riferimento!$H$31:$I$50,2,FALSE))","v":15},{"$f":"+IFERROR(VLOOKUP(RE$6&\"-\"&$M15&\"_old\",Ammortamento_Finanziario!$H:$L,5,FALSE),VLOOKUP($M15,TT_Tabelle_Riferimento!$H$31:$I$50,2,FALSE))","v":15},{"$f":"+IFERROR(VLOOKUP(RF$6&\"-\"&$M15&\"_old\",Ammortamento_Finanziario!$H:$L,5,FALSE),VLOOKUP($M15,TT_Tabelle_Riferimento!$H$31:$I$50,2,FALSE))","v":15},{"$f":"+IFERROR(VLOOKUP(RG$6&\"-\"&$M15&\"_old\",Ammortamento_Finanziario!$H:$L,5,FALSE),VLOOKUP($M15,TT_Tabelle_Riferimento!$H$31:$I$50,2,FALSE))","v":15},{"$f":"+IFERROR(VLOOKUP(RH$6&\"-\"&$M15&\"_old\",Ammortamento_Finanziario!$H:$L,5,FALSE),VLOOKUP($M15,TT_Tabelle_Riferimento!$H$31:$I$50,2,FALSE))","v":15},{"$f":"+IFERROR(VLOOKUP(RI$6&\"-\"&$M15&\"_old\",Ammortamento_Finanziario!$H:$L,5,FALSE),VLOOKUP($M15,TT_Tabelle_Riferimento!$H$31:$I$50,2,FALSE))","v":15},{"$f":"+IFERROR(VLOOKUP(RJ$6&\"-\"&$M15&\"_old\",Ammortamento_Finanziario!$H:$L,5,FALSE),VLOOKUP($M15,TT_Tabelle_Riferimento!$H$31:$I$50,2,FALSE))","v":15},{"$f":"+IFERROR(VLOOKUP(RK$6&\"-\"&$M15&\"_old\",Ammortamento_Finanziario!$H:$L,5,FALSE),VLOOKUP($M15,TT_Tabelle_Riferimento!$H$31:$I$50,2,FALSE))","v":15},{"$f":"+IFERROR(VLOOKUP(RL$6&\"-\"&$M15&\"_old\",Ammortamento_Finanziario!$H:$L,5,FALSE),VLOOKUP($M15,TT_Tabelle_Riferimento!$H$31:$I$50,2,FALSE))","v":15},{"$f":"+IFERROR(VLOOKUP(RM$6&\"-\"&$M15&\"_old\",Ammortamento_Finanziario!$H:$L,5,FALSE),VLOOKUP($M15,TT_Tabelle_Riferimento!$H$31:$I$50,2,FALSE))","v":15},{"$f":"+IFERROR(VLOOKUP(RN$6&\"-\"&$M15&\"_old\",Ammortamento_Finanziario!$H:$L,5,FALSE),VLOOKUP($M15,TT_Tabelle_Riferimento!$H$31:$I$50,2,FALSE))","v":15},{"$f":"+IFERROR(VLOOKUP(RO$6&\"-\"&$M15&\"_old\",Ammortamento_Finanziario!$H:$L,5,FALSE),VLOOKUP($M15,TT_Tabelle_Riferimento!$H$31:$I$50,2,FALSE))","v":15},{"$f":"+IFERROR(VLOOKUP(RP$6&\"-\"&$M15&\"_old\",Ammortamento_Finanziario!$H:$L,5,FALSE),VLOOKUP($M15,TT_Tabelle_Riferimento!$H$31:$I$50,2,FALSE))","v":15},{"$f":"+IFERROR(VLOOKUP(RQ$6&\"-\"&$M15&\"_old\",Ammortamento_Finanziario!$H:$L,5,FALSE),VLOOKUP($M15,TT_Tabelle_Riferimento!$H$31:$I$50,2,FALSE))","v":15},{"$f":"+IFERROR(VLOOKUP(RR$6&\"-\"&$M15&\"_old\",Ammortamento_Finanziario!$H:$L,5,FALSE),VLOOKUP($M15,TT_Tabelle_Riferimento!$H$31:$I$50,2,FALSE))","v":15},{"$f":"+IFERROR(VLOOKUP(RS$6&\"-\"&$M15&\"_old\",Ammortamento_Finanziario!$H:$L,5,FALSE),VLOOKUP($M15,TT_Tabelle_Riferimento!$H$31:$I$50,2,FALSE))","v":15},{"$f":"+IFERROR(VLOOKUP(RT$6&\"-\"&$M15&\"_old\",Ammortamento_Finanziario!$H:$L,5,FALSE),VLOOKUP($M15,TT_Tabelle_Riferimento!$H$31:$I$50,2,FALSE))","v":15},{"$f":"+IFERROR(VLOOKUP(RU$6&\"-\"&$M15&\"_old\",Ammortamento_Finanziario!$H:$L,5,FALSE),VLOOKUP($M15,TT_Tabelle_Riferimento!$H$31:$I$50,2,FALSE))","v":15},{"$f":"+IFERROR(VLOOKUP(RV$6&\"-\"&$M15&\"_old\",Ammortamento_Finanziario!$H:$L,5,FALSE),VLOOKUP($M15,TT_Tabelle_Riferimento!$H$31:$I$50,2,FALSE))","v":15}]
[null,null,null,"Immobilizzazioni nette del gestore - solo nuovi investimenti (serie cumulata)",null,null,null,null,null,null,null,null,10,{"$f":"+IFERROR(VLOOKUP(N$6&\"-\"&$M16&\"_old\",Ammortamento_Finanziario!$H:$L,5,FALSE),VLOOKUP($M16,TT_Tabelle_Riferimento!$H$31:$I$50,2,FALSE))","v":15},{"$f":"+IFERROR(VLOOKUP(O$6&\"-\"&$M16&\"_old\",Ammortamento_Finanziario!$H:$L,5,FALSE),VLOOKUP($M16,TT_Tabelle_Riferimento!$H$31:$I$50,2,FALSE))","v":15},{"$f":"+IFERROR(VLOOKUP(P$6&\"-\"&$M16&\"_old\",Ammortamento_Finanziario!$H:$L,5,FALSE),VLOOKUP($M16,TT_Tabelle_Riferimento!$H$31:$I$50,2,FALSE))","v":15},{"$f":"+IFERROR(VLOOKUP(Q$6&\"-\"&$M16&\"_old\",Ammortamento_Finanziario!$H:$L,5,FALSE),VLOOKUP($M16,TT_Tabelle_Riferimento!$H$31:$I$50,2,FALSE))","v":15},{"$f":"+IFERROR(VLOOKUP(R$6&\"-\"&$M16&\"_old\",Ammortamento_Finanziario!$H:$L,5,FALSE),VLOOKUP($M16,TT_Tabelle_Riferimento!$H$31:$I$50,2,FALSE))","v":15},{"$f":"+IFERROR(VLOOKUP(S$6&\"-\"&$M16&\"_old\",Ammortamento_Finanziario!$H:$L,5,FALSE),VLOOKUP($M16,TT_Tabelle_Riferimento!$H$31:$I$50,2,FALSE))","v":15},{"$f":"+IFERROR(VLOOKUP(T$6&\"-\"&$M16&\"_old\",Ammortamento_Finanziario!$H:$L,5,FALSE),VLOOKUP($M16,TT_Tabelle_Riferimento!$H$31:$I$50,2,FALSE))","v":15},{"$f":"+IFERROR(VLOOKUP(U$6&\"-\"&$M16&\"_old\",Ammortamento_Finanziario!$H:$L,5,FALSE),VLOOKUP($M16,TT_Tabelle_Riferimento!$H$31:$I$50,2,FALSE))","v":15},{"$f":"+IFERROR(VLOOKUP(V$6&\"-\"&$M16&\"_old\",Ammortamento_Finanziario!$H:$L,5,FALSE),VLOOKUP($M16,TT_Tabelle_Riferimento!$H$31:$I$50,2,FALSE))","v":15},{"$f":"+IFERROR(VLOOKUP(W$6&\"-\"&$M16&\"_old\",Ammortamento_Finanziario!$H:$L,5,FALSE),VLOOKUP($M16,TT_Tabelle_Riferimento!$H$31:$I$50,2,FALSE))","v":15},{"$f":"+IFERROR(VLOOKUP(X$6&\"-\"&$M16&\"_old\",Ammortamento_Finanziario!$H:$L,5,FALSE),VLOOKUP($M16,TT_Tabelle_Riferimento!$H$31:$I$50,2,FALSE))","v":15},{"$f":"+IFERROR(VLOOKUP(Y$6&\"-\"&$M16&\"_old\",Ammortamento_Finanziario!$H:$L,5,FALSE),VLOOKUP($M16,TT_Tabelle_Riferimento!$H$31:$I$50,2,FALSE))","v":15},{"$f":"+IFERROR(VLOOKUP(Z$6&\"-\"&$M16&\"_old\",Ammortamento_Finanziario!$H:$L,5,FALSE),VLOOKUP($M16,TT_Tabelle_Riferimento!$H$31:$I$50,2,FALSE))","v":15},{"$f":"+IFERROR(VLOOKUP(AA$6&\"-\"&$M16&\"_old\",Ammortamento_Finanziario!$H:$L,5,FALSE),VLOOKUP($M16,TT_Tabelle_Riferimento!$H$31:$I$50,2,FALSE))","v":15},{"$f":"+IFERROR(VLOOKUP(AB$6&\"-\"&$M16&\"_old\",Ammortamento_Finanziario!$H:$L,5,FALSE),VLOOKUP($M16,TT_Tabelle_Riferimento!$H$31:$I$50,2,FALSE))","v":15},{"$f":"+IFERROR(VLOOKUP(AC$6&\"-\"&$M16&\"_old\",Ammortamento_Finanziario!$H:$L,5,FALSE),VLOOKUP($M16,TT_Tabelle_Riferimento!$H$31:$I$50,2,FALSE))","v":15},{"$f":"+IFERROR(VLOOKUP(AD$6&\"-\"&$M16&\"_old\",Ammortamento_Finanziario!$H:$L,5,FALSE),VLOOKUP($M16,TT_Tabelle_Riferimento!$H$31:$I$50,2,FALSE))","v":15},{"$f":"+IFERROR(VLOOKUP(AE$6&\"-\"&$M16&\"_old\",Ammortamento_Finanziario!$H:$L,5,FALSE),VLOOKUP($M16,TT_Tabelle_Riferimento!$H$31:$I$50,2,FALSE))","v":15},{"$f":"+IFERROR(VLOOKUP(AF$6&\"-\"&$M16&\"_old\",Ammortamento_Finanziario!$H:$L,5,FALSE),VLOOKUP($M16,TT_Tabelle_Riferimento!$H$31:$I$50,2,FALSE))","v":15},{"$f":"+IFERROR(VLOOKUP(AG$6&\"-\"&$M16&\"_old\",Ammortamento_Finanziario!$H:$L,5,FALSE),VLOOKUP($M16,TT_Tabelle_Riferimento!$H$31:$I$50,2,FALSE))","v":15},{"$f":"+IFERROR(VLOOKUP(AH$6&\"-\"&$M16&\"_old\",Ammortamento_Finanziario!$H:$L,5,FALSE),VLOOKUP($M16,TT_Tabelle_Riferimento!$H$31:$I$50,2,FALSE))","v":15},{"$f":"+IFERROR(VLOOKUP(AI$6&\"-\"&$M16&\"_old\",Ammortamento_Finanziario!$H:$L,5,FALSE),VLOOKUP($M16,TT_Tabelle_Riferimento!$H$31:$I$50,2,FALSE))","v":15},{"$f":"+IFERROR(VLOOKUP(AJ$6&\"-\"&$M16&\"_old\",Ammortamento_Finanziario!$H:$L,5,FALSE),VLOOKUP($M16,TT_Tabelle_Riferimento!$H$31:$I$50,2,FALSE))","v":15},{"$f":"+IFERROR(VLOOKUP(AK$6&\"-\"&$M16&\"_old\",Ammortamento_Finanziario!$H:$L,5,FALSE),VLOOKUP($M16,TT_Tabelle_Riferimento!$H$31:$I$50,2,FALSE))","v":15},{"$f":"+IFERROR(VLOOKUP(AL$6&\"-\"&$M16&\"_old\",Ammortamento_Finanziario!$H:$L,5,FALSE),VLOOKUP($M16,TT_Tabelle_Riferimento!$H$31:$I$50,2,FALSE))","v":15},{"$f":"+IFERROR(VLOOKUP(AM$6&\"-\"&$M16&\"_old\",Ammortamento_Finanziario!$H:$L,5,FALSE),VLOOKUP($M16,TT_Tabelle_Riferimento!$H$31:$I$50,2,FALSE))","v":15},{"$f":"+IFERROR(VLOOKUP(AN$6&\"-\"&$M16&\"_old\",Ammortamento_Finanziario!$H:$L,5,FALSE),VLOOKUP($M16,TT_Tabelle_Riferimento!$H$31:$I$50,2,FALSE))","v":15},{"$f":"+IFERROR(VLOOKUP(AO$6&\"-\"&$M16&\"_old\",Ammortamento_Finanziario!$H:$L,5,FALSE),VLOOKUP($M16,TT_Tabelle_Riferimento!$H$31:$I$50,2,FALSE))","v":15},{"$f":"+IFERROR(VLOOKUP(AP$6&\"-\"&$M16&\"_old\",Ammortamento_Finanziario!$H:$L,5,FALSE),VLOOKUP($M16,TT_Tabelle_Riferimento!$H$31:$I$50,2,FALSE))","v":15},{"$f":"+IFERROR(VLOOKUP(AQ$6&\"-\"&$M16&\"_old\",Ammortamento_Finanziario!$H:$L,5,FALSE),VLOOKUP($M16,TT_Tabelle_Riferimento!$H$31:$I$50,2,FALSE))","v":15},{"$f":"+IFERROR(VLOOKUP(AR$6&\"-\"&$M16&\"_old\",Ammortamento_Finanziario!$H:$L,5,FALSE),VLOOKUP($M16,TT_Tabelle_Riferimento!$H$31:$I$50,2,FALSE))","v":15},{"$f":"+IFERROR(VLOOKUP(AS$6&\"-\"&$M16&\"_old\",Ammortamento_Finanziario!$H:$L,5,FALSE),VLOOKUP($M16,TT_Tabelle_Riferimento!$H$31:$I$50,2,FALSE))","v":15},{"$f":"+IFERROR(VLOOKUP(AT$6&\"-\"&$M16&\"_old\",Ammortamento_Finanziario!$H:$L,5,FALSE),VLOOKUP($M16,TT_Tabelle_Riferimento!$H$31:$I$50,2,FALSE))","v":15},{"$f":"+IFERROR(VLOOKUP(AU$6&\"-\"&$M16&\"_old\",Ammortamento_Finanziario!$H:$L,5,FALSE),VLOOKUP($M16,TT_Tabelle_Riferimento!$H$31:$I$50,2,FALSE))","v":15},{"$f":"+IFERROR(VLOOKUP(AV$6&\"-\"&$M16&\"_old\",Ammortamento_Finanziario!$H:$L,5,FALSE),VLOOKUP($M16,TT_Tabelle_Riferimento!$H$31:$I$50,2,FALSE))","v":15},{"$f":"+IFERROR(VLOOKUP(AW$6&\"-\"&$M16&\"_old\",Ammortamento_Finanziario!$H:$L,5,FALSE),VLOOKUP($M16,TT_Tabelle_Riferimento!$H$31:$I$50,2,FALSE))","v":15},{"$f":"+IFERROR(VLOOKUP(AX$6&\"-\"&$M16&\"_old\",Ammortamento_Finanziario!$H:$L,5,FALSE),VLOOKUP($M16,TT_Tabelle_Riferimento!$H$31:$I$50,2,FALSE))","v":15},{"$f":"+IFERROR(VLOOKUP(AY$6&\"-\"&$M16&\"_old\",Ammortamento_Finanziario!$H:$L,5,FALSE),VLOOKUP($M16,TT_Tabelle_Riferimento!$H$31:$I$50,2,FALSE))","v":15},{"$f":"+IFERROR(VLOOKUP(AZ$6&\"-\"&$M16&\"_old\",Ammortamento_Finanziario!$H:$L,5,FALSE),VLOOKUP($M16,TT_Tabelle_Riferimento!$H$31:$I$50,2,FALSE))","v":15},{"$f":"+IFERROR(VLOOKUP(BA$6&\"-\"&$M16&\"_old\",Ammortamento_Finanziario!$H:$L,5,FALSE),VLOOKUP($M16,TT_Tabelle_Riferimento!$H$31:$I$50,2,FALSE))","v":15},{"$f":"+IFERROR(VLOOKUP(BB$6&\"-\"&$M16&\"_old\",Ammortamento_Finanziario!$H:$L,5,FALSE),VLOOKUP($M16,TT_Tabelle_Riferimento!$H$31:$I$50,2,FALSE))","v":15},{"$f":"+IFERROR(VLOOKUP(BC$6&\"-\"&$M16&\"_old\",Ammortamento_Finanziario!$H:$L,5,FALSE),VLOOKUP($M16,TT_Tabelle_Riferimento!$H$31:$I$50,2,FALSE))","v":15},{"$f":"+IFERROR(VLOOKUP(BD$6&\"-\"&$M16&\"_old\",Ammortamento_Finanziario!$H:$L,5,FALSE),VLOOKUP($M16,TT_Tabelle_Riferimento!$H$31:$I$50,2,FALSE))","v":15},{"$f":"+IFERROR(VLOOKUP(BE$6&\"-\"&$M16&\"_old\",Ammortamento_Finanziario!$H:$L,5,FALSE),VLOOKUP($M16,TT_Tabelle_Riferimento!$H$31:$I$50,2,FALSE))","v":15},{"$f":"+IFERROR(VLOOKUP(BF$6&\"-\"&$M16&\"_old\",Ammortamento_Finanziario!$H:$L,5,FALSE),VLOOKUP($M16,TT_Tabelle_Riferimento!$H$31:$I$50,2,FALSE))","v":15},{"$f":"+IFERROR(VLOOKUP(BG$6&\"-\"&$M16&\"_old\",Ammortamento_Finanziario!$H:$L,5,FALSE),VLOOKUP($M16,TT_Tabelle_Riferimento!$H$31:$I$50,2,FALSE))","v":15},{"$f":"+IFERROR(VLOOKUP(BH$6&\"-\"&$M16&\"_old\",Ammortamento_Finanziario!$H:$L,5,FALSE),VLOOKUP($M16,TT_Tabelle_Riferimento!$H$31:$I$50,2,FALSE))","v":15},{"$f":"+IFERROR(VLOOKUP(BI$6&\"-\"&$M16&\"_old\",Ammortamento_Finanziario!$H:$L,5,FALSE),VLOOKUP($M16,TT_Tabelle_Riferimento!$H$31:$I$50,2,FALSE))","v":15},{"$f":"+IFERROR(VLOOKUP(BJ$6&\"-\"&$M16&\"_old\",Ammortamento_Finanziario!$H:$L,5,FALSE),VLOOKUP($M16,TT_Tabelle_Riferimento!$H$31:$I$50,2,FALSE))","v":15},{"$f":"+IFERROR(VLOOKUP(BK$6&\"-\"&$M16&\"_old\",Ammortamento_Finanziario!$H:$L,5,FALSE),VLOOKUP($M16,TT_Tabelle_Riferimento!$H$31:$I$50,2,FALSE))","v":15},{"$f":"+IFERROR(VLOOKUP(BL$6&\"-\"&$M16&\"_old\",Ammortamento_Finanziario!$H:$L,5,FALSE),VLOOKUP($M16,TT_Tabelle_Riferimento!$H$31:$I$50,2,FALSE))","v":15},{"$f":"+IFERROR(VLOOKUP(BM$6&\"-\"&$M16&\"_old\",Ammortamento_Finanziario!$H:$L,5,FALSE),VLOOKUP($M16,TT_Tabelle_Riferimento!$H$31:$I$50,2,FALSE))","v":15},{"$f":"+IFERROR(VLOOKUP(BN$6&\"-\"&$M16&\"_old\",Ammortamento_Finanziario!$H:$L,5,FALSE),VLOOKUP($M16,TT_Tabelle_Riferimento!$H$31:$I$50,2,FALSE))","v":15},{"$f":"+IFERROR(VLOOKUP(BO$6&\"-\"&$M16&\"_old\",Ammortamento_Finanziario!$H:$L,5,FALSE),VLOOKUP($M16,TT_Tabelle_Riferimento!$H$31:$I$50,2,FALSE))","v":15},{"$f":"+IFERROR(VLOOKUP(BP$6&\"-\"&$M16&\"_old\",Ammortamento_Finanziario!$H:$L,5,FALSE),VLOOKUP($M16,TT_Tabelle_Riferimento!$H$31:$I$50,2,FALSE))","v":15},{"$f":"+IFERROR(VLOOKUP(BQ$6&\"-\"&$M16&\"_old\",Ammortamento_Finanziario!$H:$L,5,FALSE),VLOOKUP($M16,TT_Tabelle_Riferimento!$H$31:$I$50,2,FALSE))","v":15},{"$f":"+IFERROR(VLOOKUP(BR$6&\"-\"&$M16&\"_old\",Ammortamento_Finanziario!$H:$L,5,FALSE),VLOOKUP($M16,TT_Tabelle_Riferimento!$H$31:$I$50,2,FALSE))","v":15},{"$f":"+IFERROR(VLOOKUP(BS$6&\"-\"&$M16&\"_old\",Ammortamento_Finanziario!$H:$L,5,FALSE),VLOOKUP($M16,TT_Tabelle_Riferimento!$H$31:$I$50,2,FALSE))","v":15},{"$f":"+IFERROR(VLOOKUP(BT$6&\"-\"&$M16&\"_old\",Ammortamento_Finanziario!$H:$L,5,FALSE),VLOOKUP($M16,TT_Tabelle_Riferimento!$H$31:$I$50,2,FALSE))","v":15},{"$f":"+IFERROR(VLOOKUP(BU$6&\"-\"&$M16&\"_old\",Ammortamento_Finanziario!$H:$L,5,FALSE),VLOOKUP($M16,TT_Tabelle_Riferimento!$H$31:$I$50,2,FALSE))","v":15},{"$f":"+IFERROR(VLOOKUP(BV$6&\"-\"&$M16&\"_old\",Ammortamento_Finanziario!$H:$L,5,FALSE),VLOOKUP($M16,TT_Tabelle_Riferimento!$H$31:$I$50,2,FALSE))","v":15},{"$f":"+IFERROR(VLOOKUP(BW$6&\"-\"&$M16&\"_old\",Ammortamento_Finanziario!$H:$L,5,FALSE),VLOOKUP($M16,TT_Tabelle_Riferimento!$H$31:$I$50,2,FALSE))","v":15},{"$f":"+IFERROR(VLOOKUP(BX$6&\"-\"&$M16&\"_old\",Ammortamento_Finanziario!$H:$L,5,FALSE),VLOOKUP($M16,TT_Tabelle_Riferimento!$H$31:$I$50,2,FALSE))","v":15},{"$f":"+IFERROR(VLOOKUP(BY$6&\"-\"&$M16&\"_old\",Ammortamento_Finanziario!$H:$L,5,FALSE),VLOOKUP($M16,TT_Tabelle_Riferimento!$H$31:$I$50,2,FALSE))","v":15},{"$f":"+IFERROR(VLOOKUP(BZ$6&\"-\"&$M16&\"_old\",Ammortamento_Finanziario!$H:$L,5,FALSE),VLOOKUP($M16,TT_Tabelle_Riferimento!$H$31:$I$50,2,FALSE))","v":15},{"$f":"+IFERROR(VLOOKUP(CA$6&\"-\"&$M16&\"_old\",Ammortamento_Finanziario!$H:$L,5,FALSE),VLOOKUP($M16,TT_Tabelle_Riferimento!$H$31:$I$50,2,FALSE))","v":15},{"$f":"+IFERROR(VLOOKUP(CB$6&\"-\"&$M16&\"_old\",Ammortamento_Finanziario!$H:$L,5,FALSE),VLOOKUP($M16,TT_Tabelle_Riferimento!$H$31:$I$50,2,FALSE))","v":15},{"$f":"+IFERROR(VLOOKUP(CC$6&\"-\"&$M16&\"_old\",Ammortamento_Finanziario!$H:$L,5,FALSE),VLOOKUP($M16,TT_Tabelle_Riferimento!$H$31:$I$50,2,FALSE))","v":15},{"$f":"+IFERROR(VLOOKUP(CD$6&\"-\"&$M16&\"_old\",Ammortamento_Finanziario!$H:$L,5,FALSE),VLOOKUP($M16,TT_Tabelle_Riferimento!$H$31:$I$50,2,FALSE))","v":15},{"$f":"+IFERROR(VLOOKUP(CE$6&\"-\"&$M16&\"_old\",Ammortamento_Finanziario!$H:$L,5,FALSE),VLOOKUP($M16,TT_Tabelle_Riferimento!$H$31:$I$50,2,FALSE))","v":15},{"$f":"+IFERROR(VLOOKUP(CF$6&\"-\"&$M16&\"_old\",Ammortamento_Finanziario!$H:$L,5,FALSE),VLOOKUP($M16,TT_Tabelle_Riferimento!$H$31:$I$50,2,FALSE))","v":15},{"$f":"+IFERROR(VLOOKUP(CG$6&\"-\"&$M16&\"_old\",Ammortamento_Finanziario!$H:$L,5,FALSE),VLOOKUP($M16,TT_Tabelle_Riferimento!$H$31:$I$50,2,FALSE))","v":15},{"$f":"+IFERROR(VLOOKUP(CH$6&\"-\"&$M16&\"_old\",Ammortamento_Finanziario!$H:$L,5,FALSE),VLOOKUP($M16,TT_Tabelle_Riferimento!$H$31:$I$50,2,FALSE))","v":15},{"$f":"+IFERROR(VLOOKUP(CI$6&\"-\"&$M16&\"_old\",Ammortamento_Finanziario!$H:$L,5,FALSE),VLOOKUP($M16,TT_Tabelle_Riferimento!$H$31:$I$50,2,FALSE))","v":15},{"$f":"+IFERROR(VLOOKUP(CJ$6&\"-\"&$M16&\"_old\",Ammortamento_Finanziario!$H:$L,5,FALSE),VLOOKUP($M16,TT_Tabelle_Riferimento!$H$31:$I$50,2,FALSE))","v":15},{"$f":"+IFERROR(VLOOKUP(CK$6&\"-\"&$M16&\"_old\",Ammortamento_Finanziario!$H:$L,5,FALSE),VLOOKUP($M16,TT_Tabelle_Riferimento!$H$31:$I$50,2,FALSE))","v":15},{"$f":"+IFERROR(VLOOKUP(CL$6&\"-\"&$M16&\"_old\",Ammortamento_Finanziario!$H:$L,5,FALSE),VLOOKUP($M16,TT_Tabelle_Riferimento!$H$31:$I$50,2,FALSE))","v":15},{"$f":"+IFERROR(VLOOKUP(CM$6&\"-\"&$M16&\"_old\",Ammortamento_Finanziario!$H:$L,5,FALSE),VLOOKUP($M16,TT_Tabelle_Riferimento!$H$31:$I$50,2,FALSE))","v":15},{"$f":"+IFERROR(VLOOKUP(CN$6&\"-\"&$M16&\"_old\",Ammortamento_Finanziario!$H:$L,5,FALSE),VLOOKUP($M16,TT_Tabelle_Riferimento!$H$31:$I$50,2,FALSE))","v":15},{"$f":"+IFERROR(VLOOKUP(CO$6&\"-\"&$M16&\"_old\",Ammortamento_Finanziario!$H:$L,5,FALSE),VLOOKUP($M16,TT_Tabelle_Riferimento!$H$31:$I$50,2,FALSE))","v":15},{"$f":"+IFERROR(VLOOKUP(CP$6&\"-\"&$M16&\"_old\",Ammortamento_Finanziario!$H:$L,5,FALSE),VLOOKUP($M16,TT_Tabelle_Riferimento!$H$31:$I$50,2,FALSE))","v":15},{"$f":"+IFERROR(VLOOKUP(CQ$6&\"-\"&$M16&\"_old\",Ammortamento_Finanziario!$H:$L,5,FALSE),VLOOKUP($M16,TT_Tabelle_Riferimento!$H$31:$I$50,2,FALSE))","v":15},{"$f":"+IFERROR(VLOOKUP(CR$6&\"-\"&$M16&\"_old\",Ammortamento_Finanziario!$H:$L,5,FALSE),VLOOKUP($M16,TT_Tabelle_Riferimento!$H$31:$I$50,2,FALSE))","v":15},{"$f":"+IFERROR(VLOOKUP(CS$6&\"-\"&$M16&\"_old\",Ammortamento_Finanziario!$H:$L,5,FALSE),VLOOKUP($M16,TT_Tabelle_Riferimento!$H$31:$I$50,2,FALSE))","v":15},{"$f":"+IFERROR(VLOOKUP(CT$6&\"-\"&$M16&\"_old\",Ammortamento_Finanziario!$H:$L,5,FALSE),VLOOKUP($M16,TT_Tabelle_Riferimento!$H$31:$I$50,2,FALSE))","v":15},{"$f":"+IFERROR(VLOOKUP(CU$6&\"-\"&$M16&\"_old\",Ammortamento_Finanziario!$H:$L,5,FALSE),VLOOKUP($M16,TT_Tabelle_Riferimento!$H$31:$I$50,2,FALSE))","v":15},{"$f":"+IFERROR(VLOOKUP(CV$6&\"-\"&$M16&\"_old\",Ammortamento_Finanziario!$H:$L,5,FALSE),VLOOKUP($M16,TT_Tabelle_Riferimento!$H$31:$I$50,2,FALSE))","v":15},{"$f":"+IFERROR(VLOOKUP(CW$6&\"-\"&$M16&\"_old\",Ammortamento_Finanziario!$H:$L,5,FALSE),VLOOKUP($M16,TT_Tabelle_Riferimento!$H$31:$I$50,2,FALSE))","v":15},{"$f":"+IFERROR(VLOOKUP(CX$6&\"-\"&$M16&\"_old\",Ammortamento_Finanziario!$H:$L,5,FALSE),VLOOKUP($M16,TT_Tabelle_Riferimento!$H$31:$I$50,2,FALSE))","v":15},{"$f":"+IFERROR(VLOOKUP(CY$6&\"-\"&$M16&\"_old\",Ammortamento_Finanziario!$H:$L,5,FALSE),VLOOKUP($M16,TT_Tabelle_Riferimento!$H$31:$I$50,2,FALSE))","v":15},{"$f":"+IFERROR(VLOOKUP(CZ$6&\"-\"&$M16&\"_old\",Ammortamento_Finanziario!$H:$L,5,FALSE),VLOOKUP($M16,TT_Tabelle_Riferimento!$H$31:$I$50,2,FALSE))","v":15},{"$f":"+IFERROR(VLOOKUP(DA$6&\"-\"&$M16&\"_old\",Ammortamento_Finanziario!$H:$L,5,FALSE),VLOOKUP($M16,TT_Tabelle_Riferimento!$H$31:$I$50,2,FALSE))","v":15},{"$f":"+IFERROR(VLOOKUP(DB$6&\"-\"&$M16&\"_old\",Ammortamento_Finanziario!$H:$L,5,FALSE),VLOOKUP($M16,TT_Tabelle_Riferimento!$H$31:$I$50,2,FALSE))","v":15},{"$f":"+IFERROR(VLOOKUP(DC$6&\"-\"&$M16&\"_old\",Ammortamento_Finanziario!$H:$L,5,FALSE),VLOOKUP($M16,TT_Tabelle_Riferimento!$H$31:$I$50,2,FALSE))","v":15},{"$f":"+IFERROR(VLOOKUP(DD$6&\"-\"&$M16&\"_old\",Ammortamento_Finanziario!$H:$L,5,FALSE),VLOOKUP($M16,TT_Tabelle_Riferimento!$H$31:$I$50,2,FALSE))","v":15},{"$f":"+IFERROR(VLOOKUP(DE$6&\"-\"&$M16&\"_old\",Ammortamento_Finanziario!$H:$L,5,FALSE),VLOOKUP($M16,TT_Tabelle_Riferimento!$H$31:$I$50,2,FALSE))","v":15},{"$f":"+IFERROR(VLOOKUP(DF$6&\"-\"&$M16&\"_old\",Ammortamento_Finanziario!$H:$L,5,FALSE),VLOOKUP($M16,TT_Tabelle_Riferimento!$H$31:$I$50,2,FALSE))","v":15},{"$f":"+IFERROR(VLOOKUP(DG$6&\"-\"&$M16&\"_old\",Ammortamento_Finanziario!$H:$L,5,FALSE),VLOOKUP($M16,TT_Tabelle_Riferimento!$H$31:$I$50,2,FALSE))","v":15},{"$f":"+IFERROR(VLOOKUP(DH$6&\"-\"&$M16&\"_old\",Ammortamento_Finanziario!$H:$L,5,FALSE),VLOOKUP($M16,TT_Tabelle_Riferimento!$H$31:$I$50,2,FALSE))","v":15},{"$f":"+IFERROR(VLOOKUP(DI$6&\"-\"&$M16&\"_old\",Ammortamento_Finanziario!$H:$L,5,FALSE),VLOOKUP($M16,TT_Tabelle_Riferimento!$H$31:$I$50,2,FALSE))","v":15},{"$f":"+IFERROR(VLOOKUP(DJ$6&\"-\"&$M16&\"_old\",Ammortamento_Finanziario!$H:$L,5,FALSE),VLOOKUP($M16,TT_Tabelle_Riferimento!$H$31:$I$50,2,FALSE))","v":15},{"$f":"+IFERROR(VLOOKUP(DK$6&\"-\"&$M16&\"_old\",Ammortamento_Finanziario!$H:$L,5,FALSE),VLOOKUP($M16,TT_Tabelle_Riferimento!$H$31:$I$50,2,FALSE))","v":15},{"$f":"+IFERROR(VLOOKUP(DL$6&\"-\"&$M16&\"_old\",Ammortamento_Finanziario!$H:$L,5,FALSE),VLOOKUP($M16,TT_Tabelle_Riferimento!$H$31:$I$50,2,FALSE))","v":15},{"$f":"+IFERROR(VLOOKUP(DM$6&\"-\"&$M16&\"_old\",Ammortamento_Finanziario!$H:$L,5,FALSE),VLOOKUP($M16,TT_Tabelle_Riferimento!$H$31:$I$50,2,FALSE))","v":15},{"$f":"+IFERROR(VLOOKUP(DN$6&\"-\"&$M16&\"_old\",Ammortamento_Finanziario!$H:$L,5,FALSE),VLOOKUP($M16,TT_Tabelle_Riferimento!$H$31:$I$50,2,FALSE))","v":15},{"$f":"+IFERROR(VLOOKUP(DO$6&\"-\"&$M16&\"_old\",Ammortamento_Finanziario!$H:$L,5,FALSE),VLOOKUP($M16,TT_Tabelle_Riferimento!$H$31:$I$50,2,FALSE))","v":15},{"$f":"+IFERROR(VLOOKUP(DP$6&\"-\"&$M16&\"_old\",Ammortamento_Finanziario!$H:$L,5,FALSE),VLOOKUP($M16,TT_Tabelle_Riferimento!$H$31:$I$50,2,FALSE))","v":15},{"$f":"+IFERROR(VLOOKUP(DQ$6&\"-\"&$M16&\"_old\",Ammortamento_Finanziario!$H:$L,5,FALSE),VLOOKUP($M16,TT_Tabelle_Riferimento!$H$31:$I$50,2,FALSE))","v":15},{"$f":"+IFERROR(VLOOKUP(DR$6&\"-\"&$M16&\"_old\",Ammortamento_Finanziario!$H:$L,5,FALSE),VLOOKUP($M16,TT_Tabelle_Riferimento!$H$31:$I$50,2,FALSE))","v":15},{"$f":"+IFERROR(VLOOKUP(DS$6&\"-\"&$M16&\"_old\",Ammortamento_Finanziario!$H:$L,5,FALSE),VLOOKUP($M16,TT_Tabelle_Riferimento!$H$31:$I$50,2,FALSE))","v":15},{"$f":"+IFERROR(VLOOKUP(DT$6&\"-\"&$M16&\"_old\",Ammortamento_Finanziario!$H:$L,5,FALSE),VLOOKUP($M16,TT_Tabelle_Riferimento!$H$31:$I$50,2,FALSE))","v":15},{"$f":"+IFERROR(VLOOKUP(DU$6&\"-\"&$M16&\"_old\",Ammortamento_Finanziario!$H:$L,5,FALSE),VLOOKUP($M16,TT_Tabelle_Riferimento!$H$31:$I$50,2,FALSE))","v":15},{"$f":"+IFERROR(VLOOKUP(DV$6&\"-\"&$M16&\"_old\",Ammortamento_Finanziario!$H:$L,5,FALSE),VLOOKUP($M16,TT_Tabelle_Riferimento!$H$31:$I$50,2,FALSE))","v":15},{"$f":"+IFERROR(VLOOKUP(DW$6&\"-\"&$M16&\"_old\",Ammortamento_Finanziario!$H:$L,5,FALSE),VLOOKUP($M16,TT_Tabelle_Riferimento!$H$31:$I$50,2,FALSE))","v":15},{"$f":"+IFERROR(VLOOKUP(DX$6&\"-\"&$M16&\"_old\",Ammortamento_Finanziario!$H:$L,5,FALSE),VLOOKUP($M16,TT_Tabelle_Riferimento!$H$31:$I$50,2,FALSE))","v":15},{"$f":"+IFERROR(VLOOKUP(DY$6&\"-\"&$M16&\"_old\",Ammortamento_Finanziario!$H:$L,5,FALSE),VLOOKUP($M16,TT_Tabelle_Riferimento!$H$31:$I$50,2,FALSE))","v":15},{"$f":"+IFERROR(VLOOKUP(DZ$6&\"-\"&$M16&\"_old\",Ammortamento_Finanziario!$H:$L,5,FALSE),VLOOKUP($M16,TT_Tabelle_Riferimento!$H$31:$I$50,2,FALSE))","v":15},{"$f":"+IFERROR(VLOOKUP(EA$6&\"-\"&$M16&\"_old\",Ammortamento_Finanziario!$H:$L,5,FALSE),VLOOKUP($M16,TT_Tabelle_Riferimento!$H$31:$I$50,2,FALSE))","v":15},{"$f":"+IFERROR(VLOOKUP(EB$6&\"-\"&$M16&\"_old\",Ammortamento_Finanziario!$H:$L,5,FALSE),VLOOKUP($M16,TT_Tabelle_Riferimento!$H$31:$I$50,2,FALSE))","v":15},{"$f":"+IFERROR(VLOOKUP(EC$6&\"-\"&$M16&\"_old\",Ammortamento_Finanziario!$H:$L,5,FALSE),VLOOKUP($M16,TT_Tabelle_Riferimento!$H$31:$I$50,2,FALSE))","v":15},{"$f":"+IFERROR(VLOOKUP(ED$6&\"-\"&$M16&\"_old\",Ammortamento_Finanziario!$H:$L,5,FALSE),VLOOKUP($M16,TT_Tabelle_Riferimento!$H$31:$I$50,2,FALSE))","v":15},{"$f":"+IFERROR(VLOOKUP(EE$6&\"-\"&$M16&\"_old\",Ammortamento_Finanziario!$H:$L,5,FALSE),VLOOKUP($M16,TT_Tabelle_Riferimento!$H$31:$I$50,2,FALSE))","v":15},{"$f":"+IFERROR(VLOOKUP(EF$6&\"-\"&$M16&\"_old\",Ammortamento_Finanziario!$H:$L,5,FALSE),VLOOKUP($M16,TT_Tabelle_Riferimento!$H$31:$I$50,2,FALSE))","v":15},{"$f":"+IFERROR(VLOOKUP(EG$6&\"-\"&$M16&\"_old\",Ammortamento_Finanziario!$H:$L,5,FALSE),VLOOKUP($M16,TT_Tabelle_Riferimento!$H$31:$I$50,2,FALSE))","v":15},{"$f":"+IFERROR(VLOOKUP(EH$6&\"-\"&$M16&\"_old\",Ammortamento_Finanziario!$H:$L,5,FALSE),VLOOKUP($M16,TT_Tabelle_Riferimento!$H$31:$I$50,2,FALSE))","v":15},{"$f":"+IFERROR(VLOOKUP(EI$6&\"-\"&$M16&\"_old\",Ammortamento_Finanziario!$H:$L,5,FALSE),VLOOKUP($M16,TT_Tabelle_Riferimento!$H$31:$I$50,2,FALSE))","v":15},{"$f":"+IFERROR(VLOOKUP(EJ$6&\"-\"&$M16&\"_old\",Ammortamento_Finanziario!$H:$L,5,FALSE),VLOOKUP($M16,TT_Tabelle_Riferimento!$H$31:$I$50,2,FALSE))","v":15},{"$f":"+IFERROR(VLOOKUP(EK$6&\"-\"&$M16&\"_old\",Ammortamento_Finanziario!$H:$L,5,FALSE),VLOOKUP($M16,TT_Tabelle_Riferimento!$H$31:$I$50,2,FALSE))","v":15},{"$f":"+IFERROR(VLOOKUP(EL$6&\"-\"&$M16&\"_old\",Ammortamento_Finanziario!$H:$L,5,FALSE),VLOOKUP($M16,TT_Tabelle_Riferimento!$H$31:$I$50,2,FALSE))","v":15},{"$f":"+IFERROR(VLOOKUP(EM$6&\"-\"&$M16&\"_old\",Ammortamento_Finanziario!$H:$L,5,FALSE),VLOOKUP($M16,TT_Tabelle_Riferimento!$H$31:$I$50,2,FALSE))","v":15},{"$f":"+IFERROR(VLOOKUP(EN$6&\"-\"&$M16&\"_old\",Ammortamento_Finanziario!$H:$L,5,FALSE),VLOOKUP($M16,TT_Tabelle_Riferimento!$H$31:$I$50,2,FALSE))","v":15},{"$f":"+IFERROR(VLOOKUP(EO$6&\"-\"&$M16&\"_old\",Ammortamento_Finanziario!$H:$L,5,FALSE),VLOOKUP($M16,TT_Tabelle_Riferimento!$H$31:$I$50,2,FALSE))","v":15},{"$f":"+IFERROR(VLOOKUP(EP$6&\"-\"&$M16&\"_old\",Ammortamento_Finanziario!$H:$L,5,FALSE),VLOOKUP($M16,TT_Tabelle_Riferimento!$H$31:$I$50,2,FALSE))","v":15},{"$f":"+IFERROR(VLOOKUP(EQ$6&\"-\"&$M16&\"_old\",Ammortamento_Finanziario!$H:$L,5,FALSE),VLOOKUP($M16,TT_Tabelle_Riferimento!$H$31:$I$50,2,FALSE))","v":15},{"$f":"+IFERROR(VLOOKUP(ER$6&\"-\"&$M16&\"_old\",Ammortamento_Finanziario!$H:$L,5,FALSE),VLOOKUP($M16,TT_Tabelle_Riferimento!$H$31:$I$50,2,FALSE))","v":15},{"$f":"+IFERROR(VLOOKUP(ES$6&\"-\"&$M16&\"_old\",Ammortamento_Finanziario!$H:$L,5,FALSE),VLOOKUP($M16,TT_Tabelle_Riferimento!$H$31:$I$50,2,FALSE))","v":15},{"$f":"+IFERROR(VLOOKUP(ET$6&\"-\"&$M16&\"_old\",Ammortamento_Finanziario!$H:$L,5,FALSE),VLOOKUP($M16,TT_Tabelle_Riferimento!$H$31:$I$50,2,FALSE))","v":15},{"$f":"+IFERROR(VLOOKUP(EU$6&\"-\"&$M16&\"_old\",Ammortamento_Finanziario!$H:$L,5,FALSE),VLOOKUP($M16,TT_Tabelle_Riferimento!$H$31:$I$50,2,FALSE))","v":15},{"$f":"+IFERROR(VLOOKUP(EV$6&\"-\"&$M16&\"_old\",Ammortamento_Finanziario!$H:$L,5,FALSE),VLOOKUP($M16,TT_Tabelle_Riferimento!$H$31:$I$50,2,FALSE))","v":15},{"$f":"+IFERROR(VLOOKUP(EW$6&\"-\"&$M16&\"_old\",Ammortamento_Finanziario!$H:$L,5,FALSE),VLOOKUP($M16,TT_Tabelle_Riferimento!$H$31:$I$50,2,FALSE))","v":15},{"$f":"+IFERROR(VLOOKUP(EX$6&\"-\"&$M16&\"_old\",Ammortamento_Finanziario!$H:$L,5,FALSE),VLOOKUP($M16,TT_Tabelle_Riferimento!$H$31:$I$50,2,FALSE))","v":15},{"$f":"+IFERROR(VLOOKUP(EY$6&\"-\"&$M16&\"_old\",Ammortamento_Finanziario!$H:$L,5,FALSE),VLOOKUP($M16,TT_Tabelle_Riferimento!$H$31:$I$50,2,FALSE))","v":15},{"$f":"+IFERROR(VLOOKUP(EZ$6&\"-\"&$M16&\"_old\",Ammortamento_Finanziario!$H:$L,5,FALSE),VLOOKUP($M16,TT_Tabelle_Riferimento!$H$31:$I$50,2,FALSE))","v":15},{"$f":"+IFERROR(VLOOKUP(FA$6&\"-\"&$M16&\"_old\",Ammortamento_Finanziario!$H:$L,5,FALSE),VLOOKUP($M16,TT_Tabelle_Riferimento!$H$31:$I$50,2,FALSE))","v":15},{"$f":"+IFERROR(VLOOKUP(FB$6&\"-\"&$M16&\"_old\",Ammortamento_Finanziario!$H:$L,5,FALSE),VLOOKUP($M16,TT_Tabelle_Riferimento!$H$31:$I$50,2,FALSE))","v":15},{"$f":"+IFERROR(VLOOKUP(FC$6&\"-\"&$M16&\"_old\",Ammortamento_Finanziario!$H:$L,5,FALSE),VLOOKUP($M16,TT_Tabelle_Riferimento!$H$31:$I$50,2,FALSE))","v":15},{"$f":"+IFERROR(VLOOKUP(FD$6&\"-\"&$M16&\"_old\",Ammortamento_Finanziario!$H:$L,5,FALSE),VLOOKUP($M16,TT_Tabelle_Riferimento!$H$31:$I$50,2,FALSE))","v":15},{"$f":"+IFERROR(VLOOKUP(FE$6&\"-\"&$M16&\"_old\",Ammortamento_Finanziario!$H:$L,5,FALSE),VLOOKUP($M16,TT_Tabelle_Riferimento!$H$31:$I$50,2,FALSE))","v":15},{"$f":"+IFERROR(VLOOKUP(FF$6&\"-\"&$M16&\"_old\",Ammortamento_Finanziario!$H:$L,5,FALSE),VLOOKUP($M16,TT_Tabelle_Riferimento!$H$31:$I$50,2,FALSE))","v":15},{"$f":"+IFERROR(VLOOKUP(FG$6&\"-\"&$M16&\"_old\",Ammortamento_Finanziario!$H:$L,5,FALSE),VLOOKUP($M16,TT_Tabelle_Riferimento!$H$31:$I$50,2,FALSE))","v":15},{"$f":"+IFERROR(VLOOKUP(FH$6&\"-\"&$M16&\"_old\",Ammortamento_Finanziario!$H:$L,5,FALSE),VLOOKUP($M16,TT_Tabelle_Riferimento!$H$31:$I$50,2,FALSE))","v":15},{"$f":"+IFERROR(VLOOKUP(FI$6&\"-\"&$M16&\"_old\",Ammortamento_Finanziario!$H:$L,5,FALSE),VLOOKUP($M16,TT_Tabelle_Riferimento!$H$31:$I$50,2,FALSE))","v":15},{"$f":"+IFERROR(VLOOKUP(FJ$6&\"-\"&$M16&\"_old\",Ammortamento_Finanziario!$H:$L,5,FALSE),VLOOKUP($M16,TT_Tabelle_Riferimento!$H$31:$I$50,2,FALSE))","v":15},{"$f":"+IFERROR(VLOOKUP(FK$6&\"-\"&$M16&\"_old\",Ammortamento_Finanziario!$H:$L,5,FALSE),VLOOKUP($M16,TT_Tabelle_Riferimento!$H$31:$I$50,2,FALSE))","v":15},{"$f":"+IFERROR(VLOOKUP(FL$6&\"-\"&$M16&\"_old\",Ammortamento_Finanziario!$H:$L,5,FALSE),VLOOKUP($M16,TT_Tabelle_Riferimento!$H$31:$I$50,2,FALSE))","v":15},{"$f":"+IFERROR(VLOOKUP(FM$6&\"-\"&$M16&\"_old\",Ammortamento_Finanziario!$H:$L,5,FALSE),VLOOKUP($M16,TT_Tabelle_Riferimento!$H$31:$I$50,2,FALSE))","v":15},{"$f":"+IFERROR(VLOOKUP(FN$6&\"-\"&$M16&\"_old\",Ammortamento_Finanziario!$H:$L,5,FALSE),VLOOKUP($M16,TT_Tabelle_Riferimento!$H$31:$I$50,2,FALSE))","v":15},{"$f":"+IFERROR(VLOOKUP(FO$6&\"-\"&$M16&\"_old\",Ammortamento_Finanziario!$H:$L,5,FALSE),VLOOKUP($M16,TT_Tabelle_Riferimento!$H$31:$I$50,2,FALSE))","v":15},{"$f":"+IFERROR(VLOOKUP(FP$6&\"-\"&$M16&\"_old\",Ammortamento_Finanziario!$H:$L,5,FALSE),VLOOKUP($M16,TT_Tabelle_Riferimento!$H$31:$I$50,2,FALSE))","v":15},{"$f":"+IFERROR(VLOOKUP(FQ$6&\"-\"&$M16&\"_old\",Ammortamento_Finanziario!$H:$L,5,FALSE),VLOOKUP($M16,TT_Tabelle_Riferimento!$H$31:$I$50,2,FALSE))","v":15},{"$f":"+IFERROR(VLOOKUP(FR$6&\"-\"&$M16&\"_old\",Ammortamento_Finanziario!$H:$L,5,FALSE),VLOOKUP($M16,TT_Tabelle_Riferimento!$H$31:$I$50,2,FALSE))","v":15},{"$f":"+IFERROR(VLOOKUP(FS$6&\"-\"&$M16&\"_old\",Ammortamento_Finanziario!$H:$L,5,FALSE),VLOOKUP($M16,TT_Tabelle_Riferimento!$H$31:$I$50,2,FALSE))","v":15},{"$f":"+IFERROR(VLOOKUP(FT$6&\"-\"&$M16&\"_old\",Ammortamento_Finanziario!$H:$L,5,FALSE),VLOOKUP($M16,TT_Tabelle_Riferimento!$H$31:$I$50,2,FALSE))","v":15},{"$f":"+IFERROR(VLOOKUP(FU$6&\"-\"&$M16&\"_old\",Ammortamento_Finanziario!$H:$L,5,FALSE),VLOOKUP($M16,TT_Tabelle_Riferimento!$H$31:$I$50,2,FALSE))","v":15},{"$f":"+IFERROR(VLOOKUP(FV$6&\"-\"&$M16&\"_old\",Ammortamento_Finanziario!$H:$L,5,FALSE),VLOOKUP($M16,TT_Tabelle_Riferimento!$H$31:$I$50,2,FALSE))","v":15},{"$f":"+IFERROR(VLOOKUP(FW$6&\"-\"&$M16&\"_old\",Ammortamento_Finanziario!$H:$L,5,FALSE),VLOOKUP($M16,TT_Tabelle_Riferimento!$H$31:$I$50,2,FALSE))","v":15},{"$f":"+IFERROR(VLOOKUP(FX$6&\"-\"&$M16&\"_old\",Ammortamento_Finanziario!$H:$L,5,FALSE),VLOOKUP($M16,TT_Tabelle_Riferimento!$H$31:$I$50,2,FALSE))","v":15},{"$f":"+IFERROR(VLOOKUP(FY$6&\"-\"&$M16&\"_old\",Ammortamento_Finanziario!$H:$L,5,FALSE),VLOOKUP($M16,TT_Tabelle_Riferimento!$H$31:$I$50,2,FALSE))","v":15},{"$f":"+IFERROR(VLOOKUP(FZ$6&\"-\"&$M16&\"_old\",Ammortamento_Finanziario!$H:$L,5,FALSE),VLOOKUP($M16,TT_Tabelle_Riferimento!$H$31:$I$50,2,FALSE))","v":15},{"$f":"+IFERROR(VLOOKUP(GA$6&\"-\"&$M16&\"_old\",Ammortamento_Finanziario!$H:$L,5,FALSE),VLOOKUP($M16,TT_Tabelle_Riferimento!$H$31:$I$50,2,FALSE))","v":15},{"$f":"+IFERROR(VLOOKUP(GB$6&\"-\"&$M16&\"_old\",Ammortamento_Finanziario!$H:$L,5,FALSE),VLOOKUP($M16,TT_Tabelle_Riferimento!$H$31:$I$50,2,FALSE))","v":15},{"$f":"+IFERROR(VLOOKUP(GC$6&\"-\"&$M16&\"_old\",Ammortamento_Finanziario!$H:$L,5,FALSE),VLOOKUP($M16,TT_Tabelle_Riferimento!$H$31:$I$50,2,FALSE))","v":15},{"$f":"+IFERROR(VLOOKUP(GD$6&\"-\"&$M16&\"_old\",Ammortamento_Finanziario!$H:$L,5,FALSE),VLOOKUP($M16,TT_Tabelle_Riferimento!$H$31:$I$50,2,FALSE))","v":15},{"$f":"+IFERROR(VLOOKUP(GE$6&\"-\"&$M16&\"_old\",Ammortamento_Finanziario!$H:$L,5,FALSE),VLOOKUP($M16,TT_Tabelle_Riferimento!$H$31:$I$50,2,FALSE))","v":15},{"$f":"+IFERROR(VLOOKUP(GF$6&\"-\"&$M16&\"_old\",Ammortamento_Finanziario!$H:$L,5,FALSE),VLOOKUP($M16,TT_Tabelle_Riferimento!$H$31:$I$50,2,FALSE))","v":15},{"$f":"+IFERROR(VLOOKUP(GG$6&\"-\"&$M16&\"_old\",Ammortamento_Finanziario!$H:$L,5,FALSE),VLOOKUP($M16,TT_Tabelle_Riferimento!$H$31:$I$50,2,FALSE))","v":15},{"$f":"+IFERROR(VLOOKUP(GH$6&\"-\"&$M16&\"_old\",Ammortamento_Finanziario!$H:$L,5,FALSE),VLOOKUP($M16,TT_Tabelle_Riferimento!$H$31:$I$50,2,FALSE))","v":15},{"$f":"+IFERROR(VLOOKUP(GI$6&\"-\"&$M16&\"_old\",Ammortamento_Finanziario!$H:$L,5,FALSE),VLOOKUP($M16,TT_Tabelle_Riferimento!$H$31:$I$50,2,FALSE))","v":15},{"$f":"+IFERROR(VLOOKUP(GJ$6&\"-\"&$M16&\"_old\",Ammortamento_Finanziario!$H:$L,5,FALSE),VLOOKUP($M16,TT_Tabelle_Riferimento!$H$31:$I$50,2,FALSE))","v":15},{"$f":"+IFERROR(VLOOKUP(GK$6&\"-\"&$M16&\"_old\",Ammortamento_Finanziario!$H:$L,5,FALSE),VLOOKUP($M16,TT_Tabelle_Riferimento!$H$31:$I$50,2,FALSE))","v":15},{"$f":"+IFERROR(VLOOKUP(GL$6&\"-\"&$M16&\"_old\",Ammortamento_Finanziario!$H:$L,5,FALSE),VLOOKUP($M16,TT_Tabelle_Riferimento!$H$31:$I$50,2,FALSE))","v":15},{"$f":"+IFERROR(VLOOKUP(GM$6&\"-\"&$M16&\"_old\",Ammortamento_Finanziario!$H:$L,5,FALSE),VLOOKUP($M16,TT_Tabelle_Riferimento!$H$31:$I$50,2,FALSE))","v":15},{"$f":"+IFERROR(VLOOKUP(GN$6&\"-\"&$M16&\"_old\",Ammortamento_Finanziario!$H:$L,5,FALSE),VLOOKUP($M16,TT_Tabelle_Riferimento!$H$31:$I$50,2,FALSE))","v":15},{"$f":"+IFERROR(VLOOKUP(GO$6&\"-\"&$M16&\"_old\",Ammortamento_Finanziario!$H:$L,5,FALSE),VLOOKUP($M16,TT_Tabelle_Riferimento!$H$31:$I$50,2,FALSE))","v":15},{"$f":"+IFERROR(VLOOKUP(GP$6&\"-\"&$M16&\"_old\",Ammortamento_Finanziario!$H:$L,5,FALSE),VLOOKUP($M16,TT_Tabelle_Riferimento!$H$31:$I$50,2,FALSE))","v":15},{"$f":"+IFERROR(VLOOKUP(GQ$6&\"-\"&$M16&\"_old\",Ammortamento_Finanziario!$H:$L,5,FALSE),VLOOKUP($M16,TT_Tabelle_Riferimento!$H$31:$I$50,2,FALSE))","v":15},{"$f":"+IFERROR(VLOOKUP(GR$6&\"-\"&$M16&\"_old\",Ammortamento_Finanziario!$H:$L,5,FALSE),VLOOKUP($M16,TT_Tabelle_Riferimento!$H$31:$I$50,2,FALSE))","v":15},{"$f":"+IFERROR(VLOOKUP(GS$6&\"-\"&$M16&\"_old\",Ammortamento_Finanziario!$H:$L,5,FALSE),VLOOKUP($M16,TT_Tabelle_Riferimento!$H$31:$I$50,2,FALSE))","v":15},{"$f":"+IFERROR(VLOOKUP(GT$6&\"-\"&$M16&\"_old\",Ammortamento_Finanziario!$H:$L,5,FALSE),VLOOKUP($M16,TT_Tabelle_Riferimento!$H$31:$I$50,2,FALSE))","v":15},{"$f":"+IFERROR(VLOOKUP(GU$6&\"-\"&$M16&\"_old\",Ammortamento_Finanziario!$H:$L,5,FALSE),VLOOKUP($M16,TT_Tabelle_Riferimento!$H$31:$I$50,2,FALSE))","v":15},{"$f":"+IFERROR(VLOOKUP(GV$6&\"-\"&$M16&\"_old\",Ammortamento_Finanziario!$H:$L,5,FALSE),VLOOKUP($M16,TT_Tabelle_Riferimento!$H$31:$I$50,2,FALSE))","v":15},{"$f":"+IFERROR(VLOOKUP(GW$6&\"-\"&$M16&\"_old\",Ammortamento_Finanziario!$H:$L,5,FALSE),VLOOKUP($M16,TT_Tabelle_Riferimento!$H$31:$I$50,2,FALSE))","v":15},{"$f":"+IFERROR(VLOOKUP(GX$6&\"-\"&$M16&\"_old\",Ammortamento_Finanziario!$H:$L,5,FALSE),VLOOKUP($M16,TT_Tabelle_Riferimento!$H$31:$I$50,2,FALSE))","v":15},{"$f":"+IFERROR(VLOOKUP(GY$6&\"-\"&$M16&\"_old\",Ammortamento_Finanziario!$H:$L,5,FALSE),VLOOKUP($M16,TT_Tabelle_Riferimento!$H$31:$I$50,2,FALSE))","v":15},{"$f":"+IFERROR(VLOOKUP(GZ$6&\"-\"&$M16&\"_old\",Ammortamento_Finanziario!$H:$L,5,FALSE),VLOOKUP($M16,TT_Tabelle_Riferimento!$H$31:$I$50,2,FALSE))","v":15},{"$f":"+IFERROR(VLOOKUP(HA$6&\"-\"&$M16&\"_old\",Ammortamento_Finanziario!$H:$L,5,FALSE),VLOOKUP($M16,TT_Tabelle_Riferimento!$H$31:$I$50,2,FALSE))","v":15},{"$f":"+IFERROR(VLOOKUP(HB$6&\"-\"&$M16&\"_old\",Ammortamento_Finanziario!$H:$L,5,FALSE),VLOOKUP($M16,TT_Tabelle_Riferimento!$H$31:$I$50,2,FALSE))","v":15},{"$f":"+IFERROR(VLOOKUP(HC$6&\"-\"&$M16&\"_old\",Ammortamento_Finanziario!$H:$L,5,FALSE),VLOOKUP($M16,TT_Tabelle_Riferimento!$H$31:$I$50,2,FALSE))","v":15},{"$f":"+IFERROR(VLOOKUP(HD$6&\"-\"&$M16&\"_old\",Ammortamento_Finanziario!$H:$L,5,FALSE),VLOOKUP($M16,TT_Tabelle_Riferimento!$H$31:$I$50,2,FALSE))","v":15},{"$f":"+IFERROR(VLOOKUP(HE$6&\"-\"&$M16&\"_old\",Ammortamento_Finanziario!$H:$L,5,FALSE),VLOOKUP($M16,TT_Tabelle_Riferimento!$H$31:$I$50,2,FALSE))","v":15},{"$f":"+IFERROR(VLOOKUP(HF$6&\"-\"&$M16&\"_old\",Ammortamento_Finanziario!$H:$L,5,FALSE),VLOOKUP($M16,TT_Tabelle_Riferimento!$H$31:$I$50,2,FALSE))","v":15},{"$f":"+IFERROR(VLOOKUP(HG$6&\"-\"&$M16&\"_old\",Ammortamento_Finanziario!$H:$L,5,FALSE),VLOOKUP($M16,TT_Tabelle_Riferimento!$H$31:$I$50,2,FALSE))","v":15},{"$f":"+IFERROR(VLOOKUP(HH$6&\"-\"&$M16&\"_old\",Ammortamento_Finanziario!$H:$L,5,FALSE),VLOOKUP($M16,TT_Tabelle_Riferimento!$H$31:$I$50,2,FALSE))","v":15},{"$f":"+IFERROR(VLOOKUP(HI$6&\"-\"&$M16&\"_old\",Ammortamento_Finanziario!$H:$L,5,FALSE),VLOOKUP($M16,TT_Tabelle_Riferimento!$H$31:$I$50,2,FALSE))","v":15},{"$f":"+IFERROR(VLOOKUP(HJ$6&\"-\"&$M16&\"_old\",Ammortamento_Finanziario!$H:$L,5,FALSE),VLOOKUP($M16,TT_Tabelle_Riferimento!$H$31:$I$50,2,FALSE))","v":15},{"$f":"+IFERROR(VLOOKUP(HK$6&\"-\"&$M16&\"_old\",Ammortamento_Finanziario!$H:$L,5,FALSE),VLOOKUP($M16,TT_Tabelle_Riferimento!$H$31:$I$50,2,FALSE))","v":15},{"$f":"+IFERROR(VLOOKUP(HL$6&\"-\"&$M16&\"_old\",Ammortamento_Finanziario!$H:$L,5,FALSE),VLOOKUP($M16,TT_Tabelle_Riferimento!$H$31:$I$50,2,FALSE))","v":15},{"$f":"+IFERROR(VLOOKUP(HM$6&\"-\"&$M16&\"_old\",Ammortamento_Finanziario!$H:$L,5,FALSE),VLOOKUP($M16,TT_Tabelle_Riferimento!$H$31:$I$50,2,FALSE))","v":15},{"$f":"+IFERROR(VLOOKUP(HN$6&\"-\"&$M16&\"_old\",Ammortamento_Finanziario!$H:$L,5,FALSE),VLOOKUP($M16,TT_Tabelle_Riferimento!$H$31:$I$50,2,FALSE))","v":15},{"$f":"+IFERROR(VLOOKUP(HO$6&\"-\"&$M16&\"_old\",Ammortamento_Finanziario!$H:$L,5,FALSE),VLOOKUP($M16,TT_Tabelle_Riferimento!$H$31:$I$50,2,FALSE))","v":15},{"$f":"+IFERROR(VLOOKUP(HP$6&\"-\"&$M16&\"_old\",Ammortamento_Finanziario!$H:$L,5,FALSE),VLOOKUP($M16,TT_Tabelle_Riferimento!$H$31:$I$50,2,FALSE))","v":15},{"$f":"+IFERROR(VLOOKUP(HQ$6&\"-\"&$M16&\"_old\",Ammortamento_Finanziario!$H:$L,5,FALSE),VLOOKUP($M16,TT_Tabelle_Riferimento!$H$31:$I$50,2,FALSE))","v":15},{"$f":"+IFERROR(VLOOKUP(HR$6&\"-\"&$M16&\"_old\",Ammortamento_Finanziario!$H:$L,5,FALSE),VLOOKUP($M16,TT_Tabelle_Riferimento!$H$31:$I$50,2,FALSE))","v":15},{"$f":"+IFERROR(VLOOKUP(HS$6&\"-\"&$M16&\"_old\",Ammortamento_Finanziario!$H:$L,5,FALSE),VLOOKUP($M16,TT_Tabelle_Riferimento!$H$31:$I$50,2,FALSE))","v":15},{"$f":"+IFERROR(VLOOKUP(HT$6&\"-\"&$M16&\"_old\",Ammortamento_Finanziario!$H:$L,5,FALSE),VLOOKUP($M16,TT_Tabelle_Riferimento!$H$31:$I$50,2,FALSE))","v":15},{"$f":"+IFERROR(VLOOKUP(HU$6&\"-\"&$M16&\"_old\",Ammortamento_Finanziario!$H:$L,5,FALSE),VLOOKUP($M16,TT_Tabelle_Riferimento!$H$31:$I$50,2,FALSE))","v":15},{"$f":"+IFERROR(VLOOKUP(HV$6&\"-\"&$M16&\"_old\",Ammortamento_Finanziario!$H:$L,5,FALSE),VLOOKUP($M16,TT_Tabelle_Riferimento!$H$31:$I$50,2,FALSE))","v":15},{"$f":"+IFERROR(VLOOKUP(HW$6&\"-\"&$M16&\"_old\",Ammortamento_Finanziario!$H:$L,5,FALSE),VLOOKUP($M16,TT_Tabelle_Riferimento!$H$31:$I$50,2,FALSE))","v":15},{"$f":"+IFERROR(VLOOKUP(HX$6&\"-\"&$M16&\"_old\",Ammortamento_Finanziario!$H:$L,5,FALSE),VLOOKUP($M16,TT_Tabelle_Riferimento!$H$31:$I$50,2,FALSE))","v":15},{"$f":"+IFERROR(VLOOKUP(HY$6&\"-\"&$M16&\"_old\",Ammortamento_Finanziario!$H:$L,5,FALSE),VLOOKUP($M16,TT_Tabelle_Riferimento!$H$31:$I$50,2,FALSE))","v":15},{"$f":"+IFERROR(VLOOKUP(HZ$6&\"-\"&$M16&\"_old\",Ammortamento_Finanziario!$H:$L,5,FALSE),VLOOKUP($M16,TT_Tabelle_Riferimento!$H$31:$I$50,2,FALSE))","v":15},{"$f":"+IFERROR(VLOOKUP(IA$6&\"-\"&$M16&\"_old\",Ammortamento_Finanziario!$H:$L,5,FALSE),VLOOKUP($M16,TT_Tabelle_Riferimento!$H$31:$I$50,2,FALSE))","v":15},{"$f":"+IFERROR(VLOOKUP(IB$6&\"-\"&$M16&\"_old\",Ammortamento_Finanziario!$H:$L,5,FALSE),VLOOKUP($M16,TT_Tabelle_Riferimento!$H$31:$I$50,2,FALSE))","v":15},{"$f":"+IFERROR(VLOOKUP(IC$6&\"-\"&$M16&\"_old\",Ammortamento_Finanziario!$H:$L,5,FALSE),VLOOKUP($M16,TT_Tabelle_Riferimento!$H$31:$I$50,2,FALSE))","v":15},{"$f":"+IFERROR(VLOOKUP(ID$6&\"-\"&$M16&\"_old\",Ammortamento_Finanziario!$H:$L,5,FALSE),VLOOKUP($M16,TT_Tabelle_Riferimento!$H$31:$I$50,2,FALSE))","v":15},{"$f":"+IFERROR(VLOOKUP(IE$6&\"-\"&$M16&\"_old\",Ammortamento_Finanziario!$H:$L,5,FALSE),VLOOKUP($M16,TT_Tabelle_Riferimento!$H$31:$I$50,2,FALSE))","v":15},{"$f":"+IFERROR(VLOOKUP(IF$6&\"-\"&$M16&\"_old\",Ammortamento_Finanziario!$H:$L,5,FALSE),VLOOKUP($M16,TT_Tabelle_Riferimento!$H$31:$I$50,2,FALSE))","v":15},{"$f":"+IFERROR(VLOOKUP(IG$6&\"-\"&$M16&\"_old\",Ammortamento_Finanziario!$H:$L,5,FALSE),VLOOKUP($M16,TT_Tabelle_Riferimento!$H$31:$I$50,2,FALSE))","v":15},{"$f":"+IFERROR(VLOOKUP(IH$6&\"-\"&$M16&\"_old\",Ammortamento_Finanziario!$H:$L,5,FALSE),VLOOKUP($M16,TT_Tabelle_Riferimento!$H$31:$I$50,2,FALSE))","v":15},{"$f":"+IFERROR(VLOOKUP(II$6&\"-\"&$M16&\"_old\",Ammortamento_Finanziario!$H:$L,5,FALSE),VLOOKUP($M16,TT_Tabelle_Riferimento!$H$31:$I$50,2,FALSE))","v":15},{"$f":"+IFERROR(VLOOKUP(IJ$6&\"-\"&$M16&\"_old\",Ammortamento_Finanziario!$H:$L,5,FALSE),VLOOKUP($M16,TT_Tabelle_Riferimento!$H$31:$I$50,2,FALSE))","v":15},{"$f":"+IFERROR(VLOOKUP(IK$6&\"-\"&$M16&\"_old\",Ammortamento_Finanziario!$H:$L,5,FALSE),VLOOKUP($M16,TT_Tabelle_Riferimento!$H$31:$I$50,2,FALSE))","v":15},{"$f":"+IFERROR(VLOOKUP(IL$6&\"-\"&$M16&\"_old\",Ammortamento_Finanziario!$H:$L,5,FALSE),VLOOKUP($M16,TT_Tabelle_Riferimento!$H$31:$I$50,2,FALSE))","v":15},{"$f":"+IFERROR(VLOOKUP(IM$6&\"-\"&$M16&\"_old\",Ammortamento_Finanziario!$H:$L,5,FALSE),VLOOKUP($M16,TT_Tabelle_Riferimento!$H$31:$I$50,2,FALSE))","v":15},{"$f":"+IFERROR(VLOOKUP(IN$6&\"-\"&$M16&\"_old\",Ammortamento_Finanziario!$H:$L,5,FALSE),VLOOKUP($M16,TT_Tabelle_Riferimento!$H$31:$I$50,2,FALSE))","v":15},{"$f":"+IFERROR(VLOOKUP(IO$6&\"-\"&$M16&\"_old\",Ammortamento_Finanziario!$H:$L,5,FALSE),VLOOKUP($M16,TT_Tabelle_Riferimento!$H$31:$I$50,2,FALSE))","v":15},{"$f":"+IFERROR(VLOOKUP(IP$6&\"-\"&$M16&\"_old\",Ammortamento_Finanziario!$H:$L,5,FALSE),VLOOKUP($M16,TT_Tabelle_Riferimento!$H$31:$I$50,2,FALSE))","v":15},{"$f":"+IFERROR(VLOOKUP(IQ$6&\"-\"&$M16&\"_old\",Ammortamento_Finanziario!$H:$L,5,FALSE),VLOOKUP($M16,TT_Tabelle_Riferimento!$H$31:$I$50,2,FALSE))","v":15},{"$f":"+IFERROR(VLOOKUP(IR$6&\"-\"&$M16&\"_old\",Ammortamento_Finanziario!$H:$L,5,FALSE),VLOOKUP($M16,TT_Tabelle_Riferimento!$H$31:$I$50,2,FALSE))","v":15},{"$f":"+IFERROR(VLOOKUP(IS$6&\"-\"&$M16&\"_old\",Ammortamento_Finanziario!$H:$L,5,FALSE),VLOOKUP($M16,TT_Tabelle_Riferimento!$H$31:$I$50,2,FALSE))","v":15},{"$f":"+IFERROR(VLOOKUP(IT$6&\"-\"&$M16&\"_old\",Ammortamento_Finanziario!$H:$L,5,FALSE),VLOOKUP($M16,TT_Tabelle_Riferimento!$H$31:$I$50,2,FALSE))","v":15},{"$f":"+IFERROR(VLOOKUP(IU$6&\"-\"&$M16&\"_old\",Ammortamento_Finanziario!$H:$L,5,FALSE),VLOOKUP($M16,TT_Tabelle_Riferimento!$H$31:$I$50,2,FALSE))","v":15},{"$f":"+IFERROR(VLOOKUP(IV$6&\"-\"&$M16&\"_old\",Ammortamento_Finanziario!$H:$L,5,FALSE),VLOOKUP($M16,TT_Tabelle_Riferimento!$H$31:$I$50,2,FALSE))","v":15},{"$f":"+IFERROR(VLOOKUP(IW$6&\"-\"&$M16&\"_old\",Ammortamento_Finanziario!$H:$L,5,FALSE),VLOOKUP($M16,TT_Tabelle_Riferimento!$H$31:$I$50,2,FALSE))","v":15},{"$f":"+IFERROR(VLOOKUP(IX$6&\"-\"&$M16&\"_old\",Ammortamento_Finanziario!$H:$L,5,FALSE),VLOOKUP($M16,TT_Tabelle_Riferimento!$H$31:$I$50,2,FALSE))","v":15},{"$f":"+IFERROR(VLOOKUP(IY$6&\"-\"&$M16&\"_old\",Ammortamento_Finanziario!$H:$L,5,FALSE),VLOOKUP($M16,TT_Tabelle_Riferimento!$H$31:$I$50,2,FALSE))","v":15},{"$f":"+IFERROR(VLOOKUP(IZ$6&\"-\"&$M16&\"_old\",Ammortamento_Finanziario!$H:$L,5,FALSE),VLOOKUP($M16,TT_Tabelle_Riferimento!$H$31:$I$50,2,FALSE))","v":15},{"$f":"+IFERROR(VLOOKUP(JA$6&\"-\"&$M16&\"_old\",Ammortamento_Finanziario!$H:$L,5,FALSE),VLOOKUP($M16,TT_Tabelle_Riferimento!$H$31:$I$50,2,FALSE))","v":15},{"$f":"+IFERROR(VLOOKUP(JB$6&\"-\"&$M16&\"_old\",Ammortamento_Finanziario!$H:$L,5,FALSE),VLOOKUP($M16,TT_Tabelle_Riferimento!$H$31:$I$50,2,FALSE))","v":15},{"$f":"+IFERROR(VLOOKUP(JC$6&\"-\"&$M16&\"_old\",Ammortamento_Finanziario!$H:$L,5,FALSE),VLOOKUP($M16,TT_Tabelle_Riferimento!$H$31:$I$50,2,FALSE))","v":15},{"$f":"+IFERROR(VLOOKUP(JD$6&\"-\"&$M16&\"_old\",Ammortamento_Finanziario!$H:$L,5,FALSE),VLOOKUP($M16,TT_Tabelle_Riferimento!$H$31:$I$50,2,FALSE))","v":15},{"$f":"+IFERROR(VLOOKUP(JE$6&\"-\"&$M16&\"_old\",Ammortamento_Finanziario!$H:$L,5,FALSE),VLOOKUP($M16,TT_Tabelle_Riferimento!$H$31:$I$50,2,FALSE))","v":15},{"$f":"+IFERROR(VLOOKUP(JF$6&\"-\"&$M16&\"_old\",Ammortamento_Finanziario!$H:$L,5,FALSE),VLOOKUP($M16,TT_Tabelle_Riferimento!$H$31:$I$50,2,FALSE))","v":15},{"$f":"+IFERROR(VLOOKUP(JG$6&\"-\"&$M16&\"_old\",Ammortamento_Finanziario!$H:$L,5,FALSE),VLOOKUP($M16,TT_Tabelle_Riferimento!$H$31:$I$50,2,FALSE))","v":15},{"$f":"+IFERROR(VLOOKUP(JH$6&\"-\"&$M16&\"_old\",Ammortamento_Finanziario!$H:$L,5,FALSE),VLOOKUP($M16,TT_Tabelle_Riferimento!$H$31:$I$50,2,FALSE))","v":15},{"$f":"+IFERROR(VLOOKUP(JI$6&\"-\"&$M16&\"_old\",Ammortamento_Finanziario!$H:$L,5,FALSE),VLOOKUP($M16,TT_Tabelle_Riferimento!$H$31:$I$50,2,FALSE))","v":15},{"$f":"+IFERROR(VLOOKUP(JJ$6&\"-\"&$M16&\"_old\",Ammortamento_Finanziario!$H:$L,5,FALSE),VLOOKUP($M16,TT_Tabelle_Riferimento!$H$31:$I$50,2,FALSE))","v":15},{"$f":"+IFERROR(VLOOKUP(JK$6&\"-\"&$M16&\"_old\",Ammortamento_Finanziario!$H:$L,5,FALSE),VLOOKUP($M16,TT_Tabelle_Riferimento!$H$31:$I$50,2,FALSE))","v":15},{"$f":"+IFERROR(VLOOKUP(JL$6&\"-\"&$M16&\"_old\",Ammortamento_Finanziario!$H:$L,5,FALSE),VLOOKUP($M16,TT_Tabelle_Riferimento!$H$31:$I$50,2,FALSE))","v":15},{"$f":"+IFERROR(VLOOKUP(JM$6&\"-\"&$M16&\"_old\",Ammortamento_Finanziario!$H:$L,5,FALSE),VLOOKUP($M16,TT_Tabelle_Riferimento!$H$31:$I$50,2,FALSE))","v":15},{"$f":"+IFERROR(VLOOKUP(JN$6&\"-\"&$M16&\"_old\",Ammortamento_Finanziario!$H:$L,5,FALSE),VLOOKUP($M16,TT_Tabelle_Riferimento!$H$31:$I$50,2,FALSE))","v":15},{"$f":"+IFERROR(VLOOKUP(JO$6&\"-\"&$M16&\"_old\",Ammortamento_Finanziario!$H:$L,5,FALSE),VLOOKUP($M16,TT_Tabelle_Riferimento!$H$31:$I$50,2,FALSE))","v":15},{"$f":"+IFERROR(VLOOKUP(JP$6&\"-\"&$M16&\"_old\",Ammortamento_Finanziario!$H:$L,5,FALSE),VLOOKUP($M16,TT_Tabelle_Riferimento!$H$31:$I$50,2,FALSE))","v":15},{"$f":"+IFERROR(VLOOKUP(JQ$6&\"-\"&$M16&\"_old\",Ammortamento_Finanziario!$H:$L,5,FALSE),VLOOKUP($M16,TT_Tabelle_Riferimento!$H$31:$I$50,2,FALSE))","v":15},{"$f":"+IFERROR(VLOOKUP(JR$6&\"-\"&$M16&\"_old\",Ammortamento_Finanziario!$H:$L,5,FALSE),VLOOKUP($M16,TT_Tabelle_Riferimento!$H$31:$I$50,2,FALSE))","v":15},{"$f":"+IFERROR(VLOOKUP(JS$6&\"-\"&$M16&\"_old\",Ammortamento_Finanziario!$H:$L,5,FALSE),VLOOKUP($M16,TT_Tabelle_Riferimento!$H$31:$I$50,2,FALSE))","v":15},{"$f":"+IFERROR(VLOOKUP(JT$6&\"-\"&$M16&\"_old\",Ammortamento_Finanziario!$H:$L,5,FALSE),VLOOKUP($M16,TT_Tabelle_Riferimento!$H$31:$I$50,2,FALSE))","v":15},{"$f":"+IFERROR(VLOOKUP(JU$6&\"-\"&$M16&\"_old\",Ammortamento_Finanziario!$H:$L,5,FALSE),VLOOKUP($M16,TT_Tabelle_Riferimento!$H$31:$I$50,2,FALSE))","v":15},{"$f":"+IFERROR(VLOOKUP(JV$6&\"-\"&$M16&\"_old\",Ammortamento_Finanziario!$H:$L,5,FALSE),VLOOKUP($M16,TT_Tabelle_Riferimento!$H$31:$I$50,2,FALSE))","v":15},{"$f":"+IFERROR(VLOOKUP(JW$6&\"-\"&$M16&\"_old\",Ammortamento_Finanziario!$H:$L,5,FALSE),VLOOKUP($M16,TT_Tabelle_Riferimento!$H$31:$I$50,2,FALSE))","v":15},{"$f":"+IFERROR(VLOOKUP(JX$6&\"-\"&$M16&\"_old\",Ammortamento_Finanziario!$H:$L,5,FALSE),VLOOKUP($M16,TT_Tabelle_Riferimento!$H$31:$I$50,2,FALSE))","v":15},{"$f":"+IFERROR(VLOOKUP(JY$6&\"-\"&$M16&\"_old\",Ammortamento_Finanziario!$H:$L,5,FALSE),VLOOKUP($M16,TT_Tabelle_Riferimento!$H$31:$I$50,2,FALSE))","v":15},{"$f":"+IFERROR(VLOOKUP(JZ$6&\"-\"&$M16&\"_old\",Ammortamento_Finanziario!$H:$L,5,FALSE),VLOOKUP($M16,TT_Tabelle_Riferimento!$H$31:$I$50,2,FALSE))","v":15},{"$f":"+IFERROR(VLOOKUP(KA$6&\"-\"&$M16&\"_old\",Ammortamento_Finanziario!$H:$L,5,FALSE),VLOOKUP($M16,TT_Tabelle_Riferimento!$H$31:$I$50,2,FALSE))","v":15},{"$f":"+IFERROR(VLOOKUP(KB$6&\"-\"&$M16&\"_old\",Ammortamento_Finanziario!$H:$L,5,FALSE),VLOOKUP($M16,TT_Tabelle_Riferimento!$H$31:$I$50,2,FALSE))","v":15},{"$f":"+IFERROR(VLOOKUP(KC$6&\"-\"&$M16&\"_old\",Ammortamento_Finanziario!$H:$L,5,FALSE),VLOOKUP($M16,TT_Tabelle_Riferimento!$H$31:$I$50,2,FALSE))","v":15},{"$f":"+IFERROR(VLOOKUP(KD$6&\"-\"&$M16&\"_old\",Ammortamento_Finanziario!$H:$L,5,FALSE),VLOOKUP($M16,TT_Tabelle_Riferimento!$H$31:$I$50,2,FALSE))","v":15},{"$f":"+IFERROR(VLOOKUP(KE$6&\"-\"&$M16&\"_old\",Ammortamento_Finanziario!$H:$L,5,FALSE),VLOOKUP($M16,TT_Tabelle_Riferimento!$H$31:$I$50,2,FALSE))","v":15},{"$f":"+IFERROR(VLOOKUP(KF$6&\"-\"&$M16&\"_old\",Ammortamento_Finanziario!$H:$L,5,FALSE),VLOOKUP($M16,TT_Tabelle_Riferimento!$H$31:$I$50,2,FALSE))","v":15},{"$f":"+IFERROR(VLOOKUP(KG$6&\"-\"&$M16&\"_old\",Ammortamento_Finanziario!$H:$L,5,FALSE),VLOOKUP($M16,TT_Tabelle_Riferimento!$H$31:$I$50,2,FALSE))","v":15},{"$f":"+IFERROR(VLOOKUP(KH$6&\"-\"&$M16&\"_old\",Ammortamento_Finanziario!$H:$L,5,FALSE),VLOOKUP($M16,TT_Tabelle_Riferimento!$H$31:$I$50,2,FALSE))","v":15},{"$f":"+IFERROR(VLOOKUP(KI$6&\"-\"&$M16&\"_old\",Ammortamento_Finanziario!$H:$L,5,FALSE),VLOOKUP($M16,TT_Tabelle_Riferimento!$H$31:$I$50,2,FALSE))","v":15},{"$f":"+IFERROR(VLOOKUP(KJ$6&\"-\"&$M16&\"_old\",Ammortamento_Finanziario!$H:$L,5,FALSE),VLOOKUP($M16,TT_Tabelle_Riferimento!$H$31:$I$50,2,FALSE))","v":15},{"$f":"+IFERROR(VLOOKUP(KK$6&\"-\"&$M16&\"_old\",Ammortamento_Finanziario!$H:$L,5,FALSE),VLOOKUP($M16,TT_Tabelle_Riferimento!$H$31:$I$50,2,FALSE))","v":15},{"$f":"+IFERROR(VLOOKUP(KL$6&\"-\"&$M16&\"_old\",Ammortamento_Finanziario!$H:$L,5,FALSE),VLOOKUP($M16,TT_Tabelle_Riferimento!$H$31:$I$50,2,FALSE))","v":15},{"$f":"+IFERROR(VLOOKUP(KM$6&\"-\"&$M16&\"_old\",Ammortamento_Finanziario!$H:$L,5,FALSE),VLOOKUP($M16,TT_Tabelle_Riferimento!$H$31:$I$50,2,FALSE))","v":15},{"$f":"+IFERROR(VLOOKUP(KN$6&\"-\"&$M16&\"_old\",Ammortamento_Finanziario!$H:$L,5,FALSE),VLOOKUP($M16,TT_Tabelle_Riferimento!$H$31:$I$50,2,FALSE))","v":15},{"$f":"+IFERROR(VLOOKUP(KO$6&\"-\"&$M16&\"_old\",Ammortamento_Finanziario!$H:$L,5,FALSE),VLOOKUP($M16,TT_Tabelle_Riferimento!$H$31:$I$50,2,FALSE))","v":15},{"$f":"+IFERROR(VLOOKUP(KP$6&\"-\"&$M16&\"_old\",Ammortamento_Finanziario!$H:$L,5,FALSE),VLOOKUP($M16,TT_Tabelle_Riferimento!$H$31:$I$50,2,FALSE))","v":15},{"$f":"+IFERROR(VLOOKUP(KQ$6&\"-\"&$M16&\"_old\",Ammortamento_Finanziario!$H:$L,5,FALSE),VLOOKUP($M16,TT_Tabelle_Riferimento!$H$31:$I$50,2,FALSE))","v":15},{"$f":"+IFERROR(VLOOKUP(KR$6&\"-\"&$M16&\"_old\",Ammortamento_Finanziario!$H:$L,5,FALSE),VLOOKUP($M16,TT_Tabelle_Riferimento!$H$31:$I$50,2,FALSE))","v":15},{"$f":"+IFERROR(VLOOKUP(KS$6&\"-\"&$M16&\"_old\",Ammortamento_Finanziario!$H:$L,5,FALSE),VLOOKUP($M16,TT_Tabelle_Riferimento!$H$31:$I$50,2,FALSE))","v":15},{"$f":"+IFERROR(VLOOKUP(KT$6&\"-\"&$M16&\"_old\",Ammortamento_Finanziario!$H:$L,5,FALSE),VLOOKUP($M16,TT_Tabelle_Riferimento!$H$31:$I$50,2,FALSE))","v":15},{"$f":"+IFERROR(VLOOKUP(KU$6&\"-\"&$M16&\"_old\",Ammortamento_Finanziario!$H:$L,5,FALSE),VLOOKUP($M16,TT_Tabelle_Riferimento!$H$31:$I$50,2,FALSE))","v":15},{"$f":"+IFERROR(VLOOKUP(KV$6&\"-\"&$M16&\"_old\",Ammortamento_Finanziario!$H:$L,5,FALSE),VLOOKUP($M16,TT_Tabelle_Riferimento!$H$31:$I$50,2,FALSE))","v":15},{"$f":"+IFERROR(VLOOKUP(KW$6&\"-\"&$M16&\"_old\",Ammortamento_Finanziario!$H:$L,5,FALSE),VLOOKUP($M16,TT_Tabelle_Riferimento!$H$31:$I$50,2,FALSE))","v":15},{"$f":"+IFERROR(VLOOKUP(KX$6&\"-\"&$M16&\"_old\",Ammortamento_Finanziario!$H:$L,5,FALSE),VLOOKUP($M16,TT_Tabelle_Riferimento!$H$31:$I$50,2,FALSE))","v":15},{"$f":"+IFERROR(VLOOKUP(KY$6&\"-\"&$M16&\"_old\",Ammortamento_Finanziario!$H:$L,5,FALSE),VLOOKUP($M16,TT_Tabelle_Riferimento!$H$31:$I$50,2,FALSE))","v":15},{"$f":"+IFERROR(VLOOKUP(KZ$6&\"-\"&$M16&\"_old\",Ammortamento_Finanziario!$H:$L,5,FALSE),VLOOKUP($M16,TT_Tabelle_Riferimento!$H$31:$I$50,2,FALSE))","v":15},{"$f":"+IFERROR(VLOOKUP(LA$6&\"-\"&$M16&\"_old\",Ammortamento_Finanziario!$H:$L,5,FALSE),VLOOKUP($M16,TT_Tabelle_Riferimento!$H$31:$I$50,2,FALSE))","v":15},{"$f":"+IFERROR(VLOOKUP(LB$6&\"-\"&$M16&\"_old\",Ammortamento_Finanziario!$H:$L,5,FALSE),VLOOKUP($M16,TT_Tabelle_Riferimento!$H$31:$I$50,2,FALSE))","v":15},{"$f":"+IFERROR(VLOOKUP(LC$6&\"-\"&$M16&\"_old\",Ammortamento_Finanziario!$H:$L,5,FALSE),VLOOKUP($M16,TT_Tabelle_Riferimento!$H$31:$I$50,2,FALSE))","v":15},{"$f":"+IFERROR(VLOOKUP(LD$6&\"-\"&$M16&\"_old\",Ammortamento_Finanziario!$H:$L,5,FALSE),VLOOKUP($M16,TT_Tabelle_Riferimento!$H$31:$I$50,2,FALSE))","v":15},{"$f":"+IFERROR(VLOOKUP(LE$6&\"-\"&$M16&\"_old\",Ammortamento_Finanziario!$H:$L,5,FALSE),VLOOKUP($M16,TT_Tabelle_Riferimento!$H$31:$I$50,2,FALSE))","v":15},{"$f":"+IFERROR(VLOOKUP(LF$6&\"-\"&$M16&\"_old\",Ammortamento_Finanziario!$H:$L,5,FALSE),VLOOKUP($M16,TT_Tabelle_Riferimento!$H$31:$I$50,2,FALSE))","v":15},{"$f":"+IFERROR(VLOOKUP(LG$6&\"-\"&$M16&\"_old\",Ammortamento_Finanziario!$H:$L,5,FALSE),VLOOKUP($M16,TT_Tabelle_Riferimento!$H$31:$I$50,2,FALSE))","v":15},{"$f":"+IFERROR(VLOOKUP(LH$6&\"-\"&$M16&\"_old\",Ammortamento_Finanziario!$H:$L,5,FALSE),VLOOKUP($M16,TT_Tabelle_Riferimento!$H$31:$I$50,2,FALSE))","v":15},{"$f":"+IFERROR(VLOOKUP(LI$6&\"-\"&$M16&\"_old\",Ammortamento_Finanziario!$H:$L,5,FALSE),VLOOKUP($M16,TT_Tabelle_Riferimento!$H$31:$I$50,2,FALSE))","v":15},{"$f":"+IFERROR(VLOOKUP(LJ$6&\"-\"&$M16&\"_old\",Ammortamento_Finanziario!$H:$L,5,FALSE),VLOOKUP($M16,TT_Tabelle_Riferimento!$H$31:$I$50,2,FALSE))","v":15},{"$f":"+IFERROR(VLOOKUP(LK$6&\"-\"&$M16&\"_old\",Ammortamento_Finanziario!$H:$L,5,FALSE),VLOOKUP($M16,TT_Tabelle_Riferimento!$H$31:$I$50,2,FALSE))","v":15},{"$f":"+IFERROR(VLOOKUP(LL$6&\"-\"&$M16&\"_old\",Ammortamento_Finanziario!$H:$L,5,FALSE),VLOOKUP($M16,TT_Tabelle_Riferimento!$H$31:$I$50,2,FALSE))","v":15},{"$f":"+IFERROR(VLOOKUP(LM$6&\"-\"&$M16&\"_old\",Ammortamento_Finanziario!$H:$L,5,FALSE),VLOOKUP($M16,TT_Tabelle_Riferimento!$H$31:$I$50,2,FALSE))","v":15},{"$f":"+IFERROR(VLOOKUP(LN$6&\"-\"&$M16&\"_old\",Ammortamento_Finanziario!$H:$L,5,FALSE),VLOOKUP($M16,TT_Tabelle_Riferimento!$H$31:$I$50,2,FALSE))","v":15},{"$f":"+IFERROR(VLOOKUP(LO$6&\"-\"&$M16&\"_old\",Ammortamento_Finanziario!$H:$L,5,FALSE),VLOOKUP($M16,TT_Tabelle_Riferimento!$H$31:$I$50,2,FALSE))","v":15},{"$f":"+IFERROR(VLOOKUP(LP$6&\"-\"&$M16&\"_old\",Ammortamento_Finanziario!$H:$L,5,FALSE),VLOOKUP($M16,TT_Tabelle_Riferimento!$H$31:$I$50,2,FALSE))","v":15},{"$f":"+IFERROR(VLOOKUP(LQ$6&\"-\"&$M16&\"_old\",Ammortamento_Finanziario!$H:$L,5,FALSE),VLOOKUP($M16,TT_Tabelle_Riferimento!$H$31:$I$50,2,FALSE))","v":15},{"$f":"+IFERROR(VLOOKUP(LR$6&\"-\"&$M16&\"_old\",Ammortamento_Finanziario!$H:$L,5,FALSE),VLOOKUP($M16,TT_Tabelle_Riferimento!$H$31:$I$50,2,FALSE))","v":15},{"$f":"+IFERROR(VLOOKUP(LS$6&\"-\"&$M16&\"_old\",Ammortamento_Finanziario!$H:$L,5,FALSE),VLOOKUP($M16,TT_Tabelle_Riferimento!$H$31:$I$50,2,FALSE))","v":15},{"$f":"+IFERROR(VLOOKUP(LT$6&\"-\"&$M16&\"_old\",Ammortamento_Finanziario!$H:$L,5,FALSE),VLOOKUP($M16,TT_Tabelle_Riferimento!$H$31:$I$50,2,FALSE))","v":15},{"$f":"+IFERROR(VLOOKUP(LU$6&\"-\"&$M16&\"_old\",Ammortamento_Finanziario!$H:$L,5,FALSE),VLOOKUP($M16,TT_Tabelle_Riferimento!$H$31:$I$50,2,FALSE))","v":15},{"$f":"+IFERROR(VLOOKUP(LV$6&\"-\"&$M16&\"_old\",Ammortamento_Finanziario!$H:$L,5,FALSE),VLOOKUP($M16,TT_Tabelle_Riferimento!$H$31:$I$50,2,FALSE))","v":15},{"$f":"+IFERROR(VLOOKUP(LW$6&\"-\"&$M16&\"_old\",Ammortamento_Finanziario!$H:$L,5,FALSE),VLOOKUP($M16,TT_Tabelle_Riferimento!$H$31:$I$50,2,FALSE))","v":15},{"$f":"+IFERROR(VLOOKUP(LX$6&\"-\"&$M16&\"_old\",Ammortamento_Finanziario!$H:$L,5,FALSE),VLOOKUP($M16,TT_Tabelle_Riferimento!$H$31:$I$50,2,FALSE))","v":15},{"$f":"+IFERROR(VLOOKUP(LY$6&\"-\"&$M16&\"_old\",Ammortamento_Finanziario!$H:$L,5,FALSE),VLOOKUP($M16,TT_Tabelle_Riferimento!$H$31:$I$50,2,FALSE))","v":15},{"$f":"+IFERROR(VLOOKUP(LZ$6&\"-\"&$M16&\"_old\",Ammortamento_Finanziario!$H:$L,5,FALSE),VLOOKUP($M16,TT_Tabelle_Riferimento!$H$31:$I$50,2,FALSE))","v":15},{"$f":"+IFERROR(VLOOKUP(MA$6&\"-\"&$M16&\"_old\",Ammortamento_Finanziario!$H:$L,5,FALSE),VLOOKUP($M16,TT_Tabelle_Riferimento!$H$31:$I$50,2,FALSE))","v":15},{"$f":"+IFERROR(VLOOKUP(MB$6&\"-\"&$M16&\"_old\",Ammortamento_Finanziario!$H:$L,5,FALSE),VLOOKUP($M16,TT_Tabelle_Riferimento!$H$31:$I$50,2,FALSE))","v":15},{"$f":"+IFERROR(VLOOKUP(MC$6&\"-\"&$M16&\"_old\",Ammortamento_Finanziario!$H:$L,5,FALSE),VLOOKUP($M16,TT_Tabelle_Riferimento!$H$31:$I$50,2,FALSE))","v":15},{"$f":"+IFERROR(VLOOKUP(MD$6&\"-\"&$M16&\"_old\",Ammortamento_Finanziario!$H:$L,5,FALSE),VLOOKUP($M16,TT_Tabelle_Riferimento!$H$31:$I$50,2,FALSE))","v":15},{"$f":"+IFERROR(VLOOKUP(ME$6&\"-\"&$M16&\"_old\",Ammortamento_Finanziario!$H:$L,5,FALSE),VLOOKUP($M16,TT_Tabelle_Riferimento!$H$31:$I$50,2,FALSE))","v":15},{"$f":"+IFERROR(VLOOKUP(MF$6&\"-\"&$M16&\"_old\",Ammortamento_Finanziario!$H:$L,5,FALSE),VLOOKUP($M16,TT_Tabelle_Riferimento!$H$31:$I$50,2,FALSE))","v":15},{"$f":"+IFERROR(VLOOKUP(MG$6&\"-\"&$M16&\"_old\",Ammortamento_Finanziario!$H:$L,5,FALSE),VLOOKUP($M16,TT_Tabelle_Riferimento!$H$31:$I$50,2,FALSE))","v":15},{"$f":"+IFERROR(VLOOKUP(MH$6&\"-\"&$M16&\"_old\",Ammortamento_Finanziario!$H:$L,5,FALSE),VLOOKUP($M16,TT_Tabelle_Riferimento!$H$31:$I$50,2,FALSE))","v":15},{"$f":"+IFERROR(VLOOKUP(MI$6&\"-\"&$M16&\"_old\",Ammortamento_Finanziario!$H:$L,5,FALSE),VLOOKUP($M16,TT_Tabelle_Riferimento!$H$31:$I$50,2,FALSE))","v":15},{"$f":"+IFERROR(VLOOKUP(MJ$6&\"-\"&$M16&\"_old\",Ammortamento_Finanziario!$H:$L,5,FALSE),VLOOKUP($M16,TT_Tabelle_Riferimento!$H$31:$I$50,2,FALSE))","v":15},{"$f":"+IFERROR(VLOOKUP(MK$6&\"-\"&$M16&\"_old\",Ammortamento_Finanziario!$H:$L,5,FALSE),VLOOKUP($M16,TT_Tabelle_Riferimento!$H$31:$I$50,2,FALSE))","v":15},{"$f":"+IFERROR(VLOOKUP(ML$6&\"-\"&$M16&\"_old\",Ammortamento_Finanziario!$H:$L,5,FALSE),VLOOKUP($M16,TT_Tabelle_Riferimento!$H$31:$I$50,2,FALSE))","v":15},{"$f":"+IFERROR(VLOOKUP(MM$6&\"-\"&$M16&\"_old\",Ammortamento_Finanziario!$H:$L,5,FALSE),VLOOKUP($M16,TT_Tabelle_Riferimento!$H$31:$I$50,2,FALSE))","v":15},{"$f":"+IFERROR(VLOOKUP(MN$6&\"-\"&$M16&\"_old\",Ammortamento_Finanziario!$H:$L,5,FALSE),VLOOKUP($M16,TT_Tabelle_Riferimento!$H$31:$I$50,2,FALSE))","v":15},{"$f":"+IFERROR(VLOOKUP(MO$6&\"-\"&$M16&\"_old\",Ammortamento_Finanziario!$H:$L,5,FALSE),VLOOKUP($M16,TT_Tabelle_Riferimento!$H$31:$I$50,2,FALSE))","v":15},{"$f":"+IFERROR(VLOOKUP(MP$6&\"-\"&$M16&\"_old\",Ammortamento_Finanziario!$H:$L,5,FALSE),VLOOKUP($M16,TT_Tabelle_Riferimento!$H$31:$I$50,2,FALSE))","v":15},{"$f":"+IFERROR(VLOOKUP(MQ$6&\"-\"&$M16&\"_old\",Ammortamento_Finanziario!$H:$L,5,FALSE),VLOOKUP($M16,TT_Tabelle_Riferimento!$H$31:$I$50,2,FALSE))","v":15},{"$f":"+IFERROR(VLOOKUP(MR$6&\"-\"&$M16&\"_old\",Ammortamento_Finanziario!$H:$L,5,FALSE),VLOOKUP($M16,TT_Tabelle_Riferimento!$H$31:$I$50,2,FALSE))","v":15},{"$f":"+IFERROR(VLOOKUP(MS$6&\"-\"&$M16&\"_old\",Ammortamento_Finanziario!$H:$L,5,FALSE),VLOOKUP($M16,TT_Tabelle_Riferimento!$H$31:$I$50,2,FALSE))","v":15},{"$f":"+IFERROR(VLOOKUP(MT$6&\"-\"&$M16&\"_old\",Ammortamento_Finanziario!$H:$L,5,FALSE),VLOOKUP($M16,TT_Tabelle_Riferimento!$H$31:$I$50,2,FALSE))","v":15},{"$f":"+IFERROR(VLOOKUP(MU$6&\"-\"&$M16&\"_old\",Ammortamento_Finanziario!$H:$L,5,FALSE),VLOOKUP($M16,TT_Tabelle_Riferimento!$H$31:$I$50,2,FALSE))","v":15},{"$f":"+IFERROR(VLOOKUP(MV$6&\"-\"&$M16&\"_old\",Ammortamento_Finanziario!$H:$L,5,FALSE),VLOOKUP($M16,TT_Tabelle_Riferimento!$H$31:$I$50,2,FALSE))","v":15},{"$f":"+IFERROR(VLOOKUP(MW$6&\"-\"&$M16&\"_old\",Ammortamento_Finanziario!$H:$L,5,FALSE),VLOOKUP($M16,TT_Tabelle_Riferimento!$H$31:$I$50,2,FALSE))","v":15},{"$f":"+IFERROR(VLOOKUP(MX$6&\"-\"&$M16&\"_old\",Ammortamento_Finanziario!$H:$L,5,FALSE),VLOOKUP($M16,TT_Tabelle_Riferimento!$H$31:$I$50,2,FALSE))","v":15},{"$f":"+IFERROR(VLOOKUP(MY$6&\"-\"&$M16&\"_old\",Ammortamento_Finanziario!$H:$L,5,FALSE),VLOOKUP($M16,TT_Tabelle_Riferimento!$H$31:$I$50,2,FALSE))","v":15},{"$f":"+IFERROR(VLOOKUP(MZ$6&\"-\"&$M16&\"_old\",Ammortamento_Finanziario!$H:$L,5,FALSE),VLOOKUP($M16,TT_Tabelle_Riferimento!$H$31:$I$50,2,FALSE))","v":15},{"$f":"+IFERROR(VLOOKUP(NA$6&\"-\"&$M16&\"_old\",Ammortamento_Finanziario!$H:$L,5,FALSE),VLOOKUP($M16,TT_Tabelle_Riferimento!$H$31:$I$50,2,FALSE))","v":15},{"$f":"+IFERROR(VLOOKUP(NB$6&\"-\"&$M16&\"_old\",Ammortamento_Finanziario!$H:$L,5,FALSE),VLOOKUP($M16,TT_Tabelle_Riferimento!$H$31:$I$50,2,FALSE))","v":15},{"$f":"+IFERROR(VLOOKUP(NC$6&\"-\"&$M16&\"_old\",Ammortamento_Finanziario!$H:$L,5,FALSE),VLOOKUP($M16,TT_Tabelle_Riferimento!$H$31:$I$50,2,FALSE))","v":15},{"$f":"+IFERROR(VLOOKUP(ND$6&\"-\"&$M16&\"_old\",Ammortamento_Finanziario!$H:$L,5,FALSE),VLOOKUP($M16,TT_Tabelle_Riferimento!$H$31:$I$50,2,FALSE))","v":15},{"$f":"+IFERROR(VLOOKUP(NE$6&\"-\"&$M16&\"_old\",Ammortamento_Finanziario!$H:$L,5,FALSE),VLOOKUP($M16,TT_Tabelle_Riferimento!$H$31:$I$50,2,FALSE))","v":15},{"$f":"+IFERROR(VLOOKUP(NF$6&\"-\"&$M16&\"_old\",Ammortamento_Finanziario!$H:$L,5,FALSE),VLOOKUP($M16,TT_Tabelle_Riferimento!$H$31:$I$50,2,FALSE))","v":15},{"$f":"+IFERROR(VLOOKUP(NG$6&\"-\"&$M16&\"_old\",Ammortamento_Finanziario!$H:$L,5,FALSE),VLOOKUP($M16,TT_Tabelle_Riferimento!$H$31:$I$50,2,FALSE))","v":15},{"$f":"+IFERROR(VLOOKUP(NH$6&\"-\"&$M16&\"_old\",Ammortamento_Finanziario!$H:$L,5,FALSE),VLOOKUP($M16,TT_Tabelle_Riferimento!$H$31:$I$50,2,FALSE))","v":15},{"$f":"+IFERROR(VLOOKUP(NI$6&\"-\"&$M16&\"_old\",Ammortamento_Finanziario!$H:$L,5,FALSE),VLOOKUP($M16,TT_Tabelle_Riferimento!$H$31:$I$50,2,FALSE))","v":15},{"$f":"+IFERROR(VLOOKUP(NJ$6&\"-\"&$M16&\"_old\",Ammortamento_Finanziario!$H:$L,5,FALSE),VLOOKUP($M16,TT_Tabelle_Riferimento!$H$31:$I$50,2,FALSE))","v":15},{"$f":"+IFERROR(VLOOKUP(NK$6&\"-\"&$M16&\"_old\",Ammortamento_Finanziario!$H:$L,5,FALSE),VLOOKUP($M16,TT_Tabelle_Riferimento!$H$31:$I$50,2,FALSE))","v":15},{"$f":"+IFERROR(VLOOKUP(NL$6&\"-\"&$M16&\"_old\",Ammortamento_Finanziario!$H:$L,5,FALSE),VLOOKUP($M16,TT_Tabelle_Riferimento!$H$31:$I$50,2,FALSE))","v":15},{"$f":"+IFERROR(VLOOKUP(NM$6&\"-\"&$M16&\"_old\",Ammortamento_Finanziario!$H:$L,5,FALSE),VLOOKUP($M16,TT_Tabelle_Riferimento!$H$31:$I$50,2,FALSE))","v":15},{"$f":"+IFERROR(VLOOKUP(NN$6&\"-\"&$M16&\"_old\",Ammortamento_Finanziario!$H:$L,5,FALSE),VLOOKUP($M16,TT_Tabelle_Riferimento!$H$31:$I$50,2,FALSE))","v":15},{"$f":"+IFERROR(VLOOKUP(NO$6&\"-\"&$M16&\"_old\",Ammortamento_Finanziario!$H:$L,5,FALSE),VLOOKUP($M16,TT_Tabelle_Riferimento!$H$31:$I$50,2,FALSE))","v":15},{"$f":"+IFERROR(VLOOKUP(NP$6&\"-\"&$M16&\"_old\",Ammortamento_Finanziario!$H:$L,5,FALSE),VLOOKUP($M16,TT_Tabelle_Riferimento!$H$31:$I$50,2,FALSE))","v":15},{"$f":"+IFERROR(VLOOKUP(NQ$6&\"-\"&$M16&\"_old\",Ammortamento_Finanziario!$H:$L,5,FALSE),VLOOKUP($M16,TT_Tabelle_Riferimento!$H$31:$I$50,2,FALSE))","v":15},{"$f":"+IFERROR(VLOOKUP(NR$6&\"-\"&$M16&\"_old\",Ammortamento_Finanziario!$H:$L,5,FALSE),VLOOKUP($M16,TT_Tabelle_Riferimento!$H$31:$I$50,2,FALSE))","v":15},{"$f":"+IFERROR(VLOOKUP(NS$6&\"-\"&$M16&\"_old\",Ammortamento_Finanziario!$H:$L,5,FALSE),VLOOKUP($M16,TT_Tabelle_Riferimento!$H$31:$I$50,2,FALSE))","v":15},{"$f":"+IFERROR(VLOOKUP(NT$6&\"-\"&$M16&\"_old\",Ammortamento_Finanziario!$H:$L,5,FALSE),VLOOKUP($M16,TT_Tabelle_Riferimento!$H$31:$I$50,2,FALSE))","v":15},{"$f":"+IFERROR(VLOOKUP(NU$6&\"-\"&$M16&\"_old\",Ammortamento_Finanziario!$H:$L,5,FALSE),VLOOKUP($M16,TT_Tabelle_Riferimento!$H$31:$I$50,2,FALSE))","v":15},{"$f":"+IFERROR(VLOOKUP(NV$6&\"-\"&$M16&\"_old\",Ammortamento_Finanziario!$H:$L,5,FALSE),VLOOKUP($M16,TT_Tabelle_Riferimento!$H$31:$I$50,2,FALSE))","v":15},{"$f":"+IFERROR(VLOOKUP(NW$6&\"-\"&$M16&\"_old\",Ammortamento_Finanziario!$H:$L,5,FALSE),VLOOKUP($M16,TT_Tabelle_Riferimento!$H$31:$I$50,2,FALSE))","v":15},{"$f":"+IFERROR(VLOOKUP(NX$6&\"-\"&$M16&\"_old\",Ammortamento_Finanziario!$H:$L,5,FALSE),VLOOKUP($M16,TT_Tabelle_Riferimento!$H$31:$I$50,2,FALSE))","v":15},{"$f":"+IFERROR(VLOOKUP(NY$6&\"-\"&$M16&\"_old\",Ammortamento_Finanziario!$H:$L,5,FALSE),VLOOKUP($M16,TT_Tabelle_Riferimento!$H$31:$I$50,2,FALSE))","v":15},{"$f":"+IFERROR(VLOOKUP(NZ$6&\"-\"&$M16&\"_old\",Ammortamento_Finanziario!$H:$L,5,FALSE),VLOOKUP($M16,TT_Tabelle_Riferimento!$H$31:$I$50,2,FALSE))","v":15},{"$f":"+IFERROR(VLOOKUP(OA$6&\"-\"&$M16&\"_old\",Ammortamento_Finanziario!$H:$L,5,FALSE),VLOOKUP($M16,TT_Tabelle_Riferimento!$H$31:$I$50,2,FALSE))","v":15},{"$f":"+IFERROR(VLOOKUP(OB$6&\"-\"&$M16&\"_old\",Ammortamento_Finanziario!$H:$L,5,FALSE),VLOOKUP($M16,TT_Tabelle_Riferimento!$H$31:$I$50,2,FALSE))","v":15},{"$f":"+IFERROR(VLOOKUP(OC$6&\"-\"&$M16&\"_old\",Ammortamento_Finanziario!$H:$L,5,FALSE),VLOOKUP($M16,TT_Tabelle_Riferimento!$H$31:$I$50,2,FALSE))","v":15},{"$f":"+IFERROR(VLOOKUP(OD$6&\"-\"&$M16&\"_old\",Ammortamento_Finanziario!$H:$L,5,FALSE),VLOOKUP($M16,TT_Tabelle_Riferimento!$H$31:$I$50,2,FALSE))","v":15},{"$f":"+IFERROR(VLOOKUP(OE$6&\"-\"&$M16&\"_old\",Ammortamento_Finanziario!$H:$L,5,FALSE),VLOOKUP($M16,TT_Tabelle_Riferimento!$H$31:$I$50,2,FALSE))","v":15},{"$f":"+IFERROR(VLOOKUP(OF$6&\"-\"&$M16&\"_old\",Ammortamento_Finanziario!$H:$L,5,FALSE),VLOOKUP($M16,TT_Tabelle_Riferimento!$H$31:$I$50,2,FALSE))","v":15},{"$f":"+IFERROR(VLOOKUP(OG$6&\"-\"&$M16&\"_old\",Ammortamento_Finanziario!$H:$L,5,FALSE),VLOOKUP($M16,TT_Tabelle_Riferimento!$H$31:$I$50,2,FALSE))","v":15},{"$f":"+IFERROR(VLOOKUP(OH$6&\"-\"&$M16&\"_old\",Ammortamento_Finanziario!$H:$L,5,FALSE),VLOOKUP($M16,TT_Tabelle_Riferimento!$H$31:$I$50,2,FALSE))","v":15},{"$f":"+IFERROR(VLOOKUP(OI$6&\"-\"&$M16&\"_old\",Ammortamento_Finanziario!$H:$L,5,FALSE),VLOOKUP($M16,TT_Tabelle_Riferimento!$H$31:$I$50,2,FALSE))","v":15},{"$f":"+IFERROR(VLOOKUP(OJ$6&\"-\"&$M16&\"_old\",Ammortamento_Finanziario!$H:$L,5,FALSE),VLOOKUP($M16,TT_Tabelle_Riferimento!$H$31:$I$50,2,FALSE))","v":15},{"$f":"+IFERROR(VLOOKUP(OK$6&\"-\"&$M16&\"_old\",Ammortamento_Finanziario!$H:$L,5,FALSE),VLOOKUP($M16,TT_Tabelle_Riferimento!$H$31:$I$50,2,FALSE))","v":15},{"$f":"+IFERROR(VLOOKUP(OL$6&\"-\"&$M16&\"_old\",Ammortamento_Finanziario!$H:$L,5,FALSE),VLOOKUP($M16,TT_Tabelle_Riferimento!$H$31:$I$50,2,FALSE))","v":15},{"$f":"+IFERROR(VLOOKUP(OM$6&\"-\"&$M16&\"_old\",Ammortamento_Finanziario!$H:$L,5,FALSE),VLOOKUP($M16,TT_Tabelle_Riferimento!$H$31:$I$50,2,FALSE))","v":15},{"$f":"+IFERROR(VLOOKUP(ON$6&\"-\"&$M16&\"_old\",Ammortamento_Finanziario!$H:$L,5,FALSE),VLOOKUP($M16,TT_Tabelle_Riferimento!$H$31:$I$50,2,FALSE))","v":15},{"$f":"+IFERROR(VLOOKUP(OO$6&\"-\"&$M16&\"_old\",Ammortamento_Finanziario!$H:$L,5,FALSE),VLOOKUP($M16,TT_Tabelle_Riferimento!$H$31:$I$50,2,FALSE))","v":15},{"$f":"+IFERROR(VLOOKUP(OP$6&\"-\"&$M16&\"_old\",Ammortamento_Finanziario!$H:$L,5,FALSE),VLOOKUP($M16,TT_Tabelle_Riferimento!$H$31:$I$50,2,FALSE))","v":15},{"$f":"+IFERROR(VLOOKUP(OQ$6&\"-\"&$M16&\"_old\",Ammortamento_Finanziario!$H:$L,5,FALSE),VLOOKUP($M16,TT_Tabelle_Riferimento!$H$31:$I$50,2,FALSE))","v":15},{"$f":"+IFERROR(VLOOKUP(OR$6&\"-\"&$M16&\"_old\",Ammortamento_Finanziario!$H:$L,5,FALSE),VLOOKUP($M16,TT_Tabelle_Riferimento!$H$31:$I$50,2,FALSE))","v":15},{"$f":"+IFERROR(VLOOKUP(OS$6&\"-\"&$M16&\"_old\",Ammortamento_Finanziario!$H:$L,5,FALSE),VLOOKUP($M16,TT_Tabelle_Riferimento!$H$31:$I$50,2,FALSE))","v":15},{"$f":"+IFERROR(VLOOKUP(OT$6&\"-\"&$M16&\"_old\",Ammortamento_Finanziario!$H:$L,5,FALSE),VLOOKUP($M16,TT_Tabelle_Riferimento!$H$31:$I$50,2,FALSE))","v":15},{"$f":"+IFERROR(VLOOKUP(OU$6&\"-\"&$M16&\"_old\",Ammortamento_Finanziario!$H:$L,5,FALSE),VLOOKUP($M16,TT_Tabelle_Riferimento!$H$31:$I$50,2,FALSE))","v":15},{"$f":"+IFERROR(VLOOKUP(OV$6&\"-\"&$M16&\"_old\",Ammortamento_Finanziario!$H:$L,5,FALSE),VLOOKUP($M16,TT_Tabelle_Riferimento!$H$31:$I$50,2,FALSE))","v":15},{"$f":"+IFERROR(VLOOKUP(OW$6&\"-\"&$M16&\"_old\",Ammortamento_Finanziario!$H:$L,5,FALSE),VLOOKUP($M16,TT_Tabelle_Riferimento!$H$31:$I$50,2,FALSE))","v":15},{"$f":"+IFERROR(VLOOKUP(OX$6&\"-\"&$M16&\"_old\",Ammortamento_Finanziario!$H:$L,5,FALSE),VLOOKUP($M16,TT_Tabelle_Riferimento!$H$31:$I$50,2,FALSE))","v":15},{"$f":"+IFERROR(VLOOKUP(OY$6&\"-\"&$M16&\"_old\",Ammortamento_Finanziario!$H:$L,5,FALSE),VLOOKUP($M16,TT_Tabelle_Riferimento!$H$31:$I$50,2,FALSE))","v":15},{"$f":"+IFERROR(VLOOKUP(OZ$6&\"-\"&$M16&\"_old\",Ammortamento_Finanziario!$H:$L,5,FALSE),VLOOKUP($M16,TT_Tabelle_Riferimento!$H$31:$I$50,2,FALSE))","v":15},{"$f":"+IFERROR(VLOOKUP(PA$6&\"-\"&$M16&\"_old\",Ammortamento_Finanziario!$H:$L,5,FALSE),VLOOKUP($M16,TT_Tabelle_Riferimento!$H$31:$I$50,2,FALSE))","v":15},{"$f":"+IFERROR(VLOOKUP(PB$6&\"-\"&$M16&\"_old\",Ammortamento_Finanziario!$H:$L,5,FALSE),VLOOKUP($M16,TT_Tabelle_Riferimento!$H$31:$I$50,2,FALSE))","v":15},{"$f":"+IFERROR(VLOOKUP(PC$6&\"-\"&$M16&\"_old\",Ammortamento_Finanziario!$H:$L,5,FALSE),VLOOKUP($M16,TT_Tabelle_Riferimento!$H$31:$I$50,2,FALSE))","v":15},{"$f":"+IFERROR(VLOOKUP(PD$6&\"-\"&$M16&\"_old\",Ammortamento_Finanziario!$H:$L,5,FALSE),VLOOKUP($M16,TT_Tabelle_Riferimento!$H$31:$I$50,2,FALSE))","v":15},{"$f":"+IFERROR(VLOOKUP(PE$6&\"-\"&$M16&\"_old\",Ammortamento_Finanziario!$H:$L,5,FALSE),VLOOKUP($M16,TT_Tabelle_Riferimento!$H$31:$I$50,2,FALSE))","v":15},{"$f":"+IFERROR(VLOOKUP(PF$6&\"-\"&$M16&\"_old\",Ammortamento_Finanziario!$H:$L,5,FALSE),VLOOKUP($M16,TT_Tabelle_Riferimento!$H$31:$I$50,2,FALSE))","v":15},{"$f":"+IFERROR(VLOOKUP(PG$6&\"-\"&$M16&\"_old\",Ammortamento_Finanziario!$H:$L,5,FALSE),VLOOKUP($M16,TT_Tabelle_Riferimento!$H$31:$I$50,2,FALSE))","v":15},{"$f":"+IFERROR(VLOOKUP(PH$6&\"-\"&$M16&\"_old\",Ammortamento_Finanziario!$H:$L,5,FALSE),VLOOKUP($M16,TT_Tabelle_Riferimento!$H$31:$I$50,2,FALSE))","v":15},{"$f":"+IFERROR(VLOOKUP(PI$6&\"-\"&$M16&\"_old\",Ammortamento_Finanziario!$H:$L,5,FALSE),VLOOKUP($M16,TT_Tabelle_Riferimento!$H$31:$I$50,2,FALSE))","v":15},{"$f":"+IFERROR(VLOOKUP(PJ$6&\"-\"&$M16&\"_old\",Ammortamento_Finanziario!$H:$L,5,FALSE),VLOOKUP($M16,TT_Tabelle_Riferimento!$H$31:$I$50,2,FALSE))","v":15},{"$f":"+IFERROR(VLOOKUP(PK$6&\"-\"&$M16&\"_old\",Ammortamento_Finanziario!$H:$L,5,FALSE),VLOOKUP($M16,TT_Tabelle_Riferimento!$H$31:$I$50,2,FALSE))","v":15},{"$f":"+IFERROR(VLOOKUP(PL$6&\"-\"&$M16&\"_old\",Ammortamento_Finanziario!$H:$L,5,FALSE),VLOOKUP($M16,TT_Tabelle_Riferimento!$H$31:$I$50,2,FALSE))","v":15},{"$f":"+IFERROR(VLOOKUP(PM$6&\"-\"&$M16&\"_old\",Ammortamento_Finanziario!$H:$L,5,FALSE),VLOOKUP($M16,TT_Tabelle_Riferimento!$H$31:$I$50,2,FALSE))","v":15},{"$f":"+IFERROR(VLOOKUP(PN$6&\"-\"&$M16&\"_old\",Ammortamento_Finanziario!$H:$L,5,FALSE),VLOOKUP($M16,TT_Tabelle_Riferimento!$H$31:$I$50,2,FALSE))","v":15},{"$f":"+IFERROR(VLOOKUP(PO$6&\"-\"&$M16&\"_old\",Ammortamento_Finanziario!$H:$L,5,FALSE),VLOOKUP($M16,TT_Tabelle_Riferimento!$H$31:$I$50,2,FALSE))","v":15},{"$f":"+IFERROR(VLOOKUP(PP$6&\"-\"&$M16&\"_old\",Ammortamento_Finanziario!$H:$L,5,FALSE),VLOOKUP($M16,TT_Tabelle_Riferimento!$H$31:$I$50,2,FALSE))","v":15},{"$f":"+IFERROR(VLOOKUP(PQ$6&\"-\"&$M16&\"_old\",Ammortamento_Finanziario!$H:$L,5,FALSE),VLOOKUP($M16,TT_Tabelle_Riferimento!$H$31:$I$50,2,FALSE))","v":15},{"$f":"+IFERROR(VLOOKUP(PR$6&\"-\"&$M16&\"_old\",Ammortamento_Finanziario!$H:$L,5,FALSE),VLOOKUP($M16,TT_Tabelle_Riferimento!$H$31:$I$50,2,FALSE))","v":15},{"$f":"+IFERROR(VLOOKUP(PS$6&\"-\"&$M16&\"_old\",Ammortamento_Finanziario!$H:$L,5,FALSE),VLOOKUP($M16,TT_Tabelle_Riferimento!$H$31:$I$50,2,FALSE))","v":15},{"$f":"+IFERROR(VLOOKUP(PT$6&\"-\"&$M16&\"_old\",Ammortamento_Finanziario!$H:$L,5,FALSE),VLOOKUP($M16,TT_Tabelle_Riferimento!$H$31:$I$50,2,FALSE))","v":15},{"$f":"+IFERROR(VLOOKUP(PU$6&\"-\"&$M16&\"_old\",Ammortamento_Finanziario!$H:$L,5,FALSE),VLOOKUP($M16,TT_Tabelle_Riferimento!$H$31:$I$50,2,FALSE))","v":15},{"$f":"+IFERROR(VLOOKUP(PV$6&\"-\"&$M16&\"_old\",Ammortamento_Finanziario!$H:$L,5,FALSE),VLOOKUP($M16,TT_Tabelle_Riferimento!$H$31:$I$50,2,FALSE))","v":15},{"$f":"+IFERROR(VLOOKUP(PW$6&\"-\"&$M16&\"_old\",Ammortamento_Finanziario!$H:$L,5,FALSE),VLOOKUP($M16,TT_Tabelle_Riferimento!$H$31:$I$50,2,FALSE))","v":15},{"$f":"+IFERROR(VLOOKUP(PX$6&\"-\"&$M16&\"_old\",Ammortamento_Finanziario!$H:$L,5,FALSE),VLOOKUP($M16,TT_Tabelle_Riferimento!$H$31:$I$50,2,FALSE))","v":15},{"$f":"+IFERROR(VLOOKUP(PY$6&\"-\"&$M16&\"_old\",Ammortamento_Finanziario!$H:$L,5,FALSE),VLOOKUP($M16,TT_Tabelle_Riferimento!$H$31:$I$50,2,FALSE))","v":15},{"$f":"+IFERROR(VLOOKUP(PZ$6&\"-\"&$M16&\"_old\",Ammortamento_Finanziario!$H:$L,5,FALSE),VLOOKUP($M16,TT_Tabelle_Riferimento!$H$31:$I$50,2,FALSE))","v":15},{"$f":"+IFERROR(VLOOKUP(QA$6&\"-\"&$M16&\"_old\",Ammortamento_Finanziario!$H:$L,5,FALSE),VLOOKUP($M16,TT_Tabelle_Riferimento!$H$31:$I$50,2,FALSE))","v":15},{"$f":"+IFERROR(VLOOKUP(QB$6&\"-\"&$M16&\"_old\",Ammortamento_Finanziario!$H:$L,5,FALSE),VLOOKUP($M16,TT_Tabelle_Riferimento!$H$31:$I$50,2,FALSE))","v":15},{"$f":"+IFERROR(VLOOKUP(QC$6&\"-\"&$M16&\"_old\",Ammortamento_Finanziario!$H:$L,5,FALSE),VLOOKUP($M16,TT_Tabelle_Riferimento!$H$31:$I$50,2,FALSE))","v":15},{"$f":"+IFERROR(VLOOKUP(QD$6&\"-\"&$M16&\"_old\",Ammortamento_Finanziario!$H:$L,5,FALSE),VLOOKUP($M16,TT_Tabelle_Riferimento!$H$31:$I$50,2,FALSE))","v":15},{"$f":"+IFERROR(VLOOKUP(QE$6&\"-\"&$M16&\"_old\",Ammortamento_Finanziario!$H:$L,5,FALSE),VLOOKUP($M16,TT_Tabelle_Riferimento!$H$31:$I$50,2,FALSE))","v":15},{"$f":"+IFERROR(VLOOKUP(QF$6&\"-\"&$M16&\"_old\",Ammortamento_Finanziario!$H:$L,5,FALSE),VLOOKUP($M16,TT_Tabelle_Riferimento!$H$31:$I$50,2,FALSE))","v":15},{"$f":"+IFERROR(VLOOKUP(QG$6&\"-\"&$M16&\"_old\",Ammortamento_Finanziario!$H:$L,5,FALSE),VLOOKUP($M16,TT_Tabelle_Riferimento!$H$31:$I$50,2,FALSE))","v":15},{"$f":"+IFERROR(VLOOKUP(QH$6&\"-\"&$M16&\"_old\",Ammortamento_Finanziario!$H:$L,5,FALSE),VLOOKUP($M16,TT_Tabelle_Riferimento!$H$31:$I$50,2,FALSE))","v":15},{"$f":"+IFERROR(VLOOKUP(QI$6&\"-\"&$M16&\"_old\",Ammortamento_Finanziario!$H:$L,5,FALSE),VLOOKUP($M16,TT_Tabelle_Riferimento!$H$31:$I$50,2,FALSE))","v":15},{"$f":"+IFERROR(VLOOKUP(QJ$6&\"-\"&$M16&\"_old\",Ammortamento_Finanziario!$H:$L,5,FALSE),VLOOKUP($M16,TT_Tabelle_Riferimento!$H$31:$I$50,2,FALSE))","v":15},{"$f":"+IFERROR(VLOOKUP(QK$6&\"-\"&$M16&\"_old\",Ammortamento_Finanziario!$H:$L,5,FALSE),VLOOKUP($M16,TT_Tabelle_Riferimento!$H$31:$I$50,2,FALSE))","v":15},{"$f":"+IFERROR(VLOOKUP(QL$6&\"-\"&$M16&\"_old\",Ammortamento_Finanziario!$H:$L,5,FALSE),VLOOKUP($M16,TT_Tabelle_Riferimento!$H$31:$I$50,2,FALSE))","v":15},{"$f":"+IFERROR(VLOOKUP(QM$6&\"-\"&$M16&\"_old\",Ammortamento_Finanziario!$H:$L,5,FALSE),VLOOKUP($M16,TT_Tabelle_Riferimento!$H$31:$I$50,2,FALSE))","v":15},{"$f":"+IFERROR(VLOOKUP(QN$6&\"-\"&$M16&\"_old\",Ammortamento_Finanziario!$H:$L,5,FALSE),VLOOKUP($M16,TT_Tabelle_Riferimento!$H$31:$I$50,2,FALSE))","v":15},{"$f":"+IFERROR(VLOOKUP(QO$6&\"-\"&$M16&\"_old\",Ammortamento_Finanziario!$H:$L,5,FALSE),VLOOKUP($M16,TT_Tabelle_Riferimento!$H$31:$I$50,2,FALSE))","v":15},{"$f":"+IFERROR(VLOOKUP(QP$6&\"-\"&$M16&\"_old\",Ammortamento_Finanziario!$H:$L,5,FALSE),VLOOKUP($M16,TT_Tabelle_Riferimento!$H$31:$I$50,2,FALSE))","v":15},{"$f":"+IFERROR(VLOOKUP(QQ$6&\"-\"&$M16&\"_old\",Ammortamento_Finanziario!$H:$L,5,FALSE),VLOOKUP($M16,TT_Tabelle_Riferimento!$H$31:$I$50,2,FALSE))","v":15},{"$f":"+IFERROR(VLOOKUP(QR$6&\"-\"&$M16&\"_old\",Ammortamento_Finanziario!$H:$L,5,FALSE),VLOOKUP($M16,TT_Tabelle_Riferimento!$H$31:$I$50,2,FALSE))","v":15},{"$f":"+IFERROR(VLOOKUP(QS$6&\"-\"&$M16&\"_old\",Ammortamento_Finanziario!$H:$L,5,FALSE),VLOOKUP($M16,TT_Tabelle_Riferimento!$H$31:$I$50,2,FALSE))","v":15},{"$f":"+IFERROR(VLOOKUP(QT$6&\"-\"&$M16&\"_old\",Ammortamento_Finanziario!$H:$L,5,FALSE),VLOOKUP($M16,TT_Tabelle_Riferimento!$H$31:$I$50,2,FALSE))","v":15},{"$f":"+IFERROR(VLOOKUP(QU$6&\"-\"&$M16&\"_old\",Ammortamento_Finanziario!$H:$L,5,FALSE),VLOOKUP($M16,TT_Tabelle_Riferimento!$H$31:$I$50,2,FALSE))","v":15},{"$f":"+IFERROR(VLOOKUP(QV$6&\"-\"&$M16&\"_old\",Ammortamento_Finanziario!$H:$L,5,FALSE),VLOOKUP($M16,TT_Tabelle_Riferimento!$H$31:$I$50,2,FALSE))","v":15},{"$f":"+IFERROR(VLOOKUP(QW$6&\"-\"&$M16&\"_old\",Ammortamento_Finanziario!$H:$L,5,FALSE),VLOOKUP($M16,TT_Tabelle_Riferimento!$H$31:$I$50,2,FALSE))","v":15},{"$f":"+IFERROR(VLOOKUP(QX$6&\"-\"&$M16&\"_old\",Ammortamento_Finanziario!$H:$L,5,FALSE),VLOOKUP($M16,TT_Tabelle_Riferimento!$H$31:$I$50,2,FALSE))","v":15},{"$f":"+IFERROR(VLOOKUP(QY$6&\"-\"&$M16&\"_old\",Ammortamento_Finanziario!$H:$L,5,FALSE),VLOOKUP($M16,TT_Tabelle_Riferimento!$H$31:$I$50,2,FALSE))","v":15},{"$f":"+IFERROR(VLOOKUP(QZ$6&\"-\"&$M16&\"_old\",Ammortamento_Finanziario!$H:$L,5,FALSE),VLOOKUP($M16,TT_Tabelle_Riferimento!$H$31:$I$50,2,FALSE))","v":15},{"$f":"+IFERROR(VLOOKUP(RA$6&\"-\"&$M16&\"_old\",Ammortamento_Finanziario!$H:$L,5,FALSE),VLOOKUP($M16,TT_Tabelle_Riferimento!$H$31:$I$50,2,FALSE))","v":15},{"$f":"+IFERROR(VLOOKUP(RB$6&\"-\"&$M16&\"_old\",Ammortamento_Finanziario!$H:$L,5,FALSE),VLOOKUP($M16,TT_Tabelle_Riferimento!$H$31:$I$50,2,FALSE))","v":15},{"$f":"+IFERROR(VLOOKUP(RC$6&\"-\"&$M16&\"_old\",Ammortamento_Finanziario!$H:$L,5,FALSE),VLOOKUP($M16,TT_Tabelle_Riferimento!$H$31:$I$50,2,FALSE))","v":15},{"$f":"+IFERROR(VLOOKUP(RD$6&\"-\"&$M16&\"_old\",Ammortamento_Finanziario!$H:$L,5,FALSE),VLOOKUP($M16,TT_Tabelle_Riferimento!$H$31:$I$50,2,FALSE))","v":15},{"$f":"+IFERROR(VLOOKUP(RE$6&\"-\"&$M16&\"_old\",Ammortamento_Finanziario!$H:$L,5,FALSE),VLOOKUP($M16,TT_Tabelle_Riferimento!$H$31:$I$50,2,FALSE))","v":15},{"$f":"+IFERROR(VLOOKUP(RF$6&\"-\"&$M16&\"_old\",Ammortamento_Finanziario!$H:$L,5,FALSE),VLOOKUP($M16,TT_Tabelle_Riferimento!$H$31:$I$50,2,FALSE))","v":15},{"$f":"+IFERROR(VLOOKUP(RG$6&\"-\"&$M16&\"_old\",Ammortamento_Finanziario!$H:$L,5,FALSE),VLOOKUP($M16,TT_Tabelle_Riferimento!$H$31:$I$50,2,FALSE))","v":15},{"$f":"+IFERROR(VLOOKUP(RH$6&\"-\"&$M16&\"_old\",Ammortamento_Finanziario!$H:$L,5,FALSE),VLOOKUP($M16,TT_Tabelle_Riferimento!$H$31:$I$50,2,FALSE))","v":15},{"$f":"+IFERROR(VLOOKUP(RI$6&\"-\"&$M16&\"_old\",Ammortamento_Finanziario!$H:$L,5,FALSE),VLOOKUP($M16,TT_Tabelle_Riferimento!$H$31:$I$50,2,FALSE))","v":15},{"$f":"+IFERROR(VLOOKUP(RJ$6&\"-\"&$M16&\"_old\",Ammortamento_Finanziario!$H:$L,5,FALSE),VLOOKUP($M16,TT_Tabelle_Riferimento!$H$31:$I$50,2,FALSE))","v":15},{"$f":"+IFERROR(VLOOKUP(RK$6&\"-\"&$M16&\"_old\",Ammortamento_Finanziario!$H:$L,5,FALSE),VLOOKUP($M16,TT_Tabelle_Riferimento!$H$31:$I$50,2,FALSE))","v":15},{"$f":"+IFERROR(VLOOKUP(RL$6&\"-\"&$M16&\"_old\",Ammortamento_Finanziario!$H:$L,5,FALSE),VLOOKUP($M16,TT_Tabelle_Riferimento!$H$31:$I$50,2,FALSE))","v":15},{"$f":"+IFERROR(VLOOKUP(RM$6&\"-\"&$M16&\"_old\",Ammortamento_Finanziario!$H:$L,5,FALSE),VLOOKUP($M16,TT_Tabelle_Riferimento!$H$31:$I$50,2,FALSE))","v":15},{"$f":"+IFERROR(VLOOKUP(RN$6&\"-\"&$M16&\"_old\",Ammortamento_Finanziario!$H:$L,5,FALSE),VLOOKUP($M16,TT_Tabelle_Riferimento!$H$31:$I$50,2,FALSE))","v":15},{"$f":"+IFERROR(VLOOKUP(RO$6&\"-\"&$M16&\"_old\",Ammortamento_Finanziario!$H:$L,5,FALSE),VLOOKUP($M16,TT_Tabelle_Riferimento!$H$31:$I$50,2,FALSE))","v":15},{"$f":"+IFERROR(VLOOKUP(RP$6&\"-\"&$M16&\"_old\",Ammortamento_Finanziario!$H:$L,5,FALSE),VLOOKUP($M16,TT_Tabelle_Riferimento!$H$31:$I$50,2,FALSE))","v":15},{"$f":"+IFERROR(VLOOKUP(RQ$6&\"-\"&$M16&\"_old\",Ammortamento_Finanziario!$H:$L,5,FALSE),VLOOKUP($M16,TT_Tabelle_Riferimento!$H$31:$I$50,2,FALSE))","v":15},{"$f":"+IFERROR(VLOOKUP(RR$6&\"-\"&$M16&\"_old\",Ammortamento_Finanziario!$H:$L,5,FALSE),VLOOKUP($M16,TT_Tabelle_Riferimento!$H$31:$I$50,2,FALSE))","v":15},{"$f":"+IFERROR(VLOOKUP(RS$6&\"-\"&$M16&\"_old\",Ammortamento_Finanziario!$H:$L,5,FALSE),VLOOKUP($M16,TT_Tabelle_Riferimento!$H$31:$I$50,2,FALSE))","v":15},{"$f":"+IFERROR(VLOOKUP(RT$6&\"-\"&$M16&\"_old\",Ammortamento_Finanziario!$H:$L,5,FALSE),VLOOKUP($M16,TT_Tabelle_Riferimento!$H$31:$I$50,2,FALSE))","v":15},{"$f":"+IFERROR(VLOOKUP(RU$6&\"-\"&$M16&\"_old\",Ammortamento_Finanziario!$H:$L,5,FALSE),VLOOKUP($M16,TT_Tabelle_Riferimento!$H$31:$I$50,2,FALSE))","v":15},{"$f":"+IFERROR(VLOOKUP(RV$6&\"-\"&$M16&\"_old\",Ammortamento_Finanziario!$H:$L,5,FALSE),VLOOKUP($M16,TT_Tabelle_Riferimento!$H$31:$I$50,2,FALSE))","v":15}]
[null,null,null,null,2024,2025,2026,2027,2028,2029,null,null,11,{"$f":"+IFERROR(VLOOKUP(N$6&\"-\"&$M17&\"_old\",Ammortamento_Finanziario!$H:$L,5,FALSE),VLOOKUP($M17,TT_Tabelle_Riferimento!$H$31:$I$50,2,FALSE))","v":20},{"$f":"+IFERROR(VLOOKUP(O$6&\"-\"&$M17&\"_old\",Ammortamento_Finanziario!$H:$L,5,FALSE),VLOOKUP($M17,TT_Tabelle_Riferimento!$H$31:$I$50,2,FALSE))","v":20},{"$f":"+IFERROR(VLOOKUP(P$6&\"-\"&$M17&\"_old\",Ammortamento_Finanziario!$H:$L,5,FALSE),VLOOKUP($M17,TT_Tabelle_Riferimento!$H$31:$I$50,2,FALSE))","v":20},{"$f":"+IFERROR(VLOOKUP(Q$6&\"-\"&$M17&\"_old\",Ammortamento_Finanziario!$H:$L,5,FALSE),VLOOKUP($M17,TT_Tabelle_Riferimento!$H$31:$I$50,2,FALSE))","v":20},{"$f":"+IFERROR(VLOOKUP(R$6&\"-\"&$M17&\"_old\",Ammortamento_Finanziario!$H:$L,5,FALSE),VLOOKUP($M17,TT_Tabelle_Riferimento!$H$31:$I$50,2,FALSE))","v":20},{"$f":"+IFERROR(VLOOKUP(S$6&\"-\"&$M17&\"_old\",Ammortamento_Finanziario!$H:$L,5,FALSE),VLOOKUP($M17,TT_Tabelle_Riferimento!$H$31:$I$50,2,FALSE))","v":20},{"$f":"+IFERROR(VLOOKUP(T$6&\"-\"&$M17&\"_old\",Ammortamento_Finanziario!$H:$L,5,FALSE),VLOOKUP($M17,TT_Tabelle_Riferimento!$H$31:$I$50,2,FALSE))","v":20},{"$f":"+IFERROR(VLOOKUP(U$6&\"-\"&$M17&\"_old\",Ammortamento_Finanziario!$H:$L,5,FALSE),VLOOKUP($M17,TT_Tabelle_Riferimento!$H$31:$I$50,2,FALSE))","v":20},{"$f":"+IFERROR(VLOOKUP(V$6&\"-\"&$M17&\"_old\",Ammortamento_Finanziario!$H:$L,5,FALSE),VLOOKUP($M17,TT_Tabelle_Riferimento!$H$31:$I$50,2,FALSE))","v":20},{"$f":"+IFERROR(VLOOKUP(W$6&\"-\"&$M17&\"_old\",Ammortamento_Finanziario!$H:$L,5,FALSE),VLOOKUP($M17,TT_Tabelle_Riferimento!$H$31:$I$50,2,FALSE))","v":20},{"$f":"+IFERROR(VLOOKUP(X$6&\"-\"&$M17&\"_old\",Ammortamento_Finanziario!$H:$L,5,FALSE),VLOOKUP($M17,TT_Tabelle_Riferimento!$H$31:$I$50,2,FALSE))","v":20},{"$f":"+IFERROR(VLOOKUP(Y$6&\"-\"&$M17&\"_old\",Ammortamento_Finanziario!$H:$L,5,FALSE),VLOOKUP($M17,TT_Tabelle_Riferimento!$H$31:$I$50,2,FALSE))","v":20},{"$f":"+IFERROR(VLOOKUP(Z$6&\"-\"&$M17&\"_old\",Ammortamento_Finanziario!$H:$L,5,FALSE),VLOOKUP($M17,TT_Tabelle_Riferimento!$H$31:$I$50,2,FALSE))","v":20},{"$f":"+IFERROR(VLOOKUP(AA$6&\"-\"&$M17&\"_old\",Ammortamento_Finanziario!$H:$L,5,FALSE),VLOOKUP($M17,TT_Tabelle_Riferimento!$H$31:$I$50,2,FALSE))","v":20},{"$f":"+IFERROR(VLOOKUP(AB$6&\"-\"&$M17&\"_old\",Ammortamento_Finanziario!$H:$L,5,FALSE),VLOOKUP($M17,TT_Tabelle_Riferimento!$H$31:$I$50,2,FALSE))","v":20},{"$f":"+IFERROR(VLOOKUP(AC$6&\"-\"&$M17&\"_old\",Ammortamento_Finanziario!$H:$L,5,FALSE),VLOOKUP($M17,TT_Tabelle_Riferimento!$H$31:$I$50,2,FALSE))","v":20},{"$f":"+IFERROR(VLOOKUP(AD$6&\"-\"&$M17&\"_old\",Ammortamento_Finanziario!$H:$L,5,FALSE),VLOOKUP($M17,TT_Tabelle_Riferimento!$H$31:$I$50,2,FALSE))","v":20},{"$f":"+IFERROR(VLOOKUP(AE$6&\"-\"&$M17&\"_old\",Ammortamento_Finanziario!$H:$L,5,FALSE),VLOOKUP($M17,TT_Tabelle_Riferimento!$H$31:$I$50,2,FALSE))","v":20},{"$f":"+IFERROR(VLOOKUP(AF$6&\"-\"&$M17&\"_old\",Ammortamento_Finanziario!$H:$L,5,FALSE),VLOOKUP($M17,TT_Tabelle_Riferimento!$H$31:$I$50,2,FALSE))","v":20},{"$f":"+IFERROR(VLOOKUP(AG$6&\"-\"&$M17&\"_old\",Ammortamento_Finanziario!$H:$L,5,FALSE),VLOOKUP($M17,TT_Tabelle_Riferimento!$H$31:$I$50,2,FALSE))","v":20},{"$f":"+IFERROR(VLOOKUP(AH$6&\"-\"&$M17&\"_old\",Ammortamento_Finanziario!$H:$L,5,FALSE),VLOOKUP($M17,TT_Tabelle_Riferimento!$H$31:$I$50,2,FALSE))","v":20},{"$f":"+IFERROR(VLOOKUP(AI$6&\"-\"&$M17&\"_old\",Ammortamento_Finanziario!$H:$L,5,FALSE),VLOOKUP($M17,TT_Tabelle_Riferimento!$H$31:$I$50,2,FALSE))","v":20},{"$f":"+IFERROR(VLOOKUP(AJ$6&\"-\"&$M17&\"_old\",Ammortamento_Finanziario!$H:$L,5,FALSE),VLOOKUP($M17,TT_Tabelle_Riferimento!$H$31:$I$50,2,FALSE))","v":20},{"$f":"+IFERROR(VLOOKUP(AK$6&\"-\"&$M17&\"_old\",Ammortamento_Finanziario!$H:$L,5,FALSE),VLOOKUP($M17,TT_Tabelle_Riferimento!$H$31:$I$50,2,FALSE))","v":20},{"$f":"+IFERROR(VLOOKUP(AL$6&\"-\"&$M17&\"_old\",Ammortamento_Finanziario!$H:$L,5,FALSE),VLOOKUP($M17,TT_Tabelle_Riferimento!$H$31:$I$50,2,FALSE))","v":20},{"$f":"+IFERROR(VLOOKUP(AM$6&\"-\"&$M17&\"_old\",Ammortamento_Finanziario!$H:$L,5,FALSE),VLOOKUP($M17,TT_Tabelle_Riferimento!$H$31:$I$50,2,FALSE))","v":20},{"$f":"+IFERROR(VLOOKUP(AN$6&\"-\"&$M17&\"_old\",Ammortamento_Finanziario!$H:$L,5,FALSE),VLOOKUP($M17,TT_Tabelle_Riferimento!$H$31:$I$50,2,FALSE))","v":20},{"$f":"+IFERROR(VLOOKUP(AO$6&\"-\"&$M17&\"_old\",Ammortamento_Finanziario!$H:$L,5,FALSE),VLOOKUP($M17,TT_Tabelle_Riferimento!$H$31:$I$50,2,FALSE))","v":20},{"$f":"+IFERROR(VLOOKUP(AP$6&\"-\"&$M17&\"_old\",Ammortamento_Finanziario!$H:$L,5,FALSE),VLOOKUP($M17,TT_Tabelle_Riferimento!$H$31:$I$50,2,FALSE))","v":20},{"$f":"+IFERROR(VLOOKUP(AQ$6&\"-\"&$M17&\"_old\",Ammortamento_Finanziario!$H:$L,5,FALSE),VLOOKUP($M17,TT_Tabelle_Riferimento!$H$31:$I$50,2,FALSE))","v":20},{"$f":"+IFERROR(VLOOKUP(AR$6&\"-\"&$M17&\"_old\",Ammortamento_Finanziario!$H:$L,5,FALSE),VLOOKUP($M17,TT_Tabelle_Riferimento!$H$31:$I$50,2,FALSE))","v":20},{"$f":"+IFERROR(VLOOKUP(AS$6&\"-\"&$M17&\"_old\",Ammortamento_Finanziario!$H:$L,5,FALSE),VLOOKUP($M17,TT_Tabelle_Riferimento!$H$31:$I$50,2,FALSE))","v":20},{"$f":"+IFERROR(VLOOKUP(AT$6&\"-\"&$M17&\"_old\",Ammortamento_Finanziario!$H:$L,5,FALSE),VLOOKUP($M17,TT_Tabelle_Riferimento!$H$31:$I$50,2,FALSE))","v":20},{"$f":"+IFERROR(VLOOKUP(AU$6&\"-\"&$M17&\"_old\",Ammortamento_Finanziario!$H:$L,5,FALSE),VLOOKUP($M17,TT_Tabelle_Riferimento!$H$31:$I$50,2,FALSE))","v":20},{"$f":"+IFERROR(VLOOKUP(AV$6&\"-\"&$M17&\"_old\",Ammortamento_Finanziario!$H:$L,5,FALSE),VLOOKUP($M17,TT_Tabelle_Riferimento!$H$31:$I$50,2,FALSE))","v":20},{"$f":"+IFERROR(VLOOKUP(AW$6&\"-\"&$M17&\"_old\",Ammortamento_Finanziario!$H:$L,5,FALSE),VLOOKUP($M17,TT_Tabelle_Riferimento!$H$31:$I$50,2,FALSE))","v":20},{"$f":"+IFERROR(VLOOKUP(AX$6&\"-\"&$M17&\"_old\",Ammortamento_Finanziario!$H:$L,5,FALSE),VLOOKUP($M17,TT_Tabelle_Riferimento!$H$31:$I$50,2,FALSE))","v":20},{"$f":"+IFERROR(VLOOKUP(AY$6&\"-\"&$M17&\"_old\",Ammortamento_Finanziario!$H:$L,5,FALSE),VLOOKUP($M17,TT_Tabelle_Riferimento!$H$31:$I$50,2,FALSE))","v":20},{"$f":"+IFERROR(VLOOKUP(AZ$6&\"-\"&$M17&\"_old\",Ammortamento_Finanziario!$H:$L,5,FALSE),VLOOKUP($M17,TT_Tabelle_Riferimento!$H$31:$I$50,2,FALSE))","v":20},{"$f":"+IFERROR(VLOOKUP(BA$6&\"-\"&$M17&\"_old\",Ammortamento_Finanziario!$H:$L,5,FALSE),VLOOKUP($M17,TT_Tabelle_Riferimento!$H$31:$I$50,2,FALSE))","v":20},{"$f":"+IFERROR(VLOOKUP(BB$6&\"-\"&$M17&\"_old\",Ammortamento_Finanziario!$H:$L,5,FALSE),VLOOKUP($M17,TT_Tabelle_Riferimento!$H$31:$I$50,2,FALSE))","v":20},{"$f":"+IFERROR(VLOOKUP(BC$6&\"-\"&$M17&\"_old\",Ammortamento_Finanziario!$H:$L,5,FALSE),VLOOKUP($M17,TT_Tabelle_Riferimento!$H$31:$I$50,2,FALSE))","v":20},{"$f":"+IFERROR(VLOOKUP(BD$6&\"-\"&$M17&\"_old\",Ammortamento_Finanziario!$H:$L,5,FALSE),VLOOKUP($M17,TT_Tabelle_Riferimento!$H$31:$I$50,2,FALSE))","v":20},{"$f":"+IFERROR(VLOOKUP(BE$6&\"-\"&$M17&\"_old\",Ammortamento_Finanziario!$H:$L,5,FALSE),VLOOKUP($M17,TT_Tabelle_Riferimento!$H$31:$I$50,2,FALSE))","v":20},{"$f":"+IFERROR(VLOOKUP(BF$6&\"-\"&$M17&\"_old\",Ammortamento_Finanziario!$H:$L,5,FALSE),VLOOKUP($M17,TT_Tabelle_Riferimento!$H$31:$I$50,2,FALSE))","v":20},{"$f":"+IFERROR(VLOOKUP(BG$6&\"-\"&$M17&\"_old\",Ammortamento_Finanziario!$H:$L,5,FALSE),VLOOKUP($M17,TT_Tabelle_Riferimento!$H$31:$I$50,2,FALSE))","v":20},{"$f":"+IFERROR(VLOOKUP(BH$6&\"-\"&$M17&\"_old\",Ammortamento_Finanziario!$H:$L,5,FALSE),VLOOKUP($M17,TT_Tabelle_Riferimento!$H$31:$I$50,2,FALSE))","v":20},{"$f":"+IFERROR(VLOOKUP(BI$6&\"-\"&$M17&\"_old\",Ammortamento_Finanziario!$H:$L,5,FALSE),VLOOKUP($M17,TT_Tabelle_Riferimento!$H$31:$I$50,2,FALSE))","v":20},{"$f":"+IFERROR(VLOOKUP(BJ$6&\"-\"&$M17&\"_old\",Ammortamento_Finanziario!$H:$L,5,FALSE),VLOOKUP($M17,TT_Tabelle_Riferimento!$H$31:$I$50,2,FALSE))","v":20},{"$f":"+IFERROR(VLOOKUP(BK$6&\"-\"&$M17&\"_old\",Ammortamento_Finanziario!$H:$L,5,FALSE),VLOOKUP($M17,TT_Tabelle_Riferimento!$H$31:$I$50,2,FALSE))","v":20},{"$f":"+IFERROR(VLOOKUP(BL$6&\"-\"&$M17&\"_old\",Ammortamento_Finanziario!$H:$L,5,FALSE),VLOOKUP($M17,TT_Tabelle_Riferimento!$H$31:$I$50,2,FALSE))","v":20},{"$f":"+IFERROR(VLOOKUP(BM$6&\"-\"&$M17&\"_old\",Ammortamento_Finanziario!$H:$L,5,FALSE),VLOOKUP($M17,TT_Tabelle_Riferimento!$H$31:$I$50,2,FALSE))","v":20},{"$f":"+IFERROR(VLOOKUP(BN$6&\"-\"&$M17&\"_old\",Ammortamento_Finanziario!$H:$L,5,FALSE),VLOOKUP($M17,TT_Tabelle_Riferimento!$H$31:$I$50,2,FALSE))","v":20},{"$f":"+IFERROR(VLOOKUP(BO$6&\"-\"&$M17&\"_old\",Ammortamento_Finanziario!$H:$L,5,FALSE),VLOOKUP($M17,TT_Tabelle_Riferimento!$H$31:$I$50,2,FALSE))","v":20},{"$f":"+IFERROR(VLOOKUP(BP$6&\"-\"&$M17&\"_old\",Ammortamento_Finanziario!$H:$L,5,FALSE),VLOOKUP($M17,TT_Tabelle_Riferimento!$H$31:$I$50,2,FALSE))","v":20},{"$f":"+IFERROR(VLOOKUP(BQ$6&\"-\"&$M17&\"_old\",Ammortamento_Finanziario!$H:$L,5,FALSE),VLOOKUP($M17,TT_Tabelle_Riferimento!$H$31:$I$50,2,FALSE))","v":20},{"$f":"+IFERROR(VLOOKUP(BR$6&\"-\"&$M17&\"_old\",Ammortamento_Finanziario!$H:$L,5,FALSE),VLOOKUP($M17,TT_Tabelle_Riferimento!$H$31:$I$50,2,FALSE))","v":20},{"$f":"+IFERROR(VLOOKUP(BS$6&\"-\"&$M17&\"_old\",Ammortamento_Finanziario!$H:$L,5,FALSE),VLOOKUP($M17,TT_Tabelle_Riferimento!$H$31:$I$50,2,FALSE))","v":20},{"$f":"+IFERROR(VLOOKUP(BT$6&\"-\"&$M17&\"_old\",Ammortamento_Finanziario!$H:$L,5,FALSE),VLOOKUP($M17,TT_Tabelle_Riferimento!$H$31:$I$50,2,FALSE))","v":20},{"$f":"+IFERROR(VLOOKUP(BU$6&\"-\"&$M17&\"_old\",Ammortamento_Finanziario!$H:$L,5,FALSE),VLOOKUP($M17,TT_Tabelle_Riferimento!$H$31:$I$50,2,FALSE))","v":20},{"$f":"+IFERROR(VLOOKUP(BV$6&\"-\"&$M17&\"_old\",Ammortamento_Finanziario!$H:$L,5,FALSE),VLOOKUP($M17,TT_Tabelle_Riferimento!$H$31:$I$50,2,FALSE))","v":20},{"$f":"+IFERROR(VLOOKUP(BW$6&\"-\"&$M17&\"_old\",Ammortamento_Finanziario!$H:$L,5,FALSE),VLOOKUP($M17,TT_Tabelle_Riferimento!$H$31:$I$50,2,FALSE))","v":20},{"$f":"+IFERROR(VLOOKUP(BX$6&\"-\"&$M17&\"_old\",Ammortamento_Finanziario!$H:$L,5,FALSE),VLOOKUP($M17,TT_Tabelle_Riferimento!$H$31:$I$50,2,FALSE))","v":20},{"$f":"+IFERROR(VLOOKUP(BY$6&\"-\"&$M17&\"_old\",Ammortamento_Finanziario!$H:$L,5,FALSE),VLOOKUP($M17,TT_Tabelle_Riferimento!$H$31:$I$50,2,FALSE))","v":20},{"$f":"+IFERROR(VLOOKUP(BZ$6&\"-\"&$M17&\"_old\",Ammortamento_Finanziario!$H:$L,5,FALSE),VLOOKUP($M17,TT_Tabelle_Riferimento!$H$31:$I$50,2,FALSE))","v":20},{"$f":"+IFERROR(VLOOKUP(CA$6&\"-\"&$M17&\"_old\",Ammortamento_Finanziario!$H:$L,5,FALSE),VLOOKUP($M17,TT_Tabelle_Riferimento!$H$31:$I$50,2,FALSE))","v":20},{"$f":"+IFERROR(VLOOKUP(CB$6&\"-\"&$M17&\"_old\",Ammortamento_Finanziario!$H:$L,5,FALSE),VLOOKUP($M17,TT_Tabelle_Riferimento!$H$31:$I$50,2,FALSE))","v":20},{"$f":"+IFERROR(VLOOKUP(CC$6&\"-\"&$M17&\"_old\",Ammortamento_Finanziario!$H:$L,5,FALSE),VLOOKUP($M17,TT_Tabelle_Riferimento!$H$31:$I$50,2,FALSE))","v":20},{"$f":"+IFERROR(VLOOKUP(CD$6&\"-\"&$M17&\"_old\",Ammortamento_Finanziario!$H:$L,5,FALSE),VLOOKUP($M17,TT_Tabelle_Riferimento!$H$31:$I$50,2,FALSE))","v":20},{"$f":"+IFERROR(VLOOKUP(CE$6&\"-\"&$M17&\"_old\",Ammortamento_Finanziario!$H:$L,5,FALSE),VLOOKUP($M17,TT_Tabelle_Riferimento!$H$31:$I$50,2,FALSE))","v":20},{"$f":"+IFERROR(VLOOKUP(CF$6&\"-\"&$M17&\"_old\",Ammortamento_Finanziario!$H:$L,5,FALSE),VLOOKUP($M17,TT_Tabelle_Riferimento!$H$31:$I$50,2,FALSE))","v":20},{"$f":"+IFERROR(VLOOKUP(CG$6&\"-\"&$M17&\"_old\",Ammortamento_Finanziario!$H:$L,5,FALSE),VLOOKUP($M17,TT_Tabelle_Riferimento!$H$31:$I$50,2,FALSE))","v":20},{"$f":"+IFERROR(VLOOKUP(CH$6&\"-\"&$M17&\"_old\",Ammortamento_Finanziario!$H:$L,5,FALSE),VLOOKUP($M17,TT_Tabelle_Riferimento!$H$31:$I$50,2,FALSE))","v":20},{"$f":"+IFERROR(VLOOKUP(CI$6&\"-\"&$M17&\"_old\",Ammortamento_Finanziario!$H:$L,5,FALSE),VLOOKUP($M17,TT_Tabelle_Riferimento!$H$31:$I$50,2,FALSE))","v":20},{"$f":"+IFERROR(VLOOKUP(CJ$6&\"-\"&$M17&\"_old\",Ammortamento_Finanziario!$H:$L,5,FALSE),VLOOKUP($M17,TT_Tabelle_Riferimento!$H$31:$I$50,2,FALSE))","v":20},{"$f":"+IFERROR(VLOOKUP(CK$6&\"-\"&$M17&\"_old\",Ammortamento_Finanziario!$H:$L,5,FALSE),VLOOKUP($M17,TT_Tabelle_Riferimento!$H$31:$I$50,2,FALSE))","v":20},{"$f":"+IFERROR(VLOOKUP(CL$6&\"-\"&$M17&\"_old\",Ammortamento_Finanziario!$H:$L,5,FALSE),VLOOKUP($M17,TT_Tabelle_Riferimento!$H$31:$I$50,2,FALSE))","v":20},{"$f":"+IFERROR(VLOOKUP(CM$6&\"-\"&$M17&\"_old\",Ammortamento_Finanziario!$H:$L,5,FALSE),VLOOKUP($M17,TT_Tabelle_Riferimento!$H$31:$I$50,2,FALSE))","v":20},{"$f":"+IFERROR(VLOOKUP(CN$6&\"-\"&$M17&\"_old\",Ammortamento_Finanziario!$H:$L,5,FALSE),VLOOKUP($M17,TT_Tabelle_Riferimento!$H$31:$I$50,2,FALSE))","v":20},{"$f":"+IFERROR(VLOOKUP(CO$6&\"-\"&$M17&\"_old\",Ammortamento_Finanziario!$H:$L,5,FALSE),VLOOKUP($M17,TT_Tabelle_Riferimento!$H$31:$I$50,2,FALSE))","v":20},{"$f":"+IFERROR(VLOOKUP(CP$6&\"-\"&$M17&\"_old\",Ammortamento_Finanziario!$H:$L,5,FALSE),VLOOKUP($M17,TT_Tabelle_Riferimento!$H$31:$I$50,2,FALSE))","v":20},{"$f":"+IFERROR(VLOOKUP(CQ$6&\"-\"&$M17&\"_old\",Ammortamento_Finanziario!$H:$L,5,FALSE),VLOOKUP($M17,TT_Tabelle_Riferimento!$H$31:$I$50,2,FALSE))","v":20},{"$f":"+IFERROR(VLOOKUP(CR$6&\"-\"&$M17&\"_old\",Ammortamento_Finanziario!$H:$L,5,FALSE),VLOOKUP($M17,TT_Tabelle_Riferimento!$H$31:$I$50,2,FALSE))","v":20},{"$f":"+IFERROR(VLOOKUP(CS$6&\"-\"&$M17&\"_old\",Ammortamento_Finanziario!$H:$L,5,FALSE),VLOOKUP($M17,TT_Tabelle_Riferimento!$H$31:$I$50,2,FALSE))","v":20},{"$f":"+IFERROR(VLOOKUP(CT$6&\"-\"&$M17&\"_old\",Ammortamento_Finanziario!$H:$L,5,FALSE),VLOOKUP($M17,TT_Tabelle_Riferimento!$H$31:$I$50,2,FALSE))","v":20},{"$f":"+IFERROR(VLOOKUP(CU$6&\"-\"&$M17&\"_old\",Ammortamento_Finanziario!$H:$L,5,FALSE),VLOOKUP($M17,TT_Tabelle_Riferimento!$H$31:$I$50,2,FALSE))","v":20},{"$f":"+IFERROR(VLOOKUP(CV$6&\"-\"&$M17&\"_old\",Ammortamento_Finanziario!$H:$L,5,FALSE),VLOOKUP($M17,TT_Tabelle_Riferimento!$H$31:$I$50,2,FALSE))","v":20},{"$f":"+IFERROR(VLOOKUP(CW$6&\"-\"&$M17&\"_old\",Ammortamento_Finanziario!$H:$L,5,FALSE),VLOOKUP($M17,TT_Tabelle_Riferimento!$H$31:$I$50,2,FALSE))","v":20},{"$f":"+IFERROR(VLOOKUP(CX$6&\"-\"&$M17&\"_old\",Ammortamento_Finanziario!$H:$L,5,FALSE),VLOOKUP($M17,TT_Tabelle_Riferimento!$H$31:$I$50,2,FALSE))","v":20},{"$f":"+IFERROR(VLOOKUP(CY$6&\"-\"&$M17&\"_old\",Ammortamento_Finanziario!$H:$L,5,FALSE),VLOOKUP($M17,TT_Tabelle_Riferimento!$H$31:$I$50,2,FALSE))","v":20},{"$f":"+IFERROR(VLOOKUP(CZ$6&\"-\"&$M17&\"_old\",Ammortamento_Finanziario!$H:$L,5,FALSE),VLOOKUP($M17,TT_Tabelle_Riferimento!$H$31:$I$50,2,FALSE))","v":20},{"$f":"+IFERROR(VLOOKUP(DA$6&\"-\"&$M17&\"_old\",Ammortamento_Finanziario!$H:$L,5,FALSE),VLOOKUP($M17,TT_Tabelle_Riferimento!$H$31:$I$50,2,FALSE))","v":20},{"$f":"+IFERROR(VLOOKUP(DB$6&\"-\"&$M17&\"_old\",Ammortamento_Finanziario!$H:$L,5,FALSE),VLOOKUP($M17,TT_Tabelle_Riferimento!$H$31:$I$50,2,FALSE))","v":20},{"$f":"+IFERROR(VLOOKUP(DC$6&\"-\"&$M17&\"_old\",Ammortamento_Finanziario!$H:$L,5,FALSE),VLOOKUP($M17,TT_Tabelle_Riferimento!$H$31:$I$50,2,FALSE))","v":20},{"$f":"+IFERROR(VLOOKUP(DD$6&\"-\"&$M17&\"_old\",Ammortamento_Finanziario!$H:$L,5,FALSE),VLOOKUP($M17,TT_Tabelle_Riferimento!$H$31:$I$50,2,FALSE))","v":20},{"$f":"+IFERROR(VLOOKUP(DE$6&\"-\"&$M17&\"_old\",Ammortamento_Finanziario!$H:$L,5,FALSE),VLOOKUP($M17,TT_Tabelle_Riferimento!$H$31:$I$50,2,FALSE))","v":20},{"$f":"+IFERROR(VLOOKUP(DF$6&\"-\"&$M17&\"_old\",Ammortamento_Finanziario!$H:$L,5,FALSE),VLOOKUP($M17,TT_Tabelle_Riferimento!$H$31:$I$50,2,FALSE))","v":20},{"$f":"+IFERROR(VLOOKUP(DG$6&\"-\"&$M17&\"_old\",Ammortamento_Finanziario!$H:$L,5,FALSE),VLOOKUP($M17,TT_Tabelle_Riferimento!$H$31:$I$50,2,FALSE))","v":20},{"$f":"+IFERROR(VLOOKUP(DH$6&\"-\"&$M17&\"_old\",Ammortamento_Finanziario!$H:$L,5,FALSE),VLOOKUP($M17,TT_Tabelle_Riferimento!$H$31:$I$50,2,FALSE))","v":20},{"$f":"+IFERROR(VLOOKUP(DI$6&\"-\"&$M17&\"_old\",Ammortamento_Finanziario!$H:$L,5,FALSE),VLOOKUP($M17,TT_Tabelle_Riferimento!$H$31:$I$50,2,FALSE))","v":20},{"$f":"+IFERROR(VLOOKUP(DJ$6&\"-\"&$M17&\"_old\",Ammortamento_Finanziario!$H:$L,5,FALSE),VLOOKUP($M17,TT_Tabelle_Riferimento!$H$31:$I$50,2,FALSE))","v":20},{"$f":"+IFERROR(VLOOKUP(DK$6&\"-\"&$M17&\"_old\",Ammortamento_Finanziario!$H:$L,5,FALSE),VLOOKUP($M17,TT_Tabelle_Riferimento!$H$31:$I$50,2,FALSE))","v":20},{"$f":"+IFERROR(VLOOKUP(DL$6&\"-\"&$M17&\"_old\",Ammortamento_Finanziario!$H:$L,5,FALSE),VLOOKUP($M17,TT_Tabelle_Riferimento!$H$31:$I$50,2,FALSE))","v":20},{"$f":"+IFERROR(VLOOKUP(DM$6&\"-\"&$M17&\"_old\",Ammortamento_Finanziario!$H:$L,5,FALSE),VLOOKUP($M17,TT_Tabelle_Riferimento!$H$31:$I$50,2,FALSE))","v":20},{"$f":"+IFERROR(VLOOKUP(DN$6&\"-\"&$M17&\"_old\",Ammortamento_Finanziario!$H:$L,5,FALSE),VLOOKUP($M17,TT_Tabelle_Riferimento!$H$31:$I$50,2,FALSE))","v":20},{"$f":"+IFERROR(VLOOKUP(DO$6&\"-\"&$M17&\"_old\",Ammortamento_Finanziario!$H:$L,5,FALSE),VLOOKUP($M17,TT_Tabelle_Riferimento!$H$31:$I$50,2,FALSE))","v":20},{"$f":"+IFERROR(VLOOKUP(DP$6&\"-\"&$M17&\"_old\",Ammortamento_Finanziario!$H:$L,5,FALSE),VLOOKUP($M17,TT_Tabelle_Riferimento!$H$31:$I$50,2,FALSE))","v":20},{"$f":"+IFERROR(VLOOKUP(DQ$6&\"-\"&$M17&\"_old\",Ammortamento_Finanziario!$H:$L,5,FALSE),VLOOKUP($M17,TT_Tabelle_Riferimento!$H$31:$I$50,2,FALSE))","v":20},{"$f":"+IFERROR(VLOOKUP(DR$6&\"-\"&$M17&\"_old\",Ammortamento_Finanziario!$H:$L,5,FALSE),VLOOKUP($M17,TT_Tabelle_Riferimento!$H$31:$I$50,2,FALSE))","v":20},{"$f":"+IFERROR(VLOOKUP(DS$6&\"-\"&$M17&\"_old\",Ammortamento_Finanziario!$H:$L,5,FALSE),VLOOKUP($M17,TT_Tabelle_Riferimento!$H$31:$I$50,2,FALSE))","v":20},{"$f":"+IFERROR(VLOOKUP(DT$6&\"-\"&$M17&\"_old\",Ammortamento_Finanziario!$H:$L,5,FALSE),VLOOKUP($M17,TT_Tabelle_Riferimento!$H$31:$I$50,2,FALSE))","v":20},{"$f":"+IFERROR(VLOOKUP(DU$6&\"-\"&$M17&\"_old\",Ammortamento_Finanziario!$H:$L,5,FALSE),VLOOKUP($M17,TT_Tabelle_Riferimento!$H$31:$I$50,2,FALSE))","v":20},{"$f":"+IFERROR(VLOOKUP(DV$6&\"-\"&$M17&\"_old\",Ammortamento_Finanziario!$H:$L,5,FALSE),VLOOKUP($M17,TT_Tabelle_Riferimento!$H$31:$I$50,2,FALSE))","v":20},{"$f":"+IFERROR(VLOOKUP(DW$6&\"-\"&$M17&\"_old\",Ammortamento_Finanziario!$H:$L,5,FALSE),VLOOKUP($M17,TT_Tabelle_Riferimento!$H$31:$I$50,2,FALSE))","v":20},{"$f":"+IFERROR(VLOOKUP(DX$6&\"-\"&$M17&\"_old\",Ammortamento_Finanziario!$H:$L,5,FALSE),VLOOKUP($M17,TT_Tabelle_Riferimento!$H$31:$I$50,2,FALSE))","v":20},{"$f":"+IFERROR(VLOOKUP(DY$6&\"-\"&$M17&\"_old\",Ammortamento_Finanziario!$H:$L,5,FALSE),VLOOKUP($M17,TT_Tabelle_Riferimento!$H$31:$I$50,2,FALSE))","v":20},{"$f":"+IFERROR(VLOOKUP(DZ$6&\"-\"&$M17&\"_old\",Ammortamento_Finanziario!$H:$L,5,FALSE),VLOOKUP($M17,TT_Tabelle_Riferimento!$H$31:$I$50,2,FALSE))","v":20},{"$f":"+IFERROR(VLOOKUP(EA$6&\"-\"&$M17&\"_old\",Ammortamento_Finanziario!$H:$L,5,FALSE),VLOOKUP($M17,TT_Tabelle_Riferimento!$H$31:$I$50,2,FALSE))","v":20},{"$f":"+IFERROR(VLOOKUP(EB$6&\"-\"&$M17&\"_old\",Ammortamento_Finanziario!$H:$L,5,FALSE),VLOOKUP($M17,TT_Tabelle_Riferimento!$H$31:$I$50,2,FALSE))","v":20},{"$f":"+IFERROR(VLOOKUP(EC$6&\"-\"&$M17&\"_old\",Ammortamento_Finanziario!$H:$L,5,FALSE),VLOOKUP($M17,TT_Tabelle_Riferimento!$H$31:$I$50,2,FALSE))","v":20},{"$f":"+IFERROR(VLOOKUP(ED$6&\"-\"&$M17&\"_old\",Ammortamento_Finanziario!$H:$L,5,FALSE),VLOOKUP($M17,TT_Tabelle_Riferimento!$H$31:$I$50,2,FALSE))","v":20},{"$f":"+IFERROR(VLOOKUP(EE$6&\"-\"&$M17&\"_old\",Ammortamento_Finanziario!$H:$L,5,FALSE),VLOOKUP($M17,TT_Tabelle_Riferimento!$H$31:$I$50,2,FALSE))","v":20},{"$f":"+IFERROR(VLOOKUP(EF$6&\"-\"&$M17&\"_old\",Ammortamento_Finanziario!$H:$L,5,FALSE),VLOOKUP($M17,TT_Tabelle_Riferimento!$H$31:$I$50,2,FALSE))","v":20},{"$f":"+IFERROR(VLOOKUP(EG$6&\"-\"&$M17&\"_old\",Ammortamento_Finanziario!$H:$L,5,FALSE),VLOOKUP($M17,TT_Tabelle_Riferimento!$H$31:$I$50,2,FALSE))","v":20},{"$f":"+IFERROR(VLOOKUP(EH$6&\"-\"&$M17&\"_old\",Ammortamento_Finanziario!$H:$L,5,FALSE),VLOOKUP($M17,TT_Tabelle_Riferimento!$H$31:$I$50,2,FALSE))","v":20},{"$f":"+IFERROR(VLOOKUP(EI$6&\"-\"&$M17&\"_old\",Ammortamento_Finanziario!$H:$L,5,FALSE),VLOOKUP($M17,TT_Tabelle_Riferimento!$H$31:$I$50,2,FALSE))","v":20},{"$f":"+IFERROR(VLOOKUP(EJ$6&\"-\"&$M17&\"_old\",Ammortamento_Finanziario!$H:$L,5,FALSE),VLOOKUP($M17,TT_Tabelle_Riferimento!$H$31:$I$50,2,FALSE))","v":20},{"$f":"+IFERROR(VLOOKUP(EK$6&\"-\"&$M17&\"_old\",Ammortamento_Finanziario!$H:$L,5,FALSE),VLOOKUP($M17,TT_Tabelle_Riferimento!$H$31:$I$50,2,FALSE))","v":20},{"$f":"+IFERROR(VLOOKUP(EL$6&\"-\"&$M17&\"_old\",Ammortamento_Finanziario!$H:$L,5,FALSE),VLOOKUP($M17,TT_Tabelle_Riferimento!$H$31:$I$50,2,FALSE))","v":20},{"$f":"+IFERROR(VLOOKUP(EM$6&\"-\"&$M17&\"_old\",Ammortamento_Finanziario!$H:$L,5,FALSE),VLOOKUP($M17,TT_Tabelle_Riferimento!$H$31:$I$50,2,FALSE))","v":20},{"$f":"+IFERROR(VLOOKUP(EN$6&\"-\"&$M17&\"_old\",Ammortamento_Finanziario!$H:$L,5,FALSE),VLOOKUP($M17,TT_Tabelle_Riferimento!$H$31:$I$50,2,FALSE))","v":20},{"$f":"+IFERROR(VLOOKUP(EO$6&\"-\"&$M17&\"_old\",Ammortamento_Finanziario!$H:$L,5,FALSE),VLOOKUP($M17,TT_Tabelle_Riferimento!$H$31:$I$50,2,FALSE))","v":20},{"$f":"+IFERROR(VLOOKUP(EP$6&\"-\"&$M17&\"_old\",Ammortamento_Finanziario!$H:$L,5,FALSE),VLOOKUP($M17,TT_Tabelle_Riferimento!$H$31:$I$50,2,FALSE))","v":20},{"$f":"+IFERROR(VLOOKUP(EQ$6&\"-\"&$M17&\"_old\",Ammortamento_Finanziario!$H:$L,5,FALSE),VLOOKUP($M17,TT_Tabelle_Riferimento!$H$31:$I$50,2,FALSE))","v":20},{"$f":"+IFERROR(VLOOKUP(ER$6&\"-\"&$M17&\"_old\",Ammortamento_Finanziario!$H:$L,5,FALSE),VLOOKUP($M17,TT_Tabelle_Riferimento!$H$31:$I$50,2,FALSE))","v":20},{"$f":"+IFERROR(VLOOKUP(ES$6&\"-\"&$M17&\"_old\",Ammortamento_Finanziario!$H:$L,5,FALSE),VLOOKUP($M17,TT_Tabelle_Riferimento!$H$31:$I$50,2,FALSE))","v":20},{"$f":"+IFERROR(VLOOKUP(ET$6&\"-\"&$M17&\"_old\",Ammortamento_Finanziario!$H:$L,5,FALSE),VLOOKUP($M17,TT_Tabelle_Riferimento!$H$31:$I$50,2,FALSE))","v":20},{"$f":"+IFERROR(VLOOKUP(EU$6&\"-\"&$M17&\"_old\",Ammortamento_Finanziario!$H:$L,5,FALSE),VLOOKUP($M17,TT_Tabelle_Riferimento!$H$31:$I$50,2,FALSE))","v":20},{"$f":"+IFERROR(VLOOKUP(EV$6&\"-\"&$M17&\"_old\",Ammortamento_Finanziario!$H:$L,5,FALSE),VLOOKUP($M17,TT_Tabelle_Riferimento!$H$31:$I$50,2,FALSE))","v":20},{"$f":"+IFERROR(VLOOKUP(EW$6&\"-\"&$M17&\"_old\",Ammortamento_Finanziario!$H:$L,5,FALSE),VLOOKUP($M17,TT_Tabelle_Riferimento!$H$31:$I$50,2,FALSE))","v":20},{"$f":"+IFERROR(VLOOKUP(EX$6&\"-\"&$M17&\"_old\",Ammortamento_Finanziario!$H:$L,5,FALSE),VLOOKUP($M17,TT_Tabelle_Riferimento!$H$31:$I$50,2,FALSE))","v":20},{"$f":"+IFERROR(VLOOKUP(EY$6&\"-\"&$M17&\"_old\",Ammortamento_Finanziario!$H:$L,5,FALSE),VLOOKUP($M17,TT_Tabelle_Riferimento!$H$31:$I$50,2,FALSE))","v":20},{"$f":"+IFERROR(VLOOKUP(EZ$6&\"-\"&$M17&\"_old\",Ammortamento_Finanziario!$H:$L,5,FALSE),VLOOKUP($M17,TT_Tabelle_Riferimento!$H$31:$I$50,2,FALSE))","v":20},{"$f":"+IFERROR(VLOOKUP(FA$6&\"-\"&$M17&\"_old\",Ammortamento_Finanziario!$H:$L,5,FALSE),VLOOKUP($M17,TT_Tabelle_Riferimento!$H$31:$I$50,2,FALSE))","v":20},{"$f":"+IFERROR(VLOOKUP(FB$6&\"-\"&$M17&\"_old\",Ammortamento_Finanziario!$H:$L,5,FALSE),VLOOKUP($M17,TT_Tabelle_Riferimento!$H$31:$I$50,2,FALSE))","v":20},{"$f":"+IFERROR(VLOOKUP(FC$6&\"-\"&$M17&\"_old\",Ammortamento_Finanziario!$H:$L,5,FALSE),VLOOKUP($M17,TT_Tabelle_Riferimento!$H$31:$I$50,2,FALSE))","v":20},{"$f":"+IFERROR(VLOOKUP(FD$6&\"-\"&$M17&\"_old\",Ammortamento_Finanziario!$H:$L,5,FALSE),VLOOKUP($M17,TT_Tabelle_Riferimento!$H$31:$I$50,2,FALSE))","v":20},{"$f":"+IFERROR(VLOOKUP(FE$6&\"-\"&$M17&\"_old\",Ammortamento_Finanziario!$H:$L,5,FALSE),VLOOKUP($M17,TT_Tabelle_Riferimento!$H$31:$I$50,2,FALSE))","v":20},{"$f":"+IFERROR(VLOOKUP(FF$6&\"-\"&$M17&\"_old\",Ammortamento_Finanziario!$H:$L,5,FALSE),VLOOKUP($M17,TT_Tabelle_Riferimento!$H$31:$I$50,2,FALSE))","v":20},{"$f":"+IFERROR(VLOOKUP(FG$6&\"-\"&$M17&\"_old\",Ammortamento_Finanziario!$H:$L,5,FALSE),VLOOKUP($M17,TT_Tabelle_Riferimento!$H$31:$I$50,2,FALSE))","v":20},{"$f":"+IFERROR(VLOOKUP(FH$6&\"-\"&$M17&\"_old\",Ammortamento_Finanziario!$H:$L,5,FALSE),VLOOKUP($M17,TT_Tabelle_Riferimento!$H$31:$I$50,2,FALSE))","v":20},{"$f":"+IFERROR(VLOOKUP(FI$6&\"-\"&$M17&\"_old\",Ammortamento_Finanziario!$H:$L,5,FALSE),VLOOKUP($M17,TT_Tabelle_Riferimento!$H$31:$I$50,2,FALSE))","v":20},{"$f":"+IFERROR(VLOOKUP(FJ$6&\"-\"&$M17&\"_old\",Ammortamento_Finanziario!$H:$L,5,FALSE),VLOOKUP($M17,TT_Tabelle_Riferimento!$H$31:$I$50,2,FALSE))","v":20},{"$f":"+IFERROR(VLOOKUP(FK$6&\"-\"&$M17&\"_old\",Ammortamento_Finanziario!$H:$L,5,FALSE),VLOOKUP($M17,TT_Tabelle_Riferimento!$H$31:$I$50,2,FALSE))","v":20},{"$f":"+IFERROR(VLOOKUP(FL$6&\"-\"&$M17&\"_old\",Ammortamento_Finanziario!$H:$L,5,FALSE),VLOOKUP($M17,TT_Tabelle_Riferimento!$H$31:$I$50,2,FALSE))","v":20},{"$f":"+IFERROR(VLOOKUP(FM$6&\"-\"&$M17&\"_old\",Ammortamento_Finanziario!$H:$L,5,FALSE),VLOOKUP($M17,TT_Tabelle_Riferimento!$H$31:$I$50,2,FALSE))","v":20},{"$f":"+IFERROR(VLOOKUP(FN$6&\"-\"&$M17&\"_old\",Ammortamento_Finanziario!$H:$L,5,FALSE),VLOOKUP($M17,TT_Tabelle_Riferimento!$H$31:$I$50,2,FALSE))","v":20},{"$f":"+IFERROR(VLOOKUP(FO$6&\"-\"&$M17&\"_old\",Ammortamento_Finanziario!$H:$L,5,FALSE),VLOOKUP($M17,TT_Tabelle_Riferimento!$H$31:$I$50,2,FALSE))","v":20},{"$f":"+IFERROR(VLOOKUP(FP$6&\"-\"&$M17&\"_old\",Ammortamento_Finanziario!$H:$L,5,FALSE),VLOOKUP($M17,TT_Tabelle_Riferimento!$H$31:$I$50,2,FALSE))","v":20},{"$f":"+IFERROR(VLOOKUP(FQ$6&\"-\"&$M17&\"_old\",Ammortamento_Finanziario!$H:$L,5,FALSE),VLOOKUP($M17,TT_Tabelle_Riferimento!$H$31:$I$50,2,FALSE))","v":20},{"$f":"+IFERROR(VLOOKUP(FR$6&\"-\"&$M17&\"_old\",Ammortamento_Finanziario!$H:$L,5,FALSE),VLOOKUP($M17,TT_Tabelle_Riferimento!$H$31:$I$50,2,FALSE))","v":20},{"$f":"+IFERROR(VLOOKUP(FS$6&\"-\"&$M17&\"_old\",Ammortamento_Finanziario!$H:$L,5,FALSE),VLOOKUP($M17,TT_Tabelle_Riferimento!$H$31:$I$50,2,FALSE))","v":20},{"$f":"+IFERROR(VLOOKUP(FT$6&\"-\"&$M17&\"_old\",Ammortamento_Finanziario!$H:$L,5,FALSE),VLOOKUP($M17,TT_Tabelle_Riferimento!$H$31:$I$50,2,FALSE))","v":20},{"$f":"+IFERROR(VLOOKUP(FU$6&\"-\"&$M17&\"_old\",Ammortamento_Finanziario!$H:$L,5,FALSE),VLOOKUP($M17,TT_Tabelle_Riferimento!$H$31:$I$50,2,FALSE))","v":20},{"$f":"+IFERROR(VLOOKUP(FV$6&\"-\"&$M17&\"_old\",Ammortamento_Finanziario!$H:$L,5,FALSE),VLOOKUP($M17,TT_Tabelle_Riferimento!$H$31:$I$50,2,FALSE))","v":20},{"$f":"+IFERROR(VLOOKUP(FW$6&\"-\"&$M17&\"_old\",Ammortamento_Finanziario!$H:$L,5,FALSE),VLOOKUP($M17,TT_Tabelle_Riferimento!$H$31:$I$50,2,FALSE))","v":20},{"$f":"+IFERROR(VLOOKUP(FX$6&\"-\"&$M17&\"_old\",Ammortamento_Finanziario!$H:$L,5,FALSE),VLOOKUP($M17,TT_Tabelle_Riferimento!$H$31:$I$50,2,FALSE))","v":20},{"$f":"+IFERROR(VLOOKUP(FY$6&\"-\"&$M17&\"_old\",Ammortamento_Finanziario!$H:$L,5,FALSE),VLOOKUP($M17,TT_Tabelle_Riferimento!$H$31:$I$50,2,FALSE))","v":20},{"$f":"+IFERROR(VLOOKUP(FZ$6&\"-\"&$M17&\"_old\",Ammortamento_Finanziario!$H:$L,5,FALSE),VLOOKUP($M17,TT_Tabelle_Riferimento!$H$31:$I$50,2,FALSE))","v":20},{"$f":"+IFERROR(VLOOKUP(GA$6&\"-\"&$M17&\"_old\",Ammortamento_Finanziario!$H:$L,5,FALSE),VLOOKUP($M17,TT_Tabelle_Riferimento!$H$31:$I$50,2,FALSE))","v":20},{"$f":"+IFERROR(VLOOKUP(GB$6&\"-\"&$M17&\"_old\",Ammortamento_Finanziario!$H:$L,5,FALSE),VLOOKUP($M17,TT_Tabelle_Riferimento!$H$31:$I$50,2,FALSE))","v":20},{"$f":"+IFERROR(VLOOKUP(GC$6&\"-\"&$M17&\"_old\",Ammortamento_Finanziario!$H:$L,5,FALSE),VLOOKUP($M17,TT_Tabelle_Riferimento!$H$31:$I$50,2,FALSE))","v":20},{"$f":"+IFERROR(VLOOKUP(GD$6&\"-\"&$M17&\"_old\",Ammortamento_Finanziario!$H:$L,5,FALSE),VLOOKUP($M17,TT_Tabelle_Riferimento!$H$31:$I$50,2,FALSE))","v":20},{"$f":"+IFERROR(VLOOKUP(GE$6&\"-\"&$M17&\"_old\",Ammortamento_Finanziario!$H:$L,5,FALSE),VLOOKUP($M17,TT_Tabelle_Riferimento!$H$31:$I$50,2,FALSE))","v":20},{"$f":"+IFERROR(VLOOKUP(GF$6&\"-\"&$M17&\"_old\",Ammortamento_Finanziario!$H:$L,5,FALSE),VLOOKUP($M17,TT_Tabelle_Riferimento!$H$31:$I$50,2,FALSE))","v":20},{"$f":"+IFERROR(VLOOKUP(GG$6&\"-\"&$M17&\"_old\",Ammortamento_Finanziario!$H:$L,5,FALSE),VLOOKUP($M17,TT_Tabelle_Riferimento!$H$31:$I$50,2,FALSE))","v":20},{"$f":"+IFERROR(VLOOKUP(GH$6&\"-\"&$M17&\"_old\",Ammortamento_Finanziario!$H:$L,5,FALSE),VLOOKUP($M17,TT_Tabelle_Riferimento!$H$31:$I$50,2,FALSE))","v":20},{"$f":"+IFERROR(VLOOKUP(GI$6&\"-\"&$M17&\"_old\",Ammortamento_Finanziario!$H:$L,5,FALSE),VLOOKUP($M17,TT_Tabelle_Riferimento!$H$31:$I$50,2,FALSE))","v":20},{"$f":"+IFERROR(VLOOKUP(GJ$6&\"-\"&$M17&\"_old\",Ammortamento_Finanziario!$H:$L,5,FALSE),VLOOKUP($M17,TT_Tabelle_Riferimento!$H$31:$I$50,2,FALSE))","v":20},{"$f":"+IFERROR(VLOOKUP(GK$6&\"-\"&$M17&\"_old\",Ammortamento_Finanziario!$H:$L,5,FALSE),VLOOKUP($M17,TT_Tabelle_Riferimento!$H$31:$I$50,2,FALSE))","v":20},{"$f":"+IFERROR(VLOOKUP(GL$6&\"-\"&$M17&\"_old\",Ammortamento_Finanziario!$H:$L,5,FALSE),VLOOKUP($M17,TT_Tabelle_Riferimento!$H$31:$I$50,2,FALSE))","v":20},{"$f":"+IFERROR(VLOOKUP(GM$6&\"-\"&$M17&\"_old\",Ammortamento_Finanziario!$H:$L,5,FALSE),VLOOKUP($M17,TT_Tabelle_Riferimento!$H$31:$I$50,2,FALSE))","v":20},{"$f":"+IFERROR(VLOOKUP(GN$6&\"-\"&$M17&\"_old\",Ammortamento_Finanziario!$H:$L,5,FALSE),VLOOKUP($M17,TT_Tabelle_Riferimento!$H$31:$I$50,2,FALSE))","v":20},{"$f":"+IFERROR(VLOOKUP(GO$6&\"-\"&$M17&\"_old\",Ammortamento_Finanziario!$H:$L,5,FALSE),VLOOKUP($M17,TT_Tabelle_Riferimento!$H$31:$I$50,2,FALSE))","v":20},{"$f":"+IFERROR(VLOOKUP(GP$6&\"-\"&$M17&\"_old\",Ammortamento_Finanziario!$H:$L,5,FALSE),VLOOKUP($M17,TT_Tabelle_Riferimento!$H$31:$I$50,2,FALSE))","v":20},{"$f":"+IFERROR(VLOOKUP(GQ$6&\"-\"&$M17&\"_old\",Ammortamento_Finanziario!$H:$L,5,FALSE),VLOOKUP($M17,TT_Tabelle_Riferimento!$H$31:$I$50,2,FALSE))","v":20},{"$f":"+IFERROR(VLOOKUP(GR$6&\"-\"&$M17&\"_old\",Ammortamento_Finanziario!$H:$L,5,FALSE),VLOOKUP($M17,TT_Tabelle_Riferimento!$H$31:$I$50,2,FALSE))","v":20},{"$f":"+IFERROR(VLOOKUP(GS$6&\"-\"&$M17&\"_old\",Ammortamento_Finanziario!$H:$L,5,FALSE),VLOOKUP($M17,TT_Tabelle_Riferimento!$H$31:$I$50,2,FALSE))","v":20},{"$f":"+IFERROR(VLOOKUP(GT$6&\"-\"&$M17&\"_old\",Ammortamento_Finanziario!$H:$L,5,FALSE),VLOOKUP($M17,TT_Tabelle_Riferimento!$H$31:$I$50,2,FALSE))","v":20},{"$f":"+IFERROR(VLOOKUP(GU$6&\"-\"&$M17&\"_old\",Ammortamento_Finanziario!$H:$L,5,FALSE),VLOOKUP($M17,TT_Tabelle_Riferimento!$H$31:$I$50,2,FALSE))","v":20},{"$f":"+IFERROR(VLOOKUP(GV$6&\"-\"&$M17&\"_old\",Ammortamento_Finanziario!$H:$L,5,FALSE),VLOOKUP($M17,TT_Tabelle_Riferimento!$H$31:$I$50,2,FALSE))","v":20},{"$f":"+IFERROR(VLOOKUP(GW$6&\"-\"&$M17&\"_old\",Ammortamento_Finanziario!$H:$L,5,FALSE),VLOOKUP($M17,TT_Tabelle_Riferimento!$H$31:$I$50,2,FALSE))","v":20},{"$f":"+IFERROR(VLOOKUP(GX$6&\"-\"&$M17&\"_old\",Ammortamento_Finanziario!$H:$L,5,FALSE),VLOOKUP($M17,TT_Tabelle_Riferimento!$H$31:$I$50,2,FALSE))","v":20},{"$f":"+IFERROR(VLOOKUP(GY$6&\"-\"&$M17&\"_old\",Ammortamento_Finanziario!$H:$L,5,FALSE),VLOOKUP($M17,TT_Tabelle_Riferimento!$H$31:$I$50,2,FALSE))","v":20},{"$f":"+IFERROR(VLOOKUP(GZ$6&\"-\"&$M17&\"_old\",Ammortamento_Finanziario!$H:$L,5,FALSE),VLOOKUP($M17,TT_Tabelle_Riferimento!$H$31:$I$50,2,FALSE))","v":20},{"$f":"+IFERROR(VLOOKUP(HA$6&\"-\"&$M17&\"_old\",Ammortamento_Finanziario!$H:$L,5,FALSE),VLOOKUP($M17,TT_Tabelle_Riferimento!$H$31:$I$50,2,FALSE))","v":20},{"$f":"+IFERROR(VLOOKUP(HB$6&\"-\"&$M17&\"_old\",Ammortamento_Finanziario!$H:$L,5,FALSE),VLOOKUP($M17,TT_Tabelle_Riferimento!$H$31:$I$50,2,FALSE))","v":20},{"$f":"+IFERROR(VLOOKUP(HC$6&\"-\"&$M17&\"_old\",Ammortamento_Finanziario!$H:$L,5,FALSE),VLOOKUP($M17,TT_Tabelle_Riferimento!$H$31:$I$50,2,FALSE))","v":20},{"$f":"+IFERROR(VLOOKUP(HD$6&\"-\"&$M17&\"_old\",Ammortamento_Finanziario!$H:$L,5,FALSE),VLOOKUP($M17,TT_Tabelle_Riferimento!$H$31:$I$50,2,FALSE))","v":20},{"$f":"+IFERROR(VLOOKUP(HE$6&\"-\"&$M17&\"_old\",Ammortamento_Finanziario!$H:$L,5,FALSE),VLOOKUP($M17,TT_Tabelle_Riferimento!$H$31:$I$50,2,FALSE))","v":20},{"$f":"+IFERROR(VLOOKUP(HF$6&\"-\"&$M17&\"_old\",Ammortamento_Finanziario!$H:$L,5,FALSE),VLOOKUP($M17,TT_Tabelle_Riferimento!$H$31:$I$50,2,FALSE))","v":20},{"$f":"+IFERROR(VLOOKUP(HG$6&\"-\"&$M17&\"_old\",Ammortamento_Finanziario!$H:$L,5,FALSE),VLOOKUP($M17,TT_Tabelle_Riferimento!$H$31:$I$50,2,FALSE))","v":20},{"$f":"+IFERROR(VLOOKUP(HH$6&\"-\"&$M17&\"_old\",Ammortamento_Finanziario!$H:$L,5,FALSE),VLOOKUP($M17,TT_Tabelle_Riferimento!$H$31:$I$50,2,FALSE))","v":20},{"$f":"+IFERROR(VLOOKUP(HI$6&\"-\"&$M17&\"_old\",Ammortamento_Finanziario!$H:$L,5,FALSE),VLOOKUP($M17,TT_Tabelle_Riferimento!$H$31:$I$50,2,FALSE))","v":20},{"$f":"+IFERROR(VLOOKUP(HJ$6&\"-\"&$M17&\"_old\",Ammortamento_Finanziario!$H:$L,5,FALSE),VLOOKUP($M17,TT_Tabelle_Riferimento!$H$31:$I$50,2,FALSE))","v":20},{"$f":"+IFERROR(VLOOKUP(HK$6&\"-\"&$M17&\"_old\",Ammortamento_Finanziario!$H:$L,5,FALSE),VLOOKUP($M17,TT_Tabelle_Riferimento!$H$31:$I$50,2,FALSE))","v":20},{"$f":"+IFERROR(VLOOKUP(HL$6&\"-\"&$M17&\"_old\",Ammortamento_Finanziario!$H:$L,5,FALSE),VLOOKUP($M17,TT_Tabelle_Riferimento!$H$31:$I$50,2,FALSE))","v":20},{"$f":"+IFERROR(VLOOKUP(HM$6&\"-\"&$M17&\"_old\",Ammortamento_Finanziario!$H:$L,5,FALSE),VLOOKUP($M17,TT_Tabelle_Riferimento!$H$31:$I$50,2,FALSE))","v":20},{"$f":"+IFERROR(VLOOKUP(HN$6&\"-\"&$M17&\"_old\",Ammortamento_Finanziario!$H:$L,5,FALSE),VLOOKUP($M17,TT_Tabelle_Riferimento!$H$31:$I$50,2,FALSE))","v":20},{"$f":"+IFERROR(VLOOKUP(HO$6&\"-\"&$M17&\"_old\",Ammortamento_Finanziario!$H:$L,5,FALSE),VLOOKUP($M17,TT_Tabelle_Riferimento!$H$31:$I$50,2,FALSE))","v":20},{"$f":"+IFERROR(VLOOKUP(HP$6&\"-\"&$M17&\"_old\",Ammortamento_Finanziario!$H:$L,5,FALSE),VLOOKUP($M17,TT_Tabelle_Riferimento!$H$31:$I$50,2,FALSE))","v":20},{"$f":"+IFERROR(VLOOKUP(HQ$6&\"-\"&$M17&\"_old\",Ammortamento_Finanziario!$H:$L,5,FALSE),VLOOKUP($M17,TT_Tabelle_Riferimento!$H$31:$I$50,2,FALSE))","v":20},{"$f":"+IFERROR(VLOOKUP(HR$6&\"-\"&$M17&\"_old\",Ammortamento_Finanziario!$H:$L,5,FALSE),VLOOKUP($M17,TT_Tabelle_Riferimento!$H$31:$I$50,2,FALSE))","v":20},{"$f":"+IFERROR(VLOOKUP(HS$6&\"-\"&$M17&\"_old\",Ammortamento_Finanziario!$H:$L,5,FALSE),VLOOKUP($M17,TT_Tabelle_Riferimento!$H$31:$I$50,2,FALSE))","v":20},{"$f":"+IFERROR(VLOOKUP(HT$6&\"-\"&$M17&\"_old\",Ammortamento_Finanziario!$H:$L,5,FALSE),VLOOKUP($M17,TT_Tabelle_Riferimento!$H$31:$I$50,2,FALSE))","v":20},{"$f":"+IFERROR(VLOOKUP(HU$6&\"-\"&$M17&\"_old\",Ammortamento_Finanziario!$H:$L,5,FALSE),VLOOKUP($M17,TT_Tabelle_Riferimento!$H$31:$I$50,2,FALSE))","v":20},{"$f":"+IFERROR(VLOOKUP(HV$6&\"-\"&$M17&\"_old\",Ammortamento_Finanziario!$H:$L,5,FALSE),VLOOKUP($M17,TT_Tabelle_Riferimento!$H$31:$I$50,2,FALSE))","v":20},{"$f":"+IFERROR(VLOOKUP(HW$6&\"-\"&$M17&\"_old\",Ammortamento_Finanziario!$H:$L,5,FALSE),VLOOKUP($M17,TT_Tabelle_Riferimento!$H$31:$I$50,2,FALSE))","v":20},{"$f":"+IFERROR(VLOOKUP(HX$6&\"-\"&$M17&\"_old\",Ammortamento_Finanziario!$H:$L,5,FALSE),VLOOKUP($M17,TT_Tabelle_Riferimento!$H$31:$I$50,2,FALSE))","v":20},{"$f":"+IFERROR(VLOOKUP(HY$6&\"-\"&$M17&\"_old\",Ammortamento_Finanziario!$H:$L,5,FALSE),VLOOKUP($M17,TT_Tabelle_Riferimento!$H$31:$I$50,2,FALSE))","v":20},{"$f":"+IFERROR(VLOOKUP(HZ$6&\"-\"&$M17&\"_old\",Ammortamento_Finanziario!$H:$L,5,FALSE),VLOOKUP($M17,TT_Tabelle_Riferimento!$H$31:$I$50,2,FALSE))","v":20},{"$f":"+IFERROR(VLOOKUP(IA$6&\"-\"&$M17&\"_old\",Ammortamento_Finanziario!$H:$L,5,FALSE),VLOOKUP($M17,TT_Tabelle_Riferimento!$H$31:$I$50,2,FALSE))","v":20},{"$f":"+IFERROR(VLOOKUP(IB$6&\"-\"&$M17&\"_old\",Ammortamento_Finanziario!$H:$L,5,FALSE),VLOOKUP($M17,TT_Tabelle_Riferimento!$H$31:$I$50,2,FALSE))","v":20},{"$f":"+IFERROR(VLOOKUP(IC$6&\"-\"&$M17&\"_old\",Ammortamento_Finanziario!$H:$L,5,FALSE),VLOOKUP($M17,TT_Tabelle_Riferimento!$H$31:$I$50,2,FALSE))","v":20},{"$f":"+IFERROR(VLOOKUP(ID$6&\"-\"&$M17&\"_old\",Ammortamento_Finanziario!$H:$L,5,FALSE),VLOOKUP($M17,TT_Tabelle_Riferimento!$H$31:$I$50,2,FALSE))","v":20},{"$f":"+IFERROR(VLOOKUP(IE$6&\"-\"&$M17&\"_old\",Ammortamento_Finanziario!$H:$L,5,FALSE),VLOOKUP($M17,TT_Tabelle_Riferimento!$H$31:$I$50,2,FALSE))","v":20},{"$f":"+IFERROR(VLOOKUP(IF$6&\"-\"&$M17&\"_old\",Ammortamento_Finanziario!$H:$L,5,FALSE),VLOOKUP($M17,TT_Tabelle_Riferimento!$H$31:$I$50,2,FALSE))","v":20},{"$f":"+IFERROR(VLOOKUP(IG$6&\"-\"&$M17&\"_old\",Ammortamento_Finanziario!$H:$L,5,FALSE),VLOOKUP($M17,TT_Tabelle_Riferimento!$H$31:$I$50,2,FALSE))","v":20},{"$f":"+IFERROR(VLOOKUP(IH$6&\"-\"&$M17&\"_old\",Ammortamento_Finanziario!$H:$L,5,FALSE),VLOOKUP($M17,TT_Tabelle_Riferimento!$H$31:$I$50,2,FALSE))","v":20},{"$f":"+IFERROR(VLOOKUP(II$6&\"-\"&$M17&\"_old\",Ammortamento_Finanziario!$H:$L,5,FALSE),VLOOKUP($M17,TT_Tabelle_Riferimento!$H$31:$I$50,2,FALSE))","v":20},{"$f":"+IFERROR(VLOOKUP(IJ$6&\"-\"&$M17&\"_old\",Ammortamento_Finanziario!$H:$L,5,FALSE),VLOOKUP($M17,TT_Tabelle_Riferimento!$H$31:$I$50,2,FALSE))","v":20},{"$f":"+IFERROR(VLOOKUP(IK$6&\"-\"&$M17&\"_old\",Ammortamento_Finanziario!$H:$L,5,FALSE),VLOOKUP($M17,TT_Tabelle_Riferimento!$H$31:$I$50,2,FALSE))","v":20},{"$f":"+IFERROR(VLOOKUP(IL$6&\"-\"&$M17&\"_old\",Ammortamento_Finanziario!$H:$L,5,FALSE),VLOOKUP($M17,TT_Tabelle_Riferimento!$H$31:$I$50,2,FALSE))","v":20},{"$f":"+IFERROR(VLOOKUP(IM$6&\"-\"&$M17&\"_old\",Ammortamento_Finanziario!$H:$L,5,FALSE),VLOOKUP($M17,TT_Tabelle_Riferimento!$H$31:$I$50,2,FALSE))","v":20},{"$f":"+IFERROR(VLOOKUP(IN$6&\"-\"&$M17&\"_old\",Ammortamento_Finanziario!$H:$L,5,FALSE),VLOOKUP($M17,TT_Tabelle_Riferimento!$H$31:$I$50,2,FALSE))","v":20},{"$f":"+IFERROR(VLOOKUP(IO$6&\"-\"&$M17&\"_old\",Ammortamento_Finanziario!$H:$L,5,FALSE),VLOOKUP($M17,TT_Tabelle_Riferimento!$H$31:$I$50,2,FALSE))","v":20},{"$f":"+IFERROR(VLOOKUP(IP$6&\"-\"&$M17&\"_old\",Ammortamento_Finanziario!$H:$L,5,FALSE),VLOOKUP($M17,TT_Tabelle_Riferimento!$H$31:$I$50,2,FALSE))","v":20},{"$f":"+IFERROR(VLOOKUP(IQ$6&\"-\"&$M17&\"_old\",Ammortamento_Finanziario!$H:$L,5,FALSE),VLOOKUP($M17,TT_Tabelle_Riferimento!$H$31:$I$50,2,FALSE))","v":20},{"$f":"+IFERROR(VLOOKUP(IR$6&\"-\"&$M17&\"_old\",Ammortamento_Finanziario!$H:$L,5,FALSE),VLOOKUP($M17,TT_Tabelle_Riferimento!$H$31:$I$50,2,FALSE))","v":20},{"$f":"+IFERROR(VLOOKUP(IS$6&\"-\"&$M17&\"_old\",Ammortamento_Finanziario!$H:$L,5,FALSE),VLOOKUP($M17,TT_Tabelle_Riferimento!$H$31:$I$50,2,FALSE))","v":20},{"$f":"+IFERROR(VLOOKUP(IT$6&\"-\"&$M17&\"_old\",Ammortamento_Finanziario!$H:$L,5,FALSE),VLOOKUP($M17,TT_Tabelle_Riferimento!$H$31:$I$50,2,FALSE))","v":20},{"$f":"+IFERROR(VLOOKUP(IU$6&\"-\"&$M17&\"_old\",Ammortamento_Finanziario!$H:$L,5,FALSE),VLOOKUP($M17,TT_Tabelle_Riferimento!$H$31:$I$50,2,FALSE))","v":20},{"$f":"+IFERROR(VLOOKUP(IV$6&\"-\"&$M17&\"_old\",Ammortamento_Finanziario!$H:$L,5,FALSE),VLOOKUP($M17,TT_Tabelle_Riferimento!$H$31:$I$50,2,FALSE))","v":20},{"$f":"+IFERROR(VLOOKUP(IW$6&\"-\"&$M17&\"_old\",Ammortamento_Finanziario!$H:$L,5,FALSE),VLOOKUP($M17,TT_Tabelle_Riferimento!$H$31:$I$50,2,FALSE))","v":20},{"$f":"+IFERROR(VLOOKUP(IX$6&\"-\"&$M17&\"_old\",Ammortamento_Finanziario!$H:$L,5,FALSE),VLOOKUP($M17,TT_Tabelle_Riferimento!$H$31:$I$50,2,FALSE))","v":20},{"$f":"+IFERROR(VLOOKUP(IY$6&\"-\"&$M17&\"_old\",Ammortamento_Finanziario!$H:$L,5,FALSE),VLOOKUP($M17,TT_Tabelle_Riferimento!$H$31:$I$50,2,FALSE))","v":20},{"$f":"+IFERROR(VLOOKUP(IZ$6&\"-\"&$M17&\"_old\",Ammortamento_Finanziario!$H:$L,5,FALSE),VLOOKUP($M17,TT_Tabelle_Riferimento!$H$31:$I$50,2,FALSE))","v":20},{"$f":"+IFERROR(VLOOKUP(JA$6&\"-\"&$M17&\"_old\",Ammortamento_Finanziario!$H:$L,5,FALSE),VLOOKUP($M17,TT_Tabelle_Riferimento!$H$31:$I$50,2,FALSE))","v":20},{"$f":"+IFERROR(VLOOKUP(JB$6&\"-\"&$M17&\"_old\",Ammortamento_Finanziario!$H:$L,5,FALSE),VLOOKUP($M17,TT_Tabelle_Riferimento!$H$31:$I$50,2,FALSE))","v":20},{"$f":"+IFERROR(VLOOKUP(JC$6&\"-\"&$M17&\"_old\",Ammortamento_Finanziario!$H:$L,5,FALSE),VLOOKUP($M17,TT_Tabelle_Riferimento!$H$31:$I$50,2,FALSE))","v":20},{"$f":"+IFERROR(VLOOKUP(JD$6&\"-\"&$M17&\"_old\",Ammortamento_Finanziario!$H:$L,5,FALSE),VLOOKUP($M17,TT_Tabelle_Riferimento!$H$31:$I$50,2,FALSE))","v":20},{"$f":"+IFERROR(VLOOKUP(JE$6&\"-\"&$M17&\"_old\",Ammortamento_Finanziario!$H:$L,5,FALSE),VLOOKUP($M17,TT_Tabelle_Riferimento!$H$31:$I$50,2,FALSE))","v":20},{"$f":"+IFERROR(VLOOKUP(JF$6&\"-\"&$M17&\"_old\",Ammortamento_Finanziario!$H:$L,5,FALSE),VLOOKUP($M17,TT_Tabelle_Riferimento!$H$31:$I$50,2,FALSE))","v":20},{"$f":"+IFERROR(VLOOKUP(JG$6&\"-\"&$M17&\"_old\",Ammortamento_Finanziario!$H:$L,5,FALSE),VLOOKUP($M17,TT_Tabelle_Riferimento!$H$31:$I$50,2,FALSE))","v":20},{"$f":"+IFERROR(VLOOKUP(JH$6&\"-\"&$M17&\"_old\",Ammortamento_Finanziario!$H:$L,5,FALSE),VLOOKUP($M17,TT_Tabelle_Riferimento!$H$31:$I$50,2,FALSE))","v":20},{"$f":"+IFERROR(VLOOKUP(JI$6&\"-\"&$M17&\"_old\",Ammortamento_Finanziario!$H:$L,5,FALSE),VLOOKUP($M17,TT_Tabelle_Riferimento!$H$31:$I$50,2,FALSE))","v":20},{"$f":"+IFERROR(VLOOKUP(JJ$6&\"-\"&$M17&\"_old\",Ammortamento_Finanziario!$H:$L,5,FALSE),VLOOKUP($M17,TT_Tabelle_Riferimento!$H$31:$I$50,2,FALSE))","v":20},{"$f":"+IFERROR(VLOOKUP(JK$6&\"-\"&$M17&\"_old\",Ammortamento_Finanziario!$H:$L,5,FALSE),VLOOKUP($M17,TT_Tabelle_Riferimento!$H$31:$I$50,2,FALSE))","v":20},{"$f":"+IFERROR(VLOOKUP(JL$6&\"-\"&$M17&\"_old\",Ammortamento_Finanziario!$H:$L,5,FALSE),VLOOKUP($M17,TT_Tabelle_Riferimento!$H$31:$I$50,2,FALSE))","v":20},{"$f":"+IFERROR(VLOOKUP(JM$6&\"-\"&$M17&\"_old\",Ammortamento_Finanziario!$H:$L,5,FALSE),VLOOKUP($M17,TT_Tabelle_Riferimento!$H$31:$I$50,2,FALSE))","v":20},{"$f":"+IFERROR(VLOOKUP(JN$6&\"-\"&$M17&\"_old\",Ammortamento_Finanziario!$H:$L,5,FALSE),VLOOKUP($M17,TT_Tabelle_Riferimento!$H$31:$I$50,2,FALSE))","v":20},{"$f":"+IFERROR(VLOOKUP(JO$6&\"-\"&$M17&\"_old\",Ammortamento_Finanziario!$H:$L,5,FALSE),VLOOKUP($M17,TT_Tabelle_Riferimento!$H$31:$I$50,2,FALSE))","v":20},{"$f":"+IFERROR(VLOOKUP(JP$6&\"-\"&$M17&\"_old\",Ammortamento_Finanziario!$H:$L,5,FALSE),VLOOKUP($M17,TT_Tabelle_Riferimento!$H$31:$I$50,2,FALSE))","v":20},{"$f":"+IFERROR(VLOOKUP(JQ$6&\"-\"&$M17&\"_old\",Ammortamento_Finanziario!$H:$L,5,FALSE),VLOOKUP($M17,TT_Tabelle_Riferimento!$H$31:$I$50,2,FALSE))","v":20},{"$f":"+IFERROR(VLOOKUP(JR$6&\"-\"&$M17&\"_old\",Ammortamento_Finanziario!$H:$L,5,FALSE),VLOOKUP($M17,TT_Tabelle_Riferimento!$H$31:$I$50,2,FALSE))","v":20},{"$f":"+IFERROR(VLOOKUP(JS$6&\"-\"&$M17&\"_old\",Ammortamento_Finanziario!$H:$L,5,FALSE),VLOOKUP($M17,TT_Tabelle_Riferimento!$H$31:$I$50,2,FALSE))","v":20},{"$f":"+IFERROR(VLOOKUP(JT$6&\"-\"&$M17&\"_old\",Ammortamento_Finanziario!$H:$L,5,FALSE),VLOOKUP($M17,TT_Tabelle_Riferimento!$H$31:$I$50,2,FALSE))","v":20},{"$f":"+IFERROR(VLOOKUP(JU$6&\"-\"&$M17&\"_old\",Ammortamento_Finanziario!$H:$L,5,FALSE),VLOOKUP($M17,TT_Tabelle_Riferimento!$H$31:$I$50,2,FALSE))","v":20},{"$f":"+IFERROR(VLOOKUP(JV$6&\"-\"&$M17&\"_old\",Ammortamento_Finanziario!$H:$L,5,FALSE),VLOOKUP($M17,TT_Tabelle_Riferimento!$H$31:$I$50,2,FALSE))","v":20},{"$f":"+IFERROR(VLOOKUP(JW$6&\"-\"&$M17&\"_old\",Ammortamento_Finanziario!$H:$L,5,FALSE),VLOOKUP($M17,TT_Tabelle_Riferimento!$H$31:$I$50,2,FALSE))","v":20},{"$f":"+IFERROR(VLOOKUP(JX$6&\"-\"&$M17&\"_old\",Ammortamento_Finanziario!$H:$L,5,FALSE),VLOOKUP($M17,TT_Tabelle_Riferimento!$H$31:$I$50,2,FALSE))","v":20},{"$f":"+IFERROR(VLOOKUP(JY$6&\"-\"&$M17&\"_old\",Ammortamento_Finanziario!$H:$L,5,FALSE),VLOOKUP($M17,TT_Tabelle_Riferimento!$H$31:$I$50,2,FALSE))","v":20},{"$f":"+IFERROR(VLOOKUP(JZ$6&\"-\"&$M17&\"_old\",Ammortamento_Finanziario!$H:$L,5,FALSE),VLOOKUP($M17,TT_Tabelle_Riferimento!$H$31:$I$50,2,FALSE))","v":20},{"$f":"+IFERROR(VLOOKUP(KA$6&\"-\"&$M17&\"_old\",Ammortamento_Finanziario!$H:$L,5,FALSE),VLOOKUP($M17,TT_Tabelle_Riferimento!$H$31:$I$50,2,FALSE))","v":20},{"$f":"+IFERROR(VLOOKUP(KB$6&\"-\"&$M17&\"_old\",Ammortamento_Finanziario!$H:$L,5,FALSE),VLOOKUP($M17,TT_Tabelle_Riferimento!$H$31:$I$50,2,FALSE))","v":20},{"$f":"+IFERROR(VLOOKUP(KC$6&\"-\"&$M17&\"_old\",Ammortamento_Finanziario!$H:$L,5,FALSE),VLOOKUP($M17,TT_Tabelle_Riferimento!$H$31:$I$50,2,FALSE))","v":20},{"$f":"+IFERROR(VLOOKUP(KD$6&\"-\"&$M17&\"_old\",Ammortamento_Finanziario!$H:$L,5,FALSE),VLOOKUP($M17,TT_Tabelle_Riferimento!$H$31:$I$50,2,FALSE))","v":20},{"$f":"+IFERROR(VLOOKUP(KE$6&\"-\"&$M17&\"_old\",Ammortamento_Finanziario!$H:$L,5,FALSE),VLOOKUP($M17,TT_Tabelle_Riferimento!$H$31:$I$50,2,FALSE))","v":20},{"$f":"+IFERROR(VLOOKUP(KF$6&\"-\"&$M17&\"_old\",Ammortamento_Finanziario!$H:$L,5,FALSE),VLOOKUP($M17,TT_Tabelle_Riferimento!$H$31:$I$50,2,FALSE))","v":20},{"$f":"+IFERROR(VLOOKUP(KG$6&\"-\"&$M17&\"_old\",Ammortamento_Finanziario!$H:$L,5,FALSE),VLOOKUP($M17,TT_Tabelle_Riferimento!$H$31:$I$50,2,FALSE))","v":20},{"$f":"+IFERROR(VLOOKUP(KH$6&\"-\"&$M17&\"_old\",Ammortamento_Finanziario!$H:$L,5,FALSE),VLOOKUP($M17,TT_Tabelle_Riferimento!$H$31:$I$50,2,FALSE))","v":20},{"$f":"+IFERROR(VLOOKUP(KI$6&\"-\"&$M17&\"_old\",Ammortamento_Finanziario!$H:$L,5,FALSE),VLOOKUP($M17,TT_Tabelle_Riferimento!$H$31:$I$50,2,FALSE))","v":20},{"$f":"+IFERROR(VLOOKUP(KJ$6&\"-\"&$M17&\"_old\",Ammortamento_Finanziario!$H:$L,5,FALSE),VLOOKUP($M17,TT_Tabelle_Riferimento!$H$31:$I$50,2,FALSE))","v":20},{"$f":"+IFERROR(VLOOKUP(KK$6&\"-\"&$M17&\"_old\",Ammortamento_Finanziario!$H:$L,5,FALSE),VLOOKUP($M17,TT_Tabelle_Riferimento!$H$31:$I$50,2,FALSE))","v":20},{"$f":"+IFERROR(VLOOKUP(KL$6&\"-\"&$M17&\"_old\",Ammortamento_Finanziario!$H:$L,5,FALSE),VLOOKUP($M17,TT_Tabelle_Riferimento!$H$31:$I$50,2,FALSE))","v":20},{"$f":"+IFERROR(VLOOKUP(KM$6&\"-\"&$M17&\"_old\",Ammortamento_Finanziario!$H:$L,5,FALSE),VLOOKUP($M17,TT_Tabelle_Riferimento!$H$31:$I$50,2,FALSE))","v":20},{"$f":"+IFERROR(VLOOKUP(KN$6&\"-\"&$M17&\"_old\",Ammortamento_Finanziario!$H:$L,5,FALSE),VLOOKUP($M17,TT_Tabelle_Riferimento!$H$31:$I$50,2,FALSE))","v":20},{"$f":"+IFERROR(VLOOKUP(KO$6&\"-\"&$M17&\"_old\",Ammortamento_Finanziario!$H:$L,5,FALSE),VLOOKUP($M17,TT_Tabelle_Riferimento!$H$31:$I$50,2,FALSE))","v":20},{"$f":"+IFERROR(VLOOKUP(KP$6&\"-\"&$M17&\"_old\",Ammortamento_Finanziario!$H:$L,5,FALSE),VLOOKUP($M17,TT_Tabelle_Riferimento!$H$31:$I$50,2,FALSE))","v":20},{"$f":"+IFERROR(VLOOKUP(KQ$6&\"-\"&$M17&\"_old\",Ammortamento_Finanziario!$H:$L,5,FALSE),VLOOKUP($M17,TT_Tabelle_Riferimento!$H$31:$I$50,2,FALSE))","v":20},{"$f":"+IFERROR(VLOOKUP(KR$6&\"-\"&$M17&\"_old\",Ammortamento_Finanziario!$H:$L,5,FALSE),VLOOKUP($M17,TT_Tabelle_Riferimento!$H$31:$I$50,2,FALSE))","v":20},{"$f":"+IFERROR(VLOOKUP(KS$6&\"-\"&$M17&\"_old\",Ammortamento_Finanziario!$H:$L,5,FALSE),VLOOKUP($M17,TT_Tabelle_Riferimento!$H$31:$I$50,2,FALSE))","v":20},{"$f":"+IFERROR(VLOOKUP(KT$6&\"-\"&$M17&\"_old\",Ammortamento_Finanziario!$H:$L,5,FALSE),VLOOKUP($M17,TT_Tabelle_Riferimento!$H$31:$I$50,2,FALSE))","v":20},{"$f":"+IFERROR(VLOOKUP(KU$6&\"-\"&$M17&\"_old\",Ammortamento_Finanziario!$H:$L,5,FALSE),VLOOKUP($M17,TT_Tabelle_Riferimento!$H$31:$I$50,2,FALSE))","v":20},{"$f":"+IFERROR(VLOOKUP(KV$6&\"-\"&$M17&\"_old\",Ammortamento_Finanziario!$H:$L,5,FALSE),VLOOKUP($M17,TT_Tabelle_Riferimento!$H$31:$I$50,2,FALSE))","v":20},{"$f":"+IFERROR(VLOOKUP(KW$6&\"-\"&$M17&\"_old\",Ammortamento_Finanziario!$H:$L,5,FALSE),VLOOKUP($M17,TT_Tabelle_Riferimento!$H$31:$I$50,2,FALSE))","v":20},{"$f":"+IFERROR(VLOOKUP(KX$6&\"-\"&$M17&\"_old\",Ammortamento_Finanziario!$H:$L,5,FALSE),VLOOKUP($M17,TT_Tabelle_Riferimento!$H$31:$I$50,2,FALSE))","v":20},{"$f":"+IFERROR(VLOOKUP(KY$6&\"-\"&$M17&\"_old\",Ammortamento_Finanziario!$H:$L,5,FALSE),VLOOKUP($M17,TT_Tabelle_Riferimento!$H$31:$I$50,2,FALSE))","v":20},{"$f":"+IFERROR(VLOOKUP(KZ$6&\"-\"&$M17&\"_old\",Ammortamento_Finanziario!$H:$L,5,FALSE),VLOOKUP($M17,TT_Tabelle_Riferimento!$H$31:$I$50,2,FALSE))","v":20},{"$f":"+IFERROR(VLOOKUP(LA$6&\"-\"&$M17&\"_old\",Ammortamento_Finanziario!$H:$L,5,FALSE),VLOOKUP($M17,TT_Tabelle_Riferimento!$H$31:$I$50,2,FALSE))","v":20},{"$f":"+IFERROR(VLOOKUP(LB$6&\"-\"&$M17&\"_old\",Ammortamento_Finanziario!$H:$L,5,FALSE),VLOOKUP($M17,TT_Tabelle_Riferimento!$H$31:$I$50,2,FALSE))","v":20},{"$f":"+IFERROR(VLOOKUP(LC$6&\"-\"&$M17&\"_old\",Ammortamento_Finanziario!$H:$L,5,FALSE),VLOOKUP($M17,TT_Tabelle_Riferimento!$H$31:$I$50,2,FALSE))","v":20},{"$f":"+IFERROR(VLOOKUP(LD$6&\"-\"&$M17&\"_old\",Ammortamento_Finanziario!$H:$L,5,FALSE),VLOOKUP($M17,TT_Tabelle_Riferimento!$H$31:$I$50,2,FALSE))","v":20},{"$f":"+IFERROR(VLOOKUP(LE$6&\"-\"&$M17&\"_old\",Ammortamento_Finanziario!$H:$L,5,FALSE),VLOOKUP($M17,TT_Tabelle_Riferimento!$H$31:$I$50,2,FALSE))","v":20},{"$f":"+IFERROR(VLOOKUP(LF$6&\"-\"&$M17&\"_old\",Ammortamento_Finanziario!$H:$L,5,FALSE),VLOOKUP($M17,TT_Tabelle_Riferimento!$H$31:$I$50,2,FALSE))","v":20},{"$f":"+IFERROR(VLOOKUP(LG$6&\"-\"&$M17&\"_old\",Ammortamento_Finanziario!$H:$L,5,FALSE),VLOOKUP($M17,TT_Tabelle_Riferimento!$H$31:$I$50,2,FALSE))","v":20},{"$f":"+IFERROR(VLOOKUP(LH$6&\"-\"&$M17&\"_old\",Ammortamento_Finanziario!$H:$L,5,FALSE),VLOOKUP($M17,TT_Tabelle_Riferimento!$H$31:$I$50,2,FALSE))","v":20},{"$f":"+IFERROR(VLOOKUP(LI$6&\"-\"&$M17&\"_old\",Ammortamento_Finanziario!$H:$L,5,FALSE),VLOOKUP($M17,TT_Tabelle_Riferimento!$H$31:$I$50,2,FALSE))","v":20},{"$f":"+IFERROR(VLOOKUP(LJ$6&\"-\"&$M17&\"_old\",Ammortamento_Finanziario!$H:$L,5,FALSE),VLOOKUP($M17,TT_Tabelle_Riferimento!$H$31:$I$50,2,FALSE))","v":20},{"$f":"+IFERROR(VLOOKUP(LK$6&\"-\"&$M17&\"_old\",Ammortamento_Finanziario!$H:$L,5,FALSE),VLOOKUP($M17,TT_Tabelle_Riferimento!$H$31:$I$50,2,FALSE))","v":20},{"$f":"+IFERROR(VLOOKUP(LL$6&\"-\"&$M17&\"_old\",Ammortamento_Finanziario!$H:$L,5,FALSE),VLOOKUP($M17,TT_Tabelle_Riferimento!$H$31:$I$50,2,FALSE))","v":20},{"$f":"+IFERROR(VLOOKUP(LM$6&\"-\"&$M17&\"_old\",Ammortamento_Finanziario!$H:$L,5,FALSE),VLOOKUP($M17,TT_Tabelle_Riferimento!$H$31:$I$50,2,FALSE))","v":20},{"$f":"+IFERROR(VLOOKUP(LN$6&\"-\"&$M17&\"_old\",Ammortamento_Finanziario!$H:$L,5,FALSE),VLOOKUP($M17,TT_Tabelle_Riferimento!$H$31:$I$50,2,FALSE))","v":20},{"$f":"+IFERROR(VLOOKUP(LO$6&\"-\"&$M17&\"_old\",Ammortamento_Finanziario!$H:$L,5,FALSE),VLOOKUP($M17,TT_Tabelle_Riferimento!$H$31:$I$50,2,FALSE))","v":20},{"$f":"+IFERROR(VLOOKUP(LP$6&\"-\"&$M17&\"_old\",Ammortamento_Finanziario!$H:$L,5,FALSE),VLOOKUP($M17,TT_Tabelle_Riferimento!$H$31:$I$50,2,FALSE))","v":20},{"$f":"+IFERROR(VLOOKUP(LQ$6&\"-\"&$M17&\"_old\",Ammortamento_Finanziario!$H:$L,5,FALSE),VLOOKUP($M17,TT_Tabelle_Riferimento!$H$31:$I$50,2,FALSE))","v":20},{"$f":"+IFERROR(VLOOKUP(LR$6&\"-\"&$M17&\"_old\",Ammortamento_Finanziario!$H:$L,5,FALSE),VLOOKUP($M17,TT_Tabelle_Riferimento!$H$31:$I$50,2,FALSE))","v":20},{"$f":"+IFERROR(VLOOKUP(LS$6&\"-\"&$M17&\"_old\",Ammortamento_Finanziario!$H:$L,5,FALSE),VLOOKUP($M17,TT_Tabelle_Riferimento!$H$31:$I$50,2,FALSE))","v":20},{"$f":"+IFERROR(VLOOKUP(LT$6&\"-\"&$M17&\"_old\",Ammortamento_Finanziario!$H:$L,5,FALSE),VLOOKUP($M17,TT_Tabelle_Riferimento!$H$31:$I$50,2,FALSE))","v":20},{"$f":"+IFERROR(VLOOKUP(LU$6&\"-\"&$M17&\"_old\",Ammortamento_Finanziario!$H:$L,5,FALSE),VLOOKUP($M17,TT_Tabelle_Riferimento!$H$31:$I$50,2,FALSE))","v":20},{"$f":"+IFERROR(VLOOKUP(LV$6&\"-\"&$M17&\"_old\",Ammortamento_Finanziario!$H:$L,5,FALSE),VLOOKUP($M17,TT_Tabelle_Riferimento!$H$31:$I$50,2,FALSE))","v":20},{"$f":"+IFERROR(VLOOKUP(LW$6&\"-\"&$M17&\"_old\",Ammortamento_Finanziario!$H:$L,5,FALSE),VLOOKUP($M17,TT_Tabelle_Riferimento!$H$31:$I$50,2,FALSE))","v":20},{"$f":"+IFERROR(VLOOKUP(LX$6&\"-\"&$M17&\"_old\",Ammortamento_Finanziario!$H:$L,5,FALSE),VLOOKUP($M17,TT_Tabelle_Riferimento!$H$31:$I$50,2,FALSE))","v":20},{"$f":"+IFERROR(VLOOKUP(LY$6&\"-\"&$M17&\"_old\",Ammortamento_Finanziario!$H:$L,5,FALSE),VLOOKUP($M17,TT_Tabelle_Riferimento!$H$31:$I$50,2,FALSE))","v":20},{"$f":"+IFERROR(VLOOKUP(LZ$6&\"-\"&$M17&\"_old\",Ammortamento_Finanziario!$H:$L,5,FALSE),VLOOKUP($M17,TT_Tabelle_Riferimento!$H$31:$I$50,2,FALSE))","v":20},{"$f":"+IFERROR(VLOOKUP(MA$6&\"-\"&$M17&\"_old\",Ammortamento_Finanziario!$H:$L,5,FALSE),VLOOKUP($M17,TT_Tabelle_Riferimento!$H$31:$I$50,2,FALSE))","v":20},{"$f":"+IFERROR(VLOOKUP(MB$6&\"-\"&$M17&\"_old\",Ammortamento_Finanziario!$H:$L,5,FALSE),VLOOKUP($M17,TT_Tabelle_Riferimento!$H$31:$I$50,2,FALSE))","v":20},{"$f":"+IFERROR(VLOOKUP(MC$6&\"-\"&$M17&\"_old\",Ammortamento_Finanziario!$H:$L,5,FALSE),VLOOKUP($M17,TT_Tabelle_Riferimento!$H$31:$I$50,2,FALSE))","v":20},{"$f":"+IFERROR(VLOOKUP(MD$6&\"-\"&$M17&\"_old\",Ammortamento_Finanziario!$H:$L,5,FALSE),VLOOKUP($M17,TT_Tabelle_Riferimento!$H$31:$I$50,2,FALSE))","v":20},{"$f":"+IFERROR(VLOOKUP(ME$6&\"-\"&$M17&\"_old\",Ammortamento_Finanziario!$H:$L,5,FALSE),VLOOKUP($M17,TT_Tabelle_Riferimento!$H$31:$I$50,2,FALSE))","v":20},{"$f":"+IFERROR(VLOOKUP(MF$6&\"-\"&$M17&\"_old\",Ammortamento_Finanziario!$H:$L,5,FALSE),VLOOKUP($M17,TT_Tabelle_Riferimento!$H$31:$I$50,2,FALSE))","v":20},{"$f":"+IFERROR(VLOOKUP(MG$6&\"-\"&$M17&\"_old\",Ammortamento_Finanziario!$H:$L,5,FALSE),VLOOKUP($M17,TT_Tabelle_Riferimento!$H$31:$I$50,2,FALSE))","v":20},{"$f":"+IFERROR(VLOOKUP(MH$6&\"-\"&$M17&\"_old\",Ammortamento_Finanziario!$H:$L,5,FALSE),VLOOKUP($M17,TT_Tabelle_Riferimento!$H$31:$I$50,2,FALSE))","v":20},{"$f":"+IFERROR(VLOOKUP(MI$6&\"-\"&$M17&\"_old\",Ammortamento_Finanziario!$H:$L,5,FALSE),VLOOKUP($M17,TT_Tabelle_Riferimento!$H$31:$I$50,2,FALSE))","v":20},{"$f":"+IFERROR(VLOOKUP(MJ$6&\"-\"&$M17&\"_old\",Ammortamento_Finanziario!$H:$L,5,FALSE),VLOOKUP($M17,TT_Tabelle_Riferimento!$H$31:$I$50,2,FALSE))","v":20},{"$f":"+IFERROR(VLOOKUP(MK$6&\"-\"&$M17&\"_old\",Ammortamento_Finanziario!$H:$L,5,FALSE),VLOOKUP($M17,TT_Tabelle_Riferimento!$H$31:$I$50,2,FALSE))","v":20},{"$f":"+IFERROR(VLOOKUP(ML$6&\"-\"&$M17&\"_old\",Ammortamento_Finanziario!$H:$L,5,FALSE),VLOOKUP($M17,TT_Tabelle_Riferimento!$H$31:$I$50,2,FALSE))","v":20},{"$f":"+IFERROR(VLOOKUP(MM$6&\"-\"&$M17&\"_old\",Ammortamento_Finanziario!$H:$L,5,FALSE),VLOOKUP($M17,TT_Tabelle_Riferimento!$H$31:$I$50,2,FALSE))","v":20},{"$f":"+IFERROR(VLOOKUP(MN$6&\"-\"&$M17&\"_old\",Ammortamento_Finanziario!$H:$L,5,FALSE),VLOOKUP($M17,TT_Tabelle_Riferimento!$H$31:$I$50,2,FALSE))","v":20},{"$f":"+IFERROR(VLOOKUP(MO$6&\"-\"&$M17&\"_old\",Ammortamento_Finanziario!$H:$L,5,FALSE),VLOOKUP($M17,TT_Tabelle_Riferimento!$H$31:$I$50,2,FALSE))","v":20},{"$f":"+IFERROR(VLOOKUP(MP$6&\"-\"&$M17&\"_old\",Ammortamento_Finanziario!$H:$L,5,FALSE),VLOOKUP($M17,TT_Tabelle_Riferimento!$H$31:$I$50,2,FALSE))","v":20},{"$f":"+IFERROR(VLOOKUP(MQ$6&\"-\"&$M17&\"_old\",Ammortamento_Finanziario!$H:$L,5,FALSE),VLOOKUP($M17,TT_Tabelle_Riferimento!$H$31:$I$50,2,FALSE))","v":20},{"$f":"+IFERROR(VLOOKUP(MR$6&\"-\"&$M17&\"_old\",Ammortamento_Finanziario!$H:$L,5,FALSE),VLOOKUP($M17,TT_Tabelle_Riferimento!$H$31:$I$50,2,FALSE))","v":20},{"$f":"+IFERROR(VLOOKUP(MS$6&\"-\"&$M17&\"_old\",Ammortamento_Finanziario!$H:$L,5,FALSE),VLOOKUP($M17,TT_Tabelle_Riferimento!$H$31:$I$50,2,FALSE))","v":20},{"$f":"+IFERROR(VLOOKUP(MT$6&\"-\"&$M17&\"_old\",Ammortamento_Finanziario!$H:$L,5,FALSE),VLOOKUP($M17,TT_Tabelle_Riferimento!$H$31:$I$50,2,FALSE))","v":20},{"$f":"+IFERROR(VLOOKUP(MU$6&\"-\"&$M17&\"_old\",Ammortamento_Finanziario!$H:$L,5,FALSE),VLOOKUP($M17,TT_Tabelle_Riferimento!$H$31:$I$50,2,FALSE))","v":20},{"$f":"+IFERROR(VLOOKUP(MV$6&\"-\"&$M17&\"_old\",Ammortamento_Finanziario!$H:$L,5,FALSE),VLOOKUP($M17,TT_Tabelle_Riferimento!$H$31:$I$50,2,FALSE))","v":20},{"$f":"+IFERROR(VLOOKUP(MW$6&\"-\"&$M17&\"_old\",Ammortamento_Finanziario!$H:$L,5,FALSE),VLOOKUP($M17,TT_Tabelle_Riferimento!$H$31:$I$50,2,FALSE))","v":20},{"$f":"+IFERROR(VLOOKUP(MX$6&\"-\"&$M17&\"_old\",Ammortamento_Finanziario!$H:$L,5,FALSE),VLOOKUP($M17,TT_Tabelle_Riferimento!$H$31:$I$50,2,FALSE))","v":20},{"$f":"+IFERROR(VLOOKUP(MY$6&\"-\"&$M17&\"_old\",Ammortamento_Finanziario!$H:$L,5,FALSE),VLOOKUP($M17,TT_Tabelle_Riferimento!$H$31:$I$50,2,FALSE))","v":20},{"$f":"+IFERROR(VLOOKUP(MZ$6&\"-\"&$M17&\"_old\",Ammortamento_Finanziario!$H:$L,5,FALSE),VLOOKUP($M17,TT_Tabelle_Riferimento!$H$31:$I$50,2,FALSE))","v":20},{"$f":"+IFERROR(VLOOKUP(NA$6&\"-\"&$M17&\"_old\",Ammortamento_Finanziario!$H:$L,5,FALSE),VLOOKUP($M17,TT_Tabelle_Riferimento!$H$31:$I$50,2,FALSE))","v":20},{"$f":"+IFERROR(VLOOKUP(NB$6&\"-\"&$M17&\"_old\",Ammortamento_Finanziario!$H:$L,5,FALSE),VLOOKUP($M17,TT_Tabelle_Riferimento!$H$31:$I$50,2,FALSE))","v":20},{"$f":"+IFERROR(VLOOKUP(NC$6&\"-\"&$M17&\"_old\",Ammortamento_Finanziario!$H:$L,5,FALSE),VLOOKUP($M17,TT_Tabelle_Riferimento!$H$31:$I$50,2,FALSE))","v":20},{"$f":"+IFERROR(VLOOKUP(ND$6&\"-\"&$M17&\"_old\",Ammortamento_Finanziario!$H:$L,5,FALSE),VLOOKUP($M17,TT_Tabelle_Riferimento!$H$31:$I$50,2,FALSE))","v":20},{"$f":"+IFERROR(VLOOKUP(NE$6&\"-\"&$M17&\"_old\",Ammortamento_Finanziario!$H:$L,5,FALSE),VLOOKUP($M17,TT_Tabelle_Riferimento!$H$31:$I$50,2,FALSE))","v":20},{"$f":"+IFERROR(VLOOKUP(NF$6&\"-\"&$M17&\"_old\",Ammortamento_Finanziario!$H:$L,5,FALSE),VLOOKUP($M17,TT_Tabelle_Riferimento!$H$31:$I$50,2,FALSE))","v":20},{"$f":"+IFERROR(VLOOKUP(NG$6&\"-\"&$M17&\"_old\",Ammortamento_Finanziario!$H:$L,5,FALSE),VLOOKUP($M17,TT_Tabelle_Riferimento!$H$31:$I$50,2,FALSE))","v":20},{"$f":"+IFERROR(VLOOKUP(NH$6&\"-\"&$M17&\"_old\",Ammortamento_Finanziario!$H:$L,5,FALSE),VLOOKUP($M17,TT_Tabelle_Riferimento!$H$31:$I$50,2,FALSE))","v":20},{"$f":"+IFERROR(VLOOKUP(NI$6&\"-\"&$M17&\"_old\",Ammortamento_Finanziario!$H:$L,5,FALSE),VLOOKUP($M17,TT_Tabelle_Riferimento!$H$31:$I$50,2,FALSE))","v":20},{"$f":"+IFERROR(VLOOKUP(NJ$6&\"-\"&$M17&\"_old\",Ammortamento_Finanziario!$H:$L,5,FALSE),VLOOKUP($M17,TT_Tabelle_Riferimento!$H$31:$I$50,2,FALSE))","v":20},{"$f":"+IFERROR(VLOOKUP(NK$6&\"-\"&$M17&\"_old\",Ammortamento_Finanziario!$H:$L,5,FALSE),VLOOKUP($M17,TT_Tabelle_Riferimento!$H$31:$I$50,2,FALSE))","v":20},{"$f":"+IFERROR(VLOOKUP(NL$6&\"-\"&$M17&\"_old\",Ammortamento_Finanziario!$H:$L,5,FALSE),VLOOKUP($M17,TT_Tabelle_Riferimento!$H$31:$I$50,2,FALSE))","v":20},{"$f":"+IFERROR(VLOOKUP(NM$6&\"-\"&$M17&\"_old\",Ammortamento_Finanziario!$H:$L,5,FALSE),VLOOKUP($M17,TT_Tabelle_Riferimento!$H$31:$I$50,2,FALSE))","v":20},{"$f":"+IFERROR(VLOOKUP(NN$6&\"-\"&$M17&\"_old\",Ammortamento_Finanziario!$H:$L,5,FALSE),VLOOKUP($M17,TT_Tabelle_Riferimento!$H$31:$I$50,2,FALSE))","v":20},{"$f":"+IFERROR(VLOOKUP(NO$6&\"-\"&$M17&\"_old\",Ammortamento_Finanziario!$H:$L,5,FALSE),VLOOKUP($M17,TT_Tabelle_Riferimento!$H$31:$I$50,2,FALSE))","v":20},{"$f":"+IFERROR(VLOOKUP(NP$6&\"-\"&$M17&\"_old\",Ammortamento_Finanziario!$H:$L,5,FALSE),VLOOKUP($M17,TT_Tabelle_Riferimento!$H$31:$I$50,2,FALSE))","v":20},{"$f":"+IFERROR(VLOOKUP(NQ$6&\"-\"&$M17&\"_old\",Ammortamento_Finanziario!$H:$L,5,FALSE),VLOOKUP($M17,TT_Tabelle_Riferimento!$H$31:$I$50,2,FALSE))","v":20},{"$f":"+IFERROR(VLOOKUP(NR$6&\"-\"&$M17&\"_old\",Ammortamento_Finanziario!$H:$L,5,FALSE),VLOOKUP($M17,TT_Tabelle_Riferimento!$H$31:$I$50,2,FALSE))","v":20},{"$f":"+IFERROR(VLOOKUP(NS$6&\"-\"&$M17&\"_old\",Ammortamento_Finanziario!$H:$L,5,FALSE),VLOOKUP($M17,TT_Tabelle_Riferimento!$H$31:$I$50,2,FALSE))","v":20},{"$f":"+IFERROR(VLOOKUP(NT$6&\"-\"&$M17&\"_old\",Ammortamento_Finanziario!$H:$L,5,FALSE),VLOOKUP($M17,TT_Tabelle_Riferimento!$H$31:$I$50,2,FALSE))","v":20},{"$f":"+IFERROR(VLOOKUP(NU$6&\"-\"&$M17&\"_old\",Ammortamento_Finanziario!$H:$L,5,FALSE),VLOOKUP($M17,TT_Tabelle_Riferimento!$H$31:$I$50,2,FALSE))","v":20},{"$f":"+IFERROR(VLOOKUP(NV$6&\"-\"&$M17&\"_old\",Ammortamento_Finanziario!$H:$L,5,FALSE),VLOOKUP($M17,TT_Tabelle_Riferimento!$H$31:$I$50,2,FALSE))","v":20},{"$f":"+IFERROR(VLOOKUP(NW$6&\"-\"&$M17&\"_old\",Ammortamento_Finanziario!$H:$L,5,FALSE),VLOOKUP($M17,TT_Tabelle_Riferimento!$H$31:$I$50,2,FALSE))","v":20},{"$f":"+IFERROR(VLOOKUP(NX$6&\"-\"&$M17&\"_old\",Ammortamento_Finanziario!$H:$L,5,FALSE),VLOOKUP($M17,TT_Tabelle_Riferimento!$H$31:$I$50,2,FALSE))","v":20},{"$f":"+IFERROR(VLOOKUP(NY$6&\"-\"&$M17&\"_old\",Ammortamento_Finanziario!$H:$L,5,FALSE),VLOOKUP($M17,TT_Tabelle_Riferimento!$H$31:$I$50,2,FALSE))","v":20},{"$f":"+IFERROR(VLOOKUP(NZ$6&\"-\"&$M17&\"_old\",Ammortamento_Finanziario!$H:$L,5,FALSE),VLOOKUP($M17,TT_Tabelle_Riferimento!$H$31:$I$50,2,FALSE))","v":20},{"$f":"+IFERROR(VLOOKUP(OA$6&\"-\"&$M17&\"_old\",Ammortamento_Finanziario!$H:$L,5,FALSE),VLOOKUP($M17,TT_Tabelle_Riferimento!$H$31:$I$50,2,FALSE))","v":20},{"$f":"+IFERROR(VLOOKUP(OB$6&\"-\"&$M17&\"_old\",Ammortamento_Finanziario!$H:$L,5,FALSE),VLOOKUP($M17,TT_Tabelle_Riferimento!$H$31:$I$50,2,FALSE))","v":20},{"$f":"+IFERROR(VLOOKUP(OC$6&\"-\"&$M17&\"_old\",Ammortamento_Finanziario!$H:$L,5,FALSE),VLOOKUP($M17,TT_Tabelle_Riferimento!$H$31:$I$50,2,FALSE))","v":20},{"$f":"+IFERROR(VLOOKUP(OD$6&\"-\"&$M17&\"_old\",Ammortamento_Finanziario!$H:$L,5,FALSE),VLOOKUP($M17,TT_Tabelle_Riferimento!$H$31:$I$50,2,FALSE))","v":20},{"$f":"+IFERROR(VLOOKUP(OE$6&\"-\"&$M17&\"_old\",Ammortamento_Finanziario!$H:$L,5,FALSE),VLOOKUP($M17,TT_Tabelle_Riferimento!$H$31:$I$50,2,FALSE))","v":20},{"$f":"+IFERROR(VLOOKUP(OF$6&\"-\"&$M17&\"_old\",Ammortamento_Finanziario!$H:$L,5,FALSE),VLOOKUP($M17,TT_Tabelle_Riferimento!$H$31:$I$50,2,FALSE))","v":20},{"$f":"+IFERROR(VLOOKUP(OG$6&\"-\"&$M17&\"_old\",Ammortamento_Finanziario!$H:$L,5,FALSE),VLOOKUP($M17,TT_Tabelle_Riferimento!$H$31:$I$50,2,FALSE))","v":20},{"$f":"+IFERROR(VLOOKUP(OH$6&\"-\"&$M17&\"_old\",Ammortamento_Finanziario!$H:$L,5,FALSE),VLOOKUP($M17,TT_Tabelle_Riferimento!$H$31:$I$50,2,FALSE))","v":20},{"$f":"+IFERROR(VLOOKUP(OI$6&\"-\"&$M17&\"_old\",Ammortamento_Finanziario!$H:$L,5,FALSE),VLOOKUP($M17,TT_Tabelle_Riferimento!$H$31:$I$50,2,FALSE))","v":20},{"$f":"+IFERROR(VLOOKUP(OJ$6&\"-\"&$M17&\"_old\",Ammortamento_Finanziario!$H:$L,5,FALSE),VLOOKUP($M17,TT_Tabelle_Riferimento!$H$31:$I$50,2,FALSE))","v":20},{"$f":"+IFERROR(VLOOKUP(OK$6&\"-\"&$M17&\"_old\",Ammortamento_Finanziario!$H:$L,5,FALSE),VLOOKUP($M17,TT_Tabelle_Riferimento!$H$31:$I$50,2,FALSE))","v":20},{"$f":"+IFERROR(VLOOKUP(OL$6&\"-\"&$M17&\"_old\",Ammortamento_Finanziario!$H:$L,5,FALSE),VLOOKUP($M17,TT_Tabelle_Riferimento!$H$31:$I$50,2,FALSE))","v":20},{"$f":"+IFERROR(VLOOKUP(OM$6&\"-\"&$M17&\"_old\",Ammortamento_Finanziario!$H:$L,5,FALSE),VLOOKUP($M17,TT_Tabelle_Riferimento!$H$31:$I$50,2,FALSE))","v":20},{"$f":"+IFERROR(VLOOKUP(ON$6&\"-\"&$M17&\"_old\",Ammortamento_Finanziario!$H:$L,5,FALSE),VLOOKUP($M17,TT_Tabelle_Riferimento!$H$31:$I$50,2,FALSE))","v":20},{"$f":"+IFERROR(VLOOKUP(OO$6&\"-\"&$M17&\"_old\",Ammortamento_Finanziario!$H:$L,5,FALSE),VLOOKUP($M17,TT_Tabelle_Riferimento!$H$31:$I$50,2,FALSE))","v":20},{"$f":"+IFERROR(VLOOKUP(OP$6&\"-\"&$M17&\"_old\",Ammortamento_Finanziario!$H:$L,5,FALSE),VLOOKUP($M17,TT_Tabelle_Riferimento!$H$31:$I$50,2,FALSE))","v":20},{"$f":"+IFERROR(VLOOKUP(OQ$6&\"-\"&$M17&\"_old\",Ammortamento_Finanziario!$H:$L,5,FALSE),VLOOKUP($M17,TT_Tabelle_Riferimento!$H$31:$I$50,2,FALSE))","v":20},{"$f":"+IFERROR(VLOOKUP(OR$6&\"-\"&$M17&\"_old\",Ammortamento_Finanziario!$H:$L,5,FALSE),VLOOKUP($M17,TT_Tabelle_Riferimento!$H$31:$I$50,2,FALSE))","v":20},{"$f":"+IFERROR(VLOOKUP(OS$6&\"-\"&$M17&\"_old\",Ammortamento_Finanziario!$H:$L,5,FALSE),VLOOKUP($M17,TT_Tabelle_Riferimento!$H$31:$I$50,2,FALSE))","v":20},{"$f":"+IFERROR(VLOOKUP(OT$6&\"-\"&$M17&\"_old\",Ammortamento_Finanziario!$H:$L,5,FALSE),VLOOKUP($M17,TT_Tabelle_Riferimento!$H$31:$I$50,2,FALSE))","v":20},{"$f":"+IFERROR(VLOOKUP(OU$6&\"-\"&$M17&\"_old\",Ammortamento_Finanziario!$H:$L,5,FALSE),VLOOKUP($M17,TT_Tabelle_Riferimento!$H$31:$I$50,2,FALSE))","v":20},{"$f":"+IFERROR(VLOOKUP(OV$6&\"-\"&$M17&\"_old\",Ammortamento_Finanziario!$H:$L,5,FALSE),VLOOKUP($M17,TT_Tabelle_Riferimento!$H$31:$I$50,2,FALSE))","v":20},{"$f":"+IFERROR(VLOOKUP(OW$6&\"-\"&$M17&\"_old\",Ammortamento_Finanziario!$H:$L,5,FALSE),VLOOKUP($M17,TT_Tabelle_Riferimento!$H$31:$I$50,2,FALSE))","v":20},{"$f":"+IFERROR(VLOOKUP(OX$6&\"-\"&$M17&\"_old\",Ammortamento_Finanziario!$H:$L,5,FALSE),VLOOKUP($M17,TT_Tabelle_Riferimento!$H$31:$I$50,2,FALSE))","v":20},{"$f":"+IFERROR(VLOOKUP(OY$6&\"-\"&$M17&\"_old\",Ammortamento_Finanziario!$H:$L,5,FALSE),VLOOKUP($M17,TT_Tabelle_Riferimento!$H$31:$I$50,2,FALSE))","v":20},{"$f":"+IFERROR(VLOOKUP(OZ$6&\"-\"&$M17&\"_old\",Ammortamento_Finanziario!$H:$L,5,FALSE),VLOOKUP($M17,TT_Tabelle_Riferimento!$H$31:$I$50,2,FALSE))","v":20},{"$f":"+IFERROR(VLOOKUP(PA$6&\"-\"&$M17&\"_old\",Ammortamento_Finanziario!$H:$L,5,FALSE),VLOOKUP($M17,TT_Tabelle_Riferimento!$H$31:$I$50,2,FALSE))","v":20},{"$f":"+IFERROR(VLOOKUP(PB$6&\"-\"&$M17&\"_old\",Ammortamento_Finanziario!$H:$L,5,FALSE),VLOOKUP($M17,TT_Tabelle_Riferimento!$H$31:$I$50,2,FALSE))","v":20},{"$f":"+IFERROR(VLOOKUP(PC$6&\"-\"&$M17&\"_old\",Ammortamento_Finanziario!$H:$L,5,FALSE),VLOOKUP($M17,TT_Tabelle_Riferimento!$H$31:$I$50,2,FALSE))","v":20},{"$f":"+IFERROR(VLOOKUP(PD$6&\"-\"&$M17&\"_old\",Ammortamento_Finanziario!$H:$L,5,FALSE),VLOOKUP($M17,TT_Tabelle_Riferimento!$H$31:$I$50,2,FALSE))","v":20},{"$f":"+IFERROR(VLOOKUP(PE$6&\"-\"&$M17&\"_old\",Ammortamento_Finanziario!$H:$L,5,FALSE),VLOOKUP($M17,TT_Tabelle_Riferimento!$H$31:$I$50,2,FALSE))","v":20},{"$f":"+IFERROR(VLOOKUP(PF$6&\"-\"&$M17&\"_old\",Ammortamento_Finanziario!$H:$L,5,FALSE),VLOOKUP($M17,TT_Tabelle_Riferimento!$H$31:$I$50,2,FALSE))","v":20},{"$f":"+IFERROR(VLOOKUP(PG$6&\"-\"&$M17&\"_old\",Ammortamento_Finanziario!$H:$L,5,FALSE),VLOOKUP($M17,TT_Tabelle_Riferimento!$H$31:$I$50,2,FALSE))","v":20},{"$f":"+IFERROR(VLOOKUP(PH$6&\"-\"&$M17&\"_old\",Ammortamento_Finanziario!$H:$L,5,FALSE),VLOOKUP($M17,TT_Tabelle_Riferimento!$H$31:$I$50,2,FALSE))","v":20},{"$f":"+IFERROR(VLOOKUP(PI$6&\"-\"&$M17&\"_old\",Ammortamento_Finanziario!$H:$L,5,FALSE),VLOOKUP($M17,TT_Tabelle_Riferimento!$H$31:$I$50,2,FALSE))","v":20},{"$f":"+IFERROR(VLOOKUP(PJ$6&\"-\"&$M17&\"_old\",Ammortamento_Finanziario!$H:$L,5,FALSE),VLOOKUP($M17,TT_Tabelle_Riferimento!$H$31:$I$50,2,FALSE))","v":20},{"$f":"+IFERROR(VLOOKUP(PK$6&\"-\"&$M17&\"_old\",Ammortamento_Finanziario!$H:$L,5,FALSE),VLOOKUP($M17,TT_Tabelle_Riferimento!$H$31:$I$50,2,FALSE))","v":20},{"$f":"+IFERROR(VLOOKUP(PL$6&\"-\"&$M17&\"_old\",Ammortamento_Finanziario!$H:$L,5,FALSE),VLOOKUP($M17,TT_Tabelle_Riferimento!$H$31:$I$50,2,FALSE))","v":20},{"$f":"+IFERROR(VLOOKUP(PM$6&\"-\"&$M17&\"_old\",Ammortamento_Finanziario!$H:$L,5,FALSE),VLOOKUP($M17,TT_Tabelle_Riferimento!$H$31:$I$50,2,FALSE))","v":20},{"$f":"+IFERROR(VLOOKUP(PN$6&\"-\"&$M17&\"_old\",Ammortamento_Finanziario!$H:$L,5,FALSE),VLOOKUP($M17,TT_Tabelle_Riferimento!$H$31:$I$50,2,FALSE))","v":20},{"$f":"+IFERROR(VLOOKUP(PO$6&\"-\"&$M17&\"_old\",Ammortamento_Finanziario!$H:$L,5,FALSE),VLOOKUP($M17,TT_Tabelle_Riferimento!$H$31:$I$50,2,FALSE))","v":20},{"$f":"+IFERROR(VLOOKUP(PP$6&\"-\"&$M17&\"_old\",Ammortamento_Finanziario!$H:$L,5,FALSE),VLOOKUP($M17,TT_Tabelle_Riferimento!$H$31:$I$50,2,FALSE))","v":20},{"$f":"+IFERROR(VLOOKUP(PQ$6&\"-\"&$M17&\"_old\",Ammortamento_Finanziario!$H:$L,5,FALSE),VLOOKUP($M17,TT_Tabelle_Riferimento!$H$31:$I$50,2,FALSE))","v":20},{"$f":"+IFERROR(VLOOKUP(PR$6&\"-\"&$M17&\"_old\",Ammortamento_Finanziario!$H:$L,5,FALSE),VLOOKUP($M17,TT_Tabelle_Riferimento!$H$31:$I$50,2,FALSE))","v":20},{"$f":"+IFERROR(VLOOKUP(PS$6&\"-\"&$M17&\"_old\",Ammortamento_Finanziario!$H:$L,5,FALSE),VLOOKUP($M17,TT_Tabelle_Riferimento!$H$31:$I$50,2,FALSE))","v":20},{"$f":"+IFERROR(VLOOKUP(PT$6&\"-\"&$M17&\"_old\",Ammortamento_Finanziario!$H:$L,5,FALSE),VLOOKUP($M17,TT_Tabelle_Riferimento!$H$31:$I$50,2,FALSE))","v":20},{"$f":"+IFERROR(VLOOKUP(PU$6&\"-\"&$M17&\"_old\",Ammortamento_Finanziario!$H:$L,5,FALSE),VLOOKUP($M17,TT_Tabelle_Riferimento!$H$31:$I$50,2,FALSE))","v":20},{"$f":"+IFERROR(VLOOKUP(PV$6&\"-\"&$M17&\"_old\",Ammortamento_Finanziario!$H:$L,5,FALSE),VLOOKUP($M17,TT_Tabelle_Riferimento!$H$31:$I$50,2,FALSE))","v":20},{"$f":"+IFERROR(VLOOKUP(PW$6&\"-\"&$M17&\"_old\",Ammortamento_Finanziario!$H:$L,5,FALSE),VLOOKUP($M17,TT_Tabelle_Riferimento!$H$31:$I$50,2,FALSE))","v":20},{"$f":"+IFERROR(VLOOKUP(PX$6&\"-\"&$M17&\"_old\",Ammortamento_Finanziario!$H:$L,5,FALSE),VLOOKUP($M17,TT_Tabelle_Riferimento!$H$31:$I$50,2,FALSE))","v":20},{"$f":"+IFERROR(VLOOKUP(PY$6&\"-\"&$M17&\"_old\",Ammortamento_Finanziario!$H:$L,5,FALSE),VLOOKUP($M17,TT_Tabelle_Riferimento!$H$31:$I$50,2,FALSE))","v":20},{"$f":"+IFERROR(VLOOKUP(PZ$6&\"-\"&$M17&\"_old\",Ammortamento_Finanziario!$H:$L,5,FALSE),VLOOKUP($M17,TT_Tabelle_Riferimento!$H$31:$I$50,2,FALSE))","v":20},{"$f":"+IFERROR(VLOOKUP(QA$6&\"-\"&$M17&\"_old\",Ammortamento_Finanziario!$H:$L,5,FALSE),VLOOKUP($M17,TT_Tabelle_Riferimento!$H$31:$I$50,2,FALSE))","v":20},{"$f":"+IFERROR(VLOOKUP(QB$6&\"-\"&$M17&\"_old\",Ammortamento_Finanziario!$H:$L,5,FALSE),VLOOKUP($M17,TT_Tabelle_Riferimento!$H$31:$I$50,2,FALSE))","v":20},{"$f":"+IFERROR(VLOOKUP(QC$6&\"-\"&$M17&\"_old\",Ammortamento_Finanziario!$H:$L,5,FALSE),VLOOKUP($M17,TT_Tabelle_Riferimento!$H$31:$I$50,2,FALSE))","v":20},{"$f":"+IFERROR(VLOOKUP(QD$6&\"-\"&$M17&\"_old\",Ammortamento_Finanziario!$H:$L,5,FALSE),VLOOKUP($M17,TT_Tabelle_Riferimento!$H$31:$I$50,2,FALSE))","v":20},{"$f":"+IFERROR(VLOOKUP(QE$6&\"-\"&$M17&\"_old\",Ammortamento_Finanziario!$H:$L,5,FALSE),VLOOKUP($M17,TT_Tabelle_Riferimento!$H$31:$I$50,2,FALSE))","v":20},{"$f":"+IFERROR(VLOOKUP(QF$6&\"-\"&$M17&\"_old\",Ammortamento_Finanziario!$H:$L,5,FALSE),VLOOKUP($M17,TT_Tabelle_Riferimento!$H$31:$I$50,2,FALSE))","v":20},{"$f":"+IFERROR(VLOOKUP(QG$6&\"-\"&$M17&\"_old\",Ammortamento_Finanziario!$H:$L,5,FALSE),VLOOKUP($M17,TT_Tabelle_Riferimento!$H$31:$I$50,2,FALSE))","v":20},{"$f":"+IFERROR(VLOOKUP(QH$6&\"-\"&$M17&\"_old\",Ammortamento_Finanziario!$H:$L,5,FALSE),VLOOKUP($M17,TT_Tabelle_Riferimento!$H$31:$I$50,2,FALSE))","v":20},{"$f":"+IFERROR(VLOOKUP(QI$6&\"-\"&$M17&\"_old\",Ammortamento_Finanziario!$H:$L,5,FALSE),VLOOKUP($M17,TT_Tabelle_Riferimento!$H$31:$I$50,2,FALSE))","v":20},{"$f":"+IFERROR(VLOOKUP(QJ$6&\"-\"&$M17&\"_old\",Ammortamento_Finanziario!$H:$L,5,FALSE),VLOOKUP($M17,TT_Tabelle_Riferimento!$H$31:$I$50,2,FALSE))","v":20},{"$f":"+IFERROR(VLOOKUP(QK$6&\"-\"&$M17&\"_old\",Ammortamento_Finanziario!$H:$L,5,FALSE),VLOOKUP($M17,TT_Tabelle_Riferimento!$H$31:$I$50,2,FALSE))","v":20},{"$f":"+IFERROR(VLOOKUP(QL$6&\"-\"&$M17&\"_old\",Ammortamento_Finanziario!$H:$L,5,FALSE),VLOOKUP($M17,TT_Tabelle_Riferimento!$H$31:$I$50,2,FALSE))","v":20},{"$f":"+IFERROR(VLOOKUP(QM$6&\"-\"&$M17&\"_old\",Ammortamento_Finanziario!$H:$L,5,FALSE),VLOOKUP($M17,TT_Tabelle_Riferimento!$H$31:$I$50,2,FALSE))","v":20},{"$f":"+IFERROR(VLOOKUP(QN$6&\"-\"&$M17&\"_old\",Ammortamento_Finanziario!$H:$L,5,FALSE),VLOOKUP($M17,TT_Tabelle_Riferimento!$H$31:$I$50,2,FALSE))","v":20},{"$f":"+IFERROR(VLOOKUP(QO$6&\"-\"&$M17&\"_old\",Ammortamento_Finanziario!$H:$L,5,FALSE),VLOOKUP($M17,TT_Tabelle_Riferimento!$H$31:$I$50,2,FALSE))","v":20},{"$f":"+IFERROR(VLOOKUP(QP$6&\"-\"&$M17&\"_old\",Ammortamento_Finanziario!$H:$L,5,FALSE),VLOOKUP($M17,TT_Tabelle_Riferimento!$H$31:$I$50,2,FALSE))","v":20},{"$f":"+IFERROR(VLOOKUP(QQ$6&\"-\"&$M17&\"_old\",Ammortamento_Finanziario!$H:$L,5,FALSE),VLOOKUP($M17,TT_Tabelle_Riferimento!$H$31:$I$50,2,FALSE))","v":20},{"$f":"+IFERROR(VLOOKUP(QR$6&\"-\"&$M17&\"_old\",Ammortamento_Finanziario!$H:$L,5,FALSE),VLOOKUP($M17,TT_Tabelle_Riferimento!$H$31:$I$50,2,FALSE))","v":20},{"$f":"+IFERROR(VLOOKUP(QS$6&\"-\"&$M17&\"_old\",Ammortamento_Finanziario!$H:$L,5,FALSE),VLOOKUP($M17,TT_Tabelle_Riferimento!$H$31:$I$50,2,FALSE))","v":20},{"$f":"+IFERROR(VLOOKUP(QT$6&\"-\"&$M17&\"_old\",Ammortamento_Finanziario!$H:$L,5,FALSE),VLOOKUP($M17,TT_Tabelle_Riferimento!$H$31:$I$50,2,FALSE))","v":20},{"$f":"+IFERROR(VLOOKUP(QU$6&\"-\"&$M17&\"_old\",Ammortamento_Finanziario!$H:$L,5,FALSE),VLOOKUP($M17,TT_Tabelle_Riferimento!$H$31:$I$50,2,FALSE))","v":20},{"$f":"+IFERROR(VLOOKUP(QV$6&\"-\"&$M17&\"_old\",Ammortamento_Finanziario!$H:$L,5,FALSE),VLOOKUP($M17,TT_Tabelle_Riferimento!$H$31:$I$50,2,FALSE))","v":20},{"$f":"+IFERROR(VLOOKUP(QW$6&\"-\"&$M17&\"_old\",Ammortamento_Finanziario!$H:$L,5,FALSE),VLOOKUP($M17,TT_Tabelle_Riferimento!$H$31:$I$50,2,FALSE))","v":20},{"$f":"+IFERROR(VLOOKUP(QX$6&\"-\"&$M17&\"_old\",Ammortamento_Finanziario!$H:$L,5,FALSE),VLOOKUP($M17,TT_Tabelle_Riferimento!$H$31:$I$50,2,FALSE))","v":20},{"$f":"+IFERROR(VLOOKUP(QY$6&\"-\"&$M17&\"_old\",Ammortamento_Finanziario!$H:$L,5,FALSE),VLOOKUP($M17,TT_Tabelle_Riferimento!$H$31:$I$50,2,FALSE))","v":20},{"$f":"+IFERROR(VLOOKUP(QZ$6&\"-\"&$M17&\"_old\",Ammortamento_Finanziario!$H:$L,5,FALSE),VLOOKUP($M17,TT_Tabelle_Riferimento!$H$31:$I$50,2,FALSE))","v":20},{"$f":"+IFERROR(VLOOKUP(RA$6&\"-\"&$M17&\"_old\",Ammortamento_Finanziario!$H:$L,5,FALSE),VLOOKUP($M17,TT_Tabelle_Riferimento!$H$31:$I$50,2,FALSE))","v":20},{"$f":"+IFERROR(VLOOKUP(RB$6&\"-\"&$M17&\"_old\",Ammortamento_Finanziario!$H:$L,5,FALSE),VLOOKUP($M17,TT_Tabelle_Riferimento!$H$31:$I$50,2,FALSE))","v":20},{"$f":"+IFERROR(VLOOKUP(RC$6&\"-\"&$M17&\"_old\",Ammortamento_Finanziario!$H:$L,5,FALSE),VLOOKUP($M17,TT_Tabelle_Riferimento!$H$31:$I$50,2,FALSE))","v":20},{"$f":"+IFERROR(VLOOKUP(RD$6&\"-\"&$M17&\"_old\",Ammortamento_Finanziario!$H:$L,5,FALSE),VLOOKUP($M17,TT_Tabelle_Riferimento!$H$31:$I$50,2,FALSE))","v":20},{"$f":"+IFERROR(VLOOKUP(RE$6&\"-\"&$M17&\"_old\",Ammortamento_Finanziario!$H:$L,5,FALSE),VLOOKUP($M17,TT_Tabelle_Riferimento!$H$31:$I$50,2,FALSE))","v":20},{"$f":"+IFERROR(VLOOKUP(RF$6&\"-\"&$M17&\"_old\",Ammortamento_Finanziario!$H:$L,5,FALSE),VLOOKUP($M17,TT_Tabelle_Riferimento!$H$31:$I$50,2,FALSE))","v":20},{"$f":"+IFERROR(VLOOKUP(RG$6&\"-\"&$M17&\"_old\",Ammortamento_Finanziario!$H:$L,5,FALSE),VLOOKUP($M17,TT_Tabelle_Riferimento!$H$31:$I$50,2,FALSE))","v":20},{"$f":"+IFERROR(VLOOKUP(RH$6&\"-\"&$M17&\"_old\",Ammortamento_Finanziario!$H:$L,5,FALSE),VLOOKUP($M17,TT_Tabelle_Riferimento!$H$31:$I$50,2,FALSE))","v":20},{"$f":"+IFERROR(VLOOKUP(RI$6&\"-\"&$M17&\"_old\",Ammortamento_Finanziario!$H:$L,5,FALSE),VLOOKUP($M17,TT_Tabelle_Riferimento!$H$31:$I$50,2,FALSE))","v":20},{"$f":"+IFERROR(VLOOKUP(RJ$6&\"-\"&$M17&\"_old\",Ammortamento_Finanziario!$H:$L,5,FALSE),VLOOKUP($M17,TT_Tabelle_Riferimento!$H$31:$I$50,2,FALSE))","v":20},{"$f":"+IFERROR(VLOOKUP(RK$6&\"-\"&$M17&\"_old\",Ammortamento_Finanziario!$H:$L,5,FALSE),VLOOKUP($M17,TT_Tabelle_Riferimento!$H$31:$I$50,2,FALSE))","v":20},{"$f":"+IFERROR(VLOOKUP(RL$6&\"-\"&$M17&\"_old\",Ammortamento_Finanziario!$H:$L,5,FALSE),VLOOKUP($M17,TT_Tabelle_Riferimento!$H$31:$I$50,2,FALSE))","v":20},{"$f":"+IFERROR(VLOOKUP(RM$6&\"-\"&$M17&\"_old\",Ammortamento_Finanziario!$H:$L,5,FALSE),VLOOKUP($M17,TT_Tabelle_Riferimento!$H$31:$I$50,2,FALSE))","v":20},{"$f":"+IFERROR(VLOOKUP(RN$6&\"-\"&$M17&\"_old\",Ammortamento_Finanziario!$H:$L,5,FALSE),VLOOKUP($M17,TT_Tabelle_Riferimento!$H$31:$I$50,2,FALSE))","v":20},{"$f":"+IFERROR(VLOOKUP(RO$6&\"-\"&$M17&\"_old\",Ammortamento_Finanziario!$H:$L,5,FALSE),VLOOKUP($M17,TT_Tabelle_Riferimento!$H$31:$I$50,2,FALSE))","v":20},{"$f":"+IFERROR(VLOOKUP(RP$6&\"-\"&$M17&\"_old\",Ammortamento_Finanziario!$H:$L,5,FALSE),VLOOKUP($M17,TT_Tabelle_Riferimento!$H$31:$I$50,2,FALSE))","v":20},{"$f":"+IFERROR(VLOOKUP(RQ$6&\"-\"&$M17&\"_old\",Ammortamento_Finanziario!$H:$L,5,FALSE),VLOOKUP($M17,TT_Tabelle_Riferimento!$H$31:$I$50,2,FALSE))","v":20},{"$f":"+IFERROR(VLOOKUP(RR$6&\"-\"&$M17&\"_old\",Ammortamento_Finanziario!$H:$L,5,FALSE),VLOOKUP($M17,TT_Tabelle_Riferimento!$H$31:$I$50,2,FALSE))","v":20},{"$f":"+IFERROR(VLOOKUP(RS$6&\"-\"&$M17&\"_old\",Ammortamento_Finanziario!$H:$L,5,FALSE),VLOOKUP($M17,TT_Tabelle_Riferimento!$H$31:$I$50,2,FALSE))","v":20},{"$f":"+IFERROR(VLOOKUP(RT$6&\"-\"&$M17&\"_old\",Ammortamento_Finanziario!$H:$L,5,FALSE),VLOOKUP($M17,TT_Tabelle_Riferimento!$H$31:$I$50,2,FALSE))","v":20},{"$f":"+IFERROR(VLOOKUP(RU$6&\"-\"&$M17&\"_old\",Ammortamento_Finanziario!$H:$L,5,FALSE),VLOOKUP($M17,TT_Tabelle_Riferimento!$H$31:$I$50,2,FALSE))","v":20},{"$f":"+IFERROR(VLOOKUP(RV$6&\"-\"&$M17&\"_old\",Ammortamento_Finanziario!$H:$L,5,FALSE),VLOOKUP($M17,TT_Tabelle_Riferimento!$H$31:$I$50,2,FALSE))","v":20}]
[null,null,null,"IML",{"$f":"+SUMIFS(IMN_gestore!P:P,IMN_gestore!$E:$E,\">=\"&2012,IMN_gestore!$E:$E,\"<=\"&2022)","v":0},{"$f":"+SUMIFS(IMN_gestore!AA:AA,IMN_gestore!$E:$E,\">=\"&2012,IMN_gestore!$E:$E,\"<=\"&2023)","v":0},{"$f":"+SUMIFS(IMN_gestore!AL:AL,IMN_gestore!$E:$E,\">=\"&2012,IMN_gestore!$E:$E,\"<=\"&2024)","v":0},{"$f":"+SUMIFS(IMN_gestore!AW:AW,IMN_gestore!$E:$E,\">=\"&2012,IMN_gestore!$E:$E,\"<=\"&2025)","v":0},{"$f":"+SUMIFS(IMN_gestore!$BH:$BH,IMN_gestore!$E:$E,\">=\"&2012,IMN_gestore!$E:$E,\"<=\"&2026)","v":0},{"$f":"+SUMIFS(IMN_gestore!$BS:$BS,IMN_gestore!$E:$E,\">=\"&2012,IMN_gestore!$E:$E,\"<=\"&2027)","v":0},null,null,12,{"$f":"+IFERROR(VLOOKUP(N$6&\"-\"&$M18&\"_old\",Ammortamento_Finanziario!$H:$L,5,FALSE),VLOOKUP($M18,TT_Tabelle_Riferimento!$H$31:$I$50,2,FALSE))","v":10},{"$f":"+IFERROR(VLOOKUP(O$6&\"-\"&$M18&\"_old\",Ammortamento_Finanziario!$H:$L,5,FALSE),VLOOKUP($M18,TT_Tabelle_Riferimento!$H$31:$I$50,2,FALSE))","v":10},{"$f":"+IFERROR(VLOOKUP(P$6&\"-\"&$M18&\"_old\",Ammortamento_Finanziario!$H:$L,5,FALSE),VLOOKUP($M18,TT_Tabelle_Riferimento!$H$31:$I$50,2,FALSE))","v":10},{"$f":"+IFERROR(VLOOKUP(Q$6&\"-\"&$M18&\"_old\",Ammortamento_Finanziario!$H:$L,5,FALSE),VLOOKUP($M18,TT_Tabelle_Riferimento!$H$31:$I$50,2,FALSE))","v":10},{"$f":"+IFERROR(VLOOKUP(R$6&\"-\"&$M18&\"_old\",Ammortamento_Finanziario!$H:$L,5,FALSE),VLOOKUP($M18,TT_Tabelle_Riferimento!$H$31:$I$50,2,FALSE))","v":10},{"$f":"+IFERROR(VLOOKUP(S$6&\"-\"&$M18&\"_old\",Ammortamento_Finanziario!$H:$L,5,FALSE),VLOOKUP($M18,TT_Tabelle_Riferimento!$H$31:$I$50,2,FALSE))","v":10},{"$f":"+IFERROR(VLOOKUP(T$6&\"-\"&$M18&\"_old\",Ammortamento_Finanziario!$H:$L,5,FALSE),VLOOKUP($M18,TT_Tabelle_Riferimento!$H$31:$I$50,2,FALSE))","v":10},{"$f":"+IFERROR(VLOOKUP(U$6&\"-\"&$M18&\"_old\",Ammortamento_Finanziario!$H:$L,5,FALSE),VLOOKUP($M18,TT_Tabelle_Riferimento!$H$31:$I$50,2,FALSE))","v":10},{"$f":"+IFERROR(VLOOKUP(V$6&\"-\"&$M18&\"_old\",Ammortamento_Finanziario!$H:$L,5,FALSE),VLOOKUP($M18,TT_Tabelle_Riferimento!$H$31:$I$50,2,FALSE))","v":10},{"$f":"+IFERROR(VLOOKUP(W$6&\"-\"&$M18&\"_old\",Ammortamento_Finanziario!$H:$L,5,FALSE),VLOOKUP($M18,TT_Tabelle_Riferimento!$H$31:$I$50,2,FALSE))","v":10},{"$f":"+IFERROR(VLOOKUP(X$6&\"-\"&$M18&\"_old\",Ammortamento_Finanziario!$H:$L,5,FALSE),VLOOKUP($M18,TT_Tabelle_Riferimento!$H$31:$I$50,2,FALSE))","v":10},{"$f":"+IFERROR(VLOOKUP(Y$6&\"-\"&$M18&\"_old\",Ammortamento_Finanziario!$H:$L,5,FALSE),VLOOKUP($M18,TT_Tabelle_Riferimento!$H$31:$I$50,2,FALSE))","v":10},{"$f":"+IFERROR(VLOOKUP(Z$6&\"-\"&$M18&\"_old\",Ammortamento_Finanziario!$H:$L,5,FALSE),VLOOKUP($M18,TT_Tabelle_Riferimento!$H$31:$I$50,2,FALSE))","v":10},{"$f":"+IFERROR(VLOOKUP(AA$6&\"-\"&$M18&\"_old\",Ammortamento_Finanziario!$H:$L,5,FALSE),VLOOKUP($M18,TT_Tabelle_Riferimento!$H$31:$I$50,2,FALSE))","v":10},{"$f":"+IFERROR(VLOOKUP(AB$6&\"-\"&$M18&\"_old\",Ammortamento_Finanziario!$H:$L,5,FALSE),VLOOKUP($M18,TT_Tabelle_Riferimento!$H$31:$I$50,2,FALSE))","v":10},{"$f":"+IFERROR(VLOOKUP(AC$6&\"-\"&$M18&\"_old\",Ammortamento_Finanziario!$H:$L,5,FALSE),VLOOKUP($M18,TT_Tabelle_Riferimento!$H$31:$I$50,2,FALSE))","v":10},{"$f":"+IFERROR(VLOOKUP(AD$6&\"-\"&$M18&\"_old\",Ammortamento_Finanziario!$H:$L,5,FALSE),VLOOKUP($M18,TT_Tabelle_Riferimento!$H$31:$I$50,2,FALSE))","v":10},{"$f":"+IFERROR(VLOOKUP(AE$6&\"-\"&$M18&\"_old\",Ammortamento_Finanziario!$H:$L,5,FALSE),VLOOKUP($M18,TT_Tabelle_Riferimento!$H$31:$I$50,2,FALSE))","v":10},{"$f":"+IFERROR(VLOOKUP(AF$6&\"-\"&$M18&\"_old\",Ammortamento_Finanziario!$H:$L,5,FALSE),VLOOKUP($M18,TT_Tabelle_Riferimento!$H$31:$I$50,2,FALSE))","v":10},{"$f":"+IFERROR(VLOOKUP(AG$6&\"-\"&$M18&\"_old\",Ammortamento_Finanziario!$H:$L,5,FALSE),VLOOKUP($M18,TT_Tabelle_Riferimento!$H$31:$I$50,2,FALSE))","v":10},{"$f":"+IFERROR(VLOOKUP(AH$6&\"-\"&$M18&\"_old\",Ammortamento_Finanziario!$H:$L,5,FALSE),VLOOKUP($M18,TT_Tabelle_Riferimento!$H$31:$I$50,2,FALSE))","v":10},{"$f":"+IFERROR(VLOOKUP(AI$6&\"-\"&$M18&\"_old\",Ammortamento_Finanziario!$H:$L,5,FALSE),VLOOKUP($M18,TT_Tabelle_Riferimento!$H$31:$I$50,2,FALSE))","v":10},{"$f":"+IFERROR(VLOOKUP(AJ$6&\"-\"&$M18&\"_old\",Ammortamento_Finanziario!$H:$L,5,FALSE),VLOOKUP($M18,TT_Tabelle_Riferimento!$H$31:$I$50,2,FALSE))","v":10},{"$f":"+IFERROR(VLOOKUP(AK$6&\"-\"&$M18&\"_old\",Ammortamento_Finanziario!$H:$L,5,FALSE),VLOOKUP($M18,TT_Tabelle_Riferimento!$H$31:$I$50,2,FALSE))","v":10},{"$f":"+IFERROR(VLOOKUP(AL$6&\"-\"&$M18&\"_old\",Ammortamento_Finanziario!$H:$L,5,FALSE),VLOOKUP($M18,TT_Tabelle_Riferimento!$H$31:$I$50,2,FALSE))","v":10},{"$f":"+IFERROR(VLOOKUP(AM$6&\"-\"&$M18&\"_old\",Ammortamento_Finanziario!$H:$L,5,FALSE),VLOOKUP($M18,TT_Tabelle_Riferimento!$H$31:$I$50,2,FALSE))","v":10},{"$f":"+IFERROR(VLOOKUP(AN$6&\"-\"&$M18&\"_old\",Ammortamento_Finanziario!$H:$L,5,FALSE),VLOOKUP($M18,TT_Tabelle_Riferimento!$H$31:$I$50,2,FALSE))","v":10},{"$f":"+IFERROR(VLOOKUP(AO$6&\"-\"&$M18&\"_old\",Ammortamento_Finanziario!$H:$L,5,FALSE),VLOOKUP($M18,TT_Tabelle_Riferimento!$H$31:$I$50,2,FALSE))","v":10},{"$f":"+IFERROR(VLOOKUP(AP$6&\"-\"&$M18&\"_old\",Ammortamento_Finanziario!$H:$L,5,FALSE),VLOOKUP($M18,TT_Tabelle_Riferimento!$H$31:$I$50,2,FALSE))","v":10},{"$f":"+IFERROR(VLOOKUP(AQ$6&\"-\"&$M18&\"_old\",Ammortamento_Finanziario!$H:$L,5,FALSE),VLOOKUP($M18,TT_Tabelle_Riferimento!$H$31:$I$50,2,FALSE))","v":10},{"$f":"+IFERROR(VLOOKUP(AR$6&\"-\"&$M18&\"_old\",Ammortamento_Finanziario!$H:$L,5,FALSE),VLOOKUP($M18,TT_Tabelle_Riferimento!$H$31:$I$50,2,FALSE))","v":10},{"$f":"+IFERROR(VLOOKUP(AS$6&\"-\"&$M18&\"_old\",Ammortamento_Finanziario!$H:$L,5,FALSE),VLOOKUP($M18,TT_Tabelle_Riferimento!$H$31:$I$50,2,FALSE))","v":10},{"$f":"+IFERROR(VLOOKUP(AT$6&\"-\"&$M18&\"_old\",Ammortamento_Finanziario!$H:$L,5,FALSE),VLOOKUP($M18,TT_Tabelle_Riferimento!$H$31:$I$50,2,FALSE))","v":10},{"$f":"+IFERROR(VLOOKUP(AU$6&\"-\"&$M18&\"_old\",Ammortamento_Finanziario!$H:$L,5,FALSE),VLOOKUP($M18,TT_Tabelle_Riferimento!$H$31:$I$50,2,FALSE))","v":10},{"$f":"+IFERROR(VLOOKUP(AV$6&\"-\"&$M18&\"_old\",Ammortamento_Finanziario!$H:$L,5,FALSE),VLOOKUP($M18,TT_Tabelle_Riferimento!$H$31:$I$50,2,FALSE))","v":10},{"$f":"+IFERROR(VLOOKUP(AW$6&\"-\"&$M18&\"_old\",Ammortamento_Finanziario!$H:$L,5,FALSE),VLOOKUP($M18,TT_Tabelle_Riferimento!$H$31:$I$50,2,FALSE))","v":10},{"$f":"+IFERROR(VLOOKUP(AX$6&\"-\"&$M18&\"_old\",Ammortamento_Finanziario!$H:$L,5,FALSE),VLOOKUP($M18,TT_Tabelle_Riferimento!$H$31:$I$50,2,FALSE))","v":10},{"$f":"+IFERROR(VLOOKUP(AY$6&\"-\"&$M18&\"_old\",Ammortamento_Finanziario!$H:$L,5,FALSE),VLOOKUP($M18,TT_Tabelle_Riferimento!$H$31:$I$50,2,FALSE))","v":10},{"$f":"+IFERROR(VLOOKUP(AZ$6&\"-\"&$M18&\"_old\",Ammortamento_Finanziario!$H:$L,5,FALSE),VLOOKUP($M18,TT_Tabelle_Riferimento!$H$31:$I$50,2,FALSE))","v":10},{"$f":"+IFERROR(VLOOKUP(BA$6&\"-\"&$M18&\"_old\",Ammortamento_Finanziario!$H:$L,5,FALSE),VLOOKUP($M18,TT_Tabelle_Riferimento!$H$31:$I$50,2,FALSE))","v":10},{"$f":"+IFERROR(VLOOKUP(BB$6&\"-\"&$M18&\"_old\",Ammortamento_Finanziario!$H:$L,5,FALSE),VLOOKUP($M18,TT_Tabelle_Riferimento!$H$31:$I$50,2,FALSE))","v":10},{"$f":"+IFERROR(VLOOKUP(BC$6&\"-\"&$M18&\"_old\",Ammortamento_Finanziario!$H:$L,5,FALSE),VLOOKUP($M18,TT_Tabelle_Riferimento!$H$31:$I$50,2,FALSE))","v":10},{"$f":"+IFERROR(VLOOKUP(BD$6&\"-\"&$M18&\"_old\",Ammortamento_Finanziario!$H:$L,5,FALSE),VLOOKUP($M18,TT_Tabelle_Riferimento!$H$31:$I$50,2,FALSE))","v":10},{"$f":"+IFERROR(VLOOKUP(BE$6&\"-\"&$M18&\"_old\",Ammortamento_Finanziario!$H:$L,5,FALSE),VLOOKUP($M18,TT_Tabelle_Riferimento!$H$31:$I$50,2,FALSE))","v":10},{"$f":"+IFERROR(VLOOKUP(BF$6&\"-\"&$M18&\"_old\",Ammortamento_Finanziario!$H:$L,5,FALSE),VLOOKUP($M18,TT_Tabelle_Riferimento!$H$31:$I$50,2,FALSE))","v":10},{"$f":"+IFERROR(VLOOKUP(BG$6&\"-\"&$M18&\"_old\",Ammortamento_Finanziario!$H:$L,5,FALSE),VLOOKUP($M18,TT_Tabelle_Riferimento!$H$31:$I$50,2,FALSE))","v":10},{"$f":"+IFERROR(VLOOKUP(BH$6&\"-\"&$M18&\"_old\",Ammortamento_Finanziario!$H:$L,5,FALSE),VLOOKUP($M18,TT_Tabelle_Riferimento!$H$31:$I$50,2,FALSE))","v":10},{"$f":"+IFERROR(VLOOKUP(BI$6&\"-\"&$M18&\"_old\",Ammortamento_Finanziario!$H:$L,5,FALSE),VLOOKUP($M18,TT_Tabelle_Riferimento!$H$31:$I$50,2,FALSE))","v":10},{"$f":"+IFERROR(VLOOKUP(BJ$6&\"-\"&$M18&\"_old\",Ammortamento_Finanziario!$H:$L,5,FALSE),VLOOKUP($M18,TT_Tabelle_Riferimento!$H$31:$I$50,2,FALSE))","v":10},{"$f":"+IFERROR(VLOOKUP(BK$6&\"-\"&$M18&\"_old\",Ammortamento_Finanziario!$H:$L,5,FALSE),VLOOKUP($M18,TT_Tabelle_Riferimento!$H$31:$I$50,2,FALSE))","v":10},{"$f":"+IFERROR(VLOOKUP(BL$6&\"-\"&$M18&\"_old\",Ammortamento_Finanziario!$H:$L,5,FALSE),VLOOKUP($M18,TT_Tabelle_Riferimento!$H$31:$I$50,2,FALSE))","v":10},{"$f":"+IFERROR(VLOOKUP(BM$6&\"-\"&$M18&\"_old\",Ammortamento_Finanziario!$H:$L,5,FALSE),VLOOKUP($M18,TT_Tabelle_Riferimento!$H$31:$I$50,2,FALSE))","v":10},{"$f":"+IFERROR(VLOOKUP(BN$6&\"-\"&$M18&\"_old\",Ammortamento_Finanziario!$H:$L,5,FALSE),VLOOKUP($M18,TT_Tabelle_Riferimento!$H$31:$I$50,2,FALSE))","v":10},{"$f":"+IFERROR(VLOOKUP(BO$6&\"-\"&$M18&\"_old\",Ammortamento_Finanziario!$H:$L,5,FALSE),VLOOKUP($M18,TT_Tabelle_Riferimento!$H$31:$I$50,2,FALSE))","v":10},{"$f":"+IFERROR(VLOOKUP(BP$6&\"-\"&$M18&\"_old\",Ammortamento_Finanziario!$H:$L,5,FALSE),VLOOKUP($M18,TT_Tabelle_Riferimento!$H$31:$I$50,2,FALSE))","v":10},{"$f":"+IFERROR(VLOOKUP(BQ$6&\"-\"&$M18&\"_old\",Ammortamento_Finanziario!$H:$L,5,FALSE),VLOOKUP($M18,TT_Tabelle_Riferimento!$H$31:$I$50,2,FALSE))","v":10},{"$f":"+IFERROR(VLOOKUP(BR$6&\"-\"&$M18&\"_old\",Ammortamento_Finanziario!$H:$L,5,FALSE),VLOOKUP($M18,TT_Tabelle_Riferimento!$H$31:$I$50,2,FALSE))","v":10},{"$f":"+IFERROR(VLOOKUP(BS$6&\"-\"&$M18&\"_old\",Ammortamento_Finanziario!$H:$L,5,FALSE),VLOOKUP($M18,TT_Tabelle_Riferimento!$H$31:$I$50,2,FALSE))","v":10},{"$f":"+IFERROR(VLOOKUP(BT$6&\"-\"&$M18&\"_old\",Ammortamento_Finanziario!$H:$L,5,FALSE),VLOOKUP($M18,TT_Tabelle_Riferimento!$H$31:$I$50,2,FALSE))","v":10},{"$f":"+IFERROR(VLOOKUP(BU$6&\"-\"&$M18&\"_old\",Ammortamento_Finanziario!$H:$L,5,FALSE),VLOOKUP($M18,TT_Tabelle_Riferimento!$H$31:$I$50,2,FALSE))","v":10},{"$f":"+IFERROR(VLOOKUP(BV$6&\"-\"&$M18&\"_old\",Ammortamento_Finanziario!$H:$L,5,FALSE),VLOOKUP($M18,TT_Tabelle_Riferimento!$H$31:$I$50,2,FALSE))","v":10},{"$f":"+IFERROR(VLOOKUP(BW$6&\"-\"&$M18&\"_old\",Ammortamento_Finanziario!$H:$L,5,FALSE),VLOOKUP($M18,TT_Tabelle_Riferimento!$H$31:$I$50,2,FALSE))","v":10},{"$f":"+IFERROR(VLOOKUP(BX$6&\"-\"&$M18&\"_old\",Ammortamento_Finanziario!$H:$L,5,FALSE),VLOOKUP($M18,TT_Tabelle_Riferimento!$H$31:$I$50,2,FALSE))","v":10},{"$f":"+IFERROR(VLOOKUP(BY$6&\"-\"&$M18&\"_old\",Ammortamento_Finanziario!$H:$L,5,FALSE),VLOOKUP($M18,TT_Tabelle_Riferimento!$H$31:$I$50,2,FALSE))","v":10},{"$f":"+IFERROR(VLOOKUP(BZ$6&\"-\"&$M18&\"_old\",Ammortamento_Finanziario!$H:$L,5,FALSE),VLOOKUP($M18,TT_Tabelle_Riferimento!$H$31:$I$50,2,FALSE))","v":10},{"$f":"+IFERROR(VLOOKUP(CA$6&\"-\"&$M18&\"_old\",Ammortamento_Finanziario!$H:$L,5,FALSE),VLOOKUP($M18,TT_Tabelle_Riferimento!$H$31:$I$50,2,FALSE))","v":10},{"$f":"+IFERROR(VLOOKUP(CB$6&\"-\"&$M18&\"_old\",Ammortamento_Finanziario!$H:$L,5,FALSE),VLOOKUP($M18,TT_Tabelle_Riferimento!$H$31:$I$50,2,FALSE))","v":10},{"$f":"+IFERROR(VLOOKUP(CC$6&\"-\"&$M18&\"_old\",Ammortamento_Finanziario!$H:$L,5,FALSE),VLOOKUP($M18,TT_Tabelle_Riferimento!$H$31:$I$50,2,FALSE))","v":10},{"$f":"+IFERROR(VLOOKUP(CD$6&\"-\"&$M18&\"_old\",Ammortamento_Finanziario!$H:$L,5,FALSE),VLOOKUP($M18,TT_Tabelle_Riferimento!$H$31:$I$50,2,FALSE))","v":10},{"$f":"+IFERROR(VLOOKUP(CE$6&\"-\"&$M18&\"_old\",Ammortamento_Finanziario!$H:$L,5,FALSE),VLOOKUP($M18,TT_Tabelle_Riferimento!$H$31:$I$50,2,FALSE))","v":10},{"$f":"+IFERROR(VLOOKUP(CF$6&\"-\"&$M18&\"_old\",Ammortamento_Finanziario!$H:$L,5,FALSE),VLOOKUP($M18,TT_Tabelle_Riferimento!$H$31:$I$50,2,FALSE))","v":10},{"$f":"+IFERROR(VLOOKUP(CG$6&\"-\"&$M18&\"_old\",Ammortamento_Finanziario!$H:$L,5,FALSE),VLOOKUP($M18,TT_Tabelle_Riferimento!$H$31:$I$50,2,FALSE))","v":10},{"$f":"+IFERROR(VLOOKUP(CH$6&\"-\"&$M18&\"_old\",Ammortamento_Finanziario!$H:$L,5,FALSE),VLOOKUP($M18,TT_Tabelle_Riferimento!$H$31:$I$50,2,FALSE))","v":10},{"$f":"+IFERROR(VLOOKUP(CI$6&\"-\"&$M18&\"_old\",Ammortamento_Finanziario!$H:$L,5,FALSE),VLOOKUP($M18,TT_Tabelle_Riferimento!$H$31:$I$50,2,FALSE))","v":10},{"$f":"+IFERROR(VLOOKUP(CJ$6&\"-\"&$M18&\"_old\",Ammortamento_Finanziario!$H:$L,5,FALSE),VLOOKUP($M18,TT_Tabelle_Riferimento!$H$31:$I$50,2,FALSE))","v":10},{"$f":"+IFERROR(VLOOKUP(CK$6&\"-\"&$M18&\"_old\",Ammortamento_Finanziario!$H:$L,5,FALSE),VLOOKUP($M18,TT_Tabelle_Riferimento!$H$31:$I$50,2,FALSE))","v":10},{"$f":"+IFERROR(VLOOKUP(CL$6&\"-\"&$M18&\"_old\",Ammortamento_Finanziario!$H:$L,5,FALSE),VLOOKUP($M18,TT_Tabelle_Riferimento!$H$31:$I$50,2,FALSE))","v":10},{"$f":"+IFERROR(VLOOKUP(CM$6&\"-\"&$M18&\"_old\",Ammortamento_Finanziario!$H:$L,5,FALSE),VLOOKUP($M18,TT_Tabelle_Riferimento!$H$31:$I$50,2,FALSE))","v":10},{"$f":"+IFERROR(VLOOKUP(CN$6&\"-\"&$M18&\"_old\",Ammortamento_Finanziario!$H:$L,5,FALSE),VLOOKUP($M18,TT_Tabelle_Riferimento!$H$31:$I$50,2,FALSE))","v":10},{"$f":"+IFERROR(VLOOKUP(CO$6&\"-\"&$M18&\"_old\",Ammortamento_Finanziario!$H:$L,5,FALSE),VLOOKUP($M18,TT_Tabelle_Riferimento!$H$31:$I$50,2,FALSE))","v":10},{"$f":"+IFERROR(VLOOKUP(CP$6&\"-\"&$M18&\"_old\",Ammortamento_Finanziario!$H:$L,5,FALSE),VLOOKUP($M18,TT_Tabelle_Riferimento!$H$31:$I$50,2,FALSE))","v":10},{"$f":"+IFERROR(VLOOKUP(CQ$6&\"-\"&$M18&\"_old\",Ammortamento_Finanziario!$H:$L,5,FALSE),VLOOKUP($M18,TT_Tabelle_Riferimento!$H$31:$I$50,2,FALSE))","v":10},{"$f":"+IFERROR(VLOOKUP(CR$6&\"-\"&$M18&\"_old\",Ammortamento_Finanziario!$H:$L,5,FALSE),VLOOKUP($M18,TT_Tabelle_Riferimento!$H$31:$I$50,2,FALSE))","v":10},{"$f":"+IFERROR(VLOOKUP(CS$6&\"-\"&$M18&\"_old\",Ammortamento_Finanziario!$H:$L,5,FALSE),VLOOKUP($M18,TT_Tabelle_Riferimento!$H$31:$I$50,2,FALSE))","v":10},{"$f":"+IFERROR(VLOOKUP(CT$6&\"-\"&$M18&\"_old\",Ammortamento_Finanziario!$H:$L,5,FALSE),VLOOKUP($M18,TT_Tabelle_Riferimento!$H$31:$I$50,2,FALSE))","v":10},{"$f":"+IFERROR(VLOOKUP(CU$6&\"-\"&$M18&\"_old\",Ammortamento_Finanziario!$H:$L,5,FALSE),VLOOKUP($M18,TT_Tabelle_Riferimento!$H$31:$I$50,2,FALSE))","v":10},{"$f":"+IFERROR(VLOOKUP(CV$6&\"-\"&$M18&\"_old\",Ammortamento_Finanziario!$H:$L,5,FALSE),VLOOKUP($M18,TT_Tabelle_Riferimento!$H$31:$I$50,2,FALSE))","v":10},{"$f":"+IFERROR(VLOOKUP(CW$6&\"-\"&$M18&\"_old\",Ammortamento_Finanziario!$H:$L,5,FALSE),VLOOKUP($M18,TT_Tabelle_Riferimento!$H$31:$I$50,2,FALSE))","v":10},{"$f":"+IFERROR(VLOOKUP(CX$6&\"-\"&$M18&\"_old\",Ammortamento_Finanziario!$H:$L,5,FALSE),VLOOKUP($M18,TT_Tabelle_Riferimento!$H$31:$I$50,2,FALSE))","v":10},{"$f":"+IFERROR(VLOOKUP(CY$6&\"-\"&$M18&\"_old\",Ammortamento_Finanziario!$H:$L,5,FALSE),VLOOKUP($M18,TT_Tabelle_Riferimento!$H$31:$I$50,2,FALSE))","v":10},{"$f":"+IFERROR(VLOOKUP(CZ$6&\"-\"&$M18&\"_old\",Ammortamento_Finanziario!$H:$L,5,FALSE),VLOOKUP($M18,TT_Tabelle_Riferimento!$H$31:$I$50,2,FALSE))","v":10},{"$f":"+IFERROR(VLOOKUP(DA$6&\"-\"&$M18&\"_old\",Ammortamento_Finanziario!$H:$L,5,FALSE),VLOOKUP($M18,TT_Tabelle_Riferimento!$H$31:$I$50,2,FALSE))","v":10},{"$f":"+IFERROR(VLOOKUP(DB$6&\"-\"&$M18&\"_old\",Ammortamento_Finanziario!$H:$L,5,FALSE),VLOOKUP($M18,TT_Tabelle_Riferimento!$H$31:$I$50,2,FALSE))","v":10},{"$f":"+IFERROR(VLOOKUP(DC$6&\"-\"&$M18&\"_old\",Ammortamento_Finanziario!$H:$L,5,FALSE),VLOOKUP($M18,TT_Tabelle_Riferimento!$H$31:$I$50,2,FALSE))","v":10},{"$f":"+IFERROR(VLOOKUP(DD$6&\"-\"&$M18&\"_old\",Ammortamento_Finanziario!$H:$L,5,FALSE),VLOOKUP($M18,TT_Tabelle_Riferimento!$H$31:$I$50,2,FALSE))","v":10},{"$f":"+IFERROR(VLOOKUP(DE$6&\"-\"&$M18&\"_old\",Ammortamento_Finanziario!$H:$L,5,FALSE),VLOOKUP($M18,TT_Tabelle_Riferimento!$H$31:$I$50,2,FALSE))","v":10},{"$f":"+IFERROR(VLOOKUP(DF$6&\"-\"&$M18&\"_old\",Ammortamento_Finanziario!$H:$L,5,FALSE),VLOOKUP($M18,TT_Tabelle_Riferimento!$H$31:$I$50,2,FALSE))","v":10},{"$f":"+IFERROR(VLOOKUP(DG$6&\"-\"&$M18&\"_old\",Ammortamento_Finanziario!$H:$L,5,FALSE),VLOOKUP($M18,TT_Tabelle_Riferimento!$H$31:$I$50,2,FALSE))","v":10},{"$f":"+IFERROR(VLOOKUP(DH$6&\"-\"&$M18&\"_old\",Ammortamento_Finanziario!$H:$L,5,FALSE),VLOOKUP($M18,TT_Tabelle_Riferimento!$H$31:$I$50,2,FALSE))","v":10},{"$f":"+IFERROR(VLOOKUP(DI$6&\"-\"&$M18&\"_old\",Ammortamento_Finanziario!$H:$L,5,FALSE),VLOOKUP($M18,TT_Tabelle_Riferimento!$H$31:$I$50,2,FALSE))","v":10},{"$f":"+IFERROR(VLOOKUP(DJ$6&\"-\"&$M18&\"_old\",Ammortamento_Finanziario!$H:$L,5,FALSE),VLOOKUP($M18,TT_Tabelle_Riferimento!$H$31:$I$50,2,FALSE))","v":10},{"$f":"+IFERROR(VLOOKUP(DK$6&\"-\"&$M18&\"_old\",Ammortamento_Finanziario!$H:$L,5,FALSE),VLOOKUP($M18,TT_Tabelle_Riferimento!$H$31:$I$50,2,FALSE))","v":10},{"$f":"+IFERROR(VLOOKUP(DL$6&\"-\"&$M18&\"_old\",Ammortamento_Finanziario!$H:$L,5,FALSE),VLOOKUP($M18,TT_Tabelle_Riferimento!$H$31:$I$50,2,FALSE))","v":10},{"$f":"+IFERROR(VLOOKUP(DM$6&\"-\"&$M18&\"_old\",Ammortamento_Finanziario!$H:$L,5,FALSE),VLOOKUP($M18,TT_Tabelle_Riferimento!$H$31:$I$50,2,FALSE))","v":10},{"$f":"+IFERROR(VLOOKUP(DN$6&\"-\"&$M18&\"_old\",Ammortamento_Finanziario!$H:$L,5,FALSE),VLOOKUP($M18,TT_Tabelle_Riferimento!$H$31:$I$50,2,FALSE))","v":10},{"$f":"+IFERROR(VLOOKUP(DO$6&\"-\"&$M18&\"_old\",Ammortamento_Finanziario!$H:$L,5,FALSE),VLOOKUP($M18,TT_Tabelle_Riferimento!$H$31:$I$50,2,FALSE))","v":10},{"$f":"+IFERROR(VLOOKUP(DP$6&\"-\"&$M18&\"_old\",Ammortamento_Finanziario!$H:$L,5,FALSE),VLOOKUP($M18,TT_Tabelle_Riferimento!$H$31:$I$50,2,FALSE))","v":10},{"$f":"+IFERROR(VLOOKUP(DQ$6&\"-\"&$M18&\"_old\",Ammortamento_Finanziario!$H:$L,5,FALSE),VLOOKUP($M18,TT_Tabelle_Riferimento!$H$31:$I$50,2,FALSE))","v":10},{"$f":"+IFERROR(VLOOKUP(DR$6&\"-\"&$M18&\"_old\",Ammortamento_Finanziario!$H:$L,5,FALSE),VLOOKUP($M18,TT_Tabelle_Riferimento!$H$31:$I$50,2,FALSE))","v":10},{"$f":"+IFERROR(VLOOKUP(DS$6&\"-\"&$M18&\"_old\",Ammortamento_Finanziario!$H:$L,5,FALSE),VLOOKUP($M18,TT_Tabelle_Riferimento!$H$31:$I$50,2,FALSE))","v":10},{"$f":"+IFERROR(VLOOKUP(DT$6&\"-\"&$M18&\"_old\",Ammortamento_Finanziario!$H:$L,5,FALSE),VLOOKUP($M18,TT_Tabelle_Riferimento!$H$31:$I$50,2,FALSE))","v":10},{"$f":"+IFERROR(VLOOKUP(DU$6&\"-\"&$M18&\"_old\",Ammortamento_Finanziario!$H:$L,5,FALSE),VLOOKUP($M18,TT_Tabelle_Riferimento!$H$31:$I$50,2,FALSE))","v":10},{"$f":"+IFERROR(VLOOKUP(DV$6&\"-\"&$M18&\"_old\",Ammortamento_Finanziario!$H:$L,5,FALSE),VLOOKUP($M18,TT_Tabelle_Riferimento!$H$31:$I$50,2,FALSE))","v":10},{"$f":"+IFERROR(VLOOKUP(DW$6&\"-\"&$M18&\"_old\",Ammortamento_Finanziario!$H:$L,5,FALSE),VLOOKUP($M18,TT_Tabelle_Riferimento!$H$31:$I$50,2,FALSE))","v":10},{"$f":"+IFERROR(VLOOKUP(DX$6&\"-\"&$M18&\"_old\",Ammortamento_Finanziario!$H:$L,5,FALSE),VLOOKUP($M18,TT_Tabelle_Riferimento!$H$31:$I$50,2,FALSE))","v":10},{"$f":"+IFERROR(VLOOKUP(DY$6&\"-\"&$M18&\"_old\",Ammortamento_Finanziario!$H:$L,5,FALSE),VLOOKUP($M18,TT_Tabelle_Riferimento!$H$31:$I$50,2,FALSE))","v":10},{"$f":"+IFERROR(VLOOKUP(DZ$6&\"-\"&$M18&\"_old\",Ammortamento_Finanziario!$H:$L,5,FALSE),VLOOKUP($M18,TT_Tabelle_Riferimento!$H$31:$I$50,2,FALSE))","v":10},{"$f":"+IFERROR(VLOOKUP(EA$6&\"-\"&$M18&\"_old\",Ammortamento_Finanziario!$H:$L,5,FALSE),VLOOKUP($M18,TT_Tabelle_Riferimento!$H$31:$I$50,2,FALSE))","v":10},{"$f":"+IFERROR(VLOOKUP(EB$6&\"-\"&$M18&\"_old\",Ammortamento_Finanziario!$H:$L,5,FALSE),VLOOKUP($M18,TT_Tabelle_Riferimento!$H$31:$I$50,2,FALSE))","v":10},{"$f":"+IFERROR(VLOOKUP(EC$6&\"-\"&$M18&\"_old\",Ammortamento_Finanziario!$H:$L,5,FALSE),VLOOKUP($M18,TT_Tabelle_Riferimento!$H$31:$I$50,2,FALSE))","v":10},{"$f":"+IFERROR(VLOOKUP(ED$6&\"-\"&$M18&\"_old\",Ammortamento_Finanziario!$H:$L,5,FALSE),VLOOKUP($M18,TT_Tabelle_Riferimento!$H$31:$I$50,2,FALSE))","v":10},{"$f":"+IFERROR(VLOOKUP(EE$6&\"-\"&$M18&\"_old\",Ammortamento_Finanziario!$H:$L,5,FALSE),VLOOKUP($M18,TT_Tabelle_Riferimento!$H$31:$I$50,2,FALSE))","v":10},{"$f":"+IFERROR(VLOOKUP(EF$6&\"-\"&$M18&\"_old\",Ammortamento_Finanziario!$H:$L,5,FALSE),VLOOKUP($M18,TT_Tabelle_Riferimento!$H$31:$I$50,2,FALSE))","v":10},{"$f":"+IFERROR(VLOOKUP(EG$6&\"-\"&$M18&\"_old\",Ammortamento_Finanziario!$H:$L,5,FALSE),VLOOKUP($M18,TT_Tabelle_Riferimento!$H$31:$I$50,2,FALSE))","v":10},{"$f":"+IFERROR(VLOOKUP(EH$6&\"-\"&$M18&\"_old\",Ammortamento_Finanziario!$H:$L,5,FALSE),VLOOKUP($M18,TT_Tabelle_Riferimento!$H$31:$I$50,2,FALSE))","v":10},{"$f":"+IFERROR(VLOOKUP(EI$6&\"-\"&$M18&\"_old\",Ammortamento_Finanziario!$H:$L,5,FALSE),VLOOKUP($M18,TT_Tabelle_Riferimento!$H$31:$I$50,2,FALSE))","v":10},{"$f":"+IFERROR(VLOOKUP(EJ$6&\"-\"&$M18&\"_old\",Ammortamento_Finanziario!$H:$L,5,FALSE),VLOOKUP($M18,TT_Tabelle_Riferimento!$H$31:$I$50,2,FALSE))","v":10},{"$f":"+IFERROR(VLOOKUP(EK$6&\"-\"&$M18&\"_old\",Ammortamento_Finanziario!$H:$L,5,FALSE),VLOOKUP($M18,TT_Tabelle_Riferimento!$H$31:$I$50,2,FALSE))","v":10},{"$f":"+IFERROR(VLOOKUP(EL$6&\"-\"&$M18&\"_old\",Ammortamento_Finanziario!$H:$L,5,FALSE),VLOOKUP($M18,TT_Tabelle_Riferimento!$H$31:$I$50,2,FALSE))","v":10},{"$f":"+IFERROR(VLOOKUP(EM$6&\"-\"&$M18&\"_old\",Ammortamento_Finanziario!$H:$L,5,FALSE),VLOOKUP($M18,TT_Tabelle_Riferimento!$H$31:$I$50,2,FALSE))","v":10},{"$f":"+IFERROR(VLOOKUP(EN$6&\"-\"&$M18&\"_old\",Ammortamento_Finanziario!$H:$L,5,FALSE),VLOOKUP($M18,TT_Tabelle_Riferimento!$H$31:$I$50,2,FALSE))","v":10},{"$f":"+IFERROR(VLOOKUP(EO$6&\"-\"&$M18&\"_old\",Ammortamento_Finanziario!$H:$L,5,FALSE),VLOOKUP($M18,TT_Tabelle_Riferimento!$H$31:$I$50,2,FALSE))","v":10},{"$f":"+IFERROR(VLOOKUP(EP$6&\"-\"&$M18&\"_old\",Ammortamento_Finanziario!$H:$L,5,FALSE),VLOOKUP($M18,TT_Tabelle_Riferimento!$H$31:$I$50,2,FALSE))","v":10},{"$f":"+IFERROR(VLOOKUP(EQ$6&\"-\"&$M18&\"_old\",Ammortamento_Finanziario!$H:$L,5,FALSE),VLOOKUP($M18,TT_Tabelle_Riferimento!$H$31:$I$50,2,FALSE))","v":10},{"$f":"+IFERROR(VLOOKUP(ER$6&\"-\"&$M18&\"_old\",Ammortamento_Finanziario!$H:$L,5,FALSE),VLOOKUP($M18,TT_Tabelle_Riferimento!$H$31:$I$50,2,FALSE))","v":10},{"$f":"+IFERROR(VLOOKUP(ES$6&\"-\"&$M18&\"_old\",Ammortamento_Finanziario!$H:$L,5,FALSE),VLOOKUP($M18,TT_Tabelle_Riferimento!$H$31:$I$50,2,FALSE))","v":10},{"$f":"+IFERROR(VLOOKUP(ET$6&\"-\"&$M18&\"_old\",Ammortamento_Finanziario!$H:$L,5,FALSE),VLOOKUP($M18,TT_Tabelle_Riferimento!$H$31:$I$50,2,FALSE))","v":10},{"$f":"+IFERROR(VLOOKUP(EU$6&\"-\"&$M18&\"_old\",Ammortamento_Finanziario!$H:$L,5,FALSE),VLOOKUP($M18,TT_Tabelle_Riferimento!$H$31:$I$50,2,FALSE))","v":10},{"$f":"+IFERROR(VLOOKUP(EV$6&\"-\"&$M18&\"_old\",Ammortamento_Finanziario!$H:$L,5,FALSE),VLOOKUP($M18,TT_Tabelle_Riferimento!$H$31:$I$50,2,FALSE))","v":10},{"$f":"+IFERROR(VLOOKUP(EW$6&\"-\"&$M18&\"_old\",Ammortamento_Finanziario!$H:$L,5,FALSE),VLOOKUP($M18,TT_Tabelle_Riferimento!$H$31:$I$50,2,FALSE))","v":10},{"$f":"+IFERROR(VLOOKUP(EX$6&\"-\"&$M18&\"_old\",Ammortamento_Finanziario!$H:$L,5,FALSE),VLOOKUP($M18,TT_Tabelle_Riferimento!$H$31:$I$50,2,FALSE))","v":10},{"$f":"+IFERROR(VLOOKUP(EY$6&\"-\"&$M18&\"_old\",Ammortamento_Finanziario!$H:$L,5,FALSE),VLOOKUP($M18,TT_Tabelle_Riferimento!$H$31:$I$50,2,FALSE))","v":10},{"$f":"+IFERROR(VLOOKUP(EZ$6&\"-\"&$M18&\"_old\",Ammortamento_Finanziario!$H:$L,5,FALSE),VLOOKUP($M18,TT_Tabelle_Riferimento!$H$31:$I$50,2,FALSE))","v":10},{"$f":"+IFERROR(VLOOKUP(FA$6&\"-\"&$M18&\"_old\",Ammortamento_Finanziario!$H:$L,5,FALSE),VLOOKUP($M18,TT_Tabelle_Riferimento!$H$31:$I$50,2,FALSE))","v":10},{"$f":"+IFERROR(VLOOKUP(FB$6&\"-\"&$M18&\"_old\",Ammortamento_Finanziario!$H:$L,5,FALSE),VLOOKUP($M18,TT_Tabelle_Riferimento!$H$31:$I$50,2,FALSE))","v":10},{"$f":"+IFERROR(VLOOKUP(FC$6&\"-\"&$M18&\"_old\",Ammortamento_Finanziario!$H:$L,5,FALSE),VLOOKUP($M18,TT_Tabelle_Riferimento!$H$31:$I$50,2,FALSE))","v":10},{"$f":"+IFERROR(VLOOKUP(FD$6&\"-\"&$M18&\"_old\",Ammortamento_Finanziario!$H:$L,5,FALSE),VLOOKUP($M18,TT_Tabelle_Riferimento!$H$31:$I$50,2,FALSE))","v":10},{"$f":"+IFERROR(VLOOKUP(FE$6&\"-\"&$M18&\"_old\",Ammortamento_Finanziario!$H:$L,5,FALSE),VLOOKUP($M18,TT_Tabelle_Riferimento!$H$31:$I$50,2,FALSE))","v":10},{"$f":"+IFERROR(VLOOKUP(FF$6&\"-\"&$M18&\"_old\",Ammortamento_Finanziario!$H:$L,5,FALSE),VLOOKUP($M18,TT_Tabelle_Riferimento!$H$31:$I$50,2,FALSE))","v":10},{"$f":"+IFERROR(VLOOKUP(FG$6&\"-\"&$M18&\"_old\",Ammortamento_Finanziario!$H:$L,5,FALSE),VLOOKUP($M18,TT_Tabelle_Riferimento!$H$31:$I$50,2,FALSE))","v":10},{"$f":"+IFERROR(VLOOKUP(FH$6&\"-\"&$M18&\"_old\",Ammortamento_Finanziario!$H:$L,5,FALSE),VLOOKUP($M18,TT_Tabelle_Riferimento!$H$31:$I$50,2,FALSE))","v":10},{"$f":"+IFERROR(VLOOKUP(FI$6&\"-\"&$M18&\"_old\",Ammortamento_Finanziario!$H:$L,5,FALSE),VLOOKUP($M18,TT_Tabelle_Riferimento!$H$31:$I$50,2,FALSE))","v":10},{"$f":"+IFERROR(VLOOKUP(FJ$6&\"-\"&$M18&\"_old\",Ammortamento_Finanziario!$H:$L,5,FALSE),VLOOKUP($M18,TT_Tabelle_Riferimento!$H$31:$I$50,2,FALSE))","v":10},{"$f":"+IFERROR(VLOOKUP(FK$6&\"-\"&$M18&\"_old\",Ammortamento_Finanziario!$H:$L,5,FALSE),VLOOKUP($M18,TT_Tabelle_Riferimento!$H$31:$I$50,2,FALSE))","v":10},{"$f":"+IFERROR(VLOOKUP(FL$6&\"-\"&$M18&\"_old\",Ammortamento_Finanziario!$H:$L,5,FALSE),VLOOKUP($M18,TT_Tabelle_Riferimento!$H$31:$I$50,2,FALSE))","v":10},{"$f":"+IFERROR(VLOOKUP(FM$6&\"-\"&$M18&\"_old\",Ammortamento_Finanziario!$H:$L,5,FALSE),VLOOKUP($M18,TT_Tabelle_Riferimento!$H$31:$I$50,2,FALSE))","v":10},{"$f":"+IFERROR(VLOOKUP(FN$6&\"-\"&$M18&\"_old\",Ammortamento_Finanziario!$H:$L,5,FALSE),VLOOKUP($M18,TT_Tabelle_Riferimento!$H$31:$I$50,2,FALSE))","v":10},{"$f":"+IFERROR(VLOOKUP(FO$6&\"-\"&$M18&\"_old\",Ammortamento_Finanziario!$H:$L,5,FALSE),VLOOKUP($M18,TT_Tabelle_Riferimento!$H$31:$I$50,2,FALSE))","v":10},{"$f":"+IFERROR(VLOOKUP(FP$6&\"-\"&$M18&\"_old\",Ammortamento_Finanziario!$H:$L,5,FALSE),VLOOKUP($M18,TT_Tabelle_Riferimento!$H$31:$I$50,2,FALSE))","v":10},{"$f":"+IFERROR(VLOOKUP(FQ$6&\"-\"&$M18&\"_old\",Ammortamento_Finanziario!$H:$L,5,FALSE),VLOOKUP($M18,TT_Tabelle_Riferimento!$H$31:$I$50,2,FALSE))","v":10},{"$f":"+IFERROR(VLOOKUP(FR$6&\"-\"&$M18&\"_old\",Ammortamento_Finanziario!$H:$L,5,FALSE),VLOOKUP($M18,TT_Tabelle_Riferimento!$H$31:$I$50,2,FALSE))","v":10},{"$f":"+IFERROR(VLOOKUP(FS$6&\"-\"&$M18&\"_old\",Ammortamento_Finanziario!$H:$L,5,FALSE),VLOOKUP($M18,TT_Tabelle_Riferimento!$H$31:$I$50,2,FALSE))","v":10},{"$f":"+IFERROR(VLOOKUP(FT$6&\"-\"&$M18&\"_old\",Ammortamento_Finanziario!$H:$L,5,FALSE),VLOOKUP($M18,TT_Tabelle_Riferimento!$H$31:$I$50,2,FALSE))","v":10},{"$f":"+IFERROR(VLOOKUP(FU$6&\"-\"&$M18&\"_old\",Ammortamento_Finanziario!$H:$L,5,FALSE),VLOOKUP($M18,TT_Tabelle_Riferimento!$H$31:$I$50,2,FALSE))","v":10},{"$f":"+IFERROR(VLOOKUP(FV$6&\"-\"&$M18&\"_old\",Ammortamento_Finanziario!$H:$L,5,FALSE),VLOOKUP($M18,TT_Tabelle_Riferimento!$H$31:$I$50,2,FALSE))","v":10},{"$f":"+IFERROR(VLOOKUP(FW$6&\"-\"&$M18&\"_old\",Ammortamento_Finanziario!$H:$L,5,FALSE),VLOOKUP($M18,TT_Tabelle_Riferimento!$H$31:$I$50,2,FALSE))","v":10},{"$f":"+IFERROR(VLOOKUP(FX$6&\"-\"&$M18&\"_old\",Ammortamento_Finanziario!$H:$L,5,FALSE),VLOOKUP($M18,TT_Tabelle_Riferimento!$H$31:$I$50,2,FALSE))","v":10},{"$f":"+IFERROR(VLOOKUP(FY$6&\"-\"&$M18&\"_old\",Ammortamento_Finanziario!$H:$L,5,FALSE),VLOOKUP($M18,TT_Tabelle_Riferimento!$H$31:$I$50,2,FALSE))","v":10},{"$f":"+IFERROR(VLOOKUP(FZ$6&\"-\"&$M18&\"_old\",Ammortamento_Finanziario!$H:$L,5,FALSE),VLOOKUP($M18,TT_Tabelle_Riferimento!$H$31:$I$50,2,FALSE))","v":10},{"$f":"+IFERROR(VLOOKUP(GA$6&\"-\"&$M18&\"_old\",Ammortamento_Finanziario!$H:$L,5,FALSE),VLOOKUP($M18,TT_Tabelle_Riferimento!$H$31:$I$50,2,FALSE))","v":10},{"$f":"+IFERROR(VLOOKUP(GB$6&\"-\"&$M18&\"_old\",Ammortamento_Finanziario!$H:$L,5,FALSE),VLOOKUP($M18,TT_Tabelle_Riferimento!$H$31:$I$50,2,FALSE))","v":10},{"$f":"+IFERROR(VLOOKUP(GC$6&\"-\"&$M18&\"_old\",Ammortamento_Finanziario!$H:$L,5,FALSE),VLOOKUP($M18,TT_Tabelle_Riferimento!$H$31:$I$50,2,FALSE))","v":10},{"$f":"+IFERROR(VLOOKUP(GD$6&\"-\"&$M18&\"_old\",Ammortamento_Finanziario!$H:$L,5,FALSE),VLOOKUP($M18,TT_Tabelle_Riferimento!$H$31:$I$50,2,FALSE))","v":10},{"$f":"+IFERROR(VLOOKUP(GE$6&\"-\"&$M18&\"_old\",Ammortamento_Finanziario!$H:$L,5,FALSE),VLOOKUP($M18,TT_Tabelle_Riferimento!$H$31:$I$50,2,FALSE))","v":10},{"$f":"+IFERROR(VLOOKUP(GF$6&\"-\"&$M18&\"_old\",Ammortamento_Finanziario!$H:$L,5,FALSE),VLOOKUP($M18,TT_Tabelle_Riferimento!$H$31:$I$50,2,FALSE))","v":10},{"$f":"+IFERROR(VLOOKUP(GG$6&\"-\"&$M18&\"_old\",Ammortamento_Finanziario!$H:$L,5,FALSE),VLOOKUP($M18,TT_Tabelle_Riferimento!$H$31:$I$50,2,FALSE))","v":10},{"$f":"+IFERROR(VLOOKUP(GH$6&\"-\"&$M18&\"_old\",Ammortamento_Finanziario!$H:$L,5,FALSE),VLOOKUP($M18,TT_Tabelle_Riferimento!$H$31:$I$50,2,FALSE))","v":10},{"$f":"+IFERROR(VLOOKUP(GI$6&\"-\"&$M18&\"_old\",Ammortamento_Finanziario!$H:$L,5,FALSE),VLOOKUP($M18,TT_Tabelle_Riferimento!$H$31:$I$50,2,FALSE))","v":10},{"$f":"+IFERROR(VLOOKUP(GJ$6&\"-\"&$M18&\"_old\",Ammortamento_Finanziario!$H:$L,5,FALSE),VLOOKUP($M18,TT_Tabelle_Riferimento!$H$31:$I$50,2,FALSE))","v":10},{"$f":"+IFERROR(VLOOKUP(GK$6&\"-\"&$M18&\"_old\",Ammortamento_Finanziario!$H:$L,5,FALSE),VLOOKUP($M18,TT_Tabelle_Riferimento!$H$31:$I$50,2,FALSE))","v":10},{"$f":"+IFERROR(VLOOKUP(GL$6&\"-\"&$M18&\"_old\",Ammortamento_Finanziario!$H:$L,5,FALSE),VLOOKUP($M18,TT_Tabelle_Riferimento!$H$31:$I$50,2,FALSE))","v":10},{"$f":"+IFERROR(VLOOKUP(GM$6&\"-\"&$M18&\"_old\",Ammortamento_Finanziario!$H:$L,5,FALSE),VLOOKUP($M18,TT_Tabelle_Riferimento!$H$31:$I$50,2,FALSE))","v":10},{"$f":"+IFERROR(VLOOKUP(GN$6&\"-\"&$M18&\"_old\",Ammortamento_Finanziario!$H:$L,5,FALSE),VLOOKUP($M18,TT_Tabelle_Riferimento!$H$31:$I$50,2,FALSE))","v":10},{"$f":"+IFERROR(VLOOKUP(GO$6&\"-\"&$M18&\"_old\",Ammortamento_Finanziario!$H:$L,5,FALSE),VLOOKUP($M18,TT_Tabelle_Riferimento!$H$31:$I$50,2,FALSE))","v":10},{"$f":"+IFERROR(VLOOKUP(GP$6&\"-\"&$M18&\"_old\",Ammortamento_Finanziario!$H:$L,5,FALSE),VLOOKUP($M18,TT_Tabelle_Riferimento!$H$31:$I$50,2,FALSE))","v":10},{"$f":"+IFERROR(VLOOKUP(GQ$6&\"-\"&$M18&\"_old\",Ammortamento_Finanziario!$H:$L,5,FALSE),VLOOKUP($M18,TT_Tabelle_Riferimento!$H$31:$I$50,2,FALSE))","v":10},{"$f":"+IFERROR(VLOOKUP(GR$6&\"-\"&$M18&\"_old\",Ammortamento_Finanziario!$H:$L,5,FALSE),VLOOKUP($M18,TT_Tabelle_Riferimento!$H$31:$I$50,2,FALSE))","v":10},{"$f":"+IFERROR(VLOOKUP(GS$6&\"-\"&$M18&\"_old\",Ammortamento_Finanziario!$H:$L,5,FALSE),VLOOKUP($M18,TT_Tabelle_Riferimento!$H$31:$I$50,2,FALSE))","v":10},{"$f":"+IFERROR(VLOOKUP(GT$6&\"-\"&$M18&\"_old\",Ammortamento_Finanziario!$H:$L,5,FALSE),VLOOKUP($M18,TT_Tabelle_Riferimento!$H$31:$I$50,2,FALSE))","v":10},{"$f":"+IFERROR(VLOOKUP(GU$6&\"-\"&$M18&\"_old\",Ammortamento_Finanziario!$H:$L,5,FALSE),VLOOKUP($M18,TT_Tabelle_Riferimento!$H$31:$I$50,2,FALSE))","v":10},{"$f":"+IFERROR(VLOOKUP(GV$6&\"-\"&$M18&\"_old\",Ammortamento_Finanziario!$H:$L,5,FALSE),VLOOKUP($M18,TT_Tabelle_Riferimento!$H$31:$I$50,2,FALSE))","v":10},{"$f":"+IFERROR(VLOOKUP(GW$6&\"-\"&$M18&\"_old\",Ammortamento_Finanziario!$H:$L,5,FALSE),VLOOKUP($M18,TT_Tabelle_Riferimento!$H$31:$I$50,2,FALSE))","v":10},{"$f":"+IFERROR(VLOOKUP(GX$6&\"-\"&$M18&\"_old\",Ammortamento_Finanziario!$H:$L,5,FALSE),VLOOKUP($M18,TT_Tabelle_Riferimento!$H$31:$I$50,2,FALSE))","v":10},{"$f":"+IFERROR(VLOOKUP(GY$6&\"-\"&$M18&\"_old\",Ammortamento_Finanziario!$H:$L,5,FALSE),VLOOKUP($M18,TT_Tabelle_Riferimento!$H$31:$I$50,2,FALSE))","v":10},{"$f":"+IFERROR(VLOOKUP(GZ$6&\"-\"&$M18&\"_old\",Ammortamento_Finanziario!$H:$L,5,FALSE),VLOOKUP($M18,TT_Tabelle_Riferimento!$H$31:$I$50,2,FALSE))","v":10},{"$f":"+IFERROR(VLOOKUP(HA$6&\"-\"&$M18&\"_old\",Ammortamento_Finanziario!$H:$L,5,FALSE),VLOOKUP($M18,TT_Tabelle_Riferimento!$H$31:$I$50,2,FALSE))","v":10},{"$f":"+IFERROR(VLOOKUP(HB$6&\"-\"&$M18&\"_old\",Ammortamento_Finanziario!$H:$L,5,FALSE),VLOOKUP($M18,TT_Tabelle_Riferimento!$H$31:$I$50,2,FALSE))","v":10},{"$f":"+IFERROR(VLOOKUP(HC$6&\"-\"&$M18&\"_old\",Ammortamento_Finanziario!$H:$L,5,FALSE),VLOOKUP($M18,TT_Tabelle_Riferimento!$H$31:$I$50,2,FALSE))","v":10},{"$f":"+IFERROR(VLOOKUP(HD$6&\"-\"&$M18&\"_old\",Ammortamento_Finanziario!$H:$L,5,FALSE),VLOOKUP($M18,TT_Tabelle_Riferimento!$H$31:$I$50,2,FALSE))","v":10},{"$f":"+IFERROR(VLOOKUP(HE$6&\"-\"&$M18&\"_old\",Ammortamento_Finanziario!$H:$L,5,FALSE),VLOOKUP($M18,TT_Tabelle_Riferimento!$H$31:$I$50,2,FALSE))","v":10},{"$f":"+IFERROR(VLOOKUP(HF$6&\"-\"&$M18&\"_old\",Ammortamento_Finanziario!$H:$L,5,FALSE),VLOOKUP($M18,TT_Tabelle_Riferimento!$H$31:$I$50,2,FALSE))","v":10},{"$f":"+IFERROR(VLOOKUP(HG$6&\"-\"&$M18&\"_old\",Ammortamento_Finanziario!$H:$L,5,FALSE),VLOOKUP($M18,TT_Tabelle_Riferimento!$H$31:$I$50,2,FALSE))","v":10},{"$f":"+IFERROR(VLOOKUP(HH$6&\"-\"&$M18&\"_old\",Ammortamento_Finanziario!$H:$L,5,FALSE),VLOOKUP($M18,TT_Tabelle_Riferimento!$H$31:$I$50,2,FALSE))","v":10},{"$f":"+IFERROR(VLOOKUP(HI$6&\"-\"&$M18&\"_old\",Ammortamento_Finanziario!$H:$L,5,FALSE),VLOOKUP($M18,TT_Tabelle_Riferimento!$H$31:$I$50,2,FALSE))","v":10},{"$f":"+IFERROR(VLOOKUP(HJ$6&\"-\"&$M18&\"_old\",Ammortamento_Finanziario!$H:$L,5,FALSE),VLOOKUP($M18,TT_Tabelle_Riferimento!$H$31:$I$50,2,FALSE))","v":10},{"$f":"+IFERROR(VLOOKUP(HK$6&\"-\"&$M18&\"_old\",Ammortamento_Finanziario!$H:$L,5,FALSE),VLOOKUP($M18,TT_Tabelle_Riferimento!$H$31:$I$50,2,FALSE))","v":10},{"$f":"+IFERROR(VLOOKUP(HL$6&\"-\"&$M18&\"_old\",Ammortamento_Finanziario!$H:$L,5,FALSE),VLOOKUP($M18,TT_Tabelle_Riferimento!$H$31:$I$50,2,FALSE))","v":10},{"$f":"+IFERROR(VLOOKUP(HM$6&\"-\"&$M18&\"_old\",Ammortamento_Finanziario!$H:$L,5,FALSE),VLOOKUP($M18,TT_Tabelle_Riferimento!$H$31:$I$50,2,FALSE))","v":10},{"$f":"+IFERROR(VLOOKUP(HN$6&\"-\"&$M18&\"_old\",Ammortamento_Finanziario!$H:$L,5,FALSE),VLOOKUP($M18,TT_Tabelle_Riferimento!$H$31:$I$50,2,FALSE))","v":10},{"$f":"+IFERROR(VLOOKUP(HO$6&\"-\"&$M18&\"_old\",Ammortamento_Finanziario!$H:$L,5,FALSE),VLOOKUP($M18,TT_Tabelle_Riferimento!$H$31:$I$50,2,FALSE))","v":10},{"$f":"+IFERROR(VLOOKUP(HP$6&\"-\"&$M18&\"_old\",Ammortamento_Finanziario!$H:$L,5,FALSE),VLOOKUP($M18,TT_Tabelle_Riferimento!$H$31:$I$50,2,FALSE))","v":10},{"$f":"+IFERROR(VLOOKUP(HQ$6&\"-\"&$M18&\"_old\",Ammortamento_Finanziario!$H:$L,5,FALSE),VLOOKUP($M18,TT_Tabelle_Riferimento!$H$31:$I$50,2,FALSE))","v":10},{"$f":"+IFERROR(VLOOKUP(HR$6&\"-\"&$M18&\"_old\",Ammortamento_Finanziario!$H:$L,5,FALSE),VLOOKUP($M18,TT_Tabelle_Riferimento!$H$31:$I$50,2,FALSE))","v":10},{"$f":"+IFERROR(VLOOKUP(HS$6&\"-\"&$M18&\"_old\",Ammortamento_Finanziario!$H:$L,5,FALSE),VLOOKUP($M18,TT_Tabelle_Riferimento!$H$31:$I$50,2,FALSE))","v":10},{"$f":"+IFERROR(VLOOKUP(HT$6&\"-\"&$M18&\"_old\",Ammortamento_Finanziario!$H:$L,5,FALSE),VLOOKUP($M18,TT_Tabelle_Riferimento!$H$31:$I$50,2,FALSE))","v":10},{"$f":"+IFERROR(VLOOKUP(HU$6&\"-\"&$M18&\"_old\",Ammortamento_Finanziario!$H:$L,5,FALSE),VLOOKUP($M18,TT_Tabelle_Riferimento!$H$31:$I$50,2,FALSE))","v":10},{"$f":"+IFERROR(VLOOKUP(HV$6&\"-\"&$M18&\"_old\",Ammortamento_Finanziario!$H:$L,5,FALSE),VLOOKUP($M18,TT_Tabelle_Riferimento!$H$31:$I$50,2,FALSE))","v":10},{"$f":"+IFERROR(VLOOKUP(HW$6&\"-\"&$M18&\"_old\",Ammortamento_Finanziario!$H:$L,5,FALSE),VLOOKUP($M18,TT_Tabelle_Riferimento!$H$31:$I$50,2,FALSE))","v":10},{"$f":"+IFERROR(VLOOKUP(HX$6&\"-\"&$M18&\"_old\",Ammortamento_Finanziario!$H:$L,5,FALSE),VLOOKUP($M18,TT_Tabelle_Riferimento!$H$31:$I$50,2,FALSE))","v":10},{"$f":"+IFERROR(VLOOKUP(HY$6&\"-\"&$M18&\"_old\",Ammortamento_Finanziario!$H:$L,5,FALSE),VLOOKUP($M18,TT_Tabelle_Riferimento!$H$31:$I$50,2,FALSE))","v":10},{"$f":"+IFERROR(VLOOKUP(HZ$6&\"-\"&$M18&\"_old\",Ammortamento_Finanziario!$H:$L,5,FALSE),VLOOKUP($M18,TT_Tabelle_Riferimento!$H$31:$I$50,2,FALSE))","v":10},{"$f":"+IFERROR(VLOOKUP(IA$6&\"-\"&$M18&\"_old\",Ammortamento_Finanziario!$H:$L,5,FALSE),VLOOKUP($M18,TT_Tabelle_Riferimento!$H$31:$I$50,2,FALSE))","v":10},{"$f":"+IFERROR(VLOOKUP(IB$6&\"-\"&$M18&\"_old\",Ammortamento_Finanziario!$H:$L,5,FALSE),VLOOKUP($M18,TT_Tabelle_Riferimento!$H$31:$I$50,2,FALSE))","v":10},{"$f":"+IFERROR(VLOOKUP(IC$6&\"-\"&$M18&\"_old\",Ammortamento_Finanziario!$H:$L,5,FALSE),VLOOKUP($M18,TT_Tabelle_Riferimento!$H$31:$I$50,2,FALSE))","v":10},{"$f":"+IFERROR(VLOOKUP(ID$6&\"-\"&$M18&\"_old\",Ammortamento_Finanziario!$H:$L,5,FALSE),VLOOKUP($M18,TT_Tabelle_Riferimento!$H$31:$I$50,2,FALSE))","v":10},{"$f":"+IFERROR(VLOOKUP(IE$6&\"-\"&$M18&\"_old\",Ammortamento_Finanziario!$H:$L,5,FALSE),VLOOKUP($M18,TT_Tabelle_Riferimento!$H$31:$I$50,2,FALSE))","v":10},{"$f":"+IFERROR(VLOOKUP(IF$6&\"-\"&$M18&\"_old\",Ammortamento_Finanziario!$H:$L,5,FALSE),VLOOKUP($M18,TT_Tabelle_Riferimento!$H$31:$I$50,2,FALSE))","v":10},{"$f":"+IFERROR(VLOOKUP(IG$6&\"-\"&$M18&\"_old\",Ammortamento_Finanziario!$H:$L,5,FALSE),VLOOKUP($M18,TT_Tabelle_Riferimento!$H$31:$I$50,2,FALSE))","v":10},{"$f":"+IFERROR(VLOOKUP(IH$6&\"-\"&$M18&\"_old\",Ammortamento_Finanziario!$H:$L,5,FALSE),VLOOKUP($M18,TT_Tabelle_Riferimento!$H$31:$I$50,2,FALSE))","v":10},{"$f":"+IFERROR(VLOOKUP(II$6&\"-\"&$M18&\"_old\",Ammortamento_Finanziario!$H:$L,5,FALSE),VLOOKUP($M18,TT_Tabelle_Riferimento!$H$31:$I$50,2,FALSE))","v":10},{"$f":"+IFERROR(VLOOKUP(IJ$6&\"-\"&$M18&\"_old\",Ammortamento_Finanziario!$H:$L,5,FALSE),VLOOKUP($M18,TT_Tabelle_Riferimento!$H$31:$I$50,2,FALSE))","v":10},{"$f":"+IFERROR(VLOOKUP(IK$6&\"-\"&$M18&\"_old\",Ammortamento_Finanziario!$H:$L,5,FALSE),VLOOKUP($M18,TT_Tabelle_Riferimento!$H$31:$I$50,2,FALSE))","v":10},{"$f":"+IFERROR(VLOOKUP(IL$6&\"-\"&$M18&\"_old\",Ammortamento_Finanziario!$H:$L,5,FALSE),VLOOKUP($M18,TT_Tabelle_Riferimento!$H$31:$I$50,2,FALSE))","v":10},{"$f":"+IFERROR(VLOOKUP(IM$6&\"-\"&$M18&\"_old\",Ammortamento_Finanziario!$H:$L,5,FALSE),VLOOKUP($M18,TT_Tabelle_Riferimento!$H$31:$I$50,2,FALSE))","v":10},{"$f":"+IFERROR(VLOOKUP(IN$6&\"-\"&$M18&\"_old\",Ammortamento_Finanziario!$H:$L,5,FALSE),VLOOKUP($M18,TT_Tabelle_Riferimento!$H$31:$I$50,2,FALSE))","v":10},{"$f":"+IFERROR(VLOOKUP(IO$6&\"-\"&$M18&\"_old\",Ammortamento_Finanziario!$H:$L,5,FALSE),VLOOKUP($M18,TT_Tabelle_Riferimento!$H$31:$I$50,2,FALSE))","v":10},{"$f":"+IFERROR(VLOOKUP(IP$6&\"-\"&$M18&\"_old\",Ammortamento_Finanziario!$H:$L,5,FALSE),VLOOKUP($M18,TT_Tabelle_Riferimento!$H$31:$I$50,2,FALSE))","v":10},{"$f":"+IFERROR(VLOOKUP(IQ$6&\"-\"&$M18&\"_old\",Ammortamento_Finanziario!$H:$L,5,FALSE),VLOOKUP($M18,TT_Tabelle_Riferimento!$H$31:$I$50,2,FALSE))","v":10},{"$f":"+IFERROR(VLOOKUP(IR$6&\"-\"&$M18&\"_old\",Ammortamento_Finanziario!$H:$L,5,FALSE),VLOOKUP($M18,TT_Tabelle_Riferimento!$H$31:$I$50,2,FALSE))","v":10},{"$f":"+IFERROR(VLOOKUP(IS$6&\"-\"&$M18&\"_old\",Ammortamento_Finanziario!$H:$L,5,FALSE),VLOOKUP($M18,TT_Tabelle_Riferimento!$H$31:$I$50,2,FALSE))","v":10},{"$f":"+IFERROR(VLOOKUP(IT$6&\"-\"&$M18&\"_old\",Ammortamento_Finanziario!$H:$L,5,FALSE),VLOOKUP($M18,TT_Tabelle_Riferimento!$H$31:$I$50,2,FALSE))","v":10},{"$f":"+IFERROR(VLOOKUP(IU$6&\"-\"&$M18&\"_old\",Ammortamento_Finanziario!$H:$L,5,FALSE),VLOOKUP($M18,TT_Tabelle_Riferimento!$H$31:$I$50,2,FALSE))","v":10},{"$f":"+IFERROR(VLOOKUP(IV$6&\"-\"&$M18&\"_old\",Ammortamento_Finanziario!$H:$L,5,FALSE),VLOOKUP($M18,TT_Tabelle_Riferimento!$H$31:$I$50,2,FALSE))","v":10},{"$f":"+IFERROR(VLOOKUP(IW$6&\"-\"&$M18&\"_old\",Ammortamento_Finanziario!$H:$L,5,FALSE),VLOOKUP($M18,TT_Tabelle_Riferimento!$H$31:$I$50,2,FALSE))","v":10},{"$f":"+IFERROR(VLOOKUP(IX$6&\"-\"&$M18&\"_old\",Ammortamento_Finanziario!$H:$L,5,FALSE),VLOOKUP($M18,TT_Tabelle_Riferimento!$H$31:$I$50,2,FALSE))","v":10},{"$f":"+IFERROR(VLOOKUP(IY$6&\"-\"&$M18&\"_old\",Ammortamento_Finanziario!$H:$L,5,FALSE),VLOOKUP($M18,TT_Tabelle_Riferimento!$H$31:$I$50,2,FALSE))","v":10},{"$f":"+IFERROR(VLOOKUP(IZ$6&\"-\"&$M18&\"_old\",Ammortamento_Finanziario!$H:$L,5,FALSE),VLOOKUP($M18,TT_Tabelle_Riferimento!$H$31:$I$50,2,FALSE))","v":10},{"$f":"+IFERROR(VLOOKUP(JA$6&\"-\"&$M18&\"_old\",Ammortamento_Finanziario!$H:$L,5,FALSE),VLOOKUP($M18,TT_Tabelle_Riferimento!$H$31:$I$50,2,FALSE))","v":10},{"$f":"+IFERROR(VLOOKUP(JB$6&\"-\"&$M18&\"_old\",Ammortamento_Finanziario!$H:$L,5,FALSE),VLOOKUP($M18,TT_Tabelle_Riferimento!$H$31:$I$50,2,FALSE))","v":10},{"$f":"+IFERROR(VLOOKUP(JC$6&\"-\"&$M18&\"_old\",Ammortamento_Finanziario!$H:$L,5,FALSE),VLOOKUP($M18,TT_Tabelle_Riferimento!$H$31:$I$50,2,FALSE))","v":10},{"$f":"+IFERROR(VLOOKUP(JD$6&\"-\"&$M18&\"_old\",Ammortamento_Finanziario!$H:$L,5,FALSE),VLOOKUP($M18,TT_Tabelle_Riferimento!$H$31:$I$50,2,FALSE))","v":10},{"$f":"+IFERROR(VLOOKUP(JE$6&\"-\"&$M18&\"_old\",Ammortamento_Finanziario!$H:$L,5,FALSE),VLOOKUP($M18,TT_Tabelle_Riferimento!$H$31:$I$50,2,FALSE))","v":10},{"$f":"+IFERROR(VLOOKUP(JF$6&\"-\"&$M18&\"_old\",Ammortamento_Finanziario!$H:$L,5,FALSE),VLOOKUP($M18,TT_Tabelle_Riferimento!$H$31:$I$50,2,FALSE))","v":10},{"$f":"+IFERROR(VLOOKUP(JG$6&\"-\"&$M18&\"_old\",Ammortamento_Finanziario!$H:$L,5,FALSE),VLOOKUP($M18,TT_Tabelle_Riferimento!$H$31:$I$50,2,FALSE))","v":10},{"$f":"+IFERROR(VLOOKUP(JH$6&\"-\"&$M18&\"_old\",Ammortamento_Finanziario!$H:$L,5,FALSE),VLOOKUP($M18,TT_Tabelle_Riferimento!$H$31:$I$50,2,FALSE))","v":10},{"$f":"+IFERROR(VLOOKUP(JI$6&\"-\"&$M18&\"_old\",Ammortamento_Finanziario!$H:$L,5,FALSE),VLOOKUP($M18,TT_Tabelle_Riferimento!$H$31:$I$50,2,FALSE))","v":10},{"$f":"+IFERROR(VLOOKUP(JJ$6&\"-\"&$M18&\"_old\",Ammortamento_Finanziario!$H:$L,5,FALSE),VLOOKUP($M18,TT_Tabelle_Riferimento!$H$31:$I$50,2,FALSE))","v":10},{"$f":"+IFERROR(VLOOKUP(JK$6&\"-\"&$M18&\"_old\",Ammortamento_Finanziario!$H:$L,5,FALSE),VLOOKUP($M18,TT_Tabelle_Riferimento!$H$31:$I$50,2,FALSE))","v":10},{"$f":"+IFERROR(VLOOKUP(JL$6&\"-\"&$M18&\"_old\",Ammortamento_Finanziario!$H:$L,5,FALSE),VLOOKUP($M18,TT_Tabelle_Riferimento!$H$31:$I$50,2,FALSE))","v":10},{"$f":"+IFERROR(VLOOKUP(JM$6&\"-\"&$M18&\"_old\",Ammortamento_Finanziario!$H:$L,5,FALSE),VLOOKUP($M18,TT_Tabelle_Riferimento!$H$31:$I$50,2,FALSE))","v":10},{"$f":"+IFERROR(VLOOKUP(JN$6&\"-\"&$M18&\"_old\",Ammortamento_Finanziario!$H:$L,5,FALSE),VLOOKUP($M18,TT_Tabelle_Riferimento!$H$31:$I$50,2,FALSE))","v":10},{"$f":"+IFERROR(VLOOKUP(JO$6&\"-\"&$M18&\"_old\",Ammortamento_Finanziario!$H:$L,5,FALSE),VLOOKUP($M18,TT_Tabelle_Riferimento!$H$31:$I$50,2,FALSE))","v":10},{"$f":"+IFERROR(VLOOKUP(JP$6&\"-\"&$M18&\"_old\",Ammortamento_Finanziario!$H:$L,5,FALSE),VLOOKUP($M18,TT_Tabelle_Riferimento!$H$31:$I$50,2,FALSE))","v":10},{"$f":"+IFERROR(VLOOKUP(JQ$6&\"-\"&$M18&\"_old\",Ammortamento_Finanziario!$H:$L,5,FALSE),VLOOKUP($M18,TT_Tabelle_Riferimento!$H$31:$I$50,2,FALSE))","v":10},{"$f":"+IFERROR(VLOOKUP(JR$6&\"-\"&$M18&\"_old\",Ammortamento_Finanziario!$H:$L,5,FALSE),VLOOKUP($M18,TT_Tabelle_Riferimento!$H$31:$I$50,2,FALSE))","v":10},{"$f":"+IFERROR(VLOOKUP(JS$6&\"-\"&$M18&\"_old\",Ammortamento_Finanziario!$H:$L,5,FALSE),VLOOKUP($M18,TT_Tabelle_Riferimento!$H$31:$I$50,2,FALSE))","v":10},{"$f":"+IFERROR(VLOOKUP(JT$6&\"-\"&$M18&\"_old\",Ammortamento_Finanziario!$H:$L,5,FALSE),VLOOKUP($M18,TT_Tabelle_Riferimento!$H$31:$I$50,2,FALSE))","v":10},{"$f":"+IFERROR(VLOOKUP(JU$6&\"-\"&$M18&\"_old\",Ammortamento_Finanziario!$H:$L,5,FALSE),VLOOKUP($M18,TT_Tabelle_Riferimento!$H$31:$I$50,2,FALSE))","v":10},{"$f":"+IFERROR(VLOOKUP(JV$6&\"-\"&$M18&\"_old\",Ammortamento_Finanziario!$H:$L,5,FALSE),VLOOKUP($M18,TT_Tabelle_Riferimento!$H$31:$I$50,2,FALSE))","v":10},{"$f":"+IFERROR(VLOOKUP(JW$6&\"-\"&$M18&\"_old\",Ammortamento_Finanziario!$H:$L,5,FALSE),VLOOKUP($M18,TT_Tabelle_Riferimento!$H$31:$I$50,2,FALSE))","v":10},{"$f":"+IFERROR(VLOOKUP(JX$6&\"-\"&$M18&\"_old\",Ammortamento_Finanziario!$H:$L,5,FALSE),VLOOKUP($M18,TT_Tabelle_Riferimento!$H$31:$I$50,2,FALSE))","v":10},{"$f":"+IFERROR(VLOOKUP(JY$6&\"-\"&$M18&\"_old\",Ammortamento_Finanziario!$H:$L,5,FALSE),VLOOKUP($M18,TT_Tabelle_Riferimento!$H$31:$I$50,2,FALSE))","v":10},{"$f":"+IFERROR(VLOOKUP(JZ$6&\"-\"&$M18&\"_old\",Ammortamento_Finanziario!$H:$L,5,FALSE),VLOOKUP($M18,TT_Tabelle_Riferimento!$H$31:$I$50,2,FALSE))","v":10},{"$f":"+IFERROR(VLOOKUP(KA$6&\"-\"&$M18&\"_old\",Ammortamento_Finanziario!$H:$L,5,FALSE),VLOOKUP($M18,TT_Tabelle_Riferimento!$H$31:$I$50,2,FALSE))","v":10},{"$f":"+IFERROR(VLOOKUP(KB$6&\"-\"&$M18&\"_old\",Ammortamento_Finanziario!$H:$L,5,FALSE),VLOOKUP($M18,TT_Tabelle_Riferimento!$H$31:$I$50,2,FALSE))","v":10},{"$f":"+IFERROR(VLOOKUP(KC$6&\"-\"&$M18&\"_old\",Ammortamento_Finanziario!$H:$L,5,FALSE),VLOOKUP($M18,TT_Tabelle_Riferimento!$H$31:$I$50,2,FALSE))","v":10},{"$f":"+IFERROR(VLOOKUP(KD$6&\"-\"&$M18&\"_old\",Ammortamento_Finanziario!$H:$L,5,FALSE),VLOOKUP($M18,TT_Tabelle_Riferimento!$H$31:$I$50,2,FALSE))","v":10},{"$f":"+IFERROR(VLOOKUP(KE$6&\"-\"&$M18&\"_old\",Ammortamento_Finanziario!$H:$L,5,FALSE),VLOOKUP($M18,TT_Tabelle_Riferimento!$H$31:$I$50,2,FALSE))","v":10},{"$f":"+IFERROR(VLOOKUP(KF$6&\"-\"&$M18&\"_old\",Ammortamento_Finanziario!$H:$L,5,FALSE),VLOOKUP($M18,TT_Tabelle_Riferimento!$H$31:$I$50,2,FALSE))","v":10},{"$f":"+IFERROR(VLOOKUP(KG$6&\"-\"&$M18&\"_old\",Ammortamento_Finanziario!$H:$L,5,FALSE),VLOOKUP($M18,TT_Tabelle_Riferimento!$H$31:$I$50,2,FALSE))","v":10},{"$f":"+IFERROR(VLOOKUP(KH$6&\"-\"&$M18&\"_old\",Ammortamento_Finanziario!$H:$L,5,FALSE),VLOOKUP($M18,TT_Tabelle_Riferimento!$H$31:$I$50,2,FALSE))","v":10},{"$f":"+IFERROR(VLOOKUP(KI$6&\"-\"&$M18&\"_old\",Ammortamento_Finanziario!$H:$L,5,FALSE),VLOOKUP($M18,TT_Tabelle_Riferimento!$H$31:$I$50,2,FALSE))","v":10},{"$f":"+IFERROR(VLOOKUP(KJ$6&\"-\"&$M18&\"_old\",Ammortamento_Finanziario!$H:$L,5,FALSE),VLOOKUP($M18,TT_Tabelle_Riferimento!$H$31:$I$50,2,FALSE))","v":10},{"$f":"+IFERROR(VLOOKUP(KK$6&\"-\"&$M18&\"_old\",Ammortamento_Finanziario!$H:$L,5,FALSE),VLOOKUP($M18,TT_Tabelle_Riferimento!$H$31:$I$50,2,FALSE))","v":10},{"$f":"+IFERROR(VLOOKUP(KL$6&\"-\"&$M18&\"_old\",Ammortamento_Finanziario!$H:$L,5,FALSE),VLOOKUP($M18,TT_Tabelle_Riferimento!$H$31:$I$50,2,FALSE))","v":10},{"$f":"+IFERROR(VLOOKUP(KM$6&\"-\"&$M18&\"_old\",Ammortamento_Finanziario!$H:$L,5,FALSE),VLOOKUP($M18,TT_Tabelle_Riferimento!$H$31:$I$50,2,FALSE))","v":10},{"$f":"+IFERROR(VLOOKUP(KN$6&\"-\"&$M18&\"_old\",Ammortamento_Finanziario!$H:$L,5,FALSE),VLOOKUP($M18,TT_Tabelle_Riferimento!$H$31:$I$50,2,FALSE))","v":10},{"$f":"+IFERROR(VLOOKUP(KO$6&\"-\"&$M18&\"_old\",Ammortamento_Finanziario!$H:$L,5,FALSE),VLOOKUP($M18,TT_Tabelle_Riferimento!$H$31:$I$50,2,FALSE))","v":10},{"$f":"+IFERROR(VLOOKUP(KP$6&\"-\"&$M18&\"_old\",Ammortamento_Finanziario!$H:$L,5,FALSE),VLOOKUP($M18,TT_Tabelle_Riferimento!$H$31:$I$50,2,FALSE))","v":10},{"$f":"+IFERROR(VLOOKUP(KQ$6&\"-\"&$M18&\"_old\",Ammortamento_Finanziario!$H:$L,5,FALSE),VLOOKUP($M18,TT_Tabelle_Riferimento!$H$31:$I$50,2,FALSE))","v":10},{"$f":"+IFERROR(VLOOKUP(KR$6&\"-\"&$M18&\"_old\",Ammortamento_Finanziario!$H:$L,5,FALSE),VLOOKUP($M18,TT_Tabelle_Riferimento!$H$31:$I$50,2,FALSE))","v":10},{"$f":"+IFERROR(VLOOKUP(KS$6&\"-\"&$M18&\"_old\",Ammortamento_Finanziario!$H:$L,5,FALSE),VLOOKUP($M18,TT_Tabelle_Riferimento!$H$31:$I$50,2,FALSE))","v":10},{"$f":"+IFERROR(VLOOKUP(KT$6&\"-\"&$M18&\"_old\",Ammortamento_Finanziario!$H:$L,5,FALSE),VLOOKUP($M18,TT_Tabelle_Riferimento!$H$31:$I$50,2,FALSE))","v":10},{"$f":"+IFERROR(VLOOKUP(KU$6&\"-\"&$M18&\"_old\",Ammortamento_Finanziario!$H:$L,5,FALSE),VLOOKUP($M18,TT_Tabelle_Riferimento!$H$31:$I$50,2,FALSE))","v":10},{"$f":"+IFERROR(VLOOKUP(KV$6&\"-\"&$M18&\"_old\",Ammortamento_Finanziario!$H:$L,5,FALSE),VLOOKUP($M18,TT_Tabelle_Riferimento!$H$31:$I$50,2,FALSE))","v":10},{"$f":"+IFERROR(VLOOKUP(KW$6&\"-\"&$M18&\"_old\",Ammortamento_Finanziario!$H:$L,5,FALSE),VLOOKUP($M18,TT_Tabelle_Riferimento!$H$31:$I$50,2,FALSE))","v":10},{"$f":"+IFERROR(VLOOKUP(KX$6&\"-\"&$M18&\"_old\",Ammortamento_Finanziario!$H:$L,5,FALSE),VLOOKUP($M18,TT_Tabelle_Riferimento!$H$31:$I$50,2,FALSE))","v":10},{"$f":"+IFERROR(VLOOKUP(KY$6&\"-\"&$M18&\"_old\",Ammortamento_Finanziario!$H:$L,5,FALSE),VLOOKUP($M18,TT_Tabelle_Riferimento!$H$31:$I$50,2,FALSE))","v":10},{"$f":"+IFERROR(VLOOKUP(KZ$6&\"-\"&$M18&\"_old\",Ammortamento_Finanziario!$H:$L,5,FALSE),VLOOKUP($M18,TT_Tabelle_Riferimento!$H$31:$I$50,2,FALSE))","v":10},{"$f":"+IFERROR(VLOOKUP(LA$6&\"-\"&$M18&\"_old\",Ammortamento_Finanziario!$H:$L,5,FALSE),VLOOKUP($M18,TT_Tabelle_Riferimento!$H$31:$I$50,2,FALSE))","v":10},{"$f":"+IFERROR(VLOOKUP(LB$6&\"-\"&$M18&\"_old\",Ammortamento_Finanziario!$H:$L,5,FALSE),VLOOKUP($M18,TT_Tabelle_Riferimento!$H$31:$I$50,2,FALSE))","v":10},{"$f":"+IFERROR(VLOOKUP(LC$6&\"-\"&$M18&\"_old\",Ammortamento_Finanziario!$H:$L,5,FALSE),VLOOKUP($M18,TT_Tabelle_Riferimento!$H$31:$I$50,2,FALSE))","v":10},{"$f":"+IFERROR(VLOOKUP(LD$6&\"-\"&$M18&\"_old\",Ammortamento_Finanziario!$H:$L,5,FALSE),VLOOKUP($M18,TT_Tabelle_Riferimento!$H$31:$I$50,2,FALSE))","v":10},{"$f":"+IFERROR(VLOOKUP(LE$6&\"-\"&$M18&\"_old\",Ammortamento_Finanziario!$H:$L,5,FALSE),VLOOKUP($M18,TT_Tabelle_Riferimento!$H$31:$I$50,2,FALSE))","v":10},{"$f":"+IFERROR(VLOOKUP(LF$6&\"-\"&$M18&\"_old\",Ammortamento_Finanziario!$H:$L,5,FALSE),VLOOKUP($M18,TT_Tabelle_Riferimento!$H$31:$I$50,2,FALSE))","v":10},{"$f":"+IFERROR(VLOOKUP(LG$6&\"-\"&$M18&\"_old\",Ammortamento_Finanziario!$H:$L,5,FALSE),VLOOKUP($M18,TT_Tabelle_Riferimento!$H$31:$I$50,2,FALSE))","v":10},{"$f":"+IFERROR(VLOOKUP(LH$6&\"-\"&$M18&\"_old\",Ammortamento_Finanziario!$H:$L,5,FALSE),VLOOKUP($M18,TT_Tabelle_Riferimento!$H$31:$I$50,2,FALSE))","v":10},{"$f":"+IFERROR(VLOOKUP(LI$6&\"-\"&$M18&\"_old\",Ammortamento_Finanziario!$H:$L,5,FALSE),VLOOKUP($M18,TT_Tabelle_Riferimento!$H$31:$I$50,2,FALSE))","v":10},{"$f":"+IFERROR(VLOOKUP(LJ$6&\"-\"&$M18&\"_old\",Ammortamento_Finanziario!$H:$L,5,FALSE),VLOOKUP($M18,TT_Tabelle_Riferimento!$H$31:$I$50,2,FALSE))","v":10},{"$f":"+IFERROR(VLOOKUP(LK$6&\"-\"&$M18&\"_old\",Ammortamento_Finanziario!$H:$L,5,FALSE),VLOOKUP($M18,TT_Tabelle_Riferimento!$H$31:$I$50,2,FALSE))","v":10},{"$f":"+IFERROR(VLOOKUP(LL$6&\"-\"&$M18&\"_old\",Ammortamento_Finanziario!$H:$L,5,FALSE),VLOOKUP($M18,TT_Tabelle_Riferimento!$H$31:$I$50,2,FALSE))","v":10},{"$f":"+IFERROR(VLOOKUP(LM$6&\"-\"&$M18&\"_old\",Ammortamento_Finanziario!$H:$L,5,FALSE),VLOOKUP($M18,TT_Tabelle_Riferimento!$H$31:$I$50,2,FALSE))","v":10},{"$f":"+IFERROR(VLOOKUP(LN$6&\"-\"&$M18&\"_old\",Ammortamento_Finanziario!$H:$L,5,FALSE),VLOOKUP($M18,TT_Tabelle_Riferimento!$H$31:$I$50,2,FALSE))","v":10},{"$f":"+IFERROR(VLOOKUP(LO$6&\"-\"&$M18&\"_old\",Ammortamento_Finanziario!$H:$L,5,FALSE),VLOOKUP($M18,TT_Tabelle_Riferimento!$H$31:$I$50,2,FALSE))","v":10},{"$f":"+IFERROR(VLOOKUP(LP$6&\"-\"&$M18&\"_old\",Ammortamento_Finanziario!$H:$L,5,FALSE),VLOOKUP($M18,TT_Tabelle_Riferimento!$H$31:$I$50,2,FALSE))","v":10},{"$f":"+IFERROR(VLOOKUP(LQ$6&\"-\"&$M18&\"_old\",Ammortamento_Finanziario!$H:$L,5,FALSE),VLOOKUP($M18,TT_Tabelle_Riferimento!$H$31:$I$50,2,FALSE))","v":10},{"$f":"+IFERROR(VLOOKUP(LR$6&\"-\"&$M18&\"_old\",Ammortamento_Finanziario!$H:$L,5,FALSE),VLOOKUP($M18,TT_Tabelle_Riferimento!$H$31:$I$50,2,FALSE))","v":10},{"$f":"+IFERROR(VLOOKUP(LS$6&\"-\"&$M18&\"_old\",Ammortamento_Finanziario!$H:$L,5,FALSE),VLOOKUP($M18,TT_Tabelle_Riferimento!$H$31:$I$50,2,FALSE))","v":10},{"$f":"+IFERROR(VLOOKUP(LT$6&\"-\"&$M18&\"_old\",Ammortamento_Finanziario!$H:$L,5,FALSE),VLOOKUP($M18,TT_Tabelle_Riferimento!$H$31:$I$50,2,FALSE))","v":10},{"$f":"+IFERROR(VLOOKUP(LU$6&\"-\"&$M18&\"_old\",Ammortamento_Finanziario!$H:$L,5,FALSE),VLOOKUP($M18,TT_Tabelle_Riferimento!$H$31:$I$50,2,FALSE))","v":10},{"$f":"+IFERROR(VLOOKUP(LV$6&\"-\"&$M18&\"_old\",Ammortamento_Finanziario!$H:$L,5,FALSE),VLOOKUP($M18,TT_Tabelle_Riferimento!$H$31:$I$50,2,FALSE))","v":10},{"$f":"+IFERROR(VLOOKUP(LW$6&\"-\"&$M18&\"_old\",Ammortamento_Finanziario!$H:$L,5,FALSE),VLOOKUP($M18,TT_Tabelle_Riferimento!$H$31:$I$50,2,FALSE))","v":10},{"$f":"+IFERROR(VLOOKUP(LX$6&\"-\"&$M18&\"_old\",Ammortamento_Finanziario!$H:$L,5,FALSE),VLOOKUP($M18,TT_Tabelle_Riferimento!$H$31:$I$50,2,FALSE))","v":10},{"$f":"+IFERROR(VLOOKUP(LY$6&\"-\"&$M18&\"_old\",Ammortamento_Finanziario!$H:$L,5,FALSE),VLOOKUP($M18,TT_Tabelle_Riferimento!$H$31:$I$50,2,FALSE))","v":10},{"$f":"+IFERROR(VLOOKUP(LZ$6&\"-\"&$M18&\"_old\",Ammortamento_Finanziario!$H:$L,5,FALSE),VLOOKUP($M18,TT_Tabelle_Riferimento!$H$31:$I$50,2,FALSE))","v":10},{"$f":"+IFERROR(VLOOKUP(MA$6&\"-\"&$M18&\"_old\",Ammortamento_Finanziario!$H:$L,5,FALSE),VLOOKUP($M18,TT_Tabelle_Riferimento!$H$31:$I$50,2,FALSE))","v":10},{"$f":"+IFERROR(VLOOKUP(MB$6&\"-\"&$M18&\"_old\",Ammortamento_Finanziario!$H:$L,5,FALSE),VLOOKUP($M18,TT_Tabelle_Riferimento!$H$31:$I$50,2,FALSE))","v":10},{"$f":"+IFERROR(VLOOKUP(MC$6&\"-\"&$M18&\"_old\",Ammortamento_Finanziario!$H:$L,5,FALSE),VLOOKUP($M18,TT_Tabelle_Riferimento!$H$31:$I$50,2,FALSE))","v":10},{"$f":"+IFERROR(VLOOKUP(MD$6&\"-\"&$M18&\"_old\",Ammortamento_Finanziario!$H:$L,5,FALSE),VLOOKUP($M18,TT_Tabelle_Riferimento!$H$31:$I$50,2,FALSE))","v":10},{"$f":"+IFERROR(VLOOKUP(ME$6&\"-\"&$M18&\"_old\",Ammortamento_Finanziario!$H:$L,5,FALSE),VLOOKUP($M18,TT_Tabelle_Riferimento!$H$31:$I$50,2,FALSE))","v":10},{"$f":"+IFERROR(VLOOKUP(MF$6&\"-\"&$M18&\"_old\",Ammortamento_Finanziario!$H:$L,5,FALSE),VLOOKUP($M18,TT_Tabelle_Riferimento!$H$31:$I$50,2,FALSE))","v":10},{"$f":"+IFERROR(VLOOKUP(MG$6&\"-\"&$M18&\"_old\",Ammortamento_Finanziario!$H:$L,5,FALSE),VLOOKUP($M18,TT_Tabelle_Riferimento!$H$31:$I$50,2,FALSE))","v":10},{"$f":"+IFERROR(VLOOKUP(MH$6&\"-\"&$M18&\"_old\",Ammortamento_Finanziario!$H:$L,5,FALSE),VLOOKUP($M18,TT_Tabelle_Riferimento!$H$31:$I$50,2,FALSE))","v":10},{"$f":"+IFERROR(VLOOKUP(MI$6&\"-\"&$M18&\"_old\",Ammortamento_Finanziario!$H:$L,5,FALSE),VLOOKUP($M18,TT_Tabelle_Riferimento!$H$31:$I$50,2,FALSE))","v":10},{"$f":"+IFERROR(VLOOKUP(MJ$6&\"-\"&$M18&\"_old\",Ammortamento_Finanziario!$H:$L,5,FALSE),VLOOKUP($M18,TT_Tabelle_Riferimento!$H$31:$I$50,2,FALSE))","v":10},{"$f":"+IFERROR(VLOOKUP(MK$6&\"-\"&$M18&\"_old\",Ammortamento_Finanziario!$H:$L,5,FALSE),VLOOKUP($M18,TT_Tabelle_Riferimento!$H$31:$I$50,2,FALSE))","v":10},{"$f":"+IFERROR(VLOOKUP(ML$6&\"-\"&$M18&\"_old\",Ammortamento_Finanziario!$H:$L,5,FALSE),VLOOKUP($M18,TT_Tabelle_Riferimento!$H$31:$I$50,2,FALSE))","v":10},{"$f":"+IFERROR(VLOOKUP(MM$6&\"-\"&$M18&\"_old\",Ammortamento_Finanziario!$H:$L,5,FALSE),VLOOKUP($M18,TT_Tabelle_Riferimento!$H$31:$I$50,2,FALSE))","v":10},{"$f":"+IFERROR(VLOOKUP(MN$6&\"-\"&$M18&\"_old\",Ammortamento_Finanziario!$H:$L,5,FALSE),VLOOKUP($M18,TT_Tabelle_Riferimento!$H$31:$I$50,2,FALSE))","v":10},{"$f":"+IFERROR(VLOOKUP(MO$6&\"-\"&$M18&\"_old\",Ammortamento_Finanziario!$H:$L,5,FALSE),VLOOKUP($M18,TT_Tabelle_Riferimento!$H$31:$I$50,2,FALSE))","v":10},{"$f":"+IFERROR(VLOOKUP(MP$6&\"-\"&$M18&\"_old\",Ammortamento_Finanziario!$H:$L,5,FALSE),VLOOKUP($M18,TT_Tabelle_Riferimento!$H$31:$I$50,2,FALSE))","v":10},{"$f":"+IFERROR(VLOOKUP(MQ$6&\"-\"&$M18&\"_old\",Ammortamento_Finanziario!$H:$L,5,FALSE),VLOOKUP($M18,TT_Tabelle_Riferimento!$H$31:$I$50,2,FALSE))","v":10},{"$f":"+IFERROR(VLOOKUP(MR$6&\"-\"&$M18&\"_old\",Ammortamento_Finanziario!$H:$L,5,FALSE),VLOOKUP($M18,TT_Tabelle_Riferimento!$H$31:$I$50,2,FALSE))","v":10},{"$f":"+IFERROR(VLOOKUP(MS$6&\"-\"&$M18&\"_old\",Ammortamento_Finanziario!$H:$L,5,FALSE),VLOOKUP($M18,TT_Tabelle_Riferimento!$H$31:$I$50,2,FALSE))","v":10},{"$f":"+IFERROR(VLOOKUP(MT$6&\"-\"&$M18&\"_old\",Ammortamento_Finanziario!$H:$L,5,FALSE),VLOOKUP($M18,TT_Tabelle_Riferimento!$H$31:$I$50,2,FALSE))","v":10},{"$f":"+IFERROR(VLOOKUP(MU$6&\"-\"&$M18&\"_old\",Ammortamento_Finanziario!$H:$L,5,FALSE),VLOOKUP($M18,TT_Tabelle_Riferimento!$H$31:$I$50,2,FALSE))","v":10},{"$f":"+IFERROR(VLOOKUP(MV$6&\"-\"&$M18&\"_old\",Ammortamento_Finanziario!$H:$L,5,FALSE),VLOOKUP($M18,TT_Tabelle_Riferimento!$H$31:$I$50,2,FALSE))","v":10},{"$f":"+IFERROR(VLOOKUP(MW$6&\"-\"&$M18&\"_old\",Ammortamento_Finanziario!$H:$L,5,FALSE),VLOOKUP($M18,TT_Tabelle_Riferimento!$H$31:$I$50,2,FALSE))","v":10},{"$f":"+IFERROR(VLOOKUP(MX$6&\"-\"&$M18&\"_old\",Ammortamento_Finanziario!$H:$L,5,FALSE),VLOOKUP($M18,TT_Tabelle_Riferimento!$H$31:$I$50,2,FALSE))","v":10},{"$f":"+IFERROR(VLOOKUP(MY$6&\"-\"&$M18&\"_old\",Ammortamento_Finanziario!$H:$L,5,FALSE),VLOOKUP($M18,TT_Tabelle_Riferimento!$H$31:$I$50,2,FALSE))","v":10},{"$f":"+IFERROR(VLOOKUP(MZ$6&\"-\"&$M18&\"_old\",Ammortamento_Finanziario!$H:$L,5,FALSE),VLOOKUP($M18,TT_Tabelle_Riferimento!$H$31:$I$50,2,FALSE))","v":10},{"$f":"+IFERROR(VLOOKUP(NA$6&\"-\"&$M18&\"_old\",Ammortamento_Finanziario!$H:$L,5,FALSE),VLOOKUP($M18,TT_Tabelle_Riferimento!$H$31:$I$50,2,FALSE))","v":10},{"$f":"+IFERROR(VLOOKUP(NB$6&\"-\"&$M18&\"_old\",Ammortamento_Finanziario!$H:$L,5,FALSE),VLOOKUP($M18,TT_Tabelle_Riferimento!$H$31:$I$50,2,FALSE))","v":10},{"$f":"+IFERROR(VLOOKUP(NC$6&\"-\"&$M18&\"_old\",Ammortamento_Finanziario!$H:$L,5,FALSE),VLOOKUP($M18,TT_Tabelle_Riferimento!$H$31:$I$50,2,FALSE))","v":10},{"$f":"+IFERROR(VLOOKUP(ND$6&\"-\"&$M18&\"_old\",Ammortamento_Finanziario!$H:$L,5,FALSE),VLOOKUP($M18,TT_Tabelle_Riferimento!$H$31:$I$50,2,FALSE))","v":10},{"$f":"+IFERROR(VLOOKUP(NE$6&\"-\"&$M18&\"_old\",Ammortamento_Finanziario!$H:$L,5,FALSE),VLOOKUP($M18,TT_Tabelle_Riferimento!$H$31:$I$50,2,FALSE))","v":10},{"$f":"+IFERROR(VLOOKUP(NF$6&\"-\"&$M18&\"_old\",Ammortamento_Finanziario!$H:$L,5,FALSE),VLOOKUP($M18,TT_Tabelle_Riferimento!$H$31:$I$50,2,FALSE))","v":10},{"$f":"+IFERROR(VLOOKUP(NG$6&\"-\"&$M18&\"_old\",Ammortamento_Finanziario!$H:$L,5,FALSE),VLOOKUP($M18,TT_Tabelle_Riferimento!$H$31:$I$50,2,FALSE))","v":10},{"$f":"+IFERROR(VLOOKUP(NH$6&\"-\"&$M18&\"_old\",Ammortamento_Finanziario!$H:$L,5,FALSE),VLOOKUP($M18,TT_Tabelle_Riferimento!$H$31:$I$50,2,FALSE))","v":10},{"$f":"+IFERROR(VLOOKUP(NI$6&\"-\"&$M18&\"_old\",Ammortamento_Finanziario!$H:$L,5,FALSE),VLOOKUP($M18,TT_Tabelle_Riferimento!$H$31:$I$50,2,FALSE))","v":10},{"$f":"+IFERROR(VLOOKUP(NJ$6&\"-\"&$M18&\"_old\",Ammortamento_Finanziario!$H:$L,5,FALSE),VLOOKUP($M18,TT_Tabelle_Riferimento!$H$31:$I$50,2,FALSE))","v":10},{"$f":"+IFERROR(VLOOKUP(NK$6&\"-\"&$M18&\"_old\",Ammortamento_Finanziario!$H:$L,5,FALSE),VLOOKUP($M18,TT_Tabelle_Riferimento!$H$31:$I$50,2,FALSE))","v":10},{"$f":"+IFERROR(VLOOKUP(NL$6&\"-\"&$M18&\"_old\",Ammortamento_Finanziario!$H:$L,5,FALSE),VLOOKUP($M18,TT_Tabelle_Riferimento!$H$31:$I$50,2,FALSE))","v":10},{"$f":"+IFERROR(VLOOKUP(NM$6&\"-\"&$M18&\"_old\",Ammortamento_Finanziario!$H:$L,5,FALSE),VLOOKUP($M18,TT_Tabelle_Riferimento!$H$31:$I$50,2,FALSE))","v":10},{"$f":"+IFERROR(VLOOKUP(NN$6&\"-\"&$M18&\"_old\",Ammortamento_Finanziario!$H:$L,5,FALSE),VLOOKUP($M18,TT_Tabelle_Riferimento!$H$31:$I$50,2,FALSE))","v":10},{"$f":"+IFERROR(VLOOKUP(NO$6&\"-\"&$M18&\"_old\",Ammortamento_Finanziario!$H:$L,5,FALSE),VLOOKUP($M18,TT_Tabelle_Riferimento!$H$31:$I$50,2,FALSE))","v":10},{"$f":"+IFERROR(VLOOKUP(NP$6&\"-\"&$M18&\"_old\",Ammortamento_Finanziario!$H:$L,5,FALSE),VLOOKUP($M18,TT_Tabelle_Riferimento!$H$31:$I$50,2,FALSE))","v":10},{"$f":"+IFERROR(VLOOKUP(NQ$6&\"-\"&$M18&\"_old\",Ammortamento_Finanziario!$H:$L,5,FALSE),VLOOKUP($M18,TT_Tabelle_Riferimento!$H$31:$I$50,2,FALSE))","v":10},{"$f":"+IFERROR(VLOOKUP(NR$6&\"-\"&$M18&\"_old\",Ammortamento_Finanziario!$H:$L,5,FALSE),VLOOKUP($M18,TT_Tabelle_Riferimento!$H$31:$I$50,2,FALSE))","v":10},{"$f":"+IFERROR(VLOOKUP(NS$6&\"-\"&$M18&\"_old\",Ammortamento_Finanziario!$H:$L,5,FALSE),VLOOKUP($M18,TT_Tabelle_Riferimento!$H$31:$I$50,2,FALSE))","v":10},{"$f":"+IFERROR(VLOOKUP(NT$6&\"-\"&$M18&\"_old\",Ammortamento_Finanziario!$H:$L,5,FALSE),VLOOKUP($M18,TT_Tabelle_Riferimento!$H$31:$I$50,2,FALSE))","v":10},{"$f":"+IFERROR(VLOOKUP(NU$6&\"-\"&$M18&\"_old\",Ammortamento_Finanziario!$H:$L,5,FALSE),VLOOKUP($M18,TT_Tabelle_Riferimento!$H$31:$I$50,2,FALSE))","v":10},{"$f":"+IFERROR(VLOOKUP(NV$6&\"-\"&$M18&\"_old\",Ammortamento_Finanziario!$H:$L,5,FALSE),VLOOKUP($M18,TT_Tabelle_Riferimento!$H$31:$I$50,2,FALSE))","v":10},{"$f":"+IFERROR(VLOOKUP(NW$6&\"-\"&$M18&\"_old\",Ammortamento_Finanziario!$H:$L,5,FALSE),VLOOKUP($M18,TT_Tabelle_Riferimento!$H$31:$I$50,2,FALSE))","v":10},{"$f":"+IFERROR(VLOOKUP(NX$6&\"-\"&$M18&\"_old\",Ammortamento_Finanziario!$H:$L,5,FALSE),VLOOKUP($M18,TT_Tabelle_Riferimento!$H$31:$I$50,2,FALSE))","v":10},{"$f":"+IFERROR(VLOOKUP(NY$6&\"-\"&$M18&\"_old\",Ammortamento_Finanziario!$H:$L,5,FALSE),VLOOKUP($M18,TT_Tabelle_Riferimento!$H$31:$I$50,2,FALSE))","v":10},{"$f":"+IFERROR(VLOOKUP(NZ$6&\"-\"&$M18&\"_old\",Ammortamento_Finanziario!$H:$L,5,FALSE),VLOOKUP($M18,TT_Tabelle_Riferimento!$H$31:$I$50,2,FALSE))","v":10},{"$f":"+IFERROR(VLOOKUP(OA$6&\"-\"&$M18&\"_old\",Ammortamento_Finanziario!$H:$L,5,FALSE),VLOOKUP($M18,TT_Tabelle_Riferimento!$H$31:$I$50,2,FALSE))","v":10},{"$f":"+IFERROR(VLOOKUP(OB$6&\"-\"&$M18&\"_old\",Ammortamento_Finanziario!$H:$L,5,FALSE),VLOOKUP($M18,TT_Tabelle_Riferimento!$H$31:$I$50,2,FALSE))","v":10},{"$f":"+IFERROR(VLOOKUP(OC$6&\"-\"&$M18&\"_old\",Ammortamento_Finanziario!$H:$L,5,FALSE),VLOOKUP($M18,TT_Tabelle_Riferimento!$H$31:$I$50,2,FALSE))","v":10},{"$f":"+IFERROR(VLOOKUP(OD$6&\"-\"&$M18&\"_old\",Ammortamento_Finanziario!$H:$L,5,FALSE),VLOOKUP($M18,TT_Tabelle_Riferimento!$H$31:$I$50,2,FALSE))","v":10},{"$f":"+IFERROR(VLOOKUP(OE$6&\"-\"&$M18&\"_old\",Ammortamento_Finanziario!$H:$L,5,FALSE),VLOOKUP($M18,TT_Tabelle_Riferimento!$H$31:$I$50,2,FALSE))","v":10},{"$f":"+IFERROR(VLOOKUP(OF$6&\"-\"&$M18&\"_old\",Ammortamento_Finanziario!$H:$L,5,FALSE),VLOOKUP($M18,TT_Tabelle_Riferimento!$H$31:$I$50,2,FALSE))","v":10},{"$f":"+IFERROR(VLOOKUP(OG$6&\"-\"&$M18&\"_old\",Ammortamento_Finanziario!$H:$L,5,FALSE),VLOOKUP($M18,TT_Tabelle_Riferimento!$H$31:$I$50,2,FALSE))","v":10},{"$f":"+IFERROR(VLOOKUP(OH$6&\"-\"&$M18&\"_old\",Ammortamento_Finanziario!$H:$L,5,FALSE),VLOOKUP($M18,TT_Tabelle_Riferimento!$H$31:$I$50,2,FALSE))","v":10},{"$f":"+IFERROR(VLOOKUP(OI$6&\"-\"&$M18&\"_old\",Ammortamento_Finanziario!$H:$L,5,FALSE),VLOOKUP($M18,TT_Tabelle_Riferimento!$H$31:$I$50,2,FALSE))","v":10},{"$f":"+IFERROR(VLOOKUP(OJ$6&\"-\"&$M18&\"_old\",Ammortamento_Finanziario!$H:$L,5,FALSE),VLOOKUP($M18,TT_Tabelle_Riferimento!$H$31:$I$50,2,FALSE))","v":10},{"$f":"+IFERROR(VLOOKUP(OK$6&\"-\"&$M18&\"_old\",Ammortamento_Finanziario!$H:$L,5,FALSE),VLOOKUP($M18,TT_Tabelle_Riferimento!$H$31:$I$50,2,FALSE))","v":10},{"$f":"+IFERROR(VLOOKUP(OL$6&\"-\"&$M18&\"_old\",Ammortamento_Finanziario!$H:$L,5,FALSE),VLOOKUP($M18,TT_Tabelle_Riferimento!$H$31:$I$50,2,FALSE))","v":10},{"$f":"+IFERROR(VLOOKUP(OM$6&\"-\"&$M18&\"_old\",Ammortamento_Finanziario!$H:$L,5,FALSE),VLOOKUP($M18,TT_Tabelle_Riferimento!$H$31:$I$50,2,FALSE))","v":10},{"$f":"+IFERROR(VLOOKUP(ON$6&\"-\"&$M18&\"_old\",Ammortamento_Finanziario!$H:$L,5,FALSE),VLOOKUP($M18,TT_Tabelle_Riferimento!$H$31:$I$50,2,FALSE))","v":10},{"$f":"+IFERROR(VLOOKUP(OO$6&\"-\"&$M18&\"_old\",Ammortamento_Finanziario!$H:$L,5,FALSE),VLOOKUP($M18,TT_Tabelle_Riferimento!$H$31:$I$50,2,FALSE))","v":10},{"$f":"+IFERROR(VLOOKUP(OP$6&\"-\"&$M18&\"_old\",Ammortamento_Finanziario!$H:$L,5,FALSE),VLOOKUP($M18,TT_Tabelle_Riferimento!$H$31:$I$50,2,FALSE))","v":10},{"$f":"+IFERROR(VLOOKUP(OQ$6&\"-\"&$M18&\"_old\",Ammortamento_Finanziario!$H:$L,5,FALSE),VLOOKUP($M18,TT_Tabelle_Riferimento!$H$31:$I$50,2,FALSE))","v":10},{"$f":"+IFERROR(VLOOKUP(OR$6&\"-\"&$M18&\"_old\",Ammortamento_Finanziario!$H:$L,5,FALSE),VLOOKUP($M18,TT_Tabelle_Riferimento!$H$31:$I$50,2,FALSE))","v":10},{"$f":"+IFERROR(VLOOKUP(OS$6&\"-\"&$M18&\"_old\",Ammortamento_Finanziario!$H:$L,5,FALSE),VLOOKUP($M18,TT_Tabelle_Riferimento!$H$31:$I$50,2,FALSE))","v":10},{"$f":"+IFERROR(VLOOKUP(OT$6&\"-\"&$M18&\"_old\",Ammortamento_Finanziario!$H:$L,5,FALSE),VLOOKUP($M18,TT_Tabelle_Riferimento!$H$31:$I$50,2,FALSE))","v":10},{"$f":"+IFERROR(VLOOKUP(OU$6&\"-\"&$M18&\"_old\",Ammortamento_Finanziario!$H:$L,5,FALSE),VLOOKUP($M18,TT_Tabelle_Riferimento!$H$31:$I$50,2,FALSE))","v":10},{"$f":"+IFERROR(VLOOKUP(OV$6&\"-\"&$M18&\"_old\",Ammortamento_Finanziario!$H:$L,5,FALSE),VLOOKUP($M18,TT_Tabelle_Riferimento!$H$31:$I$50,2,FALSE))","v":10},{"$f":"+IFERROR(VLOOKUP(OW$6&\"-\"&$M18&\"_old\",Ammortamento_Finanziario!$H:$L,5,FALSE),VLOOKUP($M18,TT_Tabelle_Riferimento!$H$31:$I$50,2,FALSE))","v":10},{"$f":"+IFERROR(VLOOKUP(OX$6&\"-\"&$M18&\"_old\",Ammortamento_Finanziario!$H:$L,5,FALSE),VLOOKUP($M18,TT_Tabelle_Riferimento!$H$31:$I$50,2,FALSE))","v":10},{"$f":"+IFERROR(VLOOKUP(OY$6&\"-\"&$M18&\"_old\",Ammortamento_Finanziario!$H:$L,5,FALSE),VLOOKUP($M18,TT_Tabelle_Riferimento!$H$31:$I$50,2,FALSE))","v":10},{"$f":"+IFERROR(VLOOKUP(OZ$6&\"-\"&$M18&\"_old\",Ammortamento_Finanziario!$H:$L,5,FALSE),VLOOKUP($M18,TT_Tabelle_Riferimento!$H$31:$I$50,2,FALSE))","v":10},{"$f":"+IFERROR(VLOOKUP(PA$6&\"-\"&$M18&\"_old\",Ammortamento_Finanziario!$H:$L,5,FALSE),VLOOKUP($M18,TT_Tabelle_Riferimento!$H$31:$I$50,2,FALSE))","v":10},{"$f":"+IFERROR(VLOOKUP(PB$6&\"-\"&$M18&\"_old\",Ammortamento_Finanziario!$H:$L,5,FALSE),VLOOKUP($M18,TT_Tabelle_Riferimento!$H$31:$I$50,2,FALSE))","v":10},{"$f":"+IFERROR(VLOOKUP(PC$6&\"-\"&$M18&\"_old\",Ammortamento_Finanziario!$H:$L,5,FALSE),VLOOKUP($M18,TT_Tabelle_Riferimento!$H$31:$I$50,2,FALSE))","v":10},{"$f":"+IFERROR(VLOOKUP(PD$6&\"-\"&$M18&\"_old\",Ammortamento_Finanziario!$H:$L,5,FALSE),VLOOKUP($M18,TT_Tabelle_Riferimento!$H$31:$I$50,2,FALSE))","v":10},{"$f":"+IFERROR(VLOOKUP(PE$6&\"-\"&$M18&\"_old\",Ammortamento_Finanziario!$H:$L,5,FALSE),VLOOKUP($M18,TT_Tabelle_Riferimento!$H$31:$I$50,2,FALSE))","v":10},{"$f":"+IFERROR(VLOOKUP(PF$6&\"-\"&$M18&\"_old\",Ammortamento_Finanziario!$H:$L,5,FALSE),VLOOKUP($M18,TT_Tabelle_Riferimento!$H$31:$I$50,2,FALSE))","v":10},{"$f":"+IFERROR(VLOOKUP(PG$6&\"-\"&$M18&\"_old\",Ammortamento_Finanziario!$H:$L,5,FALSE),VLOOKUP($M18,TT_Tabelle_Riferimento!$H$31:$I$50,2,FALSE))","v":10},{"$f":"+IFERROR(VLOOKUP(PH$6&\"-\"&$M18&\"_old\",Ammortamento_Finanziario!$H:$L,5,FALSE),VLOOKUP($M18,TT_Tabelle_Riferimento!$H$31:$I$50,2,FALSE))","v":10},{"$f":"+IFERROR(VLOOKUP(PI$6&\"-\"&$M18&\"_old\",Ammortamento_Finanziario!$H:$L,5,FALSE),VLOOKUP($M18,TT_Tabelle_Riferimento!$H$31:$I$50,2,FALSE))","v":10},{"$f":"+IFERROR(VLOOKUP(PJ$6&\"-\"&$M18&\"_old\",Ammortamento_Finanziario!$H:$L,5,FALSE),VLOOKUP($M18,TT_Tabelle_Riferimento!$H$31:$I$50,2,FALSE))","v":10},{"$f":"+IFERROR(VLOOKUP(PK$6&\"-\"&$M18&\"_old\",Ammortamento_Finanziario!$H:$L,5,FALSE),VLOOKUP($M18,TT_Tabelle_Riferimento!$H$31:$I$50,2,FALSE))","v":10},{"$f":"+IFERROR(VLOOKUP(PL$6&\"-\"&$M18&\"_old\",Ammortamento_Finanziario!$H:$L,5,FALSE),VLOOKUP($M18,TT_Tabelle_Riferimento!$H$31:$I$50,2,FALSE))","v":10},{"$f":"+IFERROR(VLOOKUP(PM$6&\"-\"&$M18&\"_old\",Ammortamento_Finanziario!$H:$L,5,FALSE),VLOOKUP($M18,TT_Tabelle_Riferimento!$H$31:$I$50,2,FALSE))","v":10},{"$f":"+IFERROR(VLOOKUP(PN$6&\"-\"&$M18&\"_old\",Ammortamento_Finanziario!$H:$L,5,FALSE),VLOOKUP($M18,TT_Tabelle_Riferimento!$H$31:$I$50,2,FALSE))","v":10},{"$f":"+IFERROR(VLOOKUP(PO$6&\"-\"&$M18&\"_old\",Ammortamento_Finanziario!$H:$L,5,FALSE),VLOOKUP($M18,TT_Tabelle_Riferimento!$H$31:$I$50,2,FALSE))","v":10},{"$f":"+IFERROR(VLOOKUP(PP$6&\"-\"&$M18&\"_old\",Ammortamento_Finanziario!$H:$L,5,FALSE),VLOOKUP($M18,TT_Tabelle_Riferimento!$H$31:$I$50,2,FALSE))","v":10},{"$f":"+IFERROR(VLOOKUP(PQ$6&\"-\"&$M18&\"_old\",Ammortamento_Finanziario!$H:$L,5,FALSE),VLOOKUP($M18,TT_Tabelle_Riferimento!$H$31:$I$50,2,FALSE))","v":10},{"$f":"+IFERROR(VLOOKUP(PR$6&\"-\"&$M18&\"_old\",Ammortamento_Finanziario!$H:$L,5,FALSE),VLOOKUP($M18,TT_Tabelle_Riferimento!$H$31:$I$50,2,FALSE))","v":10},{"$f":"+IFERROR(VLOOKUP(PS$6&\"-\"&$M18&\"_old\",Ammortamento_Finanziario!$H:$L,5,FALSE),VLOOKUP($M18,TT_Tabelle_Riferimento!$H$31:$I$50,2,FALSE))","v":10},{"$f":"+IFERROR(VLOOKUP(PT$6&\"-\"&$M18&\"_old\",Ammortamento_Finanziario!$H:$L,5,FALSE),VLOOKUP($M18,TT_Tabelle_Riferimento!$H$31:$I$50,2,FALSE))","v":10},{"$f":"+IFERROR(VLOOKUP(PU$6&\"-\"&$M18&\"_old\",Ammortamento_Finanziario!$H:$L,5,FALSE),VLOOKUP($M18,TT_Tabelle_Riferimento!$H$31:$I$50,2,FALSE))","v":10},{"$f":"+IFERROR(VLOOKUP(PV$6&\"-\"&$M18&\"_old\",Ammortamento_Finanziario!$H:$L,5,FALSE),VLOOKUP($M18,TT_Tabelle_Riferimento!$H$31:$I$50,2,FALSE))","v":10},{"$f":"+IFERROR(VLOOKUP(PW$6&\"-\"&$M18&\"_old\",Ammortamento_Finanziario!$H:$L,5,FALSE),VLOOKUP($M18,TT_Tabelle_Riferimento!$H$31:$I$50,2,FALSE))","v":10},{"$f":"+IFERROR(VLOOKUP(PX$6&\"-\"&$M18&\"_old\",Ammortamento_Finanziario!$H:$L,5,FALSE),VLOOKUP($M18,TT_Tabelle_Riferimento!$H$31:$I$50,2,FALSE))","v":10},{"$f":"+IFERROR(VLOOKUP(PY$6&\"-\"&$M18&\"_old\",Ammortamento_Finanziario!$H:$L,5,FALSE),VLOOKUP($M18,TT_Tabelle_Riferimento!$H$31:$I$50,2,FALSE))","v":10},{"$f":"+IFERROR(VLOOKUP(PZ$6&\"-\"&$M18&\"_old\",Ammortamento_Finanziario!$H:$L,5,FALSE),VLOOKUP($M18,TT_Tabelle_Riferimento!$H$31:$I$50,2,FALSE))","v":10},{"$f":"+IFERROR(VLOOKUP(QA$6&\"-\"&$M18&\"_old\",Ammortamento_Finanziario!$H:$L,5,FALSE),VLOOKUP($M18,TT_Tabelle_Riferimento!$H$31:$I$50,2,FALSE))","v":10},{"$f":"+IFERROR(VLOOKUP(QB$6&\"-\"&$M18&\"_old\",Ammortamento_Finanziario!$H:$L,5,FALSE),VLOOKUP($M18,TT_Tabelle_Riferimento!$H$31:$I$50,2,FALSE))","v":10},{"$f":"+IFERROR(VLOOKUP(QC$6&\"-\"&$M18&\"_old\",Ammortamento_Finanziario!$H:$L,5,FALSE),VLOOKUP($M18,TT_Tabelle_Riferimento!$H$31:$I$50,2,FALSE))","v":10},{"$f":"+IFERROR(VLOOKUP(QD$6&\"-\"&$M18&\"_old\",Ammortamento_Finanziario!$H:$L,5,FALSE),VLOOKUP($M18,TT_Tabelle_Riferimento!$H$31:$I$50,2,FALSE))","v":10},{"$f":"+IFERROR(VLOOKUP(QE$6&\"-\"&$M18&\"_old\",Ammortamento_Finanziario!$H:$L,5,FALSE),VLOOKUP($M18,TT_Tabelle_Riferimento!$H$31:$I$50,2,FALSE))","v":10},{"$f":"+IFERROR(VLOOKUP(QF$6&\"-\"&$M18&\"_old\",Ammortamento_Finanziario!$H:$L,5,FALSE),VLOOKUP($M18,TT_Tabelle_Riferimento!$H$31:$I$50,2,FALSE))","v":10},{"$f":"+IFERROR(VLOOKUP(QG$6&\"-\"&$M18&\"_old\",Ammortamento_Finanziario!$H:$L,5,FALSE),VLOOKUP($M18,TT_Tabelle_Riferimento!$H$31:$I$50,2,FALSE))","v":10},{"$f":"+IFERROR(VLOOKUP(QH$6&\"-\"&$M18&\"_old\",Ammortamento_Finanziario!$H:$L,5,FALSE),VLOOKUP($M18,TT_Tabelle_Riferimento!$H$31:$I$50,2,FALSE))","v":10},{"$f":"+IFERROR(VLOOKUP(QI$6&\"-\"&$M18&\"_old\",Ammortamento_Finanziario!$H:$L,5,FALSE),VLOOKUP($M18,TT_Tabelle_Riferimento!$H$31:$I$50,2,FALSE))","v":10},{"$f":"+IFERROR(VLOOKUP(QJ$6&\"-\"&$M18&\"_old\",Ammortamento_Finanziario!$H:$L,5,FALSE),VLOOKUP($M18,TT_Tabelle_Riferimento!$H$31:$I$50,2,FALSE))","v":10},{"$f":"+IFERROR(VLOOKUP(QK$6&\"-\"&$M18&\"_old\",Ammortamento_Finanziario!$H:$L,5,FALSE),VLOOKUP($M18,TT_Tabelle_Riferimento!$H$31:$I$50,2,FALSE))","v":10},{"$f":"+IFERROR(VLOOKUP(QL$6&\"-\"&$M18&\"_old\",Ammortamento_Finanziario!$H:$L,5,FALSE),VLOOKUP($M18,TT_Tabelle_Riferimento!$H$31:$I$50,2,FALSE))","v":10},{"$f":"+IFERROR(VLOOKUP(QM$6&\"-\"&$M18&\"_old\",Ammortamento_Finanziario!$H:$L,5,FALSE),VLOOKUP($M18,TT_Tabelle_Riferimento!$H$31:$I$50,2,FALSE))","v":10},{"$f":"+IFERROR(VLOOKUP(QN$6&\"-\"&$M18&\"_old\",Ammortamento_Finanziario!$H:$L,5,FALSE),VLOOKUP($M18,TT_Tabelle_Riferimento!$H$31:$I$50,2,FALSE))","v":10},{"$f":"+IFERROR(VLOOKUP(QO$6&\"-\"&$M18&\"_old\",Ammortamento_Finanziario!$H:$L,5,FALSE),VLOOKUP($M18,TT_Tabelle_Riferimento!$H$31:$I$50,2,FALSE))","v":10},{"$f":"+IFERROR(VLOOKUP(QP$6&\"-\"&$M18&\"_old\",Ammortamento_Finanziario!$H:$L,5,FALSE),VLOOKUP($M18,TT_Tabelle_Riferimento!$H$31:$I$50,2,FALSE))","v":10},{"$f":"+IFERROR(VLOOKUP(QQ$6&\"-\"&$M18&\"_old\",Ammortamento_Finanziario!$H:$L,5,FALSE),VLOOKUP($M18,TT_Tabelle_Riferimento!$H$31:$I$50,2,FALSE))","v":10},{"$f":"+IFERROR(VLOOKUP(QR$6&\"-\"&$M18&\"_old\",Ammortamento_Finanziario!$H:$L,5,FALSE),VLOOKUP($M18,TT_Tabelle_Riferimento!$H$31:$I$50,2,FALSE))","v":10},{"$f":"+IFERROR(VLOOKUP(QS$6&\"-\"&$M18&\"_old\",Ammortamento_Finanziario!$H:$L,5,FALSE),VLOOKUP($M18,TT_Tabelle_Riferimento!$H$31:$I$50,2,FALSE))","v":10},{"$f":"+IFERROR(VLOOKUP(QT$6&\"-\"&$M18&\"_old\",Ammortamento_Finanziario!$H:$L,5,FALSE),VLOOKUP($M18,TT_Tabelle_Riferimento!$H$31:$I$50,2,FALSE))","v":10},{"$f":"+IFERROR(VLOOKUP(QU$6&\"-\"&$M18&\"_old\",Ammortamento_Finanziario!$H:$L,5,FALSE),VLOOKUP($M18,TT_Tabelle_Riferimento!$H$31:$I$50,2,FALSE))","v":10},{"$f":"+IFERROR(VLOOKUP(QV$6&\"-\"&$M18&\"_old\",Ammortamento_Finanziario!$H:$L,5,FALSE),VLOOKUP($M18,TT_Tabelle_Riferimento!$H$31:$I$50,2,FALSE))","v":10},{"$f":"+IFERROR(VLOOKUP(QW$6&\"-\"&$M18&\"_old\",Ammortamento_Finanziario!$H:$L,5,FALSE),VLOOKUP($M18,TT_Tabelle_Riferimento!$H$31:$I$50,2,FALSE))","v":10},{"$f":"+IFERROR(VLOOKUP(QX$6&\"-\"&$M18&\"_old\",Ammortamento_Finanziario!$H:$L,5,FALSE),VLOOKUP($M18,TT_Tabelle_Riferimento!$H$31:$I$50,2,FALSE))","v":10},{"$f":"+IFERROR(VLOOKUP(QY$6&\"-\"&$M18&\"_old\",Ammortamento_Finanziario!$H:$L,5,FALSE),VLOOKUP($M18,TT_Tabelle_Riferimento!$H$31:$I$50,2,FALSE))","v":10},{"$f":"+IFERROR(VLOOKUP(QZ$6&\"-\"&$M18&\"_old\",Ammortamento_Finanziario!$H:$L,5,FALSE),VLOOKUP($M18,TT_Tabelle_Riferimento!$H$31:$I$50,2,FALSE))","v":10},{"$f":"+IFERROR(VLOOKUP(RA$6&\"-\"&$M18&\"_old\",Ammortamento_Finanziario!$H:$L,5,FALSE),VLOOKUP($M18,TT_Tabelle_Riferimento!$H$31:$I$50,2,FALSE))","v":10},{"$f":"+IFERROR(VLOOKUP(RB$6&\"-\"&$M18&\"_old\",Ammortamento_Finanziario!$H:$L,5,FALSE),VLOOKUP($M18,TT_Tabelle_Riferimento!$H$31:$I$50,2,FALSE))","v":10},{"$f":"+IFERROR(VLOOKUP(RC$6&\"-\"&$M18&\"_old\",Ammortamento_Finanziario!$H:$L,5,FALSE),VLOOKUP($M18,TT_Tabelle_Riferimento!$H$31:$I$50,2,FALSE))","v":10},{"$f":"+IFERROR(VLOOKUP(RD$6&\"-\"&$M18&\"_old\",Ammortamento_Finanziario!$H:$L,5,FALSE),VLOOKUP($M18,TT_Tabelle_Riferimento!$H$31:$I$50,2,FALSE))","v":10},{"$f":"+IFERROR(VLOOKUP(RE$6&\"-\"&$M18&\"_old\",Ammortamento_Finanziario!$H:$L,5,FALSE),VLOOKUP($M18,TT_Tabelle_Riferimento!$H$31:$I$50,2,FALSE))","v":10},{"$f":"+IFERROR(VLOOKUP(RF$6&\"-\"&$M18&\"_old\",Ammortamento_Finanziario!$H:$L,5,FALSE),VLOOKUP($M18,TT_Tabelle_Riferimento!$H$31:$I$50,2,FALSE))","v":10},{"$f":"+IFERROR(VLOOKUP(RG$6&\"-\"&$M18&\"_old\",Ammortamento_Finanziario!$H:$L,5,FALSE),VLOOKUP($M18,TT_Tabelle_Riferimento!$H$31:$I$50,2,FALSE))","v":10},{"$f":"+IFERROR(VLOOKUP(RH$6&\"-\"&$M18&\"_old\",Ammortamento_Finanziario!$H:$L,5,FALSE),VLOOKUP($M18,TT_Tabelle_Riferimento!$H$31:$I$50,2,FALSE))","v":10},{"$f":"+IFERROR(VLOOKUP(RI$6&\"-\"&$M18&\"_old\",Ammortamento_Finanziario!$H:$L,5,FALSE),VLOOKUP($M18,TT_Tabelle_Riferimento!$H$31:$I$50,2,FALSE))","v":10},{"$f":"+IFERROR(VLOOKUP(RJ$6&\"-\"&$M18&\"_old\",Ammortamento_Finanziario!$H:$L,5,FALSE),VLOOKUP($M18,TT_Tabelle_Riferimento!$H$31:$I$50,2,FALSE))","v":10},{"$f":"+IFERROR(VLOOKUP(RK$6&\"-\"&$M18&\"_old\",Ammortamento_Finanziario!$H:$L,5,FALSE),VLOOKUP($M18,TT_Tabelle_Riferimento!$H$31:$I$50,2,FALSE))","v":10},{"$f":"+IFERROR(VLOOKUP(RL$6&\"-\"&$M18&\"_old\",Ammortamento_Finanziario!$H:$L,5,FALSE),VLOOKUP($M18,TT_Tabelle_Riferimento!$H$31:$I$50,2,FALSE))","v":10},{"$f":"+IFERROR(VLOOKUP(RM$6&\"-\"&$M18&\"_old\",Ammortamento_Finanziario!$H:$L,5,FALSE),VLOOKUP($M18,TT_Tabelle_Riferimento!$H$31:$I$50,2,FALSE))","v":10},{"$f":"+IFERROR(VLOOKUP(RN$6&\"-\"&$M18&\"_old\",Ammortamento_Finanziario!$H:$L,5,FALSE),VLOOKUP($M18,TT_Tabelle_Riferimento!$H$31:$I$50,2,FALSE))","v":10},{"$f":"+IFERROR(VLOOKUP(RO$6&\"-\"&$M18&\"_old\",Ammortamento_Finanziario!$H:$L,5,FALSE),VLOOKUP($M18,TT_Tabelle_Riferimento!$H$31:$I$50,2,FALSE))","v":10},{"$f":"+IFERROR(VLOOKUP(RP$6&\"-\"&$M18&\"_old\",Ammortamento_Finanziario!$H:$L,5,FALSE),VLOOKUP($M18,TT_Tabelle_Riferimento!$H$31:$I$50,2,FALSE))","v":10},{"$f":"+IFERROR(VLOOKUP(RQ$6&\"-\"&$M18&\"_old\",Ammortamento_Finanziario!$H:$L,5,FALSE),VLOOKUP($M18,TT_Tabelle_Riferimento!$H$31:$I$50,2,FALSE))","v":10},{"$f":"+IFERROR(VLOOKUP(RR$6&\"-\"&$M18&\"_old\",Ammortamento_Finanziario!$H:$L,5,FALSE),VLOOKUP($M18,TT_Tabelle_Riferimento!$H$31:$I$50,2,FALSE))","v":10},{"$f":"+IFERROR(VLOOKUP(RS$6&\"-\"&$M18&\"_old\",Ammortamento_Finanziario!$H:$L,5,FALSE),VLOOKUP($M18,TT_Tabelle_Riferimento!$H$31:$I$50,2,FALSE))","v":10},{"$f":"+IFERROR(VLOOKUP(RT$6&\"-\"&$M18&\"_old\",Ammortamento_Finanziario!$H:$L,5,FALSE),VLOOKUP($M18,TT_Tabelle_Riferimento!$H$31:$I$50,2,FALSE))","v":10},{"$f":"+IFERROR(VLOOKUP(RU$6&\"-\"&$M18&\"_old\",Ammortamento_Finanziario!$H:$L,5,FALSE),VLOOKUP($M18,TT_Tabelle_Riferimento!$H$31:$I$50,2,FALSE))","v":10},{"$f":"+IFERROR(VLOOKUP(RV$6&\"-\"&$M18&\"_old\",Ammortamento_Finanziario!$H:$L,5,FALSE),VLOOKUP($M18,TT_Tabelle_Riferimento!$H$31:$I$50,2,FALSE))","v":10}]
[null,null,null,"FA",{"$f":"+SUMIFS(IMN_gestore!Q:Q,IMN_gestore!$E:$E,\">=\"&2012,IMN_gestore!$E:$E,\"<=\"&2022)","v":0},{"$f":"+SUMIFS(IMN_gestore!AB:AB,IMN_gestore!$E:$E,\">=\"&2012,IMN_gestore!$E:$E,\"<=\"&2023)","v":0},{"$f":"+SUMIFS(IMN_gestore!AM:AM,IMN_gestore!$E:$E,\">=\"&2012,IMN_gestore!$E:$E,\"<=\"&2024)","v":0},{"$f":"+SUMIFS(IMN_gestore!AX:AX,IMN_gestore!$E:$E,\">=\"&2012,IMN_gestore!$E:$E,\"<=\"&2025)","v":0},{"$f":"+SUMIFS(IMN_gestore!$BI:$BI,IMN_gestore!$E:$E,\">=\"&2012,IMN_gestore!$E:$E,\"<=\"&2026)","v":0},{"$f":"+SUMIFS(IMN_gestore!$BT:$BT,IMN_gestore!$E:$E,\">=\"&2012,IMN_gestore!$E:$E,\"<=\"&2027)","v":0},null,null,13,{"$f":"+IFERROR(VLOOKUP(N$6&\"-\"&$M19&\"_old\",Ammortamento_Finanziario!$H:$L,5,FALSE),VLOOKUP($M19,TT_Tabelle_Riferimento!$H$31:$I$50,2,FALSE))","v":8},{"$f":"+IFERROR(VLOOKUP(O$6&\"-\"&$M19&\"_old\",Ammortamento_Finanziario!$H:$L,5,FALSE),VLOOKUP($M19,TT_Tabelle_Riferimento!$H$31:$I$50,2,FALSE))","v":8},{"$f":"+IFERROR(VLOOKUP(P$6&\"-\"&$M19&\"_old\",Ammortamento_Finanziario!$H:$L,5,FALSE),VLOOKUP($M19,TT_Tabelle_Riferimento!$H$31:$I$50,2,FALSE))","v":8},{"$f":"+IFERROR(VLOOKUP(Q$6&\"-\"&$M19&\"_old\",Ammortamento_Finanziario!$H:$L,5,FALSE),VLOOKUP($M19,TT_Tabelle_Riferimento!$H$31:$I$50,2,FALSE))","v":8},{"$f":"+IFERROR(VLOOKUP(R$6&\"-\"&$M19&\"_old\",Ammortamento_Finanziario!$H:$L,5,FALSE),VLOOKUP($M19,TT_Tabelle_Riferimento!$H$31:$I$50,2,FALSE))","v":8},{"$f":"+IFERROR(VLOOKUP(S$6&\"-\"&$M19&\"_old\",Ammortamento_Finanziario!$H:$L,5,FALSE),VLOOKUP($M19,TT_Tabelle_Riferimento!$H$31:$I$50,2,FALSE))","v":8},{"$f":"+IFERROR(VLOOKUP(T$6&\"-\"&$M19&\"_old\",Ammortamento_Finanziario!$H:$L,5,FALSE),VLOOKUP($M19,TT_Tabelle_Riferimento!$H$31:$I$50,2,FALSE))","v":8},{"$f":"+IFERROR(VLOOKUP(U$6&\"-\"&$M19&\"_old\",Ammortamento_Finanziario!$H:$L,5,FALSE),VLOOKUP($M19,TT_Tabelle_Riferimento!$H$31:$I$50,2,FALSE))","v":8},{"$f":"+IFERROR(VLOOKUP(V$6&\"-\"&$M19&\"_old\",Ammortamento_Finanziario!$H:$L,5,FALSE),VLOOKUP($M19,TT_Tabelle_Riferimento!$H$31:$I$50,2,FALSE))","v":8},{"$f":"+IFERROR(VLOOKUP(W$6&\"-\"&$M19&\"_old\",Ammortamento_Finanziario!$H:$L,5,FALSE),VLOOKUP($M19,TT_Tabelle_Riferimento!$H$31:$I$50,2,FALSE))","v":8},{"$f":"+IFERROR(VLOOKUP(X$6&\"-\"&$M19&\"_old\",Ammortamento_Finanziario!$H:$L,5,FALSE),VLOOKUP($M19,TT_Tabelle_Riferimento!$H$31:$I$50,2,FALSE))","v":8},{"$f":"+IFERROR(VLOOKUP(Y$6&\"-\"&$M19&\"_old\",Ammortamento_Finanziario!$H:$L,5,FALSE),VLOOKUP($M19,TT_Tabelle_Riferimento!$H$31:$I$50,2,FALSE))","v":8},{"$f":"+IFERROR(VLOOKUP(Z$6&\"-\"&$M19&\"_old\",Ammortamento_Finanziario!$H:$L,5,FALSE),VLOOKUP($M19,TT_Tabelle_Riferimento!$H$31:$I$50,2,FALSE))","v":8},{"$f":"+IFERROR(VLOOKUP(AA$6&\"-\"&$M19&\"_old\",Ammortamento_Finanziario!$H:$L,5,FALSE),VLOOKUP($M19,TT_Tabelle_Riferimento!$H$31:$I$50,2,FALSE))","v":8},{"$f":"+IFERROR(VLOOKUP(AB$6&\"-\"&$M19&\"_old\",Ammortamento_Finanziario!$H:$L,5,FALSE),VLOOKUP($M19,TT_Tabelle_Riferimento!$H$31:$I$50,2,FALSE))","v":8},{"$f":"+IFERROR(VLOOKUP(AC$6&\"-\"&$M19&\"_old\",Ammortamento_Finanziario!$H:$L,5,FALSE),VLOOKUP($M19,TT_Tabelle_Riferimento!$H$31:$I$50,2,FALSE))","v":8},{"$f":"+IFERROR(VLOOKUP(AD$6&\"-\"&$M19&\"_old\",Ammortamento_Finanziario!$H:$L,5,FALSE),VLOOKUP($M19,TT_Tabelle_Riferimento!$H$31:$I$50,2,FALSE))","v":8},{"$f":"+IFERROR(VLOOKUP(AE$6&\"-\"&$M19&\"_old\",Ammortamento_Finanziario!$H:$L,5,FALSE),VLOOKUP($M19,TT_Tabelle_Riferimento!$H$31:$I$50,2,FALSE))","v":8},{"$f":"+IFERROR(VLOOKUP(AF$6&\"-\"&$M19&\"_old\",Ammortamento_Finanziario!$H:$L,5,FALSE),VLOOKUP($M19,TT_Tabelle_Riferimento!$H$31:$I$50,2,FALSE))","v":8},{"$f":"+IFERROR(VLOOKUP(AG$6&\"-\"&$M19&\"_old\",Ammortamento_Finanziario!$H:$L,5,FALSE),VLOOKUP($M19,TT_Tabelle_Riferimento!$H$31:$I$50,2,FALSE))","v":8},{"$f":"+IFERROR(VLOOKUP(AH$6&\"-\"&$M19&\"_old\",Ammortamento_Finanziario!$H:$L,5,FALSE),VLOOKUP($M19,TT_Tabelle_Riferimento!$H$31:$I$50,2,FALSE))","v":8},{"$f":"+IFERROR(VLOOKUP(AI$6&\"-\"&$M19&\"_old\",Ammortamento_Finanziario!$H:$L,5,FALSE),VLOOKUP($M19,TT_Tabelle_Riferimento!$H$31:$I$50,2,FALSE))","v":8},{"$f":"+IFERROR(VLOOKUP(AJ$6&\"-\"&$M19&\"_old\",Ammortamento_Finanziario!$H:$L,5,FALSE),VLOOKUP($M19,TT_Tabelle_Riferimento!$H$31:$I$50,2,FALSE))","v":8},{"$f":"+IFERROR(VLOOKUP(AK$6&\"-\"&$M19&\"_old\",Ammortamento_Finanziario!$H:$L,5,FALSE),VLOOKUP($M19,TT_Tabelle_Riferimento!$H$31:$I$50,2,FALSE))","v":8},{"$f":"+IFERROR(VLOOKUP(AL$6&\"-\"&$M19&\"_old\",Ammortamento_Finanziario!$H:$L,5,FALSE),VLOOKUP($M19,TT_Tabelle_Riferimento!$H$31:$I$50,2,FALSE))","v":8},{"$f":"+IFERROR(VLOOKUP(AM$6&\"-\"&$M19&\"_old\",Ammortamento_Finanziario!$H:$L,5,FALSE),VLOOKUP($M19,TT_Tabelle_Riferimento!$H$31:$I$50,2,FALSE))","v":8},{"$f":"+IFERROR(VLOOKUP(AN$6&\"-\"&$M19&\"_old\",Ammortamento_Finanziario!$H:$L,5,FALSE),VLOOKUP($M19,TT_Tabelle_Riferimento!$H$31:$I$50,2,FALSE))","v":8},{"$f":"+IFERROR(VLOOKUP(AO$6&\"-\"&$M19&\"_old\",Ammortamento_Finanziario!$H:$L,5,FALSE),VLOOKUP($M19,TT_Tabelle_Riferimento!$H$31:$I$50,2,FALSE))","v":8},{"$f":"+IFERROR(VLOOKUP(AP$6&\"-\"&$M19&\"_old\",Ammortamento_Finanziario!$H:$L,5,FALSE),VLOOKUP($M19,TT_Tabelle_Riferimento!$H$31:$I$50,2,FALSE))","v":8},{"$f":"+IFERROR(VLOOKUP(AQ$6&\"-\"&$M19&\"_old\",Ammortamento_Finanziario!$H:$L,5,FALSE),VLOOKUP($M19,TT_Tabelle_Riferimento!$H$31:$I$50,2,FALSE))","v":8},{"$f":"+IFERROR(VLOOKUP(AR$6&\"-\"&$M19&\"_old\",Ammortamento_Finanziario!$H:$L,5,FALSE),VLOOKUP($M19,TT_Tabelle_Riferimento!$H$31:$I$50,2,FALSE))","v":8},{"$f":"+IFERROR(VLOOKUP(AS$6&\"-\"&$M19&\"_old\",Ammortamento_Finanziario!$H:$L,5,FALSE),VLOOKUP($M19,TT_Tabelle_Riferimento!$H$31:$I$50,2,FALSE))","v":8},{"$f":"+IFERROR(VLOOKUP(AT$6&\"-\"&$M19&\"_old\",Ammortamento_Finanziario!$H:$L,5,FALSE),VLOOKUP($M19,TT_Tabelle_Riferimento!$H$31:$I$50,2,FALSE))","v":8},{"$f":"+IFERROR(VLOOKUP(AU$6&\"-\"&$M19&\"_old\",Ammortamento_Finanziario!$H:$L,5,FALSE),VLOOKUP($M19,TT_Tabelle_Riferimento!$H$31:$I$50,2,FALSE))","v":8},{"$f":"+IFERROR(VLOOKUP(AV$6&\"-\"&$M19&\"_old\",Ammortamento_Finanziario!$H:$L,5,FALSE),VLOOKUP($M19,TT_Tabelle_Riferimento!$H$31:$I$50,2,FALSE))","v":8},{"$f":"+IFERROR(VLOOKUP(AW$6&\"-\"&$M19&\"_old\",Ammortamento_Finanziario!$H:$L,5,FALSE),VLOOKUP($M19,TT_Tabelle_Riferimento!$H$31:$I$50,2,FALSE))","v":8},{"$f":"+IFERROR(VLOOKUP(AX$6&\"-\"&$M19&\"_old\",Ammortamento_Finanziario!$H:$L,5,FALSE),VLOOKUP($M19,TT_Tabelle_Riferimento!$H$31:$I$50,2,FALSE))","v":8},{"$f":"+IFERROR(VLOOKUP(AY$6&\"-\"&$M19&\"_old\",Ammortamento_Finanziario!$H:$L,5,FALSE),VLOOKUP($M19,TT_Tabelle_Riferimento!$H$31:$I$50,2,FALSE))","v":8},{"$f":"+IFERROR(VLOOKUP(AZ$6&\"-\"&$M19&\"_old\",Ammortamento_Finanziario!$H:$L,5,FALSE),VLOOKUP($M19,TT_Tabelle_Riferimento!$H$31:$I$50,2,FALSE))","v":8},{"$f":"+IFERROR(VLOOKUP(BA$6&\"-\"&$M19&\"_old\",Ammortamento_Finanziario!$H:$L,5,FALSE),VLOOKUP($M19,TT_Tabelle_Riferimento!$H$31:$I$50,2,FALSE))","v":8},{"$f":"+IFERROR(VLOOKUP(BB$6&\"-\"&$M19&\"_old\",Ammortamento_Finanziario!$H:$L,5,FALSE),VLOOKUP($M19,TT_Tabelle_Riferimento!$H$31:$I$50,2,FALSE))","v":8},{"$f":"+IFERROR(VLOOKUP(BC$6&\"-\"&$M19&\"_old\",Ammortamento_Finanziario!$H:$L,5,FALSE),VLOOKUP($M19,TT_Tabelle_Riferimento!$H$31:$I$50,2,FALSE))","v":8},{"$f":"+IFERROR(VLOOKUP(BD$6&\"-\"&$M19&\"_old\",Ammortamento_Finanziario!$H:$L,5,FALSE),VLOOKUP($M19,TT_Tabelle_Riferimento!$H$31:$I$50,2,FALSE))","v":8},{"$f":"+IFERROR(VLOOKUP(BE$6&\"-\"&$M19&\"_old\",Ammortamento_Finanziario!$H:$L,5,FALSE),VLOOKUP($M19,TT_Tabelle_Riferimento!$H$31:$I$50,2,FALSE))","v":8},{"$f":"+IFERROR(VLOOKUP(BF$6&\"-\"&$M19&\"_old\",Ammortamento_Finanziario!$H:$L,5,FALSE),VLOOKUP($M19,TT_Tabelle_Riferimento!$H$31:$I$50,2,FALSE))","v":8},{"$f":"+IFERROR(VLOOKUP(BG$6&\"-\"&$M19&\"_old\",Ammortamento_Finanziario!$H:$L,5,FALSE),VLOOKUP($M19,TT_Tabelle_Riferimento!$H$31:$I$50,2,FALSE))","v":8},{"$f":"+IFERROR(VLOOKUP(BH$6&\"-\"&$M19&\"_old\",Ammortamento_Finanziario!$H:$L,5,FALSE),VLOOKUP($M19,TT_Tabelle_Riferimento!$H$31:$I$50,2,FALSE))","v":8},{"$f":"+IFERROR(VLOOKUP(BI$6&\"-\"&$M19&\"_old\",Ammortamento_Finanziario!$H:$L,5,FALSE),VLOOKUP($M19,TT_Tabelle_Riferimento!$H$31:$I$50,2,FALSE))","v":8},{"$f":"+IFERROR(VLOOKUP(BJ$6&\"-\"&$M19&\"_old\",Ammortamento_Finanziario!$H:$L,5,FALSE),VLOOKUP($M19,TT_Tabelle_Riferimento!$H$31:$I$50,2,FALSE))","v":8},{"$f":"+IFERROR(VLOOKUP(BK$6&\"-\"&$M19&\"_old\",Ammortamento_Finanziario!$H:$L,5,FALSE),VLOOKUP($M19,TT_Tabelle_Riferimento!$H$31:$I$50,2,FALSE))","v":8},{"$f":"+IFERROR(VLOOKUP(BL$6&\"-\"&$M19&\"_old\",Ammortamento_Finanziario!$H:$L,5,FALSE),VLOOKUP($M19,TT_Tabelle_Riferimento!$H$31:$I$50,2,FALSE))","v":8},{"$f":"+IFERROR(VLOOKUP(BM$6&\"-\"&$M19&\"_old\",Ammortamento_Finanziario!$H:$L,5,FALSE),VLOOKUP($M19,TT_Tabelle_Riferimento!$H$31:$I$50,2,FALSE))","v":8},{"$f":"+IFERROR(VLOOKUP(BN$6&\"-\"&$M19&\"_old\",Ammortamento_Finanziario!$H:$L,5,FALSE),VLOOKUP($M19,TT_Tabelle_Riferimento!$H$31:$I$50,2,FALSE))","v":8},{"$f":"+IFERROR(VLOOKUP(BO$6&\"-\"&$M19&\"_old\",Ammortamento_Finanziario!$H:$L,5,FALSE),VLOOKUP($M19,TT_Tabelle_Riferimento!$H$31:$I$50,2,FALSE))","v":8},{"$f":"+IFERROR(VLOOKUP(BP$6&\"-\"&$M19&\"_old\",Ammortamento_Finanziario!$H:$L,5,FALSE),VLOOKUP($M19,TT_Tabelle_Riferimento!$H$31:$I$50,2,FALSE))","v":8},{"$f":"+IFERROR(VLOOKUP(BQ$6&\"-\"&$M19&\"_old\",Ammortamento_Finanziario!$H:$L,5,FALSE),VLOOKUP($M19,TT_Tabelle_Riferimento!$H$31:$I$50,2,FALSE))","v":8},{"$f":"+IFERROR(VLOOKUP(BR$6&\"-\"&$M19&\"_old\",Ammortamento_Finanziario!$H:$L,5,FALSE),VLOOKUP($M19,TT_Tabelle_Riferimento!$H$31:$I$50,2,FALSE))","v":8},{"$f":"+IFERROR(VLOOKUP(BS$6&\"-\"&$M19&\"_old\",Ammortamento_Finanziario!$H:$L,5,FALSE),VLOOKUP($M19,TT_Tabelle_Riferimento!$H$31:$I$50,2,FALSE))","v":8},{"$f":"+IFERROR(VLOOKUP(BT$6&\"-\"&$M19&\"_old\",Ammortamento_Finanziario!$H:$L,5,FALSE),VLOOKUP($M19,TT_Tabelle_Riferimento!$H$31:$I$50,2,FALSE))","v":8},{"$f":"+IFERROR(VLOOKUP(BU$6&\"-\"&$M19&\"_old\",Ammortamento_Finanziario!$H:$L,5,FALSE),VLOOKUP($M19,TT_Tabelle_Riferimento!$H$31:$I$50,2,FALSE))","v":8},{"$f":"+IFERROR(VLOOKUP(BV$6&\"-\"&$M19&\"_old\",Ammortamento_Finanziario!$H:$L,5,FALSE),VLOOKUP($M19,TT_Tabelle_Riferimento!$H$31:$I$50,2,FALSE))","v":8},{"$f":"+IFERROR(VLOOKUP(BW$6&\"-\"&$M19&\"_old\",Ammortamento_Finanziario!$H:$L,5,FALSE),VLOOKUP($M19,TT_Tabelle_Riferimento!$H$31:$I$50,2,FALSE))","v":8},{"$f":"+IFERROR(VLOOKUP(BX$6&\"-\"&$M19&\"_old\",Ammortamento_Finanziario!$H:$L,5,FALSE),VLOOKUP($M19,TT_Tabelle_Riferimento!$H$31:$I$50,2,FALSE))","v":8},{"$f":"+IFERROR(VLOOKUP(BY$6&\"-\"&$M19&\"_old\",Ammortamento_Finanziario!$H:$L,5,FALSE),VLOOKUP($M19,TT_Tabelle_Riferimento!$H$31:$I$50,2,FALSE))","v":8},{"$f":"+IFERROR(VLOOKUP(BZ$6&\"-\"&$M19&\"_old\",Ammortamento_Finanziario!$H:$L,5,FALSE),VLOOKUP($M19,TT_Tabelle_Riferimento!$H$31:$I$50,2,FALSE))","v":8},{"$f":"+IFERROR(VLOOKUP(CA$6&\"-\"&$M19&\"_old\",Ammortamento_Finanziario!$H:$L,5,FALSE),VLOOKUP($M19,TT_Tabelle_Riferimento!$H$31:$I$50,2,FALSE))","v":8},{"$f":"+IFERROR(VLOOKUP(CB$6&\"-\"&$M19&\"_old\",Ammortamento_Finanziario!$H:$L,5,FALSE),VLOOKUP($M19,TT_Tabelle_Riferimento!$H$31:$I$50,2,FALSE))","v":8},{"$f":"+IFERROR(VLOOKUP(CC$6&\"-\"&$M19&\"_old\",Ammortamento_Finanziario!$H:$L,5,FALSE),VLOOKUP($M19,TT_Tabelle_Riferimento!$H$31:$I$50,2,FALSE))","v":8},{"$f":"+IFERROR(VLOOKUP(CD$6&\"-\"&$M19&\"_old\",Ammortamento_Finanziario!$H:$L,5,FALSE),VLOOKUP($M19,TT_Tabelle_Riferimento!$H$31:$I$50,2,FALSE))","v":8},{"$f":"+IFERROR(VLOOKUP(CE$6&\"-\"&$M19&\"_old\",Ammortamento_Finanziario!$H:$L,5,FALSE),VLOOKUP($M19,TT_Tabelle_Riferimento!$H$31:$I$50,2,FALSE))","v":8},{"$f":"+IFERROR(VLOOKUP(CF$6&\"-\"&$M19&\"_old\",Ammortamento_Finanziario!$H:$L,5,FALSE),VLOOKUP($M19,TT_Tabelle_Riferimento!$H$31:$I$50,2,FALSE))","v":8},{"$f":"+IFERROR(VLOOKUP(CG$6&\"-\"&$M19&\"_old\",Ammortamento_Finanziario!$H:$L,5,FALSE),VLOOKUP($M19,TT_Tabelle_Riferimento!$H$31:$I$50,2,FALSE))","v":8},{"$f":"+IFERROR(VLOOKUP(CH$6&\"-\"&$M19&\"_old\",Ammortamento_Finanziario!$H:$L,5,FALSE),VLOOKUP($M19,TT_Tabelle_Riferimento!$H$31:$I$50,2,FALSE))","v":8},{"$f":"+IFERROR(VLOOKUP(CI$6&\"-\"&$M19&\"_old\",Ammortamento_Finanziario!$H:$L,5,FALSE),VLOOKUP($M19,TT_Tabelle_Riferimento!$H$31:$I$50,2,FALSE))","v":8},{"$f":"+IFERROR(VLOOKUP(CJ$6&\"-\"&$M19&\"_old\",Ammortamento_Finanziario!$H:$L,5,FALSE),VLOOKUP($M19,TT_Tabelle_Riferimento!$H$31:$I$50,2,FALSE))","v":8},{"$f":"+IFERROR(VLOOKUP(CK$6&\"-\"&$M19&\"_old\",Ammortamento_Finanziario!$H:$L,5,FALSE),VLOOKUP($M19,TT_Tabelle_Riferimento!$H$31:$I$50,2,FALSE))","v":8},{"$f":"+IFERROR(VLOOKUP(CL$6&\"-\"&$M19&\"_old\",Ammortamento_Finanziario!$H:$L,5,FALSE),VLOOKUP($M19,TT_Tabelle_Riferimento!$H$31:$I$50,2,FALSE))","v":8},{"$f":"+IFERROR(VLOOKUP(CM$6&\"-\"&$M19&\"_old\",Ammortamento_Finanziario!$H:$L,5,FALSE),VLOOKUP($M19,TT_Tabelle_Riferimento!$H$31:$I$50,2,FALSE))","v":8},{"$f":"+IFERROR(VLOOKUP(CN$6&\"-\"&$M19&\"_old\",Ammortamento_Finanziario!$H:$L,5,FALSE),VLOOKUP($M19,TT_Tabelle_Riferimento!$H$31:$I$50,2,FALSE))","v":8},{"$f":"+IFERROR(VLOOKUP(CO$6&\"-\"&$M19&\"_old\",Ammortamento_Finanziario!$H:$L,5,FALSE),VLOOKUP($M19,TT_Tabelle_Riferimento!$H$31:$I$50,2,FALSE))","v":8},{"$f":"+IFERROR(VLOOKUP(CP$6&\"-\"&$M19&\"_old\",Ammortamento_Finanziario!$H:$L,5,FALSE),VLOOKUP($M19,TT_Tabelle_Riferimento!$H$31:$I$50,2,FALSE))","v":8},{"$f":"+IFERROR(VLOOKUP(CQ$6&\"-\"&$M19&\"_old\",Ammortamento_Finanziario!$H:$L,5,FALSE),VLOOKUP($M19,TT_Tabelle_Riferimento!$H$31:$I$50,2,FALSE))","v":8},{"$f":"+IFERROR(VLOOKUP(CR$6&\"-\"&$M19&\"_old\",Ammortamento_Finanziario!$H:$L,5,FALSE),VLOOKUP($M19,TT_Tabelle_Riferimento!$H$31:$I$50,2,FALSE))","v":8},{"$f":"+IFERROR(VLOOKUP(CS$6&\"-\"&$M19&\"_old\",Ammortamento_Finanziario!$H:$L,5,FALSE),VLOOKUP($M19,TT_Tabelle_Riferimento!$H$31:$I$50,2,FALSE))","v":8},{"$f":"+IFERROR(VLOOKUP(CT$6&\"-\"&$M19&\"_old\",Ammortamento_Finanziario!$H:$L,5,FALSE),VLOOKUP($M19,TT_Tabelle_Riferimento!$H$31:$I$50,2,FALSE))","v":8},{"$f":"+IFERROR(VLOOKUP(CU$6&\"-\"&$M19&\"_old\",Ammortamento_Finanziario!$H:$L,5,FALSE),VLOOKUP($M19,TT_Tabelle_Riferimento!$H$31:$I$50,2,FALSE))","v":8},{"$f":"+IFERROR(VLOOKUP(CV$6&\"-\"&$M19&\"_old\",Ammortamento_Finanziario!$H:$L,5,FALSE),VLOOKUP($M19,TT_Tabelle_Riferimento!$H$31:$I$50,2,FALSE))","v":8},{"$f":"+IFERROR(VLOOKUP(CW$6&\"-\"&$M19&\"_old\",Ammortamento_Finanziario!$H:$L,5,FALSE),VLOOKUP($M19,TT_Tabelle_Riferimento!$H$31:$I$50,2,FALSE))","v":8},{"$f":"+IFERROR(VLOOKUP(CX$6&\"-\"&$M19&\"_old\",Ammortamento_Finanziario!$H:$L,5,FALSE),VLOOKUP($M19,TT_Tabelle_Riferimento!$H$31:$I$50,2,FALSE))","v":8},{"$f":"+IFERROR(VLOOKUP(CY$6&\"-\"&$M19&\"_old\",Ammortamento_Finanziario!$H:$L,5,FALSE),VLOOKUP($M19,TT_Tabelle_Riferimento!$H$31:$I$50,2,FALSE))","v":8},{"$f":"+IFERROR(VLOOKUP(CZ$6&\"-\"&$M19&\"_old\",Ammortamento_Finanziario!$H:$L,5,FALSE),VLOOKUP($M19,TT_Tabelle_Riferimento!$H$31:$I$50,2,FALSE))","v":8},{"$f":"+IFERROR(VLOOKUP(DA$6&\"-\"&$M19&\"_old\",Ammortamento_Finanziario!$H:$L,5,FALSE),VLOOKUP($M19,TT_Tabelle_Riferimento!$H$31:$I$50,2,FALSE))","v":8},{"$f":"+IFERROR(VLOOKUP(DB$6&\"-\"&$M19&\"_old\",Ammortamento_Finanziario!$H:$L,5,FALSE),VLOOKUP($M19,TT_Tabelle_Riferimento!$H$31:$I$50,2,FALSE))","v":8},{"$f":"+IFERROR(VLOOKUP(DC$6&\"-\"&$M19&\"_old\",Ammortamento_Finanziario!$H:$L,5,FALSE),VLOOKUP($M19,TT_Tabelle_Riferimento!$H$31:$I$50,2,FALSE))","v":8},{"$f":"+IFERROR(VLOOKUP(DD$6&\"-\"&$M19&\"_old\",Ammortamento_Finanziario!$H:$L,5,FALSE),VLOOKUP($M19,TT_Tabelle_Riferimento!$H$31:$I$50,2,FALSE))","v":8},{"$f":"+IFERROR(VLOOKUP(DE$6&\"-\"&$M19&\"_old\",Ammortamento_Finanziario!$H:$L,5,FALSE),VLOOKUP($M19,TT_Tabelle_Riferimento!$H$31:$I$50,2,FALSE))","v":8},{"$f":"+IFERROR(VLOOKUP(DF$6&\"-\"&$M19&\"_old\",Ammortamento_Finanziario!$H:$L,5,FALSE),VLOOKUP($M19,TT_Tabelle_Riferimento!$H$31:$I$50,2,FALSE))","v":8},{"$f":"+IFERROR(VLOOKUP(DG$6&\"-\"&$M19&\"_old\",Ammortamento_Finanziario!$H:$L,5,FALSE),VLOOKUP($M19,TT_Tabelle_Riferimento!$H$31:$I$50,2,FALSE))","v":8},{"$f":"+IFERROR(VLOOKUP(DH$6&\"-\"&$M19&\"_old\",Ammortamento_Finanziario!$H:$L,5,FALSE),VLOOKUP($M19,TT_Tabelle_Riferimento!$H$31:$I$50,2,FALSE))","v":8},{"$f":"+IFERROR(VLOOKUP(DI$6&\"-\"&$M19&\"_old\",Ammortamento_Finanziario!$H:$L,5,FALSE),VLOOKUP($M19,TT_Tabelle_Riferimento!$H$31:$I$50,2,FALSE))","v":8},{"$f":"+IFERROR(VLOOKUP(DJ$6&\"-\"&$M19&\"_old\",Ammortamento_Finanziario!$H:$L,5,FALSE),VLOOKUP($M19,TT_Tabelle_Riferimento!$H$31:$I$50,2,FALSE))","v":8},{"$f":"+IFERROR(VLOOKUP(DK$6&\"-\"&$M19&\"_old\",Ammortamento_Finanziario!$H:$L,5,FALSE),VLOOKUP($M19,TT_Tabelle_Riferimento!$H$31:$I$50,2,FALSE))","v":8},{"$f":"+IFERROR(VLOOKUP(DL$6&\"-\"&$M19&\"_old\",Ammortamento_Finanziario!$H:$L,5,FALSE),VLOOKUP($M19,TT_Tabelle_Riferimento!$H$31:$I$50,2,FALSE))","v":8},{"$f":"+IFERROR(VLOOKUP(DM$6&\"-\"&$M19&\"_old\",Ammortamento_Finanziario!$H:$L,5,FALSE),VLOOKUP($M19,TT_Tabelle_Riferimento!$H$31:$I$50,2,FALSE))","v":8},{"$f":"+IFERROR(VLOOKUP(DN$6&\"-\"&$M19&\"_old\",Ammortamento_Finanziario!$H:$L,5,FALSE),VLOOKUP($M19,TT_Tabelle_Riferimento!$H$31:$I$50,2,FALSE))","v":8},{"$f":"+IFERROR(VLOOKUP(DO$6&\"-\"&$M19&\"_old\",Ammortamento_Finanziario!$H:$L,5,FALSE),VLOOKUP($M19,TT_Tabelle_Riferimento!$H$31:$I$50,2,FALSE))","v":8},{"$f":"+IFERROR(VLOOKUP(DP$6&\"-\"&$M19&\"_old\",Ammortamento_Finanziario!$H:$L,5,FALSE),VLOOKUP($M19,TT_Tabelle_Riferimento!$H$31:$I$50,2,FALSE))","v":8},{"$f":"+IFERROR(VLOOKUP(DQ$6&\"-\"&$M19&\"_old\",Ammortamento_Finanziario!$H:$L,5,FALSE),VLOOKUP($M19,TT_Tabelle_Riferimento!$H$31:$I$50,2,FALSE))","v":8},{"$f":"+IFERROR(VLOOKUP(DR$6&\"-\"&$M19&\"_old\",Ammortamento_Finanziario!$H:$L,5,FALSE),VLOOKUP($M19,TT_Tabelle_Riferimento!$H$31:$I$50,2,FALSE))","v":8},{"$f":"+IFERROR(VLOOKUP(DS$6&\"-\"&$M19&\"_old\",Ammortamento_Finanziario!$H:$L,5,FALSE),VLOOKUP($M19,TT_Tabelle_Riferimento!$H$31:$I$50,2,FALSE))","v":8},{"$f":"+IFERROR(VLOOKUP(DT$6&\"-\"&$M19&\"_old\",Ammortamento_Finanziario!$H:$L,5,FALSE),VLOOKUP($M19,TT_Tabelle_Riferimento!$H$31:$I$50,2,FALSE))","v":8},{"$f":"+IFERROR(VLOOKUP(DU$6&\"-\"&$M19&\"_old\",Ammortamento_Finanziario!$H:$L,5,FALSE),VLOOKUP($M19,TT_Tabelle_Riferimento!$H$31:$I$50,2,FALSE))","v":8},{"$f":"+IFERROR(VLOOKUP(DV$6&\"-\"&$M19&\"_old\",Ammortamento_Finanziario!$H:$L,5,FALSE),VLOOKUP($M19,TT_Tabelle_Riferimento!$H$31:$I$50,2,FALSE))","v":8},{"$f":"+IFERROR(VLOOKUP(DW$6&\"-\"&$M19&\"_old\",Ammortamento_Finanziario!$H:$L,5,FALSE),VLOOKUP($M19,TT_Tabelle_Riferimento!$H$31:$I$50,2,FALSE))","v":8},{"$f":"+IFERROR(VLOOKUP(DX$6&\"-\"&$M19&\"_old\",Ammortamento_Finanziario!$H:$L,5,FALSE),VLOOKUP($M19,TT_Tabelle_Riferimento!$H$31:$I$50,2,FALSE))","v":8},{"$f":"+IFERROR(VLOOKUP(DY$6&\"-\"&$M19&\"_old\",Ammortamento_Finanziario!$H:$L,5,FALSE),VLOOKUP($M19,TT_Tabelle_Riferimento!$H$31:$I$50,2,FALSE))","v":8},{"$f":"+IFERROR(VLOOKUP(DZ$6&\"-\"&$M19&\"_old\",Ammortamento_Finanziario!$H:$L,5,FALSE),VLOOKUP($M19,TT_Tabelle_Riferimento!$H$31:$I$50,2,FALSE))","v":8},{"$f":"+IFERROR(VLOOKUP(EA$6&\"-\"&$M19&\"_old\",Ammortamento_Finanziario!$H:$L,5,FALSE),VLOOKUP($M19,TT_Tabelle_Riferimento!$H$31:$I$50,2,FALSE))","v":8},{"$f":"+IFERROR(VLOOKUP(EB$6&\"-\"&$M19&\"_old\",Ammortamento_Finanziario!$H:$L,5,FALSE),VLOOKUP($M19,TT_Tabelle_Riferimento!$H$31:$I$50,2,FALSE))","v":8},{"$f":"+IFERROR(VLOOKUP(EC$6&\"-\"&$M19&\"_old\",Ammortamento_Finanziario!$H:$L,5,FALSE),VLOOKUP($M19,TT_Tabelle_Riferimento!$H$31:$I$50,2,FALSE))","v":8},{"$f":"+IFERROR(VLOOKUP(ED$6&\"-\"&$M19&\"_old\",Ammortamento_Finanziario!$H:$L,5,FALSE),VLOOKUP($M19,TT_Tabelle_Riferimento!$H$31:$I$50,2,FALSE))","v":8},{"$f":"+IFERROR(VLOOKUP(EE$6&\"-\"&$M19&\"_old\",Ammortamento_Finanziario!$H:$L,5,FALSE),VLOOKUP($M19,TT_Tabelle_Riferimento!$H$31:$I$50,2,FALSE))","v":8},{"$f":"+IFERROR(VLOOKUP(EF$6&\"-\"&$M19&\"_old\",Ammortamento_Finanziario!$H:$L,5,FALSE),VLOOKUP($M19,TT_Tabelle_Riferimento!$H$31:$I$50,2,FALSE))","v":8},{"$f":"+IFERROR(VLOOKUP(EG$6&\"-\"&$M19&\"_old\",Ammortamento_Finanziario!$H:$L,5,FALSE),VLOOKUP($M19,TT_Tabelle_Riferimento!$H$31:$I$50,2,FALSE))","v":8},{"$f":"+IFERROR(VLOOKUP(EH$6&\"-\"&$M19&\"_old\",Ammortamento_Finanziario!$H:$L,5,FALSE),VLOOKUP($M19,TT_Tabelle_Riferimento!$H$31:$I$50,2,FALSE))","v":8},{"$f":"+IFERROR(VLOOKUP(EI$6&\"-\"&$M19&\"_old\",Ammortamento_Finanziario!$H:$L,5,FALSE),VLOOKUP($M19,TT_Tabelle_Riferimento!$H$31:$I$50,2,FALSE))","v":8},{"$f":"+IFERROR(VLOOKUP(EJ$6&\"-\"&$M19&\"_old\",Ammortamento_Finanziario!$H:$L,5,FALSE),VLOOKUP($M19,TT_Tabelle_Riferimento!$H$31:$I$50,2,FALSE))","v":8},{"$f":"+IFERROR(VLOOKUP(EK$6&\"-\"&$M19&\"_old\",Ammortamento_Finanziario!$H:$L,5,FALSE),VLOOKUP($M19,TT_Tabelle_Riferimento!$H$31:$I$50,2,FALSE))","v":8},{"$f":"+IFERROR(VLOOKUP(EL$6&\"-\"&$M19&\"_old\",Ammortamento_Finanziario!$H:$L,5,FALSE),VLOOKUP($M19,TT_Tabelle_Riferimento!$H$31:$I$50,2,FALSE))","v":8},{"$f":"+IFERROR(VLOOKUP(EM$6&\"-\"&$M19&\"_old\",Ammortamento_Finanziario!$H:$L,5,FALSE),VLOOKUP($M19,TT_Tabelle_Riferimento!$H$31:$I$50,2,FALSE))","v":8},{"$f":"+IFERROR(VLOOKUP(EN$6&\"-\"&$M19&\"_old\",Ammortamento_Finanziario!$H:$L,5,FALSE),VLOOKUP($M19,TT_Tabelle_Riferimento!$H$31:$I$50,2,FALSE))","v":8},{"$f":"+IFERROR(VLOOKUP(EO$6&\"-\"&$M19&\"_old\",Ammortamento_Finanziario!$H:$L,5,FALSE),VLOOKUP($M19,TT_Tabelle_Riferimento!$H$31:$I$50,2,FALSE))","v":8},{"$f":"+IFERROR(VLOOKUP(EP$6&\"-\"&$M19&\"_old\",Ammortamento_Finanziario!$H:$L,5,FALSE),VLOOKUP($M19,TT_Tabelle_Riferimento!$H$31:$I$50,2,FALSE))","v":8},{"$f":"+IFERROR(VLOOKUP(EQ$6&\"-\"&$M19&\"_old\",Ammortamento_Finanziario!$H:$L,5,FALSE),VLOOKUP($M19,TT_Tabelle_Riferimento!$H$31:$I$50,2,FALSE))","v":8},{"$f":"+IFERROR(VLOOKUP(ER$6&\"-\"&$M19&\"_old\",Ammortamento_Finanziario!$H:$L,5,FALSE),VLOOKUP($M19,TT_Tabelle_Riferimento!$H$31:$I$50,2,FALSE))","v":8},{"$f":"+IFERROR(VLOOKUP(ES$6&\"-\"&$M19&\"_old\",Ammortamento_Finanziario!$H:$L,5,FALSE),VLOOKUP($M19,TT_Tabelle_Riferimento!$H$31:$I$50,2,FALSE))","v":8},{"$f":"+IFERROR(VLOOKUP(ET$6&\"-\"&$M19&\"_old\",Ammortamento_Finanziario!$H:$L,5,FALSE),VLOOKUP($M19,TT_Tabelle_Riferimento!$H$31:$I$50,2,FALSE))","v":8},{"$f":"+IFERROR(VLOOKUP(EU$6&\"-\"&$M19&\"_old\",Ammortamento_Finanziario!$H:$L,5,FALSE),VLOOKUP($M19,TT_Tabelle_Riferimento!$H$31:$I$50,2,FALSE))","v":8},{"$f":"+IFERROR(VLOOKUP(EV$6&\"-\"&$M19&\"_old\",Ammortamento_Finanziario!$H:$L,5,FALSE),VLOOKUP($M19,TT_Tabelle_Riferimento!$H$31:$I$50,2,FALSE))","v":8},{"$f":"+IFERROR(VLOOKUP(EW$6&\"-\"&$M19&\"_old\",Ammortamento_Finanziario!$H:$L,5,FALSE),VLOOKUP($M19,TT_Tabelle_Riferimento!$H$31:$I$50,2,FALSE))","v":8},{"$f":"+IFERROR(VLOOKUP(EX$6&\"-\"&$M19&\"_old\",Ammortamento_Finanziario!$H:$L,5,FALSE),VLOOKUP($M19,TT_Tabelle_Riferimento!$H$31:$I$50,2,FALSE))","v":8},{"$f":"+IFERROR(VLOOKUP(EY$6&\"-\"&$M19&\"_old\",Ammortamento_Finanziario!$H:$L,5,FALSE),VLOOKUP($M19,TT_Tabelle_Riferimento!$H$31:$I$50,2,FALSE))","v":8},{"$f":"+IFERROR(VLOOKUP(EZ$6&\"-\"&$M19&\"_old\",Ammortamento_Finanziario!$H:$L,5,FALSE),VLOOKUP($M19,TT_Tabelle_Riferimento!$H$31:$I$50,2,FALSE))","v":8},{"$f":"+IFERROR(VLOOKUP(FA$6&\"-\"&$M19&\"_old\",Ammortamento_Finanziario!$H:$L,5,FALSE),VLOOKUP($M19,TT_Tabelle_Riferimento!$H$31:$I$50,2,FALSE))","v":8},{"$f":"+IFERROR(VLOOKUP(FB$6&\"-\"&$M19&\"_old\",Ammortamento_Finanziario!$H:$L,5,FALSE),VLOOKUP($M19,TT_Tabelle_Riferimento!$H$31:$I$50,2,FALSE))","v":8},{"$f":"+IFERROR(VLOOKUP(FC$6&\"-\"&$M19&\"_old\",Ammortamento_Finanziario!$H:$L,5,FALSE),VLOOKUP($M19,TT_Tabelle_Riferimento!$H$31:$I$50,2,FALSE))","v":8},{"$f":"+IFERROR(VLOOKUP(FD$6&\"-\"&$M19&\"_old\",Ammortamento_Finanziario!$H:$L,5,FALSE),VLOOKUP($M19,TT_Tabelle_Riferimento!$H$31:$I$50,2,FALSE))","v":8},{"$f":"+IFERROR(VLOOKUP(FE$6&\"-\"&$M19&\"_old\",Ammortamento_Finanziario!$H:$L,5,FALSE),VLOOKUP($M19,TT_Tabelle_Riferimento!$H$31:$I$50,2,FALSE))","v":8},{"$f":"+IFERROR(VLOOKUP(FF$6&\"-\"&$M19&\"_old\",Ammortamento_Finanziario!$H:$L,5,FALSE),VLOOKUP($M19,TT_Tabelle_Riferimento!$H$31:$I$50,2,FALSE))","v":8},{"$f":"+IFERROR(VLOOKUP(FG$6&\"-\"&$M19&\"_old\",Ammortamento_Finanziario!$H:$L,5,FALSE),VLOOKUP($M19,TT_Tabelle_Riferimento!$H$31:$I$50,2,FALSE))","v":8},{"$f":"+IFERROR(VLOOKUP(FH$6&\"-\"&$M19&\"_old\",Ammortamento_Finanziario!$H:$L,5,FALSE),VLOOKUP($M19,TT_Tabelle_Riferimento!$H$31:$I$50,2,FALSE))","v":8},{"$f":"+IFERROR(VLOOKUP(FI$6&\"-\"&$M19&\"_old\",Ammortamento_Finanziario!$H:$L,5,FALSE),VLOOKUP($M19,TT_Tabelle_Riferimento!$H$31:$I$50,2,FALSE))","v":8},{"$f":"+IFERROR(VLOOKUP(FJ$6&\"-\"&$M19&\"_old\",Ammortamento_Finanziario!$H:$L,5,FALSE),VLOOKUP($M19,TT_Tabelle_Riferimento!$H$31:$I$50,2,FALSE))","v":8},{"$f":"+IFERROR(VLOOKUP(FK$6&\"-\"&$M19&\"_old\",Ammortamento_Finanziario!$H:$L,5,FALSE),VLOOKUP($M19,TT_Tabelle_Riferimento!$H$31:$I$50,2,FALSE))","v":8},{"$f":"+IFERROR(VLOOKUP(FL$6&\"-\"&$M19&\"_old\",Ammortamento_Finanziario!$H:$L,5,FALSE),VLOOKUP($M19,TT_Tabelle_Riferimento!$H$31:$I$50,2,FALSE))","v":8},{"$f":"+IFERROR(VLOOKUP(FM$6&\"-\"&$M19&\"_old\",Ammortamento_Finanziario!$H:$L,5,FALSE),VLOOKUP($M19,TT_Tabelle_Riferimento!$H$31:$I$50,2,FALSE))","v":8},{"$f":"+IFERROR(VLOOKUP(FN$6&\"-\"&$M19&\"_old\",Ammortamento_Finanziario!$H:$L,5,FALSE),VLOOKUP($M19,TT_Tabelle_Riferimento!$H$31:$I$50,2,FALSE))","v":8},{"$f":"+IFERROR(VLOOKUP(FO$6&\"-\"&$M19&\"_old\",Ammortamento_Finanziario!$H:$L,5,FALSE),VLOOKUP($M19,TT_Tabelle_Riferimento!$H$31:$I$50,2,FALSE))","v":8},{"$f":"+IFERROR(VLOOKUP(FP$6&\"-\"&$M19&\"_old\",Ammortamento_Finanziario!$H:$L,5,FALSE),VLOOKUP($M19,TT_Tabelle_Riferimento!$H$31:$I$50,2,FALSE))","v":8},{"$f":"+IFERROR(VLOOKUP(FQ$6&\"-\"&$M19&\"_old\",Ammortamento_Finanziario!$H:$L,5,FALSE),VLOOKUP($M19,TT_Tabelle_Riferimento!$H$31:$I$50,2,FALSE))","v":8},{"$f":"+IFERROR(VLOOKUP(FR$6&\"-\"&$M19&\"_old\",Ammortamento_Finanziario!$H:$L,5,FALSE),VLOOKUP($M19,TT_Tabelle_Riferimento!$H$31:$I$50,2,FALSE))","v":8},{"$f":"+IFERROR(VLOOKUP(FS$6&\"-\"&$M19&\"_old\",Ammortamento_Finanziario!$H:$L,5,FALSE),VLOOKUP($M19,TT_Tabelle_Riferimento!$H$31:$I$50,2,FALSE))","v":8},{"$f":"+IFERROR(VLOOKUP(FT$6&\"-\"&$M19&\"_old\",Ammortamento_Finanziario!$H:$L,5,FALSE),VLOOKUP($M19,TT_Tabelle_Riferimento!$H$31:$I$50,2,FALSE))","v":8},{"$f":"+IFERROR(VLOOKUP(FU$6&\"-\"&$M19&\"_old\",Ammortamento_Finanziario!$H:$L,5,FALSE),VLOOKUP($M19,TT_Tabelle_Riferimento!$H$31:$I$50,2,FALSE))","v":8},{"$f":"+IFERROR(VLOOKUP(FV$6&\"-\"&$M19&\"_old\",Ammortamento_Finanziario!$H:$L,5,FALSE),VLOOKUP($M19,TT_Tabelle_Riferimento!$H$31:$I$50,2,FALSE))","v":8},{"$f":"+IFERROR(VLOOKUP(FW$6&\"-\"&$M19&\"_old\",Ammortamento_Finanziario!$H:$L,5,FALSE),VLOOKUP($M19,TT_Tabelle_Riferimento!$H$31:$I$50,2,FALSE))","v":8},{"$f":"+IFERROR(VLOOKUP(FX$6&\"-\"&$M19&\"_old\",Ammortamento_Finanziario!$H:$L,5,FALSE),VLOOKUP($M19,TT_Tabelle_Riferimento!$H$31:$I$50,2,FALSE))","v":8},{"$f":"+IFERROR(VLOOKUP(FY$6&\"-\"&$M19&\"_old\",Ammortamento_Finanziario!$H:$L,5,FALSE),VLOOKUP($M19,TT_Tabelle_Riferimento!$H$31:$I$50,2,FALSE))","v":8},{"$f":"+IFERROR(VLOOKUP(FZ$6&\"-\"&$M19&\"_old\",Ammortamento_Finanziario!$H:$L,5,FALSE),VLOOKUP($M19,TT_Tabelle_Riferimento!$H$31:$I$50,2,FALSE))","v":8},{"$f":"+IFERROR(VLOOKUP(GA$6&\"-\"&$M19&\"_old\",Ammortamento_Finanziario!$H:$L,5,FALSE),VLOOKUP($M19,TT_Tabelle_Riferimento!$H$31:$I$50,2,FALSE))","v":8},{"$f":"+IFERROR(VLOOKUP(GB$6&\"-\"&$M19&\"_old\",Ammortamento_Finanziario!$H:$L,5,FALSE),VLOOKUP($M19,TT_Tabelle_Riferimento!$H$31:$I$50,2,FALSE))","v":8},{"$f":"+IFERROR(VLOOKUP(GC$6&\"-\"&$M19&\"_old\",Ammortamento_Finanziario!$H:$L,5,FALSE),VLOOKUP($M19,TT_Tabelle_Riferimento!$H$31:$I$50,2,FALSE))","v":8},{"$f":"+IFERROR(VLOOKUP(GD$6&\"-\"&$M19&\"_old\",Ammortamento_Finanziario!$H:$L,5,FALSE),VLOOKUP($M19,TT_Tabelle_Riferimento!$H$31:$I$50,2,FALSE))","v":8},{"$f":"+IFERROR(VLOOKUP(GE$6&\"-\"&$M19&\"_old\",Ammortamento_Finanziario!$H:$L,5,FALSE),VLOOKUP($M19,TT_Tabelle_Riferimento!$H$31:$I$50,2,FALSE))","v":8},{"$f":"+IFERROR(VLOOKUP(GF$6&\"-\"&$M19&\"_old\",Ammortamento_Finanziario!$H:$L,5,FALSE),VLOOKUP($M19,TT_Tabelle_Riferimento!$H$31:$I$50,2,FALSE))","v":8},{"$f":"+IFERROR(VLOOKUP(GG$6&\"-\"&$M19&\"_old\",Ammortamento_Finanziario!$H:$L,5,FALSE),VLOOKUP($M19,TT_Tabelle_Riferimento!$H$31:$I$50,2,FALSE))","v":8},{"$f":"+IFERROR(VLOOKUP(GH$6&\"-\"&$M19&\"_old\",Ammortamento_Finanziario!$H:$L,5,FALSE),VLOOKUP($M19,TT_Tabelle_Riferimento!$H$31:$I$50,2,FALSE))","v":8},{"$f":"+IFERROR(VLOOKUP(GI$6&\"-\"&$M19&\"_old\",Ammortamento_Finanziario!$H:$L,5,FALSE),VLOOKUP($M19,TT_Tabelle_Riferimento!$H$31:$I$50,2,FALSE))","v":8},{"$f":"+IFERROR(VLOOKUP(GJ$6&\"-\"&$M19&\"_old\",Ammortamento_Finanziario!$H:$L,5,FALSE),VLOOKUP($M19,TT_Tabelle_Riferimento!$H$31:$I$50,2,FALSE))","v":8},{"$f":"+IFERROR(VLOOKUP(GK$6&\"-\"&$M19&\"_old\",Ammortamento_Finanziario!$H:$L,5,FALSE),VLOOKUP($M19,TT_Tabelle_Riferimento!$H$31:$I$50,2,FALSE))","v":8},{"$f":"+IFERROR(VLOOKUP(GL$6&\"-\"&$M19&\"_old\",Ammortamento_Finanziario!$H:$L,5,FALSE),VLOOKUP($M19,TT_Tabelle_Riferimento!$H$31:$I$50,2,FALSE))","v":8},{"$f":"+IFERROR(VLOOKUP(GM$6&\"-\"&$M19&\"_old\",Ammortamento_Finanziario!$H:$L,5,FALSE),VLOOKUP($M19,TT_Tabelle_Riferimento!$H$31:$I$50,2,FALSE))","v":8},{"$f":"+IFERROR(VLOOKUP(GN$6&\"-\"&$M19&\"_old\",Ammortamento_Finanziario!$H:$L,5,FALSE),VLOOKUP($M19,TT_Tabelle_Riferimento!$H$31:$I$50,2,FALSE))","v":8},{"$f":"+IFERROR(VLOOKUP(GO$6&\"-\"&$M19&\"_old\",Ammortamento_Finanziario!$H:$L,5,FALSE),VLOOKUP($M19,TT_Tabelle_Riferimento!$H$31:$I$50,2,FALSE))","v":8},{"$f":"+IFERROR(VLOOKUP(GP$6&\"-\"&$M19&\"_old\",Ammortamento_Finanziario!$H:$L,5,FALSE),VLOOKUP($M19,TT_Tabelle_Riferimento!$H$31:$I$50,2,FALSE))","v":8},{"$f":"+IFERROR(VLOOKUP(GQ$6&\"-\"&$M19&\"_old\",Ammortamento_Finanziario!$H:$L,5,FALSE),VLOOKUP($M19,TT_Tabelle_Riferimento!$H$31:$I$50,2,FALSE))","v":8},{"$f":"+IFERROR(VLOOKUP(GR$6&\"-\"&$M19&\"_old\",Ammortamento_Finanziario!$H:$L,5,FALSE),VLOOKUP($M19,TT_Tabelle_Riferimento!$H$31:$I$50,2,FALSE))","v":8},{"$f":"+IFERROR(VLOOKUP(GS$6&\"-\"&$M19&\"_old\",Ammortamento_Finanziario!$H:$L,5,FALSE),VLOOKUP($M19,TT_Tabelle_Riferimento!$H$31:$I$50,2,FALSE))","v":8},{"$f":"+IFERROR(VLOOKUP(GT$6&\"-\"&$M19&\"_old\",Ammortamento_Finanziario!$H:$L,5,FALSE),VLOOKUP($M19,TT_Tabelle_Riferimento!$H$31:$I$50,2,FALSE))","v":8},{"$f":"+IFERROR(VLOOKUP(GU$6&\"-\"&$M19&\"_old\",Ammortamento_Finanziario!$H:$L,5,FALSE),VLOOKUP($M19,TT_Tabelle_Riferimento!$H$31:$I$50,2,FALSE))","v":8},{"$f":"+IFERROR(VLOOKUP(GV$6&\"-\"&$M19&\"_old\",Ammortamento_Finanziario!$H:$L,5,FALSE),VLOOKUP($M19,TT_Tabelle_Riferimento!$H$31:$I$50,2,FALSE))","v":8},{"$f":"+IFERROR(VLOOKUP(GW$6&\"-\"&$M19&\"_old\",Ammortamento_Finanziario!$H:$L,5,FALSE),VLOOKUP($M19,TT_Tabelle_Riferimento!$H$31:$I$50,2,FALSE))","v":8},{"$f":"+IFERROR(VLOOKUP(GX$6&\"-\"&$M19&\"_old\",Ammortamento_Finanziario!$H:$L,5,FALSE),VLOOKUP($M19,TT_Tabelle_Riferimento!$H$31:$I$50,2,FALSE))","v":8},{"$f":"+IFERROR(VLOOKUP(GY$6&\"-\"&$M19&\"_old\",Ammortamento_Finanziario!$H:$L,5,FALSE),VLOOKUP($M19,TT_Tabelle_Riferimento!$H$31:$I$50,2,FALSE))","v":8},{"$f":"+IFERROR(VLOOKUP(GZ$6&\"-\"&$M19&\"_old\",Ammortamento_Finanziario!$H:$L,5,FALSE),VLOOKUP($M19,TT_Tabelle_Riferimento!$H$31:$I$50,2,FALSE))","v":8},{"$f":"+IFERROR(VLOOKUP(HA$6&\"-\"&$M19&\"_old\",Ammortamento_Finanziario!$H:$L,5,FALSE),VLOOKUP($M19,TT_Tabelle_Riferimento!$H$31:$I$50,2,FALSE))","v":8},{"$f":"+IFERROR(VLOOKUP(HB$6&\"-\"&$M19&\"_old\",Ammortamento_Finanziario!$H:$L,5,FALSE),VLOOKUP($M19,TT_Tabelle_Riferimento!$H$31:$I$50,2,FALSE))","v":8},{"$f":"+IFERROR(VLOOKUP(HC$6&\"-\"&$M19&\"_old\",Ammortamento_Finanziario!$H:$L,5,FALSE),VLOOKUP($M19,TT_Tabelle_Riferimento!$H$31:$I$50,2,FALSE))","v":8},{"$f":"+IFERROR(VLOOKUP(HD$6&\"-\"&$M19&\"_old\",Ammortamento_Finanziario!$H:$L,5,FALSE),VLOOKUP($M19,TT_Tabelle_Riferimento!$H$31:$I$50,2,FALSE))","v":8},{"$f":"+IFERROR(VLOOKUP(HE$6&\"-\"&$M19&\"_old\",Ammortamento_Finanziario!$H:$L,5,FALSE),VLOOKUP($M19,TT_Tabelle_Riferimento!$H$31:$I$50,2,FALSE))","v":8},{"$f":"+IFERROR(VLOOKUP(HF$6&\"-\"&$M19&\"_old\",Ammortamento_Finanziario!$H:$L,5,FALSE),VLOOKUP($M19,TT_Tabelle_Riferimento!$H$31:$I$50,2,FALSE))","v":8},{"$f":"+IFERROR(VLOOKUP(HG$6&\"-\"&$M19&\"_old\",Ammortamento_Finanziario!$H:$L,5,FALSE),VLOOKUP($M19,TT_Tabelle_Riferimento!$H$31:$I$50,2,FALSE))","v":8},{"$f":"+IFERROR(VLOOKUP(HH$6&\"-\"&$M19&\"_old\",Ammortamento_Finanziario!$H:$L,5,FALSE),VLOOKUP($M19,TT_Tabelle_Riferimento!$H$31:$I$50,2,FALSE))","v":8},{"$f":"+IFERROR(VLOOKUP(HI$6&\"-\"&$M19&\"_old\",Ammortamento_Finanziario!$H:$L,5,FALSE),VLOOKUP($M19,TT_Tabelle_Riferimento!$H$31:$I$50,2,FALSE))","v":8},{"$f":"+IFERROR(VLOOKUP(HJ$6&\"-\"&$M19&\"_old\",Ammortamento_Finanziario!$H:$L,5,FALSE),VLOOKUP($M19,TT_Tabelle_Riferimento!$H$31:$I$50,2,FALSE))","v":8},{"$f":"+IFERROR(VLOOKUP(HK$6&\"-\"&$M19&\"_old\",Ammortamento_Finanziario!$H:$L,5,FALSE),VLOOKUP($M19,TT_Tabelle_Riferimento!$H$31:$I$50,2,FALSE))","v":8},{"$f":"+IFERROR(VLOOKUP(HL$6&\"-\"&$M19&\"_old\",Ammortamento_Finanziario!$H:$L,5,FALSE),VLOOKUP($M19,TT_Tabelle_Riferimento!$H$31:$I$50,2,FALSE))","v":8},{"$f":"+IFERROR(VLOOKUP(HM$6&\"-\"&$M19&\"_old\",Ammortamento_Finanziario!$H:$L,5,FALSE),VLOOKUP($M19,TT_Tabelle_Riferimento!$H$31:$I$50,2,FALSE))","v":8},{"$f":"+IFERROR(VLOOKUP(HN$6&\"-\"&$M19&\"_old\",Ammortamento_Finanziario!$H:$L,5,FALSE),VLOOKUP($M19,TT_Tabelle_Riferimento!$H$31:$I$50,2,FALSE))","v":8},{"$f":"+IFERROR(VLOOKUP(HO$6&\"-\"&$M19&\"_old\",Ammortamento_Finanziario!$H:$L,5,FALSE),VLOOKUP($M19,TT_Tabelle_Riferimento!$H$31:$I$50,2,FALSE))","v":8},{"$f":"+IFERROR(VLOOKUP(HP$6&\"-\"&$M19&\"_old\",Ammortamento_Finanziario!$H:$L,5,FALSE),VLOOKUP($M19,TT_Tabelle_Riferimento!$H$31:$I$50,2,FALSE))","v":8},{"$f":"+IFERROR(VLOOKUP(HQ$6&\"-\"&$M19&\"_old\",Ammortamento_Finanziario!$H:$L,5,FALSE),VLOOKUP($M19,TT_Tabelle_Riferimento!$H$31:$I$50,2,FALSE))","v":8},{"$f":"+IFERROR(VLOOKUP(HR$6&\"-\"&$M19&\"_old\",Ammortamento_Finanziario!$H:$L,5,FALSE),VLOOKUP($M19,TT_Tabelle_Riferimento!$H$31:$I$50,2,FALSE))","v":8},{"$f":"+IFERROR(VLOOKUP(HS$6&\"-\"&$M19&\"_old\",Ammortamento_Finanziario!$H:$L,5,FALSE),VLOOKUP($M19,TT_Tabelle_Riferimento!$H$31:$I$50,2,FALSE))","v":8},{"$f":"+IFERROR(VLOOKUP(HT$6&\"-\"&$M19&\"_old\",Ammortamento_Finanziario!$H:$L,5,FALSE),VLOOKUP($M19,TT_Tabelle_Riferimento!$H$31:$I$50,2,FALSE))","v":8},{"$f":"+IFERROR(VLOOKUP(HU$6&\"-\"&$M19&\"_old\",Ammortamento_Finanziario!$H:$L,5,FALSE),VLOOKUP($M19,TT_Tabelle_Riferimento!$H$31:$I$50,2,FALSE))","v":8},{"$f":"+IFERROR(VLOOKUP(HV$6&\"-\"&$M19&\"_old\",Ammortamento_Finanziario!$H:$L,5,FALSE),VLOOKUP($M19,TT_Tabelle_Riferimento!$H$31:$I$50,2,FALSE))","v":8},{"$f":"+IFERROR(VLOOKUP(HW$6&\"-\"&$M19&\"_old\",Ammortamento_Finanziario!$H:$L,5,FALSE),VLOOKUP($M19,TT_Tabelle_Riferimento!$H$31:$I$50,2,FALSE))","v":8},{"$f":"+IFERROR(VLOOKUP(HX$6&\"-\"&$M19&\"_old\",Ammortamento_Finanziario!$H:$L,5,FALSE),VLOOKUP($M19,TT_Tabelle_Riferimento!$H$31:$I$50,2,FALSE))","v":8},{"$f":"+IFERROR(VLOOKUP(HY$6&\"-\"&$M19&\"_old\",Ammortamento_Finanziario!$H:$L,5,FALSE),VLOOKUP($M19,TT_Tabelle_Riferimento!$H$31:$I$50,2,FALSE))","v":8},{"$f":"+IFERROR(VLOOKUP(HZ$6&\"-\"&$M19&\"_old\",Ammortamento_Finanziario!$H:$L,5,FALSE),VLOOKUP($M19,TT_Tabelle_Riferimento!$H$31:$I$50,2,FALSE))","v":8},{"$f":"+IFERROR(VLOOKUP(IA$6&\"-\"&$M19&\"_old\",Ammortamento_Finanziario!$H:$L,5,FALSE),VLOOKUP($M19,TT_Tabelle_Riferimento!$H$31:$I$50,2,FALSE))","v":8},{"$f":"+IFERROR(VLOOKUP(IB$6&\"-\"&$M19&\"_old\",Ammortamento_Finanziario!$H:$L,5,FALSE),VLOOKUP($M19,TT_Tabelle_Riferimento!$H$31:$I$50,2,FALSE))","v":8},{"$f":"+IFERROR(VLOOKUP(IC$6&\"-\"&$M19&\"_old\",Ammortamento_Finanziario!$H:$L,5,FALSE),VLOOKUP($M19,TT_Tabelle_Riferimento!$H$31:$I$50,2,FALSE))","v":8},{"$f":"+IFERROR(VLOOKUP(ID$6&\"-\"&$M19&\"_old\",Ammortamento_Finanziario!$H:$L,5,FALSE),VLOOKUP($M19,TT_Tabelle_Riferimento!$H$31:$I$50,2,FALSE))","v":8},{"$f":"+IFERROR(VLOOKUP(IE$6&\"-\"&$M19&\"_old\",Ammortamento_Finanziario!$H:$L,5,FALSE),VLOOKUP($M19,TT_Tabelle_Riferimento!$H$31:$I$50,2,FALSE))","v":8},{"$f":"+IFERROR(VLOOKUP(IF$6&\"-\"&$M19&\"_old\",Ammortamento_Finanziario!$H:$L,5,FALSE),VLOOKUP($M19,TT_Tabelle_Riferimento!$H$31:$I$50,2,FALSE))","v":8},{"$f":"+IFERROR(VLOOKUP(IG$6&\"-\"&$M19&\"_old\",Ammortamento_Finanziario!$H:$L,5,FALSE),VLOOKUP($M19,TT_Tabelle_Riferimento!$H$31:$I$50,2,FALSE))","v":8},{"$f":"+IFERROR(VLOOKUP(IH$6&\"-\"&$M19&\"_old\",Ammortamento_Finanziario!$H:$L,5,FALSE),VLOOKUP($M19,TT_Tabelle_Riferimento!$H$31:$I$50,2,FALSE))","v":8},{"$f":"+IFERROR(VLOOKUP(II$6&\"-\"&$M19&\"_old\",Ammortamento_Finanziario!$H:$L,5,FALSE),VLOOKUP($M19,TT_Tabelle_Riferimento!$H$31:$I$50,2,FALSE))","v":8},{"$f":"+IFERROR(VLOOKUP(IJ$6&\"-\"&$M19&\"_old\",Ammortamento_Finanziario!$H:$L,5,FALSE),VLOOKUP($M19,TT_Tabelle_Riferimento!$H$31:$I$50,2,FALSE))","v":8},{"$f":"+IFERROR(VLOOKUP(IK$6&\"-\"&$M19&\"_old\",Ammortamento_Finanziario!$H:$L,5,FALSE),VLOOKUP($M19,TT_Tabelle_Riferimento!$H$31:$I$50,2,FALSE))","v":8},{"$f":"+IFERROR(VLOOKUP(IL$6&\"-\"&$M19&\"_old\",Ammortamento_Finanziario!$H:$L,5,FALSE),VLOOKUP($M19,TT_Tabelle_Riferimento!$H$31:$I$50,2,FALSE))","v":8},{"$f":"+IFERROR(VLOOKUP(IM$6&\"-\"&$M19&\"_old\",Ammortamento_Finanziario!$H:$L,5,FALSE),VLOOKUP($M19,TT_Tabelle_Riferimento!$H$31:$I$50,2,FALSE))","v":8},{"$f":"+IFERROR(VLOOKUP(IN$6&\"-\"&$M19&\"_old\",Ammortamento_Finanziario!$H:$L,5,FALSE),VLOOKUP($M19,TT_Tabelle_Riferimento!$H$31:$I$50,2,FALSE))","v":8},{"$f":"+IFERROR(VLOOKUP(IO$6&\"-\"&$M19&\"_old\",Ammortamento_Finanziario!$H:$L,5,FALSE),VLOOKUP($M19,TT_Tabelle_Riferimento!$H$31:$I$50,2,FALSE))","v":8},{"$f":"+IFERROR(VLOOKUP(IP$6&\"-\"&$M19&\"_old\",Ammortamento_Finanziario!$H:$L,5,FALSE),VLOOKUP($M19,TT_Tabelle_Riferimento!$H$31:$I$50,2,FALSE))","v":8},{"$f":"+IFERROR(VLOOKUP(IQ$6&\"-\"&$M19&\"_old\",Ammortamento_Finanziario!$H:$L,5,FALSE),VLOOKUP($M19,TT_Tabelle_Riferimento!$H$31:$I$50,2,FALSE))","v":8},{"$f":"+IFERROR(VLOOKUP(IR$6&\"-\"&$M19&\"_old\",Ammortamento_Finanziario!$H:$L,5,FALSE),VLOOKUP($M19,TT_Tabelle_Riferimento!$H$31:$I$50,2,FALSE))","v":8},{"$f":"+IFERROR(VLOOKUP(IS$6&\"-\"&$M19&\"_old\",Ammortamento_Finanziario!$H:$L,5,FALSE),VLOOKUP($M19,TT_Tabelle_Riferimento!$H$31:$I$50,2,FALSE))","v":8},{"$f":"+IFERROR(VLOOKUP(IT$6&\"-\"&$M19&\"_old\",Ammortamento_Finanziario!$H:$L,5,FALSE),VLOOKUP($M19,TT_Tabelle_Riferimento!$H$31:$I$50,2,FALSE))","v":8},{"$f":"+IFERROR(VLOOKUP(IU$6&\"-\"&$M19&\"_old\",Ammortamento_Finanziario!$H:$L,5,FALSE),VLOOKUP($M19,TT_Tabelle_Riferimento!$H$31:$I$50,2,FALSE))","v":8},{"$f":"+IFERROR(VLOOKUP(IV$6&\"-\"&$M19&\"_old\",Ammortamento_Finanziario!$H:$L,5,FALSE),VLOOKUP($M19,TT_Tabelle_Riferimento!$H$31:$I$50,2,FALSE))","v":8},{"$f":"+IFERROR(VLOOKUP(IW$6&\"-\"&$M19&\"_old\",Ammortamento_Finanziario!$H:$L,5,FALSE),VLOOKUP($M19,TT_Tabelle_Riferimento!$H$31:$I$50,2,FALSE))","v":8},{"$f":"+IFERROR(VLOOKUP(IX$6&\"-\"&$M19&\"_old\",Ammortamento_Finanziario!$H:$L,5,FALSE),VLOOKUP($M19,TT_Tabelle_Riferimento!$H$31:$I$50,2,FALSE))","v":8},{"$f":"+IFERROR(VLOOKUP(IY$6&\"-\"&$M19&\"_old\",Ammortamento_Finanziario!$H:$L,5,FALSE),VLOOKUP($M19,TT_Tabelle_Riferimento!$H$31:$I$50,2,FALSE))","v":8},{"$f":"+IFERROR(VLOOKUP(IZ$6&\"-\"&$M19&\"_old\",Ammortamento_Finanziario!$H:$L,5,FALSE),VLOOKUP($M19,TT_Tabelle_Riferimento!$H$31:$I$50,2,FALSE))","v":8},{"$f":"+IFERROR(VLOOKUP(JA$6&\"-\"&$M19&\"_old\",Ammortamento_Finanziario!$H:$L,5,FALSE),VLOOKUP($M19,TT_Tabelle_Riferimento!$H$31:$I$50,2,FALSE))","v":8},{"$f":"+IFERROR(VLOOKUP(JB$6&\"-\"&$M19&\"_old\",Ammortamento_Finanziario!$H:$L,5,FALSE),VLOOKUP($M19,TT_Tabelle_Riferimento!$H$31:$I$50,2,FALSE))","v":8},{"$f":"+IFERROR(VLOOKUP(JC$6&\"-\"&$M19&\"_old\",Ammortamento_Finanziario!$H:$L,5,FALSE),VLOOKUP($M19,TT_Tabelle_Riferimento!$H$31:$I$50,2,FALSE))","v":8},{"$f":"+IFERROR(VLOOKUP(JD$6&\"-\"&$M19&\"_old\",Ammortamento_Finanziario!$H:$L,5,FALSE),VLOOKUP($M19,TT_Tabelle_Riferimento!$H$31:$I$50,2,FALSE))","v":8},{"$f":"+IFERROR(VLOOKUP(JE$6&\"-\"&$M19&\"_old\",Ammortamento_Finanziario!$H:$L,5,FALSE),VLOOKUP($M19,TT_Tabelle_Riferimento!$H$31:$I$50,2,FALSE))","v":8},{"$f":"+IFERROR(VLOOKUP(JF$6&\"-\"&$M19&\"_old\",Ammortamento_Finanziario!$H:$L,5,FALSE),VLOOKUP($M19,TT_Tabelle_Riferimento!$H$31:$I$50,2,FALSE))","v":8},{"$f":"+IFERROR(VLOOKUP(JG$6&\"-\"&$M19&\"_old\",Ammortamento_Finanziario!$H:$L,5,FALSE),VLOOKUP($M19,TT_Tabelle_Riferimento!$H$31:$I$50,2,FALSE))","v":8},{"$f":"+IFERROR(VLOOKUP(JH$6&\"-\"&$M19&\"_old\",Ammortamento_Finanziario!$H:$L,5,FALSE),VLOOKUP($M19,TT_Tabelle_Riferimento!$H$31:$I$50,2,FALSE))","v":8},{"$f":"+IFERROR(VLOOKUP(JI$6&\"-\"&$M19&\"_old\",Ammortamento_Finanziario!$H:$L,5,FALSE),VLOOKUP($M19,TT_Tabelle_Riferimento!$H$31:$I$50,2,FALSE))","v":8},{"$f":"+IFERROR(VLOOKUP(JJ$6&\"-\"&$M19&\"_old\",Ammortamento_Finanziario!$H:$L,5,FALSE),VLOOKUP($M19,TT_Tabelle_Riferimento!$H$31:$I$50,2,FALSE))","v":8},{"$f":"+IFERROR(VLOOKUP(JK$6&\"-\"&$M19&\"_old\",Ammortamento_Finanziario!$H:$L,5,FALSE),VLOOKUP($M19,TT_Tabelle_Riferimento!$H$31:$I$50,2,FALSE))","v":8},{"$f":"+IFERROR(VLOOKUP(JL$6&\"-\"&$M19&\"_old\",Ammortamento_Finanziario!$H:$L,5,FALSE),VLOOKUP($M19,TT_Tabelle_Riferimento!$H$31:$I$50,2,FALSE))","v":8},{"$f":"+IFERROR(VLOOKUP(JM$6&\"-\"&$M19&\"_old\",Ammortamento_Finanziario!$H:$L,5,FALSE),VLOOKUP($M19,TT_Tabelle_Riferimento!$H$31:$I$50,2,FALSE))","v":8},{"$f":"+IFERROR(VLOOKUP(JN$6&\"-\"&$M19&\"_old\",Ammortamento_Finanziario!$H:$L,5,FALSE),VLOOKUP($M19,TT_Tabelle_Riferimento!$H$31:$I$50,2,FALSE))","v":8},{"$f":"+IFERROR(VLOOKUP(JO$6&\"-\"&$M19&\"_old\",Ammortamento_Finanziario!$H:$L,5,FALSE),VLOOKUP($M19,TT_Tabelle_Riferimento!$H$31:$I$50,2,FALSE))","v":8},{"$f":"+IFERROR(VLOOKUP(JP$6&\"-\"&$M19&\"_old\",Ammortamento_Finanziario!$H:$L,5,FALSE),VLOOKUP($M19,TT_Tabelle_Riferimento!$H$31:$I$50,2,FALSE))","v":8},{"$f":"+IFERROR(VLOOKUP(JQ$6&\"-\"&$M19&\"_old\",Ammortamento_Finanziario!$H:$L,5,FALSE),VLOOKUP($M19,TT_Tabelle_Riferimento!$H$31:$I$50,2,FALSE))","v":8},{"$f":"+IFERROR(VLOOKUP(JR$6&\"-\"&$M19&\"_old\",Ammortamento_Finanziario!$H:$L,5,FALSE),VLOOKUP($M19,TT_Tabelle_Riferimento!$H$31:$I$50,2,FALSE))","v":8},{"$f":"+IFERROR(VLOOKUP(JS$6&\"-\"&$M19&\"_old\",Ammortamento_Finanziario!$H:$L,5,FALSE),VLOOKUP($M19,TT_Tabelle_Riferimento!$H$31:$I$50,2,FALSE))","v":8},{"$f":"+IFERROR(VLOOKUP(JT$6&\"-\"&$M19&\"_old\",Ammortamento_Finanziario!$H:$L,5,FALSE),VLOOKUP($M19,TT_Tabelle_Riferimento!$H$31:$I$50,2,FALSE))","v":8},{"$f":"+IFERROR(VLOOKUP(JU$6&\"-\"&$M19&\"_old\",Ammortamento_Finanziario!$H:$L,5,FALSE),VLOOKUP($M19,TT_Tabelle_Riferimento!$H$31:$I$50,2,FALSE))","v":8},{"$f":"+IFERROR(VLOOKUP(JV$6&\"-\"&$M19&\"_old\",Ammortamento_Finanziario!$H:$L,5,FALSE),VLOOKUP($M19,TT_Tabelle_Riferimento!$H$31:$I$50,2,FALSE))","v":8},{"$f":"+IFERROR(VLOOKUP(JW$6&\"-\"&$M19&\"_old\",Ammortamento_Finanziario!$H:$L,5,FALSE),VLOOKUP($M19,TT_Tabelle_Riferimento!$H$31:$I$50,2,FALSE))","v":8},{"$f":"+IFERROR(VLOOKUP(JX$6&\"-\"&$M19&\"_old\",Ammortamento_Finanziario!$H:$L,5,FALSE),VLOOKUP($M19,TT_Tabelle_Riferimento!$H$31:$I$50,2,FALSE))","v":8},{"$f":"+IFERROR(VLOOKUP(JY$6&\"-\"&$M19&\"_old\",Ammortamento_Finanziario!$H:$L,5,FALSE),VLOOKUP($M19,TT_Tabelle_Riferimento!$H$31:$I$50,2,FALSE))","v":8},{"$f":"+IFERROR(VLOOKUP(JZ$6&\"-\"&$M19&\"_old\",Ammortamento_Finanziario!$H:$L,5,FALSE),VLOOKUP($M19,TT_Tabelle_Riferimento!$H$31:$I$50,2,FALSE))","v":8},{"$f":"+IFERROR(VLOOKUP(KA$6&\"-\"&$M19&\"_old\",Ammortamento_Finanziario!$H:$L,5,FALSE),VLOOKUP($M19,TT_Tabelle_Riferimento!$H$31:$I$50,2,FALSE))","v":8},{"$f":"+IFERROR(VLOOKUP(KB$6&\"-\"&$M19&\"_old\",Ammortamento_Finanziario!$H:$L,5,FALSE),VLOOKUP($M19,TT_Tabelle_Riferimento!$H$31:$I$50,2,FALSE))","v":8},{"$f":"+IFERROR(VLOOKUP(KC$6&\"-\"&$M19&\"_old\",Ammortamento_Finanziario!$H:$L,5,FALSE),VLOOKUP($M19,TT_Tabelle_Riferimento!$H$31:$I$50,2,FALSE))","v":8},{"$f":"+IFERROR(VLOOKUP(KD$6&\"-\"&$M19&\"_old\",Ammortamento_Finanziario!$H:$L,5,FALSE),VLOOKUP($M19,TT_Tabelle_Riferimento!$H$31:$I$50,2,FALSE))","v":8},{"$f":"+IFERROR(VLOOKUP(KE$6&\"-\"&$M19&\"_old\",Ammortamento_Finanziario!$H:$L,5,FALSE),VLOOKUP($M19,TT_Tabelle_Riferimento!$H$31:$I$50,2,FALSE))","v":8},{"$f":"+IFERROR(VLOOKUP(KF$6&\"-\"&$M19&\"_old\",Ammortamento_Finanziario!$H:$L,5,FALSE),VLOOKUP($M19,TT_Tabelle_Riferimento!$H$31:$I$50,2,FALSE))","v":8},{"$f":"+IFERROR(VLOOKUP(KG$6&\"-\"&$M19&\"_old\",Ammortamento_Finanziario!$H:$L,5,FALSE),VLOOKUP($M19,TT_Tabelle_Riferimento!$H$31:$I$50,2,FALSE))","v":8},{"$f":"+IFERROR(VLOOKUP(KH$6&\"-\"&$M19&\"_old\",Ammortamento_Finanziario!$H:$L,5,FALSE),VLOOKUP($M19,TT_Tabelle_Riferimento!$H$31:$I$50,2,FALSE))","v":8},{"$f":"+IFERROR(VLOOKUP(KI$6&\"-\"&$M19&\"_old\",Ammortamento_Finanziario!$H:$L,5,FALSE),VLOOKUP($M19,TT_Tabelle_Riferimento!$H$31:$I$50,2,FALSE))","v":8},{"$f":"+IFERROR(VLOOKUP(KJ$6&\"-\"&$M19&\"_old\",Ammortamento_Finanziario!$H:$L,5,FALSE),VLOOKUP($M19,TT_Tabelle_Riferimento!$H$31:$I$50,2,FALSE))","v":8},{"$f":"+IFERROR(VLOOKUP(KK$6&\"-\"&$M19&\"_old\",Ammortamento_Finanziario!$H:$L,5,FALSE),VLOOKUP($M19,TT_Tabelle_Riferimento!$H$31:$I$50,2,FALSE))","v":8},{"$f":"+IFERROR(VLOOKUP(KL$6&\"-\"&$M19&\"_old\",Ammortamento_Finanziario!$H:$L,5,FALSE),VLOOKUP($M19,TT_Tabelle_Riferimento!$H$31:$I$50,2,FALSE))","v":8},{"$f":"+IFERROR(VLOOKUP(KM$6&\"-\"&$M19&\"_old\",Ammortamento_Finanziario!$H:$L,5,FALSE),VLOOKUP($M19,TT_Tabelle_Riferimento!$H$31:$I$50,2,FALSE))","v":8},{"$f":"+IFERROR(VLOOKUP(KN$6&\"-\"&$M19&\"_old\",Ammortamento_Finanziario!$H:$L,5,FALSE),VLOOKUP($M19,TT_Tabelle_Riferimento!$H$31:$I$50,2,FALSE))","v":8},{"$f":"+IFERROR(VLOOKUP(KO$6&\"-\"&$M19&\"_old\",Ammortamento_Finanziario!$H:$L,5,FALSE),VLOOKUP($M19,TT_Tabelle_Riferimento!$H$31:$I$50,2,FALSE))","v":8},{"$f":"+IFERROR(VLOOKUP(KP$6&\"-\"&$M19&\"_old\",Ammortamento_Finanziario!$H:$L,5,FALSE),VLOOKUP($M19,TT_Tabelle_Riferimento!$H$31:$I$50,2,FALSE))","v":8},{"$f":"+IFERROR(VLOOKUP(KQ$6&\"-\"&$M19&\"_old\",Ammortamento_Finanziario!$H:$L,5,FALSE),VLOOKUP($M19,TT_Tabelle_Riferimento!$H$31:$I$50,2,FALSE))","v":8},{"$f":"+IFERROR(VLOOKUP(KR$6&\"-\"&$M19&\"_old\",Ammortamento_Finanziario!$H:$L,5,FALSE),VLOOKUP($M19,TT_Tabelle_Riferimento!$H$31:$I$50,2,FALSE))","v":8},{"$f":"+IFERROR(VLOOKUP(KS$6&\"-\"&$M19&\"_old\",Ammortamento_Finanziario!$H:$L,5,FALSE),VLOOKUP($M19,TT_Tabelle_Riferimento!$H$31:$I$50,2,FALSE))","v":8},{"$f":"+IFERROR(VLOOKUP(KT$6&\"-\"&$M19&\"_old\",Ammortamento_Finanziario!$H:$L,5,FALSE),VLOOKUP($M19,TT_Tabelle_Riferimento!$H$31:$I$50,2,FALSE))","v":8},{"$f":"+IFERROR(VLOOKUP(KU$6&\"-\"&$M19&\"_old\",Ammortamento_Finanziario!$H:$L,5,FALSE),VLOOKUP($M19,TT_Tabelle_Riferimento!$H$31:$I$50,2,FALSE))","v":8},{"$f":"+IFERROR(VLOOKUP(KV$6&\"-\"&$M19&\"_old\",Ammortamento_Finanziario!$H:$L,5,FALSE),VLOOKUP($M19,TT_Tabelle_Riferimento!$H$31:$I$50,2,FALSE))","v":8},{"$f":"+IFERROR(VLOOKUP(KW$6&\"-\"&$M19&\"_old\",Ammortamento_Finanziario!$H:$L,5,FALSE),VLOOKUP($M19,TT_Tabelle_Riferimento!$H$31:$I$50,2,FALSE))","v":8},{"$f":"+IFERROR(VLOOKUP(KX$6&\"-\"&$M19&\"_old\",Ammortamento_Finanziario!$H:$L,5,FALSE),VLOOKUP($M19,TT_Tabelle_Riferimento!$H$31:$I$50,2,FALSE))","v":8},{"$f":"+IFERROR(VLOOKUP(KY$6&\"-\"&$M19&\"_old\",Ammortamento_Finanziario!$H:$L,5,FALSE),VLOOKUP($M19,TT_Tabelle_Riferimento!$H$31:$I$50,2,FALSE))","v":8},{"$f":"+IFERROR(VLOOKUP(KZ$6&\"-\"&$M19&\"_old\",Ammortamento_Finanziario!$H:$L,5,FALSE),VLOOKUP($M19,TT_Tabelle_Riferimento!$H$31:$I$50,2,FALSE))","v":8},{"$f":"+IFERROR(VLOOKUP(LA$6&\"-\"&$M19&\"_old\",Ammortamento_Finanziario!$H:$L,5,FALSE),VLOOKUP($M19,TT_Tabelle_Riferimento!$H$31:$I$50,2,FALSE))","v":8},{"$f":"+IFERROR(VLOOKUP(LB$6&\"-\"&$M19&\"_old\",Ammortamento_Finanziario!$H:$L,5,FALSE),VLOOKUP($M19,TT_Tabelle_Riferimento!$H$31:$I$50,2,FALSE))","v":8},{"$f":"+IFERROR(VLOOKUP(LC$6&\"-\"&$M19&\"_old\",Ammortamento_Finanziario!$H:$L,5,FALSE),VLOOKUP($M19,TT_Tabelle_Riferimento!$H$31:$I$50,2,FALSE))","v":8},{"$f":"+IFERROR(VLOOKUP(LD$6&\"-\"&$M19&\"_old\",Ammortamento_Finanziario!$H:$L,5,FALSE),VLOOKUP($M19,TT_Tabelle_Riferimento!$H$31:$I$50,2,FALSE))","v":8},{"$f":"+IFERROR(VLOOKUP(LE$6&\"-\"&$M19&\"_old\",Ammortamento_Finanziario!$H:$L,5,FALSE),VLOOKUP($M19,TT_Tabelle_Riferimento!$H$31:$I$50,2,FALSE))","v":8},{"$f":"+IFERROR(VLOOKUP(LF$6&\"-\"&$M19&\"_old\",Ammortamento_Finanziario!$H:$L,5,FALSE),VLOOKUP($M19,TT_Tabelle_Riferimento!$H$31:$I$50,2,FALSE))","v":8},{"$f":"+IFERROR(VLOOKUP(LG$6&\"-\"&$M19&\"_old\",Ammortamento_Finanziario!$H:$L,5,FALSE),VLOOKUP($M19,TT_Tabelle_Riferimento!$H$31:$I$50,2,FALSE))","v":8},{"$f":"+IFERROR(VLOOKUP(LH$6&\"-\"&$M19&\"_old\",Ammortamento_Finanziario!$H:$L,5,FALSE),VLOOKUP($M19,TT_Tabelle_Riferimento!$H$31:$I$50,2,FALSE))","v":8},{"$f":"+IFERROR(VLOOKUP(LI$6&\"-\"&$M19&\"_old\",Ammortamento_Finanziario!$H:$L,5,FALSE),VLOOKUP($M19,TT_Tabelle_Riferimento!$H$31:$I$50,2,FALSE))","v":8},{"$f":"+IFERROR(VLOOKUP(LJ$6&\"-\"&$M19&\"_old\",Ammortamento_Finanziario!$H:$L,5,FALSE),VLOOKUP($M19,TT_Tabelle_Riferimento!$H$31:$I$50,2,FALSE))","v":8},{"$f":"+IFERROR(VLOOKUP(LK$6&\"-\"&$M19&\"_old\",Ammortamento_Finanziario!$H:$L,5,FALSE),VLOOKUP($M19,TT_Tabelle_Riferimento!$H$31:$I$50,2,FALSE))","v":8},{"$f":"+IFERROR(VLOOKUP(LL$6&\"-\"&$M19&\"_old\",Ammortamento_Finanziario!$H:$L,5,FALSE),VLOOKUP($M19,TT_Tabelle_Riferimento!$H$31:$I$50,2,FALSE))","v":8},{"$f":"+IFERROR(VLOOKUP(LM$6&\"-\"&$M19&\"_old\",Ammortamento_Finanziario!$H:$L,5,FALSE),VLOOKUP($M19,TT_Tabelle_Riferimento!$H$31:$I$50,2,FALSE))","v":8},{"$f":"+IFERROR(VLOOKUP(LN$6&\"-\"&$M19&\"_old\",Ammortamento_Finanziario!$H:$L,5,FALSE),VLOOKUP($M19,TT_Tabelle_Riferimento!$H$31:$I$50,2,FALSE))","v":8},{"$f":"+IFERROR(VLOOKUP(LO$6&\"-\"&$M19&\"_old\",Ammortamento_Finanziario!$H:$L,5,FALSE),VLOOKUP($M19,TT_Tabelle_Riferimento!$H$31:$I$50,2,FALSE))","v":8},{"$f":"+IFERROR(VLOOKUP(LP$6&\"-\"&$M19&\"_old\",Ammortamento_Finanziario!$H:$L,5,FALSE),VLOOKUP($M19,TT_Tabelle_Riferimento!$H$31:$I$50,2,FALSE))","v":8},{"$f":"+IFERROR(VLOOKUP(LQ$6&\"-\"&$M19&\"_old\",Ammortamento_Finanziario!$H:$L,5,FALSE),VLOOKUP($M19,TT_Tabelle_Riferimento!$H$31:$I$50,2,FALSE))","v":8},{"$f":"+IFERROR(VLOOKUP(LR$6&\"-\"&$M19&\"_old\",Ammortamento_Finanziario!$H:$L,5,FALSE),VLOOKUP($M19,TT_Tabelle_Riferimento!$H$31:$I$50,2,FALSE))","v":8},{"$f":"+IFERROR(VLOOKUP(LS$6&\"-\"&$M19&\"_old\",Ammortamento_Finanziario!$H:$L,5,FALSE),VLOOKUP($M19,TT_Tabelle_Riferimento!$H$31:$I$50,2,FALSE))","v":8},{"$f":"+IFERROR(VLOOKUP(LT$6&\"-\"&$M19&\"_old\",Ammortamento_Finanziario!$H:$L,5,FALSE),VLOOKUP($M19,TT_Tabelle_Riferimento!$H$31:$I$50,2,FALSE))","v":8},{"$f":"+IFERROR(VLOOKUP(LU$6&\"-\"&$M19&\"_old\",Ammortamento_Finanziario!$H:$L,5,FALSE),VLOOKUP($M19,TT_Tabelle_Riferimento!$H$31:$I$50,2,FALSE))","v":8},{"$f":"+IFERROR(VLOOKUP(LV$6&\"-\"&$M19&\"_old\",Ammortamento_Finanziario!$H:$L,5,FALSE),VLOOKUP($M19,TT_Tabelle_Riferimento!$H$31:$I$50,2,FALSE))","v":8},{"$f":"+IFERROR(VLOOKUP(LW$6&\"-\"&$M19&\"_old\",Ammortamento_Finanziario!$H:$L,5,FALSE),VLOOKUP($M19,TT_Tabelle_Riferimento!$H$31:$I$50,2,FALSE))","v":8},{"$f":"+IFERROR(VLOOKUP(LX$6&\"-\"&$M19&\"_old\",Ammortamento_Finanziario!$H:$L,5,FALSE),VLOOKUP($M19,TT_Tabelle_Riferimento!$H$31:$I$50,2,FALSE))","v":8},{"$f":"+IFERROR(VLOOKUP(LY$6&\"-\"&$M19&\"_old\",Ammortamento_Finanziario!$H:$L,5,FALSE),VLOOKUP($M19,TT_Tabelle_Riferimento!$H$31:$I$50,2,FALSE))","v":8},{"$f":"+IFERROR(VLOOKUP(LZ$6&\"-\"&$M19&\"_old\",Ammortamento_Finanziario!$H:$L,5,FALSE),VLOOKUP($M19,TT_Tabelle_Riferimento!$H$31:$I$50,2,FALSE))","v":8},{"$f":"+IFERROR(VLOOKUP(MA$6&\"-\"&$M19&\"_old\",Ammortamento_Finanziario!$H:$L,5,FALSE),VLOOKUP($M19,TT_Tabelle_Riferimento!$H$31:$I$50,2,FALSE))","v":8},{"$f":"+IFERROR(VLOOKUP(MB$6&\"-\"&$M19&\"_old\",Ammortamento_Finanziario!$H:$L,5,FALSE),VLOOKUP($M19,TT_Tabelle_Riferimento!$H$31:$I$50,2,FALSE))","v":8},{"$f":"+IFERROR(VLOOKUP(MC$6&\"-\"&$M19&\"_old\",Ammortamento_Finanziario!$H:$L,5,FALSE),VLOOKUP($M19,TT_Tabelle_Riferimento!$H$31:$I$50,2,FALSE))","v":8},{"$f":"+IFERROR(VLOOKUP(MD$6&\"-\"&$M19&\"_old\",Ammortamento_Finanziario!$H:$L,5,FALSE),VLOOKUP($M19,TT_Tabelle_Riferimento!$H$31:$I$50,2,FALSE))","v":8},{"$f":"+IFERROR(VLOOKUP(ME$6&\"-\"&$M19&\"_old\",Ammortamento_Finanziario!$H:$L,5,FALSE),VLOOKUP($M19,TT_Tabelle_Riferimento!$H$31:$I$50,2,FALSE))","v":8},{"$f":"+IFERROR(VLOOKUP(MF$6&\"-\"&$M19&\"_old\",Ammortamento_Finanziario!$H:$L,5,FALSE),VLOOKUP($M19,TT_Tabelle_Riferimento!$H$31:$I$50,2,FALSE))","v":8},{"$f":"+IFERROR(VLOOKUP(MG$6&\"-\"&$M19&\"_old\",Ammortamento_Finanziario!$H:$L,5,FALSE),VLOOKUP($M19,TT_Tabelle_Riferimento!$H$31:$I$50,2,FALSE))","v":8},{"$f":"+IFERROR(VLOOKUP(MH$6&\"-\"&$M19&\"_old\",Ammortamento_Finanziario!$H:$L,5,FALSE),VLOOKUP($M19,TT_Tabelle_Riferimento!$H$31:$I$50,2,FALSE))","v":8},{"$f":"+IFERROR(VLOOKUP(MI$6&\"-\"&$M19&\"_old\",Ammortamento_Finanziario!$H:$L,5,FALSE),VLOOKUP($M19,TT_Tabelle_Riferimento!$H$31:$I$50,2,FALSE))","v":8},{"$f":"+IFERROR(VLOOKUP(MJ$6&\"-\"&$M19&\"_old\",Ammortamento_Finanziario!$H:$L,5,FALSE),VLOOKUP($M19,TT_Tabelle_Riferimento!$H$31:$I$50,2,FALSE))","v":8},{"$f":"+IFERROR(VLOOKUP(MK$6&\"-\"&$M19&\"_old\",Ammortamento_Finanziario!$H:$L,5,FALSE),VLOOKUP($M19,TT_Tabelle_Riferimento!$H$31:$I$50,2,FALSE))","v":8},{"$f":"+IFERROR(VLOOKUP(ML$6&\"-\"&$M19&\"_old\",Ammortamento_Finanziario!$H:$L,5,FALSE),VLOOKUP($M19,TT_Tabelle_Riferimento!$H$31:$I$50,2,FALSE))","v":8},{"$f":"+IFERROR(VLOOKUP(MM$6&\"-\"&$M19&\"_old\",Ammortamento_Finanziario!$H:$L,5,FALSE),VLOOKUP($M19,TT_Tabelle_Riferimento!$H$31:$I$50,2,FALSE))","v":8},{"$f":"+IFERROR(VLOOKUP(MN$6&\"-\"&$M19&\"_old\",Ammortamento_Finanziario!$H:$L,5,FALSE),VLOOKUP($M19,TT_Tabelle_Riferimento!$H$31:$I$50,2,FALSE))","v":8},{"$f":"+IFERROR(VLOOKUP(MO$6&\"-\"&$M19&\"_old\",Ammortamento_Finanziario!$H:$L,5,FALSE),VLOOKUP($M19,TT_Tabelle_Riferimento!$H$31:$I$50,2,FALSE))","v":8},{"$f":"+IFERROR(VLOOKUP(MP$6&\"-\"&$M19&\"_old\",Ammortamento_Finanziario!$H:$L,5,FALSE),VLOOKUP($M19,TT_Tabelle_Riferimento!$H$31:$I$50,2,FALSE))","v":8},{"$f":"+IFERROR(VLOOKUP(MQ$6&\"-\"&$M19&\"_old\",Ammortamento_Finanziario!$H:$L,5,FALSE),VLOOKUP($M19,TT_Tabelle_Riferimento!$H$31:$I$50,2,FALSE))","v":8},{"$f":"+IFERROR(VLOOKUP(MR$6&\"-\"&$M19&\"_old\",Ammortamento_Finanziario!$H:$L,5,FALSE),VLOOKUP($M19,TT_Tabelle_Riferimento!$H$31:$I$50,2,FALSE))","v":8},{"$f":"+IFERROR(VLOOKUP(MS$6&\"-\"&$M19&\"_old\",Ammortamento_Finanziario!$H:$L,5,FALSE),VLOOKUP($M19,TT_Tabelle_Riferimento!$H$31:$I$50,2,FALSE))","v":8},{"$f":"+IFERROR(VLOOKUP(MT$6&\"-\"&$M19&\"_old\",Ammortamento_Finanziario!$H:$L,5,FALSE),VLOOKUP($M19,TT_Tabelle_Riferimento!$H$31:$I$50,2,FALSE))","v":8},{"$f":"+IFERROR(VLOOKUP(MU$6&\"-\"&$M19&\"_old\",Ammortamento_Finanziario!$H:$L,5,FALSE),VLOOKUP($M19,TT_Tabelle_Riferimento!$H$31:$I$50,2,FALSE))","v":8},{"$f":"+IFERROR(VLOOKUP(MV$6&\"-\"&$M19&\"_old\",Ammortamento_Finanziario!$H:$L,5,FALSE),VLOOKUP($M19,TT_Tabelle_Riferimento!$H$31:$I$50,2,FALSE))","v":8},{"$f":"+IFERROR(VLOOKUP(MW$6&\"-\"&$M19&\"_old\",Ammortamento_Finanziario!$H:$L,5,FALSE),VLOOKUP($M19,TT_Tabelle_Riferimento!$H$31:$I$50,2,FALSE))","v":8},{"$f":"+IFERROR(VLOOKUP(MX$6&\"-\"&$M19&\"_old\",Ammortamento_Finanziario!$H:$L,5,FALSE),VLOOKUP($M19,TT_Tabelle_Riferimento!$H$31:$I$50,2,FALSE))","v":8},{"$f":"+IFERROR(VLOOKUP(MY$6&\"-\"&$M19&\"_old\",Ammortamento_Finanziario!$H:$L,5,FALSE),VLOOKUP($M19,TT_Tabelle_Riferimento!$H$31:$I$50,2,FALSE))","v":8},{"$f":"+IFERROR(VLOOKUP(MZ$6&\"-\"&$M19&\"_old\",Ammortamento_Finanziario!$H:$L,5,FALSE),VLOOKUP($M19,TT_Tabelle_Riferimento!$H$31:$I$50,2,FALSE))","v":8},{"$f":"+IFERROR(VLOOKUP(NA$6&\"-\"&$M19&\"_old\",Ammortamento_Finanziario!$H:$L,5,FALSE),VLOOKUP($M19,TT_Tabelle_Riferimento!$H$31:$I$50,2,FALSE))","v":8},{"$f":"+IFERROR(VLOOKUP(NB$6&\"-\"&$M19&\"_old\",Ammortamento_Finanziario!$H:$L,5,FALSE),VLOOKUP($M19,TT_Tabelle_Riferimento!$H$31:$I$50,2,FALSE))","v":8},{"$f":"+IFERROR(VLOOKUP(NC$6&\"-\"&$M19&\"_old\",Ammortamento_Finanziario!$H:$L,5,FALSE),VLOOKUP($M19,TT_Tabelle_Riferimento!$H$31:$I$50,2,FALSE))","v":8},{"$f":"+IFERROR(VLOOKUP(ND$6&\"-\"&$M19&\"_old\",Ammortamento_Finanziario!$H:$L,5,FALSE),VLOOKUP($M19,TT_Tabelle_Riferimento!$H$31:$I$50,2,FALSE))","v":8},{"$f":"+IFERROR(VLOOKUP(NE$6&\"-\"&$M19&\"_old\",Ammortamento_Finanziario!$H:$L,5,FALSE),VLOOKUP($M19,TT_Tabelle_Riferimento!$H$31:$I$50,2,FALSE))","v":8},{"$f":"+IFERROR(VLOOKUP(NF$6&\"-\"&$M19&\"_old\",Ammortamento_Finanziario!$H:$L,5,FALSE),VLOOKUP($M19,TT_Tabelle_Riferimento!$H$31:$I$50,2,FALSE))","v":8},{"$f":"+IFERROR(VLOOKUP(NG$6&\"-\"&$M19&\"_old\",Ammortamento_Finanziario!$H:$L,5,FALSE),VLOOKUP($M19,TT_Tabelle_Riferimento!$H$31:$I$50,2,FALSE))","v":8},{"$f":"+IFERROR(VLOOKUP(NH$6&\"-\"&$M19&\"_old\",Ammortamento_Finanziario!$H:$L,5,FALSE),VLOOKUP($M19,TT_Tabelle_Riferimento!$H$31:$I$50,2,FALSE))","v":8},{"$f":"+IFERROR(VLOOKUP(NI$6&\"-\"&$M19&\"_old\",Ammortamento_Finanziario!$H:$L,5,FALSE),VLOOKUP($M19,TT_Tabelle_Riferimento!$H$31:$I$50,2,FALSE))","v":8},{"$f":"+IFERROR(VLOOKUP(NJ$6&\"-\"&$M19&\"_old\",Ammortamento_Finanziario!$H:$L,5,FALSE),VLOOKUP($M19,TT_Tabelle_Riferimento!$H$31:$I$50,2,FALSE))","v":8},{"$f":"+IFERROR(VLOOKUP(NK$6&\"-\"&$M19&\"_old\",Ammortamento_Finanziario!$H:$L,5,FALSE),VLOOKUP($M19,TT_Tabelle_Riferimento!$H$31:$I$50,2,FALSE))","v":8},{"$f":"+IFERROR(VLOOKUP(NL$6&\"-\"&$M19&\"_old\",Ammortamento_Finanziario!$H:$L,5,FALSE),VLOOKUP($M19,TT_Tabelle_Riferimento!$H$31:$I$50,2,FALSE))","v":8},{"$f":"+IFERROR(VLOOKUP(NM$6&\"-\"&$M19&\"_old\",Ammortamento_Finanziario!$H:$L,5,FALSE),VLOOKUP($M19,TT_Tabelle_Riferimento!$H$31:$I$50,2,FALSE))","v":8},{"$f":"+IFERROR(VLOOKUP(NN$6&\"-\"&$M19&\"_old\",Ammortamento_Finanziario!$H:$L,5,FALSE),VLOOKUP($M19,TT_Tabelle_Riferimento!$H$31:$I$50,2,FALSE))","v":8},{"$f":"+IFERROR(VLOOKUP(NO$6&\"-\"&$M19&\"_old\",Ammortamento_Finanziario!$H:$L,5,FALSE),VLOOKUP($M19,TT_Tabelle_Riferimento!$H$31:$I$50,2,FALSE))","v":8},{"$f":"+IFERROR(VLOOKUP(NP$6&\"-\"&$M19&\"_old\",Ammortamento_Finanziario!$H:$L,5,FALSE),VLOOKUP($M19,TT_Tabelle_Riferimento!$H$31:$I$50,2,FALSE))","v":8},{"$f":"+IFERROR(VLOOKUP(NQ$6&\"-\"&$M19&\"_old\",Ammortamento_Finanziario!$H:$L,5,FALSE),VLOOKUP($M19,TT_Tabelle_Riferimento!$H$31:$I$50,2,FALSE))","v":8},{"$f":"+IFERROR(VLOOKUP(NR$6&\"-\"&$M19&\"_old\",Ammortamento_Finanziario!$H:$L,5,FALSE),VLOOKUP($M19,TT_Tabelle_Riferimento!$H$31:$I$50,2,FALSE))","v":8},{"$f":"+IFERROR(VLOOKUP(NS$6&\"-\"&$M19&\"_old\",Ammortamento_Finanziario!$H:$L,5,FALSE),VLOOKUP($M19,TT_Tabelle_Riferimento!$H$31:$I$50,2,FALSE))","v":8},{"$f":"+IFERROR(VLOOKUP(NT$6&\"-\"&$M19&\"_old\",Ammortamento_Finanziario!$H:$L,5,FALSE),VLOOKUP($M19,TT_Tabelle_Riferimento!$H$31:$I$50,2,FALSE))","v":8},{"$f":"+IFERROR(VLOOKUP(NU$6&\"-\"&$M19&\"_old\",Ammortamento_Finanziario!$H:$L,5,FALSE),VLOOKUP($M19,TT_Tabelle_Riferimento!$H$31:$I$50,2,FALSE))","v":8},{"$f":"+IFERROR(VLOOKUP(NV$6&\"-\"&$M19&\"_old\",Ammortamento_Finanziario!$H:$L,5,FALSE),VLOOKUP($M19,TT_Tabelle_Riferimento!$H$31:$I$50,2,FALSE))","v":8},{"$f":"+IFERROR(VLOOKUP(NW$6&\"-\"&$M19&\"_old\",Ammortamento_Finanziario!$H:$L,5,FALSE),VLOOKUP($M19,TT_Tabelle_Riferimento!$H$31:$I$50,2,FALSE))","v":8},{"$f":"+IFERROR(VLOOKUP(NX$6&\"-\"&$M19&\"_old\",Ammortamento_Finanziario!$H:$L,5,FALSE),VLOOKUP($M19,TT_Tabelle_Riferimento!$H$31:$I$50,2,FALSE))","v":8},{"$f":"+IFERROR(VLOOKUP(NY$6&\"-\"&$M19&\"_old\",Ammortamento_Finanziario!$H:$L,5,FALSE),VLOOKUP($M19,TT_Tabelle_Riferimento!$H$31:$I$50,2,FALSE))","v":8},{"$f":"+IFERROR(VLOOKUP(NZ$6&\"-\"&$M19&\"_old\",Ammortamento_Finanziario!$H:$L,5,FALSE),VLOOKUP($M19,TT_Tabelle_Riferimento!$H$31:$I$50,2,FALSE))","v":8},{"$f":"+IFERROR(VLOOKUP(OA$6&\"-\"&$M19&\"_old\",Ammortamento_Finanziario!$H:$L,5,FALSE),VLOOKUP($M19,TT_Tabelle_Riferimento!$H$31:$I$50,2,FALSE))","v":8},{"$f":"+IFERROR(VLOOKUP(OB$6&\"-\"&$M19&\"_old\",Ammortamento_Finanziario!$H:$L,5,FALSE),VLOOKUP($M19,TT_Tabelle_Riferimento!$H$31:$I$50,2,FALSE))","v":8},{"$f":"+IFERROR(VLOOKUP(OC$6&\"-\"&$M19&\"_old\",Ammortamento_Finanziario!$H:$L,5,FALSE),VLOOKUP($M19,TT_Tabelle_Riferimento!$H$31:$I$50,2,FALSE))","v":8},{"$f":"+IFERROR(VLOOKUP(OD$6&\"-\"&$M19&\"_old\",Ammortamento_Finanziario!$H:$L,5,FALSE),VLOOKUP($M19,TT_Tabelle_Riferimento!$H$31:$I$50,2,FALSE))","v":8},{"$f":"+IFERROR(VLOOKUP(OE$6&\"-\"&$M19&\"_old\",Ammortamento_Finanziario!$H:$L,5,FALSE),VLOOKUP($M19,TT_Tabelle_Riferimento!$H$31:$I$50,2,FALSE))","v":8},{"$f":"+IFERROR(VLOOKUP(OF$6&\"-\"&$M19&\"_old\",Ammortamento_Finanziario!$H:$L,5,FALSE),VLOOKUP($M19,TT_Tabelle_Riferimento!$H$31:$I$50,2,FALSE))","v":8},{"$f":"+IFERROR(VLOOKUP(OG$6&\"-\"&$M19&\"_old\",Ammortamento_Finanziario!$H:$L,5,FALSE),VLOOKUP($M19,TT_Tabelle_Riferimento!$H$31:$I$50,2,FALSE))","v":8},{"$f":"+IFERROR(VLOOKUP(OH$6&\"-\"&$M19&\"_old\",Ammortamento_Finanziario!$H:$L,5,FALSE),VLOOKUP($M19,TT_Tabelle_Riferimento!$H$31:$I$50,2,FALSE))","v":8},{"$f":"+IFERROR(VLOOKUP(OI$6&\"-\"&$M19&\"_old\",Ammortamento_Finanziario!$H:$L,5,FALSE),VLOOKUP($M19,TT_Tabelle_Riferimento!$H$31:$I$50,2,FALSE))","v":8},{"$f":"+IFERROR(VLOOKUP(OJ$6&\"-\"&$M19&\"_old\",Ammortamento_Finanziario!$H:$L,5,FALSE),VLOOKUP($M19,TT_Tabelle_Riferimento!$H$31:$I$50,2,FALSE))","v":8},{"$f":"+IFERROR(VLOOKUP(OK$6&\"-\"&$M19&\"_old\",Ammortamento_Finanziario!$H:$L,5,FALSE),VLOOKUP($M19,TT_Tabelle_Riferimento!$H$31:$I$50,2,FALSE))","v":8},{"$f":"+IFERROR(VLOOKUP(OL$6&\"-\"&$M19&\"_old\",Ammortamento_Finanziario!$H:$L,5,FALSE),VLOOKUP($M19,TT_Tabelle_Riferimento!$H$31:$I$50,2,FALSE))","v":8},{"$f":"+IFERROR(VLOOKUP(OM$6&\"-\"&$M19&\"_old\",Ammortamento_Finanziario!$H:$L,5,FALSE),VLOOKUP($M19,TT_Tabelle_Riferimento!$H$31:$I$50,2,FALSE))","v":8},{"$f":"+IFERROR(VLOOKUP(ON$6&\"-\"&$M19&\"_old\",Ammortamento_Finanziario!$H:$L,5,FALSE),VLOOKUP($M19,TT_Tabelle_Riferimento!$H$31:$I$50,2,FALSE))","v":8},{"$f":"+IFERROR(VLOOKUP(OO$6&\"-\"&$M19&\"_old\",Ammortamento_Finanziario!$H:$L,5,FALSE),VLOOKUP($M19,TT_Tabelle_Riferimento!$H$31:$I$50,2,FALSE))","v":8},{"$f":"+IFERROR(VLOOKUP(OP$6&\"-\"&$M19&\"_old\",Ammortamento_Finanziario!$H:$L,5,FALSE),VLOOKUP($M19,TT_Tabelle_Riferimento!$H$31:$I$50,2,FALSE))","v":8},{"$f":"+IFERROR(VLOOKUP(OQ$6&\"-\"&$M19&\"_old\",Ammortamento_Finanziario!$H:$L,5,FALSE),VLOOKUP($M19,TT_Tabelle_Riferimento!$H$31:$I$50,2,FALSE))","v":8},{"$f":"+IFERROR(VLOOKUP(OR$6&\"-\"&$M19&\"_old\",Ammortamento_Finanziario!$H:$L,5,FALSE),VLOOKUP($M19,TT_Tabelle_Riferimento!$H$31:$I$50,2,FALSE))","v":8},{"$f":"+IFERROR(VLOOKUP(OS$6&\"-\"&$M19&\"_old\",Ammortamento_Finanziario!$H:$L,5,FALSE),VLOOKUP($M19,TT_Tabelle_Riferimento!$H$31:$I$50,2,FALSE))","v":8},{"$f":"+IFERROR(VLOOKUP(OT$6&\"-\"&$M19&\"_old\",Ammortamento_Finanziario!$H:$L,5,FALSE),VLOOKUP($M19,TT_Tabelle_Riferimento!$H$31:$I$50,2,FALSE))","v":8},{"$f":"+IFERROR(VLOOKUP(OU$6&\"-\"&$M19&\"_old\",Ammortamento_Finanziario!$H:$L,5,FALSE),VLOOKUP($M19,TT_Tabelle_Riferimento!$H$31:$I$50,2,FALSE))","v":8},{"$f":"+IFERROR(VLOOKUP(OV$6&\"-\"&$M19&\"_old\",Ammortamento_Finanziario!$H:$L,5,FALSE),VLOOKUP($M19,TT_Tabelle_Riferimento!$H$31:$I$50,2,FALSE))","v":8},{"$f":"+IFERROR(VLOOKUP(OW$6&\"-\"&$M19&\"_old\",Ammortamento_Finanziario!$H:$L,5,FALSE),VLOOKUP($M19,TT_Tabelle_Riferimento!$H$31:$I$50,2,FALSE))","v":8},{"$f":"+IFERROR(VLOOKUP(OX$6&\"-\"&$M19&\"_old\",Ammortamento_Finanziario!$H:$L,5,FALSE),VLOOKUP($M19,TT_Tabelle_Riferimento!$H$31:$I$50,2,FALSE))","v":8},{"$f":"+IFERROR(VLOOKUP(OY$6&\"-\"&$M19&\"_old\",Ammortamento_Finanziario!$H:$L,5,FALSE),VLOOKUP($M19,TT_Tabelle_Riferimento!$H$31:$I$50,2,FALSE))","v":8},{"$f":"+IFERROR(VLOOKUP(OZ$6&\"-\"&$M19&\"_old\",Ammortamento_Finanziario!$H:$L,5,FALSE),VLOOKUP($M19,TT_Tabelle_Riferimento!$H$31:$I$50,2,FALSE))","v":8},{"$f":"+IFERROR(VLOOKUP(PA$6&\"-\"&$M19&\"_old\",Ammortamento_Finanziario!$H:$L,5,FALSE),VLOOKUP($M19,TT_Tabelle_Riferimento!$H$31:$I$50,2,FALSE))","v":8},{"$f":"+IFERROR(VLOOKUP(PB$6&\"-\"&$M19&\"_old\",Ammortamento_Finanziario!$H:$L,5,FALSE),VLOOKUP($M19,TT_Tabelle_Riferimento!$H$31:$I$50,2,FALSE))","v":8},{"$f":"+IFERROR(VLOOKUP(PC$6&\"-\"&$M19&\"_old\",Ammortamento_Finanziario!$H:$L,5,FALSE),VLOOKUP($M19,TT_Tabelle_Riferimento!$H$31:$I$50,2,FALSE))","v":8},{"$f":"+IFERROR(VLOOKUP(PD$6&\"-\"&$M19&\"_old\",Ammortamento_Finanziario!$H:$L,5,FALSE),VLOOKUP($M19,TT_Tabelle_Riferimento!$H$31:$I$50,2,FALSE))","v":8},{"$f":"+IFERROR(VLOOKUP(PE$6&\"-\"&$M19&\"_old\",Ammortamento_Finanziario!$H:$L,5,FALSE),VLOOKUP($M19,TT_Tabelle_Riferimento!$H$31:$I$50,2,FALSE))","v":8},{"$f":"+IFERROR(VLOOKUP(PF$6&\"-\"&$M19&\"_old\",Ammortamento_Finanziario!$H:$L,5,FALSE),VLOOKUP($M19,TT_Tabelle_Riferimento!$H$31:$I$50,2,FALSE))","v":8},{"$f":"+IFERROR(VLOOKUP(PG$6&\"-\"&$M19&\"_old\",Ammortamento_Finanziario!$H:$L,5,FALSE),VLOOKUP($M19,TT_Tabelle_Riferimento!$H$31:$I$50,2,FALSE))","v":8},{"$f":"+IFERROR(VLOOKUP(PH$6&\"-\"&$M19&\"_old\",Ammortamento_Finanziario!$H:$L,5,FALSE),VLOOKUP($M19,TT_Tabelle_Riferimento!$H$31:$I$50,2,FALSE))","v":8},{"$f":"+IFERROR(VLOOKUP(PI$6&\"-\"&$M19&\"_old\",Ammortamento_Finanziario!$H:$L,5,FALSE),VLOOKUP($M19,TT_Tabelle_Riferimento!$H$31:$I$50,2,FALSE))","v":8},{"$f":"+IFERROR(VLOOKUP(PJ$6&\"-\"&$M19&\"_old\",Ammortamento_Finanziario!$H:$L,5,FALSE),VLOOKUP($M19,TT_Tabelle_Riferimento!$H$31:$I$50,2,FALSE))","v":8},{"$f":"+IFERROR(VLOOKUP(PK$6&\"-\"&$M19&\"_old\",Ammortamento_Finanziario!$H:$L,5,FALSE),VLOOKUP($M19,TT_Tabelle_Riferimento!$H$31:$I$50,2,FALSE))","v":8},{"$f":"+IFERROR(VLOOKUP(PL$6&\"-\"&$M19&\"_old\",Ammortamento_Finanziario!$H:$L,5,FALSE),VLOOKUP($M19,TT_Tabelle_Riferimento!$H$31:$I$50,2,FALSE))","v":8},{"$f":"+IFERROR(VLOOKUP(PM$6&\"-\"&$M19&\"_old\",Ammortamento_Finanziario!$H:$L,5,FALSE),VLOOKUP($M19,TT_Tabelle_Riferimento!$H$31:$I$50,2,FALSE))","v":8},{"$f":"+IFERROR(VLOOKUP(PN$6&\"-\"&$M19&\"_old\",Ammortamento_Finanziario!$H:$L,5,FALSE),VLOOKUP($M19,TT_Tabelle_Riferimento!$H$31:$I$50,2,FALSE))","v":8},{"$f":"+IFERROR(VLOOKUP(PO$6&\"-\"&$M19&\"_old\",Ammortamento_Finanziario!$H:$L,5,FALSE),VLOOKUP($M19,TT_Tabelle_Riferimento!$H$31:$I$50,2,FALSE))","v":8},{"$f":"+IFERROR(VLOOKUP(PP$6&\"-\"&$M19&\"_old\",Ammortamento_Finanziario!$H:$L,5,FALSE),VLOOKUP($M19,TT_Tabelle_Riferimento!$H$31:$I$50,2,FALSE))","v":8},{"$f":"+IFERROR(VLOOKUP(PQ$6&\"-\"&$M19&\"_old\",Ammortamento_Finanziario!$H:$L,5,FALSE),VLOOKUP($M19,TT_Tabelle_Riferimento!$H$31:$I$50,2,FALSE))","v":8},{"$f":"+IFERROR(VLOOKUP(PR$6&\"-\"&$M19&\"_old\",Ammortamento_Finanziario!$H:$L,5,FALSE),VLOOKUP($M19,TT_Tabelle_Riferimento!$H$31:$I$50,2,FALSE))","v":8},{"$f":"+IFERROR(VLOOKUP(PS$6&\"-\"&$M19&\"_old\",Ammortamento_Finanziario!$H:$L,5,FALSE),VLOOKUP($M19,TT_Tabelle_Riferimento!$H$31:$I$50,2,FALSE))","v":8},{"$f":"+IFERROR(VLOOKUP(PT$6&\"-\"&$M19&\"_old\",Ammortamento_Finanziario!$H:$L,5,FALSE),VLOOKUP($M19,TT_Tabelle_Riferimento!$H$31:$I$50,2,FALSE))","v":8},{"$f":"+IFERROR(VLOOKUP(PU$6&\"-\"&$M19&\"_old\",Ammortamento_Finanziario!$H:$L,5,FALSE),VLOOKUP($M19,TT_Tabelle_Riferimento!$H$31:$I$50,2,FALSE))","v":8},{"$f":"+IFERROR(VLOOKUP(PV$6&\"-\"&$M19&\"_old\",Ammortamento_Finanziario!$H:$L,5,FALSE),VLOOKUP($M19,TT_Tabelle_Riferimento!$H$31:$I$50,2,FALSE))","v":8},{"$f":"+IFERROR(VLOOKUP(PW$6&\"-\"&$M19&\"_old\",Ammortamento_Finanziario!$H:$L,5,FALSE),VLOOKUP($M19,TT_Tabelle_Riferimento!$H$31:$I$50,2,FALSE))","v":8},{"$f":"+IFERROR(VLOOKUP(PX$6&\"-\"&$M19&\"_old\",Ammortamento_Finanziario!$H:$L,5,FALSE),VLOOKUP($M19,TT_Tabelle_Riferimento!$H$31:$I$50,2,FALSE))","v":8},{"$f":"+IFERROR(VLOOKUP(PY$6&\"-\"&$M19&\"_old\",Ammortamento_Finanziario!$H:$L,5,FALSE),VLOOKUP($M19,TT_Tabelle_Riferimento!$H$31:$I$50,2,FALSE))","v":8},{"$f":"+IFERROR(VLOOKUP(PZ$6&\"-\"&$M19&\"_old\",Ammortamento_Finanziario!$H:$L,5,FALSE),VLOOKUP($M19,TT_Tabelle_Riferimento!$H$31:$I$50,2,FALSE))","v":8},{"$f":"+IFERROR(VLOOKUP(QA$6&\"-\"&$M19&\"_old\",Ammortamento_Finanziario!$H:$L,5,FALSE),VLOOKUP($M19,TT_Tabelle_Riferimento!$H$31:$I$50,2,FALSE))","v":8},{"$f":"+IFERROR(VLOOKUP(QB$6&\"-\"&$M19&\"_old\",Ammortamento_Finanziario!$H:$L,5,FALSE),VLOOKUP($M19,TT_Tabelle_Riferimento!$H$31:$I$50,2,FALSE))","v":8},{"$f":"+IFERROR(VLOOKUP(QC$6&\"-\"&$M19&\"_old\",Ammortamento_Finanziario!$H:$L,5,FALSE),VLOOKUP($M19,TT_Tabelle_Riferimento!$H$31:$I$50,2,FALSE))","v":8},{"$f":"+IFERROR(VLOOKUP(QD$6&\"-\"&$M19&\"_old\",Ammortamento_Finanziario!$H:$L,5,FALSE),VLOOKUP($M19,TT_Tabelle_Riferimento!$H$31:$I$50,2,FALSE))","v":8},{"$f":"+IFERROR(VLOOKUP(QE$6&\"-\"&$M19&\"_old\",Ammortamento_Finanziario!$H:$L,5,FALSE),VLOOKUP($M19,TT_Tabelle_Riferimento!$H$31:$I$50,2,FALSE))","v":8},{"$f":"+IFERROR(VLOOKUP(QF$6&\"-\"&$M19&\"_old\",Ammortamento_Finanziario!$H:$L,5,FALSE),VLOOKUP($M19,TT_Tabelle_Riferimento!$H$31:$I$50,2,FALSE))","v":8},{"$f":"+IFERROR(VLOOKUP(QG$6&\"-\"&$M19&\"_old\",Ammortamento_Finanziario!$H:$L,5,FALSE),VLOOKUP($M19,TT_Tabelle_Riferimento!$H$31:$I$50,2,FALSE))","v":8},{"$f":"+IFERROR(VLOOKUP(QH$6&\"-\"&$M19&\"_old\",Ammortamento_Finanziario!$H:$L,5,FALSE),VLOOKUP($M19,TT_Tabelle_Riferimento!$H$31:$I$50,2,FALSE))","v":8},{"$f":"+IFERROR(VLOOKUP(QI$6&\"-\"&$M19&\"_old\",Ammortamento_Finanziario!$H:$L,5,FALSE),VLOOKUP($M19,TT_Tabelle_Riferimento!$H$31:$I$50,2,FALSE))","v":8},{"$f":"+IFERROR(VLOOKUP(QJ$6&\"-\"&$M19&\"_old\",Ammortamento_Finanziario!$H:$L,5,FALSE),VLOOKUP($M19,TT_Tabelle_Riferimento!$H$31:$I$50,2,FALSE))","v":8},{"$f":"+IFERROR(VLOOKUP(QK$6&\"-\"&$M19&\"_old\",Ammortamento_Finanziario!$H:$L,5,FALSE),VLOOKUP($M19,TT_Tabelle_Riferimento!$H$31:$I$50,2,FALSE))","v":8},{"$f":"+IFERROR(VLOOKUP(QL$6&\"-\"&$M19&\"_old\",Ammortamento_Finanziario!$H:$L,5,FALSE),VLOOKUP($M19,TT_Tabelle_Riferimento!$H$31:$I$50,2,FALSE))","v":8},{"$f":"+IFERROR(VLOOKUP(QM$6&\"-\"&$M19&\"_old\",Ammortamento_Finanziario!$H:$L,5,FALSE),VLOOKUP($M19,TT_Tabelle_Riferimento!$H$31:$I$50,2,FALSE))","v":8},{"$f":"+IFERROR(VLOOKUP(QN$6&\"-\"&$M19&\"_old\",Ammortamento_Finanziario!$H:$L,5,FALSE),VLOOKUP($M19,TT_Tabelle_Riferimento!$H$31:$I$50,2,FALSE))","v":8},{"$f":"+IFERROR(VLOOKUP(QO$6&\"-\"&$M19&\"_old\",Ammortamento_Finanziario!$H:$L,5,FALSE),VLOOKUP($M19,TT_Tabelle_Riferimento!$H$31:$I$50,2,FALSE))","v":8},{"$f":"+IFERROR(VLOOKUP(QP$6&\"-\"&$M19&\"_old\",Ammortamento_Finanziario!$H:$L,5,FALSE),VLOOKUP($M19,TT_Tabelle_Riferimento!$H$31:$I$50,2,FALSE))","v":8},{"$f":"+IFERROR(VLOOKUP(QQ$6&\"-\"&$M19&\"_old\",Ammortamento_Finanziario!$H:$L,5,FALSE),VLOOKUP($M19,TT_Tabelle_Riferimento!$H$31:$I$50,2,FALSE))","v":8},{"$f":"+IFERROR(VLOOKUP(QR$6&\"-\"&$M19&\"_old\",Ammortamento_Finanziario!$H:$L,5,FALSE),VLOOKUP($M19,TT_Tabelle_Riferimento!$H$31:$I$50,2,FALSE))","v":8},{"$f":"+IFERROR(VLOOKUP(QS$6&\"-\"&$M19&\"_old\",Ammortamento_Finanziario!$H:$L,5,FALSE),VLOOKUP($M19,TT_Tabelle_Riferimento!$H$31:$I$50,2,FALSE))","v":8},{"$f":"+IFERROR(VLOOKUP(QT$6&\"-\"&$M19&\"_old\",Ammortamento_Finanziario!$H:$L,5,FALSE),VLOOKUP($M19,TT_Tabelle_Riferimento!$H$31:$I$50,2,FALSE))","v":8},{"$f":"+IFERROR(VLOOKUP(QU$6&\"-\"&$M19&\"_old\",Ammortamento_Finanziario!$H:$L,5,FALSE),VLOOKUP($M19,TT_Tabelle_Riferimento!$H$31:$I$50,2,FALSE))","v":8},{"$f":"+IFERROR(VLOOKUP(QV$6&\"-\"&$M19&\"_old\",Ammortamento_Finanziario!$H:$L,5,FALSE),VLOOKUP($M19,TT_Tabelle_Riferimento!$H$31:$I$50,2,FALSE))","v":8},{"$f":"+IFERROR(VLOOKUP(QW$6&\"-\"&$M19&\"_old\",Ammortamento_Finanziario!$H:$L,5,FALSE),VLOOKUP($M19,TT_Tabelle_Riferimento!$H$31:$I$50,2,FALSE))","v":8},{"$f":"+IFERROR(VLOOKUP(QX$6&\"-\"&$M19&\"_old\",Ammortamento_Finanziario!$H:$L,5,FALSE),VLOOKUP($M19,TT_Tabelle_Riferimento!$H$31:$I$50,2,FALSE))","v":8},{"$f":"+IFERROR(VLOOKUP(QY$6&\"-\"&$M19&\"_old\",Ammortamento_Finanziario!$H:$L,5,FALSE),VLOOKUP($M19,TT_Tabelle_Riferimento!$H$31:$I$50,2,FALSE))","v":8},{"$f":"+IFERROR(VLOOKUP(QZ$6&\"-\"&$M19&\"_old\",Ammortamento_Finanziario!$H:$L,5,FALSE),VLOOKUP($M19,TT_Tabelle_Riferimento!$H$31:$I$50,2,FALSE))","v":8},{"$f":"+IFERROR(VLOOKUP(RA$6&\"-\"&$M19&\"_old\",Ammortamento_Finanziario!$H:$L,5,FALSE),VLOOKUP($M19,TT_Tabelle_Riferimento!$H$31:$I$50,2,FALSE))","v":8},{"$f":"+IFERROR(VLOOKUP(RB$6&\"-\"&$M19&\"_old\",Ammortamento_Finanziario!$H:$L,5,FALSE),VLOOKUP($M19,TT_Tabelle_Riferimento!$H$31:$I$50,2,FALSE))","v":8},{"$f":"+IFERROR(VLOOKUP(RC$6&\"-\"&$M19&\"_old\",Ammortamento_Finanziario!$H:$L,5,FALSE),VLOOKUP($M19,TT_Tabelle_Riferimento!$H$31:$I$50,2,FALSE))","v":8},{"$f":"+IFERROR(VLOOKUP(RD$6&\"-\"&$M19&\"_old\",Ammortamento_Finanziario!$H:$L,5,FALSE),VLOOKUP($M19,TT_Tabelle_Riferimento!$H$31:$I$50,2,FALSE))","v":8},{"$f":"+IFERROR(VLOOKUP(RE$6&\"-\"&$M19&\"_old\",Ammortamento_Finanziario!$H:$L,5,FALSE),VLOOKUP($M19,TT_Tabelle_Riferimento!$H$31:$I$50,2,FALSE))","v":8},{"$f":"+IFERROR(VLOOKUP(RF$6&\"-\"&$M19&\"_old\",Ammortamento_Finanziario!$H:$L,5,FALSE),VLOOKUP($M19,TT_Tabelle_Riferimento!$H$31:$I$50,2,FALSE))","v":8},{"$f":"+IFERROR(VLOOKUP(RG$6&\"-\"&$M19&\"_old\",Ammortamento_Finanziario!$H:$L,5,FALSE),VLOOKUP($M19,TT_Tabelle_Riferimento!$H$31:$I$50,2,FALSE))","v":8},{"$f":"+IFERROR(VLOOKUP(RH$6&\"-\"&$M19&\"_old\",Ammortamento_Finanziario!$H:$L,5,FALSE),VLOOKUP($M19,TT_Tabelle_Riferimento!$H$31:$I$50,2,FALSE))","v":8},{"$f":"+IFERROR(VLOOKUP(RI$6&\"-\"&$M19&\"_old\",Ammortamento_Finanziario!$H:$L,5,FALSE),VLOOKUP($M19,TT_Tabelle_Riferimento!$H$31:$I$50,2,FALSE))","v":8},{"$f":"+IFERROR(VLOOKUP(RJ$6&\"-\"&$M19&\"_old\",Ammortamento_Finanziario!$H:$L,5,FALSE),VLOOKUP($M19,TT_Tabelle_Riferimento!$H$31:$I$50,2,FALSE))","v":8},{"$f":"+IFERROR(VLOOKUP(RK$6&\"-\"&$M19&\"_old\",Ammortamento_Finanziario!$H:$L,5,FALSE),VLOOKUP($M19,TT_Tabelle_Riferimento!$H$31:$I$50,2,FALSE))","v":8},{"$f":"+IFERROR(VLOOKUP(RL$6&\"-\"&$M19&\"_old\",Ammortamento_Finanziario!$H:$L,5,FALSE),VLOOKUP($M19,TT_Tabelle_Riferimento!$H$31:$I$50,2,FALSE))","v":8},{"$f":"+IFERROR(VLOOKUP(RM$6&\"-\"&$M19&\"_old\",Ammortamento_Finanziario!$H:$L,5,FALSE),VLOOKUP($M19,TT_Tabelle_Riferimento!$H$31:$I$50,2,FALSE))","v":8},{"$f":"+IFERROR(VLOOKUP(RN$6&\"-\"&$M19&\"_old\",Ammortamento_Finanziario!$H:$L,5,FALSE),VLOOKUP($M19,TT_Tabelle_Riferimento!$H$31:$I$50,2,FALSE))","v":8},{"$f":"+IFERROR(VLOOKUP(RO$6&\"-\"&$M19&\"_old\",Ammortamento_Finanziario!$H:$L,5,FALSE),VLOOKUP($M19,TT_Tabelle_Riferimento!$H$31:$I$50,2,FALSE))","v":8},{"$f":"+IFERROR(VLOOKUP(RP$6&\"-\"&$M19&\"_old\",Ammortamento_Finanziario!$H:$L,5,FALSE),VLOOKUP($M19,TT_Tabelle_Riferimento!$H$31:$I$50,2,FALSE))","v":8},{"$f":"+IFERROR(VLOOKUP(RQ$6&\"-\"&$M19&\"_old\",Ammortamento_Finanziario!$H:$L,5,FALSE),VLOOKUP($M19,TT_Tabelle_Riferimento!$H$31:$I$50,2,FALSE))","v":8},{"$f":"+IFERROR(VLOOKUP(RR$6&\"-\"&$M19&\"_old\",Ammortamento_Finanziario!$H:$L,5,FALSE),VLOOKUP($M19,TT_Tabelle_Riferimento!$H$31:$I$50,2,FALSE))","v":8},{"$f":"+IFERROR(VLOOKUP(RS$6&\"-\"&$M19&\"_old\",Ammortamento_Finanziario!$H:$L,5,FALSE),VLOOKUP($M19,TT_Tabelle_Riferimento!$H$31:$I$50,2,FALSE))","v":8},{"$f":"+IFERROR(VLOOKUP(RT$6&\"-\"&$M19&\"_old\",Ammortamento_Finanziario!$H:$L,5,FALSE),VLOOKUP($M19,TT_Tabelle_Riferimento!$H$31:$I$50,2,FALSE))","v":8},{"$f":"+IFERROR(VLOOKUP(RU$6&\"-\"&$M19&\"_old\",Ammortamento_Finanziario!$H:$L,5,FALSE),VLOOKUP($M19,TT_Tabelle_Riferimento!$H$31:$I$50,2,FALSE))","v":8},{"$f":"+IFERROR(VLOOKUP(RV$6&\"-\"&$M19&\"_old\",Ammortamento_Finanziario!$H:$L,5,FALSE),VLOOKUP($M19,TT_Tabelle_Riferimento!$H$31:$I$50,2,FALSE))","v":8}]
[null,null,null,"IMN",{"$f":"+SUMIFS(IMN_gestore!R:R,IMN_gestore!$E:$E,\">=\"&2012,IMN_gestore!$E:$E,\"<=\"&2022)","v":0},{"$f":"+SUMIFS(IMN_gestore!AC:AC,IMN_gestore!$E:$E,\">=\"&2012,IMN_gestore!$E:$E,\"<=\"&2023)","v":0},{"$f":"+SUMIFS(IMN_gestore!AN:AN,IMN_gestore!$E:$E,\">=\"&2012,IMN_gestore!$E:$E,\"<=\"&2024)","v":0},{"$f":"+SUMIFS(IMN_gestore!AY:AY,IMN_gestore!$E:$E,\">=\"&2012,IMN_gestore!$E:$E,\"<=\"&2025)","v":0},{"$f":"+SUMIFS(IMN_gestore!$BJ:$BJ,IMN_gestore!$E:$E,\">=\"&2012,IMN_gestore!$E:$E,\"<=\"&2026)","v":0},{"$f":"+SUMIFS(IMN_gestore!$BU:$BU,IMN_gestore!$E:$E,\">=\"&2012,IMN_gestore!$E:$E,\"<=\"&2027)","v":0},null,null,14,{"$f":"+IFERROR(VLOOKUP(N$6&\"-\"&$M20&\"_old\",Ammortamento_Finanziario!$H:$L,5,FALSE),VLOOKUP($M20,TT_Tabelle_Riferimento!$H$31:$I$50,2,FALSE))","v":5},{"$f":"+IFERROR(VLOOKUP(O$6&\"-\"&$M20&\"_old\",Ammortamento_Finanziario!$H:$L,5,FALSE),VLOOKUP($M20,TT_Tabelle_Riferimento!$H$31:$I$50,2,FALSE))","v":5},{"$f":"+IFERROR(VLOOKUP(P$6&\"-\"&$M20&\"_old\",Ammortamento_Finanziario!$H:$L,5,FALSE),VLOOKUP($M20,TT_Tabelle_Riferimento!$H$31:$I$50,2,FALSE))","v":5},{"$f":"+IFERROR(VLOOKUP(Q$6&\"-\"&$M20&\"_old\",Ammortamento_Finanziario!$H:$L,5,FALSE),VLOOKUP($M20,TT_Tabelle_Riferimento!$H$31:$I$50,2,FALSE))","v":5},{"$f":"+IFERROR(VLOOKUP(R$6&\"-\"&$M20&\"_old\",Ammortamento_Finanziario!$H:$L,5,FALSE),VLOOKUP($M20,TT_Tabelle_Riferimento!$H$31:$I$50,2,FALSE))","v":5},{"$f":"+IFERROR(VLOOKUP(S$6&\"-\"&$M20&\"_old\",Ammortamento_Finanziario!$H:$L,5,FALSE),VLOOKUP($M20,TT_Tabelle_Riferimento!$H$31:$I$50,2,FALSE))","v":5},{"$f":"+IFERROR(VLOOKUP(T$6&\"-\"&$M20&\"_old\",Ammortamento_Finanziario!$H:$L,5,FALSE),VLOOKUP($M20,TT_Tabelle_Riferimento!$H$31:$I$50,2,FALSE))","v":5},{"$f":"+IFERROR(VLOOKUP(U$6&\"-\"&$M20&\"_old\",Ammortamento_Finanziario!$H:$L,5,FALSE),VLOOKUP($M20,TT_Tabelle_Riferimento!$H$31:$I$50,2,FALSE))","v":5},{"$f":"+IFERROR(VLOOKUP(V$6&\"-\"&$M20&\"_old\",Ammortamento_Finanziario!$H:$L,5,FALSE),VLOOKUP($M20,TT_Tabelle_Riferimento!$H$31:$I$50,2,FALSE))","v":5},{"$f":"+IFERROR(VLOOKUP(W$6&\"-\"&$M20&\"_old\",Ammortamento_Finanziario!$H:$L,5,FALSE),VLOOKUP($M20,TT_Tabelle_Riferimento!$H$31:$I$50,2,FALSE))","v":5},{"$f":"+IFERROR(VLOOKUP(X$6&\"-\"&$M20&\"_old\",Ammortamento_Finanziario!$H:$L,5,FALSE),VLOOKUP($M20,TT_Tabelle_Riferimento!$H$31:$I$50,2,FALSE))","v":5},{"$f":"+IFERROR(VLOOKUP(Y$6&\"-\"&$M20&\"_old\",Ammortamento_Finanziario!$H:$L,5,FALSE),VLOOKUP($M20,TT_Tabelle_Riferimento!$H$31:$I$50,2,FALSE))","v":5},{"$f":"+IFERROR(VLOOKUP(Z$6&\"-\"&$M20&\"_old\",Ammortamento_Finanziario!$H:$L,5,FALSE),VLOOKUP($M20,TT_Tabelle_Riferimento!$H$31:$I$50,2,FALSE))","v":5},{"$f":"+IFERROR(VLOOKUP(AA$6&\"-\"&$M20&\"_old\",Ammortamento_Finanziario!$H:$L,5,FALSE),VLOOKUP($M20,TT_Tabelle_Riferimento!$H$31:$I$50,2,FALSE))","v":5},{"$f":"+IFERROR(VLOOKUP(AB$6&\"-\"&$M20&\"_old\",Ammortamento_Finanziario!$H:$L,5,FALSE),VLOOKUP($M20,TT_Tabelle_Riferimento!$H$31:$I$50,2,FALSE))","v":5},{"$f":"+IFERROR(VLOOKUP(AC$6&\"-\"&$M20&\"_old\",Ammortamento_Finanziario!$H:$L,5,FALSE),VLOOKUP($M20,TT_Tabelle_Riferimento!$H$31:$I$50,2,FALSE))","v":5},{"$f":"+IFERROR(VLOOKUP(AD$6&\"-\"&$M20&\"_old\",Ammortamento_Finanziario!$H:$L,5,FALSE),VLOOKUP($M20,TT_Tabelle_Riferimento!$H$31:$I$50,2,FALSE))","v":5},{"$f":"+IFERROR(VLOOKUP(AE$6&\"-\"&$M20&\"_old\",Ammortamento_Finanziario!$H:$L,5,FALSE),VLOOKUP($M20,TT_Tabelle_Riferimento!$H$31:$I$50,2,FALSE))","v":5},{"$f":"+IFERROR(VLOOKUP(AF$6&\"-\"&$M20&\"_old\",Ammortamento_Finanziario!$H:$L,5,FALSE),VLOOKUP($M20,TT_Tabelle_Riferimento!$H$31:$I$50,2,FALSE))","v":5},{"$f":"+IFERROR(VLOOKUP(AG$6&\"-\"&$M20&\"_old\",Ammortamento_Finanziario!$H:$L,5,FALSE),VLOOKUP($M20,TT_Tabelle_Riferimento!$H$31:$I$50,2,FALSE))","v":5},{"$f":"+IFERROR(VLOOKUP(AH$6&\"-\"&$M20&\"_old\",Ammortamento_Finanziario!$H:$L,5,FALSE),VLOOKUP($M20,TT_Tabelle_Riferimento!$H$31:$I$50,2,FALSE))","v":5},{"$f":"+IFERROR(VLOOKUP(AI$6&\"-\"&$M20&\"_old\",Ammortamento_Finanziario!$H:$L,5,FALSE),VLOOKUP($M20,TT_Tabelle_Riferimento!$H$31:$I$50,2,FALSE))","v":5},{"$f":"+IFERROR(VLOOKUP(AJ$6&\"-\"&$M20&\"_old\",Ammortamento_Finanziario!$H:$L,5,FALSE),VLOOKUP($M20,TT_Tabelle_Riferimento!$H$31:$I$50,2,FALSE))","v":5},{"$f":"+IFERROR(VLOOKUP(AK$6&\"-\"&$M20&\"_old\",Ammortamento_Finanziario!$H:$L,5,FALSE),VLOOKUP($M20,TT_Tabelle_Riferimento!$H$31:$I$50,2,FALSE))","v":5},{"$f":"+IFERROR(VLOOKUP(AL$6&\"-\"&$M20&\"_old\",Ammortamento_Finanziario!$H:$L,5,FALSE),VLOOKUP($M20,TT_Tabelle_Riferimento!$H$31:$I$50,2,FALSE))","v":5},{"$f":"+IFERROR(VLOOKUP(AM$6&\"-\"&$M20&\"_old\",Ammortamento_Finanziario!$H:$L,5,FALSE),VLOOKUP($M20,TT_Tabelle_Riferimento!$H$31:$I$50,2,FALSE))","v":5},{"$f":"+IFERROR(VLOOKUP(AN$6&\"-\"&$M20&\"_old\",Ammortamento_Finanziario!$H:$L,5,FALSE),VLOOKUP($M20,TT_Tabelle_Riferimento!$H$31:$I$50,2,FALSE))","v":5},{"$f":"+IFERROR(VLOOKUP(AO$6&\"-\"&$M20&\"_old\",Ammortamento_Finanziario!$H:$L,5,FALSE),VLOOKUP($M20,TT_Tabelle_Riferimento!$H$31:$I$50,2,FALSE))","v":5},{"$f":"+IFERROR(VLOOKUP(AP$6&\"-\"&$M20&\"_old\",Ammortamento_Finanziario!$H:$L,5,FALSE),VLOOKUP($M20,TT_Tabelle_Riferimento!$H$31:$I$50,2,FALSE))","v":5},{"$f":"+IFERROR(VLOOKUP(AQ$6&\"-\"&$M20&\"_old\",Ammortamento_Finanziario!$H:$L,5,FALSE),VLOOKUP($M20,TT_Tabelle_Riferimento!$H$31:$I$50,2,FALSE))","v":5},{"$f":"+IFERROR(VLOOKUP(AR$6&\"-\"&$M20&\"_old\",Ammortamento_Finanziario!$H:$L,5,FALSE),VLOOKUP($M20,TT_Tabelle_Riferimento!$H$31:$I$50,2,FALSE))","v":5},{"$f":"+IFERROR(VLOOKUP(AS$6&\"-\"&$M20&\"_old\",Ammortamento_Finanziario!$H:$L,5,FALSE),VLOOKUP($M20,TT_Tabelle_Riferimento!$H$31:$I$50,2,FALSE))","v":5},{"$f":"+IFERROR(VLOOKUP(AT$6&\"-\"&$M20&\"_old\",Ammortamento_Finanziario!$H:$L,5,FALSE),VLOOKUP($M20,TT_Tabelle_Riferimento!$H$31:$I$50,2,FALSE))","v":5},{"$f":"+IFERROR(VLOOKUP(AU$6&\"-\"&$M20&\"_old\",Ammortamento_Finanziario!$H:$L,5,FALSE),VLOOKUP($M20,TT_Tabelle_Riferimento!$H$31:$I$50,2,FALSE))","v":5},{"$f":"+IFERROR(VLOOKUP(AV$6&\"-\"&$M20&\"_old\",Ammortamento_Finanziario!$H:$L,5,FALSE),VLOOKUP($M20,TT_Tabelle_Riferimento!$H$31:$I$50,2,FALSE))","v":5},{"$f":"+IFERROR(VLOOKUP(AW$6&\"-\"&$M20&\"_old\",Ammortamento_Finanziario!$H:$L,5,FALSE),VLOOKUP($M20,TT_Tabelle_Riferimento!$H$31:$I$50,2,FALSE))","v":5},{"$f":"+IFERROR(VLOOKUP(AX$6&\"-\"&$M20&\"_old\",Ammortamento_Finanziario!$H:$L,5,FALSE),VLOOKUP($M20,TT_Tabelle_Riferimento!$H$31:$I$50,2,FALSE))","v":5},{"$f":"+IFERROR(VLOOKUP(AY$6&\"-\"&$M20&\"_old\",Ammortamento_Finanziario!$H:$L,5,FALSE),VLOOKUP($M20,TT_Tabelle_Riferimento!$H$31:$I$50,2,FALSE))","v":5},{"$f":"+IFERROR(VLOOKUP(AZ$6&\"-\"&$M20&\"_old\",Ammortamento_Finanziario!$H:$L,5,FALSE),VLOOKUP($M20,TT_Tabelle_Riferimento!$H$31:$I$50,2,FALSE))","v":5},{"$f":"+IFERROR(VLOOKUP(BA$6&\"-\"&$M20&\"_old\",Ammortamento_Finanziario!$H:$L,5,FALSE),VLOOKUP($M20,TT_Tabelle_Riferimento!$H$31:$I$50,2,FALSE))","v":5},{"$f":"+IFERROR(VLOOKUP(BB$6&\"-\"&$M20&\"_old\",Ammortamento_Finanziario!$H:$L,5,FALSE),VLOOKUP($M20,TT_Tabelle_Riferimento!$H$31:$I$50,2,FALSE))","v":5},{"$f":"+IFERROR(VLOOKUP(BC$6&\"-\"&$M20&\"_old\",Ammortamento_Finanziario!$H:$L,5,FALSE),VLOOKUP($M20,TT_Tabelle_Riferimento!$H$31:$I$50,2,FALSE))","v":5},{"$f":"+IFERROR(VLOOKUP(BD$6&\"-\"&$M20&\"_old\",Ammortamento_Finanziario!$H:$L,5,FALSE),VLOOKUP($M20,TT_Tabelle_Riferimento!$H$31:$I$50,2,FALSE))","v":5},{"$f":"+IFERROR(VLOOKUP(BE$6&\"-\"&$M20&\"_old\",Ammortamento_Finanziario!$H:$L,5,FALSE),VLOOKUP($M20,TT_Tabelle_Riferimento!$H$31:$I$50,2,FALSE))","v":5},{"$f":"+IFERROR(VLOOKUP(BF$6&\"-\"&$M20&\"_old\",Ammortamento_Finanziario!$H:$L,5,FALSE),VLOOKUP($M20,TT_Tabelle_Riferimento!$H$31:$I$50,2,FALSE))","v":5},{"$f":"+IFERROR(VLOOKUP(BG$6&\"-\"&$M20&\"_old\",Ammortamento_Finanziario!$H:$L,5,FALSE),VLOOKUP($M20,TT_Tabelle_Riferimento!$H$31:$I$50,2,FALSE))","v":5},{"$f":"+IFERROR(VLOOKUP(BH$6&\"-\"&$M20&\"_old\",Ammortamento_Finanziario!$H:$L,5,FALSE),VLOOKUP($M20,TT_Tabelle_Riferimento!$H$31:$I$50,2,FALSE))","v":5},{"$f":"+IFERROR(VLOOKUP(BI$6&\"-\"&$M20&\"_old\",Ammortamento_Finanziario!$H:$L,5,FALSE),VLOOKUP($M20,TT_Tabelle_Riferimento!$H$31:$I$50,2,FALSE))","v":5},{"$f":"+IFERROR(VLOOKUP(BJ$6&\"-\"&$M20&\"_old\",Ammortamento_Finanziario!$H:$L,5,FALSE),VLOOKUP($M20,TT_Tabelle_Riferimento!$H$31:$I$50,2,FALSE))","v":5},{"$f":"+IFERROR(VLOOKUP(BK$6&\"-\"&$M20&\"_old\",Ammortamento_Finanziario!$H:$L,5,FALSE),VLOOKUP($M20,TT_Tabelle_Riferimento!$H$31:$I$50,2,FALSE))","v":5},{"$f":"+IFERROR(VLOOKUP(BL$6&\"-\"&$M20&\"_old\",Ammortamento_Finanziario!$H:$L,5,FALSE),VLOOKUP($M20,TT_Tabelle_Riferimento!$H$31:$I$50,2,FALSE))","v":5},{"$f":"+IFERROR(VLOOKUP(BM$6&\"-\"&$M20&\"_old\",Ammortamento_Finanziario!$H:$L,5,FALSE),VLOOKUP($M20,TT_Tabelle_Riferimento!$H$31:$I$50,2,FALSE))","v":5},{"$f":"+IFERROR(VLOOKUP(BN$6&\"-\"&$M20&\"_old\",Ammortamento_Finanziario!$H:$L,5,FALSE),VLOOKUP($M20,TT_Tabelle_Riferimento!$H$31:$I$50,2,FALSE))","v":5},{"$f":"+IFERROR(VLOOKUP(BO$6&\"-\"&$M20&\"_old\",Ammortamento_Finanziario!$H:$L,5,FALSE),VLOOKUP($M20,TT_Tabelle_Riferimento!$H$31:$I$50,2,FALSE))","v":5},{"$f":"+IFERROR(VLOOKUP(BP$6&\"-\"&$M20&\"_old\",Ammortamento_Finanziario!$H:$L,5,FALSE),VLOOKUP($M20,TT_Tabelle_Riferimento!$H$31:$I$50,2,FALSE))","v":5},{"$f":"+IFERROR(VLOOKUP(BQ$6&\"-\"&$M20&\"_old\",Ammortamento_Finanziario!$H:$L,5,FALSE),VLOOKUP($M20,TT_Tabelle_Riferimento!$H$31:$I$50,2,FALSE))","v":5},{"$f":"+IFERROR(VLOOKUP(BR$6&\"-\"&$M20&\"_old\",Ammortamento_Finanziario!$H:$L,5,FALSE),VLOOKUP($M20,TT_Tabelle_Riferimento!$H$31:$I$50,2,FALSE))","v":5},{"$f":"+IFERROR(VLOOKUP(BS$6&\"-\"&$M20&\"_old\",Ammortamento_Finanziario!$H:$L,5,FALSE),VLOOKUP($M20,TT_Tabelle_Riferimento!$H$31:$I$50,2,FALSE))","v":5},{"$f":"+IFERROR(VLOOKUP(BT$6&\"-\"&$M20&\"_old\",Ammortamento_Finanziario!$H:$L,5,FALSE),VLOOKUP($M20,TT_Tabelle_Riferimento!$H$31:$I$50,2,FALSE))","v":5},{"$f":"+IFERROR(VLOOKUP(BU$6&\"-\"&$M20&\"_old\",Ammortamento_Finanziario!$H:$L,5,FALSE),VLOOKUP($M20,TT_Tabelle_Riferimento!$H$31:$I$50,2,FALSE))","v":5},{"$f":"+IFERROR(VLOOKUP(BV$6&\"-\"&$M20&\"_old\",Ammortamento_Finanziario!$H:$L,5,FALSE),VLOOKUP($M20,TT_Tabelle_Riferimento!$H$31:$I$50,2,FALSE))","v":5},{"$f":"+IFERROR(VLOOKUP(BW$6&\"-\"&$M20&\"_old\",Ammortamento_Finanziario!$H:$L,5,FALSE),VLOOKUP($M20,TT_Tabelle_Riferimento!$H$31:$I$50,2,FALSE))","v":5},{"$f":"+IFERROR(VLOOKUP(BX$6&\"-\"&$M20&\"_old\",Ammortamento_Finanziario!$H:$L,5,FALSE),VLOOKUP($M20,TT_Tabelle_Riferimento!$H$31:$I$50,2,FALSE))","v":5},{"$f":"+IFERROR(VLOOKUP(BY$6&\"-\"&$M20&\"_old\",Ammortamento_Finanziario!$H:$L,5,FALSE),VLOOKUP($M20,TT_Tabelle_Riferimento!$H$31:$I$50,2,FALSE))","v":5},{"$f":"+IFERROR(VLOOKUP(BZ$6&\"-\"&$M20&\"_old\",Ammortamento_Finanziario!$H:$L,5,FALSE),VLOOKUP($M20,TT_Tabelle_Riferimento!$H$31:$I$50,2,FALSE))","v":5},{"$f":"+IFERROR(VLOOKUP(CA$6&\"-\"&$M20&\"_old\",Ammortamento_Finanziario!$H:$L,5,FALSE),VLOOKUP($M20,TT_Tabelle_Riferimento!$H$31:$I$50,2,FALSE))","v":5},{"$f":"+IFERROR(VLOOKUP(CB$6&\"-\"&$M20&\"_old\",Ammortamento_Finanziario!$H:$L,5,FALSE),VLOOKUP($M20,TT_Tabelle_Riferimento!$H$31:$I$50,2,FALSE))","v":5},{"$f":"+IFERROR(VLOOKUP(CC$6&\"-\"&$M20&\"_old\",Ammortamento_Finanziario!$H:$L,5,FALSE),VLOOKUP($M20,TT_Tabelle_Riferimento!$H$31:$I$50,2,FALSE))","v":5},{"$f":"+IFERROR(VLOOKUP(CD$6&\"-\"&$M20&\"_old\",Ammortamento_Finanziario!$H:$L,5,FALSE),VLOOKUP($M20,TT_Tabelle_Riferimento!$H$31:$I$50,2,FALSE))","v":5},{"$f":"+IFERROR(VLOOKUP(CE$6&\"-\"&$M20&\"_old\",Ammortamento_Finanziario!$H:$L,5,FALSE),VLOOKUP($M20,TT_Tabelle_Riferimento!$H$31:$I$50,2,FALSE))","v":5},{"$f":"+IFERROR(VLOOKUP(CF$6&\"-\"&$M20&\"_old\",Ammortamento_Finanziario!$H:$L,5,FALSE),VLOOKUP($M20,TT_Tabelle_Riferimento!$H$31:$I$50,2,FALSE))","v":5},{"$f":"+IFERROR(VLOOKUP(CG$6&\"-\"&$M20&\"_old\",Ammortamento_Finanziario!$H:$L,5,FALSE),VLOOKUP($M20,TT_Tabelle_Riferimento!$H$31:$I$50,2,FALSE))","v":5},{"$f":"+IFERROR(VLOOKUP(CH$6&\"-\"&$M20&\"_old\",Ammortamento_Finanziario!$H:$L,5,FALSE),VLOOKUP($M20,TT_Tabelle_Riferimento!$H$31:$I$50,2,FALSE))","v":5},{"$f":"+IFERROR(VLOOKUP(CI$6&\"-\"&$M20&\"_old\",Ammortamento_Finanziario!$H:$L,5,FALSE),VLOOKUP($M20,TT_Tabelle_Riferimento!$H$31:$I$50,2,FALSE))","v":5},{"$f":"+IFERROR(VLOOKUP(CJ$6&\"-\"&$M20&\"_old\",Ammortamento_Finanziario!$H:$L,5,FALSE),VLOOKUP($M20,TT_Tabelle_Riferimento!$H$31:$I$50,2,FALSE))","v":5},{"$f":"+IFERROR(VLOOKUP(CK$6&\"-\"&$M20&\"_old\",Ammortamento_Finanziario!$H:$L,5,FALSE),VLOOKUP($M20,TT_Tabelle_Riferimento!$H$31:$I$50,2,FALSE))","v":5},{"$f":"+IFERROR(VLOOKUP(CL$6&\"-\"&$M20&\"_old\",Ammortamento_Finanziario!$H:$L,5,FALSE),VLOOKUP($M20,TT_Tabelle_Riferimento!$H$31:$I$50,2,FALSE))","v":5},{"$f":"+IFERROR(VLOOKUP(CM$6&\"-\"&$M20&\"_old\",Ammortamento_Finanziario!$H:$L,5,FALSE),VLOOKUP($M20,TT_Tabelle_Riferimento!$H$31:$I$50,2,FALSE))","v":5},{"$f":"+IFERROR(VLOOKUP(CN$6&\"-\"&$M20&\"_old\",Ammortamento_Finanziario!$H:$L,5,FALSE),VLOOKUP($M20,TT_Tabelle_Riferimento!$H$31:$I$50,2,FALSE))","v":5},{"$f":"+IFERROR(VLOOKUP(CO$6&\"-\"&$M20&\"_old\",Ammortamento_Finanziario!$H:$L,5,FALSE),VLOOKUP($M20,TT_Tabelle_Riferimento!$H$31:$I$50,2,FALSE))","v":5},{"$f":"+IFERROR(VLOOKUP(CP$6&\"-\"&$M20&\"_old\",Ammortamento_Finanziario!$H:$L,5,FALSE),VLOOKUP($M20,TT_Tabelle_Riferimento!$H$31:$I$50,2,FALSE))","v":5},{"$f":"+IFERROR(VLOOKUP(CQ$6&\"-\"&$M20&\"_old\",Ammortamento_Finanziario!$H:$L,5,FALSE),VLOOKUP($M20,TT_Tabelle_Riferimento!$H$31:$I$50,2,FALSE))","v":5},{"$f":"+IFERROR(VLOOKUP(CR$6&\"-\"&$M20&\"_old\",Ammortamento_Finanziario!$H:$L,5,FALSE),VLOOKUP($M20,TT_Tabelle_Riferimento!$H$31:$I$50,2,FALSE))","v":5},{"$f":"+IFERROR(VLOOKUP(CS$6&\"-\"&$M20&\"_old\",Ammortamento_Finanziario!$H:$L,5,FALSE),VLOOKUP($M20,TT_Tabelle_Riferimento!$H$31:$I$50,2,FALSE))","v":5},{"$f":"+IFERROR(VLOOKUP(CT$6&\"-\"&$M20&\"_old\",Ammortamento_Finanziario!$H:$L,5,FALSE),VLOOKUP($M20,TT_Tabelle_Riferimento!$H$31:$I$50,2,FALSE))","v":5},{"$f":"+IFERROR(VLOOKUP(CU$6&\"-\"&$M20&\"_old\",Ammortamento_Finanziario!$H:$L,5,FALSE),VLOOKUP($M20,TT_Tabelle_Riferimento!$H$31:$I$50,2,FALSE))","v":5},{"$f":"+IFERROR(VLOOKUP(CV$6&\"-\"&$M20&\"_old\",Ammortamento_Finanziario!$H:$L,5,FALSE),VLOOKUP($M20,TT_Tabelle_Riferimento!$H$31:$I$50,2,FALSE))","v":5},{"$f":"+IFERROR(VLOOKUP(CW$6&\"-\"&$M20&\"_old\",Ammortamento_Finanziario!$H:$L,5,FALSE),VLOOKUP($M20,TT_Tabelle_Riferimento!$H$31:$I$50,2,FALSE))","v":5},{"$f":"+IFERROR(VLOOKUP(CX$6&\"-\"&$M20&\"_old\",Ammortamento_Finanziario!$H:$L,5,FALSE),VLOOKUP($M20,TT_Tabelle_Riferimento!$H$31:$I$50,2,FALSE))","v":5},{"$f":"+IFERROR(VLOOKUP(CY$6&\"-\"&$M20&\"_old\",Ammortamento_Finanziario!$H:$L,5,FALSE),VLOOKUP($M20,TT_Tabelle_Riferimento!$H$31:$I$50,2,FALSE))","v":5},{"$f":"+IFERROR(VLOOKUP(CZ$6&\"-\"&$M20&\"_old\",Ammortamento_Finanziario!$H:$L,5,FALSE),VLOOKUP($M20,TT_Tabelle_Riferimento!$H$31:$I$50,2,FALSE))","v":5},{"$f":"+IFERROR(VLOOKUP(DA$6&\"-\"&$M20&\"_old\",Ammortamento_Finanziario!$H:$L,5,FALSE),VLOOKUP($M20,TT_Tabelle_Riferimento!$H$31:$I$50,2,FALSE))","v":5},{"$f":"+IFERROR(VLOOKUP(DB$6&\"-\"&$M20&\"_old\",Ammortamento_Finanziario!$H:$L,5,FALSE),VLOOKUP($M20,TT_Tabelle_Riferimento!$H$31:$I$50,2,FALSE))","v":5},{"$f":"+IFERROR(VLOOKUP(DC$6&\"-\"&$M20&\"_old\",Ammortamento_Finanziario!$H:$L,5,FALSE),VLOOKUP($M20,TT_Tabelle_Riferimento!$H$31:$I$50,2,FALSE))","v":5},{"$f":"+IFERROR(VLOOKUP(DD$6&\"-\"&$M20&\"_old\",Ammortamento_Finanziario!$H:$L,5,FALSE),VLOOKUP($M20,TT_Tabelle_Riferimento!$H$31:$I$50,2,FALSE))","v":5},{"$f":"+IFERROR(VLOOKUP(DE$6&\"-\"&$M20&\"_old\",Ammortamento_Finanziario!$H:$L,5,FALSE),VLOOKUP($M20,TT_Tabelle_Riferimento!$H$31:$I$50,2,FALSE))","v":5},{"$f":"+IFERROR(VLOOKUP(DF$6&\"-\"&$M20&\"_old\",Ammortamento_Finanziario!$H:$L,5,FALSE),VLOOKUP($M20,TT_Tabelle_Riferimento!$H$31:$I$50,2,FALSE))","v":5},{"$f":"+IFERROR(VLOOKUP(DG$6&\"-\"&$M20&\"_old\",Ammortamento_Finanziario!$H:$L,5,FALSE),VLOOKUP($M20,TT_Tabelle_Riferimento!$H$31:$I$50,2,FALSE))","v":5},{"$f":"+IFERROR(VLOOKUP(DH$6&\"-\"&$M20&\"_old\",Ammortamento_Finanziario!$H:$L,5,FALSE),VLOOKUP($M20,TT_Tabelle_Riferimento!$H$31:$I$50,2,FALSE))","v":5},{"$f":"+IFERROR(VLOOKUP(DI$6&\"-\"&$M20&\"_old\",Ammortamento_Finanziario!$H:$L,5,FALSE),VLOOKUP($M20,TT_Tabelle_Riferimento!$H$31:$I$50,2,FALSE))","v":5},{"$f":"+IFERROR(VLOOKUP(DJ$6&\"-\"&$M20&\"_old\",Ammortamento_Finanziario!$H:$L,5,FALSE),VLOOKUP($M20,TT_Tabelle_Riferimento!$H$31:$I$50,2,FALSE))","v":5},{"$f":"+IFERROR(VLOOKUP(DK$6&\"-\"&$M20&\"_old\",Ammortamento_Finanziario!$H:$L,5,FALSE),VLOOKUP($M20,TT_Tabelle_Riferimento!$H$31:$I$50,2,FALSE))","v":5},{"$f":"+IFERROR(VLOOKUP(DL$6&\"-\"&$M20&\"_old\",Ammortamento_Finanziario!$H:$L,5,FALSE),VLOOKUP($M20,TT_Tabelle_Riferimento!$H$31:$I$50,2,FALSE))","v":5},{"$f":"+IFERROR(VLOOKUP(DM$6&\"-\"&$M20&\"_old\",Ammortamento_Finanziario!$H:$L,5,FALSE),VLOOKUP($M20,TT_Tabelle_Riferimento!$H$31:$I$50,2,FALSE))","v":5},{"$f":"+IFERROR(VLOOKUP(DN$6&\"-\"&$M20&\"_old\",Ammortamento_Finanziario!$H:$L,5,FALSE),VLOOKUP($M20,TT_Tabelle_Riferimento!$H$31:$I$50,2,FALSE))","v":5},{"$f":"+IFERROR(VLOOKUP(DO$6&\"-\"&$M20&\"_old\",Ammortamento_Finanziario!$H:$L,5,FALSE),VLOOKUP($M20,TT_Tabelle_Riferimento!$H$31:$I$50,2,FALSE))","v":5},{"$f":"+IFERROR(VLOOKUP(DP$6&\"-\"&$M20&\"_old\",Ammortamento_Finanziario!$H:$L,5,FALSE),VLOOKUP($M20,TT_Tabelle_Riferimento!$H$31:$I$50,2,FALSE))","v":5},{"$f":"+IFERROR(VLOOKUP(DQ$6&\"-\"&$M20&\"_old\",Ammortamento_Finanziario!$H:$L,5,FALSE),VLOOKUP($M20,TT_Tabelle_Riferimento!$H$31:$I$50,2,FALSE))","v":5},{"$f":"+IFERROR(VLOOKUP(DR$6&\"-\"&$M20&\"_old\",Ammortamento_Finanziario!$H:$L,5,FALSE),VLOOKUP($M20,TT_Tabelle_Riferimento!$H$31:$I$50,2,FALSE))","v":5},{"$f":"+IFERROR(VLOOKUP(DS$6&\"-\"&$M20&\"_old\",Ammortamento_Finanziario!$H:$L,5,FALSE),VLOOKUP($M20,TT_Tabelle_Riferimento!$H$31:$I$50,2,FALSE))","v":5},{"$f":"+IFERROR(VLOOKUP(DT$6&\"-\"&$M20&\"_old\",Ammortamento_Finanziario!$H:$L,5,FALSE),VLOOKUP($M20,TT_Tabelle_Riferimento!$H$31:$I$50,2,FALSE))","v":5},{"$f":"+IFERROR(VLOOKUP(DU$6&\"-\"&$M20&\"_old\",Ammortamento_Finanziario!$H:$L,5,FALSE),VLOOKUP($M20,TT_Tabelle_Riferimento!$H$31:$I$50,2,FALSE))","v":5},{"$f":"+IFERROR(VLOOKUP(DV$6&\"-\"&$M20&\"_old\",Ammortamento_Finanziario!$H:$L,5,FALSE),VLOOKUP($M20,TT_Tabelle_Riferimento!$H$31:$I$50,2,FALSE))","v":5},{"$f":"+IFERROR(VLOOKUP(DW$6&\"-\"&$M20&\"_old\",Ammortamento_Finanziario!$H:$L,5,FALSE),VLOOKUP($M20,TT_Tabelle_Riferimento!$H$31:$I$50,2,FALSE))","v":5},{"$f":"+IFERROR(VLOOKUP(DX$6&\"-\"&$M20&\"_old\",Ammortamento_Finanziario!$H:$L,5,FALSE),VLOOKUP($M20,TT_Tabelle_Riferimento!$H$31:$I$50,2,FALSE))","v":5},{"$f":"+IFERROR(VLOOKUP(DY$6&\"-\"&$M20&\"_old\",Ammortamento_Finanziario!$H:$L,5,FALSE),VLOOKUP($M20,TT_Tabelle_Riferimento!$H$31:$I$50,2,FALSE))","v":5},{"$f":"+IFERROR(VLOOKUP(DZ$6&\"-\"&$M20&\"_old\",Ammortamento_Finanziario!$H:$L,5,FALSE),VLOOKUP($M20,TT_Tabelle_Riferimento!$H$31:$I$50,2,FALSE))","v":5},{"$f":"+IFERROR(VLOOKUP(EA$6&\"-\"&$M20&\"_old\",Ammortamento_Finanziario!$H:$L,5,FALSE),VLOOKUP($M20,TT_Tabelle_Riferimento!$H$31:$I$50,2,FALSE))","v":5},{"$f":"+IFERROR(VLOOKUP(EB$6&\"-\"&$M20&\"_old\",Ammortamento_Finanziario!$H:$L,5,FALSE),VLOOKUP($M20,TT_Tabelle_Riferimento!$H$31:$I$50,2,FALSE))","v":5},{"$f":"+IFERROR(VLOOKUP(EC$6&\"-\"&$M20&\"_old\",Ammortamento_Finanziario!$H:$L,5,FALSE),VLOOKUP($M20,TT_Tabelle_Riferimento!$H$31:$I$50,2,FALSE))","v":5},{"$f":"+IFERROR(VLOOKUP(ED$6&\"-\"&$M20&\"_old\",Ammortamento_Finanziario!$H:$L,5,FALSE),VLOOKUP($M20,TT_Tabelle_Riferimento!$H$31:$I$50,2,FALSE))","v":5},{"$f":"+IFERROR(VLOOKUP(EE$6&\"-\"&$M20&\"_old\",Ammortamento_Finanziario!$H:$L,5,FALSE),VLOOKUP($M20,TT_Tabelle_Riferimento!$H$31:$I$50,2,FALSE))","v":5},{"$f":"+IFERROR(VLOOKUP(EF$6&\"-\"&$M20&\"_old\",Ammortamento_Finanziario!$H:$L,5,FALSE),VLOOKUP($M20,TT_Tabelle_Riferimento!$H$31:$I$50,2,FALSE))","v":5},{"$f":"+IFERROR(VLOOKUP(EG$6&\"-\"&$M20&\"_old\",Ammortamento_Finanziario!$H:$L,5,FALSE),VLOOKUP($M20,TT_Tabelle_Riferimento!$H$31:$I$50,2,FALSE))","v":5},{"$f":"+IFERROR(VLOOKUP(EH$6&\"-\"&$M20&\"_old\",Ammortamento_Finanziario!$H:$L,5,FALSE),VLOOKUP($M20,TT_Tabelle_Riferimento!$H$31:$I$50,2,FALSE))","v":5},{"$f":"+IFERROR(VLOOKUP(EI$6&\"-\"&$M20&\"_old\",Ammortamento_Finanziario!$H:$L,5,FALSE),VLOOKUP($M20,TT_Tabelle_Riferimento!$H$31:$I$50,2,FALSE))","v":5},{"$f":"+IFERROR(VLOOKUP(EJ$6&\"-\"&$M20&\"_old\",Ammortamento_Finanziario!$H:$L,5,FALSE),VLOOKUP($M20,TT_Tabelle_Riferimento!$H$31:$I$50,2,FALSE))","v":5},{"$f":"+IFERROR(VLOOKUP(EK$6&\"-\"&$M20&\"_old\",Ammortamento_Finanziario!$H:$L,5,FALSE),VLOOKUP($M20,TT_Tabelle_Riferimento!$H$31:$I$50,2,FALSE))","v":5},{"$f":"+IFERROR(VLOOKUP(EL$6&\"-\"&$M20&\"_old\",Ammortamento_Finanziario!$H:$L,5,FALSE),VLOOKUP($M20,TT_Tabelle_Riferimento!$H$31:$I$50,2,FALSE))","v":5},{"$f":"+IFERROR(VLOOKUP(EM$6&\"-\"&$M20&\"_old\",Ammortamento_Finanziario!$H:$L,5,FALSE),VLOOKUP($M20,TT_Tabelle_Riferimento!$H$31:$I$50,2,FALSE))","v":5},{"$f":"+IFERROR(VLOOKUP(EN$6&\"-\"&$M20&\"_old\",Ammortamento_Finanziario!$H:$L,5,FALSE),VLOOKUP($M20,TT_Tabelle_Riferimento!$H$31:$I$50,2,FALSE))","v":5},{"$f":"+IFERROR(VLOOKUP(EO$6&\"-\"&$M20&\"_old\",Ammortamento_Finanziario!$H:$L,5,FALSE),VLOOKUP($M20,TT_Tabelle_Riferimento!$H$31:$I$50,2,FALSE))","v":5},{"$f":"+IFERROR(VLOOKUP(EP$6&\"-\"&$M20&\"_old\",Ammortamento_Finanziario!$H:$L,5,FALSE),VLOOKUP($M20,TT_Tabelle_Riferimento!$H$31:$I$50,2,FALSE))","v":5},{"$f":"+IFERROR(VLOOKUP(EQ$6&\"-\"&$M20&\"_old\",Ammortamento_Finanziario!$H:$L,5,FALSE),VLOOKUP($M20,TT_Tabelle_Riferimento!$H$31:$I$50,2,FALSE))","v":5},{"$f":"+IFERROR(VLOOKUP(ER$6&\"-\"&$M20&\"_old\",Ammortamento_Finanziario!$H:$L,5,FALSE),VLOOKUP($M20,TT_Tabelle_Riferimento!$H$31:$I$50,2,FALSE))","v":5},{"$f":"+IFERROR(VLOOKUP(ES$6&\"-\"&$M20&\"_old\",Ammortamento_Finanziario!$H:$L,5,FALSE),VLOOKUP($M20,TT_Tabelle_Riferimento!$H$31:$I$50,2,FALSE))","v":5},{"$f":"+IFERROR(VLOOKUP(ET$6&\"-\"&$M20&\"_old\",Ammortamento_Finanziario!$H:$L,5,FALSE),VLOOKUP($M20,TT_Tabelle_Riferimento!$H$31:$I$50,2,FALSE))","v":5},{"$f":"+IFERROR(VLOOKUP(EU$6&\"-\"&$M20&\"_old\",Ammortamento_Finanziario!$H:$L,5,FALSE),VLOOKUP($M20,TT_Tabelle_Riferimento!$H$31:$I$50,2,FALSE))","v":5},{"$f":"+IFERROR(VLOOKUP(EV$6&\"-\"&$M20&\"_old\",Ammortamento_Finanziario!$H:$L,5,FALSE),VLOOKUP($M20,TT_Tabelle_Riferimento!$H$31:$I$50,2,FALSE))","v":5},{"$f":"+IFERROR(VLOOKUP(EW$6&\"-\"&$M20&\"_old\",Ammortamento_Finanziario!$H:$L,5,FALSE),VLOOKUP($M20,TT_Tabelle_Riferimento!$H$31:$I$50,2,FALSE))","v":5},{"$f":"+IFERROR(VLOOKUP(EX$6&\"-\"&$M20&\"_old\",Ammortamento_Finanziario!$H:$L,5,FALSE),VLOOKUP($M20,TT_Tabelle_Riferimento!$H$31:$I$50,2,FALSE))","v":5},{"$f":"+IFERROR(VLOOKUP(EY$6&\"-\"&$M20&\"_old\",Ammortamento_Finanziario!$H:$L,5,FALSE),VLOOKUP($M20,TT_Tabelle_Riferimento!$H$31:$I$50,2,FALSE))","v":5},{"$f":"+IFERROR(VLOOKUP(EZ$6&\"-\"&$M20&\"_old\",Ammortamento_Finanziario!$H:$L,5,FALSE),VLOOKUP($M20,TT_Tabelle_Riferimento!$H$31:$I$50,2,FALSE))","v":5},{"$f":"+IFERROR(VLOOKUP(FA$6&\"-\"&$M20&\"_old\",Ammortamento_Finanziario!$H:$L,5,FALSE),VLOOKUP($M20,TT_Tabelle_Riferimento!$H$31:$I$50,2,FALSE))","v":5},{"$f":"+IFERROR(VLOOKUP(FB$6&\"-\"&$M20&\"_old\",Ammortamento_Finanziario!$H:$L,5,FALSE),VLOOKUP($M20,TT_Tabelle_Riferimento!$H$31:$I$50,2,FALSE))","v":5},{"$f":"+IFERROR(VLOOKUP(FC$6&\"-\"&$M20&\"_old\",Ammortamento_Finanziario!$H:$L,5,FALSE),VLOOKUP($M20,TT_Tabelle_Riferimento!$H$31:$I$50,2,FALSE))","v":5},{"$f":"+IFERROR(VLOOKUP(FD$6&\"-\"&$M20&\"_old\",Ammortamento_Finanziario!$H:$L,5,FALSE),VLOOKUP($M20,TT_Tabelle_Riferimento!$H$31:$I$50,2,FALSE))","v":5},{"$f":"+IFERROR(VLOOKUP(FE$6&\"-\"&$M20&\"_old\",Ammortamento_Finanziario!$H:$L,5,FALSE),VLOOKUP($M20,TT_Tabelle_Riferimento!$H$31:$I$50,2,FALSE))","v":5},{"$f":"+IFERROR(VLOOKUP(FF$6&\"-\"&$M20&\"_old\",Ammortamento_Finanziario!$H:$L,5,FALSE),VLOOKUP($M20,TT_Tabelle_Riferimento!$H$31:$I$50,2,FALSE))","v":5},{"$f":"+IFERROR(VLOOKUP(FG$6&\"-\"&$M20&\"_old\",Ammortamento_Finanziario!$H:$L,5,FALSE),VLOOKUP($M20,TT_Tabelle_Riferimento!$H$31:$I$50,2,FALSE))","v":5},{"$f":"+IFERROR(VLOOKUP(FH$6&\"-\"&$M20&\"_old\",Ammortamento_Finanziario!$H:$L,5,FALSE),VLOOKUP($M20,TT_Tabelle_Riferimento!$H$31:$I$50,2,FALSE))","v":5},{"$f":"+IFERROR(VLOOKUP(FI$6&\"-\"&$M20&\"_old\",Ammortamento_Finanziario!$H:$L,5,FALSE),VLOOKUP($M20,TT_Tabelle_Riferimento!$H$31:$I$50,2,FALSE))","v":5},{"$f":"+IFERROR(VLOOKUP(FJ$6&\"-\"&$M20&\"_old\",Ammortamento_Finanziario!$H:$L,5,FALSE),VLOOKUP($M20,TT_Tabelle_Riferimento!$H$31:$I$50,2,FALSE))","v":5},{"$f":"+IFERROR(VLOOKUP(FK$6&\"-\"&$M20&\"_old\",Ammortamento_Finanziario!$H:$L,5,FALSE),VLOOKUP($M20,TT_Tabelle_Riferimento!$H$31:$I$50,2,FALSE))","v":5},{"$f":"+IFERROR(VLOOKUP(FL$6&\"-\"&$M20&\"_old\",Ammortamento_Finanziario!$H:$L,5,FALSE),VLOOKUP($M20,TT_Tabelle_Riferimento!$H$31:$I$50,2,FALSE))","v":5},{"$f":"+IFERROR(VLOOKUP(FM$6&\"-\"&$M20&\"_old\",Ammortamento_Finanziario!$H:$L,5,FALSE),VLOOKUP($M20,TT_Tabelle_Riferimento!$H$31:$I$50,2,FALSE))","v":5},{"$f":"+IFERROR(VLOOKUP(FN$6&\"-\"&$M20&\"_old\",Ammortamento_Finanziario!$H:$L,5,FALSE),VLOOKUP($M20,TT_Tabelle_Riferimento!$H$31:$I$50,2,FALSE))","v":5},{"$f":"+IFERROR(VLOOKUP(FO$6&\"-\"&$M20&\"_old\",Ammortamento_Finanziario!$H:$L,5,FALSE),VLOOKUP($M20,TT_Tabelle_Riferimento!$H$31:$I$50,2,FALSE))","v":5},{"$f":"+IFERROR(VLOOKUP(FP$6&\"-\"&$M20&\"_old\",Ammortamento_Finanziario!$H:$L,5,FALSE),VLOOKUP($M20,TT_Tabelle_Riferimento!$H$31:$I$50,2,FALSE))","v":5},{"$f":"+IFERROR(VLOOKUP(FQ$6&\"-\"&$M20&\"_old\",Ammortamento_Finanziario!$H:$L,5,FALSE),VLOOKUP($M20,TT_Tabelle_Riferimento!$H$31:$I$50,2,FALSE))","v":5},{"$f":"+IFERROR(VLOOKUP(FR$6&\"-\"&$M20&\"_old\",Ammortamento_Finanziario!$H:$L,5,FALSE),VLOOKUP($M20,TT_Tabelle_Riferimento!$H$31:$I$50,2,FALSE))","v":5},{"$f":"+IFERROR(VLOOKUP(FS$6&\"-\"&$M20&\"_old\",Ammortamento_Finanziario!$H:$L,5,FALSE),VLOOKUP($M20,TT_Tabelle_Riferimento!$H$31:$I$50,2,FALSE))","v":5},{"$f":"+IFERROR(VLOOKUP(FT$6&\"-\"&$M20&\"_old\",Ammortamento_Finanziario!$H:$L,5,FALSE),VLOOKUP($M20,TT_Tabelle_Riferimento!$H$31:$I$50,2,FALSE))","v":5},{"$f":"+IFERROR(VLOOKUP(FU$6&\"-\"&$M20&\"_old\",Ammortamento_Finanziario!$H:$L,5,FALSE),VLOOKUP($M20,TT_Tabelle_Riferimento!$H$31:$I$50,2,FALSE))","v":5},{"$f":"+IFERROR(VLOOKUP(FV$6&\"-\"&$M20&\"_old\",Ammortamento_Finanziario!$H:$L,5,FALSE),VLOOKUP($M20,TT_Tabelle_Riferimento!$H$31:$I$50,2,FALSE))","v":5},{"$f":"+IFERROR(VLOOKUP(FW$6&\"-\"&$M20&\"_old\",Ammortamento_Finanziario!$H:$L,5,FALSE),VLOOKUP($M20,TT_Tabelle_Riferimento!$H$31:$I$50,2,FALSE))","v":5},{"$f":"+IFERROR(VLOOKUP(FX$6&\"-\"&$M20&\"_old\",Ammortamento_Finanziario!$H:$L,5,FALSE),VLOOKUP($M20,TT_Tabelle_Riferimento!$H$31:$I$50,2,FALSE))","v":5},{"$f":"+IFERROR(VLOOKUP(FY$6&\"-\"&$M20&\"_old\",Ammortamento_Finanziario!$H:$L,5,FALSE),VLOOKUP($M20,TT_Tabelle_Riferimento!$H$31:$I$50,2,FALSE))","v":5},{"$f":"+IFERROR(VLOOKUP(FZ$6&\"-\"&$M20&\"_old\",Ammortamento_Finanziario!$H:$L,5,FALSE),VLOOKUP($M20,TT_Tabelle_Riferimento!$H$31:$I$50,2,FALSE))","v":5},{"$f":"+IFERROR(VLOOKUP(GA$6&\"-\"&$M20&\"_old\",Ammortamento_Finanziario!$H:$L,5,FALSE),VLOOKUP($M20,TT_Tabelle_Riferimento!$H$31:$I$50,2,FALSE))","v":5},{"$f":"+IFERROR(VLOOKUP(GB$6&\"-\"&$M20&\"_old\",Ammortamento_Finanziario!$H:$L,5,FALSE),VLOOKUP($M20,TT_Tabelle_Riferimento!$H$31:$I$50,2,FALSE))","v":5},{"$f":"+IFERROR(VLOOKUP(GC$6&\"-\"&$M20&\"_old\",Ammortamento_Finanziario!$H:$L,5,FALSE),VLOOKUP($M20,TT_Tabelle_Riferimento!$H$31:$I$50,2,FALSE))","v":5},{"$f":"+IFERROR(VLOOKUP(GD$6&\"-\"&$M20&\"_old\",Ammortamento_Finanziario!$H:$L,5,FALSE),VLOOKUP($M20,TT_Tabelle_Riferimento!$H$31:$I$50,2,FALSE))","v":5},{"$f":"+IFERROR(VLOOKUP(GE$6&\"-\"&$M20&\"_old\",Ammortamento_Finanziario!$H:$L,5,FALSE),VLOOKUP($M20,TT_Tabelle_Riferimento!$H$31:$I$50,2,FALSE))","v":5},{"$f":"+IFERROR(VLOOKUP(GF$6&\"-\"&$M20&\"_old\",Ammortamento_Finanziario!$H:$L,5,FALSE),VLOOKUP($M20,TT_Tabelle_Riferimento!$H$31:$I$50,2,FALSE))","v":5},{"$f":"+IFERROR(VLOOKUP(GG$6&\"-\"&$M20&\"_old\",Ammortamento_Finanziario!$H:$L,5,FALSE),VLOOKUP($M20,TT_Tabelle_Riferimento!$H$31:$I$50,2,FALSE))","v":5},{"$f":"+IFERROR(VLOOKUP(GH$6&\"-\"&$M20&\"_old\",Ammortamento_Finanziario!$H:$L,5,FALSE),VLOOKUP($M20,TT_Tabelle_Riferimento!$H$31:$I$50,2,FALSE))","v":5},{"$f":"+IFERROR(VLOOKUP(GI$6&\"-\"&$M20&\"_old\",Ammortamento_Finanziario!$H:$L,5,FALSE),VLOOKUP($M20,TT_Tabelle_Riferimento!$H$31:$I$50,2,FALSE))","v":5},{"$f":"+IFERROR(VLOOKUP(GJ$6&\"-\"&$M20&\"_old\",Ammortamento_Finanziario!$H:$L,5,FALSE),VLOOKUP($M20,TT_Tabelle_Riferimento!$H$31:$I$50,2,FALSE))","v":5},{"$f":"+IFERROR(VLOOKUP(GK$6&\"-\"&$M20&\"_old\",Ammortamento_Finanziario!$H:$L,5,FALSE),VLOOKUP($M20,TT_Tabelle_Riferimento!$H$31:$I$50,2,FALSE))","v":5},{"$f":"+IFERROR(VLOOKUP(GL$6&\"-\"&$M20&\"_old\",Ammortamento_Finanziario!$H:$L,5,FALSE),VLOOKUP($M20,TT_Tabelle_Riferimento!$H$31:$I$50,2,FALSE))","v":5},{"$f":"+IFERROR(VLOOKUP(GM$6&\"-\"&$M20&\"_old\",Ammortamento_Finanziario!$H:$L,5,FALSE),VLOOKUP($M20,TT_Tabelle_Riferimento!$H$31:$I$50,2,FALSE))","v":5},{"$f":"+IFERROR(VLOOKUP(GN$6&\"-\"&$M20&\"_old\",Ammortamento_Finanziario!$H:$L,5,FALSE),VLOOKUP($M20,TT_Tabelle_Riferimento!$H$31:$I$50,2,FALSE))","v":5},{"$f":"+IFERROR(VLOOKUP(GO$6&\"-\"&$M20&\"_old\",Ammortamento_Finanziario!$H:$L,5,FALSE),VLOOKUP($M20,TT_Tabelle_Riferimento!$H$31:$I$50,2,FALSE))","v":5},{"$f":"+IFERROR(VLOOKUP(GP$6&\"-\"&$M20&\"_old\",Ammortamento_Finanziario!$H:$L,5,FALSE),VLOOKUP($M20,TT_Tabelle_Riferimento!$H$31:$I$50,2,FALSE))","v":5},{"$f":"+IFERROR(VLOOKUP(GQ$6&\"-\"&$M20&\"_old\",Ammortamento_Finanziario!$H:$L,5,FALSE),VLOOKUP($M20,TT_Tabelle_Riferimento!$H$31:$I$50,2,FALSE))","v":5},{"$f":"+IFERROR(VLOOKUP(GR$6&\"-\"&$M20&\"_old\",Ammortamento_Finanziario!$H:$L,5,FALSE),VLOOKUP($M20,TT_Tabelle_Riferimento!$H$31:$I$50,2,FALSE))","v":5},{"$f":"+IFERROR(VLOOKUP(GS$6&\"-\"&$M20&\"_old\",Ammortamento_Finanziario!$H:$L,5,FALSE),VLOOKUP($M20,TT_Tabelle_Riferimento!$H$31:$I$50,2,FALSE))","v":5},{"$f":"+IFERROR(VLOOKUP(GT$6&\"-\"&$M20&\"_old\",Ammortamento_Finanziario!$H:$L,5,FALSE),VLOOKUP($M20,TT_Tabelle_Riferimento!$H$31:$I$50,2,FALSE))","v":5},{"$f":"+IFERROR(VLOOKUP(GU$6&\"-\"&$M20&\"_old\",Ammortamento_Finanziario!$H:$L,5,FALSE),VLOOKUP($M20,TT_Tabelle_Riferimento!$H$31:$I$50,2,FALSE))","v":5},{"$f":"+IFERROR(VLOOKUP(GV$6&\"-\"&$M20&\"_old\",Ammortamento_Finanziario!$H:$L,5,FALSE),VLOOKUP($M20,TT_Tabelle_Riferimento!$H$31:$I$50,2,FALSE))","v":5},{"$f":"+IFERROR(VLOOKUP(GW$6&\"-\"&$M20&\"_old\",Ammortamento_Finanziario!$H:$L,5,FALSE),VLOOKUP($M20,TT_Tabelle_Riferimento!$H$31:$I$50,2,FALSE))","v":5},{"$f":"+IFERROR(VLOOKUP(GX$6&\"-\"&$M20&\"_old\",Ammortamento_Finanziario!$H:$L,5,FALSE),VLOOKUP($M20,TT_Tabelle_Riferimento!$H$31:$I$50,2,FALSE))","v":5},{"$f":"+IFERROR(VLOOKUP(GY$6&\"-\"&$M20&\"_old\",Ammortamento_Finanziario!$H:$L,5,FALSE),VLOOKUP($M20,TT_Tabelle_Riferimento!$H$31:$I$50,2,FALSE))","v":5},{"$f":"+IFERROR(VLOOKUP(GZ$6&\"-\"&$M20&\"_old\",Ammortamento_Finanziario!$H:$L,5,FALSE),VLOOKUP($M20,TT_Tabelle_Riferimento!$H$31:$I$50,2,FALSE))","v":5},{"$f":"+IFERROR(VLOOKUP(HA$6&\"-\"&$M20&\"_old\",Ammortamento_Finanziario!$H:$L,5,FALSE),VLOOKUP($M20,TT_Tabelle_Riferimento!$H$31:$I$50,2,FALSE))","v":5},{"$f":"+IFERROR(VLOOKUP(HB$6&\"-\"&$M20&\"_old\",Ammortamento_Finanziario!$H:$L,5,FALSE),VLOOKUP($M20,TT_Tabelle_Riferimento!$H$31:$I$50,2,FALSE))","v":5},{"$f":"+IFERROR(VLOOKUP(HC$6&\"-\"&$M20&\"_old\",Ammortamento_Finanziario!$H:$L,5,FALSE),VLOOKUP($M20,TT_Tabelle_Riferimento!$H$31:$I$50,2,FALSE))","v":5},{"$f":"+IFERROR(VLOOKUP(HD$6&\"-\"&$M20&\"_old\",Ammortamento_Finanziario!$H:$L,5,FALSE),VLOOKUP($M20,TT_Tabelle_Riferimento!$H$31:$I$50,2,FALSE))","v":5},{"$f":"+IFERROR(VLOOKUP(HE$6&\"-\"&$M20&\"_old\",Ammortamento_Finanziario!$H:$L,5,FALSE),VLOOKUP($M20,TT_Tabelle_Riferimento!$H$31:$I$50,2,FALSE))","v":5},{"$f":"+IFERROR(VLOOKUP(HF$6&\"-\"&$M20&\"_old\",Ammortamento_Finanziario!$H:$L,5,FALSE),VLOOKUP($M20,TT_Tabelle_Riferimento!$H$31:$I$50,2,FALSE))","v":5},{"$f":"+IFERROR(VLOOKUP(HG$6&\"-\"&$M20&\"_old\",Ammortamento_Finanziario!$H:$L,5,FALSE),VLOOKUP($M20,TT_Tabelle_Riferimento!$H$31:$I$50,2,FALSE))","v":5},{"$f":"+IFERROR(VLOOKUP(HH$6&\"-\"&$M20&\"_old\",Ammortamento_Finanziario!$H:$L,5,FALSE),VLOOKUP($M20,TT_Tabelle_Riferimento!$H$31:$I$50,2,FALSE))","v":5},{"$f":"+IFERROR(VLOOKUP(HI$6&\"-\"&$M20&\"_old\",Ammortamento_Finanziario!$H:$L,5,FALSE),VLOOKUP($M20,TT_Tabelle_Riferimento!$H$31:$I$50,2,FALSE))","v":5},{"$f":"+IFERROR(VLOOKUP(HJ$6&\"-\"&$M20&\"_old\",Ammortamento_Finanziario!$H:$L,5,FALSE),VLOOKUP($M20,TT_Tabelle_Riferimento!$H$31:$I$50,2,FALSE))","v":5},{"$f":"+IFERROR(VLOOKUP(HK$6&\"-\"&$M20&\"_old\",Ammortamento_Finanziario!$H:$L,5,FALSE),VLOOKUP($M20,TT_Tabelle_Riferimento!$H$31:$I$50,2,FALSE))","v":5},{"$f":"+IFERROR(VLOOKUP(HL$6&\"-\"&$M20&\"_old\",Ammortamento_Finanziario!$H:$L,5,FALSE),VLOOKUP($M20,TT_Tabelle_Riferimento!$H$31:$I$50,2,FALSE))","v":5},{"$f":"+IFERROR(VLOOKUP(HM$6&\"-\"&$M20&\"_old\",Ammortamento_Finanziario!$H:$L,5,FALSE),VLOOKUP($M20,TT_Tabelle_Riferimento!$H$31:$I$50,2,FALSE))","v":5},{"$f":"+IFERROR(VLOOKUP(HN$6&\"-\"&$M20&\"_old\",Ammortamento_Finanziario!$H:$L,5,FALSE),VLOOKUP($M20,TT_Tabelle_Riferimento!$H$31:$I$50,2,FALSE))","v":5},{"$f":"+IFERROR(VLOOKUP(HO$6&\"-\"&$M20&\"_old\",Ammortamento_Finanziario!$H:$L,5,FALSE),VLOOKUP($M20,TT_Tabelle_Riferimento!$H$31:$I$50,2,FALSE))","v":5},{"$f":"+IFERROR(VLOOKUP(HP$6&\"-\"&$M20&\"_old\",Ammortamento_Finanziario!$H:$L,5,FALSE),VLOOKUP($M20,TT_Tabelle_Riferimento!$H$31:$I$50,2,FALSE))","v":5},{"$f":"+IFERROR(VLOOKUP(HQ$6&\"-\"&$M20&\"_old\",Ammortamento_Finanziario!$H:$L,5,FALSE),VLOOKUP($M20,TT_Tabelle_Riferimento!$H$31:$I$50,2,FALSE))","v":5},{"$f":"+IFERROR(VLOOKUP(HR$6&\"-\"&$M20&\"_old\",Ammortamento_Finanziario!$H:$L,5,FALSE),VLOOKUP($M20,TT_Tabelle_Riferimento!$H$31:$I$50,2,FALSE))","v":5},{"$f":"+IFERROR(VLOOKUP(HS$6&\"-\"&$M20&\"_old\",Ammortamento_Finanziario!$H:$L,5,FALSE),VLOOKUP($M20,TT_Tabelle_Riferimento!$H$31:$I$50,2,FALSE))","v":5},{"$f":"+IFERROR(VLOOKUP(HT$6&\"-\"&$M20&\"_old\",Ammortamento_Finanziario!$H:$L,5,FALSE),VLOOKUP($M20,TT_Tabelle_Riferimento!$H$31:$I$50,2,FALSE))","v":5},{"$f":"+IFERROR(VLOOKUP(HU$6&\"-\"&$M20&\"_old\",Ammortamento_Finanziario!$H:$L,5,FALSE),VLOOKUP($M20,TT_Tabelle_Riferimento!$H$31:$I$50,2,FALSE))","v":5},{"$f":"+IFERROR(VLOOKUP(HV$6&\"-\"&$M20&\"_old\",Ammortamento_Finanziario!$H:$L,5,FALSE),VLOOKUP($M20,TT_Tabelle_Riferimento!$H$31:$I$50,2,FALSE))","v":5},{"$f":"+IFERROR(VLOOKUP(HW$6&\"-\"&$M20&\"_old\",Ammortamento_Finanziario!$H:$L,5,FALSE),VLOOKUP($M20,TT_Tabelle_Riferimento!$H$31:$I$50,2,FALSE))","v":5},{"$f":"+IFERROR(VLOOKUP(HX$6&\"-\"&$M20&\"_old\",Ammortamento_Finanziario!$H:$L,5,FALSE),VLOOKUP($M20,TT_Tabelle_Riferimento!$H$31:$I$50,2,FALSE))","v":5},{"$f":"+IFERROR(VLOOKUP(HY$6&\"-\"&$M20&\"_old\",Ammortamento_Finanziario!$H:$L,5,FALSE),VLOOKUP($M20,TT_Tabelle_Riferimento!$H$31:$I$50,2,FALSE))","v":5},{"$f":"+IFERROR(VLOOKUP(HZ$6&\"-\"&$M20&\"_old\",Ammortamento_Finanziario!$H:$L,5,FALSE),VLOOKUP($M20,TT_Tabelle_Riferimento!$H$31:$I$50,2,FALSE))","v":5},{"$f":"+IFERROR(VLOOKUP(IA$6&\"-\"&$M20&\"_old\",Ammortamento_Finanziario!$H:$L,5,FALSE),VLOOKUP($M20,TT_Tabelle_Riferimento!$H$31:$I$50,2,FALSE))","v":5},{"$f":"+IFERROR(VLOOKUP(IB$6&\"-\"&$M20&\"_old\",Ammortamento_Finanziario!$H:$L,5,FALSE),VLOOKUP($M20,TT_Tabelle_Riferimento!$H$31:$I$50,2,FALSE))","v":5},{"$f":"+IFERROR(VLOOKUP(IC$6&\"-\"&$M20&\"_old\",Ammortamento_Finanziario!$H:$L,5,FALSE),VLOOKUP($M20,TT_Tabelle_Riferimento!$H$31:$I$50,2,FALSE))","v":5},{"$f":"+IFERROR(VLOOKUP(ID$6&\"-\"&$M20&\"_old\",Ammortamento_Finanziario!$H:$L,5,FALSE),VLOOKUP($M20,TT_Tabelle_Riferimento!$H$31:$I$50,2,FALSE))","v":5},{"$f":"+IFERROR(VLOOKUP(IE$6&\"-\"&$M20&\"_old\",Ammortamento_Finanziario!$H:$L,5,FALSE),VLOOKUP($M20,TT_Tabelle_Riferimento!$H$31:$I$50,2,FALSE))","v":5},{"$f":"+IFERROR(VLOOKUP(IF$6&\"-\"&$M20&\"_old\",Ammortamento_Finanziario!$H:$L,5,FALSE),VLOOKUP($M20,TT_Tabelle_Riferimento!$H$31:$I$50,2,FALSE))","v":5},{"$f":"+IFERROR(VLOOKUP(IG$6&\"-\"&$M20&\"_old\",Ammortamento_Finanziario!$H:$L,5,FALSE),VLOOKUP($M20,TT_Tabelle_Riferimento!$H$31:$I$50,2,FALSE))","v":5},{"$f":"+IFERROR(VLOOKUP(IH$6&\"-\"&$M20&\"_old\",Ammortamento_Finanziario!$H:$L,5,FALSE),VLOOKUP($M20,TT_Tabelle_Riferimento!$H$31:$I$50,2,FALSE))","v":5},{"$f":"+IFERROR(VLOOKUP(II$6&\"-\"&$M20&\"_old\",Ammortamento_Finanziario!$H:$L,5,FALSE),VLOOKUP($M20,TT_Tabelle_Riferimento!$H$31:$I$50,2,FALSE))","v":5},{"$f":"+IFERROR(VLOOKUP(IJ$6&\"-\"&$M20&\"_old\",Ammortamento_Finanziario!$H:$L,5,FALSE),VLOOKUP($M20,TT_Tabelle_Riferimento!$H$31:$I$50,2,FALSE))","v":5},{"$f":"+IFERROR(VLOOKUP(IK$6&\"-\"&$M20&\"_old\",Ammortamento_Finanziario!$H:$L,5,FALSE),VLOOKUP($M20,TT_Tabelle_Riferimento!$H$31:$I$50,2,FALSE))","v":5},{"$f":"+IFERROR(VLOOKUP(IL$6&\"-\"&$M20&\"_old\",Ammortamento_Finanziario!$H:$L,5,FALSE),VLOOKUP($M20,TT_Tabelle_Riferimento!$H$31:$I$50,2,FALSE))","v":5},{"$f":"+IFERROR(VLOOKUP(IM$6&\"-\"&$M20&\"_old\",Ammortamento_Finanziario!$H:$L,5,FALSE),VLOOKUP($M20,TT_Tabelle_Riferimento!$H$31:$I$50,2,FALSE))","v":5},{"$f":"+IFERROR(VLOOKUP(IN$6&\"-\"&$M20&\"_old\",Ammortamento_Finanziario!$H:$L,5,FALSE),VLOOKUP($M20,TT_Tabelle_Riferimento!$H$31:$I$50,2,FALSE))","v":5},{"$f":"+IFERROR(VLOOKUP(IO$6&\"-\"&$M20&\"_old\",Ammortamento_Finanziario!$H:$L,5,FALSE),VLOOKUP($M20,TT_Tabelle_Riferimento!$H$31:$I$50,2,FALSE))","v":5},{"$f":"+IFERROR(VLOOKUP(IP$6&\"-\"&$M20&\"_old\",Ammortamento_Finanziario!$H:$L,5,FALSE),VLOOKUP($M20,TT_Tabelle_Riferimento!$H$31:$I$50,2,FALSE))","v":5},{"$f":"+IFERROR(VLOOKUP(IQ$6&\"-\"&$M20&\"_old\",Ammortamento_Finanziario!$H:$L,5,FALSE),VLOOKUP($M20,TT_Tabelle_Riferimento!$H$31:$I$50,2,FALSE))","v":5},{"$f":"+IFERROR(VLOOKUP(IR$6&\"-\"&$M20&\"_old\",Ammortamento_Finanziario!$H:$L,5,FALSE),VLOOKUP($M20,TT_Tabelle_Riferimento!$H$31:$I$50,2,FALSE))","v":5},{"$f":"+IFERROR(VLOOKUP(IS$6&\"-\"&$M20&\"_old\",Ammortamento_Finanziario!$H:$L,5,FALSE),VLOOKUP($M20,TT_Tabelle_Riferimento!$H$31:$I$50,2,FALSE))","v":5},{"$f":"+IFERROR(VLOOKUP(IT$6&\"-\"&$M20&\"_old\",Ammortamento_Finanziario!$H:$L,5,FALSE),VLOOKUP($M20,TT_Tabelle_Riferimento!$H$31:$I$50,2,FALSE))","v":5},{"$f":"+IFERROR(VLOOKUP(IU$6&\"-\"&$M20&\"_old\",Ammortamento_Finanziario!$H:$L,5,FALSE),VLOOKUP($M20,TT_Tabelle_Riferimento!$H$31:$I$50,2,FALSE))","v":5},{"$f":"+IFERROR(VLOOKUP(IV$6&\"-\"&$M20&\"_old\",Ammortamento_Finanziario!$H:$L,5,FALSE),VLOOKUP($M20,TT_Tabelle_Riferimento!$H$31:$I$50,2,FALSE))","v":5},{"$f":"+IFERROR(VLOOKUP(IW$6&\"-\"&$M20&\"_old\",Ammortamento_Finanziario!$H:$L,5,FALSE),VLOOKUP($M20,TT_Tabelle_Riferimento!$H$31:$I$50,2,FALSE))","v":5},{"$f":"+IFERROR(VLOOKUP(IX$6&\"-\"&$M20&\"_old\",Ammortamento_Finanziario!$H:$L,5,FALSE),VLOOKUP($M20,TT_Tabelle_Riferimento!$H$31:$I$50,2,FALSE))","v":5},{"$f":"+IFERROR(VLOOKUP(IY$6&\"-\"&$M20&\"_old\",Ammortamento_Finanziario!$H:$L,5,FALSE),VLOOKUP($M20,TT_Tabelle_Riferimento!$H$31:$I$50,2,FALSE))","v":5},{"$f":"+IFERROR(VLOOKUP(IZ$6&\"-\"&$M20&\"_old\",Ammortamento_Finanziario!$H:$L,5,FALSE),VLOOKUP($M20,TT_Tabelle_Riferimento!$H$31:$I$50,2,FALSE))","v":5},{"$f":"+IFERROR(VLOOKUP(JA$6&\"-\"&$M20&\"_old\",Ammortamento_Finanziario!$H:$L,5,FALSE),VLOOKUP($M20,TT_Tabelle_Riferimento!$H$31:$I$50,2,FALSE))","v":5},{"$f":"+IFERROR(VLOOKUP(JB$6&\"-\"&$M20&\"_old\",Ammortamento_Finanziario!$H:$L,5,FALSE),VLOOKUP($M20,TT_Tabelle_Riferimento!$H$31:$I$50,2,FALSE))","v":5},{"$f":"+IFERROR(VLOOKUP(JC$6&\"-\"&$M20&\"_old\",Ammortamento_Finanziario!$H:$L,5,FALSE),VLOOKUP($M20,TT_Tabelle_Riferimento!$H$31:$I$50,2,FALSE))","v":5},{"$f":"+IFERROR(VLOOKUP(JD$6&\"-\"&$M20&\"_old\",Ammortamento_Finanziario!$H:$L,5,FALSE),VLOOKUP($M20,TT_Tabelle_Riferimento!$H$31:$I$50,2,FALSE))","v":5},{"$f":"+IFERROR(VLOOKUP(JE$6&\"-\"&$M20&\"_old\",Ammortamento_Finanziario!$H:$L,5,FALSE),VLOOKUP($M20,TT_Tabelle_Riferimento!$H$31:$I$50,2,FALSE))","v":5},{"$f":"+IFERROR(VLOOKUP(JF$6&\"-\"&$M20&\"_old\",Ammortamento_Finanziario!$H:$L,5,FALSE),VLOOKUP($M20,TT_Tabelle_Riferimento!$H$31:$I$50,2,FALSE))","v":5},{"$f":"+IFERROR(VLOOKUP(JG$6&\"-\"&$M20&\"_old\",Ammortamento_Finanziario!$H:$L,5,FALSE),VLOOKUP($M20,TT_Tabelle_Riferimento!$H$31:$I$50,2,FALSE))","v":5},{"$f":"+IFERROR(VLOOKUP(JH$6&\"-\"&$M20&\"_old\",Ammortamento_Finanziario!$H:$L,5,FALSE),VLOOKUP($M20,TT_Tabelle_Riferimento!$H$31:$I$50,2,FALSE))","v":5},{"$f":"+IFERROR(VLOOKUP(JI$6&\"-\"&$M20&\"_old\",Ammortamento_Finanziario!$H:$L,5,FALSE),VLOOKUP($M20,TT_Tabelle_Riferimento!$H$31:$I$50,2,FALSE))","v":5},{"$f":"+IFERROR(VLOOKUP(JJ$6&\"-\"&$M20&\"_old\",Ammortamento_Finanziario!$H:$L,5,FALSE),VLOOKUP($M20,TT_Tabelle_Riferimento!$H$31:$I$50,2,FALSE))","v":5},{"$f":"+IFERROR(VLOOKUP(JK$6&\"-\"&$M20&\"_old\",Ammortamento_Finanziario!$H:$L,5,FALSE),VLOOKUP($M20,TT_Tabelle_Riferimento!$H$31:$I$50,2,FALSE))","v":5},{"$f":"+IFERROR(VLOOKUP(JL$6&\"-\"&$M20&\"_old\",Ammortamento_Finanziario!$H:$L,5,FALSE),VLOOKUP($M20,TT_Tabelle_Riferimento!$H$31:$I$50,2,FALSE))","v":5},{"$f":"+IFERROR(VLOOKUP(JM$6&\"-\"&$M20&\"_old\",Ammortamento_Finanziario!$H:$L,5,FALSE),VLOOKUP($M20,TT_Tabelle_Riferimento!$H$31:$I$50,2,FALSE))","v":5},{"$f":"+IFERROR(VLOOKUP(JN$6&\"-\"&$M20&\"_old\",Ammortamento_Finanziario!$H:$L,5,FALSE),VLOOKUP($M20,TT_Tabelle_Riferimento!$H$31:$I$50,2,FALSE))","v":5},{"$f":"+IFERROR(VLOOKUP(JO$6&\"-\"&$M20&\"_old\",Ammortamento_Finanziario!$H:$L,5,FALSE),VLOOKUP($M20,TT_Tabelle_Riferimento!$H$31:$I$50,2,FALSE))","v":5},{"$f":"+IFERROR(VLOOKUP(JP$6&\"-\"&$M20&\"_old\",Ammortamento_Finanziario!$H:$L,5,FALSE),VLOOKUP($M20,TT_Tabelle_Riferimento!$H$31:$I$50,2,FALSE))","v":5},{"$f":"+IFERROR(VLOOKUP(JQ$6&\"-\"&$M20&\"_old\",Ammortamento_Finanziario!$H:$L,5,FALSE),VLOOKUP($M20,TT_Tabelle_Riferimento!$H$31:$I$50,2,FALSE))","v":5},{"$f":"+IFERROR(VLOOKUP(JR$6&\"-\"&$M20&\"_old\",Ammortamento_Finanziario!$H:$L,5,FALSE),VLOOKUP($M20,TT_Tabelle_Riferimento!$H$31:$I$50,2,FALSE))","v":5},{"$f":"+IFERROR(VLOOKUP(JS$6&\"-\"&$M20&\"_old\",Ammortamento_Finanziario!$H:$L,5,FALSE),VLOOKUP($M20,TT_Tabelle_Riferimento!$H$31:$I$50,2,FALSE))","v":5},{"$f":"+IFERROR(VLOOKUP(JT$6&\"-\"&$M20&\"_old\",Ammortamento_Finanziario!$H:$L,5,FALSE),VLOOKUP($M20,TT_Tabelle_Riferimento!$H$31:$I$50,2,FALSE))","v":5},{"$f":"+IFERROR(VLOOKUP(JU$6&\"-\"&$M20&\"_old\",Ammortamento_Finanziario!$H:$L,5,FALSE),VLOOKUP($M20,TT_Tabelle_Riferimento!$H$31:$I$50,2,FALSE))","v":5},{"$f":"+IFERROR(VLOOKUP(JV$6&\"-\"&$M20&\"_old\",Ammortamento_Finanziario!$H:$L,5,FALSE),VLOOKUP($M20,TT_Tabelle_Riferimento!$H$31:$I$50,2,FALSE))","v":5},{"$f":"+IFERROR(VLOOKUP(JW$6&\"-\"&$M20&\"_old\",Ammortamento_Finanziario!$H:$L,5,FALSE),VLOOKUP($M20,TT_Tabelle_Riferimento!$H$31:$I$50,2,FALSE))","v":5},{"$f":"+IFERROR(VLOOKUP(JX$6&\"-\"&$M20&\"_old\",Ammortamento_Finanziario!$H:$L,5,FALSE),VLOOKUP($M20,TT_Tabelle_Riferimento!$H$31:$I$50,2,FALSE))","v":5},{"$f":"+IFERROR(VLOOKUP(JY$6&\"-\"&$M20&\"_old\",Ammortamento_Finanziario!$H:$L,5,FALSE),VLOOKUP($M20,TT_Tabelle_Riferimento!$H$31:$I$50,2,FALSE))","v":5},{"$f":"+IFERROR(VLOOKUP(JZ$6&\"-\"&$M20&\"_old\",Ammortamento_Finanziario!$H:$L,5,FALSE),VLOOKUP($M20,TT_Tabelle_Riferimento!$H$31:$I$50,2,FALSE))","v":5},{"$f":"+IFERROR(VLOOKUP(KA$6&\"-\"&$M20&\"_old\",Ammortamento_Finanziario!$H:$L,5,FALSE),VLOOKUP($M20,TT_Tabelle_Riferimento!$H$31:$I$50,2,FALSE))","v":5},{"$f":"+IFERROR(VLOOKUP(KB$6&\"-\"&$M20&\"_old\",Ammortamento_Finanziario!$H:$L,5,FALSE),VLOOKUP($M20,TT_Tabelle_Riferimento!$H$31:$I$50,2,FALSE))","v":5},{"$f":"+IFERROR(VLOOKUP(KC$6&\"-\"&$M20&\"_old\",Ammortamento_Finanziario!$H:$L,5,FALSE),VLOOKUP($M20,TT_Tabelle_Riferimento!$H$31:$I$50,2,FALSE))","v":5},{"$f":"+IFERROR(VLOOKUP(KD$6&\"-\"&$M20&\"_old\",Ammortamento_Finanziario!$H:$L,5,FALSE),VLOOKUP($M20,TT_Tabelle_Riferimento!$H$31:$I$50,2,FALSE))","v":5},{"$f":"+IFERROR(VLOOKUP(KE$6&\"-\"&$M20&\"_old\",Ammortamento_Finanziario!$H:$L,5,FALSE),VLOOKUP($M20,TT_Tabelle_Riferimento!$H$31:$I$50,2,FALSE))","v":5},{"$f":"+IFERROR(VLOOKUP(KF$6&\"-\"&$M20&\"_old\",Ammortamento_Finanziario!$H:$L,5,FALSE),VLOOKUP($M20,TT_Tabelle_Riferimento!$H$31:$I$50,2,FALSE))","v":5},{"$f":"+IFERROR(VLOOKUP(KG$6&\"-\"&$M20&\"_old\",Ammortamento_Finanziario!$H:$L,5,FALSE),VLOOKUP($M20,TT_Tabelle_Riferimento!$H$31:$I$50,2,FALSE))","v":5},{"$f":"+IFERROR(VLOOKUP(KH$6&\"-\"&$M20&\"_old\",Ammortamento_Finanziario!$H:$L,5,FALSE),VLOOKUP($M20,TT_Tabelle_Riferimento!$H$31:$I$50,2,FALSE))","v":5},{"$f":"+IFERROR(VLOOKUP(KI$6&\"-\"&$M20&\"_old\",Ammortamento_Finanziario!$H:$L,5,FALSE),VLOOKUP($M20,TT_Tabelle_Riferimento!$H$31:$I$50,2,FALSE))","v":5},{"$f":"+IFERROR(VLOOKUP(KJ$6&\"-\"&$M20&\"_old\",Ammortamento_Finanziario!$H:$L,5,FALSE),VLOOKUP($M20,TT_Tabelle_Riferimento!$H$31:$I$50,2,FALSE))","v":5},{"$f":"+IFERROR(VLOOKUP(KK$6&\"-\"&$M20&\"_old\",Ammortamento_Finanziario!$H:$L,5,FALSE),VLOOKUP($M20,TT_Tabelle_Riferimento!$H$31:$I$50,2,FALSE))","v":5},{"$f":"+IFERROR(VLOOKUP(KL$6&\"-\"&$M20&\"_old\",Ammortamento_Finanziario!$H:$L,5,FALSE),VLOOKUP($M20,TT_Tabelle_Riferimento!$H$31:$I$50,2,FALSE))","v":5},{"$f":"+IFERROR(VLOOKUP(KM$6&\"-\"&$M20&\"_old\",Ammortamento_Finanziario!$H:$L,5,FALSE),VLOOKUP($M20,TT_Tabelle_Riferimento!$H$31:$I$50,2,FALSE))","v":5},{"$f":"+IFERROR(VLOOKUP(KN$6&\"-\"&$M20&\"_old\",Ammortamento_Finanziario!$H:$L,5,FALSE),VLOOKUP($M20,TT_Tabelle_Riferimento!$H$31:$I$50,2,FALSE))","v":5},{"$f":"+IFERROR(VLOOKUP(KO$6&\"-\"&$M20&\"_old\",Ammortamento_Finanziario!$H:$L,5,FALSE),VLOOKUP($M20,TT_Tabelle_Riferimento!$H$31:$I$50,2,FALSE))","v":5},{"$f":"+IFERROR(VLOOKUP(KP$6&\"-\"&$M20&\"_old\",Ammortamento_Finanziario!$H:$L,5,FALSE),VLOOKUP($M20,TT_Tabelle_Riferimento!$H$31:$I$50,2,FALSE))","v":5},{"$f":"+IFERROR(VLOOKUP(KQ$6&\"-\"&$M20&\"_old\",Ammortamento_Finanziario!$H:$L,5,FALSE),VLOOKUP($M20,TT_Tabelle_Riferimento!$H$31:$I$50,2,FALSE))","v":5},{"$f":"+IFERROR(VLOOKUP(KR$6&\"-\"&$M20&\"_old\",Ammortamento_Finanziario!$H:$L,5,FALSE),VLOOKUP($M20,TT_Tabelle_Riferimento!$H$31:$I$50,2,FALSE))","v":5},{"$f":"+IFERROR(VLOOKUP(KS$6&\"-\"&$M20&\"_old\",Ammortamento_Finanziario!$H:$L,5,FALSE),VLOOKUP($M20,TT_Tabelle_Riferimento!$H$31:$I$50,2,FALSE))","v":5},{"$f":"+IFERROR(VLOOKUP(KT$6&\"-\"&$M20&\"_old\",Ammortamento_Finanziario!$H:$L,5,FALSE),VLOOKUP($M20,TT_Tabelle_Riferimento!$H$31:$I$50,2,FALSE))","v":5},{"$f":"+IFERROR(VLOOKUP(KU$6&\"-\"&$M20&\"_old\",Ammortamento_Finanziario!$H:$L,5,FALSE),VLOOKUP($M20,TT_Tabelle_Riferimento!$H$31:$I$50,2,FALSE))","v":5},{"$f":"+IFERROR(VLOOKUP(KV$6&\"-\"&$M20&\"_old\",Ammortamento_Finanziario!$H:$L,5,FALSE),VLOOKUP($M20,TT_Tabelle_Riferimento!$H$31:$I$50,2,FALSE))","v":5},{"$f":"+IFERROR(VLOOKUP(KW$6&\"-\"&$M20&\"_old\",Ammortamento_Finanziario!$H:$L,5,FALSE),VLOOKUP($M20,TT_Tabelle_Riferimento!$H$31:$I$50,2,FALSE))","v":5},{"$f":"+IFERROR(VLOOKUP(KX$6&\"-\"&$M20&\"_old\",Ammortamento_Finanziario!$H:$L,5,FALSE),VLOOKUP($M20,TT_Tabelle_Riferimento!$H$31:$I$50,2,FALSE))","v":5},{"$f":"+IFERROR(VLOOKUP(KY$6&\"-\"&$M20&\"_old\",Ammortamento_Finanziario!$H:$L,5,FALSE),VLOOKUP($M20,TT_Tabelle_Riferimento!$H$31:$I$50,2,FALSE))","v":5},{"$f":"+IFERROR(VLOOKUP(KZ$6&\"-\"&$M20&\"_old\",Ammortamento_Finanziario!$H:$L,5,FALSE),VLOOKUP($M20,TT_Tabelle_Riferimento!$H$31:$I$50,2,FALSE))","v":5},{"$f":"+IFERROR(VLOOKUP(LA$6&\"-\"&$M20&\"_old\",Ammortamento_Finanziario!$H:$L,5,FALSE),VLOOKUP($M20,TT_Tabelle_Riferimento!$H$31:$I$50,2,FALSE))","v":5},{"$f":"+IFERROR(VLOOKUP(LB$6&\"-\"&$M20&\"_old\",Ammortamento_Finanziario!$H:$L,5,FALSE),VLOOKUP($M20,TT_Tabelle_Riferimento!$H$31:$I$50,2,FALSE))","v":5},{"$f":"+IFERROR(VLOOKUP(LC$6&\"-\"&$M20&\"_old\",Ammortamento_Finanziario!$H:$L,5,FALSE),VLOOKUP($M20,TT_Tabelle_Riferimento!$H$31:$I$50,2,FALSE))","v":5},{"$f":"+IFERROR(VLOOKUP(LD$6&\"-\"&$M20&\"_old\",Ammortamento_Finanziario!$H:$L,5,FALSE),VLOOKUP($M20,TT_Tabelle_Riferimento!$H$31:$I$50,2,FALSE))","v":5},{"$f":"+IFERROR(VLOOKUP(LE$6&\"-\"&$M20&\"_old\",Ammortamento_Finanziario!$H:$L,5,FALSE),VLOOKUP($M20,TT_Tabelle_Riferimento!$H$31:$I$50,2,FALSE))","v":5},{"$f":"+IFERROR(VLOOKUP(LF$6&\"-\"&$M20&\"_old\",Ammortamento_Finanziario!$H:$L,5,FALSE),VLOOKUP($M20,TT_Tabelle_Riferimento!$H$31:$I$50,2,FALSE))","v":5},{"$f":"+IFERROR(VLOOKUP(LG$6&\"-\"&$M20&\"_old\",Ammortamento_Finanziario!$H:$L,5,FALSE),VLOOKUP($M20,TT_Tabelle_Riferimento!$H$31:$I$50,2,FALSE))","v":5},{"$f":"+IFERROR(VLOOKUP(LH$6&\"-\"&$M20&\"_old\",Ammortamento_Finanziario!$H:$L,5,FALSE),VLOOKUP($M20,TT_Tabelle_Riferimento!$H$31:$I$50,2,FALSE))","v":5},{"$f":"+IFERROR(VLOOKUP(LI$6&\"-\"&$M20&\"_old\",Ammortamento_Finanziario!$H:$L,5,FALSE),VLOOKUP($M20,TT_Tabelle_Riferimento!$H$31:$I$50,2,FALSE))","v":5},{"$f":"+IFERROR(VLOOKUP(LJ$6&\"-\"&$M20&\"_old\",Ammortamento_Finanziario!$H:$L,5,FALSE),VLOOKUP($M20,TT_Tabelle_Riferimento!$H$31:$I$50,2,FALSE))","v":5},{"$f":"+IFERROR(VLOOKUP(LK$6&\"-\"&$M20&\"_old\",Ammortamento_Finanziario!$H:$L,5,FALSE),VLOOKUP($M20,TT_Tabelle_Riferimento!$H$31:$I$50,2,FALSE))","v":5},{"$f":"+IFERROR(VLOOKUP(LL$6&\"-\"&$M20&\"_old\",Ammortamento_Finanziario!$H:$L,5,FALSE),VLOOKUP($M20,TT_Tabelle_Riferimento!$H$31:$I$50,2,FALSE))","v":5},{"$f":"+IFERROR(VLOOKUP(LM$6&\"-\"&$M20&\"_old\",Ammortamento_Finanziario!$H:$L,5,FALSE),VLOOKUP($M20,TT_Tabelle_Riferimento!$H$31:$I$50,2,FALSE))","v":5},{"$f":"+IFERROR(VLOOKUP(LN$6&\"-\"&$M20&\"_old\",Ammortamento_Finanziario!$H:$L,5,FALSE),VLOOKUP($M20,TT_Tabelle_Riferimento!$H$31:$I$50,2,FALSE))","v":5},{"$f":"+IFERROR(VLOOKUP(LO$6&\"-\"&$M20&\"_old\",Ammortamento_Finanziario!$H:$L,5,FALSE),VLOOKUP($M20,TT_Tabelle_Riferimento!$H$31:$I$50,2,FALSE))","v":5},{"$f":"+IFERROR(VLOOKUP(LP$6&\"-\"&$M20&\"_old\",Ammortamento_Finanziario!$H:$L,5,FALSE),VLOOKUP($M20,TT_Tabelle_Riferimento!$H$31:$I$50,2,FALSE))","v":5},{"$f":"+IFERROR(VLOOKUP(LQ$6&\"-\"&$M20&\"_old\",Ammortamento_Finanziario!$H:$L,5,FALSE),VLOOKUP($M20,TT_Tabelle_Riferimento!$H$31:$I$50,2,FALSE))","v":5},{"$f":"+IFERROR(VLOOKUP(LR$6&\"-\"&$M20&\"_old\",Ammortamento_Finanziario!$H:$L,5,FALSE),VLOOKUP($M20,TT_Tabelle_Riferimento!$H$31:$I$50,2,FALSE))","v":5},{"$f":"+IFERROR(VLOOKUP(LS$6&\"-\"&$M20&\"_old\",Ammortamento_Finanziario!$H:$L,5,FALSE),VLOOKUP($M20,TT_Tabelle_Riferimento!$H$31:$I$50,2,FALSE))","v":5},{"$f":"+IFERROR(VLOOKUP(LT$6&\"-\"&$M20&\"_old\",Ammortamento_Finanziario!$H:$L,5,FALSE),VLOOKUP($M20,TT_Tabelle_Riferimento!$H$31:$I$50,2,FALSE))","v":5},{"$f":"+IFERROR(VLOOKUP(LU$6&\"-\"&$M20&\"_old\",Ammortamento_Finanziario!$H:$L,5,FALSE),VLOOKUP($M20,TT_Tabelle_Riferimento!$H$31:$I$50,2,FALSE))","v":5},{"$f":"+IFERROR(VLOOKUP(LV$6&\"-\"&$M20&\"_old\",Ammortamento_Finanziario!$H:$L,5,FALSE),VLOOKUP($M20,TT_Tabelle_Riferimento!$H$31:$I$50,2,FALSE))","v":5},{"$f":"+IFERROR(VLOOKUP(LW$6&\"-\"&$M20&\"_old\",Ammortamento_Finanziario!$H:$L,5,FALSE),VLOOKUP($M20,TT_Tabelle_Riferimento!$H$31:$I$50,2,FALSE))","v":5},{"$f":"+IFERROR(VLOOKUP(LX$6&\"-\"&$M20&\"_old\",Ammortamento_Finanziario!$H:$L,5,FALSE),VLOOKUP($M20,TT_Tabelle_Riferimento!$H$31:$I$50,2,FALSE))","v":5},{"$f":"+IFERROR(VLOOKUP(LY$6&\"-\"&$M20&\"_old\",Ammortamento_Finanziario!$H:$L,5,FALSE),VLOOKUP($M20,TT_Tabelle_Riferimento!$H$31:$I$50,2,FALSE))","v":5},{"$f":"+IFERROR(VLOOKUP(LZ$6&\"-\"&$M20&\"_old\",Ammortamento_Finanziario!$H:$L,5,FALSE),VLOOKUP($M20,TT_Tabelle_Riferimento!$H$31:$I$50,2,FALSE))","v":5},{"$f":"+IFERROR(VLOOKUP(MA$6&\"-\"&$M20&\"_old\",Ammortamento_Finanziario!$H:$L,5,FALSE),VLOOKUP($M20,TT_Tabelle_Riferimento!$H$31:$I$50,2,FALSE))","v":5},{"$f":"+IFERROR(VLOOKUP(MB$6&\"-\"&$M20&\"_old\",Ammortamento_Finanziario!$H:$L,5,FALSE),VLOOKUP($M20,TT_Tabelle_Riferimento!$H$31:$I$50,2,FALSE))","v":5},{"$f":"+IFERROR(VLOOKUP(MC$6&\"-\"&$M20&\"_old\",Ammortamento_Finanziario!$H:$L,5,FALSE),VLOOKUP($M20,TT_Tabelle_Riferimento!$H$31:$I$50,2,FALSE))","v":5},{"$f":"+IFERROR(VLOOKUP(MD$6&\"-\"&$M20&\"_old\",Ammortamento_Finanziario!$H:$L,5,FALSE),VLOOKUP($M20,TT_Tabelle_Riferimento!$H$31:$I$50,2,FALSE))","v":5},{"$f":"+IFERROR(VLOOKUP(ME$6&\"-\"&$M20&\"_old\",Ammortamento_Finanziario!$H:$L,5,FALSE),VLOOKUP($M20,TT_Tabelle_Riferimento!$H$31:$I$50,2,FALSE))","v":5},{"$f":"+IFERROR(VLOOKUP(MF$6&\"-\"&$M20&\"_old\",Ammortamento_Finanziario!$H:$L,5,FALSE),VLOOKUP($M20,TT_Tabelle_Riferimento!$H$31:$I$50,2,FALSE))","v":5},{"$f":"+IFERROR(VLOOKUP(MG$6&\"-\"&$M20&\"_old\",Ammortamento_Finanziario!$H:$L,5,FALSE),VLOOKUP($M20,TT_Tabelle_Riferimento!$H$31:$I$50,2,FALSE))","v":5},{"$f":"+IFERROR(VLOOKUP(MH$6&\"-\"&$M20&\"_old\",Ammortamento_Finanziario!$H:$L,5,FALSE),VLOOKUP($M20,TT_Tabelle_Riferimento!$H$31:$I$50,2,FALSE))","v":5},{"$f":"+IFERROR(VLOOKUP(MI$6&\"-\"&$M20&\"_old\",Ammortamento_Finanziario!$H:$L,5,FALSE),VLOOKUP($M20,TT_Tabelle_Riferimento!$H$31:$I$50,2,FALSE))","v":5},{"$f":"+IFERROR(VLOOKUP(MJ$6&\"-\"&$M20&\"_old\",Ammortamento_Finanziario!$H:$L,5,FALSE),VLOOKUP($M20,TT_Tabelle_Riferimento!$H$31:$I$50,2,FALSE))","v":5},{"$f":"+IFERROR(VLOOKUP(MK$6&\"-\"&$M20&\"_old\",Ammortamento_Finanziario!$H:$L,5,FALSE),VLOOKUP($M20,TT_Tabelle_Riferimento!$H$31:$I$50,2,FALSE))","v":5},{"$f":"+IFERROR(VLOOKUP(ML$6&\"-\"&$M20&\"_old\",Ammortamento_Finanziario!$H:$L,5,FALSE),VLOOKUP($M20,TT_Tabelle_Riferimento!$H$31:$I$50,2,FALSE))","v":5},{"$f":"+IFERROR(VLOOKUP(MM$6&\"-\"&$M20&\"_old\",Ammortamento_Finanziario!$H:$L,5,FALSE),VLOOKUP($M20,TT_Tabelle_Riferimento!$H$31:$I$50,2,FALSE))","v":5},{"$f":"+IFERROR(VLOOKUP(MN$6&\"-\"&$M20&\"_old\",Ammortamento_Finanziario!$H:$L,5,FALSE),VLOOKUP($M20,TT_Tabelle_Riferimento!$H$31:$I$50,2,FALSE))","v":5},{"$f":"+IFERROR(VLOOKUP(MO$6&\"-\"&$M20&\"_old\",Ammortamento_Finanziario!$H:$L,5,FALSE),VLOOKUP($M20,TT_Tabelle_Riferimento!$H$31:$I$50,2,FALSE))","v":5},{"$f":"+IFERROR(VLOOKUP(MP$6&\"-\"&$M20&\"_old\",Ammortamento_Finanziario!$H:$L,5,FALSE),VLOOKUP($M20,TT_Tabelle_Riferimento!$H$31:$I$50,2,FALSE))","v":5},{"$f":"+IFERROR(VLOOKUP(MQ$6&\"-\"&$M20&\"_old\",Ammortamento_Finanziario!$H:$L,5,FALSE),VLOOKUP($M20,TT_Tabelle_Riferimento!$H$31:$I$50,2,FALSE))","v":5},{"$f":"+IFERROR(VLOOKUP(MR$6&\"-\"&$M20&\"_old\",Ammortamento_Finanziario!$H:$L,5,FALSE),VLOOKUP($M20,TT_Tabelle_Riferimento!$H$31:$I$50,2,FALSE))","v":5},{"$f":"+IFERROR(VLOOKUP(MS$6&\"-\"&$M20&\"_old\",Ammortamento_Finanziario!$H:$L,5,FALSE),VLOOKUP($M20,TT_Tabelle_Riferimento!$H$31:$I$50,2,FALSE))","v":5},{"$f":"+IFERROR(VLOOKUP(MT$6&\"-\"&$M20&\"_old\",Ammortamento_Finanziario!$H:$L,5,FALSE),VLOOKUP($M20,TT_Tabelle_Riferimento!$H$31:$I$50,2,FALSE))","v":5},{"$f":"+IFERROR(VLOOKUP(MU$6&\"-\"&$M20&\"_old\",Ammortamento_Finanziario!$H:$L,5,FALSE),VLOOKUP($M20,TT_Tabelle_Riferimento!$H$31:$I$50,2,FALSE))","v":5},{"$f":"+IFERROR(VLOOKUP(MV$6&\"-\"&$M20&\"_old\",Ammortamento_Finanziario!$H:$L,5,FALSE),VLOOKUP($M20,TT_Tabelle_Riferimento!$H$31:$I$50,2,FALSE))","v":5},{"$f":"+IFERROR(VLOOKUP(MW$6&\"-\"&$M20&\"_old\",Ammortamento_Finanziario!$H:$L,5,FALSE),VLOOKUP($M20,TT_Tabelle_Riferimento!$H$31:$I$50,2,FALSE))","v":5},{"$f":"+IFERROR(VLOOKUP(MX$6&\"-\"&$M20&\"_old\",Ammortamento_Finanziario!$H:$L,5,FALSE),VLOOKUP($M20,TT_Tabelle_Riferimento!$H$31:$I$50,2,FALSE))","v":5},{"$f":"+IFERROR(VLOOKUP(MY$6&\"-\"&$M20&\"_old\",Ammortamento_Finanziario!$H:$L,5,FALSE),VLOOKUP($M20,TT_Tabelle_Riferimento!$H$31:$I$50,2,FALSE))","v":5},{"$f":"+IFERROR(VLOOKUP(MZ$6&\"-\"&$M20&\"_old\",Ammortamento_Finanziario!$H:$L,5,FALSE),VLOOKUP($M20,TT_Tabelle_Riferimento!$H$31:$I$50,2,FALSE))","v":5},{"$f":"+IFERROR(VLOOKUP(NA$6&\"-\"&$M20&\"_old\",Ammortamento_Finanziario!$H:$L,5,FALSE),VLOOKUP($M20,TT_Tabelle_Riferimento!$H$31:$I$50,2,FALSE))","v":5},{"$f":"+IFERROR(VLOOKUP(NB$6&\"-\"&$M20&\"_old\",Ammortamento_Finanziario!$H:$L,5,FALSE),VLOOKUP($M20,TT_Tabelle_Riferimento!$H$31:$I$50,2,FALSE))","v":5},{"$f":"+IFERROR(VLOOKUP(NC$6&\"-\"&$M20&\"_old\",Ammortamento_Finanziario!$H:$L,5,FALSE),VLOOKUP($M20,TT_Tabelle_Riferimento!$H$31:$I$50,2,FALSE))","v":5},{"$f":"+IFERROR(VLOOKUP(ND$6&\"-\"&$M20&\"_old\",Ammortamento_Finanziario!$H:$L,5,FALSE),VLOOKUP($M20,TT_Tabelle_Riferimento!$H$31:$I$50,2,FALSE))","v":5},{"$f":"+IFERROR(VLOOKUP(NE$6&\"-\"&$M20&\"_old\",Ammortamento_Finanziario!$H:$L,5,FALSE),VLOOKUP($M20,TT_Tabelle_Riferimento!$H$31:$I$50,2,FALSE))","v":5},{"$f":"+IFERROR(VLOOKUP(NF$6&\"-\"&$M20&\"_old\",Ammortamento_Finanziario!$H:$L,5,FALSE),VLOOKUP($M20,TT_Tabelle_Riferimento!$H$31:$I$50,2,FALSE))","v":5},{"$f":"+IFERROR(VLOOKUP(NG$6&\"-\"&$M20&\"_old\",Ammortamento_Finanziario!$H:$L,5,FALSE),VLOOKUP($M20,TT_Tabelle_Riferimento!$H$31:$I$50,2,FALSE))","v":5},{"$f":"+IFERROR(VLOOKUP(NH$6&\"-\"&$M20&\"_old\",Ammortamento_Finanziario!$H:$L,5,FALSE),VLOOKUP($M20,TT_Tabelle_Riferimento!$H$31:$I$50,2,FALSE))","v":5},{"$f":"+IFERROR(VLOOKUP(NI$6&\"-\"&$M20&\"_old\",Ammortamento_Finanziario!$H:$L,5,FALSE),VLOOKUP($M20,TT_Tabelle_Riferimento!$H$31:$I$50,2,FALSE))","v":5},{"$f":"+IFERROR(VLOOKUP(NJ$6&\"-\"&$M20&\"_old\",Ammortamento_Finanziario!$H:$L,5,FALSE),VLOOKUP($M20,TT_Tabelle_Riferimento!$H$31:$I$50,2,FALSE))","v":5},{"$f":"+IFERROR(VLOOKUP(NK$6&\"-\"&$M20&\"_old\",Ammortamento_Finanziario!$H:$L,5,FALSE),VLOOKUP($M20,TT_Tabelle_Riferimento!$H$31:$I$50,2,FALSE))","v":5},{"$f":"+IFERROR(VLOOKUP(NL$6&\"-\"&$M20&\"_old\",Ammortamento_Finanziario!$H:$L,5,FALSE),VLOOKUP($M20,TT_Tabelle_Riferimento!$H$31:$I$50,2,FALSE))","v":5},{"$f":"+IFERROR(VLOOKUP(NM$6&\"-\"&$M20&\"_old\",Ammortamento_Finanziario!$H:$L,5,FALSE),VLOOKUP($M20,TT_Tabelle_Riferimento!$H$31:$I$50,2,FALSE))","v":5},{"$f":"+IFERROR(VLOOKUP(NN$6&\"-\"&$M20&\"_old\",Ammortamento_Finanziario!$H:$L,5,FALSE),VLOOKUP($M20,TT_Tabelle_Riferimento!$H$31:$I$50,2,FALSE))","v":5},{"$f":"+IFERROR(VLOOKUP(NO$6&\"-\"&$M20&\"_old\",Ammortamento_Finanziario!$H:$L,5,FALSE),VLOOKUP($M20,TT_Tabelle_Riferimento!$H$31:$I$50,2,FALSE))","v":5},{"$f":"+IFERROR(VLOOKUP(NP$6&\"-\"&$M20&\"_old\",Ammortamento_Finanziario!$H:$L,5,FALSE),VLOOKUP($M20,TT_Tabelle_Riferimento!$H$31:$I$50,2,FALSE))","v":5},{"$f":"+IFERROR(VLOOKUP(NQ$6&\"-\"&$M20&\"_old\",Ammortamento_Finanziario!$H:$L,5,FALSE),VLOOKUP($M20,TT_Tabelle_Riferimento!$H$31:$I$50,2,FALSE))","v":5},{"$f":"+IFERROR(VLOOKUP(NR$6&\"-\"&$M20&\"_old\",Ammortamento_Finanziario!$H:$L,5,FALSE),VLOOKUP($M20,TT_Tabelle_Riferimento!$H$31:$I$50,2,FALSE))","v":5},{"$f":"+IFERROR(VLOOKUP(NS$6&\"-\"&$M20&\"_old\",Ammortamento_Finanziario!$H:$L,5,FALSE),VLOOKUP($M20,TT_Tabelle_Riferimento!$H$31:$I$50,2,FALSE))","v":5},{"$f":"+IFERROR(VLOOKUP(NT$6&\"-\"&$M20&\"_old\",Ammortamento_Finanziario!$H:$L,5,FALSE),VLOOKUP($M20,TT_Tabelle_Riferimento!$H$31:$I$50,2,FALSE))","v":5},{"$f":"+IFERROR(VLOOKUP(NU$6&\"-\"&$M20&\"_old\",Ammortamento_Finanziario!$H:$L,5,FALSE),VLOOKUP($M20,TT_Tabelle_Riferimento!$H$31:$I$50,2,FALSE))","v":5},{"$f":"+IFERROR(VLOOKUP(NV$6&\"-\"&$M20&\"_old\",Ammortamento_Finanziario!$H:$L,5,FALSE),VLOOKUP($M20,TT_Tabelle_Riferimento!$H$31:$I$50,2,FALSE))","v":5},{"$f":"+IFERROR(VLOOKUP(NW$6&\"-\"&$M20&\"_old\",Ammortamento_Finanziario!$H:$L,5,FALSE),VLOOKUP($M20,TT_Tabelle_Riferimento!$H$31:$I$50,2,FALSE))","v":5},{"$f":"+IFERROR(VLOOKUP(NX$6&\"-\"&$M20&\"_old\",Ammortamento_Finanziario!$H:$L,5,FALSE),VLOOKUP($M20,TT_Tabelle_Riferimento!$H$31:$I$50,2,FALSE))","v":5},{"$f":"+IFERROR(VLOOKUP(NY$6&\"-\"&$M20&\"_old\",Ammortamento_Finanziario!$H:$L,5,FALSE),VLOOKUP($M20,TT_Tabelle_Riferimento!$H$31:$I$50,2,FALSE))","v":5},{"$f":"+IFERROR(VLOOKUP(NZ$6&\"-\"&$M20&\"_old\",Ammortamento_Finanziario!$H:$L,5,FALSE),VLOOKUP($M20,TT_Tabelle_Riferimento!$H$31:$I$50,2,FALSE))","v":5},{"$f":"+IFERROR(VLOOKUP(OA$6&\"-\"&$M20&\"_old\",Ammortamento_Finanziario!$H:$L,5,FALSE),VLOOKUP($M20,TT_Tabelle_Riferimento!$H$31:$I$50,2,FALSE))","v":5},{"$f":"+IFERROR(VLOOKUP(OB$6&\"-\"&$M20&\"_old\",Ammortamento_Finanziario!$H:$L,5,FALSE),VLOOKUP($M20,TT_Tabelle_Riferimento!$H$31:$I$50,2,FALSE))","v":5},{"$f":"+IFERROR(VLOOKUP(OC$6&\"-\"&$M20&\"_old\",Ammortamento_Finanziario!$H:$L,5,FALSE),VLOOKUP($M20,TT_Tabelle_Riferimento!$H$31:$I$50,2,FALSE))","v":5},{"$f":"+IFERROR(VLOOKUP(OD$6&\"-\"&$M20&\"_old\",Ammortamento_Finanziario!$H:$L,5,FALSE),VLOOKUP($M20,TT_Tabelle_Riferimento!$H$31:$I$50,2,FALSE))","v":5},{"$f":"+IFERROR(VLOOKUP(OE$6&\"-\"&$M20&\"_old\",Ammortamento_Finanziario!$H:$L,5,FALSE),VLOOKUP($M20,TT_Tabelle_Riferimento!$H$31:$I$50,2,FALSE))","v":5},{"$f":"+IFERROR(VLOOKUP(OF$6&\"-\"&$M20&\"_old\",Ammortamento_Finanziario!$H:$L,5,FALSE),VLOOKUP($M20,TT_Tabelle_Riferimento!$H$31:$I$50,2,FALSE))","v":5},{"$f":"+IFERROR(VLOOKUP(OG$6&\"-\"&$M20&\"_old\",Ammortamento_Finanziario!$H:$L,5,FALSE),VLOOKUP($M20,TT_Tabelle_Riferimento!$H$31:$I$50,2,FALSE))","v":5},{"$f":"+IFERROR(VLOOKUP(OH$6&\"-\"&$M20&\"_old\",Ammortamento_Finanziario!$H:$L,5,FALSE),VLOOKUP($M20,TT_Tabelle_Riferimento!$H$31:$I$50,2,FALSE))","v":5},{"$f":"+IFERROR(VLOOKUP(OI$6&\"-\"&$M20&\"_old\",Ammortamento_Finanziario!$H:$L,5,FALSE),VLOOKUP($M20,TT_Tabelle_Riferimento!$H$31:$I$50,2,FALSE))","v":5},{"$f":"+IFERROR(VLOOKUP(OJ$6&\"-\"&$M20&\"_old\",Ammortamento_Finanziario!$H:$L,5,FALSE),VLOOKUP($M20,TT_Tabelle_Riferimento!$H$31:$I$50,2,FALSE))","v":5},{"$f":"+IFERROR(VLOOKUP(OK$6&\"-\"&$M20&\"_old\",Ammortamento_Finanziario!$H:$L,5,FALSE),VLOOKUP($M20,TT_Tabelle_Riferimento!$H$31:$I$50,2,FALSE))","v":5},{"$f":"+IFERROR(VLOOKUP(OL$6&\"-\"&$M20&\"_old\",Ammortamento_Finanziario!$H:$L,5,FALSE),VLOOKUP($M20,TT_Tabelle_Riferimento!$H$31:$I$50,2,FALSE))","v":5},{"$f":"+IFERROR(VLOOKUP(OM$6&\"-\"&$M20&\"_old\",Ammortamento_Finanziario!$H:$L,5,FALSE),VLOOKUP($M20,TT_Tabelle_Riferimento!$H$31:$I$50,2,FALSE))","v":5},{"$f":"+IFERROR(VLOOKUP(ON$6&\"-\"&$M20&\"_old\",Ammortamento_Finanziario!$H:$L,5,FALSE),VLOOKUP($M20,TT_Tabelle_Riferimento!$H$31:$I$50,2,FALSE))","v":5},{"$f":"+IFERROR(VLOOKUP(OO$6&\"-\"&$M20&\"_old\",Ammortamento_Finanziario!$H:$L,5,FALSE),VLOOKUP($M20,TT_Tabelle_Riferimento!$H$31:$I$50,2,FALSE))","v":5},{"$f":"+IFERROR(VLOOKUP(OP$6&\"-\"&$M20&\"_old\",Ammortamento_Finanziario!$H:$L,5,FALSE),VLOOKUP($M20,TT_Tabelle_Riferimento!$H$31:$I$50,2,FALSE))","v":5},{"$f":"+IFERROR(VLOOKUP(OQ$6&\"-\"&$M20&\"_old\",Ammortamento_Finanziario!$H:$L,5,FALSE),VLOOKUP($M20,TT_Tabelle_Riferimento!$H$31:$I$50,2,FALSE))","v":5},{"$f":"+IFERROR(VLOOKUP(OR$6&\"-\"&$M20&\"_old\",Ammortamento_Finanziario!$H:$L,5,FALSE),VLOOKUP($M20,TT_Tabelle_Riferimento!$H$31:$I$50,2,FALSE))","v":5},{"$f":"+IFERROR(VLOOKUP(OS$6&\"-\"&$M20&\"_old\",Ammortamento_Finanziario!$H:$L,5,FALSE),VLOOKUP($M20,TT_Tabelle_Riferimento!$H$31:$I$50,2,FALSE))","v":5},{"$f":"+IFERROR(VLOOKUP(OT$6&\"-\"&$M20&\"_old\",Ammortamento_Finanziario!$H:$L,5,FALSE),VLOOKUP($M20,TT_Tabelle_Riferimento!$H$31:$I$50,2,FALSE))","v":5},{"$f":"+IFERROR(VLOOKUP(OU$6&\"-\"&$M20&\"_old\",Ammortamento_Finanziario!$H:$L,5,FALSE),VLOOKUP($M20,TT_Tabelle_Riferimento!$H$31:$I$50,2,FALSE))","v":5},{"$f":"+IFERROR(VLOOKUP(OV$6&\"-\"&$M20&\"_old\",Ammortamento_Finanziario!$H:$L,5,FALSE),VLOOKUP($M20,TT_Tabelle_Riferimento!$H$31:$I$50,2,FALSE))","v":5},{"$f":"+IFERROR(VLOOKUP(OW$6&\"-\"&$M20&\"_old\",Ammortamento_Finanziario!$H:$L,5,FALSE),VLOOKUP($M20,TT_Tabelle_Riferimento!$H$31:$I$50,2,FALSE))","v":5},{"$f":"+IFERROR(VLOOKUP(OX$6&\"-\"&$M20&\"_old\",Ammortamento_Finanziario!$H:$L,5,FALSE),VLOOKUP($M20,TT_Tabelle_Riferimento!$H$31:$I$50,2,FALSE))","v":5},{"$f":"+IFERROR(VLOOKUP(OY$6&\"-\"&$M20&\"_old\",Ammortamento_Finanziario!$H:$L,5,FALSE),VLOOKUP($M20,TT_Tabelle_Riferimento!$H$31:$I$50,2,FALSE))","v":5},{"$f":"+IFERROR(VLOOKUP(OZ$6&\"-\"&$M20&\"_old\",Ammortamento_Finanziario!$H:$L,5,FALSE),VLOOKUP($M20,TT_Tabelle_Riferimento!$H$31:$I$50,2,FALSE))","v":5},{"$f":"+IFERROR(VLOOKUP(PA$6&\"-\"&$M20&\"_old\",Ammortamento_Finanziario!$H:$L,5,FALSE),VLOOKUP($M20,TT_Tabelle_Riferimento!$H$31:$I$50,2,FALSE))","v":5},{"$f":"+IFERROR(VLOOKUP(PB$6&\"-\"&$M20&\"_old\",Ammortamento_Finanziario!$H:$L,5,FALSE),VLOOKUP($M20,TT_Tabelle_Riferimento!$H$31:$I$50,2,FALSE))","v":5},{"$f":"+IFERROR(VLOOKUP(PC$6&\"-\"&$M20&\"_old\",Ammortamento_Finanziario!$H:$L,5,FALSE),VLOOKUP($M20,TT_Tabelle_Riferimento!$H$31:$I$50,2,FALSE))","v":5},{"$f":"+IFERROR(VLOOKUP(PD$6&\"-\"&$M20&\"_old\",Ammortamento_Finanziario!$H:$L,5,FALSE),VLOOKUP($M20,TT_Tabelle_Riferimento!$H$31:$I$50,2,FALSE))","v":5},{"$f":"+IFERROR(VLOOKUP(PE$6&\"-\"&$M20&\"_old\",Ammortamento_Finanziario!$H:$L,5,FALSE),VLOOKUP($M20,TT_Tabelle_Riferimento!$H$31:$I$50,2,FALSE))","v":5},{"$f":"+IFERROR(VLOOKUP(PF$6&\"-\"&$M20&\"_old\",Ammortamento_Finanziario!$H:$L,5,FALSE),VLOOKUP($M20,TT_Tabelle_Riferimento!$H$31:$I$50,2,FALSE))","v":5},{"$f":"+IFERROR(VLOOKUP(PG$6&\"-\"&$M20&\"_old\",Ammortamento_Finanziario!$H:$L,5,FALSE),VLOOKUP($M20,TT_Tabelle_Riferimento!$H$31:$I$50,2,FALSE))","v":5},{"$f":"+IFERROR(VLOOKUP(PH$6&\"-\"&$M20&\"_old\",Ammortamento_Finanziario!$H:$L,5,FALSE),VLOOKUP($M20,TT_Tabelle_Riferimento!$H$31:$I$50,2,FALSE))","v":5},{"$f":"+IFERROR(VLOOKUP(PI$6&\"-\"&$M20&\"_old\",Ammortamento_Finanziario!$H:$L,5,FALSE),VLOOKUP($M20,TT_Tabelle_Riferimento!$H$31:$I$50,2,FALSE))","v":5},{"$f":"+IFERROR(VLOOKUP(PJ$6&\"-\"&$M20&\"_old\",Ammortamento_Finanziario!$H:$L,5,FALSE),VLOOKUP($M20,TT_Tabelle_Riferimento!$H$31:$I$50,2,FALSE))","v":5},{"$f":"+IFERROR(VLOOKUP(PK$6&\"-\"&$M20&\"_old\",Ammortamento_Finanziario!$H:$L,5,FALSE),VLOOKUP($M20,TT_Tabelle_Riferimento!$H$31:$I$50,2,FALSE))","v":5},{"$f":"+IFERROR(VLOOKUP(PL$6&\"-\"&$M20&\"_old\",Ammortamento_Finanziario!$H:$L,5,FALSE),VLOOKUP($M20,TT_Tabelle_Riferimento!$H$31:$I$50,2,FALSE))","v":5},{"$f":"+IFERROR(VLOOKUP(PM$6&\"-\"&$M20&\"_old\",Ammortamento_Finanziario!$H:$L,5,FALSE),VLOOKUP($M20,TT_Tabelle_Riferimento!$H$31:$I$50,2,FALSE))","v":5},{"$f":"+IFERROR(VLOOKUP(PN$6&\"-\"&$M20&\"_old\",Ammortamento_Finanziario!$H:$L,5,FALSE),VLOOKUP($M20,TT_Tabelle_Riferimento!$H$31:$I$50,2,FALSE))","v":5},{"$f":"+IFERROR(VLOOKUP(PO$6&\"-\"&$M20&\"_old\",Ammortamento_Finanziario!$H:$L,5,FALSE),VLOOKUP($M20,TT_Tabelle_Riferimento!$H$31:$I$50,2,FALSE))","v":5},{"$f":"+IFERROR(VLOOKUP(PP$6&\"-\"&$M20&\"_old\",Ammortamento_Finanziario!$H:$L,5,FALSE),VLOOKUP($M20,TT_Tabelle_Riferimento!$H$31:$I$50,2,FALSE))","v":5},{"$f":"+IFERROR(VLOOKUP(PQ$6&\"-\"&$M20&\"_old\",Ammortamento_Finanziario!$H:$L,5,FALSE),VLOOKUP($M20,TT_Tabelle_Riferimento!$H$31:$I$50,2,FALSE))","v":5},{"$f":"+IFERROR(VLOOKUP(PR$6&\"-\"&$M20&\"_old\",Ammortamento_Finanziario!$H:$L,5,FALSE),VLOOKUP($M20,TT_Tabelle_Riferimento!$H$31:$I$50,2,FALSE))","v":5},{"$f":"+IFERROR(VLOOKUP(PS$6&\"-\"&$M20&\"_old\",Ammortamento_Finanziario!$H:$L,5,FALSE),VLOOKUP($M20,TT_Tabelle_Riferimento!$H$31:$I$50,2,FALSE))","v":5},{"$f":"+IFERROR(VLOOKUP(PT$6&\"-\"&$M20&\"_old\",Ammortamento_Finanziario!$H:$L,5,FALSE),VLOOKUP($M20,TT_Tabelle_Riferimento!$H$31:$I$50,2,FALSE))","v":5},{"$f":"+IFERROR(VLOOKUP(PU$6&\"-\"&$M20&\"_old\",Ammortamento_Finanziario!$H:$L,5,FALSE),VLOOKUP($M20,TT_Tabelle_Riferimento!$H$31:$I$50,2,FALSE))","v":5},{"$f":"+IFERROR(VLOOKUP(PV$6&\"-\"&$M20&\"_old\",Ammortamento_Finanziario!$H:$L,5,FALSE),VLOOKUP($M20,TT_Tabelle_Riferimento!$H$31:$I$50,2,FALSE))","v":5},{"$f":"+IFERROR(VLOOKUP(PW$6&\"-\"&$M20&\"_old\",Ammortamento_Finanziario!$H:$L,5,FALSE),VLOOKUP($M20,TT_Tabelle_Riferimento!$H$31:$I$50,2,FALSE))","v":5},{"$f":"+IFERROR(VLOOKUP(PX$6&\"-\"&$M20&\"_old\",Ammortamento_Finanziario!$H:$L,5,FALSE),VLOOKUP($M20,TT_Tabelle_Riferimento!$H$31:$I$50,2,FALSE))","v":5},{"$f":"+IFERROR(VLOOKUP(PY$6&\"-\"&$M20&\"_old\",Ammortamento_Finanziario!$H:$L,5,FALSE),VLOOKUP($M20,TT_Tabelle_Riferimento!$H$31:$I$50,2,FALSE))","v":5},{"$f":"+IFERROR(VLOOKUP(PZ$6&\"-\"&$M20&\"_old\",Ammortamento_Finanziario!$H:$L,5,FALSE),VLOOKUP($M20,TT_Tabelle_Riferimento!$H$31:$I$50,2,FALSE))","v":5},{"$f":"+IFERROR(VLOOKUP(QA$6&\"-\"&$M20&\"_old\",Ammortamento_Finanziario!$H:$L,5,FALSE),VLOOKUP($M20,TT_Tabelle_Riferimento!$H$31:$I$50,2,FALSE))","v":5},{"$f":"+IFERROR(VLOOKUP(QB$6&\"-\"&$M20&\"_old\",Ammortamento_Finanziario!$H:$L,5,FALSE),VLOOKUP($M20,TT_Tabelle_Riferimento!$H$31:$I$50,2,FALSE))","v":5},{"$f":"+IFERROR(VLOOKUP(QC$6&\"-\"&$M20&\"_old\",Ammortamento_Finanziario!$H:$L,5,FALSE),VLOOKUP($M20,TT_Tabelle_Riferimento!$H$31:$I$50,2,FALSE))","v":5},{"$f":"+IFERROR(VLOOKUP(QD$6&\"-\"&$M20&\"_old\",Ammortamento_Finanziario!$H:$L,5,FALSE),VLOOKUP($M20,TT_Tabelle_Riferimento!$H$31:$I$50,2,FALSE))","v":5},{"$f":"+IFERROR(VLOOKUP(QE$6&\"-\"&$M20&\"_old\",Ammortamento_Finanziario!$H:$L,5,FALSE),VLOOKUP($M20,TT_Tabelle_Riferimento!$H$31:$I$50,2,FALSE))","v":5},{"$f":"+IFERROR(VLOOKUP(QF$6&\"-\"&$M20&\"_old\",Ammortamento_Finanziario!$H:$L,5,FALSE),VLOOKUP($M20,TT_Tabelle_Riferimento!$H$31:$I$50,2,FALSE))","v":5},{"$f":"+IFERROR(VLOOKUP(QG$6&\"-\"&$M20&\"_old\",Ammortamento_Finanziario!$H:$L,5,FALSE),VLOOKUP($M20,TT_Tabelle_Riferimento!$H$31:$I$50,2,FALSE))","v":5},{"$f":"+IFERROR(VLOOKUP(QH$6&\"-\"&$M20&\"_old\",Ammortamento_Finanziario!$H:$L,5,FALSE),VLOOKUP($M20,TT_Tabelle_Riferimento!$H$31:$I$50,2,FALSE))","v":5},{"$f":"+IFERROR(VLOOKUP(QI$6&\"-\"&$M20&\"_old\",Ammortamento_Finanziario!$H:$L,5,FALSE),VLOOKUP($M20,TT_Tabelle_Riferimento!$H$31:$I$50,2,FALSE))","v":5},{"$f":"+IFERROR(VLOOKUP(QJ$6&\"-\"&$M20&\"_old\",Ammortamento_Finanziario!$H:$L,5,FALSE),VLOOKUP($M20,TT_Tabelle_Riferimento!$H$31:$I$50,2,FALSE))","v":5},{"$f":"+IFERROR(VLOOKUP(QK$6&\"-\"&$M20&\"_old\",Ammortamento_Finanziario!$H:$L,5,FALSE),VLOOKUP($M20,TT_Tabelle_Riferimento!$H$31:$I$50,2,FALSE))","v":5},{"$f":"+IFERROR(VLOOKUP(QL$6&\"-\"&$M20&\"_old\",Ammortamento_Finanziario!$H:$L,5,FALSE),VLOOKUP($M20,TT_Tabelle_Riferimento!$H$31:$I$50,2,FALSE))","v":5},{"$f":"+IFERROR(VLOOKUP(QM$6&\"-\"&$M20&\"_old\",Ammortamento_Finanziario!$H:$L,5,FALSE),VLOOKUP($M20,TT_Tabelle_Riferimento!$H$31:$I$50,2,FALSE))","v":5},{"$f":"+IFERROR(VLOOKUP(QN$6&\"-\"&$M20&\"_old\",Ammortamento_Finanziario!$H:$L,5,FALSE),VLOOKUP($M20,TT_Tabelle_Riferimento!$H$31:$I$50,2,FALSE))","v":5},{"$f":"+IFERROR(VLOOKUP(QO$6&\"-\"&$M20&\"_old\",Ammortamento_Finanziario!$H:$L,5,FALSE),VLOOKUP($M20,TT_Tabelle_Riferimento!$H$31:$I$50,2,FALSE))","v":5},{"$f":"+IFERROR(VLOOKUP(QP$6&\"-\"&$M20&\"_old\",Ammortamento_Finanziario!$H:$L,5,FALSE),VLOOKUP($M20,TT_Tabelle_Riferimento!$H$31:$I$50,2,FALSE))","v":5},{"$f":"+IFERROR(VLOOKUP(QQ$6&\"-\"&$M20&\"_old\",Ammortamento_Finanziario!$H:$L,5,FALSE),VLOOKUP($M20,TT_Tabelle_Riferimento!$H$31:$I$50,2,FALSE))","v":5},{"$f":"+IFERROR(VLOOKUP(QR$6&\"-\"&$M20&\"_old\",Ammortamento_Finanziario!$H:$L,5,FALSE),VLOOKUP($M20,TT_Tabelle_Riferimento!$H$31:$I$50,2,FALSE))","v":5},{"$f":"+IFERROR(VLOOKUP(QS$6&\"-\"&$M20&\"_old\",Ammortamento_Finanziario!$H:$L,5,FALSE),VLOOKUP($M20,TT_Tabelle_Riferimento!$H$31:$I$50,2,FALSE))","v":5},{"$f":"+IFERROR(VLOOKUP(QT$6&\"-\"&$M20&\"_old\",Ammortamento_Finanziario!$H:$L,5,FALSE),VLOOKUP($M20,TT_Tabelle_Riferimento!$H$31:$I$50,2,FALSE))","v":5},{"$f":"+IFERROR(VLOOKUP(QU$6&\"-\"&$M20&\"_old\",Ammortamento_Finanziario!$H:$L,5,FALSE),VLOOKUP($M20,TT_Tabelle_Riferimento!$H$31:$I$50,2,FALSE))","v":5},{"$f":"+IFERROR(VLOOKUP(QV$6&\"-\"&$M20&\"_old\",Ammortamento_Finanziario!$H:$L,5,FALSE),VLOOKUP($M20,TT_Tabelle_Riferimento!$H$31:$I$50,2,FALSE))","v":5},{"$f":"+IFERROR(VLOOKUP(QW$6&\"-\"&$M20&\"_old\",Ammortamento_Finanziario!$H:$L,5,FALSE),VLOOKUP($M20,TT_Tabelle_Riferimento!$H$31:$I$50,2,FALSE))","v":5},{"$f":"+IFERROR(VLOOKUP(QX$6&\"-\"&$M20&\"_old\",Ammortamento_Finanziario!$H:$L,5,FALSE),VLOOKUP($M20,TT_Tabelle_Riferimento!$H$31:$I$50,2,FALSE))","v":5},{"$f":"+IFERROR(VLOOKUP(QY$6&\"-\"&$M20&\"_old\",Ammortamento_Finanziario!$H:$L,5,FALSE),VLOOKUP($M20,TT_Tabelle_Riferimento!$H$31:$I$50,2,FALSE))","v":5},{"$f":"+IFERROR(VLOOKUP(QZ$6&\"-\"&$M20&\"_old\",Ammortamento_Finanziario!$H:$L,5,FALSE),VLOOKUP($M20,TT_Tabelle_Riferimento!$H$31:$I$50,2,FALSE))","v":5},{"$f":"+IFERROR(VLOOKUP(RA$6&\"-\"&$M20&\"_old\",Ammortamento_Finanziario!$H:$L,5,FALSE),VLOOKUP($M20,TT_Tabelle_Riferimento!$H$31:$I$50,2,FALSE))","v":5},{"$f":"+IFERROR(VLOOKUP(RB$6&\"-\"&$M20&\"_old\",Ammortamento_Finanziario!$H:$L,5,FALSE),VLOOKUP($M20,TT_Tabelle_Riferimento!$H$31:$I$50,2,FALSE))","v":5},{"$f":"+IFERROR(VLOOKUP(RC$6&\"-\"&$M20&\"_old\",Ammortamento_Finanziario!$H:$L,5,FALSE),VLOOKUP($M20,TT_Tabelle_Riferimento!$H$31:$I$50,2,FALSE))","v":5},{"$f":"+IFERROR(VLOOKUP(RD$6&\"-\"&$M20&\"_old\",Ammortamento_Finanziario!$H:$L,5,FALSE),VLOOKUP($M20,TT_Tabelle_Riferimento!$H$31:$I$50,2,FALSE))","v":5},{"$f":"+IFERROR(VLOOKUP(RE$6&\"-\"&$M20&\"_old\",Ammortamento_Finanziario!$H:$L,5,FALSE),VLOOKUP($M20,TT_Tabelle_Riferimento!$H$31:$I$50,2,FALSE))","v":5},{"$f":"+IFERROR(VLOOKUP(RF$6&\"-\"&$M20&\"_old\",Ammortamento_Finanziario!$H:$L,5,FALSE),VLOOKUP($M20,TT_Tabelle_Riferimento!$H$31:$I$50,2,FALSE))","v":5},{"$f":"+IFERROR(VLOOKUP(RG$6&\"-\"&$M20&\"_old\",Ammortamento_Finanziario!$H:$L,5,FALSE),VLOOKUP($M20,TT_Tabelle_Riferimento!$H$31:$I$50,2,FALSE))","v":5},{"$f":"+IFERROR(VLOOKUP(RH$6&\"-\"&$M20&\"_old\",Ammortamento_Finanziario!$H:$L,5,FALSE),VLOOKUP($M20,TT_Tabelle_Riferimento!$H$31:$I$50,2,FALSE))","v":5},{"$f":"+IFERROR(VLOOKUP(RI$6&\"-\"&$M20&\"_old\",Ammortamento_Finanziario!$H:$L,5,FALSE),VLOOKUP($M20,TT_Tabelle_Riferimento!$H$31:$I$50,2,FALSE))","v":5},{"$f":"+IFERROR(VLOOKUP(RJ$6&\"-\"&$M20&\"_old\",Ammortamento_Finanziario!$H:$L,5,FALSE),VLOOKUP($M20,TT_Tabelle_Riferimento!$H$31:$I$50,2,FALSE))","v":5},{"$f":"+IFERROR(VLOOKUP(RK$6&\"-\"&$M20&\"_old\",Ammortamento_Finanziario!$H:$L,5,FALSE),VLOOKUP($M20,TT_Tabelle_Riferimento!$H$31:$I$50,2,FALSE))","v":5},{"$f":"+IFERROR(VLOOKUP(RL$6&\"-\"&$M20&\"_old\",Ammortamento_Finanziario!$H:$L,5,FALSE),VLOOKUP($M20,TT_Tabelle_Riferimento!$H$31:$I$50,2,FALSE))","v":5},{"$f":"+IFERROR(VLOOKUP(RM$6&\"-\"&$M20&\"_old\",Ammortamento_Finanziario!$H:$L,5,FALSE),VLOOKUP($M20,TT_Tabelle_Riferimento!$H$31:$I$50,2,FALSE))","v":5},{"$f":"+IFERROR(VLOOKUP(RN$6&\"-\"&$M20&\"_old\",Ammortamento_Finanziario!$H:$L,5,FALSE),VLOOKUP($M20,TT_Tabelle_Riferimento!$H$31:$I$50,2,FALSE))","v":5},{"$f":"+IFERROR(VLOOKUP(RO$6&\"-\"&$M20&\"_old\",Ammortamento_Finanziario!$H:$L,5,FALSE),VLOOKUP($M20,TT_Tabelle_Riferimento!$H$31:$I$50,2,FALSE))","v":5},{"$f":"+IFERROR(VLOOKUP(RP$6&\"-\"&$M20&\"_old\",Ammortamento_Finanziario!$H:$L,5,FALSE),VLOOKUP($M20,TT_Tabelle_Riferimento!$H$31:$I$50,2,FALSE))","v":5},{"$f":"+IFERROR(VLOOKUP(RQ$6&\"-\"&$M20&\"_old\",Ammortamento_Finanziario!$H:$L,5,FALSE),VLOOKUP($M20,TT_Tabelle_Riferimento!$H$31:$I$50,2,FALSE))","v":5},{"$f":"+IFERROR(VLOOKUP(RR$6&\"-\"&$M20&\"_old\",Ammortamento_Finanziario!$H:$L,5,FALSE),VLOOKUP($M20,TT_Tabelle_Riferimento!$H$31:$I$50,2,FALSE))","v":5},{"$f":"+IFERROR(VLOOKUP(RS$6&\"-\"&$M20&\"_old\",Ammortamento_Finanziario!$H:$L,5,FALSE),VLOOKUP($M20,TT_Tabelle_Riferimento!$H$31:$I$50,2,FALSE))","v":5},{"$f":"+IFERROR(VLOOKUP(RT$6&\"-\"&$M20&\"_old\",Ammortamento_Finanziario!$H:$L,5,FALSE),VLOOKUP($M20,TT_Tabelle_Riferimento!$H$31:$I$50,2,FALSE))","v":5},{"$f":"+IFERROR(VLOOKUP(RU$6&\"-\"&$M20&\"_old\",Ammortamento_Finanziario!$H:$L,5,FALSE),VLOOKUP($M20,TT_Tabelle_Riferimento!$H$31:$I$50,2,FALSE))","v":5},{"$f":"+IFERROR(VLOOKUP(RV$6&\"-\"&$M20&\"_old\",Ammortamento_Finanziario!$H:$L,5,FALSE),VLOOKUP($M20,TT_Tabelle_Riferimento!$H$31:$I$50,2,FALSE))","v":5}]
[null,null,null,"AMM",{"$f":"+SUMIFS(IMN_gestore!T:T,IMN_gestore!$E:$E,\">=\"&2012,IMN_gestore!$E:$E,\"<=\"&2022)","v":0},{"$f":"+SUMIFS(IMN_gestore!AE:AE,IMN_gestore!$E:$E,\">=\"&2012,IMN_gestore!$E:$E,\"<=\"&2023)","v":0},{"$f":"+SUMIFS(IMN_gestore!AP:AP,IMN_gestore!$E:$E,\">=\"&2012,IMN_gestore!$E:$E,\"<=\"&2024)","v":0},{"$f":"+SUMIFS(IMN_gestore!BA:BA,IMN_gestore!$E:$E,\">=\"&2012,IMN_gestore!$E:$E,\"<=\"&2025)","v":0},{"$f":"+SUMIFS(IMN_gestore!$BL:$BL,IMN_gestore!$E:$E,\">=\"&2012,IMN_gestore!$E:$E,\"<=\"&2026)","v":0},{"$f":"+SUMIFS(IMN_gestore!$BW:$BW,IMN_gestore!$E:$E,\">=\"&2012,IMN_gestore!$E:$E,\"<=\"&2027)","v":0},null,null,15,{"$f":"+IFERROR(VLOOKUP(N$6&\"-\"&$M21&\"_old\",Ammortamento_Finanziario!$H:$L,5,FALSE),VLOOKUP($M21,TT_Tabelle_Riferimento!$H$31:$I$50,2,FALSE))","v":5},{"$f":"+IFERROR(VLOOKUP(O$6&\"-\"&$M21&\"_old\",Ammortamento_Finanziario!$H:$L,5,FALSE),VLOOKUP($M21,TT_Tabelle_Riferimento!$H$31:$I$50,2,FALSE))","v":5},{"$f":"+IFERROR(VLOOKUP(P$6&\"-\"&$M21&\"_old\",Ammortamento_Finanziario!$H:$L,5,FALSE),VLOOKUP($M21,TT_Tabelle_Riferimento!$H$31:$I$50,2,FALSE))","v":5},{"$f":"+IFERROR(VLOOKUP(Q$6&\"-\"&$M21&\"_old\",Ammortamento_Finanziario!$H:$L,5,FALSE),VLOOKUP($M21,TT_Tabelle_Riferimento!$H$31:$I$50,2,FALSE))","v":5},{"$f":"+IFERROR(VLOOKUP(R$6&\"-\"&$M21&\"_old\",Ammortamento_Finanziario!$H:$L,5,FALSE),VLOOKUP($M21,TT_Tabelle_Riferimento!$H$31:$I$50,2,FALSE))","v":5},{"$f":"+IFERROR(VLOOKUP(S$6&\"-\"&$M21&\"_old\",Ammortamento_Finanziario!$H:$L,5,FALSE),VLOOKUP($M21,TT_Tabelle_Riferimento!$H$31:$I$50,2,FALSE))","v":5},{"$f":"+IFERROR(VLOOKUP(T$6&\"-\"&$M21&\"_old\",Ammortamento_Finanziario!$H:$L,5,FALSE),VLOOKUP($M21,TT_Tabelle_Riferimento!$H$31:$I$50,2,FALSE))","v":5},{"$f":"+IFERROR(VLOOKUP(U$6&\"-\"&$M21&\"_old\",Ammortamento_Finanziario!$H:$L,5,FALSE),VLOOKUP($M21,TT_Tabelle_Riferimento!$H$31:$I$50,2,FALSE))","v":5},{"$f":"+IFERROR(VLOOKUP(V$6&\"-\"&$M21&\"_old\",Ammortamento_Finanziario!$H:$L,5,FALSE),VLOOKUP($M21,TT_Tabelle_Riferimento!$H$31:$I$50,2,FALSE))","v":5},{"$f":"+IFERROR(VLOOKUP(W$6&\"-\"&$M21&\"_old\",Ammortamento_Finanziario!$H:$L,5,FALSE),VLOOKUP($M21,TT_Tabelle_Riferimento!$H$31:$I$50,2,FALSE))","v":5},{"$f":"+IFERROR(VLOOKUP(X$6&\"-\"&$M21&\"_old\",Ammortamento_Finanziario!$H:$L,5,FALSE),VLOOKUP($M21,TT_Tabelle_Riferimento!$H$31:$I$50,2,FALSE))","v":5},{"$f":"+IFERROR(VLOOKUP(Y$6&\"-\"&$M21&\"_old\",Ammortamento_Finanziario!$H:$L,5,FALSE),VLOOKUP($M21,TT_Tabelle_Riferimento!$H$31:$I$50,2,FALSE))","v":5},{"$f":"+IFERROR(VLOOKUP(Z$6&\"-\"&$M21&\"_old\",Ammortamento_Finanziario!$H:$L,5,FALSE),VLOOKUP($M21,TT_Tabelle_Riferimento!$H$31:$I$50,2,FALSE))","v":5},{"$f":"+IFERROR(VLOOKUP(AA$6&\"-\"&$M21&\"_old\",Ammortamento_Finanziario!$H:$L,5,FALSE),VLOOKUP($M21,TT_Tabelle_Riferimento!$H$31:$I$50,2,FALSE))","v":5},{"$f":"+IFERROR(VLOOKUP(AB$6&\"-\"&$M21&\"_old\",Ammortamento_Finanziario!$H:$L,5,FALSE),VLOOKUP($M21,TT_Tabelle_Riferimento!$H$31:$I$50,2,FALSE))","v":5},{"$f":"+IFERROR(VLOOKUP(AC$6&\"-\"&$M21&\"_old\",Ammortamento_Finanziario!$H:$L,5,FALSE),VLOOKUP($M21,TT_Tabelle_Riferimento!$H$31:$I$50,2,FALSE))","v":5},{"$f":"+IFERROR(VLOOKUP(AD$6&\"-\"&$M21&\"_old\",Ammortamento_Finanziario!$H:$L,5,FALSE),VLOOKUP($M21,TT_Tabelle_Riferimento!$H$31:$I$50,2,FALSE))","v":5},{"$f":"+IFERROR(VLOOKUP(AE$6&\"-\"&$M21&\"_old\",Ammortamento_Finanziario!$H:$L,5,FALSE),VLOOKUP($M21,TT_Tabelle_Riferimento!$H$31:$I$50,2,FALSE))","v":5},{"$f":"+IFERROR(VLOOKUP(AF$6&\"-\"&$M21&\"_old\",Ammortamento_Finanziario!$H:$L,5,FALSE),VLOOKUP($M21,TT_Tabelle_Riferimento!$H$31:$I$50,2,FALSE))","v":5},{"$f":"+IFERROR(VLOOKUP(AG$6&\"-\"&$M21&\"_old\",Ammortamento_Finanziario!$H:$L,5,FALSE),VLOOKUP($M21,TT_Tabelle_Riferimento!$H$31:$I$50,2,FALSE))","v":5},{"$f":"+IFERROR(VLOOKUP(AH$6&\"-\"&$M21&\"_old\",Ammortamento_Finanziario!$H:$L,5,FALSE),VLOOKUP($M21,TT_Tabelle_Riferimento!$H$31:$I$50,2,FALSE))","v":5},{"$f":"+IFERROR(VLOOKUP(AI$6&\"-\"&$M21&\"_old\",Ammortamento_Finanziario!$H:$L,5,FALSE),VLOOKUP($M21,TT_Tabelle_Riferimento!$H$31:$I$50,2,FALSE))","v":5},{"$f":"+IFERROR(VLOOKUP(AJ$6&\"-\"&$M21&\"_old\",Ammortamento_Finanziario!$H:$L,5,FALSE),VLOOKUP($M21,TT_Tabelle_Riferimento!$H$31:$I$50,2,FALSE))","v":5},{"$f":"+IFERROR(VLOOKUP(AK$6&\"-\"&$M21&\"_old\",Ammortamento_Finanziario!$H:$L,5,FALSE),VLOOKUP($M21,TT_Tabelle_Riferimento!$H$31:$I$50,2,FALSE))","v":5},{"$f":"+IFERROR(VLOOKUP(AL$6&\"-\"&$M21&\"_old\",Ammortamento_Finanziario!$H:$L,5,FALSE),VLOOKUP($M21,TT_Tabelle_Riferimento!$H$31:$I$50,2,FALSE))","v":5},{"$f":"+IFERROR(VLOOKUP(AM$6&\"-\"&$M21&\"_old\",Ammortamento_Finanziario!$H:$L,5,FALSE),VLOOKUP($M21,TT_Tabelle_Riferimento!$H$31:$I$50,2,FALSE))","v":5},{"$f":"+IFERROR(VLOOKUP(AN$6&\"-\"&$M21&\"_old\",Ammortamento_Finanziario!$H:$L,5,FALSE),VLOOKUP($M21,TT_Tabelle_Riferimento!$H$31:$I$50,2,FALSE))","v":5},{"$f":"+IFERROR(VLOOKUP(AO$6&\"-\"&$M21&\"_old\",Ammortamento_Finanziario!$H:$L,5,FALSE),VLOOKUP($M21,TT_Tabelle_Riferimento!$H$31:$I$50,2,FALSE))","v":5},{"$f":"+IFERROR(VLOOKUP(AP$6&\"-\"&$M21&\"_old\",Ammortamento_Finanziario!$H:$L,5,FALSE),VLOOKUP($M21,TT_Tabelle_Riferimento!$H$31:$I$50,2,FALSE))","v":5},{"$f":"+IFERROR(VLOOKUP(AQ$6&\"-\"&$M21&\"_old\",Ammortamento_Finanziario!$H:$L,5,FALSE),VLOOKUP($M21,TT_Tabelle_Riferimento!$H$31:$I$50,2,FALSE))","v":5},{"$f":"+IFERROR(VLOOKUP(AR$6&\"-\"&$M21&\"_old\",Ammortamento_Finanziario!$H:$L,5,FALSE),VLOOKUP($M21,TT_Tabelle_Riferimento!$H$31:$I$50,2,FALSE))","v":5},{"$f":"+IFERROR(VLOOKUP(AS$6&\"-\"&$M21&\"_old\",Ammortamento_Finanziario!$H:$L,5,FALSE),VLOOKUP($M21,TT_Tabelle_Riferimento!$H$31:$I$50,2,FALSE))","v":5},{"$f":"+IFERROR(VLOOKUP(AT$6&\"-\"&$M21&\"_old\",Ammortamento_Finanziario!$H:$L,5,FALSE),VLOOKUP($M21,TT_Tabelle_Riferimento!$H$31:$I$50,2,FALSE))","v":5},{"$f":"+IFERROR(VLOOKUP(AU$6&\"-\"&$M21&\"_old\",Ammortamento_Finanziario!$H:$L,5,FALSE),VLOOKUP($M21,TT_Tabelle_Riferimento!$H$31:$I$50,2,FALSE))","v":5},{"$f":"+IFERROR(VLOOKUP(AV$6&\"-\"&$M21&\"_old\",Ammortamento_Finanziario!$H:$L,5,FALSE),VLOOKUP($M21,TT_Tabelle_Riferimento!$H$31:$I$50,2,FALSE))","v":5},{"$f":"+IFERROR(VLOOKUP(AW$6&\"-\"&$M21&\"_old\",Ammortamento_Finanziario!$H:$L,5,FALSE),VLOOKUP($M21,TT_Tabelle_Riferimento!$H$31:$I$50,2,FALSE))","v":5},{"$f":"+IFERROR(VLOOKUP(AX$6&\"-\"&$M21&\"_old\",Ammortamento_Finanziario!$H:$L,5,FALSE),VLOOKUP($M21,TT_Tabelle_Riferimento!$H$31:$I$50,2,FALSE))","v":5},{"$f":"+IFERROR(VLOOKUP(AY$6&\"-\"&$M21&\"_old\",Ammortamento_Finanziario!$H:$L,5,FALSE),VLOOKUP($M21,TT_Tabelle_Riferimento!$H$31:$I$50,2,FALSE))","v":5},{"$f":"+IFERROR(VLOOKUP(AZ$6&\"-\"&$M21&\"_old\",Ammortamento_Finanziario!$H:$L,5,FALSE),VLOOKUP($M21,TT_Tabelle_Riferimento!$H$31:$I$50,2,FALSE))","v":5},{"$f":"+IFERROR(VLOOKUP(BA$6&\"-\"&$M21&\"_old\",Ammortamento_Finanziario!$H:$L,5,FALSE),VLOOKUP($M21,TT_Tabelle_Riferimento!$H$31:$I$50,2,FALSE))","v":5},{"$f":"+IFERROR(VLOOKUP(BB$6&\"-\"&$M21&\"_old\",Ammortamento_Finanziario!$H:$L,5,FALSE),VLOOKUP($M21,TT_Tabelle_Riferimento!$H$31:$I$50,2,FALSE))","v":5},{"$f":"+IFERROR(VLOOKUP(BC$6&\"-\"&$M21&\"_old\",Ammortamento_Finanziario!$H:$L,5,FALSE),VLOOKUP($M21,TT_Tabelle_Riferimento!$H$31:$I$50,2,FALSE))","v":5},{"$f":"+IFERROR(VLOOKUP(BD$6&\"-\"&$M21&\"_old\",Ammortamento_Finanziario!$H:$L,5,FALSE),VLOOKUP($M21,TT_Tabelle_Riferimento!$H$31:$I$50,2,FALSE))","v":5},{"$f":"+IFERROR(VLOOKUP(BE$6&\"-\"&$M21&\"_old\",Ammortamento_Finanziario!$H:$L,5,FALSE),VLOOKUP($M21,TT_Tabelle_Riferimento!$H$31:$I$50,2,FALSE))","v":5},{"$f":"+IFERROR(VLOOKUP(BF$6&\"-\"&$M21&\"_old\",Ammortamento_Finanziario!$H:$L,5,FALSE),VLOOKUP($M21,TT_Tabelle_Riferimento!$H$31:$I$50,2,FALSE))","v":5},{"$f":"+IFERROR(VLOOKUP(BG$6&\"-\"&$M21&\"_old\",Ammortamento_Finanziario!$H:$L,5,FALSE),VLOOKUP($M21,TT_Tabelle_Riferimento!$H$31:$I$50,2,FALSE))","v":5},{"$f":"+IFERROR(VLOOKUP(BH$6&\"-\"&$M21&\"_old\",Ammortamento_Finanziario!$H:$L,5,FALSE),VLOOKUP($M21,TT_Tabelle_Riferimento!$H$31:$I$50,2,FALSE))","v":5},{"$f":"+IFERROR(VLOOKUP(BI$6&\"-\"&$M21&\"_old\",Ammortamento_Finanziario!$H:$L,5,FALSE),VLOOKUP($M21,TT_Tabelle_Riferimento!$H$31:$I$50,2,FALSE))","v":5},{"$f":"+IFERROR(VLOOKUP(BJ$6&\"-\"&$M21&\"_old\",Ammortamento_Finanziario!$H:$L,5,FALSE),VLOOKUP($M21,TT_Tabelle_Riferimento!$H$31:$I$50,2,FALSE))","v":5},{"$f":"+IFERROR(VLOOKUP(BK$6&\"-\"&$M21&\"_old\",Ammortamento_Finanziario!$H:$L,5,FALSE),VLOOKUP($M21,TT_Tabelle_Riferimento!$H$31:$I$50,2,FALSE))","v":5},{"$f":"+IFERROR(VLOOKUP(BL$6&\"-\"&$M21&\"_old\",Ammortamento_Finanziario!$H:$L,5,FALSE),VLOOKUP($M21,TT_Tabelle_Riferimento!$H$31:$I$50,2,FALSE))","v":5},{"$f":"+IFERROR(VLOOKUP(BM$6&\"-\"&$M21&\"_old\",Ammortamento_Finanziario!$H:$L,5,FALSE),VLOOKUP($M21,TT_Tabelle_Riferimento!$H$31:$I$50,2,FALSE))","v":5},{"$f":"+IFERROR(VLOOKUP(BN$6&\"-\"&$M21&\"_old\",Ammortamento_Finanziario!$H:$L,5,FALSE),VLOOKUP($M21,TT_Tabelle_Riferimento!$H$31:$I$50,2,FALSE))","v":5},{"$f":"+IFERROR(VLOOKUP(BO$6&\"-\"&$M21&\"_old\",Ammortamento_Finanziario!$H:$L,5,FALSE),VLOOKUP($M21,TT_Tabelle_Riferimento!$H$31:$I$50,2,FALSE))","v":5},{"$f":"+IFERROR(VLOOKUP(BP$6&\"-\"&$M21&\"_old\",Ammortamento_Finanziario!$H:$L,5,FALSE),VLOOKUP($M21,TT_Tabelle_Riferimento!$H$31:$I$50,2,FALSE))","v":5},{"$f":"+IFERROR(VLOOKUP(BQ$6&\"-\"&$M21&\"_old\",Ammortamento_Finanziario!$H:$L,5,FALSE),VLOOKUP($M21,TT_Tabelle_Riferimento!$H$31:$I$50,2,FALSE))","v":5},{"$f":"+IFERROR(VLOOKUP(BR$6&\"-\"&$M21&\"_old\",Ammortamento_Finanziario!$H:$L,5,FALSE),VLOOKUP($M21,TT_Tabelle_Riferimento!$H$31:$I$50,2,FALSE))","v":5},{"$f":"+IFERROR(VLOOKUP(BS$6&\"-\"&$M21&\"_old\",Ammortamento_Finanziario!$H:$L,5,FALSE),VLOOKUP($M21,TT_Tabelle_Riferimento!$H$31:$I$50,2,FALSE))","v":5},{"$f":"+IFERROR(VLOOKUP(BT$6&\"-\"&$M21&\"_old\",Ammortamento_Finanziario!$H:$L,5,FALSE),VLOOKUP($M21,TT_Tabelle_Riferimento!$H$31:$I$50,2,FALSE))","v":5},{"$f":"+IFERROR(VLOOKUP(BU$6&\"-\"&$M21&\"_old\",Ammortamento_Finanziario!$H:$L,5,FALSE),VLOOKUP($M21,TT_Tabelle_Riferimento!$H$31:$I$50,2,FALSE))","v":5},{"$f":"+IFERROR(VLOOKUP(BV$6&\"-\"&$M21&\"_old\",Ammortamento_Finanziario!$H:$L,5,FALSE),VLOOKUP($M21,TT_Tabelle_Riferimento!$H$31:$I$50,2,FALSE))","v":5},{"$f":"+IFERROR(VLOOKUP(BW$6&\"-\"&$M21&\"_old\",Ammortamento_Finanziario!$H:$L,5,FALSE),VLOOKUP($M21,TT_Tabelle_Riferimento!$H$31:$I$50,2,FALSE))","v":5},{"$f":"+IFERROR(VLOOKUP(BX$6&\"-\"&$M21&\"_old\",Ammortamento_Finanziario!$H:$L,5,FALSE),VLOOKUP($M21,TT_Tabelle_Riferimento!$H$31:$I$50,2,FALSE))","v":5},{"$f":"+IFERROR(VLOOKUP(BY$6&\"-\"&$M21&\"_old\",Ammortamento_Finanziario!$H:$L,5,FALSE),VLOOKUP($M21,TT_Tabelle_Riferimento!$H$31:$I$50,2,FALSE))","v":5},{"$f":"+IFERROR(VLOOKUP(BZ$6&\"-\"&$M21&\"_old\",Ammortamento_Finanziario!$H:$L,5,FALSE),VLOOKUP($M21,TT_Tabelle_Riferimento!$H$31:$I$50,2,FALSE))","v":5},{"$f":"+IFERROR(VLOOKUP(CA$6&\"-\"&$M21&\"_old\",Ammortamento_Finanziario!$H:$L,5,FALSE),VLOOKUP($M21,TT_Tabelle_Riferimento!$H$31:$I$50,2,FALSE))","v":5},{"$f":"+IFERROR(VLOOKUP(CB$6&\"-\"&$M21&\"_old\",Ammortamento_Finanziario!$H:$L,5,FALSE),VLOOKUP($M21,TT_Tabelle_Riferimento!$H$31:$I$50,2,FALSE))","v":5},{"$f":"+IFERROR(VLOOKUP(CC$6&\"-\"&$M21&\"_old\",Ammortamento_Finanziario!$H:$L,5,FALSE),VLOOKUP($M21,TT_Tabelle_Riferimento!$H$31:$I$50,2,FALSE))","v":5},{"$f":"+IFERROR(VLOOKUP(CD$6&\"-\"&$M21&\"_old\",Ammortamento_Finanziario!$H:$L,5,FALSE),VLOOKUP($M21,TT_Tabelle_Riferimento!$H$31:$I$50,2,FALSE))","v":5},{"$f":"+IFERROR(VLOOKUP(CE$6&\"-\"&$M21&\"_old\",Ammortamento_Finanziario!$H:$L,5,FALSE),VLOOKUP($M21,TT_Tabelle_Riferimento!$H$31:$I$50,2,FALSE))","v":5},{"$f":"+IFERROR(VLOOKUP(CF$6&\"-\"&$M21&\"_old\",Ammortamento_Finanziario!$H:$L,5,FALSE),VLOOKUP($M21,TT_Tabelle_Riferimento!$H$31:$I$50,2,FALSE))","v":5},{"$f":"+IFERROR(VLOOKUP(CG$6&\"-\"&$M21&\"_old\",Ammortamento_Finanziario!$H:$L,5,FALSE),VLOOKUP($M21,TT_Tabelle_Riferimento!$H$31:$I$50,2,FALSE))","v":5},{"$f":"+IFERROR(VLOOKUP(CH$6&\"-\"&$M21&\"_old\",Ammortamento_Finanziario!$H:$L,5,FALSE),VLOOKUP($M21,TT_Tabelle_Riferimento!$H$31:$I$50,2,FALSE))","v":5},{"$f":"+IFERROR(VLOOKUP(CI$6&\"-\"&$M21&\"_old\",Ammortamento_Finanziario!$H:$L,5,FALSE),VLOOKUP($M21,TT_Tabelle_Riferimento!$H$31:$I$50,2,FALSE))","v":5},{"$f":"+IFERROR(VLOOKUP(CJ$6&\"-\"&$M21&\"_old\",Ammortamento_Finanziario!$H:$L,5,FALSE),VLOOKUP($M21,TT_Tabelle_Riferimento!$H$31:$I$50,2,FALSE))","v":5},{"$f":"+IFERROR(VLOOKUP(CK$6&\"-\"&$M21&\"_old\",Ammortamento_Finanziario!$H:$L,5,FALSE),VLOOKUP($M21,TT_Tabelle_Riferimento!$H$31:$I$50,2,FALSE))","v":5},{"$f":"+IFERROR(VLOOKUP(CL$6&\"-\"&$M21&\"_old\",Ammortamento_Finanziario!$H:$L,5,FALSE),VLOOKUP($M21,TT_Tabelle_Riferimento!$H$31:$I$50,2,FALSE))","v":5},{"$f":"+IFERROR(VLOOKUP(CM$6&\"-\"&$M21&\"_old\",Ammortamento_Finanziario!$H:$L,5,FALSE),VLOOKUP($M21,TT_Tabelle_Riferimento!$H$31:$I$50,2,FALSE))","v":5},{"$f":"+IFERROR(VLOOKUP(CN$6&\"-\"&$M21&\"_old\",Ammortamento_Finanziario!$H:$L,5,FALSE),VLOOKUP($M21,TT_Tabelle_Riferimento!$H$31:$I$50,2,FALSE))","v":5},{"$f":"+IFERROR(VLOOKUP(CO$6&\"-\"&$M21&\"_old\",Ammortamento_Finanziario!$H:$L,5,FALSE),VLOOKUP($M21,TT_Tabelle_Riferimento!$H$31:$I$50,2,FALSE))","v":5},{"$f":"+IFERROR(VLOOKUP(CP$6&\"-\"&$M21&\"_old\",Ammortamento_Finanziario!$H:$L,5,FALSE),VLOOKUP($M21,TT_Tabelle_Riferimento!$H$31:$I$50,2,FALSE))","v":5},{"$f":"+IFERROR(VLOOKUP(CQ$6&\"-\"&$M21&\"_old\",Ammortamento_Finanziario!$H:$L,5,FALSE),VLOOKUP($M21,TT_Tabelle_Riferimento!$H$31:$I$50,2,FALSE))","v":5},{"$f":"+IFERROR(VLOOKUP(CR$6&\"-\"&$M21&\"_old\",Ammortamento_Finanziario!$H:$L,5,FALSE),VLOOKUP($M21,TT_Tabelle_Riferimento!$H$31:$I$50,2,FALSE))","v":5},{"$f":"+IFERROR(VLOOKUP(CS$6&\"-\"&$M21&\"_old\",Ammortamento_Finanziario!$H:$L,5,FALSE),VLOOKUP($M21,TT_Tabelle_Riferimento!$H$31:$I$50,2,FALSE))","v":5},{"$f":"+IFERROR(VLOOKUP(CT$6&\"-\"&$M21&\"_old\",Ammortamento_Finanziario!$H:$L,5,FALSE),VLOOKUP($M21,TT_Tabelle_Riferimento!$H$31:$I$50,2,FALSE))","v":5},{"$f":"+IFERROR(VLOOKUP(CU$6&\"-\"&$M21&\"_old\",Ammortamento_Finanziario!$H:$L,5,FALSE),VLOOKUP($M21,TT_Tabelle_Riferimento!$H$31:$I$50,2,FALSE))","v":5},{"$f":"+IFERROR(VLOOKUP(CV$6&\"-\"&$M21&\"_old\",Ammortamento_Finanziario!$H:$L,5,FALSE),VLOOKUP($M21,TT_Tabelle_Riferimento!$H$31:$I$50,2,FALSE))","v":5},{"$f":"+IFERROR(VLOOKUP(CW$6&\"-\"&$M21&\"_old\",Ammortamento_Finanziario!$H:$L,5,FALSE),VLOOKUP($M21,TT_Tabelle_Riferimento!$H$31:$I$50,2,FALSE))","v":5},{"$f":"+IFERROR(VLOOKUP(CX$6&\"-\"&$M21&\"_old\",Ammortamento_Finanziario!$H:$L,5,FALSE),VLOOKUP($M21,TT_Tabelle_Riferimento!$H$31:$I$50,2,FALSE))","v":5},{"$f":"+IFERROR(VLOOKUP(CY$6&\"-\"&$M21&\"_old\",Ammortamento_Finanziario!$H:$L,5,FALSE),VLOOKUP($M21,TT_Tabelle_Riferimento!$H$31:$I$50,2,FALSE))","v":5},{"$f":"+IFERROR(VLOOKUP(CZ$6&\"-\"&$M21&\"_old\",Ammortamento_Finanziario!$H:$L,5,FALSE),VLOOKUP($M21,TT_Tabelle_Riferimento!$H$31:$I$50,2,FALSE))","v":5},{"$f":"+IFERROR(VLOOKUP(DA$6&\"-\"&$M21&\"_old\",Ammortamento_Finanziario!$H:$L,5,FALSE),VLOOKUP($M21,TT_Tabelle_Riferimento!$H$31:$I$50,2,FALSE))","v":5},{"$f":"+IFERROR(VLOOKUP(DB$6&\"-\"&$M21&\"_old\",Ammortamento_Finanziario!$H:$L,5,FALSE),VLOOKUP($M21,TT_Tabelle_Riferimento!$H$31:$I$50,2,FALSE))","v":5},{"$f":"+IFERROR(VLOOKUP(DC$6&\"-\"&$M21&\"_old\",Ammortamento_Finanziario!$H:$L,5,FALSE),VLOOKUP($M21,TT_Tabelle_Riferimento!$H$31:$I$50,2,FALSE))","v":5},{"$f":"+IFERROR(VLOOKUP(DD$6&\"-\"&$M21&\"_old\",Ammortamento_Finanziario!$H:$L,5,FALSE),VLOOKUP($M21,TT_Tabelle_Riferimento!$H$31:$I$50,2,FALSE))","v":5},{"$f":"+IFERROR(VLOOKUP(DE$6&\"-\"&$M21&\"_old\",Ammortamento_Finanziario!$H:$L,5,FALSE),VLOOKUP($M21,TT_Tabelle_Riferimento!$H$31:$I$50,2,FALSE))","v":5},{"$f":"+IFERROR(VLOOKUP(DF$6&\"-\"&$M21&\"_old\",Ammortamento_Finanziario!$H:$L,5,FALSE),VLOOKUP($M21,TT_Tabelle_Riferimento!$H$31:$I$50,2,FALSE))","v":5},{"$f":"+IFERROR(VLOOKUP(DG$6&\"-\"&$M21&\"_old\",Ammortamento_Finanziario!$H:$L,5,FALSE),VLOOKUP($M21,TT_Tabelle_Riferimento!$H$31:$I$50,2,FALSE))","v":5},{"$f":"+IFERROR(VLOOKUP(DH$6&\"-\"&$M21&\"_old\",Ammortamento_Finanziario!$H:$L,5,FALSE),VLOOKUP($M21,TT_Tabelle_Riferimento!$H$31:$I$50,2,FALSE))","v":5},{"$f":"+IFERROR(VLOOKUP(DI$6&\"-\"&$M21&\"_old\",Ammortamento_Finanziario!$H:$L,5,FALSE),VLOOKUP($M21,TT_Tabelle_Riferimento!$H$31:$I$50,2,FALSE))","v":5},{"$f":"+IFERROR(VLOOKUP(DJ$6&\"-\"&$M21&\"_old\",Ammortamento_Finanziario!$H:$L,5,FALSE),VLOOKUP($M21,TT_Tabelle_Riferimento!$H$31:$I$50,2,FALSE))","v":5},{"$f":"+IFERROR(VLOOKUP(DK$6&\"-\"&$M21&\"_old\",Ammortamento_Finanziario!$H:$L,5,FALSE),VLOOKUP($M21,TT_Tabelle_Riferimento!$H$31:$I$50,2,FALSE))","v":5},{"$f":"+IFERROR(VLOOKUP(DL$6&\"-\"&$M21&\"_old\",Ammortamento_Finanziario!$H:$L,5,FALSE),VLOOKUP($M21,TT_Tabelle_Riferimento!$H$31:$I$50,2,FALSE))","v":5},{"$f":"+IFERROR(VLOOKUP(DM$6&\"-\"&$M21&\"_old\",Ammortamento_Finanziario!$H:$L,5,FALSE),VLOOKUP($M21,TT_Tabelle_Riferimento!$H$31:$I$50,2,FALSE))","v":5},{"$f":"+IFERROR(VLOOKUP(DN$6&\"-\"&$M21&\"_old\",Ammortamento_Finanziario!$H:$L,5,FALSE),VLOOKUP($M21,TT_Tabelle_Riferimento!$H$31:$I$50,2,FALSE))","v":5},{"$f":"+IFERROR(VLOOKUP(DO$6&\"-\"&$M21&\"_old\",Ammortamento_Finanziario!$H:$L,5,FALSE),VLOOKUP($M21,TT_Tabelle_Riferimento!$H$31:$I$50,2,FALSE))","v":5},{"$f":"+IFERROR(VLOOKUP(DP$6&\"-\"&$M21&\"_old\",Ammortamento_Finanziario!$H:$L,5,FALSE),VLOOKUP($M21,TT_Tabelle_Riferimento!$H$31:$I$50,2,FALSE))","v":5},{"$f":"+IFERROR(VLOOKUP(DQ$6&\"-\"&$M21&\"_old\",Ammortamento_Finanziario!$H:$L,5,FALSE),VLOOKUP($M21,TT_Tabelle_Riferimento!$H$31:$I$50,2,FALSE))","v":5},{"$f":"+IFERROR(VLOOKUP(DR$6&\"-\"&$M21&\"_old\",Ammortamento_Finanziario!$H:$L,5,FALSE),VLOOKUP($M21,TT_Tabelle_Riferimento!$H$31:$I$50,2,FALSE))","v":5},{"$f":"+IFERROR(VLOOKUP(DS$6&\"-\"&$M21&\"_old\",Ammortamento_Finanziario!$H:$L,5,FALSE),VLOOKUP($M21,TT_Tabelle_Riferimento!$H$31:$I$50,2,FALSE))","v":5},{"$f":"+IFERROR(VLOOKUP(DT$6&\"-\"&$M21&\"_old\",Ammortamento_Finanziario!$H:$L,5,FALSE),VLOOKUP($M21,TT_Tabelle_Riferimento!$H$31:$I$50,2,FALSE))","v":5},{"$f":"+IFERROR(VLOOKUP(DU$6&\"-\"&$M21&\"_old\",Ammortamento_Finanziario!$H:$L,5,FALSE),VLOOKUP($M21,TT_Tabelle_Riferimento!$H$31:$I$50,2,FALSE))","v":5},{"$f":"+IFERROR(VLOOKUP(DV$6&\"-\"&$M21&\"_old\",Ammortamento_Finanziario!$H:$L,5,FALSE),VLOOKUP($M21,TT_Tabelle_Riferimento!$H$31:$I$50,2,FALSE))","v":5},{"$f":"+IFERROR(VLOOKUP(DW$6&\"-\"&$M21&\"_old\",Ammortamento_Finanziario!$H:$L,5,FALSE),VLOOKUP($M21,TT_Tabelle_Riferimento!$H$31:$I$50,2,FALSE))","v":5},{"$f":"+IFERROR(VLOOKUP(DX$6&\"-\"&$M21&\"_old\",Ammortamento_Finanziario!$H:$L,5,FALSE),VLOOKUP($M21,TT_Tabelle_Riferimento!$H$31:$I$50,2,FALSE))","v":5},{"$f":"+IFERROR(VLOOKUP(DY$6&\"-\"&$M21&\"_old\",Ammortamento_Finanziario!$H:$L,5,FALSE),VLOOKUP($M21,TT_Tabelle_Riferimento!$H$31:$I$50,2,FALSE))","v":5},{"$f":"+IFERROR(VLOOKUP(DZ$6&\"-\"&$M21&\"_old\",Ammortamento_Finanziario!$H:$L,5,FALSE),VLOOKUP($M21,TT_Tabelle_Riferimento!$H$31:$I$50,2,FALSE))","v":5},{"$f":"+IFERROR(VLOOKUP(EA$6&\"-\"&$M21&\"_old\",Ammortamento_Finanziario!$H:$L,5,FALSE),VLOOKUP($M21,TT_Tabelle_Riferimento!$H$31:$I$50,2,FALSE))","v":5},{"$f":"+IFERROR(VLOOKUP(EB$6&\"-\"&$M21&\"_old\",Ammortamento_Finanziario!$H:$L,5,FALSE),VLOOKUP($M21,TT_Tabelle_Riferimento!$H$31:$I$50,2,FALSE))","v":5},{"$f":"+IFERROR(VLOOKUP(EC$6&\"-\"&$M21&\"_old\",Ammortamento_Finanziario!$H:$L,5,FALSE),VLOOKUP($M21,TT_Tabelle_Riferimento!$H$31:$I$50,2,FALSE))","v":5},{"$f":"+IFERROR(VLOOKUP(ED$6&\"-\"&$M21&\"_old\",Ammortamento_Finanziario!$H:$L,5,FALSE),VLOOKUP($M21,TT_Tabelle_Riferimento!$H$31:$I$50,2,FALSE))","v":5},{"$f":"+IFERROR(VLOOKUP(EE$6&\"-\"&$M21&\"_old\",Ammortamento_Finanziario!$H:$L,5,FALSE),VLOOKUP($M21,TT_Tabelle_Riferimento!$H$31:$I$50,2,FALSE))","v":5},{"$f":"+IFERROR(VLOOKUP(EF$6&\"-\"&$M21&\"_old\",Ammortamento_Finanziario!$H:$L,5,FALSE),VLOOKUP($M21,TT_Tabelle_Riferimento!$H$31:$I$50,2,FALSE))","v":5},{"$f":"+IFERROR(VLOOKUP(EG$6&\"-\"&$M21&\"_old\",Ammortamento_Finanziario!$H:$L,5,FALSE),VLOOKUP($M21,TT_Tabelle_Riferimento!$H$31:$I$50,2,FALSE))","v":5},{"$f":"+IFERROR(VLOOKUP(EH$6&\"-\"&$M21&\"_old\",Ammortamento_Finanziario!$H:$L,5,FALSE),VLOOKUP($M21,TT_Tabelle_Riferimento!$H$31:$I$50,2,FALSE))","v":5},{"$f":"+IFERROR(VLOOKUP(EI$6&\"-\"&$M21&\"_old\",Ammortamento_Finanziario!$H:$L,5,FALSE),VLOOKUP($M21,TT_Tabelle_Riferimento!$H$31:$I$50,2,FALSE))","v":5},{"$f":"+IFERROR(VLOOKUP(EJ$6&\"-\"&$M21&\"_old\",Ammortamento_Finanziario!$H:$L,5,FALSE),VLOOKUP($M21,TT_Tabelle_Riferimento!$H$31:$I$50,2,FALSE))","v":5},{"$f":"+IFERROR(VLOOKUP(EK$6&\"-\"&$M21&\"_old\",Ammortamento_Finanziario!$H:$L,5,FALSE),VLOOKUP($M21,TT_Tabelle_Riferimento!$H$31:$I$50,2,FALSE))","v":5},{"$f":"+IFERROR(VLOOKUP(EL$6&\"-\"&$M21&\"_old\",Ammortamento_Finanziario!$H:$L,5,FALSE),VLOOKUP($M21,TT_Tabelle_Riferimento!$H$31:$I$50,2,FALSE))","v":5},{"$f":"+IFERROR(VLOOKUP(EM$6&\"-\"&$M21&\"_old\",Ammortamento_Finanziario!$H:$L,5,FALSE),VLOOKUP($M21,TT_Tabelle_Riferimento!$H$31:$I$50,2,FALSE))","v":5},{"$f":"+IFERROR(VLOOKUP(EN$6&\"-\"&$M21&\"_old\",Ammortamento_Finanziario!$H:$L,5,FALSE),VLOOKUP($M21,TT_Tabelle_Riferimento!$H$31:$I$50,2,FALSE))","v":5},{"$f":"+IFERROR(VLOOKUP(EO$6&\"-\"&$M21&\"_old\",Ammortamento_Finanziario!$H:$L,5,FALSE),VLOOKUP($M21,TT_Tabelle_Riferimento!$H$31:$I$50,2,FALSE))","v":5},{"$f":"+IFERROR(VLOOKUP(EP$6&\"-\"&$M21&\"_old\",Ammortamento_Finanziario!$H:$L,5,FALSE),VLOOKUP($M21,TT_Tabelle_Riferimento!$H$31:$I$50,2,FALSE))","v":5},{"$f":"+IFERROR(VLOOKUP(EQ$6&\"-\"&$M21&\"_old\",Ammortamento_Finanziario!$H:$L,5,FALSE),VLOOKUP($M21,TT_Tabelle_Riferimento!$H$31:$I$50,2,FALSE))","v":5},{"$f":"+IFERROR(VLOOKUP(ER$6&\"-\"&$M21&\"_old\",Ammortamento_Finanziario!$H:$L,5,FALSE),VLOOKUP($M21,TT_Tabelle_Riferimento!$H$31:$I$50,2,FALSE))","v":5},{"$f":"+IFERROR(VLOOKUP(ES$6&\"-\"&$M21&\"_old\",Ammortamento_Finanziario!$H:$L,5,FALSE),VLOOKUP($M21,TT_Tabelle_Riferimento!$H$31:$I$50,2,FALSE))","v":5},{"$f":"+IFERROR(VLOOKUP(ET$6&\"-\"&$M21&\"_old\",Ammortamento_Finanziario!$H:$L,5,FALSE),VLOOKUP($M21,TT_Tabelle_Riferimento!$H$31:$I$50,2,FALSE))","v":5},{"$f":"+IFERROR(VLOOKUP(EU$6&\"-\"&$M21&\"_old\",Ammortamento_Finanziario!$H:$L,5,FALSE),VLOOKUP($M21,TT_Tabelle_Riferimento!$H$31:$I$50,2,FALSE))","v":5},{"$f":"+IFERROR(VLOOKUP(EV$6&\"-\"&$M21&\"_old\",Ammortamento_Finanziario!$H:$L,5,FALSE),VLOOKUP($M21,TT_Tabelle_Riferimento!$H$31:$I$50,2,FALSE))","v":5},{"$f":"+IFERROR(VLOOKUP(EW$6&\"-\"&$M21&\"_old\",Ammortamento_Finanziario!$H:$L,5,FALSE),VLOOKUP($M21,TT_Tabelle_Riferimento!$H$31:$I$50,2,FALSE))","v":5},{"$f":"+IFERROR(VLOOKUP(EX$6&\"-\"&$M21&\"_old\",Ammortamento_Finanziario!$H:$L,5,FALSE),VLOOKUP($M21,TT_Tabelle_Riferimento!$H$31:$I$50,2,FALSE))","v":5},{"$f":"+IFERROR(VLOOKUP(EY$6&\"-\"&$M21&\"_old\",Ammortamento_Finanziario!$H:$L,5,FALSE),VLOOKUP($M21,TT_Tabelle_Riferimento!$H$31:$I$50,2,FALSE))","v":5},{"$f":"+IFERROR(VLOOKUP(EZ$6&\"-\"&$M21&\"_old\",Ammortamento_Finanziario!$H:$L,5,FALSE),VLOOKUP($M21,TT_Tabelle_Riferimento!$H$31:$I$50,2,FALSE))","v":5},{"$f":"+IFERROR(VLOOKUP(FA$6&\"-\"&$M21&\"_old\",Ammortamento_Finanziario!$H:$L,5,FALSE),VLOOKUP($M21,TT_Tabelle_Riferimento!$H$31:$I$50,2,FALSE))","v":5},{"$f":"+IFERROR(VLOOKUP(FB$6&\"-\"&$M21&\"_old\",Ammortamento_Finanziario!$H:$L,5,FALSE),VLOOKUP($M21,TT_Tabelle_Riferimento!$H$31:$I$50,2,FALSE))","v":5},{"$f":"+IFERROR(VLOOKUP(FC$6&\"-\"&$M21&\"_old\",Ammortamento_Finanziario!$H:$L,5,FALSE),VLOOKUP($M21,TT_Tabelle_Riferimento!$H$31:$I$50,2,FALSE))","v":5},{"$f":"+IFERROR(VLOOKUP(FD$6&\"-\"&$M21&\"_old\",Ammortamento_Finanziario!$H:$L,5,FALSE),VLOOKUP($M21,TT_Tabelle_Riferimento!$H$31:$I$50,2,FALSE))","v":5},{"$f":"+IFERROR(VLOOKUP(FE$6&\"-\"&$M21&\"_old\",Ammortamento_Finanziario!$H:$L,5,FALSE),VLOOKUP($M21,TT_Tabelle_Riferimento!$H$31:$I$50,2,FALSE))","v":5},{"$f":"+IFERROR(VLOOKUP(FF$6&\"-\"&$M21&\"_old\",Ammortamento_Finanziario!$H:$L,5,FALSE),VLOOKUP($M21,TT_Tabelle_Riferimento!$H$31:$I$50,2,FALSE))","v":5},{"$f":"+IFERROR(VLOOKUP(FG$6&\"-\"&$M21&\"_old\",Ammortamento_Finanziario!$H:$L,5,FALSE),VLOOKUP($M21,TT_Tabelle_Riferimento!$H$31:$I$50,2,FALSE))","v":5},{"$f":"+IFERROR(VLOOKUP(FH$6&\"-\"&$M21&\"_old\",Ammortamento_Finanziario!$H:$L,5,FALSE),VLOOKUP($M21,TT_Tabelle_Riferimento!$H$31:$I$50,2,FALSE))","v":5},{"$f":"+IFERROR(VLOOKUP(FI$6&\"-\"&$M21&\"_old\",Ammortamento_Finanziario!$H:$L,5,FALSE),VLOOKUP($M21,TT_Tabelle_Riferimento!$H$31:$I$50,2,FALSE))","v":5},{"$f":"+IFERROR(VLOOKUP(FJ$6&\"-\"&$M21&\"_old\",Ammortamento_Finanziario!$H:$L,5,FALSE),VLOOKUP($M21,TT_Tabelle_Riferimento!$H$31:$I$50,2,FALSE))","v":5},{"$f":"+IFERROR(VLOOKUP(FK$6&\"-\"&$M21&\"_old\",Ammortamento_Finanziario!$H:$L,5,FALSE),VLOOKUP($M21,TT_Tabelle_Riferimento!$H$31:$I$50,2,FALSE))","v":5},{"$f":"+IFERROR(VLOOKUP(FL$6&\"-\"&$M21&\"_old\",Ammortamento_Finanziario!$H:$L,5,FALSE),VLOOKUP($M21,TT_Tabelle_Riferimento!$H$31:$I$50,2,FALSE))","v":5},{"$f":"+IFERROR(VLOOKUP(FM$6&\"-\"&$M21&\"_old\",Ammortamento_Finanziario!$H:$L,5,FALSE),VLOOKUP($M21,TT_Tabelle_Riferimento!$H$31:$I$50,2,FALSE))","v":5},{"$f":"+IFERROR(VLOOKUP(FN$6&\"-\"&$M21&\"_old\",Ammortamento_Finanziario!$H:$L,5,FALSE),VLOOKUP($M21,TT_Tabelle_Riferimento!$H$31:$I$50,2,FALSE))","v":5},{"$f":"+IFERROR(VLOOKUP(FO$6&\"-\"&$M21&\"_old\",Ammortamento_Finanziario!$H:$L,5,FALSE),VLOOKUP($M21,TT_Tabelle_Riferimento!$H$31:$I$50,2,FALSE))","v":5},{"$f":"+IFERROR(VLOOKUP(FP$6&\"-\"&$M21&\"_old\",Ammortamento_Finanziario!$H:$L,5,FALSE),VLOOKUP($M21,TT_Tabelle_Riferimento!$H$31:$I$50,2,FALSE))","v":5},{"$f":"+IFERROR(VLOOKUP(FQ$6&\"-\"&$M21&\"_old\",Ammortamento_Finanziario!$H:$L,5,FALSE),VLOOKUP($M21,TT_Tabelle_Riferimento!$H$31:$I$50,2,FALSE))","v":5},{"$f":"+IFERROR(VLOOKUP(FR$6&\"-\"&$M21&\"_old\",Ammortamento_Finanziario!$H:$L,5,FALSE),VLOOKUP($M21,TT_Tabelle_Riferimento!$H$31:$I$50,2,FALSE))","v":5},{"$f":"+IFERROR(VLOOKUP(FS$6&\"-\"&$M21&\"_old\",Ammortamento_Finanziario!$H:$L,5,FALSE),VLOOKUP($M21,TT_Tabelle_Riferimento!$H$31:$I$50,2,FALSE))","v":5},{"$f":"+IFERROR(VLOOKUP(FT$6&\"-\"&$M21&\"_old\",Ammortamento_Finanziario!$H:$L,5,FALSE),VLOOKUP($M21,TT_Tabelle_Riferimento!$H$31:$I$50,2,FALSE))","v":5},{"$f":"+IFERROR(VLOOKUP(FU$6&\"-\"&$M21&\"_old\",Ammortamento_Finanziario!$H:$L,5,FALSE),VLOOKUP($M21,TT_Tabelle_Riferimento!$H$31:$I$50,2,FALSE))","v":5},{"$f":"+IFERROR(VLOOKUP(FV$6&\"-\"&$M21&\"_old\",Ammortamento_Finanziario!$H:$L,5,FALSE),VLOOKUP($M21,TT_Tabelle_Riferimento!$H$31:$I$50,2,FALSE))","v":5},{"$f":"+IFERROR(VLOOKUP(FW$6&\"-\"&$M21&\"_old\",Ammortamento_Finanziario!$H:$L,5,FALSE),VLOOKUP($M21,TT_Tabelle_Riferimento!$H$31:$I$50,2,FALSE))","v":5},{"$f":"+IFERROR(VLOOKUP(FX$6&\"-\"&$M21&\"_old\",Ammortamento_Finanziario!$H:$L,5,FALSE),VLOOKUP($M21,TT_Tabelle_Riferimento!$H$31:$I$50,2,FALSE))","v":5},{"$f":"+IFERROR(VLOOKUP(FY$6&\"-\"&$M21&\"_old\",Ammortamento_Finanziario!$H:$L,5,FALSE),VLOOKUP($M21,TT_Tabelle_Riferimento!$H$31:$I$50,2,FALSE))","v":5},{"$f":"+IFERROR(VLOOKUP(FZ$6&\"-\"&$M21&\"_old\",Ammortamento_Finanziario!$H:$L,5,FALSE),VLOOKUP($M21,TT_Tabelle_Riferimento!$H$31:$I$50,2,FALSE))","v":5},{"$f":"+IFERROR(VLOOKUP(GA$6&\"-\"&$M21&\"_old\",Ammortamento_Finanziario!$H:$L,5,FALSE),VLOOKUP($M21,TT_Tabelle_Riferimento!$H$31:$I$50,2,FALSE))","v":5},{"$f":"+IFERROR(VLOOKUP(GB$6&\"-\"&$M21&\"_old\",Ammortamento_Finanziario!$H:$L,5,FALSE),VLOOKUP($M21,TT_Tabelle_Riferimento!$H$31:$I$50,2,FALSE))","v":5},{"$f":"+IFERROR(VLOOKUP(GC$6&\"-\"&$M21&\"_old\",Ammortamento_Finanziario!$H:$L,5,FALSE),VLOOKUP($M21,TT_Tabelle_Riferimento!$H$31:$I$50,2,FALSE))","v":5},{"$f":"+IFERROR(VLOOKUP(GD$6&\"-\"&$M21&\"_old\",Ammortamento_Finanziario!$H:$L,5,FALSE),VLOOKUP($M21,TT_Tabelle_Riferimento!$H$31:$I$50,2,FALSE))","v":5},{"$f":"+IFERROR(VLOOKUP(GE$6&\"-\"&$M21&\"_old\",Ammortamento_Finanziario!$H:$L,5,FALSE),VLOOKUP($M21,TT_Tabelle_Riferimento!$H$31:$I$50,2,FALSE))","v":5},{"$f":"+IFERROR(VLOOKUP(GF$6&\"-\"&$M21&\"_old\",Ammortamento_Finanziario!$H:$L,5,FALSE),VLOOKUP($M21,TT_Tabelle_Riferimento!$H$31:$I$50,2,FALSE))","v":5},{"$f":"+IFERROR(VLOOKUP(GG$6&\"-\"&$M21&\"_old\",Ammortamento_Finanziario!$H:$L,5,FALSE),VLOOKUP($M21,TT_Tabelle_Riferimento!$H$31:$I$50,2,FALSE))","v":5},{"$f":"+IFERROR(VLOOKUP(GH$6&\"-\"&$M21&\"_old\",Ammortamento_Finanziario!$H:$L,5,FALSE),VLOOKUP($M21,TT_Tabelle_Riferimento!$H$31:$I$50,2,FALSE))","v":5},{"$f":"+IFERROR(VLOOKUP(GI$6&\"-\"&$M21&\"_old\",Ammortamento_Finanziario!$H:$L,5,FALSE),VLOOKUP($M21,TT_Tabelle_Riferimento!$H$31:$I$50,2,FALSE))","v":5},{"$f":"+IFERROR(VLOOKUP(GJ$6&\"-\"&$M21&\"_old\",Ammortamento_Finanziario!$H:$L,5,FALSE),VLOOKUP($M21,TT_Tabelle_Riferimento!$H$31:$I$50,2,FALSE))","v":5},{"$f":"+IFERROR(VLOOKUP(GK$6&\"-\"&$M21&\"_old\",Ammortamento_Finanziario!$H:$L,5,FALSE),VLOOKUP($M21,TT_Tabelle_Riferimento!$H$31:$I$50,2,FALSE))","v":5},{"$f":"+IFERROR(VLOOKUP(GL$6&\"-\"&$M21&\"_old\",Ammortamento_Finanziario!$H:$L,5,FALSE),VLOOKUP($M21,TT_Tabelle_Riferimento!$H$31:$I$50,2,FALSE))","v":5},{"$f":"+IFERROR(VLOOKUP(GM$6&\"-\"&$M21&\"_old\",Ammortamento_Finanziario!$H:$L,5,FALSE),VLOOKUP($M21,TT_Tabelle_Riferimento!$H$31:$I$50,2,FALSE))","v":5},{"$f":"+IFERROR(VLOOKUP(GN$6&\"-\"&$M21&\"_old\",Ammortamento_Finanziario!$H:$L,5,FALSE),VLOOKUP($M21,TT_Tabelle_Riferimento!$H$31:$I$50,2,FALSE))","v":5},{"$f":"+IFERROR(VLOOKUP(GO$6&\"-\"&$M21&\"_old\",Ammortamento_Finanziario!$H:$L,5,FALSE),VLOOKUP($M21,TT_Tabelle_Riferimento!$H$31:$I$50,2,FALSE))","v":5},{"$f":"+IFERROR(VLOOKUP(GP$6&\"-\"&$M21&\"_old\",Ammortamento_Finanziario!$H:$L,5,FALSE),VLOOKUP($M21,TT_Tabelle_Riferimento!$H$31:$I$50,2,FALSE))","v":5},{"$f":"+IFERROR(VLOOKUP(GQ$6&\"-\"&$M21&\"_old\",Ammortamento_Finanziario!$H:$L,5,FALSE),VLOOKUP($M21,TT_Tabelle_Riferimento!$H$31:$I$50,2,FALSE))","v":5},{"$f":"+IFERROR(VLOOKUP(GR$6&\"-\"&$M21&\"_old\",Ammortamento_Finanziario!$H:$L,5,FALSE),VLOOKUP($M21,TT_Tabelle_Riferimento!$H$31:$I$50,2,FALSE))","v":5},{"$f":"+IFERROR(VLOOKUP(GS$6&\"-\"&$M21&\"_old\",Ammortamento_Finanziario!$H:$L,5,FALSE),VLOOKUP($M21,TT_Tabelle_Riferimento!$H$31:$I$50,2,FALSE))","v":5},{"$f":"+IFERROR(VLOOKUP(GT$6&\"-\"&$M21&\"_old\",Ammortamento_Finanziario!$H:$L,5,FALSE),VLOOKUP($M21,TT_Tabelle_Riferimento!$H$31:$I$50,2,FALSE))","v":5},{"$f":"+IFERROR(VLOOKUP(GU$6&\"-\"&$M21&\"_old\",Ammortamento_Finanziario!$H:$L,5,FALSE),VLOOKUP($M21,TT_Tabelle_Riferimento!$H$31:$I$50,2,FALSE))","v":5},{"$f":"+IFERROR(VLOOKUP(GV$6&\"-\"&$M21&\"_old\",Ammortamento_Finanziario!$H:$L,5,FALSE),VLOOKUP($M21,TT_Tabelle_Riferimento!$H$31:$I$50,2,FALSE))","v":5},{"$f":"+IFERROR(VLOOKUP(GW$6&\"-\"&$M21&\"_old\",Ammortamento_Finanziario!$H:$L,5,FALSE),VLOOKUP($M21,TT_Tabelle_Riferimento!$H$31:$I$50,2,FALSE))","v":5},{"$f":"+IFERROR(VLOOKUP(GX$6&\"-\"&$M21&\"_old\",Ammortamento_Finanziario!$H:$L,5,FALSE),VLOOKUP($M21,TT_Tabelle_Riferimento!$H$31:$I$50,2,FALSE))","v":5},{"$f":"+IFERROR(VLOOKUP(GY$6&\"-\"&$M21&\"_old\",Ammortamento_Finanziario!$H:$L,5,FALSE),VLOOKUP($M21,TT_Tabelle_Riferimento!$H$31:$I$50,2,FALSE))","v":5},{"$f":"+IFERROR(VLOOKUP(GZ$6&\"-\"&$M21&\"_old\",Ammortamento_Finanziario!$H:$L,5,FALSE),VLOOKUP($M21,TT_Tabelle_Riferimento!$H$31:$I$50,2,FALSE))","v":5},{"$f":"+IFERROR(VLOOKUP(HA$6&\"-\"&$M21&\"_old\",Ammortamento_Finanziario!$H:$L,5,FALSE),VLOOKUP($M21,TT_Tabelle_Riferimento!$H$31:$I$50,2,FALSE))","v":5},{"$f":"+IFERROR(VLOOKUP(HB$6&\"-\"&$M21&\"_old\",Ammortamento_Finanziario!$H:$L,5,FALSE),VLOOKUP($M21,TT_Tabelle_Riferimento!$H$31:$I$50,2,FALSE))","v":5},{"$f":"+IFERROR(VLOOKUP(HC$6&\"-\"&$M21&\"_old\",Ammortamento_Finanziario!$H:$L,5,FALSE),VLOOKUP($M21,TT_Tabelle_Riferimento!$H$31:$I$50,2,FALSE))","v":5},{"$f":"+IFERROR(VLOOKUP(HD$6&\"-\"&$M21&\"_old\",Ammortamento_Finanziario!$H:$L,5,FALSE),VLOOKUP($M21,TT_Tabelle_Riferimento!$H$31:$I$50,2,FALSE))","v":5},{"$f":"+IFERROR(VLOOKUP(HE$6&\"-\"&$M21&\"_old\",Ammortamento_Finanziario!$H:$L,5,FALSE),VLOOKUP($M21,TT_Tabelle_Riferimento!$H$31:$I$50,2,FALSE))","v":5},{"$f":"+IFERROR(VLOOKUP(HF$6&\"-\"&$M21&\"_old\",Ammortamento_Finanziario!$H:$L,5,FALSE),VLOOKUP($M21,TT_Tabelle_Riferimento!$H$31:$I$50,2,FALSE))","v":5},{"$f":"+IFERROR(VLOOKUP(HG$6&\"-\"&$M21&\"_old\",Ammortamento_Finanziario!$H:$L,5,FALSE),VLOOKUP($M21,TT_Tabelle_Riferimento!$H$31:$I$50,2,FALSE))","v":5},{"$f":"+IFERROR(VLOOKUP(HH$6&\"-\"&$M21&\"_old\",Ammortamento_Finanziario!$H:$L,5,FALSE),VLOOKUP($M21,TT_Tabelle_Riferimento!$H$31:$I$50,2,FALSE))","v":5},{"$f":"+IFERROR(VLOOKUP(HI$6&\"-\"&$M21&\"_old\",Ammortamento_Finanziario!$H:$L,5,FALSE),VLOOKUP($M21,TT_Tabelle_Riferimento!$H$31:$I$50,2,FALSE))","v":5},{"$f":"+IFERROR(VLOOKUP(HJ$6&\"-\"&$M21&\"_old\",Ammortamento_Finanziario!$H:$L,5,FALSE),VLOOKUP($M21,TT_Tabelle_Riferimento!$H$31:$I$50,2,FALSE))","v":5},{"$f":"+IFERROR(VLOOKUP(HK$6&\"-\"&$M21&\"_old\",Ammortamento_Finanziario!$H:$L,5,FALSE),VLOOKUP($M21,TT_Tabelle_Riferimento!$H$31:$I$50,2,FALSE))","v":5},{"$f":"+IFERROR(VLOOKUP(HL$6&\"-\"&$M21&\"_old\",Ammortamento_Finanziario!$H:$L,5,FALSE),VLOOKUP($M21,TT_Tabelle_Riferimento!$H$31:$I$50,2,FALSE))","v":5},{"$f":"+IFERROR(VLOOKUP(HM$6&\"-\"&$M21&\"_old\",Ammortamento_Finanziario!$H:$L,5,FALSE),VLOOKUP($M21,TT_Tabelle_Riferimento!$H$31:$I$50,2,FALSE))","v":5},{"$f":"+IFERROR(VLOOKUP(HN$6&\"-\"&$M21&\"_old\",Ammortamento_Finanziario!$H:$L,5,FALSE),VLOOKUP($M21,TT_Tabelle_Riferimento!$H$31:$I$50,2,FALSE))","v":5},{"$f":"+IFERROR(VLOOKUP(HO$6&\"-\"&$M21&\"_old\",Ammortamento_Finanziario!$H:$L,5,FALSE),VLOOKUP($M21,TT_Tabelle_Riferimento!$H$31:$I$50,2,FALSE))","v":5},{"$f":"+IFERROR(VLOOKUP(HP$6&\"-\"&$M21&\"_old\",Ammortamento_Finanziario!$H:$L,5,FALSE),VLOOKUP($M21,TT_Tabelle_Riferimento!$H$31:$I$50,2,FALSE))","v":5},{"$f":"+IFERROR(VLOOKUP(HQ$6&\"-\"&$M21&\"_old\",Ammortamento_Finanziario!$H:$L,5,FALSE),VLOOKUP($M21,TT_Tabelle_Riferimento!$H$31:$I$50,2,FALSE))","v":5},{"$f":"+IFERROR(VLOOKUP(HR$6&\"-\"&$M21&\"_old\",Ammortamento_Finanziario!$H:$L,5,FALSE),VLOOKUP($M21,TT_Tabelle_Riferimento!$H$31:$I$50,2,FALSE))","v":5},{"$f":"+IFERROR(VLOOKUP(HS$6&\"-\"&$M21&\"_old\",Ammortamento_Finanziario!$H:$L,5,FALSE),VLOOKUP($M21,TT_Tabelle_Riferimento!$H$31:$I$50,2,FALSE))","v":5},{"$f":"+IFERROR(VLOOKUP(HT$6&\"-\"&$M21&\"_old\",Ammortamento_Finanziario!$H:$L,5,FALSE),VLOOKUP($M21,TT_Tabelle_Riferimento!$H$31:$I$50,2,FALSE))","v":5},{"$f":"+IFERROR(VLOOKUP(HU$6&\"-\"&$M21&\"_old\",Ammortamento_Finanziario!$H:$L,5,FALSE),VLOOKUP($M21,TT_Tabelle_Riferimento!$H$31:$I$50,2,FALSE))","v":5},{"$f":"+IFERROR(VLOOKUP(HV$6&\"-\"&$M21&\"_old\",Ammortamento_Finanziario!$H:$L,5,FALSE),VLOOKUP($M21,TT_Tabelle_Riferimento!$H$31:$I$50,2,FALSE))","v":5},{"$f":"+IFERROR(VLOOKUP(HW$6&\"-\"&$M21&\"_old\",Ammortamento_Finanziario!$H:$L,5,FALSE),VLOOKUP($M21,TT_Tabelle_Riferimento!$H$31:$I$50,2,FALSE))","v":5},{"$f":"+IFERROR(VLOOKUP(HX$6&\"-\"&$M21&\"_old\",Ammortamento_Finanziario!$H:$L,5,FALSE),VLOOKUP($M21,TT_Tabelle_Riferimento!$H$31:$I$50,2,FALSE))","v":5},{"$f":"+IFERROR(VLOOKUP(HY$6&\"-\"&$M21&\"_old\",Ammortamento_Finanziario!$H:$L,5,FALSE),VLOOKUP($M21,TT_Tabelle_Riferimento!$H$31:$I$50,2,FALSE))","v":5},{"$f":"+IFERROR(VLOOKUP(HZ$6&\"-\"&$M21&\"_old\",Ammortamento_Finanziario!$H:$L,5,FALSE),VLOOKUP($M21,TT_Tabelle_Riferimento!$H$31:$I$50,2,FALSE))","v":5},{"$f":"+IFERROR(VLOOKUP(IA$6&\"-\"&$M21&\"_old\",Ammortamento_Finanziario!$H:$L,5,FALSE),VLOOKUP($M21,TT_Tabelle_Riferimento!$H$31:$I$50,2,FALSE))","v":5},{"$f":"+IFERROR(VLOOKUP(IB$6&\"-\"&$M21&\"_old\",Ammortamento_Finanziario!$H:$L,5,FALSE),VLOOKUP($M21,TT_Tabelle_Riferimento!$H$31:$I$50,2,FALSE))","v":5},{"$f":"+IFERROR(VLOOKUP(IC$6&\"-\"&$M21&\"_old\",Ammortamento_Finanziario!$H:$L,5,FALSE),VLOOKUP($M21,TT_Tabelle_Riferimento!$H$31:$I$50,2,FALSE))","v":5},{"$f":"+IFERROR(VLOOKUP(ID$6&\"-\"&$M21&\"_old\",Ammortamento_Finanziario!$H:$L,5,FALSE),VLOOKUP($M21,TT_Tabelle_Riferimento!$H$31:$I$50,2,FALSE))","v":5},{"$f":"+IFERROR(VLOOKUP(IE$6&\"-\"&$M21&\"_old\",Ammortamento_Finanziario!$H:$L,5,FALSE),VLOOKUP($M21,TT_Tabelle_Riferimento!$H$31:$I$50,2,FALSE))","v":5},{"$f":"+IFERROR(VLOOKUP(IF$6&\"-\"&$M21&\"_old\",Ammortamento_Finanziario!$H:$L,5,FALSE),VLOOKUP($M21,TT_Tabelle_Riferimento!$H$31:$I$50,2,FALSE))","v":5},{"$f":"+IFERROR(VLOOKUP(IG$6&\"-\"&$M21&\"_old\",Ammortamento_Finanziario!$H:$L,5,FALSE),VLOOKUP($M21,TT_Tabelle_Riferimento!$H$31:$I$50,2,FALSE))","v":5},{"$f":"+IFERROR(VLOOKUP(IH$6&\"-\"&$M21&\"_old\",Ammortamento_Finanziario!$H:$L,5,FALSE),VLOOKUP($M21,TT_Tabelle_Riferimento!$H$31:$I$50,2,FALSE))","v":5},{"$f":"+IFERROR(VLOOKUP(II$6&\"-\"&$M21&\"_old\",Ammortamento_Finanziario!$H:$L,5,FALSE),VLOOKUP($M21,TT_Tabelle_Riferimento!$H$31:$I$50,2,FALSE))","v":5},{"$f":"+IFERROR(VLOOKUP(IJ$6&\"-\"&$M21&\"_old\",Ammortamento_Finanziario!$H:$L,5,FALSE),VLOOKUP($M21,TT_Tabelle_Riferimento!$H$31:$I$50,2,FALSE))","v":5},{"$f":"+IFERROR(VLOOKUP(IK$6&\"-\"&$M21&\"_old\",Ammortamento_Finanziario!$H:$L,5,FALSE),VLOOKUP($M21,TT_Tabelle_Riferimento!$H$31:$I$50,2,FALSE))","v":5},{"$f":"+IFERROR(VLOOKUP(IL$6&\"-\"&$M21&\"_old\",Ammortamento_Finanziario!$H:$L,5,FALSE),VLOOKUP($M21,TT_Tabelle_Riferimento!$H$31:$I$50,2,FALSE))","v":5},{"$f":"+IFERROR(VLOOKUP(IM$6&\"-\"&$M21&\"_old\",Ammortamento_Finanziario!$H:$L,5,FALSE),VLOOKUP($M21,TT_Tabelle_Riferimento!$H$31:$I$50,2,FALSE))","v":5},{"$f":"+IFERROR(VLOOKUP(IN$6&\"-\"&$M21&\"_old\",Ammortamento_Finanziario!$H:$L,5,FALSE),VLOOKUP($M21,TT_Tabelle_Riferimento!$H$31:$I$50,2,FALSE))","v":5},{"$f":"+IFERROR(VLOOKUP(IO$6&\"-\"&$M21&\"_old\",Ammortamento_Finanziario!$H:$L,5,FALSE),VLOOKUP($M21,TT_Tabelle_Riferimento!$H$31:$I$50,2,FALSE))","v":5},{"$f":"+IFERROR(VLOOKUP(IP$6&\"-\"&$M21&\"_old\",Ammortamento_Finanziario!$H:$L,5,FALSE),VLOOKUP($M21,TT_Tabelle_Riferimento!$H$31:$I$50,2,FALSE))","v":5},{"$f":"+IFERROR(VLOOKUP(IQ$6&\"-\"&$M21&\"_old\",Ammortamento_Finanziario!$H:$L,5,FALSE),VLOOKUP($M21,TT_Tabelle_Riferimento!$H$31:$I$50,2,FALSE))","v":5},{"$f":"+IFERROR(VLOOKUP(IR$6&\"-\"&$M21&\"_old\",Ammortamento_Finanziario!$H:$L,5,FALSE),VLOOKUP($M21,TT_Tabelle_Riferimento!$H$31:$I$50,2,FALSE))","v":5},{"$f":"+IFERROR(VLOOKUP(IS$6&\"-\"&$M21&\"_old\",Ammortamento_Finanziario!$H:$L,5,FALSE),VLOOKUP($M21,TT_Tabelle_Riferimento!$H$31:$I$50,2,FALSE))","v":5},{"$f":"+IFERROR(VLOOKUP(IT$6&\"-\"&$M21&\"_old\",Ammortamento_Finanziario!$H:$L,5,FALSE),VLOOKUP($M21,TT_Tabelle_Riferimento!$H$31:$I$50,2,FALSE))","v":5},{"$f":"+IFERROR(VLOOKUP(IU$6&\"-\"&$M21&\"_old\",Ammortamento_Finanziario!$H:$L,5,FALSE),VLOOKUP($M21,TT_Tabelle_Riferimento!$H$31:$I$50,2,FALSE))","v":5},{"$f":"+IFERROR(VLOOKUP(IV$6&\"-\"&$M21&\"_old\",Ammortamento_Finanziario!$H:$L,5,FALSE),VLOOKUP($M21,TT_Tabelle_Riferimento!$H$31:$I$50,2,FALSE))","v":5},{"$f":"+IFERROR(VLOOKUP(IW$6&\"-\"&$M21&\"_old\",Ammortamento_Finanziario!$H:$L,5,FALSE),VLOOKUP($M21,TT_Tabelle_Riferimento!$H$31:$I$50,2,FALSE))","v":5},{"$f":"+IFERROR(VLOOKUP(IX$6&\"-\"&$M21&\"_old\",Ammortamento_Finanziario!$H:$L,5,FALSE),VLOOKUP($M21,TT_Tabelle_Riferimento!$H$31:$I$50,2,FALSE))","v":5},{"$f":"+IFERROR(VLOOKUP(IY$6&\"-\"&$M21&\"_old\",Ammortamento_Finanziario!$H:$L,5,FALSE),VLOOKUP($M21,TT_Tabelle_Riferimento!$H$31:$I$50,2,FALSE))","v":5},{"$f":"+IFERROR(VLOOKUP(IZ$6&\"-\"&$M21&\"_old\",Ammortamento_Finanziario!$H:$L,5,FALSE),VLOOKUP($M21,TT_Tabelle_Riferimento!$H$31:$I$50,2,FALSE))","v":5},{"$f":"+IFERROR(VLOOKUP(JA$6&\"-\"&$M21&\"_old\",Ammortamento_Finanziario!$H:$L,5,FALSE),VLOOKUP($M21,TT_Tabelle_Riferimento!$H$31:$I$50,2,FALSE))","v":5},{"$f":"+IFERROR(VLOOKUP(JB$6&\"-\"&$M21&\"_old\",Ammortamento_Finanziario!$H:$L,5,FALSE),VLOOKUP($M21,TT_Tabelle_Riferimento!$H$31:$I$50,2,FALSE))","v":5},{"$f":"+IFERROR(VLOOKUP(JC$6&\"-\"&$M21&\"_old\",Ammortamento_Finanziario!$H:$L,5,FALSE),VLOOKUP($M21,TT_Tabelle_Riferimento!$H$31:$I$50,2,FALSE))","v":5},{"$f":"+IFERROR(VLOOKUP(JD$6&\"-\"&$M21&\"_old\",Ammortamento_Finanziario!$H:$L,5,FALSE),VLOOKUP($M21,TT_Tabelle_Riferimento!$H$31:$I$50,2,FALSE))","v":5},{"$f":"+IFERROR(VLOOKUP(JE$6&\"-\"&$M21&\"_old\",Ammortamento_Finanziario!$H:$L,5,FALSE),VLOOKUP($M21,TT_Tabelle_Riferimento!$H$31:$I$50,2,FALSE))","v":5},{"$f":"+IFERROR(VLOOKUP(JF$6&\"-\"&$M21&\"_old\",Ammortamento_Finanziario!$H:$L,5,FALSE),VLOOKUP($M21,TT_Tabelle_Riferimento!$H$31:$I$50,2,FALSE))","v":5},{"$f":"+IFERROR(VLOOKUP(JG$6&\"-\"&$M21&\"_old\",Ammortamento_Finanziario!$H:$L,5,FALSE),VLOOKUP($M21,TT_Tabelle_Riferimento!$H$31:$I$50,2,FALSE))","v":5},{"$f":"+IFERROR(VLOOKUP(JH$6&\"-\"&$M21&\"_old\",Ammortamento_Finanziario!$H:$L,5,FALSE),VLOOKUP($M21,TT_Tabelle_Riferimento!$H$31:$I$50,2,FALSE))","v":5},{"$f":"+IFERROR(VLOOKUP(JI$6&\"-\"&$M21&\"_old\",Ammortamento_Finanziario!$H:$L,5,FALSE),VLOOKUP($M21,TT_Tabelle_Riferimento!$H$31:$I$50,2,FALSE))","v":5},{"$f":"+IFERROR(VLOOKUP(JJ$6&\"-\"&$M21&\"_old\",Ammortamento_Finanziario!$H:$L,5,FALSE),VLOOKUP($M21,TT_Tabelle_Riferimento!$H$31:$I$50,2,FALSE))","v":5},{"$f":"+IFERROR(VLOOKUP(JK$6&\"-\"&$M21&\"_old\",Ammortamento_Finanziario!$H:$L,5,FALSE),VLOOKUP($M21,TT_Tabelle_Riferimento!$H$31:$I$50,2,FALSE))","v":5},{"$f":"+IFERROR(VLOOKUP(JL$6&\"-\"&$M21&\"_old\",Ammortamento_Finanziario!$H:$L,5,FALSE),VLOOKUP($M21,TT_Tabelle_Riferimento!$H$31:$I$50,2,FALSE))","v":5},{"$f":"+IFERROR(VLOOKUP(JM$6&\"-\"&$M21&\"_old\",Ammortamento_Finanziario!$H:$L,5,FALSE),VLOOKUP($M21,TT_Tabelle_Riferimento!$H$31:$I$50,2,FALSE))","v":5},{"$f":"+IFERROR(VLOOKUP(JN$6&\"-\"&$M21&\"_old\",Ammortamento_Finanziario!$H:$L,5,FALSE),VLOOKUP($M21,TT_Tabelle_Riferimento!$H$31:$I$50,2,FALSE))","v":5},{"$f":"+IFERROR(VLOOKUP(JO$6&\"-\"&$M21&\"_old\",Ammortamento_Finanziario!$H:$L,5,FALSE),VLOOKUP($M21,TT_Tabelle_Riferimento!$H$31:$I$50,2,FALSE))","v":5},{"$f":"+IFERROR(VLOOKUP(JP$6&\"-\"&$M21&\"_old\",Ammortamento_Finanziario!$H:$L,5,FALSE),VLOOKUP($M21,TT_Tabelle_Riferimento!$H$31:$I$50,2,FALSE))","v":5},{"$f":"+IFERROR(VLOOKUP(JQ$6&\"-\"&$M21&\"_old\",Ammortamento_Finanziario!$H:$L,5,FALSE),VLOOKUP($M21,TT_Tabelle_Riferimento!$H$31:$I$50,2,FALSE))","v":5},{"$f":"+IFERROR(VLOOKUP(JR$6&\"-\"&$M21&\"_old\",Ammortamento_Finanziario!$H:$L,5,FALSE),VLOOKUP($M21,TT_Tabelle_Riferimento!$H$31:$I$50,2,FALSE))","v":5},{"$f":"+IFERROR(VLOOKUP(JS$6&\"-\"&$M21&\"_old\",Ammortamento_Finanziario!$H:$L,5,FALSE),VLOOKUP($M21,TT_Tabelle_Riferimento!$H$31:$I$50,2,FALSE))","v":5},{"$f":"+IFERROR(VLOOKUP(JT$6&\"-\"&$M21&\"_old\",Ammortamento_Finanziario!$H:$L,5,FALSE),VLOOKUP($M21,TT_Tabelle_Riferimento!$H$31:$I$50,2,FALSE))","v":5},{"$f":"+IFERROR(VLOOKUP(JU$6&\"-\"&$M21&\"_old\",Ammortamento_Finanziario!$H:$L,5,FALSE),VLOOKUP($M21,TT_Tabelle_Riferimento!$H$31:$I$50,2,FALSE))","v":5},{"$f":"+IFERROR(VLOOKUP(JV$6&\"-\"&$M21&\"_old\",Ammortamento_Finanziario!$H:$L,5,FALSE),VLOOKUP($M21,TT_Tabelle_Riferimento!$H$31:$I$50,2,FALSE))","v":5},{"$f":"+IFERROR(VLOOKUP(JW$6&\"-\"&$M21&\"_old\",Ammortamento_Finanziario!$H:$L,5,FALSE),VLOOKUP($M21,TT_Tabelle_Riferimento!$H$31:$I$50,2,FALSE))","v":5},{"$f":"+IFERROR(VLOOKUP(JX$6&\"-\"&$M21&\"_old\",Ammortamento_Finanziario!$H:$L,5,FALSE),VLOOKUP($M21,TT_Tabelle_Riferimento!$H$31:$I$50,2,FALSE))","v":5},{"$f":"+IFERROR(VLOOKUP(JY$6&\"-\"&$M21&\"_old\",Ammortamento_Finanziario!$H:$L,5,FALSE),VLOOKUP($M21,TT_Tabelle_Riferimento!$H$31:$I$50,2,FALSE))","v":5},{"$f":"+IFERROR(VLOOKUP(JZ$6&\"-\"&$M21&\"_old\",Ammortamento_Finanziario!$H:$L,5,FALSE),VLOOKUP($M21,TT_Tabelle_Riferimento!$H$31:$I$50,2,FALSE))","v":5},{"$f":"+IFERROR(VLOOKUP(KA$6&\"-\"&$M21&\"_old\",Ammortamento_Finanziario!$H:$L,5,FALSE),VLOOKUP($M21,TT_Tabelle_Riferimento!$H$31:$I$50,2,FALSE))","v":5},{"$f":"+IFERROR(VLOOKUP(KB$6&\"-\"&$M21&\"_old\",Ammortamento_Finanziario!$H:$L,5,FALSE),VLOOKUP($M21,TT_Tabelle_Riferimento!$H$31:$I$50,2,FALSE))","v":5},{"$f":"+IFERROR(VLOOKUP(KC$6&\"-\"&$M21&\"_old\",Ammortamento_Finanziario!$H:$L,5,FALSE),VLOOKUP($M21,TT_Tabelle_Riferimento!$H$31:$I$50,2,FALSE))","v":5},{"$f":"+IFERROR(VLOOKUP(KD$6&\"-\"&$M21&\"_old\",Ammortamento_Finanziario!$H:$L,5,FALSE),VLOOKUP($M21,TT_Tabelle_Riferimento!$H$31:$I$50,2,FALSE))","v":5},{"$f":"+IFERROR(VLOOKUP(KE$6&\"-\"&$M21&\"_old\",Ammortamento_Finanziario!$H:$L,5,FALSE),VLOOKUP($M21,TT_Tabelle_Riferimento!$H$31:$I$50,2,FALSE))","v":5},{"$f":"+IFERROR(VLOOKUP(KF$6&\"-\"&$M21&\"_old\",Ammortamento_Finanziario!$H:$L,5,FALSE),VLOOKUP($M21,TT_Tabelle_Riferimento!$H$31:$I$50,2,FALSE))","v":5},{"$f":"+IFERROR(VLOOKUP(KG$6&\"-\"&$M21&\"_old\",Ammortamento_Finanziario!$H:$L,5,FALSE),VLOOKUP($M21,TT_Tabelle_Riferimento!$H$31:$I$50,2,FALSE))","v":5},{"$f":"+IFERROR(VLOOKUP(KH$6&\"-\"&$M21&\"_old\",Ammortamento_Finanziario!$H:$L,5,FALSE),VLOOKUP($M21,TT_Tabelle_Riferimento!$H$31:$I$50,2,FALSE))","v":5},{"$f":"+IFERROR(VLOOKUP(KI$6&\"-\"&$M21&\"_old\",Ammortamento_Finanziario!$H:$L,5,FALSE),VLOOKUP($M21,TT_Tabelle_Riferimento!$H$31:$I$50,2,FALSE))","v":5},{"$f":"+IFERROR(VLOOKUP(KJ$6&\"-\"&$M21&\"_old\",Ammortamento_Finanziario!$H:$L,5,FALSE),VLOOKUP($M21,TT_Tabelle_Riferimento!$H$31:$I$50,2,FALSE))","v":5},{"$f":"+IFERROR(VLOOKUP(KK$6&\"-\"&$M21&\"_old\",Ammortamento_Finanziario!$H:$L,5,FALSE),VLOOKUP($M21,TT_Tabelle_Riferimento!$H$31:$I$50,2,FALSE))","v":5},{"$f":"+IFERROR(VLOOKUP(KL$6&\"-\"&$M21&\"_old\",Ammortamento_Finanziario!$H:$L,5,FALSE),VLOOKUP($M21,TT_Tabelle_Riferimento!$H$31:$I$50,2,FALSE))","v":5},{"$f":"+IFERROR(VLOOKUP(KM$6&\"-\"&$M21&\"_old\",Ammortamento_Finanziario!$H:$L,5,FALSE),VLOOKUP($M21,TT_Tabelle_Riferimento!$H$31:$I$50,2,FALSE))","v":5},{"$f":"+IFERROR(VLOOKUP(KN$6&\"-\"&$M21&\"_old\",Ammortamento_Finanziario!$H:$L,5,FALSE),VLOOKUP($M21,TT_Tabelle_Riferimento!$H$31:$I$50,2,FALSE))","v":5},{"$f":"+IFERROR(VLOOKUP(KO$6&\"-\"&$M21&\"_old\",Ammortamento_Finanziario!$H:$L,5,FALSE),VLOOKUP($M21,TT_Tabelle_Riferimento!$H$31:$I$50,2,FALSE))","v":5},{"$f":"+IFERROR(VLOOKUP(KP$6&\"-\"&$M21&\"_old\",Ammortamento_Finanziario!$H:$L,5,FALSE),VLOOKUP($M21,TT_Tabelle_Riferimento!$H$31:$I$50,2,FALSE))","v":5},{"$f":"+IFERROR(VLOOKUP(KQ$6&\"-\"&$M21&\"_old\",Ammortamento_Finanziario!$H:$L,5,FALSE),VLOOKUP($M21,TT_Tabelle_Riferimento!$H$31:$I$50,2,FALSE))","v":5},{"$f":"+IFERROR(VLOOKUP(KR$6&\"-\"&$M21&\"_old\",Ammortamento_Finanziario!$H:$L,5,FALSE),VLOOKUP($M21,TT_Tabelle_Riferimento!$H$31:$I$50,2,FALSE))","v":5},{"$f":"+IFERROR(VLOOKUP(KS$6&\"-\"&$M21&\"_old\",Ammortamento_Finanziario!$H:$L,5,FALSE),VLOOKUP($M21,TT_Tabelle_Riferimento!$H$31:$I$50,2,FALSE))","v":5},{"$f":"+IFERROR(VLOOKUP(KT$6&\"-\"&$M21&\"_old\",Ammortamento_Finanziario!$H:$L,5,FALSE),VLOOKUP($M21,TT_Tabelle_Riferimento!$H$31:$I$50,2,FALSE))","v":5},{"$f":"+IFERROR(VLOOKUP(KU$6&\"-\"&$M21&\"_old\",Ammortamento_Finanziario!$H:$L,5,FALSE),VLOOKUP($M21,TT_Tabelle_Riferimento!$H$31:$I$50,2,FALSE))","v":5},{"$f":"+IFERROR(VLOOKUP(KV$6&\"-\"&$M21&\"_old\",Ammortamento_Finanziario!$H:$L,5,FALSE),VLOOKUP($M21,TT_Tabelle_Riferimento!$H$31:$I$50,2,FALSE))","v":5},{"$f":"+IFERROR(VLOOKUP(KW$6&\"-\"&$M21&\"_old\",Ammortamento_Finanziario!$H:$L,5,FALSE),VLOOKUP($M21,TT_Tabelle_Riferimento!$H$31:$I$50,2,FALSE))","v":5},{"$f":"+IFERROR(VLOOKUP(KX$6&\"-\"&$M21&\"_old\",Ammortamento_Finanziario!$H:$L,5,FALSE),VLOOKUP($M21,TT_Tabelle_Riferimento!$H$31:$I$50,2,FALSE))","v":5},{"$f":"+IFERROR(VLOOKUP(KY$6&\"-\"&$M21&\"_old\",Ammortamento_Finanziario!$H:$L,5,FALSE),VLOOKUP($M21,TT_Tabelle_Riferimento!$H$31:$I$50,2,FALSE))","v":5},{"$f":"+IFERROR(VLOOKUP(KZ$6&\"-\"&$M21&\"_old\",Ammortamento_Finanziario!$H:$L,5,FALSE),VLOOKUP($M21,TT_Tabelle_Riferimento!$H$31:$I$50,2,FALSE))","v":5},{"$f":"+IFERROR(VLOOKUP(LA$6&\"-\"&$M21&\"_old\",Ammortamento_Finanziario!$H:$L,5,FALSE),VLOOKUP($M21,TT_Tabelle_Riferimento!$H$31:$I$50,2,FALSE))","v":5},{"$f":"+IFERROR(VLOOKUP(LB$6&\"-\"&$M21&\"_old\",Ammortamento_Finanziario!$H:$L,5,FALSE),VLOOKUP($M21,TT_Tabelle_Riferimento!$H$31:$I$50,2,FALSE))","v":5},{"$f":"+IFERROR(VLOOKUP(LC$6&\"-\"&$M21&\"_old\",Ammortamento_Finanziario!$H:$L,5,FALSE),VLOOKUP($M21,TT_Tabelle_Riferimento!$H$31:$I$50,2,FALSE))","v":5},{"$f":"+IFERROR(VLOOKUP(LD$6&\"-\"&$M21&\"_old\",Ammortamento_Finanziario!$H:$L,5,FALSE),VLOOKUP($M21,TT_Tabelle_Riferimento!$H$31:$I$50,2,FALSE))","v":5},{"$f":"+IFERROR(VLOOKUP(LE$6&\"-\"&$M21&\"_old\",Ammortamento_Finanziario!$H:$L,5,FALSE),VLOOKUP($M21,TT_Tabelle_Riferimento!$H$31:$I$50,2,FALSE))","v":5},{"$f":"+IFERROR(VLOOKUP(LF$6&\"-\"&$M21&\"_old\",Ammortamento_Finanziario!$H:$L,5,FALSE),VLOOKUP($M21,TT_Tabelle_Riferimento!$H$31:$I$50,2,FALSE))","v":5},{"$f":"+IFERROR(VLOOKUP(LG$6&\"-\"&$M21&\"_old\",Ammortamento_Finanziario!$H:$L,5,FALSE),VLOOKUP($M21,TT_Tabelle_Riferimento!$H$31:$I$50,2,FALSE))","v":5},{"$f":"+IFERROR(VLOOKUP(LH$6&\"-\"&$M21&\"_old\",Ammortamento_Finanziario!$H:$L,5,FALSE),VLOOKUP($M21,TT_Tabelle_Riferimento!$H$31:$I$50,2,FALSE))","v":5},{"$f":"+IFERROR(VLOOKUP(LI$6&\"-\"&$M21&\"_old\",Ammortamento_Finanziario!$H:$L,5,FALSE),VLOOKUP($M21,TT_Tabelle_Riferimento!$H$31:$I$50,2,FALSE))","v":5},{"$f":"+IFERROR(VLOOKUP(LJ$6&\"-\"&$M21&\"_old\",Ammortamento_Finanziario!$H:$L,5,FALSE),VLOOKUP($M21,TT_Tabelle_Riferimento!$H$31:$I$50,2,FALSE))","v":5},{"$f":"+IFERROR(VLOOKUP(LK$6&\"-\"&$M21&\"_old\",Ammortamento_Finanziario!$H:$L,5,FALSE),VLOOKUP($M21,TT_Tabelle_Riferimento!$H$31:$I$50,2,FALSE))","v":5},{"$f":"+IFERROR(VLOOKUP(LL$6&\"-\"&$M21&\"_old\",Ammortamento_Finanziario!$H:$L,5,FALSE),VLOOKUP($M21,TT_Tabelle_Riferimento!$H$31:$I$50,2,FALSE))","v":5},{"$f":"+IFERROR(VLOOKUP(LM$6&\"-\"&$M21&\"_old\",Ammortamento_Finanziario!$H:$L,5,FALSE),VLOOKUP($M21,TT_Tabelle_Riferimento!$H$31:$I$50,2,FALSE))","v":5},{"$f":"+IFERROR(VLOOKUP(LN$6&\"-\"&$M21&\"_old\",Ammortamento_Finanziario!$H:$L,5,FALSE),VLOOKUP($M21,TT_Tabelle_Riferimento!$H$31:$I$50,2,FALSE))","v":5},{"$f":"+IFERROR(VLOOKUP(LO$6&\"-\"&$M21&\"_old\",Ammortamento_Finanziario!$H:$L,5,FALSE),VLOOKUP($M21,TT_Tabelle_Riferimento!$H$31:$I$50,2,FALSE))","v":5},{"$f":"+IFERROR(VLOOKUP(LP$6&\"-\"&$M21&\"_old\",Ammortamento_Finanziario!$H:$L,5,FALSE),VLOOKUP($M21,TT_Tabelle_Riferimento!$H$31:$I$50,2,FALSE))","v":5},{"$f":"+IFERROR(VLOOKUP(LQ$6&\"-\"&$M21&\"_old\",Ammortamento_Finanziario!$H:$L,5,FALSE),VLOOKUP($M21,TT_Tabelle_Riferimento!$H$31:$I$50,2,FALSE))","v":5},{"$f":"+IFERROR(VLOOKUP(LR$6&\"-\"&$M21&\"_old\",Ammortamento_Finanziario!$H:$L,5,FALSE),VLOOKUP($M21,TT_Tabelle_Riferimento!$H$31:$I$50,2,FALSE))","v":5},{"$f":"+IFERROR(VLOOKUP(LS$6&\"-\"&$M21&\"_old\",Ammortamento_Finanziario!$H:$L,5,FALSE),VLOOKUP($M21,TT_Tabelle_Riferimento!$H$31:$I$50,2,FALSE))","v":5},{"$f":"+IFERROR(VLOOKUP(LT$6&\"-\"&$M21&\"_old\",Ammortamento_Finanziario!$H:$L,5,FALSE),VLOOKUP($M21,TT_Tabelle_Riferimento!$H$31:$I$50,2,FALSE))","v":5},{"$f":"+IFERROR(VLOOKUP(LU$6&\"-\"&$M21&\"_old\",Ammortamento_Finanziario!$H:$L,5,FALSE),VLOOKUP($M21,TT_Tabelle_Riferimento!$H$31:$I$50,2,FALSE))","v":5},{"$f":"+IFERROR(VLOOKUP(LV$6&\"-\"&$M21&\"_old\",Ammortamento_Finanziario!$H:$L,5,FALSE),VLOOKUP($M21,TT_Tabelle_Riferimento!$H$31:$I$50,2,FALSE))","v":5},{"$f":"+IFERROR(VLOOKUP(LW$6&\"-\"&$M21&\"_old\",Ammortamento_Finanziario!$H:$L,5,FALSE),VLOOKUP($M21,TT_Tabelle_Riferimento!$H$31:$I$50,2,FALSE))","v":5},{"$f":"+IFERROR(VLOOKUP(LX$6&\"-\"&$M21&\"_old\",Ammortamento_Finanziario!$H:$L,5,FALSE),VLOOKUP($M21,TT_Tabelle_Riferimento!$H$31:$I$50,2,FALSE))","v":5},{"$f":"+IFERROR(VLOOKUP(LY$6&\"-\"&$M21&\"_old\",Ammortamento_Finanziario!$H:$L,5,FALSE),VLOOKUP($M21,TT_Tabelle_Riferimento!$H$31:$I$50,2,FALSE))","v":5},{"$f":"+IFERROR(VLOOKUP(LZ$6&\"-\"&$M21&\"_old\",Ammortamento_Finanziario!$H:$L,5,FALSE),VLOOKUP($M21,TT_Tabelle_Riferimento!$H$31:$I$50,2,FALSE))","v":5},{"$f":"+IFERROR(VLOOKUP(MA$6&\"-\"&$M21&\"_old\",Ammortamento_Finanziario!$H:$L,5,FALSE),VLOOKUP($M21,TT_Tabelle_Riferimento!$H$31:$I$50,2,FALSE))","v":5},{"$f":"+IFERROR(VLOOKUP(MB$6&\"-\"&$M21&\"_old\",Ammortamento_Finanziario!$H:$L,5,FALSE),VLOOKUP($M21,TT_Tabelle_Riferimento!$H$31:$I$50,2,FALSE))","v":5},{"$f":"+IFERROR(VLOOKUP(MC$6&\"-\"&$M21&\"_old\",Ammortamento_Finanziario!$H:$L,5,FALSE),VLOOKUP($M21,TT_Tabelle_Riferimento!$H$31:$I$50,2,FALSE))","v":5},{"$f":"+IFERROR(VLOOKUP(MD$6&\"-\"&$M21&\"_old\",Ammortamento_Finanziario!$H:$L,5,FALSE),VLOOKUP($M21,TT_Tabelle_Riferimento!$H$31:$I$50,2,FALSE))","v":5},{"$f":"+IFERROR(VLOOKUP(ME$6&\"-\"&$M21&\"_old\",Ammortamento_Finanziario!$H:$L,5,FALSE),VLOOKUP($M21,TT_Tabelle_Riferimento!$H$31:$I$50,2,FALSE))","v":5},{"$f":"+IFERROR(VLOOKUP(MF$6&\"-\"&$M21&\"_old\",Ammortamento_Finanziario!$H:$L,5,FALSE),VLOOKUP($M21,TT_Tabelle_Riferimento!$H$31:$I$50,2,FALSE))","v":5},{"$f":"+IFERROR(VLOOKUP(MG$6&\"-\"&$M21&\"_old\",Ammortamento_Finanziario!$H:$L,5,FALSE),VLOOKUP($M21,TT_Tabelle_Riferimento!$H$31:$I$50,2,FALSE))","v":5},{"$f":"+IFERROR(VLOOKUP(MH$6&\"-\"&$M21&\"_old\",Ammortamento_Finanziario!$H:$L,5,FALSE),VLOOKUP($M21,TT_Tabelle_Riferimento!$H$31:$I$50,2,FALSE))","v":5},{"$f":"+IFERROR(VLOOKUP(MI$6&\"-\"&$M21&\"_old\",Ammortamento_Finanziario!$H:$L,5,FALSE),VLOOKUP($M21,TT_Tabelle_Riferimento!$H$31:$I$50,2,FALSE))","v":5},{"$f":"+IFERROR(VLOOKUP(MJ$6&\"-\"&$M21&\"_old\",Ammortamento_Finanziario!$H:$L,5,FALSE),VLOOKUP($M21,TT_Tabelle_Riferimento!$H$31:$I$50,2,FALSE))","v":5},{"$f":"+IFERROR(VLOOKUP(MK$6&\"-\"&$M21&\"_old\",Ammortamento_Finanziario!$H:$L,5,FALSE),VLOOKUP($M21,TT_Tabelle_Riferimento!$H$31:$I$50,2,FALSE))","v":5},{"$f":"+IFERROR(VLOOKUP(ML$6&\"-\"&$M21&\"_old\",Ammortamento_Finanziario!$H:$L,5,FALSE),VLOOKUP($M21,TT_Tabelle_Riferimento!$H$31:$I$50,2,FALSE))","v":5},{"$f":"+IFERROR(VLOOKUP(MM$6&\"-\"&$M21&\"_old\",Ammortamento_Finanziario!$H:$L,5,FALSE),VLOOKUP($M21,TT_Tabelle_Riferimento!$H$31:$I$50,2,FALSE))","v":5},{"$f":"+IFERROR(VLOOKUP(MN$6&\"-\"&$M21&\"_old\",Ammortamento_Finanziario!$H:$L,5,FALSE),VLOOKUP($M21,TT_Tabelle_Riferimento!$H$31:$I$50,2,FALSE))","v":5},{"$f":"+IFERROR(VLOOKUP(MO$6&\"-\"&$M21&\"_old\",Ammortamento_Finanziario!$H:$L,5,FALSE),VLOOKUP($M21,TT_Tabelle_Riferimento!$H$31:$I$50,2,FALSE))","v":5},{"$f":"+IFERROR(VLOOKUP(MP$6&\"-\"&$M21&\"_old\",Ammortamento_Finanziario!$H:$L,5,FALSE),VLOOKUP($M21,TT_Tabelle_Riferimento!$H$31:$I$50,2,FALSE))","v":5},{"$f":"+IFERROR(VLOOKUP(MQ$6&\"-\"&$M21&\"_old\",Ammortamento_Finanziario!$H:$L,5,FALSE),VLOOKUP($M21,TT_Tabelle_Riferimento!$H$31:$I$50,2,FALSE))","v":5},{"$f":"+IFERROR(VLOOKUP(MR$6&\"-\"&$M21&\"_old\",Ammortamento_Finanziario!$H:$L,5,FALSE),VLOOKUP($M21,TT_Tabelle_Riferimento!$H$31:$I$50,2,FALSE))","v":5},{"$f":"+IFERROR(VLOOKUP(MS$6&\"-\"&$M21&\"_old\",Ammortamento_Finanziario!$H:$L,5,FALSE),VLOOKUP($M21,TT_Tabelle_Riferimento!$H$31:$I$50,2,FALSE))","v":5},{"$f":"+IFERROR(VLOOKUP(MT$6&\"-\"&$M21&\"_old\",Ammortamento_Finanziario!$H:$L,5,FALSE),VLOOKUP($M21,TT_Tabelle_Riferimento!$H$31:$I$50,2,FALSE))","v":5},{"$f":"+IFERROR(VLOOKUP(MU$6&\"-\"&$M21&\"_old\",Ammortamento_Finanziario!$H:$L,5,FALSE),VLOOKUP($M21,TT_Tabelle_Riferimento!$H$31:$I$50,2,FALSE))","v":5},{"$f":"+IFERROR(VLOOKUP(MV$6&\"-\"&$M21&\"_old\",Ammortamento_Finanziario!$H:$L,5,FALSE),VLOOKUP($M21,TT_Tabelle_Riferimento!$H$31:$I$50,2,FALSE))","v":5},{"$f":"+IFERROR(VLOOKUP(MW$6&\"-\"&$M21&\"_old\",Ammortamento_Finanziario!$H:$L,5,FALSE),VLOOKUP($M21,TT_Tabelle_Riferimento!$H$31:$I$50,2,FALSE))","v":5},{"$f":"+IFERROR(VLOOKUP(MX$6&\"-\"&$M21&\"_old\",Ammortamento_Finanziario!$H:$L,5,FALSE),VLOOKUP($M21,TT_Tabelle_Riferimento!$H$31:$I$50,2,FALSE))","v":5},{"$f":"+IFERROR(VLOOKUP(MY$6&\"-\"&$M21&\"_old\",Ammortamento_Finanziario!$H:$L,5,FALSE),VLOOKUP($M21,TT_Tabelle_Riferimento!$H$31:$I$50,2,FALSE))","v":5},{"$f":"+IFERROR(VLOOKUP(MZ$6&\"-\"&$M21&\"_old\",Ammortamento_Finanziario!$H:$L,5,FALSE),VLOOKUP($M21,TT_Tabelle_Riferimento!$H$31:$I$50,2,FALSE))","v":5},{"$f":"+IFERROR(VLOOKUP(NA$6&\"-\"&$M21&\"_old\",Ammortamento_Finanziario!$H:$L,5,FALSE),VLOOKUP($M21,TT_Tabelle_Riferimento!$H$31:$I$50,2,FALSE))","v":5},{"$f":"+IFERROR(VLOOKUP(NB$6&\"-\"&$M21&\"_old\",Ammortamento_Finanziario!$H:$L,5,FALSE),VLOOKUP($M21,TT_Tabelle_Riferimento!$H$31:$I$50,2,FALSE))","v":5},{"$f":"+IFERROR(VLOOKUP(NC$6&\"-\"&$M21&\"_old\",Ammortamento_Finanziario!$H:$L,5,FALSE),VLOOKUP($M21,TT_Tabelle_Riferimento!$H$31:$I$50,2,FALSE))","v":5},{"$f":"+IFERROR(VLOOKUP(ND$6&\"-\"&$M21&\"_old\",Ammortamento_Finanziario!$H:$L,5,FALSE),VLOOKUP($M21,TT_Tabelle_Riferimento!$H$31:$I$50,2,FALSE))","v":5},{"$f":"+IFERROR(VLOOKUP(NE$6&\"-\"&$M21&\"_old\",Ammortamento_Finanziario!$H:$L,5,FALSE),VLOOKUP($M21,TT_Tabelle_Riferimento!$H$31:$I$50,2,FALSE))","v":5},{"$f":"+IFERROR(VLOOKUP(NF$6&\"-\"&$M21&\"_old\",Ammortamento_Finanziario!$H:$L,5,FALSE),VLOOKUP($M21,TT_Tabelle_Riferimento!$H$31:$I$50,2,FALSE))","v":5},{"$f":"+IFERROR(VLOOKUP(NG$6&\"-\"&$M21&\"_old\",Ammortamento_Finanziario!$H:$L,5,FALSE),VLOOKUP($M21,TT_Tabelle_Riferimento!$H$31:$I$50,2,FALSE))","v":5},{"$f":"+IFERROR(VLOOKUP(NH$6&\"-\"&$M21&\"_old\",Ammortamento_Finanziario!$H:$L,5,FALSE),VLOOKUP($M21,TT_Tabelle_Riferimento!$H$31:$I$50,2,FALSE))","v":5},{"$f":"+IFERROR(VLOOKUP(NI$6&\"-\"&$M21&\"_old\",Ammortamento_Finanziario!$H:$L,5,FALSE),VLOOKUP($M21,TT_Tabelle_Riferimento!$H$31:$I$50,2,FALSE))","v":5},{"$f":"+IFERROR(VLOOKUP(NJ$6&\"-\"&$M21&\"_old\",Ammortamento_Finanziario!$H:$L,5,FALSE),VLOOKUP($M21,TT_Tabelle_Riferimento!$H$31:$I$50,2,FALSE))","v":5},{"$f":"+IFERROR(VLOOKUP(NK$6&\"-\"&$M21&\"_old\",Ammortamento_Finanziario!$H:$L,5,FALSE),VLOOKUP($M21,TT_Tabelle_Riferimento!$H$31:$I$50,2,FALSE))","v":5},{"$f":"+IFERROR(VLOOKUP(NL$6&\"-\"&$M21&\"_old\",Ammortamento_Finanziario!$H:$L,5,FALSE),VLOOKUP($M21,TT_Tabelle_Riferimento!$H$31:$I$50,2,FALSE))","v":5},{"$f":"+IFERROR(VLOOKUP(NM$6&\"-\"&$M21&\"_old\",Ammortamento_Finanziario!$H:$L,5,FALSE),VLOOKUP($M21,TT_Tabelle_Riferimento!$H$31:$I$50,2,FALSE))","v":5},{"$f":"+IFERROR(VLOOKUP(NN$6&\"-\"&$M21&\"_old\",Ammortamento_Finanziario!$H:$L,5,FALSE),VLOOKUP($M21,TT_Tabelle_Riferimento!$H$31:$I$50,2,FALSE))","v":5},{"$f":"+IFERROR(VLOOKUP(NO$6&\"-\"&$M21&\"_old\",Ammortamento_Finanziario!$H:$L,5,FALSE),VLOOKUP($M21,TT_Tabelle_Riferimento!$H$31:$I$50,2,FALSE))","v":5},{"$f":"+IFERROR(VLOOKUP(NP$6&\"-\"&$M21&\"_old\",Ammortamento_Finanziario!$H:$L,5,FALSE),VLOOKUP($M21,TT_Tabelle_Riferimento!$H$31:$I$50,2,FALSE))","v":5},{"$f":"+IFERROR(VLOOKUP(NQ$6&\"-\"&$M21&\"_old\",Ammortamento_Finanziario!$H:$L,5,FALSE),VLOOKUP($M21,TT_Tabelle_Riferimento!$H$31:$I$50,2,FALSE))","v":5},{"$f":"+IFERROR(VLOOKUP(NR$6&\"-\"&$M21&\"_old\",Ammortamento_Finanziario!$H:$L,5,FALSE),VLOOKUP($M21,TT_Tabelle_Riferimento!$H$31:$I$50,2,FALSE))","v":5},{"$f":"+IFERROR(VLOOKUP(NS$6&\"-\"&$M21&\"_old\",Ammortamento_Finanziario!$H:$L,5,FALSE),VLOOKUP($M21,TT_Tabelle_Riferimento!$H$31:$I$50,2,FALSE))","v":5},{"$f":"+IFERROR(VLOOKUP(NT$6&\"-\"&$M21&\"_old\",Ammortamento_Finanziario!$H:$L,5,FALSE),VLOOKUP($M21,TT_Tabelle_Riferimento!$H$31:$I$50,2,FALSE))","v":5},{"$f":"+IFERROR(VLOOKUP(NU$6&\"-\"&$M21&\"_old\",Ammortamento_Finanziario!$H:$L,5,FALSE),VLOOKUP($M21,TT_Tabelle_Riferimento!$H$31:$I$50,2,FALSE))","v":5},{"$f":"+IFERROR(VLOOKUP(NV$6&\"-\"&$M21&\"_old\",Ammortamento_Finanziario!$H:$L,5,FALSE),VLOOKUP($M21,TT_Tabelle_Riferimento!$H$31:$I$50,2,FALSE))","v":5},{"$f":"+IFERROR(VLOOKUP(NW$6&\"-\"&$M21&\"_old\",Ammortamento_Finanziario!$H:$L,5,FALSE),VLOOKUP($M21,TT_Tabelle_Riferimento!$H$31:$I$50,2,FALSE))","v":5},{"$f":"+IFERROR(VLOOKUP(NX$6&\"-\"&$M21&\"_old\",Ammortamento_Finanziario!$H:$L,5,FALSE),VLOOKUP($M21,TT_Tabelle_Riferimento!$H$31:$I$50,2,FALSE))","v":5},{"$f":"+IFERROR(VLOOKUP(NY$6&\"-\"&$M21&\"_old\",Ammortamento_Finanziario!$H:$L,5,FALSE),VLOOKUP($M21,TT_Tabelle_Riferimento!$H$31:$I$50,2,FALSE))","v":5},{"$f":"+IFERROR(VLOOKUP(NZ$6&\"-\"&$M21&\"_old\",Ammortamento_Finanziario!$H:$L,5,FALSE),VLOOKUP($M21,TT_Tabelle_Riferimento!$H$31:$I$50,2,FALSE))","v":5},{"$f":"+IFERROR(VLOOKUP(OA$6&\"-\"&$M21&\"_old\",Ammortamento_Finanziario!$H:$L,5,FALSE),VLOOKUP($M21,TT_Tabelle_Riferimento!$H$31:$I$50,2,FALSE))","v":5},{"$f":"+IFERROR(VLOOKUP(OB$6&\"-\"&$M21&\"_old\",Ammortamento_Finanziario!$H:$L,5,FALSE),VLOOKUP($M21,TT_Tabelle_Riferimento!$H$31:$I$50,2,FALSE))","v":5},{"$f":"+IFERROR(VLOOKUP(OC$6&\"-\"&$M21&\"_old\",Ammortamento_Finanziario!$H:$L,5,FALSE),VLOOKUP($M21,TT_Tabelle_Riferimento!$H$31:$I$50,2,FALSE))","v":5},{"$f":"+IFERROR(VLOOKUP(OD$6&\"-\"&$M21&\"_old\",Ammortamento_Finanziario!$H:$L,5,FALSE),VLOOKUP($M21,TT_Tabelle_Riferimento!$H$31:$I$50,2,FALSE))","v":5},{"$f":"+IFERROR(VLOOKUP(OE$6&\"-\"&$M21&\"_old\",Ammortamento_Finanziario!$H:$L,5,FALSE),VLOOKUP($M21,TT_Tabelle_Riferimento!$H$31:$I$50,2,FALSE))","v":5},{"$f":"+IFERROR(VLOOKUP(OF$6&\"-\"&$M21&\"_old\",Ammortamento_Finanziario!$H:$L,5,FALSE),VLOOKUP($M21,TT_Tabelle_Riferimento!$H$31:$I$50,2,FALSE))","v":5},{"$f":"+IFERROR(VLOOKUP(OG$6&\"-\"&$M21&\"_old\",Ammortamento_Finanziario!$H:$L,5,FALSE),VLOOKUP($M21,TT_Tabelle_Riferimento!$H$31:$I$50,2,FALSE))","v":5},{"$f":"+IFERROR(VLOOKUP(OH$6&\"-\"&$M21&\"_old\",Ammortamento_Finanziario!$H:$L,5,FALSE),VLOOKUP($M21,TT_Tabelle_Riferimento!$H$31:$I$50,2,FALSE))","v":5},{"$f":"+IFERROR(VLOOKUP(OI$6&\"-\"&$M21&\"_old\",Ammortamento_Finanziario!$H:$L,5,FALSE),VLOOKUP($M21,TT_Tabelle_Riferimento!$H$31:$I$50,2,FALSE))","v":5},{"$f":"+IFERROR(VLOOKUP(OJ$6&\"-\"&$M21&\"_old\",Ammortamento_Finanziario!$H:$L,5,FALSE),VLOOKUP($M21,TT_Tabelle_Riferimento!$H$31:$I$50,2,FALSE))","v":5},{"$f":"+IFERROR(VLOOKUP(OK$6&\"-\"&$M21&\"_old\",Ammortamento_Finanziario!$H:$L,5,FALSE),VLOOKUP($M21,TT_Tabelle_Riferimento!$H$31:$I$50,2,FALSE))","v":5},{"$f":"+IFERROR(VLOOKUP(OL$6&\"-\"&$M21&\"_old\",Ammortamento_Finanziario!$H:$L,5,FALSE),VLOOKUP($M21,TT_Tabelle_Riferimento!$H$31:$I$50,2,FALSE))","v":5},{"$f":"+IFERROR(VLOOKUP(OM$6&\"-\"&$M21&\"_old\",Ammortamento_Finanziario!$H:$L,5,FALSE),VLOOKUP($M21,TT_Tabelle_Riferimento!$H$31:$I$50,2,FALSE))","v":5},{"$f":"+IFERROR(VLOOKUP(ON$6&\"-\"&$M21&\"_old\",Ammortamento_Finanziario!$H:$L,5,FALSE),VLOOKUP($M21,TT_Tabelle_Riferimento!$H$31:$I$50,2,FALSE))","v":5},{"$f":"+IFERROR(VLOOKUP(OO$6&\"-\"&$M21&\"_old\",Ammortamento_Finanziario!$H:$L,5,FALSE),VLOOKUP($M21,TT_Tabelle_Riferimento!$H$31:$I$50,2,FALSE))","v":5},{"$f":"+IFERROR(VLOOKUP(OP$6&\"-\"&$M21&\"_old\",Ammortamento_Finanziario!$H:$L,5,FALSE),VLOOKUP($M21,TT_Tabelle_Riferimento!$H$31:$I$50,2,FALSE))","v":5},{"$f":"+IFERROR(VLOOKUP(OQ$6&\"-\"&$M21&\"_old\",Ammortamento_Finanziario!$H:$L,5,FALSE),VLOOKUP($M21,TT_Tabelle_Riferimento!$H$31:$I$50,2,FALSE))","v":5},{"$f":"+IFERROR(VLOOKUP(OR$6&\"-\"&$M21&\"_old\",Ammortamento_Finanziario!$H:$L,5,FALSE),VLOOKUP($M21,TT_Tabelle_Riferimento!$H$31:$I$50,2,FALSE))","v":5},{"$f":"+IFERROR(VLOOKUP(OS$6&\"-\"&$M21&\"_old\",Ammortamento_Finanziario!$H:$L,5,FALSE),VLOOKUP($M21,TT_Tabelle_Riferimento!$H$31:$I$50,2,FALSE))","v":5},{"$f":"+IFERROR(VLOOKUP(OT$6&\"-\"&$M21&\"_old\",Ammortamento_Finanziario!$H:$L,5,FALSE),VLOOKUP($M21,TT_Tabelle_Riferimento!$H$31:$I$50,2,FALSE))","v":5},{"$f":"+IFERROR(VLOOKUP(OU$6&\"-\"&$M21&\"_old\",Ammortamento_Finanziario!$H:$L,5,FALSE),VLOOKUP($M21,TT_Tabelle_Riferimento!$H$31:$I$50,2,FALSE))","v":5},{"$f":"+IFERROR(VLOOKUP(OV$6&\"-\"&$M21&\"_old\",Ammortamento_Finanziario!$H:$L,5,FALSE),VLOOKUP($M21,TT_Tabelle_Riferimento!$H$31:$I$50,2,FALSE))","v":5},{"$f":"+IFERROR(VLOOKUP(OW$6&\"-\"&$M21&\"_old\",Ammortamento_Finanziario!$H:$L,5,FALSE),VLOOKUP($M21,TT_Tabelle_Riferimento!$H$31:$I$50,2,FALSE))","v":5},{"$f":"+IFERROR(VLOOKUP(OX$6&\"-\"&$M21&\"_old\",Ammortamento_Finanziario!$H:$L,5,FALSE),VLOOKUP($M21,TT_Tabelle_Riferimento!$H$31:$I$50,2,FALSE))","v":5},{"$f":"+IFERROR(VLOOKUP(OY$6&\"-\"&$M21&\"_old\",Ammortamento_Finanziario!$H:$L,5,FALSE),VLOOKUP($M21,TT_Tabelle_Riferimento!$H$31:$I$50,2,FALSE))","v":5},{"$f":"+IFERROR(VLOOKUP(OZ$6&\"-\"&$M21&\"_old\",Ammortamento_Finanziario!$H:$L,5,FALSE),VLOOKUP($M21,TT_Tabelle_Riferimento!$H$31:$I$50,2,FALSE))","v":5},{"$f":"+IFERROR(VLOOKUP(PA$6&\"-\"&$M21&\"_old\",Ammortamento_Finanziario!$H:$L,5,FALSE),VLOOKUP($M21,TT_Tabelle_Riferimento!$H$31:$I$50,2,FALSE))","v":5},{"$f":"+IFERROR(VLOOKUP(PB$6&\"-\"&$M21&\"_old\",Ammortamento_Finanziario!$H:$L,5,FALSE),VLOOKUP($M21,TT_Tabelle_Riferimento!$H$31:$I$50,2,FALSE))","v":5},{"$f":"+IFERROR(VLOOKUP(PC$6&\"-\"&$M21&\"_old\",Ammortamento_Finanziario!$H:$L,5,FALSE),VLOOKUP($M21,TT_Tabelle_Riferimento!$H$31:$I$50,2,FALSE))","v":5},{"$f":"+IFERROR(VLOOKUP(PD$6&\"-\"&$M21&\"_old\",Ammortamento_Finanziario!$H:$L,5,FALSE),VLOOKUP($M21,TT_Tabelle_Riferimento!$H$31:$I$50,2,FALSE))","v":5},{"$f":"+IFERROR(VLOOKUP(PE$6&\"-\"&$M21&\"_old\",Ammortamento_Finanziario!$H:$L,5,FALSE),VLOOKUP($M21,TT_Tabelle_Riferimento!$H$31:$I$50,2,FALSE))","v":5},{"$f":"+IFERROR(VLOOKUP(PF$6&\"-\"&$M21&\"_old\",Ammortamento_Finanziario!$H:$L,5,FALSE),VLOOKUP($M21,TT_Tabelle_Riferimento!$H$31:$I$50,2,FALSE))","v":5},{"$f":"+IFERROR(VLOOKUP(PG$6&\"-\"&$M21&\"_old\",Ammortamento_Finanziario!$H:$L,5,FALSE),VLOOKUP($M21,TT_Tabelle_Riferimento!$H$31:$I$50,2,FALSE))","v":5},{"$f":"+IFERROR(VLOOKUP(PH$6&\"-\"&$M21&\"_old\",Ammortamento_Finanziario!$H:$L,5,FALSE),VLOOKUP($M21,TT_Tabelle_Riferimento!$H$31:$I$50,2,FALSE))","v":5},{"$f":"+IFERROR(VLOOKUP(PI$6&\"-\"&$M21&\"_old\",Ammortamento_Finanziario!$H:$L,5,FALSE),VLOOKUP($M21,TT_Tabelle_Riferimento!$H$31:$I$50,2,FALSE))","v":5},{"$f":"+IFERROR(VLOOKUP(PJ$6&\"-\"&$M21&\"_old\",Ammortamento_Finanziario!$H:$L,5,FALSE),VLOOKUP($M21,TT_Tabelle_Riferimento!$H$31:$I$50,2,FALSE))","v":5},{"$f":"+IFERROR(VLOOKUP(PK$6&\"-\"&$M21&\"_old\",Ammortamento_Finanziario!$H:$L,5,FALSE),VLOOKUP($M21,TT_Tabelle_Riferimento!$H$31:$I$50,2,FALSE))","v":5},{"$f":"+IFERROR(VLOOKUP(PL$6&\"-\"&$M21&\"_old\",Ammortamento_Finanziario!$H:$L,5,FALSE),VLOOKUP($M21,TT_Tabelle_Riferimento!$H$31:$I$50,2,FALSE))","v":5},{"$f":"+IFERROR(VLOOKUP(PM$6&\"-\"&$M21&\"_old\",Ammortamento_Finanziario!$H:$L,5,FALSE),VLOOKUP($M21,TT_Tabelle_Riferimento!$H$31:$I$50,2,FALSE))","v":5},{"$f":"+IFERROR(VLOOKUP(PN$6&\"-\"&$M21&\"_old\",Ammortamento_Finanziario!$H:$L,5,FALSE),VLOOKUP($M21,TT_Tabelle_Riferimento!$H$31:$I$50,2,FALSE))","v":5},{"$f":"+IFERROR(VLOOKUP(PO$6&\"-\"&$M21&\"_old\",Ammortamento_Finanziario!$H:$L,5,FALSE),VLOOKUP($M21,TT_Tabelle_Riferimento!$H$31:$I$50,2,FALSE))","v":5},{"$f":"+IFERROR(VLOOKUP(PP$6&\"-\"&$M21&\"_old\",Ammortamento_Finanziario!$H:$L,5,FALSE),VLOOKUP($M21,TT_Tabelle_Riferimento!$H$31:$I$50,2,FALSE))","v":5},{"$f":"+IFERROR(VLOOKUP(PQ$6&\"-\"&$M21&\"_old\",Ammortamento_Finanziario!$H:$L,5,FALSE),VLOOKUP($M21,TT_Tabelle_Riferimento!$H$31:$I$50,2,FALSE))","v":5},{"$f":"+IFERROR(VLOOKUP(PR$6&\"-\"&$M21&\"_old\",Ammortamento_Finanziario!$H:$L,5,FALSE),VLOOKUP($M21,TT_Tabelle_Riferimento!$H$31:$I$50,2,FALSE))","v":5},{"$f":"+IFERROR(VLOOKUP(PS$6&\"-\"&$M21&\"_old\",Ammortamento_Finanziario!$H:$L,5,FALSE),VLOOKUP($M21,TT_Tabelle_Riferimento!$H$31:$I$50,2,FALSE))","v":5},{"$f":"+IFERROR(VLOOKUP(PT$6&\"-\"&$M21&\"_old\",Ammortamento_Finanziario!$H:$L,5,FALSE),VLOOKUP($M21,TT_Tabelle_Riferimento!$H$31:$I$50,2,FALSE))","v":5},{"$f":"+IFERROR(VLOOKUP(PU$6&\"-\"&$M21&\"_old\",Ammortamento_Finanziario!$H:$L,5,FALSE),VLOOKUP($M21,TT_Tabelle_Riferimento!$H$31:$I$50,2,FALSE))","v":5},{"$f":"+IFERROR(VLOOKUP(PV$6&\"-\"&$M21&\"_old\",Ammortamento_Finanziario!$H:$L,5,FALSE),VLOOKUP($M21,TT_Tabelle_Riferimento!$H$31:$I$50,2,FALSE))","v":5},{"$f":"+IFERROR(VLOOKUP(PW$6&\"-\"&$M21&\"_old\",Ammortamento_Finanziario!$H:$L,5,FALSE),VLOOKUP($M21,TT_Tabelle_Riferimento!$H$31:$I$50,2,FALSE))","v":5},{"$f":"+IFERROR(VLOOKUP(PX$6&\"-\"&$M21&\"_old\",Ammortamento_Finanziario!$H:$L,5,FALSE),VLOOKUP($M21,TT_Tabelle_Riferimento!$H$31:$I$50,2,FALSE))","v":5},{"$f":"+IFERROR(VLOOKUP(PY$6&\"-\"&$M21&\"_old\",Ammortamento_Finanziario!$H:$L,5,FALSE),VLOOKUP($M21,TT_Tabelle_Riferimento!$H$31:$I$50,2,FALSE))","v":5},{"$f":"+IFERROR(VLOOKUP(PZ$6&\"-\"&$M21&\"_old\",Ammortamento_Finanziario!$H:$L,5,FALSE),VLOOKUP($M21,TT_Tabelle_Riferimento!$H$31:$I$50,2,FALSE))","v":5},{"$f":"+IFERROR(VLOOKUP(QA$6&\"-\"&$M21&\"_old\",Ammortamento_Finanziario!$H:$L,5,FALSE),VLOOKUP($M21,TT_Tabelle_Riferimento!$H$31:$I$50,2,FALSE))","v":5},{"$f":"+IFERROR(VLOOKUP(QB$6&\"-\"&$M21&\"_old\",Ammortamento_Finanziario!$H:$L,5,FALSE),VLOOKUP($M21,TT_Tabelle_Riferimento!$H$31:$I$50,2,FALSE))","v":5},{"$f":"+IFERROR(VLOOKUP(QC$6&\"-\"&$M21&\"_old\",Ammortamento_Finanziario!$H:$L,5,FALSE),VLOOKUP($M21,TT_Tabelle_Riferimento!$H$31:$I$50,2,FALSE))","v":5},{"$f":"+IFERROR(VLOOKUP(QD$6&\"-\"&$M21&\"_old\",Ammortamento_Finanziario!$H:$L,5,FALSE),VLOOKUP($M21,TT_Tabelle_Riferimento!$H$31:$I$50,2,FALSE))","v":5},{"$f":"+IFERROR(VLOOKUP(QE$6&\"-\"&$M21&\"_old\",Ammortamento_Finanziario!$H:$L,5,FALSE),VLOOKUP($M21,TT_Tabelle_Riferimento!$H$31:$I$50,2,FALSE))","v":5},{"$f":"+IFERROR(VLOOKUP(QF$6&\"-\"&$M21&\"_old\",Ammortamento_Finanziario!$H:$L,5,FALSE),VLOOKUP($M21,TT_Tabelle_Riferimento!$H$31:$I$50,2,FALSE))","v":5},{"$f":"+IFERROR(VLOOKUP(QG$6&\"-\"&$M21&\"_old\",Ammortamento_Finanziario!$H:$L,5,FALSE),VLOOKUP($M21,TT_Tabelle_Riferimento!$H$31:$I$50,2,FALSE))","v":5},{"$f":"+IFERROR(VLOOKUP(QH$6&\"-\"&$M21&\"_old\",Ammortamento_Finanziario!$H:$L,5,FALSE),VLOOKUP($M21,TT_Tabelle_Riferimento!$H$31:$I$50,2,FALSE))","v":5},{"$f":"+IFERROR(VLOOKUP(QI$6&\"-\"&$M21&\"_old\",Ammortamento_Finanziario!$H:$L,5,FALSE),VLOOKUP($M21,TT_Tabelle_Riferimento!$H$31:$I$50,2,FALSE))","v":5},{"$f":"+IFERROR(VLOOKUP(QJ$6&\"-\"&$M21&\"_old\",Ammortamento_Finanziario!$H:$L,5,FALSE),VLOOKUP($M21,TT_Tabelle_Riferimento!$H$31:$I$50,2,FALSE))","v":5},{"$f":"+IFERROR(VLOOKUP(QK$6&\"-\"&$M21&\"_old\",Ammortamento_Finanziario!$H:$L,5,FALSE),VLOOKUP($M21,TT_Tabelle_Riferimento!$H$31:$I$50,2,FALSE))","v":5},{"$f":"+IFERROR(VLOOKUP(QL$6&\"-\"&$M21&\"_old\",Ammortamento_Finanziario!$H:$L,5,FALSE),VLOOKUP($M21,TT_Tabelle_Riferimento!$H$31:$I$50,2,FALSE))","v":5},{"$f":"+IFERROR(VLOOKUP(QM$6&\"-\"&$M21&\"_old\",Ammortamento_Finanziario!$H:$L,5,FALSE),VLOOKUP($M21,TT_Tabelle_Riferimento!$H$31:$I$50,2,FALSE))","v":5},{"$f":"+IFERROR(VLOOKUP(QN$6&\"-\"&$M21&\"_old\",Ammortamento_Finanziario!$H:$L,5,FALSE),VLOOKUP($M21,TT_Tabelle_Riferimento!$H$31:$I$50,2,FALSE))","v":5},{"$f":"+IFERROR(VLOOKUP(QO$6&\"-\"&$M21&\"_old\",Ammortamento_Finanziario!$H:$L,5,FALSE),VLOOKUP($M21,TT_Tabelle_Riferimento!$H$31:$I$50,2,FALSE))","v":5},{"$f":"+IFERROR(VLOOKUP(QP$6&\"-\"&$M21&\"_old\",Ammortamento_Finanziario!$H:$L,5,FALSE),VLOOKUP($M21,TT_Tabelle_Riferimento!$H$31:$I$50,2,FALSE))","v":5},{"$f":"+IFERROR(VLOOKUP(QQ$6&\"-\"&$M21&\"_old\",Ammortamento_Finanziario!$H:$L,5,FALSE),VLOOKUP($M21,TT_Tabelle_Riferimento!$H$31:$I$50,2,FALSE))","v":5},{"$f":"+IFERROR(VLOOKUP(QR$6&\"-\"&$M21&\"_old\",Ammortamento_Finanziario!$H:$L,5,FALSE),VLOOKUP($M21,TT_Tabelle_Riferimento!$H$31:$I$50,2,FALSE))","v":5},{"$f":"+IFERROR(VLOOKUP(QS$6&\"-\"&$M21&\"_old\",Ammortamento_Finanziario!$H:$L,5,FALSE),VLOOKUP($M21,TT_Tabelle_Riferimento!$H$31:$I$50,2,FALSE))","v":5},{"$f":"+IFERROR(VLOOKUP(QT$6&\"-\"&$M21&\"_old\",Ammortamento_Finanziario!$H:$L,5,FALSE),VLOOKUP($M21,TT_Tabelle_Riferimento!$H$31:$I$50,2,FALSE))","v":5},{"$f":"+IFERROR(VLOOKUP(QU$6&\"-\"&$M21&\"_old\",Ammortamento_Finanziario!$H:$L,5,FALSE),VLOOKUP($M21,TT_Tabelle_Riferimento!$H$31:$I$50,2,FALSE))","v":5},{"$f":"+IFERROR(VLOOKUP(QV$6&\"-\"&$M21&\"_old\",Ammortamento_Finanziario!$H:$L,5,FALSE),VLOOKUP($M21,TT_Tabelle_Riferimento!$H$31:$I$50,2,FALSE))","v":5},{"$f":"+IFERROR(VLOOKUP(QW$6&\"-\"&$M21&\"_old\",Ammortamento_Finanziario!$H:$L,5,FALSE),VLOOKUP($M21,TT_Tabelle_Riferimento!$H$31:$I$50,2,FALSE))","v":5},{"$f":"+IFERROR(VLOOKUP(QX$6&\"-\"&$M21&\"_old\",Ammortamento_Finanziario!$H:$L,5,FALSE),VLOOKUP($M21,TT_Tabelle_Riferimento!$H$31:$I$50,2,FALSE))","v":5},{"$f":"+IFERROR(VLOOKUP(QY$6&\"-\"&$M21&\"_old\",Ammortamento_Finanziario!$H:$L,5,FALSE),VLOOKUP($M21,TT_Tabelle_Riferimento!$H$31:$I$50,2,FALSE))","v":5},{"$f":"+IFERROR(VLOOKUP(QZ$6&\"-\"&$M21&\"_old\",Ammortamento_Finanziario!$H:$L,5,FALSE),VLOOKUP($M21,TT_Tabelle_Riferimento!$H$31:$I$50,2,FALSE))","v":5},{"$f":"+IFERROR(VLOOKUP(RA$6&\"-\"&$M21&\"_old\",Ammortamento_Finanziario!$H:$L,5,FALSE),VLOOKUP($M21,TT_Tabelle_Riferimento!$H$31:$I$50,2,FALSE))","v":5},{"$f":"+IFERROR(VLOOKUP(RB$6&\"-\"&$M21&\"_old\",Ammortamento_Finanziario!$H:$L,5,FALSE),VLOOKUP($M21,TT_Tabelle_Riferimento!$H$31:$I$50,2,FALSE))","v":5},{"$f":"+IFERROR(VLOOKUP(RC$6&\"-\"&$M21&\"_old\",Ammortamento_Finanziario!$H:$L,5,FALSE),VLOOKUP($M21,TT_Tabelle_Riferimento!$H$31:$I$50,2,FALSE))","v":5},{"$f":"+IFERROR(VLOOKUP(RD$6&\"-\"&$M21&\"_old\",Ammortamento_Finanziario!$H:$L,5,FALSE),VLOOKUP($M21,TT_Tabelle_Riferimento!$H$31:$I$50,2,FALSE))","v":5},{"$f":"+IFERROR(VLOOKUP(RE$6&\"-\"&$M21&\"_old\",Ammortamento_Finanziario!$H:$L,5,FALSE),VLOOKUP($M21,TT_Tabelle_Riferimento!$H$31:$I$50,2,FALSE))","v":5},{"$f":"+IFERROR(VLOOKUP(RF$6&\"-\"&$M21&\"_old\",Ammortamento_Finanziario!$H:$L,5,FALSE),VLOOKUP($M21,TT_Tabelle_Riferimento!$H$31:$I$50,2,FALSE))","v":5},{"$f":"+IFERROR(VLOOKUP(RG$6&\"-\"&$M21&\"_old\",Ammortamento_Finanziario!$H:$L,5,FALSE),VLOOKUP($M21,TT_Tabelle_Riferimento!$H$31:$I$50,2,FALSE))","v":5},{"$f":"+IFERROR(VLOOKUP(RH$6&\"-\"&$M21&\"_old\",Ammortamento_Finanziario!$H:$L,5,FALSE),VLOOKUP($M21,TT_Tabelle_Riferimento!$H$31:$I$50,2,FALSE))","v":5},{"$f":"+IFERROR(VLOOKUP(RI$6&\"-\"&$M21&\"_old\",Ammortamento_Finanziario!$H:$L,5,FALSE),VLOOKUP($M21,TT_Tabelle_Riferimento!$H$31:$I$50,2,FALSE))","v":5},{"$f":"+IFERROR(VLOOKUP(RJ$6&\"-\"&$M21&\"_old\",Ammortamento_Finanziario!$H:$L,5,FALSE),VLOOKUP($M21,TT_Tabelle_Riferimento!$H$31:$I$50,2,FALSE))","v":5},{"$f":"+IFERROR(VLOOKUP(RK$6&\"-\"&$M21&\"_old\",Ammortamento_Finanziario!$H:$L,5,FALSE),VLOOKUP($M21,TT_Tabelle_Riferimento!$H$31:$I$50,2,FALSE))","v":5},{"$f":"+IFERROR(VLOOKUP(RL$6&\"-\"&$M21&\"_old\",Ammortamento_Finanziario!$H:$L,5,FALSE),VLOOKUP($M21,TT_Tabelle_Riferimento!$H$31:$I$50,2,FALSE))","v":5},{"$f":"+IFERROR(VLOOKUP(RM$6&\"-\"&$M21&\"_old\",Ammortamento_Finanziario!$H:$L,5,FALSE),VLOOKUP($M21,TT_Tabelle_Riferimento!$H$31:$I$50,2,FALSE))","v":5},{"$f":"+IFERROR(VLOOKUP(RN$6&\"-\"&$M21&\"_old\",Ammortamento_Finanziario!$H:$L,5,FALSE),VLOOKUP($M21,TT_Tabelle_Riferimento!$H$31:$I$50,2,FALSE))","v":5},{"$f":"+IFERROR(VLOOKUP(RO$6&\"-\"&$M21&\"_old\",Ammortamento_Finanziario!$H:$L,5,FALSE),VLOOKUP($M21,TT_Tabelle_Riferimento!$H$31:$I$50,2,FALSE))","v":5},{"$f":"+IFERROR(VLOOKUP(RP$6&\"-\"&$M21&\"_old\",Ammortamento_Finanziario!$H:$L,5,FALSE),VLOOKUP($M21,TT_Tabelle_Riferimento!$H$31:$I$50,2,FALSE))","v":5},{"$f":"+IFERROR(VLOOKUP(RQ$6&\"-\"&$M21&\"_old\",Ammortamento_Finanziario!$H:$L,5,FALSE),VLOOKUP($M21,TT_Tabelle_Riferimento!$H$31:$I$50,2,FALSE))","v":5},{"$f":"+IFERROR(VLOOKUP(RR$6&\"-\"&$M21&\"_old\",Ammortamento_Finanziario!$H:$L,5,FALSE),VLOOKUP($M21,TT_Tabelle_Riferimento!$H$31:$I$50,2,FALSE))","v":5},{"$f":"+IFERROR(VLOOKUP(RS$6&\"-\"&$M21&\"_old\",Ammortamento_Finanziario!$H:$L,5,FALSE),VLOOKUP($M21,TT_Tabelle_Riferimento!$H$31:$I$50,2,FALSE))","v":5},{"$f":"+IFERROR(VLOOKUP(RT$6&\"-\"&$M21&\"_old\",Ammortamento_Finanziario!$H:$L,5,FALSE),VLOOKUP($M21,TT_Tabelle_Riferimento!$H$31:$I$50,2,FALSE))","v":5},{"$f":"+IFERROR(VLOOKUP(RU$6&\"-\"&$M21&\"_old\",Ammortamento_Finanziario!$H:$L,5,FALSE),VLOOKUP($M21,TT_Tabelle_Riferimento!$H$31:$I$50,2,FALSE))","v":5},{"$f":"+IFERROR(VLOOKUP(RV$6&\"-\"&$M21&\"_old\",Ammortamento_Finanziario!$H:$L,5,FALSE),VLOOKUP($M21,TT_Tabelle_Riferimento!$H$31:$I$50,2,FALSE))","v":5}]
[null,null,null,"CFP",{"$f":"+SUMIFS(IMN_gestore!U:U,IMN_gestore!$E:$E,\">=\"&2012,IMN_gestore!$E:$E,\"<=\"&2022)","v":0},{"$f":"+SUMIFS(IMN_gestore!AF:AF,IMN_gestore!$E:$E,\">=\"&2012,IMN_gestore!$E:$E,\"<=\"&2023)","v":0},{"$f":"+SUMIFS(IMN_gestore!AQ:AQ,IMN_gestore!$E:$E,\">=\"&2012,IMN_gestore!$E:$E,\"<=\"&2024)","v":0},{"$f":"+SUMIFS(IMN_gestore!BB:BB,IMN_gestore!$E:$E,\">=\"&2012,IMN_gestore!$E:$E,\"<=\"&2025)","v":0},{"$f":"+SUMIFS(IMN_gestore!$BM:$BM,IMN_gestore!$E:$E,\">=\"&2012,IMN_gestore!$E:$E,\"<=\"&2026)","v":0},{"$f":"+SUMIFS(IMN_gestore!$BX:$BX,IMN_gestore!$E:$E,\">=\"&2012,IMN_gestore!$E:$E,\"<=\"&2027)","v":0},null,null,16,{"$f":"+IFERROR(VLOOKUP(N$6&\"-\"&$M22&\"_old\",Ammortamento_Finanziario!$H:$L,5,FALSE),VLOOKUP($M22,TT_Tabelle_Riferimento!$H$31:$I$50,2,FALSE))","v":7},{"$f":"+IFERROR(VLOOKUP(O$6&\"-\"&$M22&\"_old\",Ammortamento_Finanziario!$H:$L,5,FALSE),VLOOKUP($M22,TT_Tabelle_Riferimento!$H$31:$I$50,2,FALSE))","v":7},{"$f":"+IFERROR(VLOOKUP(P$6&\"-\"&$M22&\"_old\",Ammortamento_Finanziario!$H:$L,5,FALSE),VLOOKUP($M22,TT_Tabelle_Riferimento!$H$31:$I$50,2,FALSE))","v":7},{"$f":"+IFERROR(VLOOKUP(Q$6&\"-\"&$M22&\"_old\",Ammortamento_Finanziario!$H:$L,5,FALSE),VLOOKUP($M22,TT_Tabelle_Riferimento!$H$31:$I$50,2,FALSE))","v":7},{"$f":"+IFERROR(VLOOKUP(R$6&\"-\"&$M22&\"_old\",Ammortamento_Finanziario!$H:$L,5,FALSE),VLOOKUP($M22,TT_Tabelle_Riferimento!$H$31:$I$50,2,FALSE))","v":7},{"$f":"+IFERROR(VLOOKUP(S$6&\"-\"&$M22&\"_old\",Ammortamento_Finanziario!$H:$L,5,FALSE),VLOOKUP($M22,TT_Tabelle_Riferimento!$H$31:$I$50,2,FALSE))","v":7},{"$f":"+IFERROR(VLOOKUP(T$6&\"-\"&$M22&\"_old\",Ammortamento_Finanziario!$H:$L,5,FALSE),VLOOKUP($M22,TT_Tabelle_Riferimento!$H$31:$I$50,2,FALSE))","v":7},{"$f":"+IFERROR(VLOOKUP(U$6&\"-\"&$M22&\"_old\",Ammortamento_Finanziario!$H:$L,5,FALSE),VLOOKUP($M22,TT_Tabelle_Riferimento!$H$31:$I$50,2,FALSE))","v":7},{"$f":"+IFERROR(VLOOKUP(V$6&\"-\"&$M22&\"_old\",Ammortamento_Finanziario!$H:$L,5,FALSE),VLOOKUP($M22,TT_Tabelle_Riferimento!$H$31:$I$50,2,FALSE))","v":7},{"$f":"+IFERROR(VLOOKUP(W$6&\"-\"&$M22&\"_old\",Ammortamento_Finanziario!$H:$L,5,FALSE),VLOOKUP($M22,TT_Tabelle_Riferimento!$H$31:$I$50,2,FALSE))","v":7},{"$f":"+IFERROR(VLOOKUP(X$6&\"-\"&$M22&\"_old\",Ammortamento_Finanziario!$H:$L,5,FALSE),VLOOKUP($M22,TT_Tabelle_Riferimento!$H$31:$I$50,2,FALSE))","v":7},{"$f":"+IFERROR(VLOOKUP(Y$6&\"-\"&$M22&\"_old\",Ammortamento_Finanziario!$H:$L,5,FALSE),VLOOKUP($M22,TT_Tabelle_Riferimento!$H$31:$I$50,2,FALSE))","v":7},{"$f":"+IFERROR(VLOOKUP(Z$6&\"-\"&$M22&\"_old\",Ammortamento_Finanziario!$H:$L,5,FALSE),VLOOKUP($M22,TT_Tabelle_Riferimento!$H$31:$I$50,2,FALSE))","v":7},{"$f":"+IFERROR(VLOOKUP(AA$6&\"-\"&$M22&\"_old\",Ammortamento_Finanziario!$H:$L,5,FALSE),VLOOKUP($M22,TT_Tabelle_Riferimento!$H$31:$I$50,2,FALSE))","v":7},{"$f":"+IFERROR(VLOOKUP(AB$6&\"-\"&$M22&\"_old\",Ammortamento_Finanziario!$H:$L,5,FALSE),VLOOKUP($M22,TT_Tabelle_Riferimento!$H$31:$I$50,2,FALSE))","v":7},{"$f":"+IFERROR(VLOOKUP(AC$6&\"-\"&$M22&\"_old\",Ammortamento_Finanziario!$H:$L,5,FALSE),VLOOKUP($M22,TT_Tabelle_Riferimento!$H$31:$I$50,2,FALSE))","v":7},{"$f":"+IFERROR(VLOOKUP(AD$6&\"-\"&$M22&\"_old\",Ammortamento_Finanziario!$H:$L,5,FALSE),VLOOKUP($M22,TT_Tabelle_Riferimento!$H$31:$I$50,2,FALSE))","v":7},{"$f":"+IFERROR(VLOOKUP(AE$6&\"-\"&$M22&\"_old\",Ammortamento_Finanziario!$H:$L,5,FALSE),VLOOKUP($M22,TT_Tabelle_Riferimento!$H$31:$I$50,2,FALSE))","v":7},{"$f":"+IFERROR(VLOOKUP(AF$6&\"-\"&$M22&\"_old\",Ammortamento_Finanziario!$H:$L,5,FALSE),VLOOKUP($M22,TT_Tabelle_Riferimento!$H$31:$I$50,2,FALSE))","v":7},{"$f":"+IFERROR(VLOOKUP(AG$6&\"-\"&$M22&\"_old\",Ammortamento_Finanziario!$H:$L,5,FALSE),VLOOKUP($M22,TT_Tabelle_Riferimento!$H$31:$I$50,2,FALSE))","v":7},{"$f":"+IFERROR(VLOOKUP(AH$6&\"-\"&$M22&\"_old\",Ammortamento_Finanziario!$H:$L,5,FALSE),VLOOKUP($M22,TT_Tabelle_Riferimento!$H$31:$I$50,2,FALSE))","v":7},{"$f":"+IFERROR(VLOOKUP(AI$6&\"-\"&$M22&\"_old\",Ammortamento_Finanziario!$H:$L,5,FALSE),VLOOKUP($M22,TT_Tabelle_Riferimento!$H$31:$I$50,2,FALSE))","v":7},{"$f":"+IFERROR(VLOOKUP(AJ$6&\"-\"&$M22&\"_old\",Ammortamento_Finanziario!$H:$L,5,FALSE),VLOOKUP($M22,TT_Tabelle_Riferimento!$H$31:$I$50,2,FALSE))","v":7},{"$f":"+IFERROR(VLOOKUP(AK$6&\"-\"&$M22&\"_old\",Ammortamento_Finanziario!$H:$L,5,FALSE),VLOOKUP($M22,TT_Tabelle_Riferimento!$H$31:$I$50,2,FALSE))","v":7},{"$f":"+IFERROR(VLOOKUP(AL$6&\"-\"&$M22&\"_old\",Ammortamento_Finanziario!$H:$L,5,FALSE),VLOOKUP($M22,TT_Tabelle_Riferimento!$H$31:$I$50,2,FALSE))","v":7},{"$f":"+IFERROR(VLOOKUP(AM$6&\"-\"&$M22&\"_old\",Ammortamento_Finanziario!$H:$L,5,FALSE),VLOOKUP($M22,TT_Tabelle_Riferimento!$H$31:$I$50,2,FALSE))","v":7},{"$f":"+IFERROR(VLOOKUP(AN$6&\"-\"&$M22&\"_old\",Ammortamento_Finanziario!$H:$L,5,FALSE),VLOOKUP($M22,TT_Tabelle_Riferimento!$H$31:$I$50,2,FALSE))","v":7},{"$f":"+IFERROR(VLOOKUP(AO$6&\"-\"&$M22&\"_old\",Ammortamento_Finanziario!$H:$L,5,FALSE),VLOOKUP($M22,TT_Tabelle_Riferimento!$H$31:$I$50,2,FALSE))","v":7},{"$f":"+IFERROR(VLOOKUP(AP$6&\"-\"&$M22&\"_old\",Ammortamento_Finanziario!$H:$L,5,FALSE),VLOOKUP($M22,TT_Tabelle_Riferimento!$H$31:$I$50,2,FALSE))","v":7},{"$f":"+IFERROR(VLOOKUP(AQ$6&\"-\"&$M22&\"_old\",Ammortamento_Finanziario!$H:$L,5,FALSE),VLOOKUP($M22,TT_Tabelle_Riferimento!$H$31:$I$50,2,FALSE))","v":7},{"$f":"+IFERROR(VLOOKUP(AR$6&\"-\"&$M22&\"_old\",Ammortamento_Finanziario!$H:$L,5,FALSE),VLOOKUP($M22,TT_Tabelle_Riferimento!$H$31:$I$50,2,FALSE))","v":7},{"$f":"+IFERROR(VLOOKUP(AS$6&\"-\"&$M22&\"_old\",Ammortamento_Finanziario!$H:$L,5,FALSE),VLOOKUP($M22,TT_Tabelle_Riferimento!$H$31:$I$50,2,FALSE))","v":7},{"$f":"+IFERROR(VLOOKUP(AT$6&\"-\"&$M22&\"_old\",Ammortamento_Finanziario!$H:$L,5,FALSE),VLOOKUP($M22,TT_Tabelle_Riferimento!$H$31:$I$50,2,FALSE))","v":7},{"$f":"+IFERROR(VLOOKUP(AU$6&\"-\"&$M22&\"_old\",Ammortamento_Finanziario!$H:$L,5,FALSE),VLOOKUP($M22,TT_Tabelle_Riferimento!$H$31:$I$50,2,FALSE))","v":7},{"$f":"+IFERROR(VLOOKUP(AV$6&\"-\"&$M22&\"_old\",Ammortamento_Finanziario!$H:$L,5,FALSE),VLOOKUP($M22,TT_Tabelle_Riferimento!$H$31:$I$50,2,FALSE))","v":7},{"$f":"+IFERROR(VLOOKUP(AW$6&\"-\"&$M22&\"_old\",Ammortamento_Finanziario!$H:$L,5,FALSE),VLOOKUP($M22,TT_Tabelle_Riferimento!$H$31:$I$50,2,FALSE))","v":7},{"$f":"+IFERROR(VLOOKUP(AX$6&\"-\"&$M22&\"_old\",Ammortamento_Finanziario!$H:$L,5,FALSE),VLOOKUP($M22,TT_Tabelle_Riferimento!$H$31:$I$50,2,FALSE))","v":7},{"$f":"+IFERROR(VLOOKUP(AY$6&\"-\"&$M22&\"_old\",Ammortamento_Finanziario!$H:$L,5,FALSE),VLOOKUP($M22,TT_Tabelle_Riferimento!$H$31:$I$50,2,FALSE))","v":7},{"$f":"+IFERROR(VLOOKUP(AZ$6&\"-\"&$M22&\"_old\",Ammortamento_Finanziario!$H:$L,5,FALSE),VLOOKUP($M22,TT_Tabelle_Riferimento!$H$31:$I$50,2,FALSE))","v":7},{"$f":"+IFERROR(VLOOKUP(BA$6&\"-\"&$M22&\"_old\",Ammortamento_Finanziario!$H:$L,5,FALSE),VLOOKUP($M22,TT_Tabelle_Riferimento!$H$31:$I$50,2,FALSE))","v":7},{"$f":"+IFERROR(VLOOKUP(BB$6&\"-\"&$M22&\"_old\",Ammortamento_Finanziario!$H:$L,5,FALSE),VLOOKUP($M22,TT_Tabelle_Riferimento!$H$31:$I$50,2,FALSE))","v":7},{"$f":"+IFERROR(VLOOKUP(BC$6&\"-\"&$M22&\"_old\",Ammortamento_Finanziario!$H:$L,5,FALSE),VLOOKUP($M22,TT_Tabelle_Riferimento!$H$31:$I$50,2,FALSE))","v":7},{"$f":"+IFERROR(VLOOKUP(BD$6&\"-\"&$M22&\"_old\",Ammortamento_Finanziario!$H:$L,5,FALSE),VLOOKUP($M22,TT_Tabelle_Riferimento!$H$31:$I$50,2,FALSE))","v":7},{"$f":"+IFERROR(VLOOKUP(BE$6&\"-\"&$M22&\"_old\",Ammortamento_Finanziario!$H:$L,5,FALSE),VLOOKUP($M22,TT_Tabelle_Riferimento!$H$31:$I$50,2,FALSE))","v":7},{"$f":"+IFERROR(VLOOKUP(BF$6&\"-\"&$M22&\"_old\",Ammortamento_Finanziario!$H:$L,5,FALSE),VLOOKUP($M22,TT_Tabelle_Riferimento!$H$31:$I$50,2,FALSE))","v":7},{"$f":"+IFERROR(VLOOKUP(BG$6&\"-\"&$M22&\"_old\",Ammortamento_Finanziario!$H:$L,5,FALSE),VLOOKUP($M22,TT_Tabelle_Riferimento!$H$31:$I$50,2,FALSE))","v":7},{"$f":"+IFERROR(VLOOKUP(BH$6&\"-\"&$M22&\"_old\",Ammortamento_Finanziario!$H:$L,5,FALSE),VLOOKUP($M22,TT_Tabelle_Riferimento!$H$31:$I$50,2,FALSE))","v":7},{"$f":"+IFERROR(VLOOKUP(BI$6&\"-\"&$M22&\"_old\",Ammortamento_Finanziario!$H:$L,5,FALSE),VLOOKUP($M22,TT_Tabelle_Riferimento!$H$31:$I$50,2,FALSE))","v":7},{"$f":"+IFERROR(VLOOKUP(BJ$6&\"-\"&$M22&\"_old\",Ammortamento_Finanziario!$H:$L,5,FALSE),VLOOKUP($M22,TT_Tabelle_Riferimento!$H$31:$I$50,2,FALSE))","v":7},{"$f":"+IFERROR(VLOOKUP(BK$6&\"-\"&$M22&\"_old\",Ammortamento_Finanziario!$H:$L,5,FALSE),VLOOKUP($M22,TT_Tabelle_Riferimento!$H$31:$I$50,2,FALSE))","v":7},{"$f":"+IFERROR(VLOOKUP(BL$6&\"-\"&$M22&\"_old\",Ammortamento_Finanziario!$H:$L,5,FALSE),VLOOKUP($M22,TT_Tabelle_Riferimento!$H$31:$I$50,2,FALSE))","v":7},{"$f":"+IFERROR(VLOOKUP(BM$6&\"-\"&$M22&\"_old\",Ammortamento_Finanziario!$H:$L,5,FALSE),VLOOKUP($M22,TT_Tabelle_Riferimento!$H$31:$I$50,2,FALSE))","v":7},{"$f":"+IFERROR(VLOOKUP(BN$6&\"-\"&$M22&\"_old\",Ammortamento_Finanziario!$H:$L,5,FALSE),VLOOKUP($M22,TT_Tabelle_Riferimento!$H$31:$I$50,2,FALSE))","v":7},{"$f":"+IFERROR(VLOOKUP(BO$6&\"-\"&$M22&\"_old\",Ammortamento_Finanziario!$H:$L,5,FALSE),VLOOKUP($M22,TT_Tabelle_Riferimento!$H$31:$I$50,2,FALSE))","v":7},{"$f":"+IFERROR(VLOOKUP(BP$6&\"-\"&$M22&\"_old\",Ammortamento_Finanziario!$H:$L,5,FALSE),VLOOKUP($M22,TT_Tabelle_Riferimento!$H$31:$I$50,2,FALSE))","v":7},{"$f":"+IFERROR(VLOOKUP(BQ$6&\"-\"&$M22&\"_old\",Ammortamento_Finanziario!$H:$L,5,FALSE),VLOOKUP($M22,TT_Tabelle_Riferimento!$H$31:$I$50,2,FALSE))","v":7},{"$f":"+IFERROR(VLOOKUP(BR$6&\"-\"&$M22&\"_old\",Ammortamento_Finanziario!$H:$L,5,FALSE),VLOOKUP($M22,TT_Tabelle_Riferimento!$H$31:$I$50,2,FALSE))","v":7},{"$f":"+IFERROR(VLOOKUP(BS$6&\"-\"&$M22&\"_old\",Ammortamento_Finanziario!$H:$L,5,FALSE),VLOOKUP($M22,TT_Tabelle_Riferimento!$H$31:$I$50,2,FALSE))","v":7},{"$f":"+IFERROR(VLOOKUP(BT$6&\"-\"&$M22&\"_old\",Ammortamento_Finanziario!$H:$L,5,FALSE),VLOOKUP($M22,TT_Tabelle_Riferimento!$H$31:$I$50,2,FALSE))","v":7},{"$f":"+IFERROR(VLOOKUP(BU$6&\"-\"&$M22&\"_old\",Ammortamento_Finanziario!$H:$L,5,FALSE),VLOOKUP($M22,TT_Tabelle_Riferimento!$H$31:$I$50,2,FALSE))","v":7},{"$f":"+IFERROR(VLOOKUP(BV$6&\"-\"&$M22&\"_old\",Ammortamento_Finanziario!$H:$L,5,FALSE),VLOOKUP($M22,TT_Tabelle_Riferimento!$H$31:$I$50,2,FALSE))","v":7},{"$f":"+IFERROR(VLOOKUP(BW$6&\"-\"&$M22&\"_old\",Ammortamento_Finanziario!$H:$L,5,FALSE),VLOOKUP($M22,TT_Tabelle_Riferimento!$H$31:$I$50,2,FALSE))","v":7},{"$f":"+IFERROR(VLOOKUP(BX$6&\"-\"&$M22&\"_old\",Ammortamento_Finanziario!$H:$L,5,FALSE),VLOOKUP($M22,TT_Tabelle_Riferimento!$H$31:$I$50,2,FALSE))","v":7},{"$f":"+IFERROR(VLOOKUP(BY$6&\"-\"&$M22&\"_old\",Ammortamento_Finanziario!$H:$L,5,FALSE),VLOOKUP($M22,TT_Tabelle_Riferimento!$H$31:$I$50,2,FALSE))","v":7},{"$f":"+IFERROR(VLOOKUP(BZ$6&\"-\"&$M22&\"_old\",Ammortamento_Finanziario!$H:$L,5,FALSE),VLOOKUP($M22,TT_Tabelle_Riferimento!$H$31:$I$50,2,FALSE))","v":7},{"$f":"+IFERROR(VLOOKUP(CA$6&\"-\"&$M22&\"_old\",Ammortamento_Finanziario!$H:$L,5,FALSE),VLOOKUP($M22,TT_Tabelle_Riferimento!$H$31:$I$50,2,FALSE))","v":7},{"$f":"+IFERROR(VLOOKUP(CB$6&\"-\"&$M22&\"_old\",Ammortamento_Finanziario!$H:$L,5,FALSE),VLOOKUP($M22,TT_Tabelle_Riferimento!$H$31:$I$50,2,FALSE))","v":7},{"$f":"+IFERROR(VLOOKUP(CC$6&\"-\"&$M22&\"_old\",Ammortamento_Finanziario!$H:$L,5,FALSE),VLOOKUP($M22,TT_Tabelle_Riferimento!$H$31:$I$50,2,FALSE))","v":7},{"$f":"+IFERROR(VLOOKUP(CD$6&\"-\"&$M22&\"_old\",Ammortamento_Finanziario!$H:$L,5,FALSE),VLOOKUP($M22,TT_Tabelle_Riferimento!$H$31:$I$50,2,FALSE))","v":7},{"$f":"+IFERROR(VLOOKUP(CE$6&\"-\"&$M22&\"_old\",Ammortamento_Finanziario!$H:$L,5,FALSE),VLOOKUP($M22,TT_Tabelle_Riferimento!$H$31:$I$50,2,FALSE))","v":7},{"$f":"+IFERROR(VLOOKUP(CF$6&\"-\"&$M22&\"_old\",Ammortamento_Finanziario!$H:$L,5,FALSE),VLOOKUP($M22,TT_Tabelle_Riferimento!$H$31:$I$50,2,FALSE))","v":7},{"$f":"+IFERROR(VLOOKUP(CG$6&\"-\"&$M22&\"_old\",Ammortamento_Finanziario!$H:$L,5,FALSE),VLOOKUP($M22,TT_Tabelle_Riferimento!$H$31:$I$50,2,FALSE))","v":7},{"$f":"+IFERROR(VLOOKUP(CH$6&\"-\"&$M22&\"_old\",Ammortamento_Finanziario!$H:$L,5,FALSE),VLOOKUP($M22,TT_Tabelle_Riferimento!$H$31:$I$50,2,FALSE))","v":7},{"$f":"+IFERROR(VLOOKUP(CI$6&\"-\"&$M22&\"_old\",Ammortamento_Finanziario!$H:$L,5,FALSE),VLOOKUP($M22,TT_Tabelle_Riferimento!$H$31:$I$50,2,FALSE))","v":7},{"$f":"+IFERROR(VLOOKUP(CJ$6&\"-\"&$M22&\"_old\",Ammortamento_Finanziario!$H:$L,5,FALSE),VLOOKUP($M22,TT_Tabelle_Riferimento!$H$31:$I$50,2,FALSE))","v":7},{"$f":"+IFERROR(VLOOKUP(CK$6&\"-\"&$M22&\"_old\",Ammortamento_Finanziario!$H:$L,5,FALSE),VLOOKUP($M22,TT_Tabelle_Riferimento!$H$31:$I$50,2,FALSE))","v":7},{"$f":"+IFERROR(VLOOKUP(CL$6&\"-\"&$M22&\"_old\",Ammortamento_Finanziario!$H:$L,5,FALSE),VLOOKUP($M22,TT_Tabelle_Riferimento!$H$31:$I$50,2,FALSE))","v":7},{"$f":"+IFERROR(VLOOKUP(CM$6&\"-\"&$M22&\"_old\",Ammortamento_Finanziario!$H:$L,5,FALSE),VLOOKUP($M22,TT_Tabelle_Riferimento!$H$31:$I$50,2,FALSE))","v":7},{"$f":"+IFERROR(VLOOKUP(CN$6&\"-\"&$M22&\"_old\",Ammortamento_Finanziario!$H:$L,5,FALSE),VLOOKUP($M22,TT_Tabelle_Riferimento!$H$31:$I$50,2,FALSE))","v":7},{"$f":"+IFERROR(VLOOKUP(CO$6&\"-\"&$M22&\"_old\",Ammortamento_Finanziario!$H:$L,5,FALSE),VLOOKUP($M22,TT_Tabelle_Riferimento!$H$31:$I$50,2,FALSE))","v":7},{"$f":"+IFERROR(VLOOKUP(CP$6&\"-\"&$M22&\"_old\",Ammortamento_Finanziario!$H:$L,5,FALSE),VLOOKUP($M22,TT_Tabelle_Riferimento!$H$31:$I$50,2,FALSE))","v":7},{"$f":"+IFERROR(VLOOKUP(CQ$6&\"-\"&$M22&\"_old\",Ammortamento_Finanziario!$H:$L,5,FALSE),VLOOKUP($M22,TT_Tabelle_Riferimento!$H$31:$I$50,2,FALSE))","v":7},{"$f":"+IFERROR(VLOOKUP(CR$6&\"-\"&$M22&\"_old\",Ammortamento_Finanziario!$H:$L,5,FALSE),VLOOKUP($M22,TT_Tabelle_Riferimento!$H$31:$I$50,2,FALSE))","v":7},{"$f":"+IFERROR(VLOOKUP(CS$6&\"-\"&$M22&\"_old\",Ammortamento_Finanziario!$H:$L,5,FALSE),VLOOKUP($M22,TT_Tabelle_Riferimento!$H$31:$I$50,2,FALSE))","v":7},{"$f":"+IFERROR(VLOOKUP(CT$6&\"-\"&$M22&\"_old\",Ammortamento_Finanziario!$H:$L,5,FALSE),VLOOKUP($M22,TT_Tabelle_Riferimento!$H$31:$I$50,2,FALSE))","v":7},{"$f":"+IFERROR(VLOOKUP(CU$6&\"-\"&$M22&\"_old\",Ammortamento_Finanziario!$H:$L,5,FALSE),VLOOKUP($M22,TT_Tabelle_Riferimento!$H$31:$I$50,2,FALSE))","v":7},{"$f":"+IFERROR(VLOOKUP(CV$6&\"-\"&$M22&\"_old\",Ammortamento_Finanziario!$H:$L,5,FALSE),VLOOKUP($M22,TT_Tabelle_Riferimento!$H$31:$I$50,2,FALSE))","v":7},{"$f":"+IFERROR(VLOOKUP(CW$6&\"-\"&$M22&\"_old\",Ammortamento_Finanziario!$H:$L,5,FALSE),VLOOKUP($M22,TT_Tabelle_Riferimento!$H$31:$I$50,2,FALSE))","v":7},{"$f":"+IFERROR(VLOOKUP(CX$6&\"-\"&$M22&\"_old\",Ammortamento_Finanziario!$H:$L,5,FALSE),VLOOKUP($M22,TT_Tabelle_Riferimento!$H$31:$I$50,2,FALSE))","v":7},{"$f":"+IFERROR(VLOOKUP(CY$6&\"-\"&$M22&\"_old\",Ammortamento_Finanziario!$H:$L,5,FALSE),VLOOKUP($M22,TT_Tabelle_Riferimento!$H$31:$I$50,2,FALSE))","v":7},{"$f":"+IFERROR(VLOOKUP(CZ$6&\"-\"&$M22&\"_old\",Ammortamento_Finanziario!$H:$L,5,FALSE),VLOOKUP($M22,TT_Tabelle_Riferimento!$H$31:$I$50,2,FALSE))","v":7},{"$f":"+IFERROR(VLOOKUP(DA$6&\"-\"&$M22&\"_old\",Ammortamento_Finanziario!$H:$L,5,FALSE),VLOOKUP($M22,TT_Tabelle_Riferimento!$H$31:$I$50,2,FALSE))","v":7},{"$f":"+IFERROR(VLOOKUP(DB$6&\"-\"&$M22&\"_old\",Ammortamento_Finanziario!$H:$L,5,FALSE),VLOOKUP($M22,TT_Tabelle_Riferimento!$H$31:$I$50,2,FALSE))","v":7},{"$f":"+IFERROR(VLOOKUP(DC$6&\"-\"&$M22&\"_old\",Ammortamento_Finanziario!$H:$L,5,FALSE),VLOOKUP($M22,TT_Tabelle_Riferimento!$H$31:$I$50,2,FALSE))","v":7},{"$f":"+IFERROR(VLOOKUP(DD$6&\"-\"&$M22&\"_old\",Ammortamento_Finanziario!$H:$L,5,FALSE),VLOOKUP($M22,TT_Tabelle_Riferimento!$H$31:$I$50,2,FALSE))","v":7},{"$f":"+IFERROR(VLOOKUP(DE$6&\"-\"&$M22&\"_old\",Ammortamento_Finanziario!$H:$L,5,FALSE),VLOOKUP($M22,TT_Tabelle_Riferimento!$H$31:$I$50,2,FALSE))","v":7},{"$f":"+IFERROR(VLOOKUP(DF$6&\"-\"&$M22&\"_old\",Ammortamento_Finanziario!$H:$L,5,FALSE),VLOOKUP($M22,TT_Tabelle_Riferimento!$H$31:$I$50,2,FALSE))","v":7},{"$f":"+IFERROR(VLOOKUP(DG$6&\"-\"&$M22&\"_old\",Ammortamento_Finanziario!$H:$L,5,FALSE),VLOOKUP($M22,TT_Tabelle_Riferimento!$H$31:$I$50,2,FALSE))","v":7},{"$f":"+IFERROR(VLOOKUP(DH$6&\"-\"&$M22&\"_old\",Ammortamento_Finanziario!$H:$L,5,FALSE),VLOOKUP($M22,TT_Tabelle_Riferimento!$H$31:$I$50,2,FALSE))","v":7},{"$f":"+IFERROR(VLOOKUP(DI$6&\"-\"&$M22&\"_old\",Ammortamento_Finanziario!$H:$L,5,FALSE),VLOOKUP($M22,TT_Tabelle_Riferimento!$H$31:$I$50,2,FALSE))","v":7},{"$f":"+IFERROR(VLOOKUP(DJ$6&\"-\"&$M22&\"_old\",Ammortamento_Finanziario!$H:$L,5,FALSE),VLOOKUP($M22,TT_Tabelle_Riferimento!$H$31:$I$50,2,FALSE))","v":7},{"$f":"+IFERROR(VLOOKUP(DK$6&\"-\"&$M22&\"_old\",Ammortamento_Finanziario!$H:$L,5,FALSE),VLOOKUP($M22,TT_Tabelle_Riferimento!$H$31:$I$50,2,FALSE))","v":7},{"$f":"+IFERROR(VLOOKUP(DL$6&\"-\"&$M22&\"_old\",Ammortamento_Finanziario!$H:$L,5,FALSE),VLOOKUP($M22,TT_Tabelle_Riferimento!$H$31:$I$50,2,FALSE))","v":7},{"$f":"+IFERROR(VLOOKUP(DM$6&\"-\"&$M22&\"_old\",Ammortamento_Finanziario!$H:$L,5,FALSE),VLOOKUP($M22,TT_Tabelle_Riferimento!$H$31:$I$50,2,FALSE))","v":7},{"$f":"+IFERROR(VLOOKUP(DN$6&\"-\"&$M22&\"_old\",Ammortamento_Finanziario!$H:$L,5,FALSE),VLOOKUP($M22,TT_Tabelle_Riferimento!$H$31:$I$50,2,FALSE))","v":7},{"$f":"+IFERROR(VLOOKUP(DO$6&\"-\"&$M22&\"_old\",Ammortamento_Finanziario!$H:$L,5,FALSE),VLOOKUP($M22,TT_Tabelle_Riferimento!$H$31:$I$50,2,FALSE))","v":7},{"$f":"+IFERROR(VLOOKUP(DP$6&\"-\"&$M22&\"_old\",Ammortamento_Finanziario!$H:$L,5,FALSE),VLOOKUP($M22,TT_Tabelle_Riferimento!$H$31:$I$50,2,FALSE))","v":7},{"$f":"+IFERROR(VLOOKUP(DQ$6&\"-\"&$M22&\"_old\",Ammortamento_Finanziario!$H:$L,5,FALSE),VLOOKUP($M22,TT_Tabelle_Riferimento!$H$31:$I$50,2,FALSE))","v":7},{"$f":"+IFERROR(VLOOKUP(DR$6&\"-\"&$M22&\"_old\",Ammortamento_Finanziario!$H:$L,5,FALSE),VLOOKUP($M22,TT_Tabelle_Riferimento!$H$31:$I$50,2,FALSE))","v":7},{"$f":"+IFERROR(VLOOKUP(DS$6&\"-\"&$M22&\"_old\",Ammortamento_Finanziario!$H:$L,5,FALSE),VLOOKUP($M22,TT_Tabelle_Riferimento!$H$31:$I$50,2,FALSE))","v":7},{"$f":"+IFERROR(VLOOKUP(DT$6&\"-\"&$M22&\"_old\",Ammortamento_Finanziario!$H:$L,5,FALSE),VLOOKUP($M22,TT_Tabelle_Riferimento!$H$31:$I$50,2,FALSE))","v":7},{"$f":"+IFERROR(VLOOKUP(DU$6&\"-\"&$M22&\"_old\",Ammortamento_Finanziario!$H:$L,5,FALSE),VLOOKUP($M22,TT_Tabelle_Riferimento!$H$31:$I$50,2,FALSE))","v":7},{"$f":"+IFERROR(VLOOKUP(DV$6&\"-\"&$M22&\"_old\",Ammortamento_Finanziario!$H:$L,5,FALSE),VLOOKUP($M22,TT_Tabelle_Riferimento!$H$31:$I$50,2,FALSE))","v":7},{"$f":"+IFERROR(VLOOKUP(DW$6&\"-\"&$M22&\"_old\",Ammortamento_Finanziario!$H:$L,5,FALSE),VLOOKUP($M22,TT_Tabelle_Riferimento!$H$31:$I$50,2,FALSE))","v":7},{"$f":"+IFERROR(VLOOKUP(DX$6&\"-\"&$M22&\"_old\",Ammortamento_Finanziario!$H:$L,5,FALSE),VLOOKUP($M22,TT_Tabelle_Riferimento!$H$31:$I$50,2,FALSE))","v":7},{"$f":"+IFERROR(VLOOKUP(DY$6&\"-\"&$M22&\"_old\",Ammortamento_Finanziario!$H:$L,5,FALSE),VLOOKUP($M22,TT_Tabelle_Riferimento!$H$31:$I$50,2,FALSE))","v":7},{"$f":"+IFERROR(VLOOKUP(DZ$6&\"-\"&$M22&\"_old\",Ammortamento_Finanziario!$H:$L,5,FALSE),VLOOKUP($M22,TT_Tabelle_Riferimento!$H$31:$I$50,2,FALSE))","v":7},{"$f":"+IFERROR(VLOOKUP(EA$6&\"-\"&$M22&\"_old\",Ammortamento_Finanziario!$H:$L,5,FALSE),VLOOKUP($M22,TT_Tabelle_Riferimento!$H$31:$I$50,2,FALSE))","v":7},{"$f":"+IFERROR(VLOOKUP(EB$6&\"-\"&$M22&\"_old\",Ammortamento_Finanziario!$H:$L,5,FALSE),VLOOKUP($M22,TT_Tabelle_Riferimento!$H$31:$I$50,2,FALSE))","v":7},{"$f":"+IFERROR(VLOOKUP(EC$6&\"-\"&$M22&\"_old\",Ammortamento_Finanziario!$H:$L,5,FALSE),VLOOKUP($M22,TT_Tabelle_Riferimento!$H$31:$I$50,2,FALSE))","v":7},{"$f":"+IFERROR(VLOOKUP(ED$6&\"-\"&$M22&\"_old\",Ammortamento_Finanziario!$H:$L,5,FALSE),VLOOKUP($M22,TT_Tabelle_Riferimento!$H$31:$I$50,2,FALSE))","v":7},{"$f":"+IFERROR(VLOOKUP(EE$6&\"-\"&$M22&\"_old\",Ammortamento_Finanziario!$H:$L,5,FALSE),VLOOKUP($M22,TT_Tabelle_Riferimento!$H$31:$I$50,2,FALSE))","v":7},{"$f":"+IFERROR(VLOOKUP(EF$6&\"-\"&$M22&\"_old\",Ammortamento_Finanziario!$H:$L,5,FALSE),VLOOKUP($M22,TT_Tabelle_Riferimento!$H$31:$I$50,2,FALSE))","v":7},{"$f":"+IFERROR(VLOOKUP(EG$6&\"-\"&$M22&\"_old\",Ammortamento_Finanziario!$H:$L,5,FALSE),VLOOKUP($M22,TT_Tabelle_Riferimento!$H$31:$I$50,2,FALSE))","v":7},{"$f":"+IFERROR(VLOOKUP(EH$6&\"-\"&$M22&\"_old\",Ammortamento_Finanziario!$H:$L,5,FALSE),VLOOKUP($M22,TT_Tabelle_Riferimento!$H$31:$I$50,2,FALSE))","v":7},{"$f":"+IFERROR(VLOOKUP(EI$6&\"-\"&$M22&\"_old\",Ammortamento_Finanziario!$H:$L,5,FALSE),VLOOKUP($M22,TT_Tabelle_Riferimento!$H$31:$I$50,2,FALSE))","v":7},{"$f":"+IFERROR(VLOOKUP(EJ$6&\"-\"&$M22&\"_old\",Ammortamento_Finanziario!$H:$L,5,FALSE),VLOOKUP($M22,TT_Tabelle_Riferimento!$H$31:$I$50,2,FALSE))","v":7},{"$f":"+IFERROR(VLOOKUP(EK$6&\"-\"&$M22&\"_old\",Ammortamento_Finanziario!$H:$L,5,FALSE),VLOOKUP($M22,TT_Tabelle_Riferimento!$H$31:$I$50,2,FALSE))","v":7},{"$f":"+IFERROR(VLOOKUP(EL$6&\"-\"&$M22&\"_old\",Ammortamento_Finanziario!$H:$L,5,FALSE),VLOOKUP($M22,TT_Tabelle_Riferimento!$H$31:$I$50,2,FALSE))","v":7},{"$f":"+IFERROR(VLOOKUP(EM$6&\"-\"&$M22&\"_old\",Ammortamento_Finanziario!$H:$L,5,FALSE),VLOOKUP($M22,TT_Tabelle_Riferimento!$H$31:$I$50,2,FALSE))","v":7},{"$f":"+IFERROR(VLOOKUP(EN$6&\"-\"&$M22&\"_old\",Ammortamento_Finanziario!$H:$L,5,FALSE),VLOOKUP($M22,TT_Tabelle_Riferimento!$H$31:$I$50,2,FALSE))","v":7},{"$f":"+IFERROR(VLOOKUP(EO$6&\"-\"&$M22&\"_old\",Ammortamento_Finanziario!$H:$L,5,FALSE),VLOOKUP($M22,TT_Tabelle_Riferimento!$H$31:$I$50,2,FALSE))","v":7},{"$f":"+IFERROR(VLOOKUP(EP$6&\"-\"&$M22&\"_old\",Ammortamento_Finanziario!$H:$L,5,FALSE),VLOOKUP($M22,TT_Tabelle_Riferimento!$H$31:$I$50,2,FALSE))","v":7},{"$f":"+IFERROR(VLOOKUP(EQ$6&\"-\"&$M22&\"_old\",Ammortamento_Finanziario!$H:$L,5,FALSE),VLOOKUP($M22,TT_Tabelle_Riferimento!$H$31:$I$50,2,FALSE))","v":7},{"$f":"+IFERROR(VLOOKUP(ER$6&\"-\"&$M22&\"_old\",Ammortamento_Finanziario!$H:$L,5,FALSE),VLOOKUP($M22,TT_Tabelle_Riferimento!$H$31:$I$50,2,FALSE))","v":7},{"$f":"+IFERROR(VLOOKUP(ES$6&\"-\"&$M22&\"_old\",Ammortamento_Finanziario!$H:$L,5,FALSE),VLOOKUP($M22,TT_Tabelle_Riferimento!$H$31:$I$50,2,FALSE))","v":7},{"$f":"+IFERROR(VLOOKUP(ET$6&\"-\"&$M22&\"_old\",Ammortamento_Finanziario!$H:$L,5,FALSE),VLOOKUP($M22,TT_Tabelle_Riferimento!$H$31:$I$50,2,FALSE))","v":7},{"$f":"+IFERROR(VLOOKUP(EU$6&\"-\"&$M22&\"_old\",Ammortamento_Finanziario!$H:$L,5,FALSE),VLOOKUP($M22,TT_Tabelle_Riferimento!$H$31:$I$50,2,FALSE))","v":7},{"$f":"+IFERROR(VLOOKUP(EV$6&\"-\"&$M22&\"_old\",Ammortamento_Finanziario!$H:$L,5,FALSE),VLOOKUP($M22,TT_Tabelle_Riferimento!$H$31:$I$50,2,FALSE))","v":7},{"$f":"+IFERROR(VLOOKUP(EW$6&\"-\"&$M22&\"_old\",Ammortamento_Finanziario!$H:$L,5,FALSE),VLOOKUP($M22,TT_Tabelle_Riferimento!$H$31:$I$50,2,FALSE))","v":7},{"$f":"+IFERROR(VLOOKUP(EX$6&\"-\"&$M22&\"_old\",Ammortamento_Finanziario!$H:$L,5,FALSE),VLOOKUP($M22,TT_Tabelle_Riferimento!$H$31:$I$50,2,FALSE))","v":7},{"$f":"+IFERROR(VLOOKUP(EY$6&\"-\"&$M22&\"_old\",Ammortamento_Finanziario!$H:$L,5,FALSE),VLOOKUP($M22,TT_Tabelle_Riferimento!$H$31:$I$50,2,FALSE))","v":7},{"$f":"+IFERROR(VLOOKUP(EZ$6&\"-\"&$M22&\"_old\",Ammortamento_Finanziario!$H:$L,5,FALSE),VLOOKUP($M22,TT_Tabelle_Riferimento!$H$31:$I$50,2,FALSE))","v":7},{"$f":"+IFERROR(VLOOKUP(FA$6&\"-\"&$M22&\"_old\",Ammortamento_Finanziario!$H:$L,5,FALSE),VLOOKUP($M22,TT_Tabelle_Riferimento!$H$31:$I$50,2,FALSE))","v":7},{"$f":"+IFERROR(VLOOKUP(FB$6&\"-\"&$M22&\"_old\",Ammortamento_Finanziario!$H:$L,5,FALSE),VLOOKUP($M22,TT_Tabelle_Riferimento!$H$31:$I$50,2,FALSE))","v":7},{"$f":"+IFERROR(VLOOKUP(FC$6&\"-\"&$M22&\"_old\",Ammortamento_Finanziario!$H:$L,5,FALSE),VLOOKUP($M22,TT_Tabelle_Riferimento!$H$31:$I$50,2,FALSE))","v":7},{"$f":"+IFERROR(VLOOKUP(FD$6&\"-\"&$M22&\"_old\",Ammortamento_Finanziario!$H:$L,5,FALSE),VLOOKUP($M22,TT_Tabelle_Riferimento!$H$31:$I$50,2,FALSE))","v":7},{"$f":"+IFERROR(VLOOKUP(FE$6&\"-\"&$M22&\"_old\",Ammortamento_Finanziario!$H:$L,5,FALSE),VLOOKUP($M22,TT_Tabelle_Riferimento!$H$31:$I$50,2,FALSE))","v":7},{"$f":"+IFERROR(VLOOKUP(FF$6&\"-\"&$M22&\"_old\",Ammortamento_Finanziario!$H:$L,5,FALSE),VLOOKUP($M22,TT_Tabelle_Riferimento!$H$31:$I$50,2,FALSE))","v":7},{"$f":"+IFERROR(VLOOKUP(FG$6&\"-\"&$M22&\"_old\",Ammortamento_Finanziario!$H:$L,5,FALSE),VLOOKUP($M22,TT_Tabelle_Riferimento!$H$31:$I$50,2,FALSE))","v":7},{"$f":"+IFERROR(VLOOKUP(FH$6&\"-\"&$M22&\"_old\",Ammortamento_Finanziario!$H:$L,5,FALSE),VLOOKUP($M22,TT_Tabelle_Riferimento!$H$31:$I$50,2,FALSE))","v":7},{"$f":"+IFERROR(VLOOKUP(FI$6&\"-\"&$M22&\"_old\",Ammortamento_Finanziario!$H:$L,5,FALSE),VLOOKUP($M22,TT_Tabelle_Riferimento!$H$31:$I$50,2,FALSE))","v":7},{"$f":"+IFERROR(VLOOKUP(FJ$6&\"-\"&$M22&\"_old\",Ammortamento_Finanziario!$H:$L,5,FALSE),VLOOKUP($M22,TT_Tabelle_Riferimento!$H$31:$I$50,2,FALSE))","v":7},{"$f":"+IFERROR(VLOOKUP(FK$6&\"-\"&$M22&\"_old\",Ammortamento_Finanziario!$H:$L,5,FALSE),VLOOKUP($M22,TT_Tabelle_Riferimento!$H$31:$I$50,2,FALSE))","v":7},{"$f":"+IFERROR(VLOOKUP(FL$6&\"-\"&$M22&\"_old\",Ammortamento_Finanziario!$H:$L,5,FALSE),VLOOKUP($M22,TT_Tabelle_Riferimento!$H$31:$I$50,2,FALSE))","v":7},{"$f":"+IFERROR(VLOOKUP(FM$6&\"-\"&$M22&\"_old\",Ammortamento_Finanziario!$H:$L,5,FALSE),VLOOKUP($M22,TT_Tabelle_Riferimento!$H$31:$I$50,2,FALSE))","v":7},{"$f":"+IFERROR(VLOOKUP(FN$6&\"-\"&$M22&\"_old\",Ammortamento_Finanziario!$H:$L,5,FALSE),VLOOKUP($M22,TT_Tabelle_Riferimento!$H$31:$I$50,2,FALSE))","v":7},{"$f":"+IFERROR(VLOOKUP(FO$6&\"-\"&$M22&\"_old\",Ammortamento_Finanziario!$H:$L,5,FALSE),VLOOKUP($M22,TT_Tabelle_Riferimento!$H$31:$I$50,2,FALSE))","v":7},{"$f":"+IFERROR(VLOOKUP(FP$6&\"-\"&$M22&\"_old\",Ammortamento_Finanziario!$H:$L,5,FALSE),VLOOKUP($M22,TT_Tabelle_Riferimento!$H$31:$I$50,2,FALSE))","v":7},{"$f":"+IFERROR(VLOOKUP(FQ$6&\"-\"&$M22&\"_old\",Ammortamento_Finanziario!$H:$L,5,FALSE),VLOOKUP($M22,TT_Tabelle_Riferimento!$H$31:$I$50,2,FALSE))","v":7},{"$f":"+IFERROR(VLOOKUP(FR$6&\"-\"&$M22&\"_old\",Ammortamento_Finanziario!$H:$L,5,FALSE),VLOOKUP($M22,TT_Tabelle_Riferimento!$H$31:$I$50,2,FALSE))","v":7},{"$f":"+IFERROR(VLOOKUP(FS$6&\"-\"&$M22&\"_old\",Ammortamento_Finanziario!$H:$L,5,FALSE),VLOOKUP($M22,TT_Tabelle_Riferimento!$H$31:$I$50,2,FALSE))","v":7},{"$f":"+IFERROR(VLOOKUP(FT$6&\"-\"&$M22&\"_old\",Ammortamento_Finanziario!$H:$L,5,FALSE),VLOOKUP($M22,TT_Tabelle_Riferimento!$H$31:$I$50,2,FALSE))","v":7},{"$f":"+IFERROR(VLOOKUP(FU$6&\"-\"&$M22&\"_old\",Ammortamento_Finanziario!$H:$L,5,FALSE),VLOOKUP($M22,TT_Tabelle_Riferimento!$H$31:$I$50,2,FALSE))","v":7},{"$f":"+IFERROR(VLOOKUP(FV$6&\"-\"&$M22&\"_old\",Ammortamento_Finanziario!$H:$L,5,FALSE),VLOOKUP($M22,TT_Tabelle_Riferimento!$H$31:$I$50,2,FALSE))","v":7},{"$f":"+IFERROR(VLOOKUP(FW$6&\"-\"&$M22&\"_old\",Ammortamento_Finanziario!$H:$L,5,FALSE),VLOOKUP($M22,TT_Tabelle_Riferimento!$H$31:$I$50,2,FALSE))","v":7},{"$f":"+IFERROR(VLOOKUP(FX$6&\"-\"&$M22&\"_old\",Ammortamento_Finanziario!$H:$L,5,FALSE),VLOOKUP($M22,TT_Tabelle_Riferimento!$H$31:$I$50,2,FALSE))","v":7},{"$f":"+IFERROR(VLOOKUP(FY$6&\"-\"&$M22&\"_old\",Ammortamento_Finanziario!$H:$L,5,FALSE),VLOOKUP($M22,TT_Tabelle_Riferimento!$H$31:$I$50,2,FALSE))","v":7},{"$f":"+IFERROR(VLOOKUP(FZ$6&\"-\"&$M22&\"_old\",Ammortamento_Finanziario!$H:$L,5,FALSE),VLOOKUP($M22,TT_Tabelle_Riferimento!$H$31:$I$50,2,FALSE))","v":7},{"$f":"+IFERROR(VLOOKUP(GA$6&\"-\"&$M22&\"_old\",Ammortamento_Finanziario!$H:$L,5,FALSE),VLOOKUP($M22,TT_Tabelle_Riferimento!$H$31:$I$50,2,FALSE))","v":7},{"$f":"+IFERROR(VLOOKUP(GB$6&\"-\"&$M22&\"_old\",Ammortamento_Finanziario!$H:$L,5,FALSE),VLOOKUP($M22,TT_Tabelle_Riferimento!$H$31:$I$50,2,FALSE))","v":7},{"$f":"+IFERROR(VLOOKUP(GC$6&\"-\"&$M22&\"_old\",Ammortamento_Finanziario!$H:$L,5,FALSE),VLOOKUP($M22,TT_Tabelle_Riferimento!$H$31:$I$50,2,FALSE))","v":7},{"$f":"+IFERROR(VLOOKUP(GD$6&\"-\"&$M22&\"_old\",Ammortamento_Finanziario!$H:$L,5,FALSE),VLOOKUP($M22,TT_Tabelle_Riferimento!$H$31:$I$50,2,FALSE))","v":7},{"$f":"+IFERROR(VLOOKUP(GE$6&\"-\"&$M22&\"_old\",Ammortamento_Finanziario!$H:$L,5,FALSE),VLOOKUP($M22,TT_Tabelle_Riferimento!$H$31:$I$50,2,FALSE))","v":7},{"$f":"+IFERROR(VLOOKUP(GF$6&\"-\"&$M22&\"_old\",Ammortamento_Finanziario!$H:$L,5,FALSE),VLOOKUP($M22,TT_Tabelle_Riferimento!$H$31:$I$50,2,FALSE))","v":7},{"$f":"+IFERROR(VLOOKUP(GG$6&\"-\"&$M22&\"_old\",Ammortamento_Finanziario!$H:$L,5,FALSE),VLOOKUP($M22,TT_Tabelle_Riferimento!$H$31:$I$50,2,FALSE))","v":7},{"$f":"+IFERROR(VLOOKUP(GH$6&\"-\"&$M22&\"_old\",Ammortamento_Finanziario!$H:$L,5,FALSE),VLOOKUP($M22,TT_Tabelle_Riferimento!$H$31:$I$50,2,FALSE))","v":7},{"$f":"+IFERROR(VLOOKUP(GI$6&\"-\"&$M22&\"_old\",Ammortamento_Finanziario!$H:$L,5,FALSE),VLOOKUP($M22,TT_Tabelle_Riferimento!$H$31:$I$50,2,FALSE))","v":7},{"$f":"+IFERROR(VLOOKUP(GJ$6&\"-\"&$M22&\"_old\",Ammortamento_Finanziario!$H:$L,5,FALSE),VLOOKUP($M22,TT_Tabelle_Riferimento!$H$31:$I$50,2,FALSE))","v":7},{"$f":"+IFERROR(VLOOKUP(GK$6&\"-\"&$M22&\"_old\",Ammortamento_Finanziario!$H:$L,5,FALSE),VLOOKUP($M22,TT_Tabelle_Riferimento!$H$31:$I$50,2,FALSE))","v":7},{"$f":"+IFERROR(VLOOKUP(GL$6&\"-\"&$M22&\"_old\",Ammortamento_Finanziario!$H:$L,5,FALSE),VLOOKUP($M22,TT_Tabelle_Riferimento!$H$31:$I$50,2,FALSE))","v":7},{"$f":"+IFERROR(VLOOKUP(GM$6&\"-\"&$M22&\"_old\",Ammortamento_Finanziario!$H:$L,5,FALSE),VLOOKUP($M22,TT_Tabelle_Riferimento!$H$31:$I$50,2,FALSE))","v":7},{"$f":"+IFERROR(VLOOKUP(GN$6&\"-\"&$M22&\"_old\",Ammortamento_Finanziario!$H:$L,5,FALSE),VLOOKUP($M22,TT_Tabelle_Riferimento!$H$31:$I$50,2,FALSE))","v":7},{"$f":"+IFERROR(VLOOKUP(GO$6&\"-\"&$M22&\"_old\",Ammortamento_Finanziario!$H:$L,5,FALSE),VLOOKUP($M22,TT_Tabelle_Riferimento!$H$31:$I$50,2,FALSE))","v":7},{"$f":"+IFERROR(VLOOKUP(GP$6&\"-\"&$M22&\"_old\",Ammortamento_Finanziario!$H:$L,5,FALSE),VLOOKUP($M22,TT_Tabelle_Riferimento!$H$31:$I$50,2,FALSE))","v":7},{"$f":"+IFERROR(VLOOKUP(GQ$6&\"-\"&$M22&\"_old\",Ammortamento_Finanziario!$H:$L,5,FALSE),VLOOKUP($M22,TT_Tabelle_Riferimento!$H$31:$I$50,2,FALSE))","v":7},{"$f":"+IFERROR(VLOOKUP(GR$6&\"-\"&$M22&\"_old\",Ammortamento_Finanziario!$H:$L,5,FALSE),VLOOKUP($M22,TT_Tabelle_Riferimento!$H$31:$I$50,2,FALSE))","v":7},{"$f":"+IFERROR(VLOOKUP(GS$6&\"-\"&$M22&\"_old\",Ammortamento_Finanziario!$H:$L,5,FALSE),VLOOKUP($M22,TT_Tabelle_Riferimento!$H$31:$I$50,2,FALSE))","v":7},{"$f":"+IFERROR(VLOOKUP(GT$6&\"-\"&$M22&\"_old\",Ammortamento_Finanziario!$H:$L,5,FALSE),VLOOKUP($M22,TT_Tabelle_Riferimento!$H$31:$I$50,2,FALSE))","v":7},{"$f":"+IFERROR(VLOOKUP(GU$6&\"-\"&$M22&\"_old\",Ammortamento_Finanziario!$H:$L,5,FALSE),VLOOKUP($M22,TT_Tabelle_Riferimento!$H$31:$I$50,2,FALSE))","v":7},{"$f":"+IFERROR(VLOOKUP(GV$6&\"-\"&$M22&\"_old\",Ammortamento_Finanziario!$H:$L,5,FALSE),VLOOKUP($M22,TT_Tabelle_Riferimento!$H$31:$I$50,2,FALSE))","v":7},{"$f":"+IFERROR(VLOOKUP(GW$6&\"-\"&$M22&\"_old\",Ammortamento_Finanziario!$H:$L,5,FALSE),VLOOKUP($M22,TT_Tabelle_Riferimento!$H$31:$I$50,2,FALSE))","v":7},{"$f":"+IFERROR(VLOOKUP(GX$6&\"-\"&$M22&\"_old\",Ammortamento_Finanziario!$H:$L,5,FALSE),VLOOKUP($M22,TT_Tabelle_Riferimento!$H$31:$I$50,2,FALSE))","v":7},{"$f":"+IFERROR(VLOOKUP(GY$6&\"-\"&$M22&\"_old\",Ammortamento_Finanziario!$H:$L,5,FALSE),VLOOKUP($M22,TT_Tabelle_Riferimento!$H$31:$I$50,2,FALSE))","v":7},{"$f":"+IFERROR(VLOOKUP(GZ$6&\"-\"&$M22&\"_old\",Ammortamento_Finanziario!$H:$L,5,FALSE),VLOOKUP($M22,TT_Tabelle_Riferimento!$H$31:$I$50,2,FALSE))","v":7},{"$f":"+IFERROR(VLOOKUP(HA$6&\"-\"&$M22&\"_old\",Ammortamento_Finanziario!$H:$L,5,FALSE),VLOOKUP($M22,TT_Tabelle_Riferimento!$H$31:$I$50,2,FALSE))","v":7},{"$f":"+IFERROR(VLOOKUP(HB$6&\"-\"&$M22&\"_old\",Ammortamento_Finanziario!$H:$L,5,FALSE),VLOOKUP($M22,TT_Tabelle_Riferimento!$H$31:$I$50,2,FALSE))","v":7},{"$f":"+IFERROR(VLOOKUP(HC$6&\"-\"&$M22&\"_old\",Ammortamento_Finanziario!$H:$L,5,FALSE),VLOOKUP($M22,TT_Tabelle_Riferimento!$H$31:$I$50,2,FALSE))","v":7},{"$f":"+IFERROR(VLOOKUP(HD$6&\"-\"&$M22&\"_old\",Ammortamento_Finanziario!$H:$L,5,FALSE),VLOOKUP($M22,TT_Tabelle_Riferimento!$H$31:$I$50,2,FALSE))","v":7},{"$f":"+IFERROR(VLOOKUP(HE$6&\"-\"&$M22&\"_old\",Ammortamento_Finanziario!$H:$L,5,FALSE),VLOOKUP($M22,TT_Tabelle_Riferimento!$H$31:$I$50,2,FALSE))","v":7},{"$f":"+IFERROR(VLOOKUP(HF$6&\"-\"&$M22&\"_old\",Ammortamento_Finanziario!$H:$L,5,FALSE),VLOOKUP($M22,TT_Tabelle_Riferimento!$H$31:$I$50,2,FALSE))","v":7},{"$f":"+IFERROR(VLOOKUP(HG$6&\"-\"&$M22&\"_old\",Ammortamento_Finanziario!$H:$L,5,FALSE),VLOOKUP($M22,TT_Tabelle_Riferimento!$H$31:$I$50,2,FALSE))","v":7},{"$f":"+IFERROR(VLOOKUP(HH$6&\"-\"&$M22&\"_old\",Ammortamento_Finanziario!$H:$L,5,FALSE),VLOOKUP($M22,TT_Tabelle_Riferimento!$H$31:$I$50,2,FALSE))","v":7},{"$f":"+IFERROR(VLOOKUP(HI$6&\"-\"&$M22&\"_old\",Ammortamento_Finanziario!$H:$L,5,FALSE),VLOOKUP($M22,TT_Tabelle_Riferimento!$H$31:$I$50,2,FALSE))","v":7},{"$f":"+IFERROR(VLOOKUP(HJ$6&\"-\"&$M22&\"_old\",Ammortamento_Finanziario!$H:$L,5,FALSE),VLOOKUP($M22,TT_Tabelle_Riferimento!$H$31:$I$50,2,FALSE))","v":7},{"$f":"+IFERROR(VLOOKUP(HK$6&\"-\"&$M22&\"_old\",Ammortamento_Finanziario!$H:$L,5,FALSE),VLOOKUP($M22,TT_Tabelle_Riferimento!$H$31:$I$50,2,FALSE))","v":7},{"$f":"+IFERROR(VLOOKUP(HL$6&\"-\"&$M22&\"_old\",Ammortamento_Finanziario!$H:$L,5,FALSE),VLOOKUP($M22,TT_Tabelle_Riferimento!$H$31:$I$50,2,FALSE))","v":7},{"$f":"+IFERROR(VLOOKUP(HM$6&\"-\"&$M22&\"_old\",Ammortamento_Finanziario!$H:$L,5,FALSE),VLOOKUP($M22,TT_Tabelle_Riferimento!$H$31:$I$50,2,FALSE))","v":7},{"$f":"+IFERROR(VLOOKUP(HN$6&\"-\"&$M22&\"_old\",Ammortamento_Finanziario!$H:$L,5,FALSE),VLOOKUP($M22,TT_Tabelle_Riferimento!$H$31:$I$50,2,FALSE))","v":7},{"$f":"+IFERROR(VLOOKUP(HO$6&\"-\"&$M22&\"_old\",Ammortamento_Finanziario!$H:$L,5,FALSE),VLOOKUP($M22,TT_Tabelle_Riferimento!$H$31:$I$50,2,FALSE))","v":7},{"$f":"+IFERROR(VLOOKUP(HP$6&\"-\"&$M22&\"_old\",Ammortamento_Finanziario!$H:$L,5,FALSE),VLOOKUP($M22,TT_Tabelle_Riferimento!$H$31:$I$50,2,FALSE))","v":7},{"$f":"+IFERROR(VLOOKUP(HQ$6&\"-\"&$M22&\"_old\",Ammortamento_Finanziario!$H:$L,5,FALSE),VLOOKUP($M22,TT_Tabelle_Riferimento!$H$31:$I$50,2,FALSE))","v":7},{"$f":"+IFERROR(VLOOKUP(HR$6&\"-\"&$M22&\"_old\",Ammortamento_Finanziario!$H:$L,5,FALSE),VLOOKUP($M22,TT_Tabelle_Riferimento!$H$31:$I$50,2,FALSE))","v":7},{"$f":"+IFERROR(VLOOKUP(HS$6&\"-\"&$M22&\"_old\",Ammortamento_Finanziario!$H:$L,5,FALSE),VLOOKUP($M22,TT_Tabelle_Riferimento!$H$31:$I$50,2,FALSE))","v":7},{"$f":"+IFERROR(VLOOKUP(HT$6&\"-\"&$M22&\"_old\",Ammortamento_Finanziario!$H:$L,5,FALSE),VLOOKUP($M22,TT_Tabelle_Riferimento!$H$31:$I$50,2,FALSE))","v":7},{"$f":"+IFERROR(VLOOKUP(HU$6&\"-\"&$M22&\"_old\",Ammortamento_Finanziario!$H:$L,5,FALSE),VLOOKUP($M22,TT_Tabelle_Riferimento!$H$31:$I$50,2,FALSE))","v":7},{"$f":"+IFERROR(VLOOKUP(HV$6&\"-\"&$M22&\"_old\",Ammortamento_Finanziario!$H:$L,5,FALSE),VLOOKUP($M22,TT_Tabelle_Riferimento!$H$31:$I$50,2,FALSE))","v":7},{"$f":"+IFERROR(VLOOKUP(HW$6&\"-\"&$M22&\"_old\",Ammortamento_Finanziario!$H:$L,5,FALSE),VLOOKUP($M22,TT_Tabelle_Riferimento!$H$31:$I$50,2,FALSE))","v":7},{"$f":"+IFERROR(VLOOKUP(HX$6&\"-\"&$M22&\"_old\",Ammortamento_Finanziario!$H:$L,5,FALSE),VLOOKUP($M22,TT_Tabelle_Riferimento!$H$31:$I$50,2,FALSE))","v":7},{"$f":"+IFERROR(VLOOKUP(HY$6&\"-\"&$M22&\"_old\",Ammortamento_Finanziario!$H:$L,5,FALSE),VLOOKUP($M22,TT_Tabelle_Riferimento!$H$31:$I$50,2,FALSE))","v":7},{"$f":"+IFERROR(VLOOKUP(HZ$6&\"-\"&$M22&\"_old\",Ammortamento_Finanziario!$H:$L,5,FALSE),VLOOKUP($M22,TT_Tabelle_Riferimento!$H$31:$I$50,2,FALSE))","v":7},{"$f":"+IFERROR(VLOOKUP(IA$6&\"-\"&$M22&\"_old\",Ammortamento_Finanziario!$H:$L,5,FALSE),VLOOKUP($M22,TT_Tabelle_Riferimento!$H$31:$I$50,2,FALSE))","v":7},{"$f":"+IFERROR(VLOOKUP(IB$6&\"-\"&$M22&\"_old\",Ammortamento_Finanziario!$H:$L,5,FALSE),VLOOKUP($M22,TT_Tabelle_Riferimento!$H$31:$I$50,2,FALSE))","v":7},{"$f":"+IFERROR(VLOOKUP(IC$6&\"-\"&$M22&\"_old\",Ammortamento_Finanziario!$H:$L,5,FALSE),VLOOKUP($M22,TT_Tabelle_Riferimento!$H$31:$I$50,2,FALSE))","v":7},{"$f":"+IFERROR(VLOOKUP(ID$6&\"-\"&$M22&\"_old\",Ammortamento_Finanziario!$H:$L,5,FALSE),VLOOKUP($M22,TT_Tabelle_Riferimento!$H$31:$I$50,2,FALSE))","v":7},{"$f":"+IFERROR(VLOOKUP(IE$6&\"-\"&$M22&\"_old\",Ammortamento_Finanziario!$H:$L,5,FALSE),VLOOKUP($M22,TT_Tabelle_Riferimento!$H$31:$I$50,2,FALSE))","v":7},{"$f":"+IFERROR(VLOOKUP(IF$6&\"-\"&$M22&\"_old\",Ammortamento_Finanziario!$H:$L,5,FALSE),VLOOKUP($M22,TT_Tabelle_Riferimento!$H$31:$I$50,2,FALSE))","v":7},{"$f":"+IFERROR(VLOOKUP(IG$6&\"-\"&$M22&\"_old\",Ammortamento_Finanziario!$H:$L,5,FALSE),VLOOKUP($M22,TT_Tabelle_Riferimento!$H$31:$I$50,2,FALSE))","v":7},{"$f":"+IFERROR(VLOOKUP(IH$6&\"-\"&$M22&\"_old\",Ammortamento_Finanziario!$H:$L,5,FALSE),VLOOKUP($M22,TT_Tabelle_Riferimento!$H$31:$I$50,2,FALSE))","v":7},{"$f":"+IFERROR(VLOOKUP(II$6&\"-\"&$M22&\"_old\",Ammortamento_Finanziario!$H:$L,5,FALSE),VLOOKUP($M22,TT_Tabelle_Riferimento!$H$31:$I$50,2,FALSE))","v":7},{"$f":"+IFERROR(VLOOKUP(IJ$6&\"-\"&$M22&\"_old\",Ammortamento_Finanziario!$H:$L,5,FALSE),VLOOKUP($M22,TT_Tabelle_Riferimento!$H$31:$I$50,2,FALSE))","v":7},{"$f":"+IFERROR(VLOOKUP(IK$6&\"-\"&$M22&\"_old\",Ammortamento_Finanziario!$H:$L,5,FALSE),VLOOKUP($M22,TT_Tabelle_Riferimento!$H$31:$I$50,2,FALSE))","v":7},{"$f":"+IFERROR(VLOOKUP(IL$6&\"-\"&$M22&\"_old\",Ammortamento_Finanziario!$H:$L,5,FALSE),VLOOKUP($M22,TT_Tabelle_Riferimento!$H$31:$I$50,2,FALSE))","v":7},{"$f":"+IFERROR(VLOOKUP(IM$6&\"-\"&$M22&\"_old\",Ammortamento_Finanziario!$H:$L,5,FALSE),VLOOKUP($M22,TT_Tabelle_Riferimento!$H$31:$I$50,2,FALSE))","v":7},{"$f":"+IFERROR(VLOOKUP(IN$6&\"-\"&$M22&\"_old\",Ammortamento_Finanziario!$H:$L,5,FALSE),VLOOKUP($M22,TT_Tabelle_Riferimento!$H$31:$I$50,2,FALSE))","v":7},{"$f":"+IFERROR(VLOOKUP(IO$6&\"-\"&$M22&\"_old\",Ammortamento_Finanziario!$H:$L,5,FALSE),VLOOKUP($M22,TT_Tabelle_Riferimento!$H$31:$I$50,2,FALSE))","v":7},{"$f":"+IFERROR(VLOOKUP(IP$6&\"-\"&$M22&\"_old\",Ammortamento_Finanziario!$H:$L,5,FALSE),VLOOKUP($M22,TT_Tabelle_Riferimento!$H$31:$I$50,2,FALSE))","v":7},{"$f":"+IFERROR(VLOOKUP(IQ$6&\"-\"&$M22&\"_old\",Ammortamento_Finanziario!$H:$L,5,FALSE),VLOOKUP($M22,TT_Tabelle_Riferimento!$H$31:$I$50,2,FALSE))","v":7},{"$f":"+IFERROR(VLOOKUP(IR$6&\"-\"&$M22&\"_old\",Ammortamento_Finanziario!$H:$L,5,FALSE),VLOOKUP($M22,TT_Tabelle_Riferimento!$H$31:$I$50,2,FALSE))","v":7},{"$f":"+IFERROR(VLOOKUP(IS$6&\"-\"&$M22&\"_old\",Ammortamento_Finanziario!$H:$L,5,FALSE),VLOOKUP($M22,TT_Tabelle_Riferimento!$H$31:$I$50,2,FALSE))","v":7},{"$f":"+IFERROR(VLOOKUP(IT$6&\"-\"&$M22&\"_old\",Ammortamento_Finanziario!$H:$L,5,FALSE),VLOOKUP($M22,TT_Tabelle_Riferimento!$H$31:$I$50,2,FALSE))","v":7},{"$f":"+IFERROR(VLOOKUP(IU$6&\"-\"&$M22&\"_old\",Ammortamento_Finanziario!$H:$L,5,FALSE),VLOOKUP($M22,TT_Tabelle_Riferimento!$H$31:$I$50,2,FALSE))","v":7},{"$f":"+IFERROR(VLOOKUP(IV$6&\"-\"&$M22&\"_old\",Ammortamento_Finanziario!$H:$L,5,FALSE),VLOOKUP($M22,TT_Tabelle_Riferimento!$H$31:$I$50,2,FALSE))","v":7},{"$f":"+IFERROR(VLOOKUP(IW$6&\"-\"&$M22&\"_old\",Ammortamento_Finanziario!$H:$L,5,FALSE),VLOOKUP($M22,TT_Tabelle_Riferimento!$H$31:$I$50,2,FALSE))","v":7},{"$f":"+IFERROR(VLOOKUP(IX$6&\"-\"&$M22&\"_old\",Ammortamento_Finanziario!$H:$L,5,FALSE),VLOOKUP($M22,TT_Tabelle_Riferimento!$H$31:$I$50,2,FALSE))","v":7},{"$f":"+IFERROR(VLOOKUP(IY$6&\"-\"&$M22&\"_old\",Ammortamento_Finanziario!$H:$L,5,FALSE),VLOOKUP($M22,TT_Tabelle_Riferimento!$H$31:$I$50,2,FALSE))","v":7},{"$f":"+IFERROR(VLOOKUP(IZ$6&\"-\"&$M22&\"_old\",Ammortamento_Finanziario!$H:$L,5,FALSE),VLOOKUP($M22,TT_Tabelle_Riferimento!$H$31:$I$50,2,FALSE))","v":7},{"$f":"+IFERROR(VLOOKUP(JA$6&\"-\"&$M22&\"_old\",Ammortamento_Finanziario!$H:$L,5,FALSE),VLOOKUP($M22,TT_Tabelle_Riferimento!$H$31:$I$50,2,FALSE))","v":7},{"$f":"+IFERROR(VLOOKUP(JB$6&\"-\"&$M22&\"_old\",Ammortamento_Finanziario!$H:$L,5,FALSE),VLOOKUP($M22,TT_Tabelle_Riferimento!$H$31:$I$50,2,FALSE))","v":7},{"$f":"+IFERROR(VLOOKUP(JC$6&\"-\"&$M22&\"_old\",Ammortamento_Finanziario!$H:$L,5,FALSE),VLOOKUP($M22,TT_Tabelle_Riferimento!$H$31:$I$50,2,FALSE))","v":7},{"$f":"+IFERROR(VLOOKUP(JD$6&\"-\"&$M22&\"_old\",Ammortamento_Finanziario!$H:$L,5,FALSE),VLOOKUP($M22,TT_Tabelle_Riferimento!$H$31:$I$50,2,FALSE))","v":7},{"$f":"+IFERROR(VLOOKUP(JE$6&\"-\"&$M22&\"_old\",Ammortamento_Finanziario!$H:$L,5,FALSE),VLOOKUP($M22,TT_Tabelle_Riferimento!$H$31:$I$50,2,FALSE))","v":7},{"$f":"+IFERROR(VLOOKUP(JF$6&\"-\"&$M22&\"_old\",Ammortamento_Finanziario!$H:$L,5,FALSE),VLOOKUP($M22,TT_Tabelle_Riferimento!$H$31:$I$50,2,FALSE))","v":7},{"$f":"+IFERROR(VLOOKUP(JG$6&\"-\"&$M22&\"_old\",Ammortamento_Finanziario!$H:$L,5,FALSE),VLOOKUP($M22,TT_Tabelle_Riferimento!$H$31:$I$50,2,FALSE))","v":7},{"$f":"+IFERROR(VLOOKUP(JH$6&\"-\"&$M22&\"_old\",Ammortamento_Finanziario!$H:$L,5,FALSE),VLOOKUP($M22,TT_Tabelle_Riferimento!$H$31:$I$50,2,FALSE))","v":7},{"$f":"+IFERROR(VLOOKUP(JI$6&\"-\"&$M22&\"_old\",Ammortamento_Finanziario!$H:$L,5,FALSE),VLOOKUP($M22,TT_Tabelle_Riferimento!$H$31:$I$50,2,FALSE))","v":7},{"$f":"+IFERROR(VLOOKUP(JJ$6&\"-\"&$M22&\"_old\",Ammortamento_Finanziario!$H:$L,5,FALSE),VLOOKUP($M22,TT_Tabelle_Riferimento!$H$31:$I$50,2,FALSE))","v":7},{"$f":"+IFERROR(VLOOKUP(JK$6&\"-\"&$M22&\"_old\",Ammortamento_Finanziario!$H:$L,5,FALSE),VLOOKUP($M22,TT_Tabelle_Riferimento!$H$31:$I$50,2,FALSE))","v":7},{"$f":"+IFERROR(VLOOKUP(JL$6&\"-\"&$M22&\"_old\",Ammortamento_Finanziario!$H:$L,5,FALSE),VLOOKUP($M22,TT_Tabelle_Riferimento!$H$31:$I$50,2,FALSE))","v":7},{"$f":"+IFERROR(VLOOKUP(JM$6&\"-\"&$M22&\"_old\",Ammortamento_Finanziario!$H:$L,5,FALSE),VLOOKUP($M22,TT_Tabelle_Riferimento!$H$31:$I$50,2,FALSE))","v":7},{"$f":"+IFERROR(VLOOKUP(JN$6&\"-\"&$M22&\"_old\",Ammortamento_Finanziario!$H:$L,5,FALSE),VLOOKUP($M22,TT_Tabelle_Riferimento!$H$31:$I$50,2,FALSE))","v":7},{"$f":"+IFERROR(VLOOKUP(JO$6&\"-\"&$M22&\"_old\",Ammortamento_Finanziario!$H:$L,5,FALSE),VLOOKUP($M22,TT_Tabelle_Riferimento!$H$31:$I$50,2,FALSE))","v":7},{"$f":"+IFERROR(VLOOKUP(JP$6&\"-\"&$M22&\"_old\",Ammortamento_Finanziario!$H:$L,5,FALSE),VLOOKUP($M22,TT_Tabelle_Riferimento!$H$31:$I$50,2,FALSE))","v":7},{"$f":"+IFERROR(VLOOKUP(JQ$6&\"-\"&$M22&\"_old\",Ammortamento_Finanziario!$H:$L,5,FALSE),VLOOKUP($M22,TT_Tabelle_Riferimento!$H$31:$I$50,2,FALSE))","v":7},{"$f":"+IFERROR(VLOOKUP(JR$6&\"-\"&$M22&\"_old\",Ammortamento_Finanziario!$H:$L,5,FALSE),VLOOKUP($M22,TT_Tabelle_Riferimento!$H$31:$I$50,2,FALSE))","v":7},{"$f":"+IFERROR(VLOOKUP(JS$6&\"-\"&$M22&\"_old\",Ammortamento_Finanziario!$H:$L,5,FALSE),VLOOKUP($M22,TT_Tabelle_Riferimento!$H$31:$I$50,2,FALSE))","v":7},{"$f":"+IFERROR(VLOOKUP(JT$6&\"-\"&$M22&\"_old\",Ammortamento_Finanziario!$H:$L,5,FALSE),VLOOKUP($M22,TT_Tabelle_Riferimento!$H$31:$I$50,2,FALSE))","v":7},{"$f":"+IFERROR(VLOOKUP(JU$6&\"-\"&$M22&\"_old\",Ammortamento_Finanziario!$H:$L,5,FALSE),VLOOKUP($M22,TT_Tabelle_Riferimento!$H$31:$I$50,2,FALSE))","v":7},{"$f":"+IFERROR(VLOOKUP(JV$6&\"-\"&$M22&\"_old\",Ammortamento_Finanziario!$H:$L,5,FALSE),VLOOKUP($M22,TT_Tabelle_Riferimento!$H$31:$I$50,2,FALSE))","v":7},{"$f":"+IFERROR(VLOOKUP(JW$6&\"-\"&$M22&\"_old\",Ammortamento_Finanziario!$H:$L,5,FALSE),VLOOKUP($M22,TT_Tabelle_Riferimento!$H$31:$I$50,2,FALSE))","v":7},{"$f":"+IFERROR(VLOOKUP(JX$6&\"-\"&$M22&\"_old\",Ammortamento_Finanziario!$H:$L,5,FALSE),VLOOKUP($M22,TT_Tabelle_Riferimento!$H$31:$I$50,2,FALSE))","v":7},{"$f":"+IFERROR(VLOOKUP(JY$6&\"-\"&$M22&\"_old\",Ammortamento_Finanziario!$H:$L,5,FALSE),VLOOKUP($M22,TT_Tabelle_Riferimento!$H$31:$I$50,2,FALSE))","v":7},{"$f":"+IFERROR(VLOOKUP(JZ$6&\"-\"&$M22&\"_old\",Ammortamento_Finanziario!$H:$L,5,FALSE),VLOOKUP($M22,TT_Tabelle_Riferimento!$H$31:$I$50,2,FALSE))","v":7},{"$f":"+IFERROR(VLOOKUP(KA$6&\"-\"&$M22&\"_old\",Ammortamento_Finanziario!$H:$L,5,FALSE),VLOOKUP($M22,TT_Tabelle_Riferimento!$H$31:$I$50,2,FALSE))","v":7},{"$f":"+IFERROR(VLOOKUP(KB$6&\"-\"&$M22&\"_old\",Ammortamento_Finanziario!$H:$L,5,FALSE),VLOOKUP($M22,TT_Tabelle_Riferimento!$H$31:$I$50,2,FALSE))","v":7},{"$f":"+IFERROR(VLOOKUP(KC$6&\"-\"&$M22&\"_old\",Ammortamento_Finanziario!$H:$L,5,FALSE),VLOOKUP($M22,TT_Tabelle_Riferimento!$H$31:$I$50,2,FALSE))","v":7},{"$f":"+IFERROR(VLOOKUP(KD$6&\"-\"&$M22&\"_old\",Ammortamento_Finanziario!$H:$L,5,FALSE),VLOOKUP($M22,TT_Tabelle_Riferimento!$H$31:$I$50,2,FALSE))","v":7},{"$f":"+IFERROR(VLOOKUP(KE$6&\"-\"&$M22&\"_old\",Ammortamento_Finanziario!$H:$L,5,FALSE),VLOOKUP($M22,TT_Tabelle_Riferimento!$H$31:$I$50,2,FALSE))","v":7},{"$f":"+IFERROR(VLOOKUP(KF$6&\"-\"&$M22&\"_old\",Ammortamento_Finanziario!$H:$L,5,FALSE),VLOOKUP($M22,TT_Tabelle_Riferimento!$H$31:$I$50,2,FALSE))","v":7},{"$f":"+IFERROR(VLOOKUP(KG$6&\"-\"&$M22&\"_old\",Ammortamento_Finanziario!$H:$L,5,FALSE),VLOOKUP($M22,TT_Tabelle_Riferimento!$H$31:$I$50,2,FALSE))","v":7},{"$f":"+IFERROR(VLOOKUP(KH$6&\"-\"&$M22&\"_old\",Ammortamento_Finanziario!$H:$L,5,FALSE),VLOOKUP($M22,TT_Tabelle_Riferimento!$H$31:$I$50,2,FALSE))","v":7},{"$f":"+IFERROR(VLOOKUP(KI$6&\"-\"&$M22&\"_old\",Ammortamento_Finanziario!$H:$L,5,FALSE),VLOOKUP($M22,TT_Tabelle_Riferimento!$H$31:$I$50,2,FALSE))","v":7},{"$f":"+IFERROR(VLOOKUP(KJ$6&\"-\"&$M22&\"_old\",Ammortamento_Finanziario!$H:$L,5,FALSE),VLOOKUP($M22,TT_Tabelle_Riferimento!$H$31:$I$50,2,FALSE))","v":7},{"$f":"+IFERROR(VLOOKUP(KK$6&\"-\"&$M22&\"_old\",Ammortamento_Finanziario!$H:$L,5,FALSE),VLOOKUP($M22,TT_Tabelle_Riferimento!$H$31:$I$50,2,FALSE))","v":7},{"$f":"+IFERROR(VLOOKUP(KL$6&\"-\"&$M22&\"_old\",Ammortamento_Finanziario!$H:$L,5,FALSE),VLOOKUP($M22,TT_Tabelle_Riferimento!$H$31:$I$50,2,FALSE))","v":7},{"$f":"+IFERROR(VLOOKUP(KM$6&\"-\"&$M22&\"_old\",Ammortamento_Finanziario!$H:$L,5,FALSE),VLOOKUP($M22,TT_Tabelle_Riferimento!$H$31:$I$50,2,FALSE))","v":7},{"$f":"+IFERROR(VLOOKUP(KN$6&\"-\"&$M22&\"_old\",Ammortamento_Finanziario!$H:$L,5,FALSE),VLOOKUP($M22,TT_Tabelle_Riferimento!$H$31:$I$50,2,FALSE))","v":7},{"$f":"+IFERROR(VLOOKUP(KO$6&\"-\"&$M22&\"_old\",Ammortamento_Finanziario!$H:$L,5,FALSE),VLOOKUP($M22,TT_Tabelle_Riferimento!$H$31:$I$50,2,FALSE))","v":7},{"$f":"+IFERROR(VLOOKUP(KP$6&\"-\"&$M22&\"_old\",Ammortamento_Finanziario!$H:$L,5,FALSE),VLOOKUP($M22,TT_Tabelle_Riferimento!$H$31:$I$50,2,FALSE))","v":7},{"$f":"+IFERROR(VLOOKUP(KQ$6&\"-\"&$M22&\"_old\",Ammortamento_Finanziario!$H:$L,5,FALSE),VLOOKUP($M22,TT_Tabelle_Riferimento!$H$31:$I$50,2,FALSE))","v":7},{"$f":"+IFERROR(VLOOKUP(KR$6&\"-\"&$M22&\"_old\",Ammortamento_Finanziario!$H:$L,5,FALSE),VLOOKUP($M22,TT_Tabelle_Riferimento!$H$31:$I$50,2,FALSE))","v":7},{"$f":"+IFERROR(VLOOKUP(KS$6&\"-\"&$M22&\"_old\",Ammortamento_Finanziario!$H:$L,5,FALSE),VLOOKUP($M22,TT_Tabelle_Riferimento!$H$31:$I$50,2,FALSE))","v":7},{"$f":"+IFERROR(VLOOKUP(KT$6&\"-\"&$M22&\"_old\",Ammortamento_Finanziario!$H:$L,5,FALSE),VLOOKUP($M22,TT_Tabelle_Riferimento!$H$31:$I$50,2,FALSE))","v":7},{"$f":"+IFERROR(VLOOKUP(KU$6&\"-\"&$M22&\"_old\",Ammortamento_Finanziario!$H:$L,5,FALSE),VLOOKUP($M22,TT_Tabelle_Riferimento!$H$31:$I$50,2,FALSE))","v":7},{"$f":"+IFERROR(VLOOKUP(KV$6&\"-\"&$M22&\"_old\",Ammortamento_Finanziario!$H:$L,5,FALSE),VLOOKUP($M22,TT_Tabelle_Riferimento!$H$31:$I$50,2,FALSE))","v":7},{"$f":"+IFERROR(VLOOKUP(KW$6&\"-\"&$M22&\"_old\",Ammortamento_Finanziario!$H:$L,5,FALSE),VLOOKUP($M22,TT_Tabelle_Riferimento!$H$31:$I$50,2,FALSE))","v":7},{"$f":"+IFERROR(VLOOKUP(KX$6&\"-\"&$M22&\"_old\",Ammortamento_Finanziario!$H:$L,5,FALSE),VLOOKUP($M22,TT_Tabelle_Riferimento!$H$31:$I$50,2,FALSE))","v":7},{"$f":"+IFERROR(VLOOKUP(KY$6&\"-\"&$M22&\"_old\",Ammortamento_Finanziario!$H:$L,5,FALSE),VLOOKUP($M22,TT_Tabelle_Riferimento!$H$31:$I$50,2,FALSE))","v":7},{"$f":"+IFERROR(VLOOKUP(KZ$6&\"-\"&$M22&\"_old\",Ammortamento_Finanziario!$H:$L,5,FALSE),VLOOKUP($M22,TT_Tabelle_Riferimento!$H$31:$I$50,2,FALSE))","v":7},{"$f":"+IFERROR(VLOOKUP(LA$6&\"-\"&$M22&\"_old\",Ammortamento_Finanziario!$H:$L,5,FALSE),VLOOKUP($M22,TT_Tabelle_Riferimento!$H$31:$I$50,2,FALSE))","v":7},{"$f":"+IFERROR(VLOOKUP(LB$6&\"-\"&$M22&\"_old\",Ammortamento_Finanziario!$H:$L,5,FALSE),VLOOKUP($M22,TT_Tabelle_Riferimento!$H$31:$I$50,2,FALSE))","v":7},{"$f":"+IFERROR(VLOOKUP(LC$6&\"-\"&$M22&\"_old\",Ammortamento_Finanziario!$H:$L,5,FALSE),VLOOKUP($M22,TT_Tabelle_Riferimento!$H$31:$I$50,2,FALSE))","v":7},{"$f":"+IFERROR(VLOOKUP(LD$6&\"-\"&$M22&\"_old\",Ammortamento_Finanziario!$H:$L,5,FALSE),VLOOKUP($M22,TT_Tabelle_Riferimento!$H$31:$I$50,2,FALSE))","v":7},{"$f":"+IFERROR(VLOOKUP(LE$6&\"-\"&$M22&\"_old\",Ammortamento_Finanziario!$H:$L,5,FALSE),VLOOKUP($M22,TT_Tabelle_Riferimento!$H$31:$I$50,2,FALSE))","v":7},{"$f":"+IFERROR(VLOOKUP(LF$6&\"-\"&$M22&\"_old\",Ammortamento_Finanziario!$H:$L,5,FALSE),VLOOKUP($M22,TT_Tabelle_Riferimento!$H$31:$I$50,2,FALSE))","v":7},{"$f":"+IFERROR(VLOOKUP(LG$6&\"-\"&$M22&\"_old\",Ammortamento_Finanziario!$H:$L,5,FALSE),VLOOKUP($M22,TT_Tabelle_Riferimento!$H$31:$I$50,2,FALSE))","v":7},{"$f":"+IFERROR(VLOOKUP(LH$6&\"-\"&$M22&\"_old\",Ammortamento_Finanziario!$H:$L,5,FALSE),VLOOKUP($M22,TT_Tabelle_Riferimento!$H$31:$I$50,2,FALSE))","v":7},{"$f":"+IFERROR(VLOOKUP(LI$6&\"-\"&$M22&\"_old\",Ammortamento_Finanziario!$H:$L,5,FALSE),VLOOKUP($M22,TT_Tabelle_Riferimento!$H$31:$I$50,2,FALSE))","v":7},{"$f":"+IFERROR(VLOOKUP(LJ$6&\"-\"&$M22&\"_old\",Ammortamento_Finanziario!$H:$L,5,FALSE),VLOOKUP($M22,TT_Tabelle_Riferimento!$H$31:$I$50,2,FALSE))","v":7},{"$f":"+IFERROR(VLOOKUP(LK$6&\"-\"&$M22&\"_old\",Ammortamento_Finanziario!$H:$L,5,FALSE),VLOOKUP($M22,TT_Tabelle_Riferimento!$H$31:$I$50,2,FALSE))","v":7},{"$f":"+IFERROR(VLOOKUP(LL$6&\"-\"&$M22&\"_old\",Ammortamento_Finanziario!$H:$L,5,FALSE),VLOOKUP($M22,TT_Tabelle_Riferimento!$H$31:$I$50,2,FALSE))","v":7},{"$f":"+IFERROR(VLOOKUP(LM$6&\"-\"&$M22&\"_old\",Ammortamento_Finanziario!$H:$L,5,FALSE),VLOOKUP($M22,TT_Tabelle_Riferimento!$H$31:$I$50,2,FALSE))","v":7},{"$f":"+IFERROR(VLOOKUP(LN$6&\"-\"&$M22&\"_old\",Ammortamento_Finanziario!$H:$L,5,FALSE),VLOOKUP($M22,TT_Tabelle_Riferimento!$H$31:$I$50,2,FALSE))","v":7},{"$f":"+IFERROR(VLOOKUP(LO$6&\"-\"&$M22&\"_old\",Ammortamento_Finanziario!$H:$L,5,FALSE),VLOOKUP($M22,TT_Tabelle_Riferimento!$H$31:$I$50,2,FALSE))","v":7},{"$f":"+IFERROR(VLOOKUP(LP$6&\"-\"&$M22&\"_old\",Ammortamento_Finanziario!$H:$L,5,FALSE),VLOOKUP($M22,TT_Tabelle_Riferimento!$H$31:$I$50,2,FALSE))","v":7},{"$f":"+IFERROR(VLOOKUP(LQ$6&\"-\"&$M22&\"_old\",Ammortamento_Finanziario!$H:$L,5,FALSE),VLOOKUP($M22,TT_Tabelle_Riferimento!$H$31:$I$50,2,FALSE))","v":7},{"$f":"+IFERROR(VLOOKUP(LR$6&\"-\"&$M22&\"_old\",Ammortamento_Finanziario!$H:$L,5,FALSE),VLOOKUP($M22,TT_Tabelle_Riferimento!$H$31:$I$50,2,FALSE))","v":7},{"$f":"+IFERROR(VLOOKUP(LS$6&\"-\"&$M22&\"_old\",Ammortamento_Finanziario!$H:$L,5,FALSE),VLOOKUP($M22,TT_Tabelle_Riferimento!$H$31:$I$50,2,FALSE))","v":7},{"$f":"+IFERROR(VLOOKUP(LT$6&\"-\"&$M22&\"_old\",Ammortamento_Finanziario!$H:$L,5,FALSE),VLOOKUP($M22,TT_Tabelle_Riferimento!$H$31:$I$50,2,FALSE))","v":7},{"$f":"+IFERROR(VLOOKUP(LU$6&\"-\"&$M22&\"_old\",Ammortamento_Finanziario!$H:$L,5,FALSE),VLOOKUP($M22,TT_Tabelle_Riferimento!$H$31:$I$50,2,FALSE))","v":7},{"$f":"+IFERROR(VLOOKUP(LV$6&\"-\"&$M22&\"_old\",Ammortamento_Finanziario!$H:$L,5,FALSE),VLOOKUP($M22,TT_Tabelle_Riferimento!$H$31:$I$50,2,FALSE))","v":7},{"$f":"+IFERROR(VLOOKUP(LW$6&\"-\"&$M22&\"_old\",Ammortamento_Finanziario!$H:$L,5,FALSE),VLOOKUP($M22,TT_Tabelle_Riferimento!$H$31:$I$50,2,FALSE))","v":7},{"$f":"+IFERROR(VLOOKUP(LX$6&\"-\"&$M22&\"_old\",Ammortamento_Finanziario!$H:$L,5,FALSE),VLOOKUP($M22,TT_Tabelle_Riferimento!$H$31:$I$50,2,FALSE))","v":7},{"$f":"+IFERROR(VLOOKUP(LY$6&\"-\"&$M22&\"_old\",Ammortamento_Finanziario!$H:$L,5,FALSE),VLOOKUP($M22,TT_Tabelle_Riferimento!$H$31:$I$50,2,FALSE))","v":7},{"$f":"+IFERROR(VLOOKUP(LZ$6&\"-\"&$M22&\"_old\",Ammortamento_Finanziario!$H:$L,5,FALSE),VLOOKUP($M22,TT_Tabelle_Riferimento!$H$31:$I$50,2,FALSE))","v":7},{"$f":"+IFERROR(VLOOKUP(MA$6&\"-\"&$M22&\"_old\",Ammortamento_Finanziario!$H:$L,5,FALSE),VLOOKUP($M22,TT_Tabelle_Riferimento!$H$31:$I$50,2,FALSE))","v":7},{"$f":"+IFERROR(VLOOKUP(MB$6&\"-\"&$M22&\"_old\",Ammortamento_Finanziario!$H:$L,5,FALSE),VLOOKUP($M22,TT_Tabelle_Riferimento!$H$31:$I$50,2,FALSE))","v":7},{"$f":"+IFERROR(VLOOKUP(MC$6&\"-\"&$M22&\"_old\",Ammortamento_Finanziario!$H:$L,5,FALSE),VLOOKUP($M22,TT_Tabelle_Riferimento!$H$31:$I$50,2,FALSE))","v":7},{"$f":"+IFERROR(VLOOKUP(MD$6&\"-\"&$M22&\"_old\",Ammortamento_Finanziario!$H:$L,5,FALSE),VLOOKUP($M22,TT_Tabelle_Riferimento!$H$31:$I$50,2,FALSE))","v":7},{"$f":"+IFERROR(VLOOKUP(ME$6&\"-\"&$M22&\"_old\",Ammortamento_Finanziario!$H:$L,5,FALSE),VLOOKUP($M22,TT_Tabelle_Riferimento!$H$31:$I$50,2,FALSE))","v":7},{"$f":"+IFERROR(VLOOKUP(MF$6&\"-\"&$M22&\"_old\",Ammortamento_Finanziario!$H:$L,5,FALSE),VLOOKUP($M22,TT_Tabelle_Riferimento!$H$31:$I$50,2,FALSE))","v":7},{"$f":"+IFERROR(VLOOKUP(MG$6&\"-\"&$M22&\"_old\",Ammortamento_Finanziario!$H:$L,5,FALSE),VLOOKUP($M22,TT_Tabelle_Riferimento!$H$31:$I$50,2,FALSE))","v":7},{"$f":"+IFERROR(VLOOKUP(MH$6&\"-\"&$M22&\"_old\",Ammortamento_Finanziario!$H:$L,5,FALSE),VLOOKUP($M22,TT_Tabelle_Riferimento!$H$31:$I$50,2,FALSE))","v":7},{"$f":"+IFERROR(VLOOKUP(MI$6&\"-\"&$M22&\"_old\",Ammortamento_Finanziario!$H:$L,5,FALSE),VLOOKUP($M22,TT_Tabelle_Riferimento!$H$31:$I$50,2,FALSE))","v":7},{"$f":"+IFERROR(VLOOKUP(MJ$6&\"-\"&$M22&\"_old\",Ammortamento_Finanziario!$H:$L,5,FALSE),VLOOKUP($M22,TT_Tabelle_Riferimento!$H$31:$I$50,2,FALSE))","v":7},{"$f":"+IFERROR(VLOOKUP(MK$6&\"-\"&$M22&\"_old\",Ammortamento_Finanziario!$H:$L,5,FALSE),VLOOKUP($M22,TT_Tabelle_Riferimento!$H$31:$I$50,2,FALSE))","v":7},{"$f":"+IFERROR(VLOOKUP(ML$6&\"-\"&$M22&\"_old\",Ammortamento_Finanziario!$H:$L,5,FALSE),VLOOKUP($M22,TT_Tabelle_Riferimento!$H$31:$I$50,2,FALSE))","v":7},{"$f":"+IFERROR(VLOOKUP(MM$6&\"-\"&$M22&\"_old\",Ammortamento_Finanziario!$H:$L,5,FALSE),VLOOKUP($M22,TT_Tabelle_Riferimento!$H$31:$I$50,2,FALSE))","v":7},{"$f":"+IFERROR(VLOOKUP(MN$6&\"-\"&$M22&\"_old\",Ammortamento_Finanziario!$H:$L,5,FALSE),VLOOKUP($M22,TT_Tabelle_Riferimento!$H$31:$I$50,2,FALSE))","v":7},{"$f":"+IFERROR(VLOOKUP(MO$6&\"-\"&$M22&\"_old\",Ammortamento_Finanziario!$H:$L,5,FALSE),VLOOKUP($M22,TT_Tabelle_Riferimento!$H$31:$I$50,2,FALSE))","v":7},{"$f":"+IFERROR(VLOOKUP(MP$6&\"-\"&$M22&\"_old\",Ammortamento_Finanziario!$H:$L,5,FALSE),VLOOKUP($M22,TT_Tabelle_Riferimento!$H$31:$I$50,2,FALSE))","v":7},{"$f":"+IFERROR(VLOOKUP(MQ$6&\"-\"&$M22&\"_old\",Ammortamento_Finanziario!$H:$L,5,FALSE),VLOOKUP($M22,TT_Tabelle_Riferimento!$H$31:$I$50,2,FALSE))","v":7},{"$f":"+IFERROR(VLOOKUP(MR$6&\"-\"&$M22&\"_old\",Ammortamento_Finanziario!$H:$L,5,FALSE),VLOOKUP($M22,TT_Tabelle_Riferimento!$H$31:$I$50,2,FALSE))","v":7},{"$f":"+IFERROR(VLOOKUP(MS$6&\"-\"&$M22&\"_old\",Ammortamento_Finanziario!$H:$L,5,FALSE),VLOOKUP($M22,TT_Tabelle_Riferimento!$H$31:$I$50,2,FALSE))","v":7},{"$f":"+IFERROR(VLOOKUP(MT$6&\"-\"&$M22&\"_old\",Ammortamento_Finanziario!$H:$L,5,FALSE),VLOOKUP($M22,TT_Tabelle_Riferimento!$H$31:$I$50,2,FALSE))","v":7},{"$f":"+IFERROR(VLOOKUP(MU$6&\"-\"&$M22&\"_old\",Ammortamento_Finanziario!$H:$L,5,FALSE),VLOOKUP($M22,TT_Tabelle_Riferimento!$H$31:$I$50,2,FALSE))","v":7},{"$f":"+IFERROR(VLOOKUP(MV$6&\"-\"&$M22&\"_old\",Ammortamento_Finanziario!$H:$L,5,FALSE),VLOOKUP($M22,TT_Tabelle_Riferimento!$H$31:$I$50,2,FALSE))","v":7},{"$f":"+IFERROR(VLOOKUP(MW$6&\"-\"&$M22&\"_old\",Ammortamento_Finanziario!$H:$L,5,FALSE),VLOOKUP($M22,TT_Tabelle_Riferimento!$H$31:$I$50,2,FALSE))","v":7},{"$f":"+IFERROR(VLOOKUP(MX$6&\"-\"&$M22&\"_old\",Ammortamento_Finanziario!$H:$L,5,FALSE),VLOOKUP($M22,TT_Tabelle_Riferimento!$H$31:$I$50,2,FALSE))","v":7},{"$f":"+IFERROR(VLOOKUP(MY$6&\"-\"&$M22&\"_old\",Ammortamento_Finanziario!$H:$L,5,FALSE),VLOOKUP($M22,TT_Tabelle_Riferimento!$H$31:$I$50,2,FALSE))","v":7},{"$f":"+IFERROR(VLOOKUP(MZ$6&\"-\"&$M22&\"_old\",Ammortamento_Finanziario!$H:$L,5,FALSE),VLOOKUP($M22,TT_Tabelle_Riferimento!$H$31:$I$50,2,FALSE))","v":7},{"$f":"+IFERROR(VLOOKUP(NA$6&\"-\"&$M22&\"_old\",Ammortamento_Finanziario!$H:$L,5,FALSE),VLOOKUP($M22,TT_Tabelle_Riferimento!$H$31:$I$50,2,FALSE))","v":7},{"$f":"+IFERROR(VLOOKUP(NB$6&\"-\"&$M22&\"_old\",Ammortamento_Finanziario!$H:$L,5,FALSE),VLOOKUP($M22,TT_Tabelle_Riferimento!$H$31:$I$50,2,FALSE))","v":7},{"$f":"+IFERROR(VLOOKUP(NC$6&\"-\"&$M22&\"_old\",Ammortamento_Finanziario!$H:$L,5,FALSE),VLOOKUP($M22,TT_Tabelle_Riferimento!$H$31:$I$50,2,FALSE))","v":7},{"$f":"+IFERROR(VLOOKUP(ND$6&\"-\"&$M22&\"_old\",Ammortamento_Finanziario!$H:$L,5,FALSE),VLOOKUP($M22,TT_Tabelle_Riferimento!$H$31:$I$50,2,FALSE))","v":7},{"$f":"+IFERROR(VLOOKUP(NE$6&\"-\"&$M22&\"_old\",Ammortamento_Finanziario!$H:$L,5,FALSE),VLOOKUP($M22,TT_Tabelle_Riferimento!$H$31:$I$50,2,FALSE))","v":7},{"$f":"+IFERROR(VLOOKUP(NF$6&\"-\"&$M22&\"_old\",Ammortamento_Finanziario!$H:$L,5,FALSE),VLOOKUP($M22,TT_Tabelle_Riferimento!$H$31:$I$50,2,FALSE))","v":7},{"$f":"+IFERROR(VLOOKUP(NG$6&\"-\"&$M22&\"_old\",Ammortamento_Finanziario!$H:$L,5,FALSE),VLOOKUP($M22,TT_Tabelle_Riferimento!$H$31:$I$50,2,FALSE))","v":7},{"$f":"+IFERROR(VLOOKUP(NH$6&\"-\"&$M22&\"_old\",Ammortamento_Finanziario!$H:$L,5,FALSE),VLOOKUP($M22,TT_Tabelle_Riferimento!$H$31:$I$50,2,FALSE))","v":7},{"$f":"+IFERROR(VLOOKUP(NI$6&\"-\"&$M22&\"_old\",Ammortamento_Finanziario!$H:$L,5,FALSE),VLOOKUP($M22,TT_Tabelle_Riferimento!$H$31:$I$50,2,FALSE))","v":7},{"$f":"+IFERROR(VLOOKUP(NJ$6&\"-\"&$M22&\"_old\",Ammortamento_Finanziario!$H:$L,5,FALSE),VLOOKUP($M22,TT_Tabelle_Riferimento!$H$31:$I$50,2,FALSE))","v":7},{"$f":"+IFERROR(VLOOKUP(NK$6&\"-\"&$M22&\"_old\",Ammortamento_Finanziario!$H:$L,5,FALSE),VLOOKUP($M22,TT_Tabelle_Riferimento!$H$31:$I$50,2,FALSE))","v":7},{"$f":"+IFERROR(VLOOKUP(NL$6&\"-\"&$M22&\"_old\",Ammortamento_Finanziario!$H:$L,5,FALSE),VLOOKUP($M22,TT_Tabelle_Riferimento!$H$31:$I$50,2,FALSE))","v":7},{"$f":"+IFERROR(VLOOKUP(NM$6&\"-\"&$M22&\"_old\",Ammortamento_Finanziario!$H:$L,5,FALSE),VLOOKUP($M22,TT_Tabelle_Riferimento!$H$31:$I$50,2,FALSE))","v":7},{"$f":"+IFERROR(VLOOKUP(NN$6&\"-\"&$M22&\"_old\",Ammortamento_Finanziario!$H:$L,5,FALSE),VLOOKUP($M22,TT_Tabelle_Riferimento!$H$31:$I$50,2,FALSE))","v":7},{"$f":"+IFERROR(VLOOKUP(NO$6&\"-\"&$M22&\"_old\",Ammortamento_Finanziario!$H:$L,5,FALSE),VLOOKUP($M22,TT_Tabelle_Riferimento!$H$31:$I$50,2,FALSE))","v":7},{"$f":"+IFERROR(VLOOKUP(NP$6&\"-\"&$M22&\"_old\",Ammortamento_Finanziario!$H:$L,5,FALSE),VLOOKUP($M22,TT_Tabelle_Riferimento!$H$31:$I$50,2,FALSE))","v":7},{"$f":"+IFERROR(VLOOKUP(NQ$6&\"-\"&$M22&\"_old\",Ammortamento_Finanziario!$H:$L,5,FALSE),VLOOKUP($M22,TT_Tabelle_Riferimento!$H$31:$I$50,2,FALSE))","v":7},{"$f":"+IFERROR(VLOOKUP(NR$6&\"-\"&$M22&\"_old\",Ammortamento_Finanziario!$H:$L,5,FALSE),VLOOKUP($M22,TT_Tabelle_Riferimento!$H$31:$I$50,2,FALSE))","v":7},{"$f":"+IFERROR(VLOOKUP(NS$6&\"-\"&$M22&\"_old\",Ammortamento_Finanziario!$H:$L,5,FALSE),VLOOKUP($M22,TT_Tabelle_Riferimento!$H$31:$I$50,2,FALSE))","v":7},{"$f":"+IFERROR(VLOOKUP(NT$6&\"-\"&$M22&\"_old\",Ammortamento_Finanziario!$H:$L,5,FALSE),VLOOKUP($M22,TT_Tabelle_Riferimento!$H$31:$I$50,2,FALSE))","v":7},{"$f":"+IFERROR(VLOOKUP(NU$6&\"-\"&$M22&\"_old\",Ammortamento_Finanziario!$H:$L,5,FALSE),VLOOKUP($M22,TT_Tabelle_Riferimento!$H$31:$I$50,2,FALSE))","v":7},{"$f":"+IFERROR(VLOOKUP(NV$6&\"-\"&$M22&\"_old\",Ammortamento_Finanziario!$H:$L,5,FALSE),VLOOKUP($M22,TT_Tabelle_Riferimento!$H$31:$I$50,2,FALSE))","v":7},{"$f":"+IFERROR(VLOOKUP(NW$6&\"-\"&$M22&\"_old\",Ammortamento_Finanziario!$H:$L,5,FALSE),VLOOKUP($M22,TT_Tabelle_Riferimento!$H$31:$I$50,2,FALSE))","v":7},{"$f":"+IFERROR(VLOOKUP(NX$6&\"-\"&$M22&\"_old\",Ammortamento_Finanziario!$H:$L,5,FALSE),VLOOKUP($M22,TT_Tabelle_Riferimento!$H$31:$I$50,2,FALSE))","v":7},{"$f":"+IFERROR(VLOOKUP(NY$6&\"-\"&$M22&\"_old\",Ammortamento_Finanziario!$H:$L,5,FALSE),VLOOKUP($M22,TT_Tabelle_Riferimento!$H$31:$I$50,2,FALSE))","v":7},{"$f":"+IFERROR(VLOOKUP(NZ$6&\"-\"&$M22&\"_old\",Ammortamento_Finanziario!$H:$L,5,FALSE),VLOOKUP($M22,TT_Tabelle_Riferimento!$H$31:$I$50,2,FALSE))","v":7},{"$f":"+IFERROR(VLOOKUP(OA$6&\"-\"&$M22&\"_old\",Ammortamento_Finanziario!$H:$L,5,FALSE),VLOOKUP($M22,TT_Tabelle_Riferimento!$H$31:$I$50,2,FALSE))","v":7},{"$f":"+IFERROR(VLOOKUP(OB$6&\"-\"&$M22&\"_old\",Ammortamento_Finanziario!$H:$L,5,FALSE),VLOOKUP($M22,TT_Tabelle_Riferimento!$H$31:$I$50,2,FALSE))","v":7},{"$f":"+IFERROR(VLOOKUP(OC$6&\"-\"&$M22&\"_old\",Ammortamento_Finanziario!$H:$L,5,FALSE),VLOOKUP($M22,TT_Tabelle_Riferimento!$H$31:$I$50,2,FALSE))","v":7},{"$f":"+IFERROR(VLOOKUP(OD$6&\"-\"&$M22&\"_old\",Ammortamento_Finanziario!$H:$L,5,FALSE),VLOOKUP($M22,TT_Tabelle_Riferimento!$H$31:$I$50,2,FALSE))","v":7},{"$f":"+IFERROR(VLOOKUP(OE$6&\"-\"&$M22&\"_old\",Ammortamento_Finanziario!$H:$L,5,FALSE),VLOOKUP($M22,TT_Tabelle_Riferimento!$H$31:$I$50,2,FALSE))","v":7},{"$f":"+IFERROR(VLOOKUP(OF$6&\"-\"&$M22&\"_old\",Ammortamento_Finanziario!$H:$L,5,FALSE),VLOOKUP($M22,TT_Tabelle_Riferimento!$H$31:$I$50,2,FALSE))","v":7},{"$f":"+IFERROR(VLOOKUP(OG$6&\"-\"&$M22&\"_old\",Ammortamento_Finanziario!$H:$L,5,FALSE),VLOOKUP($M22,TT_Tabelle_Riferimento!$H$31:$I$50,2,FALSE))","v":7},{"$f":"+IFERROR(VLOOKUP(OH$6&\"-\"&$M22&\"_old\",Ammortamento_Finanziario!$H:$L,5,FALSE),VLOOKUP($M22,TT_Tabelle_Riferimento!$H$31:$I$50,2,FALSE))","v":7},{"$f":"+IFERROR(VLOOKUP(OI$6&\"-\"&$M22&\"_old\",Ammortamento_Finanziario!$H:$L,5,FALSE),VLOOKUP($M22,TT_Tabelle_Riferimento!$H$31:$I$50,2,FALSE))","v":7},{"$f":"+IFERROR(VLOOKUP(OJ$6&\"-\"&$M22&\"_old\",Ammortamento_Finanziario!$H:$L,5,FALSE),VLOOKUP($M22,TT_Tabelle_Riferimento!$H$31:$I$50,2,FALSE))","v":7},{"$f":"+IFERROR(VLOOKUP(OK$6&\"-\"&$M22&\"_old\",Ammortamento_Finanziario!$H:$L,5,FALSE),VLOOKUP($M22,TT_Tabelle_Riferimento!$H$31:$I$50,2,FALSE))","v":7},{"$f":"+IFERROR(VLOOKUP(OL$6&\"-\"&$M22&\"_old\",Ammortamento_Finanziario!$H:$L,5,FALSE),VLOOKUP($M22,TT_Tabelle_Riferimento!$H$31:$I$50,2,FALSE))","v":7},{"$f":"+IFERROR(VLOOKUP(OM$6&\"-\"&$M22&\"_old\",Ammortamento_Finanziario!$H:$L,5,FALSE),VLOOKUP($M22,TT_Tabelle_Riferimento!$H$31:$I$50,2,FALSE))","v":7},{"$f":"+IFERROR(VLOOKUP(ON$6&\"-\"&$M22&\"_old\",Ammortamento_Finanziario!$H:$L,5,FALSE),VLOOKUP($M22,TT_Tabelle_Riferimento!$H$31:$I$50,2,FALSE))","v":7},{"$f":"+IFERROR(VLOOKUP(OO$6&\"-\"&$M22&\"_old\",Ammortamento_Finanziario!$H:$L,5,FALSE),VLOOKUP($M22,TT_Tabelle_Riferimento!$H$31:$I$50,2,FALSE))","v":7},{"$f":"+IFERROR(VLOOKUP(OP$6&\"-\"&$M22&\"_old\",Ammortamento_Finanziario!$H:$L,5,FALSE),VLOOKUP($M22,TT_Tabelle_Riferimento!$H$31:$I$50,2,FALSE))","v":7},{"$f":"+IFERROR(VLOOKUP(OQ$6&\"-\"&$M22&\"_old\",Ammortamento_Finanziario!$H:$L,5,FALSE),VLOOKUP($M22,TT_Tabelle_Riferimento!$H$31:$I$50,2,FALSE))","v":7},{"$f":"+IFERROR(VLOOKUP(OR$6&\"-\"&$M22&\"_old\",Ammortamento_Finanziario!$H:$L,5,FALSE),VLOOKUP($M22,TT_Tabelle_Riferimento!$H$31:$I$50,2,FALSE))","v":7},{"$f":"+IFERROR(VLOOKUP(OS$6&\"-\"&$M22&\"_old\",Ammortamento_Finanziario!$H:$L,5,FALSE),VLOOKUP($M22,TT_Tabelle_Riferimento!$H$31:$I$50,2,FALSE))","v":7},{"$f":"+IFERROR(VLOOKUP(OT$6&\"-\"&$M22&\"_old\",Ammortamento_Finanziario!$H:$L,5,FALSE),VLOOKUP($M22,TT_Tabelle_Riferimento!$H$31:$I$50,2,FALSE))","v":7},{"$f":"+IFERROR(VLOOKUP(OU$6&\"-\"&$M22&\"_old\",Ammortamento_Finanziario!$H:$L,5,FALSE),VLOOKUP($M22,TT_Tabelle_Riferimento!$H$31:$I$50,2,FALSE))","v":7},{"$f":"+IFERROR(VLOOKUP(OV$6&\"-\"&$M22&\"_old\",Ammortamento_Finanziario!$H:$L,5,FALSE),VLOOKUP($M22,TT_Tabelle_Riferimento!$H$31:$I$50,2,FALSE))","v":7},{"$f":"+IFERROR(VLOOKUP(OW$6&\"-\"&$M22&\"_old\",Ammortamento_Finanziario!$H:$L,5,FALSE),VLOOKUP($M22,TT_Tabelle_Riferimento!$H$31:$I$50,2,FALSE))","v":7},{"$f":"+IFERROR(VLOOKUP(OX$6&\"-\"&$M22&\"_old\",Ammortamento_Finanziario!$H:$L,5,FALSE),VLOOKUP($M22,TT_Tabelle_Riferimento!$H$31:$I$50,2,FALSE))","v":7},{"$f":"+IFERROR(VLOOKUP(OY$6&\"-\"&$M22&\"_old\",Ammortamento_Finanziario!$H:$L,5,FALSE),VLOOKUP($M22,TT_Tabelle_Riferimento!$H$31:$I$50,2,FALSE))","v":7},{"$f":"+IFERROR(VLOOKUP(OZ$6&\"-\"&$M22&\"_old\",Ammortamento_Finanziario!$H:$L,5,FALSE),VLOOKUP($M22,TT_Tabelle_Riferimento!$H$31:$I$50,2,FALSE))","v":7},{"$f":"+IFERROR(VLOOKUP(PA$6&\"-\"&$M22&\"_old\",Ammortamento_Finanziario!$H:$L,5,FALSE),VLOOKUP($M22,TT_Tabelle_Riferimento!$H$31:$I$50,2,FALSE))","v":7},{"$f":"+IFERROR(VLOOKUP(PB$6&\"-\"&$M22&\"_old\",Ammortamento_Finanziario!$H:$L,5,FALSE),VLOOKUP($M22,TT_Tabelle_Riferimento!$H$31:$I$50,2,FALSE))","v":7},{"$f":"+IFERROR(VLOOKUP(PC$6&\"-\"&$M22&\"_old\",Ammortamento_Finanziario!$H:$L,5,FALSE),VLOOKUP($M22,TT_Tabelle_Riferimento!$H$31:$I$50,2,FALSE))","v":7},{"$f":"+IFERROR(VLOOKUP(PD$6&\"-\"&$M22&\"_old\",Ammortamento_Finanziario!$H:$L,5,FALSE),VLOOKUP($M22,TT_Tabelle_Riferimento!$H$31:$I$50,2,FALSE))","v":7},{"$f":"+IFERROR(VLOOKUP(PE$6&\"-\"&$M22&\"_old\",Ammortamento_Finanziario!$H:$L,5,FALSE),VLOOKUP($M22,TT_Tabelle_Riferimento!$H$31:$I$50,2,FALSE))","v":7},{"$f":"+IFERROR(VLOOKUP(PF$6&\"-\"&$M22&\"_old\",Ammortamento_Finanziario!$H:$L,5,FALSE),VLOOKUP($M22,TT_Tabelle_Riferimento!$H$31:$I$50,2,FALSE))","v":7},{"$f":"+IFERROR(VLOOKUP(PG$6&\"-\"&$M22&\"_old\",Ammortamento_Finanziario!$H:$L,5,FALSE),VLOOKUP($M22,TT_Tabelle_Riferimento!$H$31:$I$50,2,FALSE))","v":7},{"$f":"+IFERROR(VLOOKUP(PH$6&\"-\"&$M22&\"_old\",Ammortamento_Finanziario!$H:$L,5,FALSE),VLOOKUP($M22,TT_Tabelle_Riferimento!$H$31:$I$50,2,FALSE))","v":7},{"$f":"+IFERROR(VLOOKUP(PI$6&\"-\"&$M22&\"_old\",Ammortamento_Finanziario!$H:$L,5,FALSE),VLOOKUP($M22,TT_Tabelle_Riferimento!$H$31:$I$50,2,FALSE))","v":7},{"$f":"+IFERROR(VLOOKUP(PJ$6&\"-\"&$M22&\"_old\",Ammortamento_Finanziario!$H:$L,5,FALSE),VLOOKUP($M22,TT_Tabelle_Riferimento!$H$31:$I$50,2,FALSE))","v":7},{"$f":"+IFERROR(VLOOKUP(PK$6&\"-\"&$M22&\"_old\",Ammortamento_Finanziario!$H:$L,5,FALSE),VLOOKUP($M22,TT_Tabelle_Riferimento!$H$31:$I$50,2,FALSE))","v":7},{"$f":"+IFERROR(VLOOKUP(PL$6&\"-\"&$M22&\"_old\",Ammortamento_Finanziario!$H:$L,5,FALSE),VLOOKUP($M22,TT_Tabelle_Riferimento!$H$31:$I$50,2,FALSE))","v":7},{"$f":"+IFERROR(VLOOKUP(PM$6&\"-\"&$M22&\"_old\",Ammortamento_Finanziario!$H:$L,5,FALSE),VLOOKUP($M22,TT_Tabelle_Riferimento!$H$31:$I$50,2,FALSE))","v":7},{"$f":"+IFERROR(VLOOKUP(PN$6&\"-\"&$M22&\"_old\",Ammortamento_Finanziario!$H:$L,5,FALSE),VLOOKUP($M22,TT_Tabelle_Riferimento!$H$31:$I$50,2,FALSE))","v":7},{"$f":"+IFERROR(VLOOKUP(PO$6&\"-\"&$M22&\"_old\",Ammortamento_Finanziario!$H:$L,5,FALSE),VLOOKUP($M22,TT_Tabelle_Riferimento!$H$31:$I$50,2,FALSE))","v":7},{"$f":"+IFERROR(VLOOKUP(PP$6&\"-\"&$M22&\"_old\",Ammortamento_Finanziario!$H:$L,5,FALSE),VLOOKUP($M22,TT_Tabelle_Riferimento!$H$31:$I$50,2,FALSE))","v":7},{"$f":"+IFERROR(VLOOKUP(PQ$6&\"-\"&$M22&\"_old\",Ammortamento_Finanziario!$H:$L,5,FALSE),VLOOKUP($M22,TT_Tabelle_Riferimento!$H$31:$I$50,2,FALSE))","v":7},{"$f":"+IFERROR(VLOOKUP(PR$6&\"-\"&$M22&\"_old\",Ammortamento_Finanziario!$H:$L,5,FALSE),VLOOKUP($M22,TT_Tabelle_Riferimento!$H$31:$I$50,2,FALSE))","v":7},{"$f":"+IFERROR(VLOOKUP(PS$6&\"-\"&$M22&\"_old\",Ammortamento_Finanziario!$H:$L,5,FALSE),VLOOKUP($M22,TT_Tabelle_Riferimento!$H$31:$I$50,2,FALSE))","v":7},{"$f":"+IFERROR(VLOOKUP(PT$6&\"-\"&$M22&\"_old\",Ammortamento_Finanziario!$H:$L,5,FALSE),VLOOKUP($M22,TT_Tabelle_Riferimento!$H$31:$I$50,2,FALSE))","v":7},{"$f":"+IFERROR(VLOOKUP(PU$6&\"-\"&$M22&\"_old\",Ammortamento_Finanziario!$H:$L,5,FALSE),VLOOKUP($M22,TT_Tabelle_Riferimento!$H$31:$I$50,2,FALSE))","v":7},{"$f":"+IFERROR(VLOOKUP(PV$6&\"-\"&$M22&\"_old\",Ammortamento_Finanziario!$H:$L,5,FALSE),VLOOKUP($M22,TT_Tabelle_Riferimento!$H$31:$I$50,2,FALSE))","v":7},{"$f":"+IFERROR(VLOOKUP(PW$6&\"-\"&$M22&\"_old\",Ammortamento_Finanziario!$H:$L,5,FALSE),VLOOKUP($M22,TT_Tabelle_Riferimento!$H$31:$I$50,2,FALSE))","v":7},{"$f":"+IFERROR(VLOOKUP(PX$6&\"-\"&$M22&\"_old\",Ammortamento_Finanziario!$H:$L,5,FALSE),VLOOKUP($M22,TT_Tabelle_Riferimento!$H$31:$I$50,2,FALSE))","v":7},{"$f":"+IFERROR(VLOOKUP(PY$6&\"-\"&$M22&\"_old\",Ammortamento_Finanziario!$H:$L,5,FALSE),VLOOKUP($M22,TT_Tabelle_Riferimento!$H$31:$I$50,2,FALSE))","v":7},{"$f":"+IFERROR(VLOOKUP(PZ$6&\"-\"&$M22&\"_old\",Ammortamento_Finanziario!$H:$L,5,FALSE),VLOOKUP($M22,TT_Tabelle_Riferimento!$H$31:$I$50,2,FALSE))","v":7},{"$f":"+IFERROR(VLOOKUP(QA$6&\"-\"&$M22&\"_old\",Ammortamento_Finanziario!$H:$L,5,FALSE),VLOOKUP($M22,TT_Tabelle_Riferimento!$H$31:$I$50,2,FALSE))","v":7},{"$f":"+IFERROR(VLOOKUP(QB$6&\"-\"&$M22&\"_old\",Ammortamento_Finanziario!$H:$L,5,FALSE),VLOOKUP($M22,TT_Tabelle_Riferimento!$H$31:$I$50,2,FALSE))","v":7},{"$f":"+IFERROR(VLOOKUP(QC$6&\"-\"&$M22&\"_old\",Ammortamento_Finanziario!$H:$L,5,FALSE),VLOOKUP($M22,TT_Tabelle_Riferimento!$H$31:$I$50,2,FALSE))","v":7},{"$f":"+IFERROR(VLOOKUP(QD$6&\"-\"&$M22&\"_old\",Ammortamento_Finanziario!$H:$L,5,FALSE),VLOOKUP($M22,TT_Tabelle_Riferimento!$H$31:$I$50,2,FALSE))","v":7},{"$f":"+IFERROR(VLOOKUP(QE$6&\"-\"&$M22&\"_old\",Ammortamento_Finanziario!$H:$L,5,FALSE),VLOOKUP($M22,TT_Tabelle_Riferimento!$H$31:$I$50,2,FALSE))","v":7},{"$f":"+IFERROR(VLOOKUP(QF$6&\"-\"&$M22&\"_old\",Ammortamento_Finanziario!$H:$L,5,FALSE),VLOOKUP($M22,TT_Tabelle_Riferimento!$H$31:$I$50,2,FALSE))","v":7},{"$f":"+IFERROR(VLOOKUP(QG$6&\"-\"&$M22&\"_old\",Ammortamento_Finanziario!$H:$L,5,FALSE),VLOOKUP($M22,TT_Tabelle_Riferimento!$H$31:$I$50,2,FALSE))","v":7},{"$f":"+IFERROR(VLOOKUP(QH$6&\"-\"&$M22&\"_old\",Ammortamento_Finanziario!$H:$L,5,FALSE),VLOOKUP($M22,TT_Tabelle_Riferimento!$H$31:$I$50,2,FALSE))","v":7},{"$f":"+IFERROR(VLOOKUP(QI$6&\"-\"&$M22&\"_old\",Ammortamento_Finanziario!$H:$L,5,FALSE),VLOOKUP($M22,TT_Tabelle_Riferimento!$H$31:$I$50,2,FALSE))","v":7},{"$f":"+IFERROR(VLOOKUP(QJ$6&\"-\"&$M22&\"_old\",Ammortamento_Finanziario!$H:$L,5,FALSE),VLOOKUP($M22,TT_Tabelle_Riferimento!$H$31:$I$50,2,FALSE))","v":7},{"$f":"+IFERROR(VLOOKUP(QK$6&\"-\"&$M22&\"_old\",Ammortamento_Finanziario!$H:$L,5,FALSE),VLOOKUP($M22,TT_Tabelle_Riferimento!$H$31:$I$50,2,FALSE))","v":7},{"$f":"+IFERROR(VLOOKUP(QL$6&\"-\"&$M22&\"_old\",Ammortamento_Finanziario!$H:$L,5,FALSE),VLOOKUP($M22,TT_Tabelle_Riferimento!$H$31:$I$50,2,FALSE))","v":7},{"$f":"+IFERROR(VLOOKUP(QM$6&\"-\"&$M22&\"_old\",Ammortamento_Finanziario!$H:$L,5,FALSE),VLOOKUP($M22,TT_Tabelle_Riferimento!$H$31:$I$50,2,FALSE))","v":7},{"$f":"+IFERROR(VLOOKUP(QN$6&\"-\"&$M22&\"_old\",Ammortamento_Finanziario!$H:$L,5,FALSE),VLOOKUP($M22,TT_Tabelle_Riferimento!$H$31:$I$50,2,FALSE))","v":7},{"$f":"+IFERROR(VLOOKUP(QO$6&\"-\"&$M22&\"_old\",Ammortamento_Finanziario!$H:$L,5,FALSE),VLOOKUP($M22,TT_Tabelle_Riferimento!$H$31:$I$50,2,FALSE))","v":7},{"$f":"+IFERROR(VLOOKUP(QP$6&\"-\"&$M22&\"_old\",Ammortamento_Finanziario!$H:$L,5,FALSE),VLOOKUP($M22,TT_Tabelle_Riferimento!$H$31:$I$50,2,FALSE))","v":7},{"$f":"+IFERROR(VLOOKUP(QQ$6&\"-\"&$M22&\"_old\",Ammortamento_Finanziario!$H:$L,5,FALSE),VLOOKUP($M22,TT_Tabelle_Riferimento!$H$31:$I$50,2,FALSE))","v":7},{"$f":"+IFERROR(VLOOKUP(QR$6&\"-\"&$M22&\"_old\",Ammortamento_Finanziario!$H:$L,5,FALSE),VLOOKUP($M22,TT_Tabelle_Riferimento!$H$31:$I$50,2,FALSE))","v":7},{"$f":"+IFERROR(VLOOKUP(QS$6&\"-\"&$M22&\"_old\",Ammortamento_Finanziario!$H:$L,5,FALSE),VLOOKUP($M22,TT_Tabelle_Riferimento!$H$31:$I$50,2,FALSE))","v":7},{"$f":"+IFERROR(VLOOKUP(QT$6&\"-\"&$M22&\"_old\",Ammortamento_Finanziario!$H:$L,5,FALSE),VLOOKUP($M22,TT_Tabelle_Riferimento!$H$31:$I$50,2,FALSE))","v":7},{"$f":"+IFERROR(VLOOKUP(QU$6&\"-\"&$M22&\"_old\",Ammortamento_Finanziario!$H:$L,5,FALSE),VLOOKUP($M22,TT_Tabelle_Riferimento!$H$31:$I$50,2,FALSE))","v":7},{"$f":"+IFERROR(VLOOKUP(QV$6&\"-\"&$M22&\"_old\",Ammortamento_Finanziario!$H:$L,5,FALSE),VLOOKUP($M22,TT_Tabelle_Riferimento!$H$31:$I$50,2,FALSE))","v":7},{"$f":"+IFERROR(VLOOKUP(QW$6&\"-\"&$M22&\"_old\",Ammortamento_Finanziario!$H:$L,5,FALSE),VLOOKUP($M22,TT_Tabelle_Riferimento!$H$31:$I$50,2,FALSE))","v":7},{"$f":"+IFERROR(VLOOKUP(QX$6&\"-\"&$M22&\"_old\",Ammortamento_Finanziario!$H:$L,5,FALSE),VLOOKUP($M22,TT_Tabelle_Riferimento!$H$31:$I$50,2,FALSE))","v":7},{"$f":"+IFERROR(VLOOKUP(QY$6&\"-\"&$M22&\"_old\",Ammortamento_Finanziario!$H:$L,5,FALSE),VLOOKUP($M22,TT_Tabelle_Riferimento!$H$31:$I$50,2,FALSE))","v":7},{"$f":"+IFERROR(VLOOKUP(QZ$6&\"-\"&$M22&\"_old\",Ammortamento_Finanziario!$H:$L,5,FALSE),VLOOKUP($M22,TT_Tabelle_Riferimento!$H$31:$I$50,2,FALSE))","v":7},{"$f":"+IFERROR(VLOOKUP(RA$6&\"-\"&$M22&\"_old\",Ammortamento_Finanziario!$H:$L,5,FALSE),VLOOKUP($M22,TT_Tabelle_Riferimento!$H$31:$I$50,2,FALSE))","v":7},{"$f":"+IFERROR(VLOOKUP(RB$6&\"-\"&$M22&\"_old\",Ammortamento_Finanziario!$H:$L,5,FALSE),VLOOKUP($M22,TT_Tabelle_Riferimento!$H$31:$I$50,2,FALSE))","v":7},{"$f":"+IFERROR(VLOOKUP(RC$6&\"-\"&$M22&\"_old\",Ammortamento_Finanziario!$H:$L,5,FALSE),VLOOKUP($M22,TT_Tabelle_Riferimento!$H$31:$I$50,2,FALSE))","v":7},{"$f":"+IFERROR(VLOOKUP(RD$6&\"-\"&$M22&\"_old\",Ammortamento_Finanziario!$H:$L,5,FALSE),VLOOKUP($M22,TT_Tabelle_Riferimento!$H$31:$I$50,2,FALSE))","v":7},{"$f":"+IFERROR(VLOOKUP(RE$6&\"-\"&$M22&\"_old\",Ammortamento_Finanziario!$H:$L,5,FALSE),VLOOKUP($M22,TT_Tabelle_Riferimento!$H$31:$I$50,2,FALSE))","v":7},{"$f":"+IFERROR(VLOOKUP(RF$6&\"-\"&$M22&\"_old\",Ammortamento_Finanziario!$H:$L,5,FALSE),VLOOKUP($M22,TT_Tabelle_Riferimento!$H$31:$I$50,2,FALSE))","v":7},{"$f":"+IFERROR(VLOOKUP(RG$6&\"-\"&$M22&\"_old\",Ammortamento_Finanziario!$H:$L,5,FALSE),VLOOKUP($M22,TT_Tabelle_Riferimento!$H$31:$I$50,2,FALSE))","v":7},{"$f":"+IFERROR(VLOOKUP(RH$6&\"-\"&$M22&\"_old\",Ammortamento_Finanziario!$H:$L,5,FALSE),VLOOKUP($M22,TT_Tabelle_Riferimento!$H$31:$I$50,2,FALSE))","v":7},{"$f":"+IFERROR(VLOOKUP(RI$6&\"-\"&$M22&\"_old\",Ammortamento_Finanziario!$H:$L,5,FALSE),VLOOKUP($M22,TT_Tabelle_Riferimento!$H$31:$I$50,2,FALSE))","v":7},{"$f":"+IFERROR(VLOOKUP(RJ$6&\"-\"&$M22&\"_old\",Ammortamento_Finanziario!$H:$L,5,FALSE),VLOOKUP($M22,TT_Tabelle_Riferimento!$H$31:$I$50,2,FALSE))","v":7},{"$f":"+IFERROR(VLOOKUP(RK$6&\"-\"&$M22&\"_old\",Ammortamento_Finanziario!$H:$L,5,FALSE),VLOOKUP($M22,TT_Tabelle_Riferimento!$H$31:$I$50,2,FALSE))","v":7},{"$f":"+IFERROR(VLOOKUP(RL$6&\"-\"&$M22&\"_old\",Ammortamento_Finanziario!$H:$L,5,FALSE),VLOOKUP($M22,TT_Tabelle_Riferimento!$H$31:$I$50,2,FALSE))","v":7},{"$f":"+IFERROR(VLOOKUP(RM$6&\"-\"&$M22&\"_old\",Ammortamento_Finanziario!$H:$L,5,FALSE),VLOOKUP($M22,TT_Tabelle_Riferimento!$H$31:$I$50,2,FALSE))","v":7},{"$f":"+IFERROR(VLOOKUP(RN$6&\"-\"&$M22&\"_old\",Ammortamento_Finanziario!$H:$L,5,FALSE),VLOOKUP($M22,TT_Tabelle_Riferimento!$H$31:$I$50,2,FALSE))","v":7},{"$f":"+IFERROR(VLOOKUP(RO$6&\"-\"&$M22&\"_old\",Ammortamento_Finanziario!$H:$L,5,FALSE),VLOOKUP($M22,TT_Tabelle_Riferimento!$H$31:$I$50,2,FALSE))","v":7},{"$f":"+IFERROR(VLOOKUP(RP$6&\"-\"&$M22&\"_old\",Ammortamento_Finanziario!$H:$L,5,FALSE),VLOOKUP($M22,TT_Tabelle_Riferimento!$H$31:$I$50,2,FALSE))","v":7},{"$f":"+IFERROR(VLOOKUP(RQ$6&\"-\"&$M22&\"_old\",Ammortamento_Finanziario!$H:$L,5,FALSE),VLOOKUP($M22,TT_Tabelle_Riferimento!$H$31:$I$50,2,FALSE))","v":7},{"$f":"+IFERROR(VLOOKUP(RR$6&\"-\"&$M22&\"_old\",Ammortamento_Finanziario!$H:$L,5,FALSE),VLOOKUP($M22,TT_Tabelle_Riferimento!$H$31:$I$50,2,FALSE))","v":7},{"$f":"+IFERROR(VLOOKUP(RS$6&\"-\"&$M22&\"_old\",Ammortamento_Finanziario!$H:$L,5,FALSE),VLOOKUP($M22,TT_Tabelle_Riferimento!$H$31:$I$50,2,FALSE))","v":7},{"$f":"+IFERROR(VLOOKUP(RT$6&\"-\"&$M22&\"_old\",Ammortamento_Finanziario!$H:$L,5,FALSE),VLOOKUP($M22,TT_Tabelle_Riferimento!$H$31:$I$50,2,FALSE))","v":7},{"$f":"+IFERROR(VLOOKUP(RU$6&\"-\"&$M22&\"_old\",Ammortamento_Finanziario!$H:$L,5,FALSE),VLOOKUP($M22,TT_Tabelle_Riferimento!$H$31:$I$50,2,FALSE))","v":7},{"$f":"+IFERROR(VLOOKUP(RV$6&\"-\"&$M22&\"_old\",Ammortamento_Finanziario!$H:$L,5,FALSE),VLOOKUP($M22,TT_Tabelle_Riferimento!$H$31:$I$50,2,FALSE))","v":7}]
[null,null,null,"FA CFP",{"$f":"+SUMIFS(IMN_gestore!V:V,IMN_gestore!$E:$E,\">=\"&2012,IMN_gestore!$E:$E,\"<=\"&2022)","v":0},{"$f":"+SUMIFS(IMN_gestore!AG:AG,IMN_gestore!$E:$E,\">=\"&2012,IMN_gestore!$E:$E,\"<=\"&2023)","v":0},{"$f":"+SUMIFS(IMN_gestore!AR:AR,IMN_gestore!$E:$E,\">=\"&2012,IMN_gestore!$E:$E,\"<=\"&2024)","v":0},{"$f":"+SUMIFS(IMN_gestore!BC:BC,IMN_gestore!$E:$E,\">=\"&2012,IMN_gestore!$E:$E,\"<=\"&2025)","v":0},{"$f":"+SUMIFS(IMN_gestore!$BN:$BN,IMN_gestore!$E:$E,\">=\"&2012,IMN_gestore!$E:$E,\"<=\"&2026)","v":0},{"$f":"+SUMIFS(IMN_gestore!$BY:$BY,IMN_gestore!$E:$E,\">=\"&2012,IMN_gestore!$E:$E,\"<=\"&2027)","v":0},null,null,38,{"$f":"+IFERROR(VLOOKUP(N$6&\"-\"&$M23&\"_old\",Ammortamento_Finanziario!$H:$L,5,FALSE),VLOOKUP($M23,TT_Tabelle_Riferimento!$H$31:$I$50,2,FALSE))","v":60},{"$f":"+IFERROR(VLOOKUP(O$6&\"-\"&$M23&\"_old\",Ammortamento_Finanziario!$H:$L,5,FALSE),VLOOKUP($M23,TT_Tabelle_Riferimento!$H$31:$I$50,2,FALSE))","v":60},{"$f":"+IFERROR(VLOOKUP(P$6&\"-\"&$M23&\"_old\",Ammortamento_Finanziario!$H:$L,5,FALSE),VLOOKUP($M23,TT_Tabelle_Riferimento!$H$31:$I$50,2,FALSE))","v":60},{"$f":"+IFERROR(VLOOKUP(Q$6&\"-\"&$M23&\"_old\",Ammortamento_Finanziario!$H:$L,5,FALSE),VLOOKUP($M23,TT_Tabelle_Riferimento!$H$31:$I$50,2,FALSE))","v":60},{"$f":"+IFERROR(VLOOKUP(R$6&\"-\"&$M23&\"_old\",Ammortamento_Finanziario!$H:$L,5,FALSE),VLOOKUP($M23,TT_Tabelle_Riferimento!$H$31:$I$50,2,FALSE))","v":60},{"$f":"+IFERROR(VLOOKUP(S$6&\"-\"&$M23&\"_old\",Ammortamento_Finanziario!$H:$L,5,FALSE),VLOOKUP($M23,TT_Tabelle_Riferimento!$H$31:$I$50,2,FALSE))","v":60},{"$f":"+IFERROR(VLOOKUP(T$6&\"-\"&$M23&\"_old\",Ammortamento_Finanziario!$H:$L,5,FALSE),VLOOKUP($M23,TT_Tabelle_Riferimento!$H$31:$I$50,2,FALSE))","v":60},{"$f":"+IFERROR(VLOOKUP(U$6&\"-\"&$M23&\"_old\",Ammortamento_Finanziario!$H:$L,5,FALSE),VLOOKUP($M23,TT_Tabelle_Riferimento!$H$31:$I$50,2,FALSE))","v":60},{"$f":"+IFERROR(VLOOKUP(V$6&\"-\"&$M23&\"_old\",Ammortamento_Finanziario!$H:$L,5,FALSE),VLOOKUP($M23,TT_Tabelle_Riferimento!$H$31:$I$50,2,FALSE))","v":60},{"$f":"+IFERROR(VLOOKUP(W$6&\"-\"&$M23&\"_old\",Ammortamento_Finanziario!$H:$L,5,FALSE),VLOOKUP($M23,TT_Tabelle_Riferimento!$H$31:$I$50,2,FALSE))","v":60},{"$f":"+IFERROR(VLOOKUP(X$6&\"-\"&$M23&\"_old\",Ammortamento_Finanziario!$H:$L,5,FALSE),VLOOKUP($M23,TT_Tabelle_Riferimento!$H$31:$I$50,2,FALSE))","v":60},{"$f":"+IFERROR(VLOOKUP(Y$6&\"-\"&$M23&\"_old\",Ammortamento_Finanziario!$H:$L,5,FALSE),VLOOKUP($M23,TT_Tabelle_Riferimento!$H$31:$I$50,2,FALSE))","v":60},{"$f":"+IFERROR(VLOOKUP(Z$6&\"-\"&$M23&\"_old\",Ammortamento_Finanziario!$H:$L,5,FALSE),VLOOKUP($M23,TT_Tabelle_Riferimento!$H$31:$I$50,2,FALSE))","v":60},{"$f":"+IFERROR(VLOOKUP(AA$6&\"-\"&$M23&\"_old\",Ammortamento_Finanziario!$H:$L,5,FALSE),VLOOKUP($M23,TT_Tabelle_Riferimento!$H$31:$I$50,2,FALSE))","v":60},{"$f":"+IFERROR(VLOOKUP(AB$6&\"-\"&$M23&\"_old\",Ammortamento_Finanziario!$H:$L,5,FALSE),VLOOKUP($M23,TT_Tabelle_Riferimento!$H$31:$I$50,2,FALSE))","v":60},{"$f":"+IFERROR(VLOOKUP(AC$6&\"-\"&$M23&\"_old\",Ammortamento_Finanziario!$H:$L,5,FALSE),VLOOKUP($M23,TT_Tabelle_Riferimento!$H$31:$I$50,2,FALSE))","v":60},{"$f":"+IFERROR(VLOOKUP(AD$6&\"-\"&$M23&\"_old\",Ammortamento_Finanziario!$H:$L,5,FALSE),VLOOKUP($M23,TT_Tabelle_Riferimento!$H$31:$I$50,2,FALSE))","v":60},{"$f":"+IFERROR(VLOOKUP(AE$6&\"-\"&$M23&\"_old\",Ammortamento_Finanziario!$H:$L,5,FALSE),VLOOKUP($M23,TT_Tabelle_Riferimento!$H$31:$I$50,2,FALSE))","v":60},{"$f":"+IFERROR(VLOOKUP(AF$6&\"-\"&$M23&\"_old\",Ammortamento_Finanziario!$H:$L,5,FALSE),VLOOKUP($M23,TT_Tabelle_Riferimento!$H$31:$I$50,2,FALSE))","v":60},{"$f":"+IFERROR(VLOOKUP(AG$6&\"-\"&$M23&\"_old\",Ammortamento_Finanziario!$H:$L,5,FALSE),VLOOKUP($M23,TT_Tabelle_Riferimento!$H$31:$I$50,2,FALSE))","v":60},{"$f":"+IFERROR(VLOOKUP(AH$6&\"-\"&$M23&\"_old\",Ammortamento_Finanziario!$H:$L,5,FALSE),VLOOKUP($M23,TT_Tabelle_Riferimento!$H$31:$I$50,2,FALSE))","v":60},{"$f":"+IFERROR(VLOOKUP(AI$6&\"-\"&$M23&\"_old\",Ammortamento_Finanziario!$H:$L,5,FALSE),VLOOKUP($M23,TT_Tabelle_Riferimento!$H$31:$I$50,2,FALSE))","v":60},{"$f":"+IFERROR(VLOOKUP(AJ$6&\"-\"&$M23&\"_old\",Ammortamento_Finanziario!$H:$L,5,FALSE),VLOOKUP($M23,TT_Tabelle_Riferimento!$H$31:$I$50,2,FALSE))","v":60},{"$f":"+IFERROR(VLOOKUP(AK$6&\"-\"&$M23&\"_old\",Ammortamento_Finanziario!$H:$L,5,FALSE),VLOOKUP($M23,TT_Tabelle_Riferimento!$H$31:$I$50,2,FALSE))","v":60},{"$f":"+IFERROR(VLOOKUP(AL$6&\"-\"&$M23&\"_old\",Ammortamento_Finanziario!$H:$L,5,FALSE),VLOOKUP($M23,TT_Tabelle_Riferimento!$H$31:$I$50,2,FALSE))","v":60},{"$f":"+IFERROR(VLOOKUP(AM$6&\"-\"&$M23&\"_old\",Ammortamento_Finanziario!$H:$L,5,FALSE),VLOOKUP($M23,TT_Tabelle_Riferimento!$H$31:$I$50,2,FALSE))","v":60},{"$f":"+IFERROR(VLOOKUP(AN$6&\"-\"&$M23&\"_old\",Ammortamento_Finanziario!$H:$L,5,FALSE),VLOOKUP($M23,TT_Tabelle_Riferimento!$H$31:$I$50,2,FALSE))","v":60},{"$f":"+IFERROR(VLOOKUP(AO$6&\"-\"&$M23&\"_old\",Ammortamento_Finanziario!$H:$L,5,FALSE),VLOOKUP($M23,TT_Tabelle_Riferimento!$H$31:$I$50,2,FALSE))","v":60},{"$f":"+IFERROR(VLOOKUP(AP$6&\"-\"&$M23&\"_old\",Ammortamento_Finanziario!$H:$L,5,FALSE),VLOOKUP($M23,TT_Tabelle_Riferimento!$H$31:$I$50,2,FALSE))","v":60},{"$f":"+IFERROR(VLOOKUP(AQ$6&\"-\"&$M23&\"_old\",Ammortamento_Finanziario!$H:$L,5,FALSE),VLOOKUP($M23,TT_Tabelle_Riferimento!$H$31:$I$50,2,FALSE))","v":60},{"$f":"+IFERROR(VLOOKUP(AR$6&\"-\"&$M23&\"_old\",Ammortamento_Finanziario!$H:$L,5,FALSE),VLOOKUP($M23,TT_Tabelle_Riferimento!$H$31:$I$50,2,FALSE))","v":60},{"$f":"+IFERROR(VLOOKUP(AS$6&\"-\"&$M23&\"_old\",Ammortamento_Finanziario!$H:$L,5,FALSE),VLOOKUP($M23,TT_Tabelle_Riferimento!$H$31:$I$50,2,FALSE))","v":60},{"$f":"+IFERROR(VLOOKUP(AT$6&\"-\"&$M23&\"_old\",Ammortamento_Finanziario!$H:$L,5,FALSE),VLOOKUP($M23,TT_Tabelle_Riferimento!$H$31:$I$50,2,FALSE))","v":60},{"$f":"+IFERROR(VLOOKUP(AU$6&\"-\"&$M23&\"_old\",Ammortamento_Finanziario!$H:$L,5,FALSE),VLOOKUP($M23,TT_Tabelle_Riferimento!$H$31:$I$50,2,FALSE))","v":60},{"$f":"+IFERROR(VLOOKUP(AV$6&\"-\"&$M23&\"_old\",Ammortamento_Finanziario!$H:$L,5,FALSE),VLOOKUP($M23,TT_Tabelle_Riferimento!$H$31:$I$50,2,FALSE))","v":60},{"$f":"+IFERROR(VLOOKUP(AW$6&\"-\"&$M23&\"_old\",Ammortamento_Finanziario!$H:$L,5,FALSE),VLOOKUP($M23,TT_Tabelle_Riferimento!$H$31:$I$50,2,FALSE))","v":60},{"$f":"+IFERROR(VLOOKUP(AX$6&\"-\"&$M23&\"_old\",Ammortamento_Finanziario!$H:$L,5,FALSE),VLOOKUP($M23,TT_Tabelle_Riferimento!$H$31:$I$50,2,FALSE))","v":60},{"$f":"+IFERROR(VLOOKUP(AY$6&\"-\"&$M23&\"_old\",Ammortamento_Finanziario!$H:$L,5,FALSE),VLOOKUP($M23,TT_Tabelle_Riferimento!$H$31:$I$50,2,FALSE))","v":60},{"$f":"+IFERROR(VLOOKUP(AZ$6&\"-\"&$M23&\"_old\",Ammortamento_Finanziario!$H:$L,5,FALSE),VLOOKUP($M23,TT_Tabelle_Riferimento!$H$31:$I$50,2,FALSE))","v":60},{"$f":"+IFERROR(VLOOKUP(BA$6&\"-\"&$M23&\"_old\",Ammortamento_Finanziario!$H:$L,5,FALSE),VLOOKUP($M23,TT_Tabelle_Riferimento!$H$31:$I$50,2,FALSE))","v":60},{"$f":"+IFERROR(VLOOKUP(BB$6&\"-\"&$M23&\"_old\",Ammortamento_Finanziario!$H:$L,5,FALSE),VLOOKUP($M23,TT_Tabelle_Riferimento!$H$31:$I$50,2,FALSE))","v":60},{"$f":"+IFERROR(VLOOKUP(BC$6&\"-\"&$M23&\"_old\",Ammortamento_Finanziario!$H:$L,5,FALSE),VLOOKUP($M23,TT_Tabelle_Riferimento!$H$31:$I$50,2,FALSE))","v":60},{"$f":"+IFERROR(VLOOKUP(BD$6&\"-\"&$M23&\"_old\",Ammortamento_Finanziario!$H:$L,5,FALSE),VLOOKUP($M23,TT_Tabelle_Riferimento!$H$31:$I$50,2,FALSE))","v":60},{"$f":"+IFERROR(VLOOKUP(BE$6&\"-\"&$M23&\"_old\",Ammortamento_Finanziario!$H:$L,5,FALSE),VLOOKUP($M23,TT_Tabelle_Riferimento!$H$31:$I$50,2,FALSE))","v":60},{"$f":"+IFERROR(VLOOKUP(BF$6&\"-\"&$M23&\"_old\",Ammortamento_Finanziario!$H:$L,5,FALSE),VLOOKUP($M23,TT_Tabelle_Riferimento!$H$31:$I$50,2,FALSE))","v":60},{"$f":"+IFERROR(VLOOKUP(BG$6&\"-\"&$M23&\"_old\",Ammortamento_Finanziario!$H:$L,5,FALSE),VLOOKUP($M23,TT_Tabelle_Riferimento!$H$31:$I$50,2,FALSE))","v":60},{"$f":"+IFERROR(VLOOKUP(BH$6&\"-\"&$M23&\"_old\",Ammortamento_Finanziario!$H:$L,5,FALSE),VLOOKUP($M23,TT_Tabelle_Riferimento!$H$31:$I$50,2,FALSE))","v":60},{"$f":"+IFERROR(VLOOKUP(BI$6&\"-\"&$M23&\"_old\",Ammortamento_Finanziario!$H:$L,5,FALSE),VLOOKUP($M23,TT_Tabelle_Riferimento!$H$31:$I$50,2,FALSE))","v":60},{"$f":"+IFERROR(VLOOKUP(BJ$6&\"-\"&$M23&\"_old\",Ammortamento_Finanziario!$H:$L,5,FALSE),VLOOKUP($M23,TT_Tabelle_Riferimento!$H$31:$I$50,2,FALSE))","v":60},{"$f":"+IFERROR(VLOOKUP(BK$6&\"-\"&$M23&\"_old\",Ammortamento_Finanziario!$H:$L,5,FALSE),VLOOKUP($M23,TT_Tabelle_Riferimento!$H$31:$I$50,2,FALSE))","v":60},{"$f":"+IFERROR(VLOOKUP(BL$6&\"-\"&$M23&\"_old\",Ammortamento_Finanziario!$H:$L,5,FALSE),VLOOKUP($M23,TT_Tabelle_Riferimento!$H$31:$I$50,2,FALSE))","v":60},{"$f":"+IFERROR(VLOOKUP(BM$6&\"-\"&$M23&\"_old\",Ammortamento_Finanziario!$H:$L,5,FALSE),VLOOKUP($M23,TT_Tabelle_Riferimento!$H$31:$I$50,2,FALSE))","v":60},{"$f":"+IFERROR(VLOOKUP(BN$6&\"-\"&$M23&\"_old\",Ammortamento_Finanziario!$H:$L,5,FALSE),VLOOKUP($M23,TT_Tabelle_Riferimento!$H$31:$I$50,2,FALSE))","v":60},{"$f":"+IFERROR(VLOOKUP(BO$6&\"-\"&$M23&\"_old\",Ammortamento_Finanziario!$H:$L,5,FALSE),VLOOKUP($M23,TT_Tabelle_Riferimento!$H$31:$I$50,2,FALSE))","v":60},{"$f":"+IFERROR(VLOOKUP(BP$6&\"-\"&$M23&\"_old\",Ammortamento_Finanziario!$H:$L,5,FALSE),VLOOKUP($M23,TT_Tabelle_Riferimento!$H$31:$I$50,2,FALSE))","v":60},{"$f":"+IFERROR(VLOOKUP(BQ$6&\"-\"&$M23&\"_old\",Ammortamento_Finanziario!$H:$L,5,FALSE),VLOOKUP($M23,TT_Tabelle_Riferimento!$H$31:$I$50,2,FALSE))","v":60},{"$f":"+IFERROR(VLOOKUP(BR$6&\"-\"&$M23&\"_old\",Ammortamento_Finanziario!$H:$L,5,FALSE),VLOOKUP($M23,TT_Tabelle_Riferimento!$H$31:$I$50,2,FALSE))","v":60},{"$f":"+IFERROR(VLOOKUP(BS$6&\"-\"&$M23&\"_old\",Ammortamento_Finanziario!$H:$L,5,FALSE),VLOOKUP($M23,TT_Tabelle_Riferimento!$H$31:$I$50,2,FALSE))","v":60},{"$f":"+IFERROR(VLOOKUP(BT$6&\"-\"&$M23&\"_old\",Ammortamento_Finanziario!$H:$L,5,FALSE),VLOOKUP($M23,TT_Tabelle_Riferimento!$H$31:$I$50,2,FALSE))","v":60},{"$f":"+IFERROR(VLOOKUP(BU$6&\"-\"&$M23&\"_old\",Ammortamento_Finanziario!$H:$L,5,FALSE),VLOOKUP($M23,TT_Tabelle_Riferimento!$H$31:$I$50,2,FALSE))","v":60},{"$f":"+IFERROR(VLOOKUP(BV$6&\"-\"&$M23&\"_old\",Ammortamento_Finanziario!$H:$L,5,FALSE),VLOOKUP($M23,TT_Tabelle_Riferimento!$H$31:$I$50,2,FALSE))","v":60},{"$f":"+IFERROR(VLOOKUP(BW$6&\"-\"&$M23&\"_old\",Ammortamento_Finanziario!$H:$L,5,FALSE),VLOOKUP($M23,TT_Tabelle_Riferimento!$H$31:$I$50,2,FALSE))","v":60},{"$f":"+IFERROR(VLOOKUP(BX$6&\"-\"&$M23&\"_old\",Ammortamento_Finanziario!$H:$L,5,FALSE),VLOOKUP($M23,TT_Tabelle_Riferimento!$H$31:$I$50,2,FALSE))","v":60},{"$f":"+IFERROR(VLOOKUP(BY$6&\"-\"&$M23&\"_old\",Ammortamento_Finanziario!$H:$L,5,FALSE),VLOOKUP($M23,TT_Tabelle_Riferimento!$H$31:$I$50,2,FALSE))","v":60},{"$f":"+IFERROR(VLOOKUP(BZ$6&\"-\"&$M23&\"_old\",Ammortamento_Finanziario!$H:$L,5,FALSE),VLOOKUP($M23,TT_Tabelle_Riferimento!$H$31:$I$50,2,FALSE))","v":60},{"$f":"+IFERROR(VLOOKUP(CA$6&\"-\"&$M23&\"_old\",Ammortamento_Finanziario!$H:$L,5,FALSE),VLOOKUP($M23,TT_Tabelle_Riferimento!$H$31:$I$50,2,FALSE))","v":60},{"$f":"+IFERROR(VLOOKUP(CB$6&\"-\"&$M23&\"_old\",Ammortamento_Finanziario!$H:$L,5,FALSE),VLOOKUP($M23,TT_Tabelle_Riferimento!$H$31:$I$50,2,FALSE))","v":60},{"$f":"+IFERROR(VLOOKUP(CC$6&\"-\"&$M23&\"_old\",Ammortamento_Finanziario!$H:$L,5,FALSE),VLOOKUP($M23,TT_Tabelle_Riferimento!$H$31:$I$50,2,FALSE))","v":60},{"$f":"+IFERROR(VLOOKUP(CD$6&\"-\"&$M23&\"_old\",Ammortamento_Finanziario!$H:$L,5,FALSE),VLOOKUP($M23,TT_Tabelle_Riferimento!$H$31:$I$50,2,FALSE))","v":60},{"$f":"+IFERROR(VLOOKUP(CE$6&\"-\"&$M23&\"_old\",Ammortamento_Finanziario!$H:$L,5,FALSE),VLOOKUP($M23,TT_Tabelle_Riferimento!$H$31:$I$50,2,FALSE))","v":60},{"$f":"+IFERROR(VLOOKUP(CF$6&\"-\"&$M23&\"_old\",Ammortamento_Finanziario!$H:$L,5,FALSE),VLOOKUP($M23,TT_Tabelle_Riferimento!$H$31:$I$50,2,FALSE))","v":60},{"$f":"+IFERROR(VLOOKUP(CG$6&\"-\"&$M23&\"_old\",Ammortamento_Finanziario!$H:$L,5,FALSE),VLOOKUP($M23,TT_Tabelle_Riferimento!$H$31:$I$50,2,FALSE))","v":60},{"$f":"+IFERROR(VLOOKUP(CH$6&\"-\"&$M23&\"_old\",Ammortamento_Finanziario!$H:$L,5,FALSE),VLOOKUP($M23,TT_Tabelle_Riferimento!$H$31:$I$50,2,FALSE))","v":60},{"$f":"+IFERROR(VLOOKUP(CI$6&\"-\"&$M23&\"_old\",Ammortamento_Finanziario!$H:$L,5,FALSE),VLOOKUP($M23,TT_Tabelle_Riferimento!$H$31:$I$50,2,FALSE))","v":60},{"$f":"+IFERROR(VLOOKUP(CJ$6&\"-\"&$M23&\"_old\",Ammortamento_Finanziario!$H:$L,5,FALSE),VLOOKUP($M23,TT_Tabelle_Riferimento!$H$31:$I$50,2,FALSE))","v":60},{"$f":"+IFERROR(VLOOKUP(CK$6&\"-\"&$M23&\"_old\",Ammortamento_Finanziario!$H:$L,5,FALSE),VLOOKUP($M23,TT_Tabelle_Riferimento!$H$31:$I$50,2,FALSE))","v":60},{"$f":"+IFERROR(VLOOKUP(CL$6&\"-\"&$M23&\"_old\",Ammortamento_Finanziario!$H:$L,5,FALSE),VLOOKUP($M23,TT_Tabelle_Riferimento!$H$31:$I$50,2,FALSE))","v":60},{"$f":"+IFERROR(VLOOKUP(CM$6&\"-\"&$M23&\"_old\",Ammortamento_Finanziario!$H:$L,5,FALSE),VLOOKUP($M23,TT_Tabelle_Riferimento!$H$31:$I$50,2,FALSE))","v":60},{"$f":"+IFERROR(VLOOKUP(CN$6&\"-\"&$M23&\"_old\",Ammortamento_Finanziario!$H:$L,5,FALSE),VLOOKUP($M23,TT_Tabelle_Riferimento!$H$31:$I$50,2,FALSE))","v":60},{"$f":"+IFERROR(VLOOKUP(CO$6&\"-\"&$M23&\"_old\",Ammortamento_Finanziario!$H:$L,5,FALSE),VLOOKUP($M23,TT_Tabelle_Riferimento!$H$31:$I$50,2,FALSE))","v":60},{"$f":"+IFERROR(VLOOKUP(CP$6&\"-\"&$M23&\"_old\",Ammortamento_Finanziario!$H:$L,5,FALSE),VLOOKUP($M23,TT_Tabelle_Riferimento!$H$31:$I$50,2,FALSE))","v":60},{"$f":"+IFERROR(VLOOKUP(CQ$6&\"-\"&$M23&\"_old\",Ammortamento_Finanziario!$H:$L,5,FALSE),VLOOKUP($M23,TT_Tabelle_Riferimento!$H$31:$I$50,2,FALSE))","v":60},{"$f":"+IFERROR(VLOOKUP(CR$6&\"-\"&$M23&\"_old\",Ammortamento_Finanziario!$H:$L,5,FALSE),VLOOKUP($M23,TT_Tabelle_Riferimento!$H$31:$I$50,2,FALSE))","v":60},{"$f":"+IFERROR(VLOOKUP(CS$6&\"-\"&$M23&\"_old\",Ammortamento_Finanziario!$H:$L,5,FALSE),VLOOKUP($M23,TT_Tabelle_Riferimento!$H$31:$I$50,2,FALSE))","v":60},{"$f":"+IFERROR(VLOOKUP(CT$6&\"-\"&$M23&\"_old\",Ammortamento_Finanziario!$H:$L,5,FALSE),VLOOKUP($M23,TT_Tabelle_Riferimento!$H$31:$I$50,2,FALSE))","v":60},{"$f":"+IFERROR(VLOOKUP(CU$6&\"-\"&$M23&\"_old\",Ammortamento_Finanziario!$H:$L,5,FALSE),VLOOKUP($M23,TT_Tabelle_Riferimento!$H$31:$I$50,2,FALSE))","v":60},{"$f":"+IFERROR(VLOOKUP(CV$6&\"-\"&$M23&\"_old\",Ammortamento_Finanziario!$H:$L,5,FALSE),VLOOKUP($M23,TT_Tabelle_Riferimento!$H$31:$I$50,2,FALSE))","v":60},{"$f":"+IFERROR(VLOOKUP(CW$6&\"-\"&$M23&\"_old\",Ammortamento_Finanziario!$H:$L,5,FALSE),VLOOKUP($M23,TT_Tabelle_Riferimento!$H$31:$I$50,2,FALSE))","v":60},{"$f":"+IFERROR(VLOOKUP(CX$6&\"-\"&$M23&\"_old\",Ammortamento_Finanziario!$H:$L,5,FALSE),VLOOKUP($M23,TT_Tabelle_Riferimento!$H$31:$I$50,2,FALSE))","v":60},{"$f":"+IFERROR(VLOOKUP(CY$6&\"-\"&$M23&\"_old\",Ammortamento_Finanziario!$H:$L,5,FALSE),VLOOKUP($M23,TT_Tabelle_Riferimento!$H$31:$I$50,2,FALSE))","v":60},{"$f":"+IFERROR(VLOOKUP(CZ$6&\"-\"&$M23&\"_old\",Ammortamento_Finanziario!$H:$L,5,FALSE),VLOOKUP($M23,TT_Tabelle_Riferimento!$H$31:$I$50,2,FALSE))","v":60},{"$f":"+IFERROR(VLOOKUP(DA$6&\"-\"&$M23&\"_old\",Ammortamento_Finanziario!$H:$L,5,FALSE),VLOOKUP($M23,TT_Tabelle_Riferimento!$H$31:$I$50,2,FALSE))","v":60},{"$f":"+IFERROR(VLOOKUP(DB$6&\"-\"&$M23&\"_old\",Ammortamento_Finanziario!$H:$L,5,FALSE),VLOOKUP($M23,TT_Tabelle_Riferimento!$H$31:$I$50,2,FALSE))","v":60},{"$f":"+IFERROR(VLOOKUP(DC$6&\"-\"&$M23&\"_old\",Ammortamento_Finanziario!$H:$L,5,FALSE),VLOOKUP($M23,TT_Tabelle_Riferimento!$H$31:$I$50,2,FALSE))","v":60},{"$f":"+IFERROR(VLOOKUP(DD$6&\"-\"&$M23&\"_old\",Ammortamento_Finanziario!$H:$L,5,FALSE),VLOOKUP($M23,TT_Tabelle_Riferimento!$H$31:$I$50,2,FALSE))","v":60},{"$f":"+IFERROR(VLOOKUP(DE$6&\"-\"&$M23&\"_old\",Ammortamento_Finanziario!$H:$L,5,FALSE),VLOOKUP($M23,TT_Tabelle_Riferimento!$H$31:$I$50,2,FALSE))","v":60},{"$f":"+IFERROR(VLOOKUP(DF$6&\"-\"&$M23&\"_old\",Ammortamento_Finanziario!$H:$L,5,FALSE),VLOOKUP($M23,TT_Tabelle_Riferimento!$H$31:$I$50,2,FALSE))","v":60},{"$f":"+IFERROR(VLOOKUP(DG$6&\"-\"&$M23&\"_old\",Ammortamento_Finanziario!$H:$L,5,FALSE),VLOOKUP($M23,TT_Tabelle_Riferimento!$H$31:$I$50,2,FALSE))","v":60},{"$f":"+IFERROR(VLOOKUP(DH$6&\"-\"&$M23&\"_old\",Ammortamento_Finanziario!$H:$L,5,FALSE),VLOOKUP($M23,TT_Tabelle_Riferimento!$H$31:$I$50,2,FALSE))","v":60},{"$f":"+IFERROR(VLOOKUP(DI$6&\"-\"&$M23&\"_old\",Ammortamento_Finanziario!$H:$L,5,FALSE),VLOOKUP($M23,TT_Tabelle_Riferimento!$H$31:$I$50,2,FALSE))","v":60},{"$f":"+IFERROR(VLOOKUP(DJ$6&\"-\"&$M23&\"_old\",Ammortamento_Finanziario!$H:$L,5,FALSE),VLOOKUP($M23,TT_Tabelle_Riferimento!$H$31:$I$50,2,FALSE))","v":60},{"$f":"+IFERROR(VLOOKUP(DK$6&\"-\"&$M23&\"_old\",Ammortamento_Finanziario!$H:$L,5,FALSE),VLOOKUP($M23,TT_Tabelle_Riferimento!$H$31:$I$50,2,FALSE))","v":60},{"$f":"+IFERROR(VLOOKUP(DL$6&\"-\"&$M23&\"_old\",Ammortamento_Finanziario!$H:$L,5,FALSE),VLOOKUP($M23,TT_Tabelle_Riferimento!$H$31:$I$50,2,FALSE))","v":60},{"$f":"+IFERROR(VLOOKUP(DM$6&\"-\"&$M23&\"_old\",Ammortamento_Finanziario!$H:$L,5,FALSE),VLOOKUP($M23,TT_Tabelle_Riferimento!$H$31:$I$50,2,FALSE))","v":60},{"$f":"+IFERROR(VLOOKUP(DN$6&\"-\"&$M23&\"_old\",Ammortamento_Finanziario!$H:$L,5,FALSE),VLOOKUP($M23,TT_Tabelle_Riferimento!$H$31:$I$50,2,FALSE))","v":60},{"$f":"+IFERROR(VLOOKUP(DO$6&\"-\"&$M23&\"_old\",Ammortamento_Finanziario!$H:$L,5,FALSE),VLOOKUP($M23,TT_Tabelle_Riferimento!$H$31:$I$50,2,FALSE))","v":60},{"$f":"+IFERROR(VLOOKUP(DP$6&\"-\"&$M23&\"_old\",Ammortamento_Finanziario!$H:$L,5,FALSE),VLOOKUP($M23,TT_Tabelle_Riferimento!$H$31:$I$50,2,FALSE))","v":60},{"$f":"+IFERROR(VLOOKUP(DQ$6&\"-\"&$M23&\"_old\",Ammortamento_Finanziario!$H:$L,5,FALSE),VLOOKUP($M23,TT_Tabelle_Riferimento!$H$31:$I$50,2,FALSE))","v":60},{"$f":"+IFERROR(VLOOKUP(DR$6&\"-\"&$M23&\"_old\",Ammortamento_Finanziario!$H:$L,5,FALSE),VLOOKUP($M23,TT_Tabelle_Riferimento!$H$31:$I$50,2,FALSE))","v":60},{"$f":"+IFERROR(VLOOKUP(DS$6&\"-\"&$M23&\"_old\",Ammortamento_Finanziario!$H:$L,5,FALSE),VLOOKUP($M23,TT_Tabelle_Riferimento!$H$31:$I$50,2,FALSE))","v":60},{"$f":"+IFERROR(VLOOKUP(DT$6&\"-\"&$M23&\"_old\",Ammortamento_Finanziario!$H:$L,5,FALSE),VLOOKUP($M23,TT_Tabelle_Riferimento!$H$31:$I$50,2,FALSE))","v":60},{"$f":"+IFERROR(VLOOKUP(DU$6&\"-\"&$M23&\"_old\",Ammortamento_Finanziario!$H:$L,5,FALSE),VLOOKUP($M23,TT_Tabelle_Riferimento!$H$31:$I$50,2,FALSE))","v":60},{"$f":"+IFERROR(VLOOKUP(DV$6&\"-\"&$M23&\"_old\",Ammortamento_Finanziario!$H:$L,5,FALSE),VLOOKUP($M23,TT_Tabelle_Riferimento!$H$31:$I$50,2,FALSE))","v":60},{"$f":"+IFERROR(VLOOKUP(DW$6&\"-\"&$M23&\"_old\",Ammortamento_Finanziario!$H:$L,5,FALSE),VLOOKUP($M23,TT_Tabelle_Riferimento!$H$31:$I$50,2,FALSE))","v":60},{"$f":"+IFERROR(VLOOKUP(DX$6&\"-\"&$M23&\"_old\",Ammortamento_Finanziario!$H:$L,5,FALSE),VLOOKUP($M23,TT_Tabelle_Riferimento!$H$31:$I$50,2,FALSE))","v":60},{"$f":"+IFERROR(VLOOKUP(DY$6&\"-\"&$M23&\"_old\",Ammortamento_Finanziario!$H:$L,5,FALSE),VLOOKUP($M23,TT_Tabelle_Riferimento!$H$31:$I$50,2,FALSE))","v":60},{"$f":"+IFERROR(VLOOKUP(DZ$6&\"-\"&$M23&\"_old\",Ammortamento_Finanziario!$H:$L,5,FALSE),VLOOKUP($M23,TT_Tabelle_Riferimento!$H$31:$I$50,2,FALSE))","v":60},{"$f":"+IFERROR(VLOOKUP(EA$6&\"-\"&$M23&\"_old\",Ammortamento_Finanziario!$H:$L,5,FALSE),VLOOKUP($M23,TT_Tabelle_Riferimento!$H$31:$I$50,2,FALSE))","v":60},{"$f":"+IFERROR(VLOOKUP(EB$6&\"-\"&$M23&\"_old\",Ammortamento_Finanziario!$H:$L,5,FALSE),VLOOKUP($M23,TT_Tabelle_Riferimento!$H$31:$I$50,2,FALSE))","v":60},{"$f":"+IFERROR(VLOOKUP(EC$6&\"-\"&$M23&\"_old\",Ammortamento_Finanziario!$H:$L,5,FALSE),VLOOKUP($M23,TT_Tabelle_Riferimento!$H$31:$I$50,2,FALSE))","v":60},{"$f":"+IFERROR(VLOOKUP(ED$6&\"-\"&$M23&\"_old\",Ammortamento_Finanziario!$H:$L,5,FALSE),VLOOKUP($M23,TT_Tabelle_Riferimento!$H$31:$I$50,2,FALSE))","v":60},{"$f":"+IFERROR(VLOOKUP(EE$6&\"-\"&$M23&\"_old\",Ammortamento_Finanziario!$H:$L,5,FALSE),VLOOKUP($M23,TT_Tabelle_Riferimento!$H$31:$I$50,2,FALSE))","v":60},{"$f":"+IFERROR(VLOOKUP(EF$6&\"-\"&$M23&\"_old\",Ammortamento_Finanziario!$H:$L,5,FALSE),VLOOKUP($M23,TT_Tabelle_Riferimento!$H$31:$I$50,2,FALSE))","v":60},{"$f":"+IFERROR(VLOOKUP(EG$6&\"-\"&$M23&\"_old\",Ammortamento_Finanziario!$H:$L,5,FALSE),VLOOKUP($M23,TT_Tabelle_Riferimento!$H$31:$I$50,2,FALSE))","v":60},{"$f":"+IFERROR(VLOOKUP(EH$6&\"-\"&$M23&\"_old\",Ammortamento_Finanziario!$H:$L,5,FALSE),VLOOKUP($M23,TT_Tabelle_Riferimento!$H$31:$I$50,2,FALSE))","v":60},{"$f":"+IFERROR(VLOOKUP(EI$6&\"-\"&$M23&\"_old\",Ammortamento_Finanziario!$H:$L,5,FALSE),VLOOKUP($M23,TT_Tabelle_Riferimento!$H$31:$I$50,2,FALSE))","v":60},{"$f":"+IFERROR(VLOOKUP(EJ$6&\"-\"&$M23&\"_old\",Ammortamento_Finanziario!$H:$L,5,FALSE),VLOOKUP($M23,TT_Tabelle_Riferimento!$H$31:$I$50,2,FALSE))","v":60},{"$f":"+IFERROR(VLOOKUP(EK$6&\"-\"&$M23&\"_old\",Ammortamento_Finanziario!$H:$L,5,FALSE),VLOOKUP($M23,TT_Tabelle_Riferimento!$H$31:$I$50,2,FALSE))","v":60},{"$f":"+IFERROR(VLOOKUP(EL$6&\"-\"&$M23&\"_old\",Ammortamento_Finanziario!$H:$L,5,FALSE),VLOOKUP($M23,TT_Tabelle_Riferimento!$H$31:$I$50,2,FALSE))","v":60},{"$f":"+IFERROR(VLOOKUP(EM$6&\"-\"&$M23&\"_old\",Ammortamento_Finanziario!$H:$L,5,FALSE),VLOOKUP($M23,TT_Tabelle_Riferimento!$H$31:$I$50,2,FALSE))","v":60},{"$f":"+IFERROR(VLOOKUP(EN$6&\"-\"&$M23&\"_old\",Ammortamento_Finanziario!$H:$L,5,FALSE),VLOOKUP($M23,TT_Tabelle_Riferimento!$H$31:$I$50,2,FALSE))","v":60},{"$f":"+IFERROR(VLOOKUP(EO$6&\"-\"&$M23&\"_old\",Ammortamento_Finanziario!$H:$L,5,FALSE),VLOOKUP($M23,TT_Tabelle_Riferimento!$H$31:$I$50,2,FALSE))","v":60},{"$f":"+IFERROR(VLOOKUP(EP$6&\"-\"&$M23&\"_old\",Ammortamento_Finanziario!$H:$L,5,FALSE),VLOOKUP($M23,TT_Tabelle_Riferimento!$H$31:$I$50,2,FALSE))","v":60},{"$f":"+IFERROR(VLOOKUP(EQ$6&\"-\"&$M23&\"_old\",Ammortamento_Finanziario!$H:$L,5,FALSE),VLOOKUP($M23,TT_Tabelle_Riferimento!$H$31:$I$50,2,FALSE))","v":60},{"$f":"+IFERROR(VLOOKUP(ER$6&\"-\"&$M23&\"_old\",Ammortamento_Finanziario!$H:$L,5,FALSE),VLOOKUP($M23,TT_Tabelle_Riferimento!$H$31:$I$50,2,FALSE))","v":60},{"$f":"+IFERROR(VLOOKUP(ES$6&\"-\"&$M23&\"_old\",Ammortamento_Finanziario!$H:$L,5,FALSE),VLOOKUP($M23,TT_Tabelle_Riferimento!$H$31:$I$50,2,FALSE))","v":60},{"$f":"+IFERROR(VLOOKUP(ET$6&\"-\"&$M23&\"_old\",Ammortamento_Finanziario!$H:$L,5,FALSE),VLOOKUP($M23,TT_Tabelle_Riferimento!$H$31:$I$50,2,FALSE))","v":60},{"$f":"+IFERROR(VLOOKUP(EU$6&\"-\"&$M23&\"_old\",Ammortamento_Finanziario!$H:$L,5,FALSE),VLOOKUP($M23,TT_Tabelle_Riferimento!$H$31:$I$50,2,FALSE))","v":60},{"$f":"+IFERROR(VLOOKUP(EV$6&\"-\"&$M23&\"_old\",Ammortamento_Finanziario!$H:$L,5,FALSE),VLOOKUP($M23,TT_Tabelle_Riferimento!$H$31:$I$50,2,FALSE))","v":60},{"$f":"+IFERROR(VLOOKUP(EW$6&\"-\"&$M23&\"_old\",Ammortamento_Finanziario!$H:$L,5,FALSE),VLOOKUP($M23,TT_Tabelle_Riferimento!$H$31:$I$50,2,FALSE))","v":60},{"$f":"+IFERROR(VLOOKUP(EX$6&\"-\"&$M23&\"_old\",Ammortamento_Finanziario!$H:$L,5,FALSE),VLOOKUP($M23,TT_Tabelle_Riferimento!$H$31:$I$50,2,FALSE))","v":60},{"$f":"+IFERROR(VLOOKUP(EY$6&\"-\"&$M23&\"_old\",Ammortamento_Finanziario!$H:$L,5,FALSE),VLOOKUP($M23,TT_Tabelle_Riferimento!$H$31:$I$50,2,FALSE))","v":60},{"$f":"+IFERROR(VLOOKUP(EZ$6&\"-\"&$M23&\"_old\",Ammortamento_Finanziario!$H:$L,5,FALSE),VLOOKUP($M23,TT_Tabelle_Riferimento!$H$31:$I$50,2,FALSE))","v":60},{"$f":"+IFERROR(VLOOKUP(FA$6&\"-\"&$M23&\"_old\",Ammortamento_Finanziario!$H:$L,5,FALSE),VLOOKUP($M23,TT_Tabelle_Riferimento!$H$31:$I$50,2,FALSE))","v":60},{"$f":"+IFERROR(VLOOKUP(FB$6&\"-\"&$M23&\"_old\",Ammortamento_Finanziario!$H:$L,5,FALSE),VLOOKUP($M23,TT_Tabelle_Riferimento!$H$31:$I$50,2,FALSE))","v":60},{"$f":"+IFERROR(VLOOKUP(FC$6&\"-\"&$M23&\"_old\",Ammortamento_Finanziario!$H:$L,5,FALSE),VLOOKUP($M23,TT_Tabelle_Riferimento!$H$31:$I$50,2,FALSE))","v":60},{"$f":"+IFERROR(VLOOKUP(FD$6&\"-\"&$M23&\"_old\",Ammortamento_Finanziario!$H:$L,5,FALSE),VLOOKUP($M23,TT_Tabelle_Riferimento!$H$31:$I$50,2,FALSE))","v":60},{"$f":"+IFERROR(VLOOKUP(FE$6&\"-\"&$M23&\"_old\",Ammortamento_Finanziario!$H:$L,5,FALSE),VLOOKUP($M23,TT_Tabelle_Riferimento!$H$31:$I$50,2,FALSE))","v":60},{"$f":"+IFERROR(VLOOKUP(FF$6&\"-\"&$M23&\"_old\",Ammortamento_Finanziario!$H:$L,5,FALSE),VLOOKUP($M23,TT_Tabelle_Riferimento!$H$31:$I$50,2,FALSE))","v":60},{"$f":"+IFERROR(VLOOKUP(FG$6&\"-\"&$M23&\"_old\",Ammortamento_Finanziario!$H:$L,5,FALSE),VLOOKUP($M23,TT_Tabelle_Riferimento!$H$31:$I$50,2,FALSE))","v":60},{"$f":"+IFERROR(VLOOKUP(FH$6&\"-\"&$M23&\"_old\",Ammortamento_Finanziario!$H:$L,5,FALSE),VLOOKUP($M23,TT_Tabelle_Riferimento!$H$31:$I$50,2,FALSE))","v":60},{"$f":"+IFERROR(VLOOKUP(FI$6&\"-\"&$M23&\"_old\",Ammortamento_Finanziario!$H:$L,5,FALSE),VLOOKUP($M23,TT_Tabelle_Riferimento!$H$31:$I$50,2,FALSE))","v":60},{"$f":"+IFERROR(VLOOKUP(FJ$6&\"-\"&$M23&\"_old\",Ammortamento_Finanziario!$H:$L,5,FALSE),VLOOKUP($M23,TT_Tabelle_Riferimento!$H$31:$I$50,2,FALSE))","v":60},{"$f":"+IFERROR(VLOOKUP(FK$6&\"-\"&$M23&\"_old\",Ammortamento_Finanziario!$H:$L,5,FALSE),VLOOKUP($M23,TT_Tabelle_Riferimento!$H$31:$I$50,2,FALSE))","v":60},{"$f":"+IFERROR(VLOOKUP(FL$6&\"-\"&$M23&\"_old\",Ammortamento_Finanziario!$H:$L,5,FALSE),VLOOKUP($M23,TT_Tabelle_Riferimento!$H$31:$I$50,2,FALSE))","v":60},{"$f":"+IFERROR(VLOOKUP(FM$6&\"-\"&$M23&\"_old\",Ammortamento_Finanziario!$H:$L,5,FALSE),VLOOKUP($M23,TT_Tabelle_Riferimento!$H$31:$I$50,2,FALSE))","v":60},{"$f":"+IFERROR(VLOOKUP(FN$6&\"-\"&$M23&\"_old\",Ammortamento_Finanziario!$H:$L,5,FALSE),VLOOKUP($M23,TT_Tabelle_Riferimento!$H$31:$I$50,2,FALSE))","v":60},{"$f":"+IFERROR(VLOOKUP(FO$6&\"-\"&$M23&\"_old\",Ammortamento_Finanziario!$H:$L,5,FALSE),VLOOKUP($M23,TT_Tabelle_Riferimento!$H$31:$I$50,2,FALSE))","v":60},{"$f":"+IFERROR(VLOOKUP(FP$6&\"-\"&$M23&\"_old\",Ammortamento_Finanziario!$H:$L,5,FALSE),VLOOKUP($M23,TT_Tabelle_Riferimento!$H$31:$I$50,2,FALSE))","v":60},{"$f":"+IFERROR(VLOOKUP(FQ$6&\"-\"&$M23&\"_old\",Ammortamento_Finanziario!$H:$L,5,FALSE),VLOOKUP($M23,TT_Tabelle_Riferimento!$H$31:$I$50,2,FALSE))","v":60},{"$f":"+IFERROR(VLOOKUP(FR$6&\"-\"&$M23&\"_old\",Ammortamento_Finanziario!$H:$L,5,FALSE),VLOOKUP($M23,TT_Tabelle_Riferimento!$H$31:$I$50,2,FALSE))","v":60},{"$f":"+IFERROR(VLOOKUP(FS$6&\"-\"&$M23&\"_old\",Ammortamento_Finanziario!$H:$L,5,FALSE),VLOOKUP($M23,TT_Tabelle_Riferimento!$H$31:$I$50,2,FALSE))","v":60},{"$f":"+IFERROR(VLOOKUP(FT$6&\"-\"&$M23&\"_old\",Ammortamento_Finanziario!$H:$L,5,FALSE),VLOOKUP($M23,TT_Tabelle_Riferimento!$H$31:$I$50,2,FALSE))","v":60},{"$f":"+IFERROR(VLOOKUP(FU$6&\"-\"&$M23&\"_old\",Ammortamento_Finanziario!$H:$L,5,FALSE),VLOOKUP($M23,TT_Tabelle_Riferimento!$H$31:$I$50,2,FALSE))","v":60},{"$f":"+IFERROR(VLOOKUP(FV$6&\"-\"&$M23&\"_old\",Ammortamento_Finanziario!$H:$L,5,FALSE),VLOOKUP($M23,TT_Tabelle_Riferimento!$H$31:$I$50,2,FALSE))","v":60},{"$f":"+IFERROR(VLOOKUP(FW$6&\"-\"&$M23&\"_old\",Ammortamento_Finanziario!$H:$L,5,FALSE),VLOOKUP($M23,TT_Tabelle_Riferimento!$H$31:$I$50,2,FALSE))","v":60},{"$f":"+IFERROR(VLOOKUP(FX$6&\"-\"&$M23&\"_old\",Ammortamento_Finanziario!$H:$L,5,FALSE),VLOOKUP($M23,TT_Tabelle_Riferimento!$H$31:$I$50,2,FALSE))","v":60},{"$f":"+IFERROR(VLOOKUP(FY$6&\"-\"&$M23&\"_old\",Ammortamento_Finanziario!$H:$L,5,FALSE),VLOOKUP($M23,TT_Tabelle_Riferimento!$H$31:$I$50,2,FALSE))","v":60},{"$f":"+IFERROR(VLOOKUP(FZ$6&\"-\"&$M23&\"_old\",Ammortamento_Finanziario!$H:$L,5,FALSE),VLOOKUP($M23,TT_Tabelle_Riferimento!$H$31:$I$50,2,FALSE))","v":60},{"$f":"+IFERROR(VLOOKUP(GA$6&\"-\"&$M23&\"_old\",Ammortamento_Finanziario!$H:$L,5,FALSE),VLOOKUP($M23,TT_Tabelle_Riferimento!$H$31:$I$50,2,FALSE))","v":60},{"$f":"+IFERROR(VLOOKUP(GB$6&\"-\"&$M23&\"_old\",Ammortamento_Finanziario!$H:$L,5,FALSE),VLOOKUP($M23,TT_Tabelle_Riferimento!$H$31:$I$50,2,FALSE))","v":60},{"$f":"+IFERROR(VLOOKUP(GC$6&\"-\"&$M23&\"_old\",Ammortamento_Finanziario!$H:$L,5,FALSE),VLOOKUP($M23,TT_Tabelle_Riferimento!$H$31:$I$50,2,FALSE))","v":60},{"$f":"+IFERROR(VLOOKUP(GD$6&\"-\"&$M23&\"_old\",Ammortamento_Finanziario!$H:$L,5,FALSE),VLOOKUP($M23,TT_Tabelle_Riferimento!$H$31:$I$50,2,FALSE))","v":60},{"$f":"+IFERROR(VLOOKUP(GE$6&\"-\"&$M23&\"_old\",Ammortamento_Finanziario!$H:$L,5,FALSE),VLOOKUP($M23,TT_Tabelle_Riferimento!$H$31:$I$50,2,FALSE))","v":60},{"$f":"+IFERROR(VLOOKUP(GF$6&\"-\"&$M23&\"_old\",Ammortamento_Finanziario!$H:$L,5,FALSE),VLOOKUP($M23,TT_Tabelle_Riferimento!$H$31:$I$50,2,FALSE))","v":60},{"$f":"+IFERROR(VLOOKUP(GG$6&\"-\"&$M23&\"_old\",Ammortamento_Finanziario!$H:$L,5,FALSE),VLOOKUP($M23,TT_Tabelle_Riferimento!$H$31:$I$50,2,FALSE))","v":60},{"$f":"+IFERROR(VLOOKUP(GH$6&\"-\"&$M23&\"_old\",Ammortamento_Finanziario!$H:$L,5,FALSE),VLOOKUP($M23,TT_Tabelle_Riferimento!$H$31:$I$50,2,FALSE))","v":60},{"$f":"+IFERROR(VLOOKUP(GI$6&\"-\"&$M23&\"_old\",Ammortamento_Finanziario!$H:$L,5,FALSE),VLOOKUP($M23,TT_Tabelle_Riferimento!$H$31:$I$50,2,FALSE))","v":60},{"$f":"+IFERROR(VLOOKUP(GJ$6&\"-\"&$M23&\"_old\",Ammortamento_Finanziario!$H:$L,5,FALSE),VLOOKUP($M23,TT_Tabelle_Riferimento!$H$31:$I$50,2,FALSE))","v":60},{"$f":"+IFERROR(VLOOKUP(GK$6&\"-\"&$M23&\"_old\",Ammortamento_Finanziario!$H:$L,5,FALSE),VLOOKUP($M23,TT_Tabelle_Riferimento!$H$31:$I$50,2,FALSE))","v":60},{"$f":"+IFERROR(VLOOKUP(GL$6&\"-\"&$M23&\"_old\",Ammortamento_Finanziario!$H:$L,5,FALSE),VLOOKUP($M23,TT_Tabelle_Riferimento!$H$31:$I$50,2,FALSE))","v":60},{"$f":"+IFERROR(VLOOKUP(GM$6&\"-\"&$M23&\"_old\",Ammortamento_Finanziario!$H:$L,5,FALSE),VLOOKUP($M23,TT_Tabelle_Riferimento!$H$31:$I$50,2,FALSE))","v":60},{"$f":"+IFERROR(VLOOKUP(GN$6&\"-\"&$M23&\"_old\",Ammortamento_Finanziario!$H:$L,5,FALSE),VLOOKUP($M23,TT_Tabelle_Riferimento!$H$31:$I$50,2,FALSE))","v":60},{"$f":"+IFERROR(VLOOKUP(GO$6&\"-\"&$M23&\"_old\",Ammortamento_Finanziario!$H:$L,5,FALSE),VLOOKUP($M23,TT_Tabelle_Riferimento!$H$31:$I$50,2,FALSE))","v":60},{"$f":"+IFERROR(VLOOKUP(GP$6&\"-\"&$M23&\"_old\",Ammortamento_Finanziario!$H:$L,5,FALSE),VLOOKUP($M23,TT_Tabelle_Riferimento!$H$31:$I$50,2,FALSE))","v":60},{"$f":"+IFERROR(VLOOKUP(GQ$6&\"-\"&$M23&\"_old\",Ammortamento_Finanziario!$H:$L,5,FALSE),VLOOKUP($M23,TT_Tabelle_Riferimento!$H$31:$I$50,2,FALSE))","v":60},{"$f":"+IFERROR(VLOOKUP(GR$6&\"-\"&$M23&\"_old\",Ammortamento_Finanziario!$H:$L,5,FALSE),VLOOKUP($M23,TT_Tabelle_Riferimento!$H$31:$I$50,2,FALSE))","v":60},{"$f":"+IFERROR(VLOOKUP(GS$6&\"-\"&$M23&\"_old\",Ammortamento_Finanziario!$H:$L,5,FALSE),VLOOKUP($M23,TT_Tabelle_Riferimento!$H$31:$I$50,2,FALSE))","v":60},{"$f":"+IFERROR(VLOOKUP(GT$6&\"-\"&$M23&\"_old\",Ammortamento_Finanziario!$H:$L,5,FALSE),VLOOKUP($M23,TT_Tabelle_Riferimento!$H$31:$I$50,2,FALSE))","v":60},{"$f":"+IFERROR(VLOOKUP(GU$6&\"-\"&$M23&\"_old\",Ammortamento_Finanziario!$H:$L,5,FALSE),VLOOKUP($M23,TT_Tabelle_Riferimento!$H$31:$I$50,2,FALSE))","v":60},{"$f":"+IFERROR(VLOOKUP(GV$6&\"-\"&$M23&\"_old\",Ammortamento_Finanziario!$H:$L,5,FALSE),VLOOKUP($M23,TT_Tabelle_Riferimento!$H$31:$I$50,2,FALSE))","v":60},{"$f":"+IFERROR(VLOOKUP(GW$6&\"-\"&$M23&\"_old\",Ammortamento_Finanziario!$H:$L,5,FALSE),VLOOKUP($M23,TT_Tabelle_Riferimento!$H$31:$I$50,2,FALSE))","v":60},{"$f":"+IFERROR(VLOOKUP(GX$6&\"-\"&$M23&\"_old\",Ammortamento_Finanziario!$H:$L,5,FALSE),VLOOKUP($M23,TT_Tabelle_Riferimento!$H$31:$I$50,2,FALSE))","v":60},{"$f":"+IFERROR(VLOOKUP(GY$6&\"-\"&$M23&\"_old\",Ammortamento_Finanziario!$H:$L,5,FALSE),VLOOKUP($M23,TT_Tabelle_Riferimento!$H$31:$I$50,2,FALSE))","v":60},{"$f":"+IFERROR(VLOOKUP(GZ$6&\"-\"&$M23&\"_old\",Ammortamento_Finanziario!$H:$L,5,FALSE),VLOOKUP($M23,TT_Tabelle_Riferimento!$H$31:$I$50,2,FALSE))","v":60},{"$f":"+IFERROR(VLOOKUP(HA$6&\"-\"&$M23&\"_old\",Ammortamento_Finanziario!$H:$L,5,FALSE),VLOOKUP($M23,TT_Tabelle_Riferimento!$H$31:$I$50,2,FALSE))","v":60},{"$f":"+IFERROR(VLOOKUP(HB$6&\"-\"&$M23&\"_old\",Ammortamento_Finanziario!$H:$L,5,FALSE),VLOOKUP($M23,TT_Tabelle_Riferimento!$H$31:$I$50,2,FALSE))","v":60},{"$f":"+IFERROR(VLOOKUP(HC$6&\"-\"&$M23&\"_old\",Ammortamento_Finanziario!$H:$L,5,FALSE),VLOOKUP($M23,TT_Tabelle_Riferimento!$H$31:$I$50,2,FALSE))","v":60},{"$f":"+IFERROR(VLOOKUP(HD$6&\"-\"&$M23&\"_old\",Ammortamento_Finanziario!$H:$L,5,FALSE),VLOOKUP($M23,TT_Tabelle_Riferimento!$H$31:$I$50,2,FALSE))","v":60},{"$f":"+IFERROR(VLOOKUP(HE$6&\"-\"&$M23&\"_old\",Ammortamento_Finanziario!$H:$L,5,FALSE),VLOOKUP($M23,TT_Tabelle_Riferimento!$H$31:$I$50,2,FALSE))","v":60},{"$f":"+IFERROR(VLOOKUP(HF$6&\"-\"&$M23&\"_old\",Ammortamento_Finanziario!$H:$L,5,FALSE),VLOOKUP($M23,TT_Tabelle_Riferimento!$H$31:$I$50,2,FALSE))","v":60},{"$f":"+IFERROR(VLOOKUP(HG$6&\"-\"&$M23&\"_old\",Ammortamento_Finanziario!$H:$L,5,FALSE),VLOOKUP($M23,TT_Tabelle_Riferimento!$H$31:$I$50,2,FALSE))","v":60},{"$f":"+IFERROR(VLOOKUP(HH$6&\"-\"&$M23&\"_old\",Ammortamento_Finanziario!$H:$L,5,FALSE),VLOOKUP($M23,TT_Tabelle_Riferimento!$H$31:$I$50,2,FALSE))","v":60},{"$f":"+IFERROR(VLOOKUP(HI$6&\"-\"&$M23&\"_old\",Ammortamento_Finanziario!$H:$L,5,FALSE),VLOOKUP($M23,TT_Tabelle_Riferimento!$H$31:$I$50,2,FALSE))","v":60},{"$f":"+IFERROR(VLOOKUP(HJ$6&\"-\"&$M23&\"_old\",Ammortamento_Finanziario!$H:$L,5,FALSE),VLOOKUP($M23,TT_Tabelle_Riferimento!$H$31:$I$50,2,FALSE))","v":60},{"$f":"+IFERROR(VLOOKUP(HK$6&\"-\"&$M23&\"_old\",Ammortamento_Finanziario!$H:$L,5,FALSE),VLOOKUP($M23,TT_Tabelle_Riferimento!$H$31:$I$50,2,FALSE))","v":60},{"$f":"+IFERROR(VLOOKUP(HL$6&\"-\"&$M23&\"_old\",Ammortamento_Finanziario!$H:$L,5,FALSE),VLOOKUP($M23,TT_Tabelle_Riferimento!$H$31:$I$50,2,FALSE))","v":60},{"$f":"+IFERROR(VLOOKUP(HM$6&\"-\"&$M23&\"_old\",Ammortamento_Finanziario!$H:$L,5,FALSE),VLOOKUP($M23,TT_Tabelle_Riferimento!$H$31:$I$50,2,FALSE))","v":60},{"$f":"+IFERROR(VLOOKUP(HN$6&\"-\"&$M23&\"_old\",Ammortamento_Finanziario!$H:$L,5,FALSE),VLOOKUP($M23,TT_Tabelle_Riferimento!$H$31:$I$50,2,FALSE))","v":60},{"$f":"+IFERROR(VLOOKUP(HO$6&\"-\"&$M23&\"_old\",Ammortamento_Finanziario!$H:$L,5,FALSE),VLOOKUP($M23,TT_Tabelle_Riferimento!$H$31:$I$50,2,FALSE))","v":60},{"$f":"+IFERROR(VLOOKUP(HP$6&\"-\"&$M23&\"_old\",Ammortamento_Finanziario!$H:$L,5,FALSE),VLOOKUP($M23,TT_Tabelle_Riferimento!$H$31:$I$50,2,FALSE))","v":60},{"$f":"+IFERROR(VLOOKUP(HQ$6&\"-\"&$M23&\"_old\",Ammortamento_Finanziario!$H:$L,5,FALSE),VLOOKUP($M23,TT_Tabelle_Riferimento!$H$31:$I$50,2,FALSE))","v":60},{"$f":"+IFERROR(VLOOKUP(HR$6&\"-\"&$M23&\"_old\",Ammortamento_Finanziario!$H:$L,5,FALSE),VLOOKUP($M23,TT_Tabelle_Riferimento!$H$31:$I$50,2,FALSE))","v":60},{"$f":"+IFERROR(VLOOKUP(HS$6&\"-\"&$M23&\"_old\",Ammortamento_Finanziario!$H:$L,5,FALSE),VLOOKUP($M23,TT_Tabelle_Riferimento!$H$31:$I$50,2,FALSE))","v":60},{"$f":"+IFERROR(VLOOKUP(HT$6&\"-\"&$M23&\"_old\",Ammortamento_Finanziario!$H:$L,5,FALSE),VLOOKUP($M23,TT_Tabelle_Riferimento!$H$31:$I$50,2,FALSE))","v":60},{"$f":"+IFERROR(VLOOKUP(HU$6&\"-\"&$M23&\"_old\",Ammortamento_Finanziario!$H:$L,5,FALSE),VLOOKUP($M23,TT_Tabelle_Riferimento!$H$31:$I$50,2,FALSE))","v":60},{"$f":"+IFERROR(VLOOKUP(HV$6&\"-\"&$M23&\"_old\",Ammortamento_Finanziario!$H:$L,5,FALSE),VLOOKUP($M23,TT_Tabelle_Riferimento!$H$31:$I$50,2,FALSE))","v":60},{"$f":"+IFERROR(VLOOKUP(HW$6&\"-\"&$M23&\"_old\",Ammortamento_Finanziario!$H:$L,5,FALSE),VLOOKUP($M23,TT_Tabelle_Riferimento!$H$31:$I$50,2,FALSE))","v":60},{"$f":"+IFERROR(VLOOKUP(HX$6&\"-\"&$M23&\"_old\",Ammortamento_Finanziario!$H:$L,5,FALSE),VLOOKUP($M23,TT_Tabelle_Riferimento!$H$31:$I$50,2,FALSE))","v":60},{"$f":"+IFERROR(VLOOKUP(HY$6&\"-\"&$M23&\"_old\",Ammortamento_Finanziario!$H:$L,5,FALSE),VLOOKUP($M23,TT_Tabelle_Riferimento!$H$31:$I$50,2,FALSE))","v":60},{"$f":"+IFERROR(VLOOKUP(HZ$6&\"-\"&$M23&\"_old\",Ammortamento_Finanziario!$H:$L,5,FALSE),VLOOKUP($M23,TT_Tabelle_Riferimento!$H$31:$I$50,2,FALSE))","v":60},{"$f":"+IFERROR(VLOOKUP(IA$6&\"-\"&$M23&\"_old\",Ammortamento_Finanziario!$H:$L,5,FALSE),VLOOKUP($M23,TT_Tabelle_Riferimento!$H$31:$I$50,2,FALSE))","v":60},{"$f":"+IFERROR(VLOOKUP(IB$6&\"-\"&$M23&\"_old\",Ammortamento_Finanziario!$H:$L,5,FALSE),VLOOKUP($M23,TT_Tabelle_Riferimento!$H$31:$I$50,2,FALSE))","v":60},{"$f":"+IFERROR(VLOOKUP(IC$6&\"-\"&$M23&\"_old\",Ammortamento_Finanziario!$H:$L,5,FALSE),VLOOKUP($M23,TT_Tabelle_Riferimento!$H$31:$I$50,2,FALSE))","v":60},{"$f":"+IFERROR(VLOOKUP(ID$6&\"-\"&$M23&\"_old\",Ammortamento_Finanziario!$H:$L,5,FALSE),VLOOKUP($M23,TT_Tabelle_Riferimento!$H$31:$I$50,2,FALSE))","v":60},{"$f":"+IFERROR(VLOOKUP(IE$6&\"-\"&$M23&\"_old\",Ammortamento_Finanziario!$H:$L,5,FALSE),VLOOKUP($M23,TT_Tabelle_Riferimento!$H$31:$I$50,2,FALSE))","v":60},{"$f":"+IFERROR(VLOOKUP(IF$6&\"-\"&$M23&\"_old\",Ammortamento_Finanziario!$H:$L,5,FALSE),VLOOKUP($M23,TT_Tabelle_Riferimento!$H$31:$I$50,2,FALSE))","v":60},{"$f":"+IFERROR(VLOOKUP(IG$6&\"-\"&$M23&\"_old\",Ammortamento_Finanziario!$H:$L,5,FALSE),VLOOKUP($M23,TT_Tabelle_Riferimento!$H$31:$I$50,2,FALSE))","v":60},{"$f":"+IFERROR(VLOOKUP(IH$6&\"-\"&$M23&\"_old\",Ammortamento_Finanziario!$H:$L,5,FALSE),VLOOKUP($M23,TT_Tabelle_Riferimento!$H$31:$I$50,2,FALSE))","v":60},{"$f":"+IFERROR(VLOOKUP(II$6&\"-\"&$M23&\"_old\",Ammortamento_Finanziario!$H:$L,5,FALSE),VLOOKUP($M23,TT_Tabelle_Riferimento!$H$31:$I$50,2,FALSE))","v":60},{"$f":"+IFERROR(VLOOKUP(IJ$6&\"-\"&$M23&\"_old\",Ammortamento_Finanziario!$H:$L,5,FALSE),VLOOKUP($M23,TT_Tabelle_Riferimento!$H$31:$I$50,2,FALSE))","v":60},{"$f":"+IFERROR(VLOOKUP(IK$6&\"-\"&$M23&\"_old\",Ammortamento_Finanziario!$H:$L,5,FALSE),VLOOKUP($M23,TT_Tabelle_Riferimento!$H$31:$I$50,2,FALSE))","v":60},{"$f":"+IFERROR(VLOOKUP(IL$6&\"-\"&$M23&\"_old\",Ammortamento_Finanziario!$H:$L,5,FALSE),VLOOKUP($M23,TT_Tabelle_Riferimento!$H$31:$I$50,2,FALSE))","v":60},{"$f":"+IFERROR(VLOOKUP(IM$6&\"-\"&$M23&\"_old\",Ammortamento_Finanziario!$H:$L,5,FALSE),VLOOKUP($M23,TT_Tabelle_Riferimento!$H$31:$I$50,2,FALSE))","v":60},{"$f":"+IFERROR(VLOOKUP(IN$6&\"-\"&$M23&\"_old\",Ammortamento_Finanziario!$H:$L,5,FALSE),VLOOKUP($M23,TT_Tabelle_Riferimento!$H$31:$I$50,2,FALSE))","v":60},{"$f":"+IFERROR(VLOOKUP(IO$6&\"-\"&$M23&\"_old\",Ammortamento_Finanziario!$H:$L,5,FALSE),VLOOKUP($M23,TT_Tabelle_Riferimento!$H$31:$I$50,2,FALSE))","v":60},{"$f":"+IFERROR(VLOOKUP(IP$6&\"-\"&$M23&\"_old\",Ammortamento_Finanziario!$H:$L,5,FALSE),VLOOKUP($M23,TT_Tabelle_Riferimento!$H$31:$I$50,2,FALSE))","v":60},{"$f":"+IFERROR(VLOOKUP(IQ$6&\"-\"&$M23&\"_old\",Ammortamento_Finanziario!$H:$L,5,FALSE),VLOOKUP($M23,TT_Tabelle_Riferimento!$H$31:$I$50,2,FALSE))","v":60},{"$f":"+IFERROR(VLOOKUP(IR$6&\"-\"&$M23&\"_old\",Ammortamento_Finanziario!$H:$L,5,FALSE),VLOOKUP($M23,TT_Tabelle_Riferimento!$H$31:$I$50,2,FALSE))","v":60},{"$f":"+IFERROR(VLOOKUP(IS$6&\"-\"&$M23&\"_old\",Ammortamento_Finanziario!$H:$L,5,FALSE),VLOOKUP($M23,TT_Tabelle_Riferimento!$H$31:$I$50,2,FALSE))","v":60},{"$f":"+IFERROR(VLOOKUP(IT$6&\"-\"&$M23&\"_old\",Ammortamento_Finanziario!$H:$L,5,FALSE),VLOOKUP($M23,TT_Tabelle_Riferimento!$H$31:$I$50,2,FALSE))","v":60},{"$f":"+IFERROR(VLOOKUP(IU$6&\"-\"&$M23&\"_old\",Ammortamento_Finanziario!$H:$L,5,FALSE),VLOOKUP($M23,TT_Tabelle_Riferimento!$H$31:$I$50,2,FALSE))","v":60},{"$f":"+IFERROR(VLOOKUP(IV$6&\"-\"&$M23&\"_old\",Ammortamento_Finanziario!$H:$L,5,FALSE),VLOOKUP($M23,TT_Tabelle_Riferimento!$H$31:$I$50,2,FALSE))","v":60},{"$f":"+IFERROR(VLOOKUP(IW$6&\"-\"&$M23&\"_old\",Ammortamento_Finanziario!$H:$L,5,FALSE),VLOOKUP($M23,TT_Tabelle_Riferimento!$H$31:$I$50,2,FALSE))","v":60},{"$f":"+IFERROR(VLOOKUP(IX$6&\"-\"&$M23&\"_old\",Ammortamento_Finanziario!$H:$L,5,FALSE),VLOOKUP($M23,TT_Tabelle_Riferimento!$H$31:$I$50,2,FALSE))","v":60},{"$f":"+IFERROR(VLOOKUP(IY$6&\"-\"&$M23&\"_old\",Ammortamento_Finanziario!$H:$L,5,FALSE),VLOOKUP($M23,TT_Tabelle_Riferimento!$H$31:$I$50,2,FALSE))","v":60},{"$f":"+IFERROR(VLOOKUP(IZ$6&\"-\"&$M23&\"_old\",Ammortamento_Finanziario!$H:$L,5,FALSE),VLOOKUP($M23,TT_Tabelle_Riferimento!$H$31:$I$50,2,FALSE))","v":60},{"$f":"+IFERROR(VLOOKUP(JA$6&\"-\"&$M23&\"_old\",Ammortamento_Finanziario!$H:$L,5,FALSE),VLOOKUP($M23,TT_Tabelle_Riferimento!$H$31:$I$50,2,FALSE))","v":60},{"$f":"+IFERROR(VLOOKUP(JB$6&\"-\"&$M23&\"_old\",Ammortamento_Finanziario!$H:$L,5,FALSE),VLOOKUP($M23,TT_Tabelle_Riferimento!$H$31:$I$50,2,FALSE))","v":60},{"$f":"+IFERROR(VLOOKUP(JC$6&\"-\"&$M23&\"_old\",Ammortamento_Finanziario!$H:$L,5,FALSE),VLOOKUP($M23,TT_Tabelle_Riferimento!$H$31:$I$50,2,FALSE))","v":60},{"$f":"+IFERROR(VLOOKUP(JD$6&\"-\"&$M23&\"_old\",Ammortamento_Finanziario!$H:$L,5,FALSE),VLOOKUP($M23,TT_Tabelle_Riferimento!$H$31:$I$50,2,FALSE))","v":60},{"$f":"+IFERROR(VLOOKUP(JE$6&\"-\"&$M23&\"_old\",Ammortamento_Finanziario!$H:$L,5,FALSE),VLOOKUP($M23,TT_Tabelle_Riferimento!$H$31:$I$50,2,FALSE))","v":60},{"$f":"+IFERROR(VLOOKUP(JF$6&\"-\"&$M23&\"_old\",Ammortamento_Finanziario!$H:$L,5,FALSE),VLOOKUP($M23,TT_Tabelle_Riferimento!$H$31:$I$50,2,FALSE))","v":60},{"$f":"+IFERROR(VLOOKUP(JG$6&\"-\"&$M23&\"_old\",Ammortamento_Finanziario!$H:$L,5,FALSE),VLOOKUP($M23,TT_Tabelle_Riferimento!$H$31:$I$50,2,FALSE))","v":60},{"$f":"+IFERROR(VLOOKUP(JH$6&\"-\"&$M23&\"_old\",Ammortamento_Finanziario!$H:$L,5,FALSE),VLOOKUP($M23,TT_Tabelle_Riferimento!$H$31:$I$50,2,FALSE))","v":60},{"$f":"+IFERROR(VLOOKUP(JI$6&\"-\"&$M23&\"_old\",Ammortamento_Finanziario!$H:$L,5,FALSE),VLOOKUP($M23,TT_Tabelle_Riferimento!$H$31:$I$50,2,FALSE))","v":60},{"$f":"+IFERROR(VLOOKUP(JJ$6&\"-\"&$M23&\"_old\",Ammortamento_Finanziario!$H:$L,5,FALSE),VLOOKUP($M23,TT_Tabelle_Riferimento!$H$31:$I$50,2,FALSE))","v":60},{"$f":"+IFERROR(VLOOKUP(JK$6&\"-\"&$M23&\"_old\",Ammortamento_Finanziario!$H:$L,5,FALSE),VLOOKUP($M23,TT_Tabelle_Riferimento!$H$31:$I$50,2,FALSE))","v":60},{"$f":"+IFERROR(VLOOKUP(JL$6&\"-\"&$M23&\"_old\",Ammortamento_Finanziario!$H:$L,5,FALSE),VLOOKUP($M23,TT_Tabelle_Riferimento!$H$31:$I$50,2,FALSE))","v":60},{"$f":"+IFERROR(VLOOKUP(JM$6&\"-\"&$M23&\"_old\",Ammortamento_Finanziario!$H:$L,5,FALSE),VLOOKUP($M23,TT_Tabelle_Riferimento!$H$31:$I$50,2,FALSE))","v":60},{"$f":"+IFERROR(VLOOKUP(JN$6&\"-\"&$M23&\"_old\",Ammortamento_Finanziario!$H:$L,5,FALSE),VLOOKUP($M23,TT_Tabelle_Riferimento!$H$31:$I$50,2,FALSE))","v":60},{"$f":"+IFERROR(VLOOKUP(JO$6&\"-\"&$M23&\"_old\",Ammortamento_Finanziario!$H:$L,5,FALSE),VLOOKUP($M23,TT_Tabelle_Riferimento!$H$31:$I$50,2,FALSE))","v":60},{"$f":"+IFERROR(VLOOKUP(JP$6&\"-\"&$M23&\"_old\",Ammortamento_Finanziario!$H:$L,5,FALSE),VLOOKUP($M23,TT_Tabelle_Riferimento!$H$31:$I$50,2,FALSE))","v":60},{"$f":"+IFERROR(VLOOKUP(JQ$6&\"-\"&$M23&\"_old\",Ammortamento_Finanziario!$H:$L,5,FALSE),VLOOKUP($M23,TT_Tabelle_Riferimento!$H$31:$I$50,2,FALSE))","v":60},{"$f":"+IFERROR(VLOOKUP(JR$6&\"-\"&$M23&\"_old\",Ammortamento_Finanziario!$H:$L,5,FALSE),VLOOKUP($M23,TT_Tabelle_Riferimento!$H$31:$I$50,2,FALSE))","v":60},{"$f":"+IFERROR(VLOOKUP(JS$6&\"-\"&$M23&\"_old\",Ammortamento_Finanziario!$H:$L,5,FALSE),VLOOKUP($M23,TT_Tabelle_Riferimento!$H$31:$I$50,2,FALSE))","v":60},{"$f":"+IFERROR(VLOOKUP(JT$6&\"-\"&$M23&\"_old\",Ammortamento_Finanziario!$H:$L,5,FALSE),VLOOKUP($M23,TT_Tabelle_Riferimento!$H$31:$I$50,2,FALSE))","v":60},{"$f":"+IFERROR(VLOOKUP(JU$6&\"-\"&$M23&\"_old\",Ammortamento_Finanziario!$H:$L,5,FALSE),VLOOKUP($M23,TT_Tabelle_Riferimento!$H$31:$I$50,2,FALSE))","v":60},{"$f":"+IFERROR(VLOOKUP(JV$6&\"-\"&$M23&\"_old\",Ammortamento_Finanziario!$H:$L,5,FALSE),VLOOKUP($M23,TT_Tabelle_Riferimento!$H$31:$I$50,2,FALSE))","v":60},{"$f":"+IFERROR(VLOOKUP(JW$6&\"-\"&$M23&\"_old\",Ammortamento_Finanziario!$H:$L,5,FALSE),VLOOKUP($M23,TT_Tabelle_Riferimento!$H$31:$I$50,2,FALSE))","v":60},{"$f":"+IFERROR(VLOOKUP(JX$6&\"-\"&$M23&\"_old\",Ammortamento_Finanziario!$H:$L,5,FALSE),VLOOKUP($M23,TT_Tabelle_Riferimento!$H$31:$I$50,2,FALSE))","v":60},{"$f":"+IFERROR(VLOOKUP(JY$6&\"-\"&$M23&\"_old\",Ammortamento_Finanziario!$H:$L,5,FALSE),VLOOKUP($M23,TT_Tabelle_Riferimento!$H$31:$I$50,2,FALSE))","v":60},{"$f":"+IFERROR(VLOOKUP(JZ$6&\"-\"&$M23&\"_old\",Ammortamento_Finanziario!$H:$L,5,FALSE),VLOOKUP($M23,TT_Tabelle_Riferimento!$H$31:$I$50,2,FALSE))","v":60},{"$f":"+IFERROR(VLOOKUP(KA$6&\"-\"&$M23&\"_old\",Ammortamento_Finanziario!$H:$L,5,FALSE),VLOOKUP($M23,TT_Tabelle_Riferimento!$H$31:$I$50,2,FALSE))","v":60},{"$f":"+IFERROR(VLOOKUP(KB$6&\"-\"&$M23&\"_old\",Ammortamento_Finanziario!$H:$L,5,FALSE),VLOOKUP($M23,TT_Tabelle_Riferimento!$H$31:$I$50,2,FALSE))","v":60},{"$f":"+IFERROR(VLOOKUP(KC$6&\"-\"&$M23&\"_old\",Ammortamento_Finanziario!$H:$L,5,FALSE),VLOOKUP($M23,TT_Tabelle_Riferimento!$H$31:$I$50,2,FALSE))","v":60},{"$f":"+IFERROR(VLOOKUP(KD$6&\"-\"&$M23&\"_old\",Ammortamento_Finanziario!$H:$L,5,FALSE),VLOOKUP($M23,TT_Tabelle_Riferimento!$H$31:$I$50,2,FALSE))","v":60},{"$f":"+IFERROR(VLOOKUP(KE$6&\"-\"&$M23&\"_old\",Ammortamento_Finanziario!$H:$L,5,FALSE),VLOOKUP($M23,TT_Tabelle_Riferimento!$H$31:$I$50,2,FALSE))","v":60},{"$f":"+IFERROR(VLOOKUP(KF$6&\"-\"&$M23&\"_old\",Ammortamento_Finanziario!$H:$L,5,FALSE),VLOOKUP($M23,TT_Tabelle_Riferimento!$H$31:$I$50,2,FALSE))","v":60},{"$f":"+IFERROR(VLOOKUP(KG$6&\"-\"&$M23&\"_old\",Ammortamento_Finanziario!$H:$L,5,FALSE),VLOOKUP($M23,TT_Tabelle_Riferimento!$H$31:$I$50,2,FALSE))","v":60},{"$f":"+IFERROR(VLOOKUP(KH$6&\"-\"&$M23&\"_old\",Ammortamento_Finanziario!$H:$L,5,FALSE),VLOOKUP($M23,TT_Tabelle_Riferimento!$H$31:$I$50,2,FALSE))","v":60},{"$f":"+IFERROR(VLOOKUP(KI$6&\"-\"&$M23&\"_old\",Ammortamento_Finanziario!$H:$L,5,FALSE),VLOOKUP($M23,TT_Tabelle_Riferimento!$H$31:$I$50,2,FALSE))","v":60},{"$f":"+IFERROR(VLOOKUP(KJ$6&\"-\"&$M23&\"_old\",Ammortamento_Finanziario!$H:$L,5,FALSE),VLOOKUP($M23,TT_Tabelle_Riferimento!$H$31:$I$50,2,FALSE))","v":60},{"$f":"+IFERROR(VLOOKUP(KK$6&\"-\"&$M23&\"_old\",Ammortamento_Finanziario!$H:$L,5,FALSE),VLOOKUP($M23,TT_Tabelle_Riferimento!$H$31:$I$50,2,FALSE))","v":60},{"$f":"+IFERROR(VLOOKUP(KL$6&\"-\"&$M23&\"_old\",Ammortamento_Finanziario!$H:$L,5,FALSE),VLOOKUP($M23,TT_Tabelle_Riferimento!$H$31:$I$50,2,FALSE))","v":60},{"$f":"+IFERROR(VLOOKUP(KM$6&\"-\"&$M23&\"_old\",Ammortamento_Finanziario!$H:$L,5,FALSE),VLOOKUP($M23,TT_Tabelle_Riferimento!$H$31:$I$50,2,FALSE))","v":60},{"$f":"+IFERROR(VLOOKUP(KN$6&\"-\"&$M23&\"_old\",Ammortamento_Finanziario!$H:$L,5,FALSE),VLOOKUP($M23,TT_Tabelle_Riferimento!$H$31:$I$50,2,FALSE))","v":60},{"$f":"+IFERROR(VLOOKUP(KO$6&\"-\"&$M23&\"_old\",Ammortamento_Finanziario!$H:$L,5,FALSE),VLOOKUP($M23,TT_Tabelle_Riferimento!$H$31:$I$50,2,FALSE))","v":60},{"$f":"+IFERROR(VLOOKUP(KP$6&\"-\"&$M23&\"_old\",Ammortamento_Finanziario!$H:$L,5,FALSE),VLOOKUP($M23,TT_Tabelle_Riferimento!$H$31:$I$50,2,FALSE))","v":60},{"$f":"+IFERROR(VLOOKUP(KQ$6&\"-\"&$M23&\"_old\",Ammortamento_Finanziario!$H:$L,5,FALSE),VLOOKUP($M23,TT_Tabelle_Riferimento!$H$31:$I$50,2,FALSE))","v":60},{"$f":"+IFERROR(VLOOKUP(KR$6&\"-\"&$M23&\"_old\",Ammortamento_Finanziario!$H:$L,5,FALSE),VLOOKUP($M23,TT_Tabelle_Riferimento!$H$31:$I$50,2,FALSE))","v":60},{"$f":"+IFERROR(VLOOKUP(KS$6&\"-\"&$M23&\"_old\",Ammortamento_Finanziario!$H:$L,5,FALSE),VLOOKUP($M23,TT_Tabelle_Riferimento!$H$31:$I$50,2,FALSE))","v":60},{"$f":"+IFERROR(VLOOKUP(KT$6&\"-\"&$M23&\"_old\",Ammortamento_Finanziario!$H:$L,5,FALSE),VLOOKUP($M23,TT_Tabelle_Riferimento!$H$31:$I$50,2,FALSE))","v":60},{"$f":"+IFERROR(VLOOKUP(KU$6&\"-\"&$M23&\"_old\",Ammortamento_Finanziario!$H:$L,5,FALSE),VLOOKUP($M23,TT_Tabelle_Riferimento!$H$31:$I$50,2,FALSE))","v":60},{"$f":"+IFERROR(VLOOKUP(KV$6&\"-\"&$M23&\"_old\",Ammortamento_Finanziario!$H:$L,5,FALSE),VLOOKUP($M23,TT_Tabelle_Riferimento!$H$31:$I$50,2,FALSE))","v":60},{"$f":"+IFERROR(VLOOKUP(KW$6&\"-\"&$M23&\"_old\",Ammortamento_Finanziario!$H:$L,5,FALSE),VLOOKUP($M23,TT_Tabelle_Riferimento!$H$31:$I$50,2,FALSE))","v":60},{"$f":"+IFERROR(VLOOKUP(KX$6&\"-\"&$M23&\"_old\",Ammortamento_Finanziario!$H:$L,5,FALSE),VLOOKUP($M23,TT_Tabelle_Riferimento!$H$31:$I$50,2,FALSE))","v":60},{"$f":"+IFERROR(VLOOKUP(KY$6&\"-\"&$M23&\"_old\",Ammortamento_Finanziario!$H:$L,5,FALSE),VLOOKUP($M23,TT_Tabelle_Riferimento!$H$31:$I$50,2,FALSE))","v":60},{"$f":"+IFERROR(VLOOKUP(KZ$6&\"-\"&$M23&\"_old\",Ammortamento_Finanziario!$H:$L,5,FALSE),VLOOKUP($M23,TT_Tabelle_Riferimento!$H$31:$I$50,2,FALSE))","v":60},{"$f":"+IFERROR(VLOOKUP(LA$6&\"-\"&$M23&\"_old\",Ammortamento_Finanziario!$H:$L,5,FALSE),VLOOKUP($M23,TT_Tabelle_Riferimento!$H$31:$I$50,2,FALSE))","v":60},{"$f":"+IFERROR(VLOOKUP(LB$6&\"-\"&$M23&\"_old\",Ammortamento_Finanziario!$H:$L,5,FALSE),VLOOKUP($M23,TT_Tabelle_Riferimento!$H$31:$I$50,2,FALSE))","v":60},{"$f":"+IFERROR(VLOOKUP(LC$6&\"-\"&$M23&\"_old\",Ammortamento_Finanziario!$H:$L,5,FALSE),VLOOKUP($M23,TT_Tabelle_Riferimento!$H$31:$I$50,2,FALSE))","v":60},{"$f":"+IFERROR(VLOOKUP(LD$6&\"-\"&$M23&\"_old\",Ammortamento_Finanziario!$H:$L,5,FALSE),VLOOKUP($M23,TT_Tabelle_Riferimento!$H$31:$I$50,2,FALSE))","v":60},{"$f":"+IFERROR(VLOOKUP(LE$6&\"-\"&$M23&\"_old\",Ammortamento_Finanziario!$H:$L,5,FALSE),VLOOKUP($M23,TT_Tabelle_Riferimento!$H$31:$I$50,2,FALSE))","v":60},{"$f":"+IFERROR(VLOOKUP(LF$6&\"-\"&$M23&\"_old\",Ammortamento_Finanziario!$H:$L,5,FALSE),VLOOKUP($M23,TT_Tabelle_Riferimento!$H$31:$I$50,2,FALSE))","v":60},{"$f":"+IFERROR(VLOOKUP(LG$6&\"-\"&$M23&\"_old\",Ammortamento_Finanziario!$H:$L,5,FALSE),VLOOKUP($M23,TT_Tabelle_Riferimento!$H$31:$I$50,2,FALSE))","v":60},{"$f":"+IFERROR(VLOOKUP(LH$6&\"-\"&$M23&\"_old\",Ammortamento_Finanziario!$H:$L,5,FALSE),VLOOKUP($M23,TT_Tabelle_Riferimento!$H$31:$I$50,2,FALSE))","v":60},{"$f":"+IFERROR(VLOOKUP(LI$6&\"-\"&$M23&\"_old\",Ammortamento_Finanziario!$H:$L,5,FALSE),VLOOKUP($M23,TT_Tabelle_Riferimento!$H$31:$I$50,2,FALSE))","v":60},{"$f":"+IFERROR(VLOOKUP(LJ$6&\"-\"&$M23&\"_old\",Ammortamento_Finanziario!$H:$L,5,FALSE),VLOOKUP($M23,TT_Tabelle_Riferimento!$H$31:$I$50,2,FALSE))","v":60},{"$f":"+IFERROR(VLOOKUP(LK$6&\"-\"&$M23&\"_old\",Ammortamento_Finanziario!$H:$L,5,FALSE),VLOOKUP($M23,TT_Tabelle_Riferimento!$H$31:$I$50,2,FALSE))","v":60},{"$f":"+IFERROR(VLOOKUP(LL$6&\"-\"&$M23&\"_old\",Ammortamento_Finanziario!$H:$L,5,FALSE),VLOOKUP($M23,TT_Tabelle_Riferimento!$H$31:$I$50,2,FALSE))","v":60},{"$f":"+IFERROR(VLOOKUP(LM$6&\"-\"&$M23&\"_old\",Ammortamento_Finanziario!$H:$L,5,FALSE),VLOOKUP($M23,TT_Tabelle_Riferimento!$H$31:$I$50,2,FALSE))","v":60},{"$f":"+IFERROR(VLOOKUP(LN$6&\"-\"&$M23&\"_old\",Ammortamento_Finanziario!$H:$L,5,FALSE),VLOOKUP($M23,TT_Tabelle_Riferimento!$H$31:$I$50,2,FALSE))","v":60},{"$f":"+IFERROR(VLOOKUP(LO$6&\"-\"&$M23&\"_old\",Ammortamento_Finanziario!$H:$L,5,FALSE),VLOOKUP($M23,TT_Tabelle_Riferimento!$H$31:$I$50,2,FALSE))","v":60},{"$f":"+IFERROR(VLOOKUP(LP$6&\"-\"&$M23&\"_old\",Ammortamento_Finanziario!$H:$L,5,FALSE),VLOOKUP($M23,TT_Tabelle_Riferimento!$H$31:$I$50,2,FALSE))","v":60},{"$f":"+IFERROR(VLOOKUP(LQ$6&\"-\"&$M23&\"_old\",Ammortamento_Finanziario!$H:$L,5,FALSE),VLOOKUP($M23,TT_Tabelle_Riferimento!$H$31:$I$50,2,FALSE))","v":60},{"$f":"+IFERROR(VLOOKUP(LR$6&\"-\"&$M23&\"_old\",Ammortamento_Finanziario!$H:$L,5,FALSE),VLOOKUP($M23,TT_Tabelle_Riferimento!$H$31:$I$50,2,FALSE))","v":60},{"$f":"+IFERROR(VLOOKUP(LS$6&\"-\"&$M23&\"_old\",Ammortamento_Finanziario!$H:$L,5,FALSE),VLOOKUP($M23,TT_Tabelle_Riferimento!$H$31:$I$50,2,FALSE))","v":60},{"$f":"+IFERROR(VLOOKUP(LT$6&\"-\"&$M23&\"_old\",Ammortamento_Finanziario!$H:$L,5,FALSE),VLOOKUP($M23,TT_Tabelle_Riferimento!$H$31:$I$50,2,FALSE))","v":60},{"$f":"+IFERROR(VLOOKUP(LU$6&\"-\"&$M23&\"_old\",Ammortamento_Finanziario!$H:$L,5,FALSE),VLOOKUP($M23,TT_Tabelle_Riferimento!$H$31:$I$50,2,FALSE))","v":60},{"$f":"+IFERROR(VLOOKUP(LV$6&\"-\"&$M23&\"_old\",Ammortamento_Finanziario!$H:$L,5,FALSE),VLOOKUP($M23,TT_Tabelle_Riferimento!$H$31:$I$50,2,FALSE))","v":60},{"$f":"+IFERROR(VLOOKUP(LW$6&\"-\"&$M23&\"_old\",Ammortamento_Finanziario!$H:$L,5,FALSE),VLOOKUP($M23,TT_Tabelle_Riferimento!$H$31:$I$50,2,FALSE))","v":60},{"$f":"+IFERROR(VLOOKUP(LX$6&\"-\"&$M23&\"_old\",Ammortamento_Finanziario!$H:$L,5,FALSE),VLOOKUP($M23,TT_Tabelle_Riferimento!$H$31:$I$50,2,FALSE))","v":60},{"$f":"+IFERROR(VLOOKUP(LY$6&\"-\"&$M23&\"_old\",Ammortamento_Finanziario!$H:$L,5,FALSE),VLOOKUP($M23,TT_Tabelle_Riferimento!$H$31:$I$50,2,FALSE))","v":60},{"$f":"+IFERROR(VLOOKUP(LZ$6&\"-\"&$M23&\"_old\",Ammortamento_Finanziario!$H:$L,5,FALSE),VLOOKUP($M23,TT_Tabelle_Riferimento!$H$31:$I$50,2,FALSE))","v":60},{"$f":"+IFERROR(VLOOKUP(MA$6&\"-\"&$M23&\"_old\",Ammortamento_Finanziario!$H:$L,5,FALSE),VLOOKUP($M23,TT_Tabelle_Riferimento!$H$31:$I$50,2,FALSE))","v":60},{"$f":"+IFERROR(VLOOKUP(MB$6&\"-\"&$M23&\"_old\",Ammortamento_Finanziario!$H:$L,5,FALSE),VLOOKUP($M23,TT_Tabelle_Riferimento!$H$31:$I$50,2,FALSE))","v":60},{"$f":"+IFERROR(VLOOKUP(MC$6&\"-\"&$M23&\"_old\",Ammortamento_Finanziario!$H:$L,5,FALSE),VLOOKUP($M23,TT_Tabelle_Riferimento!$H$31:$I$50,2,FALSE))","v":60},{"$f":"+IFERROR(VLOOKUP(MD$6&\"-\"&$M23&\"_old\",Ammortamento_Finanziario!$H:$L,5,FALSE),VLOOKUP($M23,TT_Tabelle_Riferimento!$H$31:$I$50,2,FALSE))","v":60},{"$f":"+IFERROR(VLOOKUP(ME$6&\"-\"&$M23&\"_old\",Ammortamento_Finanziario!$H:$L,5,FALSE),VLOOKUP($M23,TT_Tabelle_Riferimento!$H$31:$I$50,2,FALSE))","v":60},{"$f":"+IFERROR(VLOOKUP(MF$6&\"-\"&$M23&\"_old\",Ammortamento_Finanziario!$H:$L,5,FALSE),VLOOKUP($M23,TT_Tabelle_Riferimento!$H$31:$I$50,2,FALSE))","v":60},{"$f":"+IFERROR(VLOOKUP(MG$6&\"-\"&$M23&\"_old\",Ammortamento_Finanziario!$H:$L,5,FALSE),VLOOKUP($M23,TT_Tabelle_Riferimento!$H$31:$I$50,2,FALSE))","v":60},{"$f":"+IFERROR(VLOOKUP(MH$6&\"-\"&$M23&\"_old\",Ammortamento_Finanziario!$H:$L,5,FALSE),VLOOKUP($M23,TT_Tabelle_Riferimento!$H$31:$I$50,2,FALSE))","v":60},{"$f":"+IFERROR(VLOOKUP(MI$6&\"-\"&$M23&\"_old\",Ammortamento_Finanziario!$H:$L,5,FALSE),VLOOKUP($M23,TT_Tabelle_Riferimento!$H$31:$I$50,2,FALSE))","v":60},{"$f":"+IFERROR(VLOOKUP(MJ$6&\"-\"&$M23&\"_old\",Ammortamento_Finanziario!$H:$L,5,FALSE),VLOOKUP($M23,TT_Tabelle_Riferimento!$H$31:$I$50,2,FALSE))","v":60},{"$f":"+IFERROR(VLOOKUP(MK$6&\"-\"&$M23&\"_old\",Ammortamento_Finanziario!$H:$L,5,FALSE),VLOOKUP($M23,TT_Tabelle_Riferimento!$H$31:$I$50,2,FALSE))","v":60},{"$f":"+IFERROR(VLOOKUP(ML$6&\"-\"&$M23&\"_old\",Ammortamento_Finanziario!$H:$L,5,FALSE),VLOOKUP($M23,TT_Tabelle_Riferimento!$H$31:$I$50,2,FALSE))","v":60},{"$f":"+IFERROR(VLOOKUP(MM$6&\"-\"&$M23&\"_old\",Ammortamento_Finanziario!$H:$L,5,FALSE),VLOOKUP($M23,TT_Tabelle_Riferimento!$H$31:$I$50,2,FALSE))","v":60},{"$f":"+IFERROR(VLOOKUP(MN$6&\"-\"&$M23&\"_old\",Ammortamento_Finanziario!$H:$L,5,FALSE),VLOOKUP($M23,TT_Tabelle_Riferimento!$H$31:$I$50,2,FALSE))","v":60},{"$f":"+IFERROR(VLOOKUP(MO$6&\"-\"&$M23&\"_old\",Ammortamento_Finanziario!$H:$L,5,FALSE),VLOOKUP($M23,TT_Tabelle_Riferimento!$H$31:$I$50,2,FALSE))","v":60},{"$f":"+IFERROR(VLOOKUP(MP$6&\"-\"&$M23&\"_old\",Ammortamento_Finanziario!$H:$L,5,FALSE),VLOOKUP($M23,TT_Tabelle_Riferimento!$H$31:$I$50,2,FALSE))","v":60},{"$f":"+IFERROR(VLOOKUP(MQ$6&\"-\"&$M23&\"_old\",Ammortamento_Finanziario!$H:$L,5,FALSE),VLOOKUP($M23,TT_Tabelle_Riferimento!$H$31:$I$50,2,FALSE))","v":60},{"$f":"+IFERROR(VLOOKUP(MR$6&\"-\"&$M23&\"_old\",Ammortamento_Finanziario!$H:$L,5,FALSE),VLOOKUP($M23,TT_Tabelle_Riferimento!$H$31:$I$50,2,FALSE))","v":60},{"$f":"+IFERROR(VLOOKUP(MS$6&\"-\"&$M23&\"_old\",Ammortamento_Finanziario!$H:$L,5,FALSE),VLOOKUP($M23,TT_Tabelle_Riferimento!$H$31:$I$50,2,FALSE))","v":60},{"$f":"+IFERROR(VLOOKUP(MT$6&\"-\"&$M23&\"_old\",Ammortamento_Finanziario!$H:$L,5,FALSE),VLOOKUP($M23,TT_Tabelle_Riferimento!$H$31:$I$50,2,FALSE))","v":60},{"$f":"+IFERROR(VLOOKUP(MU$6&\"-\"&$M23&\"_old\",Ammortamento_Finanziario!$H:$L,5,FALSE),VLOOKUP($M23,TT_Tabelle_Riferimento!$H$31:$I$50,2,FALSE))","v":60},{"$f":"+IFERROR(VLOOKUP(MV$6&\"-\"&$M23&\"_old\",Ammortamento_Finanziario!$H:$L,5,FALSE),VLOOKUP($M23,TT_Tabelle_Riferimento!$H$31:$I$50,2,FALSE))","v":60},{"$f":"+IFERROR(VLOOKUP(MW$6&\"-\"&$M23&\"_old\",Ammortamento_Finanziario!$H:$L,5,FALSE),VLOOKUP($M23,TT_Tabelle_Riferimento!$H$31:$I$50,2,FALSE))","v":60},{"$f":"+IFERROR(VLOOKUP(MX$6&\"-\"&$M23&\"_old\",Ammortamento_Finanziario!$H:$L,5,FALSE),VLOOKUP($M23,TT_Tabelle_Riferimento!$H$31:$I$50,2,FALSE))","v":60},{"$f":"+IFERROR(VLOOKUP(MY$6&\"-\"&$M23&\"_old\",Ammortamento_Finanziario!$H:$L,5,FALSE),VLOOKUP($M23,TT_Tabelle_Riferimento!$H$31:$I$50,2,FALSE))","v":60},{"$f":"+IFERROR(VLOOKUP(MZ$6&\"-\"&$M23&\"_old\",Ammortamento_Finanziario!$H:$L,5,FALSE),VLOOKUP($M23,TT_Tabelle_Riferimento!$H$31:$I$50,2,FALSE))","v":60},{"$f":"+IFERROR(VLOOKUP(NA$6&\"-\"&$M23&\"_old\",Ammortamento_Finanziario!$H:$L,5,FALSE),VLOOKUP($M23,TT_Tabelle_Riferimento!$H$31:$I$50,2,FALSE))","v":60},{"$f":"+IFERROR(VLOOKUP(NB$6&\"-\"&$M23&\"_old\",Ammortamento_Finanziario!$H:$L,5,FALSE),VLOOKUP($M23,TT_Tabelle_Riferimento!$H$31:$I$50,2,FALSE))","v":60},{"$f":"+IFERROR(VLOOKUP(NC$6&\"-\"&$M23&\"_old\",Ammortamento_Finanziario!$H:$L,5,FALSE),VLOOKUP($M23,TT_Tabelle_Riferimento!$H$31:$I$50,2,FALSE))","v":60},{"$f":"+IFERROR(VLOOKUP(ND$6&\"-\"&$M23&\"_old\",Ammortamento_Finanziario!$H:$L,5,FALSE),VLOOKUP($M23,TT_Tabelle_Riferimento!$H$31:$I$50,2,FALSE))","v":60},{"$f":"+IFERROR(VLOOKUP(NE$6&\"-\"&$M23&\"_old\",Ammortamento_Finanziario!$H:$L,5,FALSE),VLOOKUP($M23,TT_Tabelle_Riferimento!$H$31:$I$50,2,FALSE))","v":60},{"$f":"+IFERROR(VLOOKUP(NF$6&\"-\"&$M23&\"_old\",Ammortamento_Finanziario!$H:$L,5,FALSE),VLOOKUP($M23,TT_Tabelle_Riferimento!$H$31:$I$50,2,FALSE))","v":60},{"$f":"+IFERROR(VLOOKUP(NG$6&\"-\"&$M23&\"_old\",Ammortamento_Finanziario!$H:$L,5,FALSE),VLOOKUP($M23,TT_Tabelle_Riferimento!$H$31:$I$50,2,FALSE))","v":60},{"$f":"+IFERROR(VLOOKUP(NH$6&\"-\"&$M23&\"_old\",Ammortamento_Finanziario!$H:$L,5,FALSE),VLOOKUP($M23,TT_Tabelle_Riferimento!$H$31:$I$50,2,FALSE))","v":60},{"$f":"+IFERROR(VLOOKUP(NI$6&\"-\"&$M23&\"_old\",Ammortamento_Finanziario!$H:$L,5,FALSE),VLOOKUP($M23,TT_Tabelle_Riferimento!$H$31:$I$50,2,FALSE))","v":60},{"$f":"+IFERROR(VLOOKUP(NJ$6&\"-\"&$M23&\"_old\",Ammortamento_Finanziario!$H:$L,5,FALSE),VLOOKUP($M23,TT_Tabelle_Riferimento!$H$31:$I$50,2,FALSE))","v":60},{"$f":"+IFERROR(VLOOKUP(NK$6&\"-\"&$M23&\"_old\",Ammortamento_Finanziario!$H:$L,5,FALSE),VLOOKUP($M23,TT_Tabelle_Riferimento!$H$31:$I$50,2,FALSE))","v":60},{"$f":"+IFERROR(VLOOKUP(NL$6&\"-\"&$M23&\"_old\",Ammortamento_Finanziario!$H:$L,5,FALSE),VLOOKUP($M23,TT_Tabelle_Riferimento!$H$31:$I$50,2,FALSE))","v":60},{"$f":"+IFERROR(VLOOKUP(NM$6&\"-\"&$M23&\"_old\",Ammortamento_Finanziario!$H:$L,5,FALSE),VLOOKUP($M23,TT_Tabelle_Riferimento!$H$31:$I$50,2,FALSE))","v":60},{"$f":"+IFERROR(VLOOKUP(NN$6&\"-\"&$M23&\"_old\",Ammortamento_Finanziario!$H:$L,5,FALSE),VLOOKUP($M23,TT_Tabelle_Riferimento!$H$31:$I$50,2,FALSE))","v":60},{"$f":"+IFERROR(VLOOKUP(NO$6&\"-\"&$M23&\"_old\",Ammortamento_Finanziario!$H:$L,5,FALSE),VLOOKUP($M23,TT_Tabelle_Riferimento!$H$31:$I$50,2,FALSE))","v":60},{"$f":"+IFERROR(VLOOKUP(NP$6&\"-\"&$M23&\"_old\",Ammortamento_Finanziario!$H:$L,5,FALSE),VLOOKUP($M23,TT_Tabelle_Riferimento!$H$31:$I$50,2,FALSE))","v":60},{"$f":"+IFERROR(VLOOKUP(NQ$6&\"-\"&$M23&\"_old\",Ammortamento_Finanziario!$H:$L,5,FALSE),VLOOKUP($M23,TT_Tabelle_Riferimento!$H$31:$I$50,2,FALSE))","v":60},{"$f":"+IFERROR(VLOOKUP(NR$6&\"-\"&$M23&\"_old\",Ammortamento_Finanziario!$H:$L,5,FALSE),VLOOKUP($M23,TT_Tabelle_Riferimento!$H$31:$I$50,2,FALSE))","v":60},{"$f":"+IFERROR(VLOOKUP(NS$6&\"-\"&$M23&\"_old\",Ammortamento_Finanziario!$H:$L,5,FALSE),VLOOKUP($M23,TT_Tabelle_Riferimento!$H$31:$I$50,2,FALSE))","v":60},{"$f":"+IFERROR(VLOOKUP(NT$6&\"-\"&$M23&\"_old\",Ammortamento_Finanziario!$H:$L,5,FALSE),VLOOKUP($M23,TT_Tabelle_Riferimento!$H$31:$I$50,2,FALSE))","v":60},{"$f":"+IFERROR(VLOOKUP(NU$6&\"-\"&$M23&\"_old\",Ammortamento_Finanziario!$H:$L,5,FALSE),VLOOKUP($M23,TT_Tabelle_Riferimento!$H$31:$I$50,2,FALSE))","v":60},{"$f":"+IFERROR(VLOOKUP(NV$6&\"-\"&$M23&\"_old\",Ammortamento_Finanziario!$H:$L,5,FALSE),VLOOKUP($M23,TT_Tabelle_Riferimento!$H$31:$I$50,2,FALSE))","v":60},{"$f":"+IFERROR(VLOOKUP(NW$6&\"-\"&$M23&\"_old\",Ammortamento_Finanziario!$H:$L,5,FALSE),VLOOKUP($M23,TT_Tabelle_Riferimento!$H$31:$I$50,2,FALSE))","v":60},{"$f":"+IFERROR(VLOOKUP(NX$6&\"-\"&$M23&\"_old\",Ammortamento_Finanziario!$H:$L,5,FALSE),VLOOKUP($M23,TT_Tabelle_Riferimento!$H$31:$I$50,2,FALSE))","v":60},{"$f":"+IFERROR(VLOOKUP(NY$6&\"-\"&$M23&\"_old\",Ammortamento_Finanziario!$H:$L,5,FALSE),VLOOKUP($M23,TT_Tabelle_Riferimento!$H$31:$I$50,2,FALSE))","v":60},{"$f":"+IFERROR(VLOOKUP(NZ$6&\"-\"&$M23&\"_old\",Ammortamento_Finanziario!$H:$L,5,FALSE),VLOOKUP($M23,TT_Tabelle_Riferimento!$H$31:$I$50,2,FALSE))","v":60},{"$f":"+IFERROR(VLOOKUP(OA$6&\"-\"&$M23&\"_old\",Ammortamento_Finanziario!$H:$L,5,FALSE),VLOOKUP($M23,TT_Tabelle_Riferimento!$H$31:$I$50,2,FALSE))","v":60},{"$f":"+IFERROR(VLOOKUP(OB$6&\"-\"&$M23&\"_old\",Ammortamento_Finanziario!$H:$L,5,FALSE),VLOOKUP($M23,TT_Tabelle_Riferimento!$H$31:$I$50,2,FALSE))","v":60},{"$f":"+IFERROR(VLOOKUP(OC$6&\"-\"&$M23&\"_old\",Ammortamento_Finanziario!$H:$L,5,FALSE),VLOOKUP($M23,TT_Tabelle_Riferimento!$H$31:$I$50,2,FALSE))","v":60},{"$f":"+IFERROR(VLOOKUP(OD$6&\"-\"&$M23&\"_old\",Ammortamento_Finanziario!$H:$L,5,FALSE),VLOOKUP($M23,TT_Tabelle_Riferimento!$H$31:$I$50,2,FALSE))","v":60},{"$f":"+IFERROR(VLOOKUP(OE$6&\"-\"&$M23&\"_old\",Ammortamento_Finanziario!$H:$L,5,FALSE),VLOOKUP($M23,TT_Tabelle_Riferimento!$H$31:$I$50,2,FALSE))","v":60},{"$f":"+IFERROR(VLOOKUP(OF$6&\"-\"&$M23&\"_old\",Ammortamento_Finanziario!$H:$L,5,FALSE),VLOOKUP($M23,TT_Tabelle_Riferimento!$H$31:$I$50,2,FALSE))","v":60},{"$f":"+IFERROR(VLOOKUP(OG$6&\"-\"&$M23&\"_old\",Ammortamento_Finanziario!$H:$L,5,FALSE),VLOOKUP($M23,TT_Tabelle_Riferimento!$H$31:$I$50,2,FALSE))","v":60},{"$f":"+IFERROR(VLOOKUP(OH$6&\"-\"&$M23&\"_old\",Ammortamento_Finanziario!$H:$L,5,FALSE),VLOOKUP($M23,TT_Tabelle_Riferimento!$H$31:$I$50,2,FALSE))","v":60},{"$f":"+IFERROR(VLOOKUP(OI$6&\"-\"&$M23&\"_old\",Ammortamento_Finanziario!$H:$L,5,FALSE),VLOOKUP($M23,TT_Tabelle_Riferimento!$H$31:$I$50,2,FALSE))","v":60},{"$f":"+IFERROR(VLOOKUP(OJ$6&\"-\"&$M23&\"_old\",Ammortamento_Finanziario!$H:$L,5,FALSE),VLOOKUP($M23,TT_Tabelle_Riferimento!$H$31:$I$50,2,FALSE))","v":60},{"$f":"+IFERROR(VLOOKUP(OK$6&\"-\"&$M23&\"_old\",Ammortamento_Finanziario!$H:$L,5,FALSE),VLOOKUP($M23,TT_Tabelle_Riferimento!$H$31:$I$50,2,FALSE))","v":60},{"$f":"+IFERROR(VLOOKUP(OL$6&\"-\"&$M23&\"_old\",Ammortamento_Finanziario!$H:$L,5,FALSE),VLOOKUP($M23,TT_Tabelle_Riferimento!$H$31:$I$50,2,FALSE))","v":60},{"$f":"+IFERROR(VLOOKUP(OM$6&\"-\"&$M23&\"_old\",Ammortamento_Finanziario!$H:$L,5,FALSE),VLOOKUP($M23,TT_Tabelle_Riferimento!$H$31:$I$50,2,FALSE))","v":60},{"$f":"+IFERROR(VLOOKUP(ON$6&\"-\"&$M23&\"_old\",Ammortamento_Finanziario!$H:$L,5,FALSE),VLOOKUP($M23,TT_Tabelle_Riferimento!$H$31:$I$50,2,FALSE))","v":60},{"$f":"+IFERROR(VLOOKUP(OO$6&\"-\"&$M23&\"_old\",Ammortamento_Finanziario!$H:$L,5,FALSE),VLOOKUP($M23,TT_Tabelle_Riferimento!$H$31:$I$50,2,FALSE))","v":60},{"$f":"+IFERROR(VLOOKUP(OP$6&\"-\"&$M23&\"_old\",Ammortamento_Finanziario!$H:$L,5,FALSE),VLOOKUP($M23,TT_Tabelle_Riferimento!$H$31:$I$50,2,FALSE))","v":60},{"$f":"+IFERROR(VLOOKUP(OQ$6&\"-\"&$M23&\"_old\",Ammortamento_Finanziario!$H:$L,5,FALSE),VLOOKUP($M23,TT_Tabelle_Riferimento!$H$31:$I$50,2,FALSE))","v":60},{"$f":"+IFERROR(VLOOKUP(OR$6&\"-\"&$M23&\"_old\",Ammortamento_Finanziario!$H:$L,5,FALSE),VLOOKUP($M23,TT_Tabelle_Riferimento!$H$31:$I$50,2,FALSE))","v":60},{"$f":"+IFERROR(VLOOKUP(OS$6&\"-\"&$M23&\"_old\",Ammortamento_Finanziario!$H:$L,5,FALSE),VLOOKUP($M23,TT_Tabelle_Riferimento!$H$31:$I$50,2,FALSE))","v":60},{"$f":"+IFERROR(VLOOKUP(OT$6&\"-\"&$M23&\"_old\",Ammortamento_Finanziario!$H:$L,5,FALSE),VLOOKUP($M23,TT_Tabelle_Riferimento!$H$31:$I$50,2,FALSE))","v":60},{"$f":"+IFERROR(VLOOKUP(OU$6&\"-\"&$M23&\"_old\",Ammortamento_Finanziario!$H:$L,5,FALSE),VLOOKUP($M23,TT_Tabelle_Riferimento!$H$31:$I$50,2,FALSE))","v":60},{"$f":"+IFERROR(VLOOKUP(OV$6&\"-\"&$M23&\"_old\",Ammortamento_Finanziario!$H:$L,5,FALSE),VLOOKUP($M23,TT_Tabelle_Riferimento!$H$31:$I$50,2,FALSE))","v":60},{"$f":"+IFERROR(VLOOKUP(OW$6&\"-\"&$M23&\"_old\",Ammortamento_Finanziario!$H:$L,5,FALSE),VLOOKUP($M23,TT_Tabelle_Riferimento!$H$31:$I$50,2,FALSE))","v":60},{"$f":"+IFERROR(VLOOKUP(OX$6&\"-\"&$M23&\"_old\",Ammortamento_Finanziario!$H:$L,5,FALSE),VLOOKUP($M23,TT_Tabelle_Riferimento!$H$31:$I$50,2,FALSE))","v":60},{"$f":"+IFERROR(VLOOKUP(OY$6&\"-\"&$M23&\"_old\",Ammortamento_Finanziario!$H:$L,5,FALSE),VLOOKUP($M23,TT_Tabelle_Riferimento!$H$31:$I$50,2,FALSE))","v":60},{"$f":"+IFERROR(VLOOKUP(OZ$6&\"-\"&$M23&\"_old\",Ammortamento_Finanziario!$H:$L,5,FALSE),VLOOKUP($M23,TT_Tabelle_Riferimento!$H$31:$I$50,2,FALSE))","v":60},{"$f":"+IFERROR(VLOOKUP(PA$6&\"-\"&$M23&\"_old\",Ammortamento_Finanziario!$H:$L,5,FALSE),VLOOKUP($M23,TT_Tabelle_Riferimento!$H$31:$I$50,2,FALSE))","v":60},{"$f":"+IFERROR(VLOOKUP(PB$6&\"-\"&$M23&\"_old\",Ammortamento_Finanziario!$H:$L,5,FALSE),VLOOKUP($M23,TT_Tabelle_Riferimento!$H$31:$I$50,2,FALSE))","v":60},{"$f":"+IFERROR(VLOOKUP(PC$6&\"-\"&$M23&\"_old\",Ammortamento_Finanziario!$H:$L,5,FALSE),VLOOKUP($M23,TT_Tabelle_Riferimento!$H$31:$I$50,2,FALSE))","v":60},{"$f":"+IFERROR(VLOOKUP(PD$6&\"-\"&$M23&\"_old\",Ammortamento_Finanziario!$H:$L,5,FALSE),VLOOKUP($M23,TT_Tabelle_Riferimento!$H$31:$I$50,2,FALSE))","v":60},{"$f":"+IFERROR(VLOOKUP(PE$6&\"-\"&$M23&\"_old\",Ammortamento_Finanziario!$H:$L,5,FALSE),VLOOKUP($M23,TT_Tabelle_Riferimento!$H$31:$I$50,2,FALSE))","v":60},{"$f":"+IFERROR(VLOOKUP(PF$6&\"-\"&$M23&\"_old\",Ammortamento_Finanziario!$H:$L,5,FALSE),VLOOKUP($M23,TT_Tabelle_Riferimento!$H$31:$I$50,2,FALSE))","v":60},{"$f":"+IFERROR(VLOOKUP(PG$6&\"-\"&$M23&\"_old\",Ammortamento_Finanziario!$H:$L,5,FALSE),VLOOKUP($M23,TT_Tabelle_Riferimento!$H$31:$I$50,2,FALSE))","v":60},{"$f":"+IFERROR(VLOOKUP(PH$6&\"-\"&$M23&\"_old\",Ammortamento_Finanziario!$H:$L,5,FALSE),VLOOKUP($M23,TT_Tabelle_Riferimento!$H$31:$I$50,2,FALSE))","v":60},{"$f":"+IFERROR(VLOOKUP(PI$6&\"-\"&$M23&\"_old\",Ammortamento_Finanziario!$H:$L,5,FALSE),VLOOKUP($M23,TT_Tabelle_Riferimento!$H$31:$I$50,2,FALSE))","v":60},{"$f":"+IFERROR(VLOOKUP(PJ$6&\"-\"&$M23&\"_old\",Ammortamento_Finanziario!$H:$L,5,FALSE),VLOOKUP($M23,TT_Tabelle_Riferimento!$H$31:$I$50,2,FALSE))","v":60},{"$f":"+IFERROR(VLOOKUP(PK$6&\"-\"&$M23&\"_old\",Ammortamento_Finanziario!$H:$L,5,FALSE),VLOOKUP($M23,TT_Tabelle_Riferimento!$H$31:$I$50,2,FALSE))","v":60},{"$f":"+IFERROR(VLOOKUP(PL$6&\"-\"&$M23&\"_old\",Ammortamento_Finanziario!$H:$L,5,FALSE),VLOOKUP($M23,TT_Tabelle_Riferimento!$H$31:$I$50,2,FALSE))","v":60},{"$f":"+IFERROR(VLOOKUP(PM$6&\"-\"&$M23&\"_old\",Ammortamento_Finanziario!$H:$L,5,FALSE),VLOOKUP($M23,TT_Tabelle_Riferimento!$H$31:$I$50,2,FALSE))","v":60},{"$f":"+IFERROR(VLOOKUP(PN$6&\"-\"&$M23&\"_old\",Ammortamento_Finanziario!$H:$L,5,FALSE),VLOOKUP($M23,TT_Tabelle_Riferimento!$H$31:$I$50,2,FALSE))","v":60},{"$f":"+IFERROR(VLOOKUP(PO$6&\"-\"&$M23&\"_old\",Ammortamento_Finanziario!$H:$L,5,FALSE),VLOOKUP($M23,TT_Tabelle_Riferimento!$H$31:$I$50,2,FALSE))","v":60},{"$f":"+IFERROR(VLOOKUP(PP$6&\"-\"&$M23&\"_old\",Ammortamento_Finanziario!$H:$L,5,FALSE),VLOOKUP($M23,TT_Tabelle_Riferimento!$H$31:$I$50,2,FALSE))","v":60},{"$f":"+IFERROR(VLOOKUP(PQ$6&\"-\"&$M23&\"_old\",Ammortamento_Finanziario!$H:$L,5,FALSE),VLOOKUP($M23,TT_Tabelle_Riferimento!$H$31:$I$50,2,FALSE))","v":60},{"$f":"+IFERROR(VLOOKUP(PR$6&\"-\"&$M23&\"_old\",Ammortamento_Finanziario!$H:$L,5,FALSE),VLOOKUP($M23,TT_Tabelle_Riferimento!$H$31:$I$50,2,FALSE))","v":60},{"$f":"+IFERROR(VLOOKUP(PS$6&\"-\"&$M23&\"_old\",Ammortamento_Finanziario!$H:$L,5,FALSE),VLOOKUP($M23,TT_Tabelle_Riferimento!$H$31:$I$50,2,FALSE))","v":60},{"$f":"+IFERROR(VLOOKUP(PT$6&\"-\"&$M23&\"_old\",Ammortamento_Finanziario!$H:$L,5,FALSE),VLOOKUP($M23,TT_Tabelle_Riferimento!$H$31:$I$50,2,FALSE))","v":60},{"$f":"+IFERROR(VLOOKUP(PU$6&\"-\"&$M23&\"_old\",Ammortamento_Finanziario!$H:$L,5,FALSE),VLOOKUP($M23,TT_Tabelle_Riferimento!$H$31:$I$50,2,FALSE))","v":60},{"$f":"+IFERROR(VLOOKUP(PV$6&\"-\"&$M23&\"_old\",Ammortamento_Finanziario!$H:$L,5,FALSE),VLOOKUP($M23,TT_Tabelle_Riferimento!$H$31:$I$50,2,FALSE))","v":60},{"$f":"+IFERROR(VLOOKUP(PW$6&\"-\"&$M23&\"_old\",Ammortamento_Finanziario!$H:$L,5,FALSE),VLOOKUP($M23,TT_Tabelle_Riferimento!$H$31:$I$50,2,FALSE))","v":60},{"$f":"+IFERROR(VLOOKUP(PX$6&\"-\"&$M23&\"_old\",Ammortamento_Finanziario!$H:$L,5,FALSE),VLOOKUP($M23,TT_Tabelle_Riferimento!$H$31:$I$50,2,FALSE))","v":60},{"$f":"+IFERROR(VLOOKUP(PY$6&\"-\"&$M23&\"_old\",Ammortamento_Finanziario!$H:$L,5,FALSE),VLOOKUP($M23,TT_Tabelle_Riferimento!$H$31:$I$50,2,FALSE))","v":60},{"$f":"+IFERROR(VLOOKUP(PZ$6&\"-\"&$M23&\"_old\",Ammortamento_Finanziario!$H:$L,5,FALSE),VLOOKUP($M23,TT_Tabelle_Riferimento!$H$31:$I$50,2,FALSE))","v":60},{"$f":"+IFERROR(VLOOKUP(QA$6&\"-\"&$M23&\"_old\",Ammortamento_Finanziario!$H:$L,5,FALSE),VLOOKUP($M23,TT_Tabelle_Riferimento!$H$31:$I$50,2,FALSE))","v":60},{"$f":"+IFERROR(VLOOKUP(QB$6&\"-\"&$M23&\"_old\",Ammortamento_Finanziario!$H:$L,5,FALSE),VLOOKUP($M23,TT_Tabelle_Riferimento!$H$31:$I$50,2,FALSE))","v":60},{"$f":"+IFERROR(VLOOKUP(QC$6&\"-\"&$M23&\"_old\",Ammortamento_Finanziario!$H:$L,5,FALSE),VLOOKUP($M23,TT_Tabelle_Riferimento!$H$31:$I$50,2,FALSE))","v":60},{"$f":"+IFERROR(VLOOKUP(QD$6&\"-\"&$M23&\"_old\",Ammortamento_Finanziario!$H:$L,5,FALSE),VLOOKUP($M23,TT_Tabelle_Riferimento!$H$31:$I$50,2,FALSE))","v":60},{"$f":"+IFERROR(VLOOKUP(QE$6&\"-\"&$M23&\"_old\",Ammortamento_Finanziario!$H:$L,5,FALSE),VLOOKUP($M23,TT_Tabelle_Riferimento!$H$31:$I$50,2,FALSE))","v":60},{"$f":"+IFERROR(VLOOKUP(QF$6&\"-\"&$M23&\"_old\",Ammortamento_Finanziario!$H:$L,5,FALSE),VLOOKUP($M23,TT_Tabelle_Riferimento!$H$31:$I$50,2,FALSE))","v":60},{"$f":"+IFERROR(VLOOKUP(QG$6&\"-\"&$M23&\"_old\",Ammortamento_Finanziario!$H:$L,5,FALSE),VLOOKUP($M23,TT_Tabelle_Riferimento!$H$31:$I$50,2,FALSE))","v":60},{"$f":"+IFERROR(VLOOKUP(QH$6&\"-\"&$M23&\"_old\",Ammortamento_Finanziario!$H:$L,5,FALSE),VLOOKUP($M23,TT_Tabelle_Riferimento!$H$31:$I$50,2,FALSE))","v":60},{"$f":"+IFERROR(VLOOKUP(QI$6&\"-\"&$M23&\"_old\",Ammortamento_Finanziario!$H:$L,5,FALSE),VLOOKUP($M23,TT_Tabelle_Riferimento!$H$31:$I$50,2,FALSE))","v":60},{"$f":"+IFERROR(VLOOKUP(QJ$6&\"-\"&$M23&\"_old\",Ammortamento_Finanziario!$H:$L,5,FALSE),VLOOKUP($M23,TT_Tabelle_Riferimento!$H$31:$I$50,2,FALSE))","v":60},{"$f":"+IFERROR(VLOOKUP(QK$6&\"-\"&$M23&\"_old\",Ammortamento_Finanziario!$H:$L,5,FALSE),VLOOKUP($M23,TT_Tabelle_Riferimento!$H$31:$I$50,2,FALSE))","v":60},{"$f":"+IFERROR(VLOOKUP(QL$6&\"-\"&$M23&\"_old\",Ammortamento_Finanziario!$H:$L,5,FALSE),VLOOKUP($M23,TT_Tabelle_Riferimento!$H$31:$I$50,2,FALSE))","v":60},{"$f":"+IFERROR(VLOOKUP(QM$6&\"-\"&$M23&\"_old\",Ammortamento_Finanziario!$H:$L,5,FALSE),VLOOKUP($M23,TT_Tabelle_Riferimento!$H$31:$I$50,2,FALSE))","v":60},{"$f":"+IFERROR(VLOOKUP(QN$6&\"-\"&$M23&\"_old\",Ammortamento_Finanziario!$H:$L,5,FALSE),VLOOKUP($M23,TT_Tabelle_Riferimento!$H$31:$I$50,2,FALSE))","v":60},{"$f":"+IFERROR(VLOOKUP(QO$6&\"-\"&$M23&\"_old\",Ammortamento_Finanziario!$H:$L,5,FALSE),VLOOKUP($M23,TT_Tabelle_Riferimento!$H$31:$I$50,2,FALSE))","v":60},{"$f":"+IFERROR(VLOOKUP(QP$6&\"-\"&$M23&\"_old\",Ammortamento_Finanziario!$H:$L,5,FALSE),VLOOKUP($M23,TT_Tabelle_Riferimento!$H$31:$I$50,2,FALSE))","v":60},{"$f":"+IFERROR(VLOOKUP(QQ$6&\"-\"&$M23&\"_old\",Ammortamento_Finanziario!$H:$L,5,FALSE),VLOOKUP($M23,TT_Tabelle_Riferimento!$H$31:$I$50,2,FALSE))","v":60},{"$f":"+IFERROR(VLOOKUP(QR$6&\"-\"&$M23&\"_old\",Ammortamento_Finanziario!$H:$L,5,FALSE),VLOOKUP($M23,TT_Tabelle_Riferimento!$H$31:$I$50,2,FALSE))","v":60},{"$f":"+IFERROR(VLOOKUP(QS$6&\"-\"&$M23&\"_old\",Ammortamento_Finanziario!$H:$L,5,FALSE),VLOOKUP($M23,TT_Tabelle_Riferimento!$H$31:$I$50,2,FALSE))","v":60},{"$f":"+IFERROR(VLOOKUP(QT$6&\"-\"&$M23&\"_old\",Ammortamento_Finanziario!$H:$L,5,FALSE),VLOOKUP($M23,TT_Tabelle_Riferimento!$H$31:$I$50,2,FALSE))","v":60},{"$f":"+IFERROR(VLOOKUP(QU$6&\"-\"&$M23&\"_old\",Ammortamento_Finanziario!$H:$L,5,FALSE),VLOOKUP($M23,TT_Tabelle_Riferimento!$H$31:$I$50,2,FALSE))","v":60},{"$f":"+IFERROR(VLOOKUP(QV$6&\"-\"&$M23&\"_old\",Ammortamento_Finanziario!$H:$L,5,FALSE),VLOOKUP($M23,TT_Tabelle_Riferimento!$H$31:$I$50,2,FALSE))","v":60},{"$f":"+IFERROR(VLOOKUP(QW$6&\"-\"&$M23&\"_old\",Ammortamento_Finanziario!$H:$L,5,FALSE),VLOOKUP($M23,TT_Tabelle_Riferimento!$H$31:$I$50,2,FALSE))","v":60},{"$f":"+IFERROR(VLOOKUP(QX$6&\"-\"&$M23&\"_old\",Ammortamento_Finanziario!$H:$L,5,FALSE),VLOOKUP($M23,TT_Tabelle_Riferimento!$H$31:$I$50,2,FALSE))","v":60},{"$f":"+IFERROR(VLOOKUP(QY$6&\"-\"&$M23&\"_old\",Ammortamento_Finanziario!$H:$L,5,FALSE),VLOOKUP($M23,TT_Tabelle_Riferimento!$H$31:$I$50,2,FALSE))","v":60},{"$f":"+IFERROR(VLOOKUP(QZ$6&\"-\"&$M23&\"_old\",Ammortamento_Finanziario!$H:$L,5,FALSE),VLOOKUP($M23,TT_Tabelle_Riferimento!$H$31:$I$50,2,FALSE))","v":60},{"$f":"+IFERROR(VLOOKUP(RA$6&\"-\"&$M23&\"_old\",Ammortamento_Finanziario!$H:$L,5,FALSE),VLOOKUP($M23,TT_Tabelle_Riferimento!$H$31:$I$50,2,FALSE))","v":60},{"$f":"+IFERROR(VLOOKUP(RB$6&\"-\"&$M23&\"_old\",Ammortamento_Finanziario!$H:$L,5,FALSE),VLOOKUP($M23,TT_Tabelle_Riferimento!$H$31:$I$50,2,FALSE))","v":60},{"$f":"+IFERROR(VLOOKUP(RC$6&\"-\"&$M23&\"_old\",Ammortamento_Finanziario!$H:$L,5,FALSE),VLOOKUP($M23,TT_Tabelle_Riferimento!$H$31:$I$50,2,FALSE))","v":60},{"$f":"+IFERROR(VLOOKUP(RD$6&\"-\"&$M23&\"_old\",Ammortamento_Finanziario!$H:$L,5,FALSE),VLOOKUP($M23,TT_Tabelle_Riferimento!$H$31:$I$50,2,FALSE))","v":60},{"$f":"+IFERROR(VLOOKUP(RE$6&\"-\"&$M23&\"_old\",Ammortamento_Finanziario!$H:$L,5,FALSE),VLOOKUP($M23,TT_Tabelle_Riferimento!$H$31:$I$50,2,FALSE))","v":60},{"$f":"+IFERROR(VLOOKUP(RF$6&\"-\"&$M23&\"_old\",Ammortamento_Finanziario!$H:$L,5,FALSE),VLOOKUP($M23,TT_Tabelle_Riferimento!$H$31:$I$50,2,FALSE))","v":60},{"$f":"+IFERROR(VLOOKUP(RG$6&\"-\"&$M23&\"_old\",Ammortamento_Finanziario!$H:$L,5,FALSE),VLOOKUP($M23,TT_Tabelle_Riferimento!$H$31:$I$50,2,FALSE))","v":60},{"$f":"+IFERROR(VLOOKUP(RH$6&\"-\"&$M23&\"_old\",Ammortamento_Finanziario!$H:$L,5,FALSE),VLOOKUP($M23,TT_Tabelle_Riferimento!$H$31:$I$50,2,FALSE))","v":60},{"$f":"+IFERROR(VLOOKUP(RI$6&\"-\"&$M23&\"_old\",Ammortamento_Finanziario!$H:$L,5,FALSE),VLOOKUP($M23,TT_Tabelle_Riferimento!$H$31:$I$50,2,FALSE))","v":60},{"$f":"+IFERROR(VLOOKUP(RJ$6&\"-\"&$M23&\"_old\",Ammortamento_Finanziario!$H:$L,5,FALSE),VLOOKUP($M23,TT_Tabelle_Riferimento!$H$31:$I$50,2,FALSE))","v":60},{"$f":"+IFERROR(VLOOKUP(RK$6&\"-\"&$M23&\"_old\",Ammortamento_Finanziario!$H:$L,5,FALSE),VLOOKUP($M23,TT_Tabelle_Riferimento!$H$31:$I$50,2,FALSE))","v":60},{"$f":"+IFERROR(VLOOKUP(RL$6&\"-\"&$M23&\"_old\",Ammortamento_Finanziario!$H:$L,5,FALSE),VLOOKUP($M23,TT_Tabelle_Riferimento!$H$31:$I$50,2,FALSE))","v":60},{"$f":"+IFERROR(VLOOKUP(RM$6&\"-\"&$M23&\"_old\",Ammortamento_Finanziario!$H:$L,5,FALSE),VLOOKUP($M23,TT_Tabelle_Riferimento!$H$31:$I$50,2,FALSE))","v":60},{"$f":"+IFERROR(VLOOKUP(RN$6&\"-\"&$M23&\"_old\",Ammortamento_Finanziario!$H:$L,5,FALSE),VLOOKUP($M23,TT_Tabelle_Riferimento!$H$31:$I$50,2,FALSE))","v":60},{"$f":"+IFERROR(VLOOKUP(RO$6&\"-\"&$M23&\"_old\",Ammortamento_Finanziario!$H:$L,5,FALSE),VLOOKUP($M23,TT_Tabelle_Riferimento!$H$31:$I$50,2,FALSE))","v":60},{"$f":"+IFERROR(VLOOKUP(RP$6&\"-\"&$M23&\"_old\",Ammortamento_Finanziario!$H:$L,5,FALSE),VLOOKUP($M23,TT_Tabelle_Riferimento!$H$31:$I$50,2,FALSE))","v":60},{"$f":"+IFERROR(VLOOKUP(RQ$6&\"-\"&$M23&\"_old\",Ammortamento_Finanziario!$H:$L,5,FALSE),VLOOKUP($M23,TT_Tabelle_Riferimento!$H$31:$I$50,2,FALSE))","v":60},{"$f":"+IFERROR(VLOOKUP(RR$6&\"-\"&$M23&\"_old\",Ammortamento_Finanziario!$H:$L,5,FALSE),VLOOKUP($M23,TT_Tabelle_Riferimento!$H$31:$I$50,2,FALSE))","v":60},{"$f":"+IFERROR(VLOOKUP(RS$6&\"-\"&$M23&\"_old\",Ammortamento_Finanziario!$H:$L,5,FALSE),VLOOKUP($M23,TT_Tabelle_Riferimento!$H$31:$I$50,2,FALSE))","v":60},{"$f":"+IFERROR(VLOOKUP(RT$6&\"-\"&$M23&\"_old\",Ammortamento_Finanziario!$H:$L,5,FALSE),VLOOKUP($M23,TT_Tabelle_Riferimento!$H$31:$I$50,2,FALSE))","v":60},{"$f":"+IFERROR(VLOOKUP(RU$6&\"-\"&$M23&\"_old\",Ammortamento_Finanziario!$H:$L,5,FALSE),VLOOKUP($M23,TT_Tabelle_Riferimento!$H$31:$I$50,2,FALSE))","v":60},{"$f":"+IFERROR(VLOOKUP(RV$6&\"-\"&$M23&\"_old\",Ammortamento_Finanziario!$H:$L,5,FALSE),VLOOKUP($M23,TT_Tabelle_Riferimento!$H$31:$I$50,2,FALSE))","v":60}]
[null,null,null,"CINfp",{"$f":"+SUMIFS(IMN_gestore!W:W,IMN_gestore!$E:$E,\">=\"&2012,IMN_gestore!$E:$E,\"<=\"&2022)","v":0},{"$f":"+SUMIFS(IMN_gestore!AH:AH,IMN_gestore!$E:$E,\">=\"&2012,IMN_gestore!$E:$E,\"<=\"&2023)","v":0},{"$f":"+SUMIFS(IMN_gestore!AS:AS,IMN_gestore!$E:$E,\">=\"&2012,IMN_gestore!$E:$E,\"<=\"&2024)","v":0},{"$f":"+SUMIFS(IMN_gestore!BD:BD,IMN_gestore!$E:$E,\">=\"&2012,IMN_gestore!$E:$E,\"<=\"&2025)","v":0},{"$f":"+SUMIFS(IMN_gestore!$BO:$BO,IMN_gestore!$E:$E,\">=\"&2012,IMN_gestore!$E:$E,\"<=\"&2026)","v":0},{"$f":"+SUMIFS(IMN_gestore!$BZ:$BZ,IMN_gestore!$E:$E,\">=\"&2012,IMN_gestore!$E:$E,\"<=\"&2027)","v":0},null,null,39,{"$f":"+IFERROR(VLOOKUP(N$6&\"-\"&$M24&\"_old\",Ammortamento_Finanziario!$H:$L,5,FALSE),VLOOKUP($M24,TT_Tabelle_Riferimento!$H$31:$I$50,2,FALSE))","v":30},{"$f":"+IFERROR(VLOOKUP(O$6&\"-\"&$M24&\"_old\",Ammortamento_Finanziario!$H:$L,5,FALSE),VLOOKUP($M24,TT_Tabelle_Riferimento!$H$31:$I$50,2,FALSE))","v":30},{"$f":"+IFERROR(VLOOKUP(P$6&\"-\"&$M24&\"_old\",Ammortamento_Finanziario!$H:$L,5,FALSE),VLOOKUP($M24,TT_Tabelle_Riferimento!$H$31:$I$50,2,FALSE))","v":30},{"$f":"+IFERROR(VLOOKUP(Q$6&\"-\"&$M24&\"_old\",Ammortamento_Finanziario!$H:$L,5,FALSE),VLOOKUP($M24,TT_Tabelle_Riferimento!$H$31:$I$50,2,FALSE))","v":30},{"$f":"+IFERROR(VLOOKUP(R$6&\"-\"&$M24&\"_old\",Ammortamento_Finanziario!$H:$L,5,FALSE),VLOOKUP($M24,TT_Tabelle_Riferimento!$H$31:$I$50,2,FALSE))","v":30},{"$f":"+IFERROR(VLOOKUP(S$6&\"-\"&$M24&\"_old\",Ammortamento_Finanziario!$H:$L,5,FALSE),VLOOKUP($M24,TT_Tabelle_Riferimento!$H$31:$I$50,2,FALSE))","v":30},{"$f":"+IFERROR(VLOOKUP(T$6&\"-\"&$M24&\"_old\",Ammortamento_Finanziario!$H:$L,5,FALSE),VLOOKUP($M24,TT_Tabelle_Riferimento!$H$31:$I$50,2,FALSE))","v":30},{"$f":"+IFERROR(VLOOKUP(U$6&\"-\"&$M24&\"_old\",Ammortamento_Finanziario!$H:$L,5,FALSE),VLOOKUP($M24,TT_Tabelle_Riferimento!$H$31:$I$50,2,FALSE))","v":30},{"$f":"+IFERROR(VLOOKUP(V$6&\"-\"&$M24&\"_old\",Ammortamento_Finanziario!$H:$L,5,FALSE),VLOOKUP($M24,TT_Tabelle_Riferimento!$H$31:$I$50,2,FALSE))","v":30},{"$f":"+IFERROR(VLOOKUP(W$6&\"-\"&$M24&\"_old\",Ammortamento_Finanziario!$H:$L,5,FALSE),VLOOKUP($M24,TT_Tabelle_Riferimento!$H$31:$I$50,2,FALSE))","v":30},{"$f":"+IFERROR(VLOOKUP(X$6&\"-\"&$M24&\"_old\",Ammortamento_Finanziario!$H:$L,5,FALSE),VLOOKUP($M24,TT_Tabelle_Riferimento!$H$31:$I$50,2,FALSE))","v":30},{"$f":"+IFERROR(VLOOKUP(Y$6&\"-\"&$M24&\"_old\",Ammortamento_Finanziario!$H:$L,5,FALSE),VLOOKUP($M24,TT_Tabelle_Riferimento!$H$31:$I$50,2,FALSE))","v":30},{"$f":"+IFERROR(VLOOKUP(Z$6&\"-\"&$M24&\"_old\",Ammortamento_Finanziario!$H:$L,5,FALSE),VLOOKUP($M24,TT_Tabelle_Riferimento!$H$31:$I$50,2,FALSE))","v":30},{"$f":"+IFERROR(VLOOKUP(AA$6&\"-\"&$M24&\"_old\",Ammortamento_Finanziario!$H:$L,5,FALSE),VLOOKUP($M24,TT_Tabelle_Riferimento!$H$31:$I$50,2,FALSE))","v":30},{"$f":"+IFERROR(VLOOKUP(AB$6&\"-\"&$M24&\"_old\",Ammortamento_Finanziario!$H:$L,5,FALSE),VLOOKUP($M24,TT_Tabelle_Riferimento!$H$31:$I$50,2,FALSE))","v":30},{"$f":"+IFERROR(VLOOKUP(AC$6&\"-\"&$M24&\"_old\",Ammortamento_Finanziario!$H:$L,5,FALSE),VLOOKUP($M24,TT_Tabelle_Riferimento!$H$31:$I$50,2,FALSE))","v":30},{"$f":"+IFERROR(VLOOKUP(AD$6&\"-\"&$M24&\"_old\",Ammortamento_Finanziario!$H:$L,5,FALSE),VLOOKUP($M24,TT_Tabelle_Riferimento!$H$31:$I$50,2,FALSE))","v":30},{"$f":"+IFERROR(VLOOKUP(AE$6&\"-\"&$M24&\"_old\",Ammortamento_Finanziario!$H:$L,5,FALSE),VLOOKUP($M24,TT_Tabelle_Riferimento!$H$31:$I$50,2,FALSE))","v":30},{"$f":"+IFERROR(VLOOKUP(AF$6&\"-\"&$M24&\"_old\",Ammortamento_Finanziario!$H:$L,5,FALSE),VLOOKUP($M24,TT_Tabelle_Riferimento!$H$31:$I$50,2,FALSE))","v":30},{"$f":"+IFERROR(VLOOKUP(AG$6&\"-\"&$M24&\"_old\",Ammortamento_Finanziario!$H:$L,5,FALSE),VLOOKUP($M24,TT_Tabelle_Riferimento!$H$31:$I$50,2,FALSE))","v":30},{"$f":"+IFERROR(VLOOKUP(AH$6&\"-\"&$M24&\"_old\",Ammortamento_Finanziario!$H:$L,5,FALSE),VLOOKUP($M24,TT_Tabelle_Riferimento!$H$31:$I$50,2,FALSE))","v":30},{"$f":"+IFERROR(VLOOKUP(AI$6&\"-\"&$M24&\"_old\",Ammortamento_Finanziario!$H:$L,5,FALSE),VLOOKUP($M24,TT_Tabelle_Riferimento!$H$31:$I$50,2,FALSE))","v":30},{"$f":"+IFERROR(VLOOKUP(AJ$6&\"-\"&$M24&\"_old\",Ammortamento_Finanziario!$H:$L,5,FALSE),VLOOKUP($M24,TT_Tabelle_Riferimento!$H$31:$I$50,2,FALSE))","v":30},{"$f":"+IFERROR(VLOOKUP(AK$6&\"-\"&$M24&\"_old\",Ammortamento_Finanziario!$H:$L,5,FALSE),VLOOKUP($M24,TT_Tabelle_Riferimento!$H$31:$I$50,2,FALSE))","v":30},{"$f":"+IFERROR(VLOOKUP(AL$6&\"-\"&$M24&\"_old\",Ammortamento_Finanziario!$H:$L,5,FALSE),VLOOKUP($M24,TT_Tabelle_Riferimento!$H$31:$I$50,2,FALSE))","v":30},{"$f":"+IFERROR(VLOOKUP(AM$6&\"-\"&$M24&\"_old\",Ammortamento_Finanziario!$H:$L,5,FALSE),VLOOKUP($M24,TT_Tabelle_Riferimento!$H$31:$I$50,2,FALSE))","v":30},{"$f":"+IFERROR(VLOOKUP(AN$6&\"-\"&$M24&\"_old\",Ammortamento_Finanziario!$H:$L,5,FALSE),VLOOKUP($M24,TT_Tabelle_Riferimento!$H$31:$I$50,2,FALSE))","v":30},{"$f":"+IFERROR(VLOOKUP(AO$6&\"-\"&$M24&\"_old\",Ammortamento_Finanziario!$H:$L,5,FALSE),VLOOKUP($M24,TT_Tabelle_Riferimento!$H$31:$I$50,2,FALSE))","v":30},{"$f":"+IFERROR(VLOOKUP(AP$6&\"-\"&$M24&\"_old\",Ammortamento_Finanziario!$H:$L,5,FALSE),VLOOKUP($M24,TT_Tabelle_Riferimento!$H$31:$I$50,2,FALSE))","v":30},{"$f":"+IFERROR(VLOOKUP(AQ$6&\"-\"&$M24&\"_old\",Ammortamento_Finanziario!$H:$L,5,FALSE),VLOOKUP($M24,TT_Tabelle_Riferimento!$H$31:$I$50,2,FALSE))","v":30},{"$f":"+IFERROR(VLOOKUP(AR$6&\"-\"&$M24&\"_old\",Ammortamento_Finanziario!$H:$L,5,FALSE),VLOOKUP($M24,TT_Tabelle_Riferimento!$H$31:$I$50,2,FALSE))","v":30},{"$f":"+IFERROR(VLOOKUP(AS$6&\"-\"&$M24&\"_old\",Ammortamento_Finanziario!$H:$L,5,FALSE),VLOOKUP($M24,TT_Tabelle_Riferimento!$H$31:$I$50,2,FALSE))","v":30},{"$f":"+IFERROR(VLOOKUP(AT$6&\"-\"&$M24&\"_old\",Ammortamento_Finanziario!$H:$L,5,FALSE),VLOOKUP($M24,TT_Tabelle_Riferimento!$H$31:$I$50,2,FALSE))","v":30},{"$f":"+IFERROR(VLOOKUP(AU$6&\"-\"&$M24&\"_old\",Ammortamento_Finanziario!$H:$L,5,FALSE),VLOOKUP($M24,TT_Tabelle_Riferimento!$H$31:$I$50,2,FALSE))","v":30},{"$f":"+IFERROR(VLOOKUP(AV$6&\"-\"&$M24&\"_old\",Ammortamento_Finanziario!$H:$L,5,FALSE),VLOOKUP($M24,TT_Tabelle_Riferimento!$H$31:$I$50,2,FALSE))","v":30},{"$f":"+IFERROR(VLOOKUP(AW$6&\"-\"&$M24&\"_old\",Ammortamento_Finanziario!$H:$L,5,FALSE),VLOOKUP($M24,TT_Tabelle_Riferimento!$H$31:$I$50,2,FALSE))","v":30},{"$f":"+IFERROR(VLOOKUP(AX$6&\"-\"&$M24&\"_old\",Ammortamento_Finanziario!$H:$L,5,FALSE),VLOOKUP($M24,TT_Tabelle_Riferimento!$H$31:$I$50,2,FALSE))","v":30},{"$f":"+IFERROR(VLOOKUP(AY$6&\"-\"&$M24&\"_old\",Ammortamento_Finanziario!$H:$L,5,FALSE),VLOOKUP($M24,TT_Tabelle_Riferimento!$H$31:$I$50,2,FALSE))","v":30},{"$f":"+IFERROR(VLOOKUP(AZ$6&\"-\"&$M24&\"_old\",Ammortamento_Finanziario!$H:$L,5,FALSE),VLOOKUP($M24,TT_Tabelle_Riferimento!$H$31:$I$50,2,FALSE))","v":30},{"$f":"+IFERROR(VLOOKUP(BA$6&\"-\"&$M24&\"_old\",Ammortamento_Finanziario!$H:$L,5,FALSE),VLOOKUP($M24,TT_Tabelle_Riferimento!$H$31:$I$50,2,FALSE))","v":30},{"$f":"+IFERROR(VLOOKUP(BB$6&\"-\"&$M24&\"_old\",Ammortamento_Finanziario!$H:$L,5,FALSE),VLOOKUP($M24,TT_Tabelle_Riferimento!$H$31:$I$50,2,FALSE))","v":30},{"$f":"+IFERROR(VLOOKUP(BC$6&\"-\"&$M24&\"_old\",Ammortamento_Finanziario!$H:$L,5,FALSE),VLOOKUP($M24,TT_Tabelle_Riferimento!$H$31:$I$50,2,FALSE))","v":30},{"$f":"+IFERROR(VLOOKUP(BD$6&\"-\"&$M24&\"_old\",Ammortamento_Finanziario!$H:$L,5,FALSE),VLOOKUP($M24,TT_Tabelle_Riferimento!$H$31:$I$50,2,FALSE))","v":30},{"$f":"+IFERROR(VLOOKUP(BE$6&\"-\"&$M24&\"_old\",Ammortamento_Finanziario!$H:$L,5,FALSE),VLOOKUP($M24,TT_Tabelle_Riferimento!$H$31:$I$50,2,FALSE))","v":30},{"$f":"+IFERROR(VLOOKUP(BF$6&\"-\"&$M24&\"_old\",Ammortamento_Finanziario!$H:$L,5,FALSE),VLOOKUP($M24,TT_Tabelle_Riferimento!$H$31:$I$50,2,FALSE))","v":30},{"$f":"+IFERROR(VLOOKUP(BG$6&\"-\"&$M24&\"_old\",Ammortamento_Finanziario!$H:$L,5,FALSE),VLOOKUP($M24,TT_Tabelle_Riferimento!$H$31:$I$50,2,FALSE))","v":30},{"$f":"+IFERROR(VLOOKUP(BH$6&\"-\"&$M24&\"_old\",Ammortamento_Finanziario!$H:$L,5,FALSE),VLOOKUP($M24,TT_Tabelle_Riferimento!$H$31:$I$50,2,FALSE))","v":30},{"$f":"+IFERROR(VLOOKUP(BI$6&\"-\"&$M24&\"_old\",Ammortamento_Finanziario!$H:$L,5,FALSE),VLOOKUP($M24,TT_Tabelle_Riferimento!$H$31:$I$50,2,FALSE))","v":30},{"$f":"+IFERROR(VLOOKUP(BJ$6&\"-\"&$M24&\"_old\",Ammortamento_Finanziario!$H:$L,5,FALSE),VLOOKUP($M24,TT_Tabelle_Riferimento!$H$31:$I$50,2,FALSE))","v":30},{"$f":"+IFERROR(VLOOKUP(BK$6&\"-\"&$M24&\"_old\",Ammortamento_Finanziario!$H:$L,5,FALSE),VLOOKUP($M24,TT_Tabelle_Riferimento!$H$31:$I$50,2,FALSE))","v":30},{"$f":"+IFERROR(VLOOKUP(BL$6&\"-\"&$M24&\"_old\",Ammortamento_Finanziario!$H:$L,5,FALSE),VLOOKUP($M24,TT_Tabelle_Riferimento!$H$31:$I$50,2,FALSE))","v":30},{"$f":"+IFERROR(VLOOKUP(BM$6&\"-\"&$M24&\"_old\",Ammortamento_Finanziario!$H:$L,5,FALSE),VLOOKUP($M24,TT_Tabelle_Riferimento!$H$31:$I$50,2,FALSE))","v":30},{"$f":"+IFERROR(VLOOKUP(BN$6&\"-\"&$M24&\"_old\",Ammortamento_Finanziario!$H:$L,5,FALSE),VLOOKUP($M24,TT_Tabelle_Riferimento!$H$31:$I$50,2,FALSE))","v":30},{"$f":"+IFERROR(VLOOKUP(BO$6&\"-\"&$M24&\"_old\",Ammortamento_Finanziario!$H:$L,5,FALSE),VLOOKUP($M24,TT_Tabelle_Riferimento!$H$31:$I$50,2,FALSE))","v":30},{"$f":"+IFERROR(VLOOKUP(BP$6&\"-\"&$M24&\"_old\",Ammortamento_Finanziario!$H:$L,5,FALSE),VLOOKUP($M24,TT_Tabelle_Riferimento!$H$31:$I$50,2,FALSE))","v":30},{"$f":"+IFERROR(VLOOKUP(BQ$6&\"-\"&$M24&\"_old\",Ammortamento_Finanziario!$H:$L,5,FALSE),VLOOKUP($M24,TT_Tabelle_Riferimento!$H$31:$I$50,2,FALSE))","v":30},{"$f":"+IFERROR(VLOOKUP(BR$6&\"-\"&$M24&\"_old\",Ammortamento_Finanziario!$H:$L,5,FALSE),VLOOKUP($M24,TT_Tabelle_Riferimento!$H$31:$I$50,2,FALSE))","v":30},{"$f":"+IFERROR(VLOOKUP(BS$6&\"-\"&$M24&\"_old\",Ammortamento_Finanziario!$H:$L,5,FALSE),VLOOKUP($M24,TT_Tabelle_Riferimento!$H$31:$I$50,2,FALSE))","v":30},{"$f":"+IFERROR(VLOOKUP(BT$6&\"-\"&$M24&\"_old\",Ammortamento_Finanziario!$H:$L,5,FALSE),VLOOKUP($M24,TT_Tabelle_Riferimento!$H$31:$I$50,2,FALSE))","v":30},{"$f":"+IFERROR(VLOOKUP(BU$6&\"-\"&$M24&\"_old\",Ammortamento_Finanziario!$H:$L,5,FALSE),VLOOKUP($M24,TT_Tabelle_Riferimento!$H$31:$I$50,2,FALSE))","v":30},{"$f":"+IFERROR(VLOOKUP(BV$6&\"-\"&$M24&\"_old\",Ammortamento_Finanziario!$H:$L,5,FALSE),VLOOKUP($M24,TT_Tabelle_Riferimento!$H$31:$I$50,2,FALSE))","v":30},{"$f":"+IFERROR(VLOOKUP(BW$6&\"-\"&$M24&\"_old\",Ammortamento_Finanziario!$H:$L,5,FALSE),VLOOKUP($M24,TT_Tabelle_Riferimento!$H$31:$I$50,2,FALSE))","v":30},{"$f":"+IFERROR(VLOOKUP(BX$6&\"-\"&$M24&\"_old\",Ammortamento_Finanziario!$H:$L,5,FALSE),VLOOKUP($M24,TT_Tabelle_Riferimento!$H$31:$I$50,2,FALSE))","v":30},{"$f":"+IFERROR(VLOOKUP(BY$6&\"-\"&$M24&\"_old\",Ammortamento_Finanziario!$H:$L,5,FALSE),VLOOKUP($M24,TT_Tabelle_Riferimento!$H$31:$I$50,2,FALSE))","v":30},{"$f":"+IFERROR(VLOOKUP(BZ$6&\"-\"&$M24&\"_old\",Ammortamento_Finanziario!$H:$L,5,FALSE),VLOOKUP($M24,TT_Tabelle_Riferimento!$H$31:$I$50,2,FALSE))","v":30},{"$f":"+IFERROR(VLOOKUP(CA$6&\"-\"&$M24&\"_old\",Ammortamento_Finanziario!$H:$L,5,FALSE),VLOOKUP($M24,TT_Tabelle_Riferimento!$H$31:$I$50,2,FALSE))","v":30},{"$f":"+IFERROR(VLOOKUP(CB$6&\"-\"&$M24&\"_old\",Ammortamento_Finanziario!$H:$L,5,FALSE),VLOOKUP($M24,TT_Tabelle_Riferimento!$H$31:$I$50,2,FALSE))","v":30},{"$f":"+IFERROR(VLOOKUP(CC$6&\"-\"&$M24&\"_old\",Ammortamento_Finanziario!$H:$L,5,FALSE),VLOOKUP($M24,TT_Tabelle_Riferimento!$H$31:$I$50,2,FALSE))","v":30},{"$f":"+IFERROR(VLOOKUP(CD$6&\"-\"&$M24&\"_old\",Ammortamento_Finanziario!$H:$L,5,FALSE),VLOOKUP($M24,TT_Tabelle_Riferimento!$H$31:$I$50,2,FALSE))","v":30},{"$f":"+IFERROR(VLOOKUP(CE$6&\"-\"&$M24&\"_old\",Ammortamento_Finanziario!$H:$L,5,FALSE),VLOOKUP($M24,TT_Tabelle_Riferimento!$H$31:$I$50,2,FALSE))","v":30},{"$f":"+IFERROR(VLOOKUP(CF$6&\"-\"&$M24&\"_old\",Ammortamento_Finanziario!$H:$L,5,FALSE),VLOOKUP($M24,TT_Tabelle_Riferimento!$H$31:$I$50,2,FALSE))","v":30},{"$f":"+IFERROR(VLOOKUP(CG$6&\"-\"&$M24&\"_old\",Ammortamento_Finanziario!$H:$L,5,FALSE),VLOOKUP($M24,TT_Tabelle_Riferimento!$H$31:$I$50,2,FALSE))","v":30},{"$f":"+IFERROR(VLOOKUP(CH$6&\"-\"&$M24&\"_old\",Ammortamento_Finanziario!$H:$L,5,FALSE),VLOOKUP($M24,TT_Tabelle_Riferimento!$H$31:$I$50,2,FALSE))","v":30},{"$f":"+IFERROR(VLOOKUP(CI$6&\"-\"&$M24&\"_old\",Ammortamento_Finanziario!$H:$L,5,FALSE),VLOOKUP($M24,TT_Tabelle_Riferimento!$H$31:$I$50,2,FALSE))","v":30},{"$f":"+IFERROR(VLOOKUP(CJ$6&\"-\"&$M24&\"_old\",Ammortamento_Finanziario!$H:$L,5,FALSE),VLOOKUP($M24,TT_Tabelle_Riferimento!$H$31:$I$50,2,FALSE))","v":30},{"$f":"+IFERROR(VLOOKUP(CK$6&\"-\"&$M24&\"_old\",Ammortamento_Finanziario!$H:$L,5,FALSE),VLOOKUP($M24,TT_Tabelle_Riferimento!$H$31:$I$50,2,FALSE))","v":30},{"$f":"+IFERROR(VLOOKUP(CL$6&\"-\"&$M24&\"_old\",Ammortamento_Finanziario!$H:$L,5,FALSE),VLOOKUP($M24,TT_Tabelle_Riferimento!$H$31:$I$50,2,FALSE))","v":30},{"$f":"+IFERROR(VLOOKUP(CM$6&\"-\"&$M24&\"_old\",Ammortamento_Finanziario!$H:$L,5,FALSE),VLOOKUP($M24,TT_Tabelle_Riferimento!$H$31:$I$50,2,FALSE))","v":30},{"$f":"+IFERROR(VLOOKUP(CN$6&\"-\"&$M24&\"_old\",Ammortamento_Finanziario!$H:$L,5,FALSE),VLOOKUP($M24,TT_Tabelle_Riferimento!$H$31:$I$50,2,FALSE))","v":30},{"$f":"+IFERROR(VLOOKUP(CO$6&\"-\"&$M24&\"_old\",Ammortamento_Finanziario!$H:$L,5,FALSE),VLOOKUP($M24,TT_Tabelle_Riferimento!$H$31:$I$50,2,FALSE))","v":30},{"$f":"+IFERROR(VLOOKUP(CP$6&\"-\"&$M24&\"_old\",Ammortamento_Finanziario!$H:$L,5,FALSE),VLOOKUP($M24,TT_Tabelle_Riferimento!$H$31:$I$50,2,FALSE))","v":30},{"$f":"+IFERROR(VLOOKUP(CQ$6&\"-\"&$M24&\"_old\",Ammortamento_Finanziario!$H:$L,5,FALSE),VLOOKUP($M24,TT_Tabelle_Riferimento!$H$31:$I$50,2,FALSE))","v":30},{"$f":"+IFERROR(VLOOKUP(CR$6&\"-\"&$M24&\"_old\",Ammortamento_Finanziario!$H:$L,5,FALSE),VLOOKUP($M24,TT_Tabelle_Riferimento!$H$31:$I$50,2,FALSE))","v":30},{"$f":"+IFERROR(VLOOKUP(CS$6&\"-\"&$M24&\"_old\",Ammortamento_Finanziario!$H:$L,5,FALSE),VLOOKUP($M24,TT_Tabelle_Riferimento!$H$31:$I$50,2,FALSE))","v":30},{"$f":"+IFERROR(VLOOKUP(CT$6&\"-\"&$M24&\"_old\",Ammortamento_Finanziario!$H:$L,5,FALSE),VLOOKUP($M24,TT_Tabelle_Riferimento!$H$31:$I$50,2,FALSE))","v":30},{"$f":"+IFERROR(VLOOKUP(CU$6&\"-\"&$M24&\"_old\",Ammortamento_Finanziario!$H:$L,5,FALSE),VLOOKUP($M24,TT_Tabelle_Riferimento!$H$31:$I$50,2,FALSE))","v":30},{"$f":"+IFERROR(VLOOKUP(CV$6&\"-\"&$M24&\"_old\",Ammortamento_Finanziario!$H:$L,5,FALSE),VLOOKUP($M24,TT_Tabelle_Riferimento!$H$31:$I$50,2,FALSE))","v":30},{"$f":"+IFERROR(VLOOKUP(CW$6&\"-\"&$M24&\"_old\",Ammortamento_Finanziario!$H:$L,5,FALSE),VLOOKUP($M24,TT_Tabelle_Riferimento!$H$31:$I$50,2,FALSE))","v":30},{"$f":"+IFERROR(VLOOKUP(CX$6&\"-\"&$M24&\"_old\",Ammortamento_Finanziario!$H:$L,5,FALSE),VLOOKUP($M24,TT_Tabelle_Riferimento!$H$31:$I$50,2,FALSE))","v":30},{"$f":"+IFERROR(VLOOKUP(CY$6&\"-\"&$M24&\"_old\",Ammortamento_Finanziario!$H:$L,5,FALSE),VLOOKUP($M24,TT_Tabelle_Riferimento!$H$31:$I$50,2,FALSE))","v":30},{"$f":"+IFERROR(VLOOKUP(CZ$6&\"-\"&$M24&\"_old\",Ammortamento_Finanziario!$H:$L,5,FALSE),VLOOKUP($M24,TT_Tabelle_Riferimento!$H$31:$I$50,2,FALSE))","v":30},{"$f":"+IFERROR(VLOOKUP(DA$6&\"-\"&$M24&\"_old\",Ammortamento_Finanziario!$H:$L,5,FALSE),VLOOKUP($M24,TT_Tabelle_Riferimento!$H$31:$I$50,2,FALSE))","v":30},{"$f":"+IFERROR(VLOOKUP(DB$6&\"-\"&$M24&\"_old\",Ammortamento_Finanziario!$H:$L,5,FALSE),VLOOKUP($M24,TT_Tabelle_Riferimento!$H$31:$I$50,2,FALSE))","v":30},{"$f":"+IFERROR(VLOOKUP(DC$6&\"-\"&$M24&\"_old\",Ammortamento_Finanziario!$H:$L,5,FALSE),VLOOKUP($M24,TT_Tabelle_Riferimento!$H$31:$I$50,2,FALSE))","v":30},{"$f":"+IFERROR(VLOOKUP(DD$6&\"-\"&$M24&\"_old\",Ammortamento_Finanziario!$H:$L,5,FALSE),VLOOKUP($M24,TT_Tabelle_Riferimento!$H$31:$I$50,2,FALSE))","v":30},{"$f":"+IFERROR(VLOOKUP(DE$6&\"-\"&$M24&\"_old\",Ammortamento_Finanziario!$H:$L,5,FALSE),VLOOKUP($M24,TT_Tabelle_Riferimento!$H$31:$I$50,2,FALSE))","v":30},{"$f":"+IFERROR(VLOOKUP(DF$6&\"-\"&$M24&\"_old\",Ammortamento_Finanziario!$H:$L,5,FALSE),VLOOKUP($M24,TT_Tabelle_Riferimento!$H$31:$I$50,2,FALSE))","v":30},{"$f":"+IFERROR(VLOOKUP(DG$6&\"-\"&$M24&\"_old\",Ammortamento_Finanziario!$H:$L,5,FALSE),VLOOKUP($M24,TT_Tabelle_Riferimento!$H$31:$I$50,2,FALSE))","v":30},{"$f":"+IFERROR(VLOOKUP(DH$6&\"-\"&$M24&\"_old\",Ammortamento_Finanziario!$H:$L,5,FALSE),VLOOKUP($M24,TT_Tabelle_Riferimento!$H$31:$I$50,2,FALSE))","v":30},{"$f":"+IFERROR(VLOOKUP(DI$6&\"-\"&$M24&\"_old\",Ammortamento_Finanziario!$H:$L,5,FALSE),VLOOKUP($M24,TT_Tabelle_Riferimento!$H$31:$I$50,2,FALSE))","v":30},{"$f":"+IFERROR(VLOOKUP(DJ$6&\"-\"&$M24&\"_old\",Ammortamento_Finanziario!$H:$L,5,FALSE),VLOOKUP($M24,TT_Tabelle_Riferimento!$H$31:$I$50,2,FALSE))","v":30},{"$f":"+IFERROR(VLOOKUP(DK$6&\"-\"&$M24&\"_old\",Ammortamento_Finanziario!$H:$L,5,FALSE),VLOOKUP($M24,TT_Tabelle_Riferimento!$H$31:$I$50,2,FALSE))","v":30},{"$f":"+IFERROR(VLOOKUP(DL$6&\"-\"&$M24&\"_old\",Ammortamento_Finanziario!$H:$L,5,FALSE),VLOOKUP($M24,TT_Tabelle_Riferimento!$H$31:$I$50,2,FALSE))","v":30},{"$f":"+IFERROR(VLOOKUP(DM$6&\"-\"&$M24&\"_old\",Ammortamento_Finanziario!$H:$L,5,FALSE),VLOOKUP($M24,TT_Tabelle_Riferimento!$H$31:$I$50,2,FALSE))","v":30},{"$f":"+IFERROR(VLOOKUP(DN$6&\"-\"&$M24&\"_old\",Ammortamento_Finanziario!$H:$L,5,FALSE),VLOOKUP($M24,TT_Tabelle_Riferimento!$H$31:$I$50,2,FALSE))","v":30},{"$f":"+IFERROR(VLOOKUP(DO$6&\"-\"&$M24&\"_old\",Ammortamento_Finanziario!$H:$L,5,FALSE),VLOOKUP($M24,TT_Tabelle_Riferimento!$H$31:$I$50,2,FALSE))","v":30},{"$f":"+IFERROR(VLOOKUP(DP$6&\"-\"&$M24&\"_old\",Ammortamento_Finanziario!$H:$L,5,FALSE),VLOOKUP($M24,TT_Tabelle_Riferimento!$H$31:$I$50,2,FALSE))","v":30},{"$f":"+IFERROR(VLOOKUP(DQ$6&\"-\"&$M24&\"_old\",Ammortamento_Finanziario!$H:$L,5,FALSE),VLOOKUP($M24,TT_Tabelle_Riferimento!$H$31:$I$50,2,FALSE))","v":30},{"$f":"+IFERROR(VLOOKUP(DR$6&\"-\"&$M24&\"_old\",Ammortamento_Finanziario!$H:$L,5,FALSE),VLOOKUP($M24,TT_Tabelle_Riferimento!$H$31:$I$50,2,FALSE))","v":30},{"$f":"+IFERROR(VLOOKUP(DS$6&\"-\"&$M24&\"_old\",Ammortamento_Finanziario!$H:$L,5,FALSE),VLOOKUP($M24,TT_Tabelle_Riferimento!$H$31:$I$50,2,FALSE))","v":30},{"$f":"+IFERROR(VLOOKUP(DT$6&\"-\"&$M24&\"_old\",Ammortamento_Finanziario!$H:$L,5,FALSE),VLOOKUP($M24,TT_Tabelle_Riferimento!$H$31:$I$50,2,FALSE))","v":30},{"$f":"+IFERROR(VLOOKUP(DU$6&\"-\"&$M24&\"_old\",Ammortamento_Finanziario!$H:$L,5,FALSE),VLOOKUP($M24,TT_Tabelle_Riferimento!$H$31:$I$50,2,FALSE))","v":30},{"$f":"+IFERROR(VLOOKUP(DV$6&\"-\"&$M24&\"_old\",Ammortamento_Finanziario!$H:$L,5,FALSE),VLOOKUP($M24,TT_Tabelle_Riferimento!$H$31:$I$50,2,FALSE))","v":30},{"$f":"+IFERROR(VLOOKUP(DW$6&\"-\"&$M24&\"_old\",Ammortamento_Finanziario!$H:$L,5,FALSE),VLOOKUP($M24,TT_Tabelle_Riferimento!$H$31:$I$50,2,FALSE))","v":30},{"$f":"+IFERROR(VLOOKUP(DX$6&\"-\"&$M24&\"_old\",Ammortamento_Finanziario!$H:$L,5,FALSE),VLOOKUP($M24,TT_Tabelle_Riferimento!$H$31:$I$50,2,FALSE))","v":30},{"$f":"+IFERROR(VLOOKUP(DY$6&\"-\"&$M24&\"_old\",Ammortamento_Finanziario!$H:$L,5,FALSE),VLOOKUP($M24,TT_Tabelle_Riferimento!$H$31:$I$50,2,FALSE))","v":30},{"$f":"+IFERROR(VLOOKUP(DZ$6&\"-\"&$M24&\"_old\",Ammortamento_Finanziario!$H:$L,5,FALSE),VLOOKUP($M24,TT_Tabelle_Riferimento!$H$31:$I$50,2,FALSE))","v":30},{"$f":"+IFERROR(VLOOKUP(EA$6&\"-\"&$M24&\"_old\",Ammortamento_Finanziario!$H:$L,5,FALSE),VLOOKUP($M24,TT_Tabelle_Riferimento!$H$31:$I$50,2,FALSE))","v":30},{"$f":"+IFERROR(VLOOKUP(EB$6&\"-\"&$M24&\"_old\",Ammortamento_Finanziario!$H:$L,5,FALSE),VLOOKUP($M24,TT_Tabelle_Riferimento!$H$31:$I$50,2,FALSE))","v":30},{"$f":"+IFERROR(VLOOKUP(EC$6&\"-\"&$M24&\"_old\",Ammortamento_Finanziario!$H:$L,5,FALSE),VLOOKUP($M24,TT_Tabelle_Riferimento!$H$31:$I$50,2,FALSE))","v":30},{"$f":"+IFERROR(VLOOKUP(ED$6&\"-\"&$M24&\"_old\",Ammortamento_Finanziario!$H:$L,5,FALSE),VLOOKUP($M24,TT_Tabelle_Riferimento!$H$31:$I$50,2,FALSE))","v":30},{"$f":"+IFERROR(VLOOKUP(EE$6&\"-\"&$M24&\"_old\",Ammortamento_Finanziario!$H:$L,5,FALSE),VLOOKUP($M24,TT_Tabelle_Riferimento!$H$31:$I$50,2,FALSE))","v":30},{"$f":"+IFERROR(VLOOKUP(EF$6&\"-\"&$M24&\"_old\",Ammortamento_Finanziario!$H:$L,5,FALSE),VLOOKUP($M24,TT_Tabelle_Riferimento!$H$31:$I$50,2,FALSE))","v":30},{"$f":"+IFERROR(VLOOKUP(EG$6&\"-\"&$M24&\"_old\",Ammortamento_Finanziario!$H:$L,5,FALSE),VLOOKUP($M24,TT_Tabelle_Riferimento!$H$31:$I$50,2,FALSE))","v":30},{"$f":"+IFERROR(VLOOKUP(EH$6&\"-\"&$M24&\"_old\",Ammortamento_Finanziario!$H:$L,5,FALSE),VLOOKUP($M24,TT_Tabelle_Riferimento!$H$31:$I$50,2,FALSE))","v":30},{"$f":"+IFERROR(VLOOKUP(EI$6&\"-\"&$M24&\"_old\",Ammortamento_Finanziario!$H:$L,5,FALSE),VLOOKUP($M24,TT_Tabelle_Riferimento!$H$31:$I$50,2,FALSE))","v":30},{"$f":"+IFERROR(VLOOKUP(EJ$6&\"-\"&$M24&\"_old\",Ammortamento_Finanziario!$H:$L,5,FALSE),VLOOKUP($M24,TT_Tabelle_Riferimento!$H$31:$I$50,2,FALSE))","v":30},{"$f":"+IFERROR(VLOOKUP(EK$6&\"-\"&$M24&\"_old\",Ammortamento_Finanziario!$H:$L,5,FALSE),VLOOKUP($M24,TT_Tabelle_Riferimento!$H$31:$I$50,2,FALSE))","v":30},{"$f":"+IFERROR(VLOOKUP(EL$6&\"-\"&$M24&\"_old\",Ammortamento_Finanziario!$H:$L,5,FALSE),VLOOKUP($M24,TT_Tabelle_Riferimento!$H$31:$I$50,2,FALSE))","v":30},{"$f":"+IFERROR(VLOOKUP(EM$6&\"-\"&$M24&\"_old\",Ammortamento_Finanziario!$H:$L,5,FALSE),VLOOKUP($M24,TT_Tabelle_Riferimento!$H$31:$I$50,2,FALSE))","v":30},{"$f":"+IFERROR(VLOOKUP(EN$6&\"-\"&$M24&\"_old\",Ammortamento_Finanziario!$H:$L,5,FALSE),VLOOKUP($M24,TT_Tabelle_Riferimento!$H$31:$I$50,2,FALSE))","v":30},{"$f":"+IFERROR(VLOOKUP(EO$6&\"-\"&$M24&\"_old\",Ammortamento_Finanziario!$H:$L,5,FALSE),VLOOKUP($M24,TT_Tabelle_Riferimento!$H$31:$I$50,2,FALSE))","v":30},{"$f":"+IFERROR(VLOOKUP(EP$6&\"-\"&$M24&\"_old\",Ammortamento_Finanziario!$H:$L,5,FALSE),VLOOKUP($M24,TT_Tabelle_Riferimento!$H$31:$I$50,2,FALSE))","v":30},{"$f":"+IFERROR(VLOOKUP(EQ$6&\"-\"&$M24&\"_old\",Ammortamento_Finanziario!$H:$L,5,FALSE),VLOOKUP($M24,TT_Tabelle_Riferimento!$H$31:$I$50,2,FALSE))","v":30},{"$f":"+IFERROR(VLOOKUP(ER$6&\"-\"&$M24&\"_old\",Ammortamento_Finanziario!$H:$L,5,FALSE),VLOOKUP($M24,TT_Tabelle_Riferimento!$H$31:$I$50,2,FALSE))","v":30},{"$f":"+IFERROR(VLOOKUP(ES$6&\"-\"&$M24&\"_old\",Ammortamento_Finanziario!$H:$L,5,FALSE),VLOOKUP($M24,TT_Tabelle_Riferimento!$H$31:$I$50,2,FALSE))","v":30},{"$f":"+IFERROR(VLOOKUP(ET$6&\"-\"&$M24&\"_old\",Ammortamento_Finanziario!$H:$L,5,FALSE),VLOOKUP($M24,TT_Tabelle_Riferimento!$H$31:$I$50,2,FALSE))","v":30},{"$f":"+IFERROR(VLOOKUP(EU$6&\"-\"&$M24&\"_old\",Ammortamento_Finanziario!$H:$L,5,FALSE),VLOOKUP($M24,TT_Tabelle_Riferimento!$H$31:$I$50,2,FALSE))","v":30},{"$f":"+IFERROR(VLOOKUP(EV$6&\"-\"&$M24&\"_old\",Ammortamento_Finanziario!$H:$L,5,FALSE),VLOOKUP($M24,TT_Tabelle_Riferimento!$H$31:$I$50,2,FALSE))","v":30},{"$f":"+IFERROR(VLOOKUP(EW$6&\"-\"&$M24&\"_old\",Ammortamento_Finanziario!$H:$L,5,FALSE),VLOOKUP($M24,TT_Tabelle_Riferimento!$H$31:$I$50,2,FALSE))","v":30},{"$f":"+IFERROR(VLOOKUP(EX$6&\"-\"&$M24&\"_old\",Ammortamento_Finanziario!$H:$L,5,FALSE),VLOOKUP($M24,TT_Tabelle_Riferimento!$H$31:$I$50,2,FALSE))","v":30},{"$f":"+IFERROR(VLOOKUP(EY$6&\"-\"&$M24&\"_old\",Ammortamento_Finanziario!$H:$L,5,FALSE),VLOOKUP($M24,TT_Tabelle_Riferimento!$H$31:$I$50,2,FALSE))","v":30},{"$f":"+IFERROR(VLOOKUP(EZ$6&\"-\"&$M24&\"_old\",Ammortamento_Finanziario!$H:$L,5,FALSE),VLOOKUP($M24,TT_Tabelle_Riferimento!$H$31:$I$50,2,FALSE))","v":30},{"$f":"+IFERROR(VLOOKUP(FA$6&\"-\"&$M24&\"_old\",Ammortamento_Finanziario!$H:$L,5,FALSE),VLOOKUP($M24,TT_Tabelle_Riferimento!$H$31:$I$50,2,FALSE))","v":30},{"$f":"+IFERROR(VLOOKUP(FB$6&\"-\"&$M24&\"_old\",Ammortamento_Finanziario!$H:$L,5,FALSE),VLOOKUP($M24,TT_Tabelle_Riferimento!$H$31:$I$50,2,FALSE))","v":30},{"$f":"+IFERROR(VLOOKUP(FC$6&\"-\"&$M24&\"_old\",Ammortamento_Finanziario!$H:$L,5,FALSE),VLOOKUP($M24,TT_Tabelle_Riferimento!$H$31:$I$50,2,FALSE))","v":30},{"$f":"+IFERROR(VLOOKUP(FD$6&\"-\"&$M24&\"_old\",Ammortamento_Finanziario!$H:$L,5,FALSE),VLOOKUP($M24,TT_Tabelle_Riferimento!$H$31:$I$50,2,FALSE))","v":30},{"$f":"+IFERROR(VLOOKUP(FE$6&\"-\"&$M24&\"_old\",Ammortamento_Finanziario!$H:$L,5,FALSE),VLOOKUP($M24,TT_Tabelle_Riferimento!$H$31:$I$50,2,FALSE))","v":30},{"$f":"+IFERROR(VLOOKUP(FF$6&\"-\"&$M24&\"_old\",Ammortamento_Finanziario!$H:$L,5,FALSE),VLOOKUP($M24,TT_Tabelle_Riferimento!$H$31:$I$50,2,FALSE))","v":30},{"$f":"+IFERROR(VLOOKUP(FG$6&\"-\"&$M24&\"_old\",Ammortamento_Finanziario!$H:$L,5,FALSE),VLOOKUP($M24,TT_Tabelle_Riferimento!$H$31:$I$50,2,FALSE))","v":30},{"$f":"+IFERROR(VLOOKUP(FH$6&\"-\"&$M24&\"_old\",Ammortamento_Finanziario!$H:$L,5,FALSE),VLOOKUP($M24,TT_Tabelle_Riferimento!$H$31:$I$50,2,FALSE))","v":30},{"$f":"+IFERROR(VLOOKUP(FI$6&\"-\"&$M24&\"_old\",Ammortamento_Finanziario!$H:$L,5,FALSE),VLOOKUP($M24,TT_Tabelle_Riferimento!$H$31:$I$50,2,FALSE))","v":30},{"$f":"+IFERROR(VLOOKUP(FJ$6&\"-\"&$M24&\"_old\",Ammortamento_Finanziario!$H:$L,5,FALSE),VLOOKUP($M24,TT_Tabelle_Riferimento!$H$31:$I$50,2,FALSE))","v":30},{"$f":"+IFERROR(VLOOKUP(FK$6&\"-\"&$M24&\"_old\",Ammortamento_Finanziario!$H:$L,5,FALSE),VLOOKUP($M24,TT_Tabelle_Riferimento!$H$31:$I$50,2,FALSE))","v":30},{"$f":"+IFERROR(VLOOKUP(FL$6&\"-\"&$M24&\"_old\",Ammortamento_Finanziario!$H:$L,5,FALSE),VLOOKUP($M24,TT_Tabelle_Riferimento!$H$31:$I$50,2,FALSE))","v":30},{"$f":"+IFERROR(VLOOKUP(FM$6&\"-\"&$M24&\"_old\",Ammortamento_Finanziario!$H:$L,5,FALSE),VLOOKUP($M24,TT_Tabelle_Riferimento!$H$31:$I$50,2,FALSE))","v":30},{"$f":"+IFERROR(VLOOKUP(FN$6&\"-\"&$M24&\"_old\",Ammortamento_Finanziario!$H:$L,5,FALSE),VLOOKUP($M24,TT_Tabelle_Riferimento!$H$31:$I$50,2,FALSE))","v":30},{"$f":"+IFERROR(VLOOKUP(FO$6&\"-\"&$M24&\"_old\",Ammortamento_Finanziario!$H:$L,5,FALSE),VLOOKUP($M24,TT_Tabelle_Riferimento!$H$31:$I$50,2,FALSE))","v":30},{"$f":"+IFERROR(VLOOKUP(FP$6&\"-\"&$M24&\"_old\",Ammortamento_Finanziario!$H:$L,5,FALSE),VLOOKUP($M24,TT_Tabelle_Riferimento!$H$31:$I$50,2,FALSE))","v":30},{"$f":"+IFERROR(VLOOKUP(FQ$6&\"-\"&$M24&\"_old\",Ammortamento_Finanziario!$H:$L,5,FALSE),VLOOKUP($M24,TT_Tabelle_Riferimento!$H$31:$I$50,2,FALSE))","v":30},{"$f":"+IFERROR(VLOOKUP(FR$6&\"-\"&$M24&\"_old\",Ammortamento_Finanziario!$H:$L,5,FALSE),VLOOKUP($M24,TT_Tabelle_Riferimento!$H$31:$I$50,2,FALSE))","v":30},{"$f":"+IFERROR(VLOOKUP(FS$6&\"-\"&$M24&\"_old\",Ammortamento_Finanziario!$H:$L,5,FALSE),VLOOKUP($M24,TT_Tabelle_Riferimento!$H$31:$I$50,2,FALSE))","v":30},{"$f":"+IFERROR(VLOOKUP(FT$6&\"-\"&$M24&\"_old\",Ammortamento_Finanziario!$H:$L,5,FALSE),VLOOKUP($M24,TT_Tabelle_Riferimento!$H$31:$I$50,2,FALSE))","v":30},{"$f":"+IFERROR(VLOOKUP(FU$6&\"-\"&$M24&\"_old\",Ammortamento_Finanziario!$H:$L,5,FALSE),VLOOKUP($M24,TT_Tabelle_Riferimento!$H$31:$I$50,2,FALSE))","v":30},{"$f":"+IFERROR(VLOOKUP(FV$6&\"-\"&$M24&\"_old\",Ammortamento_Finanziario!$H:$L,5,FALSE),VLOOKUP($M24,TT_Tabelle_Riferimento!$H$31:$I$50,2,FALSE))","v":30},{"$f":"+IFERROR(VLOOKUP(FW$6&\"-\"&$M24&\"_old\",Ammortamento_Finanziario!$H:$L,5,FALSE),VLOOKUP($M24,TT_Tabelle_Riferimento!$H$31:$I$50,2,FALSE))","v":30},{"$f":"+IFERROR(VLOOKUP(FX$6&\"-\"&$M24&\"_old\",Ammortamento_Finanziario!$H:$L,5,FALSE),VLOOKUP($M24,TT_Tabelle_Riferimento!$H$31:$I$50,2,FALSE))","v":30},{"$f":"+IFERROR(VLOOKUP(FY$6&\"-\"&$M24&\"_old\",Ammortamento_Finanziario!$H:$L,5,FALSE),VLOOKUP($M24,TT_Tabelle_Riferimento!$H$31:$I$50,2,FALSE))","v":30},{"$f":"+IFERROR(VLOOKUP(FZ$6&\"-\"&$M24&\"_old\",Ammortamento_Finanziario!$H:$L,5,FALSE),VLOOKUP($M24,TT_Tabelle_Riferimento!$H$31:$I$50,2,FALSE))","v":30},{"$f":"+IFERROR(VLOOKUP(GA$6&\"-\"&$M24&\"_old\",Ammortamento_Finanziario!$H:$L,5,FALSE),VLOOKUP($M24,TT_Tabelle_Riferimento!$H$31:$I$50,2,FALSE))","v":30},{"$f":"+IFERROR(VLOOKUP(GB$6&\"-\"&$M24&\"_old\",Ammortamento_Finanziario!$H:$L,5,FALSE),VLOOKUP($M24,TT_Tabelle_Riferimento!$H$31:$I$50,2,FALSE))","v":30},{"$f":"+IFERROR(VLOOKUP(GC$6&\"-\"&$M24&\"_old\",Ammortamento_Finanziario!$H:$L,5,FALSE),VLOOKUP($M24,TT_Tabelle_Riferimento!$H$31:$I$50,2,FALSE))","v":30},{"$f":"+IFERROR(VLOOKUP(GD$6&\"-\"&$M24&\"_old\",Ammortamento_Finanziario!$H:$L,5,FALSE),VLOOKUP($M24,TT_Tabelle_Riferimento!$H$31:$I$50,2,FALSE))","v":30},{"$f":"+IFERROR(VLOOKUP(GE$6&\"-\"&$M24&\"_old\",Ammortamento_Finanziario!$H:$L,5,FALSE),VLOOKUP($M24,TT_Tabelle_Riferimento!$H$31:$I$50,2,FALSE))","v":30},{"$f":"+IFERROR(VLOOKUP(GF$6&\"-\"&$M24&\"_old\",Ammortamento_Finanziario!$H:$L,5,FALSE),VLOOKUP($M24,TT_Tabelle_Riferimento!$H$31:$I$50,2,FALSE))","v":30},{"$f":"+IFERROR(VLOOKUP(GG$6&\"-\"&$M24&\"_old\",Ammortamento_Finanziario!$H:$L,5,FALSE),VLOOKUP($M24,TT_Tabelle_Riferimento!$H$31:$I$50,2,FALSE))","v":30},{"$f":"+IFERROR(VLOOKUP(GH$6&\"-\"&$M24&\"_old\",Ammortamento_Finanziario!$H:$L,5,FALSE),VLOOKUP($M24,TT_Tabelle_Riferimento!$H$31:$I$50,2,FALSE))","v":30},{"$f":"+IFERROR(VLOOKUP(GI$6&\"-\"&$M24&\"_old\",Ammortamento_Finanziario!$H:$L,5,FALSE),VLOOKUP($M24,TT_Tabelle_Riferimento!$H$31:$I$50,2,FALSE))","v":30},{"$f":"+IFERROR(VLOOKUP(GJ$6&\"-\"&$M24&\"_old\",Ammortamento_Finanziario!$H:$L,5,FALSE),VLOOKUP($M24,TT_Tabelle_Riferimento!$H$31:$I$50,2,FALSE))","v":30},{"$f":"+IFERROR(VLOOKUP(GK$6&\"-\"&$M24&\"_old\",Ammortamento_Finanziario!$H:$L,5,FALSE),VLOOKUP($M24,TT_Tabelle_Riferimento!$H$31:$I$50,2,FALSE))","v":30},{"$f":"+IFERROR(VLOOKUP(GL$6&\"-\"&$M24&\"_old\",Ammortamento_Finanziario!$H:$L,5,FALSE),VLOOKUP($M24,TT_Tabelle_Riferimento!$H$31:$I$50,2,FALSE))","v":30},{"$f":"+IFERROR(VLOOKUP(GM$6&\"-\"&$M24&\"_old\",Ammortamento_Finanziario!$H:$L,5,FALSE),VLOOKUP($M24,TT_Tabelle_Riferimento!$H$31:$I$50,2,FALSE))","v":30},{"$f":"+IFERROR(VLOOKUP(GN$6&\"-\"&$M24&\"_old\",Ammortamento_Finanziario!$H:$L,5,FALSE),VLOOKUP($M24,TT_Tabelle_Riferimento!$H$31:$I$50,2,FALSE))","v":30},{"$f":"+IFERROR(VLOOKUP(GO$6&\"-\"&$M24&\"_old\",Ammortamento_Finanziario!$H:$L,5,FALSE),VLOOKUP($M24,TT_Tabelle_Riferimento!$H$31:$I$50,2,FALSE))","v":30},{"$f":"+IFERROR(VLOOKUP(GP$6&\"-\"&$M24&\"_old\",Ammortamento_Finanziario!$H:$L,5,FALSE),VLOOKUP($M24,TT_Tabelle_Riferimento!$H$31:$I$50,2,FALSE))","v":30},{"$f":"+IFERROR(VLOOKUP(GQ$6&\"-\"&$M24&\"_old\",Ammortamento_Finanziario!$H:$L,5,FALSE),VLOOKUP($M24,TT_Tabelle_Riferimento!$H$31:$I$50,2,FALSE))","v":30},{"$f":"+IFERROR(VLOOKUP(GR$6&\"-\"&$M24&\"_old\",Ammortamento_Finanziario!$H:$L,5,FALSE),VLOOKUP($M24,TT_Tabelle_Riferimento!$H$31:$I$50,2,FALSE))","v":30},{"$f":"+IFERROR(VLOOKUP(GS$6&\"-\"&$M24&\"_old\",Ammortamento_Finanziario!$H:$L,5,FALSE),VLOOKUP($M24,TT_Tabelle_Riferimento!$H$31:$I$50,2,FALSE))","v":30},{"$f":"+IFERROR(VLOOKUP(GT$6&\"-\"&$M24&\"_old\",Ammortamento_Finanziario!$H:$L,5,FALSE),VLOOKUP($M24,TT_Tabelle_Riferimento!$H$31:$I$50,2,FALSE))","v":30},{"$f":"+IFERROR(VLOOKUP(GU$6&\"-\"&$M24&\"_old\",Ammortamento_Finanziario!$H:$L,5,FALSE),VLOOKUP($M24,TT_Tabelle_Riferimento!$H$31:$I$50,2,FALSE))","v":30},{"$f":"+IFERROR(VLOOKUP(GV$6&\"-\"&$M24&\"_old\",Ammortamento_Finanziario!$H:$L,5,FALSE),VLOOKUP($M24,TT_Tabelle_Riferimento!$H$31:$I$50,2,FALSE))","v":30},{"$f":"+IFERROR(VLOOKUP(GW$6&\"-\"&$M24&\"_old\",Ammortamento_Finanziario!$H:$L,5,FALSE),VLOOKUP($M24,TT_Tabelle_Riferimento!$H$31:$I$50,2,FALSE))","v":30},{"$f":"+IFERROR(VLOOKUP(GX$6&\"-\"&$M24&\"_old\",Ammortamento_Finanziario!$H:$L,5,FALSE),VLOOKUP($M24,TT_Tabelle_Riferimento!$H$31:$I$50,2,FALSE))","v":30},{"$f":"+IFERROR(VLOOKUP(GY$6&\"-\"&$M24&\"_old\",Ammortamento_Finanziario!$H:$L,5,FALSE),VLOOKUP($M24,TT_Tabelle_Riferimento!$H$31:$I$50,2,FALSE))","v":30},{"$f":"+IFERROR(VLOOKUP(GZ$6&\"-\"&$M24&\"_old\",Ammortamento_Finanziario!$H:$L,5,FALSE),VLOOKUP($M24,TT_Tabelle_Riferimento!$H$31:$I$50,2,FALSE))","v":30},{"$f":"+IFERROR(VLOOKUP(HA$6&\"-\"&$M24&\"_old\",Ammortamento_Finanziario!$H:$L,5,FALSE),VLOOKUP($M24,TT_Tabelle_Riferimento!$H$31:$I$50,2,FALSE))","v":30},{"$f":"+IFERROR(VLOOKUP(HB$6&\"-\"&$M24&\"_old\",Ammortamento_Finanziario!$H:$L,5,FALSE),VLOOKUP($M24,TT_Tabelle_Riferimento!$H$31:$I$50,2,FALSE))","v":30},{"$f":"+IFERROR(VLOOKUP(HC$6&\"-\"&$M24&\"_old\",Ammortamento_Finanziario!$H:$L,5,FALSE),VLOOKUP($M24,TT_Tabelle_Riferimento!$H$31:$I$50,2,FALSE))","v":30},{"$f":"+IFERROR(VLOOKUP(HD$6&\"-\"&$M24&\"_old\",Ammortamento_Finanziario!$H:$L,5,FALSE),VLOOKUP($M24,TT_Tabelle_Riferimento!$H$31:$I$50,2,FALSE))","v":30},{"$f":"+IFERROR(VLOOKUP(HE$6&\"-\"&$M24&\"_old\",Ammortamento_Finanziario!$H:$L,5,FALSE),VLOOKUP($M24,TT_Tabelle_Riferimento!$H$31:$I$50,2,FALSE))","v":30},{"$f":"+IFERROR(VLOOKUP(HF$6&\"-\"&$M24&\"_old\",Ammortamento_Finanziario!$H:$L,5,FALSE),VLOOKUP($M24,TT_Tabelle_Riferimento!$H$31:$I$50,2,FALSE))","v":30},{"$f":"+IFERROR(VLOOKUP(HG$6&\"-\"&$M24&\"_old\",Ammortamento_Finanziario!$H:$L,5,FALSE),VLOOKUP($M24,TT_Tabelle_Riferimento!$H$31:$I$50,2,FALSE))","v":30},{"$f":"+IFERROR(VLOOKUP(HH$6&\"-\"&$M24&\"_old\",Ammortamento_Finanziario!$H:$L,5,FALSE),VLOOKUP($M24,TT_Tabelle_Riferimento!$H$31:$I$50,2,FALSE))","v":30},{"$f":"+IFERROR(VLOOKUP(HI$6&\"-\"&$M24&\"_old\",Ammortamento_Finanziario!$H:$L,5,FALSE),VLOOKUP($M24,TT_Tabelle_Riferimento!$H$31:$I$50,2,FALSE))","v":30},{"$f":"+IFERROR(VLOOKUP(HJ$6&\"-\"&$M24&\"_old\",Ammortamento_Finanziario!$H:$L,5,FALSE),VLOOKUP($M24,TT_Tabelle_Riferimento!$H$31:$I$50,2,FALSE))","v":30},{"$f":"+IFERROR(VLOOKUP(HK$6&\"-\"&$M24&\"_old\",Ammortamento_Finanziario!$H:$L,5,FALSE),VLOOKUP($M24,TT_Tabelle_Riferimento!$H$31:$I$50,2,FALSE))","v":30},{"$f":"+IFERROR(VLOOKUP(HL$6&\"-\"&$M24&\"_old\",Ammortamento_Finanziario!$H:$L,5,FALSE),VLOOKUP($M24,TT_Tabelle_Riferimento!$H$31:$I$50,2,FALSE))","v":30},{"$f":"+IFERROR(VLOOKUP(HM$6&\"-\"&$M24&\"_old\",Ammortamento_Finanziario!$H:$L,5,FALSE),VLOOKUP($M24,TT_Tabelle_Riferimento!$H$31:$I$50,2,FALSE))","v":30},{"$f":"+IFERROR(VLOOKUP(HN$6&\"-\"&$M24&\"_old\",Ammortamento_Finanziario!$H:$L,5,FALSE),VLOOKUP($M24,TT_Tabelle_Riferimento!$H$31:$I$50,2,FALSE))","v":30},{"$f":"+IFERROR(VLOOKUP(HO$6&\"-\"&$M24&\"_old\",Ammortamento_Finanziario!$H:$L,5,FALSE),VLOOKUP($M24,TT_Tabelle_Riferimento!$H$31:$I$50,2,FALSE))","v":30},{"$f":"+IFERROR(VLOOKUP(HP$6&\"-\"&$M24&\"_old\",Ammortamento_Finanziario!$H:$L,5,FALSE),VLOOKUP($M24,TT_Tabelle_Riferimento!$H$31:$I$50,2,FALSE))","v":30},{"$f":"+IFERROR(VLOOKUP(HQ$6&\"-\"&$M24&\"_old\",Ammortamento_Finanziario!$H:$L,5,FALSE),VLOOKUP($M24,TT_Tabelle_Riferimento!$H$31:$I$50,2,FALSE))","v":30},{"$f":"+IFERROR(VLOOKUP(HR$6&\"-\"&$M24&\"_old\",Ammortamento_Finanziario!$H:$L,5,FALSE),VLOOKUP($M24,TT_Tabelle_Riferimento!$H$31:$I$50,2,FALSE))","v":30},{"$f":"+IFERROR(VLOOKUP(HS$6&\"-\"&$M24&\"_old\",Ammortamento_Finanziario!$H:$L,5,FALSE),VLOOKUP($M24,TT_Tabelle_Riferimento!$H$31:$I$50,2,FALSE))","v":30},{"$f":"+IFERROR(VLOOKUP(HT$6&\"-\"&$M24&\"_old\",Ammortamento_Finanziario!$H:$L,5,FALSE),VLOOKUP($M24,TT_Tabelle_Riferimento!$H$31:$I$50,2,FALSE))","v":30},{"$f":"+IFERROR(VLOOKUP(HU$6&\"-\"&$M24&\"_old\",Ammortamento_Finanziario!$H:$L,5,FALSE),VLOOKUP($M24,TT_Tabelle_Riferimento!$H$31:$I$50,2,FALSE))","v":30},{"$f":"+IFERROR(VLOOKUP(HV$6&\"-\"&$M24&\"_old\",Ammortamento_Finanziario!$H:$L,5,FALSE),VLOOKUP($M24,TT_Tabelle_Riferimento!$H$31:$I$50,2,FALSE))","v":30},{"$f":"+IFERROR(VLOOKUP(HW$6&\"-\"&$M24&\"_old\",Ammortamento_Finanziario!$H:$L,5,FALSE),VLOOKUP($M24,TT_Tabelle_Riferimento!$H$31:$I$50,2,FALSE))","v":30},{"$f":"+IFERROR(VLOOKUP(HX$6&\"-\"&$M24&\"_old\",Ammortamento_Finanziario!$H:$L,5,FALSE),VLOOKUP($M24,TT_Tabelle_Riferimento!$H$31:$I$50,2,FALSE))","v":30},{"$f":"+IFERROR(VLOOKUP(HY$6&\"-\"&$M24&\"_old\",Ammortamento_Finanziario!$H:$L,5,FALSE),VLOOKUP($M24,TT_Tabelle_Riferimento!$H$31:$I$50,2,FALSE))","v":30},{"$f":"+IFERROR(VLOOKUP(HZ$6&\"-\"&$M24&\"_old\",Ammortamento_Finanziario!$H:$L,5,FALSE),VLOOKUP($M24,TT_Tabelle_Riferimento!$H$31:$I$50,2,FALSE))","v":30},{"$f":"+IFERROR(VLOOKUP(IA$6&\"-\"&$M24&\"_old\",Ammortamento_Finanziario!$H:$L,5,FALSE),VLOOKUP($M24,TT_Tabelle_Riferimento!$H$31:$I$50,2,FALSE))","v":30},{"$f":"+IFERROR(VLOOKUP(IB$6&\"-\"&$M24&\"_old\",Ammortamento_Finanziario!$H:$L,5,FALSE),VLOOKUP($M24,TT_Tabelle_Riferimento!$H$31:$I$50,2,FALSE))","v":30},{"$f":"+IFERROR(VLOOKUP(IC$6&\"-\"&$M24&\"_old\",Ammortamento_Finanziario!$H:$L,5,FALSE),VLOOKUP($M24,TT_Tabelle_Riferimento!$H$31:$I$50,2,FALSE))","v":30},{"$f":"+IFERROR(VLOOKUP(ID$6&\"-\"&$M24&\"_old\",Ammortamento_Finanziario!$H:$L,5,FALSE),VLOOKUP($M24,TT_Tabelle_Riferimento!$H$31:$I$50,2,FALSE))","v":30},{"$f":"+IFERROR(VLOOKUP(IE$6&\"-\"&$M24&\"_old\",Ammortamento_Finanziario!$H:$L,5,FALSE),VLOOKUP($M24,TT_Tabelle_Riferimento!$H$31:$I$50,2,FALSE))","v":30},{"$f":"+IFERROR(VLOOKUP(IF$6&\"-\"&$M24&\"_old\",Ammortamento_Finanziario!$H:$L,5,FALSE),VLOOKUP($M24,TT_Tabelle_Riferimento!$H$31:$I$50,2,FALSE))","v":30},{"$f":"+IFERROR(VLOOKUP(IG$6&\"-\"&$M24&\"_old\",Ammortamento_Finanziario!$H:$L,5,FALSE),VLOOKUP($M24,TT_Tabelle_Riferimento!$H$31:$I$50,2,FALSE))","v":30},{"$f":"+IFERROR(VLOOKUP(IH$6&\"-\"&$M24&\"_old\",Ammortamento_Finanziario!$H:$L,5,FALSE),VLOOKUP($M24,TT_Tabelle_Riferimento!$H$31:$I$50,2,FALSE))","v":30},{"$f":"+IFERROR(VLOOKUP(II$6&\"-\"&$M24&\"_old\",Ammortamento_Finanziario!$H:$L,5,FALSE),VLOOKUP($M24,TT_Tabelle_Riferimento!$H$31:$I$50,2,FALSE))","v":30},{"$f":"+IFERROR(VLOOKUP(IJ$6&\"-\"&$M24&\"_old\",Ammortamento_Finanziario!$H:$L,5,FALSE),VLOOKUP($M24,TT_Tabelle_Riferimento!$H$31:$I$50,2,FALSE))","v":30},{"$f":"+IFERROR(VLOOKUP(IK$6&\"-\"&$M24&\"_old\",Ammortamento_Finanziario!$H:$L,5,FALSE),VLOOKUP($M24,TT_Tabelle_Riferimento!$H$31:$I$50,2,FALSE))","v":30},{"$f":"+IFERROR(VLOOKUP(IL$6&\"-\"&$M24&\"_old\",Ammortamento_Finanziario!$H:$L,5,FALSE),VLOOKUP($M24,TT_Tabelle_Riferimento!$H$31:$I$50,2,FALSE))","v":30},{"$f":"+IFERROR(VLOOKUP(IM$6&\"-\"&$M24&\"_old\",Ammortamento_Finanziario!$H:$L,5,FALSE),VLOOKUP($M24,TT_Tabelle_Riferimento!$H$31:$I$50,2,FALSE))","v":30},{"$f":"+IFERROR(VLOOKUP(IN$6&\"-\"&$M24&\"_old\",Ammortamento_Finanziario!$H:$L,5,FALSE),VLOOKUP($M24,TT_Tabelle_Riferimento!$H$31:$I$50,2,FALSE))","v":30},{"$f":"+IFERROR(VLOOKUP(IO$6&\"-\"&$M24&\"_old\",Ammortamento_Finanziario!$H:$L,5,FALSE),VLOOKUP($M24,TT_Tabelle_Riferimento!$H$31:$I$50,2,FALSE))","v":30},{"$f":"+IFERROR(VLOOKUP(IP$6&\"-\"&$M24&\"_old\",Ammortamento_Finanziario!$H:$L,5,FALSE),VLOOKUP($M24,TT_Tabelle_Riferimento!$H$31:$I$50,2,FALSE))","v":30},{"$f":"+IFERROR(VLOOKUP(IQ$6&\"-\"&$M24&\"_old\",Ammortamento_Finanziario!$H:$L,5,FALSE),VLOOKUP($M24,TT_Tabelle_Riferimento!$H$31:$I$50,2,FALSE))","v":30},{"$f":"+IFERROR(VLOOKUP(IR$6&\"-\"&$M24&\"_old\",Ammortamento_Finanziario!$H:$L,5,FALSE),VLOOKUP($M24,TT_Tabelle_Riferimento!$H$31:$I$50,2,FALSE))","v":30},{"$f":"+IFERROR(VLOOKUP(IS$6&\"-\"&$M24&\"_old\",Ammortamento_Finanziario!$H:$L,5,FALSE),VLOOKUP($M24,TT_Tabelle_Riferimento!$H$31:$I$50,2,FALSE))","v":30},{"$f":"+IFERROR(VLOOKUP(IT$6&\"-\"&$M24&\"_old\",Ammortamento_Finanziario!$H:$L,5,FALSE),VLOOKUP($M24,TT_Tabelle_Riferimento!$H$31:$I$50,2,FALSE))","v":30},{"$f":"+IFERROR(VLOOKUP(IU$6&\"-\"&$M24&\"_old\",Ammortamento_Finanziario!$H:$L,5,FALSE),VLOOKUP($M24,TT_Tabelle_Riferimento!$H$31:$I$50,2,FALSE))","v":30},{"$f":"+IFERROR(VLOOKUP(IV$6&\"-\"&$M24&\"_old\",Ammortamento_Finanziario!$H:$L,5,FALSE),VLOOKUP($M24,TT_Tabelle_Riferimento!$H$31:$I$50,2,FALSE))","v":30},{"$f":"+IFERROR(VLOOKUP(IW$6&\"-\"&$M24&\"_old\",Ammortamento_Finanziario!$H:$L,5,FALSE),VLOOKUP($M24,TT_Tabelle_Riferimento!$H$31:$I$50,2,FALSE))","v":30},{"$f":"+IFERROR(VLOOKUP(IX$6&\"-\"&$M24&\"_old\",Ammortamento_Finanziario!$H:$L,5,FALSE),VLOOKUP($M24,TT_Tabelle_Riferimento!$H$31:$I$50,2,FALSE))","v":30},{"$f":"+IFERROR(VLOOKUP(IY$6&\"-\"&$M24&\"_old\",Ammortamento_Finanziario!$H:$L,5,FALSE),VLOOKUP($M24,TT_Tabelle_Riferimento!$H$31:$I$50,2,FALSE))","v":30},{"$f":"+IFERROR(VLOOKUP(IZ$6&\"-\"&$M24&\"_old\",Ammortamento_Finanziario!$H:$L,5,FALSE),VLOOKUP($M24,TT_Tabelle_Riferimento!$H$31:$I$50,2,FALSE))","v":30},{"$f":"+IFERROR(VLOOKUP(JA$6&\"-\"&$M24&\"_old\",Ammortamento_Finanziario!$H:$L,5,FALSE),VLOOKUP($M24,TT_Tabelle_Riferimento!$H$31:$I$50,2,FALSE))","v":30},{"$f":"+IFERROR(VLOOKUP(JB$6&\"-\"&$M24&\"_old\",Ammortamento_Finanziario!$H:$L,5,FALSE),VLOOKUP($M24,TT_Tabelle_Riferimento!$H$31:$I$50,2,FALSE))","v":30},{"$f":"+IFERROR(VLOOKUP(JC$6&\"-\"&$M24&\"_old\",Ammortamento_Finanziario!$H:$L,5,FALSE),VLOOKUP($M24,TT_Tabelle_Riferimento!$H$31:$I$50,2,FALSE))","v":30},{"$f":"+IFERROR(VLOOKUP(JD$6&\"-\"&$M24&\"_old\",Ammortamento_Finanziario!$H:$L,5,FALSE),VLOOKUP($M24,TT_Tabelle_Riferimento!$H$31:$I$50,2,FALSE))","v":30},{"$f":"+IFERROR(VLOOKUP(JE$6&\"-\"&$M24&\"_old\",Ammortamento_Finanziario!$H:$L,5,FALSE),VLOOKUP($M24,TT_Tabelle_Riferimento!$H$31:$I$50,2,FALSE))","v":30},{"$f":"+IFERROR(VLOOKUP(JF$6&\"-\"&$M24&\"_old\",Ammortamento_Finanziario!$H:$L,5,FALSE),VLOOKUP($M24,TT_Tabelle_Riferimento!$H$31:$I$50,2,FALSE))","v":30},{"$f":"+IFERROR(VLOOKUP(JG$6&\"-\"&$M24&\"_old\",Ammortamento_Finanziario!$H:$L,5,FALSE),VLOOKUP($M24,TT_Tabelle_Riferimento!$H$31:$I$50,2,FALSE))","v":30},{"$f":"+IFERROR(VLOOKUP(JH$6&\"-\"&$M24&\"_old\",Ammortamento_Finanziario!$H:$L,5,FALSE),VLOOKUP($M24,TT_Tabelle_Riferimento!$H$31:$I$50,2,FALSE))","v":30},{"$f":"+IFERROR(VLOOKUP(JI$6&\"-\"&$M24&\"_old\",Ammortamento_Finanziario!$H:$L,5,FALSE),VLOOKUP($M24,TT_Tabelle_Riferimento!$H$31:$I$50,2,FALSE))","v":30},{"$f":"+IFERROR(VLOOKUP(JJ$6&\"-\"&$M24&\"_old\",Ammortamento_Finanziario!$H:$L,5,FALSE),VLOOKUP($M24,TT_Tabelle_Riferimento!$H$31:$I$50,2,FALSE))","v":30},{"$f":"+IFERROR(VLOOKUP(JK$6&\"-\"&$M24&\"_old\",Ammortamento_Finanziario!$H:$L,5,FALSE),VLOOKUP($M24,TT_Tabelle_Riferimento!$H$31:$I$50,2,FALSE))","v":30},{"$f":"+IFERROR(VLOOKUP(JL$6&\"-\"&$M24&\"_old\",Ammortamento_Finanziario!$H:$L,5,FALSE),VLOOKUP($M24,TT_Tabelle_Riferimento!$H$31:$I$50,2,FALSE))","v":30},{"$f":"+IFERROR(VLOOKUP(JM$6&\"-\"&$M24&\"_old\",Ammortamento_Finanziario!$H:$L,5,FALSE),VLOOKUP($M24,TT_Tabelle_Riferimento!$H$31:$I$50,2,FALSE))","v":30},{"$f":"+IFERROR(VLOOKUP(JN$6&\"-\"&$M24&\"_old\",Ammortamento_Finanziario!$H:$L,5,FALSE),VLOOKUP($M24,TT_Tabelle_Riferimento!$H$31:$I$50,2,FALSE))","v":30},{"$f":"+IFERROR(VLOOKUP(JO$6&\"-\"&$M24&\"_old\",Ammortamento_Finanziario!$H:$L,5,FALSE),VLOOKUP($M24,TT_Tabelle_Riferimento!$H$31:$I$50,2,FALSE))","v":30},{"$f":"+IFERROR(VLOOKUP(JP$6&\"-\"&$M24&\"_old\",Ammortamento_Finanziario!$H:$L,5,FALSE),VLOOKUP($M24,TT_Tabelle_Riferimento!$H$31:$I$50,2,FALSE))","v":30},{"$f":"+IFERROR(VLOOKUP(JQ$6&\"-\"&$M24&\"_old\",Ammortamento_Finanziario!$H:$L,5,FALSE),VLOOKUP($M24,TT_Tabelle_Riferimento!$H$31:$I$50,2,FALSE))","v":30},{"$f":"+IFERROR(VLOOKUP(JR$6&\"-\"&$M24&\"_old\",Ammortamento_Finanziario!$H:$L,5,FALSE),VLOOKUP($M24,TT_Tabelle_Riferimento!$H$31:$I$50,2,FALSE))","v":30},{"$f":"+IFERROR(VLOOKUP(JS$6&\"-\"&$M24&\"_old\",Ammortamento_Finanziario!$H:$L,5,FALSE),VLOOKUP($M24,TT_Tabelle_Riferimento!$H$31:$I$50,2,FALSE))","v":30},{"$f":"+IFERROR(VLOOKUP(JT$6&\"-\"&$M24&\"_old\",Ammortamento_Finanziario!$H:$L,5,FALSE),VLOOKUP($M24,TT_Tabelle_Riferimento!$H$31:$I$50,2,FALSE))","v":30},{"$f":"+IFERROR(VLOOKUP(JU$6&\"-\"&$M24&\"_old\",Ammortamento_Finanziario!$H:$L,5,FALSE),VLOOKUP($M24,TT_Tabelle_Riferimento!$H$31:$I$50,2,FALSE))","v":30},{"$f":"+IFERROR(VLOOKUP(JV$6&\"-\"&$M24&\"_old\",Ammortamento_Finanziario!$H:$L,5,FALSE),VLOOKUP($M24,TT_Tabelle_Riferimento!$H$31:$I$50,2,FALSE))","v":30},{"$f":"+IFERROR(VLOOKUP(JW$6&\"-\"&$M24&\"_old\",Ammortamento_Finanziario!$H:$L,5,FALSE),VLOOKUP($M24,TT_Tabelle_Riferimento!$H$31:$I$50,2,FALSE))","v":30},{"$f":"+IFERROR(VLOOKUP(JX$6&\"-\"&$M24&\"_old\",Ammortamento_Finanziario!$H:$L,5,FALSE),VLOOKUP($M24,TT_Tabelle_Riferimento!$H$31:$I$50,2,FALSE))","v":30},{"$f":"+IFERROR(VLOOKUP(JY$6&\"-\"&$M24&\"_old\",Ammortamento_Finanziario!$H:$L,5,FALSE),VLOOKUP($M24,TT_Tabelle_Riferimento!$H$31:$I$50,2,FALSE))","v":30},{"$f":"+IFERROR(VLOOKUP(JZ$6&\"-\"&$M24&\"_old\",Ammortamento_Finanziario!$H:$L,5,FALSE),VLOOKUP($M24,TT_Tabelle_Riferimento!$H$31:$I$50,2,FALSE))","v":30},{"$f":"+IFERROR(VLOOKUP(KA$6&\"-\"&$M24&\"_old\",Ammortamento_Finanziario!$H:$L,5,FALSE),VLOOKUP($M24,TT_Tabelle_Riferimento!$H$31:$I$50,2,FALSE))","v":30},{"$f":"+IFERROR(VLOOKUP(KB$6&\"-\"&$M24&\"_old\",Ammortamento_Finanziario!$H:$L,5,FALSE),VLOOKUP($M24,TT_Tabelle_Riferimento!$H$31:$I$50,2,FALSE))","v":30},{"$f":"+IFERROR(VLOOKUP(KC$6&\"-\"&$M24&\"_old\",Ammortamento_Finanziario!$H:$L,5,FALSE),VLOOKUP($M24,TT_Tabelle_Riferimento!$H$31:$I$50,2,FALSE))","v":30},{"$f":"+IFERROR(VLOOKUP(KD$6&\"-\"&$M24&\"_old\",Ammortamento_Finanziario!$H:$L,5,FALSE),VLOOKUP($M24,TT_Tabelle_Riferimento!$H$31:$I$50,2,FALSE))","v":30},{"$f":"+IFERROR(VLOOKUP(KE$6&\"-\"&$M24&\"_old\",Ammortamento_Finanziario!$H:$L,5,FALSE),VLOOKUP($M24,TT_Tabelle_Riferimento!$H$31:$I$50,2,FALSE))","v":30},{"$f":"+IFERROR(VLOOKUP(KF$6&\"-\"&$M24&\"_old\",Ammortamento_Finanziario!$H:$L,5,FALSE),VLOOKUP($M24,TT_Tabelle_Riferimento!$H$31:$I$50,2,FALSE))","v":30},{"$f":"+IFERROR(VLOOKUP(KG$6&\"-\"&$M24&\"_old\",Ammortamento_Finanziario!$H:$L,5,FALSE),VLOOKUP($M24,TT_Tabelle_Riferimento!$H$31:$I$50,2,FALSE))","v":30},{"$f":"+IFERROR(VLOOKUP(KH$6&\"-\"&$M24&\"_old\",Ammortamento_Finanziario!$H:$L,5,FALSE),VLOOKUP($M24,TT_Tabelle_Riferimento!$H$31:$I$50,2,FALSE))","v":30},{"$f":"+IFERROR(VLOOKUP(KI$6&\"-\"&$M24&\"_old\",Ammortamento_Finanziario!$H:$L,5,FALSE),VLOOKUP($M24,TT_Tabelle_Riferimento!$H$31:$I$50,2,FALSE))","v":30},{"$f":"+IFERROR(VLOOKUP(KJ$6&\"-\"&$M24&\"_old\",Ammortamento_Finanziario!$H:$L,5,FALSE),VLOOKUP($M24,TT_Tabelle_Riferimento!$H$31:$I$50,2,FALSE))","v":30},{"$f":"+IFERROR(VLOOKUP(KK$6&\"-\"&$M24&\"_old\",Ammortamento_Finanziario!$H:$L,5,FALSE),VLOOKUP($M24,TT_Tabelle_Riferimento!$H$31:$I$50,2,FALSE))","v":30},{"$f":"+IFERROR(VLOOKUP(KL$6&\"-\"&$M24&\"_old\",Ammortamento_Finanziario!$H:$L,5,FALSE),VLOOKUP($M24,TT_Tabelle_Riferimento!$H$31:$I$50,2,FALSE))","v":30},{"$f":"+IFERROR(VLOOKUP(KM$6&\"-\"&$M24&\"_old\",Ammortamento_Finanziario!$H:$L,5,FALSE),VLOOKUP($M24,TT_Tabelle_Riferimento!$H$31:$I$50,2,FALSE))","v":30},{"$f":"+IFERROR(VLOOKUP(KN$6&\"-\"&$M24&\"_old\",Ammortamento_Finanziario!$H:$L,5,FALSE),VLOOKUP($M24,TT_Tabelle_Riferimento!$H$31:$I$50,2,FALSE))","v":30},{"$f":"+IFERROR(VLOOKUP(KO$6&\"-\"&$M24&\"_old\",Ammortamento_Finanziario!$H:$L,5,FALSE),VLOOKUP($M24,TT_Tabelle_Riferimento!$H$31:$I$50,2,FALSE))","v":30},{"$f":"+IFERROR(VLOOKUP(KP$6&\"-\"&$M24&\"_old\",Ammortamento_Finanziario!$H:$L,5,FALSE),VLOOKUP($M24,TT_Tabelle_Riferimento!$H$31:$I$50,2,FALSE))","v":30},{"$f":"+IFERROR(VLOOKUP(KQ$6&\"-\"&$M24&\"_old\",Ammortamento_Finanziario!$H:$L,5,FALSE),VLOOKUP($M24,TT_Tabelle_Riferimento!$H$31:$I$50,2,FALSE))","v":30},{"$f":"+IFERROR(VLOOKUP(KR$6&\"-\"&$M24&\"_old\",Ammortamento_Finanziario!$H:$L,5,FALSE),VLOOKUP($M24,TT_Tabelle_Riferimento!$H$31:$I$50,2,FALSE))","v":30},{"$f":"+IFERROR(VLOOKUP(KS$6&\"-\"&$M24&\"_old\",Ammortamento_Finanziario!$H:$L,5,FALSE),VLOOKUP($M24,TT_Tabelle_Riferimento!$H$31:$I$50,2,FALSE))","v":30},{"$f":"+IFERROR(VLOOKUP(KT$6&\"-\"&$M24&\"_old\",Ammortamento_Finanziario!$H:$L,5,FALSE),VLOOKUP($M24,TT_Tabelle_Riferimento!$H$31:$I$50,2,FALSE))","v":30},{"$f":"+IFERROR(VLOOKUP(KU$6&\"-\"&$M24&\"_old\",Ammortamento_Finanziario!$H:$L,5,FALSE),VLOOKUP($M24,TT_Tabelle_Riferimento!$H$31:$I$50,2,FALSE))","v":30},{"$f":"+IFERROR(VLOOKUP(KV$6&\"-\"&$M24&\"_old\",Ammortamento_Finanziario!$H:$L,5,FALSE),VLOOKUP($M24,TT_Tabelle_Riferimento!$H$31:$I$50,2,FALSE))","v":30},{"$f":"+IFERROR(VLOOKUP(KW$6&\"-\"&$M24&\"_old\",Ammortamento_Finanziario!$H:$L,5,FALSE),VLOOKUP($M24,TT_Tabelle_Riferimento!$H$31:$I$50,2,FALSE))","v":30},{"$f":"+IFERROR(VLOOKUP(KX$6&\"-\"&$M24&\"_old\",Ammortamento_Finanziario!$H:$L,5,FALSE),VLOOKUP($M24,TT_Tabelle_Riferimento!$H$31:$I$50,2,FALSE))","v":30},{"$f":"+IFERROR(VLOOKUP(KY$6&\"-\"&$M24&\"_old\",Ammortamento_Finanziario!$H:$L,5,FALSE),VLOOKUP($M24,TT_Tabelle_Riferimento!$H$31:$I$50,2,FALSE))","v":30},{"$f":"+IFERROR(VLOOKUP(KZ$6&\"-\"&$M24&\"_old\",Ammortamento_Finanziario!$H:$L,5,FALSE),VLOOKUP($M24,TT_Tabelle_Riferimento!$H$31:$I$50,2,FALSE))","v":30},{"$f":"+IFERROR(VLOOKUP(LA$6&\"-\"&$M24&\"_old\",Ammortamento_Finanziario!$H:$L,5,FALSE),VLOOKUP($M24,TT_Tabelle_Riferimento!$H$31:$I$50,2,FALSE))","v":30},{"$f":"+IFERROR(VLOOKUP(LB$6&\"-\"&$M24&\"_old\",Ammortamento_Finanziario!$H:$L,5,FALSE),VLOOKUP($M24,TT_Tabelle_Riferimento!$H$31:$I$50,2,FALSE))","v":30},{"$f":"+IFERROR(VLOOKUP(LC$6&\"-\"&$M24&\"_old\",Ammortamento_Finanziario!$H:$L,5,FALSE),VLOOKUP($M24,TT_Tabelle_Riferimento!$H$31:$I$50,2,FALSE))","v":30},{"$f":"+IFERROR(VLOOKUP(LD$6&\"-\"&$M24&\"_old\",Ammortamento_Finanziario!$H:$L,5,FALSE),VLOOKUP($M24,TT_Tabelle_Riferimento!$H$31:$I$50,2,FALSE))","v":30},{"$f":"+IFERROR(VLOOKUP(LE$6&\"-\"&$M24&\"_old\",Ammortamento_Finanziario!$H:$L,5,FALSE),VLOOKUP($M24,TT_Tabelle_Riferimento!$H$31:$I$50,2,FALSE))","v":30},{"$f":"+IFERROR(VLOOKUP(LF$6&\"-\"&$M24&\"_old\",Ammortamento_Finanziario!$H:$L,5,FALSE),VLOOKUP($M24,TT_Tabelle_Riferimento!$H$31:$I$50,2,FALSE))","v":30},{"$f":"+IFERROR(VLOOKUP(LG$6&\"-\"&$M24&\"_old\",Ammortamento_Finanziario!$H:$L,5,FALSE),VLOOKUP($M24,TT_Tabelle_Riferimento!$H$31:$I$50,2,FALSE))","v":30},{"$f":"+IFERROR(VLOOKUP(LH$6&\"-\"&$M24&\"_old\",Ammortamento_Finanziario!$H:$L,5,FALSE),VLOOKUP($M24,TT_Tabelle_Riferimento!$H$31:$I$50,2,FALSE))","v":30},{"$f":"+IFERROR(VLOOKUP(LI$6&\"-\"&$M24&\"_old\",Ammortamento_Finanziario!$H:$L,5,FALSE),VLOOKUP($M24,TT_Tabelle_Riferimento!$H$31:$I$50,2,FALSE))","v":30},{"$f":"+IFERROR(VLOOKUP(LJ$6&\"-\"&$M24&\"_old\",Ammortamento_Finanziario!$H:$L,5,FALSE),VLOOKUP($M24,TT_Tabelle_Riferimento!$H$31:$I$50,2,FALSE))","v":30},{"$f":"+IFERROR(VLOOKUP(LK$6&\"-\"&$M24&\"_old\",Ammortamento_Finanziario!$H:$L,5,FALSE),VLOOKUP($M24,TT_Tabelle_Riferimento!$H$31:$I$50,2,FALSE))","v":30},{"$f":"+IFERROR(VLOOKUP(LL$6&\"-\"&$M24&\"_old\",Ammortamento_Finanziario!$H:$L,5,FALSE),VLOOKUP($M24,TT_Tabelle_Riferimento!$H$31:$I$50,2,FALSE))","v":30},{"$f":"+IFERROR(VLOOKUP(LM$6&\"-\"&$M24&\"_old\",Ammortamento_Finanziario!$H:$L,5,FALSE),VLOOKUP($M24,TT_Tabelle_Riferimento!$H$31:$I$50,2,FALSE))","v":30},{"$f":"+IFERROR(VLOOKUP(LN$6&\"-\"&$M24&\"_old\",Ammortamento_Finanziario!$H:$L,5,FALSE),VLOOKUP($M24,TT_Tabelle_Riferimento!$H$31:$I$50,2,FALSE))","v":30},{"$f":"+IFERROR(VLOOKUP(LO$6&\"-\"&$M24&\"_old\",Ammortamento_Finanziario!$H:$L,5,FALSE),VLOOKUP($M24,TT_Tabelle_Riferimento!$H$31:$I$50,2,FALSE))","v":30},{"$f":"+IFERROR(VLOOKUP(LP$6&\"-\"&$M24&\"_old\",Ammortamento_Finanziario!$H:$L,5,FALSE),VLOOKUP($M24,TT_Tabelle_Riferimento!$H$31:$I$50,2,FALSE))","v":30},{"$f":"+IFERROR(VLOOKUP(LQ$6&\"-\"&$M24&\"_old\",Ammortamento_Finanziario!$H:$L,5,FALSE),VLOOKUP($M24,TT_Tabelle_Riferimento!$H$31:$I$50,2,FALSE))","v":30},{"$f":"+IFERROR(VLOOKUP(LR$6&\"-\"&$M24&\"_old\",Ammortamento_Finanziario!$H:$L,5,FALSE),VLOOKUP($M24,TT_Tabelle_Riferimento!$H$31:$I$50,2,FALSE))","v":30},{"$f":"+IFERROR(VLOOKUP(LS$6&\"-\"&$M24&\"_old\",Ammortamento_Finanziario!$H:$L,5,FALSE),VLOOKUP($M24,TT_Tabelle_Riferimento!$H$31:$I$50,2,FALSE))","v":30},{"$f":"+IFERROR(VLOOKUP(LT$6&\"-\"&$M24&\"_old\",Ammortamento_Finanziario!$H:$L,5,FALSE),VLOOKUP($M24,TT_Tabelle_Riferimento!$H$31:$I$50,2,FALSE))","v":30},{"$f":"+IFERROR(VLOOKUP(LU$6&\"-\"&$M24&\"_old\",Ammortamento_Finanziario!$H:$L,5,FALSE),VLOOKUP($M24,TT_Tabelle_Riferimento!$H$31:$I$50,2,FALSE))","v":30},{"$f":"+IFERROR(VLOOKUP(LV$6&\"-\"&$M24&\"_old\",Ammortamento_Finanziario!$H:$L,5,FALSE),VLOOKUP($M24,TT_Tabelle_Riferimento!$H$31:$I$50,2,FALSE))","v":30},{"$f":"+IFERROR(VLOOKUP(LW$6&\"-\"&$M24&\"_old\",Ammortamento_Finanziario!$H:$L,5,FALSE),VLOOKUP($M24,TT_Tabelle_Riferimento!$H$31:$I$50,2,FALSE))","v":30},{"$f":"+IFERROR(VLOOKUP(LX$6&\"-\"&$M24&\"_old\",Ammortamento_Finanziario!$H:$L,5,FALSE),VLOOKUP($M24,TT_Tabelle_Riferimento!$H$31:$I$50,2,FALSE))","v":30},{"$f":"+IFERROR(VLOOKUP(LY$6&\"-\"&$M24&\"_old\",Ammortamento_Finanziario!$H:$L,5,FALSE),VLOOKUP($M24,TT_Tabelle_Riferimento!$H$31:$I$50,2,FALSE))","v":30},{"$f":"+IFERROR(VLOOKUP(LZ$6&\"-\"&$M24&\"_old\",Ammortamento_Finanziario!$H:$L,5,FALSE),VLOOKUP($M24,TT_Tabelle_Riferimento!$H$31:$I$50,2,FALSE))","v":30},{"$f":"+IFERROR(VLOOKUP(MA$6&\"-\"&$M24&\"_old\",Ammortamento_Finanziario!$H:$L,5,FALSE),VLOOKUP($M24,TT_Tabelle_Riferimento!$H$31:$I$50,2,FALSE))","v":30},{"$f":"+IFERROR(VLOOKUP(MB$6&\"-\"&$M24&\"_old\",Ammortamento_Finanziario!$H:$L,5,FALSE),VLOOKUP($M24,TT_Tabelle_Riferimento!$H$31:$I$50,2,FALSE))","v":30},{"$f":"+IFERROR(VLOOKUP(MC$6&\"-\"&$M24&\"_old\",Ammortamento_Finanziario!$H:$L,5,FALSE),VLOOKUP($M24,TT_Tabelle_Riferimento!$H$31:$I$50,2,FALSE))","v":30},{"$f":"+IFERROR(VLOOKUP(MD$6&\"-\"&$M24&\"_old\",Ammortamento_Finanziario!$H:$L,5,FALSE),VLOOKUP($M24,TT_Tabelle_Riferimento!$H$31:$I$50,2,FALSE))","v":30},{"$f":"+IFERROR(VLOOKUP(ME$6&\"-\"&$M24&\"_old\",Ammortamento_Finanziario!$H:$L,5,FALSE),VLOOKUP($M24,TT_Tabelle_Riferimento!$H$31:$I$50,2,FALSE))","v":30},{"$f":"+IFERROR(VLOOKUP(MF$6&\"-\"&$M24&\"_old\",Ammortamento_Finanziario!$H:$L,5,FALSE),VLOOKUP($M24,TT_Tabelle_Riferimento!$H$31:$I$50,2,FALSE))","v":30},{"$f":"+IFERROR(VLOOKUP(MG$6&\"-\"&$M24&\"_old\",Ammortamento_Finanziario!$H:$L,5,FALSE),VLOOKUP($M24,TT_Tabelle_Riferimento!$H$31:$I$50,2,FALSE))","v":30},{"$f":"+IFERROR(VLOOKUP(MH$6&\"-\"&$M24&\"_old\",Ammortamento_Finanziario!$H:$L,5,FALSE),VLOOKUP($M24,TT_Tabelle_Riferimento!$H$31:$I$50,2,FALSE))","v":30},{"$f":"+IFERROR(VLOOKUP(MI$6&\"-\"&$M24&\"_old\",Ammortamento_Finanziario!$H:$L,5,FALSE),VLOOKUP($M24,TT_Tabelle_Riferimento!$H$31:$I$50,2,FALSE))","v":30},{"$f":"+IFERROR(VLOOKUP(MJ$6&\"-\"&$M24&\"_old\",Ammortamento_Finanziario!$H:$L,5,FALSE),VLOOKUP($M24,TT_Tabelle_Riferimento!$H$31:$I$50,2,FALSE))","v":30},{"$f":"+IFERROR(VLOOKUP(MK$6&\"-\"&$M24&\"_old\",Ammortamento_Finanziario!$H:$L,5,FALSE),VLOOKUP($M24,TT_Tabelle_Riferimento!$H$31:$I$50,2,FALSE))","v":30},{"$f":"+IFERROR(VLOOKUP(ML$6&\"-\"&$M24&\"_old\",Ammortamento_Finanziario!$H:$L,5,FALSE),VLOOKUP($M24,TT_Tabelle_Riferimento!$H$31:$I$50,2,FALSE))","v":30},{"$f":"+IFERROR(VLOOKUP(MM$6&\"-\"&$M24&\"_old\",Ammortamento_Finanziario!$H:$L,5,FALSE),VLOOKUP($M24,TT_Tabelle_Riferimento!$H$31:$I$50,2,FALSE))","v":30},{"$f":"+IFERROR(VLOOKUP(MN$6&\"-\"&$M24&\"_old\",Ammortamento_Finanziario!$H:$L,5,FALSE),VLOOKUP($M24,TT_Tabelle_Riferimento!$H$31:$I$50,2,FALSE))","v":30},{"$f":"+IFERROR(VLOOKUP(MO$6&\"-\"&$M24&\"_old\",Ammortamento_Finanziario!$H:$L,5,FALSE),VLOOKUP($M24,TT_Tabelle_Riferimento!$H$31:$I$50,2,FALSE))","v":30},{"$f":"+IFERROR(VLOOKUP(MP$6&\"-\"&$M24&\"_old\",Ammortamento_Finanziario!$H:$L,5,FALSE),VLOOKUP($M24,TT_Tabelle_Riferimento!$H$31:$I$50,2,FALSE))","v":30},{"$f":"+IFERROR(VLOOKUP(MQ$6&\"-\"&$M24&\"_old\",Ammortamento_Finanziario!$H:$L,5,FALSE),VLOOKUP($M24,TT_Tabelle_Riferimento!$H$31:$I$50,2,FALSE))","v":30},{"$f":"+IFERROR(VLOOKUP(MR$6&\"-\"&$M24&\"_old\",Ammortamento_Finanziario!$H:$L,5,FALSE),VLOOKUP($M24,TT_Tabelle_Riferimento!$H$31:$I$50,2,FALSE))","v":30},{"$f":"+IFERROR(VLOOKUP(MS$6&\"-\"&$M24&\"_old\",Ammortamento_Finanziario!$H:$L,5,FALSE),VLOOKUP($M24,TT_Tabelle_Riferimento!$H$31:$I$50,2,FALSE))","v":30},{"$f":"+IFERROR(VLOOKUP(MT$6&\"-\"&$M24&\"_old\",Ammortamento_Finanziario!$H:$L,5,FALSE),VLOOKUP($M24,TT_Tabelle_Riferimento!$H$31:$I$50,2,FALSE))","v":30},{"$f":"+IFERROR(VLOOKUP(MU$6&\"-\"&$M24&\"_old\",Ammortamento_Finanziario!$H:$L,5,FALSE),VLOOKUP($M24,TT_Tabelle_Riferimento!$H$31:$I$50,2,FALSE))","v":30},{"$f":"+IFERROR(VLOOKUP(MV$6&\"-\"&$M24&\"_old\",Ammortamento_Finanziario!$H:$L,5,FALSE),VLOOKUP($M24,TT_Tabelle_Riferimento!$H$31:$I$50,2,FALSE))","v":30},{"$f":"+IFERROR(VLOOKUP(MW$6&\"-\"&$M24&\"_old\",Ammortamento_Finanziario!$H:$L,5,FALSE),VLOOKUP($M24,TT_Tabelle_Riferimento!$H$31:$I$50,2,FALSE))","v":30},{"$f":"+IFERROR(VLOOKUP(MX$6&\"-\"&$M24&\"_old\",Ammortamento_Finanziario!$H:$L,5,FALSE),VLOOKUP($M24,TT_Tabelle_Riferimento!$H$31:$I$50,2,FALSE))","v":30},{"$f":"+IFERROR(VLOOKUP(MY$6&\"-\"&$M24&\"_old\",Ammortamento_Finanziario!$H:$L,5,FALSE),VLOOKUP($M24,TT_Tabelle_Riferimento!$H$31:$I$50,2,FALSE))","v":30},{"$f":"+IFERROR(VLOOKUP(MZ$6&\"-\"&$M24&\"_old\",Ammortamento_Finanziario!$H:$L,5,FALSE),VLOOKUP($M24,TT_Tabelle_Riferimento!$H$31:$I$50,2,FALSE))","v":30},{"$f":"+IFERROR(VLOOKUP(NA$6&\"-\"&$M24&\"_old\",Ammortamento_Finanziario!$H:$L,5,FALSE),VLOOKUP($M24,TT_Tabelle_Riferimento!$H$31:$I$50,2,FALSE))","v":30},{"$f":"+IFERROR(VLOOKUP(NB$6&\"-\"&$M24&\"_old\",Ammortamento_Finanziario!$H:$L,5,FALSE),VLOOKUP($M24,TT_Tabelle_Riferimento!$H$31:$I$50,2,FALSE))","v":30},{"$f":"+IFERROR(VLOOKUP(NC$6&\"-\"&$M24&\"_old\",Ammortamento_Finanziario!$H:$L,5,FALSE),VLOOKUP($M24,TT_Tabelle_Riferimento!$H$31:$I$50,2,FALSE))","v":30},{"$f":"+IFERROR(VLOOKUP(ND$6&\"-\"&$M24&\"_old\",Ammortamento_Finanziario!$H:$L,5,FALSE),VLOOKUP($M24,TT_Tabelle_Riferimento!$H$31:$I$50,2,FALSE))","v":30},{"$f":"+IFERROR(VLOOKUP(NE$6&\"-\"&$M24&\"_old\",Ammortamento_Finanziario!$H:$L,5,FALSE),VLOOKUP($M24,TT_Tabelle_Riferimento!$H$31:$I$50,2,FALSE))","v":30},{"$f":"+IFERROR(VLOOKUP(NF$6&\"-\"&$M24&\"_old\",Ammortamento_Finanziario!$H:$L,5,FALSE),VLOOKUP($M24,TT_Tabelle_Riferimento!$H$31:$I$50,2,FALSE))","v":30},{"$f":"+IFERROR(VLOOKUP(NG$6&\"-\"&$M24&\"_old\",Ammortamento_Finanziario!$H:$L,5,FALSE),VLOOKUP($M24,TT_Tabelle_Riferimento!$H$31:$I$50,2,FALSE))","v":30},{"$f":"+IFERROR(VLOOKUP(NH$6&\"-\"&$M24&\"_old\",Ammortamento_Finanziario!$H:$L,5,FALSE),VLOOKUP($M24,TT_Tabelle_Riferimento!$H$31:$I$50,2,FALSE))","v":30},{"$f":"+IFERROR(VLOOKUP(NI$6&\"-\"&$M24&\"_old\",Ammortamento_Finanziario!$H:$L,5,FALSE),VLOOKUP($M24,TT_Tabelle_Riferimento!$H$31:$I$50,2,FALSE))","v":30},{"$f":"+IFERROR(VLOOKUP(NJ$6&\"-\"&$M24&\"_old\",Ammortamento_Finanziario!$H:$L,5,FALSE),VLOOKUP($M24,TT_Tabelle_Riferimento!$H$31:$I$50,2,FALSE))","v":30},{"$f":"+IFERROR(VLOOKUP(NK$6&\"-\"&$M24&\"_old\",Ammortamento_Finanziario!$H:$L,5,FALSE),VLOOKUP($M24,TT_Tabelle_Riferimento!$H$31:$I$50,2,FALSE))","v":30},{"$f":"+IFERROR(VLOOKUP(NL$6&\"-\"&$M24&\"_old\",Ammortamento_Finanziario!$H:$L,5,FALSE),VLOOKUP($M24,TT_Tabelle_Riferimento!$H$31:$I$50,2,FALSE))","v":30},{"$f":"+IFERROR(VLOOKUP(NM$6&\"-\"&$M24&\"_old\",Ammortamento_Finanziario!$H:$L,5,FALSE),VLOOKUP($M24,TT_Tabelle_Riferimento!$H$31:$I$50,2,FALSE))","v":30},{"$f":"+IFERROR(VLOOKUP(NN$6&\"-\"&$M24&\"_old\",Ammortamento_Finanziario!$H:$L,5,FALSE),VLOOKUP($M24,TT_Tabelle_Riferimento!$H$31:$I$50,2,FALSE))","v":30},{"$f":"+IFERROR(VLOOKUP(NO$6&\"-\"&$M24&\"_old\",Ammortamento_Finanziario!$H:$L,5,FALSE),VLOOKUP($M24,TT_Tabelle_Riferimento!$H$31:$I$50,2,FALSE))","v":30},{"$f":"+IFERROR(VLOOKUP(NP$6&\"-\"&$M24&\"_old\",Ammortamento_Finanziario!$H:$L,5,FALSE),VLOOKUP($M24,TT_Tabelle_Riferimento!$H$31:$I$50,2,FALSE))","v":30},{"$f":"+IFERROR(VLOOKUP(NQ$6&\"-\"&$M24&\"_old\",Ammortamento_Finanziario!$H:$L,5,FALSE),VLOOKUP($M24,TT_Tabelle_Riferimento!$H$31:$I$50,2,FALSE))","v":30},{"$f":"+IFERROR(VLOOKUP(NR$6&\"-\"&$M24&\"_old\",Ammortamento_Finanziario!$H:$L,5,FALSE),VLOOKUP($M24,TT_Tabelle_Riferimento!$H$31:$I$50,2,FALSE))","v":30},{"$f":"+IFERROR(VLOOKUP(NS$6&\"-\"&$M24&\"_old\",Ammortamento_Finanziario!$H:$L,5,FALSE),VLOOKUP($M24,TT_Tabelle_Riferimento!$H$31:$I$50,2,FALSE))","v":30},{"$f":"+IFERROR(VLOOKUP(NT$6&\"-\"&$M24&\"_old\",Ammortamento_Finanziario!$H:$L,5,FALSE),VLOOKUP($M24,TT_Tabelle_Riferimento!$H$31:$I$50,2,FALSE))","v":30},{"$f":"+IFERROR(VLOOKUP(NU$6&\"-\"&$M24&\"_old\",Ammortamento_Finanziario!$H:$L,5,FALSE),VLOOKUP($M24,TT_Tabelle_Riferimento!$H$31:$I$50,2,FALSE))","v":30},{"$f":"+IFERROR(VLOOKUP(NV$6&\"-\"&$M24&\"_old\",Ammortamento_Finanziario!$H:$L,5,FALSE),VLOOKUP($M24,TT_Tabelle_Riferimento!$H$31:$I$50,2,FALSE))","v":30},{"$f":"+IFERROR(VLOOKUP(NW$6&\"-\"&$M24&\"_old\",Ammortamento_Finanziario!$H:$L,5,FALSE),VLOOKUP($M24,TT_Tabelle_Riferimento!$H$31:$I$50,2,FALSE))","v":30},{"$f":"+IFERROR(VLOOKUP(NX$6&\"-\"&$M24&\"_old\",Ammortamento_Finanziario!$H:$L,5,FALSE),VLOOKUP($M24,TT_Tabelle_Riferimento!$H$31:$I$50,2,FALSE))","v":30},{"$f":"+IFERROR(VLOOKUP(NY$6&\"-\"&$M24&\"_old\",Ammortamento_Finanziario!$H:$L,5,FALSE),VLOOKUP($M24,TT_Tabelle_Riferimento!$H$31:$I$50,2,FALSE))","v":30},{"$f":"+IFERROR(VLOOKUP(NZ$6&\"-\"&$M24&\"_old\",Ammortamento_Finanziario!$H:$L,5,FALSE),VLOOKUP($M24,TT_Tabelle_Riferimento!$H$31:$I$50,2,FALSE))","v":30},{"$f":"+IFERROR(VLOOKUP(OA$6&\"-\"&$M24&\"_old\",Ammortamento_Finanziario!$H:$L,5,FALSE),VLOOKUP($M24,TT_Tabelle_Riferimento!$H$31:$I$50,2,FALSE))","v":30},{"$f":"+IFERROR(VLOOKUP(OB$6&\"-\"&$M24&\"_old\",Ammortamento_Finanziario!$H:$L,5,FALSE),VLOOKUP($M24,TT_Tabelle_Riferimento!$H$31:$I$50,2,FALSE))","v":30},{"$f":"+IFERROR(VLOOKUP(OC$6&\"-\"&$M24&\"_old\",Ammortamento_Finanziario!$H:$L,5,FALSE),VLOOKUP($M24,TT_Tabelle_Riferimento!$H$31:$I$50,2,FALSE))","v":30},{"$f":"+IFERROR(VLOOKUP(OD$6&\"-\"&$M24&\"_old\",Ammortamento_Finanziario!$H:$L,5,FALSE),VLOOKUP($M24,TT_Tabelle_Riferimento!$H$31:$I$50,2,FALSE))","v":30},{"$f":"+IFERROR(VLOOKUP(OE$6&\"-\"&$M24&\"_old\",Ammortamento_Finanziario!$H:$L,5,FALSE),VLOOKUP($M24,TT_Tabelle_Riferimento!$H$31:$I$50,2,FALSE))","v":30},{"$f":"+IFERROR(VLOOKUP(OF$6&\"-\"&$M24&\"_old\",Ammortamento_Finanziario!$H:$L,5,FALSE),VLOOKUP($M24,TT_Tabelle_Riferimento!$H$31:$I$50,2,FALSE))","v":30},{"$f":"+IFERROR(VLOOKUP(OG$6&\"-\"&$M24&\"_old\",Ammortamento_Finanziario!$H:$L,5,FALSE),VLOOKUP($M24,TT_Tabelle_Riferimento!$H$31:$I$50,2,FALSE))","v":30},{"$f":"+IFERROR(VLOOKUP(OH$6&\"-\"&$M24&\"_old\",Ammortamento_Finanziario!$H:$L,5,FALSE),VLOOKUP($M24,TT_Tabelle_Riferimento!$H$31:$I$50,2,FALSE))","v":30},{"$f":"+IFERROR(VLOOKUP(OI$6&\"-\"&$M24&\"_old\",Ammortamento_Finanziario!$H:$L,5,FALSE),VLOOKUP($M24,TT_Tabelle_Riferimento!$H$31:$I$50,2,FALSE))","v":30},{"$f":"+IFERROR(VLOOKUP(OJ$6&\"-\"&$M24&\"_old\",Ammortamento_Finanziario!$H:$L,5,FALSE),VLOOKUP($M24,TT_Tabelle_Riferimento!$H$31:$I$50,2,FALSE))","v":30},{"$f":"+IFERROR(VLOOKUP(OK$6&\"-\"&$M24&\"_old\",Ammortamento_Finanziario!$H:$L,5,FALSE),VLOOKUP($M24,TT_Tabelle_Riferimento!$H$31:$I$50,2,FALSE))","v":30},{"$f":"+IFERROR(VLOOKUP(OL$6&\"-\"&$M24&\"_old\",Ammortamento_Finanziario!$H:$L,5,FALSE),VLOOKUP($M24,TT_Tabelle_Riferimento!$H$31:$I$50,2,FALSE))","v":30},{"$f":"+IFERROR(VLOOKUP(OM$6&\"-\"&$M24&\"_old\",Ammortamento_Finanziario!$H:$L,5,FALSE),VLOOKUP($M24,TT_Tabelle_Riferimento!$H$31:$I$50,2,FALSE))","v":30},{"$f":"+IFERROR(VLOOKUP(ON$6&\"-\"&$M24&\"_old\",Ammortamento_Finanziario!$H:$L,5,FALSE),VLOOKUP($M24,TT_Tabelle_Riferimento!$H$31:$I$50,2,FALSE))","v":30},{"$f":"+IFERROR(VLOOKUP(OO$6&\"-\"&$M24&\"_old\",Ammortamento_Finanziario!$H:$L,5,FALSE),VLOOKUP($M24,TT_Tabelle_Riferimento!$H$31:$I$50,2,FALSE))","v":30},{"$f":"+IFERROR(VLOOKUP(OP$6&\"-\"&$M24&\"_old\",Ammortamento_Finanziario!$H:$L,5,FALSE),VLOOKUP($M24,TT_Tabelle_Riferimento!$H$31:$I$50,2,FALSE))","v":30},{"$f":"+IFERROR(VLOOKUP(OQ$6&\"-\"&$M24&\"_old\",Ammortamento_Finanziario!$H:$L,5,FALSE),VLOOKUP($M24,TT_Tabelle_Riferimento!$H$31:$I$50,2,FALSE))","v":30},{"$f":"+IFERROR(VLOOKUP(OR$6&\"-\"&$M24&\"_old\",Ammortamento_Finanziario!$H:$L,5,FALSE),VLOOKUP($M24,TT_Tabelle_Riferimento!$H$31:$I$50,2,FALSE))","v":30},{"$f":"+IFERROR(VLOOKUP(OS$6&\"-\"&$M24&\"_old\",Ammortamento_Finanziario!$H:$L,5,FALSE),VLOOKUP($M24,TT_Tabelle_Riferimento!$H$31:$I$50,2,FALSE))","v":30},{"$f":"+IFERROR(VLOOKUP(OT$6&\"-\"&$M24&\"_old\",Ammortamento_Finanziario!$H:$L,5,FALSE),VLOOKUP($M24,TT_Tabelle_Riferimento!$H$31:$I$50,2,FALSE))","v":30},{"$f":"+IFERROR(VLOOKUP(OU$6&\"-\"&$M24&\"_old\",Ammortamento_Finanziario!$H:$L,5,FALSE),VLOOKUP($M24,TT_Tabelle_Riferimento!$H$31:$I$50,2,FALSE))","v":30},{"$f":"+IFERROR(VLOOKUP(OV$6&\"-\"&$M24&\"_old\",Ammortamento_Finanziario!$H:$L,5,FALSE),VLOOKUP($M24,TT_Tabelle_Riferimento!$H$31:$I$50,2,FALSE))","v":30},{"$f":"+IFERROR(VLOOKUP(OW$6&\"-\"&$M24&\"_old\",Ammortamento_Finanziario!$H:$L,5,FALSE),VLOOKUP($M24,TT_Tabelle_Riferimento!$H$31:$I$50,2,FALSE))","v":30},{"$f":"+IFERROR(VLOOKUP(OX$6&\"-\"&$M24&\"_old\",Ammortamento_Finanziario!$H:$L,5,FALSE),VLOOKUP($M24,TT_Tabelle_Riferimento!$H$31:$I$50,2,FALSE))","v":30},{"$f":"+IFERROR(VLOOKUP(OY$6&\"-\"&$M24&\"_old\",Ammortamento_Finanziario!$H:$L,5,FALSE),VLOOKUP($M24,TT_Tabelle_Riferimento!$H$31:$I$50,2,FALSE))","v":30},{"$f":"+IFERROR(VLOOKUP(OZ$6&\"-\"&$M24&\"_old\",Ammortamento_Finanziario!$H:$L,5,FALSE),VLOOKUP($M24,TT_Tabelle_Riferimento!$H$31:$I$50,2,FALSE))","v":30},{"$f":"+IFERROR(VLOOKUP(PA$6&\"-\"&$M24&\"_old\",Ammortamento_Finanziario!$H:$L,5,FALSE),VLOOKUP($M24,TT_Tabelle_Riferimento!$H$31:$I$50,2,FALSE))","v":30},{"$f":"+IFERROR(VLOOKUP(PB$6&\"-\"&$M24&\"_old\",Ammortamento_Finanziario!$H:$L,5,FALSE),VLOOKUP($M24,TT_Tabelle_Riferimento!$H$31:$I$50,2,FALSE))","v":30},{"$f":"+IFERROR(VLOOKUP(PC$6&\"-\"&$M24&\"_old\",Ammortamento_Finanziario!$H:$L,5,FALSE),VLOOKUP($M24,TT_Tabelle_Riferimento!$H$31:$I$50,2,FALSE))","v":30},{"$f":"+IFERROR(VLOOKUP(PD$6&\"-\"&$M24&\"_old\",Ammortamento_Finanziario!$H:$L,5,FALSE),VLOOKUP($M24,TT_Tabelle_Riferimento!$H$31:$I$50,2,FALSE))","v":30},{"$f":"+IFERROR(VLOOKUP(PE$6&\"-\"&$M24&\"_old\",Ammortamento_Finanziario!$H:$L,5,FALSE),VLOOKUP($M24,TT_Tabelle_Riferimento!$H$31:$I$50,2,FALSE))","v":30},{"$f":"+IFERROR(VLOOKUP(PF$6&\"-\"&$M24&\"_old\",Ammortamento_Finanziario!$H:$L,5,FALSE),VLOOKUP($M24,TT_Tabelle_Riferimento!$H$31:$I$50,2,FALSE))","v":30},{"$f":"+IFERROR(VLOOKUP(PG$6&\"-\"&$M24&\"_old\",Ammortamento_Finanziario!$H:$L,5,FALSE),VLOOKUP($M24,TT_Tabelle_Riferimento!$H$31:$I$50,2,FALSE))","v":30},{"$f":"+IFERROR(VLOOKUP(PH$6&\"-\"&$M24&\"_old\",Ammortamento_Finanziario!$H:$L,5,FALSE),VLOOKUP($M24,TT_Tabelle_Riferimento!$H$31:$I$50,2,FALSE))","v":30},{"$f":"+IFERROR(VLOOKUP(PI$6&\"-\"&$M24&\"_old\",Ammortamento_Finanziario!$H:$L,5,FALSE),VLOOKUP($M24,TT_Tabelle_Riferimento!$H$31:$I$50,2,FALSE))","v":30},{"$f":"+IFERROR(VLOOKUP(PJ$6&\"-\"&$M24&\"_old\",Ammortamento_Finanziario!$H:$L,5,FALSE),VLOOKUP($M24,TT_Tabelle_Riferimento!$H$31:$I$50,2,FALSE))","v":30},{"$f":"+IFERROR(VLOOKUP(PK$6&\"-\"&$M24&\"_old\",Ammortamento_Finanziario!$H:$L,5,FALSE),VLOOKUP($M24,TT_Tabelle_Riferimento!$H$31:$I$50,2,FALSE))","v":30},{"$f":"+IFERROR(VLOOKUP(PL$6&\"-\"&$M24&\"_old\",Ammortamento_Finanziario!$H:$L,5,FALSE),VLOOKUP($M24,TT_Tabelle_Riferimento!$H$31:$I$50,2,FALSE))","v":30},{"$f":"+IFERROR(VLOOKUP(PM$6&\"-\"&$M24&\"_old\",Ammortamento_Finanziario!$H:$L,5,FALSE),VLOOKUP($M24,TT_Tabelle_Riferimento!$H$31:$I$50,2,FALSE))","v":30},{"$f":"+IFERROR(VLOOKUP(PN$6&\"-\"&$M24&\"_old\",Ammortamento_Finanziario!$H:$L,5,FALSE),VLOOKUP($M24,TT_Tabelle_Riferimento!$H$31:$I$50,2,FALSE))","v":30},{"$f":"+IFERROR(VLOOKUP(PO$6&\"-\"&$M24&\"_old\",Ammortamento_Finanziario!$H:$L,5,FALSE),VLOOKUP($M24,TT_Tabelle_Riferimento!$H$31:$I$50,2,FALSE))","v":30},{"$f":"+IFERROR(VLOOKUP(PP$6&\"-\"&$M24&\"_old\",Ammortamento_Finanziario!$H:$L,5,FALSE),VLOOKUP($M24,TT_Tabelle_Riferimento!$H$31:$I$50,2,FALSE))","v":30},{"$f":"+IFERROR(VLOOKUP(PQ$6&\"-\"&$M24&\"_old\",Ammortamento_Finanziario!$H:$L,5,FALSE),VLOOKUP($M24,TT_Tabelle_Riferimento!$H$31:$I$50,2,FALSE))","v":30},{"$f":"+IFERROR(VLOOKUP(PR$6&\"-\"&$M24&\"_old\",Ammortamento_Finanziario!$H:$L,5,FALSE),VLOOKUP($M24,TT_Tabelle_Riferimento!$H$31:$I$50,2,FALSE))","v":30},{"$f":"+IFERROR(VLOOKUP(PS$6&\"-\"&$M24&\"_old\",Ammortamento_Finanziario!$H:$L,5,FALSE),VLOOKUP($M24,TT_Tabelle_Riferimento!$H$31:$I$50,2,FALSE))","v":30},{"$f":"+IFERROR(VLOOKUP(PT$6&\"-\"&$M24&\"_old\",Ammortamento_Finanziario!$H:$L,5,FALSE),VLOOKUP($M24,TT_Tabelle_Riferimento!$H$31:$I$50,2,FALSE))","v":30},{"$f":"+IFERROR(VLOOKUP(PU$6&\"-\"&$M24&\"_old\",Ammortamento_Finanziario!$H:$L,5,FALSE),VLOOKUP($M24,TT_Tabelle_Riferimento!$H$31:$I$50,2,FALSE))","v":30},{"$f":"+IFERROR(VLOOKUP(PV$6&\"-\"&$M24&\"_old\",Ammortamento_Finanziario!$H:$L,5,FALSE),VLOOKUP($M24,TT_Tabelle_Riferimento!$H$31:$I$50,2,FALSE))","v":30},{"$f":"+IFERROR(VLOOKUP(PW$6&\"-\"&$M24&\"_old\",Ammortamento_Finanziario!$H:$L,5,FALSE),VLOOKUP($M24,TT_Tabelle_Riferimento!$H$31:$I$50,2,FALSE))","v":30},{"$f":"+IFERROR(VLOOKUP(PX$6&\"-\"&$M24&\"_old\",Ammortamento_Finanziario!$H:$L,5,FALSE),VLOOKUP($M24,TT_Tabelle_Riferimento!$H$31:$I$50,2,FALSE))","v":30},{"$f":"+IFERROR(VLOOKUP(PY$6&\"-\"&$M24&\"_old\",Ammortamento_Finanziario!$H:$L,5,FALSE),VLOOKUP($M24,TT_Tabelle_Riferimento!$H$31:$I$50,2,FALSE))","v":30},{"$f":"+IFERROR(VLOOKUP(PZ$6&\"-\"&$M24&\"_old\",Ammortamento_Finanziario!$H:$L,5,FALSE),VLOOKUP($M24,TT_Tabelle_Riferimento!$H$31:$I$50,2,FALSE))","v":30},{"$f":"+IFERROR(VLOOKUP(QA$6&\"-\"&$M24&\"_old\",Ammortamento_Finanziario!$H:$L,5,FALSE),VLOOKUP($M24,TT_Tabelle_Riferimento!$H$31:$I$50,2,FALSE))","v":30},{"$f":"+IFERROR(VLOOKUP(QB$6&\"-\"&$M24&\"_old\",Ammortamento_Finanziario!$H:$L,5,FALSE),VLOOKUP($M24,TT_Tabelle_Riferimento!$H$31:$I$50,2,FALSE))","v":30},{"$f":"+IFERROR(VLOOKUP(QC$6&\"-\"&$M24&\"_old\",Ammortamento_Finanziario!$H:$L,5,FALSE),VLOOKUP($M24,TT_Tabelle_Riferimento!$H$31:$I$50,2,FALSE))","v":30},{"$f":"+IFERROR(VLOOKUP(QD$6&\"-\"&$M24&\"_old\",Ammortamento_Finanziario!$H:$L,5,FALSE),VLOOKUP($M24,TT_Tabelle_Riferimento!$H$31:$I$50,2,FALSE))","v":30},{"$f":"+IFERROR(VLOOKUP(QE$6&\"-\"&$M24&\"_old\",Ammortamento_Finanziario!$H:$L,5,FALSE),VLOOKUP($M24,TT_Tabelle_Riferimento!$H$31:$I$50,2,FALSE))","v":30},{"$f":"+IFERROR(VLOOKUP(QF$6&\"-\"&$M24&\"_old\",Ammortamento_Finanziario!$H:$L,5,FALSE),VLOOKUP($M24,TT_Tabelle_Riferimento!$H$31:$I$50,2,FALSE))","v":30},{"$f":"+IFERROR(VLOOKUP(QG$6&\"-\"&$M24&\"_old\",Ammortamento_Finanziario!$H:$L,5,FALSE),VLOOKUP($M24,TT_Tabelle_Riferimento!$H$31:$I$50,2,FALSE))","v":30},{"$f":"+IFERROR(VLOOKUP(QH$6&\"-\"&$M24&\"_old\",Ammortamento_Finanziario!$H:$L,5,FALSE),VLOOKUP($M24,TT_Tabelle_Riferimento!$H$31:$I$50,2,FALSE))","v":30},{"$f":"+IFERROR(VLOOKUP(QI$6&\"-\"&$M24&\"_old\",Ammortamento_Finanziario!$H:$L,5,FALSE),VLOOKUP($M24,TT_Tabelle_Riferimento!$H$31:$I$50,2,FALSE))","v":30},{"$f":"+IFERROR(VLOOKUP(QJ$6&\"-\"&$M24&\"_old\",Ammortamento_Finanziario!$H:$L,5,FALSE),VLOOKUP($M24,TT_Tabelle_Riferimento!$H$31:$I$50,2,FALSE))","v":30},{"$f":"+IFERROR(VLOOKUP(QK$6&\"-\"&$M24&\"_old\",Ammortamento_Finanziario!$H:$L,5,FALSE),VLOOKUP($M24,TT_Tabelle_Riferimento!$H$31:$I$50,2,FALSE))","v":30},{"$f":"+IFERROR(VLOOKUP(QL$6&\"-\"&$M24&\"_old\",Ammortamento_Finanziario!$H:$L,5,FALSE),VLOOKUP($M24,TT_Tabelle_Riferimento!$H$31:$I$50,2,FALSE))","v":30},{"$f":"+IFERROR(VLOOKUP(QM$6&\"-\"&$M24&\"_old\",Ammortamento_Finanziario!$H:$L,5,FALSE),VLOOKUP($M24,TT_Tabelle_Riferimento!$H$31:$I$50,2,FALSE))","v":30},{"$f":"+IFERROR(VLOOKUP(QN$6&\"-\"&$M24&\"_old\",Ammortamento_Finanziario!$H:$L,5,FALSE),VLOOKUP($M24,TT_Tabelle_Riferimento!$H$31:$I$50,2,FALSE))","v":30},{"$f":"+IFERROR(VLOOKUP(QO$6&\"-\"&$M24&\"_old\",Ammortamento_Finanziario!$H:$L,5,FALSE),VLOOKUP($M24,TT_Tabelle_Riferimento!$H$31:$I$50,2,FALSE))","v":30},{"$f":"+IFERROR(VLOOKUP(QP$6&\"-\"&$M24&\"_old\",Ammortamento_Finanziario!$H:$L,5,FALSE),VLOOKUP($M24,TT_Tabelle_Riferimento!$H$31:$I$50,2,FALSE))","v":30},{"$f":"+IFERROR(VLOOKUP(QQ$6&\"-\"&$M24&\"_old\",Ammortamento_Finanziario!$H:$L,5,FALSE),VLOOKUP($M24,TT_Tabelle_Riferimento!$H$31:$I$50,2,FALSE))","v":30},{"$f":"+IFERROR(VLOOKUP(QR$6&\"-\"&$M24&\"_old\",Ammortamento_Finanziario!$H:$L,5,FALSE),VLOOKUP($M24,TT_Tabelle_Riferimento!$H$31:$I$50,2,FALSE))","v":30},{"$f":"+IFERROR(VLOOKUP(QS$6&\"-\"&$M24&\"_old\",Ammortamento_Finanziario!$H:$L,5,FALSE),VLOOKUP($M24,TT_Tabelle_Riferimento!$H$31:$I$50,2,FALSE))","v":30},{"$f":"+IFERROR(VLOOKUP(QT$6&\"-\"&$M24&\"_old\",Ammortamento_Finanziario!$H:$L,5,FALSE),VLOOKUP($M24,TT_Tabelle_Riferimento!$H$31:$I$50,2,FALSE))","v":30},{"$f":"+IFERROR(VLOOKUP(QU$6&\"-\"&$M24&\"_old\",Ammortamento_Finanziario!$H:$L,5,FALSE),VLOOKUP($M24,TT_Tabelle_Riferimento!$H$31:$I$50,2,FALSE))","v":30},{"$f":"+IFERROR(VLOOKUP(QV$6&\"-\"&$M24&\"_old\",Ammortamento_Finanziario!$H:$L,5,FALSE),VLOOKUP($M24,TT_Tabelle_Riferimento!$H$31:$I$50,2,FALSE))","v":30},{"$f":"+IFERROR(VLOOKUP(QW$6&\"-\"&$M24&\"_old\",Ammortamento_Finanziario!$H:$L,5,FALSE),VLOOKUP($M24,TT_Tabelle_Riferimento!$H$31:$I$50,2,FALSE))","v":30},{"$f":"+IFERROR(VLOOKUP(QX$6&\"-\"&$M24&\"_old\",Ammortamento_Finanziario!$H:$L,5,FALSE),VLOOKUP($M24,TT_Tabelle_Riferimento!$H$31:$I$50,2,FALSE))","v":30},{"$f":"+IFERROR(VLOOKUP(QY$6&\"-\"&$M24&\"_old\",Ammortamento_Finanziario!$H:$L,5,FALSE),VLOOKUP($M24,TT_Tabelle_Riferimento!$H$31:$I$50,2,FALSE))","v":30},{"$f":"+IFERROR(VLOOKUP(QZ$6&\"-\"&$M24&\"_old\",Ammortamento_Finanziario!$H:$L,5,FALSE),VLOOKUP($M24,TT_Tabelle_Riferimento!$H$31:$I$50,2,FALSE))","v":30},{"$f":"+IFERROR(VLOOKUP(RA$6&\"-\"&$M24&\"_old\",Ammortamento_Finanziario!$H:$L,5,FALSE),VLOOKUP($M24,TT_Tabelle_Riferimento!$H$31:$I$50,2,FALSE))","v":30},{"$f":"+IFERROR(VLOOKUP(RB$6&\"-\"&$M24&\"_old\",Ammortamento_Finanziario!$H:$L,5,FALSE),VLOOKUP($M24,TT_Tabelle_Riferimento!$H$31:$I$50,2,FALSE))","v":30},{"$f":"+IFERROR(VLOOKUP(RC$6&\"-\"&$M24&\"_old\",Ammortamento_Finanziario!$H:$L,5,FALSE),VLOOKUP($M24,TT_Tabelle_Riferimento!$H$31:$I$50,2,FALSE))","v":30},{"$f":"+IFERROR(VLOOKUP(RD$6&\"-\"&$M24&\"_old\",Ammortamento_Finanziario!$H:$L,5,FALSE),VLOOKUP($M24,TT_Tabelle_Riferimento!$H$31:$I$50,2,FALSE))","v":30},{"$f":"+IFERROR(VLOOKUP(RE$6&\"-\"&$M24&\"_old\",Ammortamento_Finanziario!$H:$L,5,FALSE),VLOOKUP($M24,TT_Tabelle_Riferimento!$H$31:$I$50,2,FALSE))","v":30},{"$f":"+IFERROR(VLOOKUP(RF$6&\"-\"&$M24&\"_old\",Ammortamento_Finanziario!$H:$L,5,FALSE),VLOOKUP($M24,TT_Tabelle_Riferimento!$H$31:$I$50,2,FALSE))","v":30},{"$f":"+IFERROR(VLOOKUP(RG$6&\"-\"&$M24&\"_old\",Ammortamento_Finanziario!$H:$L,5,FALSE),VLOOKUP($M24,TT_Tabelle_Riferimento!$H$31:$I$50,2,FALSE))","v":30},{"$f":"+IFERROR(VLOOKUP(RH$6&\"-\"&$M24&\"_old\",Ammortamento_Finanziario!$H:$L,5,FALSE),VLOOKUP($M24,TT_Tabelle_Riferimento!$H$31:$I$50,2,FALSE))","v":30},{"$f":"+IFERROR(VLOOKUP(RI$6&\"-\"&$M24&\"_old\",Ammortamento_Finanziario!$H:$L,5,FALSE),VLOOKUP($M24,TT_Tabelle_Riferimento!$H$31:$I$50,2,FALSE))","v":30},{"$f":"+IFERROR(VLOOKUP(RJ$6&\"-\"&$M24&\"_old\",Ammortamento_Finanziario!$H:$L,5,FALSE),VLOOKUP($M24,TT_Tabelle_Riferimento!$H$31:$I$50,2,FALSE))","v":30},{"$f":"+IFERROR(VLOOKUP(RK$6&\"-\"&$M24&\"_old\",Ammortamento_Finanziario!$H:$L,5,FALSE),VLOOKUP($M24,TT_Tabelle_Riferimento!$H$31:$I$50,2,FALSE))","v":30},{"$f":"+IFERROR(VLOOKUP(RL$6&\"-\"&$M24&\"_old\",Ammortamento_Finanziario!$H:$L,5,FALSE),VLOOKUP($M24,TT_Tabelle_Riferimento!$H$31:$I$50,2,FALSE))","v":30},{"$f":"+IFERROR(VLOOKUP(RM$6&\"-\"&$M24&\"_old\",Ammortamento_Finanziario!$H:$L,5,FALSE),VLOOKUP($M24,TT_Tabelle_Riferimento!$H$31:$I$50,2,FALSE))","v":30},{"$f":"+IFERROR(VLOOKUP(RN$6&\"-\"&$M24&\"_old\",Ammortamento_Finanziario!$H:$L,5,FALSE),VLOOKUP($M24,TT_Tabelle_Riferimento!$H$31:$I$50,2,FALSE))","v":30},{"$f":"+IFERROR(VLOOKUP(RO$6&\"-\"&$M24&\"_old\",Ammortamento_Finanziario!$H:$L,5,FALSE),VLOOKUP($M24,TT_Tabelle_Riferimento!$H$31:$I$50,2,FALSE))","v":30},{"$f":"+IFERROR(VLOOKUP(RP$6&\"-\"&$M24&\"_old\",Ammortamento_Finanziario!$H:$L,5,FALSE),VLOOKUP($M24,TT_Tabelle_Riferimento!$H$31:$I$50,2,FALSE))","v":30},{"$f":"+IFERROR(VLOOKUP(RQ$6&\"-\"&$M24&\"_old\",Ammortamento_Finanziario!$H:$L,5,FALSE),VLOOKUP($M24,TT_Tabelle_Riferimento!$H$31:$I$50,2,FALSE))","v":30},{"$f":"+IFERROR(VLOOKUP(RR$6&\"-\"&$M24&\"_old\",Ammortamento_Finanziario!$H:$L,5,FALSE),VLOOKUP($M24,TT_Tabelle_Riferimento!$H$31:$I$50,2,FALSE))","v":30},{"$f":"+IFERROR(VLOOKUP(RS$6&\"-\"&$M24&\"_old\",Ammortamento_Finanziario!$H:$L,5,FALSE),VLOOKUP($M24,TT_Tabelle_Riferimento!$H$31:$I$50,2,FALSE))","v":30},{"$f":"+IFERROR(VLOOKUP(RT$6&\"-\"&$M24&\"_old\",Ammortamento_Finanziario!$H:$L,5,FALSE),VLOOKUP($M24,TT_Tabelle_Riferimento!$H$31:$I$50,2,FALSE))","v":30},{"$f":"+IFERROR(VLOOKUP(RU$6&\"-\"&$M24&\"_old\",Ammortamento_Finanziario!$H:$L,5,FALSE),VLOOKUP($M24,TT_Tabelle_Riferimento!$H$31:$I$50,2,FALSE))","v":30},{"$f":"+IFERROR(VLOOKUP(RV$6&\"-\"&$M24&\"_old\",Ammortamento_Finanziario!$H:$L,5,FALSE),VLOOKUP($M24,TT_Tabelle_Riferimento!$H$31:$I$50,2,FALSE))","v":30}]
[null,null,null,"AMMcfp",{"$f":"+SUMIFS(IMN_gestore!X:X,IMN_gestore!$E:$E,\">=\"&2012,IMN_gestore!$E:$E,\"<=\"&2022)","v":0},{"$f":"+SUMIFS(IMN_gestore!AI:AI,IMN_gestore!$E:$E,\">=\"&2012,IMN_gestore!$E:$E,\"<=\"&2023)","v":0},{"$f":"+SUMIFS(IMN_gestore!AT:AT,IMN_gestore!$E:$E,\">=\"&2012,IMN_gestore!$E:$E,\"<=\"&2024)","v":0},{"$f":"+SUMIFS(IMN_gestore!BE:BE,IMN_gestore!$E:$E,\">=\"&2012,IMN_gestore!$E:$E,\"<=\"&2025)","v":0},{"$f":"+SUMIFS(IMN_gestore!$BP:$BP,IMN_gestore!$E:$E,\">=\"&2012,IMN_gestore!$E:$E,\"<=\"&2026)","v":0},{"$f":"+SUMIFS(IMN_gestore!$CA:$CA,IMN_gestore!$E:$E,\">=\"&2012,IMN_gestore!$E:$E,\"<=\"&2027)","v":0}]
[]
[null,null,null,null,null,null,null,null,null,null,null,null,"Codice","2011-2012","2011-2013","2011-2014","2011-2015","2011-2016","2011-2017","2011-2018","2011-2019","2011-2020","2011-2021","2011-2022","2011-2023","2011-2024","2011-2025","2011-2026","2011-2027","2011-2028","2011-2029","2011-2030","2011-2031","2011-2032","2011-2033","2011-2034","2011-2035","2011-2036","2011-2037","2011-2038","2011-2039","2011-2040","2011-2041","2011-2042","2011-2043","2011-2044","2011-2045","2011-2046","2011-2047","2011-2048","2012-2014","2012-2015","2012-2016","2012-2017","2012-2018","2012-2019","2012-2020","2012-2021","2012-2022","2012-2023","2012-2024","2012-2025","2012-2026","2012-2027","2012-2028","2012-2029","2012-2030","2012-2031","2012-2032","2012-2033","2012-2034","2012-2035","2012-2036","2012-2037","2012-2038","2012-2039","2012-2040","2012-2041","2012-2042","2012-2043","2012-2044","2012-2045","2012-2046","2012-2047","2012-2048","2013-2015","2013-2016","2013-2017","2013-2018","2013-2019","2013-2020","2013-2021","2013-2022","2013-2023","2013-2024","2013-2025","2013-2026","2013-2027","2013-2028","2013-2029","2013-2030","2013-2031","2013-2032","2013-2033","2013-2034","2013-2035","2013-2036","2013-2037","2013-2038","2013-2039","2013-2040","2013-2041","2013-2042","2013-2043","2013-2044","2013-2045","2013-2046","2013-2047","2013-2048","2014-2016","2014-2017","2014-2018","2014-2019","2014-2020","2014-2021","2014-2022","2014-2023","2014-2024","2014-2025","2014-2026","2014-2027","2014-2028","2014-2029","2014-2030","2014-2031","2014-2032","2014-2033","2014-2034","2014-2035","2014-2036","2014-2037","2014-2038","2014-2039","2014-2040","2014-2041","2014-2042","2014-2043","2014-2044","2014-2045","2014-2046","2014-2047","2014-2048","2015-2017","2015-2018","2015-2019","2015-2020","2015-2021","2015-2022","2015-2023","2015-2024","2015-2025","2015-2026","2015-2027","2015-2028","2015-2029","2015-2030","2015-2031","2015-2032","2015-2033","2015-2034","2015-2035","2015-2036","2015-2037","2015-2038","2015-2039","2015-2040","2015-2041","2015-2042","2015-2043","2015-2044","2015-2045","2015-2046","2015-2047","2015-2048","2016-2018","2016-2019","2016-2020","2016-2021","2016-2022","2016-2023","2016-2024","2016-2025","2016-2026","2016-2027","2016-2028","2016-2029","2016-2030","2016-2031","2016-2032","2016-2033","2016-2034","2016-2035","2016-2036","2016-2037","2016-2038","2016-2039","2016-2040","2016-2041","2016-2042","2016-2043","2016-2044","2016-2045","2016-2046","2016-2047","2016-2048","2017-2019","2017-2020","2017-2021","2017-2022","2017-2023","2017-2024","2017-2025","2017-2026","2017-2027","2017-2028","2017-2029","2017-2030","2017-2031","2017-2032","2017-2033","2017-2034","2017-2035","2017-2036","2017-2037","2017-2038","2017-2039","2017-2040","2017-2041","2017-2042","2017-2043","2017-2044","2017-2045","2017-2046","2017-2047","2017-2048","2018-2020","2018-2021","2018-2022","2018-2023","2018-2024","2018-2025","2018-2026","2018-2027","2018-2028","2018-2029","2018-2030","2018-2031","2018-2032","2018-2033","2018-2034","2018-2035","2018-2036","2018-2037","2018-2038","2018-2039","2018-2040","2018-2041","2018-2042","2018-2043","2018-2044","2018-2045","2018-2046","2018-2047","2018-2048","2019-2021","2019-2022","2019-2023","2019-2024","2019-2025","2019-2026","2019-2027","2019-2028","2019-2029","2019-2030","2019-2031","2019-2032","2019-2033","2019-2034","2019-2035","2019-2036","2019-2037","2019-2038","2019-2039","2019-2040","2019-2041","2019-2042","2019-2043","2019-2044","2019-2045","2019-2046","2019-2047","2019-2048","2020-2022","2020-2023","2020-2024","2020-2025","2020-2026","2020-2027","2020-2028","2020-2029","2020-2030","2020-2031","2020-2032","2020-2033","2020-2034","2020-2035","2020-2036","2020-2037","2020-2038","2020-2039","2020-2040","2020-2041","2020-2042","2020-2043","2020-2044","2020-2045","2020-2046","2020-2047","2020-2048","2021-2023","2021-2024","2021-2025","2021-2026","2021-2027","2021-2028","2021-2029","2021-2030","2021-2031","2021-2032","2021-2033","2021-2034","2021-2035","2021-2036","2021-2037","2021-2038","2021-2039","2021-2040","2021-2041","2021-2042","2021-2043","2021-2044","2021-2045","2021-2046","2021-2047","2021-2048","2022-2024","2022-2025","2022-2026","2022-2027","2022-2028","2022-2029","2022-2030","2022-2031","2022-2032","2022-2033","2022-2034","2022-2035","2022-2036","2022-2037","2022-2038","2022-2039","2022-2040","2022-2041","2022-2042","2022-2043","2022-2044","2022-2045","2022-2046","2022-2047","2022-2048","2023-2025","2023-2026","2023-2027","2023-2028","2023-2029","2023-2030","2023-2031","2023-2032","2023-2033","2023-2034","2023-2035","2023-2036","2023-2037","2023-2038","2023-2039","2023-2040","2023-2041","2023-2042","2023-2043","2023-2044","2023-2045","2023-2046","2023-2047","2023-2048","2024-2026","2024-2027","2024-2028","2024-2029","2024-2030","2024-2031","2024-2032","2024-2033","2024-2034","2024-2035","2024-2036","2024-2037","2024-2038","2024-2039","2024-2040","2024-2041","2024-2042","2024-2043","2024-2044","2024-2045","2024-2046","2024-2047","2024-2048","2025-2027","2025-2028","2025-2029","2025-2030","2025-2031","2025-2032","2025-2033","2025-2034","2025-2035","2025-2036","2025-2037","2025-2038","2025-2039","2025-2040","2025-2041","2025-2042","2025-2043","2025-2044","2025-2045","2025-2046","2025-2047","2025-2048","2026-2028","2026-2029","2026-2030","2026-2031","2026-2032","2026-2033","2026-2034","2026-2035","2026-2036","2026-2037","2026-2038","2026-2039","2026-2040","2026-2041","2026-2042","2026-2043","2026-2044","2026-2045","2026-2046","2026-2047","2026-2048","2027-2029","2027-2030","2027-2031","2027-2032","2027-2033","2027-2034","2027-2035","2027-2036","2027-2037","2027-2038","2027-2039","2027-2040","2027-2041","2027-2042","2027-2043","2027-2044","2027-2045","2027-2046","2027-2047","2027-2048"]
[null,null,null,"Immobilizzazioni nette del gestore - solo nuovi investimenti (serie storica)",null,null,null,null,null,null,null,null,1,0,0,0,0,0,0,0,0,0,0,0,0,0,0,0,0,0,0,0,0,0,0,0,0,0,0,0,0,0,0,0,0,0,0,0,0,0,0,0,0,0,0,0,0,0,0,0,0,0,0,0,0,0,0,0,0,0,0,0,0,0,0,0,0,0,0,0,0,0,0,0,0,0,0,0,0,0,0,0,0,0,0,0,0,0,0,0,0,0,0,0,0,0,0,0,0,0,0,0,0,0,0,0,0,0,0,0,0,0,0,0,0,0,0,0,0,0,0,0,0,0,0,0,0,0,0,0,0,0,0,0,0,0,0,0,0,0,0,0,0,0,0,0,0,0,0,0,0,0,0,0,0,0,0,0,0,0,0,0,0,0,0,0,0,0,0,0,0,0,0,0,0,0,0,0,0,0,0,0,0,0,0,0,0,0,0,0,0,0,0,0,0,0,0,0,0,0,0,0,0,0,0,0,0,0,0,0,0,0,0,0,0,0,0,0,0,0,0,0,0,0,0,0,0,0,0,0,0,0,0,0,0,0,0,0,0,0,0,0,0,0,0,0,0,0,0,0,0,0,0,0,0,0,0,0,0,0,0,0,0,0,0,0,0,0,0,0,0,0,0,0,0,0,0,0,0,0,0,0,0,0,0,0,0,0,0,0,0,0,0,0,0,0,0,0,0,0,0,0,0,0,0,0,0,0,0,0,0,0,0,0,0,0,0,0,0,0,0,0,0,0,0,0,0,0,0,0,0,0,0,0,0,0,0,0,0,0,0,0,0,0,0,0,0,0,0,0,0,0,0,0,0,0,0,0,0,0,0,0,0,0,0,0,0,0,0,0,0,0,0,0,0,0,0,0,0,0,0,0,0,0,0,0,0,0,0,0,0,0,0,0,0,0,0,0,0,0,0,0,0,0,0,0,0,0,0,0,0,0,0,0,0,0,0,0,0,0,0,0,0,0,0,0,0,0,0,0,0,0,0,0,0,0,0,0,0,0,0,0,0,0,0,0,0,0,0,0,0,0,0,0,0,0,0,0,0,0,0,0,0,0,0,0,0,0,0,0,0,0,0,0,0,0,0,0,0,0]
[null,null,null,null,2024,2025,2026,2027,2028,2029,null,null,2,0,0,0,0,0,0,0,0,0,0,0,0,0,0,0,0,0,0,0,0,0,0,0,0,0,0,0,0,0,0,0,0,0,0,0,0,0,0,0,0,0,0,0,0,0,0,0,0,0,0,0,0,0,0,0,0,0,0,0,0,0,0,0,0,0,0,0,0,0,0,0,0,0,0,0,0,0,0,0,0,0,0,0,0,0,0,0,0,0,0,0,0,0,0,0,0,0,0,0,0,0,0,0,0,0,0,0,0,0,0,0,0,0,0,0,0,0,0,0,0,0,0,0,0,0,0,0,0,0,0,0,0,0,0,0,0,0,0,0,0,0,0,0,0,0,0,0,0,0,0,0,0,0,0,0,0,0,0,0,0,0,0,0,0,0,0,0,0,0,0,0,0,0,0,0,0,0,0,0,0,0,0,0,0,0,0,0,0,0,0,0,0,0,0,0,0,0,0,0,0,0,0,0,0,0,0,0,0,0,0,0,0,0,0,0,0,0,0,0,0,0,0,0,0,0,0,0,0,0,0,0,0,0,0,0,0,0,0,0,0,0,0,0,0,0,0,0,0,0,0,0,0,0,0,0,0,0,0,0,0,0,0,0,0,0,0,0,0,0,0,0,0,0,0,0,0,0,0,0,0,0,0,0,0,0,0,0,0,0,{"$f":"+IFERROR(VLOOKUP(KQ$27&\"-\"&$M29&\"_new\",Ammortamento_Finanziario!$H:$L,5,FALSE),VLOOKUP($M29,TT_Tabelle_Riferimento!$D$127:$H$164,5,FALSE))","v":40},{"$f":"+IFERROR(VLOOKUP(KR$27&\"-\"&$M29&\"_new\",Ammortamento_Finanziario!$H:$L,5,FALSE),VLOOKUP($M29,TT_Tabelle_Riferimento!$D$127:$H$164,5,FALSE))","v":40},{"$f":"+IFERROR(VLOOKUP(KS$27&\"-\"&$M29&\"_new\",Ammortamento_Finanziario!$H:$L,5,FALSE),VLOOKUP($M29,TT_Tabelle_Riferimento!$D$127:$H$164,5,FALSE))","v":40},{"$f":"+IFERROR(VLOOKUP(KT$27&\"-\"&$M29&\"_new\",Ammortamento_Finanziario!$H:$L,5,FALSE),VLOOKUP($M29,TT_Tabelle_Riferimento!$D$127:$H$164,5,FALSE))","v":40},{"$f":"+IFERROR(VLOOKUP(KU$27&\"-\"&$M29&\"_new\",Ammortamento_Finanziario!$H:$L,5,FALSE),VLOOKUP($M29,TT_Tabelle_Riferimento!$D$127:$H$164,5,FALSE))","v":40},{"$f":"+IFERROR(VLOOKUP(KV$27&\"-\"&$M29&\"_new\",Ammortamento_Finanziario!$H:$L,5,FALSE),VLOOKUP($M29,TT_Tabelle_Riferimento!$D$127:$H$164,5,FALSE))","v":40},{"$f":"+IFERROR(VLOOKUP(KW$27&\"-\"&$M29&\"_new\",Ammortamento_Finanziario!$H:$L,5,FALSE),VLOOKUP($M29,TT_Tabelle_Riferimento!$D$127:$H$164,5,FALSE))","v":40},{"$f":"+IFERROR(VLOOKUP(KX$27&\"-\"&$M29&\"_new\",Ammortamento_Finanziario!$H:$L,5,FALSE),VLOOKUP($M29,TT_Tabelle_Riferimento!$D$127:$H$164,5,FALSE))","v":40},{"$f":"+IFERROR(VLOOKUP(KY$27&\"-\"&$M29&\"_new\",Ammortamento_Finanziario!$H:$L,5,FALSE),VLOOKUP($M29,TT_Tabelle_Riferimento!$D$127:$H$164,5,FALSE))","v":40},{"$f":"+IFERROR(VLOOKUP(KZ$27&\"-\"&$M29&\"_new\",Ammortamento_Finanziario!$H:$L,5,FALSE),VLOOKUP($M29,TT_Tabelle_Riferimento!$D$127:$H$164,5,FALSE))","v":40},{"$f":"+IFERROR(VLOOKUP(LA$27&\"-\"&$M29&\"_new\",Ammortamento_Finanziario!$H:$L,5,FALSE),VLOOKUP($M29,TT_Tabelle_Riferimento!$D$127:$H$164,5,FALSE))","v":40},{"$f":"+IFERROR(VLOOKUP(LB$27&\"-\"&$M29&\"_new\",Ammortamento_Finanziario!$H:$L,5,FALSE),VLOOKUP($M29,TT_Tabelle_Riferimento!$D$127:$H$164,5,FALSE))","v":40},{"$f":"+IFERROR(VLOOKUP(LC$27&\"-\"&$M29&\"_new\",Ammortamento_Finanziario!$H:$L,5,FALSE),VLOOKUP($M29,TT_Tabelle_Riferimento!$D$127:$H$164,5,FALSE))","v":40},{"$f":"+IFERROR(VLOOKUP(LD$27&\"-\"&$M29&\"_new\",Ammortamento_Finanziario!$H:$L,5,FALSE),VLOOKUP($M29,TT_Tabelle_Riferimento!$D$127:$H$164,5,FALSE))","v":40},{"$f":"+IFERROR(VLOOKUP(LE$27&\"-\"&$M29&\"_new\",Ammortamento_Finanziario!$H:$L,5,FALSE),VLOOKUP($M29,TT_Tabelle_Riferimento!$D$127:$H$164,5,FALSE))","v":40},{"$f":"+IFERROR(VLOOKUP(LF$27&\"-\"&$M29&\"_new\",Ammortamento_Finanziario!$H:$L,5,FALSE),VLOOKUP($M29,TT_Tabelle_Riferimento!$D$127:$H$164,5,FALSE))","v":40},{"$f":"+IFERROR(VLOOKUP(LG$27&\"-\"&$M29&\"_new\",Ammortamento_Finanziario!$H:$L,5,FALSE),VLOOKUP($M29,TT_Tabelle_Riferimento!$D$127:$H$164,5,FALSE))","v":40},{"$f":"+IFERROR(VLOOKUP(LH$27&\"-\"&$M29&\"_new\",Ammortamento_Finanziario!$H:$L,5,FALSE),VLOOKUP($M29,TT_Tabelle_Riferimento!$D$127:$H$164,5,FALSE))","v":40},{"$f":"+IFERROR(VLOOKUP(LI$27&\"-\"&$M29&\"_new\",Ammortamento_Finanziario!$H:$L,5,FALSE),VLOOKUP($M29,TT_Tabelle_Riferimento!$D$127:$H$164,5,FALSE))","v":40},{"$f":"+IFERROR(VLOOKUP(LJ$27&\"-\"&$M29&\"_new\",Ammortamento_Finanziario!$H:$L,5,FALSE),VLOOKUP($M29,TT_Tabelle_Riferimento!$D$127:$H$164,5,FALSE))","v":40},{"$f":"+IFERROR(VLOOKUP(LK$27&\"-\"&$M29&\"_new\",Ammortamento_Finanziario!$H:$L,5,FALSE),VLOOKUP($M29,TT_Tabelle_Riferimento!$D$127:$H$164,5,FALSE))","v":40},{"$f":"+IFERROR(VLOOKUP(LL$27&\"-\"&$M29&\"_new\",Ammortamento_Finanziario!$H:$L,5,FALSE),VLOOKUP($M29,TT_Tabelle_Riferimento!$D$127:$H$164,5,FALSE))","v":40},{"$f":"+IFERROR(VLOOKUP(LM$27&\"-\"&$M29&\"_new\",Ammortamento_Finanziario!$H:$L,5,FALSE),VLOOKUP($M29,TT_Tabelle_Riferimento!$D$127:$H$164,5,FALSE))","v":40},{"$f":"+IFERROR(VLOOKUP(LN$27&\"-\"&$M29&\"_new\",Ammortamento_Finanziario!$H:$L,5,FALSE),VLOOKUP($M29,TT_Tabelle_Riferimento!$D$127:$H$164,5,FALSE))","v":40},{"$f":"+IFERROR(VLOOKUP(LO$27&\"-\"&$M29&\"_new\",Ammortamento_Finanziario!$H:$L,5,FALSE),VLOOKUP($M29,TT_Tabelle_Riferimento!$D$127:$H$164,5,FALSE))","v":40},{"$f":"+IFERROR(VLOOKUP(LP$27&\"-\"&$M29&\"_new\",Ammortamento_Finanziario!$H:$L,5,FALSE),VLOOKUP($M29,TT_Tabelle_Riferimento!$D$127:$H$164,5,FALSE))","v":40},{"$f":"+IFERROR(VLOOKUP(LQ$27&\"-\"&$M29&\"_new\",Ammortamento_Finanziario!$H:$L,5,FALSE),VLOOKUP($M29,TT_Tabelle_Riferimento!$D$127:$H$164,5,FALSE))","v":40},{"$f":"+IFERROR(VLOOKUP(LR$27&\"-\"&$M29&\"_new\",Ammortamento_Finanziario!$H:$L,5,FALSE),VLOOKUP($M29,TT_Tabelle_Riferimento!$D$127:$H$164,5,FALSE))","v":40},{"$f":"+IFERROR(VLOOKUP(LS$27&\"-\"&$M29&\"_new\",Ammortamento_Finanziario!$H:$L,5,FALSE),VLOOKUP($M29,TT_Tabelle_Riferimento!$D$127:$H$164,5,FALSE))","v":40},{"$f":"+IFERROR(VLOOKUP(LT$27&\"-\"&$M29&\"_new\",Ammortamento_Finanziario!$H:$L,5,FALSE),VLOOKUP($M29,TT_Tabelle_Riferimento!$D$127:$H$164,5,FALSE))","v":40},{"$f":"+IFERROR(VLOOKUP(LU$27&\"-\"&$M29&\"_new\",Ammortamento_Finanziario!$H:$L,5,FALSE),VLOOKUP($M29,TT_Tabelle_Riferimento!$D$127:$H$164,5,FALSE))","v":40},{"$f":"+IFERROR(VLOOKUP(LV$27&\"-\"&$M29&\"_new\",Ammortamento_Finanziario!$H:$L,5,FALSE),VLOOKUP($M29,TT_Tabelle_Riferimento!$D$127:$H$164,5,FALSE))","v":40},{"$f":"+IFERROR(VLOOKUP(LW$27&\"-\"&$M29&\"_new\",Ammortamento_Finanziario!$H:$L,5,FALSE),VLOOKUP($M29,TT_Tabelle_Riferimento!$D$127:$H$164,5,FALSE))","v":40},{"$f":"+IFERROR(VLOOKUP(LX$27&\"-\"&$M29&\"_new\",Ammortamento_Finanziario!$H:$L,5,FALSE),VLOOKUP($M29,TT_Tabelle_Riferimento!$D$127:$H$164,5,FALSE))","v":40},{"$f":"+IFERROR(VLOOKUP(LY$27&\"-\"&$M29&\"_new\",Ammortamento_Finanziario!$H:$L,5,FALSE),VLOOKUP($M29,TT_Tabelle_Riferimento!$D$127:$H$164,5,FALSE))","v":40},{"$f":"+IFERROR(VLOOKUP(LZ$27&\"-\"&$M29&\"_new\",Ammortamento_Finanziario!$H:$L,5,FALSE),VLOOKUP($M29,TT_Tabelle_Riferimento!$D$127:$H$164,5,FALSE))","v":40},{"$f":"+IFERROR(VLOOKUP(MA$27&\"-\"&$M29&\"_new\",Ammortamento_Finanziario!$H:$L,5,FALSE),VLOOKUP($M29,TT_Tabelle_Riferimento!$D$127:$H$164,5,FALSE))","v":40},{"$f":"+IFERROR(VLOOKUP(MB$27&\"-\"&$M29&\"_new\",Ammortamento_Finanziario!$H:$L,5,FALSE),VLOOKUP($M29,TT_Tabelle_Riferimento!$D$127:$H$164,5,FALSE))","v":40},{"$f":"+IFERROR(VLOOKUP(MC$27&\"-\"&$M29&\"_new\",Ammortamento_Finanziario!$H:$L,5,FALSE),VLOOKUP($M29,TT_Tabelle_Riferimento!$D$127:$H$164,5,FALSE))","v":40},{"$f":"+IFERROR(VLOOKUP(MD$27&\"-\"&$M29&\"_new\",Ammortamento_Finanziario!$H:$L,5,FALSE),VLOOKUP($M29,TT_Tabelle_Riferimento!$D$127:$H$164,5,FALSE))","v":40},{"$f":"+IFERROR(VLOOKUP(ME$27&\"-\"&$M29&\"_new\",Ammortamento_Finanziario!$H:$L,5,FALSE),VLOOKUP($M29,TT_Tabelle_Riferimento!$D$127:$H$164,5,FALSE))","v":40},{"$f":"+IFERROR(VLOOKUP(MF$27&\"-\"&$M29&\"_new\",Ammortamento_Finanziario!$H:$L,5,FALSE),VLOOKUP($M29,TT_Tabelle_Riferimento!$D$127:$H$164,5,FALSE))","v":40},{"$f":"+IFERROR(VLOOKUP(MG$27&\"-\"&$M29&\"_new\",Ammortamento_Finanziario!$H:$L,5,FALSE),VLOOKUP($M29,TT_Tabelle_Riferimento!$D$127:$H$164,5,FALSE))","v":40},{"$f":"+IFERROR(VLOOKUP(MH$27&\"-\"&$M29&\"_new\",Ammortamento_Finanziario!$H:$L,5,FALSE),VLOOKUP($M29,TT_Tabelle_Riferimento!$D$127:$H$164,5,FALSE))","v":40},{"$f":"+IFERROR(VLOOKUP(MI$27&\"-\"&$M29&\"_new\",Ammortamento_Finanziario!$H:$L,5,FALSE),VLOOKUP($M29,TT_Tabelle_Riferimento!$D$127:$H$164,5,FALSE))","v":40},{"$f":"+IFERROR(VLOOKUP(MJ$27&\"-\"&$M29&\"_new\",Ammortamento_Finanziario!$H:$L,5,FALSE),VLOOKUP($M29,TT_Tabelle_Riferimento!$D$127:$H$164,5,FALSE))","v":40},{"$f":"+IFERROR(VLOOKUP(MK$27&\"-\"&$M29&\"_new\",Ammortamento_Finanziario!$H:$L,5,FALSE),VLOOKUP($M29,TT_Tabelle_Riferimento!$D$127:$H$164,5,FALSE))","v":40},{"$f":"+IFERROR(VLOOKUP(ML$27&\"-\"&$M29&\"_new\",Ammortamento_Finanziario!$H:$L,5,FALSE),VLOOKUP($M29,TT_Tabelle_Riferimento!$D$127:$H$164,5,FALSE))","v":40},{"$f":"+IFERROR(VLOOKUP(MM$27&\"-\"&$M29&\"_new\",Ammortamento_Finanziario!$H:$L,5,FALSE),VLOOKUP($M29,TT_Tabelle_Riferimento!$D$127:$H$164,5,FALSE))","v":40},{"$f":"+IFERROR(VLOOKUP(MN$27&\"-\"&$M29&\"_new\",Ammortamento_Finanziario!$H:$L,5,FALSE),VLOOKUP($M29,TT_Tabelle_Riferimento!$D$127:$H$164,5,FALSE))","v":40},{"$f":"+IFERROR(VLOOKUP(MO$27&\"-\"&$M29&\"_new\",Ammortamento_Finanziario!$H:$L,5,FALSE),VLOOKUP($M29,TT_Tabelle_Riferimento!$D$127:$H$164,5,FALSE))","v":40},{"$f":"+IFERROR(VLOOKUP(MP$27&\"-\"&$M29&\"_new\",Ammortamento_Finanziario!$H:$L,5,FALSE),VLOOKUP($M29,TT_Tabelle_Riferimento!$D$127:$H$164,5,FALSE))","v":40},{"$f":"+IFERROR(VLOOKUP(MQ$27&\"-\"&$M29&\"_new\",Ammortamento_Finanziario!$H:$L,5,FALSE),VLOOKUP($M29,TT_Tabelle_Riferimento!$D$127:$H$164,5,FALSE))","v":40},{"$f":"+IFERROR(VLOOKUP(MR$27&\"-\"&$M29&\"_new\",Ammortamento_Finanziario!$H:$L,5,FALSE),VLOOKUP($M29,TT_Tabelle_Riferimento!$D$127:$H$164,5,FALSE))","v":40},{"$f":"+IFERROR(VLOOKUP(MS$27&\"-\"&$M29&\"_new\",Ammortamento_Finanziario!$H:$L,5,FALSE),VLOOKUP($M29,TT_Tabelle_Riferimento!$D$127:$H$164,5,FALSE))","v":40},{"$f":"+IFERROR(VLOOKUP(MT$27&\"-\"&$M29&\"_new\",Ammortamento_Finanziario!$H:$L,5,FALSE),VLOOKUP($M29,TT_Tabelle_Riferimento!$D$127:$H$164,5,FALSE))","v":40},{"$f":"+IFERROR(VLOOKUP(MU$27&\"-\"&$M29&\"_new\",Ammortamento_Finanziario!$H:$L,5,FALSE),VLOOKUP($M29,TT_Tabelle_Riferimento!$D$127:$H$164,5,FALSE))","v":40},{"$f":"+IFERROR(VLOOKUP(MV$27&\"-\"&$M29&\"_new\",Ammortamento_Finanziario!$H:$L,5,FALSE),VLOOKUP($M29,TT_Tabelle_Riferimento!$D$127:$H$164,5,FALSE))","v":40},{"$f":"+IFERROR(VLOOKUP(MW$27&\"-\"&$M29&\"_new\",Ammortamento_Finanziario!$H:$L,5,FALSE),VLOOKUP($M29,TT_Tabelle_Riferimento!$D$127:$H$164,5,FALSE))","v":40},{"$f":"+IFERROR(VLOOKUP(MX$27&\"-\"&$M29&\"_new\",Ammortamento_Finanziario!$H:$L,5,FALSE),VLOOKUP($M29,TT_Tabelle_Riferimento!$D$127:$H$164,5,FALSE))","v":40},{"$f":"+IFERROR(VLOOKUP(MY$27&\"-\"&$M29&\"_new\",Ammortamento_Finanziario!$H:$L,5,FALSE),VLOOKUP($M29,TT_Tabelle_Riferimento!$D$127:$H$164,5,FALSE))","v":40},{"$f":"+IFERROR(VLOOKUP(MZ$27&\"-\"&$M29&\"_new\",Ammortamento_Finanziario!$H:$L,5,FALSE),VLOOKUP($M29,TT_Tabelle_Riferimento!$D$127:$H$164,5,FALSE))","v":40},{"$f":"+IFERROR(VLOOKUP(NA$27&\"-\"&$M29&\"_new\",Ammortamento_Finanziario!$H:$L,5,FALSE),VLOOKUP($M29,TT_Tabelle_Riferimento!$D$127:$H$164,5,FALSE))","v":40},{"$f":"+IFERROR(VLOOKUP(NB$27&\"-\"&$M29&\"_new\",Ammortamento_Finanziario!$H:$L,5,FALSE),VLOOKUP($M29,TT_Tabelle_Riferimento!$D$127:$H$164,5,FALSE))","v":40},{"$f":"+IFERROR(VLOOKUP(NC$27&\"-\"&$M29&\"_new\",Ammortamento_Finanziario!$H:$L,5,FALSE),VLOOKUP($M29,TT_Tabelle_Riferimento!$D$127:$H$164,5,FALSE))","v":40},{"$f":"+IFERROR(VLOOKUP(ND$27&\"-\"&$M29&\"_new\",Ammortamento_Finanziario!$H:$L,5,FALSE),VLOOKUP($M29,TT_Tabelle_Riferimento!$D$127:$H$164,5,FALSE))","v":40},{"$f":"+IFERROR(VLOOKUP(NE$27&\"-\"&$M29&\"_new\",Ammortamento_Finanziario!$H:$L,5,FALSE),VLOOKUP($M29,TT_Tabelle_Riferimento!$D$127:$H$164,5,FALSE))","v":40},{"$f":"+IFERROR(VLOOKUP(NF$27&\"-\"&$M29&\"_new\",Ammortamento_Finanziario!$H:$L,5,FALSE),VLOOKUP($M29,TT_Tabelle_Riferimento!$D$127:$H$164,5,FALSE))","v":40},{"$f":"+IFERROR(VLOOKUP(NG$27&\"-\"&$M29&\"_new\",Ammortamento_Finanziario!$H:$L,5,FALSE),VLOOKUP($M29,TT_Tabelle_Riferimento!$D$127:$H$164,5,FALSE))","v":40},{"$f":"+IFERROR(VLOOKUP(NH$27&\"-\"&$M29&\"_new\",Ammortamento_Finanziario!$H:$L,5,FALSE),VLOOKUP($M29,TT_Tabelle_Riferimento!$D$127:$H$164,5,FALSE))","v":40},{"$f":"+IFERROR(VLOOKUP(NI$27&\"-\"&$M29&\"_new\",Ammortamento_Finanziario!$H:$L,5,FALSE),VLOOKUP($M29,TT_Tabelle_Riferimento!$D$127:$H$164,5,FALSE))","v":40},{"$f":"+IFERROR(VLOOKUP(NJ$27&\"-\"&$M29&\"_new\",Ammortamento_Finanziario!$H:$L,5,FALSE),VLOOKUP($M29,TT_Tabelle_Riferimento!$D$127:$H$164,5,FALSE))","v":40},{"$f":"+IFERROR(VLOOKUP(NK$27&\"-\"&$M29&\"_new\",Ammortamento_Finanziario!$H:$L,5,FALSE),VLOOKUP($M29,TT_Tabelle_Riferimento!$D$127:$H$164,5,FALSE))","v":40},{"$f":"+IFERROR(VLOOKUP(NL$27&\"-\"&$M29&\"_new\",Ammortamento_Finanziario!$H:$L,5,FALSE),VLOOKUP($M29,TT_Tabelle_Riferimento!$D$127:$H$164,5,FALSE))","v":40},{"$f":"+IFERROR(VLOOKUP(NM$27&\"-\"&$M29&\"_new\",Ammortamento_Finanziario!$H:$L,5,FALSE),VLOOKUP($M29,TT_Tabelle_Riferimento!$D$127:$H$164,5,FALSE))","v":40},{"$f":"+IFERROR(VLOOKUP(NN$27&\"-\"&$M29&\"_new\",Ammortamento_Finanziario!$H:$L,5,FALSE),VLOOKUP($M29,TT_Tabelle_Riferimento!$D$127:$H$164,5,FALSE))","v":40},{"$f":"+IFERROR(VLOOKUP(NO$27&\"-\"&$M29&\"_new\",Ammortamento_Finanziario!$H:$L,5,FALSE),VLOOKUP($M29,TT_Tabelle_Riferimento!$D$127:$H$164,5,FALSE))","v":40},{"$f":"+IFERROR(VLOOKUP(NP$27&\"-\"&$M29&\"_new\",Ammortamento_Finanziario!$H:$L,5,FALSE),VLOOKUP($M29,TT_Tabelle_Riferimento!$D$127:$H$164,5,FALSE))","v":40},{"$f":"+IFERROR(VLOOKUP(NQ$27&\"-\"&$M29&\"_new\",Ammortamento_Finanziario!$H:$L,5,FALSE),VLOOKUP($M29,TT_Tabelle_Riferimento!$D$127:$H$164,5,FALSE))","v":40},{"$f":"+IFERROR(VLOOKUP(NR$27&\"-\"&$M29&\"_new\",Ammortamento_Finanziario!$H:$L,5,FALSE),VLOOKUP($M29,TT_Tabelle_Riferimento!$D$127:$H$164,5,FALSE))","v":40},{"$f":"+IFERROR(VLOOKUP(NS$27&\"-\"&$M29&\"_new\",Ammortamento_Finanziario!$H:$L,5,FALSE),VLOOKUP($M29,TT_Tabelle_Riferimento!$D$127:$H$164,5,FALSE))","v":40},{"$f":"+IFERROR(VLOOKUP(NT$27&\"-\"&$M29&\"_new\",Ammortamento_Finanziario!$H:$L,5,FALSE),VLOOKUP($M29,TT_Tabelle_Riferimento!$D$127:$H$164,5,FALSE))","v":40},{"$f":"+IFERROR(VLOOKUP(NU$27&\"-\"&$M29&\"_new\",Ammortamento_Finanziario!$H:$L,5,FALSE),VLOOKUP($M29,TT_Tabelle_Riferimento!$D$127:$H$164,5,FALSE))","v":40},{"$f":"+IFERROR(VLOOKUP(NV$27&\"-\"&$M29&\"_new\",Ammortamento_Finanziario!$H:$L,5,FALSE),VLOOKUP($M29,TT_Tabelle_Riferimento!$D$127:$H$164,5,FALSE))","v":40},{"$f":"+IFERROR(VLOOKUP(NW$27&\"-\"&$M29&\"_new\",Ammortamento_Finanziario!$H:$L,5,FALSE),VLOOKUP($M29,TT_Tabelle_Riferimento!$D$127:$H$164,5,FALSE))","v":40},{"$f":"+IFERROR(VLOOKUP(NX$27&\"-\"&$M29&\"_new\",Ammortamento_Finanziario!$H:$L,5,FALSE),VLOOKUP($M29,TT_Tabelle_Riferimento!$D$127:$H$164,5,FALSE))","v":40},{"$f":"+IFERROR(VLOOKUP(NY$27&\"-\"&$M29&\"_new\",Ammortamento_Finanziario!$H:$L,5,FALSE),VLOOKUP($M29,TT_Tabelle_Riferimento!$D$127:$H$164,5,FALSE))","v":40},{"$f":"+IFERROR(VLOOKUP(NZ$27&\"-\"&$M29&\"_new\",Ammortamento_Finanziario!$H:$L,5,FALSE),VLOOKUP($M29,TT_Tabelle_Riferimento!$D$127:$H$164,5,FALSE))","v":40},{"$f":"+IFERROR(VLOOKUP(OA$27&\"-\"&$M29&\"_new\",Ammortamento_Finanziario!$H:$L,5,FALSE),VLOOKUP($M29,TT_Tabelle_Riferimento!$D$127:$H$164,5,FALSE))","v":40},{"$f":"+IFERROR(VLOOKUP(OB$27&\"-\"&$M29&\"_new\",Ammortamento_Finanziario!$H:$L,5,FALSE),VLOOKUP($M29,TT_Tabelle_Riferimento!$D$127:$H$164,5,FALSE))","v":40},{"$f":"+IFERROR(VLOOKUP(OC$27&\"-\"&$M29&\"_new\",Ammortamento_Finanziario!$H:$L,5,FALSE),VLOOKUP($M29,TT_Tabelle_Riferimento!$D$127:$H$164,5,FALSE))","v":40},{"$f":"+IFERROR(VLOOKUP(OD$27&\"-\"&$M29&\"_new\",Ammortamento_Finanziario!$H:$L,5,FALSE),VLOOKUP($M29,TT_Tabelle_Riferimento!$D$127:$H$164,5,FALSE))","v":40},{"$f":"+IFERROR(VLOOKUP(OE$27&\"-\"&$M29&\"_new\",Ammortamento_Finanziario!$H:$L,5,FALSE),VLOOKUP($M29,TT_Tabelle_Riferimento!$D$127:$H$164,5,FALSE))","v":40},{"$f":"+IFERROR(VLOOKUP(OF$27&\"-\"&$M29&\"_new\",Ammortamento_Finanziario!$H:$L,5,FALSE),VLOOKUP($M29,TT_Tabelle_Riferimento!$D$127:$H$164,5,FALSE))","v":40},{"$f":"+IFERROR(VLOOKUP(OG$27&\"-\"&$M29&\"_new\",Ammortamento_Finanziario!$H:$L,5,FALSE),VLOOKUP($M29,TT_Tabelle_Riferimento!$D$127:$H$164,5,FALSE))","v":40},{"$f":"+IFERROR(VLOOKUP(OH$27&\"-\"&$M29&\"_new\",Ammortamento_Finanziario!$H:$L,5,FALSE),VLOOKUP($M29,TT_Tabelle_Riferimento!$D$127:$H$164,5,FALSE))","v":40},{"$f":"+IFERROR(VLOOKUP(OI$27&\"-\"&$M29&\"_new\",Ammortamento_Finanziario!$H:$L,5,FALSE),VLOOKUP($M29,TT_Tabelle_Riferimento!$D$127:$H$164,5,FALSE))","v":40},{"$f":"+IFERROR(VLOOKUP(OJ$27&\"-\"&$M29&\"_new\",Ammortamento_Finanziario!$H:$L,5,FALSE),VLOOKUP($M29,TT_Tabelle_Riferimento!$D$127:$H$164,5,FALSE))","v":40},{"$f":"+IFERROR(VLOOKUP(OK$27&\"-\"&$M29&\"_new\",Ammortamento_Finanziario!$H:$L,5,FALSE),VLOOKUP($M29,TT_Tabelle_Riferimento!$D$127:$H$164,5,FALSE))","v":40},{"$f":"+IFERROR(VLOOKUP(OL$27&\"-\"&$M29&\"_new\",Ammortamento_Finanziario!$H:$L,5,FALSE),VLOOKUP($M29,TT_Tabelle_Riferimento!$D$127:$H$164,5,FALSE))","v":40},{"$f":"+IFERROR(VLOOKUP(OM$27&\"-\"&$M29&\"_new\",Ammortamento_Finanziario!$H:$L,5,FALSE),VLOOKUP($M29,TT_Tabelle_Riferimento!$D$127:$H$164,5,FALSE))","v":40},{"$f":"+IFERROR(VLOOKUP(ON$27&\"-\"&$M29&\"_new\",Ammortamento_Finanziario!$H:$L,5,FALSE),VLOOKUP($M29,TT_Tabelle_Riferimento!$D$127:$H$164,5,FALSE))","v":40},{"$f":"+IFERROR(VLOOKUP(OO$27&\"-\"&$M29&\"_new\",Ammortamento_Finanziario!$H:$L,5,FALSE),VLOOKUP($M29,TT_Tabelle_Riferimento!$D$127:$H$164,5,FALSE))","v":40},{"$f":"+IFERROR(VLOOKUP(OP$27&\"-\"&$M29&\"_new\",Ammortamento_Finanziario!$H:$L,5,FALSE),VLOOKUP($M29,TT_Tabelle_Riferimento!$D$127:$H$164,5,FALSE))","v":40},{"$f":"+IFERROR(VLOOKUP(OQ$27&\"-\"&$M29&\"_new\",Ammortamento_Finanziario!$H:$L,5,FALSE),VLOOKUP($M29,TT_Tabelle_Riferimento!$D$127:$H$164,5,FALSE))","v":40},{"$f":"+IFERROR(VLOOKUP(OR$27&\"-\"&$M29&\"_new\",Ammortamento_Finanziario!$H:$L,5,FALSE),VLOOKUP($M29,TT_Tabelle_Riferimento!$D$127:$H$164,5,FALSE))","v":40},{"$f":"+IFERROR(VLOOKUP(OS$27&\"-\"&$M29&\"_new\",Ammortamento_Finanziario!$H:$L,5,FALSE),VLOOKUP($M29,TT_Tabelle_Riferimento!$D$127:$H$164,5,FALSE))","v":40},{"$f":"+IFERROR(VLOOKUP(OT$27&\"-\"&$M29&\"_new\",Ammortamento_Finanziario!$H:$L,5,FALSE),VLOOKUP($M29,TT_Tabelle_Riferimento!$D$127:$H$164,5,FALSE))","v":40},{"$f":"+IFERROR(VLOOKUP(OU$27&\"-\"&$M29&\"_new\",Ammortamento_Finanziario!$H:$L,5,FALSE),VLOOKUP($M29,TT_Tabelle_Riferimento!$D$127:$H$164,5,FALSE))","v":40},{"$f":"+IFERROR(VLOOKUP(OV$27&\"-\"&$M29&\"_new\",Ammortamento_Finanziario!$H:$L,5,FALSE),VLOOKUP($M29,TT_Tabelle_Riferimento!$D$127:$H$164,5,FALSE))","v":40},{"$f":"+IFERROR(VLOOKUP(OW$27&\"-\"&$M29&\"_new\",Ammortamento_Finanziario!$H:$L,5,FALSE),VLOOKUP($M29,TT_Tabelle_Riferimento!$D$127:$H$164,5,FALSE))","v":40},{"$f":"+IFERROR(VLOOKUP(OX$27&\"-\"&$M29&\"_new\",Ammortamento_Finanziario!$H:$L,5,FALSE),VLOOKUP($M29,TT_Tabelle_Riferimento!$D$127:$H$164,5,FALSE))","v":40},{"$f":"+IFERROR(VLOOKUP(OY$27&\"-\"&$M29&\"_new\",Ammortamento_Finanziario!$H:$L,5,FALSE),VLOOKUP($M29,TT_Tabelle_Riferimento!$D$127:$H$164,5,FALSE))","v":40},{"$f":"+IFERROR(VLOOKUP(OZ$27&\"-\"&$M29&\"_new\",Ammortamento_Finanziario!$H:$L,5,FALSE),VLOOKUP($M29,TT_Tabelle_Riferimento!$D$127:$H$164,5,FALSE))","v":40},{"$f":"+IFERROR(VLOOKUP(PA$27&\"-\"&$M29&\"_new\",Ammortamento_Finanziario!$H:$L,5,FALSE),VLOOKUP($M29,TT_Tabelle_Riferimento!$D$127:$H$164,5,FALSE))","v":40},{"$f":"+IFERROR(VLOOKUP(PB$27&\"-\"&$M29&\"_new\",Ammortamento_Finanziario!$H:$L,5,FALSE),VLOOKUP($M29,TT_Tabelle_Riferimento!$D$127:$H$164,5,FALSE))","v":40},{"$f":"+IFERROR(VLOOKUP(PC$27&\"-\"&$M29&\"_new\",Ammortamento_Finanziario!$H:$L,5,FALSE),VLOOKUP($M29,TT_Tabelle_Riferimento!$D$127:$H$164,5,FALSE))","v":40},{"$f":"+IFERROR(VLOOKUP(PD$27&\"-\"&$M29&\"_new\",Ammortamento_Finanziario!$H:$L,5,FALSE),VLOOKUP($M29,TT_Tabelle_Riferimento!$D$127:$H$164,5,FALSE))","v":40},{"$f":"+IFERROR(VLOOKUP(PE$27&\"-\"&$M29&\"_new\",Ammortamento_Finanziario!$H:$L,5,FALSE),VLOOKUP($M29,TT_Tabelle_Riferimento!$D$127:$H$164,5,FALSE))","v":40},{"$f":"+IFERROR(VLOOKUP(PF$27&\"-\"&$M29&\"_new\",Ammortamento_Finanziario!$H:$L,5,FALSE),VLOOKUP($M29,TT_Tabelle_Riferimento!$D$127:$H$164,5,FALSE))","v":40},{"$f":"+IFERROR(VLOOKUP(PG$27&\"-\"&$M29&\"_new\",Ammortamento_Finanziario!$H:$L,5,FALSE),VLOOKUP($M29,TT_Tabelle_Riferimento!$D$127:$H$164,5,FALSE))","v":40},{"$f":"+IFERROR(VLOOKUP(PH$27&\"-\"&$M29&\"_new\",Ammortamento_Finanziario!$H:$L,5,FALSE),VLOOKUP($M29,TT_Tabelle_Riferimento!$D$127:$H$164,5,FALSE))","v":40},{"$f":"+IFERROR(VLOOKUP(PI$27&\"-\"&$M29&\"_new\",Ammortamento_Finanziario!$H:$L,5,FALSE),VLOOKUP($M29,TT_Tabelle_Riferimento!$D$127:$H$164,5,FALSE))","v":40},{"$f":"+IFERROR(VLOOKUP(PJ$27&\"-\"&$M29&\"_new\",Ammortamento_Finanziario!$H:$L,5,FALSE),VLOOKUP($M29,TT_Tabelle_Riferimento!$D$127:$H$164,5,FALSE))","v":40},{"$f":"+IFERROR(VLOOKUP(PK$27&\"-\"&$M29&\"_new\",Ammortamento_Finanziario!$H:$L,5,FALSE),VLOOKUP($M29,TT_Tabelle_Riferimento!$D$127:$H$164,5,FALSE))","v":40},{"$f":"+IFERROR(VLOOKUP(PL$27&\"-\"&$M29&\"_new\",Ammortamento_Finanziario!$H:$L,5,FALSE),VLOOKUP($M29,TT_Tabelle_Riferimento!$D$127:$H$164,5,FALSE))","v":40},{"$f":"+IFERROR(VLOOKUP(PM$27&\"-\"&$M29&\"_new\",Ammortamento_Finanziario!$H:$L,5,FALSE),VLOOKUP($M29,TT_Tabelle_Riferimento!$D$127:$H$164,5,FALSE))","v":40},{"$f":"+IFERROR(VLOOKUP(PN$27&\"-\"&$M29&\"_new\",Ammortamento_Finanziario!$H:$L,5,FALSE),VLOOKUP($M29,TT_Tabelle_Riferimento!$D$127:$H$164,5,FALSE))","v":40},{"$f":"+IFERROR(VLOOKUP(PO$27&\"-\"&$M29&\"_new\",Ammortamento_Finanziario!$H:$L,5,FALSE),VLOOKUP($M29,TT_Tabelle_Riferimento!$D$127:$H$164,5,FALSE))","v":40},{"$f":"+IFERROR(VLOOKUP(PP$27&\"-\"&$M29&\"_new\",Ammortamento_Finanziario!$H:$L,5,FALSE),VLOOKUP($M29,TT_Tabelle_Riferimento!$D$127:$H$164,5,FALSE))","v":40},{"$f":"+IFERROR(VLOOKUP(PQ$27&\"-\"&$M29&\"_new\",Ammortamento_Finanziario!$H:$L,5,FALSE),VLOOKUP($M29,TT_Tabelle_Riferimento!$D$127:$H$164,5,FALSE))","v":40},{"$f":"+IFERROR(VLOOKUP(PR$27&\"-\"&$M29&\"_new\",Ammortamento_Finanziario!$H:$L,5,FALSE),VLOOKUP($M29,TT_Tabelle_Riferimento!$D$127:$H$164,5,FALSE))","v":40},{"$f":"+IFERROR(VLOOKUP(PS$27&\"-\"&$M29&\"_new\",Ammortamento_Finanziario!$H:$L,5,FALSE),VLOOKUP($M29,TT_Tabelle_Riferimento!$D$127:$H$164,5,FALSE))","v":40},{"$f":"+IFERROR(VLOOKUP(PT$27&\"-\"&$M29&\"_new\",Ammortamento_Finanziario!$H:$L,5,FALSE),VLOOKUP($M29,TT_Tabelle_Riferimento!$D$127:$H$164,5,FALSE))","v":40},{"$f":"+IFERROR(VLOOKUP(PU$27&\"-\"&$M29&\"_new\",Ammortamento_Finanziario!$H:$L,5,FALSE),VLOOKUP($M29,TT_Tabelle_Riferimento!$D$127:$H$164,5,FALSE))","v":40},{"$f":"+IFERROR(VLOOKUP(PV$27&\"-\"&$M29&\"_new\",Ammortamento_Finanziario!$H:$L,5,FALSE),VLOOKUP($M29,TT_Tabelle_Riferimento!$D$127:$H$164,5,FALSE))","v":40},{"$f":"+IFERROR(VLOOKUP(PW$27&\"-\"&$M29&\"_new\",Ammortamento_Finanziario!$H:$L,5,FALSE),VLOOKUP($M29,TT_Tabelle_Riferimento!$D$127:$H$164,5,FALSE))","v":40},{"$f":"+IFERROR(VLOOKUP(PX$27&\"-\"&$M29&\"_new\",Ammortamento_Finanziario!$H:$L,5,FALSE),VLOOKUP($M29,TT_Tabelle_Riferimento!$D$127:$H$164,5,FALSE))","v":40},{"$f":"+IFERROR(VLOOKUP(PY$27&\"-\"&$M29&\"_new\",Ammortamento_Finanziario!$H:$L,5,FALSE),VLOOKUP($M29,TT_Tabelle_Riferimento!$D$127:$H$164,5,FALSE))","v":40},{"$f":"+IFERROR(VLOOKUP(PZ$27&\"-\"&$M29&\"_new\",Ammortamento_Finanziario!$H:$L,5,FALSE),VLOOKUP($M29,TT_Tabelle_Riferimento!$D$127:$H$164,5,FALSE))","v":40},{"$f":"+IFERROR(VLOOKUP(QA$27&\"-\"&$M29&\"_new\",Ammortamento_Finanziario!$H:$L,5,FALSE),VLOOKUP($M29,TT_Tabelle_Riferimento!$D$127:$H$164,5,FALSE))","v":40},{"$f":"+IFERROR(VLOOKUP(QB$27&\"-\"&$M29&\"_new\",Ammortamento_Finanziario!$H:$L,5,FALSE),VLOOKUP($M29,TT_Tabelle_Riferimento!$D$127:$H$164,5,FALSE))","v":40},{"$f":"+IFERROR(VLOOKUP(QC$27&\"-\"&$M29&\"_new\",Ammortamento_Finanziario!$H:$L,5,FALSE),VLOOKUP($M29,TT_Tabelle_Riferimento!$D$127:$H$164,5,FALSE))","v":40},{"$f":"+IFERROR(VLOOKUP(QD$27&\"-\"&$M29&\"_new\",Ammortamento_Finanziario!$H:$L,5,FALSE),VLOOKUP($M29,TT_Tabelle_Riferimento!$D$127:$H$164,5,FALSE))","v":40},{"$f":"+IFERROR(VLOOKUP(QE$27&\"-\"&$M29&\"_new\",Ammortamento_Finanziario!$H:$L,5,FALSE),VLOOKUP($M29,TT_Tabelle_Riferimento!$D$127:$H$164,5,FALSE))","v":40},{"$f":"+IFERROR(VLOOKUP(QF$27&\"-\"&$M29&\"_new\",Ammortamento_Finanziario!$H:$L,5,FALSE),VLOOKUP($M29,TT_Tabelle_Riferimento!$D$127:$H$164,5,FALSE))","v":40},{"$f":"+IFERROR(VLOOKUP(QG$27&\"-\"&$M29&\"_new\",Ammortamento_Finanziario!$H:$L,5,FALSE),VLOOKUP($M29,TT_Tabelle_Riferimento!$D$127:$H$164,5,FALSE))","v":40},{"$f":"+IFERROR(VLOOKUP(QH$27&\"-\"&$M29&\"_new\",Ammortamento_Finanziario!$H:$L,5,FALSE),VLOOKUP($M29,TT_Tabelle_Riferimento!$D$127:$H$164,5,FALSE))","v":40},{"$f":"+IFERROR(VLOOKUP(QI$27&\"-\"&$M29&\"_new\",Ammortamento_Finanziario!$H:$L,5,FALSE),VLOOKUP($M29,TT_Tabelle_Riferimento!$D$127:$H$164,5,FALSE))","v":40},{"$f":"+IFERROR(VLOOKUP(QJ$27&\"-\"&$M29&\"_new\",Ammortamento_Finanziario!$H:$L,5,FALSE),VLOOKUP($M29,TT_Tabelle_Riferimento!$D$127:$H$164,5,FALSE))","v":40},{"$f":"+IFERROR(VLOOKUP(QK$27&\"-\"&$M29&\"_new\",Ammortamento_Finanziario!$H:$L,5,FALSE),VLOOKUP($M29,TT_Tabelle_Riferimento!$D$127:$H$164,5,FALSE))","v":40},{"$f":"+IFERROR(VLOOKUP(QL$27&\"-\"&$M29&\"_new\",Ammortamento_Finanziario!$H:$L,5,FALSE),VLOOKUP($M29,TT_Tabelle_Riferimento!$D$127:$H$164,5,FALSE))","v":40},{"$f":"+IFERROR(VLOOKUP(QM$27&\"-\"&$M29&\"_new\",Ammortamento_Finanziario!$H:$L,5,FALSE),VLOOKUP($M29,TT_Tabelle_Riferimento!$D$127:$H$164,5,FALSE))","v":40},{"$f":"+IFERROR(VLOOKUP(QN$27&\"-\"&$M29&\"_new\",Ammortamento_Finanziario!$H:$L,5,FALSE),VLOOKUP($M29,TT_Tabelle_Riferimento!$D$127:$H$164,5,FALSE))","v":40},{"$f":"+IFERROR(VLOOKUP(QO$27&\"-\"&$M29&\"_new\",Ammortamento_Finanziario!$H:$L,5,FALSE),VLOOKUP($M29,TT_Tabelle_Riferimento!$D$127:$H$164,5,FALSE))","v":40},{"$f":"+IFERROR(VLOOKUP(QP$27&\"-\"&$M29&\"_new\",Ammortamento_Finanziario!$H:$L,5,FALSE),VLOOKUP($M29,TT_Tabelle_Riferimento!$D$127:$H$164,5,FALSE))","v":40},{"$f":"+IFERROR(VLOOKUP(QQ$27&\"-\"&$M29&\"_new\",Ammortamento_Finanziario!$H:$L,5,FALSE),VLOOKUP($M29,TT_Tabelle_Riferimento!$D$127:$H$164,5,FALSE))","v":40},{"$f":"+IFERROR(VLOOKUP(QR$27&\"-\"&$M29&\"_new\",Ammortamento_Finanziario!$H:$L,5,FALSE),VLOOKUP($M29,TT_Tabelle_Riferimento!$D$127:$H$164,5,FALSE))","v":40},{"$f":"+IFERROR(VLOOKUP(QS$27&\"-\"&$M29&\"_new\",Ammortamento_Finanziario!$H:$L,5,FALSE),VLOOKUP($M29,TT_Tabelle_Riferimento!$D$127:$H$164,5,FALSE))","v":40},{"$f":"+IFERROR(VLOOKUP(QT$27&\"-\"&$M29&\"_new\",Ammortamento_Finanziario!$H:$L,5,FALSE),VLOOKUP($M29,TT_Tabelle_Riferimento!$D$127:$H$164,5,FALSE))","v":40},{"$f":"+IFERROR(VLOOKUP(QU$27&\"-\"&$M29&\"_new\",Ammortamento_Finanziario!$H:$L,5,FALSE),VLOOKUP($M29,TT_Tabelle_Riferimento!$D$127:$H$164,5,FALSE))","v":40},{"$f":"+IFERROR(VLOOKUP(QV$27&\"-\"&$M29&\"_new\",Ammortamento_Finanziario!$H:$L,5,FALSE),VLOOKUP($M29,TT_Tabelle_Riferimento!$D$127:$H$164,5,FALSE))","v":40},{"$f":"+IFERROR(VLOOKUP(QW$27&\"-\"&$M29&\"_new\",Ammortamento_Finanziario!$H:$L,5,FALSE),VLOOKUP($M29,TT_Tabelle_Riferimento!$D$127:$H$164,5,FALSE))","v":40},{"$f":"+IFERROR(VLOOKUP(QX$27&\"-\"&$M29&\"_new\",Ammortamento_Finanziario!$H:$L,5,FALSE),VLOOKUP($M29,TT_Tabelle_Riferimento!$D$127:$H$164,5,FALSE))","v":40},{"$f":"+IFERROR(VLOOKUP(QY$27&\"-\"&$M29&\"_new\",Ammortamento_Finanziario!$H:$L,5,FALSE),VLOOKUP($M29,TT_Tabelle_Riferimento!$D$127:$H$164,5,FALSE))","v":40},{"$f":"+IFERROR(VLOOKUP(QZ$27&\"-\"&$M29&\"_new\",Ammortamento_Finanziario!$H:$L,5,FALSE),VLOOKUP($M29,TT_Tabelle_Riferimento!$D$127:$H$164,5,FALSE))","v":40},{"$f":"+IFERROR(VLOOKUP(RA$27&\"-\"&$M29&\"_new\",Ammortamento_Finanziario!$H:$L,5,FALSE),VLOOKUP($M29,TT_Tabelle_Riferimento!$D$127:$H$164,5,FALSE))","v":40},{"$f":"+IFERROR(VLOOKUP(RB$27&\"-\"&$M29&\"_new\",Ammortamento_Finanziario!$H:$L,5,FALSE),VLOOKUP($M29,TT_Tabelle_Riferimento!$D$127:$H$164,5,FALSE))","v":40},{"$f":"+IFERROR(VLOOKUP(RC$27&\"-\"&$M29&\"_new\",Ammortamento_Finanziario!$H:$L,5,FALSE),VLOOKUP($M29,TT_Tabelle_Riferimento!$D$127:$H$164,5,FALSE))","v":40},{"$f":"+IFERROR(VLOOKUP(RD$27&\"-\"&$M29&\"_new\",Ammortamento_Finanziario!$H:$L,5,FALSE),VLOOKUP($M29,TT_Tabelle_Riferimento!$D$127:$H$164,5,FALSE))","v":40},{"$f":"+IFERROR(VLOOKUP(RE$27&\"-\"&$M29&\"_new\",Ammortamento_Finanziario!$H:$L,5,FALSE),VLOOKUP($M29,TT_Tabelle_Riferimento!$D$127:$H$164,5,FALSE))","v":40},{"$f":"+IFERROR(VLOOKUP(RF$27&\"-\"&$M29&\"_new\",Ammortamento_Finanziario!$H:$L,5,FALSE),VLOOKUP($M29,TT_Tabelle_Riferimento!$D$127:$H$164,5,FALSE))","v":40},{"$f":"+IFERROR(VLOOKUP(RG$27&\"-\"&$M29&\"_new\",Ammortamento_Finanziario!$H:$L,5,FALSE),VLOOKUP($M29,TT_Tabelle_Riferimento!$D$127:$H$164,5,FALSE))","v":40},{"$f":"+IFERROR(VLOOKUP(RH$27&\"-\"&$M29&\"_new\",Ammortamento_Finanziario!$H:$L,5,FALSE),VLOOKUP($M29,TT_Tabelle_Riferimento!$D$127:$H$164,5,FALSE))","v":40},{"$f":"+IFERROR(VLOOKUP(RI$27&\"-\"&$M29&\"_new\",Ammortamento_Finanziario!$H:$L,5,FALSE),VLOOKUP($M29,TT_Tabelle_Riferimento!$D$127:$H$164,5,FALSE))","v":40},{"$f":"+IFERROR(VLOOKUP(RJ$27&\"-\"&$M29&\"_new\",Ammortamento_Finanziario!$H:$L,5,FALSE),VLOOKUP($M29,TT_Tabelle_Riferimento!$D$127:$H$164,5,FALSE))","v":40},{"$f":"+IFERROR(VLOOKUP(RK$27&\"-\"&$M29&\"_new\",Ammortamento_Finanziario!$H:$L,5,FALSE),VLOOKUP($M29,TT_Tabelle_Riferimento!$D$127:$H$164,5,FALSE))","v":40},{"$f":"+IFERROR(VLOOKUP(RL$27&\"-\"&$M29&\"_new\",Ammortamento_Finanziario!$H:$L,5,FALSE),VLOOKUP($M29,TT_Tabelle_Riferimento!$D$127:$H$164,5,FALSE))","v":40},{"$f":"+IFERROR(VLOOKUP(RM$27&\"-\"&$M29&\"_new\",Ammortamento_Finanziario!$H:$L,5,FALSE),VLOOKUP($M29,TT_Tabelle_Riferimento!$D$127:$H$164,5,FALSE))","v":40},{"$f":"+IFERROR(VLOOKUP(RN$27&\"-\"&$M29&\"_new\",Ammortamento_Finanziario!$H:$L,5,FALSE),VLOOKUP($M29,TT_Tabelle_Riferimento!$D$127:$H$164,5,FALSE))","v":40},{"$f":"+IFERROR(VLOOKUP(RO$27&\"-\"&$M29&\"_new\",Ammortamento_Finanziario!$H:$L,5,FALSE),VLOOKUP($M29,TT_Tabelle_Riferimento!$D$127:$H$164,5,FALSE))","v":40},{"$f":"+IFERROR(VLOOKUP(RP$27&\"-\"&$M29&\"_new\",Ammortamento_Finanziario!$H:$L,5,FALSE),VLOOKUP($M29,TT_Tabelle_Riferimento!$D$127:$H$164,5,FALSE))","v":40},{"$f":"+IFERROR(VLOOKUP(RQ$27&\"-\"&$M29&\"_new\",Ammortamento_Finanziario!$H:$L,5,FALSE),VLOOKUP($M29,TT_Tabelle_Riferimento!$D$127:$H$164,5,FALSE))","v":40},{"$f":"+IFERROR(VLOOKUP(RR$27&\"-\"&$M29&\"_new\",Ammortamento_Finanziario!$H:$L,5,FALSE),VLOOKUP($M29,TT_Tabelle_Riferimento!$D$127:$H$164,5,FALSE))","v":40},{"$f":"+IFERROR(VLOOKUP(RS$27&\"-\"&$M29&\"_new\",Ammortamento_Finanziario!$H:$L,5,FALSE),VLOOKUP($M29,TT_Tabelle_Riferimento!$D$127:$H$164,5,FALSE))","v":40},{"$f":"+IFERROR(VLOOKUP(RT$27&\"-\"&$M29&\"_new\",Ammortamento_Finanziario!$H:$L,5,FALSE),VLOOKUP($M29,TT_Tabelle_Riferimento!$D$127:$H$164,5,FALSE))","v":40},{"$f":"+IFERROR(VLOOKUP(RU$27&\"-\"&$M29&\"_new\",Ammortamento_Finanziario!$H:$L,5,FALSE),VLOOKUP($M29,TT_Tabelle_Riferimento!$D$127:$H$164,5,FALSE))","v":40},{"$f":"+IFERROR(VLOOKUP(RV$27&\"-\"&$M29&\"_new\",Ammortamento_Finanziario!$H:$L,5,FALSE),VLOOKUP($M29,TT_Tabelle_Riferimento!$D$127:$H$164,5,FALSE))","v":40}]
[null,null,null,"IML",{"$f":"+SUMIF(IMN_gestore!$E:$E,2022,IMN_gestore!$P:$P)","v":0},{"$f":"SUMIF(IMN_gestore!$E:$E,2023,IMN_gestore!$AA:$AA)","v":0},{"$f":"+SUMIF(IMN_gestore!$E:$E,2024,IMN_gestore!$AL:$AL)","v":0},{"$f":"SUMIF(IMN_gestore!$E:$E,2025,IMN_gestore!$AW:$AW)","v":0},{"$f":"SUMIF(IMN_gestore!$E:$E,2026,IMN_gestore!$BH:$BH)","v":0},{"$f":"SUMIF(IMN_gestore!$E:$E,2027,IMN_gestore!$BS:$BS)","v":0},null,null,3,0,0,0,0,0,0,0,0,0,0,0,0,0,0,0,0,0,0,0,0,0,0,0,0,0,0,0,0,0,0,0,0,0,0,0,0,0,0,0,0,0,0,0,0,0,0,0,0,0,0,0,0,0,0,0,0,0,0,0,0,0,0,0,0,0,0,0,0,0,0,0,0,0,0,0,0,0,0,0,0,0,0,0,0,0,0,0,0,0,0,0,0,0,0,0,0,0,0,0,0,0,0,0,0,0,0,0,0,0,0,0,0,0,0,0,0,0,0,0,0,0,0,0,0,0,0,0,0,0,0,0,0,0,0,0,0,0,0,0,0,0,0,0,0,0,0,0,0,0,0,0,0,0,0,0,0,0,0,0,0,0,0,0,0,0,0,0,0,0,0,0,0,0,0,0,0,0,0,0,0,0,0,0,0,0,0,0,0,0,0,0,0,0,0,0,0,0,0,0,0,0,0,0,0,0,0,0,0,0,0,0,0,0,0,0,0,0,0,0,0,0,0,0,0,0,0,0,0,0,0,0,0,0,0,0,0,0,0,0,0,0,0,0,0,0,0,0,0,0,0,0,0,0,0,0,0,0,0,0,0,0,0,0,0,0,0,0,0,0,0,0,0,0,0,0,0,0,0,0,0,0,0,0,0,0,0,0,0,0,{"$f":"+IFERROR(VLOOKUP(KQ$27&\"-\"&$M30&\"_new\",Ammortamento_Finanziario!$H:$L,5,FALSE),VLOOKUP($M30,TT_Tabelle_Riferimento!$D$127:$H$164,5,FALSE))","v":40},{"$f":"+IFERROR(VLOOKUP(KR$27&\"-\"&$M30&\"_new\",Ammortamento_Finanziario!$H:$L,5,FALSE),VLOOKUP($M30,TT_Tabelle_Riferimento!$D$127:$H$164,5,FALSE))","v":40},{"$f":"+IFERROR(VLOOKUP(KS$27&\"-\"&$M30&\"_new\",Ammortamento_Finanziario!$H:$L,5,FALSE),VLOOKUP($M30,TT_Tabelle_Riferimento!$D$127:$H$164,5,FALSE))","v":40},{"$f":"+IFERROR(VLOOKUP(KT$27&\"-\"&$M30&\"_new\",Ammortamento_Finanziario!$H:$L,5,FALSE),VLOOKUP($M30,TT_Tabelle_Riferimento!$D$127:$H$164,5,FALSE))","v":40},{"$f":"+IFERROR(VLOOKUP(KU$27&\"-\"&$M30&\"_new\",Ammortamento_Finanziario!$H:$L,5,FALSE),VLOOKUP($M30,TT_Tabelle_Riferimento!$D$127:$H$164,5,FALSE))","v":40},{"$f":"+IFERROR(VLOOKUP(KV$27&\"-\"&$M30&\"_new\",Ammortamento_Finanziario!$H:$L,5,FALSE),VLOOKUP($M30,TT_Tabelle_Riferimento!$D$127:$H$164,5,FALSE))","v":40},{"$f":"+IFERROR(VLOOKUP(KW$27&\"-\"&$M30&\"_new\",Ammortamento_Finanziario!$H:$L,5,FALSE),VLOOKUP($M30,TT_Tabelle_Riferimento!$D$127:$H$164,5,FALSE))","v":40},{"$f":"+IFERROR(VLOOKUP(KX$27&\"-\"&$M30&\"_new\",Ammortamento_Finanziario!$H:$L,5,FALSE),VLOOKUP($M30,TT_Tabelle_Riferimento!$D$127:$H$164,5,FALSE))","v":40},{"$f":"+IFERROR(VLOOKUP(KY$27&\"-\"&$M30&\"_new\",Ammortamento_Finanziario!$H:$L,5,FALSE),VLOOKUP($M30,TT_Tabelle_Riferimento!$D$127:$H$164,5,FALSE))","v":40},{"$f":"+IFERROR(VLOOKUP(KZ$27&\"-\"&$M30&\"_new\",Ammortamento_Finanziario!$H:$L,5,FALSE),VLOOKUP($M30,TT_Tabelle_Riferimento!$D$127:$H$164,5,FALSE))","v":40},{"$f":"+IFERROR(VLOOKUP(LA$27&\"-\"&$M30&\"_new\",Ammortamento_Finanziario!$H:$L,5,FALSE),VLOOKUP($M30,TT_Tabelle_Riferimento!$D$127:$H$164,5,FALSE))","v":40},{"$f":"+IFERROR(VLOOKUP(LB$27&\"-\"&$M30&\"_new\",Ammortamento_Finanziario!$H:$L,5,FALSE),VLOOKUP($M30,TT_Tabelle_Riferimento!$D$127:$H$164,5,FALSE))","v":40},{"$f":"+IFERROR(VLOOKUP(LC$27&\"-\"&$M30&\"_new\",Ammortamento_Finanziario!$H:$L,5,FALSE),VLOOKUP($M30,TT_Tabelle_Riferimento!$D$127:$H$164,5,FALSE))","v":40},{"$f":"+IFERROR(VLOOKUP(LD$27&\"-\"&$M30&\"_new\",Ammortamento_Finanziario!$H:$L,5,FALSE),VLOOKUP($M30,TT_Tabelle_Riferimento!$D$127:$H$164,5,FALSE))","v":40},{"$f":"+IFERROR(VLOOKUP(LE$27&\"-\"&$M30&\"_new\",Ammortamento_Finanziario!$H:$L,5,FALSE),VLOOKUP($M30,TT_Tabelle_Riferimento!$D$127:$H$164,5,FALSE))","v":40},{"$f":"+IFERROR(VLOOKUP(LF$27&\"-\"&$M30&\"_new\",Ammortamento_Finanziario!$H:$L,5,FALSE),VLOOKUP($M30,TT_Tabelle_Riferimento!$D$127:$H$164,5,FALSE))","v":40},{"$f":"+IFERROR(VLOOKUP(LG$27&\"-\"&$M30&\"_new\",Ammortamento_Finanziario!$H:$L,5,FALSE),VLOOKUP($M30,TT_Tabelle_Riferimento!$D$127:$H$164,5,FALSE))","v":40},{"$f":"+IFERROR(VLOOKUP(LH$27&\"-\"&$M30&\"_new\",Ammortamento_Finanziario!$H:$L,5,FALSE),VLOOKUP($M30,TT_Tabelle_Riferimento!$D$127:$H$164,5,FALSE))","v":40},{"$f":"+IFERROR(VLOOKUP(LI$27&\"-\"&$M30&\"_new\",Ammortamento_Finanziario!$H:$L,5,FALSE),VLOOKUP($M30,TT_Tabelle_Riferimento!$D$127:$H$164,5,FALSE))","v":40},{"$f":"+IFERROR(VLOOKUP(LJ$27&\"-\"&$M30&\"_new\",Ammortamento_Finanziario!$H:$L,5,FALSE),VLOOKUP($M30,TT_Tabelle_Riferimento!$D$127:$H$164,5,FALSE))","v":40},{"$f":"+IFERROR(VLOOKUP(LK$27&\"-\"&$M30&\"_new\",Ammortamento_Finanziario!$H:$L,5,FALSE),VLOOKUP($M30,TT_Tabelle_Riferimento!$D$127:$H$164,5,FALSE))","v":40},{"$f":"+IFERROR(VLOOKUP(LL$27&\"-\"&$M30&\"_new\",Ammortamento_Finanziario!$H:$L,5,FALSE),VLOOKUP($M30,TT_Tabelle_Riferimento!$D$127:$H$164,5,FALSE))","v":40},{"$f":"+IFERROR(VLOOKUP(LM$27&\"-\"&$M30&\"_new\",Ammortamento_Finanziario!$H:$L,5,FALSE),VLOOKUP($M30,TT_Tabelle_Riferimento!$D$127:$H$164,5,FALSE))","v":40},{"$f":"+IFERROR(VLOOKUP(LN$27&\"-\"&$M30&\"_new\",Ammortamento_Finanziario!$H:$L,5,FALSE),VLOOKUP($M30,TT_Tabelle_Riferimento!$D$127:$H$164,5,FALSE))","v":40},{"$f":"+IFERROR(VLOOKUP(LO$27&\"-\"&$M30&\"_new\",Ammortamento_Finanziario!$H:$L,5,FALSE),VLOOKUP($M30,TT_Tabelle_Riferimento!$D$127:$H$164,5,FALSE))","v":40},{"$f":"+IFERROR(VLOOKUP(LP$27&\"-\"&$M30&\"_new\",Ammortamento_Finanziario!$H:$L,5,FALSE),VLOOKUP($M30,TT_Tabelle_Riferimento!$D$127:$H$164,5,FALSE))","v":40},{"$f":"+IFERROR(VLOOKUP(LQ$27&\"-\"&$M30&\"_new\",Ammortamento_Finanziario!$H:$L,5,FALSE),VLOOKUP($M30,TT_Tabelle_Riferimento!$D$127:$H$164,5,FALSE))","v":40},{"$f":"+IFERROR(VLOOKUP(LR$27&\"-\"&$M30&\"_new\",Ammortamento_Finanziario!$H:$L,5,FALSE),VLOOKUP($M30,TT_Tabelle_Riferimento!$D$127:$H$164,5,FALSE))","v":40},{"$f":"+IFERROR(VLOOKUP(LS$27&\"-\"&$M30&\"_new\",Ammortamento_Finanziario!$H:$L,5,FALSE),VLOOKUP($M30,TT_Tabelle_Riferimento!$D$127:$H$164,5,FALSE))","v":40},{"$f":"+IFERROR(VLOOKUP(LT$27&\"-\"&$M30&\"_new\",Ammortamento_Finanziario!$H:$L,5,FALSE),VLOOKUP($M30,TT_Tabelle_Riferimento!$D$127:$H$164,5,FALSE))","v":40},{"$f":"+IFERROR(VLOOKUP(LU$27&\"-\"&$M30&\"_new\",Ammortamento_Finanziario!$H:$L,5,FALSE),VLOOKUP($M30,TT_Tabelle_Riferimento!$D$127:$H$164,5,FALSE))","v":40},{"$f":"+IFERROR(VLOOKUP(LV$27&\"-\"&$M30&\"_new\",Ammortamento_Finanziario!$H:$L,5,FALSE),VLOOKUP($M30,TT_Tabelle_Riferimento!$D$127:$H$164,5,FALSE))","v":40},{"$f":"+IFERROR(VLOOKUP(LW$27&\"-\"&$M30&\"_new\",Ammortamento_Finanziario!$H:$L,5,FALSE),VLOOKUP($M30,TT_Tabelle_Riferimento!$D$127:$H$164,5,FALSE))","v":40},{"$f":"+IFERROR(VLOOKUP(LX$27&\"-\"&$M30&\"_new\",Ammortamento_Finanziario!$H:$L,5,FALSE),VLOOKUP($M30,TT_Tabelle_Riferimento!$D$127:$H$164,5,FALSE))","v":40},{"$f":"+IFERROR(VLOOKUP(LY$27&\"-\"&$M30&\"_new\",Ammortamento_Finanziario!$H:$L,5,FALSE),VLOOKUP($M30,TT_Tabelle_Riferimento!$D$127:$H$164,5,FALSE))","v":40},{"$f":"+IFERROR(VLOOKUP(LZ$27&\"-\"&$M30&\"_new\",Ammortamento_Finanziario!$H:$L,5,FALSE),VLOOKUP($M30,TT_Tabelle_Riferimento!$D$127:$H$164,5,FALSE))","v":40},{"$f":"+IFERROR(VLOOKUP(MA$27&\"-\"&$M30&\"_new\",Ammortamento_Finanziario!$H:$L,5,FALSE),VLOOKUP($M30,TT_Tabelle_Riferimento!$D$127:$H$164,5,FALSE))","v":40},{"$f":"+IFERROR(VLOOKUP(MB$27&\"-\"&$M30&\"_new\",Ammortamento_Finanziario!$H:$L,5,FALSE),VLOOKUP($M30,TT_Tabelle_Riferimento!$D$127:$H$164,5,FALSE))","v":40},{"$f":"+IFERROR(VLOOKUP(MC$27&\"-\"&$M30&\"_new\",Ammortamento_Finanziario!$H:$L,5,FALSE),VLOOKUP($M30,TT_Tabelle_Riferimento!$D$127:$H$164,5,FALSE))","v":40},{"$f":"+IFERROR(VLOOKUP(MD$27&\"-\"&$M30&\"_new\",Ammortamento_Finanziario!$H:$L,5,FALSE),VLOOKUP($M30,TT_Tabelle_Riferimento!$D$127:$H$164,5,FALSE))","v":40},{"$f":"+IFERROR(VLOOKUP(ME$27&\"-\"&$M30&\"_new\",Ammortamento_Finanziario!$H:$L,5,FALSE),VLOOKUP($M30,TT_Tabelle_Riferimento!$D$127:$H$164,5,FALSE))","v":40},{"$f":"+IFERROR(VLOOKUP(MF$27&\"-\"&$M30&\"_new\",Ammortamento_Finanziario!$H:$L,5,FALSE),VLOOKUP($M30,TT_Tabelle_Riferimento!$D$127:$H$164,5,FALSE))","v":40},{"$f":"+IFERROR(VLOOKUP(MG$27&\"-\"&$M30&\"_new\",Ammortamento_Finanziario!$H:$L,5,FALSE),VLOOKUP($M30,TT_Tabelle_Riferimento!$D$127:$H$164,5,FALSE))","v":40},{"$f":"+IFERROR(VLOOKUP(MH$27&\"-\"&$M30&\"_new\",Ammortamento_Finanziario!$H:$L,5,FALSE),VLOOKUP($M30,TT_Tabelle_Riferimento!$D$127:$H$164,5,FALSE))","v":40},{"$f":"+IFERROR(VLOOKUP(MI$27&\"-\"&$M30&\"_new\",Ammortamento_Finanziario!$H:$L,5,FALSE),VLOOKUP($M30,TT_Tabelle_Riferimento!$D$127:$H$164,5,FALSE))","v":40},{"$f":"+IFERROR(VLOOKUP(MJ$27&\"-\"&$M30&\"_new\",Ammortamento_Finanziario!$H:$L,5,FALSE),VLOOKUP($M30,TT_Tabelle_Riferimento!$D$127:$H$164,5,FALSE))","v":40},{"$f":"+IFERROR(VLOOKUP(MK$27&\"-\"&$M30&\"_new\",Ammortamento_Finanziario!$H:$L,5,FALSE),VLOOKUP($M30,TT_Tabelle_Riferimento!$D$127:$H$164,5,FALSE))","v":40},{"$f":"+IFERROR(VLOOKUP(ML$27&\"-\"&$M30&\"_new\",Ammortamento_Finanziario!$H:$L,5,FALSE),VLOOKUP($M30,TT_Tabelle_Riferimento!$D$127:$H$164,5,FALSE))","v":40},{"$f":"+IFERROR(VLOOKUP(MM$27&\"-\"&$M30&\"_new\",Ammortamento_Finanziario!$H:$L,5,FALSE),VLOOKUP($M30,TT_Tabelle_Riferimento!$D$127:$H$164,5,FALSE))","v":40},{"$f":"+IFERROR(VLOOKUP(MN$27&\"-\"&$M30&\"_new\",Ammortamento_Finanziario!$H:$L,5,FALSE),VLOOKUP($M30,TT_Tabelle_Riferimento!$D$127:$H$164,5,FALSE))","v":40},{"$f":"+IFERROR(VLOOKUP(MO$27&\"-\"&$M30&\"_new\",Ammortamento_Finanziario!$H:$L,5,FALSE),VLOOKUP($M30,TT_Tabelle_Riferimento!$D$127:$H$164,5,FALSE))","v":40},{"$f":"+IFERROR(VLOOKUP(MP$27&\"-\"&$M30&\"_new\",Ammortamento_Finanziario!$H:$L,5,FALSE),VLOOKUP($M30,TT_Tabelle_Riferimento!$D$127:$H$164,5,FALSE))","v":40},{"$f":"+IFERROR(VLOOKUP(MQ$27&\"-\"&$M30&\"_new\",Ammortamento_Finanziario!$H:$L,5,FALSE),VLOOKUP($M30,TT_Tabelle_Riferimento!$D$127:$H$164,5,FALSE))","v":40},{"$f":"+IFERROR(VLOOKUP(MR$27&\"-\"&$M30&\"_new\",Ammortamento_Finanziario!$H:$L,5,FALSE),VLOOKUP($M30,TT_Tabelle_Riferimento!$D$127:$H$164,5,FALSE))","v":40},{"$f":"+IFERROR(VLOOKUP(MS$27&\"-\"&$M30&\"_new\",Ammortamento_Finanziario!$H:$L,5,FALSE),VLOOKUP($M30,TT_Tabelle_Riferimento!$D$127:$H$164,5,FALSE))","v":40},{"$f":"+IFERROR(VLOOKUP(MT$27&\"-\"&$M30&\"_new\",Ammortamento_Finanziario!$H:$L,5,FALSE),VLOOKUP($M30,TT_Tabelle_Riferimento!$D$127:$H$164,5,FALSE))","v":40},{"$f":"+IFERROR(VLOOKUP(MU$27&\"-\"&$M30&\"_new\",Ammortamento_Finanziario!$H:$L,5,FALSE),VLOOKUP($M30,TT_Tabelle_Riferimento!$D$127:$H$164,5,FALSE))","v":40},{"$f":"+IFERROR(VLOOKUP(MV$27&\"-\"&$M30&\"_new\",Ammortamento_Finanziario!$H:$L,5,FALSE),VLOOKUP($M30,TT_Tabelle_Riferimento!$D$127:$H$164,5,FALSE))","v":40},{"$f":"+IFERROR(VLOOKUP(MW$27&\"-\"&$M30&\"_new\",Ammortamento_Finanziario!$H:$L,5,FALSE),VLOOKUP($M30,TT_Tabelle_Riferimento!$D$127:$H$164,5,FALSE))","v":40},{"$f":"+IFERROR(VLOOKUP(MX$27&\"-\"&$M30&\"_new\",Ammortamento_Finanziario!$H:$L,5,FALSE),VLOOKUP($M30,TT_Tabelle_Riferimento!$D$127:$H$164,5,FALSE))","v":40},{"$f":"+IFERROR(VLOOKUP(MY$27&\"-\"&$M30&\"_new\",Ammortamento_Finanziario!$H:$L,5,FALSE),VLOOKUP($M30,TT_Tabelle_Riferimento!$D$127:$H$164,5,FALSE))","v":40},{"$f":"+IFERROR(VLOOKUP(MZ$27&\"-\"&$M30&\"_new\",Ammortamento_Finanziario!$H:$L,5,FALSE),VLOOKUP($M30,TT_Tabelle_Riferimento!$D$127:$H$164,5,FALSE))","v":40},{"$f":"+IFERROR(VLOOKUP(NA$27&\"-\"&$M30&\"_new\",Ammortamento_Finanziario!$H:$L,5,FALSE),VLOOKUP($M30,TT_Tabelle_Riferimento!$D$127:$H$164,5,FALSE))","v":40},{"$f":"+IFERROR(VLOOKUP(NB$27&\"-\"&$M30&\"_new\",Ammortamento_Finanziario!$H:$L,5,FALSE),VLOOKUP($M30,TT_Tabelle_Riferimento!$D$127:$H$164,5,FALSE))","v":40},{"$f":"+IFERROR(VLOOKUP(NC$27&\"-\"&$M30&\"_new\",Ammortamento_Finanziario!$H:$L,5,FALSE),VLOOKUP($M30,TT_Tabelle_Riferimento!$D$127:$H$164,5,FALSE))","v":40},{"$f":"+IFERROR(VLOOKUP(ND$27&\"-\"&$M30&\"_new\",Ammortamento_Finanziario!$H:$L,5,FALSE),VLOOKUP($M30,TT_Tabelle_Riferimento!$D$127:$H$164,5,FALSE))","v":40},{"$f":"+IFERROR(VLOOKUP(NE$27&\"-\"&$M30&\"_new\",Ammortamento_Finanziario!$H:$L,5,FALSE),VLOOKUP($M30,TT_Tabelle_Riferimento!$D$127:$H$164,5,FALSE))","v":40},{"$f":"+IFERROR(VLOOKUP(NF$27&\"-\"&$M30&\"_new\",Ammortamento_Finanziario!$H:$L,5,FALSE),VLOOKUP($M30,TT_Tabelle_Riferimento!$D$127:$H$164,5,FALSE))","v":40},{"$f":"+IFERROR(VLOOKUP(NG$27&\"-\"&$M30&\"_new\",Ammortamento_Finanziario!$H:$L,5,FALSE),VLOOKUP($M30,TT_Tabelle_Riferimento!$D$127:$H$164,5,FALSE))","v":40},{"$f":"+IFERROR(VLOOKUP(NH$27&\"-\"&$M30&\"_new\",Ammortamento_Finanziario!$H:$L,5,FALSE),VLOOKUP($M30,TT_Tabelle_Riferimento!$D$127:$H$164,5,FALSE))","v":40},{"$f":"+IFERROR(VLOOKUP(NI$27&\"-\"&$M30&\"_new\",Ammortamento_Finanziario!$H:$L,5,FALSE),VLOOKUP($M30,TT_Tabelle_Riferimento!$D$127:$H$164,5,FALSE))","v":40},{"$f":"+IFERROR(VLOOKUP(NJ$27&\"-\"&$M30&\"_new\",Ammortamento_Finanziario!$H:$L,5,FALSE),VLOOKUP($M30,TT_Tabelle_Riferimento!$D$127:$H$164,5,FALSE))","v":40},{"$f":"+IFERROR(VLOOKUP(NK$27&\"-\"&$M30&\"_new\",Ammortamento_Finanziario!$H:$L,5,FALSE),VLOOKUP($M30,TT_Tabelle_Riferimento!$D$127:$H$164,5,FALSE))","v":40},{"$f":"+IFERROR(VLOOKUP(NL$27&\"-\"&$M30&\"_new\",Ammortamento_Finanziario!$H:$L,5,FALSE),VLOOKUP($M30,TT_Tabelle_Riferimento!$D$127:$H$164,5,FALSE))","v":40},{"$f":"+IFERROR(VLOOKUP(NM$27&\"-\"&$M30&\"_new\",Ammortamento_Finanziario!$H:$L,5,FALSE),VLOOKUP($M30,TT_Tabelle_Riferimento!$D$127:$H$164,5,FALSE))","v":40},{"$f":"+IFERROR(VLOOKUP(NN$27&\"-\"&$M30&\"_new\",Ammortamento_Finanziario!$H:$L,5,FALSE),VLOOKUP($M30,TT_Tabelle_Riferimento!$D$127:$H$164,5,FALSE))","v":40},{"$f":"+IFERROR(VLOOKUP(NO$27&\"-\"&$M30&\"_new\",Ammortamento_Finanziario!$H:$L,5,FALSE),VLOOKUP($M30,TT_Tabelle_Riferimento!$D$127:$H$164,5,FALSE))","v":40},{"$f":"+IFERROR(VLOOKUP(NP$27&\"-\"&$M30&\"_new\",Ammortamento_Finanziario!$H:$L,5,FALSE),VLOOKUP($M30,TT_Tabelle_Riferimento!$D$127:$H$164,5,FALSE))","v":40},{"$f":"+IFERROR(VLOOKUP(NQ$27&\"-\"&$M30&\"_new\",Ammortamento_Finanziario!$H:$L,5,FALSE),VLOOKUP($M30,TT_Tabelle_Riferimento!$D$127:$H$164,5,FALSE))","v":40},{"$f":"+IFERROR(VLOOKUP(NR$27&\"-\"&$M30&\"_new\",Ammortamento_Finanziario!$H:$L,5,FALSE),VLOOKUP($M30,TT_Tabelle_Riferimento!$D$127:$H$164,5,FALSE))","v":40},{"$f":"+IFERROR(VLOOKUP(NS$27&\"-\"&$M30&\"_new\",Ammortamento_Finanziario!$H:$L,5,FALSE),VLOOKUP($M30,TT_Tabelle_Riferimento!$D$127:$H$164,5,FALSE))","v":40},{"$f":"+IFERROR(VLOOKUP(NT$27&\"-\"&$M30&\"_new\",Ammortamento_Finanziario!$H:$L,5,FALSE),VLOOKUP($M30,TT_Tabelle_Riferimento!$D$127:$H$164,5,FALSE))","v":40},{"$f":"+IFERROR(VLOOKUP(NU$27&\"-\"&$M30&\"_new\",Ammortamento_Finanziario!$H:$L,5,FALSE),VLOOKUP($M30,TT_Tabelle_Riferimento!$D$127:$H$164,5,FALSE))","v":40},{"$f":"+IFERROR(VLOOKUP(NV$27&\"-\"&$M30&\"_new\",Ammortamento_Finanziario!$H:$L,5,FALSE),VLOOKUP($M30,TT_Tabelle_Riferimento!$D$127:$H$164,5,FALSE))","v":40},{"$f":"+IFERROR(VLOOKUP(NW$27&\"-\"&$M30&\"_new\",Ammortamento_Finanziario!$H:$L,5,FALSE),VLOOKUP($M30,TT_Tabelle_Riferimento!$D$127:$H$164,5,FALSE))","v":40},{"$f":"+IFERROR(VLOOKUP(NX$27&\"-\"&$M30&\"_new\",Ammortamento_Finanziario!$H:$L,5,FALSE),VLOOKUP($M30,TT_Tabelle_Riferimento!$D$127:$H$164,5,FALSE))","v":40},{"$f":"+IFERROR(VLOOKUP(NY$27&\"-\"&$M30&\"_new\",Ammortamento_Finanziario!$H:$L,5,FALSE),VLOOKUP($M30,TT_Tabelle_Riferimento!$D$127:$H$164,5,FALSE))","v":40},{"$f":"+IFERROR(VLOOKUP(NZ$27&\"-\"&$M30&\"_new\",Ammortamento_Finanziario!$H:$L,5,FALSE),VLOOKUP($M30,TT_Tabelle_Riferimento!$D$127:$H$164,5,FALSE))","v":40},{"$f":"+IFERROR(VLOOKUP(OA$27&\"-\"&$M30&\"_new\",Ammortamento_Finanziario!$H:$L,5,FALSE),VLOOKUP($M30,TT_Tabelle_Riferimento!$D$127:$H$164,5,FALSE))","v":40},{"$f":"+IFERROR(VLOOKUP(OB$27&\"-\"&$M30&\"_new\",Ammortamento_Finanziario!$H:$L,5,FALSE),VLOOKUP($M30,TT_Tabelle_Riferimento!$D$127:$H$164,5,FALSE))","v":40},{"$f":"+IFERROR(VLOOKUP(OC$27&\"-\"&$M30&\"_new\",Ammortamento_Finanziario!$H:$L,5,FALSE),VLOOKUP($M30,TT_Tabelle_Riferimento!$D$127:$H$164,5,FALSE))","v":40},{"$f":"+IFERROR(VLOOKUP(OD$27&\"-\"&$M30&\"_new\",Ammortamento_Finanziario!$H:$L,5,FALSE),VLOOKUP($M30,TT_Tabelle_Riferimento!$D$127:$H$164,5,FALSE))","v":40},{"$f":"+IFERROR(VLOOKUP(OE$27&\"-\"&$M30&\"_new\",Ammortamento_Finanziario!$H:$L,5,FALSE),VLOOKUP($M30,TT_Tabelle_Riferimento!$D$127:$H$164,5,FALSE))","v":40},{"$f":"+IFERROR(VLOOKUP(OF$27&\"-\"&$M30&\"_new\",Ammortamento_Finanziario!$H:$L,5,FALSE),VLOOKUP($M30,TT_Tabelle_Riferimento!$D$127:$H$164,5,FALSE))","v":40},{"$f":"+IFERROR(VLOOKUP(OG$27&\"-\"&$M30&\"_new\",Ammortamento_Finanziario!$H:$L,5,FALSE),VLOOKUP($M30,TT_Tabelle_Riferimento!$D$127:$H$164,5,FALSE))","v":40},{"$f":"+IFERROR(VLOOKUP(OH$27&\"-\"&$M30&\"_new\",Ammortamento_Finanziario!$H:$L,5,FALSE),VLOOKUP($M30,TT_Tabelle_Riferimento!$D$127:$H$164,5,FALSE))","v":40},{"$f":"+IFERROR(VLOOKUP(OI$27&\"-\"&$M30&\"_new\",Ammortamento_Finanziario!$H:$L,5,FALSE),VLOOKUP($M30,TT_Tabelle_Riferimento!$D$127:$H$164,5,FALSE))","v":40},{"$f":"+IFERROR(VLOOKUP(OJ$27&\"-\"&$M30&\"_new\",Ammortamento_Finanziario!$H:$L,5,FALSE),VLOOKUP($M30,TT_Tabelle_Riferimento!$D$127:$H$164,5,FALSE))","v":40},{"$f":"+IFERROR(VLOOKUP(OK$27&\"-\"&$M30&\"_new\",Ammortamento_Finanziario!$H:$L,5,FALSE),VLOOKUP($M30,TT_Tabelle_Riferimento!$D$127:$H$164,5,FALSE))","v":40},{"$f":"+IFERROR(VLOOKUP(OL$27&\"-\"&$M30&\"_new\",Ammortamento_Finanziario!$H:$L,5,FALSE),VLOOKUP($M30,TT_Tabelle_Riferimento!$D$127:$H$164,5,FALSE))","v":40},{"$f":"+IFERROR(VLOOKUP(OM$27&\"-\"&$M30&\"_new\",Ammortamento_Finanziario!$H:$L,5,FALSE),VLOOKUP($M30,TT_Tabelle_Riferimento!$D$127:$H$164,5,FALSE))","v":40},{"$f":"+IFERROR(VLOOKUP(ON$27&\"-\"&$M30&\"_new\",Ammortamento_Finanziario!$H:$L,5,FALSE),VLOOKUP($M30,TT_Tabelle_Riferimento!$D$127:$H$164,5,FALSE))","v":40},{"$f":"+IFERROR(VLOOKUP(OO$27&\"-\"&$M30&\"_new\",Ammortamento_Finanziario!$H:$L,5,FALSE),VLOOKUP($M30,TT_Tabelle_Riferimento!$D$127:$H$164,5,FALSE))","v":40},{"$f":"+IFERROR(VLOOKUP(OP$27&\"-\"&$M30&\"_new\",Ammortamento_Finanziario!$H:$L,5,FALSE),VLOOKUP($M30,TT_Tabelle_Riferimento!$D$127:$H$164,5,FALSE))","v":40},{"$f":"+IFERROR(VLOOKUP(OQ$27&\"-\"&$M30&\"_new\",Ammortamento_Finanziario!$H:$L,5,FALSE),VLOOKUP($M30,TT_Tabelle_Riferimento!$D$127:$H$164,5,FALSE))","v":40},{"$f":"+IFERROR(VLOOKUP(OR$27&\"-\"&$M30&\"_new\",Ammortamento_Finanziario!$H:$L,5,FALSE),VLOOKUP($M30,TT_Tabelle_Riferimento!$D$127:$H$164,5,FALSE))","v":40},{"$f":"+IFERROR(VLOOKUP(OS$27&\"-\"&$M30&\"_new\",Ammortamento_Finanziario!$H:$L,5,FALSE),VLOOKUP($M30,TT_Tabelle_Riferimento!$D$127:$H$164,5,FALSE))","v":40},{"$f":"+IFERROR(VLOOKUP(OT$27&\"-\"&$M30&\"_new\",Ammortamento_Finanziario!$H:$L,5,FALSE),VLOOKUP($M30,TT_Tabelle_Riferimento!$D$127:$H$164,5,FALSE))","v":40},{"$f":"+IFERROR(VLOOKUP(OU$27&\"-\"&$M30&\"_new\",Ammortamento_Finanziario!$H:$L,5,FALSE),VLOOKUP($M30,TT_Tabelle_Riferimento!$D$127:$H$164,5,FALSE))","v":40},{"$f":"+IFERROR(VLOOKUP(OV$27&\"-\"&$M30&\"_new\",Ammortamento_Finanziario!$H:$L,5,FALSE),VLOOKUP($M30,TT_Tabelle_Riferimento!$D$127:$H$164,5,FALSE))","v":40},{"$f":"+IFERROR(VLOOKUP(OW$27&\"-\"&$M30&\"_new\",Ammortamento_Finanziario!$H:$L,5,FALSE),VLOOKUP($M30,TT_Tabelle_Riferimento!$D$127:$H$164,5,FALSE))","v":40},{"$f":"+IFERROR(VLOOKUP(OX$27&\"-\"&$M30&\"_new\",Ammortamento_Finanziario!$H:$L,5,FALSE),VLOOKUP($M30,TT_Tabelle_Riferimento!$D$127:$H$164,5,FALSE))","v":40},{"$f":"+IFERROR(VLOOKUP(OY$27&\"-\"&$M30&\"_new\",Ammortamento_Finanziario!$H:$L,5,FALSE),VLOOKUP($M30,TT_Tabelle_Riferimento!$D$127:$H$164,5,FALSE))","v":40},{"$f":"+IFERROR(VLOOKUP(OZ$27&\"-\"&$M30&\"_new\",Ammortamento_Finanziario!$H:$L,5,FALSE),VLOOKUP($M30,TT_Tabelle_Riferimento!$D$127:$H$164,5,FALSE))","v":40},{"$f":"+IFERROR(VLOOKUP(PA$27&\"-\"&$M30&\"_new\",Ammortamento_Finanziario!$H:$L,5,FALSE),VLOOKUP($M30,TT_Tabelle_Riferimento!$D$127:$H$164,5,FALSE))","v":40},{"$f":"+IFERROR(VLOOKUP(PB$27&\"-\"&$M30&\"_new\",Ammortamento_Finanziario!$H:$L,5,FALSE),VLOOKUP($M30,TT_Tabelle_Riferimento!$D$127:$H$164,5,FALSE))","v":40},{"$f":"+IFERROR(VLOOKUP(PC$27&\"-\"&$M30&\"_new\",Ammortamento_Finanziario!$H:$L,5,FALSE),VLOOKUP($M30,TT_Tabelle_Riferimento!$D$127:$H$164,5,FALSE))","v":40},{"$f":"+IFERROR(VLOOKUP(PD$27&\"-\"&$M30&\"_new\",Ammortamento_Finanziario!$H:$L,5,FALSE),VLOOKUP($M30,TT_Tabelle_Riferimento!$D$127:$H$164,5,FALSE))","v":40},{"$f":"+IFERROR(VLOOKUP(PE$27&\"-\"&$M30&\"_new\",Ammortamento_Finanziario!$H:$L,5,FALSE),VLOOKUP($M30,TT_Tabelle_Riferimento!$D$127:$H$164,5,FALSE))","v":40},{"$f":"+IFERROR(VLOOKUP(PF$27&\"-\"&$M30&\"_new\",Ammortamento_Finanziario!$H:$L,5,FALSE),VLOOKUP($M30,TT_Tabelle_Riferimento!$D$127:$H$164,5,FALSE))","v":40},{"$f":"+IFERROR(VLOOKUP(PG$27&\"-\"&$M30&\"_new\",Ammortamento_Finanziario!$H:$L,5,FALSE),VLOOKUP($M30,TT_Tabelle_Riferimento!$D$127:$H$164,5,FALSE))","v":40},{"$f":"+IFERROR(VLOOKUP(PH$27&\"-\"&$M30&\"_new\",Ammortamento_Finanziario!$H:$L,5,FALSE),VLOOKUP($M30,TT_Tabelle_Riferimento!$D$127:$H$164,5,FALSE))","v":40},{"$f":"+IFERROR(VLOOKUP(PI$27&\"-\"&$M30&\"_new\",Ammortamento_Finanziario!$H:$L,5,FALSE),VLOOKUP($M30,TT_Tabelle_Riferimento!$D$127:$H$164,5,FALSE))","v":40},{"$f":"+IFERROR(VLOOKUP(PJ$27&\"-\"&$M30&\"_new\",Ammortamento_Finanziario!$H:$L,5,FALSE),VLOOKUP($M30,TT_Tabelle_Riferimento!$D$127:$H$164,5,FALSE))","v":40},{"$f":"+IFERROR(VLOOKUP(PK$27&\"-\"&$M30&\"_new\",Ammortamento_Finanziario!$H:$L,5,FALSE),VLOOKUP($M30,TT_Tabelle_Riferimento!$D$127:$H$164,5,FALSE))","v":40},{"$f":"+IFERROR(VLOOKUP(PL$27&\"-\"&$M30&\"_new\",Ammortamento_Finanziario!$H:$L,5,FALSE),VLOOKUP($M30,TT_Tabelle_Riferimento!$D$127:$H$164,5,FALSE))","v":40},{"$f":"+IFERROR(VLOOKUP(PM$27&\"-\"&$M30&\"_new\",Ammortamento_Finanziario!$H:$L,5,FALSE),VLOOKUP($M30,TT_Tabelle_Riferimento!$D$127:$H$164,5,FALSE))","v":40},{"$f":"+IFERROR(VLOOKUP(PN$27&\"-\"&$M30&\"_new\",Ammortamento_Finanziario!$H:$L,5,FALSE),VLOOKUP($M30,TT_Tabelle_Riferimento!$D$127:$H$164,5,FALSE))","v":40},{"$f":"+IFERROR(VLOOKUP(PO$27&\"-\"&$M30&\"_new\",Ammortamento_Finanziario!$H:$L,5,FALSE),VLOOKUP($M30,TT_Tabelle_Riferimento!$D$127:$H$164,5,FALSE))","v":40},{"$f":"+IFERROR(VLOOKUP(PP$27&\"-\"&$M30&\"_new\",Ammortamento_Finanziario!$H:$L,5,FALSE),VLOOKUP($M30,TT_Tabelle_Riferimento!$D$127:$H$164,5,FALSE))","v":40},{"$f":"+IFERROR(VLOOKUP(PQ$27&\"-\"&$M30&\"_new\",Ammortamento_Finanziario!$H:$L,5,FALSE),VLOOKUP($M30,TT_Tabelle_Riferimento!$D$127:$H$164,5,FALSE))","v":40},{"$f":"+IFERROR(VLOOKUP(PR$27&\"-\"&$M30&\"_new\",Ammortamento_Finanziario!$H:$L,5,FALSE),VLOOKUP($M30,TT_Tabelle_Riferimento!$D$127:$H$164,5,FALSE))","v":40},{"$f":"+IFERROR(VLOOKUP(PS$27&\"-\"&$M30&\"_new\",Ammortamento_Finanziario!$H:$L,5,FALSE),VLOOKUP($M30,TT_Tabelle_Riferimento!$D$127:$H$164,5,FALSE))","v":40},{"$f":"+IFERROR(VLOOKUP(PT$27&\"-\"&$M30&\"_new\",Ammortamento_Finanziario!$H:$L,5,FALSE),VLOOKUP($M30,TT_Tabelle_Riferimento!$D$127:$H$164,5,FALSE))","v":40},{"$f":"+IFERROR(VLOOKUP(PU$27&\"-\"&$M30&\"_new\",Ammortamento_Finanziario!$H:$L,5,FALSE),VLOOKUP($M30,TT_Tabelle_Riferimento!$D$127:$H$164,5,FALSE))","v":40},{"$f":"+IFERROR(VLOOKUP(PV$27&\"-\"&$M30&\"_new\",Ammortamento_Finanziario!$H:$L,5,FALSE),VLOOKUP($M30,TT_Tabelle_Riferimento!$D$127:$H$164,5,FALSE))","v":40},{"$f":"+IFERROR(VLOOKUP(PW$27&\"-\"&$M30&\"_new\",Ammortamento_Finanziario!$H:$L,5,FALSE),VLOOKUP($M30,TT_Tabelle_Riferimento!$D$127:$H$164,5,FALSE))","v":40},{"$f":"+IFERROR(VLOOKUP(PX$27&\"-\"&$M30&\"_new\",Ammortamento_Finanziario!$H:$L,5,FALSE),VLOOKUP($M30,TT_Tabelle_Riferimento!$D$127:$H$164,5,FALSE))","v":40},{"$f":"+IFERROR(VLOOKUP(PY$27&\"-\"&$M30&\"_new\",Ammortamento_Finanziario!$H:$L,5,FALSE),VLOOKUP($M30,TT_Tabelle_Riferimento!$D$127:$H$164,5,FALSE))","v":40},{"$f":"+IFERROR(VLOOKUP(PZ$27&\"-\"&$M30&\"_new\",Ammortamento_Finanziario!$H:$L,5,FALSE),VLOOKUP($M30,TT_Tabelle_Riferimento!$D$127:$H$164,5,FALSE))","v":40},{"$f":"+IFERROR(VLOOKUP(QA$27&\"-\"&$M30&\"_new\",Ammortamento_Finanziario!$H:$L,5,FALSE),VLOOKUP($M30,TT_Tabelle_Riferimento!$D$127:$H$164,5,FALSE))","v":40},{"$f":"+IFERROR(VLOOKUP(QB$27&\"-\"&$M30&\"_new\",Ammortamento_Finanziario!$H:$L,5,FALSE),VLOOKUP($M30,TT_Tabelle_Riferimento!$D$127:$H$164,5,FALSE))","v":40},{"$f":"+IFERROR(VLOOKUP(QC$27&\"-\"&$M30&\"_new\",Ammortamento_Finanziario!$H:$L,5,FALSE),VLOOKUP($M30,TT_Tabelle_Riferimento!$D$127:$H$164,5,FALSE))","v":40},{"$f":"+IFERROR(VLOOKUP(QD$27&\"-\"&$M30&\"_new\",Ammortamento_Finanziario!$H:$L,5,FALSE),VLOOKUP($M30,TT_Tabelle_Riferimento!$D$127:$H$164,5,FALSE))","v":40},{"$f":"+IFERROR(VLOOKUP(QE$27&\"-\"&$M30&\"_new\",Ammortamento_Finanziario!$H:$L,5,FALSE),VLOOKUP($M30,TT_Tabelle_Riferimento!$D$127:$H$164,5,FALSE))","v":40},{"$f":"+IFERROR(VLOOKUP(QF$27&\"-\"&$M30&\"_new\",Ammortamento_Finanziario!$H:$L,5,FALSE),VLOOKUP($M30,TT_Tabelle_Riferimento!$D$127:$H$164,5,FALSE))","v":40},{"$f":"+IFERROR(VLOOKUP(QG$27&\"-\"&$M30&\"_new\",Ammortamento_Finanziario!$H:$L,5,FALSE),VLOOKUP($M30,TT_Tabelle_Riferimento!$D$127:$H$164,5,FALSE))","v":40},{"$f":"+IFERROR(VLOOKUP(QH$27&\"-\"&$M30&\"_new\",Ammortamento_Finanziario!$H:$L,5,FALSE),VLOOKUP($M30,TT_Tabelle_Riferimento!$D$127:$H$164,5,FALSE))","v":40},{"$f":"+IFERROR(VLOOKUP(QI$27&\"-\"&$M30&\"_new\",Ammortamento_Finanziario!$H:$L,5,FALSE),VLOOKUP($M30,TT_Tabelle_Riferimento!$D$127:$H$164,5,FALSE))","v":40},{"$f":"+IFERROR(VLOOKUP(QJ$27&\"-\"&$M30&\"_new\",Ammortamento_Finanziario!$H:$L,5,FALSE),VLOOKUP($M30,TT_Tabelle_Riferimento!$D$127:$H$164,5,FALSE))","v":40},{"$f":"+IFERROR(VLOOKUP(QK$27&\"-\"&$M30&\"_new\",Ammortamento_Finanziario!$H:$L,5,FALSE),VLOOKUP($M30,TT_Tabelle_Riferimento!$D$127:$H$164,5,FALSE))","v":40},{"$f":"+IFERROR(VLOOKUP(QL$27&\"-\"&$M30&\"_new\",Ammortamento_Finanziario!$H:$L,5,FALSE),VLOOKUP($M30,TT_Tabelle_Riferimento!$D$127:$H$164,5,FALSE))","v":40},{"$f":"+IFERROR(VLOOKUP(QM$27&\"-\"&$M30&\"_new\",Ammortamento_Finanziario!$H:$L,5,FALSE),VLOOKUP($M30,TT_Tabelle_Riferimento!$D$127:$H$164,5,FALSE))","v":40},{"$f":"+IFERROR(VLOOKUP(QN$27&\"-\"&$M30&\"_new\",Ammortamento_Finanziario!$H:$L,5,FALSE),VLOOKUP($M30,TT_Tabelle_Riferimento!$D$127:$H$164,5,FALSE))","v":40},{"$f":"+IFERROR(VLOOKUP(QO$27&\"-\"&$M30&\"_new\",Ammortamento_Finanziario!$H:$L,5,FALSE),VLOOKUP($M30,TT_Tabelle_Riferimento!$D$127:$H$164,5,FALSE))","v":40},{"$f":"+IFERROR(VLOOKUP(QP$27&\"-\"&$M30&\"_new\",Ammortamento_Finanziario!$H:$L,5,FALSE),VLOOKUP($M30,TT_Tabelle_Riferimento!$D$127:$H$164,5,FALSE))","v":40},{"$f":"+IFERROR(VLOOKUP(QQ$27&\"-\"&$M30&\"_new\",Ammortamento_Finanziario!$H:$L,5,FALSE),VLOOKUP($M30,TT_Tabelle_Riferimento!$D$127:$H$164,5,FALSE))","v":40},{"$f":"+IFERROR(VLOOKUP(QR$27&\"-\"&$M30&\"_new\",Ammortamento_Finanziario!$H:$L,5,FALSE),VLOOKUP($M30,TT_Tabelle_Riferimento!$D$127:$H$164,5,FALSE))","v":40},{"$f":"+IFERROR(VLOOKUP(QS$27&\"-\"&$M30&\"_new\",Ammortamento_Finanziario!$H:$L,5,FALSE),VLOOKUP($M30,TT_Tabelle_Riferimento!$D$127:$H$164,5,FALSE))","v":40},{"$f":"+IFERROR(VLOOKUP(QT$27&\"-\"&$M30&\"_new\",Ammortamento_Finanziario!$H:$L,5,FALSE),VLOOKUP($M30,TT_Tabelle_Riferimento!$D$127:$H$164,5,FALSE))","v":40},{"$f":"+IFERROR(VLOOKUP(QU$27&\"-\"&$M30&\"_new\",Ammortamento_Finanziario!$H:$L,5,FALSE),VLOOKUP($M30,TT_Tabelle_Riferimento!$D$127:$H$164,5,FALSE))","v":40},{"$f":"+IFERROR(VLOOKUP(QV$27&\"-\"&$M30&\"_new\",Ammortamento_Finanziario!$H:$L,5,FALSE),VLOOKUP($M30,TT_Tabelle_Riferimento!$D$127:$H$164,5,FALSE))","v":40},{"$f":"+IFERROR(VLOOKUP(QW$27&\"-\"&$M30&\"_new\",Ammortamento_Finanziario!$H:$L,5,FALSE),VLOOKUP($M30,TT_Tabelle_Riferimento!$D$127:$H$164,5,FALSE))","v":40},{"$f":"+IFERROR(VLOOKUP(QX$27&\"-\"&$M30&\"_new\",Ammortamento_Finanziario!$H:$L,5,FALSE),VLOOKUP($M30,TT_Tabelle_Riferimento!$D$127:$H$164,5,FALSE))","v":40},{"$f":"+IFERROR(VLOOKUP(QY$27&\"-\"&$M30&\"_new\",Ammortamento_Finanziario!$H:$L,5,FALSE),VLOOKUP($M30,TT_Tabelle_Riferimento!$D$127:$H$164,5,FALSE))","v":40},{"$f":"+IFERROR(VLOOKUP(QZ$27&\"-\"&$M30&\"_new\",Ammortamento_Finanziario!$H:$L,5,FALSE),VLOOKUP($M30,TT_Tabelle_Riferimento!$D$127:$H$164,5,FALSE))","v":40},{"$f":"+IFERROR(VLOOKUP(RA$27&\"-\"&$M30&\"_new\",Ammortamento_Finanziario!$H:$L,5,FALSE),VLOOKUP($M30,TT_Tabelle_Riferimento!$D$127:$H$164,5,FALSE))","v":40},{"$f":"+IFERROR(VLOOKUP(RB$27&\"-\"&$M30&\"_new\",Ammortamento_Finanziario!$H:$L,5,FALSE),VLOOKUP($M30,TT_Tabelle_Riferimento!$D$127:$H$164,5,FALSE))","v":40},{"$f":"+IFERROR(VLOOKUP(RC$27&\"-\"&$M30&\"_new\",Ammortamento_Finanziario!$H:$L,5,FALSE),VLOOKUP($M30,TT_Tabelle_Riferimento!$D$127:$H$164,5,FALSE))","v":40},{"$f":"+IFERROR(VLOOKUP(RD$27&\"-\"&$M30&\"_new\",Ammortamento_Finanziario!$H:$L,5,FALSE),VLOOKUP($M30,TT_Tabelle_Riferimento!$D$127:$H$164,5,FALSE))","v":40},{"$f":"+IFERROR(VLOOKUP(RE$27&\"-\"&$M30&\"_new\",Ammortamento_Finanziario!$H:$L,5,FALSE),VLOOKUP($M30,TT_Tabelle_Riferimento!$D$127:$H$164,5,FALSE))","v":40},{"$f":"+IFERROR(VLOOKUP(RF$27&\"-\"&$M30&\"_new\",Ammortamento_Finanziario!$H:$L,5,FALSE),VLOOKUP($M30,TT_Tabelle_Riferimento!$D$127:$H$164,5,FALSE))","v":40},{"$f":"+IFERROR(VLOOKUP(RG$27&\"-\"&$M30&\"_new\",Ammortamento_Finanziario!$H:$L,5,FALSE),VLOOKUP($M30,TT_Tabelle_Riferimento!$D$127:$H$164,5,FALSE))","v":40},{"$f":"+IFERROR(VLOOKUP(RH$27&\"-\"&$M30&\"_new\",Ammortamento_Finanziario!$H:$L,5,FALSE),VLOOKUP($M30,TT_Tabelle_Riferimento!$D$127:$H$164,5,FALSE))","v":40},{"$f":"+IFERROR(VLOOKUP(RI$27&\"-\"&$M30&\"_new\",Ammortamento_Finanziario!$H:$L,5,FALSE),VLOOKUP($M30,TT_Tabelle_Riferimento!$D$127:$H$164,5,FALSE))","v":40},{"$f":"+IFERROR(VLOOKUP(RJ$27&\"-\"&$M30&\"_new\",Ammortamento_Finanziario!$H:$L,5,FALSE),VLOOKUP($M30,TT_Tabelle_Riferimento!$D$127:$H$164,5,FALSE))","v":40},{"$f":"+IFERROR(VLOOKUP(RK$27&\"-\"&$M30&\"_new\",Ammortamento_Finanziario!$H:$L,5,FALSE),VLOOKUP($M30,TT_Tabelle_Riferimento!$D$127:$H$164,5,FALSE))","v":40},{"$f":"+IFERROR(VLOOKUP(RL$27&\"-\"&$M30&\"_new\",Ammortamento_Finanziario!$H:$L,5,FALSE),VLOOKUP($M30,TT_Tabelle_Riferimento!$D$127:$H$164,5,FALSE))","v":40},{"$f":"+IFERROR(VLOOKUP(RM$27&\"-\"&$M30&\"_new\",Ammortamento_Finanziario!$H:$L,5,FALSE),VLOOKUP($M30,TT_Tabelle_Riferimento!$D$127:$H$164,5,FALSE))","v":40},{"$f":"+IFERROR(VLOOKUP(RN$27&\"-\"&$M30&\"_new\",Ammortamento_Finanziario!$H:$L,5,FALSE),VLOOKUP($M30,TT_Tabelle_Riferimento!$D$127:$H$164,5,FALSE))","v":40},{"$f":"+IFERROR(VLOOKUP(RO$27&\"-\"&$M30&\"_new\",Ammortamento_Finanziario!$H:$L,5,FALSE),VLOOKUP($M30,TT_Tabelle_Riferimento!$D$127:$H$164,5,FALSE))","v":40},{"$f":"+IFERROR(VLOOKUP(RP$27&\"-\"&$M30&\"_new\",Ammortamento_Finanziario!$H:$L,5,FALSE),VLOOKUP($M30,TT_Tabelle_Riferimento!$D$127:$H$164,5,FALSE))","v":40},{"$f":"+IFERROR(VLOOKUP(RQ$27&\"-\"&$M30&\"_new\",Ammortamento_Finanziario!$H:$L,5,FALSE),VLOOKUP($M30,TT_Tabelle_Riferimento!$D$127:$H$164,5,FALSE))","v":40},{"$f":"+IFERROR(VLOOKUP(RR$27&\"-\"&$M30&\"_new\",Ammortamento_Finanziario!$H:$L,5,FALSE),VLOOKUP($M30,TT_Tabelle_Riferimento!$D$127:$H$164,5,FALSE))","v":40},{"$f":"+IFERROR(VLOOKUP(RS$27&\"-\"&$M30&\"_new\",Ammortamento_Finanziario!$H:$L,5,FALSE),VLOOKUP($M30,TT_Tabelle_Riferimento!$D$127:$H$164,5,FALSE))","v":40},{"$f":"+IFERROR(VLOOKUP(RT$27&\"-\"&$M30&\"_new\",Ammortamento_Finanziario!$H:$L,5,FALSE),VLOOKUP($M30,TT_Tabelle_Riferimento!$D$127:$H$164,5,FALSE))","v":40},{"$f":"+IFERROR(VLOOKUP(RU$27&\"-\"&$M30&\"_new\",Ammortamento_Finanziario!$H:$L,5,FALSE),VLOOKUP($M30,TT_Tabelle_Riferimento!$D$127:$H$164,5,FALSE))","v":40},{"$f":"+IFERROR(VLOOKUP(RV$27&\"-\"&$M30&\"_new\",Ammortamento_Finanziario!$H:$L,5,FALSE),VLOOKUP($M30,TT_Tabelle_Riferimento!$D$127:$H$164,5,FALSE))","v":40}]
[null,null,null,"FA",{"$f":"+SUMIF(IMN_gestore!$E:$E,2022,IMN_gestore!$Q:$Q)","v":0},{"$f":"SUMIF(IMN_gestore!$E:$E,2023,IMN_gestore!$AB:$AB)","v":0},{"$f":"SUMIF(IMN_gestore!$E:$E,2024,IMN_gestore!$AM:$AM)","v":0},{"$f":"SUMIF(IMN_gestore!$E:$E,2025,IMN_gestore!$AX:$AX)","v":0},{"$f":"SUMIF(IMN_gestore!$E:$E,2026,IMN_gestore!$BI:$BI)","v":0},{"$f":"SUMIF(IMN_gestore!$E:$E,2027,IMN_gestore!$BT:$BT)","v":0},null,null,4,0,0,0,0,0,0,0,0,0,0,0,0,0,0,0,0,0,0,0,0,0,0,0,0,0,0,0,0,0,0,0,0,0,0,0,0,0,0,0,0,0,0,0,0,0,0,0,0,0,0,0,0,0,0,0,0,0,0,0,0,0,0,0,0,0,0,0,0,0,0,0,0,0,0,0,0,0,0,0,0,0,0,0,0,0,0,0,0,0,0,0,0,0,0,0,0,0,0,0,0,0,0,0,0,0,0,0,0,0,0,0,0,0,0,0,0,0,0,0,0,0,0,0,0,0,0,0,0,0,0,0,0,0,0,0,0,0,0,0,0,0,0,0,0,0,0,0,0,0,0,0,0,0,0,0,0,0,0,0,0,0,0,0,0,0,0,0,0,0,0,0,0,0,0,0,0,0,0,0,0,0,0,0,0,0,0,0,0,0,0,0,0,0,0,0,0,0,0,0,0,0,0,0,0,0,0,0,0,0,0,0,0,0,0,0,0,0,0,0,0,0,0,0,0,0,0,0,0,0,0,0,0,0,0,0,0,0,0,0,0,0,0,0,0,0,0,0,0,0,0,0,0,0,0,0,0,0,0,0,0,0,0,0,0,0,0,0,0,0,0,0,0,0,0,0,0,0,0,0,0,0,0,0,0,0,0,0,0,0,{"$f":"+IFERROR(VLOOKUP(KQ$27&\"-\"&$M31&\"_new\",Ammortamento_Finanziario!$H:$L,5,FALSE),VLOOKUP($M31,TT_Tabelle_Riferimento!$D$127:$H$164,5,FALSE))","v":40},{"$f":"+IFERROR(VLOOKUP(KR$27&\"-\"&$M31&\"_new\",Ammortamento_Finanziario!$H:$L,5,FALSE),VLOOKUP($M31,TT_Tabelle_Riferimento!$D$127:$H$164,5,FALSE))","v":40},{"$f":"+IFERROR(VLOOKUP(KS$27&\"-\"&$M31&\"_new\",Ammortamento_Finanziario!$H:$L,5,FALSE),VLOOKUP($M31,TT_Tabelle_Riferimento!$D$127:$H$164,5,FALSE))","v":40},{"$f":"+IFERROR(VLOOKUP(KT$27&\"-\"&$M31&\"_new\",Ammortamento_Finanziario!$H:$L,5,FALSE),VLOOKUP($M31,TT_Tabelle_Riferimento!$D$127:$H$164,5,FALSE))","v":40},{"$f":"+IFERROR(VLOOKUP(KU$27&\"-\"&$M31&\"_new\",Ammortamento_Finanziario!$H:$L,5,FALSE),VLOOKUP($M31,TT_Tabelle_Riferimento!$D$127:$H$164,5,FALSE))","v":40},{"$f":"+IFERROR(VLOOKUP(KV$27&\"-\"&$M31&\"_new\",Ammortamento_Finanziario!$H:$L,5,FALSE),VLOOKUP($M31,TT_Tabelle_Riferimento!$D$127:$H$164,5,FALSE))","v":40},{"$f":"+IFERROR(VLOOKUP(KW$27&\"-\"&$M31&\"_new\",Ammortamento_Finanziario!$H:$L,5,FALSE),VLOOKUP($M31,TT_Tabelle_Riferimento!$D$127:$H$164,5,FALSE))","v":40},{"$f":"+IFERROR(VLOOKUP(KX$27&\"-\"&$M31&\"_new\",Ammortamento_Finanziario!$H:$L,5,FALSE),VLOOKUP($M31,TT_Tabelle_Riferimento!$D$127:$H$164,5,FALSE))","v":40},{"$f":"+IFERROR(VLOOKUP(KY$27&\"-\"&$M31&\"_new\",Ammortamento_Finanziario!$H:$L,5,FALSE),VLOOKUP($M31,TT_Tabelle_Riferimento!$D$127:$H$164,5,FALSE))","v":40},{"$f":"+IFERROR(VLOOKUP(KZ$27&\"-\"&$M31&\"_new\",Ammortamento_Finanziario!$H:$L,5,FALSE),VLOOKUP($M31,TT_Tabelle_Riferimento!$D$127:$H$164,5,FALSE))","v":40},{"$f":"+IFERROR(VLOOKUP(LA$27&\"-\"&$M31&\"_new\",Ammortamento_Finanziario!$H:$L,5,FALSE),VLOOKUP($M31,TT_Tabelle_Riferimento!$D$127:$H$164,5,FALSE))","v":40},{"$f":"+IFERROR(VLOOKUP(LB$27&\"-\"&$M31&\"_new\",Ammortamento_Finanziario!$H:$L,5,FALSE),VLOOKUP($M31,TT_Tabelle_Riferimento!$D$127:$H$164,5,FALSE))","v":40},{"$f":"+IFERROR(VLOOKUP(LC$27&\"-\"&$M31&\"_new\",Ammortamento_Finanziario!$H:$L,5,FALSE),VLOOKUP($M31,TT_Tabelle_Riferimento!$D$127:$H$164,5,FALSE))","v":40},{"$f":"+IFERROR(VLOOKUP(LD$27&\"-\"&$M31&\"_new\",Ammortamento_Finanziario!$H:$L,5,FALSE),VLOOKUP($M31,TT_Tabelle_Riferimento!$D$127:$H$164,5,FALSE))","v":40},{"$f":"+IFERROR(VLOOKUP(LE$27&\"-\"&$M31&\"_new\",Ammortamento_Finanziario!$H:$L,5,FALSE),VLOOKUP($M31,TT_Tabelle_Riferimento!$D$127:$H$164,5,FALSE))","v":40},{"$f":"+IFERROR(VLOOKUP(LF$27&\"-\"&$M31&\"_new\",Ammortamento_Finanziario!$H:$L,5,FALSE),VLOOKUP($M31,TT_Tabelle_Riferimento!$D$127:$H$164,5,FALSE))","v":40},{"$f":"+IFERROR(VLOOKUP(LG$27&\"-\"&$M31&\"_new\",Ammortamento_Finanziario!$H:$L,5,FALSE),VLOOKUP($M31,TT_Tabelle_Riferimento!$D$127:$H$164,5,FALSE))","v":40},{"$f":"+IFERROR(VLOOKUP(LH$27&\"-\"&$M31&\"_new\",Ammortamento_Finanziario!$H:$L,5,FALSE),VLOOKUP($M31,TT_Tabelle_Riferimento!$D$127:$H$164,5,FALSE))","v":40},{"$f":"+IFERROR(VLOOKUP(LI$27&\"-\"&$M31&\"_new\",Ammortamento_Finanziario!$H:$L,5,FALSE),VLOOKUP($M31,TT_Tabelle_Riferimento!$D$127:$H$164,5,FALSE))","v":40},{"$f":"+IFERROR(VLOOKUP(LJ$27&\"-\"&$M31&\"_new\",Ammortamento_Finanziario!$H:$L,5,FALSE),VLOOKUP($M31,TT_Tabelle_Riferimento!$D$127:$H$164,5,FALSE))","v":40},{"$f":"+IFERROR(VLOOKUP(LK$27&\"-\"&$M31&\"_new\",Ammortamento_Finanziario!$H:$L,5,FALSE),VLOOKUP($M31,TT_Tabelle_Riferimento!$D$127:$H$164,5,FALSE))","v":40},{"$f":"+IFERROR(VLOOKUP(LL$27&\"-\"&$M31&\"_new\",Ammortamento_Finanziario!$H:$L,5,FALSE),VLOOKUP($M31,TT_Tabelle_Riferimento!$D$127:$H$164,5,FALSE))","v":40},{"$f":"+IFERROR(VLOOKUP(LM$27&\"-\"&$M31&\"_new\",Ammortamento_Finanziario!$H:$L,5,FALSE),VLOOKUP($M31,TT_Tabelle_Riferimento!$D$127:$H$164,5,FALSE))","v":40},{"$f":"+IFERROR(VLOOKUP(LN$27&\"-\"&$M31&\"_new\",Ammortamento_Finanziario!$H:$L,5,FALSE),VLOOKUP($M31,TT_Tabelle_Riferimento!$D$127:$H$164,5,FALSE))","v":40},{"$f":"+IFERROR(VLOOKUP(LO$27&\"-\"&$M31&\"_new\",Ammortamento_Finanziario!$H:$L,5,FALSE),VLOOKUP($M31,TT_Tabelle_Riferimento!$D$127:$H$164,5,FALSE))","v":40},{"$f":"+IFERROR(VLOOKUP(LP$27&\"-\"&$M31&\"_new\",Ammortamento_Finanziario!$H:$L,5,FALSE),VLOOKUP($M31,TT_Tabelle_Riferimento!$D$127:$H$164,5,FALSE))","v":40},{"$f":"+IFERROR(VLOOKUP(LQ$27&\"-\"&$M31&\"_new\",Ammortamento_Finanziario!$H:$L,5,FALSE),VLOOKUP($M31,TT_Tabelle_Riferimento!$D$127:$H$164,5,FALSE))","v":40},{"$f":"+IFERROR(VLOOKUP(LR$27&\"-\"&$M31&\"_new\",Ammortamento_Finanziario!$H:$L,5,FALSE),VLOOKUP($M31,TT_Tabelle_Riferimento!$D$127:$H$164,5,FALSE))","v":40},{"$f":"+IFERROR(VLOOKUP(LS$27&\"-\"&$M31&\"_new\",Ammortamento_Finanziario!$H:$L,5,FALSE),VLOOKUP($M31,TT_Tabelle_Riferimento!$D$127:$H$164,5,FALSE))","v":40},{"$f":"+IFERROR(VLOOKUP(LT$27&\"-\"&$M31&\"_new\",Ammortamento_Finanziario!$H:$L,5,FALSE),VLOOKUP($M31,TT_Tabelle_Riferimento!$D$127:$H$164,5,FALSE))","v":40},{"$f":"+IFERROR(VLOOKUP(LU$27&\"-\"&$M31&\"_new\",Ammortamento_Finanziario!$H:$L,5,FALSE),VLOOKUP($M31,TT_Tabelle_Riferimento!$D$127:$H$164,5,FALSE))","v":40},{"$f":"+IFERROR(VLOOKUP(LV$27&\"-\"&$M31&\"_new\",Ammortamento_Finanziario!$H:$L,5,FALSE),VLOOKUP($M31,TT_Tabelle_Riferimento!$D$127:$H$164,5,FALSE))","v":40},{"$f":"+IFERROR(VLOOKUP(LW$27&\"-\"&$M31&\"_new\",Ammortamento_Finanziario!$H:$L,5,FALSE),VLOOKUP($M31,TT_Tabelle_Riferimento!$D$127:$H$164,5,FALSE))","v":40},{"$f":"+IFERROR(VLOOKUP(LX$27&\"-\"&$M31&\"_new\",Ammortamento_Finanziario!$H:$L,5,FALSE),VLOOKUP($M31,TT_Tabelle_Riferimento!$D$127:$H$164,5,FALSE))","v":40},{"$f":"+IFERROR(VLOOKUP(LY$27&\"-\"&$M31&\"_new\",Ammortamento_Finanziario!$H:$L,5,FALSE),VLOOKUP($M31,TT_Tabelle_Riferimento!$D$127:$H$164,5,FALSE))","v":40},{"$f":"+IFERROR(VLOOKUP(LZ$27&\"-\"&$M31&\"_new\",Ammortamento_Finanziario!$H:$L,5,FALSE),VLOOKUP($M31,TT_Tabelle_Riferimento!$D$127:$H$164,5,FALSE))","v":40},{"$f":"+IFERROR(VLOOKUP(MA$27&\"-\"&$M31&\"_new\",Ammortamento_Finanziario!$H:$L,5,FALSE),VLOOKUP($M31,TT_Tabelle_Riferimento!$D$127:$H$164,5,FALSE))","v":40},{"$f":"+IFERROR(VLOOKUP(MB$27&\"-\"&$M31&\"_new\",Ammortamento_Finanziario!$H:$L,5,FALSE),VLOOKUP($M31,TT_Tabelle_Riferimento!$D$127:$H$164,5,FALSE))","v":40},{"$f":"+IFERROR(VLOOKUP(MC$27&\"-\"&$M31&\"_new\",Ammortamento_Finanziario!$H:$L,5,FALSE),VLOOKUP($M31,TT_Tabelle_Riferimento!$D$127:$H$164,5,FALSE))","v":40},{"$f":"+IFERROR(VLOOKUP(MD$27&\"-\"&$M31&\"_new\",Ammortamento_Finanziario!$H:$L,5,FALSE),VLOOKUP($M31,TT_Tabelle_Riferimento!$D$127:$H$164,5,FALSE))","v":40},{"$f":"+IFERROR(VLOOKUP(ME$27&\"-\"&$M31&\"_new\",Ammortamento_Finanziario!$H:$L,5,FALSE),VLOOKUP($M31,TT_Tabelle_Riferimento!$D$127:$H$164,5,FALSE))","v":40},{"$f":"+IFERROR(VLOOKUP(MF$27&\"-\"&$M31&\"_new\",Ammortamento_Finanziario!$H:$L,5,FALSE),VLOOKUP($M31,TT_Tabelle_Riferimento!$D$127:$H$164,5,FALSE))","v":40},{"$f":"+IFERROR(VLOOKUP(MG$27&\"-\"&$M31&\"_new\",Ammortamento_Finanziario!$H:$L,5,FALSE),VLOOKUP($M31,TT_Tabelle_Riferimento!$D$127:$H$164,5,FALSE))","v":40},{"$f":"+IFERROR(VLOOKUP(MH$27&\"-\"&$M31&\"_new\",Ammortamento_Finanziario!$H:$L,5,FALSE),VLOOKUP($M31,TT_Tabelle_Riferimento!$D$127:$H$164,5,FALSE))","v":40},{"$f":"+IFERROR(VLOOKUP(MI$27&\"-\"&$M31&\"_new\",Ammortamento_Finanziario!$H:$L,5,FALSE),VLOOKUP($M31,TT_Tabelle_Riferimento!$D$127:$H$164,5,FALSE))","v":40},{"$f":"+IFERROR(VLOOKUP(MJ$27&\"-\"&$M31&\"_new\",Ammortamento_Finanziario!$H:$L,5,FALSE),VLOOKUP($M31,TT_Tabelle_Riferimento!$D$127:$H$164,5,FALSE))","v":40},{"$f":"+IFERROR(VLOOKUP(MK$27&\"-\"&$M31&\"_new\",Ammortamento_Finanziario!$H:$L,5,FALSE),VLOOKUP($M31,TT_Tabelle_Riferimento!$D$127:$H$164,5,FALSE))","v":40},{"$f":"+IFERROR(VLOOKUP(ML$27&\"-\"&$M31&\"_new\",Ammortamento_Finanziario!$H:$L,5,FALSE),VLOOKUP($M31,TT_Tabelle_Riferimento!$D$127:$H$164,5,FALSE))","v":40},{"$f":"+IFERROR(VLOOKUP(MM$27&\"-\"&$M31&\"_new\",Ammortamento_Finanziario!$H:$L,5,FALSE),VLOOKUP($M31,TT_Tabelle_Riferimento!$D$127:$H$164,5,FALSE))","v":40},{"$f":"+IFERROR(VLOOKUP(MN$27&\"-\"&$M31&\"_new\",Ammortamento_Finanziario!$H:$L,5,FALSE),VLOOKUP($M31,TT_Tabelle_Riferimento!$D$127:$H$164,5,FALSE))","v":40},{"$f":"+IFERROR(VLOOKUP(MO$27&\"-\"&$M31&\"_new\",Ammortamento_Finanziario!$H:$L,5,FALSE),VLOOKUP($M31,TT_Tabelle_Riferimento!$D$127:$H$164,5,FALSE))","v":40},{"$f":"+IFERROR(VLOOKUP(MP$27&\"-\"&$M31&\"_new\",Ammortamento_Finanziario!$H:$L,5,FALSE),VLOOKUP($M31,TT_Tabelle_Riferimento!$D$127:$H$164,5,FALSE))","v":40},{"$f":"+IFERROR(VLOOKUP(MQ$27&\"-\"&$M31&\"_new\",Ammortamento_Finanziario!$H:$L,5,FALSE),VLOOKUP($M31,TT_Tabelle_Riferimento!$D$127:$H$164,5,FALSE))","v":40},{"$f":"+IFERROR(VLOOKUP(MR$27&\"-\"&$M31&\"_new\",Ammortamento_Finanziario!$H:$L,5,FALSE),VLOOKUP($M31,TT_Tabelle_Riferimento!$D$127:$H$164,5,FALSE))","v":40},{"$f":"+IFERROR(VLOOKUP(MS$27&\"-\"&$M31&\"_new\",Ammortamento_Finanziario!$H:$L,5,FALSE),VLOOKUP($M31,TT_Tabelle_Riferimento!$D$127:$H$164,5,FALSE))","v":40},{"$f":"+IFERROR(VLOOKUP(MT$27&\"-\"&$M31&\"_new\",Ammortamento_Finanziario!$H:$L,5,FALSE),VLOOKUP($M31,TT_Tabelle_Riferimento!$D$127:$H$164,5,FALSE))","v":40},{"$f":"+IFERROR(VLOOKUP(MU$27&\"-\"&$M31&\"_new\",Ammortamento_Finanziario!$H:$L,5,FALSE),VLOOKUP($M31,TT_Tabelle_Riferimento!$D$127:$H$164,5,FALSE))","v":40},{"$f":"+IFERROR(VLOOKUP(MV$27&\"-\"&$M31&\"_new\",Ammortamento_Finanziario!$H:$L,5,FALSE),VLOOKUP($M31,TT_Tabelle_Riferimento!$D$127:$H$164,5,FALSE))","v":40},{"$f":"+IFERROR(VLOOKUP(MW$27&\"-\"&$M31&\"_new\",Ammortamento_Finanziario!$H:$L,5,FALSE),VLOOKUP($M31,TT_Tabelle_Riferimento!$D$127:$H$164,5,FALSE))","v":40},{"$f":"+IFERROR(VLOOKUP(MX$27&\"-\"&$M31&\"_new\",Ammortamento_Finanziario!$H:$L,5,FALSE),VLOOKUP($M31,TT_Tabelle_Riferimento!$D$127:$H$164,5,FALSE))","v":40},{"$f":"+IFERROR(VLOOKUP(MY$27&\"-\"&$M31&\"_new\",Ammortamento_Finanziario!$H:$L,5,FALSE),VLOOKUP($M31,TT_Tabelle_Riferimento!$D$127:$H$164,5,FALSE))","v":40},{"$f":"+IFERROR(VLOOKUP(MZ$27&\"-\"&$M31&\"_new\",Ammortamento_Finanziario!$H:$L,5,FALSE),VLOOKUP($M31,TT_Tabelle_Riferimento!$D$127:$H$164,5,FALSE))","v":40},{"$f":"+IFERROR(VLOOKUP(NA$27&\"-\"&$M31&\"_new\",Ammortamento_Finanziario!$H:$L,5,FALSE),VLOOKUP($M31,TT_Tabelle_Riferimento!$D$127:$H$164,5,FALSE))","v":40},{"$f":"+IFERROR(VLOOKUP(NB$27&\"-\"&$M31&\"_new\",Ammortamento_Finanziario!$H:$L,5,FALSE),VLOOKUP($M31,TT_Tabelle_Riferimento!$D$127:$H$164,5,FALSE))","v":40},{"$f":"+IFERROR(VLOOKUP(NC$27&\"-\"&$M31&\"_new\",Ammortamento_Finanziario!$H:$L,5,FALSE),VLOOKUP($M31,TT_Tabelle_Riferimento!$D$127:$H$164,5,FALSE))","v":40},{"$f":"+IFERROR(VLOOKUP(ND$27&\"-\"&$M31&\"_new\",Ammortamento_Finanziario!$H:$L,5,FALSE),VLOOKUP($M31,TT_Tabelle_Riferimento!$D$127:$H$164,5,FALSE))","v":40},{"$f":"+IFERROR(VLOOKUP(NE$27&\"-\"&$M31&\"_new\",Ammortamento_Finanziario!$H:$L,5,FALSE),VLOOKUP($M31,TT_Tabelle_Riferimento!$D$127:$H$164,5,FALSE))","v":40},{"$f":"+IFERROR(VLOOKUP(NF$27&\"-\"&$M31&\"_new\",Ammortamento_Finanziario!$H:$L,5,FALSE),VLOOKUP($M31,TT_Tabelle_Riferimento!$D$127:$H$164,5,FALSE))","v":40},{"$f":"+IFERROR(VLOOKUP(NG$27&\"-\"&$M31&\"_new\",Ammortamento_Finanziario!$H:$L,5,FALSE),VLOOKUP($M31,TT_Tabelle_Riferimento!$D$127:$H$164,5,FALSE))","v":40},{"$f":"+IFERROR(VLOOKUP(NH$27&\"-\"&$M31&\"_new\",Ammortamento_Finanziario!$H:$L,5,FALSE),VLOOKUP($M31,TT_Tabelle_Riferimento!$D$127:$H$164,5,FALSE))","v":40},{"$f":"+IFERROR(VLOOKUP(NI$27&\"-\"&$M31&\"_new\",Ammortamento_Finanziario!$H:$L,5,FALSE),VLOOKUP($M31,TT_Tabelle_Riferimento!$D$127:$H$164,5,FALSE))","v":40},{"$f":"+IFERROR(VLOOKUP(NJ$27&\"-\"&$M31&\"_new\",Ammortamento_Finanziario!$H:$L,5,FALSE),VLOOKUP($M31,TT_Tabelle_Riferimento!$D$127:$H$164,5,FALSE))","v":40},{"$f":"+IFERROR(VLOOKUP(NK$27&\"-\"&$M31&\"_new\",Ammortamento_Finanziario!$H:$L,5,FALSE),VLOOKUP($M31,TT_Tabelle_Riferimento!$D$127:$H$164,5,FALSE))","v":40},{"$f":"+IFERROR(VLOOKUP(NL$27&\"-\"&$M31&\"_new\",Ammortamento_Finanziario!$H:$L,5,FALSE),VLOOKUP($M31,TT_Tabelle_Riferimento!$D$127:$H$164,5,FALSE))","v":40},{"$f":"+IFERROR(VLOOKUP(NM$27&\"-\"&$M31&\"_new\",Ammortamento_Finanziario!$H:$L,5,FALSE),VLOOKUP($M31,TT_Tabelle_Riferimento!$D$127:$H$164,5,FALSE))","v":40},{"$f":"+IFERROR(VLOOKUP(NN$27&\"-\"&$M31&\"_new\",Ammortamento_Finanziario!$H:$L,5,FALSE),VLOOKUP($M31,TT_Tabelle_Riferimento!$D$127:$H$164,5,FALSE))","v":40},{"$f":"+IFERROR(VLOOKUP(NO$27&\"-\"&$M31&\"_new\",Ammortamento_Finanziario!$H:$L,5,FALSE),VLOOKUP($M31,TT_Tabelle_Riferimento!$D$127:$H$164,5,FALSE))","v":40},{"$f":"+IFERROR(VLOOKUP(NP$27&\"-\"&$M31&\"_new\",Ammortamento_Finanziario!$H:$L,5,FALSE),VLOOKUP($M31,TT_Tabelle_Riferimento!$D$127:$H$164,5,FALSE))","v":40},{"$f":"+IFERROR(VLOOKUP(NQ$27&\"-\"&$M31&\"_new\",Ammortamento_Finanziario!$H:$L,5,FALSE),VLOOKUP($M31,TT_Tabelle_Riferimento!$D$127:$H$164,5,FALSE))","v":40},{"$f":"+IFERROR(VLOOKUP(NR$27&\"-\"&$M31&\"_new\",Ammortamento_Finanziario!$H:$L,5,FALSE),VLOOKUP($M31,TT_Tabelle_Riferimento!$D$127:$H$164,5,FALSE))","v":40},{"$f":"+IFERROR(VLOOKUP(NS$27&\"-\"&$M31&\"_new\",Ammortamento_Finanziario!$H:$L,5,FALSE),VLOOKUP($M31,TT_Tabelle_Riferimento!$D$127:$H$164,5,FALSE))","v":40},{"$f":"+IFERROR(VLOOKUP(NT$27&\"-\"&$M31&\"_new\",Ammortamento_Finanziario!$H:$L,5,FALSE),VLOOKUP($M31,TT_Tabelle_Riferimento!$D$127:$H$164,5,FALSE))","v":40},{"$f":"+IFERROR(VLOOKUP(NU$27&\"-\"&$M31&\"_new\",Ammortamento_Finanziario!$H:$L,5,FALSE),VLOOKUP($M31,TT_Tabelle_Riferimento!$D$127:$H$164,5,FALSE))","v":40},{"$f":"+IFERROR(VLOOKUP(NV$27&\"-\"&$M31&\"_new\",Ammortamento_Finanziario!$H:$L,5,FALSE),VLOOKUP($M31,TT_Tabelle_Riferimento!$D$127:$H$164,5,FALSE))","v":40},{"$f":"+IFERROR(VLOOKUP(NW$27&\"-\"&$M31&\"_new\",Ammortamento_Finanziario!$H:$L,5,FALSE),VLOOKUP($M31,TT_Tabelle_Riferimento!$D$127:$H$164,5,FALSE))","v":40},{"$f":"+IFERROR(VLOOKUP(NX$27&\"-\"&$M31&\"_new\",Ammortamento_Finanziario!$H:$L,5,FALSE),VLOOKUP($M31,TT_Tabelle_Riferimento!$D$127:$H$164,5,FALSE))","v":40},{"$f":"+IFERROR(VLOOKUP(NY$27&\"-\"&$M31&\"_new\",Ammortamento_Finanziario!$H:$L,5,FALSE),VLOOKUP($M31,TT_Tabelle_Riferimento!$D$127:$H$164,5,FALSE))","v":40},{"$f":"+IFERROR(VLOOKUP(NZ$27&\"-\"&$M31&\"_new\",Ammortamento_Finanziario!$H:$L,5,FALSE),VLOOKUP($M31,TT_Tabelle_Riferimento!$D$127:$H$164,5,FALSE))","v":40},{"$f":"+IFERROR(VLOOKUP(OA$27&\"-\"&$M31&\"_new\",Ammortamento_Finanziario!$H:$L,5,FALSE),VLOOKUP($M31,TT_Tabelle_Riferimento!$D$127:$H$164,5,FALSE))","v":40},{"$f":"+IFERROR(VLOOKUP(OB$27&\"-\"&$M31&\"_new\",Ammortamento_Finanziario!$H:$L,5,FALSE),VLOOKUP($M31,TT_Tabelle_Riferimento!$D$127:$H$164,5,FALSE))","v":40},{"$f":"+IFERROR(VLOOKUP(OC$27&\"-\"&$M31&\"_new\",Ammortamento_Finanziario!$H:$L,5,FALSE),VLOOKUP($M31,TT_Tabelle_Riferimento!$D$127:$H$164,5,FALSE))","v":40},{"$f":"+IFERROR(VLOOKUP(OD$27&\"-\"&$M31&\"_new\",Ammortamento_Finanziario!$H:$L,5,FALSE),VLOOKUP($M31,TT_Tabelle_Riferimento!$D$127:$H$164,5,FALSE))","v":40},{"$f":"+IFERROR(VLOOKUP(OE$27&\"-\"&$M31&\"_new\",Ammortamento_Finanziario!$H:$L,5,FALSE),VLOOKUP($M31,TT_Tabelle_Riferimento!$D$127:$H$164,5,FALSE))","v":40},{"$f":"+IFERROR(VLOOKUP(OF$27&\"-\"&$M31&\"_new\",Ammortamento_Finanziario!$H:$L,5,FALSE),VLOOKUP($M31,TT_Tabelle_Riferimento!$D$127:$H$164,5,FALSE))","v":40},{"$f":"+IFERROR(VLOOKUP(OG$27&\"-\"&$M31&\"_new\",Ammortamento_Finanziario!$H:$L,5,FALSE),VLOOKUP($M31,TT_Tabelle_Riferimento!$D$127:$H$164,5,FALSE))","v":40},{"$f":"+IFERROR(VLOOKUP(OH$27&\"-\"&$M31&\"_new\",Ammortamento_Finanziario!$H:$L,5,FALSE),VLOOKUP($M31,TT_Tabelle_Riferimento!$D$127:$H$164,5,FALSE))","v":40},{"$f":"+IFERROR(VLOOKUP(OI$27&\"-\"&$M31&\"_new\",Ammortamento_Finanziario!$H:$L,5,FALSE),VLOOKUP($M31,TT_Tabelle_Riferimento!$D$127:$H$164,5,FALSE))","v":40},{"$f":"+IFERROR(VLOOKUP(OJ$27&\"-\"&$M31&\"_new\",Ammortamento_Finanziario!$H:$L,5,FALSE),VLOOKUP($M31,TT_Tabelle_Riferimento!$D$127:$H$164,5,FALSE))","v":40},{"$f":"+IFERROR(VLOOKUP(OK$27&\"-\"&$M31&\"_new\",Ammortamento_Finanziario!$H:$L,5,FALSE),VLOOKUP($M31,TT_Tabelle_Riferimento!$D$127:$H$164,5,FALSE))","v":40},{"$f":"+IFERROR(VLOOKUP(OL$27&\"-\"&$M31&\"_new\",Ammortamento_Finanziario!$H:$L,5,FALSE),VLOOKUP($M31,TT_Tabelle_Riferimento!$D$127:$H$164,5,FALSE))","v":40},{"$f":"+IFERROR(VLOOKUP(OM$27&\"-\"&$M31&\"_new\",Ammortamento_Finanziario!$H:$L,5,FALSE),VLOOKUP($M31,TT_Tabelle_Riferimento!$D$127:$H$164,5,FALSE))","v":40},{"$f":"+IFERROR(VLOOKUP(ON$27&\"-\"&$M31&\"_new\",Ammortamento_Finanziario!$H:$L,5,FALSE),VLOOKUP($M31,TT_Tabelle_Riferimento!$D$127:$H$164,5,FALSE))","v":40},{"$f":"+IFERROR(VLOOKUP(OO$27&\"-\"&$M31&\"_new\",Ammortamento_Finanziario!$H:$L,5,FALSE),VLOOKUP($M31,TT_Tabelle_Riferimento!$D$127:$H$164,5,FALSE))","v":40},{"$f":"+IFERROR(VLOOKUP(OP$27&\"-\"&$M31&\"_new\",Ammortamento_Finanziario!$H:$L,5,FALSE),VLOOKUP($M31,TT_Tabelle_Riferimento!$D$127:$H$164,5,FALSE))","v":40},{"$f":"+IFERROR(VLOOKUP(OQ$27&\"-\"&$M31&\"_new\",Ammortamento_Finanziario!$H:$L,5,FALSE),VLOOKUP($M31,TT_Tabelle_Riferimento!$D$127:$H$164,5,FALSE))","v":40},{"$f":"+IFERROR(VLOOKUP(OR$27&\"-\"&$M31&\"_new\",Ammortamento_Finanziario!$H:$L,5,FALSE),VLOOKUP($M31,TT_Tabelle_Riferimento!$D$127:$H$164,5,FALSE))","v":40},{"$f":"+IFERROR(VLOOKUP(OS$27&\"-\"&$M31&\"_new\",Ammortamento_Finanziario!$H:$L,5,FALSE),VLOOKUP($M31,TT_Tabelle_Riferimento!$D$127:$H$164,5,FALSE))","v":40},{"$f":"+IFERROR(VLOOKUP(OT$27&\"-\"&$M31&\"_new\",Ammortamento_Finanziario!$H:$L,5,FALSE),VLOOKUP($M31,TT_Tabelle_Riferimento!$D$127:$H$164,5,FALSE))","v":40},{"$f":"+IFERROR(VLOOKUP(OU$27&\"-\"&$M31&\"_new\",Ammortamento_Finanziario!$H:$L,5,FALSE),VLOOKUP($M31,TT_Tabelle_Riferimento!$D$127:$H$164,5,FALSE))","v":40},{"$f":"+IFERROR(VLOOKUP(OV$27&\"-\"&$M31&\"_new\",Ammortamento_Finanziario!$H:$L,5,FALSE),VLOOKUP($M31,TT_Tabelle_Riferimento!$D$127:$H$164,5,FALSE))","v":40},{"$f":"+IFERROR(VLOOKUP(OW$27&\"-\"&$M31&\"_new\",Ammortamento_Finanziario!$H:$L,5,FALSE),VLOOKUP($M31,TT_Tabelle_Riferimento!$D$127:$H$164,5,FALSE))","v":40},{"$f":"+IFERROR(VLOOKUP(OX$27&\"-\"&$M31&\"_new\",Ammortamento_Finanziario!$H:$L,5,FALSE),VLOOKUP($M31,TT_Tabelle_Riferimento!$D$127:$H$164,5,FALSE))","v":40},{"$f":"+IFERROR(VLOOKUP(OY$27&\"-\"&$M31&\"_new\",Ammortamento_Finanziario!$H:$L,5,FALSE),VLOOKUP($M31,TT_Tabelle_Riferimento!$D$127:$H$164,5,FALSE))","v":40},{"$f":"+IFERROR(VLOOKUP(OZ$27&\"-\"&$M31&\"_new\",Ammortamento_Finanziario!$H:$L,5,FALSE),VLOOKUP($M31,TT_Tabelle_Riferimento!$D$127:$H$164,5,FALSE))","v":40},{"$f":"+IFERROR(VLOOKUP(PA$27&\"-\"&$M31&\"_new\",Ammortamento_Finanziario!$H:$L,5,FALSE),VLOOKUP($M31,TT_Tabelle_Riferimento!$D$127:$H$164,5,FALSE))","v":40},{"$f":"+IFERROR(VLOOKUP(PB$27&\"-\"&$M31&\"_new\",Ammortamento_Finanziario!$H:$L,5,FALSE),VLOOKUP($M31,TT_Tabelle_Riferimento!$D$127:$H$164,5,FALSE))","v":40},{"$f":"+IFERROR(VLOOKUP(PC$27&\"-\"&$M31&\"_new\",Ammortamento_Finanziario!$H:$L,5,FALSE),VLOOKUP($M31,TT_Tabelle_Riferimento!$D$127:$H$164,5,FALSE))","v":40},{"$f":"+IFERROR(VLOOKUP(PD$27&\"-\"&$M31&\"_new\",Ammortamento_Finanziario!$H:$L,5,FALSE),VLOOKUP($M31,TT_Tabelle_Riferimento!$D$127:$H$164,5,FALSE))","v":40},{"$f":"+IFERROR(VLOOKUP(PE$27&\"-\"&$M31&\"_new\",Ammortamento_Finanziario!$H:$L,5,FALSE),VLOOKUP($M31,TT_Tabelle_Riferimento!$D$127:$H$164,5,FALSE))","v":40},{"$f":"+IFERROR(VLOOKUP(PF$27&\"-\"&$M31&\"_new\",Ammortamento_Finanziario!$H:$L,5,FALSE),VLOOKUP($M31,TT_Tabelle_Riferimento!$D$127:$H$164,5,FALSE))","v":40},{"$f":"+IFERROR(VLOOKUP(PG$27&\"-\"&$M31&\"_new\",Ammortamento_Finanziario!$H:$L,5,FALSE),VLOOKUP($M31,TT_Tabelle_Riferimento!$D$127:$H$164,5,FALSE))","v":40},{"$f":"+IFERROR(VLOOKUP(PH$27&\"-\"&$M31&\"_new\",Ammortamento_Finanziario!$H:$L,5,FALSE),VLOOKUP($M31,TT_Tabelle_Riferimento!$D$127:$H$164,5,FALSE))","v":40},{"$f":"+IFERROR(VLOOKUP(PI$27&\"-\"&$M31&\"_new\",Ammortamento_Finanziario!$H:$L,5,FALSE),VLOOKUP($M31,TT_Tabelle_Riferimento!$D$127:$H$164,5,FALSE))","v":40},{"$f":"+IFERROR(VLOOKUP(PJ$27&\"-\"&$M31&\"_new\",Ammortamento_Finanziario!$H:$L,5,FALSE),VLOOKUP($M31,TT_Tabelle_Riferimento!$D$127:$H$164,5,FALSE))","v":40},{"$f":"+IFERROR(VLOOKUP(PK$27&\"-\"&$M31&\"_new\",Ammortamento_Finanziario!$H:$L,5,FALSE),VLOOKUP($M31,TT_Tabelle_Riferimento!$D$127:$H$164,5,FALSE))","v":40},{"$f":"+IFERROR(VLOOKUP(PL$27&\"-\"&$M31&\"_new\",Ammortamento_Finanziario!$H:$L,5,FALSE),VLOOKUP($M31,TT_Tabelle_Riferimento!$D$127:$H$164,5,FALSE))","v":40},{"$f":"+IFERROR(VLOOKUP(PM$27&\"-\"&$M31&\"_new\",Ammortamento_Finanziario!$H:$L,5,FALSE),VLOOKUP($M31,TT_Tabelle_Riferimento!$D$127:$H$164,5,FALSE))","v":40},{"$f":"+IFERROR(VLOOKUP(PN$27&\"-\"&$M31&\"_new\",Ammortamento_Finanziario!$H:$L,5,FALSE),VLOOKUP($M31,TT_Tabelle_Riferimento!$D$127:$H$164,5,FALSE))","v":40},{"$f":"+IFERROR(VLOOKUP(PO$27&\"-\"&$M31&\"_new\",Ammortamento_Finanziario!$H:$L,5,FALSE),VLOOKUP($M31,TT_Tabelle_Riferimento!$D$127:$H$164,5,FALSE))","v":40},{"$f":"+IFERROR(VLOOKUP(PP$27&\"-\"&$M31&\"_new\",Ammortamento_Finanziario!$H:$L,5,FALSE),VLOOKUP($M31,TT_Tabelle_Riferimento!$D$127:$H$164,5,FALSE))","v":40},{"$f":"+IFERROR(VLOOKUP(PQ$27&\"-\"&$M31&\"_new\",Ammortamento_Finanziario!$H:$L,5,FALSE),VLOOKUP($M31,TT_Tabelle_Riferimento!$D$127:$H$164,5,FALSE))","v":40},{"$f":"+IFERROR(VLOOKUP(PR$27&\"-\"&$M31&\"_new\",Ammortamento_Finanziario!$H:$L,5,FALSE),VLOOKUP($M31,TT_Tabelle_Riferimento!$D$127:$H$164,5,FALSE))","v":40},{"$f":"+IFERROR(VLOOKUP(PS$27&\"-\"&$M31&\"_new\",Ammortamento_Finanziario!$H:$L,5,FALSE),VLOOKUP($M31,TT_Tabelle_Riferimento!$D$127:$H$164,5,FALSE))","v":40},{"$f":"+IFERROR(VLOOKUP(PT$27&\"-\"&$M31&\"_new\",Ammortamento_Finanziario!$H:$L,5,FALSE),VLOOKUP($M31,TT_Tabelle_Riferimento!$D$127:$H$164,5,FALSE))","v":40},{"$f":"+IFERROR(VLOOKUP(PU$27&\"-\"&$M31&\"_new\",Ammortamento_Finanziario!$H:$L,5,FALSE),VLOOKUP($M31,TT_Tabelle_Riferimento!$D$127:$H$164,5,FALSE))","v":40},{"$f":"+IFERROR(VLOOKUP(PV$27&\"-\"&$M31&\"_new\",Ammortamento_Finanziario!$H:$L,5,FALSE),VLOOKUP($M31,TT_Tabelle_Riferimento!$D$127:$H$164,5,FALSE))","v":40},{"$f":"+IFERROR(VLOOKUP(PW$27&\"-\"&$M31&\"_new\",Ammortamento_Finanziario!$H:$L,5,FALSE),VLOOKUP($M31,TT_Tabelle_Riferimento!$D$127:$H$164,5,FALSE))","v":40},{"$f":"+IFERROR(VLOOKUP(PX$27&\"-\"&$M31&\"_new\",Ammortamento_Finanziario!$H:$L,5,FALSE),VLOOKUP($M31,TT_Tabelle_Riferimento!$D$127:$H$164,5,FALSE))","v":40},{"$f":"+IFERROR(VLOOKUP(PY$27&\"-\"&$M31&\"_new\",Ammortamento_Finanziario!$H:$L,5,FALSE),VLOOKUP($M31,TT_Tabelle_Riferimento!$D$127:$H$164,5,FALSE))","v":40},{"$f":"+IFERROR(VLOOKUP(PZ$27&\"-\"&$M31&\"_new\",Ammortamento_Finanziario!$H:$L,5,FALSE),VLOOKUP($M31,TT_Tabelle_Riferimento!$D$127:$H$164,5,FALSE))","v":40},{"$f":"+IFERROR(VLOOKUP(QA$27&\"-\"&$M31&\"_new\",Ammortamento_Finanziario!$H:$L,5,FALSE),VLOOKUP($M31,TT_Tabelle_Riferimento!$D$127:$H$164,5,FALSE))","v":40},{"$f":"+IFERROR(VLOOKUP(QB$27&\"-\"&$M31&\"_new\",Ammortamento_Finanziario!$H:$L,5,FALSE),VLOOKUP($M31,TT_Tabelle_Riferimento!$D$127:$H$164,5,FALSE))","v":40},{"$f":"+IFERROR(VLOOKUP(QC$27&\"-\"&$M31&\"_new\",Ammortamento_Finanziario!$H:$L,5,FALSE),VLOOKUP($M31,TT_Tabelle_Riferimento!$D$127:$H$164,5,FALSE))","v":40},{"$f":"+IFERROR(VLOOKUP(QD$27&\"-\"&$M31&\"_new\",Ammortamento_Finanziario!$H:$L,5,FALSE),VLOOKUP($M31,TT_Tabelle_Riferimento!$D$127:$H$164,5,FALSE))","v":40},{"$f":"+IFERROR(VLOOKUP(QE$27&\"-\"&$M31&\"_new\",Ammortamento_Finanziario!$H:$L,5,FALSE),VLOOKUP($M31,TT_Tabelle_Riferimento!$D$127:$H$164,5,FALSE))","v":40},{"$f":"+IFERROR(VLOOKUP(QF$27&\"-\"&$M31&\"_new\",Ammortamento_Finanziario!$H:$L,5,FALSE),VLOOKUP($M31,TT_Tabelle_Riferimento!$D$127:$H$164,5,FALSE))","v":40},{"$f":"+IFERROR(VLOOKUP(QG$27&\"-\"&$M31&\"_new\",Ammortamento_Finanziario!$H:$L,5,FALSE),VLOOKUP($M31,TT_Tabelle_Riferimento!$D$127:$H$164,5,FALSE))","v":40},{"$f":"+IFERROR(VLOOKUP(QH$27&\"-\"&$M31&\"_new\",Ammortamento_Finanziario!$H:$L,5,FALSE),VLOOKUP($M31,TT_Tabelle_Riferimento!$D$127:$H$164,5,FALSE))","v":40},{"$f":"+IFERROR(VLOOKUP(QI$27&\"-\"&$M31&\"_new\",Ammortamento_Finanziario!$H:$L,5,FALSE),VLOOKUP($M31,TT_Tabelle_Riferimento!$D$127:$H$164,5,FALSE))","v":40},{"$f":"+IFERROR(VLOOKUP(QJ$27&\"-\"&$M31&\"_new\",Ammortamento_Finanziario!$H:$L,5,FALSE),VLOOKUP($M31,TT_Tabelle_Riferimento!$D$127:$H$164,5,FALSE))","v":40},{"$f":"+IFERROR(VLOOKUP(QK$27&\"-\"&$M31&\"_new\",Ammortamento_Finanziario!$H:$L,5,FALSE),VLOOKUP($M31,TT_Tabelle_Riferimento!$D$127:$H$164,5,FALSE))","v":40},{"$f":"+IFERROR(VLOOKUP(QL$27&\"-\"&$M31&\"_new\",Ammortamento_Finanziario!$H:$L,5,FALSE),VLOOKUP($M31,TT_Tabelle_Riferimento!$D$127:$H$164,5,FALSE))","v":40},{"$f":"+IFERROR(VLOOKUP(QM$27&\"-\"&$M31&\"_new\",Ammortamento_Finanziario!$H:$L,5,FALSE),VLOOKUP($M31,TT_Tabelle_Riferimento!$D$127:$H$164,5,FALSE))","v":40},{"$f":"+IFERROR(VLOOKUP(QN$27&\"-\"&$M31&\"_new\",Ammortamento_Finanziario!$H:$L,5,FALSE),VLOOKUP($M31,TT_Tabelle_Riferimento!$D$127:$H$164,5,FALSE))","v":40},{"$f":"+IFERROR(VLOOKUP(QO$27&\"-\"&$M31&\"_new\",Ammortamento_Finanziario!$H:$L,5,FALSE),VLOOKUP($M31,TT_Tabelle_Riferimento!$D$127:$H$164,5,FALSE))","v":40},{"$f":"+IFERROR(VLOOKUP(QP$27&\"-\"&$M31&\"_new\",Ammortamento_Finanziario!$H:$L,5,FALSE),VLOOKUP($M31,TT_Tabelle_Riferimento!$D$127:$H$164,5,FALSE))","v":40},{"$f":"+IFERROR(VLOOKUP(QQ$27&\"-\"&$M31&\"_new\",Ammortamento_Finanziario!$H:$L,5,FALSE),VLOOKUP($M31,TT_Tabelle_Riferimento!$D$127:$H$164,5,FALSE))","v":40},{"$f":"+IFERROR(VLOOKUP(QR$27&\"-\"&$M31&\"_new\",Ammortamento_Finanziario!$H:$L,5,FALSE),VLOOKUP($M31,TT_Tabelle_Riferimento!$D$127:$H$164,5,FALSE))","v":40},{"$f":"+IFERROR(VLOOKUP(QS$27&\"-\"&$M31&\"_new\",Ammortamento_Finanziario!$H:$L,5,FALSE),VLOOKUP($M31,TT_Tabelle_Riferimento!$D$127:$H$164,5,FALSE))","v":40},{"$f":"+IFERROR(VLOOKUP(QT$27&\"-\"&$M31&\"_new\",Ammortamento_Finanziario!$H:$L,5,FALSE),VLOOKUP($M31,TT_Tabelle_Riferimento!$D$127:$H$164,5,FALSE))","v":40},{"$f":"+IFERROR(VLOOKUP(QU$27&\"-\"&$M31&\"_new\",Ammortamento_Finanziario!$H:$L,5,FALSE),VLOOKUP($M31,TT_Tabelle_Riferimento!$D$127:$H$164,5,FALSE))","v":40},{"$f":"+IFERROR(VLOOKUP(QV$27&\"-\"&$M31&\"_new\",Ammortamento_Finanziario!$H:$L,5,FALSE),VLOOKUP($M31,TT_Tabelle_Riferimento!$D$127:$H$164,5,FALSE))","v":40},{"$f":"+IFERROR(VLOOKUP(QW$27&\"-\"&$M31&\"_new\",Ammortamento_Finanziario!$H:$L,5,FALSE),VLOOKUP($M31,TT_Tabelle_Riferimento!$D$127:$H$164,5,FALSE))","v":40},{"$f":"+IFERROR(VLOOKUP(QX$27&\"-\"&$M31&\"_new\",Ammortamento_Finanziario!$H:$L,5,FALSE),VLOOKUP($M31,TT_Tabelle_Riferimento!$D$127:$H$164,5,FALSE))","v":40},{"$f":"+IFERROR(VLOOKUP(QY$27&\"-\"&$M31&\"_new\",Ammortamento_Finanziario!$H:$L,5,FALSE),VLOOKUP($M31,TT_Tabelle_Riferimento!$D$127:$H$164,5,FALSE))","v":40},{"$f":"+IFERROR(VLOOKUP(QZ$27&\"-\"&$M31&\"_new\",Ammortamento_Finanziario!$H:$L,5,FALSE),VLOOKUP($M31,TT_Tabelle_Riferimento!$D$127:$H$164,5,FALSE))","v":40},{"$f":"+IFERROR(VLOOKUP(RA$27&\"-\"&$M31&\"_new\",Ammortamento_Finanziario!$H:$L,5,FALSE),VLOOKUP($M31,TT_Tabelle_Riferimento!$D$127:$H$164,5,FALSE))","v":40},{"$f":"+IFERROR(VLOOKUP(RB$27&\"-\"&$M31&\"_new\",Ammortamento_Finanziario!$H:$L,5,FALSE),VLOOKUP($M31,TT_Tabelle_Riferimento!$D$127:$H$164,5,FALSE))","v":40},{"$f":"+IFERROR(VLOOKUP(RC$27&\"-\"&$M31&\"_new\",Ammortamento_Finanziario!$H:$L,5,FALSE),VLOOKUP($M31,TT_Tabelle_Riferimento!$D$127:$H$164,5,FALSE))","v":40},{"$f":"+IFERROR(VLOOKUP(RD$27&\"-\"&$M31&\"_new\",Ammortamento_Finanziario!$H:$L,5,FALSE),VLOOKUP($M31,TT_Tabelle_Riferimento!$D$127:$H$164,5,FALSE))","v":40},{"$f":"+IFERROR(VLOOKUP(RE$27&\"-\"&$M31&\"_new\",Ammortamento_Finanziario!$H:$L,5,FALSE),VLOOKUP($M31,TT_Tabelle_Riferimento!$D$127:$H$164,5,FALSE))","v":40},{"$f":"+IFERROR(VLOOKUP(RF$27&\"-\"&$M31&\"_new\",Ammortamento_Finanziario!$H:$L,5,FALSE),VLOOKUP($M31,TT_Tabelle_Riferimento!$D$127:$H$164,5,FALSE))","v":40},{"$f":"+IFERROR(VLOOKUP(RG$27&\"-\"&$M31&\"_new\",Ammortamento_Finanziario!$H:$L,5,FALSE),VLOOKUP($M31,TT_Tabelle_Riferimento!$D$127:$H$164,5,FALSE))","v":40},{"$f":"+IFERROR(VLOOKUP(RH$27&\"-\"&$M31&\"_new\",Ammortamento_Finanziario!$H:$L,5,FALSE),VLOOKUP($M31,TT_Tabelle_Riferimento!$D$127:$H$164,5,FALSE))","v":40},{"$f":"+IFERROR(VLOOKUP(RI$27&\"-\"&$M31&\"_new\",Ammortamento_Finanziario!$H:$L,5,FALSE),VLOOKUP($M31,TT_Tabelle_Riferimento!$D$127:$H$164,5,FALSE))","v":40},{"$f":"+IFERROR(VLOOKUP(RJ$27&\"-\"&$M31&\"_new\",Ammortamento_Finanziario!$H:$L,5,FALSE),VLOOKUP($M31,TT_Tabelle_Riferimento!$D$127:$H$164,5,FALSE))","v":40},{"$f":"+IFERROR(VLOOKUP(RK$27&\"-\"&$M31&\"_new\",Ammortamento_Finanziario!$H:$L,5,FALSE),VLOOKUP($M31,TT_Tabelle_Riferimento!$D$127:$H$164,5,FALSE))","v":40},{"$f":"+IFERROR(VLOOKUP(RL$27&\"-\"&$M31&\"_new\",Ammortamento_Finanziario!$H:$L,5,FALSE),VLOOKUP($M31,TT_Tabelle_Riferimento!$D$127:$H$164,5,FALSE))","v":40},{"$f":"+IFERROR(VLOOKUP(RM$27&\"-\"&$M31&\"_new\",Ammortamento_Finanziario!$H:$L,5,FALSE),VLOOKUP($M31,TT_Tabelle_Riferimento!$D$127:$H$164,5,FALSE))","v":40},{"$f":"+IFERROR(VLOOKUP(RN$27&\"-\"&$M31&\"_new\",Ammortamento_Finanziario!$H:$L,5,FALSE),VLOOKUP($M31,TT_Tabelle_Riferimento!$D$127:$H$164,5,FALSE))","v":40},{"$f":"+IFERROR(VLOOKUP(RO$27&\"-\"&$M31&\"_new\",Ammortamento_Finanziario!$H:$L,5,FALSE),VLOOKUP($M31,TT_Tabelle_Riferimento!$D$127:$H$164,5,FALSE))","v":40},{"$f":"+IFERROR(VLOOKUP(RP$27&\"-\"&$M31&\"_new\",Ammortamento_Finanziario!$H:$L,5,FALSE),VLOOKUP($M31,TT_Tabelle_Riferimento!$D$127:$H$164,5,FALSE))","v":40},{"$f":"+IFERROR(VLOOKUP(RQ$27&\"-\"&$M31&\"_new\",Ammortamento_Finanziario!$H:$L,5,FALSE),VLOOKUP($M31,TT_Tabelle_Riferimento!$D$127:$H$164,5,FALSE))","v":40},{"$f":"+IFERROR(VLOOKUP(RR$27&\"-\"&$M31&\"_new\",Ammortamento_Finanziario!$H:$L,5,FALSE),VLOOKUP($M31,TT_Tabelle_Riferimento!$D$127:$H$164,5,FALSE))","v":40},{"$f":"+IFERROR(VLOOKUP(RS$27&\"-\"&$M31&\"_new\",Ammortamento_Finanziario!$H:$L,5,FALSE),VLOOKUP($M31,TT_Tabelle_Riferimento!$D$127:$H$164,5,FALSE))","v":40},{"$f":"+IFERROR(VLOOKUP(RT$27&\"-\"&$M31&\"_new\",Ammortamento_Finanziario!$H:$L,5,FALSE),VLOOKUP($M31,TT_Tabelle_Riferimento!$D$127:$H$164,5,FALSE))","v":40},{"$f":"+IFERROR(VLOOKUP(RU$27&\"-\"&$M31&\"_new\",Ammortamento_Finanziario!$H:$L,5,FALSE),VLOOKUP($M31,TT_Tabelle_Riferimento!$D$127:$H$164,5,FALSE))","v":40},{"$f":"+IFERROR(VLOOKUP(RV$27&\"-\"&$M31&\"_new\",Ammortamento_Finanziario!$H:$L,5,FALSE),VLOOKUP($M31,TT_Tabelle_Riferimento!$D$127:$H$164,5,FALSE))","v":40}]
[null,null,null,"IMN",{"$f":"+SUMIF(IMN_gestore!$E:$E,2022,IMN_gestore!$R:$R)","v":0},{"$f":"SUMIF(IMN_gestore!$E:$E,2023,IMN_gestore!$AC:$AC)","v":0},{"$f":"+SUMIF(IMN_gestore!$E:$E,2024,IMN_gestore!$AN:$AN)","v":0},{"$f":"SUMIF(IMN_gestore!$E:$E,2025,IMN_gestore!$AY:$AY)","v":0},{"$f":"SUMIF(IMN_gestore!$E:$E,2026,IMN_gestore!$BJ:$BJ)","v":0},{"$f":"SUMIF(IMN_gestore!$E:$E,2027,IMN_gestore!$BU:$BU)","v":0},null,null,5,0,0,0,0,0,0,0,0,0,0,0,0,0,0,0,0,0,0,0,0,0,0,0,0,0,0,0,0,0,0,0,0,0,0,0,0,0,0,0,0,0,0,0,0,0,0,0,0,0,0,0,0,0,0,0,0,0,0,0,0,0,0,0,0,0,0,0,0,0,0,0,0,0,0,0,0,0,0,0,0,0,0,0,0,0,0,0,0,0,0,0,0,0,0,0,0,0,0,0,0,0,0,0,0,0,0,0,0,0,0,0,0,0,0,0,0,0,0,0,0,0,0,0,0,0,0,0,0,0,0,0,0,0,0,0,0,0,0,0,0,0,0,0,0,0,0,0,0,0,0,0,0,0,0,0,0,0,0,0,0,0,0,0,0,0,0,0,0,0,0,0,0,0,0,0,0,0,0,0,0,0,0,0,0,0,0,0,0,0,0,0,0,0,0,0,0,0,0,0,0,0,0,0,0,0,0,0,0,0,0,0,0,0,0,0,0,0,0,0,0,0,0,0,0,0,0,0,0,0,0,0,0,0,0,0,0,0,0,0,0,0,0,0,0,0,0,0,0,0,0,0,0,0,0,0,0,0,0,0,0,0,0,0,0,0,0,0,0,0,0,0,0,0,0,0,0,0,0,0,0,0,0,0,0,0,0,0,0,0,{"$f":"+IFERROR(VLOOKUP(KQ$27&\"-\"&$M32&\"_new\",Ammortamento_Finanziario!$H:$L,5,FALSE),VLOOKUP($M32,TT_Tabelle_Riferimento!$D$127:$H$164,5,FALSE))","v":8},{"$f":"+IFERROR(VLOOKUP(KR$27&\"-\"&$M32&\"_new\",Ammortamento_Finanziario!$H:$L,5,FALSE),VLOOKUP($M32,TT_Tabelle_Riferimento!$D$127:$H$164,5,FALSE))","v":8},{"$f":"+IFERROR(VLOOKUP(KS$27&\"-\"&$M32&\"_new\",Ammortamento_Finanziario!$H:$L,5,FALSE),VLOOKUP($M32,TT_Tabelle_Riferimento!$D$127:$H$164,5,FALSE))","v":8},{"$f":"+IFERROR(VLOOKUP(KT$27&\"-\"&$M32&\"_new\",Ammortamento_Finanziario!$H:$L,5,FALSE),VLOOKUP($M32,TT_Tabelle_Riferimento!$D$127:$H$164,5,FALSE))","v":8},{"$f":"+IFERROR(VLOOKUP(KU$27&\"-\"&$M32&\"_new\",Ammortamento_Finanziario!$H:$L,5,FALSE),VLOOKUP($M32,TT_Tabelle_Riferimento!$D$127:$H$164,5,FALSE))","v":8},{"$f":"+IFERROR(VLOOKUP(KV$27&\"-\"&$M32&\"_new\",Ammortamento_Finanziario!$H:$L,5,FALSE),VLOOKUP($M32,TT_Tabelle_Riferimento!$D$127:$H$164,5,FALSE))","v":8},{"$f":"+IFERROR(VLOOKUP(KW$27&\"-\"&$M32&\"_new\",Ammortamento_Finanziario!$H:$L,5,FALSE),VLOOKUP($M32,TT_Tabelle_Riferimento!$D$127:$H$164,5,FALSE))","v":8},{"$f":"+IFERROR(VLOOKUP(KX$27&\"-\"&$M32&\"_new\",Ammortamento_Finanziario!$H:$L,5,FALSE),VLOOKUP($M32,TT_Tabelle_Riferimento!$D$127:$H$164,5,FALSE))","v":8},{"$f":"+IFERROR(VLOOKUP(KY$27&\"-\"&$M32&\"_new\",Ammortamento_Finanziario!$H:$L,5,FALSE),VLOOKUP($M32,TT_Tabelle_Riferimento!$D$127:$H$164,5,FALSE))","v":8},{"$f":"+IFERROR(VLOOKUP(KZ$27&\"-\"&$M32&\"_new\",Ammortamento_Finanziario!$H:$L,5,FALSE),VLOOKUP($M32,TT_Tabelle_Riferimento!$D$127:$H$164,5,FALSE))","v":8},{"$f":"+IFERROR(VLOOKUP(LA$27&\"-\"&$M32&\"_new\",Ammortamento_Finanziario!$H:$L,5,FALSE),VLOOKUP($M32,TT_Tabelle_Riferimento!$D$127:$H$164,5,FALSE))","v":8},{"$f":"+IFERROR(VLOOKUP(LB$27&\"-\"&$M32&\"_new\",Ammortamento_Finanziario!$H:$L,5,FALSE),VLOOKUP($M32,TT_Tabelle_Riferimento!$D$127:$H$164,5,FALSE))","v":8},{"$f":"+IFERROR(VLOOKUP(LC$27&\"-\"&$M32&\"_new\",Ammortamento_Finanziario!$H:$L,5,FALSE),VLOOKUP($M32,TT_Tabelle_Riferimento!$D$127:$H$164,5,FALSE))","v":8},{"$f":"+IFERROR(VLOOKUP(LD$27&\"-\"&$M32&\"_new\",Ammortamento_Finanziario!$H:$L,5,FALSE),VLOOKUP($M32,TT_Tabelle_Riferimento!$D$127:$H$164,5,FALSE))","v":8},{"$f":"+IFERROR(VLOOKUP(LE$27&\"-\"&$M32&\"_new\",Ammortamento_Finanziario!$H:$L,5,FALSE),VLOOKUP($M32,TT_Tabelle_Riferimento!$D$127:$H$164,5,FALSE))","v":8},{"$f":"+IFERROR(VLOOKUP(LF$27&\"-\"&$M32&\"_new\",Ammortamento_Finanziario!$H:$L,5,FALSE),VLOOKUP($M32,TT_Tabelle_Riferimento!$D$127:$H$164,5,FALSE))","v":8},{"$f":"+IFERROR(VLOOKUP(LG$27&\"-\"&$M32&\"_new\",Ammortamento_Finanziario!$H:$L,5,FALSE),VLOOKUP($M32,TT_Tabelle_Riferimento!$D$127:$H$164,5,FALSE))","v":8},{"$f":"+IFERROR(VLOOKUP(LH$27&\"-\"&$M32&\"_new\",Ammortamento_Finanziario!$H:$L,5,FALSE),VLOOKUP($M32,TT_Tabelle_Riferimento!$D$127:$H$164,5,FALSE))","v":8},{"$f":"+IFERROR(VLOOKUP(LI$27&\"-\"&$M32&\"_new\",Ammortamento_Finanziario!$H:$L,5,FALSE),VLOOKUP($M32,TT_Tabelle_Riferimento!$D$127:$H$164,5,FALSE))","v":8},{"$f":"+IFERROR(VLOOKUP(LJ$27&\"-\"&$M32&\"_new\",Ammortamento_Finanziario!$H:$L,5,FALSE),VLOOKUP($M32,TT_Tabelle_Riferimento!$D$127:$H$164,5,FALSE))","v":8},{"$f":"+IFERROR(VLOOKUP(LK$27&\"-\"&$M32&\"_new\",Ammortamento_Finanziario!$H:$L,5,FALSE),VLOOKUP($M32,TT_Tabelle_Riferimento!$D$127:$H$164,5,FALSE))","v":8},{"$f":"+IFERROR(VLOOKUP(LL$27&\"-\"&$M32&\"_new\",Ammortamento_Finanziario!$H:$L,5,FALSE),VLOOKUP($M32,TT_Tabelle_Riferimento!$D$127:$H$164,5,FALSE))","v":8},{"$f":"+IFERROR(VLOOKUP(LM$27&\"-\"&$M32&\"_new\",Ammortamento_Finanziario!$H:$L,5,FALSE),VLOOKUP($M32,TT_Tabelle_Riferimento!$D$127:$H$164,5,FALSE))","v":8},{"$f":"+IFERROR(VLOOKUP(LN$27&\"-\"&$M32&\"_new\",Ammortamento_Finanziario!$H:$L,5,FALSE),VLOOKUP($M32,TT_Tabelle_Riferimento!$D$127:$H$164,5,FALSE))","v":8},{"$f":"+IFERROR(VLOOKUP(LO$27&\"-\"&$M32&\"_new\",Ammortamento_Finanziario!$H:$L,5,FALSE),VLOOKUP($M32,TT_Tabelle_Riferimento!$D$127:$H$164,5,FALSE))","v":8},{"$f":"+IFERROR(VLOOKUP(LP$27&\"-\"&$M32&\"_new\",Ammortamento_Finanziario!$H:$L,5,FALSE),VLOOKUP($M32,TT_Tabelle_Riferimento!$D$127:$H$164,5,FALSE))","v":8},{"$f":"+IFERROR(VLOOKUP(LQ$27&\"-\"&$M32&\"_new\",Ammortamento_Finanziario!$H:$L,5,FALSE),VLOOKUP($M32,TT_Tabelle_Riferimento!$D$127:$H$164,5,FALSE))","v":8},{"$f":"+IFERROR(VLOOKUP(LR$27&\"-\"&$M32&\"_new\",Ammortamento_Finanziario!$H:$L,5,FALSE),VLOOKUP($M32,TT_Tabelle_Riferimento!$D$127:$H$164,5,FALSE))","v":8},{"$f":"+IFERROR(VLOOKUP(LS$27&\"-\"&$M32&\"_new\",Ammortamento_Finanziario!$H:$L,5,FALSE),VLOOKUP($M32,TT_Tabelle_Riferimento!$D$127:$H$164,5,FALSE))","v":8},{"$f":"+IFERROR(VLOOKUP(LT$27&\"-\"&$M32&\"_new\",Ammortamento_Finanziario!$H:$L,5,FALSE),VLOOKUP($M32,TT_Tabelle_Riferimento!$D$127:$H$164,5,FALSE))","v":8},{"$f":"+IFERROR(VLOOKUP(LU$27&\"-\"&$M32&\"_new\",Ammortamento_Finanziario!$H:$L,5,FALSE),VLOOKUP($M32,TT_Tabelle_Riferimento!$D$127:$H$164,5,FALSE))","v":8},{"$f":"+IFERROR(VLOOKUP(LV$27&\"-\"&$M32&\"_new\",Ammortamento_Finanziario!$H:$L,5,FALSE),VLOOKUP($M32,TT_Tabelle_Riferimento!$D$127:$H$164,5,FALSE))","v":8},{"$f":"+IFERROR(VLOOKUP(LW$27&\"-\"&$M32&\"_new\",Ammortamento_Finanziario!$H:$L,5,FALSE),VLOOKUP($M32,TT_Tabelle_Riferimento!$D$127:$H$164,5,FALSE))","v":8},{"$f":"+IFERROR(VLOOKUP(LX$27&\"-\"&$M32&\"_new\",Ammortamento_Finanziario!$H:$L,5,FALSE),VLOOKUP($M32,TT_Tabelle_Riferimento!$D$127:$H$164,5,FALSE))","v":8},{"$f":"+IFERROR(VLOOKUP(LY$27&\"-\"&$M32&\"_new\",Ammortamento_Finanziario!$H:$L,5,FALSE),VLOOKUP($M32,TT_Tabelle_Riferimento!$D$127:$H$164,5,FALSE))","v":8},{"$f":"+IFERROR(VLOOKUP(LZ$27&\"-\"&$M32&\"_new\",Ammortamento_Finanziario!$H:$L,5,FALSE),VLOOKUP($M32,TT_Tabelle_Riferimento!$D$127:$H$164,5,FALSE))","v":8},{"$f":"+IFERROR(VLOOKUP(MA$27&\"-\"&$M32&\"_new\",Ammortamento_Finanziario!$H:$L,5,FALSE),VLOOKUP($M32,TT_Tabelle_Riferimento!$D$127:$H$164,5,FALSE))","v":8},{"$f":"+IFERROR(VLOOKUP(MB$27&\"-\"&$M32&\"_new\",Ammortamento_Finanziario!$H:$L,5,FALSE),VLOOKUP($M32,TT_Tabelle_Riferimento!$D$127:$H$164,5,FALSE))","v":8},{"$f":"+IFERROR(VLOOKUP(MC$27&\"-\"&$M32&\"_new\",Ammortamento_Finanziario!$H:$L,5,FALSE),VLOOKUP($M32,TT_Tabelle_Riferimento!$D$127:$H$164,5,FALSE))","v":8},{"$f":"+IFERROR(VLOOKUP(MD$27&\"-\"&$M32&\"_new\",Ammortamento_Finanziario!$H:$L,5,FALSE),VLOOKUP($M32,TT_Tabelle_Riferimento!$D$127:$H$164,5,FALSE))","v":8},{"$f":"+IFERROR(VLOOKUP(ME$27&\"-\"&$M32&\"_new\",Ammortamento_Finanziario!$H:$L,5,FALSE),VLOOKUP($M32,TT_Tabelle_Riferimento!$D$127:$H$164,5,FALSE))","v":8},{"$f":"+IFERROR(VLOOKUP(MF$27&\"-\"&$M32&\"_new\",Ammortamento_Finanziario!$H:$L,5,FALSE),VLOOKUP($M32,TT_Tabelle_Riferimento!$D$127:$H$164,5,FALSE))","v":8},{"$f":"+IFERROR(VLOOKUP(MG$27&\"-\"&$M32&\"_new\",Ammortamento_Finanziario!$H:$L,5,FALSE),VLOOKUP($M32,TT_Tabelle_Riferimento!$D$127:$H$164,5,FALSE))","v":8},{"$f":"+IFERROR(VLOOKUP(MH$27&\"-\"&$M32&\"_new\",Ammortamento_Finanziario!$H:$L,5,FALSE),VLOOKUP($M32,TT_Tabelle_Riferimento!$D$127:$H$164,5,FALSE))","v":8},{"$f":"+IFERROR(VLOOKUP(MI$27&\"-\"&$M32&\"_new\",Ammortamento_Finanziario!$H:$L,5,FALSE),VLOOKUP($M32,TT_Tabelle_Riferimento!$D$127:$H$164,5,FALSE))","v":8},{"$f":"+IFERROR(VLOOKUP(MJ$27&\"-\"&$M32&\"_new\",Ammortamento_Finanziario!$H:$L,5,FALSE),VLOOKUP($M32,TT_Tabelle_Riferimento!$D$127:$H$164,5,FALSE))","v":8},{"$f":"+IFERROR(VLOOKUP(MK$27&\"-\"&$M32&\"_new\",Ammortamento_Finanziario!$H:$L,5,FALSE),VLOOKUP($M32,TT_Tabelle_Riferimento!$D$127:$H$164,5,FALSE))","v":8},{"$f":"+IFERROR(VLOOKUP(ML$27&\"-\"&$M32&\"_new\",Ammortamento_Finanziario!$H:$L,5,FALSE),VLOOKUP($M32,TT_Tabelle_Riferimento!$D$127:$H$164,5,FALSE))","v":8},{"$f":"+IFERROR(VLOOKUP(MM$27&\"-\"&$M32&\"_new\",Ammortamento_Finanziario!$H:$L,5,FALSE),VLOOKUP($M32,TT_Tabelle_Riferimento!$D$127:$H$164,5,FALSE))","v":8},{"$f":"+IFERROR(VLOOKUP(MN$27&\"-\"&$M32&\"_new\",Ammortamento_Finanziario!$H:$L,5,FALSE),VLOOKUP($M32,TT_Tabelle_Riferimento!$D$127:$H$164,5,FALSE))","v":8},{"$f":"+IFERROR(VLOOKUP(MO$27&\"-\"&$M32&\"_new\",Ammortamento_Finanziario!$H:$L,5,FALSE),VLOOKUP($M32,TT_Tabelle_Riferimento!$D$127:$H$164,5,FALSE))","v":8},{"$f":"+IFERROR(VLOOKUP(MP$27&\"-\"&$M32&\"_new\",Ammortamento_Finanziario!$H:$L,5,FALSE),VLOOKUP($M32,TT_Tabelle_Riferimento!$D$127:$H$164,5,FALSE))","v":8},{"$f":"+IFERROR(VLOOKUP(MQ$27&\"-\"&$M32&\"_new\",Ammortamento_Finanziario!$H:$L,5,FALSE),VLOOKUP($M32,TT_Tabelle_Riferimento!$D$127:$H$164,5,FALSE))","v":8},{"$f":"+IFERROR(VLOOKUP(MR$27&\"-\"&$M32&\"_new\",Ammortamento_Finanziario!$H:$L,5,FALSE),VLOOKUP($M32,TT_Tabelle_Riferimento!$D$127:$H$164,5,FALSE))","v":8},{"$f":"+IFERROR(VLOOKUP(MS$27&\"-\"&$M32&\"_new\",Ammortamento_Finanziario!$H:$L,5,FALSE),VLOOKUP($M32,TT_Tabelle_Riferimento!$D$127:$H$164,5,FALSE))","v":8},{"$f":"+IFERROR(VLOOKUP(MT$27&\"-\"&$M32&\"_new\",Ammortamento_Finanziario!$H:$L,5,FALSE),VLOOKUP($M32,TT_Tabelle_Riferimento!$D$127:$H$164,5,FALSE))","v":8},{"$f":"+IFERROR(VLOOKUP(MU$27&\"-\"&$M32&\"_new\",Ammortamento_Finanziario!$H:$L,5,FALSE),VLOOKUP($M32,TT_Tabelle_Riferimento!$D$127:$H$164,5,FALSE))","v":8},{"$f":"+IFERROR(VLOOKUP(MV$27&\"-\"&$M32&\"_new\",Ammortamento_Finanziario!$H:$L,5,FALSE),VLOOKUP($M32,TT_Tabelle_Riferimento!$D$127:$H$164,5,FALSE))","v":8},{"$f":"+IFERROR(VLOOKUP(MW$27&\"-\"&$M32&\"_new\",Ammortamento_Finanziario!$H:$L,5,FALSE),VLOOKUP($M32,TT_Tabelle_Riferimento!$D$127:$H$164,5,FALSE))","v":8},{"$f":"+IFERROR(VLOOKUP(MX$27&\"-\"&$M32&\"_new\",Ammortamento_Finanziario!$H:$L,5,FALSE),VLOOKUP($M32,TT_Tabelle_Riferimento!$D$127:$H$164,5,FALSE))","v":8},{"$f":"+IFERROR(VLOOKUP(MY$27&\"-\"&$M32&\"_new\",Ammortamento_Finanziario!$H:$L,5,FALSE),VLOOKUP($M32,TT_Tabelle_Riferimento!$D$127:$H$164,5,FALSE))","v":8},{"$f":"+IFERROR(VLOOKUP(MZ$27&\"-\"&$M32&\"_new\",Ammortamento_Finanziario!$H:$L,5,FALSE),VLOOKUP($M32,TT_Tabelle_Riferimento!$D$127:$H$164,5,FALSE))","v":8},{"$f":"+IFERROR(VLOOKUP(NA$27&\"-\"&$M32&\"_new\",Ammortamento_Finanziario!$H:$L,5,FALSE),VLOOKUP($M32,TT_Tabelle_Riferimento!$D$127:$H$164,5,FALSE))","v":8},{"$f":"+IFERROR(VLOOKUP(NB$27&\"-\"&$M32&\"_new\",Ammortamento_Finanziario!$H:$L,5,FALSE),VLOOKUP($M32,TT_Tabelle_Riferimento!$D$127:$H$164,5,FALSE))","v":8},{"$f":"+IFERROR(VLOOKUP(NC$27&\"-\"&$M32&\"_new\",Ammortamento_Finanziario!$H:$L,5,FALSE),VLOOKUP($M32,TT_Tabelle_Riferimento!$D$127:$H$164,5,FALSE))","v":8},{"$f":"+IFERROR(VLOOKUP(ND$27&\"-\"&$M32&\"_new\",Ammortamento_Finanziario!$H:$L,5,FALSE),VLOOKUP($M32,TT_Tabelle_Riferimento!$D$127:$H$164,5,FALSE))","v":8},{"$f":"+IFERROR(VLOOKUP(NE$27&\"-\"&$M32&\"_new\",Ammortamento_Finanziario!$H:$L,5,FALSE),VLOOKUP($M32,TT_Tabelle_Riferimento!$D$127:$H$164,5,FALSE))","v":8},{"$f":"+IFERROR(VLOOKUP(NF$27&\"-\"&$M32&\"_new\",Ammortamento_Finanziario!$H:$L,5,FALSE),VLOOKUP($M32,TT_Tabelle_Riferimento!$D$127:$H$164,5,FALSE))","v":8},{"$f":"+IFERROR(VLOOKUP(NG$27&\"-\"&$M32&\"_new\",Ammortamento_Finanziario!$H:$L,5,FALSE),VLOOKUP($M32,TT_Tabelle_Riferimento!$D$127:$H$164,5,FALSE))","v":8},{"$f":"+IFERROR(VLOOKUP(NH$27&\"-\"&$M32&\"_new\",Ammortamento_Finanziario!$H:$L,5,FALSE),VLOOKUP($M32,TT_Tabelle_Riferimento!$D$127:$H$164,5,FALSE))","v":8},{"$f":"+IFERROR(VLOOKUP(NI$27&\"-\"&$M32&\"_new\",Ammortamento_Finanziario!$H:$L,5,FALSE),VLOOKUP($M32,TT_Tabelle_Riferimento!$D$127:$H$164,5,FALSE))","v":8},{"$f":"+IFERROR(VLOOKUP(NJ$27&\"-\"&$M32&\"_new\",Ammortamento_Finanziario!$H:$L,5,FALSE),VLOOKUP($M32,TT_Tabelle_Riferimento!$D$127:$H$164,5,FALSE))","v":8},{"$f":"+IFERROR(VLOOKUP(NK$27&\"-\"&$M32&\"_new\",Ammortamento_Finanziario!$H:$L,5,FALSE),VLOOKUP($M32,TT_Tabelle_Riferimento!$D$127:$H$164,5,FALSE))","v":8},{"$f":"+IFERROR(VLOOKUP(NL$27&\"-\"&$M32&\"_new\",Ammortamento_Finanziario!$H:$L,5,FALSE),VLOOKUP($M32,TT_Tabelle_Riferimento!$D$127:$H$164,5,FALSE))","v":8},{"$f":"+IFERROR(VLOOKUP(NM$27&\"-\"&$M32&\"_new\",Ammortamento_Finanziario!$H:$L,5,FALSE),VLOOKUP($M32,TT_Tabelle_Riferimento!$D$127:$H$164,5,FALSE))","v":8},{"$f":"+IFERROR(VLOOKUP(NN$27&\"-\"&$M32&\"_new\",Ammortamento_Finanziario!$H:$L,5,FALSE),VLOOKUP($M32,TT_Tabelle_Riferimento!$D$127:$H$164,5,FALSE))","v":8},{"$f":"+IFERROR(VLOOKUP(NO$27&\"-\"&$M32&\"_new\",Ammortamento_Finanziario!$H:$L,5,FALSE),VLOOKUP($M32,TT_Tabelle_Riferimento!$D$127:$H$164,5,FALSE))","v":8},{"$f":"+IFERROR(VLOOKUP(NP$27&\"-\"&$M32&\"_new\",Ammortamento_Finanziario!$H:$L,5,FALSE),VLOOKUP($M32,TT_Tabelle_Riferimento!$D$127:$H$164,5,FALSE))","v":8},{"$f":"+IFERROR(VLOOKUP(NQ$27&\"-\"&$M32&\"_new\",Ammortamento_Finanziario!$H:$L,5,FALSE),VLOOKUP($M32,TT_Tabelle_Riferimento!$D$127:$H$164,5,FALSE))","v":8},{"$f":"+IFERROR(VLOOKUP(NR$27&\"-\"&$M32&\"_new\",Ammortamento_Finanziario!$H:$L,5,FALSE),VLOOKUP($M32,TT_Tabelle_Riferimento!$D$127:$H$164,5,FALSE))","v":8},{"$f":"+IFERROR(VLOOKUP(NS$27&\"-\"&$M32&\"_new\",Ammortamento_Finanziario!$H:$L,5,FALSE),VLOOKUP($M32,TT_Tabelle_Riferimento!$D$127:$H$164,5,FALSE))","v":8},{"$f":"+IFERROR(VLOOKUP(NT$27&\"-\"&$M32&\"_new\",Ammortamento_Finanziario!$H:$L,5,FALSE),VLOOKUP($M32,TT_Tabelle_Riferimento!$D$127:$H$164,5,FALSE))","v":8},{"$f":"+IFERROR(VLOOKUP(NU$27&\"-\"&$M32&\"_new\",Ammortamento_Finanziario!$H:$L,5,FALSE),VLOOKUP($M32,TT_Tabelle_Riferimento!$D$127:$H$164,5,FALSE))","v":8},{"$f":"+IFERROR(VLOOKUP(NV$27&\"-\"&$M32&\"_new\",Ammortamento_Finanziario!$H:$L,5,FALSE),VLOOKUP($M32,TT_Tabelle_Riferimento!$D$127:$H$164,5,FALSE))","v":8},{"$f":"+IFERROR(VLOOKUP(NW$27&\"-\"&$M32&\"_new\",Ammortamento_Finanziario!$H:$L,5,FALSE),VLOOKUP($M32,TT_Tabelle_Riferimento!$D$127:$H$164,5,FALSE))","v":8},{"$f":"+IFERROR(VLOOKUP(NX$27&\"-\"&$M32&\"_new\",Ammortamento_Finanziario!$H:$L,5,FALSE),VLOOKUP($M32,TT_Tabelle_Riferimento!$D$127:$H$164,5,FALSE))","v":8},{"$f":"+IFERROR(VLOOKUP(NY$27&\"-\"&$M32&\"_new\",Ammortamento_Finanziario!$H:$L,5,FALSE),VLOOKUP($M32,TT_Tabelle_Riferimento!$D$127:$H$164,5,FALSE))","v":8},{"$f":"+IFERROR(VLOOKUP(NZ$27&\"-\"&$M32&\"_new\",Ammortamento_Finanziario!$H:$L,5,FALSE),VLOOKUP($M32,TT_Tabelle_Riferimento!$D$127:$H$164,5,FALSE))","v":8},{"$f":"+IFERROR(VLOOKUP(OA$27&\"-\"&$M32&\"_new\",Ammortamento_Finanziario!$H:$L,5,FALSE),VLOOKUP($M32,TT_Tabelle_Riferimento!$D$127:$H$164,5,FALSE))","v":8},{"$f":"+IFERROR(VLOOKUP(OB$27&\"-\"&$M32&\"_new\",Ammortamento_Finanziario!$H:$L,5,FALSE),VLOOKUP($M32,TT_Tabelle_Riferimento!$D$127:$H$164,5,FALSE))","v":8},{"$f":"+IFERROR(VLOOKUP(OC$27&\"-\"&$M32&\"_new\",Ammortamento_Finanziario!$H:$L,5,FALSE),VLOOKUP($M32,TT_Tabelle_Riferimento!$D$127:$H$164,5,FALSE))","v":8},{"$f":"+IFERROR(VLOOKUP(OD$27&\"-\"&$M32&\"_new\",Ammortamento_Finanziario!$H:$L,5,FALSE),VLOOKUP($M32,TT_Tabelle_Riferimento!$D$127:$H$164,5,FALSE))","v":8},{"$f":"+IFERROR(VLOOKUP(OE$27&\"-\"&$M32&\"_new\",Ammortamento_Finanziario!$H:$L,5,FALSE),VLOOKUP($M32,TT_Tabelle_Riferimento!$D$127:$H$164,5,FALSE))","v":8},{"$f":"+IFERROR(VLOOKUP(OF$27&\"-\"&$M32&\"_new\",Ammortamento_Finanziario!$H:$L,5,FALSE),VLOOKUP($M32,TT_Tabelle_Riferimento!$D$127:$H$164,5,FALSE))","v":8},{"$f":"+IFERROR(VLOOKUP(OG$27&\"-\"&$M32&\"_new\",Ammortamento_Finanziario!$H:$L,5,FALSE),VLOOKUP($M32,TT_Tabelle_Riferimento!$D$127:$H$164,5,FALSE))","v":8},{"$f":"+IFERROR(VLOOKUP(OH$27&\"-\"&$M32&\"_new\",Ammortamento_Finanziario!$H:$L,5,FALSE),VLOOKUP($M32,TT_Tabelle_Riferimento!$D$127:$H$164,5,FALSE))","v":8},{"$f":"+IFERROR(VLOOKUP(OI$27&\"-\"&$M32&\"_new\",Ammortamento_Finanziario!$H:$L,5,FALSE),VLOOKUP($M32,TT_Tabelle_Riferimento!$D$127:$H$164,5,FALSE))","v":8},{"$f":"+IFERROR(VLOOKUP(OJ$27&\"-\"&$M32&\"_new\",Ammortamento_Finanziario!$H:$L,5,FALSE),VLOOKUP($M32,TT_Tabelle_Riferimento!$D$127:$H$164,5,FALSE))","v":8},{"$f":"+IFERROR(VLOOKUP(OK$27&\"-\"&$M32&\"_new\",Ammortamento_Finanziario!$H:$L,5,FALSE),VLOOKUP($M32,TT_Tabelle_Riferimento!$D$127:$H$164,5,FALSE))","v":8},{"$f":"+IFERROR(VLOOKUP(OL$27&\"-\"&$M32&\"_new\",Ammortamento_Finanziario!$H:$L,5,FALSE),VLOOKUP($M32,TT_Tabelle_Riferimento!$D$127:$H$164,5,FALSE))","v":8},{"$f":"+IFERROR(VLOOKUP(OM$27&\"-\"&$M32&\"_new\",Ammortamento_Finanziario!$H:$L,5,FALSE),VLOOKUP($M32,TT_Tabelle_Riferimento!$D$127:$H$164,5,FALSE))","v":8},{"$f":"+IFERROR(VLOOKUP(ON$27&\"-\"&$M32&\"_new\",Ammortamento_Finanziario!$H:$L,5,FALSE),VLOOKUP($M32,TT_Tabelle_Riferimento!$D$127:$H$164,5,FALSE))","v":8},{"$f":"+IFERROR(VLOOKUP(OO$27&\"-\"&$M32&\"_new\",Ammortamento_Finanziario!$H:$L,5,FALSE),VLOOKUP($M32,TT_Tabelle_Riferimento!$D$127:$H$164,5,FALSE))","v":8},{"$f":"+IFERROR(VLOOKUP(OP$27&\"-\"&$M32&\"_new\",Ammortamento_Finanziario!$H:$L,5,FALSE),VLOOKUP($M32,TT_Tabelle_Riferimento!$D$127:$H$164,5,FALSE))","v":8},{"$f":"+IFERROR(VLOOKUP(OQ$27&\"-\"&$M32&\"_new\",Ammortamento_Finanziario!$H:$L,5,FALSE),VLOOKUP($M32,TT_Tabelle_Riferimento!$D$127:$H$164,5,FALSE))","v":8},{"$f":"+IFERROR(VLOOKUP(OR$27&\"-\"&$M32&\"_new\",Ammortamento_Finanziario!$H:$L,5,FALSE),VLOOKUP($M32,TT_Tabelle_Riferimento!$D$127:$H$164,5,FALSE))","v":8},{"$f":"+IFERROR(VLOOKUP(OS$27&\"-\"&$M32&\"_new\",Ammortamento_Finanziario!$H:$L,5,FALSE),VLOOKUP($M32,TT_Tabelle_Riferimento!$D$127:$H$164,5,FALSE))","v":8},{"$f":"+IFERROR(VLOOKUP(OT$27&\"-\"&$M32&\"_new\",Ammortamento_Finanziario!$H:$L,5,FALSE),VLOOKUP($M32,TT_Tabelle_Riferimento!$D$127:$H$164,5,FALSE))","v":8},{"$f":"+IFERROR(VLOOKUP(OU$27&\"-\"&$M32&\"_new\",Ammortamento_Finanziario!$H:$L,5,FALSE),VLOOKUP($M32,TT_Tabelle_Riferimento!$D$127:$H$164,5,FALSE))","v":8},{"$f":"+IFERROR(VLOOKUP(OV$27&\"-\"&$M32&\"_new\",Ammortamento_Finanziario!$H:$L,5,FALSE),VLOOKUP($M32,TT_Tabelle_Riferimento!$D$127:$H$164,5,FALSE))","v":8},{"$f":"+IFERROR(VLOOKUP(OW$27&\"-\"&$M32&\"_new\",Ammortamento_Finanziario!$H:$L,5,FALSE),VLOOKUP($M32,TT_Tabelle_Riferimento!$D$127:$H$164,5,FALSE))","v":8},{"$f":"+IFERROR(VLOOKUP(OX$27&\"-\"&$M32&\"_new\",Ammortamento_Finanziario!$H:$L,5,FALSE),VLOOKUP($M32,TT_Tabelle_Riferimento!$D$127:$H$164,5,FALSE))","v":8},{"$f":"+IFERROR(VLOOKUP(OY$27&\"-\"&$M32&\"_new\",Ammortamento_Finanziario!$H:$L,5,FALSE),VLOOKUP($M32,TT_Tabelle_Riferimento!$D$127:$H$164,5,FALSE))","v":8},{"$f":"+IFERROR(VLOOKUP(OZ$27&\"-\"&$M32&\"_new\",Ammortamento_Finanziario!$H:$L,5,FALSE),VLOOKUP($M32,TT_Tabelle_Riferimento!$D$127:$H$164,5,FALSE))","v":8},{"$f":"+IFERROR(VLOOKUP(PA$27&\"-\"&$M32&\"_new\",Ammortamento_Finanziario!$H:$L,5,FALSE),VLOOKUP($M32,TT_Tabelle_Riferimento!$D$127:$H$164,5,FALSE))","v":8},{"$f":"+IFERROR(VLOOKUP(PB$27&\"-\"&$M32&\"_new\",Ammortamento_Finanziario!$H:$L,5,FALSE),VLOOKUP($M32,TT_Tabelle_Riferimento!$D$127:$H$164,5,FALSE))","v":8},{"$f":"+IFERROR(VLOOKUP(PC$27&\"-\"&$M32&\"_new\",Ammortamento_Finanziario!$H:$L,5,FALSE),VLOOKUP($M32,TT_Tabelle_Riferimento!$D$127:$H$164,5,FALSE))","v":8},{"$f":"+IFERROR(VLOOKUP(PD$27&\"-\"&$M32&\"_new\",Ammortamento_Finanziario!$H:$L,5,FALSE),VLOOKUP($M32,TT_Tabelle_Riferimento!$D$127:$H$164,5,FALSE))","v":8},{"$f":"+IFERROR(VLOOKUP(PE$27&\"-\"&$M32&\"_new\",Ammortamento_Finanziario!$H:$L,5,FALSE),VLOOKUP($M32,TT_Tabelle_Riferimento!$D$127:$H$164,5,FALSE))","v":8},{"$f":"+IFERROR(VLOOKUP(PF$27&\"-\"&$M32&\"_new\",Ammortamento_Finanziario!$H:$L,5,FALSE),VLOOKUP($M32,TT_Tabelle_Riferimento!$D$127:$H$164,5,FALSE))","v":8},{"$f":"+IFERROR(VLOOKUP(PG$27&\"-\"&$M32&\"_new\",Ammortamento_Finanziario!$H:$L,5,FALSE),VLOOKUP($M32,TT_Tabelle_Riferimento!$D$127:$H$164,5,FALSE))","v":8},{"$f":"+IFERROR(VLOOKUP(PH$27&\"-\"&$M32&\"_new\",Ammortamento_Finanziario!$H:$L,5,FALSE),VLOOKUP($M32,TT_Tabelle_Riferimento!$D$127:$H$164,5,FALSE))","v":8},{"$f":"+IFERROR(VLOOKUP(PI$27&\"-\"&$M32&\"_new\",Ammortamento_Finanziario!$H:$L,5,FALSE),VLOOKUP($M32,TT_Tabelle_Riferimento!$D$127:$H$164,5,FALSE))","v":8},{"$f":"+IFERROR(VLOOKUP(PJ$27&\"-\"&$M32&\"_new\",Ammortamento_Finanziario!$H:$L,5,FALSE),VLOOKUP($M32,TT_Tabelle_Riferimento!$D$127:$H$164,5,FALSE))","v":8},{"$f":"+IFERROR(VLOOKUP(PK$27&\"-\"&$M32&\"_new\",Ammortamento_Finanziario!$H:$L,5,FALSE),VLOOKUP($M32,TT_Tabelle_Riferimento!$D$127:$H$164,5,FALSE))","v":8},{"$f":"+IFERROR(VLOOKUP(PL$27&\"-\"&$M32&\"_new\",Ammortamento_Finanziario!$H:$L,5,FALSE),VLOOKUP($M32,TT_Tabelle_Riferimento!$D$127:$H$164,5,FALSE))","v":8},{"$f":"+IFERROR(VLOOKUP(PM$27&\"-\"&$M32&\"_new\",Ammortamento_Finanziario!$H:$L,5,FALSE),VLOOKUP($M32,TT_Tabelle_Riferimento!$D$127:$H$164,5,FALSE))","v":8},{"$f":"+IFERROR(VLOOKUP(PN$27&\"-\"&$M32&\"_new\",Ammortamento_Finanziario!$H:$L,5,FALSE),VLOOKUP($M32,TT_Tabelle_Riferimento!$D$127:$H$164,5,FALSE))","v":8},{"$f":"+IFERROR(VLOOKUP(PO$27&\"-\"&$M32&\"_new\",Ammortamento_Finanziario!$H:$L,5,FALSE),VLOOKUP($M32,TT_Tabelle_Riferimento!$D$127:$H$164,5,FALSE))","v":8},{"$f":"+IFERROR(VLOOKUP(PP$27&\"-\"&$M32&\"_new\",Ammortamento_Finanziario!$H:$L,5,FALSE),VLOOKUP($M32,TT_Tabelle_Riferimento!$D$127:$H$164,5,FALSE))","v":8},{"$f":"+IFERROR(VLOOKUP(PQ$27&\"-\"&$M32&\"_new\",Ammortamento_Finanziario!$H:$L,5,FALSE),VLOOKUP($M32,TT_Tabelle_Riferimento!$D$127:$H$164,5,FALSE))","v":8},{"$f":"+IFERROR(VLOOKUP(PR$27&\"-\"&$M32&\"_new\",Ammortamento_Finanziario!$H:$L,5,FALSE),VLOOKUP($M32,TT_Tabelle_Riferimento!$D$127:$H$164,5,FALSE))","v":8},{"$f":"+IFERROR(VLOOKUP(PS$27&\"-\"&$M32&\"_new\",Ammortamento_Finanziario!$H:$L,5,FALSE),VLOOKUP($M32,TT_Tabelle_Riferimento!$D$127:$H$164,5,FALSE))","v":8},{"$f":"+IFERROR(VLOOKUP(PT$27&\"-\"&$M32&\"_new\",Ammortamento_Finanziario!$H:$L,5,FALSE),VLOOKUP($M32,TT_Tabelle_Riferimento!$D$127:$H$164,5,FALSE))","v":8},{"$f":"+IFERROR(VLOOKUP(PU$27&\"-\"&$M32&\"_new\",Ammortamento_Finanziario!$H:$L,5,FALSE),VLOOKUP($M32,TT_Tabelle_Riferimento!$D$127:$H$164,5,FALSE))","v":8},{"$f":"+IFERROR(VLOOKUP(PV$27&\"-\"&$M32&\"_new\",Ammortamento_Finanziario!$H:$L,5,FALSE),VLOOKUP($M32,TT_Tabelle_Riferimento!$D$127:$H$164,5,FALSE))","v":8},{"$f":"+IFERROR(VLOOKUP(PW$27&\"-\"&$M32&\"_new\",Ammortamento_Finanziario!$H:$L,5,FALSE),VLOOKUP($M32,TT_Tabelle_Riferimento!$D$127:$H$164,5,FALSE))","v":8},{"$f":"+IFERROR(VLOOKUP(PX$27&\"-\"&$M32&\"_new\",Ammortamento_Finanziario!$H:$L,5,FALSE),VLOOKUP($M32,TT_Tabelle_Riferimento!$D$127:$H$164,5,FALSE))","v":8},{"$f":"+IFERROR(VLOOKUP(PY$27&\"-\"&$M32&\"_new\",Ammortamento_Finanziario!$H:$L,5,FALSE),VLOOKUP($M32,TT_Tabelle_Riferimento!$D$127:$H$164,5,FALSE))","v":8},{"$f":"+IFERROR(VLOOKUP(PZ$27&\"-\"&$M32&\"_new\",Ammortamento_Finanziario!$H:$L,5,FALSE),VLOOKUP($M32,TT_Tabelle_Riferimento!$D$127:$H$164,5,FALSE))","v":8},{"$f":"+IFERROR(VLOOKUP(QA$27&\"-\"&$M32&\"_new\",Ammortamento_Finanziario!$H:$L,5,FALSE),VLOOKUP($M32,TT_Tabelle_Riferimento!$D$127:$H$164,5,FALSE))","v":8},{"$f":"+IFERROR(VLOOKUP(QB$27&\"-\"&$M32&\"_new\",Ammortamento_Finanziario!$H:$L,5,FALSE),VLOOKUP($M32,TT_Tabelle_Riferimento!$D$127:$H$164,5,FALSE))","v":8},{"$f":"+IFERROR(VLOOKUP(QC$27&\"-\"&$M32&\"_new\",Ammortamento_Finanziario!$H:$L,5,FALSE),VLOOKUP($M32,TT_Tabelle_Riferimento!$D$127:$H$164,5,FALSE))","v":8},{"$f":"+IFERROR(VLOOKUP(QD$27&\"-\"&$M32&\"_new\",Ammortamento_Finanziario!$H:$L,5,FALSE),VLOOKUP($M32,TT_Tabelle_Riferimento!$D$127:$H$164,5,FALSE))","v":8},{"$f":"+IFERROR(VLOOKUP(QE$27&\"-\"&$M32&\"_new\",Ammortamento_Finanziario!$H:$L,5,FALSE),VLOOKUP($M32,TT_Tabelle_Riferimento!$D$127:$H$164,5,FALSE))","v":8},{"$f":"+IFERROR(VLOOKUP(QF$27&\"-\"&$M32&\"_new\",Ammortamento_Finanziario!$H:$L,5,FALSE),VLOOKUP($M32,TT_Tabelle_Riferimento!$D$127:$H$164,5,FALSE))","v":8},{"$f":"+IFERROR(VLOOKUP(QG$27&\"-\"&$M32&\"_new\",Ammortamento_Finanziario!$H:$L,5,FALSE),VLOOKUP($M32,TT_Tabelle_Riferimento!$D$127:$H$164,5,FALSE))","v":8},{"$f":"+IFERROR(VLOOKUP(QH$27&\"-\"&$M32&\"_new\",Ammortamento_Finanziario!$H:$L,5,FALSE),VLOOKUP($M32,TT_Tabelle_Riferimento!$D$127:$H$164,5,FALSE))","v":8},{"$f":"+IFERROR(VLOOKUP(QI$27&\"-\"&$M32&\"_new\",Ammortamento_Finanziario!$H:$L,5,FALSE),VLOOKUP($M32,TT_Tabelle_Riferimento!$D$127:$H$164,5,FALSE))","v":8},{"$f":"+IFERROR(VLOOKUP(QJ$27&\"-\"&$M32&\"_new\",Ammortamento_Finanziario!$H:$L,5,FALSE),VLOOKUP($M32,TT_Tabelle_Riferimento!$D$127:$H$164,5,FALSE))","v":8},{"$f":"+IFERROR(VLOOKUP(QK$27&\"-\"&$M32&\"_new\",Ammortamento_Finanziario!$H:$L,5,FALSE),VLOOKUP($M32,TT_Tabelle_Riferimento!$D$127:$H$164,5,FALSE))","v":8},{"$f":"+IFERROR(VLOOKUP(QL$27&\"-\"&$M32&\"_new\",Ammortamento_Finanziario!$H:$L,5,FALSE),VLOOKUP($M32,TT_Tabelle_Riferimento!$D$127:$H$164,5,FALSE))","v":8},{"$f":"+IFERROR(VLOOKUP(QM$27&\"-\"&$M32&\"_new\",Ammortamento_Finanziario!$H:$L,5,FALSE),VLOOKUP($M32,TT_Tabelle_Riferimento!$D$127:$H$164,5,FALSE))","v":8},{"$f":"+IFERROR(VLOOKUP(QN$27&\"-\"&$M32&\"_new\",Ammortamento_Finanziario!$H:$L,5,FALSE),VLOOKUP($M32,TT_Tabelle_Riferimento!$D$127:$H$164,5,FALSE))","v":8},{"$f":"+IFERROR(VLOOKUP(QO$27&\"-\"&$M32&\"_new\",Ammortamento_Finanziario!$H:$L,5,FALSE),VLOOKUP($M32,TT_Tabelle_Riferimento!$D$127:$H$164,5,FALSE))","v":8},{"$f":"+IFERROR(VLOOKUP(QP$27&\"-\"&$M32&\"_new\",Ammortamento_Finanziario!$H:$L,5,FALSE),VLOOKUP($M32,TT_Tabelle_Riferimento!$D$127:$H$164,5,FALSE))","v":8},{"$f":"+IFERROR(VLOOKUP(QQ$27&\"-\"&$M32&\"_new\",Ammortamento_Finanziario!$H:$L,5,FALSE),VLOOKUP($M32,TT_Tabelle_Riferimento!$D$127:$H$164,5,FALSE))","v":8},{"$f":"+IFERROR(VLOOKUP(QR$27&\"-\"&$M32&\"_new\",Ammortamento_Finanziario!$H:$L,5,FALSE),VLOOKUP($M32,TT_Tabelle_Riferimento!$D$127:$H$164,5,FALSE))","v":8},{"$f":"+IFERROR(VLOOKUP(QS$27&\"-\"&$M32&\"_new\",Ammortamento_Finanziario!$H:$L,5,FALSE),VLOOKUP($M32,TT_Tabelle_Riferimento!$D$127:$H$164,5,FALSE))","v":8},{"$f":"+IFERROR(VLOOKUP(QT$27&\"-\"&$M32&\"_new\",Ammortamento_Finanziario!$H:$L,5,FALSE),VLOOKUP($M32,TT_Tabelle_Riferimento!$D$127:$H$164,5,FALSE))","v":8},{"$f":"+IFERROR(VLOOKUP(QU$27&\"-\"&$M32&\"_new\",Ammortamento_Finanziario!$H:$L,5,FALSE),VLOOKUP($M32,TT_Tabelle_Riferimento!$D$127:$H$164,5,FALSE))","v":8},{"$f":"+IFERROR(VLOOKUP(QV$27&\"-\"&$M32&\"_new\",Ammortamento_Finanziario!$H:$L,5,FALSE),VLOOKUP($M32,TT_Tabelle_Riferimento!$D$127:$H$164,5,FALSE))","v":8},{"$f":"+IFERROR(VLOOKUP(QW$27&\"-\"&$M32&\"_new\",Ammortamento_Finanziario!$H:$L,5,FALSE),VLOOKUP($M32,TT_Tabelle_Riferimento!$D$127:$H$164,5,FALSE))","v":8},{"$f":"+IFERROR(VLOOKUP(QX$27&\"-\"&$M32&\"_new\",Ammortamento_Finanziario!$H:$L,5,FALSE),VLOOKUP($M32,TT_Tabelle_Riferimento!$D$127:$H$164,5,FALSE))","v":8},{"$f":"+IFERROR(VLOOKUP(QY$27&\"-\"&$M32&\"_new\",Ammortamento_Finanziario!$H:$L,5,FALSE),VLOOKUP($M32,TT_Tabelle_Riferimento!$D$127:$H$164,5,FALSE))","v":8},{"$f":"+IFERROR(VLOOKUP(QZ$27&\"-\"&$M32&\"_new\",Ammortamento_Finanziario!$H:$L,5,FALSE),VLOOKUP($M32,TT_Tabelle_Riferimento!$D$127:$H$164,5,FALSE))","v":8},{"$f":"+IFERROR(VLOOKUP(RA$27&\"-\"&$M32&\"_new\",Ammortamento_Finanziario!$H:$L,5,FALSE),VLOOKUP($M32,TT_Tabelle_Riferimento!$D$127:$H$164,5,FALSE))","v":8},{"$f":"+IFERROR(VLOOKUP(RB$27&\"-\"&$M32&\"_new\",Ammortamento_Finanziario!$H:$L,5,FALSE),VLOOKUP($M32,TT_Tabelle_Riferimento!$D$127:$H$164,5,FALSE))","v":8},{"$f":"+IFERROR(VLOOKUP(RC$27&\"-\"&$M32&\"_new\",Ammortamento_Finanziario!$H:$L,5,FALSE),VLOOKUP($M32,TT_Tabelle_Riferimento!$D$127:$H$164,5,FALSE))","v":8},{"$f":"+IFERROR(VLOOKUP(RD$27&\"-\"&$M32&\"_new\",Ammortamento_Finanziario!$H:$L,5,FALSE),VLOOKUP($M32,TT_Tabelle_Riferimento!$D$127:$H$164,5,FALSE))","v":8},{"$f":"+IFERROR(VLOOKUP(RE$27&\"-\"&$M32&\"_new\",Ammortamento_Finanziario!$H:$L,5,FALSE),VLOOKUP($M32,TT_Tabelle_Riferimento!$D$127:$H$164,5,FALSE))","v":8},{"$f":"+IFERROR(VLOOKUP(RF$27&\"-\"&$M32&\"_new\",Ammortamento_Finanziario!$H:$L,5,FALSE),VLOOKUP($M32,TT_Tabelle_Riferimento!$D$127:$H$164,5,FALSE))","v":8},{"$f":"+IFERROR(VLOOKUP(RG$27&\"-\"&$M32&\"_new\",Ammortamento_Finanziario!$H:$L,5,FALSE),VLOOKUP($M32,TT_Tabelle_Riferimento!$D$127:$H$164,5,FALSE))","v":8},{"$f":"+IFERROR(VLOOKUP(RH$27&\"-\"&$M32&\"_new\",Ammortamento_Finanziario!$H:$L,5,FALSE),VLOOKUP($M32,TT_Tabelle_Riferimento!$D$127:$H$164,5,FALSE))","v":8},{"$f":"+IFERROR(VLOOKUP(RI$27&\"-\"&$M32&\"_new\",Ammortamento_Finanziario!$H:$L,5,FALSE),VLOOKUP($M32,TT_Tabelle_Riferimento!$D$127:$H$164,5,FALSE))","v":8},{"$f":"+IFERROR(VLOOKUP(RJ$27&\"-\"&$M32&\"_new\",Ammortamento_Finanziario!$H:$L,5,FALSE),VLOOKUP($M32,TT_Tabelle_Riferimento!$D$127:$H$164,5,FALSE))","v":8},{"$f":"+IFERROR(VLOOKUP(RK$27&\"-\"&$M32&\"_new\",Ammortamento_Finanziario!$H:$L,5,FALSE),VLOOKUP($M32,TT_Tabelle_Riferimento!$D$127:$H$164,5,FALSE))","v":8},{"$f":"+IFERROR(VLOOKUP(RL$27&\"-\"&$M32&\"_new\",Ammortamento_Finanziario!$H:$L,5,FALSE),VLOOKUP($M32,TT_Tabelle_Riferimento!$D$127:$H$164,5,FALSE))","v":8},{"$f":"+IFERROR(VLOOKUP(RM$27&\"-\"&$M32&\"_new\",Ammortamento_Finanziario!$H:$L,5,FALSE),VLOOKUP($M32,TT_Tabelle_Riferimento!$D$127:$H$164,5,FALSE))","v":8},{"$f":"+IFERROR(VLOOKUP(RN$27&\"-\"&$M32&\"_new\",Ammortamento_Finanziario!$H:$L,5,FALSE),VLOOKUP($M32,TT_Tabelle_Riferimento!$D$127:$H$164,5,FALSE))","v":8},{"$f":"+IFERROR(VLOOKUP(RO$27&\"-\"&$M32&\"_new\",Ammortamento_Finanziario!$H:$L,5,FALSE),VLOOKUP($M32,TT_Tabelle_Riferimento!$D$127:$H$164,5,FALSE))","v":8},{"$f":"+IFERROR(VLOOKUP(RP$27&\"-\"&$M32&\"_new\",Ammortamento_Finanziario!$H:$L,5,FALSE),VLOOKUP($M32,TT_Tabelle_Riferimento!$D$127:$H$164,5,FALSE))","v":8},{"$f":"+IFERROR(VLOOKUP(RQ$27&\"-\"&$M32&\"_new\",Ammortamento_Finanziario!$H:$L,5,FALSE),VLOOKUP($M32,TT_Tabelle_Riferimento!$D$127:$H$164,5,FALSE))","v":8},{"$f":"+IFERROR(VLOOKUP(RR$27&\"-\"&$M32&\"_new\",Ammortamento_Finanziario!$H:$L,5,FALSE),VLOOKUP($M32,TT_Tabelle_Riferimento!$D$127:$H$164,5,FALSE))","v":8},{"$f":"+IFERROR(VLOOKUP(RS$27&\"-\"&$M32&\"_new\",Ammortamento_Finanziario!$H:$L,5,FALSE),VLOOKUP($M32,TT_Tabelle_Riferimento!$D$127:$H$164,5,FALSE))","v":8},{"$f":"+IFERROR(VLOOKUP(RT$27&\"-\"&$M32&\"_new\",Ammortamento_Finanziario!$H:$L,5,FALSE),VLOOKUP($M32,TT_Tabelle_Riferimento!$D$127:$H$164,5,FALSE))","v":8},{"$f":"+IFERROR(VLOOKUP(RU$27&\"-\"&$M32&\"_new\",Ammortamento_Finanziario!$H:$L,5,FALSE),VLOOKUP($M32,TT_Tabelle_Riferimento!$D$127:$H$164,5,FALSE))","v":8},{"$f":"+IFERROR(VLOOKUP(RV$27&\"-\"&$M32&\"_new\",Ammortamento_Finanziario!$H:$L,5,FALSE),VLOOKUP($M32,TT_Tabelle_Riferimento!$D$127:$H$164,5,FALSE))","v":8}]
[null,null,null,"AMM",{"$f":"+SUMIF(IMN_gestore!$E:$E,2022,IMN_gestore!$T:$T)","v":0},{"$f":"SUMIF(IMN_gestore!$E:$E,2023,IMN_gestore!$AE:$AE)","v":0},{"$f":"+SUMIF(IMN_gestore!$E:$E,2024,IMN_gestore!$AP:$AP)","v":0},{"$f":"SUMIF(IMN_gestore!$E:$E,2025,IMN_gestore!$BA:$BA)","v":0},{"$f":"SUMIF(IMN_gestore!$E:$E,2026,IMN_gestore!$BL:$BL)","v":0},{"$f":"SUMIF(IMN_gestore!$E:$E,2027,IMN_gestore!$BW:$BW)","v":0},null,null,6,0,0,0,0,0,0,0,0,0,0,0,0,0,0,0,0,0,0,0,0,0,0,0,0,0,0,0,0,0,0,0,0,0,0,0,0,0,0,0,0,0,0,0,0,0,0,0,0,0,0,0,0,0,0,0,0,0,0,0,0,0,0,0,0,0,0,0,0,0,0,0,0,0,0,0,0,0,0,0,0,0,0,0,0,0,0,0,0,0,0,0,0,0,0,0,0,0,0,0,0,0,0,0,0,0,0,0,0,0,0,0,0,0,0,0,0,0,0,0,0,0,0,0,0,0,0,0,0,0,0,0,0,0,0,0,0,0,0,0,0,0,0,0,0,0,0,0,0,0,0,0,0,0,0,0,0,0,0,0,0,0,0,0,0,0,0,0,0,0,0,0,0,0,0,0,0,0,0,0,0,0,0,0,0,0,0,0,0,0,0,0,0,0,0,0,0,0,0,0,0,0,0,0,0,0,0,0,0,0,0,0,0,0,0,0,0,0,0,0,0,0,0,0,0,0,0,0,0,0,0,0,0,0,0,0,0,0,0,0,0,0,0,0,0,0,0,0,0,0,0,0,0,0,0,0,0,0,0,0,0,0,0,0,0,0,0,0,0,0,0,0,0,0,0,0,0,0,0,0,0,0,0,0,0,0,0,0,0,0,{"$f":"+IFERROR(VLOOKUP(KQ$27&\"-\"&$M33&\"_new\",Ammortamento_Finanziario!$H:$L,5,FALSE),VLOOKUP($M33,TT_Tabelle_Riferimento!$D$127:$H$164,5,FALSE))","v":20},{"$f":"+IFERROR(VLOOKUP(KR$27&\"-\"&$M33&\"_new\",Ammortamento_Finanziario!$H:$L,5,FALSE),VLOOKUP($M33,TT_Tabelle_Riferimento!$D$127:$H$164,5,FALSE))","v":20},{"$f":"+IFERROR(VLOOKUP(KS$27&\"-\"&$M33&\"_new\",Ammortamento_Finanziario!$H:$L,5,FALSE),VLOOKUP($M33,TT_Tabelle_Riferimento!$D$127:$H$164,5,FALSE))","v":20},{"$f":"+IFERROR(VLOOKUP(KT$27&\"-\"&$M33&\"_new\",Ammortamento_Finanziario!$H:$L,5,FALSE),VLOOKUP($M33,TT_Tabelle_Riferimento!$D$127:$H$164,5,FALSE))","v":20},{"$f":"+IFERROR(VLOOKUP(KU$27&\"-\"&$M33&\"_new\",Ammortamento_Finanziario!$H:$L,5,FALSE),VLOOKUP($M33,TT_Tabelle_Riferimento!$D$127:$H$164,5,FALSE))","v":20},{"$f":"+IFERROR(VLOOKUP(KV$27&\"-\"&$M33&\"_new\",Ammortamento_Finanziario!$H:$L,5,FALSE),VLOOKUP($M33,TT_Tabelle_Riferimento!$D$127:$H$164,5,FALSE))","v":20},{"$f":"+IFERROR(VLOOKUP(KW$27&\"-\"&$M33&\"_new\",Ammortamento_Finanziario!$H:$L,5,FALSE),VLOOKUP($M33,TT_Tabelle_Riferimento!$D$127:$H$164,5,FALSE))","v":20},{"$f":"+IFERROR(VLOOKUP(KX$27&\"-\"&$M33&\"_new\",Ammortamento_Finanziario!$H:$L,5,FALSE),VLOOKUP($M33,TT_Tabelle_Riferimento!$D$127:$H$164,5,FALSE))","v":20},{"$f":"+IFERROR(VLOOKUP(KY$27&\"-\"&$M33&\"_new\",Ammortamento_Finanziario!$H:$L,5,FALSE),VLOOKUP($M33,TT_Tabelle_Riferimento!$D$127:$H$164,5,FALSE))","v":20},{"$f":"+IFERROR(VLOOKUP(KZ$27&\"-\"&$M33&\"_new\",Ammortamento_Finanziario!$H:$L,5,FALSE),VLOOKUP($M33,TT_Tabelle_Riferimento!$D$127:$H$164,5,FALSE))","v":20},{"$f":"+IFERROR(VLOOKUP(LA$27&\"-\"&$M33&\"_new\",Ammortamento_Finanziario!$H:$L,5,FALSE),VLOOKUP($M33,TT_Tabelle_Riferimento!$D$127:$H$164,5,FALSE))","v":20},{"$f":"+IFERROR(VLOOKUP(LB$27&\"-\"&$M33&\"_new\",Ammortamento_Finanziario!$H:$L,5,FALSE),VLOOKUP($M33,TT_Tabelle_Riferimento!$D$127:$H$164,5,FALSE))","v":20},{"$f":"+IFERROR(VLOOKUP(LC$27&\"-\"&$M33&\"_new\",Ammortamento_Finanziario!$H:$L,5,FALSE),VLOOKUP($M33,TT_Tabelle_Riferimento!$D$127:$H$164,5,FALSE))","v":20},{"$f":"+IFERROR(VLOOKUP(LD$27&\"-\"&$M33&\"_new\",Ammortamento_Finanziario!$H:$L,5,FALSE),VLOOKUP($M33,TT_Tabelle_Riferimento!$D$127:$H$164,5,FALSE))","v":20},{"$f":"+IFERROR(VLOOKUP(LE$27&\"-\"&$M33&\"_new\",Ammortamento_Finanziario!$H:$L,5,FALSE),VLOOKUP($M33,TT_Tabelle_Riferimento!$D$127:$H$164,5,FALSE))","v":20},{"$f":"+IFERROR(VLOOKUP(LF$27&\"-\"&$M33&\"_new\",Ammortamento_Finanziario!$H:$L,5,FALSE),VLOOKUP($M33,TT_Tabelle_Riferimento!$D$127:$H$164,5,FALSE))","v":20},{"$f":"+IFERROR(VLOOKUP(LG$27&\"-\"&$M33&\"_new\",Ammortamento_Finanziario!$H:$L,5,FALSE),VLOOKUP($M33,TT_Tabelle_Riferimento!$D$127:$H$164,5,FALSE))","v":20},{"$f":"+IFERROR(VLOOKUP(LH$27&\"-\"&$M33&\"_new\",Ammortamento_Finanziario!$H:$L,5,FALSE),VLOOKUP($M33,TT_Tabelle_Riferimento!$D$127:$H$164,5,FALSE))","v":20},{"$f":"+IFERROR(VLOOKUP(LI$27&\"-\"&$M33&\"_new\",Ammortamento_Finanziario!$H:$L,5,FALSE),VLOOKUP($M33,TT_Tabelle_Riferimento!$D$127:$H$164,5,FALSE))","v":20},{"$f":"+IFERROR(VLOOKUP(LJ$27&\"-\"&$M33&\"_new\",Ammortamento_Finanziario!$H:$L,5,FALSE),VLOOKUP($M33,TT_Tabelle_Riferimento!$D$127:$H$164,5,FALSE))","v":20},{"$f":"+IFERROR(VLOOKUP(LK$27&\"-\"&$M33&\"_new\",Ammortamento_Finanziario!$H:$L,5,FALSE),VLOOKUP($M33,TT_Tabelle_Riferimento!$D$127:$H$164,5,FALSE))","v":20},{"$f":"+IFERROR(VLOOKUP(LL$27&\"-\"&$M33&\"_new\",Ammortamento_Finanziario!$H:$L,5,FALSE),VLOOKUP($M33,TT_Tabelle_Riferimento!$D$127:$H$164,5,FALSE))","v":20},{"$f":"+IFERROR(VLOOKUP(LM$27&\"-\"&$M33&\"_new\",Ammortamento_Finanziario!$H:$L,5,FALSE),VLOOKUP($M33,TT_Tabelle_Riferimento!$D$127:$H$164,5,FALSE))","v":20},{"$f":"+IFERROR(VLOOKUP(LN$27&\"-\"&$M33&\"_new\",Ammortamento_Finanziario!$H:$L,5,FALSE),VLOOKUP($M33,TT_Tabelle_Riferimento!$D$127:$H$164,5,FALSE))","v":20},{"$f":"+IFERROR(VLOOKUP(LO$27&\"-\"&$M33&\"_new\",Ammortamento_Finanziario!$H:$L,5,FALSE),VLOOKUP($M33,TT_Tabelle_Riferimento!$D$127:$H$164,5,FALSE))","v":20},{"$f":"+IFERROR(VLOOKUP(LP$27&\"-\"&$M33&\"_new\",Ammortamento_Finanziario!$H:$L,5,FALSE),VLOOKUP($M33,TT_Tabelle_Riferimento!$D$127:$H$164,5,FALSE))","v":20},{"$f":"+IFERROR(VLOOKUP(LQ$27&\"-\"&$M33&\"_new\",Ammortamento_Finanziario!$H:$L,5,FALSE),VLOOKUP($M33,TT_Tabelle_Riferimento!$D$127:$H$164,5,FALSE))","v":20},{"$f":"+IFERROR(VLOOKUP(LR$27&\"-\"&$M33&\"_new\",Ammortamento_Finanziario!$H:$L,5,FALSE),VLOOKUP($M33,TT_Tabelle_Riferimento!$D$127:$H$164,5,FALSE))","v":20},{"$f":"+IFERROR(VLOOKUP(LS$27&\"-\"&$M33&\"_new\",Ammortamento_Finanziario!$H:$L,5,FALSE),VLOOKUP($M33,TT_Tabelle_Riferimento!$D$127:$H$164,5,FALSE))","v":20},{"$f":"+IFERROR(VLOOKUP(LT$27&\"-\"&$M33&\"_new\",Ammortamento_Finanziario!$H:$L,5,FALSE),VLOOKUP($M33,TT_Tabelle_Riferimento!$D$127:$H$164,5,FALSE))","v":20},{"$f":"+IFERROR(VLOOKUP(LU$27&\"-\"&$M33&\"_new\",Ammortamento_Finanziario!$H:$L,5,FALSE),VLOOKUP($M33,TT_Tabelle_Riferimento!$D$127:$H$164,5,FALSE))","v":20},{"$f":"+IFERROR(VLOOKUP(LV$27&\"-\"&$M33&\"_new\",Ammortamento_Finanziario!$H:$L,5,FALSE),VLOOKUP($M33,TT_Tabelle_Riferimento!$D$127:$H$164,5,FALSE))","v":20},{"$f":"+IFERROR(VLOOKUP(LW$27&\"-\"&$M33&\"_new\",Ammortamento_Finanziario!$H:$L,5,FALSE),VLOOKUP($M33,TT_Tabelle_Riferimento!$D$127:$H$164,5,FALSE))","v":20},{"$f":"+IFERROR(VLOOKUP(LX$27&\"-\"&$M33&\"_new\",Ammortamento_Finanziario!$H:$L,5,FALSE),VLOOKUP($M33,TT_Tabelle_Riferimento!$D$127:$H$164,5,FALSE))","v":20},{"$f":"+IFERROR(VLOOKUP(LY$27&\"-\"&$M33&\"_new\",Ammortamento_Finanziario!$H:$L,5,FALSE),VLOOKUP($M33,TT_Tabelle_Riferimento!$D$127:$H$164,5,FALSE))","v":20},{"$f":"+IFERROR(VLOOKUP(LZ$27&\"-\"&$M33&\"_new\",Ammortamento_Finanziario!$H:$L,5,FALSE),VLOOKUP($M33,TT_Tabelle_Riferimento!$D$127:$H$164,5,FALSE))","v":20},{"$f":"+IFERROR(VLOOKUP(MA$27&\"-\"&$M33&\"_new\",Ammortamento_Finanziario!$H:$L,5,FALSE),VLOOKUP($M33,TT_Tabelle_Riferimento!$D$127:$H$164,5,FALSE))","v":20},{"$f":"+IFERROR(VLOOKUP(MB$27&\"-\"&$M33&\"_new\",Ammortamento_Finanziario!$H:$L,5,FALSE),VLOOKUP($M33,TT_Tabelle_Riferimento!$D$127:$H$164,5,FALSE))","v":20},{"$f":"+IFERROR(VLOOKUP(MC$27&\"-\"&$M33&\"_new\",Ammortamento_Finanziario!$H:$L,5,FALSE),VLOOKUP($M33,TT_Tabelle_Riferimento!$D$127:$H$164,5,FALSE))","v":20},{"$f":"+IFERROR(VLOOKUP(MD$27&\"-\"&$M33&\"_new\",Ammortamento_Finanziario!$H:$L,5,FALSE),VLOOKUP($M33,TT_Tabelle_Riferimento!$D$127:$H$164,5,FALSE))","v":20},{"$f":"+IFERROR(VLOOKUP(ME$27&\"-\"&$M33&\"_new\",Ammortamento_Finanziario!$H:$L,5,FALSE),VLOOKUP($M33,TT_Tabelle_Riferimento!$D$127:$H$164,5,FALSE))","v":20},{"$f":"+IFERROR(VLOOKUP(MF$27&\"-\"&$M33&\"_new\",Ammortamento_Finanziario!$H:$L,5,FALSE),VLOOKUP($M33,TT_Tabelle_Riferimento!$D$127:$H$164,5,FALSE))","v":20},{"$f":"+IFERROR(VLOOKUP(MG$27&\"-\"&$M33&\"_new\",Ammortamento_Finanziario!$H:$L,5,FALSE),VLOOKUP($M33,TT_Tabelle_Riferimento!$D$127:$H$164,5,FALSE))","v":20},{"$f":"+IFERROR(VLOOKUP(MH$27&\"-\"&$M33&\"_new\",Ammortamento_Finanziario!$H:$L,5,FALSE),VLOOKUP($M33,TT_Tabelle_Riferimento!$D$127:$H$164,5,FALSE))","v":20},{"$f":"+IFERROR(VLOOKUP(MI$27&\"-\"&$M33&\"_new\",Ammortamento_Finanziario!$H:$L,5,FALSE),VLOOKUP($M33,TT_Tabelle_Riferimento!$D$127:$H$164,5,FALSE))","v":20},{"$f":"+IFERROR(VLOOKUP(MJ$27&\"-\"&$M33&\"_new\",Ammortamento_Finanziario!$H:$L,5,FALSE),VLOOKUP($M33,TT_Tabelle_Riferimento!$D$127:$H$164,5,FALSE))","v":20},{"$f":"+IFERROR(VLOOKUP(MK$27&\"-\"&$M33&\"_new\",Ammortamento_Finanziario!$H:$L,5,FALSE),VLOOKUP($M33,TT_Tabelle_Riferimento!$D$127:$H$164,5,FALSE))","v":20},{"$f":"+IFERROR(VLOOKUP(ML$27&\"-\"&$M33&\"_new\",Ammortamento_Finanziario!$H:$L,5,FALSE),VLOOKUP($M33,TT_Tabelle_Riferimento!$D$127:$H$164,5,FALSE))","v":20},{"$f":"+IFERROR(VLOOKUP(MM$27&\"-\"&$M33&\"_new\",Ammortamento_Finanziario!$H:$L,5,FALSE),VLOOKUP($M33,TT_Tabelle_Riferimento!$D$127:$H$164,5,FALSE))","v":20},{"$f":"+IFERROR(VLOOKUP(MN$27&\"-\"&$M33&\"_new\",Ammortamento_Finanziario!$H:$L,5,FALSE),VLOOKUP($M33,TT_Tabelle_Riferimento!$D$127:$H$164,5,FALSE))","v":20},{"$f":"+IFERROR(VLOOKUP(MO$27&\"-\"&$M33&\"_new\",Ammortamento_Finanziario!$H:$L,5,FALSE),VLOOKUP($M33,TT_Tabelle_Riferimento!$D$127:$H$164,5,FALSE))","v":20},{"$f":"+IFERROR(VLOOKUP(MP$27&\"-\"&$M33&\"_new\",Ammortamento_Finanziario!$H:$L,5,FALSE),VLOOKUP($M33,TT_Tabelle_Riferimento!$D$127:$H$164,5,FALSE))","v":20},{"$f":"+IFERROR(VLOOKUP(MQ$27&\"-\"&$M33&\"_new\",Ammortamento_Finanziario!$H:$L,5,FALSE),VLOOKUP($M33,TT_Tabelle_Riferimento!$D$127:$H$164,5,FALSE))","v":20},{"$f":"+IFERROR(VLOOKUP(MR$27&\"-\"&$M33&\"_new\",Ammortamento_Finanziario!$H:$L,5,FALSE),VLOOKUP($M33,TT_Tabelle_Riferimento!$D$127:$H$164,5,FALSE))","v":20},{"$f":"+IFERROR(VLOOKUP(MS$27&\"-\"&$M33&\"_new\",Ammortamento_Finanziario!$H:$L,5,FALSE),VLOOKUP($M33,TT_Tabelle_Riferimento!$D$127:$H$164,5,FALSE))","v":20},{"$f":"+IFERROR(VLOOKUP(MT$27&\"-\"&$M33&\"_new\",Ammortamento_Finanziario!$H:$L,5,FALSE),VLOOKUP($M33,TT_Tabelle_Riferimento!$D$127:$H$164,5,FALSE))","v":20},{"$f":"+IFERROR(VLOOKUP(MU$27&\"-\"&$M33&\"_new\",Ammortamento_Finanziario!$H:$L,5,FALSE),VLOOKUP($M33,TT_Tabelle_Riferimento!$D$127:$H$164,5,FALSE))","v":20},{"$f":"+IFERROR(VLOOKUP(MV$27&\"-\"&$M33&\"_new\",Ammortamento_Finanziario!$H:$L,5,FALSE),VLOOKUP($M33,TT_Tabelle_Riferimento!$D$127:$H$164,5,FALSE))","v":20},{"$f":"+IFERROR(VLOOKUP(MW$27&\"-\"&$M33&\"_new\",Ammortamento_Finanziario!$H:$L,5,FALSE),VLOOKUP($M33,TT_Tabelle_Riferimento!$D$127:$H$164,5,FALSE))","v":20},{"$f":"+IFERROR(VLOOKUP(MX$27&\"-\"&$M33&\"_new\",Ammortamento_Finanziario!$H:$L,5,FALSE),VLOOKUP($M33,TT_Tabelle_Riferimento!$D$127:$H$164,5,FALSE))","v":20},{"$f":"+IFERROR(VLOOKUP(MY$27&\"-\"&$M33&\"_new\",Ammortamento_Finanziario!$H:$L,5,FALSE),VLOOKUP($M33,TT_Tabelle_Riferimento!$D$127:$H$164,5,FALSE))","v":20},{"$f":"+IFERROR(VLOOKUP(MZ$27&\"-\"&$M33&\"_new\",Ammortamento_Finanziario!$H:$L,5,FALSE),VLOOKUP($M33,TT_Tabelle_Riferimento!$D$127:$H$164,5,FALSE))","v":20},{"$f":"+IFERROR(VLOOKUP(NA$27&\"-\"&$M33&\"_new\",Ammortamento_Finanziario!$H:$L,5,FALSE),VLOOKUP($M33,TT_Tabelle_Riferimento!$D$127:$H$164,5,FALSE))","v":20},{"$f":"+IFERROR(VLOOKUP(NB$27&\"-\"&$M33&\"_new\",Ammortamento_Finanziario!$H:$L,5,FALSE),VLOOKUP($M33,TT_Tabelle_Riferimento!$D$127:$H$164,5,FALSE))","v":20},{"$f":"+IFERROR(VLOOKUP(NC$27&\"-\"&$M33&\"_new\",Ammortamento_Finanziario!$H:$L,5,FALSE),VLOOKUP($M33,TT_Tabelle_Riferimento!$D$127:$H$164,5,FALSE))","v":20},{"$f":"+IFERROR(VLOOKUP(ND$27&\"-\"&$M33&\"_new\",Ammortamento_Finanziario!$H:$L,5,FALSE),VLOOKUP($M33,TT_Tabelle_Riferimento!$D$127:$H$164,5,FALSE))","v":20},{"$f":"+IFERROR(VLOOKUP(NE$27&\"-\"&$M33&\"_new\",Ammortamento_Finanziario!$H:$L,5,FALSE),VLOOKUP($M33,TT_Tabelle_Riferimento!$D$127:$H$164,5,FALSE))","v":20},{"$f":"+IFERROR(VLOOKUP(NF$27&\"-\"&$M33&\"_new\",Ammortamento_Finanziario!$H:$L,5,FALSE),VLOOKUP($M33,TT_Tabelle_Riferimento!$D$127:$H$164,5,FALSE))","v":20},{"$f":"+IFERROR(VLOOKUP(NG$27&\"-\"&$M33&\"_new\",Ammortamento_Finanziario!$H:$L,5,FALSE),VLOOKUP($M33,TT_Tabelle_Riferimento!$D$127:$H$164,5,FALSE))","v":20},{"$f":"+IFERROR(VLOOKUP(NH$27&\"-\"&$M33&\"_new\",Ammortamento_Finanziario!$H:$L,5,FALSE),VLOOKUP($M33,TT_Tabelle_Riferimento!$D$127:$H$164,5,FALSE))","v":20},{"$f":"+IFERROR(VLOOKUP(NI$27&\"-\"&$M33&\"_new\",Ammortamento_Finanziario!$H:$L,5,FALSE),VLOOKUP($M33,TT_Tabelle_Riferimento!$D$127:$H$164,5,FALSE))","v":20},{"$f":"+IFERROR(VLOOKUP(NJ$27&\"-\"&$M33&\"_new\",Ammortamento_Finanziario!$H:$L,5,FALSE),VLOOKUP($M33,TT_Tabelle_Riferimento!$D$127:$H$164,5,FALSE))","v":20},{"$f":"+IFERROR(VLOOKUP(NK$27&\"-\"&$M33&\"_new\",Ammortamento_Finanziario!$H:$L,5,FALSE),VLOOKUP($M33,TT_Tabelle_Riferimento!$D$127:$H$164,5,FALSE))","v":20},{"$f":"+IFERROR(VLOOKUP(NL$27&\"-\"&$M33&\"_new\",Ammortamento_Finanziario!$H:$L,5,FALSE),VLOOKUP($M33,TT_Tabelle_Riferimento!$D$127:$H$164,5,FALSE))","v":20},{"$f":"+IFERROR(VLOOKUP(NM$27&\"-\"&$M33&\"_new\",Ammortamento_Finanziario!$H:$L,5,FALSE),VLOOKUP($M33,TT_Tabelle_Riferimento!$D$127:$H$164,5,FALSE))","v":20},{"$f":"+IFERROR(VLOOKUP(NN$27&\"-\"&$M33&\"_new\",Ammortamento_Finanziario!$H:$L,5,FALSE),VLOOKUP($M33,TT_Tabelle_Riferimento!$D$127:$H$164,5,FALSE))","v":20},{"$f":"+IFERROR(VLOOKUP(NO$27&\"-\"&$M33&\"_new\",Ammortamento_Finanziario!$H:$L,5,FALSE),VLOOKUP($M33,TT_Tabelle_Riferimento!$D$127:$H$164,5,FALSE))","v":20},{"$f":"+IFERROR(VLOOKUP(NP$27&\"-\"&$M33&\"_new\",Ammortamento_Finanziario!$H:$L,5,FALSE),VLOOKUP($M33,TT_Tabelle_Riferimento!$D$127:$H$164,5,FALSE))","v":20},{"$f":"+IFERROR(VLOOKUP(NQ$27&\"-\"&$M33&\"_new\",Ammortamento_Finanziario!$H:$L,5,FALSE),VLOOKUP($M33,TT_Tabelle_Riferimento!$D$127:$H$164,5,FALSE))","v":20},{"$f":"+IFERROR(VLOOKUP(NR$27&\"-\"&$M33&\"_new\",Ammortamento_Finanziario!$H:$L,5,FALSE),VLOOKUP($M33,TT_Tabelle_Riferimento!$D$127:$H$164,5,FALSE))","v":20},{"$f":"+IFERROR(VLOOKUP(NS$27&\"-\"&$M33&\"_new\",Ammortamento_Finanziario!$H:$L,5,FALSE),VLOOKUP($M33,TT_Tabelle_Riferimento!$D$127:$H$164,5,FALSE))","v":20},{"$f":"+IFERROR(VLOOKUP(NT$27&\"-\"&$M33&\"_new\",Ammortamento_Finanziario!$H:$L,5,FALSE),VLOOKUP($M33,TT_Tabelle_Riferimento!$D$127:$H$164,5,FALSE))","v":20},{"$f":"+IFERROR(VLOOKUP(NU$27&\"-\"&$M33&\"_new\",Ammortamento_Finanziario!$H:$L,5,FALSE),VLOOKUP($M33,TT_Tabelle_Riferimento!$D$127:$H$164,5,FALSE))","v":20},{"$f":"+IFERROR(VLOOKUP(NV$27&\"-\"&$M33&\"_new\",Ammortamento_Finanziario!$H:$L,5,FALSE),VLOOKUP($M33,TT_Tabelle_Riferimento!$D$127:$H$164,5,FALSE))","v":20},{"$f":"+IFERROR(VLOOKUP(NW$27&\"-\"&$M33&\"_new\",Ammortamento_Finanziario!$H:$L,5,FALSE),VLOOKUP($M33,TT_Tabelle_Riferimento!$D$127:$H$164,5,FALSE))","v":20},{"$f":"+IFERROR(VLOOKUP(NX$27&\"-\"&$M33&\"_new\",Ammortamento_Finanziario!$H:$L,5,FALSE),VLOOKUP($M33,TT_Tabelle_Riferimento!$D$127:$H$164,5,FALSE))","v":20},{"$f":"+IFERROR(VLOOKUP(NY$27&\"-\"&$M33&\"_new\",Ammortamento_Finanziario!$H:$L,5,FALSE),VLOOKUP($M33,TT_Tabelle_Riferimento!$D$127:$H$164,5,FALSE))","v":20},{"$f":"+IFERROR(VLOOKUP(NZ$27&\"-\"&$M33&\"_new\",Ammortamento_Finanziario!$H:$L,5,FALSE),VLOOKUP($M33,TT_Tabelle_Riferimento!$D$127:$H$164,5,FALSE))","v":20},{"$f":"+IFERROR(VLOOKUP(OA$27&\"-\"&$M33&\"_new\",Ammortamento_Finanziario!$H:$L,5,FALSE),VLOOKUP($M33,TT_Tabelle_Riferimento!$D$127:$H$164,5,FALSE))","v":20},{"$f":"+IFERROR(VLOOKUP(OB$27&\"-\"&$M33&\"_new\",Ammortamento_Finanziario!$H:$L,5,FALSE),VLOOKUP($M33,TT_Tabelle_Riferimento!$D$127:$H$164,5,FALSE))","v":20},{"$f":"+IFERROR(VLOOKUP(OC$27&\"-\"&$M33&\"_new\",Ammortamento_Finanziario!$H:$L,5,FALSE),VLOOKUP($M33,TT_Tabelle_Riferimento!$D$127:$H$164,5,FALSE))","v":20},{"$f":"+IFERROR(VLOOKUP(OD$27&\"-\"&$M33&\"_new\",Ammortamento_Finanziario!$H:$L,5,FALSE),VLOOKUP($M33,TT_Tabelle_Riferimento!$D$127:$H$164,5,FALSE))","v":20},{"$f":"+IFERROR(VLOOKUP(OE$27&\"-\"&$M33&\"_new\",Ammortamento_Finanziario!$H:$L,5,FALSE),VLOOKUP($M33,TT_Tabelle_Riferimento!$D$127:$H$164,5,FALSE))","v":20},{"$f":"+IFERROR(VLOOKUP(OF$27&\"-\"&$M33&\"_new\",Ammortamento_Finanziario!$H:$L,5,FALSE),VLOOKUP($M33,TT_Tabelle_Riferimento!$D$127:$H$164,5,FALSE))","v":20},{"$f":"+IFERROR(VLOOKUP(OG$27&\"-\"&$M33&\"_new\",Ammortamento_Finanziario!$H:$L,5,FALSE),VLOOKUP($M33,TT_Tabelle_Riferimento!$D$127:$H$164,5,FALSE))","v":20},{"$f":"+IFERROR(VLOOKUP(OH$27&\"-\"&$M33&\"_new\",Ammortamento_Finanziario!$H:$L,5,FALSE),VLOOKUP($M33,TT_Tabelle_Riferimento!$D$127:$H$164,5,FALSE))","v":20},{"$f":"+IFERROR(VLOOKUP(OI$27&\"-\"&$M33&\"_new\",Ammortamento_Finanziario!$H:$L,5,FALSE),VLOOKUP($M33,TT_Tabelle_Riferimento!$D$127:$H$164,5,FALSE))","v":20},{"$f":"+IFERROR(VLOOKUP(OJ$27&\"-\"&$M33&\"_new\",Ammortamento_Finanziario!$H:$L,5,FALSE),VLOOKUP($M33,TT_Tabelle_Riferimento!$D$127:$H$164,5,FALSE))","v":20},{"$f":"+IFERROR(VLOOKUP(OK$27&\"-\"&$M33&\"_new\",Ammortamento_Finanziario!$H:$L,5,FALSE),VLOOKUP($M33,TT_Tabelle_Riferimento!$D$127:$H$164,5,FALSE))","v":20},{"$f":"+IFERROR(VLOOKUP(OL$27&\"-\"&$M33&\"_new\",Ammortamento_Finanziario!$H:$L,5,FALSE),VLOOKUP($M33,TT_Tabelle_Riferimento!$D$127:$H$164,5,FALSE))","v":20},{"$f":"+IFERROR(VLOOKUP(OM$27&\"-\"&$M33&\"_new\",Ammortamento_Finanziario!$H:$L,5,FALSE),VLOOKUP($M33,TT_Tabelle_Riferimento!$D$127:$H$164,5,FALSE))","v":20},{"$f":"+IFERROR(VLOOKUP(ON$27&\"-\"&$M33&\"_new\",Ammortamento_Finanziario!$H:$L,5,FALSE),VLOOKUP($M33,TT_Tabelle_Riferimento!$D$127:$H$164,5,FALSE))","v":20},{"$f":"+IFERROR(VLOOKUP(OO$27&\"-\"&$M33&\"_new\",Ammortamento_Finanziario!$H:$L,5,FALSE),VLOOKUP($M33,TT_Tabelle_Riferimento!$D$127:$H$164,5,FALSE))","v":20},{"$f":"+IFERROR(VLOOKUP(OP$27&\"-\"&$M33&\"_new\",Ammortamento_Finanziario!$H:$L,5,FALSE),VLOOKUP($M33,TT_Tabelle_Riferimento!$D$127:$H$164,5,FALSE))","v":20},{"$f":"+IFERROR(VLOOKUP(OQ$27&\"-\"&$M33&\"_new\",Ammortamento_Finanziario!$H:$L,5,FALSE),VLOOKUP($M33,TT_Tabelle_Riferimento!$D$127:$H$164,5,FALSE))","v":20},{"$f":"+IFERROR(VLOOKUP(OR$27&\"-\"&$M33&\"_new\",Ammortamento_Finanziario!$H:$L,5,FALSE),VLOOKUP($M33,TT_Tabelle_Riferimento!$D$127:$H$164,5,FALSE))","v":20},{"$f":"+IFERROR(VLOOKUP(OS$27&\"-\"&$M33&\"_new\",Ammortamento_Finanziario!$H:$L,5,FALSE),VLOOKUP($M33,TT_Tabelle_Riferimento!$D$127:$H$164,5,FALSE))","v":20},{"$f":"+IFERROR(VLOOKUP(OT$27&\"-\"&$M33&\"_new\",Ammortamento_Finanziario!$H:$L,5,FALSE),VLOOKUP($M33,TT_Tabelle_Riferimento!$D$127:$H$164,5,FALSE))","v":20},{"$f":"+IFERROR(VLOOKUP(OU$27&\"-\"&$M33&\"_new\",Ammortamento_Finanziario!$H:$L,5,FALSE),VLOOKUP($M33,TT_Tabelle_Riferimento!$D$127:$H$164,5,FALSE))","v":20},{"$f":"+IFERROR(VLOOKUP(OV$27&\"-\"&$M33&\"_new\",Ammortamento_Finanziario!$H:$L,5,FALSE),VLOOKUP($M33,TT_Tabelle_Riferimento!$D$127:$H$164,5,FALSE))","v":20},{"$f":"+IFERROR(VLOOKUP(OW$27&\"-\"&$M33&\"_new\",Ammortamento_Finanziario!$H:$L,5,FALSE),VLOOKUP($M33,TT_Tabelle_Riferimento!$D$127:$H$164,5,FALSE))","v":20},{"$f":"+IFERROR(VLOOKUP(OX$27&\"-\"&$M33&\"_new\",Ammortamento_Finanziario!$H:$L,5,FALSE),VLOOKUP($M33,TT_Tabelle_Riferimento!$D$127:$H$164,5,FALSE))","v":20},{"$f":"+IFERROR(VLOOKUP(OY$27&\"-\"&$M33&\"_new\",Ammortamento_Finanziario!$H:$L,5,FALSE),VLOOKUP($M33,TT_Tabelle_Riferimento!$D$127:$H$164,5,FALSE))","v":20},{"$f":"+IFERROR(VLOOKUP(OZ$27&\"-\"&$M33&\"_new\",Ammortamento_Finanziario!$H:$L,5,FALSE),VLOOKUP($M33,TT_Tabelle_Riferimento!$D$127:$H$164,5,FALSE))","v":20},{"$f":"+IFERROR(VLOOKUP(PA$27&\"-\"&$M33&\"_new\",Ammortamento_Finanziario!$H:$L,5,FALSE),VLOOKUP($M33,TT_Tabelle_Riferimento!$D$127:$H$164,5,FALSE))","v":20},{"$f":"+IFERROR(VLOOKUP(PB$27&\"-\"&$M33&\"_new\",Ammortamento_Finanziario!$H:$L,5,FALSE),VLOOKUP($M33,TT_Tabelle_Riferimento!$D$127:$H$164,5,FALSE))","v":20},{"$f":"+IFERROR(VLOOKUP(PC$27&\"-\"&$M33&\"_new\",Ammortamento_Finanziario!$H:$L,5,FALSE),VLOOKUP($M33,TT_Tabelle_Riferimento!$D$127:$H$164,5,FALSE))","v":20},{"$f":"+IFERROR(VLOOKUP(PD$27&\"-\"&$M33&\"_new\",Ammortamento_Finanziario!$H:$L,5,FALSE),VLOOKUP($M33,TT_Tabelle_Riferimento!$D$127:$H$164,5,FALSE))","v":20},{"$f":"+IFERROR(VLOOKUP(PE$27&\"-\"&$M33&\"_new\",Ammortamento_Finanziario!$H:$L,5,FALSE),VLOOKUP($M33,TT_Tabelle_Riferimento!$D$127:$H$164,5,FALSE))","v":20},{"$f":"+IFERROR(VLOOKUP(PF$27&\"-\"&$M33&\"_new\",Ammortamento_Finanziario!$H:$L,5,FALSE),VLOOKUP($M33,TT_Tabelle_Riferimento!$D$127:$H$164,5,FALSE))","v":20},{"$f":"+IFERROR(VLOOKUP(PG$27&\"-\"&$M33&\"_new\",Ammortamento_Finanziario!$H:$L,5,FALSE),VLOOKUP($M33,TT_Tabelle_Riferimento!$D$127:$H$164,5,FALSE))","v":20},{"$f":"+IFERROR(VLOOKUP(PH$27&\"-\"&$M33&\"_new\",Ammortamento_Finanziario!$H:$L,5,FALSE),VLOOKUP($M33,TT_Tabelle_Riferimento!$D$127:$H$164,5,FALSE))","v":20},{"$f":"+IFERROR(VLOOKUP(PI$27&\"-\"&$M33&\"_new\",Ammortamento_Finanziario!$H:$L,5,FALSE),VLOOKUP($M33,TT_Tabelle_Riferimento!$D$127:$H$164,5,FALSE))","v":20},{"$f":"+IFERROR(VLOOKUP(PJ$27&\"-\"&$M33&\"_new\",Ammortamento_Finanziario!$H:$L,5,FALSE),VLOOKUP($M33,TT_Tabelle_Riferimento!$D$127:$H$164,5,FALSE))","v":20},{"$f":"+IFERROR(VLOOKUP(PK$27&\"-\"&$M33&\"_new\",Ammortamento_Finanziario!$H:$L,5,FALSE),VLOOKUP($M33,TT_Tabelle_Riferimento!$D$127:$H$164,5,FALSE))","v":20},{"$f":"+IFERROR(VLOOKUP(PL$27&\"-\"&$M33&\"_new\",Ammortamento_Finanziario!$H:$L,5,FALSE),VLOOKUP($M33,TT_Tabelle_Riferimento!$D$127:$H$164,5,FALSE))","v":20},{"$f":"+IFERROR(VLOOKUP(PM$27&\"-\"&$M33&\"_new\",Ammortamento_Finanziario!$H:$L,5,FALSE),VLOOKUP($M33,TT_Tabelle_Riferimento!$D$127:$H$164,5,FALSE))","v":20},{"$f":"+IFERROR(VLOOKUP(PN$27&\"-\"&$M33&\"_new\",Ammortamento_Finanziario!$H:$L,5,FALSE),VLOOKUP($M33,TT_Tabelle_Riferimento!$D$127:$H$164,5,FALSE))","v":20},{"$f":"+IFERROR(VLOOKUP(PO$27&\"-\"&$M33&\"_new\",Ammortamento_Finanziario!$H:$L,5,FALSE),VLOOKUP($M33,TT_Tabelle_Riferimento!$D$127:$H$164,5,FALSE))","v":20},{"$f":"+IFERROR(VLOOKUP(PP$27&\"-\"&$M33&\"_new\",Ammortamento_Finanziario!$H:$L,5,FALSE),VLOOKUP($M33,TT_Tabelle_Riferimento!$D$127:$H$164,5,FALSE))","v":20},{"$f":"+IFERROR(VLOOKUP(PQ$27&\"-\"&$M33&\"_new\",Ammortamento_Finanziario!$H:$L,5,FALSE),VLOOKUP($M33,TT_Tabelle_Riferimento!$D$127:$H$164,5,FALSE))","v":20},{"$f":"+IFERROR(VLOOKUP(PR$27&\"-\"&$M33&\"_new\",Ammortamento_Finanziario!$H:$L,5,FALSE),VLOOKUP($M33,TT_Tabelle_Riferimento!$D$127:$H$164,5,FALSE))","v":20},{"$f":"+IFERROR(VLOOKUP(PS$27&\"-\"&$M33&\"_new\",Ammortamento_Finanziario!$H:$L,5,FALSE),VLOOKUP($M33,TT_Tabelle_Riferimento!$D$127:$H$164,5,FALSE))","v":20},{"$f":"+IFERROR(VLOOKUP(PT$27&\"-\"&$M33&\"_new\",Ammortamento_Finanziario!$H:$L,5,FALSE),VLOOKUP($M33,TT_Tabelle_Riferimento!$D$127:$H$164,5,FALSE))","v":20},{"$f":"+IFERROR(VLOOKUP(PU$27&\"-\"&$M33&\"_new\",Ammortamento_Finanziario!$H:$L,5,FALSE),VLOOKUP($M33,TT_Tabelle_Riferimento!$D$127:$H$164,5,FALSE))","v":20},{"$f":"+IFERROR(VLOOKUP(PV$27&\"-\"&$M33&\"_new\",Ammortamento_Finanziario!$H:$L,5,FALSE),VLOOKUP($M33,TT_Tabelle_Riferimento!$D$127:$H$164,5,FALSE))","v":20},{"$f":"+IFERROR(VLOOKUP(PW$27&\"-\"&$M33&\"_new\",Ammortamento_Finanziario!$H:$L,5,FALSE),VLOOKUP($M33,TT_Tabelle_Riferimento!$D$127:$H$164,5,FALSE))","v":20},{"$f":"+IFERROR(VLOOKUP(PX$27&\"-\"&$M33&\"_new\",Ammortamento_Finanziario!$H:$L,5,FALSE),VLOOKUP($M33,TT_Tabelle_Riferimento!$D$127:$H$164,5,FALSE))","v":20},{"$f":"+IFERROR(VLOOKUP(PY$27&\"-\"&$M33&\"_new\",Ammortamento_Finanziario!$H:$L,5,FALSE),VLOOKUP($M33,TT_Tabelle_Riferimento!$D$127:$H$164,5,FALSE))","v":20},{"$f":"+IFERROR(VLOOKUP(PZ$27&\"-\"&$M33&\"_new\",Ammortamento_Finanziario!$H:$L,5,FALSE),VLOOKUP($M33,TT_Tabelle_Riferimento!$D$127:$H$164,5,FALSE))","v":20},{"$f":"+IFERROR(VLOOKUP(QA$27&\"-\"&$M33&\"_new\",Ammortamento_Finanziario!$H:$L,5,FALSE),VLOOKUP($M33,TT_Tabelle_Riferimento!$D$127:$H$164,5,FALSE))","v":20},{"$f":"+IFERROR(VLOOKUP(QB$27&\"-\"&$M33&\"_new\",Ammortamento_Finanziario!$H:$L,5,FALSE),VLOOKUP($M33,TT_Tabelle_Riferimento!$D$127:$H$164,5,FALSE))","v":20},{"$f":"+IFERROR(VLOOKUP(QC$27&\"-\"&$M33&\"_new\",Ammortamento_Finanziario!$H:$L,5,FALSE),VLOOKUP($M33,TT_Tabelle_Riferimento!$D$127:$H$164,5,FALSE))","v":20},{"$f":"+IFERROR(VLOOKUP(QD$27&\"-\"&$M33&\"_new\",Ammortamento_Finanziario!$H:$L,5,FALSE),VLOOKUP($M33,TT_Tabelle_Riferimento!$D$127:$H$164,5,FALSE))","v":20},{"$f":"+IFERROR(VLOOKUP(QE$27&\"-\"&$M33&\"_new\",Ammortamento_Finanziario!$H:$L,5,FALSE),VLOOKUP($M33,TT_Tabelle_Riferimento!$D$127:$H$164,5,FALSE))","v":20},{"$f":"+IFERROR(VLOOKUP(QF$27&\"-\"&$M33&\"_new\",Ammortamento_Finanziario!$H:$L,5,FALSE),VLOOKUP($M33,TT_Tabelle_Riferimento!$D$127:$H$164,5,FALSE))","v":20},{"$f":"+IFERROR(VLOOKUP(QG$27&\"-\"&$M33&\"_new\",Ammortamento_Finanziario!$H:$L,5,FALSE),VLOOKUP($M33,TT_Tabelle_Riferimento!$D$127:$H$164,5,FALSE))","v":20},{"$f":"+IFERROR(VLOOKUP(QH$27&\"-\"&$M33&\"_new\",Ammortamento_Finanziario!$H:$L,5,FALSE),VLOOKUP($M33,TT_Tabelle_Riferimento!$D$127:$H$164,5,FALSE))","v":20},{"$f":"+IFERROR(VLOOKUP(QI$27&\"-\"&$M33&\"_new\",Ammortamento_Finanziario!$H:$L,5,FALSE),VLOOKUP($M33,TT_Tabelle_Riferimento!$D$127:$H$164,5,FALSE))","v":20},{"$f":"+IFERROR(VLOOKUP(QJ$27&\"-\"&$M33&\"_new\",Ammortamento_Finanziario!$H:$L,5,FALSE),VLOOKUP($M33,TT_Tabelle_Riferimento!$D$127:$H$164,5,FALSE))","v":20},{"$f":"+IFERROR(VLOOKUP(QK$27&\"-\"&$M33&\"_new\",Ammortamento_Finanziario!$H:$L,5,FALSE),VLOOKUP($M33,TT_Tabelle_Riferimento!$D$127:$H$164,5,FALSE))","v":20},{"$f":"+IFERROR(VLOOKUP(QL$27&\"-\"&$M33&\"_new\",Ammortamento_Finanziario!$H:$L,5,FALSE),VLOOKUP($M33,TT_Tabelle_Riferimento!$D$127:$H$164,5,FALSE))","v":20},{"$f":"+IFERROR(VLOOKUP(QM$27&\"-\"&$M33&\"_new\",Ammortamento_Finanziario!$H:$L,5,FALSE),VLOOKUP($M33,TT_Tabelle_Riferimento!$D$127:$H$164,5,FALSE))","v":20},{"$f":"+IFERROR(VLOOKUP(QN$27&\"-\"&$M33&\"_new\",Ammortamento_Finanziario!$H:$L,5,FALSE),VLOOKUP($M33,TT_Tabelle_Riferimento!$D$127:$H$164,5,FALSE))","v":20},{"$f":"+IFERROR(VLOOKUP(QO$27&\"-\"&$M33&\"_new\",Ammortamento_Finanziario!$H:$L,5,FALSE),VLOOKUP($M33,TT_Tabelle_Riferimento!$D$127:$H$164,5,FALSE))","v":20},{"$f":"+IFERROR(VLOOKUP(QP$27&\"-\"&$M33&\"_new\",Ammortamento_Finanziario!$H:$L,5,FALSE),VLOOKUP($M33,TT_Tabelle_Riferimento!$D$127:$H$164,5,FALSE))","v":20},{"$f":"+IFERROR(VLOOKUP(QQ$27&\"-\"&$M33&\"_new\",Ammortamento_Finanziario!$H:$L,5,FALSE),VLOOKUP($M33,TT_Tabelle_Riferimento!$D$127:$H$164,5,FALSE))","v":20},{"$f":"+IFERROR(VLOOKUP(QR$27&\"-\"&$M33&\"_new\",Ammortamento_Finanziario!$H:$L,5,FALSE),VLOOKUP($M33,TT_Tabelle_Riferimento!$D$127:$H$164,5,FALSE))","v":20},{"$f":"+IFERROR(VLOOKUP(QS$27&\"-\"&$M33&\"_new\",Ammortamento_Finanziario!$H:$L,5,FALSE),VLOOKUP($M33,TT_Tabelle_Riferimento!$D$127:$H$164,5,FALSE))","v":20},{"$f":"+IFERROR(VLOOKUP(QT$27&\"-\"&$M33&\"_new\",Ammortamento_Finanziario!$H:$L,5,FALSE),VLOOKUP($M33,TT_Tabelle_Riferimento!$D$127:$H$164,5,FALSE))","v":20},{"$f":"+IFERROR(VLOOKUP(QU$27&\"-\"&$M33&\"_new\",Ammortamento_Finanziario!$H:$L,5,FALSE),VLOOKUP($M33,TT_Tabelle_Riferimento!$D$127:$H$164,5,FALSE))","v":20},{"$f":"+IFERROR(VLOOKUP(QV$27&\"-\"&$M33&\"_new\",Ammortamento_Finanziario!$H:$L,5,FALSE),VLOOKUP($M33,TT_Tabelle_Riferimento!$D$127:$H$164,5,FALSE))","v":20},{"$f":"+IFERROR(VLOOKUP(QW$27&\"-\"&$M33&\"_new\",Ammortamento_Finanziario!$H:$L,5,FALSE),VLOOKUP($M33,TT_Tabelle_Riferimento!$D$127:$H$164,5,FALSE))","v":20},{"$f":"+IFERROR(VLOOKUP(QX$27&\"-\"&$M33&\"_new\",Ammortamento_Finanziario!$H:$L,5,FALSE),VLOOKUP($M33,TT_Tabelle_Riferimento!$D$127:$H$164,5,FALSE))","v":20},{"$f":"+IFERROR(VLOOKUP(QY$27&\"-\"&$M33&\"_new\",Ammortamento_Finanziario!$H:$L,5,FALSE),VLOOKUP($M33,TT_Tabelle_Riferimento!$D$127:$H$164,5,FALSE))","v":20},{"$f":"+IFERROR(VLOOKUP(QZ$27&\"-\"&$M33&\"_new\",Ammortamento_Finanziario!$H:$L,5,FALSE),VLOOKUP($M33,TT_Tabelle_Riferimento!$D$127:$H$164,5,FALSE))","v":20},{"$f":"+IFERROR(VLOOKUP(RA$27&\"-\"&$M33&\"_new\",Ammortamento_Finanziario!$H:$L,5,FALSE),VLOOKUP($M33,TT_Tabelle_Riferimento!$D$127:$H$164,5,FALSE))","v":20},{"$f":"+IFERROR(VLOOKUP(RB$27&\"-\"&$M33&\"_new\",Ammortamento_Finanziario!$H:$L,5,FALSE),VLOOKUP($M33,TT_Tabelle_Riferimento!$D$127:$H$164,5,FALSE))","v":20},{"$f":"+IFERROR(VLOOKUP(RC$27&\"-\"&$M33&\"_new\",Ammortamento_Finanziario!$H:$L,5,FALSE),VLOOKUP($M33,TT_Tabelle_Riferimento!$D$127:$H$164,5,FALSE))","v":20},{"$f":"+IFERROR(VLOOKUP(RD$27&\"-\"&$M33&\"_new\",Ammortamento_Finanziario!$H:$L,5,FALSE),VLOOKUP($M33,TT_Tabelle_Riferimento!$D$127:$H$164,5,FALSE))","v":20},{"$f":"+IFERROR(VLOOKUP(RE$27&\"-\"&$M33&\"_new\",Ammortamento_Finanziario!$H:$L,5,FALSE),VLOOKUP($M33,TT_Tabelle_Riferimento!$D$127:$H$164,5,FALSE))","v":20},{"$f":"+IFERROR(VLOOKUP(RF$27&\"-\"&$M33&\"_new\",Ammortamento_Finanziario!$H:$L,5,FALSE),VLOOKUP($M33,TT_Tabelle_Riferimento!$D$127:$H$164,5,FALSE))","v":20},{"$f":"+IFERROR(VLOOKUP(RG$27&\"-\"&$M33&\"_new\",Ammortamento_Finanziario!$H:$L,5,FALSE),VLOOKUP($M33,TT_Tabelle_Riferimento!$D$127:$H$164,5,FALSE))","v":20},{"$f":"+IFERROR(VLOOKUP(RH$27&\"-\"&$M33&\"_new\",Ammortamento_Finanziario!$H:$L,5,FALSE),VLOOKUP($M33,TT_Tabelle_Riferimento!$D$127:$H$164,5,FALSE))","v":20},{"$f":"+IFERROR(VLOOKUP(RI$27&\"-\"&$M33&\"_new\",Ammortamento_Finanziario!$H:$L,5,FALSE),VLOOKUP($M33,TT_Tabelle_Riferimento!$D$127:$H$164,5,FALSE))","v":20},{"$f":"+IFERROR(VLOOKUP(RJ$27&\"-\"&$M33&\"_new\",Ammortamento_Finanziario!$H:$L,5,FALSE),VLOOKUP($M33,TT_Tabelle_Riferimento!$D$127:$H$164,5,FALSE))","v":20},{"$f":"+IFERROR(VLOOKUP(RK$27&\"-\"&$M33&\"_new\",Ammortamento_Finanziario!$H:$L,5,FALSE),VLOOKUP($M33,TT_Tabelle_Riferimento!$D$127:$H$164,5,FALSE))","v":20},{"$f":"+IFERROR(VLOOKUP(RL$27&\"-\"&$M33&\"_new\",Ammortamento_Finanziario!$H:$L,5,FALSE),VLOOKUP($M33,TT_Tabelle_Riferimento!$D$127:$H$164,5,FALSE))","v":20},{"$f":"+IFERROR(VLOOKUP(RM$27&\"-\"&$M33&\"_new\",Ammortamento_Finanziario!$H:$L,5,FALSE),VLOOKUP($M33,TT_Tabelle_Riferimento!$D$127:$H$164,5,FALSE))","v":20},{"$f":"+IFERROR(VLOOKUP(RN$27&\"-\"&$M33&\"_new\",Ammortamento_Finanziario!$H:$L,5,FALSE),VLOOKUP($M33,TT_Tabelle_Riferimento!$D$127:$H$164,5,FALSE))","v":20},{"$f":"+IFERROR(VLOOKUP(RO$27&\"-\"&$M33&\"_new\",Ammortamento_Finanziario!$H:$L,5,FALSE),VLOOKUP($M33,TT_Tabelle_Riferimento!$D$127:$H$164,5,FALSE))","v":20},{"$f":"+IFERROR(VLOOKUP(RP$27&\"-\"&$M33&\"_new\",Ammortamento_Finanziario!$H:$L,5,FALSE),VLOOKUP($M33,TT_Tabelle_Riferimento!$D$127:$H$164,5,FALSE))","v":20},{"$f":"+IFERROR(VLOOKUP(RQ$27&\"-\"&$M33&\"_new\",Ammortamento_Finanziario!$H:$L,5,FALSE),VLOOKUP($M33,TT_Tabelle_Riferimento!$D$127:$H$164,5,FALSE))","v":20},{"$f":"+IFERROR(VLOOKUP(RR$27&\"-\"&$M33&\"_new\",Ammortamento_Finanziario!$H:$L,5,FALSE),VLOOKUP($M33,TT_Tabelle_Riferimento!$D$127:$H$164,5,FALSE))","v":20},{"$f":"+IFERROR(VLOOKUP(RS$27&\"-\"&$M33&\"_new\",Ammortamento_Finanziario!$H:$L,5,FALSE),VLOOKUP($M33,TT_Tabelle_Riferimento!$D$127:$H$164,5,FALSE))","v":20},{"$f":"+IFERROR(VLOOKUP(RT$27&\"-\"&$M33&\"_new\",Ammortamento_Finanziario!$H:$L,5,FALSE),VLOOKUP($M33,TT_Tabelle_Riferimento!$D$127:$H$164,5,FALSE))","v":20},{"$f":"+IFERROR(VLOOKUP(RU$27&\"-\"&$M33&\"_new\",Ammortamento_Finanziario!$H:$L,5,FALSE),VLOOKUP($M33,TT_Tabelle_Riferimento!$D$127:$H$164,5,FALSE))","v":20},{"$f":"+IFERROR(VLOOKUP(RV$27&\"-\"&$M33&\"_new\",Ammortamento_Finanziario!$H:$L,5,FALSE),VLOOKUP($M33,TT_Tabelle_Riferimento!$D$127:$H$164,5,FALSE))","v":20}]
[null,null,null,"CFP",{"$f":"+SUMIF(IMN_gestore!$E:$E,2022,IMN_gestore!$U:$U)","v":0},{"$f":"SUMIF(IMN_gestore!$E:$E,2023,IMN_gestore!$AF:$AF)","v":0},{"$f":"+SUMIF(IMN_gestore!$E:$E,2024,IMN_gestore!$AQ:$AQ)","v":0},{"$f":"SUMIF(IMN_gestore!$E:$E,2025,IMN_gestore!$BB:$BB)","v":0},{"$f":"SUMIF(IMN_gestore!$E:$E,2026,IMN_gestore!$BM:$BM)","v":0},{"$f":"SUMIF(IMN_gestore!$E:$E,2027,IMN_gestore!$BX:$BX)","v":0},null,null,7,0,0,0,0,0,0,0,0,0,0,0,0,0,0,0,0,0,0,0,0,0,0,0,0,0,0,0,0,0,0,0,0,0,0,0,0,0,0,0,0,0,0,0,0,0,0,0,0,0,0,0,0,0,0,0,0,0,0,0,0,0,0,0,0,0,0,0,0,0,0,0,0,0,0,0,0,0,0,0,0,0,0,0,0,0,0,0,0,0,0,0,0,0,0,0,0,0,0,0,0,0,0,0,0,0,0,0,0,0,0,0,0,0,0,0,0,0,0,0,0,0,0,0,0,0,0,0,0,0,0,0,0,0,0,0,0,0,0,0,0,0,0,0,0,0,0,0,0,0,0,0,0,0,0,0,0,0,0,0,0,0,0,0,0,0,0,0,0,0,0,0,0,0,0,0,0,0,0,0,0,0,0,0,0,0,0,0,0,0,0,0,0,0,0,0,0,0,0,0,0,0,0,0,0,0,0,0,0,0,0,0,0,0,0,0,0,0,0,0,0,0,0,0,0,0,0,0,0,0,0,0,0,0,0,0,0,0,0,0,0,0,0,0,0,0,0,0,0,0,0,0,0,0,0,0,0,0,0,0,0,0,0,0,0,0,0,0,0,0,0,0,0,0,0,0,0,0,0,0,0,0,0,0,0,0,0,0,0,0,{"$f":"+IFERROR(VLOOKUP(KQ$27&\"-\"&$M34&\"_new\",Ammortamento_Finanziario!$H:$L,5,FALSE),VLOOKUP($M34,TT_Tabelle_Riferimento!$D$127:$H$164,5,FALSE))","v":12},{"$f":"+IFERROR(VLOOKUP(KR$27&\"-\"&$M34&\"_new\",Ammortamento_Finanziario!$H:$L,5,FALSE),VLOOKUP($M34,TT_Tabelle_Riferimento!$D$127:$H$164,5,FALSE))","v":12},{"$f":"+IFERROR(VLOOKUP(KS$27&\"-\"&$M34&\"_new\",Ammortamento_Finanziario!$H:$L,5,FALSE),VLOOKUP($M34,TT_Tabelle_Riferimento!$D$127:$H$164,5,FALSE))","v":12},{"$f":"+IFERROR(VLOOKUP(KT$27&\"-\"&$M34&\"_new\",Ammortamento_Finanziario!$H:$L,5,FALSE),VLOOKUP($M34,TT_Tabelle_Riferimento!$D$127:$H$164,5,FALSE))","v":12},{"$f":"+IFERROR(VLOOKUP(KU$27&\"-\"&$M34&\"_new\",Ammortamento_Finanziario!$H:$L,5,FALSE),VLOOKUP($M34,TT_Tabelle_Riferimento!$D$127:$H$164,5,FALSE))","v":12},{"$f":"+IFERROR(VLOOKUP(KV$27&\"-\"&$M34&\"_new\",Ammortamento_Finanziario!$H:$L,5,FALSE),VLOOKUP($M34,TT_Tabelle_Riferimento!$D$127:$H$164,5,FALSE))","v":12},{"$f":"+IFERROR(VLOOKUP(KW$27&\"-\"&$M34&\"_new\",Ammortamento_Finanziario!$H:$L,5,FALSE),VLOOKUP($M34,TT_Tabelle_Riferimento!$D$127:$H$164,5,FALSE))","v":12},{"$f":"+IFERROR(VLOOKUP(KX$27&\"-\"&$M34&\"_new\",Ammortamento_Finanziario!$H:$L,5,FALSE),VLOOKUP($M34,TT_Tabelle_Riferimento!$D$127:$H$164,5,FALSE))","v":12},{"$f":"+IFERROR(VLOOKUP(KY$27&\"-\"&$M34&\"_new\",Ammortamento_Finanziario!$H:$L,5,FALSE),VLOOKUP($M34,TT_Tabelle_Riferimento!$D$127:$H$164,5,FALSE))","v":12},{"$f":"+IFERROR(VLOOKUP(KZ$27&\"-\"&$M34&\"_new\",Ammortamento_Finanziario!$H:$L,5,FALSE),VLOOKUP($M34,TT_Tabelle_Riferimento!$D$127:$H$164,5,FALSE))","v":12},{"$f":"+IFERROR(VLOOKUP(LA$27&\"-\"&$M34&\"_new\",Ammortamento_Finanziario!$H:$L,5,FALSE),VLOOKUP($M34,TT_Tabelle_Riferimento!$D$127:$H$164,5,FALSE))","v":12},{"$f":"+IFERROR(VLOOKUP(LB$27&\"-\"&$M34&\"_new\",Ammortamento_Finanziario!$H:$L,5,FALSE),VLOOKUP($M34,TT_Tabelle_Riferimento!$D$127:$H$164,5,FALSE))","v":12},{"$f":"+IFERROR(VLOOKUP(LC$27&\"-\"&$M34&\"_new\",Ammortamento_Finanziario!$H:$L,5,FALSE),VLOOKUP($M34,TT_Tabelle_Riferimento!$D$127:$H$164,5,FALSE))","v":12},{"$f":"+IFERROR(VLOOKUP(LD$27&\"-\"&$M34&\"_new\",Ammortamento_Finanziario!$H:$L,5,FALSE),VLOOKUP($M34,TT_Tabelle_Riferimento!$D$127:$H$164,5,FALSE))","v":12},{"$f":"+IFERROR(VLOOKUP(LE$27&\"-\"&$M34&\"_new\",Ammortamento_Finanziario!$H:$L,5,FALSE),VLOOKUP($M34,TT_Tabelle_Riferimento!$D$127:$H$164,5,FALSE))","v":12},{"$f":"+IFERROR(VLOOKUP(LF$27&\"-\"&$M34&\"_new\",Ammortamento_Finanziario!$H:$L,5,FALSE),VLOOKUP($M34,TT_Tabelle_Riferimento!$D$127:$H$164,5,FALSE))","v":12},{"$f":"+IFERROR(VLOOKUP(LG$27&\"-\"&$M34&\"_new\",Ammortamento_Finanziario!$H:$L,5,FALSE),VLOOKUP($M34,TT_Tabelle_Riferimento!$D$127:$H$164,5,FALSE))","v":12},{"$f":"+IFERROR(VLOOKUP(LH$27&\"-\"&$M34&\"_new\",Ammortamento_Finanziario!$H:$L,5,FALSE),VLOOKUP($M34,TT_Tabelle_Riferimento!$D$127:$H$164,5,FALSE))","v":12},{"$f":"+IFERROR(VLOOKUP(LI$27&\"-\"&$M34&\"_new\",Ammortamento_Finanziario!$H:$L,5,FALSE),VLOOKUP($M34,TT_Tabelle_Riferimento!$D$127:$H$164,5,FALSE))","v":12},{"$f":"+IFERROR(VLOOKUP(LJ$27&\"-\"&$M34&\"_new\",Ammortamento_Finanziario!$H:$L,5,FALSE),VLOOKUP($M34,TT_Tabelle_Riferimento!$D$127:$H$164,5,FALSE))","v":12},{"$f":"+IFERROR(VLOOKUP(LK$27&\"-\"&$M34&\"_new\",Ammortamento_Finanziario!$H:$L,5,FALSE),VLOOKUP($M34,TT_Tabelle_Riferimento!$D$127:$H$164,5,FALSE))","v":12},{"$f":"+IFERROR(VLOOKUP(LL$27&\"-\"&$M34&\"_new\",Ammortamento_Finanziario!$H:$L,5,FALSE),VLOOKUP($M34,TT_Tabelle_Riferimento!$D$127:$H$164,5,FALSE))","v":12},{"$f":"+IFERROR(VLOOKUP(LM$27&\"-\"&$M34&\"_new\",Ammortamento_Finanziario!$H:$L,5,FALSE),VLOOKUP($M34,TT_Tabelle_Riferimento!$D$127:$H$164,5,FALSE))","v":12},{"$f":"+IFERROR(VLOOKUP(LN$27&\"-\"&$M34&\"_new\",Ammortamento_Finanziario!$H:$L,5,FALSE),VLOOKUP($M34,TT_Tabelle_Riferimento!$D$127:$H$164,5,FALSE))","v":12},{"$f":"+IFERROR(VLOOKUP(LO$27&\"-\"&$M34&\"_new\",Ammortamento_Finanziario!$H:$L,5,FALSE),VLOOKUP($M34,TT_Tabelle_Riferimento!$D$127:$H$164,5,FALSE))","v":12},{"$f":"+IFERROR(VLOOKUP(LP$27&\"-\"&$M34&\"_new\",Ammortamento_Finanziario!$H:$L,5,FALSE),VLOOKUP($M34,TT_Tabelle_Riferimento!$D$127:$H$164,5,FALSE))","v":12},{"$f":"+IFERROR(VLOOKUP(LQ$27&\"-\"&$M34&\"_new\",Ammortamento_Finanziario!$H:$L,5,FALSE),VLOOKUP($M34,TT_Tabelle_Riferimento!$D$127:$H$164,5,FALSE))","v":12},{"$f":"+IFERROR(VLOOKUP(LR$27&\"-\"&$M34&\"_new\",Ammortamento_Finanziario!$H:$L,5,FALSE),VLOOKUP($M34,TT_Tabelle_Riferimento!$D$127:$H$164,5,FALSE))","v":12},{"$f":"+IFERROR(VLOOKUP(LS$27&\"-\"&$M34&\"_new\",Ammortamento_Finanziario!$H:$L,5,FALSE),VLOOKUP($M34,TT_Tabelle_Riferimento!$D$127:$H$164,5,FALSE))","v":12},{"$f":"+IFERROR(VLOOKUP(LT$27&\"-\"&$M34&\"_new\",Ammortamento_Finanziario!$H:$L,5,FALSE),VLOOKUP($M34,TT_Tabelle_Riferimento!$D$127:$H$164,5,FALSE))","v":12},{"$f":"+IFERROR(VLOOKUP(LU$27&\"-\"&$M34&\"_new\",Ammortamento_Finanziario!$H:$L,5,FALSE),VLOOKUP($M34,TT_Tabelle_Riferimento!$D$127:$H$164,5,FALSE))","v":12},{"$f":"+IFERROR(VLOOKUP(LV$27&\"-\"&$M34&\"_new\",Ammortamento_Finanziario!$H:$L,5,FALSE),VLOOKUP($M34,TT_Tabelle_Riferimento!$D$127:$H$164,5,FALSE))","v":12},{"$f":"+IFERROR(VLOOKUP(LW$27&\"-\"&$M34&\"_new\",Ammortamento_Finanziario!$H:$L,5,FALSE),VLOOKUP($M34,TT_Tabelle_Riferimento!$D$127:$H$164,5,FALSE))","v":12},{"$f":"+IFERROR(VLOOKUP(LX$27&\"-\"&$M34&\"_new\",Ammortamento_Finanziario!$H:$L,5,FALSE),VLOOKUP($M34,TT_Tabelle_Riferimento!$D$127:$H$164,5,FALSE))","v":12},{"$f":"+IFERROR(VLOOKUP(LY$27&\"-\"&$M34&\"_new\",Ammortamento_Finanziario!$H:$L,5,FALSE),VLOOKUP($M34,TT_Tabelle_Riferimento!$D$127:$H$164,5,FALSE))","v":12},{"$f":"+IFERROR(VLOOKUP(LZ$27&\"-\"&$M34&\"_new\",Ammortamento_Finanziario!$H:$L,5,FALSE),VLOOKUP($M34,TT_Tabelle_Riferimento!$D$127:$H$164,5,FALSE))","v":12},{"$f":"+IFERROR(VLOOKUP(MA$27&\"-\"&$M34&\"_new\",Ammortamento_Finanziario!$H:$L,5,FALSE),VLOOKUP($M34,TT_Tabelle_Riferimento!$D$127:$H$164,5,FALSE))","v":12},{"$f":"+IFERROR(VLOOKUP(MB$27&\"-\"&$M34&\"_new\",Ammortamento_Finanziario!$H:$L,5,FALSE),VLOOKUP($M34,TT_Tabelle_Riferimento!$D$127:$H$164,5,FALSE))","v":12},{"$f":"+IFERROR(VLOOKUP(MC$27&\"-\"&$M34&\"_new\",Ammortamento_Finanziario!$H:$L,5,FALSE),VLOOKUP($M34,TT_Tabelle_Riferimento!$D$127:$H$164,5,FALSE))","v":12},{"$f":"+IFERROR(VLOOKUP(MD$27&\"-\"&$M34&\"_new\",Ammortamento_Finanziario!$H:$L,5,FALSE),VLOOKUP($M34,TT_Tabelle_Riferimento!$D$127:$H$164,5,FALSE))","v":12},{"$f":"+IFERROR(VLOOKUP(ME$27&\"-\"&$M34&\"_new\",Ammortamento_Finanziario!$H:$L,5,FALSE),VLOOKUP($M34,TT_Tabelle_Riferimento!$D$127:$H$164,5,FALSE))","v":12},{"$f":"+IFERROR(VLOOKUP(MF$27&\"-\"&$M34&\"_new\",Ammortamento_Finanziario!$H:$L,5,FALSE),VLOOKUP($M34,TT_Tabelle_Riferimento!$D$127:$H$164,5,FALSE))","v":12},{"$f":"+IFERROR(VLOOKUP(MG$27&\"-\"&$M34&\"_new\",Ammortamento_Finanziario!$H:$L,5,FALSE),VLOOKUP($M34,TT_Tabelle_Riferimento!$D$127:$H$164,5,FALSE))","v":12},{"$f":"+IFERROR(VLOOKUP(MH$27&\"-\"&$M34&\"_new\",Ammortamento_Finanziario!$H:$L,5,FALSE),VLOOKUP($M34,TT_Tabelle_Riferimento!$D$127:$H$164,5,FALSE))","v":12},{"$f":"+IFERROR(VLOOKUP(MI$27&\"-\"&$M34&\"_new\",Ammortamento_Finanziario!$H:$L,5,FALSE),VLOOKUP($M34,TT_Tabelle_Riferimento!$D$127:$H$164,5,FALSE))","v":12},{"$f":"+IFERROR(VLOOKUP(MJ$27&\"-\"&$M34&\"_new\",Ammortamento_Finanziario!$H:$L,5,FALSE),VLOOKUP($M34,TT_Tabelle_Riferimento!$D$127:$H$164,5,FALSE))","v":12},{"$f":"+IFERROR(VLOOKUP(MK$27&\"-\"&$M34&\"_new\",Ammortamento_Finanziario!$H:$L,5,FALSE),VLOOKUP($M34,TT_Tabelle_Riferimento!$D$127:$H$164,5,FALSE))","v":12},{"$f":"+IFERROR(VLOOKUP(ML$27&\"-\"&$M34&\"_new\",Ammortamento_Finanziario!$H:$L,5,FALSE),VLOOKUP($M34,TT_Tabelle_Riferimento!$D$127:$H$164,5,FALSE))","v":12},{"$f":"+IFERROR(VLOOKUP(MM$27&\"-\"&$M34&\"_new\",Ammortamento_Finanziario!$H:$L,5,FALSE),VLOOKUP($M34,TT_Tabelle_Riferimento!$D$127:$H$164,5,FALSE))","v":12},{"$f":"+IFERROR(VLOOKUP(MN$27&\"-\"&$M34&\"_new\",Ammortamento_Finanziario!$H:$L,5,FALSE),VLOOKUP($M34,TT_Tabelle_Riferimento!$D$127:$H$164,5,FALSE))","v":12},{"$f":"+IFERROR(VLOOKUP(MO$27&\"-\"&$M34&\"_new\",Ammortamento_Finanziario!$H:$L,5,FALSE),VLOOKUP($M34,TT_Tabelle_Riferimento!$D$127:$H$164,5,FALSE))","v":12},{"$f":"+IFERROR(VLOOKUP(MP$27&\"-\"&$M34&\"_new\",Ammortamento_Finanziario!$H:$L,5,FALSE),VLOOKUP($M34,TT_Tabelle_Riferimento!$D$127:$H$164,5,FALSE))","v":12},{"$f":"+IFERROR(VLOOKUP(MQ$27&\"-\"&$M34&\"_new\",Ammortamento_Finanziario!$H:$L,5,FALSE),VLOOKUP($M34,TT_Tabelle_Riferimento!$D$127:$H$164,5,FALSE))","v":12},{"$f":"+IFERROR(VLOOKUP(MR$27&\"-\"&$M34&\"_new\",Ammortamento_Finanziario!$H:$L,5,FALSE),VLOOKUP($M34,TT_Tabelle_Riferimento!$D$127:$H$164,5,FALSE))","v":12},{"$f":"+IFERROR(VLOOKUP(MS$27&\"-\"&$M34&\"_new\",Ammortamento_Finanziario!$H:$L,5,FALSE),VLOOKUP($M34,TT_Tabelle_Riferimento!$D$127:$H$164,5,FALSE))","v":12},{"$f":"+IFERROR(VLOOKUP(MT$27&\"-\"&$M34&\"_new\",Ammortamento_Finanziario!$H:$L,5,FALSE),VLOOKUP($M34,TT_Tabelle_Riferimento!$D$127:$H$164,5,FALSE))","v":12},{"$f":"+IFERROR(VLOOKUP(MU$27&\"-\"&$M34&\"_new\",Ammortamento_Finanziario!$H:$L,5,FALSE),VLOOKUP($M34,TT_Tabelle_Riferimento!$D$127:$H$164,5,FALSE))","v":12},{"$f":"+IFERROR(VLOOKUP(MV$27&\"-\"&$M34&\"_new\",Ammortamento_Finanziario!$H:$L,5,FALSE),VLOOKUP($M34,TT_Tabelle_Riferimento!$D$127:$H$164,5,FALSE))","v":12},{"$f":"+IFERROR(VLOOKUP(MW$27&\"-\"&$M34&\"_new\",Ammortamento_Finanziario!$H:$L,5,FALSE),VLOOKUP($M34,TT_Tabelle_Riferimento!$D$127:$H$164,5,FALSE))","v":12},{"$f":"+IFERROR(VLOOKUP(MX$27&\"-\"&$M34&\"_new\",Ammortamento_Finanziario!$H:$L,5,FALSE),VLOOKUP($M34,TT_Tabelle_Riferimento!$D$127:$H$164,5,FALSE))","v":12},{"$f":"+IFERROR(VLOOKUP(MY$27&\"-\"&$M34&\"_new\",Ammortamento_Finanziario!$H:$L,5,FALSE),VLOOKUP($M34,TT_Tabelle_Riferimento!$D$127:$H$164,5,FALSE))","v":12},{"$f":"+IFERROR(VLOOKUP(MZ$27&\"-\"&$M34&\"_new\",Ammortamento_Finanziario!$H:$L,5,FALSE),VLOOKUP($M34,TT_Tabelle_Riferimento!$D$127:$H$164,5,FALSE))","v":12},{"$f":"+IFERROR(VLOOKUP(NA$27&\"-\"&$M34&\"_new\",Ammortamento_Finanziario!$H:$L,5,FALSE),VLOOKUP($M34,TT_Tabelle_Riferimento!$D$127:$H$164,5,FALSE))","v":12},{"$f":"+IFERROR(VLOOKUP(NB$27&\"-\"&$M34&\"_new\",Ammortamento_Finanziario!$H:$L,5,FALSE),VLOOKUP($M34,TT_Tabelle_Riferimento!$D$127:$H$164,5,FALSE))","v":12},{"$f":"+IFERROR(VLOOKUP(NC$27&\"-\"&$M34&\"_new\",Ammortamento_Finanziario!$H:$L,5,FALSE),VLOOKUP($M34,TT_Tabelle_Riferimento!$D$127:$H$164,5,FALSE))","v":12},{"$f":"+IFERROR(VLOOKUP(ND$27&\"-\"&$M34&\"_new\",Ammortamento_Finanziario!$H:$L,5,FALSE),VLOOKUP($M34,TT_Tabelle_Riferimento!$D$127:$H$164,5,FALSE))","v":12},{"$f":"+IFERROR(VLOOKUP(NE$27&\"-\"&$M34&\"_new\",Ammortamento_Finanziario!$H:$L,5,FALSE),VLOOKUP($M34,TT_Tabelle_Riferimento!$D$127:$H$164,5,FALSE))","v":12},{"$f":"+IFERROR(VLOOKUP(NF$27&\"-\"&$M34&\"_new\",Ammortamento_Finanziario!$H:$L,5,FALSE),VLOOKUP($M34,TT_Tabelle_Riferimento!$D$127:$H$164,5,FALSE))","v":12},{"$f":"+IFERROR(VLOOKUP(NG$27&\"-\"&$M34&\"_new\",Ammortamento_Finanziario!$H:$L,5,FALSE),VLOOKUP($M34,TT_Tabelle_Riferimento!$D$127:$H$164,5,FALSE))","v":12},{"$f":"+IFERROR(VLOOKUP(NH$27&\"-\"&$M34&\"_new\",Ammortamento_Finanziario!$H:$L,5,FALSE),VLOOKUP($M34,TT_Tabelle_Riferimento!$D$127:$H$164,5,FALSE))","v":12},{"$f":"+IFERROR(VLOOKUP(NI$27&\"-\"&$M34&\"_new\",Ammortamento_Finanziario!$H:$L,5,FALSE),VLOOKUP($M34,TT_Tabelle_Riferimento!$D$127:$H$164,5,FALSE))","v":12},{"$f":"+IFERROR(VLOOKUP(NJ$27&\"-\"&$M34&\"_new\",Ammortamento_Finanziario!$H:$L,5,FALSE),VLOOKUP($M34,TT_Tabelle_Riferimento!$D$127:$H$164,5,FALSE))","v":12},{"$f":"+IFERROR(VLOOKUP(NK$27&\"-\"&$M34&\"_new\",Ammortamento_Finanziario!$H:$L,5,FALSE),VLOOKUP($M34,TT_Tabelle_Riferimento!$D$127:$H$164,5,FALSE))","v":12},{"$f":"+IFERROR(VLOOKUP(NL$27&\"-\"&$M34&\"_new\",Ammortamento_Finanziario!$H:$L,5,FALSE),VLOOKUP($M34,TT_Tabelle_Riferimento!$D$127:$H$164,5,FALSE))","v":12},{"$f":"+IFERROR(VLOOKUP(NM$27&\"-\"&$M34&\"_new\",Ammortamento_Finanziario!$H:$L,5,FALSE),VLOOKUP($M34,TT_Tabelle_Riferimento!$D$127:$H$164,5,FALSE))","v":12},{"$f":"+IFERROR(VLOOKUP(NN$27&\"-\"&$M34&\"_new\",Ammortamento_Finanziario!$H:$L,5,FALSE),VLOOKUP($M34,TT_Tabelle_Riferimento!$D$127:$H$164,5,FALSE))","v":12},{"$f":"+IFERROR(VLOOKUP(NO$27&\"-\"&$M34&\"_new\",Ammortamento_Finanziario!$H:$L,5,FALSE),VLOOKUP($M34,TT_Tabelle_Riferimento!$D$127:$H$164,5,FALSE))","v":12},{"$f":"+IFERROR(VLOOKUP(NP$27&\"-\"&$M34&\"_new\",Ammortamento_Finanziario!$H:$L,5,FALSE),VLOOKUP($M34,TT_Tabelle_Riferimento!$D$127:$H$164,5,FALSE))","v":12},{"$f":"+IFERROR(VLOOKUP(NQ$27&\"-\"&$M34&\"_new\",Ammortamento_Finanziario!$H:$L,5,FALSE),VLOOKUP($M34,TT_Tabelle_Riferimento!$D$127:$H$164,5,FALSE))","v":12},{"$f":"+IFERROR(VLOOKUP(NR$27&\"-\"&$M34&\"_new\",Ammortamento_Finanziario!$H:$L,5,FALSE),VLOOKUP($M34,TT_Tabelle_Riferimento!$D$127:$H$164,5,FALSE))","v":12},{"$f":"+IFERROR(VLOOKUP(NS$27&\"-\"&$M34&\"_new\",Ammortamento_Finanziario!$H:$L,5,FALSE),VLOOKUP($M34,TT_Tabelle_Riferimento!$D$127:$H$164,5,FALSE))","v":12},{"$f":"+IFERROR(VLOOKUP(NT$27&\"-\"&$M34&\"_new\",Ammortamento_Finanziario!$H:$L,5,FALSE),VLOOKUP($M34,TT_Tabelle_Riferimento!$D$127:$H$164,5,FALSE))","v":12},{"$f":"+IFERROR(VLOOKUP(NU$27&\"-\"&$M34&\"_new\",Ammortamento_Finanziario!$H:$L,5,FALSE),VLOOKUP($M34,TT_Tabelle_Riferimento!$D$127:$H$164,5,FALSE))","v":12},{"$f":"+IFERROR(VLOOKUP(NV$27&\"-\"&$M34&\"_new\",Ammortamento_Finanziario!$H:$L,5,FALSE),VLOOKUP($M34,TT_Tabelle_Riferimento!$D$127:$H$164,5,FALSE))","v":12},{"$f":"+IFERROR(VLOOKUP(NW$27&\"-\"&$M34&\"_new\",Ammortamento_Finanziario!$H:$L,5,FALSE),VLOOKUP($M34,TT_Tabelle_Riferimento!$D$127:$H$164,5,FALSE))","v":12},{"$f":"+IFERROR(VLOOKUP(NX$27&\"-\"&$M34&\"_new\",Ammortamento_Finanziario!$H:$L,5,FALSE),VLOOKUP($M34,TT_Tabelle_Riferimento!$D$127:$H$164,5,FALSE))","v":12},{"$f":"+IFERROR(VLOOKUP(NY$27&\"-\"&$M34&\"_new\",Ammortamento_Finanziario!$H:$L,5,FALSE),VLOOKUP($M34,TT_Tabelle_Riferimento!$D$127:$H$164,5,FALSE))","v":12},{"$f":"+IFERROR(VLOOKUP(NZ$27&\"-\"&$M34&\"_new\",Ammortamento_Finanziario!$H:$L,5,FALSE),VLOOKUP($M34,TT_Tabelle_Riferimento!$D$127:$H$164,5,FALSE))","v":12},{"$f":"+IFERROR(VLOOKUP(OA$27&\"-\"&$M34&\"_new\",Ammortamento_Finanziario!$H:$L,5,FALSE),VLOOKUP($M34,TT_Tabelle_Riferimento!$D$127:$H$164,5,FALSE))","v":12},{"$f":"+IFERROR(VLOOKUP(OB$27&\"-\"&$M34&\"_new\",Ammortamento_Finanziario!$H:$L,5,FALSE),VLOOKUP($M34,TT_Tabelle_Riferimento!$D$127:$H$164,5,FALSE))","v":12},{"$f":"+IFERROR(VLOOKUP(OC$27&\"-\"&$M34&\"_new\",Ammortamento_Finanziario!$H:$L,5,FALSE),VLOOKUP($M34,TT_Tabelle_Riferimento!$D$127:$H$164,5,FALSE))","v":12},{"$f":"+IFERROR(VLOOKUP(OD$27&\"-\"&$M34&\"_new\",Ammortamento_Finanziario!$H:$L,5,FALSE),VLOOKUP($M34,TT_Tabelle_Riferimento!$D$127:$H$164,5,FALSE))","v":12},{"$f":"+IFERROR(VLOOKUP(OE$27&\"-\"&$M34&\"_new\",Ammortamento_Finanziario!$H:$L,5,FALSE),VLOOKUP($M34,TT_Tabelle_Riferimento!$D$127:$H$164,5,FALSE))","v":12},{"$f":"+IFERROR(VLOOKUP(OF$27&\"-\"&$M34&\"_new\",Ammortamento_Finanziario!$H:$L,5,FALSE),VLOOKUP($M34,TT_Tabelle_Riferimento!$D$127:$H$164,5,FALSE))","v":12},{"$f":"+IFERROR(VLOOKUP(OG$27&\"-\"&$M34&\"_new\",Ammortamento_Finanziario!$H:$L,5,FALSE),VLOOKUP($M34,TT_Tabelle_Riferimento!$D$127:$H$164,5,FALSE))","v":12},{"$f":"+IFERROR(VLOOKUP(OH$27&\"-\"&$M34&\"_new\",Ammortamento_Finanziario!$H:$L,5,FALSE),VLOOKUP($M34,TT_Tabelle_Riferimento!$D$127:$H$164,5,FALSE))","v":12},{"$f":"+IFERROR(VLOOKUP(OI$27&\"-\"&$M34&\"_new\",Ammortamento_Finanziario!$H:$L,5,FALSE),VLOOKUP($M34,TT_Tabelle_Riferimento!$D$127:$H$164,5,FALSE))","v":12},{"$f":"+IFERROR(VLOOKUP(OJ$27&\"-\"&$M34&\"_new\",Ammortamento_Finanziario!$H:$L,5,FALSE),VLOOKUP($M34,TT_Tabelle_Riferimento!$D$127:$H$164,5,FALSE))","v":12},{"$f":"+IFERROR(VLOOKUP(OK$27&\"-\"&$M34&\"_new\",Ammortamento_Finanziario!$H:$L,5,FALSE),VLOOKUP($M34,TT_Tabelle_Riferimento!$D$127:$H$164,5,FALSE))","v":12},{"$f":"+IFERROR(VLOOKUP(OL$27&\"-\"&$M34&\"_new\",Ammortamento_Finanziario!$H:$L,5,FALSE),VLOOKUP($M34,TT_Tabelle_Riferimento!$D$127:$H$164,5,FALSE))","v":12},{"$f":"+IFERROR(VLOOKUP(OM$27&\"-\"&$M34&\"_new\",Ammortamento_Finanziario!$H:$L,5,FALSE),VLOOKUP($M34,TT_Tabelle_Riferimento!$D$127:$H$164,5,FALSE))","v":12},{"$f":"+IFERROR(VLOOKUP(ON$27&\"-\"&$M34&\"_new\",Ammortamento_Finanziario!$H:$L,5,FALSE),VLOOKUP($M34,TT_Tabelle_Riferimento!$D$127:$H$164,5,FALSE))","v":12},{"$f":"+IFERROR(VLOOKUP(OO$27&\"-\"&$M34&\"_new\",Ammortamento_Finanziario!$H:$L,5,FALSE),VLOOKUP($M34,TT_Tabelle_Riferimento!$D$127:$H$164,5,FALSE))","v":12},{"$f":"+IFERROR(VLOOKUP(OP$27&\"-\"&$M34&\"_new\",Ammortamento_Finanziario!$H:$L,5,FALSE),VLOOKUP($M34,TT_Tabelle_Riferimento!$D$127:$H$164,5,FALSE))","v":12},{"$f":"+IFERROR(VLOOKUP(OQ$27&\"-\"&$M34&\"_new\",Ammortamento_Finanziario!$H:$L,5,FALSE),VLOOKUP($M34,TT_Tabelle_Riferimento!$D$127:$H$164,5,FALSE))","v":12},{"$f":"+IFERROR(VLOOKUP(OR$27&\"-\"&$M34&\"_new\",Ammortamento_Finanziario!$H:$L,5,FALSE),VLOOKUP($M34,TT_Tabelle_Riferimento!$D$127:$H$164,5,FALSE))","v":12},{"$f":"+IFERROR(VLOOKUP(OS$27&\"-\"&$M34&\"_new\",Ammortamento_Finanziario!$H:$L,5,FALSE),VLOOKUP($M34,TT_Tabelle_Riferimento!$D$127:$H$164,5,FALSE))","v":12},{"$f":"+IFERROR(VLOOKUP(OT$27&\"-\"&$M34&\"_new\",Ammortamento_Finanziario!$H:$L,5,FALSE),VLOOKUP($M34,TT_Tabelle_Riferimento!$D$127:$H$164,5,FALSE))","v":12},{"$f":"+IFERROR(VLOOKUP(OU$27&\"-\"&$M34&\"_new\",Ammortamento_Finanziario!$H:$L,5,FALSE),VLOOKUP($M34,TT_Tabelle_Riferimento!$D$127:$H$164,5,FALSE))","v":12},{"$f":"+IFERROR(VLOOKUP(OV$27&\"-\"&$M34&\"_new\",Ammortamento_Finanziario!$H:$L,5,FALSE),VLOOKUP($M34,TT_Tabelle_Riferimento!$D$127:$H$164,5,FALSE))","v":12},{"$f":"+IFERROR(VLOOKUP(OW$27&\"-\"&$M34&\"_new\",Ammortamento_Finanziario!$H:$L,5,FALSE),VLOOKUP($M34,TT_Tabelle_Riferimento!$D$127:$H$164,5,FALSE))","v":12},{"$f":"+IFERROR(VLOOKUP(OX$27&\"-\"&$M34&\"_new\",Ammortamento_Finanziario!$H:$L,5,FALSE),VLOOKUP($M34,TT_Tabelle_Riferimento!$D$127:$H$164,5,FALSE))","v":12},{"$f":"+IFERROR(VLOOKUP(OY$27&\"-\"&$M34&\"_new\",Ammortamento_Finanziario!$H:$L,5,FALSE),VLOOKUP($M34,TT_Tabelle_Riferimento!$D$127:$H$164,5,FALSE))","v":12},{"$f":"+IFERROR(VLOOKUP(OZ$27&\"-\"&$M34&\"_new\",Ammortamento_Finanziario!$H:$L,5,FALSE),VLOOKUP($M34,TT_Tabelle_Riferimento!$D$127:$H$164,5,FALSE))","v":12},{"$f":"+IFERROR(VLOOKUP(PA$27&\"-\"&$M34&\"_new\",Ammortamento_Finanziario!$H:$L,5,FALSE),VLOOKUP($M34,TT_Tabelle_Riferimento!$D$127:$H$164,5,FALSE))","v":12},{"$f":"+IFERROR(VLOOKUP(PB$27&\"-\"&$M34&\"_new\",Ammortamento_Finanziario!$H:$L,5,FALSE),VLOOKUP($M34,TT_Tabelle_Riferimento!$D$127:$H$164,5,FALSE))","v":12},{"$f":"+IFERROR(VLOOKUP(PC$27&\"-\"&$M34&\"_new\",Ammortamento_Finanziario!$H:$L,5,FALSE),VLOOKUP($M34,TT_Tabelle_Riferimento!$D$127:$H$164,5,FALSE))","v":12},{"$f":"+IFERROR(VLOOKUP(PD$27&\"-\"&$M34&\"_new\",Ammortamento_Finanziario!$H:$L,5,FALSE),VLOOKUP($M34,TT_Tabelle_Riferimento!$D$127:$H$164,5,FALSE))","v":12},{"$f":"+IFERROR(VLOOKUP(PE$27&\"-\"&$M34&\"_new\",Ammortamento_Finanziario!$H:$L,5,FALSE),VLOOKUP($M34,TT_Tabelle_Riferimento!$D$127:$H$164,5,FALSE))","v":12},{"$f":"+IFERROR(VLOOKUP(PF$27&\"-\"&$M34&\"_new\",Ammortamento_Finanziario!$H:$L,5,FALSE),VLOOKUP($M34,TT_Tabelle_Riferimento!$D$127:$H$164,5,FALSE))","v":12},{"$f":"+IFERROR(VLOOKUP(PG$27&\"-\"&$M34&\"_new\",Ammortamento_Finanziario!$H:$L,5,FALSE),VLOOKUP($M34,TT_Tabelle_Riferimento!$D$127:$H$164,5,FALSE))","v":12},{"$f":"+IFERROR(VLOOKUP(PH$27&\"-\"&$M34&\"_new\",Ammortamento_Finanziario!$H:$L,5,FALSE),VLOOKUP($M34,TT_Tabelle_Riferimento!$D$127:$H$164,5,FALSE))","v":12},{"$f":"+IFERROR(VLOOKUP(PI$27&\"-\"&$M34&\"_new\",Ammortamento_Finanziario!$H:$L,5,FALSE),VLOOKUP($M34,TT_Tabelle_Riferimento!$D$127:$H$164,5,FALSE))","v":12},{"$f":"+IFERROR(VLOOKUP(PJ$27&\"-\"&$M34&\"_new\",Ammortamento_Finanziario!$H:$L,5,FALSE),VLOOKUP($M34,TT_Tabelle_Riferimento!$D$127:$H$164,5,FALSE))","v":12},{"$f":"+IFERROR(VLOOKUP(PK$27&\"-\"&$M34&\"_new\",Ammortamento_Finanziario!$H:$L,5,FALSE),VLOOKUP($M34,TT_Tabelle_Riferimento!$D$127:$H$164,5,FALSE))","v":12},{"$f":"+IFERROR(VLOOKUP(PL$27&\"-\"&$M34&\"_new\",Ammortamento_Finanziario!$H:$L,5,FALSE),VLOOKUP($M34,TT_Tabelle_Riferimento!$D$127:$H$164,5,FALSE))","v":12},{"$f":"+IFERROR(VLOOKUP(PM$27&\"-\"&$M34&\"_new\",Ammortamento_Finanziario!$H:$L,5,FALSE),VLOOKUP($M34,TT_Tabelle_Riferimento!$D$127:$H$164,5,FALSE))","v":12},{"$f":"+IFERROR(VLOOKUP(PN$27&\"-\"&$M34&\"_new\",Ammortamento_Finanziario!$H:$L,5,FALSE),VLOOKUP($M34,TT_Tabelle_Riferimento!$D$127:$H$164,5,FALSE))","v":12},{"$f":"+IFERROR(VLOOKUP(PO$27&\"-\"&$M34&\"_new\",Ammortamento_Finanziario!$H:$L,5,FALSE),VLOOKUP($M34,TT_Tabelle_Riferimento!$D$127:$H$164,5,FALSE))","v":12},{"$f":"+IFERROR(VLOOKUP(PP$27&\"-\"&$M34&\"_new\",Ammortamento_Finanziario!$H:$L,5,FALSE),VLOOKUP($M34,TT_Tabelle_Riferimento!$D$127:$H$164,5,FALSE))","v":12},{"$f":"+IFERROR(VLOOKUP(PQ$27&\"-\"&$M34&\"_new\",Ammortamento_Finanziario!$H:$L,5,FALSE),VLOOKUP($M34,TT_Tabelle_Riferimento!$D$127:$H$164,5,FALSE))","v":12},{"$f":"+IFERROR(VLOOKUP(PR$27&\"-\"&$M34&\"_new\",Ammortamento_Finanziario!$H:$L,5,FALSE),VLOOKUP($M34,TT_Tabelle_Riferimento!$D$127:$H$164,5,FALSE))","v":12},{"$f":"+IFERROR(VLOOKUP(PS$27&\"-\"&$M34&\"_new\",Ammortamento_Finanziario!$H:$L,5,FALSE),VLOOKUP($M34,TT_Tabelle_Riferimento!$D$127:$H$164,5,FALSE))","v":12},{"$f":"+IFERROR(VLOOKUP(PT$27&\"-\"&$M34&\"_new\",Ammortamento_Finanziario!$H:$L,5,FALSE),VLOOKUP($M34,TT_Tabelle_Riferimento!$D$127:$H$164,5,FALSE))","v":12},{"$f":"+IFERROR(VLOOKUP(PU$27&\"-\"&$M34&\"_new\",Ammortamento_Finanziario!$H:$L,5,FALSE),VLOOKUP($M34,TT_Tabelle_Riferimento!$D$127:$H$164,5,FALSE))","v":12},{"$f":"+IFERROR(VLOOKUP(PV$27&\"-\"&$M34&\"_new\",Ammortamento_Finanziario!$H:$L,5,FALSE),VLOOKUP($M34,TT_Tabelle_Riferimento!$D$127:$H$164,5,FALSE))","v":12},{"$f":"+IFERROR(VLOOKUP(PW$27&\"-\"&$M34&\"_new\",Ammortamento_Finanziario!$H:$L,5,FALSE),VLOOKUP($M34,TT_Tabelle_Riferimento!$D$127:$H$164,5,FALSE))","v":12},{"$f":"+IFERROR(VLOOKUP(PX$27&\"-\"&$M34&\"_new\",Ammortamento_Finanziario!$H:$L,5,FALSE),VLOOKUP($M34,TT_Tabelle_Riferimento!$D$127:$H$164,5,FALSE))","v":12},{"$f":"+IFERROR(VLOOKUP(PY$27&\"-\"&$M34&\"_new\",Ammortamento_Finanziario!$H:$L,5,FALSE),VLOOKUP($M34,TT_Tabelle_Riferimento!$D$127:$H$164,5,FALSE))","v":12},{"$f":"+IFERROR(VLOOKUP(PZ$27&\"-\"&$M34&\"_new\",Ammortamento_Finanziario!$H:$L,5,FALSE),VLOOKUP($M34,TT_Tabelle_Riferimento!$D$127:$H$164,5,FALSE))","v":12},{"$f":"+IFERROR(VLOOKUP(QA$27&\"-\"&$M34&\"_new\",Ammortamento_Finanziario!$H:$L,5,FALSE),VLOOKUP($M34,TT_Tabelle_Riferimento!$D$127:$H$164,5,FALSE))","v":12},{"$f":"+IFERROR(VLOOKUP(QB$27&\"-\"&$M34&\"_new\",Ammortamento_Finanziario!$H:$L,5,FALSE),VLOOKUP($M34,TT_Tabelle_Riferimento!$D$127:$H$164,5,FALSE))","v":12},{"$f":"+IFERROR(VLOOKUP(QC$27&\"-\"&$M34&\"_new\",Ammortamento_Finanziario!$H:$L,5,FALSE),VLOOKUP($M34,TT_Tabelle_Riferimento!$D$127:$H$164,5,FALSE))","v":12},{"$f":"+IFERROR(VLOOKUP(QD$27&\"-\"&$M34&\"_new\",Ammortamento_Finanziario!$H:$L,5,FALSE),VLOOKUP($M34,TT_Tabelle_Riferimento!$D$127:$H$164,5,FALSE))","v":12},{"$f":"+IFERROR(VLOOKUP(QE$27&\"-\"&$M34&\"_new\",Ammortamento_Finanziario!$H:$L,5,FALSE),VLOOKUP($M34,TT_Tabelle_Riferimento!$D$127:$H$164,5,FALSE))","v":12},{"$f":"+IFERROR(VLOOKUP(QF$27&\"-\"&$M34&\"_new\",Ammortamento_Finanziario!$H:$L,5,FALSE),VLOOKUP($M34,TT_Tabelle_Riferimento!$D$127:$H$164,5,FALSE))","v":12},{"$f":"+IFERROR(VLOOKUP(QG$27&\"-\"&$M34&\"_new\",Ammortamento_Finanziario!$H:$L,5,FALSE),VLOOKUP($M34,TT_Tabelle_Riferimento!$D$127:$H$164,5,FALSE))","v":12},{"$f":"+IFERROR(VLOOKUP(QH$27&\"-\"&$M34&\"_new\",Ammortamento_Finanziario!$H:$L,5,FALSE),VLOOKUP($M34,TT_Tabelle_Riferimento!$D$127:$H$164,5,FALSE))","v":12},{"$f":"+IFERROR(VLOOKUP(QI$27&\"-\"&$M34&\"_new\",Ammortamento_Finanziario!$H:$L,5,FALSE),VLOOKUP($M34,TT_Tabelle_Riferimento!$D$127:$H$164,5,FALSE))","v":12},{"$f":"+IFERROR(VLOOKUP(QJ$27&\"-\"&$M34&\"_new\",Ammortamento_Finanziario!$H:$L,5,FALSE),VLOOKUP($M34,TT_Tabelle_Riferimento!$D$127:$H$164,5,FALSE))","v":12},{"$f":"+IFERROR(VLOOKUP(QK$27&\"-\"&$M34&\"_new\",Ammortamento_Finanziario!$H:$L,5,FALSE),VLOOKUP($M34,TT_Tabelle_Riferimento!$D$127:$H$164,5,FALSE))","v":12},{"$f":"+IFERROR(VLOOKUP(QL$27&\"-\"&$M34&\"_new\",Ammortamento_Finanziario!$H:$L,5,FALSE),VLOOKUP($M34,TT_Tabelle_Riferimento!$D$127:$H$164,5,FALSE))","v":12},{"$f":"+IFERROR(VLOOKUP(QM$27&\"-\"&$M34&\"_new\",Ammortamento_Finanziario!$H:$L,5,FALSE),VLOOKUP($M34,TT_Tabelle_Riferimento!$D$127:$H$164,5,FALSE))","v":12},{"$f":"+IFERROR(VLOOKUP(QN$27&\"-\"&$M34&\"_new\",Ammortamento_Finanziario!$H:$L,5,FALSE),VLOOKUP($M34,TT_Tabelle_Riferimento!$D$127:$H$164,5,FALSE))","v":12},{"$f":"+IFERROR(VLOOKUP(QO$27&\"-\"&$M34&\"_new\",Ammortamento_Finanziario!$H:$L,5,FALSE),VLOOKUP($M34,TT_Tabelle_Riferimento!$D$127:$H$164,5,FALSE))","v":12},{"$f":"+IFERROR(VLOOKUP(QP$27&\"-\"&$M34&\"_new\",Ammortamento_Finanziario!$H:$L,5,FALSE),VLOOKUP($M34,TT_Tabelle_Riferimento!$D$127:$H$164,5,FALSE))","v":12},{"$f":"+IFERROR(VLOOKUP(QQ$27&\"-\"&$M34&\"_new\",Ammortamento_Finanziario!$H:$L,5,FALSE),VLOOKUP($M34,TT_Tabelle_Riferimento!$D$127:$H$164,5,FALSE))","v":12},{"$f":"+IFERROR(VLOOKUP(QR$27&\"-\"&$M34&\"_new\",Ammortamento_Finanziario!$H:$L,5,FALSE),VLOOKUP($M34,TT_Tabelle_Riferimento!$D$127:$H$164,5,FALSE))","v":12},{"$f":"+IFERROR(VLOOKUP(QS$27&\"-\"&$M34&\"_new\",Ammortamento_Finanziario!$H:$L,5,FALSE),VLOOKUP($M34,TT_Tabelle_Riferimento!$D$127:$H$164,5,FALSE))","v":12},{"$f":"+IFERROR(VLOOKUP(QT$27&\"-\"&$M34&\"_new\",Ammortamento_Finanziario!$H:$L,5,FALSE),VLOOKUP($M34,TT_Tabelle_Riferimento!$D$127:$H$164,5,FALSE))","v":12},{"$f":"+IFERROR(VLOOKUP(QU$27&\"-\"&$M34&\"_new\",Ammortamento_Finanziario!$H:$L,5,FALSE),VLOOKUP($M34,TT_Tabelle_Riferimento!$D$127:$H$164,5,FALSE))","v":12},{"$f":"+IFERROR(VLOOKUP(QV$27&\"-\"&$M34&\"_new\",Ammortamento_Finanziario!$H:$L,5,FALSE),VLOOKUP($M34,TT_Tabelle_Riferimento!$D$127:$H$164,5,FALSE))","v":12},{"$f":"+IFERROR(VLOOKUP(QW$27&\"-\"&$M34&\"_new\",Ammortamento_Finanziario!$H:$L,5,FALSE),VLOOKUP($M34,TT_Tabelle_Riferimento!$D$127:$H$164,5,FALSE))","v":12},{"$f":"+IFERROR(VLOOKUP(QX$27&\"-\"&$M34&\"_new\",Ammortamento_Finanziario!$H:$L,5,FALSE),VLOOKUP($M34,TT_Tabelle_Riferimento!$D$127:$H$164,5,FALSE))","v":12},{"$f":"+IFERROR(VLOOKUP(QY$27&\"-\"&$M34&\"_new\",Ammortamento_Finanziario!$H:$L,5,FALSE),VLOOKUP($M34,TT_Tabelle_Riferimento!$D$127:$H$164,5,FALSE))","v":12},{"$f":"+IFERROR(VLOOKUP(QZ$27&\"-\"&$M34&\"_new\",Ammortamento_Finanziario!$H:$L,5,FALSE),VLOOKUP($M34,TT_Tabelle_Riferimento!$D$127:$H$164,5,FALSE))","v":12},{"$f":"+IFERROR(VLOOKUP(RA$27&\"-\"&$M34&\"_new\",Ammortamento_Finanziario!$H:$L,5,FALSE),VLOOKUP($M34,TT_Tabelle_Riferimento!$D$127:$H$164,5,FALSE))","v":12},{"$f":"+IFERROR(VLOOKUP(RB$27&\"-\"&$M34&\"_new\",Ammortamento_Finanziario!$H:$L,5,FALSE),VLOOKUP($M34,TT_Tabelle_Riferimento!$D$127:$H$164,5,FALSE))","v":12},{"$f":"+IFERROR(VLOOKUP(RC$27&\"-\"&$M34&\"_new\",Ammortamento_Finanziario!$H:$L,5,FALSE),VLOOKUP($M34,TT_Tabelle_Riferimento!$D$127:$H$164,5,FALSE))","v":12},{"$f":"+IFERROR(VLOOKUP(RD$27&\"-\"&$M34&\"_new\",Ammortamento_Finanziario!$H:$L,5,FALSE),VLOOKUP($M34,TT_Tabelle_Riferimento!$D$127:$H$164,5,FALSE))","v":12},{"$f":"+IFERROR(VLOOKUP(RE$27&\"-\"&$M34&\"_new\",Ammortamento_Finanziario!$H:$L,5,FALSE),VLOOKUP($M34,TT_Tabelle_Riferimento!$D$127:$H$164,5,FALSE))","v":12},{"$f":"+IFERROR(VLOOKUP(RF$27&\"-\"&$M34&\"_new\",Ammortamento_Finanziario!$H:$L,5,FALSE),VLOOKUP($M34,TT_Tabelle_Riferimento!$D$127:$H$164,5,FALSE))","v":12},{"$f":"+IFERROR(VLOOKUP(RG$27&\"-\"&$M34&\"_new\",Ammortamento_Finanziario!$H:$L,5,FALSE),VLOOKUP($M34,TT_Tabelle_Riferimento!$D$127:$H$164,5,FALSE))","v":12},{"$f":"+IFERROR(VLOOKUP(RH$27&\"-\"&$M34&\"_new\",Ammortamento_Finanziario!$H:$L,5,FALSE),VLOOKUP($M34,TT_Tabelle_Riferimento!$D$127:$H$164,5,FALSE))","v":12},{"$f":"+IFERROR(VLOOKUP(RI$27&\"-\"&$M34&\"_new\",Ammortamento_Finanziario!$H:$L,5,FALSE),VLOOKUP($M34,TT_Tabelle_Riferimento!$D$127:$H$164,5,FALSE))","v":12},{"$f":"+IFERROR(VLOOKUP(RJ$27&\"-\"&$M34&\"_new\",Ammortamento_Finanziario!$H:$L,5,FALSE),VLOOKUP($M34,TT_Tabelle_Riferimento!$D$127:$H$164,5,FALSE))","v":12},{"$f":"+IFERROR(VLOOKUP(RK$27&\"-\"&$M34&\"_new\",Ammortamento_Finanziario!$H:$L,5,FALSE),VLOOKUP($M34,TT_Tabelle_Riferimento!$D$127:$H$164,5,FALSE))","v":12},{"$f":"+IFERROR(VLOOKUP(RL$27&\"-\"&$M34&\"_new\",Ammortamento_Finanziario!$H:$L,5,FALSE),VLOOKUP($M34,TT_Tabelle_Riferimento!$D$127:$H$164,5,FALSE))","v":12},{"$f":"+IFERROR(VLOOKUP(RM$27&\"-\"&$M34&\"_new\",Ammortamento_Finanziario!$H:$L,5,FALSE),VLOOKUP($M34,TT_Tabelle_Riferimento!$D$127:$H$164,5,FALSE))","v":12},{"$f":"+IFERROR(VLOOKUP(RN$27&\"-\"&$M34&\"_new\",Ammortamento_Finanziario!$H:$L,5,FALSE),VLOOKUP($M34,TT_Tabelle_Riferimento!$D$127:$H$164,5,FALSE))","v":12},{"$f":"+IFERROR(VLOOKUP(RO$27&\"-\"&$M34&\"_new\",Ammortamento_Finanziario!$H:$L,5,FALSE),VLOOKUP($M34,TT_Tabelle_Riferimento!$D$127:$H$164,5,FALSE))","v":12},{"$f":"+IFERROR(VLOOKUP(RP$27&\"-\"&$M34&\"_new\",Ammortamento_Finanziario!$H:$L,5,FALSE),VLOOKUP($M34,TT_Tabelle_Riferimento!$D$127:$H$164,5,FALSE))","v":12},{"$f":"+IFERROR(VLOOKUP(RQ$27&\"-\"&$M34&\"_new\",Ammortamento_Finanziario!$H:$L,5,FALSE),VLOOKUP($M34,TT_Tabelle_Riferimento!$D$127:$H$164,5,FALSE))","v":12},{"$f":"+IFERROR(VLOOKUP(RR$27&\"-\"&$M34&\"_new\",Ammortamento_Finanziario!$H:$L,5,FALSE),VLOOKUP($M34,TT_Tabelle_Riferimento!$D$127:$H$164,5,FALSE))","v":12},{"$f":"+IFERROR(VLOOKUP(RS$27&\"-\"&$M34&\"_new\",Ammortamento_Finanziario!$H:$L,5,FALSE),VLOOKUP($M34,TT_Tabelle_Riferimento!$D$127:$H$164,5,FALSE))","v":12},{"$f":"+IFERROR(VLOOKUP(RT$27&\"-\"&$M34&\"_new\",Ammortamento_Finanziario!$H:$L,5,FALSE),VLOOKUP($M34,TT_Tabelle_Riferimento!$D$127:$H$164,5,FALSE))","v":12},{"$f":"+IFERROR(VLOOKUP(RU$27&\"-\"&$M34&\"_new\",Ammortamento_Finanziario!$H:$L,5,FALSE),VLOOKUP($M34,TT_Tabelle_Riferimento!$D$127:$H$164,5,FALSE))","v":12},{"$f":"+IFERROR(VLOOKUP(RV$27&\"-\"&$M34&\"_new\",Ammortamento_Finanziario!$H:$L,5,FALSE),VLOOKUP($M34,TT_Tabelle_Riferimento!$D$127:$H$164,5,FALSE))","v":12}]
[null,null,null,"FA CFP",{"$f":"+SUMIF(IMN_gestore!$E:$E,2022,IMN_gestore!$V:$V)","v":0},{"$f":"SUMIF(IMN_gestore!$E:$E,2023,IMN_gestore!$AG:$AG)","v":0},{"$f":"+SUMIF(IMN_gestore!$E:$E,2024,IMN_gestore!$AR:$AR)","v":0},{"$f":"SUMIF(IMN_gestore!$E:$E,2025,IMN_gestore!$BC:$BC)","v":0},{"$f":"SUMIF(IMN_gestore!$E:$E,2026,IMN_gestore!$BN:$BN)","v":0},{"$f":"SUMIF(IMN_gestore!$E:$E,2027,IMN_gestore!$BY:$BY)","v":0},null,null,8,0,0,0,0,0,0,0,0,0,0,0,0,0,0,0,0,0,0,0,0,0,0,0,0,0,0,0,0,0,0,0,0,0,0,0,0,0,0,0,0,0,0,0,0,0,0,0,0,0,0,0,0,0,0,0,0,0,0,0,0,0,0,0,0,0,0,0,0,0,0,0,0,0,0,0,0,0,0,0,0,0,0,0,0,0,0,0,0,0,0,0,0,0,0,0,0,0,0,0,0,0,0,0,0,0,0,0,0,0,0,0,0,0,0,0,0,0,0,0,0,0,0,0,0,0,0,0,0,0,0,0,0,0,0,0,0,0,0,0,0,0,0,0,0,0,0,0,0,0,0,0,0,0,0,0,0,0,0,0,0,0,0,0,0,0,0,0,0,0,0,0,0,0,0,0,0,0,0,0,0,0,0,0,0,0,0,0,0,0,0,0,0,0,0,0,0,0,0,0,0,0,0,0,0,0,0,0,0,0,0,0,0,0,0,0,0,0,0,0,0,0,0,0,0,0,0,0,0,0,0,0,0,0,0,0,0,0,0,0,0,0,0,0,0,0,0,0,0,0,0,0,0,0,0,0,0,0,0,0,0,0,0,0,0,0,0,0,0,0,0,0,0,0,0,0,0,0,0,0,0,0,0,0,0,0,0,0,0,0,{"$f":"+IFERROR(VLOOKUP(KQ$27&\"-\"&$M35&\"_new\",Ammortamento_Finanziario!$H:$L,5,FALSE),VLOOKUP($M35,TT_Tabelle_Riferimento!$D$127:$H$164,5,FALSE))","v":10},{"$f":"+IFERROR(VLOOKUP(KR$27&\"-\"&$M35&\"_new\",Ammortamento_Finanziario!$H:$L,5,FALSE),VLOOKUP($M35,TT_Tabelle_Riferimento!$D$127:$H$164,5,FALSE))","v":10},{"$f":"+IFERROR(VLOOKUP(KS$27&\"-\"&$M35&\"_new\",Ammortamento_Finanziario!$H:$L,5,FALSE),VLOOKUP($M35,TT_Tabelle_Riferimento!$D$127:$H$164,5,FALSE))","v":10},{"$f":"+IFERROR(VLOOKUP(KT$27&\"-\"&$M35&\"_new\",Ammortamento_Finanziario!$H:$L,5,FALSE),VLOOKUP($M35,TT_Tabelle_Riferimento!$D$127:$H$164,5,FALSE))","v":10},{"$f":"+IFERROR(VLOOKUP(KU$27&\"-\"&$M35&\"_new\",Ammortamento_Finanziario!$H:$L,5,FALSE),VLOOKUP($M35,TT_Tabelle_Riferimento!$D$127:$H$164,5,FALSE))","v":10},{"$f":"+IFERROR(VLOOKUP(KV$27&\"-\"&$M35&\"_new\",Ammortamento_Finanziario!$H:$L,5,FALSE),VLOOKUP($M35,TT_Tabelle_Riferimento!$D$127:$H$164,5,FALSE))","v":10},{"$f":"+IFERROR(VLOOKUP(KW$27&\"-\"&$M35&\"_new\",Ammortamento_Finanziario!$H:$L,5,FALSE),VLOOKUP($M35,TT_Tabelle_Riferimento!$D$127:$H$164,5,FALSE))","v":10},{"$f":"+IFERROR(VLOOKUP(KX$27&\"-\"&$M35&\"_new\",Ammortamento_Finanziario!$H:$L,5,FALSE),VLOOKUP($M35,TT_Tabelle_Riferimento!$D$127:$H$164,5,FALSE))","v":10},{"$f":"+IFERROR(VLOOKUP(KY$27&\"-\"&$M35&\"_new\",Ammortamento_Finanziario!$H:$L,5,FALSE),VLOOKUP($M35,TT_Tabelle_Riferimento!$D$127:$H$164,5,FALSE))","v":10},{"$f":"+IFERROR(VLOOKUP(KZ$27&\"-\"&$M35&\"_new\",Ammortamento_Finanziario!$H:$L,5,FALSE),VLOOKUP($M35,TT_Tabelle_Riferimento!$D$127:$H$164,5,FALSE))","v":10},{"$f":"+IFERROR(VLOOKUP(LA$27&\"-\"&$M35&\"_new\",Ammortamento_Finanziario!$H:$L,5,FALSE),VLOOKUP($M35,TT_Tabelle_Riferimento!$D$127:$H$164,5,FALSE))","v":10},{"$f":"+IFERROR(VLOOKUP(LB$27&\"-\"&$M35&\"_new\",Ammortamento_Finanziario!$H:$L,5,FALSE),VLOOKUP($M35,TT_Tabelle_Riferimento!$D$127:$H$164,5,FALSE))","v":10},{"$f":"+IFERROR(VLOOKUP(LC$27&\"-\"&$M35&\"_new\",Ammortamento_Finanziario!$H:$L,5,FALSE),VLOOKUP($M35,TT_Tabelle_Riferimento!$D$127:$H$164,5,FALSE))","v":10},{"$f":"+IFERROR(VLOOKUP(LD$27&\"-\"&$M35&\"_new\",Ammortamento_Finanziario!$H:$L,5,FALSE),VLOOKUP($M35,TT_Tabelle_Riferimento!$D$127:$H$164,5,FALSE))","v":10},{"$f":"+IFERROR(VLOOKUP(LE$27&\"-\"&$M35&\"_new\",Ammortamento_Finanziario!$H:$L,5,FALSE),VLOOKUP($M35,TT_Tabelle_Riferimento!$D$127:$H$164,5,FALSE))","v":10},{"$f":"+IFERROR(VLOOKUP(LF$27&\"-\"&$M35&\"_new\",Ammortamento_Finanziario!$H:$L,5,FALSE),VLOOKUP($M35,TT_Tabelle_Riferimento!$D$127:$H$164,5,FALSE))","v":10},{"$f":"+IFERROR(VLOOKUP(LG$27&\"-\"&$M35&\"_new\",Ammortamento_Finanziario!$H:$L,5,FALSE),VLOOKUP($M35,TT_Tabelle_Riferimento!$D$127:$H$164,5,FALSE))","v":10},{"$f":"+IFERROR(VLOOKUP(LH$27&\"-\"&$M35&\"_new\",Ammortamento_Finanziario!$H:$L,5,FALSE),VLOOKUP($M35,TT_Tabelle_Riferimento!$D$127:$H$164,5,FALSE))","v":10},{"$f":"+IFERROR(VLOOKUP(LI$27&\"-\"&$M35&\"_new\",Ammortamento_Finanziario!$H:$L,5,FALSE),VLOOKUP($M35,TT_Tabelle_Riferimento!$D$127:$H$164,5,FALSE))","v":10},{"$f":"+IFERROR(VLOOKUP(LJ$27&\"-\"&$M35&\"_new\",Ammortamento_Finanziario!$H:$L,5,FALSE),VLOOKUP($M35,TT_Tabelle_Riferimento!$D$127:$H$164,5,FALSE))","v":10},{"$f":"+IFERROR(VLOOKUP(LK$27&\"-\"&$M35&\"_new\",Ammortamento_Finanziario!$H:$L,5,FALSE),VLOOKUP($M35,TT_Tabelle_Riferimento!$D$127:$H$164,5,FALSE))","v":10},{"$f":"+IFERROR(VLOOKUP(LL$27&\"-\"&$M35&\"_new\",Ammortamento_Finanziario!$H:$L,5,FALSE),VLOOKUP($M35,TT_Tabelle_Riferimento!$D$127:$H$164,5,FALSE))","v":10},{"$f":"+IFERROR(VLOOKUP(LM$27&\"-\"&$M35&\"_new\",Ammortamento_Finanziario!$H:$L,5,FALSE),VLOOKUP($M35,TT_Tabelle_Riferimento!$D$127:$H$164,5,FALSE))","v":10},{"$f":"+IFERROR(VLOOKUP(LN$27&\"-\"&$M35&\"_new\",Ammortamento_Finanziario!$H:$L,5,FALSE),VLOOKUP($M35,TT_Tabelle_Riferimento!$D$127:$H$164,5,FALSE))","v":10},{"$f":"+IFERROR(VLOOKUP(LO$27&\"-\"&$M35&\"_new\",Ammortamento_Finanziario!$H:$L,5,FALSE),VLOOKUP($M35,TT_Tabelle_Riferimento!$D$127:$H$164,5,FALSE))","v":10},{"$f":"+IFERROR(VLOOKUP(LP$27&\"-\"&$M35&\"_new\",Ammortamento_Finanziario!$H:$L,5,FALSE),VLOOKUP($M35,TT_Tabelle_Riferimento!$D$127:$H$164,5,FALSE))","v":10},{"$f":"+IFERROR(VLOOKUP(LQ$27&\"-\"&$M35&\"_new\",Ammortamento_Finanziario!$H:$L,5,FALSE),VLOOKUP($M35,TT_Tabelle_Riferimento!$D$127:$H$164,5,FALSE))","v":10},{"$f":"+IFERROR(VLOOKUP(LR$27&\"-\"&$M35&\"_new\",Ammortamento_Finanziario!$H:$L,5,FALSE),VLOOKUP($M35,TT_Tabelle_Riferimento!$D$127:$H$164,5,FALSE))","v":10},{"$f":"+IFERROR(VLOOKUP(LS$27&\"-\"&$M35&\"_new\",Ammortamento_Finanziario!$H:$L,5,FALSE),VLOOKUP($M35,TT_Tabelle_Riferimento!$D$127:$H$164,5,FALSE))","v":10},{"$f":"+IFERROR(VLOOKUP(LT$27&\"-\"&$M35&\"_new\",Ammortamento_Finanziario!$H:$L,5,FALSE),VLOOKUP($M35,TT_Tabelle_Riferimento!$D$127:$H$164,5,FALSE))","v":10},{"$f":"+IFERROR(VLOOKUP(LU$27&\"-\"&$M35&\"_new\",Ammortamento_Finanziario!$H:$L,5,FALSE),VLOOKUP($M35,TT_Tabelle_Riferimento!$D$127:$H$164,5,FALSE))","v":10},{"$f":"+IFERROR(VLOOKUP(LV$27&\"-\"&$M35&\"_new\",Ammortamento_Finanziario!$H:$L,5,FALSE),VLOOKUP($M35,TT_Tabelle_Riferimento!$D$127:$H$164,5,FALSE))","v":10},{"$f":"+IFERROR(VLOOKUP(LW$27&\"-\"&$M35&\"_new\",Ammortamento_Finanziario!$H:$L,5,FALSE),VLOOKUP($M35,TT_Tabelle_Riferimento!$D$127:$H$164,5,FALSE))","v":10},{"$f":"+IFERROR(VLOOKUP(LX$27&\"-\"&$M35&\"_new\",Ammortamento_Finanziario!$H:$L,5,FALSE),VLOOKUP($M35,TT_Tabelle_Riferimento!$D$127:$H$164,5,FALSE))","v":10},{"$f":"+IFERROR(VLOOKUP(LY$27&\"-\"&$M35&\"_new\",Ammortamento_Finanziario!$H:$L,5,FALSE),VLOOKUP($M35,TT_Tabelle_Riferimento!$D$127:$H$164,5,FALSE))","v":10},{"$f":"+IFERROR(VLOOKUP(LZ$27&\"-\"&$M35&\"_new\",Ammortamento_Finanziario!$H:$L,5,FALSE),VLOOKUP($M35,TT_Tabelle_Riferimento!$D$127:$H$164,5,FALSE))","v":10},{"$f":"+IFERROR(VLOOKUP(MA$27&\"-\"&$M35&\"_new\",Ammortamento_Finanziario!$H:$L,5,FALSE),VLOOKUP($M35,TT_Tabelle_Riferimento!$D$127:$H$164,5,FALSE))","v":10},{"$f":"+IFERROR(VLOOKUP(MB$27&\"-\"&$M35&\"_new\",Ammortamento_Finanziario!$H:$L,5,FALSE),VLOOKUP($M35,TT_Tabelle_Riferimento!$D$127:$H$164,5,FALSE))","v":10},{"$f":"+IFERROR(VLOOKUP(MC$27&\"-\"&$M35&\"_new\",Ammortamento_Finanziario!$H:$L,5,FALSE),VLOOKUP($M35,TT_Tabelle_Riferimento!$D$127:$H$164,5,FALSE))","v":10},{"$f":"+IFERROR(VLOOKUP(MD$27&\"-\"&$M35&\"_new\",Ammortamento_Finanziario!$H:$L,5,FALSE),VLOOKUP($M35,TT_Tabelle_Riferimento!$D$127:$H$164,5,FALSE))","v":10},{"$f":"+IFERROR(VLOOKUP(ME$27&\"-\"&$M35&\"_new\",Ammortamento_Finanziario!$H:$L,5,FALSE),VLOOKUP($M35,TT_Tabelle_Riferimento!$D$127:$H$164,5,FALSE))","v":10},{"$f":"+IFERROR(VLOOKUP(MF$27&\"-\"&$M35&\"_new\",Ammortamento_Finanziario!$H:$L,5,FALSE),VLOOKUP($M35,TT_Tabelle_Riferimento!$D$127:$H$164,5,FALSE))","v":10},{"$f":"+IFERROR(VLOOKUP(MG$27&\"-\"&$M35&\"_new\",Ammortamento_Finanziario!$H:$L,5,FALSE),VLOOKUP($M35,TT_Tabelle_Riferimento!$D$127:$H$164,5,FALSE))","v":10},{"$f":"+IFERROR(VLOOKUP(MH$27&\"-\"&$M35&\"_new\",Ammortamento_Finanziario!$H:$L,5,FALSE),VLOOKUP($M35,TT_Tabelle_Riferimento!$D$127:$H$164,5,FALSE))","v":10},{"$f":"+IFERROR(VLOOKUP(MI$27&\"-\"&$M35&\"_new\",Ammortamento_Finanziario!$H:$L,5,FALSE),VLOOKUP($M35,TT_Tabelle_Riferimento!$D$127:$H$164,5,FALSE))","v":10},{"$f":"+IFERROR(VLOOKUP(MJ$27&\"-\"&$M35&\"_new\",Ammortamento_Finanziario!$H:$L,5,FALSE),VLOOKUP($M35,TT_Tabelle_Riferimento!$D$127:$H$164,5,FALSE))","v":10},{"$f":"+IFERROR(VLOOKUP(MK$27&\"-\"&$M35&\"_new\",Ammortamento_Finanziario!$H:$L,5,FALSE),VLOOKUP($M35,TT_Tabelle_Riferimento!$D$127:$H$164,5,FALSE))","v":10},{"$f":"+IFERROR(VLOOKUP(ML$27&\"-\"&$M35&\"_new\",Ammortamento_Finanziario!$H:$L,5,FALSE),VLOOKUP($M35,TT_Tabelle_Riferimento!$D$127:$H$164,5,FALSE))","v":10},{"$f":"+IFERROR(VLOOKUP(MM$27&\"-\"&$M35&\"_new\",Ammortamento_Finanziario!$H:$L,5,FALSE),VLOOKUP($M35,TT_Tabelle_Riferimento!$D$127:$H$164,5,FALSE))","v":10},{"$f":"+IFERROR(VLOOKUP(MN$27&\"-\"&$M35&\"_new\",Ammortamento_Finanziario!$H:$L,5,FALSE),VLOOKUP($M35,TT_Tabelle_Riferimento!$D$127:$H$164,5,FALSE))","v":10},{"$f":"+IFERROR(VLOOKUP(MO$27&\"-\"&$M35&\"_new\",Ammortamento_Finanziario!$H:$L,5,FALSE),VLOOKUP($M35,TT_Tabelle_Riferimento!$D$127:$H$164,5,FALSE))","v":10},{"$f":"+IFERROR(VLOOKUP(MP$27&\"-\"&$M35&\"_new\",Ammortamento_Finanziario!$H:$L,5,FALSE),VLOOKUP($M35,TT_Tabelle_Riferimento!$D$127:$H$164,5,FALSE))","v":10},{"$f":"+IFERROR(VLOOKUP(MQ$27&\"-\"&$M35&\"_new\",Ammortamento_Finanziario!$H:$L,5,FALSE),VLOOKUP($M35,TT_Tabelle_Riferimento!$D$127:$H$164,5,FALSE))","v":10},{"$f":"+IFERROR(VLOOKUP(MR$27&\"-\"&$M35&\"_new\",Ammortamento_Finanziario!$H:$L,5,FALSE),VLOOKUP($M35,TT_Tabelle_Riferimento!$D$127:$H$164,5,FALSE))","v":10},{"$f":"+IFERROR(VLOOKUP(MS$27&\"-\"&$M35&\"_new\",Ammortamento_Finanziario!$H:$L,5,FALSE),VLOOKUP($M35,TT_Tabelle_Riferimento!$D$127:$H$164,5,FALSE))","v":10},{"$f":"+IFERROR(VLOOKUP(MT$27&\"-\"&$M35&\"_new\",Ammortamento_Finanziario!$H:$L,5,FALSE),VLOOKUP($M35,TT_Tabelle_Riferimento!$D$127:$H$164,5,FALSE))","v":10},{"$f":"+IFERROR(VLOOKUP(MU$27&\"-\"&$M35&\"_new\",Ammortamento_Finanziario!$H:$L,5,FALSE),VLOOKUP($M35,TT_Tabelle_Riferimento!$D$127:$H$164,5,FALSE))","v":10},{"$f":"+IFERROR(VLOOKUP(MV$27&\"-\"&$M35&\"_new\",Ammortamento_Finanziario!$H:$L,5,FALSE),VLOOKUP($M35,TT_Tabelle_Riferimento!$D$127:$H$164,5,FALSE))","v":10},{"$f":"+IFERROR(VLOOKUP(MW$27&\"-\"&$M35&\"_new\",Ammortamento_Finanziario!$H:$L,5,FALSE),VLOOKUP($M35,TT_Tabelle_Riferimento!$D$127:$H$164,5,FALSE))","v":10},{"$f":"+IFERROR(VLOOKUP(MX$27&\"-\"&$M35&\"_new\",Ammortamento_Finanziario!$H:$L,5,FALSE),VLOOKUP($M35,TT_Tabelle_Riferimento!$D$127:$H$164,5,FALSE))","v":10},{"$f":"+IFERROR(VLOOKUP(MY$27&\"-\"&$M35&\"_new\",Ammortamento_Finanziario!$H:$L,5,FALSE),VLOOKUP($M35,TT_Tabelle_Riferimento!$D$127:$H$164,5,FALSE))","v":10},{"$f":"+IFERROR(VLOOKUP(MZ$27&\"-\"&$M35&\"_new\",Ammortamento_Finanziario!$H:$L,5,FALSE),VLOOKUP($M35,TT_Tabelle_Riferimento!$D$127:$H$164,5,FALSE))","v":10},{"$f":"+IFERROR(VLOOKUP(NA$27&\"-\"&$M35&\"_new\",Ammortamento_Finanziario!$H:$L,5,FALSE),VLOOKUP($M35,TT_Tabelle_Riferimento!$D$127:$H$164,5,FALSE))","v":10},{"$f":"+IFERROR(VLOOKUP(NB$27&\"-\"&$M35&\"_new\",Ammortamento_Finanziario!$H:$L,5,FALSE),VLOOKUP($M35,TT_Tabelle_Riferimento!$D$127:$H$164,5,FALSE))","v":10},{"$f":"+IFERROR(VLOOKUP(NC$27&\"-\"&$M35&\"_new\",Ammortamento_Finanziario!$H:$L,5,FALSE),VLOOKUP($M35,TT_Tabelle_Riferimento!$D$127:$H$164,5,FALSE))","v":10},{"$f":"+IFERROR(VLOOKUP(ND$27&\"-\"&$M35&\"_new\",Ammortamento_Finanziario!$H:$L,5,FALSE),VLOOKUP($M35,TT_Tabelle_Riferimento!$D$127:$H$164,5,FALSE))","v":10},{"$f":"+IFERROR(VLOOKUP(NE$27&\"-\"&$M35&\"_new\",Ammortamento_Finanziario!$H:$L,5,FALSE),VLOOKUP($M35,TT_Tabelle_Riferimento!$D$127:$H$164,5,FALSE))","v":10},{"$f":"+IFERROR(VLOOKUP(NF$27&\"-\"&$M35&\"_new\",Ammortamento_Finanziario!$H:$L,5,FALSE),VLOOKUP($M35,TT_Tabelle_Riferimento!$D$127:$H$164,5,FALSE))","v":10},{"$f":"+IFERROR(VLOOKUP(NG$27&\"-\"&$M35&\"_new\",Ammortamento_Finanziario!$H:$L,5,FALSE),VLOOKUP($M35,TT_Tabelle_Riferimento!$D$127:$H$164,5,FALSE))","v":10},{"$f":"+IFERROR(VLOOKUP(NH$27&\"-\"&$M35&\"_new\",Ammortamento_Finanziario!$H:$L,5,FALSE),VLOOKUP($M35,TT_Tabelle_Riferimento!$D$127:$H$164,5,FALSE))","v":10},{"$f":"+IFERROR(VLOOKUP(NI$27&\"-\"&$M35&\"_new\",Ammortamento_Finanziario!$H:$L,5,FALSE),VLOOKUP($M35,TT_Tabelle_Riferimento!$D$127:$H$164,5,FALSE))","v":10},{"$f":"+IFERROR(VLOOKUP(NJ$27&\"-\"&$M35&\"_new\",Ammortamento_Finanziario!$H:$L,5,FALSE),VLOOKUP($M35,TT_Tabelle_Riferimento!$D$127:$H$164,5,FALSE))","v":10},{"$f":"+IFERROR(VLOOKUP(NK$27&\"-\"&$M35&\"_new\",Ammortamento_Finanziario!$H:$L,5,FALSE),VLOOKUP($M35,TT_Tabelle_Riferimento!$D$127:$H$164,5,FALSE))","v":10},{"$f":"+IFERROR(VLOOKUP(NL$27&\"-\"&$M35&\"_new\",Ammortamento_Finanziario!$H:$L,5,FALSE),VLOOKUP($M35,TT_Tabelle_Riferimento!$D$127:$H$164,5,FALSE))","v":10},{"$f":"+IFERROR(VLOOKUP(NM$27&\"-\"&$M35&\"_new\",Ammortamento_Finanziario!$H:$L,5,FALSE),VLOOKUP($M35,TT_Tabelle_Riferimento!$D$127:$H$164,5,FALSE))","v":10},{"$f":"+IFERROR(VLOOKUP(NN$27&\"-\"&$M35&\"_new\",Ammortamento_Finanziario!$H:$L,5,FALSE),VLOOKUP($M35,TT_Tabelle_Riferimento!$D$127:$H$164,5,FALSE))","v":10},{"$f":"+IFERROR(VLOOKUP(NO$27&\"-\"&$M35&\"_new\",Ammortamento_Finanziario!$H:$L,5,FALSE),VLOOKUP($M35,TT_Tabelle_Riferimento!$D$127:$H$164,5,FALSE))","v":10},{"$f":"+IFERROR(VLOOKUP(NP$27&\"-\"&$M35&\"_new\",Ammortamento_Finanziario!$H:$L,5,FALSE),VLOOKUP($M35,TT_Tabelle_Riferimento!$D$127:$H$164,5,FALSE))","v":10},{"$f":"+IFERROR(VLOOKUP(NQ$27&\"-\"&$M35&\"_new\",Ammortamento_Finanziario!$H:$L,5,FALSE),VLOOKUP($M35,TT_Tabelle_Riferimento!$D$127:$H$164,5,FALSE))","v":10},{"$f":"+IFERROR(VLOOKUP(NR$27&\"-\"&$M35&\"_new\",Ammortamento_Finanziario!$H:$L,5,FALSE),VLOOKUP($M35,TT_Tabelle_Riferimento!$D$127:$H$164,5,FALSE))","v":10},{"$f":"+IFERROR(VLOOKUP(NS$27&\"-\"&$M35&\"_new\",Ammortamento_Finanziario!$H:$L,5,FALSE),VLOOKUP($M35,TT_Tabelle_Riferimento!$D$127:$H$164,5,FALSE))","v":10},{"$f":"+IFERROR(VLOOKUP(NT$27&\"-\"&$M35&\"_new\",Ammortamento_Finanziario!$H:$L,5,FALSE),VLOOKUP($M35,TT_Tabelle_Riferimento!$D$127:$H$164,5,FALSE))","v":10},{"$f":"+IFERROR(VLOOKUP(NU$27&\"-\"&$M35&\"_new\",Ammortamento_Finanziario!$H:$L,5,FALSE),VLOOKUP($M35,TT_Tabelle_Riferimento!$D$127:$H$164,5,FALSE))","v":10},{"$f":"+IFERROR(VLOOKUP(NV$27&\"-\"&$M35&\"_new\",Ammortamento_Finanziario!$H:$L,5,FALSE),VLOOKUP($M35,TT_Tabelle_Riferimento!$D$127:$H$164,5,FALSE))","v":10},{"$f":"+IFERROR(VLOOKUP(NW$27&\"-\"&$M35&\"_new\",Ammortamento_Finanziario!$H:$L,5,FALSE),VLOOKUP($M35,TT_Tabelle_Riferimento!$D$127:$H$164,5,FALSE))","v":10},{"$f":"+IFERROR(VLOOKUP(NX$27&\"-\"&$M35&\"_new\",Ammortamento_Finanziario!$H:$L,5,FALSE),VLOOKUP($M35,TT_Tabelle_Riferimento!$D$127:$H$164,5,FALSE))","v":10},{"$f":"+IFERROR(VLOOKUP(NY$27&\"-\"&$M35&\"_new\",Ammortamento_Finanziario!$H:$L,5,FALSE),VLOOKUP($M35,TT_Tabelle_Riferimento!$D$127:$H$164,5,FALSE))","v":10},{"$f":"+IFERROR(VLOOKUP(NZ$27&\"-\"&$M35&\"_new\",Ammortamento_Finanziario!$H:$L,5,FALSE),VLOOKUP($M35,TT_Tabelle_Riferimento!$D$127:$H$164,5,FALSE))","v":10},{"$f":"+IFERROR(VLOOKUP(OA$27&\"-\"&$M35&\"_new\",Ammortamento_Finanziario!$H:$L,5,FALSE),VLOOKUP($M35,TT_Tabelle_Riferimento!$D$127:$H$164,5,FALSE))","v":10},{"$f":"+IFERROR(VLOOKUP(OB$27&\"-\"&$M35&\"_new\",Ammortamento_Finanziario!$H:$L,5,FALSE),VLOOKUP($M35,TT_Tabelle_Riferimento!$D$127:$H$164,5,FALSE))","v":10},{"$f":"+IFERROR(VLOOKUP(OC$27&\"-\"&$M35&\"_new\",Ammortamento_Finanziario!$H:$L,5,FALSE),VLOOKUP($M35,TT_Tabelle_Riferimento!$D$127:$H$164,5,FALSE))","v":10},{"$f":"+IFERROR(VLOOKUP(OD$27&\"-\"&$M35&\"_new\",Ammortamento_Finanziario!$H:$L,5,FALSE),VLOOKUP($M35,TT_Tabelle_Riferimento!$D$127:$H$164,5,FALSE))","v":10},{"$f":"+IFERROR(VLOOKUP(OE$27&\"-\"&$M35&\"_new\",Ammortamento_Finanziario!$H:$L,5,FALSE),VLOOKUP($M35,TT_Tabelle_Riferimento!$D$127:$H$164,5,FALSE))","v":10},{"$f":"+IFERROR(VLOOKUP(OF$27&\"-\"&$M35&\"_new\",Ammortamento_Finanziario!$H:$L,5,FALSE),VLOOKUP($M35,TT_Tabelle_Riferimento!$D$127:$H$164,5,FALSE))","v":10},{"$f":"+IFERROR(VLOOKUP(OG$27&\"-\"&$M35&\"_new\",Ammortamento_Finanziario!$H:$L,5,FALSE),VLOOKUP($M35,TT_Tabelle_Riferimento!$D$127:$H$164,5,FALSE))","v":10},{"$f":"+IFERROR(VLOOKUP(OH$27&\"-\"&$M35&\"_new\",Ammortamento_Finanziario!$H:$L,5,FALSE),VLOOKUP($M35,TT_Tabelle_Riferimento!$D$127:$H$164,5,FALSE))","v":10},{"$f":"+IFERROR(VLOOKUP(OI$27&\"-\"&$M35&\"_new\",Ammortamento_Finanziario!$H:$L,5,FALSE),VLOOKUP($M35,TT_Tabelle_Riferimento!$D$127:$H$164,5,FALSE))","v":10},{"$f":"+IFERROR(VLOOKUP(OJ$27&\"-\"&$M35&\"_new\",Ammortamento_Finanziario!$H:$L,5,FALSE),VLOOKUP($M35,TT_Tabelle_Riferimento!$D$127:$H$164,5,FALSE))","v":10},{"$f":"+IFERROR(VLOOKUP(OK$27&\"-\"&$M35&\"_new\",Ammortamento_Finanziario!$H:$L,5,FALSE),VLOOKUP($M35,TT_Tabelle_Riferimento!$D$127:$H$164,5,FALSE))","v":10},{"$f":"+IFERROR(VLOOKUP(OL$27&\"-\"&$M35&\"_new\",Ammortamento_Finanziario!$H:$L,5,FALSE),VLOOKUP($M35,TT_Tabelle_Riferimento!$D$127:$H$164,5,FALSE))","v":10},{"$f":"+IFERROR(VLOOKUP(OM$27&\"-\"&$M35&\"_new\",Ammortamento_Finanziario!$H:$L,5,FALSE),VLOOKUP($M35,TT_Tabelle_Riferimento!$D$127:$H$164,5,FALSE))","v":10},{"$f":"+IFERROR(VLOOKUP(ON$27&\"-\"&$M35&\"_new\",Ammortamento_Finanziario!$H:$L,5,FALSE),VLOOKUP($M35,TT_Tabelle_Riferimento!$D$127:$H$164,5,FALSE))","v":10},{"$f":"+IFERROR(VLOOKUP(OO$27&\"-\"&$M35&\"_new\",Ammortamento_Finanziario!$H:$L,5,FALSE),VLOOKUP($M35,TT_Tabelle_Riferimento!$D$127:$H$164,5,FALSE))","v":10},{"$f":"+IFERROR(VLOOKUP(OP$27&\"-\"&$M35&\"_new\",Ammortamento_Finanziario!$H:$L,5,FALSE),VLOOKUP($M35,TT_Tabelle_Riferimento!$D$127:$H$164,5,FALSE))","v":10},{"$f":"+IFERROR(VLOOKUP(OQ$27&\"-\"&$M35&\"_new\",Ammortamento_Finanziario!$H:$L,5,FALSE),VLOOKUP($M35,TT_Tabelle_Riferimento!$D$127:$H$164,5,FALSE))","v":10},{"$f":"+IFERROR(VLOOKUP(OR$27&\"-\"&$M35&\"_new\",Ammortamento_Finanziario!$H:$L,5,FALSE),VLOOKUP($M35,TT_Tabelle_Riferimento!$D$127:$H$164,5,FALSE))","v":10},{"$f":"+IFERROR(VLOOKUP(OS$27&\"-\"&$M35&\"_new\",Ammortamento_Finanziario!$H:$L,5,FALSE),VLOOKUP($M35,TT_Tabelle_Riferimento!$D$127:$H$164,5,FALSE))","v":10},{"$f":"+IFERROR(VLOOKUP(OT$27&\"-\"&$M35&\"_new\",Ammortamento_Finanziario!$H:$L,5,FALSE),VLOOKUP($M35,TT_Tabelle_Riferimento!$D$127:$H$164,5,FALSE))","v":10},{"$f":"+IFERROR(VLOOKUP(OU$27&\"-\"&$M35&\"_new\",Ammortamento_Finanziario!$H:$L,5,FALSE),VLOOKUP($M35,TT_Tabelle_Riferimento!$D$127:$H$164,5,FALSE))","v":10},{"$f":"+IFERROR(VLOOKUP(OV$27&\"-\"&$M35&\"_new\",Ammortamento_Finanziario!$H:$L,5,FALSE),VLOOKUP($M35,TT_Tabelle_Riferimento!$D$127:$H$164,5,FALSE))","v":10},{"$f":"+IFERROR(VLOOKUP(OW$27&\"-\"&$M35&\"_new\",Ammortamento_Finanziario!$H:$L,5,FALSE),VLOOKUP($M35,TT_Tabelle_Riferimento!$D$127:$H$164,5,FALSE))","v":10},{"$f":"+IFERROR(VLOOKUP(OX$27&\"-\"&$M35&\"_new\",Ammortamento_Finanziario!$H:$L,5,FALSE),VLOOKUP($M35,TT_Tabelle_Riferimento!$D$127:$H$164,5,FALSE))","v":10},{"$f":"+IFERROR(VLOOKUP(OY$27&\"-\"&$M35&\"_new\",Ammortamento_Finanziario!$H:$L,5,FALSE),VLOOKUP($M35,TT_Tabelle_Riferimento!$D$127:$H$164,5,FALSE))","v":10},{"$f":"+IFERROR(VLOOKUP(OZ$27&\"-\"&$M35&\"_new\",Ammortamento_Finanziario!$H:$L,5,FALSE),VLOOKUP($M35,TT_Tabelle_Riferimento!$D$127:$H$164,5,FALSE))","v":10},{"$f":"+IFERROR(VLOOKUP(PA$27&\"-\"&$M35&\"_new\",Ammortamento_Finanziario!$H:$L,5,FALSE),VLOOKUP($M35,TT_Tabelle_Riferimento!$D$127:$H$164,5,FALSE))","v":10},{"$f":"+IFERROR(VLOOKUP(PB$27&\"-\"&$M35&\"_new\",Ammortamento_Finanziario!$H:$L,5,FALSE),VLOOKUP($M35,TT_Tabelle_Riferimento!$D$127:$H$164,5,FALSE))","v":10},{"$f":"+IFERROR(VLOOKUP(PC$27&\"-\"&$M35&\"_new\",Ammortamento_Finanziario!$H:$L,5,FALSE),VLOOKUP($M35,TT_Tabelle_Riferimento!$D$127:$H$164,5,FALSE))","v":10},{"$f":"+IFERROR(VLOOKUP(PD$27&\"-\"&$M35&\"_new\",Ammortamento_Finanziario!$H:$L,5,FALSE),VLOOKUP($M35,TT_Tabelle_Riferimento!$D$127:$H$164,5,FALSE))","v":10},{"$f":"+IFERROR(VLOOKUP(PE$27&\"-\"&$M35&\"_new\",Ammortamento_Finanziario!$H:$L,5,FALSE),VLOOKUP($M35,TT_Tabelle_Riferimento!$D$127:$H$164,5,FALSE))","v":10},{"$f":"+IFERROR(VLOOKUP(PF$27&\"-\"&$M35&\"_new\",Ammortamento_Finanziario!$H:$L,5,FALSE),VLOOKUP($M35,TT_Tabelle_Riferimento!$D$127:$H$164,5,FALSE))","v":10},{"$f":"+IFERROR(VLOOKUP(PG$27&\"-\"&$M35&\"_new\",Ammortamento_Finanziario!$H:$L,5,FALSE),VLOOKUP($M35,TT_Tabelle_Riferimento!$D$127:$H$164,5,FALSE))","v":10},{"$f":"+IFERROR(VLOOKUP(PH$27&\"-\"&$M35&\"_new\",Ammortamento_Finanziario!$H:$L,5,FALSE),VLOOKUP($M35,TT_Tabelle_Riferimento!$D$127:$H$164,5,FALSE))","v":10},{"$f":"+IFERROR(VLOOKUP(PI$27&\"-\"&$M35&\"_new\",Ammortamento_Finanziario!$H:$L,5,FALSE),VLOOKUP($M35,TT_Tabelle_Riferimento!$D$127:$H$164,5,FALSE))","v":10},{"$f":"+IFERROR(VLOOKUP(PJ$27&\"-\"&$M35&\"_new\",Ammortamento_Finanziario!$H:$L,5,FALSE),VLOOKUP($M35,TT_Tabelle_Riferimento!$D$127:$H$164,5,FALSE))","v":10},{"$f":"+IFERROR(VLOOKUP(PK$27&\"-\"&$M35&\"_new\",Ammortamento_Finanziario!$H:$L,5,FALSE),VLOOKUP($M35,TT_Tabelle_Riferimento!$D$127:$H$164,5,FALSE))","v":10},{"$f":"+IFERROR(VLOOKUP(PL$27&\"-\"&$M35&\"_new\",Ammortamento_Finanziario!$H:$L,5,FALSE),VLOOKUP($M35,TT_Tabelle_Riferimento!$D$127:$H$164,5,FALSE))","v":10},{"$f":"+IFERROR(VLOOKUP(PM$27&\"-\"&$M35&\"_new\",Ammortamento_Finanziario!$H:$L,5,FALSE),VLOOKUP($M35,TT_Tabelle_Riferimento!$D$127:$H$164,5,FALSE))","v":10},{"$f":"+IFERROR(VLOOKUP(PN$27&\"-\"&$M35&\"_new\",Ammortamento_Finanziario!$H:$L,5,FALSE),VLOOKUP($M35,TT_Tabelle_Riferimento!$D$127:$H$164,5,FALSE))","v":10},{"$f":"+IFERROR(VLOOKUP(PO$27&\"-\"&$M35&\"_new\",Ammortamento_Finanziario!$H:$L,5,FALSE),VLOOKUP($M35,TT_Tabelle_Riferimento!$D$127:$H$164,5,FALSE))","v":10},{"$f":"+IFERROR(VLOOKUP(PP$27&\"-\"&$M35&\"_new\",Ammortamento_Finanziario!$H:$L,5,FALSE),VLOOKUP($M35,TT_Tabelle_Riferimento!$D$127:$H$164,5,FALSE))","v":10},{"$f":"+IFERROR(VLOOKUP(PQ$27&\"-\"&$M35&\"_new\",Ammortamento_Finanziario!$H:$L,5,FALSE),VLOOKUP($M35,TT_Tabelle_Riferimento!$D$127:$H$164,5,FALSE))","v":10},{"$f":"+IFERROR(VLOOKUP(PR$27&\"-\"&$M35&\"_new\",Ammortamento_Finanziario!$H:$L,5,FALSE),VLOOKUP($M35,TT_Tabelle_Riferimento!$D$127:$H$164,5,FALSE))","v":10},{"$f":"+IFERROR(VLOOKUP(PS$27&\"-\"&$M35&\"_new\",Ammortamento_Finanziario!$H:$L,5,FALSE),VLOOKUP($M35,TT_Tabelle_Riferimento!$D$127:$H$164,5,FALSE))","v":10},{"$f":"+IFERROR(VLOOKUP(PT$27&\"-\"&$M35&\"_new\",Ammortamento_Finanziario!$H:$L,5,FALSE),VLOOKUP($M35,TT_Tabelle_Riferimento!$D$127:$H$164,5,FALSE))","v":10},{"$f":"+IFERROR(VLOOKUP(PU$27&\"-\"&$M35&\"_new\",Ammortamento_Finanziario!$H:$L,5,FALSE),VLOOKUP($M35,TT_Tabelle_Riferimento!$D$127:$H$164,5,FALSE))","v":10},{"$f":"+IFERROR(VLOOKUP(PV$27&\"-\"&$M35&\"_new\",Ammortamento_Finanziario!$H:$L,5,FALSE),VLOOKUP($M35,TT_Tabelle_Riferimento!$D$127:$H$164,5,FALSE))","v":10},{"$f":"+IFERROR(VLOOKUP(PW$27&\"-\"&$M35&\"_new\",Ammortamento_Finanziario!$H:$L,5,FALSE),VLOOKUP($M35,TT_Tabelle_Riferimento!$D$127:$H$164,5,FALSE))","v":10},{"$f":"+IFERROR(VLOOKUP(PX$27&\"-\"&$M35&\"_new\",Ammortamento_Finanziario!$H:$L,5,FALSE),VLOOKUP($M35,TT_Tabelle_Riferimento!$D$127:$H$164,5,FALSE))","v":10},{"$f":"+IFERROR(VLOOKUP(PY$27&\"-\"&$M35&\"_new\",Ammortamento_Finanziario!$H:$L,5,FALSE),VLOOKUP($M35,TT_Tabelle_Riferimento!$D$127:$H$164,5,FALSE))","v":10},{"$f":"+IFERROR(VLOOKUP(PZ$27&\"-\"&$M35&\"_new\",Ammortamento_Finanziario!$H:$L,5,FALSE),VLOOKUP($M35,TT_Tabelle_Riferimento!$D$127:$H$164,5,FALSE))","v":10},{"$f":"+IFERROR(VLOOKUP(QA$27&\"-\"&$M35&\"_new\",Ammortamento_Finanziario!$H:$L,5,FALSE),VLOOKUP($M35,TT_Tabelle_Riferimento!$D$127:$H$164,5,FALSE))","v":10},{"$f":"+IFERROR(VLOOKUP(QB$27&\"-\"&$M35&\"_new\",Ammortamento_Finanziario!$H:$L,5,FALSE),VLOOKUP($M35,TT_Tabelle_Riferimento!$D$127:$H$164,5,FALSE))","v":10},{"$f":"+IFERROR(VLOOKUP(QC$27&\"-\"&$M35&\"_new\",Ammortamento_Finanziario!$H:$L,5,FALSE),VLOOKUP($M35,TT_Tabelle_Riferimento!$D$127:$H$164,5,FALSE))","v":10},{"$f":"+IFERROR(VLOOKUP(QD$27&\"-\"&$M35&\"_new\",Ammortamento_Finanziario!$H:$L,5,FALSE),VLOOKUP($M35,TT_Tabelle_Riferimento!$D$127:$H$164,5,FALSE))","v":10},{"$f":"+IFERROR(VLOOKUP(QE$27&\"-\"&$M35&\"_new\",Ammortamento_Finanziario!$H:$L,5,FALSE),VLOOKUP($M35,TT_Tabelle_Riferimento!$D$127:$H$164,5,FALSE))","v":10},{"$f":"+IFERROR(VLOOKUP(QF$27&\"-\"&$M35&\"_new\",Ammortamento_Finanziario!$H:$L,5,FALSE),VLOOKUP($M35,TT_Tabelle_Riferimento!$D$127:$H$164,5,FALSE))","v":10},{"$f":"+IFERROR(VLOOKUP(QG$27&\"-\"&$M35&\"_new\",Ammortamento_Finanziario!$H:$L,5,FALSE),VLOOKUP($M35,TT_Tabelle_Riferimento!$D$127:$H$164,5,FALSE))","v":10},{"$f":"+IFERROR(VLOOKUP(QH$27&\"-\"&$M35&\"_new\",Ammortamento_Finanziario!$H:$L,5,FALSE),VLOOKUP($M35,TT_Tabelle_Riferimento!$D$127:$H$164,5,FALSE))","v":10},{"$f":"+IFERROR(VLOOKUP(QI$27&\"-\"&$M35&\"_new\",Ammortamento_Finanziario!$H:$L,5,FALSE),VLOOKUP($M35,TT_Tabelle_Riferimento!$D$127:$H$164,5,FALSE))","v":10},{"$f":"+IFERROR(VLOOKUP(QJ$27&\"-\"&$M35&\"_new\",Ammortamento_Finanziario!$H:$L,5,FALSE),VLOOKUP($M35,TT_Tabelle_Riferimento!$D$127:$H$164,5,FALSE))","v":10},{"$f":"+IFERROR(VLOOKUP(QK$27&\"-\"&$M35&\"_new\",Ammortamento_Finanziario!$H:$L,5,FALSE),VLOOKUP($M35,TT_Tabelle_Riferimento!$D$127:$H$164,5,FALSE))","v":10},{"$f":"+IFERROR(VLOOKUP(QL$27&\"-\"&$M35&\"_new\",Ammortamento_Finanziario!$H:$L,5,FALSE),VLOOKUP($M35,TT_Tabelle_Riferimento!$D$127:$H$164,5,FALSE))","v":10},{"$f":"+IFERROR(VLOOKUP(QM$27&\"-\"&$M35&\"_new\",Ammortamento_Finanziario!$H:$L,5,FALSE),VLOOKUP($M35,TT_Tabelle_Riferimento!$D$127:$H$164,5,FALSE))","v":10},{"$f":"+IFERROR(VLOOKUP(QN$27&\"-\"&$M35&\"_new\",Ammortamento_Finanziario!$H:$L,5,FALSE),VLOOKUP($M35,TT_Tabelle_Riferimento!$D$127:$H$164,5,FALSE))","v":10},{"$f":"+IFERROR(VLOOKUP(QO$27&\"-\"&$M35&\"_new\",Ammortamento_Finanziario!$H:$L,5,FALSE),VLOOKUP($M35,TT_Tabelle_Riferimento!$D$127:$H$164,5,FALSE))","v":10},{"$f":"+IFERROR(VLOOKUP(QP$27&\"-\"&$M35&\"_new\",Ammortamento_Finanziario!$H:$L,5,FALSE),VLOOKUP($M35,TT_Tabelle_Riferimento!$D$127:$H$164,5,FALSE))","v":10},{"$f":"+IFERROR(VLOOKUP(QQ$27&\"-\"&$M35&\"_new\",Ammortamento_Finanziario!$H:$L,5,FALSE),VLOOKUP($M35,TT_Tabelle_Riferimento!$D$127:$H$164,5,FALSE))","v":10},{"$f":"+IFERROR(VLOOKUP(QR$27&\"-\"&$M35&\"_new\",Ammortamento_Finanziario!$H:$L,5,FALSE),VLOOKUP($M35,TT_Tabelle_Riferimento!$D$127:$H$164,5,FALSE))","v":10},{"$f":"+IFERROR(VLOOKUP(QS$27&\"-\"&$M35&\"_new\",Ammortamento_Finanziario!$H:$L,5,FALSE),VLOOKUP($M35,TT_Tabelle_Riferimento!$D$127:$H$164,5,FALSE))","v":10},{"$f":"+IFERROR(VLOOKUP(QT$27&\"-\"&$M35&\"_new\",Ammortamento_Finanziario!$H:$L,5,FALSE),VLOOKUP($M35,TT_Tabelle_Riferimento!$D$127:$H$164,5,FALSE))","v":10},{"$f":"+IFERROR(VLOOKUP(QU$27&\"-\"&$M35&\"_new\",Ammortamento_Finanziario!$H:$L,5,FALSE),VLOOKUP($M35,TT_Tabelle_Riferimento!$D$127:$H$164,5,FALSE))","v":10},{"$f":"+IFERROR(VLOOKUP(QV$27&\"-\"&$M35&\"_new\",Ammortamento_Finanziario!$H:$L,5,FALSE),VLOOKUP($M35,TT_Tabelle_Riferimento!$D$127:$H$164,5,FALSE))","v":10},{"$f":"+IFERROR(VLOOKUP(QW$27&\"-\"&$M35&\"_new\",Ammortamento_Finanziario!$H:$L,5,FALSE),VLOOKUP($M35,TT_Tabelle_Riferimento!$D$127:$H$164,5,FALSE))","v":10},{"$f":"+IFERROR(VLOOKUP(QX$27&\"-\"&$M35&\"_new\",Ammortamento_Finanziario!$H:$L,5,FALSE),VLOOKUP($M35,TT_Tabelle_Riferimento!$D$127:$H$164,5,FALSE))","v":10},{"$f":"+IFERROR(VLOOKUP(QY$27&\"-\"&$M35&\"_new\",Ammortamento_Finanziario!$H:$L,5,FALSE),VLOOKUP($M35,TT_Tabelle_Riferimento!$D$127:$H$164,5,FALSE))","v":10},{"$f":"+IFERROR(VLOOKUP(QZ$27&\"-\"&$M35&\"_new\",Ammortamento_Finanziario!$H:$L,5,FALSE),VLOOKUP($M35,TT_Tabelle_Riferimento!$D$127:$H$164,5,FALSE))","v":10},{"$f":"+IFERROR(VLOOKUP(RA$27&\"-\"&$M35&\"_new\",Ammortamento_Finanziario!$H:$L,5,FALSE),VLOOKUP($M35,TT_Tabelle_Riferimento!$D$127:$H$164,5,FALSE))","v":10},{"$f":"+IFERROR(VLOOKUP(RB$27&\"-\"&$M35&\"_new\",Ammortamento_Finanziario!$H:$L,5,FALSE),VLOOKUP($M35,TT_Tabelle_Riferimento!$D$127:$H$164,5,FALSE))","v":10},{"$f":"+IFERROR(VLOOKUP(RC$27&\"-\"&$M35&\"_new\",Ammortamento_Finanziario!$H:$L,5,FALSE),VLOOKUP($M35,TT_Tabelle_Riferimento!$D$127:$H$164,5,FALSE))","v":10},{"$f":"+IFERROR(VLOOKUP(RD$27&\"-\"&$M35&\"_new\",Ammortamento_Finanziario!$H:$L,5,FALSE),VLOOKUP($M35,TT_Tabelle_Riferimento!$D$127:$H$164,5,FALSE))","v":10},{"$f":"+IFERROR(VLOOKUP(RE$27&\"-\"&$M35&\"_new\",Ammortamento_Finanziario!$H:$L,5,FALSE),VLOOKUP($M35,TT_Tabelle_Riferimento!$D$127:$H$164,5,FALSE))","v":10},{"$f":"+IFERROR(VLOOKUP(RF$27&\"-\"&$M35&\"_new\",Ammortamento_Finanziario!$H:$L,5,FALSE),VLOOKUP($M35,TT_Tabelle_Riferimento!$D$127:$H$164,5,FALSE))","v":10},{"$f":"+IFERROR(VLOOKUP(RG$27&\"-\"&$M35&\"_new\",Ammortamento_Finanziario!$H:$L,5,FALSE),VLOOKUP($M35,TT_Tabelle_Riferimento!$D$127:$H$164,5,FALSE))","v":10},{"$f":"+IFERROR(VLOOKUP(RH$27&\"-\"&$M35&\"_new\",Ammortamento_Finanziario!$H:$L,5,FALSE),VLOOKUP($M35,TT_Tabelle_Riferimento!$D$127:$H$164,5,FALSE))","v":10},{"$f":"+IFERROR(VLOOKUP(RI$27&\"-\"&$M35&\"_new\",Ammortamento_Finanziario!$H:$L,5,FALSE),VLOOKUP($M35,TT_Tabelle_Riferimento!$D$127:$H$164,5,FALSE))","v":10},{"$f":"+IFERROR(VLOOKUP(RJ$27&\"-\"&$M35&\"_new\",Ammortamento_Finanziario!$H:$L,5,FALSE),VLOOKUP($M35,TT_Tabelle_Riferimento!$D$127:$H$164,5,FALSE))","v":10},{"$f":"+IFERROR(VLOOKUP(RK$27&\"-\"&$M35&\"_new\",Ammortamento_Finanziario!$H:$L,5,FALSE),VLOOKUP($M35,TT_Tabelle_Riferimento!$D$127:$H$164,5,FALSE))","v":10},{"$f":"+IFERROR(VLOOKUP(RL$27&\"-\"&$M35&\"_new\",Ammortamento_Finanziario!$H:$L,5,FALSE),VLOOKUP($M35,TT_Tabelle_Riferimento!$D$127:$H$164,5,FALSE))","v":10},{"$f":"+IFERROR(VLOOKUP(RM$27&\"-\"&$M35&\"_new\",Ammortamento_Finanziario!$H:$L,5,FALSE),VLOOKUP($M35,TT_Tabelle_Riferimento!$D$127:$H$164,5,FALSE))","v":10},{"$f":"+IFERROR(VLOOKUP(RN$27&\"-\"&$M35&\"_new\",Ammortamento_Finanziario!$H:$L,5,FALSE),VLOOKUP($M35,TT_Tabelle_Riferimento!$D$127:$H$164,5,FALSE))","v":10},{"$f":"+IFERROR(VLOOKUP(RO$27&\"-\"&$M35&\"_new\",Ammortamento_Finanziario!$H:$L,5,FALSE),VLOOKUP($M35,TT_Tabelle_Riferimento!$D$127:$H$164,5,FALSE))","v":10},{"$f":"+IFERROR(VLOOKUP(RP$27&\"-\"&$M35&\"_new\",Ammortamento_Finanziario!$H:$L,5,FALSE),VLOOKUP($M35,TT_Tabelle_Riferimento!$D$127:$H$164,5,FALSE))","v":10},{"$f":"+IFERROR(VLOOKUP(RQ$27&\"-\"&$M35&\"_new\",Ammortamento_Finanziario!$H:$L,5,FALSE),VLOOKUP($M35,TT_Tabelle_Riferimento!$D$127:$H$164,5,FALSE))","v":10},{"$f":"+IFERROR(VLOOKUP(RR$27&\"-\"&$M35&\"_new\",Ammortamento_Finanziario!$H:$L,5,FALSE),VLOOKUP($M35,TT_Tabelle_Riferimento!$D$127:$H$164,5,FALSE))","v":10},{"$f":"+IFERROR(VLOOKUP(RS$27&\"-\"&$M35&\"_new\",Ammortamento_Finanziario!$H:$L,5,FALSE),VLOOKUP($M35,TT_Tabelle_Riferimento!$D$127:$H$164,5,FALSE))","v":10},{"$f":"+IFERROR(VLOOKUP(RT$27&\"-\"&$M35&\"_new\",Ammortamento_Finanziario!$H:$L,5,FALSE),VLOOKUP($M35,TT_Tabelle_Riferimento!$D$127:$H$164,5,FALSE))","v":10},{"$f":"+IFERROR(VLOOKUP(RU$27&\"-\"&$M35&\"_new\",Ammortamento_Finanziario!$H:$L,5,FALSE),VLOOKUP($M35,TT_Tabelle_Riferimento!$D$127:$H$164,5,FALSE))","v":10},{"$f":"+IFERROR(VLOOKUP(RV$27&\"-\"&$M35&\"_new\",Ammortamento_Finanziario!$H:$L,5,FALSE),VLOOKUP($M35,TT_Tabelle_Riferimento!$D$127:$H$164,5,FALSE))","v":10}]
[null,null,null,"CINfp",{"$f":"+SUMIF(IMN_gestore!$E:$E,2022,IMN_gestore!$W:$W)","v":0},{"$f":"SUMIF(IMN_gestore!$E:$E,2023,IMN_gestore!$AH:$AH)","v":0},{"$f":"+SUMIF(IMN_gestore!$E:$E,2024,IMN_gestore!$AS:$AS)","v":0},{"$f":"SUMIF(IMN_gestore!$E:$E,2025,IMN_gestore!$BD:$BD)","v":0},{"$f":"SUMIF(IMN_gestore!$E:$E,2026,IMN_gestore!$BO:$BO)","v":0},{"$f":"SUMIF(IMN_gestore!$E:$E,2027,IMN_gestore!$BZ:$BZ)","v":0},null,null,9,0,0,0,0,0,0,0,0,0,0,0,0,0,0,0,0,0,0,0,0,0,0,0,0,0,0,0,0,0,0,0,0,0,0,0,0,0,0,0,0,0,0,0,0,0,0,0,0,0,0,0,0,0,0,0,0,0,0,0,0,0,0,0,0,0,0,0,0,0,0,0,0,0,0,0,0,0,0,0,0,0,0,0,0,0,0,0,0,0,0,0,0,0,0,0,0,0,0,0,0,0,0,0,0,0,0,0,0,0,0,0,0,0,0,0,0,0,0,0,0,0,0,0,0,0,0,0,0,0,0,0,0,0,0,0,0,0,0,0,0,0,0,0,0,0,0,0,0,0,0,0,0,0,0,0,0,0,0,0,0,0,0,0,0,0,0,0,0,0,0,0,0,0,0,0,0,0,0,0,0,0,0,0,0,0,0,0,0,0,0,0,0,0,0,0,0,0,0,0,0,0,0,0,0,0,0,0,0,0,0,0,0,0,0,0,0,0,0,0,0,0,0,0,0,0,0,0,0,0,0,0,0,0,0,0,0,0,0,0,0,0,0,0,0,0,0,0,0,0,0,0,0,0,0,0,0,0,0,0,0,0,0,0,0,0,0,0,0,0,0,0,0,0,0,0,0,0,0,0,0,0,0,0,0,0,0,0,0,0,{"$f":"+IFERROR(VLOOKUP(KQ$27&\"-\"&$M36&\"_new\",Ammortamento_Finanziario!$H:$L,5,FALSE),VLOOKUP($M36,TT_Tabelle_Riferimento!$D$127:$H$164,5,FALSE))","v":5},{"$f":"+IFERROR(VLOOKUP(KR$27&\"-\"&$M36&\"_new\",Ammortamento_Finanziario!$H:$L,5,FALSE),VLOOKUP($M36,TT_Tabelle_Riferimento!$D$127:$H$164,5,FALSE))","v":5},{"$f":"+IFERROR(VLOOKUP(KS$27&\"-\"&$M36&\"_new\",Ammortamento_Finanziario!$H:$L,5,FALSE),VLOOKUP($M36,TT_Tabelle_Riferimento!$D$127:$H$164,5,FALSE))","v":5},{"$f":"+IFERROR(VLOOKUP(KT$27&\"-\"&$M36&\"_new\",Ammortamento_Finanziario!$H:$L,5,FALSE),VLOOKUP($M36,TT_Tabelle_Riferimento!$D$127:$H$164,5,FALSE))","v":5},{"$f":"+IFERROR(VLOOKUP(KU$27&\"-\"&$M36&\"_new\",Ammortamento_Finanziario!$H:$L,5,FALSE),VLOOKUP($M36,TT_Tabelle_Riferimento!$D$127:$H$164,5,FALSE))","v":5},{"$f":"+IFERROR(VLOOKUP(KV$27&\"-\"&$M36&\"_new\",Ammortamento_Finanziario!$H:$L,5,FALSE),VLOOKUP($M36,TT_Tabelle_Riferimento!$D$127:$H$164,5,FALSE))","v":5},{"$f":"+IFERROR(VLOOKUP(KW$27&\"-\"&$M36&\"_new\",Ammortamento_Finanziario!$H:$L,5,FALSE),VLOOKUP($M36,TT_Tabelle_Riferimento!$D$127:$H$164,5,FALSE))","v":5},{"$f":"+IFERROR(VLOOKUP(KX$27&\"-\"&$M36&\"_new\",Ammortamento_Finanziario!$H:$L,5,FALSE),VLOOKUP($M36,TT_Tabelle_Riferimento!$D$127:$H$164,5,FALSE))","v":5},{"$f":"+IFERROR(VLOOKUP(KY$27&\"-\"&$M36&\"_new\",Ammortamento_Finanziario!$H:$L,5,FALSE),VLOOKUP($M36,TT_Tabelle_Riferimento!$D$127:$H$164,5,FALSE))","v":5},{"$f":"+IFERROR(VLOOKUP(KZ$27&\"-\"&$M36&\"_new\",Ammortamento_Finanziario!$H:$L,5,FALSE),VLOOKUP($M36,TT_Tabelle_Riferimento!$D$127:$H$164,5,FALSE))","v":5},{"$f":"+IFERROR(VLOOKUP(LA$27&\"-\"&$M36&\"_new\",Ammortamento_Finanziario!$H:$L,5,FALSE),VLOOKUP($M36,TT_Tabelle_Riferimento!$D$127:$H$164,5,FALSE))","v":5},{"$f":"+IFERROR(VLOOKUP(LB$27&\"-\"&$M36&\"_new\",Ammortamento_Finanziario!$H:$L,5,FALSE),VLOOKUP($M36,TT_Tabelle_Riferimento!$D$127:$H$164,5,FALSE))","v":5},{"$f":"+IFERROR(VLOOKUP(LC$27&\"-\"&$M36&\"_new\",Ammortamento_Finanziario!$H:$L,5,FALSE),VLOOKUP($M36,TT_Tabelle_Riferimento!$D$127:$H$164,5,FALSE))","v":5},{"$f":"+IFERROR(VLOOKUP(LD$27&\"-\"&$M36&\"_new\",Ammortamento_Finanziario!$H:$L,5,FALSE),VLOOKUP($M36,TT_Tabelle_Riferimento!$D$127:$H$164,5,FALSE))","v":5},{"$f":"+IFERROR(VLOOKUP(LE$27&\"-\"&$M36&\"_new\",Ammortamento_Finanziario!$H:$L,5,FALSE),VLOOKUP($M36,TT_Tabelle_Riferimento!$D$127:$H$164,5,FALSE))","v":5},{"$f":"+IFERROR(VLOOKUP(LF$27&\"-\"&$M36&\"_new\",Ammortamento_Finanziario!$H:$L,5,FALSE),VLOOKUP($M36,TT_Tabelle_Riferimento!$D$127:$H$164,5,FALSE))","v":5},{"$f":"+IFERROR(VLOOKUP(LG$27&\"-\"&$M36&\"_new\",Ammortamento_Finanziario!$H:$L,5,FALSE),VLOOKUP($M36,TT_Tabelle_Riferimento!$D$127:$H$164,5,FALSE))","v":5},{"$f":"+IFERROR(VLOOKUP(LH$27&\"-\"&$M36&\"_new\",Ammortamento_Finanziario!$H:$L,5,FALSE),VLOOKUP($M36,TT_Tabelle_Riferimento!$D$127:$H$164,5,FALSE))","v":5},{"$f":"+IFERROR(VLOOKUP(LI$27&\"-\"&$M36&\"_new\",Ammortamento_Finanziario!$H:$L,5,FALSE),VLOOKUP($M36,TT_Tabelle_Riferimento!$D$127:$H$164,5,FALSE))","v":5},{"$f":"+IFERROR(VLOOKUP(LJ$27&\"-\"&$M36&\"_new\",Ammortamento_Finanziario!$H:$L,5,FALSE),VLOOKUP($M36,TT_Tabelle_Riferimento!$D$127:$H$164,5,FALSE))","v":5},{"$f":"+IFERROR(VLOOKUP(LK$27&\"-\"&$M36&\"_new\",Ammortamento_Finanziario!$H:$L,5,FALSE),VLOOKUP($M36,TT_Tabelle_Riferimento!$D$127:$H$164,5,FALSE))","v":5},{"$f":"+IFERROR(VLOOKUP(LL$27&\"-\"&$M36&\"_new\",Ammortamento_Finanziario!$H:$L,5,FALSE),VLOOKUP($M36,TT_Tabelle_Riferimento!$D$127:$H$164,5,FALSE))","v":5},{"$f":"+IFERROR(VLOOKUP(LM$27&\"-\"&$M36&\"_new\",Ammortamento_Finanziario!$H:$L,5,FALSE),VLOOKUP($M36,TT_Tabelle_Riferimento!$D$127:$H$164,5,FALSE))","v":5},{"$f":"+IFERROR(VLOOKUP(LN$27&\"-\"&$M36&\"_new\",Ammortamento_Finanziario!$H:$L,5,FALSE),VLOOKUP($M36,TT_Tabelle_Riferimento!$D$127:$H$164,5,FALSE))","v":5},{"$f":"+IFERROR(VLOOKUP(LO$27&\"-\"&$M36&\"_new\",Ammortamento_Finanziario!$H:$L,5,FALSE),VLOOKUP($M36,TT_Tabelle_Riferimento!$D$127:$H$164,5,FALSE))","v":5},{"$f":"+IFERROR(VLOOKUP(LP$27&\"-\"&$M36&\"_new\",Ammortamento_Finanziario!$H:$L,5,FALSE),VLOOKUP($M36,TT_Tabelle_Riferimento!$D$127:$H$164,5,FALSE))","v":5},{"$f":"+IFERROR(VLOOKUP(LQ$27&\"-\"&$M36&\"_new\",Ammortamento_Finanziario!$H:$L,5,FALSE),VLOOKUP($M36,TT_Tabelle_Riferimento!$D$127:$H$164,5,FALSE))","v":5},{"$f":"+IFERROR(VLOOKUP(LR$27&\"-\"&$M36&\"_new\",Ammortamento_Finanziario!$H:$L,5,FALSE),VLOOKUP($M36,TT_Tabelle_Riferimento!$D$127:$H$164,5,FALSE))","v":5},{"$f":"+IFERROR(VLOOKUP(LS$27&\"-\"&$M36&\"_new\",Ammortamento_Finanziario!$H:$L,5,FALSE),VLOOKUP($M36,TT_Tabelle_Riferimento!$D$127:$H$164,5,FALSE))","v":5},{"$f":"+IFERROR(VLOOKUP(LT$27&\"-\"&$M36&\"_new\",Ammortamento_Finanziario!$H:$L,5,FALSE),VLOOKUP($M36,TT_Tabelle_Riferimento!$D$127:$H$164,5,FALSE))","v":5},{"$f":"+IFERROR(VLOOKUP(LU$27&\"-\"&$M36&\"_new\",Ammortamento_Finanziario!$H:$L,5,FALSE),VLOOKUP($M36,TT_Tabelle_Riferimento!$D$127:$H$164,5,FALSE))","v":5},{"$f":"+IFERROR(VLOOKUP(LV$27&\"-\"&$M36&\"_new\",Ammortamento_Finanziario!$H:$L,5,FALSE),VLOOKUP($M36,TT_Tabelle_Riferimento!$D$127:$H$164,5,FALSE))","v":5},{"$f":"+IFERROR(VLOOKUP(LW$27&\"-\"&$M36&\"_new\",Ammortamento_Finanziario!$H:$L,5,FALSE),VLOOKUP($M36,TT_Tabelle_Riferimento!$D$127:$H$164,5,FALSE))","v":5},{"$f":"+IFERROR(VLOOKUP(LX$27&\"-\"&$M36&\"_new\",Ammortamento_Finanziario!$H:$L,5,FALSE),VLOOKUP($M36,TT_Tabelle_Riferimento!$D$127:$H$164,5,FALSE))","v":5},{"$f":"+IFERROR(VLOOKUP(LY$27&\"-\"&$M36&\"_new\",Ammortamento_Finanziario!$H:$L,5,FALSE),VLOOKUP($M36,TT_Tabelle_Riferimento!$D$127:$H$164,5,FALSE))","v":5},{"$f":"+IFERROR(VLOOKUP(LZ$27&\"-\"&$M36&\"_new\",Ammortamento_Finanziario!$H:$L,5,FALSE),VLOOKUP($M36,TT_Tabelle_Riferimento!$D$127:$H$164,5,FALSE))","v":5},{"$f":"+IFERROR(VLOOKUP(MA$27&\"-\"&$M36&\"_new\",Ammortamento_Finanziario!$H:$L,5,FALSE),VLOOKUP($M36,TT_Tabelle_Riferimento!$D$127:$H$164,5,FALSE))","v":5},{"$f":"+IFERROR(VLOOKUP(MB$27&\"-\"&$M36&\"_new\",Ammortamento_Finanziario!$H:$L,5,FALSE),VLOOKUP($M36,TT_Tabelle_Riferimento!$D$127:$H$164,5,FALSE))","v":5},{"$f":"+IFERROR(VLOOKUP(MC$27&\"-\"&$M36&\"_new\",Ammortamento_Finanziario!$H:$L,5,FALSE),VLOOKUP($M36,TT_Tabelle_Riferimento!$D$127:$H$164,5,FALSE))","v":5},{"$f":"+IFERROR(VLOOKUP(MD$27&\"-\"&$M36&\"_new\",Ammortamento_Finanziario!$H:$L,5,FALSE),VLOOKUP($M36,TT_Tabelle_Riferimento!$D$127:$H$164,5,FALSE))","v":5},{"$f":"+IFERROR(VLOOKUP(ME$27&\"-\"&$M36&\"_new\",Ammortamento_Finanziario!$H:$L,5,FALSE),VLOOKUP($M36,TT_Tabelle_Riferimento!$D$127:$H$164,5,FALSE))","v":5},{"$f":"+IFERROR(VLOOKUP(MF$27&\"-\"&$M36&\"_new\",Ammortamento_Finanziario!$H:$L,5,FALSE),VLOOKUP($M36,TT_Tabelle_Riferimento!$D$127:$H$164,5,FALSE))","v":5},{"$f":"+IFERROR(VLOOKUP(MG$27&\"-\"&$M36&\"_new\",Ammortamento_Finanziario!$H:$L,5,FALSE),VLOOKUP($M36,TT_Tabelle_Riferimento!$D$127:$H$164,5,FALSE))","v":5},{"$f":"+IFERROR(VLOOKUP(MH$27&\"-\"&$M36&\"_new\",Ammortamento_Finanziario!$H:$L,5,FALSE),VLOOKUP($M36,TT_Tabelle_Riferimento!$D$127:$H$164,5,FALSE))","v":5},{"$f":"+IFERROR(VLOOKUP(MI$27&\"-\"&$M36&\"_new\",Ammortamento_Finanziario!$H:$L,5,FALSE),VLOOKUP($M36,TT_Tabelle_Riferimento!$D$127:$H$164,5,FALSE))","v":5},{"$f":"+IFERROR(VLOOKUP(MJ$27&\"-\"&$M36&\"_new\",Ammortamento_Finanziario!$H:$L,5,FALSE),VLOOKUP($M36,TT_Tabelle_Riferimento!$D$127:$H$164,5,FALSE))","v":5},{"$f":"+IFERROR(VLOOKUP(MK$27&\"-\"&$M36&\"_new\",Ammortamento_Finanziario!$H:$L,5,FALSE),VLOOKUP($M36,TT_Tabelle_Riferimento!$D$127:$H$164,5,FALSE))","v":5},{"$f":"+IFERROR(VLOOKUP(ML$27&\"-\"&$M36&\"_new\",Ammortamento_Finanziario!$H:$L,5,FALSE),VLOOKUP($M36,TT_Tabelle_Riferimento!$D$127:$H$164,5,FALSE))","v":5},{"$f":"+IFERROR(VLOOKUP(MM$27&\"-\"&$M36&\"_new\",Ammortamento_Finanziario!$H:$L,5,FALSE),VLOOKUP($M36,TT_Tabelle_Riferimento!$D$127:$H$164,5,FALSE))","v":5},{"$f":"+IFERROR(VLOOKUP(MN$27&\"-\"&$M36&\"_new\",Ammortamento_Finanziario!$H:$L,5,FALSE),VLOOKUP($M36,TT_Tabelle_Riferimento!$D$127:$H$164,5,FALSE))","v":5},{"$f":"+IFERROR(VLOOKUP(MO$27&\"-\"&$M36&\"_new\",Ammortamento_Finanziario!$H:$L,5,FALSE),VLOOKUP($M36,TT_Tabelle_Riferimento!$D$127:$H$164,5,FALSE))","v":5},{"$f":"+IFERROR(VLOOKUP(MP$27&\"-\"&$M36&\"_new\",Ammortamento_Finanziario!$H:$L,5,FALSE),VLOOKUP($M36,TT_Tabelle_Riferimento!$D$127:$H$164,5,FALSE))","v":5},{"$f":"+IFERROR(VLOOKUP(MQ$27&\"-\"&$M36&\"_new\",Ammortamento_Finanziario!$H:$L,5,FALSE),VLOOKUP($M36,TT_Tabelle_Riferimento!$D$127:$H$164,5,FALSE))","v":5},{"$f":"+IFERROR(VLOOKUP(MR$27&\"-\"&$M36&\"_new\",Ammortamento_Finanziario!$H:$L,5,FALSE),VLOOKUP($M36,TT_Tabelle_Riferimento!$D$127:$H$164,5,FALSE))","v":5},{"$f":"+IFERROR(VLOOKUP(MS$27&\"-\"&$M36&\"_new\",Ammortamento_Finanziario!$H:$L,5,FALSE),VLOOKUP($M36,TT_Tabelle_Riferimento!$D$127:$H$164,5,FALSE))","v":5},{"$f":"+IFERROR(VLOOKUP(MT$27&\"-\"&$M36&\"_new\",Ammortamento_Finanziario!$H:$L,5,FALSE),VLOOKUP($M36,TT_Tabelle_Riferimento!$D$127:$H$164,5,FALSE))","v":5},{"$f":"+IFERROR(VLOOKUP(MU$27&\"-\"&$M36&\"_new\",Ammortamento_Finanziario!$H:$L,5,FALSE),VLOOKUP($M36,TT_Tabelle_Riferimento!$D$127:$H$164,5,FALSE))","v":5},{"$f":"+IFERROR(VLOOKUP(MV$27&\"-\"&$M36&\"_new\",Ammortamento_Finanziario!$H:$L,5,FALSE),VLOOKUP($M36,TT_Tabelle_Riferimento!$D$127:$H$164,5,FALSE))","v":5},{"$f":"+IFERROR(VLOOKUP(MW$27&\"-\"&$M36&\"_new\",Ammortamento_Finanziario!$H:$L,5,FALSE),VLOOKUP($M36,TT_Tabelle_Riferimento!$D$127:$H$164,5,FALSE))","v":5},{"$f":"+IFERROR(VLOOKUP(MX$27&\"-\"&$M36&\"_new\",Ammortamento_Finanziario!$H:$L,5,FALSE),VLOOKUP($M36,TT_Tabelle_Riferimento!$D$127:$H$164,5,FALSE))","v":5},{"$f":"+IFERROR(VLOOKUP(MY$27&\"-\"&$M36&\"_new\",Ammortamento_Finanziario!$H:$L,5,FALSE),VLOOKUP($M36,TT_Tabelle_Riferimento!$D$127:$H$164,5,FALSE))","v":5},{"$f":"+IFERROR(VLOOKUP(MZ$27&\"-\"&$M36&\"_new\",Ammortamento_Finanziario!$H:$L,5,FALSE),VLOOKUP($M36,TT_Tabelle_Riferimento!$D$127:$H$164,5,FALSE))","v":5},{"$f":"+IFERROR(VLOOKUP(NA$27&\"-\"&$M36&\"_new\",Ammortamento_Finanziario!$H:$L,5,FALSE),VLOOKUP($M36,TT_Tabelle_Riferimento!$D$127:$H$164,5,FALSE))","v":5},{"$f":"+IFERROR(VLOOKUP(NB$27&\"-\"&$M36&\"_new\",Ammortamento_Finanziario!$H:$L,5,FALSE),VLOOKUP($M36,TT_Tabelle_Riferimento!$D$127:$H$164,5,FALSE))","v":5},{"$f":"+IFERROR(VLOOKUP(NC$27&\"-\"&$M36&\"_new\",Ammortamento_Finanziario!$H:$L,5,FALSE),VLOOKUP($M36,TT_Tabelle_Riferimento!$D$127:$H$164,5,FALSE))","v":5},{"$f":"+IFERROR(VLOOKUP(ND$27&\"-\"&$M36&\"_new\",Ammortamento_Finanziario!$H:$L,5,FALSE),VLOOKUP($M36,TT_Tabelle_Riferimento!$D$127:$H$164,5,FALSE))","v":5},{"$f":"+IFERROR(VLOOKUP(NE$27&\"-\"&$M36&\"_new\",Ammortamento_Finanziario!$H:$L,5,FALSE),VLOOKUP($M36,TT_Tabelle_Riferimento!$D$127:$H$164,5,FALSE))","v":5},{"$f":"+IFERROR(VLOOKUP(NF$27&\"-\"&$M36&\"_new\",Ammortamento_Finanziario!$H:$L,5,FALSE),VLOOKUP($M36,TT_Tabelle_Riferimento!$D$127:$H$164,5,FALSE))","v":5},{"$f":"+IFERROR(VLOOKUP(NG$27&\"-\"&$M36&\"_new\",Ammortamento_Finanziario!$H:$L,5,FALSE),VLOOKUP($M36,TT_Tabelle_Riferimento!$D$127:$H$164,5,FALSE))","v":5},{"$f":"+IFERROR(VLOOKUP(NH$27&\"-\"&$M36&\"_new\",Ammortamento_Finanziario!$H:$L,5,FALSE),VLOOKUP($M36,TT_Tabelle_Riferimento!$D$127:$H$164,5,FALSE))","v":5},{"$f":"+IFERROR(VLOOKUP(NI$27&\"-\"&$M36&\"_new\",Ammortamento_Finanziario!$H:$L,5,FALSE),VLOOKUP($M36,TT_Tabelle_Riferimento!$D$127:$H$164,5,FALSE))","v":5},{"$f":"+IFERROR(VLOOKUP(NJ$27&\"-\"&$M36&\"_new\",Ammortamento_Finanziario!$H:$L,5,FALSE),VLOOKUP($M36,TT_Tabelle_Riferimento!$D$127:$H$164,5,FALSE))","v":5},{"$f":"+IFERROR(VLOOKUP(NK$27&\"-\"&$M36&\"_new\",Ammortamento_Finanziario!$H:$L,5,FALSE),VLOOKUP($M36,TT_Tabelle_Riferimento!$D$127:$H$164,5,FALSE))","v":5},{"$f":"+IFERROR(VLOOKUP(NL$27&\"-\"&$M36&\"_new\",Ammortamento_Finanziario!$H:$L,5,FALSE),VLOOKUP($M36,TT_Tabelle_Riferimento!$D$127:$H$164,5,FALSE))","v":5},{"$f":"+IFERROR(VLOOKUP(NM$27&\"-\"&$M36&\"_new\",Ammortamento_Finanziario!$H:$L,5,FALSE),VLOOKUP($M36,TT_Tabelle_Riferimento!$D$127:$H$164,5,FALSE))","v":5},{"$f":"+IFERROR(VLOOKUP(NN$27&\"-\"&$M36&\"_new\",Ammortamento_Finanziario!$H:$L,5,FALSE),VLOOKUP($M36,TT_Tabelle_Riferimento!$D$127:$H$164,5,FALSE))","v":5},{"$f":"+IFERROR(VLOOKUP(NO$27&\"-\"&$M36&\"_new\",Ammortamento_Finanziario!$H:$L,5,FALSE),VLOOKUP($M36,TT_Tabelle_Riferimento!$D$127:$H$164,5,FALSE))","v":5},{"$f":"+IFERROR(VLOOKUP(NP$27&\"-\"&$M36&\"_new\",Ammortamento_Finanziario!$H:$L,5,FALSE),VLOOKUP($M36,TT_Tabelle_Riferimento!$D$127:$H$164,5,FALSE))","v":5},{"$f":"+IFERROR(VLOOKUP(NQ$27&\"-\"&$M36&\"_new\",Ammortamento_Finanziario!$H:$L,5,FALSE),VLOOKUP($M36,TT_Tabelle_Riferimento!$D$127:$H$164,5,FALSE))","v":5},{"$f":"+IFERROR(VLOOKUP(NR$27&\"-\"&$M36&\"_new\",Ammortamento_Finanziario!$H:$L,5,FALSE),VLOOKUP($M36,TT_Tabelle_Riferimento!$D$127:$H$164,5,FALSE))","v":5},{"$f":"+IFERROR(VLOOKUP(NS$27&\"-\"&$M36&\"_new\",Ammortamento_Finanziario!$H:$L,5,FALSE),VLOOKUP($M36,TT_Tabelle_Riferimento!$D$127:$H$164,5,FALSE))","v":5},{"$f":"+IFERROR(VLOOKUP(NT$27&\"-\"&$M36&\"_new\",Ammortamento_Finanziario!$H:$L,5,FALSE),VLOOKUP($M36,TT_Tabelle_Riferimento!$D$127:$H$164,5,FALSE))","v":5},{"$f":"+IFERROR(VLOOKUP(NU$27&\"-\"&$M36&\"_new\",Ammortamento_Finanziario!$H:$L,5,FALSE),VLOOKUP($M36,TT_Tabelle_Riferimento!$D$127:$H$164,5,FALSE))","v":5},{"$f":"+IFERROR(VLOOKUP(NV$27&\"-\"&$M36&\"_new\",Ammortamento_Finanziario!$H:$L,5,FALSE),VLOOKUP($M36,TT_Tabelle_Riferimento!$D$127:$H$164,5,FALSE))","v":5},{"$f":"+IFERROR(VLOOKUP(NW$27&\"-\"&$M36&\"_new\",Ammortamento_Finanziario!$H:$L,5,FALSE),VLOOKUP($M36,TT_Tabelle_Riferimento!$D$127:$H$164,5,FALSE))","v":5},{"$f":"+IFERROR(VLOOKUP(NX$27&\"-\"&$M36&\"_new\",Ammortamento_Finanziario!$H:$L,5,FALSE),VLOOKUP($M36,TT_Tabelle_Riferimento!$D$127:$H$164,5,FALSE))","v":5},{"$f":"+IFERROR(VLOOKUP(NY$27&\"-\"&$M36&\"_new\",Ammortamento_Finanziario!$H:$L,5,FALSE),VLOOKUP($M36,TT_Tabelle_Riferimento!$D$127:$H$164,5,FALSE))","v":5},{"$f":"+IFERROR(VLOOKUP(NZ$27&\"-\"&$M36&\"_new\",Ammortamento_Finanziario!$H:$L,5,FALSE),VLOOKUP($M36,TT_Tabelle_Riferimento!$D$127:$H$164,5,FALSE))","v":5},{"$f":"+IFERROR(VLOOKUP(OA$27&\"-\"&$M36&\"_new\",Ammortamento_Finanziario!$H:$L,5,FALSE),VLOOKUP($M36,TT_Tabelle_Riferimento!$D$127:$H$164,5,FALSE))","v":5},{"$f":"+IFERROR(VLOOKUP(OB$27&\"-\"&$M36&\"_new\",Ammortamento_Finanziario!$H:$L,5,FALSE),VLOOKUP($M36,TT_Tabelle_Riferimento!$D$127:$H$164,5,FALSE))","v":5},{"$f":"+IFERROR(VLOOKUP(OC$27&\"-\"&$M36&\"_new\",Ammortamento_Finanziario!$H:$L,5,FALSE),VLOOKUP($M36,TT_Tabelle_Riferimento!$D$127:$H$164,5,FALSE))","v":5},{"$f":"+IFERROR(VLOOKUP(OD$27&\"-\"&$M36&\"_new\",Ammortamento_Finanziario!$H:$L,5,FALSE),VLOOKUP($M36,TT_Tabelle_Riferimento!$D$127:$H$164,5,FALSE))","v":5},{"$f":"+IFERROR(VLOOKUP(OE$27&\"-\"&$M36&\"_new\",Ammortamento_Finanziario!$H:$L,5,FALSE),VLOOKUP($M36,TT_Tabelle_Riferimento!$D$127:$H$164,5,FALSE))","v":5},{"$f":"+IFERROR(VLOOKUP(OF$27&\"-\"&$M36&\"_new\",Ammortamento_Finanziario!$H:$L,5,FALSE),VLOOKUP($M36,TT_Tabelle_Riferimento!$D$127:$H$164,5,FALSE))","v":5},{"$f":"+IFERROR(VLOOKUP(OG$27&\"-\"&$M36&\"_new\",Ammortamento_Finanziario!$H:$L,5,FALSE),VLOOKUP($M36,TT_Tabelle_Riferimento!$D$127:$H$164,5,FALSE))","v":5},{"$f":"+IFERROR(VLOOKUP(OH$27&\"-\"&$M36&\"_new\",Ammortamento_Finanziario!$H:$L,5,FALSE),VLOOKUP($M36,TT_Tabelle_Riferimento!$D$127:$H$164,5,FALSE))","v":5},{"$f":"+IFERROR(VLOOKUP(OI$27&\"-\"&$M36&\"_new\",Ammortamento_Finanziario!$H:$L,5,FALSE),VLOOKUP($M36,TT_Tabelle_Riferimento!$D$127:$H$164,5,FALSE))","v":5},{"$f":"+IFERROR(VLOOKUP(OJ$27&\"-\"&$M36&\"_new\",Ammortamento_Finanziario!$H:$L,5,FALSE),VLOOKUP($M36,TT_Tabelle_Riferimento!$D$127:$H$164,5,FALSE))","v":5},{"$f":"+IFERROR(VLOOKUP(OK$27&\"-\"&$M36&\"_new\",Ammortamento_Finanziario!$H:$L,5,FALSE),VLOOKUP($M36,TT_Tabelle_Riferimento!$D$127:$H$164,5,FALSE))","v":5},{"$f":"+IFERROR(VLOOKUP(OL$27&\"-\"&$M36&\"_new\",Ammortamento_Finanziario!$H:$L,5,FALSE),VLOOKUP($M36,TT_Tabelle_Riferimento!$D$127:$H$164,5,FALSE))","v":5},{"$f":"+IFERROR(VLOOKUP(OM$27&\"-\"&$M36&\"_new\",Ammortamento_Finanziario!$H:$L,5,FALSE),VLOOKUP($M36,TT_Tabelle_Riferimento!$D$127:$H$164,5,FALSE))","v":5},{"$f":"+IFERROR(VLOOKUP(ON$27&\"-\"&$M36&\"_new\",Ammortamento_Finanziario!$H:$L,5,FALSE),VLOOKUP($M36,TT_Tabelle_Riferimento!$D$127:$H$164,5,FALSE))","v":5},{"$f":"+IFERROR(VLOOKUP(OO$27&\"-\"&$M36&\"_new\",Ammortamento_Finanziario!$H:$L,5,FALSE),VLOOKUP($M36,TT_Tabelle_Riferimento!$D$127:$H$164,5,FALSE))","v":5},{"$f":"+IFERROR(VLOOKUP(OP$27&\"-\"&$M36&\"_new\",Ammortamento_Finanziario!$H:$L,5,FALSE),VLOOKUP($M36,TT_Tabelle_Riferimento!$D$127:$H$164,5,FALSE))","v":5},{"$f":"+IFERROR(VLOOKUP(OQ$27&\"-\"&$M36&\"_new\",Ammortamento_Finanziario!$H:$L,5,FALSE),VLOOKUP($M36,TT_Tabelle_Riferimento!$D$127:$H$164,5,FALSE))","v":5},{"$f":"+IFERROR(VLOOKUP(OR$27&\"-\"&$M36&\"_new\",Ammortamento_Finanziario!$H:$L,5,FALSE),VLOOKUP($M36,TT_Tabelle_Riferimento!$D$127:$H$164,5,FALSE))","v":5},{"$f":"+IFERROR(VLOOKUP(OS$27&\"-\"&$M36&\"_new\",Ammortamento_Finanziario!$H:$L,5,FALSE),VLOOKUP($M36,TT_Tabelle_Riferimento!$D$127:$H$164,5,FALSE))","v":5},{"$f":"+IFERROR(VLOOKUP(OT$27&\"-\"&$M36&\"_new\",Ammortamento_Finanziario!$H:$L,5,FALSE),VLOOKUP($M36,TT_Tabelle_Riferimento!$D$127:$H$164,5,FALSE))","v":5},{"$f":"+IFERROR(VLOOKUP(OU$27&\"-\"&$M36&\"_new\",Ammortamento_Finanziario!$H:$L,5,FALSE),VLOOKUP($M36,TT_Tabelle_Riferimento!$D$127:$H$164,5,FALSE))","v":5},{"$f":"+IFERROR(VLOOKUP(OV$27&\"-\"&$M36&\"_new\",Ammortamento_Finanziario!$H:$L,5,FALSE),VLOOKUP($M36,TT_Tabelle_Riferimento!$D$127:$H$164,5,FALSE))","v":5},{"$f":"+IFERROR(VLOOKUP(OW$27&\"-\"&$M36&\"_new\",Ammortamento_Finanziario!$H:$L,5,FALSE),VLOOKUP($M36,TT_Tabelle_Riferimento!$D$127:$H$164,5,FALSE))","v":5},{"$f":"+IFERROR(VLOOKUP(OX$27&\"-\"&$M36&\"_new\",Ammortamento_Finanziario!$H:$L,5,FALSE),VLOOKUP($M36,TT_Tabelle_Riferimento!$D$127:$H$164,5,FALSE))","v":5},{"$f":"+IFERROR(VLOOKUP(OY$27&\"-\"&$M36&\"_new\",Ammortamento_Finanziario!$H:$L,5,FALSE),VLOOKUP($M36,TT_Tabelle_Riferimento!$D$127:$H$164,5,FALSE))","v":5},{"$f":"+IFERROR(VLOOKUP(OZ$27&\"-\"&$M36&\"_new\",Ammortamento_Finanziario!$H:$L,5,FALSE),VLOOKUP($M36,TT_Tabelle_Riferimento!$D$127:$H$164,5,FALSE))","v":5},{"$f":"+IFERROR(VLOOKUP(PA$27&\"-\"&$M36&\"_new\",Ammortamento_Finanziario!$H:$L,5,FALSE),VLOOKUP($M36,TT_Tabelle_Riferimento!$D$127:$H$164,5,FALSE))","v":5},{"$f":"+IFERROR(VLOOKUP(PB$27&\"-\"&$M36&\"_new\",Ammortamento_Finanziario!$H:$L,5,FALSE),VLOOKUP($M36,TT_Tabelle_Riferimento!$D$127:$H$164,5,FALSE))","v":5},{"$f":"+IFERROR(VLOOKUP(PC$27&\"-\"&$M36&\"_new\",Ammortamento_Finanziario!$H:$L,5,FALSE),VLOOKUP($M36,TT_Tabelle_Riferimento!$D$127:$H$164,5,FALSE))","v":5},{"$f":"+IFERROR(VLOOKUP(PD$27&\"-\"&$M36&\"_new\",Ammortamento_Finanziario!$H:$L,5,FALSE),VLOOKUP($M36,TT_Tabelle_Riferimento!$D$127:$H$164,5,FALSE))","v":5},{"$f":"+IFERROR(VLOOKUP(PE$27&\"-\"&$M36&\"_new\",Ammortamento_Finanziario!$H:$L,5,FALSE),VLOOKUP($M36,TT_Tabelle_Riferimento!$D$127:$H$164,5,FALSE))","v":5},{"$f":"+IFERROR(VLOOKUP(PF$27&\"-\"&$M36&\"_new\",Ammortamento_Finanziario!$H:$L,5,FALSE),VLOOKUP($M36,TT_Tabelle_Riferimento!$D$127:$H$164,5,FALSE))","v":5},{"$f":"+IFERROR(VLOOKUP(PG$27&\"-\"&$M36&\"_new\",Ammortamento_Finanziario!$H:$L,5,FALSE),VLOOKUP($M36,TT_Tabelle_Riferimento!$D$127:$H$164,5,FALSE))","v":5},{"$f":"+IFERROR(VLOOKUP(PH$27&\"-\"&$M36&\"_new\",Ammortamento_Finanziario!$H:$L,5,FALSE),VLOOKUP($M36,TT_Tabelle_Riferimento!$D$127:$H$164,5,FALSE))","v":5},{"$f":"+IFERROR(VLOOKUP(PI$27&\"-\"&$M36&\"_new\",Ammortamento_Finanziario!$H:$L,5,FALSE),VLOOKUP($M36,TT_Tabelle_Riferimento!$D$127:$H$164,5,FALSE))","v":5},{"$f":"+IFERROR(VLOOKUP(PJ$27&\"-\"&$M36&\"_new\",Ammortamento_Finanziario!$H:$L,5,FALSE),VLOOKUP($M36,TT_Tabelle_Riferimento!$D$127:$H$164,5,FALSE))","v":5},{"$f":"+IFERROR(VLOOKUP(PK$27&\"-\"&$M36&\"_new\",Ammortamento_Finanziario!$H:$L,5,FALSE),VLOOKUP($M36,TT_Tabelle_Riferimento!$D$127:$H$164,5,FALSE))","v":5},{"$f":"+IFERROR(VLOOKUP(PL$27&\"-\"&$M36&\"_new\",Ammortamento_Finanziario!$H:$L,5,FALSE),VLOOKUP($M36,TT_Tabelle_Riferimento!$D$127:$H$164,5,FALSE))","v":5},{"$f":"+IFERROR(VLOOKUP(PM$27&\"-\"&$M36&\"_new\",Ammortamento_Finanziario!$H:$L,5,FALSE),VLOOKUP($M36,TT_Tabelle_Riferimento!$D$127:$H$164,5,FALSE))","v":5},{"$f":"+IFERROR(VLOOKUP(PN$27&\"-\"&$M36&\"_new\",Ammortamento_Finanziario!$H:$L,5,FALSE),VLOOKUP($M36,TT_Tabelle_Riferimento!$D$127:$H$164,5,FALSE))","v":5},{"$f":"+IFERROR(VLOOKUP(PO$27&\"-\"&$M36&\"_new\",Ammortamento_Finanziario!$H:$L,5,FALSE),VLOOKUP($M36,TT_Tabelle_Riferimento!$D$127:$H$164,5,FALSE))","v":5},{"$f":"+IFERROR(VLOOKUP(PP$27&\"-\"&$M36&\"_new\",Ammortamento_Finanziario!$H:$L,5,FALSE),VLOOKUP($M36,TT_Tabelle_Riferimento!$D$127:$H$164,5,FALSE))","v":5},{"$f":"+IFERROR(VLOOKUP(PQ$27&\"-\"&$M36&\"_new\",Ammortamento_Finanziario!$H:$L,5,FALSE),VLOOKUP($M36,TT_Tabelle_Riferimento!$D$127:$H$164,5,FALSE))","v":5},{"$f":"+IFERROR(VLOOKUP(PR$27&\"-\"&$M36&\"_new\",Ammortamento_Finanziario!$H:$L,5,FALSE),VLOOKUP($M36,TT_Tabelle_Riferimento!$D$127:$H$164,5,FALSE))","v":5},{"$f":"+IFERROR(VLOOKUP(PS$27&\"-\"&$M36&\"_new\",Ammortamento_Finanziario!$H:$L,5,FALSE),VLOOKUP($M36,TT_Tabelle_Riferimento!$D$127:$H$164,5,FALSE))","v":5},{"$f":"+IFERROR(VLOOKUP(PT$27&\"-\"&$M36&\"_new\",Ammortamento_Finanziario!$H:$L,5,FALSE),VLOOKUP($M36,TT_Tabelle_Riferimento!$D$127:$H$164,5,FALSE))","v":5},{"$f":"+IFERROR(VLOOKUP(PU$27&\"-\"&$M36&\"_new\",Ammortamento_Finanziario!$H:$L,5,FALSE),VLOOKUP($M36,TT_Tabelle_Riferimento!$D$127:$H$164,5,FALSE))","v":5},{"$f":"+IFERROR(VLOOKUP(PV$27&\"-\"&$M36&\"_new\",Ammortamento_Finanziario!$H:$L,5,FALSE),VLOOKUP($M36,TT_Tabelle_Riferimento!$D$127:$H$164,5,FALSE))","v":5},{"$f":"+IFERROR(VLOOKUP(PW$27&\"-\"&$M36&\"_new\",Ammortamento_Finanziario!$H:$L,5,FALSE),VLOOKUP($M36,TT_Tabelle_Riferimento!$D$127:$H$164,5,FALSE))","v":5},{"$f":"+IFERROR(VLOOKUP(PX$27&\"-\"&$M36&\"_new\",Ammortamento_Finanziario!$H:$L,5,FALSE),VLOOKUP($M36,TT_Tabelle_Riferimento!$D$127:$H$164,5,FALSE))","v":5},{"$f":"+IFERROR(VLOOKUP(PY$27&\"-\"&$M36&\"_new\",Ammortamento_Finanziario!$H:$L,5,FALSE),VLOOKUP($M36,TT_Tabelle_Riferimento!$D$127:$H$164,5,FALSE))","v":5},{"$f":"+IFERROR(VLOOKUP(PZ$27&\"-\"&$M36&\"_new\",Ammortamento_Finanziario!$H:$L,5,FALSE),VLOOKUP($M36,TT_Tabelle_Riferimento!$D$127:$H$164,5,FALSE))","v":5},{"$f":"+IFERROR(VLOOKUP(QA$27&\"-\"&$M36&\"_new\",Ammortamento_Finanziario!$H:$L,5,FALSE),VLOOKUP($M36,TT_Tabelle_Riferimento!$D$127:$H$164,5,FALSE))","v":5},{"$f":"+IFERROR(VLOOKUP(QB$27&\"-\"&$M36&\"_new\",Ammortamento_Finanziario!$H:$L,5,FALSE),VLOOKUP($M36,TT_Tabelle_Riferimento!$D$127:$H$164,5,FALSE))","v":5},{"$f":"+IFERROR(VLOOKUP(QC$27&\"-\"&$M36&\"_new\",Ammortamento_Finanziario!$H:$L,5,FALSE),VLOOKUP($M36,TT_Tabelle_Riferimento!$D$127:$H$164,5,FALSE))","v":5},{"$f":"+IFERROR(VLOOKUP(QD$27&\"-\"&$M36&\"_new\",Ammortamento_Finanziario!$H:$L,5,FALSE),VLOOKUP($M36,TT_Tabelle_Riferimento!$D$127:$H$164,5,FALSE))","v":5},{"$f":"+IFERROR(VLOOKUP(QE$27&\"-\"&$M36&\"_new\",Ammortamento_Finanziario!$H:$L,5,FALSE),VLOOKUP($M36,TT_Tabelle_Riferimento!$D$127:$H$164,5,FALSE))","v":5},{"$f":"+IFERROR(VLOOKUP(QF$27&\"-\"&$M36&\"_new\",Ammortamento_Finanziario!$H:$L,5,FALSE),VLOOKUP($M36,TT_Tabelle_Riferimento!$D$127:$H$164,5,FALSE))","v":5},{"$f":"+IFERROR(VLOOKUP(QG$27&\"-\"&$M36&\"_new\",Ammortamento_Finanziario!$H:$L,5,FALSE),VLOOKUP($M36,TT_Tabelle_Riferimento!$D$127:$H$164,5,FALSE))","v":5},{"$f":"+IFERROR(VLOOKUP(QH$27&\"-\"&$M36&\"_new\",Ammortamento_Finanziario!$H:$L,5,FALSE),VLOOKUP($M36,TT_Tabelle_Riferimento!$D$127:$H$164,5,FALSE))","v":5},{"$f":"+IFERROR(VLOOKUP(QI$27&\"-\"&$M36&\"_new\",Ammortamento_Finanziario!$H:$L,5,FALSE),VLOOKUP($M36,TT_Tabelle_Riferimento!$D$127:$H$164,5,FALSE))","v":5},{"$f":"+IFERROR(VLOOKUP(QJ$27&\"-\"&$M36&\"_new\",Ammortamento_Finanziario!$H:$L,5,FALSE),VLOOKUP($M36,TT_Tabelle_Riferimento!$D$127:$H$164,5,FALSE))","v":5},{"$f":"+IFERROR(VLOOKUP(QK$27&\"-\"&$M36&\"_new\",Ammortamento_Finanziario!$H:$L,5,FALSE),VLOOKUP($M36,TT_Tabelle_Riferimento!$D$127:$H$164,5,FALSE))","v":5},{"$f":"+IFERROR(VLOOKUP(QL$27&\"-\"&$M36&\"_new\",Ammortamento_Finanziario!$H:$L,5,FALSE),VLOOKUP($M36,TT_Tabelle_Riferimento!$D$127:$H$164,5,FALSE))","v":5},{"$f":"+IFERROR(VLOOKUP(QM$27&\"-\"&$M36&\"_new\",Ammortamento_Finanziario!$H:$L,5,FALSE),VLOOKUP($M36,TT_Tabelle_Riferimento!$D$127:$H$164,5,FALSE))","v":5},{"$f":"+IFERROR(VLOOKUP(QN$27&\"-\"&$M36&\"_new\",Ammortamento_Finanziario!$H:$L,5,FALSE),VLOOKUP($M36,TT_Tabelle_Riferimento!$D$127:$H$164,5,FALSE))","v":5},{"$f":"+IFERROR(VLOOKUP(QO$27&\"-\"&$M36&\"_new\",Ammortamento_Finanziario!$H:$L,5,FALSE),VLOOKUP($M36,TT_Tabelle_Riferimento!$D$127:$H$164,5,FALSE))","v":5},{"$f":"+IFERROR(VLOOKUP(QP$27&\"-\"&$M36&\"_new\",Ammortamento_Finanziario!$H:$L,5,FALSE),VLOOKUP($M36,TT_Tabelle_Riferimento!$D$127:$H$164,5,FALSE))","v":5},{"$f":"+IFERROR(VLOOKUP(QQ$27&\"-\"&$M36&\"_new\",Ammortamento_Finanziario!$H:$L,5,FALSE),VLOOKUP($M36,TT_Tabelle_Riferimento!$D$127:$H$164,5,FALSE))","v":5},{"$f":"+IFERROR(VLOOKUP(QR$27&\"-\"&$M36&\"_new\",Ammortamento_Finanziario!$H:$L,5,FALSE),VLOOKUP($M36,TT_Tabelle_Riferimento!$D$127:$H$164,5,FALSE))","v":5},{"$f":"+IFERROR(VLOOKUP(QS$27&\"-\"&$M36&\"_new\",Ammortamento_Finanziario!$H:$L,5,FALSE),VLOOKUP($M36,TT_Tabelle_Riferimento!$D$127:$H$164,5,FALSE))","v":5},{"$f":"+IFERROR(VLOOKUP(QT$27&\"-\"&$M36&\"_new\",Ammortamento_Finanziario!$H:$L,5,FALSE),VLOOKUP($M36,TT_Tabelle_Riferimento!$D$127:$H$164,5,FALSE))","v":5},{"$f":"+IFERROR(VLOOKUP(QU$27&\"-\"&$M36&\"_new\",Ammortamento_Finanziario!$H:$L,5,FALSE),VLOOKUP($M36,TT_Tabelle_Riferimento!$D$127:$H$164,5,FALSE))","v":5},{"$f":"+IFERROR(VLOOKUP(QV$27&\"-\"&$M36&\"_new\",Ammortamento_Finanziario!$H:$L,5,FALSE),VLOOKUP($M36,TT_Tabelle_Riferimento!$D$127:$H$164,5,FALSE))","v":5},{"$f":"+IFERROR(VLOOKUP(QW$27&\"-\"&$M36&\"_new\",Ammortamento_Finanziario!$H:$L,5,FALSE),VLOOKUP($M36,TT_Tabelle_Riferimento!$D$127:$H$164,5,FALSE))","v":5},{"$f":"+IFERROR(VLOOKUP(QX$27&\"-\"&$M36&\"_new\",Ammortamento_Finanziario!$H:$L,5,FALSE),VLOOKUP($M36,TT_Tabelle_Riferimento!$D$127:$H$164,5,FALSE))","v":5},{"$f":"+IFERROR(VLOOKUP(QY$27&\"-\"&$M36&\"_new\",Ammortamento_Finanziario!$H:$L,5,FALSE),VLOOKUP($M36,TT_Tabelle_Riferimento!$D$127:$H$164,5,FALSE))","v":5},{"$f":"+IFERROR(VLOOKUP(QZ$27&\"-\"&$M36&\"_new\",Ammortamento_Finanziario!$H:$L,5,FALSE),VLOOKUP($M36,TT_Tabelle_Riferimento!$D$127:$H$164,5,FALSE))","v":5},{"$f":"+IFERROR(VLOOKUP(RA$27&\"-\"&$M36&\"_new\",Ammortamento_Finanziario!$H:$L,5,FALSE),VLOOKUP($M36,TT_Tabelle_Riferimento!$D$127:$H$164,5,FALSE))","v":5},{"$f":"+IFERROR(VLOOKUP(RB$27&\"-\"&$M36&\"_new\",Ammortamento_Finanziario!$H:$L,5,FALSE),VLOOKUP($M36,TT_Tabelle_Riferimento!$D$127:$H$164,5,FALSE))","v":5},{"$f":"+IFERROR(VLOOKUP(RC$27&\"-\"&$M36&\"_new\",Ammortamento_Finanziario!$H:$L,5,FALSE),VLOOKUP($M36,TT_Tabelle_Riferimento!$D$127:$H$164,5,FALSE))","v":5},{"$f":"+IFERROR(VLOOKUP(RD$27&\"-\"&$M36&\"_new\",Ammortamento_Finanziario!$H:$L,5,FALSE),VLOOKUP($M36,TT_Tabelle_Riferimento!$D$127:$H$164,5,FALSE))","v":5},{"$f":"+IFERROR(VLOOKUP(RE$27&\"-\"&$M36&\"_new\",Ammortamento_Finanziario!$H:$L,5,FALSE),VLOOKUP($M36,TT_Tabelle_Riferimento!$D$127:$H$164,5,FALSE))","v":5},{"$f":"+IFERROR(VLOOKUP(RF$27&\"-\"&$M36&\"_new\",Ammortamento_Finanziario!$H:$L,5,FALSE),VLOOKUP($M36,TT_Tabelle_Riferimento!$D$127:$H$164,5,FALSE))","v":5},{"$f":"+IFERROR(VLOOKUP(RG$27&\"-\"&$M36&\"_new\",Ammortamento_Finanziario!$H:$L,5,FALSE),VLOOKUP($M36,TT_Tabelle_Riferimento!$D$127:$H$164,5,FALSE))","v":5},{"$f":"+IFERROR(VLOOKUP(RH$27&\"-\"&$M36&\"_new\",Ammortamento_Finanziario!$H:$L,5,FALSE),VLOOKUP($M36,TT_Tabelle_Riferimento!$D$127:$H$164,5,FALSE))","v":5},{"$f":"+IFERROR(VLOOKUP(RI$27&\"-\"&$M36&\"_new\",Ammortamento_Finanziario!$H:$L,5,FALSE),VLOOKUP($M36,TT_Tabelle_Riferimento!$D$127:$H$164,5,FALSE))","v":5},{"$f":"+IFERROR(VLOOKUP(RJ$27&\"-\"&$M36&\"_new\",Ammortamento_Finanziario!$H:$L,5,FALSE),VLOOKUP($M36,TT_Tabelle_Riferimento!$D$127:$H$164,5,FALSE))","v":5},{"$f":"+IFERROR(VLOOKUP(RK$27&\"-\"&$M36&\"_new\",Ammortamento_Finanziario!$H:$L,5,FALSE),VLOOKUP($M36,TT_Tabelle_Riferimento!$D$127:$H$164,5,FALSE))","v":5},{"$f":"+IFERROR(VLOOKUP(RL$27&\"-\"&$M36&\"_new\",Ammortamento_Finanziario!$H:$L,5,FALSE),VLOOKUP($M36,TT_Tabelle_Riferimento!$D$127:$H$164,5,FALSE))","v":5},{"$f":"+IFERROR(VLOOKUP(RM$27&\"-\"&$M36&\"_new\",Ammortamento_Finanziario!$H:$L,5,FALSE),VLOOKUP($M36,TT_Tabelle_Riferimento!$D$127:$H$164,5,FALSE))","v":5},{"$f":"+IFERROR(VLOOKUP(RN$27&\"-\"&$M36&\"_new\",Ammortamento_Finanziario!$H:$L,5,FALSE),VLOOKUP($M36,TT_Tabelle_Riferimento!$D$127:$H$164,5,FALSE))","v":5},{"$f":"+IFERROR(VLOOKUP(RO$27&\"-\"&$M36&\"_new\",Ammortamento_Finanziario!$H:$L,5,FALSE),VLOOKUP($M36,TT_Tabelle_Riferimento!$D$127:$H$164,5,FALSE))","v":5},{"$f":"+IFERROR(VLOOKUP(RP$27&\"-\"&$M36&\"_new\",Ammortamento_Finanziario!$H:$L,5,FALSE),VLOOKUP($M36,TT_Tabelle_Riferimento!$D$127:$H$164,5,FALSE))","v":5},{"$f":"+IFERROR(VLOOKUP(RQ$27&\"-\"&$M36&\"_new\",Ammortamento_Finanziario!$H:$L,5,FALSE),VLOOKUP($M36,TT_Tabelle_Riferimento!$D$127:$H$164,5,FALSE))","v":5},{"$f":"+IFERROR(VLOOKUP(RR$27&\"-\"&$M36&\"_new\",Ammortamento_Finanziario!$H:$L,5,FALSE),VLOOKUP($M36,TT_Tabelle_Riferimento!$D$127:$H$164,5,FALSE))","v":5},{"$f":"+IFERROR(VLOOKUP(RS$27&\"-\"&$M36&\"_new\",Ammortamento_Finanziario!$H:$L,5,FALSE),VLOOKUP($M36,TT_Tabelle_Riferimento!$D$127:$H$164,5,FALSE))","v":5},{"$f":"+IFERROR(VLOOKUP(RT$27&\"-\"&$M36&\"_new\",Ammortamento_Finanziario!$H:$L,5,FALSE),VLOOKUP($M36,TT_Tabelle_Riferimento!$D$127:$H$164,5,FALSE))","v":5},{"$f":"+IFERROR(VLOOKUP(RU$27&\"-\"&$M36&\"_new\",Ammortamento_Finanziario!$H:$L,5,FALSE),VLOOKUP($M36,TT_Tabelle_Riferimento!$D$127:$H$164,5,FALSE))","v":5},{"$f":"+IFERROR(VLOOKUP(RV$27&\"-\"&$M36&\"_new\",Ammortamento_Finanziario!$H:$L,5,FALSE),VLOOKUP($M36,TT_Tabelle_Riferimento!$D$127:$H$164,5,FALSE))","v":5}]
[null,null,null,"AMMcfp",{"$f":"+SUMIF(IMN_gestore!$E:$E,2022,IMN_gestore!$X:$X)","v":0},{"$f":"SUMIF(IMN_gestore!$E:$E,2023,IMN_gestore!$AI:$AI)","v":0},{"$f":"+SUMIF(IMN_gestore!$E:$E,2024,IMN_gestore!$AT:$AT)","v":0},{"$f":"SUMIF(IMN_gestore!$E:$E,2025,IMN_gestore!$BE:$BE)","v":0},{"$f":"SUMIF(IMN_gestore!$E:$E,2026,IMN_gestore!$BP:$BP)","v":0},{"$f":"SUMIF(IMN_gestore!$E:$E,2027,IMN_gestore!$CA:$CA)","v":0},null,null,10,0,0,0,0,0,0,0,0,0,0,0,0,0,0,0,0,0,0,0,0,0,0,0,0,0,0,0,0,0,0,0,0,0,0,0,0,0,0,0,0,0,0,0,0,0,0,0,0,0,0,0,0,0,0,0,0,0,0,0,0,0,0,0,0,0,0,0,0,0,0,0,0,0,0,0,0,0,0,0,0,0,0,0,0,0,0,0,0,0,0,0,0,0,0,0,0,0,0,0,0,0,0,0,0,0,0,0,0,0,0,0,0,0,0,0,0,0,0,0,0,0,0,0,0,0,0,0,0,0,0,0,0,0,0,0,0,0,0,0,0,0,0,0,0,0,0,0,0,0,0,0,0,0,0,0,0,0,0,0,0,0,0,0,0,0,0,0,0,0,0,0,0,0,0,0,0,0,0,0,0,0,0,0,0,0,0,0,0,0,0,0,0,0,0,0,0,0,0,0,0,0,0,0,0,0,0,0,0,0,0,0,0,0,0,0,0,0,0,0,0,0,0,0,0,0,0,0,0,0,0,0,0,0,0,0,0,0,0,0,0,0,0,0,0,0,0,0,0,0,0,0,0,0,0,0,0,0,0,0,0,0,0,0,0,0,0,0,0,0,0,0,0,0,0,0,0,0,0,0,0,0,0,0,0,0,0,0,0,0,{"$f":"+IFERROR(VLOOKUP(KQ$27&\"-\"&$M37&\"_new\",Ammortamento_Finanziario!$H:$L,5,FALSE),VLOOKUP($M37,TT_Tabelle_Riferimento!$D$127:$H$164,5,FALSE))","v":8},{"$f":"+IFERROR(VLOOKUP(KR$27&\"-\"&$M37&\"_new\",Ammortamento_Finanziario!$H:$L,5,FALSE),VLOOKUP($M37,TT_Tabelle_Riferimento!$D$127:$H$164,5,FALSE))","v":8},{"$f":"+IFERROR(VLOOKUP(KS$27&\"-\"&$M37&\"_new\",Ammortamento_Finanziario!$H:$L,5,FALSE),VLOOKUP($M37,TT_Tabelle_Riferimento!$D$127:$H$164,5,FALSE))","v":8},{"$f":"+IFERROR(VLOOKUP(KT$27&\"-\"&$M37&\"_new\",Ammortamento_Finanziario!$H:$L,5,FALSE),VLOOKUP($M37,TT_Tabelle_Riferimento!$D$127:$H$164,5,FALSE))","v":8},{"$f":"+IFERROR(VLOOKUP(KU$27&\"-\"&$M37&\"_new\",Ammortamento_Finanziario!$H:$L,5,FALSE),VLOOKUP($M37,TT_Tabelle_Riferimento!$D$127:$H$164,5,FALSE))","v":8},{"$f":"+IFERROR(VLOOKUP(KV$27&\"-\"&$M37&\"_new\",Ammortamento_Finanziario!$H:$L,5,FALSE),VLOOKUP($M37,TT_Tabelle_Riferimento!$D$127:$H$164,5,FALSE))","v":8},{"$f":"+IFERROR(VLOOKUP(KW$27&\"-\"&$M37&\"_new\",Ammortamento_Finanziario!$H:$L,5,FALSE),VLOOKUP($M37,TT_Tabelle_Riferimento!$D$127:$H$164,5,FALSE))","v":8},{"$f":"+IFERROR(VLOOKUP(KX$27&\"-\"&$M37&\"_new\",Ammortamento_Finanziario!$H:$L,5,FALSE),VLOOKUP($M37,TT_Tabelle_Riferimento!$D$127:$H$164,5,FALSE))","v":8},{"$f":"+IFERROR(VLOOKUP(KY$27&\"-\"&$M37&\"_new\",Ammortamento_Finanziario!$H:$L,5,FALSE),VLOOKUP($M37,TT_Tabelle_Riferimento!$D$127:$H$164,5,FALSE))","v":8},{"$f":"+IFERROR(VLOOKUP(KZ$27&\"-\"&$M37&\"_new\",Ammortamento_Finanziario!$H:$L,5,FALSE),VLOOKUP($M37,TT_Tabelle_Riferimento!$D$127:$H$164,5,FALSE))","v":8},{"$f":"+IFERROR(VLOOKUP(LA$27&\"-\"&$M37&\"_new\",Ammortamento_Finanziario!$H:$L,5,FALSE),VLOOKUP($M37,TT_Tabelle_Riferimento!$D$127:$H$164,5,FALSE))","v":8},{"$f":"+IFERROR(VLOOKUP(LB$27&\"-\"&$M37&\"_new\",Ammortamento_Finanziario!$H:$L,5,FALSE),VLOOKUP($M37,TT_Tabelle_Riferimento!$D$127:$H$164,5,FALSE))","v":8},{"$f":"+IFERROR(VLOOKUP(LC$27&\"-\"&$M37&\"_new\",Ammortamento_Finanziario!$H:$L,5,FALSE),VLOOKUP($M37,TT_Tabelle_Riferimento!$D$127:$H$164,5,FALSE))","v":8},{"$f":"+IFERROR(VLOOKUP(LD$27&\"-\"&$M37&\"_new\",Ammortamento_Finanziario!$H:$L,5,FALSE),VLOOKUP($M37,TT_Tabelle_Riferimento!$D$127:$H$164,5,FALSE))","v":8},{"$f":"+IFERROR(VLOOKUP(LE$27&\"-\"&$M37&\"_new\",Ammortamento_Finanziario!$H:$L,5,FALSE),VLOOKUP($M37,TT_Tabelle_Riferimento!$D$127:$H$164,5,FALSE))","v":8},{"$f":"+IFERROR(VLOOKUP(LF$27&\"-\"&$M37&\"_new\",Ammortamento_Finanziario!$H:$L,5,FALSE),VLOOKUP($M37,TT_Tabelle_Riferimento!$D$127:$H$164,5,FALSE))","v":8},{"$f":"+IFERROR(VLOOKUP(LG$27&\"-\"&$M37&\"_new\",Ammortamento_Finanziario!$H:$L,5,FALSE),VLOOKUP($M37,TT_Tabelle_Riferimento!$D$127:$H$164,5,FALSE))","v":8},{"$f":"+IFERROR(VLOOKUP(LH$27&\"-\"&$M37&\"_new\",Ammortamento_Finanziario!$H:$L,5,FALSE),VLOOKUP($M37,TT_Tabelle_Riferimento!$D$127:$H$164,5,FALSE))","v":8},{"$f":"+IFERROR(VLOOKUP(LI$27&\"-\"&$M37&\"_new\",Ammortamento_Finanziario!$H:$L,5,FALSE),VLOOKUP($M37,TT_Tabelle_Riferimento!$D$127:$H$164,5,FALSE))","v":8},{"$f":"+IFERROR(VLOOKUP(LJ$27&\"-\"&$M37&\"_new\",Ammortamento_Finanziario!$H:$L,5,FALSE),VLOOKUP($M37,TT_Tabelle_Riferimento!$D$127:$H$164,5,FALSE))","v":8},{"$f":"+IFERROR(VLOOKUP(LK$27&\"-\"&$M37&\"_new\",Ammortamento_Finanziario!$H:$L,5,FALSE),VLOOKUP($M37,TT_Tabelle_Riferimento!$D$127:$H$164,5,FALSE))","v":8},{"$f":"+IFERROR(VLOOKUP(LL$27&\"-\"&$M37&\"_new\",Ammortamento_Finanziario!$H:$L,5,FALSE),VLOOKUP($M37,TT_Tabelle_Riferimento!$D$127:$H$164,5,FALSE))","v":8},{"$f":"+IFERROR(VLOOKUP(LM$27&\"-\"&$M37&\"_new\",Ammortamento_Finanziario!$H:$L,5,FALSE),VLOOKUP($M37,TT_Tabelle_Riferimento!$D$127:$H$164,5,FALSE))","v":8},{"$f":"+IFERROR(VLOOKUP(LN$27&\"-\"&$M37&\"_new\",Ammortamento_Finanziario!$H:$L,5,FALSE),VLOOKUP($M37,TT_Tabelle_Riferimento!$D$127:$H$164,5,FALSE))","v":8},{"$f":"+IFERROR(VLOOKUP(LO$27&\"-\"&$M37&\"_new\",Ammortamento_Finanziario!$H:$L,5,FALSE),VLOOKUP($M37,TT_Tabelle_Riferimento!$D$127:$H$164,5,FALSE))","v":8},{"$f":"+IFERROR(VLOOKUP(LP$27&\"-\"&$M37&\"_new\",Ammortamento_Finanziario!$H:$L,5,FALSE),VLOOKUP($M37,TT_Tabelle_Riferimento!$D$127:$H$164,5,FALSE))","v":8},{"$f":"+IFERROR(VLOOKUP(LQ$27&\"-\"&$M37&\"_new\",Ammortamento_Finanziario!$H:$L,5,FALSE),VLOOKUP($M37,TT_Tabelle_Riferimento!$D$127:$H$164,5,FALSE))","v":8},{"$f":"+IFERROR(VLOOKUP(LR$27&\"-\"&$M37&\"_new\",Ammortamento_Finanziario!$H:$L,5,FALSE),VLOOKUP($M37,TT_Tabelle_Riferimento!$D$127:$H$164,5,FALSE))","v":8},{"$f":"+IFERROR(VLOOKUP(LS$27&\"-\"&$M37&\"_new\",Ammortamento_Finanziario!$H:$L,5,FALSE),VLOOKUP($M37,TT_Tabelle_Riferimento!$D$127:$H$164,5,FALSE))","v":8},{"$f":"+IFERROR(VLOOKUP(LT$27&\"-\"&$M37&\"_new\",Ammortamento_Finanziario!$H:$L,5,FALSE),VLOOKUP($M37,TT_Tabelle_Riferimento!$D$127:$H$164,5,FALSE))","v":8},{"$f":"+IFERROR(VLOOKUP(LU$27&\"-\"&$M37&\"_new\",Ammortamento_Finanziario!$H:$L,5,FALSE),VLOOKUP($M37,TT_Tabelle_Riferimento!$D$127:$H$164,5,FALSE))","v":8},{"$f":"+IFERROR(VLOOKUP(LV$27&\"-\"&$M37&\"_new\",Ammortamento_Finanziario!$H:$L,5,FALSE),VLOOKUP($M37,TT_Tabelle_Riferimento!$D$127:$H$164,5,FALSE))","v":8},{"$f":"+IFERROR(VLOOKUP(LW$27&\"-\"&$M37&\"_new\",Ammortamento_Finanziario!$H:$L,5,FALSE),VLOOKUP($M37,TT_Tabelle_Riferimento!$D$127:$H$164,5,FALSE))","v":8},{"$f":"+IFERROR(VLOOKUP(LX$27&\"-\"&$M37&\"_new\",Ammortamento_Finanziario!$H:$L,5,FALSE),VLOOKUP($M37,TT_Tabelle_Riferimento!$D$127:$H$164,5,FALSE))","v":8},{"$f":"+IFERROR(VLOOKUP(LY$27&\"-\"&$M37&\"_new\",Ammortamento_Finanziario!$H:$L,5,FALSE),VLOOKUP($M37,TT_Tabelle_Riferimento!$D$127:$H$164,5,FALSE))","v":8},{"$f":"+IFERROR(VLOOKUP(LZ$27&\"-\"&$M37&\"_new\",Ammortamento_Finanziario!$H:$L,5,FALSE),VLOOKUP($M37,TT_Tabelle_Riferimento!$D$127:$H$164,5,FALSE))","v":8},{"$f":"+IFERROR(VLOOKUP(MA$27&\"-\"&$M37&\"_new\",Ammortamento_Finanziario!$H:$L,5,FALSE),VLOOKUP($M37,TT_Tabelle_Riferimento!$D$127:$H$164,5,FALSE))","v":8},{"$f":"+IFERROR(VLOOKUP(MB$27&\"-\"&$M37&\"_new\",Ammortamento_Finanziario!$H:$L,5,FALSE),VLOOKUP($M37,TT_Tabelle_Riferimento!$D$127:$H$164,5,FALSE))","v":8},{"$f":"+IFERROR(VLOOKUP(MC$27&\"-\"&$M37&\"_new\",Ammortamento_Finanziario!$H:$L,5,FALSE),VLOOKUP($M37,TT_Tabelle_Riferimento!$D$127:$H$164,5,FALSE))","v":8},{"$f":"+IFERROR(VLOOKUP(MD$27&\"-\"&$M37&\"_new\",Ammortamento_Finanziario!$H:$L,5,FALSE),VLOOKUP($M37,TT_Tabelle_Riferimento!$D$127:$H$164,5,FALSE))","v":8},{"$f":"+IFERROR(VLOOKUP(ME$27&\"-\"&$M37&\"_new\",Ammortamento_Finanziario!$H:$L,5,FALSE),VLOOKUP($M37,TT_Tabelle_Riferimento!$D$127:$H$164,5,FALSE))","v":8},{"$f":"+IFERROR(VLOOKUP(MF$27&\"-\"&$M37&\"_new\",Ammortamento_Finanziario!$H:$L,5,FALSE),VLOOKUP($M37,TT_Tabelle_Riferimento!$D$127:$H$164,5,FALSE))","v":8},{"$f":"+IFERROR(VLOOKUP(MG$27&\"-\"&$M37&\"_new\",Ammortamento_Finanziario!$H:$L,5,FALSE),VLOOKUP($M37,TT_Tabelle_Riferimento!$D$127:$H$164,5,FALSE))","v":8},{"$f":"+IFERROR(VLOOKUP(MH$27&\"-\"&$M37&\"_new\",Ammortamento_Finanziario!$H:$L,5,FALSE),VLOOKUP($M37,TT_Tabelle_Riferimento!$D$127:$H$164,5,FALSE))","v":8},{"$f":"+IFERROR(VLOOKUP(MI$27&\"-\"&$M37&\"_new\",Ammortamento_Finanziario!$H:$L,5,FALSE),VLOOKUP($M37,TT_Tabelle_Riferimento!$D$127:$H$164,5,FALSE))","v":8},{"$f":"+IFERROR(VLOOKUP(MJ$27&\"-\"&$M37&\"_new\",Ammortamento_Finanziario!$H:$L,5,FALSE),VLOOKUP($M37,TT_Tabelle_Riferimento!$D$127:$H$164,5,FALSE))","v":8},{"$f":"+IFERROR(VLOOKUP(MK$27&\"-\"&$M37&\"_new\",Ammortamento_Finanziario!$H:$L,5,FALSE),VLOOKUP($M37,TT_Tabelle_Riferimento!$D$127:$H$164,5,FALSE))","v":8},{"$f":"+IFERROR(VLOOKUP(ML$27&\"-\"&$M37&\"_new\",Ammortamento_Finanziario!$H:$L,5,FALSE),VLOOKUP($M37,TT_Tabelle_Riferimento!$D$127:$H$164,5,FALSE))","v":8},{"$f":"+IFERROR(VLOOKUP(MM$27&\"-\"&$M37&\"_new\",Ammortamento_Finanziario!$H:$L,5,FALSE),VLOOKUP($M37,TT_Tabelle_Riferimento!$D$127:$H$164,5,FALSE))","v":8},{"$f":"+IFERROR(VLOOKUP(MN$27&\"-\"&$M37&\"_new\",Ammortamento_Finanziario!$H:$L,5,FALSE),VLOOKUP($M37,TT_Tabelle_Riferimento!$D$127:$H$164,5,FALSE))","v":8},{"$f":"+IFERROR(VLOOKUP(MO$27&\"-\"&$M37&\"_new\",Ammortamento_Finanziario!$H:$L,5,FALSE),VLOOKUP($M37,TT_Tabelle_Riferimento!$D$127:$H$164,5,FALSE))","v":8},{"$f":"+IFERROR(VLOOKUP(MP$27&\"-\"&$M37&\"_new\",Ammortamento_Finanziario!$H:$L,5,FALSE),VLOOKUP($M37,TT_Tabelle_Riferimento!$D$127:$H$164,5,FALSE))","v":8},{"$f":"+IFERROR(VLOOKUP(MQ$27&\"-\"&$M37&\"_new\",Ammortamento_Finanziario!$H:$L,5,FALSE),VLOOKUP($M37,TT_Tabelle_Riferimento!$D$127:$H$164,5,FALSE))","v":8},{"$f":"+IFERROR(VLOOKUP(MR$27&\"-\"&$M37&\"_new\",Ammortamento_Finanziario!$H:$L,5,FALSE),VLOOKUP($M37,TT_Tabelle_Riferimento!$D$127:$H$164,5,FALSE))","v":8},{"$f":"+IFERROR(VLOOKUP(MS$27&\"-\"&$M37&\"_new\",Ammortamento_Finanziario!$H:$L,5,FALSE),VLOOKUP($M37,TT_Tabelle_Riferimento!$D$127:$H$164,5,FALSE))","v":8},{"$f":"+IFERROR(VLOOKUP(MT$27&\"-\"&$M37&\"_new\",Ammortamento_Finanziario!$H:$L,5,FALSE),VLOOKUP($M37,TT_Tabelle_Riferimento!$D$127:$H$164,5,FALSE))","v":8},{"$f":"+IFERROR(VLOOKUP(MU$27&\"-\"&$M37&\"_new\",Ammortamento_Finanziario!$H:$L,5,FALSE),VLOOKUP($M37,TT_Tabelle_Riferimento!$D$127:$H$164,5,FALSE))","v":8},{"$f":"+IFERROR(VLOOKUP(MV$27&\"-\"&$M37&\"_new\",Ammortamento_Finanziario!$H:$L,5,FALSE),VLOOKUP($M37,TT_Tabelle_Riferimento!$D$127:$H$164,5,FALSE))","v":8},{"$f":"+IFERROR(VLOOKUP(MW$27&\"-\"&$M37&\"_new\",Ammortamento_Finanziario!$H:$L,5,FALSE),VLOOKUP($M37,TT_Tabelle_Riferimento!$D$127:$H$164,5,FALSE))","v":8},{"$f":"+IFERROR(VLOOKUP(MX$27&\"-\"&$M37&\"_new\",Ammortamento_Finanziario!$H:$L,5,FALSE),VLOOKUP($M37,TT_Tabelle_Riferimento!$D$127:$H$164,5,FALSE))","v":8},{"$f":"+IFERROR(VLOOKUP(MY$27&\"-\"&$M37&\"_new\",Ammortamento_Finanziario!$H:$L,5,FALSE),VLOOKUP($M37,TT_Tabelle_Riferimento!$D$127:$H$164,5,FALSE))","v":8},{"$f":"+IFERROR(VLOOKUP(MZ$27&\"-\"&$M37&\"_new\",Ammortamento_Finanziario!$H:$L,5,FALSE),VLOOKUP($M37,TT_Tabelle_Riferimento!$D$127:$H$164,5,FALSE))","v":8},{"$f":"+IFERROR(VLOOKUP(NA$27&\"-\"&$M37&\"_new\",Ammortamento_Finanziario!$H:$L,5,FALSE),VLOOKUP($M37,TT_Tabelle_Riferimento!$D$127:$H$164,5,FALSE))","v":8},{"$f":"+IFERROR(VLOOKUP(NB$27&\"-\"&$M37&\"_new\",Ammortamento_Finanziario!$H:$L,5,FALSE),VLOOKUP($M37,TT_Tabelle_Riferimento!$D$127:$H$164,5,FALSE))","v":8},{"$f":"+IFERROR(VLOOKUP(NC$27&\"-\"&$M37&\"_new\",Ammortamento_Finanziario!$H:$L,5,FALSE),VLOOKUP($M37,TT_Tabelle_Riferimento!$D$127:$H$164,5,FALSE))","v":8},{"$f":"+IFERROR(VLOOKUP(ND$27&\"-\"&$M37&\"_new\",Ammortamento_Finanziario!$H:$L,5,FALSE),VLOOKUP($M37,TT_Tabelle_Riferimento!$D$127:$H$164,5,FALSE))","v":8},{"$f":"+IFERROR(VLOOKUP(NE$27&\"-\"&$M37&\"_new\",Ammortamento_Finanziario!$H:$L,5,FALSE),VLOOKUP($M37,TT_Tabelle_Riferimento!$D$127:$H$164,5,FALSE))","v":8},{"$f":"+IFERROR(VLOOKUP(NF$27&\"-\"&$M37&\"_new\",Ammortamento_Finanziario!$H:$L,5,FALSE),VLOOKUP($M37,TT_Tabelle_Riferimento!$D$127:$H$164,5,FALSE))","v":8},{"$f":"+IFERROR(VLOOKUP(NG$27&\"-\"&$M37&\"_new\",Ammortamento_Finanziario!$H:$L,5,FALSE),VLOOKUP($M37,TT_Tabelle_Riferimento!$D$127:$H$164,5,FALSE))","v":8},{"$f":"+IFERROR(VLOOKUP(NH$27&\"-\"&$M37&\"_new\",Ammortamento_Finanziario!$H:$L,5,FALSE),VLOOKUP($M37,TT_Tabelle_Riferimento!$D$127:$H$164,5,FALSE))","v":8},{"$f":"+IFERROR(VLOOKUP(NI$27&\"-\"&$M37&\"_new\",Ammortamento_Finanziario!$H:$L,5,FALSE),VLOOKUP($M37,TT_Tabelle_Riferimento!$D$127:$H$164,5,FALSE))","v":8},{"$f":"+IFERROR(VLOOKUP(NJ$27&\"-\"&$M37&\"_new\",Ammortamento_Finanziario!$H:$L,5,FALSE),VLOOKUP($M37,TT_Tabelle_Riferimento!$D$127:$H$164,5,FALSE))","v":8},{"$f":"+IFERROR(VLOOKUP(NK$27&\"-\"&$M37&\"_new\",Ammortamento_Finanziario!$H:$L,5,FALSE),VLOOKUP($M37,TT_Tabelle_Riferimento!$D$127:$H$164,5,FALSE))","v":8},{"$f":"+IFERROR(VLOOKUP(NL$27&\"-\"&$M37&\"_new\",Ammortamento_Finanziario!$H:$L,5,FALSE),VLOOKUP($M37,TT_Tabelle_Riferimento!$D$127:$H$164,5,FALSE))","v":8},{"$f":"+IFERROR(VLOOKUP(NM$27&\"-\"&$M37&\"_new\",Ammortamento_Finanziario!$H:$L,5,FALSE),VLOOKUP($M37,TT_Tabelle_Riferimento!$D$127:$H$164,5,FALSE))","v":8},{"$f":"+IFERROR(VLOOKUP(NN$27&\"-\"&$M37&\"_new\",Ammortamento_Finanziario!$H:$L,5,FALSE),VLOOKUP($M37,TT_Tabelle_Riferimento!$D$127:$H$164,5,FALSE))","v":8},{"$f":"+IFERROR(VLOOKUP(NO$27&\"-\"&$M37&\"_new\",Ammortamento_Finanziario!$H:$L,5,FALSE),VLOOKUP($M37,TT_Tabelle_Riferimento!$D$127:$H$164,5,FALSE))","v":8},{"$f":"+IFERROR(VLOOKUP(NP$27&\"-\"&$M37&\"_new\",Ammortamento_Finanziario!$H:$L,5,FALSE),VLOOKUP($M37,TT_Tabelle_Riferimento!$D$127:$H$164,5,FALSE))","v":8},{"$f":"+IFERROR(VLOOKUP(NQ$27&\"-\"&$M37&\"_new\",Ammortamento_Finanziario!$H:$L,5,FALSE),VLOOKUP($M37,TT_Tabelle_Riferimento!$D$127:$H$164,5,FALSE))","v":8},{"$f":"+IFERROR(VLOOKUP(NR$27&\"-\"&$M37&\"_new\",Ammortamento_Finanziario!$H:$L,5,FALSE),VLOOKUP($M37,TT_Tabelle_Riferimento!$D$127:$H$164,5,FALSE))","v":8},{"$f":"+IFERROR(VLOOKUP(NS$27&\"-\"&$M37&\"_new\",Ammortamento_Finanziario!$H:$L,5,FALSE),VLOOKUP($M37,TT_Tabelle_Riferimento!$D$127:$H$164,5,FALSE))","v":8},{"$f":"+IFERROR(VLOOKUP(NT$27&\"-\"&$M37&\"_new\",Ammortamento_Finanziario!$H:$L,5,FALSE),VLOOKUP($M37,TT_Tabelle_Riferimento!$D$127:$H$164,5,FALSE))","v":8},{"$f":"+IFERROR(VLOOKUP(NU$27&\"-\"&$M37&\"_new\",Ammortamento_Finanziario!$H:$L,5,FALSE),VLOOKUP($M37,TT_Tabelle_Riferimento!$D$127:$H$164,5,FALSE))","v":8},{"$f":"+IFERROR(VLOOKUP(NV$27&\"-\"&$M37&\"_new\",Ammortamento_Finanziario!$H:$L,5,FALSE),VLOOKUP($M37,TT_Tabelle_Riferimento!$D$127:$H$164,5,FALSE))","v":8},{"$f":"+IFERROR(VLOOKUP(NW$27&\"-\"&$M37&\"_new\",Ammortamento_Finanziario!$H:$L,5,FALSE),VLOOKUP($M37,TT_Tabelle_Riferimento!$D$127:$H$164,5,FALSE))","v":8},{"$f":"+IFERROR(VLOOKUP(NX$27&\"-\"&$M37&\"_new\",Ammortamento_Finanziario!$H:$L,5,FALSE),VLOOKUP($M37,TT_Tabelle_Riferimento!$D$127:$H$164,5,FALSE))","v":8},{"$f":"+IFERROR(VLOOKUP(NY$27&\"-\"&$M37&\"_new\",Ammortamento_Finanziario!$H:$L,5,FALSE),VLOOKUP($M37,TT_Tabelle_Riferimento!$D$127:$H$164,5,FALSE))","v":8},{"$f":"+IFERROR(VLOOKUP(NZ$27&\"-\"&$M37&\"_new\",Ammortamento_Finanziario!$H:$L,5,FALSE),VLOOKUP($M37,TT_Tabelle_Riferimento!$D$127:$H$164,5,FALSE))","v":8},{"$f":"+IFERROR(VLOOKUP(OA$27&\"-\"&$M37&\"_new\",Ammortamento_Finanziario!$H:$L,5,FALSE),VLOOKUP($M37,TT_Tabelle_Riferimento!$D$127:$H$164,5,FALSE))","v":8},{"$f":"+IFERROR(VLOOKUP(OB$27&\"-\"&$M37&\"_new\",Ammortamento_Finanziario!$H:$L,5,FALSE),VLOOKUP($M37,TT_Tabelle_Riferimento!$D$127:$H$164,5,FALSE))","v":8},{"$f":"+IFERROR(VLOOKUP(OC$27&\"-\"&$M37&\"_new\",Ammortamento_Finanziario!$H:$L,5,FALSE),VLOOKUP($M37,TT_Tabelle_Riferimento!$D$127:$H$164,5,FALSE))","v":8},{"$f":"+IFERROR(VLOOKUP(OD$27&\"-\"&$M37&\"_new\",Ammortamento_Finanziario!$H:$L,5,FALSE),VLOOKUP($M37,TT_Tabelle_Riferimento!$D$127:$H$164,5,FALSE))","v":8},{"$f":"+IFERROR(VLOOKUP(OE$27&\"-\"&$M37&\"_new\",Ammortamento_Finanziario!$H:$L,5,FALSE),VLOOKUP($M37,TT_Tabelle_Riferimento!$D$127:$H$164,5,FALSE))","v":8},{"$f":"+IFERROR(VLOOKUP(OF$27&\"-\"&$M37&\"_new\",Ammortamento_Finanziario!$H:$L,5,FALSE),VLOOKUP($M37,TT_Tabelle_Riferimento!$D$127:$H$164,5,FALSE))","v":8},{"$f":"+IFERROR(VLOOKUP(OG$27&\"-\"&$M37&\"_new\",Ammortamento_Finanziario!$H:$L,5,FALSE),VLOOKUP($M37,TT_Tabelle_Riferimento!$D$127:$H$164,5,FALSE))","v":8},{"$f":"+IFERROR(VLOOKUP(OH$27&\"-\"&$M37&\"_new\",Ammortamento_Finanziario!$H:$L,5,FALSE),VLOOKUP($M37,TT_Tabelle_Riferimento!$D$127:$H$164,5,FALSE))","v":8},{"$f":"+IFERROR(VLOOKUP(OI$27&\"-\"&$M37&\"_new\",Ammortamento_Finanziario!$H:$L,5,FALSE),VLOOKUP($M37,TT_Tabelle_Riferimento!$D$127:$H$164,5,FALSE))","v":8},{"$f":"+IFERROR(VLOOKUP(OJ$27&\"-\"&$M37&\"_new\",Ammortamento_Finanziario!$H:$L,5,FALSE),VLOOKUP($M37,TT_Tabelle_Riferimento!$D$127:$H$164,5,FALSE))","v":8},{"$f":"+IFERROR(VLOOKUP(OK$27&\"-\"&$M37&\"_new\",Ammortamento_Finanziario!$H:$L,5,FALSE),VLOOKUP($M37,TT_Tabelle_Riferimento!$D$127:$H$164,5,FALSE))","v":8},{"$f":"+IFERROR(VLOOKUP(OL$27&\"-\"&$M37&\"_new\",Ammortamento_Finanziario!$H:$L,5,FALSE),VLOOKUP($M37,TT_Tabelle_Riferimento!$D$127:$H$164,5,FALSE))","v":8},{"$f":"+IFERROR(VLOOKUP(OM$27&\"-\"&$M37&\"_new\",Ammortamento_Finanziario!$H:$L,5,FALSE),VLOOKUP($M37,TT_Tabelle_Riferimento!$D$127:$H$164,5,FALSE))","v":8},{"$f":"+IFERROR(VLOOKUP(ON$27&\"-\"&$M37&\"_new\",Ammortamento_Finanziario!$H:$L,5,FALSE),VLOOKUP($M37,TT_Tabelle_Riferimento!$D$127:$H$164,5,FALSE))","v":8},{"$f":"+IFERROR(VLOOKUP(OO$27&\"-\"&$M37&\"_new\",Ammortamento_Finanziario!$H:$L,5,FALSE),VLOOKUP($M37,TT_Tabelle_Riferimento!$D$127:$H$164,5,FALSE))","v":8},{"$f":"+IFERROR(VLOOKUP(OP$27&\"-\"&$M37&\"_new\",Ammortamento_Finanziario!$H:$L,5,FALSE),VLOOKUP($M37,TT_Tabelle_Riferimento!$D$127:$H$164,5,FALSE))","v":8},{"$f":"+IFERROR(VLOOKUP(OQ$27&\"-\"&$M37&\"_new\",Ammortamento_Finanziario!$H:$L,5,FALSE),VLOOKUP($M37,TT_Tabelle_Riferimento!$D$127:$H$164,5,FALSE))","v":8},{"$f":"+IFERROR(VLOOKUP(OR$27&\"-\"&$M37&\"_new\",Ammortamento_Finanziario!$H:$L,5,FALSE),VLOOKUP($M37,TT_Tabelle_Riferimento!$D$127:$H$164,5,FALSE))","v":8},{"$f":"+IFERROR(VLOOKUP(OS$27&\"-\"&$M37&\"_new\",Ammortamento_Finanziario!$H:$L,5,FALSE),VLOOKUP($M37,TT_Tabelle_Riferimento!$D$127:$H$164,5,FALSE))","v":8},{"$f":"+IFERROR(VLOOKUP(OT$27&\"-\"&$M37&\"_new\",Ammortamento_Finanziario!$H:$L,5,FALSE),VLOOKUP($M37,TT_Tabelle_Riferimento!$D$127:$H$164,5,FALSE))","v":8},{"$f":"+IFERROR(VLOOKUP(OU$27&\"-\"&$M37&\"_new\",Ammortamento_Finanziario!$H:$L,5,FALSE),VLOOKUP($M37,TT_Tabelle_Riferimento!$D$127:$H$164,5,FALSE))","v":8},{"$f":"+IFERROR(VLOOKUP(OV$27&\"-\"&$M37&\"_new\",Ammortamento_Finanziario!$H:$L,5,FALSE),VLOOKUP($M37,TT_Tabelle_Riferimento!$D$127:$H$164,5,FALSE))","v":8},{"$f":"+IFERROR(VLOOKUP(OW$27&\"-\"&$M37&\"_new\",Ammortamento_Finanziario!$H:$L,5,FALSE),VLOOKUP($M37,TT_Tabelle_Riferimento!$D$127:$H$164,5,FALSE))","v":8},{"$f":"+IFERROR(VLOOKUP(OX$27&\"-\"&$M37&\"_new\",Ammortamento_Finanziario!$H:$L,5,FALSE),VLOOKUP($M37,TT_Tabelle_Riferimento!$D$127:$H$164,5,FALSE))","v":8},{"$f":"+IFERROR(VLOOKUP(OY$27&\"-\"&$M37&\"_new\",Ammortamento_Finanziario!$H:$L,5,FALSE),VLOOKUP($M37,TT_Tabelle_Riferimento!$D$127:$H$164,5,FALSE))","v":8},{"$f":"+IFERROR(VLOOKUP(OZ$27&\"-\"&$M37&\"_new\",Ammortamento_Finanziario!$H:$L,5,FALSE),VLOOKUP($M37,TT_Tabelle_Riferimento!$D$127:$H$164,5,FALSE))","v":8},{"$f":"+IFERROR(VLOOKUP(PA$27&\"-\"&$M37&\"_new\",Ammortamento_Finanziario!$H:$L,5,FALSE),VLOOKUP($M37,TT_Tabelle_Riferimento!$D$127:$H$164,5,FALSE))","v":8},{"$f":"+IFERROR(VLOOKUP(PB$27&\"-\"&$M37&\"_new\",Ammortamento_Finanziario!$H:$L,5,FALSE),VLOOKUP($M37,TT_Tabelle_Riferimento!$D$127:$H$164,5,FALSE))","v":8},{"$f":"+IFERROR(VLOOKUP(PC$27&\"-\"&$M37&\"_new\",Ammortamento_Finanziario!$H:$L,5,FALSE),VLOOKUP($M37,TT_Tabelle_Riferimento!$D$127:$H$164,5,FALSE))","v":8},{"$f":"+IFERROR(VLOOKUP(PD$27&\"-\"&$M37&\"_new\",Ammortamento_Finanziario!$H:$L,5,FALSE),VLOOKUP($M37,TT_Tabelle_Riferimento!$D$127:$H$164,5,FALSE))","v":8},{"$f":"+IFERROR(VLOOKUP(PE$27&\"-\"&$M37&\"_new\",Ammortamento_Finanziario!$H:$L,5,FALSE),VLOOKUP($M37,TT_Tabelle_Riferimento!$D$127:$H$164,5,FALSE))","v":8},{"$f":"+IFERROR(VLOOKUP(PF$27&\"-\"&$M37&\"_new\",Ammortamento_Finanziario!$H:$L,5,FALSE),VLOOKUP($M37,TT_Tabelle_Riferimento!$D$127:$H$164,5,FALSE))","v":8},{"$f":"+IFERROR(VLOOKUP(PG$27&\"-\"&$M37&\"_new\",Ammortamento_Finanziario!$H:$L,5,FALSE),VLOOKUP($M37,TT_Tabelle_Riferimento!$D$127:$H$164,5,FALSE))","v":8},{"$f":"+IFERROR(VLOOKUP(PH$27&\"-\"&$M37&\"_new\",Ammortamento_Finanziario!$H:$L,5,FALSE),VLOOKUP($M37,TT_Tabelle_Riferimento!$D$127:$H$164,5,FALSE))","v":8},{"$f":"+IFERROR(VLOOKUP(PI$27&\"-\"&$M37&\"_new\",Ammortamento_Finanziario!$H:$L,5,FALSE),VLOOKUP($M37,TT_Tabelle_Riferimento!$D$127:$H$164,5,FALSE))","v":8},{"$f":"+IFERROR(VLOOKUP(PJ$27&\"-\"&$M37&\"_new\",Ammortamento_Finanziario!$H:$L,5,FALSE),VLOOKUP($M37,TT_Tabelle_Riferimento!$D$127:$H$164,5,FALSE))","v":8},{"$f":"+IFERROR(VLOOKUP(PK$27&\"-\"&$M37&\"_new\",Ammortamento_Finanziario!$H:$L,5,FALSE),VLOOKUP($M37,TT_Tabelle_Riferimento!$D$127:$H$164,5,FALSE))","v":8},{"$f":"+IFERROR(VLOOKUP(PL$27&\"-\"&$M37&\"_new\",Ammortamento_Finanziario!$H:$L,5,FALSE),VLOOKUP($M37,TT_Tabelle_Riferimento!$D$127:$H$164,5,FALSE))","v":8},{"$f":"+IFERROR(VLOOKUP(PM$27&\"-\"&$M37&\"_new\",Ammortamento_Finanziario!$H:$L,5,FALSE),VLOOKUP($M37,TT_Tabelle_Riferimento!$D$127:$H$164,5,FALSE))","v":8},{"$f":"+IFERROR(VLOOKUP(PN$27&\"-\"&$M37&\"_new\",Ammortamento_Finanziario!$H:$L,5,FALSE),VLOOKUP($M37,TT_Tabelle_Riferimento!$D$127:$H$164,5,FALSE))","v":8},{"$f":"+IFERROR(VLOOKUP(PO$27&\"-\"&$M37&\"_new\",Ammortamento_Finanziario!$H:$L,5,FALSE),VLOOKUP($M37,TT_Tabelle_Riferimento!$D$127:$H$164,5,FALSE))","v":8},{"$f":"+IFERROR(VLOOKUP(PP$27&\"-\"&$M37&\"_new\",Ammortamento_Finanziario!$H:$L,5,FALSE),VLOOKUP($M37,TT_Tabelle_Riferimento!$D$127:$H$164,5,FALSE))","v":8},{"$f":"+IFERROR(VLOOKUP(PQ$27&\"-\"&$M37&\"_new\",Ammortamento_Finanziario!$H:$L,5,FALSE),VLOOKUP($M37,TT_Tabelle_Riferimento!$D$127:$H$164,5,FALSE))","v":8},{"$f":"+IFERROR(VLOOKUP(PR$27&\"-\"&$M37&\"_new\",Ammortamento_Finanziario!$H:$L,5,FALSE),VLOOKUP($M37,TT_Tabelle_Riferimento!$D$127:$H$164,5,FALSE))","v":8},{"$f":"+IFERROR(VLOOKUP(PS$27&\"-\"&$M37&\"_new\",Ammortamento_Finanziario!$H:$L,5,FALSE),VLOOKUP($M37,TT_Tabelle_Riferimento!$D$127:$H$164,5,FALSE))","v":8},{"$f":"+IFERROR(VLOOKUP(PT$27&\"-\"&$M37&\"_new\",Ammortamento_Finanziario!$H:$L,5,FALSE),VLOOKUP($M37,TT_Tabelle_Riferimento!$D$127:$H$164,5,FALSE))","v":8},{"$f":"+IFERROR(VLOOKUP(PU$27&\"-\"&$M37&\"_new\",Ammortamento_Finanziario!$H:$L,5,FALSE),VLOOKUP($M37,TT_Tabelle_Riferimento!$D$127:$H$164,5,FALSE))","v":8},{"$f":"+IFERROR(VLOOKUP(PV$27&\"-\"&$M37&\"_new\",Ammortamento_Finanziario!$H:$L,5,FALSE),VLOOKUP($M37,TT_Tabelle_Riferimento!$D$127:$H$164,5,FALSE))","v":8},{"$f":"+IFERROR(VLOOKUP(PW$27&\"-\"&$M37&\"_new\",Ammortamento_Finanziario!$H:$L,5,FALSE),VLOOKUP($M37,TT_Tabelle_Riferimento!$D$127:$H$164,5,FALSE))","v":8},{"$f":"+IFERROR(VLOOKUP(PX$27&\"-\"&$M37&\"_new\",Ammortamento_Finanziario!$H:$L,5,FALSE),VLOOKUP($M37,TT_Tabelle_Riferimento!$D$127:$H$164,5,FALSE))","v":8},{"$f":"+IFERROR(VLOOKUP(PY$27&\"-\"&$M37&\"_new\",Ammortamento_Finanziario!$H:$L,5,FALSE),VLOOKUP($M37,TT_Tabelle_Riferimento!$D$127:$H$164,5,FALSE))","v":8},{"$f":"+IFERROR(VLOOKUP(PZ$27&\"-\"&$M37&\"_new\",Ammortamento_Finanziario!$H:$L,5,FALSE),VLOOKUP($M37,TT_Tabelle_Riferimento!$D$127:$H$164,5,FALSE))","v":8},{"$f":"+IFERROR(VLOOKUP(QA$27&\"-\"&$M37&\"_new\",Ammortamento_Finanziario!$H:$L,5,FALSE),VLOOKUP($M37,TT_Tabelle_Riferimento!$D$127:$H$164,5,FALSE))","v":8},{"$f":"+IFERROR(VLOOKUP(QB$27&\"-\"&$M37&\"_new\",Ammortamento_Finanziario!$H:$L,5,FALSE),VLOOKUP($M37,TT_Tabelle_Riferimento!$D$127:$H$164,5,FALSE))","v":8},{"$f":"+IFERROR(VLOOKUP(QC$27&\"-\"&$M37&\"_new\",Ammortamento_Finanziario!$H:$L,5,FALSE),VLOOKUP($M37,TT_Tabelle_Riferimento!$D$127:$H$164,5,FALSE))","v":8},{"$f":"+IFERROR(VLOOKUP(QD$27&\"-\"&$M37&\"_new\",Ammortamento_Finanziario!$H:$L,5,FALSE),VLOOKUP($M37,TT_Tabelle_Riferimento!$D$127:$H$164,5,FALSE))","v":8},{"$f":"+IFERROR(VLOOKUP(QE$27&\"-\"&$M37&\"_new\",Ammortamento_Finanziario!$H:$L,5,FALSE),VLOOKUP($M37,TT_Tabelle_Riferimento!$D$127:$H$164,5,FALSE))","v":8},{"$f":"+IFERROR(VLOOKUP(QF$27&\"-\"&$M37&\"_new\",Ammortamento_Finanziario!$H:$L,5,FALSE),VLOOKUP($M37,TT_Tabelle_Riferimento!$D$127:$H$164,5,FALSE))","v":8},{"$f":"+IFERROR(VLOOKUP(QG$27&\"-\"&$M37&\"_new\",Ammortamento_Finanziario!$H:$L,5,FALSE),VLOOKUP($M37,TT_Tabelle_Riferimento!$D$127:$H$164,5,FALSE))","v":8},{"$f":"+IFERROR(VLOOKUP(QH$27&\"-\"&$M37&\"_new\",Ammortamento_Finanziario!$H:$L,5,FALSE),VLOOKUP($M37,TT_Tabelle_Riferimento!$D$127:$H$164,5,FALSE))","v":8},{"$f":"+IFERROR(VLOOKUP(QI$27&\"-\"&$M37&\"_new\",Ammortamento_Finanziario!$H:$L,5,FALSE),VLOOKUP($M37,TT_Tabelle_Riferimento!$D$127:$H$164,5,FALSE))","v":8},{"$f":"+IFERROR(VLOOKUP(QJ$27&\"-\"&$M37&\"_new\",Ammortamento_Finanziario!$H:$L,5,FALSE),VLOOKUP($M37,TT_Tabelle_Riferimento!$D$127:$H$164,5,FALSE))","v":8},{"$f":"+IFERROR(VLOOKUP(QK$27&\"-\"&$M37&\"_new\",Ammortamento_Finanziario!$H:$L,5,FALSE),VLOOKUP($M37,TT_Tabelle_Riferimento!$D$127:$H$164,5,FALSE))","v":8},{"$f":"+IFERROR(VLOOKUP(QL$27&\"-\"&$M37&\"_new\",Ammortamento_Finanziario!$H:$L,5,FALSE),VLOOKUP($M37,TT_Tabelle_Riferimento!$D$127:$H$164,5,FALSE))","v":8},{"$f":"+IFERROR(VLOOKUP(QM$27&\"-\"&$M37&\"_new\",Ammortamento_Finanziario!$H:$L,5,FALSE),VLOOKUP($M37,TT_Tabelle_Riferimento!$D$127:$H$164,5,FALSE))","v":8},{"$f":"+IFERROR(VLOOKUP(QN$27&\"-\"&$M37&\"_new\",Ammortamento_Finanziario!$H:$L,5,FALSE),VLOOKUP($M37,TT_Tabelle_Riferimento!$D$127:$H$164,5,FALSE))","v":8},{"$f":"+IFERROR(VLOOKUP(QO$27&\"-\"&$M37&\"_new\",Ammortamento_Finanziario!$H:$L,5,FALSE),VLOOKUP($M37,TT_Tabelle_Riferimento!$D$127:$H$164,5,FALSE))","v":8},{"$f":"+IFERROR(VLOOKUP(QP$27&\"-\"&$M37&\"_new\",Ammortamento_Finanziario!$H:$L,5,FALSE),VLOOKUP($M37,TT_Tabelle_Riferimento!$D$127:$H$164,5,FALSE))","v":8},{"$f":"+IFERROR(VLOOKUP(QQ$27&\"-\"&$M37&\"_new\",Ammortamento_Finanziario!$H:$L,5,FALSE),VLOOKUP($M37,TT_Tabelle_Riferimento!$D$127:$H$164,5,FALSE))","v":8},{"$f":"+IFERROR(VLOOKUP(QR$27&\"-\"&$M37&\"_new\",Ammortamento_Finanziario!$H:$L,5,FALSE),VLOOKUP($M37,TT_Tabelle_Riferimento!$D$127:$H$164,5,FALSE))","v":8},{"$f":"+IFERROR(VLOOKUP(QS$27&\"-\"&$M37&\"_new\",Ammortamento_Finanziario!$H:$L,5,FALSE),VLOOKUP($M37,TT_Tabelle_Riferimento!$D$127:$H$164,5,FALSE))","v":8},{"$f":"+IFERROR(VLOOKUP(QT$27&\"-\"&$M37&\"_new\",Ammortamento_Finanziario!$H:$L,5,FALSE),VLOOKUP($M37,TT_Tabelle_Riferimento!$D$127:$H$164,5,FALSE))","v":8},{"$f":"+IFERROR(VLOOKUP(QU$27&\"-\"&$M37&\"_new\",Ammortamento_Finanziario!$H:$L,5,FALSE),VLOOKUP($M37,TT_Tabelle_Riferimento!$D$127:$H$164,5,FALSE))","v":8},{"$f":"+IFERROR(VLOOKUP(QV$27&\"-\"&$M37&\"_new\",Ammortamento_Finanziario!$H:$L,5,FALSE),VLOOKUP($M37,TT_Tabelle_Riferimento!$D$127:$H$164,5,FALSE))","v":8},{"$f":"+IFERROR(VLOOKUP(QW$27&\"-\"&$M37&\"_new\",Ammortamento_Finanziario!$H:$L,5,FALSE),VLOOKUP($M37,TT_Tabelle_Riferimento!$D$127:$H$164,5,FALSE))","v":8},{"$f":"+IFERROR(VLOOKUP(QX$27&\"-\"&$M37&\"_new\",Ammortamento_Finanziario!$H:$L,5,FALSE),VLOOKUP($M37,TT_Tabelle_Riferimento!$D$127:$H$164,5,FALSE))","v":8},{"$f":"+IFERROR(VLOOKUP(QY$27&\"-\"&$M37&\"_new\",Ammortamento_Finanziario!$H:$L,5,FALSE),VLOOKUP($M37,TT_Tabelle_Riferimento!$D$127:$H$164,5,FALSE))","v":8},{"$f":"+IFERROR(VLOOKUP(QZ$27&\"-\"&$M37&\"_new\",Ammortamento_Finanziario!$H:$L,5,FALSE),VLOOKUP($M37,TT_Tabelle_Riferimento!$D$127:$H$164,5,FALSE))","v":8},{"$f":"+IFERROR(VLOOKUP(RA$27&\"-\"&$M37&\"_new\",Ammortamento_Finanziario!$H:$L,5,FALSE),VLOOKUP($M37,TT_Tabelle_Riferimento!$D$127:$H$164,5,FALSE))","v":8},{"$f":"+IFERROR(VLOOKUP(RB$27&\"-\"&$M37&\"_new\",Ammortamento_Finanziario!$H:$L,5,FALSE),VLOOKUP($M37,TT_Tabelle_Riferimento!$D$127:$H$164,5,FALSE))","v":8},{"$f":"+IFERROR(VLOOKUP(RC$27&\"-\"&$M37&\"_new\",Ammortamento_Finanziario!$H:$L,5,FALSE),VLOOKUP($M37,TT_Tabelle_Riferimento!$D$127:$H$164,5,FALSE))","v":8},{"$f":"+IFERROR(VLOOKUP(RD$27&\"-\"&$M37&\"_new\",Ammortamento_Finanziario!$H:$L,5,FALSE),VLOOKUP($M37,TT_Tabelle_Riferimento!$D$127:$H$164,5,FALSE))","v":8},{"$f":"+IFERROR(VLOOKUP(RE$27&\"-\"&$M37&\"_new\",Ammortamento_Finanziario!$H:$L,5,FALSE),VLOOKUP($M37,TT_Tabelle_Riferimento!$D$127:$H$164,5,FALSE))","v":8},{"$f":"+IFERROR(VLOOKUP(RF$27&\"-\"&$M37&\"_new\",Ammortamento_Finanziario!$H:$L,5,FALSE),VLOOKUP($M37,TT_Tabelle_Riferimento!$D$127:$H$164,5,FALSE))","v":8},{"$f":"+IFERROR(VLOOKUP(RG$27&\"-\"&$M37&\"_new\",Ammortamento_Finanziario!$H:$L,5,FALSE),VLOOKUP($M37,TT_Tabelle_Riferimento!$D$127:$H$164,5,FALSE))","v":8},{"$f":"+IFERROR(VLOOKUP(RH$27&\"-\"&$M37&\"_new\",Ammortamento_Finanziario!$H:$L,5,FALSE),VLOOKUP($M37,TT_Tabelle_Riferimento!$D$127:$H$164,5,FALSE))","v":8},{"$f":"+IFERROR(VLOOKUP(RI$27&\"-\"&$M37&\"_new\",Ammortamento_Finanziario!$H:$L,5,FALSE),VLOOKUP($M37,TT_Tabelle_Riferimento!$D$127:$H$164,5,FALSE))","v":8},{"$f":"+IFERROR(VLOOKUP(RJ$27&\"-\"&$M37&\"_new\",Ammortamento_Finanziario!$H:$L,5,FALSE),VLOOKUP($M37,TT_Tabelle_Riferimento!$D$127:$H$164,5,FALSE))","v":8},{"$f":"+IFERROR(VLOOKUP(RK$27&\"-\"&$M37&\"_new\",Ammortamento_Finanziario!$H:$L,5,FALSE),VLOOKUP($M37,TT_Tabelle_Riferimento!$D$127:$H$164,5,FALSE))","v":8},{"$f":"+IFERROR(VLOOKUP(RL$27&\"-\"&$M37&\"_new\",Ammortamento_Finanziario!$H:$L,5,FALSE),VLOOKUP($M37,TT_Tabelle_Riferimento!$D$127:$H$164,5,FALSE))","v":8},{"$f":"+IFERROR(VLOOKUP(RM$27&\"-\"&$M37&\"_new\",Ammortamento_Finanziario!$H:$L,5,FALSE),VLOOKUP($M37,TT_Tabelle_Riferimento!$D$127:$H$164,5,FALSE))","v":8},{"$f":"+IFERROR(VLOOKUP(RN$27&\"-\"&$M37&\"_new\",Ammortamento_Finanziario!$H:$L,5,FALSE),VLOOKUP($M37,TT_Tabelle_Riferimento!$D$127:$H$164,5,FALSE))","v":8},{"$f":"+IFERROR(VLOOKUP(RO$27&\"-\"&$M37&\"_new\",Ammortamento_Finanziario!$H:$L,5,FALSE),VLOOKUP($M37,TT_Tabelle_Riferimento!$D$127:$H$164,5,FALSE))","v":8},{"$f":"+IFERROR(VLOOKUP(RP$27&\"-\"&$M37&\"_new\",Ammortamento_Finanziario!$H:$L,5,FALSE),VLOOKUP($M37,TT_Tabelle_Riferimento!$D$127:$H$164,5,FALSE))","v":8},{"$f":"+IFERROR(VLOOKUP(RQ$27&\"-\"&$M37&\"_new\",Ammortamento_Finanziario!$H:$L,5,FALSE),VLOOKUP($M37,TT_Tabelle_Riferimento!$D$127:$H$164,5,FALSE))","v":8},{"$f":"+IFERROR(VLOOKUP(RR$27&\"-\"&$M37&\"_new\",Ammortamento_Finanziario!$H:$L,5,FALSE),VLOOKUP($M37,TT_Tabelle_Riferimento!$D$127:$H$164,5,FALSE))","v":8},{"$f":"+IFERROR(VLOOKUP(RS$27&\"-\"&$M37&\"_new\",Ammortamento_Finanziario!$H:$L,5,FALSE),VLOOKUP($M37,TT_Tabelle_Riferimento!$D$127:$H$164,5,FALSE))","v":8},{"$f":"+IFERROR(VLOOKUP(RT$27&\"-\"&$M37&\"_new\",Ammortamento_Finanziario!$H:$L,5,FALSE),VLOOKUP($M37,TT_Tabelle_Riferimento!$D$127:$H$164,5,FALSE))","v":8},{"$f":"+IFERROR(VLOOKUP(RU$27&\"-\"&$M37&\"_new\",Ammortamento_Finanziario!$H:$L,5,FALSE),VLOOKUP($M37,TT_Tabelle_Riferimento!$D$127:$H$164,5,FALSE))","v":8},{"$f":"+IFERROR(VLOOKUP(RV$27&\"-\"&$M37&\"_new\",Ammortamento_Finanziario!$H:$L,5,FALSE),VLOOKUP($M37,TT_Tabelle_Riferimento!$D$127:$H$164,5,FALSE))","v":8}]
[null,null,null,null,null,null,null,null,null,null,null,null,11,0,0,0,0,0,0,0,0,0,0,0,0,0,0,0,0,0,0,0,0,0,0,0,0,0,0,0,0,0,0,0,0,0,0,0,0,0,0,0,0,0,0,0,0,0,0,0,0,0,0,0,0,0,0,0,0,0,0,0,0,0,0,0,0,0,0,0,0,0,0,0,0,0,0,0,0,0,0,0,0,0,0,0,0,0,0,0,0,0,0,0,0,0,0,0,0,0,0,0,0,0,0,0,0,0,0,0,0,0,0,0,0,0,0,0,0,0,0,0,0,0,0,0,0,0,0,0,0,0,0,0,0,0,0,0,0,0,0,0,0,0,0,0,0,0,0,0,0,0,0,0,0,0,0,0,0,0,0,0,0,0,0,0,0,0,0,0,0,0,0,0,0,0,0,0,0,0,0,0,0,0,0,0,0,0,0,0,0,0,0,0,0,0,0,0,0,0,0,0,0,0,0,0,0,0,0,0,0,0,0,0,0,0,0,0,0,0,0,0,0,0,0,0,0,0,0,0,0,0,0,0,0,0,0,0,0,0,0,0,0,0,0,0,0,0,0,0,0,0,0,0,0,0,0,0,0,0,0,0,0,0,0,0,0,0,0,0,0,0,0,0,0,0,0,0,0,0,0,0,0,0,0,0,0,0,0,0,0,0,{"$f":"+IFERROR(VLOOKUP(KQ$27&\"-\"&$M38&\"_new\",Ammortamento_Finanziario!$H:$L,5,FALSE),VLOOKUP($M38,TT_Tabelle_Riferimento!$D$127:$H$164,5,FALSE))","v":50},{"$f":"+IFERROR(VLOOKUP(KR$27&\"-\"&$M38&\"_new\",Ammortamento_Finanziario!$H:$L,5,FALSE),VLOOKUP($M38,TT_Tabelle_Riferimento!$D$127:$H$164,5,FALSE))","v":50},{"$f":"+IFERROR(VLOOKUP(KS$27&\"-\"&$M38&\"_new\",Ammortamento_Finanziario!$H:$L,5,FALSE),VLOOKUP($M38,TT_Tabelle_Riferimento!$D$127:$H$164,5,FALSE))","v":50},{"$f":"+IFERROR(VLOOKUP(KT$27&\"-\"&$M38&\"_new\",Ammortamento_Finanziario!$H:$L,5,FALSE),VLOOKUP($M38,TT_Tabelle_Riferimento!$D$127:$H$164,5,FALSE))","v":50},{"$f":"+IFERROR(VLOOKUP(KU$27&\"-\"&$M38&\"_new\",Ammortamento_Finanziario!$H:$L,5,FALSE),VLOOKUP($M38,TT_Tabelle_Riferimento!$D$127:$H$164,5,FALSE))","v":50},{"$f":"+IFERROR(VLOOKUP(KV$27&\"-\"&$M38&\"_new\",Ammortamento_Finanziario!$H:$L,5,FALSE),VLOOKUP($M38,TT_Tabelle_Riferimento!$D$127:$H$164,5,FALSE))","v":50},{"$f":"+IFERROR(VLOOKUP(KW$27&\"-\"&$M38&\"_new\",Ammortamento_Finanziario!$H:$L,5,FALSE),VLOOKUP($M38,TT_Tabelle_Riferimento!$D$127:$H$164,5,FALSE))","v":50},{"$f":"+IFERROR(VLOOKUP(KX$27&\"-\"&$M38&\"_new\",Ammortamento_Finanziario!$H:$L,5,FALSE),VLOOKUP($M38,TT_Tabelle_Riferimento!$D$127:$H$164,5,FALSE))","v":50},{"$f":"+IFERROR(VLOOKUP(KY$27&\"-\"&$M38&\"_new\",Ammortamento_Finanziario!$H:$L,5,FALSE),VLOOKUP($M38,TT_Tabelle_Riferimento!$D$127:$H$164,5,FALSE))","v":50},{"$f":"+IFERROR(VLOOKUP(KZ$27&\"-\"&$M38&\"_new\",Ammortamento_Finanziario!$H:$L,5,FALSE),VLOOKUP($M38,TT_Tabelle_Riferimento!$D$127:$H$164,5,FALSE))","v":50},{"$f":"+IFERROR(VLOOKUP(LA$27&\"-\"&$M38&\"_new\",Ammortamento_Finanziario!$H:$L,5,FALSE),VLOOKUP($M38,TT_Tabelle_Riferimento!$D$127:$H$164,5,FALSE))","v":50},{"$f":"+IFERROR(VLOOKUP(LB$27&\"-\"&$M38&\"_new\",Ammortamento_Finanziario!$H:$L,5,FALSE),VLOOKUP($M38,TT_Tabelle_Riferimento!$D$127:$H$164,5,FALSE))","v":50},{"$f":"+IFERROR(VLOOKUP(LC$27&\"-\"&$M38&\"_new\",Ammortamento_Finanziario!$H:$L,5,FALSE),VLOOKUP($M38,TT_Tabelle_Riferimento!$D$127:$H$164,5,FALSE))","v":50},{"$f":"+IFERROR(VLOOKUP(LD$27&\"-\"&$M38&\"_new\",Ammortamento_Finanziario!$H:$L,5,FALSE),VLOOKUP($M38,TT_Tabelle_Riferimento!$D$127:$H$164,5,FALSE))","v":50},{"$f":"+IFERROR(VLOOKUP(LE$27&\"-\"&$M38&\"_new\",Ammortamento_Finanziario!$H:$L,5,FALSE),VLOOKUP($M38,TT_Tabelle_Riferimento!$D$127:$H$164,5,FALSE))","v":50},{"$f":"+IFERROR(VLOOKUP(LF$27&\"-\"&$M38&\"_new\",Ammortamento_Finanziario!$H:$L,5,FALSE),VLOOKUP($M38,TT_Tabelle_Riferimento!$D$127:$H$164,5,FALSE))","v":50},{"$f":"+IFERROR(VLOOKUP(LG$27&\"-\"&$M38&\"_new\",Ammortamento_Finanziario!$H:$L,5,FALSE),VLOOKUP($M38,TT_Tabelle_Riferimento!$D$127:$H$164,5,FALSE))","v":50},{"$f":"+IFERROR(VLOOKUP(LH$27&\"-\"&$M38&\"_new\",Ammortamento_Finanziario!$H:$L,5,FALSE),VLOOKUP($M38,TT_Tabelle_Riferimento!$D$127:$H$164,5,FALSE))","v":50},{"$f":"+IFERROR(VLOOKUP(LI$27&\"-\"&$M38&\"_new\",Ammortamento_Finanziario!$H:$L,5,FALSE),VLOOKUP($M38,TT_Tabelle_Riferimento!$D$127:$H$164,5,FALSE))","v":50},{"$f":"+IFERROR(VLOOKUP(LJ$27&\"-\"&$M38&\"_new\",Ammortamento_Finanziario!$H:$L,5,FALSE),VLOOKUP($M38,TT_Tabelle_Riferimento!$D$127:$H$164,5,FALSE))","v":50},{"$f":"+IFERROR(VLOOKUP(LK$27&\"-\"&$M38&\"_new\",Ammortamento_Finanziario!$H:$L,5,FALSE),VLOOKUP($M38,TT_Tabelle_Riferimento!$D$127:$H$164,5,FALSE))","v":50},{"$f":"+IFERROR(VLOOKUP(LL$27&\"-\"&$M38&\"_new\",Ammortamento_Finanziario!$H:$L,5,FALSE),VLOOKUP($M38,TT_Tabelle_Riferimento!$D$127:$H$164,5,FALSE))","v":50},{"$f":"+IFERROR(VLOOKUP(LM$27&\"-\"&$M38&\"_new\",Ammortamento_Finanziario!$H:$L,5,FALSE),VLOOKUP($M38,TT_Tabelle_Riferimento!$D$127:$H$164,5,FALSE))","v":50},{"$f":"+IFERROR(VLOOKUP(LN$27&\"-\"&$M38&\"_new\",Ammortamento_Finanziario!$H:$L,5,FALSE),VLOOKUP($M38,TT_Tabelle_Riferimento!$D$127:$H$164,5,FALSE))","v":50},{"$f":"+IFERROR(VLOOKUP(LO$27&\"-\"&$M38&\"_new\",Ammortamento_Finanziario!$H:$L,5,FALSE),VLOOKUP($M38,TT_Tabelle_Riferimento!$D$127:$H$164,5,FALSE))","v":50},{"$f":"+IFERROR(VLOOKUP(LP$27&\"-\"&$M38&\"_new\",Ammortamento_Finanziario!$H:$L,5,FALSE),VLOOKUP($M38,TT_Tabelle_Riferimento!$D$127:$H$164,5,FALSE))","v":50},{"$f":"+IFERROR(VLOOKUP(LQ$27&\"-\"&$M38&\"_new\",Ammortamento_Finanziario!$H:$L,5,FALSE),VLOOKUP($M38,TT_Tabelle_Riferimento!$D$127:$H$164,5,FALSE))","v":50},{"$f":"+IFERROR(VLOOKUP(LR$27&\"-\"&$M38&\"_new\",Ammortamento_Finanziario!$H:$L,5,FALSE),VLOOKUP($M38,TT_Tabelle_Riferimento!$D$127:$H$164,5,FALSE))","v":50},{"$f":"+IFERROR(VLOOKUP(LS$27&\"-\"&$M38&\"_new\",Ammortamento_Finanziario!$H:$L,5,FALSE),VLOOKUP($M38,TT_Tabelle_Riferimento!$D$127:$H$164,5,FALSE))","v":50},{"$f":"+IFERROR(VLOOKUP(LT$27&\"-\"&$M38&\"_new\",Ammortamento_Finanziario!$H:$L,5,FALSE),VLOOKUP($M38,TT_Tabelle_Riferimento!$D$127:$H$164,5,FALSE))","v":50},{"$f":"+IFERROR(VLOOKUP(LU$27&\"-\"&$M38&\"_new\",Ammortamento_Finanziario!$H:$L,5,FALSE),VLOOKUP($M38,TT_Tabelle_Riferimento!$D$127:$H$164,5,FALSE))","v":50},{"$f":"+IFERROR(VLOOKUP(LV$27&\"-\"&$M38&\"_new\",Ammortamento_Finanziario!$H:$L,5,FALSE),VLOOKUP($M38,TT_Tabelle_Riferimento!$D$127:$H$164,5,FALSE))","v":50},{"$f":"+IFERROR(VLOOKUP(LW$27&\"-\"&$M38&\"_new\",Ammortamento_Finanziario!$H:$L,5,FALSE),VLOOKUP($M38,TT_Tabelle_Riferimento!$D$127:$H$164,5,FALSE))","v":50},{"$f":"+IFERROR(VLOOKUP(LX$27&\"-\"&$M38&\"_new\",Ammortamento_Finanziario!$H:$L,5,FALSE),VLOOKUP($M38,TT_Tabelle_Riferimento!$D$127:$H$164,5,FALSE))","v":50},{"$f":"+IFERROR(VLOOKUP(LY$27&\"-\"&$M38&\"_new\",Ammortamento_Finanziario!$H:$L,5,FALSE),VLOOKUP($M38,TT_Tabelle_Riferimento!$D$127:$H$164,5,FALSE))","v":50},{"$f":"+IFERROR(VLOOKUP(LZ$27&\"-\"&$M38&\"_new\",Ammortamento_Finanziario!$H:$L,5,FALSE),VLOOKUP($M38,TT_Tabelle_Riferimento!$D$127:$H$164,5,FALSE))","v":50},{"$f":"+IFERROR(VLOOKUP(MA$27&\"-\"&$M38&\"_new\",Ammortamento_Finanziario!$H:$L,5,FALSE),VLOOKUP($M38,TT_Tabelle_Riferimento!$D$127:$H$164,5,FALSE))","v":50},{"$f":"+IFERROR(VLOOKUP(MB$27&\"-\"&$M38&\"_new\",Ammortamento_Finanziario!$H:$L,5,FALSE),VLOOKUP($M38,TT_Tabelle_Riferimento!$D$127:$H$164,5,FALSE))","v":50},{"$f":"+IFERROR(VLOOKUP(MC$27&\"-\"&$M38&\"_new\",Ammortamento_Finanziario!$H:$L,5,FALSE),VLOOKUP($M38,TT_Tabelle_Riferimento!$D$127:$H$164,5,FALSE))","v":50},{"$f":"+IFERROR(VLOOKUP(MD$27&\"-\"&$M38&\"_new\",Ammortamento_Finanziario!$H:$L,5,FALSE),VLOOKUP($M38,TT_Tabelle_Riferimento!$D$127:$H$164,5,FALSE))","v":50},{"$f":"+IFERROR(VLOOKUP(ME$27&\"-\"&$M38&\"_new\",Ammortamento_Finanziario!$H:$L,5,FALSE),VLOOKUP($M38,TT_Tabelle_Riferimento!$D$127:$H$164,5,FALSE))","v":50},{"$f":"+IFERROR(VLOOKUP(MF$27&\"-\"&$M38&\"_new\",Ammortamento_Finanziario!$H:$L,5,FALSE),VLOOKUP($M38,TT_Tabelle_Riferimento!$D$127:$H$164,5,FALSE))","v":50},{"$f":"+IFERROR(VLOOKUP(MG$27&\"-\"&$M38&\"_new\",Ammortamento_Finanziario!$H:$L,5,FALSE),VLOOKUP($M38,TT_Tabelle_Riferimento!$D$127:$H$164,5,FALSE))","v":50},{"$f":"+IFERROR(VLOOKUP(MH$27&\"-\"&$M38&\"_new\",Ammortamento_Finanziario!$H:$L,5,FALSE),VLOOKUP($M38,TT_Tabelle_Riferimento!$D$127:$H$164,5,FALSE))","v":50},{"$f":"+IFERROR(VLOOKUP(MI$27&\"-\"&$M38&\"_new\",Ammortamento_Finanziario!$H:$L,5,FALSE),VLOOKUP($M38,TT_Tabelle_Riferimento!$D$127:$H$164,5,FALSE))","v":50},{"$f":"+IFERROR(VLOOKUP(MJ$27&\"-\"&$M38&\"_new\",Ammortamento_Finanziario!$H:$L,5,FALSE),VLOOKUP($M38,TT_Tabelle_Riferimento!$D$127:$H$164,5,FALSE))","v":50},{"$f":"+IFERROR(VLOOKUP(MK$27&\"-\"&$M38&\"_new\",Ammortamento_Finanziario!$H:$L,5,FALSE),VLOOKUP($M38,TT_Tabelle_Riferimento!$D$127:$H$164,5,FALSE))","v":50},{"$f":"+IFERROR(VLOOKUP(ML$27&\"-\"&$M38&\"_new\",Ammortamento_Finanziario!$H:$L,5,FALSE),VLOOKUP($M38,TT_Tabelle_Riferimento!$D$127:$H$164,5,FALSE))","v":50},{"$f":"+IFERROR(VLOOKUP(MM$27&\"-\"&$M38&\"_new\",Ammortamento_Finanziario!$H:$L,5,FALSE),VLOOKUP($M38,TT_Tabelle_Riferimento!$D$127:$H$164,5,FALSE))","v":50},{"$f":"+IFERROR(VLOOKUP(MN$27&\"-\"&$M38&\"_new\",Ammortamento_Finanziario!$H:$L,5,FALSE),VLOOKUP($M38,TT_Tabelle_Riferimento!$D$127:$H$164,5,FALSE))","v":50},{"$f":"+IFERROR(VLOOKUP(MO$27&\"-\"&$M38&\"_new\",Ammortamento_Finanziario!$H:$L,5,FALSE),VLOOKUP($M38,TT_Tabelle_Riferimento!$D$127:$H$164,5,FALSE))","v":50},{"$f":"+IFERROR(VLOOKUP(MP$27&\"-\"&$M38&\"_new\",Ammortamento_Finanziario!$H:$L,5,FALSE),VLOOKUP($M38,TT_Tabelle_Riferimento!$D$127:$H$164,5,FALSE))","v":50},{"$f":"+IFERROR(VLOOKUP(MQ$27&\"-\"&$M38&\"_new\",Ammortamento_Finanziario!$H:$L,5,FALSE),VLOOKUP($M38,TT_Tabelle_Riferimento!$D$127:$H$164,5,FALSE))","v":50},{"$f":"+IFERROR(VLOOKUP(MR$27&\"-\"&$M38&\"_new\",Ammortamento_Finanziario!$H:$L,5,FALSE),VLOOKUP($M38,TT_Tabelle_Riferimento!$D$127:$H$164,5,FALSE))","v":50},{"$f":"+IFERROR(VLOOKUP(MS$27&\"-\"&$M38&\"_new\",Ammortamento_Finanziario!$H:$L,5,FALSE),VLOOKUP($M38,TT_Tabelle_Riferimento!$D$127:$H$164,5,FALSE))","v":50},{"$f":"+IFERROR(VLOOKUP(MT$27&\"-\"&$M38&\"_new\",Ammortamento_Finanziario!$H:$L,5,FALSE),VLOOKUP($M38,TT_Tabelle_Riferimento!$D$127:$H$164,5,FALSE))","v":50},{"$f":"+IFERROR(VLOOKUP(MU$27&\"-\"&$M38&\"_new\",Ammortamento_Finanziario!$H:$L,5,FALSE),VLOOKUP($M38,TT_Tabelle_Riferimento!$D$127:$H$164,5,FALSE))","v":50},{"$f":"+IFERROR(VLOOKUP(MV$27&\"-\"&$M38&\"_new\",Ammortamento_Finanziario!$H:$L,5,FALSE),VLOOKUP($M38,TT_Tabelle_Riferimento!$D$127:$H$164,5,FALSE))","v":50},{"$f":"+IFERROR(VLOOKUP(MW$27&\"-\"&$M38&\"_new\",Ammortamento_Finanziario!$H:$L,5,FALSE),VLOOKUP($M38,TT_Tabelle_Riferimento!$D$127:$H$164,5,FALSE))","v":50},{"$f":"+IFERROR(VLOOKUP(MX$27&\"-\"&$M38&\"_new\",Ammortamento_Finanziario!$H:$L,5,FALSE),VLOOKUP($M38,TT_Tabelle_Riferimento!$D$127:$H$164,5,FALSE))","v":50},{"$f":"+IFERROR(VLOOKUP(MY$27&\"-\"&$M38&\"_new\",Ammortamento_Finanziario!$H:$L,5,FALSE),VLOOKUP($M38,TT_Tabelle_Riferimento!$D$127:$H$164,5,FALSE))","v":50},{"$f":"+IFERROR(VLOOKUP(MZ$27&\"-\"&$M38&\"_new\",Ammortamento_Finanziario!$H:$L,5,FALSE),VLOOKUP($M38,TT_Tabelle_Riferimento!$D$127:$H$164,5,FALSE))","v":50},{"$f":"+IFERROR(VLOOKUP(NA$27&\"-\"&$M38&\"_new\",Ammortamento_Finanziario!$H:$L,5,FALSE),VLOOKUP($M38,TT_Tabelle_Riferimento!$D$127:$H$164,5,FALSE))","v":50},{"$f":"+IFERROR(VLOOKUP(NB$27&\"-\"&$M38&\"_new\",Ammortamento_Finanziario!$H:$L,5,FALSE),VLOOKUP($M38,TT_Tabelle_Riferimento!$D$127:$H$164,5,FALSE))","v":50},{"$f":"+IFERROR(VLOOKUP(NC$27&\"-\"&$M38&\"_new\",Ammortamento_Finanziario!$H:$L,5,FALSE),VLOOKUP($M38,TT_Tabelle_Riferimento!$D$127:$H$164,5,FALSE))","v":50},{"$f":"+IFERROR(VLOOKUP(ND$27&\"-\"&$M38&\"_new\",Ammortamento_Finanziario!$H:$L,5,FALSE),VLOOKUP($M38,TT_Tabelle_Riferimento!$D$127:$H$164,5,FALSE))","v":50},{"$f":"+IFERROR(VLOOKUP(NE$27&\"-\"&$M38&\"_new\",Ammortamento_Finanziario!$H:$L,5,FALSE),VLOOKUP($M38,TT_Tabelle_Riferimento!$D$127:$H$164,5,FALSE))","v":50},{"$f":"+IFERROR(VLOOKUP(NF$27&\"-\"&$M38&\"_new\",Ammortamento_Finanziario!$H:$L,5,FALSE),VLOOKUP($M38,TT_Tabelle_Riferimento!$D$127:$H$164,5,FALSE))","v":50},{"$f":"+IFERROR(VLOOKUP(NG$27&\"-\"&$M38&\"_new\",Ammortamento_Finanziario!$H:$L,5,FALSE),VLOOKUP($M38,TT_Tabelle_Riferimento!$D$127:$H$164,5,FALSE))","v":50},{"$f":"+IFERROR(VLOOKUP(NH$27&\"-\"&$M38&\"_new\",Ammortamento_Finanziario!$H:$L,5,FALSE),VLOOKUP($M38,TT_Tabelle_Riferimento!$D$127:$H$164,5,FALSE))","v":50},{"$f":"+IFERROR(VLOOKUP(NI$27&\"-\"&$M38&\"_new\",Ammortamento_Finanziario!$H:$L,5,FALSE),VLOOKUP($M38,TT_Tabelle_Riferimento!$D$127:$H$164,5,FALSE))","v":50},{"$f":"+IFERROR(VLOOKUP(NJ$27&\"-\"&$M38&\"_new\",Ammortamento_Finanziario!$H:$L,5,FALSE),VLOOKUP($M38,TT_Tabelle_Riferimento!$D$127:$H$164,5,FALSE))","v":50},{"$f":"+IFERROR(VLOOKUP(NK$27&\"-\"&$M38&\"_new\",Ammortamento_Finanziario!$H:$L,5,FALSE),VLOOKUP($M38,TT_Tabelle_Riferimento!$D$127:$H$164,5,FALSE))","v":50},{"$f":"+IFERROR(VLOOKUP(NL$27&\"-\"&$M38&\"_new\",Ammortamento_Finanziario!$H:$L,5,FALSE),VLOOKUP($M38,TT_Tabelle_Riferimento!$D$127:$H$164,5,FALSE))","v":50},{"$f":"+IFERROR(VLOOKUP(NM$27&\"-\"&$M38&\"_new\",Ammortamento_Finanziario!$H:$L,5,FALSE),VLOOKUP($M38,TT_Tabelle_Riferimento!$D$127:$H$164,5,FALSE))","v":50},{"$f":"+IFERROR(VLOOKUP(NN$27&\"-\"&$M38&\"_new\",Ammortamento_Finanziario!$H:$L,5,FALSE),VLOOKUP($M38,TT_Tabelle_Riferimento!$D$127:$H$164,5,FALSE))","v":50},{"$f":"+IFERROR(VLOOKUP(NO$27&\"-\"&$M38&\"_new\",Ammortamento_Finanziario!$H:$L,5,FALSE),VLOOKUP($M38,TT_Tabelle_Riferimento!$D$127:$H$164,5,FALSE))","v":50},{"$f":"+IFERROR(VLOOKUP(NP$27&\"-\"&$M38&\"_new\",Ammortamento_Finanziario!$H:$L,5,FALSE),VLOOKUP($M38,TT_Tabelle_Riferimento!$D$127:$H$164,5,FALSE))","v":50},{"$f":"+IFERROR(VLOOKUP(NQ$27&\"-\"&$M38&\"_new\",Ammortamento_Finanziario!$H:$L,5,FALSE),VLOOKUP($M38,TT_Tabelle_Riferimento!$D$127:$H$164,5,FALSE))","v":50},{"$f":"+IFERROR(VLOOKUP(NR$27&\"-\"&$M38&\"_new\",Ammortamento_Finanziario!$H:$L,5,FALSE),VLOOKUP($M38,TT_Tabelle_Riferimento!$D$127:$H$164,5,FALSE))","v":50},{"$f":"+IFERROR(VLOOKUP(NS$27&\"-\"&$M38&\"_new\",Ammortamento_Finanziario!$H:$L,5,FALSE),VLOOKUP($M38,TT_Tabelle_Riferimento!$D$127:$H$164,5,FALSE))","v":50},{"$f":"+IFERROR(VLOOKUP(NT$27&\"-\"&$M38&\"_new\",Ammortamento_Finanziario!$H:$L,5,FALSE),VLOOKUP($M38,TT_Tabelle_Riferimento!$D$127:$H$164,5,FALSE))","v":50},{"$f":"+IFERROR(VLOOKUP(NU$27&\"-\"&$M38&\"_new\",Ammortamento_Finanziario!$H:$L,5,FALSE),VLOOKUP($M38,TT_Tabelle_Riferimento!$D$127:$H$164,5,FALSE))","v":50},{"$f":"+IFERROR(VLOOKUP(NV$27&\"-\"&$M38&\"_new\",Ammortamento_Finanziario!$H:$L,5,FALSE),VLOOKUP($M38,TT_Tabelle_Riferimento!$D$127:$H$164,5,FALSE))","v":50},{"$f":"+IFERROR(VLOOKUP(NW$27&\"-\"&$M38&\"_new\",Ammortamento_Finanziario!$H:$L,5,FALSE),VLOOKUP($M38,TT_Tabelle_Riferimento!$D$127:$H$164,5,FALSE))","v":50},{"$f":"+IFERROR(VLOOKUP(NX$27&\"-\"&$M38&\"_new\",Ammortamento_Finanziario!$H:$L,5,FALSE),VLOOKUP($M38,TT_Tabelle_Riferimento!$D$127:$H$164,5,FALSE))","v":50},{"$f":"+IFERROR(VLOOKUP(NY$27&\"-\"&$M38&\"_new\",Ammortamento_Finanziario!$H:$L,5,FALSE),VLOOKUP($M38,TT_Tabelle_Riferimento!$D$127:$H$164,5,FALSE))","v":50},{"$f":"+IFERROR(VLOOKUP(NZ$27&\"-\"&$M38&\"_new\",Ammortamento_Finanziario!$H:$L,5,FALSE),VLOOKUP($M38,TT_Tabelle_Riferimento!$D$127:$H$164,5,FALSE))","v":50},{"$f":"+IFERROR(VLOOKUP(OA$27&\"-\"&$M38&\"_new\",Ammortamento_Finanziario!$H:$L,5,FALSE),VLOOKUP($M38,TT_Tabelle_Riferimento!$D$127:$H$164,5,FALSE))","v":50},{"$f":"+IFERROR(VLOOKUP(OB$27&\"-\"&$M38&\"_new\",Ammortamento_Finanziario!$H:$L,5,FALSE),VLOOKUP($M38,TT_Tabelle_Riferimento!$D$127:$H$164,5,FALSE))","v":50},{"$f":"+IFERROR(VLOOKUP(OC$27&\"-\"&$M38&\"_new\",Ammortamento_Finanziario!$H:$L,5,FALSE),VLOOKUP($M38,TT_Tabelle_Riferimento!$D$127:$H$164,5,FALSE))","v":50},{"$f":"+IFERROR(VLOOKUP(OD$27&\"-\"&$M38&\"_new\",Ammortamento_Finanziario!$H:$L,5,FALSE),VLOOKUP($M38,TT_Tabelle_Riferimento!$D$127:$H$164,5,FALSE))","v":50},{"$f":"+IFERROR(VLOOKUP(OE$27&\"-\"&$M38&\"_new\",Ammortamento_Finanziario!$H:$L,5,FALSE),VLOOKUP($M38,TT_Tabelle_Riferimento!$D$127:$H$164,5,FALSE))","v":50},{"$f":"+IFERROR(VLOOKUP(OF$27&\"-\"&$M38&\"_new\",Ammortamento_Finanziario!$H:$L,5,FALSE),VLOOKUP($M38,TT_Tabelle_Riferimento!$D$127:$H$164,5,FALSE))","v":50},{"$f":"+IFERROR(VLOOKUP(OG$27&\"-\"&$M38&\"_new\",Ammortamento_Finanziario!$H:$L,5,FALSE),VLOOKUP($M38,TT_Tabelle_Riferimento!$D$127:$H$164,5,FALSE))","v":50},{"$f":"+IFERROR(VLOOKUP(OH$27&\"-\"&$M38&\"_new\",Ammortamento_Finanziario!$H:$L,5,FALSE),VLOOKUP($M38,TT_Tabelle_Riferimento!$D$127:$H$164,5,FALSE))","v":50},{"$f":"+IFERROR(VLOOKUP(OI$27&\"-\"&$M38&\"_new\",Ammortamento_Finanziario!$H:$L,5,FALSE),VLOOKUP($M38,TT_Tabelle_Riferimento!$D$127:$H$164,5,FALSE))","v":50},{"$f":"+IFERROR(VLOOKUP(OJ$27&\"-\"&$M38&\"_new\",Ammortamento_Finanziario!$H:$L,5,FALSE),VLOOKUP($M38,TT_Tabelle_Riferimento!$D$127:$H$164,5,FALSE))","v":50},{"$f":"+IFERROR(VLOOKUP(OK$27&\"-\"&$M38&\"_new\",Ammortamento_Finanziario!$H:$L,5,FALSE),VLOOKUP($M38,TT_Tabelle_Riferimento!$D$127:$H$164,5,FALSE))","v":50},{"$f":"+IFERROR(VLOOKUP(OL$27&\"-\"&$M38&\"_new\",Ammortamento_Finanziario!$H:$L,5,FALSE),VLOOKUP($M38,TT_Tabelle_Riferimento!$D$127:$H$164,5,FALSE))","v":50},{"$f":"+IFERROR(VLOOKUP(OM$27&\"-\"&$M38&\"_new\",Ammortamento_Finanziario!$H:$L,5,FALSE),VLOOKUP($M38,TT_Tabelle_Riferimento!$D$127:$H$164,5,FALSE))","v":50},{"$f":"+IFERROR(VLOOKUP(ON$27&\"-\"&$M38&\"_new\",Ammortamento_Finanziario!$H:$L,5,FALSE),VLOOKUP($M38,TT_Tabelle_Riferimento!$D$127:$H$164,5,FALSE))","v":50},{"$f":"+IFERROR(VLOOKUP(OO$27&\"-\"&$M38&\"_new\",Ammortamento_Finanziario!$H:$L,5,FALSE),VLOOKUP($M38,TT_Tabelle_Riferimento!$D$127:$H$164,5,FALSE))","v":50},{"$f":"+IFERROR(VLOOKUP(OP$27&\"-\"&$M38&\"_new\",Ammortamento_Finanziario!$H:$L,5,FALSE),VLOOKUP($M38,TT_Tabelle_Riferimento!$D$127:$H$164,5,FALSE))","v":50},{"$f":"+IFERROR(VLOOKUP(OQ$27&\"-\"&$M38&\"_new\",Ammortamento_Finanziario!$H:$L,5,FALSE),VLOOKUP($M38,TT_Tabelle_Riferimento!$D$127:$H$164,5,FALSE))","v":50},{"$f":"+IFERROR(VLOOKUP(OR$27&\"-\"&$M38&\"_new\",Ammortamento_Finanziario!$H:$L,5,FALSE),VLOOKUP($M38,TT_Tabelle_Riferimento!$D$127:$H$164,5,FALSE))","v":50},{"$f":"+IFERROR(VLOOKUP(OS$27&\"-\"&$M38&\"_new\",Ammortamento_Finanziario!$H:$L,5,FALSE),VLOOKUP($M38,TT_Tabelle_Riferimento!$D$127:$H$164,5,FALSE))","v":50},{"$f":"+IFERROR(VLOOKUP(OT$27&\"-\"&$M38&\"_new\",Ammortamento_Finanziario!$H:$L,5,FALSE),VLOOKUP($M38,TT_Tabelle_Riferimento!$D$127:$H$164,5,FALSE))","v":50},{"$f":"+IFERROR(VLOOKUP(OU$27&\"-\"&$M38&\"_new\",Ammortamento_Finanziario!$H:$L,5,FALSE),VLOOKUP($M38,TT_Tabelle_Riferimento!$D$127:$H$164,5,FALSE))","v":50},{"$f":"+IFERROR(VLOOKUP(OV$27&\"-\"&$M38&\"_new\",Ammortamento_Finanziario!$H:$L,5,FALSE),VLOOKUP($M38,TT_Tabelle_Riferimento!$D$127:$H$164,5,FALSE))","v":50},{"$f":"+IFERROR(VLOOKUP(OW$27&\"-\"&$M38&\"_new\",Ammortamento_Finanziario!$H:$L,5,FALSE),VLOOKUP($M38,TT_Tabelle_Riferimento!$D$127:$H$164,5,FALSE))","v":50},{"$f":"+IFERROR(VLOOKUP(OX$27&\"-\"&$M38&\"_new\",Ammortamento_Finanziario!$H:$L,5,FALSE),VLOOKUP($M38,TT_Tabelle_Riferimento!$D$127:$H$164,5,FALSE))","v":50},{"$f":"+IFERROR(VLOOKUP(OY$27&\"-\"&$M38&\"_new\",Ammortamento_Finanziario!$H:$L,5,FALSE),VLOOKUP($M38,TT_Tabelle_Riferimento!$D$127:$H$164,5,FALSE))","v":50},{"$f":"+IFERROR(VLOOKUP(OZ$27&\"-\"&$M38&\"_new\",Ammortamento_Finanziario!$H:$L,5,FALSE),VLOOKUP($M38,TT_Tabelle_Riferimento!$D$127:$H$164,5,FALSE))","v":50},{"$f":"+IFERROR(VLOOKUP(PA$27&\"-\"&$M38&\"_new\",Ammortamento_Finanziario!$H:$L,5,FALSE),VLOOKUP($M38,TT_Tabelle_Riferimento!$D$127:$H$164,5,FALSE))","v":50},{"$f":"+IFERROR(VLOOKUP(PB$27&\"-\"&$M38&\"_new\",Ammortamento_Finanziario!$H:$L,5,FALSE),VLOOKUP($M38,TT_Tabelle_Riferimento!$D$127:$H$164,5,FALSE))","v":50},{"$f":"+IFERROR(VLOOKUP(PC$27&\"-\"&$M38&\"_new\",Ammortamento_Finanziario!$H:$L,5,FALSE),VLOOKUP($M38,TT_Tabelle_Riferimento!$D$127:$H$164,5,FALSE))","v":50},{"$f":"+IFERROR(VLOOKUP(PD$27&\"-\"&$M38&\"_new\",Ammortamento_Finanziario!$H:$L,5,FALSE),VLOOKUP($M38,TT_Tabelle_Riferimento!$D$127:$H$164,5,FALSE))","v":50},{"$f":"+IFERROR(VLOOKUP(PE$27&\"-\"&$M38&\"_new\",Ammortamento_Finanziario!$H:$L,5,FALSE),VLOOKUP($M38,TT_Tabelle_Riferimento!$D$127:$H$164,5,FALSE))","v":50},{"$f":"+IFERROR(VLOOKUP(PF$27&\"-\"&$M38&\"_new\",Ammortamento_Finanziario!$H:$L,5,FALSE),VLOOKUP($M38,TT_Tabelle_Riferimento!$D$127:$H$164,5,FALSE))","v":50},{"$f":"+IFERROR(VLOOKUP(PG$27&\"-\"&$M38&\"_new\",Ammortamento_Finanziario!$H:$L,5,FALSE),VLOOKUP($M38,TT_Tabelle_Riferimento!$D$127:$H$164,5,FALSE))","v":50},{"$f":"+IFERROR(VLOOKUP(PH$27&\"-\"&$M38&\"_new\",Ammortamento_Finanziario!$H:$L,5,FALSE),VLOOKUP($M38,TT_Tabelle_Riferimento!$D$127:$H$164,5,FALSE))","v":50},{"$f":"+IFERROR(VLOOKUP(PI$27&\"-\"&$M38&\"_new\",Ammortamento_Finanziario!$H:$L,5,FALSE),VLOOKUP($M38,TT_Tabelle_Riferimento!$D$127:$H$164,5,FALSE))","v":50},{"$f":"+IFERROR(VLOOKUP(PJ$27&\"-\"&$M38&\"_new\",Ammortamento_Finanziario!$H:$L,5,FALSE),VLOOKUP($M38,TT_Tabelle_Riferimento!$D$127:$H$164,5,FALSE))","v":50},{"$f":"+IFERROR(VLOOKUP(PK$27&\"-\"&$M38&\"_new\",Ammortamento_Finanziario!$H:$L,5,FALSE),VLOOKUP($M38,TT_Tabelle_Riferimento!$D$127:$H$164,5,FALSE))","v":50},{"$f":"+IFERROR(VLOOKUP(PL$27&\"-\"&$M38&\"_new\",Ammortamento_Finanziario!$H:$L,5,FALSE),VLOOKUP($M38,TT_Tabelle_Riferimento!$D$127:$H$164,5,FALSE))","v":50},{"$f":"+IFERROR(VLOOKUP(PM$27&\"-\"&$M38&\"_new\",Ammortamento_Finanziario!$H:$L,5,FALSE),VLOOKUP($M38,TT_Tabelle_Riferimento!$D$127:$H$164,5,FALSE))","v":50},{"$f":"+IFERROR(VLOOKUP(PN$27&\"-\"&$M38&\"_new\",Ammortamento_Finanziario!$H:$L,5,FALSE),VLOOKUP($M38,TT_Tabelle_Riferimento!$D$127:$H$164,5,FALSE))","v":50},{"$f":"+IFERROR(VLOOKUP(PO$27&\"-\"&$M38&\"_new\",Ammortamento_Finanziario!$H:$L,5,FALSE),VLOOKUP($M38,TT_Tabelle_Riferimento!$D$127:$H$164,5,FALSE))","v":50},{"$f":"+IFERROR(VLOOKUP(PP$27&\"-\"&$M38&\"_new\",Ammortamento_Finanziario!$H:$L,5,FALSE),VLOOKUP($M38,TT_Tabelle_Riferimento!$D$127:$H$164,5,FALSE))","v":50},{"$f":"+IFERROR(VLOOKUP(PQ$27&\"-\"&$M38&\"_new\",Ammortamento_Finanziario!$H:$L,5,FALSE),VLOOKUP($M38,TT_Tabelle_Riferimento!$D$127:$H$164,5,FALSE))","v":50},{"$f":"+IFERROR(VLOOKUP(PR$27&\"-\"&$M38&\"_new\",Ammortamento_Finanziario!$H:$L,5,FALSE),VLOOKUP($M38,TT_Tabelle_Riferimento!$D$127:$H$164,5,FALSE))","v":50},{"$f":"+IFERROR(VLOOKUP(PS$27&\"-\"&$M38&\"_new\",Ammortamento_Finanziario!$H:$L,5,FALSE),VLOOKUP($M38,TT_Tabelle_Riferimento!$D$127:$H$164,5,FALSE))","v":50},{"$f":"+IFERROR(VLOOKUP(PT$27&\"-\"&$M38&\"_new\",Ammortamento_Finanziario!$H:$L,5,FALSE),VLOOKUP($M38,TT_Tabelle_Riferimento!$D$127:$H$164,5,FALSE))","v":50},{"$f":"+IFERROR(VLOOKUP(PU$27&\"-\"&$M38&\"_new\",Ammortamento_Finanziario!$H:$L,5,FALSE),VLOOKUP($M38,TT_Tabelle_Riferimento!$D$127:$H$164,5,FALSE))","v":50},{"$f":"+IFERROR(VLOOKUP(PV$27&\"-\"&$M38&\"_new\",Ammortamento_Finanziario!$H:$L,5,FALSE),VLOOKUP($M38,TT_Tabelle_Riferimento!$D$127:$H$164,5,FALSE))","v":50},{"$f":"+IFERROR(VLOOKUP(PW$27&\"-\"&$M38&\"_new\",Ammortamento_Finanziario!$H:$L,5,FALSE),VLOOKUP($M38,TT_Tabelle_Riferimento!$D$127:$H$164,5,FALSE))","v":50},{"$f":"+IFERROR(VLOOKUP(PX$27&\"-\"&$M38&\"_new\",Ammortamento_Finanziario!$H:$L,5,FALSE),VLOOKUP($M38,TT_Tabelle_Riferimento!$D$127:$H$164,5,FALSE))","v":50},{"$f":"+IFERROR(VLOOKUP(PY$27&\"-\"&$M38&\"_new\",Ammortamento_Finanziario!$H:$L,5,FALSE),VLOOKUP($M38,TT_Tabelle_Riferimento!$D$127:$H$164,5,FALSE))","v":50},{"$f":"+IFERROR(VLOOKUP(PZ$27&\"-\"&$M38&\"_new\",Ammortamento_Finanziario!$H:$L,5,FALSE),VLOOKUP($M38,TT_Tabelle_Riferimento!$D$127:$H$164,5,FALSE))","v":50},{"$f":"+IFERROR(VLOOKUP(QA$27&\"-\"&$M38&\"_new\",Ammortamento_Finanziario!$H:$L,5,FALSE),VLOOKUP($M38,TT_Tabelle_Riferimento!$D$127:$H$164,5,FALSE))","v":50},{"$f":"+IFERROR(VLOOKUP(QB$27&\"-\"&$M38&\"_new\",Ammortamento_Finanziario!$H:$L,5,FALSE),VLOOKUP($M38,TT_Tabelle_Riferimento!$D$127:$H$164,5,FALSE))","v":50},{"$f":"+IFERROR(VLOOKUP(QC$27&\"-\"&$M38&\"_new\",Ammortamento_Finanziario!$H:$L,5,FALSE),VLOOKUP($M38,TT_Tabelle_Riferimento!$D$127:$H$164,5,FALSE))","v":50},{"$f":"+IFERROR(VLOOKUP(QD$27&\"-\"&$M38&\"_new\",Ammortamento_Finanziario!$H:$L,5,FALSE),VLOOKUP($M38,TT_Tabelle_Riferimento!$D$127:$H$164,5,FALSE))","v":50},{"$f":"+IFERROR(VLOOKUP(QE$27&\"-\"&$M38&\"_new\",Ammortamento_Finanziario!$H:$L,5,FALSE),VLOOKUP($M38,TT_Tabelle_Riferimento!$D$127:$H$164,5,FALSE))","v":50},{"$f":"+IFERROR(VLOOKUP(QF$27&\"-\"&$M38&\"_new\",Ammortamento_Finanziario!$H:$L,5,FALSE),VLOOKUP($M38,TT_Tabelle_Riferimento!$D$127:$H$164,5,FALSE))","v":50},{"$f":"+IFERROR(VLOOKUP(QG$27&\"-\"&$M38&\"_new\",Ammortamento_Finanziario!$H:$L,5,FALSE),VLOOKUP($M38,TT_Tabelle_Riferimento!$D$127:$H$164,5,FALSE))","v":50},{"$f":"+IFERROR(VLOOKUP(QH$27&\"-\"&$M38&\"_new\",Ammortamento_Finanziario!$H:$L,5,FALSE),VLOOKUP($M38,TT_Tabelle_Riferimento!$D$127:$H$164,5,FALSE))","v":50},{"$f":"+IFERROR(VLOOKUP(QI$27&\"-\"&$M38&\"_new\",Ammortamento_Finanziario!$H:$L,5,FALSE),VLOOKUP($M38,TT_Tabelle_Riferimento!$D$127:$H$164,5,FALSE))","v":50},{"$f":"+IFERROR(VLOOKUP(QJ$27&\"-\"&$M38&\"_new\",Ammortamento_Finanziario!$H:$L,5,FALSE),VLOOKUP($M38,TT_Tabelle_Riferimento!$D$127:$H$164,5,FALSE))","v":50},{"$f":"+IFERROR(VLOOKUP(QK$27&\"-\"&$M38&\"_new\",Ammortamento_Finanziario!$H:$L,5,FALSE),VLOOKUP($M38,TT_Tabelle_Riferimento!$D$127:$H$164,5,FALSE))","v":50},{"$f":"+IFERROR(VLOOKUP(QL$27&\"-\"&$M38&\"_new\",Ammortamento_Finanziario!$H:$L,5,FALSE),VLOOKUP($M38,TT_Tabelle_Riferimento!$D$127:$H$164,5,FALSE))","v":50},{"$f":"+IFERROR(VLOOKUP(QM$27&\"-\"&$M38&\"_new\",Ammortamento_Finanziario!$H:$L,5,FALSE),VLOOKUP($M38,TT_Tabelle_Riferimento!$D$127:$H$164,5,FALSE))","v":50},{"$f":"+IFERROR(VLOOKUP(QN$27&\"-\"&$M38&\"_new\",Ammortamento_Finanziario!$H:$L,5,FALSE),VLOOKUP($M38,TT_Tabelle_Riferimento!$D$127:$H$164,5,FALSE))","v":50},{"$f":"+IFERROR(VLOOKUP(QO$27&\"-\"&$M38&\"_new\",Ammortamento_Finanziario!$H:$L,5,FALSE),VLOOKUP($M38,TT_Tabelle_Riferimento!$D$127:$H$164,5,FALSE))","v":50},{"$f":"+IFERROR(VLOOKUP(QP$27&\"-\"&$M38&\"_new\",Ammortamento_Finanziario!$H:$L,5,FALSE),VLOOKUP($M38,TT_Tabelle_Riferimento!$D$127:$H$164,5,FALSE))","v":50},{"$f":"+IFERROR(VLOOKUP(QQ$27&\"-\"&$M38&\"_new\",Ammortamento_Finanziario!$H:$L,5,FALSE),VLOOKUP($M38,TT_Tabelle_Riferimento!$D$127:$H$164,5,FALSE))","v":50},{"$f":"+IFERROR(VLOOKUP(QR$27&\"-\"&$M38&\"_new\",Ammortamento_Finanziario!$H:$L,5,FALSE),VLOOKUP($M38,TT_Tabelle_Riferimento!$D$127:$H$164,5,FALSE))","v":50},{"$f":"+IFERROR(VLOOKUP(QS$27&\"-\"&$M38&\"_new\",Ammortamento_Finanziario!$H:$L,5,FALSE),VLOOKUP($M38,TT_Tabelle_Riferimento!$D$127:$H$164,5,FALSE))","v":50},{"$f":"+IFERROR(VLOOKUP(QT$27&\"-\"&$M38&\"_new\",Ammortamento_Finanziario!$H:$L,5,FALSE),VLOOKUP($M38,TT_Tabelle_Riferimento!$D$127:$H$164,5,FALSE))","v":50},{"$f":"+IFERROR(VLOOKUP(QU$27&\"-\"&$M38&\"_new\",Ammortamento_Finanziario!$H:$L,5,FALSE),VLOOKUP($M38,TT_Tabelle_Riferimento!$D$127:$H$164,5,FALSE))","v":50},{"$f":"+IFERROR(VLOOKUP(QV$27&\"-\"&$M38&\"_new\",Ammortamento_Finanziario!$H:$L,5,FALSE),VLOOKUP($M38,TT_Tabelle_Riferimento!$D$127:$H$164,5,FALSE))","v":50},{"$f":"+IFERROR(VLOOKUP(QW$27&\"-\"&$M38&\"_new\",Ammortamento_Finanziario!$H:$L,5,FALSE),VLOOKUP($M38,TT_Tabelle_Riferimento!$D$127:$H$164,5,FALSE))","v":50},{"$f":"+IFERROR(VLOOKUP(QX$27&\"-\"&$M38&\"_new\",Ammortamento_Finanziario!$H:$L,5,FALSE),VLOOKUP($M38,TT_Tabelle_Riferimento!$D$127:$H$164,5,FALSE))","v":50},{"$f":"+IFERROR(VLOOKUP(QY$27&\"-\"&$M38&\"_new\",Ammortamento_Finanziario!$H:$L,5,FALSE),VLOOKUP($M38,TT_Tabelle_Riferimento!$D$127:$H$164,5,FALSE))","v":50},{"$f":"+IFERROR(VLOOKUP(QZ$27&\"-\"&$M38&\"_new\",Ammortamento_Finanziario!$H:$L,5,FALSE),VLOOKUP($M38,TT_Tabelle_Riferimento!$D$127:$H$164,5,FALSE))","v":50},{"$f":"+IFERROR(VLOOKUP(RA$27&\"-\"&$M38&\"_new\",Ammortamento_Finanziario!$H:$L,5,FALSE),VLOOKUP($M38,TT_Tabelle_Riferimento!$D$127:$H$164,5,FALSE))","v":50},{"$f":"+IFERROR(VLOOKUP(RB$27&\"-\"&$M38&\"_new\",Ammortamento_Finanziario!$H:$L,5,FALSE),VLOOKUP($M38,TT_Tabelle_Riferimento!$D$127:$H$164,5,FALSE))","v":50},{"$f":"+IFERROR(VLOOKUP(RC$27&\"-\"&$M38&\"_new\",Ammortamento_Finanziario!$H:$L,5,FALSE),VLOOKUP($M38,TT_Tabelle_Riferimento!$D$127:$H$164,5,FALSE))","v":50},{"$f":"+IFERROR(VLOOKUP(RD$27&\"-\"&$M38&\"_new\",Ammortamento_Finanziario!$H:$L,5,FALSE),VLOOKUP($M38,TT_Tabelle_Riferimento!$D$127:$H$164,5,FALSE))","v":50},{"$f":"+IFERROR(VLOOKUP(RE$27&\"-\"&$M38&\"_new\",Ammortamento_Finanziario!$H:$L,5,FALSE),VLOOKUP($M38,TT_Tabelle_Riferimento!$D$127:$H$164,5,FALSE))","v":50},{"$f":"+IFERROR(VLOOKUP(RF$27&\"-\"&$M38&\"_new\",Ammortamento_Finanziario!$H:$L,5,FALSE),VLOOKUP($M38,TT_Tabelle_Riferimento!$D$127:$H$164,5,FALSE))","v":50},{"$f":"+IFERROR(VLOOKUP(RG$27&\"-\"&$M38&\"_new\",Ammortamento_Finanziario!$H:$L,5,FALSE),VLOOKUP($M38,TT_Tabelle_Riferimento!$D$127:$H$164,5,FALSE))","v":50},{"$f":"+IFERROR(VLOOKUP(RH$27&\"-\"&$M38&\"_new\",Ammortamento_Finanziario!$H:$L,5,FALSE),VLOOKUP($M38,TT_Tabelle_Riferimento!$D$127:$H$164,5,FALSE))","v":50},{"$f":"+IFERROR(VLOOKUP(RI$27&\"-\"&$M38&\"_new\",Ammortamento_Finanziario!$H:$L,5,FALSE),VLOOKUP($M38,TT_Tabelle_Riferimento!$D$127:$H$164,5,FALSE))","v":50},{"$f":"+IFERROR(VLOOKUP(RJ$27&\"-\"&$M38&\"_new\",Ammortamento_Finanziario!$H:$L,5,FALSE),VLOOKUP($M38,TT_Tabelle_Riferimento!$D$127:$H$164,5,FALSE))","v":50},{"$f":"+IFERROR(VLOOKUP(RK$27&\"-\"&$M38&\"_new\",Ammortamento_Finanziario!$H:$L,5,FALSE),VLOOKUP($M38,TT_Tabelle_Riferimento!$D$127:$H$164,5,FALSE))","v":50},{"$f":"+IFERROR(VLOOKUP(RL$27&\"-\"&$M38&\"_new\",Ammortamento_Finanziario!$H:$L,5,FALSE),VLOOKUP($M38,TT_Tabelle_Riferimento!$D$127:$H$164,5,FALSE))","v":50},{"$f":"+IFERROR(VLOOKUP(RM$27&\"-\"&$M38&\"_new\",Ammortamento_Finanziario!$H:$L,5,FALSE),VLOOKUP($M38,TT_Tabelle_Riferimento!$D$127:$H$164,5,FALSE))","v":50},{"$f":"+IFERROR(VLOOKUP(RN$27&\"-\"&$M38&\"_new\",Ammortamento_Finanziario!$H:$L,5,FALSE),VLOOKUP($M38,TT_Tabelle_Riferimento!$D$127:$H$164,5,FALSE))","v":50},{"$f":"+IFERROR(VLOOKUP(RO$27&\"-\"&$M38&\"_new\",Ammortamento_Finanziario!$H:$L,5,FALSE),VLOOKUP($M38,TT_Tabelle_Riferimento!$D$127:$H$164,5,FALSE))","v":50},{"$f":"+IFERROR(VLOOKUP(RP$27&\"-\"&$M38&\"_new\",Ammortamento_Finanziario!$H:$L,5,FALSE),VLOOKUP($M38,TT_Tabelle_Riferimento!$D$127:$H$164,5,FALSE))","v":50},{"$f":"+IFERROR(VLOOKUP(RQ$27&\"-\"&$M38&\"_new\",Ammortamento_Finanziario!$H:$L,5,FALSE),VLOOKUP($M38,TT_Tabelle_Riferimento!$D$127:$H$164,5,FALSE))","v":50},{"$f":"+IFERROR(VLOOKUP(RR$27&\"-\"&$M38&\"_new\",Ammortamento_Finanziario!$H:$L,5,FALSE),VLOOKUP($M38,TT_Tabelle_Riferimento!$D$127:$H$164,5,FALSE))","v":50},{"$f":"+IFERROR(VLOOKUP(RS$27&\"-\"&$M38&\"_new\",Ammortamento_Finanziario!$H:$L,5,FALSE),VLOOKUP($M38,TT_Tabelle_Riferimento!$D$127:$H$164,5,FALSE))","v":50},{"$f":"+IFERROR(VLOOKUP(RT$27&\"-\"&$M38&\"_new\",Ammortamento_Finanziario!$H:$L,5,FALSE),VLOOKUP($M38,TT_Tabelle_Riferimento!$D$127:$H$164,5,FALSE))","v":50},{"$f":"+IFERROR(VLOOKUP(RU$27&\"-\"&$M38&\"_new\",Ammortamento_Finanziario!$H:$L,5,FALSE),VLOOKUP($M38,TT_Tabelle_Riferimento!$D$127:$H$164,5,FALSE))","v":50},{"$f":"+IFERROR(VLOOKUP(RV$27&\"-\"&$M38&\"_new\",Ammortamento_Finanziario!$H:$L,5,FALSE),VLOOKUP($M38,TT_Tabelle_Riferimento!$D$127:$H$164,5,FALSE))","v":50}]
[null,null,null,null,null,null,null,null,null,null,null,null,12,0,0,0,0,0,0,0,0,0,0,0,0,0,0,0,0,0,0,0,0,0,0,0,0,0,0,0,0,0,0,0,0,0,0,0,0,0,0,0,0,0,0,0,0,0,0,0,0,0,0,0,0,0,0,0,0,0,0,0,0,0,0,0,0,0,0,0,0,0,0,0,0,0,0,0,0,0,0,0,0,0,0,0,0,0,0,0,0,0,0,0,0,0,0,0,0,0,0,0,0,0,0,0,0,0,0,0,0,0,0,0,0,0,0,0,0,0,0,0,0,0,0,0,0,0,0,0,0,0,0,0,0,0,0,0,0,0,0,0,0,0,0,0,0,0,0,0,0,0,0,0,0,0,0,0,0,0,0,0,0,0,0,0,0,0,0,0,0,0,0,0,0,0,0,0,0,0,0,0,0,0,0,0,0,0,0,0,0,0,0,0,0,0,0,0,0,0,0,0,0,0,0,0,0,0,0,0,0,0,0,0,0,0,0,0,0,0,0,0,0,0,0,0,0,0,0,0,0,0,0,0,0,0,0,0,0,0,0,0,0,0,0,0,0,0,0,0,0,0,0,0,0,0,0,0,0,0,0,0,0,0,0,0,0,0,0,0,0,0,0,0,0,0,0,0,0,0,0,0,0,0,0,0,0,0,0,0,0,0,{"$f":"+IFERROR(VLOOKUP(KQ$27&\"-\"&$M39&\"_new\",Ammortamento_Finanziario!$H:$L,5,FALSE),VLOOKUP($M39,TT_Tabelle_Riferimento!$D$127:$H$164,5,FALSE))","v":40},{"$f":"+IFERROR(VLOOKUP(KR$27&\"-\"&$M39&\"_new\",Ammortamento_Finanziario!$H:$L,5,FALSE),VLOOKUP($M39,TT_Tabelle_Riferimento!$D$127:$H$164,5,FALSE))","v":40},{"$f":"+IFERROR(VLOOKUP(KS$27&\"-\"&$M39&\"_new\",Ammortamento_Finanziario!$H:$L,5,FALSE),VLOOKUP($M39,TT_Tabelle_Riferimento!$D$127:$H$164,5,FALSE))","v":40},{"$f":"+IFERROR(VLOOKUP(KT$27&\"-\"&$M39&\"_new\",Ammortamento_Finanziario!$H:$L,5,FALSE),VLOOKUP($M39,TT_Tabelle_Riferimento!$D$127:$H$164,5,FALSE))","v":40},{"$f":"+IFERROR(VLOOKUP(KU$27&\"-\"&$M39&\"_new\",Ammortamento_Finanziario!$H:$L,5,FALSE),VLOOKUP($M39,TT_Tabelle_Riferimento!$D$127:$H$164,5,FALSE))","v":40},{"$f":"+IFERROR(VLOOKUP(KV$27&\"-\"&$M39&\"_new\",Ammortamento_Finanziario!$H:$L,5,FALSE),VLOOKUP($M39,TT_Tabelle_Riferimento!$D$127:$H$164,5,FALSE))","v":40},{"$f":"+IFERROR(VLOOKUP(KW$27&\"-\"&$M39&\"_new\",Ammortamento_Finanziario!$H:$L,5,FALSE),VLOOKUP($M39,TT_Tabelle_Riferimento!$D$127:$H$164,5,FALSE))","v":40},{"$f":"+IFERROR(VLOOKUP(KX$27&\"-\"&$M39&\"_new\",Ammortamento_Finanziario!$H:$L,5,FALSE),VLOOKUP($M39,TT_Tabelle_Riferimento!$D$127:$H$164,5,FALSE))","v":40},{"$f":"+IFERROR(VLOOKUP(KY$27&\"-\"&$M39&\"_new\",Ammortamento_Finanziario!$H:$L,5,FALSE),VLOOKUP($M39,TT_Tabelle_Riferimento!$D$127:$H$164,5,FALSE))","v":40},{"$f":"+IFERROR(VLOOKUP(KZ$27&\"-\"&$M39&\"_new\",Ammortamento_Finanziario!$H:$L,5,FALSE),VLOOKUP($M39,TT_Tabelle_Riferimento!$D$127:$H$164,5,FALSE))","v":40},{"$f":"+IFERROR(VLOOKUP(LA$27&\"-\"&$M39&\"_new\",Ammortamento_Finanziario!$H:$L,5,FALSE),VLOOKUP($M39,TT_Tabelle_Riferimento!$D$127:$H$164,5,FALSE))","v":40},{"$f":"+IFERROR(VLOOKUP(LB$27&\"-\"&$M39&\"_new\",Ammortamento_Finanziario!$H:$L,5,FALSE),VLOOKUP($M39,TT_Tabelle_Riferimento!$D$127:$H$164,5,FALSE))","v":40},{"$f":"+IFERROR(VLOOKUP(LC$27&\"-\"&$M39&\"_new\",Ammortamento_Finanziario!$H:$L,5,FALSE),VLOOKUP($M39,TT_Tabelle_Riferimento!$D$127:$H$164,5,FALSE))","v":40},{"$f":"+IFERROR(VLOOKUP(LD$27&\"-\"&$M39&\"_new\",Ammortamento_Finanziario!$H:$L,5,FALSE),VLOOKUP($M39,TT_Tabelle_Riferimento!$D$127:$H$164,5,FALSE))","v":40},{"$f":"+IFERROR(VLOOKUP(LE$27&\"-\"&$M39&\"_new\",Ammortamento_Finanziario!$H:$L,5,FALSE),VLOOKUP($M39,TT_Tabelle_Riferimento!$D$127:$H$164,5,FALSE))","v":40},{"$f":"+IFERROR(VLOOKUP(LF$27&\"-\"&$M39&\"_new\",Ammortamento_Finanziario!$H:$L,5,FALSE),VLOOKUP($M39,TT_Tabelle_Riferimento!$D$127:$H$164,5,FALSE))","v":40},{"$f":"+IFERROR(VLOOKUP(LG$27&\"-\"&$M39&\"_new\",Ammortamento_Finanziario!$H:$L,5,FALSE),VLOOKUP($M39,TT_Tabelle_Riferimento!$D$127:$H$164,5,FALSE))","v":40},{"$f":"+IFERROR(VLOOKUP(LH$27&\"-\"&$M39&\"_new\",Ammortamento_Finanziario!$H:$L,5,FALSE),VLOOKUP($M39,TT_Tabelle_Riferimento!$D$127:$H$164,5,FALSE))","v":40},{"$f":"+IFERROR(VLOOKUP(LI$27&\"-\"&$M39&\"_new\",Ammortamento_Finanziario!$H:$L,5,FALSE),VLOOKUP($M39,TT_Tabelle_Riferimento!$D$127:$H$164,5,FALSE))","v":40},{"$f":"+IFERROR(VLOOKUP(LJ$27&\"-\"&$M39&\"_new\",Ammortamento_Finanziario!$H:$L,5,FALSE),VLOOKUP($M39,TT_Tabelle_Riferimento!$D$127:$H$164,5,FALSE))","v":40},{"$f":"+IFERROR(VLOOKUP(LK$27&\"-\"&$M39&\"_new\",Ammortamento_Finanziario!$H:$L,5,FALSE),VLOOKUP($M39,TT_Tabelle_Riferimento!$D$127:$H$164,5,FALSE))","v":40},{"$f":"+IFERROR(VLOOKUP(LL$27&\"-\"&$M39&\"_new\",Ammortamento_Finanziario!$H:$L,5,FALSE),VLOOKUP($M39,TT_Tabelle_Riferimento!$D$127:$H$164,5,FALSE))","v":40},{"$f":"+IFERROR(VLOOKUP(LM$27&\"-\"&$M39&\"_new\",Ammortamento_Finanziario!$H:$L,5,FALSE),VLOOKUP($M39,TT_Tabelle_Riferimento!$D$127:$H$164,5,FALSE))","v":40},{"$f":"+IFERROR(VLOOKUP(LN$27&\"-\"&$M39&\"_new\",Ammortamento_Finanziario!$H:$L,5,FALSE),VLOOKUP($M39,TT_Tabelle_Riferimento!$D$127:$H$164,5,FALSE))","v":40},{"$f":"+IFERROR(VLOOKUP(LO$27&\"-\"&$M39&\"_new\",Ammortamento_Finanziario!$H:$L,5,FALSE),VLOOKUP($M39,TT_Tabelle_Riferimento!$D$127:$H$164,5,FALSE))","v":40},{"$f":"+IFERROR(VLOOKUP(LP$27&\"-\"&$M39&\"_new\",Ammortamento_Finanziario!$H:$L,5,FALSE),VLOOKUP($M39,TT_Tabelle_Riferimento!$D$127:$H$164,5,FALSE))","v":40},{"$f":"+IFERROR(VLOOKUP(LQ$27&\"-\"&$M39&\"_new\",Ammortamento_Finanziario!$H:$L,5,FALSE),VLOOKUP($M39,TT_Tabelle_Riferimento!$D$127:$H$164,5,FALSE))","v":40},{"$f":"+IFERROR(VLOOKUP(LR$27&\"-\"&$M39&\"_new\",Ammortamento_Finanziario!$H:$L,5,FALSE),VLOOKUP($M39,TT_Tabelle_Riferimento!$D$127:$H$164,5,FALSE))","v":40},{"$f":"+IFERROR(VLOOKUP(LS$27&\"-\"&$M39&\"_new\",Ammortamento_Finanziario!$H:$L,5,FALSE),VLOOKUP($M39,TT_Tabelle_Riferimento!$D$127:$H$164,5,FALSE))","v":40},{"$f":"+IFERROR(VLOOKUP(LT$27&\"-\"&$M39&\"_new\",Ammortamento_Finanziario!$H:$L,5,FALSE),VLOOKUP($M39,TT_Tabelle_Riferimento!$D$127:$H$164,5,FALSE))","v":40},{"$f":"+IFERROR(VLOOKUP(LU$27&\"-\"&$M39&\"_new\",Ammortamento_Finanziario!$H:$L,5,FALSE),VLOOKUP($M39,TT_Tabelle_Riferimento!$D$127:$H$164,5,FALSE))","v":40},{"$f":"+IFERROR(VLOOKUP(LV$27&\"-\"&$M39&\"_new\",Ammortamento_Finanziario!$H:$L,5,FALSE),VLOOKUP($M39,TT_Tabelle_Riferimento!$D$127:$H$164,5,FALSE))","v":40},{"$f":"+IFERROR(VLOOKUP(LW$27&\"-\"&$M39&\"_new\",Ammortamento_Finanziario!$H:$L,5,FALSE),VLOOKUP($M39,TT_Tabelle_Riferimento!$D$127:$H$164,5,FALSE))","v":40},{"$f":"+IFERROR(VLOOKUP(LX$27&\"-\"&$M39&\"_new\",Ammortamento_Finanziario!$H:$L,5,FALSE),VLOOKUP($M39,TT_Tabelle_Riferimento!$D$127:$H$164,5,FALSE))","v":40},{"$f":"+IFERROR(VLOOKUP(LY$27&\"-\"&$M39&\"_new\",Ammortamento_Finanziario!$H:$L,5,FALSE),VLOOKUP($M39,TT_Tabelle_Riferimento!$D$127:$H$164,5,FALSE))","v":40},{"$f":"+IFERROR(VLOOKUP(LZ$27&\"-\"&$M39&\"_new\",Ammortamento_Finanziario!$H:$L,5,FALSE),VLOOKUP($M39,TT_Tabelle_Riferimento!$D$127:$H$164,5,FALSE))","v":40},{"$f":"+IFERROR(VLOOKUP(MA$27&\"-\"&$M39&\"_new\",Ammortamento_Finanziario!$H:$L,5,FALSE),VLOOKUP($M39,TT_Tabelle_Riferimento!$D$127:$H$164,5,FALSE))","v":40},{"$f":"+IFERROR(VLOOKUP(MB$27&\"-\"&$M39&\"_new\",Ammortamento_Finanziario!$H:$L,5,FALSE),VLOOKUP($M39,TT_Tabelle_Riferimento!$D$127:$H$164,5,FALSE))","v":40},{"$f":"+IFERROR(VLOOKUP(MC$27&\"-\"&$M39&\"_new\",Ammortamento_Finanziario!$H:$L,5,FALSE),VLOOKUP($M39,TT_Tabelle_Riferimento!$D$127:$H$164,5,FALSE))","v":40},{"$f":"+IFERROR(VLOOKUP(MD$27&\"-\"&$M39&\"_new\",Ammortamento_Finanziario!$H:$L,5,FALSE),VLOOKUP($M39,TT_Tabelle_Riferimento!$D$127:$H$164,5,FALSE))","v":40},{"$f":"+IFERROR(VLOOKUP(ME$27&\"-\"&$M39&\"_new\",Ammortamento_Finanziario!$H:$L,5,FALSE),VLOOKUP($M39,TT_Tabelle_Riferimento!$D$127:$H$164,5,FALSE))","v":40},{"$f":"+IFERROR(VLOOKUP(MF$27&\"-\"&$M39&\"_new\",Ammortamento_Finanziario!$H:$L,5,FALSE),VLOOKUP($M39,TT_Tabelle_Riferimento!$D$127:$H$164,5,FALSE))","v":40},{"$f":"+IFERROR(VLOOKUP(MG$27&\"-\"&$M39&\"_new\",Ammortamento_Finanziario!$H:$L,5,FALSE),VLOOKUP($M39,TT_Tabelle_Riferimento!$D$127:$H$164,5,FALSE))","v":40},{"$f":"+IFERROR(VLOOKUP(MH$27&\"-\"&$M39&\"_new\",Ammortamento_Finanziario!$H:$L,5,FALSE),VLOOKUP($M39,TT_Tabelle_Riferimento!$D$127:$H$164,5,FALSE))","v":40},{"$f":"+IFERROR(VLOOKUP(MI$27&\"-\"&$M39&\"_new\",Ammortamento_Finanziario!$H:$L,5,FALSE),VLOOKUP($M39,TT_Tabelle_Riferimento!$D$127:$H$164,5,FALSE))","v":40},{"$f":"+IFERROR(VLOOKUP(MJ$27&\"-\"&$M39&\"_new\",Ammortamento_Finanziario!$H:$L,5,FALSE),VLOOKUP($M39,TT_Tabelle_Riferimento!$D$127:$H$164,5,FALSE))","v":40},{"$f":"+IFERROR(VLOOKUP(MK$27&\"-\"&$M39&\"_new\",Ammortamento_Finanziario!$H:$L,5,FALSE),VLOOKUP($M39,TT_Tabelle_Riferimento!$D$127:$H$164,5,FALSE))","v":40},{"$f":"+IFERROR(VLOOKUP(ML$27&\"-\"&$M39&\"_new\",Ammortamento_Finanziario!$H:$L,5,FALSE),VLOOKUP($M39,TT_Tabelle_Riferimento!$D$127:$H$164,5,FALSE))","v":40},{"$f":"+IFERROR(VLOOKUP(MM$27&\"-\"&$M39&\"_new\",Ammortamento_Finanziario!$H:$L,5,FALSE),VLOOKUP($M39,TT_Tabelle_Riferimento!$D$127:$H$164,5,FALSE))","v":40},{"$f":"+IFERROR(VLOOKUP(MN$27&\"-\"&$M39&\"_new\",Ammortamento_Finanziario!$H:$L,5,FALSE),VLOOKUP($M39,TT_Tabelle_Riferimento!$D$127:$H$164,5,FALSE))","v":40},{"$f":"+IFERROR(VLOOKUP(MO$27&\"-\"&$M39&\"_new\",Ammortamento_Finanziario!$H:$L,5,FALSE),VLOOKUP($M39,TT_Tabelle_Riferimento!$D$127:$H$164,5,FALSE))","v":40},{"$f":"+IFERROR(VLOOKUP(MP$27&\"-\"&$M39&\"_new\",Ammortamento_Finanziario!$H:$L,5,FALSE),VLOOKUP($M39,TT_Tabelle_Riferimento!$D$127:$H$164,5,FALSE))","v":40},{"$f":"+IFERROR(VLOOKUP(MQ$27&\"-\"&$M39&\"_new\",Ammortamento_Finanziario!$H:$L,5,FALSE),VLOOKUP($M39,TT_Tabelle_Riferimento!$D$127:$H$164,5,FALSE))","v":40},{"$f":"+IFERROR(VLOOKUP(MR$27&\"-\"&$M39&\"_new\",Ammortamento_Finanziario!$H:$L,5,FALSE),VLOOKUP($M39,TT_Tabelle_Riferimento!$D$127:$H$164,5,FALSE))","v":40},{"$f":"+IFERROR(VLOOKUP(MS$27&\"-\"&$M39&\"_new\",Ammortamento_Finanziario!$H:$L,5,FALSE),VLOOKUP($M39,TT_Tabelle_Riferimento!$D$127:$H$164,5,FALSE))","v":40},{"$f":"+IFERROR(VLOOKUP(MT$27&\"-\"&$M39&\"_new\",Ammortamento_Finanziario!$H:$L,5,FALSE),VLOOKUP($M39,TT_Tabelle_Riferimento!$D$127:$H$164,5,FALSE))","v":40},{"$f":"+IFERROR(VLOOKUP(MU$27&\"-\"&$M39&\"_new\",Ammortamento_Finanziario!$H:$L,5,FALSE),VLOOKUP($M39,TT_Tabelle_Riferimento!$D$127:$H$164,5,FALSE))","v":40},{"$f":"+IFERROR(VLOOKUP(MV$27&\"-\"&$M39&\"_new\",Ammortamento_Finanziario!$H:$L,5,FALSE),VLOOKUP($M39,TT_Tabelle_Riferimento!$D$127:$H$164,5,FALSE))","v":40},{"$f":"+IFERROR(VLOOKUP(MW$27&\"-\"&$M39&\"_new\",Ammortamento_Finanziario!$H:$L,5,FALSE),VLOOKUP($M39,TT_Tabelle_Riferimento!$D$127:$H$164,5,FALSE))","v":40},{"$f":"+IFERROR(VLOOKUP(MX$27&\"-\"&$M39&\"_new\",Ammortamento_Finanziario!$H:$L,5,FALSE),VLOOKUP($M39,TT_Tabelle_Riferimento!$D$127:$H$164,5,FALSE))","v":40},{"$f":"+IFERROR(VLOOKUP(MY$27&\"-\"&$M39&\"_new\",Ammortamento_Finanziario!$H:$L,5,FALSE),VLOOKUP($M39,TT_Tabelle_Riferimento!$D$127:$H$164,5,FALSE))","v":40},{"$f":"+IFERROR(VLOOKUP(MZ$27&\"-\"&$M39&\"_new\",Ammortamento_Finanziario!$H:$L,5,FALSE),VLOOKUP($M39,TT_Tabelle_Riferimento!$D$127:$H$164,5,FALSE))","v":40},{"$f":"+IFERROR(VLOOKUP(NA$27&\"-\"&$M39&\"_new\",Ammortamento_Finanziario!$H:$L,5,FALSE),VLOOKUP($M39,TT_Tabelle_Riferimento!$D$127:$H$164,5,FALSE))","v":40},{"$f":"+IFERROR(VLOOKUP(NB$27&\"-\"&$M39&\"_new\",Ammortamento_Finanziario!$H:$L,5,FALSE),VLOOKUP($M39,TT_Tabelle_Riferimento!$D$127:$H$164,5,FALSE))","v":40},{"$f":"+IFERROR(VLOOKUP(NC$27&\"-\"&$M39&\"_new\",Ammortamento_Finanziario!$H:$L,5,FALSE),VLOOKUP($M39,TT_Tabelle_Riferimento!$D$127:$H$164,5,FALSE))","v":40},{"$f":"+IFERROR(VLOOKUP(ND$27&\"-\"&$M39&\"_new\",Ammortamento_Finanziario!$H:$L,5,FALSE),VLOOKUP($M39,TT_Tabelle_Riferimento!$D$127:$H$164,5,FALSE))","v":40},{"$f":"+IFERROR(VLOOKUP(NE$27&\"-\"&$M39&\"_new\",Ammortamento_Finanziario!$H:$L,5,FALSE),VLOOKUP($M39,TT_Tabelle_Riferimento!$D$127:$H$164,5,FALSE))","v":40},{"$f":"+IFERROR(VLOOKUP(NF$27&\"-\"&$M39&\"_new\",Ammortamento_Finanziario!$H:$L,5,FALSE),VLOOKUP($M39,TT_Tabelle_Riferimento!$D$127:$H$164,5,FALSE))","v":40},{"$f":"+IFERROR(VLOOKUP(NG$27&\"-\"&$M39&\"_new\",Ammortamento_Finanziario!$H:$L,5,FALSE),VLOOKUP($M39,TT_Tabelle_Riferimento!$D$127:$H$164,5,FALSE))","v":40},{"$f":"+IFERROR(VLOOKUP(NH$27&\"-\"&$M39&\"_new\",Ammortamento_Finanziario!$H:$L,5,FALSE),VLOOKUP($M39,TT_Tabelle_Riferimento!$D$127:$H$164,5,FALSE))","v":40},{"$f":"+IFERROR(VLOOKUP(NI$27&\"-\"&$M39&\"_new\",Ammortamento_Finanziario!$H:$L,5,FALSE),VLOOKUP($M39,TT_Tabelle_Riferimento!$D$127:$H$164,5,FALSE))","v":40},{"$f":"+IFERROR(VLOOKUP(NJ$27&\"-\"&$M39&\"_new\",Ammortamento_Finanziario!$H:$L,5,FALSE),VLOOKUP($M39,TT_Tabelle_Riferimento!$D$127:$H$164,5,FALSE))","v":40},{"$f":"+IFERROR(VLOOKUP(NK$27&\"-\"&$M39&\"_new\",Ammortamento_Finanziario!$H:$L,5,FALSE),VLOOKUP($M39,TT_Tabelle_Riferimento!$D$127:$H$164,5,FALSE))","v":40},{"$f":"+IFERROR(VLOOKUP(NL$27&\"-\"&$M39&\"_new\",Ammortamento_Finanziario!$H:$L,5,FALSE),VLOOKUP($M39,TT_Tabelle_Riferimento!$D$127:$H$164,5,FALSE))","v":40},{"$f":"+IFERROR(VLOOKUP(NM$27&\"-\"&$M39&\"_new\",Ammortamento_Finanziario!$H:$L,5,FALSE),VLOOKUP($M39,TT_Tabelle_Riferimento!$D$127:$H$164,5,FALSE))","v":40},{"$f":"+IFERROR(VLOOKUP(NN$27&\"-\"&$M39&\"_new\",Ammortamento_Finanziario!$H:$L,5,FALSE),VLOOKUP($M39,TT_Tabelle_Riferimento!$D$127:$H$164,5,FALSE))","v":40},{"$f":"+IFERROR(VLOOKUP(NO$27&\"-\"&$M39&\"_new\",Ammortamento_Finanziario!$H:$L,5,FALSE),VLOOKUP($M39,TT_Tabelle_Riferimento!$D$127:$H$164,5,FALSE))","v":40},{"$f":"+IFERROR(VLOOKUP(NP$27&\"-\"&$M39&\"_new\",Ammortamento_Finanziario!$H:$L,5,FALSE),VLOOKUP($M39,TT_Tabelle_Riferimento!$D$127:$H$164,5,FALSE))","v":40},{"$f":"+IFERROR(VLOOKUP(NQ$27&\"-\"&$M39&\"_new\",Ammortamento_Finanziario!$H:$L,5,FALSE),VLOOKUP($M39,TT_Tabelle_Riferimento!$D$127:$H$164,5,FALSE))","v":40},{"$f":"+IFERROR(VLOOKUP(NR$27&\"-\"&$M39&\"_new\",Ammortamento_Finanziario!$H:$L,5,FALSE),VLOOKUP($M39,TT_Tabelle_Riferimento!$D$127:$H$164,5,FALSE))","v":40},{"$f":"+IFERROR(VLOOKUP(NS$27&\"-\"&$M39&\"_new\",Ammortamento_Finanziario!$H:$L,5,FALSE),VLOOKUP($M39,TT_Tabelle_Riferimento!$D$127:$H$164,5,FALSE))","v":40},{"$f":"+IFERROR(VLOOKUP(NT$27&\"-\"&$M39&\"_new\",Ammortamento_Finanziario!$H:$L,5,FALSE),VLOOKUP($M39,TT_Tabelle_Riferimento!$D$127:$H$164,5,FALSE))","v":40},{"$f":"+IFERROR(VLOOKUP(NU$27&\"-\"&$M39&\"_new\",Ammortamento_Finanziario!$H:$L,5,FALSE),VLOOKUP($M39,TT_Tabelle_Riferimento!$D$127:$H$164,5,FALSE))","v":40},{"$f":"+IFERROR(VLOOKUP(NV$27&\"-\"&$M39&\"_new\",Ammortamento_Finanziario!$H:$L,5,FALSE),VLOOKUP($M39,TT_Tabelle_Riferimento!$D$127:$H$164,5,FALSE))","v":40},{"$f":"+IFERROR(VLOOKUP(NW$27&\"-\"&$M39&\"_new\",Ammortamento_Finanziario!$H:$L,5,FALSE),VLOOKUP($M39,TT_Tabelle_Riferimento!$D$127:$H$164,5,FALSE))","v":40},{"$f":"+IFERROR(VLOOKUP(NX$27&\"-\"&$M39&\"_new\",Ammortamento_Finanziario!$H:$L,5,FALSE),VLOOKUP($M39,TT_Tabelle_Riferimento!$D$127:$H$164,5,FALSE))","v":40},{"$f":"+IFERROR(VLOOKUP(NY$27&\"-\"&$M39&\"_new\",Ammortamento_Finanziario!$H:$L,5,FALSE),VLOOKUP($M39,TT_Tabelle_Riferimento!$D$127:$H$164,5,FALSE))","v":40},{"$f":"+IFERROR(VLOOKUP(NZ$27&\"-\"&$M39&\"_new\",Ammortamento_Finanziario!$H:$L,5,FALSE),VLOOKUP($M39,TT_Tabelle_Riferimento!$D$127:$H$164,5,FALSE))","v":40},{"$f":"+IFERROR(VLOOKUP(OA$27&\"-\"&$M39&\"_new\",Ammortamento_Finanziario!$H:$L,5,FALSE),VLOOKUP($M39,TT_Tabelle_Riferimento!$D$127:$H$164,5,FALSE))","v":40},{"$f":"+IFERROR(VLOOKUP(OB$27&\"-\"&$M39&\"_new\",Ammortamento_Finanziario!$H:$L,5,FALSE),VLOOKUP($M39,TT_Tabelle_Riferimento!$D$127:$H$164,5,FALSE))","v":40},{"$f":"+IFERROR(VLOOKUP(OC$27&\"-\"&$M39&\"_new\",Ammortamento_Finanziario!$H:$L,5,FALSE),VLOOKUP($M39,TT_Tabelle_Riferimento!$D$127:$H$164,5,FALSE))","v":40},{"$f":"+IFERROR(VLOOKUP(OD$27&\"-\"&$M39&\"_new\",Ammortamento_Finanziario!$H:$L,5,FALSE),VLOOKUP($M39,TT_Tabelle_Riferimento!$D$127:$H$164,5,FALSE))","v":40},{"$f":"+IFERROR(VLOOKUP(OE$27&\"-\"&$M39&\"_new\",Ammortamento_Finanziario!$H:$L,5,FALSE),VLOOKUP($M39,TT_Tabelle_Riferimento!$D$127:$H$164,5,FALSE))","v":40},{"$f":"+IFERROR(VLOOKUP(OF$27&\"-\"&$M39&\"_new\",Ammortamento_Finanziario!$H:$L,5,FALSE),VLOOKUP($M39,TT_Tabelle_Riferimento!$D$127:$H$164,5,FALSE))","v":40},{"$f":"+IFERROR(VLOOKUP(OG$27&\"-\"&$M39&\"_new\",Ammortamento_Finanziario!$H:$L,5,FALSE),VLOOKUP($M39,TT_Tabelle_Riferimento!$D$127:$H$164,5,FALSE))","v":40},{"$f":"+IFERROR(VLOOKUP(OH$27&\"-\"&$M39&\"_new\",Ammortamento_Finanziario!$H:$L,5,FALSE),VLOOKUP($M39,TT_Tabelle_Riferimento!$D$127:$H$164,5,FALSE))","v":40},{"$f":"+IFERROR(VLOOKUP(OI$27&\"-\"&$M39&\"_new\",Ammortamento_Finanziario!$H:$L,5,FALSE),VLOOKUP($M39,TT_Tabelle_Riferimento!$D$127:$H$164,5,FALSE))","v":40},{"$f":"+IFERROR(VLOOKUP(OJ$27&\"-\"&$M39&\"_new\",Ammortamento_Finanziario!$H:$L,5,FALSE),VLOOKUP($M39,TT_Tabelle_Riferimento!$D$127:$H$164,5,FALSE))","v":40},{"$f":"+IFERROR(VLOOKUP(OK$27&\"-\"&$M39&\"_new\",Ammortamento_Finanziario!$H:$L,5,FALSE),VLOOKUP($M39,TT_Tabelle_Riferimento!$D$127:$H$164,5,FALSE))","v":40},{"$f":"+IFERROR(VLOOKUP(OL$27&\"-\"&$M39&\"_new\",Ammortamento_Finanziario!$H:$L,5,FALSE),VLOOKUP($M39,TT_Tabelle_Riferimento!$D$127:$H$164,5,FALSE))","v":40},{"$f":"+IFERROR(VLOOKUP(OM$27&\"-\"&$M39&\"_new\",Ammortamento_Finanziario!$H:$L,5,FALSE),VLOOKUP($M39,TT_Tabelle_Riferimento!$D$127:$H$164,5,FALSE))","v":40},{"$f":"+IFERROR(VLOOKUP(ON$27&\"-\"&$M39&\"_new\",Ammortamento_Finanziario!$H:$L,5,FALSE),VLOOKUP($M39,TT_Tabelle_Riferimento!$D$127:$H$164,5,FALSE))","v":40},{"$f":"+IFERROR(VLOOKUP(OO$27&\"-\"&$M39&\"_new\",Ammortamento_Finanziario!$H:$L,5,FALSE),VLOOKUP($M39,TT_Tabelle_Riferimento!$D$127:$H$164,5,FALSE))","v":40},{"$f":"+IFERROR(VLOOKUP(OP$27&\"-\"&$M39&\"_new\",Ammortamento_Finanziario!$H:$L,5,FALSE),VLOOKUP($M39,TT_Tabelle_Riferimento!$D$127:$H$164,5,FALSE))","v":40},{"$f":"+IFERROR(VLOOKUP(OQ$27&\"-\"&$M39&\"_new\",Ammortamento_Finanziario!$H:$L,5,FALSE),VLOOKUP($M39,TT_Tabelle_Riferimento!$D$127:$H$164,5,FALSE))","v":40},{"$f":"+IFERROR(VLOOKUP(OR$27&\"-\"&$M39&\"_new\",Ammortamento_Finanziario!$H:$L,5,FALSE),VLOOKUP($M39,TT_Tabelle_Riferimento!$D$127:$H$164,5,FALSE))","v":40},{"$f":"+IFERROR(VLOOKUP(OS$27&\"-\"&$M39&\"_new\",Ammortamento_Finanziario!$H:$L,5,FALSE),VLOOKUP($M39,TT_Tabelle_Riferimento!$D$127:$H$164,5,FALSE))","v":40},{"$f":"+IFERROR(VLOOKUP(OT$27&\"-\"&$M39&\"_new\",Ammortamento_Finanziario!$H:$L,5,FALSE),VLOOKUP($M39,TT_Tabelle_Riferimento!$D$127:$H$164,5,FALSE))","v":40},{"$f":"+IFERROR(VLOOKUP(OU$27&\"-\"&$M39&\"_new\",Ammortamento_Finanziario!$H:$L,5,FALSE),VLOOKUP($M39,TT_Tabelle_Riferimento!$D$127:$H$164,5,FALSE))","v":40},{"$f":"+IFERROR(VLOOKUP(OV$27&\"-\"&$M39&\"_new\",Ammortamento_Finanziario!$H:$L,5,FALSE),VLOOKUP($M39,TT_Tabelle_Riferimento!$D$127:$H$164,5,FALSE))","v":40},{"$f":"+IFERROR(VLOOKUP(OW$27&\"-\"&$M39&\"_new\",Ammortamento_Finanziario!$H:$L,5,FALSE),VLOOKUP($M39,TT_Tabelle_Riferimento!$D$127:$H$164,5,FALSE))","v":40},{"$f":"+IFERROR(VLOOKUP(OX$27&\"-\"&$M39&\"_new\",Ammortamento_Finanziario!$H:$L,5,FALSE),VLOOKUP($M39,TT_Tabelle_Riferimento!$D$127:$H$164,5,FALSE))","v":40},{"$f":"+IFERROR(VLOOKUP(OY$27&\"-\"&$M39&\"_new\",Ammortamento_Finanziario!$H:$L,5,FALSE),VLOOKUP($M39,TT_Tabelle_Riferimento!$D$127:$H$164,5,FALSE))","v":40},{"$f":"+IFERROR(VLOOKUP(OZ$27&\"-\"&$M39&\"_new\",Ammortamento_Finanziario!$H:$L,5,FALSE),VLOOKUP($M39,TT_Tabelle_Riferimento!$D$127:$H$164,5,FALSE))","v":40},{"$f":"+IFERROR(VLOOKUP(PA$27&\"-\"&$M39&\"_new\",Ammortamento_Finanziario!$H:$L,5,FALSE),VLOOKUP($M39,TT_Tabelle_Riferimento!$D$127:$H$164,5,FALSE))","v":40},{"$f":"+IFERROR(VLOOKUP(PB$27&\"-\"&$M39&\"_new\",Ammortamento_Finanziario!$H:$L,5,FALSE),VLOOKUP($M39,TT_Tabelle_Riferimento!$D$127:$H$164,5,FALSE))","v":40},{"$f":"+IFERROR(VLOOKUP(PC$27&\"-\"&$M39&\"_new\",Ammortamento_Finanziario!$H:$L,5,FALSE),VLOOKUP($M39,TT_Tabelle_Riferimento!$D$127:$H$164,5,FALSE))","v":40},{"$f":"+IFERROR(VLOOKUP(PD$27&\"-\"&$M39&\"_new\",Ammortamento_Finanziario!$H:$L,5,FALSE),VLOOKUP($M39,TT_Tabelle_Riferimento!$D$127:$H$164,5,FALSE))","v":40},{"$f":"+IFERROR(VLOOKUP(PE$27&\"-\"&$M39&\"_new\",Ammortamento_Finanziario!$H:$L,5,FALSE),VLOOKUP($M39,TT_Tabelle_Riferimento!$D$127:$H$164,5,FALSE))","v":40},{"$f":"+IFERROR(VLOOKUP(PF$27&\"-\"&$M39&\"_new\",Ammortamento_Finanziario!$H:$L,5,FALSE),VLOOKUP($M39,TT_Tabelle_Riferimento!$D$127:$H$164,5,FALSE))","v":40},{"$f":"+IFERROR(VLOOKUP(PG$27&\"-\"&$M39&\"_new\",Ammortamento_Finanziario!$H:$L,5,FALSE),VLOOKUP($M39,TT_Tabelle_Riferimento!$D$127:$H$164,5,FALSE))","v":40},{"$f":"+IFERROR(VLOOKUP(PH$27&\"-\"&$M39&\"_new\",Ammortamento_Finanziario!$H:$L,5,FALSE),VLOOKUP($M39,TT_Tabelle_Riferimento!$D$127:$H$164,5,FALSE))","v":40},{"$f":"+IFERROR(VLOOKUP(PI$27&\"-\"&$M39&\"_new\",Ammortamento_Finanziario!$H:$L,5,FALSE),VLOOKUP($M39,TT_Tabelle_Riferimento!$D$127:$H$164,5,FALSE))","v":40},{"$f":"+IFERROR(VLOOKUP(PJ$27&\"-\"&$M39&\"_new\",Ammortamento_Finanziario!$H:$L,5,FALSE),VLOOKUP($M39,TT_Tabelle_Riferimento!$D$127:$H$164,5,FALSE))","v":40},{"$f":"+IFERROR(VLOOKUP(PK$27&\"-\"&$M39&\"_new\",Ammortamento_Finanziario!$H:$L,5,FALSE),VLOOKUP($M39,TT_Tabelle_Riferimento!$D$127:$H$164,5,FALSE))","v":40},{"$f":"+IFERROR(VLOOKUP(PL$27&\"-\"&$M39&\"_new\",Ammortamento_Finanziario!$H:$L,5,FALSE),VLOOKUP($M39,TT_Tabelle_Riferimento!$D$127:$H$164,5,FALSE))","v":40},{"$f":"+IFERROR(VLOOKUP(PM$27&\"-\"&$M39&\"_new\",Ammortamento_Finanziario!$H:$L,5,FALSE),VLOOKUP($M39,TT_Tabelle_Riferimento!$D$127:$H$164,5,FALSE))","v":40},{"$f":"+IFERROR(VLOOKUP(PN$27&\"-\"&$M39&\"_new\",Ammortamento_Finanziario!$H:$L,5,FALSE),VLOOKUP($M39,TT_Tabelle_Riferimento!$D$127:$H$164,5,FALSE))","v":40},{"$f":"+IFERROR(VLOOKUP(PO$27&\"-\"&$M39&\"_new\",Ammortamento_Finanziario!$H:$L,5,FALSE),VLOOKUP($M39,TT_Tabelle_Riferimento!$D$127:$H$164,5,FALSE))","v":40},{"$f":"+IFERROR(VLOOKUP(PP$27&\"-\"&$M39&\"_new\",Ammortamento_Finanziario!$H:$L,5,FALSE),VLOOKUP($M39,TT_Tabelle_Riferimento!$D$127:$H$164,5,FALSE))","v":40},{"$f":"+IFERROR(VLOOKUP(PQ$27&\"-\"&$M39&\"_new\",Ammortamento_Finanziario!$H:$L,5,FALSE),VLOOKUP($M39,TT_Tabelle_Riferimento!$D$127:$H$164,5,FALSE))","v":40},{"$f":"+IFERROR(VLOOKUP(PR$27&\"-\"&$M39&\"_new\",Ammortamento_Finanziario!$H:$L,5,FALSE),VLOOKUP($M39,TT_Tabelle_Riferimento!$D$127:$H$164,5,FALSE))","v":40},{"$f":"+IFERROR(VLOOKUP(PS$27&\"-\"&$M39&\"_new\",Ammortamento_Finanziario!$H:$L,5,FALSE),VLOOKUP($M39,TT_Tabelle_Riferimento!$D$127:$H$164,5,FALSE))","v":40},{"$f":"+IFERROR(VLOOKUP(PT$27&\"-\"&$M39&\"_new\",Ammortamento_Finanziario!$H:$L,5,FALSE),VLOOKUP($M39,TT_Tabelle_Riferimento!$D$127:$H$164,5,FALSE))","v":40},{"$f":"+IFERROR(VLOOKUP(PU$27&\"-\"&$M39&\"_new\",Ammortamento_Finanziario!$H:$L,5,FALSE),VLOOKUP($M39,TT_Tabelle_Riferimento!$D$127:$H$164,5,FALSE))","v":40},{"$f":"+IFERROR(VLOOKUP(PV$27&\"-\"&$M39&\"_new\",Ammortamento_Finanziario!$H:$L,5,FALSE),VLOOKUP($M39,TT_Tabelle_Riferimento!$D$127:$H$164,5,FALSE))","v":40},{"$f":"+IFERROR(VLOOKUP(PW$27&\"-\"&$M39&\"_new\",Ammortamento_Finanziario!$H:$L,5,FALSE),VLOOKUP($M39,TT_Tabelle_Riferimento!$D$127:$H$164,5,FALSE))","v":40},{"$f":"+IFERROR(VLOOKUP(PX$27&\"-\"&$M39&\"_new\",Ammortamento_Finanziario!$H:$L,5,FALSE),VLOOKUP($M39,TT_Tabelle_Riferimento!$D$127:$H$164,5,FALSE))","v":40},{"$f":"+IFERROR(VLOOKUP(PY$27&\"-\"&$M39&\"_new\",Ammortamento_Finanziario!$H:$L,5,FALSE),VLOOKUP($M39,TT_Tabelle_Riferimento!$D$127:$H$164,5,FALSE))","v":40},{"$f":"+IFERROR(VLOOKUP(PZ$27&\"-\"&$M39&\"_new\",Ammortamento_Finanziario!$H:$L,5,FALSE),VLOOKUP($M39,TT_Tabelle_Riferimento!$D$127:$H$164,5,FALSE))","v":40},{"$f":"+IFERROR(VLOOKUP(QA$27&\"-\"&$M39&\"_new\",Ammortamento_Finanziario!$H:$L,5,FALSE),VLOOKUP($M39,TT_Tabelle_Riferimento!$D$127:$H$164,5,FALSE))","v":40},{"$f":"+IFERROR(VLOOKUP(QB$27&\"-\"&$M39&\"_new\",Ammortamento_Finanziario!$H:$L,5,FALSE),VLOOKUP($M39,TT_Tabelle_Riferimento!$D$127:$H$164,5,FALSE))","v":40},{"$f":"+IFERROR(VLOOKUP(QC$27&\"-\"&$M39&\"_new\",Ammortamento_Finanziario!$H:$L,5,FALSE),VLOOKUP($M39,TT_Tabelle_Riferimento!$D$127:$H$164,5,FALSE))","v":40},{"$f":"+IFERROR(VLOOKUP(QD$27&\"-\"&$M39&\"_new\",Ammortamento_Finanziario!$H:$L,5,FALSE),VLOOKUP($M39,TT_Tabelle_Riferimento!$D$127:$H$164,5,FALSE))","v":40},{"$f":"+IFERROR(VLOOKUP(QE$27&\"-\"&$M39&\"_new\",Ammortamento_Finanziario!$H:$L,5,FALSE),VLOOKUP($M39,TT_Tabelle_Riferimento!$D$127:$H$164,5,FALSE))","v":40},{"$f":"+IFERROR(VLOOKUP(QF$27&\"-\"&$M39&\"_new\",Ammortamento_Finanziario!$H:$L,5,FALSE),VLOOKUP($M39,TT_Tabelle_Riferimento!$D$127:$H$164,5,FALSE))","v":40},{"$f":"+IFERROR(VLOOKUP(QG$27&\"-\"&$M39&\"_new\",Ammortamento_Finanziario!$H:$L,5,FALSE),VLOOKUP($M39,TT_Tabelle_Riferimento!$D$127:$H$164,5,FALSE))","v":40},{"$f":"+IFERROR(VLOOKUP(QH$27&\"-\"&$M39&\"_new\",Ammortamento_Finanziario!$H:$L,5,FALSE),VLOOKUP($M39,TT_Tabelle_Riferimento!$D$127:$H$164,5,FALSE))","v":40},{"$f":"+IFERROR(VLOOKUP(QI$27&\"-\"&$M39&\"_new\",Ammortamento_Finanziario!$H:$L,5,FALSE),VLOOKUP($M39,TT_Tabelle_Riferimento!$D$127:$H$164,5,FALSE))","v":40},{"$f":"+IFERROR(VLOOKUP(QJ$27&\"-\"&$M39&\"_new\",Ammortamento_Finanziario!$H:$L,5,FALSE),VLOOKUP($M39,TT_Tabelle_Riferimento!$D$127:$H$164,5,FALSE))","v":40},{"$f":"+IFERROR(VLOOKUP(QK$27&\"-\"&$M39&\"_new\",Ammortamento_Finanziario!$H:$L,5,FALSE),VLOOKUP($M39,TT_Tabelle_Riferimento!$D$127:$H$164,5,FALSE))","v":40},{"$f":"+IFERROR(VLOOKUP(QL$27&\"-\"&$M39&\"_new\",Ammortamento_Finanziario!$H:$L,5,FALSE),VLOOKUP($M39,TT_Tabelle_Riferimento!$D$127:$H$164,5,FALSE))","v":40},{"$f":"+IFERROR(VLOOKUP(QM$27&\"-\"&$M39&\"_new\",Ammortamento_Finanziario!$H:$L,5,FALSE),VLOOKUP($M39,TT_Tabelle_Riferimento!$D$127:$H$164,5,FALSE))","v":40},{"$f":"+IFERROR(VLOOKUP(QN$27&\"-\"&$M39&\"_new\",Ammortamento_Finanziario!$H:$L,5,FALSE),VLOOKUP($M39,TT_Tabelle_Riferimento!$D$127:$H$164,5,FALSE))","v":40},{"$f":"+IFERROR(VLOOKUP(QO$27&\"-\"&$M39&\"_new\",Ammortamento_Finanziario!$H:$L,5,FALSE),VLOOKUP($M39,TT_Tabelle_Riferimento!$D$127:$H$164,5,FALSE))","v":40},{"$f":"+IFERROR(VLOOKUP(QP$27&\"-\"&$M39&\"_new\",Ammortamento_Finanziario!$H:$L,5,FALSE),VLOOKUP($M39,TT_Tabelle_Riferimento!$D$127:$H$164,5,FALSE))","v":40},{"$f":"+IFERROR(VLOOKUP(QQ$27&\"-\"&$M39&\"_new\",Ammortamento_Finanziario!$H:$L,5,FALSE),VLOOKUP($M39,TT_Tabelle_Riferimento!$D$127:$H$164,5,FALSE))","v":40},{"$f":"+IFERROR(VLOOKUP(QR$27&\"-\"&$M39&\"_new\",Ammortamento_Finanziario!$H:$L,5,FALSE),VLOOKUP($M39,TT_Tabelle_Riferimento!$D$127:$H$164,5,FALSE))","v":40},{"$f":"+IFERROR(VLOOKUP(QS$27&\"-\"&$M39&\"_new\",Ammortamento_Finanziario!$H:$L,5,FALSE),VLOOKUP($M39,TT_Tabelle_Riferimento!$D$127:$H$164,5,FALSE))","v":40},{"$f":"+IFERROR(VLOOKUP(QT$27&\"-\"&$M39&\"_new\",Ammortamento_Finanziario!$H:$L,5,FALSE),VLOOKUP($M39,TT_Tabelle_Riferimento!$D$127:$H$164,5,FALSE))","v":40},{"$f":"+IFERROR(VLOOKUP(QU$27&\"-\"&$M39&\"_new\",Ammortamento_Finanziario!$H:$L,5,FALSE),VLOOKUP($M39,TT_Tabelle_Riferimento!$D$127:$H$164,5,FALSE))","v":40},{"$f":"+IFERROR(VLOOKUP(QV$27&\"-\"&$M39&\"_new\",Ammortamento_Finanziario!$H:$L,5,FALSE),VLOOKUP($M39,TT_Tabelle_Riferimento!$D$127:$H$164,5,FALSE))","v":40},{"$f":"+IFERROR(VLOOKUP(QW$27&\"-\"&$M39&\"_new\",Ammortamento_Finanziario!$H:$L,5,FALSE),VLOOKUP($M39,TT_Tabelle_Riferimento!$D$127:$H$164,5,FALSE))","v":40},{"$f":"+IFERROR(VLOOKUP(QX$27&\"-\"&$M39&\"_new\",Ammortamento_Finanziario!$H:$L,5,FALSE),VLOOKUP($M39,TT_Tabelle_Riferimento!$D$127:$H$164,5,FALSE))","v":40},{"$f":"+IFERROR(VLOOKUP(QY$27&\"-\"&$M39&\"_new\",Ammortamento_Finanziario!$H:$L,5,FALSE),VLOOKUP($M39,TT_Tabelle_Riferimento!$D$127:$H$164,5,FALSE))","v":40},{"$f":"+IFERROR(VLOOKUP(QZ$27&\"-\"&$M39&\"_new\",Ammortamento_Finanziario!$H:$L,5,FALSE),VLOOKUP($M39,TT_Tabelle_Riferimento!$D$127:$H$164,5,FALSE))","v":40},{"$f":"+IFERROR(VLOOKUP(RA$27&\"-\"&$M39&\"_new\",Ammortamento_Finanziario!$H:$L,5,FALSE),VLOOKUP($M39,TT_Tabelle_Riferimento!$D$127:$H$164,5,FALSE))","v":40},{"$f":"+IFERROR(VLOOKUP(RB$27&\"-\"&$M39&\"_new\",Ammortamento_Finanziario!$H:$L,5,FALSE),VLOOKUP($M39,TT_Tabelle_Riferimento!$D$127:$H$164,5,FALSE))","v":40},{"$f":"+IFERROR(VLOOKUP(RC$27&\"-\"&$M39&\"_new\",Ammortamento_Finanziario!$H:$L,5,FALSE),VLOOKUP($M39,TT_Tabelle_Riferimento!$D$127:$H$164,5,FALSE))","v":40},{"$f":"+IFERROR(VLOOKUP(RD$27&\"-\"&$M39&\"_new\",Ammortamento_Finanziario!$H:$L,5,FALSE),VLOOKUP($M39,TT_Tabelle_Riferimento!$D$127:$H$164,5,FALSE))","v":40},{"$f":"+IFERROR(VLOOKUP(RE$27&\"-\"&$M39&\"_new\",Ammortamento_Finanziario!$H:$L,5,FALSE),VLOOKUP($M39,TT_Tabelle_Riferimento!$D$127:$H$164,5,FALSE))","v":40},{"$f":"+IFERROR(VLOOKUP(RF$27&\"-\"&$M39&\"_new\",Ammortamento_Finanziario!$H:$L,5,FALSE),VLOOKUP($M39,TT_Tabelle_Riferimento!$D$127:$H$164,5,FALSE))","v":40},{"$f":"+IFERROR(VLOOKUP(RG$27&\"-\"&$M39&\"_new\",Ammortamento_Finanziario!$H:$L,5,FALSE),VLOOKUP($M39,TT_Tabelle_Riferimento!$D$127:$H$164,5,FALSE))","v":40},{"$f":"+IFERROR(VLOOKUP(RH$27&\"-\"&$M39&\"_new\",Ammortamento_Finanziario!$H:$L,5,FALSE),VLOOKUP($M39,TT_Tabelle_Riferimento!$D$127:$H$164,5,FALSE))","v":40},{"$f":"+IFERROR(VLOOKUP(RI$27&\"-\"&$M39&\"_new\",Ammortamento_Finanziario!$H:$L,5,FALSE),VLOOKUP($M39,TT_Tabelle_Riferimento!$D$127:$H$164,5,FALSE))","v":40},{"$f":"+IFERROR(VLOOKUP(RJ$27&\"-\"&$M39&\"_new\",Ammortamento_Finanziario!$H:$L,5,FALSE),VLOOKUP($M39,TT_Tabelle_Riferimento!$D$127:$H$164,5,FALSE))","v":40},{"$f":"+IFERROR(VLOOKUP(RK$27&\"-\"&$M39&\"_new\",Ammortamento_Finanziario!$H:$L,5,FALSE),VLOOKUP($M39,TT_Tabelle_Riferimento!$D$127:$H$164,5,FALSE))","v":40},{"$f":"+IFERROR(VLOOKUP(RL$27&\"-\"&$M39&\"_new\",Ammortamento_Finanziario!$H:$L,5,FALSE),VLOOKUP($M39,TT_Tabelle_Riferimento!$D$127:$H$164,5,FALSE))","v":40},{"$f":"+IFERROR(VLOOKUP(RM$27&\"-\"&$M39&\"_new\",Ammortamento_Finanziario!$H:$L,5,FALSE),VLOOKUP($M39,TT_Tabelle_Riferimento!$D$127:$H$164,5,FALSE))","v":40},{"$f":"+IFERROR(VLOOKUP(RN$27&\"-\"&$M39&\"_new\",Ammortamento_Finanziario!$H:$L,5,FALSE),VLOOKUP($M39,TT_Tabelle_Riferimento!$D$127:$H$164,5,FALSE))","v":40},{"$f":"+IFERROR(VLOOKUP(RO$27&\"-\"&$M39&\"_new\",Ammortamento_Finanziario!$H:$L,5,FALSE),VLOOKUP($M39,TT_Tabelle_Riferimento!$D$127:$H$164,5,FALSE))","v":40},{"$f":"+IFERROR(VLOOKUP(RP$27&\"-\"&$M39&\"_new\",Ammortamento_Finanziario!$H:$L,5,FALSE),VLOOKUP($M39,TT_Tabelle_Riferimento!$D$127:$H$164,5,FALSE))","v":40},{"$f":"+IFERROR(VLOOKUP(RQ$27&\"-\"&$M39&\"_new\",Ammortamento_Finanziario!$H:$L,5,FALSE),VLOOKUP($M39,TT_Tabelle_Riferimento!$D$127:$H$164,5,FALSE))","v":40},{"$f":"+IFERROR(VLOOKUP(RR$27&\"-\"&$M39&\"_new\",Ammortamento_Finanziario!$H:$L,5,FALSE),VLOOKUP($M39,TT_Tabelle_Riferimento!$D$127:$H$164,5,FALSE))","v":40},{"$f":"+IFERROR(VLOOKUP(RS$27&\"-\"&$M39&\"_new\",Ammortamento_Finanziario!$H:$L,5,FALSE),VLOOKUP($M39,TT_Tabelle_Riferimento!$D$127:$H$164,5,FALSE))","v":40},{"$f":"+IFERROR(VLOOKUP(RT$27&\"-\"&$M39&\"_new\",Ammortamento_Finanziario!$H:$L,5,FALSE),VLOOKUP($M39,TT_Tabelle_Riferimento!$D$127:$H$164,5,FALSE))","v":40},{"$f":"+IFERROR(VLOOKUP(RU$27&\"-\"&$M39&\"_new\",Ammortamento_Finanziario!$H:$L,5,FALSE),VLOOKUP($M39,TT_Tabelle_Riferimento!$D$127:$H$164,5,FALSE))","v":40},{"$f":"+IFERROR(VLOOKUP(RV$27&\"-\"&$M39&\"_new\",Ammortamento_Finanziario!$H:$L,5,FALSE),VLOOKUP($M39,TT_Tabelle_Riferimento!$D$127:$H$164,5,FALSE))","v":40}]
[null,null,null,"Immobilizzazioni nette del gestore - di cui ERCenv",null,null,null,null,null,null,null,null,13,0,0,0,0,0,0,0,0,0,0,0,0,0,0,0,0,0,0,0,0,0,0,0,0,0,0,0,0,0,0,0,0,0,0,0,0,0,0,0,0,0,0,0,0,0,0,0,0,0,0,0,0,0,0,0,0,0,0,0,0,0,0,0,0,0,0,0,0,0,0,0,0,0,0,0,0,0,0,0,0,0,0,0,0,0,0,0,0,0,0,0,0,0,0,0,0,0,0,0,0,0,0,0,0,0,0,0,0,0,0,0,0,0,0,0,0,0,0,0,0,0,0,0,0,0,0,0,0,0,0,0,0,0,0,0,0,0,0,0,0,0,0,0,0,0,0,0,0,0,0,0,0,0,0,0,0,0,0,0,0,0,0,0,0,0,0,0,0,0,0,0,0,0,0,0,0,0,0,0,0,0,0,0,0,0,0,0,0,0,0,0,0,0,0,0,0,0,0,0,0,0,0,0,0,0,0,0,0,0,0,0,0,0,0,0,0,0,0,0,0,0,0,0,0,0,0,0,0,0,0,0,0,0,0,0,0,0,0,0,0,0,0,0,0,0,0,0,0,0,0,0,0,0,0,0,0,0,0,0,0,0,0,0,0,0,0,0,0,0,0,0,0,0,0,0,0,0,0,0,0,0,0,0,0,0,0,0,0,0,{"$f":"+IFERROR(VLOOKUP(KQ$27&\"-\"&$M40&\"_new\",Ammortamento_Finanziario!$H:$L,5,FALSE),VLOOKUP($M40,TT_Tabelle_Riferimento!$D$127:$H$164,5,FALSE))","v":40},{"$f":"+IFERROR(VLOOKUP(KR$27&\"-\"&$M40&\"_new\",Ammortamento_Finanziario!$H:$L,5,FALSE),VLOOKUP($M40,TT_Tabelle_Riferimento!$D$127:$H$164,5,FALSE))","v":40},{"$f":"+IFERROR(VLOOKUP(KS$27&\"-\"&$M40&\"_new\",Ammortamento_Finanziario!$H:$L,5,FALSE),VLOOKUP($M40,TT_Tabelle_Riferimento!$D$127:$H$164,5,FALSE))","v":40},{"$f":"+IFERROR(VLOOKUP(KT$27&\"-\"&$M40&\"_new\",Ammortamento_Finanziario!$H:$L,5,FALSE),VLOOKUP($M40,TT_Tabelle_Riferimento!$D$127:$H$164,5,FALSE))","v":40},{"$f":"+IFERROR(VLOOKUP(KU$27&\"-\"&$M40&\"_new\",Ammortamento_Finanziario!$H:$L,5,FALSE),VLOOKUP($M40,TT_Tabelle_Riferimento!$D$127:$H$164,5,FALSE))","v":40},{"$f":"+IFERROR(VLOOKUP(KV$27&\"-\"&$M40&\"_new\",Ammortamento_Finanziario!$H:$L,5,FALSE),VLOOKUP($M40,TT_Tabelle_Riferimento!$D$127:$H$164,5,FALSE))","v":40},{"$f":"+IFERROR(VLOOKUP(KW$27&\"-\"&$M40&\"_new\",Ammortamento_Finanziario!$H:$L,5,FALSE),VLOOKUP($M40,TT_Tabelle_Riferimento!$D$127:$H$164,5,FALSE))","v":40},{"$f":"+IFERROR(VLOOKUP(KX$27&\"-\"&$M40&\"_new\",Ammortamento_Finanziario!$H:$L,5,FALSE),VLOOKUP($M40,TT_Tabelle_Riferimento!$D$127:$H$164,5,FALSE))","v":40},{"$f":"+IFERROR(VLOOKUP(KY$27&\"-\"&$M40&\"_new\",Ammortamento_Finanziario!$H:$L,5,FALSE),VLOOKUP($M40,TT_Tabelle_Riferimento!$D$127:$H$164,5,FALSE))","v":40},{"$f":"+IFERROR(VLOOKUP(KZ$27&\"-\"&$M40&\"_new\",Ammortamento_Finanziario!$H:$L,5,FALSE),VLOOKUP($M40,TT_Tabelle_Riferimento!$D$127:$H$164,5,FALSE))","v":40},{"$f":"+IFERROR(VLOOKUP(LA$27&\"-\"&$M40&\"_new\",Ammortamento_Finanziario!$H:$L,5,FALSE),VLOOKUP($M40,TT_Tabelle_Riferimento!$D$127:$H$164,5,FALSE))","v":40},{"$f":"+IFERROR(VLOOKUP(LB$27&\"-\"&$M40&\"_new\",Ammortamento_Finanziario!$H:$L,5,FALSE),VLOOKUP($M40,TT_Tabelle_Riferimento!$D$127:$H$164,5,FALSE))","v":40},{"$f":"+IFERROR(VLOOKUP(LC$27&\"-\"&$M40&\"_new\",Ammortamento_Finanziario!$H:$L,5,FALSE),VLOOKUP($M40,TT_Tabelle_Riferimento!$D$127:$H$164,5,FALSE))","v":40},{"$f":"+IFERROR(VLOOKUP(LD$27&\"-\"&$M40&\"_new\",Ammortamento_Finanziario!$H:$L,5,FALSE),VLOOKUP($M40,TT_Tabelle_Riferimento!$D$127:$H$164,5,FALSE))","v":40},{"$f":"+IFERROR(VLOOKUP(LE$27&\"-\"&$M40&\"_new\",Ammortamento_Finanziario!$H:$L,5,FALSE),VLOOKUP($M40,TT_Tabelle_Riferimento!$D$127:$H$164,5,FALSE))","v":40},{"$f":"+IFERROR(VLOOKUP(LF$27&\"-\"&$M40&\"_new\",Ammortamento_Finanziario!$H:$L,5,FALSE),VLOOKUP($M40,TT_Tabelle_Riferimento!$D$127:$H$164,5,FALSE))","v":40},{"$f":"+IFERROR(VLOOKUP(LG$27&\"-\"&$M40&\"_new\",Ammortamento_Finanziario!$H:$L,5,FALSE),VLOOKUP($M40,TT_Tabelle_Riferimento!$D$127:$H$164,5,FALSE))","v":40},{"$f":"+IFERROR(VLOOKUP(LH$27&\"-\"&$M40&\"_new\",Ammortamento_Finanziario!$H:$L,5,FALSE),VLOOKUP($M40,TT_Tabelle_Riferimento!$D$127:$H$164,5,FALSE))","v":40},{"$f":"+IFERROR(VLOOKUP(LI$27&\"-\"&$M40&\"_new\",Ammortamento_Finanziario!$H:$L,5,FALSE),VLOOKUP($M40,TT_Tabelle_Riferimento!$D$127:$H$164,5,FALSE))","v":40},{"$f":"+IFERROR(VLOOKUP(LJ$27&\"-\"&$M40&\"_new\",Ammortamento_Finanziario!$H:$L,5,FALSE),VLOOKUP($M40,TT_Tabelle_Riferimento!$D$127:$H$164,5,FALSE))","v":40},{"$f":"+IFERROR(VLOOKUP(LK$27&\"-\"&$M40&\"_new\",Ammortamento_Finanziario!$H:$L,5,FALSE),VLOOKUP($M40,TT_Tabelle_Riferimento!$D$127:$H$164,5,FALSE))","v":40},{"$f":"+IFERROR(VLOOKUP(LL$27&\"-\"&$M40&\"_new\",Ammortamento_Finanziario!$H:$L,5,FALSE),VLOOKUP($M40,TT_Tabelle_Riferimento!$D$127:$H$164,5,FALSE))","v":40},{"$f":"+IFERROR(VLOOKUP(LM$27&\"-\"&$M40&\"_new\",Ammortamento_Finanziario!$H:$L,5,FALSE),VLOOKUP($M40,TT_Tabelle_Riferimento!$D$127:$H$164,5,FALSE))","v":40},{"$f":"+IFERROR(VLOOKUP(LN$27&\"-\"&$M40&\"_new\",Ammortamento_Finanziario!$H:$L,5,FALSE),VLOOKUP($M40,TT_Tabelle_Riferimento!$D$127:$H$164,5,FALSE))","v":40},{"$f":"+IFERROR(VLOOKUP(LO$27&\"-\"&$M40&\"_new\",Ammortamento_Finanziario!$H:$L,5,FALSE),VLOOKUP($M40,TT_Tabelle_Riferimento!$D$127:$H$164,5,FALSE))","v":40},{"$f":"+IFERROR(VLOOKUP(LP$27&\"-\"&$M40&\"_new\",Ammortamento_Finanziario!$H:$L,5,FALSE),VLOOKUP($M40,TT_Tabelle_Riferimento!$D$127:$H$164,5,FALSE))","v":40},{"$f":"+IFERROR(VLOOKUP(LQ$27&\"-\"&$M40&\"_new\",Ammortamento_Finanziario!$H:$L,5,FALSE),VLOOKUP($M40,TT_Tabelle_Riferimento!$D$127:$H$164,5,FALSE))","v":40},{"$f":"+IFERROR(VLOOKUP(LR$27&\"-\"&$M40&\"_new\",Ammortamento_Finanziario!$H:$L,5,FALSE),VLOOKUP($M40,TT_Tabelle_Riferimento!$D$127:$H$164,5,FALSE))","v":40},{"$f":"+IFERROR(VLOOKUP(LS$27&\"-\"&$M40&\"_new\",Ammortamento_Finanziario!$H:$L,5,FALSE),VLOOKUP($M40,TT_Tabelle_Riferimento!$D$127:$H$164,5,FALSE))","v":40},{"$f":"+IFERROR(VLOOKUP(LT$27&\"-\"&$M40&\"_new\",Ammortamento_Finanziario!$H:$L,5,FALSE),VLOOKUP($M40,TT_Tabelle_Riferimento!$D$127:$H$164,5,FALSE))","v":40},{"$f":"+IFERROR(VLOOKUP(LU$27&\"-\"&$M40&\"_new\",Ammortamento_Finanziario!$H:$L,5,FALSE),VLOOKUP($M40,TT_Tabelle_Riferimento!$D$127:$H$164,5,FALSE))","v":40},{"$f":"+IFERROR(VLOOKUP(LV$27&\"-\"&$M40&\"_new\",Ammortamento_Finanziario!$H:$L,5,FALSE),VLOOKUP($M40,TT_Tabelle_Riferimento!$D$127:$H$164,5,FALSE))","v":40},{"$f":"+IFERROR(VLOOKUP(LW$27&\"-\"&$M40&\"_new\",Ammortamento_Finanziario!$H:$L,5,FALSE),VLOOKUP($M40,TT_Tabelle_Riferimento!$D$127:$H$164,5,FALSE))","v":40},{"$f":"+IFERROR(VLOOKUP(LX$27&\"-\"&$M40&\"_new\",Ammortamento_Finanziario!$H:$L,5,FALSE),VLOOKUP($M40,TT_Tabelle_Riferimento!$D$127:$H$164,5,FALSE))","v":40},{"$f":"+IFERROR(VLOOKUP(LY$27&\"-\"&$M40&\"_new\",Ammortamento_Finanziario!$H:$L,5,FALSE),VLOOKUP($M40,TT_Tabelle_Riferimento!$D$127:$H$164,5,FALSE))","v":40},{"$f":"+IFERROR(VLOOKUP(LZ$27&\"-\"&$M40&\"_new\",Ammortamento_Finanziario!$H:$L,5,FALSE),VLOOKUP($M40,TT_Tabelle_Riferimento!$D$127:$H$164,5,FALSE))","v":40},{"$f":"+IFERROR(VLOOKUP(MA$27&\"-\"&$M40&\"_new\",Ammortamento_Finanziario!$H:$L,5,FALSE),VLOOKUP($M40,TT_Tabelle_Riferimento!$D$127:$H$164,5,FALSE))","v":40},{"$f":"+IFERROR(VLOOKUP(MB$27&\"-\"&$M40&\"_new\",Ammortamento_Finanziario!$H:$L,5,FALSE),VLOOKUP($M40,TT_Tabelle_Riferimento!$D$127:$H$164,5,FALSE))","v":40},{"$f":"+IFERROR(VLOOKUP(MC$27&\"-\"&$M40&\"_new\",Ammortamento_Finanziario!$H:$L,5,FALSE),VLOOKUP($M40,TT_Tabelle_Riferimento!$D$127:$H$164,5,FALSE))","v":40},{"$f":"+IFERROR(VLOOKUP(MD$27&\"-\"&$M40&\"_new\",Ammortamento_Finanziario!$H:$L,5,FALSE),VLOOKUP($M40,TT_Tabelle_Riferimento!$D$127:$H$164,5,FALSE))","v":40},{"$f":"+IFERROR(VLOOKUP(ME$27&\"-\"&$M40&\"_new\",Ammortamento_Finanziario!$H:$L,5,FALSE),VLOOKUP($M40,TT_Tabelle_Riferimento!$D$127:$H$164,5,FALSE))","v":40},{"$f":"+IFERROR(VLOOKUP(MF$27&\"-\"&$M40&\"_new\",Ammortamento_Finanziario!$H:$L,5,FALSE),VLOOKUP($M40,TT_Tabelle_Riferimento!$D$127:$H$164,5,FALSE))","v":40},{"$f":"+IFERROR(VLOOKUP(MG$27&\"-\"&$M40&\"_new\",Ammortamento_Finanziario!$H:$L,5,FALSE),VLOOKUP($M40,TT_Tabelle_Riferimento!$D$127:$H$164,5,FALSE))","v":40},{"$f":"+IFERROR(VLOOKUP(MH$27&\"-\"&$M40&\"_new\",Ammortamento_Finanziario!$H:$L,5,FALSE),VLOOKUP($M40,TT_Tabelle_Riferimento!$D$127:$H$164,5,FALSE))","v":40},{"$f":"+IFERROR(VLOOKUP(MI$27&\"-\"&$M40&\"_new\",Ammortamento_Finanziario!$H:$L,5,FALSE),VLOOKUP($M40,TT_Tabelle_Riferimento!$D$127:$H$164,5,FALSE))","v":40},{"$f":"+IFERROR(VLOOKUP(MJ$27&\"-\"&$M40&\"_new\",Ammortamento_Finanziario!$H:$L,5,FALSE),VLOOKUP($M40,TT_Tabelle_Riferimento!$D$127:$H$164,5,FALSE))","v":40},{"$f":"+IFERROR(VLOOKUP(MK$27&\"-\"&$M40&\"_new\",Ammortamento_Finanziario!$H:$L,5,FALSE),VLOOKUP($M40,TT_Tabelle_Riferimento!$D$127:$H$164,5,FALSE))","v":40},{"$f":"+IFERROR(VLOOKUP(ML$27&\"-\"&$M40&\"_new\",Ammortamento_Finanziario!$H:$L,5,FALSE),VLOOKUP($M40,TT_Tabelle_Riferimento!$D$127:$H$164,5,FALSE))","v":40},{"$f":"+IFERROR(VLOOKUP(MM$27&\"-\"&$M40&\"_new\",Ammortamento_Finanziario!$H:$L,5,FALSE),VLOOKUP($M40,TT_Tabelle_Riferimento!$D$127:$H$164,5,FALSE))","v":40},{"$f":"+IFERROR(VLOOKUP(MN$27&\"-\"&$M40&\"_new\",Ammortamento_Finanziario!$H:$L,5,FALSE),VLOOKUP($M40,TT_Tabelle_Riferimento!$D$127:$H$164,5,FALSE))","v":40},{"$f":"+IFERROR(VLOOKUP(MO$27&\"-\"&$M40&\"_new\",Ammortamento_Finanziario!$H:$L,5,FALSE),VLOOKUP($M40,TT_Tabelle_Riferimento!$D$127:$H$164,5,FALSE))","v":40},{"$f":"+IFERROR(VLOOKUP(MP$27&\"-\"&$M40&\"_new\",Ammortamento_Finanziario!$H:$L,5,FALSE),VLOOKUP($M40,TT_Tabelle_Riferimento!$D$127:$H$164,5,FALSE))","v":40},{"$f":"+IFERROR(VLOOKUP(MQ$27&\"-\"&$M40&\"_new\",Ammortamento_Finanziario!$H:$L,5,FALSE),VLOOKUP($M40,TT_Tabelle_Riferimento!$D$127:$H$164,5,FALSE))","v":40},{"$f":"+IFERROR(VLOOKUP(MR$27&\"-\"&$M40&\"_new\",Ammortamento_Finanziario!$H:$L,5,FALSE),VLOOKUP($M40,TT_Tabelle_Riferimento!$D$127:$H$164,5,FALSE))","v":40},{"$f":"+IFERROR(VLOOKUP(MS$27&\"-\"&$M40&\"_new\",Ammortamento_Finanziario!$H:$L,5,FALSE),VLOOKUP($M40,TT_Tabelle_Riferimento!$D$127:$H$164,5,FALSE))","v":40},{"$f":"+IFERROR(VLOOKUP(MT$27&\"-\"&$M40&\"_new\",Ammortamento_Finanziario!$H:$L,5,FALSE),VLOOKUP($M40,TT_Tabelle_Riferimento!$D$127:$H$164,5,FALSE))","v":40},{"$f":"+IFERROR(VLOOKUP(MU$27&\"-\"&$M40&\"_new\",Ammortamento_Finanziario!$H:$L,5,FALSE),VLOOKUP($M40,TT_Tabelle_Riferimento!$D$127:$H$164,5,FALSE))","v":40},{"$f":"+IFERROR(VLOOKUP(MV$27&\"-\"&$M40&\"_new\",Ammortamento_Finanziario!$H:$L,5,FALSE),VLOOKUP($M40,TT_Tabelle_Riferimento!$D$127:$H$164,5,FALSE))","v":40},{"$f":"+IFERROR(VLOOKUP(MW$27&\"-\"&$M40&\"_new\",Ammortamento_Finanziario!$H:$L,5,FALSE),VLOOKUP($M40,TT_Tabelle_Riferimento!$D$127:$H$164,5,FALSE))","v":40},{"$f":"+IFERROR(VLOOKUP(MX$27&\"-\"&$M40&\"_new\",Ammortamento_Finanziario!$H:$L,5,FALSE),VLOOKUP($M40,TT_Tabelle_Riferimento!$D$127:$H$164,5,FALSE))","v":40},{"$f":"+IFERROR(VLOOKUP(MY$27&\"-\"&$M40&\"_new\",Ammortamento_Finanziario!$H:$L,5,FALSE),VLOOKUP($M40,TT_Tabelle_Riferimento!$D$127:$H$164,5,FALSE))","v":40},{"$f":"+IFERROR(VLOOKUP(MZ$27&\"-\"&$M40&\"_new\",Ammortamento_Finanziario!$H:$L,5,FALSE),VLOOKUP($M40,TT_Tabelle_Riferimento!$D$127:$H$164,5,FALSE))","v":40},{"$f":"+IFERROR(VLOOKUP(NA$27&\"-\"&$M40&\"_new\",Ammortamento_Finanziario!$H:$L,5,FALSE),VLOOKUP($M40,TT_Tabelle_Riferimento!$D$127:$H$164,5,FALSE))","v":40},{"$f":"+IFERROR(VLOOKUP(NB$27&\"-\"&$M40&\"_new\",Ammortamento_Finanziario!$H:$L,5,FALSE),VLOOKUP($M40,TT_Tabelle_Riferimento!$D$127:$H$164,5,FALSE))","v":40},{"$f":"+IFERROR(VLOOKUP(NC$27&\"-\"&$M40&\"_new\",Ammortamento_Finanziario!$H:$L,5,FALSE),VLOOKUP($M40,TT_Tabelle_Riferimento!$D$127:$H$164,5,FALSE))","v":40},{"$f":"+IFERROR(VLOOKUP(ND$27&\"-\"&$M40&\"_new\",Ammortamento_Finanziario!$H:$L,5,FALSE),VLOOKUP($M40,TT_Tabelle_Riferimento!$D$127:$H$164,5,FALSE))","v":40},{"$f":"+IFERROR(VLOOKUP(NE$27&\"-\"&$M40&\"_new\",Ammortamento_Finanziario!$H:$L,5,FALSE),VLOOKUP($M40,TT_Tabelle_Riferimento!$D$127:$H$164,5,FALSE))","v":40},{"$f":"+IFERROR(VLOOKUP(NF$27&\"-\"&$M40&\"_new\",Ammortamento_Finanziario!$H:$L,5,FALSE),VLOOKUP($M40,TT_Tabelle_Riferimento!$D$127:$H$164,5,FALSE))","v":40},{"$f":"+IFERROR(VLOOKUP(NG$27&\"-\"&$M40&\"_new\",Ammortamento_Finanziario!$H:$L,5,FALSE),VLOOKUP($M40,TT_Tabelle_Riferimento!$D$127:$H$164,5,FALSE))","v":40},{"$f":"+IFERROR(VLOOKUP(NH$27&\"-\"&$M40&\"_new\",Ammortamento_Finanziario!$H:$L,5,FALSE),VLOOKUP($M40,TT_Tabelle_Riferimento!$D$127:$H$164,5,FALSE))","v":40},{"$f":"+IFERROR(VLOOKUP(NI$27&\"-\"&$M40&\"_new\",Ammortamento_Finanziario!$H:$L,5,FALSE),VLOOKUP($M40,TT_Tabelle_Riferimento!$D$127:$H$164,5,FALSE))","v":40},{"$f":"+IFERROR(VLOOKUP(NJ$27&\"-\"&$M40&\"_new\",Ammortamento_Finanziario!$H:$L,5,FALSE),VLOOKUP($M40,TT_Tabelle_Riferimento!$D$127:$H$164,5,FALSE))","v":40},{"$f":"+IFERROR(VLOOKUP(NK$27&\"-\"&$M40&\"_new\",Ammortamento_Finanziario!$H:$L,5,FALSE),VLOOKUP($M40,TT_Tabelle_Riferimento!$D$127:$H$164,5,FALSE))","v":40},{"$f":"+IFERROR(VLOOKUP(NL$27&\"-\"&$M40&\"_new\",Ammortamento_Finanziario!$H:$L,5,FALSE),VLOOKUP($M40,TT_Tabelle_Riferimento!$D$127:$H$164,5,FALSE))","v":40},{"$f":"+IFERROR(VLOOKUP(NM$27&\"-\"&$M40&\"_new\",Ammortamento_Finanziario!$H:$L,5,FALSE),VLOOKUP($M40,TT_Tabelle_Riferimento!$D$127:$H$164,5,FALSE))","v":40},{"$f":"+IFERROR(VLOOKUP(NN$27&\"-\"&$M40&\"_new\",Ammortamento_Finanziario!$H:$L,5,FALSE),VLOOKUP($M40,TT_Tabelle_Riferimento!$D$127:$H$164,5,FALSE))","v":40},{"$f":"+IFERROR(VLOOKUP(NO$27&\"-\"&$M40&\"_new\",Ammortamento_Finanziario!$H:$L,5,FALSE),VLOOKUP($M40,TT_Tabelle_Riferimento!$D$127:$H$164,5,FALSE))","v":40},{"$f":"+IFERROR(VLOOKUP(NP$27&\"-\"&$M40&\"_new\",Ammortamento_Finanziario!$H:$L,5,FALSE),VLOOKUP($M40,TT_Tabelle_Riferimento!$D$127:$H$164,5,FALSE))","v":40},{"$f":"+IFERROR(VLOOKUP(NQ$27&\"-\"&$M40&\"_new\",Ammortamento_Finanziario!$H:$L,5,FALSE),VLOOKUP($M40,TT_Tabelle_Riferimento!$D$127:$H$164,5,FALSE))","v":40},{"$f":"+IFERROR(VLOOKUP(NR$27&\"-\"&$M40&\"_new\",Ammortamento_Finanziario!$H:$L,5,FALSE),VLOOKUP($M40,TT_Tabelle_Riferimento!$D$127:$H$164,5,FALSE))","v":40},{"$f":"+IFERROR(VLOOKUP(NS$27&\"-\"&$M40&\"_new\",Ammortamento_Finanziario!$H:$L,5,FALSE),VLOOKUP($M40,TT_Tabelle_Riferimento!$D$127:$H$164,5,FALSE))","v":40},{"$f":"+IFERROR(VLOOKUP(NT$27&\"-\"&$M40&\"_new\",Ammortamento_Finanziario!$H:$L,5,FALSE),VLOOKUP($M40,TT_Tabelle_Riferimento!$D$127:$H$164,5,FALSE))","v":40},{"$f":"+IFERROR(VLOOKUP(NU$27&\"-\"&$M40&\"_new\",Ammortamento_Finanziario!$H:$L,5,FALSE),VLOOKUP($M40,TT_Tabelle_Riferimento!$D$127:$H$164,5,FALSE))","v":40},{"$f":"+IFERROR(VLOOKUP(NV$27&\"-\"&$M40&\"_new\",Ammortamento_Finanziario!$H:$L,5,FALSE),VLOOKUP($M40,TT_Tabelle_Riferimento!$D$127:$H$164,5,FALSE))","v":40},{"$f":"+IFERROR(VLOOKUP(NW$27&\"-\"&$M40&\"_new\",Ammortamento_Finanziario!$H:$L,5,FALSE),VLOOKUP($M40,TT_Tabelle_Riferimento!$D$127:$H$164,5,FALSE))","v":40},{"$f":"+IFERROR(VLOOKUP(NX$27&\"-\"&$M40&\"_new\",Ammortamento_Finanziario!$H:$L,5,FALSE),VLOOKUP($M40,TT_Tabelle_Riferimento!$D$127:$H$164,5,FALSE))","v":40},{"$f":"+IFERROR(VLOOKUP(NY$27&\"-\"&$M40&\"_new\",Ammortamento_Finanziario!$H:$L,5,FALSE),VLOOKUP($M40,TT_Tabelle_Riferimento!$D$127:$H$164,5,FALSE))","v":40},{"$f":"+IFERROR(VLOOKUP(NZ$27&\"-\"&$M40&\"_new\",Ammortamento_Finanziario!$H:$L,5,FALSE),VLOOKUP($M40,TT_Tabelle_Riferimento!$D$127:$H$164,5,FALSE))","v":40},{"$f":"+IFERROR(VLOOKUP(OA$27&\"-\"&$M40&\"_new\",Ammortamento_Finanziario!$H:$L,5,FALSE),VLOOKUP($M40,TT_Tabelle_Riferimento!$D$127:$H$164,5,FALSE))","v":40},{"$f":"+IFERROR(VLOOKUP(OB$27&\"-\"&$M40&\"_new\",Ammortamento_Finanziario!$H:$L,5,FALSE),VLOOKUP($M40,TT_Tabelle_Riferimento!$D$127:$H$164,5,FALSE))","v":40},{"$f":"+IFERROR(VLOOKUP(OC$27&\"-\"&$M40&\"_new\",Ammortamento_Finanziario!$H:$L,5,FALSE),VLOOKUP($M40,TT_Tabelle_Riferimento!$D$127:$H$164,5,FALSE))","v":40},{"$f":"+IFERROR(VLOOKUP(OD$27&\"-\"&$M40&\"_new\",Ammortamento_Finanziario!$H:$L,5,FALSE),VLOOKUP($M40,TT_Tabelle_Riferimento!$D$127:$H$164,5,FALSE))","v":40},{"$f":"+IFERROR(VLOOKUP(OE$27&\"-\"&$M40&\"_new\",Ammortamento_Finanziario!$H:$L,5,FALSE),VLOOKUP($M40,TT_Tabelle_Riferimento!$D$127:$H$164,5,FALSE))","v":40},{"$f":"+IFERROR(VLOOKUP(OF$27&\"-\"&$M40&\"_new\",Ammortamento_Finanziario!$H:$L,5,FALSE),VLOOKUP($M40,TT_Tabelle_Riferimento!$D$127:$H$164,5,FALSE))","v":40},{"$f":"+IFERROR(VLOOKUP(OG$27&\"-\"&$M40&\"_new\",Ammortamento_Finanziario!$H:$L,5,FALSE),VLOOKUP($M40,TT_Tabelle_Riferimento!$D$127:$H$164,5,FALSE))","v":40},{"$f":"+IFERROR(VLOOKUP(OH$27&\"-\"&$M40&\"_new\",Ammortamento_Finanziario!$H:$L,5,FALSE),VLOOKUP($M40,TT_Tabelle_Riferimento!$D$127:$H$164,5,FALSE))","v":40},{"$f":"+IFERROR(VLOOKUP(OI$27&\"-\"&$M40&\"_new\",Ammortamento_Finanziario!$H:$L,5,FALSE),VLOOKUP($M40,TT_Tabelle_Riferimento!$D$127:$H$164,5,FALSE))","v":40},{"$f":"+IFERROR(VLOOKUP(OJ$27&\"-\"&$M40&\"_new\",Ammortamento_Finanziario!$H:$L,5,FALSE),VLOOKUP($M40,TT_Tabelle_Riferimento!$D$127:$H$164,5,FALSE))","v":40},{"$f":"+IFERROR(VLOOKUP(OK$27&\"-\"&$M40&\"_new\",Ammortamento_Finanziario!$H:$L,5,FALSE),VLOOKUP($M40,TT_Tabelle_Riferimento!$D$127:$H$164,5,FALSE))","v":40},{"$f":"+IFERROR(VLOOKUP(OL$27&\"-\"&$M40&\"_new\",Ammortamento_Finanziario!$H:$L,5,FALSE),VLOOKUP($M40,TT_Tabelle_Riferimento!$D$127:$H$164,5,FALSE))","v":40},{"$f":"+IFERROR(VLOOKUP(OM$27&\"-\"&$M40&\"_new\",Ammortamento_Finanziario!$H:$L,5,FALSE),VLOOKUP($M40,TT_Tabelle_Riferimento!$D$127:$H$164,5,FALSE))","v":40},{"$f":"+IFERROR(VLOOKUP(ON$27&\"-\"&$M40&\"_new\",Ammortamento_Finanziario!$H:$L,5,FALSE),VLOOKUP($M40,TT_Tabelle_Riferimento!$D$127:$H$164,5,FALSE))","v":40},{"$f":"+IFERROR(VLOOKUP(OO$27&\"-\"&$M40&\"_new\",Ammortamento_Finanziario!$H:$L,5,FALSE),VLOOKUP($M40,TT_Tabelle_Riferimento!$D$127:$H$164,5,FALSE))","v":40},{"$f":"+IFERROR(VLOOKUP(OP$27&\"-\"&$M40&\"_new\",Ammortamento_Finanziario!$H:$L,5,FALSE),VLOOKUP($M40,TT_Tabelle_Riferimento!$D$127:$H$164,5,FALSE))","v":40},{"$f":"+IFERROR(VLOOKUP(OQ$27&\"-\"&$M40&\"_new\",Ammortamento_Finanziario!$H:$L,5,FALSE),VLOOKUP($M40,TT_Tabelle_Riferimento!$D$127:$H$164,5,FALSE))","v":40},{"$f":"+IFERROR(VLOOKUP(OR$27&\"-\"&$M40&\"_new\",Ammortamento_Finanziario!$H:$L,5,FALSE),VLOOKUP($M40,TT_Tabelle_Riferimento!$D$127:$H$164,5,FALSE))","v":40},{"$f":"+IFERROR(VLOOKUP(OS$27&\"-\"&$M40&\"_new\",Ammortamento_Finanziario!$H:$L,5,FALSE),VLOOKUP($M40,TT_Tabelle_Riferimento!$D$127:$H$164,5,FALSE))","v":40},{"$f":"+IFERROR(VLOOKUP(OT$27&\"-\"&$M40&\"_new\",Ammortamento_Finanziario!$H:$L,5,FALSE),VLOOKUP($M40,TT_Tabelle_Riferimento!$D$127:$H$164,5,FALSE))","v":40},{"$f":"+IFERROR(VLOOKUP(OU$27&\"-\"&$M40&\"_new\",Ammortamento_Finanziario!$H:$L,5,FALSE),VLOOKUP($M40,TT_Tabelle_Riferimento!$D$127:$H$164,5,FALSE))","v":40},{"$f":"+IFERROR(VLOOKUP(OV$27&\"-\"&$M40&\"_new\",Ammortamento_Finanziario!$H:$L,5,FALSE),VLOOKUP($M40,TT_Tabelle_Riferimento!$D$127:$H$164,5,FALSE))","v":40},{"$f":"+IFERROR(VLOOKUP(OW$27&\"-\"&$M40&\"_new\",Ammortamento_Finanziario!$H:$L,5,FALSE),VLOOKUP($M40,TT_Tabelle_Riferimento!$D$127:$H$164,5,FALSE))","v":40},{"$f":"+IFERROR(VLOOKUP(OX$27&\"-\"&$M40&\"_new\",Ammortamento_Finanziario!$H:$L,5,FALSE),VLOOKUP($M40,TT_Tabelle_Riferimento!$D$127:$H$164,5,FALSE))","v":40},{"$f":"+IFERROR(VLOOKUP(OY$27&\"-\"&$M40&\"_new\",Ammortamento_Finanziario!$H:$L,5,FALSE),VLOOKUP($M40,TT_Tabelle_Riferimento!$D$127:$H$164,5,FALSE))","v":40},{"$f":"+IFERROR(VLOOKUP(OZ$27&\"-\"&$M40&\"_new\",Ammortamento_Finanziario!$H:$L,5,FALSE),VLOOKUP($M40,TT_Tabelle_Riferimento!$D$127:$H$164,5,FALSE))","v":40},{"$f":"+IFERROR(VLOOKUP(PA$27&\"-\"&$M40&\"_new\",Ammortamento_Finanziario!$H:$L,5,FALSE),VLOOKUP($M40,TT_Tabelle_Riferimento!$D$127:$H$164,5,FALSE))","v":40},{"$f":"+IFERROR(VLOOKUP(PB$27&\"-\"&$M40&\"_new\",Ammortamento_Finanziario!$H:$L,5,FALSE),VLOOKUP($M40,TT_Tabelle_Riferimento!$D$127:$H$164,5,FALSE))","v":40},{"$f":"+IFERROR(VLOOKUP(PC$27&\"-\"&$M40&\"_new\",Ammortamento_Finanziario!$H:$L,5,FALSE),VLOOKUP($M40,TT_Tabelle_Riferimento!$D$127:$H$164,5,FALSE))","v":40},{"$f":"+IFERROR(VLOOKUP(PD$27&\"-\"&$M40&\"_new\",Ammortamento_Finanziario!$H:$L,5,FALSE),VLOOKUP($M40,TT_Tabelle_Riferimento!$D$127:$H$164,5,FALSE))","v":40},{"$f":"+IFERROR(VLOOKUP(PE$27&\"-\"&$M40&\"_new\",Ammortamento_Finanziario!$H:$L,5,FALSE),VLOOKUP($M40,TT_Tabelle_Riferimento!$D$127:$H$164,5,FALSE))","v":40},{"$f":"+IFERROR(VLOOKUP(PF$27&\"-\"&$M40&\"_new\",Ammortamento_Finanziario!$H:$L,5,FALSE),VLOOKUP($M40,TT_Tabelle_Riferimento!$D$127:$H$164,5,FALSE))","v":40},{"$f":"+IFERROR(VLOOKUP(PG$27&\"-\"&$M40&\"_new\",Ammortamento_Finanziario!$H:$L,5,FALSE),VLOOKUP($M40,TT_Tabelle_Riferimento!$D$127:$H$164,5,FALSE))","v":40},{"$f":"+IFERROR(VLOOKUP(PH$27&\"-\"&$M40&\"_new\",Ammortamento_Finanziario!$H:$L,5,FALSE),VLOOKUP($M40,TT_Tabelle_Riferimento!$D$127:$H$164,5,FALSE))","v":40},{"$f":"+IFERROR(VLOOKUP(PI$27&\"-\"&$M40&\"_new\",Ammortamento_Finanziario!$H:$L,5,FALSE),VLOOKUP($M40,TT_Tabelle_Riferimento!$D$127:$H$164,5,FALSE))","v":40},{"$f":"+IFERROR(VLOOKUP(PJ$27&\"-\"&$M40&\"_new\",Ammortamento_Finanziario!$H:$L,5,FALSE),VLOOKUP($M40,TT_Tabelle_Riferimento!$D$127:$H$164,5,FALSE))","v":40},{"$f":"+IFERROR(VLOOKUP(PK$27&\"-\"&$M40&\"_new\",Ammortamento_Finanziario!$H:$L,5,FALSE),VLOOKUP($M40,TT_Tabelle_Riferimento!$D$127:$H$164,5,FALSE))","v":40},{"$f":"+IFERROR(VLOOKUP(PL$27&\"-\"&$M40&\"_new\",Ammortamento_Finanziario!$H:$L,5,FALSE),VLOOKUP($M40,TT_Tabelle_Riferimento!$D$127:$H$164,5,FALSE))","v":40},{"$f":"+IFERROR(VLOOKUP(PM$27&\"-\"&$M40&\"_new\",Ammortamento_Finanziario!$H:$L,5,FALSE),VLOOKUP($M40,TT_Tabelle_Riferimento!$D$127:$H$164,5,FALSE))","v":40},{"$f":"+IFERROR(VLOOKUP(PN$27&\"-\"&$M40&\"_new\",Ammortamento_Finanziario!$H:$L,5,FALSE),VLOOKUP($M40,TT_Tabelle_Riferimento!$D$127:$H$164,5,FALSE))","v":40},{"$f":"+IFERROR(VLOOKUP(PO$27&\"-\"&$M40&\"_new\",Ammortamento_Finanziario!$H:$L,5,FALSE),VLOOKUP($M40,TT_Tabelle_Riferimento!$D$127:$H$164,5,FALSE))","v":40},{"$f":"+IFERROR(VLOOKUP(PP$27&\"-\"&$M40&\"_new\",Ammortamento_Finanziario!$H:$L,5,FALSE),VLOOKUP($M40,TT_Tabelle_Riferimento!$D$127:$H$164,5,FALSE))","v":40},{"$f":"+IFERROR(VLOOKUP(PQ$27&\"-\"&$M40&\"_new\",Ammortamento_Finanziario!$H:$L,5,FALSE),VLOOKUP($M40,TT_Tabelle_Riferimento!$D$127:$H$164,5,FALSE))","v":40},{"$f":"+IFERROR(VLOOKUP(PR$27&\"-\"&$M40&\"_new\",Ammortamento_Finanziario!$H:$L,5,FALSE),VLOOKUP($M40,TT_Tabelle_Riferimento!$D$127:$H$164,5,FALSE))","v":40},{"$f":"+IFERROR(VLOOKUP(PS$27&\"-\"&$M40&\"_new\",Ammortamento_Finanziario!$H:$L,5,FALSE),VLOOKUP($M40,TT_Tabelle_Riferimento!$D$127:$H$164,5,FALSE))","v":40},{"$f":"+IFERROR(VLOOKUP(PT$27&\"-\"&$M40&\"_new\",Ammortamento_Finanziario!$H:$L,5,FALSE),VLOOKUP($M40,TT_Tabelle_Riferimento!$D$127:$H$164,5,FALSE))","v":40},{"$f":"+IFERROR(VLOOKUP(PU$27&\"-\"&$M40&\"_new\",Ammortamento_Finanziario!$H:$L,5,FALSE),VLOOKUP($M40,TT_Tabelle_Riferimento!$D$127:$H$164,5,FALSE))","v":40},{"$f":"+IFERROR(VLOOKUP(PV$27&\"-\"&$M40&\"_new\",Ammortamento_Finanziario!$H:$L,5,FALSE),VLOOKUP($M40,TT_Tabelle_Riferimento!$D$127:$H$164,5,FALSE))","v":40},{"$f":"+IFERROR(VLOOKUP(PW$27&\"-\"&$M40&\"_new\",Ammortamento_Finanziario!$H:$L,5,FALSE),VLOOKUP($M40,TT_Tabelle_Riferimento!$D$127:$H$164,5,FALSE))","v":40},{"$f":"+IFERROR(VLOOKUP(PX$27&\"-\"&$M40&\"_new\",Ammortamento_Finanziario!$H:$L,5,FALSE),VLOOKUP($M40,TT_Tabelle_Riferimento!$D$127:$H$164,5,FALSE))","v":40},{"$f":"+IFERROR(VLOOKUP(PY$27&\"-\"&$M40&\"_new\",Ammortamento_Finanziario!$H:$L,5,FALSE),VLOOKUP($M40,TT_Tabelle_Riferimento!$D$127:$H$164,5,FALSE))","v":40},{"$f":"+IFERROR(VLOOKUP(PZ$27&\"-\"&$M40&\"_new\",Ammortamento_Finanziario!$H:$L,5,FALSE),VLOOKUP($M40,TT_Tabelle_Riferimento!$D$127:$H$164,5,FALSE))","v":40},{"$f":"+IFERROR(VLOOKUP(QA$27&\"-\"&$M40&\"_new\",Ammortamento_Finanziario!$H:$L,5,FALSE),VLOOKUP($M40,TT_Tabelle_Riferimento!$D$127:$H$164,5,FALSE))","v":40},{"$f":"+IFERROR(VLOOKUP(QB$27&\"-\"&$M40&\"_new\",Ammortamento_Finanziario!$H:$L,5,FALSE),VLOOKUP($M40,TT_Tabelle_Riferimento!$D$127:$H$164,5,FALSE))","v":40},{"$f":"+IFERROR(VLOOKUP(QC$27&\"-\"&$M40&\"_new\",Ammortamento_Finanziario!$H:$L,5,FALSE),VLOOKUP($M40,TT_Tabelle_Riferimento!$D$127:$H$164,5,FALSE))","v":40},{"$f":"+IFERROR(VLOOKUP(QD$27&\"-\"&$M40&\"_new\",Ammortamento_Finanziario!$H:$L,5,FALSE),VLOOKUP($M40,TT_Tabelle_Riferimento!$D$127:$H$164,5,FALSE))","v":40},{"$f":"+IFERROR(VLOOKUP(QE$27&\"-\"&$M40&\"_new\",Ammortamento_Finanziario!$H:$L,5,FALSE),VLOOKUP($M40,TT_Tabelle_Riferimento!$D$127:$H$164,5,FALSE))","v":40},{"$f":"+IFERROR(VLOOKUP(QF$27&\"-\"&$M40&\"_new\",Ammortamento_Finanziario!$H:$L,5,FALSE),VLOOKUP($M40,TT_Tabelle_Riferimento!$D$127:$H$164,5,FALSE))","v":40},{"$f":"+IFERROR(VLOOKUP(QG$27&\"-\"&$M40&\"_new\",Ammortamento_Finanziario!$H:$L,5,FALSE),VLOOKUP($M40,TT_Tabelle_Riferimento!$D$127:$H$164,5,FALSE))","v":40},{"$f":"+IFERROR(VLOOKUP(QH$27&\"-\"&$M40&\"_new\",Ammortamento_Finanziario!$H:$L,5,FALSE),VLOOKUP($M40,TT_Tabelle_Riferimento!$D$127:$H$164,5,FALSE))","v":40},{"$f":"+IFERROR(VLOOKUP(QI$27&\"-\"&$M40&\"_new\",Ammortamento_Finanziario!$H:$L,5,FALSE),VLOOKUP($M40,TT_Tabelle_Riferimento!$D$127:$H$164,5,FALSE))","v":40},{"$f":"+IFERROR(VLOOKUP(QJ$27&\"-\"&$M40&\"_new\",Ammortamento_Finanziario!$H:$L,5,FALSE),VLOOKUP($M40,TT_Tabelle_Riferimento!$D$127:$H$164,5,FALSE))","v":40},{"$f":"+IFERROR(VLOOKUP(QK$27&\"-\"&$M40&\"_new\",Ammortamento_Finanziario!$H:$L,5,FALSE),VLOOKUP($M40,TT_Tabelle_Riferimento!$D$127:$H$164,5,FALSE))","v":40},{"$f":"+IFERROR(VLOOKUP(QL$27&\"-\"&$M40&\"_new\",Ammortamento_Finanziario!$H:$L,5,FALSE),VLOOKUP($M40,TT_Tabelle_Riferimento!$D$127:$H$164,5,FALSE))","v":40},{"$f":"+IFERROR(VLOOKUP(QM$27&\"-\"&$M40&\"_new\",Ammortamento_Finanziario!$H:$L,5,FALSE),VLOOKUP($M40,TT_Tabelle_Riferimento!$D$127:$H$164,5,FALSE))","v":40},{"$f":"+IFERROR(VLOOKUP(QN$27&\"-\"&$M40&\"_new\",Ammortamento_Finanziario!$H:$L,5,FALSE),VLOOKUP($M40,TT_Tabelle_Riferimento!$D$127:$H$164,5,FALSE))","v":40},{"$f":"+IFERROR(VLOOKUP(QO$27&\"-\"&$M40&\"_new\",Ammortamento_Finanziario!$H:$L,5,FALSE),VLOOKUP($M40,TT_Tabelle_Riferimento!$D$127:$H$164,5,FALSE))","v":40},{"$f":"+IFERROR(VLOOKUP(QP$27&\"-\"&$M40&\"_new\",Ammortamento_Finanziario!$H:$L,5,FALSE),VLOOKUP($M40,TT_Tabelle_Riferimento!$D$127:$H$164,5,FALSE))","v":40},{"$f":"+IFERROR(VLOOKUP(QQ$27&\"-\"&$M40&\"_new\",Ammortamento_Finanziario!$H:$L,5,FALSE),VLOOKUP($M40,TT_Tabelle_Riferimento!$D$127:$H$164,5,FALSE))","v":40},{"$f":"+IFERROR(VLOOKUP(QR$27&\"-\"&$M40&\"_new\",Ammortamento_Finanziario!$H:$L,5,FALSE),VLOOKUP($M40,TT_Tabelle_Riferimento!$D$127:$H$164,5,FALSE))","v":40},{"$f":"+IFERROR(VLOOKUP(QS$27&\"-\"&$M40&\"_new\",Ammortamento_Finanziario!$H:$L,5,FALSE),VLOOKUP($M40,TT_Tabelle_Riferimento!$D$127:$H$164,5,FALSE))","v":40},{"$f":"+IFERROR(VLOOKUP(QT$27&\"-\"&$M40&\"_new\",Ammortamento_Finanziario!$H:$L,5,FALSE),VLOOKUP($M40,TT_Tabelle_Riferimento!$D$127:$H$164,5,FALSE))","v":40},{"$f":"+IFERROR(VLOOKUP(QU$27&\"-\"&$M40&\"_new\",Ammortamento_Finanziario!$H:$L,5,FALSE),VLOOKUP($M40,TT_Tabelle_Riferimento!$D$127:$H$164,5,FALSE))","v":40},{"$f":"+IFERROR(VLOOKUP(QV$27&\"-\"&$M40&\"_new\",Ammortamento_Finanziario!$H:$L,5,FALSE),VLOOKUP($M40,TT_Tabelle_Riferimento!$D$127:$H$164,5,FALSE))","v":40},{"$f":"+IFERROR(VLOOKUP(QW$27&\"-\"&$M40&\"_new\",Ammortamento_Finanziario!$H:$L,5,FALSE),VLOOKUP($M40,TT_Tabelle_Riferimento!$D$127:$H$164,5,FALSE))","v":40},{"$f":"+IFERROR(VLOOKUP(QX$27&\"-\"&$M40&\"_new\",Ammortamento_Finanziario!$H:$L,5,FALSE),VLOOKUP($M40,TT_Tabelle_Riferimento!$D$127:$H$164,5,FALSE))","v":40},{"$f":"+IFERROR(VLOOKUP(QY$27&\"-\"&$M40&\"_new\",Ammortamento_Finanziario!$H:$L,5,FALSE),VLOOKUP($M40,TT_Tabelle_Riferimento!$D$127:$H$164,5,FALSE))","v":40},{"$f":"+IFERROR(VLOOKUP(QZ$27&\"-\"&$M40&\"_new\",Ammortamento_Finanziario!$H:$L,5,FALSE),VLOOKUP($M40,TT_Tabelle_Riferimento!$D$127:$H$164,5,FALSE))","v":40},{"$f":"+IFERROR(VLOOKUP(RA$27&\"-\"&$M40&\"_new\",Ammortamento_Finanziario!$H:$L,5,FALSE),VLOOKUP($M40,TT_Tabelle_Riferimento!$D$127:$H$164,5,FALSE))","v":40},{"$f":"+IFERROR(VLOOKUP(RB$27&\"-\"&$M40&\"_new\",Ammortamento_Finanziario!$H:$L,5,FALSE),VLOOKUP($M40,TT_Tabelle_Riferimento!$D$127:$H$164,5,FALSE))","v":40},{"$f":"+IFERROR(VLOOKUP(RC$27&\"-\"&$M40&\"_new\",Ammortamento_Finanziario!$H:$L,5,FALSE),VLOOKUP($M40,TT_Tabelle_Riferimento!$D$127:$H$164,5,FALSE))","v":40},{"$f":"+IFERROR(VLOOKUP(RD$27&\"-\"&$M40&\"_new\",Ammortamento_Finanziario!$H:$L,5,FALSE),VLOOKUP($M40,TT_Tabelle_Riferimento!$D$127:$H$164,5,FALSE))","v":40},{"$f":"+IFERROR(VLOOKUP(RE$27&\"-\"&$M40&\"_new\",Ammortamento_Finanziario!$H:$L,5,FALSE),VLOOKUP($M40,TT_Tabelle_Riferimento!$D$127:$H$164,5,FALSE))","v":40},{"$f":"+IFERROR(VLOOKUP(RF$27&\"-\"&$M40&\"_new\",Ammortamento_Finanziario!$H:$L,5,FALSE),VLOOKUP($M40,TT_Tabelle_Riferimento!$D$127:$H$164,5,FALSE))","v":40},{"$f":"+IFERROR(VLOOKUP(RG$27&\"-\"&$M40&\"_new\",Ammortamento_Finanziario!$H:$L,5,FALSE),VLOOKUP($M40,TT_Tabelle_Riferimento!$D$127:$H$164,5,FALSE))","v":40},{"$f":"+IFERROR(VLOOKUP(RH$27&\"-\"&$M40&\"_new\",Ammortamento_Finanziario!$H:$L,5,FALSE),VLOOKUP($M40,TT_Tabelle_Riferimento!$D$127:$H$164,5,FALSE))","v":40},{"$f":"+IFERROR(VLOOKUP(RI$27&\"-\"&$M40&\"_new\",Ammortamento_Finanziario!$H:$L,5,FALSE),VLOOKUP($M40,TT_Tabelle_Riferimento!$D$127:$H$164,5,FALSE))","v":40},{"$f":"+IFERROR(VLOOKUP(RJ$27&\"-\"&$M40&\"_new\",Ammortamento_Finanziario!$H:$L,5,FALSE),VLOOKUP($M40,TT_Tabelle_Riferimento!$D$127:$H$164,5,FALSE))","v":40},{"$f":"+IFERROR(VLOOKUP(RK$27&\"-\"&$M40&\"_new\",Ammortamento_Finanziario!$H:$L,5,FALSE),VLOOKUP($M40,TT_Tabelle_Riferimento!$D$127:$H$164,5,FALSE))","v":40},{"$f":"+IFERROR(VLOOKUP(RL$27&\"-\"&$M40&\"_new\",Ammortamento_Finanziario!$H:$L,5,FALSE),VLOOKUP($M40,TT_Tabelle_Riferimento!$D$127:$H$164,5,FALSE))","v":40},{"$f":"+IFERROR(VLOOKUP(RM$27&\"-\"&$M40&\"_new\",Ammortamento_Finanziario!$H:$L,5,FALSE),VLOOKUP($M40,TT_Tabelle_Riferimento!$D$127:$H$164,5,FALSE))","v":40},{"$f":"+IFERROR(VLOOKUP(RN$27&\"-\"&$M40&\"_new\",Ammortamento_Finanziario!$H:$L,5,FALSE),VLOOKUP($M40,TT_Tabelle_Riferimento!$D$127:$H$164,5,FALSE))","v":40},{"$f":"+IFERROR(VLOOKUP(RO$27&\"-\"&$M40&\"_new\",Ammortamento_Finanziario!$H:$L,5,FALSE),VLOOKUP($M40,TT_Tabelle_Riferimento!$D$127:$H$164,5,FALSE))","v":40},{"$f":"+IFERROR(VLOOKUP(RP$27&\"-\"&$M40&\"_new\",Ammortamento_Finanziario!$H:$L,5,FALSE),VLOOKUP($M40,TT_Tabelle_Riferimento!$D$127:$H$164,5,FALSE))","v":40},{"$f":"+IFERROR(VLOOKUP(RQ$27&\"-\"&$M40&\"_new\",Ammortamento_Finanziario!$H:$L,5,FALSE),VLOOKUP($M40,TT_Tabelle_Riferimento!$D$127:$H$164,5,FALSE))","v":40},{"$f":"+IFERROR(VLOOKUP(RR$27&\"-\"&$M40&\"_new\",Ammortamento_Finanziario!$H:$L,5,FALSE),VLOOKUP($M40,TT_Tabelle_Riferimento!$D$127:$H$164,5,FALSE))","v":40},{"$f":"+IFERROR(VLOOKUP(RS$27&\"-\"&$M40&\"_new\",Ammortamento_Finanziario!$H:$L,5,FALSE),VLOOKUP($M40,TT_Tabelle_Riferimento!$D$127:$H$164,5,FALSE))","v":40},{"$f":"+IFERROR(VLOOKUP(RT$27&\"-\"&$M40&\"_new\",Ammortamento_Finanziario!$H:$L,5,FALSE),VLOOKUP($M40,TT_Tabelle_Riferimento!$D$127:$H$164,5,FALSE))","v":40},{"$f":"+IFERROR(VLOOKUP(RU$27&\"-\"&$M40&\"_new\",Ammortamento_Finanziario!$H:$L,5,FALSE),VLOOKUP($M40,TT_Tabelle_Riferimento!$D$127:$H$164,5,FALSE))","v":40},{"$f":"+IFERROR(VLOOKUP(RV$27&\"-\"&$M40&\"_new\",Ammortamento_Finanziario!$H:$L,5,FALSE),VLOOKUP($M40,TT_Tabelle_Riferimento!$D$127:$H$164,5,FALSE))","v":40}]
[null,null,null,null,2024,2025,2026,2027,2028,2029,null,null,14,0,0,0,0,0,0,0,0,0,0,0,0,0,0,0,0,0,0,0,0,0,0,0,0,0,0,0,0,0,0,0,0,0,0,0,0,0,0,0,0,0,0,0,0,0,0,0,0,0,0,0,0,0,0,0,0,0,0,0,0,0,0,0,0,0,0,0,0,0,0,0,0,0,0,0,0,0,0,0,0,0,0,0,0,0,0,0,0,0,0,0,0,0,0,0,0,0,0,0,0,0,0,0,0,0,0,0,0,0,0,0,0,0,0,0,0,0,0,0,0,0,0,0,0,0,0,0,0,0,0,0,0,0,0,0,0,0,0,0,0,0,0,0,0,0,0,0,0,0,0,0,0,0,0,0,0,0,0,0,0,0,0,0,0,0,0,0,0,0,0,0,0,0,0,0,0,0,0,0,0,0,0,0,0,0,0,0,0,0,0,0,0,0,0,0,0,0,0,0,0,0,0,0,0,0,0,0,0,0,0,0,0,0,0,0,0,0,0,0,0,0,0,0,0,0,0,0,0,0,0,0,0,0,0,0,0,0,0,0,0,0,0,0,0,0,0,0,0,0,0,0,0,0,0,0,0,0,0,0,0,0,0,0,0,0,0,0,0,0,0,0,0,0,0,0,0,0,0,0,0,0,0,0,0,0,0,0,0,0,{"$f":"+IFERROR(VLOOKUP(KQ$27&\"-\"&$M41&\"_new\",Ammortamento_Finanziario!$H:$L,5,FALSE),VLOOKUP($M41,TT_Tabelle_Riferimento!$D$127:$H$164,5,FALSE))","v":8},{"$f":"+IFERROR(VLOOKUP(KR$27&\"-\"&$M41&\"_new\",Ammortamento_Finanziario!$H:$L,5,FALSE),VLOOKUP($M41,TT_Tabelle_Riferimento!$D$127:$H$164,5,FALSE))","v":8},{"$f":"+IFERROR(VLOOKUP(KS$27&\"-\"&$M41&\"_new\",Ammortamento_Finanziario!$H:$L,5,FALSE),VLOOKUP($M41,TT_Tabelle_Riferimento!$D$127:$H$164,5,FALSE))","v":8},{"$f":"+IFERROR(VLOOKUP(KT$27&\"-\"&$M41&\"_new\",Ammortamento_Finanziario!$H:$L,5,FALSE),VLOOKUP($M41,TT_Tabelle_Riferimento!$D$127:$H$164,5,FALSE))","v":8},{"$f":"+IFERROR(VLOOKUP(KU$27&\"-\"&$M41&\"_new\",Ammortamento_Finanziario!$H:$L,5,FALSE),VLOOKUP($M41,TT_Tabelle_Riferimento!$D$127:$H$164,5,FALSE))","v":8},{"$f":"+IFERROR(VLOOKUP(KV$27&\"-\"&$M41&\"_new\",Ammortamento_Finanziario!$H:$L,5,FALSE),VLOOKUP($M41,TT_Tabelle_Riferimento!$D$127:$H$164,5,FALSE))","v":8},{"$f":"+IFERROR(VLOOKUP(KW$27&\"-\"&$M41&\"_new\",Ammortamento_Finanziario!$H:$L,5,FALSE),VLOOKUP($M41,TT_Tabelle_Riferimento!$D$127:$H$164,5,FALSE))","v":8},{"$f":"+IFERROR(VLOOKUP(KX$27&\"-\"&$M41&\"_new\",Ammortamento_Finanziario!$H:$L,5,FALSE),VLOOKUP($M41,TT_Tabelle_Riferimento!$D$127:$H$164,5,FALSE))","v":8},{"$f":"+IFERROR(VLOOKUP(KY$27&\"-\"&$M41&\"_new\",Ammortamento_Finanziario!$H:$L,5,FALSE),VLOOKUP($M41,TT_Tabelle_Riferimento!$D$127:$H$164,5,FALSE))","v":8},{"$f":"+IFERROR(VLOOKUP(KZ$27&\"-\"&$M41&\"_new\",Ammortamento_Finanziario!$H:$L,5,FALSE),VLOOKUP($M41,TT_Tabelle_Riferimento!$D$127:$H$164,5,FALSE))","v":8},{"$f":"+IFERROR(VLOOKUP(LA$27&\"-\"&$M41&\"_new\",Ammortamento_Finanziario!$H:$L,5,FALSE),VLOOKUP($M41,TT_Tabelle_Riferimento!$D$127:$H$164,5,FALSE))","v":8},{"$f":"+IFERROR(VLOOKUP(LB$27&\"-\"&$M41&\"_new\",Ammortamento_Finanziario!$H:$L,5,FALSE),VLOOKUP($M41,TT_Tabelle_Riferimento!$D$127:$H$164,5,FALSE))","v":8},{"$f":"+IFERROR(VLOOKUP(LC$27&\"-\"&$M41&\"_new\",Ammortamento_Finanziario!$H:$L,5,FALSE),VLOOKUP($M41,TT_Tabelle_Riferimento!$D$127:$H$164,5,FALSE))","v":8},{"$f":"+IFERROR(VLOOKUP(LD$27&\"-\"&$M41&\"_new\",Ammortamento_Finanziario!$H:$L,5,FALSE),VLOOKUP($M41,TT_Tabelle_Riferimento!$D$127:$H$164,5,FALSE))","v":8},{"$f":"+IFERROR(VLOOKUP(LE$27&\"-\"&$M41&\"_new\",Ammortamento_Finanziario!$H:$L,5,FALSE),VLOOKUP($M41,TT_Tabelle_Riferimento!$D$127:$H$164,5,FALSE))","v":8},{"$f":"+IFERROR(VLOOKUP(LF$27&\"-\"&$M41&\"_new\",Ammortamento_Finanziario!$H:$L,5,FALSE),VLOOKUP($M41,TT_Tabelle_Riferimento!$D$127:$H$164,5,FALSE))","v":8},{"$f":"+IFERROR(VLOOKUP(LG$27&\"-\"&$M41&\"_new\",Ammortamento_Finanziario!$H:$L,5,FALSE),VLOOKUP($M41,TT_Tabelle_Riferimento!$D$127:$H$164,5,FALSE))","v":8},{"$f":"+IFERROR(VLOOKUP(LH$27&\"-\"&$M41&\"_new\",Ammortamento_Finanziario!$H:$L,5,FALSE),VLOOKUP($M41,TT_Tabelle_Riferimento!$D$127:$H$164,5,FALSE))","v":8},{"$f":"+IFERROR(VLOOKUP(LI$27&\"-\"&$M41&\"_new\",Ammortamento_Finanziario!$H:$L,5,FALSE),VLOOKUP($M41,TT_Tabelle_Riferimento!$D$127:$H$164,5,FALSE))","v":8},{"$f":"+IFERROR(VLOOKUP(LJ$27&\"-\"&$M41&\"_new\",Ammortamento_Finanziario!$H:$L,5,FALSE),VLOOKUP($M41,TT_Tabelle_Riferimento!$D$127:$H$164,5,FALSE))","v":8},{"$f":"+IFERROR(VLOOKUP(LK$27&\"-\"&$M41&\"_new\",Ammortamento_Finanziario!$H:$L,5,FALSE),VLOOKUP($M41,TT_Tabelle_Riferimento!$D$127:$H$164,5,FALSE))","v":8},{"$f":"+IFERROR(VLOOKUP(LL$27&\"-\"&$M41&\"_new\",Ammortamento_Finanziario!$H:$L,5,FALSE),VLOOKUP($M41,TT_Tabelle_Riferimento!$D$127:$H$164,5,FALSE))","v":8},{"$f":"+IFERROR(VLOOKUP(LM$27&\"-\"&$M41&\"_new\",Ammortamento_Finanziario!$H:$L,5,FALSE),VLOOKUP($M41,TT_Tabelle_Riferimento!$D$127:$H$164,5,FALSE))","v":8},{"$f":"+IFERROR(VLOOKUP(LN$27&\"-\"&$M41&\"_new\",Ammortamento_Finanziario!$H:$L,5,FALSE),VLOOKUP($M41,TT_Tabelle_Riferimento!$D$127:$H$164,5,FALSE))","v":8},{"$f":"+IFERROR(VLOOKUP(LO$27&\"-\"&$M41&\"_new\",Ammortamento_Finanziario!$H:$L,5,FALSE),VLOOKUP($M41,TT_Tabelle_Riferimento!$D$127:$H$164,5,FALSE))","v":8},{"$f":"+IFERROR(VLOOKUP(LP$27&\"-\"&$M41&\"_new\",Ammortamento_Finanziario!$H:$L,5,FALSE),VLOOKUP($M41,TT_Tabelle_Riferimento!$D$127:$H$164,5,FALSE))","v":8},{"$f":"+IFERROR(VLOOKUP(LQ$27&\"-\"&$M41&\"_new\",Ammortamento_Finanziario!$H:$L,5,FALSE),VLOOKUP($M41,TT_Tabelle_Riferimento!$D$127:$H$164,5,FALSE))","v":8},{"$f":"+IFERROR(VLOOKUP(LR$27&\"-\"&$M41&\"_new\",Ammortamento_Finanziario!$H:$L,5,FALSE),VLOOKUP($M41,TT_Tabelle_Riferimento!$D$127:$H$164,5,FALSE))","v":8},{"$f":"+IFERROR(VLOOKUP(LS$27&\"-\"&$M41&\"_new\",Ammortamento_Finanziario!$H:$L,5,FALSE),VLOOKUP($M41,TT_Tabelle_Riferimento!$D$127:$H$164,5,FALSE))","v":8},{"$f":"+IFERROR(VLOOKUP(LT$27&\"-\"&$M41&\"_new\",Ammortamento_Finanziario!$H:$L,5,FALSE),VLOOKUP($M41,TT_Tabelle_Riferimento!$D$127:$H$164,5,FALSE))","v":8},{"$f":"+IFERROR(VLOOKUP(LU$27&\"-\"&$M41&\"_new\",Ammortamento_Finanziario!$H:$L,5,FALSE),VLOOKUP($M41,TT_Tabelle_Riferimento!$D$127:$H$164,5,FALSE))","v":8},{"$f":"+IFERROR(VLOOKUP(LV$27&\"-\"&$M41&\"_new\",Ammortamento_Finanziario!$H:$L,5,FALSE),VLOOKUP($M41,TT_Tabelle_Riferimento!$D$127:$H$164,5,FALSE))","v":8},{"$f":"+IFERROR(VLOOKUP(LW$27&\"-\"&$M41&\"_new\",Ammortamento_Finanziario!$H:$L,5,FALSE),VLOOKUP($M41,TT_Tabelle_Riferimento!$D$127:$H$164,5,FALSE))","v":8},{"$f":"+IFERROR(VLOOKUP(LX$27&\"-\"&$M41&\"_new\",Ammortamento_Finanziario!$H:$L,5,FALSE),VLOOKUP($M41,TT_Tabelle_Riferimento!$D$127:$H$164,5,FALSE))","v":8},{"$f":"+IFERROR(VLOOKUP(LY$27&\"-\"&$M41&\"_new\",Ammortamento_Finanziario!$H:$L,5,FALSE),VLOOKUP($M41,TT_Tabelle_Riferimento!$D$127:$H$164,5,FALSE))","v":8},{"$f":"+IFERROR(VLOOKUP(LZ$27&\"-\"&$M41&\"_new\",Ammortamento_Finanziario!$H:$L,5,FALSE),VLOOKUP($M41,TT_Tabelle_Riferimento!$D$127:$H$164,5,FALSE))","v":8},{"$f":"+IFERROR(VLOOKUP(MA$27&\"-\"&$M41&\"_new\",Ammortamento_Finanziario!$H:$L,5,FALSE),VLOOKUP($M41,TT_Tabelle_Riferimento!$D$127:$H$164,5,FALSE))","v":8},{"$f":"+IFERROR(VLOOKUP(MB$27&\"-\"&$M41&\"_new\",Ammortamento_Finanziario!$H:$L,5,FALSE),VLOOKUP($M41,TT_Tabelle_Riferimento!$D$127:$H$164,5,FALSE))","v":8},{"$f":"+IFERROR(VLOOKUP(MC$27&\"-\"&$M41&\"_new\",Ammortamento_Finanziario!$H:$L,5,FALSE),VLOOKUP($M41,TT_Tabelle_Riferimento!$D$127:$H$164,5,FALSE))","v":8},{"$f":"+IFERROR(VLOOKUP(MD$27&\"-\"&$M41&\"_new\",Ammortamento_Finanziario!$H:$L,5,FALSE),VLOOKUP($M41,TT_Tabelle_Riferimento!$D$127:$H$164,5,FALSE))","v":8},{"$f":"+IFERROR(VLOOKUP(ME$27&\"-\"&$M41&\"_new\",Ammortamento_Finanziario!$H:$L,5,FALSE),VLOOKUP($M41,TT_Tabelle_Riferimento!$D$127:$H$164,5,FALSE))","v":8},{"$f":"+IFERROR(VLOOKUP(MF$27&\"-\"&$M41&\"_new\",Ammortamento_Finanziario!$H:$L,5,FALSE),VLOOKUP($M41,TT_Tabelle_Riferimento!$D$127:$H$164,5,FALSE))","v":8},{"$f":"+IFERROR(VLOOKUP(MG$27&\"-\"&$M41&\"_new\",Ammortamento_Finanziario!$H:$L,5,FALSE),VLOOKUP($M41,TT_Tabelle_Riferimento!$D$127:$H$164,5,FALSE))","v":8},{"$f":"+IFERROR(VLOOKUP(MH$27&\"-\"&$M41&\"_new\",Ammortamento_Finanziario!$H:$L,5,FALSE),VLOOKUP($M41,TT_Tabelle_Riferimento!$D$127:$H$164,5,FALSE))","v":8},{"$f":"+IFERROR(VLOOKUP(MI$27&\"-\"&$M41&\"_new\",Ammortamento_Finanziario!$H:$L,5,FALSE),VLOOKUP($M41,TT_Tabelle_Riferimento!$D$127:$H$164,5,FALSE))","v":8},{"$f":"+IFERROR(VLOOKUP(MJ$27&\"-\"&$M41&\"_new\",Ammortamento_Finanziario!$H:$L,5,FALSE),VLOOKUP($M41,TT_Tabelle_Riferimento!$D$127:$H$164,5,FALSE))","v":8},{"$f":"+IFERROR(VLOOKUP(MK$27&\"-\"&$M41&\"_new\",Ammortamento_Finanziario!$H:$L,5,FALSE),VLOOKUP($M41,TT_Tabelle_Riferimento!$D$127:$H$164,5,FALSE))","v":8},{"$f":"+IFERROR(VLOOKUP(ML$27&\"-\"&$M41&\"_new\",Ammortamento_Finanziario!$H:$L,5,FALSE),VLOOKUP($M41,TT_Tabelle_Riferimento!$D$127:$H$164,5,FALSE))","v":8},{"$f":"+IFERROR(VLOOKUP(MM$27&\"-\"&$M41&\"_new\",Ammortamento_Finanziario!$H:$L,5,FALSE),VLOOKUP($M41,TT_Tabelle_Riferimento!$D$127:$H$164,5,FALSE))","v":8},{"$f":"+IFERROR(VLOOKUP(MN$27&\"-\"&$M41&\"_new\",Ammortamento_Finanziario!$H:$L,5,FALSE),VLOOKUP($M41,TT_Tabelle_Riferimento!$D$127:$H$164,5,FALSE))","v":8},{"$f":"+IFERROR(VLOOKUP(MO$27&\"-\"&$M41&\"_new\",Ammortamento_Finanziario!$H:$L,5,FALSE),VLOOKUP($M41,TT_Tabelle_Riferimento!$D$127:$H$164,5,FALSE))","v":8},{"$f":"+IFERROR(VLOOKUP(MP$27&\"-\"&$M41&\"_new\",Ammortamento_Finanziario!$H:$L,5,FALSE),VLOOKUP($M41,TT_Tabelle_Riferimento!$D$127:$H$164,5,FALSE))","v":8},{"$f":"+IFERROR(VLOOKUP(MQ$27&\"-\"&$M41&\"_new\",Ammortamento_Finanziario!$H:$L,5,FALSE),VLOOKUP($M41,TT_Tabelle_Riferimento!$D$127:$H$164,5,FALSE))","v":8},{"$f":"+IFERROR(VLOOKUP(MR$27&\"-\"&$M41&\"_new\",Ammortamento_Finanziario!$H:$L,5,FALSE),VLOOKUP($M41,TT_Tabelle_Riferimento!$D$127:$H$164,5,FALSE))","v":8},{"$f":"+IFERROR(VLOOKUP(MS$27&\"-\"&$M41&\"_new\",Ammortamento_Finanziario!$H:$L,5,FALSE),VLOOKUP($M41,TT_Tabelle_Riferimento!$D$127:$H$164,5,FALSE))","v":8},{"$f":"+IFERROR(VLOOKUP(MT$27&\"-\"&$M41&\"_new\",Ammortamento_Finanziario!$H:$L,5,FALSE),VLOOKUP($M41,TT_Tabelle_Riferimento!$D$127:$H$164,5,FALSE))","v":8},{"$f":"+IFERROR(VLOOKUP(MU$27&\"-\"&$M41&\"_new\",Ammortamento_Finanziario!$H:$L,5,FALSE),VLOOKUP($M41,TT_Tabelle_Riferimento!$D$127:$H$164,5,FALSE))","v":8},{"$f":"+IFERROR(VLOOKUP(MV$27&\"-\"&$M41&\"_new\",Ammortamento_Finanziario!$H:$L,5,FALSE),VLOOKUP($M41,TT_Tabelle_Riferimento!$D$127:$H$164,5,FALSE))","v":8},{"$f":"+IFERROR(VLOOKUP(MW$27&\"-\"&$M41&\"_new\",Ammortamento_Finanziario!$H:$L,5,FALSE),VLOOKUP($M41,TT_Tabelle_Riferimento!$D$127:$H$164,5,FALSE))","v":8},{"$f":"+IFERROR(VLOOKUP(MX$27&\"-\"&$M41&\"_new\",Ammortamento_Finanziario!$H:$L,5,FALSE),VLOOKUP($M41,TT_Tabelle_Riferimento!$D$127:$H$164,5,FALSE))","v":8},{"$f":"+IFERROR(VLOOKUP(MY$27&\"-\"&$M41&\"_new\",Ammortamento_Finanziario!$H:$L,5,FALSE),VLOOKUP($M41,TT_Tabelle_Riferimento!$D$127:$H$164,5,FALSE))","v":8},{"$f":"+IFERROR(VLOOKUP(MZ$27&\"-\"&$M41&\"_new\",Ammortamento_Finanziario!$H:$L,5,FALSE),VLOOKUP($M41,TT_Tabelle_Riferimento!$D$127:$H$164,5,FALSE))","v":8},{"$f":"+IFERROR(VLOOKUP(NA$27&\"-\"&$M41&\"_new\",Ammortamento_Finanziario!$H:$L,5,FALSE),VLOOKUP($M41,TT_Tabelle_Riferimento!$D$127:$H$164,5,FALSE))","v":8},{"$f":"+IFERROR(VLOOKUP(NB$27&\"-\"&$M41&\"_new\",Ammortamento_Finanziario!$H:$L,5,FALSE),VLOOKUP($M41,TT_Tabelle_Riferimento!$D$127:$H$164,5,FALSE))","v":8},{"$f":"+IFERROR(VLOOKUP(NC$27&\"-\"&$M41&\"_new\",Ammortamento_Finanziario!$H:$L,5,FALSE),VLOOKUP($M41,TT_Tabelle_Riferimento!$D$127:$H$164,5,FALSE))","v":8},{"$f":"+IFERROR(VLOOKUP(ND$27&\"-\"&$M41&\"_new\",Ammortamento_Finanziario!$H:$L,5,FALSE),VLOOKUP($M41,TT_Tabelle_Riferimento!$D$127:$H$164,5,FALSE))","v":8},{"$f":"+IFERROR(VLOOKUP(NE$27&\"-\"&$M41&\"_new\",Ammortamento_Finanziario!$H:$L,5,FALSE),VLOOKUP($M41,TT_Tabelle_Riferimento!$D$127:$H$164,5,FALSE))","v":8},{"$f":"+IFERROR(VLOOKUP(NF$27&\"-\"&$M41&\"_new\",Ammortamento_Finanziario!$H:$L,5,FALSE),VLOOKUP($M41,TT_Tabelle_Riferimento!$D$127:$H$164,5,FALSE))","v":8},{"$f":"+IFERROR(VLOOKUP(NG$27&\"-\"&$M41&\"_new\",Ammortamento_Finanziario!$H:$L,5,FALSE),VLOOKUP($M41,TT_Tabelle_Riferimento!$D$127:$H$164,5,FALSE))","v":8},{"$f":"+IFERROR(VLOOKUP(NH$27&\"-\"&$M41&\"_new\",Ammortamento_Finanziario!$H:$L,5,FALSE),VLOOKUP($M41,TT_Tabelle_Riferimento!$D$127:$H$164,5,FALSE))","v":8},{"$f":"+IFERROR(VLOOKUP(NI$27&\"-\"&$M41&\"_new\",Ammortamento_Finanziario!$H:$L,5,FALSE),VLOOKUP($M41,TT_Tabelle_Riferimento!$D$127:$H$164,5,FALSE))","v":8},{"$f":"+IFERROR(VLOOKUP(NJ$27&\"-\"&$M41&\"_new\",Ammortamento_Finanziario!$H:$L,5,FALSE),VLOOKUP($M41,TT_Tabelle_Riferimento!$D$127:$H$164,5,FALSE))","v":8},{"$f":"+IFERROR(VLOOKUP(NK$27&\"-\"&$M41&\"_new\",Ammortamento_Finanziario!$H:$L,5,FALSE),VLOOKUP($M41,TT_Tabelle_Riferimento!$D$127:$H$164,5,FALSE))","v":8},{"$f":"+IFERROR(VLOOKUP(NL$27&\"-\"&$M41&\"_new\",Ammortamento_Finanziario!$H:$L,5,FALSE),VLOOKUP($M41,TT_Tabelle_Riferimento!$D$127:$H$164,5,FALSE))","v":8},{"$f":"+IFERROR(VLOOKUP(NM$27&\"-\"&$M41&\"_new\",Ammortamento_Finanziario!$H:$L,5,FALSE),VLOOKUP($M41,TT_Tabelle_Riferimento!$D$127:$H$164,5,FALSE))","v":8},{"$f":"+IFERROR(VLOOKUP(NN$27&\"-\"&$M41&\"_new\",Ammortamento_Finanziario!$H:$L,5,FALSE),VLOOKUP($M41,TT_Tabelle_Riferimento!$D$127:$H$164,5,FALSE))","v":8},{"$f":"+IFERROR(VLOOKUP(NO$27&\"-\"&$M41&\"_new\",Ammortamento_Finanziario!$H:$L,5,FALSE),VLOOKUP($M41,TT_Tabelle_Riferimento!$D$127:$H$164,5,FALSE))","v":8},{"$f":"+IFERROR(VLOOKUP(NP$27&\"-\"&$M41&\"_new\",Ammortamento_Finanziario!$H:$L,5,FALSE),VLOOKUP($M41,TT_Tabelle_Riferimento!$D$127:$H$164,5,FALSE))","v":8},{"$f":"+IFERROR(VLOOKUP(NQ$27&\"-\"&$M41&\"_new\",Ammortamento_Finanziario!$H:$L,5,FALSE),VLOOKUP($M41,TT_Tabelle_Riferimento!$D$127:$H$164,5,FALSE))","v":8},{"$f":"+IFERROR(VLOOKUP(NR$27&\"-\"&$M41&\"_new\",Ammortamento_Finanziario!$H:$L,5,FALSE),VLOOKUP($M41,TT_Tabelle_Riferimento!$D$127:$H$164,5,FALSE))","v":8},{"$f":"+IFERROR(VLOOKUP(NS$27&\"-\"&$M41&\"_new\",Ammortamento_Finanziario!$H:$L,5,FALSE),VLOOKUP($M41,TT_Tabelle_Riferimento!$D$127:$H$164,5,FALSE))","v":8},{"$f":"+IFERROR(VLOOKUP(NT$27&\"-\"&$M41&\"_new\",Ammortamento_Finanziario!$H:$L,5,FALSE),VLOOKUP($M41,TT_Tabelle_Riferimento!$D$127:$H$164,5,FALSE))","v":8},{"$f":"+IFERROR(VLOOKUP(NU$27&\"-\"&$M41&\"_new\",Ammortamento_Finanziario!$H:$L,5,FALSE),VLOOKUP($M41,TT_Tabelle_Riferimento!$D$127:$H$164,5,FALSE))","v":8},{"$f":"+IFERROR(VLOOKUP(NV$27&\"-\"&$M41&\"_new\",Ammortamento_Finanziario!$H:$L,5,FALSE),VLOOKUP($M41,TT_Tabelle_Riferimento!$D$127:$H$164,5,FALSE))","v":8},{"$f":"+IFERROR(VLOOKUP(NW$27&\"-\"&$M41&\"_new\",Ammortamento_Finanziario!$H:$L,5,FALSE),VLOOKUP($M41,TT_Tabelle_Riferimento!$D$127:$H$164,5,FALSE))","v":8},{"$f":"+IFERROR(VLOOKUP(NX$27&\"-\"&$M41&\"_new\",Ammortamento_Finanziario!$H:$L,5,FALSE),VLOOKUP($M41,TT_Tabelle_Riferimento!$D$127:$H$164,5,FALSE))","v":8},{"$f":"+IFERROR(VLOOKUP(NY$27&\"-\"&$M41&\"_new\",Ammortamento_Finanziario!$H:$L,5,FALSE),VLOOKUP($M41,TT_Tabelle_Riferimento!$D$127:$H$164,5,FALSE))","v":8},{"$f":"+IFERROR(VLOOKUP(NZ$27&\"-\"&$M41&\"_new\",Ammortamento_Finanziario!$H:$L,5,FALSE),VLOOKUP($M41,TT_Tabelle_Riferimento!$D$127:$H$164,5,FALSE))","v":8},{"$f":"+IFERROR(VLOOKUP(OA$27&\"-\"&$M41&\"_new\",Ammortamento_Finanziario!$H:$L,5,FALSE),VLOOKUP($M41,TT_Tabelle_Riferimento!$D$127:$H$164,5,FALSE))","v":8},{"$f":"+IFERROR(VLOOKUP(OB$27&\"-\"&$M41&\"_new\",Ammortamento_Finanziario!$H:$L,5,FALSE),VLOOKUP($M41,TT_Tabelle_Riferimento!$D$127:$H$164,5,FALSE))","v":8},{"$f":"+IFERROR(VLOOKUP(OC$27&\"-\"&$M41&\"_new\",Ammortamento_Finanziario!$H:$L,5,FALSE),VLOOKUP($M41,TT_Tabelle_Riferimento!$D$127:$H$164,5,FALSE))","v":8},{"$f":"+IFERROR(VLOOKUP(OD$27&\"-\"&$M41&\"_new\",Ammortamento_Finanziario!$H:$L,5,FALSE),VLOOKUP($M41,TT_Tabelle_Riferimento!$D$127:$H$164,5,FALSE))","v":8},{"$f":"+IFERROR(VLOOKUP(OE$27&\"-\"&$M41&\"_new\",Ammortamento_Finanziario!$H:$L,5,FALSE),VLOOKUP($M41,TT_Tabelle_Riferimento!$D$127:$H$164,5,FALSE))","v":8},{"$f":"+IFERROR(VLOOKUP(OF$27&\"-\"&$M41&\"_new\",Ammortamento_Finanziario!$H:$L,5,FALSE),VLOOKUP($M41,TT_Tabelle_Riferimento!$D$127:$H$164,5,FALSE))","v":8},{"$f":"+IFERROR(VLOOKUP(OG$27&\"-\"&$M41&\"_new\",Ammortamento_Finanziario!$H:$L,5,FALSE),VLOOKUP($M41,TT_Tabelle_Riferimento!$D$127:$H$164,5,FALSE))","v":8},{"$f":"+IFERROR(VLOOKUP(OH$27&\"-\"&$M41&\"_new\",Ammortamento_Finanziario!$H:$L,5,FALSE),VLOOKUP($M41,TT_Tabelle_Riferimento!$D$127:$H$164,5,FALSE))","v":8},{"$f":"+IFERROR(VLOOKUP(OI$27&\"-\"&$M41&\"_new\",Ammortamento_Finanziario!$H:$L,5,FALSE),VLOOKUP($M41,TT_Tabelle_Riferimento!$D$127:$H$164,5,FALSE))","v":8},{"$f":"+IFERROR(VLOOKUP(OJ$27&\"-\"&$M41&\"_new\",Ammortamento_Finanziario!$H:$L,5,FALSE),VLOOKUP($M41,TT_Tabelle_Riferimento!$D$127:$H$164,5,FALSE))","v":8},{"$f":"+IFERROR(VLOOKUP(OK$27&\"-\"&$M41&\"_new\",Ammortamento_Finanziario!$H:$L,5,FALSE),VLOOKUP($M41,TT_Tabelle_Riferimento!$D$127:$H$164,5,FALSE))","v":8},{"$f":"+IFERROR(VLOOKUP(OL$27&\"-\"&$M41&\"_new\",Ammortamento_Finanziario!$H:$L,5,FALSE),VLOOKUP($M41,TT_Tabelle_Riferimento!$D$127:$H$164,5,FALSE))","v":8},{"$f":"+IFERROR(VLOOKUP(OM$27&\"-\"&$M41&\"_new\",Ammortamento_Finanziario!$H:$L,5,FALSE),VLOOKUP($M41,TT_Tabelle_Riferimento!$D$127:$H$164,5,FALSE))","v":8},{"$f":"+IFERROR(VLOOKUP(ON$27&\"-\"&$M41&\"_new\",Ammortamento_Finanziario!$H:$L,5,FALSE),VLOOKUP($M41,TT_Tabelle_Riferimento!$D$127:$H$164,5,FALSE))","v":8},{"$f":"+IFERROR(VLOOKUP(OO$27&\"-\"&$M41&\"_new\",Ammortamento_Finanziario!$H:$L,5,FALSE),VLOOKUP($M41,TT_Tabelle_Riferimento!$D$127:$H$164,5,FALSE))","v":8},{"$f":"+IFERROR(VLOOKUP(OP$27&\"-\"&$M41&\"_new\",Ammortamento_Finanziario!$H:$L,5,FALSE),VLOOKUP($M41,TT_Tabelle_Riferimento!$D$127:$H$164,5,FALSE))","v":8},{"$f":"+IFERROR(VLOOKUP(OQ$27&\"-\"&$M41&\"_new\",Ammortamento_Finanziario!$H:$L,5,FALSE),VLOOKUP($M41,TT_Tabelle_Riferimento!$D$127:$H$164,5,FALSE))","v":8},{"$f":"+IFERROR(VLOOKUP(OR$27&\"-\"&$M41&\"_new\",Ammortamento_Finanziario!$H:$L,5,FALSE),VLOOKUP($M41,TT_Tabelle_Riferimento!$D$127:$H$164,5,FALSE))","v":8},{"$f":"+IFERROR(VLOOKUP(OS$27&\"-\"&$M41&\"_new\",Ammortamento_Finanziario!$H:$L,5,FALSE),VLOOKUP($M41,TT_Tabelle_Riferimento!$D$127:$H$164,5,FALSE))","v":8},{"$f":"+IFERROR(VLOOKUP(OT$27&\"-\"&$M41&\"_new\",Ammortamento_Finanziario!$H:$L,5,FALSE),VLOOKUP($M41,TT_Tabelle_Riferimento!$D$127:$H$164,5,FALSE))","v":8},{"$f":"+IFERROR(VLOOKUP(OU$27&\"-\"&$M41&\"_new\",Ammortamento_Finanziario!$H:$L,5,FALSE),VLOOKUP($M41,TT_Tabelle_Riferimento!$D$127:$H$164,5,FALSE))","v":8},{"$f":"+IFERROR(VLOOKUP(OV$27&\"-\"&$M41&\"_new\",Ammortamento_Finanziario!$H:$L,5,FALSE),VLOOKUP($M41,TT_Tabelle_Riferimento!$D$127:$H$164,5,FALSE))","v":8},{"$f":"+IFERROR(VLOOKUP(OW$27&\"-\"&$M41&\"_new\",Ammortamento_Finanziario!$H:$L,5,FALSE),VLOOKUP($M41,TT_Tabelle_Riferimento!$D$127:$H$164,5,FALSE))","v":8},{"$f":"+IFERROR(VLOOKUP(OX$27&\"-\"&$M41&\"_new\",Ammortamento_Finanziario!$H:$L,5,FALSE),VLOOKUP($M41,TT_Tabelle_Riferimento!$D$127:$H$164,5,FALSE))","v":8},{"$f":"+IFERROR(VLOOKUP(OY$27&\"-\"&$M41&\"_new\",Ammortamento_Finanziario!$H:$L,5,FALSE),VLOOKUP($M41,TT_Tabelle_Riferimento!$D$127:$H$164,5,FALSE))","v":8},{"$f":"+IFERROR(VLOOKUP(OZ$27&\"-\"&$M41&\"_new\",Ammortamento_Finanziario!$H:$L,5,FALSE),VLOOKUP($M41,TT_Tabelle_Riferimento!$D$127:$H$164,5,FALSE))","v":8},{"$f":"+IFERROR(VLOOKUP(PA$27&\"-\"&$M41&\"_new\",Ammortamento_Finanziario!$H:$L,5,FALSE),VLOOKUP($M41,TT_Tabelle_Riferimento!$D$127:$H$164,5,FALSE))","v":8},{"$f":"+IFERROR(VLOOKUP(PB$27&\"-\"&$M41&\"_new\",Ammortamento_Finanziario!$H:$L,5,FALSE),VLOOKUP($M41,TT_Tabelle_Riferimento!$D$127:$H$164,5,FALSE))","v":8},{"$f":"+IFERROR(VLOOKUP(PC$27&\"-\"&$M41&\"_new\",Ammortamento_Finanziario!$H:$L,5,FALSE),VLOOKUP($M41,TT_Tabelle_Riferimento!$D$127:$H$164,5,FALSE))","v":8},{"$f":"+IFERROR(VLOOKUP(PD$27&\"-\"&$M41&\"_new\",Ammortamento_Finanziario!$H:$L,5,FALSE),VLOOKUP($M41,TT_Tabelle_Riferimento!$D$127:$H$164,5,FALSE))","v":8},{"$f":"+IFERROR(VLOOKUP(PE$27&\"-\"&$M41&\"_new\",Ammortamento_Finanziario!$H:$L,5,FALSE),VLOOKUP($M41,TT_Tabelle_Riferimento!$D$127:$H$164,5,FALSE))","v":8},{"$f":"+IFERROR(VLOOKUP(PF$27&\"-\"&$M41&\"_new\",Ammortamento_Finanziario!$H:$L,5,FALSE),VLOOKUP($M41,TT_Tabelle_Riferimento!$D$127:$H$164,5,FALSE))","v":8},{"$f":"+IFERROR(VLOOKUP(PG$27&\"-\"&$M41&\"_new\",Ammortamento_Finanziario!$H:$L,5,FALSE),VLOOKUP($M41,TT_Tabelle_Riferimento!$D$127:$H$164,5,FALSE))","v":8},{"$f":"+IFERROR(VLOOKUP(PH$27&\"-\"&$M41&\"_new\",Ammortamento_Finanziario!$H:$L,5,FALSE),VLOOKUP($M41,TT_Tabelle_Riferimento!$D$127:$H$164,5,FALSE))","v":8},{"$f":"+IFERROR(VLOOKUP(PI$27&\"-\"&$M41&\"_new\",Ammortamento_Finanziario!$H:$L,5,FALSE),VLOOKUP($M41,TT_Tabelle_Riferimento!$D$127:$H$164,5,FALSE))","v":8},{"$f":"+IFERROR(VLOOKUP(PJ$27&\"-\"&$M41&\"_new\",Ammortamento_Finanziario!$H:$L,5,FALSE),VLOOKUP($M41,TT_Tabelle_Riferimento!$D$127:$H$164,5,FALSE))","v":8},{"$f":"+IFERROR(VLOOKUP(PK$27&\"-\"&$M41&\"_new\",Ammortamento_Finanziario!$H:$L,5,FALSE),VLOOKUP($M41,TT_Tabelle_Riferimento!$D$127:$H$164,5,FALSE))","v":8},{"$f":"+IFERROR(VLOOKUP(PL$27&\"-\"&$M41&\"_new\",Ammortamento_Finanziario!$H:$L,5,FALSE),VLOOKUP($M41,TT_Tabelle_Riferimento!$D$127:$H$164,5,FALSE))","v":8},{"$f":"+IFERROR(VLOOKUP(PM$27&\"-\"&$M41&\"_new\",Ammortamento_Finanziario!$H:$L,5,FALSE),VLOOKUP($M41,TT_Tabelle_Riferimento!$D$127:$H$164,5,FALSE))","v":8},{"$f":"+IFERROR(VLOOKUP(PN$27&\"-\"&$M41&\"_new\",Ammortamento_Finanziario!$H:$L,5,FALSE),VLOOKUP($M41,TT_Tabelle_Riferimento!$D$127:$H$164,5,FALSE))","v":8},{"$f":"+IFERROR(VLOOKUP(PO$27&\"-\"&$M41&\"_new\",Ammortamento_Finanziario!$H:$L,5,FALSE),VLOOKUP($M41,TT_Tabelle_Riferimento!$D$127:$H$164,5,FALSE))","v":8},{"$f":"+IFERROR(VLOOKUP(PP$27&\"-\"&$M41&\"_new\",Ammortamento_Finanziario!$H:$L,5,FALSE),VLOOKUP($M41,TT_Tabelle_Riferimento!$D$127:$H$164,5,FALSE))","v":8},{"$f":"+IFERROR(VLOOKUP(PQ$27&\"-\"&$M41&\"_new\",Ammortamento_Finanziario!$H:$L,5,FALSE),VLOOKUP($M41,TT_Tabelle_Riferimento!$D$127:$H$164,5,FALSE))","v":8},{"$f":"+IFERROR(VLOOKUP(PR$27&\"-\"&$M41&\"_new\",Ammortamento_Finanziario!$H:$L,5,FALSE),VLOOKUP($M41,TT_Tabelle_Riferimento!$D$127:$H$164,5,FALSE))","v":8},{"$f":"+IFERROR(VLOOKUP(PS$27&\"-\"&$M41&\"_new\",Ammortamento_Finanziario!$H:$L,5,FALSE),VLOOKUP($M41,TT_Tabelle_Riferimento!$D$127:$H$164,5,FALSE))","v":8},{"$f":"+IFERROR(VLOOKUP(PT$27&\"-\"&$M41&\"_new\",Ammortamento_Finanziario!$H:$L,5,FALSE),VLOOKUP($M41,TT_Tabelle_Riferimento!$D$127:$H$164,5,FALSE))","v":8},{"$f":"+IFERROR(VLOOKUP(PU$27&\"-\"&$M41&\"_new\",Ammortamento_Finanziario!$H:$L,5,FALSE),VLOOKUP($M41,TT_Tabelle_Riferimento!$D$127:$H$164,5,FALSE))","v":8},{"$f":"+IFERROR(VLOOKUP(PV$27&\"-\"&$M41&\"_new\",Ammortamento_Finanziario!$H:$L,5,FALSE),VLOOKUP($M41,TT_Tabelle_Riferimento!$D$127:$H$164,5,FALSE))","v":8},{"$f":"+IFERROR(VLOOKUP(PW$27&\"-\"&$M41&\"_new\",Ammortamento_Finanziario!$H:$L,5,FALSE),VLOOKUP($M41,TT_Tabelle_Riferimento!$D$127:$H$164,5,FALSE))","v":8},{"$f":"+IFERROR(VLOOKUP(PX$27&\"-\"&$M41&\"_new\",Ammortamento_Finanziario!$H:$L,5,FALSE),VLOOKUP($M41,TT_Tabelle_Riferimento!$D$127:$H$164,5,FALSE))","v":8},{"$f":"+IFERROR(VLOOKUP(PY$27&\"-\"&$M41&\"_new\",Ammortamento_Finanziario!$H:$L,5,FALSE),VLOOKUP($M41,TT_Tabelle_Riferimento!$D$127:$H$164,5,FALSE))","v":8},{"$f":"+IFERROR(VLOOKUP(PZ$27&\"-\"&$M41&\"_new\",Ammortamento_Finanziario!$H:$L,5,FALSE),VLOOKUP($M41,TT_Tabelle_Riferimento!$D$127:$H$164,5,FALSE))","v":8},{"$f":"+IFERROR(VLOOKUP(QA$27&\"-\"&$M41&\"_new\",Ammortamento_Finanziario!$H:$L,5,FALSE),VLOOKUP($M41,TT_Tabelle_Riferimento!$D$127:$H$164,5,FALSE))","v":8},{"$f":"+IFERROR(VLOOKUP(QB$27&\"-\"&$M41&\"_new\",Ammortamento_Finanziario!$H:$L,5,FALSE),VLOOKUP($M41,TT_Tabelle_Riferimento!$D$127:$H$164,5,FALSE))","v":8},{"$f":"+IFERROR(VLOOKUP(QC$27&\"-\"&$M41&\"_new\",Ammortamento_Finanziario!$H:$L,5,FALSE),VLOOKUP($M41,TT_Tabelle_Riferimento!$D$127:$H$164,5,FALSE))","v":8},{"$f":"+IFERROR(VLOOKUP(QD$27&\"-\"&$M41&\"_new\",Ammortamento_Finanziario!$H:$L,5,FALSE),VLOOKUP($M41,TT_Tabelle_Riferimento!$D$127:$H$164,5,FALSE))","v":8},{"$f":"+IFERROR(VLOOKUP(QE$27&\"-\"&$M41&\"_new\",Ammortamento_Finanziario!$H:$L,5,FALSE),VLOOKUP($M41,TT_Tabelle_Riferimento!$D$127:$H$164,5,FALSE))","v":8},{"$f":"+IFERROR(VLOOKUP(QF$27&\"-\"&$M41&\"_new\",Ammortamento_Finanziario!$H:$L,5,FALSE),VLOOKUP($M41,TT_Tabelle_Riferimento!$D$127:$H$164,5,FALSE))","v":8},{"$f":"+IFERROR(VLOOKUP(QG$27&\"-\"&$M41&\"_new\",Ammortamento_Finanziario!$H:$L,5,FALSE),VLOOKUP($M41,TT_Tabelle_Riferimento!$D$127:$H$164,5,FALSE))","v":8},{"$f":"+IFERROR(VLOOKUP(QH$27&\"-\"&$M41&\"_new\",Ammortamento_Finanziario!$H:$L,5,FALSE),VLOOKUP($M41,TT_Tabelle_Riferimento!$D$127:$H$164,5,FALSE))","v":8},{"$f":"+IFERROR(VLOOKUP(QI$27&\"-\"&$M41&\"_new\",Ammortamento_Finanziario!$H:$L,5,FALSE),VLOOKUP($M41,TT_Tabelle_Riferimento!$D$127:$H$164,5,FALSE))","v":8},{"$f":"+IFERROR(VLOOKUP(QJ$27&\"-\"&$M41&\"_new\",Ammortamento_Finanziario!$H:$L,5,FALSE),VLOOKUP($M41,TT_Tabelle_Riferimento!$D$127:$H$164,5,FALSE))","v":8},{"$f":"+IFERROR(VLOOKUP(QK$27&\"-\"&$M41&\"_new\",Ammortamento_Finanziario!$H:$L,5,FALSE),VLOOKUP($M41,TT_Tabelle_Riferimento!$D$127:$H$164,5,FALSE))","v":8},{"$f":"+IFERROR(VLOOKUP(QL$27&\"-\"&$M41&\"_new\",Ammortamento_Finanziario!$H:$L,5,FALSE),VLOOKUP($M41,TT_Tabelle_Riferimento!$D$127:$H$164,5,FALSE))","v":8},{"$f":"+IFERROR(VLOOKUP(QM$27&\"-\"&$M41&\"_new\",Ammortamento_Finanziario!$H:$L,5,FALSE),VLOOKUP($M41,TT_Tabelle_Riferimento!$D$127:$H$164,5,FALSE))","v":8},{"$f":"+IFERROR(VLOOKUP(QN$27&\"-\"&$M41&\"_new\",Ammortamento_Finanziario!$H:$L,5,FALSE),VLOOKUP($M41,TT_Tabelle_Riferimento!$D$127:$H$164,5,FALSE))","v":8},{"$f":"+IFERROR(VLOOKUP(QO$27&\"-\"&$M41&\"_new\",Ammortamento_Finanziario!$H:$L,5,FALSE),VLOOKUP($M41,TT_Tabelle_Riferimento!$D$127:$H$164,5,FALSE))","v":8},{"$f":"+IFERROR(VLOOKUP(QP$27&\"-\"&$M41&\"_new\",Ammortamento_Finanziario!$H:$L,5,FALSE),VLOOKUP($M41,TT_Tabelle_Riferimento!$D$127:$H$164,5,FALSE))","v":8},{"$f":"+IFERROR(VLOOKUP(QQ$27&\"-\"&$M41&\"_new\",Ammortamento_Finanziario!$H:$L,5,FALSE),VLOOKUP($M41,TT_Tabelle_Riferimento!$D$127:$H$164,5,FALSE))","v":8},{"$f":"+IFERROR(VLOOKUP(QR$27&\"-\"&$M41&\"_new\",Ammortamento_Finanziario!$H:$L,5,FALSE),VLOOKUP($M41,TT_Tabelle_Riferimento!$D$127:$H$164,5,FALSE))","v":8},{"$f":"+IFERROR(VLOOKUP(QS$27&\"-\"&$M41&\"_new\",Ammortamento_Finanziario!$H:$L,5,FALSE),VLOOKUP($M41,TT_Tabelle_Riferimento!$D$127:$H$164,5,FALSE))","v":8},{"$f":"+IFERROR(VLOOKUP(QT$27&\"-\"&$M41&\"_new\",Ammortamento_Finanziario!$H:$L,5,FALSE),VLOOKUP($M41,TT_Tabelle_Riferimento!$D$127:$H$164,5,FALSE))","v":8},{"$f":"+IFERROR(VLOOKUP(QU$27&\"-\"&$M41&\"_new\",Ammortamento_Finanziario!$H:$L,5,FALSE),VLOOKUP($M41,TT_Tabelle_Riferimento!$D$127:$H$164,5,FALSE))","v":8},{"$f":"+IFERROR(VLOOKUP(QV$27&\"-\"&$M41&\"_new\",Ammortamento_Finanziario!$H:$L,5,FALSE),VLOOKUP($M41,TT_Tabelle_Riferimento!$D$127:$H$164,5,FALSE))","v":8},{"$f":"+IFERROR(VLOOKUP(QW$27&\"-\"&$M41&\"_new\",Ammortamento_Finanziario!$H:$L,5,FALSE),VLOOKUP($M41,TT_Tabelle_Riferimento!$D$127:$H$164,5,FALSE))","v":8},{"$f":"+IFERROR(VLOOKUP(QX$27&\"-\"&$M41&\"_new\",Ammortamento_Finanziario!$H:$L,5,FALSE),VLOOKUP($M41,TT_Tabelle_Riferimento!$D$127:$H$164,5,FALSE))","v":8},{"$f":"+IFERROR(VLOOKUP(QY$27&\"-\"&$M41&\"_new\",Ammortamento_Finanziario!$H:$L,5,FALSE),VLOOKUP($M41,TT_Tabelle_Riferimento!$D$127:$H$164,5,FALSE))","v":8},{"$f":"+IFERROR(VLOOKUP(QZ$27&\"-\"&$M41&\"_new\",Ammortamento_Finanziario!$H:$L,5,FALSE),VLOOKUP($M41,TT_Tabelle_Riferimento!$D$127:$H$164,5,FALSE))","v":8},{"$f":"+IFERROR(VLOOKUP(RA$27&\"-\"&$M41&\"_new\",Ammortamento_Finanziario!$H:$L,5,FALSE),VLOOKUP($M41,TT_Tabelle_Riferimento!$D$127:$H$164,5,FALSE))","v":8},{"$f":"+IFERROR(VLOOKUP(RB$27&\"-\"&$M41&\"_new\",Ammortamento_Finanziario!$H:$L,5,FALSE),VLOOKUP($M41,TT_Tabelle_Riferimento!$D$127:$H$164,5,FALSE))","v":8},{"$f":"+IFERROR(VLOOKUP(RC$27&\"-\"&$M41&\"_new\",Ammortamento_Finanziario!$H:$L,5,FALSE),VLOOKUP($M41,TT_Tabelle_Riferimento!$D$127:$H$164,5,FALSE))","v":8},{"$f":"+IFERROR(VLOOKUP(RD$27&\"-\"&$M41&\"_new\",Ammortamento_Finanziario!$H:$L,5,FALSE),VLOOKUP($M41,TT_Tabelle_Riferimento!$D$127:$H$164,5,FALSE))","v":8},{"$f":"+IFERROR(VLOOKUP(RE$27&\"-\"&$M41&\"_new\",Ammortamento_Finanziario!$H:$L,5,FALSE),VLOOKUP($M41,TT_Tabelle_Riferimento!$D$127:$H$164,5,FALSE))","v":8},{"$f":"+IFERROR(VLOOKUP(RF$27&\"-\"&$M41&\"_new\",Ammortamento_Finanziario!$H:$L,5,FALSE),VLOOKUP($M41,TT_Tabelle_Riferimento!$D$127:$H$164,5,FALSE))","v":8},{"$f":"+IFERROR(VLOOKUP(RG$27&\"-\"&$M41&\"_new\",Ammortamento_Finanziario!$H:$L,5,FALSE),VLOOKUP($M41,TT_Tabelle_Riferimento!$D$127:$H$164,5,FALSE))","v":8},{"$f":"+IFERROR(VLOOKUP(RH$27&\"-\"&$M41&\"_new\",Ammortamento_Finanziario!$H:$L,5,FALSE),VLOOKUP($M41,TT_Tabelle_Riferimento!$D$127:$H$164,5,FALSE))","v":8},{"$f":"+IFERROR(VLOOKUP(RI$27&\"-\"&$M41&\"_new\",Ammortamento_Finanziario!$H:$L,5,FALSE),VLOOKUP($M41,TT_Tabelle_Riferimento!$D$127:$H$164,5,FALSE))","v":8},{"$f":"+IFERROR(VLOOKUP(RJ$27&\"-\"&$M41&\"_new\",Ammortamento_Finanziario!$H:$L,5,FALSE),VLOOKUP($M41,TT_Tabelle_Riferimento!$D$127:$H$164,5,FALSE))","v":8},{"$f":"+IFERROR(VLOOKUP(RK$27&\"-\"&$M41&\"_new\",Ammortamento_Finanziario!$H:$L,5,FALSE),VLOOKUP($M41,TT_Tabelle_Riferimento!$D$127:$H$164,5,FALSE))","v":8},{"$f":"+IFERROR(VLOOKUP(RL$27&\"-\"&$M41&\"_new\",Ammortamento_Finanziario!$H:$L,5,FALSE),VLOOKUP($M41,TT_Tabelle_Riferimento!$D$127:$H$164,5,FALSE))","v":8},{"$f":"+IFERROR(VLOOKUP(RM$27&\"-\"&$M41&\"_new\",Ammortamento_Finanziario!$H:$L,5,FALSE),VLOOKUP($M41,TT_Tabelle_Riferimento!$D$127:$H$164,5,FALSE))","v":8},{"$f":"+IFERROR(VLOOKUP(RN$27&\"-\"&$M41&\"_new\",Ammortamento_Finanziario!$H:$L,5,FALSE),VLOOKUP($M41,TT_Tabelle_Riferimento!$D$127:$H$164,5,FALSE))","v":8},{"$f":"+IFERROR(VLOOKUP(RO$27&\"-\"&$M41&\"_new\",Ammortamento_Finanziario!$H:$L,5,FALSE),VLOOKUP($M41,TT_Tabelle_Riferimento!$D$127:$H$164,5,FALSE))","v":8},{"$f":"+IFERROR(VLOOKUP(RP$27&\"-\"&$M41&\"_new\",Ammortamento_Finanziario!$H:$L,5,FALSE),VLOOKUP($M41,TT_Tabelle_Riferimento!$D$127:$H$164,5,FALSE))","v":8},{"$f":"+IFERROR(VLOOKUP(RQ$27&\"-\"&$M41&\"_new\",Ammortamento_Finanziario!$H:$L,5,FALSE),VLOOKUP($M41,TT_Tabelle_Riferimento!$D$127:$H$164,5,FALSE))","v":8},{"$f":"+IFERROR(VLOOKUP(RR$27&\"-\"&$M41&\"_new\",Ammortamento_Finanziario!$H:$L,5,FALSE),VLOOKUP($M41,TT_Tabelle_Riferimento!$D$127:$H$164,5,FALSE))","v":8},{"$f":"+IFERROR(VLOOKUP(RS$27&\"-\"&$M41&\"_new\",Ammortamento_Finanziario!$H:$L,5,FALSE),VLOOKUP($M41,TT_Tabelle_Riferimento!$D$127:$H$164,5,FALSE))","v":8},{"$f":"+IFERROR(VLOOKUP(RT$27&\"-\"&$M41&\"_new\",Ammortamento_Finanziario!$H:$L,5,FALSE),VLOOKUP($M41,TT_Tabelle_Riferimento!$D$127:$H$164,5,FALSE))","v":8},{"$f":"+IFERROR(VLOOKUP(RU$27&\"-\"&$M41&\"_new\",Ammortamento_Finanziario!$H:$L,5,FALSE),VLOOKUP($M41,TT_Tabelle_Riferimento!$D$127:$H$164,5,FALSE))","v":8},{"$f":"+IFERROR(VLOOKUP(RV$27&\"-\"&$M41&\"_new\",Ammortamento_Finanziario!$H:$L,5,FALSE),VLOOKUP($M41,TT_Tabelle_Riferimento!$D$127:$H$164,5,FALSE))","v":8}]
[null,null,null,"IML",{"$f":"+SUMIFS(IMN_gestore!P:P,IMN_gestore!$I:$I,\"Env\")","v":0},{"$f":"+SUMIFS(IMN_gestore!AA:AA,IMN_gestore!$G:$G,\"Env\")","v":0},{"$f":"+SUMIFS(IMN_gestore!AL:AL,IMN_gestore!$G:$G,\"Env\")","v":0},{"$f":"+SUMIFS(IMN_gestore!AW:AW,IMN_gestore!$G:$G,\"Env\")","v":0},{"$f":"+SUMIFS(IMN_gestore!$BH:$BH,IMN_gestore!$G:$G,\"Env\")","v":0},{"$f":"+SUMIFS(IMN_gestore!$BS:$BS,IMN_gestore!$G:$G,\"Env\")","v":0},null,null,15,0,0,0,0,0,0,0,0,0,0,0,0,0,0,0,0,0,0,0,0,0,0,0,0,0,0,0,0,0,0,0,0,0,0,0,0,0,0,0,0,0,0,0,0,0,0,0,0,0,0,0,0,0,0,0,0,0,0,0,0,0,0,0,0,0,0,0,0,0,0,0,0,0,0,0,0,0,0,0,0,0,0,0,0,0,0,0,0,0,0,0,0,0,0,0,0,0,0,0,0,0,0,0,0,0,0,0,0,0,0,0,0,0,0,0,0,0,0,0,0,0,0,0,0,0,0,0,0,0,0,0,0,0,0,0,0,0,0,0,0,0,0,0,0,0,0,0,0,0,0,0,0,0,0,0,0,0,0,0,0,0,0,0,0,0,0,0,0,0,0,0,0,0,0,0,0,0,0,0,0,0,0,0,0,0,0,0,0,0,0,0,0,0,0,0,0,0,0,0,0,0,0,0,0,0,0,0,0,0,0,0,0,0,0,0,0,0,0,0,0,0,0,0,0,0,0,0,0,0,0,0,0,0,0,0,0,0,0,0,0,0,0,0,0,0,0,0,0,0,0,0,0,0,0,0,0,0,0,0,0,0,0,0,0,0,0,0,0,0,0,0,0,0,0,0,0,0,0,0,0,0,0,0,0,0,0,0,0,0,{"$f":"+IFERROR(VLOOKUP(KQ$27&\"-\"&$M42&\"_new\",Ammortamento_Finanziario!$H:$L,5,FALSE),VLOOKUP($M42,TT_Tabelle_Riferimento!$D$127:$H$164,5,FALSE))","v":10},{"$f":"+IFERROR(VLOOKUP(KR$27&\"-\"&$M42&\"_new\",Ammortamento_Finanziario!$H:$L,5,FALSE),VLOOKUP($M42,TT_Tabelle_Riferimento!$D$127:$H$164,5,FALSE))","v":10},{"$f":"+IFERROR(VLOOKUP(KS$27&\"-\"&$M42&\"_new\",Ammortamento_Finanziario!$H:$L,5,FALSE),VLOOKUP($M42,TT_Tabelle_Riferimento!$D$127:$H$164,5,FALSE))","v":10},{"$f":"+IFERROR(VLOOKUP(KT$27&\"-\"&$M42&\"_new\",Ammortamento_Finanziario!$H:$L,5,FALSE),VLOOKUP($M42,TT_Tabelle_Riferimento!$D$127:$H$164,5,FALSE))","v":10},{"$f":"+IFERROR(VLOOKUP(KU$27&\"-\"&$M42&\"_new\",Ammortamento_Finanziario!$H:$L,5,FALSE),VLOOKUP($M42,TT_Tabelle_Riferimento!$D$127:$H$164,5,FALSE))","v":10},{"$f":"+IFERROR(VLOOKUP(KV$27&\"-\"&$M42&\"_new\",Ammortamento_Finanziario!$H:$L,5,FALSE),VLOOKUP($M42,TT_Tabelle_Riferimento!$D$127:$H$164,5,FALSE))","v":10},{"$f":"+IFERROR(VLOOKUP(KW$27&\"-\"&$M42&\"_new\",Ammortamento_Finanziario!$H:$L,5,FALSE),VLOOKUP($M42,TT_Tabelle_Riferimento!$D$127:$H$164,5,FALSE))","v":10},{"$f":"+IFERROR(VLOOKUP(KX$27&\"-\"&$M42&\"_new\",Ammortamento_Finanziario!$H:$L,5,FALSE),VLOOKUP($M42,TT_Tabelle_Riferimento!$D$127:$H$164,5,FALSE))","v":10},{"$f":"+IFERROR(VLOOKUP(KY$27&\"-\"&$M42&\"_new\",Ammortamento_Finanziario!$H:$L,5,FALSE),VLOOKUP($M42,TT_Tabelle_Riferimento!$D$127:$H$164,5,FALSE))","v":10},{"$f":"+IFERROR(VLOOKUP(KZ$27&\"-\"&$M42&\"_new\",Ammortamento_Finanziario!$H:$L,5,FALSE),VLOOKUP($M42,TT_Tabelle_Riferimento!$D$127:$H$164,5,FALSE))","v":10},{"$f":"+IFERROR(VLOOKUP(LA$27&\"-\"&$M42&\"_new\",Ammortamento_Finanziario!$H:$L,5,FALSE),VLOOKUP($M42,TT_Tabelle_Riferimento!$D$127:$H$164,5,FALSE))","v":10},{"$f":"+IFERROR(VLOOKUP(LB$27&\"-\"&$M42&\"_new\",Ammortamento_Finanziario!$H:$L,5,FALSE),VLOOKUP($M42,TT_Tabelle_Riferimento!$D$127:$H$164,5,FALSE))","v":10},{"$f":"+IFERROR(VLOOKUP(LC$27&\"-\"&$M42&\"_new\",Ammortamento_Finanziario!$H:$L,5,FALSE),VLOOKUP($M42,TT_Tabelle_Riferimento!$D$127:$H$164,5,FALSE))","v":10},{"$f":"+IFERROR(VLOOKUP(LD$27&\"-\"&$M42&\"_new\",Ammortamento_Finanziario!$H:$L,5,FALSE),VLOOKUP($M42,TT_Tabelle_Riferimento!$D$127:$H$164,5,FALSE))","v":10},{"$f":"+IFERROR(VLOOKUP(LE$27&\"-\"&$M42&\"_new\",Ammortamento_Finanziario!$H:$L,5,FALSE),VLOOKUP($M42,TT_Tabelle_Riferimento!$D$127:$H$164,5,FALSE))","v":10},{"$f":"+IFERROR(VLOOKUP(LF$27&\"-\"&$M42&\"_new\",Ammortamento_Finanziario!$H:$L,5,FALSE),VLOOKUP($M42,TT_Tabelle_Riferimento!$D$127:$H$164,5,FALSE))","v":10},{"$f":"+IFERROR(VLOOKUP(LG$27&\"-\"&$M42&\"_new\",Ammortamento_Finanziario!$H:$L,5,FALSE),VLOOKUP($M42,TT_Tabelle_Riferimento!$D$127:$H$164,5,FALSE))","v":10},{"$f":"+IFERROR(VLOOKUP(LH$27&\"-\"&$M42&\"_new\",Ammortamento_Finanziario!$H:$L,5,FALSE),VLOOKUP($M42,TT_Tabelle_Riferimento!$D$127:$H$164,5,FALSE))","v":10},{"$f":"+IFERROR(VLOOKUP(LI$27&\"-\"&$M42&\"_new\",Ammortamento_Finanziario!$H:$L,5,FALSE),VLOOKUP($M42,TT_Tabelle_Riferimento!$D$127:$H$164,5,FALSE))","v":10},{"$f":"+IFERROR(VLOOKUP(LJ$27&\"-\"&$M42&\"_new\",Ammortamento_Finanziario!$H:$L,5,FALSE),VLOOKUP($M42,TT_Tabelle_Riferimento!$D$127:$H$164,5,FALSE))","v":10},{"$f":"+IFERROR(VLOOKUP(LK$27&\"-\"&$M42&\"_new\",Ammortamento_Finanziario!$H:$L,5,FALSE),VLOOKUP($M42,TT_Tabelle_Riferimento!$D$127:$H$164,5,FALSE))","v":10},{"$f":"+IFERROR(VLOOKUP(LL$27&\"-\"&$M42&\"_new\",Ammortamento_Finanziario!$H:$L,5,FALSE),VLOOKUP($M42,TT_Tabelle_Riferimento!$D$127:$H$164,5,FALSE))","v":10},{"$f":"+IFERROR(VLOOKUP(LM$27&\"-\"&$M42&\"_new\",Ammortamento_Finanziario!$H:$L,5,FALSE),VLOOKUP($M42,TT_Tabelle_Riferimento!$D$127:$H$164,5,FALSE))","v":10},{"$f":"+IFERROR(VLOOKUP(LN$27&\"-\"&$M42&\"_new\",Ammortamento_Finanziario!$H:$L,5,FALSE),VLOOKUP($M42,TT_Tabelle_Riferimento!$D$127:$H$164,5,FALSE))","v":10},{"$f":"+IFERROR(VLOOKUP(LO$27&\"-\"&$M42&\"_new\",Ammortamento_Finanziario!$H:$L,5,FALSE),VLOOKUP($M42,TT_Tabelle_Riferimento!$D$127:$H$164,5,FALSE))","v":10},{"$f":"+IFERROR(VLOOKUP(LP$27&\"-\"&$M42&\"_new\",Ammortamento_Finanziario!$H:$L,5,FALSE),VLOOKUP($M42,TT_Tabelle_Riferimento!$D$127:$H$164,5,FALSE))","v":10},{"$f":"+IFERROR(VLOOKUP(LQ$27&\"-\"&$M42&\"_new\",Ammortamento_Finanziario!$H:$L,5,FALSE),VLOOKUP($M42,TT_Tabelle_Riferimento!$D$127:$H$164,5,FALSE))","v":10},{"$f":"+IFERROR(VLOOKUP(LR$27&\"-\"&$M42&\"_new\",Ammortamento_Finanziario!$H:$L,5,FALSE),VLOOKUP($M42,TT_Tabelle_Riferimento!$D$127:$H$164,5,FALSE))","v":10},{"$f":"+IFERROR(VLOOKUP(LS$27&\"-\"&$M42&\"_new\",Ammortamento_Finanziario!$H:$L,5,FALSE),VLOOKUP($M42,TT_Tabelle_Riferimento!$D$127:$H$164,5,FALSE))","v":10},{"$f":"+IFERROR(VLOOKUP(LT$27&\"-\"&$M42&\"_new\",Ammortamento_Finanziario!$H:$L,5,FALSE),VLOOKUP($M42,TT_Tabelle_Riferimento!$D$127:$H$164,5,FALSE))","v":10},{"$f":"+IFERROR(VLOOKUP(LU$27&\"-\"&$M42&\"_new\",Ammortamento_Finanziario!$H:$L,5,FALSE),VLOOKUP($M42,TT_Tabelle_Riferimento!$D$127:$H$164,5,FALSE))","v":10},{"$f":"+IFERROR(VLOOKUP(LV$27&\"-\"&$M42&\"_new\",Ammortamento_Finanziario!$H:$L,5,FALSE),VLOOKUP($M42,TT_Tabelle_Riferimento!$D$127:$H$164,5,FALSE))","v":10},{"$f":"+IFERROR(VLOOKUP(LW$27&\"-\"&$M42&\"_new\",Ammortamento_Finanziario!$H:$L,5,FALSE),VLOOKUP($M42,TT_Tabelle_Riferimento!$D$127:$H$164,5,FALSE))","v":10},{"$f":"+IFERROR(VLOOKUP(LX$27&\"-\"&$M42&\"_new\",Ammortamento_Finanziario!$H:$L,5,FALSE),VLOOKUP($M42,TT_Tabelle_Riferimento!$D$127:$H$164,5,FALSE))","v":10},{"$f":"+IFERROR(VLOOKUP(LY$27&\"-\"&$M42&\"_new\",Ammortamento_Finanziario!$H:$L,5,FALSE),VLOOKUP($M42,TT_Tabelle_Riferimento!$D$127:$H$164,5,FALSE))","v":10},{"$f":"+IFERROR(VLOOKUP(LZ$27&\"-\"&$M42&\"_new\",Ammortamento_Finanziario!$H:$L,5,FALSE),VLOOKUP($M42,TT_Tabelle_Riferimento!$D$127:$H$164,5,FALSE))","v":10},{"$f":"+IFERROR(VLOOKUP(MA$27&\"-\"&$M42&\"_new\",Ammortamento_Finanziario!$H:$L,5,FALSE),VLOOKUP($M42,TT_Tabelle_Riferimento!$D$127:$H$164,5,FALSE))","v":10},{"$f":"+IFERROR(VLOOKUP(MB$27&\"-\"&$M42&\"_new\",Ammortamento_Finanziario!$H:$L,5,FALSE),VLOOKUP($M42,TT_Tabelle_Riferimento!$D$127:$H$164,5,FALSE))","v":10},{"$f":"+IFERROR(VLOOKUP(MC$27&\"-\"&$M42&\"_new\",Ammortamento_Finanziario!$H:$L,5,FALSE),VLOOKUP($M42,TT_Tabelle_Riferimento!$D$127:$H$164,5,FALSE))","v":10},{"$f":"+IFERROR(VLOOKUP(MD$27&\"-\"&$M42&\"_new\",Ammortamento_Finanziario!$H:$L,5,FALSE),VLOOKUP($M42,TT_Tabelle_Riferimento!$D$127:$H$164,5,FALSE))","v":10},{"$f":"+IFERROR(VLOOKUP(ME$27&\"-\"&$M42&\"_new\",Ammortamento_Finanziario!$H:$L,5,FALSE),VLOOKUP($M42,TT_Tabelle_Riferimento!$D$127:$H$164,5,FALSE))","v":10},{"$f":"+IFERROR(VLOOKUP(MF$27&\"-\"&$M42&\"_new\",Ammortamento_Finanziario!$H:$L,5,FALSE),VLOOKUP($M42,TT_Tabelle_Riferimento!$D$127:$H$164,5,FALSE))","v":10},{"$f":"+IFERROR(VLOOKUP(MG$27&\"-\"&$M42&\"_new\",Ammortamento_Finanziario!$H:$L,5,FALSE),VLOOKUP($M42,TT_Tabelle_Riferimento!$D$127:$H$164,5,FALSE))","v":10},{"$f":"+IFERROR(VLOOKUP(MH$27&\"-\"&$M42&\"_new\",Ammortamento_Finanziario!$H:$L,5,FALSE),VLOOKUP($M42,TT_Tabelle_Riferimento!$D$127:$H$164,5,FALSE))","v":10},{"$f":"+IFERROR(VLOOKUP(MI$27&\"-\"&$M42&\"_new\",Ammortamento_Finanziario!$H:$L,5,FALSE),VLOOKUP($M42,TT_Tabelle_Riferimento!$D$127:$H$164,5,FALSE))","v":10},{"$f":"+IFERROR(VLOOKUP(MJ$27&\"-\"&$M42&\"_new\",Ammortamento_Finanziario!$H:$L,5,FALSE),VLOOKUP($M42,TT_Tabelle_Riferimento!$D$127:$H$164,5,FALSE))","v":10},{"$f":"+IFERROR(VLOOKUP(MK$27&\"-\"&$M42&\"_new\",Ammortamento_Finanziario!$H:$L,5,FALSE),VLOOKUP($M42,TT_Tabelle_Riferimento!$D$127:$H$164,5,FALSE))","v":10},{"$f":"+IFERROR(VLOOKUP(ML$27&\"-\"&$M42&\"_new\",Ammortamento_Finanziario!$H:$L,5,FALSE),VLOOKUP($M42,TT_Tabelle_Riferimento!$D$127:$H$164,5,FALSE))","v":10},{"$f":"+IFERROR(VLOOKUP(MM$27&\"-\"&$M42&\"_new\",Ammortamento_Finanziario!$H:$L,5,FALSE),VLOOKUP($M42,TT_Tabelle_Riferimento!$D$127:$H$164,5,FALSE))","v":10},{"$f":"+IFERROR(VLOOKUP(MN$27&\"-\"&$M42&\"_new\",Ammortamento_Finanziario!$H:$L,5,FALSE),VLOOKUP($M42,TT_Tabelle_Riferimento!$D$127:$H$164,5,FALSE))","v":10},{"$f":"+IFERROR(VLOOKUP(MO$27&\"-\"&$M42&\"_new\",Ammortamento_Finanziario!$H:$L,5,FALSE),VLOOKUP($M42,TT_Tabelle_Riferimento!$D$127:$H$164,5,FALSE))","v":10},{"$f":"+IFERROR(VLOOKUP(MP$27&\"-\"&$M42&\"_new\",Ammortamento_Finanziario!$H:$L,5,FALSE),VLOOKUP($M42,TT_Tabelle_Riferimento!$D$127:$H$164,5,FALSE))","v":10},{"$f":"+IFERROR(VLOOKUP(MQ$27&\"-\"&$M42&\"_new\",Ammortamento_Finanziario!$H:$L,5,FALSE),VLOOKUP($M42,TT_Tabelle_Riferimento!$D$127:$H$164,5,FALSE))","v":10},{"$f":"+IFERROR(VLOOKUP(MR$27&\"-\"&$M42&\"_new\",Ammortamento_Finanziario!$H:$L,5,FALSE),VLOOKUP($M42,TT_Tabelle_Riferimento!$D$127:$H$164,5,FALSE))","v":10},{"$f":"+IFERROR(VLOOKUP(MS$27&\"-\"&$M42&\"_new\",Ammortamento_Finanziario!$H:$L,5,FALSE),VLOOKUP($M42,TT_Tabelle_Riferimento!$D$127:$H$164,5,FALSE))","v":10},{"$f":"+IFERROR(VLOOKUP(MT$27&\"-\"&$M42&\"_new\",Ammortamento_Finanziario!$H:$L,5,FALSE),VLOOKUP($M42,TT_Tabelle_Riferimento!$D$127:$H$164,5,FALSE))","v":10},{"$f":"+IFERROR(VLOOKUP(MU$27&\"-\"&$M42&\"_new\",Ammortamento_Finanziario!$H:$L,5,FALSE),VLOOKUP($M42,TT_Tabelle_Riferimento!$D$127:$H$164,5,FALSE))","v":10},{"$f":"+IFERROR(VLOOKUP(MV$27&\"-\"&$M42&\"_new\",Ammortamento_Finanziario!$H:$L,5,FALSE),VLOOKUP($M42,TT_Tabelle_Riferimento!$D$127:$H$164,5,FALSE))","v":10},{"$f":"+IFERROR(VLOOKUP(MW$27&\"-\"&$M42&\"_new\",Ammortamento_Finanziario!$H:$L,5,FALSE),VLOOKUP($M42,TT_Tabelle_Riferimento!$D$127:$H$164,5,FALSE))","v":10},{"$f":"+IFERROR(VLOOKUP(MX$27&\"-\"&$M42&\"_new\",Ammortamento_Finanziario!$H:$L,5,FALSE),VLOOKUP($M42,TT_Tabelle_Riferimento!$D$127:$H$164,5,FALSE))","v":10},{"$f":"+IFERROR(VLOOKUP(MY$27&\"-\"&$M42&\"_new\",Ammortamento_Finanziario!$H:$L,5,FALSE),VLOOKUP($M42,TT_Tabelle_Riferimento!$D$127:$H$164,5,FALSE))","v":10},{"$f":"+IFERROR(VLOOKUP(MZ$27&\"-\"&$M42&\"_new\",Ammortamento_Finanziario!$H:$L,5,FALSE),VLOOKUP($M42,TT_Tabelle_Riferimento!$D$127:$H$164,5,FALSE))","v":10},{"$f":"+IFERROR(VLOOKUP(NA$27&\"-\"&$M42&\"_new\",Ammortamento_Finanziario!$H:$L,5,FALSE),VLOOKUP($M42,TT_Tabelle_Riferimento!$D$127:$H$164,5,FALSE))","v":10},{"$f":"+IFERROR(VLOOKUP(NB$27&\"-\"&$M42&\"_new\",Ammortamento_Finanziario!$H:$L,5,FALSE),VLOOKUP($M42,TT_Tabelle_Riferimento!$D$127:$H$164,5,FALSE))","v":10},{"$f":"+IFERROR(VLOOKUP(NC$27&\"-\"&$M42&\"_new\",Ammortamento_Finanziario!$H:$L,5,FALSE),VLOOKUP($M42,TT_Tabelle_Riferimento!$D$127:$H$164,5,FALSE))","v":10},{"$f":"+IFERROR(VLOOKUP(ND$27&\"-\"&$M42&\"_new\",Ammortamento_Finanziario!$H:$L,5,FALSE),VLOOKUP($M42,TT_Tabelle_Riferimento!$D$127:$H$164,5,FALSE))","v":10},{"$f":"+IFERROR(VLOOKUP(NE$27&\"-\"&$M42&\"_new\",Ammortamento_Finanziario!$H:$L,5,FALSE),VLOOKUP($M42,TT_Tabelle_Riferimento!$D$127:$H$164,5,FALSE))","v":10},{"$f":"+IFERROR(VLOOKUP(NF$27&\"-\"&$M42&\"_new\",Ammortamento_Finanziario!$H:$L,5,FALSE),VLOOKUP($M42,TT_Tabelle_Riferimento!$D$127:$H$164,5,FALSE))","v":10},{"$f":"+IFERROR(VLOOKUP(NG$27&\"-\"&$M42&\"_new\",Ammortamento_Finanziario!$H:$L,5,FALSE),VLOOKUP($M42,TT_Tabelle_Riferimento!$D$127:$H$164,5,FALSE))","v":10},{"$f":"+IFERROR(VLOOKUP(NH$27&\"-\"&$M42&\"_new\",Ammortamento_Finanziario!$H:$L,5,FALSE),VLOOKUP($M42,TT_Tabelle_Riferimento!$D$127:$H$164,5,FALSE))","v":10},{"$f":"+IFERROR(VLOOKUP(NI$27&\"-\"&$M42&\"_new\",Ammortamento_Finanziario!$H:$L,5,FALSE),VLOOKUP($M42,TT_Tabelle_Riferimento!$D$127:$H$164,5,FALSE))","v":10},{"$f":"+IFERROR(VLOOKUP(NJ$27&\"-\"&$M42&\"_new\",Ammortamento_Finanziario!$H:$L,5,FALSE),VLOOKUP($M42,TT_Tabelle_Riferimento!$D$127:$H$164,5,FALSE))","v":10},{"$f":"+IFERROR(VLOOKUP(NK$27&\"-\"&$M42&\"_new\",Ammortamento_Finanziario!$H:$L,5,FALSE),VLOOKUP($M42,TT_Tabelle_Riferimento!$D$127:$H$164,5,FALSE))","v":10},{"$f":"+IFERROR(VLOOKUP(NL$27&\"-\"&$M42&\"_new\",Ammortamento_Finanziario!$H:$L,5,FALSE),VLOOKUP($M42,TT_Tabelle_Riferimento!$D$127:$H$164,5,FALSE))","v":10},{"$f":"+IFERROR(VLOOKUP(NM$27&\"-\"&$M42&\"_new\",Ammortamento_Finanziario!$H:$L,5,FALSE),VLOOKUP($M42,TT_Tabelle_Riferimento!$D$127:$H$164,5,FALSE))","v":10},{"$f":"+IFERROR(VLOOKUP(NN$27&\"-\"&$M42&\"_new\",Ammortamento_Finanziario!$H:$L,5,FALSE),VLOOKUP($M42,TT_Tabelle_Riferimento!$D$127:$H$164,5,FALSE))","v":10},{"$f":"+IFERROR(VLOOKUP(NO$27&\"-\"&$M42&\"_new\",Ammortamento_Finanziario!$H:$L,5,FALSE),VLOOKUP($M42,TT_Tabelle_Riferimento!$D$127:$H$164,5,FALSE))","v":10},{"$f":"+IFERROR(VLOOKUP(NP$27&\"-\"&$M42&\"_new\",Ammortamento_Finanziario!$H:$L,5,FALSE),VLOOKUP($M42,TT_Tabelle_Riferimento!$D$127:$H$164,5,FALSE))","v":10},{"$f":"+IFERROR(VLOOKUP(NQ$27&\"-\"&$M42&\"_new\",Ammortamento_Finanziario!$H:$L,5,FALSE),VLOOKUP($M42,TT_Tabelle_Riferimento!$D$127:$H$164,5,FALSE))","v":10},{"$f":"+IFERROR(VLOOKUP(NR$27&\"-\"&$M42&\"_new\",Ammortamento_Finanziario!$H:$L,5,FALSE),VLOOKUP($M42,TT_Tabelle_Riferimento!$D$127:$H$164,5,FALSE))","v":10},{"$f":"+IFERROR(VLOOKUP(NS$27&\"-\"&$M42&\"_new\",Ammortamento_Finanziario!$H:$L,5,FALSE),VLOOKUP($M42,TT_Tabelle_Riferimento!$D$127:$H$164,5,FALSE))","v":10},{"$f":"+IFERROR(VLOOKUP(NT$27&\"-\"&$M42&\"_new\",Ammortamento_Finanziario!$H:$L,5,FALSE),VLOOKUP($M42,TT_Tabelle_Riferimento!$D$127:$H$164,5,FALSE))","v":10},{"$f":"+IFERROR(VLOOKUP(NU$27&\"-\"&$M42&\"_new\",Ammortamento_Finanziario!$H:$L,5,FALSE),VLOOKUP($M42,TT_Tabelle_Riferimento!$D$127:$H$164,5,FALSE))","v":10},{"$f":"+IFERROR(VLOOKUP(NV$27&\"-\"&$M42&\"_new\",Ammortamento_Finanziario!$H:$L,5,FALSE),VLOOKUP($M42,TT_Tabelle_Riferimento!$D$127:$H$164,5,FALSE))","v":10},{"$f":"+IFERROR(VLOOKUP(NW$27&\"-\"&$M42&\"_new\",Ammortamento_Finanziario!$H:$L,5,FALSE),VLOOKUP($M42,TT_Tabelle_Riferimento!$D$127:$H$164,5,FALSE))","v":10},{"$f":"+IFERROR(VLOOKUP(NX$27&\"-\"&$M42&\"_new\",Ammortamento_Finanziario!$H:$L,5,FALSE),VLOOKUP($M42,TT_Tabelle_Riferimento!$D$127:$H$164,5,FALSE))","v":10},{"$f":"+IFERROR(VLOOKUP(NY$27&\"-\"&$M42&\"_new\",Ammortamento_Finanziario!$H:$L,5,FALSE),VLOOKUP($M42,TT_Tabelle_Riferimento!$D$127:$H$164,5,FALSE))","v":10},{"$f":"+IFERROR(VLOOKUP(NZ$27&\"-\"&$M42&\"_new\",Ammortamento_Finanziario!$H:$L,5,FALSE),VLOOKUP($M42,TT_Tabelle_Riferimento!$D$127:$H$164,5,FALSE))","v":10},{"$f":"+IFERROR(VLOOKUP(OA$27&\"-\"&$M42&\"_new\",Ammortamento_Finanziario!$H:$L,5,FALSE),VLOOKUP($M42,TT_Tabelle_Riferimento!$D$127:$H$164,5,FALSE))","v":10},{"$f":"+IFERROR(VLOOKUP(OB$27&\"-\"&$M42&\"_new\",Ammortamento_Finanziario!$H:$L,5,FALSE),VLOOKUP($M42,TT_Tabelle_Riferimento!$D$127:$H$164,5,FALSE))","v":10},{"$f":"+IFERROR(VLOOKUP(OC$27&\"-\"&$M42&\"_new\",Ammortamento_Finanziario!$H:$L,5,FALSE),VLOOKUP($M42,TT_Tabelle_Riferimento!$D$127:$H$164,5,FALSE))","v":10},{"$f":"+IFERROR(VLOOKUP(OD$27&\"-\"&$M42&\"_new\",Ammortamento_Finanziario!$H:$L,5,FALSE),VLOOKUP($M42,TT_Tabelle_Riferimento!$D$127:$H$164,5,FALSE))","v":10},{"$f":"+IFERROR(VLOOKUP(OE$27&\"-\"&$M42&\"_new\",Ammortamento_Finanziario!$H:$L,5,FALSE),VLOOKUP($M42,TT_Tabelle_Riferimento!$D$127:$H$164,5,FALSE))","v":10},{"$f":"+IFERROR(VLOOKUP(OF$27&\"-\"&$M42&\"_new\",Ammortamento_Finanziario!$H:$L,5,FALSE),VLOOKUP($M42,TT_Tabelle_Riferimento!$D$127:$H$164,5,FALSE))","v":10},{"$f":"+IFERROR(VLOOKUP(OG$27&\"-\"&$M42&\"_new\",Ammortamento_Finanziario!$H:$L,5,FALSE),VLOOKUP($M42,TT_Tabelle_Riferimento!$D$127:$H$164,5,FALSE))","v":10},{"$f":"+IFERROR(VLOOKUP(OH$27&\"-\"&$M42&\"_new\",Ammortamento_Finanziario!$H:$L,5,FALSE),VLOOKUP($M42,TT_Tabelle_Riferimento!$D$127:$H$164,5,FALSE))","v":10},{"$f":"+IFERROR(VLOOKUP(OI$27&\"-\"&$M42&\"_new\",Ammortamento_Finanziario!$H:$L,5,FALSE),VLOOKUP($M42,TT_Tabelle_Riferimento!$D$127:$H$164,5,FALSE))","v":10},{"$f":"+IFERROR(VLOOKUP(OJ$27&\"-\"&$M42&\"_new\",Ammortamento_Finanziario!$H:$L,5,FALSE),VLOOKUP($M42,TT_Tabelle_Riferimento!$D$127:$H$164,5,FALSE))","v":10},{"$f":"+IFERROR(VLOOKUP(OK$27&\"-\"&$M42&\"_new\",Ammortamento_Finanziario!$H:$L,5,FALSE),VLOOKUP($M42,TT_Tabelle_Riferimento!$D$127:$H$164,5,FALSE))","v":10},{"$f":"+IFERROR(VLOOKUP(OL$27&\"-\"&$M42&\"_new\",Ammortamento_Finanziario!$H:$L,5,FALSE),VLOOKUP($M42,TT_Tabelle_Riferimento!$D$127:$H$164,5,FALSE))","v":10},{"$f":"+IFERROR(VLOOKUP(OM$27&\"-\"&$M42&\"_new\",Ammortamento_Finanziario!$H:$L,5,FALSE),VLOOKUP($M42,TT_Tabelle_Riferimento!$D$127:$H$164,5,FALSE))","v":10},{"$f":"+IFERROR(VLOOKUP(ON$27&\"-\"&$M42&\"_new\",Ammortamento_Finanziario!$H:$L,5,FALSE),VLOOKUP($M42,TT_Tabelle_Riferimento!$D$127:$H$164,5,FALSE))","v":10},{"$f":"+IFERROR(VLOOKUP(OO$27&\"-\"&$M42&\"_new\",Ammortamento_Finanziario!$H:$L,5,FALSE),VLOOKUP($M42,TT_Tabelle_Riferimento!$D$127:$H$164,5,FALSE))","v":10},{"$f":"+IFERROR(VLOOKUP(OP$27&\"-\"&$M42&\"_new\",Ammortamento_Finanziario!$H:$L,5,FALSE),VLOOKUP($M42,TT_Tabelle_Riferimento!$D$127:$H$164,5,FALSE))","v":10},{"$f":"+IFERROR(VLOOKUP(OQ$27&\"-\"&$M42&\"_new\",Ammortamento_Finanziario!$H:$L,5,FALSE),VLOOKUP($M42,TT_Tabelle_Riferimento!$D$127:$H$164,5,FALSE))","v":10},{"$f":"+IFERROR(VLOOKUP(OR$27&\"-\"&$M42&\"_new\",Ammortamento_Finanziario!$H:$L,5,FALSE),VLOOKUP($M42,TT_Tabelle_Riferimento!$D$127:$H$164,5,FALSE))","v":10},{"$f":"+IFERROR(VLOOKUP(OS$27&\"-\"&$M42&\"_new\",Ammortamento_Finanziario!$H:$L,5,FALSE),VLOOKUP($M42,TT_Tabelle_Riferimento!$D$127:$H$164,5,FALSE))","v":10},{"$f":"+IFERROR(VLOOKUP(OT$27&\"-\"&$M42&\"_new\",Ammortamento_Finanziario!$H:$L,5,FALSE),VLOOKUP($M42,TT_Tabelle_Riferimento!$D$127:$H$164,5,FALSE))","v":10},{"$f":"+IFERROR(VLOOKUP(OU$27&\"-\"&$M42&\"_new\",Ammortamento_Finanziario!$H:$L,5,FALSE),VLOOKUP($M42,TT_Tabelle_Riferimento!$D$127:$H$164,5,FALSE))","v":10},{"$f":"+IFERROR(VLOOKUP(OV$27&\"-\"&$M42&\"_new\",Ammortamento_Finanziario!$H:$L,5,FALSE),VLOOKUP($M42,TT_Tabelle_Riferimento!$D$127:$H$164,5,FALSE))","v":10},{"$f":"+IFERROR(VLOOKUP(OW$27&\"-\"&$M42&\"_new\",Ammortamento_Finanziario!$H:$L,5,FALSE),VLOOKUP($M42,TT_Tabelle_Riferimento!$D$127:$H$164,5,FALSE))","v":10},{"$f":"+IFERROR(VLOOKUP(OX$27&\"-\"&$M42&\"_new\",Ammortamento_Finanziario!$H:$L,5,FALSE),VLOOKUP($M42,TT_Tabelle_Riferimento!$D$127:$H$164,5,FALSE))","v":10},{"$f":"+IFERROR(VLOOKUP(OY$27&\"-\"&$M42&\"_new\",Ammortamento_Finanziario!$H:$L,5,FALSE),VLOOKUP($M42,TT_Tabelle_Riferimento!$D$127:$H$164,5,FALSE))","v":10},{"$f":"+IFERROR(VLOOKUP(OZ$27&\"-\"&$M42&\"_new\",Ammortamento_Finanziario!$H:$L,5,FALSE),VLOOKUP($M42,TT_Tabelle_Riferimento!$D$127:$H$164,5,FALSE))","v":10},{"$f":"+IFERROR(VLOOKUP(PA$27&\"-\"&$M42&\"_new\",Ammortamento_Finanziario!$H:$L,5,FALSE),VLOOKUP($M42,TT_Tabelle_Riferimento!$D$127:$H$164,5,FALSE))","v":10},{"$f":"+IFERROR(VLOOKUP(PB$27&\"-\"&$M42&\"_new\",Ammortamento_Finanziario!$H:$L,5,FALSE),VLOOKUP($M42,TT_Tabelle_Riferimento!$D$127:$H$164,5,FALSE))","v":10},{"$f":"+IFERROR(VLOOKUP(PC$27&\"-\"&$M42&\"_new\",Ammortamento_Finanziario!$H:$L,5,FALSE),VLOOKUP($M42,TT_Tabelle_Riferimento!$D$127:$H$164,5,FALSE))","v":10},{"$f":"+IFERROR(VLOOKUP(PD$27&\"-\"&$M42&\"_new\",Ammortamento_Finanziario!$H:$L,5,FALSE),VLOOKUP($M42,TT_Tabelle_Riferimento!$D$127:$H$164,5,FALSE))","v":10},{"$f":"+IFERROR(VLOOKUP(PE$27&\"-\"&$M42&\"_new\",Ammortamento_Finanziario!$H:$L,5,FALSE),VLOOKUP($M42,TT_Tabelle_Riferimento!$D$127:$H$164,5,FALSE))","v":10},{"$f":"+IFERROR(VLOOKUP(PF$27&\"-\"&$M42&\"_new\",Ammortamento_Finanziario!$H:$L,5,FALSE),VLOOKUP($M42,TT_Tabelle_Riferimento!$D$127:$H$164,5,FALSE))","v":10},{"$f":"+IFERROR(VLOOKUP(PG$27&\"-\"&$M42&\"_new\",Ammortamento_Finanziario!$H:$L,5,FALSE),VLOOKUP($M42,TT_Tabelle_Riferimento!$D$127:$H$164,5,FALSE))","v":10},{"$f":"+IFERROR(VLOOKUP(PH$27&\"-\"&$M42&\"_new\",Ammortamento_Finanziario!$H:$L,5,FALSE),VLOOKUP($M42,TT_Tabelle_Riferimento!$D$127:$H$164,5,FALSE))","v":10},{"$f":"+IFERROR(VLOOKUP(PI$27&\"-\"&$M42&\"_new\",Ammortamento_Finanziario!$H:$L,5,FALSE),VLOOKUP($M42,TT_Tabelle_Riferimento!$D$127:$H$164,5,FALSE))","v":10},{"$f":"+IFERROR(VLOOKUP(PJ$27&\"-\"&$M42&\"_new\",Ammortamento_Finanziario!$H:$L,5,FALSE),VLOOKUP($M42,TT_Tabelle_Riferimento!$D$127:$H$164,5,FALSE))","v":10},{"$f":"+IFERROR(VLOOKUP(PK$27&\"-\"&$M42&\"_new\",Ammortamento_Finanziario!$H:$L,5,FALSE),VLOOKUP($M42,TT_Tabelle_Riferimento!$D$127:$H$164,5,FALSE))","v":10},{"$f":"+IFERROR(VLOOKUP(PL$27&\"-\"&$M42&\"_new\",Ammortamento_Finanziario!$H:$L,5,FALSE),VLOOKUP($M42,TT_Tabelle_Riferimento!$D$127:$H$164,5,FALSE))","v":10},{"$f":"+IFERROR(VLOOKUP(PM$27&\"-\"&$M42&\"_new\",Ammortamento_Finanziario!$H:$L,5,FALSE),VLOOKUP($M42,TT_Tabelle_Riferimento!$D$127:$H$164,5,FALSE))","v":10},{"$f":"+IFERROR(VLOOKUP(PN$27&\"-\"&$M42&\"_new\",Ammortamento_Finanziario!$H:$L,5,FALSE),VLOOKUP($M42,TT_Tabelle_Riferimento!$D$127:$H$164,5,FALSE))","v":10},{"$f":"+IFERROR(VLOOKUP(PO$27&\"-\"&$M42&\"_new\",Ammortamento_Finanziario!$H:$L,5,FALSE),VLOOKUP($M42,TT_Tabelle_Riferimento!$D$127:$H$164,5,FALSE))","v":10},{"$f":"+IFERROR(VLOOKUP(PP$27&\"-\"&$M42&\"_new\",Ammortamento_Finanziario!$H:$L,5,FALSE),VLOOKUP($M42,TT_Tabelle_Riferimento!$D$127:$H$164,5,FALSE))","v":10},{"$f":"+IFERROR(VLOOKUP(PQ$27&\"-\"&$M42&\"_new\",Ammortamento_Finanziario!$H:$L,5,FALSE),VLOOKUP($M42,TT_Tabelle_Riferimento!$D$127:$H$164,5,FALSE))","v":10},{"$f":"+IFERROR(VLOOKUP(PR$27&\"-\"&$M42&\"_new\",Ammortamento_Finanziario!$H:$L,5,FALSE),VLOOKUP($M42,TT_Tabelle_Riferimento!$D$127:$H$164,5,FALSE))","v":10},{"$f":"+IFERROR(VLOOKUP(PS$27&\"-\"&$M42&\"_new\",Ammortamento_Finanziario!$H:$L,5,FALSE),VLOOKUP($M42,TT_Tabelle_Riferimento!$D$127:$H$164,5,FALSE))","v":10},{"$f":"+IFERROR(VLOOKUP(PT$27&\"-\"&$M42&\"_new\",Ammortamento_Finanziario!$H:$L,5,FALSE),VLOOKUP($M42,TT_Tabelle_Riferimento!$D$127:$H$164,5,FALSE))","v":10},{"$f":"+IFERROR(VLOOKUP(PU$27&\"-\"&$M42&\"_new\",Ammortamento_Finanziario!$H:$L,5,FALSE),VLOOKUP($M42,TT_Tabelle_Riferimento!$D$127:$H$164,5,FALSE))","v":10},{"$f":"+IFERROR(VLOOKUP(PV$27&\"-\"&$M42&\"_new\",Ammortamento_Finanziario!$H:$L,5,FALSE),VLOOKUP($M42,TT_Tabelle_Riferimento!$D$127:$H$164,5,FALSE))","v":10},{"$f":"+IFERROR(VLOOKUP(PW$27&\"-\"&$M42&\"_new\",Ammortamento_Finanziario!$H:$L,5,FALSE),VLOOKUP($M42,TT_Tabelle_Riferimento!$D$127:$H$164,5,FALSE))","v":10},{"$f":"+IFERROR(VLOOKUP(PX$27&\"-\"&$M42&\"_new\",Ammortamento_Finanziario!$H:$L,5,FALSE),VLOOKUP($M42,TT_Tabelle_Riferimento!$D$127:$H$164,5,FALSE))","v":10},{"$f":"+IFERROR(VLOOKUP(PY$27&\"-\"&$M42&\"_new\",Ammortamento_Finanziario!$H:$L,5,FALSE),VLOOKUP($M42,TT_Tabelle_Riferimento!$D$127:$H$164,5,FALSE))","v":10},{"$f":"+IFERROR(VLOOKUP(PZ$27&\"-\"&$M42&\"_new\",Ammortamento_Finanziario!$H:$L,5,FALSE),VLOOKUP($M42,TT_Tabelle_Riferimento!$D$127:$H$164,5,FALSE))","v":10},{"$f":"+IFERROR(VLOOKUP(QA$27&\"-\"&$M42&\"_new\",Ammortamento_Finanziario!$H:$L,5,FALSE),VLOOKUP($M42,TT_Tabelle_Riferimento!$D$127:$H$164,5,FALSE))","v":10},{"$f":"+IFERROR(VLOOKUP(QB$27&\"-\"&$M42&\"_new\",Ammortamento_Finanziario!$H:$L,5,FALSE),VLOOKUP($M42,TT_Tabelle_Riferimento!$D$127:$H$164,5,FALSE))","v":10},{"$f":"+IFERROR(VLOOKUP(QC$27&\"-\"&$M42&\"_new\",Ammortamento_Finanziario!$H:$L,5,FALSE),VLOOKUP($M42,TT_Tabelle_Riferimento!$D$127:$H$164,5,FALSE))","v":10},{"$f":"+IFERROR(VLOOKUP(QD$27&\"-\"&$M42&\"_new\",Ammortamento_Finanziario!$H:$L,5,FALSE),VLOOKUP($M42,TT_Tabelle_Riferimento!$D$127:$H$164,5,FALSE))","v":10},{"$f":"+IFERROR(VLOOKUP(QE$27&\"-\"&$M42&\"_new\",Ammortamento_Finanziario!$H:$L,5,FALSE),VLOOKUP($M42,TT_Tabelle_Riferimento!$D$127:$H$164,5,FALSE))","v":10},{"$f":"+IFERROR(VLOOKUP(QF$27&\"-\"&$M42&\"_new\",Ammortamento_Finanziario!$H:$L,5,FALSE),VLOOKUP($M42,TT_Tabelle_Riferimento!$D$127:$H$164,5,FALSE))","v":10},{"$f":"+IFERROR(VLOOKUP(QG$27&\"-\"&$M42&\"_new\",Ammortamento_Finanziario!$H:$L,5,FALSE),VLOOKUP($M42,TT_Tabelle_Riferimento!$D$127:$H$164,5,FALSE))","v":10},{"$f":"+IFERROR(VLOOKUP(QH$27&\"-\"&$M42&\"_new\",Ammortamento_Finanziario!$H:$L,5,FALSE),VLOOKUP($M42,TT_Tabelle_Riferimento!$D$127:$H$164,5,FALSE))","v":10},{"$f":"+IFERROR(VLOOKUP(QI$27&\"-\"&$M42&\"_new\",Ammortamento_Finanziario!$H:$L,5,FALSE),VLOOKUP($M42,TT_Tabelle_Riferimento!$D$127:$H$164,5,FALSE))","v":10},{"$f":"+IFERROR(VLOOKUP(QJ$27&\"-\"&$M42&\"_new\",Ammortamento_Finanziario!$H:$L,5,FALSE),VLOOKUP($M42,TT_Tabelle_Riferimento!$D$127:$H$164,5,FALSE))","v":10},{"$f":"+IFERROR(VLOOKUP(QK$27&\"-\"&$M42&\"_new\",Ammortamento_Finanziario!$H:$L,5,FALSE),VLOOKUP($M42,TT_Tabelle_Riferimento!$D$127:$H$164,5,FALSE))","v":10},{"$f":"+IFERROR(VLOOKUP(QL$27&\"-\"&$M42&\"_new\",Ammortamento_Finanziario!$H:$L,5,FALSE),VLOOKUP($M42,TT_Tabelle_Riferimento!$D$127:$H$164,5,FALSE))","v":10},{"$f":"+IFERROR(VLOOKUP(QM$27&\"-\"&$M42&\"_new\",Ammortamento_Finanziario!$H:$L,5,FALSE),VLOOKUP($M42,TT_Tabelle_Riferimento!$D$127:$H$164,5,FALSE))","v":10},{"$f":"+IFERROR(VLOOKUP(QN$27&\"-\"&$M42&\"_new\",Ammortamento_Finanziario!$H:$L,5,FALSE),VLOOKUP($M42,TT_Tabelle_Riferimento!$D$127:$H$164,5,FALSE))","v":10},{"$f":"+IFERROR(VLOOKUP(QO$27&\"-\"&$M42&\"_new\",Ammortamento_Finanziario!$H:$L,5,FALSE),VLOOKUP($M42,TT_Tabelle_Riferimento!$D$127:$H$164,5,FALSE))","v":10},{"$f":"+IFERROR(VLOOKUP(QP$27&\"-\"&$M42&\"_new\",Ammortamento_Finanziario!$H:$L,5,FALSE),VLOOKUP($M42,TT_Tabelle_Riferimento!$D$127:$H$164,5,FALSE))","v":10},{"$f":"+IFERROR(VLOOKUP(QQ$27&\"-\"&$M42&\"_new\",Ammortamento_Finanziario!$H:$L,5,FALSE),VLOOKUP($M42,TT_Tabelle_Riferimento!$D$127:$H$164,5,FALSE))","v":10},{"$f":"+IFERROR(VLOOKUP(QR$27&\"-\"&$M42&\"_new\",Ammortamento_Finanziario!$H:$L,5,FALSE),VLOOKUP($M42,TT_Tabelle_Riferimento!$D$127:$H$164,5,FALSE))","v":10},{"$f":"+IFERROR(VLOOKUP(QS$27&\"-\"&$M42&\"_new\",Ammortamento_Finanziario!$H:$L,5,FALSE),VLOOKUP($M42,TT_Tabelle_Riferimento!$D$127:$H$164,5,FALSE))","v":10},{"$f":"+IFERROR(VLOOKUP(QT$27&\"-\"&$M42&\"_new\",Ammortamento_Finanziario!$H:$L,5,FALSE),VLOOKUP($M42,TT_Tabelle_Riferimento!$D$127:$H$164,5,FALSE))","v":10},{"$f":"+IFERROR(VLOOKUP(QU$27&\"-\"&$M42&\"_new\",Ammortamento_Finanziario!$H:$L,5,FALSE),VLOOKUP($M42,TT_Tabelle_Riferimento!$D$127:$H$164,5,FALSE))","v":10},{"$f":"+IFERROR(VLOOKUP(QV$27&\"-\"&$M42&\"_new\",Ammortamento_Finanziario!$H:$L,5,FALSE),VLOOKUP($M42,TT_Tabelle_Riferimento!$D$127:$H$164,5,FALSE))","v":10},{"$f":"+IFERROR(VLOOKUP(QW$27&\"-\"&$M42&\"_new\",Ammortamento_Finanziario!$H:$L,5,FALSE),VLOOKUP($M42,TT_Tabelle_Riferimento!$D$127:$H$164,5,FALSE))","v":10},{"$f":"+IFERROR(VLOOKUP(QX$27&\"-\"&$M42&\"_new\",Ammortamento_Finanziario!$H:$L,5,FALSE),VLOOKUP($M42,TT_Tabelle_Riferimento!$D$127:$H$164,5,FALSE))","v":10},{"$f":"+IFERROR(VLOOKUP(QY$27&\"-\"&$M42&\"_new\",Ammortamento_Finanziario!$H:$L,5,FALSE),VLOOKUP($M42,TT_Tabelle_Riferimento!$D$127:$H$164,5,FALSE))","v":10},{"$f":"+IFERROR(VLOOKUP(QZ$27&\"-\"&$M42&\"_new\",Ammortamento_Finanziario!$H:$L,5,FALSE),VLOOKUP($M42,TT_Tabelle_Riferimento!$D$127:$H$164,5,FALSE))","v":10},{"$f":"+IFERROR(VLOOKUP(RA$27&\"-\"&$M42&\"_new\",Ammortamento_Finanziario!$H:$L,5,FALSE),VLOOKUP($M42,TT_Tabelle_Riferimento!$D$127:$H$164,5,FALSE))","v":10},{"$f":"+IFERROR(VLOOKUP(RB$27&\"-\"&$M42&\"_new\",Ammortamento_Finanziario!$H:$L,5,FALSE),VLOOKUP($M42,TT_Tabelle_Riferimento!$D$127:$H$164,5,FALSE))","v":10},{"$f":"+IFERROR(VLOOKUP(RC$27&\"-\"&$M42&\"_new\",Ammortamento_Finanziario!$H:$L,5,FALSE),VLOOKUP($M42,TT_Tabelle_Riferimento!$D$127:$H$164,5,FALSE))","v":10},{"$f":"+IFERROR(VLOOKUP(RD$27&\"-\"&$M42&\"_new\",Ammortamento_Finanziario!$H:$L,5,FALSE),VLOOKUP($M42,TT_Tabelle_Riferimento!$D$127:$H$164,5,FALSE))","v":10},{"$f":"+IFERROR(VLOOKUP(RE$27&\"-\"&$M42&\"_new\",Ammortamento_Finanziario!$H:$L,5,FALSE),VLOOKUP($M42,TT_Tabelle_Riferimento!$D$127:$H$164,5,FALSE))","v":10},{"$f":"+IFERROR(VLOOKUP(RF$27&\"-\"&$M42&\"_new\",Ammortamento_Finanziario!$H:$L,5,FALSE),VLOOKUP($M42,TT_Tabelle_Riferimento!$D$127:$H$164,5,FALSE))","v":10},{"$f":"+IFERROR(VLOOKUP(RG$27&\"-\"&$M42&\"_new\",Ammortamento_Finanziario!$H:$L,5,FALSE),VLOOKUP($M42,TT_Tabelle_Riferimento!$D$127:$H$164,5,FALSE))","v":10},{"$f":"+IFERROR(VLOOKUP(RH$27&\"-\"&$M42&\"_new\",Ammortamento_Finanziario!$H:$L,5,FALSE),VLOOKUP($M42,TT_Tabelle_Riferimento!$D$127:$H$164,5,FALSE))","v":10},{"$f":"+IFERROR(VLOOKUP(RI$27&\"-\"&$M42&\"_new\",Ammortamento_Finanziario!$H:$L,5,FALSE),VLOOKUP($M42,TT_Tabelle_Riferimento!$D$127:$H$164,5,FALSE))","v":10},{"$f":"+IFERROR(VLOOKUP(RJ$27&\"-\"&$M42&\"_new\",Ammortamento_Finanziario!$H:$L,5,FALSE),VLOOKUP($M42,TT_Tabelle_Riferimento!$D$127:$H$164,5,FALSE))","v":10},{"$f":"+IFERROR(VLOOKUP(RK$27&\"-\"&$M42&\"_new\",Ammortamento_Finanziario!$H:$L,5,FALSE),VLOOKUP($M42,TT_Tabelle_Riferimento!$D$127:$H$164,5,FALSE))","v":10},{"$f":"+IFERROR(VLOOKUP(RL$27&\"-\"&$M42&\"_new\",Ammortamento_Finanziario!$H:$L,5,FALSE),VLOOKUP($M42,TT_Tabelle_Riferimento!$D$127:$H$164,5,FALSE))","v":10},{"$f":"+IFERROR(VLOOKUP(RM$27&\"-\"&$M42&\"_new\",Ammortamento_Finanziario!$H:$L,5,FALSE),VLOOKUP($M42,TT_Tabelle_Riferimento!$D$127:$H$164,5,FALSE))","v":10},{"$f":"+IFERROR(VLOOKUP(RN$27&\"-\"&$M42&\"_new\",Ammortamento_Finanziario!$H:$L,5,FALSE),VLOOKUP($M42,TT_Tabelle_Riferimento!$D$127:$H$164,5,FALSE))","v":10},{"$f":"+IFERROR(VLOOKUP(RO$27&\"-\"&$M42&\"_new\",Ammortamento_Finanziario!$H:$L,5,FALSE),VLOOKUP($M42,TT_Tabelle_Riferimento!$D$127:$H$164,5,FALSE))","v":10},{"$f":"+IFERROR(VLOOKUP(RP$27&\"-\"&$M42&\"_new\",Ammortamento_Finanziario!$H:$L,5,FALSE),VLOOKUP($M42,TT_Tabelle_Riferimento!$D$127:$H$164,5,FALSE))","v":10},{"$f":"+IFERROR(VLOOKUP(RQ$27&\"-\"&$M42&\"_new\",Ammortamento_Finanziario!$H:$L,5,FALSE),VLOOKUP($M42,TT_Tabelle_Riferimento!$D$127:$H$164,5,FALSE))","v":10},{"$f":"+IFERROR(VLOOKUP(RR$27&\"-\"&$M42&\"_new\",Ammortamento_Finanziario!$H:$L,5,FALSE),VLOOKUP($M42,TT_Tabelle_Riferimento!$D$127:$H$164,5,FALSE))","v":10},{"$f":"+IFERROR(VLOOKUP(RS$27&\"-\"&$M42&\"_new\",Ammortamento_Finanziario!$H:$L,5,FALSE),VLOOKUP($M42,TT_Tabelle_Riferimento!$D$127:$H$164,5,FALSE))","v":10},{"$f":"+IFERROR(VLOOKUP(RT$27&\"-\"&$M42&\"_new\",Ammortamento_Finanziario!$H:$L,5,FALSE),VLOOKUP($M42,TT_Tabelle_Riferimento!$D$127:$H$164,5,FALSE))","v":10},{"$f":"+IFERROR(VLOOKUP(RU$27&\"-\"&$M42&\"_new\",Ammortamento_Finanziario!$H:$L,5,FALSE),VLOOKUP($M42,TT_Tabelle_Riferimento!$D$127:$H$164,5,FALSE))","v":10},{"$f":"+IFERROR(VLOOKUP(RV$27&\"-\"&$M42&\"_new\",Ammortamento_Finanziario!$H:$L,5,FALSE),VLOOKUP($M42,TT_Tabelle_Riferimento!$D$127:$H$164,5,FALSE))","v":10}]
[null,null,null,"FA",{"$f":"+SUMIFS(IMN_gestore!Q:Q,IMN_gestore!$G:$G,\"Env\")","v":0},{"$f":"+SUMIFS(IMN_gestore!AB:AB,IMN_gestore!$G:$G,\"Env\")","v":0},{"$f":"+SUMIFS(IMN_gestore!AM:AM,IMN_gestore!$G:$G,\"Env\")","v":0},{"$f":"+SUMIFS(IMN_gestore!AX:AX,IMN_gestore!$G:$G,\"Env\")","v":0},{"$f":"+SUMIFS(IMN_gestore!$BI:$BI,IMN_gestore!$G:$G,\"Env\")","v":0},{"$f":"+SUMIFS(IMN_gestore!$BT:$BT,IMN_gestore!$G:$G,\"Env\")","v":0},null,null,16,0,0,0,0,0,0,0,0,0,0,0,0,0,0,0,0,0,0,0,0,0,0,0,0,0,0,0,0,0,0,0,0,0,0,0,0,0,0,0,0,0,0,0,0,0,0,0,0,0,0,0,0,0,0,0,0,0,0,0,0,0,0,0,0,0,0,0,0,0,0,0,0,0,0,0,0,0,0,0,0,0,0,0,0,0,0,0,0,0,0,0,0,0,0,0,0,0,0,0,0,0,0,0,0,0,0,0,0,0,0,0,0,0,0,0,0,0,0,0,0,0,0,0,0,0,0,0,0,0,0,0,0,0,0,0,0,0,0,0,0,0,0,0,0,0,0,0,0,0,0,0,0,0,0,0,0,0,0,0,0,0,0,0,0,0,0,0,0,0,0,0,0,0,0,0,0,0,0,0,0,0,0,0,0,0,0,0,0,0,0,0,0,0,0,0,0,0,0,0,0,0,0,0,0,0,0,0,0,0,0,0,0,0,0,0,0,0,0,0,0,0,0,0,0,0,0,0,0,0,0,0,0,0,0,0,0,0,0,0,0,0,0,0,0,0,0,0,0,0,0,0,0,0,0,0,0,0,0,0,0,0,0,0,0,0,0,0,0,0,0,0,0,0,0,0,0,0,0,0,0,0,0,0,0,0,0,0,0,0,{"$f":"+IFERROR(VLOOKUP(KQ$27&\"-\"&$M43&\"_new\",Ammortamento_Finanziario!$H:$L,5,FALSE),VLOOKUP($M43,TT_Tabelle_Riferimento!$D$127:$H$164,5,FALSE))","v":5},{"$f":"+IFERROR(VLOOKUP(KR$27&\"-\"&$M43&\"_new\",Ammortamento_Finanziario!$H:$L,5,FALSE),VLOOKUP($M43,TT_Tabelle_Riferimento!$D$127:$H$164,5,FALSE))","v":5},{"$f":"+IFERROR(VLOOKUP(KS$27&\"-\"&$M43&\"_new\",Ammortamento_Finanziario!$H:$L,5,FALSE),VLOOKUP($M43,TT_Tabelle_Riferimento!$D$127:$H$164,5,FALSE))","v":5},{"$f":"+IFERROR(VLOOKUP(KT$27&\"-\"&$M43&\"_new\",Ammortamento_Finanziario!$H:$L,5,FALSE),VLOOKUP($M43,TT_Tabelle_Riferimento!$D$127:$H$164,5,FALSE))","v":5},{"$f":"+IFERROR(VLOOKUP(KU$27&\"-\"&$M43&\"_new\",Ammortamento_Finanziario!$H:$L,5,FALSE),VLOOKUP($M43,TT_Tabelle_Riferimento!$D$127:$H$164,5,FALSE))","v":5},{"$f":"+IFERROR(VLOOKUP(KV$27&\"-\"&$M43&\"_new\",Ammortamento_Finanziario!$H:$L,5,FALSE),VLOOKUP($M43,TT_Tabelle_Riferimento!$D$127:$H$164,5,FALSE))","v":5},{"$f":"+IFERROR(VLOOKUP(KW$27&\"-\"&$M43&\"_new\",Ammortamento_Finanziario!$H:$L,5,FALSE),VLOOKUP($M43,TT_Tabelle_Riferimento!$D$127:$H$164,5,FALSE))","v":5},{"$f":"+IFERROR(VLOOKUP(KX$27&\"-\"&$M43&\"_new\",Ammortamento_Finanziario!$H:$L,5,FALSE),VLOOKUP($M43,TT_Tabelle_Riferimento!$D$127:$H$164,5,FALSE))","v":5},{"$f":"+IFERROR(VLOOKUP(KY$27&\"-\"&$M43&\"_new\",Ammortamento_Finanziario!$H:$L,5,FALSE),VLOOKUP($M43,TT_Tabelle_Riferimento!$D$127:$H$164,5,FALSE))","v":5},{"$f":"+IFERROR(VLOOKUP(KZ$27&\"-\"&$M43&\"_new\",Ammortamento_Finanziario!$H:$L,5,FALSE),VLOOKUP($M43,TT_Tabelle_Riferimento!$D$127:$H$164,5,FALSE))","v":5},{"$f":"+IFERROR(VLOOKUP(LA$27&\"-\"&$M43&\"_new\",Ammortamento_Finanziario!$H:$L,5,FALSE),VLOOKUP($M43,TT_Tabelle_Riferimento!$D$127:$H$164,5,FALSE))","v":5},{"$f":"+IFERROR(VLOOKUP(LB$27&\"-\"&$M43&\"_new\",Ammortamento_Finanziario!$H:$L,5,FALSE),VLOOKUP($M43,TT_Tabelle_Riferimento!$D$127:$H$164,5,FALSE))","v":5},{"$f":"+IFERROR(VLOOKUP(LC$27&\"-\"&$M43&\"_new\",Ammortamento_Finanziario!$H:$L,5,FALSE),VLOOKUP($M43,TT_Tabelle_Riferimento!$D$127:$H$164,5,FALSE))","v":5},{"$f":"+IFERROR(VLOOKUP(LD$27&\"-\"&$M43&\"_new\",Ammortamento_Finanziario!$H:$L,5,FALSE),VLOOKUP($M43,TT_Tabelle_Riferimento!$D$127:$H$164,5,FALSE))","v":5},{"$f":"+IFERROR(VLOOKUP(LE$27&\"-\"&$M43&\"_new\",Ammortamento_Finanziario!$H:$L,5,FALSE),VLOOKUP($M43,TT_Tabelle_Riferimento!$D$127:$H$164,5,FALSE))","v":5},{"$f":"+IFERROR(VLOOKUP(LF$27&\"-\"&$M43&\"_new\",Ammortamento_Finanziario!$H:$L,5,FALSE),VLOOKUP($M43,TT_Tabelle_Riferimento!$D$127:$H$164,5,FALSE))","v":5},{"$f":"+IFERROR(VLOOKUP(LG$27&\"-\"&$M43&\"_new\",Ammortamento_Finanziario!$H:$L,5,FALSE),VLOOKUP($M43,TT_Tabelle_Riferimento!$D$127:$H$164,5,FALSE))","v":5},{"$f":"+IFERROR(VLOOKUP(LH$27&\"-\"&$M43&\"_new\",Ammortamento_Finanziario!$H:$L,5,FALSE),VLOOKUP($M43,TT_Tabelle_Riferimento!$D$127:$H$164,5,FALSE))","v":5},{"$f":"+IFERROR(VLOOKUP(LI$27&\"-\"&$M43&\"_new\",Ammortamento_Finanziario!$H:$L,5,FALSE),VLOOKUP($M43,TT_Tabelle_Riferimento!$D$127:$H$164,5,FALSE))","v":5},{"$f":"+IFERROR(VLOOKUP(LJ$27&\"-\"&$M43&\"_new\",Ammortamento_Finanziario!$H:$L,5,FALSE),VLOOKUP($M43,TT_Tabelle_Riferimento!$D$127:$H$164,5,FALSE))","v":5},{"$f":"+IFERROR(VLOOKUP(LK$27&\"-\"&$M43&\"_new\",Ammortamento_Finanziario!$H:$L,5,FALSE),VLOOKUP($M43,TT_Tabelle_Riferimento!$D$127:$H$164,5,FALSE))","v":5},{"$f":"+IFERROR(VLOOKUP(LL$27&\"-\"&$M43&\"_new\",Ammortamento_Finanziario!$H:$L,5,FALSE),VLOOKUP($M43,TT_Tabelle_Riferimento!$D$127:$H$164,5,FALSE))","v":5},{"$f":"+IFERROR(VLOOKUP(LM$27&\"-\"&$M43&\"_new\",Ammortamento_Finanziario!$H:$L,5,FALSE),VLOOKUP($M43,TT_Tabelle_Riferimento!$D$127:$H$164,5,FALSE))","v":5},{"$f":"+IFERROR(VLOOKUP(LN$27&\"-\"&$M43&\"_new\",Ammortamento_Finanziario!$H:$L,5,FALSE),VLOOKUP($M43,TT_Tabelle_Riferimento!$D$127:$H$164,5,FALSE))","v":5},{"$f":"+IFERROR(VLOOKUP(LO$27&\"-\"&$M43&\"_new\",Ammortamento_Finanziario!$H:$L,5,FALSE),VLOOKUP($M43,TT_Tabelle_Riferimento!$D$127:$H$164,5,FALSE))","v":5},{"$f":"+IFERROR(VLOOKUP(LP$27&\"-\"&$M43&\"_new\",Ammortamento_Finanziario!$H:$L,5,FALSE),VLOOKUP($M43,TT_Tabelle_Riferimento!$D$127:$H$164,5,FALSE))","v":5},{"$f":"+IFERROR(VLOOKUP(LQ$27&\"-\"&$M43&\"_new\",Ammortamento_Finanziario!$H:$L,5,FALSE),VLOOKUP($M43,TT_Tabelle_Riferimento!$D$127:$H$164,5,FALSE))","v":5},{"$f":"+IFERROR(VLOOKUP(LR$27&\"-\"&$M43&\"_new\",Ammortamento_Finanziario!$H:$L,5,FALSE),VLOOKUP($M43,TT_Tabelle_Riferimento!$D$127:$H$164,5,FALSE))","v":5},{"$f":"+IFERROR(VLOOKUP(LS$27&\"-\"&$M43&\"_new\",Ammortamento_Finanziario!$H:$L,5,FALSE),VLOOKUP($M43,TT_Tabelle_Riferimento!$D$127:$H$164,5,FALSE))","v":5},{"$f":"+IFERROR(VLOOKUP(LT$27&\"-\"&$M43&\"_new\",Ammortamento_Finanziario!$H:$L,5,FALSE),VLOOKUP($M43,TT_Tabelle_Riferimento!$D$127:$H$164,5,FALSE))","v":5},{"$f":"+IFERROR(VLOOKUP(LU$27&\"-\"&$M43&\"_new\",Ammortamento_Finanziario!$H:$L,5,FALSE),VLOOKUP($M43,TT_Tabelle_Riferimento!$D$127:$H$164,5,FALSE))","v":5},{"$f":"+IFERROR(VLOOKUP(LV$27&\"-\"&$M43&\"_new\",Ammortamento_Finanziario!$H:$L,5,FALSE),VLOOKUP($M43,TT_Tabelle_Riferimento!$D$127:$H$164,5,FALSE))","v":5},{"$f":"+IFERROR(VLOOKUP(LW$27&\"-\"&$M43&\"_new\",Ammortamento_Finanziario!$H:$L,5,FALSE),VLOOKUP($M43,TT_Tabelle_Riferimento!$D$127:$H$164,5,FALSE))","v":5},{"$f":"+IFERROR(VLOOKUP(LX$27&\"-\"&$M43&\"_new\",Ammortamento_Finanziario!$H:$L,5,FALSE),VLOOKUP($M43,TT_Tabelle_Riferimento!$D$127:$H$164,5,FALSE))","v":5},{"$f":"+IFERROR(VLOOKUP(LY$27&\"-\"&$M43&\"_new\",Ammortamento_Finanziario!$H:$L,5,FALSE),VLOOKUP($M43,TT_Tabelle_Riferimento!$D$127:$H$164,5,FALSE))","v":5},{"$f":"+IFERROR(VLOOKUP(LZ$27&\"-\"&$M43&\"_new\",Ammortamento_Finanziario!$H:$L,5,FALSE),VLOOKUP($M43,TT_Tabelle_Riferimento!$D$127:$H$164,5,FALSE))","v":5},{"$f":"+IFERROR(VLOOKUP(MA$27&\"-\"&$M43&\"_new\",Ammortamento_Finanziario!$H:$L,5,FALSE),VLOOKUP($M43,TT_Tabelle_Riferimento!$D$127:$H$164,5,FALSE))","v":5},{"$f":"+IFERROR(VLOOKUP(MB$27&\"-\"&$M43&\"_new\",Ammortamento_Finanziario!$H:$L,5,FALSE),VLOOKUP($M43,TT_Tabelle_Riferimento!$D$127:$H$164,5,FALSE))","v":5},{"$f":"+IFERROR(VLOOKUP(MC$27&\"-\"&$M43&\"_new\",Ammortamento_Finanziario!$H:$L,5,FALSE),VLOOKUP($M43,TT_Tabelle_Riferimento!$D$127:$H$164,5,FALSE))","v":5},{"$f":"+IFERROR(VLOOKUP(MD$27&\"-\"&$M43&\"_new\",Ammortamento_Finanziario!$H:$L,5,FALSE),VLOOKUP($M43,TT_Tabelle_Riferimento!$D$127:$H$164,5,FALSE))","v":5},{"$f":"+IFERROR(VLOOKUP(ME$27&\"-\"&$M43&\"_new\",Ammortamento_Finanziario!$H:$L,5,FALSE),VLOOKUP($M43,TT_Tabelle_Riferimento!$D$127:$H$164,5,FALSE))","v":5},{"$f":"+IFERROR(VLOOKUP(MF$27&\"-\"&$M43&\"_new\",Ammortamento_Finanziario!$H:$L,5,FALSE),VLOOKUP($M43,TT_Tabelle_Riferimento!$D$127:$H$164,5,FALSE))","v":5},{"$f":"+IFERROR(VLOOKUP(MG$27&\"-\"&$M43&\"_new\",Ammortamento_Finanziario!$H:$L,5,FALSE),VLOOKUP($M43,TT_Tabelle_Riferimento!$D$127:$H$164,5,FALSE))","v":5},{"$f":"+IFERROR(VLOOKUP(MH$27&\"-\"&$M43&\"_new\",Ammortamento_Finanziario!$H:$L,5,FALSE),VLOOKUP($M43,TT_Tabelle_Riferimento!$D$127:$H$164,5,FALSE))","v":5},{"$f":"+IFERROR(VLOOKUP(MI$27&\"-\"&$M43&\"_new\",Ammortamento_Finanziario!$H:$L,5,FALSE),VLOOKUP($M43,TT_Tabelle_Riferimento!$D$127:$H$164,5,FALSE))","v":5},{"$f":"+IFERROR(VLOOKUP(MJ$27&\"-\"&$M43&\"_new\",Ammortamento_Finanziario!$H:$L,5,FALSE),VLOOKUP($M43,TT_Tabelle_Riferimento!$D$127:$H$164,5,FALSE))","v":5},{"$f":"+IFERROR(VLOOKUP(MK$27&\"-\"&$M43&\"_new\",Ammortamento_Finanziario!$H:$L,5,FALSE),VLOOKUP($M43,TT_Tabelle_Riferimento!$D$127:$H$164,5,FALSE))","v":5},{"$f":"+IFERROR(VLOOKUP(ML$27&\"-\"&$M43&\"_new\",Ammortamento_Finanziario!$H:$L,5,FALSE),VLOOKUP($M43,TT_Tabelle_Riferimento!$D$127:$H$164,5,FALSE))","v":5},{"$f":"+IFERROR(VLOOKUP(MM$27&\"-\"&$M43&\"_new\",Ammortamento_Finanziario!$H:$L,5,FALSE),VLOOKUP($M43,TT_Tabelle_Riferimento!$D$127:$H$164,5,FALSE))","v":5},{"$f":"+IFERROR(VLOOKUP(MN$27&\"-\"&$M43&\"_new\",Ammortamento_Finanziario!$H:$L,5,FALSE),VLOOKUP($M43,TT_Tabelle_Riferimento!$D$127:$H$164,5,FALSE))","v":5},{"$f":"+IFERROR(VLOOKUP(MO$27&\"-\"&$M43&\"_new\",Ammortamento_Finanziario!$H:$L,5,FALSE),VLOOKUP($M43,TT_Tabelle_Riferimento!$D$127:$H$164,5,FALSE))","v":5},{"$f":"+IFERROR(VLOOKUP(MP$27&\"-\"&$M43&\"_new\",Ammortamento_Finanziario!$H:$L,5,FALSE),VLOOKUP($M43,TT_Tabelle_Riferimento!$D$127:$H$164,5,FALSE))","v":5},{"$f":"+IFERROR(VLOOKUP(MQ$27&\"-\"&$M43&\"_new\",Ammortamento_Finanziario!$H:$L,5,FALSE),VLOOKUP($M43,TT_Tabelle_Riferimento!$D$127:$H$164,5,FALSE))","v":5},{"$f":"+IFERROR(VLOOKUP(MR$27&\"-\"&$M43&\"_new\",Ammortamento_Finanziario!$H:$L,5,FALSE),VLOOKUP($M43,TT_Tabelle_Riferimento!$D$127:$H$164,5,FALSE))","v":5},{"$f":"+IFERROR(VLOOKUP(MS$27&\"-\"&$M43&\"_new\",Ammortamento_Finanziario!$H:$L,5,FALSE),VLOOKUP($M43,TT_Tabelle_Riferimento!$D$127:$H$164,5,FALSE))","v":5},{"$f":"+IFERROR(VLOOKUP(MT$27&\"-\"&$M43&\"_new\",Ammortamento_Finanziario!$H:$L,5,FALSE),VLOOKUP($M43,TT_Tabelle_Riferimento!$D$127:$H$164,5,FALSE))","v":5},{"$f":"+IFERROR(VLOOKUP(MU$27&\"-\"&$M43&\"_new\",Ammortamento_Finanziario!$H:$L,5,FALSE),VLOOKUP($M43,TT_Tabelle_Riferimento!$D$127:$H$164,5,FALSE))","v":5},{"$f":"+IFERROR(VLOOKUP(MV$27&\"-\"&$M43&\"_new\",Ammortamento_Finanziario!$H:$L,5,FALSE),VLOOKUP($M43,TT_Tabelle_Riferimento!$D$127:$H$164,5,FALSE))","v":5},{"$f":"+IFERROR(VLOOKUP(MW$27&\"-\"&$M43&\"_new\",Ammortamento_Finanziario!$H:$L,5,FALSE),VLOOKUP($M43,TT_Tabelle_Riferimento!$D$127:$H$164,5,FALSE))","v":5},{"$f":"+IFERROR(VLOOKUP(MX$27&\"-\"&$M43&\"_new\",Ammortamento_Finanziario!$H:$L,5,FALSE),VLOOKUP($M43,TT_Tabelle_Riferimento!$D$127:$H$164,5,FALSE))","v":5},{"$f":"+IFERROR(VLOOKUP(MY$27&\"-\"&$M43&\"_new\",Ammortamento_Finanziario!$H:$L,5,FALSE),VLOOKUP($M43,TT_Tabelle_Riferimento!$D$127:$H$164,5,FALSE))","v":5},{"$f":"+IFERROR(VLOOKUP(MZ$27&\"-\"&$M43&\"_new\",Ammortamento_Finanziario!$H:$L,5,FALSE),VLOOKUP($M43,TT_Tabelle_Riferimento!$D$127:$H$164,5,FALSE))","v":5},{"$f":"+IFERROR(VLOOKUP(NA$27&\"-\"&$M43&\"_new\",Ammortamento_Finanziario!$H:$L,5,FALSE),VLOOKUP($M43,TT_Tabelle_Riferimento!$D$127:$H$164,5,FALSE))","v":5},{"$f":"+IFERROR(VLOOKUP(NB$27&\"-\"&$M43&\"_new\",Ammortamento_Finanziario!$H:$L,5,FALSE),VLOOKUP($M43,TT_Tabelle_Riferimento!$D$127:$H$164,5,FALSE))","v":5},{"$f":"+IFERROR(VLOOKUP(NC$27&\"-\"&$M43&\"_new\",Ammortamento_Finanziario!$H:$L,5,FALSE),VLOOKUP($M43,TT_Tabelle_Riferimento!$D$127:$H$164,5,FALSE))","v":5},{"$f":"+IFERROR(VLOOKUP(ND$27&\"-\"&$M43&\"_new\",Ammortamento_Finanziario!$H:$L,5,FALSE),VLOOKUP($M43,TT_Tabelle_Riferimento!$D$127:$H$164,5,FALSE))","v":5},{"$f":"+IFERROR(VLOOKUP(NE$27&\"-\"&$M43&\"_new\",Ammortamento_Finanziario!$H:$L,5,FALSE),VLOOKUP($M43,TT_Tabelle_Riferimento!$D$127:$H$164,5,FALSE))","v":5},{"$f":"+IFERROR(VLOOKUP(NF$27&\"-\"&$M43&\"_new\",Ammortamento_Finanziario!$H:$L,5,FALSE),VLOOKUP($M43,TT_Tabelle_Riferimento!$D$127:$H$164,5,FALSE))","v":5},{"$f":"+IFERROR(VLOOKUP(NG$27&\"-\"&$M43&\"_new\",Ammortamento_Finanziario!$H:$L,5,FALSE),VLOOKUP($M43,TT_Tabelle_Riferimento!$D$127:$H$164,5,FALSE))","v":5},{"$f":"+IFERROR(VLOOKUP(NH$27&\"-\"&$M43&\"_new\",Ammortamento_Finanziario!$H:$L,5,FALSE),VLOOKUP($M43,TT_Tabelle_Riferimento!$D$127:$H$164,5,FALSE))","v":5},{"$f":"+IFERROR(VLOOKUP(NI$27&\"-\"&$M43&\"_new\",Ammortamento_Finanziario!$H:$L,5,FALSE),VLOOKUP($M43,TT_Tabelle_Riferimento!$D$127:$H$164,5,FALSE))","v":5},{"$f":"+IFERROR(VLOOKUP(NJ$27&\"-\"&$M43&\"_new\",Ammortamento_Finanziario!$H:$L,5,FALSE),VLOOKUP($M43,TT_Tabelle_Riferimento!$D$127:$H$164,5,FALSE))","v":5},{"$f":"+IFERROR(VLOOKUP(NK$27&\"-\"&$M43&\"_new\",Ammortamento_Finanziario!$H:$L,5,FALSE),VLOOKUP($M43,TT_Tabelle_Riferimento!$D$127:$H$164,5,FALSE))","v":5},{"$f":"+IFERROR(VLOOKUP(NL$27&\"-\"&$M43&\"_new\",Ammortamento_Finanziario!$H:$L,5,FALSE),VLOOKUP($M43,TT_Tabelle_Riferimento!$D$127:$H$164,5,FALSE))","v":5},{"$f":"+IFERROR(VLOOKUP(NM$27&\"-\"&$M43&\"_new\",Ammortamento_Finanziario!$H:$L,5,FALSE),VLOOKUP($M43,TT_Tabelle_Riferimento!$D$127:$H$164,5,FALSE))","v":5},{"$f":"+IFERROR(VLOOKUP(NN$27&\"-\"&$M43&\"_new\",Ammortamento_Finanziario!$H:$L,5,FALSE),VLOOKUP($M43,TT_Tabelle_Riferimento!$D$127:$H$164,5,FALSE))","v":5},{"$f":"+IFERROR(VLOOKUP(NO$27&\"-\"&$M43&\"_new\",Ammortamento_Finanziario!$H:$L,5,FALSE),VLOOKUP($M43,TT_Tabelle_Riferimento!$D$127:$H$164,5,FALSE))","v":5},{"$f":"+IFERROR(VLOOKUP(NP$27&\"-\"&$M43&\"_new\",Ammortamento_Finanziario!$H:$L,5,FALSE),VLOOKUP($M43,TT_Tabelle_Riferimento!$D$127:$H$164,5,FALSE))","v":5},{"$f":"+IFERROR(VLOOKUP(NQ$27&\"-\"&$M43&\"_new\",Ammortamento_Finanziario!$H:$L,5,FALSE),VLOOKUP($M43,TT_Tabelle_Riferimento!$D$127:$H$164,5,FALSE))","v":5},{"$f":"+IFERROR(VLOOKUP(NR$27&\"-\"&$M43&\"_new\",Ammortamento_Finanziario!$H:$L,5,FALSE),VLOOKUP($M43,TT_Tabelle_Riferimento!$D$127:$H$164,5,FALSE))","v":5},{"$f":"+IFERROR(VLOOKUP(NS$27&\"-\"&$M43&\"_new\",Ammortamento_Finanziario!$H:$L,5,FALSE),VLOOKUP($M43,TT_Tabelle_Riferimento!$D$127:$H$164,5,FALSE))","v":5},{"$f":"+IFERROR(VLOOKUP(NT$27&\"-\"&$M43&\"_new\",Ammortamento_Finanziario!$H:$L,5,FALSE),VLOOKUP($M43,TT_Tabelle_Riferimento!$D$127:$H$164,5,FALSE))","v":5},{"$f":"+IFERROR(VLOOKUP(NU$27&\"-\"&$M43&\"_new\",Ammortamento_Finanziario!$H:$L,5,FALSE),VLOOKUP($M43,TT_Tabelle_Riferimento!$D$127:$H$164,5,FALSE))","v":5},{"$f":"+IFERROR(VLOOKUP(NV$27&\"-\"&$M43&\"_new\",Ammortamento_Finanziario!$H:$L,5,FALSE),VLOOKUP($M43,TT_Tabelle_Riferimento!$D$127:$H$164,5,FALSE))","v":5},{"$f":"+IFERROR(VLOOKUP(NW$27&\"-\"&$M43&\"_new\",Ammortamento_Finanziario!$H:$L,5,FALSE),VLOOKUP($M43,TT_Tabelle_Riferimento!$D$127:$H$164,5,FALSE))","v":5},{"$f":"+IFERROR(VLOOKUP(NX$27&\"-\"&$M43&\"_new\",Ammortamento_Finanziario!$H:$L,5,FALSE),VLOOKUP($M43,TT_Tabelle_Riferimento!$D$127:$H$164,5,FALSE))","v":5},{"$f":"+IFERROR(VLOOKUP(NY$27&\"-\"&$M43&\"_new\",Ammortamento_Finanziario!$H:$L,5,FALSE),VLOOKUP($M43,TT_Tabelle_Riferimento!$D$127:$H$164,5,FALSE))","v":5},{"$f":"+IFERROR(VLOOKUP(NZ$27&\"-\"&$M43&\"_new\",Ammortamento_Finanziario!$H:$L,5,FALSE),VLOOKUP($M43,TT_Tabelle_Riferimento!$D$127:$H$164,5,FALSE))","v":5},{"$f":"+IFERROR(VLOOKUP(OA$27&\"-\"&$M43&\"_new\",Ammortamento_Finanziario!$H:$L,5,FALSE),VLOOKUP($M43,TT_Tabelle_Riferimento!$D$127:$H$164,5,FALSE))","v":5},{"$f":"+IFERROR(VLOOKUP(OB$27&\"-\"&$M43&\"_new\",Ammortamento_Finanziario!$H:$L,5,FALSE),VLOOKUP($M43,TT_Tabelle_Riferimento!$D$127:$H$164,5,FALSE))","v":5},{"$f":"+IFERROR(VLOOKUP(OC$27&\"-\"&$M43&\"_new\",Ammortamento_Finanziario!$H:$L,5,FALSE),VLOOKUP($M43,TT_Tabelle_Riferimento!$D$127:$H$164,5,FALSE))","v":5},{"$f":"+IFERROR(VLOOKUP(OD$27&\"-\"&$M43&\"_new\",Ammortamento_Finanziario!$H:$L,5,FALSE),VLOOKUP($M43,TT_Tabelle_Riferimento!$D$127:$H$164,5,FALSE))","v":5},{"$f":"+IFERROR(VLOOKUP(OE$27&\"-\"&$M43&\"_new\",Ammortamento_Finanziario!$H:$L,5,FALSE),VLOOKUP($M43,TT_Tabelle_Riferimento!$D$127:$H$164,5,FALSE))","v":5},{"$f":"+IFERROR(VLOOKUP(OF$27&\"-\"&$M43&\"_new\",Ammortamento_Finanziario!$H:$L,5,FALSE),VLOOKUP($M43,TT_Tabelle_Riferimento!$D$127:$H$164,5,FALSE))","v":5},{"$f":"+IFERROR(VLOOKUP(OG$27&\"-\"&$M43&\"_new\",Ammortamento_Finanziario!$H:$L,5,FALSE),VLOOKUP($M43,TT_Tabelle_Riferimento!$D$127:$H$164,5,FALSE))","v":5},{"$f":"+IFERROR(VLOOKUP(OH$27&\"-\"&$M43&\"_new\",Ammortamento_Finanziario!$H:$L,5,FALSE),VLOOKUP($M43,TT_Tabelle_Riferimento!$D$127:$H$164,5,FALSE))","v":5},{"$f":"+IFERROR(VLOOKUP(OI$27&\"-\"&$M43&\"_new\",Ammortamento_Finanziario!$H:$L,5,FALSE),VLOOKUP($M43,TT_Tabelle_Riferimento!$D$127:$H$164,5,FALSE))","v":5},{"$f":"+IFERROR(VLOOKUP(OJ$27&\"-\"&$M43&\"_new\",Ammortamento_Finanziario!$H:$L,5,FALSE),VLOOKUP($M43,TT_Tabelle_Riferimento!$D$127:$H$164,5,FALSE))","v":5},{"$f":"+IFERROR(VLOOKUP(OK$27&\"-\"&$M43&\"_new\",Ammortamento_Finanziario!$H:$L,5,FALSE),VLOOKUP($M43,TT_Tabelle_Riferimento!$D$127:$H$164,5,FALSE))","v":5},{"$f":"+IFERROR(VLOOKUP(OL$27&\"-\"&$M43&\"_new\",Ammortamento_Finanziario!$H:$L,5,FALSE),VLOOKUP($M43,TT_Tabelle_Riferimento!$D$127:$H$164,5,FALSE))","v":5},{"$f":"+IFERROR(VLOOKUP(OM$27&\"-\"&$M43&\"_new\",Ammortamento_Finanziario!$H:$L,5,FALSE),VLOOKUP($M43,TT_Tabelle_Riferimento!$D$127:$H$164,5,FALSE))","v":5},{"$f":"+IFERROR(VLOOKUP(ON$27&\"-\"&$M43&\"_new\",Ammortamento_Finanziario!$H:$L,5,FALSE),VLOOKUP($M43,TT_Tabelle_Riferimento!$D$127:$H$164,5,FALSE))","v":5},{"$f":"+IFERROR(VLOOKUP(OO$27&\"-\"&$M43&\"_new\",Ammortamento_Finanziario!$H:$L,5,FALSE),VLOOKUP($M43,TT_Tabelle_Riferimento!$D$127:$H$164,5,FALSE))","v":5},{"$f":"+IFERROR(VLOOKUP(OP$27&\"-\"&$M43&\"_new\",Ammortamento_Finanziario!$H:$L,5,FALSE),VLOOKUP($M43,TT_Tabelle_Riferimento!$D$127:$H$164,5,FALSE))","v":5},{"$f":"+IFERROR(VLOOKUP(OQ$27&\"-\"&$M43&\"_new\",Ammortamento_Finanziario!$H:$L,5,FALSE),VLOOKUP($M43,TT_Tabelle_Riferimento!$D$127:$H$164,5,FALSE))","v":5},{"$f":"+IFERROR(VLOOKUP(OR$27&\"-\"&$M43&\"_new\",Ammortamento_Finanziario!$H:$L,5,FALSE),VLOOKUP($M43,TT_Tabelle_Riferimento!$D$127:$H$164,5,FALSE))","v":5},{"$f":"+IFERROR(VLOOKUP(OS$27&\"-\"&$M43&\"_new\",Ammortamento_Finanziario!$H:$L,5,FALSE),VLOOKUP($M43,TT_Tabelle_Riferimento!$D$127:$H$164,5,FALSE))","v":5},{"$f":"+IFERROR(VLOOKUP(OT$27&\"-\"&$M43&\"_new\",Ammortamento_Finanziario!$H:$L,5,FALSE),VLOOKUP($M43,TT_Tabelle_Riferimento!$D$127:$H$164,5,FALSE))","v":5},{"$f":"+IFERROR(VLOOKUP(OU$27&\"-\"&$M43&\"_new\",Ammortamento_Finanziario!$H:$L,5,FALSE),VLOOKUP($M43,TT_Tabelle_Riferimento!$D$127:$H$164,5,FALSE))","v":5},{"$f":"+IFERROR(VLOOKUP(OV$27&\"-\"&$M43&\"_new\",Ammortamento_Finanziario!$H:$L,5,FALSE),VLOOKUP($M43,TT_Tabelle_Riferimento!$D$127:$H$164,5,FALSE))","v":5},{"$f":"+IFERROR(VLOOKUP(OW$27&\"-\"&$M43&\"_new\",Ammortamento_Finanziario!$H:$L,5,FALSE),VLOOKUP($M43,TT_Tabelle_Riferimento!$D$127:$H$164,5,FALSE))","v":5},{"$f":"+IFERROR(VLOOKUP(OX$27&\"-\"&$M43&\"_new\",Ammortamento_Finanziario!$H:$L,5,FALSE),VLOOKUP($M43,TT_Tabelle_Riferimento!$D$127:$H$164,5,FALSE))","v":5},{"$f":"+IFERROR(VLOOKUP(OY$27&\"-\"&$M43&\"_new\",Ammortamento_Finanziario!$H:$L,5,FALSE),VLOOKUP($M43,TT_Tabelle_Riferimento!$D$127:$H$164,5,FALSE))","v":5},{"$f":"+IFERROR(VLOOKUP(OZ$27&\"-\"&$M43&\"_new\",Ammortamento_Finanziario!$H:$L,5,FALSE),VLOOKUP($M43,TT_Tabelle_Riferimento!$D$127:$H$164,5,FALSE))","v":5},{"$f":"+IFERROR(VLOOKUP(PA$27&\"-\"&$M43&\"_new\",Ammortamento_Finanziario!$H:$L,5,FALSE),VLOOKUP($M43,TT_Tabelle_Riferimento!$D$127:$H$164,5,FALSE))","v":5},{"$f":"+IFERROR(VLOOKUP(PB$27&\"-\"&$M43&\"_new\",Ammortamento_Finanziario!$H:$L,5,FALSE),VLOOKUP($M43,TT_Tabelle_Riferimento!$D$127:$H$164,5,FALSE))","v":5},{"$f":"+IFERROR(VLOOKUP(PC$27&\"-\"&$M43&\"_new\",Ammortamento_Finanziario!$H:$L,5,FALSE),VLOOKUP($M43,TT_Tabelle_Riferimento!$D$127:$H$164,5,FALSE))","v":5},{"$f":"+IFERROR(VLOOKUP(PD$27&\"-\"&$M43&\"_new\",Ammortamento_Finanziario!$H:$L,5,FALSE),VLOOKUP($M43,TT_Tabelle_Riferimento!$D$127:$H$164,5,FALSE))","v":5},{"$f":"+IFERROR(VLOOKUP(PE$27&\"-\"&$M43&\"_new\",Ammortamento_Finanziario!$H:$L,5,FALSE),VLOOKUP($M43,TT_Tabelle_Riferimento!$D$127:$H$164,5,FALSE))","v":5},{"$f":"+IFERROR(VLOOKUP(PF$27&\"-\"&$M43&\"_new\",Ammortamento_Finanziario!$H:$L,5,FALSE),VLOOKUP($M43,TT_Tabelle_Riferimento!$D$127:$H$164,5,FALSE))","v":5},{"$f":"+IFERROR(VLOOKUP(PG$27&\"-\"&$M43&\"_new\",Ammortamento_Finanziario!$H:$L,5,FALSE),VLOOKUP($M43,TT_Tabelle_Riferimento!$D$127:$H$164,5,FALSE))","v":5},{"$f":"+IFERROR(VLOOKUP(PH$27&\"-\"&$M43&\"_new\",Ammortamento_Finanziario!$H:$L,5,FALSE),VLOOKUP($M43,TT_Tabelle_Riferimento!$D$127:$H$164,5,FALSE))","v":5},{"$f":"+IFERROR(VLOOKUP(PI$27&\"-\"&$M43&\"_new\",Ammortamento_Finanziario!$H:$L,5,FALSE),VLOOKUP($M43,TT_Tabelle_Riferimento!$D$127:$H$164,5,FALSE))","v":5},{"$f":"+IFERROR(VLOOKUP(PJ$27&\"-\"&$M43&\"_new\",Ammortamento_Finanziario!$H:$L,5,FALSE),VLOOKUP($M43,TT_Tabelle_Riferimento!$D$127:$H$164,5,FALSE))","v":5},{"$f":"+IFERROR(VLOOKUP(PK$27&\"-\"&$M43&\"_new\",Ammortamento_Finanziario!$H:$L,5,FALSE),VLOOKUP($M43,TT_Tabelle_Riferimento!$D$127:$H$164,5,FALSE))","v":5},{"$f":"+IFERROR(VLOOKUP(PL$27&\"-\"&$M43&\"_new\",Ammortamento_Finanziario!$H:$L,5,FALSE),VLOOKUP($M43,TT_Tabelle_Riferimento!$D$127:$H$164,5,FALSE))","v":5},{"$f":"+IFERROR(VLOOKUP(PM$27&\"-\"&$M43&\"_new\",Ammortamento_Finanziario!$H:$L,5,FALSE),VLOOKUP($M43,TT_Tabelle_Riferimento!$D$127:$H$164,5,FALSE))","v":5},{"$f":"+IFERROR(VLOOKUP(PN$27&\"-\"&$M43&\"_new\",Ammortamento_Finanziario!$H:$L,5,FALSE),VLOOKUP($M43,TT_Tabelle_Riferimento!$D$127:$H$164,5,FALSE))","v":5},{"$f":"+IFERROR(VLOOKUP(PO$27&\"-\"&$M43&\"_new\",Ammortamento_Finanziario!$H:$L,5,FALSE),VLOOKUP($M43,TT_Tabelle_Riferimento!$D$127:$H$164,5,FALSE))","v":5},{"$f":"+IFERROR(VLOOKUP(PP$27&\"-\"&$M43&\"_new\",Ammortamento_Finanziario!$H:$L,5,FALSE),VLOOKUP($M43,TT_Tabelle_Riferimento!$D$127:$H$164,5,FALSE))","v":5},{"$f":"+IFERROR(VLOOKUP(PQ$27&\"-\"&$M43&\"_new\",Ammortamento_Finanziario!$H:$L,5,FALSE),VLOOKUP($M43,TT_Tabelle_Riferimento!$D$127:$H$164,5,FALSE))","v":5},{"$f":"+IFERROR(VLOOKUP(PR$27&\"-\"&$M43&\"_new\",Ammortamento_Finanziario!$H:$L,5,FALSE),VLOOKUP($M43,TT_Tabelle_Riferimento!$D$127:$H$164,5,FALSE))","v":5},{"$f":"+IFERROR(VLOOKUP(PS$27&\"-\"&$M43&\"_new\",Ammortamento_Finanziario!$H:$L,5,FALSE),VLOOKUP($M43,TT_Tabelle_Riferimento!$D$127:$H$164,5,FALSE))","v":5},{"$f":"+IFERROR(VLOOKUP(PT$27&\"-\"&$M43&\"_new\",Ammortamento_Finanziario!$H:$L,5,FALSE),VLOOKUP($M43,TT_Tabelle_Riferimento!$D$127:$H$164,5,FALSE))","v":5},{"$f":"+IFERROR(VLOOKUP(PU$27&\"-\"&$M43&\"_new\",Ammortamento_Finanziario!$H:$L,5,FALSE),VLOOKUP($M43,TT_Tabelle_Riferimento!$D$127:$H$164,5,FALSE))","v":5},{"$f":"+IFERROR(VLOOKUP(PV$27&\"-\"&$M43&\"_new\",Ammortamento_Finanziario!$H:$L,5,FALSE),VLOOKUP($M43,TT_Tabelle_Riferimento!$D$127:$H$164,5,FALSE))","v":5},{"$f":"+IFERROR(VLOOKUP(PW$27&\"-\"&$M43&\"_new\",Ammortamento_Finanziario!$H:$L,5,FALSE),VLOOKUP($M43,TT_Tabelle_Riferimento!$D$127:$H$164,5,FALSE))","v":5},{"$f":"+IFERROR(VLOOKUP(PX$27&\"-\"&$M43&\"_new\",Ammortamento_Finanziario!$H:$L,5,FALSE),VLOOKUP($M43,TT_Tabelle_Riferimento!$D$127:$H$164,5,FALSE))","v":5},{"$f":"+IFERROR(VLOOKUP(PY$27&\"-\"&$M43&\"_new\",Ammortamento_Finanziario!$H:$L,5,FALSE),VLOOKUP($M43,TT_Tabelle_Riferimento!$D$127:$H$164,5,FALSE))","v":5},{"$f":"+IFERROR(VLOOKUP(PZ$27&\"-\"&$M43&\"_new\",Ammortamento_Finanziario!$H:$L,5,FALSE),VLOOKUP($M43,TT_Tabelle_Riferimento!$D$127:$H$164,5,FALSE))","v":5},{"$f":"+IFERROR(VLOOKUP(QA$27&\"-\"&$M43&\"_new\",Ammortamento_Finanziario!$H:$L,5,FALSE),VLOOKUP($M43,TT_Tabelle_Riferimento!$D$127:$H$164,5,FALSE))","v":5},{"$f":"+IFERROR(VLOOKUP(QB$27&\"-\"&$M43&\"_new\",Ammortamento_Finanziario!$H:$L,5,FALSE),VLOOKUP($M43,TT_Tabelle_Riferimento!$D$127:$H$164,5,FALSE))","v":5},{"$f":"+IFERROR(VLOOKUP(QC$27&\"-\"&$M43&\"_new\",Ammortamento_Finanziario!$H:$L,5,FALSE),VLOOKUP($M43,TT_Tabelle_Riferimento!$D$127:$H$164,5,FALSE))","v":5},{"$f":"+IFERROR(VLOOKUP(QD$27&\"-\"&$M43&\"_new\",Ammortamento_Finanziario!$H:$L,5,FALSE),VLOOKUP($M43,TT_Tabelle_Riferimento!$D$127:$H$164,5,FALSE))","v":5},{"$f":"+IFERROR(VLOOKUP(QE$27&\"-\"&$M43&\"_new\",Ammortamento_Finanziario!$H:$L,5,FALSE),VLOOKUP($M43,TT_Tabelle_Riferimento!$D$127:$H$164,5,FALSE))","v":5},{"$f":"+IFERROR(VLOOKUP(QF$27&\"-\"&$M43&\"_new\",Ammortamento_Finanziario!$H:$L,5,FALSE),VLOOKUP($M43,TT_Tabelle_Riferimento!$D$127:$H$164,5,FALSE))","v":5},{"$f":"+IFERROR(VLOOKUP(QG$27&\"-\"&$M43&\"_new\",Ammortamento_Finanziario!$H:$L,5,FALSE),VLOOKUP($M43,TT_Tabelle_Riferimento!$D$127:$H$164,5,FALSE))","v":5},{"$f":"+IFERROR(VLOOKUP(QH$27&\"-\"&$M43&\"_new\",Ammortamento_Finanziario!$H:$L,5,FALSE),VLOOKUP($M43,TT_Tabelle_Riferimento!$D$127:$H$164,5,FALSE))","v":5},{"$f":"+IFERROR(VLOOKUP(QI$27&\"-\"&$M43&\"_new\",Ammortamento_Finanziario!$H:$L,5,FALSE),VLOOKUP($M43,TT_Tabelle_Riferimento!$D$127:$H$164,5,FALSE))","v":5},{"$f":"+IFERROR(VLOOKUP(QJ$27&\"-\"&$M43&\"_new\",Ammortamento_Finanziario!$H:$L,5,FALSE),VLOOKUP($M43,TT_Tabelle_Riferimento!$D$127:$H$164,5,FALSE))","v":5},{"$f":"+IFERROR(VLOOKUP(QK$27&\"-\"&$M43&\"_new\",Ammortamento_Finanziario!$H:$L,5,FALSE),VLOOKUP($M43,TT_Tabelle_Riferimento!$D$127:$H$164,5,FALSE))","v":5},{"$f":"+IFERROR(VLOOKUP(QL$27&\"-\"&$M43&\"_new\",Ammortamento_Finanziario!$H:$L,5,FALSE),VLOOKUP($M43,TT_Tabelle_Riferimento!$D$127:$H$164,5,FALSE))","v":5},{"$f":"+IFERROR(VLOOKUP(QM$27&\"-\"&$M43&\"_new\",Ammortamento_Finanziario!$H:$L,5,FALSE),VLOOKUP($M43,TT_Tabelle_Riferimento!$D$127:$H$164,5,FALSE))","v":5},{"$f":"+IFERROR(VLOOKUP(QN$27&\"-\"&$M43&\"_new\",Ammortamento_Finanziario!$H:$L,5,FALSE),VLOOKUP($M43,TT_Tabelle_Riferimento!$D$127:$H$164,5,FALSE))","v":5},{"$f":"+IFERROR(VLOOKUP(QO$27&\"-\"&$M43&\"_new\",Ammortamento_Finanziario!$H:$L,5,FALSE),VLOOKUP($M43,TT_Tabelle_Riferimento!$D$127:$H$164,5,FALSE))","v":5},{"$f":"+IFERROR(VLOOKUP(QP$27&\"-\"&$M43&\"_new\",Ammortamento_Finanziario!$H:$L,5,FALSE),VLOOKUP($M43,TT_Tabelle_Riferimento!$D$127:$H$164,5,FALSE))","v":5},{"$f":"+IFERROR(VLOOKUP(QQ$27&\"-\"&$M43&\"_new\",Ammortamento_Finanziario!$H:$L,5,FALSE),VLOOKUP($M43,TT_Tabelle_Riferimento!$D$127:$H$164,5,FALSE))","v":5},{"$f":"+IFERROR(VLOOKUP(QR$27&\"-\"&$M43&\"_new\",Ammortamento_Finanziario!$H:$L,5,FALSE),VLOOKUP($M43,TT_Tabelle_Riferimento!$D$127:$H$164,5,FALSE))","v":5},{"$f":"+IFERROR(VLOOKUP(QS$27&\"-\"&$M43&\"_new\",Ammortamento_Finanziario!$H:$L,5,FALSE),VLOOKUP($M43,TT_Tabelle_Riferimento!$D$127:$H$164,5,FALSE))","v":5},{"$f":"+IFERROR(VLOOKUP(QT$27&\"-\"&$M43&\"_new\",Ammortamento_Finanziario!$H:$L,5,FALSE),VLOOKUP($M43,TT_Tabelle_Riferimento!$D$127:$H$164,5,FALSE))","v":5},{"$f":"+IFERROR(VLOOKUP(QU$27&\"-\"&$M43&\"_new\",Ammortamento_Finanziario!$H:$L,5,FALSE),VLOOKUP($M43,TT_Tabelle_Riferimento!$D$127:$H$164,5,FALSE))","v":5},{"$f":"+IFERROR(VLOOKUP(QV$27&\"-\"&$M43&\"_new\",Ammortamento_Finanziario!$H:$L,5,FALSE),VLOOKUP($M43,TT_Tabelle_Riferimento!$D$127:$H$164,5,FALSE))","v":5},{"$f":"+IFERROR(VLOOKUP(QW$27&\"-\"&$M43&\"_new\",Ammortamento_Finanziario!$H:$L,5,FALSE),VLOOKUP($M43,TT_Tabelle_Riferimento!$D$127:$H$164,5,FALSE))","v":5},{"$f":"+IFERROR(VLOOKUP(QX$27&\"-\"&$M43&\"_new\",Ammortamento_Finanziario!$H:$L,5,FALSE),VLOOKUP($M43,TT_Tabelle_Riferimento!$D$127:$H$164,5,FALSE))","v":5},{"$f":"+IFERROR(VLOOKUP(QY$27&\"-\"&$M43&\"_new\",Ammortamento_Finanziario!$H:$L,5,FALSE),VLOOKUP($M43,TT_Tabelle_Riferimento!$D$127:$H$164,5,FALSE))","v":5},{"$f":"+IFERROR(VLOOKUP(QZ$27&\"-\"&$M43&\"_new\",Ammortamento_Finanziario!$H:$L,5,FALSE),VLOOKUP($M43,TT_Tabelle_Riferimento!$D$127:$H$164,5,FALSE))","v":5},{"$f":"+IFERROR(VLOOKUP(RA$27&\"-\"&$M43&\"_new\",Ammortamento_Finanziario!$H:$L,5,FALSE),VLOOKUP($M43,TT_Tabelle_Riferimento!$D$127:$H$164,5,FALSE))","v":5},{"$f":"+IFERROR(VLOOKUP(RB$27&\"-\"&$M43&\"_new\",Ammortamento_Finanziario!$H:$L,5,FALSE),VLOOKUP($M43,TT_Tabelle_Riferimento!$D$127:$H$164,5,FALSE))","v":5},{"$f":"+IFERROR(VLOOKUP(RC$27&\"-\"&$M43&\"_new\",Ammortamento_Finanziario!$H:$L,5,FALSE),VLOOKUP($M43,TT_Tabelle_Riferimento!$D$127:$H$164,5,FALSE))","v":5},{"$f":"+IFERROR(VLOOKUP(RD$27&\"-\"&$M43&\"_new\",Ammortamento_Finanziario!$H:$L,5,FALSE),VLOOKUP($M43,TT_Tabelle_Riferimento!$D$127:$H$164,5,FALSE))","v":5},{"$f":"+IFERROR(VLOOKUP(RE$27&\"-\"&$M43&\"_new\",Ammortamento_Finanziario!$H:$L,5,FALSE),VLOOKUP($M43,TT_Tabelle_Riferimento!$D$127:$H$164,5,FALSE))","v":5},{"$f":"+IFERROR(VLOOKUP(RF$27&\"-\"&$M43&\"_new\",Ammortamento_Finanziario!$H:$L,5,FALSE),VLOOKUP($M43,TT_Tabelle_Riferimento!$D$127:$H$164,5,FALSE))","v":5},{"$f":"+IFERROR(VLOOKUP(RG$27&\"-\"&$M43&\"_new\",Ammortamento_Finanziario!$H:$L,5,FALSE),VLOOKUP($M43,TT_Tabelle_Riferimento!$D$127:$H$164,5,FALSE))","v":5},{"$f":"+IFERROR(VLOOKUP(RH$27&\"-\"&$M43&\"_new\",Ammortamento_Finanziario!$H:$L,5,FALSE),VLOOKUP($M43,TT_Tabelle_Riferimento!$D$127:$H$164,5,FALSE))","v":5},{"$f":"+IFERROR(VLOOKUP(RI$27&\"-\"&$M43&\"_new\",Ammortamento_Finanziario!$H:$L,5,FALSE),VLOOKUP($M43,TT_Tabelle_Riferimento!$D$127:$H$164,5,FALSE))","v":5},{"$f":"+IFERROR(VLOOKUP(RJ$27&\"-\"&$M43&\"_new\",Ammortamento_Finanziario!$H:$L,5,FALSE),VLOOKUP($M43,TT_Tabelle_Riferimento!$D$127:$H$164,5,FALSE))","v":5},{"$f":"+IFERROR(VLOOKUP(RK$27&\"-\"&$M43&\"_new\",Ammortamento_Finanziario!$H:$L,5,FALSE),VLOOKUP($M43,TT_Tabelle_Riferimento!$D$127:$H$164,5,FALSE))","v":5},{"$f":"+IFERROR(VLOOKUP(RL$27&\"-\"&$M43&\"_new\",Ammortamento_Finanziario!$H:$L,5,FALSE),VLOOKUP($M43,TT_Tabelle_Riferimento!$D$127:$H$164,5,FALSE))","v":5},{"$f":"+IFERROR(VLOOKUP(RM$27&\"-\"&$M43&\"_new\",Ammortamento_Finanziario!$H:$L,5,FALSE),VLOOKUP($M43,TT_Tabelle_Riferimento!$D$127:$H$164,5,FALSE))","v":5},{"$f":"+IFERROR(VLOOKUP(RN$27&\"-\"&$M43&\"_new\",Ammortamento_Finanziario!$H:$L,5,FALSE),VLOOKUP($M43,TT_Tabelle_Riferimento!$D$127:$H$164,5,FALSE))","v":5},{"$f":"+IFERROR(VLOOKUP(RO$27&\"-\"&$M43&\"_new\",Ammortamento_Finanziario!$H:$L,5,FALSE),VLOOKUP($M43,TT_Tabelle_Riferimento!$D$127:$H$164,5,FALSE))","v":5},{"$f":"+IFERROR(VLOOKUP(RP$27&\"-\"&$M43&\"_new\",Ammortamento_Finanziario!$H:$L,5,FALSE),VLOOKUP($M43,TT_Tabelle_Riferimento!$D$127:$H$164,5,FALSE))","v":5},{"$f":"+IFERROR(VLOOKUP(RQ$27&\"-\"&$M43&\"_new\",Ammortamento_Finanziario!$H:$L,5,FALSE),VLOOKUP($M43,TT_Tabelle_Riferimento!$D$127:$H$164,5,FALSE))","v":5},{"$f":"+IFERROR(VLOOKUP(RR$27&\"-\"&$M43&\"_new\",Ammortamento_Finanziario!$H:$L,5,FALSE),VLOOKUP($M43,TT_Tabelle_Riferimento!$D$127:$H$164,5,FALSE))","v":5},{"$f":"+IFERROR(VLOOKUP(RS$27&\"-\"&$M43&\"_new\",Ammortamento_Finanziario!$H:$L,5,FALSE),VLOOKUP($M43,TT_Tabelle_Riferimento!$D$127:$H$164,5,FALSE))","v":5},{"$f":"+IFERROR(VLOOKUP(RT$27&\"-\"&$M43&\"_new\",Ammortamento_Finanziario!$H:$L,5,FALSE),VLOOKUP($M43,TT_Tabelle_Riferimento!$D$127:$H$164,5,FALSE))","v":5},{"$f":"+IFERROR(VLOOKUP(RU$27&\"-\"&$M43&\"_new\",Ammortamento_Finanziario!$H:$L,5,FALSE),VLOOKUP($M43,TT_Tabelle_Riferimento!$D$127:$H$164,5,FALSE))","v":5},{"$f":"+IFERROR(VLOOKUP(RV$27&\"-\"&$M43&\"_new\",Ammortamento_Finanziario!$H:$L,5,FALSE),VLOOKUP($M43,TT_Tabelle_Riferimento!$D$127:$H$164,5,FALSE))","v":5}]
[null,null,null,"IMN",{"$f":"+SUMIFS(IMN_gestore!R:R,IMN_gestore!$G:$G,\"Env\")","v":0},{"$f":"+SUMIFS(IMN_gestore!AC:AC,IMN_gestore!$G:$G,\"Env\")","v":0},{"$f":"+SUMIFS(IMN_gestore!AN:AN,IMN_gestore!$G:$G,\"Env\")","v":0},{"$f":"+SUMIFS(IMN_gestore!AY:AY,IMN_gestore!$G:$G,\"Env\")","v":0},{"$f":"+SUMIFS(IMN_gestore!$BJ:$BJ,IMN_gestore!$G:$G,\"Env\")","v":0},{"$f":"+SUMIFS(IMN_gestore!$BU:$BU,IMN_gestore!$G:$G,\"Env\")","v":0},null,null,17,0,0,0,0,0,0,0,0,0,0,0,0,0,0,0,0,0,0,0,0,0,0,0,0,0,0,0,0,0,0,0,0,0,0,0,0,0,0,0,0,0,0,0,0,0,0,0,0,0,0,0,0,0,0,0,0,0,0,0,0,0,0,0,0,0,0,0,0,0,0,0,0,0,0,0,0,0,0,0,0,0,0,0,0,0,0,0,0,0,0,0,0,0,0,0,0,0,0,0,0,0,0,0,0,0,0,0,0,0,0,0,0,0,0,0,0,0,0,0,0,0,0,0,0,0,0,0,0,0,0,0,0,0,0,0,0,0,0,0,0,0,0,0,0,0,0,0,0,0,0,0,0,0,0,0,0,0,0,0,0,0,0,0,0,0,0,0,0,0,0,0,0,0,0,0,0,0,0,0,0,0,0,0,0,0,0,0,0,0,0,0,0,0,0,0,0,0,0,0,0,0,0,0,0,0,0,0,0,0,0,0,0,0,0,0,0,0,0,0,0,0,0,0,0,0,0,0,0,0,0,0,0,0,0,0,0,0,0,0,0,0,0,0,0,0,0,0,0,0,0,0,0,0,0,0,0,0,0,0,0,0,0,0,0,0,0,0,0,0,0,0,0,0,0,0,0,0,0,0,0,0,0,0,0,0,0,0,0,0,0,0,0,0,0,0,0,0,0,0,0,0,0,0,0,0,0,0,0,0,0,0,0,0,0,0,0,0,0,0,0,0,0,0,0,0,0,0,0,0,0,0,0,0,0,0,0,0,0,0,0,0,0,0,0,0,0,0,0,0,0,0,0,0,0,0,0,0,0,0,0,0,0,0,0,0,0,0,0,0,0,0,0,0,0,0,0,0,0,0,0,0,0,0,0,0,0,0,0,0,0,0,0,0,0,0,0,0,0,0,0,0,0,0,0,0,0,0,0,0,0,0,0,0,0,0,0,0,0,0,0,0,0,0,0,0,0,0,0,0,0,0,0,0,0,0,0,0,0,0,0,0,0,0,0,0,0,0,0,0,0,0,0,0,0,0,0,0,0,0,0,0,0,0,0,0,0,0,0,0,0,0,0,0,0,0,0,0]
[null,null,null,"AMM",{"$f":"+SUMIFS(IMN_gestore!T:T,IMN_gestore!$G:$G,\"Env\")","v":0},{"$f":"+SUMIFS(IMN_gestore!AE:AE,IMN_gestore!$G:$G,\"Env\")","v":0},{"$f":"+SUMIFS(IMN_gestore!AP:AP,IMN_gestore!$G:$G,\"Env\")","v":0},{"$f":"+SUMIFS(IMN_gestore!BA:BA,IMN_gestore!$G:$G,\"Env\")","v":0},{"$f":"+SUMIFS(IMN_gestore!$BL:$BL,IMN_gestore!$G:$G,\"Env\")","v":0},{"$f":"+SUMIFS(IMN_gestore!$BW:$BW,IMN_gestore!$G:$G,\"Env\")","v":0},null,null,18,0,0,0,0,0,0,0,0,0,0,0,0,0,0,0,0,0,0,0,0,0,0,0,0,0,0,0,0,0,0,0,0,0,0,0,0,0,0,0,0,0,0,0,0,0,0,0,0,0,0,0,0,0,0,0,0,0,0,0,0,0,0,0,0,0,0,0,0,0,0,0,0,0,0,0,0,0,0,0,0,0,0,0,0,0,0,0,0,0,0,0,0,0,0,0,0,0,0,0,0,0,0,0,0,0,0,0,0,0,0,0,0,0,0,0,0,0,0,0,0,0,0,0,0,0,0,0,0,0,0,0,0,0,0,0,0,0,0,0,0,0,0,0,0,0,0,0,0,0,0,0,0,0,0,0,0,0,0,0,0,0,0,0,0,0,0,0,0,0,0,0,0,0,0,0,0,0,0,0,0,0,0,0,0,0,0,0,0,0,0,0,0,0,0,0,0,0,0,0,0,0,0,0,0,0,0,0,0,0,0,0,0,0,0,0,0,0,0,0,0,0,0,0,0,0,0,0,0,0,0,0,0,0,0,0,0,0,0,0,0,0,0,0,0,0,0,0,0,0,0,0,0,0,0,0,0,0,0,0,0,0,0,0,0,0,0,0,0,0,0,0,0,0,0,0,0,0,0,0,0,0,0,0,0,0,0,0,0,0,{"$f":"+IFERROR(VLOOKUP(KQ$27&\"-\"&$M45&\"_new\",Ammortamento_Finanziario!$H:$L,5,FALSE),VLOOKUP($M45,TT_Tabelle_Riferimento!$D$127:$H$164,5,FALSE))","v":8},{"$f":"+IFERROR(VLOOKUP(KR$27&\"-\"&$M45&\"_new\",Ammortamento_Finanziario!$H:$L,5,FALSE),VLOOKUP($M45,TT_Tabelle_Riferimento!$D$127:$H$164,5,FALSE))","v":8},{"$f":"+IFERROR(VLOOKUP(KS$27&\"-\"&$M45&\"_new\",Ammortamento_Finanziario!$H:$L,5,FALSE),VLOOKUP($M45,TT_Tabelle_Riferimento!$D$127:$H$164,5,FALSE))","v":8},{"$f":"+IFERROR(VLOOKUP(KT$27&\"-\"&$M45&\"_new\",Ammortamento_Finanziario!$H:$L,5,FALSE),VLOOKUP($M45,TT_Tabelle_Riferimento!$D$127:$H$164,5,FALSE))","v":8},{"$f":"+IFERROR(VLOOKUP(KU$27&\"-\"&$M45&\"_new\",Ammortamento_Finanziario!$H:$L,5,FALSE),VLOOKUP($M45,TT_Tabelle_Riferimento!$D$127:$H$164,5,FALSE))","v":8},{"$f":"+IFERROR(VLOOKUP(KV$27&\"-\"&$M45&\"_new\",Ammortamento_Finanziario!$H:$L,5,FALSE),VLOOKUP($M45,TT_Tabelle_Riferimento!$D$127:$H$164,5,FALSE))","v":8},{"$f":"+IFERROR(VLOOKUP(KW$27&\"-\"&$M45&\"_new\",Ammortamento_Finanziario!$H:$L,5,FALSE),VLOOKUP($M45,TT_Tabelle_Riferimento!$D$127:$H$164,5,FALSE))","v":8},{"$f":"+IFERROR(VLOOKUP(KX$27&\"-\"&$M45&\"_new\",Ammortamento_Finanziario!$H:$L,5,FALSE),VLOOKUP($M45,TT_Tabelle_Riferimento!$D$127:$H$164,5,FALSE))","v":8},{"$f":"+IFERROR(VLOOKUP(KY$27&\"-\"&$M45&\"_new\",Ammortamento_Finanziario!$H:$L,5,FALSE),VLOOKUP($M45,TT_Tabelle_Riferimento!$D$127:$H$164,5,FALSE))","v":8},{"$f":"+IFERROR(VLOOKUP(KZ$27&\"-\"&$M45&\"_new\",Ammortamento_Finanziario!$H:$L,5,FALSE),VLOOKUP($M45,TT_Tabelle_Riferimento!$D$127:$H$164,5,FALSE))","v":8},{"$f":"+IFERROR(VLOOKUP(LA$27&\"-\"&$M45&\"_new\",Ammortamento_Finanziario!$H:$L,5,FALSE),VLOOKUP($M45,TT_Tabelle_Riferimento!$D$127:$H$164,5,FALSE))","v":8},{"$f":"+IFERROR(VLOOKUP(LB$27&\"-\"&$M45&\"_new\",Ammortamento_Finanziario!$H:$L,5,FALSE),VLOOKUP($M45,TT_Tabelle_Riferimento!$D$127:$H$164,5,FALSE))","v":8},{"$f":"+IFERROR(VLOOKUP(LC$27&\"-\"&$M45&\"_new\",Ammortamento_Finanziario!$H:$L,5,FALSE),VLOOKUP($M45,TT_Tabelle_Riferimento!$D$127:$H$164,5,FALSE))","v":8},{"$f":"+IFERROR(VLOOKUP(LD$27&\"-\"&$M45&\"_new\",Ammortamento_Finanziario!$H:$L,5,FALSE),VLOOKUP($M45,TT_Tabelle_Riferimento!$D$127:$H$164,5,FALSE))","v":8},{"$f":"+IFERROR(VLOOKUP(LE$27&\"-\"&$M45&\"_new\",Ammortamento_Finanziario!$H:$L,5,FALSE),VLOOKUP($M45,TT_Tabelle_Riferimento!$D$127:$H$164,5,FALSE))","v":8},{"$f":"+IFERROR(VLOOKUP(LF$27&\"-\"&$M45&\"_new\",Ammortamento_Finanziario!$H:$L,5,FALSE),VLOOKUP($M45,TT_Tabelle_Riferimento!$D$127:$H$164,5,FALSE))","v":8},{"$f":"+IFERROR(VLOOKUP(LG$27&\"-\"&$M45&\"_new\",Ammortamento_Finanziario!$H:$L,5,FALSE),VLOOKUP($M45,TT_Tabelle_Riferimento!$D$127:$H$164,5,FALSE))","v":8},{"$f":"+IFERROR(VLOOKUP(LH$27&\"-\"&$M45&\"_new\",Ammortamento_Finanziario!$H:$L,5,FALSE),VLOOKUP($M45,TT_Tabelle_Riferimento!$D$127:$H$164,5,FALSE))","v":8},{"$f":"+IFERROR(VLOOKUP(LI$27&\"-\"&$M45&\"_new\",Ammortamento_Finanziario!$H:$L,5,FALSE),VLOOKUP($M45,TT_Tabelle_Riferimento!$D$127:$H$164,5,FALSE))","v":8},{"$f":"+IFERROR(VLOOKUP(LJ$27&\"-\"&$M45&\"_new\",Ammortamento_Finanziario!$H:$L,5,FALSE),VLOOKUP($M45,TT_Tabelle_Riferimento!$D$127:$H$164,5,FALSE))","v":8},{"$f":"+IFERROR(VLOOKUP(LK$27&\"-\"&$M45&\"_new\",Ammortamento_Finanziario!$H:$L,5,FALSE),VLOOKUP($M45,TT_Tabelle_Riferimento!$D$127:$H$164,5,FALSE))","v":8},{"$f":"+IFERROR(VLOOKUP(LL$27&\"-\"&$M45&\"_new\",Ammortamento_Finanziario!$H:$L,5,FALSE),VLOOKUP($M45,TT_Tabelle_Riferimento!$D$127:$H$164,5,FALSE))","v":8},{"$f":"+IFERROR(VLOOKUP(LM$27&\"-\"&$M45&\"_new\",Ammortamento_Finanziario!$H:$L,5,FALSE),VLOOKUP($M45,TT_Tabelle_Riferimento!$D$127:$H$164,5,FALSE))","v":8},{"$f":"+IFERROR(VLOOKUP(LN$27&\"-\"&$M45&\"_new\",Ammortamento_Finanziario!$H:$L,5,FALSE),VLOOKUP($M45,TT_Tabelle_Riferimento!$D$127:$H$164,5,FALSE))","v":8},{"$f":"+IFERROR(VLOOKUP(LO$27&\"-\"&$M45&\"_new\",Ammortamento_Finanziario!$H:$L,5,FALSE),VLOOKUP($M45,TT_Tabelle_Riferimento!$D$127:$H$164,5,FALSE))","v":8},{"$f":"+IFERROR(VLOOKUP(LP$27&\"-\"&$M45&\"_new\",Ammortamento_Finanziario!$H:$L,5,FALSE),VLOOKUP($M45,TT_Tabelle_Riferimento!$D$127:$H$164,5,FALSE))","v":8},{"$f":"+IFERROR(VLOOKUP(LQ$27&\"-\"&$M45&\"_new\",Ammortamento_Finanziario!$H:$L,5,FALSE),VLOOKUP($M45,TT_Tabelle_Riferimento!$D$127:$H$164,5,FALSE))","v":8},{"$f":"+IFERROR(VLOOKUP(LR$27&\"-\"&$M45&\"_new\",Ammortamento_Finanziario!$H:$L,5,FALSE),VLOOKUP($M45,TT_Tabelle_Riferimento!$D$127:$H$164,5,FALSE))","v":8},{"$f":"+IFERROR(VLOOKUP(LS$27&\"-\"&$M45&\"_new\",Ammortamento_Finanziario!$H:$L,5,FALSE),VLOOKUP($M45,TT_Tabelle_Riferimento!$D$127:$H$164,5,FALSE))","v":8},{"$f":"+IFERROR(VLOOKUP(LT$27&\"-\"&$M45&\"_new\",Ammortamento_Finanziario!$H:$L,5,FALSE),VLOOKUP($M45,TT_Tabelle_Riferimento!$D$127:$H$164,5,FALSE))","v":8},{"$f":"+IFERROR(VLOOKUP(LU$27&\"-\"&$M45&\"_new\",Ammortamento_Finanziario!$H:$L,5,FALSE),VLOOKUP($M45,TT_Tabelle_Riferimento!$D$127:$H$164,5,FALSE))","v":8},{"$f":"+IFERROR(VLOOKUP(LV$27&\"-\"&$M45&\"_new\",Ammortamento_Finanziario!$H:$L,5,FALSE),VLOOKUP($M45,TT_Tabelle_Riferimento!$D$127:$H$164,5,FALSE))","v":8},{"$f":"+IFERROR(VLOOKUP(LW$27&\"-\"&$M45&\"_new\",Ammortamento_Finanziario!$H:$L,5,FALSE),VLOOKUP($M45,TT_Tabelle_Riferimento!$D$127:$H$164,5,FALSE))","v":8},{"$f":"+IFERROR(VLOOKUP(LX$27&\"-\"&$M45&\"_new\",Ammortamento_Finanziario!$H:$L,5,FALSE),VLOOKUP($M45,TT_Tabelle_Riferimento!$D$127:$H$164,5,FALSE))","v":8},{"$f":"+IFERROR(VLOOKUP(LY$27&\"-\"&$M45&\"_new\",Ammortamento_Finanziario!$H:$L,5,FALSE),VLOOKUP($M45,TT_Tabelle_Riferimento!$D$127:$H$164,5,FALSE))","v":8},{"$f":"+IFERROR(VLOOKUP(LZ$27&\"-\"&$M45&\"_new\",Ammortamento_Finanziario!$H:$L,5,FALSE),VLOOKUP($M45,TT_Tabelle_Riferimento!$D$127:$H$164,5,FALSE))","v":8},{"$f":"+IFERROR(VLOOKUP(MA$27&\"-\"&$M45&\"_new\",Ammortamento_Finanziario!$H:$L,5,FALSE),VLOOKUP($M45,TT_Tabelle_Riferimento!$D$127:$H$164,5,FALSE))","v":8},{"$f":"+IFERROR(VLOOKUP(MB$27&\"-\"&$M45&\"_new\",Ammortamento_Finanziario!$H:$L,5,FALSE),VLOOKUP($M45,TT_Tabelle_Riferimento!$D$127:$H$164,5,FALSE))","v":8},{"$f":"+IFERROR(VLOOKUP(MC$27&\"-\"&$M45&\"_new\",Ammortamento_Finanziario!$H:$L,5,FALSE),VLOOKUP($M45,TT_Tabelle_Riferimento!$D$127:$H$164,5,FALSE))","v":8},{"$f":"+IFERROR(VLOOKUP(MD$27&\"-\"&$M45&\"_new\",Ammortamento_Finanziario!$H:$L,5,FALSE),VLOOKUP($M45,TT_Tabelle_Riferimento!$D$127:$H$164,5,FALSE))","v":8},{"$f":"+IFERROR(VLOOKUP(ME$27&\"-\"&$M45&\"_new\",Ammortamento_Finanziario!$H:$L,5,FALSE),VLOOKUP($M45,TT_Tabelle_Riferimento!$D$127:$H$164,5,FALSE))","v":8},{"$f":"+IFERROR(VLOOKUP(MF$27&\"-\"&$M45&\"_new\",Ammortamento_Finanziario!$H:$L,5,FALSE),VLOOKUP($M45,TT_Tabelle_Riferimento!$D$127:$H$164,5,FALSE))","v":8},{"$f":"+IFERROR(VLOOKUP(MG$27&\"-\"&$M45&\"_new\",Ammortamento_Finanziario!$H:$L,5,FALSE),VLOOKUP($M45,TT_Tabelle_Riferimento!$D$127:$H$164,5,FALSE))","v":8},{"$f":"+IFERROR(VLOOKUP(MH$27&\"-\"&$M45&\"_new\",Ammortamento_Finanziario!$H:$L,5,FALSE),VLOOKUP($M45,TT_Tabelle_Riferimento!$D$127:$H$164,5,FALSE))","v":8},{"$f":"+IFERROR(VLOOKUP(MI$27&\"-\"&$M45&\"_new\",Ammortamento_Finanziario!$H:$L,5,FALSE),VLOOKUP($M45,TT_Tabelle_Riferimento!$D$127:$H$164,5,FALSE))","v":8},{"$f":"+IFERROR(VLOOKUP(MJ$27&\"-\"&$M45&\"_new\",Ammortamento_Finanziario!$H:$L,5,FALSE),VLOOKUP($M45,TT_Tabelle_Riferimento!$D$127:$H$164,5,FALSE))","v":8},{"$f":"+IFERROR(VLOOKUP(MK$27&\"-\"&$M45&\"_new\",Ammortamento_Finanziario!$H:$L,5,FALSE),VLOOKUP($M45,TT_Tabelle_Riferimento!$D$127:$H$164,5,FALSE))","v":8},{"$f":"+IFERROR(VLOOKUP(ML$27&\"-\"&$M45&\"_new\",Ammortamento_Finanziario!$H:$L,5,FALSE),VLOOKUP($M45,TT_Tabelle_Riferimento!$D$127:$H$164,5,FALSE))","v":8},{"$f":"+IFERROR(VLOOKUP(MM$27&\"-\"&$M45&\"_new\",Ammortamento_Finanziario!$H:$L,5,FALSE),VLOOKUP($M45,TT_Tabelle_Riferimento!$D$127:$H$164,5,FALSE))","v":8},{"$f":"+IFERROR(VLOOKUP(MN$27&\"-\"&$M45&\"_new\",Ammortamento_Finanziario!$H:$L,5,FALSE),VLOOKUP($M45,TT_Tabelle_Riferimento!$D$127:$H$164,5,FALSE))","v":8},{"$f":"+IFERROR(VLOOKUP(MO$27&\"-\"&$M45&\"_new\",Ammortamento_Finanziario!$H:$L,5,FALSE),VLOOKUP($M45,TT_Tabelle_Riferimento!$D$127:$H$164,5,FALSE))","v":8},{"$f":"+IFERROR(VLOOKUP(MP$27&\"-\"&$M45&\"_new\",Ammortamento_Finanziario!$H:$L,5,FALSE),VLOOKUP($M45,TT_Tabelle_Riferimento!$D$127:$H$164,5,FALSE))","v":8},{"$f":"+IFERROR(VLOOKUP(MQ$27&\"-\"&$M45&\"_new\",Ammortamento_Finanziario!$H:$L,5,FALSE),VLOOKUP($M45,TT_Tabelle_Riferimento!$D$127:$H$164,5,FALSE))","v":8},{"$f":"+IFERROR(VLOOKUP(MR$27&\"-\"&$M45&\"_new\",Ammortamento_Finanziario!$H:$L,5,FALSE),VLOOKUP($M45,TT_Tabelle_Riferimento!$D$127:$H$164,5,FALSE))","v":8},{"$f":"+IFERROR(VLOOKUP(MS$27&\"-\"&$M45&\"_new\",Ammortamento_Finanziario!$H:$L,5,FALSE),VLOOKUP($M45,TT_Tabelle_Riferimento!$D$127:$H$164,5,FALSE))","v":8},{"$f":"+IFERROR(VLOOKUP(MT$27&\"-\"&$M45&\"_new\",Ammortamento_Finanziario!$H:$L,5,FALSE),VLOOKUP($M45,TT_Tabelle_Riferimento!$D$127:$H$164,5,FALSE))","v":8},{"$f":"+IFERROR(VLOOKUP(MU$27&\"-\"&$M45&\"_new\",Ammortamento_Finanziario!$H:$L,5,FALSE),VLOOKUP($M45,TT_Tabelle_Riferimento!$D$127:$H$164,5,FALSE))","v":8},{"$f":"+IFERROR(VLOOKUP(MV$27&\"-\"&$M45&\"_new\",Ammortamento_Finanziario!$H:$L,5,FALSE),VLOOKUP($M45,TT_Tabelle_Riferimento!$D$127:$H$164,5,FALSE))","v":8},{"$f":"+IFERROR(VLOOKUP(MW$27&\"-\"&$M45&\"_new\",Ammortamento_Finanziario!$H:$L,5,FALSE),VLOOKUP($M45,TT_Tabelle_Riferimento!$D$127:$H$164,5,FALSE))","v":8},{"$f":"+IFERROR(VLOOKUP(MX$27&\"-\"&$M45&\"_new\",Ammortamento_Finanziario!$H:$L,5,FALSE),VLOOKUP($M45,TT_Tabelle_Riferimento!$D$127:$H$164,5,FALSE))","v":8},{"$f":"+IFERROR(VLOOKUP(MY$27&\"-\"&$M45&\"_new\",Ammortamento_Finanziario!$H:$L,5,FALSE),VLOOKUP($M45,TT_Tabelle_Riferimento!$D$127:$H$164,5,FALSE))","v":8},{"$f":"+IFERROR(VLOOKUP(MZ$27&\"-\"&$M45&\"_new\",Ammortamento_Finanziario!$H:$L,5,FALSE),VLOOKUP($M45,TT_Tabelle_Riferimento!$D$127:$H$164,5,FALSE))","v":8},{"$f":"+IFERROR(VLOOKUP(NA$27&\"-\"&$M45&\"_new\",Ammortamento_Finanziario!$H:$L,5,FALSE),VLOOKUP($M45,TT_Tabelle_Riferimento!$D$127:$H$164,5,FALSE))","v":8},{"$f":"+IFERROR(VLOOKUP(NB$27&\"-\"&$M45&\"_new\",Ammortamento_Finanziario!$H:$L,5,FALSE),VLOOKUP($M45,TT_Tabelle_Riferimento!$D$127:$H$164,5,FALSE))","v":8},{"$f":"+IFERROR(VLOOKUP(NC$27&\"-\"&$M45&\"_new\",Ammortamento_Finanziario!$H:$L,5,FALSE),VLOOKUP($M45,TT_Tabelle_Riferimento!$D$127:$H$164,5,FALSE))","v":8},{"$f":"+IFERROR(VLOOKUP(ND$27&\"-\"&$M45&\"_new\",Ammortamento_Finanziario!$H:$L,5,FALSE),VLOOKUP($M45,TT_Tabelle_Riferimento!$D$127:$H$164,5,FALSE))","v":8},{"$f":"+IFERROR(VLOOKUP(NE$27&\"-\"&$M45&\"_new\",Ammortamento_Finanziario!$H:$L,5,FALSE),VLOOKUP($M45,TT_Tabelle_Riferimento!$D$127:$H$164,5,FALSE))","v":8},{"$f":"+IFERROR(VLOOKUP(NF$27&\"-\"&$M45&\"_new\",Ammortamento_Finanziario!$H:$L,5,FALSE),VLOOKUP($M45,TT_Tabelle_Riferimento!$D$127:$H$164,5,FALSE))","v":8},{"$f":"+IFERROR(VLOOKUP(NG$27&\"-\"&$M45&\"_new\",Ammortamento_Finanziario!$H:$L,5,FALSE),VLOOKUP($M45,TT_Tabelle_Riferimento!$D$127:$H$164,5,FALSE))","v":8},{"$f":"+IFERROR(VLOOKUP(NH$27&\"-\"&$M45&\"_new\",Ammortamento_Finanziario!$H:$L,5,FALSE),VLOOKUP($M45,TT_Tabelle_Riferimento!$D$127:$H$164,5,FALSE))","v":8},{"$f":"+IFERROR(VLOOKUP(NI$27&\"-\"&$M45&\"_new\",Ammortamento_Finanziario!$H:$L,5,FALSE),VLOOKUP($M45,TT_Tabelle_Riferimento!$D$127:$H$164,5,FALSE))","v":8},{"$f":"+IFERROR(VLOOKUP(NJ$27&\"-\"&$M45&\"_new\",Ammortamento_Finanziario!$H:$L,5,FALSE),VLOOKUP($M45,TT_Tabelle_Riferimento!$D$127:$H$164,5,FALSE))","v":8},{"$f":"+IFERROR(VLOOKUP(NK$27&\"-\"&$M45&\"_new\",Ammortamento_Finanziario!$H:$L,5,FALSE),VLOOKUP($M45,TT_Tabelle_Riferimento!$D$127:$H$164,5,FALSE))","v":8},{"$f":"+IFERROR(VLOOKUP(NL$27&\"-\"&$M45&\"_new\",Ammortamento_Finanziario!$H:$L,5,FALSE),VLOOKUP($M45,TT_Tabelle_Riferimento!$D$127:$H$164,5,FALSE))","v":8},{"$f":"+IFERROR(VLOOKUP(NM$27&\"-\"&$M45&\"_new\",Ammortamento_Finanziario!$H:$L,5,FALSE),VLOOKUP($M45,TT_Tabelle_Riferimento!$D$127:$H$164,5,FALSE))","v":8},{"$f":"+IFERROR(VLOOKUP(NN$27&\"-\"&$M45&\"_new\",Ammortamento_Finanziario!$H:$L,5,FALSE),VLOOKUP($M45,TT_Tabelle_Riferimento!$D$127:$H$164,5,FALSE))","v":8},{"$f":"+IFERROR(VLOOKUP(NO$27&\"-\"&$M45&\"_new\",Ammortamento_Finanziario!$H:$L,5,FALSE),VLOOKUP($M45,TT_Tabelle_Riferimento!$D$127:$H$164,5,FALSE))","v":8},{"$f":"+IFERROR(VLOOKUP(NP$27&\"-\"&$M45&\"_new\",Ammortamento_Finanziario!$H:$L,5,FALSE),VLOOKUP($M45,TT_Tabelle_Riferimento!$D$127:$H$164,5,FALSE))","v":8},{"$f":"+IFERROR(VLOOKUP(NQ$27&\"-\"&$M45&\"_new\",Ammortamento_Finanziario!$H:$L,5,FALSE),VLOOKUP($M45,TT_Tabelle_Riferimento!$D$127:$H$164,5,FALSE))","v":8},{"$f":"+IFERROR(VLOOKUP(NR$27&\"-\"&$M45&\"_new\",Ammortamento_Finanziario!$H:$L,5,FALSE),VLOOKUP($M45,TT_Tabelle_Riferimento!$D$127:$H$164,5,FALSE))","v":8},{"$f":"+IFERROR(VLOOKUP(NS$27&\"-\"&$M45&\"_new\",Ammortamento_Finanziario!$H:$L,5,FALSE),VLOOKUP($M45,TT_Tabelle_Riferimento!$D$127:$H$164,5,FALSE))","v":8},{"$f":"+IFERROR(VLOOKUP(NT$27&\"-\"&$M45&\"_new\",Ammortamento_Finanziario!$H:$L,5,FALSE),VLOOKUP($M45,TT_Tabelle_Riferimento!$D$127:$H$164,5,FALSE))","v":8},{"$f":"+IFERROR(VLOOKUP(NU$27&\"-\"&$M45&\"_new\",Ammortamento_Finanziario!$H:$L,5,FALSE),VLOOKUP($M45,TT_Tabelle_Riferimento!$D$127:$H$164,5,FALSE))","v":8},{"$f":"+IFERROR(VLOOKUP(NV$27&\"-\"&$M45&\"_new\",Ammortamento_Finanziario!$H:$L,5,FALSE),VLOOKUP($M45,TT_Tabelle_Riferimento!$D$127:$H$164,5,FALSE))","v":8},{"$f":"+IFERROR(VLOOKUP(NW$27&\"-\"&$M45&\"_new\",Ammortamento_Finanziario!$H:$L,5,FALSE),VLOOKUP($M45,TT_Tabelle_Riferimento!$D$127:$H$164,5,FALSE))","v":8},{"$f":"+IFERROR(VLOOKUP(NX$27&\"-\"&$M45&\"_new\",Ammortamento_Finanziario!$H:$L,5,FALSE),VLOOKUP($M45,TT_Tabelle_Riferimento!$D$127:$H$164,5,FALSE))","v":8},{"$f":"+IFERROR(VLOOKUP(NY$27&\"-\"&$M45&\"_new\",Ammortamento_Finanziario!$H:$L,5,FALSE),VLOOKUP($M45,TT_Tabelle_Riferimento!$D$127:$H$164,5,FALSE))","v":8},{"$f":"+IFERROR(VLOOKUP(NZ$27&\"-\"&$M45&\"_new\",Ammortamento_Finanziario!$H:$L,5,FALSE),VLOOKUP($M45,TT_Tabelle_Riferimento!$D$127:$H$164,5,FALSE))","v":8},{"$f":"+IFERROR(VLOOKUP(OA$27&\"-\"&$M45&\"_new\",Ammortamento_Finanziario!$H:$L,5,FALSE),VLOOKUP($M45,TT_Tabelle_Riferimento!$D$127:$H$164,5,FALSE))","v":8},{"$f":"+IFERROR(VLOOKUP(OB$27&\"-\"&$M45&\"_new\",Ammortamento_Finanziario!$H:$L,5,FALSE),VLOOKUP($M45,TT_Tabelle_Riferimento!$D$127:$H$164,5,FALSE))","v":8},{"$f":"+IFERROR(VLOOKUP(OC$27&\"-\"&$M45&\"_new\",Ammortamento_Finanziario!$H:$L,5,FALSE),VLOOKUP($M45,TT_Tabelle_Riferimento!$D$127:$H$164,5,FALSE))","v":8},{"$f":"+IFERROR(VLOOKUP(OD$27&\"-\"&$M45&\"_new\",Ammortamento_Finanziario!$H:$L,5,FALSE),VLOOKUP($M45,TT_Tabelle_Riferimento!$D$127:$H$164,5,FALSE))","v":8},{"$f":"+IFERROR(VLOOKUP(OE$27&\"-\"&$M45&\"_new\",Ammortamento_Finanziario!$H:$L,5,FALSE),VLOOKUP($M45,TT_Tabelle_Riferimento!$D$127:$H$164,5,FALSE))","v":8},{"$f":"+IFERROR(VLOOKUP(OF$27&\"-\"&$M45&\"_new\",Ammortamento_Finanziario!$H:$L,5,FALSE),VLOOKUP($M45,TT_Tabelle_Riferimento!$D$127:$H$164,5,FALSE))","v":8},{"$f":"+IFERROR(VLOOKUP(OG$27&\"-\"&$M45&\"_new\",Ammortamento_Finanziario!$H:$L,5,FALSE),VLOOKUP($M45,TT_Tabelle_Riferimento!$D$127:$H$164,5,FALSE))","v":8},{"$f":"+IFERROR(VLOOKUP(OH$27&\"-\"&$M45&\"_new\",Ammortamento_Finanziario!$H:$L,5,FALSE),VLOOKUP($M45,TT_Tabelle_Riferimento!$D$127:$H$164,5,FALSE))","v":8},{"$f":"+IFERROR(VLOOKUP(OI$27&\"-\"&$M45&\"_new\",Ammortamento_Finanziario!$H:$L,5,FALSE),VLOOKUP($M45,TT_Tabelle_Riferimento!$D$127:$H$164,5,FALSE))","v":8},{"$f":"+IFERROR(VLOOKUP(OJ$27&\"-\"&$M45&\"_new\",Ammortamento_Finanziario!$H:$L,5,FALSE),VLOOKUP($M45,TT_Tabelle_Riferimento!$D$127:$H$164,5,FALSE))","v":8},{"$f":"+IFERROR(VLOOKUP(OK$27&\"-\"&$M45&\"_new\",Ammortamento_Finanziario!$H:$L,5,FALSE),VLOOKUP($M45,TT_Tabelle_Riferimento!$D$127:$H$164,5,FALSE))","v":8},{"$f":"+IFERROR(VLOOKUP(OL$27&\"-\"&$M45&\"_new\",Ammortamento_Finanziario!$H:$L,5,FALSE),VLOOKUP($M45,TT_Tabelle_Riferimento!$D$127:$H$164,5,FALSE))","v":8},{"$f":"+IFERROR(VLOOKUP(OM$27&\"-\"&$M45&\"_new\",Ammortamento_Finanziario!$H:$L,5,FALSE),VLOOKUP($M45,TT_Tabelle_Riferimento!$D$127:$H$164,5,FALSE))","v":8},{"$f":"+IFERROR(VLOOKUP(ON$27&\"-\"&$M45&\"_new\",Ammortamento_Finanziario!$H:$L,5,FALSE),VLOOKUP($M45,TT_Tabelle_Riferimento!$D$127:$H$164,5,FALSE))","v":8},{"$f":"+IFERROR(VLOOKUP(OO$27&\"-\"&$M45&\"_new\",Ammortamento_Finanziario!$H:$L,5,FALSE),VLOOKUP($M45,TT_Tabelle_Riferimento!$D$127:$H$164,5,FALSE))","v":8},{"$f":"+IFERROR(VLOOKUP(OP$27&\"-\"&$M45&\"_new\",Ammortamento_Finanziario!$H:$L,5,FALSE),VLOOKUP($M45,TT_Tabelle_Riferimento!$D$127:$H$164,5,FALSE))","v":8},{"$f":"+IFERROR(VLOOKUP(OQ$27&\"-\"&$M45&\"_new\",Ammortamento_Finanziario!$H:$L,5,FALSE),VLOOKUP($M45,TT_Tabelle_Riferimento!$D$127:$H$164,5,FALSE))","v":8},{"$f":"+IFERROR(VLOOKUP(OR$27&\"-\"&$M45&\"_new\",Ammortamento_Finanziario!$H:$L,5,FALSE),VLOOKUP($M45,TT_Tabelle_Riferimento!$D$127:$H$164,5,FALSE))","v":8},{"$f":"+IFERROR(VLOOKUP(OS$27&\"-\"&$M45&\"_new\",Ammortamento_Finanziario!$H:$L,5,FALSE),VLOOKUP($M45,TT_Tabelle_Riferimento!$D$127:$H$164,5,FALSE))","v":8},{"$f":"+IFERROR(VLOOKUP(OT$27&\"-\"&$M45&\"_new\",Ammortamento_Finanziario!$H:$L,5,FALSE),VLOOKUP($M45,TT_Tabelle_Riferimento!$D$127:$H$164,5,FALSE))","v":8},{"$f":"+IFERROR(VLOOKUP(OU$27&\"-\"&$M45&\"_new\",Ammortamento_Finanziario!$H:$L,5,FALSE),VLOOKUP($M45,TT_Tabelle_Riferimento!$D$127:$H$164,5,FALSE))","v":8},{"$f":"+IFERROR(VLOOKUP(OV$27&\"-\"&$M45&\"_new\",Ammortamento_Finanziario!$H:$L,5,FALSE),VLOOKUP($M45,TT_Tabelle_Riferimento!$D$127:$H$164,5,FALSE))","v":8},{"$f":"+IFERROR(VLOOKUP(OW$27&\"-\"&$M45&\"_new\",Ammortamento_Finanziario!$H:$L,5,FALSE),VLOOKUP($M45,TT_Tabelle_Riferimento!$D$127:$H$164,5,FALSE))","v":8},{"$f":"+IFERROR(VLOOKUP(OX$27&\"-\"&$M45&\"_new\",Ammortamento_Finanziario!$H:$L,5,FALSE),VLOOKUP($M45,TT_Tabelle_Riferimento!$D$127:$H$164,5,FALSE))","v":8},{"$f":"+IFERROR(VLOOKUP(OY$27&\"-\"&$M45&\"_new\",Ammortamento_Finanziario!$H:$L,5,FALSE),VLOOKUP($M45,TT_Tabelle_Riferimento!$D$127:$H$164,5,FALSE))","v":8},{"$f":"+IFERROR(VLOOKUP(OZ$27&\"-\"&$M45&\"_new\",Ammortamento_Finanziario!$H:$L,5,FALSE),VLOOKUP($M45,TT_Tabelle_Riferimento!$D$127:$H$164,5,FALSE))","v":8},{"$f":"+IFERROR(VLOOKUP(PA$27&\"-\"&$M45&\"_new\",Ammortamento_Finanziario!$H:$L,5,FALSE),VLOOKUP($M45,TT_Tabelle_Riferimento!$D$127:$H$164,5,FALSE))","v":8},{"$f":"+IFERROR(VLOOKUP(PB$27&\"-\"&$M45&\"_new\",Ammortamento_Finanziario!$H:$L,5,FALSE),VLOOKUP($M45,TT_Tabelle_Riferimento!$D$127:$H$164,5,FALSE))","v":8},{"$f":"+IFERROR(VLOOKUP(PC$27&\"-\"&$M45&\"_new\",Ammortamento_Finanziario!$H:$L,5,FALSE),VLOOKUP($M45,TT_Tabelle_Riferimento!$D$127:$H$164,5,FALSE))","v":8},{"$f":"+IFERROR(VLOOKUP(PD$27&\"-\"&$M45&\"_new\",Ammortamento_Finanziario!$H:$L,5,FALSE),VLOOKUP($M45,TT_Tabelle_Riferimento!$D$127:$H$164,5,FALSE))","v":8},{"$f":"+IFERROR(VLOOKUP(PE$27&\"-\"&$M45&\"_new\",Ammortamento_Finanziario!$H:$L,5,FALSE),VLOOKUP($M45,TT_Tabelle_Riferimento!$D$127:$H$164,5,FALSE))","v":8},{"$f":"+IFERROR(VLOOKUP(PF$27&\"-\"&$M45&\"_new\",Ammortamento_Finanziario!$H:$L,5,FALSE),VLOOKUP($M45,TT_Tabelle_Riferimento!$D$127:$H$164,5,FALSE))","v":8},{"$f":"+IFERROR(VLOOKUP(PG$27&\"-\"&$M45&\"_new\",Ammortamento_Finanziario!$H:$L,5,FALSE),VLOOKUP($M45,TT_Tabelle_Riferimento!$D$127:$H$164,5,FALSE))","v":8},{"$f":"+IFERROR(VLOOKUP(PH$27&\"-\"&$M45&\"_new\",Ammortamento_Finanziario!$H:$L,5,FALSE),VLOOKUP($M45,TT_Tabelle_Riferimento!$D$127:$H$164,5,FALSE))","v":8},{"$f":"+IFERROR(VLOOKUP(PI$27&\"-\"&$M45&\"_new\",Ammortamento_Finanziario!$H:$L,5,FALSE),VLOOKUP($M45,TT_Tabelle_Riferimento!$D$127:$H$164,5,FALSE))","v":8},{"$f":"+IFERROR(VLOOKUP(PJ$27&\"-\"&$M45&\"_new\",Ammortamento_Finanziario!$H:$L,5,FALSE),VLOOKUP($M45,TT_Tabelle_Riferimento!$D$127:$H$164,5,FALSE))","v":8},{"$f":"+IFERROR(VLOOKUP(PK$27&\"-\"&$M45&\"_new\",Ammortamento_Finanziario!$H:$L,5,FALSE),VLOOKUP($M45,TT_Tabelle_Riferimento!$D$127:$H$164,5,FALSE))","v":8},{"$f":"+IFERROR(VLOOKUP(PL$27&\"-\"&$M45&\"_new\",Ammortamento_Finanziario!$H:$L,5,FALSE),VLOOKUP($M45,TT_Tabelle_Riferimento!$D$127:$H$164,5,FALSE))","v":8},{"$f":"+IFERROR(VLOOKUP(PM$27&\"-\"&$M45&\"_new\",Ammortamento_Finanziario!$H:$L,5,FALSE),VLOOKUP($M45,TT_Tabelle_Riferimento!$D$127:$H$164,5,FALSE))","v":8},{"$f":"+IFERROR(VLOOKUP(PN$27&\"-\"&$M45&\"_new\",Ammortamento_Finanziario!$H:$L,5,FALSE),VLOOKUP($M45,TT_Tabelle_Riferimento!$D$127:$H$164,5,FALSE))","v":8},{"$f":"+IFERROR(VLOOKUP(PO$27&\"-\"&$M45&\"_new\",Ammortamento_Finanziario!$H:$L,5,FALSE),VLOOKUP($M45,TT_Tabelle_Riferimento!$D$127:$H$164,5,FALSE))","v":8},{"$f":"+IFERROR(VLOOKUP(PP$27&\"-\"&$M45&\"_new\",Ammortamento_Finanziario!$H:$L,5,FALSE),VLOOKUP($M45,TT_Tabelle_Riferimento!$D$127:$H$164,5,FALSE))","v":8},{"$f":"+IFERROR(VLOOKUP(PQ$27&\"-\"&$M45&\"_new\",Ammortamento_Finanziario!$H:$L,5,FALSE),VLOOKUP($M45,TT_Tabelle_Riferimento!$D$127:$H$164,5,FALSE))","v":8},{"$f":"+IFERROR(VLOOKUP(PR$27&\"-\"&$M45&\"_new\",Ammortamento_Finanziario!$H:$L,5,FALSE),VLOOKUP($M45,TT_Tabelle_Riferimento!$D$127:$H$164,5,FALSE))","v":8},{"$f":"+IFERROR(VLOOKUP(PS$27&\"-\"&$M45&\"_new\",Ammortamento_Finanziario!$H:$L,5,FALSE),VLOOKUP($M45,TT_Tabelle_Riferimento!$D$127:$H$164,5,FALSE))","v":8},{"$f":"+IFERROR(VLOOKUP(PT$27&\"-\"&$M45&\"_new\",Ammortamento_Finanziario!$H:$L,5,FALSE),VLOOKUP($M45,TT_Tabelle_Riferimento!$D$127:$H$164,5,FALSE))","v":8},{"$f":"+IFERROR(VLOOKUP(PU$27&\"-\"&$M45&\"_new\",Ammortamento_Finanziario!$H:$L,5,FALSE),VLOOKUP($M45,TT_Tabelle_Riferimento!$D$127:$H$164,5,FALSE))","v":8},{"$f":"+IFERROR(VLOOKUP(PV$27&\"-\"&$M45&\"_new\",Ammortamento_Finanziario!$H:$L,5,FALSE),VLOOKUP($M45,TT_Tabelle_Riferimento!$D$127:$H$164,5,FALSE))","v":8},{"$f":"+IFERROR(VLOOKUP(PW$27&\"-\"&$M45&\"_new\",Ammortamento_Finanziario!$H:$L,5,FALSE),VLOOKUP($M45,TT_Tabelle_Riferimento!$D$127:$H$164,5,FALSE))","v":8},{"$f":"+IFERROR(VLOOKUP(PX$27&\"-\"&$M45&\"_new\",Ammortamento_Finanziario!$H:$L,5,FALSE),VLOOKUP($M45,TT_Tabelle_Riferimento!$D$127:$H$164,5,FALSE))","v":8},{"$f":"+IFERROR(VLOOKUP(PY$27&\"-\"&$M45&\"_new\",Ammortamento_Finanziario!$H:$L,5,FALSE),VLOOKUP($M45,TT_Tabelle_Riferimento!$D$127:$H$164,5,FALSE))","v":8},{"$f":"+IFERROR(VLOOKUP(PZ$27&\"-\"&$M45&\"_new\",Ammortamento_Finanziario!$H:$L,5,FALSE),VLOOKUP($M45,TT_Tabelle_Riferimento!$D$127:$H$164,5,FALSE))","v":8},{"$f":"+IFERROR(VLOOKUP(QA$27&\"-\"&$M45&\"_new\",Ammortamento_Finanziario!$H:$L,5,FALSE),VLOOKUP($M45,TT_Tabelle_Riferimento!$D$127:$H$164,5,FALSE))","v":8},{"$f":"+IFERROR(VLOOKUP(QB$27&\"-\"&$M45&\"_new\",Ammortamento_Finanziario!$H:$L,5,FALSE),VLOOKUP($M45,TT_Tabelle_Riferimento!$D$127:$H$164,5,FALSE))","v":8},{"$f":"+IFERROR(VLOOKUP(QC$27&\"-\"&$M45&\"_new\",Ammortamento_Finanziario!$H:$L,5,FALSE),VLOOKUP($M45,TT_Tabelle_Riferimento!$D$127:$H$164,5,FALSE))","v":8},{"$f":"+IFERROR(VLOOKUP(QD$27&\"-\"&$M45&\"_new\",Ammortamento_Finanziario!$H:$L,5,FALSE),VLOOKUP($M45,TT_Tabelle_Riferimento!$D$127:$H$164,5,FALSE))","v":8},{"$f":"+IFERROR(VLOOKUP(QE$27&\"-\"&$M45&\"_new\",Ammortamento_Finanziario!$H:$L,5,FALSE),VLOOKUP($M45,TT_Tabelle_Riferimento!$D$127:$H$164,5,FALSE))","v":8},{"$f":"+IFERROR(VLOOKUP(QF$27&\"-\"&$M45&\"_new\",Ammortamento_Finanziario!$H:$L,5,FALSE),VLOOKUP($M45,TT_Tabelle_Riferimento!$D$127:$H$164,5,FALSE))","v":8},{"$f":"+IFERROR(VLOOKUP(QG$27&\"-\"&$M45&\"_new\",Ammortamento_Finanziario!$H:$L,5,FALSE),VLOOKUP($M45,TT_Tabelle_Riferimento!$D$127:$H$164,5,FALSE))","v":8},{"$f":"+IFERROR(VLOOKUP(QH$27&\"-\"&$M45&\"_new\",Ammortamento_Finanziario!$H:$L,5,FALSE),VLOOKUP($M45,TT_Tabelle_Riferimento!$D$127:$H$164,5,FALSE))","v":8},{"$f":"+IFERROR(VLOOKUP(QI$27&\"-\"&$M45&\"_new\",Ammortamento_Finanziario!$H:$L,5,FALSE),VLOOKUP($M45,TT_Tabelle_Riferimento!$D$127:$H$164,5,FALSE))","v":8},{"$f":"+IFERROR(VLOOKUP(QJ$27&\"-\"&$M45&\"_new\",Ammortamento_Finanziario!$H:$L,5,FALSE),VLOOKUP($M45,TT_Tabelle_Riferimento!$D$127:$H$164,5,FALSE))","v":8},{"$f":"+IFERROR(VLOOKUP(QK$27&\"-\"&$M45&\"_new\",Ammortamento_Finanziario!$H:$L,5,FALSE),VLOOKUP($M45,TT_Tabelle_Riferimento!$D$127:$H$164,5,FALSE))","v":8},{"$f":"+IFERROR(VLOOKUP(QL$27&\"-\"&$M45&\"_new\",Ammortamento_Finanziario!$H:$L,5,FALSE),VLOOKUP($M45,TT_Tabelle_Riferimento!$D$127:$H$164,5,FALSE))","v":8},{"$f":"+IFERROR(VLOOKUP(QM$27&\"-\"&$M45&\"_new\",Ammortamento_Finanziario!$H:$L,5,FALSE),VLOOKUP($M45,TT_Tabelle_Riferimento!$D$127:$H$164,5,FALSE))","v":8},{"$f":"+IFERROR(VLOOKUP(QN$27&\"-\"&$M45&\"_new\",Ammortamento_Finanziario!$H:$L,5,FALSE),VLOOKUP($M45,TT_Tabelle_Riferimento!$D$127:$H$164,5,FALSE))","v":8},{"$f":"+IFERROR(VLOOKUP(QO$27&\"-\"&$M45&\"_new\",Ammortamento_Finanziario!$H:$L,5,FALSE),VLOOKUP($M45,TT_Tabelle_Riferimento!$D$127:$H$164,5,FALSE))","v":8},{"$f":"+IFERROR(VLOOKUP(QP$27&\"-\"&$M45&\"_new\",Ammortamento_Finanziario!$H:$L,5,FALSE),VLOOKUP($M45,TT_Tabelle_Riferimento!$D$127:$H$164,5,FALSE))","v":8},{"$f":"+IFERROR(VLOOKUP(QQ$27&\"-\"&$M45&\"_new\",Ammortamento_Finanziario!$H:$L,5,FALSE),VLOOKUP($M45,TT_Tabelle_Riferimento!$D$127:$H$164,5,FALSE))","v":8},{"$f":"+IFERROR(VLOOKUP(QR$27&\"-\"&$M45&\"_new\",Ammortamento_Finanziario!$H:$L,5,FALSE),VLOOKUP($M45,TT_Tabelle_Riferimento!$D$127:$H$164,5,FALSE))","v":8},{"$f":"+IFERROR(VLOOKUP(QS$27&\"-\"&$M45&\"_new\",Ammortamento_Finanziario!$H:$L,5,FALSE),VLOOKUP($M45,TT_Tabelle_Riferimento!$D$127:$H$164,5,FALSE))","v":8},{"$f":"+IFERROR(VLOOKUP(QT$27&\"-\"&$M45&\"_new\",Ammortamento_Finanziario!$H:$L,5,FALSE),VLOOKUP($M45,TT_Tabelle_Riferimento!$D$127:$H$164,5,FALSE))","v":8},{"$f":"+IFERROR(VLOOKUP(QU$27&\"-\"&$M45&\"_new\",Ammortamento_Finanziario!$H:$L,5,FALSE),VLOOKUP($M45,TT_Tabelle_Riferimento!$D$127:$H$164,5,FALSE))","v":8},{"$f":"+IFERROR(VLOOKUP(QV$27&\"-\"&$M45&\"_new\",Ammortamento_Finanziario!$H:$L,5,FALSE),VLOOKUP($M45,TT_Tabelle_Riferimento!$D$127:$H$164,5,FALSE))","v":8},{"$f":"+IFERROR(VLOOKUP(QW$27&\"-\"&$M45&\"_new\",Ammortamento_Finanziario!$H:$L,5,FALSE),VLOOKUP($M45,TT_Tabelle_Riferimento!$D$127:$H$164,5,FALSE))","v":8},{"$f":"+IFERROR(VLOOKUP(QX$27&\"-\"&$M45&\"_new\",Ammortamento_Finanziario!$H:$L,5,FALSE),VLOOKUP($M45,TT_Tabelle_Riferimento!$D$127:$H$164,5,FALSE))","v":8},{"$f":"+IFERROR(VLOOKUP(QY$27&\"-\"&$M45&\"_new\",Ammortamento_Finanziario!$H:$L,5,FALSE),VLOOKUP($M45,TT_Tabelle_Riferimento!$D$127:$H$164,5,FALSE))","v":8},{"$f":"+IFERROR(VLOOKUP(QZ$27&\"-\"&$M45&\"_new\",Ammortamento_Finanziario!$H:$L,5,FALSE),VLOOKUP($M45,TT_Tabelle_Riferimento!$D$127:$H$164,5,FALSE))","v":8},{"$f":"+IFERROR(VLOOKUP(RA$27&\"-\"&$M45&\"_new\",Ammortamento_Finanziario!$H:$L,5,FALSE),VLOOKUP($M45,TT_Tabelle_Riferimento!$D$127:$H$164,5,FALSE))","v":8},{"$f":"+IFERROR(VLOOKUP(RB$27&\"-\"&$M45&\"_new\",Ammortamento_Finanziario!$H:$L,5,FALSE),VLOOKUP($M45,TT_Tabelle_Riferimento!$D$127:$H$164,5,FALSE))","v":8},{"$f":"+IFERROR(VLOOKUP(RC$27&\"-\"&$M45&\"_new\",Ammortamento_Finanziario!$H:$L,5,FALSE),VLOOKUP($M45,TT_Tabelle_Riferimento!$D$127:$H$164,5,FALSE))","v":8},{"$f":"+IFERROR(VLOOKUP(RD$27&\"-\"&$M45&\"_new\",Ammortamento_Finanziario!$H:$L,5,FALSE),VLOOKUP($M45,TT_Tabelle_Riferimento!$D$127:$H$164,5,FALSE))","v":8},{"$f":"+IFERROR(VLOOKUP(RE$27&\"-\"&$M45&\"_new\",Ammortamento_Finanziario!$H:$L,5,FALSE),VLOOKUP($M45,TT_Tabelle_Riferimento!$D$127:$H$164,5,FALSE))","v":8},{"$f":"+IFERROR(VLOOKUP(RF$27&\"-\"&$M45&\"_new\",Ammortamento_Finanziario!$H:$L,5,FALSE),VLOOKUP($M45,TT_Tabelle_Riferimento!$D$127:$H$164,5,FALSE))","v":8},{"$f":"+IFERROR(VLOOKUP(RG$27&\"-\"&$M45&\"_new\",Ammortamento_Finanziario!$H:$L,5,FALSE),VLOOKUP($M45,TT_Tabelle_Riferimento!$D$127:$H$164,5,FALSE))","v":8},{"$f":"+IFERROR(VLOOKUP(RH$27&\"-\"&$M45&\"_new\",Ammortamento_Finanziario!$H:$L,5,FALSE),VLOOKUP($M45,TT_Tabelle_Riferimento!$D$127:$H$164,5,FALSE))","v":8},{"$f":"+IFERROR(VLOOKUP(RI$27&\"-\"&$M45&\"_new\",Ammortamento_Finanziario!$H:$L,5,FALSE),VLOOKUP($M45,TT_Tabelle_Riferimento!$D$127:$H$164,5,FALSE))","v":8},{"$f":"+IFERROR(VLOOKUP(RJ$27&\"-\"&$M45&\"_new\",Ammortamento_Finanziario!$H:$L,5,FALSE),VLOOKUP($M45,TT_Tabelle_Riferimento!$D$127:$H$164,5,FALSE))","v":8},{"$f":"+IFERROR(VLOOKUP(RK$27&\"-\"&$M45&\"_new\",Ammortamento_Finanziario!$H:$L,5,FALSE),VLOOKUP($M45,TT_Tabelle_Riferimento!$D$127:$H$164,5,FALSE))","v":8},{"$f":"+IFERROR(VLOOKUP(RL$27&\"-\"&$M45&\"_new\",Ammortamento_Finanziario!$H:$L,5,FALSE),VLOOKUP($M45,TT_Tabelle_Riferimento!$D$127:$H$164,5,FALSE))","v":8},{"$f":"+IFERROR(VLOOKUP(RM$27&\"-\"&$M45&\"_new\",Ammortamento_Finanziario!$H:$L,5,FALSE),VLOOKUP($M45,TT_Tabelle_Riferimento!$D$127:$H$164,5,FALSE))","v":8},{"$f":"+IFERROR(VLOOKUP(RN$27&\"-\"&$M45&\"_new\",Ammortamento_Finanziario!$H:$L,5,FALSE),VLOOKUP($M45,TT_Tabelle_Riferimento!$D$127:$H$164,5,FALSE))","v":8},{"$f":"+IFERROR(VLOOKUP(RO$27&\"-\"&$M45&\"_new\",Ammortamento_Finanziario!$H:$L,5,FALSE),VLOOKUP($M45,TT_Tabelle_Riferimento!$D$127:$H$164,5,FALSE))","v":8},{"$f":"+IFERROR(VLOOKUP(RP$27&\"-\"&$M45&\"_new\",Ammortamento_Finanziario!$H:$L,5,FALSE),VLOOKUP($M45,TT_Tabelle_Riferimento!$D$127:$H$164,5,FALSE))","v":8},{"$f":"+IFERROR(VLOOKUP(RQ$27&\"-\"&$M45&\"_new\",Ammortamento_Finanziario!$H:$L,5,FALSE),VLOOKUP($M45,TT_Tabelle_Riferimento!$D$127:$H$164,5,FALSE))","v":8},{"$f":"+IFERROR(VLOOKUP(RR$27&\"-\"&$M45&\"_new\",Ammortamento_Finanziario!$H:$L,5,FALSE),VLOOKUP($M45,TT_Tabelle_Riferimento!$D$127:$H$164,5,FALSE))","v":8},{"$f":"+IFERROR(VLOOKUP(RS$27&\"-\"&$M45&\"_new\",Ammortamento_Finanziario!$H:$L,5,FALSE),VLOOKUP($M45,TT_Tabelle_Riferimento!$D$127:$H$164,5,FALSE))","v":8},{"$f":"+IFERROR(VLOOKUP(RT$27&\"-\"&$M45&\"_new\",Ammortamento_Finanziario!$H:$L,5,FALSE),VLOOKUP($M45,TT_Tabelle_Riferimento!$D$127:$H$164,5,FALSE))","v":8},{"$f":"+IFERROR(VLOOKUP(RU$27&\"-\"&$M45&\"_new\",Ammortamento_Finanziario!$H:$L,5,FALSE),VLOOKUP($M45,TT_Tabelle_Riferimento!$D$127:$H$164,5,FALSE))","v":8},{"$f":"+IFERROR(VLOOKUP(RV$27&\"-\"&$M45&\"_new\",Ammortamento_Finanziario!$H:$L,5,FALSE),VLOOKUP($M45,TT_Tabelle_Riferimento!$D$127:$H$164,5,FALSE))","v":8}]
[null,null,null,"CFP",{"$f":"+SUMIFS(IMN_gestore!U:U,IMN_gestore!$G:$G,\"Env\")","v":0},{"$f":"+SUMIFS(IMN_gestore!AF:AF,IMN_gestore!$G:$G,\"Env\")","v":0},{"$f":"+SUMIFS(IMN_gestore!AQ:AQ,IMN_gestore!$G:$G,\"Env\")","v":0},{"$f":"+SUMIFS(IMN_gestore!BB:BB,IMN_gestore!$G:$G,\"Env\")","v":0},{"$f":"+SUMIFS(IMN_gestore!$BM:$BM,IMN_gestore!$G:$G,\"Env\")","v":0},{"$f":"+SUMIFS(IMN_gestore!$BX:$BX,IMN_gestore!$G:$G,\"Env\")","v":0},null,null,19,0,0,0,0,0,0,0,0,0,0,0,0,0,0,0,0,0,0,0,0,0,0,0,0,0,0,0,0,0,0,0,0,0,0,0,0,0,0,0,0,0,0,0,0,0,0,0,0,0,0,0,0,0,0,0,0,0,0,0,0,0,0,0,0,0,0,0,0,0,0,0,0,0,0,0,0,0,0,0,0,0,0,0,0,0,0,0,0,0,0,0,0,0,0,0,0,0,0,0,0,0,0,0,0,0,0,0,0,0,0,0,0,0,0,0,0,0,0,0,0,0,0,0,0,0,0,0,0,0,0,0,0,0,0,0,0,0,0,0,0,0,0,0,0,0,0,0,0,0,0,0,0,0,0,0,0,0,0,0,0,0,0,0,0,0,0,0,0,0,0,0,0,0,0,0,0,0,0,0,0,0,0,0,0,0,0,0,0,0,0,0,0,0,0,0,0,0,0,0,0,0,0,0,0,0,0,0,0,0,0,0,0,0,0,0,0,0,0,0,0,0,0,0,0,0,0,0,0,0,0,0,0,0,0,0,0,0,0,0,0,0,0,0,0,0,0,0,0,0,0,0,0,0,0,0,0,0,0,0,0,0,0,0,0,0,0,0,0,0,0,0,0,0,0,0,0,0,0,0,0,0,0,0,0,0,0,0,0,0,{"$f":"+IFERROR(VLOOKUP(KQ$27&\"-\"&$M46&\"_new\",Ammortamento_Finanziario!$H:$L,5,FALSE),VLOOKUP($M46,TT_Tabelle_Riferimento!$D$127:$H$164,5,FALSE))","v":8},{"$f":"+IFERROR(VLOOKUP(KR$27&\"-\"&$M46&\"_new\",Ammortamento_Finanziario!$H:$L,5,FALSE),VLOOKUP($M46,TT_Tabelle_Riferimento!$D$127:$H$164,5,FALSE))","v":8},{"$f":"+IFERROR(VLOOKUP(KS$27&\"-\"&$M46&\"_new\",Ammortamento_Finanziario!$H:$L,5,FALSE),VLOOKUP($M46,TT_Tabelle_Riferimento!$D$127:$H$164,5,FALSE))","v":8},{"$f":"+IFERROR(VLOOKUP(KT$27&\"-\"&$M46&\"_new\",Ammortamento_Finanziario!$H:$L,5,FALSE),VLOOKUP($M46,TT_Tabelle_Riferimento!$D$127:$H$164,5,FALSE))","v":8},{"$f":"+IFERROR(VLOOKUP(KU$27&\"-\"&$M46&\"_new\",Ammortamento_Finanziario!$H:$L,5,FALSE),VLOOKUP($M46,TT_Tabelle_Riferimento!$D$127:$H$164,5,FALSE))","v":8},{"$f":"+IFERROR(VLOOKUP(KV$27&\"-\"&$M46&\"_new\",Ammortamento_Finanziario!$H:$L,5,FALSE),VLOOKUP($M46,TT_Tabelle_Riferimento!$D$127:$H$164,5,FALSE))","v":8},{"$f":"+IFERROR(VLOOKUP(KW$27&\"-\"&$M46&\"_new\",Ammortamento_Finanziario!$H:$L,5,FALSE),VLOOKUP($M46,TT_Tabelle_Riferimento!$D$127:$H$164,5,FALSE))","v":8},{"$f":"+IFERROR(VLOOKUP(KX$27&\"-\"&$M46&\"_new\",Ammortamento_Finanziario!$H:$L,5,FALSE),VLOOKUP($M46,TT_Tabelle_Riferimento!$D$127:$H$164,5,FALSE))","v":8},{"$f":"+IFERROR(VLOOKUP(KY$27&\"-\"&$M46&\"_new\",Ammortamento_Finanziario!$H:$L,5,FALSE),VLOOKUP($M46,TT_Tabelle_Riferimento!$D$127:$H$164,5,FALSE))","v":8},{"$f":"+IFERROR(VLOOKUP(KZ$27&\"-\"&$M46&\"_new\",Ammortamento_Finanziario!$H:$L,5,FALSE),VLOOKUP($M46,TT_Tabelle_Riferimento!$D$127:$H$164,5,FALSE))","v":8},{"$f":"+IFERROR(VLOOKUP(LA$27&\"-\"&$M46&\"_new\",Ammortamento_Finanziario!$H:$L,5,FALSE),VLOOKUP($M46,TT_Tabelle_Riferimento!$D$127:$H$164,5,FALSE))","v":8},{"$f":"+IFERROR(VLOOKUP(LB$27&\"-\"&$M46&\"_new\",Ammortamento_Finanziario!$H:$L,5,FALSE),VLOOKUP($M46,TT_Tabelle_Riferimento!$D$127:$H$164,5,FALSE))","v":8},{"$f":"+IFERROR(VLOOKUP(LC$27&\"-\"&$M46&\"_new\",Ammortamento_Finanziario!$H:$L,5,FALSE),VLOOKUP($M46,TT_Tabelle_Riferimento!$D$127:$H$164,5,FALSE))","v":8},{"$f":"+IFERROR(VLOOKUP(LD$27&\"-\"&$M46&\"_new\",Ammortamento_Finanziario!$H:$L,5,FALSE),VLOOKUP($M46,TT_Tabelle_Riferimento!$D$127:$H$164,5,FALSE))","v":8},{"$f":"+IFERROR(VLOOKUP(LE$27&\"-\"&$M46&\"_new\",Ammortamento_Finanziario!$H:$L,5,FALSE),VLOOKUP($M46,TT_Tabelle_Riferimento!$D$127:$H$164,5,FALSE))","v":8},{"$f":"+IFERROR(VLOOKUP(LF$27&\"-\"&$M46&\"_new\",Ammortamento_Finanziario!$H:$L,5,FALSE),VLOOKUP($M46,TT_Tabelle_Riferimento!$D$127:$H$164,5,FALSE))","v":8},{"$f":"+IFERROR(VLOOKUP(LG$27&\"-\"&$M46&\"_new\",Ammortamento_Finanziario!$H:$L,5,FALSE),VLOOKUP($M46,TT_Tabelle_Riferimento!$D$127:$H$164,5,FALSE))","v":8},{"$f":"+IFERROR(VLOOKUP(LH$27&\"-\"&$M46&\"_new\",Ammortamento_Finanziario!$H:$L,5,FALSE),VLOOKUP($M46,TT_Tabelle_Riferimento!$D$127:$H$164,5,FALSE))","v":8},{"$f":"+IFERROR(VLOOKUP(LI$27&\"-\"&$M46&\"_new\",Ammortamento_Finanziario!$H:$L,5,FALSE),VLOOKUP($M46,TT_Tabelle_Riferimento!$D$127:$H$164,5,FALSE))","v":8},{"$f":"+IFERROR(VLOOKUP(LJ$27&\"-\"&$M46&\"_new\",Ammortamento_Finanziario!$H:$L,5,FALSE),VLOOKUP($M46,TT_Tabelle_Riferimento!$D$127:$H$164,5,FALSE))","v":8},{"$f":"+IFERROR(VLOOKUP(LK$27&\"-\"&$M46&\"_new\",Ammortamento_Finanziario!$H:$L,5,FALSE),VLOOKUP($M46,TT_Tabelle_Riferimento!$D$127:$H$164,5,FALSE))","v":8},{"$f":"+IFERROR(VLOOKUP(LL$27&\"-\"&$M46&\"_new\",Ammortamento_Finanziario!$H:$L,5,FALSE),VLOOKUP($M46,TT_Tabelle_Riferimento!$D$127:$H$164,5,FALSE))","v":8},{"$f":"+IFERROR(VLOOKUP(LM$27&\"-\"&$M46&\"_new\",Ammortamento_Finanziario!$H:$L,5,FALSE),VLOOKUP($M46,TT_Tabelle_Riferimento!$D$127:$H$164,5,FALSE))","v":8},{"$f":"+IFERROR(VLOOKUP(LN$27&\"-\"&$M46&\"_new\",Ammortamento_Finanziario!$H:$L,5,FALSE),VLOOKUP($M46,TT_Tabelle_Riferimento!$D$127:$H$164,5,FALSE))","v":8},{"$f":"+IFERROR(VLOOKUP(LO$27&\"-\"&$M46&\"_new\",Ammortamento_Finanziario!$H:$L,5,FALSE),VLOOKUP($M46,TT_Tabelle_Riferimento!$D$127:$H$164,5,FALSE))","v":8},{"$f":"+IFERROR(VLOOKUP(LP$27&\"-\"&$M46&\"_new\",Ammortamento_Finanziario!$H:$L,5,FALSE),VLOOKUP($M46,TT_Tabelle_Riferimento!$D$127:$H$164,5,FALSE))","v":8},{"$f":"+IFERROR(VLOOKUP(LQ$27&\"-\"&$M46&\"_new\",Ammortamento_Finanziario!$H:$L,5,FALSE),VLOOKUP($M46,TT_Tabelle_Riferimento!$D$127:$H$164,5,FALSE))","v":8},{"$f":"+IFERROR(VLOOKUP(LR$27&\"-\"&$M46&\"_new\",Ammortamento_Finanziario!$H:$L,5,FALSE),VLOOKUP($M46,TT_Tabelle_Riferimento!$D$127:$H$164,5,FALSE))","v":8},{"$f":"+IFERROR(VLOOKUP(LS$27&\"-\"&$M46&\"_new\",Ammortamento_Finanziario!$H:$L,5,FALSE),VLOOKUP($M46,TT_Tabelle_Riferimento!$D$127:$H$164,5,FALSE))","v":8},{"$f":"+IFERROR(VLOOKUP(LT$27&\"-\"&$M46&\"_new\",Ammortamento_Finanziario!$H:$L,5,FALSE),VLOOKUP($M46,TT_Tabelle_Riferimento!$D$127:$H$164,5,FALSE))","v":8},{"$f":"+IFERROR(VLOOKUP(LU$27&\"-\"&$M46&\"_new\",Ammortamento_Finanziario!$H:$L,5,FALSE),VLOOKUP($M46,TT_Tabelle_Riferimento!$D$127:$H$164,5,FALSE))","v":8},{"$f":"+IFERROR(VLOOKUP(LV$27&\"-\"&$M46&\"_new\",Ammortamento_Finanziario!$H:$L,5,FALSE),VLOOKUP($M46,TT_Tabelle_Riferimento!$D$127:$H$164,5,FALSE))","v":8},{"$f":"+IFERROR(VLOOKUP(LW$27&\"-\"&$M46&\"_new\",Ammortamento_Finanziario!$H:$L,5,FALSE),VLOOKUP($M46,TT_Tabelle_Riferimento!$D$127:$H$164,5,FALSE))","v":8},{"$f":"+IFERROR(VLOOKUP(LX$27&\"-\"&$M46&\"_new\",Ammortamento_Finanziario!$H:$L,5,FALSE),VLOOKUP($M46,TT_Tabelle_Riferimento!$D$127:$H$164,5,FALSE))","v":8},{"$f":"+IFERROR(VLOOKUP(LY$27&\"-\"&$M46&\"_new\",Ammortamento_Finanziario!$H:$L,5,FALSE),VLOOKUP($M46,TT_Tabelle_Riferimento!$D$127:$H$164,5,FALSE))","v":8},{"$f":"+IFERROR(VLOOKUP(LZ$27&\"-\"&$M46&\"_new\",Ammortamento_Finanziario!$H:$L,5,FALSE),VLOOKUP($M46,TT_Tabelle_Riferimento!$D$127:$H$164,5,FALSE))","v":8},{"$f":"+IFERROR(VLOOKUP(MA$27&\"-\"&$M46&\"_new\",Ammortamento_Finanziario!$H:$L,5,FALSE),VLOOKUP($M46,TT_Tabelle_Riferimento!$D$127:$H$164,5,FALSE))","v":8},{"$f":"+IFERROR(VLOOKUP(MB$27&\"-\"&$M46&\"_new\",Ammortamento_Finanziario!$H:$L,5,FALSE),VLOOKUP($M46,TT_Tabelle_Riferimento!$D$127:$H$164,5,FALSE))","v":8},{"$f":"+IFERROR(VLOOKUP(MC$27&\"-\"&$M46&\"_new\",Ammortamento_Finanziario!$H:$L,5,FALSE),VLOOKUP($M46,TT_Tabelle_Riferimento!$D$127:$H$164,5,FALSE))","v":8},{"$f":"+IFERROR(VLOOKUP(MD$27&\"-\"&$M46&\"_new\",Ammortamento_Finanziario!$H:$L,5,FALSE),VLOOKUP($M46,TT_Tabelle_Riferimento!$D$127:$H$164,5,FALSE))","v":8},{"$f":"+IFERROR(VLOOKUP(ME$27&\"-\"&$M46&\"_new\",Ammortamento_Finanziario!$H:$L,5,FALSE),VLOOKUP($M46,TT_Tabelle_Riferimento!$D$127:$H$164,5,FALSE))","v":8},{"$f":"+IFERROR(VLOOKUP(MF$27&\"-\"&$M46&\"_new\",Ammortamento_Finanziario!$H:$L,5,FALSE),VLOOKUP($M46,TT_Tabelle_Riferimento!$D$127:$H$164,5,FALSE))","v":8},{"$f":"+IFERROR(VLOOKUP(MG$27&\"-\"&$M46&\"_new\",Ammortamento_Finanziario!$H:$L,5,FALSE),VLOOKUP($M46,TT_Tabelle_Riferimento!$D$127:$H$164,5,FALSE))","v":8},{"$f":"+IFERROR(VLOOKUP(MH$27&\"-\"&$M46&\"_new\",Ammortamento_Finanziario!$H:$L,5,FALSE),VLOOKUP($M46,TT_Tabelle_Riferimento!$D$127:$H$164,5,FALSE))","v":8},{"$f":"+IFERROR(VLOOKUP(MI$27&\"-\"&$M46&\"_new\",Ammortamento_Finanziario!$H:$L,5,FALSE),VLOOKUP($M46,TT_Tabelle_Riferimento!$D$127:$H$164,5,FALSE))","v":8},{"$f":"+IFERROR(VLOOKUP(MJ$27&\"-\"&$M46&\"_new\",Ammortamento_Finanziario!$H:$L,5,FALSE),VLOOKUP($M46,TT_Tabelle_Riferimento!$D$127:$H$164,5,FALSE))","v":8},{"$f":"+IFERROR(VLOOKUP(MK$27&\"-\"&$M46&\"_new\",Ammortamento_Finanziario!$H:$L,5,FALSE),VLOOKUP($M46,TT_Tabelle_Riferimento!$D$127:$H$164,5,FALSE))","v":8},{"$f":"+IFERROR(VLOOKUP(ML$27&\"-\"&$M46&\"_new\",Ammortamento_Finanziario!$H:$L,5,FALSE),VLOOKUP($M46,TT_Tabelle_Riferimento!$D$127:$H$164,5,FALSE))","v":8},{"$f":"+IFERROR(VLOOKUP(MM$27&\"-\"&$M46&\"_new\",Ammortamento_Finanziario!$H:$L,5,FALSE),VLOOKUP($M46,TT_Tabelle_Riferimento!$D$127:$H$164,5,FALSE))","v":8},{"$f":"+IFERROR(VLOOKUP(MN$27&\"-\"&$M46&\"_new\",Ammortamento_Finanziario!$H:$L,5,FALSE),VLOOKUP($M46,TT_Tabelle_Riferimento!$D$127:$H$164,5,FALSE))","v":8},{"$f":"+IFERROR(VLOOKUP(MO$27&\"-\"&$M46&\"_new\",Ammortamento_Finanziario!$H:$L,5,FALSE),VLOOKUP($M46,TT_Tabelle_Riferimento!$D$127:$H$164,5,FALSE))","v":8},{"$f":"+IFERROR(VLOOKUP(MP$27&\"-\"&$M46&\"_new\",Ammortamento_Finanziario!$H:$L,5,FALSE),VLOOKUP($M46,TT_Tabelle_Riferimento!$D$127:$H$164,5,FALSE))","v":8},{"$f":"+IFERROR(VLOOKUP(MQ$27&\"-\"&$M46&\"_new\",Ammortamento_Finanziario!$H:$L,5,FALSE),VLOOKUP($M46,TT_Tabelle_Riferimento!$D$127:$H$164,5,FALSE))","v":8},{"$f":"+IFERROR(VLOOKUP(MR$27&\"-\"&$M46&\"_new\",Ammortamento_Finanziario!$H:$L,5,FALSE),VLOOKUP($M46,TT_Tabelle_Riferimento!$D$127:$H$164,5,FALSE))","v":8},{"$f":"+IFERROR(VLOOKUP(MS$27&\"-\"&$M46&\"_new\",Ammortamento_Finanziario!$H:$L,5,FALSE),VLOOKUP($M46,TT_Tabelle_Riferimento!$D$127:$H$164,5,FALSE))","v":8},{"$f":"+IFERROR(VLOOKUP(MT$27&\"-\"&$M46&\"_new\",Ammortamento_Finanziario!$H:$L,5,FALSE),VLOOKUP($M46,TT_Tabelle_Riferimento!$D$127:$H$164,5,FALSE))","v":8},{"$f":"+IFERROR(VLOOKUP(MU$27&\"-\"&$M46&\"_new\",Ammortamento_Finanziario!$H:$L,5,FALSE),VLOOKUP($M46,TT_Tabelle_Riferimento!$D$127:$H$164,5,FALSE))","v":8},{"$f":"+IFERROR(VLOOKUP(MV$27&\"-\"&$M46&\"_new\",Ammortamento_Finanziario!$H:$L,5,FALSE),VLOOKUP($M46,TT_Tabelle_Riferimento!$D$127:$H$164,5,FALSE))","v":8},{"$f":"+IFERROR(VLOOKUP(MW$27&\"-\"&$M46&\"_new\",Ammortamento_Finanziario!$H:$L,5,FALSE),VLOOKUP($M46,TT_Tabelle_Riferimento!$D$127:$H$164,5,FALSE))","v":8},{"$f":"+IFERROR(VLOOKUP(MX$27&\"-\"&$M46&\"_new\",Ammortamento_Finanziario!$H:$L,5,FALSE),VLOOKUP($M46,TT_Tabelle_Riferimento!$D$127:$H$164,5,FALSE))","v":8},{"$f":"+IFERROR(VLOOKUP(MY$27&\"-\"&$M46&\"_new\",Ammortamento_Finanziario!$H:$L,5,FALSE),VLOOKUP($M46,TT_Tabelle_Riferimento!$D$127:$H$164,5,FALSE))","v":8},{"$f":"+IFERROR(VLOOKUP(MZ$27&\"-\"&$M46&\"_new\",Ammortamento_Finanziario!$H:$L,5,FALSE),VLOOKUP($M46,TT_Tabelle_Riferimento!$D$127:$H$164,5,FALSE))","v":8},{"$f":"+IFERROR(VLOOKUP(NA$27&\"-\"&$M46&\"_new\",Ammortamento_Finanziario!$H:$L,5,FALSE),VLOOKUP($M46,TT_Tabelle_Riferimento!$D$127:$H$164,5,FALSE))","v":8},{"$f":"+IFERROR(VLOOKUP(NB$27&\"-\"&$M46&\"_new\",Ammortamento_Finanziario!$H:$L,5,FALSE),VLOOKUP($M46,TT_Tabelle_Riferimento!$D$127:$H$164,5,FALSE))","v":8},{"$f":"+IFERROR(VLOOKUP(NC$27&\"-\"&$M46&\"_new\",Ammortamento_Finanziario!$H:$L,5,FALSE),VLOOKUP($M46,TT_Tabelle_Riferimento!$D$127:$H$164,5,FALSE))","v":8},{"$f":"+IFERROR(VLOOKUP(ND$27&\"-\"&$M46&\"_new\",Ammortamento_Finanziario!$H:$L,5,FALSE),VLOOKUP($M46,TT_Tabelle_Riferimento!$D$127:$H$164,5,FALSE))","v":8},{"$f":"+IFERROR(VLOOKUP(NE$27&\"-\"&$M46&\"_new\",Ammortamento_Finanziario!$H:$L,5,FALSE),VLOOKUP($M46,TT_Tabelle_Riferimento!$D$127:$H$164,5,FALSE))","v":8},{"$f":"+IFERROR(VLOOKUP(NF$27&\"-\"&$M46&\"_new\",Ammortamento_Finanziario!$H:$L,5,FALSE),VLOOKUP($M46,TT_Tabelle_Riferimento!$D$127:$H$164,5,FALSE))","v":8},{"$f":"+IFERROR(VLOOKUP(NG$27&\"-\"&$M46&\"_new\",Ammortamento_Finanziario!$H:$L,5,FALSE),VLOOKUP($M46,TT_Tabelle_Riferimento!$D$127:$H$164,5,FALSE))","v":8},{"$f":"+IFERROR(VLOOKUP(NH$27&\"-\"&$M46&\"_new\",Ammortamento_Finanziario!$H:$L,5,FALSE),VLOOKUP($M46,TT_Tabelle_Riferimento!$D$127:$H$164,5,FALSE))","v":8},{"$f":"+IFERROR(VLOOKUP(NI$27&\"-\"&$M46&\"_new\",Ammortamento_Finanziario!$H:$L,5,FALSE),VLOOKUP($M46,TT_Tabelle_Riferimento!$D$127:$H$164,5,FALSE))","v":8},{"$f":"+IFERROR(VLOOKUP(NJ$27&\"-\"&$M46&\"_new\",Ammortamento_Finanziario!$H:$L,5,FALSE),VLOOKUP($M46,TT_Tabelle_Riferimento!$D$127:$H$164,5,FALSE))","v":8},{"$f":"+IFERROR(VLOOKUP(NK$27&\"-\"&$M46&\"_new\",Ammortamento_Finanziario!$H:$L,5,FALSE),VLOOKUP($M46,TT_Tabelle_Riferimento!$D$127:$H$164,5,FALSE))","v":8},{"$f":"+IFERROR(VLOOKUP(NL$27&\"-\"&$M46&\"_new\",Ammortamento_Finanziario!$H:$L,5,FALSE),VLOOKUP($M46,TT_Tabelle_Riferimento!$D$127:$H$164,5,FALSE))","v":8},{"$f":"+IFERROR(VLOOKUP(NM$27&\"-\"&$M46&\"_new\",Ammortamento_Finanziario!$H:$L,5,FALSE),VLOOKUP($M46,TT_Tabelle_Riferimento!$D$127:$H$164,5,FALSE))","v":8},{"$f":"+IFERROR(VLOOKUP(NN$27&\"-\"&$M46&\"_new\",Ammortamento_Finanziario!$H:$L,5,FALSE),VLOOKUP($M46,TT_Tabelle_Riferimento!$D$127:$H$164,5,FALSE))","v":8},{"$f":"+IFERROR(VLOOKUP(NO$27&\"-\"&$M46&\"_new\",Ammortamento_Finanziario!$H:$L,5,FALSE),VLOOKUP($M46,TT_Tabelle_Riferimento!$D$127:$H$164,5,FALSE))","v":8},{"$f":"+IFERROR(VLOOKUP(NP$27&\"-\"&$M46&\"_new\",Ammortamento_Finanziario!$H:$L,5,FALSE),VLOOKUP($M46,TT_Tabelle_Riferimento!$D$127:$H$164,5,FALSE))","v":8},{"$f":"+IFERROR(VLOOKUP(NQ$27&\"-\"&$M46&\"_new\",Ammortamento_Finanziario!$H:$L,5,FALSE),VLOOKUP($M46,TT_Tabelle_Riferimento!$D$127:$H$164,5,FALSE))","v":8},{"$f":"+IFERROR(VLOOKUP(NR$27&\"-\"&$M46&\"_new\",Ammortamento_Finanziario!$H:$L,5,FALSE),VLOOKUP($M46,TT_Tabelle_Riferimento!$D$127:$H$164,5,FALSE))","v":8},{"$f":"+IFERROR(VLOOKUP(NS$27&\"-\"&$M46&\"_new\",Ammortamento_Finanziario!$H:$L,5,FALSE),VLOOKUP($M46,TT_Tabelle_Riferimento!$D$127:$H$164,5,FALSE))","v":8},{"$f":"+IFERROR(VLOOKUP(NT$27&\"-\"&$M46&\"_new\",Ammortamento_Finanziario!$H:$L,5,FALSE),VLOOKUP($M46,TT_Tabelle_Riferimento!$D$127:$H$164,5,FALSE))","v":8},{"$f":"+IFERROR(VLOOKUP(NU$27&\"-\"&$M46&\"_new\",Ammortamento_Finanziario!$H:$L,5,FALSE),VLOOKUP($M46,TT_Tabelle_Riferimento!$D$127:$H$164,5,FALSE))","v":8},{"$f":"+IFERROR(VLOOKUP(NV$27&\"-\"&$M46&\"_new\",Ammortamento_Finanziario!$H:$L,5,FALSE),VLOOKUP($M46,TT_Tabelle_Riferimento!$D$127:$H$164,5,FALSE))","v":8},{"$f":"+IFERROR(VLOOKUP(NW$27&\"-\"&$M46&\"_new\",Ammortamento_Finanziario!$H:$L,5,FALSE),VLOOKUP($M46,TT_Tabelle_Riferimento!$D$127:$H$164,5,FALSE))","v":8},{"$f":"+IFERROR(VLOOKUP(NX$27&\"-\"&$M46&\"_new\",Ammortamento_Finanziario!$H:$L,5,FALSE),VLOOKUP($M46,TT_Tabelle_Riferimento!$D$127:$H$164,5,FALSE))","v":8},{"$f":"+IFERROR(VLOOKUP(NY$27&\"-\"&$M46&\"_new\",Ammortamento_Finanziario!$H:$L,5,FALSE),VLOOKUP($M46,TT_Tabelle_Riferimento!$D$127:$H$164,5,FALSE))","v":8},{"$f":"+IFERROR(VLOOKUP(NZ$27&\"-\"&$M46&\"_new\",Ammortamento_Finanziario!$H:$L,5,FALSE),VLOOKUP($M46,TT_Tabelle_Riferimento!$D$127:$H$164,5,FALSE))","v":8},{"$f":"+IFERROR(VLOOKUP(OA$27&\"-\"&$M46&\"_new\",Ammortamento_Finanziario!$H:$L,5,FALSE),VLOOKUP($M46,TT_Tabelle_Riferimento!$D$127:$H$164,5,FALSE))","v":8},{"$f":"+IFERROR(VLOOKUP(OB$27&\"-\"&$M46&\"_new\",Ammortamento_Finanziario!$H:$L,5,FALSE),VLOOKUP($M46,TT_Tabelle_Riferimento!$D$127:$H$164,5,FALSE))","v":8},{"$f":"+IFERROR(VLOOKUP(OC$27&\"-\"&$M46&\"_new\",Ammortamento_Finanziario!$H:$L,5,FALSE),VLOOKUP($M46,TT_Tabelle_Riferimento!$D$127:$H$164,5,FALSE))","v":8},{"$f":"+IFERROR(VLOOKUP(OD$27&\"-\"&$M46&\"_new\",Ammortamento_Finanziario!$H:$L,5,FALSE),VLOOKUP($M46,TT_Tabelle_Riferimento!$D$127:$H$164,5,FALSE))","v":8},{"$f":"+IFERROR(VLOOKUP(OE$27&\"-\"&$M46&\"_new\",Ammortamento_Finanziario!$H:$L,5,FALSE),VLOOKUP($M46,TT_Tabelle_Riferimento!$D$127:$H$164,5,FALSE))","v":8},{"$f":"+IFERROR(VLOOKUP(OF$27&\"-\"&$M46&\"_new\",Ammortamento_Finanziario!$H:$L,5,FALSE),VLOOKUP($M46,TT_Tabelle_Riferimento!$D$127:$H$164,5,FALSE))","v":8},{"$f":"+IFERROR(VLOOKUP(OG$27&\"-\"&$M46&\"_new\",Ammortamento_Finanziario!$H:$L,5,FALSE),VLOOKUP($M46,TT_Tabelle_Riferimento!$D$127:$H$164,5,FALSE))","v":8},{"$f":"+IFERROR(VLOOKUP(OH$27&\"-\"&$M46&\"_new\",Ammortamento_Finanziario!$H:$L,5,FALSE),VLOOKUP($M46,TT_Tabelle_Riferimento!$D$127:$H$164,5,FALSE))","v":8},{"$f":"+IFERROR(VLOOKUP(OI$27&\"-\"&$M46&\"_new\",Ammortamento_Finanziario!$H:$L,5,FALSE),VLOOKUP($M46,TT_Tabelle_Riferimento!$D$127:$H$164,5,FALSE))","v":8},{"$f":"+IFERROR(VLOOKUP(OJ$27&\"-\"&$M46&\"_new\",Ammortamento_Finanziario!$H:$L,5,FALSE),VLOOKUP($M46,TT_Tabelle_Riferimento!$D$127:$H$164,5,FALSE))","v":8},{"$f":"+IFERROR(VLOOKUP(OK$27&\"-\"&$M46&\"_new\",Ammortamento_Finanziario!$H:$L,5,FALSE),VLOOKUP($M46,TT_Tabelle_Riferimento!$D$127:$H$164,5,FALSE))","v":8},{"$f":"+IFERROR(VLOOKUP(OL$27&\"-\"&$M46&\"_new\",Ammortamento_Finanziario!$H:$L,5,FALSE),VLOOKUP($M46,TT_Tabelle_Riferimento!$D$127:$H$164,5,FALSE))","v":8},{"$f":"+IFERROR(VLOOKUP(OM$27&\"-\"&$M46&\"_new\",Ammortamento_Finanziario!$H:$L,5,FALSE),VLOOKUP($M46,TT_Tabelle_Riferimento!$D$127:$H$164,5,FALSE))","v":8},{"$f":"+IFERROR(VLOOKUP(ON$27&\"-\"&$M46&\"_new\",Ammortamento_Finanziario!$H:$L,5,FALSE),VLOOKUP($M46,TT_Tabelle_Riferimento!$D$127:$H$164,5,FALSE))","v":8},{"$f":"+IFERROR(VLOOKUP(OO$27&\"-\"&$M46&\"_new\",Ammortamento_Finanziario!$H:$L,5,FALSE),VLOOKUP($M46,TT_Tabelle_Riferimento!$D$127:$H$164,5,FALSE))","v":8},{"$f":"+IFERROR(VLOOKUP(OP$27&\"-\"&$M46&\"_new\",Ammortamento_Finanziario!$H:$L,5,FALSE),VLOOKUP($M46,TT_Tabelle_Riferimento!$D$127:$H$164,5,FALSE))","v":8},{"$f":"+IFERROR(VLOOKUP(OQ$27&\"-\"&$M46&\"_new\",Ammortamento_Finanziario!$H:$L,5,FALSE),VLOOKUP($M46,TT_Tabelle_Riferimento!$D$127:$H$164,5,FALSE))","v":8},{"$f":"+IFERROR(VLOOKUP(OR$27&\"-\"&$M46&\"_new\",Ammortamento_Finanziario!$H:$L,5,FALSE),VLOOKUP($M46,TT_Tabelle_Riferimento!$D$127:$H$164,5,FALSE))","v":8},{"$f":"+IFERROR(VLOOKUP(OS$27&\"-\"&$M46&\"_new\",Ammortamento_Finanziario!$H:$L,5,FALSE),VLOOKUP($M46,TT_Tabelle_Riferimento!$D$127:$H$164,5,FALSE))","v":8},{"$f":"+IFERROR(VLOOKUP(OT$27&\"-\"&$M46&\"_new\",Ammortamento_Finanziario!$H:$L,5,FALSE),VLOOKUP($M46,TT_Tabelle_Riferimento!$D$127:$H$164,5,FALSE))","v":8},{"$f":"+IFERROR(VLOOKUP(OU$27&\"-\"&$M46&\"_new\",Ammortamento_Finanziario!$H:$L,5,FALSE),VLOOKUP($M46,TT_Tabelle_Riferimento!$D$127:$H$164,5,FALSE))","v":8},{"$f":"+IFERROR(VLOOKUP(OV$27&\"-\"&$M46&\"_new\",Ammortamento_Finanziario!$H:$L,5,FALSE),VLOOKUP($M46,TT_Tabelle_Riferimento!$D$127:$H$164,5,FALSE))","v":8},{"$f":"+IFERROR(VLOOKUP(OW$27&\"-\"&$M46&\"_new\",Ammortamento_Finanziario!$H:$L,5,FALSE),VLOOKUP($M46,TT_Tabelle_Riferimento!$D$127:$H$164,5,FALSE))","v":8},{"$f":"+IFERROR(VLOOKUP(OX$27&\"-\"&$M46&\"_new\",Ammortamento_Finanziario!$H:$L,5,FALSE),VLOOKUP($M46,TT_Tabelle_Riferimento!$D$127:$H$164,5,FALSE))","v":8},{"$f":"+IFERROR(VLOOKUP(OY$27&\"-\"&$M46&\"_new\",Ammortamento_Finanziario!$H:$L,5,FALSE),VLOOKUP($M46,TT_Tabelle_Riferimento!$D$127:$H$164,5,FALSE))","v":8},{"$f":"+IFERROR(VLOOKUP(OZ$27&\"-\"&$M46&\"_new\",Ammortamento_Finanziario!$H:$L,5,FALSE),VLOOKUP($M46,TT_Tabelle_Riferimento!$D$127:$H$164,5,FALSE))","v":8},{"$f":"+IFERROR(VLOOKUP(PA$27&\"-\"&$M46&\"_new\",Ammortamento_Finanziario!$H:$L,5,FALSE),VLOOKUP($M46,TT_Tabelle_Riferimento!$D$127:$H$164,5,FALSE))","v":8},{"$f":"+IFERROR(VLOOKUP(PB$27&\"-\"&$M46&\"_new\",Ammortamento_Finanziario!$H:$L,5,FALSE),VLOOKUP($M46,TT_Tabelle_Riferimento!$D$127:$H$164,5,FALSE))","v":8},{"$f":"+IFERROR(VLOOKUP(PC$27&\"-\"&$M46&\"_new\",Ammortamento_Finanziario!$H:$L,5,FALSE),VLOOKUP($M46,TT_Tabelle_Riferimento!$D$127:$H$164,5,FALSE))","v":8},{"$f":"+IFERROR(VLOOKUP(PD$27&\"-\"&$M46&\"_new\",Ammortamento_Finanziario!$H:$L,5,FALSE),VLOOKUP($M46,TT_Tabelle_Riferimento!$D$127:$H$164,5,FALSE))","v":8},{"$f":"+IFERROR(VLOOKUP(PE$27&\"-\"&$M46&\"_new\",Ammortamento_Finanziario!$H:$L,5,FALSE),VLOOKUP($M46,TT_Tabelle_Riferimento!$D$127:$H$164,5,FALSE))","v":8},{"$f":"+IFERROR(VLOOKUP(PF$27&\"-\"&$M46&\"_new\",Ammortamento_Finanziario!$H:$L,5,FALSE),VLOOKUP($M46,TT_Tabelle_Riferimento!$D$127:$H$164,5,FALSE))","v":8},{"$f":"+IFERROR(VLOOKUP(PG$27&\"-\"&$M46&\"_new\",Ammortamento_Finanziario!$H:$L,5,FALSE),VLOOKUP($M46,TT_Tabelle_Riferimento!$D$127:$H$164,5,FALSE))","v":8},{"$f":"+IFERROR(VLOOKUP(PH$27&\"-\"&$M46&\"_new\",Ammortamento_Finanziario!$H:$L,5,FALSE),VLOOKUP($M46,TT_Tabelle_Riferimento!$D$127:$H$164,5,FALSE))","v":8},{"$f":"+IFERROR(VLOOKUP(PI$27&\"-\"&$M46&\"_new\",Ammortamento_Finanziario!$H:$L,5,FALSE),VLOOKUP($M46,TT_Tabelle_Riferimento!$D$127:$H$164,5,FALSE))","v":8},{"$f":"+IFERROR(VLOOKUP(PJ$27&\"-\"&$M46&\"_new\",Ammortamento_Finanziario!$H:$L,5,FALSE),VLOOKUP($M46,TT_Tabelle_Riferimento!$D$127:$H$164,5,FALSE))","v":8},{"$f":"+IFERROR(VLOOKUP(PK$27&\"-\"&$M46&\"_new\",Ammortamento_Finanziario!$H:$L,5,FALSE),VLOOKUP($M46,TT_Tabelle_Riferimento!$D$127:$H$164,5,FALSE))","v":8},{"$f":"+IFERROR(VLOOKUP(PL$27&\"-\"&$M46&\"_new\",Ammortamento_Finanziario!$H:$L,5,FALSE),VLOOKUP($M46,TT_Tabelle_Riferimento!$D$127:$H$164,5,FALSE))","v":8},{"$f":"+IFERROR(VLOOKUP(PM$27&\"-\"&$M46&\"_new\",Ammortamento_Finanziario!$H:$L,5,FALSE),VLOOKUP($M46,TT_Tabelle_Riferimento!$D$127:$H$164,5,FALSE))","v":8},{"$f":"+IFERROR(VLOOKUP(PN$27&\"-\"&$M46&\"_new\",Ammortamento_Finanziario!$H:$L,5,FALSE),VLOOKUP($M46,TT_Tabelle_Riferimento!$D$127:$H$164,5,FALSE))","v":8},{"$f":"+IFERROR(VLOOKUP(PO$27&\"-\"&$M46&\"_new\",Ammortamento_Finanziario!$H:$L,5,FALSE),VLOOKUP($M46,TT_Tabelle_Riferimento!$D$127:$H$164,5,FALSE))","v":8},{"$f":"+IFERROR(VLOOKUP(PP$27&\"-\"&$M46&\"_new\",Ammortamento_Finanziario!$H:$L,5,FALSE),VLOOKUP($M46,TT_Tabelle_Riferimento!$D$127:$H$164,5,FALSE))","v":8},{"$f":"+IFERROR(VLOOKUP(PQ$27&\"-\"&$M46&\"_new\",Ammortamento_Finanziario!$H:$L,5,FALSE),VLOOKUP($M46,TT_Tabelle_Riferimento!$D$127:$H$164,5,FALSE))","v":8},{"$f":"+IFERROR(VLOOKUP(PR$27&\"-\"&$M46&\"_new\",Ammortamento_Finanziario!$H:$L,5,FALSE),VLOOKUP($M46,TT_Tabelle_Riferimento!$D$127:$H$164,5,FALSE))","v":8},{"$f":"+IFERROR(VLOOKUP(PS$27&\"-\"&$M46&\"_new\",Ammortamento_Finanziario!$H:$L,5,FALSE),VLOOKUP($M46,TT_Tabelle_Riferimento!$D$127:$H$164,5,FALSE))","v":8},{"$f":"+IFERROR(VLOOKUP(PT$27&\"-\"&$M46&\"_new\",Ammortamento_Finanziario!$H:$L,5,FALSE),VLOOKUP($M46,TT_Tabelle_Riferimento!$D$127:$H$164,5,FALSE))","v":8},{"$f":"+IFERROR(VLOOKUP(PU$27&\"-\"&$M46&\"_new\",Ammortamento_Finanziario!$H:$L,5,FALSE),VLOOKUP($M46,TT_Tabelle_Riferimento!$D$127:$H$164,5,FALSE))","v":8},{"$f":"+IFERROR(VLOOKUP(PV$27&\"-\"&$M46&\"_new\",Ammortamento_Finanziario!$H:$L,5,FALSE),VLOOKUP($M46,TT_Tabelle_Riferimento!$D$127:$H$164,5,FALSE))","v":8},{"$f":"+IFERROR(VLOOKUP(PW$27&\"-\"&$M46&\"_new\",Ammortamento_Finanziario!$H:$L,5,FALSE),VLOOKUP($M46,TT_Tabelle_Riferimento!$D$127:$H$164,5,FALSE))","v":8},{"$f":"+IFERROR(VLOOKUP(PX$27&\"-\"&$M46&\"_new\",Ammortamento_Finanziario!$H:$L,5,FALSE),VLOOKUP($M46,TT_Tabelle_Riferimento!$D$127:$H$164,5,FALSE))","v":8},{"$f":"+IFERROR(VLOOKUP(PY$27&\"-\"&$M46&\"_new\",Ammortamento_Finanziario!$H:$L,5,FALSE),VLOOKUP($M46,TT_Tabelle_Riferimento!$D$127:$H$164,5,FALSE))","v":8},{"$f":"+IFERROR(VLOOKUP(PZ$27&\"-\"&$M46&\"_new\",Ammortamento_Finanziario!$H:$L,5,FALSE),VLOOKUP($M46,TT_Tabelle_Riferimento!$D$127:$H$164,5,FALSE))","v":8},{"$f":"+IFERROR(VLOOKUP(QA$27&\"-\"&$M46&\"_new\",Ammortamento_Finanziario!$H:$L,5,FALSE),VLOOKUP($M46,TT_Tabelle_Riferimento!$D$127:$H$164,5,FALSE))","v":8},{"$f":"+IFERROR(VLOOKUP(QB$27&\"-\"&$M46&\"_new\",Ammortamento_Finanziario!$H:$L,5,FALSE),VLOOKUP($M46,TT_Tabelle_Riferimento!$D$127:$H$164,5,FALSE))","v":8},{"$f":"+IFERROR(VLOOKUP(QC$27&\"-\"&$M46&\"_new\",Ammortamento_Finanziario!$H:$L,5,FALSE),VLOOKUP($M46,TT_Tabelle_Riferimento!$D$127:$H$164,5,FALSE))","v":8},{"$f":"+IFERROR(VLOOKUP(QD$27&\"-\"&$M46&\"_new\",Ammortamento_Finanziario!$H:$L,5,FALSE),VLOOKUP($M46,TT_Tabelle_Riferimento!$D$127:$H$164,5,FALSE))","v":8},{"$f":"+IFERROR(VLOOKUP(QE$27&\"-\"&$M46&\"_new\",Ammortamento_Finanziario!$H:$L,5,FALSE),VLOOKUP($M46,TT_Tabelle_Riferimento!$D$127:$H$164,5,FALSE))","v":8},{"$f":"+IFERROR(VLOOKUP(QF$27&\"-\"&$M46&\"_new\",Ammortamento_Finanziario!$H:$L,5,FALSE),VLOOKUP($M46,TT_Tabelle_Riferimento!$D$127:$H$164,5,FALSE))","v":8},{"$f":"+IFERROR(VLOOKUP(QG$27&\"-\"&$M46&\"_new\",Ammortamento_Finanziario!$H:$L,5,FALSE),VLOOKUP($M46,TT_Tabelle_Riferimento!$D$127:$H$164,5,FALSE))","v":8},{"$f":"+IFERROR(VLOOKUP(QH$27&\"-\"&$M46&\"_new\",Ammortamento_Finanziario!$H:$L,5,FALSE),VLOOKUP($M46,TT_Tabelle_Riferimento!$D$127:$H$164,5,FALSE))","v":8},{"$f":"+IFERROR(VLOOKUP(QI$27&\"-\"&$M46&\"_new\",Ammortamento_Finanziario!$H:$L,5,FALSE),VLOOKUP($M46,TT_Tabelle_Riferimento!$D$127:$H$164,5,FALSE))","v":8},{"$f":"+IFERROR(VLOOKUP(QJ$27&\"-\"&$M46&\"_new\",Ammortamento_Finanziario!$H:$L,5,FALSE),VLOOKUP($M46,TT_Tabelle_Riferimento!$D$127:$H$164,5,FALSE))","v":8},{"$f":"+IFERROR(VLOOKUP(QK$27&\"-\"&$M46&\"_new\",Ammortamento_Finanziario!$H:$L,5,FALSE),VLOOKUP($M46,TT_Tabelle_Riferimento!$D$127:$H$164,5,FALSE))","v":8},{"$f":"+IFERROR(VLOOKUP(QL$27&\"-\"&$M46&\"_new\",Ammortamento_Finanziario!$H:$L,5,FALSE),VLOOKUP($M46,TT_Tabelle_Riferimento!$D$127:$H$164,5,FALSE))","v":8},{"$f":"+IFERROR(VLOOKUP(QM$27&\"-\"&$M46&\"_new\",Ammortamento_Finanziario!$H:$L,5,FALSE),VLOOKUP($M46,TT_Tabelle_Riferimento!$D$127:$H$164,5,FALSE))","v":8},{"$f":"+IFERROR(VLOOKUP(QN$27&\"-\"&$M46&\"_new\",Ammortamento_Finanziario!$H:$L,5,FALSE),VLOOKUP($M46,TT_Tabelle_Riferimento!$D$127:$H$164,5,FALSE))","v":8},{"$f":"+IFERROR(VLOOKUP(QO$27&\"-\"&$M46&\"_new\",Ammortamento_Finanziario!$H:$L,5,FALSE),VLOOKUP($M46,TT_Tabelle_Riferimento!$D$127:$H$164,5,FALSE))","v":8},{"$f":"+IFERROR(VLOOKUP(QP$27&\"-\"&$M46&\"_new\",Ammortamento_Finanziario!$H:$L,5,FALSE),VLOOKUP($M46,TT_Tabelle_Riferimento!$D$127:$H$164,5,FALSE))","v":8},{"$f":"+IFERROR(VLOOKUP(QQ$27&\"-\"&$M46&\"_new\",Ammortamento_Finanziario!$H:$L,5,FALSE),VLOOKUP($M46,TT_Tabelle_Riferimento!$D$127:$H$164,5,FALSE))","v":8},{"$f":"+IFERROR(VLOOKUP(QR$27&\"-\"&$M46&\"_new\",Ammortamento_Finanziario!$H:$L,5,FALSE),VLOOKUP($M46,TT_Tabelle_Riferimento!$D$127:$H$164,5,FALSE))","v":8},{"$f":"+IFERROR(VLOOKUP(QS$27&\"-\"&$M46&\"_new\",Ammortamento_Finanziario!$H:$L,5,FALSE),VLOOKUP($M46,TT_Tabelle_Riferimento!$D$127:$H$164,5,FALSE))","v":8},{"$f":"+IFERROR(VLOOKUP(QT$27&\"-\"&$M46&\"_new\",Ammortamento_Finanziario!$H:$L,5,FALSE),VLOOKUP($M46,TT_Tabelle_Riferimento!$D$127:$H$164,5,FALSE))","v":8},{"$f":"+IFERROR(VLOOKUP(QU$27&\"-\"&$M46&\"_new\",Ammortamento_Finanziario!$H:$L,5,FALSE),VLOOKUP($M46,TT_Tabelle_Riferimento!$D$127:$H$164,5,FALSE))","v":8},{"$f":"+IFERROR(VLOOKUP(QV$27&\"-\"&$M46&\"_new\",Ammortamento_Finanziario!$H:$L,5,FALSE),VLOOKUP($M46,TT_Tabelle_Riferimento!$D$127:$H$164,5,FALSE))","v":8},{"$f":"+IFERROR(VLOOKUP(QW$27&\"-\"&$M46&\"_new\",Ammortamento_Finanziario!$H:$L,5,FALSE),VLOOKUP($M46,TT_Tabelle_Riferimento!$D$127:$H$164,5,FALSE))","v":8},{"$f":"+IFERROR(VLOOKUP(QX$27&\"-\"&$M46&\"_new\",Ammortamento_Finanziario!$H:$L,5,FALSE),VLOOKUP($M46,TT_Tabelle_Riferimento!$D$127:$H$164,5,FALSE))","v":8},{"$f":"+IFERROR(VLOOKUP(QY$27&\"-\"&$M46&\"_new\",Ammortamento_Finanziario!$H:$L,5,FALSE),VLOOKUP($M46,TT_Tabelle_Riferimento!$D$127:$H$164,5,FALSE))","v":8},{"$f":"+IFERROR(VLOOKUP(QZ$27&\"-\"&$M46&\"_new\",Ammortamento_Finanziario!$H:$L,5,FALSE),VLOOKUP($M46,TT_Tabelle_Riferimento!$D$127:$H$164,5,FALSE))","v":8},{"$f":"+IFERROR(VLOOKUP(RA$27&\"-\"&$M46&\"_new\",Ammortamento_Finanziario!$H:$L,5,FALSE),VLOOKUP($M46,TT_Tabelle_Riferimento!$D$127:$H$164,5,FALSE))","v":8},{"$f":"+IFERROR(VLOOKUP(RB$27&\"-\"&$M46&\"_new\",Ammortamento_Finanziario!$H:$L,5,FALSE),VLOOKUP($M46,TT_Tabelle_Riferimento!$D$127:$H$164,5,FALSE))","v":8},{"$f":"+IFERROR(VLOOKUP(RC$27&\"-\"&$M46&\"_new\",Ammortamento_Finanziario!$H:$L,5,FALSE),VLOOKUP($M46,TT_Tabelle_Riferimento!$D$127:$H$164,5,FALSE))","v":8},{"$f":"+IFERROR(VLOOKUP(RD$27&\"-\"&$M46&\"_new\",Ammortamento_Finanziario!$H:$L,5,FALSE),VLOOKUP($M46,TT_Tabelle_Riferimento!$D$127:$H$164,5,FALSE))","v":8},{"$f":"+IFERROR(VLOOKUP(RE$27&\"-\"&$M46&\"_new\",Ammortamento_Finanziario!$H:$L,5,FALSE),VLOOKUP($M46,TT_Tabelle_Riferimento!$D$127:$H$164,5,FALSE))","v":8},{"$f":"+IFERROR(VLOOKUP(RF$27&\"-\"&$M46&\"_new\",Ammortamento_Finanziario!$H:$L,5,FALSE),VLOOKUP($M46,TT_Tabelle_Riferimento!$D$127:$H$164,5,FALSE))","v":8},{"$f":"+IFERROR(VLOOKUP(RG$27&\"-\"&$M46&\"_new\",Ammortamento_Finanziario!$H:$L,5,FALSE),VLOOKUP($M46,TT_Tabelle_Riferimento!$D$127:$H$164,5,FALSE))","v":8},{"$f":"+IFERROR(VLOOKUP(RH$27&\"-\"&$M46&\"_new\",Ammortamento_Finanziario!$H:$L,5,FALSE),VLOOKUP($M46,TT_Tabelle_Riferimento!$D$127:$H$164,5,FALSE))","v":8},{"$f":"+IFERROR(VLOOKUP(RI$27&\"-\"&$M46&\"_new\",Ammortamento_Finanziario!$H:$L,5,FALSE),VLOOKUP($M46,TT_Tabelle_Riferimento!$D$127:$H$164,5,FALSE))","v":8},{"$f":"+IFERROR(VLOOKUP(RJ$27&\"-\"&$M46&\"_new\",Ammortamento_Finanziario!$H:$L,5,FALSE),VLOOKUP($M46,TT_Tabelle_Riferimento!$D$127:$H$164,5,FALSE))","v":8},{"$f":"+IFERROR(VLOOKUP(RK$27&\"-\"&$M46&\"_new\",Ammortamento_Finanziario!$H:$L,5,FALSE),VLOOKUP($M46,TT_Tabelle_Riferimento!$D$127:$H$164,5,FALSE))","v":8},{"$f":"+IFERROR(VLOOKUP(RL$27&\"-\"&$M46&\"_new\",Ammortamento_Finanziario!$H:$L,5,FALSE),VLOOKUP($M46,TT_Tabelle_Riferimento!$D$127:$H$164,5,FALSE))","v":8},{"$f":"+IFERROR(VLOOKUP(RM$27&\"-\"&$M46&\"_new\",Ammortamento_Finanziario!$H:$L,5,FALSE),VLOOKUP($M46,TT_Tabelle_Riferimento!$D$127:$H$164,5,FALSE))","v":8},{"$f":"+IFERROR(VLOOKUP(RN$27&\"-\"&$M46&\"_new\",Ammortamento_Finanziario!$H:$L,5,FALSE),VLOOKUP($M46,TT_Tabelle_Riferimento!$D$127:$H$164,5,FALSE))","v":8},{"$f":"+IFERROR(VLOOKUP(RO$27&\"-\"&$M46&\"_new\",Ammortamento_Finanziario!$H:$L,5,FALSE),VLOOKUP($M46,TT_Tabelle_Riferimento!$D$127:$H$164,5,FALSE))","v":8},{"$f":"+IFERROR(VLOOKUP(RP$27&\"-\"&$M46&\"_new\",Ammortamento_Finanziario!$H:$L,5,FALSE),VLOOKUP($M46,TT_Tabelle_Riferimento!$D$127:$H$164,5,FALSE))","v":8},{"$f":"+IFERROR(VLOOKUP(RQ$27&\"-\"&$M46&\"_new\",Ammortamento_Finanziario!$H:$L,5,FALSE),VLOOKUP($M46,TT_Tabelle_Riferimento!$D$127:$H$164,5,FALSE))","v":8},{"$f":"+IFERROR(VLOOKUP(RR$27&\"-\"&$M46&\"_new\",Ammortamento_Finanziario!$H:$L,5,FALSE),VLOOKUP($M46,TT_Tabelle_Riferimento!$D$127:$H$164,5,FALSE))","v":8},{"$f":"+IFERROR(VLOOKUP(RS$27&\"-\"&$M46&\"_new\",Ammortamento_Finanziario!$H:$L,5,FALSE),VLOOKUP($M46,TT_Tabelle_Riferimento!$D$127:$H$164,5,FALSE))","v":8},{"$f":"+IFERROR(VLOOKUP(RT$27&\"-\"&$M46&\"_new\",Ammortamento_Finanziario!$H:$L,5,FALSE),VLOOKUP($M46,TT_Tabelle_Riferimento!$D$127:$H$164,5,FALSE))","v":8},{"$f":"+IFERROR(VLOOKUP(RU$27&\"-\"&$M46&\"_new\",Ammortamento_Finanziario!$H:$L,5,FALSE),VLOOKUP($M46,TT_Tabelle_Riferimento!$D$127:$H$164,5,FALSE))","v":8},{"$f":"+IFERROR(VLOOKUP(RV$27&\"-\"&$M46&\"_new\",Ammortamento_Finanziario!$H:$L,5,FALSE),VLOOKUP($M46,TT_Tabelle_Riferimento!$D$127:$H$164,5,FALSE))","v":8}]
[null,null,null,"FA CFP",{"$f":"+SUMIFS(IMN_gestore!V:V,IMN_gestore!$G:$G,\"Env\")","v":0},{"$f":"+SUMIFS(IMN_gestore!AG:AG,IMN_gestore!$G:$G,\"Env\")","v":0},{"$f":"+SUMIFS(IMN_gestore!AR:AR,IMN_gestore!$G:$G,\"Env\")","v":0},{"$f":"+SUMIFS(IMN_gestore!BC:BC,IMN_gestore!$G:$G,\"Env\")","v":0},{"$f":"+SUMIFS(IMN_gestore!$BN:$BN,IMN_gestore!$G:$G,\"Env\")","v":0},{"$f":"+SUMIFS(IMN_gestore!$BY:$BY,IMN_gestore!$G:$G,\"Env\")","v":0},null,null,20,0,0,0,0,0,0,0,0,0,0,0,0,0,0,0,0,0,0,0,0,0,0,0,0,0,0,0,0,0,0,0,0,0,0,0,0,0,0,0,0,0,0,0,0,0,0,0,0,0,0,0,0,0,0,0,0,0,0,0,0,0,0,0,0,0,0,0,0,0,0,0,0,0,0,0,0,0,0,0,0,0,0,0,0,0,0,0,0,0,0,0,0,0,0,0,0,0,0,0,0,0,0,0,0,0,0,0,0,0,0,0,0,0,0,0,0,0,0,0,0,0,0,0,0,0,0,0,0,0,0,0,0,0,0,0,0,0,0,0,0,0,0,0,0,0,0,0,0,0,0,0,0,0,0,0,0,0,0,0,0,0,0,0,0,0,0,0,0,0,0,0,0,0,0,0,0,0,0,0,0,0,0,0,0,0,0,0,0,0,0,0,0,0,0,0,0,0,0,0,0,0,0,0,0,0,0,0,0,0,0,0,0,0,0,0,0,0,0,0,0,0,0,0,0,0,0,0,0,0,0,0,0,0,0,0,0,0,0,0,0,0,0,0,0,0,0,0,0,0,0,0,0,0,0,0,0,0,0,0,0,0,0,0,0,0,0,0,0,0,0,0,0,0,0,0,0,0,0,0,0,0,0,0,0,0,0,0,0,0,{"$f":"+IFERROR(VLOOKUP(KQ$27&\"-\"&$M47&\"_new\",Ammortamento_Finanziario!$H:$L,5,FALSE),VLOOKUP($M47,TT_Tabelle_Riferimento!$D$127:$H$164,5,FALSE))","v":40},{"$f":"+IFERROR(VLOOKUP(KR$27&\"-\"&$M47&\"_new\",Ammortamento_Finanziario!$H:$L,5,FALSE),VLOOKUP($M47,TT_Tabelle_Riferimento!$D$127:$H$164,5,FALSE))","v":40},{"$f":"+IFERROR(VLOOKUP(KS$27&\"-\"&$M47&\"_new\",Ammortamento_Finanziario!$H:$L,5,FALSE),VLOOKUP($M47,TT_Tabelle_Riferimento!$D$127:$H$164,5,FALSE))","v":40},{"$f":"+IFERROR(VLOOKUP(KT$27&\"-\"&$M47&\"_new\",Ammortamento_Finanziario!$H:$L,5,FALSE),VLOOKUP($M47,TT_Tabelle_Riferimento!$D$127:$H$164,5,FALSE))","v":40},{"$f":"+IFERROR(VLOOKUP(KU$27&\"-\"&$M47&\"_new\",Ammortamento_Finanziario!$H:$L,5,FALSE),VLOOKUP($M47,TT_Tabelle_Riferimento!$D$127:$H$164,5,FALSE))","v":40},{"$f":"+IFERROR(VLOOKUP(KV$27&\"-\"&$M47&\"_new\",Ammortamento_Finanziario!$H:$L,5,FALSE),VLOOKUP($M47,TT_Tabelle_Riferimento!$D$127:$H$164,5,FALSE))","v":40},{"$f":"+IFERROR(VLOOKUP(KW$27&\"-\"&$M47&\"_new\",Ammortamento_Finanziario!$H:$L,5,FALSE),VLOOKUP($M47,TT_Tabelle_Riferimento!$D$127:$H$164,5,FALSE))","v":40},{"$f":"+IFERROR(VLOOKUP(KX$27&\"-\"&$M47&\"_new\",Ammortamento_Finanziario!$H:$L,5,FALSE),VLOOKUP($M47,TT_Tabelle_Riferimento!$D$127:$H$164,5,FALSE))","v":40},{"$f":"+IFERROR(VLOOKUP(KY$27&\"-\"&$M47&\"_new\",Ammortamento_Finanziario!$H:$L,5,FALSE),VLOOKUP($M47,TT_Tabelle_Riferimento!$D$127:$H$164,5,FALSE))","v":40},{"$f":"+IFERROR(VLOOKUP(KZ$27&\"-\"&$M47&\"_new\",Ammortamento_Finanziario!$H:$L,5,FALSE),VLOOKUP($M47,TT_Tabelle_Riferimento!$D$127:$H$164,5,FALSE))","v":40},{"$f":"+IFERROR(VLOOKUP(LA$27&\"-\"&$M47&\"_new\",Ammortamento_Finanziario!$H:$L,5,FALSE),VLOOKUP($M47,TT_Tabelle_Riferimento!$D$127:$H$164,5,FALSE))","v":40},{"$f":"+IFERROR(VLOOKUP(LB$27&\"-\"&$M47&\"_new\",Ammortamento_Finanziario!$H:$L,5,FALSE),VLOOKUP($M47,TT_Tabelle_Riferimento!$D$127:$H$164,5,FALSE))","v":40},{"$f":"+IFERROR(VLOOKUP(LC$27&\"-\"&$M47&\"_new\",Ammortamento_Finanziario!$H:$L,5,FALSE),VLOOKUP($M47,TT_Tabelle_Riferimento!$D$127:$H$164,5,FALSE))","v":40},{"$f":"+IFERROR(VLOOKUP(LD$27&\"-\"&$M47&\"_new\",Ammortamento_Finanziario!$H:$L,5,FALSE),VLOOKUP($M47,TT_Tabelle_Riferimento!$D$127:$H$164,5,FALSE))","v":40},{"$f":"+IFERROR(VLOOKUP(LE$27&\"-\"&$M47&\"_new\",Ammortamento_Finanziario!$H:$L,5,FALSE),VLOOKUP($M47,TT_Tabelle_Riferimento!$D$127:$H$164,5,FALSE))","v":40},{"$f":"+IFERROR(VLOOKUP(LF$27&\"-\"&$M47&\"_new\",Ammortamento_Finanziario!$H:$L,5,FALSE),VLOOKUP($M47,TT_Tabelle_Riferimento!$D$127:$H$164,5,FALSE))","v":40},{"$f":"+IFERROR(VLOOKUP(LG$27&\"-\"&$M47&\"_new\",Ammortamento_Finanziario!$H:$L,5,FALSE),VLOOKUP($M47,TT_Tabelle_Riferimento!$D$127:$H$164,5,FALSE))","v":40},{"$f":"+IFERROR(VLOOKUP(LH$27&\"-\"&$M47&\"_new\",Ammortamento_Finanziario!$H:$L,5,FALSE),VLOOKUP($M47,TT_Tabelle_Riferimento!$D$127:$H$164,5,FALSE))","v":40},{"$f":"+IFERROR(VLOOKUP(LI$27&\"-\"&$M47&\"_new\",Ammortamento_Finanziario!$H:$L,5,FALSE),VLOOKUP($M47,TT_Tabelle_Riferimento!$D$127:$H$164,5,FALSE))","v":40},{"$f":"+IFERROR(VLOOKUP(LJ$27&\"-\"&$M47&\"_new\",Ammortamento_Finanziario!$H:$L,5,FALSE),VLOOKUP($M47,TT_Tabelle_Riferimento!$D$127:$H$164,5,FALSE))","v":40},{"$f":"+IFERROR(VLOOKUP(LK$27&\"-\"&$M47&\"_new\",Ammortamento_Finanziario!$H:$L,5,FALSE),VLOOKUP($M47,TT_Tabelle_Riferimento!$D$127:$H$164,5,FALSE))","v":40},{"$f":"+IFERROR(VLOOKUP(LL$27&\"-\"&$M47&\"_new\",Ammortamento_Finanziario!$H:$L,5,FALSE),VLOOKUP($M47,TT_Tabelle_Riferimento!$D$127:$H$164,5,FALSE))","v":40},{"$f":"+IFERROR(VLOOKUP(LM$27&\"-\"&$M47&\"_new\",Ammortamento_Finanziario!$H:$L,5,FALSE),VLOOKUP($M47,TT_Tabelle_Riferimento!$D$127:$H$164,5,FALSE))","v":40},{"$f":"+IFERROR(VLOOKUP(LN$27&\"-\"&$M47&\"_new\",Ammortamento_Finanziario!$H:$L,5,FALSE),VLOOKUP($M47,TT_Tabelle_Riferimento!$D$127:$H$164,5,FALSE))","v":40},{"$f":"+IFERROR(VLOOKUP(LO$27&\"-\"&$M47&\"_new\",Ammortamento_Finanziario!$H:$L,5,FALSE),VLOOKUP($M47,TT_Tabelle_Riferimento!$D$127:$H$164,5,FALSE))","v":40},{"$f":"+IFERROR(VLOOKUP(LP$27&\"-\"&$M47&\"_new\",Ammortamento_Finanziario!$H:$L,5,FALSE),VLOOKUP($M47,TT_Tabelle_Riferimento!$D$127:$H$164,5,FALSE))","v":40},{"$f":"+IFERROR(VLOOKUP(LQ$27&\"-\"&$M47&\"_new\",Ammortamento_Finanziario!$H:$L,5,FALSE),VLOOKUP($M47,TT_Tabelle_Riferimento!$D$127:$H$164,5,FALSE))","v":40},{"$f":"+IFERROR(VLOOKUP(LR$27&\"-\"&$M47&\"_new\",Ammortamento_Finanziario!$H:$L,5,FALSE),VLOOKUP($M47,TT_Tabelle_Riferimento!$D$127:$H$164,5,FALSE))","v":40},{"$f":"+IFERROR(VLOOKUP(LS$27&\"-\"&$M47&\"_new\",Ammortamento_Finanziario!$H:$L,5,FALSE),VLOOKUP($M47,TT_Tabelle_Riferimento!$D$127:$H$164,5,FALSE))","v":40},{"$f":"+IFERROR(VLOOKUP(LT$27&\"-\"&$M47&\"_new\",Ammortamento_Finanziario!$H:$L,5,FALSE),VLOOKUP($M47,TT_Tabelle_Riferimento!$D$127:$H$164,5,FALSE))","v":40},{"$f":"+IFERROR(VLOOKUP(LU$27&\"-\"&$M47&\"_new\",Ammortamento_Finanziario!$H:$L,5,FALSE),VLOOKUP($M47,TT_Tabelle_Riferimento!$D$127:$H$164,5,FALSE))","v":40},{"$f":"+IFERROR(VLOOKUP(LV$27&\"-\"&$M47&\"_new\",Ammortamento_Finanziario!$H:$L,5,FALSE),VLOOKUP($M47,TT_Tabelle_Riferimento!$D$127:$H$164,5,FALSE))","v":40},{"$f":"+IFERROR(VLOOKUP(LW$27&\"-\"&$M47&\"_new\",Ammortamento_Finanziario!$H:$L,5,FALSE),VLOOKUP($M47,TT_Tabelle_Riferimento!$D$127:$H$164,5,FALSE))","v":40},{"$f":"+IFERROR(VLOOKUP(LX$27&\"-\"&$M47&\"_new\",Ammortamento_Finanziario!$H:$L,5,FALSE),VLOOKUP($M47,TT_Tabelle_Riferimento!$D$127:$H$164,5,FALSE))","v":40},{"$f":"+IFERROR(VLOOKUP(LY$27&\"-\"&$M47&\"_new\",Ammortamento_Finanziario!$H:$L,5,FALSE),VLOOKUP($M47,TT_Tabelle_Riferimento!$D$127:$H$164,5,FALSE))","v":40},{"$f":"+IFERROR(VLOOKUP(LZ$27&\"-\"&$M47&\"_new\",Ammortamento_Finanziario!$H:$L,5,FALSE),VLOOKUP($M47,TT_Tabelle_Riferimento!$D$127:$H$164,5,FALSE))","v":40},{"$f":"+IFERROR(VLOOKUP(MA$27&\"-\"&$M47&\"_new\",Ammortamento_Finanziario!$H:$L,5,FALSE),VLOOKUP($M47,TT_Tabelle_Riferimento!$D$127:$H$164,5,FALSE))","v":40},{"$f":"+IFERROR(VLOOKUP(MB$27&\"-\"&$M47&\"_new\",Ammortamento_Finanziario!$H:$L,5,FALSE),VLOOKUP($M47,TT_Tabelle_Riferimento!$D$127:$H$164,5,FALSE))","v":40},{"$f":"+IFERROR(VLOOKUP(MC$27&\"-\"&$M47&\"_new\",Ammortamento_Finanziario!$H:$L,5,FALSE),VLOOKUP($M47,TT_Tabelle_Riferimento!$D$127:$H$164,5,FALSE))","v":40},{"$f":"+IFERROR(VLOOKUP(MD$27&\"-\"&$M47&\"_new\",Ammortamento_Finanziario!$H:$L,5,FALSE),VLOOKUP($M47,TT_Tabelle_Riferimento!$D$127:$H$164,5,FALSE))","v":40},{"$f":"+IFERROR(VLOOKUP(ME$27&\"-\"&$M47&\"_new\",Ammortamento_Finanziario!$H:$L,5,FALSE),VLOOKUP($M47,TT_Tabelle_Riferimento!$D$127:$H$164,5,FALSE))","v":40},{"$f":"+IFERROR(VLOOKUP(MF$27&\"-\"&$M47&\"_new\",Ammortamento_Finanziario!$H:$L,5,FALSE),VLOOKUP($M47,TT_Tabelle_Riferimento!$D$127:$H$164,5,FALSE))","v":40},{"$f":"+IFERROR(VLOOKUP(MG$27&\"-\"&$M47&\"_new\",Ammortamento_Finanziario!$H:$L,5,FALSE),VLOOKUP($M47,TT_Tabelle_Riferimento!$D$127:$H$164,5,FALSE))","v":40},{"$f":"+IFERROR(VLOOKUP(MH$27&\"-\"&$M47&\"_new\",Ammortamento_Finanziario!$H:$L,5,FALSE),VLOOKUP($M47,TT_Tabelle_Riferimento!$D$127:$H$164,5,FALSE))","v":40},{"$f":"+IFERROR(VLOOKUP(MI$27&\"-\"&$M47&\"_new\",Ammortamento_Finanziario!$H:$L,5,FALSE),VLOOKUP($M47,TT_Tabelle_Riferimento!$D$127:$H$164,5,FALSE))","v":40},{"$f":"+IFERROR(VLOOKUP(MJ$27&\"-\"&$M47&\"_new\",Ammortamento_Finanziario!$H:$L,5,FALSE),VLOOKUP($M47,TT_Tabelle_Riferimento!$D$127:$H$164,5,FALSE))","v":40},{"$f":"+IFERROR(VLOOKUP(MK$27&\"-\"&$M47&\"_new\",Ammortamento_Finanziario!$H:$L,5,FALSE),VLOOKUP($M47,TT_Tabelle_Riferimento!$D$127:$H$164,5,FALSE))","v":40},{"$f":"+IFERROR(VLOOKUP(ML$27&\"-\"&$M47&\"_new\",Ammortamento_Finanziario!$H:$L,5,FALSE),VLOOKUP($M47,TT_Tabelle_Riferimento!$D$127:$H$164,5,FALSE))","v":40},{"$f":"+IFERROR(VLOOKUP(MM$27&\"-\"&$M47&\"_new\",Ammortamento_Finanziario!$H:$L,5,FALSE),VLOOKUP($M47,TT_Tabelle_Riferimento!$D$127:$H$164,5,FALSE))","v":40},{"$f":"+IFERROR(VLOOKUP(MN$27&\"-\"&$M47&\"_new\",Ammortamento_Finanziario!$H:$L,5,FALSE),VLOOKUP($M47,TT_Tabelle_Riferimento!$D$127:$H$164,5,FALSE))","v":40},{"$f":"+IFERROR(VLOOKUP(MO$27&\"-\"&$M47&\"_new\",Ammortamento_Finanziario!$H:$L,5,FALSE),VLOOKUP($M47,TT_Tabelle_Riferimento!$D$127:$H$164,5,FALSE))","v":40},{"$f":"+IFERROR(VLOOKUP(MP$27&\"-\"&$M47&\"_new\",Ammortamento_Finanziario!$H:$L,5,FALSE),VLOOKUP($M47,TT_Tabelle_Riferimento!$D$127:$H$164,5,FALSE))","v":40},{"$f":"+IFERROR(VLOOKUP(MQ$27&\"-\"&$M47&\"_new\",Ammortamento_Finanziario!$H:$L,5,FALSE),VLOOKUP($M47,TT_Tabelle_Riferimento!$D$127:$H$164,5,FALSE))","v":40},{"$f":"+IFERROR(VLOOKUP(MR$27&\"-\"&$M47&\"_new\",Ammortamento_Finanziario!$H:$L,5,FALSE),VLOOKUP($M47,TT_Tabelle_Riferimento!$D$127:$H$164,5,FALSE))","v":40},{"$f":"+IFERROR(VLOOKUP(MS$27&\"-\"&$M47&\"_new\",Ammortamento_Finanziario!$H:$L,5,FALSE),VLOOKUP($M47,TT_Tabelle_Riferimento!$D$127:$H$164,5,FALSE))","v":40},{"$f":"+IFERROR(VLOOKUP(MT$27&\"-\"&$M47&\"_new\",Ammortamento_Finanziario!$H:$L,5,FALSE),VLOOKUP($M47,TT_Tabelle_Riferimento!$D$127:$H$164,5,FALSE))","v":40},{"$f":"+IFERROR(VLOOKUP(MU$27&\"-\"&$M47&\"_new\",Ammortamento_Finanziario!$H:$L,5,FALSE),VLOOKUP($M47,TT_Tabelle_Riferimento!$D$127:$H$164,5,FALSE))","v":40},{"$f":"+IFERROR(VLOOKUP(MV$27&\"-\"&$M47&\"_new\",Ammortamento_Finanziario!$H:$L,5,FALSE),VLOOKUP($M47,TT_Tabelle_Riferimento!$D$127:$H$164,5,FALSE))","v":40},{"$f":"+IFERROR(VLOOKUP(MW$27&\"-\"&$M47&\"_new\",Ammortamento_Finanziario!$H:$L,5,FALSE),VLOOKUP($M47,TT_Tabelle_Riferimento!$D$127:$H$164,5,FALSE))","v":40},{"$f":"+IFERROR(VLOOKUP(MX$27&\"-\"&$M47&\"_new\",Ammortamento_Finanziario!$H:$L,5,FALSE),VLOOKUP($M47,TT_Tabelle_Riferimento!$D$127:$H$164,5,FALSE))","v":40},{"$f":"+IFERROR(VLOOKUP(MY$27&\"-\"&$M47&\"_new\",Ammortamento_Finanziario!$H:$L,5,FALSE),VLOOKUP($M47,TT_Tabelle_Riferimento!$D$127:$H$164,5,FALSE))","v":40},{"$f":"+IFERROR(VLOOKUP(MZ$27&\"-\"&$M47&\"_new\",Ammortamento_Finanziario!$H:$L,5,FALSE),VLOOKUP($M47,TT_Tabelle_Riferimento!$D$127:$H$164,5,FALSE))","v":40},{"$f":"+IFERROR(VLOOKUP(NA$27&\"-\"&$M47&\"_new\",Ammortamento_Finanziario!$H:$L,5,FALSE),VLOOKUP($M47,TT_Tabelle_Riferimento!$D$127:$H$164,5,FALSE))","v":40},{"$f":"+IFERROR(VLOOKUP(NB$27&\"-\"&$M47&\"_new\",Ammortamento_Finanziario!$H:$L,5,FALSE),VLOOKUP($M47,TT_Tabelle_Riferimento!$D$127:$H$164,5,FALSE))","v":40},{"$f":"+IFERROR(VLOOKUP(NC$27&\"-\"&$M47&\"_new\",Ammortamento_Finanziario!$H:$L,5,FALSE),VLOOKUP($M47,TT_Tabelle_Riferimento!$D$127:$H$164,5,FALSE))","v":40},{"$f":"+IFERROR(VLOOKUP(ND$27&\"-\"&$M47&\"_new\",Ammortamento_Finanziario!$H:$L,5,FALSE),VLOOKUP($M47,TT_Tabelle_Riferimento!$D$127:$H$164,5,FALSE))","v":40},{"$f":"+IFERROR(VLOOKUP(NE$27&\"-\"&$M47&\"_new\",Ammortamento_Finanziario!$H:$L,5,FALSE),VLOOKUP($M47,TT_Tabelle_Riferimento!$D$127:$H$164,5,FALSE))","v":40},{"$f":"+IFERROR(VLOOKUP(NF$27&\"-\"&$M47&\"_new\",Ammortamento_Finanziario!$H:$L,5,FALSE),VLOOKUP($M47,TT_Tabelle_Riferimento!$D$127:$H$164,5,FALSE))","v":40},{"$f":"+IFERROR(VLOOKUP(NG$27&\"-\"&$M47&\"_new\",Ammortamento_Finanziario!$H:$L,5,FALSE),VLOOKUP($M47,TT_Tabelle_Riferimento!$D$127:$H$164,5,FALSE))","v":40},{"$f":"+IFERROR(VLOOKUP(NH$27&\"-\"&$M47&\"_new\",Ammortamento_Finanziario!$H:$L,5,FALSE),VLOOKUP($M47,TT_Tabelle_Riferimento!$D$127:$H$164,5,FALSE))","v":40},{"$f":"+IFERROR(VLOOKUP(NI$27&\"-\"&$M47&\"_new\",Ammortamento_Finanziario!$H:$L,5,FALSE),VLOOKUP($M47,TT_Tabelle_Riferimento!$D$127:$H$164,5,FALSE))","v":40},{"$f":"+IFERROR(VLOOKUP(NJ$27&\"-\"&$M47&\"_new\",Ammortamento_Finanziario!$H:$L,5,FALSE),VLOOKUP($M47,TT_Tabelle_Riferimento!$D$127:$H$164,5,FALSE))","v":40},{"$f":"+IFERROR(VLOOKUP(NK$27&\"-\"&$M47&\"_new\",Ammortamento_Finanziario!$H:$L,5,FALSE),VLOOKUP($M47,TT_Tabelle_Riferimento!$D$127:$H$164,5,FALSE))","v":40},{"$f":"+IFERROR(VLOOKUP(NL$27&\"-\"&$M47&\"_new\",Ammortamento_Finanziario!$H:$L,5,FALSE),VLOOKUP($M47,TT_Tabelle_Riferimento!$D$127:$H$164,5,FALSE))","v":40},{"$f":"+IFERROR(VLOOKUP(NM$27&\"-\"&$M47&\"_new\",Ammortamento_Finanziario!$H:$L,5,FALSE),VLOOKUP($M47,TT_Tabelle_Riferimento!$D$127:$H$164,5,FALSE))","v":40},{"$f":"+IFERROR(VLOOKUP(NN$27&\"-\"&$M47&\"_new\",Ammortamento_Finanziario!$H:$L,5,FALSE),VLOOKUP($M47,TT_Tabelle_Riferimento!$D$127:$H$164,5,FALSE))","v":40},{"$f":"+IFERROR(VLOOKUP(NO$27&\"-\"&$M47&\"_new\",Ammortamento_Finanziario!$H:$L,5,FALSE),VLOOKUP($M47,TT_Tabelle_Riferimento!$D$127:$H$164,5,FALSE))","v":40},{"$f":"+IFERROR(VLOOKUP(NP$27&\"-\"&$M47&\"_new\",Ammortamento_Finanziario!$H:$L,5,FALSE),VLOOKUP($M47,TT_Tabelle_Riferimento!$D$127:$H$164,5,FALSE))","v":40},{"$f":"+IFERROR(VLOOKUP(NQ$27&\"-\"&$M47&\"_new\",Ammortamento_Finanziario!$H:$L,5,FALSE),VLOOKUP($M47,TT_Tabelle_Riferimento!$D$127:$H$164,5,FALSE))","v":40},{"$f":"+IFERROR(VLOOKUP(NR$27&\"-\"&$M47&\"_new\",Ammortamento_Finanziario!$H:$L,5,FALSE),VLOOKUP($M47,TT_Tabelle_Riferimento!$D$127:$H$164,5,FALSE))","v":40},{"$f":"+IFERROR(VLOOKUP(NS$27&\"-\"&$M47&\"_new\",Ammortamento_Finanziario!$H:$L,5,FALSE),VLOOKUP($M47,TT_Tabelle_Riferimento!$D$127:$H$164,5,FALSE))","v":40},{"$f":"+IFERROR(VLOOKUP(NT$27&\"-\"&$M47&\"_new\",Ammortamento_Finanziario!$H:$L,5,FALSE),VLOOKUP($M47,TT_Tabelle_Riferimento!$D$127:$H$164,5,FALSE))","v":40},{"$f":"+IFERROR(VLOOKUP(NU$27&\"-\"&$M47&\"_new\",Ammortamento_Finanziario!$H:$L,5,FALSE),VLOOKUP($M47,TT_Tabelle_Riferimento!$D$127:$H$164,5,FALSE))","v":40},{"$f":"+IFERROR(VLOOKUP(NV$27&\"-\"&$M47&\"_new\",Ammortamento_Finanziario!$H:$L,5,FALSE),VLOOKUP($M47,TT_Tabelle_Riferimento!$D$127:$H$164,5,FALSE))","v":40},{"$f":"+IFERROR(VLOOKUP(NW$27&\"-\"&$M47&\"_new\",Ammortamento_Finanziario!$H:$L,5,FALSE),VLOOKUP($M47,TT_Tabelle_Riferimento!$D$127:$H$164,5,FALSE))","v":40},{"$f":"+IFERROR(VLOOKUP(NX$27&\"-\"&$M47&\"_new\",Ammortamento_Finanziario!$H:$L,5,FALSE),VLOOKUP($M47,TT_Tabelle_Riferimento!$D$127:$H$164,5,FALSE))","v":40},{"$f":"+IFERROR(VLOOKUP(NY$27&\"-\"&$M47&\"_new\",Ammortamento_Finanziario!$H:$L,5,FALSE),VLOOKUP($M47,TT_Tabelle_Riferimento!$D$127:$H$164,5,FALSE))","v":40},{"$f":"+IFERROR(VLOOKUP(NZ$27&\"-\"&$M47&\"_new\",Ammortamento_Finanziario!$H:$L,5,FALSE),VLOOKUP($M47,TT_Tabelle_Riferimento!$D$127:$H$164,5,FALSE))","v":40},{"$f":"+IFERROR(VLOOKUP(OA$27&\"-\"&$M47&\"_new\",Ammortamento_Finanziario!$H:$L,5,FALSE),VLOOKUP($M47,TT_Tabelle_Riferimento!$D$127:$H$164,5,FALSE))","v":40},{"$f":"+IFERROR(VLOOKUP(OB$27&\"-\"&$M47&\"_new\",Ammortamento_Finanziario!$H:$L,5,FALSE),VLOOKUP($M47,TT_Tabelle_Riferimento!$D$127:$H$164,5,FALSE))","v":40},{"$f":"+IFERROR(VLOOKUP(OC$27&\"-\"&$M47&\"_new\",Ammortamento_Finanziario!$H:$L,5,FALSE),VLOOKUP($M47,TT_Tabelle_Riferimento!$D$127:$H$164,5,FALSE))","v":40},{"$f":"+IFERROR(VLOOKUP(OD$27&\"-\"&$M47&\"_new\",Ammortamento_Finanziario!$H:$L,5,FALSE),VLOOKUP($M47,TT_Tabelle_Riferimento!$D$127:$H$164,5,FALSE))","v":40},{"$f":"+IFERROR(VLOOKUP(OE$27&\"-\"&$M47&\"_new\",Ammortamento_Finanziario!$H:$L,5,FALSE),VLOOKUP($M47,TT_Tabelle_Riferimento!$D$127:$H$164,5,FALSE))","v":40},{"$f":"+IFERROR(VLOOKUP(OF$27&\"-\"&$M47&\"_new\",Ammortamento_Finanziario!$H:$L,5,FALSE),VLOOKUP($M47,TT_Tabelle_Riferimento!$D$127:$H$164,5,FALSE))","v":40},{"$f":"+IFERROR(VLOOKUP(OG$27&\"-\"&$M47&\"_new\",Ammortamento_Finanziario!$H:$L,5,FALSE),VLOOKUP($M47,TT_Tabelle_Riferimento!$D$127:$H$164,5,FALSE))","v":40},{"$f":"+IFERROR(VLOOKUP(OH$27&\"-\"&$M47&\"_new\",Ammortamento_Finanziario!$H:$L,5,FALSE),VLOOKUP($M47,TT_Tabelle_Riferimento!$D$127:$H$164,5,FALSE))","v":40},{"$f":"+IFERROR(VLOOKUP(OI$27&\"-\"&$M47&\"_new\",Ammortamento_Finanziario!$H:$L,5,FALSE),VLOOKUP($M47,TT_Tabelle_Riferimento!$D$127:$H$164,5,FALSE))","v":40},{"$f":"+IFERROR(VLOOKUP(OJ$27&\"-\"&$M47&\"_new\",Ammortamento_Finanziario!$H:$L,5,FALSE),VLOOKUP($M47,TT_Tabelle_Riferimento!$D$127:$H$164,5,FALSE))","v":40},{"$f":"+IFERROR(VLOOKUP(OK$27&\"-\"&$M47&\"_new\",Ammortamento_Finanziario!$H:$L,5,FALSE),VLOOKUP($M47,TT_Tabelle_Riferimento!$D$127:$H$164,5,FALSE))","v":40},{"$f":"+IFERROR(VLOOKUP(OL$27&\"-\"&$M47&\"_new\",Ammortamento_Finanziario!$H:$L,5,FALSE),VLOOKUP($M47,TT_Tabelle_Riferimento!$D$127:$H$164,5,FALSE))","v":40},{"$f":"+IFERROR(VLOOKUP(OM$27&\"-\"&$M47&\"_new\",Ammortamento_Finanziario!$H:$L,5,FALSE),VLOOKUP($M47,TT_Tabelle_Riferimento!$D$127:$H$164,5,FALSE))","v":40},{"$f":"+IFERROR(VLOOKUP(ON$27&\"-\"&$M47&\"_new\",Ammortamento_Finanziario!$H:$L,5,FALSE),VLOOKUP($M47,TT_Tabelle_Riferimento!$D$127:$H$164,5,FALSE))","v":40},{"$f":"+IFERROR(VLOOKUP(OO$27&\"-\"&$M47&\"_new\",Ammortamento_Finanziario!$H:$L,5,FALSE),VLOOKUP($M47,TT_Tabelle_Riferimento!$D$127:$H$164,5,FALSE))","v":40},{"$f":"+IFERROR(VLOOKUP(OP$27&\"-\"&$M47&\"_new\",Ammortamento_Finanziario!$H:$L,5,FALSE),VLOOKUP($M47,TT_Tabelle_Riferimento!$D$127:$H$164,5,FALSE))","v":40},{"$f":"+IFERROR(VLOOKUP(OQ$27&\"-\"&$M47&\"_new\",Ammortamento_Finanziario!$H:$L,5,FALSE),VLOOKUP($M47,TT_Tabelle_Riferimento!$D$127:$H$164,5,FALSE))","v":40},{"$f":"+IFERROR(VLOOKUP(OR$27&\"-\"&$M47&\"_new\",Ammortamento_Finanziario!$H:$L,5,FALSE),VLOOKUP($M47,TT_Tabelle_Riferimento!$D$127:$H$164,5,FALSE))","v":40},{"$f":"+IFERROR(VLOOKUP(OS$27&\"-\"&$M47&\"_new\",Ammortamento_Finanziario!$H:$L,5,FALSE),VLOOKUP($M47,TT_Tabelle_Riferimento!$D$127:$H$164,5,FALSE))","v":40},{"$f":"+IFERROR(VLOOKUP(OT$27&\"-\"&$M47&\"_new\",Ammortamento_Finanziario!$H:$L,5,FALSE),VLOOKUP($M47,TT_Tabelle_Riferimento!$D$127:$H$164,5,FALSE))","v":40},{"$f":"+IFERROR(VLOOKUP(OU$27&\"-\"&$M47&\"_new\",Ammortamento_Finanziario!$H:$L,5,FALSE),VLOOKUP($M47,TT_Tabelle_Riferimento!$D$127:$H$164,5,FALSE))","v":40},{"$f":"+IFERROR(VLOOKUP(OV$27&\"-\"&$M47&\"_new\",Ammortamento_Finanziario!$H:$L,5,FALSE),VLOOKUP($M47,TT_Tabelle_Riferimento!$D$127:$H$164,5,FALSE))","v":40},{"$f":"+IFERROR(VLOOKUP(OW$27&\"-\"&$M47&\"_new\",Ammortamento_Finanziario!$H:$L,5,FALSE),VLOOKUP($M47,TT_Tabelle_Riferimento!$D$127:$H$164,5,FALSE))","v":40},{"$f":"+IFERROR(VLOOKUP(OX$27&\"-\"&$M47&\"_new\",Ammortamento_Finanziario!$H:$L,5,FALSE),VLOOKUP($M47,TT_Tabelle_Riferimento!$D$127:$H$164,5,FALSE))","v":40},{"$f":"+IFERROR(VLOOKUP(OY$27&\"-\"&$M47&\"_new\",Ammortamento_Finanziario!$H:$L,5,FALSE),VLOOKUP($M47,TT_Tabelle_Riferimento!$D$127:$H$164,5,FALSE))","v":40},{"$f":"+IFERROR(VLOOKUP(OZ$27&\"-\"&$M47&\"_new\",Ammortamento_Finanziario!$H:$L,5,FALSE),VLOOKUP($M47,TT_Tabelle_Riferimento!$D$127:$H$164,5,FALSE))","v":40},{"$f":"+IFERROR(VLOOKUP(PA$27&\"-\"&$M47&\"_new\",Ammortamento_Finanziario!$H:$L,5,FALSE),VLOOKUP($M47,TT_Tabelle_Riferimento!$D$127:$H$164,5,FALSE))","v":40},{"$f":"+IFERROR(VLOOKUP(PB$27&\"-\"&$M47&\"_new\",Ammortamento_Finanziario!$H:$L,5,FALSE),VLOOKUP($M47,TT_Tabelle_Riferimento!$D$127:$H$164,5,FALSE))","v":40},{"$f":"+IFERROR(VLOOKUP(PC$27&\"-\"&$M47&\"_new\",Ammortamento_Finanziario!$H:$L,5,FALSE),VLOOKUP($M47,TT_Tabelle_Riferimento!$D$127:$H$164,5,FALSE))","v":40},{"$f":"+IFERROR(VLOOKUP(PD$27&\"-\"&$M47&\"_new\",Ammortamento_Finanziario!$H:$L,5,FALSE),VLOOKUP($M47,TT_Tabelle_Riferimento!$D$127:$H$164,5,FALSE))","v":40},{"$f":"+IFERROR(VLOOKUP(PE$27&\"-\"&$M47&\"_new\",Ammortamento_Finanziario!$H:$L,5,FALSE),VLOOKUP($M47,TT_Tabelle_Riferimento!$D$127:$H$164,5,FALSE))","v":40},{"$f":"+IFERROR(VLOOKUP(PF$27&\"-\"&$M47&\"_new\",Ammortamento_Finanziario!$H:$L,5,FALSE),VLOOKUP($M47,TT_Tabelle_Riferimento!$D$127:$H$164,5,FALSE))","v":40},{"$f":"+IFERROR(VLOOKUP(PG$27&\"-\"&$M47&\"_new\",Ammortamento_Finanziario!$H:$L,5,FALSE),VLOOKUP($M47,TT_Tabelle_Riferimento!$D$127:$H$164,5,FALSE))","v":40},{"$f":"+IFERROR(VLOOKUP(PH$27&\"-\"&$M47&\"_new\",Ammortamento_Finanziario!$H:$L,5,FALSE),VLOOKUP($M47,TT_Tabelle_Riferimento!$D$127:$H$164,5,FALSE))","v":40},{"$f":"+IFERROR(VLOOKUP(PI$27&\"-\"&$M47&\"_new\",Ammortamento_Finanziario!$H:$L,5,FALSE),VLOOKUP($M47,TT_Tabelle_Riferimento!$D$127:$H$164,5,FALSE))","v":40},{"$f":"+IFERROR(VLOOKUP(PJ$27&\"-\"&$M47&\"_new\",Ammortamento_Finanziario!$H:$L,5,FALSE),VLOOKUP($M47,TT_Tabelle_Riferimento!$D$127:$H$164,5,FALSE))","v":40},{"$f":"+IFERROR(VLOOKUP(PK$27&\"-\"&$M47&\"_new\",Ammortamento_Finanziario!$H:$L,5,FALSE),VLOOKUP($M47,TT_Tabelle_Riferimento!$D$127:$H$164,5,FALSE))","v":40},{"$f":"+IFERROR(VLOOKUP(PL$27&\"-\"&$M47&\"_new\",Ammortamento_Finanziario!$H:$L,5,FALSE),VLOOKUP($M47,TT_Tabelle_Riferimento!$D$127:$H$164,5,FALSE))","v":40},{"$f":"+IFERROR(VLOOKUP(PM$27&\"-\"&$M47&\"_new\",Ammortamento_Finanziario!$H:$L,5,FALSE),VLOOKUP($M47,TT_Tabelle_Riferimento!$D$127:$H$164,5,FALSE))","v":40},{"$f":"+IFERROR(VLOOKUP(PN$27&\"-\"&$M47&\"_new\",Ammortamento_Finanziario!$H:$L,5,FALSE),VLOOKUP($M47,TT_Tabelle_Riferimento!$D$127:$H$164,5,FALSE))","v":40},{"$f":"+IFERROR(VLOOKUP(PO$27&\"-\"&$M47&\"_new\",Ammortamento_Finanziario!$H:$L,5,FALSE),VLOOKUP($M47,TT_Tabelle_Riferimento!$D$127:$H$164,5,FALSE))","v":40},{"$f":"+IFERROR(VLOOKUP(PP$27&\"-\"&$M47&\"_new\",Ammortamento_Finanziario!$H:$L,5,FALSE),VLOOKUP($M47,TT_Tabelle_Riferimento!$D$127:$H$164,5,FALSE))","v":40},{"$f":"+IFERROR(VLOOKUP(PQ$27&\"-\"&$M47&\"_new\",Ammortamento_Finanziario!$H:$L,5,FALSE),VLOOKUP($M47,TT_Tabelle_Riferimento!$D$127:$H$164,5,FALSE))","v":40},{"$f":"+IFERROR(VLOOKUP(PR$27&\"-\"&$M47&\"_new\",Ammortamento_Finanziario!$H:$L,5,FALSE),VLOOKUP($M47,TT_Tabelle_Riferimento!$D$127:$H$164,5,FALSE))","v":40},{"$f":"+IFERROR(VLOOKUP(PS$27&\"-\"&$M47&\"_new\",Ammortamento_Finanziario!$H:$L,5,FALSE),VLOOKUP($M47,TT_Tabelle_Riferimento!$D$127:$H$164,5,FALSE))","v":40},{"$f":"+IFERROR(VLOOKUP(PT$27&\"-\"&$M47&\"_new\",Ammortamento_Finanziario!$H:$L,5,FALSE),VLOOKUP($M47,TT_Tabelle_Riferimento!$D$127:$H$164,5,FALSE))","v":40},{"$f":"+IFERROR(VLOOKUP(PU$27&\"-\"&$M47&\"_new\",Ammortamento_Finanziario!$H:$L,5,FALSE),VLOOKUP($M47,TT_Tabelle_Riferimento!$D$127:$H$164,5,FALSE))","v":40},{"$f":"+IFERROR(VLOOKUP(PV$27&\"-\"&$M47&\"_new\",Ammortamento_Finanziario!$H:$L,5,FALSE),VLOOKUP($M47,TT_Tabelle_Riferimento!$D$127:$H$164,5,FALSE))","v":40},{"$f":"+IFERROR(VLOOKUP(PW$27&\"-\"&$M47&\"_new\",Ammortamento_Finanziario!$H:$L,5,FALSE),VLOOKUP($M47,TT_Tabelle_Riferimento!$D$127:$H$164,5,FALSE))","v":40},{"$f":"+IFERROR(VLOOKUP(PX$27&\"-\"&$M47&\"_new\",Ammortamento_Finanziario!$H:$L,5,FALSE),VLOOKUP($M47,TT_Tabelle_Riferimento!$D$127:$H$164,5,FALSE))","v":40},{"$f":"+IFERROR(VLOOKUP(PY$27&\"-\"&$M47&\"_new\",Ammortamento_Finanziario!$H:$L,5,FALSE),VLOOKUP($M47,TT_Tabelle_Riferimento!$D$127:$H$164,5,FALSE))","v":40},{"$f":"+IFERROR(VLOOKUP(PZ$27&\"-\"&$M47&\"_new\",Ammortamento_Finanziario!$H:$L,5,FALSE),VLOOKUP($M47,TT_Tabelle_Riferimento!$D$127:$H$164,5,FALSE))","v":40},{"$f":"+IFERROR(VLOOKUP(QA$27&\"-\"&$M47&\"_new\",Ammortamento_Finanziario!$H:$L,5,FALSE),VLOOKUP($M47,TT_Tabelle_Riferimento!$D$127:$H$164,5,FALSE))","v":40},{"$f":"+IFERROR(VLOOKUP(QB$27&\"-\"&$M47&\"_new\",Ammortamento_Finanziario!$H:$L,5,FALSE),VLOOKUP($M47,TT_Tabelle_Riferimento!$D$127:$H$164,5,FALSE))","v":40},{"$f":"+IFERROR(VLOOKUP(QC$27&\"-\"&$M47&\"_new\",Ammortamento_Finanziario!$H:$L,5,FALSE),VLOOKUP($M47,TT_Tabelle_Riferimento!$D$127:$H$164,5,FALSE))","v":40},{"$f":"+IFERROR(VLOOKUP(QD$27&\"-\"&$M47&\"_new\",Ammortamento_Finanziario!$H:$L,5,FALSE),VLOOKUP($M47,TT_Tabelle_Riferimento!$D$127:$H$164,5,FALSE))","v":40},{"$f":"+IFERROR(VLOOKUP(QE$27&\"-\"&$M47&\"_new\",Ammortamento_Finanziario!$H:$L,5,FALSE),VLOOKUP($M47,TT_Tabelle_Riferimento!$D$127:$H$164,5,FALSE))","v":40},{"$f":"+IFERROR(VLOOKUP(QF$27&\"-\"&$M47&\"_new\",Ammortamento_Finanziario!$H:$L,5,FALSE),VLOOKUP($M47,TT_Tabelle_Riferimento!$D$127:$H$164,5,FALSE))","v":40},{"$f":"+IFERROR(VLOOKUP(QG$27&\"-\"&$M47&\"_new\",Ammortamento_Finanziario!$H:$L,5,FALSE),VLOOKUP($M47,TT_Tabelle_Riferimento!$D$127:$H$164,5,FALSE))","v":40},{"$f":"+IFERROR(VLOOKUP(QH$27&\"-\"&$M47&\"_new\",Ammortamento_Finanziario!$H:$L,5,FALSE),VLOOKUP($M47,TT_Tabelle_Riferimento!$D$127:$H$164,5,FALSE))","v":40},{"$f":"+IFERROR(VLOOKUP(QI$27&\"-\"&$M47&\"_new\",Ammortamento_Finanziario!$H:$L,5,FALSE),VLOOKUP($M47,TT_Tabelle_Riferimento!$D$127:$H$164,5,FALSE))","v":40},{"$f":"+IFERROR(VLOOKUP(QJ$27&\"-\"&$M47&\"_new\",Ammortamento_Finanziario!$H:$L,5,FALSE),VLOOKUP($M47,TT_Tabelle_Riferimento!$D$127:$H$164,5,FALSE))","v":40},{"$f":"+IFERROR(VLOOKUP(QK$27&\"-\"&$M47&\"_new\",Ammortamento_Finanziario!$H:$L,5,FALSE),VLOOKUP($M47,TT_Tabelle_Riferimento!$D$127:$H$164,5,FALSE))","v":40},{"$f":"+IFERROR(VLOOKUP(QL$27&\"-\"&$M47&\"_new\",Ammortamento_Finanziario!$H:$L,5,FALSE),VLOOKUP($M47,TT_Tabelle_Riferimento!$D$127:$H$164,5,FALSE))","v":40},{"$f":"+IFERROR(VLOOKUP(QM$27&\"-\"&$M47&\"_new\",Ammortamento_Finanziario!$H:$L,5,FALSE),VLOOKUP($M47,TT_Tabelle_Riferimento!$D$127:$H$164,5,FALSE))","v":40},{"$f":"+IFERROR(VLOOKUP(QN$27&\"-\"&$M47&\"_new\",Ammortamento_Finanziario!$H:$L,5,FALSE),VLOOKUP($M47,TT_Tabelle_Riferimento!$D$127:$H$164,5,FALSE))","v":40},{"$f":"+IFERROR(VLOOKUP(QO$27&\"-\"&$M47&\"_new\",Ammortamento_Finanziario!$H:$L,5,FALSE),VLOOKUP($M47,TT_Tabelle_Riferimento!$D$127:$H$164,5,FALSE))","v":40},{"$f":"+IFERROR(VLOOKUP(QP$27&\"-\"&$M47&\"_new\",Ammortamento_Finanziario!$H:$L,5,FALSE),VLOOKUP($M47,TT_Tabelle_Riferimento!$D$127:$H$164,5,FALSE))","v":40},{"$f":"+IFERROR(VLOOKUP(QQ$27&\"-\"&$M47&\"_new\",Ammortamento_Finanziario!$H:$L,5,FALSE),VLOOKUP($M47,TT_Tabelle_Riferimento!$D$127:$H$164,5,FALSE))","v":40},{"$f":"+IFERROR(VLOOKUP(QR$27&\"-\"&$M47&\"_new\",Ammortamento_Finanziario!$H:$L,5,FALSE),VLOOKUP($M47,TT_Tabelle_Riferimento!$D$127:$H$164,5,FALSE))","v":40},{"$f":"+IFERROR(VLOOKUP(QS$27&\"-\"&$M47&\"_new\",Ammortamento_Finanziario!$H:$L,5,FALSE),VLOOKUP($M47,TT_Tabelle_Riferimento!$D$127:$H$164,5,FALSE))","v":40},{"$f":"+IFERROR(VLOOKUP(QT$27&\"-\"&$M47&\"_new\",Ammortamento_Finanziario!$H:$L,5,FALSE),VLOOKUP($M47,TT_Tabelle_Riferimento!$D$127:$H$164,5,FALSE))","v":40},{"$f":"+IFERROR(VLOOKUP(QU$27&\"-\"&$M47&\"_new\",Ammortamento_Finanziario!$H:$L,5,FALSE),VLOOKUP($M47,TT_Tabelle_Riferimento!$D$127:$H$164,5,FALSE))","v":40},{"$f":"+IFERROR(VLOOKUP(QV$27&\"-\"&$M47&\"_new\",Ammortamento_Finanziario!$H:$L,5,FALSE),VLOOKUP($M47,TT_Tabelle_Riferimento!$D$127:$H$164,5,FALSE))","v":40},{"$f":"+IFERROR(VLOOKUP(QW$27&\"-\"&$M47&\"_new\",Ammortamento_Finanziario!$H:$L,5,FALSE),VLOOKUP($M47,TT_Tabelle_Riferimento!$D$127:$H$164,5,FALSE))","v":40},{"$f":"+IFERROR(VLOOKUP(QX$27&\"-\"&$M47&\"_new\",Ammortamento_Finanziario!$H:$L,5,FALSE),VLOOKUP($M47,TT_Tabelle_Riferimento!$D$127:$H$164,5,FALSE))","v":40},{"$f":"+IFERROR(VLOOKUP(QY$27&\"-\"&$M47&\"_new\",Ammortamento_Finanziario!$H:$L,5,FALSE),VLOOKUP($M47,TT_Tabelle_Riferimento!$D$127:$H$164,5,FALSE))","v":40},{"$f":"+IFERROR(VLOOKUP(QZ$27&\"-\"&$M47&\"_new\",Ammortamento_Finanziario!$H:$L,5,FALSE),VLOOKUP($M47,TT_Tabelle_Riferimento!$D$127:$H$164,5,FALSE))","v":40},{"$f":"+IFERROR(VLOOKUP(RA$27&\"-\"&$M47&\"_new\",Ammortamento_Finanziario!$H:$L,5,FALSE),VLOOKUP($M47,TT_Tabelle_Riferimento!$D$127:$H$164,5,FALSE))","v":40},{"$f":"+IFERROR(VLOOKUP(RB$27&\"-\"&$M47&\"_new\",Ammortamento_Finanziario!$H:$L,5,FALSE),VLOOKUP($M47,TT_Tabelle_Riferimento!$D$127:$H$164,5,FALSE))","v":40},{"$f":"+IFERROR(VLOOKUP(RC$27&\"-\"&$M47&\"_new\",Ammortamento_Finanziario!$H:$L,5,FALSE),VLOOKUP($M47,TT_Tabelle_Riferimento!$D$127:$H$164,5,FALSE))","v":40},{"$f":"+IFERROR(VLOOKUP(RD$27&\"-\"&$M47&\"_new\",Ammortamento_Finanziario!$H:$L,5,FALSE),VLOOKUP($M47,TT_Tabelle_Riferimento!$D$127:$H$164,5,FALSE))","v":40},{"$f":"+IFERROR(VLOOKUP(RE$27&\"-\"&$M47&\"_new\",Ammortamento_Finanziario!$H:$L,5,FALSE),VLOOKUP($M47,TT_Tabelle_Riferimento!$D$127:$H$164,5,FALSE))","v":40},{"$f":"+IFERROR(VLOOKUP(RF$27&\"-\"&$M47&\"_new\",Ammortamento_Finanziario!$H:$L,5,FALSE),VLOOKUP($M47,TT_Tabelle_Riferimento!$D$127:$H$164,5,FALSE))","v":40},{"$f":"+IFERROR(VLOOKUP(RG$27&\"-\"&$M47&\"_new\",Ammortamento_Finanziario!$H:$L,5,FALSE),VLOOKUP($M47,TT_Tabelle_Riferimento!$D$127:$H$164,5,FALSE))","v":40},{"$f":"+IFERROR(VLOOKUP(RH$27&\"-\"&$M47&\"_new\",Ammortamento_Finanziario!$H:$L,5,FALSE),VLOOKUP($M47,TT_Tabelle_Riferimento!$D$127:$H$164,5,FALSE))","v":40},{"$f":"+IFERROR(VLOOKUP(RI$27&\"-\"&$M47&\"_new\",Ammortamento_Finanziario!$H:$L,5,FALSE),VLOOKUP($M47,TT_Tabelle_Riferimento!$D$127:$H$164,5,FALSE))","v":40},{"$f":"+IFERROR(VLOOKUP(RJ$27&\"-\"&$M47&\"_new\",Ammortamento_Finanziario!$H:$L,5,FALSE),VLOOKUP($M47,TT_Tabelle_Riferimento!$D$127:$H$164,5,FALSE))","v":40},{"$f":"+IFERROR(VLOOKUP(RK$27&\"-\"&$M47&\"_new\",Ammortamento_Finanziario!$H:$L,5,FALSE),VLOOKUP($M47,TT_Tabelle_Riferimento!$D$127:$H$164,5,FALSE))","v":40},{"$f":"+IFERROR(VLOOKUP(RL$27&\"-\"&$M47&\"_new\",Ammortamento_Finanziario!$H:$L,5,FALSE),VLOOKUP($M47,TT_Tabelle_Riferimento!$D$127:$H$164,5,FALSE))","v":40},{"$f":"+IFERROR(VLOOKUP(RM$27&\"-\"&$M47&\"_new\",Ammortamento_Finanziario!$H:$L,5,FALSE),VLOOKUP($M47,TT_Tabelle_Riferimento!$D$127:$H$164,5,FALSE))","v":40},{"$f":"+IFERROR(VLOOKUP(RN$27&\"-\"&$M47&\"_new\",Ammortamento_Finanziario!$H:$L,5,FALSE),VLOOKUP($M47,TT_Tabelle_Riferimento!$D$127:$H$164,5,FALSE))","v":40},{"$f":"+IFERROR(VLOOKUP(RO$27&\"-\"&$M47&\"_new\",Ammortamento_Finanziario!$H:$L,5,FALSE),VLOOKUP($M47,TT_Tabelle_Riferimento!$D$127:$H$164,5,FALSE))","v":40},{"$f":"+IFERROR(VLOOKUP(RP$27&\"-\"&$M47&\"_new\",Ammortamento_Finanziario!$H:$L,5,FALSE),VLOOKUP($M47,TT_Tabelle_Riferimento!$D$127:$H$164,5,FALSE))","v":40},{"$f":"+IFERROR(VLOOKUP(RQ$27&\"-\"&$M47&\"_new\",Ammortamento_Finanziario!$H:$L,5,FALSE),VLOOKUP($M47,TT_Tabelle_Riferimento!$D$127:$H$164,5,FALSE))","v":40},{"$f":"+IFERROR(VLOOKUP(RR$27&\"-\"&$M47&\"_new\",Ammortamento_Finanziario!$H:$L,5,FALSE),VLOOKUP($M47,TT_Tabelle_Riferimento!$D$127:$H$164,5,FALSE))","v":40},{"$f":"+IFERROR(VLOOKUP(RS$27&\"-\"&$M47&\"_new\",Ammortamento_Finanziario!$H:$L,5,FALSE),VLOOKUP($M47,TT_Tabelle_Riferimento!$D$127:$H$164,5,FALSE))","v":40},{"$f":"+IFERROR(VLOOKUP(RT$27&\"-\"&$M47&\"_new\",Ammortamento_Finanziario!$H:$L,5,FALSE),VLOOKUP($M47,TT_Tabelle_Riferimento!$D$127:$H$164,5,FALSE))","v":40},{"$f":"+IFERROR(VLOOKUP(RU$27&\"-\"&$M47&\"_new\",Ammortamento_Finanziario!$H:$L,5,FALSE),VLOOKUP($M47,TT_Tabelle_Riferimento!$D$127:$H$164,5,FALSE))","v":40},{"$f":"+IFERROR(VLOOKUP(RV$27&\"-\"&$M47&\"_new\",Ammortamento_Finanziario!$H:$L,5,FALSE),VLOOKUP($M47,TT_Tabelle_Riferimento!$D$127:$H$164,5,FALSE))","v":40}]
[null,null,null,"CINfp",{"$f":"+SUMIFS(IMN_gestore!W:W,IMN_gestore!$G:$G,\"Env\")","v":0},{"$f":"+SUMIFS(IMN_gestore!AH:AH,IMN_gestore!$G:$G,\"Env\")","v":0},{"$f":"+SUMIFS(IMN_gestore!AS:AS,IMN_gestore!$G:$G,\"Env\")","v":0},{"$f":"+SUMIFS(IMN_gestore!BD:BD,IMN_gestore!$G:$G,\"Env\")","v":0},{"$f":"+SUMIFS(IMN_gestore!$BO:$BO,IMN_gestore!$G:$G,\"Env\")","v":0},{"$f":"+SUMIFS(IMN_gestore!$BZ:$BZ,IMN_gestore!$G:$G,\"Env\")","v":0},null,null,21,0,0,0,0,0,0,0,0,0,0,0,0,0,0,0,0,0,0,0,0,0,0,0,0,0,0,0,0,0,0,0,0,0,0,0,0,0,0,0,0,0,0,0,0,0,0,0,0,0,0,0,0,0,0,0,0,0,0,0,0,0,0,0,0,0,0,0,0,0,0,0,0,0,0,0,0,0,0,0,0,0,0,0,0,0,0,0,0,0,0,0,0,0,0,0,0,0,0,0,0,0,0,0,0,0,0,0,0,0,0,0,0,0,0,0,0,0,0,0,0,0,0,0,0,0,0,0,0,0,0,0,0,0,0,0,0,0,0,0,0,0,0,0,0,0,0,0,0,0,0,0,0,0,0,0,0,0,0,0,0,0,0,0,0,0,0,0,0,0,0,0,0,0,0,0,0,0,0,0,0,0,0,0,0,0,0,0,0,0,0,0,0,0,0,0,0,0,0,0,0,0,0,0,0,0,0,0,0,0,0,0,0,0,0,0,0,0,0,0,0,0,0,0,0,0,0,0,0,0,0,0,0,0,0,0,0,0,0,0,0,0,0,0,0,0,0,0,0,0,0,0,0,0,0,0,0,0,0,0,0,0,0,0,0,0,0,0,0,0,0,0,0,0,0,0,0,0,0,0,0,0,0,0,0,0,0,0,0,0,{"$f":"+IFERROR(VLOOKUP(KQ$27&\"-\"&$M48&\"_new\",Ammortamento_Finanziario!$H:$L,5,FALSE),VLOOKUP($M48,TT_Tabelle_Riferimento!$D$127:$H$164,5,FALSE))","v":20},{"$f":"+IFERROR(VLOOKUP(KR$27&\"-\"&$M48&\"_new\",Ammortamento_Finanziario!$H:$L,5,FALSE),VLOOKUP($M48,TT_Tabelle_Riferimento!$D$127:$H$164,5,FALSE))","v":20},{"$f":"+IFERROR(VLOOKUP(KS$27&\"-\"&$M48&\"_new\",Ammortamento_Finanziario!$H:$L,5,FALSE),VLOOKUP($M48,TT_Tabelle_Riferimento!$D$127:$H$164,5,FALSE))","v":20},{"$f":"+IFERROR(VLOOKUP(KT$27&\"-\"&$M48&\"_new\",Ammortamento_Finanziario!$H:$L,5,FALSE),VLOOKUP($M48,TT_Tabelle_Riferimento!$D$127:$H$164,5,FALSE))","v":20},{"$f":"+IFERROR(VLOOKUP(KU$27&\"-\"&$M48&\"_new\",Ammortamento_Finanziario!$H:$L,5,FALSE),VLOOKUP($M48,TT_Tabelle_Riferimento!$D$127:$H$164,5,FALSE))","v":20},{"$f":"+IFERROR(VLOOKUP(KV$27&\"-\"&$M48&\"_new\",Ammortamento_Finanziario!$H:$L,5,FALSE),VLOOKUP($M48,TT_Tabelle_Riferimento!$D$127:$H$164,5,FALSE))","v":20},{"$f":"+IFERROR(VLOOKUP(KW$27&\"-\"&$M48&\"_new\",Ammortamento_Finanziario!$H:$L,5,FALSE),VLOOKUP($M48,TT_Tabelle_Riferimento!$D$127:$H$164,5,FALSE))","v":20},{"$f":"+IFERROR(VLOOKUP(KX$27&\"-\"&$M48&\"_new\",Ammortamento_Finanziario!$H:$L,5,FALSE),VLOOKUP($M48,TT_Tabelle_Riferimento!$D$127:$H$164,5,FALSE))","v":20},{"$f":"+IFERROR(VLOOKUP(KY$27&\"-\"&$M48&\"_new\",Ammortamento_Finanziario!$H:$L,5,FALSE),VLOOKUP($M48,TT_Tabelle_Riferimento!$D$127:$H$164,5,FALSE))","v":20},{"$f":"+IFERROR(VLOOKUP(KZ$27&\"-\"&$M48&\"_new\",Ammortamento_Finanziario!$H:$L,5,FALSE),VLOOKUP($M48,TT_Tabelle_Riferimento!$D$127:$H$164,5,FALSE))","v":20},{"$f":"+IFERROR(VLOOKUP(LA$27&\"-\"&$M48&\"_new\",Ammortamento_Finanziario!$H:$L,5,FALSE),VLOOKUP($M48,TT_Tabelle_Riferimento!$D$127:$H$164,5,FALSE))","v":20},{"$f":"+IFERROR(VLOOKUP(LB$27&\"-\"&$M48&\"_new\",Ammortamento_Finanziario!$H:$L,5,FALSE),VLOOKUP($M48,TT_Tabelle_Riferimento!$D$127:$H$164,5,FALSE))","v":20},{"$f":"+IFERROR(VLOOKUP(LC$27&\"-\"&$M48&\"_new\",Ammortamento_Finanziario!$H:$L,5,FALSE),VLOOKUP($M48,TT_Tabelle_Riferimento!$D$127:$H$164,5,FALSE))","v":20},{"$f":"+IFERROR(VLOOKUP(LD$27&\"-\"&$M48&\"_new\",Ammortamento_Finanziario!$H:$L,5,FALSE),VLOOKUP($M48,TT_Tabelle_Riferimento!$D$127:$H$164,5,FALSE))","v":20},{"$f":"+IFERROR(VLOOKUP(LE$27&\"-\"&$M48&\"_new\",Ammortamento_Finanziario!$H:$L,5,FALSE),VLOOKUP($M48,TT_Tabelle_Riferimento!$D$127:$H$164,5,FALSE))","v":20},{"$f":"+IFERROR(VLOOKUP(LF$27&\"-\"&$M48&\"_new\",Ammortamento_Finanziario!$H:$L,5,FALSE),VLOOKUP($M48,TT_Tabelle_Riferimento!$D$127:$H$164,5,FALSE))","v":20},{"$f":"+IFERROR(VLOOKUP(LG$27&\"-\"&$M48&\"_new\",Ammortamento_Finanziario!$H:$L,5,FALSE),VLOOKUP($M48,TT_Tabelle_Riferimento!$D$127:$H$164,5,FALSE))","v":20},{"$f":"+IFERROR(VLOOKUP(LH$27&\"-\"&$M48&\"_new\",Ammortamento_Finanziario!$H:$L,5,FALSE),VLOOKUP($M48,TT_Tabelle_Riferimento!$D$127:$H$164,5,FALSE))","v":20},{"$f":"+IFERROR(VLOOKUP(LI$27&\"-\"&$M48&\"_new\",Ammortamento_Finanziario!$H:$L,5,FALSE),VLOOKUP($M48,TT_Tabelle_Riferimento!$D$127:$H$164,5,FALSE))","v":20},{"$f":"+IFERROR(VLOOKUP(LJ$27&\"-\"&$M48&\"_new\",Ammortamento_Finanziario!$H:$L,5,FALSE),VLOOKUP($M48,TT_Tabelle_Riferimento!$D$127:$H$164,5,FALSE))","v":20},{"$f":"+IFERROR(VLOOKUP(LK$27&\"-\"&$M48&\"_new\",Ammortamento_Finanziario!$H:$L,5,FALSE),VLOOKUP($M48,TT_Tabelle_Riferimento!$D$127:$H$164,5,FALSE))","v":20},{"$f":"+IFERROR(VLOOKUP(LL$27&\"-\"&$M48&\"_new\",Ammortamento_Finanziario!$H:$L,5,FALSE),VLOOKUP($M48,TT_Tabelle_Riferimento!$D$127:$H$164,5,FALSE))","v":20},{"$f":"+IFERROR(VLOOKUP(LM$27&\"-\"&$M48&\"_new\",Ammortamento_Finanziario!$H:$L,5,FALSE),VLOOKUP($M48,TT_Tabelle_Riferimento!$D$127:$H$164,5,FALSE))","v":20},{"$f":"+IFERROR(VLOOKUP(LN$27&\"-\"&$M48&\"_new\",Ammortamento_Finanziario!$H:$L,5,FALSE),VLOOKUP($M48,TT_Tabelle_Riferimento!$D$127:$H$164,5,FALSE))","v":20},{"$f":"+IFERROR(VLOOKUP(LO$27&\"-\"&$M48&\"_new\",Ammortamento_Finanziario!$H:$L,5,FALSE),VLOOKUP($M48,TT_Tabelle_Riferimento!$D$127:$H$164,5,FALSE))","v":20},{"$f":"+IFERROR(VLOOKUP(LP$27&\"-\"&$M48&\"_new\",Ammortamento_Finanziario!$H:$L,5,FALSE),VLOOKUP($M48,TT_Tabelle_Riferimento!$D$127:$H$164,5,FALSE))","v":20},{"$f":"+IFERROR(VLOOKUP(LQ$27&\"-\"&$M48&\"_new\",Ammortamento_Finanziario!$H:$L,5,FALSE),VLOOKUP($M48,TT_Tabelle_Riferimento!$D$127:$H$164,5,FALSE))","v":20},{"$f":"+IFERROR(VLOOKUP(LR$27&\"-\"&$M48&\"_new\",Ammortamento_Finanziario!$H:$L,5,FALSE),VLOOKUP($M48,TT_Tabelle_Riferimento!$D$127:$H$164,5,FALSE))","v":20},{"$f":"+IFERROR(VLOOKUP(LS$27&\"-\"&$M48&\"_new\",Ammortamento_Finanziario!$H:$L,5,FALSE),VLOOKUP($M48,TT_Tabelle_Riferimento!$D$127:$H$164,5,FALSE))","v":20},{"$f":"+IFERROR(VLOOKUP(LT$27&\"-\"&$M48&\"_new\",Ammortamento_Finanziario!$H:$L,5,FALSE),VLOOKUP($M48,TT_Tabelle_Riferimento!$D$127:$H$164,5,FALSE))","v":20},{"$f":"+IFERROR(VLOOKUP(LU$27&\"-\"&$M48&\"_new\",Ammortamento_Finanziario!$H:$L,5,FALSE),VLOOKUP($M48,TT_Tabelle_Riferimento!$D$127:$H$164,5,FALSE))","v":20},{"$f":"+IFERROR(VLOOKUP(LV$27&\"-\"&$M48&\"_new\",Ammortamento_Finanziario!$H:$L,5,FALSE),VLOOKUP($M48,TT_Tabelle_Riferimento!$D$127:$H$164,5,FALSE))","v":20},{"$f":"+IFERROR(VLOOKUP(LW$27&\"-\"&$M48&\"_new\",Ammortamento_Finanziario!$H:$L,5,FALSE),VLOOKUP($M48,TT_Tabelle_Riferimento!$D$127:$H$164,5,FALSE))","v":20},{"$f":"+IFERROR(VLOOKUP(LX$27&\"-\"&$M48&\"_new\",Ammortamento_Finanziario!$H:$L,5,FALSE),VLOOKUP($M48,TT_Tabelle_Riferimento!$D$127:$H$164,5,FALSE))","v":20},{"$f":"+IFERROR(VLOOKUP(LY$27&\"-\"&$M48&\"_new\",Ammortamento_Finanziario!$H:$L,5,FALSE),VLOOKUP($M48,TT_Tabelle_Riferimento!$D$127:$H$164,5,FALSE))","v":20},{"$f":"+IFERROR(VLOOKUP(LZ$27&\"-\"&$M48&\"_new\",Ammortamento_Finanziario!$H:$L,5,FALSE),VLOOKUP($M48,TT_Tabelle_Riferimento!$D$127:$H$164,5,FALSE))","v":20},{"$f":"+IFERROR(VLOOKUP(MA$27&\"-\"&$M48&\"_new\",Ammortamento_Finanziario!$H:$L,5,FALSE),VLOOKUP($M48,TT_Tabelle_Riferimento!$D$127:$H$164,5,FALSE))","v":20},{"$f":"+IFERROR(VLOOKUP(MB$27&\"-\"&$M48&\"_new\",Ammortamento_Finanziario!$H:$L,5,FALSE),VLOOKUP($M48,TT_Tabelle_Riferimento!$D$127:$H$164,5,FALSE))","v":20},{"$f":"+IFERROR(VLOOKUP(MC$27&\"-\"&$M48&\"_new\",Ammortamento_Finanziario!$H:$L,5,FALSE),VLOOKUP($M48,TT_Tabelle_Riferimento!$D$127:$H$164,5,FALSE))","v":20},{"$f":"+IFERROR(VLOOKUP(MD$27&\"-\"&$M48&\"_new\",Ammortamento_Finanziario!$H:$L,5,FALSE),VLOOKUP($M48,TT_Tabelle_Riferimento!$D$127:$H$164,5,FALSE))","v":20},{"$f":"+IFERROR(VLOOKUP(ME$27&\"-\"&$M48&\"_new\",Ammortamento_Finanziario!$H:$L,5,FALSE),VLOOKUP($M48,TT_Tabelle_Riferimento!$D$127:$H$164,5,FALSE))","v":20},{"$f":"+IFERROR(VLOOKUP(MF$27&\"-\"&$M48&\"_new\",Ammortamento_Finanziario!$H:$L,5,FALSE),VLOOKUP($M48,TT_Tabelle_Riferimento!$D$127:$H$164,5,FALSE))","v":20},{"$f":"+IFERROR(VLOOKUP(MG$27&\"-\"&$M48&\"_new\",Ammortamento_Finanziario!$H:$L,5,FALSE),VLOOKUP($M48,TT_Tabelle_Riferimento!$D$127:$H$164,5,FALSE))","v":20},{"$f":"+IFERROR(VLOOKUP(MH$27&\"-\"&$M48&\"_new\",Ammortamento_Finanziario!$H:$L,5,FALSE),VLOOKUP($M48,TT_Tabelle_Riferimento!$D$127:$H$164,5,FALSE))","v":20},{"$f":"+IFERROR(VLOOKUP(MI$27&\"-\"&$M48&\"_new\",Ammortamento_Finanziario!$H:$L,5,FALSE),VLOOKUP($M48,TT_Tabelle_Riferimento!$D$127:$H$164,5,FALSE))","v":20},{"$f":"+IFERROR(VLOOKUP(MJ$27&\"-\"&$M48&\"_new\",Ammortamento_Finanziario!$H:$L,5,FALSE),VLOOKUP($M48,TT_Tabelle_Riferimento!$D$127:$H$164,5,FALSE))","v":20},{"$f":"+IFERROR(VLOOKUP(MK$27&\"-\"&$M48&\"_new\",Ammortamento_Finanziario!$H:$L,5,FALSE),VLOOKUP($M48,TT_Tabelle_Riferimento!$D$127:$H$164,5,FALSE))","v":20},{"$f":"+IFERROR(VLOOKUP(ML$27&\"-\"&$M48&\"_new\",Ammortamento_Finanziario!$H:$L,5,FALSE),VLOOKUP($M48,TT_Tabelle_Riferimento!$D$127:$H$164,5,FALSE))","v":20},{"$f":"+IFERROR(VLOOKUP(MM$27&\"-\"&$M48&\"_new\",Ammortamento_Finanziario!$H:$L,5,FALSE),VLOOKUP($M48,TT_Tabelle_Riferimento!$D$127:$H$164,5,FALSE))","v":20},{"$f":"+IFERROR(VLOOKUP(MN$27&\"-\"&$M48&\"_new\",Ammortamento_Finanziario!$H:$L,5,FALSE),VLOOKUP($M48,TT_Tabelle_Riferimento!$D$127:$H$164,5,FALSE))","v":20},{"$f":"+IFERROR(VLOOKUP(MO$27&\"-\"&$M48&\"_new\",Ammortamento_Finanziario!$H:$L,5,FALSE),VLOOKUP($M48,TT_Tabelle_Riferimento!$D$127:$H$164,5,FALSE))","v":20},{"$f":"+IFERROR(VLOOKUP(MP$27&\"-\"&$M48&\"_new\",Ammortamento_Finanziario!$H:$L,5,FALSE),VLOOKUP($M48,TT_Tabelle_Riferimento!$D$127:$H$164,5,FALSE))","v":20},{"$f":"+IFERROR(VLOOKUP(MQ$27&\"-\"&$M48&\"_new\",Ammortamento_Finanziario!$H:$L,5,FALSE),VLOOKUP($M48,TT_Tabelle_Riferimento!$D$127:$H$164,5,FALSE))","v":20},{"$f":"+IFERROR(VLOOKUP(MR$27&\"-\"&$M48&\"_new\",Ammortamento_Finanziario!$H:$L,5,FALSE),VLOOKUP($M48,TT_Tabelle_Riferimento!$D$127:$H$164,5,FALSE))","v":20},{"$f":"+IFERROR(VLOOKUP(MS$27&\"-\"&$M48&\"_new\",Ammortamento_Finanziario!$H:$L,5,FALSE),VLOOKUP($M48,TT_Tabelle_Riferimento!$D$127:$H$164,5,FALSE))","v":20},{"$f":"+IFERROR(VLOOKUP(MT$27&\"-\"&$M48&\"_new\",Ammortamento_Finanziario!$H:$L,5,FALSE),VLOOKUP($M48,TT_Tabelle_Riferimento!$D$127:$H$164,5,FALSE))","v":20},{"$f":"+IFERROR(VLOOKUP(MU$27&\"-\"&$M48&\"_new\",Ammortamento_Finanziario!$H:$L,5,FALSE),VLOOKUP($M48,TT_Tabelle_Riferimento!$D$127:$H$164,5,FALSE))","v":20},{"$f":"+IFERROR(VLOOKUP(MV$27&\"-\"&$M48&\"_new\",Ammortamento_Finanziario!$H:$L,5,FALSE),VLOOKUP($M48,TT_Tabelle_Riferimento!$D$127:$H$164,5,FALSE))","v":20},{"$f":"+IFERROR(VLOOKUP(MW$27&\"-\"&$M48&\"_new\",Ammortamento_Finanziario!$H:$L,5,FALSE),VLOOKUP($M48,TT_Tabelle_Riferimento!$D$127:$H$164,5,FALSE))","v":20},{"$f":"+IFERROR(VLOOKUP(MX$27&\"-\"&$M48&\"_new\",Ammortamento_Finanziario!$H:$L,5,FALSE),VLOOKUP($M48,TT_Tabelle_Riferimento!$D$127:$H$164,5,FALSE))","v":20},{"$f":"+IFERROR(VLOOKUP(MY$27&\"-\"&$M48&\"_new\",Ammortamento_Finanziario!$H:$L,5,FALSE),VLOOKUP($M48,TT_Tabelle_Riferimento!$D$127:$H$164,5,FALSE))","v":20},{"$f":"+IFERROR(VLOOKUP(MZ$27&\"-\"&$M48&\"_new\",Ammortamento_Finanziario!$H:$L,5,FALSE),VLOOKUP($M48,TT_Tabelle_Riferimento!$D$127:$H$164,5,FALSE))","v":20},{"$f":"+IFERROR(VLOOKUP(NA$27&\"-\"&$M48&\"_new\",Ammortamento_Finanziario!$H:$L,5,FALSE),VLOOKUP($M48,TT_Tabelle_Riferimento!$D$127:$H$164,5,FALSE))","v":20},{"$f":"+IFERROR(VLOOKUP(NB$27&\"-\"&$M48&\"_new\",Ammortamento_Finanziario!$H:$L,5,FALSE),VLOOKUP($M48,TT_Tabelle_Riferimento!$D$127:$H$164,5,FALSE))","v":20},{"$f":"+IFERROR(VLOOKUP(NC$27&\"-\"&$M48&\"_new\",Ammortamento_Finanziario!$H:$L,5,FALSE),VLOOKUP($M48,TT_Tabelle_Riferimento!$D$127:$H$164,5,FALSE))","v":20},{"$f":"+IFERROR(VLOOKUP(ND$27&\"-\"&$M48&\"_new\",Ammortamento_Finanziario!$H:$L,5,FALSE),VLOOKUP($M48,TT_Tabelle_Riferimento!$D$127:$H$164,5,FALSE))","v":20},{"$f":"+IFERROR(VLOOKUP(NE$27&\"-\"&$M48&\"_new\",Ammortamento_Finanziario!$H:$L,5,FALSE),VLOOKUP($M48,TT_Tabelle_Riferimento!$D$127:$H$164,5,FALSE))","v":20},{"$f":"+IFERROR(VLOOKUP(NF$27&\"-\"&$M48&\"_new\",Ammortamento_Finanziario!$H:$L,5,FALSE),VLOOKUP($M48,TT_Tabelle_Riferimento!$D$127:$H$164,5,FALSE))","v":20},{"$f":"+IFERROR(VLOOKUP(NG$27&\"-\"&$M48&\"_new\",Ammortamento_Finanziario!$H:$L,5,FALSE),VLOOKUP($M48,TT_Tabelle_Riferimento!$D$127:$H$164,5,FALSE))","v":20},{"$f":"+IFERROR(VLOOKUP(NH$27&\"-\"&$M48&\"_new\",Ammortamento_Finanziario!$H:$L,5,FALSE),VLOOKUP($M48,TT_Tabelle_Riferimento!$D$127:$H$164,5,FALSE))","v":20},{"$f":"+IFERROR(VLOOKUP(NI$27&\"-\"&$M48&\"_new\",Ammortamento_Finanziario!$H:$L,5,FALSE),VLOOKUP($M48,TT_Tabelle_Riferimento!$D$127:$H$164,5,FALSE))","v":20},{"$f":"+IFERROR(VLOOKUP(NJ$27&\"-\"&$M48&\"_new\",Ammortamento_Finanziario!$H:$L,5,FALSE),VLOOKUP($M48,TT_Tabelle_Riferimento!$D$127:$H$164,5,FALSE))","v":20},{"$f":"+IFERROR(VLOOKUP(NK$27&\"-\"&$M48&\"_new\",Ammortamento_Finanziario!$H:$L,5,FALSE),VLOOKUP($M48,TT_Tabelle_Riferimento!$D$127:$H$164,5,FALSE))","v":20},{"$f":"+IFERROR(VLOOKUP(NL$27&\"-\"&$M48&\"_new\",Ammortamento_Finanziario!$H:$L,5,FALSE),VLOOKUP($M48,TT_Tabelle_Riferimento!$D$127:$H$164,5,FALSE))","v":20},{"$f":"+IFERROR(VLOOKUP(NM$27&\"-\"&$M48&\"_new\",Ammortamento_Finanziario!$H:$L,5,FALSE),VLOOKUP($M48,TT_Tabelle_Riferimento!$D$127:$H$164,5,FALSE))","v":20},{"$f":"+IFERROR(VLOOKUP(NN$27&\"-\"&$M48&\"_new\",Ammortamento_Finanziario!$H:$L,5,FALSE),VLOOKUP($M48,TT_Tabelle_Riferimento!$D$127:$H$164,5,FALSE))","v":20},{"$f":"+IFERROR(VLOOKUP(NO$27&\"-\"&$M48&\"_new\",Ammortamento_Finanziario!$H:$L,5,FALSE),VLOOKUP($M48,TT_Tabelle_Riferimento!$D$127:$H$164,5,FALSE))","v":20},{"$f":"+IFERROR(VLOOKUP(NP$27&\"-\"&$M48&\"_new\",Ammortamento_Finanziario!$H:$L,5,FALSE),VLOOKUP($M48,TT_Tabelle_Riferimento!$D$127:$H$164,5,FALSE))","v":20},{"$f":"+IFERROR(VLOOKUP(NQ$27&\"-\"&$M48&\"_new\",Ammortamento_Finanziario!$H:$L,5,FALSE),VLOOKUP($M48,TT_Tabelle_Riferimento!$D$127:$H$164,5,FALSE))","v":20},{"$f":"+IFERROR(VLOOKUP(NR$27&\"-\"&$M48&\"_new\",Ammortamento_Finanziario!$H:$L,5,FALSE),VLOOKUP($M48,TT_Tabelle_Riferimento!$D$127:$H$164,5,FALSE))","v":20},{"$f":"+IFERROR(VLOOKUP(NS$27&\"-\"&$M48&\"_new\",Ammortamento_Finanziario!$H:$L,5,FALSE),VLOOKUP($M48,TT_Tabelle_Riferimento!$D$127:$H$164,5,FALSE))","v":20},{"$f":"+IFERROR(VLOOKUP(NT$27&\"-\"&$M48&\"_new\",Ammortamento_Finanziario!$H:$L,5,FALSE),VLOOKUP($M48,TT_Tabelle_Riferimento!$D$127:$H$164,5,FALSE))","v":20},{"$f":"+IFERROR(VLOOKUP(NU$27&\"-\"&$M48&\"_new\",Ammortamento_Finanziario!$H:$L,5,FALSE),VLOOKUP($M48,TT_Tabelle_Riferimento!$D$127:$H$164,5,FALSE))","v":20},{"$f":"+IFERROR(VLOOKUP(NV$27&\"-\"&$M48&\"_new\",Ammortamento_Finanziario!$H:$L,5,FALSE),VLOOKUP($M48,TT_Tabelle_Riferimento!$D$127:$H$164,5,FALSE))","v":20},{"$f":"+IFERROR(VLOOKUP(NW$27&\"-\"&$M48&\"_new\",Ammortamento_Finanziario!$H:$L,5,FALSE),VLOOKUP($M48,TT_Tabelle_Riferimento!$D$127:$H$164,5,FALSE))","v":20},{"$f":"+IFERROR(VLOOKUP(NX$27&\"-\"&$M48&\"_new\",Ammortamento_Finanziario!$H:$L,5,FALSE),VLOOKUP($M48,TT_Tabelle_Riferimento!$D$127:$H$164,5,FALSE))","v":20},{"$f":"+IFERROR(VLOOKUP(NY$27&\"-\"&$M48&\"_new\",Ammortamento_Finanziario!$H:$L,5,FALSE),VLOOKUP($M48,TT_Tabelle_Riferimento!$D$127:$H$164,5,FALSE))","v":20},{"$f":"+IFERROR(VLOOKUP(NZ$27&\"-\"&$M48&\"_new\",Ammortamento_Finanziario!$H:$L,5,FALSE),VLOOKUP($M48,TT_Tabelle_Riferimento!$D$127:$H$164,5,FALSE))","v":20},{"$f":"+IFERROR(VLOOKUP(OA$27&\"-\"&$M48&\"_new\",Ammortamento_Finanziario!$H:$L,5,FALSE),VLOOKUP($M48,TT_Tabelle_Riferimento!$D$127:$H$164,5,FALSE))","v":20},{"$f":"+IFERROR(VLOOKUP(OB$27&\"-\"&$M48&\"_new\",Ammortamento_Finanziario!$H:$L,5,FALSE),VLOOKUP($M48,TT_Tabelle_Riferimento!$D$127:$H$164,5,FALSE))","v":20},{"$f":"+IFERROR(VLOOKUP(OC$27&\"-\"&$M48&\"_new\",Ammortamento_Finanziario!$H:$L,5,FALSE),VLOOKUP($M48,TT_Tabelle_Riferimento!$D$127:$H$164,5,FALSE))","v":20},{"$f":"+IFERROR(VLOOKUP(OD$27&\"-\"&$M48&\"_new\",Ammortamento_Finanziario!$H:$L,5,FALSE),VLOOKUP($M48,TT_Tabelle_Riferimento!$D$127:$H$164,5,FALSE))","v":20},{"$f":"+IFERROR(VLOOKUP(OE$27&\"-\"&$M48&\"_new\",Ammortamento_Finanziario!$H:$L,5,FALSE),VLOOKUP($M48,TT_Tabelle_Riferimento!$D$127:$H$164,5,FALSE))","v":20},{"$f":"+IFERROR(VLOOKUP(OF$27&\"-\"&$M48&\"_new\",Ammortamento_Finanziario!$H:$L,5,FALSE),VLOOKUP($M48,TT_Tabelle_Riferimento!$D$127:$H$164,5,FALSE))","v":20},{"$f":"+IFERROR(VLOOKUP(OG$27&\"-\"&$M48&\"_new\",Ammortamento_Finanziario!$H:$L,5,FALSE),VLOOKUP($M48,TT_Tabelle_Riferimento!$D$127:$H$164,5,FALSE))","v":20},{"$f":"+IFERROR(VLOOKUP(OH$27&\"-\"&$M48&\"_new\",Ammortamento_Finanziario!$H:$L,5,FALSE),VLOOKUP($M48,TT_Tabelle_Riferimento!$D$127:$H$164,5,FALSE))","v":20},{"$f":"+IFERROR(VLOOKUP(OI$27&\"-\"&$M48&\"_new\",Ammortamento_Finanziario!$H:$L,5,FALSE),VLOOKUP($M48,TT_Tabelle_Riferimento!$D$127:$H$164,5,FALSE))","v":20},{"$f":"+IFERROR(VLOOKUP(OJ$27&\"-\"&$M48&\"_new\",Ammortamento_Finanziario!$H:$L,5,FALSE),VLOOKUP($M48,TT_Tabelle_Riferimento!$D$127:$H$164,5,FALSE))","v":20},{"$f":"+IFERROR(VLOOKUP(OK$27&\"-\"&$M48&\"_new\",Ammortamento_Finanziario!$H:$L,5,FALSE),VLOOKUP($M48,TT_Tabelle_Riferimento!$D$127:$H$164,5,FALSE))","v":20},{"$f":"+IFERROR(VLOOKUP(OL$27&\"-\"&$M48&\"_new\",Ammortamento_Finanziario!$H:$L,5,FALSE),VLOOKUP($M48,TT_Tabelle_Riferimento!$D$127:$H$164,5,FALSE))","v":20},{"$f":"+IFERROR(VLOOKUP(OM$27&\"-\"&$M48&\"_new\",Ammortamento_Finanziario!$H:$L,5,FALSE),VLOOKUP($M48,TT_Tabelle_Riferimento!$D$127:$H$164,5,FALSE))","v":20},{"$f":"+IFERROR(VLOOKUP(ON$27&\"-\"&$M48&\"_new\",Ammortamento_Finanziario!$H:$L,5,FALSE),VLOOKUP($M48,TT_Tabelle_Riferimento!$D$127:$H$164,5,FALSE))","v":20},{"$f":"+IFERROR(VLOOKUP(OO$27&\"-\"&$M48&\"_new\",Ammortamento_Finanziario!$H:$L,5,FALSE),VLOOKUP($M48,TT_Tabelle_Riferimento!$D$127:$H$164,5,FALSE))","v":20},{"$f":"+IFERROR(VLOOKUP(OP$27&\"-\"&$M48&\"_new\",Ammortamento_Finanziario!$H:$L,5,FALSE),VLOOKUP($M48,TT_Tabelle_Riferimento!$D$127:$H$164,5,FALSE))","v":20},{"$f":"+IFERROR(VLOOKUP(OQ$27&\"-\"&$M48&\"_new\",Ammortamento_Finanziario!$H:$L,5,FALSE),VLOOKUP($M48,TT_Tabelle_Riferimento!$D$127:$H$164,5,FALSE))","v":20},{"$f":"+IFERROR(VLOOKUP(OR$27&\"-\"&$M48&\"_new\",Ammortamento_Finanziario!$H:$L,5,FALSE),VLOOKUP($M48,TT_Tabelle_Riferimento!$D$127:$H$164,5,FALSE))","v":20},{"$f":"+IFERROR(VLOOKUP(OS$27&\"-\"&$M48&\"_new\",Ammortamento_Finanziario!$H:$L,5,FALSE),VLOOKUP($M48,TT_Tabelle_Riferimento!$D$127:$H$164,5,FALSE))","v":20},{"$f":"+IFERROR(VLOOKUP(OT$27&\"-\"&$M48&\"_new\",Ammortamento_Finanziario!$H:$L,5,FALSE),VLOOKUP($M48,TT_Tabelle_Riferimento!$D$127:$H$164,5,FALSE))","v":20},{"$f":"+IFERROR(VLOOKUP(OU$27&\"-\"&$M48&\"_new\",Ammortamento_Finanziario!$H:$L,5,FALSE),VLOOKUP($M48,TT_Tabelle_Riferimento!$D$127:$H$164,5,FALSE))","v":20},{"$f":"+IFERROR(VLOOKUP(OV$27&\"-\"&$M48&\"_new\",Ammortamento_Finanziario!$H:$L,5,FALSE),VLOOKUP($M48,TT_Tabelle_Riferimento!$D$127:$H$164,5,FALSE))","v":20},{"$f":"+IFERROR(VLOOKUP(OW$27&\"-\"&$M48&\"_new\",Ammortamento_Finanziario!$H:$L,5,FALSE),VLOOKUP($M48,TT_Tabelle_Riferimento!$D$127:$H$164,5,FALSE))","v":20},{"$f":"+IFERROR(VLOOKUP(OX$27&\"-\"&$M48&\"_new\",Ammortamento_Finanziario!$H:$L,5,FALSE),VLOOKUP($M48,TT_Tabelle_Riferimento!$D$127:$H$164,5,FALSE))","v":20},{"$f":"+IFERROR(VLOOKUP(OY$27&\"-\"&$M48&\"_new\",Ammortamento_Finanziario!$H:$L,5,FALSE),VLOOKUP($M48,TT_Tabelle_Riferimento!$D$127:$H$164,5,FALSE))","v":20},{"$f":"+IFERROR(VLOOKUP(OZ$27&\"-\"&$M48&\"_new\",Ammortamento_Finanziario!$H:$L,5,FALSE),VLOOKUP($M48,TT_Tabelle_Riferimento!$D$127:$H$164,5,FALSE))","v":20},{"$f":"+IFERROR(VLOOKUP(PA$27&\"-\"&$M48&\"_new\",Ammortamento_Finanziario!$H:$L,5,FALSE),VLOOKUP($M48,TT_Tabelle_Riferimento!$D$127:$H$164,5,FALSE))","v":20},{"$f":"+IFERROR(VLOOKUP(PB$27&\"-\"&$M48&\"_new\",Ammortamento_Finanziario!$H:$L,5,FALSE),VLOOKUP($M48,TT_Tabelle_Riferimento!$D$127:$H$164,5,FALSE))","v":20},{"$f":"+IFERROR(VLOOKUP(PC$27&\"-\"&$M48&\"_new\",Ammortamento_Finanziario!$H:$L,5,FALSE),VLOOKUP($M48,TT_Tabelle_Riferimento!$D$127:$H$164,5,FALSE))","v":20},{"$f":"+IFERROR(VLOOKUP(PD$27&\"-\"&$M48&\"_new\",Ammortamento_Finanziario!$H:$L,5,FALSE),VLOOKUP($M48,TT_Tabelle_Riferimento!$D$127:$H$164,5,FALSE))","v":20},{"$f":"+IFERROR(VLOOKUP(PE$27&\"-\"&$M48&\"_new\",Ammortamento_Finanziario!$H:$L,5,FALSE),VLOOKUP($M48,TT_Tabelle_Riferimento!$D$127:$H$164,5,FALSE))","v":20},{"$f":"+IFERROR(VLOOKUP(PF$27&\"-\"&$M48&\"_new\",Ammortamento_Finanziario!$H:$L,5,FALSE),VLOOKUP($M48,TT_Tabelle_Riferimento!$D$127:$H$164,5,FALSE))","v":20},{"$f":"+IFERROR(VLOOKUP(PG$27&\"-\"&$M48&\"_new\",Ammortamento_Finanziario!$H:$L,5,FALSE),VLOOKUP($M48,TT_Tabelle_Riferimento!$D$127:$H$164,5,FALSE))","v":20},{"$f":"+IFERROR(VLOOKUP(PH$27&\"-\"&$M48&\"_new\",Ammortamento_Finanziario!$H:$L,5,FALSE),VLOOKUP($M48,TT_Tabelle_Riferimento!$D$127:$H$164,5,FALSE))","v":20},{"$f":"+IFERROR(VLOOKUP(PI$27&\"-\"&$M48&\"_new\",Ammortamento_Finanziario!$H:$L,5,FALSE),VLOOKUP($M48,TT_Tabelle_Riferimento!$D$127:$H$164,5,FALSE))","v":20},{"$f":"+IFERROR(VLOOKUP(PJ$27&\"-\"&$M48&\"_new\",Ammortamento_Finanziario!$H:$L,5,FALSE),VLOOKUP($M48,TT_Tabelle_Riferimento!$D$127:$H$164,5,FALSE))","v":20},{"$f":"+IFERROR(VLOOKUP(PK$27&\"-\"&$M48&\"_new\",Ammortamento_Finanziario!$H:$L,5,FALSE),VLOOKUP($M48,TT_Tabelle_Riferimento!$D$127:$H$164,5,FALSE))","v":20},{"$f":"+IFERROR(VLOOKUP(PL$27&\"-\"&$M48&\"_new\",Ammortamento_Finanziario!$H:$L,5,FALSE),VLOOKUP($M48,TT_Tabelle_Riferimento!$D$127:$H$164,5,FALSE))","v":20},{"$f":"+IFERROR(VLOOKUP(PM$27&\"-\"&$M48&\"_new\",Ammortamento_Finanziario!$H:$L,5,FALSE),VLOOKUP($M48,TT_Tabelle_Riferimento!$D$127:$H$164,5,FALSE))","v":20},{"$f":"+IFERROR(VLOOKUP(PN$27&\"-\"&$M48&\"_new\",Ammortamento_Finanziario!$H:$L,5,FALSE),VLOOKUP($M48,TT_Tabelle_Riferimento!$D$127:$H$164,5,FALSE))","v":20},{"$f":"+IFERROR(VLOOKUP(PO$27&\"-\"&$M48&\"_new\",Ammortamento_Finanziario!$H:$L,5,FALSE),VLOOKUP($M48,TT_Tabelle_Riferimento!$D$127:$H$164,5,FALSE))","v":20},{"$f":"+IFERROR(VLOOKUP(PP$27&\"-\"&$M48&\"_new\",Ammortamento_Finanziario!$H:$L,5,FALSE),VLOOKUP($M48,TT_Tabelle_Riferimento!$D$127:$H$164,5,FALSE))","v":20},{"$f":"+IFERROR(VLOOKUP(PQ$27&\"-\"&$M48&\"_new\",Ammortamento_Finanziario!$H:$L,5,FALSE),VLOOKUP($M48,TT_Tabelle_Riferimento!$D$127:$H$164,5,FALSE))","v":20},{"$f":"+IFERROR(VLOOKUP(PR$27&\"-\"&$M48&\"_new\",Ammortamento_Finanziario!$H:$L,5,FALSE),VLOOKUP($M48,TT_Tabelle_Riferimento!$D$127:$H$164,5,FALSE))","v":20},{"$f":"+IFERROR(VLOOKUP(PS$27&\"-\"&$M48&\"_new\",Ammortamento_Finanziario!$H:$L,5,FALSE),VLOOKUP($M48,TT_Tabelle_Riferimento!$D$127:$H$164,5,FALSE))","v":20},{"$f":"+IFERROR(VLOOKUP(PT$27&\"-\"&$M48&\"_new\",Ammortamento_Finanziario!$H:$L,5,FALSE),VLOOKUP($M48,TT_Tabelle_Riferimento!$D$127:$H$164,5,FALSE))","v":20},{"$f":"+IFERROR(VLOOKUP(PU$27&\"-\"&$M48&\"_new\",Ammortamento_Finanziario!$H:$L,5,FALSE),VLOOKUP($M48,TT_Tabelle_Riferimento!$D$127:$H$164,5,FALSE))","v":20},{"$f":"+IFERROR(VLOOKUP(PV$27&\"-\"&$M48&\"_new\",Ammortamento_Finanziario!$H:$L,5,FALSE),VLOOKUP($M48,TT_Tabelle_Riferimento!$D$127:$H$164,5,FALSE))","v":20},{"$f":"+IFERROR(VLOOKUP(PW$27&\"-\"&$M48&\"_new\",Ammortamento_Finanziario!$H:$L,5,FALSE),VLOOKUP($M48,TT_Tabelle_Riferimento!$D$127:$H$164,5,FALSE))","v":20},{"$f":"+IFERROR(VLOOKUP(PX$27&\"-\"&$M48&\"_new\",Ammortamento_Finanziario!$H:$L,5,FALSE),VLOOKUP($M48,TT_Tabelle_Riferimento!$D$127:$H$164,5,FALSE))","v":20},{"$f":"+IFERROR(VLOOKUP(PY$27&\"-\"&$M48&\"_new\",Ammortamento_Finanziario!$H:$L,5,FALSE),VLOOKUP($M48,TT_Tabelle_Riferimento!$D$127:$H$164,5,FALSE))","v":20},{"$f":"+IFERROR(VLOOKUP(PZ$27&\"-\"&$M48&\"_new\",Ammortamento_Finanziario!$H:$L,5,FALSE),VLOOKUP($M48,TT_Tabelle_Riferimento!$D$127:$H$164,5,FALSE))","v":20},{"$f":"+IFERROR(VLOOKUP(QA$27&\"-\"&$M48&\"_new\",Ammortamento_Finanziario!$H:$L,5,FALSE),VLOOKUP($M48,TT_Tabelle_Riferimento!$D$127:$H$164,5,FALSE))","v":20},{"$f":"+IFERROR(VLOOKUP(QB$27&\"-\"&$M48&\"_new\",Ammortamento_Finanziario!$H:$L,5,FALSE),VLOOKUP($M48,TT_Tabelle_Riferimento!$D$127:$H$164,5,FALSE))","v":20},{"$f":"+IFERROR(VLOOKUP(QC$27&\"-\"&$M48&\"_new\",Ammortamento_Finanziario!$H:$L,5,FALSE),VLOOKUP($M48,TT_Tabelle_Riferimento!$D$127:$H$164,5,FALSE))","v":20},{"$f":"+IFERROR(VLOOKUP(QD$27&\"-\"&$M48&\"_new\",Ammortamento_Finanziario!$H:$L,5,FALSE),VLOOKUP($M48,TT_Tabelle_Riferimento!$D$127:$H$164,5,FALSE))","v":20},{"$f":"+IFERROR(VLOOKUP(QE$27&\"-\"&$M48&\"_new\",Ammortamento_Finanziario!$H:$L,5,FALSE),VLOOKUP($M48,TT_Tabelle_Riferimento!$D$127:$H$164,5,FALSE))","v":20},{"$f":"+IFERROR(VLOOKUP(QF$27&\"-\"&$M48&\"_new\",Ammortamento_Finanziario!$H:$L,5,FALSE),VLOOKUP($M48,TT_Tabelle_Riferimento!$D$127:$H$164,5,FALSE))","v":20},{"$f":"+IFERROR(VLOOKUP(QG$27&\"-\"&$M48&\"_new\",Ammortamento_Finanziario!$H:$L,5,FALSE),VLOOKUP($M48,TT_Tabelle_Riferimento!$D$127:$H$164,5,FALSE))","v":20},{"$f":"+IFERROR(VLOOKUP(QH$27&\"-\"&$M48&\"_new\",Ammortamento_Finanziario!$H:$L,5,FALSE),VLOOKUP($M48,TT_Tabelle_Riferimento!$D$127:$H$164,5,FALSE))","v":20},{"$f":"+IFERROR(VLOOKUP(QI$27&\"-\"&$M48&\"_new\",Ammortamento_Finanziario!$H:$L,5,FALSE),VLOOKUP($M48,TT_Tabelle_Riferimento!$D$127:$H$164,5,FALSE))","v":20},{"$f":"+IFERROR(VLOOKUP(QJ$27&\"-\"&$M48&\"_new\",Ammortamento_Finanziario!$H:$L,5,FALSE),VLOOKUP($M48,TT_Tabelle_Riferimento!$D$127:$H$164,5,FALSE))","v":20},{"$f":"+IFERROR(VLOOKUP(QK$27&\"-\"&$M48&\"_new\",Ammortamento_Finanziario!$H:$L,5,FALSE),VLOOKUP($M48,TT_Tabelle_Riferimento!$D$127:$H$164,5,FALSE))","v":20},{"$f":"+IFERROR(VLOOKUP(QL$27&\"-\"&$M48&\"_new\",Ammortamento_Finanziario!$H:$L,5,FALSE),VLOOKUP($M48,TT_Tabelle_Riferimento!$D$127:$H$164,5,FALSE))","v":20},{"$f":"+IFERROR(VLOOKUP(QM$27&\"-\"&$M48&\"_new\",Ammortamento_Finanziario!$H:$L,5,FALSE),VLOOKUP($M48,TT_Tabelle_Riferimento!$D$127:$H$164,5,FALSE))","v":20},{"$f":"+IFERROR(VLOOKUP(QN$27&\"-\"&$M48&\"_new\",Ammortamento_Finanziario!$H:$L,5,FALSE),VLOOKUP($M48,TT_Tabelle_Riferimento!$D$127:$H$164,5,FALSE))","v":20},{"$f":"+IFERROR(VLOOKUP(QO$27&\"-\"&$M48&\"_new\",Ammortamento_Finanziario!$H:$L,5,FALSE),VLOOKUP($M48,TT_Tabelle_Riferimento!$D$127:$H$164,5,FALSE))","v":20},{"$f":"+IFERROR(VLOOKUP(QP$27&\"-\"&$M48&\"_new\",Ammortamento_Finanziario!$H:$L,5,FALSE),VLOOKUP($M48,TT_Tabelle_Riferimento!$D$127:$H$164,5,FALSE))","v":20},{"$f":"+IFERROR(VLOOKUP(QQ$27&\"-\"&$M48&\"_new\",Ammortamento_Finanziario!$H:$L,5,FALSE),VLOOKUP($M48,TT_Tabelle_Riferimento!$D$127:$H$164,5,FALSE))","v":20},{"$f":"+IFERROR(VLOOKUP(QR$27&\"-\"&$M48&\"_new\",Ammortamento_Finanziario!$H:$L,5,FALSE),VLOOKUP($M48,TT_Tabelle_Riferimento!$D$127:$H$164,5,FALSE))","v":20},{"$f":"+IFERROR(VLOOKUP(QS$27&\"-\"&$M48&\"_new\",Ammortamento_Finanziario!$H:$L,5,FALSE),VLOOKUP($M48,TT_Tabelle_Riferimento!$D$127:$H$164,5,FALSE))","v":20},{"$f":"+IFERROR(VLOOKUP(QT$27&\"-\"&$M48&\"_new\",Ammortamento_Finanziario!$H:$L,5,FALSE),VLOOKUP($M48,TT_Tabelle_Riferimento!$D$127:$H$164,5,FALSE))","v":20},{"$f":"+IFERROR(VLOOKUP(QU$27&\"-\"&$M48&\"_new\",Ammortamento_Finanziario!$H:$L,5,FALSE),VLOOKUP($M48,TT_Tabelle_Riferimento!$D$127:$H$164,5,FALSE))","v":20},{"$f":"+IFERROR(VLOOKUP(QV$27&\"-\"&$M48&\"_new\",Ammortamento_Finanziario!$H:$L,5,FALSE),VLOOKUP($M48,TT_Tabelle_Riferimento!$D$127:$H$164,5,FALSE))","v":20},{"$f":"+IFERROR(VLOOKUP(QW$27&\"-\"&$M48&\"_new\",Ammortamento_Finanziario!$H:$L,5,FALSE),VLOOKUP($M48,TT_Tabelle_Riferimento!$D$127:$H$164,5,FALSE))","v":20},{"$f":"+IFERROR(VLOOKUP(QX$27&\"-\"&$M48&\"_new\",Ammortamento_Finanziario!$H:$L,5,FALSE),VLOOKUP($M48,TT_Tabelle_Riferimento!$D$127:$H$164,5,FALSE))","v":20},{"$f":"+IFERROR(VLOOKUP(QY$27&\"-\"&$M48&\"_new\",Ammortamento_Finanziario!$H:$L,5,FALSE),VLOOKUP($M48,TT_Tabelle_Riferimento!$D$127:$H$164,5,FALSE))","v":20},{"$f":"+IFERROR(VLOOKUP(QZ$27&\"-\"&$M48&\"_new\",Ammortamento_Finanziario!$H:$L,5,FALSE),VLOOKUP($M48,TT_Tabelle_Riferimento!$D$127:$H$164,5,FALSE))","v":20},{"$f":"+IFERROR(VLOOKUP(RA$27&\"-\"&$M48&\"_new\",Ammortamento_Finanziario!$H:$L,5,FALSE),VLOOKUP($M48,TT_Tabelle_Riferimento!$D$127:$H$164,5,FALSE))","v":20},{"$f":"+IFERROR(VLOOKUP(RB$27&\"-\"&$M48&\"_new\",Ammortamento_Finanziario!$H:$L,5,FALSE),VLOOKUP($M48,TT_Tabelle_Riferimento!$D$127:$H$164,5,FALSE))","v":20},{"$f":"+IFERROR(VLOOKUP(RC$27&\"-\"&$M48&\"_new\",Ammortamento_Finanziario!$H:$L,5,FALSE),VLOOKUP($M48,TT_Tabelle_Riferimento!$D$127:$H$164,5,FALSE))","v":20},{"$f":"+IFERROR(VLOOKUP(RD$27&\"-\"&$M48&\"_new\",Ammortamento_Finanziario!$H:$L,5,FALSE),VLOOKUP($M48,TT_Tabelle_Riferimento!$D$127:$H$164,5,FALSE))","v":20},{"$f":"+IFERROR(VLOOKUP(RE$27&\"-\"&$M48&\"_new\",Ammortamento_Finanziario!$H:$L,5,FALSE),VLOOKUP($M48,TT_Tabelle_Riferimento!$D$127:$H$164,5,FALSE))","v":20},{"$f":"+IFERROR(VLOOKUP(RF$27&\"-\"&$M48&\"_new\",Ammortamento_Finanziario!$H:$L,5,FALSE),VLOOKUP($M48,TT_Tabelle_Riferimento!$D$127:$H$164,5,FALSE))","v":20},{"$f":"+IFERROR(VLOOKUP(RG$27&\"-\"&$M48&\"_new\",Ammortamento_Finanziario!$H:$L,5,FALSE),VLOOKUP($M48,TT_Tabelle_Riferimento!$D$127:$H$164,5,FALSE))","v":20},{"$f":"+IFERROR(VLOOKUP(RH$27&\"-\"&$M48&\"_new\",Ammortamento_Finanziario!$H:$L,5,FALSE),VLOOKUP($M48,TT_Tabelle_Riferimento!$D$127:$H$164,5,FALSE))","v":20},{"$f":"+IFERROR(VLOOKUP(RI$27&\"-\"&$M48&\"_new\",Ammortamento_Finanziario!$H:$L,5,FALSE),VLOOKUP($M48,TT_Tabelle_Riferimento!$D$127:$H$164,5,FALSE))","v":20},{"$f":"+IFERROR(VLOOKUP(RJ$27&\"-\"&$M48&\"_new\",Ammortamento_Finanziario!$H:$L,5,FALSE),VLOOKUP($M48,TT_Tabelle_Riferimento!$D$127:$H$164,5,FALSE))","v":20},{"$f":"+IFERROR(VLOOKUP(RK$27&\"-\"&$M48&\"_new\",Ammortamento_Finanziario!$H:$L,5,FALSE),VLOOKUP($M48,TT_Tabelle_Riferimento!$D$127:$H$164,5,FALSE))","v":20},{"$f":"+IFERROR(VLOOKUP(RL$27&\"-\"&$M48&\"_new\",Ammortamento_Finanziario!$H:$L,5,FALSE),VLOOKUP($M48,TT_Tabelle_Riferimento!$D$127:$H$164,5,FALSE))","v":20},{"$f":"+IFERROR(VLOOKUP(RM$27&\"-\"&$M48&\"_new\",Ammortamento_Finanziario!$H:$L,5,FALSE),VLOOKUP($M48,TT_Tabelle_Riferimento!$D$127:$H$164,5,FALSE))","v":20},{"$f":"+IFERROR(VLOOKUP(RN$27&\"-\"&$M48&\"_new\",Ammortamento_Finanziario!$H:$L,5,FALSE),VLOOKUP($M48,TT_Tabelle_Riferimento!$D$127:$H$164,5,FALSE))","v":20},{"$f":"+IFERROR(VLOOKUP(RO$27&\"-\"&$M48&\"_new\",Ammortamento_Finanziario!$H:$L,5,FALSE),VLOOKUP($M48,TT_Tabelle_Riferimento!$D$127:$H$164,5,FALSE))","v":20},{"$f":"+IFERROR(VLOOKUP(RP$27&\"-\"&$M48&\"_new\",Ammortamento_Finanziario!$H:$L,5,FALSE),VLOOKUP($M48,TT_Tabelle_Riferimento!$D$127:$H$164,5,FALSE))","v":20},{"$f":"+IFERROR(VLOOKUP(RQ$27&\"-\"&$M48&\"_new\",Ammortamento_Finanziario!$H:$L,5,FALSE),VLOOKUP($M48,TT_Tabelle_Riferimento!$D$127:$H$164,5,FALSE))","v":20},{"$f":"+IFERROR(VLOOKUP(RR$27&\"-\"&$M48&\"_new\",Ammortamento_Finanziario!$H:$L,5,FALSE),VLOOKUP($M48,TT_Tabelle_Riferimento!$D$127:$H$164,5,FALSE))","v":20},{"$f":"+IFERROR(VLOOKUP(RS$27&\"-\"&$M48&\"_new\",Ammortamento_Finanziario!$H:$L,5,FALSE),VLOOKUP($M48,TT_Tabelle_Riferimento!$D$127:$H$164,5,FALSE))","v":20},{"$f":"+IFERROR(VLOOKUP(RT$27&\"-\"&$M48&\"_new\",Ammortamento_Finanziario!$H:$L,5,FALSE),VLOOKUP($M48,TT_Tabelle_Riferimento!$D$127:$H$164,5,FALSE))","v":20},{"$f":"+IFERROR(VLOOKUP(RU$27&\"-\"&$M48&\"_new\",Ammortamento_Finanziario!$H:$L,5,FALSE),VLOOKUP($M48,TT_Tabelle_Riferimento!$D$127:$H$164,5,FALSE))","v":20},{"$f":"+IFERROR(VLOOKUP(RV$27&\"-\"&$M48&\"_new\",Ammortamento_Finanziario!$H:$L,5,FALSE),VLOOKUP($M48,TT_Tabelle_Riferimento!$D$127:$H$164,5,FALSE))","v":20}]
[null,null,null,"AMMcfp",{"$f":"+SUMIFS(IMN_gestore!X:X,IMN_gestore!$G:$G,\"Env\")","v":0},{"$f":"+SUMIFS(IMN_gestore!AI:AI,IMN_gestore!$G:$G,\"Env\")","v":0},{"$f":"+SUMIFS(IMN_gestore!AT:AT,IMN_gestore!$G:$G,\"Env\")","v":0},{"$f":"+SUMIFS(IMN_gestore!BE:BE,IMN_gestore!$G:$G,\"Env\")","v":0},{"$f":"+SUMIFS(IMN_gestore!$BP:$BP,IMN_gestore!$G:$G,\"Env\")","v":0},{"$f":"+SUMIFS(IMN_gestore!$CA:$CA,IMN_gestore!$G:$G,\"Env\")","v":0},null,null,22,0,0,0,0,0,0,0,0,0,0,0,0,0,0,0,0,0,0,0,0,0,0,0,0,0,0,0,0,0,0,0,0,0,0,0,0,0,0,0,0,0,0,0,0,0,0,0,0,0,0,0,0,0,0,0,0,0,0,0,0,0,0,0,0,0,0,0,0,0,0,0,0,0,0,0,0,0,0,0,0,0,0,0,0,0,0,0,0,0,0,0,0,0,0,0,0,0,0,0,0,0,0,0,0,0,0,0,0,0,0,0,0,0,0,0,0,0,0,0,0,0,0,0,0,0,0,0,0,0,0,0,0,0,0,0,0,0,0,0,0,0,0,0,0,0,0,0,0,0,0,0,0,0,0,0,0,0,0,0,0,0,0,0,0,0,0,0,0,0,0,0,0,0,0,0,0,0,0,0,0,0,0,0,0,0,0,0,0,0,0,0,0,0,0,0,0,0,0,0,0,0,0,0,0,0,0,0,0,0,0,0,0,0,0,0,0,0,0,0,0,0,0,0,0,0,0,0,0,0,0,0,0,0,0,0,0,0,0,0,0,0,0,0,0,0,0,0,0,0,0,0,0,0,0,0,0,0,0,0,0,0,0,0,0,0,0,0,0,0,0,0,0,0,0,0,0,0,0,0,0,0,0,0,0,0,0,0,0,0,{"$f":"+IFERROR(VLOOKUP(KQ$27&\"-\"&$M49&\"_new\",Ammortamento_Finanziario!$H:$L,5,FALSE),VLOOKUP($M49,TT_Tabelle_Riferimento!$D$127:$H$164,5,FALSE))","v":20},{"$f":"+IFERROR(VLOOKUP(KR$27&\"-\"&$M49&\"_new\",Ammortamento_Finanziario!$H:$L,5,FALSE),VLOOKUP($M49,TT_Tabelle_Riferimento!$D$127:$H$164,5,FALSE))","v":20},{"$f":"+IFERROR(VLOOKUP(KS$27&\"-\"&$M49&\"_new\",Ammortamento_Finanziario!$H:$L,5,FALSE),VLOOKUP($M49,TT_Tabelle_Riferimento!$D$127:$H$164,5,FALSE))","v":20},{"$f":"+IFERROR(VLOOKUP(KT$27&\"-\"&$M49&\"_new\",Ammortamento_Finanziario!$H:$L,5,FALSE),VLOOKUP($M49,TT_Tabelle_Riferimento!$D$127:$H$164,5,FALSE))","v":20},{"$f":"+IFERROR(VLOOKUP(KU$27&\"-\"&$M49&\"_new\",Ammortamento_Finanziario!$H:$L,5,FALSE),VLOOKUP($M49,TT_Tabelle_Riferimento!$D$127:$H$164,5,FALSE))","v":20},{"$f":"+IFERROR(VLOOKUP(KV$27&\"-\"&$M49&\"_new\",Ammortamento_Finanziario!$H:$L,5,FALSE),VLOOKUP($M49,TT_Tabelle_Riferimento!$D$127:$H$164,5,FALSE))","v":20},{"$f":"+IFERROR(VLOOKUP(KW$27&\"-\"&$M49&\"_new\",Ammortamento_Finanziario!$H:$L,5,FALSE),VLOOKUP($M49,TT_Tabelle_Riferimento!$D$127:$H$164,5,FALSE))","v":20},{"$f":"+IFERROR(VLOOKUP(KX$27&\"-\"&$M49&\"_new\",Ammortamento_Finanziario!$H:$L,5,FALSE),VLOOKUP($M49,TT_Tabelle_Riferimento!$D$127:$H$164,5,FALSE))","v":20},{"$f":"+IFERROR(VLOOKUP(KY$27&\"-\"&$M49&\"_new\",Ammortamento_Finanziario!$H:$L,5,FALSE),VLOOKUP($M49,TT_Tabelle_Riferimento!$D$127:$H$164,5,FALSE))","v":20},{"$f":"+IFERROR(VLOOKUP(KZ$27&\"-\"&$M49&\"_new\",Ammortamento_Finanziario!$H:$L,5,FALSE),VLOOKUP($M49,TT_Tabelle_Riferimento!$D$127:$H$164,5,FALSE))","v":20},{"$f":"+IFERROR(VLOOKUP(LA$27&\"-\"&$M49&\"_new\",Ammortamento_Finanziario!$H:$L,5,FALSE),VLOOKUP($M49,TT_Tabelle_Riferimento!$D$127:$H$164,5,FALSE))","v":20},{"$f":"+IFERROR(VLOOKUP(LB$27&\"-\"&$M49&\"_new\",Ammortamento_Finanziario!$H:$L,5,FALSE),VLOOKUP($M49,TT_Tabelle_Riferimento!$D$127:$H$164,5,FALSE))","v":20},{"$f":"+IFERROR(VLOOKUP(LC$27&\"-\"&$M49&\"_new\",Ammortamento_Finanziario!$H:$L,5,FALSE),VLOOKUP($M49,TT_Tabelle_Riferimento!$D$127:$H$164,5,FALSE))","v":20},{"$f":"+IFERROR(VLOOKUP(LD$27&\"-\"&$M49&\"_new\",Ammortamento_Finanziario!$H:$L,5,FALSE),VLOOKUP($M49,TT_Tabelle_Riferimento!$D$127:$H$164,5,FALSE))","v":20},{"$f":"+IFERROR(VLOOKUP(LE$27&\"-\"&$M49&\"_new\",Ammortamento_Finanziario!$H:$L,5,FALSE),VLOOKUP($M49,TT_Tabelle_Riferimento!$D$127:$H$164,5,FALSE))","v":20},{"$f":"+IFERROR(VLOOKUP(LF$27&\"-\"&$M49&\"_new\",Ammortamento_Finanziario!$H:$L,5,FALSE),VLOOKUP($M49,TT_Tabelle_Riferimento!$D$127:$H$164,5,FALSE))","v":20},{"$f":"+IFERROR(VLOOKUP(LG$27&\"-\"&$M49&\"_new\",Ammortamento_Finanziario!$H:$L,5,FALSE),VLOOKUP($M49,TT_Tabelle_Riferimento!$D$127:$H$164,5,FALSE))","v":20},{"$f":"+IFERROR(VLOOKUP(LH$27&\"-\"&$M49&\"_new\",Ammortamento_Finanziario!$H:$L,5,FALSE),VLOOKUP($M49,TT_Tabelle_Riferimento!$D$127:$H$164,5,FALSE))","v":20},{"$f":"+IFERROR(VLOOKUP(LI$27&\"-\"&$M49&\"_new\",Ammortamento_Finanziario!$H:$L,5,FALSE),VLOOKUP($M49,TT_Tabelle_Riferimento!$D$127:$H$164,5,FALSE))","v":20},{"$f":"+IFERROR(VLOOKUP(LJ$27&\"-\"&$M49&\"_new\",Ammortamento_Finanziario!$H:$L,5,FALSE),VLOOKUP($M49,TT_Tabelle_Riferimento!$D$127:$H$164,5,FALSE))","v":20},{"$f":"+IFERROR(VLOOKUP(LK$27&\"-\"&$M49&\"_new\",Ammortamento_Finanziario!$H:$L,5,FALSE),VLOOKUP($M49,TT_Tabelle_Riferimento!$D$127:$H$164,5,FALSE))","v":20},{"$f":"+IFERROR(VLOOKUP(LL$27&\"-\"&$M49&\"_new\",Ammortamento_Finanziario!$H:$L,5,FALSE),VLOOKUP($M49,TT_Tabelle_Riferimento!$D$127:$H$164,5,FALSE))","v":20},{"$f":"+IFERROR(VLOOKUP(LM$27&\"-\"&$M49&\"_new\",Ammortamento_Finanziario!$H:$L,5,FALSE),VLOOKUP($M49,TT_Tabelle_Riferimento!$D$127:$H$164,5,FALSE))","v":20},{"$f":"+IFERROR(VLOOKUP(LN$27&\"-\"&$M49&\"_new\",Ammortamento_Finanziario!$H:$L,5,FALSE),VLOOKUP($M49,TT_Tabelle_Riferimento!$D$127:$H$164,5,FALSE))","v":20},{"$f":"+IFERROR(VLOOKUP(LO$27&\"-\"&$M49&\"_new\",Ammortamento_Finanziario!$H:$L,5,FALSE),VLOOKUP($M49,TT_Tabelle_Riferimento!$D$127:$H$164,5,FALSE))","v":20},{"$f":"+IFERROR(VLOOKUP(LP$27&\"-\"&$M49&\"_new\",Ammortamento_Finanziario!$H:$L,5,FALSE),VLOOKUP($M49,TT_Tabelle_Riferimento!$D$127:$H$164,5,FALSE))","v":20},{"$f":"+IFERROR(VLOOKUP(LQ$27&\"-\"&$M49&\"_new\",Ammortamento_Finanziario!$H:$L,5,FALSE),VLOOKUP($M49,TT_Tabelle_Riferimento!$D$127:$H$164,5,FALSE))","v":20},{"$f":"+IFERROR(VLOOKUP(LR$27&\"-\"&$M49&\"_new\",Ammortamento_Finanziario!$H:$L,5,FALSE),VLOOKUP($M49,TT_Tabelle_Riferimento!$D$127:$H$164,5,FALSE))","v":20},{"$f":"+IFERROR(VLOOKUP(LS$27&\"-\"&$M49&\"_new\",Ammortamento_Finanziario!$H:$L,5,FALSE),VLOOKUP($M49,TT_Tabelle_Riferimento!$D$127:$H$164,5,FALSE))","v":20},{"$f":"+IFERROR(VLOOKUP(LT$27&\"-\"&$M49&\"_new\",Ammortamento_Finanziario!$H:$L,5,FALSE),VLOOKUP($M49,TT_Tabelle_Riferimento!$D$127:$H$164,5,FALSE))","v":20},{"$f":"+IFERROR(VLOOKUP(LU$27&\"-\"&$M49&\"_new\",Ammortamento_Finanziario!$H:$L,5,FALSE),VLOOKUP($M49,TT_Tabelle_Riferimento!$D$127:$H$164,5,FALSE))","v":20},{"$f":"+IFERROR(VLOOKUP(LV$27&\"-\"&$M49&\"_new\",Ammortamento_Finanziario!$H:$L,5,FALSE),VLOOKUP($M49,TT_Tabelle_Riferimento!$D$127:$H$164,5,FALSE))","v":20},{"$f":"+IFERROR(VLOOKUP(LW$27&\"-\"&$M49&\"_new\",Ammortamento_Finanziario!$H:$L,5,FALSE),VLOOKUP($M49,TT_Tabelle_Riferimento!$D$127:$H$164,5,FALSE))","v":20},{"$f":"+IFERROR(VLOOKUP(LX$27&\"-\"&$M49&\"_new\",Ammortamento_Finanziario!$H:$L,5,FALSE),VLOOKUP($M49,TT_Tabelle_Riferimento!$D$127:$H$164,5,FALSE))","v":20},{"$f":"+IFERROR(VLOOKUP(LY$27&\"-\"&$M49&\"_new\",Ammortamento_Finanziario!$H:$L,5,FALSE),VLOOKUP($M49,TT_Tabelle_Riferimento!$D$127:$H$164,5,FALSE))","v":20},{"$f":"+IFERROR(VLOOKUP(LZ$27&\"-\"&$M49&\"_new\",Ammortamento_Finanziario!$H:$L,5,FALSE),VLOOKUP($M49,TT_Tabelle_Riferimento!$D$127:$H$164,5,FALSE))","v":20},{"$f":"+IFERROR(VLOOKUP(MA$27&\"-\"&$M49&\"_new\",Ammortamento_Finanziario!$H:$L,5,FALSE),VLOOKUP($M49,TT_Tabelle_Riferimento!$D$127:$H$164,5,FALSE))","v":20},{"$f":"+IFERROR(VLOOKUP(MB$27&\"-\"&$M49&\"_new\",Ammortamento_Finanziario!$H:$L,5,FALSE),VLOOKUP($M49,TT_Tabelle_Riferimento!$D$127:$H$164,5,FALSE))","v":20},{"$f":"+IFERROR(VLOOKUP(MC$27&\"-\"&$M49&\"_new\",Ammortamento_Finanziario!$H:$L,5,FALSE),VLOOKUP($M49,TT_Tabelle_Riferimento!$D$127:$H$164,5,FALSE))","v":20},{"$f":"+IFERROR(VLOOKUP(MD$27&\"-\"&$M49&\"_new\",Ammortamento_Finanziario!$H:$L,5,FALSE),VLOOKUP($M49,TT_Tabelle_Riferimento!$D$127:$H$164,5,FALSE))","v":20},{"$f":"+IFERROR(VLOOKUP(ME$27&\"-\"&$M49&\"_new\",Ammortamento_Finanziario!$H:$L,5,FALSE),VLOOKUP($M49,TT_Tabelle_Riferimento!$D$127:$H$164,5,FALSE))","v":20},{"$f":"+IFERROR(VLOOKUP(MF$27&\"-\"&$M49&\"_new\",Ammortamento_Finanziario!$H:$L,5,FALSE),VLOOKUP($M49,TT_Tabelle_Riferimento!$D$127:$H$164,5,FALSE))","v":20},{"$f":"+IFERROR(VLOOKUP(MG$27&\"-\"&$M49&\"_new\",Ammortamento_Finanziario!$H:$L,5,FALSE),VLOOKUP($M49,TT_Tabelle_Riferimento!$D$127:$H$164,5,FALSE))","v":20},{"$f":"+IFERROR(VLOOKUP(MH$27&\"-\"&$M49&\"_new\",Ammortamento_Finanziario!$H:$L,5,FALSE),VLOOKUP($M49,TT_Tabelle_Riferimento!$D$127:$H$164,5,FALSE))","v":20},{"$f":"+IFERROR(VLOOKUP(MI$27&\"-\"&$M49&\"_new\",Ammortamento_Finanziario!$H:$L,5,FALSE),VLOOKUP($M49,TT_Tabelle_Riferimento!$D$127:$H$164,5,FALSE))","v":20},{"$f":"+IFERROR(VLOOKUP(MJ$27&\"-\"&$M49&\"_new\",Ammortamento_Finanziario!$H:$L,5,FALSE),VLOOKUP($M49,TT_Tabelle_Riferimento!$D$127:$H$164,5,FALSE))","v":20},{"$f":"+IFERROR(VLOOKUP(MK$27&\"-\"&$M49&\"_new\",Ammortamento_Finanziario!$H:$L,5,FALSE),VLOOKUP($M49,TT_Tabelle_Riferimento!$D$127:$H$164,5,FALSE))","v":20},{"$f":"+IFERROR(VLOOKUP(ML$27&\"-\"&$M49&\"_new\",Ammortamento_Finanziario!$H:$L,5,FALSE),VLOOKUP($M49,TT_Tabelle_Riferimento!$D$127:$H$164,5,FALSE))","v":20},{"$f":"+IFERROR(VLOOKUP(MM$27&\"-\"&$M49&\"_new\",Ammortamento_Finanziario!$H:$L,5,FALSE),VLOOKUP($M49,TT_Tabelle_Riferimento!$D$127:$H$164,5,FALSE))","v":20},{"$f":"+IFERROR(VLOOKUP(MN$27&\"-\"&$M49&\"_new\",Ammortamento_Finanziario!$H:$L,5,FALSE),VLOOKUP($M49,TT_Tabelle_Riferimento!$D$127:$H$164,5,FALSE))","v":20},{"$f":"+IFERROR(VLOOKUP(MO$27&\"-\"&$M49&\"_new\",Ammortamento_Finanziario!$H:$L,5,FALSE),VLOOKUP($M49,TT_Tabelle_Riferimento!$D$127:$H$164,5,FALSE))","v":20},{"$f":"+IFERROR(VLOOKUP(MP$27&\"-\"&$M49&\"_new\",Ammortamento_Finanziario!$H:$L,5,FALSE),VLOOKUP($M49,TT_Tabelle_Riferimento!$D$127:$H$164,5,FALSE))","v":20},{"$f":"+IFERROR(VLOOKUP(MQ$27&\"-\"&$M49&\"_new\",Ammortamento_Finanziario!$H:$L,5,FALSE),VLOOKUP($M49,TT_Tabelle_Riferimento!$D$127:$H$164,5,FALSE))","v":20},{"$f":"+IFERROR(VLOOKUP(MR$27&\"-\"&$M49&\"_new\",Ammortamento_Finanziario!$H:$L,5,FALSE),VLOOKUP($M49,TT_Tabelle_Riferimento!$D$127:$H$164,5,FALSE))","v":20},{"$f":"+IFERROR(VLOOKUP(MS$27&\"-\"&$M49&\"_new\",Ammortamento_Finanziario!$H:$L,5,FALSE),VLOOKUP($M49,TT_Tabelle_Riferimento!$D$127:$H$164,5,FALSE))","v":20},{"$f":"+IFERROR(VLOOKUP(MT$27&\"-\"&$M49&\"_new\",Ammortamento_Finanziario!$H:$L,5,FALSE),VLOOKUP($M49,TT_Tabelle_Riferimento!$D$127:$H$164,5,FALSE))","v":20},{"$f":"+IFERROR(VLOOKUP(MU$27&\"-\"&$M49&\"_new\",Ammortamento_Finanziario!$H:$L,5,FALSE),VLOOKUP($M49,TT_Tabelle_Riferimento!$D$127:$H$164,5,FALSE))","v":20},{"$f":"+IFERROR(VLOOKUP(MV$27&\"-\"&$M49&\"_new\",Ammortamento_Finanziario!$H:$L,5,FALSE),VLOOKUP($M49,TT_Tabelle_Riferimento!$D$127:$H$164,5,FALSE))","v":20},{"$f":"+IFERROR(VLOOKUP(MW$27&\"-\"&$M49&\"_new\",Ammortamento_Finanziario!$H:$L,5,FALSE),VLOOKUP($M49,TT_Tabelle_Riferimento!$D$127:$H$164,5,FALSE))","v":20},{"$f":"+IFERROR(VLOOKUP(MX$27&\"-\"&$M49&\"_new\",Ammortamento_Finanziario!$H:$L,5,FALSE),VLOOKUP($M49,TT_Tabelle_Riferimento!$D$127:$H$164,5,FALSE))","v":20},{"$f":"+IFERROR(VLOOKUP(MY$27&\"-\"&$M49&\"_new\",Ammortamento_Finanziario!$H:$L,5,FALSE),VLOOKUP($M49,TT_Tabelle_Riferimento!$D$127:$H$164,5,FALSE))","v":20},{"$f":"+IFERROR(VLOOKUP(MZ$27&\"-\"&$M49&\"_new\",Ammortamento_Finanziario!$H:$L,5,FALSE),VLOOKUP($M49,TT_Tabelle_Riferimento!$D$127:$H$164,5,FALSE))","v":20},{"$f":"+IFERROR(VLOOKUP(NA$27&\"-\"&$M49&\"_new\",Ammortamento_Finanziario!$H:$L,5,FALSE),VLOOKUP($M49,TT_Tabelle_Riferimento!$D$127:$H$164,5,FALSE))","v":20},{"$f":"+IFERROR(VLOOKUP(NB$27&\"-\"&$M49&\"_new\",Ammortamento_Finanziario!$H:$L,5,FALSE),VLOOKUP($M49,TT_Tabelle_Riferimento!$D$127:$H$164,5,FALSE))","v":20},{"$f":"+IFERROR(VLOOKUP(NC$27&\"-\"&$M49&\"_new\",Ammortamento_Finanziario!$H:$L,5,FALSE),VLOOKUP($M49,TT_Tabelle_Riferimento!$D$127:$H$164,5,FALSE))","v":20},{"$f":"+IFERROR(VLOOKUP(ND$27&\"-\"&$M49&\"_new\",Ammortamento_Finanziario!$H:$L,5,FALSE),VLOOKUP($M49,TT_Tabelle_Riferimento!$D$127:$H$164,5,FALSE))","v":20},{"$f":"+IFERROR(VLOOKUP(NE$27&\"-\"&$M49&\"_new\",Ammortamento_Finanziario!$H:$L,5,FALSE),VLOOKUP($M49,TT_Tabelle_Riferimento!$D$127:$H$164,5,FALSE))","v":20},{"$f":"+IFERROR(VLOOKUP(NF$27&\"-\"&$M49&\"_new\",Ammortamento_Finanziario!$H:$L,5,FALSE),VLOOKUP($M49,TT_Tabelle_Riferimento!$D$127:$H$164,5,FALSE))","v":20},{"$f":"+IFERROR(VLOOKUP(NG$27&\"-\"&$M49&\"_new\",Ammortamento_Finanziario!$H:$L,5,FALSE),VLOOKUP($M49,TT_Tabelle_Riferimento!$D$127:$H$164,5,FALSE))","v":20},{"$f":"+IFERROR(VLOOKUP(NH$27&\"-\"&$M49&\"_new\",Ammortamento_Finanziario!$H:$L,5,FALSE),VLOOKUP($M49,TT_Tabelle_Riferimento!$D$127:$H$164,5,FALSE))","v":20},{"$f":"+IFERROR(VLOOKUP(NI$27&\"-\"&$M49&\"_new\",Ammortamento_Finanziario!$H:$L,5,FALSE),VLOOKUP($M49,TT_Tabelle_Riferimento!$D$127:$H$164,5,FALSE))","v":20},{"$f":"+IFERROR(VLOOKUP(NJ$27&\"-\"&$M49&\"_new\",Ammortamento_Finanziario!$H:$L,5,FALSE),VLOOKUP($M49,TT_Tabelle_Riferimento!$D$127:$H$164,5,FALSE))","v":20},{"$f":"+IFERROR(VLOOKUP(NK$27&\"-\"&$M49&\"_new\",Ammortamento_Finanziario!$H:$L,5,FALSE),VLOOKUP($M49,TT_Tabelle_Riferimento!$D$127:$H$164,5,FALSE))","v":20},{"$f":"+IFERROR(VLOOKUP(NL$27&\"-\"&$M49&\"_new\",Ammortamento_Finanziario!$H:$L,5,FALSE),VLOOKUP($M49,TT_Tabelle_Riferimento!$D$127:$H$164,5,FALSE))","v":20},{"$f":"+IFERROR(VLOOKUP(NM$27&\"-\"&$M49&\"_new\",Ammortamento_Finanziario!$H:$L,5,FALSE),VLOOKUP($M49,TT_Tabelle_Riferimento!$D$127:$H$164,5,FALSE))","v":20},{"$f":"+IFERROR(VLOOKUP(NN$27&\"-\"&$M49&\"_new\",Ammortamento_Finanziario!$H:$L,5,FALSE),VLOOKUP($M49,TT_Tabelle_Riferimento!$D$127:$H$164,5,FALSE))","v":20},{"$f":"+IFERROR(VLOOKUP(NO$27&\"-\"&$M49&\"_new\",Ammortamento_Finanziario!$H:$L,5,FALSE),VLOOKUP($M49,TT_Tabelle_Riferimento!$D$127:$H$164,5,FALSE))","v":20},{"$f":"+IFERROR(VLOOKUP(NP$27&\"-\"&$M49&\"_new\",Ammortamento_Finanziario!$H:$L,5,FALSE),VLOOKUP($M49,TT_Tabelle_Riferimento!$D$127:$H$164,5,FALSE))","v":20},{"$f":"+IFERROR(VLOOKUP(NQ$27&\"-\"&$M49&\"_new\",Ammortamento_Finanziario!$H:$L,5,FALSE),VLOOKUP($M49,TT_Tabelle_Riferimento!$D$127:$H$164,5,FALSE))","v":20},{"$f":"+IFERROR(VLOOKUP(NR$27&\"-\"&$M49&\"_new\",Ammortamento_Finanziario!$H:$L,5,FALSE),VLOOKUP($M49,TT_Tabelle_Riferimento!$D$127:$H$164,5,FALSE))","v":20},{"$f":"+IFERROR(VLOOKUP(NS$27&\"-\"&$M49&\"_new\",Ammortamento_Finanziario!$H:$L,5,FALSE),VLOOKUP($M49,TT_Tabelle_Riferimento!$D$127:$H$164,5,FALSE))","v":20},{"$f":"+IFERROR(VLOOKUP(NT$27&\"-\"&$M49&\"_new\",Ammortamento_Finanziario!$H:$L,5,FALSE),VLOOKUP($M49,TT_Tabelle_Riferimento!$D$127:$H$164,5,FALSE))","v":20},{"$f":"+IFERROR(VLOOKUP(NU$27&\"-\"&$M49&\"_new\",Ammortamento_Finanziario!$H:$L,5,FALSE),VLOOKUP($M49,TT_Tabelle_Riferimento!$D$127:$H$164,5,FALSE))","v":20},{"$f":"+IFERROR(VLOOKUP(NV$27&\"-\"&$M49&\"_new\",Ammortamento_Finanziario!$H:$L,5,FALSE),VLOOKUP($M49,TT_Tabelle_Riferimento!$D$127:$H$164,5,FALSE))","v":20},{"$f":"+IFERROR(VLOOKUP(NW$27&\"-\"&$M49&\"_new\",Ammortamento_Finanziario!$H:$L,5,FALSE),VLOOKUP($M49,TT_Tabelle_Riferimento!$D$127:$H$164,5,FALSE))","v":20},{"$f":"+IFERROR(VLOOKUP(NX$27&\"-\"&$M49&\"_new\",Ammortamento_Finanziario!$H:$L,5,FALSE),VLOOKUP($M49,TT_Tabelle_Riferimento!$D$127:$H$164,5,FALSE))","v":20},{"$f":"+IFERROR(VLOOKUP(NY$27&\"-\"&$M49&\"_new\",Ammortamento_Finanziario!$H:$L,5,FALSE),VLOOKUP($M49,TT_Tabelle_Riferimento!$D$127:$H$164,5,FALSE))","v":20},{"$f":"+IFERROR(VLOOKUP(NZ$27&\"-\"&$M49&\"_new\",Ammortamento_Finanziario!$H:$L,5,FALSE),VLOOKUP($M49,TT_Tabelle_Riferimento!$D$127:$H$164,5,FALSE))","v":20},{"$f":"+IFERROR(VLOOKUP(OA$27&\"-\"&$M49&\"_new\",Ammortamento_Finanziario!$H:$L,5,FALSE),VLOOKUP($M49,TT_Tabelle_Riferimento!$D$127:$H$164,5,FALSE))","v":20},{"$f":"+IFERROR(VLOOKUP(OB$27&\"-\"&$M49&\"_new\",Ammortamento_Finanziario!$H:$L,5,FALSE),VLOOKUP($M49,TT_Tabelle_Riferimento!$D$127:$H$164,5,FALSE))","v":20},{"$f":"+IFERROR(VLOOKUP(OC$27&\"-\"&$M49&\"_new\",Ammortamento_Finanziario!$H:$L,5,FALSE),VLOOKUP($M49,TT_Tabelle_Riferimento!$D$127:$H$164,5,FALSE))","v":20},{"$f":"+IFERROR(VLOOKUP(OD$27&\"-\"&$M49&\"_new\",Ammortamento_Finanziario!$H:$L,5,FALSE),VLOOKUP($M49,TT_Tabelle_Riferimento!$D$127:$H$164,5,FALSE))","v":20},{"$f":"+IFERROR(VLOOKUP(OE$27&\"-\"&$M49&\"_new\",Ammortamento_Finanziario!$H:$L,5,FALSE),VLOOKUP($M49,TT_Tabelle_Riferimento!$D$127:$H$164,5,FALSE))","v":20},{"$f":"+IFERROR(VLOOKUP(OF$27&\"-\"&$M49&\"_new\",Ammortamento_Finanziario!$H:$L,5,FALSE),VLOOKUP($M49,TT_Tabelle_Riferimento!$D$127:$H$164,5,FALSE))","v":20},{"$f":"+IFERROR(VLOOKUP(OG$27&\"-\"&$M49&\"_new\",Ammortamento_Finanziario!$H:$L,5,FALSE),VLOOKUP($M49,TT_Tabelle_Riferimento!$D$127:$H$164,5,FALSE))","v":20},{"$f":"+IFERROR(VLOOKUP(OH$27&\"-\"&$M49&\"_new\",Ammortamento_Finanziario!$H:$L,5,FALSE),VLOOKUP($M49,TT_Tabelle_Riferimento!$D$127:$H$164,5,FALSE))","v":20},{"$f":"+IFERROR(VLOOKUP(OI$27&\"-\"&$M49&\"_new\",Ammortamento_Finanziario!$H:$L,5,FALSE),VLOOKUP($M49,TT_Tabelle_Riferimento!$D$127:$H$164,5,FALSE))","v":20},{"$f":"+IFERROR(VLOOKUP(OJ$27&\"-\"&$M49&\"_new\",Ammortamento_Finanziario!$H:$L,5,FALSE),VLOOKUP($M49,TT_Tabelle_Riferimento!$D$127:$H$164,5,FALSE))","v":20},{"$f":"+IFERROR(VLOOKUP(OK$27&\"-\"&$M49&\"_new\",Ammortamento_Finanziario!$H:$L,5,FALSE),VLOOKUP($M49,TT_Tabelle_Riferimento!$D$127:$H$164,5,FALSE))","v":20},{"$f":"+IFERROR(VLOOKUP(OL$27&\"-\"&$M49&\"_new\",Ammortamento_Finanziario!$H:$L,5,FALSE),VLOOKUP($M49,TT_Tabelle_Riferimento!$D$127:$H$164,5,FALSE))","v":20},{"$f":"+IFERROR(VLOOKUP(OM$27&\"-\"&$M49&\"_new\",Ammortamento_Finanziario!$H:$L,5,FALSE),VLOOKUP($M49,TT_Tabelle_Riferimento!$D$127:$H$164,5,FALSE))","v":20},{"$f":"+IFERROR(VLOOKUP(ON$27&\"-\"&$M49&\"_new\",Ammortamento_Finanziario!$H:$L,5,FALSE),VLOOKUP($M49,TT_Tabelle_Riferimento!$D$127:$H$164,5,FALSE))","v":20},{"$f":"+IFERROR(VLOOKUP(OO$27&\"-\"&$M49&\"_new\",Ammortamento_Finanziario!$H:$L,5,FALSE),VLOOKUP($M49,TT_Tabelle_Riferimento!$D$127:$H$164,5,FALSE))","v":20},{"$f":"+IFERROR(VLOOKUP(OP$27&\"-\"&$M49&\"_new\",Ammortamento_Finanziario!$H:$L,5,FALSE),VLOOKUP($M49,TT_Tabelle_Riferimento!$D$127:$H$164,5,FALSE))","v":20},{"$f":"+IFERROR(VLOOKUP(OQ$27&\"-\"&$M49&\"_new\",Ammortamento_Finanziario!$H:$L,5,FALSE),VLOOKUP($M49,TT_Tabelle_Riferimento!$D$127:$H$164,5,FALSE))","v":20},{"$f":"+IFERROR(VLOOKUP(OR$27&\"-\"&$M49&\"_new\",Ammortamento_Finanziario!$H:$L,5,FALSE),VLOOKUP($M49,TT_Tabelle_Riferimento!$D$127:$H$164,5,FALSE))","v":20},{"$f":"+IFERROR(VLOOKUP(OS$27&\"-\"&$M49&\"_new\",Ammortamento_Finanziario!$H:$L,5,FALSE),VLOOKUP($M49,TT_Tabelle_Riferimento!$D$127:$H$164,5,FALSE))","v":20},{"$f":"+IFERROR(VLOOKUP(OT$27&\"-\"&$M49&\"_new\",Ammortamento_Finanziario!$H:$L,5,FALSE),VLOOKUP($M49,TT_Tabelle_Riferimento!$D$127:$H$164,5,FALSE))","v":20},{"$f":"+IFERROR(VLOOKUP(OU$27&\"-\"&$M49&\"_new\",Ammortamento_Finanziario!$H:$L,5,FALSE),VLOOKUP($M49,TT_Tabelle_Riferimento!$D$127:$H$164,5,FALSE))","v":20},{"$f":"+IFERROR(VLOOKUP(OV$27&\"-\"&$M49&\"_new\",Ammortamento_Finanziario!$H:$L,5,FALSE),VLOOKUP($M49,TT_Tabelle_Riferimento!$D$127:$H$164,5,FALSE))","v":20},{"$f":"+IFERROR(VLOOKUP(OW$27&\"-\"&$M49&\"_new\",Ammortamento_Finanziario!$H:$L,5,FALSE),VLOOKUP($M49,TT_Tabelle_Riferimento!$D$127:$H$164,5,FALSE))","v":20},{"$f":"+IFERROR(VLOOKUP(OX$27&\"-\"&$M49&\"_new\",Ammortamento_Finanziario!$H:$L,5,FALSE),VLOOKUP($M49,TT_Tabelle_Riferimento!$D$127:$H$164,5,FALSE))","v":20},{"$f":"+IFERROR(VLOOKUP(OY$27&\"-\"&$M49&\"_new\",Ammortamento_Finanziario!$H:$L,5,FALSE),VLOOKUP($M49,TT_Tabelle_Riferimento!$D$127:$H$164,5,FALSE))","v":20},{"$f":"+IFERROR(VLOOKUP(OZ$27&\"-\"&$M49&\"_new\",Ammortamento_Finanziario!$H:$L,5,FALSE),VLOOKUP($M49,TT_Tabelle_Riferimento!$D$127:$H$164,5,FALSE))","v":20},{"$f":"+IFERROR(VLOOKUP(PA$27&\"-\"&$M49&\"_new\",Ammortamento_Finanziario!$H:$L,5,FALSE),VLOOKUP($M49,TT_Tabelle_Riferimento!$D$127:$H$164,5,FALSE))","v":20},{"$f":"+IFERROR(VLOOKUP(PB$27&\"-\"&$M49&\"_new\",Ammortamento_Finanziario!$H:$L,5,FALSE),VLOOKUP($M49,TT_Tabelle_Riferimento!$D$127:$H$164,5,FALSE))","v":20},{"$f":"+IFERROR(VLOOKUP(PC$27&\"-\"&$M49&\"_new\",Ammortamento_Finanziario!$H:$L,5,FALSE),VLOOKUP($M49,TT_Tabelle_Riferimento!$D$127:$H$164,5,FALSE))","v":20},{"$f":"+IFERROR(VLOOKUP(PD$27&\"-\"&$M49&\"_new\",Ammortamento_Finanziario!$H:$L,5,FALSE),VLOOKUP($M49,TT_Tabelle_Riferimento!$D$127:$H$164,5,FALSE))","v":20},{"$f":"+IFERROR(VLOOKUP(PE$27&\"-\"&$M49&\"_new\",Ammortamento_Finanziario!$H:$L,5,FALSE),VLOOKUP($M49,TT_Tabelle_Riferimento!$D$127:$H$164,5,FALSE))","v":20},{"$f":"+IFERROR(VLOOKUP(PF$27&\"-\"&$M49&\"_new\",Ammortamento_Finanziario!$H:$L,5,FALSE),VLOOKUP($M49,TT_Tabelle_Riferimento!$D$127:$H$164,5,FALSE))","v":20},{"$f":"+IFERROR(VLOOKUP(PG$27&\"-\"&$M49&\"_new\",Ammortamento_Finanziario!$H:$L,5,FALSE),VLOOKUP($M49,TT_Tabelle_Riferimento!$D$127:$H$164,5,FALSE))","v":20},{"$f":"+IFERROR(VLOOKUP(PH$27&\"-\"&$M49&\"_new\",Ammortamento_Finanziario!$H:$L,5,FALSE),VLOOKUP($M49,TT_Tabelle_Riferimento!$D$127:$H$164,5,FALSE))","v":20},{"$f":"+IFERROR(VLOOKUP(PI$27&\"-\"&$M49&\"_new\",Ammortamento_Finanziario!$H:$L,5,FALSE),VLOOKUP($M49,TT_Tabelle_Riferimento!$D$127:$H$164,5,FALSE))","v":20},{"$f":"+IFERROR(VLOOKUP(PJ$27&\"-\"&$M49&\"_new\",Ammortamento_Finanziario!$H:$L,5,FALSE),VLOOKUP($M49,TT_Tabelle_Riferimento!$D$127:$H$164,5,FALSE))","v":20},{"$f":"+IFERROR(VLOOKUP(PK$27&\"-\"&$M49&\"_new\",Ammortamento_Finanziario!$H:$L,5,FALSE),VLOOKUP($M49,TT_Tabelle_Riferimento!$D$127:$H$164,5,FALSE))","v":20},{"$f":"+IFERROR(VLOOKUP(PL$27&\"-\"&$M49&\"_new\",Ammortamento_Finanziario!$H:$L,5,FALSE),VLOOKUP($M49,TT_Tabelle_Riferimento!$D$127:$H$164,5,FALSE))","v":20},{"$f":"+IFERROR(VLOOKUP(PM$27&\"-\"&$M49&\"_new\",Ammortamento_Finanziario!$H:$L,5,FALSE),VLOOKUP($M49,TT_Tabelle_Riferimento!$D$127:$H$164,5,FALSE))","v":20},{"$f":"+IFERROR(VLOOKUP(PN$27&\"-\"&$M49&\"_new\",Ammortamento_Finanziario!$H:$L,5,FALSE),VLOOKUP($M49,TT_Tabelle_Riferimento!$D$127:$H$164,5,FALSE))","v":20},{"$f":"+IFERROR(VLOOKUP(PO$27&\"-\"&$M49&\"_new\",Ammortamento_Finanziario!$H:$L,5,FALSE),VLOOKUP($M49,TT_Tabelle_Riferimento!$D$127:$H$164,5,FALSE))","v":20},{"$f":"+IFERROR(VLOOKUP(PP$27&\"-\"&$M49&\"_new\",Ammortamento_Finanziario!$H:$L,5,FALSE),VLOOKUP($M49,TT_Tabelle_Riferimento!$D$127:$H$164,5,FALSE))","v":20},{"$f":"+IFERROR(VLOOKUP(PQ$27&\"-\"&$M49&\"_new\",Ammortamento_Finanziario!$H:$L,5,FALSE),VLOOKUP($M49,TT_Tabelle_Riferimento!$D$127:$H$164,5,FALSE))","v":20},{"$f":"+IFERROR(VLOOKUP(PR$27&\"-\"&$M49&\"_new\",Ammortamento_Finanziario!$H:$L,5,FALSE),VLOOKUP($M49,TT_Tabelle_Riferimento!$D$127:$H$164,5,FALSE))","v":20},{"$f":"+IFERROR(VLOOKUP(PS$27&\"-\"&$M49&\"_new\",Ammortamento_Finanziario!$H:$L,5,FALSE),VLOOKUP($M49,TT_Tabelle_Riferimento!$D$127:$H$164,5,FALSE))","v":20},{"$f":"+IFERROR(VLOOKUP(PT$27&\"-\"&$M49&\"_new\",Ammortamento_Finanziario!$H:$L,5,FALSE),VLOOKUP($M49,TT_Tabelle_Riferimento!$D$127:$H$164,5,FALSE))","v":20},{"$f":"+IFERROR(VLOOKUP(PU$27&\"-\"&$M49&\"_new\",Ammortamento_Finanziario!$H:$L,5,FALSE),VLOOKUP($M49,TT_Tabelle_Riferimento!$D$127:$H$164,5,FALSE))","v":20},{"$f":"+IFERROR(VLOOKUP(PV$27&\"-\"&$M49&\"_new\",Ammortamento_Finanziario!$H:$L,5,FALSE),VLOOKUP($M49,TT_Tabelle_Riferimento!$D$127:$H$164,5,FALSE))","v":20},{"$f":"+IFERROR(VLOOKUP(PW$27&\"-\"&$M49&\"_new\",Ammortamento_Finanziario!$H:$L,5,FALSE),VLOOKUP($M49,TT_Tabelle_Riferimento!$D$127:$H$164,5,FALSE))","v":20},{"$f":"+IFERROR(VLOOKUP(PX$27&\"-\"&$M49&\"_new\",Ammortamento_Finanziario!$H:$L,5,FALSE),VLOOKUP($M49,TT_Tabelle_Riferimento!$D$127:$H$164,5,FALSE))","v":20},{"$f":"+IFERROR(VLOOKUP(PY$27&\"-\"&$M49&\"_new\",Ammortamento_Finanziario!$H:$L,5,FALSE),VLOOKUP($M49,TT_Tabelle_Riferimento!$D$127:$H$164,5,FALSE))","v":20},{"$f":"+IFERROR(VLOOKUP(PZ$27&\"-\"&$M49&\"_new\",Ammortamento_Finanziario!$H:$L,5,FALSE),VLOOKUP($M49,TT_Tabelle_Riferimento!$D$127:$H$164,5,FALSE))","v":20},{"$f":"+IFERROR(VLOOKUP(QA$27&\"-\"&$M49&\"_new\",Ammortamento_Finanziario!$H:$L,5,FALSE),VLOOKUP($M49,TT_Tabelle_Riferimento!$D$127:$H$164,5,FALSE))","v":20},{"$f":"+IFERROR(VLOOKUP(QB$27&\"-\"&$M49&\"_new\",Ammortamento_Finanziario!$H:$L,5,FALSE),VLOOKUP($M49,TT_Tabelle_Riferimento!$D$127:$H$164,5,FALSE))","v":20},{"$f":"+IFERROR(VLOOKUP(QC$27&\"-\"&$M49&\"_new\",Ammortamento_Finanziario!$H:$L,5,FALSE),VLOOKUP($M49,TT_Tabelle_Riferimento!$D$127:$H$164,5,FALSE))","v":20},{"$f":"+IFERROR(VLOOKUP(QD$27&\"-\"&$M49&\"_new\",Ammortamento_Finanziario!$H:$L,5,FALSE),VLOOKUP($M49,TT_Tabelle_Riferimento!$D$127:$H$164,5,FALSE))","v":20},{"$f":"+IFERROR(VLOOKUP(QE$27&\"-\"&$M49&\"_new\",Ammortamento_Finanziario!$H:$L,5,FALSE),VLOOKUP($M49,TT_Tabelle_Riferimento!$D$127:$H$164,5,FALSE))","v":20},{"$f":"+IFERROR(VLOOKUP(QF$27&\"-\"&$M49&\"_new\",Ammortamento_Finanziario!$H:$L,5,FALSE),VLOOKUP($M49,TT_Tabelle_Riferimento!$D$127:$H$164,5,FALSE))","v":20},{"$f":"+IFERROR(VLOOKUP(QG$27&\"-\"&$M49&\"_new\",Ammortamento_Finanziario!$H:$L,5,FALSE),VLOOKUP($M49,TT_Tabelle_Riferimento!$D$127:$H$164,5,FALSE))","v":20},{"$f":"+IFERROR(VLOOKUP(QH$27&\"-\"&$M49&\"_new\",Ammortamento_Finanziario!$H:$L,5,FALSE),VLOOKUP($M49,TT_Tabelle_Riferimento!$D$127:$H$164,5,FALSE))","v":20},{"$f":"+IFERROR(VLOOKUP(QI$27&\"-\"&$M49&\"_new\",Ammortamento_Finanziario!$H:$L,5,FALSE),VLOOKUP($M49,TT_Tabelle_Riferimento!$D$127:$H$164,5,FALSE))","v":20},{"$f":"+IFERROR(VLOOKUP(QJ$27&\"-\"&$M49&\"_new\",Ammortamento_Finanziario!$H:$L,5,FALSE),VLOOKUP($M49,TT_Tabelle_Riferimento!$D$127:$H$164,5,FALSE))","v":20},{"$f":"+IFERROR(VLOOKUP(QK$27&\"-\"&$M49&\"_new\",Ammortamento_Finanziario!$H:$L,5,FALSE),VLOOKUP($M49,TT_Tabelle_Riferimento!$D$127:$H$164,5,FALSE))","v":20},{"$f":"+IFERROR(VLOOKUP(QL$27&\"-\"&$M49&\"_new\",Ammortamento_Finanziario!$H:$L,5,FALSE),VLOOKUP($M49,TT_Tabelle_Riferimento!$D$127:$H$164,5,FALSE))","v":20},{"$f":"+IFERROR(VLOOKUP(QM$27&\"-\"&$M49&\"_new\",Ammortamento_Finanziario!$H:$L,5,FALSE),VLOOKUP($M49,TT_Tabelle_Riferimento!$D$127:$H$164,5,FALSE))","v":20},{"$f":"+IFERROR(VLOOKUP(QN$27&\"-\"&$M49&\"_new\",Ammortamento_Finanziario!$H:$L,5,FALSE),VLOOKUP($M49,TT_Tabelle_Riferimento!$D$127:$H$164,5,FALSE))","v":20},{"$f":"+IFERROR(VLOOKUP(QO$27&\"-\"&$M49&\"_new\",Ammortamento_Finanziario!$H:$L,5,FALSE),VLOOKUP($M49,TT_Tabelle_Riferimento!$D$127:$H$164,5,FALSE))","v":20},{"$f":"+IFERROR(VLOOKUP(QP$27&\"-\"&$M49&\"_new\",Ammortamento_Finanziario!$H:$L,5,FALSE),VLOOKUP($M49,TT_Tabelle_Riferimento!$D$127:$H$164,5,FALSE))","v":20},{"$f":"+IFERROR(VLOOKUP(QQ$27&\"-\"&$M49&\"_new\",Ammortamento_Finanziario!$H:$L,5,FALSE),VLOOKUP($M49,TT_Tabelle_Riferimento!$D$127:$H$164,5,FALSE))","v":20},{"$f":"+IFERROR(VLOOKUP(QR$27&\"-\"&$M49&\"_new\",Ammortamento_Finanziario!$H:$L,5,FALSE),VLOOKUP($M49,TT_Tabelle_Riferimento!$D$127:$H$164,5,FALSE))","v":20},{"$f":"+IFERROR(VLOOKUP(QS$27&\"-\"&$M49&\"_new\",Ammortamento_Finanziario!$H:$L,5,FALSE),VLOOKUP($M49,TT_Tabelle_Riferimento!$D$127:$H$164,5,FALSE))","v":20},{"$f":"+IFERROR(VLOOKUP(QT$27&\"-\"&$M49&\"_new\",Ammortamento_Finanziario!$H:$L,5,FALSE),VLOOKUP($M49,TT_Tabelle_Riferimento!$D$127:$H$164,5,FALSE))","v":20},{"$f":"+IFERROR(VLOOKUP(QU$27&\"-\"&$M49&\"_new\",Ammortamento_Finanziario!$H:$L,5,FALSE),VLOOKUP($M49,TT_Tabelle_Riferimento!$D$127:$H$164,5,FALSE))","v":20},{"$f":"+IFERROR(VLOOKUP(QV$27&\"-\"&$M49&\"_new\",Ammortamento_Finanziario!$H:$L,5,FALSE),VLOOKUP($M49,TT_Tabelle_Riferimento!$D$127:$H$164,5,FALSE))","v":20},{"$f":"+IFERROR(VLOOKUP(QW$27&\"-\"&$M49&\"_new\",Ammortamento_Finanziario!$H:$L,5,FALSE),VLOOKUP($M49,TT_Tabelle_Riferimento!$D$127:$H$164,5,FALSE))","v":20},{"$f":"+IFERROR(VLOOKUP(QX$27&\"-\"&$M49&\"_new\",Ammortamento_Finanziario!$H:$L,5,FALSE),VLOOKUP($M49,TT_Tabelle_Riferimento!$D$127:$H$164,5,FALSE))","v":20},{"$f":"+IFERROR(VLOOKUP(QY$27&\"-\"&$M49&\"_new\",Ammortamento_Finanziario!$H:$L,5,FALSE),VLOOKUP($M49,TT_Tabelle_Riferimento!$D$127:$H$164,5,FALSE))","v":20},{"$f":"+IFERROR(VLOOKUP(QZ$27&\"-\"&$M49&\"_new\",Ammortamento_Finanziario!$H:$L,5,FALSE),VLOOKUP($M49,TT_Tabelle_Riferimento!$D$127:$H$164,5,FALSE))","v":20},{"$f":"+IFERROR(VLOOKUP(RA$27&\"-\"&$M49&\"_new\",Ammortamento_Finanziario!$H:$L,5,FALSE),VLOOKUP($M49,TT_Tabelle_Riferimento!$D$127:$H$164,5,FALSE))","v":20},{"$f":"+IFERROR(VLOOKUP(RB$27&\"-\"&$M49&\"_new\",Ammortamento_Finanziario!$H:$L,5,FALSE),VLOOKUP($M49,TT_Tabelle_Riferimento!$D$127:$H$164,5,FALSE))","v":20},{"$f":"+IFERROR(VLOOKUP(RC$27&\"-\"&$M49&\"_new\",Ammortamento_Finanziario!$H:$L,5,FALSE),VLOOKUP($M49,TT_Tabelle_Riferimento!$D$127:$H$164,5,FALSE))","v":20},{"$f":"+IFERROR(VLOOKUP(RD$27&\"-\"&$M49&\"_new\",Ammortamento_Finanziario!$H:$L,5,FALSE),VLOOKUP($M49,TT_Tabelle_Riferimento!$D$127:$H$164,5,FALSE))","v":20},{"$f":"+IFERROR(VLOOKUP(RE$27&\"-\"&$M49&\"_new\",Ammortamento_Finanziario!$H:$L,5,FALSE),VLOOKUP($M49,TT_Tabelle_Riferimento!$D$127:$H$164,5,FALSE))","v":20},{"$f":"+IFERROR(VLOOKUP(RF$27&\"-\"&$M49&\"_new\",Ammortamento_Finanziario!$H:$L,5,FALSE),VLOOKUP($M49,TT_Tabelle_Riferimento!$D$127:$H$164,5,FALSE))","v":20},{"$f":"+IFERROR(VLOOKUP(RG$27&\"-\"&$M49&\"_new\",Ammortamento_Finanziario!$H:$L,5,FALSE),VLOOKUP($M49,TT_Tabelle_Riferimento!$D$127:$H$164,5,FALSE))","v":20},{"$f":"+IFERROR(VLOOKUP(RH$27&\"-\"&$M49&\"_new\",Ammortamento_Finanziario!$H:$L,5,FALSE),VLOOKUP($M49,TT_Tabelle_Riferimento!$D$127:$H$164,5,FALSE))","v":20},{"$f":"+IFERROR(VLOOKUP(RI$27&\"-\"&$M49&\"_new\",Ammortamento_Finanziario!$H:$L,5,FALSE),VLOOKUP($M49,TT_Tabelle_Riferimento!$D$127:$H$164,5,FALSE))","v":20},{"$f":"+IFERROR(VLOOKUP(RJ$27&\"-\"&$M49&\"_new\",Ammortamento_Finanziario!$H:$L,5,FALSE),VLOOKUP($M49,TT_Tabelle_Riferimento!$D$127:$H$164,5,FALSE))","v":20},{"$f":"+IFERROR(VLOOKUP(RK$27&\"-\"&$M49&\"_new\",Ammortamento_Finanziario!$H:$L,5,FALSE),VLOOKUP($M49,TT_Tabelle_Riferimento!$D$127:$H$164,5,FALSE))","v":20},{"$f":"+IFERROR(VLOOKUP(RL$27&\"-\"&$M49&\"_new\",Ammortamento_Finanziario!$H:$L,5,FALSE),VLOOKUP($M49,TT_Tabelle_Riferimento!$D$127:$H$164,5,FALSE))","v":20},{"$f":"+IFERROR(VLOOKUP(RM$27&\"-\"&$M49&\"_new\",Ammortamento_Finanziario!$H:$L,5,FALSE),VLOOKUP($M49,TT_Tabelle_Riferimento!$D$127:$H$164,5,FALSE))","v":20},{"$f":"+IFERROR(VLOOKUP(RN$27&\"-\"&$M49&\"_new\",Ammortamento_Finanziario!$H:$L,5,FALSE),VLOOKUP($M49,TT_Tabelle_Riferimento!$D$127:$H$164,5,FALSE))","v":20},{"$f":"+IFERROR(VLOOKUP(RO$27&\"-\"&$M49&\"_new\",Ammortamento_Finanziario!$H:$L,5,FALSE),VLOOKUP($M49,TT_Tabelle_Riferimento!$D$127:$H$164,5,FALSE))","v":20},{"$f":"+IFERROR(VLOOKUP(RP$27&\"-\"&$M49&\"_new\",Ammortamento_Finanziario!$H:$L,5,FALSE),VLOOKUP($M49,TT_Tabelle_Riferimento!$D$127:$H$164,5,FALSE))","v":20},{"$f":"+IFERROR(VLOOKUP(RQ$27&\"-\"&$M49&\"_new\",Ammortamento_Finanziario!$H:$L,5,FALSE),VLOOKUP($M49,TT_Tabelle_Riferimento!$D$127:$H$164,5,FALSE))","v":20},{"$f":"+IFERROR(VLOOKUP(RR$27&\"-\"&$M49&\"_new\",Ammortamento_Finanziario!$H:$L,5,FALSE),VLOOKUP($M49,TT_Tabelle_Riferimento!$D$127:$H$164,5,FALSE))","v":20},{"$f":"+IFERROR(VLOOKUP(RS$27&\"-\"&$M49&\"_new\",Ammortamento_Finanziario!$H:$L,5,FALSE),VLOOKUP($M49,TT_Tabelle_Riferimento!$D$127:$H$164,5,FALSE))","v":20},{"$f":"+IFERROR(VLOOKUP(RT$27&\"-\"&$M49&\"_new\",Ammortamento_Finanziario!$H:$L,5,FALSE),VLOOKUP($M49,TT_Tabelle_Riferimento!$D$127:$H$164,5,FALSE))","v":20},{"$f":"+IFERROR(VLOOKUP(RU$27&\"-\"&$M49&\"_new\",Ammortamento_Finanziario!$H:$L,5,FALSE),VLOOKUP($M49,TT_Tabelle_Riferimento!$D$127:$H$164,5,FALSE))","v":20},{"$f":"+IFERROR(VLOOKUP(RV$27&\"-\"&$M49&\"_new\",Ammortamento_Finanziario!$H:$L,5,FALSE),VLOOKUP($M49,TT_Tabelle_Riferimento!$D$127:$H$164,5,FALSE))","v":20}]
[null,null,null,null,null,null,null,null,null,null,null,null,23,0,0,0,0,0,0,0,0,0,0,0,0,0,0,0,0,0,0,0,0,0,0,0,0,0,0,0,0,0,0,0,0,0,0,0,0,0,0,0,0,0,0,0,0,0,0,0,0,0,0,0,0,0,0,0,0,0,0,0,0,0,0,0,0,0,0,0,0,0,0,0,0,0,0,0,0,0,0,0,0,0,0,0,0,0,0,0,0,0,0,0,0,0,0,0,0,0,0,0,0,0,0,0,0,0,0,0,0,0,0,0,0,0,0,0,0,0,0,0,0,0,0,0,0,0,0,0,0,0,0,0,0,0,0,0,0,0,0,0,0,0,0,0,0,0,0,0,0,0,0,0,0,0,0,0,0,0,0,0,0,0,0,0,0,0,0,0,0,0,0,0,0,0,0,0,0,0,0,0,0,0,0,0,0,0,0,0,0,0,0,0,0,0,0,0,0,0,0,0,0,0,0,0,0,0,0,0,0,0,0,0,0,0,0,0,0,0,0,0,0,0,0,0,0,0,0,0,0,0,0,0,0,0,0,0,0,0,0,0,0,0,0,0,0,0,0,0,0,0,0,0,0,0,0,0,0,0,0,0,0,0,0,0,0,0,0,0,0,0,0,0,0,0,0,0,0,0,0,0,0,0,0,0,0,0,0,0,0,0,{"$f":"+IFERROR(VLOOKUP(KQ$27&\"-\"&$M50&\"_new\",Ammortamento_Finanziario!$H:$L,5,FALSE),VLOOKUP($M50,TT_Tabelle_Riferimento!$D$127:$H$164,5,FALSE))","v":20},{"$f":"+IFERROR(VLOOKUP(KR$27&\"-\"&$M50&\"_new\",Ammortamento_Finanziario!$H:$L,5,FALSE),VLOOKUP($M50,TT_Tabelle_Riferimento!$D$127:$H$164,5,FALSE))","v":20},{"$f":"+IFERROR(VLOOKUP(KS$27&\"-\"&$M50&\"_new\",Ammortamento_Finanziario!$H:$L,5,FALSE),VLOOKUP($M50,TT_Tabelle_Riferimento!$D$127:$H$164,5,FALSE))","v":20},{"$f":"+IFERROR(VLOOKUP(KT$27&\"-\"&$M50&\"_new\",Ammortamento_Finanziario!$H:$L,5,FALSE),VLOOKUP($M50,TT_Tabelle_Riferimento!$D$127:$H$164,5,FALSE))","v":20},{"$f":"+IFERROR(VLOOKUP(KU$27&\"-\"&$M50&\"_new\",Ammortamento_Finanziario!$H:$L,5,FALSE),VLOOKUP($M50,TT_Tabelle_Riferimento!$D$127:$H$164,5,FALSE))","v":20},{"$f":"+IFERROR(VLOOKUP(KV$27&\"-\"&$M50&\"_new\",Ammortamento_Finanziario!$H:$L,5,FALSE),VLOOKUP($M50,TT_Tabelle_Riferimento!$D$127:$H$164,5,FALSE))","v":20},{"$f":"+IFERROR(VLOOKUP(KW$27&\"-\"&$M50&\"_new\",Ammortamento_Finanziario!$H:$L,5,FALSE),VLOOKUP($M50,TT_Tabelle_Riferimento!$D$127:$H$164,5,FALSE))","v":20},{"$f":"+IFERROR(VLOOKUP(KX$27&\"-\"&$M50&\"_new\",Ammortamento_Finanziario!$H:$L,5,FALSE),VLOOKUP($M50,TT_Tabelle_Riferimento!$D$127:$H$164,5,FALSE))","v":20},{"$f":"+IFERROR(VLOOKUP(KY$27&\"-\"&$M50&\"_new\",Ammortamento_Finanziario!$H:$L,5,FALSE),VLOOKUP($M50,TT_Tabelle_Riferimento!$D$127:$H$164,5,FALSE))","v":20},{"$f":"+IFERROR(VLOOKUP(KZ$27&\"-\"&$M50&\"_new\",Ammortamento_Finanziario!$H:$L,5,FALSE),VLOOKUP($M50,TT_Tabelle_Riferimento!$D$127:$H$164,5,FALSE))","v":20},{"$f":"+IFERROR(VLOOKUP(LA$27&\"-\"&$M50&\"_new\",Ammortamento_Finanziario!$H:$L,5,FALSE),VLOOKUP($M50,TT_Tabelle_Riferimento!$D$127:$H$164,5,FALSE))","v":20},{"$f":"+IFERROR(VLOOKUP(LB$27&\"-\"&$M50&\"_new\",Ammortamento_Finanziario!$H:$L,5,FALSE),VLOOKUP($M50,TT_Tabelle_Riferimento!$D$127:$H$164,5,FALSE))","v":20},{"$f":"+IFERROR(VLOOKUP(LC$27&\"-\"&$M50&\"_new\",Ammortamento_Finanziario!$H:$L,5,FALSE),VLOOKUP($M50,TT_Tabelle_Riferimento!$D$127:$H$164,5,FALSE))","v":20},{"$f":"+IFERROR(VLOOKUP(LD$27&\"-\"&$M50&\"_new\",Ammortamento_Finanziario!$H:$L,5,FALSE),VLOOKUP($M50,TT_Tabelle_Riferimento!$D$127:$H$164,5,FALSE))","v":20},{"$f":"+IFERROR(VLOOKUP(LE$27&\"-\"&$M50&\"_new\",Ammortamento_Finanziario!$H:$L,5,FALSE),VLOOKUP($M50,TT_Tabelle_Riferimento!$D$127:$H$164,5,FALSE))","v":20},{"$f":"+IFERROR(VLOOKUP(LF$27&\"-\"&$M50&\"_new\",Ammortamento_Finanziario!$H:$L,5,FALSE),VLOOKUP($M50,TT_Tabelle_Riferimento!$D$127:$H$164,5,FALSE))","v":20},{"$f":"+IFERROR(VLOOKUP(LG$27&\"-\"&$M50&\"_new\",Ammortamento_Finanziario!$H:$L,5,FALSE),VLOOKUP($M50,TT_Tabelle_Riferimento!$D$127:$H$164,5,FALSE))","v":20},{"$f":"+IFERROR(VLOOKUP(LH$27&\"-\"&$M50&\"_new\",Ammortamento_Finanziario!$H:$L,5,FALSE),VLOOKUP($M50,TT_Tabelle_Riferimento!$D$127:$H$164,5,FALSE))","v":20},{"$f":"+IFERROR(VLOOKUP(LI$27&\"-\"&$M50&\"_new\",Ammortamento_Finanziario!$H:$L,5,FALSE),VLOOKUP($M50,TT_Tabelle_Riferimento!$D$127:$H$164,5,FALSE))","v":20},{"$f":"+IFERROR(VLOOKUP(LJ$27&\"-\"&$M50&\"_new\",Ammortamento_Finanziario!$H:$L,5,FALSE),VLOOKUP($M50,TT_Tabelle_Riferimento!$D$127:$H$164,5,FALSE))","v":20},{"$f":"+IFERROR(VLOOKUP(LK$27&\"-\"&$M50&\"_new\",Ammortamento_Finanziario!$H:$L,5,FALSE),VLOOKUP($M50,TT_Tabelle_Riferimento!$D$127:$H$164,5,FALSE))","v":20},{"$f":"+IFERROR(VLOOKUP(LL$27&\"-\"&$M50&\"_new\",Ammortamento_Finanziario!$H:$L,5,FALSE),VLOOKUP($M50,TT_Tabelle_Riferimento!$D$127:$H$164,5,FALSE))","v":20},{"$f":"+IFERROR(VLOOKUP(LM$27&\"-\"&$M50&\"_new\",Ammortamento_Finanziario!$H:$L,5,FALSE),VLOOKUP($M50,TT_Tabelle_Riferimento!$D$127:$H$164,5,FALSE))","v":20},{"$f":"+IFERROR(VLOOKUP(LN$27&\"-\"&$M50&\"_new\",Ammortamento_Finanziario!$H:$L,5,FALSE),VLOOKUP($M50,TT_Tabelle_Riferimento!$D$127:$H$164,5,FALSE))","v":20},{"$f":"+IFERROR(VLOOKUP(LO$27&\"-\"&$M50&\"_new\",Ammortamento_Finanziario!$H:$L,5,FALSE),VLOOKUP($M50,TT_Tabelle_Riferimento!$D$127:$H$164,5,FALSE))","v":20},{"$f":"+IFERROR(VLOOKUP(LP$27&\"-\"&$M50&\"_new\",Ammortamento_Finanziario!$H:$L,5,FALSE),VLOOKUP($M50,TT_Tabelle_Riferimento!$D$127:$H$164,5,FALSE))","v":20},{"$f":"+IFERROR(VLOOKUP(LQ$27&\"-\"&$M50&\"_new\",Ammortamento_Finanziario!$H:$L,5,FALSE),VLOOKUP($M50,TT_Tabelle_Riferimento!$D$127:$H$164,5,FALSE))","v":20},{"$f":"+IFERROR(VLOOKUP(LR$27&\"-\"&$M50&\"_new\",Ammortamento_Finanziario!$H:$L,5,FALSE),VLOOKUP($M50,TT_Tabelle_Riferimento!$D$127:$H$164,5,FALSE))","v":20},{"$f":"+IFERROR(VLOOKUP(LS$27&\"-\"&$M50&\"_new\",Ammortamento_Finanziario!$H:$L,5,FALSE),VLOOKUP($M50,TT_Tabelle_Riferimento!$D$127:$H$164,5,FALSE))","v":20},{"$f":"+IFERROR(VLOOKUP(LT$27&\"-\"&$M50&\"_new\",Ammortamento_Finanziario!$H:$L,5,FALSE),VLOOKUP($M50,TT_Tabelle_Riferimento!$D$127:$H$164,5,FALSE))","v":20},{"$f":"+IFERROR(VLOOKUP(LU$27&\"-\"&$M50&\"_new\",Ammortamento_Finanziario!$H:$L,5,FALSE),VLOOKUP($M50,TT_Tabelle_Riferimento!$D$127:$H$164,5,FALSE))","v":20},{"$f":"+IFERROR(VLOOKUP(LV$27&\"-\"&$M50&\"_new\",Ammortamento_Finanziario!$H:$L,5,FALSE),VLOOKUP($M50,TT_Tabelle_Riferimento!$D$127:$H$164,5,FALSE))","v":20},{"$f":"+IFERROR(VLOOKUP(LW$27&\"-\"&$M50&\"_new\",Ammortamento_Finanziario!$H:$L,5,FALSE),VLOOKUP($M50,TT_Tabelle_Riferimento!$D$127:$H$164,5,FALSE))","v":20},{"$f":"+IFERROR(VLOOKUP(LX$27&\"-\"&$M50&\"_new\",Ammortamento_Finanziario!$H:$L,5,FALSE),VLOOKUP($M50,TT_Tabelle_Riferimento!$D$127:$H$164,5,FALSE))","v":20},{"$f":"+IFERROR(VLOOKUP(LY$27&\"-\"&$M50&\"_new\",Ammortamento_Finanziario!$H:$L,5,FALSE),VLOOKUP($M50,TT_Tabelle_Riferimento!$D$127:$H$164,5,FALSE))","v":20},{"$f":"+IFERROR(VLOOKUP(LZ$27&\"-\"&$M50&\"_new\",Ammortamento_Finanziario!$H:$L,5,FALSE),VLOOKUP($M50,TT_Tabelle_Riferimento!$D$127:$H$164,5,FALSE))","v":20},{"$f":"+IFERROR(VLOOKUP(MA$27&\"-\"&$M50&\"_new\",Ammortamento_Finanziario!$H:$L,5,FALSE),VLOOKUP($M50,TT_Tabelle_Riferimento!$D$127:$H$164,5,FALSE))","v":20},{"$f":"+IFERROR(VLOOKUP(MB$27&\"-\"&$M50&\"_new\",Ammortamento_Finanziario!$H:$L,5,FALSE),VLOOKUP($M50,TT_Tabelle_Riferimento!$D$127:$H$164,5,FALSE))","v":20},{"$f":"+IFERROR(VLOOKUP(MC$27&\"-\"&$M50&\"_new\",Ammortamento_Finanziario!$H:$L,5,FALSE),VLOOKUP($M50,TT_Tabelle_Riferimento!$D$127:$H$164,5,FALSE))","v":20},{"$f":"+IFERROR(VLOOKUP(MD$27&\"-\"&$M50&\"_new\",Ammortamento_Finanziario!$H:$L,5,FALSE),VLOOKUP($M50,TT_Tabelle_Riferimento!$D$127:$H$164,5,FALSE))","v":20},{"$f":"+IFERROR(VLOOKUP(ME$27&\"-\"&$M50&\"_new\",Ammortamento_Finanziario!$H:$L,5,FALSE),VLOOKUP($M50,TT_Tabelle_Riferimento!$D$127:$H$164,5,FALSE))","v":20},{"$f":"+IFERROR(VLOOKUP(MF$27&\"-\"&$M50&\"_new\",Ammortamento_Finanziario!$H:$L,5,FALSE),VLOOKUP($M50,TT_Tabelle_Riferimento!$D$127:$H$164,5,FALSE))","v":20},{"$f":"+IFERROR(VLOOKUP(MG$27&\"-\"&$M50&\"_new\",Ammortamento_Finanziario!$H:$L,5,FALSE),VLOOKUP($M50,TT_Tabelle_Riferimento!$D$127:$H$164,5,FALSE))","v":20},{"$f":"+IFERROR(VLOOKUP(MH$27&\"-\"&$M50&\"_new\",Ammortamento_Finanziario!$H:$L,5,FALSE),VLOOKUP($M50,TT_Tabelle_Riferimento!$D$127:$H$164,5,FALSE))","v":20},{"$f":"+IFERROR(VLOOKUP(MI$27&\"-\"&$M50&\"_new\",Ammortamento_Finanziario!$H:$L,5,FALSE),VLOOKUP($M50,TT_Tabelle_Riferimento!$D$127:$H$164,5,FALSE))","v":20},{"$f":"+IFERROR(VLOOKUP(MJ$27&\"-\"&$M50&\"_new\",Ammortamento_Finanziario!$H:$L,5,FALSE),VLOOKUP($M50,TT_Tabelle_Riferimento!$D$127:$H$164,5,FALSE))","v":20},{"$f":"+IFERROR(VLOOKUP(MK$27&\"-\"&$M50&\"_new\",Ammortamento_Finanziario!$H:$L,5,FALSE),VLOOKUP($M50,TT_Tabelle_Riferimento!$D$127:$H$164,5,FALSE))","v":20},{"$f":"+IFERROR(VLOOKUP(ML$27&\"-\"&$M50&\"_new\",Ammortamento_Finanziario!$H:$L,5,FALSE),VLOOKUP($M50,TT_Tabelle_Riferimento!$D$127:$H$164,5,FALSE))","v":20},{"$f":"+IFERROR(VLOOKUP(MM$27&\"-\"&$M50&\"_new\",Ammortamento_Finanziario!$H:$L,5,FALSE),VLOOKUP($M50,TT_Tabelle_Riferimento!$D$127:$H$164,5,FALSE))","v":20},{"$f":"+IFERROR(VLOOKUP(MN$27&\"-\"&$M50&\"_new\",Ammortamento_Finanziario!$H:$L,5,FALSE),VLOOKUP($M50,TT_Tabelle_Riferimento!$D$127:$H$164,5,FALSE))","v":20},{"$f":"+IFERROR(VLOOKUP(MO$27&\"-\"&$M50&\"_new\",Ammortamento_Finanziario!$H:$L,5,FALSE),VLOOKUP($M50,TT_Tabelle_Riferimento!$D$127:$H$164,5,FALSE))","v":20},{"$f":"+IFERROR(VLOOKUP(MP$27&\"-\"&$M50&\"_new\",Ammortamento_Finanziario!$H:$L,5,FALSE),VLOOKUP($M50,TT_Tabelle_Riferimento!$D$127:$H$164,5,FALSE))","v":20},{"$f":"+IFERROR(VLOOKUP(MQ$27&\"-\"&$M50&\"_new\",Ammortamento_Finanziario!$H:$L,5,FALSE),VLOOKUP($M50,TT_Tabelle_Riferimento!$D$127:$H$164,5,FALSE))","v":20},{"$f":"+IFERROR(VLOOKUP(MR$27&\"-\"&$M50&\"_new\",Ammortamento_Finanziario!$H:$L,5,FALSE),VLOOKUP($M50,TT_Tabelle_Riferimento!$D$127:$H$164,5,FALSE))","v":20},{"$f":"+IFERROR(VLOOKUP(MS$27&\"-\"&$M50&\"_new\",Ammortamento_Finanziario!$H:$L,5,FALSE),VLOOKUP($M50,TT_Tabelle_Riferimento!$D$127:$H$164,5,FALSE))","v":20},{"$f":"+IFERROR(VLOOKUP(MT$27&\"-\"&$M50&\"_new\",Ammortamento_Finanziario!$H:$L,5,FALSE),VLOOKUP($M50,TT_Tabelle_Riferimento!$D$127:$H$164,5,FALSE))","v":20},{"$f":"+IFERROR(VLOOKUP(MU$27&\"-\"&$M50&\"_new\",Ammortamento_Finanziario!$H:$L,5,FALSE),VLOOKUP($M50,TT_Tabelle_Riferimento!$D$127:$H$164,5,FALSE))","v":20},{"$f":"+IFERROR(VLOOKUP(MV$27&\"-\"&$M50&\"_new\",Ammortamento_Finanziario!$H:$L,5,FALSE),VLOOKUP($M50,TT_Tabelle_Riferimento!$D$127:$H$164,5,FALSE))","v":20},{"$f":"+IFERROR(VLOOKUP(MW$27&\"-\"&$M50&\"_new\",Ammortamento_Finanziario!$H:$L,5,FALSE),VLOOKUP($M50,TT_Tabelle_Riferimento!$D$127:$H$164,5,FALSE))","v":20},{"$f":"+IFERROR(VLOOKUP(MX$27&\"-\"&$M50&\"_new\",Ammortamento_Finanziario!$H:$L,5,FALSE),VLOOKUP($M50,TT_Tabelle_Riferimento!$D$127:$H$164,5,FALSE))","v":20},{"$f":"+IFERROR(VLOOKUP(MY$27&\"-\"&$M50&\"_new\",Ammortamento_Finanziario!$H:$L,5,FALSE),VLOOKUP($M50,TT_Tabelle_Riferimento!$D$127:$H$164,5,FALSE))","v":20},{"$f":"+IFERROR(VLOOKUP(MZ$27&\"-\"&$M50&\"_new\",Ammortamento_Finanziario!$H:$L,5,FALSE),VLOOKUP($M50,TT_Tabelle_Riferimento!$D$127:$H$164,5,FALSE))","v":20},{"$f":"+IFERROR(VLOOKUP(NA$27&\"-\"&$M50&\"_new\",Ammortamento_Finanziario!$H:$L,5,FALSE),VLOOKUP($M50,TT_Tabelle_Riferimento!$D$127:$H$164,5,FALSE))","v":20},{"$f":"+IFERROR(VLOOKUP(NB$27&\"-\"&$M50&\"_new\",Ammortamento_Finanziario!$H:$L,5,FALSE),VLOOKUP($M50,TT_Tabelle_Riferimento!$D$127:$H$164,5,FALSE))","v":20},{"$f":"+IFERROR(VLOOKUP(NC$27&\"-\"&$M50&\"_new\",Ammortamento_Finanziario!$H:$L,5,FALSE),VLOOKUP($M50,TT_Tabelle_Riferimento!$D$127:$H$164,5,FALSE))","v":20},{"$f":"+IFERROR(VLOOKUP(ND$27&\"-\"&$M50&\"_new\",Ammortamento_Finanziario!$H:$L,5,FALSE),VLOOKUP($M50,TT_Tabelle_Riferimento!$D$127:$H$164,5,FALSE))","v":20},{"$f":"+IFERROR(VLOOKUP(NE$27&\"-\"&$M50&\"_new\",Ammortamento_Finanziario!$H:$L,5,FALSE),VLOOKUP($M50,TT_Tabelle_Riferimento!$D$127:$H$164,5,FALSE))","v":20},{"$f":"+IFERROR(VLOOKUP(NF$27&\"-\"&$M50&\"_new\",Ammortamento_Finanziario!$H:$L,5,FALSE),VLOOKUP($M50,TT_Tabelle_Riferimento!$D$127:$H$164,5,FALSE))","v":20},{"$f":"+IFERROR(VLOOKUP(NG$27&\"-\"&$M50&\"_new\",Ammortamento_Finanziario!$H:$L,5,FALSE),VLOOKUP($M50,TT_Tabelle_Riferimento!$D$127:$H$164,5,FALSE))","v":20},{"$f":"+IFERROR(VLOOKUP(NH$27&\"-\"&$M50&\"_new\",Ammortamento_Finanziario!$H:$L,5,FALSE),VLOOKUP($M50,TT_Tabelle_Riferimento!$D$127:$H$164,5,FALSE))","v":20},{"$f":"+IFERROR(VLOOKUP(NI$27&\"-\"&$M50&\"_new\",Ammortamento_Finanziario!$H:$L,5,FALSE),VLOOKUP($M50,TT_Tabelle_Riferimento!$D$127:$H$164,5,FALSE))","v":20},{"$f":"+IFERROR(VLOOKUP(NJ$27&\"-\"&$M50&\"_new\",Ammortamento_Finanziario!$H:$L,5,FALSE),VLOOKUP($M50,TT_Tabelle_Riferimento!$D$127:$H$164,5,FALSE))","v":20},{"$f":"+IFERROR(VLOOKUP(NK$27&\"-\"&$M50&\"_new\",Ammortamento_Finanziario!$H:$L,5,FALSE),VLOOKUP($M50,TT_Tabelle_Riferimento!$D$127:$H$164,5,FALSE))","v":20},{"$f":"+IFERROR(VLOOKUP(NL$27&\"-\"&$M50&\"_new\",Ammortamento_Finanziario!$H:$L,5,FALSE),VLOOKUP($M50,TT_Tabelle_Riferimento!$D$127:$H$164,5,FALSE))","v":20},{"$f":"+IFERROR(VLOOKUP(NM$27&\"-\"&$M50&\"_new\",Ammortamento_Finanziario!$H:$L,5,FALSE),VLOOKUP($M50,TT_Tabelle_Riferimento!$D$127:$H$164,5,FALSE))","v":20},{"$f":"+IFERROR(VLOOKUP(NN$27&\"-\"&$M50&\"_new\",Ammortamento_Finanziario!$H:$L,5,FALSE),VLOOKUP($M50,TT_Tabelle_Riferimento!$D$127:$H$164,5,FALSE))","v":20},{"$f":"+IFERROR(VLOOKUP(NO$27&\"-\"&$M50&\"_new\",Ammortamento_Finanziario!$H:$L,5,FALSE),VLOOKUP($M50,TT_Tabelle_Riferimento!$D$127:$H$164,5,FALSE))","v":20},{"$f":"+IFERROR(VLOOKUP(NP$27&\"-\"&$M50&\"_new\",Ammortamento_Finanziario!$H:$L,5,FALSE),VLOOKUP($M50,TT_Tabelle_Riferimento!$D$127:$H$164,5,FALSE))","v":20},{"$f":"+IFERROR(VLOOKUP(NQ$27&\"-\"&$M50&\"_new\",Ammortamento_Finanziario!$H:$L,5,FALSE),VLOOKUP($M50,TT_Tabelle_Riferimento!$D$127:$H$164,5,FALSE))","v":20},{"$f":"+IFERROR(VLOOKUP(NR$27&\"-\"&$M50&\"_new\",Ammortamento_Finanziario!$H:$L,5,FALSE),VLOOKUP($M50,TT_Tabelle_Riferimento!$D$127:$H$164,5,FALSE))","v":20},{"$f":"+IFERROR(VLOOKUP(NS$27&\"-\"&$M50&\"_new\",Ammortamento_Finanziario!$H:$L,5,FALSE),VLOOKUP($M50,TT_Tabelle_Riferimento!$D$127:$H$164,5,FALSE))","v":20},{"$f":"+IFERROR(VLOOKUP(NT$27&\"-\"&$M50&\"_new\",Ammortamento_Finanziario!$H:$L,5,FALSE),VLOOKUP($M50,TT_Tabelle_Riferimento!$D$127:$H$164,5,FALSE))","v":20},{"$f":"+IFERROR(VLOOKUP(NU$27&\"-\"&$M50&\"_new\",Ammortamento_Finanziario!$H:$L,5,FALSE),VLOOKUP($M50,TT_Tabelle_Riferimento!$D$127:$H$164,5,FALSE))","v":20},{"$f":"+IFERROR(VLOOKUP(NV$27&\"-\"&$M50&\"_new\",Ammortamento_Finanziario!$H:$L,5,FALSE),VLOOKUP($M50,TT_Tabelle_Riferimento!$D$127:$H$164,5,FALSE))","v":20},{"$f":"+IFERROR(VLOOKUP(NW$27&\"-\"&$M50&\"_new\",Ammortamento_Finanziario!$H:$L,5,FALSE),VLOOKUP($M50,TT_Tabelle_Riferimento!$D$127:$H$164,5,FALSE))","v":20},{"$f":"+IFERROR(VLOOKUP(NX$27&\"-\"&$M50&\"_new\",Ammortamento_Finanziario!$H:$L,5,FALSE),VLOOKUP($M50,TT_Tabelle_Riferimento!$D$127:$H$164,5,FALSE))","v":20},{"$f":"+IFERROR(VLOOKUP(NY$27&\"-\"&$M50&\"_new\",Ammortamento_Finanziario!$H:$L,5,FALSE),VLOOKUP($M50,TT_Tabelle_Riferimento!$D$127:$H$164,5,FALSE))","v":20},{"$f":"+IFERROR(VLOOKUP(NZ$27&\"-\"&$M50&\"_new\",Ammortamento_Finanziario!$H:$L,5,FALSE),VLOOKUP($M50,TT_Tabelle_Riferimento!$D$127:$H$164,5,FALSE))","v":20},{"$f":"+IFERROR(VLOOKUP(OA$27&\"-\"&$M50&\"_new\",Ammortamento_Finanziario!$H:$L,5,FALSE),VLOOKUP($M50,TT_Tabelle_Riferimento!$D$127:$H$164,5,FALSE))","v":20},{"$f":"+IFERROR(VLOOKUP(OB$27&\"-\"&$M50&\"_new\",Ammortamento_Finanziario!$H:$L,5,FALSE),VLOOKUP($M50,TT_Tabelle_Riferimento!$D$127:$H$164,5,FALSE))","v":20},{"$f":"+IFERROR(VLOOKUP(OC$27&\"-\"&$M50&\"_new\",Ammortamento_Finanziario!$H:$L,5,FALSE),VLOOKUP($M50,TT_Tabelle_Riferimento!$D$127:$H$164,5,FALSE))","v":20},{"$f":"+IFERROR(VLOOKUP(OD$27&\"-\"&$M50&\"_new\",Ammortamento_Finanziario!$H:$L,5,FALSE),VLOOKUP($M50,TT_Tabelle_Riferimento!$D$127:$H$164,5,FALSE))","v":20},{"$f":"+IFERROR(VLOOKUP(OE$27&\"-\"&$M50&\"_new\",Ammortamento_Finanziario!$H:$L,5,FALSE),VLOOKUP($M50,TT_Tabelle_Riferimento!$D$127:$H$164,5,FALSE))","v":20},{"$f":"+IFERROR(VLOOKUP(OF$27&\"-\"&$M50&\"_new\",Ammortamento_Finanziario!$H:$L,5,FALSE),VLOOKUP($M50,TT_Tabelle_Riferimento!$D$127:$H$164,5,FALSE))","v":20},{"$f":"+IFERROR(VLOOKUP(OG$27&\"-\"&$M50&\"_new\",Ammortamento_Finanziario!$H:$L,5,FALSE),VLOOKUP($M50,TT_Tabelle_Riferimento!$D$127:$H$164,5,FALSE))","v":20},{"$f":"+IFERROR(VLOOKUP(OH$27&\"-\"&$M50&\"_new\",Ammortamento_Finanziario!$H:$L,5,FALSE),VLOOKUP($M50,TT_Tabelle_Riferimento!$D$127:$H$164,5,FALSE))","v":20},{"$f":"+IFERROR(VLOOKUP(OI$27&\"-\"&$M50&\"_new\",Ammortamento_Finanziario!$H:$L,5,FALSE),VLOOKUP($M50,TT_Tabelle_Riferimento!$D$127:$H$164,5,FALSE))","v":20},{"$f":"+IFERROR(VLOOKUP(OJ$27&\"-\"&$M50&\"_new\",Ammortamento_Finanziario!$H:$L,5,FALSE),VLOOKUP($M50,TT_Tabelle_Riferimento!$D$127:$H$164,5,FALSE))","v":20},{"$f":"+IFERROR(VLOOKUP(OK$27&\"-\"&$M50&\"_new\",Ammortamento_Finanziario!$H:$L,5,FALSE),VLOOKUP($M50,TT_Tabelle_Riferimento!$D$127:$H$164,5,FALSE))","v":20},{"$f":"+IFERROR(VLOOKUP(OL$27&\"-\"&$M50&\"_new\",Ammortamento_Finanziario!$H:$L,5,FALSE),VLOOKUP($M50,TT_Tabelle_Riferimento!$D$127:$H$164,5,FALSE))","v":20},{"$f":"+IFERROR(VLOOKUP(OM$27&\"-\"&$M50&\"_new\",Ammortamento_Finanziario!$H:$L,5,FALSE),VLOOKUP($M50,TT_Tabelle_Riferimento!$D$127:$H$164,5,FALSE))","v":20},{"$f":"+IFERROR(VLOOKUP(ON$27&\"-\"&$M50&\"_new\",Ammortamento_Finanziario!$H:$L,5,FALSE),VLOOKUP($M50,TT_Tabelle_Riferimento!$D$127:$H$164,5,FALSE))","v":20},{"$f":"+IFERROR(VLOOKUP(OO$27&\"-\"&$M50&\"_new\",Ammortamento_Finanziario!$H:$L,5,FALSE),VLOOKUP($M50,TT_Tabelle_Riferimento!$D$127:$H$164,5,FALSE))","v":20},{"$f":"+IFERROR(VLOOKUP(OP$27&\"-\"&$M50&\"_new\",Ammortamento_Finanziario!$H:$L,5,FALSE),VLOOKUP($M50,TT_Tabelle_Riferimento!$D$127:$H$164,5,FALSE))","v":20},{"$f":"+IFERROR(VLOOKUP(OQ$27&\"-\"&$M50&\"_new\",Ammortamento_Finanziario!$H:$L,5,FALSE),VLOOKUP($M50,TT_Tabelle_Riferimento!$D$127:$H$164,5,FALSE))","v":20},{"$f":"+IFERROR(VLOOKUP(OR$27&\"-\"&$M50&\"_new\",Ammortamento_Finanziario!$H:$L,5,FALSE),VLOOKUP($M50,TT_Tabelle_Riferimento!$D$127:$H$164,5,FALSE))","v":20},{"$f":"+IFERROR(VLOOKUP(OS$27&\"-\"&$M50&\"_new\",Ammortamento_Finanziario!$H:$L,5,FALSE),VLOOKUP($M50,TT_Tabelle_Riferimento!$D$127:$H$164,5,FALSE))","v":20},{"$f":"+IFERROR(VLOOKUP(OT$27&\"-\"&$M50&\"_new\",Ammortamento_Finanziario!$H:$L,5,FALSE),VLOOKUP($M50,TT_Tabelle_Riferimento!$D$127:$H$164,5,FALSE))","v":20},{"$f":"+IFERROR(VLOOKUP(OU$27&\"-\"&$M50&\"_new\",Ammortamento_Finanziario!$H:$L,5,FALSE),VLOOKUP($M50,TT_Tabelle_Riferimento!$D$127:$H$164,5,FALSE))","v":20},{"$f":"+IFERROR(VLOOKUP(OV$27&\"-\"&$M50&\"_new\",Ammortamento_Finanziario!$H:$L,5,FALSE),VLOOKUP($M50,TT_Tabelle_Riferimento!$D$127:$H$164,5,FALSE))","v":20},{"$f":"+IFERROR(VLOOKUP(OW$27&\"-\"&$M50&\"_new\",Ammortamento_Finanziario!$H:$L,5,FALSE),VLOOKUP($M50,TT_Tabelle_Riferimento!$D$127:$H$164,5,FALSE))","v":20},{"$f":"+IFERROR(VLOOKUP(OX$27&\"-\"&$M50&\"_new\",Ammortamento_Finanziario!$H:$L,5,FALSE),VLOOKUP($M50,TT_Tabelle_Riferimento!$D$127:$H$164,5,FALSE))","v":20},{"$f":"+IFERROR(VLOOKUP(OY$27&\"-\"&$M50&\"_new\",Ammortamento_Finanziario!$H:$L,5,FALSE),VLOOKUP($M50,TT_Tabelle_Riferimento!$D$127:$H$164,5,FALSE))","v":20},{"$f":"+IFERROR(VLOOKUP(OZ$27&\"-\"&$M50&\"_new\",Ammortamento_Finanziario!$H:$L,5,FALSE),VLOOKUP($M50,TT_Tabelle_Riferimento!$D$127:$H$164,5,FALSE))","v":20},{"$f":"+IFERROR(VLOOKUP(PA$27&\"-\"&$M50&\"_new\",Ammortamento_Finanziario!$H:$L,5,FALSE),VLOOKUP($M50,TT_Tabelle_Riferimento!$D$127:$H$164,5,FALSE))","v":20},{"$f":"+IFERROR(VLOOKUP(PB$27&\"-\"&$M50&\"_new\",Ammortamento_Finanziario!$H:$L,5,FALSE),VLOOKUP($M50,TT_Tabelle_Riferimento!$D$127:$H$164,5,FALSE))","v":20},{"$f":"+IFERROR(VLOOKUP(PC$27&\"-\"&$M50&\"_new\",Ammortamento_Finanziario!$H:$L,5,FALSE),VLOOKUP($M50,TT_Tabelle_Riferimento!$D$127:$H$164,5,FALSE))","v":20},{"$f":"+IFERROR(VLOOKUP(PD$27&\"-\"&$M50&\"_new\",Ammortamento_Finanziario!$H:$L,5,FALSE),VLOOKUP($M50,TT_Tabelle_Riferimento!$D$127:$H$164,5,FALSE))","v":20},{"$f":"+IFERROR(VLOOKUP(PE$27&\"-\"&$M50&\"_new\",Ammortamento_Finanziario!$H:$L,5,FALSE),VLOOKUP($M50,TT_Tabelle_Riferimento!$D$127:$H$164,5,FALSE))","v":20},{"$f":"+IFERROR(VLOOKUP(PF$27&\"-\"&$M50&\"_new\",Ammortamento_Finanziario!$H:$L,5,FALSE),VLOOKUP($M50,TT_Tabelle_Riferimento!$D$127:$H$164,5,FALSE))","v":20},{"$f":"+IFERROR(VLOOKUP(PG$27&\"-\"&$M50&\"_new\",Ammortamento_Finanziario!$H:$L,5,FALSE),VLOOKUP($M50,TT_Tabelle_Riferimento!$D$127:$H$164,5,FALSE))","v":20},{"$f":"+IFERROR(VLOOKUP(PH$27&\"-\"&$M50&\"_new\",Ammortamento_Finanziario!$H:$L,5,FALSE),VLOOKUP($M50,TT_Tabelle_Riferimento!$D$127:$H$164,5,FALSE))","v":20},{"$f":"+IFERROR(VLOOKUP(PI$27&\"-\"&$M50&\"_new\",Ammortamento_Finanziario!$H:$L,5,FALSE),VLOOKUP($M50,TT_Tabelle_Riferimento!$D$127:$H$164,5,FALSE))","v":20},{"$f":"+IFERROR(VLOOKUP(PJ$27&\"-\"&$M50&\"_new\",Ammortamento_Finanziario!$H:$L,5,FALSE),VLOOKUP($M50,TT_Tabelle_Riferimento!$D$127:$H$164,5,FALSE))","v":20},{"$f":"+IFERROR(VLOOKUP(PK$27&\"-\"&$M50&\"_new\",Ammortamento_Finanziario!$H:$L,5,FALSE),VLOOKUP($M50,TT_Tabelle_Riferimento!$D$127:$H$164,5,FALSE))","v":20},{"$f":"+IFERROR(VLOOKUP(PL$27&\"-\"&$M50&\"_new\",Ammortamento_Finanziario!$H:$L,5,FALSE),VLOOKUP($M50,TT_Tabelle_Riferimento!$D$127:$H$164,5,FALSE))","v":20},{"$f":"+IFERROR(VLOOKUP(PM$27&\"-\"&$M50&\"_new\",Ammortamento_Finanziario!$H:$L,5,FALSE),VLOOKUP($M50,TT_Tabelle_Riferimento!$D$127:$H$164,5,FALSE))","v":20},{"$f":"+IFERROR(VLOOKUP(PN$27&\"-\"&$M50&\"_new\",Ammortamento_Finanziario!$H:$L,5,FALSE),VLOOKUP($M50,TT_Tabelle_Riferimento!$D$127:$H$164,5,FALSE))","v":20},{"$f":"+IFERROR(VLOOKUP(PO$27&\"-\"&$M50&\"_new\",Ammortamento_Finanziario!$H:$L,5,FALSE),VLOOKUP($M50,TT_Tabelle_Riferimento!$D$127:$H$164,5,FALSE))","v":20},{"$f":"+IFERROR(VLOOKUP(PP$27&\"-\"&$M50&\"_new\",Ammortamento_Finanziario!$H:$L,5,FALSE),VLOOKUP($M50,TT_Tabelle_Riferimento!$D$127:$H$164,5,FALSE))","v":20},{"$f":"+IFERROR(VLOOKUP(PQ$27&\"-\"&$M50&\"_new\",Ammortamento_Finanziario!$H:$L,5,FALSE),VLOOKUP($M50,TT_Tabelle_Riferimento!$D$127:$H$164,5,FALSE))","v":20},{"$f":"+IFERROR(VLOOKUP(PR$27&\"-\"&$M50&\"_new\",Ammortamento_Finanziario!$H:$L,5,FALSE),VLOOKUP($M50,TT_Tabelle_Riferimento!$D$127:$H$164,5,FALSE))","v":20},{"$f":"+IFERROR(VLOOKUP(PS$27&\"-\"&$M50&\"_new\",Ammortamento_Finanziario!$H:$L,5,FALSE),VLOOKUP($M50,TT_Tabelle_Riferimento!$D$127:$H$164,5,FALSE))","v":20},{"$f":"+IFERROR(VLOOKUP(PT$27&\"-\"&$M50&\"_new\",Ammortamento_Finanziario!$H:$L,5,FALSE),VLOOKUP($M50,TT_Tabelle_Riferimento!$D$127:$H$164,5,FALSE))","v":20},{"$f":"+IFERROR(VLOOKUP(PU$27&\"-\"&$M50&\"_new\",Ammortamento_Finanziario!$H:$L,5,FALSE),VLOOKUP($M50,TT_Tabelle_Riferimento!$D$127:$H$164,5,FALSE))","v":20},{"$f":"+IFERROR(VLOOKUP(PV$27&\"-\"&$M50&\"_new\",Ammortamento_Finanziario!$H:$L,5,FALSE),VLOOKUP($M50,TT_Tabelle_Riferimento!$D$127:$H$164,5,FALSE))","v":20},{"$f":"+IFERROR(VLOOKUP(PW$27&\"-\"&$M50&\"_new\",Ammortamento_Finanziario!$H:$L,5,FALSE),VLOOKUP($M50,TT_Tabelle_Riferimento!$D$127:$H$164,5,FALSE))","v":20},{"$f":"+IFERROR(VLOOKUP(PX$27&\"-\"&$M50&\"_new\",Ammortamento_Finanziario!$H:$L,5,FALSE),VLOOKUP($M50,TT_Tabelle_Riferimento!$D$127:$H$164,5,FALSE))","v":20},{"$f":"+IFERROR(VLOOKUP(PY$27&\"-\"&$M50&\"_new\",Ammortamento_Finanziario!$H:$L,5,FALSE),VLOOKUP($M50,TT_Tabelle_Riferimento!$D$127:$H$164,5,FALSE))","v":20},{"$f":"+IFERROR(VLOOKUP(PZ$27&\"-\"&$M50&\"_new\",Ammortamento_Finanziario!$H:$L,5,FALSE),VLOOKUP($M50,TT_Tabelle_Riferimento!$D$127:$H$164,5,FALSE))","v":20},{"$f":"+IFERROR(VLOOKUP(QA$27&\"-\"&$M50&\"_new\",Ammortamento_Finanziario!$H:$L,5,FALSE),VLOOKUP($M50,TT_Tabelle_Riferimento!$D$127:$H$164,5,FALSE))","v":20},{"$f":"+IFERROR(VLOOKUP(QB$27&\"-\"&$M50&\"_new\",Ammortamento_Finanziario!$H:$L,5,FALSE),VLOOKUP($M50,TT_Tabelle_Riferimento!$D$127:$H$164,5,FALSE))","v":20},{"$f":"+IFERROR(VLOOKUP(QC$27&\"-\"&$M50&\"_new\",Ammortamento_Finanziario!$H:$L,5,FALSE),VLOOKUP($M50,TT_Tabelle_Riferimento!$D$127:$H$164,5,FALSE))","v":20},{"$f":"+IFERROR(VLOOKUP(QD$27&\"-\"&$M50&\"_new\",Ammortamento_Finanziario!$H:$L,5,FALSE),VLOOKUP($M50,TT_Tabelle_Riferimento!$D$127:$H$164,5,FALSE))","v":20},{"$f":"+IFERROR(VLOOKUP(QE$27&\"-\"&$M50&\"_new\",Ammortamento_Finanziario!$H:$L,5,FALSE),VLOOKUP($M50,TT_Tabelle_Riferimento!$D$127:$H$164,5,FALSE))","v":20},{"$f":"+IFERROR(VLOOKUP(QF$27&\"-\"&$M50&\"_new\",Ammortamento_Finanziario!$H:$L,5,FALSE),VLOOKUP($M50,TT_Tabelle_Riferimento!$D$127:$H$164,5,FALSE))","v":20},{"$f":"+IFERROR(VLOOKUP(QG$27&\"-\"&$M50&\"_new\",Ammortamento_Finanziario!$H:$L,5,FALSE),VLOOKUP($M50,TT_Tabelle_Riferimento!$D$127:$H$164,5,FALSE))","v":20},{"$f":"+IFERROR(VLOOKUP(QH$27&\"-\"&$M50&\"_new\",Ammortamento_Finanziario!$H:$L,5,FALSE),VLOOKUP($M50,TT_Tabelle_Riferimento!$D$127:$H$164,5,FALSE))","v":20},{"$f":"+IFERROR(VLOOKUP(QI$27&\"-\"&$M50&\"_new\",Ammortamento_Finanziario!$H:$L,5,FALSE),VLOOKUP($M50,TT_Tabelle_Riferimento!$D$127:$H$164,5,FALSE))","v":20},{"$f":"+IFERROR(VLOOKUP(QJ$27&\"-\"&$M50&\"_new\",Ammortamento_Finanziario!$H:$L,5,FALSE),VLOOKUP($M50,TT_Tabelle_Riferimento!$D$127:$H$164,5,FALSE))","v":20},{"$f":"+IFERROR(VLOOKUP(QK$27&\"-\"&$M50&\"_new\",Ammortamento_Finanziario!$H:$L,5,FALSE),VLOOKUP($M50,TT_Tabelle_Riferimento!$D$127:$H$164,5,FALSE))","v":20},{"$f":"+IFERROR(VLOOKUP(QL$27&\"-\"&$M50&\"_new\",Ammortamento_Finanziario!$H:$L,5,FALSE),VLOOKUP($M50,TT_Tabelle_Riferimento!$D$127:$H$164,5,FALSE))","v":20},{"$f":"+IFERROR(VLOOKUP(QM$27&\"-\"&$M50&\"_new\",Ammortamento_Finanziario!$H:$L,5,FALSE),VLOOKUP($M50,TT_Tabelle_Riferimento!$D$127:$H$164,5,FALSE))","v":20},{"$f":"+IFERROR(VLOOKUP(QN$27&\"-\"&$M50&\"_new\",Ammortamento_Finanziario!$H:$L,5,FALSE),VLOOKUP($M50,TT_Tabelle_Riferimento!$D$127:$H$164,5,FALSE))","v":20},{"$f":"+IFERROR(VLOOKUP(QO$27&\"-\"&$M50&\"_new\",Ammortamento_Finanziario!$H:$L,5,FALSE),VLOOKUP($M50,TT_Tabelle_Riferimento!$D$127:$H$164,5,FALSE))","v":20},{"$f":"+IFERROR(VLOOKUP(QP$27&\"-\"&$M50&\"_new\",Ammortamento_Finanziario!$H:$L,5,FALSE),VLOOKUP($M50,TT_Tabelle_Riferimento!$D$127:$H$164,5,FALSE))","v":20},{"$f":"+IFERROR(VLOOKUP(QQ$27&\"-\"&$M50&\"_new\",Ammortamento_Finanziario!$H:$L,5,FALSE),VLOOKUP($M50,TT_Tabelle_Riferimento!$D$127:$H$164,5,FALSE))","v":20},{"$f":"+IFERROR(VLOOKUP(QR$27&\"-\"&$M50&\"_new\",Ammortamento_Finanziario!$H:$L,5,FALSE),VLOOKUP($M50,TT_Tabelle_Riferimento!$D$127:$H$164,5,FALSE))","v":20},{"$f":"+IFERROR(VLOOKUP(QS$27&\"-\"&$M50&\"_new\",Ammortamento_Finanziario!$H:$L,5,FALSE),VLOOKUP($M50,TT_Tabelle_Riferimento!$D$127:$H$164,5,FALSE))","v":20},{"$f":"+IFERROR(VLOOKUP(QT$27&\"-\"&$M50&\"_new\",Ammortamento_Finanziario!$H:$L,5,FALSE),VLOOKUP($M50,TT_Tabelle_Riferimento!$D$127:$H$164,5,FALSE))","v":20},{"$f":"+IFERROR(VLOOKUP(QU$27&\"-\"&$M50&\"_new\",Ammortamento_Finanziario!$H:$L,5,FALSE),VLOOKUP($M50,TT_Tabelle_Riferimento!$D$127:$H$164,5,FALSE))","v":20},{"$f":"+IFERROR(VLOOKUP(QV$27&\"-\"&$M50&\"_new\",Ammortamento_Finanziario!$H:$L,5,FALSE),VLOOKUP($M50,TT_Tabelle_Riferimento!$D$127:$H$164,5,FALSE))","v":20},{"$f":"+IFERROR(VLOOKUP(QW$27&\"-\"&$M50&\"_new\",Ammortamento_Finanziario!$H:$L,5,FALSE),VLOOKUP($M50,TT_Tabelle_Riferimento!$D$127:$H$164,5,FALSE))","v":20},{"$f":"+IFERROR(VLOOKUP(QX$27&\"-\"&$M50&\"_new\",Ammortamento_Finanziario!$H:$L,5,FALSE),VLOOKUP($M50,TT_Tabelle_Riferimento!$D$127:$H$164,5,FALSE))","v":20},{"$f":"+IFERROR(VLOOKUP(QY$27&\"-\"&$M50&\"_new\",Ammortamento_Finanziario!$H:$L,5,FALSE),VLOOKUP($M50,TT_Tabelle_Riferimento!$D$127:$H$164,5,FALSE))","v":20},{"$f":"+IFERROR(VLOOKUP(QZ$27&\"-\"&$M50&\"_new\",Ammortamento_Finanziario!$H:$L,5,FALSE),VLOOKUP($M50,TT_Tabelle_Riferimento!$D$127:$H$164,5,FALSE))","v":20},{"$f":"+IFERROR(VLOOKUP(RA$27&\"-\"&$M50&\"_new\",Ammortamento_Finanziario!$H:$L,5,FALSE),VLOOKUP($M50,TT_Tabelle_Riferimento!$D$127:$H$164,5,FALSE))","v":20},{"$f":"+IFERROR(VLOOKUP(RB$27&\"-\"&$M50&\"_new\",Ammortamento_Finanziario!$H:$L,5,FALSE),VLOOKUP($M50,TT_Tabelle_Riferimento!$D$127:$H$164,5,FALSE))","v":20},{"$f":"+IFERROR(VLOOKUP(RC$27&\"-\"&$M50&\"_new\",Ammortamento_Finanziario!$H:$L,5,FALSE),VLOOKUP($M50,TT_Tabelle_Riferimento!$D$127:$H$164,5,FALSE))","v":20},{"$f":"+IFERROR(VLOOKUP(RD$27&\"-\"&$M50&\"_new\",Ammortamento_Finanziario!$H:$L,5,FALSE),VLOOKUP($M50,TT_Tabelle_Riferimento!$D$127:$H$164,5,FALSE))","v":20},{"$f":"+IFERROR(VLOOKUP(RE$27&\"-\"&$M50&\"_new\",Ammortamento_Finanziario!$H:$L,5,FALSE),VLOOKUP($M50,TT_Tabelle_Riferimento!$D$127:$H$164,5,FALSE))","v":20},{"$f":"+IFERROR(VLOOKUP(RF$27&\"-\"&$M50&\"_new\",Ammortamento_Finanziario!$H:$L,5,FALSE),VLOOKUP($M50,TT_Tabelle_Riferimento!$D$127:$H$164,5,FALSE))","v":20},{"$f":"+IFERROR(VLOOKUP(RG$27&\"-\"&$M50&\"_new\",Ammortamento_Finanziario!$H:$L,5,FALSE),VLOOKUP($M50,TT_Tabelle_Riferimento!$D$127:$H$164,5,FALSE))","v":20},{"$f":"+IFERROR(VLOOKUP(RH$27&\"-\"&$M50&\"_new\",Ammortamento_Finanziario!$H:$L,5,FALSE),VLOOKUP($M50,TT_Tabelle_Riferimento!$D$127:$H$164,5,FALSE))","v":20},{"$f":"+IFERROR(VLOOKUP(RI$27&\"-\"&$M50&\"_new\",Ammortamento_Finanziario!$H:$L,5,FALSE),VLOOKUP($M50,TT_Tabelle_Riferimento!$D$127:$H$164,5,FALSE))","v":20},{"$f":"+IFERROR(VLOOKUP(RJ$27&\"-\"&$M50&\"_new\",Ammortamento_Finanziario!$H:$L,5,FALSE),VLOOKUP($M50,TT_Tabelle_Riferimento!$D$127:$H$164,5,FALSE))","v":20},{"$f":"+IFERROR(VLOOKUP(RK$27&\"-\"&$M50&\"_new\",Ammortamento_Finanziario!$H:$L,5,FALSE),VLOOKUP($M50,TT_Tabelle_Riferimento!$D$127:$H$164,5,FALSE))","v":20},{"$f":"+IFERROR(VLOOKUP(RL$27&\"-\"&$M50&\"_new\",Ammortamento_Finanziario!$H:$L,5,FALSE),VLOOKUP($M50,TT_Tabelle_Riferimento!$D$127:$H$164,5,FALSE))","v":20},{"$f":"+IFERROR(VLOOKUP(RM$27&\"-\"&$M50&\"_new\",Ammortamento_Finanziario!$H:$L,5,FALSE),VLOOKUP($M50,TT_Tabelle_Riferimento!$D$127:$H$164,5,FALSE))","v":20},{"$f":"+IFERROR(VLOOKUP(RN$27&\"-\"&$M50&\"_new\",Ammortamento_Finanziario!$H:$L,5,FALSE),VLOOKUP($M50,TT_Tabelle_Riferimento!$D$127:$H$164,5,FALSE))","v":20},{"$f":"+IFERROR(VLOOKUP(RO$27&\"-\"&$M50&\"_new\",Ammortamento_Finanziario!$H:$L,5,FALSE),VLOOKUP($M50,TT_Tabelle_Riferimento!$D$127:$H$164,5,FALSE))","v":20},{"$f":"+IFERROR(VLOOKUP(RP$27&\"-\"&$M50&\"_new\",Ammortamento_Finanziario!$H:$L,5,FALSE),VLOOKUP($M50,TT_Tabelle_Riferimento!$D$127:$H$164,5,FALSE))","v":20},{"$f":"+IFERROR(VLOOKUP(RQ$27&\"-\"&$M50&\"_new\",Ammortamento_Finanziario!$H:$L,5,FALSE),VLOOKUP($M50,TT_Tabelle_Riferimento!$D$127:$H$164,5,FALSE))","v":20},{"$f":"+IFERROR(VLOOKUP(RR$27&\"-\"&$M50&\"_new\",Ammortamento_Finanziario!$H:$L,5,FALSE),VLOOKUP($M50,TT_Tabelle_Riferimento!$D$127:$H$164,5,FALSE))","v":20},{"$f":"+IFERROR(VLOOKUP(RS$27&\"-\"&$M50&\"_new\",Ammortamento_Finanziario!$H:$L,5,FALSE),VLOOKUP($M50,TT_Tabelle_Riferimento!$D$127:$H$164,5,FALSE))","v":20},{"$f":"+IFERROR(VLOOKUP(RT$27&\"-\"&$M50&\"_new\",Ammortamento_Finanziario!$H:$L,5,FALSE),VLOOKUP($M50,TT_Tabelle_Riferimento!$D$127:$H$164,5,FALSE))","v":20},{"$f":"+IFERROR(VLOOKUP(RU$27&\"-\"&$M50&\"_new\",Ammortamento_Finanziario!$H:$L,5,FALSE),VLOOKUP($M50,TT_Tabelle_Riferimento!$D$127:$H$164,5,FALSE))","v":20},{"$f":"+IFERROR(VLOOKUP(RV$27&\"-\"&$M50&\"_new\",Ammortamento_Finanziario!$H:$L,5,FALSE),VLOOKUP($M50,TT_Tabelle_Riferimento!$D$127:$H$164,5,FALSE))","v":20}]
[null,null,null,null,null,null,null,null,null,null,null,null,24,0,0,0,0,0,0,0,0,0,0,0,0,0,0,0,0,0,0,0,0,0,0,0,0,0,0,0,0,0,0,0,0,0,0,0,0,0,0,0,0,0,0,0,0,0,0,0,0,0,0,0,0,0,0,0,0,0,0,0,0,0,0,0,0,0,0,0,0,0,0,0,0,0,0,0,0,0,0,0,0,0,0,0,0,0,0,0,0,0,0,0,0,0,0,0,0,0,0,0,0,0,0,0,0,0,0,0,0,0,0,0,0,0,0,0,0,0,0,0,0,0,0,0,0,0,0,0,0,0,0,0,0,0,0,0,0,0,0,0,0,0,0,0,0,0,0,0,0,0,0,0,0,0,0,0,0,0,0,0,0,0,0,0,0,0,0,0,0,0,0,0,0,0,0,0,0,0,0,0,0,0,0,0,0,0,0,0,0,0,0,0,0,0,0,0,0,0,0,0,0,0,0,0,0,0,0,0,0,0,0,0,0,0,0,0,0,0,0,0,0,0,0,0,0,0,0,0,0,0,0,0,0,0,0,0,0,0,0,0,0,0,0,0,0,0,0,0,0,0,0,0,0,0,0,0,0,0,0,0,0,0,0,0,0,0,0,0,0,0,0,0,0,0,0,0,0,0,0,0,0,0,0,0,0,0,0,0,0,0,{"$f":"+IFERROR(VLOOKUP(KQ$27&\"-\"&$M51&\"_new\",Ammortamento_Finanziario!$H:$L,5,FALSE),VLOOKUP($M51,TT_Tabelle_Riferimento!$D$127:$H$164,5,FALSE))","v":20},{"$f":"+IFERROR(VLOOKUP(KR$27&\"-\"&$M51&\"_new\",Ammortamento_Finanziario!$H:$L,5,FALSE),VLOOKUP($M51,TT_Tabelle_Riferimento!$D$127:$H$164,5,FALSE))","v":20},{"$f":"+IFERROR(VLOOKUP(KS$27&\"-\"&$M51&\"_new\",Ammortamento_Finanziario!$H:$L,5,FALSE),VLOOKUP($M51,TT_Tabelle_Riferimento!$D$127:$H$164,5,FALSE))","v":20},{"$f":"+IFERROR(VLOOKUP(KT$27&\"-\"&$M51&\"_new\",Ammortamento_Finanziario!$H:$L,5,FALSE),VLOOKUP($M51,TT_Tabelle_Riferimento!$D$127:$H$164,5,FALSE))","v":20},{"$f":"+IFERROR(VLOOKUP(KU$27&\"-\"&$M51&\"_new\",Ammortamento_Finanziario!$H:$L,5,FALSE),VLOOKUP($M51,TT_Tabelle_Riferimento!$D$127:$H$164,5,FALSE))","v":20},{"$f":"+IFERROR(VLOOKUP(KV$27&\"-\"&$M51&\"_new\",Ammortamento_Finanziario!$H:$L,5,FALSE),VLOOKUP($M51,TT_Tabelle_Riferimento!$D$127:$H$164,5,FALSE))","v":20},{"$f":"+IFERROR(VLOOKUP(KW$27&\"-\"&$M51&\"_new\",Ammortamento_Finanziario!$H:$L,5,FALSE),VLOOKUP($M51,TT_Tabelle_Riferimento!$D$127:$H$164,5,FALSE))","v":20},{"$f":"+IFERROR(VLOOKUP(KX$27&\"-\"&$M51&\"_new\",Ammortamento_Finanziario!$H:$L,5,FALSE),VLOOKUP($M51,TT_Tabelle_Riferimento!$D$127:$H$164,5,FALSE))","v":20},{"$f":"+IFERROR(VLOOKUP(KY$27&\"-\"&$M51&\"_new\",Ammortamento_Finanziario!$H:$L,5,FALSE),VLOOKUP($M51,TT_Tabelle_Riferimento!$D$127:$H$164,5,FALSE))","v":20},{"$f":"+IFERROR(VLOOKUP(KZ$27&\"-\"&$M51&\"_new\",Ammortamento_Finanziario!$H:$L,5,FALSE),VLOOKUP($M51,TT_Tabelle_Riferimento!$D$127:$H$164,5,FALSE))","v":20},{"$f":"+IFERROR(VLOOKUP(LA$27&\"-\"&$M51&\"_new\",Ammortamento_Finanziario!$H:$L,5,FALSE),VLOOKUP($M51,TT_Tabelle_Riferimento!$D$127:$H$164,5,FALSE))","v":20},{"$f":"+IFERROR(VLOOKUP(LB$27&\"-\"&$M51&\"_new\",Ammortamento_Finanziario!$H:$L,5,FALSE),VLOOKUP($M51,TT_Tabelle_Riferimento!$D$127:$H$164,5,FALSE))","v":20},{"$f":"+IFERROR(VLOOKUP(LC$27&\"-\"&$M51&\"_new\",Ammortamento_Finanziario!$H:$L,5,FALSE),VLOOKUP($M51,TT_Tabelle_Riferimento!$D$127:$H$164,5,FALSE))","v":20},{"$f":"+IFERROR(VLOOKUP(LD$27&\"-\"&$M51&\"_new\",Ammortamento_Finanziario!$H:$L,5,FALSE),VLOOKUP($M51,TT_Tabelle_Riferimento!$D$127:$H$164,5,FALSE))","v":20},{"$f":"+IFERROR(VLOOKUP(LE$27&\"-\"&$M51&\"_new\",Ammortamento_Finanziario!$H:$L,5,FALSE),VLOOKUP($M51,TT_Tabelle_Riferimento!$D$127:$H$164,5,FALSE))","v":20},{"$f":"+IFERROR(VLOOKUP(LF$27&\"-\"&$M51&\"_new\",Ammortamento_Finanziario!$H:$L,5,FALSE),VLOOKUP($M51,TT_Tabelle_Riferimento!$D$127:$H$164,5,FALSE))","v":20},{"$f":"+IFERROR(VLOOKUP(LG$27&\"-\"&$M51&\"_new\",Ammortamento_Finanziario!$H:$L,5,FALSE),VLOOKUP($M51,TT_Tabelle_Riferimento!$D$127:$H$164,5,FALSE))","v":20},{"$f":"+IFERROR(VLOOKUP(LH$27&\"-\"&$M51&\"_new\",Ammortamento_Finanziario!$H:$L,5,FALSE),VLOOKUP($M51,TT_Tabelle_Riferimento!$D$127:$H$164,5,FALSE))","v":20},{"$f":"+IFERROR(VLOOKUP(LI$27&\"-\"&$M51&\"_new\",Ammortamento_Finanziario!$H:$L,5,FALSE),VLOOKUP($M51,TT_Tabelle_Riferimento!$D$127:$H$164,5,FALSE))","v":20},{"$f":"+IFERROR(VLOOKUP(LJ$27&\"-\"&$M51&\"_new\",Ammortamento_Finanziario!$H:$L,5,FALSE),VLOOKUP($M51,TT_Tabelle_Riferimento!$D$127:$H$164,5,FALSE))","v":20},{"$f":"+IFERROR(VLOOKUP(LK$27&\"-\"&$M51&\"_new\",Ammortamento_Finanziario!$H:$L,5,FALSE),VLOOKUP($M51,TT_Tabelle_Riferimento!$D$127:$H$164,5,FALSE))","v":20},{"$f":"+IFERROR(VLOOKUP(LL$27&\"-\"&$M51&\"_new\",Ammortamento_Finanziario!$H:$L,5,FALSE),VLOOKUP($M51,TT_Tabelle_Riferimento!$D$127:$H$164,5,FALSE))","v":20},{"$f":"+IFERROR(VLOOKUP(LM$27&\"-\"&$M51&\"_new\",Ammortamento_Finanziario!$H:$L,5,FALSE),VLOOKUP($M51,TT_Tabelle_Riferimento!$D$127:$H$164,5,FALSE))","v":20},{"$f":"+IFERROR(VLOOKUP(LN$27&\"-\"&$M51&\"_new\",Ammortamento_Finanziario!$H:$L,5,FALSE),VLOOKUP($M51,TT_Tabelle_Riferimento!$D$127:$H$164,5,FALSE))","v":20},{"$f":"+IFERROR(VLOOKUP(LO$27&\"-\"&$M51&\"_new\",Ammortamento_Finanziario!$H:$L,5,FALSE),VLOOKUP($M51,TT_Tabelle_Riferimento!$D$127:$H$164,5,FALSE))","v":20},{"$f":"+IFERROR(VLOOKUP(LP$27&\"-\"&$M51&\"_new\",Ammortamento_Finanziario!$H:$L,5,FALSE),VLOOKUP($M51,TT_Tabelle_Riferimento!$D$127:$H$164,5,FALSE))","v":20},{"$f":"+IFERROR(VLOOKUP(LQ$27&\"-\"&$M51&\"_new\",Ammortamento_Finanziario!$H:$L,5,FALSE),VLOOKUP($M51,TT_Tabelle_Riferimento!$D$127:$H$164,5,FALSE))","v":20},{"$f":"+IFERROR(VLOOKUP(LR$27&\"-\"&$M51&\"_new\",Ammortamento_Finanziario!$H:$L,5,FALSE),VLOOKUP($M51,TT_Tabelle_Riferimento!$D$127:$H$164,5,FALSE))","v":20},{"$f":"+IFERROR(VLOOKUP(LS$27&\"-\"&$M51&\"_new\",Ammortamento_Finanziario!$H:$L,5,FALSE),VLOOKUP($M51,TT_Tabelle_Riferimento!$D$127:$H$164,5,FALSE))","v":20},{"$f":"+IFERROR(VLOOKUP(LT$27&\"-\"&$M51&\"_new\",Ammortamento_Finanziario!$H:$L,5,FALSE),VLOOKUP($M51,TT_Tabelle_Riferimento!$D$127:$H$164,5,FALSE))","v":20},{"$f":"+IFERROR(VLOOKUP(LU$27&\"-\"&$M51&\"_new\",Ammortamento_Finanziario!$H:$L,5,FALSE),VLOOKUP($M51,TT_Tabelle_Riferimento!$D$127:$H$164,5,FALSE))","v":20},{"$f":"+IFERROR(VLOOKUP(LV$27&\"-\"&$M51&\"_new\",Ammortamento_Finanziario!$H:$L,5,FALSE),VLOOKUP($M51,TT_Tabelle_Riferimento!$D$127:$H$164,5,FALSE))","v":20},{"$f":"+IFERROR(VLOOKUP(LW$27&\"-\"&$M51&\"_new\",Ammortamento_Finanziario!$H:$L,5,FALSE),VLOOKUP($M51,TT_Tabelle_Riferimento!$D$127:$H$164,5,FALSE))","v":20},{"$f":"+IFERROR(VLOOKUP(LX$27&\"-\"&$M51&\"_new\",Ammortamento_Finanziario!$H:$L,5,FALSE),VLOOKUP($M51,TT_Tabelle_Riferimento!$D$127:$H$164,5,FALSE))","v":20},{"$f":"+IFERROR(VLOOKUP(LY$27&\"-\"&$M51&\"_new\",Ammortamento_Finanziario!$H:$L,5,FALSE),VLOOKUP($M51,TT_Tabelle_Riferimento!$D$127:$H$164,5,FALSE))","v":20},{"$f":"+IFERROR(VLOOKUP(LZ$27&\"-\"&$M51&\"_new\",Ammortamento_Finanziario!$H:$L,5,FALSE),VLOOKUP($M51,TT_Tabelle_Riferimento!$D$127:$H$164,5,FALSE))","v":20},{"$f":"+IFERROR(VLOOKUP(MA$27&\"-\"&$M51&\"_new\",Ammortamento_Finanziario!$H:$L,5,FALSE),VLOOKUP($M51,TT_Tabelle_Riferimento!$D$127:$H$164,5,FALSE))","v":20},{"$f":"+IFERROR(VLOOKUP(MB$27&\"-\"&$M51&\"_new\",Ammortamento_Finanziario!$H:$L,5,FALSE),VLOOKUP($M51,TT_Tabelle_Riferimento!$D$127:$H$164,5,FALSE))","v":20},{"$f":"+IFERROR(VLOOKUP(MC$27&\"-\"&$M51&\"_new\",Ammortamento_Finanziario!$H:$L,5,FALSE),VLOOKUP($M51,TT_Tabelle_Riferimento!$D$127:$H$164,5,FALSE))","v":20},{"$f":"+IFERROR(VLOOKUP(MD$27&\"-\"&$M51&\"_new\",Ammortamento_Finanziario!$H:$L,5,FALSE),VLOOKUP($M51,TT_Tabelle_Riferimento!$D$127:$H$164,5,FALSE))","v":20},{"$f":"+IFERROR(VLOOKUP(ME$27&\"-\"&$M51&\"_new\",Ammortamento_Finanziario!$H:$L,5,FALSE),VLOOKUP($M51,TT_Tabelle_Riferimento!$D$127:$H$164,5,FALSE))","v":20},{"$f":"+IFERROR(VLOOKUP(MF$27&\"-\"&$M51&\"_new\",Ammortamento_Finanziario!$H:$L,5,FALSE),VLOOKUP($M51,TT_Tabelle_Riferimento!$D$127:$H$164,5,FALSE))","v":20},{"$f":"+IFERROR(VLOOKUP(MG$27&\"-\"&$M51&\"_new\",Ammortamento_Finanziario!$H:$L,5,FALSE),VLOOKUP($M51,TT_Tabelle_Riferimento!$D$127:$H$164,5,FALSE))","v":20},{"$f":"+IFERROR(VLOOKUP(MH$27&\"-\"&$M51&\"_new\",Ammortamento_Finanziario!$H:$L,5,FALSE),VLOOKUP($M51,TT_Tabelle_Riferimento!$D$127:$H$164,5,FALSE))","v":20},{"$f":"+IFERROR(VLOOKUP(MI$27&\"-\"&$M51&\"_new\",Ammortamento_Finanziario!$H:$L,5,FALSE),VLOOKUP($M51,TT_Tabelle_Riferimento!$D$127:$H$164,5,FALSE))","v":20},{"$f":"+IFERROR(VLOOKUP(MJ$27&\"-\"&$M51&\"_new\",Ammortamento_Finanziario!$H:$L,5,FALSE),VLOOKUP($M51,TT_Tabelle_Riferimento!$D$127:$H$164,5,FALSE))","v":20},{"$f":"+IFERROR(VLOOKUP(MK$27&\"-\"&$M51&\"_new\",Ammortamento_Finanziario!$H:$L,5,FALSE),VLOOKUP($M51,TT_Tabelle_Riferimento!$D$127:$H$164,5,FALSE))","v":20},{"$f":"+IFERROR(VLOOKUP(ML$27&\"-\"&$M51&\"_new\",Ammortamento_Finanziario!$H:$L,5,FALSE),VLOOKUP($M51,TT_Tabelle_Riferimento!$D$127:$H$164,5,FALSE))","v":20},{"$f":"+IFERROR(VLOOKUP(MM$27&\"-\"&$M51&\"_new\",Ammortamento_Finanziario!$H:$L,5,FALSE),VLOOKUP($M51,TT_Tabelle_Riferimento!$D$127:$H$164,5,FALSE))","v":20},{"$f":"+IFERROR(VLOOKUP(MN$27&\"-\"&$M51&\"_new\",Ammortamento_Finanziario!$H:$L,5,FALSE),VLOOKUP($M51,TT_Tabelle_Riferimento!$D$127:$H$164,5,FALSE))","v":20},{"$f":"+IFERROR(VLOOKUP(MO$27&\"-\"&$M51&\"_new\",Ammortamento_Finanziario!$H:$L,5,FALSE),VLOOKUP($M51,TT_Tabelle_Riferimento!$D$127:$H$164,5,FALSE))","v":20},{"$f":"+IFERROR(VLOOKUP(MP$27&\"-\"&$M51&\"_new\",Ammortamento_Finanziario!$H:$L,5,FALSE),VLOOKUP($M51,TT_Tabelle_Riferimento!$D$127:$H$164,5,FALSE))","v":20},{"$f":"+IFERROR(VLOOKUP(MQ$27&\"-\"&$M51&\"_new\",Ammortamento_Finanziario!$H:$L,5,FALSE),VLOOKUP($M51,TT_Tabelle_Riferimento!$D$127:$H$164,5,FALSE))","v":20},{"$f":"+IFERROR(VLOOKUP(MR$27&\"-\"&$M51&\"_new\",Ammortamento_Finanziario!$H:$L,5,FALSE),VLOOKUP($M51,TT_Tabelle_Riferimento!$D$127:$H$164,5,FALSE))","v":20},{"$f":"+IFERROR(VLOOKUP(MS$27&\"-\"&$M51&\"_new\",Ammortamento_Finanziario!$H:$L,5,FALSE),VLOOKUP($M51,TT_Tabelle_Riferimento!$D$127:$H$164,5,FALSE))","v":20},{"$f":"+IFERROR(VLOOKUP(MT$27&\"-\"&$M51&\"_new\",Ammortamento_Finanziario!$H:$L,5,FALSE),VLOOKUP($M51,TT_Tabelle_Riferimento!$D$127:$H$164,5,FALSE))","v":20},{"$f":"+IFERROR(VLOOKUP(MU$27&\"-\"&$M51&\"_new\",Ammortamento_Finanziario!$H:$L,5,FALSE),VLOOKUP($M51,TT_Tabelle_Riferimento!$D$127:$H$164,5,FALSE))","v":20},{"$f":"+IFERROR(VLOOKUP(MV$27&\"-\"&$M51&\"_new\",Ammortamento_Finanziario!$H:$L,5,FALSE),VLOOKUP($M51,TT_Tabelle_Riferimento!$D$127:$H$164,5,FALSE))","v":20},{"$f":"+IFERROR(VLOOKUP(MW$27&\"-\"&$M51&\"_new\",Ammortamento_Finanziario!$H:$L,5,FALSE),VLOOKUP($M51,TT_Tabelle_Riferimento!$D$127:$H$164,5,FALSE))","v":20},{"$f":"+IFERROR(VLOOKUP(MX$27&\"-\"&$M51&\"_new\",Ammortamento_Finanziario!$H:$L,5,FALSE),VLOOKUP($M51,TT_Tabelle_Riferimento!$D$127:$H$164,5,FALSE))","v":20},{"$f":"+IFERROR(VLOOKUP(MY$27&\"-\"&$M51&\"_new\",Ammortamento_Finanziario!$H:$L,5,FALSE),VLOOKUP($M51,TT_Tabelle_Riferimento!$D$127:$H$164,5,FALSE))","v":20},{"$f":"+IFERROR(VLOOKUP(MZ$27&\"-\"&$M51&\"_new\",Ammortamento_Finanziario!$H:$L,5,FALSE),VLOOKUP($M51,TT_Tabelle_Riferimento!$D$127:$H$164,5,FALSE))","v":20},{"$f":"+IFERROR(VLOOKUP(NA$27&\"-\"&$M51&\"_new\",Ammortamento_Finanziario!$H:$L,5,FALSE),VLOOKUP($M51,TT_Tabelle_Riferimento!$D$127:$H$164,5,FALSE))","v":20},{"$f":"+IFERROR(VLOOKUP(NB$27&\"-\"&$M51&\"_new\",Ammortamento_Finanziario!$H:$L,5,FALSE),VLOOKUP($M51,TT_Tabelle_Riferimento!$D$127:$H$164,5,FALSE))","v":20},{"$f":"+IFERROR(VLOOKUP(NC$27&\"-\"&$M51&\"_new\",Ammortamento_Finanziario!$H:$L,5,FALSE),VLOOKUP($M51,TT_Tabelle_Riferimento!$D$127:$H$164,5,FALSE))","v":20},{"$f":"+IFERROR(VLOOKUP(ND$27&\"-\"&$M51&\"_new\",Ammortamento_Finanziario!$H:$L,5,FALSE),VLOOKUP($M51,TT_Tabelle_Riferimento!$D$127:$H$164,5,FALSE))","v":20},{"$f":"+IFERROR(VLOOKUP(NE$27&\"-\"&$M51&\"_new\",Ammortamento_Finanziario!$H:$L,5,FALSE),VLOOKUP($M51,TT_Tabelle_Riferimento!$D$127:$H$164,5,FALSE))","v":20},{"$f":"+IFERROR(VLOOKUP(NF$27&\"-\"&$M51&\"_new\",Ammortamento_Finanziario!$H:$L,5,FALSE),VLOOKUP($M51,TT_Tabelle_Riferimento!$D$127:$H$164,5,FALSE))","v":20},{"$f":"+IFERROR(VLOOKUP(NG$27&\"-\"&$M51&\"_new\",Ammortamento_Finanziario!$H:$L,5,FALSE),VLOOKUP($M51,TT_Tabelle_Riferimento!$D$127:$H$164,5,FALSE))","v":20},{"$f":"+IFERROR(VLOOKUP(NH$27&\"-\"&$M51&\"_new\",Ammortamento_Finanziario!$H:$L,5,FALSE),VLOOKUP($M51,TT_Tabelle_Riferimento!$D$127:$H$164,5,FALSE))","v":20},{"$f":"+IFERROR(VLOOKUP(NI$27&\"-\"&$M51&\"_new\",Ammortamento_Finanziario!$H:$L,5,FALSE),VLOOKUP($M51,TT_Tabelle_Riferimento!$D$127:$H$164,5,FALSE))","v":20},{"$f":"+IFERROR(VLOOKUP(NJ$27&\"-\"&$M51&\"_new\",Ammortamento_Finanziario!$H:$L,5,FALSE),VLOOKUP($M51,TT_Tabelle_Riferimento!$D$127:$H$164,5,FALSE))","v":20},{"$f":"+IFERROR(VLOOKUP(NK$27&\"-\"&$M51&\"_new\",Ammortamento_Finanziario!$H:$L,5,FALSE),VLOOKUP($M51,TT_Tabelle_Riferimento!$D$127:$H$164,5,FALSE))","v":20},{"$f":"+IFERROR(VLOOKUP(NL$27&\"-\"&$M51&\"_new\",Ammortamento_Finanziario!$H:$L,5,FALSE),VLOOKUP($M51,TT_Tabelle_Riferimento!$D$127:$H$164,5,FALSE))","v":20},{"$f":"+IFERROR(VLOOKUP(NM$27&\"-\"&$M51&\"_new\",Ammortamento_Finanziario!$H:$L,5,FALSE),VLOOKUP($M51,TT_Tabelle_Riferimento!$D$127:$H$164,5,FALSE))","v":20},{"$f":"+IFERROR(VLOOKUP(NN$27&\"-\"&$M51&\"_new\",Ammortamento_Finanziario!$H:$L,5,FALSE),VLOOKUP($M51,TT_Tabelle_Riferimento!$D$127:$H$164,5,FALSE))","v":20},{"$f":"+IFERROR(VLOOKUP(NO$27&\"-\"&$M51&\"_new\",Ammortamento_Finanziario!$H:$L,5,FALSE),VLOOKUP($M51,TT_Tabelle_Riferimento!$D$127:$H$164,5,FALSE))","v":20},{"$f":"+IFERROR(VLOOKUP(NP$27&\"-\"&$M51&\"_new\",Ammortamento_Finanziario!$H:$L,5,FALSE),VLOOKUP($M51,TT_Tabelle_Riferimento!$D$127:$H$164,5,FALSE))","v":20},{"$f":"+IFERROR(VLOOKUP(NQ$27&\"-\"&$M51&\"_new\",Ammortamento_Finanziario!$H:$L,5,FALSE),VLOOKUP($M51,TT_Tabelle_Riferimento!$D$127:$H$164,5,FALSE))","v":20},{"$f":"+IFERROR(VLOOKUP(NR$27&\"-\"&$M51&\"_new\",Ammortamento_Finanziario!$H:$L,5,FALSE),VLOOKUP($M51,TT_Tabelle_Riferimento!$D$127:$H$164,5,FALSE))","v":20},{"$f":"+IFERROR(VLOOKUP(NS$27&\"-\"&$M51&\"_new\",Ammortamento_Finanziario!$H:$L,5,FALSE),VLOOKUP($M51,TT_Tabelle_Riferimento!$D$127:$H$164,5,FALSE))","v":20},{"$f":"+IFERROR(VLOOKUP(NT$27&\"-\"&$M51&\"_new\",Ammortamento_Finanziario!$H:$L,5,FALSE),VLOOKUP($M51,TT_Tabelle_Riferimento!$D$127:$H$164,5,FALSE))","v":20},{"$f":"+IFERROR(VLOOKUP(NU$27&\"-\"&$M51&\"_new\",Ammortamento_Finanziario!$H:$L,5,FALSE),VLOOKUP($M51,TT_Tabelle_Riferimento!$D$127:$H$164,5,FALSE))","v":20},{"$f":"+IFERROR(VLOOKUP(NV$27&\"-\"&$M51&\"_new\",Ammortamento_Finanziario!$H:$L,5,FALSE),VLOOKUP($M51,TT_Tabelle_Riferimento!$D$127:$H$164,5,FALSE))","v":20},{"$f":"+IFERROR(VLOOKUP(NW$27&\"-\"&$M51&\"_new\",Ammortamento_Finanziario!$H:$L,5,FALSE),VLOOKUP($M51,TT_Tabelle_Riferimento!$D$127:$H$164,5,FALSE))","v":20},{"$f":"+IFERROR(VLOOKUP(NX$27&\"-\"&$M51&\"_new\",Ammortamento_Finanziario!$H:$L,5,FALSE),VLOOKUP($M51,TT_Tabelle_Riferimento!$D$127:$H$164,5,FALSE))","v":20},{"$f":"+IFERROR(VLOOKUP(NY$27&\"-\"&$M51&\"_new\",Ammortamento_Finanziario!$H:$L,5,FALSE),VLOOKUP($M51,TT_Tabelle_Riferimento!$D$127:$H$164,5,FALSE))","v":20},{"$f":"+IFERROR(VLOOKUP(NZ$27&\"-\"&$M51&\"_new\",Ammortamento_Finanziario!$H:$L,5,FALSE),VLOOKUP($M51,TT_Tabelle_Riferimento!$D$127:$H$164,5,FALSE))","v":20},{"$f":"+IFERROR(VLOOKUP(OA$27&\"-\"&$M51&\"_new\",Ammortamento_Finanziario!$H:$L,5,FALSE),VLOOKUP($M51,TT_Tabelle_Riferimento!$D$127:$H$164,5,FALSE))","v":20},{"$f":"+IFERROR(VLOOKUP(OB$27&\"-\"&$M51&\"_new\",Ammortamento_Finanziario!$H:$L,5,FALSE),VLOOKUP($M51,TT_Tabelle_Riferimento!$D$127:$H$164,5,FALSE))","v":20},{"$f":"+IFERROR(VLOOKUP(OC$27&\"-\"&$M51&\"_new\",Ammortamento_Finanziario!$H:$L,5,FALSE),VLOOKUP($M51,TT_Tabelle_Riferimento!$D$127:$H$164,5,FALSE))","v":20},{"$f":"+IFERROR(VLOOKUP(OD$27&\"-\"&$M51&\"_new\",Ammortamento_Finanziario!$H:$L,5,FALSE),VLOOKUP($M51,TT_Tabelle_Riferimento!$D$127:$H$164,5,FALSE))","v":20},{"$f":"+IFERROR(VLOOKUP(OE$27&\"-\"&$M51&\"_new\",Ammortamento_Finanziario!$H:$L,5,FALSE),VLOOKUP($M51,TT_Tabelle_Riferimento!$D$127:$H$164,5,FALSE))","v":20},{"$f":"+IFERROR(VLOOKUP(OF$27&\"-\"&$M51&\"_new\",Ammortamento_Finanziario!$H:$L,5,FALSE),VLOOKUP($M51,TT_Tabelle_Riferimento!$D$127:$H$164,5,FALSE))","v":20},{"$f":"+IFERROR(VLOOKUP(OG$27&\"-\"&$M51&\"_new\",Ammortamento_Finanziario!$H:$L,5,FALSE),VLOOKUP($M51,TT_Tabelle_Riferimento!$D$127:$H$164,5,FALSE))","v":20},{"$f":"+IFERROR(VLOOKUP(OH$27&\"-\"&$M51&\"_new\",Ammortamento_Finanziario!$H:$L,5,FALSE),VLOOKUP($M51,TT_Tabelle_Riferimento!$D$127:$H$164,5,FALSE))","v":20},{"$f":"+IFERROR(VLOOKUP(OI$27&\"-\"&$M51&\"_new\",Ammortamento_Finanziario!$H:$L,5,FALSE),VLOOKUP($M51,TT_Tabelle_Riferimento!$D$127:$H$164,5,FALSE))","v":20},{"$f":"+IFERROR(VLOOKUP(OJ$27&\"-\"&$M51&\"_new\",Ammortamento_Finanziario!$H:$L,5,FALSE),VLOOKUP($M51,TT_Tabelle_Riferimento!$D$127:$H$164,5,FALSE))","v":20},{"$f":"+IFERROR(VLOOKUP(OK$27&\"-\"&$M51&\"_new\",Ammortamento_Finanziario!$H:$L,5,FALSE),VLOOKUP($M51,TT_Tabelle_Riferimento!$D$127:$H$164,5,FALSE))","v":20},{"$f":"+IFERROR(VLOOKUP(OL$27&\"-\"&$M51&\"_new\",Ammortamento_Finanziario!$H:$L,5,FALSE),VLOOKUP($M51,TT_Tabelle_Riferimento!$D$127:$H$164,5,FALSE))","v":20},{"$f":"+IFERROR(VLOOKUP(OM$27&\"-\"&$M51&\"_new\",Ammortamento_Finanziario!$H:$L,5,FALSE),VLOOKUP($M51,TT_Tabelle_Riferimento!$D$127:$H$164,5,FALSE))","v":20},{"$f":"+IFERROR(VLOOKUP(ON$27&\"-\"&$M51&\"_new\",Ammortamento_Finanziario!$H:$L,5,FALSE),VLOOKUP($M51,TT_Tabelle_Riferimento!$D$127:$H$164,5,FALSE))","v":20},{"$f":"+IFERROR(VLOOKUP(OO$27&\"-\"&$M51&\"_new\",Ammortamento_Finanziario!$H:$L,5,FALSE),VLOOKUP($M51,TT_Tabelle_Riferimento!$D$127:$H$164,5,FALSE))","v":20},{"$f":"+IFERROR(VLOOKUP(OP$27&\"-\"&$M51&\"_new\",Ammortamento_Finanziario!$H:$L,5,FALSE),VLOOKUP($M51,TT_Tabelle_Riferimento!$D$127:$H$164,5,FALSE))","v":20},{"$f":"+IFERROR(VLOOKUP(OQ$27&\"-\"&$M51&\"_new\",Ammortamento_Finanziario!$H:$L,5,FALSE),VLOOKUP($M51,TT_Tabelle_Riferimento!$D$127:$H$164,5,FALSE))","v":20},{"$f":"+IFERROR(VLOOKUP(OR$27&\"-\"&$M51&\"_new\",Ammortamento_Finanziario!$H:$L,5,FALSE),VLOOKUP($M51,TT_Tabelle_Riferimento!$D$127:$H$164,5,FALSE))","v":20},{"$f":"+IFERROR(VLOOKUP(OS$27&\"-\"&$M51&\"_new\",Ammortamento_Finanziario!$H:$L,5,FALSE),VLOOKUP($M51,TT_Tabelle_Riferimento!$D$127:$H$164,5,FALSE))","v":20},{"$f":"+IFERROR(VLOOKUP(OT$27&\"-\"&$M51&\"_new\",Ammortamento_Finanziario!$H:$L,5,FALSE),VLOOKUP($M51,TT_Tabelle_Riferimento!$D$127:$H$164,5,FALSE))","v":20},{"$f":"+IFERROR(VLOOKUP(OU$27&\"-\"&$M51&\"_new\",Ammortamento_Finanziario!$H:$L,5,FALSE),VLOOKUP($M51,TT_Tabelle_Riferimento!$D$127:$H$164,5,FALSE))","v":20},{"$f":"+IFERROR(VLOOKUP(OV$27&\"-\"&$M51&\"_new\",Ammortamento_Finanziario!$H:$L,5,FALSE),VLOOKUP($M51,TT_Tabelle_Riferimento!$D$127:$H$164,5,FALSE))","v":20},{"$f":"+IFERROR(VLOOKUP(OW$27&\"-\"&$M51&\"_new\",Ammortamento_Finanziario!$H:$L,5,FALSE),VLOOKUP($M51,TT_Tabelle_Riferimento!$D$127:$H$164,5,FALSE))","v":20},{"$f":"+IFERROR(VLOOKUP(OX$27&\"-\"&$M51&\"_new\",Ammortamento_Finanziario!$H:$L,5,FALSE),VLOOKUP($M51,TT_Tabelle_Riferimento!$D$127:$H$164,5,FALSE))","v":20},{"$f":"+IFERROR(VLOOKUP(OY$27&\"-\"&$M51&\"_new\",Ammortamento_Finanziario!$H:$L,5,FALSE),VLOOKUP($M51,TT_Tabelle_Riferimento!$D$127:$H$164,5,FALSE))","v":20},{"$f":"+IFERROR(VLOOKUP(OZ$27&\"-\"&$M51&\"_new\",Ammortamento_Finanziario!$H:$L,5,FALSE),VLOOKUP($M51,TT_Tabelle_Riferimento!$D$127:$H$164,5,FALSE))","v":20},{"$f":"+IFERROR(VLOOKUP(PA$27&\"-\"&$M51&\"_new\",Ammortamento_Finanziario!$H:$L,5,FALSE),VLOOKUP($M51,TT_Tabelle_Riferimento!$D$127:$H$164,5,FALSE))","v":20},{"$f":"+IFERROR(VLOOKUP(PB$27&\"-\"&$M51&\"_new\",Ammortamento_Finanziario!$H:$L,5,FALSE),VLOOKUP($M51,TT_Tabelle_Riferimento!$D$127:$H$164,5,FALSE))","v":20},{"$f":"+IFERROR(VLOOKUP(PC$27&\"-\"&$M51&\"_new\",Ammortamento_Finanziario!$H:$L,5,FALSE),VLOOKUP($M51,TT_Tabelle_Riferimento!$D$127:$H$164,5,FALSE))","v":20},{"$f":"+IFERROR(VLOOKUP(PD$27&\"-\"&$M51&\"_new\",Ammortamento_Finanziario!$H:$L,5,FALSE),VLOOKUP($M51,TT_Tabelle_Riferimento!$D$127:$H$164,5,FALSE))","v":20},{"$f":"+IFERROR(VLOOKUP(PE$27&\"-\"&$M51&\"_new\",Ammortamento_Finanziario!$H:$L,5,FALSE),VLOOKUP($M51,TT_Tabelle_Riferimento!$D$127:$H$164,5,FALSE))","v":20},{"$f":"+IFERROR(VLOOKUP(PF$27&\"-\"&$M51&\"_new\",Ammortamento_Finanziario!$H:$L,5,FALSE),VLOOKUP($M51,TT_Tabelle_Riferimento!$D$127:$H$164,5,FALSE))","v":20},{"$f":"+IFERROR(VLOOKUP(PG$27&\"-\"&$M51&\"_new\",Ammortamento_Finanziario!$H:$L,5,FALSE),VLOOKUP($M51,TT_Tabelle_Riferimento!$D$127:$H$164,5,FALSE))","v":20},{"$f":"+IFERROR(VLOOKUP(PH$27&\"-\"&$M51&\"_new\",Ammortamento_Finanziario!$H:$L,5,FALSE),VLOOKUP($M51,TT_Tabelle_Riferimento!$D$127:$H$164,5,FALSE))","v":20},{"$f":"+IFERROR(VLOOKUP(PI$27&\"-\"&$M51&\"_new\",Ammortamento_Finanziario!$H:$L,5,FALSE),VLOOKUP($M51,TT_Tabelle_Riferimento!$D$127:$H$164,5,FALSE))","v":20},{"$f":"+IFERROR(VLOOKUP(PJ$27&\"-\"&$M51&\"_new\",Ammortamento_Finanziario!$H:$L,5,FALSE),VLOOKUP($M51,TT_Tabelle_Riferimento!$D$127:$H$164,5,FALSE))","v":20},{"$f":"+IFERROR(VLOOKUP(PK$27&\"-\"&$M51&\"_new\",Ammortamento_Finanziario!$H:$L,5,FALSE),VLOOKUP($M51,TT_Tabelle_Riferimento!$D$127:$H$164,5,FALSE))","v":20},{"$f":"+IFERROR(VLOOKUP(PL$27&\"-\"&$M51&\"_new\",Ammortamento_Finanziario!$H:$L,5,FALSE),VLOOKUP($M51,TT_Tabelle_Riferimento!$D$127:$H$164,5,FALSE))","v":20},{"$f":"+IFERROR(VLOOKUP(PM$27&\"-\"&$M51&\"_new\",Ammortamento_Finanziario!$H:$L,5,FALSE),VLOOKUP($M51,TT_Tabelle_Riferimento!$D$127:$H$164,5,FALSE))","v":20},{"$f":"+IFERROR(VLOOKUP(PN$27&\"-\"&$M51&\"_new\",Ammortamento_Finanziario!$H:$L,5,FALSE),VLOOKUP($M51,TT_Tabelle_Riferimento!$D$127:$H$164,5,FALSE))","v":20},{"$f":"+IFERROR(VLOOKUP(PO$27&\"-\"&$M51&\"_new\",Ammortamento_Finanziario!$H:$L,5,FALSE),VLOOKUP($M51,TT_Tabelle_Riferimento!$D$127:$H$164,5,FALSE))","v":20},{"$f":"+IFERROR(VLOOKUP(PP$27&\"-\"&$M51&\"_new\",Ammortamento_Finanziario!$H:$L,5,FALSE),VLOOKUP($M51,TT_Tabelle_Riferimento!$D$127:$H$164,5,FALSE))","v":20},{"$f":"+IFERROR(VLOOKUP(PQ$27&\"-\"&$M51&\"_new\",Ammortamento_Finanziario!$H:$L,5,FALSE),VLOOKUP($M51,TT_Tabelle_Riferimento!$D$127:$H$164,5,FALSE))","v":20},{"$f":"+IFERROR(VLOOKUP(PR$27&\"-\"&$M51&\"_new\",Ammortamento_Finanziario!$H:$L,5,FALSE),VLOOKUP($M51,TT_Tabelle_Riferimento!$D$127:$H$164,5,FALSE))","v":20},{"$f":"+IFERROR(VLOOKUP(PS$27&\"-\"&$M51&\"_new\",Ammortamento_Finanziario!$H:$L,5,FALSE),VLOOKUP($M51,TT_Tabelle_Riferimento!$D$127:$H$164,5,FALSE))","v":20},{"$f":"+IFERROR(VLOOKUP(PT$27&\"-\"&$M51&\"_new\",Ammortamento_Finanziario!$H:$L,5,FALSE),VLOOKUP($M51,TT_Tabelle_Riferimento!$D$127:$H$164,5,FALSE))","v":20},{"$f":"+IFERROR(VLOOKUP(PU$27&\"-\"&$M51&\"_new\",Ammortamento_Finanziario!$H:$L,5,FALSE),VLOOKUP($M51,TT_Tabelle_Riferimento!$D$127:$H$164,5,FALSE))","v":20},{"$f":"+IFERROR(VLOOKUP(PV$27&\"-\"&$M51&\"_new\",Ammortamento_Finanziario!$H:$L,5,FALSE),VLOOKUP($M51,TT_Tabelle_Riferimento!$D$127:$H$164,5,FALSE))","v":20},{"$f":"+IFERROR(VLOOKUP(PW$27&\"-\"&$M51&\"_new\",Ammortamento_Finanziario!$H:$L,5,FALSE),VLOOKUP($M51,TT_Tabelle_Riferimento!$D$127:$H$164,5,FALSE))","v":20},{"$f":"+IFERROR(VLOOKUP(PX$27&\"-\"&$M51&\"_new\",Ammortamento_Finanziario!$H:$L,5,FALSE),VLOOKUP($M51,TT_Tabelle_Riferimento!$D$127:$H$164,5,FALSE))","v":20},{"$f":"+IFERROR(VLOOKUP(PY$27&\"-\"&$M51&\"_new\",Ammortamento_Finanziario!$H:$L,5,FALSE),VLOOKUP($M51,TT_Tabelle_Riferimento!$D$127:$H$164,5,FALSE))","v":20},{"$f":"+IFERROR(VLOOKUP(PZ$27&\"-\"&$M51&\"_new\",Ammortamento_Finanziario!$H:$L,5,FALSE),VLOOKUP($M51,TT_Tabelle_Riferimento!$D$127:$H$164,5,FALSE))","v":20},{"$f":"+IFERROR(VLOOKUP(QA$27&\"-\"&$M51&\"_new\",Ammortamento_Finanziario!$H:$L,5,FALSE),VLOOKUP($M51,TT_Tabelle_Riferimento!$D$127:$H$164,5,FALSE))","v":20},{"$f":"+IFERROR(VLOOKUP(QB$27&\"-\"&$M51&\"_new\",Ammortamento_Finanziario!$H:$L,5,FALSE),VLOOKUP($M51,TT_Tabelle_Riferimento!$D$127:$H$164,5,FALSE))","v":20},{"$f":"+IFERROR(VLOOKUP(QC$27&\"-\"&$M51&\"_new\",Ammortamento_Finanziario!$H:$L,5,FALSE),VLOOKUP($M51,TT_Tabelle_Riferimento!$D$127:$H$164,5,FALSE))","v":20},{"$f":"+IFERROR(VLOOKUP(QD$27&\"-\"&$M51&\"_new\",Ammortamento_Finanziario!$H:$L,5,FALSE),VLOOKUP($M51,TT_Tabelle_Riferimento!$D$127:$H$164,5,FALSE))","v":20},{"$f":"+IFERROR(VLOOKUP(QE$27&\"-\"&$M51&\"_new\",Ammortamento_Finanziario!$H:$L,5,FALSE),VLOOKUP($M51,TT_Tabelle_Riferimento!$D$127:$H$164,5,FALSE))","v":20},{"$f":"+IFERROR(VLOOKUP(QF$27&\"-\"&$M51&\"_new\",Ammortamento_Finanziario!$H:$L,5,FALSE),VLOOKUP($M51,TT_Tabelle_Riferimento!$D$127:$H$164,5,FALSE))","v":20},{"$f":"+IFERROR(VLOOKUP(QG$27&\"-\"&$M51&\"_new\",Ammortamento_Finanziario!$H:$L,5,FALSE),VLOOKUP($M51,TT_Tabelle_Riferimento!$D$127:$H$164,5,FALSE))","v":20},{"$f":"+IFERROR(VLOOKUP(QH$27&\"-\"&$M51&\"_new\",Ammortamento_Finanziario!$H:$L,5,FALSE),VLOOKUP($M51,TT_Tabelle_Riferimento!$D$127:$H$164,5,FALSE))","v":20},{"$f":"+IFERROR(VLOOKUP(QI$27&\"-\"&$M51&\"_new\",Ammortamento_Finanziario!$H:$L,5,FALSE),VLOOKUP($M51,TT_Tabelle_Riferimento!$D$127:$H$164,5,FALSE))","v":20},{"$f":"+IFERROR(VLOOKUP(QJ$27&\"-\"&$M51&\"_new\",Ammortamento_Finanziario!$H:$L,5,FALSE),VLOOKUP($M51,TT_Tabelle_Riferimento!$D$127:$H$164,5,FALSE))","v":20},{"$f":"+IFERROR(VLOOKUP(QK$27&\"-\"&$M51&\"_new\",Ammortamento_Finanziario!$H:$L,5,FALSE),VLOOKUP($M51,TT_Tabelle_Riferimento!$D$127:$H$164,5,FALSE))","v":20},{"$f":"+IFERROR(VLOOKUP(QL$27&\"-\"&$M51&\"_new\",Ammortamento_Finanziario!$H:$L,5,FALSE),VLOOKUP($M51,TT_Tabelle_Riferimento!$D$127:$H$164,5,FALSE))","v":20},{"$f":"+IFERROR(VLOOKUP(QM$27&\"-\"&$M51&\"_new\",Ammortamento_Finanziario!$H:$L,5,FALSE),VLOOKUP($M51,TT_Tabelle_Riferimento!$D$127:$H$164,5,FALSE))","v":20},{"$f":"+IFERROR(VLOOKUP(QN$27&\"-\"&$M51&\"_new\",Ammortamento_Finanziario!$H:$L,5,FALSE),VLOOKUP($M51,TT_Tabelle_Riferimento!$D$127:$H$164,5,FALSE))","v":20},{"$f":"+IFERROR(VLOOKUP(QO$27&\"-\"&$M51&\"_new\",Ammortamento_Finanziario!$H:$L,5,FALSE),VLOOKUP($M51,TT_Tabelle_Riferimento!$D$127:$H$164,5,FALSE))","v":20},{"$f":"+IFERROR(VLOOKUP(QP$27&\"-\"&$M51&\"_new\",Ammortamento_Finanziario!$H:$L,5,FALSE),VLOOKUP($M51,TT_Tabelle_Riferimento!$D$127:$H$164,5,FALSE))","v":20},{"$f":"+IFERROR(VLOOKUP(QQ$27&\"-\"&$M51&\"_new\",Ammortamento_Finanziario!$H:$L,5,FALSE),VLOOKUP($M51,TT_Tabelle_Riferimento!$D$127:$H$164,5,FALSE))","v":20},{"$f":"+IFERROR(VLOOKUP(QR$27&\"-\"&$M51&\"_new\",Ammortamento_Finanziario!$H:$L,5,FALSE),VLOOKUP($M51,TT_Tabelle_Riferimento!$D$127:$H$164,5,FALSE))","v":20},{"$f":"+IFERROR(VLOOKUP(QS$27&\"-\"&$M51&\"_new\",Ammortamento_Finanziario!$H:$L,5,FALSE),VLOOKUP($M51,TT_Tabelle_Riferimento!$D$127:$H$164,5,FALSE))","v":20},{"$f":"+IFERROR(VLOOKUP(QT$27&\"-\"&$M51&\"_new\",Ammortamento_Finanziario!$H:$L,5,FALSE),VLOOKUP($M51,TT_Tabelle_Riferimento!$D$127:$H$164,5,FALSE))","v":20},{"$f":"+IFERROR(VLOOKUP(QU$27&\"-\"&$M51&\"_new\",Ammortamento_Finanziario!$H:$L,5,FALSE),VLOOKUP($M51,TT_Tabelle_Riferimento!$D$127:$H$164,5,FALSE))","v":20},{"$f":"+IFERROR(VLOOKUP(QV$27&\"-\"&$M51&\"_new\",Ammortamento_Finanziario!$H:$L,5,FALSE),VLOOKUP($M51,TT_Tabelle_Riferimento!$D$127:$H$164,5,FALSE))","v":20},{"$f":"+IFERROR(VLOOKUP(QW$27&\"-\"&$M51&\"_new\",Ammortamento_Finanziario!$H:$L,5,FALSE),VLOOKUP($M51,TT_Tabelle_Riferimento!$D$127:$H$164,5,FALSE))","v":20},{"$f":"+IFERROR(VLOOKUP(QX$27&\"-\"&$M51&\"_new\",Ammortamento_Finanziario!$H:$L,5,FALSE),VLOOKUP($M51,TT_Tabelle_Riferimento!$D$127:$H$164,5,FALSE))","v":20},{"$f":"+IFERROR(VLOOKUP(QY$27&\"-\"&$M51&\"_new\",Ammortamento_Finanziario!$H:$L,5,FALSE),VLOOKUP($M51,TT_Tabelle_Riferimento!$D$127:$H$164,5,FALSE))","v":20},{"$f":"+IFERROR(VLOOKUP(QZ$27&\"-\"&$M51&\"_new\",Ammortamento_Finanziario!$H:$L,5,FALSE),VLOOKUP($M51,TT_Tabelle_Riferimento!$D$127:$H$164,5,FALSE))","v":20},{"$f":"+IFERROR(VLOOKUP(RA$27&\"-\"&$M51&\"_new\",Ammortamento_Finanziario!$H:$L,5,FALSE),VLOOKUP($M51,TT_Tabelle_Riferimento!$D$127:$H$164,5,FALSE))","v":20},{"$f":"+IFERROR(VLOOKUP(RB$27&\"-\"&$M51&\"_new\",Ammortamento_Finanziario!$H:$L,5,FALSE),VLOOKUP($M51,TT_Tabelle_Riferimento!$D$127:$H$164,5,FALSE))","v":20},{"$f":"+IFERROR(VLOOKUP(RC$27&\"-\"&$M51&\"_new\",Ammortamento_Finanziario!$H:$L,5,FALSE),VLOOKUP($M51,TT_Tabelle_Riferimento!$D$127:$H$164,5,FALSE))","v":20},{"$f":"+IFERROR(VLOOKUP(RD$27&\"-\"&$M51&\"_new\",Ammortamento_Finanziario!$H:$L,5,FALSE),VLOOKUP($M51,TT_Tabelle_Riferimento!$D$127:$H$164,5,FALSE))","v":20},{"$f":"+IFERROR(VLOOKUP(RE$27&\"-\"&$M51&\"_new\",Ammortamento_Finanziario!$H:$L,5,FALSE),VLOOKUP($M51,TT_Tabelle_Riferimento!$D$127:$H$164,5,FALSE))","v":20},{"$f":"+IFERROR(VLOOKUP(RF$27&\"-\"&$M51&\"_new\",Ammortamento_Finanziario!$H:$L,5,FALSE),VLOOKUP($M51,TT_Tabelle_Riferimento!$D$127:$H$164,5,FALSE))","v":20},{"$f":"+IFERROR(VLOOKUP(RG$27&\"-\"&$M51&\"_new\",Ammortamento_Finanziario!$H:$L,5,FALSE),VLOOKUP($M51,TT_Tabelle_Riferimento!$D$127:$H$164,5,FALSE))","v":20},{"$f":"+IFERROR(VLOOKUP(RH$27&\"-\"&$M51&\"_new\",Ammortamento_Finanziario!$H:$L,5,FALSE),VLOOKUP($M51,TT_Tabelle_Riferimento!$D$127:$H$164,5,FALSE))","v":20},{"$f":"+IFERROR(VLOOKUP(RI$27&\"-\"&$M51&\"_new\",Ammortamento_Finanziario!$H:$L,5,FALSE),VLOOKUP($M51,TT_Tabelle_Riferimento!$D$127:$H$164,5,FALSE))","v":20},{"$f":"+IFERROR(VLOOKUP(RJ$27&\"-\"&$M51&\"_new\",Ammortamento_Finanziario!$H:$L,5,FALSE),VLOOKUP($M51,TT_Tabelle_Riferimento!$D$127:$H$164,5,FALSE))","v":20},{"$f":"+IFERROR(VLOOKUP(RK$27&\"-\"&$M51&\"_new\",Ammortamento_Finanziario!$H:$L,5,FALSE),VLOOKUP($M51,TT_Tabelle_Riferimento!$D$127:$H$164,5,FALSE))","v":20},{"$f":"+IFERROR(VLOOKUP(RL$27&\"-\"&$M51&\"_new\",Ammortamento_Finanziario!$H:$L,5,FALSE),VLOOKUP($M51,TT_Tabelle_Riferimento!$D$127:$H$164,5,FALSE))","v":20},{"$f":"+IFERROR(VLOOKUP(RM$27&\"-\"&$M51&\"_new\",Ammortamento_Finanziario!$H:$L,5,FALSE),VLOOKUP($M51,TT_Tabelle_Riferimento!$D$127:$H$164,5,FALSE))","v":20},{"$f":"+IFERROR(VLOOKUP(RN$27&\"-\"&$M51&\"_new\",Ammortamento_Finanziario!$H:$L,5,FALSE),VLOOKUP($M51,TT_Tabelle_Riferimento!$D$127:$H$164,5,FALSE))","v":20},{"$f":"+IFERROR(VLOOKUP(RO$27&\"-\"&$M51&\"_new\",Ammortamento_Finanziario!$H:$L,5,FALSE),VLOOKUP($M51,TT_Tabelle_Riferimento!$D$127:$H$164,5,FALSE))","v":20},{"$f":"+IFERROR(VLOOKUP(RP$27&\"-\"&$M51&\"_new\",Ammortamento_Finanziario!$H:$L,5,FALSE),VLOOKUP($M51,TT_Tabelle_Riferimento!$D$127:$H$164,5,FALSE))","v":20},{"$f":"+IFERROR(VLOOKUP(RQ$27&\"-\"&$M51&\"_new\",Ammortamento_Finanziario!$H:$L,5,FALSE),VLOOKUP($M51,TT_Tabelle_Riferimento!$D$127:$H$164,5,FALSE))","v":20},{"$f":"+IFERROR(VLOOKUP(RR$27&\"-\"&$M51&\"_new\",Ammortamento_Finanziario!$H:$L,5,FALSE),VLOOKUP($M51,TT_Tabelle_Riferimento!$D$127:$H$164,5,FALSE))","v":20},{"$f":"+IFERROR(VLOOKUP(RS$27&\"-\"&$M51&\"_new\",Ammortamento_Finanziario!$H:$L,5,FALSE),VLOOKUP($M51,TT_Tabelle_Riferimento!$D$127:$H$164,5,FALSE))","v":20},{"$f":"+IFERROR(VLOOKUP(RT$27&\"-\"&$M51&\"_new\",Ammortamento_Finanziario!$H:$L,5,FALSE),VLOOKUP($M51,TT_Tabelle_Riferimento!$D$127:$H$164,5,FALSE))","v":20},{"$f":"+IFERROR(VLOOKUP(RU$27&\"-\"&$M51&\"_new\",Ammortamento_Finanziario!$H:$L,5,FALSE),VLOOKUP($M51,TT_Tabelle_Riferimento!$D$127:$H$164,5,FALSE))","v":20},{"$f":"+IFERROR(VLOOKUP(RV$27&\"-\"&$M51&\"_new\",Ammortamento_Finanziario!$H:$L,5,FALSE),VLOOKUP($M51,TT_Tabelle_Riferimento!$D$127:$H$164,5,FALSE))","v":20}]
[null,null,null,"Immobilizzazioni nette del gestore - di cui ERCres",null,null,null,null,null,null,null,null,25,0,0,0,0,0,0,0,0,0,0,0,0,0,0,0,0,0,0,0,0,0,0,0,0,0,0,0,0,0,0,0,0,0,0,0,0,0,0,0,0,0,0,0,0,0,0,0,0,0,0,0,0,0,0,0,0,0,0,0,0,0,0,0,0,0,0,0,0,0,0,0,0,0,0,0,0,0,0,0,0,0,0,0,0,0,0,0,0,0,0,0,0,0,0,0,0,0,0,0,0,0,0,0,0,0,0,0,0,0,0,0,0,0,0,0,0,0,0,0,0,0,0,0,0,0,0,0,0,0,0,0,0,0,0,0,0,0,0,0,0,0,0,0,0,0,0,0,0,0,0,0,0,0,0,0,0,0,0,0,0,0,0,0,0,0,0,0,0,0,0,0,0,0,0,0,0,0,0,0,0,0,0,0,0,0,0,0,0,0,0,0,0,0,0,0,0,0,0,0,0,0,0,0,0,0,0,0,0,0,0,0,0,0,0,0,0,0,0,0,0,0,0,0,0,0,0,0,0,0,0,0,0,0,0,0,0,0,0,0,0,0,0,0,0,0,0,0,0,0,0,0,0,0,0,0,0,0,0,0,0,0,0,0,0,0,0,0,0,0,0,0,0,0,0,0,0,0,0,0,0,0,0,0,0,0,0,0,0,0,{"$f":"+IFERROR(VLOOKUP(KQ$27&\"-\"&$M52&\"_new\",Ammortamento_Finanziario!$H:$L,5,FALSE),VLOOKUP($M52,TT_Tabelle_Riferimento!$D$127:$H$164,5,FALSE))","v":10},{"$f":"+IFERROR(VLOOKUP(KR$27&\"-\"&$M52&\"_new\",Ammortamento_Finanziario!$H:$L,5,FALSE),VLOOKUP($M52,TT_Tabelle_Riferimento!$D$127:$H$164,5,FALSE))","v":10},{"$f":"+IFERROR(VLOOKUP(KS$27&\"-\"&$M52&\"_new\",Ammortamento_Finanziario!$H:$L,5,FALSE),VLOOKUP($M52,TT_Tabelle_Riferimento!$D$127:$H$164,5,FALSE))","v":10},{"$f":"+IFERROR(VLOOKUP(KT$27&\"-\"&$M52&\"_new\",Ammortamento_Finanziario!$H:$L,5,FALSE),VLOOKUP($M52,TT_Tabelle_Riferimento!$D$127:$H$164,5,FALSE))","v":10},{"$f":"+IFERROR(VLOOKUP(KU$27&\"-\"&$M52&\"_new\",Ammortamento_Finanziario!$H:$L,5,FALSE),VLOOKUP($M52,TT_Tabelle_Riferimento!$D$127:$H$164,5,FALSE))","v":10},{"$f":"+IFERROR(VLOOKUP(KV$27&\"-\"&$M52&\"_new\",Ammortamento_Finanziario!$H:$L,5,FALSE),VLOOKUP($M52,TT_Tabelle_Riferimento!$D$127:$H$164,5,FALSE))","v":10},{"$f":"+IFERROR(VLOOKUP(KW$27&\"-\"&$M52&\"_new\",Ammortamento_Finanziario!$H:$L,5,FALSE),VLOOKUP($M52,TT_Tabelle_Riferimento!$D$127:$H$164,5,FALSE))","v":10},{"$f":"+IFERROR(VLOOKUP(KX$27&\"-\"&$M52&\"_new\",Ammortamento_Finanziario!$H:$L,5,FALSE),VLOOKUP($M52,TT_Tabelle_Riferimento!$D$127:$H$164,5,FALSE))","v":10},{"$f":"+IFERROR(VLOOKUP(KY$27&\"-\"&$M52&\"_new\",Ammortamento_Finanziario!$H:$L,5,FALSE),VLOOKUP($M52,TT_Tabelle_Riferimento!$D$127:$H$164,5,FALSE))","v":10},{"$f":"+IFERROR(VLOOKUP(KZ$27&\"-\"&$M52&\"_new\",Ammortamento_Finanziario!$H:$L,5,FALSE),VLOOKUP($M52,TT_Tabelle_Riferimento!$D$127:$H$164,5,FALSE))","v":10},{"$f":"+IFERROR(VLOOKUP(LA$27&\"-\"&$M52&\"_new\",Ammortamento_Finanziario!$H:$L,5,FALSE),VLOOKUP($M52,TT_Tabelle_Riferimento!$D$127:$H$164,5,FALSE))","v":10},{"$f":"+IFERROR(VLOOKUP(LB$27&\"-\"&$M52&\"_new\",Ammortamento_Finanziario!$H:$L,5,FALSE),VLOOKUP($M52,TT_Tabelle_Riferimento!$D$127:$H$164,5,FALSE))","v":10},{"$f":"+IFERROR(VLOOKUP(LC$27&\"-\"&$M52&\"_new\",Ammortamento_Finanziario!$H:$L,5,FALSE),VLOOKUP($M52,TT_Tabelle_Riferimento!$D$127:$H$164,5,FALSE))","v":10},{"$f":"+IFERROR(VLOOKUP(LD$27&\"-\"&$M52&\"_new\",Ammortamento_Finanziario!$H:$L,5,FALSE),VLOOKUP($M52,TT_Tabelle_Riferimento!$D$127:$H$164,5,FALSE))","v":10},{"$f":"+IFERROR(VLOOKUP(LE$27&\"-\"&$M52&\"_new\",Ammortamento_Finanziario!$H:$L,5,FALSE),VLOOKUP($M52,TT_Tabelle_Riferimento!$D$127:$H$164,5,FALSE))","v":10},{"$f":"+IFERROR(VLOOKUP(LF$27&\"-\"&$M52&\"_new\",Ammortamento_Finanziario!$H:$L,5,FALSE),VLOOKUP($M52,TT_Tabelle_Riferimento!$D$127:$H$164,5,FALSE))","v":10},{"$f":"+IFERROR(VLOOKUP(LG$27&\"-\"&$M52&\"_new\",Ammortamento_Finanziario!$H:$L,5,FALSE),VLOOKUP($M52,TT_Tabelle_Riferimento!$D$127:$H$164,5,FALSE))","v":10},{"$f":"+IFERROR(VLOOKUP(LH$27&\"-\"&$M52&\"_new\",Ammortamento_Finanziario!$H:$L,5,FALSE),VLOOKUP($M52,TT_Tabelle_Riferimento!$D$127:$H$164,5,FALSE))","v":10},{"$f":"+IFERROR(VLOOKUP(LI$27&\"-\"&$M52&\"_new\",Ammortamento_Finanziario!$H:$L,5,FALSE),VLOOKUP($M52,TT_Tabelle_Riferimento!$D$127:$H$164,5,FALSE))","v":10},{"$f":"+IFERROR(VLOOKUP(LJ$27&\"-\"&$M52&\"_new\",Ammortamento_Finanziario!$H:$L,5,FALSE),VLOOKUP($M52,TT_Tabelle_Riferimento!$D$127:$H$164,5,FALSE))","v":10},{"$f":"+IFERROR(VLOOKUP(LK$27&\"-\"&$M52&\"_new\",Ammortamento_Finanziario!$H:$L,5,FALSE),VLOOKUP($M52,TT_Tabelle_Riferimento!$D$127:$H$164,5,FALSE))","v":10},{"$f":"+IFERROR(VLOOKUP(LL$27&\"-\"&$M52&\"_new\",Ammortamento_Finanziario!$H:$L,5,FALSE),VLOOKUP($M52,TT_Tabelle_Riferimento!$D$127:$H$164,5,FALSE))","v":10},{"$f":"+IFERROR(VLOOKUP(LM$27&\"-\"&$M52&\"_new\",Ammortamento_Finanziario!$H:$L,5,FALSE),VLOOKUP($M52,TT_Tabelle_Riferimento!$D$127:$H$164,5,FALSE))","v":10},{"$f":"+IFERROR(VLOOKUP(LN$27&\"-\"&$M52&\"_new\",Ammortamento_Finanziario!$H:$L,5,FALSE),VLOOKUP($M52,TT_Tabelle_Riferimento!$D$127:$H$164,5,FALSE))","v":10},{"$f":"+IFERROR(VLOOKUP(LO$27&\"-\"&$M52&\"_new\",Ammortamento_Finanziario!$H:$L,5,FALSE),VLOOKUP($M52,TT_Tabelle_Riferimento!$D$127:$H$164,5,FALSE))","v":10},{"$f":"+IFERROR(VLOOKUP(LP$27&\"-\"&$M52&\"_new\",Ammortamento_Finanziario!$H:$L,5,FALSE),VLOOKUP($M52,TT_Tabelle_Riferimento!$D$127:$H$164,5,FALSE))","v":10},{"$f":"+IFERROR(VLOOKUP(LQ$27&\"-\"&$M52&\"_new\",Ammortamento_Finanziario!$H:$L,5,FALSE),VLOOKUP($M52,TT_Tabelle_Riferimento!$D$127:$H$164,5,FALSE))","v":10},{"$f":"+IFERROR(VLOOKUP(LR$27&\"-\"&$M52&\"_new\",Ammortamento_Finanziario!$H:$L,5,FALSE),VLOOKUP($M52,TT_Tabelle_Riferimento!$D$127:$H$164,5,FALSE))","v":10},{"$f":"+IFERROR(VLOOKUP(LS$27&\"-\"&$M52&\"_new\",Ammortamento_Finanziario!$H:$L,5,FALSE),VLOOKUP($M52,TT_Tabelle_Riferimento!$D$127:$H$164,5,FALSE))","v":10},{"$f":"+IFERROR(VLOOKUP(LT$27&\"-\"&$M52&\"_new\",Ammortamento_Finanziario!$H:$L,5,FALSE),VLOOKUP($M52,TT_Tabelle_Riferimento!$D$127:$H$164,5,FALSE))","v":10},{"$f":"+IFERROR(VLOOKUP(LU$27&\"-\"&$M52&\"_new\",Ammortamento_Finanziario!$H:$L,5,FALSE),VLOOKUP($M52,TT_Tabelle_Riferimento!$D$127:$H$164,5,FALSE))","v":10},{"$f":"+IFERROR(VLOOKUP(LV$27&\"-\"&$M52&\"_new\",Ammortamento_Finanziario!$H:$L,5,FALSE),VLOOKUP($M52,TT_Tabelle_Riferimento!$D$127:$H$164,5,FALSE))","v":10},{"$f":"+IFERROR(VLOOKUP(LW$27&\"-\"&$M52&\"_new\",Ammortamento_Finanziario!$H:$L,5,FALSE),VLOOKUP($M52,TT_Tabelle_Riferimento!$D$127:$H$164,5,FALSE))","v":10},{"$f":"+IFERROR(VLOOKUP(LX$27&\"-\"&$M52&\"_new\",Ammortamento_Finanziario!$H:$L,5,FALSE),VLOOKUP($M52,TT_Tabelle_Riferimento!$D$127:$H$164,5,FALSE))","v":10},{"$f":"+IFERROR(VLOOKUP(LY$27&\"-\"&$M52&\"_new\",Ammortamento_Finanziario!$H:$L,5,FALSE),VLOOKUP($M52,TT_Tabelle_Riferimento!$D$127:$H$164,5,FALSE))","v":10},{"$f":"+IFERROR(VLOOKUP(LZ$27&\"-\"&$M52&\"_new\",Ammortamento_Finanziario!$H:$L,5,FALSE),VLOOKUP($M52,TT_Tabelle_Riferimento!$D$127:$H$164,5,FALSE))","v":10},{"$f":"+IFERROR(VLOOKUP(MA$27&\"-\"&$M52&\"_new\",Ammortamento_Finanziario!$H:$L,5,FALSE),VLOOKUP($M52,TT_Tabelle_Riferimento!$D$127:$H$164,5,FALSE))","v":10},{"$f":"+IFERROR(VLOOKUP(MB$27&\"-\"&$M52&\"_new\",Ammortamento_Finanziario!$H:$L,5,FALSE),VLOOKUP($M52,TT_Tabelle_Riferimento!$D$127:$H$164,5,FALSE))","v":10},{"$f":"+IFERROR(VLOOKUP(MC$27&\"-\"&$M52&\"_new\",Ammortamento_Finanziario!$H:$L,5,FALSE),VLOOKUP($M52,TT_Tabelle_Riferimento!$D$127:$H$164,5,FALSE))","v":10},{"$f":"+IFERROR(VLOOKUP(MD$27&\"-\"&$M52&\"_new\",Ammortamento_Finanziario!$H:$L,5,FALSE),VLOOKUP($M52,TT_Tabelle_Riferimento!$D$127:$H$164,5,FALSE))","v":10},{"$f":"+IFERROR(VLOOKUP(ME$27&\"-\"&$M52&\"_new\",Ammortamento_Finanziario!$H:$L,5,FALSE),VLOOKUP($M52,TT_Tabelle_Riferimento!$D$127:$H$164,5,FALSE))","v":10},{"$f":"+IFERROR(VLOOKUP(MF$27&\"-\"&$M52&\"_new\",Ammortamento_Finanziario!$H:$L,5,FALSE),VLOOKUP($M52,TT_Tabelle_Riferimento!$D$127:$H$164,5,FALSE))","v":10},{"$f":"+IFERROR(VLOOKUP(MG$27&\"-\"&$M52&\"_new\",Ammortamento_Finanziario!$H:$L,5,FALSE),VLOOKUP($M52,TT_Tabelle_Riferimento!$D$127:$H$164,5,FALSE))","v":10},{"$f":"+IFERROR(VLOOKUP(MH$27&\"-\"&$M52&\"_new\",Ammortamento_Finanziario!$H:$L,5,FALSE),VLOOKUP($M52,TT_Tabelle_Riferimento!$D$127:$H$164,5,FALSE))","v":10},{"$f":"+IFERROR(VLOOKUP(MI$27&\"-\"&$M52&\"_new\",Ammortamento_Finanziario!$H:$L,5,FALSE),VLOOKUP($M52,TT_Tabelle_Riferimento!$D$127:$H$164,5,FALSE))","v":10},{"$f":"+IFERROR(VLOOKUP(MJ$27&\"-\"&$M52&\"_new\",Ammortamento_Finanziario!$H:$L,5,FALSE),VLOOKUP($M52,TT_Tabelle_Riferimento!$D$127:$H$164,5,FALSE))","v":10},{"$f":"+IFERROR(VLOOKUP(MK$27&\"-\"&$M52&\"_new\",Ammortamento_Finanziario!$H:$L,5,FALSE),VLOOKUP($M52,TT_Tabelle_Riferimento!$D$127:$H$164,5,FALSE))","v":10},{"$f":"+IFERROR(VLOOKUP(ML$27&\"-\"&$M52&\"_new\",Ammortamento_Finanziario!$H:$L,5,FALSE),VLOOKUP($M52,TT_Tabelle_Riferimento!$D$127:$H$164,5,FALSE))","v":10},{"$f":"+IFERROR(VLOOKUP(MM$27&\"-\"&$M52&\"_new\",Ammortamento_Finanziario!$H:$L,5,FALSE),VLOOKUP($M52,TT_Tabelle_Riferimento!$D$127:$H$164,5,FALSE))","v":10},{"$f":"+IFERROR(VLOOKUP(MN$27&\"-\"&$M52&\"_new\",Ammortamento_Finanziario!$H:$L,5,FALSE),VLOOKUP($M52,TT_Tabelle_Riferimento!$D$127:$H$164,5,FALSE))","v":10},{"$f":"+IFERROR(VLOOKUP(MO$27&\"-\"&$M52&\"_new\",Ammortamento_Finanziario!$H:$L,5,FALSE),VLOOKUP($M52,TT_Tabelle_Riferimento!$D$127:$H$164,5,FALSE))","v":10},{"$f":"+IFERROR(VLOOKUP(MP$27&\"-\"&$M52&\"_new\",Ammortamento_Finanziario!$H:$L,5,FALSE),VLOOKUP($M52,TT_Tabelle_Riferimento!$D$127:$H$164,5,FALSE))","v":10},{"$f":"+IFERROR(VLOOKUP(MQ$27&\"-\"&$M52&\"_new\",Ammortamento_Finanziario!$H:$L,5,FALSE),VLOOKUP($M52,TT_Tabelle_Riferimento!$D$127:$H$164,5,FALSE))","v":10},{"$f":"+IFERROR(VLOOKUP(MR$27&\"-\"&$M52&\"_new\",Ammortamento_Finanziario!$H:$L,5,FALSE),VLOOKUP($M52,TT_Tabelle_Riferimento!$D$127:$H$164,5,FALSE))","v":10},{"$f":"+IFERROR(VLOOKUP(MS$27&\"-\"&$M52&\"_new\",Ammortamento_Finanziario!$H:$L,5,FALSE),VLOOKUP($M52,TT_Tabelle_Riferimento!$D$127:$H$164,5,FALSE))","v":10},{"$f":"+IFERROR(VLOOKUP(MT$27&\"-\"&$M52&\"_new\",Ammortamento_Finanziario!$H:$L,5,FALSE),VLOOKUP($M52,TT_Tabelle_Riferimento!$D$127:$H$164,5,FALSE))","v":10},{"$f":"+IFERROR(VLOOKUP(MU$27&\"-\"&$M52&\"_new\",Ammortamento_Finanziario!$H:$L,5,FALSE),VLOOKUP($M52,TT_Tabelle_Riferimento!$D$127:$H$164,5,FALSE))","v":10},{"$f":"+IFERROR(VLOOKUP(MV$27&\"-\"&$M52&\"_new\",Ammortamento_Finanziario!$H:$L,5,FALSE),VLOOKUP($M52,TT_Tabelle_Riferimento!$D$127:$H$164,5,FALSE))","v":10},{"$f":"+IFERROR(VLOOKUP(MW$27&\"-\"&$M52&\"_new\",Ammortamento_Finanziario!$H:$L,5,FALSE),VLOOKUP($M52,TT_Tabelle_Riferimento!$D$127:$H$164,5,FALSE))","v":10},{"$f":"+IFERROR(VLOOKUP(MX$27&\"-\"&$M52&\"_new\",Ammortamento_Finanziario!$H:$L,5,FALSE),VLOOKUP($M52,TT_Tabelle_Riferimento!$D$127:$H$164,5,FALSE))","v":10},{"$f":"+IFERROR(VLOOKUP(MY$27&\"-\"&$M52&\"_new\",Ammortamento_Finanziario!$H:$L,5,FALSE),VLOOKUP($M52,TT_Tabelle_Riferimento!$D$127:$H$164,5,FALSE))","v":10},{"$f":"+IFERROR(VLOOKUP(MZ$27&\"-\"&$M52&\"_new\",Ammortamento_Finanziario!$H:$L,5,FALSE),VLOOKUP($M52,TT_Tabelle_Riferimento!$D$127:$H$164,5,FALSE))","v":10},{"$f":"+IFERROR(VLOOKUP(NA$27&\"-\"&$M52&\"_new\",Ammortamento_Finanziario!$H:$L,5,FALSE),VLOOKUP($M52,TT_Tabelle_Riferimento!$D$127:$H$164,5,FALSE))","v":10},{"$f":"+IFERROR(VLOOKUP(NB$27&\"-\"&$M52&\"_new\",Ammortamento_Finanziario!$H:$L,5,FALSE),VLOOKUP($M52,TT_Tabelle_Riferimento!$D$127:$H$164,5,FALSE))","v":10},{"$f":"+IFERROR(VLOOKUP(NC$27&\"-\"&$M52&\"_new\",Ammortamento_Finanziario!$H:$L,5,FALSE),VLOOKUP($M52,TT_Tabelle_Riferimento!$D$127:$H$164,5,FALSE))","v":10},{"$f":"+IFERROR(VLOOKUP(ND$27&\"-\"&$M52&\"_new\",Ammortamento_Finanziario!$H:$L,5,FALSE),VLOOKUP($M52,TT_Tabelle_Riferimento!$D$127:$H$164,5,FALSE))","v":10},{"$f":"+IFERROR(VLOOKUP(NE$27&\"-\"&$M52&\"_new\",Ammortamento_Finanziario!$H:$L,5,FALSE),VLOOKUP($M52,TT_Tabelle_Riferimento!$D$127:$H$164,5,FALSE))","v":10},{"$f":"+IFERROR(VLOOKUP(NF$27&\"-\"&$M52&\"_new\",Ammortamento_Finanziario!$H:$L,5,FALSE),VLOOKUP($M52,TT_Tabelle_Riferimento!$D$127:$H$164,5,FALSE))","v":10},{"$f":"+IFERROR(VLOOKUP(NG$27&\"-\"&$M52&\"_new\",Ammortamento_Finanziario!$H:$L,5,FALSE),VLOOKUP($M52,TT_Tabelle_Riferimento!$D$127:$H$164,5,FALSE))","v":10},{"$f":"+IFERROR(VLOOKUP(NH$27&\"-\"&$M52&\"_new\",Ammortamento_Finanziario!$H:$L,5,FALSE),VLOOKUP($M52,TT_Tabelle_Riferimento!$D$127:$H$164,5,FALSE))","v":10},{"$f":"+IFERROR(VLOOKUP(NI$27&\"-\"&$M52&\"_new\",Ammortamento_Finanziario!$H:$L,5,FALSE),VLOOKUP($M52,TT_Tabelle_Riferimento!$D$127:$H$164,5,FALSE))","v":10},{"$f":"+IFERROR(VLOOKUP(NJ$27&\"-\"&$M52&\"_new\",Ammortamento_Finanziario!$H:$L,5,FALSE),VLOOKUP($M52,TT_Tabelle_Riferimento!$D$127:$H$164,5,FALSE))","v":10},{"$f":"+IFERROR(VLOOKUP(NK$27&\"-\"&$M52&\"_new\",Ammortamento_Finanziario!$H:$L,5,FALSE),VLOOKUP($M52,TT_Tabelle_Riferimento!$D$127:$H$164,5,FALSE))","v":10},{"$f":"+IFERROR(VLOOKUP(NL$27&\"-\"&$M52&\"_new\",Ammortamento_Finanziario!$H:$L,5,FALSE),VLOOKUP($M52,TT_Tabelle_Riferimento!$D$127:$H$164,5,FALSE))","v":10},{"$f":"+IFERROR(VLOOKUP(NM$27&\"-\"&$M52&\"_new\",Ammortamento_Finanziario!$H:$L,5,FALSE),VLOOKUP($M52,TT_Tabelle_Riferimento!$D$127:$H$164,5,FALSE))","v":10},{"$f":"+IFERROR(VLOOKUP(NN$27&\"-\"&$M52&\"_new\",Ammortamento_Finanziario!$H:$L,5,FALSE),VLOOKUP($M52,TT_Tabelle_Riferimento!$D$127:$H$164,5,FALSE))","v":10},{"$f":"+IFERROR(VLOOKUP(NO$27&\"-\"&$M52&\"_new\",Ammortamento_Finanziario!$H:$L,5,FALSE),VLOOKUP($M52,TT_Tabelle_Riferimento!$D$127:$H$164,5,FALSE))","v":10},{"$f":"+IFERROR(VLOOKUP(NP$27&\"-\"&$M52&\"_new\",Ammortamento_Finanziario!$H:$L,5,FALSE),VLOOKUP($M52,TT_Tabelle_Riferimento!$D$127:$H$164,5,FALSE))","v":10},{"$f":"+IFERROR(VLOOKUP(NQ$27&\"-\"&$M52&\"_new\",Ammortamento_Finanziario!$H:$L,5,FALSE),VLOOKUP($M52,TT_Tabelle_Riferimento!$D$127:$H$164,5,FALSE))","v":10},{"$f":"+IFERROR(VLOOKUP(NR$27&\"-\"&$M52&\"_new\",Ammortamento_Finanziario!$H:$L,5,FALSE),VLOOKUP($M52,TT_Tabelle_Riferimento!$D$127:$H$164,5,FALSE))","v":10},{"$f":"+IFERROR(VLOOKUP(NS$27&\"-\"&$M52&\"_new\",Ammortamento_Finanziario!$H:$L,5,FALSE),VLOOKUP($M52,TT_Tabelle_Riferimento!$D$127:$H$164,5,FALSE))","v":10},{"$f":"+IFERROR(VLOOKUP(NT$27&\"-\"&$M52&\"_new\",Ammortamento_Finanziario!$H:$L,5,FALSE),VLOOKUP($M52,TT_Tabelle_Riferimento!$D$127:$H$164,5,FALSE))","v":10},{"$f":"+IFERROR(VLOOKUP(NU$27&\"-\"&$M52&\"_new\",Ammortamento_Finanziario!$H:$L,5,FALSE),VLOOKUP($M52,TT_Tabelle_Riferimento!$D$127:$H$164,5,FALSE))","v":10},{"$f":"+IFERROR(VLOOKUP(NV$27&\"-\"&$M52&\"_new\",Ammortamento_Finanziario!$H:$L,5,FALSE),VLOOKUP($M52,TT_Tabelle_Riferimento!$D$127:$H$164,5,FALSE))","v":10},{"$f":"+IFERROR(VLOOKUP(NW$27&\"-\"&$M52&\"_new\",Ammortamento_Finanziario!$H:$L,5,FALSE),VLOOKUP($M52,TT_Tabelle_Riferimento!$D$127:$H$164,5,FALSE))","v":10},{"$f":"+IFERROR(VLOOKUP(NX$27&\"-\"&$M52&\"_new\",Ammortamento_Finanziario!$H:$L,5,FALSE),VLOOKUP($M52,TT_Tabelle_Riferimento!$D$127:$H$164,5,FALSE))","v":10},{"$f":"+IFERROR(VLOOKUP(NY$27&\"-\"&$M52&\"_new\",Ammortamento_Finanziario!$H:$L,5,FALSE),VLOOKUP($M52,TT_Tabelle_Riferimento!$D$127:$H$164,5,FALSE))","v":10},{"$f":"+IFERROR(VLOOKUP(NZ$27&\"-\"&$M52&\"_new\",Ammortamento_Finanziario!$H:$L,5,FALSE),VLOOKUP($M52,TT_Tabelle_Riferimento!$D$127:$H$164,5,FALSE))","v":10},{"$f":"+IFERROR(VLOOKUP(OA$27&\"-\"&$M52&\"_new\",Ammortamento_Finanziario!$H:$L,5,FALSE),VLOOKUP($M52,TT_Tabelle_Riferimento!$D$127:$H$164,5,FALSE))","v":10},{"$f":"+IFERROR(VLOOKUP(OB$27&\"-\"&$M52&\"_new\",Ammortamento_Finanziario!$H:$L,5,FALSE),VLOOKUP($M52,TT_Tabelle_Riferimento!$D$127:$H$164,5,FALSE))","v":10},{"$f":"+IFERROR(VLOOKUP(OC$27&\"-\"&$M52&\"_new\",Ammortamento_Finanziario!$H:$L,5,FALSE),VLOOKUP($M52,TT_Tabelle_Riferimento!$D$127:$H$164,5,FALSE))","v":10},{"$f":"+IFERROR(VLOOKUP(OD$27&\"-\"&$M52&\"_new\",Ammortamento_Finanziario!$H:$L,5,FALSE),VLOOKUP($M52,TT_Tabelle_Riferimento!$D$127:$H$164,5,FALSE))","v":10},{"$f":"+IFERROR(VLOOKUP(OE$27&\"-\"&$M52&\"_new\",Ammortamento_Finanziario!$H:$L,5,FALSE),VLOOKUP($M52,TT_Tabelle_Riferimento!$D$127:$H$164,5,FALSE))","v":10},{"$f":"+IFERROR(VLOOKUP(OF$27&\"-\"&$M52&\"_new\",Ammortamento_Finanziario!$H:$L,5,FALSE),VLOOKUP($M52,TT_Tabelle_Riferimento!$D$127:$H$164,5,FALSE))","v":10},{"$f":"+IFERROR(VLOOKUP(OG$27&\"-\"&$M52&\"_new\",Ammortamento_Finanziario!$H:$L,5,FALSE),VLOOKUP($M52,TT_Tabelle_Riferimento!$D$127:$H$164,5,FALSE))","v":10},{"$f":"+IFERROR(VLOOKUP(OH$27&\"-\"&$M52&\"_new\",Ammortamento_Finanziario!$H:$L,5,FALSE),VLOOKUP($M52,TT_Tabelle_Riferimento!$D$127:$H$164,5,FALSE))","v":10},{"$f":"+IFERROR(VLOOKUP(OI$27&\"-\"&$M52&\"_new\",Ammortamento_Finanziario!$H:$L,5,FALSE),VLOOKUP($M52,TT_Tabelle_Riferimento!$D$127:$H$164,5,FALSE))","v":10},{"$f":"+IFERROR(VLOOKUP(OJ$27&\"-\"&$M52&\"_new\",Ammortamento_Finanziario!$H:$L,5,FALSE),VLOOKUP($M52,TT_Tabelle_Riferimento!$D$127:$H$164,5,FALSE))","v":10},{"$f":"+IFERROR(VLOOKUP(OK$27&\"-\"&$M52&\"_new\",Ammortamento_Finanziario!$H:$L,5,FALSE),VLOOKUP($M52,TT_Tabelle_Riferimento!$D$127:$H$164,5,FALSE))","v":10},{"$f":"+IFERROR(VLOOKUP(OL$27&\"-\"&$M52&\"_new\",Ammortamento_Finanziario!$H:$L,5,FALSE),VLOOKUP($M52,TT_Tabelle_Riferimento!$D$127:$H$164,5,FALSE))","v":10},{"$f":"+IFERROR(VLOOKUP(OM$27&\"-\"&$M52&\"_new\",Ammortamento_Finanziario!$H:$L,5,FALSE),VLOOKUP($M52,TT_Tabelle_Riferimento!$D$127:$H$164,5,FALSE))","v":10},{"$f":"+IFERROR(VLOOKUP(ON$27&\"-\"&$M52&\"_new\",Ammortamento_Finanziario!$H:$L,5,FALSE),VLOOKUP($M52,TT_Tabelle_Riferimento!$D$127:$H$164,5,FALSE))","v":10},{"$f":"+IFERROR(VLOOKUP(OO$27&\"-\"&$M52&\"_new\",Ammortamento_Finanziario!$H:$L,5,FALSE),VLOOKUP($M52,TT_Tabelle_Riferimento!$D$127:$H$164,5,FALSE))","v":10},{"$f":"+IFERROR(VLOOKUP(OP$27&\"-\"&$M52&\"_new\",Ammortamento_Finanziario!$H:$L,5,FALSE),VLOOKUP($M52,TT_Tabelle_Riferimento!$D$127:$H$164,5,FALSE))","v":10},{"$f":"+IFERROR(VLOOKUP(OQ$27&\"-\"&$M52&\"_new\",Ammortamento_Finanziario!$H:$L,5,FALSE),VLOOKUP($M52,TT_Tabelle_Riferimento!$D$127:$H$164,5,FALSE))","v":10},{"$f":"+IFERROR(VLOOKUP(OR$27&\"-\"&$M52&\"_new\",Ammortamento_Finanziario!$H:$L,5,FALSE),VLOOKUP($M52,TT_Tabelle_Riferimento!$D$127:$H$164,5,FALSE))","v":10},{"$f":"+IFERROR(VLOOKUP(OS$27&\"-\"&$M52&\"_new\",Ammortamento_Finanziario!$H:$L,5,FALSE),VLOOKUP($M52,TT_Tabelle_Riferimento!$D$127:$H$164,5,FALSE))","v":10},{"$f":"+IFERROR(VLOOKUP(OT$27&\"-\"&$M52&\"_new\",Ammortamento_Finanziario!$H:$L,5,FALSE),VLOOKUP($M52,TT_Tabelle_Riferimento!$D$127:$H$164,5,FALSE))","v":10},{"$f":"+IFERROR(VLOOKUP(OU$27&\"-\"&$M52&\"_new\",Ammortamento_Finanziario!$H:$L,5,FALSE),VLOOKUP($M52,TT_Tabelle_Riferimento!$D$127:$H$164,5,FALSE))","v":10},{"$f":"+IFERROR(VLOOKUP(OV$27&\"-\"&$M52&\"_new\",Ammortamento_Finanziario!$H:$L,5,FALSE),VLOOKUP($M52,TT_Tabelle_Riferimento!$D$127:$H$164,5,FALSE))","v":10},{"$f":"+IFERROR(VLOOKUP(OW$27&\"-\"&$M52&\"_new\",Ammortamento_Finanziario!$H:$L,5,FALSE),VLOOKUP($M52,TT_Tabelle_Riferimento!$D$127:$H$164,5,FALSE))","v":10},{"$f":"+IFERROR(VLOOKUP(OX$27&\"-\"&$M52&\"_new\",Ammortamento_Finanziario!$H:$L,5,FALSE),VLOOKUP($M52,TT_Tabelle_Riferimento!$D$127:$H$164,5,FALSE))","v":10},{"$f":"+IFERROR(VLOOKUP(OY$27&\"-\"&$M52&\"_new\",Ammortamento_Finanziario!$H:$L,5,FALSE),VLOOKUP($M52,TT_Tabelle_Riferimento!$D$127:$H$164,5,FALSE))","v":10},{"$f":"+IFERROR(VLOOKUP(OZ$27&\"-\"&$M52&\"_new\",Ammortamento_Finanziario!$H:$L,5,FALSE),VLOOKUP($M52,TT_Tabelle_Riferimento!$D$127:$H$164,5,FALSE))","v":10},{"$f":"+IFERROR(VLOOKUP(PA$27&\"-\"&$M52&\"_new\",Ammortamento_Finanziario!$H:$L,5,FALSE),VLOOKUP($M52,TT_Tabelle_Riferimento!$D$127:$H$164,5,FALSE))","v":10},{"$f":"+IFERROR(VLOOKUP(PB$27&\"-\"&$M52&\"_new\",Ammortamento_Finanziario!$H:$L,5,FALSE),VLOOKUP($M52,TT_Tabelle_Riferimento!$D$127:$H$164,5,FALSE))","v":10},{"$f":"+IFERROR(VLOOKUP(PC$27&\"-\"&$M52&\"_new\",Ammortamento_Finanziario!$H:$L,5,FALSE),VLOOKUP($M52,TT_Tabelle_Riferimento!$D$127:$H$164,5,FALSE))","v":10},{"$f":"+IFERROR(VLOOKUP(PD$27&\"-\"&$M52&\"_new\",Ammortamento_Finanziario!$H:$L,5,FALSE),VLOOKUP($M52,TT_Tabelle_Riferimento!$D$127:$H$164,5,FALSE))","v":10},{"$f":"+IFERROR(VLOOKUP(PE$27&\"-\"&$M52&\"_new\",Ammortamento_Finanziario!$H:$L,5,FALSE),VLOOKUP($M52,TT_Tabelle_Riferimento!$D$127:$H$164,5,FALSE))","v":10},{"$f":"+IFERROR(VLOOKUP(PF$27&\"-\"&$M52&\"_new\",Ammortamento_Finanziario!$H:$L,5,FALSE),VLOOKUP($M52,TT_Tabelle_Riferimento!$D$127:$H$164,5,FALSE))","v":10},{"$f":"+IFERROR(VLOOKUP(PG$27&\"-\"&$M52&\"_new\",Ammortamento_Finanziario!$H:$L,5,FALSE),VLOOKUP($M52,TT_Tabelle_Riferimento!$D$127:$H$164,5,FALSE))","v":10},{"$f":"+IFERROR(VLOOKUP(PH$27&\"-\"&$M52&\"_new\",Ammortamento_Finanziario!$H:$L,5,FALSE),VLOOKUP($M52,TT_Tabelle_Riferimento!$D$127:$H$164,5,FALSE))","v":10},{"$f":"+IFERROR(VLOOKUP(PI$27&\"-\"&$M52&\"_new\",Ammortamento_Finanziario!$H:$L,5,FALSE),VLOOKUP($M52,TT_Tabelle_Riferimento!$D$127:$H$164,5,FALSE))","v":10},{"$f":"+IFERROR(VLOOKUP(PJ$27&\"-\"&$M52&\"_new\",Ammortamento_Finanziario!$H:$L,5,FALSE),VLOOKUP($M52,TT_Tabelle_Riferimento!$D$127:$H$164,5,FALSE))","v":10},{"$f":"+IFERROR(VLOOKUP(PK$27&\"-\"&$M52&\"_new\",Ammortamento_Finanziario!$H:$L,5,FALSE),VLOOKUP($M52,TT_Tabelle_Riferimento!$D$127:$H$164,5,FALSE))","v":10},{"$f":"+IFERROR(VLOOKUP(PL$27&\"-\"&$M52&\"_new\",Ammortamento_Finanziario!$H:$L,5,FALSE),VLOOKUP($M52,TT_Tabelle_Riferimento!$D$127:$H$164,5,FALSE))","v":10},{"$f":"+IFERROR(VLOOKUP(PM$27&\"-\"&$M52&\"_new\",Ammortamento_Finanziario!$H:$L,5,FALSE),VLOOKUP($M52,TT_Tabelle_Riferimento!$D$127:$H$164,5,FALSE))","v":10},{"$f":"+IFERROR(VLOOKUP(PN$27&\"-\"&$M52&\"_new\",Ammortamento_Finanziario!$H:$L,5,FALSE),VLOOKUP($M52,TT_Tabelle_Riferimento!$D$127:$H$164,5,FALSE))","v":10},{"$f":"+IFERROR(VLOOKUP(PO$27&\"-\"&$M52&\"_new\",Ammortamento_Finanziario!$H:$L,5,FALSE),VLOOKUP($M52,TT_Tabelle_Riferimento!$D$127:$H$164,5,FALSE))","v":10},{"$f":"+IFERROR(VLOOKUP(PP$27&\"-\"&$M52&\"_new\",Ammortamento_Finanziario!$H:$L,5,FALSE),VLOOKUP($M52,TT_Tabelle_Riferimento!$D$127:$H$164,5,FALSE))","v":10},{"$f":"+IFERROR(VLOOKUP(PQ$27&\"-\"&$M52&\"_new\",Ammortamento_Finanziario!$H:$L,5,FALSE),VLOOKUP($M52,TT_Tabelle_Riferimento!$D$127:$H$164,5,FALSE))","v":10},{"$f":"+IFERROR(VLOOKUP(PR$27&\"-\"&$M52&\"_new\",Ammortamento_Finanziario!$H:$L,5,FALSE),VLOOKUP($M52,TT_Tabelle_Riferimento!$D$127:$H$164,5,FALSE))","v":10},{"$f":"+IFERROR(VLOOKUP(PS$27&\"-\"&$M52&\"_new\",Ammortamento_Finanziario!$H:$L,5,FALSE),VLOOKUP($M52,TT_Tabelle_Riferimento!$D$127:$H$164,5,FALSE))","v":10},{"$f":"+IFERROR(VLOOKUP(PT$27&\"-\"&$M52&\"_new\",Ammortamento_Finanziario!$H:$L,5,FALSE),VLOOKUP($M52,TT_Tabelle_Riferimento!$D$127:$H$164,5,FALSE))","v":10},{"$f":"+IFERROR(VLOOKUP(PU$27&\"-\"&$M52&\"_new\",Ammortamento_Finanziario!$H:$L,5,FALSE),VLOOKUP($M52,TT_Tabelle_Riferimento!$D$127:$H$164,5,FALSE))","v":10},{"$f":"+IFERROR(VLOOKUP(PV$27&\"-\"&$M52&\"_new\",Ammortamento_Finanziario!$H:$L,5,FALSE),VLOOKUP($M52,TT_Tabelle_Riferimento!$D$127:$H$164,5,FALSE))","v":10},{"$f":"+IFERROR(VLOOKUP(PW$27&\"-\"&$M52&\"_new\",Ammortamento_Finanziario!$H:$L,5,FALSE),VLOOKUP($M52,TT_Tabelle_Riferimento!$D$127:$H$164,5,FALSE))","v":10},{"$f":"+IFERROR(VLOOKUP(PX$27&\"-\"&$M52&\"_new\",Ammortamento_Finanziario!$H:$L,5,FALSE),VLOOKUP($M52,TT_Tabelle_Riferimento!$D$127:$H$164,5,FALSE))","v":10},{"$f":"+IFERROR(VLOOKUP(PY$27&\"-\"&$M52&\"_new\",Ammortamento_Finanziario!$H:$L,5,FALSE),VLOOKUP($M52,TT_Tabelle_Riferimento!$D$127:$H$164,5,FALSE))","v":10},{"$f":"+IFERROR(VLOOKUP(PZ$27&\"-\"&$M52&\"_new\",Ammortamento_Finanziario!$H:$L,5,FALSE),VLOOKUP($M52,TT_Tabelle_Riferimento!$D$127:$H$164,5,FALSE))","v":10},{"$f":"+IFERROR(VLOOKUP(QA$27&\"-\"&$M52&\"_new\",Ammortamento_Finanziario!$H:$L,5,FALSE),VLOOKUP($M52,TT_Tabelle_Riferimento!$D$127:$H$164,5,FALSE))","v":10},{"$f":"+IFERROR(VLOOKUP(QB$27&\"-\"&$M52&\"_new\",Ammortamento_Finanziario!$H:$L,5,FALSE),VLOOKUP($M52,TT_Tabelle_Riferimento!$D$127:$H$164,5,FALSE))","v":10},{"$f":"+IFERROR(VLOOKUP(QC$27&\"-\"&$M52&\"_new\",Ammortamento_Finanziario!$H:$L,5,FALSE),VLOOKUP($M52,TT_Tabelle_Riferimento!$D$127:$H$164,5,FALSE))","v":10},{"$f":"+IFERROR(VLOOKUP(QD$27&\"-\"&$M52&\"_new\",Ammortamento_Finanziario!$H:$L,5,FALSE),VLOOKUP($M52,TT_Tabelle_Riferimento!$D$127:$H$164,5,FALSE))","v":10},{"$f":"+IFERROR(VLOOKUP(QE$27&\"-\"&$M52&\"_new\",Ammortamento_Finanziario!$H:$L,5,FALSE),VLOOKUP($M52,TT_Tabelle_Riferimento!$D$127:$H$164,5,FALSE))","v":10},{"$f":"+IFERROR(VLOOKUP(QF$27&\"-\"&$M52&\"_new\",Ammortamento_Finanziario!$H:$L,5,FALSE),VLOOKUP($M52,TT_Tabelle_Riferimento!$D$127:$H$164,5,FALSE))","v":10},{"$f":"+IFERROR(VLOOKUP(QG$27&\"-\"&$M52&\"_new\",Ammortamento_Finanziario!$H:$L,5,FALSE),VLOOKUP($M52,TT_Tabelle_Riferimento!$D$127:$H$164,5,FALSE))","v":10},{"$f":"+IFERROR(VLOOKUP(QH$27&\"-\"&$M52&\"_new\",Ammortamento_Finanziario!$H:$L,5,FALSE),VLOOKUP($M52,TT_Tabelle_Riferimento!$D$127:$H$164,5,FALSE))","v":10},{"$f":"+IFERROR(VLOOKUP(QI$27&\"-\"&$M52&\"_new\",Ammortamento_Finanziario!$H:$L,5,FALSE),VLOOKUP($M52,TT_Tabelle_Riferimento!$D$127:$H$164,5,FALSE))","v":10},{"$f":"+IFERROR(VLOOKUP(QJ$27&\"-\"&$M52&\"_new\",Ammortamento_Finanziario!$H:$L,5,FALSE),VLOOKUP($M52,TT_Tabelle_Riferimento!$D$127:$H$164,5,FALSE))","v":10},{"$f":"+IFERROR(VLOOKUP(QK$27&\"-\"&$M52&\"_new\",Ammortamento_Finanziario!$H:$L,5,FALSE),VLOOKUP($M52,TT_Tabelle_Riferimento!$D$127:$H$164,5,FALSE))","v":10},{"$f":"+IFERROR(VLOOKUP(QL$27&\"-\"&$M52&\"_new\",Ammortamento_Finanziario!$H:$L,5,FALSE),VLOOKUP($M52,TT_Tabelle_Riferimento!$D$127:$H$164,5,FALSE))","v":10},{"$f":"+IFERROR(VLOOKUP(QM$27&\"-\"&$M52&\"_new\",Ammortamento_Finanziario!$H:$L,5,FALSE),VLOOKUP($M52,TT_Tabelle_Riferimento!$D$127:$H$164,5,FALSE))","v":10},{"$f":"+IFERROR(VLOOKUP(QN$27&\"-\"&$M52&\"_new\",Ammortamento_Finanziario!$H:$L,5,FALSE),VLOOKUP($M52,TT_Tabelle_Riferimento!$D$127:$H$164,5,FALSE))","v":10},{"$f":"+IFERROR(VLOOKUP(QO$27&\"-\"&$M52&\"_new\",Ammortamento_Finanziario!$H:$L,5,FALSE),VLOOKUP($M52,TT_Tabelle_Riferimento!$D$127:$H$164,5,FALSE))","v":10},{"$f":"+IFERROR(VLOOKUP(QP$27&\"-\"&$M52&\"_new\",Ammortamento_Finanziario!$H:$L,5,FALSE),VLOOKUP($M52,TT_Tabelle_Riferimento!$D$127:$H$164,5,FALSE))","v":10},{"$f":"+IFERROR(VLOOKUP(QQ$27&\"-\"&$M52&\"_new\",Ammortamento_Finanziario!$H:$L,5,FALSE),VLOOKUP($M52,TT_Tabelle_Riferimento!$D$127:$H$164,5,FALSE))","v":10},{"$f":"+IFERROR(VLOOKUP(QR$27&\"-\"&$M52&\"_new\",Ammortamento_Finanziario!$H:$L,5,FALSE),VLOOKUP($M52,TT_Tabelle_Riferimento!$D$127:$H$164,5,FALSE))","v":10},{"$f":"+IFERROR(VLOOKUP(QS$27&\"-\"&$M52&\"_new\",Ammortamento_Finanziario!$H:$L,5,FALSE),VLOOKUP($M52,TT_Tabelle_Riferimento!$D$127:$H$164,5,FALSE))","v":10},{"$f":"+IFERROR(VLOOKUP(QT$27&\"-\"&$M52&\"_new\",Ammortamento_Finanziario!$H:$L,5,FALSE),VLOOKUP($M52,TT_Tabelle_Riferimento!$D$127:$H$164,5,FALSE))","v":10},{"$f":"+IFERROR(VLOOKUP(QU$27&\"-\"&$M52&\"_new\",Ammortamento_Finanziario!$H:$L,5,FALSE),VLOOKUP($M52,TT_Tabelle_Riferimento!$D$127:$H$164,5,FALSE))","v":10},{"$f":"+IFERROR(VLOOKUP(QV$27&\"-\"&$M52&\"_new\",Ammortamento_Finanziario!$H:$L,5,FALSE),VLOOKUP($M52,TT_Tabelle_Riferimento!$D$127:$H$164,5,FALSE))","v":10},{"$f":"+IFERROR(VLOOKUP(QW$27&\"-\"&$M52&\"_new\",Ammortamento_Finanziario!$H:$L,5,FALSE),VLOOKUP($M52,TT_Tabelle_Riferimento!$D$127:$H$164,5,FALSE))","v":10},{"$f":"+IFERROR(VLOOKUP(QX$27&\"-\"&$M52&\"_new\",Ammortamento_Finanziario!$H:$L,5,FALSE),VLOOKUP($M52,TT_Tabelle_Riferimento!$D$127:$H$164,5,FALSE))","v":10},{"$f":"+IFERROR(VLOOKUP(QY$27&\"-\"&$M52&\"_new\",Ammortamento_Finanziario!$H:$L,5,FALSE),VLOOKUP($M52,TT_Tabelle_Riferimento!$D$127:$H$164,5,FALSE))","v":10},{"$f":"+IFERROR(VLOOKUP(QZ$27&\"-\"&$M52&\"_new\",Ammortamento_Finanziario!$H:$L,5,FALSE),VLOOKUP($M52,TT_Tabelle_Riferimento!$D$127:$H$164,5,FALSE))","v":10},{"$f":"+IFERROR(VLOOKUP(RA$27&\"-\"&$M52&\"_new\",Ammortamento_Finanziario!$H:$L,5,FALSE),VLOOKUP($M52,TT_Tabelle_Riferimento!$D$127:$H$164,5,FALSE))","v":10},{"$f":"+IFERROR(VLOOKUP(RB$27&\"-\"&$M52&\"_new\",Ammortamento_Finanziario!$H:$L,5,FALSE),VLOOKUP($M52,TT_Tabelle_Riferimento!$D$127:$H$164,5,FALSE))","v":10},{"$f":"+IFERROR(VLOOKUP(RC$27&\"-\"&$M52&\"_new\",Ammortamento_Finanziario!$H:$L,5,FALSE),VLOOKUP($M52,TT_Tabelle_Riferimento!$D$127:$H$164,5,FALSE))","v":10},{"$f":"+IFERROR(VLOOKUP(RD$27&\"-\"&$M52&\"_new\",Ammortamento_Finanziario!$H:$L,5,FALSE),VLOOKUP($M52,TT_Tabelle_Riferimento!$D$127:$H$164,5,FALSE))","v":10},{"$f":"+IFERROR(VLOOKUP(RE$27&\"-\"&$M52&\"_new\",Ammortamento_Finanziario!$H:$L,5,FALSE),VLOOKUP($M52,TT_Tabelle_Riferimento!$D$127:$H$164,5,FALSE))","v":10},{"$f":"+IFERROR(VLOOKUP(RF$27&\"-\"&$M52&\"_new\",Ammortamento_Finanziario!$H:$L,5,FALSE),VLOOKUP($M52,TT_Tabelle_Riferimento!$D$127:$H$164,5,FALSE))","v":10},{"$f":"+IFERROR(VLOOKUP(RG$27&\"-\"&$M52&\"_new\",Ammortamento_Finanziario!$H:$L,5,FALSE),VLOOKUP($M52,TT_Tabelle_Riferimento!$D$127:$H$164,5,FALSE))","v":10},{"$f":"+IFERROR(VLOOKUP(RH$27&\"-\"&$M52&\"_new\",Ammortamento_Finanziario!$H:$L,5,FALSE),VLOOKUP($M52,TT_Tabelle_Riferimento!$D$127:$H$164,5,FALSE))","v":10},{"$f":"+IFERROR(VLOOKUP(RI$27&\"-\"&$M52&\"_new\",Ammortamento_Finanziario!$H:$L,5,FALSE),VLOOKUP($M52,TT_Tabelle_Riferimento!$D$127:$H$164,5,FALSE))","v":10},{"$f":"+IFERROR(VLOOKUP(RJ$27&\"-\"&$M52&\"_new\",Ammortamento_Finanziario!$H:$L,5,FALSE),VLOOKUP($M52,TT_Tabelle_Riferimento!$D$127:$H$164,5,FALSE))","v":10},{"$f":"+IFERROR(VLOOKUP(RK$27&\"-\"&$M52&\"_new\",Ammortamento_Finanziario!$H:$L,5,FALSE),VLOOKUP($M52,TT_Tabelle_Riferimento!$D$127:$H$164,5,FALSE))","v":10},{"$f":"+IFERROR(VLOOKUP(RL$27&\"-\"&$M52&\"_new\",Ammortamento_Finanziario!$H:$L,5,FALSE),VLOOKUP($M52,TT_Tabelle_Riferimento!$D$127:$H$164,5,FALSE))","v":10},{"$f":"+IFERROR(VLOOKUP(RM$27&\"-\"&$M52&\"_new\",Ammortamento_Finanziario!$H:$L,5,FALSE),VLOOKUP($M52,TT_Tabelle_Riferimento!$D$127:$H$164,5,FALSE))","v":10},{"$f":"+IFERROR(VLOOKUP(RN$27&\"-\"&$M52&\"_new\",Ammortamento_Finanziario!$H:$L,5,FALSE),VLOOKUP($M52,TT_Tabelle_Riferimento!$D$127:$H$164,5,FALSE))","v":10},{"$f":"+IFERROR(VLOOKUP(RO$27&\"-\"&$M52&\"_new\",Ammortamento_Finanziario!$H:$L,5,FALSE),VLOOKUP($M52,TT_Tabelle_Riferimento!$D$127:$H$164,5,FALSE))","v":10},{"$f":"+IFERROR(VLOOKUP(RP$27&\"-\"&$M52&\"_new\",Ammortamento_Finanziario!$H:$L,5,FALSE),VLOOKUP($M52,TT_Tabelle_Riferimento!$D$127:$H$164,5,FALSE))","v":10},{"$f":"+IFERROR(VLOOKUP(RQ$27&\"-\"&$M52&\"_new\",Ammortamento_Finanziario!$H:$L,5,FALSE),VLOOKUP($M52,TT_Tabelle_Riferimento!$D$127:$H$164,5,FALSE))","v":10},{"$f":"+IFERROR(VLOOKUP(RR$27&\"-\"&$M52&\"_new\",Ammortamento_Finanziario!$H:$L,5,FALSE),VLOOKUP($M52,TT_Tabelle_Riferimento!$D$127:$H$164,5,FALSE))","v":10},{"$f":"+IFERROR(VLOOKUP(RS$27&\"-\"&$M52&\"_new\",Ammortamento_Finanziario!$H:$L,5,FALSE),VLOOKUP($M52,TT_Tabelle_Riferimento!$D$127:$H$164,5,FALSE))","v":10},{"$f":"+IFERROR(VLOOKUP(RT$27&\"-\"&$M52&\"_new\",Ammortamento_Finanziario!$H:$L,5,FALSE),VLOOKUP($M52,TT_Tabelle_Riferimento!$D$127:$H$164,5,FALSE))","v":10},{"$f":"+IFERROR(VLOOKUP(RU$27&\"-\"&$M52&\"_new\",Ammortamento_Finanziario!$H:$L,5,FALSE),VLOOKUP($M52,TT_Tabelle_Riferimento!$D$127:$H$164,5,FALSE))","v":10},{"$f":"+IFERROR(VLOOKUP(RV$27&\"-\"&$M52&\"_new\",Ammortamento_Finanziario!$H:$L,5,FALSE),VLOOKUP($M52,TT_Tabelle_Riferimento!$D$127:$H$164,5,FALSE))","v":10}]
[null,null,null,null,2024,2025,2026,2027,2028,2029,null,null,26,0,0,0,0,0,0,0,0,0,0,0,0,0,0,0,0,0,0,0,0,0,0,0,0,0,0,0,0,0,0,0,0,0,0,0,0,0,0,0,0,0,0,0,0,0,0,0,0,0,0,0,0,0,0,0,0,0,0,0,0,0,0,0,0,0,0,0,0,0,0,0,0,0,0,0,0,0,0,0,0,0,0,0,0,0,0,0,0,0,0,0,0,0,0,0,0,0,0,0,0,0,0,0,0,0,0,0,0,0,0,0,0,0,0,0,0,0,0,0,0,0,0,0,0,0,0,0,0,0,0,0,0,0,0,0,0,0,0,0,0,0,0,0,0,0,0,0,0,0,0,0,0,0,0,0,0,0,0,0,0,0,0,0,0,0,0,0,0,0,0,0,0,0,0,0,0,0,0,0,0,0,0,0,0,0,0,0,0,0,0,0,0,0,0,0,0,0,0,0,0,0,0,0,0,0,0,0,0,0,0,0,0,0,0,0,0,0,0,0,0,0,0,0,0,0,0,0,0,0,0,0,0,0,0,0,0,0,0,0,0,0,0,0,0,0,0,0,0,0,0,0,0,0,0,0,0,0,0,0,0,0,0,0,0,0,0,0,0,0,0,0,0,0,0,0,0,0,0,0,0,0,0,0,0,0,0,0,0,0,{"$f":"+IFERROR(VLOOKUP(KQ$27&\"-\"&$M53&\"_new\",Ammortamento_Finanziario!$H:$L,5,FALSE),VLOOKUP($M53,TT_Tabelle_Riferimento!$D$127:$H$164,5,FALSE))","v":5},{"$f":"+IFERROR(VLOOKUP(KR$27&\"-\"&$M53&\"_new\",Ammortamento_Finanziario!$H:$L,5,FALSE),VLOOKUP($M53,TT_Tabelle_Riferimento!$D$127:$H$164,5,FALSE))","v":5},{"$f":"+IFERROR(VLOOKUP(KS$27&\"-\"&$M53&\"_new\",Ammortamento_Finanziario!$H:$L,5,FALSE),VLOOKUP($M53,TT_Tabelle_Riferimento!$D$127:$H$164,5,FALSE))","v":5},{"$f":"+IFERROR(VLOOKUP(KT$27&\"-\"&$M53&\"_new\",Ammortamento_Finanziario!$H:$L,5,FALSE),VLOOKUP($M53,TT_Tabelle_Riferimento!$D$127:$H$164,5,FALSE))","v":5},{"$f":"+IFERROR(VLOOKUP(KU$27&\"-\"&$M53&\"_new\",Ammortamento_Finanziario!$H:$L,5,FALSE),VLOOKUP($M53,TT_Tabelle_Riferimento!$D$127:$H$164,5,FALSE))","v":5},{"$f":"+IFERROR(VLOOKUP(KV$27&\"-\"&$M53&\"_new\",Ammortamento_Finanziario!$H:$L,5,FALSE),VLOOKUP($M53,TT_Tabelle_Riferimento!$D$127:$H$164,5,FALSE))","v":5},{"$f":"+IFERROR(VLOOKUP(KW$27&\"-\"&$M53&\"_new\",Ammortamento_Finanziario!$H:$L,5,FALSE),VLOOKUP($M53,TT_Tabelle_Riferimento!$D$127:$H$164,5,FALSE))","v":5},{"$f":"+IFERROR(VLOOKUP(KX$27&\"-\"&$M53&\"_new\",Ammortamento_Finanziario!$H:$L,5,FALSE),VLOOKUP($M53,TT_Tabelle_Riferimento!$D$127:$H$164,5,FALSE))","v":5},{"$f":"+IFERROR(VLOOKUP(KY$27&\"-\"&$M53&\"_new\",Ammortamento_Finanziario!$H:$L,5,FALSE),VLOOKUP($M53,TT_Tabelle_Riferimento!$D$127:$H$164,5,FALSE))","v":5},{"$f":"+IFERROR(VLOOKUP(KZ$27&\"-\"&$M53&\"_new\",Ammortamento_Finanziario!$H:$L,5,FALSE),VLOOKUP($M53,TT_Tabelle_Riferimento!$D$127:$H$164,5,FALSE))","v":5},{"$f":"+IFERROR(VLOOKUP(LA$27&\"-\"&$M53&\"_new\",Ammortamento_Finanziario!$H:$L,5,FALSE),VLOOKUP($M53,TT_Tabelle_Riferimento!$D$127:$H$164,5,FALSE))","v":5},{"$f":"+IFERROR(VLOOKUP(LB$27&\"-\"&$M53&\"_new\",Ammortamento_Finanziario!$H:$L,5,FALSE),VLOOKUP($M53,TT_Tabelle_Riferimento!$D$127:$H$164,5,FALSE))","v":5},{"$f":"+IFERROR(VLOOKUP(LC$27&\"-\"&$M53&\"_new\",Ammortamento_Finanziario!$H:$L,5,FALSE),VLOOKUP($M53,TT_Tabelle_Riferimento!$D$127:$H$164,5,FALSE))","v":5},{"$f":"+IFERROR(VLOOKUP(LD$27&\"-\"&$M53&\"_new\",Ammortamento_Finanziario!$H:$L,5,FALSE),VLOOKUP($M53,TT_Tabelle_Riferimento!$D$127:$H$164,5,FALSE))","v":5},{"$f":"+IFERROR(VLOOKUP(LE$27&\"-\"&$M53&\"_new\",Ammortamento_Finanziario!$H:$L,5,FALSE),VLOOKUP($M53,TT_Tabelle_Riferimento!$D$127:$H$164,5,FALSE))","v":5},{"$f":"+IFERROR(VLOOKUP(LF$27&\"-\"&$M53&\"_new\",Ammortamento_Finanziario!$H:$L,5,FALSE),VLOOKUP($M53,TT_Tabelle_Riferimento!$D$127:$H$164,5,FALSE))","v":5},{"$f":"+IFERROR(VLOOKUP(LG$27&\"-\"&$M53&\"_new\",Ammortamento_Finanziario!$H:$L,5,FALSE),VLOOKUP($M53,TT_Tabelle_Riferimento!$D$127:$H$164,5,FALSE))","v":5},{"$f":"+IFERROR(VLOOKUP(LH$27&\"-\"&$M53&\"_new\",Ammortamento_Finanziario!$H:$L,5,FALSE),VLOOKUP($M53,TT_Tabelle_Riferimento!$D$127:$H$164,5,FALSE))","v":5},{"$f":"+IFERROR(VLOOKUP(LI$27&\"-\"&$M53&\"_new\",Ammortamento_Finanziario!$H:$L,5,FALSE),VLOOKUP($M53,TT_Tabelle_Riferimento!$D$127:$H$164,5,FALSE))","v":5},{"$f":"+IFERROR(VLOOKUP(LJ$27&\"-\"&$M53&\"_new\",Ammortamento_Finanziario!$H:$L,5,FALSE),VLOOKUP($M53,TT_Tabelle_Riferimento!$D$127:$H$164,5,FALSE))","v":5},{"$f":"+IFERROR(VLOOKUP(LK$27&\"-\"&$M53&\"_new\",Ammortamento_Finanziario!$H:$L,5,FALSE),VLOOKUP($M53,TT_Tabelle_Riferimento!$D$127:$H$164,5,FALSE))","v":5},{"$f":"+IFERROR(VLOOKUP(LL$27&\"-\"&$M53&\"_new\",Ammortamento_Finanziario!$H:$L,5,FALSE),VLOOKUP($M53,TT_Tabelle_Riferimento!$D$127:$H$164,5,FALSE))","v":5},{"$f":"+IFERROR(VLOOKUP(LM$27&\"-\"&$M53&\"_new\",Ammortamento_Finanziario!$H:$L,5,FALSE),VLOOKUP($M53,TT_Tabelle_Riferimento!$D$127:$H$164,5,FALSE))","v":5},{"$f":"+IFERROR(VLOOKUP(LN$27&\"-\"&$M53&\"_new\",Ammortamento_Finanziario!$H:$L,5,FALSE),VLOOKUP($M53,TT_Tabelle_Riferimento!$D$127:$H$164,5,FALSE))","v":5},{"$f":"+IFERROR(VLOOKUP(LO$27&\"-\"&$M53&\"_new\",Ammortamento_Finanziario!$H:$L,5,FALSE),VLOOKUP($M53,TT_Tabelle_Riferimento!$D$127:$H$164,5,FALSE))","v":5},{"$f":"+IFERROR(VLOOKUP(LP$27&\"-\"&$M53&\"_new\",Ammortamento_Finanziario!$H:$L,5,FALSE),VLOOKUP($M53,TT_Tabelle_Riferimento!$D$127:$H$164,5,FALSE))","v":5},{"$f":"+IFERROR(VLOOKUP(LQ$27&\"-\"&$M53&\"_new\",Ammortamento_Finanziario!$H:$L,5,FALSE),VLOOKUP($M53,TT_Tabelle_Riferimento!$D$127:$H$164,5,FALSE))","v":5},{"$f":"+IFERROR(VLOOKUP(LR$27&\"-\"&$M53&\"_new\",Ammortamento_Finanziario!$H:$L,5,FALSE),VLOOKUP($M53,TT_Tabelle_Riferimento!$D$127:$H$164,5,FALSE))","v":5},{"$f":"+IFERROR(VLOOKUP(LS$27&\"-\"&$M53&\"_new\",Ammortamento_Finanziario!$H:$L,5,FALSE),VLOOKUP($M53,TT_Tabelle_Riferimento!$D$127:$H$164,5,FALSE))","v":5},{"$f":"+IFERROR(VLOOKUP(LT$27&\"-\"&$M53&\"_new\",Ammortamento_Finanziario!$H:$L,5,FALSE),VLOOKUP($M53,TT_Tabelle_Riferimento!$D$127:$H$164,5,FALSE))","v":5},{"$f":"+IFERROR(VLOOKUP(LU$27&\"-\"&$M53&\"_new\",Ammortamento_Finanziario!$H:$L,5,FALSE),VLOOKUP($M53,TT_Tabelle_Riferimento!$D$127:$H$164,5,FALSE))","v":5},{"$f":"+IFERROR(VLOOKUP(LV$27&\"-\"&$M53&\"_new\",Ammortamento_Finanziario!$H:$L,5,FALSE),VLOOKUP($M53,TT_Tabelle_Riferimento!$D$127:$H$164,5,FALSE))","v":5},{"$f":"+IFERROR(VLOOKUP(LW$27&\"-\"&$M53&\"_new\",Ammortamento_Finanziario!$H:$L,5,FALSE),VLOOKUP($M53,TT_Tabelle_Riferimento!$D$127:$H$164,5,FALSE))","v":5},{"$f":"+IFERROR(VLOOKUP(LX$27&\"-\"&$M53&\"_new\",Ammortamento_Finanziario!$H:$L,5,FALSE),VLOOKUP($M53,TT_Tabelle_Riferimento!$D$127:$H$164,5,FALSE))","v":5},{"$f":"+IFERROR(VLOOKUP(LY$27&\"-\"&$M53&\"_new\",Ammortamento_Finanziario!$H:$L,5,FALSE),VLOOKUP($M53,TT_Tabelle_Riferimento!$D$127:$H$164,5,FALSE))","v":5},{"$f":"+IFERROR(VLOOKUP(LZ$27&\"-\"&$M53&\"_new\",Ammortamento_Finanziario!$H:$L,5,FALSE),VLOOKUP($M53,TT_Tabelle_Riferimento!$D$127:$H$164,5,FALSE))","v":5},{"$f":"+IFERROR(VLOOKUP(MA$27&\"-\"&$M53&\"_new\",Ammortamento_Finanziario!$H:$L,5,FALSE),VLOOKUP($M53,TT_Tabelle_Riferimento!$D$127:$H$164,5,FALSE))","v":5},{"$f":"+IFERROR(VLOOKUP(MB$27&\"-\"&$M53&\"_new\",Ammortamento_Finanziario!$H:$L,5,FALSE),VLOOKUP($M53,TT_Tabelle_Riferimento!$D$127:$H$164,5,FALSE))","v":5},{"$f":"+IFERROR(VLOOKUP(MC$27&\"-\"&$M53&\"_new\",Ammortamento_Finanziario!$H:$L,5,FALSE),VLOOKUP($M53,TT_Tabelle_Riferimento!$D$127:$H$164,5,FALSE))","v":5},{"$f":"+IFERROR(VLOOKUP(MD$27&\"-\"&$M53&\"_new\",Ammortamento_Finanziario!$H:$L,5,FALSE),VLOOKUP($M53,TT_Tabelle_Riferimento!$D$127:$H$164,5,FALSE))","v":5},{"$f":"+IFERROR(VLOOKUP(ME$27&\"-\"&$M53&\"_new\",Ammortamento_Finanziario!$H:$L,5,FALSE),VLOOKUP($M53,TT_Tabelle_Riferimento!$D$127:$H$164,5,FALSE))","v":5},{"$f":"+IFERROR(VLOOKUP(MF$27&\"-\"&$M53&\"_new\",Ammortamento_Finanziario!$H:$L,5,FALSE),VLOOKUP($M53,TT_Tabelle_Riferimento!$D$127:$H$164,5,FALSE))","v":5},{"$f":"+IFERROR(VLOOKUP(MG$27&\"-\"&$M53&\"_new\",Ammortamento_Finanziario!$H:$L,5,FALSE),VLOOKUP($M53,TT_Tabelle_Riferimento!$D$127:$H$164,5,FALSE))","v":5},{"$f":"+IFERROR(VLOOKUP(MH$27&\"-\"&$M53&\"_new\",Ammortamento_Finanziario!$H:$L,5,FALSE),VLOOKUP($M53,TT_Tabelle_Riferimento!$D$127:$H$164,5,FALSE))","v":5},{"$f":"+IFERROR(VLOOKUP(MI$27&\"-\"&$M53&\"_new\",Ammortamento_Finanziario!$H:$L,5,FALSE),VLOOKUP($M53,TT_Tabelle_Riferimento!$D$127:$H$164,5,FALSE))","v":5},{"$f":"+IFERROR(VLOOKUP(MJ$27&\"-\"&$M53&\"_new\",Ammortamento_Finanziario!$H:$L,5,FALSE),VLOOKUP($M53,TT_Tabelle_Riferimento!$D$127:$H$164,5,FALSE))","v":5},{"$f":"+IFERROR(VLOOKUP(MK$27&\"-\"&$M53&\"_new\",Ammortamento_Finanziario!$H:$L,5,FALSE),VLOOKUP($M53,TT_Tabelle_Riferimento!$D$127:$H$164,5,FALSE))","v":5},{"$f":"+IFERROR(VLOOKUP(ML$27&\"-\"&$M53&\"_new\",Ammortamento_Finanziario!$H:$L,5,FALSE),VLOOKUP($M53,TT_Tabelle_Riferimento!$D$127:$H$164,5,FALSE))","v":5},{"$f":"+IFERROR(VLOOKUP(MM$27&\"-\"&$M53&\"_new\",Ammortamento_Finanziario!$H:$L,5,FALSE),VLOOKUP($M53,TT_Tabelle_Riferimento!$D$127:$H$164,5,FALSE))","v":5},{"$f":"+IFERROR(VLOOKUP(MN$27&\"-\"&$M53&\"_new\",Ammortamento_Finanziario!$H:$L,5,FALSE),VLOOKUP($M53,TT_Tabelle_Riferimento!$D$127:$H$164,5,FALSE))","v":5},{"$f":"+IFERROR(VLOOKUP(MO$27&\"-\"&$M53&\"_new\",Ammortamento_Finanziario!$H:$L,5,FALSE),VLOOKUP($M53,TT_Tabelle_Riferimento!$D$127:$H$164,5,FALSE))","v":5},{"$f":"+IFERROR(VLOOKUP(MP$27&\"-\"&$M53&\"_new\",Ammortamento_Finanziario!$H:$L,5,FALSE),VLOOKUP($M53,TT_Tabelle_Riferimento!$D$127:$H$164,5,FALSE))","v":5},{"$f":"+IFERROR(VLOOKUP(MQ$27&\"-\"&$M53&\"_new\",Ammortamento_Finanziario!$H:$L,5,FALSE),VLOOKUP($M53,TT_Tabelle_Riferimento!$D$127:$H$164,5,FALSE))","v":5},{"$f":"+IFERROR(VLOOKUP(MR$27&\"-\"&$M53&\"_new\",Ammortamento_Finanziario!$H:$L,5,FALSE),VLOOKUP($M53,TT_Tabelle_Riferimento!$D$127:$H$164,5,FALSE))","v":5},{"$f":"+IFERROR(VLOOKUP(MS$27&\"-\"&$M53&\"_new\",Ammortamento_Finanziario!$H:$L,5,FALSE),VLOOKUP($M53,TT_Tabelle_Riferimento!$D$127:$H$164,5,FALSE))","v":5},{"$f":"+IFERROR(VLOOKUP(MT$27&\"-\"&$M53&\"_new\",Ammortamento_Finanziario!$H:$L,5,FALSE),VLOOKUP($M53,TT_Tabelle_Riferimento!$D$127:$H$164,5,FALSE))","v":5},{"$f":"+IFERROR(VLOOKUP(MU$27&\"-\"&$M53&\"_new\",Ammortamento_Finanziario!$H:$L,5,FALSE),VLOOKUP($M53,TT_Tabelle_Riferimento!$D$127:$H$164,5,FALSE))","v":5},{"$f":"+IFERROR(VLOOKUP(MV$27&\"-\"&$M53&\"_new\",Ammortamento_Finanziario!$H:$L,5,FALSE),VLOOKUP($M53,TT_Tabelle_Riferimento!$D$127:$H$164,5,FALSE))","v":5},{"$f":"+IFERROR(VLOOKUP(MW$27&\"-\"&$M53&\"_new\",Ammortamento_Finanziario!$H:$L,5,FALSE),VLOOKUP($M53,TT_Tabelle_Riferimento!$D$127:$H$164,5,FALSE))","v":5},{"$f":"+IFERROR(VLOOKUP(MX$27&\"-\"&$M53&\"_new\",Ammortamento_Finanziario!$H:$L,5,FALSE),VLOOKUP($M53,TT_Tabelle_Riferimento!$D$127:$H$164,5,FALSE))","v":5},{"$f":"+IFERROR(VLOOKUP(MY$27&\"-\"&$M53&\"_new\",Ammortamento_Finanziario!$H:$L,5,FALSE),VLOOKUP($M53,TT_Tabelle_Riferimento!$D$127:$H$164,5,FALSE))","v":5},{"$f":"+IFERROR(VLOOKUP(MZ$27&\"-\"&$M53&\"_new\",Ammortamento_Finanziario!$H:$L,5,FALSE),VLOOKUP($M53,TT_Tabelle_Riferimento!$D$127:$H$164,5,FALSE))","v":5},{"$f":"+IFERROR(VLOOKUP(NA$27&\"-\"&$M53&\"_new\",Ammortamento_Finanziario!$H:$L,5,FALSE),VLOOKUP($M53,TT_Tabelle_Riferimento!$D$127:$H$164,5,FALSE))","v":5},{"$f":"+IFERROR(VLOOKUP(NB$27&\"-\"&$M53&\"_new\",Ammortamento_Finanziario!$H:$L,5,FALSE),VLOOKUP($M53,TT_Tabelle_Riferimento!$D$127:$H$164,5,FALSE))","v":5},{"$f":"+IFERROR(VLOOKUP(NC$27&\"-\"&$M53&\"_new\",Ammortamento_Finanziario!$H:$L,5,FALSE),VLOOKUP($M53,TT_Tabelle_Riferimento!$D$127:$H$164,5,FALSE))","v":5},{"$f":"+IFERROR(VLOOKUP(ND$27&\"-\"&$M53&\"_new\",Ammortamento_Finanziario!$H:$L,5,FALSE),VLOOKUP($M53,TT_Tabelle_Riferimento!$D$127:$H$164,5,FALSE))","v":5},{"$f":"+IFERROR(VLOOKUP(NE$27&\"-\"&$M53&\"_new\",Ammortamento_Finanziario!$H:$L,5,FALSE),VLOOKUP($M53,TT_Tabelle_Riferimento!$D$127:$H$164,5,FALSE))","v":5},{"$f":"+IFERROR(VLOOKUP(NF$27&\"-\"&$M53&\"_new\",Ammortamento_Finanziario!$H:$L,5,FALSE),VLOOKUP($M53,TT_Tabelle_Riferimento!$D$127:$H$164,5,FALSE))","v":5},{"$f":"+IFERROR(VLOOKUP(NG$27&\"-\"&$M53&\"_new\",Ammortamento_Finanziario!$H:$L,5,FALSE),VLOOKUP($M53,TT_Tabelle_Riferimento!$D$127:$H$164,5,FALSE))","v":5},{"$f":"+IFERROR(VLOOKUP(NH$27&\"-\"&$M53&\"_new\",Ammortamento_Finanziario!$H:$L,5,FALSE),VLOOKUP($M53,TT_Tabelle_Riferimento!$D$127:$H$164,5,FALSE))","v":5},{"$f":"+IFERROR(VLOOKUP(NI$27&\"-\"&$M53&\"_new\",Ammortamento_Finanziario!$H:$L,5,FALSE),VLOOKUP($M53,TT_Tabelle_Riferimento!$D$127:$H$164,5,FALSE))","v":5},{"$f":"+IFERROR(VLOOKUP(NJ$27&\"-\"&$M53&\"_new\",Ammortamento_Finanziario!$H:$L,5,FALSE),VLOOKUP($M53,TT_Tabelle_Riferimento!$D$127:$H$164,5,FALSE))","v":5},{"$f":"+IFERROR(VLOOKUP(NK$27&\"-\"&$M53&\"_new\",Ammortamento_Finanziario!$H:$L,5,FALSE),VLOOKUP($M53,TT_Tabelle_Riferimento!$D$127:$H$164,5,FALSE))","v":5},{"$f":"+IFERROR(VLOOKUP(NL$27&\"-\"&$M53&\"_new\",Ammortamento_Finanziario!$H:$L,5,FALSE),VLOOKUP($M53,TT_Tabelle_Riferimento!$D$127:$H$164,5,FALSE))","v":5},{"$f":"+IFERROR(VLOOKUP(NM$27&\"-\"&$M53&\"_new\",Ammortamento_Finanziario!$H:$L,5,FALSE),VLOOKUP($M53,TT_Tabelle_Riferimento!$D$127:$H$164,5,FALSE))","v":5},{"$f":"+IFERROR(VLOOKUP(NN$27&\"-\"&$M53&\"_new\",Ammortamento_Finanziario!$H:$L,5,FALSE),VLOOKUP($M53,TT_Tabelle_Riferimento!$D$127:$H$164,5,FALSE))","v":5},{"$f":"+IFERROR(VLOOKUP(NO$27&\"-\"&$M53&\"_new\",Ammortamento_Finanziario!$H:$L,5,FALSE),VLOOKUP($M53,TT_Tabelle_Riferimento!$D$127:$H$164,5,FALSE))","v":5},{"$f":"+IFERROR(VLOOKUP(NP$27&\"-\"&$M53&\"_new\",Ammortamento_Finanziario!$H:$L,5,FALSE),VLOOKUP($M53,TT_Tabelle_Riferimento!$D$127:$H$164,5,FALSE))","v":5},{"$f":"+IFERROR(VLOOKUP(NQ$27&\"-\"&$M53&\"_new\",Ammortamento_Finanziario!$H:$L,5,FALSE),VLOOKUP($M53,TT_Tabelle_Riferimento!$D$127:$H$164,5,FALSE))","v":5},{"$f":"+IFERROR(VLOOKUP(NR$27&\"-\"&$M53&\"_new\",Ammortamento_Finanziario!$H:$L,5,FALSE),VLOOKUP($M53,TT_Tabelle_Riferimento!$D$127:$H$164,5,FALSE))","v":5},{"$f":"+IFERROR(VLOOKUP(NS$27&\"-\"&$M53&\"_new\",Ammortamento_Finanziario!$H:$L,5,FALSE),VLOOKUP($M53,TT_Tabelle_Riferimento!$D$127:$H$164,5,FALSE))","v":5},{"$f":"+IFERROR(VLOOKUP(NT$27&\"-\"&$M53&\"_new\",Ammortamento_Finanziario!$H:$L,5,FALSE),VLOOKUP($M53,TT_Tabelle_Riferimento!$D$127:$H$164,5,FALSE))","v":5},{"$f":"+IFERROR(VLOOKUP(NU$27&\"-\"&$M53&\"_new\",Ammortamento_Finanziario!$H:$L,5,FALSE),VLOOKUP($M53,TT_Tabelle_Riferimento!$D$127:$H$164,5,FALSE))","v":5},{"$f":"+IFERROR(VLOOKUP(NV$27&\"-\"&$M53&\"_new\",Ammortamento_Finanziario!$H:$L,5,FALSE),VLOOKUP($M53,TT_Tabelle_Riferimento!$D$127:$H$164,5,FALSE))","v":5},{"$f":"+IFERROR(VLOOKUP(NW$27&\"-\"&$M53&\"_new\",Ammortamento_Finanziario!$H:$L,5,FALSE),VLOOKUP($M53,TT_Tabelle_Riferimento!$D$127:$H$164,5,FALSE))","v":5},{"$f":"+IFERROR(VLOOKUP(NX$27&\"-\"&$M53&\"_new\",Ammortamento_Finanziario!$H:$L,5,FALSE),VLOOKUP($M53,TT_Tabelle_Riferimento!$D$127:$H$164,5,FALSE))","v":5},{"$f":"+IFERROR(VLOOKUP(NY$27&\"-\"&$M53&\"_new\",Ammortamento_Finanziario!$H:$L,5,FALSE),VLOOKUP($M53,TT_Tabelle_Riferimento!$D$127:$H$164,5,FALSE))","v":5},{"$f":"+IFERROR(VLOOKUP(NZ$27&\"-\"&$M53&\"_new\",Ammortamento_Finanziario!$H:$L,5,FALSE),VLOOKUP($M53,TT_Tabelle_Riferimento!$D$127:$H$164,5,FALSE))","v":5},{"$f":"+IFERROR(VLOOKUP(OA$27&\"-\"&$M53&\"_new\",Ammortamento_Finanziario!$H:$L,5,FALSE),VLOOKUP($M53,TT_Tabelle_Riferimento!$D$127:$H$164,5,FALSE))","v":5},{"$f":"+IFERROR(VLOOKUP(OB$27&\"-\"&$M53&\"_new\",Ammortamento_Finanziario!$H:$L,5,FALSE),VLOOKUP($M53,TT_Tabelle_Riferimento!$D$127:$H$164,5,FALSE))","v":5},{"$f":"+IFERROR(VLOOKUP(OC$27&\"-\"&$M53&\"_new\",Ammortamento_Finanziario!$H:$L,5,FALSE),VLOOKUP($M53,TT_Tabelle_Riferimento!$D$127:$H$164,5,FALSE))","v":5},{"$f":"+IFERROR(VLOOKUP(OD$27&\"-\"&$M53&\"_new\",Ammortamento_Finanziario!$H:$L,5,FALSE),VLOOKUP($M53,TT_Tabelle_Riferimento!$D$127:$H$164,5,FALSE))","v":5},{"$f":"+IFERROR(VLOOKUP(OE$27&\"-\"&$M53&\"_new\",Ammortamento_Finanziario!$H:$L,5,FALSE),VLOOKUP($M53,TT_Tabelle_Riferimento!$D$127:$H$164,5,FALSE))","v":5},{"$f":"+IFERROR(VLOOKUP(OF$27&\"-\"&$M53&\"_new\",Ammortamento_Finanziario!$H:$L,5,FALSE),VLOOKUP($M53,TT_Tabelle_Riferimento!$D$127:$H$164,5,FALSE))","v":5},{"$f":"+IFERROR(VLOOKUP(OG$27&\"-\"&$M53&\"_new\",Ammortamento_Finanziario!$H:$L,5,FALSE),VLOOKUP($M53,TT_Tabelle_Riferimento!$D$127:$H$164,5,FALSE))","v":5},{"$f":"+IFERROR(VLOOKUP(OH$27&\"-\"&$M53&\"_new\",Ammortamento_Finanziario!$H:$L,5,FALSE),VLOOKUP($M53,TT_Tabelle_Riferimento!$D$127:$H$164,5,FALSE))","v":5},{"$f":"+IFERROR(VLOOKUP(OI$27&\"-\"&$M53&\"_new\",Ammortamento_Finanziario!$H:$L,5,FALSE),VLOOKUP($M53,TT_Tabelle_Riferimento!$D$127:$H$164,5,FALSE))","v":5},{"$f":"+IFERROR(VLOOKUP(OJ$27&\"-\"&$M53&\"_new\",Ammortamento_Finanziario!$H:$L,5,FALSE),VLOOKUP($M53,TT_Tabelle_Riferimento!$D$127:$H$164,5,FALSE))","v":5},{"$f":"+IFERROR(VLOOKUP(OK$27&\"-\"&$M53&\"_new\",Ammortamento_Finanziario!$H:$L,5,FALSE),VLOOKUP($M53,TT_Tabelle_Riferimento!$D$127:$H$164,5,FALSE))","v":5},{"$f":"+IFERROR(VLOOKUP(OL$27&\"-\"&$M53&\"_new\",Ammortamento_Finanziario!$H:$L,5,FALSE),VLOOKUP($M53,TT_Tabelle_Riferimento!$D$127:$H$164,5,FALSE))","v":5},{"$f":"+IFERROR(VLOOKUP(OM$27&\"-\"&$M53&\"_new\",Ammortamento_Finanziario!$H:$L,5,FALSE),VLOOKUP($M53,TT_Tabelle_Riferimento!$D$127:$H$164,5,FALSE))","v":5},{"$f":"+IFERROR(VLOOKUP(ON$27&\"-\"&$M53&\"_new\",Ammortamento_Finanziario!$H:$L,5,FALSE),VLOOKUP($M53,TT_Tabelle_Riferimento!$D$127:$H$164,5,FALSE))","v":5},{"$f":"+IFERROR(VLOOKUP(OO$27&\"-\"&$M53&\"_new\",Ammortamento_Finanziario!$H:$L,5,FALSE),VLOOKUP($M53,TT_Tabelle_Riferimento!$D$127:$H$164,5,FALSE))","v":5},{"$f":"+IFERROR(VLOOKUP(OP$27&\"-\"&$M53&\"_new\",Ammortamento_Finanziario!$H:$L,5,FALSE),VLOOKUP($M53,TT_Tabelle_Riferimento!$D$127:$H$164,5,FALSE))","v":5},{"$f":"+IFERROR(VLOOKUP(OQ$27&\"-\"&$M53&\"_new\",Ammortamento_Finanziario!$H:$L,5,FALSE),VLOOKUP($M53,TT_Tabelle_Riferimento!$D$127:$H$164,5,FALSE))","v":5},{"$f":"+IFERROR(VLOOKUP(OR$27&\"-\"&$M53&\"_new\",Ammortamento_Finanziario!$H:$L,5,FALSE),VLOOKUP($M53,TT_Tabelle_Riferimento!$D$127:$H$164,5,FALSE))","v":5},{"$f":"+IFERROR(VLOOKUP(OS$27&\"-\"&$M53&\"_new\",Ammortamento_Finanziario!$H:$L,5,FALSE),VLOOKUP($M53,TT_Tabelle_Riferimento!$D$127:$H$164,5,FALSE))","v":5},{"$f":"+IFERROR(VLOOKUP(OT$27&\"-\"&$M53&\"_new\",Ammortamento_Finanziario!$H:$L,5,FALSE),VLOOKUP($M53,TT_Tabelle_Riferimento!$D$127:$H$164,5,FALSE))","v":5},{"$f":"+IFERROR(VLOOKUP(OU$27&\"-\"&$M53&\"_new\",Ammortamento_Finanziario!$H:$L,5,FALSE),VLOOKUP($M53,TT_Tabelle_Riferimento!$D$127:$H$164,5,FALSE))","v":5},{"$f":"+IFERROR(VLOOKUP(OV$27&\"-\"&$M53&\"_new\",Ammortamento_Finanziario!$H:$L,5,FALSE),VLOOKUP($M53,TT_Tabelle_Riferimento!$D$127:$H$164,5,FALSE))","v":5},{"$f":"+IFERROR(VLOOKUP(OW$27&\"-\"&$M53&\"_new\",Ammortamento_Finanziario!$H:$L,5,FALSE),VLOOKUP($M53,TT_Tabelle_Riferimento!$D$127:$H$164,5,FALSE))","v":5},{"$f":"+IFERROR(VLOOKUP(OX$27&\"-\"&$M53&\"_new\",Ammortamento_Finanziario!$H:$L,5,FALSE),VLOOKUP($M53,TT_Tabelle_Riferimento!$D$127:$H$164,5,FALSE))","v":5},{"$f":"+IFERROR(VLOOKUP(OY$27&\"-\"&$M53&\"_new\",Ammortamento_Finanziario!$H:$L,5,FALSE),VLOOKUP($M53,TT_Tabelle_Riferimento!$D$127:$H$164,5,FALSE))","v":5},{"$f":"+IFERROR(VLOOKUP(OZ$27&\"-\"&$M53&\"_new\",Ammortamento_Finanziario!$H:$L,5,FALSE),VLOOKUP($M53,TT_Tabelle_Riferimento!$D$127:$H$164,5,FALSE))","v":5},{"$f":"+IFERROR(VLOOKUP(PA$27&\"-\"&$M53&\"_new\",Ammortamento_Finanziario!$H:$L,5,FALSE),VLOOKUP($M53,TT_Tabelle_Riferimento!$D$127:$H$164,5,FALSE))","v":5},{"$f":"+IFERROR(VLOOKUP(PB$27&\"-\"&$M53&\"_new\",Ammortamento_Finanziario!$H:$L,5,FALSE),VLOOKUP($M53,TT_Tabelle_Riferimento!$D$127:$H$164,5,FALSE))","v":5},{"$f":"+IFERROR(VLOOKUP(PC$27&\"-\"&$M53&\"_new\",Ammortamento_Finanziario!$H:$L,5,FALSE),VLOOKUP($M53,TT_Tabelle_Riferimento!$D$127:$H$164,5,FALSE))","v":5},{"$f":"+IFERROR(VLOOKUP(PD$27&\"-\"&$M53&\"_new\",Ammortamento_Finanziario!$H:$L,5,FALSE),VLOOKUP($M53,TT_Tabelle_Riferimento!$D$127:$H$164,5,FALSE))","v":5},{"$f":"+IFERROR(VLOOKUP(PE$27&\"-\"&$M53&\"_new\",Ammortamento_Finanziario!$H:$L,5,FALSE),VLOOKUP($M53,TT_Tabelle_Riferimento!$D$127:$H$164,5,FALSE))","v":5},{"$f":"+IFERROR(VLOOKUP(PF$27&\"-\"&$M53&\"_new\",Ammortamento_Finanziario!$H:$L,5,FALSE),VLOOKUP($M53,TT_Tabelle_Riferimento!$D$127:$H$164,5,FALSE))","v":5},{"$f":"+IFERROR(VLOOKUP(PG$27&\"-\"&$M53&\"_new\",Ammortamento_Finanziario!$H:$L,5,FALSE),VLOOKUP($M53,TT_Tabelle_Riferimento!$D$127:$H$164,5,FALSE))","v":5},{"$f":"+IFERROR(VLOOKUP(PH$27&\"-\"&$M53&\"_new\",Ammortamento_Finanziario!$H:$L,5,FALSE),VLOOKUP($M53,TT_Tabelle_Riferimento!$D$127:$H$164,5,FALSE))","v":5},{"$f":"+IFERROR(VLOOKUP(PI$27&\"-\"&$M53&\"_new\",Ammortamento_Finanziario!$H:$L,5,FALSE),VLOOKUP($M53,TT_Tabelle_Riferimento!$D$127:$H$164,5,FALSE))","v":5},{"$f":"+IFERROR(VLOOKUP(PJ$27&\"-\"&$M53&\"_new\",Ammortamento_Finanziario!$H:$L,5,FALSE),VLOOKUP($M53,TT_Tabelle_Riferimento!$D$127:$H$164,5,FALSE))","v":5},{"$f":"+IFERROR(VLOOKUP(PK$27&\"-\"&$M53&\"_new\",Ammortamento_Finanziario!$H:$L,5,FALSE),VLOOKUP($M53,TT_Tabelle_Riferimento!$D$127:$H$164,5,FALSE))","v":5},{"$f":"+IFERROR(VLOOKUP(PL$27&\"-\"&$M53&\"_new\",Ammortamento_Finanziario!$H:$L,5,FALSE),VLOOKUP($M53,TT_Tabelle_Riferimento!$D$127:$H$164,5,FALSE))","v":5},{"$f":"+IFERROR(VLOOKUP(PM$27&\"-\"&$M53&\"_new\",Ammortamento_Finanziario!$H:$L,5,FALSE),VLOOKUP($M53,TT_Tabelle_Riferimento!$D$127:$H$164,5,FALSE))","v":5},{"$f":"+IFERROR(VLOOKUP(PN$27&\"-\"&$M53&\"_new\",Ammortamento_Finanziario!$H:$L,5,FALSE),VLOOKUP($M53,TT_Tabelle_Riferimento!$D$127:$H$164,5,FALSE))","v":5},{"$f":"+IFERROR(VLOOKUP(PO$27&\"-\"&$M53&\"_new\",Ammortamento_Finanziario!$H:$L,5,FALSE),VLOOKUP($M53,TT_Tabelle_Riferimento!$D$127:$H$164,5,FALSE))","v":5},{"$f":"+IFERROR(VLOOKUP(PP$27&\"-\"&$M53&\"_new\",Ammortamento_Finanziario!$H:$L,5,FALSE),VLOOKUP($M53,TT_Tabelle_Riferimento!$D$127:$H$164,5,FALSE))","v":5},{"$f":"+IFERROR(VLOOKUP(PQ$27&\"-\"&$M53&\"_new\",Ammortamento_Finanziario!$H:$L,5,FALSE),VLOOKUP($M53,TT_Tabelle_Riferimento!$D$127:$H$164,5,FALSE))","v":5},{"$f":"+IFERROR(VLOOKUP(PR$27&\"-\"&$M53&\"_new\",Ammortamento_Finanziario!$H:$L,5,FALSE),VLOOKUP($M53,TT_Tabelle_Riferimento!$D$127:$H$164,5,FALSE))","v":5},{"$f":"+IFERROR(VLOOKUP(PS$27&\"-\"&$M53&\"_new\",Ammortamento_Finanziario!$H:$L,5,FALSE),VLOOKUP($M53,TT_Tabelle_Riferimento!$D$127:$H$164,5,FALSE))","v":5},{"$f":"+IFERROR(VLOOKUP(PT$27&\"-\"&$M53&\"_new\",Ammortamento_Finanziario!$H:$L,5,FALSE),VLOOKUP($M53,TT_Tabelle_Riferimento!$D$127:$H$164,5,FALSE))","v":5},{"$f":"+IFERROR(VLOOKUP(PU$27&\"-\"&$M53&\"_new\",Ammortamento_Finanziario!$H:$L,5,FALSE),VLOOKUP($M53,TT_Tabelle_Riferimento!$D$127:$H$164,5,FALSE))","v":5},{"$f":"+IFERROR(VLOOKUP(PV$27&\"-\"&$M53&\"_new\",Ammortamento_Finanziario!$H:$L,5,FALSE),VLOOKUP($M53,TT_Tabelle_Riferimento!$D$127:$H$164,5,FALSE))","v":5},{"$f":"+IFERROR(VLOOKUP(PW$27&\"-\"&$M53&\"_new\",Ammortamento_Finanziario!$H:$L,5,FALSE),VLOOKUP($M53,TT_Tabelle_Riferimento!$D$127:$H$164,5,FALSE))","v":5},{"$f":"+IFERROR(VLOOKUP(PX$27&\"-\"&$M53&\"_new\",Ammortamento_Finanziario!$H:$L,5,FALSE),VLOOKUP($M53,TT_Tabelle_Riferimento!$D$127:$H$164,5,FALSE))","v":5},{"$f":"+IFERROR(VLOOKUP(PY$27&\"-\"&$M53&\"_new\",Ammortamento_Finanziario!$H:$L,5,FALSE),VLOOKUP($M53,TT_Tabelle_Riferimento!$D$127:$H$164,5,FALSE))","v":5},{"$f":"+IFERROR(VLOOKUP(PZ$27&\"-\"&$M53&\"_new\",Ammortamento_Finanziario!$H:$L,5,FALSE),VLOOKUP($M53,TT_Tabelle_Riferimento!$D$127:$H$164,5,FALSE))","v":5},{"$f":"+IFERROR(VLOOKUP(QA$27&\"-\"&$M53&\"_new\",Ammortamento_Finanziario!$H:$L,5,FALSE),VLOOKUP($M53,TT_Tabelle_Riferimento!$D$127:$H$164,5,FALSE))","v":5},{"$f":"+IFERROR(VLOOKUP(QB$27&\"-\"&$M53&\"_new\",Ammortamento_Finanziario!$H:$L,5,FALSE),VLOOKUP($M53,TT_Tabelle_Riferimento!$D$127:$H$164,5,FALSE))","v":5},{"$f":"+IFERROR(VLOOKUP(QC$27&\"-\"&$M53&\"_new\",Ammortamento_Finanziario!$H:$L,5,FALSE),VLOOKUP($M53,TT_Tabelle_Riferimento!$D$127:$H$164,5,FALSE))","v":5},{"$f":"+IFERROR(VLOOKUP(QD$27&\"-\"&$M53&\"_new\",Ammortamento_Finanziario!$H:$L,5,FALSE),VLOOKUP($M53,TT_Tabelle_Riferimento!$D$127:$H$164,5,FALSE))","v":5},{"$f":"+IFERROR(VLOOKUP(QE$27&\"-\"&$M53&\"_new\",Ammortamento_Finanziario!$H:$L,5,FALSE),VLOOKUP($M53,TT_Tabelle_Riferimento!$D$127:$H$164,5,FALSE))","v":5},{"$f":"+IFERROR(VLOOKUP(QF$27&\"-\"&$M53&\"_new\",Ammortamento_Finanziario!$H:$L,5,FALSE),VLOOKUP($M53,TT_Tabelle_Riferimento!$D$127:$H$164,5,FALSE))","v":5},{"$f":"+IFERROR(VLOOKUP(QG$27&\"-\"&$M53&\"_new\",Ammortamento_Finanziario!$H:$L,5,FALSE),VLOOKUP($M53,TT_Tabelle_Riferimento!$D$127:$H$164,5,FALSE))","v":5},{"$f":"+IFERROR(VLOOKUP(QH$27&\"-\"&$M53&\"_new\",Ammortamento_Finanziario!$H:$L,5,FALSE),VLOOKUP($M53,TT_Tabelle_Riferimento!$D$127:$H$164,5,FALSE))","v":5},{"$f":"+IFERROR(VLOOKUP(QI$27&\"-\"&$M53&\"_new\",Ammortamento_Finanziario!$H:$L,5,FALSE),VLOOKUP($M53,TT_Tabelle_Riferimento!$D$127:$H$164,5,FALSE))","v":5},{"$f":"+IFERROR(VLOOKUP(QJ$27&\"-\"&$M53&\"_new\",Ammortamento_Finanziario!$H:$L,5,FALSE),VLOOKUP($M53,TT_Tabelle_Riferimento!$D$127:$H$164,5,FALSE))","v":5},{"$f":"+IFERROR(VLOOKUP(QK$27&\"-\"&$M53&\"_new\",Ammortamento_Finanziario!$H:$L,5,FALSE),VLOOKUP($M53,TT_Tabelle_Riferimento!$D$127:$H$164,5,FALSE))","v":5},{"$f":"+IFERROR(VLOOKUP(QL$27&\"-\"&$M53&\"_new\",Ammortamento_Finanziario!$H:$L,5,FALSE),VLOOKUP($M53,TT_Tabelle_Riferimento!$D$127:$H$164,5,FALSE))","v":5},{"$f":"+IFERROR(VLOOKUP(QM$27&\"-\"&$M53&\"_new\",Ammortamento_Finanziario!$H:$L,5,FALSE),VLOOKUP($M53,TT_Tabelle_Riferimento!$D$127:$H$164,5,FALSE))","v":5},{"$f":"+IFERROR(VLOOKUP(QN$27&\"-\"&$M53&\"_new\",Ammortamento_Finanziario!$H:$L,5,FALSE),VLOOKUP($M53,TT_Tabelle_Riferimento!$D$127:$H$164,5,FALSE))","v":5},{"$f":"+IFERROR(VLOOKUP(QO$27&\"-\"&$M53&\"_new\",Ammortamento_Finanziario!$H:$L,5,FALSE),VLOOKUP($M53,TT_Tabelle_Riferimento!$D$127:$H$164,5,FALSE))","v":5},{"$f":"+IFERROR(VLOOKUP(QP$27&\"-\"&$M53&\"_new\",Ammortamento_Finanziario!$H:$L,5,FALSE),VLOOKUP($M53,TT_Tabelle_Riferimento!$D$127:$H$164,5,FALSE))","v":5},{"$f":"+IFERROR(VLOOKUP(QQ$27&\"-\"&$M53&\"_new\",Ammortamento_Finanziario!$H:$L,5,FALSE),VLOOKUP($M53,TT_Tabelle_Riferimento!$D$127:$H$164,5,FALSE))","v":5},{"$f":"+IFERROR(VLOOKUP(QR$27&\"-\"&$M53&\"_new\",Ammortamento_Finanziario!$H:$L,5,FALSE),VLOOKUP($M53,TT_Tabelle_Riferimento!$D$127:$H$164,5,FALSE))","v":5},{"$f":"+IFERROR(VLOOKUP(QS$27&\"-\"&$M53&\"_new\",Ammortamento_Finanziario!$H:$L,5,FALSE),VLOOKUP($M53,TT_Tabelle_Riferimento!$D$127:$H$164,5,FALSE))","v":5},{"$f":"+IFERROR(VLOOKUP(QT$27&\"-\"&$M53&\"_new\",Ammortamento_Finanziario!$H:$L,5,FALSE),VLOOKUP($M53,TT_Tabelle_Riferimento!$D$127:$H$164,5,FALSE))","v":5},{"$f":"+IFERROR(VLOOKUP(QU$27&\"-\"&$M53&\"_new\",Ammortamento_Finanziario!$H:$L,5,FALSE),VLOOKUP($M53,TT_Tabelle_Riferimento!$D$127:$H$164,5,FALSE))","v":5},{"$f":"+IFERROR(VLOOKUP(QV$27&\"-\"&$M53&\"_new\",Ammortamento_Finanziario!$H:$L,5,FALSE),VLOOKUP($M53,TT_Tabelle_Riferimento!$D$127:$H$164,5,FALSE))","v":5},{"$f":"+IFERROR(VLOOKUP(QW$27&\"-\"&$M53&\"_new\",Ammortamento_Finanziario!$H:$L,5,FALSE),VLOOKUP($M53,TT_Tabelle_Riferimento!$D$127:$H$164,5,FALSE))","v":5},{"$f":"+IFERROR(VLOOKUP(QX$27&\"-\"&$M53&\"_new\",Ammortamento_Finanziario!$H:$L,5,FALSE),VLOOKUP($M53,TT_Tabelle_Riferimento!$D$127:$H$164,5,FALSE))","v":5},{"$f":"+IFERROR(VLOOKUP(QY$27&\"-\"&$M53&\"_new\",Ammortamento_Finanziario!$H:$L,5,FALSE),VLOOKUP($M53,TT_Tabelle_Riferimento!$D$127:$H$164,5,FALSE))","v":5},{"$f":"+IFERROR(VLOOKUP(QZ$27&\"-\"&$M53&\"_new\",Ammortamento_Finanziario!$H:$L,5,FALSE),VLOOKUP($M53,TT_Tabelle_Riferimento!$D$127:$H$164,5,FALSE))","v":5},{"$f":"+IFERROR(VLOOKUP(RA$27&\"-\"&$M53&\"_new\",Ammortamento_Finanziario!$H:$L,5,FALSE),VLOOKUP($M53,TT_Tabelle_Riferimento!$D$127:$H$164,5,FALSE))","v":5},{"$f":"+IFERROR(VLOOKUP(RB$27&\"-\"&$M53&\"_new\",Ammortamento_Finanziario!$H:$L,5,FALSE),VLOOKUP($M53,TT_Tabelle_Riferimento!$D$127:$H$164,5,FALSE))","v":5},{"$f":"+IFERROR(VLOOKUP(RC$27&\"-\"&$M53&\"_new\",Ammortamento_Finanziario!$H:$L,5,FALSE),VLOOKUP($M53,TT_Tabelle_Riferimento!$D$127:$H$164,5,FALSE))","v":5},{"$f":"+IFERROR(VLOOKUP(RD$27&\"-\"&$M53&\"_new\",Ammortamento_Finanziario!$H:$L,5,FALSE),VLOOKUP($M53,TT_Tabelle_Riferimento!$D$127:$H$164,5,FALSE))","v":5},{"$f":"+IFERROR(VLOOKUP(RE$27&\"-\"&$M53&\"_new\",Ammortamento_Finanziario!$H:$L,5,FALSE),VLOOKUP($M53,TT_Tabelle_Riferimento!$D$127:$H$164,5,FALSE))","v":5},{"$f":"+IFERROR(VLOOKUP(RF$27&\"-\"&$M53&\"_new\",Ammortamento_Finanziario!$H:$L,5,FALSE),VLOOKUP($M53,TT_Tabelle_Riferimento!$D$127:$H$164,5,FALSE))","v":5},{"$f":"+IFERROR(VLOOKUP(RG$27&\"-\"&$M53&\"_new\",Ammortamento_Finanziario!$H:$L,5,FALSE),VLOOKUP($M53,TT_Tabelle_Riferimento!$D$127:$H$164,5,FALSE))","v":5},{"$f":"+IFERROR(VLOOKUP(RH$27&\"-\"&$M53&\"_new\",Ammortamento_Finanziario!$H:$L,5,FALSE),VLOOKUP($M53,TT_Tabelle_Riferimento!$D$127:$H$164,5,FALSE))","v":5},{"$f":"+IFERROR(VLOOKUP(RI$27&\"-\"&$M53&\"_new\",Ammortamento_Finanziario!$H:$L,5,FALSE),VLOOKUP($M53,TT_Tabelle_Riferimento!$D$127:$H$164,5,FALSE))","v":5},{"$f":"+IFERROR(VLOOKUP(RJ$27&\"-\"&$M53&\"_new\",Ammortamento_Finanziario!$H:$L,5,FALSE),VLOOKUP($M53,TT_Tabelle_Riferimento!$D$127:$H$164,5,FALSE))","v":5},{"$f":"+IFERROR(VLOOKUP(RK$27&\"-\"&$M53&\"_new\",Ammortamento_Finanziario!$H:$L,5,FALSE),VLOOKUP($M53,TT_Tabelle_Riferimento!$D$127:$H$164,5,FALSE))","v":5},{"$f":"+IFERROR(VLOOKUP(RL$27&\"-\"&$M53&\"_new\",Ammortamento_Finanziario!$H:$L,5,FALSE),VLOOKUP($M53,TT_Tabelle_Riferimento!$D$127:$H$164,5,FALSE))","v":5},{"$f":"+IFERROR(VLOOKUP(RM$27&\"-\"&$M53&\"_new\",Ammortamento_Finanziario!$H:$L,5,FALSE),VLOOKUP($M53,TT_Tabelle_Riferimento!$D$127:$H$164,5,FALSE))","v":5},{"$f":"+IFERROR(VLOOKUP(RN$27&\"-\"&$M53&\"_new\",Ammortamento_Finanziario!$H:$L,5,FALSE),VLOOKUP($M53,TT_Tabelle_Riferimento!$D$127:$H$164,5,FALSE))","v":5},{"$f":"+IFERROR(VLOOKUP(RO$27&\"-\"&$M53&\"_new\",Ammortamento_Finanziario!$H:$L,5,FALSE),VLOOKUP($M53,TT_Tabelle_Riferimento!$D$127:$H$164,5,FALSE))","v":5},{"$f":"+IFERROR(VLOOKUP(RP$27&\"-\"&$M53&\"_new\",Ammortamento_Finanziario!$H:$L,5,FALSE),VLOOKUP($M53,TT_Tabelle_Riferimento!$D$127:$H$164,5,FALSE))","v":5},{"$f":"+IFERROR(VLOOKUP(RQ$27&\"-\"&$M53&\"_new\",Ammortamento_Finanziario!$H:$L,5,FALSE),VLOOKUP($M53,TT_Tabelle_Riferimento!$D$127:$H$164,5,FALSE))","v":5},{"$f":"+IFERROR(VLOOKUP(RR$27&\"-\"&$M53&\"_new\",Ammortamento_Finanziario!$H:$L,5,FALSE),VLOOKUP($M53,TT_Tabelle_Riferimento!$D$127:$H$164,5,FALSE))","v":5},{"$f":"+IFERROR(VLOOKUP(RS$27&\"-\"&$M53&\"_new\",Ammortamento_Finanziario!$H:$L,5,FALSE),VLOOKUP($M53,TT_Tabelle_Riferimento!$D$127:$H$164,5,FALSE))","v":5},{"$f":"+IFERROR(VLOOKUP(RT$27&\"-\"&$M53&\"_new\",Ammortamento_Finanziario!$H:$L,5,FALSE),VLOOKUP($M53,TT_Tabelle_Riferimento!$D$127:$H$164,5,FALSE))","v":5},{"$f":"+IFERROR(VLOOKUP(RU$27&\"-\"&$M53&\"_new\",Ammortamento_Finanziario!$H:$L,5,FALSE),VLOOKUP($M53,TT_Tabelle_Riferimento!$D$127:$H$164,5,FALSE))","v":5},{"$f":"+IFERROR(VLOOKUP(RV$27&\"-\"&$M53&\"_new\",Ammortamento_Finanziario!$H:$L,5,FALSE),VLOOKUP($M53,TT_Tabelle_Riferimento!$D$127:$H$164,5,FALSE))","v":5}]
[null,null,null,"IML",{"$f":"+SUMIFS(IMN_gestore!P:P,IMN_gestore!$G:$G,\"Res\")","v":0},{"$f":"+SUMIFS(IMN_gestore!AA:AA,IMN_gestore!$G:$G,\"Res\")","v":0},{"$f":"+SUMIFS(IMN_gestore!AL:AL,IMN_gestore!$G:$G,\"Res\")","v":0},{"$f":"+SUMIFS(IMN_gestore!AW:AW,IMN_gestore!$G:$G,\"Res\")","v":0},{"$f":"+SUMIFS(IMN_gestore!$BH:$BH,IMN_gestore!$G:$G,\"Res\")","v":0},{"$f":"+SUMIFS(IMN_gestore!$BS:$BS,IMN_gestore!$G:$G,\"Res\")","v":0},null,null,27,0,0,0,0,0,0,0,0,0,0,0,0,0,0,0,0,0,0,0,0,0,0,0,0,0,0,0,0,0,0,0,0,0,0,0,0,0,0,0,0,0,0,0,0,0,0,0,0,0,0,0,0,0,0,0,0,0,0,0,0,0,0,0,0,0,0,0,0,0,0,0,0,0,0,0,0,0,0,0,0,0,0,0,0,0,0,0,0,0,0,0,0,0,0,0,0,0,0,0,0,0,0,0,0,0,0,0,0,0,0,0,0,0,0,0,0,0,0,0,0,0,0,0,0,0,0,0,0,0,0,0,0,0,0,0,0,0,0,0,0,0,0,0,0,0,0,0,0,0,0,0,0,0,0,0,0,0,0,0,0,0,0,0,0,0,0,0,0,0,0,0,0,0,0,0,0,0,0,0,0,0,0,0,0,0,0,0,0,0,0,0,0,0,0,0,0,0,0,0,0,0,0,0,0,0,0,0,0,0,0,0,0,0,0,0,0,0,0,0,0,0,0,0,0,0,0,0,0,0,0,0,0,0,0,0,0,0,0,0,0,0,0,0,0,0,0,0,0,0,0,0,0,0,0,0,0,0,0,0,0,0,0,0,0,0,0,0,0,0,0,0,0,0,0,0,0,0,0,0,0,0,0,0,0,0,0,0,0,0,{"$f":"+IFERROR(VLOOKUP(KQ$27&\"-\"&$M54&\"_new\",Ammortamento_Finanziario!$H:$L,5,FALSE),VLOOKUP($M54,TT_Tabelle_Riferimento!$D$127:$H$164,5,FALSE))","v":8},{"$f":"+IFERROR(VLOOKUP(KR$27&\"-\"&$M54&\"_new\",Ammortamento_Finanziario!$H:$L,5,FALSE),VLOOKUP($M54,TT_Tabelle_Riferimento!$D$127:$H$164,5,FALSE))","v":8},{"$f":"+IFERROR(VLOOKUP(KS$27&\"-\"&$M54&\"_new\",Ammortamento_Finanziario!$H:$L,5,FALSE),VLOOKUP($M54,TT_Tabelle_Riferimento!$D$127:$H$164,5,FALSE))","v":8},{"$f":"+IFERROR(VLOOKUP(KT$27&\"-\"&$M54&\"_new\",Ammortamento_Finanziario!$H:$L,5,FALSE),VLOOKUP($M54,TT_Tabelle_Riferimento!$D$127:$H$164,5,FALSE))","v":8},{"$f":"+IFERROR(VLOOKUP(KU$27&\"-\"&$M54&\"_new\",Ammortamento_Finanziario!$H:$L,5,FALSE),VLOOKUP($M54,TT_Tabelle_Riferimento!$D$127:$H$164,5,FALSE))","v":8},{"$f":"+IFERROR(VLOOKUP(KV$27&\"-\"&$M54&\"_new\",Ammortamento_Finanziario!$H:$L,5,FALSE),VLOOKUP($M54,TT_Tabelle_Riferimento!$D$127:$H$164,5,FALSE))","v":8},{"$f":"+IFERROR(VLOOKUP(KW$27&\"-\"&$M54&\"_new\",Ammortamento_Finanziario!$H:$L,5,FALSE),VLOOKUP($M54,TT_Tabelle_Riferimento!$D$127:$H$164,5,FALSE))","v":8},{"$f":"+IFERROR(VLOOKUP(KX$27&\"-\"&$M54&\"_new\",Ammortamento_Finanziario!$H:$L,5,FALSE),VLOOKUP($M54,TT_Tabelle_Riferimento!$D$127:$H$164,5,FALSE))","v":8},{"$f":"+IFERROR(VLOOKUP(KY$27&\"-\"&$M54&\"_new\",Ammortamento_Finanziario!$H:$L,5,FALSE),VLOOKUP($M54,TT_Tabelle_Riferimento!$D$127:$H$164,5,FALSE))","v":8},{"$f":"+IFERROR(VLOOKUP(KZ$27&\"-\"&$M54&\"_new\",Ammortamento_Finanziario!$H:$L,5,FALSE),VLOOKUP($M54,TT_Tabelle_Riferimento!$D$127:$H$164,5,FALSE))","v":8},{"$f":"+IFERROR(VLOOKUP(LA$27&\"-\"&$M54&\"_new\",Ammortamento_Finanziario!$H:$L,5,FALSE),VLOOKUP($M54,TT_Tabelle_Riferimento!$D$127:$H$164,5,FALSE))","v":8},{"$f":"+IFERROR(VLOOKUP(LB$27&\"-\"&$M54&\"_new\",Ammortamento_Finanziario!$H:$L,5,FALSE),VLOOKUP($M54,TT_Tabelle_Riferimento!$D$127:$H$164,5,FALSE))","v":8},{"$f":"+IFERROR(VLOOKUP(LC$27&\"-\"&$M54&\"_new\",Ammortamento_Finanziario!$H:$L,5,FALSE),VLOOKUP($M54,TT_Tabelle_Riferimento!$D$127:$H$164,5,FALSE))","v":8},{"$f":"+IFERROR(VLOOKUP(LD$27&\"-\"&$M54&\"_new\",Ammortamento_Finanziario!$H:$L,5,FALSE),VLOOKUP($M54,TT_Tabelle_Riferimento!$D$127:$H$164,5,FALSE))","v":8},{"$f":"+IFERROR(VLOOKUP(LE$27&\"-\"&$M54&\"_new\",Ammortamento_Finanziario!$H:$L,5,FALSE),VLOOKUP($M54,TT_Tabelle_Riferimento!$D$127:$H$164,5,FALSE))","v":8},{"$f":"+IFERROR(VLOOKUP(LF$27&\"-\"&$M54&\"_new\",Ammortamento_Finanziario!$H:$L,5,FALSE),VLOOKUP($M54,TT_Tabelle_Riferimento!$D$127:$H$164,5,FALSE))","v":8},{"$f":"+IFERROR(VLOOKUP(LG$27&\"-\"&$M54&\"_new\",Ammortamento_Finanziario!$H:$L,5,FALSE),VLOOKUP($M54,TT_Tabelle_Riferimento!$D$127:$H$164,5,FALSE))","v":8},{"$f":"+IFERROR(VLOOKUP(LH$27&\"-\"&$M54&\"_new\",Ammortamento_Finanziario!$H:$L,5,FALSE),VLOOKUP($M54,TT_Tabelle_Riferimento!$D$127:$H$164,5,FALSE))","v":8},{"$f":"+IFERROR(VLOOKUP(LI$27&\"-\"&$M54&\"_new\",Ammortamento_Finanziario!$H:$L,5,FALSE),VLOOKUP($M54,TT_Tabelle_Riferimento!$D$127:$H$164,5,FALSE))","v":8},{"$f":"+IFERROR(VLOOKUP(LJ$27&\"-\"&$M54&\"_new\",Ammortamento_Finanziario!$H:$L,5,FALSE),VLOOKUP($M54,TT_Tabelle_Riferimento!$D$127:$H$164,5,FALSE))","v":8},{"$f":"+IFERROR(VLOOKUP(LK$27&\"-\"&$M54&\"_new\",Ammortamento_Finanziario!$H:$L,5,FALSE),VLOOKUP($M54,TT_Tabelle_Riferimento!$D$127:$H$164,5,FALSE))","v":8},{"$f":"+IFERROR(VLOOKUP(LL$27&\"-\"&$M54&\"_new\",Ammortamento_Finanziario!$H:$L,5,FALSE),VLOOKUP($M54,TT_Tabelle_Riferimento!$D$127:$H$164,5,FALSE))","v":8},{"$f":"+IFERROR(VLOOKUP(LM$27&\"-\"&$M54&\"_new\",Ammortamento_Finanziario!$H:$L,5,FALSE),VLOOKUP($M54,TT_Tabelle_Riferimento!$D$127:$H$164,5,FALSE))","v":8},{"$f":"+IFERROR(VLOOKUP(LN$27&\"-\"&$M54&\"_new\",Ammortamento_Finanziario!$H:$L,5,FALSE),VLOOKUP($M54,TT_Tabelle_Riferimento!$D$127:$H$164,5,FALSE))","v":8},{"$f":"+IFERROR(VLOOKUP(LO$27&\"-\"&$M54&\"_new\",Ammortamento_Finanziario!$H:$L,5,FALSE),VLOOKUP($M54,TT_Tabelle_Riferimento!$D$127:$H$164,5,FALSE))","v":8},{"$f":"+IFERROR(VLOOKUP(LP$27&\"-\"&$M54&\"_new\",Ammortamento_Finanziario!$H:$L,5,FALSE),VLOOKUP($M54,TT_Tabelle_Riferimento!$D$127:$H$164,5,FALSE))","v":8},{"$f":"+IFERROR(VLOOKUP(LQ$27&\"-\"&$M54&\"_new\",Ammortamento_Finanziario!$H:$L,5,FALSE),VLOOKUP($M54,TT_Tabelle_Riferimento!$D$127:$H$164,5,FALSE))","v":8},{"$f":"+IFERROR(VLOOKUP(LR$27&\"-\"&$M54&\"_new\",Ammortamento_Finanziario!$H:$L,5,FALSE),VLOOKUP($M54,TT_Tabelle_Riferimento!$D$127:$H$164,5,FALSE))","v":8},{"$f":"+IFERROR(VLOOKUP(LS$27&\"-\"&$M54&\"_new\",Ammortamento_Finanziario!$H:$L,5,FALSE),VLOOKUP($M54,TT_Tabelle_Riferimento!$D$127:$H$164,5,FALSE))","v":8},{"$f":"+IFERROR(VLOOKUP(LT$27&\"-\"&$M54&\"_new\",Ammortamento_Finanziario!$H:$L,5,FALSE),VLOOKUP($M54,TT_Tabelle_Riferimento!$D$127:$H$164,5,FALSE))","v":8},{"$f":"+IFERROR(VLOOKUP(LU$27&\"-\"&$M54&\"_new\",Ammortamento_Finanziario!$H:$L,5,FALSE),VLOOKUP($M54,TT_Tabelle_Riferimento!$D$127:$H$164,5,FALSE))","v":8},{"$f":"+IFERROR(VLOOKUP(LV$27&\"-\"&$M54&\"_new\",Ammortamento_Finanziario!$H:$L,5,FALSE),VLOOKUP($M54,TT_Tabelle_Riferimento!$D$127:$H$164,5,FALSE))","v":8},{"$f":"+IFERROR(VLOOKUP(LW$27&\"-\"&$M54&\"_new\",Ammortamento_Finanziario!$H:$L,5,FALSE),VLOOKUP($M54,TT_Tabelle_Riferimento!$D$127:$H$164,5,FALSE))","v":8},{"$f":"+IFERROR(VLOOKUP(LX$27&\"-\"&$M54&\"_new\",Ammortamento_Finanziario!$H:$L,5,FALSE),VLOOKUP($M54,TT_Tabelle_Riferimento!$D$127:$H$164,5,FALSE))","v":8},{"$f":"+IFERROR(VLOOKUP(LY$27&\"-\"&$M54&\"_new\",Ammortamento_Finanziario!$H:$L,5,FALSE),VLOOKUP($M54,TT_Tabelle_Riferimento!$D$127:$H$164,5,FALSE))","v":8},{"$f":"+IFERROR(VLOOKUP(LZ$27&\"-\"&$M54&\"_new\",Ammortamento_Finanziario!$H:$L,5,FALSE),VLOOKUP($M54,TT_Tabelle_Riferimento!$D$127:$H$164,5,FALSE))","v":8},{"$f":"+IFERROR(VLOOKUP(MA$27&\"-\"&$M54&\"_new\",Ammortamento_Finanziario!$H:$L,5,FALSE),VLOOKUP($M54,TT_Tabelle_Riferimento!$D$127:$H$164,5,FALSE))","v":8},{"$f":"+IFERROR(VLOOKUP(MB$27&\"-\"&$M54&\"_new\",Ammortamento_Finanziario!$H:$L,5,FALSE),VLOOKUP($M54,TT_Tabelle_Riferimento!$D$127:$H$164,5,FALSE))","v":8},{"$f":"+IFERROR(VLOOKUP(MC$27&\"-\"&$M54&\"_new\",Ammortamento_Finanziario!$H:$L,5,FALSE),VLOOKUP($M54,TT_Tabelle_Riferimento!$D$127:$H$164,5,FALSE))","v":8},{"$f":"+IFERROR(VLOOKUP(MD$27&\"-\"&$M54&\"_new\",Ammortamento_Finanziario!$H:$L,5,FALSE),VLOOKUP($M54,TT_Tabelle_Riferimento!$D$127:$H$164,5,FALSE))","v":8},{"$f":"+IFERROR(VLOOKUP(ME$27&\"-\"&$M54&\"_new\",Ammortamento_Finanziario!$H:$L,5,FALSE),VLOOKUP($M54,TT_Tabelle_Riferimento!$D$127:$H$164,5,FALSE))","v":8},{"$f":"+IFERROR(VLOOKUP(MF$27&\"-\"&$M54&\"_new\",Ammortamento_Finanziario!$H:$L,5,FALSE),VLOOKUP($M54,TT_Tabelle_Riferimento!$D$127:$H$164,5,FALSE))","v":8},{"$f":"+IFERROR(VLOOKUP(MG$27&\"-\"&$M54&\"_new\",Ammortamento_Finanziario!$H:$L,5,FALSE),VLOOKUP($M54,TT_Tabelle_Riferimento!$D$127:$H$164,5,FALSE))","v":8},{"$f":"+IFERROR(VLOOKUP(MH$27&\"-\"&$M54&\"_new\",Ammortamento_Finanziario!$H:$L,5,FALSE),VLOOKUP($M54,TT_Tabelle_Riferimento!$D$127:$H$164,5,FALSE))","v":8},{"$f":"+IFERROR(VLOOKUP(MI$27&\"-\"&$M54&\"_new\",Ammortamento_Finanziario!$H:$L,5,FALSE),VLOOKUP($M54,TT_Tabelle_Riferimento!$D$127:$H$164,5,FALSE))","v":8},{"$f":"+IFERROR(VLOOKUP(MJ$27&\"-\"&$M54&\"_new\",Ammortamento_Finanziario!$H:$L,5,FALSE),VLOOKUP($M54,TT_Tabelle_Riferimento!$D$127:$H$164,5,FALSE))","v":8},{"$f":"+IFERROR(VLOOKUP(MK$27&\"-\"&$M54&\"_new\",Ammortamento_Finanziario!$H:$L,5,FALSE),VLOOKUP($M54,TT_Tabelle_Riferimento!$D$127:$H$164,5,FALSE))","v":8},{"$f":"+IFERROR(VLOOKUP(ML$27&\"-\"&$M54&\"_new\",Ammortamento_Finanziario!$H:$L,5,FALSE),VLOOKUP($M54,TT_Tabelle_Riferimento!$D$127:$H$164,5,FALSE))","v":8},{"$f":"+IFERROR(VLOOKUP(MM$27&\"-\"&$M54&\"_new\",Ammortamento_Finanziario!$H:$L,5,FALSE),VLOOKUP($M54,TT_Tabelle_Riferimento!$D$127:$H$164,5,FALSE))","v":8},{"$f":"+IFERROR(VLOOKUP(MN$27&\"-\"&$M54&\"_new\",Ammortamento_Finanziario!$H:$L,5,FALSE),VLOOKUP($M54,TT_Tabelle_Riferimento!$D$127:$H$164,5,FALSE))","v":8},{"$f":"+IFERROR(VLOOKUP(MO$27&\"-\"&$M54&\"_new\",Ammortamento_Finanziario!$H:$L,5,FALSE),VLOOKUP($M54,TT_Tabelle_Riferimento!$D$127:$H$164,5,FALSE))","v":8},{"$f":"+IFERROR(VLOOKUP(MP$27&\"-\"&$M54&\"_new\",Ammortamento_Finanziario!$H:$L,5,FALSE),VLOOKUP($M54,TT_Tabelle_Riferimento!$D$127:$H$164,5,FALSE))","v":8},{"$f":"+IFERROR(VLOOKUP(MQ$27&\"-\"&$M54&\"_new\",Ammortamento_Finanziario!$H:$L,5,FALSE),VLOOKUP($M54,TT_Tabelle_Riferimento!$D$127:$H$164,5,FALSE))","v":8},{"$f":"+IFERROR(VLOOKUP(MR$27&\"-\"&$M54&\"_new\",Ammortamento_Finanziario!$H:$L,5,FALSE),VLOOKUP($M54,TT_Tabelle_Riferimento!$D$127:$H$164,5,FALSE))","v":8},{"$f":"+IFERROR(VLOOKUP(MS$27&\"-\"&$M54&\"_new\",Ammortamento_Finanziario!$H:$L,5,FALSE),VLOOKUP($M54,TT_Tabelle_Riferimento!$D$127:$H$164,5,FALSE))","v":8},{"$f":"+IFERROR(VLOOKUP(MT$27&\"-\"&$M54&\"_new\",Ammortamento_Finanziario!$H:$L,5,FALSE),VLOOKUP($M54,TT_Tabelle_Riferimento!$D$127:$H$164,5,FALSE))","v":8},{"$f":"+IFERROR(VLOOKUP(MU$27&\"-\"&$M54&\"_new\",Ammortamento_Finanziario!$H:$L,5,FALSE),VLOOKUP($M54,TT_Tabelle_Riferimento!$D$127:$H$164,5,FALSE))","v":8},{"$f":"+IFERROR(VLOOKUP(MV$27&\"-\"&$M54&\"_new\",Ammortamento_Finanziario!$H:$L,5,FALSE),VLOOKUP($M54,TT_Tabelle_Riferimento!$D$127:$H$164,5,FALSE))","v":8},{"$f":"+IFERROR(VLOOKUP(MW$27&\"-\"&$M54&\"_new\",Ammortamento_Finanziario!$H:$L,5,FALSE),VLOOKUP($M54,TT_Tabelle_Riferimento!$D$127:$H$164,5,FALSE))","v":8},{"$f":"+IFERROR(VLOOKUP(MX$27&\"-\"&$M54&\"_new\",Ammortamento_Finanziario!$H:$L,5,FALSE),VLOOKUP($M54,TT_Tabelle_Riferimento!$D$127:$H$164,5,FALSE))","v":8},{"$f":"+IFERROR(VLOOKUP(MY$27&\"-\"&$M54&\"_new\",Ammortamento_Finanziario!$H:$L,5,FALSE),VLOOKUP($M54,TT_Tabelle_Riferimento!$D$127:$H$164,5,FALSE))","v":8},{"$f":"+IFERROR(VLOOKUP(MZ$27&\"-\"&$M54&\"_new\",Ammortamento_Finanziario!$H:$L,5,FALSE),VLOOKUP($M54,TT_Tabelle_Riferimento!$D$127:$H$164,5,FALSE))","v":8},{"$f":"+IFERROR(VLOOKUP(NA$27&\"-\"&$M54&\"_new\",Ammortamento_Finanziario!$H:$L,5,FALSE),VLOOKUP($M54,TT_Tabelle_Riferimento!$D$127:$H$164,5,FALSE))","v":8},{"$f":"+IFERROR(VLOOKUP(NB$27&\"-\"&$M54&\"_new\",Ammortamento_Finanziario!$H:$L,5,FALSE),VLOOKUP($M54,TT_Tabelle_Riferimento!$D$127:$H$164,5,FALSE))","v":8},{"$f":"+IFERROR(VLOOKUP(NC$27&\"-\"&$M54&\"_new\",Ammortamento_Finanziario!$H:$L,5,FALSE),VLOOKUP($M54,TT_Tabelle_Riferimento!$D$127:$H$164,5,FALSE))","v":8},{"$f":"+IFERROR(VLOOKUP(ND$27&\"-\"&$M54&\"_new\",Ammortamento_Finanziario!$H:$L,5,FALSE),VLOOKUP($M54,TT_Tabelle_Riferimento!$D$127:$H$164,5,FALSE))","v":8},{"$f":"+IFERROR(VLOOKUP(NE$27&\"-\"&$M54&\"_new\",Ammortamento_Finanziario!$H:$L,5,FALSE),VLOOKUP($M54,TT_Tabelle_Riferimento!$D$127:$H$164,5,FALSE))","v":8},{"$f":"+IFERROR(VLOOKUP(NF$27&\"-\"&$M54&\"_new\",Ammortamento_Finanziario!$H:$L,5,FALSE),VLOOKUP($M54,TT_Tabelle_Riferimento!$D$127:$H$164,5,FALSE))","v":8},{"$f":"+IFERROR(VLOOKUP(NG$27&\"-\"&$M54&\"_new\",Ammortamento_Finanziario!$H:$L,5,FALSE),VLOOKUP($M54,TT_Tabelle_Riferimento!$D$127:$H$164,5,FALSE))","v":8},{"$f":"+IFERROR(VLOOKUP(NH$27&\"-\"&$M54&\"_new\",Ammortamento_Finanziario!$H:$L,5,FALSE),VLOOKUP($M54,TT_Tabelle_Riferimento!$D$127:$H$164,5,FALSE))","v":8},{"$f":"+IFERROR(VLOOKUP(NI$27&\"-\"&$M54&\"_new\",Ammortamento_Finanziario!$H:$L,5,FALSE),VLOOKUP($M54,TT_Tabelle_Riferimento!$D$127:$H$164,5,FALSE))","v":8},{"$f":"+IFERROR(VLOOKUP(NJ$27&\"-\"&$M54&\"_new\",Ammortamento_Finanziario!$H:$L,5,FALSE),VLOOKUP($M54,TT_Tabelle_Riferimento!$D$127:$H$164,5,FALSE))","v":8},{"$f":"+IFERROR(VLOOKUP(NK$27&\"-\"&$M54&\"_new\",Ammortamento_Finanziario!$H:$L,5,FALSE),VLOOKUP($M54,TT_Tabelle_Riferimento!$D$127:$H$164,5,FALSE))","v":8},{"$f":"+IFERROR(VLOOKUP(NL$27&\"-\"&$M54&\"_new\",Ammortamento_Finanziario!$H:$L,5,FALSE),VLOOKUP($M54,TT_Tabelle_Riferimento!$D$127:$H$164,5,FALSE))","v":8},{"$f":"+IFERROR(VLOOKUP(NM$27&\"-\"&$M54&\"_new\",Ammortamento_Finanziario!$H:$L,5,FALSE),VLOOKUP($M54,TT_Tabelle_Riferimento!$D$127:$H$164,5,FALSE))","v":8},{"$f":"+IFERROR(VLOOKUP(NN$27&\"-\"&$M54&\"_new\",Ammortamento_Finanziario!$H:$L,5,FALSE),VLOOKUP($M54,TT_Tabelle_Riferimento!$D$127:$H$164,5,FALSE))","v":8},{"$f":"+IFERROR(VLOOKUP(NO$27&\"-\"&$M54&\"_new\",Ammortamento_Finanziario!$H:$L,5,FALSE),VLOOKUP($M54,TT_Tabelle_Riferimento!$D$127:$H$164,5,FALSE))","v":8},{"$f":"+IFERROR(VLOOKUP(NP$27&\"-\"&$M54&\"_new\",Ammortamento_Finanziario!$H:$L,5,FALSE),VLOOKUP($M54,TT_Tabelle_Riferimento!$D$127:$H$164,5,FALSE))","v":8},{"$f":"+IFERROR(VLOOKUP(NQ$27&\"-\"&$M54&\"_new\",Ammortamento_Finanziario!$H:$L,5,FALSE),VLOOKUP($M54,TT_Tabelle_Riferimento!$D$127:$H$164,5,FALSE))","v":8},{"$f":"+IFERROR(VLOOKUP(NR$27&\"-\"&$M54&\"_new\",Ammortamento_Finanziario!$H:$L,5,FALSE),VLOOKUP($M54,TT_Tabelle_Riferimento!$D$127:$H$164,5,FALSE))","v":8},{"$f":"+IFERROR(VLOOKUP(NS$27&\"-\"&$M54&\"_new\",Ammortamento_Finanziario!$H:$L,5,FALSE),VLOOKUP($M54,TT_Tabelle_Riferimento!$D$127:$H$164,5,FALSE))","v":8},{"$f":"+IFERROR(VLOOKUP(NT$27&\"-\"&$M54&\"_new\",Ammortamento_Finanziario!$H:$L,5,FALSE),VLOOKUP($M54,TT_Tabelle_Riferimento!$D$127:$H$164,5,FALSE))","v":8},{"$f":"+IFERROR(VLOOKUP(NU$27&\"-\"&$M54&\"_new\",Ammortamento_Finanziario!$H:$L,5,FALSE),VLOOKUP($M54,TT_Tabelle_Riferimento!$D$127:$H$164,5,FALSE))","v":8},{"$f":"+IFERROR(VLOOKUP(NV$27&\"-\"&$M54&\"_new\",Ammortamento_Finanziario!$H:$L,5,FALSE),VLOOKUP($M54,TT_Tabelle_Riferimento!$D$127:$H$164,5,FALSE))","v":8},{"$f":"+IFERROR(VLOOKUP(NW$27&\"-\"&$M54&\"_new\",Ammortamento_Finanziario!$H:$L,5,FALSE),VLOOKUP($M54,TT_Tabelle_Riferimento!$D$127:$H$164,5,FALSE))","v":8},{"$f":"+IFERROR(VLOOKUP(NX$27&\"-\"&$M54&\"_new\",Ammortamento_Finanziario!$H:$L,5,FALSE),VLOOKUP($M54,TT_Tabelle_Riferimento!$D$127:$H$164,5,FALSE))","v":8},{"$f":"+IFERROR(VLOOKUP(NY$27&\"-\"&$M54&\"_new\",Ammortamento_Finanziario!$H:$L,5,FALSE),VLOOKUP($M54,TT_Tabelle_Riferimento!$D$127:$H$164,5,FALSE))","v":8},{"$f":"+IFERROR(VLOOKUP(NZ$27&\"-\"&$M54&\"_new\",Ammortamento_Finanziario!$H:$L,5,FALSE),VLOOKUP($M54,TT_Tabelle_Riferimento!$D$127:$H$164,5,FALSE))","v":8},{"$f":"+IFERROR(VLOOKUP(OA$27&\"-\"&$M54&\"_new\",Ammortamento_Finanziario!$H:$L,5,FALSE),VLOOKUP($M54,TT_Tabelle_Riferimento!$D$127:$H$164,5,FALSE))","v":8},{"$f":"+IFERROR(VLOOKUP(OB$27&\"-\"&$M54&\"_new\",Ammortamento_Finanziario!$H:$L,5,FALSE),VLOOKUP($M54,TT_Tabelle_Riferimento!$D$127:$H$164,5,FALSE))","v":8},{"$f":"+IFERROR(VLOOKUP(OC$27&\"-\"&$M54&\"_new\",Ammortamento_Finanziario!$H:$L,5,FALSE),VLOOKUP($M54,TT_Tabelle_Riferimento!$D$127:$H$164,5,FALSE))","v":8},{"$f":"+IFERROR(VLOOKUP(OD$27&\"-\"&$M54&\"_new\",Ammortamento_Finanziario!$H:$L,5,FALSE),VLOOKUP($M54,TT_Tabelle_Riferimento!$D$127:$H$164,5,FALSE))","v":8},{"$f":"+IFERROR(VLOOKUP(OE$27&\"-\"&$M54&\"_new\",Ammortamento_Finanziario!$H:$L,5,FALSE),VLOOKUP($M54,TT_Tabelle_Riferimento!$D$127:$H$164,5,FALSE))","v":8},{"$f":"+IFERROR(VLOOKUP(OF$27&\"-\"&$M54&\"_new\",Ammortamento_Finanziario!$H:$L,5,FALSE),VLOOKUP($M54,TT_Tabelle_Riferimento!$D$127:$H$164,5,FALSE))","v":8},{"$f":"+IFERROR(VLOOKUP(OG$27&\"-\"&$M54&\"_new\",Ammortamento_Finanziario!$H:$L,5,FALSE),VLOOKUP($M54,TT_Tabelle_Riferimento!$D$127:$H$164,5,FALSE))","v":8},{"$f":"+IFERROR(VLOOKUP(OH$27&\"-\"&$M54&\"_new\",Ammortamento_Finanziario!$H:$L,5,FALSE),VLOOKUP($M54,TT_Tabelle_Riferimento!$D$127:$H$164,5,FALSE))","v":8},{"$f":"+IFERROR(VLOOKUP(OI$27&\"-\"&$M54&\"_new\",Ammortamento_Finanziario!$H:$L,5,FALSE),VLOOKUP($M54,TT_Tabelle_Riferimento!$D$127:$H$164,5,FALSE))","v":8},{"$f":"+IFERROR(VLOOKUP(OJ$27&\"-\"&$M54&\"_new\",Ammortamento_Finanziario!$H:$L,5,FALSE),VLOOKUP($M54,TT_Tabelle_Riferimento!$D$127:$H$164,5,FALSE))","v":8},{"$f":"+IFERROR(VLOOKUP(OK$27&\"-\"&$M54&\"_new\",Ammortamento_Finanziario!$H:$L,5,FALSE),VLOOKUP($M54,TT_Tabelle_Riferimento!$D$127:$H$164,5,FALSE))","v":8},{"$f":"+IFERROR(VLOOKUP(OL$27&\"-\"&$M54&\"_new\",Ammortamento_Finanziario!$H:$L,5,FALSE),VLOOKUP($M54,TT_Tabelle_Riferimento!$D$127:$H$164,5,FALSE))","v":8},{"$f":"+IFERROR(VLOOKUP(OM$27&\"-\"&$M54&\"_new\",Ammortamento_Finanziario!$H:$L,5,FALSE),VLOOKUP($M54,TT_Tabelle_Riferimento!$D$127:$H$164,5,FALSE))","v":8},{"$f":"+IFERROR(VLOOKUP(ON$27&\"-\"&$M54&\"_new\",Ammortamento_Finanziario!$H:$L,5,FALSE),VLOOKUP($M54,TT_Tabelle_Riferimento!$D$127:$H$164,5,FALSE))","v":8},{"$f":"+IFERROR(VLOOKUP(OO$27&\"-\"&$M54&\"_new\",Ammortamento_Finanziario!$H:$L,5,FALSE),VLOOKUP($M54,TT_Tabelle_Riferimento!$D$127:$H$164,5,FALSE))","v":8},{"$f":"+IFERROR(VLOOKUP(OP$27&\"-\"&$M54&\"_new\",Ammortamento_Finanziario!$H:$L,5,FALSE),VLOOKUP($M54,TT_Tabelle_Riferimento!$D$127:$H$164,5,FALSE))","v":8},{"$f":"+IFERROR(VLOOKUP(OQ$27&\"-\"&$M54&\"_new\",Ammortamento_Finanziario!$H:$L,5,FALSE),VLOOKUP($M54,TT_Tabelle_Riferimento!$D$127:$H$164,5,FALSE))","v":8},{"$f":"+IFERROR(VLOOKUP(OR$27&\"-\"&$M54&\"_new\",Ammortamento_Finanziario!$H:$L,5,FALSE),VLOOKUP($M54,TT_Tabelle_Riferimento!$D$127:$H$164,5,FALSE))","v":8},{"$f":"+IFERROR(VLOOKUP(OS$27&\"-\"&$M54&\"_new\",Ammortamento_Finanziario!$H:$L,5,FALSE),VLOOKUP($M54,TT_Tabelle_Riferimento!$D$127:$H$164,5,FALSE))","v":8},{"$f":"+IFERROR(VLOOKUP(OT$27&\"-\"&$M54&\"_new\",Ammortamento_Finanziario!$H:$L,5,FALSE),VLOOKUP($M54,TT_Tabelle_Riferimento!$D$127:$H$164,5,FALSE))","v":8},{"$f":"+IFERROR(VLOOKUP(OU$27&\"-\"&$M54&\"_new\",Ammortamento_Finanziario!$H:$L,5,FALSE),VLOOKUP($M54,TT_Tabelle_Riferimento!$D$127:$H$164,5,FALSE))","v":8},{"$f":"+IFERROR(VLOOKUP(OV$27&\"-\"&$M54&\"_new\",Ammortamento_Finanziario!$H:$L,5,FALSE),VLOOKUP($M54,TT_Tabelle_Riferimento!$D$127:$H$164,5,FALSE))","v":8},{"$f":"+IFERROR(VLOOKUP(OW$27&\"-\"&$M54&\"_new\",Ammortamento_Finanziario!$H:$L,5,FALSE),VLOOKUP($M54,TT_Tabelle_Riferimento!$D$127:$H$164,5,FALSE))","v":8},{"$f":"+IFERROR(VLOOKUP(OX$27&\"-\"&$M54&\"_new\",Ammortamento_Finanziario!$H:$L,5,FALSE),VLOOKUP($M54,TT_Tabelle_Riferimento!$D$127:$H$164,5,FALSE))","v":8},{"$f":"+IFERROR(VLOOKUP(OY$27&\"-\"&$M54&\"_new\",Ammortamento_Finanziario!$H:$L,5,FALSE),VLOOKUP($M54,TT_Tabelle_Riferimento!$D$127:$H$164,5,FALSE))","v":8},{"$f":"+IFERROR(VLOOKUP(OZ$27&\"-\"&$M54&\"_new\",Ammortamento_Finanziario!$H:$L,5,FALSE),VLOOKUP($M54,TT_Tabelle_Riferimento!$D$127:$H$164,5,FALSE))","v":8},{"$f":"+IFERROR(VLOOKUP(PA$27&\"-\"&$M54&\"_new\",Ammortamento_Finanziario!$H:$L,5,FALSE),VLOOKUP($M54,TT_Tabelle_Riferimento!$D$127:$H$164,5,FALSE))","v":8},{"$f":"+IFERROR(VLOOKUP(PB$27&\"-\"&$M54&\"_new\",Ammortamento_Finanziario!$H:$L,5,FALSE),VLOOKUP($M54,TT_Tabelle_Riferimento!$D$127:$H$164,5,FALSE))","v":8},{"$f":"+IFERROR(VLOOKUP(PC$27&\"-\"&$M54&\"_new\",Ammortamento_Finanziario!$H:$L,5,FALSE),VLOOKUP($M54,TT_Tabelle_Riferimento!$D$127:$H$164,5,FALSE))","v":8},{"$f":"+IFERROR(VLOOKUP(PD$27&\"-\"&$M54&\"_new\",Ammortamento_Finanziario!$H:$L,5,FALSE),VLOOKUP($M54,TT_Tabelle_Riferimento!$D$127:$H$164,5,FALSE))","v":8},{"$f":"+IFERROR(VLOOKUP(PE$27&\"-\"&$M54&\"_new\",Ammortamento_Finanziario!$H:$L,5,FALSE),VLOOKUP($M54,TT_Tabelle_Riferimento!$D$127:$H$164,5,FALSE))","v":8},{"$f":"+IFERROR(VLOOKUP(PF$27&\"-\"&$M54&\"_new\",Ammortamento_Finanziario!$H:$L,5,FALSE),VLOOKUP($M54,TT_Tabelle_Riferimento!$D$127:$H$164,5,FALSE))","v":8},{"$f":"+IFERROR(VLOOKUP(PG$27&\"-\"&$M54&\"_new\",Ammortamento_Finanziario!$H:$L,5,FALSE),VLOOKUP($M54,TT_Tabelle_Riferimento!$D$127:$H$164,5,FALSE))","v":8},{"$f":"+IFERROR(VLOOKUP(PH$27&\"-\"&$M54&\"_new\",Ammortamento_Finanziario!$H:$L,5,FALSE),VLOOKUP($M54,TT_Tabelle_Riferimento!$D$127:$H$164,5,FALSE))","v":8},{"$f":"+IFERROR(VLOOKUP(PI$27&\"-\"&$M54&\"_new\",Ammortamento_Finanziario!$H:$L,5,FALSE),VLOOKUP($M54,TT_Tabelle_Riferimento!$D$127:$H$164,5,FALSE))","v":8},{"$f":"+IFERROR(VLOOKUP(PJ$27&\"-\"&$M54&\"_new\",Ammortamento_Finanziario!$H:$L,5,FALSE),VLOOKUP($M54,TT_Tabelle_Riferimento!$D$127:$H$164,5,FALSE))","v":8},{"$f":"+IFERROR(VLOOKUP(PK$27&\"-\"&$M54&\"_new\",Ammortamento_Finanziario!$H:$L,5,FALSE),VLOOKUP($M54,TT_Tabelle_Riferimento!$D$127:$H$164,5,FALSE))","v":8},{"$f":"+IFERROR(VLOOKUP(PL$27&\"-\"&$M54&\"_new\",Ammortamento_Finanziario!$H:$L,5,FALSE),VLOOKUP($M54,TT_Tabelle_Riferimento!$D$127:$H$164,5,FALSE))","v":8},{"$f":"+IFERROR(VLOOKUP(PM$27&\"-\"&$M54&\"_new\",Ammortamento_Finanziario!$H:$L,5,FALSE),VLOOKUP($M54,TT_Tabelle_Riferimento!$D$127:$H$164,5,FALSE))","v":8},{"$f":"+IFERROR(VLOOKUP(PN$27&\"-\"&$M54&\"_new\",Ammortamento_Finanziario!$H:$L,5,FALSE),VLOOKUP($M54,TT_Tabelle_Riferimento!$D$127:$H$164,5,FALSE))","v":8},{"$f":"+IFERROR(VLOOKUP(PO$27&\"-\"&$M54&\"_new\",Ammortamento_Finanziario!$H:$L,5,FALSE),VLOOKUP($M54,TT_Tabelle_Riferimento!$D$127:$H$164,5,FALSE))","v":8},{"$f":"+IFERROR(VLOOKUP(PP$27&\"-\"&$M54&\"_new\",Ammortamento_Finanziario!$H:$L,5,FALSE),VLOOKUP($M54,TT_Tabelle_Riferimento!$D$127:$H$164,5,FALSE))","v":8},{"$f":"+IFERROR(VLOOKUP(PQ$27&\"-\"&$M54&\"_new\",Ammortamento_Finanziario!$H:$L,5,FALSE),VLOOKUP($M54,TT_Tabelle_Riferimento!$D$127:$H$164,5,FALSE))","v":8},{"$f":"+IFERROR(VLOOKUP(PR$27&\"-\"&$M54&\"_new\",Ammortamento_Finanziario!$H:$L,5,FALSE),VLOOKUP($M54,TT_Tabelle_Riferimento!$D$127:$H$164,5,FALSE))","v":8},{"$f":"+IFERROR(VLOOKUP(PS$27&\"-\"&$M54&\"_new\",Ammortamento_Finanziario!$H:$L,5,FALSE),VLOOKUP($M54,TT_Tabelle_Riferimento!$D$127:$H$164,5,FALSE))","v":8},{"$f":"+IFERROR(VLOOKUP(PT$27&\"-\"&$M54&\"_new\",Ammortamento_Finanziario!$H:$L,5,FALSE),VLOOKUP($M54,TT_Tabelle_Riferimento!$D$127:$H$164,5,FALSE))","v":8},{"$f":"+IFERROR(VLOOKUP(PU$27&\"-\"&$M54&\"_new\",Ammortamento_Finanziario!$H:$L,5,FALSE),VLOOKUP($M54,TT_Tabelle_Riferimento!$D$127:$H$164,5,FALSE))","v":8},{"$f":"+IFERROR(VLOOKUP(PV$27&\"-\"&$M54&\"_new\",Ammortamento_Finanziario!$H:$L,5,FALSE),VLOOKUP($M54,TT_Tabelle_Riferimento!$D$127:$H$164,5,FALSE))","v":8},{"$f":"+IFERROR(VLOOKUP(PW$27&\"-\"&$M54&\"_new\",Ammortamento_Finanziario!$H:$L,5,FALSE),VLOOKUP($M54,TT_Tabelle_Riferimento!$D$127:$H$164,5,FALSE))","v":8},{"$f":"+IFERROR(VLOOKUP(PX$27&\"-\"&$M54&\"_new\",Ammortamento_Finanziario!$H:$L,5,FALSE),VLOOKUP($M54,TT_Tabelle_Riferimento!$D$127:$H$164,5,FALSE))","v":8},{"$f":"+IFERROR(VLOOKUP(PY$27&\"-\"&$M54&\"_new\",Ammortamento_Finanziario!$H:$L,5,FALSE),VLOOKUP($M54,TT_Tabelle_Riferimento!$D$127:$H$164,5,FALSE))","v":8},{"$f":"+IFERROR(VLOOKUP(PZ$27&\"-\"&$M54&\"_new\",Ammortamento_Finanziario!$H:$L,5,FALSE),VLOOKUP($M54,TT_Tabelle_Riferimento!$D$127:$H$164,5,FALSE))","v":8},{"$f":"+IFERROR(VLOOKUP(QA$27&\"-\"&$M54&\"_new\",Ammortamento_Finanziario!$H:$L,5,FALSE),VLOOKUP($M54,TT_Tabelle_Riferimento!$D$127:$H$164,5,FALSE))","v":8},{"$f":"+IFERROR(VLOOKUP(QB$27&\"-\"&$M54&\"_new\",Ammortamento_Finanziario!$H:$L,5,FALSE),VLOOKUP($M54,TT_Tabelle_Riferimento!$D$127:$H$164,5,FALSE))","v":8},{"$f":"+IFERROR(VLOOKUP(QC$27&\"-\"&$M54&\"_new\",Ammortamento_Finanziario!$H:$L,5,FALSE),VLOOKUP($M54,TT_Tabelle_Riferimento!$D$127:$H$164,5,FALSE))","v":8},{"$f":"+IFERROR(VLOOKUP(QD$27&\"-\"&$M54&\"_new\",Ammortamento_Finanziario!$H:$L,5,FALSE),VLOOKUP($M54,TT_Tabelle_Riferimento!$D$127:$H$164,5,FALSE))","v":8},{"$f":"+IFERROR(VLOOKUP(QE$27&\"-\"&$M54&\"_new\",Ammortamento_Finanziario!$H:$L,5,FALSE),VLOOKUP($M54,TT_Tabelle_Riferimento!$D$127:$H$164,5,FALSE))","v":8},{"$f":"+IFERROR(VLOOKUP(QF$27&\"-\"&$M54&\"_new\",Ammortamento_Finanziario!$H:$L,5,FALSE),VLOOKUP($M54,TT_Tabelle_Riferimento!$D$127:$H$164,5,FALSE))","v":8},{"$f":"+IFERROR(VLOOKUP(QG$27&\"-\"&$M54&\"_new\",Ammortamento_Finanziario!$H:$L,5,FALSE),VLOOKUP($M54,TT_Tabelle_Riferimento!$D$127:$H$164,5,FALSE))","v":8},{"$f":"+IFERROR(VLOOKUP(QH$27&\"-\"&$M54&\"_new\",Ammortamento_Finanziario!$H:$L,5,FALSE),VLOOKUP($M54,TT_Tabelle_Riferimento!$D$127:$H$164,5,FALSE))","v":8},{"$f":"+IFERROR(VLOOKUP(QI$27&\"-\"&$M54&\"_new\",Ammortamento_Finanziario!$H:$L,5,FALSE),VLOOKUP($M54,TT_Tabelle_Riferimento!$D$127:$H$164,5,FALSE))","v":8},{"$f":"+IFERROR(VLOOKUP(QJ$27&\"-\"&$M54&\"_new\",Ammortamento_Finanziario!$H:$L,5,FALSE),VLOOKUP($M54,TT_Tabelle_Riferimento!$D$127:$H$164,5,FALSE))","v":8},{"$f":"+IFERROR(VLOOKUP(QK$27&\"-\"&$M54&\"_new\",Ammortamento_Finanziario!$H:$L,5,FALSE),VLOOKUP($M54,TT_Tabelle_Riferimento!$D$127:$H$164,5,FALSE))","v":8},{"$f":"+IFERROR(VLOOKUP(QL$27&\"-\"&$M54&\"_new\",Ammortamento_Finanziario!$H:$L,5,FALSE),VLOOKUP($M54,TT_Tabelle_Riferimento!$D$127:$H$164,5,FALSE))","v":8},{"$f":"+IFERROR(VLOOKUP(QM$27&\"-\"&$M54&\"_new\",Ammortamento_Finanziario!$H:$L,5,FALSE),VLOOKUP($M54,TT_Tabelle_Riferimento!$D$127:$H$164,5,FALSE))","v":8},{"$f":"+IFERROR(VLOOKUP(QN$27&\"-\"&$M54&\"_new\",Ammortamento_Finanziario!$H:$L,5,FALSE),VLOOKUP($M54,TT_Tabelle_Riferimento!$D$127:$H$164,5,FALSE))","v":8},{"$f":"+IFERROR(VLOOKUP(QO$27&\"-\"&$M54&\"_new\",Ammortamento_Finanziario!$H:$L,5,FALSE),VLOOKUP($M54,TT_Tabelle_Riferimento!$D$127:$H$164,5,FALSE))","v":8},{"$f":"+IFERROR(VLOOKUP(QP$27&\"-\"&$M54&\"_new\",Ammortamento_Finanziario!$H:$L,5,FALSE),VLOOKUP($M54,TT_Tabelle_Riferimento!$D$127:$H$164,5,FALSE))","v":8},{"$f":"+IFERROR(VLOOKUP(QQ$27&\"-\"&$M54&\"_new\",Ammortamento_Finanziario!$H:$L,5,FALSE),VLOOKUP($M54,TT_Tabelle_Riferimento!$D$127:$H$164,5,FALSE))","v":8},{"$f":"+IFERROR(VLOOKUP(QR$27&\"-\"&$M54&\"_new\",Ammortamento_Finanziario!$H:$L,5,FALSE),VLOOKUP($M54,TT_Tabelle_Riferimento!$D$127:$H$164,5,FALSE))","v":8},{"$f":"+IFERROR(VLOOKUP(QS$27&\"-\"&$M54&\"_new\",Ammortamento_Finanziario!$H:$L,5,FALSE),VLOOKUP($M54,TT_Tabelle_Riferimento!$D$127:$H$164,5,FALSE))","v":8},{"$f":"+IFERROR(VLOOKUP(QT$27&\"-\"&$M54&\"_new\",Ammortamento_Finanziario!$H:$L,5,FALSE),VLOOKUP($M54,TT_Tabelle_Riferimento!$D$127:$H$164,5,FALSE))","v":8},{"$f":"+IFERROR(VLOOKUP(QU$27&\"-\"&$M54&\"_new\",Ammortamento_Finanziario!$H:$L,5,FALSE),VLOOKUP($M54,TT_Tabelle_Riferimento!$D$127:$H$164,5,FALSE))","v":8},{"$f":"+IFERROR(VLOOKUP(QV$27&\"-\"&$M54&\"_new\",Ammortamento_Finanziario!$H:$L,5,FALSE),VLOOKUP($M54,TT_Tabelle_Riferimento!$D$127:$H$164,5,FALSE))","v":8},{"$f":"+IFERROR(VLOOKUP(QW$27&\"-\"&$M54&\"_new\",Ammortamento_Finanziario!$H:$L,5,FALSE),VLOOKUP($M54,TT_Tabelle_Riferimento!$D$127:$H$164,5,FALSE))","v":8},{"$f":"+IFERROR(VLOOKUP(QX$27&\"-\"&$M54&\"_new\",Ammortamento_Finanziario!$H:$L,5,FALSE),VLOOKUP($M54,TT_Tabelle_Riferimento!$D$127:$H$164,5,FALSE))","v":8},{"$f":"+IFERROR(VLOOKUP(QY$27&\"-\"&$M54&\"_new\",Ammortamento_Finanziario!$H:$L,5,FALSE),VLOOKUP($M54,TT_Tabelle_Riferimento!$D$127:$H$164,5,FALSE))","v":8},{"$f":"+IFERROR(VLOOKUP(QZ$27&\"-\"&$M54&\"_new\",Ammortamento_Finanziario!$H:$L,5,FALSE),VLOOKUP($M54,TT_Tabelle_Riferimento!$D$127:$H$164,5,FALSE))","v":8},{"$f":"+IFERROR(VLOOKUP(RA$27&\"-\"&$M54&\"_new\",Ammortamento_Finanziario!$H:$L,5,FALSE),VLOOKUP($M54,TT_Tabelle_Riferimento!$D$127:$H$164,5,FALSE))","v":8},{"$f":"+IFERROR(VLOOKUP(RB$27&\"-\"&$M54&\"_new\",Ammortamento_Finanziario!$H:$L,5,FALSE),VLOOKUP($M54,TT_Tabelle_Riferimento!$D$127:$H$164,5,FALSE))","v":8},{"$f":"+IFERROR(VLOOKUP(RC$27&\"-\"&$M54&\"_new\",Ammortamento_Finanziario!$H:$L,5,FALSE),VLOOKUP($M54,TT_Tabelle_Riferimento!$D$127:$H$164,5,FALSE))","v":8},{"$f":"+IFERROR(VLOOKUP(RD$27&\"-\"&$M54&\"_new\",Ammortamento_Finanziario!$H:$L,5,FALSE),VLOOKUP($M54,TT_Tabelle_Riferimento!$D$127:$H$164,5,FALSE))","v":8},{"$f":"+IFERROR(VLOOKUP(RE$27&\"-\"&$M54&\"_new\",Ammortamento_Finanziario!$H:$L,5,FALSE),VLOOKUP($M54,TT_Tabelle_Riferimento!$D$127:$H$164,5,FALSE))","v":8},{"$f":"+IFERROR(VLOOKUP(RF$27&\"-\"&$M54&\"_new\",Ammortamento_Finanziario!$H:$L,5,FALSE),VLOOKUP($M54,TT_Tabelle_Riferimento!$D$127:$H$164,5,FALSE))","v":8},{"$f":"+IFERROR(VLOOKUP(RG$27&\"-\"&$M54&\"_new\",Ammortamento_Finanziario!$H:$L,5,FALSE),VLOOKUP($M54,TT_Tabelle_Riferimento!$D$127:$H$164,5,FALSE))","v":8},{"$f":"+IFERROR(VLOOKUP(RH$27&\"-\"&$M54&\"_new\",Ammortamento_Finanziario!$H:$L,5,FALSE),VLOOKUP($M54,TT_Tabelle_Riferimento!$D$127:$H$164,5,FALSE))","v":8},{"$f":"+IFERROR(VLOOKUP(RI$27&\"-\"&$M54&\"_new\",Ammortamento_Finanziario!$H:$L,5,FALSE),VLOOKUP($M54,TT_Tabelle_Riferimento!$D$127:$H$164,5,FALSE))","v":8},{"$f":"+IFERROR(VLOOKUP(RJ$27&\"-\"&$M54&\"_new\",Ammortamento_Finanziario!$H:$L,5,FALSE),VLOOKUP($M54,TT_Tabelle_Riferimento!$D$127:$H$164,5,FALSE))","v":8},{"$f":"+IFERROR(VLOOKUP(RK$27&\"-\"&$M54&\"_new\",Ammortamento_Finanziario!$H:$L,5,FALSE),VLOOKUP($M54,TT_Tabelle_Riferimento!$D$127:$H$164,5,FALSE))","v":8},{"$f":"+IFERROR(VLOOKUP(RL$27&\"-\"&$M54&\"_new\",Ammortamento_Finanziario!$H:$L,5,FALSE),VLOOKUP($M54,TT_Tabelle_Riferimento!$D$127:$H$164,5,FALSE))","v":8},{"$f":"+IFERROR(VLOOKUP(RM$27&\"-\"&$M54&\"_new\",Ammortamento_Finanziario!$H:$L,5,FALSE),VLOOKUP($M54,TT_Tabelle_Riferimento!$D$127:$H$164,5,FALSE))","v":8},{"$f":"+IFERROR(VLOOKUP(RN$27&\"-\"&$M54&\"_new\",Ammortamento_Finanziario!$H:$L,5,FALSE),VLOOKUP($M54,TT_Tabelle_Riferimento!$D$127:$H$164,5,FALSE))","v":8},{"$f":"+IFERROR(VLOOKUP(RO$27&\"-\"&$M54&\"_new\",Ammortamento_Finanziario!$H:$L,5,FALSE),VLOOKUP($M54,TT_Tabelle_Riferimento!$D$127:$H$164,5,FALSE))","v":8},{"$f":"+IFERROR(VLOOKUP(RP$27&\"-\"&$M54&\"_new\",Ammortamento_Finanziario!$H:$L,5,FALSE),VLOOKUP($M54,TT_Tabelle_Riferimento!$D$127:$H$164,5,FALSE))","v":8},{"$f":"+IFERROR(VLOOKUP(RQ$27&\"-\"&$M54&\"_new\",Ammortamento_Finanziario!$H:$L,5,FALSE),VLOOKUP($M54,TT_Tabelle_Riferimento!$D$127:$H$164,5,FALSE))","v":8},{"$f":"+IFERROR(VLOOKUP(RR$27&\"-\"&$M54&\"_new\",Ammortamento_Finanziario!$H:$L,5,FALSE),VLOOKUP($M54,TT_Tabelle_Riferimento!$D$127:$H$164,5,FALSE))","v":8},{"$f":"+IFERROR(VLOOKUP(RS$27&\"-\"&$M54&\"_new\",Ammortamento_Finanziario!$H:$L,5,FALSE),VLOOKUP($M54,TT_Tabelle_Riferimento!$D$127:$H$164,5,FALSE))","v":8},{"$f":"+IFERROR(VLOOKUP(RT$27&\"-\"&$M54&\"_new\",Ammortamento_Finanziario!$H:$L,5,FALSE),VLOOKUP($M54,TT_Tabelle_Riferimento!$D$127:$H$164,5,FALSE))","v":8},{"$f":"+IFERROR(VLOOKUP(RU$27&\"-\"&$M54&\"_new\",Ammortamento_Finanziario!$H:$L,5,FALSE),VLOOKUP($M54,TT_Tabelle_Riferimento!$D$127:$H$164,5,FALSE))","v":8},{"$f":"+IFERROR(VLOOKUP(RV$27&\"-\"&$M54&\"_new\",Ammortamento_Finanziario!$H:$L,5,FALSE),VLOOKUP($M54,TT_Tabelle_Riferimento!$D$127:$H$164,5,FALSE))","v":8}]
[null,null,null,"FA",{"$f":"+SUMIFS(IMN_gestore!Q:Q,IMN_gestore!$G:$G,\"Res\")","v":0},{"$f":"+SUMIFS(IMN_gestore!AB:AB,IMN_gestore!$G:$G,\"Res\")","v":0},{"$f":"+SUMIFS(IMN_gestore!AM:AM,IMN_gestore!$G:$G,\"Res\")","v":0},{"$f":"+SUMIFS(IMN_gestore!AX:AX,IMN_gestore!$G:$G,\"Res\")","v":0},{"$f":"+SUMIFS(IMN_gestore!$BI:$BI,IMN_gestore!$G:$G,\"Res\")","v":0},{"$f":"+SUMIFS(IMN_gestore!$BT:$BT,IMN_gestore!$G:$G,\"Res\")","v":0},null,null,28,0,0,0,0,0,0,0,0,0,0,0,0,0,0,0,0,0,0,0,0,0,0,0,0,0,0,0,0,0,0,0,0,0,0,0,0,0,0,0,0,0,0,0,0,0,0,0,0,0,0,0,0,0,0,0,0,0,0,0,0,0,0,0,0,0,0,0,0,0,0,0,0,0,0,0,0,0,0,0,0,0,0,0,0,0,0,0,0,0,0,0,0,0,0,0,0,0,0,0,0,0,0,0,0,0,0,0,0,0,0,0,0,0,0,0,0,0,0,0,0,0,0,0,0,0,0,0,0,0,0,0,0,0,0,0,0,0,0,0,0,0,0,0,0,0,0,0,0,0,0,0,0,0,0,0,0,0,0,0,0,0,0,0,0,0,0,0,0,0,0,0,0,0,0,0,0,0,0,0,0,0,0,0,0,0,0,0,0,0,0,0,0,0,0,0,0,0,0,0,0,0,0,0,0,0,0,0,0,0,0,0,0,0,0,0,0,0,0,0,0,0,0,0,0,0,0,0,0,0,0,0,0,0,0,0,0,0,0,0,0,0,0,0,0,0,0,0,0,0,0,0,0,0,0,0,0,0,0,0,0,0,0,0,0,0,0,0,0,0,0,0,0,0,0,0,0,0,0,0,0,0,0,0,0,0,0,0,0,0,{"$f":"+IFERROR(VLOOKUP(KQ$27&\"-\"&$M55&\"_new\",Ammortamento_Finanziario!$H:$L,5,FALSE),VLOOKUP($M55,TT_Tabelle_Riferimento!$D$127:$H$164,5,FALSE))","v":20},{"$f":"+IFERROR(VLOOKUP(KR$27&\"-\"&$M55&\"_new\",Ammortamento_Finanziario!$H:$L,5,FALSE),VLOOKUP($M55,TT_Tabelle_Riferimento!$D$127:$H$164,5,FALSE))","v":20},{"$f":"+IFERROR(VLOOKUP(KS$27&\"-\"&$M55&\"_new\",Ammortamento_Finanziario!$H:$L,5,FALSE),VLOOKUP($M55,TT_Tabelle_Riferimento!$D$127:$H$164,5,FALSE))","v":20},{"$f":"+IFERROR(VLOOKUP(KT$27&\"-\"&$M55&\"_new\",Ammortamento_Finanziario!$H:$L,5,FALSE),VLOOKUP($M55,TT_Tabelle_Riferimento!$D$127:$H$164,5,FALSE))","v":20},{"$f":"+IFERROR(VLOOKUP(KU$27&\"-\"&$M55&\"_new\",Ammortamento_Finanziario!$H:$L,5,FALSE),VLOOKUP($M55,TT_Tabelle_Riferimento!$D$127:$H$164,5,FALSE))","v":20},{"$f":"+IFERROR(VLOOKUP(KV$27&\"-\"&$M55&\"_new\",Ammortamento_Finanziario!$H:$L,5,FALSE),VLOOKUP($M55,TT_Tabelle_Riferimento!$D$127:$H$164,5,FALSE))","v":20},{"$f":"+IFERROR(VLOOKUP(KW$27&\"-\"&$M55&\"_new\",Ammortamento_Finanziario!$H:$L,5,FALSE),VLOOKUP($M55,TT_Tabelle_Riferimento!$D$127:$H$164,5,FALSE))","v":20},{"$f":"+IFERROR(VLOOKUP(KX$27&\"-\"&$M55&\"_new\",Ammortamento_Finanziario!$H:$L,5,FALSE),VLOOKUP($M55,TT_Tabelle_Riferimento!$D$127:$H$164,5,FALSE))","v":20},{"$f":"+IFERROR(VLOOKUP(KY$27&\"-\"&$M55&\"_new\",Ammortamento_Finanziario!$H:$L,5,FALSE),VLOOKUP($M55,TT_Tabelle_Riferimento!$D$127:$H$164,5,FALSE))","v":20},{"$f":"+IFERROR(VLOOKUP(KZ$27&\"-\"&$M55&\"_new\",Ammortamento_Finanziario!$H:$L,5,FALSE),VLOOKUP($M55,TT_Tabelle_Riferimento!$D$127:$H$164,5,FALSE))","v":20},{"$f":"+IFERROR(VLOOKUP(LA$27&\"-\"&$M55&\"_new\",Ammortamento_Finanziario!$H:$L,5,FALSE),VLOOKUP($M55,TT_Tabelle_Riferimento!$D$127:$H$164,5,FALSE))","v":20},{"$f":"+IFERROR(VLOOKUP(LB$27&\"-\"&$M55&\"_new\",Ammortamento_Finanziario!$H:$L,5,FALSE),VLOOKUP($M55,TT_Tabelle_Riferimento!$D$127:$H$164,5,FALSE))","v":20},{"$f":"+IFERROR(VLOOKUP(LC$27&\"-\"&$M55&\"_new\",Ammortamento_Finanziario!$H:$L,5,FALSE),VLOOKUP($M55,TT_Tabelle_Riferimento!$D$127:$H$164,5,FALSE))","v":20},{"$f":"+IFERROR(VLOOKUP(LD$27&\"-\"&$M55&\"_new\",Ammortamento_Finanziario!$H:$L,5,FALSE),VLOOKUP($M55,TT_Tabelle_Riferimento!$D$127:$H$164,5,FALSE))","v":20},{"$f":"+IFERROR(VLOOKUP(LE$27&\"-\"&$M55&\"_new\",Ammortamento_Finanziario!$H:$L,5,FALSE),VLOOKUP($M55,TT_Tabelle_Riferimento!$D$127:$H$164,5,FALSE))","v":20},{"$f":"+IFERROR(VLOOKUP(LF$27&\"-\"&$M55&\"_new\",Ammortamento_Finanziario!$H:$L,5,FALSE),VLOOKUP($M55,TT_Tabelle_Riferimento!$D$127:$H$164,5,FALSE))","v":20},{"$f":"+IFERROR(VLOOKUP(LG$27&\"-\"&$M55&\"_new\",Ammortamento_Finanziario!$H:$L,5,FALSE),VLOOKUP($M55,TT_Tabelle_Riferimento!$D$127:$H$164,5,FALSE))","v":20},{"$f":"+IFERROR(VLOOKUP(LH$27&\"-\"&$M55&\"_new\",Ammortamento_Finanziario!$H:$L,5,FALSE),VLOOKUP($M55,TT_Tabelle_Riferimento!$D$127:$H$164,5,FALSE))","v":20},{"$f":"+IFERROR(VLOOKUP(LI$27&\"-\"&$M55&\"_new\",Ammortamento_Finanziario!$H:$L,5,FALSE),VLOOKUP($M55,TT_Tabelle_Riferimento!$D$127:$H$164,5,FALSE))","v":20},{"$f":"+IFERROR(VLOOKUP(LJ$27&\"-\"&$M55&\"_new\",Ammortamento_Finanziario!$H:$L,5,FALSE),VLOOKUP($M55,TT_Tabelle_Riferimento!$D$127:$H$164,5,FALSE))","v":20},{"$f":"+IFERROR(VLOOKUP(LK$27&\"-\"&$M55&\"_new\",Ammortamento_Finanziario!$H:$L,5,FALSE),VLOOKUP($M55,TT_Tabelle_Riferimento!$D$127:$H$164,5,FALSE))","v":20},{"$f":"+IFERROR(VLOOKUP(LL$27&\"-\"&$M55&\"_new\",Ammortamento_Finanziario!$H:$L,5,FALSE),VLOOKUP($M55,TT_Tabelle_Riferimento!$D$127:$H$164,5,FALSE))","v":20},{"$f":"+IFERROR(VLOOKUP(LM$27&\"-\"&$M55&\"_new\",Ammortamento_Finanziario!$H:$L,5,FALSE),VLOOKUP($M55,TT_Tabelle_Riferimento!$D$127:$H$164,5,FALSE))","v":20},{"$f":"+IFERROR(VLOOKUP(LN$27&\"-\"&$M55&\"_new\",Ammortamento_Finanziario!$H:$L,5,FALSE),VLOOKUP($M55,TT_Tabelle_Riferimento!$D$127:$H$164,5,FALSE))","v":20},{"$f":"+IFERROR(VLOOKUP(LO$27&\"-\"&$M55&\"_new\",Ammortamento_Finanziario!$H:$L,5,FALSE),VLOOKUP($M55,TT_Tabelle_Riferimento!$D$127:$H$164,5,FALSE))","v":20},{"$f":"+IFERROR(VLOOKUP(LP$27&\"-\"&$M55&\"_new\",Ammortamento_Finanziario!$H:$L,5,FALSE),VLOOKUP($M55,TT_Tabelle_Riferimento!$D$127:$H$164,5,FALSE))","v":20},{"$f":"+IFERROR(VLOOKUP(LQ$27&\"-\"&$M55&\"_new\",Ammortamento_Finanziario!$H:$L,5,FALSE),VLOOKUP($M55,TT_Tabelle_Riferimento!$D$127:$H$164,5,FALSE))","v":20},{"$f":"+IFERROR(VLOOKUP(LR$27&\"-\"&$M55&\"_new\",Ammortamento_Finanziario!$H:$L,5,FALSE),VLOOKUP($M55,TT_Tabelle_Riferimento!$D$127:$H$164,5,FALSE))","v":20},{"$f":"+IFERROR(VLOOKUP(LS$27&\"-\"&$M55&\"_new\",Ammortamento_Finanziario!$H:$L,5,FALSE),VLOOKUP($M55,TT_Tabelle_Riferimento!$D$127:$H$164,5,FALSE))","v":20},{"$f":"+IFERROR(VLOOKUP(LT$27&\"-\"&$M55&\"_new\",Ammortamento_Finanziario!$H:$L,5,FALSE),VLOOKUP($M55,TT_Tabelle_Riferimento!$D$127:$H$164,5,FALSE))","v":20},{"$f":"+IFERROR(VLOOKUP(LU$27&\"-\"&$M55&\"_new\",Ammortamento_Finanziario!$H:$L,5,FALSE),VLOOKUP($M55,TT_Tabelle_Riferimento!$D$127:$H$164,5,FALSE))","v":20},{"$f":"+IFERROR(VLOOKUP(LV$27&\"-\"&$M55&\"_new\",Ammortamento_Finanziario!$H:$L,5,FALSE),VLOOKUP($M55,TT_Tabelle_Riferimento!$D$127:$H$164,5,FALSE))","v":20},{"$f":"+IFERROR(VLOOKUP(LW$27&\"-\"&$M55&\"_new\",Ammortamento_Finanziario!$H:$L,5,FALSE),VLOOKUP($M55,TT_Tabelle_Riferimento!$D$127:$H$164,5,FALSE))","v":20},{"$f":"+IFERROR(VLOOKUP(LX$27&\"-\"&$M55&\"_new\",Ammortamento_Finanziario!$H:$L,5,FALSE),VLOOKUP($M55,TT_Tabelle_Riferimento!$D$127:$H$164,5,FALSE))","v":20},{"$f":"+IFERROR(VLOOKUP(LY$27&\"-\"&$M55&\"_new\",Ammortamento_Finanziario!$H:$L,5,FALSE),VLOOKUP($M55,TT_Tabelle_Riferimento!$D$127:$H$164,5,FALSE))","v":20},{"$f":"+IFERROR(VLOOKUP(LZ$27&\"-\"&$M55&\"_new\",Ammortamento_Finanziario!$H:$L,5,FALSE),VLOOKUP($M55,TT_Tabelle_Riferimento!$D$127:$H$164,5,FALSE))","v":20},{"$f":"+IFERROR(VLOOKUP(MA$27&\"-\"&$M55&\"_new\",Ammortamento_Finanziario!$H:$L,5,FALSE),VLOOKUP($M55,TT_Tabelle_Riferimento!$D$127:$H$164,5,FALSE))","v":20},{"$f":"+IFERROR(VLOOKUP(MB$27&\"-\"&$M55&\"_new\",Ammortamento_Finanziario!$H:$L,5,FALSE),VLOOKUP($M55,TT_Tabelle_Riferimento!$D$127:$H$164,5,FALSE))","v":20},{"$f":"+IFERROR(VLOOKUP(MC$27&\"-\"&$M55&\"_new\",Ammortamento_Finanziario!$H:$L,5,FALSE),VLOOKUP($M55,TT_Tabelle_Riferimento!$D$127:$H$164,5,FALSE))","v":20},{"$f":"+IFERROR(VLOOKUP(MD$27&\"-\"&$M55&\"_new\",Ammortamento_Finanziario!$H:$L,5,FALSE),VLOOKUP($M55,TT_Tabelle_Riferimento!$D$127:$H$164,5,FALSE))","v":20},{"$f":"+IFERROR(VLOOKUP(ME$27&\"-\"&$M55&\"_new\",Ammortamento_Finanziario!$H:$L,5,FALSE),VLOOKUP($M55,TT_Tabelle_Riferimento!$D$127:$H$164,5,FALSE))","v":20},{"$f":"+IFERROR(VLOOKUP(MF$27&\"-\"&$M55&\"_new\",Ammortamento_Finanziario!$H:$L,5,FALSE),VLOOKUP($M55,TT_Tabelle_Riferimento!$D$127:$H$164,5,FALSE))","v":20},{"$f":"+IFERROR(VLOOKUP(MG$27&\"-\"&$M55&\"_new\",Ammortamento_Finanziario!$H:$L,5,FALSE),VLOOKUP($M55,TT_Tabelle_Riferimento!$D$127:$H$164,5,FALSE))","v":20},{"$f":"+IFERROR(VLOOKUP(MH$27&\"-\"&$M55&\"_new\",Ammortamento_Finanziario!$H:$L,5,FALSE),VLOOKUP($M55,TT_Tabelle_Riferimento!$D$127:$H$164,5,FALSE))","v":20},{"$f":"+IFERROR(VLOOKUP(MI$27&\"-\"&$M55&\"_new\",Ammortamento_Finanziario!$H:$L,5,FALSE),VLOOKUP($M55,TT_Tabelle_Riferimento!$D$127:$H$164,5,FALSE))","v":20},{"$f":"+IFERROR(VLOOKUP(MJ$27&\"-\"&$M55&\"_new\",Ammortamento_Finanziario!$H:$L,5,FALSE),VLOOKUP($M55,TT_Tabelle_Riferimento!$D$127:$H$164,5,FALSE))","v":20},{"$f":"+IFERROR(VLOOKUP(MK$27&\"-\"&$M55&\"_new\",Ammortamento_Finanziario!$H:$L,5,FALSE),VLOOKUP($M55,TT_Tabelle_Riferimento!$D$127:$H$164,5,FALSE))","v":20},{"$f":"+IFERROR(VLOOKUP(ML$27&\"-\"&$M55&\"_new\",Ammortamento_Finanziario!$H:$L,5,FALSE),VLOOKUP($M55,TT_Tabelle_Riferimento!$D$127:$H$164,5,FALSE))","v":20},{"$f":"+IFERROR(VLOOKUP(MM$27&\"-\"&$M55&\"_new\",Ammortamento_Finanziario!$H:$L,5,FALSE),VLOOKUP($M55,TT_Tabelle_Riferimento!$D$127:$H$164,5,FALSE))","v":20},{"$f":"+IFERROR(VLOOKUP(MN$27&\"-\"&$M55&\"_new\",Ammortamento_Finanziario!$H:$L,5,FALSE),VLOOKUP($M55,TT_Tabelle_Riferimento!$D$127:$H$164,5,FALSE))","v":20},{"$f":"+IFERROR(VLOOKUP(MO$27&\"-\"&$M55&\"_new\",Ammortamento_Finanziario!$H:$L,5,FALSE),VLOOKUP($M55,TT_Tabelle_Riferimento!$D$127:$H$164,5,FALSE))","v":20},{"$f":"+IFERROR(VLOOKUP(MP$27&\"-\"&$M55&\"_new\",Ammortamento_Finanziario!$H:$L,5,FALSE),VLOOKUP($M55,TT_Tabelle_Riferimento!$D$127:$H$164,5,FALSE))","v":20},{"$f":"+IFERROR(VLOOKUP(MQ$27&\"-\"&$M55&\"_new\",Ammortamento_Finanziario!$H:$L,5,FALSE),VLOOKUP($M55,TT_Tabelle_Riferimento!$D$127:$H$164,5,FALSE))","v":20},{"$f":"+IFERROR(VLOOKUP(MR$27&\"-\"&$M55&\"_new\",Ammortamento_Finanziario!$H:$L,5,FALSE),VLOOKUP($M55,TT_Tabelle_Riferimento!$D$127:$H$164,5,FALSE))","v":20},{"$f":"+IFERROR(VLOOKUP(MS$27&\"-\"&$M55&\"_new\",Ammortamento_Finanziario!$H:$L,5,FALSE),VLOOKUP($M55,TT_Tabelle_Riferimento!$D$127:$H$164,5,FALSE))","v":20},{"$f":"+IFERROR(VLOOKUP(MT$27&\"-\"&$M55&\"_new\",Ammortamento_Finanziario!$H:$L,5,FALSE),VLOOKUP($M55,TT_Tabelle_Riferimento!$D$127:$H$164,5,FALSE))","v":20},{"$f":"+IFERROR(VLOOKUP(MU$27&\"-\"&$M55&\"_new\",Ammortamento_Finanziario!$H:$L,5,FALSE),VLOOKUP($M55,TT_Tabelle_Riferimento!$D$127:$H$164,5,FALSE))","v":20},{"$f":"+IFERROR(VLOOKUP(MV$27&\"-\"&$M55&\"_new\",Ammortamento_Finanziario!$H:$L,5,FALSE),VLOOKUP($M55,TT_Tabelle_Riferimento!$D$127:$H$164,5,FALSE))","v":20},{"$f":"+IFERROR(VLOOKUP(MW$27&\"-\"&$M55&\"_new\",Ammortamento_Finanziario!$H:$L,5,FALSE),VLOOKUP($M55,TT_Tabelle_Riferimento!$D$127:$H$164,5,FALSE))","v":20},{"$f":"+IFERROR(VLOOKUP(MX$27&\"-\"&$M55&\"_new\",Ammortamento_Finanziario!$H:$L,5,FALSE),VLOOKUP($M55,TT_Tabelle_Riferimento!$D$127:$H$164,5,FALSE))","v":20},{"$f":"+IFERROR(VLOOKUP(MY$27&\"-\"&$M55&\"_new\",Ammortamento_Finanziario!$H:$L,5,FALSE),VLOOKUP($M55,TT_Tabelle_Riferimento!$D$127:$H$164,5,FALSE))","v":20},{"$f":"+IFERROR(VLOOKUP(MZ$27&\"-\"&$M55&\"_new\",Ammortamento_Finanziario!$H:$L,5,FALSE),VLOOKUP($M55,TT_Tabelle_Riferimento!$D$127:$H$164,5,FALSE))","v":20},{"$f":"+IFERROR(VLOOKUP(NA$27&\"-\"&$M55&\"_new\",Ammortamento_Finanziario!$H:$L,5,FALSE),VLOOKUP($M55,TT_Tabelle_Riferimento!$D$127:$H$164,5,FALSE))","v":20},{"$f":"+IFERROR(VLOOKUP(NB$27&\"-\"&$M55&\"_new\",Ammortamento_Finanziario!$H:$L,5,FALSE),VLOOKUP($M55,TT_Tabelle_Riferimento!$D$127:$H$164,5,FALSE))","v":20},{"$f":"+IFERROR(VLOOKUP(NC$27&\"-\"&$M55&\"_new\",Ammortamento_Finanziario!$H:$L,5,FALSE),VLOOKUP($M55,TT_Tabelle_Riferimento!$D$127:$H$164,5,FALSE))","v":20},{"$f":"+IFERROR(VLOOKUP(ND$27&\"-\"&$M55&\"_new\",Ammortamento_Finanziario!$H:$L,5,FALSE),VLOOKUP($M55,TT_Tabelle_Riferimento!$D$127:$H$164,5,FALSE))","v":20},{"$f":"+IFERROR(VLOOKUP(NE$27&\"-\"&$M55&\"_new\",Ammortamento_Finanziario!$H:$L,5,FALSE),VLOOKUP($M55,TT_Tabelle_Riferimento!$D$127:$H$164,5,FALSE))","v":20},{"$f":"+IFERROR(VLOOKUP(NF$27&\"-\"&$M55&\"_new\",Ammortamento_Finanziario!$H:$L,5,FALSE),VLOOKUP($M55,TT_Tabelle_Riferimento!$D$127:$H$164,5,FALSE))","v":20},{"$f":"+IFERROR(VLOOKUP(NG$27&\"-\"&$M55&\"_new\",Ammortamento_Finanziario!$H:$L,5,FALSE),VLOOKUP($M55,TT_Tabelle_Riferimento!$D$127:$H$164,5,FALSE))","v":20},{"$f":"+IFERROR(VLOOKUP(NH$27&\"-\"&$M55&\"_new\",Ammortamento_Finanziario!$H:$L,5,FALSE),VLOOKUP($M55,TT_Tabelle_Riferimento!$D$127:$H$164,5,FALSE))","v":20},{"$f":"+IFERROR(VLOOKUP(NI$27&\"-\"&$M55&\"_new\",Ammortamento_Finanziario!$H:$L,5,FALSE),VLOOKUP($M55,TT_Tabelle_Riferimento!$D$127:$H$164,5,FALSE))","v":20},{"$f":"+IFERROR(VLOOKUP(NJ$27&\"-\"&$M55&\"_new\",Ammortamento_Finanziario!$H:$L,5,FALSE),VLOOKUP($M55,TT_Tabelle_Riferimento!$D$127:$H$164,5,FALSE))","v":20},{"$f":"+IFERROR(VLOOKUP(NK$27&\"-\"&$M55&\"_new\",Ammortamento_Finanziario!$H:$L,5,FALSE),VLOOKUP($M55,TT_Tabelle_Riferimento!$D$127:$H$164,5,FALSE))","v":20},{"$f":"+IFERROR(VLOOKUP(NL$27&\"-\"&$M55&\"_new\",Ammortamento_Finanziario!$H:$L,5,FALSE),VLOOKUP($M55,TT_Tabelle_Riferimento!$D$127:$H$164,5,FALSE))","v":20},{"$f":"+IFERROR(VLOOKUP(NM$27&\"-\"&$M55&\"_new\",Ammortamento_Finanziario!$H:$L,5,FALSE),VLOOKUP($M55,TT_Tabelle_Riferimento!$D$127:$H$164,5,FALSE))","v":20},{"$f":"+IFERROR(VLOOKUP(NN$27&\"-\"&$M55&\"_new\",Ammortamento_Finanziario!$H:$L,5,FALSE),VLOOKUP($M55,TT_Tabelle_Riferimento!$D$127:$H$164,5,FALSE))","v":20},{"$f":"+IFERROR(VLOOKUP(NO$27&\"-\"&$M55&\"_new\",Ammortamento_Finanziario!$H:$L,5,FALSE),VLOOKUP($M55,TT_Tabelle_Riferimento!$D$127:$H$164,5,FALSE))","v":20},{"$f":"+IFERROR(VLOOKUP(NP$27&\"-\"&$M55&\"_new\",Ammortamento_Finanziario!$H:$L,5,FALSE),VLOOKUP($M55,TT_Tabelle_Riferimento!$D$127:$H$164,5,FALSE))","v":20},{"$f":"+IFERROR(VLOOKUP(NQ$27&\"-\"&$M55&\"_new\",Ammortamento_Finanziario!$H:$L,5,FALSE),VLOOKUP($M55,TT_Tabelle_Riferimento!$D$127:$H$164,5,FALSE))","v":20},{"$f":"+IFERROR(VLOOKUP(NR$27&\"-\"&$M55&\"_new\",Ammortamento_Finanziario!$H:$L,5,FALSE),VLOOKUP($M55,TT_Tabelle_Riferimento!$D$127:$H$164,5,FALSE))","v":20},{"$f":"+IFERROR(VLOOKUP(NS$27&\"-\"&$M55&\"_new\",Ammortamento_Finanziario!$H:$L,5,FALSE),VLOOKUP($M55,TT_Tabelle_Riferimento!$D$127:$H$164,5,FALSE))","v":20},{"$f":"+IFERROR(VLOOKUP(NT$27&\"-\"&$M55&\"_new\",Ammortamento_Finanziario!$H:$L,5,FALSE),VLOOKUP($M55,TT_Tabelle_Riferimento!$D$127:$H$164,5,FALSE))","v":20},{"$f":"+IFERROR(VLOOKUP(NU$27&\"-\"&$M55&\"_new\",Ammortamento_Finanziario!$H:$L,5,FALSE),VLOOKUP($M55,TT_Tabelle_Riferimento!$D$127:$H$164,5,FALSE))","v":20},{"$f":"+IFERROR(VLOOKUP(NV$27&\"-\"&$M55&\"_new\",Ammortamento_Finanziario!$H:$L,5,FALSE),VLOOKUP($M55,TT_Tabelle_Riferimento!$D$127:$H$164,5,FALSE))","v":20},{"$f":"+IFERROR(VLOOKUP(NW$27&\"-\"&$M55&\"_new\",Ammortamento_Finanziario!$H:$L,5,FALSE),VLOOKUP($M55,TT_Tabelle_Riferimento!$D$127:$H$164,5,FALSE))","v":20},{"$f":"+IFERROR(VLOOKUP(NX$27&\"-\"&$M55&\"_new\",Ammortamento_Finanziario!$H:$L,5,FALSE),VLOOKUP($M55,TT_Tabelle_Riferimento!$D$127:$H$164,5,FALSE))","v":20},{"$f":"+IFERROR(VLOOKUP(NY$27&\"-\"&$M55&\"_new\",Ammortamento_Finanziario!$H:$L,5,FALSE),VLOOKUP($M55,TT_Tabelle_Riferimento!$D$127:$H$164,5,FALSE))","v":20},{"$f":"+IFERROR(VLOOKUP(NZ$27&\"-\"&$M55&\"_new\",Ammortamento_Finanziario!$H:$L,5,FALSE),VLOOKUP($M55,TT_Tabelle_Riferimento!$D$127:$H$164,5,FALSE))","v":20},{"$f":"+IFERROR(VLOOKUP(OA$27&\"-\"&$M55&\"_new\",Ammortamento_Finanziario!$H:$L,5,FALSE),VLOOKUP($M55,TT_Tabelle_Riferimento!$D$127:$H$164,5,FALSE))","v":20},{"$f":"+IFERROR(VLOOKUP(OB$27&\"-\"&$M55&\"_new\",Ammortamento_Finanziario!$H:$L,5,FALSE),VLOOKUP($M55,TT_Tabelle_Riferimento!$D$127:$H$164,5,FALSE))","v":20},{"$f":"+IFERROR(VLOOKUP(OC$27&\"-\"&$M55&\"_new\",Ammortamento_Finanziario!$H:$L,5,FALSE),VLOOKUP($M55,TT_Tabelle_Riferimento!$D$127:$H$164,5,FALSE))","v":20},{"$f":"+IFERROR(VLOOKUP(OD$27&\"-\"&$M55&\"_new\",Ammortamento_Finanziario!$H:$L,5,FALSE),VLOOKUP($M55,TT_Tabelle_Riferimento!$D$127:$H$164,5,FALSE))","v":20},{"$f":"+IFERROR(VLOOKUP(OE$27&\"-\"&$M55&\"_new\",Ammortamento_Finanziario!$H:$L,5,FALSE),VLOOKUP($M55,TT_Tabelle_Riferimento!$D$127:$H$164,5,FALSE))","v":20},{"$f":"+IFERROR(VLOOKUP(OF$27&\"-\"&$M55&\"_new\",Ammortamento_Finanziario!$H:$L,5,FALSE),VLOOKUP($M55,TT_Tabelle_Riferimento!$D$127:$H$164,5,FALSE))","v":20},{"$f":"+IFERROR(VLOOKUP(OG$27&\"-\"&$M55&\"_new\",Ammortamento_Finanziario!$H:$L,5,FALSE),VLOOKUP($M55,TT_Tabelle_Riferimento!$D$127:$H$164,5,FALSE))","v":20},{"$f":"+IFERROR(VLOOKUP(OH$27&\"-\"&$M55&\"_new\",Ammortamento_Finanziario!$H:$L,5,FALSE),VLOOKUP($M55,TT_Tabelle_Riferimento!$D$127:$H$164,5,FALSE))","v":20},{"$f":"+IFERROR(VLOOKUP(OI$27&\"-\"&$M55&\"_new\",Ammortamento_Finanziario!$H:$L,5,FALSE),VLOOKUP($M55,TT_Tabelle_Riferimento!$D$127:$H$164,5,FALSE))","v":20},{"$f":"+IFERROR(VLOOKUP(OJ$27&\"-\"&$M55&\"_new\",Ammortamento_Finanziario!$H:$L,5,FALSE),VLOOKUP($M55,TT_Tabelle_Riferimento!$D$127:$H$164,5,FALSE))","v":20},{"$f":"+IFERROR(VLOOKUP(OK$27&\"-\"&$M55&\"_new\",Ammortamento_Finanziario!$H:$L,5,FALSE),VLOOKUP($M55,TT_Tabelle_Riferimento!$D$127:$H$164,5,FALSE))","v":20},{"$f":"+IFERROR(VLOOKUP(OL$27&\"-\"&$M55&\"_new\",Ammortamento_Finanziario!$H:$L,5,FALSE),VLOOKUP($M55,TT_Tabelle_Riferimento!$D$127:$H$164,5,FALSE))","v":20},{"$f":"+IFERROR(VLOOKUP(OM$27&\"-\"&$M55&\"_new\",Ammortamento_Finanziario!$H:$L,5,FALSE),VLOOKUP($M55,TT_Tabelle_Riferimento!$D$127:$H$164,5,FALSE))","v":20},{"$f":"+IFERROR(VLOOKUP(ON$27&\"-\"&$M55&\"_new\",Ammortamento_Finanziario!$H:$L,5,FALSE),VLOOKUP($M55,TT_Tabelle_Riferimento!$D$127:$H$164,5,FALSE))","v":20},{"$f":"+IFERROR(VLOOKUP(OO$27&\"-\"&$M55&\"_new\",Ammortamento_Finanziario!$H:$L,5,FALSE),VLOOKUP($M55,TT_Tabelle_Riferimento!$D$127:$H$164,5,FALSE))","v":20},{"$f":"+IFERROR(VLOOKUP(OP$27&\"-\"&$M55&\"_new\",Ammortamento_Finanziario!$H:$L,5,FALSE),VLOOKUP($M55,TT_Tabelle_Riferimento!$D$127:$H$164,5,FALSE))","v":20},{"$f":"+IFERROR(VLOOKUP(OQ$27&\"-\"&$M55&\"_new\",Ammortamento_Finanziario!$H:$L,5,FALSE),VLOOKUP($M55,TT_Tabelle_Riferimento!$D$127:$H$164,5,FALSE))","v":20},{"$f":"+IFERROR(VLOOKUP(OR$27&\"-\"&$M55&\"_new\",Ammortamento_Finanziario!$H:$L,5,FALSE),VLOOKUP($M55,TT_Tabelle_Riferimento!$D$127:$H$164,5,FALSE))","v":20},{"$f":"+IFERROR(VLOOKUP(OS$27&\"-\"&$M55&\"_new\",Ammortamento_Finanziario!$H:$L,5,FALSE),VLOOKUP($M55,TT_Tabelle_Riferimento!$D$127:$H$164,5,FALSE))","v":20},{"$f":"+IFERROR(VLOOKUP(OT$27&\"-\"&$M55&\"_new\",Ammortamento_Finanziario!$H:$L,5,FALSE),VLOOKUP($M55,TT_Tabelle_Riferimento!$D$127:$H$164,5,FALSE))","v":20},{"$f":"+IFERROR(VLOOKUP(OU$27&\"-\"&$M55&\"_new\",Ammortamento_Finanziario!$H:$L,5,FALSE),VLOOKUP($M55,TT_Tabelle_Riferimento!$D$127:$H$164,5,FALSE))","v":20},{"$f":"+IFERROR(VLOOKUP(OV$27&\"-\"&$M55&\"_new\",Ammortamento_Finanziario!$H:$L,5,FALSE),VLOOKUP($M55,TT_Tabelle_Riferimento!$D$127:$H$164,5,FALSE))","v":20},{"$f":"+IFERROR(VLOOKUP(OW$27&\"-\"&$M55&\"_new\",Ammortamento_Finanziario!$H:$L,5,FALSE),VLOOKUP($M55,TT_Tabelle_Riferimento!$D$127:$H$164,5,FALSE))","v":20},{"$f":"+IFERROR(VLOOKUP(OX$27&\"-\"&$M55&\"_new\",Ammortamento_Finanziario!$H:$L,5,FALSE),VLOOKUP($M55,TT_Tabelle_Riferimento!$D$127:$H$164,5,FALSE))","v":20},{"$f":"+IFERROR(VLOOKUP(OY$27&\"-\"&$M55&\"_new\",Ammortamento_Finanziario!$H:$L,5,FALSE),VLOOKUP($M55,TT_Tabelle_Riferimento!$D$127:$H$164,5,FALSE))","v":20},{"$f":"+IFERROR(VLOOKUP(OZ$27&\"-\"&$M55&\"_new\",Ammortamento_Finanziario!$H:$L,5,FALSE),VLOOKUP($M55,TT_Tabelle_Riferimento!$D$127:$H$164,5,FALSE))","v":20},{"$f":"+IFERROR(VLOOKUP(PA$27&\"-\"&$M55&\"_new\",Ammortamento_Finanziario!$H:$L,5,FALSE),VLOOKUP($M55,TT_Tabelle_Riferimento!$D$127:$H$164,5,FALSE))","v":20},{"$f":"+IFERROR(VLOOKUP(PB$27&\"-\"&$M55&\"_new\",Ammortamento_Finanziario!$H:$L,5,FALSE),VLOOKUP($M55,TT_Tabelle_Riferimento!$D$127:$H$164,5,FALSE))","v":20},{"$f":"+IFERROR(VLOOKUP(PC$27&\"-\"&$M55&\"_new\",Ammortamento_Finanziario!$H:$L,5,FALSE),VLOOKUP($M55,TT_Tabelle_Riferimento!$D$127:$H$164,5,FALSE))","v":20},{"$f":"+IFERROR(VLOOKUP(PD$27&\"-\"&$M55&\"_new\",Ammortamento_Finanziario!$H:$L,5,FALSE),VLOOKUP($M55,TT_Tabelle_Riferimento!$D$127:$H$164,5,FALSE))","v":20},{"$f":"+IFERROR(VLOOKUP(PE$27&\"-\"&$M55&\"_new\",Ammortamento_Finanziario!$H:$L,5,FALSE),VLOOKUP($M55,TT_Tabelle_Riferimento!$D$127:$H$164,5,FALSE))","v":20},{"$f":"+IFERROR(VLOOKUP(PF$27&\"-\"&$M55&\"_new\",Ammortamento_Finanziario!$H:$L,5,FALSE),VLOOKUP($M55,TT_Tabelle_Riferimento!$D$127:$H$164,5,FALSE))","v":20},{"$f":"+IFERROR(VLOOKUP(PG$27&\"-\"&$M55&\"_new\",Ammortamento_Finanziario!$H:$L,5,FALSE),VLOOKUP($M55,TT_Tabelle_Riferimento!$D$127:$H$164,5,FALSE))","v":20},{"$f":"+IFERROR(VLOOKUP(PH$27&\"-\"&$M55&\"_new\",Ammortamento_Finanziario!$H:$L,5,FALSE),VLOOKUP($M55,TT_Tabelle_Riferimento!$D$127:$H$164,5,FALSE))","v":20},{"$f":"+IFERROR(VLOOKUP(PI$27&\"-\"&$M55&\"_new\",Ammortamento_Finanziario!$H:$L,5,FALSE),VLOOKUP($M55,TT_Tabelle_Riferimento!$D$127:$H$164,5,FALSE))","v":20},{"$f":"+IFERROR(VLOOKUP(PJ$27&\"-\"&$M55&\"_new\",Ammortamento_Finanziario!$H:$L,5,FALSE),VLOOKUP($M55,TT_Tabelle_Riferimento!$D$127:$H$164,5,FALSE))","v":20},{"$f":"+IFERROR(VLOOKUP(PK$27&\"-\"&$M55&\"_new\",Ammortamento_Finanziario!$H:$L,5,FALSE),VLOOKUP($M55,TT_Tabelle_Riferimento!$D$127:$H$164,5,FALSE))","v":20},{"$f":"+IFERROR(VLOOKUP(PL$27&\"-\"&$M55&\"_new\",Ammortamento_Finanziario!$H:$L,5,FALSE),VLOOKUP($M55,TT_Tabelle_Riferimento!$D$127:$H$164,5,FALSE))","v":20},{"$f":"+IFERROR(VLOOKUP(PM$27&\"-\"&$M55&\"_new\",Ammortamento_Finanziario!$H:$L,5,FALSE),VLOOKUP($M55,TT_Tabelle_Riferimento!$D$127:$H$164,5,FALSE))","v":20},{"$f":"+IFERROR(VLOOKUP(PN$27&\"-\"&$M55&\"_new\",Ammortamento_Finanziario!$H:$L,5,FALSE),VLOOKUP($M55,TT_Tabelle_Riferimento!$D$127:$H$164,5,FALSE))","v":20},{"$f":"+IFERROR(VLOOKUP(PO$27&\"-\"&$M55&\"_new\",Ammortamento_Finanziario!$H:$L,5,FALSE),VLOOKUP($M55,TT_Tabelle_Riferimento!$D$127:$H$164,5,FALSE))","v":20},{"$f":"+IFERROR(VLOOKUP(PP$27&\"-\"&$M55&\"_new\",Ammortamento_Finanziario!$H:$L,5,FALSE),VLOOKUP($M55,TT_Tabelle_Riferimento!$D$127:$H$164,5,FALSE))","v":20},{"$f":"+IFERROR(VLOOKUP(PQ$27&\"-\"&$M55&\"_new\",Ammortamento_Finanziario!$H:$L,5,FALSE),VLOOKUP($M55,TT_Tabelle_Riferimento!$D$127:$H$164,5,FALSE))","v":20},{"$f":"+IFERROR(VLOOKUP(PR$27&\"-\"&$M55&\"_new\",Ammortamento_Finanziario!$H:$L,5,FALSE),VLOOKUP($M55,TT_Tabelle_Riferimento!$D$127:$H$164,5,FALSE))","v":20},{"$f":"+IFERROR(VLOOKUP(PS$27&\"-\"&$M55&\"_new\",Ammortamento_Finanziario!$H:$L,5,FALSE),VLOOKUP($M55,TT_Tabelle_Riferimento!$D$127:$H$164,5,FALSE))","v":20},{"$f":"+IFERROR(VLOOKUP(PT$27&\"-\"&$M55&\"_new\",Ammortamento_Finanziario!$H:$L,5,FALSE),VLOOKUP($M55,TT_Tabelle_Riferimento!$D$127:$H$164,5,FALSE))","v":20},{"$f":"+IFERROR(VLOOKUP(PU$27&\"-\"&$M55&\"_new\",Ammortamento_Finanziario!$H:$L,5,FALSE),VLOOKUP($M55,TT_Tabelle_Riferimento!$D$127:$H$164,5,FALSE))","v":20},{"$f":"+IFERROR(VLOOKUP(PV$27&\"-\"&$M55&\"_new\",Ammortamento_Finanziario!$H:$L,5,FALSE),VLOOKUP($M55,TT_Tabelle_Riferimento!$D$127:$H$164,5,FALSE))","v":20},{"$f":"+IFERROR(VLOOKUP(PW$27&\"-\"&$M55&\"_new\",Ammortamento_Finanziario!$H:$L,5,FALSE),VLOOKUP($M55,TT_Tabelle_Riferimento!$D$127:$H$164,5,FALSE))","v":20},{"$f":"+IFERROR(VLOOKUP(PX$27&\"-\"&$M55&\"_new\",Ammortamento_Finanziario!$H:$L,5,FALSE),VLOOKUP($M55,TT_Tabelle_Riferimento!$D$127:$H$164,5,FALSE))","v":20},{"$f":"+IFERROR(VLOOKUP(PY$27&\"-\"&$M55&\"_new\",Ammortamento_Finanziario!$H:$L,5,FALSE),VLOOKUP($M55,TT_Tabelle_Riferimento!$D$127:$H$164,5,FALSE))","v":20},{"$f":"+IFERROR(VLOOKUP(PZ$27&\"-\"&$M55&\"_new\",Ammortamento_Finanziario!$H:$L,5,FALSE),VLOOKUP($M55,TT_Tabelle_Riferimento!$D$127:$H$164,5,FALSE))","v":20},{"$f":"+IFERROR(VLOOKUP(QA$27&\"-\"&$M55&\"_new\",Ammortamento_Finanziario!$H:$L,5,FALSE),VLOOKUP($M55,TT_Tabelle_Riferimento!$D$127:$H$164,5,FALSE))","v":20},{"$f":"+IFERROR(VLOOKUP(QB$27&\"-\"&$M55&\"_new\",Ammortamento_Finanziario!$H:$L,5,FALSE),VLOOKUP($M55,TT_Tabelle_Riferimento!$D$127:$H$164,5,FALSE))","v":20},{"$f":"+IFERROR(VLOOKUP(QC$27&\"-\"&$M55&\"_new\",Ammortamento_Finanziario!$H:$L,5,FALSE),VLOOKUP($M55,TT_Tabelle_Riferimento!$D$127:$H$164,5,FALSE))","v":20},{"$f":"+IFERROR(VLOOKUP(QD$27&\"-\"&$M55&\"_new\",Ammortamento_Finanziario!$H:$L,5,FALSE),VLOOKUP($M55,TT_Tabelle_Riferimento!$D$127:$H$164,5,FALSE))","v":20},{"$f":"+IFERROR(VLOOKUP(QE$27&\"-\"&$M55&\"_new\",Ammortamento_Finanziario!$H:$L,5,FALSE),VLOOKUP($M55,TT_Tabelle_Riferimento!$D$127:$H$164,5,FALSE))","v":20},{"$f":"+IFERROR(VLOOKUP(QF$27&\"-\"&$M55&\"_new\",Ammortamento_Finanziario!$H:$L,5,FALSE),VLOOKUP($M55,TT_Tabelle_Riferimento!$D$127:$H$164,5,FALSE))","v":20},{"$f":"+IFERROR(VLOOKUP(QG$27&\"-\"&$M55&\"_new\",Ammortamento_Finanziario!$H:$L,5,FALSE),VLOOKUP($M55,TT_Tabelle_Riferimento!$D$127:$H$164,5,FALSE))","v":20},{"$f":"+IFERROR(VLOOKUP(QH$27&\"-\"&$M55&\"_new\",Ammortamento_Finanziario!$H:$L,5,FALSE),VLOOKUP($M55,TT_Tabelle_Riferimento!$D$127:$H$164,5,FALSE))","v":20},{"$f":"+IFERROR(VLOOKUP(QI$27&\"-\"&$M55&\"_new\",Ammortamento_Finanziario!$H:$L,5,FALSE),VLOOKUP($M55,TT_Tabelle_Riferimento!$D$127:$H$164,5,FALSE))","v":20},{"$f":"+IFERROR(VLOOKUP(QJ$27&\"-\"&$M55&\"_new\",Ammortamento_Finanziario!$H:$L,5,FALSE),VLOOKUP($M55,TT_Tabelle_Riferimento!$D$127:$H$164,5,FALSE))","v":20},{"$f":"+IFERROR(VLOOKUP(QK$27&\"-\"&$M55&\"_new\",Ammortamento_Finanziario!$H:$L,5,FALSE),VLOOKUP($M55,TT_Tabelle_Riferimento!$D$127:$H$164,5,FALSE))","v":20},{"$f":"+IFERROR(VLOOKUP(QL$27&\"-\"&$M55&\"_new\",Ammortamento_Finanziario!$H:$L,5,FALSE),VLOOKUP($M55,TT_Tabelle_Riferimento!$D$127:$H$164,5,FALSE))","v":20},{"$f":"+IFERROR(VLOOKUP(QM$27&\"-\"&$M55&\"_new\",Ammortamento_Finanziario!$H:$L,5,FALSE),VLOOKUP($M55,TT_Tabelle_Riferimento!$D$127:$H$164,5,FALSE))","v":20},{"$f":"+IFERROR(VLOOKUP(QN$27&\"-\"&$M55&\"_new\",Ammortamento_Finanziario!$H:$L,5,FALSE),VLOOKUP($M55,TT_Tabelle_Riferimento!$D$127:$H$164,5,FALSE))","v":20},{"$f":"+IFERROR(VLOOKUP(QO$27&\"-\"&$M55&\"_new\",Ammortamento_Finanziario!$H:$L,5,FALSE),VLOOKUP($M55,TT_Tabelle_Riferimento!$D$127:$H$164,5,FALSE))","v":20},{"$f":"+IFERROR(VLOOKUP(QP$27&\"-\"&$M55&\"_new\",Ammortamento_Finanziario!$H:$L,5,FALSE),VLOOKUP($M55,TT_Tabelle_Riferimento!$D$127:$H$164,5,FALSE))","v":20},{"$f":"+IFERROR(VLOOKUP(QQ$27&\"-\"&$M55&\"_new\",Ammortamento_Finanziario!$H:$L,5,FALSE),VLOOKUP($M55,TT_Tabelle_Riferimento!$D$127:$H$164,5,FALSE))","v":20},{"$f":"+IFERROR(VLOOKUP(QR$27&\"-\"&$M55&\"_new\",Ammortamento_Finanziario!$H:$L,5,FALSE),VLOOKUP($M55,TT_Tabelle_Riferimento!$D$127:$H$164,5,FALSE))","v":20},{"$f":"+IFERROR(VLOOKUP(QS$27&\"-\"&$M55&\"_new\",Ammortamento_Finanziario!$H:$L,5,FALSE),VLOOKUP($M55,TT_Tabelle_Riferimento!$D$127:$H$164,5,FALSE))","v":20},{"$f":"+IFERROR(VLOOKUP(QT$27&\"-\"&$M55&\"_new\",Ammortamento_Finanziario!$H:$L,5,FALSE),VLOOKUP($M55,TT_Tabelle_Riferimento!$D$127:$H$164,5,FALSE))","v":20},{"$f":"+IFERROR(VLOOKUP(QU$27&\"-\"&$M55&\"_new\",Ammortamento_Finanziario!$H:$L,5,FALSE),VLOOKUP($M55,TT_Tabelle_Riferimento!$D$127:$H$164,5,FALSE))","v":20},{"$f":"+IFERROR(VLOOKUP(QV$27&\"-\"&$M55&\"_new\",Ammortamento_Finanziario!$H:$L,5,FALSE),VLOOKUP($M55,TT_Tabelle_Riferimento!$D$127:$H$164,5,FALSE))","v":20},{"$f":"+IFERROR(VLOOKUP(QW$27&\"-\"&$M55&\"_new\",Ammortamento_Finanziario!$H:$L,5,FALSE),VLOOKUP($M55,TT_Tabelle_Riferimento!$D$127:$H$164,5,FALSE))","v":20},{"$f":"+IFERROR(VLOOKUP(QX$27&\"-\"&$M55&\"_new\",Ammortamento_Finanziario!$H:$L,5,FALSE),VLOOKUP($M55,TT_Tabelle_Riferimento!$D$127:$H$164,5,FALSE))","v":20},{"$f":"+IFERROR(VLOOKUP(QY$27&\"-\"&$M55&\"_new\",Ammortamento_Finanziario!$H:$L,5,FALSE),VLOOKUP($M55,TT_Tabelle_Riferimento!$D$127:$H$164,5,FALSE))","v":20},{"$f":"+IFERROR(VLOOKUP(QZ$27&\"-\"&$M55&\"_new\",Ammortamento_Finanziario!$H:$L,5,FALSE),VLOOKUP($M55,TT_Tabelle_Riferimento!$D$127:$H$164,5,FALSE))","v":20},{"$f":"+IFERROR(VLOOKUP(RA$27&\"-\"&$M55&\"_new\",Ammortamento_Finanziario!$H:$L,5,FALSE),VLOOKUP($M55,TT_Tabelle_Riferimento!$D$127:$H$164,5,FALSE))","v":20},{"$f":"+IFERROR(VLOOKUP(RB$27&\"-\"&$M55&\"_new\",Ammortamento_Finanziario!$H:$L,5,FALSE),VLOOKUP($M55,TT_Tabelle_Riferimento!$D$127:$H$164,5,FALSE))","v":20},{"$f":"+IFERROR(VLOOKUP(RC$27&\"-\"&$M55&\"_new\",Ammortamento_Finanziario!$H:$L,5,FALSE),VLOOKUP($M55,TT_Tabelle_Riferimento!$D$127:$H$164,5,FALSE))","v":20},{"$f":"+IFERROR(VLOOKUP(RD$27&\"-\"&$M55&\"_new\",Ammortamento_Finanziario!$H:$L,5,FALSE),VLOOKUP($M55,TT_Tabelle_Riferimento!$D$127:$H$164,5,FALSE))","v":20},{"$f":"+IFERROR(VLOOKUP(RE$27&\"-\"&$M55&\"_new\",Ammortamento_Finanziario!$H:$L,5,FALSE),VLOOKUP($M55,TT_Tabelle_Riferimento!$D$127:$H$164,5,FALSE))","v":20},{"$f":"+IFERROR(VLOOKUP(RF$27&\"-\"&$M55&\"_new\",Ammortamento_Finanziario!$H:$L,5,FALSE),VLOOKUP($M55,TT_Tabelle_Riferimento!$D$127:$H$164,5,FALSE))","v":20},{"$f":"+IFERROR(VLOOKUP(RG$27&\"-\"&$M55&\"_new\",Ammortamento_Finanziario!$H:$L,5,FALSE),VLOOKUP($M55,TT_Tabelle_Riferimento!$D$127:$H$164,5,FALSE))","v":20},{"$f":"+IFERROR(VLOOKUP(RH$27&\"-\"&$M55&\"_new\",Ammortamento_Finanziario!$H:$L,5,FALSE),VLOOKUP($M55,TT_Tabelle_Riferimento!$D$127:$H$164,5,FALSE))","v":20},{"$f":"+IFERROR(VLOOKUP(RI$27&\"-\"&$M55&\"_new\",Ammortamento_Finanziario!$H:$L,5,FALSE),VLOOKUP($M55,TT_Tabelle_Riferimento!$D$127:$H$164,5,FALSE))","v":20},{"$f":"+IFERROR(VLOOKUP(RJ$27&\"-\"&$M55&\"_new\",Ammortamento_Finanziario!$H:$L,5,FALSE),VLOOKUP($M55,TT_Tabelle_Riferimento!$D$127:$H$164,5,FALSE))","v":20},{"$f":"+IFERROR(VLOOKUP(RK$27&\"-\"&$M55&\"_new\",Ammortamento_Finanziario!$H:$L,5,FALSE),VLOOKUP($M55,TT_Tabelle_Riferimento!$D$127:$H$164,5,FALSE))","v":20},{"$f":"+IFERROR(VLOOKUP(RL$27&\"-\"&$M55&\"_new\",Ammortamento_Finanziario!$H:$L,5,FALSE),VLOOKUP($M55,TT_Tabelle_Riferimento!$D$127:$H$164,5,FALSE))","v":20},{"$f":"+IFERROR(VLOOKUP(RM$27&\"-\"&$M55&\"_new\",Ammortamento_Finanziario!$H:$L,5,FALSE),VLOOKUP($M55,TT_Tabelle_Riferimento!$D$127:$H$164,5,FALSE))","v":20},{"$f":"+IFERROR(VLOOKUP(RN$27&\"-\"&$M55&\"_new\",Ammortamento_Finanziario!$H:$L,5,FALSE),VLOOKUP($M55,TT_Tabelle_Riferimento!$D$127:$H$164,5,FALSE))","v":20},{"$f":"+IFERROR(VLOOKUP(RO$27&\"-\"&$M55&\"_new\",Ammortamento_Finanziario!$H:$L,5,FALSE),VLOOKUP($M55,TT_Tabelle_Riferimento!$D$127:$H$164,5,FALSE))","v":20},{"$f":"+IFERROR(VLOOKUP(RP$27&\"-\"&$M55&\"_new\",Ammortamento_Finanziario!$H:$L,5,FALSE),VLOOKUP($M55,TT_Tabelle_Riferimento!$D$127:$H$164,5,FALSE))","v":20},{"$f":"+IFERROR(VLOOKUP(RQ$27&\"-\"&$M55&\"_new\",Ammortamento_Finanziario!$H:$L,5,FALSE),VLOOKUP($M55,TT_Tabelle_Riferimento!$D$127:$H$164,5,FALSE))","v":20},{"$f":"+IFERROR(VLOOKUP(RR$27&\"-\"&$M55&\"_new\",Ammortamento_Finanziario!$H:$L,5,FALSE),VLOOKUP($M55,TT_Tabelle_Riferimento!$D$127:$H$164,5,FALSE))","v":20},{"$f":"+IFERROR(VLOOKUP(RS$27&\"-\"&$M55&\"_new\",Ammortamento_Finanziario!$H:$L,5,FALSE),VLOOKUP($M55,TT_Tabelle_Riferimento!$D$127:$H$164,5,FALSE))","v":20},{"$f":"+IFERROR(VLOOKUP(RT$27&\"-\"&$M55&\"_new\",Ammortamento_Finanziario!$H:$L,5,FALSE),VLOOKUP($M55,TT_Tabelle_Riferimento!$D$127:$H$164,5,FALSE))","v":20},{"$f":"+IFERROR(VLOOKUP(RU$27&\"-\"&$M55&\"_new\",Ammortamento_Finanziario!$H:$L,5,FALSE),VLOOKUP($M55,TT_Tabelle_Riferimento!$D$127:$H$164,5,FALSE))","v":20},{"$f":"+IFERROR(VLOOKUP(RV$27&\"-\"&$M55&\"_new\",Ammortamento_Finanziario!$H:$L,5,FALSE),VLOOKUP($M55,TT_Tabelle_Riferimento!$D$127:$H$164,5,FALSE))","v":20}]
[null,null,null,"IMN",{"$f":"+SUMIFS(IMN_gestore!R:R,IMN_gestore!$G:$G,\"Res\")","v":0},{"$f":"+SUMIFS(IMN_gestore!AC:AC,IMN_gestore!$G:$G,\"Res\")","v":0},{"$f":"+SUMIFS(IMN_gestore!AN:AN,IMN_gestore!$G:$G,\"Res\")","v":0},{"$f":"+SUMIFS(IMN_gestore!AY:AY,IMN_gestore!$G:$G,\"Res\")","v":0},{"$f":"+SUMIFS(IMN_gestore!$BJ:$BJ,IMN_gestore!$G:$G,\"Res\")","v":0},{"$f":"+SUMIFS(IMN_gestore!$BU:$BU,IMN_gestore!$G:$G,\"Res\")","v":0},null,null,29,0,0,0,0,0,0,0,0,0,0,0,0,0,0,0,0,0,0,0,0,0,0,0,0,0,0,0,0,0,0,0,0,0,0,0,0,0,0,0,0,0,0,0,0,0,0,0,0,0,0,0,0,0,0,0,0,0,0,0,0,0,0,0,0,0,0,0,0,0,0,0,0,0,0,0,0,0,0,0,0,0,0,0,0,0,0,0,0,0,0,0,0,0,0,0,0,0,0,0,0,0,0,0,0,0,0,0,0,0,0,0,0,0,0,0,0,0,0,0,0,0,0,0,0,0,0,0,0,0,0,0,0,0,0,0,0,0,0,0,0,0,0,0,0,0,0,0,0,0,0,0,0,0,0,0,0,0,0,0,0,0,0,0,0,0,0,0,0,0,0,0,0,0,0,0,0,0,0,0,0,0,0,0,0,0,0,0,0,0,0,0,0,0,0,0,0,0,0,0,0,0,0,0,0,0,0,0,0,0,0,0,0,0,0,0,0,0,0,0,0,0,0,0,0,0,0,0,0,0,0,0,0,0,0,0,0,0,0,0,0,0,0,0,0,0,0,0,0,0,0,0,0,0,0,0,0,0,0,0,0,0,0,0,0,0,0,0,0,0,0,0,0,0,0,0,0,0,0,0,0,0,0,0,0,0,0,0,0,0,{"$f":"+IFERROR(VLOOKUP(KQ$27&\"-\"&$M56&\"_new\",Ammortamento_Finanziario!$H:$L,5,FALSE),VLOOKUP($M56,TT_Tabelle_Riferimento!$D$127:$H$164,5,FALSE))","v":10},{"$f":"+IFERROR(VLOOKUP(KR$27&\"-\"&$M56&\"_new\",Ammortamento_Finanziario!$H:$L,5,FALSE),VLOOKUP($M56,TT_Tabelle_Riferimento!$D$127:$H$164,5,FALSE))","v":10},{"$f":"+IFERROR(VLOOKUP(KS$27&\"-\"&$M56&\"_new\",Ammortamento_Finanziario!$H:$L,5,FALSE),VLOOKUP($M56,TT_Tabelle_Riferimento!$D$127:$H$164,5,FALSE))","v":10},{"$f":"+IFERROR(VLOOKUP(KT$27&\"-\"&$M56&\"_new\",Ammortamento_Finanziario!$H:$L,5,FALSE),VLOOKUP($M56,TT_Tabelle_Riferimento!$D$127:$H$164,5,FALSE))","v":10},{"$f":"+IFERROR(VLOOKUP(KU$27&\"-\"&$M56&\"_new\",Ammortamento_Finanziario!$H:$L,5,FALSE),VLOOKUP($M56,TT_Tabelle_Riferimento!$D$127:$H$164,5,FALSE))","v":10},{"$f":"+IFERROR(VLOOKUP(KV$27&\"-\"&$M56&\"_new\",Ammortamento_Finanziario!$H:$L,5,FALSE),VLOOKUP($M56,TT_Tabelle_Riferimento!$D$127:$H$164,5,FALSE))","v":10},{"$f":"+IFERROR(VLOOKUP(KW$27&\"-\"&$M56&\"_new\",Ammortamento_Finanziario!$H:$L,5,FALSE),VLOOKUP($M56,TT_Tabelle_Riferimento!$D$127:$H$164,5,FALSE))","v":10},{"$f":"+IFERROR(VLOOKUP(KX$27&\"-\"&$M56&\"_new\",Ammortamento_Finanziario!$H:$L,5,FALSE),VLOOKUP($M56,TT_Tabelle_Riferimento!$D$127:$H$164,5,FALSE))","v":10},{"$f":"+IFERROR(VLOOKUP(KY$27&\"-\"&$M56&\"_new\",Ammortamento_Finanziario!$H:$L,5,FALSE),VLOOKUP($M56,TT_Tabelle_Riferimento!$D$127:$H$164,5,FALSE))","v":10},{"$f":"+IFERROR(VLOOKUP(KZ$27&\"-\"&$M56&\"_new\",Ammortamento_Finanziario!$H:$L,5,FALSE),VLOOKUP($M56,TT_Tabelle_Riferimento!$D$127:$H$164,5,FALSE))","v":10},{"$f":"+IFERROR(VLOOKUP(LA$27&\"-\"&$M56&\"_new\",Ammortamento_Finanziario!$H:$L,5,FALSE),VLOOKUP($M56,TT_Tabelle_Riferimento!$D$127:$H$164,5,FALSE))","v":10},{"$f":"+IFERROR(VLOOKUP(LB$27&\"-\"&$M56&\"_new\",Ammortamento_Finanziario!$H:$L,5,FALSE),VLOOKUP($M56,TT_Tabelle_Riferimento!$D$127:$H$164,5,FALSE))","v":10},{"$f":"+IFERROR(VLOOKUP(LC$27&\"-\"&$M56&\"_new\",Ammortamento_Finanziario!$H:$L,5,FALSE),VLOOKUP($M56,TT_Tabelle_Riferimento!$D$127:$H$164,5,FALSE))","v":10},{"$f":"+IFERROR(VLOOKUP(LD$27&\"-\"&$M56&\"_new\",Ammortamento_Finanziario!$H:$L,5,FALSE),VLOOKUP($M56,TT_Tabelle_Riferimento!$D$127:$H$164,5,FALSE))","v":10},{"$f":"+IFERROR(VLOOKUP(LE$27&\"-\"&$M56&\"_new\",Ammortamento_Finanziario!$H:$L,5,FALSE),VLOOKUP($M56,TT_Tabelle_Riferimento!$D$127:$H$164,5,FALSE))","v":10},{"$f":"+IFERROR(VLOOKUP(LF$27&\"-\"&$M56&\"_new\",Ammortamento_Finanziario!$H:$L,5,FALSE),VLOOKUP($M56,TT_Tabelle_Riferimento!$D$127:$H$164,5,FALSE))","v":10},{"$f":"+IFERROR(VLOOKUP(LG$27&\"-\"&$M56&\"_new\",Ammortamento_Finanziario!$H:$L,5,FALSE),VLOOKUP($M56,TT_Tabelle_Riferimento!$D$127:$H$164,5,FALSE))","v":10},{"$f":"+IFERROR(VLOOKUP(LH$27&\"-\"&$M56&\"_new\",Ammortamento_Finanziario!$H:$L,5,FALSE),VLOOKUP($M56,TT_Tabelle_Riferimento!$D$127:$H$164,5,FALSE))","v":10},{"$f":"+IFERROR(VLOOKUP(LI$27&\"-\"&$M56&\"_new\",Ammortamento_Finanziario!$H:$L,5,FALSE),VLOOKUP($M56,TT_Tabelle_Riferimento!$D$127:$H$164,5,FALSE))","v":10},{"$f":"+IFERROR(VLOOKUP(LJ$27&\"-\"&$M56&\"_new\",Ammortamento_Finanziario!$H:$L,5,FALSE),VLOOKUP($M56,TT_Tabelle_Riferimento!$D$127:$H$164,5,FALSE))","v":10},{"$f":"+IFERROR(VLOOKUP(LK$27&\"-\"&$M56&\"_new\",Ammortamento_Finanziario!$H:$L,5,FALSE),VLOOKUP($M56,TT_Tabelle_Riferimento!$D$127:$H$164,5,FALSE))","v":10},{"$f":"+IFERROR(VLOOKUP(LL$27&\"-\"&$M56&\"_new\",Ammortamento_Finanziario!$H:$L,5,FALSE),VLOOKUP($M56,TT_Tabelle_Riferimento!$D$127:$H$164,5,FALSE))","v":10},{"$f":"+IFERROR(VLOOKUP(LM$27&\"-\"&$M56&\"_new\",Ammortamento_Finanziario!$H:$L,5,FALSE),VLOOKUP($M56,TT_Tabelle_Riferimento!$D$127:$H$164,5,FALSE))","v":10},{"$f":"+IFERROR(VLOOKUP(LN$27&\"-\"&$M56&\"_new\",Ammortamento_Finanziario!$H:$L,5,FALSE),VLOOKUP($M56,TT_Tabelle_Riferimento!$D$127:$H$164,5,FALSE))","v":10},{"$f":"+IFERROR(VLOOKUP(LO$27&\"-\"&$M56&\"_new\",Ammortamento_Finanziario!$H:$L,5,FALSE),VLOOKUP($M56,TT_Tabelle_Riferimento!$D$127:$H$164,5,FALSE))","v":10},{"$f":"+IFERROR(VLOOKUP(LP$27&\"-\"&$M56&\"_new\",Ammortamento_Finanziario!$H:$L,5,FALSE),VLOOKUP($M56,TT_Tabelle_Riferimento!$D$127:$H$164,5,FALSE))","v":10},{"$f":"+IFERROR(VLOOKUP(LQ$27&\"-\"&$M56&\"_new\",Ammortamento_Finanziario!$H:$L,5,FALSE),VLOOKUP($M56,TT_Tabelle_Riferimento!$D$127:$H$164,5,FALSE))","v":10},{"$f":"+IFERROR(VLOOKUP(LR$27&\"-\"&$M56&\"_new\",Ammortamento_Finanziario!$H:$L,5,FALSE),VLOOKUP($M56,TT_Tabelle_Riferimento!$D$127:$H$164,5,FALSE))","v":10},{"$f":"+IFERROR(VLOOKUP(LS$27&\"-\"&$M56&\"_new\",Ammortamento_Finanziario!$H:$L,5,FALSE),VLOOKUP($M56,TT_Tabelle_Riferimento!$D$127:$H$164,5,FALSE))","v":10},{"$f":"+IFERROR(VLOOKUP(LT$27&\"-\"&$M56&\"_new\",Ammortamento_Finanziario!$H:$L,5,FALSE),VLOOKUP($M56,TT_Tabelle_Riferimento!$D$127:$H$164,5,FALSE))","v":10},{"$f":"+IFERROR(VLOOKUP(LU$27&\"-\"&$M56&\"_new\",Ammortamento_Finanziario!$H:$L,5,FALSE),VLOOKUP($M56,TT_Tabelle_Riferimento!$D$127:$H$164,5,FALSE))","v":10},{"$f":"+IFERROR(VLOOKUP(LV$27&\"-\"&$M56&\"_new\",Ammortamento_Finanziario!$H:$L,5,FALSE),VLOOKUP($M56,TT_Tabelle_Riferimento!$D$127:$H$164,5,FALSE))","v":10},{"$f":"+IFERROR(VLOOKUP(LW$27&\"-\"&$M56&\"_new\",Ammortamento_Finanziario!$H:$L,5,FALSE),VLOOKUP($M56,TT_Tabelle_Riferimento!$D$127:$H$164,5,FALSE))","v":10},{"$f":"+IFERROR(VLOOKUP(LX$27&\"-\"&$M56&\"_new\",Ammortamento_Finanziario!$H:$L,5,FALSE),VLOOKUP($M56,TT_Tabelle_Riferimento!$D$127:$H$164,5,FALSE))","v":10},{"$f":"+IFERROR(VLOOKUP(LY$27&\"-\"&$M56&\"_new\",Ammortamento_Finanziario!$H:$L,5,FALSE),VLOOKUP($M56,TT_Tabelle_Riferimento!$D$127:$H$164,5,FALSE))","v":10},{"$f":"+IFERROR(VLOOKUP(LZ$27&\"-\"&$M56&\"_new\",Ammortamento_Finanziario!$H:$L,5,FALSE),VLOOKUP($M56,TT_Tabelle_Riferimento!$D$127:$H$164,5,FALSE))","v":10},{"$f":"+IFERROR(VLOOKUP(MA$27&\"-\"&$M56&\"_new\",Ammortamento_Finanziario!$H:$L,5,FALSE),VLOOKUP($M56,TT_Tabelle_Riferimento!$D$127:$H$164,5,FALSE))","v":10},{"$f":"+IFERROR(VLOOKUP(MB$27&\"-\"&$M56&\"_new\",Ammortamento_Finanziario!$H:$L,5,FALSE),VLOOKUP($M56,TT_Tabelle_Riferimento!$D$127:$H$164,5,FALSE))","v":10},{"$f":"+IFERROR(VLOOKUP(MC$27&\"-\"&$M56&\"_new\",Ammortamento_Finanziario!$H:$L,5,FALSE),VLOOKUP($M56,TT_Tabelle_Riferimento!$D$127:$H$164,5,FALSE))","v":10},{"$f":"+IFERROR(VLOOKUP(MD$27&\"-\"&$M56&\"_new\",Ammortamento_Finanziario!$H:$L,5,FALSE),VLOOKUP($M56,TT_Tabelle_Riferimento!$D$127:$H$164,5,FALSE))","v":10},{"$f":"+IFERROR(VLOOKUP(ME$27&\"-\"&$M56&\"_new\",Ammortamento_Finanziario!$H:$L,5,FALSE),VLOOKUP($M56,TT_Tabelle_Riferimento!$D$127:$H$164,5,FALSE))","v":10},{"$f":"+IFERROR(VLOOKUP(MF$27&\"-\"&$M56&\"_new\",Ammortamento_Finanziario!$H:$L,5,FALSE),VLOOKUP($M56,TT_Tabelle_Riferimento!$D$127:$H$164,5,FALSE))","v":10},{"$f":"+IFERROR(VLOOKUP(MG$27&\"-\"&$M56&\"_new\",Ammortamento_Finanziario!$H:$L,5,FALSE),VLOOKUP($M56,TT_Tabelle_Riferimento!$D$127:$H$164,5,FALSE))","v":10},{"$f":"+IFERROR(VLOOKUP(MH$27&\"-\"&$M56&\"_new\",Ammortamento_Finanziario!$H:$L,5,FALSE),VLOOKUP($M56,TT_Tabelle_Riferimento!$D$127:$H$164,5,FALSE))","v":10},{"$f":"+IFERROR(VLOOKUP(MI$27&\"-\"&$M56&\"_new\",Ammortamento_Finanziario!$H:$L,5,FALSE),VLOOKUP($M56,TT_Tabelle_Riferimento!$D$127:$H$164,5,FALSE))","v":10},{"$f":"+IFERROR(VLOOKUP(MJ$27&\"-\"&$M56&\"_new\",Ammortamento_Finanziario!$H:$L,5,FALSE),VLOOKUP($M56,TT_Tabelle_Riferimento!$D$127:$H$164,5,FALSE))","v":10},{"$f":"+IFERROR(VLOOKUP(MK$27&\"-\"&$M56&\"_new\",Ammortamento_Finanziario!$H:$L,5,FALSE),VLOOKUP($M56,TT_Tabelle_Riferimento!$D$127:$H$164,5,FALSE))","v":10},{"$f":"+IFERROR(VLOOKUP(ML$27&\"-\"&$M56&\"_new\",Ammortamento_Finanziario!$H:$L,5,FALSE),VLOOKUP($M56,TT_Tabelle_Riferimento!$D$127:$H$164,5,FALSE))","v":10},{"$f":"+IFERROR(VLOOKUP(MM$27&\"-\"&$M56&\"_new\",Ammortamento_Finanziario!$H:$L,5,FALSE),VLOOKUP($M56,TT_Tabelle_Riferimento!$D$127:$H$164,5,FALSE))","v":10},{"$f":"+IFERROR(VLOOKUP(MN$27&\"-\"&$M56&\"_new\",Ammortamento_Finanziario!$H:$L,5,FALSE),VLOOKUP($M56,TT_Tabelle_Riferimento!$D$127:$H$164,5,FALSE))","v":10},{"$f":"+IFERROR(VLOOKUP(MO$27&\"-\"&$M56&\"_new\",Ammortamento_Finanziario!$H:$L,5,FALSE),VLOOKUP($M56,TT_Tabelle_Riferimento!$D$127:$H$164,5,FALSE))","v":10},{"$f":"+IFERROR(VLOOKUP(MP$27&\"-\"&$M56&\"_new\",Ammortamento_Finanziario!$H:$L,5,FALSE),VLOOKUP($M56,TT_Tabelle_Riferimento!$D$127:$H$164,5,FALSE))","v":10},{"$f":"+IFERROR(VLOOKUP(MQ$27&\"-\"&$M56&\"_new\",Ammortamento_Finanziario!$H:$L,5,FALSE),VLOOKUP($M56,TT_Tabelle_Riferimento!$D$127:$H$164,5,FALSE))","v":10},{"$f":"+IFERROR(VLOOKUP(MR$27&\"-\"&$M56&\"_new\",Ammortamento_Finanziario!$H:$L,5,FALSE),VLOOKUP($M56,TT_Tabelle_Riferimento!$D$127:$H$164,5,FALSE))","v":10},{"$f":"+IFERROR(VLOOKUP(MS$27&\"-\"&$M56&\"_new\",Ammortamento_Finanziario!$H:$L,5,FALSE),VLOOKUP($M56,TT_Tabelle_Riferimento!$D$127:$H$164,5,FALSE))","v":10},{"$f":"+IFERROR(VLOOKUP(MT$27&\"-\"&$M56&\"_new\",Ammortamento_Finanziario!$H:$L,5,FALSE),VLOOKUP($M56,TT_Tabelle_Riferimento!$D$127:$H$164,5,FALSE))","v":10},{"$f":"+IFERROR(VLOOKUP(MU$27&\"-\"&$M56&\"_new\",Ammortamento_Finanziario!$H:$L,5,FALSE),VLOOKUP($M56,TT_Tabelle_Riferimento!$D$127:$H$164,5,FALSE))","v":10},{"$f":"+IFERROR(VLOOKUP(MV$27&\"-\"&$M56&\"_new\",Ammortamento_Finanziario!$H:$L,5,FALSE),VLOOKUP($M56,TT_Tabelle_Riferimento!$D$127:$H$164,5,FALSE))","v":10},{"$f":"+IFERROR(VLOOKUP(MW$27&\"-\"&$M56&\"_new\",Ammortamento_Finanziario!$H:$L,5,FALSE),VLOOKUP($M56,TT_Tabelle_Riferimento!$D$127:$H$164,5,FALSE))","v":10},{"$f":"+IFERROR(VLOOKUP(MX$27&\"-\"&$M56&\"_new\",Ammortamento_Finanziario!$H:$L,5,FALSE),VLOOKUP($M56,TT_Tabelle_Riferimento!$D$127:$H$164,5,FALSE))","v":10},{"$f":"+IFERROR(VLOOKUP(MY$27&\"-\"&$M56&\"_new\",Ammortamento_Finanziario!$H:$L,5,FALSE),VLOOKUP($M56,TT_Tabelle_Riferimento!$D$127:$H$164,5,FALSE))","v":10},{"$f":"+IFERROR(VLOOKUP(MZ$27&\"-\"&$M56&\"_new\",Ammortamento_Finanziario!$H:$L,5,FALSE),VLOOKUP($M56,TT_Tabelle_Riferimento!$D$127:$H$164,5,FALSE))","v":10},{"$f":"+IFERROR(VLOOKUP(NA$27&\"-\"&$M56&\"_new\",Ammortamento_Finanziario!$H:$L,5,FALSE),VLOOKUP($M56,TT_Tabelle_Riferimento!$D$127:$H$164,5,FALSE))","v":10},{"$f":"+IFERROR(VLOOKUP(NB$27&\"-\"&$M56&\"_new\",Ammortamento_Finanziario!$H:$L,5,FALSE),VLOOKUP($M56,TT_Tabelle_Riferimento!$D$127:$H$164,5,FALSE))","v":10},{"$f":"+IFERROR(VLOOKUP(NC$27&\"-\"&$M56&\"_new\",Ammortamento_Finanziario!$H:$L,5,FALSE),VLOOKUP($M56,TT_Tabelle_Riferimento!$D$127:$H$164,5,FALSE))","v":10},{"$f":"+IFERROR(VLOOKUP(ND$27&\"-\"&$M56&\"_new\",Ammortamento_Finanziario!$H:$L,5,FALSE),VLOOKUP($M56,TT_Tabelle_Riferimento!$D$127:$H$164,5,FALSE))","v":10},{"$f":"+IFERROR(VLOOKUP(NE$27&\"-\"&$M56&\"_new\",Ammortamento_Finanziario!$H:$L,5,FALSE),VLOOKUP($M56,TT_Tabelle_Riferimento!$D$127:$H$164,5,FALSE))","v":10},{"$f":"+IFERROR(VLOOKUP(NF$27&\"-\"&$M56&\"_new\",Ammortamento_Finanziario!$H:$L,5,FALSE),VLOOKUP($M56,TT_Tabelle_Riferimento!$D$127:$H$164,5,FALSE))","v":10},{"$f":"+IFERROR(VLOOKUP(NG$27&\"-\"&$M56&\"_new\",Ammortamento_Finanziario!$H:$L,5,FALSE),VLOOKUP($M56,TT_Tabelle_Riferimento!$D$127:$H$164,5,FALSE))","v":10},{"$f":"+IFERROR(VLOOKUP(NH$27&\"-\"&$M56&\"_new\",Ammortamento_Finanziario!$H:$L,5,FALSE),VLOOKUP($M56,TT_Tabelle_Riferimento!$D$127:$H$164,5,FALSE))","v":10},{"$f":"+IFERROR(VLOOKUP(NI$27&\"-\"&$M56&\"_new\",Ammortamento_Finanziario!$H:$L,5,FALSE),VLOOKUP($M56,TT_Tabelle_Riferimento!$D$127:$H$164,5,FALSE))","v":10},{"$f":"+IFERROR(VLOOKUP(NJ$27&\"-\"&$M56&\"_new\",Ammortamento_Finanziario!$H:$L,5,FALSE),VLOOKUP($M56,TT_Tabelle_Riferimento!$D$127:$H$164,5,FALSE))","v":10},{"$f":"+IFERROR(VLOOKUP(NK$27&\"-\"&$M56&\"_new\",Ammortamento_Finanziario!$H:$L,5,FALSE),VLOOKUP($M56,TT_Tabelle_Riferimento!$D$127:$H$164,5,FALSE))","v":10},{"$f":"+IFERROR(VLOOKUP(NL$27&\"-\"&$M56&\"_new\",Ammortamento_Finanziario!$H:$L,5,FALSE),VLOOKUP($M56,TT_Tabelle_Riferimento!$D$127:$H$164,5,FALSE))","v":10},{"$f":"+IFERROR(VLOOKUP(NM$27&\"-\"&$M56&\"_new\",Ammortamento_Finanziario!$H:$L,5,FALSE),VLOOKUP($M56,TT_Tabelle_Riferimento!$D$127:$H$164,5,FALSE))","v":10},{"$f":"+IFERROR(VLOOKUP(NN$27&\"-\"&$M56&\"_new\",Ammortamento_Finanziario!$H:$L,5,FALSE),VLOOKUP($M56,TT_Tabelle_Riferimento!$D$127:$H$164,5,FALSE))","v":10},{"$f":"+IFERROR(VLOOKUP(NO$27&\"-\"&$M56&\"_new\",Ammortamento_Finanziario!$H:$L,5,FALSE),VLOOKUP($M56,TT_Tabelle_Riferimento!$D$127:$H$164,5,FALSE))","v":10},{"$f":"+IFERROR(VLOOKUP(NP$27&\"-\"&$M56&\"_new\",Ammortamento_Finanziario!$H:$L,5,FALSE),VLOOKUP($M56,TT_Tabelle_Riferimento!$D$127:$H$164,5,FALSE))","v":10},{"$f":"+IFERROR(VLOOKUP(NQ$27&\"-\"&$M56&\"_new\",Ammortamento_Finanziario!$H:$L,5,FALSE),VLOOKUP($M56,TT_Tabelle_Riferimento!$D$127:$H$164,5,FALSE))","v":10},{"$f":"+IFERROR(VLOOKUP(NR$27&\"-\"&$M56&\"_new\",Ammortamento_Finanziario!$H:$L,5,FALSE),VLOOKUP($M56,TT_Tabelle_Riferimento!$D$127:$H$164,5,FALSE))","v":10},{"$f":"+IFERROR(VLOOKUP(NS$27&\"-\"&$M56&\"_new\",Ammortamento_Finanziario!$H:$L,5,FALSE),VLOOKUP($M56,TT_Tabelle_Riferimento!$D$127:$H$164,5,FALSE))","v":10},{"$f":"+IFERROR(VLOOKUP(NT$27&\"-\"&$M56&\"_new\",Ammortamento_Finanziario!$H:$L,5,FALSE),VLOOKUP($M56,TT_Tabelle_Riferimento!$D$127:$H$164,5,FALSE))","v":10},{"$f":"+IFERROR(VLOOKUP(NU$27&\"-\"&$M56&\"_new\",Ammortamento_Finanziario!$H:$L,5,FALSE),VLOOKUP($M56,TT_Tabelle_Riferimento!$D$127:$H$164,5,FALSE))","v":10},{"$f":"+IFERROR(VLOOKUP(NV$27&\"-\"&$M56&\"_new\",Ammortamento_Finanziario!$H:$L,5,FALSE),VLOOKUP($M56,TT_Tabelle_Riferimento!$D$127:$H$164,5,FALSE))","v":10},{"$f":"+IFERROR(VLOOKUP(NW$27&\"-\"&$M56&\"_new\",Ammortamento_Finanziario!$H:$L,5,FALSE),VLOOKUP($M56,TT_Tabelle_Riferimento!$D$127:$H$164,5,FALSE))","v":10},{"$f":"+IFERROR(VLOOKUP(NX$27&\"-\"&$M56&\"_new\",Ammortamento_Finanziario!$H:$L,5,FALSE),VLOOKUP($M56,TT_Tabelle_Riferimento!$D$127:$H$164,5,FALSE))","v":10},{"$f":"+IFERROR(VLOOKUP(NY$27&\"-\"&$M56&\"_new\",Ammortamento_Finanziario!$H:$L,5,FALSE),VLOOKUP($M56,TT_Tabelle_Riferimento!$D$127:$H$164,5,FALSE))","v":10},{"$f":"+IFERROR(VLOOKUP(NZ$27&\"-\"&$M56&\"_new\",Ammortamento_Finanziario!$H:$L,5,FALSE),VLOOKUP($M56,TT_Tabelle_Riferimento!$D$127:$H$164,5,FALSE))","v":10},{"$f":"+IFERROR(VLOOKUP(OA$27&\"-\"&$M56&\"_new\",Ammortamento_Finanziario!$H:$L,5,FALSE),VLOOKUP($M56,TT_Tabelle_Riferimento!$D$127:$H$164,5,FALSE))","v":10},{"$f":"+IFERROR(VLOOKUP(OB$27&\"-\"&$M56&\"_new\",Ammortamento_Finanziario!$H:$L,5,FALSE),VLOOKUP($M56,TT_Tabelle_Riferimento!$D$127:$H$164,5,FALSE))","v":10},{"$f":"+IFERROR(VLOOKUP(OC$27&\"-\"&$M56&\"_new\",Ammortamento_Finanziario!$H:$L,5,FALSE),VLOOKUP($M56,TT_Tabelle_Riferimento!$D$127:$H$164,5,FALSE))","v":10},{"$f":"+IFERROR(VLOOKUP(OD$27&\"-\"&$M56&\"_new\",Ammortamento_Finanziario!$H:$L,5,FALSE),VLOOKUP($M56,TT_Tabelle_Riferimento!$D$127:$H$164,5,FALSE))","v":10},{"$f":"+IFERROR(VLOOKUP(OE$27&\"-\"&$M56&\"_new\",Ammortamento_Finanziario!$H:$L,5,FALSE),VLOOKUP($M56,TT_Tabelle_Riferimento!$D$127:$H$164,5,FALSE))","v":10},{"$f":"+IFERROR(VLOOKUP(OF$27&\"-\"&$M56&\"_new\",Ammortamento_Finanziario!$H:$L,5,FALSE),VLOOKUP($M56,TT_Tabelle_Riferimento!$D$127:$H$164,5,FALSE))","v":10},{"$f":"+IFERROR(VLOOKUP(OG$27&\"-\"&$M56&\"_new\",Ammortamento_Finanziario!$H:$L,5,FALSE),VLOOKUP($M56,TT_Tabelle_Riferimento!$D$127:$H$164,5,FALSE))","v":10},{"$f":"+IFERROR(VLOOKUP(OH$27&\"-\"&$M56&\"_new\",Ammortamento_Finanziario!$H:$L,5,FALSE),VLOOKUP($M56,TT_Tabelle_Riferimento!$D$127:$H$164,5,FALSE))","v":10},{"$f":"+IFERROR(VLOOKUP(OI$27&\"-\"&$M56&\"_new\",Ammortamento_Finanziario!$H:$L,5,FALSE),VLOOKUP($M56,TT_Tabelle_Riferimento!$D$127:$H$164,5,FALSE))","v":10},{"$f":"+IFERROR(VLOOKUP(OJ$27&\"-\"&$M56&\"_new\",Ammortamento_Finanziario!$H:$L,5,FALSE),VLOOKUP($M56,TT_Tabelle_Riferimento!$D$127:$H$164,5,FALSE))","v":10},{"$f":"+IFERROR(VLOOKUP(OK$27&\"-\"&$M56&\"_new\",Ammortamento_Finanziario!$H:$L,5,FALSE),VLOOKUP($M56,TT_Tabelle_Riferimento!$D$127:$H$164,5,FALSE))","v":10},{"$f":"+IFERROR(VLOOKUP(OL$27&\"-\"&$M56&\"_new\",Ammortamento_Finanziario!$H:$L,5,FALSE),VLOOKUP($M56,TT_Tabelle_Riferimento!$D$127:$H$164,5,FALSE))","v":10},{"$f":"+IFERROR(VLOOKUP(OM$27&\"-\"&$M56&\"_new\",Ammortamento_Finanziario!$H:$L,5,FALSE),VLOOKUP($M56,TT_Tabelle_Riferimento!$D$127:$H$164,5,FALSE))","v":10},{"$f":"+IFERROR(VLOOKUP(ON$27&\"-\"&$M56&\"_new\",Ammortamento_Finanziario!$H:$L,5,FALSE),VLOOKUP($M56,TT_Tabelle_Riferimento!$D$127:$H$164,5,FALSE))","v":10},{"$f":"+IFERROR(VLOOKUP(OO$27&\"-\"&$M56&\"_new\",Ammortamento_Finanziario!$H:$L,5,FALSE),VLOOKUP($M56,TT_Tabelle_Riferimento!$D$127:$H$164,5,FALSE))","v":10},{"$f":"+IFERROR(VLOOKUP(OP$27&\"-\"&$M56&\"_new\",Ammortamento_Finanziario!$H:$L,5,FALSE),VLOOKUP($M56,TT_Tabelle_Riferimento!$D$127:$H$164,5,FALSE))","v":10},{"$f":"+IFERROR(VLOOKUP(OQ$27&\"-\"&$M56&\"_new\",Ammortamento_Finanziario!$H:$L,5,FALSE),VLOOKUP($M56,TT_Tabelle_Riferimento!$D$127:$H$164,5,FALSE))","v":10},{"$f":"+IFERROR(VLOOKUP(OR$27&\"-\"&$M56&\"_new\",Ammortamento_Finanziario!$H:$L,5,FALSE),VLOOKUP($M56,TT_Tabelle_Riferimento!$D$127:$H$164,5,FALSE))","v":10},{"$f":"+IFERROR(VLOOKUP(OS$27&\"-\"&$M56&\"_new\",Ammortamento_Finanziario!$H:$L,5,FALSE),VLOOKUP($M56,TT_Tabelle_Riferimento!$D$127:$H$164,5,FALSE))","v":10},{"$f":"+IFERROR(VLOOKUP(OT$27&\"-\"&$M56&\"_new\",Ammortamento_Finanziario!$H:$L,5,FALSE),VLOOKUP($M56,TT_Tabelle_Riferimento!$D$127:$H$164,5,FALSE))","v":10},{"$f":"+IFERROR(VLOOKUP(OU$27&\"-\"&$M56&\"_new\",Ammortamento_Finanziario!$H:$L,5,FALSE),VLOOKUP($M56,TT_Tabelle_Riferimento!$D$127:$H$164,5,FALSE))","v":10},{"$f":"+IFERROR(VLOOKUP(OV$27&\"-\"&$M56&\"_new\",Ammortamento_Finanziario!$H:$L,5,FALSE),VLOOKUP($M56,TT_Tabelle_Riferimento!$D$127:$H$164,5,FALSE))","v":10},{"$f":"+IFERROR(VLOOKUP(OW$27&\"-\"&$M56&\"_new\",Ammortamento_Finanziario!$H:$L,5,FALSE),VLOOKUP($M56,TT_Tabelle_Riferimento!$D$127:$H$164,5,FALSE))","v":10},{"$f":"+IFERROR(VLOOKUP(OX$27&\"-\"&$M56&\"_new\",Ammortamento_Finanziario!$H:$L,5,FALSE),VLOOKUP($M56,TT_Tabelle_Riferimento!$D$127:$H$164,5,FALSE))","v":10},{"$f":"+IFERROR(VLOOKUP(OY$27&\"-\"&$M56&\"_new\",Ammortamento_Finanziario!$H:$L,5,FALSE),VLOOKUP($M56,TT_Tabelle_Riferimento!$D$127:$H$164,5,FALSE))","v":10},{"$f":"+IFERROR(VLOOKUP(OZ$27&\"-\"&$M56&\"_new\",Ammortamento_Finanziario!$H:$L,5,FALSE),VLOOKUP($M56,TT_Tabelle_Riferimento!$D$127:$H$164,5,FALSE))","v":10},{"$f":"+IFERROR(VLOOKUP(PA$27&\"-\"&$M56&\"_new\",Ammortamento_Finanziario!$H:$L,5,FALSE),VLOOKUP($M56,TT_Tabelle_Riferimento!$D$127:$H$164,5,FALSE))","v":10},{"$f":"+IFERROR(VLOOKUP(PB$27&\"-\"&$M56&\"_new\",Ammortamento_Finanziario!$H:$L,5,FALSE),VLOOKUP($M56,TT_Tabelle_Riferimento!$D$127:$H$164,5,FALSE))","v":10},{"$f":"+IFERROR(VLOOKUP(PC$27&\"-\"&$M56&\"_new\",Ammortamento_Finanziario!$H:$L,5,FALSE),VLOOKUP($M56,TT_Tabelle_Riferimento!$D$127:$H$164,5,FALSE))","v":10},{"$f":"+IFERROR(VLOOKUP(PD$27&\"-\"&$M56&\"_new\",Ammortamento_Finanziario!$H:$L,5,FALSE),VLOOKUP($M56,TT_Tabelle_Riferimento!$D$127:$H$164,5,FALSE))","v":10},{"$f":"+IFERROR(VLOOKUP(PE$27&\"-\"&$M56&\"_new\",Ammortamento_Finanziario!$H:$L,5,FALSE),VLOOKUP($M56,TT_Tabelle_Riferimento!$D$127:$H$164,5,FALSE))","v":10},{"$f":"+IFERROR(VLOOKUP(PF$27&\"-\"&$M56&\"_new\",Ammortamento_Finanziario!$H:$L,5,FALSE),VLOOKUP($M56,TT_Tabelle_Riferimento!$D$127:$H$164,5,FALSE))","v":10},{"$f":"+IFERROR(VLOOKUP(PG$27&\"-\"&$M56&\"_new\",Ammortamento_Finanziario!$H:$L,5,FALSE),VLOOKUP($M56,TT_Tabelle_Riferimento!$D$127:$H$164,5,FALSE))","v":10},{"$f":"+IFERROR(VLOOKUP(PH$27&\"-\"&$M56&\"_new\",Ammortamento_Finanziario!$H:$L,5,FALSE),VLOOKUP($M56,TT_Tabelle_Riferimento!$D$127:$H$164,5,FALSE))","v":10},{"$f":"+IFERROR(VLOOKUP(PI$27&\"-\"&$M56&\"_new\",Ammortamento_Finanziario!$H:$L,5,FALSE),VLOOKUP($M56,TT_Tabelle_Riferimento!$D$127:$H$164,5,FALSE))","v":10},{"$f":"+IFERROR(VLOOKUP(PJ$27&\"-\"&$M56&\"_new\",Ammortamento_Finanziario!$H:$L,5,FALSE),VLOOKUP($M56,TT_Tabelle_Riferimento!$D$127:$H$164,5,FALSE))","v":10},{"$f":"+IFERROR(VLOOKUP(PK$27&\"-\"&$M56&\"_new\",Ammortamento_Finanziario!$H:$L,5,FALSE),VLOOKUP($M56,TT_Tabelle_Riferimento!$D$127:$H$164,5,FALSE))","v":10},{"$f":"+IFERROR(VLOOKUP(PL$27&\"-\"&$M56&\"_new\",Ammortamento_Finanziario!$H:$L,5,FALSE),VLOOKUP($M56,TT_Tabelle_Riferimento!$D$127:$H$164,5,FALSE))","v":10},{"$f":"+IFERROR(VLOOKUP(PM$27&\"-\"&$M56&\"_new\",Ammortamento_Finanziario!$H:$L,5,FALSE),VLOOKUP($M56,TT_Tabelle_Riferimento!$D$127:$H$164,5,FALSE))","v":10},{"$f":"+IFERROR(VLOOKUP(PN$27&\"-\"&$M56&\"_new\",Ammortamento_Finanziario!$H:$L,5,FALSE),VLOOKUP($M56,TT_Tabelle_Riferimento!$D$127:$H$164,5,FALSE))","v":10},{"$f":"+IFERROR(VLOOKUP(PO$27&\"-\"&$M56&\"_new\",Ammortamento_Finanziario!$H:$L,5,FALSE),VLOOKUP($M56,TT_Tabelle_Riferimento!$D$127:$H$164,5,FALSE))","v":10},{"$f":"+IFERROR(VLOOKUP(PP$27&\"-\"&$M56&\"_new\",Ammortamento_Finanziario!$H:$L,5,FALSE),VLOOKUP($M56,TT_Tabelle_Riferimento!$D$127:$H$164,5,FALSE))","v":10},{"$f":"+IFERROR(VLOOKUP(PQ$27&\"-\"&$M56&\"_new\",Ammortamento_Finanziario!$H:$L,5,FALSE),VLOOKUP($M56,TT_Tabelle_Riferimento!$D$127:$H$164,5,FALSE))","v":10},{"$f":"+IFERROR(VLOOKUP(PR$27&\"-\"&$M56&\"_new\",Ammortamento_Finanziario!$H:$L,5,FALSE),VLOOKUP($M56,TT_Tabelle_Riferimento!$D$127:$H$164,5,FALSE))","v":10},{"$f":"+IFERROR(VLOOKUP(PS$27&\"-\"&$M56&\"_new\",Ammortamento_Finanziario!$H:$L,5,FALSE),VLOOKUP($M56,TT_Tabelle_Riferimento!$D$127:$H$164,5,FALSE))","v":10},{"$f":"+IFERROR(VLOOKUP(PT$27&\"-\"&$M56&\"_new\",Ammortamento_Finanziario!$H:$L,5,FALSE),VLOOKUP($M56,TT_Tabelle_Riferimento!$D$127:$H$164,5,FALSE))","v":10},{"$f":"+IFERROR(VLOOKUP(PU$27&\"-\"&$M56&\"_new\",Ammortamento_Finanziario!$H:$L,5,FALSE),VLOOKUP($M56,TT_Tabelle_Riferimento!$D$127:$H$164,5,FALSE))","v":10},{"$f":"+IFERROR(VLOOKUP(PV$27&\"-\"&$M56&\"_new\",Ammortamento_Finanziario!$H:$L,5,FALSE),VLOOKUP($M56,TT_Tabelle_Riferimento!$D$127:$H$164,5,FALSE))","v":10},{"$f":"+IFERROR(VLOOKUP(PW$27&\"-\"&$M56&\"_new\",Ammortamento_Finanziario!$H:$L,5,FALSE),VLOOKUP($M56,TT_Tabelle_Riferimento!$D$127:$H$164,5,FALSE))","v":10},{"$f":"+IFERROR(VLOOKUP(PX$27&\"-\"&$M56&\"_new\",Ammortamento_Finanziario!$H:$L,5,FALSE),VLOOKUP($M56,TT_Tabelle_Riferimento!$D$127:$H$164,5,FALSE))","v":10},{"$f":"+IFERROR(VLOOKUP(PY$27&\"-\"&$M56&\"_new\",Ammortamento_Finanziario!$H:$L,5,FALSE),VLOOKUP($M56,TT_Tabelle_Riferimento!$D$127:$H$164,5,FALSE))","v":10},{"$f":"+IFERROR(VLOOKUP(PZ$27&\"-\"&$M56&\"_new\",Ammortamento_Finanziario!$H:$L,5,FALSE),VLOOKUP($M56,TT_Tabelle_Riferimento!$D$127:$H$164,5,FALSE))","v":10},{"$f":"+IFERROR(VLOOKUP(QA$27&\"-\"&$M56&\"_new\",Ammortamento_Finanziario!$H:$L,5,FALSE),VLOOKUP($M56,TT_Tabelle_Riferimento!$D$127:$H$164,5,FALSE))","v":10},{"$f":"+IFERROR(VLOOKUP(QB$27&\"-\"&$M56&\"_new\",Ammortamento_Finanziario!$H:$L,5,FALSE),VLOOKUP($M56,TT_Tabelle_Riferimento!$D$127:$H$164,5,FALSE))","v":10},{"$f":"+IFERROR(VLOOKUP(QC$27&\"-\"&$M56&\"_new\",Ammortamento_Finanziario!$H:$L,5,FALSE),VLOOKUP($M56,TT_Tabelle_Riferimento!$D$127:$H$164,5,FALSE))","v":10},{"$f":"+IFERROR(VLOOKUP(QD$27&\"-\"&$M56&\"_new\",Ammortamento_Finanziario!$H:$L,5,FALSE),VLOOKUP($M56,TT_Tabelle_Riferimento!$D$127:$H$164,5,FALSE))","v":10},{"$f":"+IFERROR(VLOOKUP(QE$27&\"-\"&$M56&\"_new\",Ammortamento_Finanziario!$H:$L,5,FALSE),VLOOKUP($M56,TT_Tabelle_Riferimento!$D$127:$H$164,5,FALSE))","v":10},{"$f":"+IFERROR(VLOOKUP(QF$27&\"-\"&$M56&\"_new\",Ammortamento_Finanziario!$H:$L,5,FALSE),VLOOKUP($M56,TT_Tabelle_Riferimento!$D$127:$H$164,5,FALSE))","v":10},{"$f":"+IFERROR(VLOOKUP(QG$27&\"-\"&$M56&\"_new\",Ammortamento_Finanziario!$H:$L,5,FALSE),VLOOKUP($M56,TT_Tabelle_Riferimento!$D$127:$H$164,5,FALSE))","v":10},{"$f":"+IFERROR(VLOOKUP(QH$27&\"-\"&$M56&\"_new\",Ammortamento_Finanziario!$H:$L,5,FALSE),VLOOKUP($M56,TT_Tabelle_Riferimento!$D$127:$H$164,5,FALSE))","v":10},{"$f":"+IFERROR(VLOOKUP(QI$27&\"-\"&$M56&\"_new\",Ammortamento_Finanziario!$H:$L,5,FALSE),VLOOKUP($M56,TT_Tabelle_Riferimento!$D$127:$H$164,5,FALSE))","v":10},{"$f":"+IFERROR(VLOOKUP(QJ$27&\"-\"&$M56&\"_new\",Ammortamento_Finanziario!$H:$L,5,FALSE),VLOOKUP($M56,TT_Tabelle_Riferimento!$D$127:$H$164,5,FALSE))","v":10},{"$f":"+IFERROR(VLOOKUP(QK$27&\"-\"&$M56&\"_new\",Ammortamento_Finanziario!$H:$L,5,FALSE),VLOOKUP($M56,TT_Tabelle_Riferimento!$D$127:$H$164,5,FALSE))","v":10},{"$f":"+IFERROR(VLOOKUP(QL$27&\"-\"&$M56&\"_new\",Ammortamento_Finanziario!$H:$L,5,FALSE),VLOOKUP($M56,TT_Tabelle_Riferimento!$D$127:$H$164,5,FALSE))","v":10},{"$f":"+IFERROR(VLOOKUP(QM$27&\"-\"&$M56&\"_new\",Ammortamento_Finanziario!$H:$L,5,FALSE),VLOOKUP($M56,TT_Tabelle_Riferimento!$D$127:$H$164,5,FALSE))","v":10},{"$f":"+IFERROR(VLOOKUP(QN$27&\"-\"&$M56&\"_new\",Ammortamento_Finanziario!$H:$L,5,FALSE),VLOOKUP($M56,TT_Tabelle_Riferimento!$D$127:$H$164,5,FALSE))","v":10},{"$f":"+IFERROR(VLOOKUP(QO$27&\"-\"&$M56&\"_new\",Ammortamento_Finanziario!$H:$L,5,FALSE),VLOOKUP($M56,TT_Tabelle_Riferimento!$D$127:$H$164,5,FALSE))","v":10},{"$f":"+IFERROR(VLOOKUP(QP$27&\"-\"&$M56&\"_new\",Ammortamento_Finanziario!$H:$L,5,FALSE),VLOOKUP($M56,TT_Tabelle_Riferimento!$D$127:$H$164,5,FALSE))","v":10},{"$f":"+IFERROR(VLOOKUP(QQ$27&\"-\"&$M56&\"_new\",Ammortamento_Finanziario!$H:$L,5,FALSE),VLOOKUP($M56,TT_Tabelle_Riferimento!$D$127:$H$164,5,FALSE))","v":10},{"$f":"+IFERROR(VLOOKUP(QR$27&\"-\"&$M56&\"_new\",Ammortamento_Finanziario!$H:$L,5,FALSE),VLOOKUP($M56,TT_Tabelle_Riferimento!$D$127:$H$164,5,FALSE))","v":10},{"$f":"+IFERROR(VLOOKUP(QS$27&\"-\"&$M56&\"_new\",Ammortamento_Finanziario!$H:$L,5,FALSE),VLOOKUP($M56,TT_Tabelle_Riferimento!$D$127:$H$164,5,FALSE))","v":10},{"$f":"+IFERROR(VLOOKUP(QT$27&\"-\"&$M56&\"_new\",Ammortamento_Finanziario!$H:$L,5,FALSE),VLOOKUP($M56,TT_Tabelle_Riferimento!$D$127:$H$164,5,FALSE))","v":10},{"$f":"+IFERROR(VLOOKUP(QU$27&\"-\"&$M56&\"_new\",Ammortamento_Finanziario!$H:$L,5,FALSE),VLOOKUP($M56,TT_Tabelle_Riferimento!$D$127:$H$164,5,FALSE))","v":10},{"$f":"+IFERROR(VLOOKUP(QV$27&\"-\"&$M56&\"_new\",Ammortamento_Finanziario!$H:$L,5,FALSE),VLOOKUP($M56,TT_Tabelle_Riferimento!$D$127:$H$164,5,FALSE))","v":10},{"$f":"+IFERROR(VLOOKUP(QW$27&\"-\"&$M56&\"_new\",Ammortamento_Finanziario!$H:$L,5,FALSE),VLOOKUP($M56,TT_Tabelle_Riferimento!$D$127:$H$164,5,FALSE))","v":10},{"$f":"+IFERROR(VLOOKUP(QX$27&\"-\"&$M56&\"_new\",Ammortamento_Finanziario!$H:$L,5,FALSE),VLOOKUP($M56,TT_Tabelle_Riferimento!$D$127:$H$164,5,FALSE))","v":10},{"$f":"+IFERROR(VLOOKUP(QY$27&\"-\"&$M56&\"_new\",Ammortamento_Finanziario!$H:$L,5,FALSE),VLOOKUP($M56,TT_Tabelle_Riferimento!$D$127:$H$164,5,FALSE))","v":10},{"$f":"+IFERROR(VLOOKUP(QZ$27&\"-\"&$M56&\"_new\",Ammortamento_Finanziario!$H:$L,5,FALSE),VLOOKUP($M56,TT_Tabelle_Riferimento!$D$127:$H$164,5,FALSE))","v":10},{"$f":"+IFERROR(VLOOKUP(RA$27&\"-\"&$M56&\"_new\",Ammortamento_Finanziario!$H:$L,5,FALSE),VLOOKUP($M56,TT_Tabelle_Riferimento!$D$127:$H$164,5,FALSE))","v":10},{"$f":"+IFERROR(VLOOKUP(RB$27&\"-\"&$M56&\"_new\",Ammortamento_Finanziario!$H:$L,5,FALSE),VLOOKUP($M56,TT_Tabelle_Riferimento!$D$127:$H$164,5,FALSE))","v":10},{"$f":"+IFERROR(VLOOKUP(RC$27&\"-\"&$M56&\"_new\",Ammortamento_Finanziario!$H:$L,5,FALSE),VLOOKUP($M56,TT_Tabelle_Riferimento!$D$127:$H$164,5,FALSE))","v":10},{"$f":"+IFERROR(VLOOKUP(RD$27&\"-\"&$M56&\"_new\",Ammortamento_Finanziario!$H:$L,5,FALSE),VLOOKUP($M56,TT_Tabelle_Riferimento!$D$127:$H$164,5,FALSE))","v":10},{"$f":"+IFERROR(VLOOKUP(RE$27&\"-\"&$M56&\"_new\",Ammortamento_Finanziario!$H:$L,5,FALSE),VLOOKUP($M56,TT_Tabelle_Riferimento!$D$127:$H$164,5,FALSE))","v":10},{"$f":"+IFERROR(VLOOKUP(RF$27&\"-\"&$M56&\"_new\",Ammortamento_Finanziario!$H:$L,5,FALSE),VLOOKUP($M56,TT_Tabelle_Riferimento!$D$127:$H$164,5,FALSE))","v":10},{"$f":"+IFERROR(VLOOKUP(RG$27&\"-\"&$M56&\"_new\",Ammortamento_Finanziario!$H:$L,5,FALSE),VLOOKUP($M56,TT_Tabelle_Riferimento!$D$127:$H$164,5,FALSE))","v":10},{"$f":"+IFERROR(VLOOKUP(RH$27&\"-\"&$M56&\"_new\",Ammortamento_Finanziario!$H:$L,5,FALSE),VLOOKUP($M56,TT_Tabelle_Riferimento!$D$127:$H$164,5,FALSE))","v":10},{"$f":"+IFERROR(VLOOKUP(RI$27&\"-\"&$M56&\"_new\",Ammortamento_Finanziario!$H:$L,5,FALSE),VLOOKUP($M56,TT_Tabelle_Riferimento!$D$127:$H$164,5,FALSE))","v":10},{"$f":"+IFERROR(VLOOKUP(RJ$27&\"-\"&$M56&\"_new\",Ammortamento_Finanziario!$H:$L,5,FALSE),VLOOKUP($M56,TT_Tabelle_Riferimento!$D$127:$H$164,5,FALSE))","v":10},{"$f":"+IFERROR(VLOOKUP(RK$27&\"-\"&$M56&\"_new\",Ammortamento_Finanziario!$H:$L,5,FALSE),VLOOKUP($M56,TT_Tabelle_Riferimento!$D$127:$H$164,5,FALSE))","v":10},{"$f":"+IFERROR(VLOOKUP(RL$27&\"-\"&$M56&\"_new\",Ammortamento_Finanziario!$H:$L,5,FALSE),VLOOKUP($M56,TT_Tabelle_Riferimento!$D$127:$H$164,5,FALSE))","v":10},{"$f":"+IFERROR(VLOOKUP(RM$27&\"-\"&$M56&\"_new\",Ammortamento_Finanziario!$H:$L,5,FALSE),VLOOKUP($M56,TT_Tabelle_Riferimento!$D$127:$H$164,5,FALSE))","v":10},{"$f":"+IFERROR(VLOOKUP(RN$27&\"-\"&$M56&\"_new\",Ammortamento_Finanziario!$H:$L,5,FALSE),VLOOKUP($M56,TT_Tabelle_Riferimento!$D$127:$H$164,5,FALSE))","v":10},{"$f":"+IFERROR(VLOOKUP(RO$27&\"-\"&$M56&\"_new\",Ammortamento_Finanziario!$H:$L,5,FALSE),VLOOKUP($M56,TT_Tabelle_Riferimento!$D$127:$H$164,5,FALSE))","v":10},{"$f":"+IFERROR(VLOOKUP(RP$27&\"-\"&$M56&\"_new\",Ammortamento_Finanziario!$H:$L,5,FALSE),VLOOKUP($M56,TT_Tabelle_Riferimento!$D$127:$H$164,5,FALSE))","v":10},{"$f":"+IFERROR(VLOOKUP(RQ$27&\"-\"&$M56&\"_new\",Ammortamento_Finanziario!$H:$L,5,FALSE),VLOOKUP($M56,TT_Tabelle_Riferimento!$D$127:$H$164,5,FALSE))","v":10},{"$f":"+IFERROR(VLOOKUP(RR$27&\"-\"&$M56&\"_new\",Ammortamento_Finanziario!$H:$L,5,FALSE),VLOOKUP($M56,TT_Tabelle_Riferimento!$D$127:$H$164,5,FALSE))","v":10},{"$f":"+IFERROR(VLOOKUP(RS$27&\"-\"&$M56&\"_new\",Ammortamento_Finanziario!$H:$L,5,FALSE),VLOOKUP($M56,TT_Tabelle_Riferimento!$D$127:$H$164,5,FALSE))","v":10},{"$f":"+IFERROR(VLOOKUP(RT$27&\"-\"&$M56&\"_new\",Ammortamento_Finanziario!$H:$L,5,FALSE),VLOOKUP($M56,TT_Tabelle_Riferimento!$D$127:$H$164,5,FALSE))","v":10},{"$f":"+IFERROR(VLOOKUP(RU$27&\"-\"&$M56&\"_new\",Ammortamento_Finanziario!$H:$L,5,FALSE),VLOOKUP($M56,TT_Tabelle_Riferimento!$D$127:$H$164,5,FALSE))","v":10},{"$f":"+IFERROR(VLOOKUP(RV$27&\"-\"&$M56&\"_new\",Ammortamento_Finanziario!$H:$L,5,FALSE),VLOOKUP($M56,TT_Tabelle_Riferimento!$D$127:$H$164,5,FALSE))","v":10}]
[null,null,null,"AMM",{"$f":"+SUMIFS(IMN_gestore!T:T,IMN_gestore!$G:$G,\"Res\")","v":0},{"$f":"+SUMIFS(IMN_gestore!AE:AE,IMN_gestore!$G:$G,\"Res\")","v":0},{"$f":"+SUMIFS(IMN_gestore!AP:AP,IMN_gestore!$G:$G,\"Res\")","v":0},{"$f":"+SUMIFS(IMN_gestore!BA:BA,IMN_gestore!$G:$G,\"Res\")","v":0},{"$f":"+SUMIFS(IMN_gestore!$BL:$BL,IMN_gestore!$G:$G,\"Res\")","v":0},{"$f":"+SUMIFS(IMN_gestore!$BW:$BW,IMN_gestore!$G:$G,\"Res\")","v":0},null,null,30,0,0,0,0,0,0,0,0,0,0,0,0,0,0,0,0,0,0,0,0,0,0,0,0,0,0,0,0,0,0,0,0,0,0,0,0,0,0,0,0,0,0,0,0,0,0,0,0,0,0,0,0,0,0,0,0,0,0,0,0,0,0,0,0,0,0,0,0,0,0,0,0,0,0,0,0,0,0,0,0,0,0,0,0,0,0,0,0,0,0,0,0,0,0,0,0,0,0,0,0,0,0,0,0,0,0,0,0,0,0,0,0,0,0,0,0,0,0,0,0,0,0,0,0,0,0,0,0,0,0,0,0,0,0,0,0,0,0,0,0,0,0,0,0,0,0,0,0,0,0,0,0,0,0,0,0,0,0,0,0,0,0,0,0,0,0,0,0,0,0,0,0,0,0,0,0,0,0,0,0,0,0,0,0,0,0,0,0,0,0,0,0,0,0,0,0,0,0,0,0,0,0,0,0,0,0,0,0,0,0,0,0,0,0,0,0,0,0,0,0,0,0,0,0,0,0,0,0,0,0,0,0,0,0,0,0,0,0,0,0,0,0,0,0,0,0,0,0,0,0,0,0,0,0,0,0,0,0,0,0,0,0,0,0,0,0,0,0,0,0,0,0,0,0,0,0,0,0,0,0,0,0,0,0,0,0,0,0,0,{"$f":"+IFERROR(VLOOKUP(KQ$27&\"-\"&$M57&\"_new\",Ammortamento_Finanziario!$H:$L,5,FALSE),VLOOKUP($M57,TT_Tabelle_Riferimento!$D$127:$H$164,5,FALSE))","v":5},{"$f":"+IFERROR(VLOOKUP(KR$27&\"-\"&$M57&\"_new\",Ammortamento_Finanziario!$H:$L,5,FALSE),VLOOKUP($M57,TT_Tabelle_Riferimento!$D$127:$H$164,5,FALSE))","v":5},{"$f":"+IFERROR(VLOOKUP(KS$27&\"-\"&$M57&\"_new\",Ammortamento_Finanziario!$H:$L,5,FALSE),VLOOKUP($M57,TT_Tabelle_Riferimento!$D$127:$H$164,5,FALSE))","v":5},{"$f":"+IFERROR(VLOOKUP(KT$27&\"-\"&$M57&\"_new\",Ammortamento_Finanziario!$H:$L,5,FALSE),VLOOKUP($M57,TT_Tabelle_Riferimento!$D$127:$H$164,5,FALSE))","v":5},{"$f":"+IFERROR(VLOOKUP(KU$27&\"-\"&$M57&\"_new\",Ammortamento_Finanziario!$H:$L,5,FALSE),VLOOKUP($M57,TT_Tabelle_Riferimento!$D$127:$H$164,5,FALSE))","v":5},{"$f":"+IFERROR(VLOOKUP(KV$27&\"-\"&$M57&\"_new\",Ammortamento_Finanziario!$H:$L,5,FALSE),VLOOKUP($M57,TT_Tabelle_Riferimento!$D$127:$H$164,5,FALSE))","v":5},{"$f":"+IFERROR(VLOOKUP(KW$27&\"-\"&$M57&\"_new\",Ammortamento_Finanziario!$H:$L,5,FALSE),VLOOKUP($M57,TT_Tabelle_Riferimento!$D$127:$H$164,5,FALSE))","v":5},{"$f":"+IFERROR(VLOOKUP(KX$27&\"-\"&$M57&\"_new\",Ammortamento_Finanziario!$H:$L,5,FALSE),VLOOKUP($M57,TT_Tabelle_Riferimento!$D$127:$H$164,5,FALSE))","v":5},{"$f":"+IFERROR(VLOOKUP(KY$27&\"-\"&$M57&\"_new\",Ammortamento_Finanziario!$H:$L,5,FALSE),VLOOKUP($M57,TT_Tabelle_Riferimento!$D$127:$H$164,5,FALSE))","v":5},{"$f":"+IFERROR(VLOOKUP(KZ$27&\"-\"&$M57&\"_new\",Ammortamento_Finanziario!$H:$L,5,FALSE),VLOOKUP($M57,TT_Tabelle_Riferimento!$D$127:$H$164,5,FALSE))","v":5},{"$f":"+IFERROR(VLOOKUP(LA$27&\"-\"&$M57&\"_new\",Ammortamento_Finanziario!$H:$L,5,FALSE),VLOOKUP($M57,TT_Tabelle_Riferimento!$D$127:$H$164,5,FALSE))","v":5},{"$f":"+IFERROR(VLOOKUP(LB$27&\"-\"&$M57&\"_new\",Ammortamento_Finanziario!$H:$L,5,FALSE),VLOOKUP($M57,TT_Tabelle_Riferimento!$D$127:$H$164,5,FALSE))","v":5},{"$f":"+IFERROR(VLOOKUP(LC$27&\"-\"&$M57&\"_new\",Ammortamento_Finanziario!$H:$L,5,FALSE),VLOOKUP($M57,TT_Tabelle_Riferimento!$D$127:$H$164,5,FALSE))","v":5},{"$f":"+IFERROR(VLOOKUP(LD$27&\"-\"&$M57&\"_new\",Ammortamento_Finanziario!$H:$L,5,FALSE),VLOOKUP($M57,TT_Tabelle_Riferimento!$D$127:$H$164,5,FALSE))","v":5},{"$f":"+IFERROR(VLOOKUP(LE$27&\"-\"&$M57&\"_new\",Ammortamento_Finanziario!$H:$L,5,FALSE),VLOOKUP($M57,TT_Tabelle_Riferimento!$D$127:$H$164,5,FALSE))","v":5},{"$f":"+IFERROR(VLOOKUP(LF$27&\"-\"&$M57&\"_new\",Ammortamento_Finanziario!$H:$L,5,FALSE),VLOOKUP($M57,TT_Tabelle_Riferimento!$D$127:$H$164,5,FALSE))","v":5},{"$f":"+IFERROR(VLOOKUP(LG$27&\"-\"&$M57&\"_new\",Ammortamento_Finanziario!$H:$L,5,FALSE),VLOOKUP($M57,TT_Tabelle_Riferimento!$D$127:$H$164,5,FALSE))","v":5},{"$f":"+IFERROR(VLOOKUP(LH$27&\"-\"&$M57&\"_new\",Ammortamento_Finanziario!$H:$L,5,FALSE),VLOOKUP($M57,TT_Tabelle_Riferimento!$D$127:$H$164,5,FALSE))","v":5},{"$f":"+IFERROR(VLOOKUP(LI$27&\"-\"&$M57&\"_new\",Ammortamento_Finanziario!$H:$L,5,FALSE),VLOOKUP($M57,TT_Tabelle_Riferimento!$D$127:$H$164,5,FALSE))","v":5},{"$f":"+IFERROR(VLOOKUP(LJ$27&\"-\"&$M57&\"_new\",Ammortamento_Finanziario!$H:$L,5,FALSE),VLOOKUP($M57,TT_Tabelle_Riferimento!$D$127:$H$164,5,FALSE))","v":5},{"$f":"+IFERROR(VLOOKUP(LK$27&\"-\"&$M57&\"_new\",Ammortamento_Finanziario!$H:$L,5,FALSE),VLOOKUP($M57,TT_Tabelle_Riferimento!$D$127:$H$164,5,FALSE))","v":5},{"$f":"+IFERROR(VLOOKUP(LL$27&\"-\"&$M57&\"_new\",Ammortamento_Finanziario!$H:$L,5,FALSE),VLOOKUP($M57,TT_Tabelle_Riferimento!$D$127:$H$164,5,FALSE))","v":5},{"$f":"+IFERROR(VLOOKUP(LM$27&\"-\"&$M57&\"_new\",Ammortamento_Finanziario!$H:$L,5,FALSE),VLOOKUP($M57,TT_Tabelle_Riferimento!$D$127:$H$164,5,FALSE))","v":5},{"$f":"+IFERROR(VLOOKUP(LN$27&\"-\"&$M57&\"_new\",Ammortamento_Finanziario!$H:$L,5,FALSE),VLOOKUP($M57,TT_Tabelle_Riferimento!$D$127:$H$164,5,FALSE))","v":5},{"$f":"+IFERROR(VLOOKUP(LO$27&\"-\"&$M57&\"_new\",Ammortamento_Finanziario!$H:$L,5,FALSE),VLOOKUP($M57,TT_Tabelle_Riferimento!$D$127:$H$164,5,FALSE))","v":5},{"$f":"+IFERROR(VLOOKUP(LP$27&\"-\"&$M57&\"_new\",Ammortamento_Finanziario!$H:$L,5,FALSE),VLOOKUP($M57,TT_Tabelle_Riferimento!$D$127:$H$164,5,FALSE))","v":5},{"$f":"+IFERROR(VLOOKUP(LQ$27&\"-\"&$M57&\"_new\",Ammortamento_Finanziario!$H:$L,5,FALSE),VLOOKUP($M57,TT_Tabelle_Riferimento!$D$127:$H$164,5,FALSE))","v":5},{"$f":"+IFERROR(VLOOKUP(LR$27&\"-\"&$M57&\"_new\",Ammortamento_Finanziario!$H:$L,5,FALSE),VLOOKUP($M57,TT_Tabelle_Riferimento!$D$127:$H$164,5,FALSE))","v":5},{"$f":"+IFERROR(VLOOKUP(LS$27&\"-\"&$M57&\"_new\",Ammortamento_Finanziario!$H:$L,5,FALSE),VLOOKUP($M57,TT_Tabelle_Riferimento!$D$127:$H$164,5,FALSE))","v":5},{"$f":"+IFERROR(VLOOKUP(LT$27&\"-\"&$M57&\"_new\",Ammortamento_Finanziario!$H:$L,5,FALSE),VLOOKUP($M57,TT_Tabelle_Riferimento!$D$127:$H$164,5,FALSE))","v":5},{"$f":"+IFERROR(VLOOKUP(LU$27&\"-\"&$M57&\"_new\",Ammortamento_Finanziario!$H:$L,5,FALSE),VLOOKUP($M57,TT_Tabelle_Riferimento!$D$127:$H$164,5,FALSE))","v":5},{"$f":"+IFERROR(VLOOKUP(LV$27&\"-\"&$M57&\"_new\",Ammortamento_Finanziario!$H:$L,5,FALSE),VLOOKUP($M57,TT_Tabelle_Riferimento!$D$127:$H$164,5,FALSE))","v":5},{"$f":"+IFERROR(VLOOKUP(LW$27&\"-\"&$M57&\"_new\",Ammortamento_Finanziario!$H:$L,5,FALSE),VLOOKUP($M57,TT_Tabelle_Riferimento!$D$127:$H$164,5,FALSE))","v":5},{"$f":"+IFERROR(VLOOKUP(LX$27&\"-\"&$M57&\"_new\",Ammortamento_Finanziario!$H:$L,5,FALSE),VLOOKUP($M57,TT_Tabelle_Riferimento!$D$127:$H$164,5,FALSE))","v":5},{"$f":"+IFERROR(VLOOKUP(LY$27&\"-\"&$M57&\"_new\",Ammortamento_Finanziario!$H:$L,5,FALSE),VLOOKUP($M57,TT_Tabelle_Riferimento!$D$127:$H$164,5,FALSE))","v":5},{"$f":"+IFERROR(VLOOKUP(LZ$27&\"-\"&$M57&\"_new\",Ammortamento_Finanziario!$H:$L,5,FALSE),VLOOKUP($M57,TT_Tabelle_Riferimento!$D$127:$H$164,5,FALSE))","v":5},{"$f":"+IFERROR(VLOOKUP(MA$27&\"-\"&$M57&\"_new\",Ammortamento_Finanziario!$H:$L,5,FALSE),VLOOKUP($M57,TT_Tabelle_Riferimento!$D$127:$H$164,5,FALSE))","v":5},{"$f":"+IFERROR(VLOOKUP(MB$27&\"-\"&$M57&\"_new\",Ammortamento_Finanziario!$H:$L,5,FALSE),VLOOKUP($M57,TT_Tabelle_Riferimento!$D$127:$H$164,5,FALSE))","v":5},{"$f":"+IFERROR(VLOOKUP(MC$27&\"-\"&$M57&\"_new\",Ammortamento_Finanziario!$H:$L,5,FALSE),VLOOKUP($M57,TT_Tabelle_Riferimento!$D$127:$H$164,5,FALSE))","v":5},{"$f":"+IFERROR(VLOOKUP(MD$27&\"-\"&$M57&\"_new\",Ammortamento_Finanziario!$H:$L,5,FALSE),VLOOKUP($M57,TT_Tabelle_Riferimento!$D$127:$H$164,5,FALSE))","v":5},{"$f":"+IFERROR(VLOOKUP(ME$27&\"-\"&$M57&\"_new\",Ammortamento_Finanziario!$H:$L,5,FALSE),VLOOKUP($M57,TT_Tabelle_Riferimento!$D$127:$H$164,5,FALSE))","v":5},{"$f":"+IFERROR(VLOOKUP(MF$27&\"-\"&$M57&\"_new\",Ammortamento_Finanziario!$H:$L,5,FALSE),VLOOKUP($M57,TT_Tabelle_Riferimento!$D$127:$H$164,5,FALSE))","v":5},{"$f":"+IFERROR(VLOOKUP(MG$27&\"-\"&$M57&\"_new\",Ammortamento_Finanziario!$H:$L,5,FALSE),VLOOKUP($M57,TT_Tabelle_Riferimento!$D$127:$H$164,5,FALSE))","v":5},{"$f":"+IFERROR(VLOOKUP(MH$27&\"-\"&$M57&\"_new\",Ammortamento_Finanziario!$H:$L,5,FALSE),VLOOKUP($M57,TT_Tabelle_Riferimento!$D$127:$H$164,5,FALSE))","v":5},{"$f":"+IFERROR(VLOOKUP(MI$27&\"-\"&$M57&\"_new\",Ammortamento_Finanziario!$H:$L,5,FALSE),VLOOKUP($M57,TT_Tabelle_Riferimento!$D$127:$H$164,5,FALSE))","v":5},{"$f":"+IFERROR(VLOOKUP(MJ$27&\"-\"&$M57&\"_new\",Ammortamento_Finanziario!$H:$L,5,FALSE),VLOOKUP($M57,TT_Tabelle_Riferimento!$D$127:$H$164,5,FALSE))","v":5},{"$f":"+IFERROR(VLOOKUP(MK$27&\"-\"&$M57&\"_new\",Ammortamento_Finanziario!$H:$L,5,FALSE),VLOOKUP($M57,TT_Tabelle_Riferimento!$D$127:$H$164,5,FALSE))","v":5},{"$f":"+IFERROR(VLOOKUP(ML$27&\"-\"&$M57&\"_new\",Ammortamento_Finanziario!$H:$L,5,FALSE),VLOOKUP($M57,TT_Tabelle_Riferimento!$D$127:$H$164,5,FALSE))","v":5},{"$f":"+IFERROR(VLOOKUP(MM$27&\"-\"&$M57&\"_new\",Ammortamento_Finanziario!$H:$L,5,FALSE),VLOOKUP($M57,TT_Tabelle_Riferimento!$D$127:$H$164,5,FALSE))","v":5},{"$f":"+IFERROR(VLOOKUP(MN$27&\"-\"&$M57&\"_new\",Ammortamento_Finanziario!$H:$L,5,FALSE),VLOOKUP($M57,TT_Tabelle_Riferimento!$D$127:$H$164,5,FALSE))","v":5},{"$f":"+IFERROR(VLOOKUP(MO$27&\"-\"&$M57&\"_new\",Ammortamento_Finanziario!$H:$L,5,FALSE),VLOOKUP($M57,TT_Tabelle_Riferimento!$D$127:$H$164,5,FALSE))","v":5},{"$f":"+IFERROR(VLOOKUP(MP$27&\"-\"&$M57&\"_new\",Ammortamento_Finanziario!$H:$L,5,FALSE),VLOOKUP($M57,TT_Tabelle_Riferimento!$D$127:$H$164,5,FALSE))","v":5},{"$f":"+IFERROR(VLOOKUP(MQ$27&\"-\"&$M57&\"_new\",Ammortamento_Finanziario!$H:$L,5,FALSE),VLOOKUP($M57,TT_Tabelle_Riferimento!$D$127:$H$164,5,FALSE))","v":5},{"$f":"+IFERROR(VLOOKUP(MR$27&\"-\"&$M57&\"_new\",Ammortamento_Finanziario!$H:$L,5,FALSE),VLOOKUP($M57,TT_Tabelle_Riferimento!$D$127:$H$164,5,FALSE))","v":5},{"$f":"+IFERROR(VLOOKUP(MS$27&\"-\"&$M57&\"_new\",Ammortamento_Finanziario!$H:$L,5,FALSE),VLOOKUP($M57,TT_Tabelle_Riferimento!$D$127:$H$164,5,FALSE))","v":5},{"$f":"+IFERROR(VLOOKUP(MT$27&\"-\"&$M57&\"_new\",Ammortamento_Finanziario!$H:$L,5,FALSE),VLOOKUP($M57,TT_Tabelle_Riferimento!$D$127:$H$164,5,FALSE))","v":5},{"$f":"+IFERROR(VLOOKUP(MU$27&\"-\"&$M57&\"_new\",Ammortamento_Finanziario!$H:$L,5,FALSE),VLOOKUP($M57,TT_Tabelle_Riferimento!$D$127:$H$164,5,FALSE))","v":5},{"$f":"+IFERROR(VLOOKUP(MV$27&\"-\"&$M57&\"_new\",Ammortamento_Finanziario!$H:$L,5,FALSE),VLOOKUP($M57,TT_Tabelle_Riferimento!$D$127:$H$164,5,FALSE))","v":5},{"$f":"+IFERROR(VLOOKUP(MW$27&\"-\"&$M57&\"_new\",Ammortamento_Finanziario!$H:$L,5,FALSE),VLOOKUP($M57,TT_Tabelle_Riferimento!$D$127:$H$164,5,FALSE))","v":5},{"$f":"+IFERROR(VLOOKUP(MX$27&\"-\"&$M57&\"_new\",Ammortamento_Finanziario!$H:$L,5,FALSE),VLOOKUP($M57,TT_Tabelle_Riferimento!$D$127:$H$164,5,FALSE))","v":5},{"$f":"+IFERROR(VLOOKUP(MY$27&\"-\"&$M57&\"_new\",Ammortamento_Finanziario!$H:$L,5,FALSE),VLOOKUP($M57,TT_Tabelle_Riferimento!$D$127:$H$164,5,FALSE))","v":5},{"$f":"+IFERROR(VLOOKUP(MZ$27&\"-\"&$M57&\"_new\",Ammortamento_Finanziario!$H:$L,5,FALSE),VLOOKUP($M57,TT_Tabelle_Riferimento!$D$127:$H$164,5,FALSE))","v":5},{"$f":"+IFERROR(VLOOKUP(NA$27&\"-\"&$M57&\"_new\",Ammortamento_Finanziario!$H:$L,5,FALSE),VLOOKUP($M57,TT_Tabelle_Riferimento!$D$127:$H$164,5,FALSE))","v":5},{"$f":"+IFERROR(VLOOKUP(NB$27&\"-\"&$M57&\"_new\",Ammortamento_Finanziario!$H:$L,5,FALSE),VLOOKUP($M57,TT_Tabelle_Riferimento!$D$127:$H$164,5,FALSE))","v":5},{"$f":"+IFERROR(VLOOKUP(NC$27&\"-\"&$M57&\"_new\",Ammortamento_Finanziario!$H:$L,5,FALSE),VLOOKUP($M57,TT_Tabelle_Riferimento!$D$127:$H$164,5,FALSE))","v":5},{"$f":"+IFERROR(VLOOKUP(ND$27&\"-\"&$M57&\"_new\",Ammortamento_Finanziario!$H:$L,5,FALSE),VLOOKUP($M57,TT_Tabelle_Riferimento!$D$127:$H$164,5,FALSE))","v":5},{"$f":"+IFERROR(VLOOKUP(NE$27&\"-\"&$M57&\"_new\",Ammortamento_Finanziario!$H:$L,5,FALSE),VLOOKUP($M57,TT_Tabelle_Riferimento!$D$127:$H$164,5,FALSE))","v":5},{"$f":"+IFERROR(VLOOKUP(NF$27&\"-\"&$M57&\"_new\",Ammortamento_Finanziario!$H:$L,5,FALSE),VLOOKUP($M57,TT_Tabelle_Riferimento!$D$127:$H$164,5,FALSE))","v":5},{"$f":"+IFERROR(VLOOKUP(NG$27&\"-\"&$M57&\"_new\",Ammortamento_Finanziario!$H:$L,5,FALSE),VLOOKUP($M57,TT_Tabelle_Riferimento!$D$127:$H$164,5,FALSE))","v":5},{"$f":"+IFERROR(VLOOKUP(NH$27&\"-\"&$M57&\"_new\",Ammortamento_Finanziario!$H:$L,5,FALSE),VLOOKUP($M57,TT_Tabelle_Riferimento!$D$127:$H$164,5,FALSE))","v":5},{"$f":"+IFERROR(VLOOKUP(NI$27&\"-\"&$M57&\"_new\",Ammortamento_Finanziario!$H:$L,5,FALSE),VLOOKUP($M57,TT_Tabelle_Riferimento!$D$127:$H$164,5,FALSE))","v":5},{"$f":"+IFERROR(VLOOKUP(NJ$27&\"-\"&$M57&\"_new\",Ammortamento_Finanziario!$H:$L,5,FALSE),VLOOKUP($M57,TT_Tabelle_Riferimento!$D$127:$H$164,5,FALSE))","v":5},{"$f":"+IFERROR(VLOOKUP(NK$27&\"-\"&$M57&\"_new\",Ammortamento_Finanziario!$H:$L,5,FALSE),VLOOKUP($M57,TT_Tabelle_Riferimento!$D$127:$H$164,5,FALSE))","v":5},{"$f":"+IFERROR(VLOOKUP(NL$27&\"-\"&$M57&\"_new\",Ammortamento_Finanziario!$H:$L,5,FALSE),VLOOKUP($M57,TT_Tabelle_Riferimento!$D$127:$H$164,5,FALSE))","v":5},{"$f":"+IFERROR(VLOOKUP(NM$27&\"-\"&$M57&\"_new\",Ammortamento_Finanziario!$H:$L,5,FALSE),VLOOKUP($M57,TT_Tabelle_Riferimento!$D$127:$H$164,5,FALSE))","v":5},{"$f":"+IFERROR(VLOOKUP(NN$27&\"-\"&$M57&\"_new\",Ammortamento_Finanziario!$H:$L,5,FALSE),VLOOKUP($M57,TT_Tabelle_Riferimento!$D$127:$H$164,5,FALSE))","v":5},{"$f":"+IFERROR(VLOOKUP(NO$27&\"-\"&$M57&\"_new\",Ammortamento_Finanziario!$H:$L,5,FALSE),VLOOKUP($M57,TT_Tabelle_Riferimento!$D$127:$H$164,5,FALSE))","v":5},{"$f":"+IFERROR(VLOOKUP(NP$27&\"-\"&$M57&\"_new\",Ammortamento_Finanziario!$H:$L,5,FALSE),VLOOKUP($M57,TT_Tabelle_Riferimento!$D$127:$H$164,5,FALSE))","v":5},{"$f":"+IFERROR(VLOOKUP(NQ$27&\"-\"&$M57&\"_new\",Ammortamento_Finanziario!$H:$L,5,FALSE),VLOOKUP($M57,TT_Tabelle_Riferimento!$D$127:$H$164,5,FALSE))","v":5},{"$f":"+IFERROR(VLOOKUP(NR$27&\"-\"&$M57&\"_new\",Ammortamento_Finanziario!$H:$L,5,FALSE),VLOOKUP($M57,TT_Tabelle_Riferimento!$D$127:$H$164,5,FALSE))","v":5},{"$f":"+IFERROR(VLOOKUP(NS$27&\"-\"&$M57&\"_new\",Ammortamento_Finanziario!$H:$L,5,FALSE),VLOOKUP($M57,TT_Tabelle_Riferimento!$D$127:$H$164,5,FALSE))","v":5},{"$f":"+IFERROR(VLOOKUP(NT$27&\"-\"&$M57&\"_new\",Ammortamento_Finanziario!$H:$L,5,FALSE),VLOOKUP($M57,TT_Tabelle_Riferimento!$D$127:$H$164,5,FALSE))","v":5},{"$f":"+IFERROR(VLOOKUP(NU$27&\"-\"&$M57&\"_new\",Ammortamento_Finanziario!$H:$L,5,FALSE),VLOOKUP($M57,TT_Tabelle_Riferimento!$D$127:$H$164,5,FALSE))","v":5},{"$f":"+IFERROR(VLOOKUP(NV$27&\"-\"&$M57&\"_new\",Ammortamento_Finanziario!$H:$L,5,FALSE),VLOOKUP($M57,TT_Tabelle_Riferimento!$D$127:$H$164,5,FALSE))","v":5},{"$f":"+IFERROR(VLOOKUP(NW$27&\"-\"&$M57&\"_new\",Ammortamento_Finanziario!$H:$L,5,FALSE),VLOOKUP($M57,TT_Tabelle_Riferimento!$D$127:$H$164,5,FALSE))","v":5},{"$f":"+IFERROR(VLOOKUP(NX$27&\"-\"&$M57&\"_new\",Ammortamento_Finanziario!$H:$L,5,FALSE),VLOOKUP($M57,TT_Tabelle_Riferimento!$D$127:$H$164,5,FALSE))","v":5},{"$f":"+IFERROR(VLOOKUP(NY$27&\"-\"&$M57&\"_new\",Ammortamento_Finanziario!$H:$L,5,FALSE),VLOOKUP($M57,TT_Tabelle_Riferimento!$D$127:$H$164,5,FALSE))","v":5},{"$f":"+IFERROR(VLOOKUP(NZ$27&\"-\"&$M57&\"_new\",Ammortamento_Finanziario!$H:$L,5,FALSE),VLOOKUP($M57,TT_Tabelle_Riferimento!$D$127:$H$164,5,FALSE))","v":5},{"$f":"+IFERROR(VLOOKUP(OA$27&\"-\"&$M57&\"_new\",Ammortamento_Finanziario!$H:$L,5,FALSE),VLOOKUP($M57,TT_Tabelle_Riferimento!$D$127:$H$164,5,FALSE))","v":5},{"$f":"+IFERROR(VLOOKUP(OB$27&\"-\"&$M57&\"_new\",Ammortamento_Finanziario!$H:$L,5,FALSE),VLOOKUP($M57,TT_Tabelle_Riferimento!$D$127:$H$164,5,FALSE))","v":5},{"$f":"+IFERROR(VLOOKUP(OC$27&\"-\"&$M57&\"_new\",Ammortamento_Finanziario!$H:$L,5,FALSE),VLOOKUP($M57,TT_Tabelle_Riferimento!$D$127:$H$164,5,FALSE))","v":5},{"$f":"+IFERROR(VLOOKUP(OD$27&\"-\"&$M57&\"_new\",Ammortamento_Finanziario!$H:$L,5,FALSE),VLOOKUP($M57,TT_Tabelle_Riferimento!$D$127:$H$164,5,FALSE))","v":5},{"$f":"+IFERROR(VLOOKUP(OE$27&\"-\"&$M57&\"_new\",Ammortamento_Finanziario!$H:$L,5,FALSE),VLOOKUP($M57,TT_Tabelle_Riferimento!$D$127:$H$164,5,FALSE))","v":5},{"$f":"+IFERROR(VLOOKUP(OF$27&\"-\"&$M57&\"_new\",Ammortamento_Finanziario!$H:$L,5,FALSE),VLOOKUP($M57,TT_Tabelle_Riferimento!$D$127:$H$164,5,FALSE))","v":5},{"$f":"+IFERROR(VLOOKUP(OG$27&\"-\"&$M57&\"_new\",Ammortamento_Finanziario!$H:$L,5,FALSE),VLOOKUP($M57,TT_Tabelle_Riferimento!$D$127:$H$164,5,FALSE))","v":5},{"$f":"+IFERROR(VLOOKUP(OH$27&\"-\"&$M57&\"_new\",Ammortamento_Finanziario!$H:$L,5,FALSE),VLOOKUP($M57,TT_Tabelle_Riferimento!$D$127:$H$164,5,FALSE))","v":5},{"$f":"+IFERROR(VLOOKUP(OI$27&\"-\"&$M57&\"_new\",Ammortamento_Finanziario!$H:$L,5,FALSE),VLOOKUP($M57,TT_Tabelle_Riferimento!$D$127:$H$164,5,FALSE))","v":5},{"$f":"+IFERROR(VLOOKUP(OJ$27&\"-\"&$M57&\"_new\",Ammortamento_Finanziario!$H:$L,5,FALSE),VLOOKUP($M57,TT_Tabelle_Riferimento!$D$127:$H$164,5,FALSE))","v":5},{"$f":"+IFERROR(VLOOKUP(OK$27&\"-\"&$M57&\"_new\",Ammortamento_Finanziario!$H:$L,5,FALSE),VLOOKUP($M57,TT_Tabelle_Riferimento!$D$127:$H$164,5,FALSE))","v":5},{"$f":"+IFERROR(VLOOKUP(OL$27&\"-\"&$M57&\"_new\",Ammortamento_Finanziario!$H:$L,5,FALSE),VLOOKUP($M57,TT_Tabelle_Riferimento!$D$127:$H$164,5,FALSE))","v":5},{"$f":"+IFERROR(VLOOKUP(OM$27&\"-\"&$M57&\"_new\",Ammortamento_Finanziario!$H:$L,5,FALSE),VLOOKUP($M57,TT_Tabelle_Riferimento!$D$127:$H$164,5,FALSE))","v":5},{"$f":"+IFERROR(VLOOKUP(ON$27&\"-\"&$M57&\"_new\",Ammortamento_Finanziario!$H:$L,5,FALSE),VLOOKUP($M57,TT_Tabelle_Riferimento!$D$127:$H$164,5,FALSE))","v":5},{"$f":"+IFERROR(VLOOKUP(OO$27&\"-\"&$M57&\"_new\",Ammortamento_Finanziario!$H:$L,5,FALSE),VLOOKUP($M57,TT_Tabelle_Riferimento!$D$127:$H$164,5,FALSE))","v":5},{"$f":"+IFERROR(VLOOKUP(OP$27&\"-\"&$M57&\"_new\",Ammortamento_Finanziario!$H:$L,5,FALSE),VLOOKUP($M57,TT_Tabelle_Riferimento!$D$127:$H$164,5,FALSE))","v":5},{"$f":"+IFERROR(VLOOKUP(OQ$27&\"-\"&$M57&\"_new\",Ammortamento_Finanziario!$H:$L,5,FALSE),VLOOKUP($M57,TT_Tabelle_Riferimento!$D$127:$H$164,5,FALSE))","v":5},{"$f":"+IFERROR(VLOOKUP(OR$27&\"-\"&$M57&\"_new\",Ammortamento_Finanziario!$H:$L,5,FALSE),VLOOKUP($M57,TT_Tabelle_Riferimento!$D$127:$H$164,5,FALSE))","v":5},{"$f":"+IFERROR(VLOOKUP(OS$27&\"-\"&$M57&\"_new\",Ammortamento_Finanziario!$H:$L,5,FALSE),VLOOKUP($M57,TT_Tabelle_Riferimento!$D$127:$H$164,5,FALSE))","v":5},{"$f":"+IFERROR(VLOOKUP(OT$27&\"-\"&$M57&\"_new\",Ammortamento_Finanziario!$H:$L,5,FALSE),VLOOKUP($M57,TT_Tabelle_Riferimento!$D$127:$H$164,5,FALSE))","v":5},{"$f":"+IFERROR(VLOOKUP(OU$27&\"-\"&$M57&\"_new\",Ammortamento_Finanziario!$H:$L,5,FALSE),VLOOKUP($M57,TT_Tabelle_Riferimento!$D$127:$H$164,5,FALSE))","v":5},{"$f":"+IFERROR(VLOOKUP(OV$27&\"-\"&$M57&\"_new\",Ammortamento_Finanziario!$H:$L,5,FALSE),VLOOKUP($M57,TT_Tabelle_Riferimento!$D$127:$H$164,5,FALSE))","v":5},{"$f":"+IFERROR(VLOOKUP(OW$27&\"-\"&$M57&\"_new\",Ammortamento_Finanziario!$H:$L,5,FALSE),VLOOKUP($M57,TT_Tabelle_Riferimento!$D$127:$H$164,5,FALSE))","v":5},{"$f":"+IFERROR(VLOOKUP(OX$27&\"-\"&$M57&\"_new\",Ammortamento_Finanziario!$H:$L,5,FALSE),VLOOKUP($M57,TT_Tabelle_Riferimento!$D$127:$H$164,5,FALSE))","v":5},{"$f":"+IFERROR(VLOOKUP(OY$27&\"-\"&$M57&\"_new\",Ammortamento_Finanziario!$H:$L,5,FALSE),VLOOKUP($M57,TT_Tabelle_Riferimento!$D$127:$H$164,5,FALSE))","v":5},{"$f":"+IFERROR(VLOOKUP(OZ$27&\"-\"&$M57&\"_new\",Ammortamento_Finanziario!$H:$L,5,FALSE),VLOOKUP($M57,TT_Tabelle_Riferimento!$D$127:$H$164,5,FALSE))","v":5},{"$f":"+IFERROR(VLOOKUP(PA$27&\"-\"&$M57&\"_new\",Ammortamento_Finanziario!$H:$L,5,FALSE),VLOOKUP($M57,TT_Tabelle_Riferimento!$D$127:$H$164,5,FALSE))","v":5},{"$f":"+IFERROR(VLOOKUP(PB$27&\"-\"&$M57&\"_new\",Ammortamento_Finanziario!$H:$L,5,FALSE),VLOOKUP($M57,TT_Tabelle_Riferimento!$D$127:$H$164,5,FALSE))","v":5},{"$f":"+IFERROR(VLOOKUP(PC$27&\"-\"&$M57&\"_new\",Ammortamento_Finanziario!$H:$L,5,FALSE),VLOOKUP($M57,TT_Tabelle_Riferimento!$D$127:$H$164,5,FALSE))","v":5},{"$f":"+IFERROR(VLOOKUP(PD$27&\"-\"&$M57&\"_new\",Ammortamento_Finanziario!$H:$L,5,FALSE),VLOOKUP($M57,TT_Tabelle_Riferimento!$D$127:$H$164,5,FALSE))","v":5},{"$f":"+IFERROR(VLOOKUP(PE$27&\"-\"&$M57&\"_new\",Ammortamento_Finanziario!$H:$L,5,FALSE),VLOOKUP($M57,TT_Tabelle_Riferimento!$D$127:$H$164,5,FALSE))","v":5},{"$f":"+IFERROR(VLOOKUP(PF$27&\"-\"&$M57&\"_new\",Ammortamento_Finanziario!$H:$L,5,FALSE),VLOOKUP($M57,TT_Tabelle_Riferimento!$D$127:$H$164,5,FALSE))","v":5},{"$f":"+IFERROR(VLOOKUP(PG$27&\"-\"&$M57&\"_new\",Ammortamento_Finanziario!$H:$L,5,FALSE),VLOOKUP($M57,TT_Tabelle_Riferimento!$D$127:$H$164,5,FALSE))","v":5},{"$f":"+IFERROR(VLOOKUP(PH$27&\"-\"&$M57&\"_new\",Ammortamento_Finanziario!$H:$L,5,FALSE),VLOOKUP($M57,TT_Tabelle_Riferimento!$D$127:$H$164,5,FALSE))","v":5},{"$f":"+IFERROR(VLOOKUP(PI$27&\"-\"&$M57&\"_new\",Ammortamento_Finanziario!$H:$L,5,FALSE),VLOOKUP($M57,TT_Tabelle_Riferimento!$D$127:$H$164,5,FALSE))","v":5},{"$f":"+IFERROR(VLOOKUP(PJ$27&\"-\"&$M57&\"_new\",Ammortamento_Finanziario!$H:$L,5,FALSE),VLOOKUP($M57,TT_Tabelle_Riferimento!$D$127:$H$164,5,FALSE))","v":5},{"$f":"+IFERROR(VLOOKUP(PK$27&\"-\"&$M57&\"_new\",Ammortamento_Finanziario!$H:$L,5,FALSE),VLOOKUP($M57,TT_Tabelle_Riferimento!$D$127:$H$164,5,FALSE))","v":5},{"$f":"+IFERROR(VLOOKUP(PL$27&\"-\"&$M57&\"_new\",Ammortamento_Finanziario!$H:$L,5,FALSE),VLOOKUP($M57,TT_Tabelle_Riferimento!$D$127:$H$164,5,FALSE))","v":5},{"$f":"+IFERROR(VLOOKUP(PM$27&\"-\"&$M57&\"_new\",Ammortamento_Finanziario!$H:$L,5,FALSE),VLOOKUP($M57,TT_Tabelle_Riferimento!$D$127:$H$164,5,FALSE))","v":5},{"$f":"+IFERROR(VLOOKUP(PN$27&\"-\"&$M57&\"_new\",Ammortamento_Finanziario!$H:$L,5,FALSE),VLOOKUP($M57,TT_Tabelle_Riferimento!$D$127:$H$164,5,FALSE))","v":5},{"$f":"+IFERROR(VLOOKUP(PO$27&\"-\"&$M57&\"_new\",Ammortamento_Finanziario!$H:$L,5,FALSE),VLOOKUP($M57,TT_Tabelle_Riferimento!$D$127:$H$164,5,FALSE))","v":5},{"$f":"+IFERROR(VLOOKUP(PP$27&\"-\"&$M57&\"_new\",Ammortamento_Finanziario!$H:$L,5,FALSE),VLOOKUP($M57,TT_Tabelle_Riferimento!$D$127:$H$164,5,FALSE))","v":5},{"$f":"+IFERROR(VLOOKUP(PQ$27&\"-\"&$M57&\"_new\",Ammortamento_Finanziario!$H:$L,5,FALSE),VLOOKUP($M57,TT_Tabelle_Riferimento!$D$127:$H$164,5,FALSE))","v":5},{"$f":"+IFERROR(VLOOKUP(PR$27&\"-\"&$M57&\"_new\",Ammortamento_Finanziario!$H:$L,5,FALSE),VLOOKUP($M57,TT_Tabelle_Riferimento!$D$127:$H$164,5,FALSE))","v":5},{"$f":"+IFERROR(VLOOKUP(PS$27&\"-\"&$M57&\"_new\",Ammortamento_Finanziario!$H:$L,5,FALSE),VLOOKUP($M57,TT_Tabelle_Riferimento!$D$127:$H$164,5,FALSE))","v":5},{"$f":"+IFERROR(VLOOKUP(PT$27&\"-\"&$M57&\"_new\",Ammortamento_Finanziario!$H:$L,5,FALSE),VLOOKUP($M57,TT_Tabelle_Riferimento!$D$127:$H$164,5,FALSE))","v":5},{"$f":"+IFERROR(VLOOKUP(PU$27&\"-\"&$M57&\"_new\",Ammortamento_Finanziario!$H:$L,5,FALSE),VLOOKUP($M57,TT_Tabelle_Riferimento!$D$127:$H$164,5,FALSE))","v":5},{"$f":"+IFERROR(VLOOKUP(PV$27&\"-\"&$M57&\"_new\",Ammortamento_Finanziario!$H:$L,5,FALSE),VLOOKUP($M57,TT_Tabelle_Riferimento!$D$127:$H$164,5,FALSE))","v":5},{"$f":"+IFERROR(VLOOKUP(PW$27&\"-\"&$M57&\"_new\",Ammortamento_Finanziario!$H:$L,5,FALSE),VLOOKUP($M57,TT_Tabelle_Riferimento!$D$127:$H$164,5,FALSE))","v":5},{"$f":"+IFERROR(VLOOKUP(PX$27&\"-\"&$M57&\"_new\",Ammortamento_Finanziario!$H:$L,5,FALSE),VLOOKUP($M57,TT_Tabelle_Riferimento!$D$127:$H$164,5,FALSE))","v":5},{"$f":"+IFERROR(VLOOKUP(PY$27&\"-\"&$M57&\"_new\",Ammortamento_Finanziario!$H:$L,5,FALSE),VLOOKUP($M57,TT_Tabelle_Riferimento!$D$127:$H$164,5,FALSE))","v":5},{"$f":"+IFERROR(VLOOKUP(PZ$27&\"-\"&$M57&\"_new\",Ammortamento_Finanziario!$H:$L,5,FALSE),VLOOKUP($M57,TT_Tabelle_Riferimento!$D$127:$H$164,5,FALSE))","v":5},{"$f":"+IFERROR(VLOOKUP(QA$27&\"-\"&$M57&\"_new\",Ammortamento_Finanziario!$H:$L,5,FALSE),VLOOKUP($M57,TT_Tabelle_Riferimento!$D$127:$H$164,5,FALSE))","v":5},{"$f":"+IFERROR(VLOOKUP(QB$27&\"-\"&$M57&\"_new\",Ammortamento_Finanziario!$H:$L,5,FALSE),VLOOKUP($M57,TT_Tabelle_Riferimento!$D$127:$H$164,5,FALSE))","v":5},{"$f":"+IFERROR(VLOOKUP(QC$27&\"-\"&$M57&\"_new\",Ammortamento_Finanziario!$H:$L,5,FALSE),VLOOKUP($M57,TT_Tabelle_Riferimento!$D$127:$H$164,5,FALSE))","v":5},{"$f":"+IFERROR(VLOOKUP(QD$27&\"-\"&$M57&\"_new\",Ammortamento_Finanziario!$H:$L,5,FALSE),VLOOKUP($M57,TT_Tabelle_Riferimento!$D$127:$H$164,5,FALSE))","v":5},{"$f":"+IFERROR(VLOOKUP(QE$27&\"-\"&$M57&\"_new\",Ammortamento_Finanziario!$H:$L,5,FALSE),VLOOKUP($M57,TT_Tabelle_Riferimento!$D$127:$H$164,5,FALSE))","v":5},{"$f":"+IFERROR(VLOOKUP(QF$27&\"-\"&$M57&\"_new\",Ammortamento_Finanziario!$H:$L,5,FALSE),VLOOKUP($M57,TT_Tabelle_Riferimento!$D$127:$H$164,5,FALSE))","v":5},{"$f":"+IFERROR(VLOOKUP(QG$27&\"-\"&$M57&\"_new\",Ammortamento_Finanziario!$H:$L,5,FALSE),VLOOKUP($M57,TT_Tabelle_Riferimento!$D$127:$H$164,5,FALSE))","v":5},{"$f":"+IFERROR(VLOOKUP(QH$27&\"-\"&$M57&\"_new\",Ammortamento_Finanziario!$H:$L,5,FALSE),VLOOKUP($M57,TT_Tabelle_Riferimento!$D$127:$H$164,5,FALSE))","v":5},{"$f":"+IFERROR(VLOOKUP(QI$27&\"-\"&$M57&\"_new\",Ammortamento_Finanziario!$H:$L,5,FALSE),VLOOKUP($M57,TT_Tabelle_Riferimento!$D$127:$H$164,5,FALSE))","v":5},{"$f":"+IFERROR(VLOOKUP(QJ$27&\"-\"&$M57&\"_new\",Ammortamento_Finanziario!$H:$L,5,FALSE),VLOOKUP($M57,TT_Tabelle_Riferimento!$D$127:$H$164,5,FALSE))","v":5},{"$f":"+IFERROR(VLOOKUP(QK$27&\"-\"&$M57&\"_new\",Ammortamento_Finanziario!$H:$L,5,FALSE),VLOOKUP($M57,TT_Tabelle_Riferimento!$D$127:$H$164,5,FALSE))","v":5},{"$f":"+IFERROR(VLOOKUP(QL$27&\"-\"&$M57&\"_new\",Ammortamento_Finanziario!$H:$L,5,FALSE),VLOOKUP($M57,TT_Tabelle_Riferimento!$D$127:$H$164,5,FALSE))","v":5},{"$f":"+IFERROR(VLOOKUP(QM$27&\"-\"&$M57&\"_new\",Ammortamento_Finanziario!$H:$L,5,FALSE),VLOOKUP($M57,TT_Tabelle_Riferimento!$D$127:$H$164,5,FALSE))","v":5},{"$f":"+IFERROR(VLOOKUP(QN$27&\"-\"&$M57&\"_new\",Ammortamento_Finanziario!$H:$L,5,FALSE),VLOOKUP($M57,TT_Tabelle_Riferimento!$D$127:$H$164,5,FALSE))","v":5},{"$f":"+IFERROR(VLOOKUP(QO$27&\"-\"&$M57&\"_new\",Ammortamento_Finanziario!$H:$L,5,FALSE),VLOOKUP($M57,TT_Tabelle_Riferimento!$D$127:$H$164,5,FALSE))","v":5},{"$f":"+IFERROR(VLOOKUP(QP$27&\"-\"&$M57&\"_new\",Ammortamento_Finanziario!$H:$L,5,FALSE),VLOOKUP($M57,TT_Tabelle_Riferimento!$D$127:$H$164,5,FALSE))","v":5},{"$f":"+IFERROR(VLOOKUP(QQ$27&\"-\"&$M57&\"_new\",Ammortamento_Finanziario!$H:$L,5,FALSE),VLOOKUP($M57,TT_Tabelle_Riferimento!$D$127:$H$164,5,FALSE))","v":5},{"$f":"+IFERROR(VLOOKUP(QR$27&\"-\"&$M57&\"_new\",Ammortamento_Finanziario!$H:$L,5,FALSE),VLOOKUP($M57,TT_Tabelle_Riferimento!$D$127:$H$164,5,FALSE))","v":5},{"$f":"+IFERROR(VLOOKUP(QS$27&\"-\"&$M57&\"_new\",Ammortamento_Finanziario!$H:$L,5,FALSE),VLOOKUP($M57,TT_Tabelle_Riferimento!$D$127:$H$164,5,FALSE))","v":5},{"$f":"+IFERROR(VLOOKUP(QT$27&\"-\"&$M57&\"_new\",Ammortamento_Finanziario!$H:$L,5,FALSE),VLOOKUP($M57,TT_Tabelle_Riferimento!$D$127:$H$164,5,FALSE))","v":5},{"$f":"+IFERROR(VLOOKUP(QU$27&\"-\"&$M57&\"_new\",Ammortamento_Finanziario!$H:$L,5,FALSE),VLOOKUP($M57,TT_Tabelle_Riferimento!$D$127:$H$164,5,FALSE))","v":5},{"$f":"+IFERROR(VLOOKUP(QV$27&\"-\"&$M57&\"_new\",Ammortamento_Finanziario!$H:$L,5,FALSE),VLOOKUP($M57,TT_Tabelle_Riferimento!$D$127:$H$164,5,FALSE))","v":5},{"$f":"+IFERROR(VLOOKUP(QW$27&\"-\"&$M57&\"_new\",Ammortamento_Finanziario!$H:$L,5,FALSE),VLOOKUP($M57,TT_Tabelle_Riferimento!$D$127:$H$164,5,FALSE))","v":5},{"$f":"+IFERROR(VLOOKUP(QX$27&\"-\"&$M57&\"_new\",Ammortamento_Finanziario!$H:$L,5,FALSE),VLOOKUP($M57,TT_Tabelle_Riferimento!$D$127:$H$164,5,FALSE))","v":5},{"$f":"+IFERROR(VLOOKUP(QY$27&\"-\"&$M57&\"_new\",Ammortamento_Finanziario!$H:$L,5,FALSE),VLOOKUP($M57,TT_Tabelle_Riferimento!$D$127:$H$164,5,FALSE))","v":5},{"$f":"+IFERROR(VLOOKUP(QZ$27&\"-\"&$M57&\"_new\",Ammortamento_Finanziario!$H:$L,5,FALSE),VLOOKUP($M57,TT_Tabelle_Riferimento!$D$127:$H$164,5,FALSE))","v":5},{"$f":"+IFERROR(VLOOKUP(RA$27&\"-\"&$M57&\"_new\",Ammortamento_Finanziario!$H:$L,5,FALSE),VLOOKUP($M57,TT_Tabelle_Riferimento!$D$127:$H$164,5,FALSE))","v":5},{"$f":"+IFERROR(VLOOKUP(RB$27&\"-\"&$M57&\"_new\",Ammortamento_Finanziario!$H:$L,5,FALSE),VLOOKUP($M57,TT_Tabelle_Riferimento!$D$127:$H$164,5,FALSE))","v":5},{"$f":"+IFERROR(VLOOKUP(RC$27&\"-\"&$M57&\"_new\",Ammortamento_Finanziario!$H:$L,5,FALSE),VLOOKUP($M57,TT_Tabelle_Riferimento!$D$127:$H$164,5,FALSE))","v":5},{"$f":"+IFERROR(VLOOKUP(RD$27&\"-\"&$M57&\"_new\",Ammortamento_Finanziario!$H:$L,5,FALSE),VLOOKUP($M57,TT_Tabelle_Riferimento!$D$127:$H$164,5,FALSE))","v":5},{"$f":"+IFERROR(VLOOKUP(RE$27&\"-\"&$M57&\"_new\",Ammortamento_Finanziario!$H:$L,5,FALSE),VLOOKUP($M57,TT_Tabelle_Riferimento!$D$127:$H$164,5,FALSE))","v":5},{"$f":"+IFERROR(VLOOKUP(RF$27&\"-\"&$M57&\"_new\",Ammortamento_Finanziario!$H:$L,5,FALSE),VLOOKUP($M57,TT_Tabelle_Riferimento!$D$127:$H$164,5,FALSE))","v":5},{"$f":"+IFERROR(VLOOKUP(RG$27&\"-\"&$M57&\"_new\",Ammortamento_Finanziario!$H:$L,5,FALSE),VLOOKUP($M57,TT_Tabelle_Riferimento!$D$127:$H$164,5,FALSE))","v":5},{"$f":"+IFERROR(VLOOKUP(RH$27&\"-\"&$M57&\"_new\",Ammortamento_Finanziario!$H:$L,5,FALSE),VLOOKUP($M57,TT_Tabelle_Riferimento!$D$127:$H$164,5,FALSE))","v":5},{"$f":"+IFERROR(VLOOKUP(RI$27&\"-\"&$M57&\"_new\",Ammortamento_Finanziario!$H:$L,5,FALSE),VLOOKUP($M57,TT_Tabelle_Riferimento!$D$127:$H$164,5,FALSE))","v":5},{"$f":"+IFERROR(VLOOKUP(RJ$27&\"-\"&$M57&\"_new\",Ammortamento_Finanziario!$H:$L,5,FALSE),VLOOKUP($M57,TT_Tabelle_Riferimento!$D$127:$H$164,5,FALSE))","v":5},{"$f":"+IFERROR(VLOOKUP(RK$27&\"-\"&$M57&\"_new\",Ammortamento_Finanziario!$H:$L,5,FALSE),VLOOKUP($M57,TT_Tabelle_Riferimento!$D$127:$H$164,5,FALSE))","v":5},{"$f":"+IFERROR(VLOOKUP(RL$27&\"-\"&$M57&\"_new\",Ammortamento_Finanziario!$H:$L,5,FALSE),VLOOKUP($M57,TT_Tabelle_Riferimento!$D$127:$H$164,5,FALSE))","v":5},{"$f":"+IFERROR(VLOOKUP(RM$27&\"-\"&$M57&\"_new\",Ammortamento_Finanziario!$H:$L,5,FALSE),VLOOKUP($M57,TT_Tabelle_Riferimento!$D$127:$H$164,5,FALSE))","v":5},{"$f":"+IFERROR(VLOOKUP(RN$27&\"-\"&$M57&\"_new\",Ammortamento_Finanziario!$H:$L,5,FALSE),VLOOKUP($M57,TT_Tabelle_Riferimento!$D$127:$H$164,5,FALSE))","v":5},{"$f":"+IFERROR(VLOOKUP(RO$27&\"-\"&$M57&\"_new\",Ammortamento_Finanziario!$H:$L,5,FALSE),VLOOKUP($M57,TT_Tabelle_Riferimento!$D$127:$H$164,5,FALSE))","v":5},{"$f":"+IFERROR(VLOOKUP(RP$27&\"-\"&$M57&\"_new\",Ammortamento_Finanziario!$H:$L,5,FALSE),VLOOKUP($M57,TT_Tabelle_Riferimento!$D$127:$H$164,5,FALSE))","v":5},{"$f":"+IFERROR(VLOOKUP(RQ$27&\"-\"&$M57&\"_new\",Ammortamento_Finanziario!$H:$L,5,FALSE),VLOOKUP($M57,TT_Tabelle_Riferimento!$D$127:$H$164,5,FALSE))","v":5},{"$f":"+IFERROR(VLOOKUP(RR$27&\"-\"&$M57&\"_new\",Ammortamento_Finanziario!$H:$L,5,FALSE),VLOOKUP($M57,TT_Tabelle_Riferimento!$D$127:$H$164,5,FALSE))","v":5},{"$f":"+IFERROR(VLOOKUP(RS$27&\"-\"&$M57&\"_new\",Ammortamento_Finanziario!$H:$L,5,FALSE),VLOOKUP($M57,TT_Tabelle_Riferimento!$D$127:$H$164,5,FALSE))","v":5},{"$f":"+IFERROR(VLOOKUP(RT$27&\"-\"&$M57&\"_new\",Ammortamento_Finanziario!$H:$L,5,FALSE),VLOOKUP($M57,TT_Tabelle_Riferimento!$D$127:$H$164,5,FALSE))","v":5},{"$f":"+IFERROR(VLOOKUP(RU$27&\"-\"&$M57&\"_new\",Ammortamento_Finanziario!$H:$L,5,FALSE),VLOOKUP($M57,TT_Tabelle_Riferimento!$D$127:$H$164,5,FALSE))","v":5},{"$f":"+IFERROR(VLOOKUP(RV$27&\"-\"&$M57&\"_new\",Ammortamento_Finanziario!$H:$L,5,FALSE),VLOOKUP($M57,TT_Tabelle_Riferimento!$D$127:$H$164,5,FALSE))","v":5}]
[null,null,null,"CFP",{"$f":"+SUMIFS(IMN_gestore!U:U,IMN_gestore!$G:$G,\"Res\")","v":0},{"$f":"+SUMIFS(IMN_gestore!AF:AF,IMN_gestore!$G:$G,\"Res\")","v":0},{"$f":"+SUMIFS(IMN_gestore!AQ:AQ,IMN_gestore!$G:$G,\"Res\")","v":0},{"$f":"+SUMIFS(IMN_gestore!BB:BB,IMN_gestore!$G:$G,\"Res\")","v":0},{"$f":"+SUMIFS(IMN_gestore!$BM:$BM,IMN_gestore!$G:$G,\"Res\")","v":0},{"$f":"+SUMIFS(IMN_gestore!$BX:$BX,IMN_gestore!$G:$G,\"Res\")","v":0},null,null,31,0,0,0,0,0,0,0,0,0,0,0,0,0,0,0,0,0,0,0,0,0,0,0,0,0,0,0,0,0,0,0,0,0,0,0,0,0,0,0,0,0,0,0,0,0,0,0,0,0,0,0,0,0,0,0,0,0,0,0,0,0,0,0,0,0,0,0,0,0,0,0,0,0,0,0,0,0,0,0,0,0,0,0,0,0,0,0,0,0,0,0,0,0,0,0,0,0,0,0,0,0,0,0,0,0,0,0,0,0,0,0,0,0,0,0,0,0,0,0,0,0,0,0,0,0,0,0,0,0,0,0,0,0,0,0,0,0,0,0,0,0,0,0,0,0,0,0,0,0,0,0,0,0,0,0,0,0,0,0,0,0,0,0,0,0,0,0,0,0,0,0,0,0,0,0,0,0,0,0,0,0,0,0,0,0,0,0,0,0,0,0,0,0,0,0,0,0,0,0,0,0,0,0,0,0,0,0,0,0,0,0,0,0,0,0,0,0,0,0,0,0,0,0,0,0,0,0,0,0,0,0,0,0,0,0,0,0,0,0,0,0,0,0,0,0,0,0,0,0,0,0,0,0,0,0,0,0,0,0,0,0,0,0,0,0,0,0,0,0,0,0,0,0,0,0,0,0,0,0,0,0,0,0,0,0,0,0,0,0,{"$f":"+IFERROR(VLOOKUP(KQ$27&\"-\"&$M58&\"_new\",Ammortamento_Finanziario!$H:$L,5,FALSE),VLOOKUP($M58,TT_Tabelle_Riferimento!$D$127:$H$164,5,FALSE))","v":8},{"$f":"+IFERROR(VLOOKUP(KR$27&\"-\"&$M58&\"_new\",Ammortamento_Finanziario!$H:$L,5,FALSE),VLOOKUP($M58,TT_Tabelle_Riferimento!$D$127:$H$164,5,FALSE))","v":8},{"$f":"+IFERROR(VLOOKUP(KS$27&\"-\"&$M58&\"_new\",Ammortamento_Finanziario!$H:$L,5,FALSE),VLOOKUP($M58,TT_Tabelle_Riferimento!$D$127:$H$164,5,FALSE))","v":8},{"$f":"+IFERROR(VLOOKUP(KT$27&\"-\"&$M58&\"_new\",Ammortamento_Finanziario!$H:$L,5,FALSE),VLOOKUP($M58,TT_Tabelle_Riferimento!$D$127:$H$164,5,FALSE))","v":8},{"$f":"+IFERROR(VLOOKUP(KU$27&\"-\"&$M58&\"_new\",Ammortamento_Finanziario!$H:$L,5,FALSE),VLOOKUP($M58,TT_Tabelle_Riferimento!$D$127:$H$164,5,FALSE))","v":8},{"$f":"+IFERROR(VLOOKUP(KV$27&\"-\"&$M58&\"_new\",Ammortamento_Finanziario!$H:$L,5,FALSE),VLOOKUP($M58,TT_Tabelle_Riferimento!$D$127:$H$164,5,FALSE))","v":8},{"$f":"+IFERROR(VLOOKUP(KW$27&\"-\"&$M58&\"_new\",Ammortamento_Finanziario!$H:$L,5,FALSE),VLOOKUP($M58,TT_Tabelle_Riferimento!$D$127:$H$164,5,FALSE))","v":8},{"$f":"+IFERROR(VLOOKUP(KX$27&\"-\"&$M58&\"_new\",Ammortamento_Finanziario!$H:$L,5,FALSE),VLOOKUP($M58,TT_Tabelle_Riferimento!$D$127:$H$164,5,FALSE))","v":8},{"$f":"+IFERROR(VLOOKUP(KY$27&\"-\"&$M58&\"_new\",Ammortamento_Finanziario!$H:$L,5,FALSE),VLOOKUP($M58,TT_Tabelle_Riferimento!$D$127:$H$164,5,FALSE))","v":8},{"$f":"+IFERROR(VLOOKUP(KZ$27&\"-\"&$M58&\"_new\",Ammortamento_Finanziario!$H:$L,5,FALSE),VLOOKUP($M58,TT_Tabelle_Riferimento!$D$127:$H$164,5,FALSE))","v":8},{"$f":"+IFERROR(VLOOKUP(LA$27&\"-\"&$M58&\"_new\",Ammortamento_Finanziario!$H:$L,5,FALSE),VLOOKUP($M58,TT_Tabelle_Riferimento!$D$127:$H$164,5,FALSE))","v":8},{"$f":"+IFERROR(VLOOKUP(LB$27&\"-\"&$M58&\"_new\",Ammortamento_Finanziario!$H:$L,5,FALSE),VLOOKUP($M58,TT_Tabelle_Riferimento!$D$127:$H$164,5,FALSE))","v":8},{"$f":"+IFERROR(VLOOKUP(LC$27&\"-\"&$M58&\"_new\",Ammortamento_Finanziario!$H:$L,5,FALSE),VLOOKUP($M58,TT_Tabelle_Riferimento!$D$127:$H$164,5,FALSE))","v":8},{"$f":"+IFERROR(VLOOKUP(LD$27&\"-\"&$M58&\"_new\",Ammortamento_Finanziario!$H:$L,5,FALSE),VLOOKUP($M58,TT_Tabelle_Riferimento!$D$127:$H$164,5,FALSE))","v":8},{"$f":"+IFERROR(VLOOKUP(LE$27&\"-\"&$M58&\"_new\",Ammortamento_Finanziario!$H:$L,5,FALSE),VLOOKUP($M58,TT_Tabelle_Riferimento!$D$127:$H$164,5,FALSE))","v":8},{"$f":"+IFERROR(VLOOKUP(LF$27&\"-\"&$M58&\"_new\",Ammortamento_Finanziario!$H:$L,5,FALSE),VLOOKUP($M58,TT_Tabelle_Riferimento!$D$127:$H$164,5,FALSE))","v":8},{"$f":"+IFERROR(VLOOKUP(LG$27&\"-\"&$M58&\"_new\",Ammortamento_Finanziario!$H:$L,5,FALSE),VLOOKUP($M58,TT_Tabelle_Riferimento!$D$127:$H$164,5,FALSE))","v":8},{"$f":"+IFERROR(VLOOKUP(LH$27&\"-\"&$M58&\"_new\",Ammortamento_Finanziario!$H:$L,5,FALSE),VLOOKUP($M58,TT_Tabelle_Riferimento!$D$127:$H$164,5,FALSE))","v":8},{"$f":"+IFERROR(VLOOKUP(LI$27&\"-\"&$M58&\"_new\",Ammortamento_Finanziario!$H:$L,5,FALSE),VLOOKUP($M58,TT_Tabelle_Riferimento!$D$127:$H$164,5,FALSE))","v":8},{"$f":"+IFERROR(VLOOKUP(LJ$27&\"-\"&$M58&\"_new\",Ammortamento_Finanziario!$H:$L,5,FALSE),VLOOKUP($M58,TT_Tabelle_Riferimento!$D$127:$H$164,5,FALSE))","v":8},{"$f":"+IFERROR(VLOOKUP(LK$27&\"-\"&$M58&\"_new\",Ammortamento_Finanziario!$H:$L,5,FALSE),VLOOKUP($M58,TT_Tabelle_Riferimento!$D$127:$H$164,5,FALSE))","v":8},{"$f":"+IFERROR(VLOOKUP(LL$27&\"-\"&$M58&\"_new\",Ammortamento_Finanziario!$H:$L,5,FALSE),VLOOKUP($M58,TT_Tabelle_Riferimento!$D$127:$H$164,5,FALSE))","v":8},{"$f":"+IFERROR(VLOOKUP(LM$27&\"-\"&$M58&\"_new\",Ammortamento_Finanziario!$H:$L,5,FALSE),VLOOKUP($M58,TT_Tabelle_Riferimento!$D$127:$H$164,5,FALSE))","v":8},{"$f":"+IFERROR(VLOOKUP(LN$27&\"-\"&$M58&\"_new\",Ammortamento_Finanziario!$H:$L,5,FALSE),VLOOKUP($M58,TT_Tabelle_Riferimento!$D$127:$H$164,5,FALSE))","v":8},{"$f":"+IFERROR(VLOOKUP(LO$27&\"-\"&$M58&\"_new\",Ammortamento_Finanziario!$H:$L,5,FALSE),VLOOKUP($M58,TT_Tabelle_Riferimento!$D$127:$H$164,5,FALSE))","v":8},{"$f":"+IFERROR(VLOOKUP(LP$27&\"-\"&$M58&\"_new\",Ammortamento_Finanziario!$H:$L,5,FALSE),VLOOKUP($M58,TT_Tabelle_Riferimento!$D$127:$H$164,5,FALSE))","v":8},{"$f":"+IFERROR(VLOOKUP(LQ$27&\"-\"&$M58&\"_new\",Ammortamento_Finanziario!$H:$L,5,FALSE),VLOOKUP($M58,TT_Tabelle_Riferimento!$D$127:$H$164,5,FALSE))","v":8},{"$f":"+IFERROR(VLOOKUP(LR$27&\"-\"&$M58&\"_new\",Ammortamento_Finanziario!$H:$L,5,FALSE),VLOOKUP($M58,TT_Tabelle_Riferimento!$D$127:$H$164,5,FALSE))","v":8},{"$f":"+IFERROR(VLOOKUP(LS$27&\"-\"&$M58&\"_new\",Ammortamento_Finanziario!$H:$L,5,FALSE),VLOOKUP($M58,TT_Tabelle_Riferimento!$D$127:$H$164,5,FALSE))","v":8},{"$f":"+IFERROR(VLOOKUP(LT$27&\"-\"&$M58&\"_new\",Ammortamento_Finanziario!$H:$L,5,FALSE),VLOOKUP($M58,TT_Tabelle_Riferimento!$D$127:$H$164,5,FALSE))","v":8},{"$f":"+IFERROR(VLOOKUP(LU$27&\"-\"&$M58&\"_new\",Ammortamento_Finanziario!$H:$L,5,FALSE),VLOOKUP($M58,TT_Tabelle_Riferimento!$D$127:$H$164,5,FALSE))","v":8},{"$f":"+IFERROR(VLOOKUP(LV$27&\"-\"&$M58&\"_new\",Ammortamento_Finanziario!$H:$L,5,FALSE),VLOOKUP($M58,TT_Tabelle_Riferimento!$D$127:$H$164,5,FALSE))","v":8},{"$f":"+IFERROR(VLOOKUP(LW$27&\"-\"&$M58&\"_new\",Ammortamento_Finanziario!$H:$L,5,FALSE),VLOOKUP($M58,TT_Tabelle_Riferimento!$D$127:$H$164,5,FALSE))","v":8},{"$f":"+IFERROR(VLOOKUP(LX$27&\"-\"&$M58&\"_new\",Ammortamento_Finanziario!$H:$L,5,FALSE),VLOOKUP($M58,TT_Tabelle_Riferimento!$D$127:$H$164,5,FALSE))","v":8},{"$f":"+IFERROR(VLOOKUP(LY$27&\"-\"&$M58&\"_new\",Ammortamento_Finanziario!$H:$L,5,FALSE),VLOOKUP($M58,TT_Tabelle_Riferimento!$D$127:$H$164,5,FALSE))","v":8},{"$f":"+IFERROR(VLOOKUP(LZ$27&\"-\"&$M58&\"_new\",Ammortamento_Finanziario!$H:$L,5,FALSE),VLOOKUP($M58,TT_Tabelle_Riferimento!$D$127:$H$164,5,FALSE))","v":8},{"$f":"+IFERROR(VLOOKUP(MA$27&\"-\"&$M58&\"_new\",Ammortamento_Finanziario!$H:$L,5,FALSE),VLOOKUP($M58,TT_Tabelle_Riferimento!$D$127:$H$164,5,FALSE))","v":8},{"$f":"+IFERROR(VLOOKUP(MB$27&\"-\"&$M58&\"_new\",Ammortamento_Finanziario!$H:$L,5,FALSE),VLOOKUP($M58,TT_Tabelle_Riferimento!$D$127:$H$164,5,FALSE))","v":8},{"$f":"+IFERROR(VLOOKUP(MC$27&\"-\"&$M58&\"_new\",Ammortamento_Finanziario!$H:$L,5,FALSE),VLOOKUP($M58,TT_Tabelle_Riferimento!$D$127:$H$164,5,FALSE))","v":8},{"$f":"+IFERROR(VLOOKUP(MD$27&\"-\"&$M58&\"_new\",Ammortamento_Finanziario!$H:$L,5,FALSE),VLOOKUP($M58,TT_Tabelle_Riferimento!$D$127:$H$164,5,FALSE))","v":8},{"$f":"+IFERROR(VLOOKUP(ME$27&\"-\"&$M58&\"_new\",Ammortamento_Finanziario!$H:$L,5,FALSE),VLOOKUP($M58,TT_Tabelle_Riferimento!$D$127:$H$164,5,FALSE))","v":8},{"$f":"+IFERROR(VLOOKUP(MF$27&\"-\"&$M58&\"_new\",Ammortamento_Finanziario!$H:$L,5,FALSE),VLOOKUP($M58,TT_Tabelle_Riferimento!$D$127:$H$164,5,FALSE))","v":8},{"$f":"+IFERROR(VLOOKUP(MG$27&\"-\"&$M58&\"_new\",Ammortamento_Finanziario!$H:$L,5,FALSE),VLOOKUP($M58,TT_Tabelle_Riferimento!$D$127:$H$164,5,FALSE))","v":8},{"$f":"+IFERROR(VLOOKUP(MH$27&\"-\"&$M58&\"_new\",Ammortamento_Finanziario!$H:$L,5,FALSE),VLOOKUP($M58,TT_Tabelle_Riferimento!$D$127:$H$164,5,FALSE))","v":8},{"$f":"+IFERROR(VLOOKUP(MI$27&\"-\"&$M58&\"_new\",Ammortamento_Finanziario!$H:$L,5,FALSE),VLOOKUP($M58,TT_Tabelle_Riferimento!$D$127:$H$164,5,FALSE))","v":8},{"$f":"+IFERROR(VLOOKUP(MJ$27&\"-\"&$M58&\"_new\",Ammortamento_Finanziario!$H:$L,5,FALSE),VLOOKUP($M58,TT_Tabelle_Riferimento!$D$127:$H$164,5,FALSE))","v":8},{"$f":"+IFERROR(VLOOKUP(MK$27&\"-\"&$M58&\"_new\",Ammortamento_Finanziario!$H:$L,5,FALSE),VLOOKUP($M58,TT_Tabelle_Riferimento!$D$127:$H$164,5,FALSE))","v":8},{"$f":"+IFERROR(VLOOKUP(ML$27&\"-\"&$M58&\"_new\",Ammortamento_Finanziario!$H:$L,5,FALSE),VLOOKUP($M58,TT_Tabelle_Riferimento!$D$127:$H$164,5,FALSE))","v":8},{"$f":"+IFERROR(VLOOKUP(MM$27&\"-\"&$M58&\"_new\",Ammortamento_Finanziario!$H:$L,5,FALSE),VLOOKUP($M58,TT_Tabelle_Riferimento!$D$127:$H$164,5,FALSE))","v":8},{"$f":"+IFERROR(VLOOKUP(MN$27&\"-\"&$M58&\"_new\",Ammortamento_Finanziario!$H:$L,5,FALSE),VLOOKUP($M58,TT_Tabelle_Riferimento!$D$127:$H$164,5,FALSE))","v":8},{"$f":"+IFERROR(VLOOKUP(MO$27&\"-\"&$M58&\"_new\",Ammortamento_Finanziario!$H:$L,5,FALSE),VLOOKUP($M58,TT_Tabelle_Riferimento!$D$127:$H$164,5,FALSE))","v":8},{"$f":"+IFERROR(VLOOKUP(MP$27&\"-\"&$M58&\"_new\",Ammortamento_Finanziario!$H:$L,5,FALSE),VLOOKUP($M58,TT_Tabelle_Riferimento!$D$127:$H$164,5,FALSE))","v":8},{"$f":"+IFERROR(VLOOKUP(MQ$27&\"-\"&$M58&\"_new\",Ammortamento_Finanziario!$H:$L,5,FALSE),VLOOKUP($M58,TT_Tabelle_Riferimento!$D$127:$H$164,5,FALSE))","v":8},{"$f":"+IFERROR(VLOOKUP(MR$27&\"-\"&$M58&\"_new\",Ammortamento_Finanziario!$H:$L,5,FALSE),VLOOKUP($M58,TT_Tabelle_Riferimento!$D$127:$H$164,5,FALSE))","v":8},{"$f":"+IFERROR(VLOOKUP(MS$27&\"-\"&$M58&\"_new\",Ammortamento_Finanziario!$H:$L,5,FALSE),VLOOKUP($M58,TT_Tabelle_Riferimento!$D$127:$H$164,5,FALSE))","v":8},{"$f":"+IFERROR(VLOOKUP(MT$27&\"-\"&$M58&\"_new\",Ammortamento_Finanziario!$H:$L,5,FALSE),VLOOKUP($M58,TT_Tabelle_Riferimento!$D$127:$H$164,5,FALSE))","v":8},{"$f":"+IFERROR(VLOOKUP(MU$27&\"-\"&$M58&\"_new\",Ammortamento_Finanziario!$H:$L,5,FALSE),VLOOKUP($M58,TT_Tabelle_Riferimento!$D$127:$H$164,5,FALSE))","v":8},{"$f":"+IFERROR(VLOOKUP(MV$27&\"-\"&$M58&\"_new\",Ammortamento_Finanziario!$H:$L,5,FALSE),VLOOKUP($M58,TT_Tabelle_Riferimento!$D$127:$H$164,5,FALSE))","v":8},{"$f":"+IFERROR(VLOOKUP(MW$27&\"-\"&$M58&\"_new\",Ammortamento_Finanziario!$H:$L,5,FALSE),VLOOKUP($M58,TT_Tabelle_Riferimento!$D$127:$H$164,5,FALSE))","v":8},{"$f":"+IFERROR(VLOOKUP(MX$27&\"-\"&$M58&\"_new\",Ammortamento_Finanziario!$H:$L,5,FALSE),VLOOKUP($M58,TT_Tabelle_Riferimento!$D$127:$H$164,5,FALSE))","v":8},{"$f":"+IFERROR(VLOOKUP(MY$27&\"-\"&$M58&\"_new\",Ammortamento_Finanziario!$H:$L,5,FALSE),VLOOKUP($M58,TT_Tabelle_Riferimento!$D$127:$H$164,5,FALSE))","v":8},{"$f":"+IFERROR(VLOOKUP(MZ$27&\"-\"&$M58&\"_new\",Ammortamento_Finanziario!$H:$L,5,FALSE),VLOOKUP($M58,TT_Tabelle_Riferimento!$D$127:$H$164,5,FALSE))","v":8},{"$f":"+IFERROR(VLOOKUP(NA$27&\"-\"&$M58&\"_new\",Ammortamento_Finanziario!$H:$L,5,FALSE),VLOOKUP($M58,TT_Tabelle_Riferimento!$D$127:$H$164,5,FALSE))","v":8},{"$f":"+IFERROR(VLOOKUP(NB$27&\"-\"&$M58&\"_new\",Ammortamento_Finanziario!$H:$L,5,FALSE),VLOOKUP($M58,TT_Tabelle_Riferimento!$D$127:$H$164,5,FALSE))","v":8},{"$f":"+IFERROR(VLOOKUP(NC$27&\"-\"&$M58&\"_new\",Ammortamento_Finanziario!$H:$L,5,FALSE),VLOOKUP($M58,TT_Tabelle_Riferimento!$D$127:$H$164,5,FALSE))","v":8},{"$f":"+IFERROR(VLOOKUP(ND$27&\"-\"&$M58&\"_new\",Ammortamento_Finanziario!$H:$L,5,FALSE),VLOOKUP($M58,TT_Tabelle_Riferimento!$D$127:$H$164,5,FALSE))","v":8},{"$f":"+IFERROR(VLOOKUP(NE$27&\"-\"&$M58&\"_new\",Ammortamento_Finanziario!$H:$L,5,FALSE),VLOOKUP($M58,TT_Tabelle_Riferimento!$D$127:$H$164,5,FALSE))","v":8},{"$f":"+IFERROR(VLOOKUP(NF$27&\"-\"&$M58&\"_new\",Ammortamento_Finanziario!$H:$L,5,FALSE),VLOOKUP($M58,TT_Tabelle_Riferimento!$D$127:$H$164,5,FALSE))","v":8},{"$f":"+IFERROR(VLOOKUP(NG$27&\"-\"&$M58&\"_new\",Ammortamento_Finanziario!$H:$L,5,FALSE),VLOOKUP($M58,TT_Tabelle_Riferimento!$D$127:$H$164,5,FALSE))","v":8},{"$f":"+IFERROR(VLOOKUP(NH$27&\"-\"&$M58&\"_new\",Ammortamento_Finanziario!$H:$L,5,FALSE),VLOOKUP($M58,TT_Tabelle_Riferimento!$D$127:$H$164,5,FALSE))","v":8},{"$f":"+IFERROR(VLOOKUP(NI$27&\"-\"&$M58&\"_new\",Ammortamento_Finanziario!$H:$L,5,FALSE),VLOOKUP($M58,TT_Tabelle_Riferimento!$D$127:$H$164,5,FALSE))","v":8},{"$f":"+IFERROR(VLOOKUP(NJ$27&\"-\"&$M58&\"_new\",Ammortamento_Finanziario!$H:$L,5,FALSE),VLOOKUP($M58,TT_Tabelle_Riferimento!$D$127:$H$164,5,FALSE))","v":8},{"$f":"+IFERROR(VLOOKUP(NK$27&\"-\"&$M58&\"_new\",Ammortamento_Finanziario!$H:$L,5,FALSE),VLOOKUP($M58,TT_Tabelle_Riferimento!$D$127:$H$164,5,FALSE))","v":8},{"$f":"+IFERROR(VLOOKUP(NL$27&\"-\"&$M58&\"_new\",Ammortamento_Finanziario!$H:$L,5,FALSE),VLOOKUP($M58,TT_Tabelle_Riferimento!$D$127:$H$164,5,FALSE))","v":8},{"$f":"+IFERROR(VLOOKUP(NM$27&\"-\"&$M58&\"_new\",Ammortamento_Finanziario!$H:$L,5,FALSE),VLOOKUP($M58,TT_Tabelle_Riferimento!$D$127:$H$164,5,FALSE))","v":8},{"$f":"+IFERROR(VLOOKUP(NN$27&\"-\"&$M58&\"_new\",Ammortamento_Finanziario!$H:$L,5,FALSE),VLOOKUP($M58,TT_Tabelle_Riferimento!$D$127:$H$164,5,FALSE))","v":8},{"$f":"+IFERROR(VLOOKUP(NO$27&\"-\"&$M58&\"_new\",Ammortamento_Finanziario!$H:$L,5,FALSE),VLOOKUP($M58,TT_Tabelle_Riferimento!$D$127:$H$164,5,FALSE))","v":8},{"$f":"+IFERROR(VLOOKUP(NP$27&\"-\"&$M58&\"_new\",Ammortamento_Finanziario!$H:$L,5,FALSE),VLOOKUP($M58,TT_Tabelle_Riferimento!$D$127:$H$164,5,FALSE))","v":8},{"$f":"+IFERROR(VLOOKUP(NQ$27&\"-\"&$M58&\"_new\",Ammortamento_Finanziario!$H:$L,5,FALSE),VLOOKUP($M58,TT_Tabelle_Riferimento!$D$127:$H$164,5,FALSE))","v":8},{"$f":"+IFERROR(VLOOKUP(NR$27&\"-\"&$M58&\"_new\",Ammortamento_Finanziario!$H:$L,5,FALSE),VLOOKUP($M58,TT_Tabelle_Riferimento!$D$127:$H$164,5,FALSE))","v":8},{"$f":"+IFERROR(VLOOKUP(NS$27&\"-\"&$M58&\"_new\",Ammortamento_Finanziario!$H:$L,5,FALSE),VLOOKUP($M58,TT_Tabelle_Riferimento!$D$127:$H$164,5,FALSE))","v":8},{"$f":"+IFERROR(VLOOKUP(NT$27&\"-\"&$M58&\"_new\",Ammortamento_Finanziario!$H:$L,5,FALSE),VLOOKUP($M58,TT_Tabelle_Riferimento!$D$127:$H$164,5,FALSE))","v":8},{"$f":"+IFERROR(VLOOKUP(NU$27&\"-\"&$M58&\"_new\",Ammortamento_Finanziario!$H:$L,5,FALSE),VLOOKUP($M58,TT_Tabelle_Riferimento!$D$127:$H$164,5,FALSE))","v":8},{"$f":"+IFERROR(VLOOKUP(NV$27&\"-\"&$M58&\"_new\",Ammortamento_Finanziario!$H:$L,5,FALSE),VLOOKUP($M58,TT_Tabelle_Riferimento!$D$127:$H$164,5,FALSE))","v":8},{"$f":"+IFERROR(VLOOKUP(NW$27&\"-\"&$M58&\"_new\",Ammortamento_Finanziario!$H:$L,5,FALSE),VLOOKUP($M58,TT_Tabelle_Riferimento!$D$127:$H$164,5,FALSE))","v":8},{"$f":"+IFERROR(VLOOKUP(NX$27&\"-\"&$M58&\"_new\",Ammortamento_Finanziario!$H:$L,5,FALSE),VLOOKUP($M58,TT_Tabelle_Riferimento!$D$127:$H$164,5,FALSE))","v":8},{"$f":"+IFERROR(VLOOKUP(NY$27&\"-\"&$M58&\"_new\",Ammortamento_Finanziario!$H:$L,5,FALSE),VLOOKUP($M58,TT_Tabelle_Riferimento!$D$127:$H$164,5,FALSE))","v":8},{"$f":"+IFERROR(VLOOKUP(NZ$27&\"-\"&$M58&\"_new\",Ammortamento_Finanziario!$H:$L,5,FALSE),VLOOKUP($M58,TT_Tabelle_Riferimento!$D$127:$H$164,5,FALSE))","v":8},{"$f":"+IFERROR(VLOOKUP(OA$27&\"-\"&$M58&\"_new\",Ammortamento_Finanziario!$H:$L,5,FALSE),VLOOKUP($M58,TT_Tabelle_Riferimento!$D$127:$H$164,5,FALSE))","v":8},{"$f":"+IFERROR(VLOOKUP(OB$27&\"-\"&$M58&\"_new\",Ammortamento_Finanziario!$H:$L,5,FALSE),VLOOKUP($M58,TT_Tabelle_Riferimento!$D$127:$H$164,5,FALSE))","v":8},{"$f":"+IFERROR(VLOOKUP(OC$27&\"-\"&$M58&\"_new\",Ammortamento_Finanziario!$H:$L,5,FALSE),VLOOKUP($M58,TT_Tabelle_Riferimento!$D$127:$H$164,5,FALSE))","v":8},{"$f":"+IFERROR(VLOOKUP(OD$27&\"-\"&$M58&\"_new\",Ammortamento_Finanziario!$H:$L,5,FALSE),VLOOKUP($M58,TT_Tabelle_Riferimento!$D$127:$H$164,5,FALSE))","v":8},{"$f":"+IFERROR(VLOOKUP(OE$27&\"-\"&$M58&\"_new\",Ammortamento_Finanziario!$H:$L,5,FALSE),VLOOKUP($M58,TT_Tabelle_Riferimento!$D$127:$H$164,5,FALSE))","v":8},{"$f":"+IFERROR(VLOOKUP(OF$27&\"-\"&$M58&\"_new\",Ammortamento_Finanziario!$H:$L,5,FALSE),VLOOKUP($M58,TT_Tabelle_Riferimento!$D$127:$H$164,5,FALSE))","v":8},{"$f":"+IFERROR(VLOOKUP(OG$27&\"-\"&$M58&\"_new\",Ammortamento_Finanziario!$H:$L,5,FALSE),VLOOKUP($M58,TT_Tabelle_Riferimento!$D$127:$H$164,5,FALSE))","v":8},{"$f":"+IFERROR(VLOOKUP(OH$27&\"-\"&$M58&\"_new\",Ammortamento_Finanziario!$H:$L,5,FALSE),VLOOKUP($M58,TT_Tabelle_Riferimento!$D$127:$H$164,5,FALSE))","v":8},{"$f":"+IFERROR(VLOOKUP(OI$27&\"-\"&$M58&\"_new\",Ammortamento_Finanziario!$H:$L,5,FALSE),VLOOKUP($M58,TT_Tabelle_Riferimento!$D$127:$H$164,5,FALSE))","v":8},{"$f":"+IFERROR(VLOOKUP(OJ$27&\"-\"&$M58&\"_new\",Ammortamento_Finanziario!$H:$L,5,FALSE),VLOOKUP($M58,TT_Tabelle_Riferimento!$D$127:$H$164,5,FALSE))","v":8},{"$f":"+IFERROR(VLOOKUP(OK$27&\"-\"&$M58&\"_new\",Ammortamento_Finanziario!$H:$L,5,FALSE),VLOOKUP($M58,TT_Tabelle_Riferimento!$D$127:$H$164,5,FALSE))","v":8},{"$f":"+IFERROR(VLOOKUP(OL$27&\"-\"&$M58&\"_new\",Ammortamento_Finanziario!$H:$L,5,FALSE),VLOOKUP($M58,TT_Tabelle_Riferimento!$D$127:$H$164,5,FALSE))","v":8},{"$f":"+IFERROR(VLOOKUP(OM$27&\"-\"&$M58&\"_new\",Ammortamento_Finanziario!$H:$L,5,FALSE),VLOOKUP($M58,TT_Tabelle_Riferimento!$D$127:$H$164,5,FALSE))","v":8},{"$f":"+IFERROR(VLOOKUP(ON$27&\"-\"&$M58&\"_new\",Ammortamento_Finanziario!$H:$L,5,FALSE),VLOOKUP($M58,TT_Tabelle_Riferimento!$D$127:$H$164,5,FALSE))","v":8},{"$f":"+IFERROR(VLOOKUP(OO$27&\"-\"&$M58&\"_new\",Ammortamento_Finanziario!$H:$L,5,FALSE),VLOOKUP($M58,TT_Tabelle_Riferimento!$D$127:$H$164,5,FALSE))","v":8},{"$f":"+IFERROR(VLOOKUP(OP$27&\"-\"&$M58&\"_new\",Ammortamento_Finanziario!$H:$L,5,FALSE),VLOOKUP($M58,TT_Tabelle_Riferimento!$D$127:$H$164,5,FALSE))","v":8},{"$f":"+IFERROR(VLOOKUP(OQ$27&\"-\"&$M58&\"_new\",Ammortamento_Finanziario!$H:$L,5,FALSE),VLOOKUP($M58,TT_Tabelle_Riferimento!$D$127:$H$164,5,FALSE))","v":8},{"$f":"+IFERROR(VLOOKUP(OR$27&\"-\"&$M58&\"_new\",Ammortamento_Finanziario!$H:$L,5,FALSE),VLOOKUP($M58,TT_Tabelle_Riferimento!$D$127:$H$164,5,FALSE))","v":8},{"$f":"+IFERROR(VLOOKUP(OS$27&\"-\"&$M58&\"_new\",Ammortamento_Finanziario!$H:$L,5,FALSE),VLOOKUP($M58,TT_Tabelle_Riferimento!$D$127:$H$164,5,FALSE))","v":8},{"$f":"+IFERROR(VLOOKUP(OT$27&\"-\"&$M58&\"_new\",Ammortamento_Finanziario!$H:$L,5,FALSE),VLOOKUP($M58,TT_Tabelle_Riferimento!$D$127:$H$164,5,FALSE))","v":8},{"$f":"+IFERROR(VLOOKUP(OU$27&\"-\"&$M58&\"_new\",Ammortamento_Finanziario!$H:$L,5,FALSE),VLOOKUP($M58,TT_Tabelle_Riferimento!$D$127:$H$164,5,FALSE))","v":8},{"$f":"+IFERROR(VLOOKUP(OV$27&\"-\"&$M58&\"_new\",Ammortamento_Finanziario!$H:$L,5,FALSE),VLOOKUP($M58,TT_Tabelle_Riferimento!$D$127:$H$164,5,FALSE))","v":8},{"$f":"+IFERROR(VLOOKUP(OW$27&\"-\"&$M58&\"_new\",Ammortamento_Finanziario!$H:$L,5,FALSE),VLOOKUP($M58,TT_Tabelle_Riferimento!$D$127:$H$164,5,FALSE))","v":8},{"$f":"+IFERROR(VLOOKUP(OX$27&\"-\"&$M58&\"_new\",Ammortamento_Finanziario!$H:$L,5,FALSE),VLOOKUP($M58,TT_Tabelle_Riferimento!$D$127:$H$164,5,FALSE))","v":8},{"$f":"+IFERROR(VLOOKUP(OY$27&\"-\"&$M58&\"_new\",Ammortamento_Finanziario!$H:$L,5,FALSE),VLOOKUP($M58,TT_Tabelle_Riferimento!$D$127:$H$164,5,FALSE))","v":8},{"$f":"+IFERROR(VLOOKUP(OZ$27&\"-\"&$M58&\"_new\",Ammortamento_Finanziario!$H:$L,5,FALSE),VLOOKUP($M58,TT_Tabelle_Riferimento!$D$127:$H$164,5,FALSE))","v":8},{"$f":"+IFERROR(VLOOKUP(PA$27&\"-\"&$M58&\"_new\",Ammortamento_Finanziario!$H:$L,5,FALSE),VLOOKUP($M58,TT_Tabelle_Riferimento!$D$127:$H$164,5,FALSE))","v":8},{"$f":"+IFERROR(VLOOKUP(PB$27&\"-\"&$M58&\"_new\",Ammortamento_Finanziario!$H:$L,5,FALSE),VLOOKUP($M58,TT_Tabelle_Riferimento!$D$127:$H$164,5,FALSE))","v":8},{"$f":"+IFERROR(VLOOKUP(PC$27&\"-\"&$M58&\"_new\",Ammortamento_Finanziario!$H:$L,5,FALSE),VLOOKUP($M58,TT_Tabelle_Riferimento!$D$127:$H$164,5,FALSE))","v":8},{"$f":"+IFERROR(VLOOKUP(PD$27&\"-\"&$M58&\"_new\",Ammortamento_Finanziario!$H:$L,5,FALSE),VLOOKUP($M58,TT_Tabelle_Riferimento!$D$127:$H$164,5,FALSE))","v":8},{"$f":"+IFERROR(VLOOKUP(PE$27&\"-\"&$M58&\"_new\",Ammortamento_Finanziario!$H:$L,5,FALSE),VLOOKUP($M58,TT_Tabelle_Riferimento!$D$127:$H$164,5,FALSE))","v":8},{"$f":"+IFERROR(VLOOKUP(PF$27&\"-\"&$M58&\"_new\",Ammortamento_Finanziario!$H:$L,5,FALSE),VLOOKUP($M58,TT_Tabelle_Riferimento!$D$127:$H$164,5,FALSE))","v":8},{"$f":"+IFERROR(VLOOKUP(PG$27&\"-\"&$M58&\"_new\",Ammortamento_Finanziario!$H:$L,5,FALSE),VLOOKUP($M58,TT_Tabelle_Riferimento!$D$127:$H$164,5,FALSE))","v":8},{"$f":"+IFERROR(VLOOKUP(PH$27&\"-\"&$M58&\"_new\",Ammortamento_Finanziario!$H:$L,5,FALSE),VLOOKUP($M58,TT_Tabelle_Riferimento!$D$127:$H$164,5,FALSE))","v":8},{"$f":"+IFERROR(VLOOKUP(PI$27&\"-\"&$M58&\"_new\",Ammortamento_Finanziario!$H:$L,5,FALSE),VLOOKUP($M58,TT_Tabelle_Riferimento!$D$127:$H$164,5,FALSE))","v":8},{"$f":"+IFERROR(VLOOKUP(PJ$27&\"-\"&$M58&\"_new\",Ammortamento_Finanziario!$H:$L,5,FALSE),VLOOKUP($M58,TT_Tabelle_Riferimento!$D$127:$H$164,5,FALSE))","v":8},{"$f":"+IFERROR(VLOOKUP(PK$27&\"-\"&$M58&\"_new\",Ammortamento_Finanziario!$H:$L,5,FALSE),VLOOKUP($M58,TT_Tabelle_Riferimento!$D$127:$H$164,5,FALSE))","v":8},{"$f":"+IFERROR(VLOOKUP(PL$27&\"-\"&$M58&\"_new\",Ammortamento_Finanziario!$H:$L,5,FALSE),VLOOKUP($M58,TT_Tabelle_Riferimento!$D$127:$H$164,5,FALSE))","v":8},{"$f":"+IFERROR(VLOOKUP(PM$27&\"-\"&$M58&\"_new\",Ammortamento_Finanziario!$H:$L,5,FALSE),VLOOKUP($M58,TT_Tabelle_Riferimento!$D$127:$H$164,5,FALSE))","v":8},{"$f":"+IFERROR(VLOOKUP(PN$27&\"-\"&$M58&\"_new\",Ammortamento_Finanziario!$H:$L,5,FALSE),VLOOKUP($M58,TT_Tabelle_Riferimento!$D$127:$H$164,5,FALSE))","v":8},{"$f":"+IFERROR(VLOOKUP(PO$27&\"-\"&$M58&\"_new\",Ammortamento_Finanziario!$H:$L,5,FALSE),VLOOKUP($M58,TT_Tabelle_Riferimento!$D$127:$H$164,5,FALSE))","v":8},{"$f":"+IFERROR(VLOOKUP(PP$27&\"-\"&$M58&\"_new\",Ammortamento_Finanziario!$H:$L,5,FALSE),VLOOKUP($M58,TT_Tabelle_Riferimento!$D$127:$H$164,5,FALSE))","v":8},{"$f":"+IFERROR(VLOOKUP(PQ$27&\"-\"&$M58&\"_new\",Ammortamento_Finanziario!$H:$L,5,FALSE),VLOOKUP($M58,TT_Tabelle_Riferimento!$D$127:$H$164,5,FALSE))","v":8},{"$f":"+IFERROR(VLOOKUP(PR$27&\"-\"&$M58&\"_new\",Ammortamento_Finanziario!$H:$L,5,FALSE),VLOOKUP($M58,TT_Tabelle_Riferimento!$D$127:$H$164,5,FALSE))","v":8},{"$f":"+IFERROR(VLOOKUP(PS$27&\"-\"&$M58&\"_new\",Ammortamento_Finanziario!$H:$L,5,FALSE),VLOOKUP($M58,TT_Tabelle_Riferimento!$D$127:$H$164,5,FALSE))","v":8},{"$f":"+IFERROR(VLOOKUP(PT$27&\"-\"&$M58&\"_new\",Ammortamento_Finanziario!$H:$L,5,FALSE),VLOOKUP($M58,TT_Tabelle_Riferimento!$D$127:$H$164,5,FALSE))","v":8},{"$f":"+IFERROR(VLOOKUP(PU$27&\"-\"&$M58&\"_new\",Ammortamento_Finanziario!$H:$L,5,FALSE),VLOOKUP($M58,TT_Tabelle_Riferimento!$D$127:$H$164,5,FALSE))","v":8},{"$f":"+IFERROR(VLOOKUP(PV$27&\"-\"&$M58&\"_new\",Ammortamento_Finanziario!$H:$L,5,FALSE),VLOOKUP($M58,TT_Tabelle_Riferimento!$D$127:$H$164,5,FALSE))","v":8},{"$f":"+IFERROR(VLOOKUP(PW$27&\"-\"&$M58&\"_new\",Ammortamento_Finanziario!$H:$L,5,FALSE),VLOOKUP($M58,TT_Tabelle_Riferimento!$D$127:$H$164,5,FALSE))","v":8},{"$f":"+IFERROR(VLOOKUP(PX$27&\"-\"&$M58&\"_new\",Ammortamento_Finanziario!$H:$L,5,FALSE),VLOOKUP($M58,TT_Tabelle_Riferimento!$D$127:$H$164,5,FALSE))","v":8},{"$f":"+IFERROR(VLOOKUP(PY$27&\"-\"&$M58&\"_new\",Ammortamento_Finanziario!$H:$L,5,FALSE),VLOOKUP($M58,TT_Tabelle_Riferimento!$D$127:$H$164,5,FALSE))","v":8},{"$f":"+IFERROR(VLOOKUP(PZ$27&\"-\"&$M58&\"_new\",Ammortamento_Finanziario!$H:$L,5,FALSE),VLOOKUP($M58,TT_Tabelle_Riferimento!$D$127:$H$164,5,FALSE))","v":8},{"$f":"+IFERROR(VLOOKUP(QA$27&\"-\"&$M58&\"_new\",Ammortamento_Finanziario!$H:$L,5,FALSE),VLOOKUP($M58,TT_Tabelle_Riferimento!$D$127:$H$164,5,FALSE))","v":8},{"$f":"+IFERROR(VLOOKUP(QB$27&\"-\"&$M58&\"_new\",Ammortamento_Finanziario!$H:$L,5,FALSE),VLOOKUP($M58,TT_Tabelle_Riferimento!$D$127:$H$164,5,FALSE))","v":8},{"$f":"+IFERROR(VLOOKUP(QC$27&\"-\"&$M58&\"_new\",Ammortamento_Finanziario!$H:$L,5,FALSE),VLOOKUP($M58,TT_Tabelle_Riferimento!$D$127:$H$164,5,FALSE))","v":8},{"$f":"+IFERROR(VLOOKUP(QD$27&\"-\"&$M58&\"_new\",Ammortamento_Finanziario!$H:$L,5,FALSE),VLOOKUP($M58,TT_Tabelle_Riferimento!$D$127:$H$164,5,FALSE))","v":8},{"$f":"+IFERROR(VLOOKUP(QE$27&\"-\"&$M58&\"_new\",Ammortamento_Finanziario!$H:$L,5,FALSE),VLOOKUP($M58,TT_Tabelle_Riferimento!$D$127:$H$164,5,FALSE))","v":8},{"$f":"+IFERROR(VLOOKUP(QF$27&\"-\"&$M58&\"_new\",Ammortamento_Finanziario!$H:$L,5,FALSE),VLOOKUP($M58,TT_Tabelle_Riferimento!$D$127:$H$164,5,FALSE))","v":8},{"$f":"+IFERROR(VLOOKUP(QG$27&\"-\"&$M58&\"_new\",Ammortamento_Finanziario!$H:$L,5,FALSE),VLOOKUP($M58,TT_Tabelle_Riferimento!$D$127:$H$164,5,FALSE))","v":8},{"$f":"+IFERROR(VLOOKUP(QH$27&\"-\"&$M58&\"_new\",Ammortamento_Finanziario!$H:$L,5,FALSE),VLOOKUP($M58,TT_Tabelle_Riferimento!$D$127:$H$164,5,FALSE))","v":8},{"$f":"+IFERROR(VLOOKUP(QI$27&\"-\"&$M58&\"_new\",Ammortamento_Finanziario!$H:$L,5,FALSE),VLOOKUP($M58,TT_Tabelle_Riferimento!$D$127:$H$164,5,FALSE))","v":8},{"$f":"+IFERROR(VLOOKUP(QJ$27&\"-\"&$M58&\"_new\",Ammortamento_Finanziario!$H:$L,5,FALSE),VLOOKUP($M58,TT_Tabelle_Riferimento!$D$127:$H$164,5,FALSE))","v":8},{"$f":"+IFERROR(VLOOKUP(QK$27&\"-\"&$M58&\"_new\",Ammortamento_Finanziario!$H:$L,5,FALSE),VLOOKUP($M58,TT_Tabelle_Riferimento!$D$127:$H$164,5,FALSE))","v":8},{"$f":"+IFERROR(VLOOKUP(QL$27&\"-\"&$M58&\"_new\",Ammortamento_Finanziario!$H:$L,5,FALSE),VLOOKUP($M58,TT_Tabelle_Riferimento!$D$127:$H$164,5,FALSE))","v":8},{"$f":"+IFERROR(VLOOKUP(QM$27&\"-\"&$M58&\"_new\",Ammortamento_Finanziario!$H:$L,5,FALSE),VLOOKUP($M58,TT_Tabelle_Riferimento!$D$127:$H$164,5,FALSE))","v":8},{"$f":"+IFERROR(VLOOKUP(QN$27&\"-\"&$M58&\"_new\",Ammortamento_Finanziario!$H:$L,5,FALSE),VLOOKUP($M58,TT_Tabelle_Riferimento!$D$127:$H$164,5,FALSE))","v":8},{"$f":"+IFERROR(VLOOKUP(QO$27&\"-\"&$M58&\"_new\",Ammortamento_Finanziario!$H:$L,5,FALSE),VLOOKUP($M58,TT_Tabelle_Riferimento!$D$127:$H$164,5,FALSE))","v":8},{"$f":"+IFERROR(VLOOKUP(QP$27&\"-\"&$M58&\"_new\",Ammortamento_Finanziario!$H:$L,5,FALSE),VLOOKUP($M58,TT_Tabelle_Riferimento!$D$127:$H$164,5,FALSE))","v":8},{"$f":"+IFERROR(VLOOKUP(QQ$27&\"-\"&$M58&\"_new\",Ammortamento_Finanziario!$H:$L,5,FALSE),VLOOKUP($M58,TT_Tabelle_Riferimento!$D$127:$H$164,5,FALSE))","v":8},{"$f":"+IFERROR(VLOOKUP(QR$27&\"-\"&$M58&\"_new\",Ammortamento_Finanziario!$H:$L,5,FALSE),VLOOKUP($M58,TT_Tabelle_Riferimento!$D$127:$H$164,5,FALSE))","v":8},{"$f":"+IFERROR(VLOOKUP(QS$27&\"-\"&$M58&\"_new\",Ammortamento_Finanziario!$H:$L,5,FALSE),VLOOKUP($M58,TT_Tabelle_Riferimento!$D$127:$H$164,5,FALSE))","v":8},{"$f":"+IFERROR(VLOOKUP(QT$27&\"-\"&$M58&\"_new\",Ammortamento_Finanziario!$H:$L,5,FALSE),VLOOKUP($M58,TT_Tabelle_Riferimento!$D$127:$H$164,5,FALSE))","v":8},{"$f":"+IFERROR(VLOOKUP(QU$27&\"-\"&$M58&\"_new\",Ammortamento_Finanziario!$H:$L,5,FALSE),VLOOKUP($M58,TT_Tabelle_Riferimento!$D$127:$H$164,5,FALSE))","v":8},{"$f":"+IFERROR(VLOOKUP(QV$27&\"-\"&$M58&\"_new\",Ammortamento_Finanziario!$H:$L,5,FALSE),VLOOKUP($M58,TT_Tabelle_Riferimento!$D$127:$H$164,5,FALSE))","v":8},{"$f":"+IFERROR(VLOOKUP(QW$27&\"-\"&$M58&\"_new\",Ammortamento_Finanziario!$H:$L,5,FALSE),VLOOKUP($M58,TT_Tabelle_Riferimento!$D$127:$H$164,5,FALSE))","v":8},{"$f":"+IFERROR(VLOOKUP(QX$27&\"-\"&$M58&\"_new\",Ammortamento_Finanziario!$H:$L,5,FALSE),VLOOKUP($M58,TT_Tabelle_Riferimento!$D$127:$H$164,5,FALSE))","v":8},{"$f":"+IFERROR(VLOOKUP(QY$27&\"-\"&$M58&\"_new\",Ammortamento_Finanziario!$H:$L,5,FALSE),VLOOKUP($M58,TT_Tabelle_Riferimento!$D$127:$H$164,5,FALSE))","v":8},{"$f":"+IFERROR(VLOOKUP(QZ$27&\"-\"&$M58&\"_new\",Ammortamento_Finanziario!$H:$L,5,FALSE),VLOOKUP($M58,TT_Tabelle_Riferimento!$D$127:$H$164,5,FALSE))","v":8},{"$f":"+IFERROR(VLOOKUP(RA$27&\"-\"&$M58&\"_new\",Ammortamento_Finanziario!$H:$L,5,FALSE),VLOOKUP($M58,TT_Tabelle_Riferimento!$D$127:$H$164,5,FALSE))","v":8},{"$f":"+IFERROR(VLOOKUP(RB$27&\"-\"&$M58&\"_new\",Ammortamento_Finanziario!$H:$L,5,FALSE),VLOOKUP($M58,TT_Tabelle_Riferimento!$D$127:$H$164,5,FALSE))","v":8},{"$f":"+IFERROR(VLOOKUP(RC$27&\"-\"&$M58&\"_new\",Ammortamento_Finanziario!$H:$L,5,FALSE),VLOOKUP($M58,TT_Tabelle_Riferimento!$D$127:$H$164,5,FALSE))","v":8},{"$f":"+IFERROR(VLOOKUP(RD$27&\"-\"&$M58&\"_new\",Ammortamento_Finanziario!$H:$L,5,FALSE),VLOOKUP($M58,TT_Tabelle_Riferimento!$D$127:$H$164,5,FALSE))","v":8},{"$f":"+IFERROR(VLOOKUP(RE$27&\"-\"&$M58&\"_new\",Ammortamento_Finanziario!$H:$L,5,FALSE),VLOOKUP($M58,TT_Tabelle_Riferimento!$D$127:$H$164,5,FALSE))","v":8},{"$f":"+IFERROR(VLOOKUP(RF$27&\"-\"&$M58&\"_new\",Ammortamento_Finanziario!$H:$L,5,FALSE),VLOOKUP($M58,TT_Tabelle_Riferimento!$D$127:$H$164,5,FALSE))","v":8},{"$f":"+IFERROR(VLOOKUP(RG$27&\"-\"&$M58&\"_new\",Ammortamento_Finanziario!$H:$L,5,FALSE),VLOOKUP($M58,TT_Tabelle_Riferimento!$D$127:$H$164,5,FALSE))","v":8},{"$f":"+IFERROR(VLOOKUP(RH$27&\"-\"&$M58&\"_new\",Ammortamento_Finanziario!$H:$L,5,FALSE),VLOOKUP($M58,TT_Tabelle_Riferimento!$D$127:$H$164,5,FALSE))","v":8},{"$f":"+IFERROR(VLOOKUP(RI$27&\"-\"&$M58&\"_new\",Ammortamento_Finanziario!$H:$L,5,FALSE),VLOOKUP($M58,TT_Tabelle_Riferimento!$D$127:$H$164,5,FALSE))","v":8},{"$f":"+IFERROR(VLOOKUP(RJ$27&\"-\"&$M58&\"_new\",Ammortamento_Finanziario!$H:$L,5,FALSE),VLOOKUP($M58,TT_Tabelle_Riferimento!$D$127:$H$164,5,FALSE))","v":8},{"$f":"+IFERROR(VLOOKUP(RK$27&\"-\"&$M58&\"_new\",Ammortamento_Finanziario!$H:$L,5,FALSE),VLOOKUP($M58,TT_Tabelle_Riferimento!$D$127:$H$164,5,FALSE))","v":8},{"$f":"+IFERROR(VLOOKUP(RL$27&\"-\"&$M58&\"_new\",Ammortamento_Finanziario!$H:$L,5,FALSE),VLOOKUP($M58,TT_Tabelle_Riferimento!$D$127:$H$164,5,FALSE))","v":8},{"$f":"+IFERROR(VLOOKUP(RM$27&\"-\"&$M58&\"_new\",Ammortamento_Finanziario!$H:$L,5,FALSE),VLOOKUP($M58,TT_Tabelle_Riferimento!$D$127:$H$164,5,FALSE))","v":8},{"$f":"+IFERROR(VLOOKUP(RN$27&\"-\"&$M58&\"_new\",Ammortamento_Finanziario!$H:$L,5,FALSE),VLOOKUP($M58,TT_Tabelle_Riferimento!$D$127:$H$164,5,FALSE))","v":8},{"$f":"+IFERROR(VLOOKUP(RO$27&\"-\"&$M58&\"_new\",Ammortamento_Finanziario!$H:$L,5,FALSE),VLOOKUP($M58,TT_Tabelle_Riferimento!$D$127:$H$164,5,FALSE))","v":8},{"$f":"+IFERROR(VLOOKUP(RP$27&\"-\"&$M58&\"_new\",Ammortamento_Finanziario!$H:$L,5,FALSE),VLOOKUP($M58,TT_Tabelle_Riferimento!$D$127:$H$164,5,FALSE))","v":8},{"$f":"+IFERROR(VLOOKUP(RQ$27&\"-\"&$M58&\"_new\",Ammortamento_Finanziario!$H:$L,5,FALSE),VLOOKUP($M58,TT_Tabelle_Riferimento!$D$127:$H$164,5,FALSE))","v":8},{"$f":"+IFERROR(VLOOKUP(RR$27&\"-\"&$M58&\"_new\",Ammortamento_Finanziario!$H:$L,5,FALSE),VLOOKUP($M58,TT_Tabelle_Riferimento!$D$127:$H$164,5,FALSE))","v":8},{"$f":"+IFERROR(VLOOKUP(RS$27&\"-\"&$M58&\"_new\",Ammortamento_Finanziario!$H:$L,5,FALSE),VLOOKUP($M58,TT_Tabelle_Riferimento!$D$127:$H$164,5,FALSE))","v":8},{"$f":"+IFERROR(VLOOKUP(RT$27&\"-\"&$M58&\"_new\",Ammortamento_Finanziario!$H:$L,5,FALSE),VLOOKUP($M58,TT_Tabelle_Riferimento!$D$127:$H$164,5,FALSE))","v":8},{"$f":"+IFERROR(VLOOKUP(RU$27&\"-\"&$M58&\"_new\",Ammortamento_Finanziario!$H:$L,5,FALSE),VLOOKUP($M58,TT_Tabelle_Riferimento!$D$127:$H$164,5,FALSE))","v":8},{"$f":"+IFERROR(VLOOKUP(RV$27&\"-\"&$M58&\"_new\",Ammortamento_Finanziario!$H:$L,5,FALSE),VLOOKUP($M58,TT_Tabelle_Riferimento!$D$127:$H$164,5,FALSE))","v":8}]
[null,null,null,"FA CFP",{"$f":"+SUMIFS(IMN_gestore!V:V,IMN_gestore!$G:$G,\"Res\")","v":0},{"$f":"+SUMIFS(IMN_gestore!AG:AG,IMN_gestore!$G:$G,\"Res\")","v":0},{"$f":"+SUMIFS(IMN_gestore!AR:AR,IMN_gestore!$G:$G,\"Res\")","v":0},{"$f":"+SUMIFS(IMN_gestore!BC:BC,IMN_gestore!$G:$G,\"Res\")","v":0},{"$f":"+SUMIFS(IMN_gestore!$BN:$BN,IMN_gestore!$G:$G,\"Res\")","v":0},{"$f":"+SUMIFS(IMN_gestore!$BY:$BY,IMN_gestore!$G:$G,\"Res\")","v":0},null,null,32,0,0,0,0,0,0,0,0,0,0,0,0,0,0,0,0,0,0,0,0,0,0,0,0,0,0,0,0,0,0,0,0,0,0,0,0,0,0,0,0,0,0,0,0,0,0,0,0,0,0,0,0,0,0,0,0,0,0,0,0,0,0,0,0,0,0,0,0,0,0,0,0,0,0,0,0,0,0,0,0,0,0,0,0,0,0,0,0,0,0,0,0,0,0,0,0,0,0,0,0,0,0,0,0,0,0,0,0,0,0,0,0,0,0,0,0,0,0,0,0,0,0,0,0,0,0,0,0,0,0,0,0,0,0,0,0,0,0,0,0,0,0,0,0,0,0,0,0,0,0,0,0,0,0,0,0,0,0,0,0,0,0,0,0,0,0,0,0,0,0,0,0,0,0,0,0,0,0,0,0,0,0,0,0,0,0,0,0,0,0,0,0,0,0,0,0,0,0,0,0,0,0,0,0,0,0,0,0,0,0,0,0,0,0,0,0,0,0,0,0,0,0,0,0,0,0,0,0,0,0,0,0,0,0,0,0,0,0,0,0,0,0,0,0,0,0,0,0,0,0,0,0,0,0,0,0,0,0,0,0,0,0,0,0,0,0,0,0,0,0,0,0,0,0,0,0,0,0,0,0,0,0,0,0,0,0,0,0,0,{"$f":"+IFERROR(VLOOKUP(KQ$27&\"-\"&$M59&\"_new\",Ammortamento_Finanziario!$H:$L,5,FALSE),VLOOKUP($M59,TT_Tabelle_Riferimento!$D$127:$H$164,5,FALSE))","v":5},{"$f":"+IFERROR(VLOOKUP(KR$27&\"-\"&$M59&\"_new\",Ammortamento_Finanziario!$H:$L,5,FALSE),VLOOKUP($M59,TT_Tabelle_Riferimento!$D$127:$H$164,5,FALSE))","v":5},{"$f":"+IFERROR(VLOOKUP(KS$27&\"-\"&$M59&\"_new\",Ammortamento_Finanziario!$H:$L,5,FALSE),VLOOKUP($M59,TT_Tabelle_Riferimento!$D$127:$H$164,5,FALSE))","v":5},{"$f":"+IFERROR(VLOOKUP(KT$27&\"-\"&$M59&\"_new\",Ammortamento_Finanziario!$H:$L,5,FALSE),VLOOKUP($M59,TT_Tabelle_Riferimento!$D$127:$H$164,5,FALSE))","v":5},{"$f":"+IFERROR(VLOOKUP(KU$27&\"-\"&$M59&\"_new\",Ammortamento_Finanziario!$H:$L,5,FALSE),VLOOKUP($M59,TT_Tabelle_Riferimento!$D$127:$H$164,5,FALSE))","v":5},{"$f":"+IFERROR(VLOOKUP(KV$27&\"-\"&$M59&\"_new\",Ammortamento_Finanziario!$H:$L,5,FALSE),VLOOKUP($M59,TT_Tabelle_Riferimento!$D$127:$H$164,5,FALSE))","v":5},{"$f":"+IFERROR(VLOOKUP(KW$27&\"-\"&$M59&\"_new\",Ammortamento_Finanziario!$H:$L,5,FALSE),VLOOKUP($M59,TT_Tabelle_Riferimento!$D$127:$H$164,5,FALSE))","v":5},{"$f":"+IFERROR(VLOOKUP(KX$27&\"-\"&$M59&\"_new\",Ammortamento_Finanziario!$H:$L,5,FALSE),VLOOKUP($M59,TT_Tabelle_Riferimento!$D$127:$H$164,5,FALSE))","v":5},{"$f":"+IFERROR(VLOOKUP(KY$27&\"-\"&$M59&\"_new\",Ammortamento_Finanziario!$H:$L,5,FALSE),VLOOKUP($M59,TT_Tabelle_Riferimento!$D$127:$H$164,5,FALSE))","v":5},{"$f":"+IFERROR(VLOOKUP(KZ$27&\"-\"&$M59&\"_new\",Ammortamento_Finanziario!$H:$L,5,FALSE),VLOOKUP($M59,TT_Tabelle_Riferimento!$D$127:$H$164,5,FALSE))","v":5},{"$f":"+IFERROR(VLOOKUP(LA$27&\"-\"&$M59&\"_new\",Ammortamento_Finanziario!$H:$L,5,FALSE),VLOOKUP($M59,TT_Tabelle_Riferimento!$D$127:$H$164,5,FALSE))","v":5},{"$f":"+IFERROR(VLOOKUP(LB$27&\"-\"&$M59&\"_new\",Ammortamento_Finanziario!$H:$L,5,FALSE),VLOOKUP($M59,TT_Tabelle_Riferimento!$D$127:$H$164,5,FALSE))","v":5},{"$f":"+IFERROR(VLOOKUP(LC$27&\"-\"&$M59&\"_new\",Ammortamento_Finanziario!$H:$L,5,FALSE),VLOOKUP($M59,TT_Tabelle_Riferimento!$D$127:$H$164,5,FALSE))","v":5},{"$f":"+IFERROR(VLOOKUP(LD$27&\"-\"&$M59&\"_new\",Ammortamento_Finanziario!$H:$L,5,FALSE),VLOOKUP($M59,TT_Tabelle_Riferimento!$D$127:$H$164,5,FALSE))","v":5},{"$f":"+IFERROR(VLOOKUP(LE$27&\"-\"&$M59&\"_new\",Ammortamento_Finanziario!$H:$L,5,FALSE),VLOOKUP($M59,TT_Tabelle_Riferimento!$D$127:$H$164,5,FALSE))","v":5},{"$f":"+IFERROR(VLOOKUP(LF$27&\"-\"&$M59&\"_new\",Ammortamento_Finanziario!$H:$L,5,FALSE),VLOOKUP($M59,TT_Tabelle_Riferimento!$D$127:$H$164,5,FALSE))","v":5},{"$f":"+IFERROR(VLOOKUP(LG$27&\"-\"&$M59&\"_new\",Ammortamento_Finanziario!$H:$L,5,FALSE),VLOOKUP($M59,TT_Tabelle_Riferimento!$D$127:$H$164,5,FALSE))","v":5},{"$f":"+IFERROR(VLOOKUP(LH$27&\"-\"&$M59&\"_new\",Ammortamento_Finanziario!$H:$L,5,FALSE),VLOOKUP($M59,TT_Tabelle_Riferimento!$D$127:$H$164,5,FALSE))","v":5},{"$f":"+IFERROR(VLOOKUP(LI$27&\"-\"&$M59&\"_new\",Ammortamento_Finanziario!$H:$L,5,FALSE),VLOOKUP($M59,TT_Tabelle_Riferimento!$D$127:$H$164,5,FALSE))","v":5},{"$f":"+IFERROR(VLOOKUP(LJ$27&\"-\"&$M59&\"_new\",Ammortamento_Finanziario!$H:$L,5,FALSE),VLOOKUP($M59,TT_Tabelle_Riferimento!$D$127:$H$164,5,FALSE))","v":5},{"$f":"+IFERROR(VLOOKUP(LK$27&\"-\"&$M59&\"_new\",Ammortamento_Finanziario!$H:$L,5,FALSE),VLOOKUP($M59,TT_Tabelle_Riferimento!$D$127:$H$164,5,FALSE))","v":5},{"$f":"+IFERROR(VLOOKUP(LL$27&\"-\"&$M59&\"_new\",Ammortamento_Finanziario!$H:$L,5,FALSE),VLOOKUP($M59,TT_Tabelle_Riferimento!$D$127:$H$164,5,FALSE))","v":5},{"$f":"+IFERROR(VLOOKUP(LM$27&\"-\"&$M59&\"_new\",Ammortamento_Finanziario!$H:$L,5,FALSE),VLOOKUP($M59,TT_Tabelle_Riferimento!$D$127:$H$164,5,FALSE))","v":5},{"$f":"+IFERROR(VLOOKUP(LN$27&\"-\"&$M59&\"_new\",Ammortamento_Finanziario!$H:$L,5,FALSE),VLOOKUP($M59,TT_Tabelle_Riferimento!$D$127:$H$164,5,FALSE))","v":5},{"$f":"+IFERROR(VLOOKUP(LO$27&\"-\"&$M59&\"_new\",Ammortamento_Finanziario!$H:$L,5,FALSE),VLOOKUP($M59,TT_Tabelle_Riferimento!$D$127:$H$164,5,FALSE))","v":5},{"$f":"+IFERROR(VLOOKUP(LP$27&\"-\"&$M59&\"_new\",Ammortamento_Finanziario!$H:$L,5,FALSE),VLOOKUP($M59,TT_Tabelle_Riferimento!$D$127:$H$164,5,FALSE))","v":5},{"$f":"+IFERROR(VLOOKUP(LQ$27&\"-\"&$M59&\"_new\",Ammortamento_Finanziario!$H:$L,5,FALSE),VLOOKUP($M59,TT_Tabelle_Riferimento!$D$127:$H$164,5,FALSE))","v":5},{"$f":"+IFERROR(VLOOKUP(LR$27&\"-\"&$M59&\"_new\",Ammortamento_Finanziario!$H:$L,5,FALSE),VLOOKUP($M59,TT_Tabelle_Riferimento!$D$127:$H$164,5,FALSE))","v":5},{"$f":"+IFERROR(VLOOKUP(LS$27&\"-\"&$M59&\"_new\",Ammortamento_Finanziario!$H:$L,5,FALSE),VLOOKUP($M59,TT_Tabelle_Riferimento!$D$127:$H$164,5,FALSE))","v":5},{"$f":"+IFERROR(VLOOKUP(LT$27&\"-\"&$M59&\"_new\",Ammortamento_Finanziario!$H:$L,5,FALSE),VLOOKUP($M59,TT_Tabelle_Riferimento!$D$127:$H$164,5,FALSE))","v":5},{"$f":"+IFERROR(VLOOKUP(LU$27&\"-\"&$M59&\"_new\",Ammortamento_Finanziario!$H:$L,5,FALSE),VLOOKUP($M59,TT_Tabelle_Riferimento!$D$127:$H$164,5,FALSE))","v":5},{"$f":"+IFERROR(VLOOKUP(LV$27&\"-\"&$M59&\"_new\",Ammortamento_Finanziario!$H:$L,5,FALSE),VLOOKUP($M59,TT_Tabelle_Riferimento!$D$127:$H$164,5,FALSE))","v":5},{"$f":"+IFERROR(VLOOKUP(LW$27&\"-\"&$M59&\"_new\",Ammortamento_Finanziario!$H:$L,5,FALSE),VLOOKUP($M59,TT_Tabelle_Riferimento!$D$127:$H$164,5,FALSE))","v":5},{"$f":"+IFERROR(VLOOKUP(LX$27&\"-\"&$M59&\"_new\",Ammortamento_Finanziario!$H:$L,5,FALSE),VLOOKUP($M59,TT_Tabelle_Riferimento!$D$127:$H$164,5,FALSE))","v":5},{"$f":"+IFERROR(VLOOKUP(LY$27&\"-\"&$M59&\"_new\",Ammortamento_Finanziario!$H:$L,5,FALSE),VLOOKUP($M59,TT_Tabelle_Riferimento!$D$127:$H$164,5,FALSE))","v":5},{"$f":"+IFERROR(VLOOKUP(LZ$27&\"-\"&$M59&\"_new\",Ammortamento_Finanziario!$H:$L,5,FALSE),VLOOKUP($M59,TT_Tabelle_Riferimento!$D$127:$H$164,5,FALSE))","v":5},{"$f":"+IFERROR(VLOOKUP(MA$27&\"-\"&$M59&\"_new\",Ammortamento_Finanziario!$H:$L,5,FALSE),VLOOKUP($M59,TT_Tabelle_Riferimento!$D$127:$H$164,5,FALSE))","v":5},{"$f":"+IFERROR(VLOOKUP(MB$27&\"-\"&$M59&\"_new\",Ammortamento_Finanziario!$H:$L,5,FALSE),VLOOKUP($M59,TT_Tabelle_Riferimento!$D$127:$H$164,5,FALSE))","v":5},{"$f":"+IFERROR(VLOOKUP(MC$27&\"-\"&$M59&\"_new\",Ammortamento_Finanziario!$H:$L,5,FALSE),VLOOKUP($M59,TT_Tabelle_Riferimento!$D$127:$H$164,5,FALSE))","v":5},{"$f":"+IFERROR(VLOOKUP(MD$27&\"-\"&$M59&\"_new\",Ammortamento_Finanziario!$H:$L,5,FALSE),VLOOKUP($M59,TT_Tabelle_Riferimento!$D$127:$H$164,5,FALSE))","v":5},{"$f":"+IFERROR(VLOOKUP(ME$27&\"-\"&$M59&\"_new\",Ammortamento_Finanziario!$H:$L,5,FALSE),VLOOKUP($M59,TT_Tabelle_Riferimento!$D$127:$H$164,5,FALSE))","v":5},{"$f":"+IFERROR(VLOOKUP(MF$27&\"-\"&$M59&\"_new\",Ammortamento_Finanziario!$H:$L,5,FALSE),VLOOKUP($M59,TT_Tabelle_Riferimento!$D$127:$H$164,5,FALSE))","v":5},{"$f":"+IFERROR(VLOOKUP(MG$27&\"-\"&$M59&\"_new\",Ammortamento_Finanziario!$H:$L,5,FALSE),VLOOKUP($M59,TT_Tabelle_Riferimento!$D$127:$H$164,5,FALSE))","v":5},{"$f":"+IFERROR(VLOOKUP(MH$27&\"-\"&$M59&\"_new\",Ammortamento_Finanziario!$H:$L,5,FALSE),VLOOKUP($M59,TT_Tabelle_Riferimento!$D$127:$H$164,5,FALSE))","v":5},{"$f":"+IFERROR(VLOOKUP(MI$27&\"-\"&$M59&\"_new\",Ammortamento_Finanziario!$H:$L,5,FALSE),VLOOKUP($M59,TT_Tabelle_Riferimento!$D$127:$H$164,5,FALSE))","v":5},{"$f":"+IFERROR(VLOOKUP(MJ$27&\"-\"&$M59&\"_new\",Ammortamento_Finanziario!$H:$L,5,FALSE),VLOOKUP($M59,TT_Tabelle_Riferimento!$D$127:$H$164,5,FALSE))","v":5},{"$f":"+IFERROR(VLOOKUP(MK$27&\"-\"&$M59&\"_new\",Ammortamento_Finanziario!$H:$L,5,FALSE),VLOOKUP($M59,TT_Tabelle_Riferimento!$D$127:$H$164,5,FALSE))","v":5},{"$f":"+IFERROR(VLOOKUP(ML$27&\"-\"&$M59&\"_new\",Ammortamento_Finanziario!$H:$L,5,FALSE),VLOOKUP($M59,TT_Tabelle_Riferimento!$D$127:$H$164,5,FALSE))","v":5},{"$f":"+IFERROR(VLOOKUP(MM$27&\"-\"&$M59&\"_new\",Ammortamento_Finanziario!$H:$L,5,FALSE),VLOOKUP($M59,TT_Tabelle_Riferimento!$D$127:$H$164,5,FALSE))","v":5},{"$f":"+IFERROR(VLOOKUP(MN$27&\"-\"&$M59&\"_new\",Ammortamento_Finanziario!$H:$L,5,FALSE),VLOOKUP($M59,TT_Tabelle_Riferimento!$D$127:$H$164,5,FALSE))","v":5},{"$f":"+IFERROR(VLOOKUP(MO$27&\"-\"&$M59&\"_new\",Ammortamento_Finanziario!$H:$L,5,FALSE),VLOOKUP($M59,TT_Tabelle_Riferimento!$D$127:$H$164,5,FALSE))","v":5},{"$f":"+IFERROR(VLOOKUP(MP$27&\"-\"&$M59&\"_new\",Ammortamento_Finanziario!$H:$L,5,FALSE),VLOOKUP($M59,TT_Tabelle_Riferimento!$D$127:$H$164,5,FALSE))","v":5},{"$f":"+IFERROR(VLOOKUP(MQ$27&\"-\"&$M59&\"_new\",Ammortamento_Finanziario!$H:$L,5,FALSE),VLOOKUP($M59,TT_Tabelle_Riferimento!$D$127:$H$164,5,FALSE))","v":5},{"$f":"+IFERROR(VLOOKUP(MR$27&\"-\"&$M59&\"_new\",Ammortamento_Finanziario!$H:$L,5,FALSE),VLOOKUP($M59,TT_Tabelle_Riferimento!$D$127:$H$164,5,FALSE))","v":5},{"$f":"+IFERROR(VLOOKUP(MS$27&\"-\"&$M59&\"_new\",Ammortamento_Finanziario!$H:$L,5,FALSE),VLOOKUP($M59,TT_Tabelle_Riferimento!$D$127:$H$164,5,FALSE))","v":5},{"$f":"+IFERROR(VLOOKUP(MT$27&\"-\"&$M59&\"_new\",Ammortamento_Finanziario!$H:$L,5,FALSE),VLOOKUP($M59,TT_Tabelle_Riferimento!$D$127:$H$164,5,FALSE))","v":5},{"$f":"+IFERROR(VLOOKUP(MU$27&\"-\"&$M59&\"_new\",Ammortamento_Finanziario!$H:$L,5,FALSE),VLOOKUP($M59,TT_Tabelle_Riferimento!$D$127:$H$164,5,FALSE))","v":5},{"$f":"+IFERROR(VLOOKUP(MV$27&\"-\"&$M59&\"_new\",Ammortamento_Finanziario!$H:$L,5,FALSE),VLOOKUP($M59,TT_Tabelle_Riferimento!$D$127:$H$164,5,FALSE))","v":5},{"$f":"+IFERROR(VLOOKUP(MW$27&\"-\"&$M59&\"_new\",Ammortamento_Finanziario!$H:$L,5,FALSE),VLOOKUP($M59,TT_Tabelle_Riferimento!$D$127:$H$164,5,FALSE))","v":5},{"$f":"+IFERROR(VLOOKUP(MX$27&\"-\"&$M59&\"_new\",Ammortamento_Finanziario!$H:$L,5,FALSE),VLOOKUP($M59,TT_Tabelle_Riferimento!$D$127:$H$164,5,FALSE))","v":5},{"$f":"+IFERROR(VLOOKUP(MY$27&\"-\"&$M59&\"_new\",Ammortamento_Finanziario!$H:$L,5,FALSE),VLOOKUP($M59,TT_Tabelle_Riferimento!$D$127:$H$164,5,FALSE))","v":5},{"$f":"+IFERROR(VLOOKUP(MZ$27&\"-\"&$M59&\"_new\",Ammortamento_Finanziario!$H:$L,5,FALSE),VLOOKUP($M59,TT_Tabelle_Riferimento!$D$127:$H$164,5,FALSE))","v":5},{"$f":"+IFERROR(VLOOKUP(NA$27&\"-\"&$M59&\"_new\",Ammortamento_Finanziario!$H:$L,5,FALSE),VLOOKUP($M59,TT_Tabelle_Riferimento!$D$127:$H$164,5,FALSE))","v":5},{"$f":"+IFERROR(VLOOKUP(NB$27&\"-\"&$M59&\"_new\",Ammortamento_Finanziario!$H:$L,5,FALSE),VLOOKUP($M59,TT_Tabelle_Riferimento!$D$127:$H$164,5,FALSE))","v":5},{"$f":"+IFERROR(VLOOKUP(NC$27&\"-\"&$M59&\"_new\",Ammortamento_Finanziario!$H:$L,5,FALSE),VLOOKUP($M59,TT_Tabelle_Riferimento!$D$127:$H$164,5,FALSE))","v":5},{"$f":"+IFERROR(VLOOKUP(ND$27&\"-\"&$M59&\"_new\",Ammortamento_Finanziario!$H:$L,5,FALSE),VLOOKUP($M59,TT_Tabelle_Riferimento!$D$127:$H$164,5,FALSE))","v":5},{"$f":"+IFERROR(VLOOKUP(NE$27&\"-\"&$M59&\"_new\",Ammortamento_Finanziario!$H:$L,5,FALSE),VLOOKUP($M59,TT_Tabelle_Riferimento!$D$127:$H$164,5,FALSE))","v":5},{"$f":"+IFERROR(VLOOKUP(NF$27&\"-\"&$M59&\"_new\",Ammortamento_Finanziario!$H:$L,5,FALSE),VLOOKUP($M59,TT_Tabelle_Riferimento!$D$127:$H$164,5,FALSE))","v":5},{"$f":"+IFERROR(VLOOKUP(NG$27&\"-\"&$M59&\"_new\",Ammortamento_Finanziario!$H:$L,5,FALSE),VLOOKUP($M59,TT_Tabelle_Riferimento!$D$127:$H$164,5,FALSE))","v":5},{"$f":"+IFERROR(VLOOKUP(NH$27&\"-\"&$M59&\"_new\",Ammortamento_Finanziario!$H:$L,5,FALSE),VLOOKUP($M59,TT_Tabelle_Riferimento!$D$127:$H$164,5,FALSE))","v":5},{"$f":"+IFERROR(VLOOKUP(NI$27&\"-\"&$M59&\"_new\",Ammortamento_Finanziario!$H:$L,5,FALSE),VLOOKUP($M59,TT_Tabelle_Riferimento!$D$127:$H$164,5,FALSE))","v":5},{"$f":"+IFERROR(VLOOKUP(NJ$27&\"-\"&$M59&\"_new\",Ammortamento_Finanziario!$H:$L,5,FALSE),VLOOKUP($M59,TT_Tabelle_Riferimento!$D$127:$H$164,5,FALSE))","v":5},{"$f":"+IFERROR(VLOOKUP(NK$27&\"-\"&$M59&\"_new\",Ammortamento_Finanziario!$H:$L,5,FALSE),VLOOKUP($M59,TT_Tabelle_Riferimento!$D$127:$H$164,5,FALSE))","v":5},{"$f":"+IFERROR(VLOOKUP(NL$27&\"-\"&$M59&\"_new\",Ammortamento_Finanziario!$H:$L,5,FALSE),VLOOKUP($M59,TT_Tabelle_Riferimento!$D$127:$H$164,5,FALSE))","v":5},{"$f":"+IFERROR(VLOOKUP(NM$27&\"-\"&$M59&\"_new\",Ammortamento_Finanziario!$H:$L,5,FALSE),VLOOKUP($M59,TT_Tabelle_Riferimento!$D$127:$H$164,5,FALSE))","v":5},{"$f":"+IFERROR(VLOOKUP(NN$27&\"-\"&$M59&\"_new\",Ammortamento_Finanziario!$H:$L,5,FALSE),VLOOKUP($M59,TT_Tabelle_Riferimento!$D$127:$H$164,5,FALSE))","v":5},{"$f":"+IFERROR(VLOOKUP(NO$27&\"-\"&$M59&\"_new\",Ammortamento_Finanziario!$H:$L,5,FALSE),VLOOKUP($M59,TT_Tabelle_Riferimento!$D$127:$H$164,5,FALSE))","v":5},{"$f":"+IFERROR(VLOOKUP(NP$27&\"-\"&$M59&\"_new\",Ammortamento_Finanziario!$H:$L,5,FALSE),VLOOKUP($M59,TT_Tabelle_Riferimento!$D$127:$H$164,5,FALSE))","v":5},{"$f":"+IFERROR(VLOOKUP(NQ$27&\"-\"&$M59&\"_new\",Ammortamento_Finanziario!$H:$L,5,FALSE),VLOOKUP($M59,TT_Tabelle_Riferimento!$D$127:$H$164,5,FALSE))","v":5},{"$f":"+IFERROR(VLOOKUP(NR$27&\"-\"&$M59&\"_new\",Ammortamento_Finanziario!$H:$L,5,FALSE),VLOOKUP($M59,TT_Tabelle_Riferimento!$D$127:$H$164,5,FALSE))","v":5},{"$f":"+IFERROR(VLOOKUP(NS$27&\"-\"&$M59&\"_new\",Ammortamento_Finanziario!$H:$L,5,FALSE),VLOOKUP($M59,TT_Tabelle_Riferimento!$D$127:$H$164,5,FALSE))","v":5},{"$f":"+IFERROR(VLOOKUP(NT$27&\"-\"&$M59&\"_new\",Ammortamento_Finanziario!$H:$L,5,FALSE),VLOOKUP($M59,TT_Tabelle_Riferimento!$D$127:$H$164,5,FALSE))","v":5},{"$f":"+IFERROR(VLOOKUP(NU$27&\"-\"&$M59&\"_new\",Ammortamento_Finanziario!$H:$L,5,FALSE),VLOOKUP($M59,TT_Tabelle_Riferimento!$D$127:$H$164,5,FALSE))","v":5},{"$f":"+IFERROR(VLOOKUP(NV$27&\"-\"&$M59&\"_new\",Ammortamento_Finanziario!$H:$L,5,FALSE),VLOOKUP($M59,TT_Tabelle_Riferimento!$D$127:$H$164,5,FALSE))","v":5},{"$f":"+IFERROR(VLOOKUP(NW$27&\"-\"&$M59&\"_new\",Ammortamento_Finanziario!$H:$L,5,FALSE),VLOOKUP($M59,TT_Tabelle_Riferimento!$D$127:$H$164,5,FALSE))","v":5},{"$f":"+IFERROR(VLOOKUP(NX$27&\"-\"&$M59&\"_new\",Ammortamento_Finanziario!$H:$L,5,FALSE),VLOOKUP($M59,TT_Tabelle_Riferimento!$D$127:$H$164,5,FALSE))","v":5},{"$f":"+IFERROR(VLOOKUP(NY$27&\"-\"&$M59&\"_new\",Ammortamento_Finanziario!$H:$L,5,FALSE),VLOOKUP($M59,TT_Tabelle_Riferimento!$D$127:$H$164,5,FALSE))","v":5},{"$f":"+IFERROR(VLOOKUP(NZ$27&\"-\"&$M59&\"_new\",Ammortamento_Finanziario!$H:$L,5,FALSE),VLOOKUP($M59,TT_Tabelle_Riferimento!$D$127:$H$164,5,FALSE))","v":5},{"$f":"+IFERROR(VLOOKUP(OA$27&\"-\"&$M59&\"_new\",Ammortamento_Finanziario!$H:$L,5,FALSE),VLOOKUP($M59,TT_Tabelle_Riferimento!$D$127:$H$164,5,FALSE))","v":5},{"$f":"+IFERROR(VLOOKUP(OB$27&\"-\"&$M59&\"_new\",Ammortamento_Finanziario!$H:$L,5,FALSE),VLOOKUP($M59,TT_Tabelle_Riferimento!$D$127:$H$164,5,FALSE))","v":5},{"$f":"+IFERROR(VLOOKUP(OC$27&\"-\"&$M59&\"_new\",Ammortamento_Finanziario!$H:$L,5,FALSE),VLOOKUP($M59,TT_Tabelle_Riferimento!$D$127:$H$164,5,FALSE))","v":5},{"$f":"+IFERROR(VLOOKUP(OD$27&\"-\"&$M59&\"_new\",Ammortamento_Finanziario!$H:$L,5,FALSE),VLOOKUP($M59,TT_Tabelle_Riferimento!$D$127:$H$164,5,FALSE))","v":5},{"$f":"+IFERROR(VLOOKUP(OE$27&\"-\"&$M59&\"_new\",Ammortamento_Finanziario!$H:$L,5,FALSE),VLOOKUP($M59,TT_Tabelle_Riferimento!$D$127:$H$164,5,FALSE))","v":5},{"$f":"+IFERROR(VLOOKUP(OF$27&\"-\"&$M59&\"_new\",Ammortamento_Finanziario!$H:$L,5,FALSE),VLOOKUP($M59,TT_Tabelle_Riferimento!$D$127:$H$164,5,FALSE))","v":5},{"$f":"+IFERROR(VLOOKUP(OG$27&\"-\"&$M59&\"_new\",Ammortamento_Finanziario!$H:$L,5,FALSE),VLOOKUP($M59,TT_Tabelle_Riferimento!$D$127:$H$164,5,FALSE))","v":5},{"$f":"+IFERROR(VLOOKUP(OH$27&\"-\"&$M59&\"_new\",Ammortamento_Finanziario!$H:$L,5,FALSE),VLOOKUP($M59,TT_Tabelle_Riferimento!$D$127:$H$164,5,FALSE))","v":5},{"$f":"+IFERROR(VLOOKUP(OI$27&\"-\"&$M59&\"_new\",Ammortamento_Finanziario!$H:$L,5,FALSE),VLOOKUP($M59,TT_Tabelle_Riferimento!$D$127:$H$164,5,FALSE))","v":5},{"$f":"+IFERROR(VLOOKUP(OJ$27&\"-\"&$M59&\"_new\",Ammortamento_Finanziario!$H:$L,5,FALSE),VLOOKUP($M59,TT_Tabelle_Riferimento!$D$127:$H$164,5,FALSE))","v":5},{"$f":"+IFERROR(VLOOKUP(OK$27&\"-\"&$M59&\"_new\",Ammortamento_Finanziario!$H:$L,5,FALSE),VLOOKUP($M59,TT_Tabelle_Riferimento!$D$127:$H$164,5,FALSE))","v":5},{"$f":"+IFERROR(VLOOKUP(OL$27&\"-\"&$M59&\"_new\",Ammortamento_Finanziario!$H:$L,5,FALSE),VLOOKUP($M59,TT_Tabelle_Riferimento!$D$127:$H$164,5,FALSE))","v":5},{"$f":"+IFERROR(VLOOKUP(OM$27&\"-\"&$M59&\"_new\",Ammortamento_Finanziario!$H:$L,5,FALSE),VLOOKUP($M59,TT_Tabelle_Riferimento!$D$127:$H$164,5,FALSE))","v":5},{"$f":"+IFERROR(VLOOKUP(ON$27&\"-\"&$M59&\"_new\",Ammortamento_Finanziario!$H:$L,5,FALSE),VLOOKUP($M59,TT_Tabelle_Riferimento!$D$127:$H$164,5,FALSE))","v":5},{"$f":"+IFERROR(VLOOKUP(OO$27&\"-\"&$M59&\"_new\",Ammortamento_Finanziario!$H:$L,5,FALSE),VLOOKUP($M59,TT_Tabelle_Riferimento!$D$127:$H$164,5,FALSE))","v":5},{"$f":"+IFERROR(VLOOKUP(OP$27&\"-\"&$M59&\"_new\",Ammortamento_Finanziario!$H:$L,5,FALSE),VLOOKUP($M59,TT_Tabelle_Riferimento!$D$127:$H$164,5,FALSE))","v":5},{"$f":"+IFERROR(VLOOKUP(OQ$27&\"-\"&$M59&\"_new\",Ammortamento_Finanziario!$H:$L,5,FALSE),VLOOKUP($M59,TT_Tabelle_Riferimento!$D$127:$H$164,5,FALSE))","v":5},{"$f":"+IFERROR(VLOOKUP(OR$27&\"-\"&$M59&\"_new\",Ammortamento_Finanziario!$H:$L,5,FALSE),VLOOKUP($M59,TT_Tabelle_Riferimento!$D$127:$H$164,5,FALSE))","v":5},{"$f":"+IFERROR(VLOOKUP(OS$27&\"-\"&$M59&\"_new\",Ammortamento_Finanziario!$H:$L,5,FALSE),VLOOKUP($M59,TT_Tabelle_Riferimento!$D$127:$H$164,5,FALSE))","v":5},{"$f":"+IFERROR(VLOOKUP(OT$27&\"-\"&$M59&\"_new\",Ammortamento_Finanziario!$H:$L,5,FALSE),VLOOKUP($M59,TT_Tabelle_Riferimento!$D$127:$H$164,5,FALSE))","v":5},{"$f":"+IFERROR(VLOOKUP(OU$27&\"-\"&$M59&\"_new\",Ammortamento_Finanziario!$H:$L,5,FALSE),VLOOKUP($M59,TT_Tabelle_Riferimento!$D$127:$H$164,5,FALSE))","v":5},{"$f":"+IFERROR(VLOOKUP(OV$27&\"-\"&$M59&\"_new\",Ammortamento_Finanziario!$H:$L,5,FALSE),VLOOKUP($M59,TT_Tabelle_Riferimento!$D$127:$H$164,5,FALSE))","v":5},{"$f":"+IFERROR(VLOOKUP(OW$27&\"-\"&$M59&\"_new\",Ammortamento_Finanziario!$H:$L,5,FALSE),VLOOKUP($M59,TT_Tabelle_Riferimento!$D$127:$H$164,5,FALSE))","v":5},{"$f":"+IFERROR(VLOOKUP(OX$27&\"-\"&$M59&\"_new\",Ammortamento_Finanziario!$H:$L,5,FALSE),VLOOKUP($M59,TT_Tabelle_Riferimento!$D$127:$H$164,5,FALSE))","v":5},{"$f":"+IFERROR(VLOOKUP(OY$27&\"-\"&$M59&\"_new\",Ammortamento_Finanziario!$H:$L,5,FALSE),VLOOKUP($M59,TT_Tabelle_Riferimento!$D$127:$H$164,5,FALSE))","v":5},{"$f":"+IFERROR(VLOOKUP(OZ$27&\"-\"&$M59&\"_new\",Ammortamento_Finanziario!$H:$L,5,FALSE),VLOOKUP($M59,TT_Tabelle_Riferimento!$D$127:$H$164,5,FALSE))","v":5},{"$f":"+IFERROR(VLOOKUP(PA$27&\"-\"&$M59&\"_new\",Ammortamento_Finanziario!$H:$L,5,FALSE),VLOOKUP($M59,TT_Tabelle_Riferimento!$D$127:$H$164,5,FALSE))","v":5},{"$f":"+IFERROR(VLOOKUP(PB$27&\"-\"&$M59&\"_new\",Ammortamento_Finanziario!$H:$L,5,FALSE),VLOOKUP($M59,TT_Tabelle_Riferimento!$D$127:$H$164,5,FALSE))","v":5},{"$f":"+IFERROR(VLOOKUP(PC$27&\"-\"&$M59&\"_new\",Ammortamento_Finanziario!$H:$L,5,FALSE),VLOOKUP($M59,TT_Tabelle_Riferimento!$D$127:$H$164,5,FALSE))","v":5},{"$f":"+IFERROR(VLOOKUP(PD$27&\"-\"&$M59&\"_new\",Ammortamento_Finanziario!$H:$L,5,FALSE),VLOOKUP($M59,TT_Tabelle_Riferimento!$D$127:$H$164,5,FALSE))","v":5},{"$f":"+IFERROR(VLOOKUP(PE$27&\"-\"&$M59&\"_new\",Ammortamento_Finanziario!$H:$L,5,FALSE),VLOOKUP($M59,TT_Tabelle_Riferimento!$D$127:$H$164,5,FALSE))","v":5},{"$f":"+IFERROR(VLOOKUP(PF$27&\"-\"&$M59&\"_new\",Ammortamento_Finanziario!$H:$L,5,FALSE),VLOOKUP($M59,TT_Tabelle_Riferimento!$D$127:$H$164,5,FALSE))","v":5},{"$f":"+IFERROR(VLOOKUP(PG$27&\"-\"&$M59&\"_new\",Ammortamento_Finanziario!$H:$L,5,FALSE),VLOOKUP($M59,TT_Tabelle_Riferimento!$D$127:$H$164,5,FALSE))","v":5},{"$f":"+IFERROR(VLOOKUP(PH$27&\"-\"&$M59&\"_new\",Ammortamento_Finanziario!$H:$L,5,FALSE),VLOOKUP($M59,TT_Tabelle_Riferimento!$D$127:$H$164,5,FALSE))","v":5},{"$f":"+IFERROR(VLOOKUP(PI$27&\"-\"&$M59&\"_new\",Ammortamento_Finanziario!$H:$L,5,FALSE),VLOOKUP($M59,TT_Tabelle_Riferimento!$D$127:$H$164,5,FALSE))","v":5},{"$f":"+IFERROR(VLOOKUP(PJ$27&\"-\"&$M59&\"_new\",Ammortamento_Finanziario!$H:$L,5,FALSE),VLOOKUP($M59,TT_Tabelle_Riferimento!$D$127:$H$164,5,FALSE))","v":5},{"$f":"+IFERROR(VLOOKUP(PK$27&\"-\"&$M59&\"_new\",Ammortamento_Finanziario!$H:$L,5,FALSE),VLOOKUP($M59,TT_Tabelle_Riferimento!$D$127:$H$164,5,FALSE))","v":5},{"$f":"+IFERROR(VLOOKUP(PL$27&\"-\"&$M59&\"_new\",Ammortamento_Finanziario!$H:$L,5,FALSE),VLOOKUP($M59,TT_Tabelle_Riferimento!$D$127:$H$164,5,FALSE))","v":5},{"$f":"+IFERROR(VLOOKUP(PM$27&\"-\"&$M59&\"_new\",Ammortamento_Finanziario!$H:$L,5,FALSE),VLOOKUP($M59,TT_Tabelle_Riferimento!$D$127:$H$164,5,FALSE))","v":5},{"$f":"+IFERROR(VLOOKUP(PN$27&\"-\"&$M59&\"_new\",Ammortamento_Finanziario!$H:$L,5,FALSE),VLOOKUP($M59,TT_Tabelle_Riferimento!$D$127:$H$164,5,FALSE))","v":5},{"$f":"+IFERROR(VLOOKUP(PO$27&\"-\"&$M59&\"_new\",Ammortamento_Finanziario!$H:$L,5,FALSE),VLOOKUP($M59,TT_Tabelle_Riferimento!$D$127:$H$164,5,FALSE))","v":5},{"$f":"+IFERROR(VLOOKUP(PP$27&\"-\"&$M59&\"_new\",Ammortamento_Finanziario!$H:$L,5,FALSE),VLOOKUP($M59,TT_Tabelle_Riferimento!$D$127:$H$164,5,FALSE))","v":5},{"$f":"+IFERROR(VLOOKUP(PQ$27&\"-\"&$M59&\"_new\",Ammortamento_Finanziario!$H:$L,5,FALSE),VLOOKUP($M59,TT_Tabelle_Riferimento!$D$127:$H$164,5,FALSE))","v":5},{"$f":"+IFERROR(VLOOKUP(PR$27&\"-\"&$M59&\"_new\",Ammortamento_Finanziario!$H:$L,5,FALSE),VLOOKUP($M59,TT_Tabelle_Riferimento!$D$127:$H$164,5,FALSE))","v":5},{"$f":"+IFERROR(VLOOKUP(PS$27&\"-\"&$M59&\"_new\",Ammortamento_Finanziario!$H:$L,5,FALSE),VLOOKUP($M59,TT_Tabelle_Riferimento!$D$127:$H$164,5,FALSE))","v":5},{"$f":"+IFERROR(VLOOKUP(PT$27&\"-\"&$M59&\"_new\",Ammortamento_Finanziario!$H:$L,5,FALSE),VLOOKUP($M59,TT_Tabelle_Riferimento!$D$127:$H$164,5,FALSE))","v":5},{"$f":"+IFERROR(VLOOKUP(PU$27&\"-\"&$M59&\"_new\",Ammortamento_Finanziario!$H:$L,5,FALSE),VLOOKUP($M59,TT_Tabelle_Riferimento!$D$127:$H$164,5,FALSE))","v":5},{"$f":"+IFERROR(VLOOKUP(PV$27&\"-\"&$M59&\"_new\",Ammortamento_Finanziario!$H:$L,5,FALSE),VLOOKUP($M59,TT_Tabelle_Riferimento!$D$127:$H$164,5,FALSE))","v":5},{"$f":"+IFERROR(VLOOKUP(PW$27&\"-\"&$M59&\"_new\",Ammortamento_Finanziario!$H:$L,5,FALSE),VLOOKUP($M59,TT_Tabelle_Riferimento!$D$127:$H$164,5,FALSE))","v":5},{"$f":"+IFERROR(VLOOKUP(PX$27&\"-\"&$M59&\"_new\",Ammortamento_Finanziario!$H:$L,5,FALSE),VLOOKUP($M59,TT_Tabelle_Riferimento!$D$127:$H$164,5,FALSE))","v":5},{"$f":"+IFERROR(VLOOKUP(PY$27&\"-\"&$M59&\"_new\",Ammortamento_Finanziario!$H:$L,5,FALSE),VLOOKUP($M59,TT_Tabelle_Riferimento!$D$127:$H$164,5,FALSE))","v":5},{"$f":"+IFERROR(VLOOKUP(PZ$27&\"-\"&$M59&\"_new\",Ammortamento_Finanziario!$H:$L,5,FALSE),VLOOKUP($M59,TT_Tabelle_Riferimento!$D$127:$H$164,5,FALSE))","v":5},{"$f":"+IFERROR(VLOOKUP(QA$27&\"-\"&$M59&\"_new\",Ammortamento_Finanziario!$H:$L,5,FALSE),VLOOKUP($M59,TT_Tabelle_Riferimento!$D$127:$H$164,5,FALSE))","v":5},{"$f":"+IFERROR(VLOOKUP(QB$27&\"-\"&$M59&\"_new\",Ammortamento_Finanziario!$H:$L,5,FALSE),VLOOKUP($M59,TT_Tabelle_Riferimento!$D$127:$H$164,5,FALSE))","v":5},{"$f":"+IFERROR(VLOOKUP(QC$27&\"-\"&$M59&\"_new\",Ammortamento_Finanziario!$H:$L,5,FALSE),VLOOKUP($M59,TT_Tabelle_Riferimento!$D$127:$H$164,5,FALSE))","v":5},{"$f":"+IFERROR(VLOOKUP(QD$27&\"-\"&$M59&\"_new\",Ammortamento_Finanziario!$H:$L,5,FALSE),VLOOKUP($M59,TT_Tabelle_Riferimento!$D$127:$H$164,5,FALSE))","v":5},{"$f":"+IFERROR(VLOOKUP(QE$27&\"-\"&$M59&\"_new\",Ammortamento_Finanziario!$H:$L,5,FALSE),VLOOKUP($M59,TT_Tabelle_Riferimento!$D$127:$H$164,5,FALSE))","v":5},{"$f":"+IFERROR(VLOOKUP(QF$27&\"-\"&$M59&\"_new\",Ammortamento_Finanziario!$H:$L,5,FALSE),VLOOKUP($M59,TT_Tabelle_Riferimento!$D$127:$H$164,5,FALSE))","v":5},{"$f":"+IFERROR(VLOOKUP(QG$27&\"-\"&$M59&\"_new\",Ammortamento_Finanziario!$H:$L,5,FALSE),VLOOKUP($M59,TT_Tabelle_Riferimento!$D$127:$H$164,5,FALSE))","v":5},{"$f":"+IFERROR(VLOOKUP(QH$27&\"-\"&$M59&\"_new\",Ammortamento_Finanziario!$H:$L,5,FALSE),VLOOKUP($M59,TT_Tabelle_Riferimento!$D$127:$H$164,5,FALSE))","v":5},{"$f":"+IFERROR(VLOOKUP(QI$27&\"-\"&$M59&\"_new\",Ammortamento_Finanziario!$H:$L,5,FALSE),VLOOKUP($M59,TT_Tabelle_Riferimento!$D$127:$H$164,5,FALSE))","v":5},{"$f":"+IFERROR(VLOOKUP(QJ$27&\"-\"&$M59&\"_new\",Ammortamento_Finanziario!$H:$L,5,FALSE),VLOOKUP($M59,TT_Tabelle_Riferimento!$D$127:$H$164,5,FALSE))","v":5},{"$f":"+IFERROR(VLOOKUP(QK$27&\"-\"&$M59&\"_new\",Ammortamento_Finanziario!$H:$L,5,FALSE),VLOOKUP($M59,TT_Tabelle_Riferimento!$D$127:$H$164,5,FALSE))","v":5},{"$f":"+IFERROR(VLOOKUP(QL$27&\"-\"&$M59&\"_new\",Ammortamento_Finanziario!$H:$L,5,FALSE),VLOOKUP($M59,TT_Tabelle_Riferimento!$D$127:$H$164,5,FALSE))","v":5},{"$f":"+IFERROR(VLOOKUP(QM$27&\"-\"&$M59&\"_new\",Ammortamento_Finanziario!$H:$L,5,FALSE),VLOOKUP($M59,TT_Tabelle_Riferimento!$D$127:$H$164,5,FALSE))","v":5},{"$f":"+IFERROR(VLOOKUP(QN$27&\"-\"&$M59&\"_new\",Ammortamento_Finanziario!$H:$L,5,FALSE),VLOOKUP($M59,TT_Tabelle_Riferimento!$D$127:$H$164,5,FALSE))","v":5},{"$f":"+IFERROR(VLOOKUP(QO$27&\"-\"&$M59&\"_new\",Ammortamento_Finanziario!$H:$L,5,FALSE),VLOOKUP($M59,TT_Tabelle_Riferimento!$D$127:$H$164,5,FALSE))","v":5},{"$f":"+IFERROR(VLOOKUP(QP$27&\"-\"&$M59&\"_new\",Ammortamento_Finanziario!$H:$L,5,FALSE),VLOOKUP($M59,TT_Tabelle_Riferimento!$D$127:$H$164,5,FALSE))","v":5},{"$f":"+IFERROR(VLOOKUP(QQ$27&\"-\"&$M59&\"_new\",Ammortamento_Finanziario!$H:$L,5,FALSE),VLOOKUP($M59,TT_Tabelle_Riferimento!$D$127:$H$164,5,FALSE))","v":5},{"$f":"+IFERROR(VLOOKUP(QR$27&\"-\"&$M59&\"_new\",Ammortamento_Finanziario!$H:$L,5,FALSE),VLOOKUP($M59,TT_Tabelle_Riferimento!$D$127:$H$164,5,FALSE))","v":5},{"$f":"+IFERROR(VLOOKUP(QS$27&\"-\"&$M59&\"_new\",Ammortamento_Finanziario!$H:$L,5,FALSE),VLOOKUP($M59,TT_Tabelle_Riferimento!$D$127:$H$164,5,FALSE))","v":5},{"$f":"+IFERROR(VLOOKUP(QT$27&\"-\"&$M59&\"_new\",Ammortamento_Finanziario!$H:$L,5,FALSE),VLOOKUP($M59,TT_Tabelle_Riferimento!$D$127:$H$164,5,FALSE))","v":5},{"$f":"+IFERROR(VLOOKUP(QU$27&\"-\"&$M59&\"_new\",Ammortamento_Finanziario!$H:$L,5,FALSE),VLOOKUP($M59,TT_Tabelle_Riferimento!$D$127:$H$164,5,FALSE))","v":5},{"$f":"+IFERROR(VLOOKUP(QV$27&\"-\"&$M59&\"_new\",Ammortamento_Finanziario!$H:$L,5,FALSE),VLOOKUP($M59,TT_Tabelle_Riferimento!$D$127:$H$164,5,FALSE))","v":5},{"$f":"+IFERROR(VLOOKUP(QW$27&\"-\"&$M59&\"_new\",Ammortamento_Finanziario!$H:$L,5,FALSE),VLOOKUP($M59,TT_Tabelle_Riferimento!$D$127:$H$164,5,FALSE))","v":5},{"$f":"+IFERROR(VLOOKUP(QX$27&\"-\"&$M59&\"_new\",Ammortamento_Finanziario!$H:$L,5,FALSE),VLOOKUP($M59,TT_Tabelle_Riferimento!$D$127:$H$164,5,FALSE))","v":5},{"$f":"+IFERROR(VLOOKUP(QY$27&\"-\"&$M59&\"_new\",Ammortamento_Finanziario!$H:$L,5,FALSE),VLOOKUP($M59,TT_Tabelle_Riferimento!$D$127:$H$164,5,FALSE))","v":5},{"$f":"+IFERROR(VLOOKUP(QZ$27&\"-\"&$M59&\"_new\",Ammortamento_Finanziario!$H:$L,5,FALSE),VLOOKUP($M59,TT_Tabelle_Riferimento!$D$127:$H$164,5,FALSE))","v":5},{"$f":"+IFERROR(VLOOKUP(RA$27&\"-\"&$M59&\"_new\",Ammortamento_Finanziario!$H:$L,5,FALSE),VLOOKUP($M59,TT_Tabelle_Riferimento!$D$127:$H$164,5,FALSE))","v":5},{"$f":"+IFERROR(VLOOKUP(RB$27&\"-\"&$M59&\"_new\",Ammortamento_Finanziario!$H:$L,5,FALSE),VLOOKUP($M59,TT_Tabelle_Riferimento!$D$127:$H$164,5,FALSE))","v":5},{"$f":"+IFERROR(VLOOKUP(RC$27&\"-\"&$M59&\"_new\",Ammortamento_Finanziario!$H:$L,5,FALSE),VLOOKUP($M59,TT_Tabelle_Riferimento!$D$127:$H$164,5,FALSE))","v":5},{"$f":"+IFERROR(VLOOKUP(RD$27&\"-\"&$M59&\"_new\",Ammortamento_Finanziario!$H:$L,5,FALSE),VLOOKUP($M59,TT_Tabelle_Riferimento!$D$127:$H$164,5,FALSE))","v":5},{"$f":"+IFERROR(VLOOKUP(RE$27&\"-\"&$M59&\"_new\",Ammortamento_Finanziario!$H:$L,5,FALSE),VLOOKUP($M59,TT_Tabelle_Riferimento!$D$127:$H$164,5,FALSE))","v":5},{"$f":"+IFERROR(VLOOKUP(RF$27&\"-\"&$M59&\"_new\",Ammortamento_Finanziario!$H:$L,5,FALSE),VLOOKUP($M59,TT_Tabelle_Riferimento!$D$127:$H$164,5,FALSE))","v":5},{"$f":"+IFERROR(VLOOKUP(RG$27&\"-\"&$M59&\"_new\",Ammortamento_Finanziario!$H:$L,5,FALSE),VLOOKUP($M59,TT_Tabelle_Riferimento!$D$127:$H$164,5,FALSE))","v":5},{"$f":"+IFERROR(VLOOKUP(RH$27&\"-\"&$M59&\"_new\",Ammortamento_Finanziario!$H:$L,5,FALSE),VLOOKUP($M59,TT_Tabelle_Riferimento!$D$127:$H$164,5,FALSE))","v":5},{"$f":"+IFERROR(VLOOKUP(RI$27&\"-\"&$M59&\"_new\",Ammortamento_Finanziario!$H:$L,5,FALSE),VLOOKUP($M59,TT_Tabelle_Riferimento!$D$127:$H$164,5,FALSE))","v":5},{"$f":"+IFERROR(VLOOKUP(RJ$27&\"-\"&$M59&\"_new\",Ammortamento_Finanziario!$H:$L,5,FALSE),VLOOKUP($M59,TT_Tabelle_Riferimento!$D$127:$H$164,5,FALSE))","v":5},{"$f":"+IFERROR(VLOOKUP(RK$27&\"-\"&$M59&\"_new\",Ammortamento_Finanziario!$H:$L,5,FALSE),VLOOKUP($M59,TT_Tabelle_Riferimento!$D$127:$H$164,5,FALSE))","v":5},{"$f":"+IFERROR(VLOOKUP(RL$27&\"-\"&$M59&\"_new\",Ammortamento_Finanziario!$H:$L,5,FALSE),VLOOKUP($M59,TT_Tabelle_Riferimento!$D$127:$H$164,5,FALSE))","v":5},{"$f":"+IFERROR(VLOOKUP(RM$27&\"-\"&$M59&\"_new\",Ammortamento_Finanziario!$H:$L,5,FALSE),VLOOKUP($M59,TT_Tabelle_Riferimento!$D$127:$H$164,5,FALSE))","v":5},{"$f":"+IFERROR(VLOOKUP(RN$27&\"-\"&$M59&\"_new\",Ammortamento_Finanziario!$H:$L,5,FALSE),VLOOKUP($M59,TT_Tabelle_Riferimento!$D$127:$H$164,5,FALSE))","v":5},{"$f":"+IFERROR(VLOOKUP(RO$27&\"-\"&$M59&\"_new\",Ammortamento_Finanziario!$H:$L,5,FALSE),VLOOKUP($M59,TT_Tabelle_Riferimento!$D$127:$H$164,5,FALSE))","v":5},{"$f":"+IFERROR(VLOOKUP(RP$27&\"-\"&$M59&\"_new\",Ammortamento_Finanziario!$H:$L,5,FALSE),VLOOKUP($M59,TT_Tabelle_Riferimento!$D$127:$H$164,5,FALSE))","v":5},{"$f":"+IFERROR(VLOOKUP(RQ$27&\"-\"&$M59&\"_new\",Ammortamento_Finanziario!$H:$L,5,FALSE),VLOOKUP($M59,TT_Tabelle_Riferimento!$D$127:$H$164,5,FALSE))","v":5},{"$f":"+IFERROR(VLOOKUP(RR$27&\"-\"&$M59&\"_new\",Ammortamento_Finanziario!$H:$L,5,FALSE),VLOOKUP($M59,TT_Tabelle_Riferimento!$D$127:$H$164,5,FALSE))","v":5},{"$f":"+IFERROR(VLOOKUP(RS$27&\"-\"&$M59&\"_new\",Ammortamento_Finanziario!$H:$L,5,FALSE),VLOOKUP($M59,TT_Tabelle_Riferimento!$D$127:$H$164,5,FALSE))","v":5},{"$f":"+IFERROR(VLOOKUP(RT$27&\"-\"&$M59&\"_new\",Ammortamento_Finanziario!$H:$L,5,FALSE),VLOOKUP($M59,TT_Tabelle_Riferimento!$D$127:$H$164,5,FALSE))","v":5},{"$f":"+IFERROR(VLOOKUP(RU$27&\"-\"&$M59&\"_new\",Ammortamento_Finanziario!$H:$L,5,FALSE),VLOOKUP($M59,TT_Tabelle_Riferimento!$D$127:$H$164,5,FALSE))","v":5},{"$f":"+IFERROR(VLOOKUP(RV$27&\"-\"&$M59&\"_new\",Ammortamento_Finanziario!$H:$L,5,FALSE),VLOOKUP($M59,TT_Tabelle_Riferimento!$D$127:$H$164,5,FALSE))","v":5}]
[null,null,null,"CINfp",{"$f":"+SUMIFS(IMN_gestore!W:W,IMN_gestore!$G:$G,\"Res\")","v":0},{"$f":"+SUMIFS(IMN_gestore!AH:AH,IMN_gestore!$G:$G,\"Res\")","v":0},{"$f":"+SUMIFS(IMN_gestore!AS:AS,IMN_gestore!$G:$G,\"Res\")","v":0},{"$f":"+SUMIFS(IMN_gestore!BD:BD,IMN_gestore!$G:$G,\"Res\")","v":0},{"$f":"+SUMIFS(IMN_gestore!$BO:$BO,IMN_gestore!$G:$G,\"Res\")","v":0},{"$f":"+SUMIFS(IMN_gestore!$BZ:$BZ,IMN_gestore!$G:$G,\"Res\")","v":0},null,null,33,0,0,0,0,0,0,0,0,0,0,0,0,0,0,0,0,0,0,0,0,0,0,0,0,0,0,0,0,0,0,0,0,0,0,0,0,0,0,0,0,0,0,0,0,0,0,0,0,0,0,0,0,0,0,0,0,0,0,0,0,0,0,0,0,0,0,0,0,0,0,0,0,0,0,0,0,0,0,0,0,0,0,0,0,0,0,0,0,0,0,0,0,0,0,0,0,0,0,0,0,0,0,0,0,0,0,0,0,0,0,0,0,0,0,0,0,0,0,0,0,0,0,0,0,0,0,0,0,0,0,0,0,0,0,0,0,0,0,0,0,0,0,0,0,0,0,0,0,0,0,0,0,0,0,0,0,0,0,0,0,0,0,0,0,0,0,0,0,0,0,0,0,0,0,0,0,0,0,0,0,0,0,0,0,0,0,0,0,0,0,0,0,0,0,0,0,0,0,0,0,0,0,0,0,0,0,0,0,0,0,0,0,0,0,0,0,0,0,0,0,0,0,0,0,0,0,0,0,0,0,0,0,0,0,0,0,0,0,0,0,0,0,0,0,0,0,0,0,0,0,0,0,0,0,0,0,0,0,0,0,0,0,0,0,0,0,0,0,0,0,0,0,0,0,0,0,0,0,0,0,0,0,0,0,0,0,0,0,0,{"$f":"+IFERROR(VLOOKUP(KQ$27&\"-\"&$M60&\"_new\",Ammortamento_Finanziario!$H:$L,5,FALSE),VLOOKUP($M60,TT_Tabelle_Riferimento!$D$127:$H$164,5,FALSE))","v":40},{"$f":"+IFERROR(VLOOKUP(KR$27&\"-\"&$M60&\"_new\",Ammortamento_Finanziario!$H:$L,5,FALSE),VLOOKUP($M60,TT_Tabelle_Riferimento!$D$127:$H$164,5,FALSE))","v":40},{"$f":"+IFERROR(VLOOKUP(KS$27&\"-\"&$M60&\"_new\",Ammortamento_Finanziario!$H:$L,5,FALSE),VLOOKUP($M60,TT_Tabelle_Riferimento!$D$127:$H$164,5,FALSE))","v":40},{"$f":"+IFERROR(VLOOKUP(KT$27&\"-\"&$M60&\"_new\",Ammortamento_Finanziario!$H:$L,5,FALSE),VLOOKUP($M60,TT_Tabelle_Riferimento!$D$127:$H$164,5,FALSE))","v":40},{"$f":"+IFERROR(VLOOKUP(KU$27&\"-\"&$M60&\"_new\",Ammortamento_Finanziario!$H:$L,5,FALSE),VLOOKUP($M60,TT_Tabelle_Riferimento!$D$127:$H$164,5,FALSE))","v":40},{"$f":"+IFERROR(VLOOKUP(KV$27&\"-\"&$M60&\"_new\",Ammortamento_Finanziario!$H:$L,5,FALSE),VLOOKUP($M60,TT_Tabelle_Riferimento!$D$127:$H$164,5,FALSE))","v":40},{"$f":"+IFERROR(VLOOKUP(KW$27&\"-\"&$M60&\"_new\",Ammortamento_Finanziario!$H:$L,5,FALSE),VLOOKUP($M60,TT_Tabelle_Riferimento!$D$127:$H$164,5,FALSE))","v":40},{"$f":"+IFERROR(VLOOKUP(KX$27&\"-\"&$M60&\"_new\",Ammortamento_Finanziario!$H:$L,5,FALSE),VLOOKUP($M60,TT_Tabelle_Riferimento!$D$127:$H$164,5,FALSE))","v":40},{"$f":"+IFERROR(VLOOKUP(KY$27&\"-\"&$M60&\"_new\",Ammortamento_Finanziario!$H:$L,5,FALSE),VLOOKUP($M60,TT_Tabelle_Riferimento!$D$127:$H$164,5,FALSE))","v":40},{"$f":"+IFERROR(VLOOKUP(KZ$27&\"-\"&$M60&\"_new\",Ammortamento_Finanziario!$H:$L,5,FALSE),VLOOKUP($M60,TT_Tabelle_Riferimento!$D$127:$H$164,5,FALSE))","v":40},{"$f":"+IFERROR(VLOOKUP(LA$27&\"-\"&$M60&\"_new\",Ammortamento_Finanziario!$H:$L,5,FALSE),VLOOKUP($M60,TT_Tabelle_Riferimento!$D$127:$H$164,5,FALSE))","v":40},{"$f":"+IFERROR(VLOOKUP(LB$27&\"-\"&$M60&\"_new\",Ammortamento_Finanziario!$H:$L,5,FALSE),VLOOKUP($M60,TT_Tabelle_Riferimento!$D$127:$H$164,5,FALSE))","v":40},{"$f":"+IFERROR(VLOOKUP(LC$27&\"-\"&$M60&\"_new\",Ammortamento_Finanziario!$H:$L,5,FALSE),VLOOKUP($M60,TT_Tabelle_Riferimento!$D$127:$H$164,5,FALSE))","v":40},{"$f":"+IFERROR(VLOOKUP(LD$27&\"-\"&$M60&\"_new\",Ammortamento_Finanziario!$H:$L,5,FALSE),VLOOKUP($M60,TT_Tabelle_Riferimento!$D$127:$H$164,5,FALSE))","v":40},{"$f":"+IFERROR(VLOOKUP(LE$27&\"-\"&$M60&\"_new\",Ammortamento_Finanziario!$H:$L,5,FALSE),VLOOKUP($M60,TT_Tabelle_Riferimento!$D$127:$H$164,5,FALSE))","v":40},{"$f":"+IFERROR(VLOOKUP(LF$27&\"-\"&$M60&\"_new\",Ammortamento_Finanziario!$H:$L,5,FALSE),VLOOKUP($M60,TT_Tabelle_Riferimento!$D$127:$H$164,5,FALSE))","v":40},{"$f":"+IFERROR(VLOOKUP(LG$27&\"-\"&$M60&\"_new\",Ammortamento_Finanziario!$H:$L,5,FALSE),VLOOKUP($M60,TT_Tabelle_Riferimento!$D$127:$H$164,5,FALSE))","v":40},{"$f":"+IFERROR(VLOOKUP(LH$27&\"-\"&$M60&\"_new\",Ammortamento_Finanziario!$H:$L,5,FALSE),VLOOKUP($M60,TT_Tabelle_Riferimento!$D$127:$H$164,5,FALSE))","v":40},{"$f":"+IFERROR(VLOOKUP(LI$27&\"-\"&$M60&\"_new\",Ammortamento_Finanziario!$H:$L,5,FALSE),VLOOKUP($M60,TT_Tabelle_Riferimento!$D$127:$H$164,5,FALSE))","v":40},{"$f":"+IFERROR(VLOOKUP(LJ$27&\"-\"&$M60&\"_new\",Ammortamento_Finanziario!$H:$L,5,FALSE),VLOOKUP($M60,TT_Tabelle_Riferimento!$D$127:$H$164,5,FALSE))","v":40},{"$f":"+IFERROR(VLOOKUP(LK$27&\"-\"&$M60&\"_new\",Ammortamento_Finanziario!$H:$L,5,FALSE),VLOOKUP($M60,TT_Tabelle_Riferimento!$D$127:$H$164,5,FALSE))","v":40},{"$f":"+IFERROR(VLOOKUP(LL$27&\"-\"&$M60&\"_new\",Ammortamento_Finanziario!$H:$L,5,FALSE),VLOOKUP($M60,TT_Tabelle_Riferimento!$D$127:$H$164,5,FALSE))","v":40},{"$f":"+IFERROR(VLOOKUP(LM$27&\"-\"&$M60&\"_new\",Ammortamento_Finanziario!$H:$L,5,FALSE),VLOOKUP($M60,TT_Tabelle_Riferimento!$D$127:$H$164,5,FALSE))","v":40},{"$f":"+IFERROR(VLOOKUP(LN$27&\"-\"&$M60&\"_new\",Ammortamento_Finanziario!$H:$L,5,FALSE),VLOOKUP($M60,TT_Tabelle_Riferimento!$D$127:$H$164,5,FALSE))","v":40},{"$f":"+IFERROR(VLOOKUP(LO$27&\"-\"&$M60&\"_new\",Ammortamento_Finanziario!$H:$L,5,FALSE),VLOOKUP($M60,TT_Tabelle_Riferimento!$D$127:$H$164,5,FALSE))","v":40},{"$f":"+IFERROR(VLOOKUP(LP$27&\"-\"&$M60&\"_new\",Ammortamento_Finanziario!$H:$L,5,FALSE),VLOOKUP($M60,TT_Tabelle_Riferimento!$D$127:$H$164,5,FALSE))","v":40},{"$f":"+IFERROR(VLOOKUP(LQ$27&\"-\"&$M60&\"_new\",Ammortamento_Finanziario!$H:$L,5,FALSE),VLOOKUP($M60,TT_Tabelle_Riferimento!$D$127:$H$164,5,FALSE))","v":40},{"$f":"+IFERROR(VLOOKUP(LR$27&\"-\"&$M60&\"_new\",Ammortamento_Finanziario!$H:$L,5,FALSE),VLOOKUP($M60,TT_Tabelle_Riferimento!$D$127:$H$164,5,FALSE))","v":40},{"$f":"+IFERROR(VLOOKUP(LS$27&\"-\"&$M60&\"_new\",Ammortamento_Finanziario!$H:$L,5,FALSE),VLOOKUP($M60,TT_Tabelle_Riferimento!$D$127:$H$164,5,FALSE))","v":40},{"$f":"+IFERROR(VLOOKUP(LT$27&\"-\"&$M60&\"_new\",Ammortamento_Finanziario!$H:$L,5,FALSE),VLOOKUP($M60,TT_Tabelle_Riferimento!$D$127:$H$164,5,FALSE))","v":40},{"$f":"+IFERROR(VLOOKUP(LU$27&\"-\"&$M60&\"_new\",Ammortamento_Finanziario!$H:$L,5,FALSE),VLOOKUP($M60,TT_Tabelle_Riferimento!$D$127:$H$164,5,FALSE))","v":40},{"$f":"+IFERROR(VLOOKUP(LV$27&\"-\"&$M60&\"_new\",Ammortamento_Finanziario!$H:$L,5,FALSE),VLOOKUP($M60,TT_Tabelle_Riferimento!$D$127:$H$164,5,FALSE))","v":40},{"$f":"+IFERROR(VLOOKUP(LW$27&\"-\"&$M60&\"_new\",Ammortamento_Finanziario!$H:$L,5,FALSE),VLOOKUP($M60,TT_Tabelle_Riferimento!$D$127:$H$164,5,FALSE))","v":40},{"$f":"+IFERROR(VLOOKUP(LX$27&\"-\"&$M60&\"_new\",Ammortamento_Finanziario!$H:$L,5,FALSE),VLOOKUP($M60,TT_Tabelle_Riferimento!$D$127:$H$164,5,FALSE))","v":40},{"$f":"+IFERROR(VLOOKUP(LY$27&\"-\"&$M60&\"_new\",Ammortamento_Finanziario!$H:$L,5,FALSE),VLOOKUP($M60,TT_Tabelle_Riferimento!$D$127:$H$164,5,FALSE))","v":40},{"$f":"+IFERROR(VLOOKUP(LZ$27&\"-\"&$M60&\"_new\",Ammortamento_Finanziario!$H:$L,5,FALSE),VLOOKUP($M60,TT_Tabelle_Riferimento!$D$127:$H$164,5,FALSE))","v":40},{"$f":"+IFERROR(VLOOKUP(MA$27&\"-\"&$M60&\"_new\",Ammortamento_Finanziario!$H:$L,5,FALSE),VLOOKUP($M60,TT_Tabelle_Riferimento!$D$127:$H$164,5,FALSE))","v":40},{"$f":"+IFERROR(VLOOKUP(MB$27&\"-\"&$M60&\"_new\",Ammortamento_Finanziario!$H:$L,5,FALSE),VLOOKUP($M60,TT_Tabelle_Riferimento!$D$127:$H$164,5,FALSE))","v":40},{"$f":"+IFERROR(VLOOKUP(MC$27&\"-\"&$M60&\"_new\",Ammortamento_Finanziario!$H:$L,5,FALSE),VLOOKUP($M60,TT_Tabelle_Riferimento!$D$127:$H$164,5,FALSE))","v":40},{"$f":"+IFERROR(VLOOKUP(MD$27&\"-\"&$M60&\"_new\",Ammortamento_Finanziario!$H:$L,5,FALSE),VLOOKUP($M60,TT_Tabelle_Riferimento!$D$127:$H$164,5,FALSE))","v":40},{"$f":"+IFERROR(VLOOKUP(ME$27&\"-\"&$M60&\"_new\",Ammortamento_Finanziario!$H:$L,5,FALSE),VLOOKUP($M60,TT_Tabelle_Riferimento!$D$127:$H$164,5,FALSE))","v":40},{"$f":"+IFERROR(VLOOKUP(MF$27&\"-\"&$M60&\"_new\",Ammortamento_Finanziario!$H:$L,5,FALSE),VLOOKUP($M60,TT_Tabelle_Riferimento!$D$127:$H$164,5,FALSE))","v":40},{"$f":"+IFERROR(VLOOKUP(MG$27&\"-\"&$M60&\"_new\",Ammortamento_Finanziario!$H:$L,5,FALSE),VLOOKUP($M60,TT_Tabelle_Riferimento!$D$127:$H$164,5,FALSE))","v":40},{"$f":"+IFERROR(VLOOKUP(MH$27&\"-\"&$M60&\"_new\",Ammortamento_Finanziario!$H:$L,5,FALSE),VLOOKUP($M60,TT_Tabelle_Riferimento!$D$127:$H$164,5,FALSE))","v":40},{"$f":"+IFERROR(VLOOKUP(MI$27&\"-\"&$M60&\"_new\",Ammortamento_Finanziario!$H:$L,5,FALSE),VLOOKUP($M60,TT_Tabelle_Riferimento!$D$127:$H$164,5,FALSE))","v":40},{"$f":"+IFERROR(VLOOKUP(MJ$27&\"-\"&$M60&\"_new\",Ammortamento_Finanziario!$H:$L,5,FALSE),VLOOKUP($M60,TT_Tabelle_Riferimento!$D$127:$H$164,5,FALSE))","v":40},{"$f":"+IFERROR(VLOOKUP(MK$27&\"-\"&$M60&\"_new\",Ammortamento_Finanziario!$H:$L,5,FALSE),VLOOKUP($M60,TT_Tabelle_Riferimento!$D$127:$H$164,5,FALSE))","v":40},{"$f":"+IFERROR(VLOOKUP(ML$27&\"-\"&$M60&\"_new\",Ammortamento_Finanziario!$H:$L,5,FALSE),VLOOKUP($M60,TT_Tabelle_Riferimento!$D$127:$H$164,5,FALSE))","v":40},{"$f":"+IFERROR(VLOOKUP(MM$27&\"-\"&$M60&\"_new\",Ammortamento_Finanziario!$H:$L,5,FALSE),VLOOKUP($M60,TT_Tabelle_Riferimento!$D$127:$H$164,5,FALSE))","v":40},{"$f":"+IFERROR(VLOOKUP(MN$27&\"-\"&$M60&\"_new\",Ammortamento_Finanziario!$H:$L,5,FALSE),VLOOKUP($M60,TT_Tabelle_Riferimento!$D$127:$H$164,5,FALSE))","v":40},{"$f":"+IFERROR(VLOOKUP(MO$27&\"-\"&$M60&\"_new\",Ammortamento_Finanziario!$H:$L,5,FALSE),VLOOKUP($M60,TT_Tabelle_Riferimento!$D$127:$H$164,5,FALSE))","v":40},{"$f":"+IFERROR(VLOOKUP(MP$27&\"-\"&$M60&\"_new\",Ammortamento_Finanziario!$H:$L,5,FALSE),VLOOKUP($M60,TT_Tabelle_Riferimento!$D$127:$H$164,5,FALSE))","v":40},{"$f":"+IFERROR(VLOOKUP(MQ$27&\"-\"&$M60&\"_new\",Ammortamento_Finanziario!$H:$L,5,FALSE),VLOOKUP($M60,TT_Tabelle_Riferimento!$D$127:$H$164,5,FALSE))","v":40},{"$f":"+IFERROR(VLOOKUP(MR$27&\"-\"&$M60&\"_new\",Ammortamento_Finanziario!$H:$L,5,FALSE),VLOOKUP($M60,TT_Tabelle_Riferimento!$D$127:$H$164,5,FALSE))","v":40},{"$f":"+IFERROR(VLOOKUP(MS$27&\"-\"&$M60&\"_new\",Ammortamento_Finanziario!$H:$L,5,FALSE),VLOOKUP($M60,TT_Tabelle_Riferimento!$D$127:$H$164,5,FALSE))","v":40},{"$f":"+IFERROR(VLOOKUP(MT$27&\"-\"&$M60&\"_new\",Ammortamento_Finanziario!$H:$L,5,FALSE),VLOOKUP($M60,TT_Tabelle_Riferimento!$D$127:$H$164,5,FALSE))","v":40},{"$f":"+IFERROR(VLOOKUP(MU$27&\"-\"&$M60&\"_new\",Ammortamento_Finanziario!$H:$L,5,FALSE),VLOOKUP($M60,TT_Tabelle_Riferimento!$D$127:$H$164,5,FALSE))","v":40},{"$f":"+IFERROR(VLOOKUP(MV$27&\"-\"&$M60&\"_new\",Ammortamento_Finanziario!$H:$L,5,FALSE),VLOOKUP($M60,TT_Tabelle_Riferimento!$D$127:$H$164,5,FALSE))","v":40},{"$f":"+IFERROR(VLOOKUP(MW$27&\"-\"&$M60&\"_new\",Ammortamento_Finanziario!$H:$L,5,FALSE),VLOOKUP($M60,TT_Tabelle_Riferimento!$D$127:$H$164,5,FALSE))","v":40},{"$f":"+IFERROR(VLOOKUP(MX$27&\"-\"&$M60&\"_new\",Ammortamento_Finanziario!$H:$L,5,FALSE),VLOOKUP($M60,TT_Tabelle_Riferimento!$D$127:$H$164,5,FALSE))","v":40},{"$f":"+IFERROR(VLOOKUP(MY$27&\"-\"&$M60&\"_new\",Ammortamento_Finanziario!$H:$L,5,FALSE),VLOOKUP($M60,TT_Tabelle_Riferimento!$D$127:$H$164,5,FALSE))","v":40},{"$f":"+IFERROR(VLOOKUP(MZ$27&\"-\"&$M60&\"_new\",Ammortamento_Finanziario!$H:$L,5,FALSE),VLOOKUP($M60,TT_Tabelle_Riferimento!$D$127:$H$164,5,FALSE))","v":40},{"$f":"+IFERROR(VLOOKUP(NA$27&\"-\"&$M60&\"_new\",Ammortamento_Finanziario!$H:$L,5,FALSE),VLOOKUP($M60,TT_Tabelle_Riferimento!$D$127:$H$164,5,FALSE))","v":40},{"$f":"+IFERROR(VLOOKUP(NB$27&\"-\"&$M60&\"_new\",Ammortamento_Finanziario!$H:$L,5,FALSE),VLOOKUP($M60,TT_Tabelle_Riferimento!$D$127:$H$164,5,FALSE))","v":40},{"$f":"+IFERROR(VLOOKUP(NC$27&\"-\"&$M60&\"_new\",Ammortamento_Finanziario!$H:$L,5,FALSE),VLOOKUP($M60,TT_Tabelle_Riferimento!$D$127:$H$164,5,FALSE))","v":40},{"$f":"+IFERROR(VLOOKUP(ND$27&\"-\"&$M60&\"_new\",Ammortamento_Finanziario!$H:$L,5,FALSE),VLOOKUP($M60,TT_Tabelle_Riferimento!$D$127:$H$164,5,FALSE))","v":40},{"$f":"+IFERROR(VLOOKUP(NE$27&\"-\"&$M60&\"_new\",Ammortamento_Finanziario!$H:$L,5,FALSE),VLOOKUP($M60,TT_Tabelle_Riferimento!$D$127:$H$164,5,FALSE))","v":40},{"$f":"+IFERROR(VLOOKUP(NF$27&\"-\"&$M60&\"_new\",Ammortamento_Finanziario!$H:$L,5,FALSE),VLOOKUP($M60,TT_Tabelle_Riferimento!$D$127:$H$164,5,FALSE))","v":40},{"$f":"+IFERROR(VLOOKUP(NG$27&\"-\"&$M60&\"_new\",Ammortamento_Finanziario!$H:$L,5,FALSE),VLOOKUP($M60,TT_Tabelle_Riferimento!$D$127:$H$164,5,FALSE))","v":40},{"$f":"+IFERROR(VLOOKUP(NH$27&\"-\"&$M60&\"_new\",Ammortamento_Finanziario!$H:$L,5,FALSE),VLOOKUP($M60,TT_Tabelle_Riferimento!$D$127:$H$164,5,FALSE))","v":40},{"$f":"+IFERROR(VLOOKUP(NI$27&\"-\"&$M60&\"_new\",Ammortamento_Finanziario!$H:$L,5,FALSE),VLOOKUP($M60,TT_Tabelle_Riferimento!$D$127:$H$164,5,FALSE))","v":40},{"$f":"+IFERROR(VLOOKUP(NJ$27&\"-\"&$M60&\"_new\",Ammortamento_Finanziario!$H:$L,5,FALSE),VLOOKUP($M60,TT_Tabelle_Riferimento!$D$127:$H$164,5,FALSE))","v":40},{"$f":"+IFERROR(VLOOKUP(NK$27&\"-\"&$M60&\"_new\",Ammortamento_Finanziario!$H:$L,5,FALSE),VLOOKUP($M60,TT_Tabelle_Riferimento!$D$127:$H$164,5,FALSE))","v":40},{"$f":"+IFERROR(VLOOKUP(NL$27&\"-\"&$M60&\"_new\",Ammortamento_Finanziario!$H:$L,5,FALSE),VLOOKUP($M60,TT_Tabelle_Riferimento!$D$127:$H$164,5,FALSE))","v":40},{"$f":"+IFERROR(VLOOKUP(NM$27&\"-\"&$M60&\"_new\",Ammortamento_Finanziario!$H:$L,5,FALSE),VLOOKUP($M60,TT_Tabelle_Riferimento!$D$127:$H$164,5,FALSE))","v":40},{"$f":"+IFERROR(VLOOKUP(NN$27&\"-\"&$M60&\"_new\",Ammortamento_Finanziario!$H:$L,5,FALSE),VLOOKUP($M60,TT_Tabelle_Riferimento!$D$127:$H$164,5,FALSE))","v":40},{"$f":"+IFERROR(VLOOKUP(NO$27&\"-\"&$M60&\"_new\",Ammortamento_Finanziario!$H:$L,5,FALSE),VLOOKUP($M60,TT_Tabelle_Riferimento!$D$127:$H$164,5,FALSE))","v":40},{"$f":"+IFERROR(VLOOKUP(NP$27&\"-\"&$M60&\"_new\",Ammortamento_Finanziario!$H:$L,5,FALSE),VLOOKUP($M60,TT_Tabelle_Riferimento!$D$127:$H$164,5,FALSE))","v":40},{"$f":"+IFERROR(VLOOKUP(NQ$27&\"-\"&$M60&\"_new\",Ammortamento_Finanziario!$H:$L,5,FALSE),VLOOKUP($M60,TT_Tabelle_Riferimento!$D$127:$H$164,5,FALSE))","v":40},{"$f":"+IFERROR(VLOOKUP(NR$27&\"-\"&$M60&\"_new\",Ammortamento_Finanziario!$H:$L,5,FALSE),VLOOKUP($M60,TT_Tabelle_Riferimento!$D$127:$H$164,5,FALSE))","v":40},{"$f":"+IFERROR(VLOOKUP(NS$27&\"-\"&$M60&\"_new\",Ammortamento_Finanziario!$H:$L,5,FALSE),VLOOKUP($M60,TT_Tabelle_Riferimento!$D$127:$H$164,5,FALSE))","v":40},{"$f":"+IFERROR(VLOOKUP(NT$27&\"-\"&$M60&\"_new\",Ammortamento_Finanziario!$H:$L,5,FALSE),VLOOKUP($M60,TT_Tabelle_Riferimento!$D$127:$H$164,5,FALSE))","v":40},{"$f":"+IFERROR(VLOOKUP(NU$27&\"-\"&$M60&\"_new\",Ammortamento_Finanziario!$H:$L,5,FALSE),VLOOKUP($M60,TT_Tabelle_Riferimento!$D$127:$H$164,5,FALSE))","v":40},{"$f":"+IFERROR(VLOOKUP(NV$27&\"-\"&$M60&\"_new\",Ammortamento_Finanziario!$H:$L,5,FALSE),VLOOKUP($M60,TT_Tabelle_Riferimento!$D$127:$H$164,5,FALSE))","v":40},{"$f":"+IFERROR(VLOOKUP(NW$27&\"-\"&$M60&\"_new\",Ammortamento_Finanziario!$H:$L,5,FALSE),VLOOKUP($M60,TT_Tabelle_Riferimento!$D$127:$H$164,5,FALSE))","v":40},{"$f":"+IFERROR(VLOOKUP(NX$27&\"-\"&$M60&\"_new\",Ammortamento_Finanziario!$H:$L,5,FALSE),VLOOKUP($M60,TT_Tabelle_Riferimento!$D$127:$H$164,5,FALSE))","v":40},{"$f":"+IFERROR(VLOOKUP(NY$27&\"-\"&$M60&\"_new\",Ammortamento_Finanziario!$H:$L,5,FALSE),VLOOKUP($M60,TT_Tabelle_Riferimento!$D$127:$H$164,5,FALSE))","v":40},{"$f":"+IFERROR(VLOOKUP(NZ$27&\"-\"&$M60&\"_new\",Ammortamento_Finanziario!$H:$L,5,FALSE),VLOOKUP($M60,TT_Tabelle_Riferimento!$D$127:$H$164,5,FALSE))","v":40},{"$f":"+IFERROR(VLOOKUP(OA$27&\"-\"&$M60&\"_new\",Ammortamento_Finanziario!$H:$L,5,FALSE),VLOOKUP($M60,TT_Tabelle_Riferimento!$D$127:$H$164,5,FALSE))","v":40},{"$f":"+IFERROR(VLOOKUP(OB$27&\"-\"&$M60&\"_new\",Ammortamento_Finanziario!$H:$L,5,FALSE),VLOOKUP($M60,TT_Tabelle_Riferimento!$D$127:$H$164,5,FALSE))","v":40},{"$f":"+IFERROR(VLOOKUP(OC$27&\"-\"&$M60&\"_new\",Ammortamento_Finanziario!$H:$L,5,FALSE),VLOOKUP($M60,TT_Tabelle_Riferimento!$D$127:$H$164,5,FALSE))","v":40},{"$f":"+IFERROR(VLOOKUP(OD$27&\"-\"&$M60&\"_new\",Ammortamento_Finanziario!$H:$L,5,FALSE),VLOOKUP($M60,TT_Tabelle_Riferimento!$D$127:$H$164,5,FALSE))","v":40},{"$f":"+IFERROR(VLOOKUP(OE$27&\"-\"&$M60&\"_new\",Ammortamento_Finanziario!$H:$L,5,FALSE),VLOOKUP($M60,TT_Tabelle_Riferimento!$D$127:$H$164,5,FALSE))","v":40},{"$f":"+IFERROR(VLOOKUP(OF$27&\"-\"&$M60&\"_new\",Ammortamento_Finanziario!$H:$L,5,FALSE),VLOOKUP($M60,TT_Tabelle_Riferimento!$D$127:$H$164,5,FALSE))","v":40},{"$f":"+IFERROR(VLOOKUP(OG$27&\"-\"&$M60&\"_new\",Ammortamento_Finanziario!$H:$L,5,FALSE),VLOOKUP($M60,TT_Tabelle_Riferimento!$D$127:$H$164,5,FALSE))","v":40},{"$f":"+IFERROR(VLOOKUP(OH$27&\"-\"&$M60&\"_new\",Ammortamento_Finanziario!$H:$L,5,FALSE),VLOOKUP($M60,TT_Tabelle_Riferimento!$D$127:$H$164,5,FALSE))","v":40},{"$f":"+IFERROR(VLOOKUP(OI$27&\"-\"&$M60&\"_new\",Ammortamento_Finanziario!$H:$L,5,FALSE),VLOOKUP($M60,TT_Tabelle_Riferimento!$D$127:$H$164,5,FALSE))","v":40},{"$f":"+IFERROR(VLOOKUP(OJ$27&\"-\"&$M60&\"_new\",Ammortamento_Finanziario!$H:$L,5,FALSE),VLOOKUP($M60,TT_Tabelle_Riferimento!$D$127:$H$164,5,FALSE))","v":40},{"$f":"+IFERROR(VLOOKUP(OK$27&\"-\"&$M60&\"_new\",Ammortamento_Finanziario!$H:$L,5,FALSE),VLOOKUP($M60,TT_Tabelle_Riferimento!$D$127:$H$164,5,FALSE))","v":40},{"$f":"+IFERROR(VLOOKUP(OL$27&\"-\"&$M60&\"_new\",Ammortamento_Finanziario!$H:$L,5,FALSE),VLOOKUP($M60,TT_Tabelle_Riferimento!$D$127:$H$164,5,FALSE))","v":40},{"$f":"+IFERROR(VLOOKUP(OM$27&\"-\"&$M60&\"_new\",Ammortamento_Finanziario!$H:$L,5,FALSE),VLOOKUP($M60,TT_Tabelle_Riferimento!$D$127:$H$164,5,FALSE))","v":40},{"$f":"+IFERROR(VLOOKUP(ON$27&\"-\"&$M60&\"_new\",Ammortamento_Finanziario!$H:$L,5,FALSE),VLOOKUP($M60,TT_Tabelle_Riferimento!$D$127:$H$164,5,FALSE))","v":40},{"$f":"+IFERROR(VLOOKUP(OO$27&\"-\"&$M60&\"_new\",Ammortamento_Finanziario!$H:$L,5,FALSE),VLOOKUP($M60,TT_Tabelle_Riferimento!$D$127:$H$164,5,FALSE))","v":40},{"$f":"+IFERROR(VLOOKUP(OP$27&\"-\"&$M60&\"_new\",Ammortamento_Finanziario!$H:$L,5,FALSE),VLOOKUP($M60,TT_Tabelle_Riferimento!$D$127:$H$164,5,FALSE))","v":40},{"$f":"+IFERROR(VLOOKUP(OQ$27&\"-\"&$M60&\"_new\",Ammortamento_Finanziario!$H:$L,5,FALSE),VLOOKUP($M60,TT_Tabelle_Riferimento!$D$127:$H$164,5,FALSE))","v":40},{"$f":"+IFERROR(VLOOKUP(OR$27&\"-\"&$M60&\"_new\",Ammortamento_Finanziario!$H:$L,5,FALSE),VLOOKUP($M60,TT_Tabelle_Riferimento!$D$127:$H$164,5,FALSE))","v":40},{"$f":"+IFERROR(VLOOKUP(OS$27&\"-\"&$M60&\"_new\",Ammortamento_Finanziario!$H:$L,5,FALSE),VLOOKUP($M60,TT_Tabelle_Riferimento!$D$127:$H$164,5,FALSE))","v":40},{"$f":"+IFERROR(VLOOKUP(OT$27&\"-\"&$M60&\"_new\",Ammortamento_Finanziario!$H:$L,5,FALSE),VLOOKUP($M60,TT_Tabelle_Riferimento!$D$127:$H$164,5,FALSE))","v":40},{"$f":"+IFERROR(VLOOKUP(OU$27&\"-\"&$M60&\"_new\",Ammortamento_Finanziario!$H:$L,5,FALSE),VLOOKUP($M60,TT_Tabelle_Riferimento!$D$127:$H$164,5,FALSE))","v":40},{"$f":"+IFERROR(VLOOKUP(OV$27&\"-\"&$M60&\"_new\",Ammortamento_Finanziario!$H:$L,5,FALSE),VLOOKUP($M60,TT_Tabelle_Riferimento!$D$127:$H$164,5,FALSE))","v":40},{"$f":"+IFERROR(VLOOKUP(OW$27&\"-\"&$M60&\"_new\",Ammortamento_Finanziario!$H:$L,5,FALSE),VLOOKUP($M60,TT_Tabelle_Riferimento!$D$127:$H$164,5,FALSE))","v":40},{"$f":"+IFERROR(VLOOKUP(OX$27&\"-\"&$M60&\"_new\",Ammortamento_Finanziario!$H:$L,5,FALSE),VLOOKUP($M60,TT_Tabelle_Riferimento!$D$127:$H$164,5,FALSE))","v":40},{"$f":"+IFERROR(VLOOKUP(OY$27&\"-\"&$M60&\"_new\",Ammortamento_Finanziario!$H:$L,5,FALSE),VLOOKUP($M60,TT_Tabelle_Riferimento!$D$127:$H$164,5,FALSE))","v":40},{"$f":"+IFERROR(VLOOKUP(OZ$27&\"-\"&$M60&\"_new\",Ammortamento_Finanziario!$H:$L,5,FALSE),VLOOKUP($M60,TT_Tabelle_Riferimento!$D$127:$H$164,5,FALSE))","v":40},{"$f":"+IFERROR(VLOOKUP(PA$27&\"-\"&$M60&\"_new\",Ammortamento_Finanziario!$H:$L,5,FALSE),VLOOKUP($M60,TT_Tabelle_Riferimento!$D$127:$H$164,5,FALSE))","v":40},{"$f":"+IFERROR(VLOOKUP(PB$27&\"-\"&$M60&\"_new\",Ammortamento_Finanziario!$H:$L,5,FALSE),VLOOKUP($M60,TT_Tabelle_Riferimento!$D$127:$H$164,5,FALSE))","v":40},{"$f":"+IFERROR(VLOOKUP(PC$27&\"-\"&$M60&\"_new\",Ammortamento_Finanziario!$H:$L,5,FALSE),VLOOKUP($M60,TT_Tabelle_Riferimento!$D$127:$H$164,5,FALSE))","v":40},{"$f":"+IFERROR(VLOOKUP(PD$27&\"-\"&$M60&\"_new\",Ammortamento_Finanziario!$H:$L,5,FALSE),VLOOKUP($M60,TT_Tabelle_Riferimento!$D$127:$H$164,5,FALSE))","v":40},{"$f":"+IFERROR(VLOOKUP(PE$27&\"-\"&$M60&\"_new\",Ammortamento_Finanziario!$H:$L,5,FALSE),VLOOKUP($M60,TT_Tabelle_Riferimento!$D$127:$H$164,5,FALSE))","v":40},{"$f":"+IFERROR(VLOOKUP(PF$27&\"-\"&$M60&\"_new\",Ammortamento_Finanziario!$H:$L,5,FALSE),VLOOKUP($M60,TT_Tabelle_Riferimento!$D$127:$H$164,5,FALSE))","v":40},{"$f":"+IFERROR(VLOOKUP(PG$27&\"-\"&$M60&\"_new\",Ammortamento_Finanziario!$H:$L,5,FALSE),VLOOKUP($M60,TT_Tabelle_Riferimento!$D$127:$H$164,5,FALSE))","v":40},{"$f":"+IFERROR(VLOOKUP(PH$27&\"-\"&$M60&\"_new\",Ammortamento_Finanziario!$H:$L,5,FALSE),VLOOKUP($M60,TT_Tabelle_Riferimento!$D$127:$H$164,5,FALSE))","v":40},{"$f":"+IFERROR(VLOOKUP(PI$27&\"-\"&$M60&\"_new\",Ammortamento_Finanziario!$H:$L,5,FALSE),VLOOKUP($M60,TT_Tabelle_Riferimento!$D$127:$H$164,5,FALSE))","v":40},{"$f":"+IFERROR(VLOOKUP(PJ$27&\"-\"&$M60&\"_new\",Ammortamento_Finanziario!$H:$L,5,FALSE),VLOOKUP($M60,TT_Tabelle_Riferimento!$D$127:$H$164,5,FALSE))","v":40},{"$f":"+IFERROR(VLOOKUP(PK$27&\"-\"&$M60&\"_new\",Ammortamento_Finanziario!$H:$L,5,FALSE),VLOOKUP($M60,TT_Tabelle_Riferimento!$D$127:$H$164,5,FALSE))","v":40},{"$f":"+IFERROR(VLOOKUP(PL$27&\"-\"&$M60&\"_new\",Ammortamento_Finanziario!$H:$L,5,FALSE),VLOOKUP($M60,TT_Tabelle_Riferimento!$D$127:$H$164,5,FALSE))","v":40},{"$f":"+IFERROR(VLOOKUP(PM$27&\"-\"&$M60&\"_new\",Ammortamento_Finanziario!$H:$L,5,FALSE),VLOOKUP($M60,TT_Tabelle_Riferimento!$D$127:$H$164,5,FALSE))","v":40},{"$f":"+IFERROR(VLOOKUP(PN$27&\"-\"&$M60&\"_new\",Ammortamento_Finanziario!$H:$L,5,FALSE),VLOOKUP($M60,TT_Tabelle_Riferimento!$D$127:$H$164,5,FALSE))","v":40},{"$f":"+IFERROR(VLOOKUP(PO$27&\"-\"&$M60&\"_new\",Ammortamento_Finanziario!$H:$L,5,FALSE),VLOOKUP($M60,TT_Tabelle_Riferimento!$D$127:$H$164,5,FALSE))","v":40},{"$f":"+IFERROR(VLOOKUP(PP$27&\"-\"&$M60&\"_new\",Ammortamento_Finanziario!$H:$L,5,FALSE),VLOOKUP($M60,TT_Tabelle_Riferimento!$D$127:$H$164,5,FALSE))","v":40},{"$f":"+IFERROR(VLOOKUP(PQ$27&\"-\"&$M60&\"_new\",Ammortamento_Finanziario!$H:$L,5,FALSE),VLOOKUP($M60,TT_Tabelle_Riferimento!$D$127:$H$164,5,FALSE))","v":40},{"$f":"+IFERROR(VLOOKUP(PR$27&\"-\"&$M60&\"_new\",Ammortamento_Finanziario!$H:$L,5,FALSE),VLOOKUP($M60,TT_Tabelle_Riferimento!$D$127:$H$164,5,FALSE))","v":40},{"$f":"+IFERROR(VLOOKUP(PS$27&\"-\"&$M60&\"_new\",Ammortamento_Finanziario!$H:$L,5,FALSE),VLOOKUP($M60,TT_Tabelle_Riferimento!$D$127:$H$164,5,FALSE))","v":40},{"$f":"+IFERROR(VLOOKUP(PT$27&\"-\"&$M60&\"_new\",Ammortamento_Finanziario!$H:$L,5,FALSE),VLOOKUP($M60,TT_Tabelle_Riferimento!$D$127:$H$164,5,FALSE))","v":40},{"$f":"+IFERROR(VLOOKUP(PU$27&\"-\"&$M60&\"_new\",Ammortamento_Finanziario!$H:$L,5,FALSE),VLOOKUP($M60,TT_Tabelle_Riferimento!$D$127:$H$164,5,FALSE))","v":40},{"$f":"+IFERROR(VLOOKUP(PV$27&\"-\"&$M60&\"_new\",Ammortamento_Finanziario!$H:$L,5,FALSE),VLOOKUP($M60,TT_Tabelle_Riferimento!$D$127:$H$164,5,FALSE))","v":40},{"$f":"+IFERROR(VLOOKUP(PW$27&\"-\"&$M60&\"_new\",Ammortamento_Finanziario!$H:$L,5,FALSE),VLOOKUP($M60,TT_Tabelle_Riferimento!$D$127:$H$164,5,FALSE))","v":40},{"$f":"+IFERROR(VLOOKUP(PX$27&\"-\"&$M60&\"_new\",Ammortamento_Finanziario!$H:$L,5,FALSE),VLOOKUP($M60,TT_Tabelle_Riferimento!$D$127:$H$164,5,FALSE))","v":40},{"$f":"+IFERROR(VLOOKUP(PY$27&\"-\"&$M60&\"_new\",Ammortamento_Finanziario!$H:$L,5,FALSE),VLOOKUP($M60,TT_Tabelle_Riferimento!$D$127:$H$164,5,FALSE))","v":40},{"$f":"+IFERROR(VLOOKUP(PZ$27&\"-\"&$M60&\"_new\",Ammortamento_Finanziario!$H:$L,5,FALSE),VLOOKUP($M60,TT_Tabelle_Riferimento!$D$127:$H$164,5,FALSE))","v":40},{"$f":"+IFERROR(VLOOKUP(QA$27&\"-\"&$M60&\"_new\",Ammortamento_Finanziario!$H:$L,5,FALSE),VLOOKUP($M60,TT_Tabelle_Riferimento!$D$127:$H$164,5,FALSE))","v":40},{"$f":"+IFERROR(VLOOKUP(QB$27&\"-\"&$M60&\"_new\",Ammortamento_Finanziario!$H:$L,5,FALSE),VLOOKUP($M60,TT_Tabelle_Riferimento!$D$127:$H$164,5,FALSE))","v":40},{"$f":"+IFERROR(VLOOKUP(QC$27&\"-\"&$M60&\"_new\",Ammortamento_Finanziario!$H:$L,5,FALSE),VLOOKUP($M60,TT_Tabelle_Riferimento!$D$127:$H$164,5,FALSE))","v":40},{"$f":"+IFERROR(VLOOKUP(QD$27&\"-\"&$M60&\"_new\",Ammortamento_Finanziario!$H:$L,5,FALSE),VLOOKUP($M60,TT_Tabelle_Riferimento!$D$127:$H$164,5,FALSE))","v":40},{"$f":"+IFERROR(VLOOKUP(QE$27&\"-\"&$M60&\"_new\",Ammortamento_Finanziario!$H:$L,5,FALSE),VLOOKUP($M60,TT_Tabelle_Riferimento!$D$127:$H$164,5,FALSE))","v":40},{"$f":"+IFERROR(VLOOKUP(QF$27&\"-\"&$M60&\"_new\",Ammortamento_Finanziario!$H:$L,5,FALSE),VLOOKUP($M60,TT_Tabelle_Riferimento!$D$127:$H$164,5,FALSE))","v":40},{"$f":"+IFERROR(VLOOKUP(QG$27&\"-\"&$M60&\"_new\",Ammortamento_Finanziario!$H:$L,5,FALSE),VLOOKUP($M60,TT_Tabelle_Riferimento!$D$127:$H$164,5,FALSE))","v":40},{"$f":"+IFERROR(VLOOKUP(QH$27&\"-\"&$M60&\"_new\",Ammortamento_Finanziario!$H:$L,5,FALSE),VLOOKUP($M60,TT_Tabelle_Riferimento!$D$127:$H$164,5,FALSE))","v":40},{"$f":"+IFERROR(VLOOKUP(QI$27&\"-\"&$M60&\"_new\",Ammortamento_Finanziario!$H:$L,5,FALSE),VLOOKUP($M60,TT_Tabelle_Riferimento!$D$127:$H$164,5,FALSE))","v":40},{"$f":"+IFERROR(VLOOKUP(QJ$27&\"-\"&$M60&\"_new\",Ammortamento_Finanziario!$H:$L,5,FALSE),VLOOKUP($M60,TT_Tabelle_Riferimento!$D$127:$H$164,5,FALSE))","v":40},{"$f":"+IFERROR(VLOOKUP(QK$27&\"-\"&$M60&\"_new\",Ammortamento_Finanziario!$H:$L,5,FALSE),VLOOKUP($M60,TT_Tabelle_Riferimento!$D$127:$H$164,5,FALSE))","v":40},{"$f":"+IFERROR(VLOOKUP(QL$27&\"-\"&$M60&\"_new\",Ammortamento_Finanziario!$H:$L,5,FALSE),VLOOKUP($M60,TT_Tabelle_Riferimento!$D$127:$H$164,5,FALSE))","v":40},{"$f":"+IFERROR(VLOOKUP(QM$27&\"-\"&$M60&\"_new\",Ammortamento_Finanziario!$H:$L,5,FALSE),VLOOKUP($M60,TT_Tabelle_Riferimento!$D$127:$H$164,5,FALSE))","v":40},{"$f":"+IFERROR(VLOOKUP(QN$27&\"-\"&$M60&\"_new\",Ammortamento_Finanziario!$H:$L,5,FALSE),VLOOKUP($M60,TT_Tabelle_Riferimento!$D$127:$H$164,5,FALSE))","v":40},{"$f":"+IFERROR(VLOOKUP(QO$27&\"-\"&$M60&\"_new\",Ammortamento_Finanziario!$H:$L,5,FALSE),VLOOKUP($M60,TT_Tabelle_Riferimento!$D$127:$H$164,5,FALSE))","v":40},{"$f":"+IFERROR(VLOOKUP(QP$27&\"-\"&$M60&\"_new\",Ammortamento_Finanziario!$H:$L,5,FALSE),VLOOKUP($M60,TT_Tabelle_Riferimento!$D$127:$H$164,5,FALSE))","v":40},{"$f":"+IFERROR(VLOOKUP(QQ$27&\"-\"&$M60&\"_new\",Ammortamento_Finanziario!$H:$L,5,FALSE),VLOOKUP($M60,TT_Tabelle_Riferimento!$D$127:$H$164,5,FALSE))","v":40},{"$f":"+IFERROR(VLOOKUP(QR$27&\"-\"&$M60&\"_new\",Ammortamento_Finanziario!$H:$L,5,FALSE),VLOOKUP($M60,TT_Tabelle_Riferimento!$D$127:$H$164,5,FALSE))","v":40},{"$f":"+IFERROR(VLOOKUP(QS$27&\"-\"&$M60&\"_new\",Ammortamento_Finanziario!$H:$L,5,FALSE),VLOOKUP($M60,TT_Tabelle_Riferimento!$D$127:$H$164,5,FALSE))","v":40},{"$f":"+IFERROR(VLOOKUP(QT$27&\"-\"&$M60&\"_new\",Ammortamento_Finanziario!$H:$L,5,FALSE),VLOOKUP($M60,TT_Tabelle_Riferimento!$D$127:$H$164,5,FALSE))","v":40},{"$f":"+IFERROR(VLOOKUP(QU$27&\"-\"&$M60&\"_new\",Ammortamento_Finanziario!$H:$L,5,FALSE),VLOOKUP($M60,TT_Tabelle_Riferimento!$D$127:$H$164,5,FALSE))","v":40},{"$f":"+IFERROR(VLOOKUP(QV$27&\"-\"&$M60&\"_new\",Ammortamento_Finanziario!$H:$L,5,FALSE),VLOOKUP($M60,TT_Tabelle_Riferimento!$D$127:$H$164,5,FALSE))","v":40},{"$f":"+IFERROR(VLOOKUP(QW$27&\"-\"&$M60&\"_new\",Ammortamento_Finanziario!$H:$L,5,FALSE),VLOOKUP($M60,TT_Tabelle_Riferimento!$D$127:$H$164,5,FALSE))","v":40},{"$f":"+IFERROR(VLOOKUP(QX$27&\"-\"&$M60&\"_new\",Ammortamento_Finanziario!$H:$L,5,FALSE),VLOOKUP($M60,TT_Tabelle_Riferimento!$D$127:$H$164,5,FALSE))","v":40},{"$f":"+IFERROR(VLOOKUP(QY$27&\"-\"&$M60&\"_new\",Ammortamento_Finanziario!$H:$L,5,FALSE),VLOOKUP($M60,TT_Tabelle_Riferimento!$D$127:$H$164,5,FALSE))","v":40},{"$f":"+IFERROR(VLOOKUP(QZ$27&\"-\"&$M60&\"_new\",Ammortamento_Finanziario!$H:$L,5,FALSE),VLOOKUP($M60,TT_Tabelle_Riferimento!$D$127:$H$164,5,FALSE))","v":40},{"$f":"+IFERROR(VLOOKUP(RA$27&\"-\"&$M60&\"_new\",Ammortamento_Finanziario!$H:$L,5,FALSE),VLOOKUP($M60,TT_Tabelle_Riferimento!$D$127:$H$164,5,FALSE))","v":40},{"$f":"+IFERROR(VLOOKUP(RB$27&\"-\"&$M60&\"_new\",Ammortamento_Finanziario!$H:$L,5,FALSE),VLOOKUP($M60,TT_Tabelle_Riferimento!$D$127:$H$164,5,FALSE))","v":40},{"$f":"+IFERROR(VLOOKUP(RC$27&\"-\"&$M60&\"_new\",Ammortamento_Finanziario!$H:$L,5,FALSE),VLOOKUP($M60,TT_Tabelle_Riferimento!$D$127:$H$164,5,FALSE))","v":40},{"$f":"+IFERROR(VLOOKUP(RD$27&\"-\"&$M60&\"_new\",Ammortamento_Finanziario!$H:$L,5,FALSE),VLOOKUP($M60,TT_Tabelle_Riferimento!$D$127:$H$164,5,FALSE))","v":40},{"$f":"+IFERROR(VLOOKUP(RE$27&\"-\"&$M60&\"_new\",Ammortamento_Finanziario!$H:$L,5,FALSE),VLOOKUP($M60,TT_Tabelle_Riferimento!$D$127:$H$164,5,FALSE))","v":40},{"$f":"+IFERROR(VLOOKUP(RF$27&\"-\"&$M60&\"_new\",Ammortamento_Finanziario!$H:$L,5,FALSE),VLOOKUP($M60,TT_Tabelle_Riferimento!$D$127:$H$164,5,FALSE))","v":40},{"$f":"+IFERROR(VLOOKUP(RG$27&\"-\"&$M60&\"_new\",Ammortamento_Finanziario!$H:$L,5,FALSE),VLOOKUP($M60,TT_Tabelle_Riferimento!$D$127:$H$164,5,FALSE))","v":40},{"$f":"+IFERROR(VLOOKUP(RH$27&\"-\"&$M60&\"_new\",Ammortamento_Finanziario!$H:$L,5,FALSE),VLOOKUP($M60,TT_Tabelle_Riferimento!$D$127:$H$164,5,FALSE))","v":40},{"$f":"+IFERROR(VLOOKUP(RI$27&\"-\"&$M60&\"_new\",Ammortamento_Finanziario!$H:$L,5,FALSE),VLOOKUP($M60,TT_Tabelle_Riferimento!$D$127:$H$164,5,FALSE))","v":40},{"$f":"+IFERROR(VLOOKUP(RJ$27&\"-\"&$M60&\"_new\",Ammortamento_Finanziario!$H:$L,5,FALSE),VLOOKUP($M60,TT_Tabelle_Riferimento!$D$127:$H$164,5,FALSE))","v":40},{"$f":"+IFERROR(VLOOKUP(RK$27&\"-\"&$M60&\"_new\",Ammortamento_Finanziario!$H:$L,5,FALSE),VLOOKUP($M60,TT_Tabelle_Riferimento!$D$127:$H$164,5,FALSE))","v":40},{"$f":"+IFERROR(VLOOKUP(RL$27&\"-\"&$M60&\"_new\",Ammortamento_Finanziario!$H:$L,5,FALSE),VLOOKUP($M60,TT_Tabelle_Riferimento!$D$127:$H$164,5,FALSE))","v":40},{"$f":"+IFERROR(VLOOKUP(RM$27&\"-\"&$M60&\"_new\",Ammortamento_Finanziario!$H:$L,5,FALSE),VLOOKUP($M60,TT_Tabelle_Riferimento!$D$127:$H$164,5,FALSE))","v":40},{"$f":"+IFERROR(VLOOKUP(RN$27&\"-\"&$M60&\"_new\",Ammortamento_Finanziario!$H:$L,5,FALSE),VLOOKUP($M60,TT_Tabelle_Riferimento!$D$127:$H$164,5,FALSE))","v":40},{"$f":"+IFERROR(VLOOKUP(RO$27&\"-\"&$M60&\"_new\",Ammortamento_Finanziario!$H:$L,5,FALSE),VLOOKUP($M60,TT_Tabelle_Riferimento!$D$127:$H$164,5,FALSE))","v":40},{"$f":"+IFERROR(VLOOKUP(RP$27&\"-\"&$M60&\"_new\",Ammortamento_Finanziario!$H:$L,5,FALSE),VLOOKUP($M60,TT_Tabelle_Riferimento!$D$127:$H$164,5,FALSE))","v":40},{"$f":"+IFERROR(VLOOKUP(RQ$27&\"-\"&$M60&\"_new\",Ammortamento_Finanziario!$H:$L,5,FALSE),VLOOKUP($M60,TT_Tabelle_Riferimento!$D$127:$H$164,5,FALSE))","v":40},{"$f":"+IFERROR(VLOOKUP(RR$27&\"-\"&$M60&\"_new\",Ammortamento_Finanziario!$H:$L,5,FALSE),VLOOKUP($M60,TT_Tabelle_Riferimento!$D$127:$H$164,5,FALSE))","v":40},{"$f":"+IFERROR(VLOOKUP(RS$27&\"-\"&$M60&\"_new\",Ammortamento_Finanziario!$H:$L,5,FALSE),VLOOKUP($M60,TT_Tabelle_Riferimento!$D$127:$H$164,5,FALSE))","v":40},{"$f":"+IFERROR(VLOOKUP(RT$27&\"-\"&$M60&\"_new\",Ammortamento_Finanziario!$H:$L,5,FALSE),VLOOKUP($M60,TT_Tabelle_Riferimento!$D$127:$H$164,5,FALSE))","v":40},{"$f":"+IFERROR(VLOOKUP(RU$27&\"-\"&$M60&\"_new\",Ammortamento_Finanziario!$H:$L,5,FALSE),VLOOKUP($M60,TT_Tabelle_Riferimento!$D$127:$H$164,5,FALSE))","v":40},{"$f":"+IFERROR(VLOOKUP(RV$27&\"-\"&$M60&\"_new\",Ammortamento_Finanziario!$H:$L,5,FALSE),VLOOKUP($M60,TT_Tabelle_Riferimento!$D$127:$H$164,5,FALSE))","v":40}]
[null,null,null,"AMMcfp",{"$f":"+SUMIFS(IMN_gestore!X:X,IMN_gestore!$G:$G,\"Res\")","v":0},{"$f":"+SUMIFS(IMN_gestore!AI:AI,IMN_gestore!$G:$G,\"Res\")","v":0},{"$f":"+SUMIFS(IMN_gestore!AT:AT,IMN_gestore!$G:$G,\"Res\")","v":0},{"$f":"+SUMIFS(IMN_gestore!BE:BE,IMN_gestore!$G:$G,\"Res\")","v":0},{"$f":"+SUMIFS(IMN_gestore!$BP:$BP,IMN_gestore!$G:$G,\"Res\")","v":0},{"$f":"+SUMIFS(IMN_gestore!$CA:$CA,IMN_gestore!$G:$G,\"Res\")","v":0},null,null,34,0,0,0,0,0,0,0,0,0,0,0,0,0,0,0,0,0,0,0,0,0,0,0,0,0,0,0,0,0,0,0,0,0,0,0,0,0,0,0,0,0,0,0,0,0,0,0,0,0,0,0,0,0,0,0,0,0,0,0,0,0,0,0,0,0,0,0,0,0,0,0,0,0,0,0,0,0,0,0,0,0,0,0,0,0,0,0,0,0,0,0,0,0,0,0,0,0,0,0,0,0,0,0,0,0,0,0,0,0,0,0,0,0,0,0,0,0,0,0,0,0,0,0,0,0,0,0,0,0,0,0,0,0,0,0,0,0,0,0,0,0,0,0,0,0,0,0,0,0,0,0,0,0,0,0,0,0,0,0,0,0,0,0,0,0,0,0,0,0,0,0,0,0,0,0,0,0,0,0,0,0,0,0,0,0,0,0,0,0,0,0,0,0,0,0,0,0,0,0,0,0,0,0,0,0,0,0,0,0,0,0,0,0,0,0,0,0,0,0,0,0,0,0,0,0,0,0,0,0,0,0,0,0,0,0,0,0,0,0,0,0,0,0,0,0,0,0,0,0,0,0,0,0,0,0,0,0,0,0,0,0,0,0,0,0,0,0,0,0,0,0,0,0,0,0,0,0,0,0,0,0,0,0,0,0,0,0,0,0,{"$f":"+IFERROR(VLOOKUP(KQ$27&\"-\"&$M61&\"_new\",Ammortamento_Finanziario!$H:$L,5,FALSE),VLOOKUP($M61,TT_Tabelle_Riferimento!$D$127:$H$164,5,FALSE))","v":40},{"$f":"+IFERROR(VLOOKUP(KR$27&\"-\"&$M61&\"_new\",Ammortamento_Finanziario!$H:$L,5,FALSE),VLOOKUP($M61,TT_Tabelle_Riferimento!$D$127:$H$164,5,FALSE))","v":40},{"$f":"+IFERROR(VLOOKUP(KS$27&\"-\"&$M61&\"_new\",Ammortamento_Finanziario!$H:$L,5,FALSE),VLOOKUP($M61,TT_Tabelle_Riferimento!$D$127:$H$164,5,FALSE))","v":40},{"$f":"+IFERROR(VLOOKUP(KT$27&\"-\"&$M61&\"_new\",Ammortamento_Finanziario!$H:$L,5,FALSE),VLOOKUP($M61,TT_Tabelle_Riferimento!$D$127:$H$164,5,FALSE))","v":40},{"$f":"+IFERROR(VLOOKUP(KU$27&\"-\"&$M61&\"_new\",Ammortamento_Finanziario!$H:$L,5,FALSE),VLOOKUP($M61,TT_Tabelle_Riferimento!$D$127:$H$164,5,FALSE))","v":40},{"$f":"+IFERROR(VLOOKUP(KV$27&\"-\"&$M61&\"_new\",Ammortamento_Finanziario!$H:$L,5,FALSE),VLOOKUP($M61,TT_Tabelle_Riferimento!$D$127:$H$164,5,FALSE))","v":40},{"$f":"+IFERROR(VLOOKUP(KW$27&\"-\"&$M61&\"_new\",Ammortamento_Finanziario!$H:$L,5,FALSE),VLOOKUP($M61,TT_Tabelle_Riferimento!$D$127:$H$164,5,FALSE))","v":40},{"$f":"+IFERROR(VLOOKUP(KX$27&\"-\"&$M61&\"_new\",Ammortamento_Finanziario!$H:$L,5,FALSE),VLOOKUP($M61,TT_Tabelle_Riferimento!$D$127:$H$164,5,FALSE))","v":40},{"$f":"+IFERROR(VLOOKUP(KY$27&\"-\"&$M61&\"_new\",Ammortamento_Finanziario!$H:$L,5,FALSE),VLOOKUP($M61,TT_Tabelle_Riferimento!$D$127:$H$164,5,FALSE))","v":40},{"$f":"+IFERROR(VLOOKUP(KZ$27&\"-\"&$M61&\"_new\",Ammortamento_Finanziario!$H:$L,5,FALSE),VLOOKUP($M61,TT_Tabelle_Riferimento!$D$127:$H$164,5,FALSE))","v":40},{"$f":"+IFERROR(VLOOKUP(LA$27&\"-\"&$M61&\"_new\",Ammortamento_Finanziario!$H:$L,5,FALSE),VLOOKUP($M61,TT_Tabelle_Riferimento!$D$127:$H$164,5,FALSE))","v":40},{"$f":"+IFERROR(VLOOKUP(LB$27&\"-\"&$M61&\"_new\",Ammortamento_Finanziario!$H:$L,5,FALSE),VLOOKUP($M61,TT_Tabelle_Riferimento!$D$127:$H$164,5,FALSE))","v":40},{"$f":"+IFERROR(VLOOKUP(LC$27&\"-\"&$M61&\"_new\",Ammortamento_Finanziario!$H:$L,5,FALSE),VLOOKUP($M61,TT_Tabelle_Riferimento!$D$127:$H$164,5,FALSE))","v":40},{"$f":"+IFERROR(VLOOKUP(LD$27&\"-\"&$M61&\"_new\",Ammortamento_Finanziario!$H:$L,5,FALSE),VLOOKUP($M61,TT_Tabelle_Riferimento!$D$127:$H$164,5,FALSE))","v":40},{"$f":"+IFERROR(VLOOKUP(LE$27&\"-\"&$M61&\"_new\",Ammortamento_Finanziario!$H:$L,5,FALSE),VLOOKUP($M61,TT_Tabelle_Riferimento!$D$127:$H$164,5,FALSE))","v":40},{"$f":"+IFERROR(VLOOKUP(LF$27&\"-\"&$M61&\"_new\",Ammortamento_Finanziario!$H:$L,5,FALSE),VLOOKUP($M61,TT_Tabelle_Riferimento!$D$127:$H$164,5,FALSE))","v":40},{"$f":"+IFERROR(VLOOKUP(LG$27&\"-\"&$M61&\"_new\",Ammortamento_Finanziario!$H:$L,5,FALSE),VLOOKUP($M61,TT_Tabelle_Riferimento!$D$127:$H$164,5,FALSE))","v":40},{"$f":"+IFERROR(VLOOKUP(LH$27&\"-\"&$M61&\"_new\",Ammortamento_Finanziario!$H:$L,5,FALSE),VLOOKUP($M61,TT_Tabelle_Riferimento!$D$127:$H$164,5,FALSE))","v":40},{"$f":"+IFERROR(VLOOKUP(LI$27&\"-\"&$M61&\"_new\",Ammortamento_Finanziario!$H:$L,5,FALSE),VLOOKUP($M61,TT_Tabelle_Riferimento!$D$127:$H$164,5,FALSE))","v":40},{"$f":"+IFERROR(VLOOKUP(LJ$27&\"-\"&$M61&\"_new\",Ammortamento_Finanziario!$H:$L,5,FALSE),VLOOKUP($M61,TT_Tabelle_Riferimento!$D$127:$H$164,5,FALSE))","v":40},{"$f":"+IFERROR(VLOOKUP(LK$27&\"-\"&$M61&\"_new\",Ammortamento_Finanziario!$H:$L,5,FALSE),VLOOKUP($M61,TT_Tabelle_Riferimento!$D$127:$H$164,5,FALSE))","v":40},{"$f":"+IFERROR(VLOOKUP(LL$27&\"-\"&$M61&\"_new\",Ammortamento_Finanziario!$H:$L,5,FALSE),VLOOKUP($M61,TT_Tabelle_Riferimento!$D$127:$H$164,5,FALSE))","v":40},{"$f":"+IFERROR(VLOOKUP(LM$27&\"-\"&$M61&\"_new\",Ammortamento_Finanziario!$H:$L,5,FALSE),VLOOKUP($M61,TT_Tabelle_Riferimento!$D$127:$H$164,5,FALSE))","v":40},{"$f":"+IFERROR(VLOOKUP(LN$27&\"-\"&$M61&\"_new\",Ammortamento_Finanziario!$H:$L,5,FALSE),VLOOKUP($M61,TT_Tabelle_Riferimento!$D$127:$H$164,5,FALSE))","v":40},{"$f":"+IFERROR(VLOOKUP(LO$27&\"-\"&$M61&\"_new\",Ammortamento_Finanziario!$H:$L,5,FALSE),VLOOKUP($M61,TT_Tabelle_Riferimento!$D$127:$H$164,5,FALSE))","v":40},{"$f":"+IFERROR(VLOOKUP(LP$27&\"-\"&$M61&\"_new\",Ammortamento_Finanziario!$H:$L,5,FALSE),VLOOKUP($M61,TT_Tabelle_Riferimento!$D$127:$H$164,5,FALSE))","v":40},{"$f":"+IFERROR(VLOOKUP(LQ$27&\"-\"&$M61&\"_new\",Ammortamento_Finanziario!$H:$L,5,FALSE),VLOOKUP($M61,TT_Tabelle_Riferimento!$D$127:$H$164,5,FALSE))","v":40},{"$f":"+IFERROR(VLOOKUP(LR$27&\"-\"&$M61&\"_new\",Ammortamento_Finanziario!$H:$L,5,FALSE),VLOOKUP($M61,TT_Tabelle_Riferimento!$D$127:$H$164,5,FALSE))","v":40},{"$f":"+IFERROR(VLOOKUP(LS$27&\"-\"&$M61&\"_new\",Ammortamento_Finanziario!$H:$L,5,FALSE),VLOOKUP($M61,TT_Tabelle_Riferimento!$D$127:$H$164,5,FALSE))","v":40},{"$f":"+IFERROR(VLOOKUP(LT$27&\"-\"&$M61&\"_new\",Ammortamento_Finanziario!$H:$L,5,FALSE),VLOOKUP($M61,TT_Tabelle_Riferimento!$D$127:$H$164,5,FALSE))","v":40},{"$f":"+IFERROR(VLOOKUP(LU$27&\"-\"&$M61&\"_new\",Ammortamento_Finanziario!$H:$L,5,FALSE),VLOOKUP($M61,TT_Tabelle_Riferimento!$D$127:$H$164,5,FALSE))","v":40},{"$f":"+IFERROR(VLOOKUP(LV$27&\"-\"&$M61&\"_new\",Ammortamento_Finanziario!$H:$L,5,FALSE),VLOOKUP($M61,TT_Tabelle_Riferimento!$D$127:$H$164,5,FALSE))","v":40},{"$f":"+IFERROR(VLOOKUP(LW$27&\"-\"&$M61&\"_new\",Ammortamento_Finanziario!$H:$L,5,FALSE),VLOOKUP($M61,TT_Tabelle_Riferimento!$D$127:$H$164,5,FALSE))","v":40},{"$f":"+IFERROR(VLOOKUP(LX$27&\"-\"&$M61&\"_new\",Ammortamento_Finanziario!$H:$L,5,FALSE),VLOOKUP($M61,TT_Tabelle_Riferimento!$D$127:$H$164,5,FALSE))","v":40},{"$f":"+IFERROR(VLOOKUP(LY$27&\"-\"&$M61&\"_new\",Ammortamento_Finanziario!$H:$L,5,FALSE),VLOOKUP($M61,TT_Tabelle_Riferimento!$D$127:$H$164,5,FALSE))","v":40},{"$f":"+IFERROR(VLOOKUP(LZ$27&\"-\"&$M61&\"_new\",Ammortamento_Finanziario!$H:$L,5,FALSE),VLOOKUP($M61,TT_Tabelle_Riferimento!$D$127:$H$164,5,FALSE))","v":40},{"$f":"+IFERROR(VLOOKUP(MA$27&\"-\"&$M61&\"_new\",Ammortamento_Finanziario!$H:$L,5,FALSE),VLOOKUP($M61,TT_Tabelle_Riferimento!$D$127:$H$164,5,FALSE))","v":40},{"$f":"+IFERROR(VLOOKUP(MB$27&\"-\"&$M61&\"_new\",Ammortamento_Finanziario!$H:$L,5,FALSE),VLOOKUP($M61,TT_Tabelle_Riferimento!$D$127:$H$164,5,FALSE))","v":40},{"$f":"+IFERROR(VLOOKUP(MC$27&\"-\"&$M61&\"_new\",Ammortamento_Finanziario!$H:$L,5,FALSE),VLOOKUP($M61,TT_Tabelle_Riferimento!$D$127:$H$164,5,FALSE))","v":40},{"$f":"+IFERROR(VLOOKUP(MD$27&\"-\"&$M61&\"_new\",Ammortamento_Finanziario!$H:$L,5,FALSE),VLOOKUP($M61,TT_Tabelle_Riferimento!$D$127:$H$164,5,FALSE))","v":40},{"$f":"+IFERROR(VLOOKUP(ME$27&\"-\"&$M61&\"_new\",Ammortamento_Finanziario!$H:$L,5,FALSE),VLOOKUP($M61,TT_Tabelle_Riferimento!$D$127:$H$164,5,FALSE))","v":40},{"$f":"+IFERROR(VLOOKUP(MF$27&\"-\"&$M61&\"_new\",Ammortamento_Finanziario!$H:$L,5,FALSE),VLOOKUP($M61,TT_Tabelle_Riferimento!$D$127:$H$164,5,FALSE))","v":40},{"$f":"+IFERROR(VLOOKUP(MG$27&\"-\"&$M61&\"_new\",Ammortamento_Finanziario!$H:$L,5,FALSE),VLOOKUP($M61,TT_Tabelle_Riferimento!$D$127:$H$164,5,FALSE))","v":40},{"$f":"+IFERROR(VLOOKUP(MH$27&\"-\"&$M61&\"_new\",Ammortamento_Finanziario!$H:$L,5,FALSE),VLOOKUP($M61,TT_Tabelle_Riferimento!$D$127:$H$164,5,FALSE))","v":40},{"$f":"+IFERROR(VLOOKUP(MI$27&\"-\"&$M61&\"_new\",Ammortamento_Finanziario!$H:$L,5,FALSE),VLOOKUP($M61,TT_Tabelle_Riferimento!$D$127:$H$164,5,FALSE))","v":40},{"$f":"+IFERROR(VLOOKUP(MJ$27&\"-\"&$M61&\"_new\",Ammortamento_Finanziario!$H:$L,5,FALSE),VLOOKUP($M61,TT_Tabelle_Riferimento!$D$127:$H$164,5,FALSE))","v":40},{"$f":"+IFERROR(VLOOKUP(MK$27&\"-\"&$M61&\"_new\",Ammortamento_Finanziario!$H:$L,5,FALSE),VLOOKUP($M61,TT_Tabelle_Riferimento!$D$127:$H$164,5,FALSE))","v":40},{"$f":"+IFERROR(VLOOKUP(ML$27&\"-\"&$M61&\"_new\",Ammortamento_Finanziario!$H:$L,5,FALSE),VLOOKUP($M61,TT_Tabelle_Riferimento!$D$127:$H$164,5,FALSE))","v":40},{"$f":"+IFERROR(VLOOKUP(MM$27&\"-\"&$M61&\"_new\",Ammortamento_Finanziario!$H:$L,5,FALSE),VLOOKUP($M61,TT_Tabelle_Riferimento!$D$127:$H$164,5,FALSE))","v":40},{"$f":"+IFERROR(VLOOKUP(MN$27&\"-\"&$M61&\"_new\",Ammortamento_Finanziario!$H:$L,5,FALSE),VLOOKUP($M61,TT_Tabelle_Riferimento!$D$127:$H$164,5,FALSE))","v":40},{"$f":"+IFERROR(VLOOKUP(MO$27&\"-\"&$M61&\"_new\",Ammortamento_Finanziario!$H:$L,5,FALSE),VLOOKUP($M61,TT_Tabelle_Riferimento!$D$127:$H$164,5,FALSE))","v":40},{"$f":"+IFERROR(VLOOKUP(MP$27&\"-\"&$M61&\"_new\",Ammortamento_Finanziario!$H:$L,5,FALSE),VLOOKUP($M61,TT_Tabelle_Riferimento!$D$127:$H$164,5,FALSE))","v":40},{"$f":"+IFERROR(VLOOKUP(MQ$27&\"-\"&$M61&\"_new\",Ammortamento_Finanziario!$H:$L,5,FALSE),VLOOKUP($M61,TT_Tabelle_Riferimento!$D$127:$H$164,5,FALSE))","v":40},{"$f":"+IFERROR(VLOOKUP(MR$27&\"-\"&$M61&\"_new\",Ammortamento_Finanziario!$H:$L,5,FALSE),VLOOKUP($M61,TT_Tabelle_Riferimento!$D$127:$H$164,5,FALSE))","v":40},{"$f":"+IFERROR(VLOOKUP(MS$27&\"-\"&$M61&\"_new\",Ammortamento_Finanziario!$H:$L,5,FALSE),VLOOKUP($M61,TT_Tabelle_Riferimento!$D$127:$H$164,5,FALSE))","v":40},{"$f":"+IFERROR(VLOOKUP(MT$27&\"-\"&$M61&\"_new\",Ammortamento_Finanziario!$H:$L,5,FALSE),VLOOKUP($M61,TT_Tabelle_Riferimento!$D$127:$H$164,5,FALSE))","v":40},{"$f":"+IFERROR(VLOOKUP(MU$27&\"-\"&$M61&\"_new\",Ammortamento_Finanziario!$H:$L,5,FALSE),VLOOKUP($M61,TT_Tabelle_Riferimento!$D$127:$H$164,5,FALSE))","v":40},{"$f":"+IFERROR(VLOOKUP(MV$27&\"-\"&$M61&\"_new\",Ammortamento_Finanziario!$H:$L,5,FALSE),VLOOKUP($M61,TT_Tabelle_Riferimento!$D$127:$H$164,5,FALSE))","v":40},{"$f":"+IFERROR(VLOOKUP(MW$27&\"-\"&$M61&\"_new\",Ammortamento_Finanziario!$H:$L,5,FALSE),VLOOKUP($M61,TT_Tabelle_Riferimento!$D$127:$H$164,5,FALSE))","v":40},{"$f":"+IFERROR(VLOOKUP(MX$27&\"-\"&$M61&\"_new\",Ammortamento_Finanziario!$H:$L,5,FALSE),VLOOKUP($M61,TT_Tabelle_Riferimento!$D$127:$H$164,5,FALSE))","v":40},{"$f":"+IFERROR(VLOOKUP(MY$27&\"-\"&$M61&\"_new\",Ammortamento_Finanziario!$H:$L,5,FALSE),VLOOKUP($M61,TT_Tabelle_Riferimento!$D$127:$H$164,5,FALSE))","v":40},{"$f":"+IFERROR(VLOOKUP(MZ$27&\"-\"&$M61&\"_new\",Ammortamento_Finanziario!$H:$L,5,FALSE),VLOOKUP($M61,TT_Tabelle_Riferimento!$D$127:$H$164,5,FALSE))","v":40},{"$f":"+IFERROR(VLOOKUP(NA$27&\"-\"&$M61&\"_new\",Ammortamento_Finanziario!$H:$L,5,FALSE),VLOOKUP($M61,TT_Tabelle_Riferimento!$D$127:$H$164,5,FALSE))","v":40},{"$f":"+IFERROR(VLOOKUP(NB$27&\"-\"&$M61&\"_new\",Ammortamento_Finanziario!$H:$L,5,FALSE),VLOOKUP($M61,TT_Tabelle_Riferimento!$D$127:$H$164,5,FALSE))","v":40},{"$f":"+IFERROR(VLOOKUP(NC$27&\"-\"&$M61&\"_new\",Ammortamento_Finanziario!$H:$L,5,FALSE),VLOOKUP($M61,TT_Tabelle_Riferimento!$D$127:$H$164,5,FALSE))","v":40},{"$f":"+IFERROR(VLOOKUP(ND$27&\"-\"&$M61&\"_new\",Ammortamento_Finanziario!$H:$L,5,FALSE),VLOOKUP($M61,TT_Tabelle_Riferimento!$D$127:$H$164,5,FALSE))","v":40},{"$f":"+IFERROR(VLOOKUP(NE$27&\"-\"&$M61&\"_new\",Ammortamento_Finanziario!$H:$L,5,FALSE),VLOOKUP($M61,TT_Tabelle_Riferimento!$D$127:$H$164,5,FALSE))","v":40},{"$f":"+IFERROR(VLOOKUP(NF$27&\"-\"&$M61&\"_new\",Ammortamento_Finanziario!$H:$L,5,FALSE),VLOOKUP($M61,TT_Tabelle_Riferimento!$D$127:$H$164,5,FALSE))","v":40},{"$f":"+IFERROR(VLOOKUP(NG$27&\"-\"&$M61&\"_new\",Ammortamento_Finanziario!$H:$L,5,FALSE),VLOOKUP($M61,TT_Tabelle_Riferimento!$D$127:$H$164,5,FALSE))","v":40},{"$f":"+IFERROR(VLOOKUP(NH$27&\"-\"&$M61&\"_new\",Ammortamento_Finanziario!$H:$L,5,FALSE),VLOOKUP($M61,TT_Tabelle_Riferimento!$D$127:$H$164,5,FALSE))","v":40},{"$f":"+IFERROR(VLOOKUP(NI$27&\"-\"&$M61&\"_new\",Ammortamento_Finanziario!$H:$L,5,FALSE),VLOOKUP($M61,TT_Tabelle_Riferimento!$D$127:$H$164,5,FALSE))","v":40},{"$f":"+IFERROR(VLOOKUP(NJ$27&\"-\"&$M61&\"_new\",Ammortamento_Finanziario!$H:$L,5,FALSE),VLOOKUP($M61,TT_Tabelle_Riferimento!$D$127:$H$164,5,FALSE))","v":40},{"$f":"+IFERROR(VLOOKUP(NK$27&\"-\"&$M61&\"_new\",Ammortamento_Finanziario!$H:$L,5,FALSE),VLOOKUP($M61,TT_Tabelle_Riferimento!$D$127:$H$164,5,FALSE))","v":40},{"$f":"+IFERROR(VLOOKUP(NL$27&\"-\"&$M61&\"_new\",Ammortamento_Finanziario!$H:$L,5,FALSE),VLOOKUP($M61,TT_Tabelle_Riferimento!$D$127:$H$164,5,FALSE))","v":40},{"$f":"+IFERROR(VLOOKUP(NM$27&\"-\"&$M61&\"_new\",Ammortamento_Finanziario!$H:$L,5,FALSE),VLOOKUP($M61,TT_Tabelle_Riferimento!$D$127:$H$164,5,FALSE))","v":40},{"$f":"+IFERROR(VLOOKUP(NN$27&\"-\"&$M61&\"_new\",Ammortamento_Finanziario!$H:$L,5,FALSE),VLOOKUP($M61,TT_Tabelle_Riferimento!$D$127:$H$164,5,FALSE))","v":40},{"$f":"+IFERROR(VLOOKUP(NO$27&\"-\"&$M61&\"_new\",Ammortamento_Finanziario!$H:$L,5,FALSE),VLOOKUP($M61,TT_Tabelle_Riferimento!$D$127:$H$164,5,FALSE))","v":40},{"$f":"+IFERROR(VLOOKUP(NP$27&\"-\"&$M61&\"_new\",Ammortamento_Finanziario!$H:$L,5,FALSE),VLOOKUP($M61,TT_Tabelle_Riferimento!$D$127:$H$164,5,FALSE))","v":40},{"$f":"+IFERROR(VLOOKUP(NQ$27&\"-\"&$M61&\"_new\",Ammortamento_Finanziario!$H:$L,5,FALSE),VLOOKUP($M61,TT_Tabelle_Riferimento!$D$127:$H$164,5,FALSE))","v":40},{"$f":"+IFERROR(VLOOKUP(NR$27&\"-\"&$M61&\"_new\",Ammortamento_Finanziario!$H:$L,5,FALSE),VLOOKUP($M61,TT_Tabelle_Riferimento!$D$127:$H$164,5,FALSE))","v":40},{"$f":"+IFERROR(VLOOKUP(NS$27&\"-\"&$M61&\"_new\",Ammortamento_Finanziario!$H:$L,5,FALSE),VLOOKUP($M61,TT_Tabelle_Riferimento!$D$127:$H$164,5,FALSE))","v":40},{"$f":"+IFERROR(VLOOKUP(NT$27&\"-\"&$M61&\"_new\",Ammortamento_Finanziario!$H:$L,5,FALSE),VLOOKUP($M61,TT_Tabelle_Riferimento!$D$127:$H$164,5,FALSE))","v":40},{"$f":"+IFERROR(VLOOKUP(NU$27&\"-\"&$M61&\"_new\",Ammortamento_Finanziario!$H:$L,5,FALSE),VLOOKUP($M61,TT_Tabelle_Riferimento!$D$127:$H$164,5,FALSE))","v":40},{"$f":"+IFERROR(VLOOKUP(NV$27&\"-\"&$M61&\"_new\",Ammortamento_Finanziario!$H:$L,5,FALSE),VLOOKUP($M61,TT_Tabelle_Riferimento!$D$127:$H$164,5,FALSE))","v":40},{"$f":"+IFERROR(VLOOKUP(NW$27&\"-\"&$M61&\"_new\",Ammortamento_Finanziario!$H:$L,5,FALSE),VLOOKUP($M61,TT_Tabelle_Riferimento!$D$127:$H$164,5,FALSE))","v":40},{"$f":"+IFERROR(VLOOKUP(NX$27&\"-\"&$M61&\"_new\",Ammortamento_Finanziario!$H:$L,5,FALSE),VLOOKUP($M61,TT_Tabelle_Riferimento!$D$127:$H$164,5,FALSE))","v":40},{"$f":"+IFERROR(VLOOKUP(NY$27&\"-\"&$M61&\"_new\",Ammortamento_Finanziario!$H:$L,5,FALSE),VLOOKUP($M61,TT_Tabelle_Riferimento!$D$127:$H$164,5,FALSE))","v":40},{"$f":"+IFERROR(VLOOKUP(NZ$27&\"-\"&$M61&\"_new\",Ammortamento_Finanziario!$H:$L,5,FALSE),VLOOKUP($M61,TT_Tabelle_Riferimento!$D$127:$H$164,5,FALSE))","v":40},{"$f":"+IFERROR(VLOOKUP(OA$27&\"-\"&$M61&\"_new\",Ammortamento_Finanziario!$H:$L,5,FALSE),VLOOKUP($M61,TT_Tabelle_Riferimento!$D$127:$H$164,5,FALSE))","v":40},{"$f":"+IFERROR(VLOOKUP(OB$27&\"-\"&$M61&\"_new\",Ammortamento_Finanziario!$H:$L,5,FALSE),VLOOKUP($M61,TT_Tabelle_Riferimento!$D$127:$H$164,5,FALSE))","v":40},{"$f":"+IFERROR(VLOOKUP(OC$27&\"-\"&$M61&\"_new\",Ammortamento_Finanziario!$H:$L,5,FALSE),VLOOKUP($M61,TT_Tabelle_Riferimento!$D$127:$H$164,5,FALSE))","v":40},{"$f":"+IFERROR(VLOOKUP(OD$27&\"-\"&$M61&\"_new\",Ammortamento_Finanziario!$H:$L,5,FALSE),VLOOKUP($M61,TT_Tabelle_Riferimento!$D$127:$H$164,5,FALSE))","v":40},{"$f":"+IFERROR(VLOOKUP(OE$27&\"-\"&$M61&\"_new\",Ammortamento_Finanziario!$H:$L,5,FALSE),VLOOKUP($M61,TT_Tabelle_Riferimento!$D$127:$H$164,5,FALSE))","v":40},{"$f":"+IFERROR(VLOOKUP(OF$27&\"-\"&$M61&\"_new\",Ammortamento_Finanziario!$H:$L,5,FALSE),VLOOKUP($M61,TT_Tabelle_Riferimento!$D$127:$H$164,5,FALSE))","v":40},{"$f":"+IFERROR(VLOOKUP(OG$27&\"-\"&$M61&\"_new\",Ammortamento_Finanziario!$H:$L,5,FALSE),VLOOKUP($M61,TT_Tabelle_Riferimento!$D$127:$H$164,5,FALSE))","v":40},{"$f":"+IFERROR(VLOOKUP(OH$27&\"-\"&$M61&\"_new\",Ammortamento_Finanziario!$H:$L,5,FALSE),VLOOKUP($M61,TT_Tabelle_Riferimento!$D$127:$H$164,5,FALSE))","v":40},{"$f":"+IFERROR(VLOOKUP(OI$27&\"-\"&$M61&\"_new\",Ammortamento_Finanziario!$H:$L,5,FALSE),VLOOKUP($M61,TT_Tabelle_Riferimento!$D$127:$H$164,5,FALSE))","v":40},{"$f":"+IFERROR(VLOOKUP(OJ$27&\"-\"&$M61&\"_new\",Ammortamento_Finanziario!$H:$L,5,FALSE),VLOOKUP($M61,TT_Tabelle_Riferimento!$D$127:$H$164,5,FALSE))","v":40},{"$f":"+IFERROR(VLOOKUP(OK$27&\"-\"&$M61&\"_new\",Ammortamento_Finanziario!$H:$L,5,FALSE),VLOOKUP($M61,TT_Tabelle_Riferimento!$D$127:$H$164,5,FALSE))","v":40},{"$f":"+IFERROR(VLOOKUP(OL$27&\"-\"&$M61&\"_new\",Ammortamento_Finanziario!$H:$L,5,FALSE),VLOOKUP($M61,TT_Tabelle_Riferimento!$D$127:$H$164,5,FALSE))","v":40},{"$f":"+IFERROR(VLOOKUP(OM$27&\"-\"&$M61&\"_new\",Ammortamento_Finanziario!$H:$L,5,FALSE),VLOOKUP($M61,TT_Tabelle_Riferimento!$D$127:$H$164,5,FALSE))","v":40},{"$f":"+IFERROR(VLOOKUP(ON$27&\"-\"&$M61&\"_new\",Ammortamento_Finanziario!$H:$L,5,FALSE),VLOOKUP($M61,TT_Tabelle_Riferimento!$D$127:$H$164,5,FALSE))","v":40},{"$f":"+IFERROR(VLOOKUP(OO$27&\"-\"&$M61&\"_new\",Ammortamento_Finanziario!$H:$L,5,FALSE),VLOOKUP($M61,TT_Tabelle_Riferimento!$D$127:$H$164,5,FALSE))","v":40},{"$f":"+IFERROR(VLOOKUP(OP$27&\"-\"&$M61&\"_new\",Ammortamento_Finanziario!$H:$L,5,FALSE),VLOOKUP($M61,TT_Tabelle_Riferimento!$D$127:$H$164,5,FALSE))","v":40},{"$f":"+IFERROR(VLOOKUP(OQ$27&\"-\"&$M61&\"_new\",Ammortamento_Finanziario!$H:$L,5,FALSE),VLOOKUP($M61,TT_Tabelle_Riferimento!$D$127:$H$164,5,FALSE))","v":40},{"$f":"+IFERROR(VLOOKUP(OR$27&\"-\"&$M61&\"_new\",Ammortamento_Finanziario!$H:$L,5,FALSE),VLOOKUP($M61,TT_Tabelle_Riferimento!$D$127:$H$164,5,FALSE))","v":40},{"$f":"+IFERROR(VLOOKUP(OS$27&\"-\"&$M61&\"_new\",Ammortamento_Finanziario!$H:$L,5,FALSE),VLOOKUP($M61,TT_Tabelle_Riferimento!$D$127:$H$164,5,FALSE))","v":40},{"$f":"+IFERROR(VLOOKUP(OT$27&\"-\"&$M61&\"_new\",Ammortamento_Finanziario!$H:$L,5,FALSE),VLOOKUP($M61,TT_Tabelle_Riferimento!$D$127:$H$164,5,FALSE))","v":40},{"$f":"+IFERROR(VLOOKUP(OU$27&\"-\"&$M61&\"_new\",Ammortamento_Finanziario!$H:$L,5,FALSE),VLOOKUP($M61,TT_Tabelle_Riferimento!$D$127:$H$164,5,FALSE))","v":40},{"$f":"+IFERROR(VLOOKUP(OV$27&\"-\"&$M61&\"_new\",Ammortamento_Finanziario!$H:$L,5,FALSE),VLOOKUP($M61,TT_Tabelle_Riferimento!$D$127:$H$164,5,FALSE))","v":40},{"$f":"+IFERROR(VLOOKUP(OW$27&\"-\"&$M61&\"_new\",Ammortamento_Finanziario!$H:$L,5,FALSE),VLOOKUP($M61,TT_Tabelle_Riferimento!$D$127:$H$164,5,FALSE))","v":40},{"$f":"+IFERROR(VLOOKUP(OX$27&\"-\"&$M61&\"_new\",Ammortamento_Finanziario!$H:$L,5,FALSE),VLOOKUP($M61,TT_Tabelle_Riferimento!$D$127:$H$164,5,FALSE))","v":40},{"$f":"+IFERROR(VLOOKUP(OY$27&\"-\"&$M61&\"_new\",Ammortamento_Finanziario!$H:$L,5,FALSE),VLOOKUP($M61,TT_Tabelle_Riferimento!$D$127:$H$164,5,FALSE))","v":40},{"$f":"+IFERROR(VLOOKUP(OZ$27&\"-\"&$M61&\"_new\",Ammortamento_Finanziario!$H:$L,5,FALSE),VLOOKUP($M61,TT_Tabelle_Riferimento!$D$127:$H$164,5,FALSE))","v":40},{"$f":"+IFERROR(VLOOKUP(PA$27&\"-\"&$M61&\"_new\",Ammortamento_Finanziario!$H:$L,5,FALSE),VLOOKUP($M61,TT_Tabelle_Riferimento!$D$127:$H$164,5,FALSE))","v":40},{"$f":"+IFERROR(VLOOKUP(PB$27&\"-\"&$M61&\"_new\",Ammortamento_Finanziario!$H:$L,5,FALSE),VLOOKUP($M61,TT_Tabelle_Riferimento!$D$127:$H$164,5,FALSE))","v":40},{"$f":"+IFERROR(VLOOKUP(PC$27&\"-\"&$M61&\"_new\",Ammortamento_Finanziario!$H:$L,5,FALSE),VLOOKUP($M61,TT_Tabelle_Riferimento!$D$127:$H$164,5,FALSE))","v":40},{"$f":"+IFERROR(VLOOKUP(PD$27&\"-\"&$M61&\"_new\",Ammortamento_Finanziario!$H:$L,5,FALSE),VLOOKUP($M61,TT_Tabelle_Riferimento!$D$127:$H$164,5,FALSE))","v":40},{"$f":"+IFERROR(VLOOKUP(PE$27&\"-\"&$M61&\"_new\",Ammortamento_Finanziario!$H:$L,5,FALSE),VLOOKUP($M61,TT_Tabelle_Riferimento!$D$127:$H$164,5,FALSE))","v":40},{"$f":"+IFERROR(VLOOKUP(PF$27&\"-\"&$M61&\"_new\",Ammortamento_Finanziario!$H:$L,5,FALSE),VLOOKUP($M61,TT_Tabelle_Riferimento!$D$127:$H$164,5,FALSE))","v":40},{"$f":"+IFERROR(VLOOKUP(PG$27&\"-\"&$M61&\"_new\",Ammortamento_Finanziario!$H:$L,5,FALSE),VLOOKUP($M61,TT_Tabelle_Riferimento!$D$127:$H$164,5,FALSE))","v":40},{"$f":"+IFERROR(VLOOKUP(PH$27&\"-\"&$M61&\"_new\",Ammortamento_Finanziario!$H:$L,5,FALSE),VLOOKUP($M61,TT_Tabelle_Riferimento!$D$127:$H$164,5,FALSE))","v":40},{"$f":"+IFERROR(VLOOKUP(PI$27&\"-\"&$M61&\"_new\",Ammortamento_Finanziario!$H:$L,5,FALSE),VLOOKUP($M61,TT_Tabelle_Riferimento!$D$127:$H$164,5,FALSE))","v":40},{"$f":"+IFERROR(VLOOKUP(PJ$27&\"-\"&$M61&\"_new\",Ammortamento_Finanziario!$H:$L,5,FALSE),VLOOKUP($M61,TT_Tabelle_Riferimento!$D$127:$H$164,5,FALSE))","v":40},{"$f":"+IFERROR(VLOOKUP(PK$27&\"-\"&$M61&\"_new\",Ammortamento_Finanziario!$H:$L,5,FALSE),VLOOKUP($M61,TT_Tabelle_Riferimento!$D$127:$H$164,5,FALSE))","v":40},{"$f":"+IFERROR(VLOOKUP(PL$27&\"-\"&$M61&\"_new\",Ammortamento_Finanziario!$H:$L,5,FALSE),VLOOKUP($M61,TT_Tabelle_Riferimento!$D$127:$H$164,5,FALSE))","v":40},{"$f":"+IFERROR(VLOOKUP(PM$27&\"-\"&$M61&\"_new\",Ammortamento_Finanziario!$H:$L,5,FALSE),VLOOKUP($M61,TT_Tabelle_Riferimento!$D$127:$H$164,5,FALSE))","v":40},{"$f":"+IFERROR(VLOOKUP(PN$27&\"-\"&$M61&\"_new\",Ammortamento_Finanziario!$H:$L,5,FALSE),VLOOKUP($M61,TT_Tabelle_Riferimento!$D$127:$H$164,5,FALSE))","v":40},{"$f":"+IFERROR(VLOOKUP(PO$27&\"-\"&$M61&\"_new\",Ammortamento_Finanziario!$H:$L,5,FALSE),VLOOKUP($M61,TT_Tabelle_Riferimento!$D$127:$H$164,5,FALSE))","v":40},{"$f":"+IFERROR(VLOOKUP(PP$27&\"-\"&$M61&\"_new\",Ammortamento_Finanziario!$H:$L,5,FALSE),VLOOKUP($M61,TT_Tabelle_Riferimento!$D$127:$H$164,5,FALSE))","v":40},{"$f":"+IFERROR(VLOOKUP(PQ$27&\"-\"&$M61&\"_new\",Ammortamento_Finanziario!$H:$L,5,FALSE),VLOOKUP($M61,TT_Tabelle_Riferimento!$D$127:$H$164,5,FALSE))","v":40},{"$f":"+IFERROR(VLOOKUP(PR$27&\"-\"&$M61&\"_new\",Ammortamento_Finanziario!$H:$L,5,FALSE),VLOOKUP($M61,TT_Tabelle_Riferimento!$D$127:$H$164,5,FALSE))","v":40},{"$f":"+IFERROR(VLOOKUP(PS$27&\"-\"&$M61&\"_new\",Ammortamento_Finanziario!$H:$L,5,FALSE),VLOOKUP($M61,TT_Tabelle_Riferimento!$D$127:$H$164,5,FALSE))","v":40},{"$f":"+IFERROR(VLOOKUP(PT$27&\"-\"&$M61&\"_new\",Ammortamento_Finanziario!$H:$L,5,FALSE),VLOOKUP($M61,TT_Tabelle_Riferimento!$D$127:$H$164,5,FALSE))","v":40},{"$f":"+IFERROR(VLOOKUP(PU$27&\"-\"&$M61&\"_new\",Ammortamento_Finanziario!$H:$L,5,FALSE),VLOOKUP($M61,TT_Tabelle_Riferimento!$D$127:$H$164,5,FALSE))","v":40},{"$f":"+IFERROR(VLOOKUP(PV$27&\"-\"&$M61&\"_new\",Ammortamento_Finanziario!$H:$L,5,FALSE),VLOOKUP($M61,TT_Tabelle_Riferimento!$D$127:$H$164,5,FALSE))","v":40},{"$f":"+IFERROR(VLOOKUP(PW$27&\"-\"&$M61&\"_new\",Ammortamento_Finanziario!$H:$L,5,FALSE),VLOOKUP($M61,TT_Tabelle_Riferimento!$D$127:$H$164,5,FALSE))","v":40},{"$f":"+IFERROR(VLOOKUP(PX$27&\"-\"&$M61&\"_new\",Ammortamento_Finanziario!$H:$L,5,FALSE),VLOOKUP($M61,TT_Tabelle_Riferimento!$D$127:$H$164,5,FALSE))","v":40},{"$f":"+IFERROR(VLOOKUP(PY$27&\"-\"&$M61&\"_new\",Ammortamento_Finanziario!$H:$L,5,FALSE),VLOOKUP($M61,TT_Tabelle_Riferimento!$D$127:$H$164,5,FALSE))","v":40},{"$f":"+IFERROR(VLOOKUP(PZ$27&\"-\"&$M61&\"_new\",Ammortamento_Finanziario!$H:$L,5,FALSE),VLOOKUP($M61,TT_Tabelle_Riferimento!$D$127:$H$164,5,FALSE))","v":40},{"$f":"+IFERROR(VLOOKUP(QA$27&\"-\"&$M61&\"_new\",Ammortamento_Finanziario!$H:$L,5,FALSE),VLOOKUP($M61,TT_Tabelle_Riferimento!$D$127:$H$164,5,FALSE))","v":40},{"$f":"+IFERROR(VLOOKUP(QB$27&\"-\"&$M61&\"_new\",Ammortamento_Finanziario!$H:$L,5,FALSE),VLOOKUP($M61,TT_Tabelle_Riferimento!$D$127:$H$164,5,FALSE))","v":40},{"$f":"+IFERROR(VLOOKUP(QC$27&\"-\"&$M61&\"_new\",Ammortamento_Finanziario!$H:$L,5,FALSE),VLOOKUP($M61,TT_Tabelle_Riferimento!$D$127:$H$164,5,FALSE))","v":40},{"$f":"+IFERROR(VLOOKUP(QD$27&\"-\"&$M61&\"_new\",Ammortamento_Finanziario!$H:$L,5,FALSE),VLOOKUP($M61,TT_Tabelle_Riferimento!$D$127:$H$164,5,FALSE))","v":40},{"$f":"+IFERROR(VLOOKUP(QE$27&\"-\"&$M61&\"_new\",Ammortamento_Finanziario!$H:$L,5,FALSE),VLOOKUP($M61,TT_Tabelle_Riferimento!$D$127:$H$164,5,FALSE))","v":40},{"$f":"+IFERROR(VLOOKUP(QF$27&\"-\"&$M61&\"_new\",Ammortamento_Finanziario!$H:$L,5,FALSE),VLOOKUP($M61,TT_Tabelle_Riferimento!$D$127:$H$164,5,FALSE))","v":40},{"$f":"+IFERROR(VLOOKUP(QG$27&\"-\"&$M61&\"_new\",Ammortamento_Finanziario!$H:$L,5,FALSE),VLOOKUP($M61,TT_Tabelle_Riferimento!$D$127:$H$164,5,FALSE))","v":40},{"$f":"+IFERROR(VLOOKUP(QH$27&\"-\"&$M61&\"_new\",Ammortamento_Finanziario!$H:$L,5,FALSE),VLOOKUP($M61,TT_Tabelle_Riferimento!$D$127:$H$164,5,FALSE))","v":40},{"$f":"+IFERROR(VLOOKUP(QI$27&\"-\"&$M61&\"_new\",Ammortamento_Finanziario!$H:$L,5,FALSE),VLOOKUP($M61,TT_Tabelle_Riferimento!$D$127:$H$164,5,FALSE))","v":40},{"$f":"+IFERROR(VLOOKUP(QJ$27&\"-\"&$M61&\"_new\",Ammortamento_Finanziario!$H:$L,5,FALSE),VLOOKUP($M61,TT_Tabelle_Riferimento!$D$127:$H$164,5,FALSE))","v":40},{"$f":"+IFERROR(VLOOKUP(QK$27&\"-\"&$M61&\"_new\",Ammortamento_Finanziario!$H:$L,5,FALSE),VLOOKUP($M61,TT_Tabelle_Riferimento!$D$127:$H$164,5,FALSE))","v":40},{"$f":"+IFERROR(VLOOKUP(QL$27&\"-\"&$M61&\"_new\",Ammortamento_Finanziario!$H:$L,5,FALSE),VLOOKUP($M61,TT_Tabelle_Riferimento!$D$127:$H$164,5,FALSE))","v":40},{"$f":"+IFERROR(VLOOKUP(QM$27&\"-\"&$M61&\"_new\",Ammortamento_Finanziario!$H:$L,5,FALSE),VLOOKUP($M61,TT_Tabelle_Riferimento!$D$127:$H$164,5,FALSE))","v":40},{"$f":"+IFERROR(VLOOKUP(QN$27&\"-\"&$M61&\"_new\",Ammortamento_Finanziario!$H:$L,5,FALSE),VLOOKUP($M61,TT_Tabelle_Riferimento!$D$127:$H$164,5,FALSE))","v":40},{"$f":"+IFERROR(VLOOKUP(QO$27&\"-\"&$M61&\"_new\",Ammortamento_Finanziario!$H:$L,5,FALSE),VLOOKUP($M61,TT_Tabelle_Riferimento!$D$127:$H$164,5,FALSE))","v":40},{"$f":"+IFERROR(VLOOKUP(QP$27&\"-\"&$M61&\"_new\",Ammortamento_Finanziario!$H:$L,5,FALSE),VLOOKUP($M61,TT_Tabelle_Riferimento!$D$127:$H$164,5,FALSE))","v":40},{"$f":"+IFERROR(VLOOKUP(QQ$27&\"-\"&$M61&\"_new\",Ammortamento_Finanziario!$H:$L,5,FALSE),VLOOKUP($M61,TT_Tabelle_Riferimento!$D$127:$H$164,5,FALSE))","v":40},{"$f":"+IFERROR(VLOOKUP(QR$27&\"-\"&$M61&\"_new\",Ammortamento_Finanziario!$H:$L,5,FALSE),VLOOKUP($M61,TT_Tabelle_Riferimento!$D$127:$H$164,5,FALSE))","v":40},{"$f":"+IFERROR(VLOOKUP(QS$27&\"-\"&$M61&\"_new\",Ammortamento_Finanziario!$H:$L,5,FALSE),VLOOKUP($M61,TT_Tabelle_Riferimento!$D$127:$H$164,5,FALSE))","v":40},{"$f":"+IFERROR(VLOOKUP(QT$27&\"-\"&$M61&\"_new\",Ammortamento_Finanziario!$H:$L,5,FALSE),VLOOKUP($M61,TT_Tabelle_Riferimento!$D$127:$H$164,5,FALSE))","v":40},{"$f":"+IFERROR(VLOOKUP(QU$27&\"-\"&$M61&\"_new\",Ammortamento_Finanziario!$H:$L,5,FALSE),VLOOKUP($M61,TT_Tabelle_Riferimento!$D$127:$H$164,5,FALSE))","v":40},{"$f":"+IFERROR(VLOOKUP(QV$27&\"-\"&$M61&\"_new\",Ammortamento_Finanziario!$H:$L,5,FALSE),VLOOKUP($M61,TT_Tabelle_Riferimento!$D$127:$H$164,5,FALSE))","v":40},{"$f":"+IFERROR(VLOOKUP(QW$27&\"-\"&$M61&\"_new\",Ammortamento_Finanziario!$H:$L,5,FALSE),VLOOKUP($M61,TT_Tabelle_Riferimento!$D$127:$H$164,5,FALSE))","v":40},{"$f":"+IFERROR(VLOOKUP(QX$27&\"-\"&$M61&\"_new\",Ammortamento_Finanziario!$H:$L,5,FALSE),VLOOKUP($M61,TT_Tabelle_Riferimento!$D$127:$H$164,5,FALSE))","v":40},{"$f":"+IFERROR(VLOOKUP(QY$27&\"-\"&$M61&\"_new\",Ammortamento_Finanziario!$H:$L,5,FALSE),VLOOKUP($M61,TT_Tabelle_Riferimento!$D$127:$H$164,5,FALSE))","v":40},{"$f":"+IFERROR(VLOOKUP(QZ$27&\"-\"&$M61&\"_new\",Ammortamento_Finanziario!$H:$L,5,FALSE),VLOOKUP($M61,TT_Tabelle_Riferimento!$D$127:$H$164,5,FALSE))","v":40},{"$f":"+IFERROR(VLOOKUP(RA$27&\"-\"&$M61&\"_new\",Ammortamento_Finanziario!$H:$L,5,FALSE),VLOOKUP($M61,TT_Tabelle_Riferimento!$D$127:$H$164,5,FALSE))","v":40},{"$f":"+IFERROR(VLOOKUP(RB$27&\"-\"&$M61&\"_new\",Ammortamento_Finanziario!$H:$L,5,FALSE),VLOOKUP($M61,TT_Tabelle_Riferimento!$D$127:$H$164,5,FALSE))","v":40},{"$f":"+IFERROR(VLOOKUP(RC$27&\"-\"&$M61&\"_new\",Ammortamento_Finanziario!$H:$L,5,FALSE),VLOOKUP($M61,TT_Tabelle_Riferimento!$D$127:$H$164,5,FALSE))","v":40},{"$f":"+IFERROR(VLOOKUP(RD$27&\"-\"&$M61&\"_new\",Ammortamento_Finanziario!$H:$L,5,FALSE),VLOOKUP($M61,TT_Tabelle_Riferimento!$D$127:$H$164,5,FALSE))","v":40},{"$f":"+IFERROR(VLOOKUP(RE$27&\"-\"&$M61&\"_new\",Ammortamento_Finanziario!$H:$L,5,FALSE),VLOOKUP($M61,TT_Tabelle_Riferimento!$D$127:$H$164,5,FALSE))","v":40},{"$f":"+IFERROR(VLOOKUP(RF$27&\"-\"&$M61&\"_new\",Ammortamento_Finanziario!$H:$L,5,FALSE),VLOOKUP($M61,TT_Tabelle_Riferimento!$D$127:$H$164,5,FALSE))","v":40},{"$f":"+IFERROR(VLOOKUP(RG$27&\"-\"&$M61&\"_new\",Ammortamento_Finanziario!$H:$L,5,FALSE),VLOOKUP($M61,TT_Tabelle_Riferimento!$D$127:$H$164,5,FALSE))","v":40},{"$f":"+IFERROR(VLOOKUP(RH$27&\"-\"&$M61&\"_new\",Ammortamento_Finanziario!$H:$L,5,FALSE),VLOOKUP($M61,TT_Tabelle_Riferimento!$D$127:$H$164,5,FALSE))","v":40},{"$f":"+IFERROR(VLOOKUP(RI$27&\"-\"&$M61&\"_new\",Ammortamento_Finanziario!$H:$L,5,FALSE),VLOOKUP($M61,TT_Tabelle_Riferimento!$D$127:$H$164,5,FALSE))","v":40},{"$f":"+IFERROR(VLOOKUP(RJ$27&\"-\"&$M61&\"_new\",Ammortamento_Finanziario!$H:$L,5,FALSE),VLOOKUP($M61,TT_Tabelle_Riferimento!$D$127:$H$164,5,FALSE))","v":40},{"$f":"+IFERROR(VLOOKUP(RK$27&\"-\"&$M61&\"_new\",Ammortamento_Finanziario!$H:$L,5,FALSE),VLOOKUP($M61,TT_Tabelle_Riferimento!$D$127:$H$164,5,FALSE))","v":40},{"$f":"+IFERROR(VLOOKUP(RL$27&\"-\"&$M61&\"_new\",Ammortamento_Finanziario!$H:$L,5,FALSE),VLOOKUP($M61,TT_Tabelle_Riferimento!$D$127:$H$164,5,FALSE))","v":40},{"$f":"+IFERROR(VLOOKUP(RM$27&\"-\"&$M61&\"_new\",Ammortamento_Finanziario!$H:$L,5,FALSE),VLOOKUP($M61,TT_Tabelle_Riferimento!$D$127:$H$164,5,FALSE))","v":40},{"$f":"+IFERROR(VLOOKUP(RN$27&\"-\"&$M61&\"_new\",Ammortamento_Finanziario!$H:$L,5,FALSE),VLOOKUP($M61,TT_Tabelle_Riferimento!$D$127:$H$164,5,FALSE))","v":40},{"$f":"+IFERROR(VLOOKUP(RO$27&\"-\"&$M61&\"_new\",Ammortamento_Finanziario!$H:$L,5,FALSE),VLOOKUP($M61,TT_Tabelle_Riferimento!$D$127:$H$164,5,FALSE))","v":40},{"$f":"+IFERROR(VLOOKUP(RP$27&\"-\"&$M61&\"_new\",Ammortamento_Finanziario!$H:$L,5,FALSE),VLOOKUP($M61,TT_Tabelle_Riferimento!$D$127:$H$164,5,FALSE))","v":40},{"$f":"+IFERROR(VLOOKUP(RQ$27&\"-\"&$M61&\"_new\",Ammortamento_Finanziario!$H:$L,5,FALSE),VLOOKUP($M61,TT_Tabelle_Riferimento!$D$127:$H$164,5,FALSE))","v":40},{"$f":"+IFERROR(VLOOKUP(RR$27&\"-\"&$M61&\"_new\",Ammortamento_Finanziario!$H:$L,5,FALSE),VLOOKUP($M61,TT_Tabelle_Riferimento!$D$127:$H$164,5,FALSE))","v":40},{"$f":"+IFERROR(VLOOKUP(RS$27&\"-\"&$M61&\"_new\",Ammortamento_Finanziario!$H:$L,5,FALSE),VLOOKUP($M61,TT_Tabelle_Riferimento!$D$127:$H$164,5,FALSE))","v":40},{"$f":"+IFERROR(VLOOKUP(RT$27&\"-\"&$M61&\"_new\",Ammortamento_Finanziario!$H:$L,5,FALSE),VLOOKUP($M61,TT_Tabelle_Riferimento!$D$127:$H$164,5,FALSE))","v":40},{"$f":"+IFERROR(VLOOKUP(RU$27&\"-\"&$M61&\"_new\",Ammortamento_Finanziario!$H:$L,5,FALSE),VLOOKUP($M61,TT_Tabelle_Riferimento!$D$127:$H$164,5,FALSE))","v":40},{"$f":"+IFERROR(VLOOKUP(RV$27&\"-\"&$M61&\"_new\",Ammortamento_Finanziario!$H:$L,5,FALSE),VLOOKUP($M61,TT_Tabelle_Riferimento!$D$127:$H$164,5,FALSE))","v":40}]
[null,null,null,null,null,null,null,null,null,null,null,null,35,0,0,0,0,0,0,0,0,0,0,0,0,0,0,0,0,0,0,0,0,0,0,0,0,0,0,0,0,0,0,0,0,0,0,0,0,0,0,0,0,0,0,0,0,0,0,0,0,0,0,0,0,0,0,0,0,0,0,0,0,0,0,0,0,0,0,0,0,0,0,0,0,0,0,0,0,0,0,0,0,0,0,0,0,0,0,0,0,0,0,0,0,0,0,0,0,0,0,0,0,0,0,0,0,0,0,0,0,0,0,0,0,0,0,0,0,0,0,0,0,0,0,0,0,0,0,0,0,0,0,0,0,0,0,0,0,0,0,0,0,0,0,0,0,0,0,0,0,0,0,0,0,0,0,0,0,0,0,0,0,0,0,0,0,0,0,0,0,0,0,0,0,0,0,0,0,0,0,0,0,0,0,0,0,0,0,0,0,0,0,0,0,0,0,0,0,0,0,0,0,0,0,0,0,0,0,0,0,0,0,0,0,0,0,0,0,0,0,0,0,0,0,0,0,0,0,0,0,0,0,0,0,0,0,0,0,0,0,0,0,0,0,0,0,0,0,0,0,0,0,0,0,0,0,0,0,0,0,0,0,0,0,0,0,0,0,0,0,0,0,0,0,0,0,0,0,0,0,0,0,0,0,0,0,0,0,0,0,0,{"$f":"+IFERROR(VLOOKUP(KQ$27&\"-\"&$M62&\"_new\",Ammortamento_Finanziario!$H:$L,5,FALSE),VLOOKUP($M62,TT_Tabelle_Riferimento!$D$127:$H$164,5,FALSE))","v":20},{"$f":"+IFERROR(VLOOKUP(KR$27&\"-\"&$M62&\"_new\",Ammortamento_Finanziario!$H:$L,5,FALSE),VLOOKUP($M62,TT_Tabelle_Riferimento!$D$127:$H$164,5,FALSE))","v":20},{"$f":"+IFERROR(VLOOKUP(KS$27&\"-\"&$M62&\"_new\",Ammortamento_Finanziario!$H:$L,5,FALSE),VLOOKUP($M62,TT_Tabelle_Riferimento!$D$127:$H$164,5,FALSE))","v":20},{"$f":"+IFERROR(VLOOKUP(KT$27&\"-\"&$M62&\"_new\",Ammortamento_Finanziario!$H:$L,5,FALSE),VLOOKUP($M62,TT_Tabelle_Riferimento!$D$127:$H$164,5,FALSE))","v":20},{"$f":"+IFERROR(VLOOKUP(KU$27&\"-\"&$M62&\"_new\",Ammortamento_Finanziario!$H:$L,5,FALSE),VLOOKUP($M62,TT_Tabelle_Riferimento!$D$127:$H$164,5,FALSE))","v":20},{"$f":"+IFERROR(VLOOKUP(KV$27&\"-\"&$M62&\"_new\",Ammortamento_Finanziario!$H:$L,5,FALSE),VLOOKUP($M62,TT_Tabelle_Riferimento!$D$127:$H$164,5,FALSE))","v":20},{"$f":"+IFERROR(VLOOKUP(KW$27&\"-\"&$M62&\"_new\",Ammortamento_Finanziario!$H:$L,5,FALSE),VLOOKUP($M62,TT_Tabelle_Riferimento!$D$127:$H$164,5,FALSE))","v":20},{"$f":"+IFERROR(VLOOKUP(KX$27&\"-\"&$M62&\"_new\",Ammortamento_Finanziario!$H:$L,5,FALSE),VLOOKUP($M62,TT_Tabelle_Riferimento!$D$127:$H$164,5,FALSE))","v":20},{"$f":"+IFERROR(VLOOKUP(KY$27&\"-\"&$M62&\"_new\",Ammortamento_Finanziario!$H:$L,5,FALSE),VLOOKUP($M62,TT_Tabelle_Riferimento!$D$127:$H$164,5,FALSE))","v":20},{"$f":"+IFERROR(VLOOKUP(KZ$27&\"-\"&$M62&\"_new\",Ammortamento_Finanziario!$H:$L,5,FALSE),VLOOKUP($M62,TT_Tabelle_Riferimento!$D$127:$H$164,5,FALSE))","v":20},{"$f":"+IFERROR(VLOOKUP(LA$27&\"-\"&$M62&\"_new\",Ammortamento_Finanziario!$H:$L,5,FALSE),VLOOKUP($M62,TT_Tabelle_Riferimento!$D$127:$H$164,5,FALSE))","v":20},{"$f":"+IFERROR(VLOOKUP(LB$27&\"-\"&$M62&\"_new\",Ammortamento_Finanziario!$H:$L,5,FALSE),VLOOKUP($M62,TT_Tabelle_Riferimento!$D$127:$H$164,5,FALSE))","v":20},{"$f":"+IFERROR(VLOOKUP(LC$27&\"-\"&$M62&\"_new\",Ammortamento_Finanziario!$H:$L,5,FALSE),VLOOKUP($M62,TT_Tabelle_Riferimento!$D$127:$H$164,5,FALSE))","v":20},{"$f":"+IFERROR(VLOOKUP(LD$27&\"-\"&$M62&\"_new\",Ammortamento_Finanziario!$H:$L,5,FALSE),VLOOKUP($M62,TT_Tabelle_Riferimento!$D$127:$H$164,5,FALSE))","v":20},{"$f":"+IFERROR(VLOOKUP(LE$27&\"-\"&$M62&\"_new\",Ammortamento_Finanziario!$H:$L,5,FALSE),VLOOKUP($M62,TT_Tabelle_Riferimento!$D$127:$H$164,5,FALSE))","v":20},{"$f":"+IFERROR(VLOOKUP(LF$27&\"-\"&$M62&\"_new\",Ammortamento_Finanziario!$H:$L,5,FALSE),VLOOKUP($M62,TT_Tabelle_Riferimento!$D$127:$H$164,5,FALSE))","v":20},{"$f":"+IFERROR(VLOOKUP(LG$27&\"-\"&$M62&\"_new\",Ammortamento_Finanziario!$H:$L,5,FALSE),VLOOKUP($M62,TT_Tabelle_Riferimento!$D$127:$H$164,5,FALSE))","v":20},{"$f":"+IFERROR(VLOOKUP(LH$27&\"-\"&$M62&\"_new\",Ammortamento_Finanziario!$H:$L,5,FALSE),VLOOKUP($M62,TT_Tabelle_Riferimento!$D$127:$H$164,5,FALSE))","v":20},{"$f":"+IFERROR(VLOOKUP(LI$27&\"-\"&$M62&\"_new\",Ammortamento_Finanziario!$H:$L,5,FALSE),VLOOKUP($M62,TT_Tabelle_Riferimento!$D$127:$H$164,5,FALSE))","v":20},{"$f":"+IFERROR(VLOOKUP(LJ$27&\"-\"&$M62&\"_new\",Ammortamento_Finanziario!$H:$L,5,FALSE),VLOOKUP($M62,TT_Tabelle_Riferimento!$D$127:$H$164,5,FALSE))","v":20},{"$f":"+IFERROR(VLOOKUP(LK$27&\"-\"&$M62&\"_new\",Ammortamento_Finanziario!$H:$L,5,FALSE),VLOOKUP($M62,TT_Tabelle_Riferimento!$D$127:$H$164,5,FALSE))","v":20},{"$f":"+IFERROR(VLOOKUP(LL$27&\"-\"&$M62&\"_new\",Ammortamento_Finanziario!$H:$L,5,FALSE),VLOOKUP($M62,TT_Tabelle_Riferimento!$D$127:$H$164,5,FALSE))","v":20},{"$f":"+IFERROR(VLOOKUP(LM$27&\"-\"&$M62&\"_new\",Ammortamento_Finanziario!$H:$L,5,FALSE),VLOOKUP($M62,TT_Tabelle_Riferimento!$D$127:$H$164,5,FALSE))","v":20},{"$f":"+IFERROR(VLOOKUP(LN$27&\"-\"&$M62&\"_new\",Ammortamento_Finanziario!$H:$L,5,FALSE),VLOOKUP($M62,TT_Tabelle_Riferimento!$D$127:$H$164,5,FALSE))","v":20},{"$f":"+IFERROR(VLOOKUP(LO$27&\"-\"&$M62&\"_new\",Ammortamento_Finanziario!$H:$L,5,FALSE),VLOOKUP($M62,TT_Tabelle_Riferimento!$D$127:$H$164,5,FALSE))","v":20},{"$f":"+IFERROR(VLOOKUP(LP$27&\"-\"&$M62&\"_new\",Ammortamento_Finanziario!$H:$L,5,FALSE),VLOOKUP($M62,TT_Tabelle_Riferimento!$D$127:$H$164,5,FALSE))","v":20},{"$f":"+IFERROR(VLOOKUP(LQ$27&\"-\"&$M62&\"_new\",Ammortamento_Finanziario!$H:$L,5,FALSE),VLOOKUP($M62,TT_Tabelle_Riferimento!$D$127:$H$164,5,FALSE))","v":20},{"$f":"+IFERROR(VLOOKUP(LR$27&\"-\"&$M62&\"_new\",Ammortamento_Finanziario!$H:$L,5,FALSE),VLOOKUP($M62,TT_Tabelle_Riferimento!$D$127:$H$164,5,FALSE))","v":20},{"$f":"+IFERROR(VLOOKUP(LS$27&\"-\"&$M62&\"_new\",Ammortamento_Finanziario!$H:$L,5,FALSE),VLOOKUP($M62,TT_Tabelle_Riferimento!$D$127:$H$164,5,FALSE))","v":20},{"$f":"+IFERROR(VLOOKUP(LT$27&\"-\"&$M62&\"_new\",Ammortamento_Finanziario!$H:$L,5,FALSE),VLOOKUP($M62,TT_Tabelle_Riferimento!$D$127:$H$164,5,FALSE))","v":20},{"$f":"+IFERROR(VLOOKUP(LU$27&\"-\"&$M62&\"_new\",Ammortamento_Finanziario!$H:$L,5,FALSE),VLOOKUP($M62,TT_Tabelle_Riferimento!$D$127:$H$164,5,FALSE))","v":20},{"$f":"+IFERROR(VLOOKUP(LV$27&\"-\"&$M62&\"_new\",Ammortamento_Finanziario!$H:$L,5,FALSE),VLOOKUP($M62,TT_Tabelle_Riferimento!$D$127:$H$164,5,FALSE))","v":20},{"$f":"+IFERROR(VLOOKUP(LW$27&\"-\"&$M62&\"_new\",Ammortamento_Finanziario!$H:$L,5,FALSE),VLOOKUP($M62,TT_Tabelle_Riferimento!$D$127:$H$164,5,FALSE))","v":20},{"$f":"+IFERROR(VLOOKUP(LX$27&\"-\"&$M62&\"_new\",Ammortamento_Finanziario!$H:$L,5,FALSE),VLOOKUP($M62,TT_Tabelle_Riferimento!$D$127:$H$164,5,FALSE))","v":20},{"$f":"+IFERROR(VLOOKUP(LY$27&\"-\"&$M62&\"_new\",Ammortamento_Finanziario!$H:$L,5,FALSE),VLOOKUP($M62,TT_Tabelle_Riferimento!$D$127:$H$164,5,FALSE))","v":20},{"$f":"+IFERROR(VLOOKUP(LZ$27&\"-\"&$M62&\"_new\",Ammortamento_Finanziario!$H:$L,5,FALSE),VLOOKUP($M62,TT_Tabelle_Riferimento!$D$127:$H$164,5,FALSE))","v":20},{"$f":"+IFERROR(VLOOKUP(MA$27&\"-\"&$M62&\"_new\",Ammortamento_Finanziario!$H:$L,5,FALSE),VLOOKUP($M62,TT_Tabelle_Riferimento!$D$127:$H$164,5,FALSE))","v":20},{"$f":"+IFERROR(VLOOKUP(MB$27&\"-\"&$M62&\"_new\",Ammortamento_Finanziario!$H:$L,5,FALSE),VLOOKUP($M62,TT_Tabelle_Riferimento!$D$127:$H$164,5,FALSE))","v":20},{"$f":"+IFERROR(VLOOKUP(MC$27&\"-\"&$M62&\"_new\",Ammortamento_Finanziario!$H:$L,5,FALSE),VLOOKUP($M62,TT_Tabelle_Riferimento!$D$127:$H$164,5,FALSE))","v":20},{"$f":"+IFERROR(VLOOKUP(MD$27&\"-\"&$M62&\"_new\",Ammortamento_Finanziario!$H:$L,5,FALSE),VLOOKUP($M62,TT_Tabelle_Riferimento!$D$127:$H$164,5,FALSE))","v":20},{"$f":"+IFERROR(VLOOKUP(ME$27&\"-\"&$M62&\"_new\",Ammortamento_Finanziario!$H:$L,5,FALSE),VLOOKUP($M62,TT_Tabelle_Riferimento!$D$127:$H$164,5,FALSE))","v":20},{"$f":"+IFERROR(VLOOKUP(MF$27&\"-\"&$M62&\"_new\",Ammortamento_Finanziario!$H:$L,5,FALSE),VLOOKUP($M62,TT_Tabelle_Riferimento!$D$127:$H$164,5,FALSE))","v":20},{"$f":"+IFERROR(VLOOKUP(MG$27&\"-\"&$M62&\"_new\",Ammortamento_Finanziario!$H:$L,5,FALSE),VLOOKUP($M62,TT_Tabelle_Riferimento!$D$127:$H$164,5,FALSE))","v":20},{"$f":"+IFERROR(VLOOKUP(MH$27&\"-\"&$M62&\"_new\",Ammortamento_Finanziario!$H:$L,5,FALSE),VLOOKUP($M62,TT_Tabelle_Riferimento!$D$127:$H$164,5,FALSE))","v":20},{"$f":"+IFERROR(VLOOKUP(MI$27&\"-\"&$M62&\"_new\",Ammortamento_Finanziario!$H:$L,5,FALSE),VLOOKUP($M62,TT_Tabelle_Riferimento!$D$127:$H$164,5,FALSE))","v":20},{"$f":"+IFERROR(VLOOKUP(MJ$27&\"-\"&$M62&\"_new\",Ammortamento_Finanziario!$H:$L,5,FALSE),VLOOKUP($M62,TT_Tabelle_Riferimento!$D$127:$H$164,5,FALSE))","v":20},{"$f":"+IFERROR(VLOOKUP(MK$27&\"-\"&$M62&\"_new\",Ammortamento_Finanziario!$H:$L,5,FALSE),VLOOKUP($M62,TT_Tabelle_Riferimento!$D$127:$H$164,5,FALSE))","v":20},{"$f":"+IFERROR(VLOOKUP(ML$27&\"-\"&$M62&\"_new\",Ammortamento_Finanziario!$H:$L,5,FALSE),VLOOKUP($M62,TT_Tabelle_Riferimento!$D$127:$H$164,5,FALSE))","v":20},{"$f":"+IFERROR(VLOOKUP(MM$27&\"-\"&$M62&\"_new\",Ammortamento_Finanziario!$H:$L,5,FALSE),VLOOKUP($M62,TT_Tabelle_Riferimento!$D$127:$H$164,5,FALSE))","v":20},{"$f":"+IFERROR(VLOOKUP(MN$27&\"-\"&$M62&\"_new\",Ammortamento_Finanziario!$H:$L,5,FALSE),VLOOKUP($M62,TT_Tabelle_Riferimento!$D$127:$H$164,5,FALSE))","v":20},{"$f":"+IFERROR(VLOOKUP(MO$27&\"-\"&$M62&\"_new\",Ammortamento_Finanziario!$H:$L,5,FALSE),VLOOKUP($M62,TT_Tabelle_Riferimento!$D$127:$H$164,5,FALSE))","v":20},{"$f":"+IFERROR(VLOOKUP(MP$27&\"-\"&$M62&\"_new\",Ammortamento_Finanziario!$H:$L,5,FALSE),VLOOKUP($M62,TT_Tabelle_Riferimento!$D$127:$H$164,5,FALSE))","v":20},{"$f":"+IFERROR(VLOOKUP(MQ$27&\"-\"&$M62&\"_new\",Ammortamento_Finanziario!$H:$L,5,FALSE),VLOOKUP($M62,TT_Tabelle_Riferimento!$D$127:$H$164,5,FALSE))","v":20},{"$f":"+IFERROR(VLOOKUP(MR$27&\"-\"&$M62&\"_new\",Ammortamento_Finanziario!$H:$L,5,FALSE),VLOOKUP($M62,TT_Tabelle_Riferimento!$D$127:$H$164,5,FALSE))","v":20},{"$f":"+IFERROR(VLOOKUP(MS$27&\"-\"&$M62&\"_new\",Ammortamento_Finanziario!$H:$L,5,FALSE),VLOOKUP($M62,TT_Tabelle_Riferimento!$D$127:$H$164,5,FALSE))","v":20},{"$f":"+IFERROR(VLOOKUP(MT$27&\"-\"&$M62&\"_new\",Ammortamento_Finanziario!$H:$L,5,FALSE),VLOOKUP($M62,TT_Tabelle_Riferimento!$D$127:$H$164,5,FALSE))","v":20},{"$f":"+IFERROR(VLOOKUP(MU$27&\"-\"&$M62&\"_new\",Ammortamento_Finanziario!$H:$L,5,FALSE),VLOOKUP($M62,TT_Tabelle_Riferimento!$D$127:$H$164,5,FALSE))","v":20},{"$f":"+IFERROR(VLOOKUP(MV$27&\"-\"&$M62&\"_new\",Ammortamento_Finanziario!$H:$L,5,FALSE),VLOOKUP($M62,TT_Tabelle_Riferimento!$D$127:$H$164,5,FALSE))","v":20},{"$f":"+IFERROR(VLOOKUP(MW$27&\"-\"&$M62&\"_new\",Ammortamento_Finanziario!$H:$L,5,FALSE),VLOOKUP($M62,TT_Tabelle_Riferimento!$D$127:$H$164,5,FALSE))","v":20},{"$f":"+IFERROR(VLOOKUP(MX$27&\"-\"&$M62&\"_new\",Ammortamento_Finanziario!$H:$L,5,FALSE),VLOOKUP($M62,TT_Tabelle_Riferimento!$D$127:$H$164,5,FALSE))","v":20},{"$f":"+IFERROR(VLOOKUP(MY$27&\"-\"&$M62&\"_new\",Ammortamento_Finanziario!$H:$L,5,FALSE),VLOOKUP($M62,TT_Tabelle_Riferimento!$D$127:$H$164,5,FALSE))","v":20},{"$f":"+IFERROR(VLOOKUP(MZ$27&\"-\"&$M62&\"_new\",Ammortamento_Finanziario!$H:$L,5,FALSE),VLOOKUP($M62,TT_Tabelle_Riferimento!$D$127:$H$164,5,FALSE))","v":20},{"$f":"+IFERROR(VLOOKUP(NA$27&\"-\"&$M62&\"_new\",Ammortamento_Finanziario!$H:$L,5,FALSE),VLOOKUP($M62,TT_Tabelle_Riferimento!$D$127:$H$164,5,FALSE))","v":20},{"$f":"+IFERROR(VLOOKUP(NB$27&\"-\"&$M62&\"_new\",Ammortamento_Finanziario!$H:$L,5,FALSE),VLOOKUP($M62,TT_Tabelle_Riferimento!$D$127:$H$164,5,FALSE))","v":20},{"$f":"+IFERROR(VLOOKUP(NC$27&\"-\"&$M62&\"_new\",Ammortamento_Finanziario!$H:$L,5,FALSE),VLOOKUP($M62,TT_Tabelle_Riferimento!$D$127:$H$164,5,FALSE))","v":20},{"$f":"+IFERROR(VLOOKUP(ND$27&\"-\"&$M62&\"_new\",Ammortamento_Finanziario!$H:$L,5,FALSE),VLOOKUP($M62,TT_Tabelle_Riferimento!$D$127:$H$164,5,FALSE))","v":20},{"$f":"+IFERROR(VLOOKUP(NE$27&\"-\"&$M62&\"_new\",Ammortamento_Finanziario!$H:$L,5,FALSE),VLOOKUP($M62,TT_Tabelle_Riferimento!$D$127:$H$164,5,FALSE))","v":20},{"$f":"+IFERROR(VLOOKUP(NF$27&\"-\"&$M62&\"_new\",Ammortamento_Finanziario!$H:$L,5,FALSE),VLOOKUP($M62,TT_Tabelle_Riferimento!$D$127:$H$164,5,FALSE))","v":20},{"$f":"+IFERROR(VLOOKUP(NG$27&\"-\"&$M62&\"_new\",Ammortamento_Finanziario!$H:$L,5,FALSE),VLOOKUP($M62,TT_Tabelle_Riferimento!$D$127:$H$164,5,FALSE))","v":20},{"$f":"+IFERROR(VLOOKUP(NH$27&\"-\"&$M62&\"_new\",Ammortamento_Finanziario!$H:$L,5,FALSE),VLOOKUP($M62,TT_Tabelle_Riferimento!$D$127:$H$164,5,FALSE))","v":20},{"$f":"+IFERROR(VLOOKUP(NI$27&\"-\"&$M62&\"_new\",Ammortamento_Finanziario!$H:$L,5,FALSE),VLOOKUP($M62,TT_Tabelle_Riferimento!$D$127:$H$164,5,FALSE))","v":20},{"$f":"+IFERROR(VLOOKUP(NJ$27&\"-\"&$M62&\"_new\",Ammortamento_Finanziario!$H:$L,5,FALSE),VLOOKUP($M62,TT_Tabelle_Riferimento!$D$127:$H$164,5,FALSE))","v":20},{"$f":"+IFERROR(VLOOKUP(NK$27&\"-\"&$M62&\"_new\",Ammortamento_Finanziario!$H:$L,5,FALSE),VLOOKUP($M62,TT_Tabelle_Riferimento!$D$127:$H$164,5,FALSE))","v":20},{"$f":"+IFERROR(VLOOKUP(NL$27&\"-\"&$M62&\"_new\",Ammortamento_Finanziario!$H:$L,5,FALSE),VLOOKUP($M62,TT_Tabelle_Riferimento!$D$127:$H$164,5,FALSE))","v":20},{"$f":"+IFERROR(VLOOKUP(NM$27&\"-\"&$M62&\"_new\",Ammortamento_Finanziario!$H:$L,5,FALSE),VLOOKUP($M62,TT_Tabelle_Riferimento!$D$127:$H$164,5,FALSE))","v":20},{"$f":"+IFERROR(VLOOKUP(NN$27&\"-\"&$M62&\"_new\",Ammortamento_Finanziario!$H:$L,5,FALSE),VLOOKUP($M62,TT_Tabelle_Riferimento!$D$127:$H$164,5,FALSE))","v":20},{"$f":"+IFERROR(VLOOKUP(NO$27&\"-\"&$M62&\"_new\",Ammortamento_Finanziario!$H:$L,5,FALSE),VLOOKUP($M62,TT_Tabelle_Riferimento!$D$127:$H$164,5,FALSE))","v":20},{"$f":"+IFERROR(VLOOKUP(NP$27&\"-\"&$M62&\"_new\",Ammortamento_Finanziario!$H:$L,5,FALSE),VLOOKUP($M62,TT_Tabelle_Riferimento!$D$127:$H$164,5,FALSE))","v":20},{"$f":"+IFERROR(VLOOKUP(NQ$27&\"-\"&$M62&\"_new\",Ammortamento_Finanziario!$H:$L,5,FALSE),VLOOKUP($M62,TT_Tabelle_Riferimento!$D$127:$H$164,5,FALSE))","v":20},{"$f":"+IFERROR(VLOOKUP(NR$27&\"-\"&$M62&\"_new\",Ammortamento_Finanziario!$H:$L,5,FALSE),VLOOKUP($M62,TT_Tabelle_Riferimento!$D$127:$H$164,5,FALSE))","v":20},{"$f":"+IFERROR(VLOOKUP(NS$27&\"-\"&$M62&\"_new\",Ammortamento_Finanziario!$H:$L,5,FALSE),VLOOKUP($M62,TT_Tabelle_Riferimento!$D$127:$H$164,5,FALSE))","v":20},{"$f":"+IFERROR(VLOOKUP(NT$27&\"-\"&$M62&\"_new\",Ammortamento_Finanziario!$H:$L,5,FALSE),VLOOKUP($M62,TT_Tabelle_Riferimento!$D$127:$H$164,5,FALSE))","v":20},{"$f":"+IFERROR(VLOOKUP(NU$27&\"-\"&$M62&\"_new\",Ammortamento_Finanziario!$H:$L,5,FALSE),VLOOKUP($M62,TT_Tabelle_Riferimento!$D$127:$H$164,5,FALSE))","v":20},{"$f":"+IFERROR(VLOOKUP(NV$27&\"-\"&$M62&\"_new\",Ammortamento_Finanziario!$H:$L,5,FALSE),VLOOKUP($M62,TT_Tabelle_Riferimento!$D$127:$H$164,5,FALSE))","v":20},{"$f":"+IFERROR(VLOOKUP(NW$27&\"-\"&$M62&\"_new\",Ammortamento_Finanziario!$H:$L,5,FALSE),VLOOKUP($M62,TT_Tabelle_Riferimento!$D$127:$H$164,5,FALSE))","v":20},{"$f":"+IFERROR(VLOOKUP(NX$27&\"-\"&$M62&\"_new\",Ammortamento_Finanziario!$H:$L,5,FALSE),VLOOKUP($M62,TT_Tabelle_Riferimento!$D$127:$H$164,5,FALSE))","v":20},{"$f":"+IFERROR(VLOOKUP(NY$27&\"-\"&$M62&\"_new\",Ammortamento_Finanziario!$H:$L,5,FALSE),VLOOKUP($M62,TT_Tabelle_Riferimento!$D$127:$H$164,5,FALSE))","v":20},{"$f":"+IFERROR(VLOOKUP(NZ$27&\"-\"&$M62&\"_new\",Ammortamento_Finanziario!$H:$L,5,FALSE),VLOOKUP($M62,TT_Tabelle_Riferimento!$D$127:$H$164,5,FALSE))","v":20},{"$f":"+IFERROR(VLOOKUP(OA$27&\"-\"&$M62&\"_new\",Ammortamento_Finanziario!$H:$L,5,FALSE),VLOOKUP($M62,TT_Tabelle_Riferimento!$D$127:$H$164,5,FALSE))","v":20},{"$f":"+IFERROR(VLOOKUP(OB$27&\"-\"&$M62&\"_new\",Ammortamento_Finanziario!$H:$L,5,FALSE),VLOOKUP($M62,TT_Tabelle_Riferimento!$D$127:$H$164,5,FALSE))","v":20},{"$f":"+IFERROR(VLOOKUP(OC$27&\"-\"&$M62&\"_new\",Ammortamento_Finanziario!$H:$L,5,FALSE),VLOOKUP($M62,TT_Tabelle_Riferimento!$D$127:$H$164,5,FALSE))","v":20},{"$f":"+IFERROR(VLOOKUP(OD$27&\"-\"&$M62&\"_new\",Ammortamento_Finanziario!$H:$L,5,FALSE),VLOOKUP($M62,TT_Tabelle_Riferimento!$D$127:$H$164,5,FALSE))","v":20},{"$f":"+IFERROR(VLOOKUP(OE$27&\"-\"&$M62&\"_new\",Ammortamento_Finanziario!$H:$L,5,FALSE),VLOOKUP($M62,TT_Tabelle_Riferimento!$D$127:$H$164,5,FALSE))","v":20},{"$f":"+IFERROR(VLOOKUP(OF$27&\"-\"&$M62&\"_new\",Ammortamento_Finanziario!$H:$L,5,FALSE),VLOOKUP($M62,TT_Tabelle_Riferimento!$D$127:$H$164,5,FALSE))","v":20},{"$f":"+IFERROR(VLOOKUP(OG$27&\"-\"&$M62&\"_new\",Ammortamento_Finanziario!$H:$L,5,FALSE),VLOOKUP($M62,TT_Tabelle_Riferimento!$D$127:$H$164,5,FALSE))","v":20},{"$f":"+IFERROR(VLOOKUP(OH$27&\"-\"&$M62&\"_new\",Ammortamento_Finanziario!$H:$L,5,FALSE),VLOOKUP($M62,TT_Tabelle_Riferimento!$D$127:$H$164,5,FALSE))","v":20},{"$f":"+IFERROR(VLOOKUP(OI$27&\"-\"&$M62&\"_new\",Ammortamento_Finanziario!$H:$L,5,FALSE),VLOOKUP($M62,TT_Tabelle_Riferimento!$D$127:$H$164,5,FALSE))","v":20},{"$f":"+IFERROR(VLOOKUP(OJ$27&\"-\"&$M62&\"_new\",Ammortamento_Finanziario!$H:$L,5,FALSE),VLOOKUP($M62,TT_Tabelle_Riferimento!$D$127:$H$164,5,FALSE))","v":20},{"$f":"+IFERROR(VLOOKUP(OK$27&\"-\"&$M62&\"_new\",Ammortamento_Finanziario!$H:$L,5,FALSE),VLOOKUP($M62,TT_Tabelle_Riferimento!$D$127:$H$164,5,FALSE))","v":20},{"$f":"+IFERROR(VLOOKUP(OL$27&\"-\"&$M62&\"_new\",Ammortamento_Finanziario!$H:$L,5,FALSE),VLOOKUP($M62,TT_Tabelle_Riferimento!$D$127:$H$164,5,FALSE))","v":20},{"$f":"+IFERROR(VLOOKUP(OM$27&\"-\"&$M62&\"_new\",Ammortamento_Finanziario!$H:$L,5,FALSE),VLOOKUP($M62,TT_Tabelle_Riferimento!$D$127:$H$164,5,FALSE))","v":20},{"$f":"+IFERROR(VLOOKUP(ON$27&\"-\"&$M62&\"_new\",Ammortamento_Finanziario!$H:$L,5,FALSE),VLOOKUP($M62,TT_Tabelle_Riferimento!$D$127:$H$164,5,FALSE))","v":20},{"$f":"+IFERROR(VLOOKUP(OO$27&\"-\"&$M62&\"_new\",Ammortamento_Finanziario!$H:$L,5,FALSE),VLOOKUP($M62,TT_Tabelle_Riferimento!$D$127:$H$164,5,FALSE))","v":20},{"$f":"+IFERROR(VLOOKUP(OP$27&\"-\"&$M62&\"_new\",Ammortamento_Finanziario!$H:$L,5,FALSE),VLOOKUP($M62,TT_Tabelle_Riferimento!$D$127:$H$164,5,FALSE))","v":20},{"$f":"+IFERROR(VLOOKUP(OQ$27&\"-\"&$M62&\"_new\",Ammortamento_Finanziario!$H:$L,5,FALSE),VLOOKUP($M62,TT_Tabelle_Riferimento!$D$127:$H$164,5,FALSE))","v":20},{"$f":"+IFERROR(VLOOKUP(OR$27&\"-\"&$M62&\"_new\",Ammortamento_Finanziario!$H:$L,5,FALSE),VLOOKUP($M62,TT_Tabelle_Riferimento!$D$127:$H$164,5,FALSE))","v":20},{"$f":"+IFERROR(VLOOKUP(OS$27&\"-\"&$M62&\"_new\",Ammortamento_Finanziario!$H:$L,5,FALSE),VLOOKUP($M62,TT_Tabelle_Riferimento!$D$127:$H$164,5,FALSE))","v":20},{"$f":"+IFERROR(VLOOKUP(OT$27&\"-\"&$M62&\"_new\",Ammortamento_Finanziario!$H:$L,5,FALSE),VLOOKUP($M62,TT_Tabelle_Riferimento!$D$127:$H$164,5,FALSE))","v":20},{"$f":"+IFERROR(VLOOKUP(OU$27&\"-\"&$M62&\"_new\",Ammortamento_Finanziario!$H:$L,5,FALSE),VLOOKUP($M62,TT_Tabelle_Riferimento!$D$127:$H$164,5,FALSE))","v":20},{"$f":"+IFERROR(VLOOKUP(OV$27&\"-\"&$M62&\"_new\",Ammortamento_Finanziario!$H:$L,5,FALSE),VLOOKUP($M62,TT_Tabelle_Riferimento!$D$127:$H$164,5,FALSE))","v":20},{"$f":"+IFERROR(VLOOKUP(OW$27&\"-\"&$M62&\"_new\",Ammortamento_Finanziario!$H:$L,5,FALSE),VLOOKUP($M62,TT_Tabelle_Riferimento!$D$127:$H$164,5,FALSE))","v":20},{"$f":"+IFERROR(VLOOKUP(OX$27&\"-\"&$M62&\"_new\",Ammortamento_Finanziario!$H:$L,5,FALSE),VLOOKUP($M62,TT_Tabelle_Riferimento!$D$127:$H$164,5,FALSE))","v":20},{"$f":"+IFERROR(VLOOKUP(OY$27&\"-\"&$M62&\"_new\",Ammortamento_Finanziario!$H:$L,5,FALSE),VLOOKUP($M62,TT_Tabelle_Riferimento!$D$127:$H$164,5,FALSE))","v":20},{"$f":"+IFERROR(VLOOKUP(OZ$27&\"-\"&$M62&\"_new\",Ammortamento_Finanziario!$H:$L,5,FALSE),VLOOKUP($M62,TT_Tabelle_Riferimento!$D$127:$H$164,5,FALSE))","v":20},{"$f":"+IFERROR(VLOOKUP(PA$27&\"-\"&$M62&\"_new\",Ammortamento_Finanziario!$H:$L,5,FALSE),VLOOKUP($M62,TT_Tabelle_Riferimento!$D$127:$H$164,5,FALSE))","v":20},{"$f":"+IFERROR(VLOOKUP(PB$27&\"-\"&$M62&\"_new\",Ammortamento_Finanziario!$H:$L,5,FALSE),VLOOKUP($M62,TT_Tabelle_Riferimento!$D$127:$H$164,5,FALSE))","v":20},{"$f":"+IFERROR(VLOOKUP(PC$27&\"-\"&$M62&\"_new\",Ammortamento_Finanziario!$H:$L,5,FALSE),VLOOKUP($M62,TT_Tabelle_Riferimento!$D$127:$H$164,5,FALSE))","v":20},{"$f":"+IFERROR(VLOOKUP(PD$27&\"-\"&$M62&\"_new\",Ammortamento_Finanziario!$H:$L,5,FALSE),VLOOKUP($M62,TT_Tabelle_Riferimento!$D$127:$H$164,5,FALSE))","v":20},{"$f":"+IFERROR(VLOOKUP(PE$27&\"-\"&$M62&\"_new\",Ammortamento_Finanziario!$H:$L,5,FALSE),VLOOKUP($M62,TT_Tabelle_Riferimento!$D$127:$H$164,5,FALSE))","v":20},{"$f":"+IFERROR(VLOOKUP(PF$27&\"-\"&$M62&\"_new\",Ammortamento_Finanziario!$H:$L,5,FALSE),VLOOKUP($M62,TT_Tabelle_Riferimento!$D$127:$H$164,5,FALSE))","v":20},{"$f":"+IFERROR(VLOOKUP(PG$27&\"-\"&$M62&\"_new\",Ammortamento_Finanziario!$H:$L,5,FALSE),VLOOKUP($M62,TT_Tabelle_Riferimento!$D$127:$H$164,5,FALSE))","v":20},{"$f":"+IFERROR(VLOOKUP(PH$27&\"-\"&$M62&\"_new\",Ammortamento_Finanziario!$H:$L,5,FALSE),VLOOKUP($M62,TT_Tabelle_Riferimento!$D$127:$H$164,5,FALSE))","v":20},{"$f":"+IFERROR(VLOOKUP(PI$27&\"-\"&$M62&\"_new\",Ammortamento_Finanziario!$H:$L,5,FALSE),VLOOKUP($M62,TT_Tabelle_Riferimento!$D$127:$H$164,5,FALSE))","v":20},{"$f":"+IFERROR(VLOOKUP(PJ$27&\"-\"&$M62&\"_new\",Ammortamento_Finanziario!$H:$L,5,FALSE),VLOOKUP($M62,TT_Tabelle_Riferimento!$D$127:$H$164,5,FALSE))","v":20},{"$f":"+IFERROR(VLOOKUP(PK$27&\"-\"&$M62&\"_new\",Ammortamento_Finanziario!$H:$L,5,FALSE),VLOOKUP($M62,TT_Tabelle_Riferimento!$D$127:$H$164,5,FALSE))","v":20},{"$f":"+IFERROR(VLOOKUP(PL$27&\"-\"&$M62&\"_new\",Ammortamento_Finanziario!$H:$L,5,FALSE),VLOOKUP($M62,TT_Tabelle_Riferimento!$D$127:$H$164,5,FALSE))","v":20},{"$f":"+IFERROR(VLOOKUP(PM$27&\"-\"&$M62&\"_new\",Ammortamento_Finanziario!$H:$L,5,FALSE),VLOOKUP($M62,TT_Tabelle_Riferimento!$D$127:$H$164,5,FALSE))","v":20},{"$f":"+IFERROR(VLOOKUP(PN$27&\"-\"&$M62&\"_new\",Ammortamento_Finanziario!$H:$L,5,FALSE),VLOOKUP($M62,TT_Tabelle_Riferimento!$D$127:$H$164,5,FALSE))","v":20},{"$f":"+IFERROR(VLOOKUP(PO$27&\"-\"&$M62&\"_new\",Ammortamento_Finanziario!$H:$L,5,FALSE),VLOOKUP($M62,TT_Tabelle_Riferimento!$D$127:$H$164,5,FALSE))","v":20},{"$f":"+IFERROR(VLOOKUP(PP$27&\"-\"&$M62&\"_new\",Ammortamento_Finanziario!$H:$L,5,FALSE),VLOOKUP($M62,TT_Tabelle_Riferimento!$D$127:$H$164,5,FALSE))","v":20},{"$f":"+IFERROR(VLOOKUP(PQ$27&\"-\"&$M62&\"_new\",Ammortamento_Finanziario!$H:$L,5,FALSE),VLOOKUP($M62,TT_Tabelle_Riferimento!$D$127:$H$164,5,FALSE))","v":20},{"$f":"+IFERROR(VLOOKUP(PR$27&\"-\"&$M62&\"_new\",Ammortamento_Finanziario!$H:$L,5,FALSE),VLOOKUP($M62,TT_Tabelle_Riferimento!$D$127:$H$164,5,FALSE))","v":20},{"$f":"+IFERROR(VLOOKUP(PS$27&\"-\"&$M62&\"_new\",Ammortamento_Finanziario!$H:$L,5,FALSE),VLOOKUP($M62,TT_Tabelle_Riferimento!$D$127:$H$164,5,FALSE))","v":20},{"$f":"+IFERROR(VLOOKUP(PT$27&\"-\"&$M62&\"_new\",Ammortamento_Finanziario!$H:$L,5,FALSE),VLOOKUP($M62,TT_Tabelle_Riferimento!$D$127:$H$164,5,FALSE))","v":20},{"$f":"+IFERROR(VLOOKUP(PU$27&\"-\"&$M62&\"_new\",Ammortamento_Finanziario!$H:$L,5,FALSE),VLOOKUP($M62,TT_Tabelle_Riferimento!$D$127:$H$164,5,FALSE))","v":20},{"$f":"+IFERROR(VLOOKUP(PV$27&\"-\"&$M62&\"_new\",Ammortamento_Finanziario!$H:$L,5,FALSE),VLOOKUP($M62,TT_Tabelle_Riferimento!$D$127:$H$164,5,FALSE))","v":20},{"$f":"+IFERROR(VLOOKUP(PW$27&\"-\"&$M62&\"_new\",Ammortamento_Finanziario!$H:$L,5,FALSE),VLOOKUP($M62,TT_Tabelle_Riferimento!$D$127:$H$164,5,FALSE))","v":20},{"$f":"+IFERROR(VLOOKUP(PX$27&\"-\"&$M62&\"_new\",Ammortamento_Finanziario!$H:$L,5,FALSE),VLOOKUP($M62,TT_Tabelle_Riferimento!$D$127:$H$164,5,FALSE))","v":20},{"$f":"+IFERROR(VLOOKUP(PY$27&\"-\"&$M62&\"_new\",Ammortamento_Finanziario!$H:$L,5,FALSE),VLOOKUP($M62,TT_Tabelle_Riferimento!$D$127:$H$164,5,FALSE))","v":20},{"$f":"+IFERROR(VLOOKUP(PZ$27&\"-\"&$M62&\"_new\",Ammortamento_Finanziario!$H:$L,5,FALSE),VLOOKUP($M62,TT_Tabelle_Riferimento!$D$127:$H$164,5,FALSE))","v":20},{"$f":"+IFERROR(VLOOKUP(QA$27&\"-\"&$M62&\"_new\",Ammortamento_Finanziario!$H:$L,5,FALSE),VLOOKUP($M62,TT_Tabelle_Riferimento!$D$127:$H$164,5,FALSE))","v":20},{"$f":"+IFERROR(VLOOKUP(QB$27&\"-\"&$M62&\"_new\",Ammortamento_Finanziario!$H:$L,5,FALSE),VLOOKUP($M62,TT_Tabelle_Riferimento!$D$127:$H$164,5,FALSE))","v":20},{"$f":"+IFERROR(VLOOKUP(QC$27&\"-\"&$M62&\"_new\",Ammortamento_Finanziario!$H:$L,5,FALSE),VLOOKUP($M62,TT_Tabelle_Riferimento!$D$127:$H$164,5,FALSE))","v":20},{"$f":"+IFERROR(VLOOKUP(QD$27&\"-\"&$M62&\"_new\",Ammortamento_Finanziario!$H:$L,5,FALSE),VLOOKUP($M62,TT_Tabelle_Riferimento!$D$127:$H$164,5,FALSE))","v":20},{"$f":"+IFERROR(VLOOKUP(QE$27&\"-\"&$M62&\"_new\",Ammortamento_Finanziario!$H:$L,5,FALSE),VLOOKUP($M62,TT_Tabelle_Riferimento!$D$127:$H$164,5,FALSE))","v":20},{"$f":"+IFERROR(VLOOKUP(QF$27&\"-\"&$M62&\"_new\",Ammortamento_Finanziario!$H:$L,5,FALSE),VLOOKUP($M62,TT_Tabelle_Riferimento!$D$127:$H$164,5,FALSE))","v":20},{"$f":"+IFERROR(VLOOKUP(QG$27&\"-\"&$M62&\"_new\",Ammortamento_Finanziario!$H:$L,5,FALSE),VLOOKUP($M62,TT_Tabelle_Riferimento!$D$127:$H$164,5,FALSE))","v":20},{"$f":"+IFERROR(VLOOKUP(QH$27&\"-\"&$M62&\"_new\",Ammortamento_Finanziario!$H:$L,5,FALSE),VLOOKUP($M62,TT_Tabelle_Riferimento!$D$127:$H$164,5,FALSE))","v":20},{"$f":"+IFERROR(VLOOKUP(QI$27&\"-\"&$M62&\"_new\",Ammortamento_Finanziario!$H:$L,5,FALSE),VLOOKUP($M62,TT_Tabelle_Riferimento!$D$127:$H$164,5,FALSE))","v":20},{"$f":"+IFERROR(VLOOKUP(QJ$27&\"-\"&$M62&\"_new\",Ammortamento_Finanziario!$H:$L,5,FALSE),VLOOKUP($M62,TT_Tabelle_Riferimento!$D$127:$H$164,5,FALSE))","v":20},{"$f":"+IFERROR(VLOOKUP(QK$27&\"-\"&$M62&\"_new\",Ammortamento_Finanziario!$H:$L,5,FALSE),VLOOKUP($M62,TT_Tabelle_Riferimento!$D$127:$H$164,5,FALSE))","v":20},{"$f":"+IFERROR(VLOOKUP(QL$27&\"-\"&$M62&\"_new\",Ammortamento_Finanziario!$H:$L,5,FALSE),VLOOKUP($M62,TT_Tabelle_Riferimento!$D$127:$H$164,5,FALSE))","v":20},{"$f":"+IFERROR(VLOOKUP(QM$27&\"-\"&$M62&\"_new\",Ammortamento_Finanziario!$H:$L,5,FALSE),VLOOKUP($M62,TT_Tabelle_Riferimento!$D$127:$H$164,5,FALSE))","v":20},{"$f":"+IFERROR(VLOOKUP(QN$27&\"-\"&$M62&\"_new\",Ammortamento_Finanziario!$H:$L,5,FALSE),VLOOKUP($M62,TT_Tabelle_Riferimento!$D$127:$H$164,5,FALSE))","v":20},{"$f":"+IFERROR(VLOOKUP(QO$27&\"-\"&$M62&\"_new\",Ammortamento_Finanziario!$H:$L,5,FALSE),VLOOKUP($M62,TT_Tabelle_Riferimento!$D$127:$H$164,5,FALSE))","v":20},{"$f":"+IFERROR(VLOOKUP(QP$27&\"-\"&$M62&\"_new\",Ammortamento_Finanziario!$H:$L,5,FALSE),VLOOKUP($M62,TT_Tabelle_Riferimento!$D$127:$H$164,5,FALSE))","v":20},{"$f":"+IFERROR(VLOOKUP(QQ$27&\"-\"&$M62&\"_new\",Ammortamento_Finanziario!$H:$L,5,FALSE),VLOOKUP($M62,TT_Tabelle_Riferimento!$D$127:$H$164,5,FALSE))","v":20},{"$f":"+IFERROR(VLOOKUP(QR$27&\"-\"&$M62&\"_new\",Ammortamento_Finanziario!$H:$L,5,FALSE),VLOOKUP($M62,TT_Tabelle_Riferimento!$D$127:$H$164,5,FALSE))","v":20},{"$f":"+IFERROR(VLOOKUP(QS$27&\"-\"&$M62&\"_new\",Ammortamento_Finanziario!$H:$L,5,FALSE),VLOOKUP($M62,TT_Tabelle_Riferimento!$D$127:$H$164,5,FALSE))","v":20},{"$f":"+IFERROR(VLOOKUP(QT$27&\"-\"&$M62&\"_new\",Ammortamento_Finanziario!$H:$L,5,FALSE),VLOOKUP($M62,TT_Tabelle_Riferimento!$D$127:$H$164,5,FALSE))","v":20},{"$f":"+IFERROR(VLOOKUP(QU$27&\"-\"&$M62&\"_new\",Ammortamento_Finanziario!$H:$L,5,FALSE),VLOOKUP($M62,TT_Tabelle_Riferimento!$D$127:$H$164,5,FALSE))","v":20},{"$f":"+IFERROR(VLOOKUP(QV$27&\"-\"&$M62&\"_new\",Ammortamento_Finanziario!$H:$L,5,FALSE),VLOOKUP($M62,TT_Tabelle_Riferimento!$D$127:$H$164,5,FALSE))","v":20},{"$f":"+IFERROR(VLOOKUP(QW$27&\"-\"&$M62&\"_new\",Ammortamento_Finanziario!$H:$L,5,FALSE),VLOOKUP($M62,TT_Tabelle_Riferimento!$D$127:$H$164,5,FALSE))","v":20},{"$f":"+IFERROR(VLOOKUP(QX$27&\"-\"&$M62&\"_new\",Ammortamento_Finanziario!$H:$L,5,FALSE),VLOOKUP($M62,TT_Tabelle_Riferimento!$D$127:$H$164,5,FALSE))","v":20},{"$f":"+IFERROR(VLOOKUP(QY$27&\"-\"&$M62&\"_new\",Ammortamento_Finanziario!$H:$L,5,FALSE),VLOOKUP($M62,TT_Tabelle_Riferimento!$D$127:$H$164,5,FALSE))","v":20},{"$f":"+IFERROR(VLOOKUP(QZ$27&\"-\"&$M62&\"_new\",Ammortamento_Finanziario!$H:$L,5,FALSE),VLOOKUP($M62,TT_Tabelle_Riferimento!$D$127:$H$164,5,FALSE))","v":20},{"$f":"+IFERROR(VLOOKUP(RA$27&\"-\"&$M62&\"_new\",Ammortamento_Finanziario!$H:$L,5,FALSE),VLOOKUP($M62,TT_Tabelle_Riferimento!$D$127:$H$164,5,FALSE))","v":20},{"$f":"+IFERROR(VLOOKUP(RB$27&\"-\"&$M62&\"_new\",Ammortamento_Finanziario!$H:$L,5,FALSE),VLOOKUP($M62,TT_Tabelle_Riferimento!$D$127:$H$164,5,FALSE))","v":20},{"$f":"+IFERROR(VLOOKUP(RC$27&\"-\"&$M62&\"_new\",Ammortamento_Finanziario!$H:$L,5,FALSE),VLOOKUP($M62,TT_Tabelle_Riferimento!$D$127:$H$164,5,FALSE))","v":20},{"$f":"+IFERROR(VLOOKUP(RD$27&\"-\"&$M62&\"_new\",Ammortamento_Finanziario!$H:$L,5,FALSE),VLOOKUP($M62,TT_Tabelle_Riferimento!$D$127:$H$164,5,FALSE))","v":20},{"$f":"+IFERROR(VLOOKUP(RE$27&\"-\"&$M62&\"_new\",Ammortamento_Finanziario!$H:$L,5,FALSE),VLOOKUP($M62,TT_Tabelle_Riferimento!$D$127:$H$164,5,FALSE))","v":20},{"$f":"+IFERROR(VLOOKUP(RF$27&\"-\"&$M62&\"_new\",Ammortamento_Finanziario!$H:$L,5,FALSE),VLOOKUP($M62,TT_Tabelle_Riferimento!$D$127:$H$164,5,FALSE))","v":20},{"$f":"+IFERROR(VLOOKUP(RG$27&\"-\"&$M62&\"_new\",Ammortamento_Finanziario!$H:$L,5,FALSE),VLOOKUP($M62,TT_Tabelle_Riferimento!$D$127:$H$164,5,FALSE))","v":20},{"$f":"+IFERROR(VLOOKUP(RH$27&\"-\"&$M62&\"_new\",Ammortamento_Finanziario!$H:$L,5,FALSE),VLOOKUP($M62,TT_Tabelle_Riferimento!$D$127:$H$164,5,FALSE))","v":20},{"$f":"+IFERROR(VLOOKUP(RI$27&\"-\"&$M62&\"_new\",Ammortamento_Finanziario!$H:$L,5,FALSE),VLOOKUP($M62,TT_Tabelle_Riferimento!$D$127:$H$164,5,FALSE))","v":20},{"$f":"+IFERROR(VLOOKUP(RJ$27&\"-\"&$M62&\"_new\",Ammortamento_Finanziario!$H:$L,5,FALSE),VLOOKUP($M62,TT_Tabelle_Riferimento!$D$127:$H$164,5,FALSE))","v":20},{"$f":"+IFERROR(VLOOKUP(RK$27&\"-\"&$M62&\"_new\",Ammortamento_Finanziario!$H:$L,5,FALSE),VLOOKUP($M62,TT_Tabelle_Riferimento!$D$127:$H$164,5,FALSE))","v":20},{"$f":"+IFERROR(VLOOKUP(RL$27&\"-\"&$M62&\"_new\",Ammortamento_Finanziario!$H:$L,5,FALSE),VLOOKUP($M62,TT_Tabelle_Riferimento!$D$127:$H$164,5,FALSE))","v":20},{"$f":"+IFERROR(VLOOKUP(RM$27&\"-\"&$M62&\"_new\",Ammortamento_Finanziario!$H:$L,5,FALSE),VLOOKUP($M62,TT_Tabelle_Riferimento!$D$127:$H$164,5,FALSE))","v":20},{"$f":"+IFERROR(VLOOKUP(RN$27&\"-\"&$M62&\"_new\",Ammortamento_Finanziario!$H:$L,5,FALSE),VLOOKUP($M62,TT_Tabelle_Riferimento!$D$127:$H$164,5,FALSE))","v":20},{"$f":"+IFERROR(VLOOKUP(RO$27&\"-\"&$M62&\"_new\",Ammortamento_Finanziario!$H:$L,5,FALSE),VLOOKUP($M62,TT_Tabelle_Riferimento!$D$127:$H$164,5,FALSE))","v":20},{"$f":"+IFERROR(VLOOKUP(RP$27&\"-\"&$M62&\"_new\",Ammortamento_Finanziario!$H:$L,5,FALSE),VLOOKUP($M62,TT_Tabelle_Riferimento!$D$127:$H$164,5,FALSE))","v":20},{"$f":"+IFERROR(VLOOKUP(RQ$27&\"-\"&$M62&\"_new\",Ammortamento_Finanziario!$H:$L,5,FALSE),VLOOKUP($M62,TT_Tabelle_Riferimento!$D$127:$H$164,5,FALSE))","v":20},{"$f":"+IFERROR(VLOOKUP(RR$27&\"-\"&$M62&\"_new\",Ammortamento_Finanziario!$H:$L,5,FALSE),VLOOKUP($M62,TT_Tabelle_Riferimento!$D$127:$H$164,5,FALSE))","v":20},{"$f":"+IFERROR(VLOOKUP(RS$27&\"-\"&$M62&\"_new\",Ammortamento_Finanziario!$H:$L,5,FALSE),VLOOKUP($M62,TT_Tabelle_Riferimento!$D$127:$H$164,5,FALSE))","v":20},{"$f":"+IFERROR(VLOOKUP(RT$27&\"-\"&$M62&\"_new\",Ammortamento_Finanziario!$H:$L,5,FALSE),VLOOKUP($M62,TT_Tabelle_Riferimento!$D$127:$H$164,5,FALSE))","v":20},{"$f":"+IFERROR(VLOOKUP(RU$27&\"-\"&$M62&\"_new\",Ammortamento_Finanziario!$H:$L,5,FALSE),VLOOKUP($M62,TT_Tabelle_Riferimento!$D$127:$H$164,5,FALSE))","v":20},{"$f":"+IFERROR(VLOOKUP(RV$27&\"-\"&$M62&\"_new\",Ammortamento_Finanziario!$H:$L,5,FALSE),VLOOKUP($M62,TT_Tabelle_Riferimento!$D$127:$H$164,5,FALSE))","v":20}]
[null,null,null,null,null,null,null,null,null,null,null,null,36,0,0,0,0,0,0,0,0,0,0,0,0,0,0,0,0,0,0,0,0,0,0,0,0,0,0,0,0,0,0,0,0,0,0,0,0,0,0,0,0,0,0,0,0,0,0,0,0,0,0,0,0,0,0,0,0,0,0,0,0,0,0,0,0,0,0,0,0,0,0,0,0,0,0,0,0,0,0,0,0,0,0,0,0,0,0,0,0,0,0,0,0,0,0,0,0,0,0,0,0,0,0,0,0,0,0,0,0,0,0,0,0,0,0,0,0,0,0,0,0,0,0,0,0,0,0,0,0,0,0,0,0,0,0,0,0,0,0,0,0,0,0,0,0,0,0,0,0,0,0,0,0,0,0,0,0,0,0,0,0,0,0,0,0,0,0,0,0,0,0,0,0,0,0,0,0,0,0,0,0,0,0,0,0,0,0,0,0,0,0,0,0,0,0,0,0,0,0,0,0,0,0,0,0,0,0,0,0,0,0,0,0,0,0,0,0,0,0,0,0,0,0,0,0,0,0,0,0,0,0,0,0,0,0,0,0,0,0,0,0,0,0,0,0,0,0,0,0,0,0,0,0,0,0,0,0,0,0,0,0,0,0,0,0,0,0,0,0,0,0,0,0,0,0,0,0,0,0,0,0,0,0,0,0,0,0,0,0,0,{"$f":"+IFERROR(VLOOKUP(KQ$27&\"-\"&$M63&\"_new\",Ammortamento_Finanziario!$H:$L,5,FALSE),VLOOKUP($M63,TT_Tabelle_Riferimento!$D$127:$H$164,5,FALSE))","v":5},{"$f":"+IFERROR(VLOOKUP(KR$27&\"-\"&$M63&\"_new\",Ammortamento_Finanziario!$H:$L,5,FALSE),VLOOKUP($M63,TT_Tabelle_Riferimento!$D$127:$H$164,5,FALSE))","v":5},{"$f":"+IFERROR(VLOOKUP(KS$27&\"-\"&$M63&\"_new\",Ammortamento_Finanziario!$H:$L,5,FALSE),VLOOKUP($M63,TT_Tabelle_Riferimento!$D$127:$H$164,5,FALSE))","v":5},{"$f":"+IFERROR(VLOOKUP(KT$27&\"-\"&$M63&\"_new\",Ammortamento_Finanziario!$H:$L,5,FALSE),VLOOKUP($M63,TT_Tabelle_Riferimento!$D$127:$H$164,5,FALSE))","v":5},{"$f":"+IFERROR(VLOOKUP(KU$27&\"-\"&$M63&\"_new\",Ammortamento_Finanziario!$H:$L,5,FALSE),VLOOKUP($M63,TT_Tabelle_Riferimento!$D$127:$H$164,5,FALSE))","v":5},{"$f":"+IFERROR(VLOOKUP(KV$27&\"-\"&$M63&\"_new\",Ammortamento_Finanziario!$H:$L,5,FALSE),VLOOKUP($M63,TT_Tabelle_Riferimento!$D$127:$H$164,5,FALSE))","v":5},{"$f":"+IFERROR(VLOOKUP(KW$27&\"-\"&$M63&\"_new\",Ammortamento_Finanziario!$H:$L,5,FALSE),VLOOKUP($M63,TT_Tabelle_Riferimento!$D$127:$H$164,5,FALSE))","v":5},{"$f":"+IFERROR(VLOOKUP(KX$27&\"-\"&$M63&\"_new\",Ammortamento_Finanziario!$H:$L,5,FALSE),VLOOKUP($M63,TT_Tabelle_Riferimento!$D$127:$H$164,5,FALSE))","v":5},{"$f":"+IFERROR(VLOOKUP(KY$27&\"-\"&$M63&\"_new\",Ammortamento_Finanziario!$H:$L,5,FALSE),VLOOKUP($M63,TT_Tabelle_Riferimento!$D$127:$H$164,5,FALSE))","v":5},{"$f":"+IFERROR(VLOOKUP(KZ$27&\"-\"&$M63&\"_new\",Ammortamento_Finanziario!$H:$L,5,FALSE),VLOOKUP($M63,TT_Tabelle_Riferimento!$D$127:$H$164,5,FALSE))","v":5},{"$f":"+IFERROR(VLOOKUP(LA$27&\"-\"&$M63&\"_new\",Ammortamento_Finanziario!$H:$L,5,FALSE),VLOOKUP($M63,TT_Tabelle_Riferimento!$D$127:$H$164,5,FALSE))","v":5},{"$f":"+IFERROR(VLOOKUP(LB$27&\"-\"&$M63&\"_new\",Ammortamento_Finanziario!$H:$L,5,FALSE),VLOOKUP($M63,TT_Tabelle_Riferimento!$D$127:$H$164,5,FALSE))","v":5},{"$f":"+IFERROR(VLOOKUP(LC$27&\"-\"&$M63&\"_new\",Ammortamento_Finanziario!$H:$L,5,FALSE),VLOOKUP($M63,TT_Tabelle_Riferimento!$D$127:$H$164,5,FALSE))","v":5},{"$f":"+IFERROR(VLOOKUP(LD$27&\"-\"&$M63&\"_new\",Ammortamento_Finanziario!$H:$L,5,FALSE),VLOOKUP($M63,TT_Tabelle_Riferimento!$D$127:$H$164,5,FALSE))","v":5},{"$f":"+IFERROR(VLOOKUP(LE$27&\"-\"&$M63&\"_new\",Ammortamento_Finanziario!$H:$L,5,FALSE),VLOOKUP($M63,TT_Tabelle_Riferimento!$D$127:$H$164,5,FALSE))","v":5},{"$f":"+IFERROR(VLOOKUP(LF$27&\"-\"&$M63&\"_new\",Ammortamento_Finanziario!$H:$L,5,FALSE),VLOOKUP($M63,TT_Tabelle_Riferimento!$D$127:$H$164,5,FALSE))","v":5},{"$f":"+IFERROR(VLOOKUP(LG$27&\"-\"&$M63&\"_new\",Ammortamento_Finanziario!$H:$L,5,FALSE),VLOOKUP($M63,TT_Tabelle_Riferimento!$D$127:$H$164,5,FALSE))","v":5},{"$f":"+IFERROR(VLOOKUP(LH$27&\"-\"&$M63&\"_new\",Ammortamento_Finanziario!$H:$L,5,FALSE),VLOOKUP($M63,TT_Tabelle_Riferimento!$D$127:$H$164,5,FALSE))","v":5},{"$f":"+IFERROR(VLOOKUP(LI$27&\"-\"&$M63&\"_new\",Ammortamento_Finanziario!$H:$L,5,FALSE),VLOOKUP($M63,TT_Tabelle_Riferimento!$D$127:$H$164,5,FALSE))","v":5},{"$f":"+IFERROR(VLOOKUP(LJ$27&\"-\"&$M63&\"_new\",Ammortamento_Finanziario!$H:$L,5,FALSE),VLOOKUP($M63,TT_Tabelle_Riferimento!$D$127:$H$164,5,FALSE))","v":5},{"$f":"+IFERROR(VLOOKUP(LK$27&\"-\"&$M63&\"_new\",Ammortamento_Finanziario!$H:$L,5,FALSE),VLOOKUP($M63,TT_Tabelle_Riferimento!$D$127:$H$164,5,FALSE))","v":5},{"$f":"+IFERROR(VLOOKUP(LL$27&\"-\"&$M63&\"_new\",Ammortamento_Finanziario!$H:$L,5,FALSE),VLOOKUP($M63,TT_Tabelle_Riferimento!$D$127:$H$164,5,FALSE))","v":5},{"$f":"+IFERROR(VLOOKUP(LM$27&\"-\"&$M63&\"_new\",Ammortamento_Finanziario!$H:$L,5,FALSE),VLOOKUP($M63,TT_Tabelle_Riferimento!$D$127:$H$164,5,FALSE))","v":5},{"$f":"+IFERROR(VLOOKUP(LN$27&\"-\"&$M63&\"_new\",Ammortamento_Finanziario!$H:$L,5,FALSE),VLOOKUP($M63,TT_Tabelle_Riferimento!$D$127:$H$164,5,FALSE))","v":5},{"$f":"+IFERROR(VLOOKUP(LO$27&\"-\"&$M63&\"_new\",Ammortamento_Finanziario!$H:$L,5,FALSE),VLOOKUP($M63,TT_Tabelle_Riferimento!$D$127:$H$164,5,FALSE))","v":5},{"$f":"+IFERROR(VLOOKUP(LP$27&\"-\"&$M63&\"_new\",Ammortamento_Finanziario!$H:$L,5,FALSE),VLOOKUP($M63,TT_Tabelle_Riferimento!$D$127:$H$164,5,FALSE))","v":5},{"$f":"+IFERROR(VLOOKUP(LQ$27&\"-\"&$M63&\"_new\",Ammortamento_Finanziario!$H:$L,5,FALSE),VLOOKUP($M63,TT_Tabelle_Riferimento!$D$127:$H$164,5,FALSE))","v":5},{"$f":"+IFERROR(VLOOKUP(LR$27&\"-\"&$M63&\"_new\",Ammortamento_Finanziario!$H:$L,5,FALSE),VLOOKUP($M63,TT_Tabelle_Riferimento!$D$127:$H$164,5,FALSE))","v":5},{"$f":"+IFERROR(VLOOKUP(LS$27&\"-\"&$M63&\"_new\",Ammortamento_Finanziario!$H:$L,5,FALSE),VLOOKUP($M63,TT_Tabelle_Riferimento!$D$127:$H$164,5,FALSE))","v":5},{"$f":"+IFERROR(VLOOKUP(LT$27&\"-\"&$M63&\"_new\",Ammortamento_Finanziario!$H:$L,5,FALSE),VLOOKUP($M63,TT_Tabelle_Riferimento!$D$127:$H$164,5,FALSE))","v":5},{"$f":"+IFERROR(VLOOKUP(LU$27&\"-\"&$M63&\"_new\",Ammortamento_Finanziario!$H:$L,5,FALSE),VLOOKUP($M63,TT_Tabelle_Riferimento!$D$127:$H$164,5,FALSE))","v":5},{"$f":"+IFERROR(VLOOKUP(LV$27&\"-\"&$M63&\"_new\",Ammortamento_Finanziario!$H:$L,5,FALSE),VLOOKUP($M63,TT_Tabelle_Riferimento!$D$127:$H$164,5,FALSE))","v":5},{"$f":"+IFERROR(VLOOKUP(LW$27&\"-\"&$M63&\"_new\",Ammortamento_Finanziario!$H:$L,5,FALSE),VLOOKUP($M63,TT_Tabelle_Riferimento!$D$127:$H$164,5,FALSE))","v":5},{"$f":"+IFERROR(VLOOKUP(LX$27&\"-\"&$M63&\"_new\",Ammortamento_Finanziario!$H:$L,5,FALSE),VLOOKUP($M63,TT_Tabelle_Riferimento!$D$127:$H$164,5,FALSE))","v":5},{"$f":"+IFERROR(VLOOKUP(LY$27&\"-\"&$M63&\"_new\",Ammortamento_Finanziario!$H:$L,5,FALSE),VLOOKUP($M63,TT_Tabelle_Riferimento!$D$127:$H$164,5,FALSE))","v":5},{"$f":"+IFERROR(VLOOKUP(LZ$27&\"-\"&$M63&\"_new\",Ammortamento_Finanziario!$H:$L,5,FALSE),VLOOKUP($M63,TT_Tabelle_Riferimento!$D$127:$H$164,5,FALSE))","v":5},{"$f":"+IFERROR(VLOOKUP(MA$27&\"-\"&$M63&\"_new\",Ammortamento_Finanziario!$H:$L,5,FALSE),VLOOKUP($M63,TT_Tabelle_Riferimento!$D$127:$H$164,5,FALSE))","v":5},{"$f":"+IFERROR(VLOOKUP(MB$27&\"-\"&$M63&\"_new\",Ammortamento_Finanziario!$H:$L,5,FALSE),VLOOKUP($M63,TT_Tabelle_Riferimento!$D$127:$H$164,5,FALSE))","v":5},{"$f":"+IFERROR(VLOOKUP(MC$27&\"-\"&$M63&\"_new\",Ammortamento_Finanziario!$H:$L,5,FALSE),VLOOKUP($M63,TT_Tabelle_Riferimento!$D$127:$H$164,5,FALSE))","v":5},{"$f":"+IFERROR(VLOOKUP(MD$27&\"-\"&$M63&\"_new\",Ammortamento_Finanziario!$H:$L,5,FALSE),VLOOKUP($M63,TT_Tabelle_Riferimento!$D$127:$H$164,5,FALSE))","v":5},{"$f":"+IFERROR(VLOOKUP(ME$27&\"-\"&$M63&\"_new\",Ammortamento_Finanziario!$H:$L,5,FALSE),VLOOKUP($M63,TT_Tabelle_Riferimento!$D$127:$H$164,5,FALSE))","v":5},{"$f":"+IFERROR(VLOOKUP(MF$27&\"-\"&$M63&\"_new\",Ammortamento_Finanziario!$H:$L,5,FALSE),VLOOKUP($M63,TT_Tabelle_Riferimento!$D$127:$H$164,5,FALSE))","v":5},{"$f":"+IFERROR(VLOOKUP(MG$27&\"-\"&$M63&\"_new\",Ammortamento_Finanziario!$H:$L,5,FALSE),VLOOKUP($M63,TT_Tabelle_Riferimento!$D$127:$H$164,5,FALSE))","v":5},{"$f":"+IFERROR(VLOOKUP(MH$27&\"-\"&$M63&\"_new\",Ammortamento_Finanziario!$H:$L,5,FALSE),VLOOKUP($M63,TT_Tabelle_Riferimento!$D$127:$H$164,5,FALSE))","v":5},{"$f":"+IFERROR(VLOOKUP(MI$27&\"-\"&$M63&\"_new\",Ammortamento_Finanziario!$H:$L,5,FALSE),VLOOKUP($M63,TT_Tabelle_Riferimento!$D$127:$H$164,5,FALSE))","v":5},{"$f":"+IFERROR(VLOOKUP(MJ$27&\"-\"&$M63&\"_new\",Ammortamento_Finanziario!$H:$L,5,FALSE),VLOOKUP($M63,TT_Tabelle_Riferimento!$D$127:$H$164,5,FALSE))","v":5},{"$f":"+IFERROR(VLOOKUP(MK$27&\"-\"&$M63&\"_new\",Ammortamento_Finanziario!$H:$L,5,FALSE),VLOOKUP($M63,TT_Tabelle_Riferimento!$D$127:$H$164,5,FALSE))","v":5},{"$f":"+IFERROR(VLOOKUP(ML$27&\"-\"&$M63&\"_new\",Ammortamento_Finanziario!$H:$L,5,FALSE),VLOOKUP($M63,TT_Tabelle_Riferimento!$D$127:$H$164,5,FALSE))","v":5},{"$f":"+IFERROR(VLOOKUP(MM$27&\"-\"&$M63&\"_new\",Ammortamento_Finanziario!$H:$L,5,FALSE),VLOOKUP($M63,TT_Tabelle_Riferimento!$D$127:$H$164,5,FALSE))","v":5},{"$f":"+IFERROR(VLOOKUP(MN$27&\"-\"&$M63&\"_new\",Ammortamento_Finanziario!$H:$L,5,FALSE),VLOOKUP($M63,TT_Tabelle_Riferimento!$D$127:$H$164,5,FALSE))","v":5},{"$f":"+IFERROR(VLOOKUP(MO$27&\"-\"&$M63&\"_new\",Ammortamento_Finanziario!$H:$L,5,FALSE),VLOOKUP($M63,TT_Tabelle_Riferimento!$D$127:$H$164,5,FALSE))","v":5},{"$f":"+IFERROR(VLOOKUP(MP$27&\"-\"&$M63&\"_new\",Ammortamento_Finanziario!$H:$L,5,FALSE),VLOOKUP($M63,TT_Tabelle_Riferimento!$D$127:$H$164,5,FALSE))","v":5},{"$f":"+IFERROR(VLOOKUP(MQ$27&\"-\"&$M63&\"_new\",Ammortamento_Finanziario!$H:$L,5,FALSE),VLOOKUP($M63,TT_Tabelle_Riferimento!$D$127:$H$164,5,FALSE))","v":5},{"$f":"+IFERROR(VLOOKUP(MR$27&\"-\"&$M63&\"_new\",Ammortamento_Finanziario!$H:$L,5,FALSE),VLOOKUP($M63,TT_Tabelle_Riferimento!$D$127:$H$164,5,FALSE))","v":5},{"$f":"+IFERROR(VLOOKUP(MS$27&\"-\"&$M63&\"_new\",Ammortamento_Finanziario!$H:$L,5,FALSE),VLOOKUP($M63,TT_Tabelle_Riferimento!$D$127:$H$164,5,FALSE))","v":5},{"$f":"+IFERROR(VLOOKUP(MT$27&\"-\"&$M63&\"_new\",Ammortamento_Finanziario!$H:$L,5,FALSE),VLOOKUP($M63,TT_Tabelle_Riferimento!$D$127:$H$164,5,FALSE))","v":5},{"$f":"+IFERROR(VLOOKUP(MU$27&\"-\"&$M63&\"_new\",Ammortamento_Finanziario!$H:$L,5,FALSE),VLOOKUP($M63,TT_Tabelle_Riferimento!$D$127:$H$164,5,FALSE))","v":5},{"$f":"+IFERROR(VLOOKUP(MV$27&\"-\"&$M63&\"_new\",Ammortamento_Finanziario!$H:$L,5,FALSE),VLOOKUP($M63,TT_Tabelle_Riferimento!$D$127:$H$164,5,FALSE))","v":5},{"$f":"+IFERROR(VLOOKUP(MW$27&\"-\"&$M63&\"_new\",Ammortamento_Finanziario!$H:$L,5,FALSE),VLOOKUP($M63,TT_Tabelle_Riferimento!$D$127:$H$164,5,FALSE))","v":5},{"$f":"+IFERROR(VLOOKUP(MX$27&\"-\"&$M63&\"_new\",Ammortamento_Finanziario!$H:$L,5,FALSE),VLOOKUP($M63,TT_Tabelle_Riferimento!$D$127:$H$164,5,FALSE))","v":5},{"$f":"+IFERROR(VLOOKUP(MY$27&\"-\"&$M63&\"_new\",Ammortamento_Finanziario!$H:$L,5,FALSE),VLOOKUP($M63,TT_Tabelle_Riferimento!$D$127:$H$164,5,FALSE))","v":5},{"$f":"+IFERROR(VLOOKUP(MZ$27&\"-\"&$M63&\"_new\",Ammortamento_Finanziario!$H:$L,5,FALSE),VLOOKUP($M63,TT_Tabelle_Riferimento!$D$127:$H$164,5,FALSE))","v":5},{"$f":"+IFERROR(VLOOKUP(NA$27&\"-\"&$M63&\"_new\",Ammortamento_Finanziario!$H:$L,5,FALSE),VLOOKUP($M63,TT_Tabelle_Riferimento!$D$127:$H$164,5,FALSE))","v":5},{"$f":"+IFERROR(VLOOKUP(NB$27&\"-\"&$M63&\"_new\",Ammortamento_Finanziario!$H:$L,5,FALSE),VLOOKUP($M63,TT_Tabelle_Riferimento!$D$127:$H$164,5,FALSE))","v":5},{"$f":"+IFERROR(VLOOKUP(NC$27&\"-\"&$M63&\"_new\",Ammortamento_Finanziario!$H:$L,5,FALSE),VLOOKUP($M63,TT_Tabelle_Riferimento!$D$127:$H$164,5,FALSE))","v":5},{"$f":"+IFERROR(VLOOKUP(ND$27&\"-\"&$M63&\"_new\",Ammortamento_Finanziario!$H:$L,5,FALSE),VLOOKUP($M63,TT_Tabelle_Riferimento!$D$127:$H$164,5,FALSE))","v":5},{"$f":"+IFERROR(VLOOKUP(NE$27&\"-\"&$M63&\"_new\",Ammortamento_Finanziario!$H:$L,5,FALSE),VLOOKUP($M63,TT_Tabelle_Riferimento!$D$127:$H$164,5,FALSE))","v":5},{"$f":"+IFERROR(VLOOKUP(NF$27&\"-\"&$M63&\"_new\",Ammortamento_Finanziario!$H:$L,5,FALSE),VLOOKUP($M63,TT_Tabelle_Riferimento!$D$127:$H$164,5,FALSE))","v":5},{"$f":"+IFERROR(VLOOKUP(NG$27&\"-\"&$M63&\"_new\",Ammortamento_Finanziario!$H:$L,5,FALSE),VLOOKUP($M63,TT_Tabelle_Riferimento!$D$127:$H$164,5,FALSE))","v":5},{"$f":"+IFERROR(VLOOKUP(NH$27&\"-\"&$M63&\"_new\",Ammortamento_Finanziario!$H:$L,5,FALSE),VLOOKUP($M63,TT_Tabelle_Riferimento!$D$127:$H$164,5,FALSE))","v":5},{"$f":"+IFERROR(VLOOKUP(NI$27&\"-\"&$M63&\"_new\",Ammortamento_Finanziario!$H:$L,5,FALSE),VLOOKUP($M63,TT_Tabelle_Riferimento!$D$127:$H$164,5,FALSE))","v":5},{"$f":"+IFERROR(VLOOKUP(NJ$27&\"-\"&$M63&\"_new\",Ammortamento_Finanziario!$H:$L,5,FALSE),VLOOKUP($M63,TT_Tabelle_Riferimento!$D$127:$H$164,5,FALSE))","v":5},{"$f":"+IFERROR(VLOOKUP(NK$27&\"-\"&$M63&\"_new\",Ammortamento_Finanziario!$H:$L,5,FALSE),VLOOKUP($M63,TT_Tabelle_Riferimento!$D$127:$H$164,5,FALSE))","v":5},{"$f":"+IFERROR(VLOOKUP(NL$27&\"-\"&$M63&\"_new\",Ammortamento_Finanziario!$H:$L,5,FALSE),VLOOKUP($M63,TT_Tabelle_Riferimento!$D$127:$H$164,5,FALSE))","v":5},{"$f":"+IFERROR(VLOOKUP(NM$27&\"-\"&$M63&\"_new\",Ammortamento_Finanziario!$H:$L,5,FALSE),VLOOKUP($M63,TT_Tabelle_Riferimento!$D$127:$H$164,5,FALSE))","v":5},{"$f":"+IFERROR(VLOOKUP(NN$27&\"-\"&$M63&\"_new\",Ammortamento_Finanziario!$H:$L,5,FALSE),VLOOKUP($M63,TT_Tabelle_Riferimento!$D$127:$H$164,5,FALSE))","v":5},{"$f":"+IFERROR(VLOOKUP(NO$27&\"-\"&$M63&\"_new\",Ammortamento_Finanziario!$H:$L,5,FALSE),VLOOKUP($M63,TT_Tabelle_Riferimento!$D$127:$H$164,5,FALSE))","v":5},{"$f":"+IFERROR(VLOOKUP(NP$27&\"-\"&$M63&\"_new\",Ammortamento_Finanziario!$H:$L,5,FALSE),VLOOKUP($M63,TT_Tabelle_Riferimento!$D$127:$H$164,5,FALSE))","v":5},{"$f":"+IFERROR(VLOOKUP(NQ$27&\"-\"&$M63&\"_new\",Ammortamento_Finanziario!$H:$L,5,FALSE),VLOOKUP($M63,TT_Tabelle_Riferimento!$D$127:$H$164,5,FALSE))","v":5},{"$f":"+IFERROR(VLOOKUP(NR$27&\"-\"&$M63&\"_new\",Ammortamento_Finanziario!$H:$L,5,FALSE),VLOOKUP($M63,TT_Tabelle_Riferimento!$D$127:$H$164,5,FALSE))","v":5},{"$f":"+IFERROR(VLOOKUP(NS$27&\"-\"&$M63&\"_new\",Ammortamento_Finanziario!$H:$L,5,FALSE),VLOOKUP($M63,TT_Tabelle_Riferimento!$D$127:$H$164,5,FALSE))","v":5},{"$f":"+IFERROR(VLOOKUP(NT$27&\"-\"&$M63&\"_new\",Ammortamento_Finanziario!$H:$L,5,FALSE),VLOOKUP($M63,TT_Tabelle_Riferimento!$D$127:$H$164,5,FALSE))","v":5},{"$f":"+IFERROR(VLOOKUP(NU$27&\"-\"&$M63&\"_new\",Ammortamento_Finanziario!$H:$L,5,FALSE),VLOOKUP($M63,TT_Tabelle_Riferimento!$D$127:$H$164,5,FALSE))","v":5},{"$f":"+IFERROR(VLOOKUP(NV$27&\"-\"&$M63&\"_new\",Ammortamento_Finanziario!$H:$L,5,FALSE),VLOOKUP($M63,TT_Tabelle_Riferimento!$D$127:$H$164,5,FALSE))","v":5},{"$f":"+IFERROR(VLOOKUP(NW$27&\"-\"&$M63&\"_new\",Ammortamento_Finanziario!$H:$L,5,FALSE),VLOOKUP($M63,TT_Tabelle_Riferimento!$D$127:$H$164,5,FALSE))","v":5},{"$f":"+IFERROR(VLOOKUP(NX$27&\"-\"&$M63&\"_new\",Ammortamento_Finanziario!$H:$L,5,FALSE),VLOOKUP($M63,TT_Tabelle_Riferimento!$D$127:$H$164,5,FALSE))","v":5},{"$f":"+IFERROR(VLOOKUP(NY$27&\"-\"&$M63&\"_new\",Ammortamento_Finanziario!$H:$L,5,FALSE),VLOOKUP($M63,TT_Tabelle_Riferimento!$D$127:$H$164,5,FALSE))","v":5},{"$f":"+IFERROR(VLOOKUP(NZ$27&\"-\"&$M63&\"_new\",Ammortamento_Finanziario!$H:$L,5,FALSE),VLOOKUP($M63,TT_Tabelle_Riferimento!$D$127:$H$164,5,FALSE))","v":5},{"$f":"+IFERROR(VLOOKUP(OA$27&\"-\"&$M63&\"_new\",Ammortamento_Finanziario!$H:$L,5,FALSE),VLOOKUP($M63,TT_Tabelle_Riferimento!$D$127:$H$164,5,FALSE))","v":5},{"$f":"+IFERROR(VLOOKUP(OB$27&\"-\"&$M63&\"_new\",Ammortamento_Finanziario!$H:$L,5,FALSE),VLOOKUP($M63,TT_Tabelle_Riferimento!$D$127:$H$164,5,FALSE))","v":5},{"$f":"+IFERROR(VLOOKUP(OC$27&\"-\"&$M63&\"_new\",Ammortamento_Finanziario!$H:$L,5,FALSE),VLOOKUP($M63,TT_Tabelle_Riferimento!$D$127:$H$164,5,FALSE))","v":5},{"$f":"+IFERROR(VLOOKUP(OD$27&\"-\"&$M63&\"_new\",Ammortamento_Finanziario!$H:$L,5,FALSE),VLOOKUP($M63,TT_Tabelle_Riferimento!$D$127:$H$164,5,FALSE))","v":5},{"$f":"+IFERROR(VLOOKUP(OE$27&\"-\"&$M63&\"_new\",Ammortamento_Finanziario!$H:$L,5,FALSE),VLOOKUP($M63,TT_Tabelle_Riferimento!$D$127:$H$164,5,FALSE))","v":5},{"$f":"+IFERROR(VLOOKUP(OF$27&\"-\"&$M63&\"_new\",Ammortamento_Finanziario!$H:$L,5,FALSE),VLOOKUP($M63,TT_Tabelle_Riferimento!$D$127:$H$164,5,FALSE))","v":5},{"$f":"+IFERROR(VLOOKUP(OG$27&\"-\"&$M63&\"_new\",Ammortamento_Finanziario!$H:$L,5,FALSE),VLOOKUP($M63,TT_Tabelle_Riferimento!$D$127:$H$164,5,FALSE))","v":5},{"$f":"+IFERROR(VLOOKUP(OH$27&\"-\"&$M63&\"_new\",Ammortamento_Finanziario!$H:$L,5,FALSE),VLOOKUP($M63,TT_Tabelle_Riferimento!$D$127:$H$164,5,FALSE))","v":5},{"$f":"+IFERROR(VLOOKUP(OI$27&\"-\"&$M63&\"_new\",Ammortamento_Finanziario!$H:$L,5,FALSE),VLOOKUP($M63,TT_Tabelle_Riferimento!$D$127:$H$164,5,FALSE))","v":5},{"$f":"+IFERROR(VLOOKUP(OJ$27&\"-\"&$M63&\"_new\",Ammortamento_Finanziario!$H:$L,5,FALSE),VLOOKUP($M63,TT_Tabelle_Riferimento!$D$127:$H$164,5,FALSE))","v":5},{"$f":"+IFERROR(VLOOKUP(OK$27&\"-\"&$M63&\"_new\",Ammortamento_Finanziario!$H:$L,5,FALSE),VLOOKUP($M63,TT_Tabelle_Riferimento!$D$127:$H$164,5,FALSE))","v":5},{"$f":"+IFERROR(VLOOKUP(OL$27&\"-\"&$M63&\"_new\",Ammortamento_Finanziario!$H:$L,5,FALSE),VLOOKUP($M63,TT_Tabelle_Riferimento!$D$127:$H$164,5,FALSE))","v":5},{"$f":"+IFERROR(VLOOKUP(OM$27&\"-\"&$M63&\"_new\",Ammortamento_Finanziario!$H:$L,5,FALSE),VLOOKUP($M63,TT_Tabelle_Riferimento!$D$127:$H$164,5,FALSE))","v":5},{"$f":"+IFERROR(VLOOKUP(ON$27&\"-\"&$M63&\"_new\",Ammortamento_Finanziario!$H:$L,5,FALSE),VLOOKUP($M63,TT_Tabelle_Riferimento!$D$127:$H$164,5,FALSE))","v":5},{"$f":"+IFERROR(VLOOKUP(OO$27&\"-\"&$M63&\"_new\",Ammortamento_Finanziario!$H:$L,5,FALSE),VLOOKUP($M63,TT_Tabelle_Riferimento!$D$127:$H$164,5,FALSE))","v":5},{"$f":"+IFERROR(VLOOKUP(OP$27&\"-\"&$M63&\"_new\",Ammortamento_Finanziario!$H:$L,5,FALSE),VLOOKUP($M63,TT_Tabelle_Riferimento!$D$127:$H$164,5,FALSE))","v":5},{"$f":"+IFERROR(VLOOKUP(OQ$27&\"-\"&$M63&\"_new\",Ammortamento_Finanziario!$H:$L,5,FALSE),VLOOKUP($M63,TT_Tabelle_Riferimento!$D$127:$H$164,5,FALSE))","v":5},{"$f":"+IFERROR(VLOOKUP(OR$27&\"-\"&$M63&\"_new\",Ammortamento_Finanziario!$H:$L,5,FALSE),VLOOKUP($M63,TT_Tabelle_Riferimento!$D$127:$H$164,5,FALSE))","v":5},{"$f":"+IFERROR(VLOOKUP(OS$27&\"-\"&$M63&\"_new\",Ammortamento_Finanziario!$H:$L,5,FALSE),VLOOKUP($M63,TT_Tabelle_Riferimento!$D$127:$H$164,5,FALSE))","v":5},{"$f":"+IFERROR(VLOOKUP(OT$27&\"-\"&$M63&\"_new\",Ammortamento_Finanziario!$H:$L,5,FALSE),VLOOKUP($M63,TT_Tabelle_Riferimento!$D$127:$H$164,5,FALSE))","v":5},{"$f":"+IFERROR(VLOOKUP(OU$27&\"-\"&$M63&\"_new\",Ammortamento_Finanziario!$H:$L,5,FALSE),VLOOKUP($M63,TT_Tabelle_Riferimento!$D$127:$H$164,5,FALSE))","v":5},{"$f":"+IFERROR(VLOOKUP(OV$27&\"-\"&$M63&\"_new\",Ammortamento_Finanziario!$H:$L,5,FALSE),VLOOKUP($M63,TT_Tabelle_Riferimento!$D$127:$H$164,5,FALSE))","v":5},{"$f":"+IFERROR(VLOOKUP(OW$27&\"-\"&$M63&\"_new\",Ammortamento_Finanziario!$H:$L,5,FALSE),VLOOKUP($M63,TT_Tabelle_Riferimento!$D$127:$H$164,5,FALSE))","v":5},{"$f":"+IFERROR(VLOOKUP(OX$27&\"-\"&$M63&\"_new\",Ammortamento_Finanziario!$H:$L,5,FALSE),VLOOKUP($M63,TT_Tabelle_Riferimento!$D$127:$H$164,5,FALSE))","v":5},{"$f":"+IFERROR(VLOOKUP(OY$27&\"-\"&$M63&\"_new\",Ammortamento_Finanziario!$H:$L,5,FALSE),VLOOKUP($M63,TT_Tabelle_Riferimento!$D$127:$H$164,5,FALSE))","v":5},{"$f":"+IFERROR(VLOOKUP(OZ$27&\"-\"&$M63&\"_new\",Ammortamento_Finanziario!$H:$L,5,FALSE),VLOOKUP($M63,TT_Tabelle_Riferimento!$D$127:$H$164,5,FALSE))","v":5},{"$f":"+IFERROR(VLOOKUP(PA$27&\"-\"&$M63&\"_new\",Ammortamento_Finanziario!$H:$L,5,FALSE),VLOOKUP($M63,TT_Tabelle_Riferimento!$D$127:$H$164,5,FALSE))","v":5},{"$f":"+IFERROR(VLOOKUP(PB$27&\"-\"&$M63&\"_new\",Ammortamento_Finanziario!$H:$L,5,FALSE),VLOOKUP($M63,TT_Tabelle_Riferimento!$D$127:$H$164,5,FALSE))","v":5},{"$f":"+IFERROR(VLOOKUP(PC$27&\"-\"&$M63&\"_new\",Ammortamento_Finanziario!$H:$L,5,FALSE),VLOOKUP($M63,TT_Tabelle_Riferimento!$D$127:$H$164,5,FALSE))","v":5},{"$f":"+IFERROR(VLOOKUP(PD$27&\"-\"&$M63&\"_new\",Ammortamento_Finanziario!$H:$L,5,FALSE),VLOOKUP($M63,TT_Tabelle_Riferimento!$D$127:$H$164,5,FALSE))","v":5},{"$f":"+IFERROR(VLOOKUP(PE$27&\"-\"&$M63&\"_new\",Ammortamento_Finanziario!$H:$L,5,FALSE),VLOOKUP($M63,TT_Tabelle_Riferimento!$D$127:$H$164,5,FALSE))","v":5},{"$f":"+IFERROR(VLOOKUP(PF$27&\"-\"&$M63&\"_new\",Ammortamento_Finanziario!$H:$L,5,FALSE),VLOOKUP($M63,TT_Tabelle_Riferimento!$D$127:$H$164,5,FALSE))","v":5},{"$f":"+IFERROR(VLOOKUP(PG$27&\"-\"&$M63&\"_new\",Ammortamento_Finanziario!$H:$L,5,FALSE),VLOOKUP($M63,TT_Tabelle_Riferimento!$D$127:$H$164,5,FALSE))","v":5},{"$f":"+IFERROR(VLOOKUP(PH$27&\"-\"&$M63&\"_new\",Ammortamento_Finanziario!$H:$L,5,FALSE),VLOOKUP($M63,TT_Tabelle_Riferimento!$D$127:$H$164,5,FALSE))","v":5},{"$f":"+IFERROR(VLOOKUP(PI$27&\"-\"&$M63&\"_new\",Ammortamento_Finanziario!$H:$L,5,FALSE),VLOOKUP($M63,TT_Tabelle_Riferimento!$D$127:$H$164,5,FALSE))","v":5},{"$f":"+IFERROR(VLOOKUP(PJ$27&\"-\"&$M63&\"_new\",Ammortamento_Finanziario!$H:$L,5,FALSE),VLOOKUP($M63,TT_Tabelle_Riferimento!$D$127:$H$164,5,FALSE))","v":5},{"$f":"+IFERROR(VLOOKUP(PK$27&\"-\"&$M63&\"_new\",Ammortamento_Finanziario!$H:$L,5,FALSE),VLOOKUP($M63,TT_Tabelle_Riferimento!$D$127:$H$164,5,FALSE))","v":5},{"$f":"+IFERROR(VLOOKUP(PL$27&\"-\"&$M63&\"_new\",Ammortamento_Finanziario!$H:$L,5,FALSE),VLOOKUP($M63,TT_Tabelle_Riferimento!$D$127:$H$164,5,FALSE))","v":5},{"$f":"+IFERROR(VLOOKUP(PM$27&\"-\"&$M63&\"_new\",Ammortamento_Finanziario!$H:$L,5,FALSE),VLOOKUP($M63,TT_Tabelle_Riferimento!$D$127:$H$164,5,FALSE))","v":5},{"$f":"+IFERROR(VLOOKUP(PN$27&\"-\"&$M63&\"_new\",Ammortamento_Finanziario!$H:$L,5,FALSE),VLOOKUP($M63,TT_Tabelle_Riferimento!$D$127:$H$164,5,FALSE))","v":5},{"$f":"+IFERROR(VLOOKUP(PO$27&\"-\"&$M63&\"_new\",Ammortamento_Finanziario!$H:$L,5,FALSE),VLOOKUP($M63,TT_Tabelle_Riferimento!$D$127:$H$164,5,FALSE))","v":5},{"$f":"+IFERROR(VLOOKUP(PP$27&\"-\"&$M63&\"_new\",Ammortamento_Finanziario!$H:$L,5,FALSE),VLOOKUP($M63,TT_Tabelle_Riferimento!$D$127:$H$164,5,FALSE))","v":5},{"$f":"+IFERROR(VLOOKUP(PQ$27&\"-\"&$M63&\"_new\",Ammortamento_Finanziario!$H:$L,5,FALSE),VLOOKUP($M63,TT_Tabelle_Riferimento!$D$127:$H$164,5,FALSE))","v":5},{"$f":"+IFERROR(VLOOKUP(PR$27&\"-\"&$M63&\"_new\",Ammortamento_Finanziario!$H:$L,5,FALSE),VLOOKUP($M63,TT_Tabelle_Riferimento!$D$127:$H$164,5,FALSE))","v":5},{"$f":"+IFERROR(VLOOKUP(PS$27&\"-\"&$M63&\"_new\",Ammortamento_Finanziario!$H:$L,5,FALSE),VLOOKUP($M63,TT_Tabelle_Riferimento!$D$127:$H$164,5,FALSE))","v":5},{"$f":"+IFERROR(VLOOKUP(PT$27&\"-\"&$M63&\"_new\",Ammortamento_Finanziario!$H:$L,5,FALSE),VLOOKUP($M63,TT_Tabelle_Riferimento!$D$127:$H$164,5,FALSE))","v":5},{"$f":"+IFERROR(VLOOKUP(PU$27&\"-\"&$M63&\"_new\",Ammortamento_Finanziario!$H:$L,5,FALSE),VLOOKUP($M63,TT_Tabelle_Riferimento!$D$127:$H$164,5,FALSE))","v":5},{"$f":"+IFERROR(VLOOKUP(PV$27&\"-\"&$M63&\"_new\",Ammortamento_Finanziario!$H:$L,5,FALSE),VLOOKUP($M63,TT_Tabelle_Riferimento!$D$127:$H$164,5,FALSE))","v":5},{"$f":"+IFERROR(VLOOKUP(PW$27&\"-\"&$M63&\"_new\",Ammortamento_Finanziario!$H:$L,5,FALSE),VLOOKUP($M63,TT_Tabelle_Riferimento!$D$127:$H$164,5,FALSE))","v":5},{"$f":"+IFERROR(VLOOKUP(PX$27&\"-\"&$M63&\"_new\",Ammortamento_Finanziario!$H:$L,5,FALSE),VLOOKUP($M63,TT_Tabelle_Riferimento!$D$127:$H$164,5,FALSE))","v":5},{"$f":"+IFERROR(VLOOKUP(PY$27&\"-\"&$M63&\"_new\",Ammortamento_Finanziario!$H:$L,5,FALSE),VLOOKUP($M63,TT_Tabelle_Riferimento!$D$127:$H$164,5,FALSE))","v":5},{"$f":"+IFERROR(VLOOKUP(PZ$27&\"-\"&$M63&\"_new\",Ammortamento_Finanziario!$H:$L,5,FALSE),VLOOKUP($M63,TT_Tabelle_Riferimento!$D$127:$H$164,5,FALSE))","v":5},{"$f":"+IFERROR(VLOOKUP(QA$27&\"-\"&$M63&\"_new\",Ammortamento_Finanziario!$H:$L,5,FALSE),VLOOKUP($M63,TT_Tabelle_Riferimento!$D$127:$H$164,5,FALSE))","v":5},{"$f":"+IFERROR(VLOOKUP(QB$27&\"-\"&$M63&\"_new\",Ammortamento_Finanziario!$H:$L,5,FALSE),VLOOKUP($M63,TT_Tabelle_Riferimento!$D$127:$H$164,5,FALSE))","v":5},{"$f":"+IFERROR(VLOOKUP(QC$27&\"-\"&$M63&\"_new\",Ammortamento_Finanziario!$H:$L,5,FALSE),VLOOKUP($M63,TT_Tabelle_Riferimento!$D$127:$H$164,5,FALSE))","v":5},{"$f":"+IFERROR(VLOOKUP(QD$27&\"-\"&$M63&\"_new\",Ammortamento_Finanziario!$H:$L,5,FALSE),VLOOKUP($M63,TT_Tabelle_Riferimento!$D$127:$H$164,5,FALSE))","v":5},{"$f":"+IFERROR(VLOOKUP(QE$27&\"-\"&$M63&\"_new\",Ammortamento_Finanziario!$H:$L,5,FALSE),VLOOKUP($M63,TT_Tabelle_Riferimento!$D$127:$H$164,5,FALSE))","v":5},{"$f":"+IFERROR(VLOOKUP(QF$27&\"-\"&$M63&\"_new\",Ammortamento_Finanziario!$H:$L,5,FALSE),VLOOKUP($M63,TT_Tabelle_Riferimento!$D$127:$H$164,5,FALSE))","v":5},{"$f":"+IFERROR(VLOOKUP(QG$27&\"-\"&$M63&\"_new\",Ammortamento_Finanziario!$H:$L,5,FALSE),VLOOKUP($M63,TT_Tabelle_Riferimento!$D$127:$H$164,5,FALSE))","v":5},{"$f":"+IFERROR(VLOOKUP(QH$27&\"-\"&$M63&\"_new\",Ammortamento_Finanziario!$H:$L,5,FALSE),VLOOKUP($M63,TT_Tabelle_Riferimento!$D$127:$H$164,5,FALSE))","v":5},{"$f":"+IFERROR(VLOOKUP(QI$27&\"-\"&$M63&\"_new\",Ammortamento_Finanziario!$H:$L,5,FALSE),VLOOKUP($M63,TT_Tabelle_Riferimento!$D$127:$H$164,5,FALSE))","v":5},{"$f":"+IFERROR(VLOOKUP(QJ$27&\"-\"&$M63&\"_new\",Ammortamento_Finanziario!$H:$L,5,FALSE),VLOOKUP($M63,TT_Tabelle_Riferimento!$D$127:$H$164,5,FALSE))","v":5},{"$f":"+IFERROR(VLOOKUP(QK$27&\"-\"&$M63&\"_new\",Ammortamento_Finanziario!$H:$L,5,FALSE),VLOOKUP($M63,TT_Tabelle_Riferimento!$D$127:$H$164,5,FALSE))","v":5},{"$f":"+IFERROR(VLOOKUP(QL$27&\"-\"&$M63&\"_new\",Ammortamento_Finanziario!$H:$L,5,FALSE),VLOOKUP($M63,TT_Tabelle_Riferimento!$D$127:$H$164,5,FALSE))","v":5},{"$f":"+IFERROR(VLOOKUP(QM$27&\"-\"&$M63&\"_new\",Ammortamento_Finanziario!$H:$L,5,FALSE),VLOOKUP($M63,TT_Tabelle_Riferimento!$D$127:$H$164,5,FALSE))","v":5},{"$f":"+IFERROR(VLOOKUP(QN$27&\"-\"&$M63&\"_new\",Ammortamento_Finanziario!$H:$L,5,FALSE),VLOOKUP($M63,TT_Tabelle_Riferimento!$D$127:$H$164,5,FALSE))","v":5},{"$f":"+IFERROR(VLOOKUP(QO$27&\"-\"&$M63&\"_new\",Ammortamento_Finanziario!$H:$L,5,FALSE),VLOOKUP($M63,TT_Tabelle_Riferimento!$D$127:$H$164,5,FALSE))","v":5},{"$f":"+IFERROR(VLOOKUP(QP$27&\"-\"&$M63&\"_new\",Ammortamento_Finanziario!$H:$L,5,FALSE),VLOOKUP($M63,TT_Tabelle_Riferimento!$D$127:$H$164,5,FALSE))","v":5},{"$f":"+IFERROR(VLOOKUP(QQ$27&\"-\"&$M63&\"_new\",Ammortamento_Finanziario!$H:$L,5,FALSE),VLOOKUP($M63,TT_Tabelle_Riferimento!$D$127:$H$164,5,FALSE))","v":5},{"$f":"+IFERROR(VLOOKUP(QR$27&\"-\"&$M63&\"_new\",Ammortamento_Finanziario!$H:$L,5,FALSE),VLOOKUP($M63,TT_Tabelle_Riferimento!$D$127:$H$164,5,FALSE))","v":5},{"$f":"+IFERROR(VLOOKUP(QS$27&\"-\"&$M63&\"_new\",Ammortamento_Finanziario!$H:$L,5,FALSE),VLOOKUP($M63,TT_Tabelle_Riferimento!$D$127:$H$164,5,FALSE))","v":5},{"$f":"+IFERROR(VLOOKUP(QT$27&\"-\"&$M63&\"_new\",Ammortamento_Finanziario!$H:$L,5,FALSE),VLOOKUP($M63,TT_Tabelle_Riferimento!$D$127:$H$164,5,FALSE))","v":5},{"$f":"+IFERROR(VLOOKUP(QU$27&\"-\"&$M63&\"_new\",Ammortamento_Finanziario!$H:$L,5,FALSE),VLOOKUP($M63,TT_Tabelle_Riferimento!$D$127:$H$164,5,FALSE))","v":5},{"$f":"+IFERROR(VLOOKUP(QV$27&\"-\"&$M63&\"_new\",Ammortamento_Finanziario!$H:$L,5,FALSE),VLOOKUP($M63,TT_Tabelle_Riferimento!$D$127:$H$164,5,FALSE))","v":5},{"$f":"+IFERROR(VLOOKUP(QW$27&\"-\"&$M63&\"_new\",Ammortamento_Finanziario!$H:$L,5,FALSE),VLOOKUP($M63,TT_Tabelle_Riferimento!$D$127:$H$164,5,FALSE))","v":5},{"$f":"+IFERROR(VLOOKUP(QX$27&\"-\"&$M63&\"_new\",Ammortamento_Finanziario!$H:$L,5,FALSE),VLOOKUP($M63,TT_Tabelle_Riferimento!$D$127:$H$164,5,FALSE))","v":5},{"$f":"+IFERROR(VLOOKUP(QY$27&\"-\"&$M63&\"_new\",Ammortamento_Finanziario!$H:$L,5,FALSE),VLOOKUP($M63,TT_Tabelle_Riferimento!$D$127:$H$164,5,FALSE))","v":5},{"$f":"+IFERROR(VLOOKUP(QZ$27&\"-\"&$M63&\"_new\",Ammortamento_Finanziario!$H:$L,5,FALSE),VLOOKUP($M63,TT_Tabelle_Riferimento!$D$127:$H$164,5,FALSE))","v":5},{"$f":"+IFERROR(VLOOKUP(RA$27&\"-\"&$M63&\"_new\",Ammortamento_Finanziario!$H:$L,5,FALSE),VLOOKUP($M63,TT_Tabelle_Riferimento!$D$127:$H$164,5,FALSE))","v":5},{"$f":"+IFERROR(VLOOKUP(RB$27&\"-\"&$M63&\"_new\",Ammortamento_Finanziario!$H:$L,5,FALSE),VLOOKUP($M63,TT_Tabelle_Riferimento!$D$127:$H$164,5,FALSE))","v":5},{"$f":"+IFERROR(VLOOKUP(RC$27&\"-\"&$M63&\"_new\",Ammortamento_Finanziario!$H:$L,5,FALSE),VLOOKUP($M63,TT_Tabelle_Riferimento!$D$127:$H$164,5,FALSE))","v":5},{"$f":"+IFERROR(VLOOKUP(RD$27&\"-\"&$M63&\"_new\",Ammortamento_Finanziario!$H:$L,5,FALSE),VLOOKUP($M63,TT_Tabelle_Riferimento!$D$127:$H$164,5,FALSE))","v":5},{"$f":"+IFERROR(VLOOKUP(RE$27&\"-\"&$M63&\"_new\",Ammortamento_Finanziario!$H:$L,5,FALSE),VLOOKUP($M63,TT_Tabelle_Riferimento!$D$127:$H$164,5,FALSE))","v":5},{"$f":"+IFERROR(VLOOKUP(RF$27&\"-\"&$M63&\"_new\",Ammortamento_Finanziario!$H:$L,5,FALSE),VLOOKUP($M63,TT_Tabelle_Riferimento!$D$127:$H$164,5,FALSE))","v":5},{"$f":"+IFERROR(VLOOKUP(RG$27&\"-\"&$M63&\"_new\",Ammortamento_Finanziario!$H:$L,5,FALSE),VLOOKUP($M63,TT_Tabelle_Riferimento!$D$127:$H$164,5,FALSE))","v":5},{"$f":"+IFERROR(VLOOKUP(RH$27&\"-\"&$M63&\"_new\",Ammortamento_Finanziario!$H:$L,5,FALSE),VLOOKUP($M63,TT_Tabelle_Riferimento!$D$127:$H$164,5,FALSE))","v":5},{"$f":"+IFERROR(VLOOKUP(RI$27&\"-\"&$M63&\"_new\",Ammortamento_Finanziario!$H:$L,5,FALSE),VLOOKUP($M63,TT_Tabelle_Riferimento!$D$127:$H$164,5,FALSE))","v":5},{"$f":"+IFERROR(VLOOKUP(RJ$27&\"-\"&$M63&\"_new\",Ammortamento_Finanziario!$H:$L,5,FALSE),VLOOKUP($M63,TT_Tabelle_Riferimento!$D$127:$H$164,5,FALSE))","v":5},{"$f":"+IFERROR(VLOOKUP(RK$27&\"-\"&$M63&\"_new\",Ammortamento_Finanziario!$H:$L,5,FALSE),VLOOKUP($M63,TT_Tabelle_Riferimento!$D$127:$H$164,5,FALSE))","v":5},{"$f":"+IFERROR(VLOOKUP(RL$27&\"-\"&$M63&\"_new\",Ammortamento_Finanziario!$H:$L,5,FALSE),VLOOKUP($M63,TT_Tabelle_Riferimento!$D$127:$H$164,5,FALSE))","v":5},{"$f":"+IFERROR(VLOOKUP(RM$27&\"-\"&$M63&\"_new\",Ammortamento_Finanziario!$H:$L,5,FALSE),VLOOKUP($M63,TT_Tabelle_Riferimento!$D$127:$H$164,5,FALSE))","v":5},{"$f":"+IFERROR(VLOOKUP(RN$27&\"-\"&$M63&\"_new\",Ammortamento_Finanziario!$H:$L,5,FALSE),VLOOKUP($M63,TT_Tabelle_Riferimento!$D$127:$H$164,5,FALSE))","v":5},{"$f":"+IFERROR(VLOOKUP(RO$27&\"-\"&$M63&\"_new\",Ammortamento_Finanziario!$H:$L,5,FALSE),VLOOKUP($M63,TT_Tabelle_Riferimento!$D$127:$H$164,5,FALSE))","v":5},{"$f":"+IFERROR(VLOOKUP(RP$27&\"-\"&$M63&\"_new\",Ammortamento_Finanziario!$H:$L,5,FALSE),VLOOKUP($M63,TT_Tabelle_Riferimento!$D$127:$H$164,5,FALSE))","v":5},{"$f":"+IFERROR(VLOOKUP(RQ$27&\"-\"&$M63&\"_new\",Ammortamento_Finanziario!$H:$L,5,FALSE),VLOOKUP($M63,TT_Tabelle_Riferimento!$D$127:$H$164,5,FALSE))","v":5},{"$f":"+IFERROR(VLOOKUP(RR$27&\"-\"&$M63&\"_new\",Ammortamento_Finanziario!$H:$L,5,FALSE),VLOOKUP($M63,TT_Tabelle_Riferimento!$D$127:$H$164,5,FALSE))","v":5},{"$f":"+IFERROR(VLOOKUP(RS$27&\"-\"&$M63&\"_new\",Ammortamento_Finanziario!$H:$L,5,FALSE),VLOOKUP($M63,TT_Tabelle_Riferimento!$D$127:$H$164,5,FALSE))","v":5},{"$f":"+IFERROR(VLOOKUP(RT$27&\"-\"&$M63&\"_new\",Ammortamento_Finanziario!$H:$L,5,FALSE),VLOOKUP($M63,TT_Tabelle_Riferimento!$D$127:$H$164,5,FALSE))","v":5},{"$f":"+IFERROR(VLOOKUP(RU$27&\"-\"&$M63&\"_new\",Ammortamento_Finanziario!$H:$L,5,FALSE),VLOOKUP($M63,TT_Tabelle_Riferimento!$D$127:$H$164,5,FALSE))","v":5},{"$f":"+IFERROR(VLOOKUP(RV$27&\"-\"&$M63&\"_new\",Ammortamento_Finanziario!$H:$L,5,FALSE),VLOOKUP($M63,TT_Tabelle_Riferimento!$D$127:$H$164,5,FALSE))","v":5}]
[null,null,null,"Immobilizzazioni nette del gestore - solo nuovi investimenti (serie cumulata) - di cui ERCenv",null,null,null,null,null,null,null,null,37,0,0,0,0,0,0,0,0,0,0,0,0,0,0,0,0,0,0,0,0,0,0,0,0,0,0,0,0,0,0,0,0,0,0,0,0,0,0,0,0,0,0,0,0,0,0,0,0,0,0,0,0,0,0,0,0,0,0,0,0,0,0,0,0,0,0,0,0,0,0,0,0,0,0,0,0,0,0,0,0,0,0,0,0,0,0,0,0,0,0,0,0,0,0,0,0,0,0,0,0,0,0,0,0,0,0,0,0,0,0,0,0,0,0,0,0,0,0,0,0,0,0,0,0,0,0,0,0,0,0,0,0,0,0,0,0,0,0,0,0,0,0,0,0,0,0,0,0,0,0,0,0,0,0,0,0,0,0,0,0,0,0,0,0,0,0,0,0,0,0,0,0,0,0,0,0,0,0,0,0,0,0,0,0,0,0,0,0,0,0,0,0,0,0,0,0,0,0,0,0,0,0,0,0,0,0,0,0,0,0,0,0,0,0,0,0,0,0,0,0,0,0,0,0,0,0,0,0,0,0,0,0,0,0,0,0,0,0,0,0,0,0,0,0,0,0,0,0,0,0,0,0,0,0,0,0,0,0,0,0,0,0,0,0,0,0,0,0,0,0,0,0,0,0,0,0,0,0,0,0,0,0,0,0,0,0,0,0,0,{"$f":"+IFERROR(VLOOKUP(KQ$27&\"-\"&$M64&\"_new\",Ammortamento_Finanziario!$H:$L,5,FALSE),VLOOKUP($M64,TT_Tabelle_Riferimento!$D$127:$H$164,5,FALSE))","v":7},{"$f":"+IFERROR(VLOOKUP(KR$27&\"-\"&$M64&\"_new\",Ammortamento_Finanziario!$H:$L,5,FALSE),VLOOKUP($M64,TT_Tabelle_Riferimento!$D$127:$H$164,5,FALSE))","v":7},{"$f":"+IFERROR(VLOOKUP(KS$27&\"-\"&$M64&\"_new\",Ammortamento_Finanziario!$H:$L,5,FALSE),VLOOKUP($M64,TT_Tabelle_Riferimento!$D$127:$H$164,5,FALSE))","v":7},{"$f":"+IFERROR(VLOOKUP(KT$27&\"-\"&$M64&\"_new\",Ammortamento_Finanziario!$H:$L,5,FALSE),VLOOKUP($M64,TT_Tabelle_Riferimento!$D$127:$H$164,5,FALSE))","v":7},{"$f":"+IFERROR(VLOOKUP(KU$27&\"-\"&$M64&\"_new\",Ammortamento_Finanziario!$H:$L,5,FALSE),VLOOKUP($M64,TT_Tabelle_Riferimento!$D$127:$H$164,5,FALSE))","v":7},{"$f":"+IFERROR(VLOOKUP(KV$27&\"-\"&$M64&\"_new\",Ammortamento_Finanziario!$H:$L,5,FALSE),VLOOKUP($M64,TT_Tabelle_Riferimento!$D$127:$H$164,5,FALSE))","v":7},{"$f":"+IFERROR(VLOOKUP(KW$27&\"-\"&$M64&\"_new\",Ammortamento_Finanziario!$H:$L,5,FALSE),VLOOKUP($M64,TT_Tabelle_Riferimento!$D$127:$H$164,5,FALSE))","v":7},{"$f":"+IFERROR(VLOOKUP(KX$27&\"-\"&$M64&\"_new\",Ammortamento_Finanziario!$H:$L,5,FALSE),VLOOKUP($M64,TT_Tabelle_Riferimento!$D$127:$H$164,5,FALSE))","v":7},{"$f":"+IFERROR(VLOOKUP(KY$27&\"-\"&$M64&\"_new\",Ammortamento_Finanziario!$H:$L,5,FALSE),VLOOKUP($M64,TT_Tabelle_Riferimento!$D$127:$H$164,5,FALSE))","v":7},{"$f":"+IFERROR(VLOOKUP(KZ$27&\"-\"&$M64&\"_new\",Ammortamento_Finanziario!$H:$L,5,FALSE),VLOOKUP($M64,TT_Tabelle_Riferimento!$D$127:$H$164,5,FALSE))","v":7},{"$f":"+IFERROR(VLOOKUP(LA$27&\"-\"&$M64&\"_new\",Ammortamento_Finanziario!$H:$L,5,FALSE),VLOOKUP($M64,TT_Tabelle_Riferimento!$D$127:$H$164,5,FALSE))","v":7},{"$f":"+IFERROR(VLOOKUP(LB$27&\"-\"&$M64&\"_new\",Ammortamento_Finanziario!$H:$L,5,FALSE),VLOOKUP($M64,TT_Tabelle_Riferimento!$D$127:$H$164,5,FALSE))","v":7},{"$f":"+IFERROR(VLOOKUP(LC$27&\"-\"&$M64&\"_new\",Ammortamento_Finanziario!$H:$L,5,FALSE),VLOOKUP($M64,TT_Tabelle_Riferimento!$D$127:$H$164,5,FALSE))","v":7},{"$f":"+IFERROR(VLOOKUP(LD$27&\"-\"&$M64&\"_new\",Ammortamento_Finanziario!$H:$L,5,FALSE),VLOOKUP($M64,TT_Tabelle_Riferimento!$D$127:$H$164,5,FALSE))","v":7},{"$f":"+IFERROR(VLOOKUP(LE$27&\"-\"&$M64&\"_new\",Ammortamento_Finanziario!$H:$L,5,FALSE),VLOOKUP($M64,TT_Tabelle_Riferimento!$D$127:$H$164,5,FALSE))","v":7},{"$f":"+IFERROR(VLOOKUP(LF$27&\"-\"&$M64&\"_new\",Ammortamento_Finanziario!$H:$L,5,FALSE),VLOOKUP($M64,TT_Tabelle_Riferimento!$D$127:$H$164,5,FALSE))","v":7},{"$f":"+IFERROR(VLOOKUP(LG$27&\"-\"&$M64&\"_new\",Ammortamento_Finanziario!$H:$L,5,FALSE),VLOOKUP($M64,TT_Tabelle_Riferimento!$D$127:$H$164,5,FALSE))","v":7},{"$f":"+IFERROR(VLOOKUP(LH$27&\"-\"&$M64&\"_new\",Ammortamento_Finanziario!$H:$L,5,FALSE),VLOOKUP($M64,TT_Tabelle_Riferimento!$D$127:$H$164,5,FALSE))","v":7},{"$f":"+IFERROR(VLOOKUP(LI$27&\"-\"&$M64&\"_new\",Ammortamento_Finanziario!$H:$L,5,FALSE),VLOOKUP($M64,TT_Tabelle_Riferimento!$D$127:$H$164,5,FALSE))","v":7},{"$f":"+IFERROR(VLOOKUP(LJ$27&\"-\"&$M64&\"_new\",Ammortamento_Finanziario!$H:$L,5,FALSE),VLOOKUP($M64,TT_Tabelle_Riferimento!$D$127:$H$164,5,FALSE))","v":7},{"$f":"+IFERROR(VLOOKUP(LK$27&\"-\"&$M64&\"_new\",Ammortamento_Finanziario!$H:$L,5,FALSE),VLOOKUP($M64,TT_Tabelle_Riferimento!$D$127:$H$164,5,FALSE))","v":7},{"$f":"+IFERROR(VLOOKUP(LL$27&\"-\"&$M64&\"_new\",Ammortamento_Finanziario!$H:$L,5,FALSE),VLOOKUP($M64,TT_Tabelle_Riferimento!$D$127:$H$164,5,FALSE))","v":7},{"$f":"+IFERROR(VLOOKUP(LM$27&\"-\"&$M64&\"_new\",Ammortamento_Finanziario!$H:$L,5,FALSE),VLOOKUP($M64,TT_Tabelle_Riferimento!$D$127:$H$164,5,FALSE))","v":7},{"$f":"+IFERROR(VLOOKUP(LN$27&\"-\"&$M64&\"_new\",Ammortamento_Finanziario!$H:$L,5,FALSE),VLOOKUP($M64,TT_Tabelle_Riferimento!$D$127:$H$164,5,FALSE))","v":7},{"$f":"+IFERROR(VLOOKUP(LO$27&\"-\"&$M64&\"_new\",Ammortamento_Finanziario!$H:$L,5,FALSE),VLOOKUP($M64,TT_Tabelle_Riferimento!$D$127:$H$164,5,FALSE))","v":7},{"$f":"+IFERROR(VLOOKUP(LP$27&\"-\"&$M64&\"_new\",Ammortamento_Finanziario!$H:$L,5,FALSE),VLOOKUP($M64,TT_Tabelle_Riferimento!$D$127:$H$164,5,FALSE))","v":7},{"$f":"+IFERROR(VLOOKUP(LQ$27&\"-\"&$M64&\"_new\",Ammortamento_Finanziario!$H:$L,5,FALSE),VLOOKUP($M64,TT_Tabelle_Riferimento!$D$127:$H$164,5,FALSE))","v":7},{"$f":"+IFERROR(VLOOKUP(LR$27&\"-\"&$M64&\"_new\",Ammortamento_Finanziario!$H:$L,5,FALSE),VLOOKUP($M64,TT_Tabelle_Riferimento!$D$127:$H$164,5,FALSE))","v":7},{"$f":"+IFERROR(VLOOKUP(LS$27&\"-\"&$M64&\"_new\",Ammortamento_Finanziario!$H:$L,5,FALSE),VLOOKUP($M64,TT_Tabelle_Riferimento!$D$127:$H$164,5,FALSE))","v":7},{"$f":"+IFERROR(VLOOKUP(LT$27&\"-\"&$M64&\"_new\",Ammortamento_Finanziario!$H:$L,5,FALSE),VLOOKUP($M64,TT_Tabelle_Riferimento!$D$127:$H$164,5,FALSE))","v":7},{"$f":"+IFERROR(VLOOKUP(LU$27&\"-\"&$M64&\"_new\",Ammortamento_Finanziario!$H:$L,5,FALSE),VLOOKUP($M64,TT_Tabelle_Riferimento!$D$127:$H$164,5,FALSE))","v":7},{"$f":"+IFERROR(VLOOKUP(LV$27&\"-\"&$M64&\"_new\",Ammortamento_Finanziario!$H:$L,5,FALSE),VLOOKUP($M64,TT_Tabelle_Riferimento!$D$127:$H$164,5,FALSE))","v":7},{"$f":"+IFERROR(VLOOKUP(LW$27&\"-\"&$M64&\"_new\",Ammortamento_Finanziario!$H:$L,5,FALSE),VLOOKUP($M64,TT_Tabelle_Riferimento!$D$127:$H$164,5,FALSE))","v":7},{"$f":"+IFERROR(VLOOKUP(LX$27&\"-\"&$M64&\"_new\",Ammortamento_Finanziario!$H:$L,5,FALSE),VLOOKUP($M64,TT_Tabelle_Riferimento!$D$127:$H$164,5,FALSE))","v":7},{"$f":"+IFERROR(VLOOKUP(LY$27&\"-\"&$M64&\"_new\",Ammortamento_Finanziario!$H:$L,5,FALSE),VLOOKUP($M64,TT_Tabelle_Riferimento!$D$127:$H$164,5,FALSE))","v":7},{"$f":"+IFERROR(VLOOKUP(LZ$27&\"-\"&$M64&\"_new\",Ammortamento_Finanziario!$H:$L,5,FALSE),VLOOKUP($M64,TT_Tabelle_Riferimento!$D$127:$H$164,5,FALSE))","v":7},{"$f":"+IFERROR(VLOOKUP(MA$27&\"-\"&$M64&\"_new\",Ammortamento_Finanziario!$H:$L,5,FALSE),VLOOKUP($M64,TT_Tabelle_Riferimento!$D$127:$H$164,5,FALSE))","v":7},{"$f":"+IFERROR(VLOOKUP(MB$27&\"-\"&$M64&\"_new\",Ammortamento_Finanziario!$H:$L,5,FALSE),VLOOKUP($M64,TT_Tabelle_Riferimento!$D$127:$H$164,5,FALSE))","v":7},{"$f":"+IFERROR(VLOOKUP(MC$27&\"-\"&$M64&\"_new\",Ammortamento_Finanziario!$H:$L,5,FALSE),VLOOKUP($M64,TT_Tabelle_Riferimento!$D$127:$H$164,5,FALSE))","v":7},{"$f":"+IFERROR(VLOOKUP(MD$27&\"-\"&$M64&\"_new\",Ammortamento_Finanziario!$H:$L,5,FALSE),VLOOKUP($M64,TT_Tabelle_Riferimento!$D$127:$H$164,5,FALSE))","v":7},{"$f":"+IFERROR(VLOOKUP(ME$27&\"-\"&$M64&\"_new\",Ammortamento_Finanziario!$H:$L,5,FALSE),VLOOKUP($M64,TT_Tabelle_Riferimento!$D$127:$H$164,5,FALSE))","v":7},{"$f":"+IFERROR(VLOOKUP(MF$27&\"-\"&$M64&\"_new\",Ammortamento_Finanziario!$H:$L,5,FALSE),VLOOKUP($M64,TT_Tabelle_Riferimento!$D$127:$H$164,5,FALSE))","v":7},{"$f":"+IFERROR(VLOOKUP(MG$27&\"-\"&$M64&\"_new\",Ammortamento_Finanziario!$H:$L,5,FALSE),VLOOKUP($M64,TT_Tabelle_Riferimento!$D$127:$H$164,5,FALSE))","v":7},{"$f":"+IFERROR(VLOOKUP(MH$27&\"-\"&$M64&\"_new\",Ammortamento_Finanziario!$H:$L,5,FALSE),VLOOKUP($M64,TT_Tabelle_Riferimento!$D$127:$H$164,5,FALSE))","v":7},{"$f":"+IFERROR(VLOOKUP(MI$27&\"-\"&$M64&\"_new\",Ammortamento_Finanziario!$H:$L,5,FALSE),VLOOKUP($M64,TT_Tabelle_Riferimento!$D$127:$H$164,5,FALSE))","v":7},{"$f":"+IFERROR(VLOOKUP(MJ$27&\"-\"&$M64&\"_new\",Ammortamento_Finanziario!$H:$L,5,FALSE),VLOOKUP($M64,TT_Tabelle_Riferimento!$D$127:$H$164,5,FALSE))","v":7},{"$f":"+IFERROR(VLOOKUP(MK$27&\"-\"&$M64&\"_new\",Ammortamento_Finanziario!$H:$L,5,FALSE),VLOOKUP($M64,TT_Tabelle_Riferimento!$D$127:$H$164,5,FALSE))","v":7},{"$f":"+IFERROR(VLOOKUP(ML$27&\"-\"&$M64&\"_new\",Ammortamento_Finanziario!$H:$L,5,FALSE),VLOOKUP($M64,TT_Tabelle_Riferimento!$D$127:$H$164,5,FALSE))","v":7},{"$f":"+IFERROR(VLOOKUP(MM$27&\"-\"&$M64&\"_new\",Ammortamento_Finanziario!$H:$L,5,FALSE),VLOOKUP($M64,TT_Tabelle_Riferimento!$D$127:$H$164,5,FALSE))","v":7},{"$f":"+IFERROR(VLOOKUP(MN$27&\"-\"&$M64&\"_new\",Ammortamento_Finanziario!$H:$L,5,FALSE),VLOOKUP($M64,TT_Tabelle_Riferimento!$D$127:$H$164,5,FALSE))","v":7},{"$f":"+IFERROR(VLOOKUP(MO$27&\"-\"&$M64&\"_new\",Ammortamento_Finanziario!$H:$L,5,FALSE),VLOOKUP($M64,TT_Tabelle_Riferimento!$D$127:$H$164,5,FALSE))","v":7},{"$f":"+IFERROR(VLOOKUP(MP$27&\"-\"&$M64&\"_new\",Ammortamento_Finanziario!$H:$L,5,FALSE),VLOOKUP($M64,TT_Tabelle_Riferimento!$D$127:$H$164,5,FALSE))","v":7},{"$f":"+IFERROR(VLOOKUP(MQ$27&\"-\"&$M64&\"_new\",Ammortamento_Finanziario!$H:$L,5,FALSE),VLOOKUP($M64,TT_Tabelle_Riferimento!$D$127:$H$164,5,FALSE))","v":7},{"$f":"+IFERROR(VLOOKUP(MR$27&\"-\"&$M64&\"_new\",Ammortamento_Finanziario!$H:$L,5,FALSE),VLOOKUP($M64,TT_Tabelle_Riferimento!$D$127:$H$164,5,FALSE))","v":7},{"$f":"+IFERROR(VLOOKUP(MS$27&\"-\"&$M64&\"_new\",Ammortamento_Finanziario!$H:$L,5,FALSE),VLOOKUP($M64,TT_Tabelle_Riferimento!$D$127:$H$164,5,FALSE))","v":7},{"$f":"+IFERROR(VLOOKUP(MT$27&\"-\"&$M64&\"_new\",Ammortamento_Finanziario!$H:$L,5,FALSE),VLOOKUP($M64,TT_Tabelle_Riferimento!$D$127:$H$164,5,FALSE))","v":7},{"$f":"+IFERROR(VLOOKUP(MU$27&\"-\"&$M64&\"_new\",Ammortamento_Finanziario!$H:$L,5,FALSE),VLOOKUP($M64,TT_Tabelle_Riferimento!$D$127:$H$164,5,FALSE))","v":7},{"$f":"+IFERROR(VLOOKUP(MV$27&\"-\"&$M64&\"_new\",Ammortamento_Finanziario!$H:$L,5,FALSE),VLOOKUP($M64,TT_Tabelle_Riferimento!$D$127:$H$164,5,FALSE))","v":7},{"$f":"+IFERROR(VLOOKUP(MW$27&\"-\"&$M64&\"_new\",Ammortamento_Finanziario!$H:$L,5,FALSE),VLOOKUP($M64,TT_Tabelle_Riferimento!$D$127:$H$164,5,FALSE))","v":7},{"$f":"+IFERROR(VLOOKUP(MX$27&\"-\"&$M64&\"_new\",Ammortamento_Finanziario!$H:$L,5,FALSE),VLOOKUP($M64,TT_Tabelle_Riferimento!$D$127:$H$164,5,FALSE))","v":7},{"$f":"+IFERROR(VLOOKUP(MY$27&\"-\"&$M64&\"_new\",Ammortamento_Finanziario!$H:$L,5,FALSE),VLOOKUP($M64,TT_Tabelle_Riferimento!$D$127:$H$164,5,FALSE))","v":7},{"$f":"+IFERROR(VLOOKUP(MZ$27&\"-\"&$M64&\"_new\",Ammortamento_Finanziario!$H:$L,5,FALSE),VLOOKUP($M64,TT_Tabelle_Riferimento!$D$127:$H$164,5,FALSE))","v":7},{"$f":"+IFERROR(VLOOKUP(NA$27&\"-\"&$M64&\"_new\",Ammortamento_Finanziario!$H:$L,5,FALSE),VLOOKUP($M64,TT_Tabelle_Riferimento!$D$127:$H$164,5,FALSE))","v":7},{"$f":"+IFERROR(VLOOKUP(NB$27&\"-\"&$M64&\"_new\",Ammortamento_Finanziario!$H:$L,5,FALSE),VLOOKUP($M64,TT_Tabelle_Riferimento!$D$127:$H$164,5,FALSE))","v":7},{"$f":"+IFERROR(VLOOKUP(NC$27&\"-\"&$M64&\"_new\",Ammortamento_Finanziario!$H:$L,5,FALSE),VLOOKUP($M64,TT_Tabelle_Riferimento!$D$127:$H$164,5,FALSE))","v":7},{"$f":"+IFERROR(VLOOKUP(ND$27&\"-\"&$M64&\"_new\",Ammortamento_Finanziario!$H:$L,5,FALSE),VLOOKUP($M64,TT_Tabelle_Riferimento!$D$127:$H$164,5,FALSE))","v":7},{"$f":"+IFERROR(VLOOKUP(NE$27&\"-\"&$M64&\"_new\",Ammortamento_Finanziario!$H:$L,5,FALSE),VLOOKUP($M64,TT_Tabelle_Riferimento!$D$127:$H$164,5,FALSE))","v":7},{"$f":"+IFERROR(VLOOKUP(NF$27&\"-\"&$M64&\"_new\",Ammortamento_Finanziario!$H:$L,5,FALSE),VLOOKUP($M64,TT_Tabelle_Riferimento!$D$127:$H$164,5,FALSE))","v":7},{"$f":"+IFERROR(VLOOKUP(NG$27&\"-\"&$M64&\"_new\",Ammortamento_Finanziario!$H:$L,5,FALSE),VLOOKUP($M64,TT_Tabelle_Riferimento!$D$127:$H$164,5,FALSE))","v":7},{"$f":"+IFERROR(VLOOKUP(NH$27&\"-\"&$M64&\"_new\",Ammortamento_Finanziario!$H:$L,5,FALSE),VLOOKUP($M64,TT_Tabelle_Riferimento!$D$127:$H$164,5,FALSE))","v":7},{"$f":"+IFERROR(VLOOKUP(NI$27&\"-\"&$M64&\"_new\",Ammortamento_Finanziario!$H:$L,5,FALSE),VLOOKUP($M64,TT_Tabelle_Riferimento!$D$127:$H$164,5,FALSE))","v":7},{"$f":"+IFERROR(VLOOKUP(NJ$27&\"-\"&$M64&\"_new\",Ammortamento_Finanziario!$H:$L,5,FALSE),VLOOKUP($M64,TT_Tabelle_Riferimento!$D$127:$H$164,5,FALSE))","v":7},{"$f":"+IFERROR(VLOOKUP(NK$27&\"-\"&$M64&\"_new\",Ammortamento_Finanziario!$H:$L,5,FALSE),VLOOKUP($M64,TT_Tabelle_Riferimento!$D$127:$H$164,5,FALSE))","v":7},{"$f":"+IFERROR(VLOOKUP(NL$27&\"-\"&$M64&\"_new\",Ammortamento_Finanziario!$H:$L,5,FALSE),VLOOKUP($M64,TT_Tabelle_Riferimento!$D$127:$H$164,5,FALSE))","v":7},{"$f":"+IFERROR(VLOOKUP(NM$27&\"-\"&$M64&\"_new\",Ammortamento_Finanziario!$H:$L,5,FALSE),VLOOKUP($M64,TT_Tabelle_Riferimento!$D$127:$H$164,5,FALSE))","v":7},{"$f":"+IFERROR(VLOOKUP(NN$27&\"-\"&$M64&\"_new\",Ammortamento_Finanziario!$H:$L,5,FALSE),VLOOKUP($M64,TT_Tabelle_Riferimento!$D$127:$H$164,5,FALSE))","v":7},{"$f":"+IFERROR(VLOOKUP(NO$27&\"-\"&$M64&\"_new\",Ammortamento_Finanziario!$H:$L,5,FALSE),VLOOKUP($M64,TT_Tabelle_Riferimento!$D$127:$H$164,5,FALSE))","v":7},{"$f":"+IFERROR(VLOOKUP(NP$27&\"-\"&$M64&\"_new\",Ammortamento_Finanziario!$H:$L,5,FALSE),VLOOKUP($M64,TT_Tabelle_Riferimento!$D$127:$H$164,5,FALSE))","v":7},{"$f":"+IFERROR(VLOOKUP(NQ$27&\"-\"&$M64&\"_new\",Ammortamento_Finanziario!$H:$L,5,FALSE),VLOOKUP($M64,TT_Tabelle_Riferimento!$D$127:$H$164,5,FALSE))","v":7},{"$f":"+IFERROR(VLOOKUP(NR$27&\"-\"&$M64&\"_new\",Ammortamento_Finanziario!$H:$L,5,FALSE),VLOOKUP($M64,TT_Tabelle_Riferimento!$D$127:$H$164,5,FALSE))","v":7},{"$f":"+IFERROR(VLOOKUP(NS$27&\"-\"&$M64&\"_new\",Ammortamento_Finanziario!$H:$L,5,FALSE),VLOOKUP($M64,TT_Tabelle_Riferimento!$D$127:$H$164,5,FALSE))","v":7},{"$f":"+IFERROR(VLOOKUP(NT$27&\"-\"&$M64&\"_new\",Ammortamento_Finanziario!$H:$L,5,FALSE),VLOOKUP($M64,TT_Tabelle_Riferimento!$D$127:$H$164,5,FALSE))","v":7},{"$f":"+IFERROR(VLOOKUP(NU$27&\"-\"&$M64&\"_new\",Ammortamento_Finanziario!$H:$L,5,FALSE),VLOOKUP($M64,TT_Tabelle_Riferimento!$D$127:$H$164,5,FALSE))","v":7},{"$f":"+IFERROR(VLOOKUP(NV$27&\"-\"&$M64&\"_new\",Ammortamento_Finanziario!$H:$L,5,FALSE),VLOOKUP($M64,TT_Tabelle_Riferimento!$D$127:$H$164,5,FALSE))","v":7},{"$f":"+IFERROR(VLOOKUP(NW$27&\"-\"&$M64&\"_new\",Ammortamento_Finanziario!$H:$L,5,FALSE),VLOOKUP($M64,TT_Tabelle_Riferimento!$D$127:$H$164,5,FALSE))","v":7},{"$f":"+IFERROR(VLOOKUP(NX$27&\"-\"&$M64&\"_new\",Ammortamento_Finanziario!$H:$L,5,FALSE),VLOOKUP($M64,TT_Tabelle_Riferimento!$D$127:$H$164,5,FALSE))","v":7},{"$f":"+IFERROR(VLOOKUP(NY$27&\"-\"&$M64&\"_new\",Ammortamento_Finanziario!$H:$L,5,FALSE),VLOOKUP($M64,TT_Tabelle_Riferimento!$D$127:$H$164,5,FALSE))","v":7},{"$f":"+IFERROR(VLOOKUP(NZ$27&\"-\"&$M64&\"_new\",Ammortamento_Finanziario!$H:$L,5,FALSE),VLOOKUP($M64,TT_Tabelle_Riferimento!$D$127:$H$164,5,FALSE))","v":7},{"$f":"+IFERROR(VLOOKUP(OA$27&\"-\"&$M64&\"_new\",Ammortamento_Finanziario!$H:$L,5,FALSE),VLOOKUP($M64,TT_Tabelle_Riferimento!$D$127:$H$164,5,FALSE))","v":7},{"$f":"+IFERROR(VLOOKUP(OB$27&\"-\"&$M64&\"_new\",Ammortamento_Finanziario!$H:$L,5,FALSE),VLOOKUP($M64,TT_Tabelle_Riferimento!$D$127:$H$164,5,FALSE))","v":7},{"$f":"+IFERROR(VLOOKUP(OC$27&\"-\"&$M64&\"_new\",Ammortamento_Finanziario!$H:$L,5,FALSE),VLOOKUP($M64,TT_Tabelle_Riferimento!$D$127:$H$164,5,FALSE))","v":7},{"$f":"+IFERROR(VLOOKUP(OD$27&\"-\"&$M64&\"_new\",Ammortamento_Finanziario!$H:$L,5,FALSE),VLOOKUP($M64,TT_Tabelle_Riferimento!$D$127:$H$164,5,FALSE))","v":7},{"$f":"+IFERROR(VLOOKUP(OE$27&\"-\"&$M64&\"_new\",Ammortamento_Finanziario!$H:$L,5,FALSE),VLOOKUP($M64,TT_Tabelle_Riferimento!$D$127:$H$164,5,FALSE))","v":7},{"$f":"+IFERROR(VLOOKUP(OF$27&\"-\"&$M64&\"_new\",Ammortamento_Finanziario!$H:$L,5,FALSE),VLOOKUP($M64,TT_Tabelle_Riferimento!$D$127:$H$164,5,FALSE))","v":7},{"$f":"+IFERROR(VLOOKUP(OG$27&\"-\"&$M64&\"_new\",Ammortamento_Finanziario!$H:$L,5,FALSE),VLOOKUP($M64,TT_Tabelle_Riferimento!$D$127:$H$164,5,FALSE))","v":7},{"$f":"+IFERROR(VLOOKUP(OH$27&\"-\"&$M64&\"_new\",Ammortamento_Finanziario!$H:$L,5,FALSE),VLOOKUP($M64,TT_Tabelle_Riferimento!$D$127:$H$164,5,FALSE))","v":7},{"$f":"+IFERROR(VLOOKUP(OI$27&\"-\"&$M64&\"_new\",Ammortamento_Finanziario!$H:$L,5,FALSE),VLOOKUP($M64,TT_Tabelle_Riferimento!$D$127:$H$164,5,FALSE))","v":7},{"$f":"+IFERROR(VLOOKUP(OJ$27&\"-\"&$M64&\"_new\",Ammortamento_Finanziario!$H:$L,5,FALSE),VLOOKUP($M64,TT_Tabelle_Riferimento!$D$127:$H$164,5,FALSE))","v":7},{"$f":"+IFERROR(VLOOKUP(OK$27&\"-\"&$M64&\"_new\",Ammortamento_Finanziario!$H:$L,5,FALSE),VLOOKUP($M64,TT_Tabelle_Riferimento!$D$127:$H$164,5,FALSE))","v":7},{"$f":"+IFERROR(VLOOKUP(OL$27&\"-\"&$M64&\"_new\",Ammortamento_Finanziario!$H:$L,5,FALSE),VLOOKUP($M64,TT_Tabelle_Riferimento!$D$127:$H$164,5,FALSE))","v":7},{"$f":"+IFERROR(VLOOKUP(OM$27&\"-\"&$M64&\"_new\",Ammortamento_Finanziario!$H:$L,5,FALSE),VLOOKUP($M64,TT_Tabelle_Riferimento!$D$127:$H$164,5,FALSE))","v":7},{"$f":"+IFERROR(VLOOKUP(ON$27&\"-\"&$M64&\"_new\",Ammortamento_Finanziario!$H:$L,5,FALSE),VLOOKUP($M64,TT_Tabelle_Riferimento!$D$127:$H$164,5,FALSE))","v":7},{"$f":"+IFERROR(VLOOKUP(OO$27&\"-\"&$M64&\"_new\",Ammortamento_Finanziario!$H:$L,5,FALSE),VLOOKUP($M64,TT_Tabelle_Riferimento!$D$127:$H$164,5,FALSE))","v":7},{"$f":"+IFERROR(VLOOKUP(OP$27&\"-\"&$M64&\"_new\",Ammortamento_Finanziario!$H:$L,5,FALSE),VLOOKUP($M64,TT_Tabelle_Riferimento!$D$127:$H$164,5,FALSE))","v":7},{"$f":"+IFERROR(VLOOKUP(OQ$27&\"-\"&$M64&\"_new\",Ammortamento_Finanziario!$H:$L,5,FALSE),VLOOKUP($M64,TT_Tabelle_Riferimento!$D$127:$H$164,5,FALSE))","v":7},{"$f":"+IFERROR(VLOOKUP(OR$27&\"-\"&$M64&\"_new\",Ammortamento_Finanziario!$H:$L,5,FALSE),VLOOKUP($M64,TT_Tabelle_Riferimento!$D$127:$H$164,5,FALSE))","v":7},{"$f":"+IFERROR(VLOOKUP(OS$27&\"-\"&$M64&\"_new\",Ammortamento_Finanziario!$H:$L,5,FALSE),VLOOKUP($M64,TT_Tabelle_Riferimento!$D$127:$H$164,5,FALSE))","v":7},{"$f":"+IFERROR(VLOOKUP(OT$27&\"-\"&$M64&\"_new\",Ammortamento_Finanziario!$H:$L,5,FALSE),VLOOKUP($M64,TT_Tabelle_Riferimento!$D$127:$H$164,5,FALSE))","v":7},{"$f":"+IFERROR(VLOOKUP(OU$27&\"-\"&$M64&\"_new\",Ammortamento_Finanziario!$H:$L,5,FALSE),VLOOKUP($M64,TT_Tabelle_Riferimento!$D$127:$H$164,5,FALSE))","v":7},{"$f":"+IFERROR(VLOOKUP(OV$27&\"-\"&$M64&\"_new\",Ammortamento_Finanziario!$H:$L,5,FALSE),VLOOKUP($M64,TT_Tabelle_Riferimento!$D$127:$H$164,5,FALSE))","v":7},{"$f":"+IFERROR(VLOOKUP(OW$27&\"-\"&$M64&\"_new\",Ammortamento_Finanziario!$H:$L,5,FALSE),VLOOKUP($M64,TT_Tabelle_Riferimento!$D$127:$H$164,5,FALSE))","v":7},{"$f":"+IFERROR(VLOOKUP(OX$27&\"-\"&$M64&\"_new\",Ammortamento_Finanziario!$H:$L,5,FALSE),VLOOKUP($M64,TT_Tabelle_Riferimento!$D$127:$H$164,5,FALSE))","v":7},{"$f":"+IFERROR(VLOOKUP(OY$27&\"-\"&$M64&\"_new\",Ammortamento_Finanziario!$H:$L,5,FALSE),VLOOKUP($M64,TT_Tabelle_Riferimento!$D$127:$H$164,5,FALSE))","v":7},{"$f":"+IFERROR(VLOOKUP(OZ$27&\"-\"&$M64&\"_new\",Ammortamento_Finanziario!$H:$L,5,FALSE),VLOOKUP($M64,TT_Tabelle_Riferimento!$D$127:$H$164,5,FALSE))","v":7},{"$f":"+IFERROR(VLOOKUP(PA$27&\"-\"&$M64&\"_new\",Ammortamento_Finanziario!$H:$L,5,FALSE),VLOOKUP($M64,TT_Tabelle_Riferimento!$D$127:$H$164,5,FALSE))","v":7},{"$f":"+IFERROR(VLOOKUP(PB$27&\"-\"&$M64&\"_new\",Ammortamento_Finanziario!$H:$L,5,FALSE),VLOOKUP($M64,TT_Tabelle_Riferimento!$D$127:$H$164,5,FALSE))","v":7},{"$f":"+IFERROR(VLOOKUP(PC$27&\"-\"&$M64&\"_new\",Ammortamento_Finanziario!$H:$L,5,FALSE),VLOOKUP($M64,TT_Tabelle_Riferimento!$D$127:$H$164,5,FALSE))","v":7},{"$f":"+IFERROR(VLOOKUP(PD$27&\"-\"&$M64&\"_new\",Ammortamento_Finanziario!$H:$L,5,FALSE),VLOOKUP($M64,TT_Tabelle_Riferimento!$D$127:$H$164,5,FALSE))","v":7},{"$f":"+IFERROR(VLOOKUP(PE$27&\"-\"&$M64&\"_new\",Ammortamento_Finanziario!$H:$L,5,FALSE),VLOOKUP($M64,TT_Tabelle_Riferimento!$D$127:$H$164,5,FALSE))","v":7},{"$f":"+IFERROR(VLOOKUP(PF$27&\"-\"&$M64&\"_new\",Ammortamento_Finanziario!$H:$L,5,FALSE),VLOOKUP($M64,TT_Tabelle_Riferimento!$D$127:$H$164,5,FALSE))","v":7},{"$f":"+IFERROR(VLOOKUP(PG$27&\"-\"&$M64&\"_new\",Ammortamento_Finanziario!$H:$L,5,FALSE),VLOOKUP($M64,TT_Tabelle_Riferimento!$D$127:$H$164,5,FALSE))","v":7},{"$f":"+IFERROR(VLOOKUP(PH$27&\"-\"&$M64&\"_new\",Ammortamento_Finanziario!$H:$L,5,FALSE),VLOOKUP($M64,TT_Tabelle_Riferimento!$D$127:$H$164,5,FALSE))","v":7},{"$f":"+IFERROR(VLOOKUP(PI$27&\"-\"&$M64&\"_new\",Ammortamento_Finanziario!$H:$L,5,FALSE),VLOOKUP($M64,TT_Tabelle_Riferimento!$D$127:$H$164,5,FALSE))","v":7},{"$f":"+IFERROR(VLOOKUP(PJ$27&\"-\"&$M64&\"_new\",Ammortamento_Finanziario!$H:$L,5,FALSE),VLOOKUP($M64,TT_Tabelle_Riferimento!$D$127:$H$164,5,FALSE))","v":7},{"$f":"+IFERROR(VLOOKUP(PK$27&\"-\"&$M64&\"_new\",Ammortamento_Finanziario!$H:$L,5,FALSE),VLOOKUP($M64,TT_Tabelle_Riferimento!$D$127:$H$164,5,FALSE))","v":7},{"$f":"+IFERROR(VLOOKUP(PL$27&\"-\"&$M64&\"_new\",Ammortamento_Finanziario!$H:$L,5,FALSE),VLOOKUP($M64,TT_Tabelle_Riferimento!$D$127:$H$164,5,FALSE))","v":7},{"$f":"+IFERROR(VLOOKUP(PM$27&\"-\"&$M64&\"_new\",Ammortamento_Finanziario!$H:$L,5,FALSE),VLOOKUP($M64,TT_Tabelle_Riferimento!$D$127:$H$164,5,FALSE))","v":7},{"$f":"+IFERROR(VLOOKUP(PN$27&\"-\"&$M64&\"_new\",Ammortamento_Finanziario!$H:$L,5,FALSE),VLOOKUP($M64,TT_Tabelle_Riferimento!$D$127:$H$164,5,FALSE))","v":7},{"$f":"+IFERROR(VLOOKUP(PO$27&\"-\"&$M64&\"_new\",Ammortamento_Finanziario!$H:$L,5,FALSE),VLOOKUP($M64,TT_Tabelle_Riferimento!$D$127:$H$164,5,FALSE))","v":7},{"$f":"+IFERROR(VLOOKUP(PP$27&\"-\"&$M64&\"_new\",Ammortamento_Finanziario!$H:$L,5,FALSE),VLOOKUP($M64,TT_Tabelle_Riferimento!$D$127:$H$164,5,FALSE))","v":7},{"$f":"+IFERROR(VLOOKUP(PQ$27&\"-\"&$M64&\"_new\",Ammortamento_Finanziario!$H:$L,5,FALSE),VLOOKUP($M64,TT_Tabelle_Riferimento!$D$127:$H$164,5,FALSE))","v":7},{"$f":"+IFERROR(VLOOKUP(PR$27&\"-\"&$M64&\"_new\",Ammortamento_Finanziario!$H:$L,5,FALSE),VLOOKUP($M64,TT_Tabelle_Riferimento!$D$127:$H$164,5,FALSE))","v":7},{"$f":"+IFERROR(VLOOKUP(PS$27&\"-\"&$M64&\"_new\",Ammortamento_Finanziario!$H:$L,5,FALSE),VLOOKUP($M64,TT_Tabelle_Riferimento!$D$127:$H$164,5,FALSE))","v":7},{"$f":"+IFERROR(VLOOKUP(PT$27&\"-\"&$M64&\"_new\",Ammortamento_Finanziario!$H:$L,5,FALSE),VLOOKUP($M64,TT_Tabelle_Riferimento!$D$127:$H$164,5,FALSE))","v":7},{"$f":"+IFERROR(VLOOKUP(PU$27&\"-\"&$M64&\"_new\",Ammortamento_Finanziario!$H:$L,5,FALSE),VLOOKUP($M64,TT_Tabelle_Riferimento!$D$127:$H$164,5,FALSE))","v":7},{"$f":"+IFERROR(VLOOKUP(PV$27&\"-\"&$M64&\"_new\",Ammortamento_Finanziario!$H:$L,5,FALSE),VLOOKUP($M64,TT_Tabelle_Riferimento!$D$127:$H$164,5,FALSE))","v":7},{"$f":"+IFERROR(VLOOKUP(PW$27&\"-\"&$M64&\"_new\",Ammortamento_Finanziario!$H:$L,5,FALSE),VLOOKUP($M64,TT_Tabelle_Riferimento!$D$127:$H$164,5,FALSE))","v":7},{"$f":"+IFERROR(VLOOKUP(PX$27&\"-\"&$M64&\"_new\",Ammortamento_Finanziario!$H:$L,5,FALSE),VLOOKUP($M64,TT_Tabelle_Riferimento!$D$127:$H$164,5,FALSE))","v":7},{"$f":"+IFERROR(VLOOKUP(PY$27&\"-\"&$M64&\"_new\",Ammortamento_Finanziario!$H:$L,5,FALSE),VLOOKUP($M64,TT_Tabelle_Riferimento!$D$127:$H$164,5,FALSE))","v":7},{"$f":"+IFERROR(VLOOKUP(PZ$27&\"-\"&$M64&\"_new\",Ammortamento_Finanziario!$H:$L,5,FALSE),VLOOKUP($M64,TT_Tabelle_Riferimento!$D$127:$H$164,5,FALSE))","v":7},{"$f":"+IFERROR(VLOOKUP(QA$27&\"-\"&$M64&\"_new\",Ammortamento_Finanziario!$H:$L,5,FALSE),VLOOKUP($M64,TT_Tabelle_Riferimento!$D$127:$H$164,5,FALSE))","v":7},{"$f":"+IFERROR(VLOOKUP(QB$27&\"-\"&$M64&\"_new\",Ammortamento_Finanziario!$H:$L,5,FALSE),VLOOKUP($M64,TT_Tabelle_Riferimento!$D$127:$H$164,5,FALSE))","v":7},{"$f":"+IFERROR(VLOOKUP(QC$27&\"-\"&$M64&\"_new\",Ammortamento_Finanziario!$H:$L,5,FALSE),VLOOKUP($M64,TT_Tabelle_Riferimento!$D$127:$H$164,5,FALSE))","v":7},{"$f":"+IFERROR(VLOOKUP(QD$27&\"-\"&$M64&\"_new\",Ammortamento_Finanziario!$H:$L,5,FALSE),VLOOKUP($M64,TT_Tabelle_Riferimento!$D$127:$H$164,5,FALSE))","v":7},{"$f":"+IFERROR(VLOOKUP(QE$27&\"-\"&$M64&\"_new\",Ammortamento_Finanziario!$H:$L,5,FALSE),VLOOKUP($M64,TT_Tabelle_Riferimento!$D$127:$H$164,5,FALSE))","v":7},{"$f":"+IFERROR(VLOOKUP(QF$27&\"-\"&$M64&\"_new\",Ammortamento_Finanziario!$H:$L,5,FALSE),VLOOKUP($M64,TT_Tabelle_Riferimento!$D$127:$H$164,5,FALSE))","v":7},{"$f":"+IFERROR(VLOOKUP(QG$27&\"-\"&$M64&\"_new\",Ammortamento_Finanziario!$H:$L,5,FALSE),VLOOKUP($M64,TT_Tabelle_Riferimento!$D$127:$H$164,5,FALSE))","v":7},{"$f":"+IFERROR(VLOOKUP(QH$27&\"-\"&$M64&\"_new\",Ammortamento_Finanziario!$H:$L,5,FALSE),VLOOKUP($M64,TT_Tabelle_Riferimento!$D$127:$H$164,5,FALSE))","v":7},{"$f":"+IFERROR(VLOOKUP(QI$27&\"-\"&$M64&\"_new\",Ammortamento_Finanziario!$H:$L,5,FALSE),VLOOKUP($M64,TT_Tabelle_Riferimento!$D$127:$H$164,5,FALSE))","v":7},{"$f":"+IFERROR(VLOOKUP(QJ$27&\"-\"&$M64&\"_new\",Ammortamento_Finanziario!$H:$L,5,FALSE),VLOOKUP($M64,TT_Tabelle_Riferimento!$D$127:$H$164,5,FALSE))","v":7},{"$f":"+IFERROR(VLOOKUP(QK$27&\"-\"&$M64&\"_new\",Ammortamento_Finanziario!$H:$L,5,FALSE),VLOOKUP($M64,TT_Tabelle_Riferimento!$D$127:$H$164,5,FALSE))","v":7},{"$f":"+IFERROR(VLOOKUP(QL$27&\"-\"&$M64&\"_new\",Ammortamento_Finanziario!$H:$L,5,FALSE),VLOOKUP($M64,TT_Tabelle_Riferimento!$D$127:$H$164,5,FALSE))","v":7},{"$f":"+IFERROR(VLOOKUP(QM$27&\"-\"&$M64&\"_new\",Ammortamento_Finanziario!$H:$L,5,FALSE),VLOOKUP($M64,TT_Tabelle_Riferimento!$D$127:$H$164,5,FALSE))","v":7},{"$f":"+IFERROR(VLOOKUP(QN$27&\"-\"&$M64&\"_new\",Ammortamento_Finanziario!$H:$L,5,FALSE),VLOOKUP($M64,TT_Tabelle_Riferimento!$D$127:$H$164,5,FALSE))","v":7},{"$f":"+IFERROR(VLOOKUP(QO$27&\"-\"&$M64&\"_new\",Ammortamento_Finanziario!$H:$L,5,FALSE),VLOOKUP($M64,TT_Tabelle_Riferimento!$D$127:$H$164,5,FALSE))","v":7},{"$f":"+IFERROR(VLOOKUP(QP$27&\"-\"&$M64&\"_new\",Ammortamento_Finanziario!$H:$L,5,FALSE),VLOOKUP($M64,TT_Tabelle_Riferimento!$D$127:$H$164,5,FALSE))","v":7},{"$f":"+IFERROR(VLOOKUP(QQ$27&\"-\"&$M64&\"_new\",Ammortamento_Finanziario!$H:$L,5,FALSE),VLOOKUP($M64,TT_Tabelle_Riferimento!$D$127:$H$164,5,FALSE))","v":7},{"$f":"+IFERROR(VLOOKUP(QR$27&\"-\"&$M64&\"_new\",Ammortamento_Finanziario!$H:$L,5,FALSE),VLOOKUP($M64,TT_Tabelle_Riferimento!$D$127:$H$164,5,FALSE))","v":7},{"$f":"+IFERROR(VLOOKUP(QS$27&\"-\"&$M64&\"_new\",Ammortamento_Finanziario!$H:$L,5,FALSE),VLOOKUP($M64,TT_Tabelle_Riferimento!$D$127:$H$164,5,FALSE))","v":7},{"$f":"+IFERROR(VLOOKUP(QT$27&\"-\"&$M64&\"_new\",Ammortamento_Finanziario!$H:$L,5,FALSE),VLOOKUP($M64,TT_Tabelle_Riferimento!$D$127:$H$164,5,FALSE))","v":7},{"$f":"+IFERROR(VLOOKUP(QU$27&\"-\"&$M64&\"_new\",Ammortamento_Finanziario!$H:$L,5,FALSE),VLOOKUP($M64,TT_Tabelle_Riferimento!$D$127:$H$164,5,FALSE))","v":7},{"$f":"+IFERROR(VLOOKUP(QV$27&\"-\"&$M64&\"_new\",Ammortamento_Finanziario!$H:$L,5,FALSE),VLOOKUP($M64,TT_Tabelle_Riferimento!$D$127:$H$164,5,FALSE))","v":7},{"$f":"+IFERROR(VLOOKUP(QW$27&\"-\"&$M64&\"_new\",Ammortamento_Finanziario!$H:$L,5,FALSE),VLOOKUP($M64,TT_Tabelle_Riferimento!$D$127:$H$164,5,FALSE))","v":7},{"$f":"+IFERROR(VLOOKUP(QX$27&\"-\"&$M64&\"_new\",Ammortamento_Finanziario!$H:$L,5,FALSE),VLOOKUP($M64,TT_Tabelle_Riferimento!$D$127:$H$164,5,FALSE))","v":7},{"$f":"+IFERROR(VLOOKUP(QY$27&\"-\"&$M64&\"_new\",Ammortamento_Finanziario!$H:$L,5,FALSE),VLOOKUP($M64,TT_Tabelle_Riferimento!$D$127:$H$164,5,FALSE))","v":7},{"$f":"+IFERROR(VLOOKUP(QZ$27&\"-\"&$M64&\"_new\",Ammortamento_Finanziario!$H:$L,5,FALSE),VLOOKUP($M64,TT_Tabelle_Riferimento!$D$127:$H$164,5,FALSE))","v":7},{"$f":"+IFERROR(VLOOKUP(RA$27&\"-\"&$M64&\"_new\",Ammortamento_Finanziario!$H:$L,5,FALSE),VLOOKUP($M64,TT_Tabelle_Riferimento!$D$127:$H$164,5,FALSE))","v":7},{"$f":"+IFERROR(VLOOKUP(RB$27&\"-\"&$M64&\"_new\",Ammortamento_Finanziario!$H:$L,5,FALSE),VLOOKUP($M64,TT_Tabelle_Riferimento!$D$127:$H$164,5,FALSE))","v":7},{"$f":"+IFERROR(VLOOKUP(RC$27&\"-\"&$M64&\"_new\",Ammortamento_Finanziario!$H:$L,5,FALSE),VLOOKUP($M64,TT_Tabelle_Riferimento!$D$127:$H$164,5,FALSE))","v":7},{"$f":"+IFERROR(VLOOKUP(RD$27&\"-\"&$M64&\"_new\",Ammortamento_Finanziario!$H:$L,5,FALSE),VLOOKUP($M64,TT_Tabelle_Riferimento!$D$127:$H$164,5,FALSE))","v":7},{"$f":"+IFERROR(VLOOKUP(RE$27&\"-\"&$M64&\"_new\",Ammortamento_Finanziario!$H:$L,5,FALSE),VLOOKUP($M64,TT_Tabelle_Riferimento!$D$127:$H$164,5,FALSE))","v":7},{"$f":"+IFERROR(VLOOKUP(RF$27&\"-\"&$M64&\"_new\",Ammortamento_Finanziario!$H:$L,5,FALSE),VLOOKUP($M64,TT_Tabelle_Riferimento!$D$127:$H$164,5,FALSE))","v":7},{"$f":"+IFERROR(VLOOKUP(RG$27&\"-\"&$M64&\"_new\",Ammortamento_Finanziario!$H:$L,5,FALSE),VLOOKUP($M64,TT_Tabelle_Riferimento!$D$127:$H$164,5,FALSE))","v":7},{"$f":"+IFERROR(VLOOKUP(RH$27&\"-\"&$M64&\"_new\",Ammortamento_Finanziario!$H:$L,5,FALSE),VLOOKUP($M64,TT_Tabelle_Riferimento!$D$127:$H$164,5,FALSE))","v":7},{"$f":"+IFERROR(VLOOKUP(RI$27&\"-\"&$M64&\"_new\",Ammortamento_Finanziario!$H:$L,5,FALSE),VLOOKUP($M64,TT_Tabelle_Riferimento!$D$127:$H$164,5,FALSE))","v":7},{"$f":"+IFERROR(VLOOKUP(RJ$27&\"-\"&$M64&\"_new\",Ammortamento_Finanziario!$H:$L,5,FALSE),VLOOKUP($M64,TT_Tabelle_Riferimento!$D$127:$H$164,5,FALSE))","v":7},{"$f":"+IFERROR(VLOOKUP(RK$27&\"-\"&$M64&\"_new\",Ammortamento_Finanziario!$H:$L,5,FALSE),VLOOKUP($M64,TT_Tabelle_Riferimento!$D$127:$H$164,5,FALSE))","v":7},{"$f":"+IFERROR(VLOOKUP(RL$27&\"-\"&$M64&\"_new\",Ammortamento_Finanziario!$H:$L,5,FALSE),VLOOKUP($M64,TT_Tabelle_Riferimento!$D$127:$H$164,5,FALSE))","v":7},{"$f":"+IFERROR(VLOOKUP(RM$27&\"-\"&$M64&\"_new\",Ammortamento_Finanziario!$H:$L,5,FALSE),VLOOKUP($M64,TT_Tabelle_Riferimento!$D$127:$H$164,5,FALSE))","v":7},{"$f":"+IFERROR(VLOOKUP(RN$27&\"-\"&$M64&\"_new\",Ammortamento_Finanziario!$H:$L,5,FALSE),VLOOKUP($M64,TT_Tabelle_Riferimento!$D$127:$H$164,5,FALSE))","v":7},{"$f":"+IFERROR(VLOOKUP(RO$27&\"-\"&$M64&\"_new\",Ammortamento_Finanziario!$H:$L,5,FALSE),VLOOKUP($M64,TT_Tabelle_Riferimento!$D$127:$H$164,5,FALSE))","v":7},{"$f":"+IFERROR(VLOOKUP(RP$27&\"-\"&$M64&\"_new\",Ammortamento_Finanziario!$H:$L,5,FALSE),VLOOKUP($M64,TT_Tabelle_Riferimento!$D$127:$H$164,5,FALSE))","v":7},{"$f":"+IFERROR(VLOOKUP(RQ$27&\"-\"&$M64&\"_new\",Ammortamento_Finanziario!$H:$L,5,FALSE),VLOOKUP($M64,TT_Tabelle_Riferimento!$D$127:$H$164,5,FALSE))","v":7},{"$f":"+IFERROR(VLOOKUP(RR$27&\"-\"&$M64&\"_new\",Ammortamento_Finanziario!$H:$L,5,FALSE),VLOOKUP($M64,TT_Tabelle_Riferimento!$D$127:$H$164,5,FALSE))","v":7},{"$f":"+IFERROR(VLOOKUP(RS$27&\"-\"&$M64&\"_new\",Ammortamento_Finanziario!$H:$L,5,FALSE),VLOOKUP($M64,TT_Tabelle_Riferimento!$D$127:$H$164,5,FALSE))","v":7},{"$f":"+IFERROR(VLOOKUP(RT$27&\"-\"&$M64&\"_new\",Ammortamento_Finanziario!$H:$L,5,FALSE),VLOOKUP($M64,TT_Tabelle_Riferimento!$D$127:$H$164,5,FALSE))","v":7},{"$f":"+IFERROR(VLOOKUP(RU$27&\"-\"&$M64&\"_new\",Ammortamento_Finanziario!$H:$L,5,FALSE),VLOOKUP($M64,TT_Tabelle_Riferimento!$D$127:$H$164,5,FALSE))","v":7},{"$f":"+IFERROR(VLOOKUP(RV$27&\"-\"&$M64&\"_new\",Ammortamento_Finanziario!$H:$L,5,FALSE),VLOOKUP($M64,TT_Tabelle_Riferimento!$D$127:$H$164,5,FALSE))","v":7}]
[null,null,null,null,2024,2025,2026,2027,2028,2029,null,null,38,0,0,0,0,0,0,0,0,0,0,0,0,0,0,0,0,0,0,0,0,0,0,0,0,0,0,0,0,0,0,0,0,0,0,0,0,0,0,0,0,0,0,0,0,0,0,0,0,0,0,0,0,0,0,0,0,0,0,0,0,0,0,0,0,0,0,0,0,0,0,0,0,0,0,0,0,0,0,0,0,0,0,0,0,0,0,0,0,0,0,0,0,0,0,0,0,0,0,0,0,0,0,0,0,0,0,0,0,0,0,0,0,0,0,0,0,0,0,0,0,0,0,0,0,0,0,0,0,0,0,0,0,0,0,0,0,0,0,0,0,0,0,0,0,0,0,0,0,0,0,0,0,0,0,0,0,0,0,0,0,0,0,0,0,0,0,0,0,0,0,0,0,0,0,0,0,0,0,0,0,0,0,0,0,0,0,0,0,0,0,0,0,0,0,0,0,0,0,0,0,0,0,0,0,0,0,0,0,0,0,0,0,0,0,0,0,0,0,0,0,0,0,0,0,0,0,0,0,0,0,0,0,0,0,0,0,0,0,0,0,0,0,0,0,0,0,0,0,0,0,0,0,0,0,0,0,0,0,0,0,0,0,0,0,0,0,0,0,0,0,0,0,0,0,0,0,0,0,0,0,0,0,0,0,0,0,0,0,0,{"$f":"+IFERROR(VLOOKUP(KQ$27&\"-\"&$M65&\"_new\",Ammortamento_Finanziario!$H:$L,5,FALSE),VLOOKUP($M65,TT_Tabelle_Riferimento!$D$127:$H$164,5,FALSE))","v":60},{"$f":"+IFERROR(VLOOKUP(KR$27&\"-\"&$M65&\"_new\",Ammortamento_Finanziario!$H:$L,5,FALSE),VLOOKUP($M65,TT_Tabelle_Riferimento!$D$127:$H$164,5,FALSE))","v":60},{"$f":"+IFERROR(VLOOKUP(KS$27&\"-\"&$M65&\"_new\",Ammortamento_Finanziario!$H:$L,5,FALSE),VLOOKUP($M65,TT_Tabelle_Riferimento!$D$127:$H$164,5,FALSE))","v":60},{"$f":"+IFERROR(VLOOKUP(KT$27&\"-\"&$M65&\"_new\",Ammortamento_Finanziario!$H:$L,5,FALSE),VLOOKUP($M65,TT_Tabelle_Riferimento!$D$127:$H$164,5,FALSE))","v":60},{"$f":"+IFERROR(VLOOKUP(KU$27&\"-\"&$M65&\"_new\",Ammortamento_Finanziario!$H:$L,5,FALSE),VLOOKUP($M65,TT_Tabelle_Riferimento!$D$127:$H$164,5,FALSE))","v":60},{"$f":"+IFERROR(VLOOKUP(KV$27&\"-\"&$M65&\"_new\",Ammortamento_Finanziario!$H:$L,5,FALSE),VLOOKUP($M65,TT_Tabelle_Riferimento!$D$127:$H$164,5,FALSE))","v":60},{"$f":"+IFERROR(VLOOKUP(KW$27&\"-\"&$M65&\"_new\",Ammortamento_Finanziario!$H:$L,5,FALSE),VLOOKUP($M65,TT_Tabelle_Riferimento!$D$127:$H$164,5,FALSE))","v":60},{"$f":"+IFERROR(VLOOKUP(KX$27&\"-\"&$M65&\"_new\",Ammortamento_Finanziario!$H:$L,5,FALSE),VLOOKUP($M65,TT_Tabelle_Riferimento!$D$127:$H$164,5,FALSE))","v":60},{"$f":"+IFERROR(VLOOKUP(KY$27&\"-\"&$M65&\"_new\",Ammortamento_Finanziario!$H:$L,5,FALSE),VLOOKUP($M65,TT_Tabelle_Riferimento!$D$127:$H$164,5,FALSE))","v":60},{"$f":"+IFERROR(VLOOKUP(KZ$27&\"-\"&$M65&\"_new\",Ammortamento_Finanziario!$H:$L,5,FALSE),VLOOKUP($M65,TT_Tabelle_Riferimento!$D$127:$H$164,5,FALSE))","v":60},{"$f":"+IFERROR(VLOOKUP(LA$27&\"-\"&$M65&\"_new\",Ammortamento_Finanziario!$H:$L,5,FALSE),VLOOKUP($M65,TT_Tabelle_Riferimento!$D$127:$H$164,5,FALSE))","v":60},{"$f":"+IFERROR(VLOOKUP(LB$27&\"-\"&$M65&\"_new\",Ammortamento_Finanziario!$H:$L,5,FALSE),VLOOKUP($M65,TT_Tabelle_Riferimento!$D$127:$H$164,5,FALSE))","v":60},{"$f":"+IFERROR(VLOOKUP(LC$27&\"-\"&$M65&\"_new\",Ammortamento_Finanziario!$H:$L,5,FALSE),VLOOKUP($M65,TT_Tabelle_Riferimento!$D$127:$H$164,5,FALSE))","v":60},{"$f":"+IFERROR(VLOOKUP(LD$27&\"-\"&$M65&\"_new\",Ammortamento_Finanziario!$H:$L,5,FALSE),VLOOKUP($M65,TT_Tabelle_Riferimento!$D$127:$H$164,5,FALSE))","v":60},{"$f":"+IFERROR(VLOOKUP(LE$27&\"-\"&$M65&\"_new\",Ammortamento_Finanziario!$H:$L,5,FALSE),VLOOKUP($M65,TT_Tabelle_Riferimento!$D$127:$H$164,5,FALSE))","v":60},{"$f":"+IFERROR(VLOOKUP(LF$27&\"-\"&$M65&\"_new\",Ammortamento_Finanziario!$H:$L,5,FALSE),VLOOKUP($M65,TT_Tabelle_Riferimento!$D$127:$H$164,5,FALSE))","v":60},{"$f":"+IFERROR(VLOOKUP(LG$27&\"-\"&$M65&\"_new\",Ammortamento_Finanziario!$H:$L,5,FALSE),VLOOKUP($M65,TT_Tabelle_Riferimento!$D$127:$H$164,5,FALSE))","v":60},{"$f":"+IFERROR(VLOOKUP(LH$27&\"-\"&$M65&\"_new\",Ammortamento_Finanziario!$H:$L,5,FALSE),VLOOKUP($M65,TT_Tabelle_Riferimento!$D$127:$H$164,5,FALSE))","v":60},{"$f":"+IFERROR(VLOOKUP(LI$27&\"-\"&$M65&\"_new\",Ammortamento_Finanziario!$H:$L,5,FALSE),VLOOKUP($M65,TT_Tabelle_Riferimento!$D$127:$H$164,5,FALSE))","v":60},{"$f":"+IFERROR(VLOOKUP(LJ$27&\"-\"&$M65&\"_new\",Ammortamento_Finanziario!$H:$L,5,FALSE),VLOOKUP($M65,TT_Tabelle_Riferimento!$D$127:$H$164,5,FALSE))","v":60},{"$f":"+IFERROR(VLOOKUP(LK$27&\"-\"&$M65&\"_new\",Ammortamento_Finanziario!$H:$L,5,FALSE),VLOOKUP($M65,TT_Tabelle_Riferimento!$D$127:$H$164,5,FALSE))","v":60},{"$f":"+IFERROR(VLOOKUP(LL$27&\"-\"&$M65&\"_new\",Ammortamento_Finanziario!$H:$L,5,FALSE),VLOOKUP($M65,TT_Tabelle_Riferimento!$D$127:$H$164,5,FALSE))","v":60},{"$f":"+IFERROR(VLOOKUP(LM$27&\"-\"&$M65&\"_new\",Ammortamento_Finanziario!$H:$L,5,FALSE),VLOOKUP($M65,TT_Tabelle_Riferimento!$D$127:$H$164,5,FALSE))","v":60},{"$f":"+IFERROR(VLOOKUP(LN$27&\"-\"&$M65&\"_new\",Ammortamento_Finanziario!$H:$L,5,FALSE),VLOOKUP($M65,TT_Tabelle_Riferimento!$D$127:$H$164,5,FALSE))","v":60},{"$f":"+IFERROR(VLOOKUP(LO$27&\"-\"&$M65&\"_new\",Ammortamento_Finanziario!$H:$L,5,FALSE),VLOOKUP($M65,TT_Tabelle_Riferimento!$D$127:$H$164,5,FALSE))","v":60},{"$f":"+IFERROR(VLOOKUP(LP$27&\"-\"&$M65&\"_new\",Ammortamento_Finanziario!$H:$L,5,FALSE),VLOOKUP($M65,TT_Tabelle_Riferimento!$D$127:$H$164,5,FALSE))","v":60},{"$f":"+IFERROR(VLOOKUP(LQ$27&\"-\"&$M65&\"_new\",Ammortamento_Finanziario!$H:$L,5,FALSE),VLOOKUP($M65,TT_Tabelle_Riferimento!$D$127:$H$164,5,FALSE))","v":60},{"$f":"+IFERROR(VLOOKUP(LR$27&\"-\"&$M65&\"_new\",Ammortamento_Finanziario!$H:$L,5,FALSE),VLOOKUP($M65,TT_Tabelle_Riferimento!$D$127:$H$164,5,FALSE))","v":60},{"$f":"+IFERROR(VLOOKUP(LS$27&\"-\"&$M65&\"_new\",Ammortamento_Finanziario!$H:$L,5,FALSE),VLOOKUP($M65,TT_Tabelle_Riferimento!$D$127:$H$164,5,FALSE))","v":60},{"$f":"+IFERROR(VLOOKUP(LT$27&\"-\"&$M65&\"_new\",Ammortamento_Finanziario!$H:$L,5,FALSE),VLOOKUP($M65,TT_Tabelle_Riferimento!$D$127:$H$164,5,FALSE))","v":60},{"$f":"+IFERROR(VLOOKUP(LU$27&\"-\"&$M65&\"_new\",Ammortamento_Finanziario!$H:$L,5,FALSE),VLOOKUP($M65,TT_Tabelle_Riferimento!$D$127:$H$164,5,FALSE))","v":60},{"$f":"+IFERROR(VLOOKUP(LV$27&\"-\"&$M65&\"_new\",Ammortamento_Finanziario!$H:$L,5,FALSE),VLOOKUP($M65,TT_Tabelle_Riferimento!$D$127:$H$164,5,FALSE))","v":60},{"$f":"+IFERROR(VLOOKUP(LW$27&\"-\"&$M65&\"_new\",Ammortamento_Finanziario!$H:$L,5,FALSE),VLOOKUP($M65,TT_Tabelle_Riferimento!$D$127:$H$164,5,FALSE))","v":60},{"$f":"+IFERROR(VLOOKUP(LX$27&\"-\"&$M65&\"_new\",Ammortamento_Finanziario!$H:$L,5,FALSE),VLOOKUP($M65,TT_Tabelle_Riferimento!$D$127:$H$164,5,FALSE))","v":60},{"$f":"+IFERROR(VLOOKUP(LY$27&\"-\"&$M65&\"_new\",Ammortamento_Finanziario!$H:$L,5,FALSE),VLOOKUP($M65,TT_Tabelle_Riferimento!$D$127:$H$164,5,FALSE))","v":60},{"$f":"+IFERROR(VLOOKUP(LZ$27&\"-\"&$M65&\"_new\",Ammortamento_Finanziario!$H:$L,5,FALSE),VLOOKUP($M65,TT_Tabelle_Riferimento!$D$127:$H$164,5,FALSE))","v":60},{"$f":"+IFERROR(VLOOKUP(MA$27&\"-\"&$M65&\"_new\",Ammortamento_Finanziario!$H:$L,5,FALSE),VLOOKUP($M65,TT_Tabelle_Riferimento!$D$127:$H$164,5,FALSE))","v":60},{"$f":"+IFERROR(VLOOKUP(MB$27&\"-\"&$M65&\"_new\",Ammortamento_Finanziario!$H:$L,5,FALSE),VLOOKUP($M65,TT_Tabelle_Riferimento!$D$127:$H$164,5,FALSE))","v":60},{"$f":"+IFERROR(VLOOKUP(MC$27&\"-\"&$M65&\"_new\",Ammortamento_Finanziario!$H:$L,5,FALSE),VLOOKUP($M65,TT_Tabelle_Riferimento!$D$127:$H$164,5,FALSE))","v":60},{"$f":"+IFERROR(VLOOKUP(MD$27&\"-\"&$M65&\"_new\",Ammortamento_Finanziario!$H:$L,5,FALSE),VLOOKUP($M65,TT_Tabelle_Riferimento!$D$127:$H$164,5,FALSE))","v":60},{"$f":"+IFERROR(VLOOKUP(ME$27&\"-\"&$M65&\"_new\",Ammortamento_Finanziario!$H:$L,5,FALSE),VLOOKUP($M65,TT_Tabelle_Riferimento!$D$127:$H$164,5,FALSE))","v":60},{"$f":"+IFERROR(VLOOKUP(MF$27&\"-\"&$M65&\"_new\",Ammortamento_Finanziario!$H:$L,5,FALSE),VLOOKUP($M65,TT_Tabelle_Riferimento!$D$127:$H$164,5,FALSE))","v":60},{"$f":"+IFERROR(VLOOKUP(MG$27&\"-\"&$M65&\"_new\",Ammortamento_Finanziario!$H:$L,5,FALSE),VLOOKUP($M65,TT_Tabelle_Riferimento!$D$127:$H$164,5,FALSE))","v":60},{"$f":"+IFERROR(VLOOKUP(MH$27&\"-\"&$M65&\"_new\",Ammortamento_Finanziario!$H:$L,5,FALSE),VLOOKUP($M65,TT_Tabelle_Riferimento!$D$127:$H$164,5,FALSE))","v":60},{"$f":"+IFERROR(VLOOKUP(MI$27&\"-\"&$M65&\"_new\",Ammortamento_Finanziario!$H:$L,5,FALSE),VLOOKUP($M65,TT_Tabelle_Riferimento!$D$127:$H$164,5,FALSE))","v":60},{"$f":"+IFERROR(VLOOKUP(MJ$27&\"-\"&$M65&\"_new\",Ammortamento_Finanziario!$H:$L,5,FALSE),VLOOKUP($M65,TT_Tabelle_Riferimento!$D$127:$H$164,5,FALSE))","v":60},{"$f":"+IFERROR(VLOOKUP(MK$27&\"-\"&$M65&\"_new\",Ammortamento_Finanziario!$H:$L,5,FALSE),VLOOKUP($M65,TT_Tabelle_Riferimento!$D$127:$H$164,5,FALSE))","v":60},{"$f":"+IFERROR(VLOOKUP(ML$27&\"-\"&$M65&\"_new\",Ammortamento_Finanziario!$H:$L,5,FALSE),VLOOKUP($M65,TT_Tabelle_Riferimento!$D$127:$H$164,5,FALSE))","v":60},{"$f":"+IFERROR(VLOOKUP(MM$27&\"-\"&$M65&\"_new\",Ammortamento_Finanziario!$H:$L,5,FALSE),VLOOKUP($M65,TT_Tabelle_Riferimento!$D$127:$H$164,5,FALSE))","v":60},{"$f":"+IFERROR(VLOOKUP(MN$27&\"-\"&$M65&\"_new\",Ammortamento_Finanziario!$H:$L,5,FALSE),VLOOKUP($M65,TT_Tabelle_Riferimento!$D$127:$H$164,5,FALSE))","v":60},{"$f":"+IFERROR(VLOOKUP(MO$27&\"-\"&$M65&\"_new\",Ammortamento_Finanziario!$H:$L,5,FALSE),VLOOKUP($M65,TT_Tabelle_Riferimento!$D$127:$H$164,5,FALSE))","v":60},{"$f":"+IFERROR(VLOOKUP(MP$27&\"-\"&$M65&\"_new\",Ammortamento_Finanziario!$H:$L,5,FALSE),VLOOKUP($M65,TT_Tabelle_Riferimento!$D$127:$H$164,5,FALSE))","v":60},{"$f":"+IFERROR(VLOOKUP(MQ$27&\"-\"&$M65&\"_new\",Ammortamento_Finanziario!$H:$L,5,FALSE),VLOOKUP($M65,TT_Tabelle_Riferimento!$D$127:$H$164,5,FALSE))","v":60},{"$f":"+IFERROR(VLOOKUP(MR$27&\"-\"&$M65&\"_new\",Ammortamento_Finanziario!$H:$L,5,FALSE),VLOOKUP($M65,TT_Tabelle_Riferimento!$D$127:$H$164,5,FALSE))","v":60},{"$f":"+IFERROR(VLOOKUP(MS$27&\"-\"&$M65&\"_new\",Ammortamento_Finanziario!$H:$L,5,FALSE),VLOOKUP($M65,TT_Tabelle_Riferimento!$D$127:$H$164,5,FALSE))","v":60},{"$f":"+IFERROR(VLOOKUP(MT$27&\"-\"&$M65&\"_new\",Ammortamento_Finanziario!$H:$L,5,FALSE),VLOOKUP($M65,TT_Tabelle_Riferimento!$D$127:$H$164,5,FALSE))","v":60},{"$f":"+IFERROR(VLOOKUP(MU$27&\"-\"&$M65&\"_new\",Ammortamento_Finanziario!$H:$L,5,FALSE),VLOOKUP($M65,TT_Tabelle_Riferimento!$D$127:$H$164,5,FALSE))","v":60},{"$f":"+IFERROR(VLOOKUP(MV$27&\"-\"&$M65&\"_new\",Ammortamento_Finanziario!$H:$L,5,FALSE),VLOOKUP($M65,TT_Tabelle_Riferimento!$D$127:$H$164,5,FALSE))","v":60},{"$f":"+IFERROR(VLOOKUP(MW$27&\"-\"&$M65&\"_new\",Ammortamento_Finanziario!$H:$L,5,FALSE),VLOOKUP($M65,TT_Tabelle_Riferimento!$D$127:$H$164,5,FALSE))","v":60},{"$f":"+IFERROR(VLOOKUP(MX$27&\"-\"&$M65&\"_new\",Ammortamento_Finanziario!$H:$L,5,FALSE),VLOOKUP($M65,TT_Tabelle_Riferimento!$D$127:$H$164,5,FALSE))","v":60},{"$f":"+IFERROR(VLOOKUP(MY$27&\"-\"&$M65&\"_new\",Ammortamento_Finanziario!$H:$L,5,FALSE),VLOOKUP($M65,TT_Tabelle_Riferimento!$D$127:$H$164,5,FALSE))","v":60},{"$f":"+IFERROR(VLOOKUP(MZ$27&\"-\"&$M65&\"_new\",Ammortamento_Finanziario!$H:$L,5,FALSE),VLOOKUP($M65,TT_Tabelle_Riferimento!$D$127:$H$164,5,FALSE))","v":60},{"$f":"+IFERROR(VLOOKUP(NA$27&\"-\"&$M65&\"_new\",Ammortamento_Finanziario!$H:$L,5,FALSE),VLOOKUP($M65,TT_Tabelle_Riferimento!$D$127:$H$164,5,FALSE))","v":60},{"$f":"+IFERROR(VLOOKUP(NB$27&\"-\"&$M65&\"_new\",Ammortamento_Finanziario!$H:$L,5,FALSE),VLOOKUP($M65,TT_Tabelle_Riferimento!$D$127:$H$164,5,FALSE))","v":60},{"$f":"+IFERROR(VLOOKUP(NC$27&\"-\"&$M65&\"_new\",Ammortamento_Finanziario!$H:$L,5,FALSE),VLOOKUP($M65,TT_Tabelle_Riferimento!$D$127:$H$164,5,FALSE))","v":60},{"$f":"+IFERROR(VLOOKUP(ND$27&\"-\"&$M65&\"_new\",Ammortamento_Finanziario!$H:$L,5,FALSE),VLOOKUP($M65,TT_Tabelle_Riferimento!$D$127:$H$164,5,FALSE))","v":60},{"$f":"+IFERROR(VLOOKUP(NE$27&\"-\"&$M65&\"_new\",Ammortamento_Finanziario!$H:$L,5,FALSE),VLOOKUP($M65,TT_Tabelle_Riferimento!$D$127:$H$164,5,FALSE))","v":60},{"$f":"+IFERROR(VLOOKUP(NF$27&\"-\"&$M65&\"_new\",Ammortamento_Finanziario!$H:$L,5,FALSE),VLOOKUP($M65,TT_Tabelle_Riferimento!$D$127:$H$164,5,FALSE))","v":60},{"$f":"+IFERROR(VLOOKUP(NG$27&\"-\"&$M65&\"_new\",Ammortamento_Finanziario!$H:$L,5,FALSE),VLOOKUP($M65,TT_Tabelle_Riferimento!$D$127:$H$164,5,FALSE))","v":60},{"$f":"+IFERROR(VLOOKUP(NH$27&\"-\"&$M65&\"_new\",Ammortamento_Finanziario!$H:$L,5,FALSE),VLOOKUP($M65,TT_Tabelle_Riferimento!$D$127:$H$164,5,FALSE))","v":60},{"$f":"+IFERROR(VLOOKUP(NI$27&\"-\"&$M65&\"_new\",Ammortamento_Finanziario!$H:$L,5,FALSE),VLOOKUP($M65,TT_Tabelle_Riferimento!$D$127:$H$164,5,FALSE))","v":60},{"$f":"+IFERROR(VLOOKUP(NJ$27&\"-\"&$M65&\"_new\",Ammortamento_Finanziario!$H:$L,5,FALSE),VLOOKUP($M65,TT_Tabelle_Riferimento!$D$127:$H$164,5,FALSE))","v":60},{"$f":"+IFERROR(VLOOKUP(NK$27&\"-\"&$M65&\"_new\",Ammortamento_Finanziario!$H:$L,5,FALSE),VLOOKUP($M65,TT_Tabelle_Riferimento!$D$127:$H$164,5,FALSE))","v":60},{"$f":"+IFERROR(VLOOKUP(NL$27&\"-\"&$M65&\"_new\",Ammortamento_Finanziario!$H:$L,5,FALSE),VLOOKUP($M65,TT_Tabelle_Riferimento!$D$127:$H$164,5,FALSE))","v":60},{"$f":"+IFERROR(VLOOKUP(NM$27&\"-\"&$M65&\"_new\",Ammortamento_Finanziario!$H:$L,5,FALSE),VLOOKUP($M65,TT_Tabelle_Riferimento!$D$127:$H$164,5,FALSE))","v":60},{"$f":"+IFERROR(VLOOKUP(NN$27&\"-\"&$M65&\"_new\",Ammortamento_Finanziario!$H:$L,5,FALSE),VLOOKUP($M65,TT_Tabelle_Riferimento!$D$127:$H$164,5,FALSE))","v":60},{"$f":"+IFERROR(VLOOKUP(NO$27&\"-\"&$M65&\"_new\",Ammortamento_Finanziario!$H:$L,5,FALSE),VLOOKUP($M65,TT_Tabelle_Riferimento!$D$127:$H$164,5,FALSE))","v":60},{"$f":"+IFERROR(VLOOKUP(NP$27&\"-\"&$M65&\"_new\",Ammortamento_Finanziario!$H:$L,5,FALSE),VLOOKUP($M65,TT_Tabelle_Riferimento!$D$127:$H$164,5,FALSE))","v":60},{"$f":"+IFERROR(VLOOKUP(NQ$27&\"-\"&$M65&\"_new\",Ammortamento_Finanziario!$H:$L,5,FALSE),VLOOKUP($M65,TT_Tabelle_Riferimento!$D$127:$H$164,5,FALSE))","v":60},{"$f":"+IFERROR(VLOOKUP(NR$27&\"-\"&$M65&\"_new\",Ammortamento_Finanziario!$H:$L,5,FALSE),VLOOKUP($M65,TT_Tabelle_Riferimento!$D$127:$H$164,5,FALSE))","v":60},{"$f":"+IFERROR(VLOOKUP(NS$27&\"-\"&$M65&\"_new\",Ammortamento_Finanziario!$H:$L,5,FALSE),VLOOKUP($M65,TT_Tabelle_Riferimento!$D$127:$H$164,5,FALSE))","v":60},{"$f":"+IFERROR(VLOOKUP(NT$27&\"-\"&$M65&\"_new\",Ammortamento_Finanziario!$H:$L,5,FALSE),VLOOKUP($M65,TT_Tabelle_Riferimento!$D$127:$H$164,5,FALSE))","v":60},{"$f":"+IFERROR(VLOOKUP(NU$27&\"-\"&$M65&\"_new\",Ammortamento_Finanziario!$H:$L,5,FALSE),VLOOKUP($M65,TT_Tabelle_Riferimento!$D$127:$H$164,5,FALSE))","v":60},{"$f":"+IFERROR(VLOOKUP(NV$27&\"-\"&$M65&\"_new\",Ammortamento_Finanziario!$H:$L,5,FALSE),VLOOKUP($M65,TT_Tabelle_Riferimento!$D$127:$H$164,5,FALSE))","v":60},{"$f":"+IFERROR(VLOOKUP(NW$27&\"-\"&$M65&\"_new\",Ammortamento_Finanziario!$H:$L,5,FALSE),VLOOKUP($M65,TT_Tabelle_Riferimento!$D$127:$H$164,5,FALSE))","v":60},{"$f":"+IFERROR(VLOOKUP(NX$27&\"-\"&$M65&\"_new\",Ammortamento_Finanziario!$H:$L,5,FALSE),VLOOKUP($M65,TT_Tabelle_Riferimento!$D$127:$H$164,5,FALSE))","v":60},{"$f":"+IFERROR(VLOOKUP(NY$27&\"-\"&$M65&\"_new\",Ammortamento_Finanziario!$H:$L,5,FALSE),VLOOKUP($M65,TT_Tabelle_Riferimento!$D$127:$H$164,5,FALSE))","v":60},{"$f":"+IFERROR(VLOOKUP(NZ$27&\"-\"&$M65&\"_new\",Ammortamento_Finanziario!$H:$L,5,FALSE),VLOOKUP($M65,TT_Tabelle_Riferimento!$D$127:$H$164,5,FALSE))","v":60},{"$f":"+IFERROR(VLOOKUP(OA$27&\"-\"&$M65&\"_new\",Ammortamento_Finanziario!$H:$L,5,FALSE),VLOOKUP($M65,TT_Tabelle_Riferimento!$D$127:$H$164,5,FALSE))","v":60},{"$f":"+IFERROR(VLOOKUP(OB$27&\"-\"&$M65&\"_new\",Ammortamento_Finanziario!$H:$L,5,FALSE),VLOOKUP($M65,TT_Tabelle_Riferimento!$D$127:$H$164,5,FALSE))","v":60},{"$f":"+IFERROR(VLOOKUP(OC$27&\"-\"&$M65&\"_new\",Ammortamento_Finanziario!$H:$L,5,FALSE),VLOOKUP($M65,TT_Tabelle_Riferimento!$D$127:$H$164,5,FALSE))","v":60},{"$f":"+IFERROR(VLOOKUP(OD$27&\"-\"&$M65&\"_new\",Ammortamento_Finanziario!$H:$L,5,FALSE),VLOOKUP($M65,TT_Tabelle_Riferimento!$D$127:$H$164,5,FALSE))","v":60},{"$f":"+IFERROR(VLOOKUP(OE$27&\"-\"&$M65&\"_new\",Ammortamento_Finanziario!$H:$L,5,FALSE),VLOOKUP($M65,TT_Tabelle_Riferimento!$D$127:$H$164,5,FALSE))","v":60},{"$f":"+IFERROR(VLOOKUP(OF$27&\"-\"&$M65&\"_new\",Ammortamento_Finanziario!$H:$L,5,FALSE),VLOOKUP($M65,TT_Tabelle_Riferimento!$D$127:$H$164,5,FALSE))","v":60},{"$f":"+IFERROR(VLOOKUP(OG$27&\"-\"&$M65&\"_new\",Ammortamento_Finanziario!$H:$L,5,FALSE),VLOOKUP($M65,TT_Tabelle_Riferimento!$D$127:$H$164,5,FALSE))","v":60},{"$f":"+IFERROR(VLOOKUP(OH$27&\"-\"&$M65&\"_new\",Ammortamento_Finanziario!$H:$L,5,FALSE),VLOOKUP($M65,TT_Tabelle_Riferimento!$D$127:$H$164,5,FALSE))","v":60},{"$f":"+IFERROR(VLOOKUP(OI$27&\"-\"&$M65&\"_new\",Ammortamento_Finanziario!$H:$L,5,FALSE),VLOOKUP($M65,TT_Tabelle_Riferimento!$D$127:$H$164,5,FALSE))","v":60},{"$f":"+IFERROR(VLOOKUP(OJ$27&\"-\"&$M65&\"_new\",Ammortamento_Finanziario!$H:$L,5,FALSE),VLOOKUP($M65,TT_Tabelle_Riferimento!$D$127:$H$164,5,FALSE))","v":60},{"$f":"+IFERROR(VLOOKUP(OK$27&\"-\"&$M65&\"_new\",Ammortamento_Finanziario!$H:$L,5,FALSE),VLOOKUP($M65,TT_Tabelle_Riferimento!$D$127:$H$164,5,FALSE))","v":60},{"$f":"+IFERROR(VLOOKUP(OL$27&\"-\"&$M65&\"_new\",Ammortamento_Finanziario!$H:$L,5,FALSE),VLOOKUP($M65,TT_Tabelle_Riferimento!$D$127:$H$164,5,FALSE))","v":60},{"$f":"+IFERROR(VLOOKUP(OM$27&\"-\"&$M65&\"_new\",Ammortamento_Finanziario!$H:$L,5,FALSE),VLOOKUP($M65,TT_Tabelle_Riferimento!$D$127:$H$164,5,FALSE))","v":60},{"$f":"+IFERROR(VLOOKUP(ON$27&\"-\"&$M65&\"_new\",Ammortamento_Finanziario!$H:$L,5,FALSE),VLOOKUP($M65,TT_Tabelle_Riferimento!$D$127:$H$164,5,FALSE))","v":60},{"$f":"+IFERROR(VLOOKUP(OO$27&\"-\"&$M65&\"_new\",Ammortamento_Finanziario!$H:$L,5,FALSE),VLOOKUP($M65,TT_Tabelle_Riferimento!$D$127:$H$164,5,FALSE))","v":60},{"$f":"+IFERROR(VLOOKUP(OP$27&\"-\"&$M65&\"_new\",Ammortamento_Finanziario!$H:$L,5,FALSE),VLOOKUP($M65,TT_Tabelle_Riferimento!$D$127:$H$164,5,FALSE))","v":60},{"$f":"+IFERROR(VLOOKUP(OQ$27&\"-\"&$M65&\"_new\",Ammortamento_Finanziario!$H:$L,5,FALSE),VLOOKUP($M65,TT_Tabelle_Riferimento!$D$127:$H$164,5,FALSE))","v":60},{"$f":"+IFERROR(VLOOKUP(OR$27&\"-\"&$M65&\"_new\",Ammortamento_Finanziario!$H:$L,5,FALSE),VLOOKUP($M65,TT_Tabelle_Riferimento!$D$127:$H$164,5,FALSE))","v":60},{"$f":"+IFERROR(VLOOKUP(OS$27&\"-\"&$M65&\"_new\",Ammortamento_Finanziario!$H:$L,5,FALSE),VLOOKUP($M65,TT_Tabelle_Riferimento!$D$127:$H$164,5,FALSE))","v":60},{"$f":"+IFERROR(VLOOKUP(OT$27&\"-\"&$M65&\"_new\",Ammortamento_Finanziario!$H:$L,5,FALSE),VLOOKUP($M65,TT_Tabelle_Riferimento!$D$127:$H$164,5,FALSE))","v":60},{"$f":"+IFERROR(VLOOKUP(OU$27&\"-\"&$M65&\"_new\",Ammortamento_Finanziario!$H:$L,5,FALSE),VLOOKUP($M65,TT_Tabelle_Riferimento!$D$127:$H$164,5,FALSE))","v":60},{"$f":"+IFERROR(VLOOKUP(OV$27&\"-\"&$M65&\"_new\",Ammortamento_Finanziario!$H:$L,5,FALSE),VLOOKUP($M65,TT_Tabelle_Riferimento!$D$127:$H$164,5,FALSE))","v":60},{"$f":"+IFERROR(VLOOKUP(OW$27&\"-\"&$M65&\"_new\",Ammortamento_Finanziario!$H:$L,5,FALSE),VLOOKUP($M65,TT_Tabelle_Riferimento!$D$127:$H$164,5,FALSE))","v":60},{"$f":"+IFERROR(VLOOKUP(OX$27&\"-\"&$M65&\"_new\",Ammortamento_Finanziario!$H:$L,5,FALSE),VLOOKUP($M65,TT_Tabelle_Riferimento!$D$127:$H$164,5,FALSE))","v":60},{"$f":"+IFERROR(VLOOKUP(OY$27&\"-\"&$M65&\"_new\",Ammortamento_Finanziario!$H:$L,5,FALSE),VLOOKUP($M65,TT_Tabelle_Riferimento!$D$127:$H$164,5,FALSE))","v":60},{"$f":"+IFERROR(VLOOKUP(OZ$27&\"-\"&$M65&\"_new\",Ammortamento_Finanziario!$H:$L,5,FALSE),VLOOKUP($M65,TT_Tabelle_Riferimento!$D$127:$H$164,5,FALSE))","v":60},{"$f":"+IFERROR(VLOOKUP(PA$27&\"-\"&$M65&\"_new\",Ammortamento_Finanziario!$H:$L,5,FALSE),VLOOKUP($M65,TT_Tabelle_Riferimento!$D$127:$H$164,5,FALSE))","v":60},{"$f":"+IFERROR(VLOOKUP(PB$27&\"-\"&$M65&\"_new\",Ammortamento_Finanziario!$H:$L,5,FALSE),VLOOKUP($M65,TT_Tabelle_Riferimento!$D$127:$H$164,5,FALSE))","v":60},{"$f":"+IFERROR(VLOOKUP(PC$27&\"-\"&$M65&\"_new\",Ammortamento_Finanziario!$H:$L,5,FALSE),VLOOKUP($M65,TT_Tabelle_Riferimento!$D$127:$H$164,5,FALSE))","v":60},{"$f":"+IFERROR(VLOOKUP(PD$27&\"-\"&$M65&\"_new\",Ammortamento_Finanziario!$H:$L,5,FALSE),VLOOKUP($M65,TT_Tabelle_Riferimento!$D$127:$H$164,5,FALSE))","v":60},{"$f":"+IFERROR(VLOOKUP(PE$27&\"-\"&$M65&\"_new\",Ammortamento_Finanziario!$H:$L,5,FALSE),VLOOKUP($M65,TT_Tabelle_Riferimento!$D$127:$H$164,5,FALSE))","v":60},{"$f":"+IFERROR(VLOOKUP(PF$27&\"-\"&$M65&\"_new\",Ammortamento_Finanziario!$H:$L,5,FALSE),VLOOKUP($M65,TT_Tabelle_Riferimento!$D$127:$H$164,5,FALSE))","v":60},{"$f":"+IFERROR(VLOOKUP(PG$27&\"-\"&$M65&\"_new\",Ammortamento_Finanziario!$H:$L,5,FALSE),VLOOKUP($M65,TT_Tabelle_Riferimento!$D$127:$H$164,5,FALSE))","v":60},{"$f":"+IFERROR(VLOOKUP(PH$27&\"-\"&$M65&\"_new\",Ammortamento_Finanziario!$H:$L,5,FALSE),VLOOKUP($M65,TT_Tabelle_Riferimento!$D$127:$H$164,5,FALSE))","v":60},{"$f":"+IFERROR(VLOOKUP(PI$27&\"-\"&$M65&\"_new\",Ammortamento_Finanziario!$H:$L,5,FALSE),VLOOKUP($M65,TT_Tabelle_Riferimento!$D$127:$H$164,5,FALSE))","v":60},{"$f":"+IFERROR(VLOOKUP(PJ$27&\"-\"&$M65&\"_new\",Ammortamento_Finanziario!$H:$L,5,FALSE),VLOOKUP($M65,TT_Tabelle_Riferimento!$D$127:$H$164,5,FALSE))","v":60},{"$f":"+IFERROR(VLOOKUP(PK$27&\"-\"&$M65&\"_new\",Ammortamento_Finanziario!$H:$L,5,FALSE),VLOOKUP($M65,TT_Tabelle_Riferimento!$D$127:$H$164,5,FALSE))","v":60},{"$f":"+IFERROR(VLOOKUP(PL$27&\"-\"&$M65&\"_new\",Ammortamento_Finanziario!$H:$L,5,FALSE),VLOOKUP($M65,TT_Tabelle_Riferimento!$D$127:$H$164,5,FALSE))","v":60},{"$f":"+IFERROR(VLOOKUP(PM$27&\"-\"&$M65&\"_new\",Ammortamento_Finanziario!$H:$L,5,FALSE),VLOOKUP($M65,TT_Tabelle_Riferimento!$D$127:$H$164,5,FALSE))","v":60},{"$f":"+IFERROR(VLOOKUP(PN$27&\"-\"&$M65&\"_new\",Ammortamento_Finanziario!$H:$L,5,FALSE),VLOOKUP($M65,TT_Tabelle_Riferimento!$D$127:$H$164,5,FALSE))","v":60},{"$f":"+IFERROR(VLOOKUP(PO$27&\"-\"&$M65&\"_new\",Ammortamento_Finanziario!$H:$L,5,FALSE),VLOOKUP($M65,TT_Tabelle_Riferimento!$D$127:$H$164,5,FALSE))","v":60},{"$f":"+IFERROR(VLOOKUP(PP$27&\"-\"&$M65&\"_new\",Ammortamento_Finanziario!$H:$L,5,FALSE),VLOOKUP($M65,TT_Tabelle_Riferimento!$D$127:$H$164,5,FALSE))","v":60},{"$f":"+IFERROR(VLOOKUP(PQ$27&\"-\"&$M65&\"_new\",Ammortamento_Finanziario!$H:$L,5,FALSE),VLOOKUP($M65,TT_Tabelle_Riferimento!$D$127:$H$164,5,FALSE))","v":60},{"$f":"+IFERROR(VLOOKUP(PR$27&\"-\"&$M65&\"_new\",Ammortamento_Finanziario!$H:$L,5,FALSE),VLOOKUP($M65,TT_Tabelle_Riferimento!$D$127:$H$164,5,FALSE))","v":60},{"$f":"+IFERROR(VLOOKUP(PS$27&\"-\"&$M65&\"_new\",Ammortamento_Finanziario!$H:$L,5,FALSE),VLOOKUP($M65,TT_Tabelle_Riferimento!$D$127:$H$164,5,FALSE))","v":60},{"$f":"+IFERROR(VLOOKUP(PT$27&\"-\"&$M65&\"_new\",Ammortamento_Finanziario!$H:$L,5,FALSE),VLOOKUP($M65,TT_Tabelle_Riferimento!$D$127:$H$164,5,FALSE))","v":60},{"$f":"+IFERROR(VLOOKUP(PU$27&\"-\"&$M65&\"_new\",Ammortamento_Finanziario!$H:$L,5,FALSE),VLOOKUP($M65,TT_Tabelle_Riferimento!$D$127:$H$164,5,FALSE))","v":60},{"$f":"+IFERROR(VLOOKUP(PV$27&\"-\"&$M65&\"_new\",Ammortamento_Finanziario!$H:$L,5,FALSE),VLOOKUP($M65,TT_Tabelle_Riferimento!$D$127:$H$164,5,FALSE))","v":60},{"$f":"+IFERROR(VLOOKUP(PW$27&\"-\"&$M65&\"_new\",Ammortamento_Finanziario!$H:$L,5,FALSE),VLOOKUP($M65,TT_Tabelle_Riferimento!$D$127:$H$164,5,FALSE))","v":60},{"$f":"+IFERROR(VLOOKUP(PX$27&\"-\"&$M65&\"_new\",Ammortamento_Finanziario!$H:$L,5,FALSE),VLOOKUP($M65,TT_Tabelle_Riferimento!$D$127:$H$164,5,FALSE))","v":60},{"$f":"+IFERROR(VLOOKUP(PY$27&\"-\"&$M65&\"_new\",Ammortamento_Finanziario!$H:$L,5,FALSE),VLOOKUP($M65,TT_Tabelle_Riferimento!$D$127:$H$164,5,FALSE))","v":60},{"$f":"+IFERROR(VLOOKUP(PZ$27&\"-\"&$M65&\"_new\",Ammortamento_Finanziario!$H:$L,5,FALSE),VLOOKUP($M65,TT_Tabelle_Riferimento!$D$127:$H$164,5,FALSE))","v":60},{"$f":"+IFERROR(VLOOKUP(QA$27&\"-\"&$M65&\"_new\",Ammortamento_Finanziario!$H:$L,5,FALSE),VLOOKUP($M65,TT_Tabelle_Riferimento!$D$127:$H$164,5,FALSE))","v":60},{"$f":"+IFERROR(VLOOKUP(QB$27&\"-\"&$M65&\"_new\",Ammortamento_Finanziario!$H:$L,5,FALSE),VLOOKUP($M65,TT_Tabelle_Riferimento!$D$127:$H$164,5,FALSE))","v":60},{"$f":"+IFERROR(VLOOKUP(QC$27&\"-\"&$M65&\"_new\",Ammortamento_Finanziario!$H:$L,5,FALSE),VLOOKUP($M65,TT_Tabelle_Riferimento!$D$127:$H$164,5,FALSE))","v":60},{"$f":"+IFERROR(VLOOKUP(QD$27&\"-\"&$M65&\"_new\",Ammortamento_Finanziario!$H:$L,5,FALSE),VLOOKUP($M65,TT_Tabelle_Riferimento!$D$127:$H$164,5,FALSE))","v":60},{"$f":"+IFERROR(VLOOKUP(QE$27&\"-\"&$M65&\"_new\",Ammortamento_Finanziario!$H:$L,5,FALSE),VLOOKUP($M65,TT_Tabelle_Riferimento!$D$127:$H$164,5,FALSE))","v":60},{"$f":"+IFERROR(VLOOKUP(QF$27&\"-\"&$M65&\"_new\",Ammortamento_Finanziario!$H:$L,5,FALSE),VLOOKUP($M65,TT_Tabelle_Riferimento!$D$127:$H$164,5,FALSE))","v":60},{"$f":"+IFERROR(VLOOKUP(QG$27&\"-\"&$M65&\"_new\",Ammortamento_Finanziario!$H:$L,5,FALSE),VLOOKUP($M65,TT_Tabelle_Riferimento!$D$127:$H$164,5,FALSE))","v":60},{"$f":"+IFERROR(VLOOKUP(QH$27&\"-\"&$M65&\"_new\",Ammortamento_Finanziario!$H:$L,5,FALSE),VLOOKUP($M65,TT_Tabelle_Riferimento!$D$127:$H$164,5,FALSE))","v":60},{"$f":"+IFERROR(VLOOKUP(QI$27&\"-\"&$M65&\"_new\",Ammortamento_Finanziario!$H:$L,5,FALSE),VLOOKUP($M65,TT_Tabelle_Riferimento!$D$127:$H$164,5,FALSE))","v":60},{"$f":"+IFERROR(VLOOKUP(QJ$27&\"-\"&$M65&\"_new\",Ammortamento_Finanziario!$H:$L,5,FALSE),VLOOKUP($M65,TT_Tabelle_Riferimento!$D$127:$H$164,5,FALSE))","v":60},{"$f":"+IFERROR(VLOOKUP(QK$27&\"-\"&$M65&\"_new\",Ammortamento_Finanziario!$H:$L,5,FALSE),VLOOKUP($M65,TT_Tabelle_Riferimento!$D$127:$H$164,5,FALSE))","v":60},{"$f":"+IFERROR(VLOOKUP(QL$27&\"-\"&$M65&\"_new\",Ammortamento_Finanziario!$H:$L,5,FALSE),VLOOKUP($M65,TT_Tabelle_Riferimento!$D$127:$H$164,5,FALSE))","v":60},{"$f":"+IFERROR(VLOOKUP(QM$27&\"-\"&$M65&\"_new\",Ammortamento_Finanziario!$H:$L,5,FALSE),VLOOKUP($M65,TT_Tabelle_Riferimento!$D$127:$H$164,5,FALSE))","v":60},{"$f":"+IFERROR(VLOOKUP(QN$27&\"-\"&$M65&\"_new\",Ammortamento_Finanziario!$H:$L,5,FALSE),VLOOKUP($M65,TT_Tabelle_Riferimento!$D$127:$H$164,5,FALSE))","v":60},{"$f":"+IFERROR(VLOOKUP(QO$27&\"-\"&$M65&\"_new\",Ammortamento_Finanziario!$H:$L,5,FALSE),VLOOKUP($M65,TT_Tabelle_Riferimento!$D$127:$H$164,5,FALSE))","v":60},{"$f":"+IFERROR(VLOOKUP(QP$27&\"-\"&$M65&\"_new\",Ammortamento_Finanziario!$H:$L,5,FALSE),VLOOKUP($M65,TT_Tabelle_Riferimento!$D$127:$H$164,5,FALSE))","v":60},{"$f":"+IFERROR(VLOOKUP(QQ$27&\"-\"&$M65&\"_new\",Ammortamento_Finanziario!$H:$L,5,FALSE),VLOOKUP($M65,TT_Tabelle_Riferimento!$D$127:$H$164,5,FALSE))","v":60},{"$f":"+IFERROR(VLOOKUP(QR$27&\"-\"&$M65&\"_new\",Ammortamento_Finanziario!$H:$L,5,FALSE),VLOOKUP($M65,TT_Tabelle_Riferimento!$D$127:$H$164,5,FALSE))","v":60},{"$f":"+IFERROR(VLOOKUP(QS$27&\"-\"&$M65&\"_new\",Ammortamento_Finanziario!$H:$L,5,FALSE),VLOOKUP($M65,TT_Tabelle_Riferimento!$D$127:$H$164,5,FALSE))","v":60},{"$f":"+IFERROR(VLOOKUP(QT$27&\"-\"&$M65&\"_new\",Ammortamento_Finanziario!$H:$L,5,FALSE),VLOOKUP($M65,TT_Tabelle_Riferimento!$D$127:$H$164,5,FALSE))","v":60},{"$f":"+IFERROR(VLOOKUP(QU$27&\"-\"&$M65&\"_new\",Ammortamento_Finanziario!$H:$L,5,FALSE),VLOOKUP($M65,TT_Tabelle_Riferimento!$D$127:$H$164,5,FALSE))","v":60},{"$f":"+IFERROR(VLOOKUP(QV$27&\"-\"&$M65&\"_new\",Ammortamento_Finanziario!$H:$L,5,FALSE),VLOOKUP($M65,TT_Tabelle_Riferimento!$D$127:$H$164,5,FALSE))","v":60},{"$f":"+IFERROR(VLOOKUP(QW$27&\"-\"&$M65&\"_new\",Ammortamento_Finanziario!$H:$L,5,FALSE),VLOOKUP($M65,TT_Tabelle_Riferimento!$D$127:$H$164,5,FALSE))","v":60},{"$f":"+IFERROR(VLOOKUP(QX$27&\"-\"&$M65&\"_new\",Ammortamento_Finanziario!$H:$L,5,FALSE),VLOOKUP($M65,TT_Tabelle_Riferimento!$D$127:$H$164,5,FALSE))","v":60},{"$f":"+IFERROR(VLOOKUP(QY$27&\"-\"&$M65&\"_new\",Ammortamento_Finanziario!$H:$L,5,FALSE),VLOOKUP($M65,TT_Tabelle_Riferimento!$D$127:$H$164,5,FALSE))","v":60},{"$f":"+IFERROR(VLOOKUP(QZ$27&\"-\"&$M65&\"_new\",Ammortamento_Finanziario!$H:$L,5,FALSE),VLOOKUP($M65,TT_Tabelle_Riferimento!$D$127:$H$164,5,FALSE))","v":60},{"$f":"+IFERROR(VLOOKUP(RA$27&\"-\"&$M65&\"_new\",Ammortamento_Finanziario!$H:$L,5,FALSE),VLOOKUP($M65,TT_Tabelle_Riferimento!$D$127:$H$164,5,FALSE))","v":60},{"$f":"+IFERROR(VLOOKUP(RB$27&\"-\"&$M65&\"_new\",Ammortamento_Finanziario!$H:$L,5,FALSE),VLOOKUP($M65,TT_Tabelle_Riferimento!$D$127:$H$164,5,FALSE))","v":60},{"$f":"+IFERROR(VLOOKUP(RC$27&\"-\"&$M65&\"_new\",Ammortamento_Finanziario!$H:$L,5,FALSE),VLOOKUP($M65,TT_Tabelle_Riferimento!$D$127:$H$164,5,FALSE))","v":60},{"$f":"+IFERROR(VLOOKUP(RD$27&\"-\"&$M65&\"_new\",Ammortamento_Finanziario!$H:$L,5,FALSE),VLOOKUP($M65,TT_Tabelle_Riferimento!$D$127:$H$164,5,FALSE))","v":60},{"$f":"+IFERROR(VLOOKUP(RE$27&\"-\"&$M65&\"_new\",Ammortamento_Finanziario!$H:$L,5,FALSE),VLOOKUP($M65,TT_Tabelle_Riferimento!$D$127:$H$164,5,FALSE))","v":60},{"$f":"+IFERROR(VLOOKUP(RF$27&\"-\"&$M65&\"_new\",Ammortamento_Finanziario!$H:$L,5,FALSE),VLOOKUP($M65,TT_Tabelle_Riferimento!$D$127:$H$164,5,FALSE))","v":60},{"$f":"+IFERROR(VLOOKUP(RG$27&\"-\"&$M65&\"_new\",Ammortamento_Finanziario!$H:$L,5,FALSE),VLOOKUP($M65,TT_Tabelle_Riferimento!$D$127:$H$164,5,FALSE))","v":60},{"$f":"+IFERROR(VLOOKUP(RH$27&\"-\"&$M65&\"_new\",Ammortamento_Finanziario!$H:$L,5,FALSE),VLOOKUP($M65,TT_Tabelle_Riferimento!$D$127:$H$164,5,FALSE))","v":60},{"$f":"+IFERROR(VLOOKUP(RI$27&\"-\"&$M65&\"_new\",Ammortamento_Finanziario!$H:$L,5,FALSE),VLOOKUP($M65,TT_Tabelle_Riferimento!$D$127:$H$164,5,FALSE))","v":60},{"$f":"+IFERROR(VLOOKUP(RJ$27&\"-\"&$M65&\"_new\",Ammortamento_Finanziario!$H:$L,5,FALSE),VLOOKUP($M65,TT_Tabelle_Riferimento!$D$127:$H$164,5,FALSE))","v":60},{"$f":"+IFERROR(VLOOKUP(RK$27&\"-\"&$M65&\"_new\",Ammortamento_Finanziario!$H:$L,5,FALSE),VLOOKUP($M65,TT_Tabelle_Riferimento!$D$127:$H$164,5,FALSE))","v":60},{"$f":"+IFERROR(VLOOKUP(RL$27&\"-\"&$M65&\"_new\",Ammortamento_Finanziario!$H:$L,5,FALSE),VLOOKUP($M65,TT_Tabelle_Riferimento!$D$127:$H$164,5,FALSE))","v":60},{"$f":"+IFERROR(VLOOKUP(RM$27&\"-\"&$M65&\"_new\",Ammortamento_Finanziario!$H:$L,5,FALSE),VLOOKUP($M65,TT_Tabelle_Riferimento!$D$127:$H$164,5,FALSE))","v":60},{"$f":"+IFERROR(VLOOKUP(RN$27&\"-\"&$M65&\"_new\",Ammortamento_Finanziario!$H:$L,5,FALSE),VLOOKUP($M65,TT_Tabelle_Riferimento!$D$127:$H$164,5,FALSE))","v":60},{"$f":"+IFERROR(VLOOKUP(RO$27&\"-\"&$M65&\"_new\",Ammortamento_Finanziario!$H:$L,5,FALSE),VLOOKUP($M65,TT_Tabelle_Riferimento!$D$127:$H$164,5,FALSE))","v":60},{"$f":"+IFERROR(VLOOKUP(RP$27&\"-\"&$M65&\"_new\",Ammortamento_Finanziario!$H:$L,5,FALSE),VLOOKUP($M65,TT_Tabelle_Riferimento!$D$127:$H$164,5,FALSE))","v":60},{"$f":"+IFERROR(VLOOKUP(RQ$27&\"-\"&$M65&\"_new\",Ammortamento_Finanziario!$H:$L,5,FALSE),VLOOKUP($M65,TT_Tabelle_Riferimento!$D$127:$H$164,5,FALSE))","v":60},{"$f":"+IFERROR(VLOOKUP(RR$27&\"-\"&$M65&\"_new\",Ammortamento_Finanziario!$H:$L,5,FALSE),VLOOKUP($M65,TT_Tabelle_Riferimento!$D$127:$H$164,5,FALSE))","v":60},{"$f":"+IFERROR(VLOOKUP(RS$27&\"-\"&$M65&\"_new\",Ammortamento_Finanziario!$H:$L,5,FALSE),VLOOKUP($M65,TT_Tabelle_Riferimento!$D$127:$H$164,5,FALSE))","v":60},{"$f":"+IFERROR(VLOOKUP(RT$27&\"-\"&$M65&\"_new\",Ammortamento_Finanziario!$H:$L,5,FALSE),VLOOKUP($M65,TT_Tabelle_Riferimento!$D$127:$H$164,5,FALSE))","v":60},{"$f":"+IFERROR(VLOOKUP(RU$27&\"-\"&$M65&\"_new\",Ammortamento_Finanziario!$H:$L,5,FALSE),VLOOKUP($M65,TT_Tabelle_Riferimento!$D$127:$H$164,5,FALSE))","v":60},{"$f":"+IFERROR(VLOOKUP(RV$27&\"-\"&$M65&\"_new\",Ammortamento_Finanziario!$H:$L,5,FALSE),VLOOKUP($M65,TT_Tabelle_Riferimento!$D$127:$H$164,5,FALSE))","v":60}]
[null,null,null,"IML",{"$f":"+SUMIFS(IMN_gestore!P:P,IMN_gestore!$E:$E,\">=\"&2012,IMN_gestore!$E:$E,\"<=\"&2022,IMN_gestore!$G:$G,\"Env\")","v":0},{"$f":"+SUMIFS(IMN_gestore!AA:AA,IMN_gestore!$E:$E,\">=\"&2012,IMN_gestore!$E:$E,\"<=\"&2023,IMN_gestore!$G:$G,\"Env\")","v":0},{"$f":"+SUMIFS(IMN_gestore!AL:AL,IMN_gestore!$E:$E,\">=\"&2012,IMN_gestore!$E:$E,\"<=\"&2024,IMN_gestore!$G:$G,\"Env\")","v":0},{"$f":"+SUMIFS(IMN_gestore!AW:AW,IMN_gestore!$E:$E,\">=\"&2012,IMN_gestore!$E:$E,\"<=\"&2025,IMN_gestore!$G:$G,\"Env\")","v":0},{"$f":"+SUMIFS(IMN_gestore!$BH:$BH,IMN_gestore!$E:$E,\">=\"&2012,IMN_gestore!$E:$E,\"<=\"&2026,IMN_gestore!$G:$G,\"Env\")","v":0},{"$f":"+SUMIFS(IMN_gestore!$BS:$BS,IMN_gestore!$E:$E,\">=\"&2012,IMN_gestore!$E:$E,\"<=\"&2027,IMN_gestore!$G:$G,\"Env\")","v":0},null,null,39,0,0,0,0,0,0,0,0,0,0,0,0,0,0,0,0,0,0,0,0,0,0,0,0,0,0,0,0,0,0,0,0,0,0,0,0,0,0,0,0,0,0,0,0,0,0,0,0,0,0,0,0,0,0,0,0,0,0,0,0,0,0,0,0,0,0,0,0,0,0,0,0,0,0,0,0,0,0,0,0,0,0,0,0,0,0,0,0,0,0,0,0,0,0,0,0,0,0,0,0,0,0,0,0,0,0,0,0,0,0,0,0,0,0,0,0,0,0,0,0,0,0,0,0,0,0,0,0,0,0,0,0,0,0,0,0,0,0,0,0,0,0,0,0,0,0,0,0,0,0,0,0,0,0,0,0,0,0,0,0,0,0,0,0,0,0,0,0,0,0,0,0,0,0,0,0,0,0,0,0,0,0,0,0,0,0,0,0,0,0,0,0,0,0,0,0,0,0,0,0,0,0,0,0,0,0,0,0,0,0,0,0,0,0,0,0,0,0,0,0,0,0,0,0,0,0,0,0,0,0,0,0,0,0,0,0,0,0,0,0,0,0,0,0,0,0,0,0,0,0,0,0,0,0,0,0,0,0,0,0,0,0,0,0,0,0,0,0,0,0,0,0,0,0,0,0,0,0,0,0,0,0,0,0,0,0,0,0,0,{"$f":"+IFERROR(VLOOKUP(KQ$27&\"-\"&$M66&\"_new\",Ammortamento_Finanziario!$H:$L,5,FALSE),VLOOKUP($M66,TT_Tabelle_Riferimento!$D$127:$H$164,5,FALSE))","v":30},{"$f":"+IFERROR(VLOOKUP(KR$27&\"-\"&$M66&\"_new\",Ammortamento_Finanziario!$H:$L,5,FALSE),VLOOKUP($M66,TT_Tabelle_Riferimento!$D$127:$H$164,5,FALSE))","v":30},{"$f":"+IFERROR(VLOOKUP(KS$27&\"-\"&$M66&\"_new\",Ammortamento_Finanziario!$H:$L,5,FALSE),VLOOKUP($M66,TT_Tabelle_Riferimento!$D$127:$H$164,5,FALSE))","v":30},{"$f":"+IFERROR(VLOOKUP(KT$27&\"-\"&$M66&\"_new\",Ammortamento_Finanziario!$H:$L,5,FALSE),VLOOKUP($M66,TT_Tabelle_Riferimento!$D$127:$H$164,5,FALSE))","v":30},{"$f":"+IFERROR(VLOOKUP(KU$27&\"-\"&$M66&\"_new\",Ammortamento_Finanziario!$H:$L,5,FALSE),VLOOKUP($M66,TT_Tabelle_Riferimento!$D$127:$H$164,5,FALSE))","v":30},{"$f":"+IFERROR(VLOOKUP(KV$27&\"-\"&$M66&\"_new\",Ammortamento_Finanziario!$H:$L,5,FALSE),VLOOKUP($M66,TT_Tabelle_Riferimento!$D$127:$H$164,5,FALSE))","v":30},{"$f":"+IFERROR(VLOOKUP(KW$27&\"-\"&$M66&\"_new\",Ammortamento_Finanziario!$H:$L,5,FALSE),VLOOKUP($M66,TT_Tabelle_Riferimento!$D$127:$H$164,5,FALSE))","v":30},{"$f":"+IFERROR(VLOOKUP(KX$27&\"-\"&$M66&\"_new\",Ammortamento_Finanziario!$H:$L,5,FALSE),VLOOKUP($M66,TT_Tabelle_Riferimento!$D$127:$H$164,5,FALSE))","v":30},{"$f":"+IFERROR(VLOOKUP(KY$27&\"-\"&$M66&\"_new\",Ammortamento_Finanziario!$H:$L,5,FALSE),VLOOKUP($M66,TT_Tabelle_Riferimento!$D$127:$H$164,5,FALSE))","v":30},{"$f":"+IFERROR(VLOOKUP(KZ$27&\"-\"&$M66&\"_new\",Ammortamento_Finanziario!$H:$L,5,FALSE),VLOOKUP($M66,TT_Tabelle_Riferimento!$D$127:$H$164,5,FALSE))","v":30},{"$f":"+IFERROR(VLOOKUP(LA$27&\"-\"&$M66&\"_new\",Ammortamento_Finanziario!$H:$L,5,FALSE),VLOOKUP($M66,TT_Tabelle_Riferimento!$D$127:$H$164,5,FALSE))","v":30},{"$f":"+IFERROR(VLOOKUP(LB$27&\"-\"&$M66&\"_new\",Ammortamento_Finanziario!$H:$L,5,FALSE),VLOOKUP($M66,TT_Tabelle_Riferimento!$D$127:$H$164,5,FALSE))","v":30},{"$f":"+IFERROR(VLOOKUP(LC$27&\"-\"&$M66&\"_new\",Ammortamento_Finanziario!$H:$L,5,FALSE),VLOOKUP($M66,TT_Tabelle_Riferimento!$D$127:$H$164,5,FALSE))","v":30},{"$f":"+IFERROR(VLOOKUP(LD$27&\"-\"&$M66&\"_new\",Ammortamento_Finanziario!$H:$L,5,FALSE),VLOOKUP($M66,TT_Tabelle_Riferimento!$D$127:$H$164,5,FALSE))","v":30},{"$f":"+IFERROR(VLOOKUP(LE$27&\"-\"&$M66&\"_new\",Ammortamento_Finanziario!$H:$L,5,FALSE),VLOOKUP($M66,TT_Tabelle_Riferimento!$D$127:$H$164,5,FALSE))","v":30},{"$f":"+IFERROR(VLOOKUP(LF$27&\"-\"&$M66&\"_new\",Ammortamento_Finanziario!$H:$L,5,FALSE),VLOOKUP($M66,TT_Tabelle_Riferimento!$D$127:$H$164,5,FALSE))","v":30},{"$f":"+IFERROR(VLOOKUP(LG$27&\"-\"&$M66&\"_new\",Ammortamento_Finanziario!$H:$L,5,FALSE),VLOOKUP($M66,TT_Tabelle_Riferimento!$D$127:$H$164,5,FALSE))","v":30},{"$f":"+IFERROR(VLOOKUP(LH$27&\"-\"&$M66&\"_new\",Ammortamento_Finanziario!$H:$L,5,FALSE),VLOOKUP($M66,TT_Tabelle_Riferimento!$D$127:$H$164,5,FALSE))","v":30},{"$f":"+IFERROR(VLOOKUP(LI$27&\"-\"&$M66&\"_new\",Ammortamento_Finanziario!$H:$L,5,FALSE),VLOOKUP($M66,TT_Tabelle_Riferimento!$D$127:$H$164,5,FALSE))","v":30},{"$f":"+IFERROR(VLOOKUP(LJ$27&\"-\"&$M66&\"_new\",Ammortamento_Finanziario!$H:$L,5,FALSE),VLOOKUP($M66,TT_Tabelle_Riferimento!$D$127:$H$164,5,FALSE))","v":30},{"$f":"+IFERROR(VLOOKUP(LK$27&\"-\"&$M66&\"_new\",Ammortamento_Finanziario!$H:$L,5,FALSE),VLOOKUP($M66,TT_Tabelle_Riferimento!$D$127:$H$164,5,FALSE))","v":30},{"$f":"+IFERROR(VLOOKUP(LL$27&\"-\"&$M66&\"_new\",Ammortamento_Finanziario!$H:$L,5,FALSE),VLOOKUP($M66,TT_Tabelle_Riferimento!$D$127:$H$164,5,FALSE))","v":30},{"$f":"+IFERROR(VLOOKUP(LM$27&\"-\"&$M66&\"_new\",Ammortamento_Finanziario!$H:$L,5,FALSE),VLOOKUP($M66,TT_Tabelle_Riferimento!$D$127:$H$164,5,FALSE))","v":30},{"$f":"+IFERROR(VLOOKUP(LN$27&\"-\"&$M66&\"_new\",Ammortamento_Finanziario!$H:$L,5,FALSE),VLOOKUP($M66,TT_Tabelle_Riferimento!$D$127:$H$164,5,FALSE))","v":30},{"$f":"+IFERROR(VLOOKUP(LO$27&\"-\"&$M66&\"_new\",Ammortamento_Finanziario!$H:$L,5,FALSE),VLOOKUP($M66,TT_Tabelle_Riferimento!$D$127:$H$164,5,FALSE))","v":30},{"$f":"+IFERROR(VLOOKUP(LP$27&\"-\"&$M66&\"_new\",Ammortamento_Finanziario!$H:$L,5,FALSE),VLOOKUP($M66,TT_Tabelle_Riferimento!$D$127:$H$164,5,FALSE))","v":30},{"$f":"+IFERROR(VLOOKUP(LQ$27&\"-\"&$M66&\"_new\",Ammortamento_Finanziario!$H:$L,5,FALSE),VLOOKUP($M66,TT_Tabelle_Riferimento!$D$127:$H$164,5,FALSE))","v":30},{"$f":"+IFERROR(VLOOKUP(LR$27&\"-\"&$M66&\"_new\",Ammortamento_Finanziario!$H:$L,5,FALSE),VLOOKUP($M66,TT_Tabelle_Riferimento!$D$127:$H$164,5,FALSE))","v":30},{"$f":"+IFERROR(VLOOKUP(LS$27&\"-\"&$M66&\"_new\",Ammortamento_Finanziario!$H:$L,5,FALSE),VLOOKUP($M66,TT_Tabelle_Riferimento!$D$127:$H$164,5,FALSE))","v":30},{"$f":"+IFERROR(VLOOKUP(LT$27&\"-\"&$M66&\"_new\",Ammortamento_Finanziario!$H:$L,5,FALSE),VLOOKUP($M66,TT_Tabelle_Riferimento!$D$127:$H$164,5,FALSE))","v":30},{"$f":"+IFERROR(VLOOKUP(LU$27&\"-\"&$M66&\"_new\",Ammortamento_Finanziario!$H:$L,5,FALSE),VLOOKUP($M66,TT_Tabelle_Riferimento!$D$127:$H$164,5,FALSE))","v":30},{"$f":"+IFERROR(VLOOKUP(LV$27&\"-\"&$M66&\"_new\",Ammortamento_Finanziario!$H:$L,5,FALSE),VLOOKUP($M66,TT_Tabelle_Riferimento!$D$127:$H$164,5,FALSE))","v":30},{"$f":"+IFERROR(VLOOKUP(LW$27&\"-\"&$M66&\"_new\",Ammortamento_Finanziario!$H:$L,5,FALSE),VLOOKUP($M66,TT_Tabelle_Riferimento!$D$127:$H$164,5,FALSE))","v":30},{"$f":"+IFERROR(VLOOKUP(LX$27&\"-\"&$M66&\"_new\",Ammortamento_Finanziario!$H:$L,5,FALSE),VLOOKUP($M66,TT_Tabelle_Riferimento!$D$127:$H$164,5,FALSE))","v":30},{"$f":"+IFERROR(VLOOKUP(LY$27&\"-\"&$M66&\"_new\",Ammortamento_Finanziario!$H:$L,5,FALSE),VLOOKUP($M66,TT_Tabelle_Riferimento!$D$127:$H$164,5,FALSE))","v":30},{"$f":"+IFERROR(VLOOKUP(LZ$27&\"-\"&$M66&\"_new\",Ammortamento_Finanziario!$H:$L,5,FALSE),VLOOKUP($M66,TT_Tabelle_Riferimento!$D$127:$H$164,5,FALSE))","v":30},{"$f":"+IFERROR(VLOOKUP(MA$27&\"-\"&$M66&\"_new\",Ammortamento_Finanziario!$H:$L,5,FALSE),VLOOKUP($M66,TT_Tabelle_Riferimento!$D$127:$H$164,5,FALSE))","v":30},{"$f":"+IFERROR(VLOOKUP(MB$27&\"-\"&$M66&\"_new\",Ammortamento_Finanziario!$H:$L,5,FALSE),VLOOKUP($M66,TT_Tabelle_Riferimento!$D$127:$H$164,5,FALSE))","v":30},{"$f":"+IFERROR(VLOOKUP(MC$27&\"-\"&$M66&\"_new\",Ammortamento_Finanziario!$H:$L,5,FALSE),VLOOKUP($M66,TT_Tabelle_Riferimento!$D$127:$H$164,5,FALSE))","v":30},{"$f":"+IFERROR(VLOOKUP(MD$27&\"-\"&$M66&\"_new\",Ammortamento_Finanziario!$H:$L,5,FALSE),VLOOKUP($M66,TT_Tabelle_Riferimento!$D$127:$H$164,5,FALSE))","v":30},{"$f":"+IFERROR(VLOOKUP(ME$27&\"-\"&$M66&\"_new\",Ammortamento_Finanziario!$H:$L,5,FALSE),VLOOKUP($M66,TT_Tabelle_Riferimento!$D$127:$H$164,5,FALSE))","v":30},{"$f":"+IFERROR(VLOOKUP(MF$27&\"-\"&$M66&\"_new\",Ammortamento_Finanziario!$H:$L,5,FALSE),VLOOKUP($M66,TT_Tabelle_Riferimento!$D$127:$H$164,5,FALSE))","v":30},{"$f":"+IFERROR(VLOOKUP(MG$27&\"-\"&$M66&\"_new\",Ammortamento_Finanziario!$H:$L,5,FALSE),VLOOKUP($M66,TT_Tabelle_Riferimento!$D$127:$H$164,5,FALSE))","v":30},{"$f":"+IFERROR(VLOOKUP(MH$27&\"-\"&$M66&\"_new\",Ammortamento_Finanziario!$H:$L,5,FALSE),VLOOKUP($M66,TT_Tabelle_Riferimento!$D$127:$H$164,5,FALSE))","v":30},{"$f":"+IFERROR(VLOOKUP(MI$27&\"-\"&$M66&\"_new\",Ammortamento_Finanziario!$H:$L,5,FALSE),VLOOKUP($M66,TT_Tabelle_Riferimento!$D$127:$H$164,5,FALSE))","v":30},{"$f":"+IFERROR(VLOOKUP(MJ$27&\"-\"&$M66&\"_new\",Ammortamento_Finanziario!$H:$L,5,FALSE),VLOOKUP($M66,TT_Tabelle_Riferimento!$D$127:$H$164,5,FALSE))","v":30},{"$f":"+IFERROR(VLOOKUP(MK$27&\"-\"&$M66&\"_new\",Ammortamento_Finanziario!$H:$L,5,FALSE),VLOOKUP($M66,TT_Tabelle_Riferimento!$D$127:$H$164,5,FALSE))","v":30},{"$f":"+IFERROR(VLOOKUP(ML$27&\"-\"&$M66&\"_new\",Ammortamento_Finanziario!$H:$L,5,FALSE),VLOOKUP($M66,TT_Tabelle_Riferimento!$D$127:$H$164,5,FALSE))","v":30},{"$f":"+IFERROR(VLOOKUP(MM$27&\"-\"&$M66&\"_new\",Ammortamento_Finanziario!$H:$L,5,FALSE),VLOOKUP($M66,TT_Tabelle_Riferimento!$D$127:$H$164,5,FALSE))","v":30},{"$f":"+IFERROR(VLOOKUP(MN$27&\"-\"&$M66&\"_new\",Ammortamento_Finanziario!$H:$L,5,FALSE),VLOOKUP($M66,TT_Tabelle_Riferimento!$D$127:$H$164,5,FALSE))","v":30},{"$f":"+IFERROR(VLOOKUP(MO$27&\"-\"&$M66&\"_new\",Ammortamento_Finanziario!$H:$L,5,FALSE),VLOOKUP($M66,TT_Tabelle_Riferimento!$D$127:$H$164,5,FALSE))","v":30},{"$f":"+IFERROR(VLOOKUP(MP$27&\"-\"&$M66&\"_new\",Ammortamento_Finanziario!$H:$L,5,FALSE),VLOOKUP($M66,TT_Tabelle_Riferimento!$D$127:$H$164,5,FALSE))","v":30},{"$f":"+IFERROR(VLOOKUP(MQ$27&\"-\"&$M66&\"_new\",Ammortamento_Finanziario!$H:$L,5,FALSE),VLOOKUP($M66,TT_Tabelle_Riferimento!$D$127:$H$164,5,FALSE))","v":30},{"$f":"+IFERROR(VLOOKUP(MR$27&\"-\"&$M66&\"_new\",Ammortamento_Finanziario!$H:$L,5,FALSE),VLOOKUP($M66,TT_Tabelle_Riferimento!$D$127:$H$164,5,FALSE))","v":30},{"$f":"+IFERROR(VLOOKUP(MS$27&\"-\"&$M66&\"_new\",Ammortamento_Finanziario!$H:$L,5,FALSE),VLOOKUP($M66,TT_Tabelle_Riferimento!$D$127:$H$164,5,FALSE))","v":30},{"$f":"+IFERROR(VLOOKUP(MT$27&\"-\"&$M66&\"_new\",Ammortamento_Finanziario!$H:$L,5,FALSE),VLOOKUP($M66,TT_Tabelle_Riferimento!$D$127:$H$164,5,FALSE))","v":30},{"$f":"+IFERROR(VLOOKUP(MU$27&\"-\"&$M66&\"_new\",Ammortamento_Finanziario!$H:$L,5,FALSE),VLOOKUP($M66,TT_Tabelle_Riferimento!$D$127:$H$164,5,FALSE))","v":30},{"$f":"+IFERROR(VLOOKUP(MV$27&\"-\"&$M66&\"_new\",Ammortamento_Finanziario!$H:$L,5,FALSE),VLOOKUP($M66,TT_Tabelle_Riferimento!$D$127:$H$164,5,FALSE))","v":30},{"$f":"+IFERROR(VLOOKUP(MW$27&\"-\"&$M66&\"_new\",Ammortamento_Finanziario!$H:$L,5,FALSE),VLOOKUP($M66,TT_Tabelle_Riferimento!$D$127:$H$164,5,FALSE))","v":30},{"$f":"+IFERROR(VLOOKUP(MX$27&\"-\"&$M66&\"_new\",Ammortamento_Finanziario!$H:$L,5,FALSE),VLOOKUP($M66,TT_Tabelle_Riferimento!$D$127:$H$164,5,FALSE))","v":30},{"$f":"+IFERROR(VLOOKUP(MY$27&\"-\"&$M66&\"_new\",Ammortamento_Finanziario!$H:$L,5,FALSE),VLOOKUP($M66,TT_Tabelle_Riferimento!$D$127:$H$164,5,FALSE))","v":30},{"$f":"+IFERROR(VLOOKUP(MZ$27&\"-\"&$M66&\"_new\",Ammortamento_Finanziario!$H:$L,5,FALSE),VLOOKUP($M66,TT_Tabelle_Riferimento!$D$127:$H$164,5,FALSE))","v":30},{"$f":"+IFERROR(VLOOKUP(NA$27&\"-\"&$M66&\"_new\",Ammortamento_Finanziario!$H:$L,5,FALSE),VLOOKUP($M66,TT_Tabelle_Riferimento!$D$127:$H$164,5,FALSE))","v":30},{"$f":"+IFERROR(VLOOKUP(NB$27&\"-\"&$M66&\"_new\",Ammortamento_Finanziario!$H:$L,5,FALSE),VLOOKUP($M66,TT_Tabelle_Riferimento!$D$127:$H$164,5,FALSE))","v":30},{"$f":"+IFERROR(VLOOKUP(NC$27&\"-\"&$M66&\"_new\",Ammortamento_Finanziario!$H:$L,5,FALSE),VLOOKUP($M66,TT_Tabelle_Riferimento!$D$127:$H$164,5,FALSE))","v":30},{"$f":"+IFERROR(VLOOKUP(ND$27&\"-\"&$M66&\"_new\",Ammortamento_Finanziario!$H:$L,5,FALSE),VLOOKUP($M66,TT_Tabelle_Riferimento!$D$127:$H$164,5,FALSE))","v":30},{"$f":"+IFERROR(VLOOKUP(NE$27&\"-\"&$M66&\"_new\",Ammortamento_Finanziario!$H:$L,5,FALSE),VLOOKUP($M66,TT_Tabelle_Riferimento!$D$127:$H$164,5,FALSE))","v":30},{"$f":"+IFERROR(VLOOKUP(NF$27&\"-\"&$M66&\"_new\",Ammortamento_Finanziario!$H:$L,5,FALSE),VLOOKUP($M66,TT_Tabelle_Riferimento!$D$127:$H$164,5,FALSE))","v":30},{"$f":"+IFERROR(VLOOKUP(NG$27&\"-\"&$M66&\"_new\",Ammortamento_Finanziario!$H:$L,5,FALSE),VLOOKUP($M66,TT_Tabelle_Riferimento!$D$127:$H$164,5,FALSE))","v":30},{"$f":"+IFERROR(VLOOKUP(NH$27&\"-\"&$M66&\"_new\",Ammortamento_Finanziario!$H:$L,5,FALSE),VLOOKUP($M66,TT_Tabelle_Riferimento!$D$127:$H$164,5,FALSE))","v":30},{"$f":"+IFERROR(VLOOKUP(NI$27&\"-\"&$M66&\"_new\",Ammortamento_Finanziario!$H:$L,5,FALSE),VLOOKUP($M66,TT_Tabelle_Riferimento!$D$127:$H$164,5,FALSE))","v":30},{"$f":"+IFERROR(VLOOKUP(NJ$27&\"-\"&$M66&\"_new\",Ammortamento_Finanziario!$H:$L,5,FALSE),VLOOKUP($M66,TT_Tabelle_Riferimento!$D$127:$H$164,5,FALSE))","v":30},{"$f":"+IFERROR(VLOOKUP(NK$27&\"-\"&$M66&\"_new\",Ammortamento_Finanziario!$H:$L,5,FALSE),VLOOKUP($M66,TT_Tabelle_Riferimento!$D$127:$H$164,5,FALSE))","v":30},{"$f":"+IFERROR(VLOOKUP(NL$27&\"-\"&$M66&\"_new\",Ammortamento_Finanziario!$H:$L,5,FALSE),VLOOKUP($M66,TT_Tabelle_Riferimento!$D$127:$H$164,5,FALSE))","v":30},{"$f":"+IFERROR(VLOOKUP(NM$27&\"-\"&$M66&\"_new\",Ammortamento_Finanziario!$H:$L,5,FALSE),VLOOKUP($M66,TT_Tabelle_Riferimento!$D$127:$H$164,5,FALSE))","v":30},{"$f":"+IFERROR(VLOOKUP(NN$27&\"-\"&$M66&\"_new\",Ammortamento_Finanziario!$H:$L,5,FALSE),VLOOKUP($M66,TT_Tabelle_Riferimento!$D$127:$H$164,5,FALSE))","v":30},{"$f":"+IFERROR(VLOOKUP(NO$27&\"-\"&$M66&\"_new\",Ammortamento_Finanziario!$H:$L,5,FALSE),VLOOKUP($M66,TT_Tabelle_Riferimento!$D$127:$H$164,5,FALSE))","v":30},{"$f":"+IFERROR(VLOOKUP(NP$27&\"-\"&$M66&\"_new\",Ammortamento_Finanziario!$H:$L,5,FALSE),VLOOKUP($M66,TT_Tabelle_Riferimento!$D$127:$H$164,5,FALSE))","v":30},{"$f":"+IFERROR(VLOOKUP(NQ$27&\"-\"&$M66&\"_new\",Ammortamento_Finanziario!$H:$L,5,FALSE),VLOOKUP($M66,TT_Tabelle_Riferimento!$D$127:$H$164,5,FALSE))","v":30},{"$f":"+IFERROR(VLOOKUP(NR$27&\"-\"&$M66&\"_new\",Ammortamento_Finanziario!$H:$L,5,FALSE),VLOOKUP($M66,TT_Tabelle_Riferimento!$D$127:$H$164,5,FALSE))","v":30},{"$f":"+IFERROR(VLOOKUP(NS$27&\"-\"&$M66&\"_new\",Ammortamento_Finanziario!$H:$L,5,FALSE),VLOOKUP($M66,TT_Tabelle_Riferimento!$D$127:$H$164,5,FALSE))","v":30},{"$f":"+IFERROR(VLOOKUP(NT$27&\"-\"&$M66&\"_new\",Ammortamento_Finanziario!$H:$L,5,FALSE),VLOOKUP($M66,TT_Tabelle_Riferimento!$D$127:$H$164,5,FALSE))","v":30},{"$f":"+IFERROR(VLOOKUP(NU$27&\"-\"&$M66&\"_new\",Ammortamento_Finanziario!$H:$L,5,FALSE),VLOOKUP($M66,TT_Tabelle_Riferimento!$D$127:$H$164,5,FALSE))","v":30},{"$f":"+IFERROR(VLOOKUP(NV$27&\"-\"&$M66&\"_new\",Ammortamento_Finanziario!$H:$L,5,FALSE),VLOOKUP($M66,TT_Tabelle_Riferimento!$D$127:$H$164,5,FALSE))","v":30},{"$f":"+IFERROR(VLOOKUP(NW$27&\"-\"&$M66&\"_new\",Ammortamento_Finanziario!$H:$L,5,FALSE),VLOOKUP($M66,TT_Tabelle_Riferimento!$D$127:$H$164,5,FALSE))","v":30},{"$f":"+IFERROR(VLOOKUP(NX$27&\"-\"&$M66&\"_new\",Ammortamento_Finanziario!$H:$L,5,FALSE),VLOOKUP($M66,TT_Tabelle_Riferimento!$D$127:$H$164,5,FALSE))","v":30},{"$f":"+IFERROR(VLOOKUP(NY$27&\"-\"&$M66&\"_new\",Ammortamento_Finanziario!$H:$L,5,FALSE),VLOOKUP($M66,TT_Tabelle_Riferimento!$D$127:$H$164,5,FALSE))","v":30},{"$f":"+IFERROR(VLOOKUP(NZ$27&\"-\"&$M66&\"_new\",Ammortamento_Finanziario!$H:$L,5,FALSE),VLOOKUP($M66,TT_Tabelle_Riferimento!$D$127:$H$164,5,FALSE))","v":30},{"$f":"+IFERROR(VLOOKUP(OA$27&\"-\"&$M66&\"_new\",Ammortamento_Finanziario!$H:$L,5,FALSE),VLOOKUP($M66,TT_Tabelle_Riferimento!$D$127:$H$164,5,FALSE))","v":30},{"$f":"+IFERROR(VLOOKUP(OB$27&\"-\"&$M66&\"_new\",Ammortamento_Finanziario!$H:$L,5,FALSE),VLOOKUP($M66,TT_Tabelle_Riferimento!$D$127:$H$164,5,FALSE))","v":30},{"$f":"+IFERROR(VLOOKUP(OC$27&\"-\"&$M66&\"_new\",Ammortamento_Finanziario!$H:$L,5,FALSE),VLOOKUP($M66,TT_Tabelle_Riferimento!$D$127:$H$164,5,FALSE))","v":30},{"$f":"+IFERROR(VLOOKUP(OD$27&\"-\"&$M66&\"_new\",Ammortamento_Finanziario!$H:$L,5,FALSE),VLOOKUP($M66,TT_Tabelle_Riferimento!$D$127:$H$164,5,FALSE))","v":30},{"$f":"+IFERROR(VLOOKUP(OE$27&\"-\"&$M66&\"_new\",Ammortamento_Finanziario!$H:$L,5,FALSE),VLOOKUP($M66,TT_Tabelle_Riferimento!$D$127:$H$164,5,FALSE))","v":30},{"$f":"+IFERROR(VLOOKUP(OF$27&\"-\"&$M66&\"_new\",Ammortamento_Finanziario!$H:$L,5,FALSE),VLOOKUP($M66,TT_Tabelle_Riferimento!$D$127:$H$164,5,FALSE))","v":30},{"$f":"+IFERROR(VLOOKUP(OG$27&\"-\"&$M66&\"_new\",Ammortamento_Finanziario!$H:$L,5,FALSE),VLOOKUP($M66,TT_Tabelle_Riferimento!$D$127:$H$164,5,FALSE))","v":30},{"$f":"+IFERROR(VLOOKUP(OH$27&\"-\"&$M66&\"_new\",Ammortamento_Finanziario!$H:$L,5,FALSE),VLOOKUP($M66,TT_Tabelle_Riferimento!$D$127:$H$164,5,FALSE))","v":30},{"$f":"+IFERROR(VLOOKUP(OI$27&\"-\"&$M66&\"_new\",Ammortamento_Finanziario!$H:$L,5,FALSE),VLOOKUP($M66,TT_Tabelle_Riferimento!$D$127:$H$164,5,FALSE))","v":30},{"$f":"+IFERROR(VLOOKUP(OJ$27&\"-\"&$M66&\"_new\",Ammortamento_Finanziario!$H:$L,5,FALSE),VLOOKUP($M66,TT_Tabelle_Riferimento!$D$127:$H$164,5,FALSE))","v":30},{"$f":"+IFERROR(VLOOKUP(OK$27&\"-\"&$M66&\"_new\",Ammortamento_Finanziario!$H:$L,5,FALSE),VLOOKUP($M66,TT_Tabelle_Riferimento!$D$127:$H$164,5,FALSE))","v":30},{"$f":"+IFERROR(VLOOKUP(OL$27&\"-\"&$M66&\"_new\",Ammortamento_Finanziario!$H:$L,5,FALSE),VLOOKUP($M66,TT_Tabelle_Riferimento!$D$127:$H$164,5,FALSE))","v":30},{"$f":"+IFERROR(VLOOKUP(OM$27&\"-\"&$M66&\"_new\",Ammortamento_Finanziario!$H:$L,5,FALSE),VLOOKUP($M66,TT_Tabelle_Riferimento!$D$127:$H$164,5,FALSE))","v":30},{"$f":"+IFERROR(VLOOKUP(ON$27&\"-\"&$M66&\"_new\",Ammortamento_Finanziario!$H:$L,5,FALSE),VLOOKUP($M66,TT_Tabelle_Riferimento!$D$127:$H$164,5,FALSE))","v":30},{"$f":"+IFERROR(VLOOKUP(OO$27&\"-\"&$M66&\"_new\",Ammortamento_Finanziario!$H:$L,5,FALSE),VLOOKUP($M66,TT_Tabelle_Riferimento!$D$127:$H$164,5,FALSE))","v":30},{"$f":"+IFERROR(VLOOKUP(OP$27&\"-\"&$M66&\"_new\",Ammortamento_Finanziario!$H:$L,5,FALSE),VLOOKUP($M66,TT_Tabelle_Riferimento!$D$127:$H$164,5,FALSE))","v":30},{"$f":"+IFERROR(VLOOKUP(OQ$27&\"-\"&$M66&\"_new\",Ammortamento_Finanziario!$H:$L,5,FALSE),VLOOKUP($M66,TT_Tabelle_Riferimento!$D$127:$H$164,5,FALSE))","v":30},{"$f":"+IFERROR(VLOOKUP(OR$27&\"-\"&$M66&\"_new\",Ammortamento_Finanziario!$H:$L,5,FALSE),VLOOKUP($M66,TT_Tabelle_Riferimento!$D$127:$H$164,5,FALSE))","v":30},{"$f":"+IFERROR(VLOOKUP(OS$27&\"-\"&$M66&\"_new\",Ammortamento_Finanziario!$H:$L,5,FALSE),VLOOKUP($M66,TT_Tabelle_Riferimento!$D$127:$H$164,5,FALSE))","v":30},{"$f":"+IFERROR(VLOOKUP(OT$27&\"-\"&$M66&\"_new\",Ammortamento_Finanziario!$H:$L,5,FALSE),VLOOKUP($M66,TT_Tabelle_Riferimento!$D$127:$H$164,5,FALSE))","v":30},{"$f":"+IFERROR(VLOOKUP(OU$27&\"-\"&$M66&\"_new\",Ammortamento_Finanziario!$H:$L,5,FALSE),VLOOKUP($M66,TT_Tabelle_Riferimento!$D$127:$H$164,5,FALSE))","v":30},{"$f":"+IFERROR(VLOOKUP(OV$27&\"-\"&$M66&\"_new\",Ammortamento_Finanziario!$H:$L,5,FALSE),VLOOKUP($M66,TT_Tabelle_Riferimento!$D$127:$H$164,5,FALSE))","v":30},{"$f":"+IFERROR(VLOOKUP(OW$27&\"-\"&$M66&\"_new\",Ammortamento_Finanziario!$H:$L,5,FALSE),VLOOKUP($M66,TT_Tabelle_Riferimento!$D$127:$H$164,5,FALSE))","v":30},{"$f":"+IFERROR(VLOOKUP(OX$27&\"-\"&$M66&\"_new\",Ammortamento_Finanziario!$H:$L,5,FALSE),VLOOKUP($M66,TT_Tabelle_Riferimento!$D$127:$H$164,5,FALSE))","v":30},{"$f":"+IFERROR(VLOOKUP(OY$27&\"-\"&$M66&\"_new\",Ammortamento_Finanziario!$H:$L,5,FALSE),VLOOKUP($M66,TT_Tabelle_Riferimento!$D$127:$H$164,5,FALSE))","v":30},{"$f":"+IFERROR(VLOOKUP(OZ$27&\"-\"&$M66&\"_new\",Ammortamento_Finanziario!$H:$L,5,FALSE),VLOOKUP($M66,TT_Tabelle_Riferimento!$D$127:$H$164,5,FALSE))","v":30},{"$f":"+IFERROR(VLOOKUP(PA$27&\"-\"&$M66&\"_new\",Ammortamento_Finanziario!$H:$L,5,FALSE),VLOOKUP($M66,TT_Tabelle_Riferimento!$D$127:$H$164,5,FALSE))","v":30},{"$f":"+IFERROR(VLOOKUP(PB$27&\"-\"&$M66&\"_new\",Ammortamento_Finanziario!$H:$L,5,FALSE),VLOOKUP($M66,TT_Tabelle_Riferimento!$D$127:$H$164,5,FALSE))","v":30},{"$f":"+IFERROR(VLOOKUP(PC$27&\"-\"&$M66&\"_new\",Ammortamento_Finanziario!$H:$L,5,FALSE),VLOOKUP($M66,TT_Tabelle_Riferimento!$D$127:$H$164,5,FALSE))","v":30},{"$f":"+IFERROR(VLOOKUP(PD$27&\"-\"&$M66&\"_new\",Ammortamento_Finanziario!$H:$L,5,FALSE),VLOOKUP($M66,TT_Tabelle_Riferimento!$D$127:$H$164,5,FALSE))","v":30},{"$f":"+IFERROR(VLOOKUP(PE$27&\"-\"&$M66&\"_new\",Ammortamento_Finanziario!$H:$L,5,FALSE),VLOOKUP($M66,TT_Tabelle_Riferimento!$D$127:$H$164,5,FALSE))","v":30},{"$f":"+IFERROR(VLOOKUP(PF$27&\"-\"&$M66&\"_new\",Ammortamento_Finanziario!$H:$L,5,FALSE),VLOOKUP($M66,TT_Tabelle_Riferimento!$D$127:$H$164,5,FALSE))","v":30},{"$f":"+IFERROR(VLOOKUP(PG$27&\"-\"&$M66&\"_new\",Ammortamento_Finanziario!$H:$L,5,FALSE),VLOOKUP($M66,TT_Tabelle_Riferimento!$D$127:$H$164,5,FALSE))","v":30},{"$f":"+IFERROR(VLOOKUP(PH$27&\"-\"&$M66&\"_new\",Ammortamento_Finanziario!$H:$L,5,FALSE),VLOOKUP($M66,TT_Tabelle_Riferimento!$D$127:$H$164,5,FALSE))","v":30},{"$f":"+IFERROR(VLOOKUP(PI$27&\"-\"&$M66&\"_new\",Ammortamento_Finanziario!$H:$L,5,FALSE),VLOOKUP($M66,TT_Tabelle_Riferimento!$D$127:$H$164,5,FALSE))","v":30},{"$f":"+IFERROR(VLOOKUP(PJ$27&\"-\"&$M66&\"_new\",Ammortamento_Finanziario!$H:$L,5,FALSE),VLOOKUP($M66,TT_Tabelle_Riferimento!$D$127:$H$164,5,FALSE))","v":30},{"$f":"+IFERROR(VLOOKUP(PK$27&\"-\"&$M66&\"_new\",Ammortamento_Finanziario!$H:$L,5,FALSE),VLOOKUP($M66,TT_Tabelle_Riferimento!$D$127:$H$164,5,FALSE))","v":30},{"$f":"+IFERROR(VLOOKUP(PL$27&\"-\"&$M66&\"_new\",Ammortamento_Finanziario!$H:$L,5,FALSE),VLOOKUP($M66,TT_Tabelle_Riferimento!$D$127:$H$164,5,FALSE))","v":30},{"$f":"+IFERROR(VLOOKUP(PM$27&\"-\"&$M66&\"_new\",Ammortamento_Finanziario!$H:$L,5,FALSE),VLOOKUP($M66,TT_Tabelle_Riferimento!$D$127:$H$164,5,FALSE))","v":30},{"$f":"+IFERROR(VLOOKUP(PN$27&\"-\"&$M66&\"_new\",Ammortamento_Finanziario!$H:$L,5,FALSE),VLOOKUP($M66,TT_Tabelle_Riferimento!$D$127:$H$164,5,FALSE))","v":30},{"$f":"+IFERROR(VLOOKUP(PO$27&\"-\"&$M66&\"_new\",Ammortamento_Finanziario!$H:$L,5,FALSE),VLOOKUP($M66,TT_Tabelle_Riferimento!$D$127:$H$164,5,FALSE))","v":30},{"$f":"+IFERROR(VLOOKUP(PP$27&\"-\"&$M66&\"_new\",Ammortamento_Finanziario!$H:$L,5,FALSE),VLOOKUP($M66,TT_Tabelle_Riferimento!$D$127:$H$164,5,FALSE))","v":30},{"$f":"+IFERROR(VLOOKUP(PQ$27&\"-\"&$M66&\"_new\",Ammortamento_Finanziario!$H:$L,5,FALSE),VLOOKUP($M66,TT_Tabelle_Riferimento!$D$127:$H$164,5,FALSE))","v":30},{"$f":"+IFERROR(VLOOKUP(PR$27&\"-\"&$M66&\"_new\",Ammortamento_Finanziario!$H:$L,5,FALSE),VLOOKUP($M66,TT_Tabelle_Riferimento!$D$127:$H$164,5,FALSE))","v":30},{"$f":"+IFERROR(VLOOKUP(PS$27&\"-\"&$M66&\"_new\",Ammortamento_Finanziario!$H:$L,5,FALSE),VLOOKUP($M66,TT_Tabelle_Riferimento!$D$127:$H$164,5,FALSE))","v":30},{"$f":"+IFERROR(VLOOKUP(PT$27&\"-\"&$M66&\"_new\",Ammortamento_Finanziario!$H:$L,5,FALSE),VLOOKUP($M66,TT_Tabelle_Riferimento!$D$127:$H$164,5,FALSE))","v":30},{"$f":"+IFERROR(VLOOKUP(PU$27&\"-\"&$M66&\"_new\",Ammortamento_Finanziario!$H:$L,5,FALSE),VLOOKUP($M66,TT_Tabelle_Riferimento!$D$127:$H$164,5,FALSE))","v":30},{"$f":"+IFERROR(VLOOKUP(PV$27&\"-\"&$M66&\"_new\",Ammortamento_Finanziario!$H:$L,5,FALSE),VLOOKUP($M66,TT_Tabelle_Riferimento!$D$127:$H$164,5,FALSE))","v":30},{"$f":"+IFERROR(VLOOKUP(PW$27&\"-\"&$M66&\"_new\",Ammortamento_Finanziario!$H:$L,5,FALSE),VLOOKUP($M66,TT_Tabelle_Riferimento!$D$127:$H$164,5,FALSE))","v":30},{"$f":"+IFERROR(VLOOKUP(PX$27&\"-\"&$M66&\"_new\",Ammortamento_Finanziario!$H:$L,5,FALSE),VLOOKUP($M66,TT_Tabelle_Riferimento!$D$127:$H$164,5,FALSE))","v":30},{"$f":"+IFERROR(VLOOKUP(PY$27&\"-\"&$M66&\"_new\",Ammortamento_Finanziario!$H:$L,5,FALSE),VLOOKUP($M66,TT_Tabelle_Riferimento!$D$127:$H$164,5,FALSE))","v":30},{"$f":"+IFERROR(VLOOKUP(PZ$27&\"-\"&$M66&\"_new\",Ammortamento_Finanziario!$H:$L,5,FALSE),VLOOKUP($M66,TT_Tabelle_Riferimento!$D$127:$H$164,5,FALSE))","v":30},{"$f":"+IFERROR(VLOOKUP(QA$27&\"-\"&$M66&\"_new\",Ammortamento_Finanziario!$H:$L,5,FALSE),VLOOKUP($M66,TT_Tabelle_Riferimento!$D$127:$H$164,5,FALSE))","v":30},{"$f":"+IFERROR(VLOOKUP(QB$27&\"-\"&$M66&\"_new\",Ammortamento_Finanziario!$H:$L,5,FALSE),VLOOKUP($M66,TT_Tabelle_Riferimento!$D$127:$H$164,5,FALSE))","v":30},{"$f":"+IFERROR(VLOOKUP(QC$27&\"-\"&$M66&\"_new\",Ammortamento_Finanziario!$H:$L,5,FALSE),VLOOKUP($M66,TT_Tabelle_Riferimento!$D$127:$H$164,5,FALSE))","v":30},{"$f":"+IFERROR(VLOOKUP(QD$27&\"-\"&$M66&\"_new\",Ammortamento_Finanziario!$H:$L,5,FALSE),VLOOKUP($M66,TT_Tabelle_Riferimento!$D$127:$H$164,5,FALSE))","v":30},{"$f":"+IFERROR(VLOOKUP(QE$27&\"-\"&$M66&\"_new\",Ammortamento_Finanziario!$H:$L,5,FALSE),VLOOKUP($M66,TT_Tabelle_Riferimento!$D$127:$H$164,5,FALSE))","v":30},{"$f":"+IFERROR(VLOOKUP(QF$27&\"-\"&$M66&\"_new\",Ammortamento_Finanziario!$H:$L,5,FALSE),VLOOKUP($M66,TT_Tabelle_Riferimento!$D$127:$H$164,5,FALSE))","v":30},{"$f":"+IFERROR(VLOOKUP(QG$27&\"-\"&$M66&\"_new\",Ammortamento_Finanziario!$H:$L,5,FALSE),VLOOKUP($M66,TT_Tabelle_Riferimento!$D$127:$H$164,5,FALSE))","v":30},{"$f":"+IFERROR(VLOOKUP(QH$27&\"-\"&$M66&\"_new\",Ammortamento_Finanziario!$H:$L,5,FALSE),VLOOKUP($M66,TT_Tabelle_Riferimento!$D$127:$H$164,5,FALSE))","v":30},{"$f":"+IFERROR(VLOOKUP(QI$27&\"-\"&$M66&\"_new\",Ammortamento_Finanziario!$H:$L,5,FALSE),VLOOKUP($M66,TT_Tabelle_Riferimento!$D$127:$H$164,5,FALSE))","v":30},{"$f":"+IFERROR(VLOOKUP(QJ$27&\"-\"&$M66&\"_new\",Ammortamento_Finanziario!$H:$L,5,FALSE),VLOOKUP($M66,TT_Tabelle_Riferimento!$D$127:$H$164,5,FALSE))","v":30},{"$f":"+IFERROR(VLOOKUP(QK$27&\"-\"&$M66&\"_new\",Ammortamento_Finanziario!$H:$L,5,FALSE),VLOOKUP($M66,TT_Tabelle_Riferimento!$D$127:$H$164,5,FALSE))","v":30},{"$f":"+IFERROR(VLOOKUP(QL$27&\"-\"&$M66&\"_new\",Ammortamento_Finanziario!$H:$L,5,FALSE),VLOOKUP($M66,TT_Tabelle_Riferimento!$D$127:$H$164,5,FALSE))","v":30},{"$f":"+IFERROR(VLOOKUP(QM$27&\"-\"&$M66&\"_new\",Ammortamento_Finanziario!$H:$L,5,FALSE),VLOOKUP($M66,TT_Tabelle_Riferimento!$D$127:$H$164,5,FALSE))","v":30},{"$f":"+IFERROR(VLOOKUP(QN$27&\"-\"&$M66&\"_new\",Ammortamento_Finanziario!$H:$L,5,FALSE),VLOOKUP($M66,TT_Tabelle_Riferimento!$D$127:$H$164,5,FALSE))","v":30},{"$f":"+IFERROR(VLOOKUP(QO$27&\"-\"&$M66&\"_new\",Ammortamento_Finanziario!$H:$L,5,FALSE),VLOOKUP($M66,TT_Tabelle_Riferimento!$D$127:$H$164,5,FALSE))","v":30},{"$f":"+IFERROR(VLOOKUP(QP$27&\"-\"&$M66&\"_new\",Ammortamento_Finanziario!$H:$L,5,FALSE),VLOOKUP($M66,TT_Tabelle_Riferimento!$D$127:$H$164,5,FALSE))","v":30},{"$f":"+IFERROR(VLOOKUP(QQ$27&\"-\"&$M66&\"_new\",Ammortamento_Finanziario!$H:$L,5,FALSE),VLOOKUP($M66,TT_Tabelle_Riferimento!$D$127:$H$164,5,FALSE))","v":30},{"$f":"+IFERROR(VLOOKUP(QR$27&\"-\"&$M66&\"_new\",Ammortamento_Finanziario!$H:$L,5,FALSE),VLOOKUP($M66,TT_Tabelle_Riferimento!$D$127:$H$164,5,FALSE))","v":30},{"$f":"+IFERROR(VLOOKUP(QS$27&\"-\"&$M66&\"_new\",Ammortamento_Finanziario!$H:$L,5,FALSE),VLOOKUP($M66,TT_Tabelle_Riferimento!$D$127:$H$164,5,FALSE))","v":30},{"$f":"+IFERROR(VLOOKUP(QT$27&\"-\"&$M66&\"_new\",Ammortamento_Finanziario!$H:$L,5,FALSE),VLOOKUP($M66,TT_Tabelle_Riferimento!$D$127:$H$164,5,FALSE))","v":30},{"$f":"+IFERROR(VLOOKUP(QU$27&\"-\"&$M66&\"_new\",Ammortamento_Finanziario!$H:$L,5,FALSE),VLOOKUP($M66,TT_Tabelle_Riferimento!$D$127:$H$164,5,FALSE))","v":30},{"$f":"+IFERROR(VLOOKUP(QV$27&\"-\"&$M66&\"_new\",Ammortamento_Finanziario!$H:$L,5,FALSE),VLOOKUP($M66,TT_Tabelle_Riferimento!$D$127:$H$164,5,FALSE))","v":30},{"$f":"+IFERROR(VLOOKUP(QW$27&\"-\"&$M66&\"_new\",Ammortamento_Finanziario!$H:$L,5,FALSE),VLOOKUP($M66,TT_Tabelle_Riferimento!$D$127:$H$164,5,FALSE))","v":30},{"$f":"+IFERROR(VLOOKUP(QX$27&\"-\"&$M66&\"_new\",Ammortamento_Finanziario!$H:$L,5,FALSE),VLOOKUP($M66,TT_Tabelle_Riferimento!$D$127:$H$164,5,FALSE))","v":30},{"$f":"+IFERROR(VLOOKUP(QY$27&\"-\"&$M66&\"_new\",Ammortamento_Finanziario!$H:$L,5,FALSE),VLOOKUP($M66,TT_Tabelle_Riferimento!$D$127:$H$164,5,FALSE))","v":30},{"$f":"+IFERROR(VLOOKUP(QZ$27&\"-\"&$M66&\"_new\",Ammortamento_Finanziario!$H:$L,5,FALSE),VLOOKUP($M66,TT_Tabelle_Riferimento!$D$127:$H$164,5,FALSE))","v":30},{"$f":"+IFERROR(VLOOKUP(RA$27&\"-\"&$M66&\"_new\",Ammortamento_Finanziario!$H:$L,5,FALSE),VLOOKUP($M66,TT_Tabelle_Riferimento!$D$127:$H$164,5,FALSE))","v":30},{"$f":"+IFERROR(VLOOKUP(RB$27&\"-\"&$M66&\"_new\",Ammortamento_Finanziario!$H:$L,5,FALSE),VLOOKUP($M66,TT_Tabelle_Riferimento!$D$127:$H$164,5,FALSE))","v":30},{"$f":"+IFERROR(VLOOKUP(RC$27&\"-\"&$M66&\"_new\",Ammortamento_Finanziario!$H:$L,5,FALSE),VLOOKUP($M66,TT_Tabelle_Riferimento!$D$127:$H$164,5,FALSE))","v":30},{"$f":"+IFERROR(VLOOKUP(RD$27&\"-\"&$M66&\"_new\",Ammortamento_Finanziario!$H:$L,5,FALSE),VLOOKUP($M66,TT_Tabelle_Riferimento!$D$127:$H$164,5,FALSE))","v":30},{"$f":"+IFERROR(VLOOKUP(RE$27&\"-\"&$M66&\"_new\",Ammortamento_Finanziario!$H:$L,5,FALSE),VLOOKUP($M66,TT_Tabelle_Riferimento!$D$127:$H$164,5,FALSE))","v":30},{"$f":"+IFERROR(VLOOKUP(RF$27&\"-\"&$M66&\"_new\",Ammortamento_Finanziario!$H:$L,5,FALSE),VLOOKUP($M66,TT_Tabelle_Riferimento!$D$127:$H$164,5,FALSE))","v":30},{"$f":"+IFERROR(VLOOKUP(RG$27&\"-\"&$M66&\"_new\",Ammortamento_Finanziario!$H:$L,5,FALSE),VLOOKUP($M66,TT_Tabelle_Riferimento!$D$127:$H$164,5,FALSE))","v":30},{"$f":"+IFERROR(VLOOKUP(RH$27&\"-\"&$M66&\"_new\",Ammortamento_Finanziario!$H:$L,5,FALSE),VLOOKUP($M66,TT_Tabelle_Riferimento!$D$127:$H$164,5,FALSE))","v":30},{"$f":"+IFERROR(VLOOKUP(RI$27&\"-\"&$M66&\"_new\",Ammortamento_Finanziario!$H:$L,5,FALSE),VLOOKUP($M66,TT_Tabelle_Riferimento!$D$127:$H$164,5,FALSE))","v":30},{"$f":"+IFERROR(VLOOKUP(RJ$27&\"-\"&$M66&\"_new\",Ammortamento_Finanziario!$H:$L,5,FALSE),VLOOKUP($M66,TT_Tabelle_Riferimento!$D$127:$H$164,5,FALSE))","v":30},{"$f":"+IFERROR(VLOOKUP(RK$27&\"-\"&$M66&\"_new\",Ammortamento_Finanziario!$H:$L,5,FALSE),VLOOKUP($M66,TT_Tabelle_Riferimento!$D$127:$H$164,5,FALSE))","v":30},{"$f":"+IFERROR(VLOOKUP(RL$27&\"-\"&$M66&\"_new\",Ammortamento_Finanziario!$H:$L,5,FALSE),VLOOKUP($M66,TT_Tabelle_Riferimento!$D$127:$H$164,5,FALSE))","v":30},{"$f":"+IFERROR(VLOOKUP(RM$27&\"-\"&$M66&\"_new\",Ammortamento_Finanziario!$H:$L,5,FALSE),VLOOKUP($M66,TT_Tabelle_Riferimento!$D$127:$H$164,5,FALSE))","v":30},{"$f":"+IFERROR(VLOOKUP(RN$27&\"-\"&$M66&\"_new\",Ammortamento_Finanziario!$H:$L,5,FALSE),VLOOKUP($M66,TT_Tabelle_Riferimento!$D$127:$H$164,5,FALSE))","v":30},{"$f":"+IFERROR(VLOOKUP(RO$27&\"-\"&$M66&\"_new\",Ammortamento_Finanziario!$H:$L,5,FALSE),VLOOKUP($M66,TT_Tabelle_Riferimento!$D$127:$H$164,5,FALSE))","v":30},{"$f":"+IFERROR(VLOOKUP(RP$27&\"-\"&$M66&\"_new\",Ammortamento_Finanziario!$H:$L,5,FALSE),VLOOKUP($M66,TT_Tabelle_Riferimento!$D$127:$H$164,5,FALSE))","v":30},{"$f":"+IFERROR(VLOOKUP(RQ$27&\"-\"&$M66&\"_new\",Ammortamento_Finanziario!$H:$L,5,FALSE),VLOOKUP($M66,TT_Tabelle_Riferimento!$D$127:$H$164,5,FALSE))","v":30},{"$f":"+IFERROR(VLOOKUP(RR$27&\"-\"&$M66&\"_new\",Ammortamento_Finanziario!$H:$L,5,FALSE),VLOOKUP($M66,TT_Tabelle_Riferimento!$D$127:$H$164,5,FALSE))","v":30},{"$f":"+IFERROR(VLOOKUP(RS$27&\"-\"&$M66&\"_new\",Ammortamento_Finanziario!$H:$L,5,FALSE),VLOOKUP($M66,TT_Tabelle_Riferimento!$D$127:$H$164,5,FALSE))","v":30},{"$f":"+IFERROR(VLOOKUP(RT$27&\"-\"&$M66&\"_new\",Ammortamento_Finanziario!$H:$L,5,FALSE),VLOOKUP($M66,TT_Tabelle_Riferimento!$D$127:$H$164,5,FALSE))","v":30},{"$f":"+IFERROR(VLOOKUP(RU$27&\"-\"&$M66&\"_new\",Ammortamento_Finanziario!$H:$L,5,FALSE),VLOOKUP($M66,TT_Tabelle_Riferimento!$D$127:$H$164,5,FALSE))","v":30},{"$f":"+IFERROR(VLOOKUP(RV$27&\"-\"&$M66&\"_new\",Ammortamento_Finanziario!$H:$L,5,FALSE),VLOOKUP($M66,TT_Tabelle_Riferimento!$D$127:$H$164,5,FALSE))","v":30}]
[null,null,null,"FA",{"$f":"+SUMIFS(IMN_gestore!Q:Q,IMN_gestore!$E:$E,\">=\"&2012,IMN_gestore!$E:$E,\"<=\"&2022,IMN_gestore!$G:$G,\"Env\")","v":0},{"$f":"+SUMIFS(IMN_gestore!AB:AB,IMN_gestore!$E:$E,\">=\"&2012,IMN_gestore!$E:$E,\"<=\"&2023,IMN_gestore!$G:$G,\"Env\")","v":0},{"$f":"+SUMIFS(IMN_gestore!AM:AM,IMN_gestore!$E:$E,\">=\"&2012,IMN_gestore!$E:$E,\"<=\"&2024,IMN_gestore!$G:$G,\"Env\")","v":0},{"$f":"+SUMIFS(IMN_gestore!AX:AX,IMN_gestore!$E:$E,\">=\"&2012,IMN_gestore!$E:$E,\"<=\"&2025,IMN_gestore!$G:$G,\"Env\")","v":0},{"$f":"+SUMIFS(IMN_gestore!$BI:$BI,IMN_gestore!$E:$E,\">=\"&2012,IMN_gestore!$E:$E,\"<=\"&2026,IMN_gestore!$G:$G,\"Env\")","v":0},{"$f":"+SUMIFS(IMN_gestore!$BT:$BT,IMN_gestore!$E:$E,\">=\"&2012,IMN_gestore!$E:$E,\"<=\"&2027,IMN_gestore!$G:$G,\"Env\")","v":0}]
[null,null,null,"IMN",{"$f":"+SUMIFS(IMN_gestore!R:R,IMN_gestore!$E:$E,\">=\"&2012,IMN_gestore!$E:$E,\"<=\"&2022,IMN_gestore!$G:$G,\"Env\")","v":0},{"$f":"+SUMIFS(IMN_gestore!AC:AC,IMN_gestore!$E:$E,\">=\"&2012,IMN_gestore!$E:$E,\"<=\"&2023,IMN_gestore!$G:$G,\"Env\")","v":0},{"$f":"+SUMIFS(IMN_gestore!AN:AN,IMN_gestore!$E:$E,\">=\"&2012,IMN_gestore!$E:$E,\"<=\"&2024,IMN_gestore!$G:$G,\"Env\")","v":0},{"$f":"+SUMIFS(IMN_gestore!AY:AY,IMN_gestore!$E:$E,\">=\"&2012,IMN_gestore!$E:$E,\"<=\"&2025,IMN_gestore!$G:$G,\"Env\")","v":0},{"$f":"+SUMIFS(IMN_gestore!$BJ:$BJ,IMN_gestore!$E:$E,\">=\"&2012,IMN_gestore!$E:$E,\"<=\"&2026,IMN_gestore!$G:$G,\"Env\")","v":0},{"$f":"+SUMIFS(IMN_gestore!$BU:$BU,IMN_gestore!$E:$E,\">=\"&2012,IMN_gestore!$E:$E,\"<=\"&2027,IMN_gestore!$G:$G,\"Env\")","v":0}]
[null,null,null,"AMM",{"$f":"+SUMIFS(IMN_gestore!T:T,IMN_gestore!$E:$E,\">=\"&2012,IMN_gestore!$E:$E,\"<=\"&2022,IMN_gestore!$G:$G,\"Env\")","v":0},{"$f":"+SUMIFS(IMN_gestore!AE:AE,IMN_gestore!$E:$E,\">=\"&2012,IMN_gestore!$E:$E,\"<=\"&2023,IMN_gestore!$G:$G,\"Env\")","v":0},{"$f":"+SUMIFS(IMN_gestore!AP:AP,IMN_gestore!$E:$E,\">=\"&2012,IMN_gestore!$E:$E,\"<=\"&2024,IMN_gestore!$G:$G,\"Env\")","v":0},{"$f":"+SUMIFS(IMN_gestore!BA:BA,IMN_gestore!$E:$E,\">=\"&2012,IMN_gestore!$E:$E,\"<=\"&2025,IMN_gestore!$G:$G,\"Env\")","v":0},{"$f":"+SUMIFS(IMN_gestore!$BL:$BL,IMN_gestore!$E:$E,\">=\"&2012,IMN_gestore!$E:$E,\"<=\"&2026,IMN_gestore!$G:$G,\"Env\")","v":0},{"$f":"+SUMIFS(IMN_gestore!$BW:$BW,IMN_gestore!$E:$E,\">=\"&2012,IMN_gestore!$E:$E,\"<=\"&2027,IMN_gestore!$G:$G,\"Env\")","v":0}]
[null,null,null,"CFP",{"$f":"+SUMIFS(IMN_gestore!U:U,IMN_gestore!$E:$E,\">=\"&2012,IMN_gestore!$E:$E,\"<=\"&2022,IMN_gestore!$G:$G,\"Env\")","v":0},{"$f":"+SUMIFS(IMN_gestore!AF:AF,IMN_gestore!$E:$E,\">=\"&2012,IMN_gestore!$E:$E,\"<=\"&2023,IMN_gestore!$G:$G,\"Env\")","v":0},{"$f":"+SUMIFS(IMN_gestore!AQ:AQ,IMN_gestore!$E:$E,\">=\"&2012,IMN_gestore!$E:$E,\"<=\"&2024,IMN_gestore!$G:$G,\"Env\")","v":0},{"$f":"+SUMIFS(IMN_gestore!BB:BB,IMN_gestore!$E:$E,\">=\"&2012,IMN_gestore!$E:$E,\"<=\"&2025,IMN_gestore!$G:$G,\"Env\")","v":0},{"$f":"+SUMIFS(IMN_gestore!$BM:$BM,IMN_gestore!$E:$E,\">=\"&2012,IMN_gestore!$E:$E,\"<=\"&2026,IMN_gestore!$G:$G,\"Env\")","v":0},{"$f":"+SUMIFS(IMN_gestore!$BX:$BX,IMN_gestore!$E:$E,\">=\"&2012,IMN_gestore!$E:$E,\"<=\"&2027,IMN_gestore!$G:$G,\"Env\")","v":0}]
[null,null,null,"FA CFP",{"$f":"+SUMIFS(IMN_gestore!V:V,IMN_gestore!$E:$E,\">=\"&2012,IMN_gestore!$E:$E,\"<=\"&2022,IMN_gestore!$G:$G,\"Env\")","v":0},{"$f":"+SUMIFS(IMN_gestore!AG:AG,IMN_gestore!$E:$E,\">=\"&2012,IMN_gestore!$E:$E,\"<=\"&2023,IMN_gestore!$G:$G,\"Env\")","v":0},{"$f":"+SUMIFS(IMN_gestore!AR:AR,IMN_gestore!$E:$E,\">=\"&2012,IMN_gestore!$E:$E,\"<=\"&2024,IMN_gestore!$G:$G,\"Env\")","v":0},{"$f":"+SUMIFS(IMN_gestore!BC:BC,IMN_gestore!$E:$E,\">=\"&2012,IMN_gestore!$E:$E,\"<=\"&2025,IMN_gestore!$G:$G,\"Env\")","v":0},{"$f":"+SUMIFS(IMN_gestore!$BN:$BN,IMN_gestore!$E:$E,\">=\"&2012,IMN_gestore!$E:$E,\"<=\"&2026,IMN_gestore!$G:$G,\"Env\")","v":0},{"$f":"+SUMIFS(IMN_gestore!$BY:$BY,IMN_gestore!$E:$E,\">=\"&2012,IMN_gestore!$E:$E,\"<=\"&2027,IMN_gestore!$G:$G,\"Env\")","v":0}]
[null,null,null,"CINfp",{"$f":"+SUMIFS(IMN_gestore!W:W,IMN_gestore!$E:$E,\">=\"&2012,IMN_gestore!$E:$E,\"<=\"&2022,IMN_gestore!$G:$G,\"Env\")","v":0},{"$f":"+SUMIFS(IMN_gestore!AH:AH,IMN_gestore!$E:$E,\">=\"&2012,IMN_gestore!$E:$E,\"<=\"&2023,IMN_gestore!$G:$G,\"Env\")","v":0},{"$f":"+SUMIFS(IMN_gestore!AS:AS,IMN_gestore!$E:$E,\">=\"&2012,IMN_gestore!$E:$E,\"<=\"&2024,IMN_gestore!$G:$G,\"Env\")","v":0},{"$f":"+SUMIFS(IMN_gestore!BD:BD,IMN_gestore!$E:$E,\">=\"&2012,IMN_gestore!$E:$E,\"<=\"&2025,IMN_gestore!$G:$G,\"Env\")","v":0},{"$f":"+SUMIFS(IMN_gestore!$BO:$BO,IMN_gestore!$E:$E,\">=\"&2012,IMN_gestore!$E:$E,\"<=\"&2026,IMN_gestore!$G:$G,\"Env\")","v":0},{"$f":"+SUMIFS(IMN_gestore!$BZ:$BZ,IMN_gestore!$E:$E,\">=\"&2012,IMN_gestore!$E:$E,\"<=\"&2027,IMN_gestore!$G:$G,\"Env\")","v":0}]
[null,null,null,"AMMcfp",{"$f":"+SUMIFS(IMN_gestore!X:X,IMN_gestore!$E:$E,\">=\"&2012,IMN_gestore!$E:$E,\"<=\"&2022,IMN_gestore!$G:$G,\"Env\")","v":0},{"$f":"+SUMIFS(IMN_gestore!AI:AI,IMN_gestore!$E:$E,\">=\"&2012,IMN_gestore!$E:$E,\"<=\"&2023,IMN_gestore!$G:$G,\"Env\")","v":0},{"$f":"+SUMIFS(IMN_gestore!AT:AT,IMN_gestore!$E:$E,\">=\"&2012,IMN_gestore!$E:$E,\"<=\"&2024,IMN_gestore!$G:$G,\"Env\")","v":0},{"$f":"+SUMIFS(IMN_gestore!BE:BE,IMN_gestore!$E:$E,\">=\"&2012,IMN_gestore!$E:$E,\"<=\"&2025,IMN_gestore!$G:$G,\"Env\")","v":0},{"$f":"+SUMIFS(IMN_gestore!$BP:$BP,IMN_gestore!$E:$E,\">=\"&2012,IMN_gestore!$E:$E,\"<=\"&2026,IMN_gestore!$G:$G,\"Env\")","v":0},{"$f":"+SUMIFS(IMN_gestore!$CA:$CA,IMN_gestore!$E:$E,\">=\"&2012,IMN_gestore!$E:$E,\"<=\"&2027,IMN_gestore!$G:$G,\"Env\")","v":0}]
[]
[]
[null,null,null,"Immobilizzazioni nette del gestore - solo nuovi investimenti (serie cumulata) - di cui ERCres"]
[null,null,null,null,2024,2025,2026,2027,2028,2029]
[null,null,null,"IML",{"$f":"+SUMIFS(IMN_gestore!P:P,IMN_gestore!$E:$E,\">=\"&2012,IMN_gestore!$E:$E,\"<=\"&2022,IMN_gestore!$G:$G,\"Res\")","v":0},{"$f":"+SUMIFS(IMN_gestore!AA:AA,IMN_gestore!$E:$E,\">=\"&2012,IMN_gestore!$E:$E,\"<=\"&2023,IMN_gestore!$G:$G,\"Res\")","v":0},{"$f":"+SUMIFS(IMN_gestore!AL:AL,IMN_gestore!$E:$E,\">=\"&2012,IMN_gestore!$E:$E,\"<=\"&2024,IMN_gestore!$G:$G,\"Res\")","v":0},{"$f":"+SUMIFS(IMN_gestore!AW:AW,IMN_gestore!$E:$E,\">=\"&2012,IMN_gestore!$E:$E,\"<=\"&2025,IMN_gestore!$G:$G,\"Res\")","v":0},{"$f":"+SUMIFS(IMN_gestore!$BH:$BH,IMN_gestore!$E:$E,\">=\"&2012,IMN_gestore!$E:$E,\"<=\"&2026,IMN_gestore!$G:$G,\"Res\")","v":0},{"$f":"+SUMIFS(IMN_gestore!$BS:$BS,IMN_gestore!$E:$E,\">=\"&2012,IMN_gestore!$E:$E,\"<=\"&2027,IMN_gestore!$G:$G,\"Res\")","v":0}]
[null,null,null,"FA",{"$f":"+SUMIFS(IMN_gestore!Q:Q,IMN_gestore!$E:$E,\">=\"&2012,IMN_gestore!$E:$E,\"<=\"&2022,IMN_gestore!$G:$G,\"Res\")","v":0},{"$f":"+SUMIFS(IMN_gestore!AB:AB,IMN_gestore!$E:$E,\">=\"&2012,IMN_gestore!$E:$E,\"<=\"&2023,IMN_gestore!$G:$G,\"Res\")","v":0},{"$f":"+SUMIFS(IMN_gestore!AM:AM,IMN_gestore!$E:$E,\">=\"&2012,IMN_gestore!$E:$E,\"<=\"&2024,IMN_gestore!$G:$G,\"Res\")","v":0},{"$f":"+SUMIFS(IMN_gestore!AX:AX,IMN_gestore!$E:$E,\">=\"&2012,IMN_gestore!$E:$E,\"<=\"&2025,IMN_gestore!$G:$G,\"Res\")","v":0},{"$f":"+SUMIFS(IMN_gestore!$BI:$BI,IMN_gestore!$E:$E,\">=\"&2012,IMN_gestore!$E:$E,\"<=\"&2026,IMN_gestore!$G:$G,\"Res\")","v":0},{"$f":"+SUMIFS(IMN_gestore!$BT:$BT,IMN_gestore!$E:$E,\">=\"&2012,IMN_gestore!$E:$E,\"<=\"&2027,IMN_gestore!$G:$G,\"Res\")","v":0},null,null,"vite regolatorie proprietari (ammortamento finanziario non previsto, cespiti fino al 2019)"]
[null,null,null,"IMN",{"$f":"+SUMIFS(IMN_gestore!R:R,IMN_gestore!$E:$E,\">=\"&2012,IMN_gestore!$E:$E,\"<=\"&2022,IMN_gestore!$G:$G,\"Res\")","v":0},{"$f":"+SUMIFS(IMN_gestore!AC:AC,IMN_gestore!$E:$E,\">=\"&2012,IMN_gestore!$E:$E,\"<=\"&2023,IMN_gestore!$G:$G,\"Res\")","v":0},{"$f":"+SUMIFS(IMN_gestore!AN:AN,IMN_gestore!$E:$E,\">=\"&2012,IMN_gestore!$E:$E,\"<=\"&2024,IMN_gestore!$G:$G,\"Res\")","v":0},{"$f":"+SUMIFS(IMN_gestore!AY:AY,IMN_gestore!$E:$E,\">=\"&2012,IMN_gestore!$E:$E,\"<=\"&2025,IMN_gestore!$G:$G,\"Res\")","v":0},{"$f":"+SUMIFS(IMN_gestore!$BJ:$BJ,IMN_gestore!$E:$E,\">=\"&2012,IMN_gestore!$E:$E,\"<=\"&2026,IMN_gestore!$G:$G,\"Res\")","v":0},{"$f":"+SUMIFS(IMN_gestore!$BU:$BU,IMN_gestore!$E:$E,\">=\"&2012,IMN_gestore!$E:$E,\"<=\"&2027,IMN_gestore!$G:$G,\"Res\")","v":0}]
[null,null,null,"AMM",{"$f":"+SUMIFS(IMN_gestore!T:T,IMN_gestore!$E:$E,\">=\"&2012,IMN_gestore!$E:$E,\"<=\"&2022,IMN_gestore!$G:$G,\"Res\")","v":0},{"$f":"+SUMIFS(IMN_gestore!AE:AE,IMN_gestore!$E:$E,\">=\"&2012,IMN_gestore!$E:$E,\"<=\"&2023,IMN_gestore!$G:$G,\"Res\")","v":0},{"$f":"+SUMIFS(IMN_gestore!AP:AP,IMN_gestore!$E:$E,\">=\"&2012,IMN_gestore!$E:$E,\"<=\"&2024,IMN_gestore!$G:$G,\"Res\")","v":0},{"$f":"+SUMIFS(IMN_gestore!BA:BA,IMN_gestore!$E:$E,\">=\"&2012,IMN_gestore!$E:$E,\"<=\"&2025,IMN_gestore!$G:$G,\"Res\")","v":0},{"$f":"+SUMIFS(IMN_gestore!$BL:$BL,IMN_gestore!$E:$E,\">=\"&2012,IMN_gestore!$E:$E,\"<=\"&2026,IMN_gestore!$G:$G,\"Res\")","v":0},{"$f":"+SUMIFS(IMN_gestore!$BW:$BW,IMN_gestore!$E:$E,\">=\"&2012,IMN_gestore!$E:$E,\"<=\"&2027,IMN_gestore!$G:$G,\"Res\")","v":0},null,null,"Codice",2011,2012,2013,2014,2015,2016,2017,2018,2019,2020,2021,2022,2023,2024,2025,2026,2027,2028,2029,2030,2031,2032,2033,2034,2035,2036,2037,2038,2039,2040,2041,2042,2043,2044,2045,2046,2047]
[null,null,null,"CFP",{"$f":"+SUMIFS(IMN_gestore!U:U,IMN_gestore!$E:$E,\">=\"&2012,IMN_gestore!$E:$E,\"<=\"&2022,IMN_gestore!$G:$G,\"Res\")","v":0},{"$f":"+SUMIFS(IMN_gestore!AF:AF,IMN_gestore!$E:$E,\">=\"&2012,IMN_gestore!$E:$E,\"<=\"&2023,IMN_gestore!$G:$G,\"Res\")","v":0},{"$f":"+SUMIFS(IMN_gestore!AQ:AQ,IMN_gestore!$E:$E,\">=\"&2012,IMN_gestore!$E:$E,\"<=\"&2024,IMN_gestore!$G:$G,\"Res\")","v":0},{"$f":"+SUMIFS(IMN_gestore!BB:BB,IMN_gestore!$E:$E,\">=\"&2012,IMN_gestore!$E:$E,\"<=\"&2025,IMN_gestore!$G:$G,\"Res\")","v":0},{"$f":"+SUMIFS(IMN_gestore!$BM:$BM,IMN_gestore!$E:$E,\">=\"&2012,IMN_gestore!$E:$E,\"<=\"&2026,IMN_gestore!$G:$G,\"Res\")","v":0},{"$f":"+SUMIFS(IMN_gestore!$BX:$BX,IMN_gestore!$E:$E,\">=\"&2012,IMN_gestore!$E:$E,\"<=\"&2027,IMN_gestore!$G:$G,\"Res\")","v":0},null,null,1]
[null,null,null,"FA CFP",{"$f":"+SUMIFS(IMN_gestore!V:V,IMN_gestore!$E:$E,\">=\"&2012,IMN_gestore!$E:$E,\"<=\"&2022,IMN_gestore!$G:$G,\"Res\")","v":0},{"$f":"+SUMIFS(IMN_gestore!AG:AG,IMN_gestore!$E:$E,\">=\"&2012,IMN_gestore!$E:$E,\"<=\"&2023,IMN_gestore!$G:$G,\"Res\")","v":0},{"$f":"+SUMIFS(IMN_gestore!AR:AR,IMN_gestore!$E:$E,\">=\"&2012,IMN_gestore!$E:$E,\"<=\"&2024,IMN_gestore!$G:$G,\"Res\")","v":0},{"$f":"+SUMIFS(IMN_gestore!BC:BC,IMN_gestore!$E:$E,\">=\"&2012,IMN_gestore!$E:$E,\"<=\"&2025,IMN_gestore!$G:$G,\"Res\")","v":0},{"$f":"+SUMIFS(IMN_gestore!$BN:$BN,IMN_gestore!$E:$E,\">=\"&2012,IMN_gestore!$E:$E,\"<=\"&2026,IMN_gestore!$G:$G,\"Res\")","v":0},{"$f":"+SUMIFS(IMN_gestore!$BY:$BY,IMN_gestore!$E:$E,\">=\"&2012,IMN_gestore!$E:$E,\"<=\"&2027,IMN_gestore!$G:$G,\"Res\")","v":0},null,null,2,40,40,40,40,40,40,40,40,40,40,40,40,40,40,40,40,40,40,40]
[null,null,null,"CINfp",{"$f":"+SUMIFS(IMN_gestore!W:W,IMN_gestore!$E:$E,\">=\"&2012,IMN_gestore!$E:$E,\"<=\"&2022,IMN_gestore!$G:$G,\"Res\")","v":0},{"$f":"+SUMIFS(IMN_gestore!AH:AH,IMN_gestore!$E:$E,\">=\"&2012,IMN_gestore!$E:$E,\"<=\"&2023,IMN_gestore!$G:$G,\"Res\")","v":0},{"$f":"+SUMIFS(IMN_gestore!AS:AS,IMN_gestore!$E:$E,\">=\"&2012,IMN_gestore!$E:$E,\"<=\"&2024,IMN_gestore!$G:$G,\"Res\")","v":0},{"$f":"+SUMIFS(IMN_gestore!BD:BD,IMN_gestore!$E:$E,\">=\"&2012,IMN_gestore!$E:$E,\"<=\"&2025,IMN_gestore!$G:$G,\"Res\")","v":0},{"$f":"+SUMIFS(IMN_gestore!$BO:$BO,IMN_gestore!$E:$E,\">=\"&2012,IMN_gestore!$E:$E,\"<=\"&2026,IMN_gestore!$G:$G,\"Res\")","v":0},{"$f":"+SUMIFS(IMN_gestore!$BZ:$BZ,IMN_gestore!$E:$E,\">=\"&2012,IMN_gestore!$E:$E,\"<=\"&2027,IMN_gestore!$G:$G,\"Res\")","v":0},null,null,3,40,40,40,40,40,40,40,40,40,40,40,40,40,40,40,40,40,40,40]
[null,null,null,"AMMcfp",{"$f":"+SUMIFS(IMN_gestore!X:X,IMN_gestore!$E:$E,\">=\"&2012,IMN_gestore!$E:$E,\"<=\"&2022,IMN_gestore!$G:$G,\"Res\")","v":0},{"$f":"+SUMIFS(IMN_gestore!AI:AI,IMN_gestore!$E:$E,\">=\"&2012,IMN_gestore!$E:$E,\"<=\"&2023,IMN_gestore!$G:$G,\"Res\")","v":0},{"$f":"+SUMIFS(IMN_gestore!AT:AT,IMN_gestore!$E:$E,\">=\"&2012,IMN_gestore!$E:$E,\"<=\"&2024,IMN_gestore!$G:$G,\"Res\")","v":0},{"$f":"+SUMIFS(IMN_gestore!BE:BE,IMN_gestore!$E:$E,\">=\"&2012,IMN_gestore!$E:$E,\"<=\"&2025,IMN_gestore!$G:$G,\"Res\")","v":0},{"$f":"+SUMIFS(IMN_gestore!$BP:$BP,IMN_gestore!$E:$E,\">=\"&2012,IMN_gestore!$E:$E,\"<=\"&2026,IMN_gestore!$G:$G,\"Res\")","v":0},{"$f":"+SUMIFS(IMN_gestore!$CA:$CA,IMN_gestore!$E:$E,\">=\"&2012,IMN_gestore!$E:$E,\"<=\"&2027,IMN_gestore!$G:$G,\"Res\")","v":0},null,null,4,40,40,40,40,40,40,40,40,40,40,40,40,40,40,40,40,40,40,40]
[null,null,null,null,null,null,null,null,null,null,null,null,5,40,40,40,40,40,40,40,40,40,40,40,40,40,40,40,40,40,40,40]
[null,null,null,null,null,null,null,null,null,null,null,null,6,50,50,50,50,50,50,50,50,50,50,50,50,50,50,50,50,50,50,50]
[null,null,null,null,null,null,null,null,null,null,null,null,7,12,12,12,12,12,12,12,12,12,12,12,12,12,12,12,12,12,12,12]
[null,null,null,"Immobilizzazioni nette dei proprietari",null,null,null,null,null,null,null,null,8,8,8,8,8,8,8,8,8,8,8,8,8,8,8,8,8,8,8,8]
[null,null,null,null,2024,2025,2026,2027,2028,2029,null,null,9,15,15,15,15,15,15,15,15,15,15,15,15,15,15,15,15,15,15,15]
[null,null,null,"IMLp",{"$f":"+SUM(IMN_Proprietari!$S:$S)","v":0},{"$f":"+SUM(IMN_Proprietari!$AC:$AC)","v":0},{"$f":"+SUM(IMN_Proprietari!$AM:$AM)","v":0},{"$f":"+SUM(IMN_Proprietari!$AW:$AW)","v":0},{"$f":"+SUM(IMN_Proprietari!$BG:$BG)","v":0},{"$f":"+SUM(IMN_Proprietari!$BQ:$BQ)","v":0},null,null,10,15,15,15,15,15,15,15,15,15,15,15,15,15,15,15,15,15,15,15]
[null,null,null,"FAp",{"$f":"+SUM(IMN_Proprietari!$T:$T)","v":0},{"$f":"+SUM(IMN_Proprietari!$AD:$AD)","v":0},{"$f":"+SUM(IMN_Proprietari!$AN:$AN)","v":0},{"$f":"+SUM(IMN_Proprietari!$AX:$AX)","v":0},{"$f":"+SUM(IMN_Proprietari!$BH:$BH)","v":0},{"$f":"+SUM(IMN_Proprietari!$BR:$BR)","v":0},null,null,11,20,20,20,20,20,20,20,20,20,20,20,20,20,20,20,20,20,20,20]
[null,null,null,"IMNp",{"$f":"+E91-E92","v":0},{"$f":"+F91-F92","v":0},{"$f":"+G91-G92","v":0},{"$f":"+H91-H92","v":0},{"$f":"+SUM(IMN_Proprietari!$BI:$BI)","v":0},{"$f":"+SUM(IMN_Proprietari!$BS:$BS)","v":0},null,null,12,10,10,10,10,10,10,10,10,10,10,10,10,10,10,10,10,10,10,10]
[null,null,null,"AMMp",{"$f":"+SUM(IMN_Proprietari!$V:$V)","v":0},{"$f":"+SUM(IMN_Proprietari!$AF:$AF)","v":0},{"$f":"+SUM(IMN_Proprietari!$AP:$AP)","v":0},{"$f":"+SUM(IMN_Proprietari!$AZ:$AZ)","v":0},{"$f":"+SUM(IMN_Proprietari!$BJ:$BJ)","v":0},{"$f":"+SUM(IMN_Proprietari!$BT:$BT)","v":0},null,null,13,8,8,8,8,8,8,8,8,8,8,8,8,8,8,8,8,8,8,8]
[null,null,null,"CFPp",{"$f":"+SUM(IMN_Proprietari!$W:$W)","v":0},{"$f":"+SUM(IMN_Proprietari!$AG:$AG)","v":0},{"$f":"+SUM(IMN_Proprietari!$AQ:$AQ)","v":0},{"$f":"+SUM(IMN_Proprietari!$BA:$BA)","v":0},{"$f":"+SUM(IMN_Proprietari!$BK:$BK)","v":0},{"$f":"+SUM(IMN_Proprietari!$BU:$BU)","v":0},null,null,14,5,5,5,5,5,5,5,5,5,5,5,5,5,5,5,5,5,5,5]
[null,null,null,"FA CFPp",{"$f":"+SUM(IMN_Proprietari!$X:$X)","v":0},{"$f":"+SUM(IMN_Proprietari!$AH:$AH)","v":0},{"$f":"+SUM(IMN_Proprietari!$AR:$AR)","v":0},{"$f":"+SUM(IMN_Proprietari!$BB:$BB)","v":0},{"$f":"+SUM(IMN_Proprietari!$BL:$BL)","v":0},{"$f":"+SUM(IMN_Proprietari!$BV:$BV)","v":0},null,null,15,5,5,5,5,5,5,5,5,5,5,5,5,5,5,5,5,5,5,5]
[null,null,null,"CINfp,p",{"$f":"+E95-E96","v":0},{"$f":"+F95-F96","v":0},{"$f":"+G95-G96","v":0},{"$f":"+H95-H96","v":0},{"$f":"+SUM(IMN_Proprietari!$BM:$BM)","v":0},{"$f":"+SUM(IMN_Proprietari!$BW:$BW)","v":0},null,null,16,7,7,7,7,7,7,7,7,7,7,7,7,7,7,7,7,7,7,7]
[null,null,null,"AMM CFPp",{"$f":"+SUM(IMN_Proprietari!$Z:$Z)","v":0},{"$f":"+SUM(IMN_Proprietari!$AJ:$AJ)","v":0},{"$f":"+SUM(IMN_Proprietari!$AT:$AT)","v":0},{"$f":"+SUM(IMN_Proprietari!$BD:$BD)","v":0},{"$f":"+SUM(IMN_Proprietari!$BN:$BN)","v":0},{"$f":"+SUM(IMN_Proprietari!$BX:$BX)","v":0}]
[]
[null,null,null,null,null,null,null,null,null,null,null,null,"vite regolatorie proprietari (ammortamento finanziario non previsto, cespiti dal 2020)"]
[]
[null,null,null,null,null,null,null,null,null,null,null,null,"Codice",2011,2012,2013,2014,2015,2016,2017,2018,2019,2020,2021,2022,2023,2024,2025,2026,2027,2028,2029]
[null,null,null,null,null,null,null,null,null,null,null,null,1,0,0,0,0,0,0,0,0,0,0,0,0,0,0,0,0,0,0,0]
[null,null,null,null,null,null,null,null,null,null,null,null,2,40,40,40,40,40,40,40,40,40,40,40,40,40,40,40,40,40,40,40]
[null,null,null,null,null,null,null,null,null,null,null,null,3,40,40,40,40,40,40,40,40,40,40,40,40,40,40,40,40,40,40,40]
[null,null,null,null,null,null,null,null,null,null,null,null,4,40,40,40,40,40,40,40,40,40,40,40,40,40,40,40,40,40,40,40]
[null,null,null,null,null,null,null,null,null,null,null,null,5,8,8,8,8,8,8,8,8,8,8,8,8,8,8,8,8,8,8,8]
[null,null,null,null,null,null,null,null,null,null,null,null,6,20,20,20,20,20,20,20,20,20,20,20,20,20,20,20,20,20,20,20]
[null,null,null,null,null,null,null,null,null,null,null,null,7,12,12,12,12,12,12,12,12,12,12,12,12,12,12,12,12,12,12,12]
[null,null,null,null,null,null,null,null,null,null,null,null,8,10,10,10,10,10,10,10,10,10,10,10,10,10,10,10,10,10,10,10]
[null,null,null,null,null,null,null,null,null,null,null,null,9,5,5,5,5,5,5,5,5,5,5,5,5,5,5,5,5,5,5,5]
[null,null,null,null,null,null,null,null,null,null,null,null,10,8,8,8,8,8,8,8,8,8,8,8,8,8,8,8,8,8,8,8]
[null,null,null,null,null,null,null,null,null,null,null,null,11,50,50,50,50,50,50,50,50,50,50,50,50,50,50,50,50,50,50,50]
[null,null,null,null,null,null,null,null,null,null,null,null,12,40,40,40,40,40,40,40,40,40,40,40,40,40,40,40,40,40,40,40]
[null,null,null,null,null,null,null,null,null,null,null,null,13,40,40,40,40,40,40,40,40,40,40,40,40,40,40,40,40,40,40,40]
[null,null,null,null,null,null,null,null,null,null,null,null,14,8,8,8,8,8,8,8,8,8,8,8,8,8,8,8,8,8,8,8]
[null,null,null,null,null,null,null,null,null,null,null,null,15,10,10,10,10,10,10,10,10,10,10,10,10,10,10,10,10,10,10,10]
[null,null,null,null,null,null,null,null,null,null,null,null,16,5,5,5,5,5,5,5,5,5,5,5,5,5,5,5,5,5,5,5]
[null,null,null,null,null,null,null,null,null,null,null,null,17,0,0,0,0,0,0,0,0,0,0,0,0,0,0,0,0,0,0,0]
[null,null,null,null,null,null,null,null,null,null,null,null,18,8,8,8,8,8,8,8,8,8,8,8,8,8,8,8,8,8,8,8]
[null,null,null,null,null,null,null,null,null,null,null,null,19,8,8,8,8,8,8,8,8,8,8,8,8,8,8,8,8,8,8,8]
[null,null,null,null,null,null,null,null,null,null,null,null,20,40,40,40,40,40,40,40,40,40,40,40,40,40,40,40,40,40,40,40]
[null,null,null,null,null,null,null,null,null,null,null,null,21,20,20,20,20,20,20,20,20,20,20,20,20,20,20,20,20,20,20,20]
[null,null,null,null,null,null,null,null,null,null,null,null,22,20,20,20,20,20,20,20,20,20,20,20,20,20,20,20,20,20,20,20]
[null,null,null,null,null,null,null,null,null,null,null,null,23,20,20,20,20,20,20,20,20,20,20,20,20,20,20,20,20,20,20,20]
[null,null,null,null,null,null,null,null,null,null,null,null,24,20,20,20,20,20,20,20,20,20,20,20,20,20,20,20,20,20,20,20]
[null,null,null,null,null,null,null,null,null,null,null,null,25,10,10,10,10,10,10,10,10,10,10,10,10,10,10,10,10,10,10,10]
[null,null,null,null,null,null,null,null,null,null,null,null,26,5,5,5,5,5,5,5,5,5,5,5,5,5,5,5,5,5,5,5]
[null,null,null,null,null,null,null,null,null,null,null,null,27,8,8,8,8,8,8,8,8,8,8,8,8,8,8,8,8,8,8,8]
[null,null,null,null,null,null,null,null,null,null,null,null,28,20,20,20,20,20,20,20,20,20,20,20,20,20,20,20,20,20,20,20]
[null,null,null,null,null,null,null,null,null,null,null,null,29,10,10,10,10,10,10,10,10,10,10,10,10,10,10,10,10,10,10,10]
[null,null,null,null,null,null,null,null,null,null,null,null,30,5,5,5,5,5,5,5,5,5,5,5,5,5,5,5,5,5,5,5]
[null,null,null,null,null,null,null,null,null,null,null,null,31,8,8,8,8,8,8,8,8,8,8,8,8,8,8,8,8,8,8,8]
[null,null,null,null,null,null,null,null,null,null,null,null,32,5,5,5,5,5,5,5,5,5,5,5,5,5,5,5,5,5,5,5]
[null,null,null,null,null,null,null,null,null,null,null,null,33,40,40,40,40,40,40,40,40,40,40,40,40,40,40,40,40,40,40,40]
[null,null,null,null,null,null,null,null,null,null,null,null,34,40,40,40,40,40,40,40,40,40,40,40,40,40,40,40,40,40,40,40]
[null,null,null,null,null,null,null,null,null,null,null,null,35,20,20,20,20,20,20,20,20,20,20,20,20,20,20,20,20,20,20,20]
[null,null,null,null,null,null,null,null,null,null,null,null,36,5,5,5,5,5,5,5,5,5,5,5,5,5,5,5,5,5,5,5]
[null,null,null,null,null,null,null,null,null,null,null,null,37,7,7,7,7,7,7,7,7,7,7,7,7,7,7,7,7,7,7,7]
[null,null,null,null,null,null,null,null,null,null,null,null,38,60,60,60,60,60,60,60,60,60,60,60,60,60,60,60,60,60,60,60]
[null,null,null,null,null,null,null,null,null,null,null,null,39,50,50,50,50,50,50,50,50,50,50,50,50,50,50,50,50,50,50,50]

{"sheet":"PdI-legenda","index":49,"n_rows":64,"n_cols":32,"rows_kept":64,"cut":false,"hidden":false,"merged":[[0,0,0,2],[0,5,0,28],[9,25,12,25],[9,29,19,29]]}
["Qualità tecnica",null,null,null,null,"Programma degli Interventi "]
[]
["Indicatore (ID)","Nome","Tipologia",null,null,"ID Criticità  ","Descrizione","Collegamento Macro-indicatore/ \nPrerequisito","M0","Preq1","Preq2","Preq3","Preq4","M1","M2","M3","M4a","M4b","M4c","M5","M6","Altro","MC1","MC2",null,"Tipologia di costo ambientale eventualmente sotteso ","Definizione","Riferimenti"]
["S1","Durata massima della singola sospensione programmata","Standard specifico",null,null,"KNW1.1","KNW1.1 Imperfetta conoscenza delle infrastrutture di acquedotto","Prerequisito 4, M1, M2, M3",null,null,null,null,"Preq4","M1","M2","M3",null,null,null,null,null,null,null,null,null,"RES","intervento a cui sono associati costi della risorsa intesi come \"... valorizzazione economica delle mancate opportunità (attuali e future) imposte, come conseguenza dell’allocazione per un determinato uso di una risorsa idrica scarsa in termini quali-quantitativi, ad altri potenziali utenti della medesima risorsa idrica\".","comma 1.1 dell'Allegato A alla deliberazione  580/2020/R/idr"]
["S2","Tempo massimo per l’attivazione del servizio sostitutivo di emergenza in caso di sospensione del servizio idropotabile ","Standard specifico",null,null,"KNW1.2","KNW1.2 Imperfetta conoscenza delle infrastrutture di fognatura ","Prerequisito 4, M4a, M4b, M4c",null,null,null,null,"Preq4",null,null,null,"M4a","M4b","M4c",null,null,null,null,null,null,"ENV","interventi a cui sono associati costi ambientali intesi come \"...valorizzazione economica dalla riduzione e/o alterazione delle funzionalità proprie degli ecosistemi acquatici (ritenzione idraulica, laminazione delle piene, abbattimento dei nutrienti, fitodepurazione,\nricarica della falda, ecc., come enucleate dal decreto del Ministero dell’ambiente e della tutela del territorio e del mare, 24 febbraio 2015, n. 39), tali da danneggiare il funzionamento degli ecosistemi acquatici stessi e/o alcuni usi degli ecosistemi acquatici e/o il benessere derivante dal non-uso di una certa risorsa\".","comma 1.1 dell'Allegato A alla deliberazione  580/2020/R/idr"]
["S3","Tempo minimo di preavviso per interventi programmati che comportano una sospensione della fornitura","Standard specifico",null,null,"KNW1.3","KNW1.3 Imperfetta conoscenza delle infrastrutture di depurazione","Prerequisito 4, M5, M6",null,null,null,null,"Preq4",null,null,null,null,null,null,"M5","M6",null,null,null,null,"Non ERC"," intervento non classificabile come ENV o RES","ai sensi delle precedenti definizioni"]
["Preq1","Disponibilità e affidabilità dei dati di misura","Prerequisito",null,null,"KNW2.1","KNW2.1 Assenza o inadeguatezza del sistema digitale di archiviazione per le infrastrutture di acquedotto","Prerequisito 4",null,null,null,null,"Preq4"]
["Preq2","Conformità alla normativa sulla qualità dell'acqua distribuita agli utenti","Prerequisito",null,null,"KNW2.2","KNW2.2 Assenza o inadeguatezza del sistema digitale di archiviazione per le infrastrutture di fognatura","Prerequisito 4",null,null,null,null,"Preq4",null,null,null,null,null,null,null,null,null,null,null,null,"Intervento presente nel PdI trasmesso ai sensi della deliberazione 664/2015/R/idr come integrata dalla deliberazione 918/2017/idr?","SI","NO","Imputare \"SI\" anche se l'intervento originario ha subito una modifica degli importi e delle specifiche tecniche in sede di aggiornamento"]
["Preq3","Conformità alla normativa sulla gestione delle acque reflue urbane","Prerequisito",null,null,"KNW2.3","KNW2.3 Assenza o inadeguatezza del sistema digitale di archiviazione per le infrastrutture di depurazione","Prerequisito 4",null,null,null,null,"Preq4"]
["Preq4","Disponibilità e affidabilità dei dati di qualità tecnica","Prerequisito",null,null,"APP1.1","APP1.1 Insufficienza quantitativa del sistema delle fonti  e/o sovrasfruttamento delle fonti di approvvigionamento","M0, M2","M0",null,null,null,null,null,"M2",null,null,null,null,null,null,null,null,null,null,"Intervento finalizzato ad obiettivi di sostenibilità ambientale o efficienza energetica ","Efficienza energetica (nel SII e nelle altre attività idriche)",null,null,"Sussistenza di eventuali misure di sostegno nazionali o comunitarie ","Piano Nazionale sez. \"Acquedotti\" (Primo Elenco)","indicare se intervento presente nell'Allegato 1 al d.P.C.M. 1 agosto 2019"]
["M0","Resilienza idrica","Macro-indicatore ",null,null,"APP1.2","APP1.2 Inadeguatezza della qualità delle fonti di approvvigionamento","M0, M3","M0",null,null,null,null,null,null,"M3",null,null,null,null,null,null,null,null,null,null,"Riduzione dell'utilizzo della plastica",null,null,null,"Fondo di Garanzia opere idriche","Indicare in presenza di provvedimento di accoglimento dell'istanza"]
["M1","Perdite idriche","Macro-indicatore (Standard generale)",null,null,"APP1.3","APP1.3 Vulnerabilità delle fonti di approvvigionamento e/o inadeguatezza delle aree di salvaguardia","M0, M2, M3","M0",null,null,null,null,null,"M2","M3",null,null,null,null,null,null,null,null,null,null,"Recupero di energia, materie prime e diffusione FER",null,null,null,"Piano Nazionale sez. \"Invasi\"/ Piano Straordinario","indicare se intervento presente negli Allegati 1 e 2 al d.P.C.M. 17 aprile 2019 e successivi e nell'Allegato A al D.M. n. 526 del 6/12/2018  "]
["M2","Interruzioni del servizio","Macro-indicatore (Standard generale)",null,null,"APP2.1","APP2.1 Assenza parziale o totale delle reti di adduzione","M0, M2","M0",null,null,null,null,null,"M2",null,null,null,null,null,null,null,null,null,null,null,"Riuso acque reflue",null,null,null,"PNRR- Misura M2C4 - I4.1 (Approvvigionamento idrico)","indicare se intervento presente in uno degli Allegati 1,2, 3 al Decreto del Ministero delle Infrastrutture e della Mobilità Sostenibili del 16 dicembre 2021, n. 517 "]
["M3","Qualità dell’acqua erogata","Macro-indicatore (Standard generale)",null,null,"APP2.2","APP2.2 Inadeguate condizioni fisiche delle reti e degli impianti di adduzione","M1, M2",null,null,null,null,null,"M1","M2",null,null,null,null,null,null,null,null,null,null,null,null,null,null,null,"PNRR- Misura M2C4 - I4.2 (Riduzione perdite e digitalizzazione)","Indicare in presenza di provvedimento/atto di ammissione al finanziamento"]
["M4a","Frequenza allagamenti e/o sversamenti da fognatura","Sotto-indicatore del Macro-indicatore M4 (Standard generale)",null,null,"APP2.3","APP2.3 Insufficiente capacità idraulica e/o scarsa flessibilità di esercizio delle infrastrutture di adduzione","M0, M2","M0",null,null,null,null,null,"M2",null,null,null,null,null,null,null,null,null,null,"\n","New","Nuova opera, realizzazione di nuove infrastrutture (es. costruzione impianto, estensione rete)",null,null,"PNRR- Misura M2C4 - I4.4 (Fognatura e Depurazione)","Indicare in presenza di provvedimento/atto di ammissione al finanziamento"]
["M4b","Adeguatezza normativa degli scaricatori di piena","Sotto-indicatore del Macro-indicatore M4 (Standard generale)",null,null,"APP3.1","APP3.1 Ricorrenza di interruzioni dovute a fenomeni naturali o antropici ","M2, M3",null,null,null,null,null,null,"M2","M3",null,null,null,null,null,null,null,null,null,"Tipologia di intervento","Replacement","Interventi su infrastrutture esistenti chiaramente individuati (es. sostituzione condotte, adeguamento/ potenziamento/ revamping impianti)",null,null,"PNRR- Misura M2C4 – I4.5 (Regime di sovvenzioni per gli investimenti in infrastrutture idriche)","Indicare in presenza di provvedimento/atto di ammissione al finanziamento"]
["M4c","Controllo degli scaricatori di piena","Sotto-indicatore del Macro-indicatore M4 (Standard generale)",null,null,"APP4.1","APP4.1 Non totale copertura  o cattivo funzionamento o vetustà dei misuratori (dei parametri di quantità e di qualità) nelle opere di presa","Prerequisito 1, M0, M1","M0","Preq1",null,null,null,"M1",null,null,null,null,null,null,null,null,null,null,null,null,"Maintenance","Considera tutti quegli interventi di carattere generale non precisamente identificabili dal gestore perché ad es. non programmati (es. \"Manutenzioni straordinarie acquedotto\")",null,null,"PNRR- Misura M2C1 - I1.1 (Gestione rifiuti e ammodernamento impianti)","Indicare in presenza di provvedimento/atto di ammissione al finanziamento"]
["M5","Smaltimento fanghi in discarica","Macro-indicatore (Standard generale)",null,null,"APP4.2","APP4.2 Non totale copertura o cattivo funzionamento o vetustà dei misuratori (dei parametri di quantità e di qualità) nelle infrastrutture di adduzione","Prerequisito 1, M1, M0","M0","Preq1",null,null,null,"M1",null,null,null,null,null,null,null,null,null,null,null,null,null,null,null,null,"REACT EU (Riduzione perdite e digitalizzazione)","Indicare in presenza di provvedimento/atto di ammissione al finanziamento"]
["M6","Qualità dell’acqua depurata","Macro-indicatore (Standard generale)",null,null,"POT1.1","POT1.1  Inadeguatezza di progetto, delle condizioni fisiche, di monitoraggio, dei trattamenti","M3, M0, M1 (eventuale residuale)","M0",null,null,null,null,"M1",null,"M3",null,null,null,null,null,null,null,null,null,null,"SI","NO",null,null,"Piano nazionale di interventi infrastrutturali e per la sicurezza del settore idrico","Indicare gli interventi inclusi nel decreto del Ministero delle Infrastrutture e dei Trasporti del 16 settembre 2025"]
["Altro","Eventuali ulteriori obiettivi che esulano dagli standard definiti ai sensi del RQTI (motivare in relazione)","Obiettivo",null,null,"POT1.2","POT1.2 Presenza di sottoprodotti della disinfezione nell'acqua erogata e/o necessità di sostituire la disinfezione con cloro con altro (UV, ozono)","M3",null,null,null,null,null,null,null,"M3",null,null,null,null,null,null,null,null,null,"Intervento sugli strumenti di misura funzionale all'adempimento del DM 93/2017","x",null,null,null,"Altro (specificare in Relazione)","Es. Fondi Comunitari (FSC, Patti di Sviluppo), Prestiti BEI, Cdp etc."]
["MC1","Avvio e cessazione del rapporto contrattuale","Macro-indicatore",null,null,"POT2.2","POT2.2 Inadeguatezza del sistema di campionamento e/o insufficienza del numero di parametri controllati rispetto a quanto previsto dalla normativa pro tempore vigente","Prerequisito 2, M3",null,null,"Preq2",null,null,null,null,"M3",null,null,null,null,null,null,null,null,null,"Intervento funzionale alla risoluzione delle sentenze di condanna C-565/10, C-85/13 e C-668-19","x"]
["MC2","Gestione del rapporto contrattuale e accessibilità al servizio","Macro-indicatore ",null,null,"POT3.1","POT3.1 Trattamenti inadeguati o incompleti dei fanghi di potabilizzazione e altri residui; insufficiente recupero di materia e/o energia ","M5, Altro",null,null,null,null,null,null,null,null,null,null,null,"M5",null,"Altro",null,null,null,"Intervento presente nel POS 2020-2027","x"]
[null,null,null,null,null,"POT4.1","POT4.1  Non totale copertura o cattivo funzionamento o vetustà dei misuratori (dei parametri di quantità e di qualità) ","M1, M3",null,null,null,null,null,"M1",null,"M3"]
[null,null,null,null,null,"DIS1.1","DIS1.1 Assenza parziale o totale delle reti di distribuzione ","M3, Altro, MC1, MC2",null,null,null,null,null,null,null,"M3",null,null,null,null,null,"Altro","MC1","MC2"]
[null,null,null,null,null,"DIS1.2","DIS1.2 Inadeguate condizioni fisiche delle reti e degli impianti di distribuzione (condotte, opere civili, apparecchiature meccaniche ed elettromeccaniche)","M1, M2, M3",null,null,null,null,null,"M1","M2","M3"]
[null,null,null,null,null,"DIS1.3","DIS1.3 Capacità idraulica delle infrastrutture non rispondente ai livelli di domanda","M0, M2","M0",null,null,null,null,null,"M2"]
[null,null,null,null,null,"DIS1.4","DIS1.4 Inadeguate capacità di compenso e di riserva dei serbatoi","M0, M2","M0",null,null,null,null,null,"M2"]
[null,null,null,null,null,"DIS2.1","DIS2.1 Pressioni insufficienti","M2, M3",null,null,null,null,null,null,"M2","M3"]
[null,null,null,null,null,"DIS2.2","DIS2.2 Pressioni eccessive","M1",null,null,null,null,null,"M1"]
[null,null,null,null,null,"DIS3.1","DIS3.1 Non totale copertura o  cattivo funzionamento o vetustà dei misuratori di processo (dei parametri di quantità e di qualità) ","Prerequisito 1, M1, M3 (eventuale)",null,"Preq1",null,null,null,"M1",null,"M3"]
[null,null,null,null,null,"DIS3.2","DIS3.2 Non totale copertura o cattivo funzionamento o vetustà dei misuratori di utenza","Prerequisito 1, M1, MC2",null,"Preq1",null,null,null,"M1",null,null,null,null,null,null,null,null,null,"MC2"]
[null,null,null,null,null,"FOG1.1","FOG1.1 Mancanza parziale o totale delle reti di raccolta e collettamento dei reflui in agglomerati di dimensione superiore ai 2.000 A.E.","Prerequisito 3",null,null,null,"Preq3"]
[null,null,null,null,null,"FOG1.2","FOG1.2 Mancanza parziale o totale delle reti di raccolta e collettamento dei reflui in agglomerati di dimensione inferiore ai 2.000 A.E.","M5 (attraverso G5.2), M6, Altro",null,null,null,null,null,null,null,null,null,null,null,"M5","M6","Altro"]
[null,null,null,null,null,"FOG2.1","FOG2.1 Inadeguate condizioni fisiche delle condotte fognarie, delle opere civili, delle apparecchiature meccaniche ed elettromeccaniche degli impianti","M4a, M4b",null,null,null,null,null,null,null,null,"M4a","M4b"]
[null,null,null,null,null,"FOG2.2","FOG2.2 Elevate infiltrazioni di acque parassite","M4a, M4b, M6, Altro",null,null,null,null,null,null,null,null,"M4a","M4b",null,null,"M6","Altro"]
[null,null,null,null,null,"FOG2.3","FOG2.3 Inadeguatezza dimensionale delle condotte fognarie","M4a",null,null,null,null,null,null,null,null,"M4a"]
[null,null,null,null,null,"FOG2.4","FOG2.4 Scaricatori di piena non adeguati","M4b, M4c",null,null,null,null,null,null,null,null,null,"M4b","M4c"]
[null,null,null,null,null,"FOG2.5","FOG2.5 Gestione inadeguata delle acque meteoriche","M0","M0"]
[null,null,null,null,null,"FOG3.1","FOG3.1 Non totale copertura o cattivo funzionamento o vetustà dei misuratori (dei parametri di quantità e di qualità) "," M4a, M4b, M6",null,null,null,null,null,null,null,null,"M4a","M4b",null,null,"M6"]
[null,null,null,null,null,"DEP1.1","DEP1.1 Assenza totale o parziale del servizio di depurazione in agglomerati di dimensione superiore ai 2.000 A.E.","Prerequisito 3",null,null,null,"Preq3"]
[null,null,null,null,null,"DEP1.2","DEP1.2 Assenza totale o parziale del servizio di depurazione in agglomerati di dimensione inferiore ai 2.000 A.E.","M5 (attraverso G5.2), M6, Altro",null,null,null,null,null,null,null,null,null,null,null,"M5","M6","Altro"]
[null,null,null,null,null,"DEP1.3","DEP1.3 Assenza di trattamento secondario o trattamento equivalente ex. art.4 Direttiva 91/271/CEE (ove applicabile)","Prerequisito 3",null,null,null,"Preq3"]
[null,null,null,null,null,"DEP1.4","DEP1.4 Assenza di trattamenti terziari ex art. 5 Direttiva 91/271/CEE (per aree sensibili, ove applicabile)","Prerequisito 3",null,null,null,"Preq3"]
[null,null,null,null,null,"DEP1.5","DEP1.5 Assenza di trattamenti appropriati ex. art. 7 Direttiva 91/271/CEE","M5 (attraverso G5.1 e G5.2), M6",null,null,null,null,null,null,null,null,null,null,null,"M5","M6"]
[null,null,null,null,null,"DEP2.1","DEP2.1 Inadeguatezza di progetto, delle condizioni fisiche, dei sistemi di monitoraggio, dei trattamenti di rimozione","M6, Altro ",null,null,null,null,null,null,null,null,null,null,null,null,"M6","Altro"]
[null,null,null,null,null,"DEP2.2","DEP2.2 Estrema frammentazione del servizio di depurazione ","M6, Altro",null,null,null,null,null,null,null,null,null,null,null,null,"M6","Altro"]
[null,null,null,null,null,"DEP2.3","DEP2.3 Criticità legate alla potenzialità di trattamento","M6",null,null,null,null,null,null,null,null,null,null,null,null,"M6"]
[null,null,null,null,null,"DEP3.1","DEP3.1 Inadeguato recupero di materia e/o di energia dei fanghi residui di depurazione","M5",null,null,null,null,null,null,null,null,null,null,null,"M5"]
[null,null,null,null,null,"DEP3.2","DEP3.2 Assenza o limitato recupero degli effluenti ","M0, Altro","M0",null,null,null,null,null,null,null,null,null,null,null,null,"Altro"]
[null,null,null,null,null,"DEP3.3","DEP3.3 Impatto negativo sul recapito finale ","M6, Altro",null,null,null,null,null,null,null,null,null,null,null,null,"M6","Altro"]
[null,null,null,null,null,"DEP4.1","DEP4.1 Non totale copertura o cattivo funzionamento o vetustà dei misuratori dei misuratori (dei parametri di quantità e di qualità)","M6",null,null,null,null,null,null,null,null,null,null,null,null,"M6"]
[null,null,null,null,null,"UTZ1.1","UTZ1.1 Inadeguatezza del sistema di lettura e fatturazione ","Prerequisito 1, M1, Altro, MC1, MC2",null,"Preq1",null,null,null,"M1",null,null,null,null,null,null,null,"Altro","MC1","MC2"]
[null,null,null,null,null,"UTZ2.1","UTZ2.1 Inadeguatezza del servizio di assistenza all’utenza (es. call center, pronto intervento, sportelli e trattamento dei reclami)","M2, M3, M4a,M4b, Altro, MC1, MC2",null,null,null,null,null,null,"M2","M3","M4a","M4b",null,null,null,"Altro","MC1","MC2"]
[null,null,null,null,null,"UTZ3.1","UTZ3.1 Qualità del servizio inferiore agli standard individuati dalla carta dei servizi","Altro, MC1, MC2",null,null,null,null,null,null,null,null,null,null,null,null,null,"Altro","MC1","MC2"]
[null,null,null,null,null,"EFF1.1","EFF1.1 Margini di miglioramento dell’efficienza economica e funzionale della gestione di infrastrutture di acquedotto (approvvigionamento, potabilizzazione, distribuzione)","Altro",null,null,null,null,null,null,null,null,null,null,null,null,null,"Altro"]
[null,null,null,null,null,"EFF1.2","EFF1.2 Margini di miglioramento dell’efficienza economica e funzionale della gestione di infrastrutture di fognatura.","Altro",null,null,null,null,null,null,null,null,null,null,null,null,null,"Altro"]
[null,null,null,null,null,"EFF1.3","EFF1.3 Margini di miglioramento dell’efficienza economica e funzionale della gestione di infrastrutture di depurazione.","Altro",null,null,null,null,null,null,null,null,null,null,null,null,null,"Altro"]
[null,null,null,null,null,"EFF2.1","EFF2.1 Necessità di sviluppo di una pianificazione degli interventi di manutenzione e di sostituzione periodica degli asset","M0, M1, M2, M3, M4a, M4b, M4c, M5, M6, Altro","M0",null,null,null,null,"M1","M2","M3","M4a","M4b","M4c","M5","M6","Altro"]
[null,null,null,null,null,"EFF3.1","EFF3.1 Criticità nella sicurezza delle condizioni di lavoro","Altro",null,null,null,null,null,null,null,null,null,null,null,null,null,"Altro"]
[null,null,null,null,null,"EFF4.1","EFF4.1 Elevati consumi di energia elettrica in acquedotto ","Altro",null,null,null,null,null,null,null,null,null,null,null,null,null,"Altro"]
[null,null,null,null,null,"EFF4.2","EFF4.2 Mancanza di sistemi di recupero energetico in adduzione e/o in distribuzione (laddove fattibili)","Altro",null,null,null,null,null,null,null,null,null,null,null,null,null,"Altro"]
[null,null,null,null,null,"EFF4.3","EFF4.3 Elevati consumi di energia elettrica in fognatura","Altro",null,null,null,null,null,null,null,null,null,null,null,null,null,"Altro"]
[null,null,null,null,null,"EFF4.4","EFF4.4 Elevati consumi di energia elettrica negli impianti di depurazione","M5 (indicatore correlato G5.3), Altro",null,null,null,null,null,null,null,null,null,null,null,"M5",null,"Altro"]
[null,null,null,null,null,"EFF4.5","EFF4.5 Assenza del recupero di energia dalla digestione anaerobica dei fanghi di depurazione o altro","M5 (indicatore correlato G5.4)",null,null,null,null,null,null,null,null,null,null,null,"M5"]

{"sheet":"PdI-crono_inv","index":50,"n_rows":5,"n_cols":84,"rows_kept":5,"cut":false,"hidden":false,"merged":[[0,0,0,1],[2,71,2,72],[2,21,2,25],[2,26,2,30],[2,31,2,35],[2,36,2,40],[2,41,2,45],[2,46,2,50],[2,51,2,55],[2,56,2,60],[2,61,2,65]]}
["Interventi infrastrutturali",null,null,null,null,null,null,null,null,"Sono_presenti_errori"]
[null,null,null,"Vai a descrizione errori",null,null,null,null,null,{"$f":"+D3>0","v":false},null,null,null,null,null,null,null,null,null,null,null,null,null,null,null,null,null,null,null,null,null,null,null,null,null,null,"Investimenti realizzati 2024-2025",null,null,null,null,null,null,null,null,null,"Investimenti pianificati 2026-2029",null,null,null,null,null,null,null,null,null,null,null,null,null,null,null,null,null,null,null,null,null,null,null,null,null,null,"Criticità e/o obiettivo non previsti: motivare ","Criticità non coerente con obbiettivo: motivare","Non imputate colonne A:D, H e J ","Errata compilazione colonne D, BR, BS","Imputazione dei contributi non coerente","Imputazione non coerente dei LIC",null,"Valore anno > LIC anno + Entrata anno","VU non coerente con comma 3.3 del. 639/2023"]
[null,"Attenzione: verificare la presenza di eventuali  \"Alert\" nelle  colonne BV:CD",null,{"$f":"+SUM(COUNTIF(OFFSET(BV4,1,0,COUNTA(CB:CB)-1,1),$BV$2),COUNTIF(OFFSET(BW4,1,0,COUNTA(CB:CB)-1,1),$BW$2),COUNTIF(OFFSET(BX4,1,0,COUNTA(CB:CB)-1,1),$BX$2),COUNTIF(OFFSET(BY4,1,0,COUNTA(CB:CB)-1,1),$BY$2),COUNTIF(OFFSET(BZ4,1,0,COUNTA(CB:CB)-1,1),$BZ$2),COUNTIF(OFFSET(CA4,1,0,COUNTA(CB:CB)-1,1),$CA$2),COUNTIF(OFFSET(CC4,1,0,COUNTA(CB:CB)-1,1),$CC$2),COUNTIF(OFFSET(CD4,1,0,COUNTA(CB:CB)-1,1),$CD$2))","v":0},"errori riscontrati",null,null,null,null,null,null,null,null,null,null,null,null,null,null,null,null,null,null,null,null,null,null,null,null,null,null,"anno 2023 (consuntivo)",null,null,null,null,"anno 2024 (consuntivo)",null,null,null,null,"anno 2025 (preconsuntivo o consuntivo laddove disponibile)",null,null,null,null,"anno 2026 (pianificato)",null,null,null,null,"anno 2027 (pianificato)",null,null,null,null,"anno 2028 (pianificato)",null,null,null,null,"anno 2029 (pianificato)",null,null,null,null,null,null,null,null,null,"anni 2026-2029"]
["ID intervento pianificato","Titolo Intervento pianificato","Criticità ex foglio PdI-legenda","Prerequisito/ Macro-indicatore di qualità sotteso all'intervento ","Intervento presente nel PdI trasmesso ai sensi della deliberazione 639/2023/R/idr?","Popolazione interessata dall'intervento \n(ab/ A.E.)","Località interessata/e intervento","Tipologia di intervento","Intervento presente nel POS ","Tipologia di costo sotteso\n(\"Env\", \"Res\", \"Non ERC\")","Immobilizzazione","ID Categoria cespite\n(co. 11.4 MTI-4)","Categoria cespite","Intervento finalizzato ad obiettivi di sostenibilità ambientale o efficienza energetica ","Sussistenza di eventuali misure di sostegno nazionali o Euro-unitarie","Titolarità degli interventi \n(gestore o terzi)","Motivazione della realizzazione da parte di terzi","Immobilizzazioni riconducibili a una grande infrastruttura upstream","Ragione sociale del soggetto terzo realizzatore dell'intervento","Partita IVA del soggetto terzo","Indicare con \"X\" se le informazioni riportate nella corrispondente riga siano da imputare al solo FoNI (co. 36.5 MTI-4)",null,null,null,null,null,null,null,null,null,null,"Valore investimento annuo (lordo contributi) 2023","di cui: LIC 2023","Entrate in esercizio (lordo contributi) 2023","Contributi 2023","di cui: Contributi pubblici 2023","Valore investimento annuo (lordo contributi) 2024","di cui: LIC 2024","Entrate in esercizio (lordo contributi) 2024","Contributi 2024","di cui: Contributi pubblici 2024","Valore investimento annuo (lordo contributi) 2025","di cui: LIC 2025","Entrate in esercizio (lordo contributi) 2025","Contributi 2025","di cui: Contributi pubblici 2025","Valore investimento annuo (lordo contributi) 2026","di cui: LIC 2026","Entrate in esercizio (lordo contributi) 2026","Contributi 2026","di cui: Contributi pubblici 2026","Valore investimento annuo (lordo contributi) 2027","di cui: LIC 2027","Entrate in esercizio (lordo contributi) 2027","Contributi 2027","di cui: Contributi pubblici 2027","Valore investimento annuo (lordo contributi) 2028","di cui: LIC 2028","Entrate in esercizio (lordo contributi) 2028","Contributi 2028","di cui: Contributi pubblici 2028","Valore investimento annuo (lordo contributi) 2029","di cui: LIC 2029","Entrate in esercizio (lordo contributi) 2029","Contributi 2029","di cui: Contributi pubblici 2029","Valore investimento lordo programmato post 2029","Valore investimento lordo totale (incluse eventuali quote pre 2023)","Intervento sugli strumenti di misura funzionale all'adempimento del DM 93/2017","Intervento funzionale alla risoluzione delle sentenze di condanna C-565/10, C-85/13 e C-668/19 o successive","Agglomerato/i oggetto di condanna (inserire denominazione)","eventuale importo da trasferire al Commissario (Euro)\n- da tariffa -","eventuale importo da trasferire al Commissario (Euro)\n- da contributi -","check criticità/obiettivo non previsti","check criticità - obiettivo","check compilazione PdI","check condanne depurazione","check contributi","check LIC","n_riga","check investimento annuo","check POS","id tipologia immobilizzazione","ID Categoria di immobilizzazione sottesa (co. 11.4 MTI-4)"]
[null,null,null,null,null,null,null,null,null,null,null,{"$f":"IF(M5=\"\",\"\",VLOOKUP(M5,TT_Tabelle_Riferimento!$G$127:$K$164,5,FALSE))","v":""},null,null,null,null,null,null,null,null,null,null,null,null,null,null,null,null,null,null,null,null,null,null,null,null,null,null,null,null,null,null,null,null,null,null,null,null,null,null,null,null,null,null,null,null,null,null,null,null,null,null,null,null,null,null,null,null,null,null,null,null,null,{"$f":"IF(AND(OR(ISNA(VLOOKUP(C5,'PdI-legenda'!$F$4:$F$64,1,FALSE))=TRUE,ISNA(VLOOKUP(D5,'PdI-legenda'!$A$7:$A$22,1,FALSE))=TRUE),SUM(P5:BP5,BT5:BU5)<>0),$BV$2,\"\")","v":""},{"$f":"IFERROR(IF((INDEX('PdI-legenda'!$F$4:$X$64,MATCH($C5,'PdI-legenda'!$F$4:$F$64,0),MATCH($D5,'PdI-legenda'!$F$3:$X$3,0))=$D5),\"\",$BW$2),\"\")","v":""},{"$f":"IF(AND(SUM(AF5:BP5,BT5:BU5)<>0,OR(A5=\"\",B5=\"\",C5=\"\",D5=\"\",H5=\"\",J5=\"\")),$BX$2,\"\")","v":""},{"$f":"IF(AND(OR(BR5=\"x\",BS5<>0),D5<>\"Preq3\"),$BY$2,\"\")","v":""},{"$f":"IF(OR(AJ5>AI5,AO5>AN5,AT5>AS5,AY5>AX5,BD5>BC5,BI5>BH5,BN5>BM5),$BZ$2,\"\")","v":""},{"$f":"IF(OR(AG5>AF5,AL5>AK5,AQ5>AP5),$CA$2,\"\")","v":""},{"$f":"+ROW(CB5)-4","v":1},{"$f":"IF(OR(AF5>AG5+AH5,AK5>AL5+AM5,AP5>AQ5+AR5),$CC$2,\"\")","v":""},{"$f":"IFERROR(IF(AND(I5=\"x\",VLOOKUP(L5,TT_Tabelle_Riferimento!$D$126:$H$164,5,FALSE)<20),$CD$2,\"\"),\"\")","v":""},{"$f":"+IFERROR(VLOOKUP(K5,TT_Tabelle_Riferimento!$G$3:$H$6,2,FALSE),\"\")","v":""},{"$f":"+IFERROR(VLOOKUP(M5,vu_new,5,FALSE),\"\")","v":""}]

{"sheet":"POS-Piano_Opere_Strategiche","index":51,"n_rows":5,"n_cols":50,"rows_kept":5,"cut":false,"hidden":false,"merged":[[2,44,2,45],[2,2,2,4],[2,14,2,16],[2,17,2,19],[2,20,2,22],[2,23,2,25],[2,11,2,13],[2,8,2,10],[2,5,2,7],[2,26,2,28],[2,29,2,31],[2,32,2,34],[2,35,2,37],[2,38,2,40],[2,41,2,43]]}
["Piano delle Opere Strategiche per lo sviluppo delle infrastrutture idriche (POS)"]
[]
[null,null,"anno 2022 ",null,null,"anno 2023 ",null,null,"anno 2024",null,null,"anno 2025 ",null,null,"anno 2026",null,null,"anno 2027",null,null,"anno 2028 ",null,null,"anno 2029",null,null,"anno 2030 ",null,null,"anno 2031",null,null,"anno 2032",null,null,"anno 2033",null,null,"anno 2034",null,null,"anno 2035",null,null,"post 2035"]
["ID intervento pianificato","Titolo Intervento pianificato","Valore investimento annuo (lordo contributi) 2022","Entrate in esercizio (lordo contributi) 2022","Contributi 2022","Valore investimento annuo (lordo contributi) 2023","Entrate in esercizio (lordo contributi) 2023","Contributi 2023","Valore investimento annuo (lordo contributi) 2024","Entrate in esercizio (lordo contributi) 2024","Contributi 2024","Valore investimento annuo (lordo contributi) 2025","Entrate in esercizio (lordo contributi) 2025","Contributi 2025","Valore investimento annuo (lordo contributi) 2026","Entrate in esercizio (lordo contributi) 2026","Contributi 2026","Valore investimento annuo (lordo contributi) 2027","Entrate in esercizio (lordo contributi) 2027","Contributi 2027","Valore investimento annuo (lordo contributi) 2028","Entrate in esercizio (lordo contributi) 2028","Contributi 2028","Valore investimento annuo (lordo contributi) 2029","Entrate in esercizio (lordo contributi) 2029","Contributi 2029","Valore investimento annuo (lordo contributi) 2030","Entrate in esercizio (lordo contributi) 2030","Contributi 2030","Valore investimento annuo (lordo contributi) 2031","Entrate in esercizio (lordo contributi) 2031","Contributi 2031","Valore investimento annuo (lordo contributi) 2032","Entrate in esercizio (lordo contributi) 2032","Contributi 2032","Valore investimento annuo (lordo contributi) 2033","Entrate in esercizio (lordo contributi) 2033","Contributi 2033","Valore investimento annuo (lordo contributi) 2034","Entrate in esercizio (lordo contributi) 2034","Contributi 2034","Valore investimento annuo (lordo contributi) 2035","Entrate in esercizio (lordo contributi) 2035","Contributi 2035","Valore investimento annuo (lordo contributi) post 2035","Contributi post 2035","-","-","-","n_riga"]
[null,null,null,null,null,null,null,null,null,null,null,null,null,null,null,null,null,null,null,null,null,null,null,null,null,null,null,null,null,null,null,null,null,null,null,null,null,null,null,null,null,null,null,null,null,null,null,null,null,{"$f":"+ROW()-4","v":1}]

{"sheet":"PdI-crono_ges","index":52,"n_rows":4,"n_cols":30,"rows_kept":4,"cut":false,"hidden":false,"merged":[[1,11,1,14],[1,15,1,18]]}
["Interventi gestionali per il miglioramento della qualità tecnica",null,null,"Vai a descrizione errori",null,null,null,"Opex qt approvati MTI-4",null,"Sono_presenti_errori",null,"Costi operativi rendicontati 2024-2025",null,null,null,null,null,null,null,null,null,"Opex qt previsti 2026-2029"]
[null,"Attenzione: verificare la presenza di eventuali  \"Alert\" nelle  colonne Z:AC",null,{"$f":"SUM(COUNTIF(OFFSET(Z3,1,0,COUNTA(AD:AD)-1,1),$Z$2),COUNTIF(OFFSET(AA3,1,0,COUNTA(AD:AD)-1,1),$AA$2),COUNTIF(OFFSET(AC3,1,0,COUNTA(AD:AD)-1,1),$AC$2))","v":0},null,null,"errori riscontrati",null,null,{"$f":"+D2>0","v":false},null,"2024 (consuntivo)",null,null,null,"2025 (preconsuntivo o consuntivo laddove disponibile)",null,null,null,null,null,"2026 (previsti)","2027 (previsti)","2028 (previsti)","2029 (previsti)","Criticità e/o obiettivo non previsti: motivare in Relazione","Criticità non coerente con obbiettivo previsto: modificare o motivare in Relazione","Errore nella compilazione di cui RES o di cui ENV","Mancata compilazione colonne A:D"]
["ID intervento gestionale","Titolo Intervento pianificato","Criticità ex foglio PdI-legenda","Macro-indicatore di qualità tecnica sotteso all'intervento ",null,null,"Voci di costo da Conto Economico","Opex qt 2024","Opex qt 2025","Tipologia di costo sotteso\n(\"Env\", \"Res\", \"Non ERC\")","Tipologia di oneri ai sensi del comma 19.8 del MTI-4","costi endogeni 2024","costi aggiornabili 2024","costi associati a specifiche finalità 2024","di cui: Opex qt 2024","costi endogeni 2025","costi aggiornabili 2025","costi associati a specifiche finalità 2025","di cui: Opex qt 2025",null,null,"Opex qt 2026","Opex qt 2027","Opex qt 2028","Opex qt 2029","check criticità/obiettivo non previsti","check criticità - obiettivo",null,"check compilazione PdI","n_riga"]
[null,null,null,null,null,null,null,null,null,null,null,null,null,null,null,null,null,null,null,null,null,null,null,null,null,{"$f":"IF(AND(OR(ISNA(VLOOKUP(C4,'PdI-legenda'!$F$4:$F$64,1,FALSE))=TRUE,ISNA(VLOOKUP(D4,'PdI-legenda'!$A$11:$A$19,1,FALSE))=TRUE),SUM(H4:I4,L4:Y4)<>0),$Z$2,\"\")","v":""},{"$f":"IFERROR(IF((INDEX('PdI-legenda'!$F$4:$W$64,MATCH($C4,'PdI-legenda'!$F$4:$F$64,0),MATCH($D4,'PdI-legenda'!$F$3:$X$3,0))=$D4),\"\",$AA$2),\"\")","v":""},{"$f":"IFERROR(IF((INDEX('PdI-legenda'!$F$4:$W$63,MATCH($C4,'PdI-legenda'!$F$4:$F$63,0),MATCH($D4,'PdI-legenda'!$F$3:$W$3,0))=$D4),\"\",$AA$2),\"\")","v":""},{"$f":"IF(AND(SUM(H4:I4,L4:Y4)<>0,OR(A4=\"\",B4=\"\",C4=\"\",D4=\"\")),$AC$2,\"\")","v":""},{"$f":"ROW(AD4)-3","v":1}]

{"sheet":"PdI-riepilogo","index":53,"n_rows":169,"n_cols":27,"rows_kept":169,"cut":false,"hidden":false,"merged":[[33,3,33,5],[33,6,33,8],[39,3,39,5],[39,6,39,8],[40,3,40,5],[40,6,40,8],[33,12,33,14],[33,15,33,17],[39,12,39,14],[39,15,39,17],[40,12,40,14],[40,15,40,17],[33,21,33,23],[33,24,33,26],[39,21,39,23],[39,24,39,26],[40,21,40,23],[40,24,40,26]]}
[null,null,null,"Realizzato",null,null,null,null,"presenza errori di compilazione\nnel fogli dei cronoprogrammi"]
[null,"Riepilogo investimenti realizzati","UdM",2022,2023,2024,2025,null,"investimenti","gestionale","di terzi","Contributi da FoNI",null,null,null,"Sono_presenti_errori"]
[null,"Valore investimento annuo (lordo contributi)","euro",null,{"$f":"+SUMIFS('PdI-crono_inv'!AF:AF,'PdI-crono_inv'!P:P,\"<>proprietario\",'PdI-crono_inv'!CB:CB,\">=1\")","v":0},{"$f":"+SUMIFS('PdI-crono_inv'!AK:AK,'PdI-crono_inv'!P:P,\"<>proprietario\",'PdI-crono_inv'!CB:CB,\">=1\")","v":0},{"$f":"+SUMIFS('PdI-crono_inv'!AP:AP,'PdI-crono_inv'!P:P,\"<>proprietario\",'PdI-crono_inv'!CB:CB,\">=1\")","v":0},null,{"$f":"+IF('PdI-crono_inv'!D3>0,TRUE,FALSE)","v":false},{"$f":"+IF('PdI-crono_ges'!$D$2>0,TRUE,FALSE)","v":false},{"$f":"+OR(D160:I161)","v":false},{"$f":"+SUM(F169:I169)<>0","v":false},null,null,null,{"$f":"+OR(I3:L3)","v":false}]
[null,"Entrate in esercizio al lordo contributi - da foglio \"PdI-cronoprogramma_investimenti\"","euro",null,{"$f":"+SUMIFS('PdI-crono_inv'!AH:AH,'PdI-crono_inv'!P:P,\"<>proprietario\",'PdI-crono_inv'!CB:CB,\">=1\")","v":0},{"$f":"+SUMIFS('PdI-crono_inv'!AM:AM,'PdI-crono_inv'!P:P,\"<>proprietario\",'PdI-crono_inv'!CB:CB,\">=1\")","v":0},{"$f":"+SUMIFS('PdI-crono_inv'!AR:AR,'PdI-crono_inv'!P:P,\"<>proprietario\",'PdI-crono_inv'!CB:CB,\">=1\")","v":0},null,"Vai a descrizione errori","Vai a descrizione errori","Vai a descrizione errori","Vai a descrizione errori"]
[null,"Entrate in esercizio al lordo contributi - da foglio \"Nuovi_Investimenti\"","euro",null,{"$f":"+SUM(Conferma_investimenti!Z:Z)","v":0},{"$f":"+Nuovi_Investimenti!D10","v":0},{"$f":"+Nuovi_Investimenti!E10","v":0}]
[null,"Check coerenza Entrate in esercizio","euro",null,{"$f":"+E4-E5","v":0},{"$f":"+F4-F5","v":0},{"$f":"+G4-G5","v":0}]
[null,"Contributi - da foglio \"PdI-cronoprogramma_investimenti\"","euro",null,{"$f":"+SUMIFS('PdI-crono_inv'!AI:AI,'PdI-crono_inv'!P:P,\"<>proprietario\",'PdI-crono_inv'!CB:CB,\">=1\")","v":0},{"$f":"+SUMIFS('PdI-crono_inv'!AN:AN,'PdI-crono_inv'!P:P,\"<>proprietario\",'PdI-crono_inv'!CB:CB,\">=1\")","v":0},{"$f":"+SUMIFS('PdI-crono_inv'!AS:AS,'PdI-crono_inv'!P:P,\"<>proprietario\",'PdI-crono_inv'!CB:CB,\">=1\")","v":0}]
[null,"Contributi - da foglio \"Nuovi Investimenti\"","euro",null,{"$f":"+SUM(Conferma_investimenti!AB:AB)","v":0},{"$f":"+SUMIF(Nuovi_Investimenti!$T:$T,VALUE(F2),Nuovi_Investimenti!$W:$W)","v":0},{"$f":"+SUMIF(Nuovi_Investimenti!$T:$T,VALUE(G2),Nuovi_Investimenti!$W:$W)","v":0}]
[null,"Check coerenza Contributi","euro",null,{"$f":"+E7-E8","v":0},{"$f":"+F7-F8","v":0},{"$f":"+G7-G8","v":0}]
[null,"LIC dell'anno","euro",null,{"$f":"+SUM(OFFSET('PdI-crono_inv'!AG$4,1,0,COUNTA('PdI-crono_inv'!$CB:$CB),1))","v":0},{"$f":"+SUM(OFFSET('PdI-crono_inv'!AL$4,1,0,COUNTA('PdI-crono_inv'!$CB:$CB),1))","v":0},{"$f":"+SUM(OFFSET('PdI-crono_inv'!AQ$4,1,0,COUNTA('PdI-crono_inv'!$CB:$CB),1))","v":0}]
[]
[]
[null,null,null,null,null,"Previsto"]
[null,"Riepilogo investimenti previsti","UdM",2024,2025,2026,2027,2028,2029]
[null,"Valore investimento annuo (lordo contributi)- da foglio \"PdI-cronoprogramma_investimenti\"","euro",null,null,{"$f":"+SUM(OFFSET('PdI-crono_inv'!AU$4,1,0,COUNTA('PdI-crono_inv'!$CB:$CB),1))","v":0},{"$f":"+SUM(OFFSET('PdI-crono_inv'!AZ$4,1,0,COUNTA('PdI-crono_inv'!$CB:$CB),1))","v":0},{"$f":"+SUM(OFFSET('PdI-crono_inv'!BE$4,1,0,COUNTA('PdI-crono_inv'!$CB:$CB),1))","v":0},{"$f":"+SUM(OFFSET('PdI-crono_inv'!BJ$4,1,0,COUNTA('PdI-crono_inv'!$CB:$CB),1))","v":0}]
[null,"Valore investimento annuo (lordo contributi)- da foglio \"Piano_Tariffario\"","euro",null,null,{"$f":"+Piano_Tariffario!G81","v":0},{"$f":"+Piano_Tariffario!H81","v":0},{"$f":"+Piano_Tariffario!I81","v":0},{"$f":"+Piano_Tariffario!J81","v":0}]
[null,"Check coerenza Valore investimento annuo","euro",null,null,{"$f":"+F15-F16","v":0},0,0,0]
[null,"Entrata in esercizio al lordo dei contributi ","euro",null,null,{"$f":"+SUM(OFFSET('PdI-crono_inv'!AW$4,1,0,COUNTA('PdI-crono_inv'!$CB:$CB),1))","v":0},{"$f":"+SUM(OFFSET('PdI-crono_inv'!BB$4,1,0,COUNTA('PdI-crono_inv'!$CB:$CB),1))","v":0},{"$f":"+SUM(OFFSET('PdI-crono_inv'!BG$4,1,0,COUNTA('PdI-crono_inv'!$CB:$CB),1))","v":0},{"$f":"+SUM(OFFSET('PdI-crono_inv'!BL$4,1,0,COUNTA('PdI-crono_inv'!$CB:$CB),1))","v":0}]
[null,"incidenza ERC Res","%",null,null,{"$f":"+IFERROR((SUMIF('PdI-crono_inv'!$J:$J,\"Res\",'PdI-crono_inv'!AW:AW))/F18,0)","v":0},{"$f":"+IFERROR((SUMIF('PdI-crono_inv'!$J:$J,\"Res\",'PdI-crono_inv'!BB:BB))/G18,0)","v":0},{"$f":"+IFERROR((SUMIF('PdI-crono_inv'!$J:$J,\"Res\",'PdI-crono_inv'!BG:BG))/H18,0)","v":0},{"$f":"+IFERROR((SUMIF('PdI-crono_inv'!$J:$J,\"Res\",'PdI-crono_inv'!BL:BL))/I18,0)","v":0}]
[null,"incidenza ERC Env","%",null,null,{"$f":"+IFERROR((SUMIF('PdI-crono_inv'!$J:$J,\"Env\",'PdI-crono_inv'!AW:AW))/F18,0)","v":0},{"$f":"+IFERROR((SUMIF('PdI-crono_inv'!$J:$J,\"Env\",'PdI-crono_inv'!BB:BB))/G18,0)","v":0},{"$f":"+IFERROR((SUMIF('PdI-crono_inv'!$J:$J,\"Env\",'PdI-crono_inv'!BG:BG))/H18,0)","v":0},{"$f":"+IFERROR((SUMIF('PdI-crono_inv'!$J:$J,\"Env\",'PdI-crono_inv'!BL:BL))/I18,0)","v":0}]
[null,"Contributi - da foglio \"PdI-cronoprogramma_investimenti\"","euro",null,null,{"$f":"+SUM(OFFSET('PdI-crono_inv'!AX$4,1,0,COUNTA('PdI-crono_inv'!$CB:$CB),1))","v":0},{"$f":"+SUM(OFFSET('PdI-crono_inv'!BC$4,1,0,COUNTA('PdI-crono_inv'!$CB:$CB),1))","v":0},{"$f":"+SUM(OFFSET('PdI-crono_inv'!BH$4,1,0,COUNTA('PdI-crono_inv'!$CB:$CB),1))","v":0},{"$f":"+SUM(OFFSET('PdI-crono_inv'!BM$4,1,0,COUNTA('PdI-crono_inv'!$CB:$CB),1))","v":0}]
[null,"Contributi - da foglio \"Piano_Tariffario\"","euro",null,null,{"$f":"Piano_Tariffario!G82","v":0},{"$f":"Piano_Tariffario!H82","v":0},{"$f":"Piano_Tariffario!I82","v":0},{"$f":"Piano_Tariffario!J82","v":0}]
[null,"Check coerenza Contributi","euro",null,null,{"$f":"+F21-F22","v":0},0,0,0]
[null,"Contributi - da foglio \"PdI-cronoprogramma_investimenti\", di cui FoNI","euro",null,null,{"$f":"+SUMIFS('PdI-crono_inv'!AX:AX,'PdI-crono_inv'!U:U,\"X\")","v":0},{"$f":"+SUMIFS('PdI-crono_inv'!BC:BC,'PdI-crono_inv'!U:U,\"X\")","v":0},{"$f":"+SUMIFS('PdI-crono_inv'!BH:BH,'PdI-crono_inv'!U:U,\"X\")","v":0},{"$f":"+SUMIFS('PdI-crono_inv'!BM:BM,'PdI-crono_inv'!U:U,\"X\")","v":0}]
[null,"Valore investimento annuo (netto contributi) ","euro",null,null,{"$f":"F15-F21","v":0},0,0,0]
[null,null,null,null,null,null,null,"Previsto"]
[null,"Riepilogo Piano Opere Strategiche","UdM",2022,2023,2024,2025,2026,2027,2028,2029,2030,2031,2032,2033,2034,2035]
[null,"Valore investimento annuo (lordo contributi) ","euro",null,null,null,null,{"$f":"+SUMIF('PdI-crono_inv'!I:I,\"X\",'PdI-crono_inv'!AU:AU)","v":0},{"$f":"+SUMIF('PdI-crono_inv'!I:I,\"X\",'PdI-crono_inv'!AZ:AZ)","v":0},{"$f":"+SUMIF('PdI-crono_inv'!I:I,\"X\",'PdI-crono_inv'!BE:BE)","v":0},{"$f":"+SUMIF('PdI-crono_inv'!I:I,\"X\",'PdI-crono_inv'!BJ:BJ)","v":0},{"$f":"+SUM(OFFSET('POS-Piano_Opere_Strategiche'!AA$4,1,0,COUNTA('POS-Piano_Opere_Strategiche'!$AX:$AX),1))","v":0},{"$f":"+SUM(OFFSET('POS-Piano_Opere_Strategiche'!AD$4,1,0,COUNTA('POS-Piano_Opere_Strategiche'!$AX:$AX),1))","v":0},{"$f":"+SUM(OFFSET('POS-Piano_Opere_Strategiche'!AG$4,1,0,COUNTA('POS-Piano_Opere_Strategiche'!$AX:$AX),1))","v":0},{"$f":"+SUM(OFFSET('POS-Piano_Opere_Strategiche'!AJ$4,1,0,COUNTA('POS-Piano_Opere_Strategiche'!$AX:$AX),1))","v":0},{"$f":"+SUM(OFFSET('POS-Piano_Opere_Strategiche'!AM$4,1,0,COUNTA('POS-Piano_Opere_Strategiche'!$AX:$AX),1))","v":0},{"$f":"+SUM(OFFSET('POS-Piano_Opere_Strategiche'!AP$4,1,0,COUNTA('POS-Piano_Opere_Strategiche'!$AX:$AX),1))","v":0}]
[null,"Contributi ","euro",null,null,null,null,{"$f":"+SUMIF('PdI-crono_inv'!I:I,\"X\",'PdI-crono_inv'!AX:AX)","v":0},{"$f":"+SUMIF('PdI-crono_inv'!I:I,\"X\",'PdI-crono_inv'!BC:BC)","v":0},{"$f":"+SUMIF('PdI-crono_inv'!I:I,\"X\",'PdI-crono_inv'!BH:BH)","v":0},{"$f":"+SUMIF('PdI-crono_inv'!I:I,\"X\",'PdI-crono_inv'!BM:BM)","v":0},{"$f":"+SUM(OFFSET('POS-Piano_Opere_Strategiche'!AC$4,1,0,COUNTA('POS-Piano_Opere_Strategiche'!$AX:$AX),1))","v":0},{"$f":"+SUM(OFFSET('POS-Piano_Opere_Strategiche'!AF$4,1,0,COUNTA('POS-Piano_Opere_Strategiche'!$AX:$AX),1))","v":0},{"$f":"+SUM(OFFSET('POS-Piano_Opere_Strategiche'!AI$4,1,0,COUNTA('POS-Piano_Opere_Strategiche'!$AX:$AX),1))","v":0},{"$f":"+SUM(OFFSET('POS-Piano_Opere_Strategiche'!AL$4,1,0,COUNTA('POS-Piano_Opere_Strategiche'!$AX:$AX),1))","v":0},{"$f":"+SUM(OFFSET('POS-Piano_Opere_Strategiche'!AO$4,1,0,COUNTA('POS-Piano_Opere_Strategiche'!$AX:$AX),1))","v":0},{"$f":"+SUM(OFFSET('POS-Piano_Opere_Strategiche'!AR$4,1,0,COUNTA('POS-Piano_Opere_Strategiche'!$AX:$AX),1))","v":0}]
[null,"Valore investimento annuo (netto contributi) ","euro",null,null,null,null,{"$f":"+H28-H29","v":0},0,0,0,0,0,0,0,0,0]
[]
[]
[]
[null,null,null,2024,null,null,2025,null,null,null,null,null,2024,null,null,2025,null,null,null,null,null,2024,null,null,2025]
[null,"Costi operativi di qualità tecnica (lett. a)","UdM","RES","ENV","Non ERC","RES","ENV","Non ERC",null,"Costi operativi di qualità tecnica (lett. b)","UdM","RES","ENV","Non ERC","RES","ENV","Non ERC",null,"Costi operativi di qualità tecnica (lett. c) 477/2023/R/IDR)","UdM","RES","ENV","Non ERC","RES","ENV","Non ERC"]
[null,"costi endogeni","euro",{"$f":"+SUMIFS('PdI-crono_ges'!L:L,'PdI-crono_ges'!J:J,\"Res\",'PdI-crono_ges'!K:K,\"lettera a)\")","v":0},{"$f":"+SUMIFS('PdI-crono_ges'!L:L,'PdI-crono_ges'!J:J,\"ENV\",'PdI-crono_ges'!K:K,\"lettera a)\")","v":0},{"$f":"+SUMIFS('PdI-crono_ges'!L:L,'PdI-crono_ges'!J:J,\"Non ERC\",'PdI-crono_ges'!K:K,\"lettera a)\")","v":0},{"$f":"+SUMIFS('PdI-crono_ges'!P:P,'PdI-crono_ges'!J:J,\"Res\",'PdI-crono_ges'!K:K,\"lettera a)\")","v":0},{"$f":"+SUMIFS('PdI-crono_ges'!P:P,'PdI-crono_ges'!J:J,\"ENV\",'PdI-crono_ges'!K:K,\"lettera a)\")","v":0},{"$f":"+SUMIFS('PdI-crono_ges'!P:P,'PdI-crono_ges'!J:J,\"Non ERC\",'PdI-crono_ges'!K:K,\"lettera a)\")","v":0},null,"costi endogeni","euro",{"$f":"+SUMIFS('PdI-crono_ges'!L:L,'PdI-crono_ges'!J:J,\"Res\",'PdI-crono_ges'!K:K,\"lettera b)\")","v":0},{"$f":"+SUMIFS('PdI-crono_ges'!L:L,'PdI-crono_ges'!J:J,\"ENV\",'PdI-crono_ges'!K:K,\"lettera b)\")","v":0},{"$f":"+SUMIFS('PdI-crono_ges'!L:L,'PdI-crono_ges'!J:J,\"Non ERC\",'PdI-crono_ges'!K:K,\"lettera b)\")","v":0},{"$f":"+SUMIFS('PdI-crono_ges'!P:P,'PdI-crono_ges'!J:J,\"Res\",'PdI-crono_ges'!K:K,\"lettera b)\")","v":0},{"$f":"+SUMIFS('PdI-crono_ges'!P:P,'PdI-crono_ges'!J:J,\"ENV\",'PdI-crono_ges'!K:K,\"lettera b)\")","v":0},{"$f":"+SUMIFS('PdI-crono_ges'!P:P,'PdI-crono_ges'!J:J,\"Non ERC\",'PdI-crono_ges'!K:K,\"lettera b)\")","v":0},null,"costi endogeni","euro",{"$f":"+SUMIFS('PdI-crono_ges'!L:L,'PdI-crono_ges'!J:J,\"Res\",'PdI-crono_ges'!K:K,\"lettera c) 477/2023/R/IDR\")","v":0},{"$f":"+SUMIFS('PdI-crono_ges'!L:L,'PdI-crono_ges'!J:J,\"ENV\",'PdI-crono_ges'!K:K,\"lettera c) 477/2023/R/IDR\")","v":0},{"$f":"+SUMIFS('PdI-crono_ges'!L:L,'PdI-crono_ges'!J:J,\"Non ERC\",'PdI-crono_ges'!K:K,\"lettera c) 477/2023/R/IDR\")","v":0},{"$f":"+SUMIFS('PdI-crono_ges'!P:P,'PdI-crono_ges'!J:J,\"Res\",'PdI-crono_ges'!K:K,\"lettera c) 477/2023/R/IDR\")","v":0},{"$f":"+SUMIFS('PdI-crono_ges'!P:P,'PdI-crono_ges'!J:J,\"ENV\",'PdI-crono_ges'!K:K,\"lettera c) 477/2023/R/IDR\")","v":0},{"$f":"+SUMIFS('PdI-crono_ges'!P:P,'PdI-crono_ges'!J:J,\"Non ERC\",'PdI-crono_ges'!K:K,\"lettera c) 477/2023/R/IDR\")","v":0}]
[null,"costi aggiornabili","euro",{"$f":"+SUMIFS('PdI-crono_ges'!M:M,'PdI-crono_ges'!J:J,\"Res\",'PdI-crono_ges'!K:K,\"lettera a)\")","v":0},{"$f":"+SUMIFS('PdI-crono_ges'!M:M,'PdI-crono_ges'!J:J,\"ENV\",'PdI-crono_ges'!K:K,\"lettera a)\")","v":0},{"$f":"+SUMIFS('PdI-crono_ges'!M:M,'PdI-crono_ges'!J:J,\"Non ERC\",'PdI-crono_ges'!K:K,\"lettera a)\")","v":0},{"$f":"+SUMIFS('PdI-crono_ges'!Q:Q,'PdI-crono_ges'!J:J,\"Res\",'PdI-crono_ges'!K:K,\"lettera a)\")","v":0},{"$f":"+SUMIFS('PdI-crono_ges'!Q:Q,'PdI-crono_ges'!J:J,\"ENV\",'PdI-crono_ges'!K:K,\"lettera a)\")","v":0},{"$f":"+SUMIFS('PdI-crono_ges'!Q:Q,'PdI-crono_ges'!J:J,\"Non ERC\",'PdI-crono_ges'!K:K,\"lettera a)\")","v":0},null,"costi aggiornabili","euro",{"$f":"+SUMIFS('PdI-crono_ges'!M:M,'PdI-crono_ges'!J:J,\"Res\",'PdI-crono_ges'!K:K,\"lettera b)\")","v":0},{"$f":"+SUMIFS('PdI-crono_ges'!M:M,'PdI-crono_ges'!J:J,\"ENV\",'PdI-crono_ges'!K:K,\"lettera b)\")","v":0},{"$f":"+SUMIFS('PdI-crono_ges'!M:M,'PdI-crono_ges'!J:J,\"Non ERC\",'PdI-crono_ges'!K:K,\"lettera b)\")","v":0},{"$f":"+SUMIFS('PdI-crono_ges'!Q:Q,'PdI-crono_ges'!J:J,\"Res\",'PdI-crono_ges'!K:K,\"lettera b)\")","v":0},{"$f":"+SUMIFS('PdI-crono_ges'!Q:Q,'PdI-crono_ges'!J:J,\"ENV\",'PdI-crono_ges'!K:K,\"lettera b)\")","v":0},{"$f":"+SUMIFS('PdI-crono_ges'!Q:Q,'PdI-crono_ges'!J:J,\"Non ERC\",'PdI-crono_ges'!K:K,\"lettera b)\")","v":0},null,"costi aggiornabili","euro",{"$f":"+SUMIFS('PdI-crono_ges'!M:M,'PdI-crono_ges'!J:J,\"Res\",'PdI-crono_ges'!K:K,\"lettera c) 477/2023/R/IDR\")","v":0},{"$f":"+SUMIFS('PdI-crono_ges'!M:M,'PdI-crono_ges'!J:J,\"ENV\",'PdI-crono_ges'!K:K,\"lettera c) 477/2023/R/IDR\")","v":0},{"$f":"+SUMIFS('PdI-crono_ges'!M:M,'PdI-crono_ges'!J:J,\"Non ERC\",'PdI-crono_ges'!K:K,\"lettera c) 477/2023/R/IDR\")","v":0},{"$f":"+SUMIFS('PdI-crono_ges'!Q:Q,'PdI-crono_ges'!J:J,\"Res\",'PdI-crono_ges'!K:K,\"lettera c) 477/2023/R/IDR\")","v":0},{"$f":"+SUMIFS('PdI-crono_ges'!Q:Q,'PdI-crono_ges'!J:J,\"ENV\",'PdI-crono_ges'!K:K,\"lettera c) 477/2023/R/IDR\")","v":0},{"$f":"+SUMIFS('PdI-crono_ges'!Q:Q,'PdI-crono_ges'!J:J,\"Non ERC\",'PdI-crono_ges'!K:K,\"lettera c) 477/2023/R/IDR\")","v":0}]
[null,"costi associati a specifiche finalità","euro",{"$f":"+SUMIFS('PdI-crono_ges'!N:N,'PdI-crono_ges'!J:J,\"Res\",'PdI-crono_ges'!K:K,\"lettera a)\")","v":0},{"$f":"+SUMIFS('PdI-crono_ges'!N:N,'PdI-crono_ges'!J:J,\"ENV\",'PdI-crono_ges'!K:K,\"lettera a)\")","v":0},{"$f":"+SUMIFS('PdI-crono_ges'!N:N,'PdI-crono_ges'!J:J,\"Non ERC\",'PdI-crono_ges'!K:K,\"lettera a)\")","v":0},{"$f":"+SUMIFS('PdI-crono_ges'!R:R,'PdI-crono_ges'!J:J,\"Res\",'PdI-crono_ges'!K:K,\"lettera a)\")","v":0},{"$f":"+SUMIFS('PdI-crono_ges'!R:R,'PdI-crono_ges'!J:J,\"ENV\",'PdI-crono_ges'!K:K,\"lettera a)\")","v":0},{"$f":"+SUMIFS('PdI-crono_ges'!R:R,'PdI-crono_ges'!J:J,\"Non ERC\",'PdI-crono_ges'!K:K,\"lettera a)\")","v":0},null,"costi associati a specifiche finalità","euro",{"$f":"+SUMIFS('PdI-crono_ges'!N:N,'PdI-crono_ges'!J:J,\"Res\",'PdI-crono_ges'!K:K,\"lettera b)\")","v":0},{"$f":"+SUMIFS('PdI-crono_ges'!N:N,'PdI-crono_ges'!J:J,\"ENV\",'PdI-crono_ges'!K:K,\"lettera b)\")","v":0},{"$f":"+SUMIFS('PdI-crono_ges'!N:N,'PdI-crono_ges'!J:J,\"Non ERC\",'PdI-crono_ges'!K:K,\"lettera b)\")","v":0},{"$f":"+SUMIFS('PdI-crono_ges'!R:R,'PdI-crono_ges'!J:J,\"Res\",'PdI-crono_ges'!K:K,\"lettera b)\")","v":0},{"$f":"+SUMIFS('PdI-crono_ges'!R:R,'PdI-crono_ges'!J:J,\"ENV\",'PdI-crono_ges'!K:K,\"lettera b)\")","v":0},{"$f":"+SUMIFS('PdI-crono_ges'!R:R,'PdI-crono_ges'!J:J,\"Non ERC\",'PdI-crono_ges'!K:K,\"lettera b)\")","v":0},null,"costi associati a specifiche finalità","euro",{"$f":"+SUMIFS('PdI-crono_ges'!N:N,'PdI-crono_ges'!J:J,\"Res\",'PdI-crono_ges'!K:K,\"lettera c) 477/2023/R/IDR\")","v":0},{"$f":"+SUMIFS('PdI-crono_ges'!N:N,'PdI-crono_ges'!J:J,\"ENV\",'PdI-crono_ges'!K:K,\"lettera c) 477/2023/R/IDR\")","v":0},{"$f":"+SUMIFS('PdI-crono_ges'!N:N,'PdI-crono_ges'!J:J,\"Non ERC\",'PdI-crono_ges'!K:K,\"lettera c) 477/2023/R/IDR\")","v":0},{"$f":"+SUMIFS('PdI-crono_ges'!R:R,'PdI-crono_ges'!J:J,\"Res\",'PdI-crono_ges'!K:K,\"lettera c) 477/2023/R/IDR\")","v":0},{"$f":"+SUMIFS('PdI-crono_ges'!R:R,'PdI-crono_ges'!J:J,\"ENV\",'PdI-crono_ges'!K:K,\"lettera c) 477/2023/R/IDR\")","v":0},{"$f":"+SUMIFS('PdI-crono_ges'!R:R,'PdI-crono_ges'!J:J,\"Non ERC\",'PdI-crono_ges'!K:K,\"lettera c) 477/2023/R/IDR\")","v":0}]
[null,"Opex QT consuntivi (lettera a)","euro",{"$f":"+SUMIFS('PdI-crono_ges'!O:O,'PdI-crono_ges'!J:J,\"Res\",'PdI-crono_ges'!K:K,\"lettera a)\")","v":0},{"$f":"+SUMIFS('PdI-crono_ges'!O:O,'PdI-crono_ges'!J:J,\"ENV\",'PdI-crono_ges'!K:K,\"lettera a)\")","v":0},{"$f":"+SUMIFS('PdI-crono_ges'!O:O,'PdI-crono_ges'!J:J,\"Non ERC\",'PdI-crono_ges'!K:K,\"lettera a)\")","v":0},{"$f":"+SUMIFS('PdI-crono_ges'!S:S,'PdI-crono_ges'!J:J,\"Res\",'PdI-crono_ges'!K:K,\"lettera a)\")","v":0},{"$f":"+SUMIFS('PdI-crono_ges'!S:S,'PdI-crono_ges'!J:J,\"ENV\",'PdI-crono_ges'!K:K,\"lettera a)\")","v":0},{"$f":"+SUMIFS('PdI-crono_ges'!S:S,'PdI-crono_ges'!J:J,\"Non ERC\",'PdI-crono_ges'!K:K,\"lettera a)\")","v":0},null,"Opex QT consuntivi (lettera b)","euro",{"$f":"+SUMIFS('PdI-crono_ges'!O:O,'PdI-crono_ges'!J:J,\"Res\",'PdI-crono_ges'!K:K,\"lettera b)\")","v":0},{"$f":"+SUMIFS('PdI-crono_ges'!O:O,'PdI-crono_ges'!J:J,\"ENV\",'PdI-crono_ges'!K:K,\"lettera b)\")","v":0},{"$f":"+SUMIFS('PdI-crono_ges'!O:O,'PdI-crono_ges'!J:J,\"Non ERC\",'PdI-crono_ges'!K:K,\"lettera b)\")","v":0},{"$f":"+SUMIFS('PdI-crono_ges'!S:S,'PdI-crono_ges'!J:J,\"Res\",'PdI-crono_ges'!K:K,\"lettera b)\")","v":0},{"$f":"+SUMIFS('PdI-crono_ges'!S:S,'PdI-crono_ges'!J:J,\"ENV\",'PdI-crono_ges'!K:K,\"lettera b)\")","v":0},{"$f":"+SUMIFS('PdI-crono_ges'!S:S,'PdI-crono_ges'!J:J,\"Non ERC\",'PdI-crono_ges'!K:K,\"lettera b)\")","v":0},null,"Opex QT consuntivi (lettera c)","euro",{"$f":"+SUMIFS('PdI-crono_ges'!O:O,'PdI-crono_ges'!J:J,\"Res\",'PdI-crono_ges'!K:K,\"lettera c) 477/2023/R/IDR\")","v":0},{"$f":"+SUMIFS('PdI-crono_ges'!O:O,'PdI-crono_ges'!J:J,\"ENV\",'PdI-crono_ges'!K:K,\"lettera c) 477/2023/R/IDR\")","v":0},{"$f":"+SUMIFS('PdI-crono_ges'!O:O,'PdI-crono_ges'!J:J,\"Non ERC\",'PdI-crono_ges'!K:K,\"lettera c) 477/2023/R/IDR\")","v":0},{"$f":"+SUMIFS('PdI-crono_ges'!S:S,'PdI-crono_ges'!J:J,\"Res\",'PdI-crono_ges'!K:K,\"lettera c) 477/2023/R/IDR\")","v":0},{"$f":"+SUMIFS('PdI-crono_ges'!S:S,'PdI-crono_ges'!J:J,\"ENV\",'PdI-crono_ges'!K:K,\"lettera c) 477/2023/R/IDR\")","v":0},{"$f":"+SUMIFS('PdI-crono_ges'!S:S,'PdI-crono_ges'!J:J,\"Non ERC\",'PdI-crono_ges'!K:K,\"lettera c) 477/2023/R/IDR\")","v":0}]
[null,"Opex QT approvati (lettera a)","euro",{"$f":"+Opex!C95","v":0},null,null,{"$f":"+Opex!D95","v":0},null,null,null,"Opex QT approvati (lettera b)","euro",{"$f":"+Opex!C96","v":0},null,null,{"$f":"+Opex!D96","v":0},null,null,null,"Opex QT approvati (lettera c)","euro",{"$f":"+Opex!C97","v":0},null,null,{"$f":"+Opex!D97","v":0}]
[null,"Check rendicontazione Opex QT (lettera a)","euro",{"$f":"+D40-SUM(D39:F39)","v":0},{"$f":"+E40-E39","v":0},{"$f":"+F40-F39","v":0},{"$f":"+G40-SUM(G39:I39)","v":0},{"$f":"+H40-H39","v":0},{"$f":"+I40-I39","v":0},null,"Check rendicontazione Opex QT (lettera b)","euro",{"$f":"+M40-SUM(M39:O39)","v":0},{"$f":"+N40-N39","v":0},{"$f":"+O40-O39","v":0},{"$f":"+P40-SUM(P39:R39)","v":0},{"$f":"+Q40-Q39","v":0},{"$f":"+R40-R39","v":0},null,"Check rendicontazione Opex QT (lettera c)","euro",{"$f":"+V40-SUM(V39:X39)","v":0},{"$f":"+W40-W39","v":0},{"$f":"+X40-X39","v":0},{"$f":"+Y40-SUM(Y39:AA39)","v":0},{"$f":"+Z40-Z39","v":0},{"$f":"+AA40-AA39","v":0}]
[]
[]
[null,"Opex QT previsti 2026-2029","UdM",2024,2025,2026,2027,2028,2029]
[null,"Opex QT (al lordo degli ERCQT) ","euro",null,null,{"$f":"+SUM(F46:F48)","v":0},0,0,0]
[null,"di cui RES","euro",null,null,{"$f":"+SUMIF('PdI-crono_ges'!$J:$J,\"Res\",'PdI-crono_ges'!V:V)","v":0},{"$f":"+SUMIF('PdI-crono_ges'!$J:$J,\"Res\",'PdI-crono_ges'!W:W)","v":0},{"$f":"+SUMIF('PdI-crono_ges'!$J:$J,\"Res\",'PdI-crono_ges'!X:X)","v":0},{"$f":"+SUMIF('PdI-crono_ges'!$J:$J,\"Res\",'PdI-crono_ges'!Y:Y)","v":0}]
[null,"di cui ENV","euro",null,null,{"$f":"+SUMIF('PdI-crono_ges'!$J:$J,\"Env\",'PdI-crono_ges'!V:V)","v":0},{"$f":"+SUMIF('PdI-crono_ges'!$J:$J,\"Env\",'PdI-crono_ges'!W:W)","v":0},{"$f":"+SUMIF('PdI-crono_ges'!$J:$J,\"Env\",'PdI-crono_ges'!X:X)","v":0},{"$f":"+SUMIF('PdI-crono_ges'!$J:$J,\"Env\",'PdI-crono_ges'!Y:Y)","v":0}]
[null,"di cui Non ERC","euro",null,null,{"$f":"+SUMIF('PdI-crono_ges'!$J:$J,\"Non ERC\",'PdI-crono_ges'!V:V)","v":0},{"$f":"+SUMIF('PdI-crono_ges'!$J:$J,\"Non ERC\",'PdI-crono_ges'!W:W)","v":0},{"$f":"+SUMIF('PdI-crono_ges'!$J:$J,\"Non ERC\",'PdI-crono_ges'!X:X)","v":0},{"$f":"+SUMIF('PdI-crono_ges'!$J:$J,\"Non ERC\",'PdI-crono_ges'!Y:Y)","v":0}]
[]
[]
[]
[null,"Interventi funzionali alla risoluzione delle sentenze di condanna della Corte di Giustizia Europea e Contabilità speciale del Commissario Unico (Del. 440/2017/R/idr)","UdM","2026-2029"]
[null,"Fabbisogno degli investimenti per adeguamento agglomerati oggetto di condanne UE","euro",{"$f":"SUMIF('PdI-crono_inv'!BR:BR,\"X\",'PdI-crono_inv'!AU:AU)+SUMIF('PdI-crono_inv'!BR:BR,\"X\",'PdI-crono_inv'!AZ:AZ)+SUMIF('PdI-crono_inv'!BR:BR,\"X\",'PdI-crono_inv'!BE:BE)+SUMIF('PdI-crono_inv'!BR:BR,\"X\",'PdI-crono_inv'!BJ:BJ)","v":0}]
[null,"Fabbisogno di investimenti coperto da tariffa","euro",{"$f":"+D53-D55","v":0}]
[null,"Fabbisogno di investimenti coperto con risorse regionali o altre fonti pubbliche","euro",{"$f":"SUMIF('PdI-crono_inv'!BR:BR,\"X\",'PdI-crono_inv'!AX:AX)+SUMIF('PdI-crono_inv'!BR:BR,\"X\",'PdI-crono_inv'!BC:BC)+SUMIF('PdI-crono_inv'!BR:BR,\"X\",'PdI-crono_inv'!BH:BH)+SUMIF('PdI-crono_inv'!BR:BR,\"X\",'PdI-crono_inv'!BM:BM)","v":0}]
[null,"Parte del VRG destinata alla contabilità speciale del Commissario Unico","euro",{"$f":"+SUMIF('PdI-crono_inv'!BR:BR,\"X\",'PdI-crono_inv'!BT:BT)","v":0}]
[null,"Risorse regionali o altre fonti pubbliche destinate alla contabilità speciale del Commissario Unico","euro",{"$f":"+SUMIF('PdI-crono_inv'!BR:BR,\"X\",'PdI-crono_inv'!BU:BU)","v":0}]
[]
[]
[]
[]
[null,"Valori in euro ","Prerequisiti","M0","M1","M2","M3","M4","M5","M6","Altro"]
[]
[]
[]
[]
[]
[]
[null,"Valore investimento annuo (lordo contributi) 2024 - consuntivo",{"$f":"+SUMIF('PdI-crono_inv'!$D:$D,\"Preq1\",'PdI-crono_inv'!AK:AK)+SUMIF('PdI-crono_inv'!$D:$D,\"Preq2\",'PdI-crono_inv'!AK:AK)+SUMIF('PdI-crono_inv'!$D:$D,\"Preq3\",'PdI-crono_inv'!AK:AK)+SUMIF('PdI-crono_inv'!$D:$D,\"Preq4\",'PdI-crono_inv'!AK:AK)","v":0},{"$f":"+SUMIF('PdI-crono_inv'!$D:$D,D62,'PdI-crono_inv'!$AK:$AK)","v":0},{"$f":"+SUMIF('PdI-crono_inv'!$D:$D,E62,'PdI-crono_inv'!$AK:$AK)","v":0},{"$f":"+SUMIF('PdI-crono_inv'!$D:$D,$F62,'PdI-crono_inv'!AK:AK)","v":0},{"$f":"+SUMIF('PdI-crono_inv'!$D:$D,$G62,'PdI-crono_inv'!AK:AK)","v":0},{"$f":"+SUMIF('PdI-crono_inv'!$D:$D,\"M4a\",'PdI-crono_inv'!AK:AK)+SUMIF('PdI-crono_inv'!$D:$D,\"M4b\",'PdI-crono_inv'!AK:AK)+SUMIF('PdI-crono_inv'!$D:$D,\"M4c\",'PdI-crono_inv'!AK:AK)","v":0},{"$f":"+SUMIF('PdI-crono_inv'!$D:$D,$I62,'PdI-crono_inv'!AK:AK)","v":0},{"$f":"+SUMIF('PdI-crono_inv'!$D:$D,$J62,'PdI-crono_inv'!AK:AK)","v":0},{"$f":"+SUMIF('PdI-crono_inv'!$D:$D,$K62,'PdI-crono_inv'!AK:AK)","v":0}]
[null,"Contributi 2024 - consuntivo",{"$f":"+SUMIF('PdI-crono_inv'!$D:$D,\"Preq1\",'PdI-crono_inv'!AN:AN)+SUMIF('PdI-crono_inv'!$D:$D,\"Preq2\",'PdI-crono_inv'!AN:AN)+SUMIF('PdI-crono_inv'!$D:$D,\"Preq3\",'PdI-crono_inv'!AN:AN)+SUMIF('PdI-crono_inv'!$D:$D,\"Preq4\",'PdI-crono_inv'!AN:AN)","v":0},{"$f":"+SUMIF('PdI-crono_inv'!$D:$D,D62,'PdI-crono_inv'!$AN:$AN)","v":0},{"$f":"+SUMIF('PdI-crono_inv'!$D:$D,E62,'PdI-crono_inv'!$AN:$AN)","v":0},{"$f":"+SUMIF('PdI-crono_inv'!$D:$D,$F62,'PdI-crono_inv'!AN:AN)","v":0},{"$f":"+SUMIF('PdI-crono_inv'!$D:$D,$G62,'PdI-crono_inv'!AN:AN)","v":0},{"$f":"+SUMIF('PdI-crono_inv'!$D:$D,\"M4a\",'PdI-crono_inv'!AN:AN)+SUMIF('PdI-crono_inv'!$D:$D,\"M4b\",'PdI-crono_inv'!AN:AN)+SUMIF('PdI-crono_inv'!$D:$D,\"M4c\",'PdI-crono_inv'!AN:AN)","v":0},{"$f":"+SUMIF('PdI-crono_inv'!$D:$D,$I62,'PdI-crono_inv'!AN:AN)","v":0},{"$f":"+SUMIF('PdI-crono_inv'!$D:$D,$J62,'PdI-crono_inv'!AN:AN)","v":0},{"$f":"+SUMIF('PdI-crono_inv'!$D:$D,$K62,'PdI-crono_inv'!AN:AN)","v":0}]
[null,"Valore investimento annuo pro capite\n(lordo contributi) 2024",{"$f":"+IFERROR(C69/(MAX(Dati_tecnici!$E$15,Dati_tecnici!$E$23,Dati_tecnici!$E$29)),\"\")","v":""},{"$f":"+IFERROR(D69/(MAX(Dati_tecnici!$E$15,Dati_tecnici!$E$23,Dati_tecnici!$E$29)),\"\")","v":""},{"$f":"+IFERROR(E69/(MAX(Dati_tecnici!$E$15,Dati_tecnici!$E$23,Dati_tecnici!$E$29)),\"\")","v":""},{"$f":"+IFERROR(F69/(MAX(Dati_tecnici!$E$15,Dati_tecnici!$E$23,Dati_tecnici!$E$29)),\"\")","v":""},{"$f":"+IFERROR(G69/(MAX(Dati_tecnici!$E$15,Dati_tecnici!$E$23,Dati_tecnici!$E$29)),\"\")","v":""},{"$f":"+IFERROR(H69/(MAX(Dati_tecnici!$E$15,Dati_tecnici!$E$23,Dati_tecnici!$E$29)),\"\")","v":""},{"$f":"+IFERROR(I69/(MAX(Dati_tecnici!$E$15,Dati_tecnici!$E$23,Dati_tecnici!$E$29)),\"\")","v":""},{"$f":"+IFERROR(J69/(MAX(Dati_tecnici!$E$15,Dati_tecnici!$E$23,Dati_tecnici!$E$29)),\"\")","v":""},{"$f":"+IFERROR(K69/(MAX(Dati_tecnici!$E$15,Dati_tecnici!$E$23,Dati_tecnici!$E$29)),\"\")","v":""}]
[null,"Valore investimento annuo (lordo contributi) 2025 - preconsuntivo",{"$f":"+SUMIF('PdI-crono_inv'!$D:$D,\"Preq1\",'PdI-crono_inv'!AP:AP)+SUMIF('PdI-crono_inv'!$D:$D,\"Preq2\",'PdI-crono_inv'!AP:AP)+SUMIF('PdI-crono_inv'!$D:$D,\"Preq3\",'PdI-crono_inv'!AP:AP)+SUMIF('PdI-crono_inv'!$D:$D,\"Preq4\",'PdI-crono_inv'!AP:AP)","v":0},{"$f":"+SUMIF('PdI-crono_inv'!$D:$D,D62,'PdI-crono_inv'!$AP:$AP)","v":0},{"$f":"+SUMIF('PdI-crono_inv'!$D:$D,E62,'PdI-crono_inv'!$AP:$AP)","v":0},{"$f":"+SUMIF('PdI-crono_inv'!$D:$D,$F62,'PdI-crono_inv'!AP:AP)","v":0},{"$f":"+SUMIF('PdI-crono_inv'!$D:$D,$G62,'PdI-crono_inv'!AP:AP)","v":0},{"$f":"+SUMIF('PdI-crono_inv'!$D:$D,\"M4a\",'PdI-crono_inv'!AP:AP)+SUMIF('PdI-crono_inv'!$D:$D,\"M4b\",'PdI-crono_inv'!AP:AP)+SUMIF('PdI-crono_inv'!$D:$D,\"M4c\",'PdI-crono_inv'!AP:AP)","v":0},{"$f":"+SUMIF('PdI-crono_inv'!$D:$D,$I62,'PdI-crono_inv'!AP:AP)","v":0},{"$f":"+SUMIF('PdI-crono_inv'!$D:$D,$J62,'PdI-crono_inv'!AP:AP)","v":0},{"$f":"+SUMIF('PdI-crono_inv'!$D:$D,$K62,'PdI-crono_inv'!AP:AP)","v":0}]
[null,"Contributi 2025 - preconsuntivo",{"$f":"+SUMIF('PdI-crono_inv'!$D:$D,\"Preq1\",'PdI-crono_inv'!AS:AS)+SUMIF('PdI-crono_inv'!$D:$D,\"Preq2\",'PdI-crono_inv'!AS:AS)+SUMIF('PdI-crono_inv'!$D:$D,\"Preq3\",'PdI-crono_inv'!AS:AS)+SUMIF('PdI-crono_inv'!$D:$D,\"Preq4\",'PdI-crono_inv'!AS:AS)","v":0},{"$f":"+SUMIF('PdI-crono_inv'!$D:$D,D62,'PdI-crono_inv'!$AS:$AS)","v":0},{"$f":"+SUMIF('PdI-crono_inv'!$D:$D,E62,'PdI-crono_inv'!$AS:$AS)","v":0},{"$f":"+SUMIF('PdI-crono_inv'!$D:$D,$F62,'PdI-crono_inv'!AS:AS)","v":0},{"$f":"+SUMIF('PdI-crono_inv'!$D:$D,$G62,'PdI-crono_inv'!AS:AS)","v":0},{"$f":"+SUMIF('PdI-crono_inv'!$D:$D,\"M4a\",'PdI-crono_inv'!AS:AS)+SUMIF('PdI-crono_inv'!$D:$D,\"M4b\",'PdI-crono_inv'!AS:AS)+SUMIF('PdI-crono_inv'!$D:$D,\"M4c\",'PdI-crono_inv'!AS:AS)","v":0},{"$f":"+SUMIF('PdI-crono_inv'!$D:$D,$I62,'PdI-crono_inv'!AS:AS)","v":0},{"$f":"+SUMIF('PdI-crono_inv'!$D:$D,$J62,'PdI-crono_inv'!AS:AS)","v":0},{"$f":"+SUMIF('PdI-crono_inv'!$D:$D,$K62,'PdI-crono_inv'!AS:AS)","v":0}]
[null,"Valore investimento annuo pro capite\n(lordo contributi) 2025",{"$f":"+IFERROR(C72/(MAX(Dati_tecnici!$E$15,Dati_tecnici!$E$23,Dati_tecnici!$E$29)),\"\")","v":""},{"$f":"+IFERROR(D72/(MAX(Dati_tecnici!$E$15,Dati_tecnici!$E$23,Dati_tecnici!$E$29)),\"\")","v":""},{"$f":"+IFERROR(E72/(MAX(Dati_tecnici!$E$15,Dati_tecnici!$E$23,Dati_tecnici!$E$29)),\"\")","v":""},{"$f":"+IFERROR(F72/(MAX(Dati_tecnici!$E$15,Dati_tecnici!$E$23,Dati_tecnici!$E$29)),\"\")","v":""},{"$f":"+IFERROR(G72/(MAX(Dati_tecnici!$E$15,Dati_tecnici!$E$23,Dati_tecnici!$E$29)),\"\")","v":""},{"$f":"+IFERROR(H72/(MAX(Dati_tecnici!$E$15,Dati_tecnici!$E$23,Dati_tecnici!$E$29)),\"\")","v":""},{"$f":"+IFERROR(I72/(MAX(Dati_tecnici!$E$15,Dati_tecnici!$E$23,Dati_tecnici!$E$29)),\"\")","v":""},{"$f":"+IFERROR(J72/(MAX(Dati_tecnici!$E$15,Dati_tecnici!$E$23,Dati_tecnici!$E$29)),\"\")","v":""},{"$f":"+IFERROR(K72/(MAX(Dati_tecnici!$E$15,Dati_tecnici!$E$23,Dati_tecnici!$E$29)),\"\")","v":""}]
[null,"Valore investimento annuo (lordo contributi) 2026 - pianificato",{"$f":"+SUMIF('PdI-crono_inv'!$D:$D,\"Preq1\",'PdI-crono_inv'!AU:AU)+SUMIF('PdI-crono_inv'!$D:$D,\"Preq2\",'PdI-crono_inv'!AU:AU)+SUMIF('PdI-crono_inv'!$D:$D,\"Preq3\",'PdI-crono_inv'!AU:AU)+SUMIF('PdI-crono_inv'!$D:$D,\"Preq4\",'PdI-crono_inv'!AU:AU)","v":0},{"$f":"+SUMIF('PdI-crono_inv'!$D:$D,D62,'PdI-crono_inv'!$AU:$AU)","v":0},{"$f":"+SUMIF('PdI-crono_inv'!$D:$D,E62,'PdI-crono_inv'!$AU:$AU)","v":0},{"$f":"+SUMIF('PdI-crono_inv'!$D:$D,$F62,'PdI-crono_inv'!AU:AU)","v":0},{"$f":"+SUMIF('PdI-crono_inv'!$D:$D,$G62,'PdI-crono_inv'!AU:AU)","v":0},{"$f":"+SUMIF('PdI-crono_inv'!$D:$D,\"M4a\",'PdI-crono_inv'!AU:AU)+SUMIF('PdI-crono_inv'!$D:$D,\"M4b\",'PdI-crono_inv'!AU:AU)+SUMIF('PdI-crono_inv'!$D:$D,\"M4c\",'PdI-crono_inv'!AU:AU)","v":0},{"$f":"+SUMIF('PdI-crono_inv'!$D:$D,$I62,'PdI-crono_inv'!AU:AU)","v":0},{"$f":"+SUMIF('PdI-crono_inv'!$D:$D,$J62,'PdI-crono_inv'!AU:AU)","v":0},{"$f":"+SUMIF('PdI-crono_inv'!$D:$D,$K62,'PdI-crono_inv'!AU:AU)","v":0}]
[null,"Contributi 2026 - pianificato",{"$f":"+SUMIF('PdI-crono_inv'!$D:$D,\"Preq1\",'PdI-crono_inv'!AX:AX)+SUMIF('PdI-crono_inv'!$D:$D,\"Preq2\",'PdI-crono_inv'!AX:AX)+SUMIF('PdI-crono_inv'!$D:$D,\"Preq3\",'PdI-crono_inv'!AX:AX)+SUMIF('PdI-crono_inv'!$D:$D,\"Preq4\",'PdI-crono_inv'!AX:AX)","v":0},{"$f":"+SUMIF('PdI-crono_inv'!$D:$D,D62,'PdI-crono_inv'!$AX:$AX)","v":0},{"$f":"+SUMIF('PdI-crono_inv'!$D:$D,E62,'PdI-crono_inv'!$AX:$AX)","v":0},{"$f":"+SUMIF('PdI-crono_inv'!$D:$D,$F62,'PdI-crono_inv'!AX:AX)","v":0},{"$f":"+SUMIF('PdI-crono_inv'!$D:$D,$G62,'PdI-crono_inv'!AX:AX)","v":0},{"$f":"+SUMIF('PdI-crono_inv'!$D:$D,\"M4a\",'PdI-crono_inv'!AX:AX)+SUMIF('PdI-crono_inv'!$D:$D,\"M4b\",'PdI-crono_inv'!AX:AX)+SUMIF('PdI-crono_inv'!$D:$D,\"M4c\",'PdI-crono_inv'!AX:AX)","v":0},{"$f":"+SUMIF('PdI-crono_inv'!$D:$D,$I62,'PdI-crono_inv'!AX:AX)","v":0},{"$f":"+SUMIF('PdI-crono_inv'!$D:$D,$J62,'PdI-crono_inv'!AX:AX)","v":0},{"$f":"+SUMIF('PdI-crono_inv'!$D:$D,$K62,'PdI-crono_inv'!AX:AX)","v":0}]
[null,"Valore investimento annuo pro capite\n(lordo contributi) 2026",{"$f":"+IFERROR(C75/(MAX(Dati_tecnici!$E$15,Dati_tecnici!$E$23,Dati_tecnici!$E$29)),\"\")","v":""},{"$f":"+IFERROR(D75/(MAX(Dati_tecnici!$E$15,Dati_tecnici!$E$23,Dati_tecnici!$E$29)),\"\")","v":""},{"$f":"+IFERROR(E75/(MAX(Dati_tecnici!$E$15,Dati_tecnici!$E$23,Dati_tecnici!$E$29)),\"\")","v":""},{"$f":"+IFERROR(F75/(MAX(Dati_tecnici!$E$15,Dati_tecnici!$E$23,Dati_tecnici!$E$29)),\"\")","v":""},{"$f":"+IFERROR(G75/(MAX(Dati_tecnici!$E$15,Dati_tecnici!$E$23,Dati_tecnici!$E$29)),\"\")","v":""},{"$f":"+IFERROR(H75/(MAX(Dati_tecnici!$E$15,Dati_tecnici!$E$23,Dati_tecnici!$E$29)),\"\")","v":""},{"$f":"+IFERROR(I75/(MAX(Dati_tecnici!$E$15,Dati_tecnici!$E$23,Dati_tecnici!$E$29)),\"\")","v":""},{"$f":"+IFERROR(J75/(MAX(Dati_tecnici!$E$15,Dati_tecnici!$E$23,Dati_tecnici!$E$29)),\"\")","v":""},{"$f":"+IFERROR(K75/(MAX(Dati_tecnici!$E$15,Dati_tecnici!$E$23,Dati_tecnici!$E$29)),\"\")","v":""}]
[null,"Valore investimento annuo (lordo contributi) 2027 - pianificato",{"$f":"+SUMIF('PdI-crono_inv'!$D:$D,\"Preq1\",'PdI-crono_inv'!AZ:AZ)+SUMIF('PdI-crono_inv'!$D:$D,\"Preq2\",'PdI-crono_inv'!AZ:AZ)+SUMIF('PdI-crono_inv'!$D:$D,\"Preq3\",'PdI-crono_inv'!AZ:AZ)+SUMIF('PdI-crono_inv'!$D:$D,\"Preq4\",'PdI-crono_inv'!AZ:AZ)","v":0},{"$f":"+SUMIF('PdI-crono_inv'!$D:$D,D62,'PdI-crono_inv'!$AZ:$AZ)","v":0},{"$f":"+SUMIF('PdI-crono_inv'!$D:$D,E62,'PdI-crono_inv'!$AZ:$AZ)","v":0},{"$f":"+SUMIF('PdI-crono_inv'!$D:$D,$F62,'PdI-crono_inv'!AZ:AZ)","v":0},{"$f":"+SUMIF('PdI-crono_inv'!$D:$D,$G62,'PdI-crono_inv'!AZ:AZ)","v":0},{"$f":"+SUMIF('PdI-crono_inv'!$D:$D,\"M4a\",'PdI-crono_inv'!AZ:AZ)+SUMIF('PdI-crono_inv'!$D:$D,\"M4b\",'PdI-crono_inv'!AZ:AZ)+SUMIF('PdI-crono_inv'!$D:$D,\"M4c\",'PdI-crono_inv'!AZ:AZ)","v":0},{"$f":"+SUMIF('PdI-crono_inv'!$D:$D,$I62,'PdI-crono_inv'!AZ:AZ)","v":0},{"$f":"+SUMIF('PdI-crono_inv'!$D:$D,$J62,'PdI-crono_inv'!AZ:AZ)","v":0},{"$f":"+SUMIF('PdI-crono_inv'!$D:$D,$K62,'PdI-crono_inv'!AZ:AZ)","v":0}]
[null,"Contributi 2027 - pianificato",{"$f":"+SUMIF('PdI-crono_inv'!$D:$D,\"Preq1\",'PdI-crono_inv'!BC:BC)+SUMIF('PdI-crono_inv'!$D:$D,\"Preq2\",'PdI-crono_inv'!BC:BC)+SUMIF('PdI-crono_inv'!$D:$D,\"Preq3\",'PdI-crono_inv'!BC:BC)+SUMIF('PdI-crono_inv'!$D:$D,\"Preq4\",'PdI-crono_inv'!BC:BC)","v":0},{"$f":"+SUMIF('PdI-crono_inv'!$D:$D,D62,'PdI-crono_inv'!$BC:$BC)","v":0},{"$f":"+SUMIF('PdI-crono_inv'!$D:$D,E62,'PdI-crono_inv'!$BC:$BC)","v":0},{"$f":"+SUMIF('PdI-crono_inv'!$D:$D,$F62,'PdI-crono_inv'!BC:BC)","v":0},{"$f":"+SUMIF('PdI-crono_inv'!$D:$D,$G62,'PdI-crono_inv'!BC:BC)","v":0},{"$f":"+SUMIF('PdI-crono_inv'!$D:$D,\"M4a\",'PdI-crono_inv'!BC:BC)+SUMIF('PdI-crono_inv'!$D:$D,\"M4b\",'PdI-crono_inv'!BC:BC)+SUMIF('PdI-crono_inv'!$D:$D,\"M4c\",'PdI-crono_inv'!BC:BC)","v":0},{"$f":"+SUMIF('PdI-crono_inv'!$D:$D,$I62,'PdI-crono_inv'!BC:BC)","v":0},{"$f":"+SUMIF('PdI-crono_inv'!$D:$D,$J62,'PdI-crono_inv'!BC:BC)","v":0},{"$f":"+SUMIF('PdI-crono_inv'!$D:$D,$K62,'PdI-crono_inv'!BC:BC)","v":0}]
[null,"Valore investimento annuo pro capite\n(lordo contributi) 2027",{"$f":"+IFERROR(C78/(MAX(Dati_tecnici!$E$15,Dati_tecnici!$E$23,Dati_tecnici!$E$29)),\"\")","v":""},{"$f":"+IFERROR(D78/(MAX(Dati_tecnici!$E$15,Dati_tecnici!$E$23,Dati_tecnici!$E$29)),\"\")","v":""},{"$f":"+IFERROR(E78/(MAX(Dati_tecnici!$E$15,Dati_tecnici!$E$23,Dati_tecnici!$E$29)),\"\")","v":""},{"$f":"+IFERROR(F78/(MAX(Dati_tecnici!$E$15,Dati_tecnici!$E$23,Dati_tecnici!$E$29)),\"\")","v":""},{"$f":"+IFERROR(G78/(MAX(Dati_tecnici!$E$15,Dati_tecnici!$E$23,Dati_tecnici!$E$29)),\"\")","v":""},{"$f":"+IFERROR(H78/(MAX(Dati_tecnici!$E$15,Dati_tecnici!$E$23,Dati_tecnici!$E$29)),\"\")","v":""},{"$f":"+IFERROR(I78/(MAX(Dati_tecnici!$E$15,Dati_tecnici!$E$23,Dati_tecnici!$E$29)),\"\")","v":""},{"$f":"+IFERROR(J78/(MAX(Dati_tecnici!$E$15,Dati_tecnici!$E$23,Dati_tecnici!$E$29)),\"\")","v":""},{"$f":"+IFERROR(K78/(MAX(Dati_tecnici!$E$15,Dati_tecnici!$E$23,Dati_tecnici!$E$29)),\"\")","v":""}]
[null,"Valore investimento annuo (lordo contributi) 2028 - pianificato",{"$f":"+SUMIF('PdI-crono_inv'!$D:$D,\"Preq1\",'PdI-crono_inv'!BE:BE)+SUMIF('PdI-crono_inv'!$D:$D,\"Preq2\",'PdI-crono_inv'!BE:BE)+SUMIF('PdI-crono_inv'!$D:$D,\"Preq3\",'PdI-crono_inv'!BE:BE)+SUMIF('PdI-crono_inv'!$D:$D,\"Preq4\",'PdI-crono_inv'!BE:BE)","v":0},{"$f":"+SUMIF('PdI-crono_inv'!$D:$D,D62,'PdI-crono_inv'!$BE:$BE)","v":0},{"$f":"+SUMIF('PdI-crono_inv'!$D:$D,E62,'PdI-crono_inv'!$BE:$BE)","v":0},{"$f":"+SUMIF('PdI-crono_inv'!$D:$D,$F62,'PdI-crono_inv'!BE:BE)","v":0},{"$f":"+SUMIF('PdI-crono_inv'!$D:$D,$G62,'PdI-crono_inv'!BE:BE)","v":0},{"$f":"+SUMIF('PdI-crono_inv'!$D:$D,\"M4a\",'PdI-crono_inv'!BE:BE)+SUMIF('PdI-crono_inv'!$D:$D,\"M4b\",'PdI-crono_inv'!BE:BE)+SUMIF('PdI-crono_inv'!$D:$D,\"M4c\",'PdI-crono_inv'!BE:BE)","v":0},{"$f":"+SUMIF('PdI-crono_inv'!$D:$D,$I62,'PdI-crono_inv'!BE:BE)","v":0},{"$f":"+SUMIF('PdI-crono_inv'!$D:$D,$J62,'PdI-crono_inv'!BE:BE)","v":0},{"$f":"+SUMIF('PdI-crono_inv'!$D:$D,$K62,'PdI-crono_inv'!BE:BE)","v":0}]
[null,"Contributi 2028 - pianificato",{"$f":"+SUMIF('PdI-crono_inv'!$D:$D,\"Preq1\",'PdI-crono_inv'!BH:BH)+SUMIF('PdI-crono_inv'!$D:$D,\"Preq2\",'PdI-crono_inv'!BH:BH)+SUMIF('PdI-crono_inv'!$D:$D,\"Preq3\",'PdI-crono_inv'!BH:BH)+SUMIF('PdI-crono_inv'!$D:$D,\"Preq4\",'PdI-crono_inv'!BH:BH)","v":0},{"$f":"+SUMIF('PdI-crono_inv'!$D:$D,D62,'PdI-crono_inv'!$BH:$BH)","v":0},{"$f":"+SUMIF('PdI-crono_inv'!$D:$D,E62,'PdI-crono_inv'!$BH:$BH)","v":0},{"$f":"+SUMIF('PdI-crono_inv'!$D:$D,$F62,'PdI-crono_inv'!BH:BH)","v":0},{"$f":"+SUMIF('PdI-crono_inv'!$D:$D,$G62,'PdI-crono_inv'!BH:BH)","v":0},{"$f":"+SUMIF('PdI-crono_inv'!$D:$D,\"M4a\",'PdI-crono_inv'!BH:BH)+SUMIF('PdI-crono_inv'!$D:$D,\"M4b\",'PdI-crono_inv'!BH:BH)+SUMIF('PdI-crono_inv'!$D:$D,\"M4c\",'PdI-crono_inv'!BH:BH)","v":0},{"$f":"+SUMIF('PdI-crono_inv'!$D:$D,$I62,'PdI-crono_inv'!BH:BH)","v":0},{"$f":"+SUMIF('PdI-crono_inv'!$D:$D,$J62,'PdI-crono_inv'!BH:BH)","v":0},{"$f":"+SUMIF('PdI-crono_inv'!$D:$D,$K62,'PdI-crono_inv'!BH:BH)","v":0}]
[null,"Valore investimento annuo pro capite\n(lordo contributi) 2028",{"$f":"+IFERROR(C81/(MAX(Dati_tecnici!$E$15,Dati_tecnici!$E$23,Dati_tecnici!$E$29)),\"\")","v":""},{"$f":"+IFERROR(D81/(MAX(Dati_tecnici!$E$15,Dati_tecnici!$E$23,Dati_tecnici!$E$29)),\"\")","v":""},{"$f":"+IFERROR(E81/(MAX(Dati_tecnici!$E$15,Dati_tecnici!$E$23,Dati_tecnici!$E$29)),\"\")","v":""},{"$f":"+IFERROR(F81/(MAX(Dati_tecnici!$E$15,Dati_tecnici!$E$23,Dati_tecnici!$E$29)),\"\")","v":""},{"$f":"+IFERROR(G81/(MAX(Dati_tecnici!$E$15,Dati_tecnici!$E$23,Dati_tecnici!$E$29)),\"\")","v":""},{"$f":"+IFERROR(H81/(MAX(Dati_tecnici!$E$15,Dati_tecnici!$E$23,Dati_tecnici!$E$29)),\"\")","v":""},{"$f":"+IFERROR(I81/(MAX(Dati_tecnici!$E$15,Dati_tecnici!$E$23,Dati_tecnici!$E$29)),\"\")","v":""},{"$f":"+IFERROR(J81/(MAX(Dati_tecnici!$E$15,Dati_tecnici!$E$23,Dati_tecnici!$E$29)),\"\")","v":""},{"$f":"+IFERROR(K81/(MAX(Dati_tecnici!$E$15,Dati_tecnici!$E$23,Dati_tecnici!$E$29)),\"\")","v":""}]
[null,"Valore investimento annuo (lordo contributi) 2029 - pianificato",{"$f":"+SUMIF('PdI-crono_inv'!$D:$D,\"Preq1\",'PdI-crono_inv'!BJ:BJ)+SUMIF('PdI-crono_inv'!$D:$D,\"Preq2\",'PdI-crono_inv'!BJ:BJ)+SUMIF('PdI-crono_inv'!$D:$D,\"Preq3\",'PdI-crono_inv'!BJ:BJ)+SUMIF('PdI-crono_inv'!$D:$D,\"Preq4\",'PdI-crono_inv'!BJ:BJ)","v":0},{"$f":"+SUMIF('PdI-crono_inv'!$D:$D,D62,'PdI-crono_inv'!$BJ:$BJ)","v":0},{"$f":"+SUMIF('PdI-crono_inv'!$D:$D,E62,'PdI-crono_inv'!$BJ:$BJ)","v":0},{"$f":"+SUMIF('PdI-crono_inv'!$D:$D,$F62,'PdI-crono_inv'!BJ:BJ)","v":0},{"$f":"+SUMIF('PdI-crono_inv'!$D:$D,$G62,'PdI-crono_inv'!BJ:BJ)","v":0},{"$f":"+SUMIF('PdI-crono_inv'!$D:$D,\"M4a\",'PdI-crono_inv'!BJ:BJ)+SUMIF('PdI-crono_inv'!$D:$D,\"M4b\",'PdI-crono_inv'!BJ:BJ)+SUMIF('PdI-crono_inv'!$D:$D,\"M4c\",'PdI-crono_inv'!BJ:BJ)","v":0},{"$f":"+SUMIF('PdI-crono_inv'!$D:$D,$I62,'PdI-crono_inv'!BJ:BJ)","v":0},{"$f":"+SUMIF('PdI-crono_inv'!$D:$D,$J62,'PdI-crono_inv'!BJ:BJ)","v":0},{"$f":"+SUMIF('PdI-crono_inv'!$D:$D,$K62,'PdI-crono_inv'!BJ:BJ)","v":0}]
[null,"Contributi 2029 - pianificato",{"$f":"+SUMIF('PdI-crono_inv'!$D:$D,\"Preq1\",'PdI-crono_inv'!BM:BM)+SUMIF('PdI-crono_inv'!$D:$D,\"Preq2\",'PdI-crono_inv'!BM:BM)+SUMIF('PdI-crono_inv'!$D:$D,\"Preq3\",'PdI-crono_inv'!BM:BM)+SUMIF('PdI-crono_inv'!$D:$D,\"Preq4\",'PdI-crono_inv'!BM:BM)","v":0},{"$f":"+SUMIF('PdI-crono_inv'!$D:$D,D62,'PdI-crono_inv'!$BM:$BM)","v":0},{"$f":"+SUMIF('PdI-crono_inv'!$D:$D,E62,'PdI-crono_inv'!$BM:$BM)","v":0},{"$f":"+SUMIF('PdI-crono_inv'!$D:$D,$F62,'PdI-crono_inv'!BM:BM)","v":0},{"$f":"+SUMIF('PdI-crono_inv'!$D:$D,$G62,'PdI-crono_inv'!BM:BM)","v":0},{"$f":"+SUMIF('PdI-crono_inv'!$D:$D,\"M4a\",'PdI-crono_inv'!BM:BM)+SUMIF('PdI-crono_inv'!$D:$D,\"M4b\",'PdI-crono_inv'!BM:BM)+SUMIF('PdI-crono_inv'!$D:$D,\"M4c\",'PdI-crono_inv'!BM:BM)","v":0},{"$f":"+SUMIF('PdI-crono_inv'!$D:$D,$I62,'PdI-crono_inv'!BM:BM)","v":0},{"$f":"+SUMIF('PdI-crono_inv'!$D:$D,$J62,'PdI-crono_inv'!BM:BM)","v":0},{"$f":"+SUMIF('PdI-crono_inv'!$D:$D,$K62,'PdI-crono_inv'!BM:BM)","v":0}]
[null,"Valore investimento annuo pro capite\n(lordo contributi) 2029",{"$f":"+IFERROR(C84/(MAX(Dati_tecnici!$E$15,Dati_tecnici!$E$23,Dati_tecnici!$E$29)),\"\")","v":""},{"$f":"+IFERROR(D84/(MAX(Dati_tecnici!$E$15,Dati_tecnici!$E$23,Dati_tecnici!$E$29)),\"\")","v":""},{"$f":"+IFERROR(E84/(MAX(Dati_tecnici!$E$15,Dati_tecnici!$E$23,Dati_tecnici!$E$29)),\"\")","v":""},{"$f":"+IFERROR(F84/(MAX(Dati_tecnici!$E$15,Dati_tecnici!$E$23,Dati_tecnici!$E$29)),\"\")","v":""},{"$f":"+IFERROR(G84/(MAX(Dati_tecnici!$E$15,Dati_tecnici!$E$23,Dati_tecnici!$E$29)),\"\")","v":""},{"$f":"+IFERROR(H84/(MAX(Dati_tecnici!$E$15,Dati_tecnici!$E$23,Dati_tecnici!$E$29)),\"\")","v":""},{"$f":"+IFERROR(I84/(MAX(Dati_tecnici!$E$15,Dati_tecnici!$E$23,Dati_tecnici!$E$29)),\"\")","v":""},{"$f":"+IFERROR(J84/(MAX(Dati_tecnici!$E$15,Dati_tecnici!$E$23,Dati_tecnici!$E$29)),\"\")","v":""},{"$f":"+IFERROR(K84/(MAX(Dati_tecnici!$E$15,Dati_tecnici!$E$23,Dati_tecnici!$E$29)),\"\")","v":""}]
[]
[]
[null,"Valori in euro ","MC1","MC2"]
[]
[]
[]
[]
[]
[]
[null,"Valore investimento annuo (lordo contributi) 2024 - consuntivo",{"$f":"+SUMIF('PdI-crono_inv'!$D:$D,$C89,'PdI-crono_inv'!$AK:$AK)","v":0},{"$f":"+SUMIF('PdI-crono_inv'!$D:$D,$D89,'PdI-crono_inv'!$AK:$AK)","v":0}]
[null,"Contributi 2024 - consuntivo",{"$f":"+SUMIF('PdI-crono_inv'!$D:$D,$C89,'PdI-crono_inv'!$AN:$AN)","v":0},{"$f":"+SUMIF('PdI-crono_inv'!$D:$D,$D89,'PdI-crono_inv'!$AN:$AN)","v":0}]
[null,"Valore investimento annuo pro capite\n(lordo contributi) 2024",{"$f":"+IFERROR(C96/(MAX(Dati_tecnici!$E$15,Dati_tecnici!$E$23,Dati_tecnici!$E$29)),\"\")","v":""},{"$f":"+IFERROR(D96/(MAX(Dati_tecnici!$E$15,Dati_tecnici!$E$23,Dati_tecnici!$E$29)),\"\")","v":""}]
[null,"Valore investimento annuo (lordo contributi) 2025 - preconsuntivo",{"$f":"+SUMIF('PdI-crono_inv'!$D:$D,$C89,'PdI-crono_inv'!$AP:$AP)","v":0},{"$f":"+SUMIF('PdI-crono_inv'!$D:$D,$D89,'PdI-crono_inv'!$AP:$AP)","v":0}]
[null,"Contributi 2025 - preconsuntivo",{"$f":"+SUMIF('PdI-crono_inv'!$D:$D,$C89,'PdI-crono_inv'!$AS:$AS)","v":0},{"$f":"+SUMIF('PdI-crono_inv'!$D:$D,$D89,'PdI-crono_inv'!$AS:$AS)","v":0}]
[null,"Valore investimento annuo pro capite\n(lordo contributi) 2025",{"$f":"+IFERROR(C99/(MAX(Dati_tecnici!$E$15,Dati_tecnici!$E$23,Dati_tecnici!$E$29)),\"\")","v":""},{"$f":"+IFERROR(D99/(MAX(Dati_tecnici!$E$15,Dati_tecnici!$E$23,Dati_tecnici!$E$29)),\"\")","v":""}]
[null,"Valore investimento annuo (lordo contributi) 2026 - pianificato",{"$f":"+SUMIF('PdI-crono_inv'!$D:$D,$C89,'PdI-crono_inv'!$AU:$AU)","v":0},{"$f":"+SUMIF('PdI-crono_inv'!$D:$D,$D89,'PdI-crono_inv'!AU:AU)","v":0}]
[null,"Contributi 2026 - pianificato",{"$f":"+SUMIF('PdI-crono_inv'!$D:$D,$C89,'PdI-crono_inv'!$AX:$AX)","v":0},{"$f":"+SUMIF('PdI-crono_inv'!$D:$D,$D89,'PdI-crono_inv'!AX:AX)","v":0}]
[null,"Valore investimento annuo pro capite\n(lordo contributi) 2026",{"$f":"+IFERROR(C102/(MAX(Dati_tecnici!$E$15,Dati_tecnici!$E$23,Dati_tecnici!$E$29)),\"\")","v":""},{"$f":"+IFERROR(D102/(MAX(Dati_tecnici!$E$15,Dati_tecnici!$E$23,Dati_tecnici!$E$29)),\"\")","v":""}]
[null,"Valore investimento annuo (lordo contributi) 2027 - pianificato",{"$f":"+SUMIF('PdI-crono_inv'!$D:$D,$C89,'PdI-crono_inv'!$AZ:$AZ)","v":0},{"$f":"+SUMIF('PdI-crono_inv'!$D:$D,$D89,'PdI-crono_inv'!AZ:AZ)","v":0}]
[null,"Contributi 2027 - pianificato",{"$f":"+SUMIF('PdI-crono_inv'!$D:$D,$C89,'PdI-crono_inv'!$BC:$BC)","v":0},{"$f":"+SUMIF('PdI-crono_inv'!$D:$D,$D89,'PdI-crono_inv'!BC:BC)","v":0}]
[null,"Valore investimento annuo pro capite\n(lordo contributi) 2027",{"$f":"+IFERROR(C105/(MAX(Dati_tecnici!$E$15,Dati_tecnici!$E$23,Dati_tecnici!$E$29)),\"\")","v":""},{"$f":"+IFERROR(D105/(MAX(Dati_tecnici!$E$15,Dati_tecnici!$E$23,Dati_tecnici!$E$29)),\"\")","v":""}]
[null,"Valore investimento annuo (lordo contributi) 2028 - pianificato",{"$f":"+SUMIF('PdI-crono_inv'!$D:$D,$C89,'PdI-crono_inv'!$BE:$BE)","v":0},{"$f":"+SUMIF('PdI-crono_inv'!$D:$D,$D89,'PdI-crono_inv'!BE:BE)","v":0}]
[null,"Contributi 2028 - pianificato",{"$f":"+SUMIF('PdI-crono_inv'!$D:$D,$C89,'PdI-crono_inv'!$BH:$BH)","v":0},{"$f":"+SUMIF('PdI-crono_inv'!$D:$D,$D90,'PdI-crono_inv'!BH:BH)","v":0}]
[null,"Valore investimento annuo pro capite\n(lordo contributi) 2028",{"$f":"+IFERROR(C108/(MAX(Dati_tecnici!$E$15,Dati_tecnici!$E$23,Dati_tecnici!$E$29)),\"\")","v":""},{"$f":"+IFERROR(D108/(MAX(Dati_tecnici!$E$15,Dati_tecnici!$E$23,Dati_tecnici!$E$29)),\"\")","v":""}]
[null,"Valore investimento annuo (lordo contributi) 2029 - pianificato",{"$f":"+SUMIF('PdI-crono_inv'!$D:$D,$C89,'PdI-crono_inv'!$BJ:$BJ)","v":0},{"$f":"+SUMIF('PdI-crono_inv'!$D:$D,$D89,'PdI-crono_inv'!BJ:BJ)","v":0}]
[null,"Contributi 2029 - pianificato",{"$f":"+SUMIF('PdI-crono_inv'!$D:$D,$C89,'PdI-crono_inv'!$BM:$BM)","v":0},{"$f":"+SUMIF('PdI-crono_inv'!$D:$D,$D89,'PdI-crono_inv'!BM:BM)","v":0}]
[null,"Valore investimento annuo pro capite\n(lordo contributi) 2029",{"$f":"+IFERROR(C111/(MAX(Dati_tecnici!$E$15,Dati_tecnici!$E$23,Dati_tecnici!$E$29)),\"\")","v":""},{"$f":"+IFERROR(D111/(MAX(Dati_tecnici!$E$15,Dati_tecnici!$E$23,Dati_tecnici!$E$29)),\"\")","v":""}]
[]
[]
[]
[]
[null,"Legenda per movimentazione LIC"]
[null,"compilazione manuale"]
[null,"compilazione manuale in coerenza con i dati comunicati nelle precedenti edizioni"]
[]
[]
[null,"Valori in euro (anno a-2)","LICa lordo contributi (ingresso)","Contributi\n(valore puntuale riferito ai LICord)","LICa netto contributi\n(ingresso)","LIC 2022\n(uscita)","LIC 2023\n(uscita)","LIC 2024\n(uscita)","LIC 2025\n(uscita)","LIC 2026\n(uscita)","LIC 2027\n(uscita)","Saldo LIC anno a","Saldo LIC anno a-1","Saldo LIC anno a-2","Saldo LIC anno a-3","OFlic,ord","Saldo LIC totale a 4 anni"]
[null,"Ricostruzione movimentazione LIC per l'anno 2027",{"$f":"+SUMIF('PdI-crono_inv'!$I:$I,\"<>x\",'PdI-crono_inv'!BA:BA)","v":0},null,{"$f":"IF(D124<>\"\",C124-D124,C124-SUMIF('PdI-crono_inv'!$I:$I,\"<>x\",'PdI-crono_inv'!BC:BC))","v":0},null,null,null,null,null,null,{"$f":"E124","v":0},{"$f":"E125-SUM(K125)","v":0},{"$f":"+E126-SUM(J126:K126)","v":0},{"$f":"+E127-SUM(I127:K127)","v":0},{"$f":"+SUMPRODUCT(L124:O124,L$133:O$133)","v":0},{"$f":"+SUM(L124:O124)","v":0}]
[null,"Ricostruzione movimentazione LIC per l'anno 2026",{"$f":"+SUMIF('PdI-crono_inv'!$I:$I,\"<>x\",'PdI-crono_inv'!AV:AV)","v":0},null,{"$f":"IF(D125<>\"\",C125-D125,C125-SUMIF('PdI-crono_inv'!$I:$I,\"<>x\",'PdI-crono_inv'!AX:AX))","v":0},null,null,null,null,null,null,{"$f":"E125","v":0},{"$f":"+E126-SUM(J126)","v":0},{"$f":"+E127-SUM(I127:J127)","v":0},{"$f":"E128-SUM(H128:J128)","v":0},{"$f":"+SUMPRODUCT(L125:O125,L$133:O$133)","v":0},{"$f":"+SUM(L125:O125)","v":0}]
[null,"Ricostruzione movimentazione LIC per l'anno 2025",{"$f":"+SUMIF('PdI-crono_inv'!$I:$I,\"<>x\",'PdI-crono_inv'!AQ:AQ)","v":0},null,{"$f":"IF(D126<>\"\",C126-D126,C126-SUMIF('PdI-crono_inv'!$I:$I,\"<>x\",'PdI-crono_inv'!AS:AS))","v":0},null,null,null,null,null,null,0,{"$f":"+E127-SUM(I127)","v":0},{"$f":"+E128-SUM(H128:I128)","v":0},{"$f":"+E129-SUM(G129:I129)","v":0},{"$f":"+SUMPRODUCT(L126:O126,L$133:O$133)","v":0},0]
[null,"Ricostruzione movimentazione LIC per l'anno 2024",{"$f":"+SUMIF('PdI-crono_inv'!$I:$I,\"<>x\",'PdI-crono_inv'!AL:AL)","v":0},null,{"$f":"IF(D127<>\"\",C127-D127,C127-SUMIF('PdI-crono_inv'!$I:$I,\"<>x\",'PdI-crono_inv'!AN:AN))","v":0},null,null,null,null,null,null,0,{"$f":"E128-SUM(H128)","v":0},{"$f":"E129-SUM(G129:H129)","v":0},{"$f":"E130-SUM(F130:H130)","v":0},{"$f":"+SUMPRODUCT(L127:O127,L$133:O$133)","v":0},0]
[null,"Ricostruzione movimentazione LIC per l'anno 2023",{"$f":"+SUMIF('PdI-crono_inv'!$I:$I,\"<>x\",'PdI-crono_inv'!AG:AG)","v":0},null,{"$f":"IF(D128<>\"\",C128-D128,C128-SUMIF('PdI-crono_inv'!$I:$I,\"<>x\",'PdI-crono_inv'!AI:AI))","v":0}]
[null,"Ricostruzione movimentazione LIC per l'anno 2022"]
[null,"Ricostruzione movimentazione LIC per l'anno 2021"]
[null,"Ricostruzione movimentazione LIC per l'anno 2020"]
[null,"Ricostruzione SALDO LIC per l'anno 2019"]
[null,{"$f":"Capex!B63","v":"SLIC"},null,null,null,null,null,null,null,null,null,4.3125000000000004E-2,3.9843750000000004E-2,3.6562499999999998E-2,0.03]
[]
[]
[null,"Ricostruzione per componenti OF",{"$f":"Capex!C58","v":2024},{"$f":"Capex!D58","v":2025},{"$f":"Capex!E58","v":2026},{"$f":"Capex!F58","v":2027},{"$f":"Capex!G58","v":2028},{"$f":"Capex!H58","v":2029}]
[null,"Incidenza ResCapex",{"$f":"+MAX(IFERROR(TT_riepilogo_IMN!E80/TT_riepilogo_IMN!E32,0),0)","v":0},{"$f":"+MAX(IFERROR(TT_riepilogo_IMN!F80/TT_riepilogo_IMN!F32,0),0)","v":0},{"$f":"+MAX(IFERROR(TT_riepilogo_IMN!G80/TT_riepilogo_IMN!G20,0),0)","v":0},{"$f":"+MAX(IFERROR(TT_riepilogo_IMN!H80/TT_riepilogo_IMN!H20,0),0)","v":0},{"$f":"+MAX(IFERROR(TT_riepilogo_IMN!I80/TT_riepilogo_IMN!I20,0),0)","v":0},{"$f":"+MAX(IFERROR(TT_riepilogo_IMN!J80/TT_riepilogo_IMN!J20,0),0)","v":0}]
[null,"Incidenza EnvCapex",{"$f":"MAX(IFERROR(TT_riepilogo_IMN!E68/TT_riepilogo_IMN!E32,0),0)","v":0},{"$f":"MAX(IFERROR(TT_riepilogo_IMN!F68/TT_riepilogo_IMN!F32,0),0)","v":0},{"$f":"MAX(IFERROR(TT_riepilogo_IMN!G68/TT_riepilogo_IMN!G20,0),0)","v":0},{"$f":"MAX(IFERROR(TT_riepilogo_IMN!H68/TT_riepilogo_IMN!H20,0),0)","v":0},{"$f":"MAX(IFERROR(TT_riepilogo_IMN!I68/TT_riepilogo_IMN!I20,0),0)","v":0},{"$f":"MAX(IFERROR(TT_riepilogo_IMN!J68/TT_riepilogo_IMN!J20,0),0)","v":0}]
[null,"OFlic, ord complessivo",null,null,{"$f":"+$P$127","v":0},{"$f":"+$P$126","v":0},{"$f":"+$P$125","v":0},{"$f":"+$P$124","v":0}]
[null,"OFlic, ord (ResCapex)",{"$f":"+C137*C$139","v":0},0,0,0,0,0]
[null,"OFlic, ord (EnvCapex)",0,0,0,0,0,0]
[null,"OFlic, ord (Capex)",{"$f":"+C139-C140-C141","v":0},{"$f":"+D139-D140-D141","v":0},{"$f":"+E139-E140-E141","v":0},0,{"$f":"+G139-G140-G141","v":0},{"$f":"+H139-H140-H141","v":0}]
[null,"Saldo LICord complessivo",null,null,{"$f":"+$Q$127","v":0},{"$f":"+$Q$126","v":0},{"$f":"+$Q$125","v":0},{"$f":"+$Q$124","v":0}]
[null,"Saldo LICord (ResCapex)",{"$f":"+C137*C$143","v":0},0,0,0,0,0]
[null,"Saldo LICord (EnvCapex)",0,0,0,0,0,0]
[null,"Saldo LICord (Capex)",{"$f":"+C143-C144-C145","v":0},{"$f":"+D143-D144-D145","v":0},{"$f":"+E143-E144-E145","v":0},0,{"$f":"+G143-G144-G145","v":0},{"$f":"+H143-H144-H145","v":0}]
[null,"Saldo LICpos complessivo",null,null,{"$f":"+Nuovi_Investimenti!D5","v":0},{"$f":"+Nuovi_Investimenti!E5","v":0},{"$f":"+Nuovi_Investimenti!F5","v":0},{"$f":"+Nuovi_Investimenti!G5","v":0}]
[null,"Saldo LICpos (ResCapex)",{"$f":"+C137*C$147","v":0},0,0,0,0,0]
[null,"Saldo LICpos (EnvCapex)",0,0,0,0,0,0]
[null,"Saldo LICpos (Capex)",{"$f":"+C147-C148-C149","v":0},{"$f":"+D147-D148-D149","v":0},{"$f":"+E147-E148-E149","v":0},0,{"$f":"+G147-G148-G149","v":0},{"$f":"+H147-H148-H149","v":0}]
[]
[]
[]
[]
[]
[]
[null,"Riepilogo investimenti previsti, realizzati da terzi ","UdM",2024,2025,2026,2027,2028,2029]
[null,{"$f":"+TT_Tabelle_Riferimento!C87","v":"Infrastrutture improcrastinabili in contesti in cui il gestore non ha  ancora conseguito la necessaria capacità di ricorso al credito e di attrazione delle necessarie competenze specialistiche"},"euro",{"$f":"+SUMIFS(IMN_Proprietari!$L:$L,IMN_Proprietari!$K:$K,'PdI-riepilogo'!D$157,IMN_Proprietari!$I:$I,'PdI-riepilogo'!$J158)","v":0},{"$f":"+SUMIFS(IMN_Proprietari!$L:$L,IMN_Proprietari!$K:$K,'PdI-riepilogo'!E$157,IMN_Proprietari!$I:$I,'PdI-riepilogo'!$J158)","v":0},{"$f":"+SUMIFS(IMN_Proprietari!$L:$L,IMN_Proprietari!$K:$K,'PdI-riepilogo'!F$157,IMN_Proprietari!$I:$I,'PdI-riepilogo'!$J158)","v":0},{"$f":"+SUMIFS(IMN_Proprietari!$L:$L,IMN_Proprietari!$K:$K,'PdI-riepilogo'!G$157,IMN_Proprietari!$I:$I,'PdI-riepilogo'!$J158)","v":0},{"$f":"+SUMIFS(IMN_Proprietari!$L:$L,IMN_Proprietari!$K:$K,'PdI-riepilogo'!H$157,IMN_Proprietari!$I:$I,'PdI-riepilogo'!$J158)","v":0},{"$f":"+SUMIFS(IMN_Proprietari!$L:$L,IMN_Proprietari!$K:$K,'PdI-riepilogo'!I$157,IMN_Proprietari!$I:$I,'PdI-riepilogo'!$J158)","v":0},{"$f":"+VLOOKUP(B158,TT_Tabelle_Riferimento!$C$87:$D$89,2,FALSE)","v":"Infrastrutture improcrastinabili"}]
[null,{"$f":"+TT_Tabelle_Riferimento!C88","v":"Infrastrutture riconducibili ad opere di rilievo sovra-ambito per il superamento delle criticità legate al Climate Change o per la sostenibilità ambientale"},"euro",{"$f":"+SUMIFS(IMN_Proprietari!$L:$L,IMN_Proprietari!$K:$K,'PdI-riepilogo'!D$157,IMN_Proprietari!$I:$I,'PdI-riepilogo'!$J159)","v":0},{"$f":"+SUMIFS(IMN_Proprietari!$L:$L,IMN_Proprietari!$K:$K,'PdI-riepilogo'!E$157,IMN_Proprietari!$I:$I,'PdI-riepilogo'!$J159)","v":0},{"$f":"+SUMIFS(IMN_Proprietari!$L:$L,IMN_Proprietari!$K:$K,'PdI-riepilogo'!F$157,IMN_Proprietari!$I:$I,'PdI-riepilogo'!$J159)","v":0},{"$f":"+SUMIFS(IMN_Proprietari!$L:$L,IMN_Proprietari!$K:$K,'PdI-riepilogo'!G$157,IMN_Proprietari!$I:$I,'PdI-riepilogo'!$J159)","v":0},{"$f":"+SUMIFS(IMN_Proprietari!$L:$L,IMN_Proprietari!$K:$K,'PdI-riepilogo'!H$157,IMN_Proprietari!$I:$I,'PdI-riepilogo'!$J159)","v":0},{"$f":"+SUMIFS(IMN_Proprietari!$L:$L,IMN_Proprietari!$K:$K,'PdI-riepilogo'!I$157,IMN_Proprietari!$I:$I,'PdI-riepilogo'!$J159)","v":0},{"$f":"+VLOOKUP(B159,TT_Tabelle_Riferimento!$C$87:$D$89,2,FALSE)","v":"Opere di rilievo sovra-ambito"}]
[null,"Check Infrastrutture improcrastinabili","euro",{"$f":"+SUMIF('PdI-crono_inv'!Q:Q,\"Infrastrutture improcrastinabili\",'PdI-crono_inv'!AK:AK)<>D158","v":false},{"$f":"+SUMIF('PdI-crono_inv'!Q:Q,\"Infrastrutture improcrastinabili\",'PdI-crono_inv'!AP:AP)<>E158","v":false},{"$f":"+SUMIF('PdI-crono_inv'!Q:Q,\"Infrastrutture improcrastinabili\",'PdI-crono_inv'!AU:AU)<>F158","v":false},{"$f":"+SUMIF('PdI-crono_inv'!Q:Q,\"Infrastrutture improcrastinabili\",'PdI-crono_inv'!AZ:AZ)<>G158","v":false},{"$f":"+SUMIF('PdI-crono_inv'!Q:Q,\"Infrastrutture improcrastinabili\",'PdI-crono_inv'!BE:BE)<>H158","v":false},{"$f":"+SUMIF('PdI-crono_inv'!Q:Q,\"Infrastrutture improcrastinabili\",'PdI-crono_inv'!BJ:BJ)<>I158","v":false}]
[null,"Check Opere di rilievo sovra-ambito","euro",{"$f":"+SUMIF('PdI-crono_inv'!Q:Q,\"Opere di rilievo sovra-ambito\",'PdI-crono_inv'!AK:AK)<>D159","v":false},{"$f":"+SUMIF('PdI-crono_inv'!Q:Q,\"Opere di rilievo sovra-ambito\",'PdI-crono_inv'!AP:AP)<>E159","v":false},{"$f":"+SUMIF('PdI-crono_inv'!Q:Q,\"Opere di rilievo sovra-ambito\",'PdI-crono_inv'!AU:AU)<>F159","v":false},{"$f":"+SUMIF('PdI-crono_inv'!Q:Q,\"Opere di rilievo sovra-ambito\",'PdI-crono_inv'!AZ:AZ)<>G159","v":false},{"$f":"+SUMIF('PdI-crono_inv'!Q:Q,\"Opere di rilievo sovra-ambito\",'PdI-crono_inv'!BE:BE)<>H159","v":false},{"$f":"+SUMIF('PdI-crono_inv'!Q:Q,\"Opere di rilievo sovra-ambito\",'PdI-crono_inv'!BJ:BJ)<>I159","v":false}]
[]
[]
[]
[null,"Verifica dei contributi stratificati nel foglio \"IMN_consolidamento\"","UdM",2024,2025,2026,2027,2028,2029]
[null,"CFP da foglio \"IMN_consolidamento\"","euro",null,null,{"$f":"+SUMIF(IMN_consolidamento!$J:$J,VALUE('PdI-riepilogo'!F$165),IMN_consolidamento!$M:$M)","v":0},{"$f":"+SUMIF(IMN_consolidamento!$J:$J,VALUE('PdI-riepilogo'!G$165),IMN_consolidamento!$M:$M)","v":0},{"$f":"+SUMIF(IMN_consolidamento!$J:$J,VALUE('PdI-riepilogo'!H$165),IMN_consolidamento!$M:$M)","v":0},{"$f":"+SUMIF(IMN_consolidamento!$J:$J,VALUE('PdI-riepilogo'!I$165),IMN_consolidamento!$M:$M)","v":0}]
[null,"FoNI da foglio \"Piano_Tariffario\"","euro",null,null,{"$f":"+Piano_Tariffario!G50","v":0},{"$f":"+Piano_Tariffario!H50","v":0},{"$f":"+Piano_Tariffario!I50","v":0},{"$f":"+Piano_Tariffario!J50","v":0}]
[null,"CFP da foglio \"PdI-crono_inv\" (FoNI escluso)","euro",null,null,{"$f":"+F21-F24","v":0},{"$f":"+G21-G24","v":0},0,0]
[null,"Eventuale scostamento","euro",null,null,{"$f":"+F166-F167-F168","v":0},{"$f":"+G166-G167-G168","v":0},0,0]

{"sheet":"PdI_consolidamento","index":54,"n_rows":1373,"n_cols":28,"rows_kept":1373,"cut":false,"hidden":false,"merged":[]}
[]
[null,null,null,null,null,null,null,null,null,null,null,null,null,null,null,null,null,null,null,null,null,2024,2025,2026,2027,null,"verifica_compilazione",{"$f":"+IF(SUM(K:K,M:M,O:O)=0,0,\"OK\")","v":0}]
["consolidamento immobilizzazioni \nInclude le immobilizzazioni fino ai nuovi investimenti 2018-2021 a moneta dell'anno del cespite\nIl foglio è solo di supporto al calcolo",null,null,null,null,null,null,null,null,null,null,null,null,null,null,null,null,null,"Sezione di elaborazione dei dati forniti",null,"FoNI da riportare a CFP",null,null,{"$f":"FoNI!E10","v":0},{"$f":"FoNI!F10","v":0}]
[null,null,null,null,null,null,null,null,null,null,null,null,null,null,null,null,null,null,null,null,"Totale nuovi investimenti",null,null,{"$f":"+SUMIF($J:$J,X$2,$K:$K)","v":0},{"$f":"+SUMIF($J:$J,Y$2,$K:$K)","v":0}]
["IDATO","IDGestore","Gestore_Proprietario","N_prop","Fonte","ID_Categoria_Cespite","CategoriaCespite","ID_Immobilizzazione","IMMOBILIZZAZIONE","AnnoCespite","IP","FAIP","CFP","FACP","-","ERC","Attività","foglio di origine","di cui, CFP da FoNI",null,"incidenza FoNI (%)",null,null,{"$f":"IFERROR(X3/X4,0)","v":0},{"$f":"IFERROR(Y3/Y4,0)","v":0}]
[{"$f":"+idato","v":0},{"$f":"+idgestore","v":0},"Gestore",0,"IP",2,{"$f":"+VLOOKUP(F6,TT_Tabelle_Riferimento!$D$127:$G$164,4,FALSE)","v":"Condotte di acquedotto"},1,{"$f":"+VLOOKUP(H6,TT_Tabelle_Riferimento!$F$3:$G$6,2,FALSE)","v":"Servizio idrico integrato"},2026,{"$f":"+SUMIFS('PdI-crono_inv'!AW:AW,'PdI-crono_inv'!CF:CF,F6,'PdI-crono_inv'!CE:CE,H6,'PdI-crono_inv'!J:J,P6,'PdI-crono_inv'!P:P,\"<>proprietario\")","v":0},null,{"$f":"+SUMIFS('PdI-crono_inv'!AX:AX,'PdI-crono_inv'!CF:CF,F6,'PdI-crono_inv'!CE:CE,H6,'PdI-crono_inv'!J:J,P6,'PdI-crono_inv'!P:P,\"<>proprietario\")+S6","v":0},null,null,"ENV",{"$f":"+VLOOKUP(F6,TT_Tabelle_Riferimento!$D$127:$E$164,2,FALSE)","v":"Acquedotto"},{"$f":"+IF(SUM(K6:N6)=0,\"\",\"PdI_consolidamento\")","v":""},{"$f":"+IFERROR(HLOOKUP(J6,$X$2:$Y$5,4,FALSE)*K6,0)","v":0},null,"FoNI speso",null,null,{"$f":"+SUMIF($J:$J,X$2,$S:$S)","v":0},0]
[0,0,"Gestore",0,"IP",3,{"$f":"+VLOOKUP(F7,TT_Tabelle_Riferimento!$D$127:$G$164,4,FALSE)","v":"Opere idrauliche fisse di acquedotto"},1,{"$f":"+VLOOKUP(H7,TT_Tabelle_Riferimento!$F$3:$G$6,2,FALSE)","v":"Servizio idrico integrato"},2026,{"$f":"+SUMIFS('PdI-crono_inv'!AW:AW,'PdI-crono_inv'!CF:CF,F7,'PdI-crono_inv'!CE:CE,H7,'PdI-crono_inv'!J:J,P7,'PdI-crono_inv'!P:P,\"<>proprietario\")","v":0},null,{"$f":"+SUMIFS('PdI-crono_inv'!AX:AX,'PdI-crono_inv'!CF:CF,F7,'PdI-crono_inv'!CE:CE,H7,'PdI-crono_inv'!J:J,P7,'PdI-crono_inv'!P:P,\"<>proprietario\")+S7","v":0},null,null,"ENV",{"$f":"+VLOOKUP(F7,TT_Tabelle_Riferimento!$D$127:$E$164,2,FALSE)","v":"Acquedotto"},{"$f":"+IF(SUM(K7:N7)=0,\"\",\"PdI_consolidamento\")","v":""},{"$f":"+IFERROR(HLOOKUP(J7,$X$2:$Y$5,4,FALSE)*K7,0)","v":0}]
[0,0,"Gestore",0,"IP",4,{"$f":"+VLOOKUP(F8,TT_Tabelle_Riferimento!$D$127:$G$164,4,FALSE)","v":"Serbatoi"},1,{"$f":"+VLOOKUP(H8,TT_Tabelle_Riferimento!$F$3:$G$6,2,FALSE)","v":"Servizio idrico integrato"},2026,{"$f":"+SUMIFS('PdI-crono_inv'!AW:AW,'PdI-crono_inv'!CF:CF,F8,'PdI-crono_inv'!CE:CE,H8,'PdI-crono_inv'!J:J,P8,'PdI-crono_inv'!P:P,\"<>proprietario\")","v":0},null,{"$f":"+SUMIFS('PdI-crono_inv'!AX:AX,'PdI-crono_inv'!CF:CF,F8,'PdI-crono_inv'!CE:CE,H8,'PdI-crono_inv'!J:J,P8,'PdI-crono_inv'!P:P,\"<>proprietario\")+S8","v":0},null,null,"ENV",{"$f":"+VLOOKUP(F8,TT_Tabelle_Riferimento!$D$127:$E$164,2,FALSE)","v":"Acquedotto"},"",0]
[0,0,"Gestore",0,"IP",5,{"$f":"+VLOOKUP(F9,TT_Tabelle_Riferimento!$D$127:$G$164,4,FALSE)","v":"Impianti di sollevamento e pompaggio di acquedotto"},1,{"$f":"+VLOOKUP(H9,TT_Tabelle_Riferimento!$F$3:$G$6,2,FALSE)","v":"Servizio idrico integrato"},2026,{"$f":"+SUMIFS('PdI-crono_inv'!AW:AW,'PdI-crono_inv'!CF:CF,F9,'PdI-crono_inv'!CE:CE,H9,'PdI-crono_inv'!J:J,P9,'PdI-crono_inv'!P:P,\"<>proprietario\")","v":0},null,{"$f":"+SUMIFS('PdI-crono_inv'!AX:AX,'PdI-crono_inv'!CF:CF,F9,'PdI-crono_inv'!CE:CE,H9,'PdI-crono_inv'!J:J,P9,'PdI-crono_inv'!P:P,\"<>proprietario\")+S9","v":0},null,null,"ENV",{"$f":"+VLOOKUP(F9,TT_Tabelle_Riferimento!$D$127:$E$164,2,FALSE)","v":"Acquedotto"},"",0]
[0,0,"Gestore",0,"IP",6,{"$f":"+VLOOKUP(F10,TT_Tabelle_Riferimento!$D$127:$G$164,4,FALSE)","v":"Impianti di potabilizzazione"},1,{"$f":"+VLOOKUP(H10,TT_Tabelle_Riferimento!$F$3:$G$6,2,FALSE)","v":"Servizio idrico integrato"},2026,{"$f":"+SUMIFS('PdI-crono_inv'!AW:AW,'PdI-crono_inv'!CF:CF,F10,'PdI-crono_inv'!CE:CE,H10,'PdI-crono_inv'!J:J,P10,'PdI-crono_inv'!P:P,\"<>proprietario\")","v":0},null,{"$f":"+SUMIFS('PdI-crono_inv'!AX:AX,'PdI-crono_inv'!CF:CF,F10,'PdI-crono_inv'!CE:CE,H10,'PdI-crono_inv'!J:J,P10,'PdI-crono_inv'!P:P,\"<>proprietario\")+S10","v":0},null,null,"ENV",{"$f":"+VLOOKUP(F10,TT_Tabelle_Riferimento!$D$127:$E$164,2,FALSE)","v":"Acquedotto"},"",0]
[0,0,"Gestore",0,"IP",7,{"$f":"+VLOOKUP(F11,TT_Tabelle_Riferimento!$D$127:$G$164,4,FALSE)","v":"Altri trattamenti di potabilizzazione (tra cui dispositivi di disinfezione, stacciatura, filtrazione, addolcimento)"},1,{"$f":"+VLOOKUP(H11,TT_Tabelle_Riferimento!$F$3:$G$6,2,FALSE)","v":"Servizio idrico integrato"},2026,{"$f":"+SUMIFS('PdI-crono_inv'!AW:AW,'PdI-crono_inv'!CF:CF,F11,'PdI-crono_inv'!CE:CE,H11,'PdI-crono_inv'!J:J,P11,'PdI-crono_inv'!P:P,\"<>proprietario\")","v":0},null,{"$f":"+SUMIFS('PdI-crono_inv'!AX:AX,'PdI-crono_inv'!CF:CF,F11,'PdI-crono_inv'!CE:CE,H11,'PdI-crono_inv'!J:J,P11,'PdI-crono_inv'!P:P,\"<>proprietario\")+S11","v":0},null,null,"ENV",{"$f":"+VLOOKUP(F11,TT_Tabelle_Riferimento!$D$127:$E$164,2,FALSE)","v":"Acquedotto"},"",0]
[0,0,"Gestore",0,"IP",8,{"$f":"+VLOOKUP(F12,TT_Tabelle_Riferimento!$D$127:$G$164,4,FALSE)","v":"Gruppi di misura - altre attrezzature di acquedotto"},1,{"$f":"+VLOOKUP(H12,TT_Tabelle_Riferimento!$F$3:$G$6,2,FALSE)","v":"Servizio idrico integrato"},2026,{"$f":"+SUMIFS('PdI-crono_inv'!AW:AW,'PdI-crono_inv'!CF:CF,F12,'PdI-crono_inv'!CE:CE,H12,'PdI-crono_inv'!J:J,P12,'PdI-crono_inv'!P:P,\"<>proprietario\")","v":0},null,{"$f":"+SUMIFS('PdI-crono_inv'!AX:AX,'PdI-crono_inv'!CF:CF,F12,'PdI-crono_inv'!CE:CE,H12,'PdI-crono_inv'!J:J,P12,'PdI-crono_inv'!P:P,\"<>proprietario\")+S12","v":0},null,null,"ENV",{"$f":"+VLOOKUP(F12,TT_Tabelle_Riferimento!$D$127:$E$164,2,FALSE)","v":"Acquedotto"},"",0]
[0,0,"Gestore",0,"IP",9,{"$f":"+VLOOKUP(F13,TT_Tabelle_Riferimento!$D$127:$G$164,4,FALSE)","v":"Sistemi informativi di acquedotto"},1,{"$f":"+VLOOKUP(H13,TT_Tabelle_Riferimento!$F$3:$G$6,2,FALSE)","v":"Servizio idrico integrato"},2026,{"$f":"+SUMIFS('PdI-crono_inv'!AW:AW,'PdI-crono_inv'!CF:CF,F13,'PdI-crono_inv'!CE:CE,H13,'PdI-crono_inv'!J:J,P13,'PdI-crono_inv'!P:P,\"<>proprietario\")","v":0},null,{"$f":"+SUMIFS('PdI-crono_inv'!AX:AX,'PdI-crono_inv'!CF:CF,F13,'PdI-crono_inv'!CE:CE,H13,'PdI-crono_inv'!J:J,P13,'PdI-crono_inv'!P:P,\"<>proprietario\")+S13","v":0},null,null,"ENV",{"$f":"+VLOOKUP(F13,TT_Tabelle_Riferimento!$D$127:$E$164,2,FALSE)","v":"Acquedotto"},"",0]
[0,0,"Gestore",0,"IP",10,{"$f":"+VLOOKUP(F14,TT_Tabelle_Riferimento!$D$127:$G$164,4,FALSE)","v":"Telecontrollo e teletrasmissione di acquedotto"},1,{"$f":"+VLOOKUP(H14,TT_Tabelle_Riferimento!$F$3:$G$6,2,FALSE)","v":"Servizio idrico integrato"},2026,{"$f":"+SUMIFS('PdI-crono_inv'!AW:AW,'PdI-crono_inv'!CF:CF,F14,'PdI-crono_inv'!CE:CE,H14,'PdI-crono_inv'!J:J,P14,'PdI-crono_inv'!P:P,\"<>proprietario\")","v":0},null,{"$f":"+SUMIFS('PdI-crono_inv'!AX:AX,'PdI-crono_inv'!CF:CF,F14,'PdI-crono_inv'!CE:CE,H14,'PdI-crono_inv'!J:J,P14,'PdI-crono_inv'!P:P,\"<>proprietario\")+S14","v":0},null,null,"ENV",{"$f":"+VLOOKUP(F14,TT_Tabelle_Riferimento!$D$127:$E$164,2,FALSE)","v":"Acquedotto"},"",0]
[0,0,"Gestore",0,"IP",11,{"$f":"+VLOOKUP(F15,TT_Tabelle_Riferimento!$D$127:$G$164,4,FALSE)","v":"Condotte fognarie"},1,{"$f":"+VLOOKUP(H15,TT_Tabelle_Riferimento!$F$3:$G$6,2,FALSE)","v":"Servizio idrico integrato"},2026,{"$f":"+SUMIFS('PdI-crono_inv'!AW:AW,'PdI-crono_inv'!CF:CF,F15,'PdI-crono_inv'!CE:CE,H15,'PdI-crono_inv'!J:J,P15,'PdI-crono_inv'!P:P,\"<>proprietario\")","v":0},null,{"$f":"+SUMIFS('PdI-crono_inv'!AX:AX,'PdI-crono_inv'!CF:CF,F15,'PdI-crono_inv'!CE:CE,H15,'PdI-crono_inv'!J:J,P15,'PdI-crono_inv'!P:P,\"<>proprietario\")+S15","v":0},null,null,"ENV",{"$f":"+VLOOKUP(F15,TT_Tabelle_Riferimento!$D$127:$E$164,2,FALSE)","v":"Fognatura"},"",0]
[0,0,"Gestore",0,"IP",12,{"$f":"+VLOOKUP(F16,TT_Tabelle_Riferimento!$D$127:$G$164,4,FALSE)","v":"Sifoni e scaricatori di piena e altre opere idrauliche fisse di fognatura"},1,{"$f":"+VLOOKUP(H16,TT_Tabelle_Riferimento!$F$3:$G$6,2,FALSE)","v":"Servizio idrico integrato"},2026,{"$f":"+SUMIFS('PdI-crono_inv'!AW:AW,'PdI-crono_inv'!CF:CF,F16,'PdI-crono_inv'!CE:CE,H16,'PdI-crono_inv'!J:J,P16,'PdI-crono_inv'!P:P,\"<>proprietario\")","v":0},null,{"$f":"+SUMIFS('PdI-crono_inv'!AX:AX,'PdI-crono_inv'!CF:CF,F16,'PdI-crono_inv'!CE:CE,H16,'PdI-crono_inv'!J:J,P16,'PdI-crono_inv'!P:P,\"<>proprietario\")+S16","v":0},null,null,"ENV",{"$f":"+VLOOKUP(F16,TT_Tabelle_Riferimento!$D$127:$E$164,2,FALSE)","v":"Fognatura"},"",0]
[0,0,"Gestore",0,"IP",13,{"$f":"+VLOOKUP(F17,TT_Tabelle_Riferimento!$D$127:$G$164,4,FALSE)","v":"Vasche di laminazione e vasche di prima pioggia"},1,{"$f":"+VLOOKUP(H17,TT_Tabelle_Riferimento!$F$3:$G$6,2,FALSE)","v":"Servizio idrico integrato"},2026,{"$f":"+SUMIFS('PdI-crono_inv'!AW:AW,'PdI-crono_inv'!CF:CF,F17,'PdI-crono_inv'!CE:CE,H17,'PdI-crono_inv'!J:J,P17,'PdI-crono_inv'!P:P,\"<>proprietario\")","v":0},null,{"$f":"+SUMIFS('PdI-crono_inv'!AX:AX,'PdI-crono_inv'!CF:CF,F17,'PdI-crono_inv'!CE:CE,H17,'PdI-crono_inv'!J:J,P17,'PdI-crono_inv'!P:P,\"<>proprietario\")+S17","v":0},null,null,"ENV",{"$f":"+VLOOKUP(F17,TT_Tabelle_Riferimento!$D$127:$E$164,2,FALSE)","v":"Fognatura"},"",0]
[0,0,"Gestore",0,"IP",14,{"$f":"+VLOOKUP(F18,TT_Tabelle_Riferimento!$D$127:$G$164,4,FALSE)","v":"Impianti di sollevamento e pompaggio di fognatura"},1,{"$f":"+VLOOKUP(H18,TT_Tabelle_Riferimento!$F$3:$G$6,2,FALSE)","v":"Servizio idrico integrato"},2026,{"$f":"+SUMIFS('PdI-crono_inv'!AW:AW,'PdI-crono_inv'!CF:CF,F18,'PdI-crono_inv'!CE:CE,H18,'PdI-crono_inv'!J:J,P18,'PdI-crono_inv'!P:P,\"<>proprietario\")","v":0},null,{"$f":"+SUMIFS('PdI-crono_inv'!AX:AX,'PdI-crono_inv'!CF:CF,F18,'PdI-crono_inv'!CE:CE,H18,'PdI-crono_inv'!J:J,P18,'PdI-crono_inv'!P:P,\"<>proprietario\")+S18","v":0},null,null,"ENV",{"$f":"+VLOOKUP(F18,TT_Tabelle_Riferimento!$D$127:$E$164,2,FALSE)","v":"Fognatura"},"",0]
[0,0,"Gestore",0,"IP",15,{"$f":"+VLOOKUP(F19,TT_Tabelle_Riferimento!$D$127:$G$164,4,FALSE)","v":"Gruppi di misura - altre attrezzature di fognatura"},1,{"$f":"+VLOOKUP(H19,TT_Tabelle_Riferimento!$F$3:$G$6,2,FALSE)","v":"Servizio idrico integrato"},2026,{"$f":"+SUMIFS('PdI-crono_inv'!AW:AW,'PdI-crono_inv'!CF:CF,F19,'PdI-crono_inv'!CE:CE,H19,'PdI-crono_inv'!J:J,P19,'PdI-crono_inv'!P:P,\"<>proprietario\")","v":0},null,{"$f":"+SUMIFS('PdI-crono_inv'!AX:AX,'PdI-crono_inv'!CF:CF,F19,'PdI-crono_inv'!CE:CE,H19,'PdI-crono_inv'!J:J,P19,'PdI-crono_inv'!P:P,\"<>proprietario\")+S19","v":0},null,null,"ENV",{"$f":"+VLOOKUP(F19,TT_Tabelle_Riferimento!$D$127:$E$164,2,FALSE)","v":"Fognatura"},"",0]
[0,0,"Gestore",0,"IP",16,{"$f":"+VLOOKUP(F20,TT_Tabelle_Riferimento!$D$127:$G$164,4,FALSE)","v":"Sistemi informativi di fognatura"},1,{"$f":"+VLOOKUP(H20,TT_Tabelle_Riferimento!$F$3:$G$6,2,FALSE)","v":"Servizio idrico integrato"},2026,{"$f":"+SUMIFS('PdI-crono_inv'!AW:AW,'PdI-crono_inv'!CF:CF,F20,'PdI-crono_inv'!CE:CE,H20,'PdI-crono_inv'!J:J,P20,'PdI-crono_inv'!P:P,\"<>proprietario\")","v":0},null,{"$f":"+SUMIFS('PdI-crono_inv'!AX:AX,'PdI-crono_inv'!CF:CF,F20,'PdI-crono_inv'!CE:CE,H20,'PdI-crono_inv'!J:J,P20,'PdI-crono_inv'!P:P,\"<>proprietario\")+S20","v":0},null,null,"ENV",{"$f":"+VLOOKUP(F20,TT_Tabelle_Riferimento!$D$127:$E$164,2,FALSE)","v":"Fognatura"},"",0]
[0,0,"Gestore",0,"IP",18,{"$f":"+VLOOKUP(F21,TT_Tabelle_Riferimento!$D$127:$G$164,4,FALSE)","v":"Telecontrollo e teletrasmissione di fognatura"},1,{"$f":"+VLOOKUP(H21,TT_Tabelle_Riferimento!$F$3:$G$6,2,FALSE)","v":"Servizio idrico integrato"},2026,{"$f":"+SUMIFS('PdI-crono_inv'!AW:AW,'PdI-crono_inv'!CF:CF,F21,'PdI-crono_inv'!CE:CE,H21,'PdI-crono_inv'!J:J,P21,'PdI-crono_inv'!P:P,\"<>proprietario\")","v":0},null,{"$f":"+SUMIFS('PdI-crono_inv'!AX:AX,'PdI-crono_inv'!CF:CF,F21,'PdI-crono_inv'!CE:CE,H21,'PdI-crono_inv'!J:J,P21,'PdI-crono_inv'!P:P,\"<>proprietario\")+S21","v":0},null,null,"ENV",{"$f":"+VLOOKUP(F21,TT_Tabelle_Riferimento!$D$127:$E$164,2,FALSE)","v":"Fognatura"},"",0]
[0,0,"Gestore",0,"IP",19,{"$f":"+VLOOKUP(F22,TT_Tabelle_Riferimento!$D$127:$G$164,4,FALSE)","v":"Impianti di sollevamento e pompaggio di depurazione"},1,{"$f":"+VLOOKUP(H22,TT_Tabelle_Riferimento!$F$3:$G$6,2,FALSE)","v":"Servizio idrico integrato"},2026,{"$f":"+SUMIFS('PdI-crono_inv'!AW:AW,'PdI-crono_inv'!CF:CF,F22,'PdI-crono_inv'!CE:CE,H22,'PdI-crono_inv'!J:J,P22,'PdI-crono_inv'!P:P,\"<>proprietario\")","v":0},null,{"$f":"+SUMIFS('PdI-crono_inv'!AX:AX,'PdI-crono_inv'!CF:CF,F22,'PdI-crono_inv'!CE:CE,H22,'PdI-crono_inv'!J:J,P22,'PdI-crono_inv'!P:P,\"<>proprietario\")+S22","v":0},null,null,"ENV",{"$f":"+VLOOKUP(F22,TT_Tabelle_Riferimento!$D$127:$E$164,2,FALSE)","v":"Depurazione"},"",0]
[0,0,"Gestore",0,"IP",20,{"$f":"+VLOOKUP(F23,TT_Tabelle_Riferimento!$D$127:$G$164,4,FALSE)","v":"Tecniche naturali di depurazione (tra cui fitodepurazione e lagunaggio)"},1,{"$f":"+VLOOKUP(H23,TT_Tabelle_Riferimento!$F$3:$G$6,2,FALSE)","v":"Servizio idrico integrato"},2026,{"$f":"+SUMIFS('PdI-crono_inv'!AW:AW,'PdI-crono_inv'!CF:CF,F23,'PdI-crono_inv'!CE:CE,H23,'PdI-crono_inv'!J:J,P23,'PdI-crono_inv'!P:P,\"<>proprietario\")","v":0},null,{"$f":"+SUMIFS('PdI-crono_inv'!AX:AX,'PdI-crono_inv'!CF:CF,F23,'PdI-crono_inv'!CE:CE,H23,'PdI-crono_inv'!J:J,P23,'PdI-crono_inv'!P:P,\"<>proprietario\")+S23","v":0},null,null,"ENV",{"$f":"+VLOOKUP(F23,TT_Tabelle_Riferimento!$D$127:$E$164,2,FALSE)","v":"Depurazione"},"",0]
[0,0,"Gestore",0,"IP",21,{"$f":"+VLOOKUP(F24,TT_Tabelle_Riferimento!$D$127:$G$164,4,FALSE)","v":"Impianti di depurazione – trattamenti sino al preliminare, integrativo, primario - fosse settiche e fosse Imhoff"},1,{"$f":"+VLOOKUP(H24,TT_Tabelle_Riferimento!$F$3:$G$6,2,FALSE)","v":"Servizio idrico integrato"},2026,{"$f":"+SUMIFS('PdI-crono_inv'!AW:AW,'PdI-crono_inv'!CF:CF,F24,'PdI-crono_inv'!CE:CE,H24,'PdI-crono_inv'!J:J,P24,'PdI-crono_inv'!P:P,\"<>proprietario\")","v":0},null,{"$f":"+SUMIFS('PdI-crono_inv'!AX:AX,'PdI-crono_inv'!CF:CF,F24,'PdI-crono_inv'!CE:CE,H24,'PdI-crono_inv'!J:J,P24,'PdI-crono_inv'!P:P,\"<>proprietario\")+S24","v":0},null,null,"ENV",{"$f":"+VLOOKUP(F24,TT_Tabelle_Riferimento!$D$127:$E$164,2,FALSE)","v":"Depurazione"},"",0]
[0,0,"Gestore",0,"IP",22,{"$f":"+VLOOKUP(F25,TT_Tabelle_Riferimento!$D$127:$G$164,4,FALSE)","v":"Impianti di depurazione – trattamenti sino al secondario"},1,{"$f":"+VLOOKUP(H25,TT_Tabelle_Riferimento!$F$3:$G$6,2,FALSE)","v":"Servizio idrico integrato"},2026,{"$f":"+SUMIFS('PdI-crono_inv'!AW:AW,'PdI-crono_inv'!CF:CF,F25,'PdI-crono_inv'!CE:CE,H25,'PdI-crono_inv'!J:J,P25,'PdI-crono_inv'!P:P,\"<>proprietario\")","v":0},null,{"$f":"+SUMIFS('PdI-crono_inv'!AX:AX,'PdI-crono_inv'!CF:CF,F25,'PdI-crono_inv'!CE:CE,H25,'PdI-crono_inv'!J:J,P25,'PdI-crono_inv'!P:P,\"<>proprietario\")+S25","v":0},null,null,"ENV",{"$f":"+VLOOKUP(F25,TT_Tabelle_Riferimento!$D$127:$E$164,2,FALSE)","v":"Depurazione"},"",0]
[0,0,"Gestore",0,"IP",23,{"$f":"+VLOOKUP(F26,TT_Tabelle_Riferimento!$D$127:$G$164,4,FALSE)","v":"Impianti di depurazione – trattamenti sino al terziario e terziario avanzato"},1,{"$f":"+VLOOKUP(H26,TT_Tabelle_Riferimento!$F$3:$G$6,2,FALSE)","v":"Servizio idrico integrato"},2026,{"$f":"+SUMIFS('PdI-crono_inv'!AW:AW,'PdI-crono_inv'!CF:CF,F26,'PdI-crono_inv'!CE:CE,H26,'PdI-crono_inv'!J:J,P26,'PdI-crono_inv'!P:P,\"<>proprietario\")","v":0},null,{"$f":"+SUMIFS('PdI-crono_inv'!AX:AX,'PdI-crono_inv'!CF:CF,F26,'PdI-crono_inv'!CE:CE,H26,'PdI-crono_inv'!J:J,P26,'PdI-crono_inv'!P:P,\"<>proprietario\")+S26","v":0},null,null,"ENV",{"$f":"+VLOOKUP(F26,TT_Tabelle_Riferimento!$D$127:$E$164,2,FALSE)","v":"Depurazione"},"",0]
[0,0,"Gestore",0,"IP",24,{"$f":"+VLOOKUP(F27,TT_Tabelle_Riferimento!$D$127:$G$164,4,FALSE)","v":"Impianti di essiccamento fanghi e di valorizzazione dei fanghi (tra cui mono-incenerimento, pirolisi, gassificazione)"},1,{"$f":"+VLOOKUP(H27,TT_Tabelle_Riferimento!$F$3:$G$6,2,FALSE)","v":"Servizio idrico integrato"},2026,{"$f":"+SUMIFS('PdI-crono_inv'!AW:AW,'PdI-crono_inv'!CF:CF,F27,'PdI-crono_inv'!CE:CE,H27,'PdI-crono_inv'!J:J,P27,'PdI-crono_inv'!P:P,\"<>proprietario\")","v":0},null,{"$f":"+SUMIFS('PdI-crono_inv'!AX:AX,'PdI-crono_inv'!CF:CF,F27,'PdI-crono_inv'!CE:CE,H27,'PdI-crono_inv'!J:J,P27,'PdI-crono_inv'!P:P,\"<>proprietario\")+S27","v":0},null,null,"ENV",{"$f":"+VLOOKUP(F27,TT_Tabelle_Riferimento!$D$127:$E$164,2,FALSE)","v":"Depurazione"},"",0]
[0,0,"Gestore",0,"IP",25,{"$f":"+VLOOKUP(F28,TT_Tabelle_Riferimento!$D$127:$G$164,4,FALSE)","v":"Gruppi di misura - altre attrezzature di depurazione"},1,{"$f":"+VLOOKUP(H28,TT_Tabelle_Riferimento!$F$3:$G$6,2,FALSE)","v":"Servizio idrico integrato"},2026,{"$f":"+SUMIFS('PdI-crono_inv'!AW:AW,'PdI-crono_inv'!CF:CF,F28,'PdI-crono_inv'!CE:CE,H28,'PdI-crono_inv'!J:J,P28,'PdI-crono_inv'!P:P,\"<>proprietario\")","v":0},null,{"$f":"+SUMIFS('PdI-crono_inv'!AX:AX,'PdI-crono_inv'!CF:CF,F28,'PdI-crono_inv'!CE:CE,H28,'PdI-crono_inv'!J:J,P28,'PdI-crono_inv'!P:P,\"<>proprietario\")+S28","v":0},null,null,"ENV",{"$f":"+VLOOKUP(F28,TT_Tabelle_Riferimento!$D$127:$E$164,2,FALSE)","v":"Depurazione"},"",0]
[0,0,"Gestore",0,"IP",26,{"$f":"+VLOOKUP(F29,TT_Tabelle_Riferimento!$D$127:$G$164,4,FALSE)","v":"Sistemi informativi di depurazione"},1,{"$f":"+VLOOKUP(H29,TT_Tabelle_Riferimento!$F$3:$G$6,2,FALSE)","v":"Servizio idrico integrato"},2026,{"$f":"+SUMIFS('PdI-crono_inv'!AW:AW,'PdI-crono_inv'!CF:CF,F29,'PdI-crono_inv'!CE:CE,H29,'PdI-crono_inv'!J:J,P29,'PdI-crono_inv'!P:P,\"<>proprietario\")","v":0},null,{"$f":"+SUMIFS('PdI-crono_inv'!AX:AX,'PdI-crono_inv'!CF:CF,F29,'PdI-crono_inv'!CE:CE,H29,'PdI-crono_inv'!J:J,P29,'PdI-crono_inv'!P:P,\"<>proprietario\")+S29","v":0},null,null,"ENV",{"$f":"+VLOOKUP(F29,TT_Tabelle_Riferimento!$D$127:$E$164,2,FALSE)","v":"Depurazione"},"",0]
[0,0,"Gestore",0,"IP",27,{"$f":"+VLOOKUP(F30,TT_Tabelle_Riferimento!$D$127:$G$164,4,FALSE)","v":"Telecontrollo e teletrasmissione di depurazione"},1,{"$f":"+VLOOKUP(H30,TT_Tabelle_Riferimento!$F$3:$G$6,2,FALSE)","v":"Servizio idrico integrato"},2026,{"$f":"+SUMIFS('PdI-crono_inv'!AW:AW,'PdI-crono_inv'!CF:CF,F30,'PdI-crono_inv'!CE:CE,H30,'PdI-crono_inv'!J:J,P30,'PdI-crono_inv'!P:P,\"<>proprietario\")","v":0},null,{"$f":"+SUMIFS('PdI-crono_inv'!AX:AX,'PdI-crono_inv'!CF:CF,F30,'PdI-crono_inv'!CE:CE,H30,'PdI-crono_inv'!J:J,P30,'PdI-crono_inv'!P:P,\"<>proprietario\")+S30","v":0},null,null,"ENV",{"$f":"+VLOOKUP(F30,TT_Tabelle_Riferimento!$D$127:$E$164,2,FALSE)","v":"Depurazione"},"",0]
[0,0,"Gestore",0,"IP",28,{"$f":"+VLOOKUP(F31,TT_Tabelle_Riferimento!$D$127:$G$164,4,FALSE)","v":"Altri impianti"},1,{"$f":"+VLOOKUP(H31,TT_Tabelle_Riferimento!$F$3:$G$6,2,FALSE)","v":"Servizio idrico integrato"},2026,{"$f":"+SUMIFS('PdI-crono_inv'!AW:AW,'PdI-crono_inv'!CF:CF,F31,'PdI-crono_inv'!CE:CE,H31,'PdI-crono_inv'!J:J,P31,'PdI-crono_inv'!P:P,\"<>proprietario\")","v":0},null,{"$f":"+SUMIFS('PdI-crono_inv'!AX:AX,'PdI-crono_inv'!CF:CF,F31,'PdI-crono_inv'!CE:CE,H31,'PdI-crono_inv'!J:J,P31,'PdI-crono_inv'!P:P,\"<>proprietario\")+S31","v":0},null,null,"ENV",{"$f":"+VLOOKUP(F31,TT_Tabelle_Riferimento!$D$127:$E$164,2,FALSE)","v":"Comune"},"",0]
[{"$f":"+idato","v":0},{"$f":"+idgestore","v":0},"Gestore",0,"IP",29,{"$f":"+VLOOKUP(F32,TT_Tabelle_Riferimento!$D$127:$G$164,4,FALSE)","v":"Laboratori e attrezzature"},1,{"$f":"+VLOOKUP(H32,TT_Tabelle_Riferimento!$F$3:$G$6,2,FALSE)","v":"Servizio idrico integrato"},2026,{"$f":"+SUMIFS('PdI-crono_inv'!AW:AW,'PdI-crono_inv'!CF:CF,F32,'PdI-crono_inv'!CE:CE,H32,'PdI-crono_inv'!J:J,P32,'PdI-crono_inv'!P:P,\"<>proprietario\")","v":0},null,{"$f":"+SUMIFS('PdI-crono_inv'!AX:AX,'PdI-crono_inv'!CF:CF,F32,'PdI-crono_inv'!CE:CE,H32,'PdI-crono_inv'!J:J,P32,'PdI-crono_inv'!P:P,\"<>proprietario\")+S32","v":0},null,null,"ENV",{"$f":"+VLOOKUP(F32,TT_Tabelle_Riferimento!$D$127:$E$164,2,FALSE)","v":"Comune"},"",0]
[0,0,"Gestore",0,"IP",30,{"$f":"+VLOOKUP(F33,TT_Tabelle_Riferimento!$D$127:$G$164,4,FALSE)","v":"Sistemi informativi"},1,{"$f":"+VLOOKUP(H33,TT_Tabelle_Riferimento!$F$3:$G$6,2,FALSE)","v":"Servizio idrico integrato"},2026,{"$f":"+SUMIFS('PdI-crono_inv'!AW:AW,'PdI-crono_inv'!CF:CF,F33,'PdI-crono_inv'!CE:CE,H33,'PdI-crono_inv'!J:J,P33,'PdI-crono_inv'!P:P,\"<>proprietario\")","v":0},null,{"$f":"+SUMIFS('PdI-crono_inv'!AX:AX,'PdI-crono_inv'!CF:CF,F33,'PdI-crono_inv'!CE:CE,H33,'PdI-crono_inv'!J:J,P33,'PdI-crono_inv'!P:P,\"<>proprietario\")+S33","v":0},null,null,"ENV",{"$f":"+VLOOKUP(F33,TT_Tabelle_Riferimento!$D$127:$E$164,2,FALSE)","v":"Comune"},"",0]
[0,0,"Gestore",0,"IP",31,{"$f":"+VLOOKUP(F34,TT_Tabelle_Riferimento!$D$127:$G$164,4,FALSE)","v":"Telecontrollo e teletrasmissione"},1,{"$f":"+VLOOKUP(H34,TT_Tabelle_Riferimento!$F$3:$G$6,2,FALSE)","v":"Servizio idrico integrato"},2026,{"$f":"+SUMIFS('PdI-crono_inv'!AW:AW,'PdI-crono_inv'!CF:CF,F34,'PdI-crono_inv'!CE:CE,H34,'PdI-crono_inv'!J:J,P34,'PdI-crono_inv'!P:P,\"<>proprietario\")","v":0},null,{"$f":"+SUMIFS('PdI-crono_inv'!AX:AX,'PdI-crono_inv'!CF:CF,F34,'PdI-crono_inv'!CE:CE,H34,'PdI-crono_inv'!J:J,P34,'PdI-crono_inv'!P:P,\"<>proprietario\")+S34","v":0},null,null,"ENV",{"$f":"+VLOOKUP(F34,TT_Tabelle_Riferimento!$D$127:$E$164,2,FALSE)","v":"Comune"},"",0]
[0,0,"Gestore",0,"IP",32,{"$f":"+VLOOKUP(F35,TT_Tabelle_Riferimento!$D$127:$G$164,4,FALSE)","v":"Autoveicoli - automezzi"},1,{"$f":"+VLOOKUP(H35,TT_Tabelle_Riferimento!$F$3:$G$6,2,FALSE)","v":"Servizio idrico integrato"},2026,{"$f":"+SUMIFS('PdI-crono_inv'!AW:AW,'PdI-crono_inv'!CF:CF,F35,'PdI-crono_inv'!CE:CE,H35,'PdI-crono_inv'!J:J,P35,'PdI-crono_inv'!P:P,\"<>proprietario\")","v":0},null,{"$f":"+SUMIFS('PdI-crono_inv'!AX:AX,'PdI-crono_inv'!CF:CF,F35,'PdI-crono_inv'!CE:CE,H35,'PdI-crono_inv'!J:J,P35,'PdI-crono_inv'!P:P,\"<>proprietario\")+S35","v":0},null,null,"ENV",{"$f":"+VLOOKUP(F35,TT_Tabelle_Riferimento!$D$127:$E$164,2,FALSE)","v":"Comune"},"",0]
[0,0,"Gestore",0,"IP",1,{"$f":"+VLOOKUP(F36,TT_Tabelle_Riferimento!$D$127:$G$164,4,FALSE)","v":"Terreni"},1,{"$f":"+VLOOKUP(H36,TT_Tabelle_Riferimento!$F$3:$G$6,2,FALSE)","v":"Servizio idrico integrato"},2026,{"$f":"+SUMIFS('PdI-crono_inv'!AW:AW,'PdI-crono_inv'!CF:CF,F36,'PdI-crono_inv'!CE:CE,H36,'PdI-crono_inv'!J:J,P36,'PdI-crono_inv'!P:P,\"<>proprietario\")","v":0},null,{"$f":"+SUMIFS('PdI-crono_inv'!AX:AX,'PdI-crono_inv'!CF:CF,F36,'PdI-crono_inv'!CE:CE,H36,'PdI-crono_inv'!J:J,P36,'PdI-crono_inv'!P:P,\"<>proprietario\")+S36","v":0},null,null,"ENV",{"$f":"+VLOOKUP(F36,TT_Tabelle_Riferimento!$D$127:$E$164,2,FALSE)","v":"Comune"},"",0]
[0,0,"Gestore",0,"IP",33,{"$f":"+VLOOKUP(F37,TT_Tabelle_Riferimento!$D$127:$G$164,4,FALSE)","v":"Fabbricati non industriali"},1,{"$f":"+VLOOKUP(H37,TT_Tabelle_Riferimento!$F$3:$G$6,2,FALSE)","v":"Servizio idrico integrato"},2026,{"$f":"+SUMIFS('PdI-crono_inv'!AW:AW,'PdI-crono_inv'!CF:CF,F37,'PdI-crono_inv'!CE:CE,H37,'PdI-crono_inv'!J:J,P37,'PdI-crono_inv'!P:P,\"<>proprietario\")","v":0},null,{"$f":"+SUMIFS('PdI-crono_inv'!AX:AX,'PdI-crono_inv'!CF:CF,F37,'PdI-crono_inv'!CE:CE,H37,'PdI-crono_inv'!J:J,P37,'PdI-crono_inv'!P:P,\"<>proprietario\")+S37","v":0},null,null,"ENV",{"$f":"+VLOOKUP(F37,TT_Tabelle_Riferimento!$D$127:$E$164,2,FALSE)","v":"Comune"},"",0]
[0,0,"Gestore",0,"IP",34,{"$f":"+VLOOKUP(F38,TT_Tabelle_Riferimento!$D$127:$G$164,4,FALSE)","v":"Fabbricati industriali"},1,{"$f":"+VLOOKUP(H38,TT_Tabelle_Riferimento!$F$3:$G$6,2,FALSE)","v":"Servizio idrico integrato"},2026,{"$f":"+SUMIFS('PdI-crono_inv'!AW:AW,'PdI-crono_inv'!CF:CF,F38,'PdI-crono_inv'!CE:CE,H38,'PdI-crono_inv'!J:J,P38,'PdI-crono_inv'!P:P,\"<>proprietario\")","v":0},null,{"$f":"+SUMIFS('PdI-crono_inv'!AX:AX,'PdI-crono_inv'!CF:CF,F38,'PdI-crono_inv'!CE:CE,H38,'PdI-crono_inv'!J:J,P38,'PdI-crono_inv'!P:P,\"<>proprietario\")+S38","v":0},null,null,"ENV",{"$f":"+VLOOKUP(F38,TT_Tabelle_Riferimento!$D$127:$E$164,2,FALSE)","v":"Comune"},"",0]
[0,0,"Gestore",0,"IP",35,{"$f":"+VLOOKUP(F39,TT_Tabelle_Riferimento!$D$127:$G$164,4,FALSE)","v":"Costruzioni leggere"},1,{"$f":"+VLOOKUP(H39,TT_Tabelle_Riferimento!$F$3:$G$6,2,FALSE)","v":"Servizio idrico integrato"},2026,{"$f":"+SUMIFS('PdI-crono_inv'!AW:AW,'PdI-crono_inv'!CF:CF,F39,'PdI-crono_inv'!CE:CE,H39,'PdI-crono_inv'!J:J,P39,'PdI-crono_inv'!P:P,\"<>proprietario\")","v":0},null,{"$f":"+SUMIFS('PdI-crono_inv'!AX:AX,'PdI-crono_inv'!CF:CF,F39,'PdI-crono_inv'!CE:CE,H39,'PdI-crono_inv'!J:J,P39,'PdI-crono_inv'!P:P,\"<>proprietario\")+S39","v":0},null,null,"ENV",{"$f":"+VLOOKUP(F39,TT_Tabelle_Riferimento!$D$127:$E$164,2,FALSE)","v":"Comune"},"",0]
[0,0,"Gestore",0,"IP",36,{"$f":"+VLOOKUP(F40,TT_Tabelle_Riferimento!$D$127:$G$164,4,FALSE)","v":"Studi, ricerche, brevetti, diritti di utilizzazione"},1,{"$f":"+VLOOKUP(H40,TT_Tabelle_Riferimento!$F$3:$G$6,2,FALSE)","v":"Servizio idrico integrato"},2026,{"$f":"+SUMIFS('PdI-crono_inv'!AW:AW,'PdI-crono_inv'!CF:CF,F40,'PdI-crono_inv'!CE:CE,H40,'PdI-crono_inv'!J:J,P40,'PdI-crono_inv'!P:P,\"<>proprietario\")","v":0},null,{"$f":"+SUMIFS('PdI-crono_inv'!AX:AX,'PdI-crono_inv'!CF:CF,F40,'PdI-crono_inv'!CE:CE,H40,'PdI-crono_inv'!J:J,P40,'PdI-crono_inv'!P:P,\"<>proprietario\")+S40","v":0},null,null,"ENV",{"$f":"+VLOOKUP(F40,TT_Tabelle_Riferimento!$D$127:$E$164,2,FALSE)","v":"Comune"},"",0]
[0,0,"Gestore",0,"IP",37,{"$f":"+VLOOKUP(F41,TT_Tabelle_Riferimento!$D$127:$G$164,4,FALSE)","v":"Altre immobilizzazioni materiali e immateriali"},1,{"$f":"+VLOOKUP(H41,TT_Tabelle_Riferimento!$F$3:$G$6,2,FALSE)","v":"Servizio idrico integrato"},2026,{"$f":"+SUMIFS('PdI-crono_inv'!AW:AW,'PdI-crono_inv'!CF:CF,F41,'PdI-crono_inv'!CE:CE,H41,'PdI-crono_inv'!J:J,P41,'PdI-crono_inv'!P:P,\"<>proprietario\")","v":0},null,{"$f":"+SUMIFS('PdI-crono_inv'!AX:AX,'PdI-crono_inv'!CF:CF,F41,'PdI-crono_inv'!CE:CE,H41,'PdI-crono_inv'!J:J,P41,'PdI-crono_inv'!P:P,\"<>proprietario\")+S41","v":0},null,null,"ENV",{"$f":"+VLOOKUP(F41,TT_Tabelle_Riferimento!$D$127:$E$164,2,FALSE)","v":"Comune"},{"$f":"+IF(SUM(K41:N41)=0,\"\",\"PdI_consolidamento\")","v":""},0]
[0,0,"Gestore",0,"IP",38,{"$f":"+VLOOKUP(F42,TT_Tabelle_Riferimento!$D$127:$G$164,4,FALSE)","v":"Grandi dighe (sbarramenti che superano i quindici metri di altezza o che determinano un invaso superiore a 1 milione di metri cubi)"},1,{"$f":"+VLOOKUP(H42,TT_Tabelle_Riferimento!$F$3:$G$6,2,FALSE)","v":"Servizio idrico integrato"},2026,{"$f":"+SUMIFS('PdI-crono_inv'!AW:AW,'PdI-crono_inv'!CF:CF,F42,'PdI-crono_inv'!CE:CE,H42,'PdI-crono_inv'!J:J,P42,'PdI-crono_inv'!P:P,\"<>proprietario\")","v":0},null,{"$f":"+SUMIFS('PdI-crono_inv'!AX:AX,'PdI-crono_inv'!CF:CF,F42,'PdI-crono_inv'!CE:CE,H42,'PdI-crono_inv'!J:J,P42,'PdI-crono_inv'!P:P,\"<>proprietario\")+S42","v":0},null,null,"ENV",{"$f":"+VLOOKUP(F42,TT_Tabelle_Riferimento!$D$127:$E$164,2,FALSE)","v":"Acquedotto"},{"$f":"+IF(SUM(K42:N42)=0,\"\",\"PdI_consolidamento\")","v":""},0]
[0,0,"Gestore",0,"IP",39,{"$f":"+VLOOKUP(F43,TT_Tabelle_Riferimento!$D$127:$G$164,4,FALSE)","v":"Piccole dighe (sbarramenti che non superano i quindici metri di altezza o che determinano un invaso non superiore a 1 milione di metri cubi)"},1,{"$f":"+VLOOKUP(H43,TT_Tabelle_Riferimento!$F$3:$G$6,2,FALSE)","v":"Servizio idrico integrato"},2026,{"$f":"+SUMIFS('PdI-crono_inv'!AW:AW,'PdI-crono_inv'!CF:CF,F43,'PdI-crono_inv'!CE:CE,H43,'PdI-crono_inv'!J:J,P43,'PdI-crono_inv'!P:P,\"<>proprietario\")","v":0},null,{"$f":"+SUMIFS('PdI-crono_inv'!AX:AX,'PdI-crono_inv'!CF:CF,F43,'PdI-crono_inv'!CE:CE,H43,'PdI-crono_inv'!J:J,P43,'PdI-crono_inv'!P:P,\"<>proprietario\")+S43","v":0},null,null,"ENV",{"$f":"+VLOOKUP(F43,TT_Tabelle_Riferimento!$D$127:$E$164,2,FALSE)","v":"Acquedotto"},{"$f":"+IF(SUM(K43:N43)=0,\"\",\"PdI_consolidamento\")","v":""},0]
[{"$f":"+idato","v":0},{"$f":"+idgestore","v":0},"Gestore",0,"IP",2,{"$f":"+VLOOKUP(F44,TT_Tabelle_Riferimento!$D$127:$G$164,4,FALSE)","v":"Condotte di acquedotto"},2,{"$f":"+VLOOKUP(H44,TT_Tabelle_Riferimento!$F$3:$G$6,2,FALSE)","v":"Fognatura bianca e pulizia / manutenzione caditoie stradali"},2026,{"$f":"+SUMIFS('PdI-crono_inv'!AW:AW,'PdI-crono_inv'!CF:CF,F44,'PdI-crono_inv'!CE:CE,H44,'PdI-crono_inv'!J:J,P44,'PdI-crono_inv'!P:P,\"<>proprietario\")","v":0},null,{"$f":"+SUMIFS('PdI-crono_inv'!AX:AX,'PdI-crono_inv'!CF:CF,F44,'PdI-crono_inv'!CE:CE,H44,'PdI-crono_inv'!J:J,P44,'PdI-crono_inv'!P:P,\"<>proprietario\")+S44","v":0},null,null,"ENV",{"$f":"+VLOOKUP(F44,TT_Tabelle_Riferimento!$D$127:$E$164,2,FALSE)","v":"Acquedotto"},{"$f":"+IF(SUM(K44:N44)=0,\"\",\"PdI_consolidamento\")","v":""},0]
[0,0,"Gestore",0,"IP",3,{"$f":"+VLOOKUP(F45,TT_Tabelle_Riferimento!$D$127:$G$164,4,FALSE)","v":"Opere idrauliche fisse di acquedotto"},2,{"$f":"+VLOOKUP(H45,TT_Tabelle_Riferimento!$F$3:$G$6,2,FALSE)","v":"Fognatura bianca e pulizia / manutenzione caditoie stradali"},2026,{"$f":"+SUMIFS('PdI-crono_inv'!AW:AW,'PdI-crono_inv'!CF:CF,F45,'PdI-crono_inv'!CE:CE,H45,'PdI-crono_inv'!J:J,P45,'PdI-crono_inv'!P:P,\"<>proprietario\")","v":0},null,{"$f":"+SUMIFS('PdI-crono_inv'!AX:AX,'PdI-crono_inv'!CF:CF,F45,'PdI-crono_inv'!CE:CE,H45,'PdI-crono_inv'!J:J,P45,'PdI-crono_inv'!P:P,\"<>proprietario\")+S45","v":0},null,null,"ENV",{"$f":"+VLOOKUP(F45,TT_Tabelle_Riferimento!$D$127:$E$164,2,FALSE)","v":"Acquedotto"},"",0]
[0,0,"Gestore",0,"IP",4,{"$f":"+VLOOKUP(F46,TT_Tabelle_Riferimento!$D$127:$G$164,4,FALSE)","v":"Serbatoi"},2,{"$f":"+VLOOKUP(H46,TT_Tabelle_Riferimento!$F$3:$G$6,2,FALSE)","v":"Fognatura bianca e pulizia / manutenzione caditoie stradali"},2026,{"$f":"+SUMIFS('PdI-crono_inv'!AW:AW,'PdI-crono_inv'!CF:CF,F46,'PdI-crono_inv'!CE:CE,H46,'PdI-crono_inv'!J:J,P46,'PdI-crono_inv'!P:P,\"<>proprietario\")","v":0},null,{"$f":"+SUMIFS('PdI-crono_inv'!AX:AX,'PdI-crono_inv'!CF:CF,F46,'PdI-crono_inv'!CE:CE,H46,'PdI-crono_inv'!J:J,P46,'PdI-crono_inv'!P:P,\"<>proprietario\")+S46","v":0},null,null,"ENV",{"$f":"+VLOOKUP(F46,TT_Tabelle_Riferimento!$D$127:$E$164,2,FALSE)","v":"Acquedotto"},"",0]
[0,0,"Gestore",0,"IP",5,{"$f":"+VLOOKUP(F47,TT_Tabelle_Riferimento!$D$127:$G$164,4,FALSE)","v":"Impianti di sollevamento e pompaggio di acquedotto"},2,{"$f":"+VLOOKUP(H47,TT_Tabelle_Riferimento!$F$3:$G$6,2,FALSE)","v":"Fognatura bianca e pulizia / manutenzione caditoie stradali"},2026,{"$f":"+SUMIFS('PdI-crono_inv'!AW:AW,'PdI-crono_inv'!CF:CF,F47,'PdI-crono_inv'!CE:CE,H47,'PdI-crono_inv'!J:J,P47,'PdI-crono_inv'!P:P,\"<>proprietario\")","v":0},null,{"$f":"+SUMIFS('PdI-crono_inv'!AX:AX,'PdI-crono_inv'!CF:CF,F47,'PdI-crono_inv'!CE:CE,H47,'PdI-crono_inv'!J:J,P47,'PdI-crono_inv'!P:P,\"<>proprietario\")+S47","v":0},null,null,"ENV",{"$f":"+VLOOKUP(F47,TT_Tabelle_Riferimento!$D$127:$E$164,2,FALSE)","v":"Acquedotto"},"",0]
[0,0,"Gestore",0,"IP",6,{"$f":"+VLOOKUP(F48,TT_Tabelle_Riferimento!$D$127:$G$164,4,FALSE)","v":"Impianti di potabilizzazione"},2,{"$f":"+VLOOKUP(H48,TT_Tabelle_Riferimento!$F$3:$G$6,2,FALSE)","v":"Fognatura bianca e pulizia / manutenzione caditoie stradali"},2026,{"$f":"+SUMIFS('PdI-crono_inv'!AW:AW,'PdI-crono_inv'!CF:CF,F48,'PdI-crono_inv'!CE:CE,H48,'PdI-crono_inv'!J:J,P48,'PdI-crono_inv'!P:P,\"<>proprietario\")","v":0},null,{"$f":"+SUMIFS('PdI-crono_inv'!AX:AX,'PdI-crono_inv'!CF:CF,F48,'PdI-crono_inv'!CE:CE,H48,'PdI-crono_inv'!J:J,P48,'PdI-crono_inv'!P:P,\"<>proprietario\")+S48","v":0},null,null,"ENV",{"$f":"+VLOOKUP(F48,TT_Tabelle_Riferimento!$D$127:$E$164,2,FALSE)","v":"Acquedotto"},"",0]
[0,0,"Gestore",0,"IP",7,{"$f":"+VLOOKUP(F49,TT_Tabelle_Riferimento!$D$127:$G$164,4,FALSE)","v":"Altri trattamenti di potabilizzazione (tra cui dispositivi di disinfezione, stacciatura, filtrazione, addolcimento)"},2,{"$f":"+VLOOKUP(H49,TT_Tabelle_Riferimento!$F$3:$G$6,2,FALSE)","v":"Fognatura bianca e pulizia / manutenzione caditoie stradali"},2026,{"$f":"+SUMIFS('PdI-crono_inv'!AW:AW,'PdI-crono_inv'!CF:CF,F49,'PdI-crono_inv'!CE:CE,H49,'PdI-crono_inv'!J:J,P49,'PdI-crono_inv'!P:P,\"<>proprietario\")","v":0},null,{"$f":"+SUMIFS('PdI-crono_inv'!AX:AX,'PdI-crono_inv'!CF:CF,F49,'PdI-crono_inv'!CE:CE,H49,'PdI-crono_inv'!J:J,P49,'PdI-crono_inv'!P:P,\"<>proprietario\")+S49","v":0},null,null,"ENV",{"$f":"+VLOOKUP(F49,TT_Tabelle_Riferimento!$D$127:$E$164,2,FALSE)","v":"Acquedotto"},"",0]
[0,0,"Gestore",0,"IP",8,{"$f":"+VLOOKUP(F50,TT_Tabelle_Riferimento!$D$127:$G$164,4,FALSE)","v":"Gruppi di misura - altre attrezzature di acquedotto"},2,{"$f":"+VLOOKUP(H50,TT_Tabelle_Riferimento!$F$3:$G$6,2,FALSE)","v":"Fognatura bianca e pulizia / manutenzione caditoie stradali"},2026,{"$f":"+SUMIFS('PdI-crono_inv'!AW:AW,'PdI-crono_inv'!CF:CF,F50,'PdI-crono_inv'!CE:CE,H50,'PdI-crono_inv'!J:J,P50,'PdI-crono_inv'!P:P,\"<>proprietario\")","v":0},null,{"$f":"+SUMIFS('PdI-crono_inv'!AX:AX,'PdI-crono_inv'!CF:CF,F50,'PdI-crono_inv'!CE:CE,H50,'PdI-crono_inv'!J:J,P50,'PdI-crono_inv'!P:P,\"<>proprietario\")+S50","v":0},null,null,"ENV",{"$f":"+VLOOKUP(F50,TT_Tabelle_Riferimento!$D$127:$E$164,2,FALSE)","v":"Acquedotto"},"",0]
[0,0,"Gestore",0,"IP",9,{"$f":"+VLOOKUP(F51,TT_Tabelle_Riferimento!$D$127:$G$164,4,FALSE)","v":"Sistemi informativi di acquedotto"},2,{"$f":"+VLOOKUP(H51,TT_Tabelle_Riferimento!$F$3:$G$6,2,FALSE)","v":"Fognatura bianca e pulizia / manutenzione caditoie stradali"},2026,{"$f":"+SUMIFS('PdI-crono_inv'!AW:AW,'PdI-crono_inv'!CF:CF,F51,'PdI-crono_inv'!CE:CE,H51,'PdI-crono_inv'!J:J,P51,'PdI-crono_inv'!P:P,\"<>proprietario\")","v":0},null,{"$f":"+SUMIFS('PdI-crono_inv'!AX:AX,'PdI-crono_inv'!CF:CF,F51,'PdI-crono_inv'!CE:CE,H51,'PdI-crono_inv'!J:J,P51,'PdI-crono_inv'!P:P,\"<>proprietario\")+S51","v":0},null,null,"ENV",{"$f":"+VLOOKUP(F51,TT_Tabelle_Riferimento!$D$127:$E$164,2,FALSE)","v":"Acquedotto"},"",0]
[0,0,"Gestore",0,"IP",10,{"$f":"+VLOOKUP(F52,TT_Tabelle_Riferimento!$D$127:$G$164,4,FALSE)","v":"Telecontrollo e teletrasmissione di acquedotto"},2,{"$f":"+VLOOKUP(H52,TT_Tabelle_Riferimento!$F$3:$G$6,2,FALSE)","v":"Fognatura bianca e pulizia / manutenzione caditoie stradali"},2026,{"$f":"+SUMIFS('PdI-crono_inv'!AW:AW,'PdI-crono_inv'!CF:CF,F52,'PdI-crono_inv'!CE:CE,H52,'PdI-crono_inv'!J:J,P52,'PdI-crono_inv'!P:P,\"<>proprietario\")","v":0},null,{"$f":"+SUMIFS('PdI-crono_inv'!AX:AX,'PdI-crono_inv'!CF:CF,F52,'PdI-crono_inv'!CE:CE,H52,'PdI-crono_inv'!J:J,P52,'PdI-crono_inv'!P:P,\"<>proprietario\")+S52","v":0},null,null,"ENV",{"$f":"+VLOOKUP(F52,TT_Tabelle_Riferimento!$D$127:$E$164,2,FALSE)","v":"Acquedotto"},"",0]
[0,0,"Gestore",0,"IP",11,{"$f":"+VLOOKUP(F53,TT_Tabelle_Riferimento!$D$127:$G$164,4,FALSE)","v":"Condotte fognarie"},2,{"$f":"+VLOOKUP(H53,TT_Tabelle_Riferimento!$F$3:$G$6,2,FALSE)","v":"Fognatura bianca e pulizia / manutenzione caditoie stradali"},2026,{"$f":"+SUMIFS('PdI-crono_inv'!AW:AW,'PdI-crono_inv'!CF:CF,F53,'PdI-crono_inv'!CE:CE,H53,'PdI-crono_inv'!J:J,P53,'PdI-crono_inv'!P:P,\"<>proprietario\")","v":0},null,{"$f":"+SUMIFS('PdI-crono_inv'!AX:AX,'PdI-crono_inv'!CF:CF,F53,'PdI-crono_inv'!CE:CE,H53,'PdI-crono_inv'!J:J,P53,'PdI-crono_inv'!P:P,\"<>proprietario\")+S53","v":0},null,null,"ENV",{"$f":"+VLOOKUP(F53,TT_Tabelle_Riferimento!$D$127:$E$164,2,FALSE)","v":"Fognatura"},"",0]
[0,0,"Gestore",0,"IP",12,{"$f":"+VLOOKUP(F54,TT_Tabelle_Riferimento!$D$127:$G$164,4,FALSE)","v":"Sifoni e scaricatori di piena e altre opere idrauliche fisse di fognatura"},2,{"$f":"+VLOOKUP(H54,TT_Tabelle_Riferimento!$F$3:$G$6,2,FALSE)","v":"Fognatura bianca e pulizia / manutenzione caditoie stradali"},2026,{"$f":"+SUMIFS('PdI-crono_inv'!AW:AW,'PdI-crono_inv'!CF:CF,F54,'PdI-crono_inv'!CE:CE,H54,'PdI-crono_inv'!J:J,P54,'PdI-crono_inv'!P:P,\"<>proprietario\")","v":0},null,{"$f":"+SUMIFS('PdI-crono_inv'!AX:AX,'PdI-crono_inv'!CF:CF,F54,'PdI-crono_inv'!CE:CE,H54,'PdI-crono_inv'!J:J,P54,'PdI-crono_inv'!P:P,\"<>proprietario\")+S54","v":0},null,null,"ENV",{"$f":"+VLOOKUP(F54,TT_Tabelle_Riferimento!$D$127:$E$164,2,FALSE)","v":"Fognatura"},"",0]
[0,0,"Gestore",0,"IP",13,{"$f":"+VLOOKUP(F55,TT_Tabelle_Riferimento!$D$127:$G$164,4,FALSE)","v":"Vasche di laminazione e vasche di prima pioggia"},2,{"$f":"+VLOOKUP(H55,TT_Tabelle_Riferimento!$F$3:$G$6,2,FALSE)","v":"Fognatura bianca e pulizia / manutenzione caditoie stradali"},2026,{"$f":"+SUMIFS('PdI-crono_inv'!AW:AW,'PdI-crono_inv'!CF:CF,F55,'PdI-crono_inv'!CE:CE,H55,'PdI-crono_inv'!J:J,P55,'PdI-crono_inv'!P:P,\"<>proprietario\")","v":0},null,{"$f":"+SUMIFS('PdI-crono_inv'!AX:AX,'PdI-crono_inv'!CF:CF,F55,'PdI-crono_inv'!CE:CE,H55,'PdI-crono_inv'!J:J,P55,'PdI-crono_inv'!P:P,\"<>proprietario\")+S55","v":0},null,null,"ENV",{"$f":"+VLOOKUP(F55,TT_Tabelle_Riferimento!$D$127:$E$164,2,FALSE)","v":"Fognatura"},"",0]
[0,0,"Gestore",0,"IP",14,{"$f":"+VLOOKUP(F56,TT_Tabelle_Riferimento!$D$127:$G$164,4,FALSE)","v":"Impianti di sollevamento e pompaggio di fognatura"},2,{"$f":"+VLOOKUP(H56,TT_Tabelle_Riferimento!$F$3:$G$6,2,FALSE)","v":"Fognatura bianca e pulizia / manutenzione caditoie stradali"},2026,{"$f":"+SUMIFS('PdI-crono_inv'!AW:AW,'PdI-crono_inv'!CF:CF,F56,'PdI-crono_inv'!CE:CE,H56,'PdI-crono_inv'!J:J,P56,'PdI-crono_inv'!P:P,\"<>proprietario\")","v":0},null,{"$f":"+SUMIFS('PdI-crono_inv'!AX:AX,'PdI-crono_inv'!CF:CF,F56,'PdI-crono_inv'!CE:CE,H56,'PdI-crono_inv'!J:J,P56,'PdI-crono_inv'!P:P,\"<>proprietario\")+S56","v":0},null,null,"ENV",{"$f":"+VLOOKUP(F56,TT_Tabelle_Riferimento!$D$127:$E$164,2,FALSE)","v":"Fognatura"},"",0]
[0,0,"Gestore",0,"IP",15,{"$f":"+VLOOKUP(F57,TT_Tabelle_Riferimento!$D$127:$G$164,4,FALSE)","v":"Gruppi di misura - altre attrezzature di fognatura"},2,{"$f":"+VLOOKUP(H57,TT_Tabelle_Riferimento!$F$3:$G$6,2,FALSE)","v":"Fognatura bianca e pulizia / manutenzione caditoie stradali"},2026,{"$f":"+SUMIFS('PdI-crono_inv'!AW:AW,'PdI-crono_inv'!CF:CF,F57,'PdI-crono_inv'!CE:CE,H57,'PdI-crono_inv'!J:J,P57,'PdI-crono_inv'!P:P,\"<>proprietario\")","v":0},null,{"$f":"+SUMIFS('PdI-crono_inv'!AX:AX,'PdI-crono_inv'!CF:CF,F57,'PdI-crono_inv'!CE:CE,H57,'PdI-crono_inv'!J:J,P57,'PdI-crono_inv'!P:P,\"<>proprietario\")+S57","v":0},null,null,"ENV",{"$f":"+VLOOKUP(F57,TT_Tabelle_Riferimento!$D$127:$E$164,2,FALSE)","v":"Fognatura"},"",0]
[0,0,"Gestore",0,"IP",16,{"$f":"+VLOOKUP(F58,TT_Tabelle_Riferimento!$D$127:$G$164,4,FALSE)","v":"Sistemi informativi di fognatura"},2,{"$f":"+VLOOKUP(H58,TT_Tabelle_Riferimento!$F$3:$G$6,2,FALSE)","v":"Fognatura bianca e pulizia / manutenzione caditoie stradali"},2026,{"$f":"+SUMIFS('PdI-crono_inv'!AW:AW,'PdI-crono_inv'!CF:CF,F58,'PdI-crono_inv'!CE:CE,H58,'PdI-crono_inv'!J:J,P58,'PdI-crono_inv'!P:P,\"<>proprietario\")","v":0},null,{"$f":"+SUMIFS('PdI-crono_inv'!AX:AX,'PdI-crono_inv'!CF:CF,F58,'PdI-crono_inv'!CE:CE,H58,'PdI-crono_inv'!J:J,P58,'PdI-crono_inv'!P:P,\"<>proprietario\")+S58","v":0},null,null,"ENV",{"$f":"+VLOOKUP(F58,TT_Tabelle_Riferimento!$D$127:$E$164,2,FALSE)","v":"Fognatura"},"",0]
[0,0,"Gestore",0,"IP",18,{"$f":"+VLOOKUP(F59,TT_Tabelle_Riferimento!$D$127:$G$164,4,FALSE)","v":"Telecontrollo e teletrasmissione di fognatura"},2,{"$f":"+VLOOKUP(H59,TT_Tabelle_Riferimento!$F$3:$G$6,2,FALSE)","v":"Fognatura bianca e pulizia / manutenzione caditoie stradali"},2026,{"$f":"+SUMIFS('PdI-crono_inv'!AW:AW,'PdI-crono_inv'!CF:CF,F59,'PdI-crono_inv'!CE:CE,H59,'PdI-crono_inv'!J:J,P59,'PdI-crono_inv'!P:P,\"<>proprietario\")","v":0},null,{"$f":"+SUMIFS('PdI-crono_inv'!AX:AX,'PdI-crono_inv'!CF:CF,F59,'PdI-crono_inv'!CE:CE,H59,'PdI-crono_inv'!J:J,P59,'PdI-crono_inv'!P:P,\"<>proprietario\")+S59","v":0},null,null,"ENV",{"$f":"+VLOOKUP(F59,TT_Tabelle_Riferimento!$D$127:$E$164,2,FALSE)","v":"Fognatura"},"",0]
[0,0,"Gestore",0,"IP",19,{"$f":"+VLOOKUP(F60,TT_Tabelle_Riferimento!$D$127:$G$164,4,FALSE)","v":"Impianti di sollevamento e pompaggio di depurazione"},2,{"$f":"+VLOOKUP(H60,TT_Tabelle_Riferimento!$F$3:$G$6,2,FALSE)","v":"Fognatura bianca e pulizia / manutenzione caditoie stradali"},2026,{"$f":"+SUMIFS('PdI-crono_inv'!AW:AW,'PdI-crono_inv'!CF:CF,F60,'PdI-crono_inv'!CE:CE,H60,'PdI-crono_inv'!J:J,P60,'PdI-crono_inv'!P:P,\"<>proprietario\")","v":0},null,{"$f":"+SUMIFS('PdI-crono_inv'!AX:AX,'PdI-crono_inv'!CF:CF,F60,'PdI-crono_inv'!CE:CE,H60,'PdI-crono_inv'!J:J,P60,'PdI-crono_inv'!P:P,\"<>proprietario\")+S60","v":0},null,null,"ENV",{"$f":"+VLOOKUP(F60,TT_Tabelle_Riferimento!$D$127:$E$164,2,FALSE)","v":"Depurazione"},"",0]
[0,0,"Gestore",0,"IP",20,{"$f":"+VLOOKUP(F61,TT_Tabelle_Riferimento!$D$127:$G$164,4,FALSE)","v":"Tecniche naturali di depurazione (tra cui fitodepurazione e lagunaggio)"},2,{"$f":"+VLOOKUP(H61,TT_Tabelle_Riferimento!$F$3:$G$6,2,FALSE)","v":"Fognatura bianca e pulizia / manutenzione caditoie stradali"},2026,{"$f":"+SUMIFS('PdI-crono_inv'!AW:AW,'PdI-crono_inv'!CF:CF,F61,'PdI-crono_inv'!CE:CE,H61,'PdI-crono_inv'!J:J,P61,'PdI-crono_inv'!P:P,\"<>proprietario\")","v":0},null,{"$f":"+SUMIFS('PdI-crono_inv'!AX:AX,'PdI-crono_inv'!CF:CF,F61,'PdI-crono_inv'!CE:CE,H61,'PdI-crono_inv'!J:J,P61,'PdI-crono_inv'!P:P,\"<>proprietario\")+S61","v":0},null,null,"ENV",{"$f":"+VLOOKUP(F61,TT_Tabelle_Riferimento!$D$127:$E$164,2,FALSE)","v":"Depurazione"},"",0]
[0,0,"Gestore",0,"IP",21,{"$f":"+VLOOKUP(F62,TT_Tabelle_Riferimento!$D$127:$G$164,4,FALSE)","v":"Impianti di depurazione – trattamenti sino al preliminare, integrativo, primario - fosse settiche e fosse Imhoff"},2,{"$f":"+VLOOKUP(H62,TT_Tabelle_Riferimento!$F$3:$G$6,2,FALSE)","v":"Fognatura bianca e pulizia / manutenzione caditoie stradali"},2026,{"$f":"+SUMIFS('PdI-crono_inv'!AW:AW,'PdI-crono_inv'!CF:CF,F62,'PdI-crono_inv'!CE:CE,H62,'PdI-crono_inv'!J:J,P62,'PdI-crono_inv'!P:P,\"<>proprietario\")","v":0},null,{"$f":"+SUMIFS('PdI-crono_inv'!AX:AX,'PdI-crono_inv'!CF:CF,F62,'PdI-crono_inv'!CE:CE,H62,'PdI-crono_inv'!J:J,P62,'PdI-crono_inv'!P:P,\"<>proprietario\")+S62","v":0},null,null,"ENV",{"$f":"+VLOOKUP(F62,TT_Tabelle_Riferimento!$D$127:$E$164,2,FALSE)","v":"Depurazione"},"",0]
[0,0,"Gestore",0,"IP",22,{"$f":"+VLOOKUP(F63,TT_Tabelle_Riferimento!$D$127:$G$164,4,FALSE)","v":"Impianti di depurazione – trattamenti sino al secondario"},2,{"$f":"+VLOOKUP(H63,TT_Tabelle_Riferimento!$F$3:$G$6,2,FALSE)","v":"Fognatura bianca e pulizia / manutenzione caditoie stradali"},2026,{"$f":"+SUMIFS('PdI-crono_inv'!AW:AW,'PdI-crono_inv'!CF:CF,F63,'PdI-crono_inv'!CE:CE,H63,'PdI-crono_inv'!J:J,P63,'PdI-crono_inv'!P:P,\"<>proprietario\")","v":0},null,{"$f":"+SUMIFS('PdI-crono_inv'!AX:AX,'PdI-crono_inv'!CF:CF,F63,'PdI-crono_inv'!CE:CE,H63,'PdI-crono_inv'!J:J,P63,'PdI-crono_inv'!P:P,\"<>proprietario\")+S63","v":0},null,null,"ENV",{"$f":"+VLOOKUP(F63,TT_Tabelle_Riferimento!$D$127:$E$164,2,FALSE)","v":"Depurazione"},"",0]
[0,0,"Gestore",0,"IP",23,{"$f":"+VLOOKUP(F64,TT_Tabelle_Riferimento!$D$127:$G$164,4,FALSE)","v":"Impianti di depurazione – trattamenti sino al terziario e terziario avanzato"},2,{"$f":"+VLOOKUP(H64,TT_Tabelle_Riferimento!$F$3:$G$6,2,FALSE)","v":"Fognatura bianca e pulizia / manutenzione caditoie stradali"},2026,{"$f":"+SUMIFS('PdI-crono_inv'!AW:AW,'PdI-crono_inv'!CF:CF,F64,'PdI-crono_inv'!CE:CE,H64,'PdI-crono_inv'!J:J,P64,'PdI-crono_inv'!P:P,\"<>proprietario\")","v":0},null,{"$f":"+SUMIFS('PdI-crono_inv'!AX:AX,'PdI-crono_inv'!CF:CF,F64,'PdI-crono_inv'!CE:CE,H64,'PdI-crono_inv'!J:J,P64,'PdI-crono_inv'!P:P,\"<>proprietario\")+S64","v":0},null,null,"ENV",{"$f":"+VLOOKUP(F64,TT_Tabelle_Riferimento!$D$127:$E$164,2,FALSE)","v":"Depurazione"},"",0]
[0,0,"Gestore",0,"IP",24,{"$f":"+VLOOKUP(F65,TT_Tabelle_Riferimento!$D$127:$G$164,4,FALSE)","v":"Impianti di essiccamento fanghi e di valorizzazione dei fanghi (tra cui mono-incenerimento, pirolisi, gassificazione)"},2,{"$f":"+VLOOKUP(H65,TT_Tabelle_Riferimento!$F$3:$G$6,2,FALSE)","v":"Fognatura bianca e pulizia / manutenzione caditoie stradali"},2026,{"$f":"+SUMIFS('PdI-crono_inv'!AW:AW,'PdI-crono_inv'!CF:CF,F65,'PdI-crono_inv'!CE:CE,H65,'PdI-crono_inv'!J:J,P65,'PdI-crono_inv'!P:P,\"<>proprietario\")","v":0},null,{"$f":"+SUMIFS('PdI-crono_inv'!AX:AX,'PdI-crono_inv'!CF:CF,F65,'PdI-crono_inv'!CE:CE,H65,'PdI-crono_inv'!J:J,P65,'PdI-crono_inv'!P:P,\"<>proprietario\")+S65","v":0},null,null,"ENV",{"$f":"+VLOOKUP(F65,TT_Tabelle_Riferimento!$D$127:$E$164,2,FALSE)","v":"Depurazione"},"",0]
[0,0,"Gestore",0,"IP",25,{"$f":"+VLOOKUP(F66,TT_Tabelle_Riferimento!$D$127:$G$164,4,FALSE)","v":"Gruppi di misura - altre attrezzature di depurazione"},2,{"$f":"+VLOOKUP(H66,TT_Tabelle_Riferimento!$F$3:$G$6,2,FALSE)","v":"Fognatura bianca e pulizia / manutenzione caditoie stradali"},2026,{"$f":"+SUMIFS('PdI-crono_inv'!AW:AW,'PdI-crono_inv'!CF:CF,F66,'PdI-crono_inv'!CE:CE,H66,'PdI-crono_inv'!J:J,P66,'PdI-crono_inv'!P:P,\"<>proprietario\")","v":0},null,{"$f":"+SUMIFS('PdI-crono_inv'!AX:AX,'PdI-crono_inv'!CF:CF,F66,'PdI-crono_inv'!CE:CE,H66,'PdI-crono_inv'!J:J,P66,'PdI-crono_inv'!P:P,\"<>proprietario\")+S66","v":0},null,null,"ENV",{"$f":"+VLOOKUP(F66,TT_Tabelle_Riferimento!$D$127:$E$164,2,FALSE)","v":"Depurazione"},"",0]
[0,0,"Gestore",0,"IP",26,{"$f":"+VLOOKUP(F67,TT_Tabelle_Riferimento!$D$127:$G$164,4,FALSE)","v":"Sistemi informativi di depurazione"},2,{"$f":"+VLOOKUP(H67,TT_Tabelle_Riferimento!$F$3:$G$6,2,FALSE)","v":"Fognatura bianca e pulizia / manutenzione caditoie stradali"},2026,{"$f":"+SUMIFS('PdI-crono_inv'!AW:AW,'PdI-crono_inv'!CF:CF,F67,'PdI-crono_inv'!CE:CE,H67,'PdI-crono_inv'!J:J,P67,'PdI-crono_inv'!P:P,\"<>proprietario\")","v":0},null,{"$f":"+SUMIFS('PdI-crono_inv'!AX:AX,'PdI-crono_inv'!CF:CF,F67,'PdI-crono_inv'!CE:CE,H67,'PdI-crono_inv'!J:J,P67,'PdI-crono_inv'!P:P,\"<>proprietario\")+S67","v":0},null,null,"ENV",{"$f":"+VLOOKUP(F67,TT_Tabelle_Riferimento!$D$127:$E$164,2,FALSE)","v":"Depurazione"},"",0]
[0,0,"Gestore",0,"IP",27,{"$f":"+VLOOKUP(F68,TT_Tabelle_Riferimento!$D$127:$G$164,4,FALSE)","v":"Telecontrollo e teletrasmissione di depurazione"},2,{"$f":"+VLOOKUP(H68,TT_Tabelle_Riferimento!$F$3:$G$6,2,FALSE)","v":"Fognatura bianca e pulizia / manutenzione caditoie stradali"},2026,{"$f":"+SUMIFS('PdI-crono_inv'!AW:AW,'PdI-crono_inv'!CF:CF,F68,'PdI-crono_inv'!CE:CE,H68,'PdI-crono_inv'!J:J,P68,'PdI-crono_inv'!P:P,\"<>proprietario\")","v":0},null,{"$f":"+SUMIFS('PdI-crono_inv'!AX:AX,'PdI-crono_inv'!CF:CF,F68,'PdI-crono_inv'!CE:CE,H68,'PdI-crono_inv'!J:J,P68,'PdI-crono_inv'!P:P,\"<>proprietario\")+S68","v":0},null,null,"ENV",{"$f":"+VLOOKUP(F68,TT_Tabelle_Riferimento!$D$127:$E$164,2,FALSE)","v":"Depurazione"},"",0]
[0,0,"Gestore",0,"IP",28,{"$f":"+VLOOKUP(F69,TT_Tabelle_Riferimento!$D$127:$G$164,4,FALSE)","v":"Altri impianti"},2,{"$f":"+VLOOKUP(H69,TT_Tabelle_Riferimento!$F$3:$G$6,2,FALSE)","v":"Fognatura bianca e pulizia / manutenzione caditoie stradali"},2026,{"$f":"+SUMIFS('PdI-crono_inv'!AW:AW,'PdI-crono_inv'!CF:CF,F69,'PdI-crono_inv'!CE:CE,H69,'PdI-crono_inv'!J:J,P69,'PdI-crono_inv'!P:P,\"<>proprietario\")","v":0},null,{"$f":"+SUMIFS('PdI-crono_inv'!AX:AX,'PdI-crono_inv'!CF:CF,F69,'PdI-crono_inv'!CE:CE,H69,'PdI-crono_inv'!J:J,P69,'PdI-crono_inv'!P:P,\"<>proprietario\")+S69","v":0},null,null,"ENV",{"$f":"+VLOOKUP(F69,TT_Tabelle_Riferimento!$D$127:$E$164,2,FALSE)","v":"Comune"},"",0]
[0,0,"Gestore",0,"IP",29,{"$f":"+VLOOKUP(F70,TT_Tabelle_Riferimento!$D$127:$G$164,4,FALSE)","v":"Laboratori e attrezzature"},2,{"$f":"+VLOOKUP(H70,TT_Tabelle_Riferimento!$F$3:$G$6,2,FALSE)","v":"Fognatura bianca e pulizia / manutenzione caditoie stradali"},2026,{"$f":"+SUMIFS('PdI-crono_inv'!AW:AW,'PdI-crono_inv'!CF:CF,F70,'PdI-crono_inv'!CE:CE,H70,'PdI-crono_inv'!J:J,P70,'PdI-crono_inv'!P:P,\"<>proprietario\")","v":0},null,{"$f":"+SUMIFS('PdI-crono_inv'!AX:AX,'PdI-crono_inv'!CF:CF,F70,'PdI-crono_inv'!CE:CE,H70,'PdI-crono_inv'!J:J,P70,'PdI-crono_inv'!P:P,\"<>proprietario\")+S70","v":0},null,null,"ENV",{"$f":"+VLOOKUP(F70,TT_Tabelle_Riferimento!$D$127:$E$164,2,FALSE)","v":"Comune"},"",0]
[0,0,"Gestore",0,"IP",30,{"$f":"+VLOOKUP(F71,TT_Tabelle_Riferimento!$D$127:$G$164,4,FALSE)","v":"Sistemi informativi"},2,{"$f":"+VLOOKUP(H71,TT_Tabelle_Riferimento!$F$3:$G$6,2,FALSE)","v":"Fognatura bianca e pulizia / manutenzione caditoie stradali"},2026,{"$f":"+SUMIFS('PdI-crono_inv'!AW:AW,'PdI-crono_inv'!CF:CF,F71,'PdI-crono_inv'!CE:CE,H71,'PdI-crono_inv'!J:J,P71,'PdI-crono_inv'!P:P,\"<>proprietario\")","v":0},null,{"$f":"+SUMIFS('PdI-crono_inv'!AX:AX,'PdI-crono_inv'!CF:CF,F71,'PdI-crono_inv'!CE:CE,H71,'PdI-crono_inv'!J:J,P71,'PdI-crono_inv'!P:P,\"<>proprietario\")+S71","v":0},null,null,"ENV",{"$f":"+VLOOKUP(F71,TT_Tabelle_Riferimento!$D$127:$E$164,2,FALSE)","v":"Comune"},"",{"$f":"+IFERROR(HLOOKUP(J71,$X$2:$Y$5,4,FALSE)*K71,0)","v":0}]
[0,0,"Gestore",0,"IP",31,{"$f":"+VLOOKUP(F72,TT_Tabelle_Riferimento!$D$127:$G$164,4,FALSE)","v":"Telecontrollo e teletrasmissione"},2,{"$f":"+VLOOKUP(H72,TT_Tabelle_Riferimento!$F$3:$G$6,2,FALSE)","v":"Fognatura bianca e pulizia / manutenzione caditoie stradali"},2026,{"$f":"+SUMIFS('PdI-crono_inv'!AW:AW,'PdI-crono_inv'!CF:CF,F72,'PdI-crono_inv'!CE:CE,H72,'PdI-crono_inv'!J:J,P72,'PdI-crono_inv'!P:P,\"<>proprietario\")","v":0},null,{"$f":"+SUMIFS('PdI-crono_inv'!AX:AX,'PdI-crono_inv'!CF:CF,F72,'PdI-crono_inv'!CE:CE,H72,'PdI-crono_inv'!J:J,P72,'PdI-crono_inv'!P:P,\"<>proprietario\")+S72","v":0},null,null,"ENV",{"$f":"+VLOOKUP(F72,TT_Tabelle_Riferimento!$D$127:$E$164,2,FALSE)","v":"Comune"},"",0]
[0,0,"Gestore",0,"IP",32,{"$f":"+VLOOKUP(F73,TT_Tabelle_Riferimento!$D$127:$G$164,4,FALSE)","v":"Autoveicoli - automezzi"},2,{"$f":"+VLOOKUP(H73,TT_Tabelle_Riferimento!$F$3:$G$6,2,FALSE)","v":"Fognatura bianca e pulizia / manutenzione caditoie stradali"},2026,{"$f":"+SUMIFS('PdI-crono_inv'!AW:AW,'PdI-crono_inv'!CF:CF,F73,'PdI-crono_inv'!CE:CE,H73,'PdI-crono_inv'!J:J,P73,'PdI-crono_inv'!P:P,\"<>proprietario\")","v":0},null,{"$f":"+SUMIFS('PdI-crono_inv'!AX:AX,'PdI-crono_inv'!CF:CF,F73,'PdI-crono_inv'!CE:CE,H73,'PdI-crono_inv'!J:J,P73,'PdI-crono_inv'!P:P,\"<>proprietario\")+S73","v":0},null,null,"ENV",{"$f":"+VLOOKUP(F73,TT_Tabelle_Riferimento!$D$127:$E$164,2,FALSE)","v":"Comune"},"",0]
[0,0,"Gestore",0,"IP",1,{"$f":"+VLOOKUP(F74,TT_Tabelle_Riferimento!$D$127:$G$164,4,FALSE)","v":"Terreni"},2,{"$f":"+VLOOKUP(H74,TT_Tabelle_Riferimento!$F$3:$G$6,2,FALSE)","v":"Fognatura bianca e pulizia / manutenzione caditoie stradali"},2026,{"$f":"+SUMIFS('PdI-crono_inv'!AW:AW,'PdI-crono_inv'!CF:CF,F74,'PdI-crono_inv'!CE:CE,H74,'PdI-crono_inv'!J:J,P74,'PdI-crono_inv'!P:P,\"<>proprietario\")","v":0},null,{"$f":"+SUMIFS('PdI-crono_inv'!AX:AX,'PdI-crono_inv'!CF:CF,F74,'PdI-crono_inv'!CE:CE,H74,'PdI-crono_inv'!J:J,P74,'PdI-crono_inv'!P:P,\"<>proprietario\")+S74","v":0},null,null,"ENV",{"$f":"+VLOOKUP(F74,TT_Tabelle_Riferimento!$D$127:$E$164,2,FALSE)","v":"Comune"},"",0]
[0,0,"Gestore",0,"IP",33,{"$f":"+VLOOKUP(F75,TT_Tabelle_Riferimento!$D$127:$G$164,4,FALSE)","v":"Fabbricati non industriali"},2,{"$f":"+VLOOKUP(H75,TT_Tabelle_Riferimento!$F$3:$G$6,2,FALSE)","v":"Fognatura bianca e pulizia / manutenzione caditoie stradali"},2026,{"$f":"+SUMIFS('PdI-crono_inv'!AW:AW,'PdI-crono_inv'!CF:CF,F75,'PdI-crono_inv'!CE:CE,H75,'PdI-crono_inv'!J:J,P75,'PdI-crono_inv'!P:P,\"<>proprietario\")","v":0},null,{"$f":"+SUMIFS('PdI-crono_inv'!AX:AX,'PdI-crono_inv'!CF:CF,F75,'PdI-crono_inv'!CE:CE,H75,'PdI-crono_inv'!J:J,P75,'PdI-crono_inv'!P:P,\"<>proprietario\")+S75","v":0},null,null,"ENV",{"$f":"+VLOOKUP(F75,TT_Tabelle_Riferimento!$D$127:$E$164,2,FALSE)","v":"Comune"},"",0]
[0,0,"Gestore",0,"IP",34,{"$f":"+VLOOKUP(F76,TT_Tabelle_Riferimento!$D$127:$G$164,4,FALSE)","v":"Fabbricati industriali"},2,{"$f":"+VLOOKUP(H76,TT_Tabelle_Riferimento!$F$3:$G$6,2,FALSE)","v":"Fognatura bianca e pulizia / manutenzione caditoie stradali"},2026,{"$f":"+SUMIFS('PdI-crono_inv'!AW:AW,'PdI-crono_inv'!CF:CF,F76,'PdI-crono_inv'!CE:CE,H76,'PdI-crono_inv'!J:J,P76,'PdI-crono_inv'!P:P,\"<>proprietario\")","v":0},null,{"$f":"+SUMIFS('PdI-crono_inv'!AX:AX,'PdI-crono_inv'!CF:CF,F76,'PdI-crono_inv'!CE:CE,H76,'PdI-crono_inv'!J:J,P76,'PdI-crono_inv'!P:P,\"<>proprietario\")+S76","v":0},null,null,"ENV",{"$f":"+VLOOKUP(F76,TT_Tabelle_Riferimento!$D$127:$E$164,2,FALSE)","v":"Comune"},"",0]
[0,0,"Gestore",0,"IP",35,{"$f":"+VLOOKUP(F77,TT_Tabelle_Riferimento!$D$127:$G$164,4,FALSE)","v":"Costruzioni leggere"},2,{"$f":"+VLOOKUP(H77,TT_Tabelle_Riferimento!$F$3:$G$6,2,FALSE)","v":"Fognatura bianca e pulizia / manutenzione caditoie stradali"},2026,{"$f":"+SUMIFS('PdI-crono_inv'!AW:AW,'PdI-crono_inv'!CF:CF,F77,'PdI-crono_inv'!CE:CE,H77,'PdI-crono_inv'!J:J,P77,'PdI-crono_inv'!P:P,\"<>proprietario\")","v":0},null,{"$f":"+SUMIFS('PdI-crono_inv'!AX:AX,'PdI-crono_inv'!CF:CF,F77,'PdI-crono_inv'!CE:CE,H77,'PdI-crono_inv'!J:J,P77,'PdI-crono_inv'!P:P,\"<>proprietario\")+S77","v":0},null,null,"ENV",{"$f":"+VLOOKUP(F77,TT_Tabelle_Riferimento!$D$127:$E$164,2,FALSE)","v":"Comune"},"",0]
[0,0,"Gestore",0,"IP",36,{"$f":"+VLOOKUP(F78,TT_Tabelle_Riferimento!$D$127:$G$164,4,FALSE)","v":"Studi, ricerche, brevetti, diritti di utilizzazione"},2,{"$f":"+VLOOKUP(H78,TT_Tabelle_Riferimento!$F$3:$G$6,2,FALSE)","v":"Fognatura bianca e pulizia / manutenzione caditoie stradali"},2026,{"$f":"+SUMIFS('PdI-crono_inv'!AW:AW,'PdI-crono_inv'!CF:CF,F78,'PdI-crono_inv'!CE:CE,H78,'PdI-crono_inv'!J:J,P78,'PdI-crono_inv'!P:P,\"<>proprietario\")","v":0},null,{"$f":"+SUMIFS('PdI-crono_inv'!AX:AX,'PdI-crono_inv'!CF:CF,F78,'PdI-crono_inv'!CE:CE,H78,'PdI-crono_inv'!J:J,P78,'PdI-crono_inv'!P:P,\"<>proprietario\")+S78","v":0},null,null,"ENV",{"$f":"+VLOOKUP(F78,TT_Tabelle_Riferimento!$D$127:$E$164,2,FALSE)","v":"Comune"},"",0]
[0,0,"Gestore",0,"IP",37,{"$f":"+VLOOKUP(F79,TT_Tabelle_Riferimento!$D$127:$G$164,4,FALSE)","v":"Altre immobilizzazioni materiali e immateriali"},2,{"$f":"+VLOOKUP(H79,TT_Tabelle_Riferimento!$F$3:$G$6,2,FALSE)","v":"Fognatura bianca e pulizia / manutenzione caditoie stradali"},2026,{"$f":"+SUMIFS('PdI-crono_inv'!AW:AW,'PdI-crono_inv'!CF:CF,F79,'PdI-crono_inv'!CE:CE,H79,'PdI-crono_inv'!J:J,P79,'PdI-crono_inv'!P:P,\"<>proprietario\")","v":0},null,{"$f":"+SUMIFS('PdI-crono_inv'!AX:AX,'PdI-crono_inv'!CF:CF,F79,'PdI-crono_inv'!CE:CE,H79,'PdI-crono_inv'!J:J,P79,'PdI-crono_inv'!P:P,\"<>proprietario\")+S79","v":0},null,null,"ENV",{"$f":"+VLOOKUP(F79,TT_Tabelle_Riferimento!$D$127:$E$164,2,FALSE)","v":"Comune"},"",0]
[0,0,"Gestore",0,"IP",38,{"$f":"+VLOOKUP(F80,TT_Tabelle_Riferimento!$D$127:$G$164,4,FALSE)","v":"Grandi dighe (sbarramenti che superano i quindici metri di altezza o che determinano un invaso superiore a 1 milione di metri cubi)"},2,{"$f":"+VLOOKUP(H80,TT_Tabelle_Riferimento!$F$3:$G$6,2,FALSE)","v":"Fognatura bianca e pulizia / manutenzione caditoie stradali"},2026,{"$f":"+SUMIFS('PdI-crono_inv'!AW:AW,'PdI-crono_inv'!CF:CF,F80,'PdI-crono_inv'!CE:CE,H80,'PdI-crono_inv'!J:J,P80,'PdI-crono_inv'!P:P,\"<>proprietario\")","v":0},null,{"$f":"+SUMIFS('PdI-crono_inv'!AX:AX,'PdI-crono_inv'!CF:CF,F80,'PdI-crono_inv'!CE:CE,H80,'PdI-crono_inv'!J:J,P80,'PdI-crono_inv'!P:P,\"<>proprietario\")+S80","v":0},null,null,"ENV",{"$f":"+VLOOKUP(F80,TT_Tabelle_Riferimento!$D$127:$E$164,2,FALSE)","v":"Acquedotto"},"",0]
[0,0,"Gestore",0,"IP",39,{"$f":"+VLOOKUP(F81,TT_Tabelle_Riferimento!$D$127:$G$164,4,FALSE)","v":"Piccole dighe (sbarramenti che non superano i quindici metri di altezza o che determinano un invaso non superiore a 1 milione di metri cubi)"},2,{"$f":"+VLOOKUP(H81,TT_Tabelle_Riferimento!$F$3:$G$6,2,FALSE)","v":"Fognatura bianca e pulizia / manutenzione caditoie stradali"},2026,{"$f":"+SUMIFS('PdI-crono_inv'!AW:AW,'PdI-crono_inv'!CF:CF,F81,'PdI-crono_inv'!CE:CE,H81,'PdI-crono_inv'!J:J,P81,'PdI-crono_inv'!P:P,\"<>proprietario\")","v":0},null,{"$f":"+SUMIFS('PdI-crono_inv'!AX:AX,'PdI-crono_inv'!CF:CF,F81,'PdI-crono_inv'!CE:CE,H81,'PdI-crono_inv'!J:J,P81,'PdI-crono_inv'!P:P,\"<>proprietario\")+S81","v":0},null,null,"ENV",{"$f":"+VLOOKUP(F81,TT_Tabelle_Riferimento!$D$127:$E$164,2,FALSE)","v":"Acquedotto"},"",0]
[{"$f":"+idato","v":0},{"$f":"+idgestore","v":0},"Gestore",0,"IP",2,{"$f":"+VLOOKUP(F82,TT_Tabelle_Riferimento!$D$127:$G$164,4,FALSE)","v":"Condotte di acquedotto"},3,{"$f":"+VLOOKUP(H82,TT_Tabelle_Riferimento!$F$3:$G$6,2,FALSE)","v":"Altri servizi idrici"},2026,{"$f":"+SUMIFS('PdI-crono_inv'!AW:AW,'PdI-crono_inv'!CF:CF,F82,'PdI-crono_inv'!CE:CE,H82,'PdI-crono_inv'!J:J,P82,'PdI-crono_inv'!P:P,\"<>proprietario\")","v":0},null,{"$f":"+SUMIFS('PdI-crono_inv'!AX:AX,'PdI-crono_inv'!CF:CF,F82,'PdI-crono_inv'!CE:CE,H82,'PdI-crono_inv'!J:J,P82,'PdI-crono_inv'!P:P,\"<>proprietario\")+S82","v":0},null,null,"ENV",{"$f":"+VLOOKUP(F82,TT_Tabelle_Riferimento!$D$127:$E$164,2,FALSE)","v":"Acquedotto"},"",0]
[0,0,"Gestore",0,"IP",3,{"$f":"+VLOOKUP(F83,TT_Tabelle_Riferimento!$D$127:$G$164,4,FALSE)","v":"Opere idrauliche fisse di acquedotto"},3,{"$f":"+VLOOKUP(H83,TT_Tabelle_Riferimento!$F$3:$G$6,2,FALSE)","v":"Altri servizi idrici"},2026,{"$f":"+SUMIFS('PdI-crono_inv'!AW:AW,'PdI-crono_inv'!CF:CF,F83,'PdI-crono_inv'!CE:CE,H83,'PdI-crono_inv'!J:J,P83,'PdI-crono_inv'!P:P,\"<>proprietario\")","v":0},null,{"$f":"+SUMIFS('PdI-crono_inv'!AX:AX,'PdI-crono_inv'!CF:CF,F83,'PdI-crono_inv'!CE:CE,H83,'PdI-crono_inv'!J:J,P83,'PdI-crono_inv'!P:P,\"<>proprietario\")+S83","v":0},null,null,"ENV",{"$f":"+VLOOKUP(F83,TT_Tabelle_Riferimento!$D$127:$E$164,2,FALSE)","v":"Acquedotto"},"",0]
[0,0,"Gestore",0,"IP",4,{"$f":"+VLOOKUP(F84,TT_Tabelle_Riferimento!$D$127:$G$164,4,FALSE)","v":"Serbatoi"},3,{"$f":"+VLOOKUP(H84,TT_Tabelle_Riferimento!$F$3:$G$6,2,FALSE)","v":"Altri servizi idrici"},2026,{"$f":"+SUMIFS('PdI-crono_inv'!AW:AW,'PdI-crono_inv'!CF:CF,F84,'PdI-crono_inv'!CE:CE,H84,'PdI-crono_inv'!J:J,P84,'PdI-crono_inv'!P:P,\"<>proprietario\")","v":0},null,{"$f":"+SUMIFS('PdI-crono_inv'!AX:AX,'PdI-crono_inv'!CF:CF,F84,'PdI-crono_inv'!CE:CE,H84,'PdI-crono_inv'!J:J,P84,'PdI-crono_inv'!P:P,\"<>proprietario\")+S84","v":0},null,null,"ENV",{"$f":"+VLOOKUP(F84,TT_Tabelle_Riferimento!$D$127:$E$164,2,FALSE)","v":"Acquedotto"},"",0]
[0,0,"Gestore",0,"IP",5,{"$f":"+VLOOKUP(F85,TT_Tabelle_Riferimento!$D$127:$G$164,4,FALSE)","v":"Impianti di sollevamento e pompaggio di acquedotto"},3,{"$f":"+VLOOKUP(H85,TT_Tabelle_Riferimento!$F$3:$G$6,2,FALSE)","v":"Altri servizi idrici"},2026,{"$f":"+SUMIFS('PdI-crono_inv'!AW:AW,'PdI-crono_inv'!CF:CF,F85,'PdI-crono_inv'!CE:CE,H85,'PdI-crono_inv'!J:J,P85,'PdI-crono_inv'!P:P,\"<>proprietario\")","v":0},null,{"$f":"+SUMIFS('PdI-crono_inv'!AX:AX,'PdI-crono_inv'!CF:CF,F85,'PdI-crono_inv'!CE:CE,H85,'PdI-crono_inv'!J:J,P85,'PdI-crono_inv'!P:P,\"<>proprietario\")+S85","v":0},null,null,"ENV",{"$f":"+VLOOKUP(F85,TT_Tabelle_Riferimento!$D$127:$E$164,2,FALSE)","v":"Acquedotto"},"",0]
[0,0,"Gestore",0,"IP",6,{"$f":"+VLOOKUP(F86,TT_Tabelle_Riferimento!$D$127:$G$164,4,FALSE)","v":"Impianti di potabilizzazione"},3,{"$f":"+VLOOKUP(H86,TT_Tabelle_Riferimento!$F$3:$G$6,2,FALSE)","v":"Altri servizi idrici"},2026,{"$f":"+SUMIFS('PdI-crono_inv'!AW:AW,'PdI-crono_inv'!CF:CF,F86,'PdI-crono_inv'!CE:CE,H86,'PdI-crono_inv'!J:J,P86,'PdI-crono_inv'!P:P,\"<>proprietario\")","v":0},null,{"$f":"+SUMIFS('PdI-crono_inv'!AX:AX,'PdI-crono_inv'!CF:CF,F86,'PdI-crono_inv'!CE:CE,H86,'PdI-crono_inv'!J:J,P86,'PdI-crono_inv'!P:P,\"<>proprietario\")+S86","v":0},null,null,"ENV",{"$f":"+VLOOKUP(F86,TT_Tabelle_Riferimento!$D$127:$E$164,2,FALSE)","v":"Acquedotto"},"",0]
[0,0,"Gestore",0,"IP",7,{"$f":"+VLOOKUP(F87,TT_Tabelle_Riferimento!$D$127:$G$164,4,FALSE)","v":"Altri trattamenti di potabilizzazione (tra cui dispositivi di disinfezione, stacciatura, filtrazione, addolcimento)"},3,{"$f":"+VLOOKUP(H87,TT_Tabelle_Riferimento!$F$3:$G$6,2,FALSE)","v":"Altri servizi idrici"},2026,{"$f":"+SUMIFS('PdI-crono_inv'!AW:AW,'PdI-crono_inv'!CF:CF,F87,'PdI-crono_inv'!CE:CE,H87,'PdI-crono_inv'!J:J,P87,'PdI-crono_inv'!P:P,\"<>proprietario\")","v":0},null,{"$f":"+SUMIFS('PdI-crono_inv'!AX:AX,'PdI-crono_inv'!CF:CF,F87,'PdI-crono_inv'!CE:CE,H87,'PdI-crono_inv'!J:J,P87,'PdI-crono_inv'!P:P,\"<>proprietario\")+S87","v":0},null,null,"ENV",{"$f":"+VLOOKUP(F87,TT_Tabelle_Riferimento!$D$127:$E$164,2,FALSE)","v":"Acquedotto"},"",0]
[0,0,"Gestore",0,"IP",8,{"$f":"+VLOOKUP(F88,TT_Tabelle_Riferimento!$D$127:$G$164,4,FALSE)","v":"Gruppi di misura - altre attrezzature di acquedotto"},3,{"$f":"+VLOOKUP(H88,TT_Tabelle_Riferimento!$F$3:$G$6,2,FALSE)","v":"Altri servizi idrici"},2026,{"$f":"+SUMIFS('PdI-crono_inv'!AW:AW,'PdI-crono_inv'!CF:CF,F88,'PdI-crono_inv'!CE:CE,H88,'PdI-crono_inv'!J:J,P88,'PdI-crono_inv'!P:P,\"<>proprietario\")","v":0},null,{"$f":"+SUMIFS('PdI-crono_inv'!AX:AX,'PdI-crono_inv'!CF:CF,F88,'PdI-crono_inv'!CE:CE,H88,'PdI-crono_inv'!J:J,P88,'PdI-crono_inv'!P:P,\"<>proprietario\")+S88","v":0},null,null,"ENV",{"$f":"+VLOOKUP(F88,TT_Tabelle_Riferimento!$D$127:$E$164,2,FALSE)","v":"Acquedotto"},"",0]
[0,0,"Gestore",0,"IP",9,{"$f":"+VLOOKUP(F89,TT_Tabelle_Riferimento!$D$127:$G$164,4,FALSE)","v":"Sistemi informativi di acquedotto"},3,{"$f":"+VLOOKUP(H89,TT_Tabelle_Riferimento!$F$3:$G$6,2,FALSE)","v":"Altri servizi idrici"},2026,{"$f":"+SUMIFS('PdI-crono_inv'!AW:AW,'PdI-crono_inv'!CF:CF,F89,'PdI-crono_inv'!CE:CE,H89,'PdI-crono_inv'!J:J,P89,'PdI-crono_inv'!P:P,\"<>proprietario\")","v":0},null,{"$f":"+SUMIFS('PdI-crono_inv'!AX:AX,'PdI-crono_inv'!CF:CF,F89,'PdI-crono_inv'!CE:CE,H89,'PdI-crono_inv'!J:J,P89,'PdI-crono_inv'!P:P,\"<>proprietario\")+S89","v":0},null,null,"ENV",{"$f":"+VLOOKUP(F89,TT_Tabelle_Riferimento!$D$127:$E$164,2,FALSE)","v":"Acquedotto"},"",0]
[0,0,"Gestore",0,"IP",10,{"$f":"+VLOOKUP(F90,TT_Tabelle_Riferimento!$D$127:$G$164,4,FALSE)","v":"Telecontrollo e teletrasmissione di acquedotto"},3,{"$f":"+VLOOKUP(H90,TT_Tabelle_Riferimento!$F$3:$G$6,2,FALSE)","v":"Altri servizi idrici"},2026,{"$f":"+SUMIFS('PdI-crono_inv'!AW:AW,'PdI-crono_inv'!CF:CF,F90,'PdI-crono_inv'!CE:CE,H90,'PdI-crono_inv'!J:J,P90,'PdI-crono_inv'!P:P,\"<>proprietario\")","v":0},null,{"$f":"+SUMIFS('PdI-crono_inv'!AX:AX,'PdI-crono_inv'!CF:CF,F90,'PdI-crono_inv'!CE:CE,H90,'PdI-crono_inv'!J:J,P90,'PdI-crono_inv'!P:P,\"<>proprietario\")+S90","v":0},null,null,"ENV",{"$f":"+VLOOKUP(F90,TT_Tabelle_Riferimento!$D$127:$E$164,2,FALSE)","v":"Acquedotto"},"",0]
[0,0,"Gestore",0,"IP",11,{"$f":"+VLOOKUP(F91,TT_Tabelle_Riferimento!$D$127:$G$164,4,FALSE)","v":"Condotte fognarie"},3,{"$f":"+VLOOKUP(H91,TT_Tabelle_Riferimento!$F$3:$G$6,2,FALSE)","v":"Altri servizi idrici"},2026,{"$f":"+SUMIFS('PdI-crono_inv'!AW:AW,'PdI-crono_inv'!CF:CF,F91,'PdI-crono_inv'!CE:CE,H91,'PdI-crono_inv'!J:J,P91,'PdI-crono_inv'!P:P,\"<>proprietario\")","v":0},null,{"$f":"+SUMIFS('PdI-crono_inv'!AX:AX,'PdI-crono_inv'!CF:CF,F91,'PdI-crono_inv'!CE:CE,H91,'PdI-crono_inv'!J:J,P91,'PdI-crono_inv'!P:P,\"<>proprietario\")+S91","v":0},null,null,"ENV",{"$f":"+VLOOKUP(F91,TT_Tabelle_Riferimento!$D$127:$E$164,2,FALSE)","v":"Fognatura"},"",0]
[0,0,"Gestore",0,"IP",12,{"$f":"+VLOOKUP(F92,TT_Tabelle_Riferimento!$D$127:$G$164,4,FALSE)","v":"Sifoni e scaricatori di piena e altre opere idrauliche fisse di fognatura"},3,{"$f":"+VLOOKUP(H92,TT_Tabelle_Riferimento!$F$3:$G$6,2,FALSE)","v":"Altri servizi idrici"},2026,{"$f":"+SUMIFS('PdI-crono_inv'!AW:AW,'PdI-crono_inv'!CF:CF,F92,'PdI-crono_inv'!CE:CE,H92,'PdI-crono_inv'!J:J,P92,'PdI-crono_inv'!P:P,\"<>proprietario\")","v":0},null,{"$f":"+SUMIFS('PdI-crono_inv'!AX:AX,'PdI-crono_inv'!CF:CF,F92,'PdI-crono_inv'!CE:CE,H92,'PdI-crono_inv'!J:J,P92,'PdI-crono_inv'!P:P,\"<>proprietario\")+S92","v":0},null,null,"ENV",{"$f":"+VLOOKUP(F92,TT_Tabelle_Riferimento!$D$127:$E$164,2,FALSE)","v":"Fognatura"},"",0]
[0,0,"Gestore",0,"IP",13,{"$f":"+VLOOKUP(F93,TT_Tabelle_Riferimento!$D$127:$G$164,4,FALSE)","v":"Vasche di laminazione e vasche di prima pioggia"},3,{"$f":"+VLOOKUP(H93,TT_Tabelle_Riferimento!$F$3:$G$6,2,FALSE)","v":"Altri servizi idrici"},2026,{"$f":"+SUMIFS('PdI-crono_inv'!AW:AW,'PdI-crono_inv'!CF:CF,F93,'PdI-crono_inv'!CE:CE,H93,'PdI-crono_inv'!J:J,P93,'PdI-crono_inv'!P:P,\"<>proprietario\")","v":0},null,{"$f":"+SUMIFS('PdI-crono_inv'!AX:AX,'PdI-crono_inv'!CF:CF,F93,'PdI-crono_inv'!CE:CE,H93,'PdI-crono_inv'!J:J,P93,'PdI-crono_inv'!P:P,\"<>proprietario\")+S93","v":0},null,null,"ENV",{"$f":"+VLOOKUP(F93,TT_Tabelle_Riferimento!$D$127:$E$164,2,FALSE)","v":"Fognatura"},"",0]
[0,0,"Gestore",0,"IP",14,{"$f":"+VLOOKUP(F94,TT_Tabelle_Riferimento!$D$127:$G$164,4,FALSE)","v":"Impianti di sollevamento e pompaggio di fognatura"},3,{"$f":"+VLOOKUP(H94,TT_Tabelle_Riferimento!$F$3:$G$6,2,FALSE)","v":"Altri servizi idrici"},2026,{"$f":"+SUMIFS('PdI-crono_inv'!AW:AW,'PdI-crono_inv'!CF:CF,F94,'PdI-crono_inv'!CE:CE,H94,'PdI-crono_inv'!J:J,P94,'PdI-crono_inv'!P:P,\"<>proprietario\")","v":0},null,{"$f":"+SUMIFS('PdI-crono_inv'!AX:AX,'PdI-crono_inv'!CF:CF,F94,'PdI-crono_inv'!CE:CE,H94,'PdI-crono_inv'!J:J,P94,'PdI-crono_inv'!P:P,\"<>proprietario\")+S94","v":0},null,null,"ENV",{"$f":"+VLOOKUP(F94,TT_Tabelle_Riferimento!$D$127:$E$164,2,FALSE)","v":"Fognatura"},"",0]
[0,0,"Gestore",0,"IP",15,{"$f":"+VLOOKUP(F95,TT_Tabelle_Riferimento!$D$127:$G$164,4,FALSE)","v":"Gruppi di misura - altre attrezzature di fognatura"},3,{"$f":"+VLOOKUP(H95,TT_Tabelle_Riferimento!$F$3:$G$6,2,FALSE)","v":"Altri servizi idrici"},2026,{"$f":"+SUMIFS('PdI-crono_inv'!AW:AW,'PdI-crono_inv'!CF:CF,F95,'PdI-crono_inv'!CE:CE,H95,'PdI-crono_inv'!J:J,P95,'PdI-crono_inv'!P:P,\"<>proprietario\")","v":0},null,{"$f":"+SUMIFS('PdI-crono_inv'!AX:AX,'PdI-crono_inv'!CF:CF,F95,'PdI-crono_inv'!CE:CE,H95,'PdI-crono_inv'!J:J,P95,'PdI-crono_inv'!P:P,\"<>proprietario\")+S95","v":0},null,null,"ENV",{"$f":"+VLOOKUP(F95,TT_Tabelle_Riferimento!$D$127:$E$164,2,FALSE)","v":"Fognatura"},"",0]
[0,0,"Gestore",0,"IP",16,{"$f":"+VLOOKUP(F96,TT_Tabelle_Riferimento!$D$127:$G$164,4,FALSE)","v":"Sistemi informativi di fognatura"},3,{"$f":"+VLOOKUP(H96,TT_Tabelle_Riferimento!$F$3:$G$6,2,FALSE)","v":"Altri servizi idrici"},2026,{"$f":"+SUMIFS('PdI-crono_inv'!AW:AW,'PdI-crono_inv'!CF:CF,F96,'PdI-crono_inv'!CE:CE,H96,'PdI-crono_inv'!J:J,P96,'PdI-crono_inv'!P:P,\"<>proprietario\")","v":0},null,{"$f":"+SUMIFS('PdI-crono_inv'!AX:AX,'PdI-crono_inv'!CF:CF,F96,'PdI-crono_inv'!CE:CE,H96,'PdI-crono_inv'!J:J,P96,'PdI-crono_inv'!P:P,\"<>proprietario\")+S96","v":0},null,null,"ENV",{"$f":"+VLOOKUP(F96,TT_Tabelle_Riferimento!$D$127:$E$164,2,FALSE)","v":"Fognatura"},"",0]
[0,0,"Gestore",0,"IP",18,{"$f":"+VLOOKUP(F97,TT_Tabelle_Riferimento!$D$127:$G$164,4,FALSE)","v":"Telecontrollo e teletrasmissione di fognatura"},3,{"$f":"+VLOOKUP(H97,TT_Tabelle_Riferimento!$F$3:$G$6,2,FALSE)","v":"Altri servizi idrici"},2026,{"$f":"+SUMIFS('PdI-crono_inv'!AW:AW,'PdI-crono_inv'!CF:CF,F97,'PdI-crono_inv'!CE:CE,H97,'PdI-crono_inv'!J:J,P97,'PdI-crono_inv'!P:P,\"<>proprietario\")","v":0},null,{"$f":"+SUMIFS('PdI-crono_inv'!AX:AX,'PdI-crono_inv'!CF:CF,F97,'PdI-crono_inv'!CE:CE,H97,'PdI-crono_inv'!J:J,P97,'PdI-crono_inv'!P:P,\"<>proprietario\")+S97","v":0},null,null,"ENV",{"$f":"+VLOOKUP(F97,TT_Tabelle_Riferimento!$D$127:$E$164,2,FALSE)","v":"Fognatura"},"",0]
[0,0,"Gestore",0,"IP",19,{"$f":"+VLOOKUP(F98,TT_Tabelle_Riferimento!$D$127:$G$164,4,FALSE)","v":"Impianti di sollevamento e pompaggio di depurazione"},3,{"$f":"+VLOOKUP(H98,TT_Tabelle_Riferimento!$F$3:$G$6,2,FALSE)","v":"Altri servizi idrici"},2026,{"$f":"+SUMIFS('PdI-crono_inv'!AW:AW,'PdI-crono_inv'!CF:CF,F98,'PdI-crono_inv'!CE:CE,H98,'PdI-crono_inv'!J:J,P98,'PdI-crono_inv'!P:P,\"<>proprietario\")","v":0},null,{"$f":"+SUMIFS('PdI-crono_inv'!AX:AX,'PdI-crono_inv'!CF:CF,F98,'PdI-crono_inv'!CE:CE,H98,'PdI-crono_inv'!J:J,P98,'PdI-crono_inv'!P:P,\"<>proprietario\")+S98","v":0},null,null,"ENV",{"$f":"+VLOOKUP(F98,TT_Tabelle_Riferimento!$D$127:$E$164,2,FALSE)","v":"Depurazione"},"",0]
[0,0,"Gestore",0,"IP",20,{"$f":"+VLOOKUP(F99,TT_Tabelle_Riferimento!$D$127:$G$164,4,FALSE)","v":"Tecniche naturali di depurazione (tra cui fitodepurazione e lagunaggio)"},3,{"$f":"+VLOOKUP(H99,TT_Tabelle_Riferimento!$F$3:$G$6,2,FALSE)","v":"Altri servizi idrici"},2026,{"$f":"+SUMIFS('PdI-crono_inv'!AW:AW,'PdI-crono_inv'!CF:CF,F99,'PdI-crono_inv'!CE:CE,H99,'PdI-crono_inv'!J:J,P99,'PdI-crono_inv'!P:P,\"<>proprietario\")","v":0},null,{"$f":"+SUMIFS('PdI-crono_inv'!AX:AX,'PdI-crono_inv'!CF:CF,F99,'PdI-crono_inv'!CE:CE,H99,'PdI-crono_inv'!J:J,P99,'PdI-crono_inv'!P:P,\"<>proprietario\")+S99","v":0},null,null,"ENV",{"$f":"+VLOOKUP(F99,TT_Tabelle_Riferimento!$D$127:$E$164,2,FALSE)","v":"Depurazione"},"",0]
[0,0,"Gestore",0,"IP",21,{"$f":"+VLOOKUP(F100,TT_Tabelle_Riferimento!$D$127:$G$164,4,FALSE)","v":"Impianti di depurazione – trattamenti sino al preliminare, integrativo, primario - fosse settiche e fosse Imhoff"},3,{"$f":"+VLOOKUP(H100,TT_Tabelle_Riferimento!$F$3:$G$6,2,FALSE)","v":"Altri servizi idrici"},2026,{"$f":"+SUMIFS('PdI-crono_inv'!AW:AW,'PdI-crono_inv'!CF:CF,F100,'PdI-crono_inv'!CE:CE,H100,'PdI-crono_inv'!J:J,P100,'PdI-crono_inv'!P:P,\"<>proprietario\")","v":0},null,{"$f":"+SUMIFS('PdI-crono_inv'!AX:AX,'PdI-crono_inv'!CF:CF,F100,'PdI-crono_inv'!CE:CE,H100,'PdI-crono_inv'!J:J,P100,'PdI-crono_inv'!P:P,\"<>proprietario\")+S100","v":0},null,null,"ENV",{"$f":"+VLOOKUP(F100,TT_Tabelle_Riferimento!$D$127:$E$164,2,FALSE)","v":"Depurazione"},"",0]
[0,0,"Gestore",0,"IP",22,{"$f":"+VLOOKUP(F101,TT_Tabelle_Riferimento!$D$127:$G$164,4,FALSE)","v":"Impianti di depurazione – trattamenti sino al secondario"},3,{"$f":"+VLOOKUP(H101,TT_Tabelle_Riferimento!$F$3:$G$6,2,FALSE)","v":"Altri servizi idrici"},2026,{"$f":"+SUMIFS('PdI-crono_inv'!AW:AW,'PdI-crono_inv'!CF:CF,F101,'PdI-crono_inv'!CE:CE,H101,'PdI-crono_inv'!J:J,P101,'PdI-crono_inv'!P:P,\"<>proprietario\")","v":0},null,{"$f":"+SUMIFS('PdI-crono_inv'!AX:AX,'PdI-crono_inv'!CF:CF,F101,'PdI-crono_inv'!CE:CE,H101,'PdI-crono_inv'!J:J,P101,'PdI-crono_inv'!P:P,\"<>proprietario\")+S101","v":0},null,null,"ENV",{"$f":"+VLOOKUP(F101,TT_Tabelle_Riferimento!$D$127:$E$164,2,FALSE)","v":"Depurazione"},"",0]
[0,0,"Gestore",0,"IP",23,{"$f":"+VLOOKUP(F102,TT_Tabelle_Riferimento!$D$127:$G$164,4,FALSE)","v":"Impianti di depurazione – trattamenti sino al terziario e terziario avanzato"},3,{"$f":"+VLOOKUP(H102,TT_Tabelle_Riferimento!$F$3:$G$6,2,FALSE)","v":"Altri servizi idrici"},2026,{"$f":"+SUMIFS('PdI-crono_inv'!AW:AW,'PdI-crono_inv'!CF:CF,F102,'PdI-crono_inv'!CE:CE,H102,'PdI-crono_inv'!J:J,P102,'PdI-crono_inv'!P:P,\"<>proprietario\")","v":0},null,{"$f":"+SUMIFS('PdI-crono_inv'!AX:AX,'PdI-crono_inv'!CF:CF,F102,'PdI-crono_inv'!CE:CE,H102,'PdI-crono_inv'!J:J,P102,'PdI-crono_inv'!P:P,\"<>proprietario\")+S102","v":0},null,null,"ENV",{"$f":"+VLOOKUP(F102,TT_Tabelle_Riferimento!$D$127:$E$164,2,FALSE)","v":"Depurazione"},"",0]
[0,0,"Gestore",0,"IP",24,{"$f":"+VLOOKUP(F103,TT_Tabelle_Riferimento!$D$127:$G$164,4,FALSE)","v":"Impianti di essiccamento fanghi e di valorizzazione dei fanghi (tra cui mono-incenerimento, pirolisi, gassificazione)"},3,{"$f":"+VLOOKUP(H103,TT_Tabelle_Riferimento!$F$3:$G$6,2,FALSE)","v":"Altri servizi idrici"},2026,{"$f":"+SUMIFS('PdI-crono_inv'!AW:AW,'PdI-crono_inv'!CF:CF,F103,'PdI-crono_inv'!CE:CE,H103,'PdI-crono_inv'!J:J,P103,'PdI-crono_inv'!P:P,\"<>proprietario\")","v":0},null,{"$f":"+SUMIFS('PdI-crono_inv'!AX:AX,'PdI-crono_inv'!CF:CF,F103,'PdI-crono_inv'!CE:CE,H103,'PdI-crono_inv'!J:J,P103,'PdI-crono_inv'!P:P,\"<>proprietario\")+S103","v":0},null,null,"ENV",{"$f":"+VLOOKUP(F103,TT_Tabelle_Riferimento!$D$127:$E$164,2,FALSE)","v":"Depurazione"},"",0]
[0,0,"Gestore",0,"IP",25,{"$f":"+VLOOKUP(F104,TT_Tabelle_Riferimento!$D$127:$G$164,4,FALSE)","v":"Gruppi di misura - altre attrezzature di depurazione"},3,{"$f":"+VLOOKUP(H104,TT_Tabelle_Riferimento!$F$3:$G$6,2,FALSE)","v":"Altri servizi idrici"},2026,{"$f":"+SUMIFS('PdI-crono_inv'!AW:AW,'PdI-crono_inv'!CF:CF,F104,'PdI-crono_inv'!CE:CE,H104,'PdI-crono_inv'!J:J,P104,'PdI-crono_inv'!P:P,\"<>proprietario\")","v":0},null,{"$f":"+SUMIFS('PdI-crono_inv'!AX:AX,'PdI-crono_inv'!CF:CF,F104,'PdI-crono_inv'!CE:CE,H104,'PdI-crono_inv'!J:J,P104,'PdI-crono_inv'!P:P,\"<>proprietario\")+S104","v":0},null,null,"ENV",{"$f":"+VLOOKUP(F104,TT_Tabelle_Riferimento!$D$127:$E$164,2,FALSE)","v":"Depurazione"},"",0]
[0,0,"Gestore",0,"IP",26,{"$f":"+VLOOKUP(F105,TT_Tabelle_Riferimento!$D$127:$G$164,4,FALSE)","v":"Sistemi informativi di depurazione"},3,{"$f":"+VLOOKUP(H105,TT_Tabelle_Riferimento!$F$3:$G$6,2,FALSE)","v":"Altri servizi idrici"},2026,{"$f":"+SUMIFS('PdI-crono_inv'!AW:AW,'PdI-crono_inv'!CF:CF,F105,'PdI-crono_inv'!CE:CE,H105,'PdI-crono_inv'!J:J,P105,'PdI-crono_inv'!P:P,\"<>proprietario\")","v":0},null,{"$f":"+SUMIFS('PdI-crono_inv'!AX:AX,'PdI-crono_inv'!CF:CF,F105,'PdI-crono_inv'!CE:CE,H105,'PdI-crono_inv'!J:J,P105,'PdI-crono_inv'!P:P,\"<>proprietario\")+S105","v":0},null,null,"ENV",{"$f":"+VLOOKUP(F105,TT_Tabelle_Riferimento!$D$127:$E$164,2,FALSE)","v":"Depurazione"},"",0]
[0,0,"Gestore",0,"IP",27,{"$f":"+VLOOKUP(F106,TT_Tabelle_Riferimento!$D$127:$G$164,4,FALSE)","v":"Telecontrollo e teletrasmissione di depurazione"},3,{"$f":"+VLOOKUP(H106,TT_Tabelle_Riferimento!$F$3:$G$6,2,FALSE)","v":"Altri servizi idrici"},2026,{"$f":"+SUMIFS('PdI-crono_inv'!AW:AW,'PdI-crono_inv'!CF:CF,F106,'PdI-crono_inv'!CE:CE,H106,'PdI-crono_inv'!J:J,P106,'PdI-crono_inv'!P:P,\"<>proprietario\")","v":0},null,{"$f":"+SUMIFS('PdI-crono_inv'!AX:AX,'PdI-crono_inv'!CF:CF,F106,'PdI-crono_inv'!CE:CE,H106,'PdI-crono_inv'!J:J,P106,'PdI-crono_inv'!P:P,\"<>proprietario\")+S106","v":0},null,null,"ENV",{"$f":"+VLOOKUP(F106,TT_Tabelle_Riferimento!$D$127:$E$164,2,FALSE)","v":"Depurazione"},"",0]
[0,0,"Gestore",0,"IP",28,{"$f":"+VLOOKUP(F107,TT_Tabelle_Riferimento!$D$127:$G$164,4,FALSE)","v":"Altri impianti"},3,{"$f":"+VLOOKUP(H107,TT_Tabelle_Riferimento!$F$3:$G$6,2,FALSE)","v":"Altri servizi idrici"},2026,{"$f":"+SUMIFS('PdI-crono_inv'!AW:AW,'PdI-crono_inv'!CF:CF,F107,'PdI-crono_inv'!CE:CE,H107,'PdI-crono_inv'!J:J,P107,'PdI-crono_inv'!P:P,\"<>proprietario\")","v":0},null,{"$f":"+SUMIFS('PdI-crono_inv'!AX:AX,'PdI-crono_inv'!CF:CF,F107,'PdI-crono_inv'!CE:CE,H107,'PdI-crono_inv'!J:J,P107,'PdI-crono_inv'!P:P,\"<>proprietario\")+S107","v":0},null,null,"ENV",{"$f":"+VLOOKUP(F107,TT_Tabelle_Riferimento!$D$127:$E$164,2,FALSE)","v":"Comune"},"",0]
[0,0,"Gestore",0,"IP",29,{"$f":"+VLOOKUP(F108,TT_Tabelle_Riferimento!$D$127:$G$164,4,FALSE)","v":"Laboratori e attrezzature"},3,{"$f":"+VLOOKUP(H108,TT_Tabelle_Riferimento!$F$3:$G$6,2,FALSE)","v":"Altri servizi idrici"},2026,{"$f":"+SUMIFS('PdI-crono_inv'!AW:AW,'PdI-crono_inv'!CF:CF,F108,'PdI-crono_inv'!CE:CE,H108,'PdI-crono_inv'!J:J,P108,'PdI-crono_inv'!P:P,\"<>proprietario\")","v":0},null,{"$f":"+SUMIFS('PdI-crono_inv'!AX:AX,'PdI-crono_inv'!CF:CF,F108,'PdI-crono_inv'!CE:CE,H108,'PdI-crono_inv'!J:J,P108,'PdI-crono_inv'!P:P,\"<>proprietario\")+S108","v":0},null,null,"ENV",{"$f":"+VLOOKUP(F108,TT_Tabelle_Riferimento!$D$127:$E$164,2,FALSE)","v":"Comune"},{"$f":"+IF(SUM(K108:N108)=0,\"\",\"PdI_consolidamento\")","v":""},0]
[0,0,"Gestore",0,"IP",30,{"$f":"+VLOOKUP(F109,TT_Tabelle_Riferimento!$D$127:$G$164,4,FALSE)","v":"Sistemi informativi"},3,{"$f":"+VLOOKUP(H109,TT_Tabelle_Riferimento!$F$3:$G$6,2,FALSE)","v":"Altri servizi idrici"},2026,{"$f":"+SUMIFS('PdI-crono_inv'!AW:AW,'PdI-crono_inv'!CF:CF,F109,'PdI-crono_inv'!CE:CE,H109,'PdI-crono_inv'!J:J,P109,'PdI-crono_inv'!P:P,\"<>proprietario\")","v":0},null,{"$f":"+SUMIFS('PdI-crono_inv'!AX:AX,'PdI-crono_inv'!CF:CF,F109,'PdI-crono_inv'!CE:CE,H109,'PdI-crono_inv'!J:J,P109,'PdI-crono_inv'!P:P,\"<>proprietario\")+S109","v":0},null,null,"ENV",{"$f":"+VLOOKUP(F109,TT_Tabelle_Riferimento!$D$127:$E$164,2,FALSE)","v":"Comune"},"",0]
[0,0,"Gestore",0,"IP",31,{"$f":"+VLOOKUP(F110,TT_Tabelle_Riferimento!$D$127:$G$164,4,FALSE)","v":"Telecontrollo e teletrasmissione"},3,{"$f":"+VLOOKUP(H110,TT_Tabelle_Riferimento!$F$3:$G$6,2,FALSE)","v":"Altri servizi idrici"},2026,{"$f":"+SUMIFS('PdI-crono_inv'!AW:AW,'PdI-crono_inv'!CF:CF,F110,'PdI-crono_inv'!CE:CE,H110,'PdI-crono_inv'!J:J,P110,'PdI-crono_inv'!P:P,\"<>proprietario\")","v":0},null,{"$f":"+SUMIFS('PdI-crono_inv'!AX:AX,'PdI-crono_inv'!CF:CF,F110,'PdI-crono_inv'!CE:CE,H110,'PdI-crono_inv'!J:J,P110,'PdI-crono_inv'!P:P,\"<>proprietario\")+S110","v":0},null,null,"ENV",{"$f":"+VLOOKUP(F110,TT_Tabelle_Riferimento!$D$127:$E$164,2,FALSE)","v":"Comune"},"",0]
[0,0,"Gestore",0,"IP",32,{"$f":"+VLOOKUP(F111,TT_Tabelle_Riferimento!$D$127:$G$164,4,FALSE)","v":"Autoveicoli - automezzi"},3,{"$f":"+VLOOKUP(H111,TT_Tabelle_Riferimento!$F$3:$G$6,2,FALSE)","v":"Altri servizi idrici"},2026,{"$f":"+SUMIFS('PdI-crono_inv'!AW:AW,'PdI-crono_inv'!CF:CF,F111,'PdI-crono_inv'!CE:CE,H111,'PdI-crono_inv'!J:J,P111,'PdI-crono_inv'!P:P,\"<>proprietario\")","v":0},null,{"$f":"+SUMIFS('PdI-crono_inv'!AX:AX,'PdI-crono_inv'!CF:CF,F111,'PdI-crono_inv'!CE:CE,H111,'PdI-crono_inv'!J:J,P111,'PdI-crono_inv'!P:P,\"<>proprietario\")+S111","v":0},null,null,"ENV",{"$f":"+VLOOKUP(F111,TT_Tabelle_Riferimento!$D$127:$E$164,2,FALSE)","v":"Comune"},"",0]
[0,0,"Gestore",0,"IP",1,{"$f":"+VLOOKUP(F112,TT_Tabelle_Riferimento!$D$127:$G$164,4,FALSE)","v":"Terreni"},3,{"$f":"+VLOOKUP(H112,TT_Tabelle_Riferimento!$F$3:$G$6,2,FALSE)","v":"Altri servizi idrici"},2026,{"$f":"+SUMIFS('PdI-crono_inv'!AW:AW,'PdI-crono_inv'!CF:CF,F112,'PdI-crono_inv'!CE:CE,H112,'PdI-crono_inv'!J:J,P112,'PdI-crono_inv'!P:P,\"<>proprietario\")","v":0},null,{"$f":"+SUMIFS('PdI-crono_inv'!AX:AX,'PdI-crono_inv'!CF:CF,F112,'PdI-crono_inv'!CE:CE,H112,'PdI-crono_inv'!J:J,P112,'PdI-crono_inv'!P:P,\"<>proprietario\")+S112","v":0},null,null,"ENV",{"$f":"+VLOOKUP(F112,TT_Tabelle_Riferimento!$D$127:$E$164,2,FALSE)","v":"Comune"},"",0]
[0,0,"Gestore",0,"IP",33,{"$f":"+VLOOKUP(F113,TT_Tabelle_Riferimento!$D$127:$G$164,4,FALSE)","v":"Fabbricati non industriali"},3,{"$f":"+VLOOKUP(H113,TT_Tabelle_Riferimento!$F$3:$G$6,2,FALSE)","v":"Altri servizi idrici"},2026,{"$f":"+SUMIFS('PdI-crono_inv'!AW:AW,'PdI-crono_inv'!CF:CF,F113,'PdI-crono_inv'!CE:CE,H113,'PdI-crono_inv'!J:J,P113,'PdI-crono_inv'!P:P,\"<>proprietario\")","v":0},null,{"$f":"+SUMIFS('PdI-crono_inv'!AX:AX,'PdI-crono_inv'!CF:CF,F113,'PdI-crono_inv'!CE:CE,H113,'PdI-crono_inv'!J:J,P113,'PdI-crono_inv'!P:P,\"<>proprietario\")+S113","v":0},null,null,"ENV",{"$f":"+VLOOKUP(F113,TT_Tabelle_Riferimento!$D$127:$E$164,2,FALSE)","v":"Comune"},"",0]
[0,0,"Gestore",0,"IP",34,{"$f":"+VLOOKUP(F114,TT_Tabelle_Riferimento!$D$127:$G$164,4,FALSE)","v":"Fabbricati industriali"},3,{"$f":"+VLOOKUP(H114,TT_Tabelle_Riferimento!$F$3:$G$6,2,FALSE)","v":"Altri servizi idrici"},2026,{"$f":"+SUMIFS('PdI-crono_inv'!AW:AW,'PdI-crono_inv'!CF:CF,F114,'PdI-crono_inv'!CE:CE,H114,'PdI-crono_inv'!J:J,P114,'PdI-crono_inv'!P:P,\"<>proprietario\")","v":0},null,{"$f":"+SUMIFS('PdI-crono_inv'!AX:AX,'PdI-crono_inv'!CF:CF,F114,'PdI-crono_inv'!CE:CE,H114,'PdI-crono_inv'!J:J,P114,'PdI-crono_inv'!P:P,\"<>proprietario\")+S114","v":0},null,null,"ENV",{"$f":"+VLOOKUP(F114,TT_Tabelle_Riferimento!$D$127:$E$164,2,FALSE)","v":"Comune"},"",0]
[0,0,"Gestore",0,"IP",35,{"$f":"+VLOOKUP(F115,TT_Tabelle_Riferimento!$D$127:$G$164,4,FALSE)","v":"Costruzioni leggere"},3,{"$f":"+VLOOKUP(H115,TT_Tabelle_Riferimento!$F$3:$G$6,2,FALSE)","v":"Altri servizi idrici"},2026,{"$f":"+SUMIFS('PdI-crono_inv'!AW:AW,'PdI-crono_inv'!CF:CF,F115,'PdI-crono_inv'!CE:CE,H115,'PdI-crono_inv'!J:J,P115,'PdI-crono_inv'!P:P,\"<>proprietario\")","v":0},null,{"$f":"+SUMIFS('PdI-crono_inv'!AX:AX,'PdI-crono_inv'!CF:CF,F115,'PdI-crono_inv'!CE:CE,H115,'PdI-crono_inv'!J:J,P115,'PdI-crono_inv'!P:P,\"<>proprietario\")+S115","v":0},null,null,"ENV",{"$f":"+VLOOKUP(F115,TT_Tabelle_Riferimento!$D$127:$E$164,2,FALSE)","v":"Comune"},"",0]
[0,0,"Gestore",0,"IP",36,{"$f":"+VLOOKUP(F116,TT_Tabelle_Riferimento!$D$127:$G$164,4,FALSE)","v":"Studi, ricerche, brevetti, diritti di utilizzazione"},3,{"$f":"+VLOOKUP(H116,TT_Tabelle_Riferimento!$F$3:$G$6,2,FALSE)","v":"Altri servizi idrici"},2026,{"$f":"+SUMIFS('PdI-crono_inv'!AW:AW,'PdI-crono_inv'!CF:CF,F116,'PdI-crono_inv'!CE:CE,H116,'PdI-crono_inv'!J:J,P116,'PdI-crono_inv'!P:P,\"<>proprietario\")","v":0},null,{"$f":"+SUMIFS('PdI-crono_inv'!AX:AX,'PdI-crono_inv'!CF:CF,F116,'PdI-crono_inv'!CE:CE,H116,'PdI-crono_inv'!J:J,P116,'PdI-crono_inv'!P:P,\"<>proprietario\")+S116","v":0},null,null,"ENV",{"$f":"+VLOOKUP(F116,TT_Tabelle_Riferimento!$D$127:$E$164,2,FALSE)","v":"Comune"},"",0]
[0,0,"Gestore",0,"IP",37,{"$f":"+VLOOKUP(F117,TT_Tabelle_Riferimento!$D$127:$G$164,4,FALSE)","v":"Altre immobilizzazioni materiali e immateriali"},3,{"$f":"+VLOOKUP(H117,TT_Tabelle_Riferimento!$F$3:$G$6,2,FALSE)","v":"Altri servizi idrici"},2026,{"$f":"+SUMIFS('PdI-crono_inv'!AW:AW,'PdI-crono_inv'!CF:CF,F117,'PdI-crono_inv'!CE:CE,H117,'PdI-crono_inv'!J:J,P117,'PdI-crono_inv'!P:P,\"<>proprietario\")","v":0},null,{"$f":"+SUMIFS('PdI-crono_inv'!AX:AX,'PdI-crono_inv'!CF:CF,F117,'PdI-crono_inv'!CE:CE,H117,'PdI-crono_inv'!J:J,P117,'PdI-crono_inv'!P:P,\"<>proprietario\")+S117","v":0},null,null,"ENV",{"$f":"+VLOOKUP(F117,TT_Tabelle_Riferimento!$D$127:$E$164,2,FALSE)","v":"Comune"},"",0]
[0,0,"Gestore",0,"IP",38,{"$f":"+VLOOKUP(F118,TT_Tabelle_Riferimento!$D$127:$G$164,4,FALSE)","v":"Grandi dighe (sbarramenti che superano i quindici metri di altezza o che determinano un invaso superiore a 1 milione di metri cubi)"},3,{"$f":"+VLOOKUP(H118,TT_Tabelle_Riferimento!$F$3:$G$6,2,FALSE)","v":"Altri servizi idrici"},2026,{"$f":"+SUMIFS('PdI-crono_inv'!AW:AW,'PdI-crono_inv'!CF:CF,F118,'PdI-crono_inv'!CE:CE,H118,'PdI-crono_inv'!J:J,P118,'PdI-crono_inv'!P:P,\"<>proprietario\")","v":0},null,{"$f":"+SUMIFS('PdI-crono_inv'!AX:AX,'PdI-crono_inv'!CF:CF,F118,'PdI-crono_inv'!CE:CE,H118,'PdI-crono_inv'!J:J,P118,'PdI-crono_inv'!P:P,\"<>proprietario\")+S118","v":0},null,null,"ENV",{"$f":"+VLOOKUP(F118,TT_Tabelle_Riferimento!$D$127:$E$164,2,FALSE)","v":"Acquedotto"},"",0]
[0,0,"Gestore",0,"IP",39,{"$f":"+VLOOKUP(F119,TT_Tabelle_Riferimento!$D$127:$G$164,4,FALSE)","v":"Piccole dighe (sbarramenti che non superano i quindici metri di altezza o che determinano un invaso non superiore a 1 milione di metri cubi)"},3,{"$f":"+VLOOKUP(H119,TT_Tabelle_Riferimento!$F$3:$G$6,2,FALSE)","v":"Altri servizi idrici"},2026,{"$f":"+SUMIFS('PdI-crono_inv'!AW:AW,'PdI-crono_inv'!CF:CF,F119,'PdI-crono_inv'!CE:CE,H119,'PdI-crono_inv'!J:J,P119,'PdI-crono_inv'!P:P,\"<>proprietario\")","v":0},null,{"$f":"+SUMIFS('PdI-crono_inv'!AX:AX,'PdI-crono_inv'!CF:CF,F119,'PdI-crono_inv'!CE:CE,H119,'PdI-crono_inv'!J:J,P119,'PdI-crono_inv'!P:P,\"<>proprietario\")+S119","v":0},null,null,"ENV",{"$f":"+VLOOKUP(F119,TT_Tabelle_Riferimento!$D$127:$E$164,2,FALSE)","v":"Acquedotto"},"",0]
[0,0,"Gestore",0,"IP",2,{"$f":"+VLOOKUP(F120,TT_Tabelle_Riferimento!$D$127:$G$164,4,FALSE)","v":"Condotte di acquedotto"},1,{"$f":"+VLOOKUP(H120,TT_Tabelle_Riferimento!$F$3:$G$6,2,FALSE)","v":"Servizio idrico integrato"},2026,{"$f":"+SUMIFS('PdI-crono_inv'!AW:AW,'PdI-crono_inv'!CF:CF,F120,'PdI-crono_inv'!CE:CE,H120,'PdI-crono_inv'!J:J,P120,'PdI-crono_inv'!P:P,\"<>proprietario\")","v":0},null,{"$f":"+SUMIFS('PdI-crono_inv'!AX:AX,'PdI-crono_inv'!CF:CF,F120,'PdI-crono_inv'!CE:CE,H120,'PdI-crono_inv'!J:J,P120,'PdI-crono_inv'!P:P,\"<>proprietario\")+S120","v":0},null,null,"RES",{"$f":"+VLOOKUP(F120,TT_Tabelle_Riferimento!$D$127:$E$164,2,FALSE)","v":"Acquedotto"},"",0]
[0,0,"Gestore",0,"IP",3,{"$f":"+VLOOKUP(F121,TT_Tabelle_Riferimento!$D$127:$G$164,4,FALSE)","v":"Opere idrauliche fisse di acquedotto"},1,{"$f":"+VLOOKUP(H121,TT_Tabelle_Riferimento!$F$3:$G$6,2,FALSE)","v":"Servizio idrico integrato"},2026,{"$f":"+SUMIFS('PdI-crono_inv'!AW:AW,'PdI-crono_inv'!CF:CF,F121,'PdI-crono_inv'!CE:CE,H121,'PdI-crono_inv'!J:J,P121,'PdI-crono_inv'!P:P,\"<>proprietario\")","v":0},null,{"$f":"+SUMIFS('PdI-crono_inv'!AX:AX,'PdI-crono_inv'!CF:CF,F121,'PdI-crono_inv'!CE:CE,H121,'PdI-crono_inv'!J:J,P121,'PdI-crono_inv'!P:P,\"<>proprietario\")+S121","v":0},null,null,"RES",{"$f":"+VLOOKUP(F121,TT_Tabelle_Riferimento!$D$127:$E$164,2,FALSE)","v":"Acquedotto"},"",0]
[0,0,"Gestore",0,"IP",4,{"$f":"+VLOOKUP(F122,TT_Tabelle_Riferimento!$D$127:$G$164,4,FALSE)","v":"Serbatoi"},1,{"$f":"+VLOOKUP(H122,TT_Tabelle_Riferimento!$F$3:$G$6,2,FALSE)","v":"Servizio idrico integrato"},2026,{"$f":"+SUMIFS('PdI-crono_inv'!AW:AW,'PdI-crono_inv'!CF:CF,F122,'PdI-crono_inv'!CE:CE,H122,'PdI-crono_inv'!J:J,P122,'PdI-crono_inv'!P:P,\"<>proprietario\")","v":0},null,{"$f":"+SUMIFS('PdI-crono_inv'!AX:AX,'PdI-crono_inv'!CF:CF,F122,'PdI-crono_inv'!CE:CE,H122,'PdI-crono_inv'!J:J,P122,'PdI-crono_inv'!P:P,\"<>proprietario\")+S122","v":0},null,null,"RES",{"$f":"+VLOOKUP(F122,TT_Tabelle_Riferimento!$D$127:$E$164,2,FALSE)","v":"Acquedotto"},"",0]
[0,0,"Gestore",0,"IP",5,{"$f":"+VLOOKUP(F123,TT_Tabelle_Riferimento!$D$127:$G$164,4,FALSE)","v":"Impianti di sollevamento e pompaggio di acquedotto"},1,{"$f":"+VLOOKUP(H123,TT_Tabelle_Riferimento!$F$3:$G$6,2,FALSE)","v":"Servizio idrico integrato"},2026,{"$f":"+SUMIFS('PdI-crono_inv'!AW:AW,'PdI-crono_inv'!CF:CF,F123,'PdI-crono_inv'!CE:CE,H123,'PdI-crono_inv'!J:J,P123,'PdI-crono_inv'!P:P,\"<>proprietario\")","v":0},null,{"$f":"+SUMIFS('PdI-crono_inv'!AX:AX,'PdI-crono_inv'!CF:CF,F123,'PdI-crono_inv'!CE:CE,H123,'PdI-crono_inv'!J:J,P123,'PdI-crono_inv'!P:P,\"<>proprietario\")+S123","v":0},null,null,"RES",{"$f":"+VLOOKUP(F123,TT_Tabelle_Riferimento!$D$127:$E$164,2,FALSE)","v":"Acquedotto"},"",0]
[0,0,"Gestore",0,"IP",6,{"$f":"+VLOOKUP(F124,TT_Tabelle_Riferimento!$D$127:$G$164,4,FALSE)","v":"Impianti di potabilizzazione"},1,{"$f":"+VLOOKUP(H124,TT_Tabelle_Riferimento!$F$3:$G$6,2,FALSE)","v":"Servizio idrico integrato"},2026,{"$f":"+SUMIFS('PdI-crono_inv'!AW:AW,'PdI-crono_inv'!CF:CF,F124,'PdI-crono_inv'!CE:CE,H124,'PdI-crono_inv'!J:J,P124,'PdI-crono_inv'!P:P,\"<>proprietario\")","v":0},null,{"$f":"+SUMIFS('PdI-crono_inv'!AX:AX,'PdI-crono_inv'!CF:CF,F124,'PdI-crono_inv'!CE:CE,H124,'PdI-crono_inv'!J:J,P124,'PdI-crono_inv'!P:P,\"<>proprietario\")+S124","v":0},null,null,"RES",{"$f":"+VLOOKUP(F124,TT_Tabelle_Riferimento!$D$127:$E$164,2,FALSE)","v":"Acquedotto"},"",0]
[0,0,"Gestore",0,"IP",7,{"$f":"+VLOOKUP(F125,TT_Tabelle_Riferimento!$D$127:$G$164,4,FALSE)","v":"Altri trattamenti di potabilizzazione (tra cui dispositivi di disinfezione, stacciatura, filtrazione, addolcimento)"},1,{"$f":"+VLOOKUP(H125,TT_Tabelle_Riferimento!$F$3:$G$6,2,FALSE)","v":"Servizio idrico integrato"},2026,{"$f":"+SUMIFS('PdI-crono_inv'!AW:AW,'PdI-crono_inv'!CF:CF,F125,'PdI-crono_inv'!CE:CE,H125,'PdI-crono_inv'!J:J,P125,'PdI-crono_inv'!P:P,\"<>proprietario\")","v":0},null,{"$f":"+SUMIFS('PdI-crono_inv'!AX:AX,'PdI-crono_inv'!CF:CF,F125,'PdI-crono_inv'!CE:CE,H125,'PdI-crono_inv'!J:J,P125,'PdI-crono_inv'!P:P,\"<>proprietario\")+S125","v":0},null,null,"RES",{"$f":"+VLOOKUP(F125,TT_Tabelle_Riferimento!$D$127:$E$164,2,FALSE)","v":"Acquedotto"},"",0]
[0,0,"Gestore",0,"IP",8,{"$f":"+VLOOKUP(F126,TT_Tabelle_Riferimento!$D$127:$G$164,4,FALSE)","v":"Gruppi di misura - altre attrezzature di acquedotto"},1,{"$f":"+VLOOKUP(H126,TT_Tabelle_Riferimento!$F$3:$G$6,2,FALSE)","v":"Servizio idrico integrato"},2026,{"$f":"+SUMIFS('PdI-crono_inv'!AW:AW,'PdI-crono_inv'!CF:CF,F126,'PdI-crono_inv'!CE:CE,H126,'PdI-crono_inv'!J:J,P126,'PdI-crono_inv'!P:P,\"<>proprietario\")","v":0},null,{"$f":"+SUMIFS('PdI-crono_inv'!AX:AX,'PdI-crono_inv'!CF:CF,F126,'PdI-crono_inv'!CE:CE,H126,'PdI-crono_inv'!J:J,P126,'PdI-crono_inv'!P:P,\"<>proprietario\")+S126","v":0},null,null,"RES",{"$f":"+VLOOKUP(F126,TT_Tabelle_Riferimento!$D$127:$E$164,2,FALSE)","v":"Acquedotto"},"",0]
[0,0,"Gestore",0,"IP",9,{"$f":"+VLOOKUP(F127,TT_Tabelle_Riferimento!$D$127:$G$164,4,FALSE)","v":"Sistemi informativi di acquedotto"},1,{"$f":"+VLOOKUP(H127,TT_Tabelle_Riferimento!$F$3:$G$6,2,FALSE)","v":"Servizio idrico integrato"},2026,{"$f":"+SUMIFS('PdI-crono_inv'!AW:AW,'PdI-crono_inv'!CF:CF,F127,'PdI-crono_inv'!CE:CE,H127,'PdI-crono_inv'!J:J,P127,'PdI-crono_inv'!P:P,\"<>proprietario\")","v":0},null,{"$f":"+SUMIFS('PdI-crono_inv'!AX:AX,'PdI-crono_inv'!CF:CF,F127,'PdI-crono_inv'!CE:CE,H127,'PdI-crono_inv'!J:J,P127,'PdI-crono_inv'!P:P,\"<>proprietario\")+S127","v":0},null,null,"RES",{"$f":"+VLOOKUP(F127,TT_Tabelle_Riferimento!$D$127:$E$164,2,FALSE)","v":"Acquedotto"},"",0]
[0,0,"Gestore",0,"IP",10,{"$f":"+VLOOKUP(F128,TT_Tabelle_Riferimento!$D$127:$G$164,4,FALSE)","v":"Telecontrollo e teletrasmissione di acquedotto"},1,{"$f":"+VLOOKUP(H128,TT_Tabelle_Riferimento!$F$3:$G$6,2,FALSE)","v":"Servizio idrico integrato"},2026,{"$f":"+SUMIFS('PdI-crono_inv'!AW:AW,'PdI-crono_inv'!CF:CF,F128,'PdI-crono_inv'!CE:CE,H128,'PdI-crono_inv'!J:J,P128,'PdI-crono_inv'!P:P,\"<>proprietario\")","v":0},null,{"$f":"+SUMIFS('PdI-crono_inv'!AX:AX,'PdI-crono_inv'!CF:CF,F128,'PdI-crono_inv'!CE:CE,H128,'PdI-crono_inv'!J:J,P128,'PdI-crono_inv'!P:P,\"<>proprietario\")+S128","v":0},null,null,"RES",{"$f":"+VLOOKUP(F128,TT_Tabelle_Riferimento!$D$127:$E$164,2,FALSE)","v":"Acquedotto"},"",0]
[0,0,"Gestore",0,"IP",11,{"$f":"+VLOOKUP(F129,TT_Tabelle_Riferimento!$D$127:$G$164,4,FALSE)","v":"Condotte fognarie"},1,{"$f":"+VLOOKUP(H129,TT_Tabelle_Riferimento!$F$3:$G$6,2,FALSE)","v":"Servizio idrico integrato"},2026,{"$f":"+SUMIFS('PdI-crono_inv'!AW:AW,'PdI-crono_inv'!CF:CF,F129,'PdI-crono_inv'!CE:CE,H129,'PdI-crono_inv'!J:J,P129,'PdI-crono_inv'!P:P,\"<>proprietario\")","v":0},null,{"$f":"+SUMIFS('PdI-crono_inv'!AX:AX,'PdI-crono_inv'!CF:CF,F129,'PdI-crono_inv'!CE:CE,H129,'PdI-crono_inv'!J:J,P129,'PdI-crono_inv'!P:P,\"<>proprietario\")+S129","v":0},null,null,"RES",{"$f":"+VLOOKUP(F129,TT_Tabelle_Riferimento!$D$127:$E$164,2,FALSE)","v":"Fognatura"},"",0]
[0,0,"Gestore",0,"IP",12,{"$f":"+VLOOKUP(F130,TT_Tabelle_Riferimento!$D$127:$G$164,4,FALSE)","v":"Sifoni e scaricatori di piena e altre opere idrauliche fisse di fognatura"},1,{"$f":"+VLOOKUP(H130,TT_Tabelle_Riferimento!$F$3:$G$6,2,FALSE)","v":"Servizio idrico integrato"},2026,{"$f":"+SUMIFS('PdI-crono_inv'!AW:AW,'PdI-crono_inv'!CF:CF,F130,'PdI-crono_inv'!CE:CE,H130,'PdI-crono_inv'!J:J,P130,'PdI-crono_inv'!P:P,\"<>proprietario\")","v":0},null,{"$f":"+SUMIFS('PdI-crono_inv'!AX:AX,'PdI-crono_inv'!CF:CF,F130,'PdI-crono_inv'!CE:CE,H130,'PdI-crono_inv'!J:J,P130,'PdI-crono_inv'!P:P,\"<>proprietario\")+S130","v":0},null,null,"RES",{"$f":"+VLOOKUP(F130,TT_Tabelle_Riferimento!$D$127:$E$164,2,FALSE)","v":"Fognatura"},"",0]
[0,0,"Gestore",0,"IP",13,{"$f":"+VLOOKUP(F131,TT_Tabelle_Riferimento!$D$127:$G$164,4,FALSE)","v":"Vasche di laminazione e vasche di prima pioggia"},1,{"$f":"+VLOOKUP(H131,TT_Tabelle_Riferimento!$F$3:$G$6,2,FALSE)","v":"Servizio idrico integrato"},2026,{"$f":"+SUMIFS('PdI-crono_inv'!AW:AW,'PdI-crono_inv'!CF:CF,F131,'PdI-crono_inv'!CE:CE,H131,'PdI-crono_inv'!J:J,P131,'PdI-crono_inv'!P:P,\"<>proprietario\")","v":0},null,{"$f":"+SUMIFS('PdI-crono_inv'!AX:AX,'PdI-crono_inv'!CF:CF,F131,'PdI-crono_inv'!CE:CE,H131,'PdI-crono_inv'!J:J,P131,'PdI-crono_inv'!P:P,\"<>proprietario\")+S131","v":0},null,null,"RES",{"$f":"+VLOOKUP(F131,TT_Tabelle_Riferimento!$D$127:$E$164,2,FALSE)","v":"Fognatura"},"",0]
[0,0,"Gestore",0,"IP",14,{"$f":"+VLOOKUP(F132,TT_Tabelle_Riferimento!$D$127:$G$164,4,FALSE)","v":"Impianti di sollevamento e pompaggio di fognatura"},1,{"$f":"+VLOOKUP(H132,TT_Tabelle_Riferimento!$F$3:$G$6,2,FALSE)","v":"Servizio idrico integrato"},2026,{"$f":"+SUMIFS('PdI-crono_inv'!AW:AW,'PdI-crono_inv'!CF:CF,F132,'PdI-crono_inv'!CE:CE,H132,'PdI-crono_inv'!J:J,P132,'PdI-crono_inv'!P:P,\"<>proprietario\")","v":0},null,{"$f":"+SUMIFS('PdI-crono_inv'!AX:AX,'PdI-crono_inv'!CF:CF,F132,'PdI-crono_inv'!CE:CE,H132,'PdI-crono_inv'!J:J,P132,'PdI-crono_inv'!P:P,\"<>proprietario\")+S132","v":0},null,null,"RES",{"$f":"+VLOOKUP(F132,TT_Tabelle_Riferimento!$D$127:$E$164,2,FALSE)","v":"Fognatura"},"",0]
[0,0,"Gestore",0,"IP",15,{"$f":"+VLOOKUP(F133,TT_Tabelle_Riferimento!$D$127:$G$164,4,FALSE)","v":"Gruppi di misura - altre attrezzature di fognatura"},1,{"$f":"+VLOOKUP(H133,TT_Tabelle_Riferimento!$F$3:$G$6,2,FALSE)","v":"Servizio idrico integrato"},2026,{"$f":"+SUMIFS('PdI-crono_inv'!AW:AW,'PdI-crono_inv'!CF:CF,F133,'PdI-crono_inv'!CE:CE,H133,'PdI-crono_inv'!J:J,P133,'PdI-crono_inv'!P:P,\"<>proprietario\")","v":0},null,{"$f":"+SUMIFS('PdI-crono_inv'!AX:AX,'PdI-crono_inv'!CF:CF,F133,'PdI-crono_inv'!CE:CE,H133,'PdI-crono_inv'!J:J,P133,'PdI-crono_inv'!P:P,\"<>proprietario\")+S133","v":0},null,null,"RES",{"$f":"+VLOOKUP(F133,TT_Tabelle_Riferimento!$D$127:$E$164,2,FALSE)","v":"Fognatura"},"",0]
[0,0,"Gestore",0,"IP",16,{"$f":"+VLOOKUP(F134,TT_Tabelle_Riferimento!$D$127:$G$164,4,FALSE)","v":"Sistemi informativi di fognatura"},1,{"$f":"+VLOOKUP(H134,TT_Tabelle_Riferimento!$F$3:$G$6,2,FALSE)","v":"Servizio idrico integrato"},2026,{"$f":"+SUMIFS('PdI-crono_inv'!AW:AW,'PdI-crono_inv'!CF:CF,F134,'PdI-crono_inv'!CE:CE,H134,'PdI-crono_inv'!J:J,P134,'PdI-crono_inv'!P:P,\"<>proprietario\")","v":0},null,{"$f":"+SUMIFS('PdI-crono_inv'!AX:AX,'PdI-crono_inv'!CF:CF,F134,'PdI-crono_inv'!CE:CE,H134,'PdI-crono_inv'!J:J,P134,'PdI-crono_inv'!P:P,\"<>proprietario\")+S134","v":0},null,null,"RES",{"$f":"+VLOOKUP(F134,TT_Tabelle_Riferimento!$D$127:$E$164,2,FALSE)","v":"Fognatura"},"",0]
[0,0,"Gestore",0,"IP",18,{"$f":"+VLOOKUP(F135,TT_Tabelle_Riferimento!$D$127:$G$164,4,FALSE)","v":"Telecontrollo e teletrasmissione di fognatura"},1,{"$f":"+VLOOKUP(H135,TT_Tabelle_Riferimento!$F$3:$G$6,2,FALSE)","v":"Servizio idrico integrato"},2026,{"$f":"+SUMIFS('PdI-crono_inv'!AW:AW,'PdI-crono_inv'!CF:CF,F135,'PdI-crono_inv'!CE:CE,H135,'PdI-crono_inv'!J:J,P135,'PdI-crono_inv'!P:P,\"<>proprietario\")","v":0},null,{"$f":"+SUMIFS('PdI-crono_inv'!AX:AX,'PdI-crono_inv'!CF:CF,F135,'PdI-crono_inv'!CE:CE,H135,'PdI-crono_inv'!J:J,P135,'PdI-crono_inv'!P:P,\"<>proprietario\")+S135","v":0},null,null,"RES",{"$f":"+VLOOKUP(F135,TT_Tabelle_Riferimento!$D$127:$E$164,2,FALSE)","v":"Fognatura"},"",{"$f":"+IFERROR(HLOOKUP(J135,$X$2:$Y$5,4,FALSE)*K135,0)","v":0}]
[0,0,"Gestore",0,"IP",19,{"$f":"+VLOOKUP(F136,TT_Tabelle_Riferimento!$D$127:$G$164,4,FALSE)","v":"Impianti di sollevamento e pompaggio di depurazione"},1,{"$f":"+VLOOKUP(H136,TT_Tabelle_Riferimento!$F$3:$G$6,2,FALSE)","v":"Servizio idrico integrato"},2026,{"$f":"+SUMIFS('PdI-crono_inv'!AW:AW,'PdI-crono_inv'!CF:CF,F136,'PdI-crono_inv'!CE:CE,H136,'PdI-crono_inv'!J:J,P136,'PdI-crono_inv'!P:P,\"<>proprietario\")","v":0},null,{"$f":"+SUMIFS('PdI-crono_inv'!AX:AX,'PdI-crono_inv'!CF:CF,F136,'PdI-crono_inv'!CE:CE,H136,'PdI-crono_inv'!J:J,P136,'PdI-crono_inv'!P:P,\"<>proprietario\")+S136","v":0},null,null,"RES",{"$f":"+VLOOKUP(F136,TT_Tabelle_Riferimento!$D$127:$E$164,2,FALSE)","v":"Depurazione"},"",0]
[0,0,"Gestore",0,"IP",20,{"$f":"+VLOOKUP(F137,TT_Tabelle_Riferimento!$D$127:$G$164,4,FALSE)","v":"Tecniche naturali di depurazione (tra cui fitodepurazione e lagunaggio)"},1,{"$f":"+VLOOKUP(H137,TT_Tabelle_Riferimento!$F$3:$G$6,2,FALSE)","v":"Servizio idrico integrato"},2026,{"$f":"+SUMIFS('PdI-crono_inv'!AW:AW,'PdI-crono_inv'!CF:CF,F137,'PdI-crono_inv'!CE:CE,H137,'PdI-crono_inv'!J:J,P137,'PdI-crono_inv'!P:P,\"<>proprietario\")","v":0},null,{"$f":"+SUMIFS('PdI-crono_inv'!AX:AX,'PdI-crono_inv'!CF:CF,F137,'PdI-crono_inv'!CE:CE,H137,'PdI-crono_inv'!J:J,P137,'PdI-crono_inv'!P:P,\"<>proprietario\")+S137","v":0},null,null,"RES",{"$f":"+VLOOKUP(F137,TT_Tabelle_Riferimento!$D$127:$E$164,2,FALSE)","v":"Depurazione"},"",0]
[0,0,"Gestore",0,"IP",21,{"$f":"+VLOOKUP(F138,TT_Tabelle_Riferimento!$D$127:$G$164,4,FALSE)","v":"Impianti di depurazione – trattamenti sino al preliminare, integrativo, primario - fosse settiche e fosse Imhoff"},1,{"$f":"+VLOOKUP(H138,TT_Tabelle_Riferimento!$F$3:$G$6,2,FALSE)","v":"Servizio idrico integrato"},2026,{"$f":"+SUMIFS('PdI-crono_inv'!AW:AW,'PdI-crono_inv'!CF:CF,F138,'PdI-crono_inv'!CE:CE,H138,'PdI-crono_inv'!J:J,P138,'PdI-crono_inv'!P:P,\"<>proprietario\")","v":0},null,{"$f":"+SUMIFS('PdI-crono_inv'!AX:AX,'PdI-crono_inv'!CF:CF,F138,'PdI-crono_inv'!CE:CE,H138,'PdI-crono_inv'!J:J,P138,'PdI-crono_inv'!P:P,\"<>proprietario\")+S138","v":0},null,null,"RES",{"$f":"+VLOOKUP(F138,TT_Tabelle_Riferimento!$D$127:$E$164,2,FALSE)","v":"Depurazione"},"",0]
[0,0,"Gestore",0,"IP",22,{"$f":"+VLOOKUP(F139,TT_Tabelle_Riferimento!$D$127:$G$164,4,FALSE)","v":"Impianti di depurazione – trattamenti sino al secondario"},1,{"$f":"+VLOOKUP(H139,TT_Tabelle_Riferimento!$F$3:$G$6,2,FALSE)","v":"Servizio idrico integrato"},2026,{"$f":"+SUMIFS('PdI-crono_inv'!AW:AW,'PdI-crono_inv'!CF:CF,F139,'PdI-crono_inv'!CE:CE,H139,'PdI-crono_inv'!J:J,P139,'PdI-crono_inv'!P:P,\"<>proprietario\")","v":0},null,{"$f":"+SUMIFS('PdI-crono_inv'!AX:AX,'PdI-crono_inv'!CF:CF,F139,'PdI-crono_inv'!CE:CE,H139,'PdI-crono_inv'!J:J,P139,'PdI-crono_inv'!P:P,\"<>proprietario\")+S139","v":0},null,null,"RES",{"$f":"+VLOOKUP(F139,TT_Tabelle_Riferimento!$D$127:$E$164,2,FALSE)","v":"Depurazione"},"",0]
[0,0,"Gestore",0,"IP",23,{"$f":"+VLOOKUP(F140,TT_Tabelle_Riferimento!$D$127:$G$164,4,FALSE)","v":"Impianti di depurazione – trattamenti sino al terziario e terziario avanzato"},1,{"$f":"+VLOOKUP(H140,TT_Tabelle_Riferimento!$F$3:$G$6,2,FALSE)","v":"Servizio idrico integrato"},2026,{"$f":"+SUMIFS('PdI-crono_inv'!AW:AW,'PdI-crono_inv'!CF:CF,F140,'PdI-crono_inv'!CE:CE,H140,'PdI-crono_inv'!J:J,P140,'PdI-crono_inv'!P:P,\"<>proprietario\")","v":0},null,{"$f":"+SUMIFS('PdI-crono_inv'!AX:AX,'PdI-crono_inv'!CF:CF,F140,'PdI-crono_inv'!CE:CE,H140,'PdI-crono_inv'!J:J,P140,'PdI-crono_inv'!P:P,\"<>proprietario\")+S140","v":0},null,null,"RES",{"$f":"+VLOOKUP(F140,TT_Tabelle_Riferimento!$D$127:$E$164,2,FALSE)","v":"Depurazione"},"",0]
[0,0,"Gestore",0,"IP",24,{"$f":"+VLOOKUP(F141,TT_Tabelle_Riferimento!$D$127:$G$164,4,FALSE)","v":"Impianti di essiccamento fanghi e di valorizzazione dei fanghi (tra cui mono-incenerimento, pirolisi, gassificazione)"},1,{"$f":"+VLOOKUP(H141,TT_Tabelle_Riferimento!$F$3:$G$6,2,FALSE)","v":"Servizio idrico integrato"},2026,{"$f":"+SUMIFS('PdI-crono_inv'!AW:AW,'PdI-crono_inv'!CF:CF,F141,'PdI-crono_inv'!CE:CE,H141,'PdI-crono_inv'!J:J,P141,'PdI-crono_inv'!P:P,\"<>proprietario\")","v":0},null,{"$f":"+SUMIFS('PdI-crono_inv'!AX:AX,'PdI-crono_inv'!CF:CF,F141,'PdI-crono_inv'!CE:CE,H141,'PdI-crono_inv'!J:J,P141,'PdI-crono_inv'!P:P,\"<>proprietario\")+S141","v":0},null,null,"RES",{"$f":"+VLOOKUP(F141,TT_Tabelle_Riferimento!$D$127:$E$164,2,FALSE)","v":"Depurazione"},"",0]
[0,0,"Gestore",0,"IP",25,{"$f":"+VLOOKUP(F142,TT_Tabelle_Riferimento!$D$127:$G$164,4,FALSE)","v":"Gruppi di misura - altre attrezzature di depurazione"},1,{"$f":"+VLOOKUP(H142,TT_Tabelle_Riferimento!$F$3:$G$6,2,FALSE)","v":"Servizio idrico integrato"},2026,{"$f":"+SUMIFS('PdI-crono_inv'!AW:AW,'PdI-crono_inv'!CF:CF,F142,'PdI-crono_inv'!CE:CE,H142,'PdI-crono_inv'!J:J,P142,'PdI-crono_inv'!P:P,\"<>proprietario\")","v":0},null,{"$f":"+SUMIFS('PdI-crono_inv'!AX:AX,'PdI-crono_inv'!CF:CF,F142,'PdI-crono_inv'!CE:CE,H142,'PdI-crono_inv'!J:J,P142,'PdI-crono_inv'!P:P,\"<>proprietario\")+S142","v":0},null,null,"RES",{"$f":"+VLOOKUP(F142,TT_Tabelle_Riferimento!$D$127:$E$164,2,FALSE)","v":"Depurazione"},"",0]
[0,0,"Gestore",0,"IP",26,{"$f":"+VLOOKUP(F143,TT_Tabelle_Riferimento!$D$127:$G$164,4,FALSE)","v":"Sistemi informativi di depurazione"},1,{"$f":"+VLOOKUP(H143,TT_Tabelle_Riferimento!$F$3:$G$6,2,FALSE)","v":"Servizio idrico integrato"},2026,{"$f":"+SUMIFS('PdI-crono_inv'!AW:AW,'PdI-crono_inv'!CF:CF,F143,'PdI-crono_inv'!CE:CE,H143,'PdI-crono_inv'!J:J,P143,'PdI-crono_inv'!P:P,\"<>proprietario\")","v":0},null,{"$f":"+SUMIFS('PdI-crono_inv'!AX:AX,'PdI-crono_inv'!CF:CF,F143,'PdI-crono_inv'!CE:CE,H143,'PdI-crono_inv'!J:J,P143,'PdI-crono_inv'!P:P,\"<>proprietario\")+S143","v":0},null,null,"RES",{"$f":"+VLOOKUP(F143,TT_Tabelle_Riferimento!$D$127:$E$164,2,FALSE)","v":"Depurazione"},"",0]
[0,0,"Gestore",0,"IP",27,{"$f":"+VLOOKUP(F144,TT_Tabelle_Riferimento!$D$127:$G$164,4,FALSE)","v":"Telecontrollo e teletrasmissione di depurazione"},1,{"$f":"+VLOOKUP(H144,TT_Tabelle_Riferimento!$F$3:$G$6,2,FALSE)","v":"Servizio idrico integrato"},2026,{"$f":"+SUMIFS('PdI-crono_inv'!AW:AW,'PdI-crono_inv'!CF:CF,F144,'PdI-crono_inv'!CE:CE,H144,'PdI-crono_inv'!J:J,P144,'PdI-crono_inv'!P:P,\"<>proprietario\")","v":0},null,{"$f":"+SUMIFS('PdI-crono_inv'!AX:AX,'PdI-crono_inv'!CF:CF,F144,'PdI-crono_inv'!CE:CE,H144,'PdI-crono_inv'!J:J,P144,'PdI-crono_inv'!P:P,\"<>proprietario\")+S144","v":0},null,null,"RES",{"$f":"+VLOOKUP(F144,TT_Tabelle_Riferimento!$D$127:$E$164,2,FALSE)","v":"Depurazione"},"",0]
[0,0,"Gestore",0,"IP",28,{"$f":"+VLOOKUP(F145,TT_Tabelle_Riferimento!$D$127:$G$164,4,FALSE)","v":"Altri impianti"},1,{"$f":"+VLOOKUP(H145,TT_Tabelle_Riferimento!$F$3:$G$6,2,FALSE)","v":"Servizio idrico integrato"},2026,{"$f":"+SUMIFS('PdI-crono_inv'!AW:AW,'PdI-crono_inv'!CF:CF,F145,'PdI-crono_inv'!CE:CE,H145,'PdI-crono_inv'!J:J,P145,'PdI-crono_inv'!P:P,\"<>proprietario\")","v":0},null,{"$f":"+SUMIFS('PdI-crono_inv'!AX:AX,'PdI-crono_inv'!CF:CF,F145,'PdI-crono_inv'!CE:CE,H145,'PdI-crono_inv'!J:J,P145,'PdI-crono_inv'!P:P,\"<>proprietario\")+S145","v":0},null,null,"RES",{"$f":"+VLOOKUP(F145,TT_Tabelle_Riferimento!$D$127:$E$164,2,FALSE)","v":"Comune"},"",0]
[{"$f":"+idato","v":0},{"$f":"+idgestore","v":0},"Gestore",0,"IP",29,{"$f":"+VLOOKUP(F146,TT_Tabelle_Riferimento!$D$127:$G$164,4,FALSE)","v":"Laboratori e attrezzature"},1,{"$f":"+VLOOKUP(H146,TT_Tabelle_Riferimento!$F$3:$G$6,2,FALSE)","v":"Servizio idrico integrato"},2026,{"$f":"+SUMIFS('PdI-crono_inv'!AW:AW,'PdI-crono_inv'!CF:CF,F146,'PdI-crono_inv'!CE:CE,H146,'PdI-crono_inv'!J:J,P146,'PdI-crono_inv'!P:P,\"<>proprietario\")","v":0},null,{"$f":"+SUMIFS('PdI-crono_inv'!AX:AX,'PdI-crono_inv'!CF:CF,F146,'PdI-crono_inv'!CE:CE,H146,'PdI-crono_inv'!J:J,P146,'PdI-crono_inv'!P:P,\"<>proprietario\")+S146","v":0},null,null,"RES",{"$f":"+VLOOKUP(F146,TT_Tabelle_Riferimento!$D$127:$E$164,2,FALSE)","v":"Comune"},"",0]
[0,0,"Gestore",0,"IP",30,{"$f":"+VLOOKUP(F147,TT_Tabelle_Riferimento!$D$127:$G$164,4,FALSE)","v":"Sistemi informativi"},1,{"$f":"+VLOOKUP(H147,TT_Tabelle_Riferimento!$F$3:$G$6,2,FALSE)","v":"Servizio idrico integrato"},2026,{"$f":"+SUMIFS('PdI-crono_inv'!AW:AW,'PdI-crono_inv'!CF:CF,F147,'PdI-crono_inv'!CE:CE,H147,'PdI-crono_inv'!J:J,P147,'PdI-crono_inv'!P:P,\"<>proprietario\")","v":0},null,{"$f":"+SUMIFS('PdI-crono_inv'!AX:AX,'PdI-crono_inv'!CF:CF,F147,'PdI-crono_inv'!CE:CE,H147,'PdI-crono_inv'!J:J,P147,'PdI-crono_inv'!P:P,\"<>proprietario\")+S147","v":0},null,null,"RES",{"$f":"+VLOOKUP(F147,TT_Tabelle_Riferimento!$D$127:$E$164,2,FALSE)","v":"Comune"},"",0]
[0,0,"Gestore",0,"IP",31,{"$f":"+VLOOKUP(F148,TT_Tabelle_Riferimento!$D$127:$G$164,4,FALSE)","v":"Telecontrollo e teletrasmissione"},1,{"$f":"+VLOOKUP(H148,TT_Tabelle_Riferimento!$F$3:$G$6,2,FALSE)","v":"Servizio idrico integrato"},2026,{"$f":"+SUMIFS('PdI-crono_inv'!AW:AW,'PdI-crono_inv'!CF:CF,F148,'PdI-crono_inv'!CE:CE,H148,'PdI-crono_inv'!J:J,P148,'PdI-crono_inv'!P:P,\"<>proprietario\")","v":0},null,{"$f":"+SUMIFS('PdI-crono_inv'!AX:AX,'PdI-crono_inv'!CF:CF,F148,'PdI-crono_inv'!CE:CE,H148,'PdI-crono_inv'!J:J,P148,'PdI-crono_inv'!P:P,\"<>proprietario\")+S148","v":0},null,null,"RES",{"$f":"+VLOOKUP(F148,TT_Tabelle_Riferimento!$D$127:$E$164,2,FALSE)","v":"Comune"},"",0]
[0,0,"Gestore",0,"IP",32,{"$f":"+VLOOKUP(F149,TT_Tabelle_Riferimento!$D$127:$G$164,4,FALSE)","v":"Autoveicoli - automezzi"},1,{"$f":"+VLOOKUP(H149,TT_Tabelle_Riferimento!$F$3:$G$6,2,FALSE)","v":"Servizio idrico integrato"},2026,{"$f":"+SUMIFS('PdI-crono_inv'!AW:AW,'PdI-crono_inv'!CF:CF,F149,'PdI-crono_inv'!CE:CE,H149,'PdI-crono_inv'!J:J,P149,'PdI-crono_inv'!P:P,\"<>proprietario\")","v":0},null,{"$f":"+SUMIFS('PdI-crono_inv'!AX:AX,'PdI-crono_inv'!CF:CF,F149,'PdI-crono_inv'!CE:CE,H149,'PdI-crono_inv'!J:J,P149,'PdI-crono_inv'!P:P,\"<>proprietario\")+S149","v":0},null,null,"RES",{"$f":"+VLOOKUP(F149,TT_Tabelle_Riferimento!$D$127:$E$164,2,FALSE)","v":"Comune"},"",0]
[0,0,"Gestore",0,"IP",1,{"$f":"+VLOOKUP(F150,TT_Tabelle_Riferimento!$D$127:$G$164,4,FALSE)","v":"Terreni"},1,{"$f":"+VLOOKUP(H150,TT_Tabelle_Riferimento!$F$3:$G$6,2,FALSE)","v":"Servizio idrico integrato"},2026,{"$f":"+SUMIFS('PdI-crono_inv'!AW:AW,'PdI-crono_inv'!CF:CF,F150,'PdI-crono_inv'!CE:CE,H150,'PdI-crono_inv'!J:J,P150,'PdI-crono_inv'!P:P,\"<>proprietario\")","v":0},null,{"$f":"+SUMIFS('PdI-crono_inv'!AX:AX,'PdI-crono_inv'!CF:CF,F150,'PdI-crono_inv'!CE:CE,H150,'PdI-crono_inv'!J:J,P150,'PdI-crono_inv'!P:P,\"<>proprietario\")+S150","v":0},null,null,"RES",{"$f":"+VLOOKUP(F150,TT_Tabelle_Riferimento!$D$127:$E$164,2,FALSE)","v":"Comune"},"",0]
[0,0,"Gestore",0,"IP",33,{"$f":"+VLOOKUP(F151,TT_Tabelle_Riferimento!$D$127:$G$164,4,FALSE)","v":"Fabbricati non industriali"},1,{"$f":"+VLOOKUP(H151,TT_Tabelle_Riferimento!$F$3:$G$6,2,FALSE)","v":"Servizio idrico integrato"},2026,{"$f":"+SUMIFS('PdI-crono_inv'!AW:AW,'PdI-crono_inv'!CF:CF,F151,'PdI-crono_inv'!CE:CE,H151,'PdI-crono_inv'!J:J,P151,'PdI-crono_inv'!P:P,\"<>proprietario\")","v":0},null,{"$f":"+SUMIFS('PdI-crono_inv'!AX:AX,'PdI-crono_inv'!CF:CF,F151,'PdI-crono_inv'!CE:CE,H151,'PdI-crono_inv'!J:J,P151,'PdI-crono_inv'!P:P,\"<>proprietario\")+S151","v":0},null,null,"RES",{"$f":"+VLOOKUP(F151,TT_Tabelle_Riferimento!$D$127:$E$164,2,FALSE)","v":"Comune"},"",0]
[0,0,"Gestore",0,"IP",34,{"$f":"+VLOOKUP(F152,TT_Tabelle_Riferimento!$D$127:$G$164,4,FALSE)","v":"Fabbricati industriali"},1,{"$f":"+VLOOKUP(H152,TT_Tabelle_Riferimento!$F$3:$G$6,2,FALSE)","v":"Servizio idrico integrato"},2026,{"$f":"+SUMIFS('PdI-crono_inv'!AW:AW,'PdI-crono_inv'!CF:CF,F152,'PdI-crono_inv'!CE:CE,H152,'PdI-crono_inv'!J:J,P152,'PdI-crono_inv'!P:P,\"<>proprietario\")","v":0},null,{"$f":"+SUMIFS('PdI-crono_inv'!AX:AX,'PdI-crono_inv'!CF:CF,F152,'PdI-crono_inv'!CE:CE,H152,'PdI-crono_inv'!J:J,P152,'PdI-crono_inv'!P:P,\"<>proprietario\")+S152","v":0},null,null,"RES",{"$f":"+VLOOKUP(F152,TT_Tabelle_Riferimento!$D$127:$E$164,2,FALSE)","v":"Comune"},"",0]
[0,0,"Gestore",0,"IP",35,{"$f":"+VLOOKUP(F153,TT_Tabelle_Riferimento!$D$127:$G$164,4,FALSE)","v":"Costruzioni leggere"},1,{"$f":"+VLOOKUP(H153,TT_Tabelle_Riferimento!$F$3:$G$6,2,FALSE)","v":"Servizio idrico integrato"},2026,{"$f":"+SUMIFS('PdI-crono_inv'!AW:AW,'PdI-crono_inv'!CF:CF,F153,'PdI-crono_inv'!CE:CE,H153,'PdI-crono_inv'!J:J,P153,'PdI-crono_inv'!P:P,\"<>proprietario\")","v":0},null,{"$f":"+SUMIFS('PdI-crono_inv'!AX:AX,'PdI-crono_inv'!CF:CF,F153,'PdI-crono_inv'!CE:CE,H153,'PdI-crono_inv'!J:J,P153,'PdI-crono_inv'!P:P,\"<>proprietario\")+S153","v":0},null,null,"RES",{"$f":"+VLOOKUP(F153,TT_Tabelle_Riferimento!$D$127:$E$164,2,FALSE)","v":"Comune"},"",0]
[0,0,"Gestore",0,"IP",36,{"$f":"+VLOOKUP(F154,TT_Tabelle_Riferimento!$D$127:$G$164,4,FALSE)","v":"Studi, ricerche, brevetti, diritti di utilizzazione"},1,{"$f":"+VLOOKUP(H154,TT_Tabelle_Riferimento!$F$3:$G$6,2,FALSE)","v":"Servizio idrico integrato"},2026,{"$f":"+SUMIFS('PdI-crono_inv'!AW:AW,'PdI-crono_inv'!CF:CF,F154,'PdI-crono_inv'!CE:CE,H154,'PdI-crono_inv'!J:J,P154,'PdI-crono_inv'!P:P,\"<>proprietario\")","v":0},null,{"$f":"+SUMIFS('PdI-crono_inv'!AX:AX,'PdI-crono_inv'!CF:CF,F154,'PdI-crono_inv'!CE:CE,H154,'PdI-crono_inv'!J:J,P154,'PdI-crono_inv'!P:P,\"<>proprietario\")+S154","v":0},null,null,"RES",{"$f":"+VLOOKUP(F154,TT_Tabelle_Riferimento!$D$127:$E$164,2,FALSE)","v":"Comune"},"",0]
[0,0,"Gestore",0,"IP",37,{"$f":"+VLOOKUP(F155,TT_Tabelle_Riferimento!$D$127:$G$164,4,FALSE)","v":"Altre immobilizzazioni materiali e immateriali"},1,{"$f":"+VLOOKUP(H155,TT_Tabelle_Riferimento!$F$3:$G$6,2,FALSE)","v":"Servizio idrico integrato"},2026,{"$f":"+SUMIFS('PdI-crono_inv'!AW:AW,'PdI-crono_inv'!CF:CF,F155,'PdI-crono_inv'!CE:CE,H155,'PdI-crono_inv'!J:J,P155,'PdI-crono_inv'!P:P,\"<>proprietario\")","v":0},null,{"$f":"+SUMIFS('PdI-crono_inv'!AX:AX,'PdI-crono_inv'!CF:CF,F155,'PdI-crono_inv'!CE:CE,H155,'PdI-crono_inv'!J:J,P155,'PdI-crono_inv'!P:P,\"<>proprietario\")+S155","v":0},null,null,"RES",{"$f":"+VLOOKUP(F155,TT_Tabelle_Riferimento!$D$127:$E$164,2,FALSE)","v":"Comune"},"",0]
[0,0,"Gestore",0,"IP",38,{"$f":"+VLOOKUP(F156,TT_Tabelle_Riferimento!$D$127:$G$164,4,FALSE)","v":"Grandi dighe (sbarramenti che superano i quindici metri di altezza o che determinano un invaso superiore a 1 milione di metri cubi)"},1,{"$f":"+VLOOKUP(H156,TT_Tabelle_Riferimento!$F$3:$G$6,2,FALSE)","v":"Servizio idrico integrato"},2026,{"$f":"+SUMIFS('PdI-crono_inv'!AW:AW,'PdI-crono_inv'!CF:CF,F156,'PdI-crono_inv'!CE:CE,H156,'PdI-crono_inv'!J:J,P156,'PdI-crono_inv'!P:P,\"<>proprietario\")","v":0},null,{"$f":"+SUMIFS('PdI-crono_inv'!AX:AX,'PdI-crono_inv'!CF:CF,F156,'PdI-crono_inv'!CE:CE,H156,'PdI-crono_inv'!J:J,P156,'PdI-crono_inv'!P:P,\"<>proprietario\")+S156","v":0},null,null,"RES",{"$f":"+VLOOKUP(F156,TT_Tabelle_Riferimento!$D$127:$E$164,2,FALSE)","v":"Acquedotto"},"",0]
[0,0,"Gestore",0,"IP",39,{"$f":"+VLOOKUP(F157,TT_Tabelle_Riferimento!$D$127:$G$164,4,FALSE)","v":"Piccole dighe (sbarramenti che non superano i quindici metri di altezza o che determinano un invaso non superiore a 1 milione di metri cubi)"},1,{"$f":"+VLOOKUP(H157,TT_Tabelle_Riferimento!$F$3:$G$6,2,FALSE)","v":"Servizio idrico integrato"},2026,{"$f":"+SUMIFS('PdI-crono_inv'!AW:AW,'PdI-crono_inv'!CF:CF,F157,'PdI-crono_inv'!CE:CE,H157,'PdI-crono_inv'!J:J,P157,'PdI-crono_inv'!P:P,\"<>proprietario\")","v":0},null,{"$f":"+SUMIFS('PdI-crono_inv'!AX:AX,'PdI-crono_inv'!CF:CF,F157,'PdI-crono_inv'!CE:CE,H157,'PdI-crono_inv'!J:J,P157,'PdI-crono_inv'!P:P,\"<>proprietario\")+S157","v":0},null,null,"RES",{"$f":"+VLOOKUP(F157,TT_Tabelle_Riferimento!$D$127:$E$164,2,FALSE)","v":"Acquedotto"},"",0]
[{"$f":"+idato","v":0},{"$f":"+idgestore","v":0},"Gestore",0,"IP",2,{"$f":"+VLOOKUP(F158,TT_Tabelle_Riferimento!$D$127:$G$164,4,FALSE)","v":"Condotte di acquedotto"},2,{"$f":"+VLOOKUP(H158,TT_Tabelle_Riferimento!$F$3:$G$6,2,FALSE)","v":"Fognatura bianca e pulizia / manutenzione caditoie stradali"},2026,{"$f":"+SUMIFS('PdI-crono_inv'!AW:AW,'PdI-crono_inv'!CF:CF,F158,'PdI-crono_inv'!CE:CE,H158,'PdI-crono_inv'!J:J,P158,'PdI-crono_inv'!P:P,\"<>proprietario\")","v":0},null,{"$f":"+SUMIFS('PdI-crono_inv'!AX:AX,'PdI-crono_inv'!CF:CF,F158,'PdI-crono_inv'!CE:CE,H158,'PdI-crono_inv'!J:J,P158,'PdI-crono_inv'!P:P,\"<>proprietario\")+S158","v":0},null,null,"RES",{"$f":"+VLOOKUP(F158,TT_Tabelle_Riferimento!$D$127:$E$164,2,FALSE)","v":"Acquedotto"},"",0]
[0,0,"Gestore",0,"IP",3,{"$f":"+VLOOKUP(F159,TT_Tabelle_Riferimento!$D$127:$G$164,4,FALSE)","v":"Opere idrauliche fisse di acquedotto"},2,{"$f":"+VLOOKUP(H159,TT_Tabelle_Riferimento!$F$3:$G$6,2,FALSE)","v":"Fognatura bianca e pulizia / manutenzione caditoie stradali"},2026,{"$f":"+SUMIFS('PdI-crono_inv'!AW:AW,'PdI-crono_inv'!CF:CF,F159,'PdI-crono_inv'!CE:CE,H159,'PdI-crono_inv'!J:J,P159,'PdI-crono_inv'!P:P,\"<>proprietario\")","v":0},null,{"$f":"+SUMIFS('PdI-crono_inv'!AX:AX,'PdI-crono_inv'!CF:CF,F159,'PdI-crono_inv'!CE:CE,H159,'PdI-crono_inv'!J:J,P159,'PdI-crono_inv'!P:P,\"<>proprietario\")+S159","v":0},null,null,"RES",{"$f":"+VLOOKUP(F159,TT_Tabelle_Riferimento!$D$127:$E$164,2,FALSE)","v":"Acquedotto"},"",0]
[0,0,"Gestore",0,"IP",4,{"$f":"+VLOOKUP(F160,TT_Tabelle_Riferimento!$D$127:$G$164,4,FALSE)","v":"Serbatoi"},2,{"$f":"+VLOOKUP(H160,TT_Tabelle_Riferimento!$F$3:$G$6,2,FALSE)","v":"Fognatura bianca e pulizia / manutenzione caditoie stradali"},2026,{"$f":"+SUMIFS('PdI-crono_inv'!AW:AW,'PdI-crono_inv'!CF:CF,F160,'PdI-crono_inv'!CE:CE,H160,'PdI-crono_inv'!J:J,P160,'PdI-crono_inv'!P:P,\"<>proprietario\")","v":0},null,{"$f":"+SUMIFS('PdI-crono_inv'!AX:AX,'PdI-crono_inv'!CF:CF,F160,'PdI-crono_inv'!CE:CE,H160,'PdI-crono_inv'!J:J,P160,'PdI-crono_inv'!P:P,\"<>proprietario\")+S160","v":0},null,null,"RES",{"$f":"+VLOOKUP(F160,TT_Tabelle_Riferimento!$D$127:$E$164,2,FALSE)","v":"Acquedotto"},"",0]
[0,0,"Gestore",0,"IP",5,{"$f":"+VLOOKUP(F161,TT_Tabelle_Riferimento!$D$127:$G$164,4,FALSE)","v":"Impianti di sollevamento e pompaggio di acquedotto"},2,{"$f":"+VLOOKUP(H161,TT_Tabelle_Riferimento!$F$3:$G$6,2,FALSE)","v":"Fognatura bianca e pulizia / manutenzione caditoie stradali"},2026,{"$f":"+SUMIFS('PdI-crono_inv'!AW:AW,'PdI-crono_inv'!CF:CF,F161,'PdI-crono_inv'!CE:CE,H161,'PdI-crono_inv'!J:J,P161,'PdI-crono_inv'!P:P,\"<>proprietario\")","v":0},null,{"$f":"+SUMIFS('PdI-crono_inv'!AX:AX,'PdI-crono_inv'!CF:CF,F161,'PdI-crono_inv'!CE:CE,H161,'PdI-crono_inv'!J:J,P161,'PdI-crono_inv'!P:P,\"<>proprietario\")+S161","v":0},null,null,"RES",{"$f":"+VLOOKUP(F161,TT_Tabelle_Riferimento!$D$127:$E$164,2,FALSE)","v":"Acquedotto"},"",0]
[0,0,"Gestore",0,"IP",6,{"$f":"+VLOOKUP(F162,TT_Tabelle_Riferimento!$D$127:$G$164,4,FALSE)","v":"Impianti di potabilizzazione"},2,{"$f":"+VLOOKUP(H162,TT_Tabelle_Riferimento!$F$3:$G$6,2,FALSE)","v":"Fognatura bianca e pulizia / manutenzione caditoie stradali"},2026,{"$f":"+SUMIFS('PdI-crono_inv'!AW:AW,'PdI-crono_inv'!CF:CF,F162,'PdI-crono_inv'!CE:CE,H162,'PdI-crono_inv'!J:J,P162,'PdI-crono_inv'!P:P,\"<>proprietario\")","v":0},null,{"$f":"+SUMIFS('PdI-crono_inv'!AX:AX,'PdI-crono_inv'!CF:CF,F162,'PdI-crono_inv'!CE:CE,H162,'PdI-crono_inv'!J:J,P162,'PdI-crono_inv'!P:P,\"<>proprietario\")+S162","v":0},null,null,"RES",{"$f":"+VLOOKUP(F162,TT_Tabelle_Riferimento!$D$127:$E$164,2,FALSE)","v":"Acquedotto"},"",0]
[0,0,"Gestore",0,"IP",7,{"$f":"+VLOOKUP(F163,TT_Tabelle_Riferimento!$D$127:$G$164,4,FALSE)","v":"Altri trattamenti di potabilizzazione (tra cui dispositivi di disinfezione, stacciatura, filtrazione, addolcimento)"},2,{"$f":"+VLOOKUP(H163,TT_Tabelle_Riferimento!$F$3:$G$6,2,FALSE)","v":"Fognatura bianca e pulizia / manutenzione caditoie stradali"},2026,{"$f":"+SUMIFS('PdI-crono_inv'!AW:AW,'PdI-crono_inv'!CF:CF,F163,'PdI-crono_inv'!CE:CE,H163,'PdI-crono_inv'!J:J,P163,'PdI-crono_inv'!P:P,\"<>proprietario\")","v":0},null,{"$f":"+SUMIFS('PdI-crono_inv'!AX:AX,'PdI-crono_inv'!CF:CF,F163,'PdI-crono_inv'!CE:CE,H163,'PdI-crono_inv'!J:J,P163,'PdI-crono_inv'!P:P,\"<>proprietario\")+S163","v":0},null,null,"RES",{"$f":"+VLOOKUP(F163,TT_Tabelle_Riferimento!$D$127:$E$164,2,FALSE)","v":"Acquedotto"},"",0]
[0,0,"Gestore",0,"IP",8,{"$f":"+VLOOKUP(F164,TT_Tabelle_Riferimento!$D$127:$G$164,4,FALSE)","v":"Gruppi di misura - altre attrezzature di acquedotto"},2,{"$f":"+VLOOKUP(H164,TT_Tabelle_Riferimento!$F$3:$G$6,2,FALSE)","v":"Fognatura bianca e pulizia / manutenzione caditoie stradali"},2026,{"$f":"+SUMIFS('PdI-crono_inv'!AW:AW,'PdI-crono_inv'!CF:CF,F164,'PdI-crono_inv'!CE:CE,H164,'PdI-crono_inv'!J:J,P164,'PdI-crono_inv'!P:P,\"<>proprietario\")","v":0},null,{"$f":"+SUMIFS('PdI-crono_inv'!AX:AX,'PdI-crono_inv'!CF:CF,F164,'PdI-crono_inv'!CE:CE,H164,'PdI-crono_inv'!J:J,P164,'PdI-crono_inv'!P:P,\"<>proprietario\")+S164","v":0},null,null,"RES",{"$f":"+VLOOKUP(F164,TT_Tabelle_Riferimento!$D$127:$E$164,2,FALSE)","v":"Acquedotto"},"",0]
[0,0,"Gestore",0,"IP",9,{"$f":"+VLOOKUP(F165,TT_Tabelle_Riferimento!$D$127:$G$164,4,FALSE)","v":"Sistemi informativi di acquedotto"},2,{"$f":"+VLOOKUP(H165,TT_Tabelle_Riferimento!$F$3:$G$6,2,FALSE)","v":"Fognatura bianca e pulizia / manutenzione caditoie stradali"},2026,{"$f":"+SUMIFS('PdI-crono_inv'!AW:AW,'PdI-crono_inv'!CF:CF,F165,'PdI-crono_inv'!CE:CE,H165,'PdI-crono_inv'!J:J,P165,'PdI-crono_inv'!P:P,\"<>proprietario\")","v":0},null,{"$f":"+SUMIFS('PdI-crono_inv'!AX:AX,'PdI-crono_inv'!CF:CF,F165,'PdI-crono_inv'!CE:CE,H165,'PdI-crono_inv'!J:J,P165,'PdI-crono_inv'!P:P,\"<>proprietario\")+S165","v":0},null,null,"RES",{"$f":"+VLOOKUP(F165,TT_Tabelle_Riferimento!$D$127:$E$164,2,FALSE)","v":"Acquedotto"},"",0]
[0,0,"Gestore",0,"IP",10,{"$f":"+VLOOKUP(F166,TT_Tabelle_Riferimento!$D$127:$G$164,4,FALSE)","v":"Telecontrollo e teletrasmissione di acquedotto"},2,{"$f":"+VLOOKUP(H166,TT_Tabelle_Riferimento!$F$3:$G$6,2,FALSE)","v":"Fognatura bianca e pulizia / manutenzione caditoie stradali"},2026,{"$f":"+SUMIFS('PdI-crono_inv'!AW:AW,'PdI-crono_inv'!CF:CF,F166,'PdI-crono_inv'!CE:CE,H166,'PdI-crono_inv'!J:J,P166,'PdI-crono_inv'!P:P,\"<>proprietario\")","v":0},null,{"$f":"+SUMIFS('PdI-crono_inv'!AX:AX,'PdI-crono_inv'!CF:CF,F166,'PdI-crono_inv'!CE:CE,H166,'PdI-crono_inv'!J:J,P166,'PdI-crono_inv'!P:P,\"<>proprietario\")+S166","v":0},null,null,"RES",{"$f":"+VLOOKUP(F166,TT_Tabelle_Riferimento!$D$127:$E$164,2,FALSE)","v":"Acquedotto"},"",0]
[0,0,"Gestore",0,"IP",11,{"$f":"+VLOOKUP(F167,TT_Tabelle_Riferimento!$D$127:$G$164,4,FALSE)","v":"Condotte fognarie"},2,{"$f":"+VLOOKUP(H167,TT_Tabelle_Riferimento!$F$3:$G$6,2,FALSE)","v":"Fognatura bianca e pulizia / manutenzione caditoie stradali"},2026,{"$f":"+SUMIFS('PdI-crono_inv'!AW:AW,'PdI-crono_inv'!CF:CF,F167,'PdI-crono_inv'!CE:CE,H167,'PdI-crono_inv'!J:J,P167,'PdI-crono_inv'!P:P,\"<>proprietario\")","v":0},null,{"$f":"+SUMIFS('PdI-crono_inv'!AX:AX,'PdI-crono_inv'!CF:CF,F167,'PdI-crono_inv'!CE:CE,H167,'PdI-crono_inv'!J:J,P167,'PdI-crono_inv'!P:P,\"<>proprietario\")+S167","v":0},null,null,"RES",{"$f":"+VLOOKUP(F167,TT_Tabelle_Riferimento!$D$127:$E$164,2,FALSE)","v":"Fognatura"},"",0]
[0,0,"Gestore",0,"IP",12,{"$f":"+VLOOKUP(F168,TT_Tabelle_Riferimento!$D$127:$G$164,4,FALSE)","v":"Sifoni e scaricatori di piena e altre opere idrauliche fisse di fognatura"},2,{"$f":"+VLOOKUP(H168,TT_Tabelle_Riferimento!$F$3:$G$6,2,FALSE)","v":"Fognatura bianca e pulizia / manutenzione caditoie stradali"},2026,{"$f":"+SUMIFS('PdI-crono_inv'!AW:AW,'PdI-crono_inv'!CF:CF,F168,'PdI-crono_inv'!CE:CE,H168,'PdI-crono_inv'!J:J,P168,'PdI-crono_inv'!P:P,\"<>proprietario\")","v":0},null,{"$f":"+SUMIFS('PdI-crono_inv'!AX:AX,'PdI-crono_inv'!CF:CF,F168,'PdI-crono_inv'!CE:CE,H168,'PdI-crono_inv'!J:J,P168,'PdI-crono_inv'!P:P,\"<>proprietario\")+S168","v":0},null,null,"RES",{"$f":"+VLOOKUP(F168,TT_Tabelle_Riferimento!$D$127:$E$164,2,FALSE)","v":"Fognatura"},"",0]
[0,0,"Gestore",0,"IP",13,{"$f":"+VLOOKUP(F169,TT_Tabelle_Riferimento!$D$127:$G$164,4,FALSE)","v":"Vasche di laminazione e vasche di prima pioggia"},2,{"$f":"+VLOOKUP(H169,TT_Tabelle_Riferimento!$F$3:$G$6,2,FALSE)","v":"Fognatura bianca e pulizia / manutenzione caditoie stradali"},2026,{"$f":"+SUMIFS('PdI-crono_inv'!AW:AW,'PdI-crono_inv'!CF:CF,F169,'PdI-crono_inv'!CE:CE,H169,'PdI-crono_inv'!J:J,P169,'PdI-crono_inv'!P:P,\"<>proprietario\")","v":0},null,{"$f":"+SUMIFS('PdI-crono_inv'!AX:AX,'PdI-crono_inv'!CF:CF,F169,'PdI-crono_inv'!CE:CE,H169,'PdI-crono_inv'!J:J,P169,'PdI-crono_inv'!P:P,\"<>proprietario\")+S169","v":0},null,null,"RES",{"$f":"+VLOOKUP(F169,TT_Tabelle_Riferimento!$D$127:$E$164,2,FALSE)","v":"Fognatura"},"",0]
[0,0,"Gestore",0,"IP",14,{"$f":"+VLOOKUP(F170,TT_Tabelle_Riferimento!$D$127:$G$164,4,FALSE)","v":"Impianti di sollevamento e pompaggio di fognatura"},2,{"$f":"+VLOOKUP(H170,TT_Tabelle_Riferimento!$F$3:$G$6,2,FALSE)","v":"Fognatura bianca e pulizia / manutenzione caditoie stradali"},2026,{"$f":"+SUMIFS('PdI-crono_inv'!AW:AW,'PdI-crono_inv'!CF:CF,F170,'PdI-crono_inv'!CE:CE,H170,'PdI-crono_inv'!J:J,P170,'PdI-crono_inv'!P:P,\"<>proprietario\")","v":0},null,{"$f":"+SUMIFS('PdI-crono_inv'!AX:AX,'PdI-crono_inv'!CF:CF,F170,'PdI-crono_inv'!CE:CE,H170,'PdI-crono_inv'!J:J,P170,'PdI-crono_inv'!P:P,\"<>proprietario\")+S170","v":0},null,null,"RES",{"$f":"+VLOOKUP(F170,TT_Tabelle_Riferimento!$D$127:$E$164,2,FALSE)","v":"Fognatura"},"",0]
[0,0,"Gestore",0,"IP",15,{"$f":"+VLOOKUP(F171,TT_Tabelle_Riferimento!$D$127:$G$164,4,FALSE)","v":"Gruppi di misura - altre attrezzature di fognatura"},2,{"$f":"+VLOOKUP(H171,TT_Tabelle_Riferimento!$F$3:$G$6,2,FALSE)","v":"Fognatura bianca e pulizia / manutenzione caditoie stradali"},2026,{"$f":"+SUMIFS('PdI-crono_inv'!AW:AW,'PdI-crono_inv'!CF:CF,F171,'PdI-crono_inv'!CE:CE,H171,'PdI-crono_inv'!J:J,P171,'PdI-crono_inv'!P:P,\"<>proprietario\")","v":0},null,{"$f":"+SUMIFS('PdI-crono_inv'!AX:AX,'PdI-crono_inv'!CF:CF,F171,'PdI-crono_inv'!CE:CE,H171,'PdI-crono_inv'!J:J,P171,'PdI-crono_inv'!P:P,\"<>proprietario\")+S171","v":0},null,null,"RES",{"$f":"+VLOOKUP(F171,TT_Tabelle_Riferimento!$D$127:$E$164,2,FALSE)","v":"Fognatura"},"",0]
[0,0,"Gestore",0,"IP",16,{"$f":"+VLOOKUP(F172,TT_Tabelle_Riferimento!$D$127:$G$164,4,FALSE)","v":"Sistemi informativi di fognatura"},2,{"$f":"+VLOOKUP(H172,TT_Tabelle_Riferimento!$F$3:$G$6,2,FALSE)","v":"Fognatura bianca e pulizia / manutenzione caditoie stradali"},2026,{"$f":"+SUMIFS('PdI-crono_inv'!AW:AW,'PdI-crono_inv'!CF:CF,F172,'PdI-crono_inv'!CE:CE,H172,'PdI-crono_inv'!J:J,P172,'PdI-crono_inv'!P:P,\"<>proprietario\")","v":0},null,{"$f":"+SUMIFS('PdI-crono_inv'!AX:AX,'PdI-crono_inv'!CF:CF,F172,'PdI-crono_inv'!CE:CE,H172,'PdI-crono_inv'!J:J,P172,'PdI-crono_inv'!P:P,\"<>proprietario\")+S172","v":0},null,null,"RES",{"$f":"+VLOOKUP(F172,TT_Tabelle_Riferimento!$D$127:$E$164,2,FALSE)","v":"Fognatura"},{"$f":"+IF(SUM(K172:N172)=0,\"\",\"PdI_consolidamento\")","v":""},0]
[0,0,"Gestore",0,"IP",18,{"$f":"+VLOOKUP(F173,TT_Tabelle_Riferimento!$D$127:$G$164,4,FALSE)","v":"Telecontrollo e teletrasmissione di fognatura"},2,{"$f":"+VLOOKUP(H173,TT_Tabelle_Riferimento!$F$3:$G$6,2,FALSE)","v":"Fognatura bianca e pulizia / manutenzione caditoie stradali"},2026,{"$f":"+SUMIFS('PdI-crono_inv'!AW:AW,'PdI-crono_inv'!CF:CF,F173,'PdI-crono_inv'!CE:CE,H173,'PdI-crono_inv'!J:J,P173,'PdI-crono_inv'!P:P,\"<>proprietario\")","v":0},null,{"$f":"+SUMIFS('PdI-crono_inv'!AX:AX,'PdI-crono_inv'!CF:CF,F173,'PdI-crono_inv'!CE:CE,H173,'PdI-crono_inv'!J:J,P173,'PdI-crono_inv'!P:P,\"<>proprietario\")+S173","v":0},null,null,"RES",{"$f":"+VLOOKUP(F173,TT_Tabelle_Riferimento!$D$127:$E$164,2,FALSE)","v":"Fognatura"},"",0]
[0,0,"Gestore",0,"IP",19,{"$f":"+VLOOKUP(F174,TT_Tabelle_Riferimento!$D$127:$G$164,4,FALSE)","v":"Impianti di sollevamento e pompaggio di depurazione"},2,{"$f":"+VLOOKUP(H174,TT_Tabelle_Riferimento!$F$3:$G$6,2,FALSE)","v":"Fognatura bianca e pulizia / manutenzione caditoie stradali"},2026,{"$f":"+SUMIFS('PdI-crono_inv'!AW:AW,'PdI-crono_inv'!CF:CF,F174,'PdI-crono_inv'!CE:CE,H174,'PdI-crono_inv'!J:J,P174,'PdI-crono_inv'!P:P,\"<>proprietario\")","v":0},null,{"$f":"+SUMIFS('PdI-crono_inv'!AX:AX,'PdI-crono_inv'!CF:CF,F174,'PdI-crono_inv'!CE:CE,H174,'PdI-crono_inv'!J:J,P174,'PdI-crono_inv'!P:P,\"<>proprietario\")+S174","v":0},null,null,"RES",{"$f":"+VLOOKUP(F174,TT_Tabelle_Riferimento!$D$127:$E$164,2,FALSE)","v":"Depurazione"},"",0]
[0,0,"Gestore",0,"IP",20,{"$f":"+VLOOKUP(F175,TT_Tabelle_Riferimento!$D$127:$G$164,4,FALSE)","v":"Tecniche naturali di depurazione (tra cui fitodepurazione e lagunaggio)"},2,{"$f":"+VLOOKUP(H175,TT_Tabelle_Riferimento!$F$3:$G$6,2,FALSE)","v":"Fognatura bianca e pulizia / manutenzione caditoie stradali"},2026,{"$f":"+SUMIFS('PdI-crono_inv'!AW:AW,'PdI-crono_inv'!CF:CF,F175,'PdI-crono_inv'!CE:CE,H175,'PdI-crono_inv'!J:J,P175,'PdI-crono_inv'!P:P,\"<>proprietario\")","v":0},null,{"$f":"+SUMIFS('PdI-crono_inv'!AX:AX,'PdI-crono_inv'!CF:CF,F175,'PdI-crono_inv'!CE:CE,H175,'PdI-crono_inv'!J:J,P175,'PdI-crono_inv'!P:P,\"<>proprietario\")+S175","v":0},null,null,"RES",{"$f":"+VLOOKUP(F175,TT_Tabelle_Riferimento!$D$127:$E$164,2,FALSE)","v":"Depurazione"},"",0]
[0,0,"Gestore",0,"IP",21,{"$f":"+VLOOKUP(F176,TT_Tabelle_Riferimento!$D$127:$G$164,4,FALSE)","v":"Impianti di depurazione – trattamenti sino al preliminare, integrativo, primario - fosse settiche e fosse Imhoff"},2,{"$f":"+VLOOKUP(H176,TT_Tabelle_Riferimento!$F$3:$G$6,2,FALSE)","v":"Fognatura bianca e pulizia / manutenzione caditoie stradali"},2026,{"$f":"+SUMIFS('PdI-crono_inv'!AW:AW,'PdI-crono_inv'!CF:CF,F176,'PdI-crono_inv'!CE:CE,H176,'PdI-crono_inv'!J:J,P176,'PdI-crono_inv'!P:P,\"<>proprietario\")","v":0},null,{"$f":"+SUMIFS('PdI-crono_inv'!AX:AX,'PdI-crono_inv'!CF:CF,F176,'PdI-crono_inv'!CE:CE,H176,'PdI-crono_inv'!J:J,P176,'PdI-crono_inv'!P:P,\"<>proprietario\")+S176","v":0},null,null,"RES",{"$f":"+VLOOKUP(F176,TT_Tabelle_Riferimento!$D$127:$E$164,2,FALSE)","v":"Depurazione"},"",0]
[0,0,"Gestore",0,"IP",22,{"$f":"+VLOOKUP(F177,TT_Tabelle_Riferimento!$D$127:$G$164,4,FALSE)","v":"Impianti di depurazione – trattamenti sino al secondario"},2,{"$f":"+VLOOKUP(H177,TT_Tabelle_Riferimento!$F$3:$G$6,2,FALSE)","v":"Fognatura bianca e pulizia / manutenzione caditoie stradali"},2026,{"$f":"+SUMIFS('PdI-crono_inv'!AW:AW,'PdI-crono_inv'!CF:CF,F177,'PdI-crono_inv'!CE:CE,H177,'PdI-crono_inv'!J:J,P177,'PdI-crono_inv'!P:P,\"<>proprietario\")","v":0},null,{"$f":"+SUMIFS('PdI-crono_inv'!AX:AX,'PdI-crono_inv'!CF:CF,F177,'PdI-crono_inv'!CE:CE,H177,'PdI-crono_inv'!J:J,P177,'PdI-crono_inv'!P:P,\"<>proprietario\")+S177","v":0},null,null,"RES",{"$f":"+VLOOKUP(F177,TT_Tabelle_Riferimento!$D$127:$E$164,2,FALSE)","v":"Depurazione"},"",0]
[0,0,"Gestore",0,"IP",23,{"$f":"+VLOOKUP(F178,TT_Tabelle_Riferimento!$D$127:$G$164,4,FALSE)","v":"Impianti di depurazione – trattamenti sino al terziario e terziario avanzato"},2,{"$f":"+VLOOKUP(H178,TT_Tabelle_Riferimento!$F$3:$G$6,2,FALSE)","v":"Fognatura bianca e pulizia / manutenzione caditoie stradali"},2026,{"$f":"+SUMIFS('PdI-crono_inv'!AW:AW,'PdI-crono_inv'!CF:CF,F178,'PdI-crono_inv'!CE:CE,H178,'PdI-crono_inv'!J:J,P178,'PdI-crono_inv'!P:P,\"<>proprietario\")","v":0},null,{"$f":"+SUMIFS('PdI-crono_inv'!AX:AX,'PdI-crono_inv'!CF:CF,F178,'PdI-crono_inv'!CE:CE,H178,'PdI-crono_inv'!J:J,P178,'PdI-crono_inv'!P:P,\"<>proprietario\")+S178","v":0},null,null,"RES",{"$f":"+VLOOKUP(F178,TT_Tabelle_Riferimento!$D$127:$E$164,2,FALSE)","v":"Depurazione"},"",0]
[0,0,"Gestore",0,"IP",24,{"$f":"+VLOOKUP(F179,TT_Tabelle_Riferimento!$D$127:$G$164,4,FALSE)","v":"Impianti di essiccamento fanghi e di valorizzazione dei fanghi (tra cui mono-incenerimento, pirolisi, gassificazione)"},2,{"$f":"+VLOOKUP(H179,TT_Tabelle_Riferimento!$F$3:$G$6,2,FALSE)","v":"Fognatura bianca e pulizia / manutenzione caditoie stradali"},2026,{"$f":"+SUMIFS('PdI-crono_inv'!AW:AW,'PdI-crono_inv'!CF:CF,F179,'PdI-crono_inv'!CE:CE,H179,'PdI-crono_inv'!J:J,P179,'PdI-crono_inv'!P:P,\"<>proprietario\")","v":0},null,{"$f":"+SUMIFS('PdI-crono_inv'!AX:AX,'PdI-crono_inv'!CF:CF,F179,'PdI-crono_inv'!CE:CE,H179,'PdI-crono_inv'!J:J,P179,'PdI-crono_inv'!P:P,\"<>proprietario\")+S179","v":0},null,null,"RES",{"$f":"+VLOOKUP(F179,TT_Tabelle_Riferimento!$D$127:$E$164,2,FALSE)","v":"Depurazione"},"",0]
[0,0,"Gestore",0,"IP",25,{"$f":"+VLOOKUP(F180,TT_Tabelle_Riferimento!$D$127:$G$164,4,FALSE)","v":"Gruppi di misura - altre attrezzature di depurazione"},2,{"$f":"+VLOOKUP(H180,TT_Tabelle_Riferimento!$F$3:$G$6,2,FALSE)","v":"Fognatura bianca e pulizia / manutenzione caditoie stradali"},2026,{"$f":"+SUMIFS('PdI-crono_inv'!AW:AW,'PdI-crono_inv'!CF:CF,F180,'PdI-crono_inv'!CE:CE,H180,'PdI-crono_inv'!J:J,P180,'PdI-crono_inv'!P:P,\"<>proprietario\")","v":0},null,{"$f":"+SUMIFS('PdI-crono_inv'!AX:AX,'PdI-crono_inv'!CF:CF,F180,'PdI-crono_inv'!CE:CE,H180,'PdI-crono_inv'!J:J,P180,'PdI-crono_inv'!P:P,\"<>proprietario\")+S180","v":0},null,null,"RES",{"$f":"+VLOOKUP(F180,TT_Tabelle_Riferimento!$D$127:$E$164,2,FALSE)","v":"Depurazione"},"",0]
[0,0,"Gestore",0,"IP",26,{"$f":"+VLOOKUP(F181,TT_Tabelle_Riferimento!$D$127:$G$164,4,FALSE)","v":"Sistemi informativi di depurazione"},2,{"$f":"+VLOOKUP(H181,TT_Tabelle_Riferimento!$F$3:$G$6,2,FALSE)","v":"Fognatura bianca e pulizia / manutenzione caditoie stradali"},2026,{"$f":"+SUMIFS('PdI-crono_inv'!AW:AW,'PdI-crono_inv'!CF:CF,F181,'PdI-crono_inv'!CE:CE,H181,'PdI-crono_inv'!J:J,P181,'PdI-crono_inv'!P:P,\"<>proprietario\")","v":0},null,{"$f":"+SUMIFS('PdI-crono_inv'!AX:AX,'PdI-crono_inv'!CF:CF,F181,'PdI-crono_inv'!CE:CE,H181,'PdI-crono_inv'!J:J,P181,'PdI-crono_inv'!P:P,\"<>proprietario\")+S181","v":0},null,null,"RES",{"$f":"+VLOOKUP(F181,TT_Tabelle_Riferimento!$D$127:$E$164,2,FALSE)","v":"Depurazione"},"",0]
[0,0,"Gestore",0,"IP",27,{"$f":"+VLOOKUP(F182,TT_Tabelle_Riferimento!$D$127:$G$164,4,FALSE)","v":"Telecontrollo e teletrasmissione di depurazione"},2,{"$f":"+VLOOKUP(H182,TT_Tabelle_Riferimento!$F$3:$G$6,2,FALSE)","v":"Fognatura bianca e pulizia / manutenzione caditoie stradali"},2026,{"$f":"+SUMIFS('PdI-crono_inv'!AW:AW,'PdI-crono_inv'!CF:CF,F182,'PdI-crono_inv'!CE:CE,H182,'PdI-crono_inv'!J:J,P182,'PdI-crono_inv'!P:P,\"<>proprietario\")","v":0},null,{"$f":"+SUMIFS('PdI-crono_inv'!AX:AX,'PdI-crono_inv'!CF:CF,F182,'PdI-crono_inv'!CE:CE,H182,'PdI-crono_inv'!J:J,P182,'PdI-crono_inv'!P:P,\"<>proprietario\")+S182","v":0},null,null,"RES",{"$f":"+VLOOKUP(F182,TT_Tabelle_Riferimento!$D$127:$E$164,2,FALSE)","v":"Depurazione"},"",0]
[0,0,"Gestore",0,"IP",28,{"$f":"+VLOOKUP(F183,TT_Tabelle_Riferimento!$D$127:$G$164,4,FALSE)","v":"Altri impianti"},2,{"$f":"+VLOOKUP(H183,TT_Tabelle_Riferimento!$F$3:$G$6,2,FALSE)","v":"Fognatura bianca e pulizia / manutenzione caditoie stradali"},2026,{"$f":"+SUMIFS('PdI-crono_inv'!AW:AW,'PdI-crono_inv'!CF:CF,F183,'PdI-crono_inv'!CE:CE,H183,'PdI-crono_inv'!J:J,P183,'PdI-crono_inv'!P:P,\"<>proprietario\")","v":0},null,{"$f":"+SUMIFS('PdI-crono_inv'!AX:AX,'PdI-crono_inv'!CF:CF,F183,'PdI-crono_inv'!CE:CE,H183,'PdI-crono_inv'!J:J,P183,'PdI-crono_inv'!P:P,\"<>proprietario\")+S183","v":0},null,null,"RES",{"$f":"+VLOOKUP(F183,TT_Tabelle_Riferimento!$D$127:$E$164,2,FALSE)","v":"Comune"},"",0]
[0,0,"Gestore",0,"IP",29,{"$f":"+VLOOKUP(F184,TT_Tabelle_Riferimento!$D$127:$G$164,4,FALSE)","v":"Laboratori e attrezzature"},2,{"$f":"+VLOOKUP(H184,TT_Tabelle_Riferimento!$F$3:$G$6,2,FALSE)","v":"Fognatura bianca e pulizia / manutenzione caditoie stradali"},2026,{"$f":"+SUMIFS('PdI-crono_inv'!AW:AW,'PdI-crono_inv'!CF:CF,F184,'PdI-crono_inv'!CE:CE,H184,'PdI-crono_inv'!J:J,P184,'PdI-crono_inv'!P:P,\"<>proprietario\")","v":0},null,{"$f":"+SUMIFS('PdI-crono_inv'!AX:AX,'PdI-crono_inv'!CF:CF,F184,'PdI-crono_inv'!CE:CE,H184,'PdI-crono_inv'!J:J,P184,'PdI-crono_inv'!P:P,\"<>proprietario\")+S184","v":0},null,null,"RES",{"$f":"+VLOOKUP(F184,TT_Tabelle_Riferimento!$D$127:$E$164,2,FALSE)","v":"Comune"},"",0]
[0,0,"Gestore",0,"IP",30,{"$f":"+VLOOKUP(F185,TT_Tabelle_Riferimento!$D$127:$G$164,4,FALSE)","v":"Sistemi informativi"},2,{"$f":"+VLOOKUP(H185,TT_Tabelle_Riferimento!$F$3:$G$6,2,FALSE)","v":"Fognatura bianca e pulizia / manutenzione caditoie stradali"},2026,{"$f":"+SUMIFS('PdI-crono_inv'!AW:AW,'PdI-crono_inv'!CF:CF,F185,'PdI-crono_inv'!CE:CE,H185,'PdI-crono_inv'!J:J,P185,'PdI-crono_inv'!P:P,\"<>proprietario\")","v":0},null,{"$f":"+SUMIFS('PdI-crono_inv'!AX:AX,'PdI-crono_inv'!CF:CF,F185,'PdI-crono_inv'!CE:CE,H185,'PdI-crono_inv'!J:J,P185,'PdI-crono_inv'!P:P,\"<>proprietario\")+S185","v":0},null,null,"RES",{"$f":"+VLOOKUP(F185,TT_Tabelle_Riferimento!$D$127:$E$164,2,FALSE)","v":"Comune"},"",0]
[0,0,"Gestore",0,"IP",31,{"$f":"+VLOOKUP(F186,TT_Tabelle_Riferimento!$D$127:$G$164,4,FALSE)","v":"Telecontrollo e teletrasmissione"},2,{"$f":"+VLOOKUP(H186,TT_Tabelle_Riferimento!$F$3:$G$6,2,FALSE)","v":"Fognatura bianca e pulizia / manutenzione caditoie stradali"},2026,{"$f":"+SUMIFS('PdI-crono_inv'!AW:AW,'PdI-crono_inv'!CF:CF,F186,'PdI-crono_inv'!CE:CE,H186,'PdI-crono_inv'!J:J,P186,'PdI-crono_inv'!P:P,\"<>proprietario\")","v":0},null,{"$f":"+SUMIFS('PdI-crono_inv'!AX:AX,'PdI-crono_inv'!CF:CF,F186,'PdI-crono_inv'!CE:CE,H186,'PdI-crono_inv'!J:J,P186,'PdI-crono_inv'!P:P,\"<>proprietario\")+S186","v":0},null,null,"RES",{"$f":"+VLOOKUP(F186,TT_Tabelle_Riferimento!$D$127:$E$164,2,FALSE)","v":"Comune"},"",0]
[0,0,"Gestore",0,"IP",32,{"$f":"+VLOOKUP(F187,TT_Tabelle_Riferimento!$D$127:$G$164,4,FALSE)","v":"Autoveicoli - automezzi"},2,{"$f":"+VLOOKUP(H187,TT_Tabelle_Riferimento!$F$3:$G$6,2,FALSE)","v":"Fognatura bianca e pulizia / manutenzione caditoie stradali"},2026,{"$f":"+SUMIFS('PdI-crono_inv'!AW:AW,'PdI-crono_inv'!CF:CF,F187,'PdI-crono_inv'!CE:CE,H187,'PdI-crono_inv'!J:J,P187,'PdI-crono_inv'!P:P,\"<>proprietario\")","v":0},null,{"$f":"+SUMIFS('PdI-crono_inv'!AX:AX,'PdI-crono_inv'!CF:CF,F187,'PdI-crono_inv'!CE:CE,H187,'PdI-crono_inv'!J:J,P187,'PdI-crono_inv'!P:P,\"<>proprietario\")+S187","v":0},null,null,"RES",{"$f":"+VLOOKUP(F187,TT_Tabelle_Riferimento!$D$127:$E$164,2,FALSE)","v":"Comune"},"",0]
[0,0,"Gestore",0,"IP",1,{"$f":"+VLOOKUP(F188,TT_Tabelle_Riferimento!$D$127:$G$164,4,FALSE)","v":"Terreni"},2,{"$f":"+VLOOKUP(H188,TT_Tabelle_Riferimento!$F$3:$G$6,2,FALSE)","v":"Fognatura bianca e pulizia / manutenzione caditoie stradali"},2026,{"$f":"+SUMIFS('PdI-crono_inv'!AW:AW,'PdI-crono_inv'!CF:CF,F188,'PdI-crono_inv'!CE:CE,H188,'PdI-crono_inv'!J:J,P188,'PdI-crono_inv'!P:P,\"<>proprietario\")","v":0},null,{"$f":"+SUMIFS('PdI-crono_inv'!AX:AX,'PdI-crono_inv'!CF:CF,F188,'PdI-crono_inv'!CE:CE,H188,'PdI-crono_inv'!J:J,P188,'PdI-crono_inv'!P:P,\"<>proprietario\")+S188","v":0},null,null,"RES",{"$f":"+VLOOKUP(F188,TT_Tabelle_Riferimento!$D$127:$E$164,2,FALSE)","v":"Comune"},"",0]
[0,0,"Gestore",0,"IP",33,{"$f":"+VLOOKUP(F189,TT_Tabelle_Riferimento!$D$127:$G$164,4,FALSE)","v":"Fabbricati non industriali"},2,{"$f":"+VLOOKUP(H189,TT_Tabelle_Riferimento!$F$3:$G$6,2,FALSE)","v":"Fognatura bianca e pulizia / manutenzione caditoie stradali"},2026,{"$f":"+SUMIFS('PdI-crono_inv'!AW:AW,'PdI-crono_inv'!CF:CF,F189,'PdI-crono_inv'!CE:CE,H189,'PdI-crono_inv'!J:J,P189,'PdI-crono_inv'!P:P,\"<>proprietario\")","v":0},null,{"$f":"+SUMIFS('PdI-crono_inv'!AX:AX,'PdI-crono_inv'!CF:CF,F189,'PdI-crono_inv'!CE:CE,H189,'PdI-crono_inv'!J:J,P189,'PdI-crono_inv'!P:P,\"<>proprietario\")+S189","v":0},null,null,"RES",{"$f":"+VLOOKUP(F189,TT_Tabelle_Riferimento!$D$127:$E$164,2,FALSE)","v":"Comune"},"",0]
[0,0,"Gestore",0,"IP",34,{"$f":"+VLOOKUP(F190,TT_Tabelle_Riferimento!$D$127:$G$164,4,FALSE)","v":"Fabbricati industriali"},2,{"$f":"+VLOOKUP(H190,TT_Tabelle_Riferimento!$F$3:$G$6,2,FALSE)","v":"Fognatura bianca e pulizia / manutenzione caditoie stradali"},2026,{"$f":"+SUMIFS('PdI-crono_inv'!AW:AW,'PdI-crono_inv'!CF:CF,F190,'PdI-crono_inv'!CE:CE,H190,'PdI-crono_inv'!J:J,P190,'PdI-crono_inv'!P:P,\"<>proprietario\")","v":0},null,{"$f":"+SUMIFS('PdI-crono_inv'!AX:AX,'PdI-crono_inv'!CF:CF,F190,'PdI-crono_inv'!CE:CE,H190,'PdI-crono_inv'!J:J,P190,'PdI-crono_inv'!P:P,\"<>proprietario\")+S190","v":0},null,null,"RES",{"$f":"+VLOOKUP(F190,TT_Tabelle_Riferimento!$D$127:$E$164,2,FALSE)","v":"Comune"},"",0]
[0,0,"Gestore",0,"IP",35,{"$f":"+VLOOKUP(F191,TT_Tabelle_Riferimento!$D$127:$G$164,4,FALSE)","v":"Costruzioni leggere"},2,{"$f":"+VLOOKUP(H191,TT_Tabelle_Riferimento!$F$3:$G$6,2,FALSE)","v":"Fognatura bianca e pulizia / manutenzione caditoie stradali"},2026,{"$f":"+SUMIFS('PdI-crono_inv'!AW:AW,'PdI-crono_inv'!CF:CF,F191,'PdI-crono_inv'!CE:CE,H191,'PdI-crono_inv'!J:J,P191,'PdI-crono_inv'!P:P,\"<>proprietario\")","v":0},null,{"$f":"+SUMIFS('PdI-crono_inv'!AX:AX,'PdI-crono_inv'!CF:CF,F191,'PdI-crono_inv'!CE:CE,H191,'PdI-crono_inv'!J:J,P191,'PdI-crono_inv'!P:P,\"<>proprietario\")+S191","v":0},null,null,"RES",{"$f":"+VLOOKUP(F191,TT_Tabelle_Riferimento!$D$127:$E$164,2,FALSE)","v":"Comune"},"",0]
[0,0,"Gestore",0,"IP",36,{"$f":"+VLOOKUP(F192,TT_Tabelle_Riferimento!$D$127:$G$164,4,FALSE)","v":"Studi, ricerche, brevetti, diritti di utilizzazione"},2,{"$f":"+VLOOKUP(H192,TT_Tabelle_Riferimento!$F$3:$G$6,2,FALSE)","v":"Fognatura bianca e pulizia / manutenzione caditoie stradali"},2026,{"$f":"+SUMIFS('PdI-crono_inv'!AW:AW,'PdI-crono_inv'!CF:CF,F192,'PdI-crono_inv'!CE:CE,H192,'PdI-crono_inv'!J:J,P192,'PdI-crono_inv'!P:P,\"<>proprietario\")","v":0},null,{"$f":"+SUMIFS('PdI-crono_inv'!AX:AX,'PdI-crono_inv'!CF:CF,F192,'PdI-crono_inv'!CE:CE,H192,'PdI-crono_inv'!J:J,P192,'PdI-crono_inv'!P:P,\"<>proprietario\")+S192","v":0},null,null,"RES",{"$f":"+VLOOKUP(F192,TT_Tabelle_Riferimento!$D$127:$E$164,2,FALSE)","v":"Comune"},"",0]
[0,0,"Gestore",0,"IP",37,{"$f":"+VLOOKUP(F193,TT_Tabelle_Riferimento!$D$127:$G$164,4,FALSE)","v":"Altre immobilizzazioni materiali e immateriali"},2,{"$f":"+VLOOKUP(H193,TT_Tabelle_Riferimento!$F$3:$G$6,2,FALSE)","v":"Fognatura bianca e pulizia / manutenzione caditoie stradali"},2026,{"$f":"+SUMIFS('PdI-crono_inv'!AW:AW,'PdI-crono_inv'!CF:CF,F193,'PdI-crono_inv'!CE:CE,H193,'PdI-crono_inv'!J:J,P193,'PdI-crono_inv'!P:P,\"<>proprietario\")","v":0},null,{"$f":"+SUMIFS('PdI-crono_inv'!AX:AX,'PdI-crono_inv'!CF:CF,F193,'PdI-crono_inv'!CE:CE,H193,'PdI-crono_inv'!J:J,P193,'PdI-crono_inv'!P:P,\"<>proprietario\")+S193","v":0},null,null,"RES",{"$f":"+VLOOKUP(F193,TT_Tabelle_Riferimento!$D$127:$E$164,2,FALSE)","v":"Comune"},"",0]
[0,0,"Gestore",0,"IP",38,{"$f":"+VLOOKUP(F194,TT_Tabelle_Riferimento!$D$127:$G$164,4,FALSE)","v":"Grandi dighe (sbarramenti che superano i quindici metri di altezza o che determinano un invaso superiore a 1 milione di metri cubi)"},2,{"$f":"+VLOOKUP(H194,TT_Tabelle_Riferimento!$F$3:$G$6,2,FALSE)","v":"Fognatura bianca e pulizia / manutenzione caditoie stradali"},2026,{"$f":"+SUMIFS('PdI-crono_inv'!AW:AW,'PdI-crono_inv'!CF:CF,F194,'PdI-crono_inv'!CE:CE,H194,'PdI-crono_inv'!J:J,P194,'PdI-crono_inv'!P:P,\"<>proprietario\")","v":0},null,{"$f":"+SUMIFS('PdI-crono_inv'!AX:AX,'PdI-crono_inv'!CF:CF,F194,'PdI-crono_inv'!CE:CE,H194,'PdI-crono_inv'!J:J,P194,'PdI-crono_inv'!P:P,\"<>proprietario\")+S194","v":0},null,null,"RES",{"$f":"+VLOOKUP(F194,TT_Tabelle_Riferimento!$D$127:$E$164,2,FALSE)","v":"Acquedotto"},"",0]
[0,0,"Gestore",0,"IP",39,{"$f":"+VLOOKUP(F195,TT_Tabelle_Riferimento!$D$127:$G$164,4,FALSE)","v":"Piccole dighe (sbarramenti che non superano i quindici metri di altezza o che determinano un invaso non superiore a 1 milione di metri cubi)"},2,{"$f":"+VLOOKUP(H195,TT_Tabelle_Riferimento!$F$3:$G$6,2,FALSE)","v":"Fognatura bianca e pulizia / manutenzione caditoie stradali"},2026,{"$f":"+SUMIFS('PdI-crono_inv'!AW:AW,'PdI-crono_inv'!CF:CF,F195,'PdI-crono_inv'!CE:CE,H195,'PdI-crono_inv'!J:J,P195,'PdI-crono_inv'!P:P,\"<>proprietario\")","v":0},null,{"$f":"+SUMIFS('PdI-crono_inv'!AX:AX,'PdI-crono_inv'!CF:CF,F195,'PdI-crono_inv'!CE:CE,H195,'PdI-crono_inv'!J:J,P195,'PdI-crono_inv'!P:P,\"<>proprietario\")+S195","v":0},null,null,"RES",{"$f":"+VLOOKUP(F195,TT_Tabelle_Riferimento!$D$127:$E$164,2,FALSE)","v":"Acquedotto"},"",0]
[{"$f":"+idato","v":0},{"$f":"+idgestore","v":0},"Gestore",0,"IP",2,{"$f":"+VLOOKUP(F196,TT_Tabelle_Riferimento!$D$127:$G$164,4,FALSE)","v":"Condotte di acquedotto"},3,{"$f":"+VLOOKUP(H196,TT_Tabelle_Riferimento!$F$3:$G$6,2,FALSE)","v":"Altri servizi idrici"},2026,{"$f":"+SUMIFS('PdI-crono_inv'!AW:AW,'PdI-crono_inv'!CF:CF,F196,'PdI-crono_inv'!CE:CE,H196,'PdI-crono_inv'!J:J,P196,'PdI-crono_inv'!P:P,\"<>proprietario\")","v":0},null,{"$f":"+SUMIFS('PdI-crono_inv'!AX:AX,'PdI-crono_inv'!CF:CF,F196,'PdI-crono_inv'!CE:CE,H196,'PdI-crono_inv'!J:J,P196,'PdI-crono_inv'!P:P,\"<>proprietario\")+S196","v":0},null,null,"RES",{"$f":"+VLOOKUP(F196,TT_Tabelle_Riferimento!$D$127:$E$164,2,FALSE)","v":"Acquedotto"},"",0]
[0,0,"Gestore",0,"IP",3,{"$f":"+VLOOKUP(F197,TT_Tabelle_Riferimento!$D$127:$G$164,4,FALSE)","v":"Opere idrauliche fisse di acquedotto"},3,{"$f":"+VLOOKUP(H197,TT_Tabelle_Riferimento!$F$3:$G$6,2,FALSE)","v":"Altri servizi idrici"},2026,{"$f":"+SUMIFS('PdI-crono_inv'!AW:AW,'PdI-crono_inv'!CF:CF,F197,'PdI-crono_inv'!CE:CE,H197,'PdI-crono_inv'!J:J,P197,'PdI-crono_inv'!P:P,\"<>proprietario\")","v":0},null,{"$f":"+SUMIFS('PdI-crono_inv'!AX:AX,'PdI-crono_inv'!CF:CF,F197,'PdI-crono_inv'!CE:CE,H197,'PdI-crono_inv'!J:J,P197,'PdI-crono_inv'!P:P,\"<>proprietario\")+S197","v":0},null,null,"RES",{"$f":"+VLOOKUP(F197,TT_Tabelle_Riferimento!$D$127:$E$164,2,FALSE)","v":"Acquedotto"},"",0]
[0,0,"Gestore",0,"IP",4,{"$f":"+VLOOKUP(F198,TT_Tabelle_Riferimento!$D$127:$G$164,4,FALSE)","v":"Serbatoi"},3,{"$f":"+VLOOKUP(H198,TT_Tabelle_Riferimento!$F$3:$G$6,2,FALSE)","v":"Altri servizi idrici"},2026,{"$f":"+SUMIFS('PdI-crono_inv'!AW:AW,'PdI-crono_inv'!CF:CF,F198,'PdI-crono_inv'!CE:CE,H198,'PdI-crono_inv'!J:J,P198,'PdI-crono_inv'!P:P,\"<>proprietario\")","v":0},null,{"$f":"+SUMIFS('PdI-crono_inv'!AX:AX,'PdI-crono_inv'!CF:CF,F198,'PdI-crono_inv'!CE:CE,H198,'PdI-crono_inv'!J:J,P198,'PdI-crono_inv'!P:P,\"<>proprietario\")+S198","v":0},null,null,"RES",{"$f":"+VLOOKUP(F198,TT_Tabelle_Riferimento!$D$127:$E$164,2,FALSE)","v":"Acquedotto"},"",0]
[0,0,"Gestore",0,"IP",5,{"$f":"+VLOOKUP(F199,TT_Tabelle_Riferimento!$D$127:$G$164,4,FALSE)","v":"Impianti di sollevamento e pompaggio di acquedotto"},3,{"$f":"+VLOOKUP(H199,TT_Tabelle_Riferimento!$F$3:$G$6,2,FALSE)","v":"Altri servizi idrici"},2026,{"$f":"+SUMIFS('PdI-crono_inv'!AW:AW,'PdI-crono_inv'!CF:CF,F199,'PdI-crono_inv'!CE:CE,H199,'PdI-crono_inv'!J:J,P199,'PdI-crono_inv'!P:P,\"<>proprietario\")","v":0},null,{"$f":"+SUMIFS('PdI-crono_inv'!AX:AX,'PdI-crono_inv'!CF:CF,F199,'PdI-crono_inv'!CE:CE,H199,'PdI-crono_inv'!J:J,P199,'PdI-crono_inv'!P:P,\"<>proprietario\")+S199","v":0},null,null,"RES",{"$f":"+VLOOKUP(F199,TT_Tabelle_Riferimento!$D$127:$E$164,2,FALSE)","v":"Acquedotto"},"",{"$f":"+IFERROR(HLOOKUP(J199,$X$2:$Y$5,4,FALSE)*K199,0)","v":0}]
[0,0,"Gestore",0,"IP",6,{"$f":"+VLOOKUP(F200,TT_Tabelle_Riferimento!$D$127:$G$164,4,FALSE)","v":"Impianti di potabilizzazione"},3,{"$f":"+VLOOKUP(H200,TT_Tabelle_Riferimento!$F$3:$G$6,2,FALSE)","v":"Altri servizi idrici"},2026,{"$f":"+SUMIFS('PdI-crono_inv'!AW:AW,'PdI-crono_inv'!CF:CF,F200,'PdI-crono_inv'!CE:CE,H200,'PdI-crono_inv'!J:J,P200,'PdI-crono_inv'!P:P,\"<>proprietario\")","v":0},null,{"$f":"+SUMIFS('PdI-crono_inv'!AX:AX,'PdI-crono_inv'!CF:CF,F200,'PdI-crono_inv'!CE:CE,H200,'PdI-crono_inv'!J:J,P200,'PdI-crono_inv'!P:P,\"<>proprietario\")+S200","v":0},null,null,"RES",{"$f":"+VLOOKUP(F200,TT_Tabelle_Riferimento!$D$127:$E$164,2,FALSE)","v":"Acquedotto"},"",0]
[0,0,"Gestore",0,"IP",7,{"$f":"+VLOOKUP(F201,TT_Tabelle_Riferimento!$D$127:$G$164,4,FALSE)","v":"Altri trattamenti di potabilizzazione (tra cui dispositivi di disinfezione, stacciatura, filtrazione, addolcimento)"},3,{"$f":"+VLOOKUP(H201,TT_Tabelle_Riferimento!$F$3:$G$6,2,FALSE)","v":"Altri servizi idrici"},2026,{"$f":"+SUMIFS('PdI-crono_inv'!AW:AW,'PdI-crono_inv'!CF:CF,F201,'PdI-crono_inv'!CE:CE,H201,'PdI-crono_inv'!J:J,P201,'PdI-crono_inv'!P:P,\"<>proprietario\")","v":0},null,{"$f":"+SUMIFS('PdI-crono_inv'!AX:AX,'PdI-crono_inv'!CF:CF,F201,'PdI-crono_inv'!CE:CE,H201,'PdI-crono_inv'!J:J,P201,'PdI-crono_inv'!P:P,\"<>proprietario\")+S201","v":0},null,null,"RES",{"$f":"+VLOOKUP(F201,TT_Tabelle_Riferimento!$D$127:$E$164,2,FALSE)","v":"Acquedotto"},"",0]
[0,0,"Gestore",0,"IP",8,{"$f":"+VLOOKUP(F202,TT_Tabelle_Riferimento!$D$127:$G$164,4,FALSE)","v":"Gruppi di misura - altre attrezzature di acquedotto"},3,{"$f":"+VLOOKUP(H202,TT_Tabelle_Riferimento!$F$3:$G$6,2,FALSE)","v":"Altri servizi idrici"},2026,{"$f":"+SUMIFS('PdI-crono_inv'!AW:AW,'PdI-crono_inv'!CF:CF,F202,'PdI-crono_inv'!CE:CE,H202,'PdI-crono_inv'!J:J,P202,'PdI-crono_inv'!P:P,\"<>proprietario\")","v":0},null,{"$f":"+SUMIFS('PdI-crono_inv'!AX:AX,'PdI-crono_inv'!CF:CF,F202,'PdI-crono_inv'!CE:CE,H202,'PdI-crono_inv'!J:J,P202,'PdI-crono_inv'!P:P,\"<>proprietario\")+S202","v":0},null,null,"RES",{"$f":"+VLOOKUP(F202,TT_Tabelle_Riferimento!$D$127:$E$164,2,FALSE)","v":"Acquedotto"},"",0]
[0,0,"Gestore",0,"IP",9,{"$f":"+VLOOKUP(F203,TT_Tabelle_Riferimento!$D$127:$G$164,4,FALSE)","v":"Sistemi informativi di acquedotto"},3,{"$f":"+VLOOKUP(H203,TT_Tabelle_Riferimento!$F$3:$G$6,2,FALSE)","v":"Altri servizi idrici"},2026,{"$f":"+SUMIFS('PdI-crono_inv'!AW:AW,'PdI-crono_inv'!CF:CF,F203,'PdI-crono_inv'!CE:CE,H203,'PdI-crono_inv'!J:J,P203,'PdI-crono_inv'!P:P,\"<>proprietario\")","v":0},null,{"$f":"+SUMIFS('PdI-crono_inv'!AX:AX,'PdI-crono_inv'!CF:CF,F203,'PdI-crono_inv'!CE:CE,H203,'PdI-crono_inv'!J:J,P203,'PdI-crono_inv'!P:P,\"<>proprietario\")+S203","v":0},null,null,"RES",{"$f":"+VLOOKUP(F203,TT_Tabelle_Riferimento!$D$127:$E$164,2,FALSE)","v":"Acquedotto"},"",0]
[0,0,"Gestore",0,"IP",10,{"$f":"+VLOOKUP(F204,TT_Tabelle_Riferimento!$D$127:$G$164,4,FALSE)","v":"Telecontrollo e teletrasmissione di acquedotto"},3,{"$f":"+VLOOKUP(H204,TT_Tabelle_Riferimento!$F$3:$G$6,2,FALSE)","v":"Altri servizi idrici"},2026,{"$f":"+SUMIFS('PdI-crono_inv'!AW:AW,'PdI-crono_inv'!CF:CF,F204,'PdI-crono_inv'!CE:CE,H204,'PdI-crono_inv'!J:J,P204,'PdI-crono_inv'!P:P,\"<>proprietario\")","v":0},null,{"$f":"+SUMIFS('PdI-crono_inv'!AX:AX,'PdI-crono_inv'!CF:CF,F204,'PdI-crono_inv'!CE:CE,H204,'PdI-crono_inv'!J:J,P204,'PdI-crono_inv'!P:P,\"<>proprietario\")+S204","v":0},null,null,"RES",{"$f":"+VLOOKUP(F204,TT_Tabelle_Riferimento!$D$127:$E$164,2,FALSE)","v":"Acquedotto"},"",0]
[0,0,"Gestore",0,"IP",11,{"$f":"+VLOOKUP(F205,TT_Tabelle_Riferimento!$D$127:$G$164,4,FALSE)","v":"Condotte fognarie"},3,{"$f":"+VLOOKUP(H205,TT_Tabelle_Riferimento!$F$3:$G$6,2,FALSE)","v":"Altri servizi idrici"},2026,{"$f":"+SUMIFS('PdI-crono_inv'!AW:AW,'PdI-crono_inv'!CF:CF,F205,'PdI-crono_inv'!CE:CE,H205,'PdI-crono_inv'!J:J,P205,'PdI-crono_inv'!P:P,\"<>proprietario\")","v":0},null,{"$f":"+SUMIFS('PdI-crono_inv'!AX:AX,'PdI-crono_inv'!CF:CF,F205,'PdI-crono_inv'!CE:CE,H205,'PdI-crono_inv'!J:J,P205,'PdI-crono_inv'!P:P,\"<>proprietario\")+S205","v":0},null,null,"RES",{"$f":"+VLOOKUP(F205,TT_Tabelle_Riferimento!$D$127:$E$164,2,FALSE)","v":"Fognatura"},"",0]
[0,0,"Gestore",0,"IP",12,{"$f":"+VLOOKUP(F206,TT_Tabelle_Riferimento!$D$127:$G$164,4,FALSE)","v":"Sifoni e scaricatori di piena e altre opere idrauliche fisse di fognatura"},3,{"$f":"+VLOOKUP(H206,TT_Tabelle_Riferimento!$F$3:$G$6,2,FALSE)","v":"Altri servizi idrici"},2026,{"$f":"+SUMIFS('PdI-crono_inv'!AW:AW,'PdI-crono_inv'!CF:CF,F206,'PdI-crono_inv'!CE:CE,H206,'PdI-crono_inv'!J:J,P206,'PdI-crono_inv'!P:P,\"<>proprietario\")","v":0},null,{"$f":"+SUMIFS('PdI-crono_inv'!AX:AX,'PdI-crono_inv'!CF:CF,F206,'PdI-crono_inv'!CE:CE,H206,'PdI-crono_inv'!J:J,P206,'PdI-crono_inv'!P:P,\"<>proprietario\")+S206","v":0},null,null,"RES",{"$f":"+VLOOKUP(F206,TT_Tabelle_Riferimento!$D$127:$E$164,2,FALSE)","v":"Fognatura"},"",0]
[0,0,"Gestore",0,"IP",13,{"$f":"+VLOOKUP(F207,TT_Tabelle_Riferimento!$D$127:$G$164,4,FALSE)","v":"Vasche di laminazione e vasche di prima pioggia"},3,{"$f":"+VLOOKUP(H207,TT_Tabelle_Riferimento!$F$3:$G$6,2,FALSE)","v":"Altri servizi idrici"},2026,{"$f":"+SUMIFS('PdI-crono_inv'!AW:AW,'PdI-crono_inv'!CF:CF,F207,'PdI-crono_inv'!CE:CE,H207,'PdI-crono_inv'!J:J,P207,'PdI-crono_inv'!P:P,\"<>proprietario\")","v":0},null,{"$f":"+SUMIFS('PdI-crono_inv'!AX:AX,'PdI-crono_inv'!CF:CF,F207,'PdI-crono_inv'!CE:CE,H207,'PdI-crono_inv'!J:J,P207,'PdI-crono_inv'!P:P,\"<>proprietario\")+S207","v":0},null,null,"RES",{"$f":"+VLOOKUP(F207,TT_Tabelle_Riferimento!$D$127:$E$164,2,FALSE)","v":"Fognatura"},"",0]
[0,0,"Gestore",0,"IP",14,{"$f":"+VLOOKUP(F208,TT_Tabelle_Riferimento!$D$127:$G$164,4,FALSE)","v":"Impianti di sollevamento e pompaggio di fognatura"},3,{"$f":"+VLOOKUP(H208,TT_Tabelle_Riferimento!$F$3:$G$6,2,FALSE)","v":"Altri servizi idrici"},2026,{"$f":"+SUMIFS('PdI-crono_inv'!AW:AW,'PdI-crono_inv'!CF:CF,F208,'PdI-crono_inv'!CE:CE,H208,'PdI-crono_inv'!J:J,P208,'PdI-crono_inv'!P:P,\"<>proprietario\")","v":0},null,{"$f":"+SUMIFS('PdI-crono_inv'!AX:AX,'PdI-crono_inv'!CF:CF,F208,'PdI-crono_inv'!CE:CE,H208,'PdI-crono_inv'!J:J,P208,'PdI-crono_inv'!P:P,\"<>proprietario\")+S208","v":0},null,null,"RES",{"$f":"+VLOOKUP(F208,TT_Tabelle_Riferimento!$D$127:$E$164,2,FALSE)","v":"Fognatura"},"",0]
[0,0,"Gestore",0,"IP",15,{"$f":"+VLOOKUP(F209,TT_Tabelle_Riferimento!$D$127:$G$164,4,FALSE)","v":"Gruppi di misura - altre attrezzature di fognatura"},3,{"$f":"+VLOOKUP(H209,TT_Tabelle_Riferimento!$F$3:$G$6,2,FALSE)","v":"Altri servizi idrici"},2026,{"$f":"+SUMIFS('PdI-crono_inv'!AW:AW,'PdI-crono_inv'!CF:CF,F209,'PdI-crono_inv'!CE:CE,H209,'PdI-crono_inv'!J:J,P209,'PdI-crono_inv'!P:P,\"<>proprietario\")","v":0},null,{"$f":"+SUMIFS('PdI-crono_inv'!AX:AX,'PdI-crono_inv'!CF:CF,F209,'PdI-crono_inv'!CE:CE,H209,'PdI-crono_inv'!J:J,P209,'PdI-crono_inv'!P:P,\"<>proprietario\")+S209","v":0},null,null,"RES",{"$f":"+VLOOKUP(F209,TT_Tabelle_Riferimento!$D$127:$E$164,2,FALSE)","v":"Fognatura"},"",0]
[0,0,"Gestore",0,"IP",16,{"$f":"+VLOOKUP(F210,TT_Tabelle_Riferimento!$D$127:$G$164,4,FALSE)","v":"Sistemi informativi di fognatura"},3,{"$f":"+VLOOKUP(H210,TT_Tabelle_Riferimento!$F$3:$G$6,2,FALSE)","v":"Altri servizi idrici"},2026,{"$f":"+SUMIFS('PdI-crono_inv'!AW:AW,'PdI-crono_inv'!CF:CF,F210,'PdI-crono_inv'!CE:CE,H210,'PdI-crono_inv'!J:J,P210,'PdI-crono_inv'!P:P,\"<>proprietario\")","v":0},null,{"$f":"+SUMIFS('PdI-crono_inv'!AX:AX,'PdI-crono_inv'!CF:CF,F210,'PdI-crono_inv'!CE:CE,H210,'PdI-crono_inv'!J:J,P210,'PdI-crono_inv'!P:P,\"<>proprietario\")+S210","v":0},null,null,"RES",{"$f":"+VLOOKUP(F210,TT_Tabelle_Riferimento!$D$127:$E$164,2,FALSE)","v":"Fognatura"},"",0]
[0,0,"Gestore",0,"IP",18,{"$f":"+VLOOKUP(F211,TT_Tabelle_Riferimento!$D$127:$G$164,4,FALSE)","v":"Telecontrollo e teletrasmissione di fognatura"},3,{"$f":"+VLOOKUP(H211,TT_Tabelle_Riferimento!$F$3:$G$6,2,FALSE)","v":"Altri servizi idrici"},2026,{"$f":"+SUMIFS('PdI-crono_inv'!AW:AW,'PdI-crono_inv'!CF:CF,F211,'PdI-crono_inv'!CE:CE,H211,'PdI-crono_inv'!J:J,P211,'PdI-crono_inv'!P:P,\"<>proprietario\")","v":0},null,{"$f":"+SUMIFS('PdI-crono_inv'!AX:AX,'PdI-crono_inv'!CF:CF,F211,'PdI-crono_inv'!CE:CE,H211,'PdI-crono_inv'!J:J,P211,'PdI-crono_inv'!P:P,\"<>proprietario\")+S211","v":0},null,null,"RES",{"$f":"+VLOOKUP(F211,TT_Tabelle_Riferimento!$D$127:$E$164,2,FALSE)","v":"Fognatura"},"",0]
[0,0,"Gestore",0,"IP",19,{"$f":"+VLOOKUP(F212,TT_Tabelle_Riferimento!$D$127:$G$164,4,FALSE)","v":"Impianti di sollevamento e pompaggio di depurazione"},3,{"$f":"+VLOOKUP(H212,TT_Tabelle_Riferimento!$F$3:$G$6,2,FALSE)","v":"Altri servizi idrici"},2026,{"$f":"+SUMIFS('PdI-crono_inv'!AW:AW,'PdI-crono_inv'!CF:CF,F212,'PdI-crono_inv'!CE:CE,H212,'PdI-crono_inv'!J:J,P212,'PdI-crono_inv'!P:P,\"<>proprietario\")","v":0},null,{"$f":"+SUMIFS('PdI-crono_inv'!AX:AX,'PdI-crono_inv'!CF:CF,F212,'PdI-crono_inv'!CE:CE,H212,'PdI-crono_inv'!J:J,P212,'PdI-crono_inv'!P:P,\"<>proprietario\")+S212","v":0},null,null,"RES",{"$f":"+VLOOKUP(F212,TT_Tabelle_Riferimento!$D$127:$E$164,2,FALSE)","v":"Depurazione"},"",0]
[0,0,"Gestore",0,"IP",20,{"$f":"+VLOOKUP(F213,TT_Tabelle_Riferimento!$D$127:$G$164,4,FALSE)","v":"Tecniche naturali di depurazione (tra cui fitodepurazione e lagunaggio)"},3,{"$f":"+VLOOKUP(H213,TT_Tabelle_Riferimento!$F$3:$G$6,2,FALSE)","v":"Altri servizi idrici"},2026,{"$f":"+SUMIFS('PdI-crono_inv'!AW:AW,'PdI-crono_inv'!CF:CF,F213,'PdI-crono_inv'!CE:CE,H213,'PdI-crono_inv'!J:J,P213,'PdI-crono_inv'!P:P,\"<>proprietario\")","v":0},null,{"$f":"+SUMIFS('PdI-crono_inv'!AX:AX,'PdI-crono_inv'!CF:CF,F213,'PdI-crono_inv'!CE:CE,H213,'PdI-crono_inv'!J:J,P213,'PdI-crono_inv'!P:P,\"<>proprietario\")+S213","v":0},null,null,"RES",{"$f":"+VLOOKUP(F213,TT_Tabelle_Riferimento!$D$127:$E$164,2,FALSE)","v":"Depurazione"},"",0]
[0,0,"Gestore",0,"IP",21,{"$f":"+VLOOKUP(F214,TT_Tabelle_Riferimento!$D$127:$G$164,4,FALSE)","v":"Impianti di depurazione – trattamenti sino al preliminare, integrativo, primario - fosse settiche e fosse Imhoff"},3,{"$f":"+VLOOKUP(H214,TT_Tabelle_Riferimento!$F$3:$G$6,2,FALSE)","v":"Altri servizi idrici"},2026,{"$f":"+SUMIFS('PdI-crono_inv'!AW:AW,'PdI-crono_inv'!CF:CF,F214,'PdI-crono_inv'!CE:CE,H214,'PdI-crono_inv'!J:J,P214,'PdI-crono_inv'!P:P,\"<>proprietario\")","v":0},null,{"$f":"+SUMIFS('PdI-crono_inv'!AX:AX,'PdI-crono_inv'!CF:CF,F214,'PdI-crono_inv'!CE:CE,H214,'PdI-crono_inv'!J:J,P214,'PdI-crono_inv'!P:P,\"<>proprietario\")+S214","v":0},null,null,"RES",{"$f":"+VLOOKUP(F214,TT_Tabelle_Riferimento!$D$127:$E$164,2,FALSE)","v":"Depurazione"},"",0]
[0,0,"Gestore",0,"IP",22,{"$f":"+VLOOKUP(F215,TT_Tabelle_Riferimento!$D$127:$G$164,4,FALSE)","v":"Impianti di depurazione – trattamenti sino al secondario"},3,{"$f":"+VLOOKUP(H215,TT_Tabelle_Riferimento!$F$3:$G$6,2,FALSE)","v":"Altri servizi idrici"},2026,{"$f":"+SUMIFS('PdI-crono_inv'!AW:AW,'PdI-crono_inv'!CF:CF,F215,'PdI-crono_inv'!CE:CE,H215,'PdI-crono_inv'!J:J,P215,'PdI-crono_inv'!P:P,\"<>proprietario\")","v":0},null,{"$f":"+SUMIFS('PdI-crono_inv'!AX:AX,'PdI-crono_inv'!CF:CF,F215,'PdI-crono_inv'!CE:CE,H215,'PdI-crono_inv'!J:J,P215,'PdI-crono_inv'!P:P,\"<>proprietario\")+S215","v":0},null,null,"RES",{"$f":"+VLOOKUP(F215,TT_Tabelle_Riferimento!$D$127:$E$164,2,FALSE)","v":"Depurazione"},"",0]
[0,0,"Gestore",0,"IP",23,{"$f":"+VLOOKUP(F216,TT_Tabelle_Riferimento!$D$127:$G$164,4,FALSE)","v":"Impianti di depurazione – trattamenti sino al terziario e terziario avanzato"},3,{"$f":"+VLOOKUP(H216,TT_Tabelle_Riferimento!$F$3:$G$6,2,FALSE)","v":"Altri servizi idrici"},2026,{"$f":"+SUMIFS('PdI-crono_inv'!AW:AW,'PdI-crono_inv'!CF:CF,F216,'PdI-crono_inv'!CE:CE,H216,'PdI-crono_inv'!J:J,P216,'PdI-crono_inv'!P:P,\"<>proprietario\")","v":0},null,{"$f":"+SUMIFS('PdI-crono_inv'!AX:AX,'PdI-crono_inv'!CF:CF,F216,'PdI-crono_inv'!CE:CE,H216,'PdI-crono_inv'!J:J,P216,'PdI-crono_inv'!P:P,\"<>proprietario\")+S216","v":0},null,null,"RES",{"$f":"+VLOOKUP(F216,TT_Tabelle_Riferimento!$D$127:$E$164,2,FALSE)","v":"Depurazione"},"",0]
[0,0,"Gestore",0,"IP",24,{"$f":"+VLOOKUP(F217,TT_Tabelle_Riferimento!$D$127:$G$164,4,FALSE)","v":"Impianti di essiccamento fanghi e di valorizzazione dei fanghi (tra cui mono-incenerimento, pirolisi, gassificazione)"},3,{"$f":"+VLOOKUP(H217,TT_Tabelle_Riferimento!$F$3:$G$6,2,FALSE)","v":"Altri servizi idrici"},2026,{"$f":"+SUMIFS('PdI-crono_inv'!AW:AW,'PdI-crono_inv'!CF:CF,F217,'PdI-crono_inv'!CE:CE,H217,'PdI-crono_inv'!J:J,P217,'PdI-crono_inv'!P:P,\"<>proprietario\")","v":0},null,{"$f":"+SUMIFS('PdI-crono_inv'!AX:AX,'PdI-crono_inv'!CF:CF,F217,'PdI-crono_inv'!CE:CE,H217,'PdI-crono_inv'!J:J,P217,'PdI-crono_inv'!P:P,\"<>proprietario\")+S217","v":0},null,null,"RES",{"$f":"+VLOOKUP(F217,TT_Tabelle_Riferimento!$D$127:$E$164,2,FALSE)","v":"Depurazione"},"",0]
[0,0,"Gestore",0,"IP",25,{"$f":"+VLOOKUP(F218,TT_Tabelle_Riferimento!$D$127:$G$164,4,FALSE)","v":"Gruppi di misura - altre attrezzature di depurazione"},3,{"$f":"+VLOOKUP(H218,TT_Tabelle_Riferimento!$F$3:$G$6,2,FALSE)","v":"Altri servizi idrici"},2026,{"$f":"+SUMIFS('PdI-crono_inv'!AW:AW,'PdI-crono_inv'!CF:CF,F218,'PdI-crono_inv'!CE:CE,H218,'PdI-crono_inv'!J:J,P218,'PdI-crono_inv'!P:P,\"<>proprietario\")","v":0},null,{"$f":"+SUMIFS('PdI-crono_inv'!AX:AX,'PdI-crono_inv'!CF:CF,F218,'PdI-crono_inv'!CE:CE,H218,'PdI-crono_inv'!J:J,P218,'PdI-crono_inv'!P:P,\"<>proprietario\")+S218","v":0},null,null,"RES",{"$f":"+VLOOKUP(F218,TT_Tabelle_Riferimento!$D$127:$E$164,2,FALSE)","v":"Depurazione"},"",0]
[0,0,"Gestore",0,"IP",26,{"$f":"+VLOOKUP(F219,TT_Tabelle_Riferimento!$D$127:$G$164,4,FALSE)","v":"Sistemi informativi di depurazione"},3,{"$f":"+VLOOKUP(H219,TT_Tabelle_Riferimento!$F$3:$G$6,2,FALSE)","v":"Altri servizi idrici"},2026,{"$f":"+SUMIFS('PdI-crono_inv'!AW:AW,'PdI-crono_inv'!CF:CF,F219,'PdI-crono_inv'!CE:CE,H219,'PdI-crono_inv'!J:J,P219,'PdI-crono_inv'!P:P,\"<>proprietario\")","v":0},null,{"$f":"+SUMIFS('PdI-crono_inv'!AX:AX,'PdI-crono_inv'!CF:CF,F219,'PdI-crono_inv'!CE:CE,H219,'PdI-crono_inv'!J:J,P219,'PdI-crono_inv'!P:P,\"<>proprietario\")+S219","v":0},null,null,"RES",{"$f":"+VLOOKUP(F219,TT_Tabelle_Riferimento!$D$127:$E$164,2,FALSE)","v":"Depurazione"},"",0]
[0,0,"Gestore",0,"IP",27,{"$f":"+VLOOKUP(F220,TT_Tabelle_Riferimento!$D$127:$G$164,4,FALSE)","v":"Telecontrollo e teletrasmissione di depurazione"},3,{"$f":"+VLOOKUP(H220,TT_Tabelle_Riferimento!$F$3:$G$6,2,FALSE)","v":"Altri servizi idrici"},2026,{"$f":"+SUMIFS('PdI-crono_inv'!AW:AW,'PdI-crono_inv'!CF:CF,F220,'PdI-crono_inv'!CE:CE,H220,'PdI-crono_inv'!J:J,P220,'PdI-crono_inv'!P:P,\"<>proprietario\")","v":0},null,{"$f":"+SUMIFS('PdI-crono_inv'!AX:AX,'PdI-crono_inv'!CF:CF,F220,'PdI-crono_inv'!CE:CE,H220,'PdI-crono_inv'!J:J,P220,'PdI-crono_inv'!P:P,\"<>proprietario\")+S220","v":0},null,null,"RES",{"$f":"+VLOOKUP(F220,TT_Tabelle_Riferimento!$D$127:$E$164,2,FALSE)","v":"Depurazione"},"",0]
[0,0,"Gestore",0,"IP",28,{"$f":"+VLOOKUP(F221,TT_Tabelle_Riferimento!$D$127:$G$164,4,FALSE)","v":"Altri impianti"},3,{"$f":"+VLOOKUP(H221,TT_Tabelle_Riferimento!$F$3:$G$6,2,FALSE)","v":"Altri servizi idrici"},2026,{"$f":"+SUMIFS('PdI-crono_inv'!AW:AW,'PdI-crono_inv'!CF:CF,F221,'PdI-crono_inv'!CE:CE,H221,'PdI-crono_inv'!J:J,P221,'PdI-crono_inv'!P:P,\"<>proprietario\")","v":0},null,{"$f":"+SUMIFS('PdI-crono_inv'!AX:AX,'PdI-crono_inv'!CF:CF,F221,'PdI-crono_inv'!CE:CE,H221,'PdI-crono_inv'!J:J,P221,'PdI-crono_inv'!P:P,\"<>proprietario\")+S221","v":0},null,null,"RES",{"$f":"+VLOOKUP(F221,TT_Tabelle_Riferimento!$D$127:$E$164,2,FALSE)","v":"Comune"},"",0]
[0,0,"Gestore",0,"IP",29,{"$f":"+VLOOKUP(F222,TT_Tabelle_Riferimento!$D$127:$G$164,4,FALSE)","v":"Laboratori e attrezzature"},3,{"$f":"+VLOOKUP(H222,TT_Tabelle_Riferimento!$F$3:$G$6,2,FALSE)","v":"Altri servizi idrici"},2026,{"$f":"+SUMIFS('PdI-crono_inv'!AW:AW,'PdI-crono_inv'!CF:CF,F222,'PdI-crono_inv'!CE:CE,H222,'PdI-crono_inv'!J:J,P222,'PdI-crono_inv'!P:P,\"<>proprietario\")","v":0},null,{"$f":"+SUMIFS('PdI-crono_inv'!AX:AX,'PdI-crono_inv'!CF:CF,F222,'PdI-crono_inv'!CE:CE,H222,'PdI-crono_inv'!J:J,P222,'PdI-crono_inv'!P:P,\"<>proprietario\")+S222","v":0},null,null,"RES",{"$f":"+VLOOKUP(F222,TT_Tabelle_Riferimento!$D$127:$E$164,2,FALSE)","v":"Comune"},"",0]
[0,0,"Gestore",0,"IP",30,{"$f":"+VLOOKUP(F223,TT_Tabelle_Riferimento!$D$127:$G$164,4,FALSE)","v":"Sistemi informativi"},3,{"$f":"+VLOOKUP(H223,TT_Tabelle_Riferimento!$F$3:$G$6,2,FALSE)","v":"Altri servizi idrici"},2026,{"$f":"+SUMIFS('PdI-crono_inv'!AW:AW,'PdI-crono_inv'!CF:CF,F223,'PdI-crono_inv'!CE:CE,H223,'PdI-crono_inv'!J:J,P223,'PdI-crono_inv'!P:P,\"<>proprietario\")","v":0},null,{"$f":"+SUMIFS('PdI-crono_inv'!AX:AX,'PdI-crono_inv'!CF:CF,F223,'PdI-crono_inv'!CE:CE,H223,'PdI-crono_inv'!J:J,P223,'PdI-crono_inv'!P:P,\"<>proprietario\")+S223","v":0},null,null,"RES",{"$f":"+VLOOKUP(F223,TT_Tabelle_Riferimento!$D$127:$E$164,2,FALSE)","v":"Comune"},"",0]
[0,0,"Gestore",0,"IP",31,{"$f":"+VLOOKUP(F224,TT_Tabelle_Riferimento!$D$127:$G$164,4,FALSE)","v":"Telecontrollo e teletrasmissione"},3,{"$f":"+VLOOKUP(H224,TT_Tabelle_Riferimento!$F$3:$G$6,2,FALSE)","v":"Altri servizi idrici"},2026,{"$f":"+SUMIFS('PdI-crono_inv'!AW:AW,'PdI-crono_inv'!CF:CF,F224,'PdI-crono_inv'!CE:CE,H224,'PdI-crono_inv'!J:J,P224,'PdI-crono_inv'!P:P,\"<>proprietario\")","v":0},null,{"$f":"+SUMIFS('PdI-crono_inv'!AX:AX,'PdI-crono_inv'!CF:CF,F224,'PdI-crono_inv'!CE:CE,H224,'PdI-crono_inv'!J:J,P224,'PdI-crono_inv'!P:P,\"<>proprietario\")+S224","v":0},null,null,"RES",{"$f":"+VLOOKUP(F224,TT_Tabelle_Riferimento!$D$127:$E$164,2,FALSE)","v":"Comune"},"",0]
[0,0,"Gestore",0,"IP",32,{"$f":"+VLOOKUP(F225,TT_Tabelle_Riferimento!$D$127:$G$164,4,FALSE)","v":"Autoveicoli - automezzi"},3,{"$f":"+VLOOKUP(H225,TT_Tabelle_Riferimento!$F$3:$G$6,2,FALSE)","v":"Altri servizi idrici"},2026,{"$f":"+SUMIFS('PdI-crono_inv'!AW:AW,'PdI-crono_inv'!CF:CF,F225,'PdI-crono_inv'!CE:CE,H225,'PdI-crono_inv'!J:J,P225,'PdI-crono_inv'!P:P,\"<>proprietario\")","v":0},null,{"$f":"+SUMIFS('PdI-crono_inv'!AX:AX,'PdI-crono_inv'!CF:CF,F225,'PdI-crono_inv'!CE:CE,H225,'PdI-crono_inv'!J:J,P225,'PdI-crono_inv'!P:P,\"<>proprietario\")+S225","v":0},null,null,"RES",{"$f":"+VLOOKUP(F225,TT_Tabelle_Riferimento!$D$127:$E$164,2,FALSE)","v":"Comune"},"",0]
[0,0,"Gestore",0,"IP",1,{"$f":"+VLOOKUP(F226,TT_Tabelle_Riferimento!$D$127:$G$164,4,FALSE)","v":"Terreni"},3,{"$f":"+VLOOKUP(H226,TT_Tabelle_Riferimento!$F$3:$G$6,2,FALSE)","v":"Altri servizi idrici"},2026,{"$f":"+SUMIFS('PdI-crono_inv'!AW:AW,'PdI-crono_inv'!CF:CF,F226,'PdI-crono_inv'!CE:CE,H226,'PdI-crono_inv'!J:J,P226,'PdI-crono_inv'!P:P,\"<>proprietario\")","v":0},null,{"$f":"+SUMIFS('PdI-crono_inv'!AX:AX,'PdI-crono_inv'!CF:CF,F226,'PdI-crono_inv'!CE:CE,H226,'PdI-crono_inv'!J:J,P226,'PdI-crono_inv'!P:P,\"<>proprietario\")+S226","v":0},null,null,"RES",{"$f":"+VLOOKUP(F226,TT_Tabelle_Riferimento!$D$127:$E$164,2,FALSE)","v":"Comune"},"",0]
[0,0,"Gestore",0,"IP",33,{"$f":"+VLOOKUP(F227,TT_Tabelle_Riferimento!$D$127:$G$164,4,FALSE)","v":"Fabbricati non industriali"},3,{"$f":"+VLOOKUP(H227,TT_Tabelle_Riferimento!$F$3:$G$6,2,FALSE)","v":"Altri servizi idrici"},2026,{"$f":"+SUMIFS('PdI-crono_inv'!AW:AW,'PdI-crono_inv'!CF:CF,F227,'PdI-crono_inv'!CE:CE,H227,'PdI-crono_inv'!J:J,P227,'PdI-crono_inv'!P:P,\"<>proprietario\")","v":0},null,{"$f":"+SUMIFS('PdI-crono_inv'!AX:AX,'PdI-crono_inv'!CF:CF,F227,'PdI-crono_inv'!CE:CE,H227,'PdI-crono_inv'!J:J,P227,'PdI-crono_inv'!P:P,\"<>proprietario\")+S227","v":0},null,null,"RES",{"$f":"+VLOOKUP(F227,TT_Tabelle_Riferimento!$D$127:$E$164,2,FALSE)","v":"Comune"},"",0]
[0,0,"Gestore",0,"IP",34,{"$f":"+VLOOKUP(F228,TT_Tabelle_Riferimento!$D$127:$G$164,4,FALSE)","v":"Fabbricati industriali"},3,{"$f":"+VLOOKUP(H228,TT_Tabelle_Riferimento!$F$3:$G$6,2,FALSE)","v":"Altri servizi idrici"},2026,{"$f":"+SUMIFS('PdI-crono_inv'!AW:AW,'PdI-crono_inv'!CF:CF,F228,'PdI-crono_inv'!CE:CE,H228,'PdI-crono_inv'!J:J,P228,'PdI-crono_inv'!P:P,\"<>proprietario\")","v":0},null,{"$f":"+SUMIFS('PdI-crono_inv'!AX:AX,'PdI-crono_inv'!CF:CF,F228,'PdI-crono_inv'!CE:CE,H228,'PdI-crono_inv'!J:J,P228,'PdI-crono_inv'!P:P,\"<>proprietario\")+S228","v":0},null,null,"RES",{"$f":"+VLOOKUP(F228,TT_Tabelle_Riferimento!$D$127:$E$164,2,FALSE)","v":"Comune"},"",0]
[0,0,"Gestore",0,"IP",35,{"$f":"+VLOOKUP(F229,TT_Tabelle_Riferimento!$D$127:$G$164,4,FALSE)","v":"Costruzioni leggere"},3,{"$f":"+VLOOKUP(H229,TT_Tabelle_Riferimento!$F$3:$G$6,2,FALSE)","v":"Altri servizi idrici"},2026,{"$f":"+SUMIFS('PdI-crono_inv'!AW:AW,'PdI-crono_inv'!CF:CF,F229,'PdI-crono_inv'!CE:CE,H229,'PdI-crono_inv'!J:J,P229,'PdI-crono_inv'!P:P,\"<>proprietario\")","v":0},null,{"$f":"+SUMIFS('PdI-crono_inv'!AX:AX,'PdI-crono_inv'!CF:CF,F229,'PdI-crono_inv'!CE:CE,H229,'PdI-crono_inv'!J:J,P229,'PdI-crono_inv'!P:P,\"<>proprietario\")+S229","v":0},null,null,"RES",{"$f":"+VLOOKUP(F229,TT_Tabelle_Riferimento!$D$127:$E$164,2,FALSE)","v":"Comune"},"",0]
[0,0,"Gestore",0,"IP",36,{"$f":"+VLOOKUP(F230,TT_Tabelle_Riferimento!$D$127:$G$164,4,FALSE)","v":"Studi, ricerche, brevetti, diritti di utilizzazione"},3,{"$f":"+VLOOKUP(H230,TT_Tabelle_Riferimento!$F$3:$G$6,2,FALSE)","v":"Altri servizi idrici"},2026,{"$f":"+SUMIFS('PdI-crono_inv'!AW:AW,'PdI-crono_inv'!CF:CF,F230,'PdI-crono_inv'!CE:CE,H230,'PdI-crono_inv'!J:J,P230,'PdI-crono_inv'!P:P,\"<>proprietario\")","v":0},null,{"$f":"+SUMIFS('PdI-crono_inv'!AX:AX,'PdI-crono_inv'!CF:CF,F230,'PdI-crono_inv'!CE:CE,H230,'PdI-crono_inv'!J:J,P230,'PdI-crono_inv'!P:P,\"<>proprietario\")+S230","v":0},null,null,"RES",{"$f":"+VLOOKUP(F230,TT_Tabelle_Riferimento!$D$127:$E$164,2,FALSE)","v":"Comune"},"",0]
[0,0,"Gestore",0,"IP",37,{"$f":"+VLOOKUP(F231,TT_Tabelle_Riferimento!$D$127:$G$164,4,FALSE)","v":"Altre immobilizzazioni materiali e immateriali"},3,{"$f":"+VLOOKUP(H231,TT_Tabelle_Riferimento!$F$3:$G$6,2,FALSE)","v":"Altri servizi idrici"},2026,{"$f":"+SUMIFS('PdI-crono_inv'!AW:AW,'PdI-crono_inv'!CF:CF,F231,'PdI-crono_inv'!CE:CE,H231,'PdI-crono_inv'!J:J,P231,'PdI-crono_inv'!P:P,\"<>proprietario\")","v":0},null,{"$f":"+SUMIFS('PdI-crono_inv'!AX:AX,'PdI-crono_inv'!CF:CF,F231,'PdI-crono_inv'!CE:CE,H231,'PdI-crono_inv'!J:J,P231,'PdI-crono_inv'!P:P,\"<>proprietario\")+S231","v":0},null,null,"RES",{"$f":"+VLOOKUP(F231,TT_Tabelle_Riferimento!$D$127:$E$164,2,FALSE)","v":"Comune"},"",0]
[0,0,"Gestore",0,"IP",38,{"$f":"+VLOOKUP(F232,TT_Tabelle_Riferimento!$D$127:$G$164,4,FALSE)","v":"Grandi dighe (sbarramenti che superano i quindici metri di altezza o che determinano un invaso superiore a 1 milione di metri cubi)"},3,{"$f":"+VLOOKUP(H232,TT_Tabelle_Riferimento!$F$3:$G$6,2,FALSE)","v":"Altri servizi idrici"},2026,{"$f":"+SUMIFS('PdI-crono_inv'!AW:AW,'PdI-crono_inv'!CF:CF,F232,'PdI-crono_inv'!CE:CE,H232,'PdI-crono_inv'!J:J,P232,'PdI-crono_inv'!P:P,\"<>proprietario\")","v":0},null,{"$f":"+SUMIFS('PdI-crono_inv'!AX:AX,'PdI-crono_inv'!CF:CF,F232,'PdI-crono_inv'!CE:CE,H232,'PdI-crono_inv'!J:J,P232,'PdI-crono_inv'!P:P,\"<>proprietario\")+S232","v":0},null,null,"RES",{"$f":"+VLOOKUP(F232,TT_Tabelle_Riferimento!$D$127:$E$164,2,FALSE)","v":"Acquedotto"},"",0]
[0,0,"Gestore",0,"IP",39,{"$f":"+VLOOKUP(F233,TT_Tabelle_Riferimento!$D$127:$G$164,4,FALSE)","v":"Piccole dighe (sbarramenti che non superano i quindici metri di altezza o che determinano un invaso non superiore a 1 milione di metri cubi)"},3,{"$f":"+VLOOKUP(H233,TT_Tabelle_Riferimento!$F$3:$G$6,2,FALSE)","v":"Altri servizi idrici"},2026,{"$f":"+SUMIFS('PdI-crono_inv'!AW:AW,'PdI-crono_inv'!CF:CF,F233,'PdI-crono_inv'!CE:CE,H233,'PdI-crono_inv'!J:J,P233,'PdI-crono_inv'!P:P,\"<>proprietario\")","v":0},null,{"$f":"+SUMIFS('PdI-crono_inv'!AX:AX,'PdI-crono_inv'!CF:CF,F233,'PdI-crono_inv'!CE:CE,H233,'PdI-crono_inv'!J:J,P233,'PdI-crono_inv'!P:P,\"<>proprietario\")+S233","v":0},null,null,"RES",{"$f":"+VLOOKUP(F233,TT_Tabelle_Riferimento!$D$127:$E$164,2,FALSE)","v":"Acquedotto"},"",0]
[0,0,"Gestore",0,"IP",2,{"$f":"+VLOOKUP(F234,TT_Tabelle_Riferimento!$D$127:$G$164,4,FALSE)","v":"Condotte di acquedotto"},1,{"$f":"+VLOOKUP(H234,TT_Tabelle_Riferimento!$F$3:$G$6,2,FALSE)","v":"Servizio idrico integrato"},2026,{"$f":"+SUMIFS('PdI-crono_inv'!AW:AW,'PdI-crono_inv'!CF:CF,F234,'PdI-crono_inv'!CE:CE,H234,'PdI-crono_inv'!J:J,P234,'PdI-crono_inv'!P:P,\"<>proprietario\")","v":0},null,{"$f":"+SUMIFS('PdI-crono_inv'!AX:AX,'PdI-crono_inv'!CF:CF,F234,'PdI-crono_inv'!CE:CE,H234,'PdI-crono_inv'!J:J,P234,'PdI-crono_inv'!P:P,\"<>proprietario\")+S234","v":0},null,null,"Non ERC",{"$f":"+VLOOKUP(F234,TT_Tabelle_Riferimento!$D$127:$E$164,2,FALSE)","v":"Acquedotto"},"",0]
[0,0,"Gestore",0,"IP",3,{"$f":"+VLOOKUP(F235,TT_Tabelle_Riferimento!$D$127:$G$164,4,FALSE)","v":"Opere idrauliche fisse di acquedotto"},1,{"$f":"+VLOOKUP(H235,TT_Tabelle_Riferimento!$F$3:$G$6,2,FALSE)","v":"Servizio idrico integrato"},2026,{"$f":"+SUMIFS('PdI-crono_inv'!AW:AW,'PdI-crono_inv'!CF:CF,F235,'PdI-crono_inv'!CE:CE,H235,'PdI-crono_inv'!J:J,P235,'PdI-crono_inv'!P:P,\"<>proprietario\")","v":0},null,{"$f":"+SUMIFS('PdI-crono_inv'!AX:AX,'PdI-crono_inv'!CF:CF,F235,'PdI-crono_inv'!CE:CE,H235,'PdI-crono_inv'!J:J,P235,'PdI-crono_inv'!P:P,\"<>proprietario\")+S235","v":0},null,null,"Non ERC",{"$f":"+VLOOKUP(F235,TT_Tabelle_Riferimento!$D$127:$E$164,2,FALSE)","v":"Acquedotto"},"",0]
[0,0,"Gestore",0,"IP",4,{"$f":"+VLOOKUP(F236,TT_Tabelle_Riferimento!$D$127:$G$164,4,FALSE)","v":"Serbatoi"},1,{"$f":"+VLOOKUP(H236,TT_Tabelle_Riferimento!$F$3:$G$6,2,FALSE)","v":"Servizio idrico integrato"},2026,{"$f":"+SUMIFS('PdI-crono_inv'!AW:AW,'PdI-crono_inv'!CF:CF,F236,'PdI-crono_inv'!CE:CE,H236,'PdI-crono_inv'!J:J,P236,'PdI-crono_inv'!P:P,\"<>proprietario\")","v":0},null,{"$f":"+SUMIFS('PdI-crono_inv'!AX:AX,'PdI-crono_inv'!CF:CF,F236,'PdI-crono_inv'!CE:CE,H236,'PdI-crono_inv'!J:J,P236,'PdI-crono_inv'!P:P,\"<>proprietario\")+S236","v":0},null,null,"Non ERC",{"$f":"+VLOOKUP(F236,TT_Tabelle_Riferimento!$D$127:$E$164,2,FALSE)","v":"Acquedotto"},{"$f":"+IF(SUM(K236:N236)=0,\"\",\"PdI_consolidamento\")","v":""},0]
[0,0,"Gestore",0,"IP",5,{"$f":"+VLOOKUP(F237,TT_Tabelle_Riferimento!$D$127:$G$164,4,FALSE)","v":"Impianti di sollevamento e pompaggio di acquedotto"},1,{"$f":"+VLOOKUP(H237,TT_Tabelle_Riferimento!$F$3:$G$6,2,FALSE)","v":"Servizio idrico integrato"},2026,{"$f":"+SUMIFS('PdI-crono_inv'!AW:AW,'PdI-crono_inv'!CF:CF,F237,'PdI-crono_inv'!CE:CE,H237,'PdI-crono_inv'!J:J,P237,'PdI-crono_inv'!P:P,\"<>proprietario\")","v":0},null,{"$f":"+SUMIFS('PdI-crono_inv'!AX:AX,'PdI-crono_inv'!CF:CF,F237,'PdI-crono_inv'!CE:CE,H237,'PdI-crono_inv'!J:J,P237,'PdI-crono_inv'!P:P,\"<>proprietario\")+S237","v":0},null,null,"Non ERC",{"$f":"+VLOOKUP(F237,TT_Tabelle_Riferimento!$D$127:$E$164,2,FALSE)","v":"Acquedotto"},"",0]
[0,0,"Gestore",0,"IP",6,{"$f":"+VLOOKUP(F238,TT_Tabelle_Riferimento!$D$127:$G$164,4,FALSE)","v":"Impianti di potabilizzazione"},1,{"$f":"+VLOOKUP(H238,TT_Tabelle_Riferimento!$F$3:$G$6,2,FALSE)","v":"Servizio idrico integrato"},2026,{"$f":"+SUMIFS('PdI-crono_inv'!AW:AW,'PdI-crono_inv'!CF:CF,F238,'PdI-crono_inv'!CE:CE,H238,'PdI-crono_inv'!J:J,P238,'PdI-crono_inv'!P:P,\"<>proprietario\")","v":0},null,{"$f":"+SUMIFS('PdI-crono_inv'!AX:AX,'PdI-crono_inv'!CF:CF,F238,'PdI-crono_inv'!CE:CE,H238,'PdI-crono_inv'!J:J,P238,'PdI-crono_inv'!P:P,\"<>proprietario\")+S238","v":0},null,null,"Non ERC",{"$f":"+VLOOKUP(F238,TT_Tabelle_Riferimento!$D$127:$E$164,2,FALSE)","v":"Acquedotto"},"",0]
[0,0,"Gestore",0,"IP",7,{"$f":"+VLOOKUP(F239,TT_Tabelle_Riferimento!$D$127:$G$164,4,FALSE)","v":"Altri trattamenti di potabilizzazione (tra cui dispositivi di disinfezione, stacciatura, filtrazione, addolcimento)"},1,{"$f":"+VLOOKUP(H239,TT_Tabelle_Riferimento!$F$3:$G$6,2,FALSE)","v":"Servizio idrico integrato"},2026,{"$f":"+SUMIFS('PdI-crono_inv'!AW:AW,'PdI-crono_inv'!CF:CF,F239,'PdI-crono_inv'!CE:CE,H239,'PdI-crono_inv'!J:J,P239,'PdI-crono_inv'!P:P,\"<>proprietario\")","v":0},null,{"$f":"+SUMIFS('PdI-crono_inv'!AX:AX,'PdI-crono_inv'!CF:CF,F239,'PdI-crono_inv'!CE:CE,H239,'PdI-crono_inv'!J:J,P239,'PdI-crono_inv'!P:P,\"<>proprietario\")+S239","v":0},null,null,"Non ERC",{"$f":"+VLOOKUP(F239,TT_Tabelle_Riferimento!$D$127:$E$164,2,FALSE)","v":"Acquedotto"},"",0]
[0,0,"Gestore",0,"IP",8,{"$f":"+VLOOKUP(F240,TT_Tabelle_Riferimento!$D$127:$G$164,4,FALSE)","v":"Gruppi di misura - altre attrezzature di acquedotto"},1,{"$f":"+VLOOKUP(H240,TT_Tabelle_Riferimento!$F$3:$G$6,2,FALSE)","v":"Servizio idrico integrato"},2026,{"$f":"+SUMIFS('PdI-crono_inv'!AW:AW,'PdI-crono_inv'!CF:CF,F240,'PdI-crono_inv'!CE:CE,H240,'PdI-crono_inv'!J:J,P240,'PdI-crono_inv'!P:P,\"<>proprietario\")","v":0},null,{"$f":"+SUMIFS('PdI-crono_inv'!AX:AX,'PdI-crono_inv'!CF:CF,F240,'PdI-crono_inv'!CE:CE,H240,'PdI-crono_inv'!J:J,P240,'PdI-crono_inv'!P:P,\"<>proprietario\")+S240","v":0},null,null,"Non ERC",{"$f":"+VLOOKUP(F240,TT_Tabelle_Riferimento!$D$127:$E$164,2,FALSE)","v":"Acquedotto"},"",0]
[0,0,"Gestore",0,"IP",9,{"$f":"+VLOOKUP(F241,TT_Tabelle_Riferimento!$D$127:$G$164,4,FALSE)","v":"Sistemi informativi di acquedotto"},1,{"$f":"+VLOOKUP(H241,TT_Tabelle_Riferimento!$F$3:$G$6,2,FALSE)","v":"Servizio idrico integrato"},2026,{"$f":"+SUMIFS('PdI-crono_inv'!AW:AW,'PdI-crono_inv'!CF:CF,F241,'PdI-crono_inv'!CE:CE,H241,'PdI-crono_inv'!J:J,P241,'PdI-crono_inv'!P:P,\"<>proprietario\")","v":0},null,{"$f":"+SUMIFS('PdI-crono_inv'!AX:AX,'PdI-crono_inv'!CF:CF,F241,'PdI-crono_inv'!CE:CE,H241,'PdI-crono_inv'!J:J,P241,'PdI-crono_inv'!P:P,\"<>proprietario\")+S241","v":0},null,null,"Non ERC",{"$f":"+VLOOKUP(F241,TT_Tabelle_Riferimento!$D$127:$E$164,2,FALSE)","v":"Acquedotto"},"",0]
[0,0,"Gestore",0,"IP",10,{"$f":"+VLOOKUP(F242,TT_Tabelle_Riferimento!$D$127:$G$164,4,FALSE)","v":"Telecontrollo e teletrasmissione di acquedotto"},1,{"$f":"+VLOOKUP(H242,TT_Tabelle_Riferimento!$F$3:$G$6,2,FALSE)","v":"Servizio idrico integrato"},2026,{"$f":"+SUMIFS('PdI-crono_inv'!AW:AW,'PdI-crono_inv'!CF:CF,F242,'PdI-crono_inv'!CE:CE,H242,'PdI-crono_inv'!J:J,P242,'PdI-crono_inv'!P:P,\"<>proprietario\")","v":0},null,{"$f":"+SUMIFS('PdI-crono_inv'!AX:AX,'PdI-crono_inv'!CF:CF,F242,'PdI-crono_inv'!CE:CE,H242,'PdI-crono_inv'!J:J,P242,'PdI-crono_inv'!P:P,\"<>proprietario\")+S242","v":0},null,null,"Non ERC",{"$f":"+VLOOKUP(F242,TT_Tabelle_Riferimento!$D$127:$E$164,2,FALSE)","v":"Acquedotto"},"",0]
[0,0,"Gestore",0,"IP",11,{"$f":"+VLOOKUP(F243,TT_Tabelle_Riferimento!$D$127:$G$164,4,FALSE)","v":"Condotte fognarie"},1,{"$f":"+VLOOKUP(H243,TT_Tabelle_Riferimento!$F$3:$G$6,2,FALSE)","v":"Servizio idrico integrato"},2026,{"$f":"+SUMIFS('PdI-crono_inv'!AW:AW,'PdI-crono_inv'!CF:CF,F243,'PdI-crono_inv'!CE:CE,H243,'PdI-crono_inv'!J:J,P243,'PdI-crono_inv'!P:P,\"<>proprietario\")","v":0},null,{"$f":"+SUMIFS('PdI-crono_inv'!AX:AX,'PdI-crono_inv'!CF:CF,F243,'PdI-crono_inv'!CE:CE,H243,'PdI-crono_inv'!J:J,P243,'PdI-crono_inv'!P:P,\"<>proprietario\")+S243","v":0},null,null,"Non ERC",{"$f":"+VLOOKUP(F243,TT_Tabelle_Riferimento!$D$127:$E$164,2,FALSE)","v":"Fognatura"},"",0]
[0,0,"Gestore",0,"IP",12,{"$f":"+VLOOKUP(F244,TT_Tabelle_Riferimento!$D$127:$G$164,4,FALSE)","v":"Sifoni e scaricatori di piena e altre opere idrauliche fisse di fognatura"},1,{"$f":"+VLOOKUP(H244,TT_Tabelle_Riferimento!$F$3:$G$6,2,FALSE)","v":"Servizio idrico integrato"},2026,{"$f":"+SUMIFS('PdI-crono_inv'!AW:AW,'PdI-crono_inv'!CF:CF,F244,'PdI-crono_inv'!CE:CE,H244,'PdI-crono_inv'!J:J,P244,'PdI-crono_inv'!P:P,\"<>proprietario\")","v":0},null,{"$f":"+SUMIFS('PdI-crono_inv'!AX:AX,'PdI-crono_inv'!CF:CF,F244,'PdI-crono_inv'!CE:CE,H244,'PdI-crono_inv'!J:J,P244,'PdI-crono_inv'!P:P,\"<>proprietario\")+S244","v":0},null,null,"Non ERC",{"$f":"+VLOOKUP(F244,TT_Tabelle_Riferimento!$D$127:$E$164,2,FALSE)","v":"Fognatura"},"",0]
[0,0,"Gestore",0,"IP",13,{"$f":"+VLOOKUP(F245,TT_Tabelle_Riferimento!$D$127:$G$164,4,FALSE)","v":"Vasche di laminazione e vasche di prima pioggia"},1,{"$f":"+VLOOKUP(H245,TT_Tabelle_Riferimento!$F$3:$G$6,2,FALSE)","v":"Servizio idrico integrato"},2026,{"$f":"+SUMIFS('PdI-crono_inv'!AW:AW,'PdI-crono_inv'!CF:CF,F245,'PdI-crono_inv'!CE:CE,H245,'PdI-crono_inv'!J:J,P245,'PdI-crono_inv'!P:P,\"<>proprietario\")","v":0},null,{"$f":"+SUMIFS('PdI-crono_inv'!AX:AX,'PdI-crono_inv'!CF:CF,F245,'PdI-crono_inv'!CE:CE,H245,'PdI-crono_inv'!J:J,P245,'PdI-crono_inv'!P:P,\"<>proprietario\")+S245","v":0},null,null,"Non ERC",{"$f":"+VLOOKUP(F245,TT_Tabelle_Riferimento!$D$127:$E$164,2,FALSE)","v":"Fognatura"},"",0]
[0,0,"Gestore",0,"IP",14,{"$f":"+VLOOKUP(F246,TT_Tabelle_Riferimento!$D$127:$G$164,4,FALSE)","v":"Impianti di sollevamento e pompaggio di fognatura"},1,{"$f":"+VLOOKUP(H246,TT_Tabelle_Riferimento!$F$3:$G$6,2,FALSE)","v":"Servizio idrico integrato"},2026,{"$f":"+SUMIFS('PdI-crono_inv'!AW:AW,'PdI-crono_inv'!CF:CF,F246,'PdI-crono_inv'!CE:CE,H246,'PdI-crono_inv'!J:J,P246,'PdI-crono_inv'!P:P,\"<>proprietario\")","v":0},null,{"$f":"+SUMIFS('PdI-crono_inv'!AX:AX,'PdI-crono_inv'!CF:CF,F246,'PdI-crono_inv'!CE:CE,H246,'PdI-crono_inv'!J:J,P246,'PdI-crono_inv'!P:P,\"<>proprietario\")+S246","v":0},null,null,"Non ERC",{"$f":"+VLOOKUP(F246,TT_Tabelle_Riferimento!$D$127:$E$164,2,FALSE)","v":"Fognatura"},"",0]
[0,0,"Gestore",0,"IP",15,{"$f":"+VLOOKUP(F247,TT_Tabelle_Riferimento!$D$127:$G$164,4,FALSE)","v":"Gruppi di misura - altre attrezzature di fognatura"},1,{"$f":"+VLOOKUP(H247,TT_Tabelle_Riferimento!$F$3:$G$6,2,FALSE)","v":"Servizio idrico integrato"},2026,{"$f":"+SUMIFS('PdI-crono_inv'!AW:AW,'PdI-crono_inv'!CF:CF,F247,'PdI-crono_inv'!CE:CE,H247,'PdI-crono_inv'!J:J,P247,'PdI-crono_inv'!P:P,\"<>proprietario\")","v":0},null,{"$f":"+SUMIFS('PdI-crono_inv'!AX:AX,'PdI-crono_inv'!CF:CF,F247,'PdI-crono_inv'!CE:CE,H247,'PdI-crono_inv'!J:J,P247,'PdI-crono_inv'!P:P,\"<>proprietario\")+S247","v":0},null,null,"Non ERC",{"$f":"+VLOOKUP(F247,TT_Tabelle_Riferimento!$D$127:$E$164,2,FALSE)","v":"Fognatura"},"",0]
[0,0,"Gestore",0,"IP",16,{"$f":"+VLOOKUP(F248,TT_Tabelle_Riferimento!$D$127:$G$164,4,FALSE)","v":"Sistemi informativi di fognatura"},1,{"$f":"+VLOOKUP(H248,TT_Tabelle_Riferimento!$F$3:$G$6,2,FALSE)","v":"Servizio idrico integrato"},2026,{"$f":"+SUMIFS('PdI-crono_inv'!AW:AW,'PdI-crono_inv'!CF:CF,F248,'PdI-crono_inv'!CE:CE,H248,'PdI-crono_inv'!J:J,P248,'PdI-crono_inv'!P:P,\"<>proprietario\")","v":0},null,{"$f":"+SUMIFS('PdI-crono_inv'!AX:AX,'PdI-crono_inv'!CF:CF,F248,'PdI-crono_inv'!CE:CE,H248,'PdI-crono_inv'!J:J,P248,'PdI-crono_inv'!P:P,\"<>proprietario\")+S248","v":0},null,null,"Non ERC",{"$f":"+VLOOKUP(F248,TT_Tabelle_Riferimento!$D$127:$E$164,2,FALSE)","v":"Fognatura"},"",0]
[0,0,"Gestore",0,"IP",18,{"$f":"+VLOOKUP(F249,TT_Tabelle_Riferimento!$D$127:$G$164,4,FALSE)","v":"Telecontrollo e teletrasmissione di fognatura"},1,{"$f":"+VLOOKUP(H249,TT_Tabelle_Riferimento!$F$3:$G$6,2,FALSE)","v":"Servizio idrico integrato"},2026,{"$f":"+SUMIFS('PdI-crono_inv'!AW:AW,'PdI-crono_inv'!CF:CF,F249,'PdI-crono_inv'!CE:CE,H249,'PdI-crono_inv'!J:J,P249,'PdI-crono_inv'!P:P,\"<>proprietario\")","v":0},null,{"$f":"+SUMIFS('PdI-crono_inv'!AX:AX,'PdI-crono_inv'!CF:CF,F249,'PdI-crono_inv'!CE:CE,H249,'PdI-crono_inv'!J:J,P249,'PdI-crono_inv'!P:P,\"<>proprietario\")+S249","v":0},null,null,"Non ERC",{"$f":"+VLOOKUP(F249,TT_Tabelle_Riferimento!$D$127:$E$164,2,FALSE)","v":"Fognatura"},"",0]
[0,0,"Gestore",0,"IP",19,{"$f":"+VLOOKUP(F250,TT_Tabelle_Riferimento!$D$127:$G$164,4,FALSE)","v":"Impianti di sollevamento e pompaggio di depurazione"},1,{"$f":"+VLOOKUP(H250,TT_Tabelle_Riferimento!$F$3:$G$6,2,FALSE)","v":"Servizio idrico integrato"},2026,{"$f":"+SUMIFS('PdI-crono_inv'!AW:AW,'PdI-crono_inv'!CF:CF,F250,'PdI-crono_inv'!CE:CE,H250,'PdI-crono_inv'!J:J,P250,'PdI-crono_inv'!P:P,\"<>proprietario\")","v":0},null,{"$f":"+SUMIFS('PdI-crono_inv'!AX:AX,'PdI-crono_inv'!CF:CF,F250,'PdI-crono_inv'!CE:CE,H250,'PdI-crono_inv'!J:J,P250,'PdI-crono_inv'!P:P,\"<>proprietario\")+S250","v":0},null,null,"Non ERC",{"$f":"+VLOOKUP(F250,TT_Tabelle_Riferimento!$D$127:$E$164,2,FALSE)","v":"Depurazione"},"",0]
[0,0,"Gestore",0,"IP",20,{"$f":"+VLOOKUP(F251,TT_Tabelle_Riferimento!$D$127:$G$164,4,FALSE)","v":"Tecniche naturali di depurazione (tra cui fitodepurazione e lagunaggio)"},1,{"$f":"+VLOOKUP(H251,TT_Tabelle_Riferimento!$F$3:$G$6,2,FALSE)","v":"Servizio idrico integrato"},2026,{"$f":"+SUMIFS('PdI-crono_inv'!AW:AW,'PdI-crono_inv'!CF:CF,F251,'PdI-crono_inv'!CE:CE,H251,'PdI-crono_inv'!J:J,P251,'PdI-crono_inv'!P:P,\"<>proprietario\")","v":0},null,{"$f":"+SUMIFS('PdI-crono_inv'!AX:AX,'PdI-crono_inv'!CF:CF,F251,'PdI-crono_inv'!CE:CE,H251,'PdI-crono_inv'!J:J,P251,'PdI-crono_inv'!P:P,\"<>proprietario\")+S251","v":0},null,null,"Non ERC",{"$f":"+VLOOKUP(F251,TT_Tabelle_Riferimento!$D$127:$E$164,2,FALSE)","v":"Depurazione"},"",0]
[0,0,"Gestore",0,"IP",21,{"$f":"+VLOOKUP(F252,TT_Tabelle_Riferimento!$D$127:$G$164,4,FALSE)","v":"Impianti di depurazione – trattamenti sino al preliminare, integrativo, primario - fosse settiche e fosse Imhoff"},1,{"$f":"+VLOOKUP(H252,TT_Tabelle_Riferimento!$F$3:$G$6,2,FALSE)","v":"Servizio idrico integrato"},2026,{"$f":"+SUMIFS('PdI-crono_inv'!AW:AW,'PdI-crono_inv'!CF:CF,F252,'PdI-crono_inv'!CE:CE,H252,'PdI-crono_inv'!J:J,P252,'PdI-crono_inv'!P:P,\"<>proprietario\")","v":0},null,{"$f":"+SUMIFS('PdI-crono_inv'!AX:AX,'PdI-crono_inv'!CF:CF,F252,'PdI-crono_inv'!CE:CE,H252,'PdI-crono_inv'!J:J,P252,'PdI-crono_inv'!P:P,\"<>proprietario\")+S252","v":0},null,null,"Non ERC",{"$f":"+VLOOKUP(F252,TT_Tabelle_Riferimento!$D$127:$E$164,2,FALSE)","v":"Depurazione"},"",0]
[0,0,"Gestore",0,"IP",22,{"$f":"+VLOOKUP(F253,TT_Tabelle_Riferimento!$D$127:$G$164,4,FALSE)","v":"Impianti di depurazione – trattamenti sino al secondario"},1,{"$f":"+VLOOKUP(H253,TT_Tabelle_Riferimento!$F$3:$G$6,2,FALSE)","v":"Servizio idrico integrato"},2026,{"$f":"+SUMIFS('PdI-crono_inv'!AW:AW,'PdI-crono_inv'!CF:CF,F253,'PdI-crono_inv'!CE:CE,H253,'PdI-crono_inv'!J:J,P253,'PdI-crono_inv'!P:P,\"<>proprietario\")","v":0},null,{"$f":"+SUMIFS('PdI-crono_inv'!AX:AX,'PdI-crono_inv'!CF:CF,F253,'PdI-crono_inv'!CE:CE,H253,'PdI-crono_inv'!J:J,P253,'PdI-crono_inv'!P:P,\"<>proprietario\")+S253","v":0},null,null,"Non ERC",{"$f":"+VLOOKUP(F253,TT_Tabelle_Riferimento!$D$127:$E$164,2,FALSE)","v":"Depurazione"},"",0]
[0,0,"Gestore",0,"IP",23,{"$f":"+VLOOKUP(F254,TT_Tabelle_Riferimento!$D$127:$G$164,4,FALSE)","v":"Impianti di depurazione – trattamenti sino al terziario e terziario avanzato"},1,{"$f":"+VLOOKUP(H254,TT_Tabelle_Riferimento!$F$3:$G$6,2,FALSE)","v":"Servizio idrico integrato"},2026,{"$f":"+SUMIFS('PdI-crono_inv'!AW:AW,'PdI-crono_inv'!CF:CF,F254,'PdI-crono_inv'!CE:CE,H254,'PdI-crono_inv'!J:J,P254,'PdI-crono_inv'!P:P,\"<>proprietario\")","v":0},null,{"$f":"+SUMIFS('PdI-crono_inv'!AX:AX,'PdI-crono_inv'!CF:CF,F254,'PdI-crono_inv'!CE:CE,H254,'PdI-crono_inv'!J:J,P254,'PdI-crono_inv'!P:P,\"<>proprietario\")+S254","v":0},null,null,"Non ERC",{"$f":"+VLOOKUP(F254,TT_Tabelle_Riferimento!$D$127:$E$164,2,FALSE)","v":"Depurazione"},"",0]
[0,0,"Gestore",0,"IP",24,{"$f":"+VLOOKUP(F255,TT_Tabelle_Riferimento!$D$127:$G$164,4,FALSE)","v":"Impianti di essiccamento fanghi e di valorizzazione dei fanghi (tra cui mono-incenerimento, pirolisi, gassificazione)"},1,{"$f":"+VLOOKUP(H255,TT_Tabelle_Riferimento!$F$3:$G$6,2,FALSE)","v":"Servizio idrico integrato"},2026,{"$f":"+SUMIFS('PdI-crono_inv'!AW:AW,'PdI-crono_inv'!CF:CF,F255,'PdI-crono_inv'!CE:CE,H255,'PdI-crono_inv'!J:J,P255,'PdI-crono_inv'!P:P,\"<>proprietario\")","v":0},null,{"$f":"+SUMIFS('PdI-crono_inv'!AX:AX,'PdI-crono_inv'!CF:CF,F255,'PdI-crono_inv'!CE:CE,H255,'PdI-crono_inv'!J:J,P255,'PdI-crono_inv'!P:P,\"<>proprietario\")+S255","v":0},null,null,"Non ERC",{"$f":"+VLOOKUP(F255,TT_Tabelle_Riferimento!$D$127:$E$164,2,FALSE)","v":"Depurazione"},"",0]
[0,0,"Gestore",0,"IP",25,{"$f":"+VLOOKUP(F256,TT_Tabelle_Riferimento!$D$127:$G$164,4,FALSE)","v":"Gruppi di misura - altre attrezzature di depurazione"},1,{"$f":"+VLOOKUP(H256,TT_Tabelle_Riferimento!$F$3:$G$6,2,FALSE)","v":"Servizio idrico integrato"},2026,{"$f":"+SUMIFS('PdI-crono_inv'!AW:AW,'PdI-crono_inv'!CF:CF,F256,'PdI-crono_inv'!CE:CE,H256,'PdI-crono_inv'!J:J,P256,'PdI-crono_inv'!P:P,\"<>proprietario\")","v":0},null,{"$f":"+SUMIFS('PdI-crono_inv'!AX:AX,'PdI-crono_inv'!CF:CF,F256,'PdI-crono_inv'!CE:CE,H256,'PdI-crono_inv'!J:J,P256,'PdI-crono_inv'!P:P,\"<>proprietario\")+S256","v":0},null,null,"Non ERC",{"$f":"+VLOOKUP(F256,TT_Tabelle_Riferimento!$D$127:$E$164,2,FALSE)","v":"Depurazione"},"",0]
[0,0,"Gestore",0,"IP",26,{"$f":"+VLOOKUP(F257,TT_Tabelle_Riferimento!$D$127:$G$164,4,FALSE)","v":"Sistemi informativi di depurazione"},1,{"$f":"+VLOOKUP(H257,TT_Tabelle_Riferimento!$F$3:$G$6,2,FALSE)","v":"Servizio idrico integrato"},2026,{"$f":"+SUMIFS('PdI-crono_inv'!AW:AW,'PdI-crono_inv'!CF:CF,F257,'PdI-crono_inv'!CE:CE,H257,'PdI-crono_inv'!J:J,P257,'PdI-crono_inv'!P:P,\"<>proprietario\")","v":0},null,{"$f":"+SUMIFS('PdI-crono_inv'!AX:AX,'PdI-crono_inv'!CF:CF,F257,'PdI-crono_inv'!CE:CE,H257,'PdI-crono_inv'!J:J,P257,'PdI-crono_inv'!P:P,\"<>proprietario\")+S257","v":0},null,null,"Non ERC",{"$f":"+VLOOKUP(F257,TT_Tabelle_Riferimento!$D$127:$E$164,2,FALSE)","v":"Depurazione"},"",0]
[0,0,"Gestore",0,"IP",27,{"$f":"+VLOOKUP(F258,TT_Tabelle_Riferimento!$D$127:$G$164,4,FALSE)","v":"Telecontrollo e teletrasmissione di depurazione"},1,{"$f":"+VLOOKUP(H258,TT_Tabelle_Riferimento!$F$3:$G$6,2,FALSE)","v":"Servizio idrico integrato"},2026,{"$f":"+SUMIFS('PdI-crono_inv'!AW:AW,'PdI-crono_inv'!CF:CF,F258,'PdI-crono_inv'!CE:CE,H258,'PdI-crono_inv'!J:J,P258,'PdI-crono_inv'!P:P,\"<>proprietario\")","v":0},null,{"$f":"+SUMIFS('PdI-crono_inv'!AX:AX,'PdI-crono_inv'!CF:CF,F258,'PdI-crono_inv'!CE:CE,H258,'PdI-crono_inv'!J:J,P258,'PdI-crono_inv'!P:P,\"<>proprietario\")+S258","v":0},null,null,"Non ERC",{"$f":"+VLOOKUP(F258,TT_Tabelle_Riferimento!$D$127:$E$164,2,FALSE)","v":"Depurazione"},"",0]
[0,0,"Gestore",0,"IP",28,{"$f":"+VLOOKUP(F259,TT_Tabelle_Riferimento!$D$127:$G$164,4,FALSE)","v":"Altri impianti"},1,{"$f":"+VLOOKUP(H259,TT_Tabelle_Riferimento!$F$3:$G$6,2,FALSE)","v":"Servizio idrico integrato"},2026,{"$f":"+SUMIFS('PdI-crono_inv'!AW:AW,'PdI-crono_inv'!CF:CF,F259,'PdI-crono_inv'!CE:CE,H259,'PdI-crono_inv'!J:J,P259,'PdI-crono_inv'!P:P,\"<>proprietario\")","v":0},null,{"$f":"+SUMIFS('PdI-crono_inv'!AX:AX,'PdI-crono_inv'!CF:CF,F259,'PdI-crono_inv'!CE:CE,H259,'PdI-crono_inv'!J:J,P259,'PdI-crono_inv'!P:P,\"<>proprietario\")+S259","v":0},null,null,"Non ERC",{"$f":"+VLOOKUP(F259,TT_Tabelle_Riferimento!$D$127:$E$164,2,FALSE)","v":"Comune"},"",0]
[{"$f":"+idato","v":0},{"$f":"+idgestore","v":0},"Gestore",0,"IP",29,{"$f":"+VLOOKUP(F260,TT_Tabelle_Riferimento!$D$127:$G$164,4,FALSE)","v":"Laboratori e attrezzature"},1,{"$f":"+VLOOKUP(H260,TT_Tabelle_Riferimento!$F$3:$G$6,2,FALSE)","v":"Servizio idrico integrato"},2026,{"$f":"+SUMIFS('PdI-crono_inv'!AW:AW,'PdI-crono_inv'!CF:CF,F260,'PdI-crono_inv'!CE:CE,H260,'PdI-crono_inv'!J:J,P260,'PdI-crono_inv'!P:P,\"<>proprietario\")","v":0},null,{"$f":"+SUMIFS('PdI-crono_inv'!AX:AX,'PdI-crono_inv'!CF:CF,F260,'PdI-crono_inv'!CE:CE,H260,'PdI-crono_inv'!J:J,P260,'PdI-crono_inv'!P:P,\"<>proprietario\")+S260","v":0},null,null,"Non ERC",{"$f":"+VLOOKUP(F260,TT_Tabelle_Riferimento!$D$127:$E$164,2,FALSE)","v":"Comune"},"",0]
[0,0,"Gestore",0,"IP",30,{"$f":"+VLOOKUP(F261,TT_Tabelle_Riferimento!$D$127:$G$164,4,FALSE)","v":"Sistemi informativi"},1,{"$f":"+VLOOKUP(H261,TT_Tabelle_Riferimento!$F$3:$G$6,2,FALSE)","v":"Servizio idrico integrato"},2026,{"$f":"+SUMIFS('PdI-crono_inv'!AW:AW,'PdI-crono_inv'!CF:CF,F261,'PdI-crono_inv'!CE:CE,H261,'PdI-crono_inv'!J:J,P261,'PdI-crono_inv'!P:P,\"<>proprietario\")","v":0},null,{"$f":"+SUMIFS('PdI-crono_inv'!AX:AX,'PdI-crono_inv'!CF:CF,F261,'PdI-crono_inv'!CE:CE,H261,'PdI-crono_inv'!J:J,P261,'PdI-crono_inv'!P:P,\"<>proprietario\")+S261","v":0},null,null,"Non ERC",{"$f":"+VLOOKUP(F261,TT_Tabelle_Riferimento!$D$127:$E$164,2,FALSE)","v":"Comune"},"",0]
[0,0,"Gestore",0,"IP",31,{"$f":"+VLOOKUP(F262,TT_Tabelle_Riferimento!$D$127:$G$164,4,FALSE)","v":"Telecontrollo e teletrasmissione"},1,{"$f":"+VLOOKUP(H262,TT_Tabelle_Riferimento!$F$3:$G$6,2,FALSE)","v":"Servizio idrico integrato"},2026,{"$f":"+SUMIFS('PdI-crono_inv'!AW:AW,'PdI-crono_inv'!CF:CF,F262,'PdI-crono_inv'!CE:CE,H262,'PdI-crono_inv'!J:J,P262,'PdI-crono_inv'!P:P,\"<>proprietario\")","v":0},null,{"$f":"+SUMIFS('PdI-crono_inv'!AX:AX,'PdI-crono_inv'!CF:CF,F262,'PdI-crono_inv'!CE:CE,H262,'PdI-crono_inv'!J:J,P262,'PdI-crono_inv'!P:P,\"<>proprietario\")+S262","v":0},null,null,"Non ERC",{"$f":"+VLOOKUP(F262,TT_Tabelle_Riferimento!$D$127:$E$164,2,FALSE)","v":"Comune"},"",0]
[0,0,"Gestore",0,"IP",32,{"$f":"+VLOOKUP(F263,TT_Tabelle_Riferimento!$D$127:$G$164,4,FALSE)","v":"Autoveicoli - automezzi"},1,{"$f":"+VLOOKUP(H263,TT_Tabelle_Riferimento!$F$3:$G$6,2,FALSE)","v":"Servizio idrico integrato"},2026,{"$f":"+SUMIFS('PdI-crono_inv'!AW:AW,'PdI-crono_inv'!CF:CF,F263,'PdI-crono_inv'!CE:CE,H263,'PdI-crono_inv'!J:J,P263,'PdI-crono_inv'!P:P,\"<>proprietario\")","v":0},null,{"$f":"+SUMIFS('PdI-crono_inv'!AX:AX,'PdI-crono_inv'!CF:CF,F263,'PdI-crono_inv'!CE:CE,H263,'PdI-crono_inv'!J:J,P263,'PdI-crono_inv'!P:P,\"<>proprietario\")+S263","v":0},null,null,"Non ERC",{"$f":"+VLOOKUP(F263,TT_Tabelle_Riferimento!$D$127:$E$164,2,FALSE)","v":"Comune"},"",{"$f":"+IFERROR(HLOOKUP(J263,$X$2:$Y$5,4,FALSE)*K263,0)","v":0}]
[0,0,"Gestore",0,"IP",1,{"$f":"+VLOOKUP(F264,TT_Tabelle_Riferimento!$D$127:$G$164,4,FALSE)","v":"Terreni"},1,{"$f":"+VLOOKUP(H264,TT_Tabelle_Riferimento!$F$3:$G$6,2,FALSE)","v":"Servizio idrico integrato"},2026,{"$f":"+SUMIFS('PdI-crono_inv'!AW:AW,'PdI-crono_inv'!CF:CF,F264,'PdI-crono_inv'!CE:CE,H264,'PdI-crono_inv'!J:J,P264,'PdI-crono_inv'!P:P,\"<>proprietario\")","v":0},null,{"$f":"+SUMIFS('PdI-crono_inv'!AX:AX,'PdI-crono_inv'!CF:CF,F264,'PdI-crono_inv'!CE:CE,H264,'PdI-crono_inv'!J:J,P264,'PdI-crono_inv'!P:P,\"<>proprietario\")+S264","v":0},null,null,"Non ERC",{"$f":"+VLOOKUP(F264,TT_Tabelle_Riferimento!$D$127:$E$164,2,FALSE)","v":"Comune"},"",0]
[0,0,"Gestore",0,"IP",33,{"$f":"+VLOOKUP(F265,TT_Tabelle_Riferimento!$D$127:$G$164,4,FALSE)","v":"Fabbricati non industriali"},1,{"$f":"+VLOOKUP(H265,TT_Tabelle_Riferimento!$F$3:$G$6,2,FALSE)","v":"Servizio idrico integrato"},2026,{"$f":"+SUMIFS('PdI-crono_inv'!AW:AW,'PdI-crono_inv'!CF:CF,F265,'PdI-crono_inv'!CE:CE,H265,'PdI-crono_inv'!J:J,P265,'PdI-crono_inv'!P:P,\"<>proprietario\")","v":0},null,{"$f":"+SUMIFS('PdI-crono_inv'!AX:AX,'PdI-crono_inv'!CF:CF,F265,'PdI-crono_inv'!CE:CE,H265,'PdI-crono_inv'!J:J,P265,'PdI-crono_inv'!P:P,\"<>proprietario\")+S265","v":0},null,null,"Non ERC",{"$f":"+VLOOKUP(F265,TT_Tabelle_Riferimento!$D$127:$E$164,2,FALSE)","v":"Comune"},"",0]
[0,0,"Gestore",0,"IP",34,{"$f":"+VLOOKUP(F266,TT_Tabelle_Riferimento!$D$127:$G$164,4,FALSE)","v":"Fabbricati industriali"},1,{"$f":"+VLOOKUP(H266,TT_Tabelle_Riferimento!$F$3:$G$6,2,FALSE)","v":"Servizio idrico integrato"},2026,{"$f":"+SUMIFS('PdI-crono_inv'!AW:AW,'PdI-crono_inv'!CF:CF,F266,'PdI-crono_inv'!CE:CE,H266,'PdI-crono_inv'!J:J,P266,'PdI-crono_inv'!P:P,\"<>proprietario\")","v":0},null,{"$f":"+SUMIFS('PdI-crono_inv'!AX:AX,'PdI-crono_inv'!CF:CF,F266,'PdI-crono_inv'!CE:CE,H266,'PdI-crono_inv'!J:J,P266,'PdI-crono_inv'!P:P,\"<>proprietario\")+S266","v":0},null,null,"Non ERC",{"$f":"+VLOOKUP(F266,TT_Tabelle_Riferimento!$D$127:$E$164,2,FALSE)","v":"Comune"},"",0]
[0,0,"Gestore",0,"IP",35,{"$f":"+VLOOKUP(F267,TT_Tabelle_Riferimento!$D$127:$G$164,4,FALSE)","v":"Costruzioni leggere"},1,{"$f":"+VLOOKUP(H267,TT_Tabelle_Riferimento!$F$3:$G$6,2,FALSE)","v":"Servizio idrico integrato"},2026,{"$f":"+SUMIFS('PdI-crono_inv'!AW:AW,'PdI-crono_inv'!CF:CF,F267,'PdI-crono_inv'!CE:CE,H267,'PdI-crono_inv'!J:J,P267,'PdI-crono_inv'!P:P,\"<>proprietario\")","v":0},null,{"$f":"+SUMIFS('PdI-crono_inv'!AX:AX,'PdI-crono_inv'!CF:CF,F267,'PdI-crono_inv'!CE:CE,H267,'PdI-crono_inv'!J:J,P267,'PdI-crono_inv'!P:P,\"<>proprietario\")+S267","v":0},null,null,"Non ERC",{"$f":"+VLOOKUP(F267,TT_Tabelle_Riferimento!$D$127:$E$164,2,FALSE)","v":"Comune"},"",0]
[0,0,"Gestore",0,"IP",36,{"$f":"+VLOOKUP(F268,TT_Tabelle_Riferimento!$D$127:$G$164,4,FALSE)","v":"Studi, ricerche, brevetti, diritti di utilizzazione"},1,{"$f":"+VLOOKUP(H268,TT_Tabelle_Riferimento!$F$3:$G$6,2,FALSE)","v":"Servizio idrico integrato"},2026,{"$f":"+SUMIFS('PdI-crono_inv'!AW:AW,'PdI-crono_inv'!CF:CF,F268,'PdI-crono_inv'!CE:CE,H268,'PdI-crono_inv'!J:J,P268,'PdI-crono_inv'!P:P,\"<>proprietario\")","v":0},null,{"$f":"+SUMIFS('PdI-crono_inv'!AX:AX,'PdI-crono_inv'!CF:CF,F268,'PdI-crono_inv'!CE:CE,H268,'PdI-crono_inv'!J:J,P268,'PdI-crono_inv'!P:P,\"<>proprietario\")+S268","v":0},null,null,"Non ERC",{"$f":"+VLOOKUP(F268,TT_Tabelle_Riferimento!$D$127:$E$164,2,FALSE)","v":"Comune"},"",0]
[0,0,"Gestore",0,"IP",37,{"$f":"+VLOOKUP(F269,TT_Tabelle_Riferimento!$D$127:$G$164,4,FALSE)","v":"Altre immobilizzazioni materiali e immateriali"},1,{"$f":"+VLOOKUP(H269,TT_Tabelle_Riferimento!$F$3:$G$6,2,FALSE)","v":"Servizio idrico integrato"},2026,{"$f":"+SUMIFS('PdI-crono_inv'!AW:AW,'PdI-crono_inv'!CF:CF,F269,'PdI-crono_inv'!CE:CE,H269,'PdI-crono_inv'!J:J,P269,'PdI-crono_inv'!P:P,\"<>proprietario\")","v":0},null,{"$f":"+SUMIFS('PdI-crono_inv'!AX:AX,'PdI-crono_inv'!CF:CF,F269,'PdI-crono_inv'!CE:CE,H269,'PdI-crono_inv'!J:J,P269,'PdI-crono_inv'!P:P,\"<>proprietario\")+S269","v":0},null,null,"Non ERC",{"$f":"+VLOOKUP(F269,TT_Tabelle_Riferimento!$D$127:$E$164,2,FALSE)","v":"Comune"},"",0]
[0,0,"Gestore",0,"IP",38,{"$f":"+VLOOKUP(F270,TT_Tabelle_Riferimento!$D$127:$G$164,4,FALSE)","v":"Grandi dighe (sbarramenti che superano i quindici metri di altezza o che determinano un invaso superiore a 1 milione di metri cubi)"},1,{"$f":"+VLOOKUP(H270,TT_Tabelle_Riferimento!$F$3:$G$6,2,FALSE)","v":"Servizio idrico integrato"},2026,{"$f":"+SUMIFS('PdI-crono_inv'!AW:AW,'PdI-crono_inv'!CF:CF,F270,'PdI-crono_inv'!CE:CE,H270,'PdI-crono_inv'!J:J,P270,'PdI-crono_inv'!P:P,\"<>proprietario\")","v":0},null,{"$f":"+SUMIFS('PdI-crono_inv'!AX:AX,'PdI-crono_inv'!CF:CF,F270,'PdI-crono_inv'!CE:CE,H270,'PdI-crono_inv'!J:J,P270,'PdI-crono_inv'!P:P,\"<>proprietario\")+S270","v":0},null,null,"Non ERC",{"$f":"+VLOOKUP(F270,TT_Tabelle_Riferimento!$D$127:$E$164,2,FALSE)","v":"Acquedotto"},"",0]
[0,0,"Gestore",0,"IP",39,{"$f":"+VLOOKUP(F271,TT_Tabelle_Riferimento!$D$127:$G$164,4,FALSE)","v":"Piccole dighe (sbarramenti che non superano i quindici metri di altezza o che determinano un invaso non superiore a 1 milione di metri cubi)"},1,{"$f":"+VLOOKUP(H271,TT_Tabelle_Riferimento!$F$3:$G$6,2,FALSE)","v":"Servizio idrico integrato"},2026,{"$f":"+SUMIFS('PdI-crono_inv'!AW:AW,'PdI-crono_inv'!CF:CF,F271,'PdI-crono_inv'!CE:CE,H271,'PdI-crono_inv'!J:J,P271,'PdI-crono_inv'!P:P,\"<>proprietario\")","v":0},null,{"$f":"+SUMIFS('PdI-crono_inv'!AX:AX,'PdI-crono_inv'!CF:CF,F271,'PdI-crono_inv'!CE:CE,H271,'PdI-crono_inv'!J:J,P271,'PdI-crono_inv'!P:P,\"<>proprietario\")+S271","v":0},null,null,"Non ERC",{"$f":"+VLOOKUP(F271,TT_Tabelle_Riferimento!$D$127:$E$164,2,FALSE)","v":"Acquedotto"},"",0]
[{"$f":"+idato","v":0},{"$f":"+idgestore","v":0},"Gestore",0,"IP",2,{"$f":"+VLOOKUP(F272,TT_Tabelle_Riferimento!$D$127:$G$164,4,FALSE)","v":"Condotte di acquedotto"},2,{"$f":"+VLOOKUP(H272,TT_Tabelle_Riferimento!$F$3:$G$6,2,FALSE)","v":"Fognatura bianca e pulizia / manutenzione caditoie stradali"},2026,{"$f":"+SUMIFS('PdI-crono_inv'!AW:AW,'PdI-crono_inv'!CF:CF,F272,'PdI-crono_inv'!CE:CE,H272,'PdI-crono_inv'!J:J,P272,'PdI-crono_inv'!P:P,\"<>proprietario\")","v":0},null,{"$f":"+SUMIFS('PdI-crono_inv'!AX:AX,'PdI-crono_inv'!CF:CF,F272,'PdI-crono_inv'!CE:CE,H272,'PdI-crono_inv'!J:J,P272,'PdI-crono_inv'!P:P,\"<>proprietario\")+S272","v":0},null,null,"Non ERC",{"$f":"+VLOOKUP(F272,TT_Tabelle_Riferimento!$D$127:$E$164,2,FALSE)","v":"Acquedotto"},"",0]
[0,0,"Gestore",0,"IP",3,{"$f":"+VLOOKUP(F273,TT_Tabelle_Riferimento!$D$127:$G$164,4,FALSE)","v":"Opere idrauliche fisse di acquedotto"},2,{"$f":"+VLOOKUP(H273,TT_Tabelle_Riferimento!$F$3:$G$6,2,FALSE)","v":"Fognatura bianca e pulizia / manutenzione caditoie stradali"},2026,{"$f":"+SUMIFS('PdI-crono_inv'!AW:AW,'PdI-crono_inv'!CF:CF,F273,'PdI-crono_inv'!CE:CE,H273,'PdI-crono_inv'!J:J,P273,'PdI-crono_inv'!P:P,\"<>proprietario\")","v":0},null,{"$f":"+SUMIFS('PdI-crono_inv'!AX:AX,'PdI-crono_inv'!CF:CF,F273,'PdI-crono_inv'!CE:CE,H273,'PdI-crono_inv'!J:J,P273,'PdI-crono_inv'!P:P,\"<>proprietario\")+S273","v":0},null,null,"Non ERC",{"$f":"+VLOOKUP(F273,TT_Tabelle_Riferimento!$D$127:$E$164,2,FALSE)","v":"Acquedotto"},"",0]
[0,0,"Gestore",0,"IP",4,{"$f":"+VLOOKUP(F274,TT_Tabelle_Riferimento!$D$127:$G$164,4,FALSE)","v":"Serbatoi"},2,{"$f":"+VLOOKUP(H274,TT_Tabelle_Riferimento!$F$3:$G$6,2,FALSE)","v":"Fognatura bianca e pulizia / manutenzione caditoie stradali"},2026,{"$f":"+SUMIFS('PdI-crono_inv'!AW:AW,'PdI-crono_inv'!CF:CF,F274,'PdI-crono_inv'!CE:CE,H274,'PdI-crono_inv'!J:J,P274,'PdI-crono_inv'!P:P,\"<>proprietario\")","v":0},null,{"$f":"+SUMIFS('PdI-crono_inv'!AX:AX,'PdI-crono_inv'!CF:CF,F274,'PdI-crono_inv'!CE:CE,H274,'PdI-crono_inv'!J:J,P274,'PdI-crono_inv'!P:P,\"<>proprietario\")+S274","v":0},null,null,"Non ERC",{"$f":"+VLOOKUP(F274,TT_Tabelle_Riferimento!$D$127:$E$164,2,FALSE)","v":"Acquedotto"},"",0]
[0,0,"Gestore",0,"IP",5,{"$f":"+VLOOKUP(F275,TT_Tabelle_Riferimento!$D$127:$G$164,4,FALSE)","v":"Impianti di sollevamento e pompaggio di acquedotto"},2,{"$f":"+VLOOKUP(H275,TT_Tabelle_Riferimento!$F$3:$G$6,2,FALSE)","v":"Fognatura bianca e pulizia / manutenzione caditoie stradali"},2026,{"$f":"+SUMIFS('PdI-crono_inv'!AW:AW,'PdI-crono_inv'!CF:CF,F275,'PdI-crono_inv'!CE:CE,H275,'PdI-crono_inv'!J:J,P275,'PdI-crono_inv'!P:P,\"<>proprietario\")","v":0},null,{"$f":"+SUMIFS('PdI-crono_inv'!AX:AX,'PdI-crono_inv'!CF:CF,F275,'PdI-crono_inv'!CE:CE,H275,'PdI-crono_inv'!J:J,P275,'PdI-crono_inv'!P:P,\"<>proprietario\")+S275","v":0},null,null,"Non ERC",{"$f":"+VLOOKUP(F275,TT_Tabelle_Riferimento!$D$127:$E$164,2,FALSE)","v":"Acquedotto"},"",0]
[0,0,"Gestore",0,"IP",6,{"$f":"+VLOOKUP(F276,TT_Tabelle_Riferimento!$D$127:$G$164,4,FALSE)","v":"Impianti di potabilizzazione"},2,{"$f":"+VLOOKUP(H276,TT_Tabelle_Riferimento!$F$3:$G$6,2,FALSE)","v":"Fognatura bianca e pulizia / manutenzione caditoie stradali"},2026,{"$f":"+SUMIFS('PdI-crono_inv'!AW:AW,'PdI-crono_inv'!CF:CF,F276,'PdI-crono_inv'!CE:CE,H276,'PdI-crono_inv'!J:J,P276,'PdI-crono_inv'!P:P,\"<>proprietario\")","v":0},null,{"$f":"+SUMIFS('PdI-crono_inv'!AX:AX,'PdI-crono_inv'!CF:CF,F276,'PdI-crono_inv'!CE:CE,H276,'PdI-crono_inv'!J:J,P276,'PdI-crono_inv'!P:P,\"<>proprietario\")+S276","v":0},null,null,"Non ERC",{"$f":"+VLOOKUP(F276,TT_Tabelle_Riferimento!$D$127:$E$164,2,FALSE)","v":"Acquedotto"},"",0]
[0,0,"Gestore",0,"IP",7,{"$f":"+VLOOKUP(F277,TT_Tabelle_Riferimento!$D$127:$G$164,4,FALSE)","v":"Altri trattamenti di potabilizzazione (tra cui dispositivi di disinfezione, stacciatura, filtrazione, addolcimento)"},2,{"$f":"+VLOOKUP(H277,TT_Tabelle_Riferimento!$F$3:$G$6,2,FALSE)","v":"Fognatura bianca e pulizia / manutenzione caditoie stradali"},2026,{"$f":"+SUMIFS('PdI-crono_inv'!AW:AW,'PdI-crono_inv'!CF:CF,F277,'PdI-crono_inv'!CE:CE,H277,'PdI-crono_inv'!J:J,P277,'PdI-crono_inv'!P:P,\"<>proprietario\")","v":0},null,{"$f":"+SUMIFS('PdI-crono_inv'!AX:AX,'PdI-crono_inv'!CF:CF,F277,'PdI-crono_inv'!CE:CE,H277,'PdI-crono_inv'!J:J,P277,'PdI-crono_inv'!P:P,\"<>proprietario\")+S277","v":0},null,null,"Non ERC",{"$f":"+VLOOKUP(F277,TT_Tabelle_Riferimento!$D$127:$E$164,2,FALSE)","v":"Acquedotto"},"",0]
[0,0,"Gestore",0,"IP",8,{"$f":"+VLOOKUP(F278,TT_Tabelle_Riferimento!$D$127:$G$164,4,FALSE)","v":"Gruppi di misura - altre attrezzature di acquedotto"},2,{"$f":"+VLOOKUP(H278,TT_Tabelle_Riferimento!$F$3:$G$6,2,FALSE)","v":"Fognatura bianca e pulizia / manutenzione caditoie stradali"},2026,{"$f":"+SUMIFS('PdI-crono_inv'!AW:AW,'PdI-crono_inv'!CF:CF,F278,'PdI-crono_inv'!CE:CE,H278,'PdI-crono_inv'!J:J,P278,'PdI-crono_inv'!P:P,\"<>proprietario\")","v":0},null,{"$f":"+SUMIFS('PdI-crono_inv'!AX:AX,'PdI-crono_inv'!CF:CF,F278,'PdI-crono_inv'!CE:CE,H278,'PdI-crono_inv'!J:J,P278,'PdI-crono_inv'!P:P,\"<>proprietario\")+S278","v":0},null,null,"Non ERC",{"$f":"+VLOOKUP(F278,TT_Tabelle_Riferimento!$D$127:$E$164,2,FALSE)","v":"Acquedotto"},"",0]
[0,0,"Gestore",0,"IP",9,{"$f":"+VLOOKUP(F279,TT_Tabelle_Riferimento!$D$127:$G$164,4,FALSE)","v":"Sistemi informativi di acquedotto"},2,{"$f":"+VLOOKUP(H279,TT_Tabelle_Riferimento!$F$3:$G$6,2,FALSE)","v":"Fognatura bianca e pulizia / manutenzione caditoie stradali"},2026,{"$f":"+SUMIFS('PdI-crono_inv'!AW:AW,'PdI-crono_inv'!CF:CF,F279,'PdI-crono_inv'!CE:CE,H279,'PdI-crono_inv'!J:J,P279,'PdI-crono_inv'!P:P,\"<>proprietario\")","v":0},null,{"$f":"+SUMIFS('PdI-crono_inv'!AX:AX,'PdI-crono_inv'!CF:CF,F279,'PdI-crono_inv'!CE:CE,H279,'PdI-crono_inv'!J:J,P279,'PdI-crono_inv'!P:P,\"<>proprietario\")+S279","v":0},null,null,"Non ERC",{"$f":"+VLOOKUP(F279,TT_Tabelle_Riferimento!$D$127:$E$164,2,FALSE)","v":"Acquedotto"},"",0]
[0,0,"Gestore",0,"IP",10,{"$f":"+VLOOKUP(F280,TT_Tabelle_Riferimento!$D$127:$G$164,4,FALSE)","v":"Telecontrollo e teletrasmissione di acquedotto"},2,{"$f":"+VLOOKUP(H280,TT_Tabelle_Riferimento!$F$3:$G$6,2,FALSE)","v":"Fognatura bianca e pulizia / manutenzione caditoie stradali"},2026,{"$f":"+SUMIFS('PdI-crono_inv'!AW:AW,'PdI-crono_inv'!CF:CF,F280,'PdI-crono_inv'!CE:CE,H280,'PdI-crono_inv'!J:J,P280,'PdI-crono_inv'!P:P,\"<>proprietario\")","v":0},null,{"$f":"+SUMIFS('PdI-crono_inv'!AX:AX,'PdI-crono_inv'!CF:CF,F280,'PdI-crono_inv'!CE:CE,H280,'PdI-crono_inv'!J:J,P280,'PdI-crono_inv'!P:P,\"<>proprietario\")+S280","v":0},null,null,"Non ERC",{"$f":"+VLOOKUP(F280,TT_Tabelle_Riferimento!$D$127:$E$164,2,FALSE)","v":"Acquedotto"},"",0]
[0,0,"Gestore",0,"IP",11,{"$f":"+VLOOKUP(F281,TT_Tabelle_Riferimento!$D$127:$G$164,4,FALSE)","v":"Condotte fognarie"},2,{"$f":"+VLOOKUP(H281,TT_Tabelle_Riferimento!$F$3:$G$6,2,FALSE)","v":"Fognatura bianca e pulizia / manutenzione caditoie stradali"},2026,{"$f":"+SUMIFS('PdI-crono_inv'!AW:AW,'PdI-crono_inv'!CF:CF,F281,'PdI-crono_inv'!CE:CE,H281,'PdI-crono_inv'!J:J,P281,'PdI-crono_inv'!P:P,\"<>proprietario\")","v":0},null,{"$f":"+SUMIFS('PdI-crono_inv'!AX:AX,'PdI-crono_inv'!CF:CF,F281,'PdI-crono_inv'!CE:CE,H281,'PdI-crono_inv'!J:J,P281,'PdI-crono_inv'!P:P,\"<>proprietario\")+S281","v":0},null,null,"Non ERC",{"$f":"+VLOOKUP(F281,TT_Tabelle_Riferimento!$D$127:$E$164,2,FALSE)","v":"Fognatura"},"",0]
[0,0,"Gestore",0,"IP",12,{"$f":"+VLOOKUP(F282,TT_Tabelle_Riferimento!$D$127:$G$164,4,FALSE)","v":"Sifoni e scaricatori di piena e altre opere idrauliche fisse di fognatura"},2,{"$f":"+VLOOKUP(H282,TT_Tabelle_Riferimento!$F$3:$G$6,2,FALSE)","v":"Fognatura bianca e pulizia / manutenzione caditoie stradali"},2026,{"$f":"+SUMIFS('PdI-crono_inv'!AW:AW,'PdI-crono_inv'!CF:CF,F282,'PdI-crono_inv'!CE:CE,H282,'PdI-crono_inv'!J:J,P282,'PdI-crono_inv'!P:P,\"<>proprietario\")","v":0},null,{"$f":"+SUMIFS('PdI-crono_inv'!AX:AX,'PdI-crono_inv'!CF:CF,F282,'PdI-crono_inv'!CE:CE,H282,'PdI-crono_inv'!J:J,P282,'PdI-crono_inv'!P:P,\"<>proprietario\")+S282","v":0},null,null,"Non ERC",{"$f":"+VLOOKUP(F282,TT_Tabelle_Riferimento!$D$127:$E$164,2,FALSE)","v":"Fognatura"},"",0]
[0,0,"Gestore",0,"IP",13,{"$f":"+VLOOKUP(F283,TT_Tabelle_Riferimento!$D$127:$G$164,4,FALSE)","v":"Vasche di laminazione e vasche di prima pioggia"},2,{"$f":"+VLOOKUP(H283,TT_Tabelle_Riferimento!$F$3:$G$6,2,FALSE)","v":"Fognatura bianca e pulizia / manutenzione caditoie stradali"},2026,{"$f":"+SUMIFS('PdI-crono_inv'!AW:AW,'PdI-crono_inv'!CF:CF,F283,'PdI-crono_inv'!CE:CE,H283,'PdI-crono_inv'!J:J,P283,'PdI-crono_inv'!P:P,\"<>proprietario\")","v":0},null,{"$f":"+SUMIFS('PdI-crono_inv'!AX:AX,'PdI-crono_inv'!CF:CF,F283,'PdI-crono_inv'!CE:CE,H283,'PdI-crono_inv'!J:J,P283,'PdI-crono_inv'!P:P,\"<>proprietario\")+S283","v":0},null,null,"Non ERC",{"$f":"+VLOOKUP(F283,TT_Tabelle_Riferimento!$D$127:$E$164,2,FALSE)","v":"Fognatura"},"",0]
[0,0,"Gestore",0,"IP",14,{"$f":"+VLOOKUP(F284,TT_Tabelle_Riferimento!$D$127:$G$164,4,FALSE)","v":"Impianti di sollevamento e pompaggio di fognatura"},2,{"$f":"+VLOOKUP(H284,TT_Tabelle_Riferimento!$F$3:$G$6,2,FALSE)","v":"Fognatura bianca e pulizia / manutenzione caditoie stradali"},2026,{"$f":"+SUMIFS('PdI-crono_inv'!AW:AW,'PdI-crono_inv'!CF:CF,F284,'PdI-crono_inv'!CE:CE,H284,'PdI-crono_inv'!J:J,P284,'PdI-crono_inv'!P:P,\"<>proprietario\")","v":0},null,{"$f":"+SUMIFS('PdI-crono_inv'!AX:AX,'PdI-crono_inv'!CF:CF,F284,'PdI-crono_inv'!CE:CE,H284,'PdI-crono_inv'!J:J,P284,'PdI-crono_inv'!P:P,\"<>proprietario\")+S284","v":0},null,null,"Non ERC",{"$f":"+VLOOKUP(F284,TT_Tabelle_Riferimento!$D$127:$E$164,2,FALSE)","v":"Fognatura"},"",0]
[0,0,"Gestore",0,"IP",15,{"$f":"+VLOOKUP(F285,TT_Tabelle_Riferimento!$D$127:$G$164,4,FALSE)","v":"Gruppi di misura - altre attrezzature di fognatura"},2,{"$f":"+VLOOKUP(H285,TT_Tabelle_Riferimento!$F$3:$G$6,2,FALSE)","v":"Fognatura bianca e pulizia / manutenzione caditoie stradali"},2026,{"$f":"+SUMIFS('PdI-crono_inv'!AW:AW,'PdI-crono_inv'!CF:CF,F285,'PdI-crono_inv'!CE:CE,H285,'PdI-crono_inv'!J:J,P285,'PdI-crono_inv'!P:P,\"<>proprietario\")","v":0},null,{"$f":"+SUMIFS('PdI-crono_inv'!AX:AX,'PdI-crono_inv'!CF:CF,F285,'PdI-crono_inv'!CE:CE,H285,'PdI-crono_inv'!J:J,P285,'PdI-crono_inv'!P:P,\"<>proprietario\")+S285","v":0},null,null,"Non ERC",{"$f":"+VLOOKUP(F285,TT_Tabelle_Riferimento!$D$127:$E$164,2,FALSE)","v":"Fognatura"},"",0]
[0,0,"Gestore",0,"IP",16,{"$f":"+VLOOKUP(F286,TT_Tabelle_Riferimento!$D$127:$G$164,4,FALSE)","v":"Sistemi informativi di fognatura"},2,{"$f":"+VLOOKUP(H286,TT_Tabelle_Riferimento!$F$3:$G$6,2,FALSE)","v":"Fognatura bianca e pulizia / manutenzione caditoie stradali"},2026,{"$f":"+SUMIFS('PdI-crono_inv'!AW:AW,'PdI-crono_inv'!CF:CF,F286,'PdI-crono_inv'!CE:CE,H286,'PdI-crono_inv'!J:J,P286,'PdI-crono_inv'!P:P,\"<>proprietario\")","v":0},null,{"$f":"+SUMIFS('PdI-crono_inv'!AX:AX,'PdI-crono_inv'!CF:CF,F286,'PdI-crono_inv'!CE:CE,H286,'PdI-crono_inv'!J:J,P286,'PdI-crono_inv'!P:P,\"<>proprietario\")+S286","v":0},null,null,"Non ERC",{"$f":"+VLOOKUP(F286,TT_Tabelle_Riferimento!$D$127:$E$164,2,FALSE)","v":"Fognatura"},"",0]
[0,0,"Gestore",0,"IP",18,{"$f":"+VLOOKUP(F287,TT_Tabelle_Riferimento!$D$127:$G$164,4,FALSE)","v":"Telecontrollo e teletrasmissione di fognatura"},2,{"$f":"+VLOOKUP(H287,TT_Tabelle_Riferimento!$F$3:$G$6,2,FALSE)","v":"Fognatura bianca e pulizia / manutenzione caditoie stradali"},2026,{"$f":"+SUMIFS('PdI-crono_inv'!AW:AW,'PdI-crono_inv'!CF:CF,F287,'PdI-crono_inv'!CE:CE,H287,'PdI-crono_inv'!J:J,P287,'PdI-crono_inv'!P:P,\"<>proprietario\")","v":0},null,{"$f":"+SUMIFS('PdI-crono_inv'!AX:AX,'PdI-crono_inv'!CF:CF,F287,'PdI-crono_inv'!CE:CE,H287,'PdI-crono_inv'!J:J,P287,'PdI-crono_inv'!P:P,\"<>proprietario\")+S287","v":0},null,null,"Non ERC",{"$f":"+VLOOKUP(F287,TT_Tabelle_Riferimento!$D$127:$E$164,2,FALSE)","v":"Fognatura"},"",0]
[0,0,"Gestore",0,"IP",19,{"$f":"+VLOOKUP(F288,TT_Tabelle_Riferimento!$D$127:$G$164,4,FALSE)","v":"Impianti di sollevamento e pompaggio di depurazione"},2,{"$f":"+VLOOKUP(H288,TT_Tabelle_Riferimento!$F$3:$G$6,2,FALSE)","v":"Fognatura bianca e pulizia / manutenzione caditoie stradali"},2026,{"$f":"+SUMIFS('PdI-crono_inv'!AW:AW,'PdI-crono_inv'!CF:CF,F288,'PdI-crono_inv'!CE:CE,H288,'PdI-crono_inv'!J:J,P288,'PdI-crono_inv'!P:P,\"<>proprietario\")","v":0},null,{"$f":"+SUMIFS('PdI-crono_inv'!AX:AX,'PdI-crono_inv'!CF:CF,F288,'PdI-crono_inv'!CE:CE,H288,'PdI-crono_inv'!J:J,P288,'PdI-crono_inv'!P:P,\"<>proprietario\")+S288","v":0},null,null,"Non ERC",{"$f":"+VLOOKUP(F288,TT_Tabelle_Riferimento!$D$127:$E$164,2,FALSE)","v":"Depurazione"},"",0]
[0,0,"Gestore",0,"IP",20,{"$f":"+VLOOKUP(F289,TT_Tabelle_Riferimento!$D$127:$G$164,4,FALSE)","v":"Tecniche naturali di depurazione (tra cui fitodepurazione e lagunaggio)"},2,{"$f":"+VLOOKUP(H289,TT_Tabelle_Riferimento!$F$3:$G$6,2,FALSE)","v":"Fognatura bianca e pulizia / manutenzione caditoie stradali"},2026,{"$f":"+SUMIFS('PdI-crono_inv'!AW:AW,'PdI-crono_inv'!CF:CF,F289,'PdI-crono_inv'!CE:CE,H289,'PdI-crono_inv'!J:J,P289,'PdI-crono_inv'!P:P,\"<>proprietario\")","v":0},null,{"$f":"+SUMIFS('PdI-crono_inv'!AX:AX,'PdI-crono_inv'!CF:CF,F289,'PdI-crono_inv'!CE:CE,H289,'PdI-crono_inv'!J:J,P289,'PdI-crono_inv'!P:P,\"<>proprietario\")+S289","v":0},null,null,"Non ERC",{"$f":"+VLOOKUP(F289,TT_Tabelle_Riferimento!$D$127:$E$164,2,FALSE)","v":"Depurazione"},"",0]
[0,0,"Gestore",0,"IP",21,{"$f":"+VLOOKUP(F290,TT_Tabelle_Riferimento!$D$127:$G$164,4,FALSE)","v":"Impianti di depurazione – trattamenti sino al preliminare, integrativo, primario - fosse settiche e fosse Imhoff"},2,{"$f":"+VLOOKUP(H290,TT_Tabelle_Riferimento!$F$3:$G$6,2,FALSE)","v":"Fognatura bianca e pulizia / manutenzione caditoie stradali"},2026,{"$f":"+SUMIFS('PdI-crono_inv'!AW:AW,'PdI-crono_inv'!CF:CF,F290,'PdI-crono_inv'!CE:CE,H290,'PdI-crono_inv'!J:J,P290,'PdI-crono_inv'!P:P,\"<>proprietario\")","v":0},null,{"$f":"+SUMIFS('PdI-crono_inv'!AX:AX,'PdI-crono_inv'!CF:CF,F290,'PdI-crono_inv'!CE:CE,H290,'PdI-crono_inv'!J:J,P290,'PdI-crono_inv'!P:P,\"<>proprietario\")+S290","v":0},null,null,"Non ERC",{"$f":"+VLOOKUP(F290,TT_Tabelle_Riferimento!$D$127:$E$164,2,FALSE)","v":"Depurazione"},"",0]
[0,0,"Gestore",0,"IP",22,{"$f":"+VLOOKUP(F291,TT_Tabelle_Riferimento!$D$127:$G$164,4,FALSE)","v":"Impianti di depurazione – trattamenti sino al secondario"},2,{"$f":"+VLOOKUP(H291,TT_Tabelle_Riferimento!$F$3:$G$6,2,FALSE)","v":"Fognatura bianca e pulizia / manutenzione caditoie stradali"},2026,{"$f":"+SUMIFS('PdI-crono_inv'!AW:AW,'PdI-crono_inv'!CF:CF,F291,'PdI-crono_inv'!CE:CE,H291,'PdI-crono_inv'!J:J,P291,'PdI-crono_inv'!P:P,\"<>proprietario\")","v":0},null,{"$f":"+SUMIFS('PdI-crono_inv'!AX:AX,'PdI-crono_inv'!CF:CF,F291,'PdI-crono_inv'!CE:CE,H291,'PdI-crono_inv'!J:J,P291,'PdI-crono_inv'!P:P,\"<>proprietario\")+S291","v":0},null,null,"Non ERC",{"$f":"+VLOOKUP(F291,TT_Tabelle_Riferimento!$D$127:$E$164,2,FALSE)","v":"Depurazione"},"",0]
[0,0,"Gestore",0,"IP",23,{"$f":"+VLOOKUP(F292,TT_Tabelle_Riferimento!$D$127:$G$164,4,FALSE)","v":"Impianti di depurazione – trattamenti sino al terziario e terziario avanzato"},2,{"$f":"+VLOOKUP(H292,TT_Tabelle_Riferimento!$F$3:$G$6,2,FALSE)","v":"Fognatura bianca e pulizia / manutenzione caditoie stradali"},2026,{"$f":"+SUMIFS('PdI-crono_inv'!AW:AW,'PdI-crono_inv'!CF:CF,F292,'PdI-crono_inv'!CE:CE,H292,'PdI-crono_inv'!J:J,P292,'PdI-crono_inv'!P:P,\"<>proprietario\")","v":0},null,{"$f":"+SUMIFS('PdI-crono_inv'!AX:AX,'PdI-crono_inv'!CF:CF,F292,'PdI-crono_inv'!CE:CE,H292,'PdI-crono_inv'!J:J,P292,'PdI-crono_inv'!P:P,\"<>proprietario\")+S292","v":0},null,null,"Non ERC",{"$f":"+VLOOKUP(F292,TT_Tabelle_Riferimento!$D$127:$E$164,2,FALSE)","v":"Depurazione"},"",0]
[0,0,"Gestore",0,"IP",24,{"$f":"+VLOOKUP(F293,TT_Tabelle_Riferimento!$D$127:$G$164,4,FALSE)","v":"Impianti di essiccamento fanghi e di valorizzazione dei fanghi (tra cui mono-incenerimento, pirolisi, gassificazione)"},2,{"$f":"+VLOOKUP(H293,TT_Tabelle_Riferimento!$F$3:$G$6,2,FALSE)","v":"Fognatura bianca e pulizia / manutenzione caditoie stradali"},2026,{"$f":"+SUMIFS('PdI-crono_inv'!AW:AW,'PdI-crono_inv'!CF:CF,F293,'PdI-crono_inv'!CE:CE,H293,'PdI-crono_inv'!J:J,P293,'PdI-crono_inv'!P:P,\"<>proprietario\")","v":0},null,{"$f":"+SUMIFS('PdI-crono_inv'!AX:AX,'PdI-crono_inv'!CF:CF,F293,'PdI-crono_inv'!CE:CE,H293,'PdI-crono_inv'!J:J,P293,'PdI-crono_inv'!P:P,\"<>proprietario\")+S293","v":0},null,null,"Non ERC",{"$f":"+VLOOKUP(F293,TT_Tabelle_Riferimento!$D$127:$E$164,2,FALSE)","v":"Depurazione"},"",0]
[0,0,"Gestore",0,"IP",25,{"$f":"+VLOOKUP(F294,TT_Tabelle_Riferimento!$D$127:$G$164,4,FALSE)","v":"Gruppi di misura - altre attrezzature di depurazione"},2,{"$f":"+VLOOKUP(H294,TT_Tabelle_Riferimento!$F$3:$G$6,2,FALSE)","v":"Fognatura bianca e pulizia / manutenzione caditoie stradali"},2026,{"$f":"+SUMIFS('PdI-crono_inv'!AW:AW,'PdI-crono_inv'!CF:CF,F294,'PdI-crono_inv'!CE:CE,H294,'PdI-crono_inv'!J:J,P294,'PdI-crono_inv'!P:P,\"<>proprietario\")","v":0},null,{"$f":"+SUMIFS('PdI-crono_inv'!AX:AX,'PdI-crono_inv'!CF:CF,F294,'PdI-crono_inv'!CE:CE,H294,'PdI-crono_inv'!J:J,P294,'PdI-crono_inv'!P:P,\"<>proprietario\")+S294","v":0},null,null,"Non ERC",{"$f":"+VLOOKUP(F294,TT_Tabelle_Riferimento!$D$127:$E$164,2,FALSE)","v":"Depurazione"},"",0]
[0,0,"Gestore",0,"IP",26,{"$f":"+VLOOKUP(F295,TT_Tabelle_Riferimento!$D$127:$G$164,4,FALSE)","v":"Sistemi informativi di depurazione"},2,{"$f":"+VLOOKUP(H295,TT_Tabelle_Riferimento!$F$3:$G$6,2,FALSE)","v":"Fognatura bianca e pulizia / manutenzione caditoie stradali"},2026,{"$f":"+SUMIFS('PdI-crono_inv'!AW:AW,'PdI-crono_inv'!CF:CF,F295,'PdI-crono_inv'!CE:CE,H295,'PdI-crono_inv'!J:J,P295,'PdI-crono_inv'!P:P,\"<>proprietario\")","v":0},null,{"$f":"+SUMIFS('PdI-crono_inv'!AX:AX,'PdI-crono_inv'!CF:CF,F295,'PdI-crono_inv'!CE:CE,H295,'PdI-crono_inv'!J:J,P295,'PdI-crono_inv'!P:P,\"<>proprietario\")+S295","v":0},null,null,"Non ERC",{"$f":"+VLOOKUP(F295,TT_Tabelle_Riferimento!$D$127:$E$164,2,FALSE)","v":"Depurazione"},"",0]
[0,0,"Gestore",0,"IP",27,{"$f":"+VLOOKUP(F296,TT_Tabelle_Riferimento!$D$127:$G$164,4,FALSE)","v":"Telecontrollo e teletrasmissione di depurazione"},2,{"$f":"+VLOOKUP(H296,TT_Tabelle_Riferimento!$F$3:$G$6,2,FALSE)","v":"Fognatura bianca e pulizia / manutenzione caditoie stradali"},2026,{"$f":"+SUMIFS('PdI-crono_inv'!AW:AW,'PdI-crono_inv'!CF:CF,F296,'PdI-crono_inv'!CE:CE,H296,'PdI-crono_inv'!J:J,P296,'PdI-crono_inv'!P:P,\"<>proprietario\")","v":0},null,{"$f":"+SUMIFS('PdI-crono_inv'!AX:AX,'PdI-crono_inv'!CF:CF,F296,'PdI-crono_inv'!CE:CE,H296,'PdI-crono_inv'!J:J,P296,'PdI-crono_inv'!P:P,\"<>proprietario\")+S296","v":0},null,null,"Non ERC",{"$f":"+VLOOKUP(F296,TT_Tabelle_Riferimento!$D$127:$E$164,2,FALSE)","v":"Depurazione"},"",0]
[0,0,"Gestore",0,"IP",28,{"$f":"+VLOOKUP(F297,TT_Tabelle_Riferimento!$D$127:$G$164,4,FALSE)","v":"Altri impianti"},2,{"$f":"+VLOOKUP(H297,TT_Tabelle_Riferimento!$F$3:$G$6,2,FALSE)","v":"Fognatura bianca e pulizia / manutenzione caditoie stradali"},2026,{"$f":"+SUMIFS('PdI-crono_inv'!AW:AW,'PdI-crono_inv'!CF:CF,F297,'PdI-crono_inv'!CE:CE,H297,'PdI-crono_inv'!J:J,P297,'PdI-crono_inv'!P:P,\"<>proprietario\")","v":0},null,{"$f":"+SUMIFS('PdI-crono_inv'!AX:AX,'PdI-crono_inv'!CF:CF,F297,'PdI-crono_inv'!CE:CE,H297,'PdI-crono_inv'!J:J,P297,'PdI-crono_inv'!P:P,\"<>proprietario\")+S297","v":0},null,null,"Non ERC",{"$f":"+VLOOKUP(F297,TT_Tabelle_Riferimento!$D$127:$E$164,2,FALSE)","v":"Comune"},"",0]
[0,0,"Gestore",0,"IP",29,{"$f":"+VLOOKUP(F298,TT_Tabelle_Riferimento!$D$127:$G$164,4,FALSE)","v":"Laboratori e attrezzature"},2,{"$f":"+VLOOKUP(H298,TT_Tabelle_Riferimento!$F$3:$G$6,2,FALSE)","v":"Fognatura bianca e pulizia / manutenzione caditoie stradali"},2026,{"$f":"+SUMIFS('PdI-crono_inv'!AW:AW,'PdI-crono_inv'!CF:CF,F298,'PdI-crono_inv'!CE:CE,H298,'PdI-crono_inv'!J:J,P298,'PdI-crono_inv'!P:P,\"<>proprietario\")","v":0},null,{"$f":"+SUMIFS('PdI-crono_inv'!AX:AX,'PdI-crono_inv'!CF:CF,F298,'PdI-crono_inv'!CE:CE,H298,'PdI-crono_inv'!J:J,P298,'PdI-crono_inv'!P:P,\"<>proprietario\")+S298","v":0},null,null,"Non ERC",{"$f":"+VLOOKUP(F298,TT_Tabelle_Riferimento!$D$127:$E$164,2,FALSE)","v":"Comune"},"",0]
[0,0,"Gestore",0,"IP",30,{"$f":"+VLOOKUP(F299,TT_Tabelle_Riferimento!$D$127:$G$164,4,FALSE)","v":"Sistemi informativi"},2,{"$f":"+VLOOKUP(H299,TT_Tabelle_Riferimento!$F$3:$G$6,2,FALSE)","v":"Fognatura bianca e pulizia / manutenzione caditoie stradali"},2026,{"$f":"+SUMIFS('PdI-crono_inv'!AW:AW,'PdI-crono_inv'!CF:CF,F299,'PdI-crono_inv'!CE:CE,H299,'PdI-crono_inv'!J:J,P299,'PdI-crono_inv'!P:P,\"<>proprietario\")","v":0},null,{"$f":"+SUMIFS('PdI-crono_inv'!AX:AX,'PdI-crono_inv'!CF:CF,F299,'PdI-crono_inv'!CE:CE,H299,'PdI-crono_inv'!J:J,P299,'PdI-crono_inv'!P:P,\"<>proprietario\")+S299","v":0},null,null,"Non ERC",{"$f":"+VLOOKUP(F299,TT_Tabelle_Riferimento!$D$127:$E$164,2,FALSE)","v":"Comune"},"",0]
[0,0,"Gestore",0,"IP",31,{"$f":"+VLOOKUP(F300,TT_Tabelle_Riferimento!$D$127:$G$164,4,FALSE)","v":"Telecontrollo e teletrasmissione"},2,{"$f":"+VLOOKUP(H300,TT_Tabelle_Riferimento!$F$3:$G$6,2,FALSE)","v":"Fognatura bianca e pulizia / manutenzione caditoie stradali"},2026,{"$f":"+SUMIFS('PdI-crono_inv'!AW:AW,'PdI-crono_inv'!CF:CF,F300,'PdI-crono_inv'!CE:CE,H300,'PdI-crono_inv'!J:J,P300,'PdI-crono_inv'!P:P,\"<>proprietario\")","v":0},null,{"$f":"+SUMIFS('PdI-crono_inv'!AX:AX,'PdI-crono_inv'!CF:CF,F300,'PdI-crono_inv'!CE:CE,H300,'PdI-crono_inv'!J:J,P300,'PdI-crono_inv'!P:P,\"<>proprietario\")+S300","v":0},null,null,"Non ERC",{"$f":"+VLOOKUP(F300,TT_Tabelle_Riferimento!$D$127:$E$164,2,FALSE)","v":"Comune"},{"$f":"+IF(SUM(K300:N300)=0,\"\",\"PdI_consolidamento\")","v":""},0]
[0,0,"Gestore",0,"IP",32,{"$f":"+VLOOKUP(F301,TT_Tabelle_Riferimento!$D$127:$G$164,4,FALSE)","v":"Autoveicoli - automezzi"},2,{"$f":"+VLOOKUP(H301,TT_Tabelle_Riferimento!$F$3:$G$6,2,FALSE)","v":"Fognatura bianca e pulizia / manutenzione caditoie stradali"},2026,{"$f":"+SUMIFS('PdI-crono_inv'!AW:AW,'PdI-crono_inv'!CF:CF,F301,'PdI-crono_inv'!CE:CE,H301,'PdI-crono_inv'!J:J,P301,'PdI-crono_inv'!P:P,\"<>proprietario\")","v":0},null,{"$f":"+SUMIFS('PdI-crono_inv'!AX:AX,'PdI-crono_inv'!CF:CF,F301,'PdI-crono_inv'!CE:CE,H301,'PdI-crono_inv'!J:J,P301,'PdI-crono_inv'!P:P,\"<>proprietario\")+S301","v":0},null,null,"Non ERC",{"$f":"+VLOOKUP(F301,TT_Tabelle_Riferimento!$D$127:$E$164,2,FALSE)","v":"Comune"},"",0]
[0,0,"Gestore",0,"IP",1,{"$f":"+VLOOKUP(F302,TT_Tabelle_Riferimento!$D$127:$G$164,4,FALSE)","v":"Terreni"},2,{"$f":"+VLOOKUP(H302,TT_Tabelle_Riferimento!$F$3:$G$6,2,FALSE)","v":"Fognatura bianca e pulizia / manutenzione caditoie stradali"},2026,{"$f":"+SUMIFS('PdI-crono_inv'!AW:AW,'PdI-crono_inv'!CF:CF,F302,'PdI-crono_inv'!CE:CE,H302,'PdI-crono_inv'!J:J,P302,'PdI-crono_inv'!P:P,\"<>proprietario\")","v":0},null,{"$f":"+SUMIFS('PdI-crono_inv'!AX:AX,'PdI-crono_inv'!CF:CF,F302,'PdI-crono_inv'!CE:CE,H302,'PdI-crono_inv'!J:J,P302,'PdI-crono_inv'!P:P,\"<>proprietario\")+S302","v":0},null,null,"Non ERC",{"$f":"+VLOOKUP(F302,TT_Tabelle_Riferimento!$D$127:$E$164,2,FALSE)","v":"Comune"},"",0]
[0,0,"Gestore",0,"IP",33,{"$f":"+VLOOKUP(F303,TT_Tabelle_Riferimento!$D$127:$G$164,4,FALSE)","v":"Fabbricati non industriali"},2,{"$f":"+VLOOKUP(H303,TT_Tabelle_Riferimento!$F$3:$G$6,2,FALSE)","v":"Fognatura bianca e pulizia / manutenzione caditoie stradali"},2026,{"$f":"+SUMIFS('PdI-crono_inv'!AW:AW,'PdI-crono_inv'!CF:CF,F303,'PdI-crono_inv'!CE:CE,H303,'PdI-crono_inv'!J:J,P303,'PdI-crono_inv'!P:P,\"<>proprietario\")","v":0},null,{"$f":"+SUMIFS('PdI-crono_inv'!AX:AX,'PdI-crono_inv'!CF:CF,F303,'PdI-crono_inv'!CE:CE,H303,'PdI-crono_inv'!J:J,P303,'PdI-crono_inv'!P:P,\"<>proprietario\")+S303","v":0},null,null,"Non ERC",{"$f":"+VLOOKUP(F303,TT_Tabelle_Riferimento!$D$127:$E$164,2,FALSE)","v":"Comune"},"",0]
[0,0,"Gestore",0,"IP",34,{"$f":"+VLOOKUP(F304,TT_Tabelle_Riferimento!$D$127:$G$164,4,FALSE)","v":"Fabbricati industriali"},2,{"$f":"+VLOOKUP(H304,TT_Tabelle_Riferimento!$F$3:$G$6,2,FALSE)","v":"Fognatura bianca e pulizia / manutenzione caditoie stradali"},2026,{"$f":"+SUMIFS('PdI-crono_inv'!AW:AW,'PdI-crono_inv'!CF:CF,F304,'PdI-crono_inv'!CE:CE,H304,'PdI-crono_inv'!J:J,P304,'PdI-crono_inv'!P:P,\"<>proprietario\")","v":0},null,{"$f":"+SUMIFS('PdI-crono_inv'!AX:AX,'PdI-crono_inv'!CF:CF,F304,'PdI-crono_inv'!CE:CE,H304,'PdI-crono_inv'!J:J,P304,'PdI-crono_inv'!P:P,\"<>proprietario\")+S304","v":0},null,null,"Non ERC",{"$f":"+VLOOKUP(F304,TT_Tabelle_Riferimento!$D$127:$E$164,2,FALSE)","v":"Comune"},"",0]
[0,0,"Gestore",0,"IP",35,{"$f":"+VLOOKUP(F305,TT_Tabelle_Riferimento!$D$127:$G$164,4,FALSE)","v":"Costruzioni leggere"},2,{"$f":"+VLOOKUP(H305,TT_Tabelle_Riferimento!$F$3:$G$6,2,FALSE)","v":"Fognatura bianca e pulizia / manutenzione caditoie stradali"},2026,{"$f":"+SUMIFS('PdI-crono_inv'!AW:AW,'PdI-crono_inv'!CF:CF,F305,'PdI-crono_inv'!CE:CE,H305,'PdI-crono_inv'!J:J,P305,'PdI-crono_inv'!P:P,\"<>proprietario\")","v":0},null,{"$f":"+SUMIFS('PdI-crono_inv'!AX:AX,'PdI-crono_inv'!CF:CF,F305,'PdI-crono_inv'!CE:CE,H305,'PdI-crono_inv'!J:J,P305,'PdI-crono_inv'!P:P,\"<>proprietario\")+S305","v":0},null,null,"Non ERC",{"$f":"+VLOOKUP(F305,TT_Tabelle_Riferimento!$D$127:$E$164,2,FALSE)","v":"Comune"},"",0]
[0,0,"Gestore",0,"IP",36,{"$f":"+VLOOKUP(F306,TT_Tabelle_Riferimento!$D$127:$G$164,4,FALSE)","v":"Studi, ricerche, brevetti, diritti di utilizzazione"},2,{"$f":"+VLOOKUP(H306,TT_Tabelle_Riferimento!$F$3:$G$6,2,FALSE)","v":"Fognatura bianca e pulizia / manutenzione caditoie stradali"},2026,{"$f":"+SUMIFS('PdI-crono_inv'!AW:AW,'PdI-crono_inv'!CF:CF,F306,'PdI-crono_inv'!CE:CE,H306,'PdI-crono_inv'!J:J,P306,'PdI-crono_inv'!P:P,\"<>proprietario\")","v":0},null,{"$f":"+SUMIFS('PdI-crono_inv'!AX:AX,'PdI-crono_inv'!CF:CF,F306,'PdI-crono_inv'!CE:CE,H306,'PdI-crono_inv'!J:J,P306,'PdI-crono_inv'!P:P,\"<>proprietario\")+S306","v":0},null,null,"Non ERC",{"$f":"+VLOOKUP(F306,TT_Tabelle_Riferimento!$D$127:$E$164,2,FALSE)","v":"Comune"},"",0]
[0,0,"Gestore",0,"IP",37,{"$f":"+VLOOKUP(F307,TT_Tabelle_Riferimento!$D$127:$G$164,4,FALSE)","v":"Altre immobilizzazioni materiali e immateriali"},2,{"$f":"+VLOOKUP(H307,TT_Tabelle_Riferimento!$F$3:$G$6,2,FALSE)","v":"Fognatura bianca e pulizia / manutenzione caditoie stradali"},2026,{"$f":"+SUMIFS('PdI-crono_inv'!AW:AW,'PdI-crono_inv'!CF:CF,F307,'PdI-crono_inv'!CE:CE,H307,'PdI-crono_inv'!J:J,P307,'PdI-crono_inv'!P:P,\"<>proprietario\")","v":0},null,{"$f":"+SUMIFS('PdI-crono_inv'!AX:AX,'PdI-crono_inv'!CF:CF,F307,'PdI-crono_inv'!CE:CE,H307,'PdI-crono_inv'!J:J,P307,'PdI-crono_inv'!P:P,\"<>proprietario\")+S307","v":0},null,null,"Non ERC",{"$f":"+VLOOKUP(F307,TT_Tabelle_Riferimento!$D$127:$E$164,2,FALSE)","v":"Comune"},"",0]
[0,0,"Gestore",0,"IP",38,{"$f":"+VLOOKUP(F308,TT_Tabelle_Riferimento!$D$127:$G$164,4,FALSE)","v":"Grandi dighe (sbarramenti che superano i quindici metri di altezza o che determinano un invaso superiore a 1 milione di metri cubi)"},2,{"$f":"+VLOOKUP(H308,TT_Tabelle_Riferimento!$F$3:$G$6,2,FALSE)","v":"Fognatura bianca e pulizia / manutenzione caditoie stradali"},2026,{"$f":"+SUMIFS('PdI-crono_inv'!AW:AW,'PdI-crono_inv'!CF:CF,F308,'PdI-crono_inv'!CE:CE,H308,'PdI-crono_inv'!J:J,P308,'PdI-crono_inv'!P:P,\"<>proprietario\")","v":0},null,{"$f":"+SUMIFS('PdI-crono_inv'!AX:AX,'PdI-crono_inv'!CF:CF,F308,'PdI-crono_inv'!CE:CE,H308,'PdI-crono_inv'!J:J,P308,'PdI-crono_inv'!P:P,\"<>proprietario\")+S308","v":0},null,null,"Non ERC",{"$f":"+VLOOKUP(F308,TT_Tabelle_Riferimento!$D$127:$E$164,2,FALSE)","v":"Acquedotto"},"",0]
[0,0,"Gestore",0,"IP",39,{"$f":"+VLOOKUP(F309,TT_Tabelle_Riferimento!$D$127:$G$164,4,FALSE)","v":"Piccole dighe (sbarramenti che non superano i quindici metri di altezza o che determinano un invaso non superiore a 1 milione di metri cubi)"},2,{"$f":"+VLOOKUP(H309,TT_Tabelle_Riferimento!$F$3:$G$6,2,FALSE)","v":"Fognatura bianca e pulizia / manutenzione caditoie stradali"},2026,{"$f":"+SUMIFS('PdI-crono_inv'!AW:AW,'PdI-crono_inv'!CF:CF,F309,'PdI-crono_inv'!CE:CE,H309,'PdI-crono_inv'!J:J,P309,'PdI-crono_inv'!P:P,\"<>proprietario\")","v":0},null,{"$f":"+SUMIFS('PdI-crono_inv'!AX:AX,'PdI-crono_inv'!CF:CF,F309,'PdI-crono_inv'!CE:CE,H309,'PdI-crono_inv'!J:J,P309,'PdI-crono_inv'!P:P,\"<>proprietario\")+S309","v":0},null,null,"Non ERC",{"$f":"+VLOOKUP(F309,TT_Tabelle_Riferimento!$D$127:$E$164,2,FALSE)","v":"Acquedotto"},"",0]
[{"$f":"+idato","v":0},{"$f":"+idgestore","v":0},"Gestore",0,"IP",2,{"$f":"+VLOOKUP(F310,TT_Tabelle_Riferimento!$D$127:$G$164,4,FALSE)","v":"Condotte di acquedotto"},3,{"$f":"+VLOOKUP(H310,TT_Tabelle_Riferimento!$F$3:$G$6,2,FALSE)","v":"Altri servizi idrici"},2026,{"$f":"+SUMIFS('PdI-crono_inv'!AW:AW,'PdI-crono_inv'!CF:CF,F310,'PdI-crono_inv'!CE:CE,H310,'PdI-crono_inv'!J:J,P310,'PdI-crono_inv'!P:P,\"<>proprietario\")","v":0},null,{"$f":"+SUMIFS('PdI-crono_inv'!AX:AX,'PdI-crono_inv'!CF:CF,F310,'PdI-crono_inv'!CE:CE,H310,'PdI-crono_inv'!J:J,P310,'PdI-crono_inv'!P:P,\"<>proprietario\")+S310","v":0},null,null,"Non ERC",{"$f":"+VLOOKUP(F310,TT_Tabelle_Riferimento!$D$127:$E$164,2,FALSE)","v":"Acquedotto"},"",0]
[0,0,"Gestore",0,"IP",3,{"$f":"+VLOOKUP(F311,TT_Tabelle_Riferimento!$D$127:$G$164,4,FALSE)","v":"Opere idrauliche fisse di acquedotto"},3,{"$f":"+VLOOKUP(H311,TT_Tabelle_Riferimento!$F$3:$G$6,2,FALSE)","v":"Altri servizi idrici"},2026,{"$f":"+SUMIFS('PdI-crono_inv'!AW:AW,'PdI-crono_inv'!CF:CF,F311,'PdI-crono_inv'!CE:CE,H311,'PdI-crono_inv'!J:J,P311,'PdI-crono_inv'!P:P,\"<>proprietario\")","v":0},null,{"$f":"+SUMIFS('PdI-crono_inv'!AX:AX,'PdI-crono_inv'!CF:CF,F311,'PdI-crono_inv'!CE:CE,H311,'PdI-crono_inv'!J:J,P311,'PdI-crono_inv'!P:P,\"<>proprietario\")+S311","v":0},null,null,"Non ERC",{"$f":"+VLOOKUP(F311,TT_Tabelle_Riferimento!$D$127:$E$164,2,FALSE)","v":"Acquedotto"},"",0]
[0,0,"Gestore",0,"IP",4,{"$f":"+VLOOKUP(F312,TT_Tabelle_Riferimento!$D$127:$G$164,4,FALSE)","v":"Serbatoi"},3,{"$f":"+VLOOKUP(H312,TT_Tabelle_Riferimento!$F$3:$G$6,2,FALSE)","v":"Altri servizi idrici"},2026,{"$f":"+SUMIFS('PdI-crono_inv'!AW:AW,'PdI-crono_inv'!CF:CF,F312,'PdI-crono_inv'!CE:CE,H312,'PdI-crono_inv'!J:J,P312,'PdI-crono_inv'!P:P,\"<>proprietario\")","v":0},null,{"$f":"+SUMIFS('PdI-crono_inv'!AX:AX,'PdI-crono_inv'!CF:CF,F312,'PdI-crono_inv'!CE:CE,H312,'PdI-crono_inv'!J:J,P312,'PdI-crono_inv'!P:P,\"<>proprietario\")+S312","v":0},null,null,"Non ERC",{"$f":"+VLOOKUP(F312,TT_Tabelle_Riferimento!$D$127:$E$164,2,FALSE)","v":"Acquedotto"},"",0]
[0,0,"Gestore",0,"IP",5,{"$f":"+VLOOKUP(F313,TT_Tabelle_Riferimento!$D$127:$G$164,4,FALSE)","v":"Impianti di sollevamento e pompaggio di acquedotto"},3,{"$f":"+VLOOKUP(H313,TT_Tabelle_Riferimento!$F$3:$G$6,2,FALSE)","v":"Altri servizi idrici"},2026,{"$f":"+SUMIFS('PdI-crono_inv'!AW:AW,'PdI-crono_inv'!CF:CF,F313,'PdI-crono_inv'!CE:CE,H313,'PdI-crono_inv'!J:J,P313,'PdI-crono_inv'!P:P,\"<>proprietario\")","v":0},null,{"$f":"+SUMIFS('PdI-crono_inv'!AX:AX,'PdI-crono_inv'!CF:CF,F313,'PdI-crono_inv'!CE:CE,H313,'PdI-crono_inv'!J:J,P313,'PdI-crono_inv'!P:P,\"<>proprietario\")+S313","v":0},null,null,"Non ERC",{"$f":"+VLOOKUP(F313,TT_Tabelle_Riferimento!$D$127:$E$164,2,FALSE)","v":"Acquedotto"},"",0]
[0,0,"Gestore",0,"IP",6,{"$f":"+VLOOKUP(F314,TT_Tabelle_Riferimento!$D$127:$G$164,4,FALSE)","v":"Impianti di potabilizzazione"},3,{"$f":"+VLOOKUP(H314,TT_Tabelle_Riferimento!$F$3:$G$6,2,FALSE)","v":"Altri servizi idrici"},2026,{"$f":"+SUMIFS('PdI-crono_inv'!AW:AW,'PdI-crono_inv'!CF:CF,F314,'PdI-crono_inv'!CE:CE,H314,'PdI-crono_inv'!J:J,P314,'PdI-crono_inv'!P:P,\"<>proprietario\")","v":0},null,{"$f":"+SUMIFS('PdI-crono_inv'!AX:AX,'PdI-crono_inv'!CF:CF,F314,'PdI-crono_inv'!CE:CE,H314,'PdI-crono_inv'!J:J,P314,'PdI-crono_inv'!P:P,\"<>proprietario\")+S314","v":0},null,null,"Non ERC",{"$f":"+VLOOKUP(F314,TT_Tabelle_Riferimento!$D$127:$E$164,2,FALSE)","v":"Acquedotto"},"",0]
[0,0,"Gestore",0,"IP",7,{"$f":"+VLOOKUP(F315,TT_Tabelle_Riferimento!$D$127:$G$164,4,FALSE)","v":"Altri trattamenti di potabilizzazione (tra cui dispositivi di disinfezione, stacciatura, filtrazione, addolcimento)"},3,{"$f":"+VLOOKUP(H315,TT_Tabelle_Riferimento!$F$3:$G$6,2,FALSE)","v":"Altri servizi idrici"},2026,{"$f":"+SUMIFS('PdI-crono_inv'!AW:AW,'PdI-crono_inv'!CF:CF,F315,'PdI-crono_inv'!CE:CE,H315,'PdI-crono_inv'!J:J,P315,'PdI-crono_inv'!P:P,\"<>proprietario\")","v":0},null,{"$f":"+SUMIFS('PdI-crono_inv'!AX:AX,'PdI-crono_inv'!CF:CF,F315,'PdI-crono_inv'!CE:CE,H315,'PdI-crono_inv'!J:J,P315,'PdI-crono_inv'!P:P,\"<>proprietario\")+S315","v":0},null,null,"Non ERC",{"$f":"+VLOOKUP(F315,TT_Tabelle_Riferimento!$D$127:$E$164,2,FALSE)","v":"Acquedotto"},"",0]
[0,0,"Gestore",0,"IP",8,{"$f":"+VLOOKUP(F316,TT_Tabelle_Riferimento!$D$127:$G$164,4,FALSE)","v":"Gruppi di misura - altre attrezzature di acquedotto"},3,{"$f":"+VLOOKUP(H316,TT_Tabelle_Riferimento!$F$3:$G$6,2,FALSE)","v":"Altri servizi idrici"},2026,{"$f":"+SUMIFS('PdI-crono_inv'!AW:AW,'PdI-crono_inv'!CF:CF,F316,'PdI-crono_inv'!CE:CE,H316,'PdI-crono_inv'!J:J,P316,'PdI-crono_inv'!P:P,\"<>proprietario\")","v":0},null,{"$f":"+SUMIFS('PdI-crono_inv'!AX:AX,'PdI-crono_inv'!CF:CF,F316,'PdI-crono_inv'!CE:CE,H316,'PdI-crono_inv'!J:J,P316,'PdI-crono_inv'!P:P,\"<>proprietario\")+S316","v":0},null,null,"Non ERC",{"$f":"+VLOOKUP(F316,TT_Tabelle_Riferimento!$D$127:$E$164,2,FALSE)","v":"Acquedotto"},"",0]
[0,0,"Gestore",0,"IP",9,{"$f":"+VLOOKUP(F317,TT_Tabelle_Riferimento!$D$127:$G$164,4,FALSE)","v":"Sistemi informativi di acquedotto"},3,{"$f":"+VLOOKUP(H317,TT_Tabelle_Riferimento!$F$3:$G$6,2,FALSE)","v":"Altri servizi idrici"},2026,{"$f":"+SUMIFS('PdI-crono_inv'!AW:AW,'PdI-crono_inv'!CF:CF,F317,'PdI-crono_inv'!CE:CE,H317,'PdI-crono_inv'!J:J,P317,'PdI-crono_inv'!P:P,\"<>proprietario\")","v":0},null,{"$f":"+SUMIFS('PdI-crono_inv'!AX:AX,'PdI-crono_inv'!CF:CF,F317,'PdI-crono_inv'!CE:CE,H317,'PdI-crono_inv'!J:J,P317,'PdI-crono_inv'!P:P,\"<>proprietario\")+S317","v":0},null,null,"Non ERC",{"$f":"+VLOOKUP(F317,TT_Tabelle_Riferimento!$D$127:$E$164,2,FALSE)","v":"Acquedotto"},"",0]
[0,0,"Gestore",0,"IP",10,{"$f":"+VLOOKUP(F318,TT_Tabelle_Riferimento!$D$127:$G$164,4,FALSE)","v":"Telecontrollo e teletrasmissione di acquedotto"},3,{"$f":"+VLOOKUP(H318,TT_Tabelle_Riferimento!$F$3:$G$6,2,FALSE)","v":"Altri servizi idrici"},2026,{"$f":"+SUMIFS('PdI-crono_inv'!AW:AW,'PdI-crono_inv'!CF:CF,F318,'PdI-crono_inv'!CE:CE,H318,'PdI-crono_inv'!J:J,P318,'PdI-crono_inv'!P:P,\"<>proprietario\")","v":0},null,{"$f":"+SUMIFS('PdI-crono_inv'!AX:AX,'PdI-crono_inv'!CF:CF,F318,'PdI-crono_inv'!CE:CE,H318,'PdI-crono_inv'!J:J,P318,'PdI-crono_inv'!P:P,\"<>proprietario\")+S318","v":0},null,null,"Non ERC",{"$f":"+VLOOKUP(F318,TT_Tabelle_Riferimento!$D$127:$E$164,2,FALSE)","v":"Acquedotto"},"",0]
[0,0,"Gestore",0,"IP",11,{"$f":"+VLOOKUP(F319,TT_Tabelle_Riferimento!$D$127:$G$164,4,FALSE)","v":"Condotte fognarie"},3,{"$f":"+VLOOKUP(H319,TT_Tabelle_Riferimento!$F$3:$G$6,2,FALSE)","v":"Altri servizi idrici"},2026,{"$f":"+SUMIFS('PdI-crono_inv'!AW:AW,'PdI-crono_inv'!CF:CF,F319,'PdI-crono_inv'!CE:CE,H319,'PdI-crono_inv'!J:J,P319,'PdI-crono_inv'!P:P,\"<>proprietario\")","v":0},null,{"$f":"+SUMIFS('PdI-crono_inv'!AX:AX,'PdI-crono_inv'!CF:CF,F319,'PdI-crono_inv'!CE:CE,H319,'PdI-crono_inv'!J:J,P319,'PdI-crono_inv'!P:P,\"<>proprietario\")+S319","v":0},null,null,"Non ERC",{"$f":"+VLOOKUP(F319,TT_Tabelle_Riferimento!$D$127:$E$164,2,FALSE)","v":"Fognatura"},"",0]
[0,0,"Gestore",0,"IP",12,{"$f":"+VLOOKUP(F320,TT_Tabelle_Riferimento!$D$127:$G$164,4,FALSE)","v":"Sifoni e scaricatori di piena e altre opere idrauliche fisse di fognatura"},3,{"$f":"+VLOOKUP(H320,TT_Tabelle_Riferimento!$F$3:$G$6,2,FALSE)","v":"Altri servizi idrici"},2026,{"$f":"+SUMIFS('PdI-crono_inv'!AW:AW,'PdI-crono_inv'!CF:CF,F320,'PdI-crono_inv'!CE:CE,H320,'PdI-crono_inv'!J:J,P320,'PdI-crono_inv'!P:P,\"<>proprietario\")","v":0},null,{"$f":"+SUMIFS('PdI-crono_inv'!AX:AX,'PdI-crono_inv'!CF:CF,F320,'PdI-crono_inv'!CE:CE,H320,'PdI-crono_inv'!J:J,P320,'PdI-crono_inv'!P:P,\"<>proprietario\")+S320","v":0},null,null,"Non ERC",{"$f":"+VLOOKUP(F320,TT_Tabelle_Riferimento!$D$127:$E$164,2,FALSE)","v":"Fognatura"},"",0]
[0,0,"Gestore",0,"IP",13,{"$f":"+VLOOKUP(F321,TT_Tabelle_Riferimento!$D$127:$G$164,4,FALSE)","v":"Vasche di laminazione e vasche di prima pioggia"},3,{"$f":"+VLOOKUP(H321,TT_Tabelle_Riferimento!$F$3:$G$6,2,FALSE)","v":"Altri servizi idrici"},2026,{"$f":"+SUMIFS('PdI-crono_inv'!AW:AW,'PdI-crono_inv'!CF:CF,F321,'PdI-crono_inv'!CE:CE,H321,'PdI-crono_inv'!J:J,P321,'PdI-crono_inv'!P:P,\"<>proprietario\")","v":0},null,{"$f":"+SUMIFS('PdI-crono_inv'!AX:AX,'PdI-crono_inv'!CF:CF,F321,'PdI-crono_inv'!CE:CE,H321,'PdI-crono_inv'!J:J,P321,'PdI-crono_inv'!P:P,\"<>proprietario\")+S321","v":0},null,null,"Non ERC",{"$f":"+VLOOKUP(F321,TT_Tabelle_Riferimento!$D$127:$E$164,2,FALSE)","v":"Fognatura"},"",0]
[0,0,"Gestore",0,"IP",14,{"$f":"+VLOOKUP(F322,TT_Tabelle_Riferimento!$D$127:$G$164,4,FALSE)","v":"Impianti di sollevamento e pompaggio di fognatura"},3,{"$f":"+VLOOKUP(H322,TT_Tabelle_Riferimento!$F$3:$G$6,2,FALSE)","v":"Altri servizi idrici"},2026,{"$f":"+SUMIFS('PdI-crono_inv'!AW:AW,'PdI-crono_inv'!CF:CF,F322,'PdI-crono_inv'!CE:CE,H322,'PdI-crono_inv'!J:J,P322,'PdI-crono_inv'!P:P,\"<>proprietario\")","v":0},null,{"$f":"+SUMIFS('PdI-crono_inv'!AX:AX,'PdI-crono_inv'!CF:CF,F322,'PdI-crono_inv'!CE:CE,H322,'PdI-crono_inv'!J:J,P322,'PdI-crono_inv'!P:P,\"<>proprietario\")+S322","v":0},null,null,"Non ERC",{"$f":"+VLOOKUP(F322,TT_Tabelle_Riferimento!$D$127:$E$164,2,FALSE)","v":"Fognatura"},"",0]
[0,0,"Gestore",0,"IP",15,{"$f":"+VLOOKUP(F323,TT_Tabelle_Riferimento!$D$127:$G$164,4,FALSE)","v":"Gruppi di misura - altre attrezzature di fognatura"},3,{"$f":"+VLOOKUP(H323,TT_Tabelle_Riferimento!$F$3:$G$6,2,FALSE)","v":"Altri servizi idrici"},2026,{"$f":"+SUMIFS('PdI-crono_inv'!AW:AW,'PdI-crono_inv'!CF:CF,F323,'PdI-crono_inv'!CE:CE,H323,'PdI-crono_inv'!J:J,P323,'PdI-crono_inv'!P:P,\"<>proprietario\")","v":0},null,{"$f":"+SUMIFS('PdI-crono_inv'!AX:AX,'PdI-crono_inv'!CF:CF,F323,'PdI-crono_inv'!CE:CE,H323,'PdI-crono_inv'!J:J,P323,'PdI-crono_inv'!P:P,\"<>proprietario\")+S323","v":0},null,null,"Non ERC",{"$f":"+VLOOKUP(F323,TT_Tabelle_Riferimento!$D$127:$E$164,2,FALSE)","v":"Fognatura"},"",0]
[0,0,"Gestore",0,"IP",16,{"$f":"+VLOOKUP(F324,TT_Tabelle_Riferimento!$D$127:$G$164,4,FALSE)","v":"Sistemi informativi di fognatura"},3,{"$f":"+VLOOKUP(H324,TT_Tabelle_Riferimento!$F$3:$G$6,2,FALSE)","v":"Altri servizi idrici"},2026,{"$f":"+SUMIFS('PdI-crono_inv'!AW:AW,'PdI-crono_inv'!CF:CF,F324,'PdI-crono_inv'!CE:CE,H324,'PdI-crono_inv'!J:J,P324,'PdI-crono_inv'!P:P,\"<>proprietario\")","v":0},null,{"$f":"+SUMIFS('PdI-crono_inv'!AX:AX,'PdI-crono_inv'!CF:CF,F324,'PdI-crono_inv'!CE:CE,H324,'PdI-crono_inv'!J:J,P324,'PdI-crono_inv'!P:P,\"<>proprietario\")+S324","v":0},null,null,"Non ERC",{"$f":"+VLOOKUP(F324,TT_Tabelle_Riferimento!$D$127:$E$164,2,FALSE)","v":"Fognatura"},"",0]
[0,0,"Gestore",0,"IP",18,{"$f":"+VLOOKUP(F325,TT_Tabelle_Riferimento!$D$127:$G$164,4,FALSE)","v":"Telecontrollo e teletrasmissione di fognatura"},3,{"$f":"+VLOOKUP(H325,TT_Tabelle_Riferimento!$F$3:$G$6,2,FALSE)","v":"Altri servizi idrici"},2026,{"$f":"+SUMIFS('PdI-crono_inv'!AW:AW,'PdI-crono_inv'!CF:CF,F325,'PdI-crono_inv'!CE:CE,H325,'PdI-crono_inv'!J:J,P325,'PdI-crono_inv'!P:P,\"<>proprietario\")","v":0},null,{"$f":"+SUMIFS('PdI-crono_inv'!AX:AX,'PdI-crono_inv'!CF:CF,F325,'PdI-crono_inv'!CE:CE,H325,'PdI-crono_inv'!J:J,P325,'PdI-crono_inv'!P:P,\"<>proprietario\")+S325","v":0},null,null,"Non ERC",{"$f":"+VLOOKUP(F325,TT_Tabelle_Riferimento!$D$127:$E$164,2,FALSE)","v":"Fognatura"},"",0]
[0,0,"Gestore",0,"IP",19,{"$f":"+VLOOKUP(F326,TT_Tabelle_Riferimento!$D$127:$G$164,4,FALSE)","v":"Impianti di sollevamento e pompaggio di depurazione"},3,{"$f":"+VLOOKUP(H326,TT_Tabelle_Riferimento!$F$3:$G$6,2,FALSE)","v":"Altri servizi idrici"},2026,{"$f":"+SUMIFS('PdI-crono_inv'!AW:AW,'PdI-crono_inv'!CF:CF,F326,'PdI-crono_inv'!CE:CE,H326,'PdI-crono_inv'!J:J,P326,'PdI-crono_inv'!P:P,\"<>proprietario\")","v":0},null,{"$f":"+SUMIFS('PdI-crono_inv'!AX:AX,'PdI-crono_inv'!CF:CF,F326,'PdI-crono_inv'!CE:CE,H326,'PdI-crono_inv'!J:J,P326,'PdI-crono_inv'!P:P,\"<>proprietario\")+S326","v":0},null,null,"Non ERC",{"$f":"+VLOOKUP(F326,TT_Tabelle_Riferimento!$D$127:$E$164,2,FALSE)","v":"Depurazione"},"",0]
[0,0,"Gestore",0,"IP",20,{"$f":"+VLOOKUP(F327,TT_Tabelle_Riferimento!$D$127:$G$164,4,FALSE)","v":"Tecniche naturali di depurazione (tra cui fitodepurazione e lagunaggio)"},3,{"$f":"+VLOOKUP(H327,TT_Tabelle_Riferimento!$F$3:$G$6,2,FALSE)","v":"Altri servizi idrici"},2026,{"$f":"+SUMIFS('PdI-crono_inv'!AW:AW,'PdI-crono_inv'!CF:CF,F327,'PdI-crono_inv'!CE:CE,H327,'PdI-crono_inv'!J:J,P327,'PdI-crono_inv'!P:P,\"<>proprietario\")","v":0},null,{"$f":"+SUMIFS('PdI-crono_inv'!AX:AX,'PdI-crono_inv'!CF:CF,F327,'PdI-crono_inv'!CE:CE,H327,'PdI-crono_inv'!J:J,P327,'PdI-crono_inv'!P:P,\"<>proprietario\")+S327","v":0},null,null,"Non ERC",{"$f":"+VLOOKUP(F327,TT_Tabelle_Riferimento!$D$127:$E$164,2,FALSE)","v":"Depurazione"},"",{"$f":"+IFERROR(HLOOKUP(J327,$X$2:$Y$5,4,FALSE)*K327,0)","v":0}]
[0,0,"Gestore",0,"IP",21,{"$f":"+VLOOKUP(F328,TT_Tabelle_Riferimento!$D$127:$G$164,4,FALSE)","v":"Impianti di depurazione – trattamenti sino al preliminare, integrativo, primario - fosse settiche e fosse Imhoff"},3,{"$f":"+VLOOKUP(H328,TT_Tabelle_Riferimento!$F$3:$G$6,2,FALSE)","v":"Altri servizi idrici"},2026,{"$f":"+SUMIFS('PdI-crono_inv'!AW:AW,'PdI-crono_inv'!CF:CF,F328,'PdI-crono_inv'!CE:CE,H328,'PdI-crono_inv'!J:J,P328,'PdI-crono_inv'!P:P,\"<>proprietario\")","v":0},null,{"$f":"+SUMIFS('PdI-crono_inv'!AX:AX,'PdI-crono_inv'!CF:CF,F328,'PdI-crono_inv'!CE:CE,H328,'PdI-crono_inv'!J:J,P328,'PdI-crono_inv'!P:P,\"<>proprietario\")+S328","v":0},null,null,"Non ERC",{"$f":"+VLOOKUP(F328,TT_Tabelle_Riferimento!$D$127:$E$164,2,FALSE)","v":"Depurazione"},"",0]
[0,0,"Gestore",0,"IP",22,{"$f":"+VLOOKUP(F329,TT_Tabelle_Riferimento!$D$127:$G$164,4,FALSE)","v":"Impianti di depurazione – trattamenti sino al secondario"},3,{"$f":"+VLOOKUP(H329,TT_Tabelle_Riferimento!$F$3:$G$6,2,FALSE)","v":"Altri servizi idrici"},2026,{"$f":"+SUMIFS('PdI-crono_inv'!AW:AW,'PdI-crono_inv'!CF:CF,F329,'PdI-crono_inv'!CE:CE,H329,'PdI-crono_inv'!J:J,P329,'PdI-crono_inv'!P:P,\"<>proprietario\")","v":0},null,{"$f":"+SUMIFS('PdI-crono_inv'!AX:AX,'PdI-crono_inv'!CF:CF,F329,'PdI-crono_inv'!CE:CE,H329,'PdI-crono_inv'!J:J,P329,'PdI-crono_inv'!P:P,\"<>proprietario\")+S329","v":0},null,null,"Non ERC",{"$f":"+VLOOKUP(F329,TT_Tabelle_Riferimento!$D$127:$E$164,2,FALSE)","v":"Depurazione"},"",0]
[0,0,"Gestore",0,"IP",23,{"$f":"+VLOOKUP(F330,TT_Tabelle_Riferimento!$D$127:$G$164,4,FALSE)","v":"Impianti di depurazione – trattamenti sino al terziario e terziario avanzato"},3,{"$f":"+VLOOKUP(H330,TT_Tabelle_Riferimento!$F$3:$G$6,2,FALSE)","v":"Altri servizi idrici"},2026,{"$f":"+SUMIFS('PdI-crono_inv'!AW:AW,'PdI-crono_inv'!CF:CF,F330,'PdI-crono_inv'!CE:CE,H330,'PdI-crono_inv'!J:J,P330,'PdI-crono_inv'!P:P,\"<>proprietario\")","v":0},null,{"$f":"+SUMIFS('PdI-crono_inv'!AX:AX,'PdI-crono_inv'!CF:CF,F330,'PdI-crono_inv'!CE:CE,H330,'PdI-crono_inv'!J:J,P330,'PdI-crono_inv'!P:P,\"<>proprietario\")+S330","v":0},null,null,"Non ERC",{"$f":"+VLOOKUP(F330,TT_Tabelle_Riferimento!$D$127:$E$164,2,FALSE)","v":"Depurazione"},"",0]
[0,0,"Gestore",0,"IP",24,{"$f":"+VLOOKUP(F331,TT_Tabelle_Riferimento!$D$127:$G$164,4,FALSE)","v":"Impianti di essiccamento fanghi e di valorizzazione dei fanghi (tra cui mono-incenerimento, pirolisi, gassificazione)"},3,{"$f":"+VLOOKUP(H331,TT_Tabelle_Riferimento!$F$3:$G$6,2,FALSE)","v":"Altri servizi idrici"},2026,{"$f":"+SUMIFS('PdI-crono_inv'!AW:AW,'PdI-crono_inv'!CF:CF,F331,'PdI-crono_inv'!CE:CE,H331,'PdI-crono_inv'!J:J,P331,'PdI-crono_inv'!P:P,\"<>proprietario\")","v":0},null,{"$f":"+SUMIFS('PdI-crono_inv'!AX:AX,'PdI-crono_inv'!CF:CF,F331,'PdI-crono_inv'!CE:CE,H331,'PdI-crono_inv'!J:J,P331,'PdI-crono_inv'!P:P,\"<>proprietario\")+S331","v":0},null,null,"Non ERC",{"$f":"+VLOOKUP(F331,TT_Tabelle_Riferimento!$D$127:$E$164,2,FALSE)","v":"Depurazione"},"",0]
[0,0,"Gestore",0,"IP",25,{"$f":"+VLOOKUP(F332,TT_Tabelle_Riferimento!$D$127:$G$164,4,FALSE)","v":"Gruppi di misura - altre attrezzature di depurazione"},3,{"$f":"+VLOOKUP(H332,TT_Tabelle_Riferimento!$F$3:$G$6,2,FALSE)","v":"Altri servizi idrici"},2026,{"$f":"+SUMIFS('PdI-crono_inv'!AW:AW,'PdI-crono_inv'!CF:CF,F332,'PdI-crono_inv'!CE:CE,H332,'PdI-crono_inv'!J:J,P332,'PdI-crono_inv'!P:P,\"<>proprietario\")","v":0},null,{"$f":"+SUMIFS('PdI-crono_inv'!AX:AX,'PdI-crono_inv'!CF:CF,F332,'PdI-crono_inv'!CE:CE,H332,'PdI-crono_inv'!J:J,P332,'PdI-crono_inv'!P:P,\"<>proprietario\")+S332","v":0},null,null,"Non ERC",{"$f":"+VLOOKUP(F332,TT_Tabelle_Riferimento!$D$127:$E$164,2,FALSE)","v":"Depurazione"},"",0]
[0,0,"Gestore",0,"IP",26,{"$f":"+VLOOKUP(F333,TT_Tabelle_Riferimento!$D$127:$G$164,4,FALSE)","v":"Sistemi informativi di depurazione"},3,{"$f":"+VLOOKUP(H333,TT_Tabelle_Riferimento!$F$3:$G$6,2,FALSE)","v":"Altri servizi idrici"},2026,{"$f":"+SUMIFS('PdI-crono_inv'!AW:AW,'PdI-crono_inv'!CF:CF,F333,'PdI-crono_inv'!CE:CE,H333,'PdI-crono_inv'!J:J,P333,'PdI-crono_inv'!P:P,\"<>proprietario\")","v":0},null,{"$f":"+SUMIFS('PdI-crono_inv'!AX:AX,'PdI-crono_inv'!CF:CF,F333,'PdI-crono_inv'!CE:CE,H333,'PdI-crono_inv'!J:J,P333,'PdI-crono_inv'!P:P,\"<>proprietario\")+S333","v":0},null,null,"Non ERC",{"$f":"+VLOOKUP(F333,TT_Tabelle_Riferimento!$D$127:$E$164,2,FALSE)","v":"Depurazione"},"",0]
[0,0,"Gestore",0,"IP",27,{"$f":"+VLOOKUP(F334,TT_Tabelle_Riferimento!$D$127:$G$164,4,FALSE)","v":"Telecontrollo e teletrasmissione di depurazione"},3,{"$f":"+VLOOKUP(H334,TT_Tabelle_Riferimento!$F$3:$G$6,2,FALSE)","v":"Altri servizi idrici"},2026,{"$f":"+SUMIFS('PdI-crono_inv'!AW:AW,'PdI-crono_inv'!CF:CF,F334,'PdI-crono_inv'!CE:CE,H334,'PdI-crono_inv'!J:J,P334,'PdI-crono_inv'!P:P,\"<>proprietario\")","v":0},null,{"$f":"+SUMIFS('PdI-crono_inv'!AX:AX,'PdI-crono_inv'!CF:CF,F334,'PdI-crono_inv'!CE:CE,H334,'PdI-crono_inv'!J:J,P334,'PdI-crono_inv'!P:P,\"<>proprietario\")+S334","v":0},null,null,"Non ERC",{"$f":"+VLOOKUP(F334,TT_Tabelle_Riferimento!$D$127:$E$164,2,FALSE)","v":"Depurazione"},"",0]
[0,0,"Gestore",0,"IP",28,{"$f":"+VLOOKUP(F335,TT_Tabelle_Riferimento!$D$127:$G$164,4,FALSE)","v":"Altri impianti"},3,{"$f":"+VLOOKUP(H335,TT_Tabelle_Riferimento!$F$3:$G$6,2,FALSE)","v":"Altri servizi idrici"},2026,{"$f":"+SUMIFS('PdI-crono_inv'!AW:AW,'PdI-crono_inv'!CF:CF,F335,'PdI-crono_inv'!CE:CE,H335,'PdI-crono_inv'!J:J,P335,'PdI-crono_inv'!P:P,\"<>proprietario\")","v":0},null,{"$f":"+SUMIFS('PdI-crono_inv'!AX:AX,'PdI-crono_inv'!CF:CF,F335,'PdI-crono_inv'!CE:CE,H335,'PdI-crono_inv'!J:J,P335,'PdI-crono_inv'!P:P,\"<>proprietario\")+S335","v":0},null,null,"Non ERC",{"$f":"+VLOOKUP(F335,TT_Tabelle_Riferimento!$D$127:$E$164,2,FALSE)","v":"Comune"},"",0]
[0,0,"Gestore",0,"IP",29,{"$f":"+VLOOKUP(F336,TT_Tabelle_Riferimento!$D$127:$G$164,4,FALSE)","v":"Laboratori e attrezzature"},3,{"$f":"+VLOOKUP(H336,TT_Tabelle_Riferimento!$F$3:$G$6,2,FALSE)","v":"Altri servizi idrici"},2026,{"$f":"+SUMIFS('PdI-crono_inv'!AW:AW,'PdI-crono_inv'!CF:CF,F336,'PdI-crono_inv'!CE:CE,H336,'PdI-crono_inv'!J:J,P336,'PdI-crono_inv'!P:P,\"<>proprietario\")","v":0},null,{"$f":"+SUMIFS('PdI-crono_inv'!AX:AX,'PdI-crono_inv'!CF:CF,F336,'PdI-crono_inv'!CE:CE,H336,'PdI-crono_inv'!J:J,P336,'PdI-crono_inv'!P:P,\"<>proprietario\")+S336","v":0},null,null,"Non ERC",{"$f":"+VLOOKUP(F336,TT_Tabelle_Riferimento!$D$127:$E$164,2,FALSE)","v":"Comune"},"",0]
[0,0,"Gestore",0,"IP",30,{"$f":"+VLOOKUP(F337,TT_Tabelle_Riferimento!$D$127:$G$164,4,FALSE)","v":"Sistemi informativi"},3,{"$f":"+VLOOKUP(H337,TT_Tabelle_Riferimento!$F$3:$G$6,2,FALSE)","v":"Altri servizi idrici"},2026,{"$f":"+SUMIFS('PdI-crono_inv'!AW:AW,'PdI-crono_inv'!CF:CF,F337,'PdI-crono_inv'!CE:CE,H337,'PdI-crono_inv'!J:J,P337,'PdI-crono_inv'!P:P,\"<>proprietario\")","v":0},null,{"$f":"+SUMIFS('PdI-crono_inv'!AX:AX,'PdI-crono_inv'!CF:CF,F337,'PdI-crono_inv'!CE:CE,H337,'PdI-crono_inv'!J:J,P337,'PdI-crono_inv'!P:P,\"<>proprietario\")+S337","v":0},null,null,"Non ERC",{"$f":"+VLOOKUP(F337,TT_Tabelle_Riferimento!$D$127:$E$164,2,FALSE)","v":"Comune"},"",0]
[0,0,"Gestore",0,"IP",31,{"$f":"+VLOOKUP(F338,TT_Tabelle_Riferimento!$D$127:$G$164,4,FALSE)","v":"Telecontrollo e teletrasmissione"},3,{"$f":"+VLOOKUP(H338,TT_Tabelle_Riferimento!$F$3:$G$6,2,FALSE)","v":"Altri servizi idrici"},2026,{"$f":"+SUMIFS('PdI-crono_inv'!AW:AW,'PdI-crono_inv'!CF:CF,F338,'PdI-crono_inv'!CE:CE,H338,'PdI-crono_inv'!J:J,P338,'PdI-crono_inv'!P:P,\"<>proprietario\")","v":0},null,{"$f":"+SUMIFS('PdI-crono_inv'!AX:AX,'PdI-crono_inv'!CF:CF,F338,'PdI-crono_inv'!CE:CE,H338,'PdI-crono_inv'!J:J,P338,'PdI-crono_inv'!P:P,\"<>proprietario\")+S338","v":0},null,null,"Non ERC",{"$f":"+VLOOKUP(F338,TT_Tabelle_Riferimento!$D$127:$E$164,2,FALSE)","v":"Comune"},"",0]
[0,0,"Gestore",0,"IP",32,{"$f":"+VLOOKUP(F339,TT_Tabelle_Riferimento!$D$127:$G$164,4,FALSE)","v":"Autoveicoli - automezzi"},3,{"$f":"+VLOOKUP(H339,TT_Tabelle_Riferimento!$F$3:$G$6,2,FALSE)","v":"Altri servizi idrici"},2026,{"$f":"+SUMIFS('PdI-crono_inv'!AW:AW,'PdI-crono_inv'!CF:CF,F339,'PdI-crono_inv'!CE:CE,H339,'PdI-crono_inv'!J:J,P339,'PdI-crono_inv'!P:P,\"<>proprietario\")","v":0},null,{"$f":"+SUMIFS('PdI-crono_inv'!AX:AX,'PdI-crono_inv'!CF:CF,F339,'PdI-crono_inv'!CE:CE,H339,'PdI-crono_inv'!J:J,P339,'PdI-crono_inv'!P:P,\"<>proprietario\")+S339","v":0},null,null,"Non ERC",{"$f":"+VLOOKUP(F339,TT_Tabelle_Riferimento!$D$127:$E$164,2,FALSE)","v":"Comune"},"",0]
[0,0,"Gestore",0,"IP",1,{"$f":"+VLOOKUP(F340,TT_Tabelle_Riferimento!$D$127:$G$164,4,FALSE)","v":"Terreni"},3,{"$f":"+VLOOKUP(H340,TT_Tabelle_Riferimento!$F$3:$G$6,2,FALSE)","v":"Altri servizi idrici"},2026,{"$f":"+SUMIFS('PdI-crono_inv'!AW:AW,'PdI-crono_inv'!CF:CF,F340,'PdI-crono_inv'!CE:CE,H340,'PdI-crono_inv'!J:J,P340,'PdI-crono_inv'!P:P,\"<>proprietario\")","v":0},null,{"$f":"+SUMIFS('PdI-crono_inv'!AX:AX,'PdI-crono_inv'!CF:CF,F340,'PdI-crono_inv'!CE:CE,H340,'PdI-crono_inv'!J:J,P340,'PdI-crono_inv'!P:P,\"<>proprietario\")+S340","v":0},null,null,"Non ERC",{"$f":"+VLOOKUP(F340,TT_Tabelle_Riferimento!$D$127:$E$164,2,FALSE)","v":"Comune"},"",0]
[0,0,"Gestore",0,"IP",33,{"$f":"+VLOOKUP(F341,TT_Tabelle_Riferimento!$D$127:$G$164,4,FALSE)","v":"Fabbricati non industriali"},3,{"$f":"+VLOOKUP(H341,TT_Tabelle_Riferimento!$F$3:$G$6,2,FALSE)","v":"Altri servizi idrici"},2026,{"$f":"+SUMIFS('PdI-crono_inv'!AW:AW,'PdI-crono_inv'!CF:CF,F341,'PdI-crono_inv'!CE:CE,H341,'PdI-crono_inv'!J:J,P341,'PdI-crono_inv'!P:P,\"<>proprietario\")","v":0},null,{"$f":"+SUMIFS('PdI-crono_inv'!AX:AX,'PdI-crono_inv'!CF:CF,F341,'PdI-crono_inv'!CE:CE,H341,'PdI-crono_inv'!J:J,P341,'PdI-crono_inv'!P:P,\"<>proprietario\")+S341","v":0},null,null,"Non ERC",{"$f":"+VLOOKUP(F341,TT_Tabelle_Riferimento!$D$127:$E$164,2,FALSE)","v":"Comune"},"",0]
[0,0,"Gestore",0,"IP",34,{"$f":"+VLOOKUP(F342,TT_Tabelle_Riferimento!$D$127:$G$164,4,FALSE)","v":"Fabbricati industriali"},3,{"$f":"+VLOOKUP(H342,TT_Tabelle_Riferimento!$F$3:$G$6,2,FALSE)","v":"Altri servizi idrici"},2026,{"$f":"+SUMIFS('PdI-crono_inv'!AW:AW,'PdI-crono_inv'!CF:CF,F342,'PdI-crono_inv'!CE:CE,H342,'PdI-crono_inv'!J:J,P342,'PdI-crono_inv'!P:P,\"<>proprietario\")","v":0},null,{"$f":"+SUMIFS('PdI-crono_inv'!AX:AX,'PdI-crono_inv'!CF:CF,F342,'PdI-crono_inv'!CE:CE,H342,'PdI-crono_inv'!J:J,P342,'PdI-crono_inv'!P:P,\"<>proprietario\")+S342","v":0},null,null,"Non ERC",{"$f":"+VLOOKUP(F342,TT_Tabelle_Riferimento!$D$127:$E$164,2,FALSE)","v":"Comune"},"",0]
[0,0,"Gestore",0,"IP",35,{"$f":"+VLOOKUP(F343,TT_Tabelle_Riferimento!$D$127:$G$164,4,FALSE)","v":"Costruzioni leggere"},3,{"$f":"+VLOOKUP(H343,TT_Tabelle_Riferimento!$F$3:$G$6,2,FALSE)","v":"Altri servizi idrici"},2026,{"$f":"+SUMIFS('PdI-crono_inv'!AW:AW,'PdI-crono_inv'!CF:CF,F343,'PdI-crono_inv'!CE:CE,H343,'PdI-crono_inv'!J:J,P343,'PdI-crono_inv'!P:P,\"<>proprietario\")","v":0},null,{"$f":"+SUMIFS('PdI-crono_inv'!AX:AX,'PdI-crono_inv'!CF:CF,F343,'PdI-crono_inv'!CE:CE,H343,'PdI-crono_inv'!J:J,P343,'PdI-crono_inv'!P:P,\"<>proprietario\")+S343","v":0},null,null,"Non ERC",{"$f":"+VLOOKUP(F343,TT_Tabelle_Riferimento!$D$127:$E$164,2,FALSE)","v":"Comune"},"",0]
[0,0,"Gestore",0,"IP",36,{"$f":"+VLOOKUP(F344,TT_Tabelle_Riferimento!$D$127:$G$164,4,FALSE)","v":"Studi, ricerche, brevetti, diritti di utilizzazione"},3,{"$f":"+VLOOKUP(H344,TT_Tabelle_Riferimento!$F$3:$G$6,2,FALSE)","v":"Altri servizi idrici"},2026,{"$f":"+SUMIFS('PdI-crono_inv'!AW:AW,'PdI-crono_inv'!CF:CF,F344,'PdI-crono_inv'!CE:CE,H344,'PdI-crono_inv'!J:J,P344,'PdI-crono_inv'!P:P,\"<>proprietario\")","v":0},null,{"$f":"+SUMIFS('PdI-crono_inv'!AX:AX,'PdI-crono_inv'!CF:CF,F344,'PdI-crono_inv'!CE:CE,H344,'PdI-crono_inv'!J:J,P344,'PdI-crono_inv'!P:P,\"<>proprietario\")+S344","v":0},null,null,"Non ERC",{"$f":"+VLOOKUP(F344,TT_Tabelle_Riferimento!$D$127:$E$164,2,FALSE)","v":"Comune"},"",0]
[0,0,"Gestore",0,"IP",37,{"$f":"+VLOOKUP(F345,TT_Tabelle_Riferimento!$D$127:$G$164,4,FALSE)","v":"Altre immobilizzazioni materiali e immateriali"},3,{"$f":"+VLOOKUP(H345,TT_Tabelle_Riferimento!$F$3:$G$6,2,FALSE)","v":"Altri servizi idrici"},2026,{"$f":"+SUMIFS('PdI-crono_inv'!AW:AW,'PdI-crono_inv'!CF:CF,F345,'PdI-crono_inv'!CE:CE,H345,'PdI-crono_inv'!J:J,P345,'PdI-crono_inv'!P:P,\"<>proprietario\")","v":0},null,{"$f":"+SUMIFS('PdI-crono_inv'!AX:AX,'PdI-crono_inv'!CF:CF,F345,'PdI-crono_inv'!CE:CE,H345,'PdI-crono_inv'!J:J,P345,'PdI-crono_inv'!P:P,\"<>proprietario\")+S345","v":0},null,null,"Non ERC",{"$f":"+VLOOKUP(F345,TT_Tabelle_Riferimento!$D$127:$E$164,2,FALSE)","v":"Comune"},"",0]
[0,0,"Gestore",0,"IP",38,{"$f":"+VLOOKUP(F346,TT_Tabelle_Riferimento!$D$127:$G$164,4,FALSE)","v":"Grandi dighe (sbarramenti che superano i quindici metri di altezza o che determinano un invaso superiore a 1 milione di metri cubi)"},3,{"$f":"+VLOOKUP(H346,TT_Tabelle_Riferimento!$F$3:$G$6,2,FALSE)","v":"Altri servizi idrici"},2026,{"$f":"+SUMIFS('PdI-crono_inv'!AW:AW,'PdI-crono_inv'!CF:CF,F346,'PdI-crono_inv'!CE:CE,H346,'PdI-crono_inv'!J:J,P346,'PdI-crono_inv'!P:P,\"<>proprietario\")","v":0},null,{"$f":"+SUMIFS('PdI-crono_inv'!AX:AX,'PdI-crono_inv'!CF:CF,F346,'PdI-crono_inv'!CE:CE,H346,'PdI-crono_inv'!J:J,P346,'PdI-crono_inv'!P:P,\"<>proprietario\")+S346","v":0},null,null,"Non ERC",{"$f":"+VLOOKUP(F346,TT_Tabelle_Riferimento!$D$127:$E$164,2,FALSE)","v":"Acquedotto"},"",0]
[0,0,"Gestore",0,"IP",39,{"$f":"+VLOOKUP(F347,TT_Tabelle_Riferimento!$D$127:$G$164,4,FALSE)","v":"Piccole dighe (sbarramenti che non superano i quindici metri di altezza o che determinano un invaso non superiore a 1 milione di metri cubi)"},3,{"$f":"+VLOOKUP(H347,TT_Tabelle_Riferimento!$F$3:$G$6,2,FALSE)","v":"Altri servizi idrici"},2026,{"$f":"+SUMIFS('PdI-crono_inv'!AW:AW,'PdI-crono_inv'!CF:CF,F347,'PdI-crono_inv'!CE:CE,H347,'PdI-crono_inv'!J:J,P347,'PdI-crono_inv'!P:P,\"<>proprietario\")","v":0},null,{"$f":"+SUMIFS('PdI-crono_inv'!AX:AX,'PdI-crono_inv'!CF:CF,F347,'PdI-crono_inv'!CE:CE,H347,'PdI-crono_inv'!J:J,P347,'PdI-crono_inv'!P:P,\"<>proprietario\")+S347","v":0},null,null,"Non ERC",{"$f":"+VLOOKUP(F347,TT_Tabelle_Riferimento!$D$127:$E$164,2,FALSE)","v":"Acquedotto"},"",0]
[0,0,"Gestore",0,"IP",2,{"$f":"+VLOOKUP(F348,TT_Tabelle_Riferimento!$D$127:$G$164,4,FALSE)","v":"Condotte di acquedotto"},1,{"$f":"+VLOOKUP(H348,TT_Tabelle_Riferimento!$F$3:$G$6,2,FALSE)","v":"Servizio idrico integrato"},2027,{"$f":"+SUMIFS('PdI-crono_inv'!BB:BB,'PdI-crono_inv'!CF:CF,F348,'PdI-crono_inv'!CE:CE,H348,'PdI-crono_inv'!J:J,P348,'PdI-crono_inv'!P:P,\"<>proprietario\")","v":0},null,{"$f":"+SUMIFS('PdI-crono_inv'!BC:BC,'PdI-crono_inv'!CF:CF,F348,'PdI-crono_inv'!CE:CE,H348,'PdI-crono_inv'!J:J,P348,'PdI-crono_inv'!P:P,\"<>proprietario\")+S348","v":0},null,null,"ENV",{"$f":"+VLOOKUP(F348,TT_Tabelle_Riferimento!$D$127:$E$164,2,FALSE)","v":"Acquedotto"},{"$f":"+IF(SUM(K348:N348)=0,\"\",\"PdI_consolidamento\")","v":""},0]
[0,0,"Gestore",0,"IP",3,{"$f":"+VLOOKUP(F349,TT_Tabelle_Riferimento!$D$127:$G$164,4,FALSE)","v":"Opere idrauliche fisse di acquedotto"},1,{"$f":"+VLOOKUP(H349,TT_Tabelle_Riferimento!$F$3:$G$6,2,FALSE)","v":"Servizio idrico integrato"},2027,{"$f":"+SUMIFS('PdI-crono_inv'!BB:BB,'PdI-crono_inv'!CF:CF,F349,'PdI-crono_inv'!CE:CE,H349,'PdI-crono_inv'!J:J,P349,'PdI-crono_inv'!P:P,\"<>proprietario\")","v":0},null,{"$f":"+SUMIFS('PdI-crono_inv'!BC:BC,'PdI-crono_inv'!CF:CF,F349,'PdI-crono_inv'!CE:CE,H349,'PdI-crono_inv'!J:J,P349,'PdI-crono_inv'!P:P,\"<>proprietario\")+S349","v":0},null,null,"ENV",{"$f":"+VLOOKUP(F349,TT_Tabelle_Riferimento!$D$127:$E$164,2,FALSE)","v":"Acquedotto"},{"$f":"+IF(SUM(K349:N349)=0,\"\",\"PdI_consolidamento\")","v":""},0]
[0,0,"Gestore",0,"IP",4,{"$f":"+VLOOKUP(F350,TT_Tabelle_Riferimento!$D$127:$G$164,4,FALSE)","v":"Serbatoi"},1,{"$f":"+VLOOKUP(H350,TT_Tabelle_Riferimento!$F$3:$G$6,2,FALSE)","v":"Servizio idrico integrato"},2027,{"$f":"+SUMIFS('PdI-crono_inv'!BB:BB,'PdI-crono_inv'!CF:CF,F350,'PdI-crono_inv'!CE:CE,H350,'PdI-crono_inv'!J:J,P350,'PdI-crono_inv'!P:P,\"<>proprietario\")","v":0},null,{"$f":"+SUMIFS('PdI-crono_inv'!BC:BC,'PdI-crono_inv'!CF:CF,F350,'PdI-crono_inv'!CE:CE,H350,'PdI-crono_inv'!J:J,P350,'PdI-crono_inv'!P:P,\"<>proprietario\")+S350","v":0},null,null,"ENV",{"$f":"+VLOOKUP(F350,TT_Tabelle_Riferimento!$D$127:$E$164,2,FALSE)","v":"Acquedotto"},"",0]
[0,0,"Gestore",0,"IP",5,{"$f":"+VLOOKUP(F351,TT_Tabelle_Riferimento!$D$127:$G$164,4,FALSE)","v":"Impianti di sollevamento e pompaggio di acquedotto"},1,{"$f":"+VLOOKUP(H351,TT_Tabelle_Riferimento!$F$3:$G$6,2,FALSE)","v":"Servizio idrico integrato"},2027,{"$f":"+SUMIFS('PdI-crono_inv'!BB:BB,'PdI-crono_inv'!CF:CF,F351,'PdI-crono_inv'!CE:CE,H351,'PdI-crono_inv'!J:J,P351,'PdI-crono_inv'!P:P,\"<>proprietario\")","v":0},null,{"$f":"+SUMIFS('PdI-crono_inv'!BC:BC,'PdI-crono_inv'!CF:CF,F351,'PdI-crono_inv'!CE:CE,H351,'PdI-crono_inv'!J:J,P351,'PdI-crono_inv'!P:P,\"<>proprietario\")+S351","v":0},null,null,"ENV",{"$f":"+VLOOKUP(F351,TT_Tabelle_Riferimento!$D$127:$E$164,2,FALSE)","v":"Acquedotto"},"",0]
[0,0,"Gestore",0,"IP",6,{"$f":"+VLOOKUP(F352,TT_Tabelle_Riferimento!$D$127:$G$164,4,FALSE)","v":"Impianti di potabilizzazione"},1,{"$f":"+VLOOKUP(H352,TT_Tabelle_Riferimento!$F$3:$G$6,2,FALSE)","v":"Servizio idrico integrato"},2027,{"$f":"+SUMIFS('PdI-crono_inv'!BB:BB,'PdI-crono_inv'!CF:CF,F352,'PdI-crono_inv'!CE:CE,H352,'PdI-crono_inv'!J:J,P352,'PdI-crono_inv'!P:P,\"<>proprietario\")","v":0},null,{"$f":"+SUMIFS('PdI-crono_inv'!BC:BC,'PdI-crono_inv'!CF:CF,F352,'PdI-crono_inv'!CE:CE,H352,'PdI-crono_inv'!J:J,P352,'PdI-crono_inv'!P:P,\"<>proprietario\")+S352","v":0},null,null,"ENV",{"$f":"+VLOOKUP(F352,TT_Tabelle_Riferimento!$D$127:$E$164,2,FALSE)","v":"Acquedotto"},"",0]
[0,0,"Gestore",0,"IP",7,{"$f":"+VLOOKUP(F353,TT_Tabelle_Riferimento!$D$127:$G$164,4,FALSE)","v":"Altri trattamenti di potabilizzazione (tra cui dispositivi di disinfezione, stacciatura, filtrazione, addolcimento)"},1,{"$f":"+VLOOKUP(H353,TT_Tabelle_Riferimento!$F$3:$G$6,2,FALSE)","v":"Servizio idrico integrato"},2027,{"$f":"+SUMIFS('PdI-crono_inv'!BB:BB,'PdI-crono_inv'!CF:CF,F353,'PdI-crono_inv'!CE:CE,H353,'PdI-crono_inv'!J:J,P353,'PdI-crono_inv'!P:P,\"<>proprietario\")","v":0},null,{"$f":"+SUMIFS('PdI-crono_inv'!BC:BC,'PdI-crono_inv'!CF:CF,F353,'PdI-crono_inv'!CE:CE,H353,'PdI-crono_inv'!J:J,P353,'PdI-crono_inv'!P:P,\"<>proprietario\")+S353","v":0},null,null,"ENV",{"$f":"+VLOOKUP(F353,TT_Tabelle_Riferimento!$D$127:$E$164,2,FALSE)","v":"Acquedotto"},"",0]
[0,0,"Gestore",0,"IP",8,{"$f":"+VLOOKUP(F354,TT_Tabelle_Riferimento!$D$127:$G$164,4,FALSE)","v":"Gruppi di misura - altre attrezzature di acquedotto"},1,{"$f":"+VLOOKUP(H354,TT_Tabelle_Riferimento!$F$3:$G$6,2,FALSE)","v":"Servizio idrico integrato"},2027,{"$f":"+SUMIFS('PdI-crono_inv'!BB:BB,'PdI-crono_inv'!CF:CF,F354,'PdI-crono_inv'!CE:CE,H354,'PdI-crono_inv'!J:J,P354,'PdI-crono_inv'!P:P,\"<>proprietario\")","v":0},null,{"$f":"+SUMIFS('PdI-crono_inv'!BC:BC,'PdI-crono_inv'!CF:CF,F354,'PdI-crono_inv'!CE:CE,H354,'PdI-crono_inv'!J:J,P354,'PdI-crono_inv'!P:P,\"<>proprietario\")+S354","v":0},null,null,"ENV",{"$f":"+VLOOKUP(F354,TT_Tabelle_Riferimento!$D$127:$E$164,2,FALSE)","v":"Acquedotto"},"",0]
[0,0,"Gestore",0,"IP",9,{"$f":"+VLOOKUP(F355,TT_Tabelle_Riferimento!$D$127:$G$164,4,FALSE)","v":"Sistemi informativi di acquedotto"},1,{"$f":"+VLOOKUP(H355,TT_Tabelle_Riferimento!$F$3:$G$6,2,FALSE)","v":"Servizio idrico integrato"},2027,{"$f":"+SUMIFS('PdI-crono_inv'!BB:BB,'PdI-crono_inv'!CF:CF,F355,'PdI-crono_inv'!CE:CE,H355,'PdI-crono_inv'!J:J,P355,'PdI-crono_inv'!P:P,\"<>proprietario\")","v":0},null,{"$f":"+SUMIFS('PdI-crono_inv'!BC:BC,'PdI-crono_inv'!CF:CF,F355,'PdI-crono_inv'!CE:CE,H355,'PdI-crono_inv'!J:J,P355,'PdI-crono_inv'!P:P,\"<>proprietario\")+S355","v":0},null,null,"ENV",{"$f":"+VLOOKUP(F355,TT_Tabelle_Riferimento!$D$127:$E$164,2,FALSE)","v":"Acquedotto"},"",0]
[0,0,"Gestore",0,"IP",10,{"$f":"+VLOOKUP(F356,TT_Tabelle_Riferimento!$D$127:$G$164,4,FALSE)","v":"Telecontrollo e teletrasmissione di acquedotto"},1,{"$f":"+VLOOKUP(H356,TT_Tabelle_Riferimento!$F$3:$G$6,2,FALSE)","v":"Servizio idrico integrato"},2027,{"$f":"+SUMIFS('PdI-crono_inv'!BB:BB,'PdI-crono_inv'!CF:CF,F356,'PdI-crono_inv'!CE:CE,H356,'PdI-crono_inv'!J:J,P356,'PdI-crono_inv'!P:P,\"<>proprietario\")","v":0},null,{"$f":"+SUMIFS('PdI-crono_inv'!BC:BC,'PdI-crono_inv'!CF:CF,F356,'PdI-crono_inv'!CE:CE,H356,'PdI-crono_inv'!J:J,P356,'PdI-crono_inv'!P:P,\"<>proprietario\")+S356","v":0},null,null,"ENV",{"$f":"+VLOOKUP(F356,TT_Tabelle_Riferimento!$D$127:$E$164,2,FALSE)","v":"Acquedotto"},"",0]
[0,0,"Gestore",0,"IP",11,{"$f":"+VLOOKUP(F357,TT_Tabelle_Riferimento!$D$127:$G$164,4,FALSE)","v":"Condotte fognarie"},1,{"$f":"+VLOOKUP(H357,TT_Tabelle_Riferimento!$F$3:$G$6,2,FALSE)","v":"Servizio idrico integrato"},2027,{"$f":"+SUMIFS('PdI-crono_inv'!BB:BB,'PdI-crono_inv'!CF:CF,F357,'PdI-crono_inv'!CE:CE,H357,'PdI-crono_inv'!J:J,P357,'PdI-crono_inv'!P:P,\"<>proprietario\")","v":0},null,{"$f":"+SUMIFS('PdI-crono_inv'!BC:BC,'PdI-crono_inv'!CF:CF,F357,'PdI-crono_inv'!CE:CE,H357,'PdI-crono_inv'!J:J,P357,'PdI-crono_inv'!P:P,\"<>proprietario\")+S357","v":0},null,null,"ENV",{"$f":"+VLOOKUP(F357,TT_Tabelle_Riferimento!$D$127:$E$164,2,FALSE)","v":"Fognatura"},"",0]
[0,0,"Gestore",0,"IP",12,{"$f":"+VLOOKUP(F358,TT_Tabelle_Riferimento!$D$127:$G$164,4,FALSE)","v":"Sifoni e scaricatori di piena e altre opere idrauliche fisse di fognatura"},1,{"$f":"+VLOOKUP(H358,TT_Tabelle_Riferimento!$F$3:$G$6,2,FALSE)","v":"Servizio idrico integrato"},2027,{"$f":"+SUMIFS('PdI-crono_inv'!BB:BB,'PdI-crono_inv'!CF:CF,F358,'PdI-crono_inv'!CE:CE,H358,'PdI-crono_inv'!J:J,P358,'PdI-crono_inv'!P:P,\"<>proprietario\")","v":0},null,{"$f":"+SUMIFS('PdI-crono_inv'!BC:BC,'PdI-crono_inv'!CF:CF,F358,'PdI-crono_inv'!CE:CE,H358,'PdI-crono_inv'!J:J,P358,'PdI-crono_inv'!P:P,\"<>proprietario\")+S358","v":0},null,null,"ENV",{"$f":"+VLOOKUP(F358,TT_Tabelle_Riferimento!$D$127:$E$164,2,FALSE)","v":"Fognatura"},"",0]
[0,0,"Gestore",0,"IP",13,{"$f":"+VLOOKUP(F359,TT_Tabelle_Riferimento!$D$127:$G$164,4,FALSE)","v":"Vasche di laminazione e vasche di prima pioggia"},1,{"$f":"+VLOOKUP(H359,TT_Tabelle_Riferimento!$F$3:$G$6,2,FALSE)","v":"Servizio idrico integrato"},2027,{"$f":"+SUMIFS('PdI-crono_inv'!BB:BB,'PdI-crono_inv'!CF:CF,F359,'PdI-crono_inv'!CE:CE,H359,'PdI-crono_inv'!J:J,P359,'PdI-crono_inv'!P:P,\"<>proprietario\")","v":0},null,{"$f":"+SUMIFS('PdI-crono_inv'!BC:BC,'PdI-crono_inv'!CF:CF,F359,'PdI-crono_inv'!CE:CE,H359,'PdI-crono_inv'!J:J,P359,'PdI-crono_inv'!P:P,\"<>proprietario\")+S359","v":0},null,null,"ENV",{"$f":"+VLOOKUP(F359,TT_Tabelle_Riferimento!$D$127:$E$164,2,FALSE)","v":"Fognatura"},"",0]
[0,0,"Gestore",0,"IP",14,{"$f":"+VLOOKUP(F360,TT_Tabelle_Riferimento!$D$127:$G$164,4,FALSE)","v":"Impianti di sollevamento e pompaggio di fognatura"},1,{"$f":"+VLOOKUP(H360,TT_Tabelle_Riferimento!$F$3:$G$6,2,FALSE)","v":"Servizio idrico integrato"},2027,{"$f":"+SUMIFS('PdI-crono_inv'!BB:BB,'PdI-crono_inv'!CF:CF,F360,'PdI-crono_inv'!CE:CE,H360,'PdI-crono_inv'!J:J,P360,'PdI-crono_inv'!P:P,\"<>proprietario\")","v":0},null,{"$f":"+SUMIFS('PdI-crono_inv'!BC:BC,'PdI-crono_inv'!CF:CF,F360,'PdI-crono_inv'!CE:CE,H360,'PdI-crono_inv'!J:J,P360,'PdI-crono_inv'!P:P,\"<>proprietario\")+S360","v":0},null,null,"ENV",{"$f":"+VLOOKUP(F360,TT_Tabelle_Riferimento!$D$127:$E$164,2,FALSE)","v":"Fognatura"},"",0]
[0,0,"Gestore",0,"IP",15,{"$f":"+VLOOKUP(F361,TT_Tabelle_Riferimento!$D$127:$G$164,4,FALSE)","v":"Gruppi di misura - altre attrezzature di fognatura"},1,{"$f":"+VLOOKUP(H361,TT_Tabelle_Riferimento!$F$3:$G$6,2,FALSE)","v":"Servizio idrico integrato"},2027,{"$f":"+SUMIFS('PdI-crono_inv'!BB:BB,'PdI-crono_inv'!CF:CF,F361,'PdI-crono_inv'!CE:CE,H361,'PdI-crono_inv'!J:J,P361,'PdI-crono_inv'!P:P,\"<>proprietario\")","v":0},null,{"$f":"+SUMIFS('PdI-crono_inv'!BC:BC,'PdI-crono_inv'!CF:CF,F361,'PdI-crono_inv'!CE:CE,H361,'PdI-crono_inv'!J:J,P361,'PdI-crono_inv'!P:P,\"<>proprietario\")+S361","v":0},null,null,"ENV",{"$f":"+VLOOKUP(F361,TT_Tabelle_Riferimento!$D$127:$E$164,2,FALSE)","v":"Fognatura"},"",0]
[0,0,"Gestore",0,"IP",16,{"$f":"+VLOOKUP(F362,TT_Tabelle_Riferimento!$D$127:$G$164,4,FALSE)","v":"Sistemi informativi di fognatura"},1,{"$f":"+VLOOKUP(H362,TT_Tabelle_Riferimento!$F$3:$G$6,2,FALSE)","v":"Servizio idrico integrato"},2027,{"$f":"+SUMIFS('PdI-crono_inv'!BB:BB,'PdI-crono_inv'!CF:CF,F362,'PdI-crono_inv'!CE:CE,H362,'PdI-crono_inv'!J:J,P362,'PdI-crono_inv'!P:P,\"<>proprietario\")","v":0},null,{"$f":"+SUMIFS('PdI-crono_inv'!BC:BC,'PdI-crono_inv'!CF:CF,F362,'PdI-crono_inv'!CE:CE,H362,'PdI-crono_inv'!J:J,P362,'PdI-crono_inv'!P:P,\"<>proprietario\")+S362","v":0},null,null,"ENV",{"$f":"+VLOOKUP(F362,TT_Tabelle_Riferimento!$D$127:$E$164,2,FALSE)","v":"Fognatura"},"",0]
[0,0,"Gestore",0,"IP",18,{"$f":"+VLOOKUP(F363,TT_Tabelle_Riferimento!$D$127:$G$164,4,FALSE)","v":"Telecontrollo e teletrasmissione di fognatura"},1,{"$f":"+VLOOKUP(H363,TT_Tabelle_Riferimento!$F$3:$G$6,2,FALSE)","v":"Servizio idrico integrato"},2027,{"$f":"+SUMIFS('PdI-crono_inv'!BB:BB,'PdI-crono_inv'!CF:CF,F363,'PdI-crono_inv'!CE:CE,H363,'PdI-crono_inv'!J:J,P363,'PdI-crono_inv'!P:P,\"<>proprietario\")","v":0},null,{"$f":"+SUMIFS('PdI-crono_inv'!BC:BC,'PdI-crono_inv'!CF:CF,F363,'PdI-crono_inv'!CE:CE,H363,'PdI-crono_inv'!J:J,P363,'PdI-crono_inv'!P:P,\"<>proprietario\")+S363","v":0},null,null,"ENV",{"$f":"+VLOOKUP(F363,TT_Tabelle_Riferimento!$D$127:$E$164,2,FALSE)","v":"Fognatura"},"",0]
[0,0,"Gestore",0,"IP",19,{"$f":"+VLOOKUP(F364,TT_Tabelle_Riferimento!$D$127:$G$164,4,FALSE)","v":"Impianti di sollevamento e pompaggio di depurazione"},1,{"$f":"+VLOOKUP(H364,TT_Tabelle_Riferimento!$F$3:$G$6,2,FALSE)","v":"Servizio idrico integrato"},2027,{"$f":"+SUMIFS('PdI-crono_inv'!BB:BB,'PdI-crono_inv'!CF:CF,F364,'PdI-crono_inv'!CE:CE,H364,'PdI-crono_inv'!J:J,P364,'PdI-crono_inv'!P:P,\"<>proprietario\")","v":0},null,{"$f":"+SUMIFS('PdI-crono_inv'!BC:BC,'PdI-crono_inv'!CF:CF,F364,'PdI-crono_inv'!CE:CE,H364,'PdI-crono_inv'!J:J,P364,'PdI-crono_inv'!P:P,\"<>proprietario\")+S364","v":0},null,null,"ENV",{"$f":"+VLOOKUP(F364,TT_Tabelle_Riferimento!$D$127:$E$164,2,FALSE)","v":"Depurazione"},"",0]
[0,0,"Gestore",0,"IP",20,{"$f":"+VLOOKUP(F365,TT_Tabelle_Riferimento!$D$127:$G$164,4,FALSE)","v":"Tecniche naturali di depurazione (tra cui fitodepurazione e lagunaggio)"},1,{"$f":"+VLOOKUP(H365,TT_Tabelle_Riferimento!$F$3:$G$6,2,FALSE)","v":"Servizio idrico integrato"},2027,{"$f":"+SUMIFS('PdI-crono_inv'!BB:BB,'PdI-crono_inv'!CF:CF,F365,'PdI-crono_inv'!CE:CE,H365,'PdI-crono_inv'!J:J,P365,'PdI-crono_inv'!P:P,\"<>proprietario\")","v":0},null,{"$f":"+SUMIFS('PdI-crono_inv'!BC:BC,'PdI-crono_inv'!CF:CF,F365,'PdI-crono_inv'!CE:CE,H365,'PdI-crono_inv'!J:J,P365,'PdI-crono_inv'!P:P,\"<>proprietario\")+S365","v":0},null,null,"ENV",{"$f":"+VLOOKUP(F365,TT_Tabelle_Riferimento!$D$127:$E$164,2,FALSE)","v":"Depurazione"},"",0]
[0,0,"Gestore",0,"IP",21,{"$f":"+VLOOKUP(F366,TT_Tabelle_Riferimento!$D$127:$G$164,4,FALSE)","v":"Impianti di depurazione – trattamenti sino al preliminare, integrativo, primario - fosse settiche e fosse Imhoff"},1,{"$f":"+VLOOKUP(H366,TT_Tabelle_Riferimento!$F$3:$G$6,2,FALSE)","v":"Servizio idrico integrato"},2027,{"$f":"+SUMIFS('PdI-crono_inv'!BB:BB,'PdI-crono_inv'!CF:CF,F366,'PdI-crono_inv'!CE:CE,H366,'PdI-crono_inv'!J:J,P366,'PdI-crono_inv'!P:P,\"<>proprietario\")","v":0},null,{"$f":"+SUMIFS('PdI-crono_inv'!BC:BC,'PdI-crono_inv'!CF:CF,F366,'PdI-crono_inv'!CE:CE,H366,'PdI-crono_inv'!J:J,P366,'PdI-crono_inv'!P:P,\"<>proprietario\")+S366","v":0},null,null,"ENV",{"$f":"+VLOOKUP(F366,TT_Tabelle_Riferimento!$D$127:$E$164,2,FALSE)","v":"Depurazione"},"",0]
[0,0,"Gestore",0,"IP",22,{"$f":"+VLOOKUP(F367,TT_Tabelle_Riferimento!$D$127:$G$164,4,FALSE)","v":"Impianti di depurazione – trattamenti sino al secondario"},1,{"$f":"+VLOOKUP(H367,TT_Tabelle_Riferimento!$F$3:$G$6,2,FALSE)","v":"Servizio idrico integrato"},2027,{"$f":"+SUMIFS('PdI-crono_inv'!BB:BB,'PdI-crono_inv'!CF:CF,F367,'PdI-crono_inv'!CE:CE,H367,'PdI-crono_inv'!J:J,P367,'PdI-crono_inv'!P:P,\"<>proprietario\")","v":0},null,{"$f":"+SUMIFS('PdI-crono_inv'!BC:BC,'PdI-crono_inv'!CF:CF,F367,'PdI-crono_inv'!CE:CE,H367,'PdI-crono_inv'!J:J,P367,'PdI-crono_inv'!P:P,\"<>proprietario\")+S367","v":0},null,null,"ENV",{"$f":"+VLOOKUP(F367,TT_Tabelle_Riferimento!$D$127:$E$164,2,FALSE)","v":"Depurazione"},"",0]
[0,0,"Gestore",0,"IP",23,{"$f":"+VLOOKUP(F368,TT_Tabelle_Riferimento!$D$127:$G$164,4,FALSE)","v":"Impianti di depurazione – trattamenti sino al terziario e terziario avanzato"},1,{"$f":"+VLOOKUP(H368,TT_Tabelle_Riferimento!$F$3:$G$6,2,FALSE)","v":"Servizio idrico integrato"},2027,{"$f":"+SUMIFS('PdI-crono_inv'!BB:BB,'PdI-crono_inv'!CF:CF,F368,'PdI-crono_inv'!CE:CE,H368,'PdI-crono_inv'!J:J,P368,'PdI-crono_inv'!P:P,\"<>proprietario\")","v":0},null,{"$f":"+SUMIFS('PdI-crono_inv'!BC:BC,'PdI-crono_inv'!CF:CF,F368,'PdI-crono_inv'!CE:CE,H368,'PdI-crono_inv'!J:J,P368,'PdI-crono_inv'!P:P,\"<>proprietario\")+S368","v":0},null,null,"ENV",{"$f":"+VLOOKUP(F368,TT_Tabelle_Riferimento!$D$127:$E$164,2,FALSE)","v":"Depurazione"},"",0]
[0,0,"Gestore",0,"IP",24,{"$f":"+VLOOKUP(F369,TT_Tabelle_Riferimento!$D$127:$G$164,4,FALSE)","v":"Impianti di essiccamento fanghi e di valorizzazione dei fanghi (tra cui mono-incenerimento, pirolisi, gassificazione)"},1,{"$f":"+VLOOKUP(H369,TT_Tabelle_Riferimento!$F$3:$G$6,2,FALSE)","v":"Servizio idrico integrato"},2027,{"$f":"+SUMIFS('PdI-crono_inv'!BB:BB,'PdI-crono_inv'!CF:CF,F369,'PdI-crono_inv'!CE:CE,H369,'PdI-crono_inv'!J:J,P369,'PdI-crono_inv'!P:P,\"<>proprietario\")","v":0},null,{"$f":"+SUMIFS('PdI-crono_inv'!BC:BC,'PdI-crono_inv'!CF:CF,F369,'PdI-crono_inv'!CE:CE,H369,'PdI-crono_inv'!J:J,P369,'PdI-crono_inv'!P:P,\"<>proprietario\")+S369","v":0},null,null,"ENV",{"$f":"+VLOOKUP(F369,TT_Tabelle_Riferimento!$D$127:$E$164,2,FALSE)","v":"Depurazione"},"",0]
[0,0,"Gestore",0,"IP",25,{"$f":"+VLOOKUP(F370,TT_Tabelle_Riferimento!$D$127:$G$164,4,FALSE)","v":"Gruppi di misura - altre attrezzature di depurazione"},1,{"$f":"+VLOOKUP(H370,TT_Tabelle_Riferimento!$F$3:$G$6,2,FALSE)","v":"Servizio idrico integrato"},2027,{"$f":"+SUMIFS('PdI-crono_inv'!BB:BB,'PdI-crono_inv'!CF:CF,F370,'PdI-crono_inv'!CE:CE,H370,'PdI-crono_inv'!J:J,P370,'PdI-crono_inv'!P:P,\"<>proprietario\")","v":0},null,{"$f":"+SUMIFS('PdI-crono_inv'!BC:BC,'PdI-crono_inv'!CF:CF,F370,'PdI-crono_inv'!CE:CE,H370,'PdI-crono_inv'!J:J,P370,'PdI-crono_inv'!P:P,\"<>proprietario\")+S370","v":0},null,null,"ENV",{"$f":"+VLOOKUP(F370,TT_Tabelle_Riferimento!$D$127:$E$164,2,FALSE)","v":"Depurazione"},"",0]
[0,0,"Gestore",0,"IP",26,{"$f":"+VLOOKUP(F371,TT_Tabelle_Riferimento!$D$127:$G$164,4,FALSE)","v":"Sistemi informativi di depurazione"},1,{"$f":"+VLOOKUP(H371,TT_Tabelle_Riferimento!$F$3:$G$6,2,FALSE)","v":"Servizio idrico integrato"},2027,{"$f":"+SUMIFS('PdI-crono_inv'!BB:BB,'PdI-crono_inv'!CF:CF,F371,'PdI-crono_inv'!CE:CE,H371,'PdI-crono_inv'!J:J,P371,'PdI-crono_inv'!P:P,\"<>proprietario\")","v":0},null,{"$f":"+SUMIFS('PdI-crono_inv'!BC:BC,'PdI-crono_inv'!CF:CF,F371,'PdI-crono_inv'!CE:CE,H371,'PdI-crono_inv'!J:J,P371,'PdI-crono_inv'!P:P,\"<>proprietario\")+S371","v":0},null,null,"ENV",{"$f":"+VLOOKUP(F371,TT_Tabelle_Riferimento!$D$127:$E$164,2,FALSE)","v":"Depurazione"},"",0]
[0,0,"Gestore",0,"IP",27,{"$f":"+VLOOKUP(F372,TT_Tabelle_Riferimento!$D$127:$G$164,4,FALSE)","v":"Telecontrollo e teletrasmissione di depurazione"},1,{"$f":"+VLOOKUP(H372,TT_Tabelle_Riferimento!$F$3:$G$6,2,FALSE)","v":"Servizio idrico integrato"},2027,{"$f":"+SUMIFS('PdI-crono_inv'!BB:BB,'PdI-crono_inv'!CF:CF,F372,'PdI-crono_inv'!CE:CE,H372,'PdI-crono_inv'!J:J,P372,'PdI-crono_inv'!P:P,\"<>proprietario\")","v":0},null,{"$f":"+SUMIFS('PdI-crono_inv'!BC:BC,'PdI-crono_inv'!CF:CF,F372,'PdI-crono_inv'!CE:CE,H372,'PdI-crono_inv'!J:J,P372,'PdI-crono_inv'!P:P,\"<>proprietario\")+S372","v":0},null,null,"ENV",{"$f":"+VLOOKUP(F372,TT_Tabelle_Riferimento!$D$127:$E$164,2,FALSE)","v":"Depurazione"},"",0]
[0,0,"Gestore",0,"IP",28,{"$f":"+VLOOKUP(F373,TT_Tabelle_Riferimento!$D$127:$G$164,4,FALSE)","v":"Altri impianti"},1,{"$f":"+VLOOKUP(H373,TT_Tabelle_Riferimento!$F$3:$G$6,2,FALSE)","v":"Servizio idrico integrato"},2027,{"$f":"+SUMIFS('PdI-crono_inv'!BB:BB,'PdI-crono_inv'!CF:CF,F373,'PdI-crono_inv'!CE:CE,H373,'PdI-crono_inv'!J:J,P373,'PdI-crono_inv'!P:P,\"<>proprietario\")","v":0},null,{"$f":"+SUMIFS('PdI-crono_inv'!BC:BC,'PdI-crono_inv'!CF:CF,F373,'PdI-crono_inv'!CE:CE,H373,'PdI-crono_inv'!J:J,P373,'PdI-crono_inv'!P:P,\"<>proprietario\")+S373","v":0},null,null,"ENV",{"$f":"+VLOOKUP(F373,TT_Tabelle_Riferimento!$D$127:$E$164,2,FALSE)","v":"Comune"},"",0]
[{"$f":"+idato","v":0},{"$f":"+idgestore","v":0},"Gestore",0,"IP",29,{"$f":"+VLOOKUP(F374,TT_Tabelle_Riferimento!$D$127:$G$164,4,FALSE)","v":"Laboratori e attrezzature"},1,{"$f":"+VLOOKUP(H374,TT_Tabelle_Riferimento!$F$3:$G$6,2,FALSE)","v":"Servizio idrico integrato"},2027,{"$f":"+SUMIFS('PdI-crono_inv'!BB:BB,'PdI-crono_inv'!CF:CF,F374,'PdI-crono_inv'!CE:CE,H374,'PdI-crono_inv'!J:J,P374,'PdI-crono_inv'!P:P,\"<>proprietario\")","v":0},null,{"$f":"+SUMIFS('PdI-crono_inv'!BC:BC,'PdI-crono_inv'!CF:CF,F374,'PdI-crono_inv'!CE:CE,H374,'PdI-crono_inv'!J:J,P374,'PdI-crono_inv'!P:P,\"<>proprietario\")+S374","v":0},null,null,"ENV",{"$f":"+VLOOKUP(F374,TT_Tabelle_Riferimento!$D$127:$E$164,2,FALSE)","v":"Comune"},"",0]
[0,0,"Gestore",0,"IP",30,{"$f":"+VLOOKUP(F375,TT_Tabelle_Riferimento!$D$127:$G$164,4,FALSE)","v":"Sistemi informativi"},1,{"$f":"+VLOOKUP(H375,TT_Tabelle_Riferimento!$F$3:$G$6,2,FALSE)","v":"Servizio idrico integrato"},2027,{"$f":"+SUMIFS('PdI-crono_inv'!BB:BB,'PdI-crono_inv'!CF:CF,F375,'PdI-crono_inv'!CE:CE,H375,'PdI-crono_inv'!J:J,P375,'PdI-crono_inv'!P:P,\"<>proprietario\")","v":0},null,{"$f":"+SUMIFS('PdI-crono_inv'!BC:BC,'PdI-crono_inv'!CF:CF,F375,'PdI-crono_inv'!CE:CE,H375,'PdI-crono_inv'!J:J,P375,'PdI-crono_inv'!P:P,\"<>proprietario\")+S375","v":0},null,null,"ENV",{"$f":"+VLOOKUP(F375,TT_Tabelle_Riferimento!$D$127:$E$164,2,FALSE)","v":"Comune"},"",0]
[0,0,"Gestore",0,"IP",31,{"$f":"+VLOOKUP(F376,TT_Tabelle_Riferimento!$D$127:$G$164,4,FALSE)","v":"Telecontrollo e teletrasmissione"},1,{"$f":"+VLOOKUP(H376,TT_Tabelle_Riferimento!$F$3:$G$6,2,FALSE)","v":"Servizio idrico integrato"},2027,{"$f":"+SUMIFS('PdI-crono_inv'!BB:BB,'PdI-crono_inv'!CF:CF,F376,'PdI-crono_inv'!CE:CE,H376,'PdI-crono_inv'!J:J,P376,'PdI-crono_inv'!P:P,\"<>proprietario\")","v":0},null,{"$f":"+SUMIFS('PdI-crono_inv'!BC:BC,'PdI-crono_inv'!CF:CF,F376,'PdI-crono_inv'!CE:CE,H376,'PdI-crono_inv'!J:J,P376,'PdI-crono_inv'!P:P,\"<>proprietario\")+S376","v":0},null,null,"ENV",{"$f":"+VLOOKUP(F376,TT_Tabelle_Riferimento!$D$127:$E$164,2,FALSE)","v":"Comune"},"",0]
[0,0,"Gestore",0,"IP",32,{"$f":"+VLOOKUP(F377,TT_Tabelle_Riferimento!$D$127:$G$164,4,FALSE)","v":"Autoveicoli - automezzi"},1,{"$f":"+VLOOKUP(H377,TT_Tabelle_Riferimento!$F$3:$G$6,2,FALSE)","v":"Servizio idrico integrato"},2027,{"$f":"+SUMIFS('PdI-crono_inv'!BB:BB,'PdI-crono_inv'!CF:CF,F377,'PdI-crono_inv'!CE:CE,H377,'PdI-crono_inv'!J:J,P377,'PdI-crono_inv'!P:P,\"<>proprietario\")","v":0},null,{"$f":"+SUMIFS('PdI-crono_inv'!BC:BC,'PdI-crono_inv'!CF:CF,F377,'PdI-crono_inv'!CE:CE,H377,'PdI-crono_inv'!J:J,P377,'PdI-crono_inv'!P:P,\"<>proprietario\")+S377","v":0},null,null,"ENV",{"$f":"+VLOOKUP(F377,TT_Tabelle_Riferimento!$D$127:$E$164,2,FALSE)","v":"Comune"},"",0]
[0,0,"Gestore",0,"IP",1,{"$f":"+VLOOKUP(F378,TT_Tabelle_Riferimento!$D$127:$G$164,4,FALSE)","v":"Terreni"},1,{"$f":"+VLOOKUP(H378,TT_Tabelle_Riferimento!$F$3:$G$6,2,FALSE)","v":"Servizio idrico integrato"},2027,{"$f":"+SUMIFS('PdI-crono_inv'!BB:BB,'PdI-crono_inv'!CF:CF,F378,'PdI-crono_inv'!CE:CE,H378,'PdI-crono_inv'!J:J,P378,'PdI-crono_inv'!P:P,\"<>proprietario\")","v":0},null,{"$f":"+SUMIFS('PdI-crono_inv'!BC:BC,'PdI-crono_inv'!CF:CF,F378,'PdI-crono_inv'!CE:CE,H378,'PdI-crono_inv'!J:J,P378,'PdI-crono_inv'!P:P,\"<>proprietario\")+S378","v":0},null,null,"ENV",{"$f":"+VLOOKUP(F378,TT_Tabelle_Riferimento!$D$127:$E$164,2,FALSE)","v":"Comune"},"",0]
[0,0,"Gestore",0,"IP",33,{"$f":"+VLOOKUP(F379,TT_Tabelle_Riferimento!$D$127:$G$164,4,FALSE)","v":"Fabbricati non industriali"},1,{"$f":"+VLOOKUP(H379,TT_Tabelle_Riferimento!$F$3:$G$6,2,FALSE)","v":"Servizio idrico integrato"},2027,{"$f":"+SUMIFS('PdI-crono_inv'!BB:BB,'PdI-crono_inv'!CF:CF,F379,'PdI-crono_inv'!CE:CE,H379,'PdI-crono_inv'!J:J,P379,'PdI-crono_inv'!P:P,\"<>proprietario\")","v":0},null,{"$f":"+SUMIFS('PdI-crono_inv'!BC:BC,'PdI-crono_inv'!CF:CF,F379,'PdI-crono_inv'!CE:CE,H379,'PdI-crono_inv'!J:J,P379,'PdI-crono_inv'!P:P,\"<>proprietario\")+S379","v":0},null,null,"ENV",{"$f":"+VLOOKUP(F379,TT_Tabelle_Riferimento!$D$127:$E$164,2,FALSE)","v":"Comune"},"",0]
[0,0,"Gestore",0,"IP",34,{"$f":"+VLOOKUP(F380,TT_Tabelle_Riferimento!$D$127:$G$164,4,FALSE)","v":"Fabbricati industriali"},1,{"$f":"+VLOOKUP(H380,TT_Tabelle_Riferimento!$F$3:$G$6,2,FALSE)","v":"Servizio idrico integrato"},2027,{"$f":"+SUMIFS('PdI-crono_inv'!BB:BB,'PdI-crono_inv'!CF:CF,F380,'PdI-crono_inv'!CE:CE,H380,'PdI-crono_inv'!J:J,P380,'PdI-crono_inv'!P:P,\"<>proprietario\")","v":0},null,{"$f":"+SUMIFS('PdI-crono_inv'!BC:BC,'PdI-crono_inv'!CF:CF,F380,'PdI-crono_inv'!CE:CE,H380,'PdI-crono_inv'!J:J,P380,'PdI-crono_inv'!P:P,\"<>proprietario\")+S380","v":0},null,null,"ENV",{"$f":"+VLOOKUP(F380,TT_Tabelle_Riferimento!$D$127:$E$164,2,FALSE)","v":"Comune"},"",0]
[0,0,"Gestore",0,"IP",35,{"$f":"+VLOOKUP(F381,TT_Tabelle_Riferimento!$D$127:$G$164,4,FALSE)","v":"Costruzioni leggere"},1,{"$f":"+VLOOKUP(H381,TT_Tabelle_Riferimento!$F$3:$G$6,2,FALSE)","v":"Servizio idrico integrato"},2027,{"$f":"+SUMIFS('PdI-crono_inv'!BB:BB,'PdI-crono_inv'!CF:CF,F381,'PdI-crono_inv'!CE:CE,H381,'PdI-crono_inv'!J:J,P381,'PdI-crono_inv'!P:P,\"<>proprietario\")","v":0},null,{"$f":"+SUMIFS('PdI-crono_inv'!BC:BC,'PdI-crono_inv'!CF:CF,F381,'PdI-crono_inv'!CE:CE,H381,'PdI-crono_inv'!J:J,P381,'PdI-crono_inv'!P:P,\"<>proprietario\")+S381","v":0},null,null,"ENV",{"$f":"+VLOOKUP(F381,TT_Tabelle_Riferimento!$D$127:$E$164,2,FALSE)","v":"Comune"},"",0]
[0,0,"Gestore",0,"IP",36,{"$f":"+VLOOKUP(F382,TT_Tabelle_Riferimento!$D$127:$G$164,4,FALSE)","v":"Studi, ricerche, brevetti, diritti di utilizzazione"},1,{"$f":"+VLOOKUP(H382,TT_Tabelle_Riferimento!$F$3:$G$6,2,FALSE)","v":"Servizio idrico integrato"},2027,{"$f":"+SUMIFS('PdI-crono_inv'!BB:BB,'PdI-crono_inv'!CF:CF,F382,'PdI-crono_inv'!CE:CE,H382,'PdI-crono_inv'!J:J,P382,'PdI-crono_inv'!P:P,\"<>proprietario\")","v":0},null,{"$f":"+SUMIFS('PdI-crono_inv'!BC:BC,'PdI-crono_inv'!CF:CF,F382,'PdI-crono_inv'!CE:CE,H382,'PdI-crono_inv'!J:J,P382,'PdI-crono_inv'!P:P,\"<>proprietario\")+S382","v":0},null,null,"ENV",{"$f":"+VLOOKUP(F382,TT_Tabelle_Riferimento!$D$127:$E$164,2,FALSE)","v":"Comune"},"",0]
[0,0,"Gestore",0,"IP",37,{"$f":"+VLOOKUP(F383,TT_Tabelle_Riferimento!$D$127:$G$164,4,FALSE)","v":"Altre immobilizzazioni materiali e immateriali"},1,{"$f":"+VLOOKUP(H383,TT_Tabelle_Riferimento!$F$3:$G$6,2,FALSE)","v":"Servizio idrico integrato"},2027,{"$f":"+SUMIFS('PdI-crono_inv'!BB:BB,'PdI-crono_inv'!CF:CF,F383,'PdI-crono_inv'!CE:CE,H383,'PdI-crono_inv'!J:J,P383,'PdI-crono_inv'!P:P,\"<>proprietario\")","v":0},null,{"$f":"+SUMIFS('PdI-crono_inv'!BC:BC,'PdI-crono_inv'!CF:CF,F383,'PdI-crono_inv'!CE:CE,H383,'PdI-crono_inv'!J:J,P383,'PdI-crono_inv'!P:P,\"<>proprietario\")+S383","v":0},null,null,"ENV",{"$f":"+VLOOKUP(F383,TT_Tabelle_Riferimento!$D$127:$E$164,2,FALSE)","v":"Comune"},{"$f":"+IF(SUM(K383:N383)=0,\"\",\"PdI_consolidamento\")","v":""},0]
[0,0,"Gestore",0,"IP",38,{"$f":"+VLOOKUP(F384,TT_Tabelle_Riferimento!$D$127:$G$164,4,FALSE)","v":"Grandi dighe (sbarramenti che superano i quindici metri di altezza o che determinano un invaso superiore a 1 milione di metri cubi)"},1,{"$f":"+VLOOKUP(H384,TT_Tabelle_Riferimento!$F$3:$G$6,2,FALSE)","v":"Servizio idrico integrato"},2027,{"$f":"+SUMIFS('PdI-crono_inv'!BB:BB,'PdI-crono_inv'!CF:CF,F384,'PdI-crono_inv'!CE:CE,H384,'PdI-crono_inv'!J:J,P384,'PdI-crono_inv'!P:P,\"<>proprietario\")","v":0},null,{"$f":"+SUMIFS('PdI-crono_inv'!BC:BC,'PdI-crono_inv'!CF:CF,F384,'PdI-crono_inv'!CE:CE,H384,'PdI-crono_inv'!J:J,P384,'PdI-crono_inv'!P:P,\"<>proprietario\")+S384","v":0},null,null,"ENV",{"$f":"+VLOOKUP(F384,TT_Tabelle_Riferimento!$D$127:$E$164,2,FALSE)","v":"Acquedotto"},{"$f":"+IF(SUM(K384:N384)=0,\"\",\"PdI_consolidamento\")","v":""},0]
[0,0,"Gestore",0,"IP",39,{"$f":"+VLOOKUP(F385,TT_Tabelle_Riferimento!$D$127:$G$164,4,FALSE)","v":"Piccole dighe (sbarramenti che non superano i quindici metri di altezza o che determinano un invaso non superiore a 1 milione di metri cubi)"},1,{"$f":"+VLOOKUP(H385,TT_Tabelle_Riferimento!$F$3:$G$6,2,FALSE)","v":"Servizio idrico integrato"},2027,{"$f":"+SUMIFS('PdI-crono_inv'!BB:BB,'PdI-crono_inv'!CF:CF,F385,'PdI-crono_inv'!CE:CE,H385,'PdI-crono_inv'!J:J,P385,'PdI-crono_inv'!P:P,\"<>proprietario\")","v":0},null,{"$f":"+SUMIFS('PdI-crono_inv'!BC:BC,'PdI-crono_inv'!CF:CF,F385,'PdI-crono_inv'!CE:CE,H385,'PdI-crono_inv'!J:J,P385,'PdI-crono_inv'!P:P,\"<>proprietario\")+S385","v":0},null,null,"ENV",{"$f":"+VLOOKUP(F385,TT_Tabelle_Riferimento!$D$127:$E$164,2,FALSE)","v":"Acquedotto"},{"$f":"+IF(SUM(K385:N385)=0,\"\",\"PdI_consolidamento\")","v":""},0]
[{"$f":"+idato","v":0},{"$f":"+idgestore","v":0},"Gestore",0,"IP",2,{"$f":"+VLOOKUP(F386,TT_Tabelle_Riferimento!$D$127:$G$164,4,FALSE)","v":"Condotte di acquedotto"},2,{"$f":"+VLOOKUP(H386,TT_Tabelle_Riferimento!$F$3:$G$6,2,FALSE)","v":"Fognatura bianca e pulizia / manutenzione caditoie stradali"},2027,{"$f":"+SUMIFS('PdI-crono_inv'!BB:BB,'PdI-crono_inv'!CF:CF,F386,'PdI-crono_inv'!CE:CE,H386,'PdI-crono_inv'!J:J,P386,'PdI-crono_inv'!P:P,\"<>proprietario\")","v":0},null,{"$f":"+SUMIFS('PdI-crono_inv'!BC:BC,'PdI-crono_inv'!CF:CF,F386,'PdI-crono_inv'!CE:CE,H386,'PdI-crono_inv'!J:J,P386,'PdI-crono_inv'!P:P,\"<>proprietario\")+S386","v":0},null,null,"ENV",{"$f":"+VLOOKUP(F386,TT_Tabelle_Riferimento!$D$127:$E$164,2,FALSE)","v":"Acquedotto"},{"$f":"+IF(SUM(K386:N386)=0,\"\",\"PdI_consolidamento\")","v":""},0]
[0,0,"Gestore",0,"IP",3,{"$f":"+VLOOKUP(F387,TT_Tabelle_Riferimento!$D$127:$G$164,4,FALSE)","v":"Opere idrauliche fisse di acquedotto"},2,{"$f":"+VLOOKUP(H387,TT_Tabelle_Riferimento!$F$3:$G$6,2,FALSE)","v":"Fognatura bianca e pulizia / manutenzione caditoie stradali"},2027,{"$f":"+SUMIFS('PdI-crono_inv'!BB:BB,'PdI-crono_inv'!CF:CF,F387,'PdI-crono_inv'!CE:CE,H387,'PdI-crono_inv'!J:J,P387,'PdI-crono_inv'!P:P,\"<>proprietario\")","v":0},null,{"$f":"+SUMIFS('PdI-crono_inv'!BC:BC,'PdI-crono_inv'!CF:CF,F387,'PdI-crono_inv'!CE:CE,H387,'PdI-crono_inv'!J:J,P387,'PdI-crono_inv'!P:P,\"<>proprietario\")+S387","v":0},null,null,"ENV",{"$f":"+VLOOKUP(F387,TT_Tabelle_Riferimento!$D$127:$E$164,2,FALSE)","v":"Acquedotto"},"",0]
[0,0,"Gestore",0,"IP",4,{"$f":"+VLOOKUP(F388,TT_Tabelle_Riferimento!$D$127:$G$164,4,FALSE)","v":"Serbatoi"},2,{"$f":"+VLOOKUP(H388,TT_Tabelle_Riferimento!$F$3:$G$6,2,FALSE)","v":"Fognatura bianca e pulizia / manutenzione caditoie stradali"},2027,{"$f":"+SUMIFS('PdI-crono_inv'!BB:BB,'PdI-crono_inv'!CF:CF,F388,'PdI-crono_inv'!CE:CE,H388,'PdI-crono_inv'!J:J,P388,'PdI-crono_inv'!P:P,\"<>proprietario\")","v":0},null,{"$f":"+SUMIFS('PdI-crono_inv'!BC:BC,'PdI-crono_inv'!CF:CF,F388,'PdI-crono_inv'!CE:CE,H388,'PdI-crono_inv'!J:J,P388,'PdI-crono_inv'!P:P,\"<>proprietario\")+S388","v":0},null,null,"ENV",{"$f":"+VLOOKUP(F388,TT_Tabelle_Riferimento!$D$127:$E$164,2,FALSE)","v":"Acquedotto"},"",0]
[0,0,"Gestore",0,"IP",5,{"$f":"+VLOOKUP(F389,TT_Tabelle_Riferimento!$D$127:$G$164,4,FALSE)","v":"Impianti di sollevamento e pompaggio di acquedotto"},2,{"$f":"+VLOOKUP(H389,TT_Tabelle_Riferimento!$F$3:$G$6,2,FALSE)","v":"Fognatura bianca e pulizia / manutenzione caditoie stradali"},2027,{"$f":"+SUMIFS('PdI-crono_inv'!BB:BB,'PdI-crono_inv'!CF:CF,F389,'PdI-crono_inv'!CE:CE,H389,'PdI-crono_inv'!J:J,P389,'PdI-crono_inv'!P:P,\"<>proprietario\")","v":0},null,{"$f":"+SUMIFS('PdI-crono_inv'!BC:BC,'PdI-crono_inv'!CF:CF,F389,'PdI-crono_inv'!CE:CE,H389,'PdI-crono_inv'!J:J,P389,'PdI-crono_inv'!P:P,\"<>proprietario\")+S389","v":0},null,null,"ENV",{"$f":"+VLOOKUP(F389,TT_Tabelle_Riferimento!$D$127:$E$164,2,FALSE)","v":"Acquedotto"},"",0]
[0,0,"Gestore",0,"IP",6,{"$f":"+VLOOKUP(F390,TT_Tabelle_Riferimento!$D$127:$G$164,4,FALSE)","v":"Impianti di potabilizzazione"},2,{"$f":"+VLOOKUP(H390,TT_Tabelle_Riferimento!$F$3:$G$6,2,FALSE)","v":"Fognatura bianca e pulizia / manutenzione caditoie stradali"},2027,{"$f":"+SUMIFS('PdI-crono_inv'!BB:BB,'PdI-crono_inv'!CF:CF,F390,'PdI-crono_inv'!CE:CE,H390,'PdI-crono_inv'!J:J,P390,'PdI-crono_inv'!P:P,\"<>proprietario\")","v":0},null,{"$f":"+SUMIFS('PdI-crono_inv'!BC:BC,'PdI-crono_inv'!CF:CF,F390,'PdI-crono_inv'!CE:CE,H390,'PdI-crono_inv'!J:J,P390,'PdI-crono_inv'!P:P,\"<>proprietario\")+S390","v":0},null,null,"ENV",{"$f":"+VLOOKUP(F390,TT_Tabelle_Riferimento!$D$127:$E$164,2,FALSE)","v":"Acquedotto"},"",0]
[0,0,"Gestore",0,"IP",7,{"$f":"+VLOOKUP(F391,TT_Tabelle_Riferimento!$D$127:$G$164,4,FALSE)","v":"Altri trattamenti di potabilizzazione (tra cui dispositivi di disinfezione, stacciatura, filtrazione, addolcimento)"},2,{"$f":"+VLOOKUP(H391,TT_Tabelle_Riferimento!$F$3:$G$6,2,FALSE)","v":"Fognatura bianca e pulizia / manutenzione caditoie stradali"},2027,{"$f":"+SUMIFS('PdI-crono_inv'!BB:BB,'PdI-crono_inv'!CF:CF,F391,'PdI-crono_inv'!CE:CE,H391,'PdI-crono_inv'!J:J,P391,'PdI-crono_inv'!P:P,\"<>proprietario\")","v":0},null,{"$f":"+SUMIFS('PdI-crono_inv'!BC:BC,'PdI-crono_inv'!CF:CF,F391,'PdI-crono_inv'!CE:CE,H391,'PdI-crono_inv'!J:J,P391,'PdI-crono_inv'!P:P,\"<>proprietario\")+S391","v":0},null,null,"ENV",{"$f":"+VLOOKUP(F391,TT_Tabelle_Riferimento!$D$127:$E$164,2,FALSE)","v":"Acquedotto"},"",{"$f":"+IFERROR(HLOOKUP(J391,$X$2:$Y$5,4,FALSE)*K391,0)","v":0}]
[0,0,"Gestore",0,"IP",8,{"$f":"+VLOOKUP(F392,TT_Tabelle_Riferimento!$D$127:$G$164,4,FALSE)","v":"Gruppi di misura - altre attrezzature di acquedotto"},2,{"$f":"+VLOOKUP(H392,TT_Tabelle_Riferimento!$F$3:$G$6,2,FALSE)","v":"Fognatura bianca e pulizia / manutenzione caditoie stradali"},2027,{"$f":"+SUMIFS('PdI-crono_inv'!BB:BB,'PdI-crono_inv'!CF:CF,F392,'PdI-crono_inv'!CE:CE,H392,'PdI-crono_inv'!J:J,P392,'PdI-crono_inv'!P:P,\"<>proprietario\")","v":0},null,{"$f":"+SUMIFS('PdI-crono_inv'!BC:BC,'PdI-crono_inv'!CF:CF,F392,'PdI-crono_inv'!CE:CE,H392,'PdI-crono_inv'!J:J,P392,'PdI-crono_inv'!P:P,\"<>proprietario\")+S392","v":0},null,null,"ENV",{"$f":"+VLOOKUP(F392,TT_Tabelle_Riferimento!$D$127:$E$164,2,FALSE)","v":"Acquedotto"},"",0]
[0,0,"Gestore",0,"IP",9,{"$f":"+VLOOKUP(F393,TT_Tabelle_Riferimento!$D$127:$G$164,4,FALSE)","v":"Sistemi informativi di acquedotto"},2,{"$f":"+VLOOKUP(H393,TT_Tabelle_Riferimento!$F$3:$G$6,2,FALSE)","v":"Fognatura bianca e pulizia / manutenzione caditoie stradali"},2027,{"$f":"+SUMIFS('PdI-crono_inv'!BB:BB,'PdI-crono_inv'!CF:CF,F393,'PdI-crono_inv'!CE:CE,H393,'PdI-crono_inv'!J:J,P393,'PdI-crono_inv'!P:P,\"<>proprietario\")","v":0},null,{"$f":"+SUMIFS('PdI-crono_inv'!BC:BC,'PdI-crono_inv'!CF:CF,F393,'PdI-crono_inv'!CE:CE,H393,'PdI-crono_inv'!J:J,P393,'PdI-crono_inv'!P:P,\"<>proprietario\")+S393","v":0},null,null,"ENV",{"$f":"+VLOOKUP(F393,TT_Tabelle_Riferimento!$D$127:$E$164,2,FALSE)","v":"Acquedotto"},"",0]
[0,0,"Gestore",0,"IP",10,{"$f":"+VLOOKUP(F394,TT_Tabelle_Riferimento!$D$127:$G$164,4,FALSE)","v":"Telecontrollo e teletrasmissione di acquedotto"},2,{"$f":"+VLOOKUP(H394,TT_Tabelle_Riferimento!$F$3:$G$6,2,FALSE)","v":"Fognatura bianca e pulizia / manutenzione caditoie stradali"},2027,{"$f":"+SUMIFS('PdI-crono_inv'!BB:BB,'PdI-crono_inv'!CF:CF,F394,'PdI-crono_inv'!CE:CE,H394,'PdI-crono_inv'!J:J,P394,'PdI-crono_inv'!P:P,\"<>proprietario\")","v":0},null,{"$f":"+SUMIFS('PdI-crono_inv'!BC:BC,'PdI-crono_inv'!CF:CF,F394,'PdI-crono_inv'!CE:CE,H394,'PdI-crono_inv'!J:J,P394,'PdI-crono_inv'!P:P,\"<>proprietario\")+S394","v":0},null,null,"ENV",{"$f":"+VLOOKUP(F394,TT_Tabelle_Riferimento!$D$127:$E$164,2,FALSE)","v":"Acquedotto"},"",0]
[0,0,"Gestore",0,"IP",11,{"$f":"+VLOOKUP(F395,TT_Tabelle_Riferimento!$D$127:$G$164,4,FALSE)","v":"Condotte fognarie"},2,{"$f":"+VLOOKUP(H395,TT_Tabelle_Riferimento!$F$3:$G$6,2,FALSE)","v":"Fognatura bianca e pulizia / manutenzione caditoie stradali"},2027,{"$f":"+SUMIFS('PdI-crono_inv'!BB:BB,'PdI-crono_inv'!CF:CF,F395,'PdI-crono_inv'!CE:CE,H395,'PdI-crono_inv'!J:J,P395,'PdI-crono_inv'!P:P,\"<>proprietario\")","v":0},null,{"$f":"+SUMIFS('PdI-crono_inv'!BC:BC,'PdI-crono_inv'!CF:CF,F395,'PdI-crono_inv'!CE:CE,H395,'PdI-crono_inv'!J:J,P395,'PdI-crono_inv'!P:P,\"<>proprietario\")+S395","v":0},null,null,"ENV",{"$f":"+VLOOKUP(F395,TT_Tabelle_Riferimento!$D$127:$E$164,2,FALSE)","v":"Fognatura"},"",0]
[0,0,"Gestore",0,"IP",12,{"$f":"+VLOOKUP(F396,TT_Tabelle_Riferimento!$D$127:$G$164,4,FALSE)","v":"Sifoni e scaricatori di piena e altre opere idrauliche fisse di fognatura"},2,{"$f":"+VLOOKUP(H396,TT_Tabelle_Riferimento!$F$3:$G$6,2,FALSE)","v":"Fognatura bianca e pulizia / manutenzione caditoie stradali"},2027,{"$f":"+SUMIFS('PdI-crono_inv'!BB:BB,'PdI-crono_inv'!CF:CF,F396,'PdI-crono_inv'!CE:CE,H396,'PdI-crono_inv'!J:J,P396,'PdI-crono_inv'!P:P,\"<>proprietario\")","v":0},null,{"$f":"+SUMIFS('PdI-crono_inv'!BC:BC,'PdI-crono_inv'!CF:CF,F396,'PdI-crono_inv'!CE:CE,H396,'PdI-crono_inv'!J:J,P396,'PdI-crono_inv'!P:P,\"<>proprietario\")+S396","v":0},null,null,"ENV",{"$f":"+VLOOKUP(F396,TT_Tabelle_Riferimento!$D$127:$E$164,2,FALSE)","v":"Fognatura"},"",0]
[0,0,"Gestore",0,"IP",13,{"$f":"+VLOOKUP(F397,TT_Tabelle_Riferimento!$D$127:$G$164,4,FALSE)","v":"Vasche di laminazione e vasche di prima pioggia"},2,{"$f":"+VLOOKUP(H397,TT_Tabelle_Riferimento!$F$3:$G$6,2,FALSE)","v":"Fognatura bianca e pulizia / manutenzione caditoie stradali"},2027,{"$f":"+SUMIFS('PdI-crono_inv'!BB:BB,'PdI-crono_inv'!CF:CF,F397,'PdI-crono_inv'!CE:CE,H397,'PdI-crono_inv'!J:J,P397,'PdI-crono_inv'!P:P,\"<>proprietario\")","v":0},null,{"$f":"+SUMIFS('PdI-crono_inv'!BC:BC,'PdI-crono_inv'!CF:CF,F397,'PdI-crono_inv'!CE:CE,H397,'PdI-crono_inv'!J:J,P397,'PdI-crono_inv'!P:P,\"<>proprietario\")+S397","v":0},null,null,"ENV",{"$f":"+VLOOKUP(F397,TT_Tabelle_Riferimento!$D$127:$E$164,2,FALSE)","v":"Fognatura"},"",0]
[0,0,"Gestore",0,"IP",14,{"$f":"+VLOOKUP(F398,TT_Tabelle_Riferimento!$D$127:$G$164,4,FALSE)","v":"Impianti di sollevamento e pompaggio di fognatura"},2,{"$f":"+VLOOKUP(H398,TT_Tabelle_Riferimento!$F$3:$G$6,2,FALSE)","v":"Fognatura bianca e pulizia / manutenzione caditoie stradali"},2027,{"$f":"+SUMIFS('PdI-crono_inv'!BB:BB,'PdI-crono_inv'!CF:CF,F398,'PdI-crono_inv'!CE:CE,H398,'PdI-crono_inv'!J:J,P398,'PdI-crono_inv'!P:P,\"<>proprietario\")","v":0},null,{"$f":"+SUMIFS('PdI-crono_inv'!BC:BC,'PdI-crono_inv'!CF:CF,F398,'PdI-crono_inv'!CE:CE,H398,'PdI-crono_inv'!J:J,P398,'PdI-crono_inv'!P:P,\"<>proprietario\")+S398","v":0},null,null,"ENV",{"$f":"+VLOOKUP(F398,TT_Tabelle_Riferimento!$D$127:$E$164,2,FALSE)","v":"Fognatura"},"",0]
[0,0,"Gestore",0,"IP",15,{"$f":"+VLOOKUP(F399,TT_Tabelle_Riferimento!$D$127:$G$164,4,FALSE)","v":"Gruppi di misura - altre attrezzature di fognatura"},2,{"$f":"+VLOOKUP(H399,TT_Tabelle_Riferimento!$F$3:$G$6,2,FALSE)","v":"Fognatura bianca e pulizia / manutenzione caditoie stradali"},2027,{"$f":"+SUMIFS('PdI-crono_inv'!BB:BB,'PdI-crono_inv'!CF:CF,F399,'PdI-crono_inv'!CE:CE,H399,'PdI-crono_inv'!J:J,P399,'PdI-crono_inv'!P:P,\"<>proprietario\")","v":0},null,{"$f":"+SUMIFS('PdI-crono_inv'!BC:BC,'PdI-crono_inv'!CF:CF,F399,'PdI-crono_inv'!CE:CE,H399,'PdI-crono_inv'!J:J,P399,'PdI-crono_inv'!P:P,\"<>proprietario\")+S399","v":0},null,null,"ENV",{"$f":"+VLOOKUP(F399,TT_Tabelle_Riferimento!$D$127:$E$164,2,FALSE)","v":"Fognatura"},"",0]
[0,0,"Gestore",0,"IP",16,{"$f":"+VLOOKUP(F400,TT_Tabelle_Riferimento!$D$127:$G$164,4,FALSE)","v":"Sistemi informativi di fognatura"},2,{"$f":"+VLOOKUP(H400,TT_Tabelle_Riferimento!$F$3:$G$6,2,FALSE)","v":"Fognatura bianca e pulizia / manutenzione caditoie stradali"},2027,{"$f":"+SUMIFS('PdI-crono_inv'!BB:BB,'PdI-crono_inv'!CF:CF,F400,'PdI-crono_inv'!CE:CE,H400,'PdI-crono_inv'!J:J,P400,'PdI-crono_inv'!P:P,\"<>proprietario\")","v":0},null,{"$f":"+SUMIFS('PdI-crono_inv'!BC:BC,'PdI-crono_inv'!CF:CF,F400,'PdI-crono_inv'!CE:CE,H400,'PdI-crono_inv'!J:J,P400,'PdI-crono_inv'!P:P,\"<>proprietario\")+S400","v":0},null,null,"ENV",{"$f":"+VLOOKUP(F400,TT_Tabelle_Riferimento!$D$127:$E$164,2,FALSE)","v":"Fognatura"},"",0]
[0,0,"Gestore",0,"IP",18,{"$f":"+VLOOKUP(F401,TT_Tabelle_Riferimento!$D$127:$G$164,4,FALSE)","v":"Telecontrollo e teletrasmissione di fognatura"},2,{"$f":"+VLOOKUP(H401,TT_Tabelle_Riferimento!$F$3:$G$6,2,FALSE)","v":"Fognatura bianca e pulizia / manutenzione caditoie stradali"},2027,{"$f":"+SUMIFS('PdI-crono_inv'!BB:BB,'PdI-crono_inv'!CF:CF,F401,'PdI-crono_inv'!CE:CE,H401,'PdI-crono_inv'!J:J,P401,'PdI-crono_inv'!P:P,\"<>proprietario\")","v":0},null,{"$f":"+SUMIFS('PdI-crono_inv'!BC:BC,'PdI-crono_inv'!CF:CF,F401,'PdI-crono_inv'!CE:CE,H401,'PdI-crono_inv'!J:J,P401,'PdI-crono_inv'!P:P,\"<>proprietario\")+S401","v":0},null,null,"ENV",{"$f":"+VLOOKUP(F401,TT_Tabelle_Riferimento!$D$127:$E$164,2,FALSE)","v":"Fognatura"},"",0]
[0,0,"Gestore",0,"IP",19,{"$f":"+VLOOKUP(F402,TT_Tabelle_Riferimento!$D$127:$G$164,4,FALSE)","v":"Impianti di sollevamento e pompaggio di depurazione"},2,{"$f":"+VLOOKUP(H402,TT_Tabelle_Riferimento!$F$3:$G$6,2,FALSE)","v":"Fognatura bianca e pulizia / manutenzione caditoie stradali"},2027,{"$f":"+SUMIFS('PdI-crono_inv'!BB:BB,'PdI-crono_inv'!CF:CF,F402,'PdI-crono_inv'!CE:CE,H402,'PdI-crono_inv'!J:J,P402,'PdI-crono_inv'!P:P,\"<>proprietario\")","v":0},null,{"$f":"+SUMIFS('PdI-crono_inv'!BC:BC,'PdI-crono_inv'!CF:CF,F402,'PdI-crono_inv'!CE:CE,H402,'PdI-crono_inv'!J:J,P402,'PdI-crono_inv'!P:P,\"<>proprietario\")+S402","v":0},null,null,"ENV",{"$f":"+VLOOKUP(F402,TT_Tabelle_Riferimento!$D$127:$E$164,2,FALSE)","v":"Depurazione"},"",0]
[0,0,"Gestore",0,"IP",20,{"$f":"+VLOOKUP(F403,TT_Tabelle_Riferimento!$D$127:$G$164,4,FALSE)","v":"Tecniche naturali di depurazione (tra cui fitodepurazione e lagunaggio)"},2,{"$f":"+VLOOKUP(H403,TT_Tabelle_Riferimento!$F$3:$G$6,2,FALSE)","v":"Fognatura bianca e pulizia / manutenzione caditoie stradali"},2027,{"$f":"+SUMIFS('PdI-crono_inv'!BB:BB,'PdI-crono_inv'!CF:CF,F403,'PdI-crono_inv'!CE:CE,H403,'PdI-crono_inv'!J:J,P403,'PdI-crono_inv'!P:P,\"<>proprietario\")","v":0},null,{"$f":"+SUMIFS('PdI-crono_inv'!BC:BC,'PdI-crono_inv'!CF:CF,F403,'PdI-crono_inv'!CE:CE,H403,'PdI-crono_inv'!J:J,P403,'PdI-crono_inv'!P:P,\"<>proprietario\")+S403","v":0},null,null,"ENV",{"$f":"+VLOOKUP(F403,TT_Tabelle_Riferimento!$D$127:$E$164,2,FALSE)","v":"Depurazione"},"",0]
[0,0,"Gestore",0,"IP",21,{"$f":"+VLOOKUP(F404,TT_Tabelle_Riferimento!$D$127:$G$164,4,FALSE)","v":"Impianti di depurazione – trattamenti sino al preliminare, integrativo, primario - fosse settiche e fosse Imhoff"},2,{"$f":"+VLOOKUP(H404,TT_Tabelle_Riferimento!$F$3:$G$6,2,FALSE)","v":"Fognatura bianca e pulizia / manutenzione caditoie stradali"},2027,{"$f":"+SUMIFS('PdI-crono_inv'!BB:BB,'PdI-crono_inv'!CF:CF,F404,'PdI-crono_inv'!CE:CE,H404,'PdI-crono_inv'!J:J,P404,'PdI-crono_inv'!P:P,\"<>proprietario\")","v":0},null,{"$f":"+SUMIFS('PdI-crono_inv'!BC:BC,'PdI-crono_inv'!CF:CF,F404,'PdI-crono_inv'!CE:CE,H404,'PdI-crono_inv'!J:J,P404,'PdI-crono_inv'!P:P,\"<>proprietario\")+S404","v":0},null,null,"ENV",{"$f":"+VLOOKUP(F404,TT_Tabelle_Riferimento!$D$127:$E$164,2,FALSE)","v":"Depurazione"},"",0]
[0,0,"Gestore",0,"IP",22,{"$f":"+VLOOKUP(F405,TT_Tabelle_Riferimento!$D$127:$G$164,4,FALSE)","v":"Impianti di depurazione – trattamenti sino al secondario"},2,{"$f":"+VLOOKUP(H405,TT_Tabelle_Riferimento!$F$3:$G$6,2,FALSE)","v":"Fognatura bianca e pulizia / manutenzione caditoie stradali"},2027,{"$f":"+SUMIFS('PdI-crono_inv'!BB:BB,'PdI-crono_inv'!CF:CF,F405,'PdI-crono_inv'!CE:CE,H405,'PdI-crono_inv'!J:J,P405,'PdI-crono_inv'!P:P,\"<>proprietario\")","v":0},null,{"$f":"+SUMIFS('PdI-crono_inv'!BC:BC,'PdI-crono_inv'!CF:CF,F405,'PdI-crono_inv'!CE:CE,H405,'PdI-crono_inv'!J:J,P405,'PdI-crono_inv'!P:P,\"<>proprietario\")+S405","v":0},null,null,"ENV",{"$f":"+VLOOKUP(F405,TT_Tabelle_Riferimento!$D$127:$E$164,2,FALSE)","v":"Depurazione"},"",0]
[0,0,"Gestore",0,"IP",23,{"$f":"+VLOOKUP(F406,TT_Tabelle_Riferimento!$D$127:$G$164,4,FALSE)","v":"Impianti di depurazione – trattamenti sino al terziario e terziario avanzato"},2,{"$f":"+VLOOKUP(H406,TT_Tabelle_Riferimento!$F$3:$G$6,2,FALSE)","v":"Fognatura bianca e pulizia / manutenzione caditoie stradali"},2027,{"$f":"+SUMIFS('PdI-crono_inv'!BB:BB,'PdI-crono_inv'!CF:CF,F406,'PdI-crono_inv'!CE:CE,H406,'PdI-crono_inv'!J:J,P406,'PdI-crono_inv'!P:P,\"<>proprietario\")","v":0},null,{"$f":"+SUMIFS('PdI-crono_inv'!BC:BC,'PdI-crono_inv'!CF:CF,F406,'PdI-crono_inv'!CE:CE,H406,'PdI-crono_inv'!J:J,P406,'PdI-crono_inv'!P:P,\"<>proprietario\")+S406","v":0},null,null,"ENV",{"$f":"+VLOOKUP(F406,TT_Tabelle_Riferimento!$D$127:$E$164,2,FALSE)","v":"Depurazione"},"",0]
[0,0,"Gestore",0,"IP",24,{"$f":"+VLOOKUP(F407,TT_Tabelle_Riferimento!$D$127:$G$164,4,FALSE)","v":"Impianti di essiccamento fanghi e di valorizzazione dei fanghi (tra cui mono-incenerimento, pirolisi, gassificazione)"},2,{"$f":"+VLOOKUP(H407,TT_Tabelle_Riferimento!$F$3:$G$6,2,FALSE)","v":"Fognatura bianca e pulizia / manutenzione caditoie stradali"},2027,{"$f":"+SUMIFS('PdI-crono_inv'!BB:BB,'PdI-crono_inv'!CF:CF,F407,'PdI-crono_inv'!CE:CE,H407,'PdI-crono_inv'!J:J,P407,'PdI-crono_inv'!P:P,\"<>proprietario\")","v":0},null,{"$f":"+SUMIFS('PdI-crono_inv'!BC:BC,'PdI-crono_inv'!CF:CF,F407,'PdI-crono_inv'!CE:CE,H407,'PdI-crono_inv'!J:J,P407,'PdI-crono_inv'!P:P,\"<>proprietario\")+S407","v":0},null,null,"ENV",{"$f":"+VLOOKUP(F407,TT_Tabelle_Riferimento!$D$127:$E$164,2,FALSE)","v":"Depurazione"},"",0]
[0,0,"Gestore",0,"IP",25,{"$f":"+VLOOKUP(F408,TT_Tabelle_Riferimento!$D$127:$G$164,4,FALSE)","v":"Gruppi di misura - altre attrezzature di depurazione"},2,{"$f":"+VLOOKUP(H408,TT_Tabelle_Riferimento!$F$3:$G$6,2,FALSE)","v":"Fognatura bianca e pulizia / manutenzione caditoie stradali"},2027,{"$f":"+SUMIFS('PdI-crono_inv'!BB:BB,'PdI-crono_inv'!CF:CF,F408,'PdI-crono_inv'!CE:CE,H408,'PdI-crono_inv'!J:J,P408,'PdI-crono_inv'!P:P,\"<>proprietario\")","v":0},null,{"$f":"+SUMIFS('PdI-crono_inv'!BC:BC,'PdI-crono_inv'!CF:CF,F408,'PdI-crono_inv'!CE:CE,H408,'PdI-crono_inv'!J:J,P408,'PdI-crono_inv'!P:P,\"<>proprietario\")+S408","v":0},null,null,"ENV",{"$f":"+VLOOKUP(F408,TT_Tabelle_Riferimento!$D$127:$E$164,2,FALSE)","v":"Depurazione"},"",0]
[0,0,"Gestore",0,"IP",26,{"$f":"+VLOOKUP(F409,TT_Tabelle_Riferimento!$D$127:$G$164,4,FALSE)","v":"Sistemi informativi di depurazione"},2,{"$f":"+VLOOKUP(H409,TT_Tabelle_Riferimento!$F$3:$G$6,2,FALSE)","v":"Fognatura bianca e pulizia / manutenzione caditoie stradali"},2027,{"$f":"+SUMIFS('PdI-crono_inv'!BB:BB,'PdI-crono_inv'!CF:CF,F409,'PdI-crono_inv'!CE:CE,H409,'PdI-crono_inv'!J:J,P409,'PdI-crono_inv'!P:P,\"<>proprietario\")","v":0},null,{"$f":"+SUMIFS('PdI-crono_inv'!BC:BC,'PdI-crono_inv'!CF:CF,F409,'PdI-crono_inv'!CE:CE,H409,'PdI-crono_inv'!J:J,P409,'PdI-crono_inv'!P:P,\"<>proprietario\")+S409","v":0},null,null,"ENV",{"$f":"+VLOOKUP(F409,TT_Tabelle_Riferimento!$D$127:$E$164,2,FALSE)","v":"Depurazione"},"",0]
[0,0,"Gestore",0,"IP",27,{"$f":"+VLOOKUP(F410,TT_Tabelle_Riferimento!$D$127:$G$164,4,FALSE)","v":"Telecontrollo e teletrasmissione di depurazione"},2,{"$f":"+VLOOKUP(H410,TT_Tabelle_Riferimento!$F$3:$G$6,2,FALSE)","v":"Fognatura bianca e pulizia / manutenzione caditoie stradali"},2027,{"$f":"+SUMIFS('PdI-crono_inv'!BB:BB,'PdI-crono_inv'!CF:CF,F410,'PdI-crono_inv'!CE:CE,H410,'PdI-crono_inv'!J:J,P410,'PdI-crono_inv'!P:P,\"<>proprietario\")","v":0},null,{"$f":"+SUMIFS('PdI-crono_inv'!BC:BC,'PdI-crono_inv'!CF:CF,F410,'PdI-crono_inv'!CE:CE,H410,'PdI-crono_inv'!J:J,P410,'PdI-crono_inv'!P:P,\"<>proprietario\")+S410","v":0},null,null,"ENV",{"$f":"+VLOOKUP(F410,TT_Tabelle_Riferimento!$D$127:$E$164,2,FALSE)","v":"Depurazione"},"",0]
[0,0,"Gestore",0,"IP",28,{"$f":"+VLOOKUP(F411,TT_Tabelle_Riferimento!$D$127:$G$164,4,FALSE)","v":"Altri impianti"},2,{"$f":"+VLOOKUP(H411,TT_Tabelle_Riferimento!$F$3:$G$6,2,FALSE)","v":"Fognatura bianca e pulizia / manutenzione caditoie stradali"},2027,{"$f":"+SUMIFS('PdI-crono_inv'!BB:BB,'PdI-crono_inv'!CF:CF,F411,'PdI-crono_inv'!CE:CE,H411,'PdI-crono_inv'!J:J,P411,'PdI-crono_inv'!P:P,\"<>proprietario\")","v":0},null,{"$f":"+SUMIFS('PdI-crono_inv'!BC:BC,'PdI-crono_inv'!CF:CF,F411,'PdI-crono_inv'!CE:CE,H411,'PdI-crono_inv'!J:J,P411,'PdI-crono_inv'!P:P,\"<>proprietario\")+S411","v":0},null,null,"ENV",{"$f":"+VLOOKUP(F411,TT_Tabelle_Riferimento!$D$127:$E$164,2,FALSE)","v":"Comune"},"",0]
[0,0,"Gestore",0,"IP",29,{"$f":"+VLOOKUP(F412,TT_Tabelle_Riferimento!$D$127:$G$164,4,FALSE)","v":"Laboratori e attrezzature"},2,{"$f":"+VLOOKUP(H412,TT_Tabelle_Riferimento!$F$3:$G$6,2,FALSE)","v":"Fognatura bianca e pulizia / manutenzione caditoie stradali"},2027,{"$f":"+SUMIFS('PdI-crono_inv'!BB:BB,'PdI-crono_inv'!CF:CF,F412,'PdI-crono_inv'!CE:CE,H412,'PdI-crono_inv'!J:J,P412,'PdI-crono_inv'!P:P,\"<>proprietario\")","v":0},null,{"$f":"+SUMIFS('PdI-crono_inv'!BC:BC,'PdI-crono_inv'!CF:CF,F412,'PdI-crono_inv'!CE:CE,H412,'PdI-crono_inv'!J:J,P412,'PdI-crono_inv'!P:P,\"<>proprietario\")+S412","v":0},null,null,"ENV",{"$f":"+VLOOKUP(F412,TT_Tabelle_Riferimento!$D$127:$E$164,2,FALSE)","v":"Comune"},"",0]
[0,0,"Gestore",0,"IP",30,{"$f":"+VLOOKUP(F413,TT_Tabelle_Riferimento!$D$127:$G$164,4,FALSE)","v":"Sistemi informativi"},2,{"$f":"+VLOOKUP(H413,TT_Tabelle_Riferimento!$F$3:$G$6,2,FALSE)","v":"Fognatura bianca e pulizia / manutenzione caditoie stradali"},2027,{"$f":"+SUMIFS('PdI-crono_inv'!BB:BB,'PdI-crono_inv'!CF:CF,F413,'PdI-crono_inv'!CE:CE,H413,'PdI-crono_inv'!J:J,P413,'PdI-crono_inv'!P:P,\"<>proprietario\")","v":0},null,{"$f":"+SUMIFS('PdI-crono_inv'!BC:BC,'PdI-crono_inv'!CF:CF,F413,'PdI-crono_inv'!CE:CE,H413,'PdI-crono_inv'!J:J,P413,'PdI-crono_inv'!P:P,\"<>proprietario\")+S413","v":0},null,null,"ENV",{"$f":"+VLOOKUP(F413,TT_Tabelle_Riferimento!$D$127:$E$164,2,FALSE)","v":"Comune"},"",0]
[0,0,"Gestore",0,"IP",31,{"$f":"+VLOOKUP(F414,TT_Tabelle_Riferimento!$D$127:$G$164,4,FALSE)","v":"Telecontrollo e teletrasmissione"},2,{"$f":"+VLOOKUP(H414,TT_Tabelle_Riferimento!$F$3:$G$6,2,FALSE)","v":"Fognatura bianca e pulizia / manutenzione caditoie stradali"},2027,{"$f":"+SUMIFS('PdI-crono_inv'!BB:BB,'PdI-crono_inv'!CF:CF,F414,'PdI-crono_inv'!CE:CE,H414,'PdI-crono_inv'!J:J,P414,'PdI-crono_inv'!P:P,\"<>proprietario\")","v":0},null,{"$f":"+SUMIFS('PdI-crono_inv'!BC:BC,'PdI-crono_inv'!CF:CF,F414,'PdI-crono_inv'!CE:CE,H414,'PdI-crono_inv'!J:J,P414,'PdI-crono_inv'!P:P,\"<>proprietario\")+S414","v":0},null,null,"ENV",{"$f":"+VLOOKUP(F414,TT_Tabelle_Riferimento!$D$127:$E$164,2,FALSE)","v":"Comune"},"",0]
[0,0,"Gestore",0,"IP",32,{"$f":"+VLOOKUP(F415,TT_Tabelle_Riferimento!$D$127:$G$164,4,FALSE)","v":"Autoveicoli - automezzi"},2,{"$f":"+VLOOKUP(H415,TT_Tabelle_Riferimento!$F$3:$G$6,2,FALSE)","v":"Fognatura bianca e pulizia / manutenzione caditoie stradali"},2027,{"$f":"+SUMIFS('PdI-crono_inv'!BB:BB,'PdI-crono_inv'!CF:CF,F415,'PdI-crono_inv'!CE:CE,H415,'PdI-crono_inv'!J:J,P415,'PdI-crono_inv'!P:P,\"<>proprietario\")","v":0},null,{"$f":"+SUMIFS('PdI-crono_inv'!BC:BC,'PdI-crono_inv'!CF:CF,F415,'PdI-crono_inv'!CE:CE,H415,'PdI-crono_inv'!J:J,P415,'PdI-crono_inv'!P:P,\"<>proprietario\")+S415","v":0},null,null,"ENV",{"$f":"+VLOOKUP(F415,TT_Tabelle_Riferimento!$D$127:$E$164,2,FALSE)","v":"Comune"},"",0]
[0,0,"Gestore",0,"IP",1,{"$f":"+VLOOKUP(F416,TT_Tabelle_Riferimento!$D$127:$G$164,4,FALSE)","v":"Terreni"},2,{"$f":"+VLOOKUP(H416,TT_Tabelle_Riferimento!$F$3:$G$6,2,FALSE)","v":"Fognatura bianca e pulizia / manutenzione caditoie stradali"},2027,{"$f":"+SUMIFS('PdI-crono_inv'!BB:BB,'PdI-crono_inv'!CF:CF,F416,'PdI-crono_inv'!CE:CE,H416,'PdI-crono_inv'!J:J,P416,'PdI-crono_inv'!P:P,\"<>proprietario\")","v":0},null,{"$f":"+SUMIFS('PdI-crono_inv'!BC:BC,'PdI-crono_inv'!CF:CF,F416,'PdI-crono_inv'!CE:CE,H416,'PdI-crono_inv'!J:J,P416,'PdI-crono_inv'!P:P,\"<>proprietario\")+S416","v":0},null,null,"ENV",{"$f":"+VLOOKUP(F416,TT_Tabelle_Riferimento!$D$127:$E$164,2,FALSE)","v":"Comune"},"",0]
[0,0,"Gestore",0,"IP",33,{"$f":"+VLOOKUP(F417,TT_Tabelle_Riferimento!$D$127:$G$164,4,FALSE)","v":"Fabbricati non industriali"},2,{"$f":"+VLOOKUP(H417,TT_Tabelle_Riferimento!$F$3:$G$6,2,FALSE)","v":"Fognatura bianca e pulizia / manutenzione caditoie stradali"},2027,{"$f":"+SUMIFS('PdI-crono_inv'!BB:BB,'PdI-crono_inv'!CF:CF,F417,'PdI-crono_inv'!CE:CE,H417,'PdI-crono_inv'!J:J,P417,'PdI-crono_inv'!P:P,\"<>proprietario\")","v":0},null,{"$f":"+SUMIFS('PdI-crono_inv'!BC:BC,'PdI-crono_inv'!CF:CF,F417,'PdI-crono_inv'!CE:CE,H417,'PdI-crono_inv'!J:J,P417,'PdI-crono_inv'!P:P,\"<>proprietario\")+S417","v":0},null,null,"ENV",{"$f":"+VLOOKUP(F417,TT_Tabelle_Riferimento!$D$127:$E$164,2,FALSE)","v":"Comune"},"",0]
[0,0,"Gestore",0,"IP",34,{"$f":"+VLOOKUP(F418,TT_Tabelle_Riferimento!$D$127:$G$164,4,FALSE)","v":"Fabbricati industriali"},2,{"$f":"+VLOOKUP(H418,TT_Tabelle_Riferimento!$F$3:$G$6,2,FALSE)","v":"Fognatura bianca e pulizia / manutenzione caditoie stradali"},2027,{"$f":"+SUMIFS('PdI-crono_inv'!BB:BB,'PdI-crono_inv'!CF:CF,F418,'PdI-crono_inv'!CE:CE,H418,'PdI-crono_inv'!J:J,P418,'PdI-crono_inv'!P:P,\"<>proprietario\")","v":0},null,{"$f":"+SUMIFS('PdI-crono_inv'!BC:BC,'PdI-crono_inv'!CF:CF,F418,'PdI-crono_inv'!CE:CE,H418,'PdI-crono_inv'!J:J,P418,'PdI-crono_inv'!P:P,\"<>proprietario\")+S418","v":0},null,null,"ENV",{"$f":"+VLOOKUP(F418,TT_Tabelle_Riferimento!$D$127:$E$164,2,FALSE)","v":"Comune"},"",0]
[0,0,"Gestore",0,"IP",35,{"$f":"+VLOOKUP(F419,TT_Tabelle_Riferimento!$D$127:$G$164,4,FALSE)","v":"Costruzioni leggere"},2,{"$f":"+VLOOKUP(H419,TT_Tabelle_Riferimento!$F$3:$G$6,2,FALSE)","v":"Fognatura bianca e pulizia / manutenzione caditoie stradali"},2027,{"$f":"+SUMIFS('PdI-crono_inv'!BB:BB,'PdI-crono_inv'!CF:CF,F419,'PdI-crono_inv'!CE:CE,H419,'PdI-crono_inv'!J:J,P419,'PdI-crono_inv'!P:P,\"<>proprietario\")","v":0},null,{"$f":"+SUMIFS('PdI-crono_inv'!BC:BC,'PdI-crono_inv'!CF:CF,F419,'PdI-crono_inv'!CE:CE,H419,'PdI-crono_inv'!J:J,P419,'PdI-crono_inv'!P:P,\"<>proprietario\")+S419","v":0},null,null,"ENV",{"$f":"+VLOOKUP(F419,TT_Tabelle_Riferimento!$D$127:$E$164,2,FALSE)","v":"Comune"},"",0]
[0,0,"Gestore",0,"IP",36,{"$f":"+VLOOKUP(F420,TT_Tabelle_Riferimento!$D$127:$G$164,4,FALSE)","v":"Studi, ricerche, brevetti, diritti di utilizzazione"},2,{"$f":"+VLOOKUP(H420,TT_Tabelle_Riferimento!$F$3:$G$6,2,FALSE)","v":"Fognatura bianca e pulizia / manutenzione caditoie stradali"},2027,{"$f":"+SUMIFS('PdI-crono_inv'!BB:BB,'PdI-crono_inv'!CF:CF,F420,'PdI-crono_inv'!CE:CE,H420,'PdI-crono_inv'!J:J,P420,'PdI-crono_inv'!P:P,\"<>proprietario\")","v":0},null,{"$f":"+SUMIFS('PdI-crono_inv'!BC:BC,'PdI-crono_inv'!CF:CF,F420,'PdI-crono_inv'!CE:CE,H420,'PdI-crono_inv'!J:J,P420,'PdI-crono_inv'!P:P,\"<>proprietario\")+S420","v":0},null,null,"ENV",{"$f":"+VLOOKUP(F420,TT_Tabelle_Riferimento!$D$127:$E$164,2,FALSE)","v":"Comune"},"",0]
[0,0,"Gestore",0,"IP",37,{"$f":"+VLOOKUP(F421,TT_Tabelle_Riferimento!$D$127:$G$164,4,FALSE)","v":"Altre immobilizzazioni materiali e immateriali"},2,{"$f":"+VLOOKUP(H421,TT_Tabelle_Riferimento!$F$3:$G$6,2,FALSE)","v":"Fognatura bianca e pulizia / manutenzione caditoie stradali"},2027,{"$f":"+SUMIFS('PdI-crono_inv'!BB:BB,'PdI-crono_inv'!CF:CF,F421,'PdI-crono_inv'!CE:CE,H421,'PdI-crono_inv'!J:J,P421,'PdI-crono_inv'!P:P,\"<>proprietario\")","v":0},null,{"$f":"+SUMIFS('PdI-crono_inv'!BC:BC,'PdI-crono_inv'!CF:CF,F421,'PdI-crono_inv'!CE:CE,H421,'PdI-crono_inv'!J:J,P421,'PdI-crono_inv'!P:P,\"<>proprietario\")+S421","v":0},null,null,"ENV",{"$f":"+VLOOKUP(F421,TT_Tabelle_Riferimento!$D$127:$E$164,2,FALSE)","v":"Comune"},"",0]
[0,0,"Gestore",0,"IP",38,{"$f":"+VLOOKUP(F422,TT_Tabelle_Riferimento!$D$127:$G$164,4,FALSE)","v":"Grandi dighe (sbarramenti che superano i quindici metri di altezza o che determinano un invaso superiore a 1 milione di metri cubi)"},2,{"$f":"+VLOOKUP(H422,TT_Tabelle_Riferimento!$F$3:$G$6,2,FALSE)","v":"Fognatura bianca e pulizia / manutenzione caditoie stradali"},2027,{"$f":"+SUMIFS('PdI-crono_inv'!BB:BB,'PdI-crono_inv'!CF:CF,F422,'PdI-crono_inv'!CE:CE,H422,'PdI-crono_inv'!J:J,P422,'PdI-crono_inv'!P:P,\"<>proprietario\")","v":0},null,{"$f":"+SUMIFS('PdI-crono_inv'!BC:BC,'PdI-crono_inv'!CF:CF,F422,'PdI-crono_inv'!CE:CE,H422,'PdI-crono_inv'!J:J,P422,'PdI-crono_inv'!P:P,\"<>proprietario\")+S422","v":0},null,null,"ENV",{"$f":"+VLOOKUP(F422,TT_Tabelle_Riferimento!$D$127:$E$164,2,FALSE)","v":"Acquedotto"},"",0]
[0,0,"Gestore",0,"IP",39,{"$f":"+VLOOKUP(F423,TT_Tabelle_Riferimento!$D$127:$G$164,4,FALSE)","v":"Piccole dighe (sbarramenti che non superano i quindici metri di altezza o che determinano un invaso non superiore a 1 milione di metri cubi)"},2,{"$f":"+VLOOKUP(H423,TT_Tabelle_Riferimento!$F$3:$G$6,2,FALSE)","v":"Fognatura bianca e pulizia / manutenzione caditoie stradali"},2027,{"$f":"+SUMIFS('PdI-crono_inv'!BB:BB,'PdI-crono_inv'!CF:CF,F423,'PdI-crono_inv'!CE:CE,H423,'PdI-crono_inv'!J:J,P423,'PdI-crono_inv'!P:P,\"<>proprietario\")","v":0},null,{"$f":"+SUMIFS('PdI-crono_inv'!BC:BC,'PdI-crono_inv'!CF:CF,F423,'PdI-crono_inv'!CE:CE,H423,'PdI-crono_inv'!J:J,P423,'PdI-crono_inv'!P:P,\"<>proprietario\")+S423","v":0},null,null,"ENV",{"$f":"+VLOOKUP(F423,TT_Tabelle_Riferimento!$D$127:$E$164,2,FALSE)","v":"Acquedotto"},"",0]
[{"$f":"+idato","v":0},{"$f":"+idgestore","v":0},"Gestore",0,"IP",2,{"$f":"+VLOOKUP(F424,TT_Tabelle_Riferimento!$D$127:$G$164,4,FALSE)","v":"Condotte di acquedotto"},3,{"$f":"+VLOOKUP(H424,TT_Tabelle_Riferimento!$F$3:$G$6,2,FALSE)","v":"Altri servizi idrici"},2027,{"$f":"+SUMIFS('PdI-crono_inv'!BB:BB,'PdI-crono_inv'!CF:CF,F424,'PdI-crono_inv'!CE:CE,H424,'PdI-crono_inv'!J:J,P424,'PdI-crono_inv'!P:P,\"<>proprietario\")","v":0},null,{"$f":"+SUMIFS('PdI-crono_inv'!BC:BC,'PdI-crono_inv'!CF:CF,F424,'PdI-crono_inv'!CE:CE,H424,'PdI-crono_inv'!J:J,P424,'PdI-crono_inv'!P:P,\"<>proprietario\")+S424","v":0},null,null,"ENV",{"$f":"+VLOOKUP(F424,TT_Tabelle_Riferimento!$D$127:$E$164,2,FALSE)","v":"Acquedotto"},"",0]
[0,0,"Gestore",0,"IP",3,{"$f":"+VLOOKUP(F425,TT_Tabelle_Riferimento!$D$127:$G$164,4,FALSE)","v":"Opere idrauliche fisse di acquedotto"},3,{"$f":"+VLOOKUP(H425,TT_Tabelle_Riferimento!$F$3:$G$6,2,FALSE)","v":"Altri servizi idrici"},2027,{"$f":"+SUMIFS('PdI-crono_inv'!BB:BB,'PdI-crono_inv'!CF:CF,F425,'PdI-crono_inv'!CE:CE,H425,'PdI-crono_inv'!J:J,P425,'PdI-crono_inv'!P:P,\"<>proprietario\")","v":0},null,{"$f":"+SUMIFS('PdI-crono_inv'!BC:BC,'PdI-crono_inv'!CF:CF,F425,'PdI-crono_inv'!CE:CE,H425,'PdI-crono_inv'!J:J,P425,'PdI-crono_inv'!P:P,\"<>proprietario\")+S425","v":0},null,null,"ENV",{"$f":"+VLOOKUP(F425,TT_Tabelle_Riferimento!$D$127:$E$164,2,FALSE)","v":"Acquedotto"},"",0]
[0,0,"Gestore",0,"IP",4,{"$f":"+VLOOKUP(F426,TT_Tabelle_Riferimento!$D$127:$G$164,4,FALSE)","v":"Serbatoi"},3,{"$f":"+VLOOKUP(H426,TT_Tabelle_Riferimento!$F$3:$G$6,2,FALSE)","v":"Altri servizi idrici"},2027,{"$f":"+SUMIFS('PdI-crono_inv'!BB:BB,'PdI-crono_inv'!CF:CF,F426,'PdI-crono_inv'!CE:CE,H426,'PdI-crono_inv'!J:J,P426,'PdI-crono_inv'!P:P,\"<>proprietario\")","v":0},null,{"$f":"+SUMIFS('PdI-crono_inv'!BC:BC,'PdI-crono_inv'!CF:CF,F426,'PdI-crono_inv'!CE:CE,H426,'PdI-crono_inv'!J:J,P426,'PdI-crono_inv'!P:P,\"<>proprietario\")+S426","v":0},null,null,"ENV",{"$f":"+VLOOKUP(F426,TT_Tabelle_Riferimento!$D$127:$E$164,2,FALSE)","v":"Acquedotto"},"",0]
[0,0,"Gestore",0,"IP",5,{"$f":"+VLOOKUP(F427,TT_Tabelle_Riferimento!$D$127:$G$164,4,FALSE)","v":"Impianti di sollevamento e pompaggio di acquedotto"},3,{"$f":"+VLOOKUP(H427,TT_Tabelle_Riferimento!$F$3:$G$6,2,FALSE)","v":"Altri servizi idrici"},2027,{"$f":"+SUMIFS('PdI-crono_inv'!BB:BB,'PdI-crono_inv'!CF:CF,F427,'PdI-crono_inv'!CE:CE,H427,'PdI-crono_inv'!J:J,P427,'PdI-crono_inv'!P:P,\"<>proprietario\")","v":0},null,{"$f":"+SUMIFS('PdI-crono_inv'!BC:BC,'PdI-crono_inv'!CF:CF,F427,'PdI-crono_inv'!CE:CE,H427,'PdI-crono_inv'!J:J,P427,'PdI-crono_inv'!P:P,\"<>proprietario\")+S427","v":0},null,null,"ENV",{"$f":"+VLOOKUP(F427,TT_Tabelle_Riferimento!$D$127:$E$164,2,FALSE)","v":"Acquedotto"},"",0]
[0,0,"Gestore",0,"IP",6,{"$f":"+VLOOKUP(F428,TT_Tabelle_Riferimento!$D$127:$G$164,4,FALSE)","v":"Impianti di potabilizzazione"},3,{"$f":"+VLOOKUP(H428,TT_Tabelle_Riferimento!$F$3:$G$6,2,FALSE)","v":"Altri servizi idrici"},2027,{"$f":"+SUMIFS('PdI-crono_inv'!BB:BB,'PdI-crono_inv'!CF:CF,F428,'PdI-crono_inv'!CE:CE,H428,'PdI-crono_inv'!J:J,P428,'PdI-crono_inv'!P:P,\"<>proprietario\")","v":0},null,{"$f":"+SUMIFS('PdI-crono_inv'!BC:BC,'PdI-crono_inv'!CF:CF,F428,'PdI-crono_inv'!CE:CE,H428,'PdI-crono_inv'!J:J,P428,'PdI-crono_inv'!P:P,\"<>proprietario\")+S428","v":0},null,null,"ENV",{"$f":"+VLOOKUP(F428,TT_Tabelle_Riferimento!$D$127:$E$164,2,FALSE)","v":"Acquedotto"},"",0]
[0,0,"Gestore",0,"IP",7,{"$f":"+VLOOKUP(F429,TT_Tabelle_Riferimento!$D$127:$G$164,4,FALSE)","v":"Altri trattamenti di potabilizzazione (tra cui dispositivi di disinfezione, stacciatura, filtrazione, addolcimento)"},3,{"$f":"+VLOOKUP(H429,TT_Tabelle_Riferimento!$F$3:$G$6,2,FALSE)","v":"Altri servizi idrici"},2027,{"$f":"+SUMIFS('PdI-crono_inv'!BB:BB,'PdI-crono_inv'!CF:CF,F429,'PdI-crono_inv'!CE:CE,H429,'PdI-crono_inv'!J:J,P429,'PdI-crono_inv'!P:P,\"<>proprietario\")","v":0},null,{"$f":"+SUMIFS('PdI-crono_inv'!BC:BC,'PdI-crono_inv'!CF:CF,F429,'PdI-crono_inv'!CE:CE,H429,'PdI-crono_inv'!J:J,P429,'PdI-crono_inv'!P:P,\"<>proprietario\")+S429","v":0},null,null,"ENV",{"$f":"+VLOOKUP(F429,TT_Tabelle_Riferimento!$D$127:$E$164,2,FALSE)","v":"Acquedotto"},"",0]
[0,0,"Gestore",0,"IP",8,{"$f":"+VLOOKUP(F430,TT_Tabelle_Riferimento!$D$127:$G$164,4,FALSE)","v":"Gruppi di misura - altre attrezzature di acquedotto"},3,{"$f":"+VLOOKUP(H430,TT_Tabelle_Riferimento!$F$3:$G$6,2,FALSE)","v":"Altri servizi idrici"},2027,{"$f":"+SUMIFS('PdI-crono_inv'!BB:BB,'PdI-crono_inv'!CF:CF,F430,'PdI-crono_inv'!CE:CE,H430,'PdI-crono_inv'!J:J,P430,'PdI-crono_inv'!P:P,\"<>proprietario\")","v":0},null,{"$f":"+SUMIFS('PdI-crono_inv'!BC:BC,'PdI-crono_inv'!CF:CF,F430,'PdI-crono_inv'!CE:CE,H430,'PdI-crono_inv'!J:J,P430,'PdI-crono_inv'!P:P,\"<>proprietario\")+S430","v":0},null,null,"ENV",{"$f":"+VLOOKUP(F430,TT_Tabelle_Riferimento!$D$127:$E$164,2,FALSE)","v":"Acquedotto"},"",0]
[0,0,"Gestore",0,"IP",9,{"$f":"+VLOOKUP(F431,TT_Tabelle_Riferimento!$D$127:$G$164,4,FALSE)","v":"Sistemi informativi di acquedotto"},3,{"$f":"+VLOOKUP(H431,TT_Tabelle_Riferimento!$F$3:$G$6,2,FALSE)","v":"Altri servizi idrici"},2027,{"$f":"+SUMIFS('PdI-crono_inv'!BB:BB,'PdI-crono_inv'!CF:CF,F431,'PdI-crono_inv'!CE:CE,H431,'PdI-crono_inv'!J:J,P431,'PdI-crono_inv'!P:P,\"<>proprietario\")","v":0},null,{"$f":"+SUMIFS('PdI-crono_inv'!BC:BC,'PdI-crono_inv'!CF:CF,F431,'PdI-crono_inv'!CE:CE,H431,'PdI-crono_inv'!J:J,P431,'PdI-crono_inv'!P:P,\"<>proprietario\")+S431","v":0},null,null,"ENV",{"$f":"+VLOOKUP(F431,TT_Tabelle_Riferimento!$D$127:$E$164,2,FALSE)","v":"Acquedotto"},"",0]
[0,0,"Gestore",0,"IP",10,{"$f":"+VLOOKUP(F432,TT_Tabelle_Riferimento!$D$127:$G$164,4,FALSE)","v":"Telecontrollo e teletrasmissione di acquedotto"},3,{"$f":"+VLOOKUP(H432,TT_Tabelle_Riferimento!$F$3:$G$6,2,FALSE)","v":"Altri servizi idrici"},2027,{"$f":"+SUMIFS('PdI-crono_inv'!BB:BB,'PdI-crono_inv'!CF:CF,F432,'PdI-crono_inv'!CE:CE,H432,'PdI-crono_inv'!J:J,P432,'PdI-crono_inv'!P:P,\"<>proprietario\")","v":0},null,{"$f":"+SUMIFS('PdI-crono_inv'!BC:BC,'PdI-crono_inv'!CF:CF,F432,'PdI-crono_inv'!CE:CE,H432,'PdI-crono_inv'!J:J,P432,'PdI-crono_inv'!P:P,\"<>proprietario\")+S432","v":0},null,null,"ENV",{"$f":"+VLOOKUP(F432,TT_Tabelle_Riferimento!$D$127:$E$164,2,FALSE)","v":"Acquedotto"},"",0]
[0,0,"Gestore",0,"IP",11,{"$f":"+VLOOKUP(F433,TT_Tabelle_Riferimento!$D$127:$G$164,4,FALSE)","v":"Condotte fognarie"},3,{"$f":"+VLOOKUP(H433,TT_Tabelle_Riferimento!$F$3:$G$6,2,FALSE)","v":"Altri servizi idrici"},2027,{"$f":"+SUMIFS('PdI-crono_inv'!BB:BB,'PdI-crono_inv'!CF:CF,F433,'PdI-crono_inv'!CE:CE,H433,'PdI-crono_inv'!J:J,P433,'PdI-crono_inv'!P:P,\"<>proprietario\")","v":0},null,{"$f":"+SUMIFS('PdI-crono_inv'!BC:BC,'PdI-crono_inv'!CF:CF,F433,'PdI-crono_inv'!CE:CE,H433,'PdI-crono_inv'!J:J,P433,'PdI-crono_inv'!P:P,\"<>proprietario\")+S433","v":0},null,null,"ENV",{"$f":"+VLOOKUP(F433,TT_Tabelle_Riferimento!$D$127:$E$164,2,FALSE)","v":"Fognatura"},"",0]
[0,0,"Gestore",0,"IP",12,{"$f":"+VLOOKUP(F434,TT_Tabelle_Riferimento!$D$127:$G$164,4,FALSE)","v":"Sifoni e scaricatori di piena e altre opere idrauliche fisse di fognatura"},3,{"$f":"+VLOOKUP(H434,TT_Tabelle_Riferimento!$F$3:$G$6,2,FALSE)","v":"Altri servizi idrici"},2027,{"$f":"+SUMIFS('PdI-crono_inv'!BB:BB,'PdI-crono_inv'!CF:CF,F434,'PdI-crono_inv'!CE:CE,H434,'PdI-crono_inv'!J:J,P434,'PdI-crono_inv'!P:P,\"<>proprietario\")","v":0},null,{"$f":"+SUMIFS('PdI-crono_inv'!BC:BC,'PdI-crono_inv'!CF:CF,F434,'PdI-crono_inv'!CE:CE,H434,'PdI-crono_inv'!J:J,P434,'PdI-crono_inv'!P:P,\"<>proprietario\")+S434","v":0},null,null,"ENV",{"$f":"+VLOOKUP(F434,TT_Tabelle_Riferimento!$D$127:$E$164,2,FALSE)","v":"Fognatura"},"",0]
[0,0,"Gestore",0,"IP",13,{"$f":"+VLOOKUP(F435,TT_Tabelle_Riferimento!$D$127:$G$164,4,FALSE)","v":"Vasche di laminazione e vasche di prima pioggia"},3,{"$f":"+VLOOKUP(H435,TT_Tabelle_Riferimento!$F$3:$G$6,2,FALSE)","v":"Altri servizi idrici"},2027,{"$f":"+SUMIFS('PdI-crono_inv'!BB:BB,'PdI-crono_inv'!CF:CF,F435,'PdI-crono_inv'!CE:CE,H435,'PdI-crono_inv'!J:J,P435,'PdI-crono_inv'!P:P,\"<>proprietario\")","v":0},null,{"$f":"+SUMIFS('PdI-crono_inv'!BC:BC,'PdI-crono_inv'!CF:CF,F435,'PdI-crono_inv'!CE:CE,H435,'PdI-crono_inv'!J:J,P435,'PdI-crono_inv'!P:P,\"<>proprietario\")+S435","v":0},null,null,"ENV",{"$f":"+VLOOKUP(F435,TT_Tabelle_Riferimento!$D$127:$E$164,2,FALSE)","v":"Fognatura"},"",0]
[0,0,"Gestore",0,"IP",14,{"$f":"+VLOOKUP(F436,TT_Tabelle_Riferimento!$D$127:$G$164,4,FALSE)","v":"Impianti di sollevamento e pompaggio di fognatura"},3,{"$f":"+VLOOKUP(H436,TT_Tabelle_Riferimento!$F$3:$G$6,2,FALSE)","v":"Altri servizi idrici"},2027,{"$f":"+SUMIFS('PdI-crono_inv'!BB:BB,'PdI-crono_inv'!CF:CF,F436,'PdI-crono_inv'!CE:CE,H436,'PdI-crono_inv'!J:J,P436,'PdI-crono_inv'!P:P,\"<>proprietario\")","v":0},null,{"$f":"+SUMIFS('PdI-crono_inv'!BC:BC,'PdI-crono_inv'!CF:CF,F436,'PdI-crono_inv'!CE:CE,H436,'PdI-crono_inv'!J:J,P436,'PdI-crono_inv'!P:P,\"<>proprietario\")+S436","v":0},null,null,"ENV",{"$f":"+VLOOKUP(F436,TT_Tabelle_Riferimento!$D$127:$E$164,2,FALSE)","v":"Fognatura"},"",0]
[0,0,"Gestore",0,"IP",15,{"$f":"+VLOOKUP(F437,TT_Tabelle_Riferimento!$D$127:$G$164,4,FALSE)","v":"Gruppi di misura - altre attrezzature di fognatura"},3,{"$f":"+VLOOKUP(H437,TT_Tabelle_Riferimento!$F$3:$G$6,2,FALSE)","v":"Altri servizi idrici"},2027,{"$f":"+SUMIFS('PdI-crono_inv'!BB:BB,'PdI-crono_inv'!CF:CF,F437,'PdI-crono_inv'!CE:CE,H437,'PdI-crono_inv'!J:J,P437,'PdI-crono_inv'!P:P,\"<>proprietario\")","v":0},null,{"$f":"+SUMIFS('PdI-crono_inv'!BC:BC,'PdI-crono_inv'!CF:CF,F437,'PdI-crono_inv'!CE:CE,H437,'PdI-crono_inv'!J:J,P437,'PdI-crono_inv'!P:P,\"<>proprietario\")+S437","v":0},null,null,"ENV",{"$f":"+VLOOKUP(F437,TT_Tabelle_Riferimento!$D$127:$E$164,2,FALSE)","v":"Fognatura"},"",0]
[0,0,"Gestore",0,"IP",16,{"$f":"+VLOOKUP(F438,TT_Tabelle_Riferimento!$D$127:$G$164,4,FALSE)","v":"Sistemi informativi di fognatura"},3,{"$f":"+VLOOKUP(H438,TT_Tabelle_Riferimento!$F$3:$G$6,2,FALSE)","v":"Altri servizi idrici"},2027,{"$f":"+SUMIFS('PdI-crono_inv'!BB:BB,'PdI-crono_inv'!CF:CF,F438,'PdI-crono_inv'!CE:CE,H438,'PdI-crono_inv'!J:J,P438,'PdI-crono_inv'!P:P,\"<>proprietario\")","v":0},null,{"$f":"+SUMIFS('PdI-crono_inv'!BC:BC,'PdI-crono_inv'!CF:CF,F438,'PdI-crono_inv'!CE:CE,H438,'PdI-crono_inv'!J:J,P438,'PdI-crono_inv'!P:P,\"<>proprietario\")+S438","v":0},null,null,"ENV",{"$f":"+VLOOKUP(F438,TT_Tabelle_Riferimento!$D$127:$E$164,2,FALSE)","v":"Fognatura"},"",0]
[0,0,"Gestore",0,"IP",18,{"$f":"+VLOOKUP(F439,TT_Tabelle_Riferimento!$D$127:$G$164,4,FALSE)","v":"Telecontrollo e teletrasmissione di fognatura"},3,{"$f":"+VLOOKUP(H439,TT_Tabelle_Riferimento!$F$3:$G$6,2,FALSE)","v":"Altri servizi idrici"},2027,{"$f":"+SUMIFS('PdI-crono_inv'!BB:BB,'PdI-crono_inv'!CF:CF,F439,'PdI-crono_inv'!CE:CE,H439,'PdI-crono_inv'!J:J,P439,'PdI-crono_inv'!P:P,\"<>proprietario\")","v":0},null,{"$f":"+SUMIFS('PdI-crono_inv'!BC:BC,'PdI-crono_inv'!CF:CF,F439,'PdI-crono_inv'!CE:CE,H439,'PdI-crono_inv'!J:J,P439,'PdI-crono_inv'!P:P,\"<>proprietario\")+S439","v":0},null,null,"ENV",{"$f":"+VLOOKUP(F439,TT_Tabelle_Riferimento!$D$127:$E$164,2,FALSE)","v":"Fognatura"},"",0]
[0,0,"Gestore",0,"IP",19,{"$f":"+VLOOKUP(F440,TT_Tabelle_Riferimento!$D$127:$G$164,4,FALSE)","v":"Impianti di sollevamento e pompaggio di depurazione"},3,{"$f":"+VLOOKUP(H440,TT_Tabelle_Riferimento!$F$3:$G$6,2,FALSE)","v":"Altri servizi idrici"},2027,{"$f":"+SUMIFS('PdI-crono_inv'!BB:BB,'PdI-crono_inv'!CF:CF,F440,'PdI-crono_inv'!CE:CE,H440,'PdI-crono_inv'!J:J,P440,'PdI-crono_inv'!P:P,\"<>proprietario\")","v":0},null,{"$f":"+SUMIFS('PdI-crono_inv'!BC:BC,'PdI-crono_inv'!CF:CF,F440,'PdI-crono_inv'!CE:CE,H440,'PdI-crono_inv'!J:J,P440,'PdI-crono_inv'!P:P,\"<>proprietario\")+S440","v":0},null,null,"ENV",{"$f":"+VLOOKUP(F440,TT_Tabelle_Riferimento!$D$127:$E$164,2,FALSE)","v":"Depurazione"},"",0]
[0,0,"Gestore",0,"IP",20,{"$f":"+VLOOKUP(F441,TT_Tabelle_Riferimento!$D$127:$G$164,4,FALSE)","v":"Tecniche naturali di depurazione (tra cui fitodepurazione e lagunaggio)"},3,{"$f":"+VLOOKUP(H441,TT_Tabelle_Riferimento!$F$3:$G$6,2,FALSE)","v":"Altri servizi idrici"},2027,{"$f":"+SUMIFS('PdI-crono_inv'!BB:BB,'PdI-crono_inv'!CF:CF,F441,'PdI-crono_inv'!CE:CE,H441,'PdI-crono_inv'!J:J,P441,'PdI-crono_inv'!P:P,\"<>proprietario\")","v":0},null,{"$f":"+SUMIFS('PdI-crono_inv'!BC:BC,'PdI-crono_inv'!CF:CF,F441,'PdI-crono_inv'!CE:CE,H441,'PdI-crono_inv'!J:J,P441,'PdI-crono_inv'!P:P,\"<>proprietario\")+S441","v":0},null,null,"ENV",{"$f":"+VLOOKUP(F441,TT_Tabelle_Riferimento!$D$127:$E$164,2,FALSE)","v":"Depurazione"},"",0]
[0,0,"Gestore",0,"IP",21,{"$f":"+VLOOKUP(F442,TT_Tabelle_Riferimento!$D$127:$G$164,4,FALSE)","v":"Impianti di depurazione – trattamenti sino al preliminare, integrativo, primario - fosse settiche e fosse Imhoff"},3,{"$f":"+VLOOKUP(H442,TT_Tabelle_Riferimento!$F$3:$G$6,2,FALSE)","v":"Altri servizi idrici"},2027,{"$f":"+SUMIFS('PdI-crono_inv'!BB:BB,'PdI-crono_inv'!CF:CF,F442,'PdI-crono_inv'!CE:CE,H442,'PdI-crono_inv'!J:J,P442,'PdI-crono_inv'!P:P,\"<>proprietario\")","v":0},null,{"$f":"+SUMIFS('PdI-crono_inv'!BC:BC,'PdI-crono_inv'!CF:CF,F442,'PdI-crono_inv'!CE:CE,H442,'PdI-crono_inv'!J:J,P442,'PdI-crono_inv'!P:P,\"<>proprietario\")+S442","v":0},null,null,"ENV",{"$f":"+VLOOKUP(F442,TT_Tabelle_Riferimento!$D$127:$E$164,2,FALSE)","v":"Depurazione"},"",0]
[0,0,"Gestore",0,"IP",22,{"$f":"+VLOOKUP(F443,TT_Tabelle_Riferimento!$D$127:$G$164,4,FALSE)","v":"Impianti di depurazione – trattamenti sino al secondario"},3,{"$f":"+VLOOKUP(H443,TT_Tabelle_Riferimento!$F$3:$G$6,2,FALSE)","v":"Altri servizi idrici"},2027,{"$f":"+SUMIFS('PdI-crono_inv'!BB:BB,'PdI-crono_inv'!CF:CF,F443,'PdI-crono_inv'!CE:CE,H443,'PdI-crono_inv'!J:J,P443,'PdI-crono_inv'!P:P,\"<>proprietario\")","v":0},null,{"$f":"+SUMIFS('PdI-crono_inv'!BC:BC,'PdI-crono_inv'!CF:CF,F443,'PdI-crono_inv'!CE:CE,H443,'PdI-crono_inv'!J:J,P443,'PdI-crono_inv'!P:P,\"<>proprietario\")+S443","v":0},null,null,"ENV",{"$f":"+VLOOKUP(F443,TT_Tabelle_Riferimento!$D$127:$E$164,2,FALSE)","v":"Depurazione"},"",0]
[0,0,"Gestore",0,"IP",23,{"$f":"+VLOOKUP(F444,TT_Tabelle_Riferimento!$D$127:$G$164,4,FALSE)","v":"Impianti di depurazione – trattamenti sino al terziario e terziario avanzato"},3,{"$f":"+VLOOKUP(H444,TT_Tabelle_Riferimento!$F$3:$G$6,2,FALSE)","v":"Altri servizi idrici"},2027,{"$f":"+SUMIFS('PdI-crono_inv'!BB:BB,'PdI-crono_inv'!CF:CF,F444,'PdI-crono_inv'!CE:CE,H444,'PdI-crono_inv'!J:J,P444,'PdI-crono_inv'!P:P,\"<>proprietario\")","v":0},null,{"$f":"+SUMIFS('PdI-crono_inv'!BC:BC,'PdI-crono_inv'!CF:CF,F444,'PdI-crono_inv'!CE:CE,H444,'PdI-crono_inv'!J:J,P444,'PdI-crono_inv'!P:P,\"<>proprietario\")+S444","v":0},null,null,"ENV",{"$f":"+VLOOKUP(F444,TT_Tabelle_Riferimento!$D$127:$E$164,2,FALSE)","v":"Depurazione"},"",0]
[0,0,"Gestore",0,"IP",24,{"$f":"+VLOOKUP(F445,TT_Tabelle_Riferimento!$D$127:$G$164,4,FALSE)","v":"Impianti di essiccamento fanghi e di valorizzazione dei fanghi (tra cui mono-incenerimento, pirolisi, gassificazione)"},3,{"$f":"+VLOOKUP(H445,TT_Tabelle_Riferimento!$F$3:$G$6,2,FALSE)","v":"Altri servizi idrici"},2027,{"$f":"+SUMIFS('PdI-crono_inv'!BB:BB,'PdI-crono_inv'!CF:CF,F445,'PdI-crono_inv'!CE:CE,H445,'PdI-crono_inv'!J:J,P445,'PdI-crono_inv'!P:P,\"<>proprietario\")","v":0},null,{"$f":"+SUMIFS('PdI-crono_inv'!BC:BC,'PdI-crono_inv'!CF:CF,F445,'PdI-crono_inv'!CE:CE,H445,'PdI-crono_inv'!J:J,P445,'PdI-crono_inv'!P:P,\"<>proprietario\")+S445","v":0},null,null,"ENV",{"$f":"+VLOOKUP(F445,TT_Tabelle_Riferimento!$D$127:$E$164,2,FALSE)","v":"Depurazione"},"",0]
[0,0,"Gestore",0,"IP",25,{"$f":"+VLOOKUP(F446,TT_Tabelle_Riferimento!$D$127:$G$164,4,FALSE)","v":"Gruppi di misura - altre attrezzature di depurazione"},3,{"$f":"+VLOOKUP(H446,TT_Tabelle_Riferimento!$F$3:$G$6,2,FALSE)","v":"Altri servizi idrici"},2027,{"$f":"+SUMIFS('PdI-crono_inv'!BB:BB,'PdI-crono_inv'!CF:CF,F446,'PdI-crono_inv'!CE:CE,H446,'PdI-crono_inv'!J:J,P446,'PdI-crono_inv'!P:P,\"<>proprietario\")","v":0},null,{"$f":"+SUMIFS('PdI-crono_inv'!BC:BC,'PdI-crono_inv'!CF:CF,F446,'PdI-crono_inv'!CE:CE,H446,'PdI-crono_inv'!J:J,P446,'PdI-crono_inv'!P:P,\"<>proprietario\")+S446","v":0},null,null,"ENV",{"$f":"+VLOOKUP(F446,TT_Tabelle_Riferimento!$D$127:$E$164,2,FALSE)","v":"Depurazione"},"",0]
[0,0,"Gestore",0,"IP",26,{"$f":"+VLOOKUP(F447,TT_Tabelle_Riferimento!$D$127:$G$164,4,FALSE)","v":"Sistemi informativi di depurazione"},3,{"$f":"+VLOOKUP(H447,TT_Tabelle_Riferimento!$F$3:$G$6,2,FALSE)","v":"Altri servizi idrici"},2027,{"$f":"+SUMIFS('PdI-crono_inv'!BB:BB,'PdI-crono_inv'!CF:CF,F447,'PdI-crono_inv'!CE:CE,H447,'PdI-crono_inv'!J:J,P447,'PdI-crono_inv'!P:P,\"<>proprietario\")","v":0},null,{"$f":"+SUMIFS('PdI-crono_inv'!BC:BC,'PdI-crono_inv'!CF:CF,F447,'PdI-crono_inv'!CE:CE,H447,'PdI-crono_inv'!J:J,P447,'PdI-crono_inv'!P:P,\"<>proprietario\")+S447","v":0},null,null,"ENV",{"$f":"+VLOOKUP(F447,TT_Tabelle_Riferimento!$D$127:$E$164,2,FALSE)","v":"Depurazione"},"",0]
[0,0,"Gestore",0,"IP",27,{"$f":"+VLOOKUP(F448,TT_Tabelle_Riferimento!$D$127:$G$164,4,FALSE)","v":"Telecontrollo e teletrasmissione di depurazione"},3,{"$f":"+VLOOKUP(H448,TT_Tabelle_Riferimento!$F$3:$G$6,2,FALSE)","v":"Altri servizi idrici"},2027,{"$f":"+SUMIFS('PdI-crono_inv'!BB:BB,'PdI-crono_inv'!CF:CF,F448,'PdI-crono_inv'!CE:CE,H448,'PdI-crono_inv'!J:J,P448,'PdI-crono_inv'!P:P,\"<>proprietario\")","v":0},null,{"$f":"+SUMIFS('PdI-crono_inv'!BC:BC,'PdI-crono_inv'!CF:CF,F448,'PdI-crono_inv'!CE:CE,H448,'PdI-crono_inv'!J:J,P448,'PdI-crono_inv'!P:P,\"<>proprietario\")+S448","v":0},null,null,"ENV",{"$f":"+VLOOKUP(F448,TT_Tabelle_Riferimento!$D$127:$E$164,2,FALSE)","v":"Depurazione"},"",0]
[0,0,"Gestore",0,"IP",28,{"$f":"+VLOOKUP(F449,TT_Tabelle_Riferimento!$D$127:$G$164,4,FALSE)","v":"Altri impianti"},3,{"$f":"+VLOOKUP(H449,TT_Tabelle_Riferimento!$F$3:$G$6,2,FALSE)","v":"Altri servizi idrici"},2027,{"$f":"+SUMIFS('PdI-crono_inv'!BB:BB,'PdI-crono_inv'!CF:CF,F449,'PdI-crono_inv'!CE:CE,H449,'PdI-crono_inv'!J:J,P449,'PdI-crono_inv'!P:P,\"<>proprietario\")","v":0},null,{"$f":"+SUMIFS('PdI-crono_inv'!BC:BC,'PdI-crono_inv'!CF:CF,F449,'PdI-crono_inv'!CE:CE,H449,'PdI-crono_inv'!J:J,P449,'PdI-crono_inv'!P:P,\"<>proprietario\")+S449","v":0},null,null,"ENV",{"$f":"+VLOOKUP(F449,TT_Tabelle_Riferimento!$D$127:$E$164,2,FALSE)","v":"Comune"},"",0]
[0,0,"Gestore",0,"IP",29,{"$f":"+VLOOKUP(F450,TT_Tabelle_Riferimento!$D$127:$G$164,4,FALSE)","v":"Laboratori e attrezzature"},3,{"$f":"+VLOOKUP(H450,TT_Tabelle_Riferimento!$F$3:$G$6,2,FALSE)","v":"Altri servizi idrici"},2027,{"$f":"+SUMIFS('PdI-crono_inv'!BB:BB,'PdI-crono_inv'!CF:CF,F450,'PdI-crono_inv'!CE:CE,H450,'PdI-crono_inv'!J:J,P450,'PdI-crono_inv'!P:P,\"<>proprietario\")","v":0},null,{"$f":"+SUMIFS('PdI-crono_inv'!BC:BC,'PdI-crono_inv'!CF:CF,F450,'PdI-crono_inv'!CE:CE,H450,'PdI-crono_inv'!J:J,P450,'PdI-crono_inv'!P:P,\"<>proprietario\")+S450","v":0},null,null,"ENV",{"$f":"+VLOOKUP(F450,TT_Tabelle_Riferimento!$D$127:$E$164,2,FALSE)","v":"Comune"},{"$f":"+IF(SUM(K450:N450)=0,\"\",\"PdI_consolidamento\")","v":""},0]
[0,0,"Gestore",0,"IP",30,{"$f":"+VLOOKUP(F451,TT_Tabelle_Riferimento!$D$127:$G$164,4,FALSE)","v":"Sistemi informativi"},3,{"$f":"+VLOOKUP(H451,TT_Tabelle_Riferimento!$F$3:$G$6,2,FALSE)","v":"Altri servizi idrici"},2027,{"$f":"+SUMIFS('PdI-crono_inv'!BB:BB,'PdI-crono_inv'!CF:CF,F451,'PdI-crono_inv'!CE:CE,H451,'PdI-crono_inv'!J:J,P451,'PdI-crono_inv'!P:P,\"<>proprietario\")","v":0},null,{"$f":"+SUMIFS('PdI-crono_inv'!BC:BC,'PdI-crono_inv'!CF:CF,F451,'PdI-crono_inv'!CE:CE,H451,'PdI-crono_inv'!J:J,P451,'PdI-crono_inv'!P:P,\"<>proprietario\")+S451","v":0},null,null,"ENV",{"$f":"+VLOOKUP(F451,TT_Tabelle_Riferimento!$D$127:$E$164,2,FALSE)","v":"Comune"},"",0]
[0,0,"Gestore",0,"IP",31,{"$f":"+VLOOKUP(F452,TT_Tabelle_Riferimento!$D$127:$G$164,4,FALSE)","v":"Telecontrollo e teletrasmissione"},3,{"$f":"+VLOOKUP(H452,TT_Tabelle_Riferimento!$F$3:$G$6,2,FALSE)","v":"Altri servizi idrici"},2027,{"$f":"+SUMIFS('PdI-crono_inv'!BB:BB,'PdI-crono_inv'!CF:CF,F452,'PdI-crono_inv'!CE:CE,H452,'PdI-crono_inv'!J:J,P452,'PdI-crono_inv'!P:P,\"<>proprietario\")","v":0},null,{"$f":"+SUMIFS('PdI-crono_inv'!BC:BC,'PdI-crono_inv'!CF:CF,F452,'PdI-crono_inv'!CE:CE,H452,'PdI-crono_inv'!J:J,P452,'PdI-crono_inv'!P:P,\"<>proprietario\")+S452","v":0},null,null,"ENV",{"$f":"+VLOOKUP(F452,TT_Tabelle_Riferimento!$D$127:$E$164,2,FALSE)","v":"Comune"},"",0]
[0,0,"Gestore",0,"IP",32,{"$f":"+VLOOKUP(F453,TT_Tabelle_Riferimento!$D$127:$G$164,4,FALSE)","v":"Autoveicoli - automezzi"},3,{"$f":"+VLOOKUP(H453,TT_Tabelle_Riferimento!$F$3:$G$6,2,FALSE)","v":"Altri servizi idrici"},2027,{"$f":"+SUMIFS('PdI-crono_inv'!BB:BB,'PdI-crono_inv'!CF:CF,F453,'PdI-crono_inv'!CE:CE,H453,'PdI-crono_inv'!J:J,P453,'PdI-crono_inv'!P:P,\"<>proprietario\")","v":0},null,{"$f":"+SUMIFS('PdI-crono_inv'!BC:BC,'PdI-crono_inv'!CF:CF,F453,'PdI-crono_inv'!CE:CE,H453,'PdI-crono_inv'!J:J,P453,'PdI-crono_inv'!P:P,\"<>proprietario\")+S453","v":0},null,null,"ENV",{"$f":"+VLOOKUP(F453,TT_Tabelle_Riferimento!$D$127:$E$164,2,FALSE)","v":"Comune"},"",0]
[0,0,"Gestore",0,"IP",1,{"$f":"+VLOOKUP(F454,TT_Tabelle_Riferimento!$D$127:$G$164,4,FALSE)","v":"Terreni"},3,{"$f":"+VLOOKUP(H454,TT_Tabelle_Riferimento!$F$3:$G$6,2,FALSE)","v":"Altri servizi idrici"},2027,{"$f":"+SUMIFS('PdI-crono_inv'!BB:BB,'PdI-crono_inv'!CF:CF,F454,'PdI-crono_inv'!CE:CE,H454,'PdI-crono_inv'!J:J,P454,'PdI-crono_inv'!P:P,\"<>proprietario\")","v":0},null,{"$f":"+SUMIFS('PdI-crono_inv'!BC:BC,'PdI-crono_inv'!CF:CF,F454,'PdI-crono_inv'!CE:CE,H454,'PdI-crono_inv'!J:J,P454,'PdI-crono_inv'!P:P,\"<>proprietario\")+S454","v":0},null,null,"ENV",{"$f":"+VLOOKUP(F454,TT_Tabelle_Riferimento!$D$127:$E$164,2,FALSE)","v":"Comune"},"",0]
[0,0,"Gestore",0,"IP",33,{"$f":"+VLOOKUP(F455,TT_Tabelle_Riferimento!$D$127:$G$164,4,FALSE)","v":"Fabbricati non industriali"},3,{"$f":"+VLOOKUP(H455,TT_Tabelle_Riferimento!$F$3:$G$6,2,FALSE)","v":"Altri servizi idrici"},2027,{"$f":"+SUMIFS('PdI-crono_inv'!BB:BB,'PdI-crono_inv'!CF:CF,F455,'PdI-crono_inv'!CE:CE,H455,'PdI-crono_inv'!J:J,P455,'PdI-crono_inv'!P:P,\"<>proprietario\")","v":0},null,{"$f":"+SUMIFS('PdI-crono_inv'!BC:BC,'PdI-crono_inv'!CF:CF,F455,'PdI-crono_inv'!CE:CE,H455,'PdI-crono_inv'!J:J,P455,'PdI-crono_inv'!P:P,\"<>proprietario\")+S455","v":0},null,null,"ENV",{"$f":"+VLOOKUP(F455,TT_Tabelle_Riferimento!$D$127:$E$164,2,FALSE)","v":"Comune"},"",{"$f":"+IFERROR(HLOOKUP(J455,$X$2:$Y$5,4,FALSE)*K455,0)","v":0}]
[0,0,"Gestore",0,"IP",34,{"$f":"+VLOOKUP(F456,TT_Tabelle_Riferimento!$D$127:$G$164,4,FALSE)","v":"Fabbricati industriali"},3,{"$f":"+VLOOKUP(H456,TT_Tabelle_Riferimento!$F$3:$G$6,2,FALSE)","v":"Altri servizi idrici"},2027,{"$f":"+SUMIFS('PdI-crono_inv'!BB:BB,'PdI-crono_inv'!CF:CF,F456,'PdI-crono_inv'!CE:CE,H456,'PdI-crono_inv'!J:J,P456,'PdI-crono_inv'!P:P,\"<>proprietario\")","v":0},null,{"$f":"+SUMIFS('PdI-crono_inv'!BC:BC,'PdI-crono_inv'!CF:CF,F456,'PdI-crono_inv'!CE:CE,H456,'PdI-crono_inv'!J:J,P456,'PdI-crono_inv'!P:P,\"<>proprietario\")+S456","v":0},null,null,"ENV",{"$f":"+VLOOKUP(F456,TT_Tabelle_Riferimento!$D$127:$E$164,2,FALSE)","v":"Comune"},"",0]
[0,0,"Gestore",0,"IP",35,{"$f":"+VLOOKUP(F457,TT_Tabelle_Riferimento!$D$127:$G$164,4,FALSE)","v":"Costruzioni leggere"},3,{"$f":"+VLOOKUP(H457,TT_Tabelle_Riferimento!$F$3:$G$6,2,FALSE)","v":"Altri servizi idrici"},2027,{"$f":"+SUMIFS('PdI-crono_inv'!BB:BB,'PdI-crono_inv'!CF:CF,F457,'PdI-crono_inv'!CE:CE,H457,'PdI-crono_inv'!J:J,P457,'PdI-crono_inv'!P:P,\"<>proprietario\")","v":0},null,{"$f":"+SUMIFS('PdI-crono_inv'!BC:BC,'PdI-crono_inv'!CF:CF,F457,'PdI-crono_inv'!CE:CE,H457,'PdI-crono_inv'!J:J,P457,'PdI-crono_inv'!P:P,\"<>proprietario\")+S457","v":0},null,null,"ENV",{"$f":"+VLOOKUP(F457,TT_Tabelle_Riferimento!$D$127:$E$164,2,FALSE)","v":"Comune"},"",0]
[0,0,"Gestore",0,"IP",36,{"$f":"+VLOOKUP(F458,TT_Tabelle_Riferimento!$D$127:$G$164,4,FALSE)","v":"Studi, ricerche, brevetti, diritti di utilizzazione"},3,{"$f":"+VLOOKUP(H458,TT_Tabelle_Riferimento!$F$3:$G$6,2,FALSE)","v":"Altri servizi idrici"},2027,{"$f":"+SUMIFS('PdI-crono_inv'!BB:BB,'PdI-crono_inv'!CF:CF,F458,'PdI-crono_inv'!CE:CE,H458,'PdI-crono_inv'!J:J,P458,'PdI-crono_inv'!P:P,\"<>proprietario\")","v":0},null,{"$f":"+SUMIFS('PdI-crono_inv'!BC:BC,'PdI-crono_inv'!CF:CF,F458,'PdI-crono_inv'!CE:CE,H458,'PdI-crono_inv'!J:J,P458,'PdI-crono_inv'!P:P,\"<>proprietario\")+S458","v":0},null,null,"ENV",{"$f":"+VLOOKUP(F458,TT_Tabelle_Riferimento!$D$127:$E$164,2,FALSE)","v":"Comune"},"",0]
[0,0,"Gestore",0,"IP",37,{"$f":"+VLOOKUP(F459,TT_Tabelle_Riferimento!$D$127:$G$164,4,FALSE)","v":"Altre immobilizzazioni materiali e immateriali"},3,{"$f":"+VLOOKUP(H459,TT_Tabelle_Riferimento!$F$3:$G$6,2,FALSE)","v":"Altri servizi idrici"},2027,{"$f":"+SUMIFS('PdI-crono_inv'!BB:BB,'PdI-crono_inv'!CF:CF,F459,'PdI-crono_inv'!CE:CE,H459,'PdI-crono_inv'!J:J,P459,'PdI-crono_inv'!P:P,\"<>proprietario\")","v":0},null,{"$f":"+SUMIFS('PdI-crono_inv'!BC:BC,'PdI-crono_inv'!CF:CF,F459,'PdI-crono_inv'!CE:CE,H459,'PdI-crono_inv'!J:J,P459,'PdI-crono_inv'!P:P,\"<>proprietario\")+S459","v":0},null,null,"ENV",{"$f":"+VLOOKUP(F459,TT_Tabelle_Riferimento!$D$127:$E$164,2,FALSE)","v":"Comune"},"",0]
[0,0,"Gestore",0,"IP",38,{"$f":"+VLOOKUP(F460,TT_Tabelle_Riferimento!$D$127:$G$164,4,FALSE)","v":"Grandi dighe (sbarramenti che superano i quindici metri di altezza o che determinano un invaso superiore a 1 milione di metri cubi)"},3,{"$f":"+VLOOKUP(H460,TT_Tabelle_Riferimento!$F$3:$G$6,2,FALSE)","v":"Altri servizi idrici"},2027,{"$f":"+SUMIFS('PdI-crono_inv'!BB:BB,'PdI-crono_inv'!CF:CF,F460,'PdI-crono_inv'!CE:CE,H460,'PdI-crono_inv'!J:J,P460,'PdI-crono_inv'!P:P,\"<>proprietario\")","v":0},null,{"$f":"+SUMIFS('PdI-crono_inv'!BC:BC,'PdI-crono_inv'!CF:CF,F460,'PdI-crono_inv'!CE:CE,H460,'PdI-crono_inv'!J:J,P460,'PdI-crono_inv'!P:P,\"<>proprietario\")+S460","v":0},null,null,"ENV",{"$f":"+VLOOKUP(F460,TT_Tabelle_Riferimento!$D$127:$E$164,2,FALSE)","v":"Acquedotto"},"",0]
[0,0,"Gestore",0,"IP",39,{"$f":"+VLOOKUP(F461,TT_Tabelle_Riferimento!$D$127:$G$164,4,FALSE)","v":"Piccole dighe (sbarramenti che non superano i quindici metri di altezza o che determinano un invaso non superiore a 1 milione di metri cubi)"},3,{"$f":"+VLOOKUP(H461,TT_Tabelle_Riferimento!$F$3:$G$6,2,FALSE)","v":"Altri servizi idrici"},2027,{"$f":"+SUMIFS('PdI-crono_inv'!BB:BB,'PdI-crono_inv'!CF:CF,F461,'PdI-crono_inv'!CE:CE,H461,'PdI-crono_inv'!J:J,P461,'PdI-crono_inv'!P:P,\"<>proprietario\")","v":0},null,{"$f":"+SUMIFS('PdI-crono_inv'!BC:BC,'PdI-crono_inv'!CF:CF,F461,'PdI-crono_inv'!CE:CE,H461,'PdI-crono_inv'!J:J,P461,'PdI-crono_inv'!P:P,\"<>proprietario\")+S461","v":0},null,null,"ENV",{"$f":"+VLOOKUP(F461,TT_Tabelle_Riferimento!$D$127:$E$164,2,FALSE)","v":"Acquedotto"},"",0]
[0,0,"Gestore",0,"IP",2,{"$f":"+VLOOKUP(F462,TT_Tabelle_Riferimento!$D$127:$G$164,4,FALSE)","v":"Condotte di acquedotto"},1,{"$f":"+VLOOKUP(H462,TT_Tabelle_Riferimento!$F$3:$G$6,2,FALSE)","v":"Servizio idrico integrato"},2027,{"$f":"+SUMIFS('PdI-crono_inv'!BB:BB,'PdI-crono_inv'!CF:CF,F462,'PdI-crono_inv'!CE:CE,H462,'PdI-crono_inv'!J:J,P462,'PdI-crono_inv'!P:P,\"<>proprietario\")","v":0},null,{"$f":"+SUMIFS('PdI-crono_inv'!BC:BC,'PdI-crono_inv'!CF:CF,F462,'PdI-crono_inv'!CE:CE,H462,'PdI-crono_inv'!J:J,P462,'PdI-crono_inv'!P:P,\"<>proprietario\")+S462","v":0},null,null,"RES",{"$f":"+VLOOKUP(F462,TT_Tabelle_Riferimento!$D$127:$E$164,2,FALSE)","v":"Acquedotto"},"",0]
[0,0,"Gestore",0,"IP",3,{"$f":"+VLOOKUP(F463,TT_Tabelle_Riferimento!$D$127:$G$164,4,FALSE)","v":"Opere idrauliche fisse di acquedotto"},1,{"$f":"+VLOOKUP(H463,TT_Tabelle_Riferimento!$F$3:$G$6,2,FALSE)","v":"Servizio idrico integrato"},2027,{"$f":"+SUMIFS('PdI-crono_inv'!BB:BB,'PdI-crono_inv'!CF:CF,F463,'PdI-crono_inv'!CE:CE,H463,'PdI-crono_inv'!J:J,P463,'PdI-crono_inv'!P:P,\"<>proprietario\")","v":0},null,{"$f":"+SUMIFS('PdI-crono_inv'!BC:BC,'PdI-crono_inv'!CF:CF,F463,'PdI-crono_inv'!CE:CE,H463,'PdI-crono_inv'!J:J,P463,'PdI-crono_inv'!P:P,\"<>proprietario\")+S463","v":0},null,null,"RES",{"$f":"+VLOOKUP(F463,TT_Tabelle_Riferimento!$D$127:$E$164,2,FALSE)","v":"Acquedotto"},"",0]
[0,0,"Gestore",0,"IP",4,{"$f":"+VLOOKUP(F464,TT_Tabelle_Riferimento!$D$127:$G$164,4,FALSE)","v":"Serbatoi"},1,{"$f":"+VLOOKUP(H464,TT_Tabelle_Riferimento!$F$3:$G$6,2,FALSE)","v":"Servizio idrico integrato"},2027,{"$f":"+SUMIFS('PdI-crono_inv'!BB:BB,'PdI-crono_inv'!CF:CF,F464,'PdI-crono_inv'!CE:CE,H464,'PdI-crono_inv'!J:J,P464,'PdI-crono_inv'!P:P,\"<>proprietario\")","v":0},null,{"$f":"+SUMIFS('PdI-crono_inv'!BC:BC,'PdI-crono_inv'!CF:CF,F464,'PdI-crono_inv'!CE:CE,H464,'PdI-crono_inv'!J:J,P464,'PdI-crono_inv'!P:P,\"<>proprietario\")+S464","v":0},null,null,"RES",{"$f":"+VLOOKUP(F464,TT_Tabelle_Riferimento!$D$127:$E$164,2,FALSE)","v":"Acquedotto"},"",0]
[0,0,"Gestore",0,"IP",5,{"$f":"+VLOOKUP(F465,TT_Tabelle_Riferimento!$D$127:$G$164,4,FALSE)","v":"Impianti di sollevamento e pompaggio di acquedotto"},1,{"$f":"+VLOOKUP(H465,TT_Tabelle_Riferimento!$F$3:$G$6,2,FALSE)","v":"Servizio idrico integrato"},2027,{"$f":"+SUMIFS('PdI-crono_inv'!BB:BB,'PdI-crono_inv'!CF:CF,F465,'PdI-crono_inv'!CE:CE,H465,'PdI-crono_inv'!J:J,P465,'PdI-crono_inv'!P:P,\"<>proprietario\")","v":0},null,{"$f":"+SUMIFS('PdI-crono_inv'!BC:BC,'PdI-crono_inv'!CF:CF,F465,'PdI-crono_inv'!CE:CE,H465,'PdI-crono_inv'!J:J,P465,'PdI-crono_inv'!P:P,\"<>proprietario\")+S465","v":0},null,null,"RES",{"$f":"+VLOOKUP(F465,TT_Tabelle_Riferimento!$D$127:$E$164,2,FALSE)","v":"Acquedotto"},"",0]
[0,0,"Gestore",0,"IP",6,{"$f":"+VLOOKUP(F466,TT_Tabelle_Riferimento!$D$127:$G$164,4,FALSE)","v":"Impianti di potabilizzazione"},1,{"$f":"+VLOOKUP(H466,TT_Tabelle_Riferimento!$F$3:$G$6,2,FALSE)","v":"Servizio idrico integrato"},2027,{"$f":"+SUMIFS('PdI-crono_inv'!BB:BB,'PdI-crono_inv'!CF:CF,F466,'PdI-crono_inv'!CE:CE,H466,'PdI-crono_inv'!J:J,P466,'PdI-crono_inv'!P:P,\"<>proprietario\")","v":0},null,{"$f":"+SUMIFS('PdI-crono_inv'!BC:BC,'PdI-crono_inv'!CF:CF,F466,'PdI-crono_inv'!CE:CE,H466,'PdI-crono_inv'!J:J,P466,'PdI-crono_inv'!P:P,\"<>proprietario\")+S466","v":0},null,null,"RES",{"$f":"+VLOOKUP(F466,TT_Tabelle_Riferimento!$D$127:$E$164,2,FALSE)","v":"Acquedotto"},"",0]
[0,0,"Gestore",0,"IP",7,{"$f":"+VLOOKUP(F467,TT_Tabelle_Riferimento!$D$127:$G$164,4,FALSE)","v":"Altri trattamenti di potabilizzazione (tra cui dispositivi di disinfezione, stacciatura, filtrazione, addolcimento)"},1,{"$f":"+VLOOKUP(H467,TT_Tabelle_Riferimento!$F$3:$G$6,2,FALSE)","v":"Servizio idrico integrato"},2027,{"$f":"+SUMIFS('PdI-crono_inv'!BB:BB,'PdI-crono_inv'!CF:CF,F467,'PdI-crono_inv'!CE:CE,H467,'PdI-crono_inv'!J:J,P467,'PdI-crono_inv'!P:P,\"<>proprietario\")","v":0},null,{"$f":"+SUMIFS('PdI-crono_inv'!BC:BC,'PdI-crono_inv'!CF:CF,F467,'PdI-crono_inv'!CE:CE,H467,'PdI-crono_inv'!J:J,P467,'PdI-crono_inv'!P:P,\"<>proprietario\")+S467","v":0},null,null,"RES",{"$f":"+VLOOKUP(F467,TT_Tabelle_Riferimento!$D$127:$E$164,2,FALSE)","v":"Acquedotto"},"",0]
[0,0,"Gestore",0,"IP",8,{"$f":"+VLOOKUP(F468,TT_Tabelle_Riferimento!$D$127:$G$164,4,FALSE)","v":"Gruppi di misura - altre attrezzature di acquedotto"},1,{"$f":"+VLOOKUP(H468,TT_Tabelle_Riferimento!$F$3:$G$6,2,FALSE)","v":"Servizio idrico integrato"},2027,{"$f":"+SUMIFS('PdI-crono_inv'!BB:BB,'PdI-crono_inv'!CF:CF,F468,'PdI-crono_inv'!CE:CE,H468,'PdI-crono_inv'!J:J,P468,'PdI-crono_inv'!P:P,\"<>proprietario\")","v":0},null,{"$f":"+SUMIFS('PdI-crono_inv'!BC:BC,'PdI-crono_inv'!CF:CF,F468,'PdI-crono_inv'!CE:CE,H468,'PdI-crono_inv'!J:J,P468,'PdI-crono_inv'!P:P,\"<>proprietario\")+S468","v":0},null,null,"RES",{"$f":"+VLOOKUP(F468,TT_Tabelle_Riferimento!$D$127:$E$164,2,FALSE)","v":"Acquedotto"},"",0]
[0,0,"Gestore",0,"IP",9,{"$f":"+VLOOKUP(F469,TT_Tabelle_Riferimento!$D$127:$G$164,4,FALSE)","v":"Sistemi informativi di acquedotto"},1,{"$f":"+VLOOKUP(H469,TT_Tabelle_Riferimento!$F$3:$G$6,2,FALSE)","v":"Servizio idrico integrato"},2027,{"$f":"+SUMIFS('PdI-crono_inv'!BB:BB,'PdI-crono_inv'!CF:CF,F469,'PdI-crono_inv'!CE:CE,H469,'PdI-crono_inv'!J:J,P469,'PdI-crono_inv'!P:P,\"<>proprietario\")","v":0},null,{"$f":"+SUMIFS('PdI-crono_inv'!BC:BC,'PdI-crono_inv'!CF:CF,F469,'PdI-crono_inv'!CE:CE,H469,'PdI-crono_inv'!J:J,P469,'PdI-crono_inv'!P:P,\"<>proprietario\")+S469","v":0},null,null,"RES",{"$f":"+VLOOKUP(F469,TT_Tabelle_Riferimento!$D$127:$E$164,2,FALSE)","v":"Acquedotto"},"",0]
[0,0,"Gestore",0,"IP",10,{"$f":"+VLOOKUP(F470,TT_Tabelle_Riferimento!$D$127:$G$164,4,FALSE)","v":"Telecontrollo e teletrasmissione di acquedotto"},1,{"$f":"+VLOOKUP(H470,TT_Tabelle_Riferimento!$F$3:$G$6,2,FALSE)","v":"Servizio idrico integrato"},2027,{"$f":"+SUMIFS('PdI-crono_inv'!BB:BB,'PdI-crono_inv'!CF:CF,F470,'PdI-crono_inv'!CE:CE,H470,'PdI-crono_inv'!J:J,P470,'PdI-crono_inv'!P:P,\"<>proprietario\")","v":0},null,{"$f":"+SUMIFS('PdI-crono_inv'!BC:BC,'PdI-crono_inv'!CF:CF,F470,'PdI-crono_inv'!CE:CE,H470,'PdI-crono_inv'!J:J,P470,'PdI-crono_inv'!P:P,\"<>proprietario\")+S470","v":0},null,null,"RES",{"$f":"+VLOOKUP(F470,TT_Tabelle_Riferimento!$D$127:$E$164,2,FALSE)","v":"Acquedotto"},"",0]
[0,0,"Gestore",0,"IP",11,{"$f":"+VLOOKUP(F471,TT_Tabelle_Riferimento!$D$127:$G$164,4,FALSE)","v":"Condotte fognarie"},1,{"$f":"+VLOOKUP(H471,TT_Tabelle_Riferimento!$F$3:$G$6,2,FALSE)","v":"Servizio idrico integrato"},2027,{"$f":"+SUMIFS('PdI-crono_inv'!BB:BB,'PdI-crono_inv'!CF:CF,F471,'PdI-crono_inv'!CE:CE,H471,'PdI-crono_inv'!J:J,P471,'PdI-crono_inv'!P:P,\"<>proprietario\")","v":0},null,{"$f":"+SUMIFS('PdI-crono_inv'!BC:BC,'PdI-crono_inv'!CF:CF,F471,'PdI-crono_inv'!CE:CE,H471,'PdI-crono_inv'!J:J,P471,'PdI-crono_inv'!P:P,\"<>proprietario\")+S471","v":0},null,null,"RES",{"$f":"+VLOOKUP(F471,TT_Tabelle_Riferimento!$D$127:$E$164,2,FALSE)","v":"Fognatura"},"",0]
[0,0,"Gestore",0,"IP",12,{"$f":"+VLOOKUP(F472,TT_Tabelle_Riferimento!$D$127:$G$164,4,FALSE)","v":"Sifoni e scaricatori di piena e altre opere idrauliche fisse di fognatura"},1,{"$f":"+VLOOKUP(H472,TT_Tabelle_Riferimento!$F$3:$G$6,2,FALSE)","v":"Servizio idrico integrato"},2027,{"$f":"+SUMIFS('PdI-crono_inv'!BB:BB,'PdI-crono_inv'!CF:CF,F472,'PdI-crono_inv'!CE:CE,H472,'PdI-crono_inv'!J:J,P472,'PdI-crono_inv'!P:P,\"<>proprietario\")","v":0},null,{"$f":"+SUMIFS('PdI-crono_inv'!BC:BC,'PdI-crono_inv'!CF:CF,F472,'PdI-crono_inv'!CE:CE,H472,'PdI-crono_inv'!J:J,P472,'PdI-crono_inv'!P:P,\"<>proprietario\")+S472","v":0},null,null,"RES",{"$f":"+VLOOKUP(F472,TT_Tabelle_Riferimento!$D$127:$E$164,2,FALSE)","v":"Fognatura"},"",0]
[0,0,"Gestore",0,"IP",13,{"$f":"+VLOOKUP(F473,TT_Tabelle_Riferimento!$D$127:$G$164,4,FALSE)","v":"Vasche di laminazione e vasche di prima pioggia"},1,{"$f":"+VLOOKUP(H473,TT_Tabelle_Riferimento!$F$3:$G$6,2,FALSE)","v":"Servizio idrico integrato"},2027,{"$f":"+SUMIFS('PdI-crono_inv'!BB:BB,'PdI-crono_inv'!CF:CF,F473,'PdI-crono_inv'!CE:CE,H473,'PdI-crono_inv'!J:J,P473,'PdI-crono_inv'!P:P,\"<>proprietario\")","v":0},null,{"$f":"+SUMIFS('PdI-crono_inv'!BC:BC,'PdI-crono_inv'!CF:CF,F473,'PdI-crono_inv'!CE:CE,H473,'PdI-crono_inv'!J:J,P473,'PdI-crono_inv'!P:P,\"<>proprietario\")+S473","v":0},null,null,"RES",{"$f":"+VLOOKUP(F473,TT_Tabelle_Riferimento!$D$127:$E$164,2,FALSE)","v":"Fognatura"},"",0]
[0,0,"Gestore",0,"IP",14,{"$f":"+VLOOKUP(F474,TT_Tabelle_Riferimento!$D$127:$G$164,4,FALSE)","v":"Impianti di sollevamento e pompaggio di fognatura"},1,{"$f":"+VLOOKUP(H474,TT_Tabelle_Riferimento!$F$3:$G$6,2,FALSE)","v":"Servizio idrico integrato"},2027,{"$f":"+SUMIFS('PdI-crono_inv'!BB:BB,'PdI-crono_inv'!CF:CF,F474,'PdI-crono_inv'!CE:CE,H474,'PdI-crono_inv'!J:J,P474,'PdI-crono_inv'!P:P,\"<>proprietario\")","v":0},null,{"$f":"+SUMIFS('PdI-crono_inv'!BC:BC,'PdI-crono_inv'!CF:CF,F474,'PdI-crono_inv'!CE:CE,H474,'PdI-crono_inv'!J:J,P474,'PdI-crono_inv'!P:P,\"<>proprietario\")+S474","v":0},null,null,"RES",{"$f":"+VLOOKUP(F474,TT_Tabelle_Riferimento!$D$127:$E$164,2,FALSE)","v":"Fognatura"},"",0]
[0,0,"Gestore",0,"IP",15,{"$f":"+VLOOKUP(F475,TT_Tabelle_Riferimento!$D$127:$G$164,4,FALSE)","v":"Gruppi di misura - altre attrezzature di fognatura"},1,{"$f":"+VLOOKUP(H475,TT_Tabelle_Riferimento!$F$3:$G$6,2,FALSE)","v":"Servizio idrico integrato"},2027,{"$f":"+SUMIFS('PdI-crono_inv'!BB:BB,'PdI-crono_inv'!CF:CF,F475,'PdI-crono_inv'!CE:CE,H475,'PdI-crono_inv'!J:J,P475,'PdI-crono_inv'!P:P,\"<>proprietario\")","v":0},null,{"$f":"+SUMIFS('PdI-crono_inv'!BC:BC,'PdI-crono_inv'!CF:CF,F475,'PdI-crono_inv'!CE:CE,H475,'PdI-crono_inv'!J:J,P475,'PdI-crono_inv'!P:P,\"<>proprietario\")+S475","v":0},null,null,"RES",{"$f":"+VLOOKUP(F475,TT_Tabelle_Riferimento!$D$127:$E$164,2,FALSE)","v":"Fognatura"},"",0]
[0,0,"Gestore",0,"IP",16,{"$f":"+VLOOKUP(F476,TT_Tabelle_Riferimento!$D$127:$G$164,4,FALSE)","v":"Sistemi informativi di fognatura"},1,{"$f":"+VLOOKUP(H476,TT_Tabelle_Riferimento!$F$3:$G$6,2,FALSE)","v":"Servizio idrico integrato"},2027,{"$f":"+SUMIFS('PdI-crono_inv'!BB:BB,'PdI-crono_inv'!CF:CF,F476,'PdI-crono_inv'!CE:CE,H476,'PdI-crono_inv'!J:J,P476,'PdI-crono_inv'!P:P,\"<>proprietario\")","v":0},null,{"$f":"+SUMIFS('PdI-crono_inv'!BC:BC,'PdI-crono_inv'!CF:CF,F476,'PdI-crono_inv'!CE:CE,H476,'PdI-crono_inv'!J:J,P476,'PdI-crono_inv'!P:P,\"<>proprietario\")+S476","v":0},null,null,"RES",{"$f":"+VLOOKUP(F476,TT_Tabelle_Riferimento!$D$127:$E$164,2,FALSE)","v":"Fognatura"},"",0]
[0,0,"Gestore",0,"IP",18,{"$f":"+VLOOKUP(F477,TT_Tabelle_Riferimento!$D$127:$G$164,4,FALSE)","v":"Telecontrollo e teletrasmissione di fognatura"},1,{"$f":"+VLOOKUP(H477,TT_Tabelle_Riferimento!$F$3:$G$6,2,FALSE)","v":"Servizio idrico integrato"},2027,{"$f":"+SUMIFS('PdI-crono_inv'!BB:BB,'PdI-crono_inv'!CF:CF,F477,'PdI-crono_inv'!CE:CE,H477,'PdI-crono_inv'!J:J,P477,'PdI-crono_inv'!P:P,\"<>proprietario\")","v":0},null,{"$f":"+SUMIFS('PdI-crono_inv'!BC:BC,'PdI-crono_inv'!CF:CF,F477,'PdI-crono_inv'!CE:CE,H477,'PdI-crono_inv'!J:J,P477,'PdI-crono_inv'!P:P,\"<>proprietario\")+S477","v":0},null,null,"RES",{"$f":"+VLOOKUP(F477,TT_Tabelle_Riferimento!$D$127:$E$164,2,FALSE)","v":"Fognatura"},"",0]
[0,0,"Gestore",0,"IP",19,{"$f":"+VLOOKUP(F478,TT_Tabelle_Riferimento!$D$127:$G$164,4,FALSE)","v":"Impianti di sollevamento e pompaggio di depurazione"},1,{"$f":"+VLOOKUP(H478,TT_Tabelle_Riferimento!$F$3:$G$6,2,FALSE)","v":"Servizio idrico integrato"},2027,{"$f":"+SUMIFS('PdI-crono_inv'!BB:BB,'PdI-crono_inv'!CF:CF,F478,'PdI-crono_inv'!CE:CE,H478,'PdI-crono_inv'!J:J,P478,'PdI-crono_inv'!P:P,\"<>proprietario\")","v":0},null,{"$f":"+SUMIFS('PdI-crono_inv'!BC:BC,'PdI-crono_inv'!CF:CF,F478,'PdI-crono_inv'!CE:CE,H478,'PdI-crono_inv'!J:J,P478,'PdI-crono_inv'!P:P,\"<>proprietario\")+S478","v":0},null,null,"RES",{"$f":"+VLOOKUP(F478,TT_Tabelle_Riferimento!$D$127:$E$164,2,FALSE)","v":"Depurazione"},"",0]
[0,0,"Gestore",0,"IP",20,{"$f":"+VLOOKUP(F479,TT_Tabelle_Riferimento!$D$127:$G$164,4,FALSE)","v":"Tecniche naturali di depurazione (tra cui fitodepurazione e lagunaggio)"},1,{"$f":"+VLOOKUP(H479,TT_Tabelle_Riferimento!$F$3:$G$6,2,FALSE)","v":"Servizio idrico integrato"},2027,{"$f":"+SUMIFS('PdI-crono_inv'!BB:BB,'PdI-crono_inv'!CF:CF,F479,'PdI-crono_inv'!CE:CE,H479,'PdI-crono_inv'!J:J,P479,'PdI-crono_inv'!P:P,\"<>proprietario\")","v":0},null,{"$f":"+SUMIFS('PdI-crono_inv'!BC:BC,'PdI-crono_inv'!CF:CF,F479,'PdI-crono_inv'!CE:CE,H479,'PdI-crono_inv'!J:J,P479,'PdI-crono_inv'!P:P,\"<>proprietario\")+S479","v":0},null,null,"RES",{"$f":"+VLOOKUP(F479,TT_Tabelle_Riferimento!$D$127:$E$164,2,FALSE)","v":"Depurazione"},"",0]
[0,0,"Gestore",0,"IP",21,{"$f":"+VLOOKUP(F480,TT_Tabelle_Riferimento!$D$127:$G$164,4,FALSE)","v":"Impianti di depurazione – trattamenti sino al preliminare, integrativo, primario - fosse settiche e fosse Imhoff"},1,{"$f":"+VLOOKUP(H480,TT_Tabelle_Riferimento!$F$3:$G$6,2,FALSE)","v":"Servizio idrico integrato"},2027,{"$f":"+SUMIFS('PdI-crono_inv'!BB:BB,'PdI-crono_inv'!CF:CF,F480,'PdI-crono_inv'!CE:CE,H480,'PdI-crono_inv'!J:J,P480,'PdI-crono_inv'!P:P,\"<>proprietario\")","v":0},null,{"$f":"+SUMIFS('PdI-crono_inv'!BC:BC,'PdI-crono_inv'!CF:CF,F480,'PdI-crono_inv'!CE:CE,H480,'PdI-crono_inv'!J:J,P480,'PdI-crono_inv'!P:P,\"<>proprietario\")+S480","v":0},null,null,"RES",{"$f":"+VLOOKUP(F480,TT_Tabelle_Riferimento!$D$127:$E$164,2,FALSE)","v":"Depurazione"},"",0]
[0,0,"Gestore",0,"IP",22,{"$f":"+VLOOKUP(F481,TT_Tabelle_Riferimento!$D$127:$G$164,4,FALSE)","v":"Impianti di depurazione – trattamenti sino al secondario"},1,{"$f":"+VLOOKUP(H481,TT_Tabelle_Riferimento!$F$3:$G$6,2,FALSE)","v":"Servizio idrico integrato"},2027,{"$f":"+SUMIFS('PdI-crono_inv'!BB:BB,'PdI-crono_inv'!CF:CF,F481,'PdI-crono_inv'!CE:CE,H481,'PdI-crono_inv'!J:J,P481,'PdI-crono_inv'!P:P,\"<>proprietario\")","v":0},null,{"$f":"+SUMIFS('PdI-crono_inv'!BC:BC,'PdI-crono_inv'!CF:CF,F481,'PdI-crono_inv'!CE:CE,H481,'PdI-crono_inv'!J:J,P481,'PdI-crono_inv'!P:P,\"<>proprietario\")+S481","v":0},null,null,"RES",{"$f":"+VLOOKUP(F481,TT_Tabelle_Riferimento!$D$127:$E$164,2,FALSE)","v":"Depurazione"},"",0]
[0,0,"Gestore",0,"IP",23,{"$f":"+VLOOKUP(F482,TT_Tabelle_Riferimento!$D$127:$G$164,4,FALSE)","v":"Impianti di depurazione – trattamenti sino al terziario e terziario avanzato"},1,{"$f":"+VLOOKUP(H482,TT_Tabelle_Riferimento!$F$3:$G$6,2,FALSE)","v":"Servizio idrico integrato"},2027,{"$f":"+SUMIFS('PdI-crono_inv'!BB:BB,'PdI-crono_inv'!CF:CF,F482,'PdI-crono_inv'!CE:CE,H482,'PdI-crono_inv'!J:J,P482,'PdI-crono_inv'!P:P,\"<>proprietario\")","v":0},null,{"$f":"+SUMIFS('PdI-crono_inv'!BC:BC,'PdI-crono_inv'!CF:CF,F482,'PdI-crono_inv'!CE:CE,H482,'PdI-crono_inv'!J:J,P482,'PdI-crono_inv'!P:P,\"<>proprietario\")+S482","v":0},null,null,"RES",{"$f":"+VLOOKUP(F482,TT_Tabelle_Riferimento!$D$127:$E$164,2,FALSE)","v":"Depurazione"},"",0]
[0,0,"Gestore",0,"IP",24,{"$f":"+VLOOKUP(F483,TT_Tabelle_Riferimento!$D$127:$G$164,4,FALSE)","v":"Impianti di essiccamento fanghi e di valorizzazione dei fanghi (tra cui mono-incenerimento, pirolisi, gassificazione)"},1,{"$f":"+VLOOKUP(H483,TT_Tabelle_Riferimento!$F$3:$G$6,2,FALSE)","v":"Servizio idrico integrato"},2027,{"$f":"+SUMIFS('PdI-crono_inv'!BB:BB,'PdI-crono_inv'!CF:CF,F483,'PdI-crono_inv'!CE:CE,H483,'PdI-crono_inv'!J:J,P483,'PdI-crono_inv'!P:P,\"<>proprietario\")","v":0},null,{"$f":"+SUMIFS('PdI-crono_inv'!BC:BC,'PdI-crono_inv'!CF:CF,F483,'PdI-crono_inv'!CE:CE,H483,'PdI-crono_inv'!J:J,P483,'PdI-crono_inv'!P:P,\"<>proprietario\")+S483","v":0},null,null,"RES",{"$f":"+VLOOKUP(F483,TT_Tabelle_Riferimento!$D$127:$E$164,2,FALSE)","v":"Depurazione"},"",0]
[0,0,"Gestore",0,"IP",25,{"$f":"+VLOOKUP(F484,TT_Tabelle_Riferimento!$D$127:$G$164,4,FALSE)","v":"Gruppi di misura - altre attrezzature di depurazione"},1,{"$f":"+VLOOKUP(H484,TT_Tabelle_Riferimento!$F$3:$G$6,2,FALSE)","v":"Servizio idrico integrato"},2027,{"$f":"+SUMIFS('PdI-crono_inv'!BB:BB,'PdI-crono_inv'!CF:CF,F484,'PdI-crono_inv'!CE:CE,H484,'PdI-crono_inv'!J:J,P484,'PdI-crono_inv'!P:P,\"<>proprietario\")","v":0},null,{"$f":"+SUMIFS('PdI-crono_inv'!BC:BC,'PdI-crono_inv'!CF:CF,F484,'PdI-crono_inv'!CE:CE,H484,'PdI-crono_inv'!J:J,P484,'PdI-crono_inv'!P:P,\"<>proprietario\")+S484","v":0},null,null,"RES",{"$f":"+VLOOKUP(F484,TT_Tabelle_Riferimento!$D$127:$E$164,2,FALSE)","v":"Depurazione"},"",0]
[0,0,"Gestore",0,"IP",26,{"$f":"+VLOOKUP(F485,TT_Tabelle_Riferimento!$D$127:$G$164,4,FALSE)","v":"Sistemi informativi di depurazione"},1,{"$f":"+VLOOKUP(H485,TT_Tabelle_Riferimento!$F$3:$G$6,2,FALSE)","v":"Servizio idrico integrato"},2027,{"$f":"+SUMIFS('PdI-crono_inv'!BB:BB,'PdI-crono_inv'!CF:CF,F485,'PdI-crono_inv'!CE:CE,H485,'PdI-crono_inv'!J:J,P485,'PdI-crono_inv'!P:P,\"<>proprietario\")","v":0},null,{"$f":"+SUMIFS('PdI-crono_inv'!BC:BC,'PdI-crono_inv'!CF:CF,F485,'PdI-crono_inv'!CE:CE,H485,'PdI-crono_inv'!J:J,P485,'PdI-crono_inv'!P:P,\"<>proprietario\")+S485","v":0},null,null,"RES",{"$f":"+VLOOKUP(F485,TT_Tabelle_Riferimento!$D$127:$E$164,2,FALSE)","v":"Depurazione"},"",0]
[0,0,"Gestore",0,"IP",27,{"$f":"+VLOOKUP(F486,TT_Tabelle_Riferimento!$D$127:$G$164,4,FALSE)","v":"Telecontrollo e teletrasmissione di depurazione"},1,{"$f":"+VLOOKUP(H486,TT_Tabelle_Riferimento!$F$3:$G$6,2,FALSE)","v":"Servizio idrico integrato"},2027,{"$f":"+SUMIFS('PdI-crono_inv'!BB:BB,'PdI-crono_inv'!CF:CF,F486,'PdI-crono_inv'!CE:CE,H486,'PdI-crono_inv'!J:J,P486,'PdI-crono_inv'!P:P,\"<>proprietario\")","v":0},null,{"$f":"+SUMIFS('PdI-crono_inv'!BC:BC,'PdI-crono_inv'!CF:CF,F486,'PdI-crono_inv'!CE:CE,H486,'PdI-crono_inv'!J:J,P486,'PdI-crono_inv'!P:P,\"<>proprietario\")+S486","v":0},null,null,"RES",{"$f":"+VLOOKUP(F486,TT_Tabelle_Riferimento!$D$127:$E$164,2,FALSE)","v":"Depurazione"},"",0]
[0,0,"Gestore",0,"IP",28,{"$f":"+VLOOKUP(F487,TT_Tabelle_Riferimento!$D$127:$G$164,4,FALSE)","v":"Altri impianti"},1,{"$f":"+VLOOKUP(H487,TT_Tabelle_Riferimento!$F$3:$G$6,2,FALSE)","v":"Servizio idrico integrato"},2027,{"$f":"+SUMIFS('PdI-crono_inv'!BB:BB,'PdI-crono_inv'!CF:CF,F487,'PdI-crono_inv'!CE:CE,H487,'PdI-crono_inv'!J:J,P487,'PdI-crono_inv'!P:P,\"<>proprietario\")","v":0},null,{"$f":"+SUMIFS('PdI-crono_inv'!BC:BC,'PdI-crono_inv'!CF:CF,F487,'PdI-crono_inv'!CE:CE,H487,'PdI-crono_inv'!J:J,P487,'PdI-crono_inv'!P:P,\"<>proprietario\")+S487","v":0},null,null,"RES",{"$f":"+VLOOKUP(F487,TT_Tabelle_Riferimento!$D$127:$E$164,2,FALSE)","v":"Comune"},"",0]
[{"$f":"+idato","v":0},{"$f":"+idgestore","v":0},"Gestore",0,"IP",29,{"$f":"+VLOOKUP(F488,TT_Tabelle_Riferimento!$D$127:$G$164,4,FALSE)","v":"Laboratori e attrezzature"},1,{"$f":"+VLOOKUP(H488,TT_Tabelle_Riferimento!$F$3:$G$6,2,FALSE)","v":"Servizio idrico integrato"},2027,{"$f":"+SUMIFS('PdI-crono_inv'!BB:BB,'PdI-crono_inv'!CF:CF,F488,'PdI-crono_inv'!CE:CE,H488,'PdI-crono_inv'!J:J,P488,'PdI-crono_inv'!P:P,\"<>proprietario\")","v":0},null,{"$f":"+SUMIFS('PdI-crono_inv'!BC:BC,'PdI-crono_inv'!CF:CF,F488,'PdI-crono_inv'!CE:CE,H488,'PdI-crono_inv'!J:J,P488,'PdI-crono_inv'!P:P,\"<>proprietario\")+S488","v":0},null,null,"RES",{"$f":"+VLOOKUP(F488,TT_Tabelle_Riferimento!$D$127:$E$164,2,FALSE)","v":"Comune"},"",0]
[0,0,"Gestore",0,"IP",30,{"$f":"+VLOOKUP(F489,TT_Tabelle_Riferimento!$D$127:$G$164,4,FALSE)","v":"Sistemi informativi"},1,{"$f":"+VLOOKUP(H489,TT_Tabelle_Riferimento!$F$3:$G$6,2,FALSE)","v":"Servizio idrico integrato"},2027,{"$f":"+SUMIFS('PdI-crono_inv'!BB:BB,'PdI-crono_inv'!CF:CF,F489,'PdI-crono_inv'!CE:CE,H489,'PdI-crono_inv'!J:J,P489,'PdI-crono_inv'!P:P,\"<>proprietario\")","v":0},null,{"$f":"+SUMIFS('PdI-crono_inv'!BC:BC,'PdI-crono_inv'!CF:CF,F489,'PdI-crono_inv'!CE:CE,H489,'PdI-crono_inv'!J:J,P489,'PdI-crono_inv'!P:P,\"<>proprietario\")+S489","v":0},null,null,"RES",{"$f":"+VLOOKUP(F489,TT_Tabelle_Riferimento!$D$127:$E$164,2,FALSE)","v":"Comune"},"",0]
[0,0,"Gestore",0,"IP",31,{"$f":"+VLOOKUP(F490,TT_Tabelle_Riferimento!$D$127:$G$164,4,FALSE)","v":"Telecontrollo e teletrasmissione"},1,{"$f":"+VLOOKUP(H490,TT_Tabelle_Riferimento!$F$3:$G$6,2,FALSE)","v":"Servizio idrico integrato"},2027,{"$f":"+SUMIFS('PdI-crono_inv'!BB:BB,'PdI-crono_inv'!CF:CF,F490,'PdI-crono_inv'!CE:CE,H490,'PdI-crono_inv'!J:J,P490,'PdI-crono_inv'!P:P,\"<>proprietario\")","v":0},null,{"$f":"+SUMIFS('PdI-crono_inv'!BC:BC,'PdI-crono_inv'!CF:CF,F490,'PdI-crono_inv'!CE:CE,H490,'PdI-crono_inv'!J:J,P490,'PdI-crono_inv'!P:P,\"<>proprietario\")+S490","v":0},null,null,"RES",{"$f":"+VLOOKUP(F490,TT_Tabelle_Riferimento!$D$127:$E$164,2,FALSE)","v":"Comune"},"",0]
[0,0,"Gestore",0,"IP",32,{"$f":"+VLOOKUP(F491,TT_Tabelle_Riferimento!$D$127:$G$164,4,FALSE)","v":"Autoveicoli - automezzi"},1,{"$f":"+VLOOKUP(H491,TT_Tabelle_Riferimento!$F$3:$G$6,2,FALSE)","v":"Servizio idrico integrato"},2027,{"$f":"+SUMIFS('PdI-crono_inv'!BB:BB,'PdI-crono_inv'!CF:CF,F491,'PdI-crono_inv'!CE:CE,H491,'PdI-crono_inv'!J:J,P491,'PdI-crono_inv'!P:P,\"<>proprietario\")","v":0},null,{"$f":"+SUMIFS('PdI-crono_inv'!BC:BC,'PdI-crono_inv'!CF:CF,F491,'PdI-crono_inv'!CE:CE,H491,'PdI-crono_inv'!J:J,P491,'PdI-crono_inv'!P:P,\"<>proprietario\")+S491","v":0},null,null,"RES",{"$f":"+VLOOKUP(F491,TT_Tabelle_Riferimento!$D$127:$E$164,2,FALSE)","v":"Comune"},"",0]
[0,0,"Gestore",0,"IP",1,{"$f":"+VLOOKUP(F492,TT_Tabelle_Riferimento!$D$127:$G$164,4,FALSE)","v":"Terreni"},1,{"$f":"+VLOOKUP(H492,TT_Tabelle_Riferimento!$F$3:$G$6,2,FALSE)","v":"Servizio idrico integrato"},2027,{"$f":"+SUMIFS('PdI-crono_inv'!BB:BB,'PdI-crono_inv'!CF:CF,F492,'PdI-crono_inv'!CE:CE,H492,'PdI-crono_inv'!J:J,P492,'PdI-crono_inv'!P:P,\"<>proprietario\")","v":0},null,{"$f":"+SUMIFS('PdI-crono_inv'!BC:BC,'PdI-crono_inv'!CF:CF,F492,'PdI-crono_inv'!CE:CE,H492,'PdI-crono_inv'!J:J,P492,'PdI-crono_inv'!P:P,\"<>proprietario\")+S492","v":0},null,null,"RES",{"$f":"+VLOOKUP(F492,TT_Tabelle_Riferimento!$D$127:$E$164,2,FALSE)","v":"Comune"},"",0]
[0,0,"Gestore",0,"IP",33,{"$f":"+VLOOKUP(F493,TT_Tabelle_Riferimento!$D$127:$G$164,4,FALSE)","v":"Fabbricati non industriali"},1,{"$f":"+VLOOKUP(H493,TT_Tabelle_Riferimento!$F$3:$G$6,2,FALSE)","v":"Servizio idrico integrato"},2027,{"$f":"+SUMIFS('PdI-crono_inv'!BB:BB,'PdI-crono_inv'!CF:CF,F493,'PdI-crono_inv'!CE:CE,H493,'PdI-crono_inv'!J:J,P493,'PdI-crono_inv'!P:P,\"<>proprietario\")","v":0},null,{"$f":"+SUMIFS('PdI-crono_inv'!BC:BC,'PdI-crono_inv'!CF:CF,F493,'PdI-crono_inv'!CE:CE,H493,'PdI-crono_inv'!J:J,P493,'PdI-crono_inv'!P:P,\"<>proprietario\")+S493","v":0},null,null,"RES",{"$f":"+VLOOKUP(F493,TT_Tabelle_Riferimento!$D$127:$E$164,2,FALSE)","v":"Comune"},"",0]
[0,0,"Gestore",0,"IP",34,{"$f":"+VLOOKUP(F494,TT_Tabelle_Riferimento!$D$127:$G$164,4,FALSE)","v":"Fabbricati industriali"},1,{"$f":"+VLOOKUP(H494,TT_Tabelle_Riferimento!$F$3:$G$6,2,FALSE)","v":"Servizio idrico integrato"},2027,{"$f":"+SUMIFS('PdI-crono_inv'!BB:BB,'PdI-crono_inv'!CF:CF,F494,'PdI-crono_inv'!CE:CE,H494,'PdI-crono_inv'!J:J,P494,'PdI-crono_inv'!P:P,\"<>proprietario\")","v":0},null,{"$f":"+SUMIFS('PdI-crono_inv'!BC:BC,'PdI-crono_inv'!CF:CF,F494,'PdI-crono_inv'!CE:CE,H494,'PdI-crono_inv'!J:J,P494,'PdI-crono_inv'!P:P,\"<>proprietario\")+S494","v":0},null,null,"RES",{"$f":"+VLOOKUP(F494,TT_Tabelle_Riferimento!$D$127:$E$164,2,FALSE)","v":"Comune"},"",0]
[0,0,"Gestore",0,"IP",35,{"$f":"+VLOOKUP(F495,TT_Tabelle_Riferimento!$D$127:$G$164,4,FALSE)","v":"Costruzioni leggere"},1,{"$f":"+VLOOKUP(H495,TT_Tabelle_Riferimento!$F$3:$G$6,2,FALSE)","v":"Servizio idrico integrato"},2027,{"$f":"+SUMIFS('PdI-crono_inv'!BB:BB,'PdI-crono_inv'!CF:CF,F495,'PdI-crono_inv'!CE:CE,H495,'PdI-crono_inv'!J:J,P495,'PdI-crono_inv'!P:P,\"<>proprietario\")","v":0},null,{"$f":"+SUMIFS('PdI-crono_inv'!BC:BC,'PdI-crono_inv'!CF:CF,F495,'PdI-crono_inv'!CE:CE,H495,'PdI-crono_inv'!J:J,P495,'PdI-crono_inv'!P:P,\"<>proprietario\")+S495","v":0},null,null,"RES",{"$f":"+VLOOKUP(F495,TT_Tabelle_Riferimento!$D$127:$E$164,2,FALSE)","v":"Comune"},"",0]
[0,0,"Gestore",0,"IP",36,{"$f":"+VLOOKUP(F496,TT_Tabelle_Riferimento!$D$127:$G$164,4,FALSE)","v":"Studi, ricerche, brevetti, diritti di utilizzazione"},1,{"$f":"+VLOOKUP(H496,TT_Tabelle_Riferimento!$F$3:$G$6,2,FALSE)","v":"Servizio idrico integrato"},2027,{"$f":"+SUMIFS('PdI-crono_inv'!BB:BB,'PdI-crono_inv'!CF:CF,F496,'PdI-crono_inv'!CE:CE,H496,'PdI-crono_inv'!J:J,P496,'PdI-crono_inv'!P:P,\"<>proprietario\")","v":0},null,{"$f":"+SUMIFS('PdI-crono_inv'!BC:BC,'PdI-crono_inv'!CF:CF,F496,'PdI-crono_inv'!CE:CE,H496,'PdI-crono_inv'!J:J,P496,'PdI-crono_inv'!P:P,\"<>proprietario\")+S496","v":0},null,null,"RES",{"$f":"+VLOOKUP(F496,TT_Tabelle_Riferimento!$D$127:$E$164,2,FALSE)","v":"Comune"},"",0]
[0,0,"Gestore",0,"IP",37,{"$f":"+VLOOKUP(F497,TT_Tabelle_Riferimento!$D$127:$G$164,4,FALSE)","v":"Altre immobilizzazioni materiali e immateriali"},1,{"$f":"+VLOOKUP(H497,TT_Tabelle_Riferimento!$F$3:$G$6,2,FALSE)","v":"Servizio idrico integrato"},2027,{"$f":"+SUMIFS('PdI-crono_inv'!BB:BB,'PdI-crono_inv'!CF:CF,F497,'PdI-crono_inv'!CE:CE,H497,'PdI-crono_inv'!J:J,P497,'PdI-crono_inv'!P:P,\"<>proprietario\")","v":0},null,{"$f":"+SUMIFS('PdI-crono_inv'!BC:BC,'PdI-crono_inv'!CF:CF,F497,'PdI-crono_inv'!CE:CE,H497,'PdI-crono_inv'!J:J,P497,'PdI-crono_inv'!P:P,\"<>proprietario\")+S497","v":0},null,null,"RES",{"$f":"+VLOOKUP(F497,TT_Tabelle_Riferimento!$D$127:$E$164,2,FALSE)","v":"Comune"},"",0]
[0,0,"Gestore",0,"IP",38,{"$f":"+VLOOKUP(F498,TT_Tabelle_Riferimento!$D$127:$G$164,4,FALSE)","v":"Grandi dighe (sbarramenti che superano i quindici metri di altezza o che determinano un invaso superiore a 1 milione di metri cubi)"},1,{"$f":"+VLOOKUP(H498,TT_Tabelle_Riferimento!$F$3:$G$6,2,FALSE)","v":"Servizio idrico integrato"},2027,{"$f":"+SUMIFS('PdI-crono_inv'!BB:BB,'PdI-crono_inv'!CF:CF,F498,'PdI-crono_inv'!CE:CE,H498,'PdI-crono_inv'!J:J,P498,'PdI-crono_inv'!P:P,\"<>proprietario\")","v":0},null,{"$f":"+SUMIFS('PdI-crono_inv'!BC:BC,'PdI-crono_inv'!CF:CF,F498,'PdI-crono_inv'!CE:CE,H498,'PdI-crono_inv'!J:J,P498,'PdI-crono_inv'!P:P,\"<>proprietario\")+S498","v":0},null,null,"RES",{"$f":"+VLOOKUP(F498,TT_Tabelle_Riferimento!$D$127:$E$164,2,FALSE)","v":"Acquedotto"},"",0]
[0,0,"Gestore",0,"IP",39,{"$f":"+VLOOKUP(F499,TT_Tabelle_Riferimento!$D$127:$G$164,4,FALSE)","v":"Piccole dighe (sbarramenti che non superano i quindici metri di altezza o che determinano un invaso non superiore a 1 milione di metri cubi)"},1,{"$f":"+VLOOKUP(H499,TT_Tabelle_Riferimento!$F$3:$G$6,2,FALSE)","v":"Servizio idrico integrato"},2027,{"$f":"+SUMIFS('PdI-crono_inv'!BB:BB,'PdI-crono_inv'!CF:CF,F499,'PdI-crono_inv'!CE:CE,H499,'PdI-crono_inv'!J:J,P499,'PdI-crono_inv'!P:P,\"<>proprietario\")","v":0},null,{"$f":"+SUMIFS('PdI-crono_inv'!BC:BC,'PdI-crono_inv'!CF:CF,F499,'PdI-crono_inv'!CE:CE,H499,'PdI-crono_inv'!J:J,P499,'PdI-crono_inv'!P:P,\"<>proprietario\")+S499","v":0},null,null,"RES",{"$f":"+VLOOKUP(F499,TT_Tabelle_Riferimento!$D$127:$E$164,2,FALSE)","v":"Acquedotto"},"",0]
[{"$f":"+idato","v":0},{"$f":"+idgestore","v":0},"Gestore",0,"IP",2,{"$f":"+VLOOKUP(F500,TT_Tabelle_Riferimento!$D$127:$G$164,4,FALSE)","v":"Condotte di acquedotto"},2,{"$f":"+VLOOKUP(H500,TT_Tabelle_Riferimento!$F$3:$G$6,2,FALSE)","v":"Fognatura bianca e pulizia / manutenzione caditoie stradali"},2027,{"$f":"+SUMIFS('PdI-crono_inv'!BB:BB,'PdI-crono_inv'!CF:CF,F500,'PdI-crono_inv'!CE:CE,H500,'PdI-crono_inv'!J:J,P500,'PdI-crono_inv'!P:P,\"<>proprietario\")","v":0},null,{"$f":"+SUMIFS('PdI-crono_inv'!BC:BC,'PdI-crono_inv'!CF:CF,F500,'PdI-crono_inv'!CE:CE,H500,'PdI-crono_inv'!J:J,P500,'PdI-crono_inv'!P:P,\"<>proprietario\")+S500","v":0},null,null,"RES",{"$f":"+VLOOKUP(F500,TT_Tabelle_Riferimento!$D$127:$E$164,2,FALSE)","v":"Acquedotto"},"",0]
[0,0,"Gestore",0,"IP",3,{"$f":"+VLOOKUP(F501,TT_Tabelle_Riferimento!$D$127:$G$164,4,FALSE)","v":"Opere idrauliche fisse di acquedotto"},2,{"$f":"+VLOOKUP(H501,TT_Tabelle_Riferimento!$F$3:$G$6,2,FALSE)","v":"Fognatura bianca e pulizia / manutenzione caditoie stradali"},2027,{"$f":"+SUMIFS('PdI-crono_inv'!BB:BB,'PdI-crono_inv'!CF:CF,F501,'PdI-crono_inv'!CE:CE,H501,'PdI-crono_inv'!J:J,P501,'PdI-crono_inv'!P:P,\"<>proprietario\")","v":0},null,{"$f":"+SUMIFS('PdI-crono_inv'!BC:BC,'PdI-crono_inv'!CF:CF,F501,'PdI-crono_inv'!CE:CE,H501,'PdI-crono_inv'!J:J,P501,'PdI-crono_inv'!P:P,\"<>proprietario\")+S501","v":0},null,null,"RES",{"$f":"+VLOOKUP(F501,TT_Tabelle_Riferimento!$D$127:$E$164,2,FALSE)","v":"Acquedotto"},"",0]
[0,0,"Gestore",0,"IP",4,{"$f":"+VLOOKUP(F502,TT_Tabelle_Riferimento!$D$127:$G$164,4,FALSE)","v":"Serbatoi"},2,{"$f":"+VLOOKUP(H502,TT_Tabelle_Riferimento!$F$3:$G$6,2,FALSE)","v":"Fognatura bianca e pulizia / manutenzione caditoie stradali"},2027,{"$f":"+SUMIFS('PdI-crono_inv'!BB:BB,'PdI-crono_inv'!CF:CF,F502,'PdI-crono_inv'!CE:CE,H502,'PdI-crono_inv'!J:J,P502,'PdI-crono_inv'!P:P,\"<>proprietario\")","v":0},null,{"$f":"+SUMIFS('PdI-crono_inv'!BC:BC,'PdI-crono_inv'!CF:CF,F502,'PdI-crono_inv'!CE:CE,H502,'PdI-crono_inv'!J:J,P502,'PdI-crono_inv'!P:P,\"<>proprietario\")+S502","v":0},null,null,"RES",{"$f":"+VLOOKUP(F502,TT_Tabelle_Riferimento!$D$127:$E$164,2,FALSE)","v":"Acquedotto"},"",0]
[0,0,"Gestore",0,"IP",5,{"$f":"+VLOOKUP(F503,TT_Tabelle_Riferimento!$D$127:$G$164,4,FALSE)","v":"Impianti di sollevamento e pompaggio di acquedotto"},2,{"$f":"+VLOOKUP(H503,TT_Tabelle_Riferimento!$F$3:$G$6,2,FALSE)","v":"Fognatura bianca e pulizia / manutenzione caditoie stradali"},2027,{"$f":"+SUMIFS('PdI-crono_inv'!BB:BB,'PdI-crono_inv'!CF:CF,F503,'PdI-crono_inv'!CE:CE,H503,'PdI-crono_inv'!J:J,P503,'PdI-crono_inv'!P:P,\"<>proprietario\")","v":0},null,{"$f":"+SUMIFS('PdI-crono_inv'!BC:BC,'PdI-crono_inv'!CF:CF,F503,'PdI-crono_inv'!CE:CE,H503,'PdI-crono_inv'!J:J,P503,'PdI-crono_inv'!P:P,\"<>proprietario\")+S503","v":0},null,null,"RES",{"$f":"+VLOOKUP(F503,TT_Tabelle_Riferimento!$D$127:$E$164,2,FALSE)","v":"Acquedotto"},"",0]
[0,0,"Gestore",0,"IP",6,{"$f":"+VLOOKUP(F504,TT_Tabelle_Riferimento!$D$127:$G$164,4,FALSE)","v":"Impianti di potabilizzazione"},2,{"$f":"+VLOOKUP(H504,TT_Tabelle_Riferimento!$F$3:$G$6,2,FALSE)","v":"Fognatura bianca e pulizia / manutenzione caditoie stradali"},2027,{"$f":"+SUMIFS('PdI-crono_inv'!BB:BB,'PdI-crono_inv'!CF:CF,F504,'PdI-crono_inv'!CE:CE,H504,'PdI-crono_inv'!J:J,P504,'PdI-crono_inv'!P:P,\"<>proprietario\")","v":0},null,{"$f":"+SUMIFS('PdI-crono_inv'!BC:BC,'PdI-crono_inv'!CF:CF,F504,'PdI-crono_inv'!CE:CE,H504,'PdI-crono_inv'!J:J,P504,'PdI-crono_inv'!P:P,\"<>proprietario\")+S504","v":0},null,null,"RES",{"$f":"+VLOOKUP(F504,TT_Tabelle_Riferimento!$D$127:$E$164,2,FALSE)","v":"Acquedotto"},"",0]
[0,0,"Gestore",0,"IP",7,{"$f":"+VLOOKUP(F505,TT_Tabelle_Riferimento!$D$127:$G$164,4,FALSE)","v":"Altri trattamenti di potabilizzazione (tra cui dispositivi di disinfezione, stacciatura, filtrazione, addolcimento)"},2,{"$f":"+VLOOKUP(H505,TT_Tabelle_Riferimento!$F$3:$G$6,2,FALSE)","v":"Fognatura bianca e pulizia / manutenzione caditoie stradali"},2027,{"$f":"+SUMIFS('PdI-crono_inv'!BB:BB,'PdI-crono_inv'!CF:CF,F505,'PdI-crono_inv'!CE:CE,H505,'PdI-crono_inv'!J:J,P505,'PdI-crono_inv'!P:P,\"<>proprietario\")","v":0},null,{"$f":"+SUMIFS('PdI-crono_inv'!BC:BC,'PdI-crono_inv'!CF:CF,F505,'PdI-crono_inv'!CE:CE,H505,'PdI-crono_inv'!J:J,P505,'PdI-crono_inv'!P:P,\"<>proprietario\")+S505","v":0},null,null,"RES",{"$f":"+VLOOKUP(F505,TT_Tabelle_Riferimento!$D$127:$E$164,2,FALSE)","v":"Acquedotto"},"",0]
[0,0,"Gestore",0,"IP",8,{"$f":"+VLOOKUP(F506,TT_Tabelle_Riferimento!$D$127:$G$164,4,FALSE)","v":"Gruppi di misura - altre attrezzature di acquedotto"},2,{"$f":"+VLOOKUP(H506,TT_Tabelle_Riferimento!$F$3:$G$6,2,FALSE)","v":"Fognatura bianca e pulizia / manutenzione caditoie stradali"},2027,{"$f":"+SUMIFS('PdI-crono_inv'!BB:BB,'PdI-crono_inv'!CF:CF,F506,'PdI-crono_inv'!CE:CE,H506,'PdI-crono_inv'!J:J,P506,'PdI-crono_inv'!P:P,\"<>proprietario\")","v":0},null,{"$f":"+SUMIFS('PdI-crono_inv'!BC:BC,'PdI-crono_inv'!CF:CF,F506,'PdI-crono_inv'!CE:CE,H506,'PdI-crono_inv'!J:J,P506,'PdI-crono_inv'!P:P,\"<>proprietario\")+S506","v":0},null,null,"RES",{"$f":"+VLOOKUP(F506,TT_Tabelle_Riferimento!$D$127:$E$164,2,FALSE)","v":"Acquedotto"},"",0]
[0,0,"Gestore",0,"IP",9,{"$f":"+VLOOKUP(F507,TT_Tabelle_Riferimento!$D$127:$G$164,4,FALSE)","v":"Sistemi informativi di acquedotto"},2,{"$f":"+VLOOKUP(H507,TT_Tabelle_Riferimento!$F$3:$G$6,2,FALSE)","v":"Fognatura bianca e pulizia / manutenzione caditoie stradali"},2027,{"$f":"+SUMIFS('PdI-crono_inv'!BB:BB,'PdI-crono_inv'!CF:CF,F507,'PdI-crono_inv'!CE:CE,H507,'PdI-crono_inv'!J:J,P507,'PdI-crono_inv'!P:P,\"<>proprietario\")","v":0},null,{"$f":"+SUMIFS('PdI-crono_inv'!BC:BC,'PdI-crono_inv'!CF:CF,F507,'PdI-crono_inv'!CE:CE,H507,'PdI-crono_inv'!J:J,P507,'PdI-crono_inv'!P:P,\"<>proprietario\")+S507","v":0},null,null,"RES",{"$f":"+VLOOKUP(F507,TT_Tabelle_Riferimento!$D$127:$E$164,2,FALSE)","v":"Acquedotto"},"",0]
[0,0,"Gestore",0,"IP",10,{"$f":"+VLOOKUP(F508,TT_Tabelle_Riferimento!$D$127:$G$164,4,FALSE)","v":"Telecontrollo e teletrasmissione di acquedotto"},2,{"$f":"+VLOOKUP(H508,TT_Tabelle_Riferimento!$F$3:$G$6,2,FALSE)","v":"Fognatura bianca e pulizia / manutenzione caditoie stradali"},2027,{"$f":"+SUMIFS('PdI-crono_inv'!BB:BB,'PdI-crono_inv'!CF:CF,F508,'PdI-crono_inv'!CE:CE,H508,'PdI-crono_inv'!J:J,P508,'PdI-crono_inv'!P:P,\"<>proprietario\")","v":0},null,{"$f":"+SUMIFS('PdI-crono_inv'!BC:BC,'PdI-crono_inv'!CF:CF,F508,'PdI-crono_inv'!CE:CE,H508,'PdI-crono_inv'!J:J,P508,'PdI-crono_inv'!P:P,\"<>proprietario\")+S508","v":0},null,null,"RES",{"$f":"+VLOOKUP(F508,TT_Tabelle_Riferimento!$D$127:$E$164,2,FALSE)","v":"Acquedotto"},"",0]
[0,0,"Gestore",0,"IP",11,{"$f":"+VLOOKUP(F509,TT_Tabelle_Riferimento!$D$127:$G$164,4,FALSE)","v":"Condotte fognarie"},2,{"$f":"+VLOOKUP(H509,TT_Tabelle_Riferimento!$F$3:$G$6,2,FALSE)","v":"Fognatura bianca e pulizia / manutenzione caditoie stradali"},2027,{"$f":"+SUMIFS('PdI-crono_inv'!BB:BB,'PdI-crono_inv'!CF:CF,F509,'PdI-crono_inv'!CE:CE,H509,'PdI-crono_inv'!J:J,P509,'PdI-crono_inv'!P:P,\"<>proprietario\")","v":0},null,{"$f":"+SUMIFS('PdI-crono_inv'!BC:BC,'PdI-crono_inv'!CF:CF,F509,'PdI-crono_inv'!CE:CE,H509,'PdI-crono_inv'!J:J,P509,'PdI-crono_inv'!P:P,\"<>proprietario\")+S509","v":0},null,null,"RES",{"$f":"+VLOOKUP(F509,TT_Tabelle_Riferimento!$D$127:$E$164,2,FALSE)","v":"Fognatura"},"",0]
[0,0,"Gestore",0,"IP",12,{"$f":"+VLOOKUP(F510,TT_Tabelle_Riferimento!$D$127:$G$164,4,FALSE)","v":"Sifoni e scaricatori di piena e altre opere idrauliche fisse di fognatura"},2,{"$f":"+VLOOKUP(H510,TT_Tabelle_Riferimento!$F$3:$G$6,2,FALSE)","v":"Fognatura bianca e pulizia / manutenzione caditoie stradali"},2027,{"$f":"+SUMIFS('PdI-crono_inv'!BB:BB,'PdI-crono_inv'!CF:CF,F510,'PdI-crono_inv'!CE:CE,H510,'PdI-crono_inv'!J:J,P510,'PdI-crono_inv'!P:P,\"<>proprietario\")","v":0},null,{"$f":"+SUMIFS('PdI-crono_inv'!BC:BC,'PdI-crono_inv'!CF:CF,F510,'PdI-crono_inv'!CE:CE,H510,'PdI-crono_inv'!J:J,P510,'PdI-crono_inv'!P:P,\"<>proprietario\")+S510","v":0},null,null,"RES",{"$f":"+VLOOKUP(F510,TT_Tabelle_Riferimento!$D$127:$E$164,2,FALSE)","v":"Fognatura"},"",0]
[0,0,"Gestore",0,"IP",13,{"$f":"+VLOOKUP(F511,TT_Tabelle_Riferimento!$D$127:$G$164,4,FALSE)","v":"Vasche di laminazione e vasche di prima pioggia"},2,{"$f":"+VLOOKUP(H511,TT_Tabelle_Riferimento!$F$3:$G$6,2,FALSE)","v":"Fognatura bianca e pulizia / manutenzione caditoie stradali"},2027,{"$f":"+SUMIFS('PdI-crono_inv'!BB:BB,'PdI-crono_inv'!CF:CF,F511,'PdI-crono_inv'!CE:CE,H511,'PdI-crono_inv'!J:J,P511,'PdI-crono_inv'!P:P,\"<>proprietario\")","v":0},null,{"$f":"+SUMIFS('PdI-crono_inv'!BC:BC,'PdI-crono_inv'!CF:CF,F511,'PdI-crono_inv'!CE:CE,H511,'PdI-crono_inv'!J:J,P511,'PdI-crono_inv'!P:P,\"<>proprietario\")+S511","v":0},null,null,"RES",{"$f":"+VLOOKUP(F511,TT_Tabelle_Riferimento!$D$127:$E$164,2,FALSE)","v":"Fognatura"},"",0]
[0,0,"Gestore",0,"IP",14,{"$f":"+VLOOKUP(F512,TT_Tabelle_Riferimento!$D$127:$G$164,4,FALSE)","v":"Impianti di sollevamento e pompaggio di fognatura"},2,{"$f":"+VLOOKUP(H512,TT_Tabelle_Riferimento!$F$3:$G$6,2,FALSE)","v":"Fognatura bianca e pulizia / manutenzione caditoie stradali"},2027,{"$f":"+SUMIFS('PdI-crono_inv'!BB:BB,'PdI-crono_inv'!CF:CF,F512,'PdI-crono_inv'!CE:CE,H512,'PdI-crono_inv'!J:J,P512,'PdI-crono_inv'!P:P,\"<>proprietario\")","v":0},null,{"$f":"+SUMIFS('PdI-crono_inv'!BC:BC,'PdI-crono_inv'!CF:CF,F512,'PdI-crono_inv'!CE:CE,H512,'PdI-crono_inv'!J:J,P512,'PdI-crono_inv'!P:P,\"<>proprietario\")+S512","v":0},null,null,"RES",{"$f":"+VLOOKUP(F512,TT_Tabelle_Riferimento!$D$127:$E$164,2,FALSE)","v":"Fognatura"},"",0]
[0,0,"Gestore",0,"IP",15,{"$f":"+VLOOKUP(F513,TT_Tabelle_Riferimento!$D$127:$G$164,4,FALSE)","v":"Gruppi di misura - altre attrezzature di fognatura"},2,{"$f":"+VLOOKUP(H513,TT_Tabelle_Riferimento!$F$3:$G$6,2,FALSE)","v":"Fognatura bianca e pulizia / manutenzione caditoie stradali"},2027,{"$f":"+SUMIFS('PdI-crono_inv'!BB:BB,'PdI-crono_inv'!CF:CF,F513,'PdI-crono_inv'!CE:CE,H513,'PdI-crono_inv'!J:J,P513,'PdI-crono_inv'!P:P,\"<>proprietario\")","v":0},null,{"$f":"+SUMIFS('PdI-crono_inv'!BC:BC,'PdI-crono_inv'!CF:CF,F513,'PdI-crono_inv'!CE:CE,H513,'PdI-crono_inv'!J:J,P513,'PdI-crono_inv'!P:P,\"<>proprietario\")+S513","v":0},null,null,"RES",{"$f":"+VLOOKUP(F513,TT_Tabelle_Riferimento!$D$127:$E$164,2,FALSE)","v":"Fognatura"},"",0]
[0,0,"Gestore",0,"IP",16,{"$f":"+VLOOKUP(F514,TT_Tabelle_Riferimento!$D$127:$G$164,4,FALSE)","v":"Sistemi informativi di fognatura"},2,{"$f":"+VLOOKUP(H514,TT_Tabelle_Riferimento!$F$3:$G$6,2,FALSE)","v":"Fognatura bianca e pulizia / manutenzione caditoie stradali"},2027,{"$f":"+SUMIFS('PdI-crono_inv'!BB:BB,'PdI-crono_inv'!CF:CF,F514,'PdI-crono_inv'!CE:CE,H514,'PdI-crono_inv'!J:J,P514,'PdI-crono_inv'!P:P,\"<>proprietario\")","v":0},null,{"$f":"+SUMIFS('PdI-crono_inv'!BC:BC,'PdI-crono_inv'!CF:CF,F514,'PdI-crono_inv'!CE:CE,H514,'PdI-crono_inv'!J:J,P514,'PdI-crono_inv'!P:P,\"<>proprietario\")+S514","v":0},null,null,"RES",{"$f":"+VLOOKUP(F514,TT_Tabelle_Riferimento!$D$127:$E$164,2,FALSE)","v":"Fognatura"},{"$f":"+IF(SUM(K514:N514)=0,\"\",\"PdI_consolidamento\")","v":""},0]
[0,0,"Gestore",0,"IP",18,{"$f":"+VLOOKUP(F515,TT_Tabelle_Riferimento!$D$127:$G$164,4,FALSE)","v":"Telecontrollo e teletrasmissione di fognatura"},2,{"$f":"+VLOOKUP(H515,TT_Tabelle_Riferimento!$F$3:$G$6,2,FALSE)","v":"Fognatura bianca e pulizia / manutenzione caditoie stradali"},2027,{"$f":"+SUMIFS('PdI-crono_inv'!BB:BB,'PdI-crono_inv'!CF:CF,F515,'PdI-crono_inv'!CE:CE,H515,'PdI-crono_inv'!J:J,P515,'PdI-crono_inv'!P:P,\"<>proprietario\")","v":0},null,{"$f":"+SUMIFS('PdI-crono_inv'!BC:BC,'PdI-crono_inv'!CF:CF,F515,'PdI-crono_inv'!CE:CE,H515,'PdI-crono_inv'!J:J,P515,'PdI-crono_inv'!P:P,\"<>proprietario\")+S515","v":0},null,null,"RES",{"$f":"+VLOOKUP(F515,TT_Tabelle_Riferimento!$D$127:$E$164,2,FALSE)","v":"Fognatura"},"",0]
[0,0,"Gestore",0,"IP",19,{"$f":"+VLOOKUP(F516,TT_Tabelle_Riferimento!$D$127:$G$164,4,FALSE)","v":"Impianti di sollevamento e pompaggio di depurazione"},2,{"$f":"+VLOOKUP(H516,TT_Tabelle_Riferimento!$F$3:$G$6,2,FALSE)","v":"Fognatura bianca e pulizia / manutenzione caditoie stradali"},2027,{"$f":"+SUMIFS('PdI-crono_inv'!BB:BB,'PdI-crono_inv'!CF:CF,F516,'PdI-crono_inv'!CE:CE,H516,'PdI-crono_inv'!J:J,P516,'PdI-crono_inv'!P:P,\"<>proprietario\")","v":0},null,{"$f":"+SUMIFS('PdI-crono_inv'!BC:BC,'PdI-crono_inv'!CF:CF,F516,'PdI-crono_inv'!CE:CE,H516,'PdI-crono_inv'!J:J,P516,'PdI-crono_inv'!P:P,\"<>proprietario\")+S516","v":0},null,null,"RES",{"$f":"+VLOOKUP(F516,TT_Tabelle_Riferimento!$D$127:$E$164,2,FALSE)","v":"Depurazione"},"",0]
[0,0,"Gestore",0,"IP",20,{"$f":"+VLOOKUP(F517,TT_Tabelle_Riferimento!$D$127:$G$164,4,FALSE)","v":"Tecniche naturali di depurazione (tra cui fitodepurazione e lagunaggio)"},2,{"$f":"+VLOOKUP(H517,TT_Tabelle_Riferimento!$F$3:$G$6,2,FALSE)","v":"Fognatura bianca e pulizia / manutenzione caditoie stradali"},2027,{"$f":"+SUMIFS('PdI-crono_inv'!BB:BB,'PdI-crono_inv'!CF:CF,F517,'PdI-crono_inv'!CE:CE,H517,'PdI-crono_inv'!J:J,P517,'PdI-crono_inv'!P:P,\"<>proprietario\")","v":0},null,{"$f":"+SUMIFS('PdI-crono_inv'!BC:BC,'PdI-crono_inv'!CF:CF,F517,'PdI-crono_inv'!CE:CE,H517,'PdI-crono_inv'!J:J,P517,'PdI-crono_inv'!P:P,\"<>proprietario\")+S517","v":0},null,null,"RES",{"$f":"+VLOOKUP(F517,TT_Tabelle_Riferimento!$D$127:$E$164,2,FALSE)","v":"Depurazione"},"",0]
[0,0,"Gestore",0,"IP",21,{"$f":"+VLOOKUP(F518,TT_Tabelle_Riferimento!$D$127:$G$164,4,FALSE)","v":"Impianti di depurazione – trattamenti sino al preliminare, integrativo, primario - fosse settiche e fosse Imhoff"},2,{"$f":"+VLOOKUP(H518,TT_Tabelle_Riferimento!$F$3:$G$6,2,FALSE)","v":"Fognatura bianca e pulizia / manutenzione caditoie stradali"},2027,{"$f":"+SUMIFS('PdI-crono_inv'!BB:BB,'PdI-crono_inv'!CF:CF,F518,'PdI-crono_inv'!CE:CE,H518,'PdI-crono_inv'!J:J,P518,'PdI-crono_inv'!P:P,\"<>proprietario\")","v":0},null,{"$f":"+SUMIFS('PdI-crono_inv'!BC:BC,'PdI-crono_inv'!CF:CF,F518,'PdI-crono_inv'!CE:CE,H518,'PdI-crono_inv'!J:J,P518,'PdI-crono_inv'!P:P,\"<>proprietario\")+S518","v":0},null,null,"RES",{"$f":"+VLOOKUP(F518,TT_Tabelle_Riferimento!$D$127:$E$164,2,FALSE)","v":"Depurazione"},"",0]
[0,0,"Gestore",0,"IP",22,{"$f":"+VLOOKUP(F519,TT_Tabelle_Riferimento!$D$127:$G$164,4,FALSE)","v":"Impianti di depurazione – trattamenti sino al secondario"},2,{"$f":"+VLOOKUP(H519,TT_Tabelle_Riferimento!$F$3:$G$6,2,FALSE)","v":"Fognatura bianca e pulizia / manutenzione caditoie stradali"},2027,{"$f":"+SUMIFS('PdI-crono_inv'!BB:BB,'PdI-crono_inv'!CF:CF,F519,'PdI-crono_inv'!CE:CE,H519,'PdI-crono_inv'!J:J,P519,'PdI-crono_inv'!P:P,\"<>proprietario\")","v":0},null,{"$f":"+SUMIFS('PdI-crono_inv'!BC:BC,'PdI-crono_inv'!CF:CF,F519,'PdI-crono_inv'!CE:CE,H519,'PdI-crono_inv'!J:J,P519,'PdI-crono_inv'!P:P,\"<>proprietario\")+S519","v":0},null,null,"RES",{"$f":"+VLOOKUP(F519,TT_Tabelle_Riferimento!$D$127:$E$164,2,FALSE)","v":"Depurazione"},"",{"$f":"+IFERROR(HLOOKUP(J519,$X$2:$Y$5,4,FALSE)*K519,0)","v":0}]
[0,0,"Gestore",0,"IP",23,{"$f":"+VLOOKUP(F520,TT_Tabelle_Riferimento!$D$127:$G$164,4,FALSE)","v":"Impianti di depurazione – trattamenti sino al terziario e terziario avanzato"},2,{"$f":"+VLOOKUP(H520,TT_Tabelle_Riferimento!$F$3:$G$6,2,FALSE)","v":"Fognatura bianca e pulizia / manutenzione caditoie stradali"},2027,{"$f":"+SUMIFS('PdI-crono_inv'!BB:BB,'PdI-crono_inv'!CF:CF,F520,'PdI-crono_inv'!CE:CE,H520,'PdI-crono_inv'!J:J,P520,'PdI-crono_inv'!P:P,\"<>proprietario\")","v":0},null,{"$f":"+SUMIFS('PdI-crono_inv'!BC:BC,'PdI-crono_inv'!CF:CF,F520,'PdI-crono_inv'!CE:CE,H520,'PdI-crono_inv'!J:J,P520,'PdI-crono_inv'!P:P,\"<>proprietario\")+S520","v":0},null,null,"RES",{"$f":"+VLOOKUP(F520,TT_Tabelle_Riferimento!$D$127:$E$164,2,FALSE)","v":"Depurazione"},"",0]
[0,0,"Gestore",0,"IP",24,{"$f":"+VLOOKUP(F521,TT_Tabelle_Riferimento!$D$127:$G$164,4,FALSE)","v":"Impianti di essiccamento fanghi e di valorizzazione dei fanghi (tra cui mono-incenerimento, pirolisi, gassificazione)"},2,{"$f":"+VLOOKUP(H521,TT_Tabelle_Riferimento!$F$3:$G$6,2,FALSE)","v":"Fognatura bianca e pulizia / manutenzione caditoie stradali"},2027,{"$f":"+SUMIFS('PdI-crono_inv'!BB:BB,'PdI-crono_inv'!CF:CF,F521,'PdI-crono_inv'!CE:CE,H521,'PdI-crono_inv'!J:J,P521,'PdI-crono_inv'!P:P,\"<>proprietario\")","v":0},null,{"$f":"+SUMIFS('PdI-crono_inv'!BC:BC,'PdI-crono_inv'!CF:CF,F521,'PdI-crono_inv'!CE:CE,H521,'PdI-crono_inv'!J:J,P521,'PdI-crono_inv'!P:P,\"<>proprietario\")+S521","v":0},null,null,"RES",{"$f":"+VLOOKUP(F521,TT_Tabelle_Riferimento!$D$127:$E$164,2,FALSE)","v":"Depurazione"},"",0]
[0,0,"Gestore",0,"IP",25,{"$f":"+VLOOKUP(F522,TT_Tabelle_Riferimento!$D$127:$G$164,4,FALSE)","v":"Gruppi di misura - altre attrezzature di depurazione"},2,{"$f":"+VLOOKUP(H522,TT_Tabelle_Riferimento!$F$3:$G$6,2,FALSE)","v":"Fognatura bianca e pulizia / manutenzione caditoie stradali"},2027,{"$f":"+SUMIFS('PdI-crono_inv'!BB:BB,'PdI-crono_inv'!CF:CF,F522,'PdI-crono_inv'!CE:CE,H522,'PdI-crono_inv'!J:J,P522,'PdI-crono_inv'!P:P,\"<>proprietario\")","v":0},null,{"$f":"+SUMIFS('PdI-crono_inv'!BC:BC,'PdI-crono_inv'!CF:CF,F522,'PdI-crono_inv'!CE:CE,H522,'PdI-crono_inv'!J:J,P522,'PdI-crono_inv'!P:P,\"<>proprietario\")+S522","v":0},null,null,"RES",{"$f":"+VLOOKUP(F522,TT_Tabelle_Riferimento!$D$127:$E$164,2,FALSE)","v":"Depurazione"},"",0]
[0,0,"Gestore",0,"IP",26,{"$f":"+VLOOKUP(F523,TT_Tabelle_Riferimento!$D$127:$G$164,4,FALSE)","v":"Sistemi informativi di depurazione"},2,{"$f":"+VLOOKUP(H523,TT_Tabelle_Riferimento!$F$3:$G$6,2,FALSE)","v":"Fognatura bianca e pulizia / manutenzione caditoie stradali"},2027,{"$f":"+SUMIFS('PdI-crono_inv'!BB:BB,'PdI-crono_inv'!CF:CF,F523,'PdI-crono_inv'!CE:CE,H523,'PdI-crono_inv'!J:J,P523,'PdI-crono_inv'!P:P,\"<>proprietario\")","v":0},null,{"$f":"+SUMIFS('PdI-crono_inv'!BC:BC,'PdI-crono_inv'!CF:CF,F523,'PdI-crono_inv'!CE:CE,H523,'PdI-crono_inv'!J:J,P523,'PdI-crono_inv'!P:P,\"<>proprietario\")+S523","v":0},null,null,"RES",{"$f":"+VLOOKUP(F523,TT_Tabelle_Riferimento!$D$127:$E$164,2,FALSE)","v":"Depurazione"},"",0]
[0,0,"Gestore",0,"IP",27,{"$f":"+VLOOKUP(F524,TT_Tabelle_Riferimento!$D$127:$G$164,4,FALSE)","v":"Telecontrollo e teletrasmissione di depurazione"},2,{"$f":"+VLOOKUP(H524,TT_Tabelle_Riferimento!$F$3:$G$6,2,FALSE)","v":"Fognatura bianca e pulizia / manutenzione caditoie stradali"},2027,{"$f":"+SUMIFS('PdI-crono_inv'!BB:BB,'PdI-crono_inv'!CF:CF,F524,'PdI-crono_inv'!CE:CE,H524,'PdI-crono_inv'!J:J,P524,'PdI-crono_inv'!P:P,\"<>proprietario\")","v":0},null,{"$f":"+SUMIFS('PdI-crono_inv'!BC:BC,'PdI-crono_inv'!CF:CF,F524,'PdI-crono_inv'!CE:CE,H524,'PdI-crono_inv'!J:J,P524,'PdI-crono_inv'!P:P,\"<>proprietario\")+S524","v":0},null,null,"RES",{"$f":"+VLOOKUP(F524,TT_Tabelle_Riferimento!$D$127:$E$164,2,FALSE)","v":"Depurazione"},"",0]
[0,0,"Gestore",0,"IP",28,{"$f":"+VLOOKUP(F525,TT_Tabelle_Riferimento!$D$127:$G$164,4,FALSE)","v":"Altri impianti"},2,{"$f":"+VLOOKUP(H525,TT_Tabelle_Riferimento!$F$3:$G$6,2,FALSE)","v":"Fognatura bianca e pulizia / manutenzione caditoie stradali"},2027,{"$f":"+SUMIFS('PdI-crono_inv'!BB:BB,'PdI-crono_inv'!CF:CF,F525,'PdI-crono_inv'!CE:CE,H525,'PdI-crono_inv'!J:J,P525,'PdI-crono_inv'!P:P,\"<>proprietario\")","v":0},null,{"$f":"+SUMIFS('PdI-crono_inv'!BC:BC,'PdI-crono_inv'!CF:CF,F525,'PdI-crono_inv'!CE:CE,H525,'PdI-crono_inv'!J:J,P525,'PdI-crono_inv'!P:P,\"<>proprietario\")+S525","v":0},null,null,"RES",{"$f":"+VLOOKUP(F525,TT_Tabelle_Riferimento!$D$127:$E$164,2,FALSE)","v":"Comune"},"",0]
[0,0,"Gestore",0,"IP",29,{"$f":"+VLOOKUP(F526,TT_Tabelle_Riferimento!$D$127:$G$164,4,FALSE)","v":"Laboratori e attrezzature"},2,{"$f":"+VLOOKUP(H526,TT_Tabelle_Riferimento!$F$3:$G$6,2,FALSE)","v":"Fognatura bianca e pulizia / manutenzione caditoie stradali"},2027,{"$f":"+SUMIFS('PdI-crono_inv'!BB:BB,'PdI-crono_inv'!CF:CF,F526,'PdI-crono_inv'!CE:CE,H526,'PdI-crono_inv'!J:J,P526,'PdI-crono_inv'!P:P,\"<>proprietario\")","v":0},null,{"$f":"+SUMIFS('PdI-crono_inv'!BC:BC,'PdI-crono_inv'!CF:CF,F526,'PdI-crono_inv'!CE:CE,H526,'PdI-crono_inv'!J:J,P526,'PdI-crono_inv'!P:P,\"<>proprietario\")+S526","v":0},null,null,"RES",{"$f":"+VLOOKUP(F526,TT_Tabelle_Riferimento!$D$127:$E$164,2,FALSE)","v":"Comune"},"",0]
[0,0,"Gestore",0,"IP",30,{"$f":"+VLOOKUP(F527,TT_Tabelle_Riferimento!$D$127:$G$164,4,FALSE)","v":"Sistemi informativi"},2,{"$f":"+VLOOKUP(H527,TT_Tabelle_Riferimento!$F$3:$G$6,2,FALSE)","v":"Fognatura bianca e pulizia / manutenzione caditoie stradali"},2027,{"$f":"+SUMIFS('PdI-crono_inv'!BB:BB,'PdI-crono_inv'!CF:CF,F527,'PdI-crono_inv'!CE:CE,H527,'PdI-crono_inv'!J:J,P527,'PdI-crono_inv'!P:P,\"<>proprietario\")","v":0},null,{"$f":"+SUMIFS('PdI-crono_inv'!BC:BC,'PdI-crono_inv'!CF:CF,F527,'PdI-crono_inv'!CE:CE,H527,'PdI-crono_inv'!J:J,P527,'PdI-crono_inv'!P:P,\"<>proprietario\")+S527","v":0},null,null,"RES",{"$f":"+VLOOKUP(F527,TT_Tabelle_Riferimento!$D$127:$E$164,2,FALSE)","v":"Comune"},"",0]
[0,0,"Gestore",0,"IP",31,{"$f":"+VLOOKUP(F528,TT_Tabelle_Riferimento!$D$127:$G$164,4,FALSE)","v":"Telecontrollo e teletrasmissione"},2,{"$f":"+VLOOKUP(H528,TT_Tabelle_Riferimento!$F$3:$G$6,2,FALSE)","v":"Fognatura bianca e pulizia / manutenzione caditoie stradali"},2027,{"$f":"+SUMIFS('PdI-crono_inv'!BB:BB,'PdI-crono_inv'!CF:CF,F528,'PdI-crono_inv'!CE:CE,H528,'PdI-crono_inv'!J:J,P528,'PdI-crono_inv'!P:P,\"<>proprietario\")","v":0},null,{"$f":"+SUMIFS('PdI-crono_inv'!BC:BC,'PdI-crono_inv'!CF:CF,F528,'PdI-crono_inv'!CE:CE,H528,'PdI-crono_inv'!J:J,P528,'PdI-crono_inv'!P:P,\"<>proprietario\")+S528","v":0},null,null,"RES",{"$f":"+VLOOKUP(F528,TT_Tabelle_Riferimento!$D$127:$E$164,2,FALSE)","v":"Comune"},"",0]
[0,0,"Gestore",0,"IP",32,{"$f":"+VLOOKUP(F529,TT_Tabelle_Riferimento!$D$127:$G$164,4,FALSE)","v":"Autoveicoli - automezzi"},2,{"$f":"+VLOOKUP(H529,TT_Tabelle_Riferimento!$F$3:$G$6,2,FALSE)","v":"Fognatura bianca e pulizia / manutenzione caditoie stradali"},2027,{"$f":"+SUMIFS('PdI-crono_inv'!BB:BB,'PdI-crono_inv'!CF:CF,F529,'PdI-crono_inv'!CE:CE,H529,'PdI-crono_inv'!J:J,P529,'PdI-crono_inv'!P:P,\"<>proprietario\")","v":0},null,{"$f":"+SUMIFS('PdI-crono_inv'!BC:BC,'PdI-crono_inv'!CF:CF,F529,'PdI-crono_inv'!CE:CE,H529,'PdI-crono_inv'!J:J,P529,'PdI-crono_inv'!P:P,\"<>proprietario\")+S529","v":0},null,null,"RES",{"$f":"+VLOOKUP(F529,TT_Tabelle_Riferimento!$D$127:$E$164,2,FALSE)","v":"Comune"},"",0]
[0,0,"Gestore",0,"IP",1,{"$f":"+VLOOKUP(F530,TT_Tabelle_Riferimento!$D$127:$G$164,4,FALSE)","v":"Terreni"},2,{"$f":"+VLOOKUP(H530,TT_Tabelle_Riferimento!$F$3:$G$6,2,FALSE)","v":"Fognatura bianca e pulizia / manutenzione caditoie stradali"},2027,{"$f":"+SUMIFS('PdI-crono_inv'!BB:BB,'PdI-crono_inv'!CF:CF,F530,'PdI-crono_inv'!CE:CE,H530,'PdI-crono_inv'!J:J,P530,'PdI-crono_inv'!P:P,\"<>proprietario\")","v":0},null,{"$f":"+SUMIFS('PdI-crono_inv'!BC:BC,'PdI-crono_inv'!CF:CF,F530,'PdI-crono_inv'!CE:CE,H530,'PdI-crono_inv'!J:J,P530,'PdI-crono_inv'!P:P,\"<>proprietario\")+S530","v":0},null,null,"RES",{"$f":"+VLOOKUP(F530,TT_Tabelle_Riferimento!$D$127:$E$164,2,FALSE)","v":"Comune"},"",0]
[0,0,"Gestore",0,"IP",33,{"$f":"+VLOOKUP(F531,TT_Tabelle_Riferimento!$D$127:$G$164,4,FALSE)","v":"Fabbricati non industriali"},2,{"$f":"+VLOOKUP(H531,TT_Tabelle_Riferimento!$F$3:$G$6,2,FALSE)","v":"Fognatura bianca e pulizia / manutenzione caditoie stradali"},2027,{"$f":"+SUMIFS('PdI-crono_inv'!BB:BB,'PdI-crono_inv'!CF:CF,F531,'PdI-crono_inv'!CE:CE,H531,'PdI-crono_inv'!J:J,P531,'PdI-crono_inv'!P:P,\"<>proprietario\")","v":0},null,{"$f":"+SUMIFS('PdI-crono_inv'!BC:BC,'PdI-crono_inv'!CF:CF,F531,'PdI-crono_inv'!CE:CE,H531,'PdI-crono_inv'!J:J,P531,'PdI-crono_inv'!P:P,\"<>proprietario\")+S531","v":0},null,null,"RES",{"$f":"+VLOOKUP(F531,TT_Tabelle_Riferimento!$D$127:$E$164,2,FALSE)","v":"Comune"},"",0]
[0,0,"Gestore",0,"IP",34,{"$f":"+VLOOKUP(F532,TT_Tabelle_Riferimento!$D$127:$G$164,4,FALSE)","v":"Fabbricati industriali"},2,{"$f":"+VLOOKUP(H532,TT_Tabelle_Riferimento!$F$3:$G$6,2,FALSE)","v":"Fognatura bianca e pulizia / manutenzione caditoie stradali"},2027,{"$f":"+SUMIFS('PdI-crono_inv'!BB:BB,'PdI-crono_inv'!CF:CF,F532,'PdI-crono_inv'!CE:CE,H532,'PdI-crono_inv'!J:J,P532,'PdI-crono_inv'!P:P,\"<>proprietario\")","v":0},null,{"$f":"+SUMIFS('PdI-crono_inv'!BC:BC,'PdI-crono_inv'!CF:CF,F532,'PdI-crono_inv'!CE:CE,H532,'PdI-crono_inv'!J:J,P532,'PdI-crono_inv'!P:P,\"<>proprietario\")+S532","v":0},null,null,"RES",{"$f":"+VLOOKUP(F532,TT_Tabelle_Riferimento!$D$127:$E$164,2,FALSE)","v":"Comune"},"",0]
[0,0,"Gestore",0,"IP",35,{"$f":"+VLOOKUP(F533,TT_Tabelle_Riferimento!$D$127:$G$164,4,FALSE)","v":"Costruzioni leggere"},2,{"$f":"+VLOOKUP(H533,TT_Tabelle_Riferimento!$F$3:$G$6,2,FALSE)","v":"Fognatura bianca e pulizia / manutenzione caditoie stradali"},2027,{"$f":"+SUMIFS('PdI-crono_inv'!BB:BB,'PdI-crono_inv'!CF:CF,F533,'PdI-crono_inv'!CE:CE,H533,'PdI-crono_inv'!J:J,P533,'PdI-crono_inv'!P:P,\"<>proprietario\")","v":0},null,{"$f":"+SUMIFS('PdI-crono_inv'!BC:BC,'PdI-crono_inv'!CF:CF,F533,'PdI-crono_inv'!CE:CE,H533,'PdI-crono_inv'!J:J,P533,'PdI-crono_inv'!P:P,\"<>proprietario\")+S533","v":0},null,null,"RES",{"$f":"+VLOOKUP(F533,TT_Tabelle_Riferimento!$D$127:$E$164,2,FALSE)","v":"Comune"},"",0]
[0,0,"Gestore",0,"IP",36,{"$f":"+VLOOKUP(F534,TT_Tabelle_Riferimento!$D$127:$G$164,4,FALSE)","v":"Studi, ricerche, brevetti, diritti di utilizzazione"},2,{"$f":"+VLOOKUP(H534,TT_Tabelle_Riferimento!$F$3:$G$6,2,FALSE)","v":"Fognatura bianca e pulizia / manutenzione caditoie stradali"},2027,{"$f":"+SUMIFS('PdI-crono_inv'!BB:BB,'PdI-crono_inv'!CF:CF,F534,'PdI-crono_inv'!CE:CE,H534,'PdI-crono_inv'!J:J,P534,'PdI-crono_inv'!P:P,\"<>proprietario\")","v":0},null,{"$f":"+SUMIFS('PdI-crono_inv'!BC:BC,'PdI-crono_inv'!CF:CF,F534,'PdI-crono_inv'!CE:CE,H534,'PdI-crono_inv'!J:J,P534,'PdI-crono_inv'!P:P,\"<>proprietario\")+S534","v":0},null,null,"RES",{"$f":"+VLOOKUP(F534,TT_Tabelle_Riferimento!$D$127:$E$164,2,FALSE)","v":"Comune"},"",0]
[0,0,"Gestore",0,"IP",37,{"$f":"+VLOOKUP(F535,TT_Tabelle_Riferimento!$D$127:$G$164,4,FALSE)","v":"Altre immobilizzazioni materiali e immateriali"},2,{"$f":"+VLOOKUP(H535,TT_Tabelle_Riferimento!$F$3:$G$6,2,FALSE)","v":"Fognatura bianca e pulizia / manutenzione caditoie stradali"},2027,{"$f":"+SUMIFS('PdI-crono_inv'!BB:BB,'PdI-crono_inv'!CF:CF,F535,'PdI-crono_inv'!CE:CE,H535,'PdI-crono_inv'!J:J,P535,'PdI-crono_inv'!P:P,\"<>proprietario\")","v":0},null,{"$f":"+SUMIFS('PdI-crono_inv'!BC:BC,'PdI-crono_inv'!CF:CF,F535,'PdI-crono_inv'!CE:CE,H535,'PdI-crono_inv'!J:J,P535,'PdI-crono_inv'!P:P,\"<>proprietario\")+S535","v":0},null,null,"RES",{"$f":"+VLOOKUP(F535,TT_Tabelle_Riferimento!$D$127:$E$164,2,FALSE)","v":"Comune"},"",0]
[0,0,"Gestore",0,"IP",38,{"$f":"+VLOOKUP(F536,TT_Tabelle_Riferimento!$D$127:$G$164,4,FALSE)","v":"Grandi dighe (sbarramenti che superano i quindici metri di altezza o che determinano un invaso superiore a 1 milione di metri cubi)"},2,{"$f":"+VLOOKUP(H536,TT_Tabelle_Riferimento!$F$3:$G$6,2,FALSE)","v":"Fognatura bianca e pulizia / manutenzione caditoie stradali"},2027,{"$f":"+SUMIFS('PdI-crono_inv'!BB:BB,'PdI-crono_inv'!CF:CF,F536,'PdI-crono_inv'!CE:CE,H536,'PdI-crono_inv'!J:J,P536,'PdI-crono_inv'!P:P,\"<>proprietario\")","v":0},null,{"$f":"+SUMIFS('PdI-crono_inv'!BC:BC,'PdI-crono_inv'!CF:CF,F536,'PdI-crono_inv'!CE:CE,H536,'PdI-crono_inv'!J:J,P536,'PdI-crono_inv'!P:P,\"<>proprietario\")+S536","v":0},null,null,"RES",{"$f":"+VLOOKUP(F536,TT_Tabelle_Riferimento!$D$127:$E$164,2,FALSE)","v":"Acquedotto"},"",0]
[0,0,"Gestore",0,"IP",39,{"$f":"+VLOOKUP(F537,TT_Tabelle_Riferimento!$D$127:$G$164,4,FALSE)","v":"Piccole dighe (sbarramenti che non superano i quindici metri di altezza o che determinano un invaso non superiore a 1 milione di metri cubi)"},2,{"$f":"+VLOOKUP(H537,TT_Tabelle_Riferimento!$F$3:$G$6,2,FALSE)","v":"Fognatura bianca e pulizia / manutenzione caditoie stradali"},2027,{"$f":"+SUMIFS('PdI-crono_inv'!BB:BB,'PdI-crono_inv'!CF:CF,F537,'PdI-crono_inv'!CE:CE,H537,'PdI-crono_inv'!J:J,P537,'PdI-crono_inv'!P:P,\"<>proprietario\")","v":0},null,{"$f":"+SUMIFS('PdI-crono_inv'!BC:BC,'PdI-crono_inv'!CF:CF,F537,'PdI-crono_inv'!CE:CE,H537,'PdI-crono_inv'!J:J,P537,'PdI-crono_inv'!P:P,\"<>proprietario\")+S537","v":0},null,null,"RES",{"$f":"+VLOOKUP(F537,TT_Tabelle_Riferimento!$D$127:$E$164,2,FALSE)","v":"Acquedotto"},"",0]
[{"$f":"+idato","v":0},{"$f":"+idgestore","v":0},"Gestore",0,"IP",2,{"$f":"+VLOOKUP(F538,TT_Tabelle_Riferimento!$D$127:$G$164,4,FALSE)","v":"Condotte di acquedotto"},3,{"$f":"+VLOOKUP(H538,TT_Tabelle_Riferimento!$F$3:$G$6,2,FALSE)","v":"Altri servizi idrici"},2027,{"$f":"+SUMIFS('PdI-crono_inv'!BB:BB,'PdI-crono_inv'!CF:CF,F538,'PdI-crono_inv'!CE:CE,H538,'PdI-crono_inv'!J:J,P538,'PdI-crono_inv'!P:P,\"<>proprietario\")","v":0},null,{"$f":"+SUMIFS('PdI-crono_inv'!BC:BC,'PdI-crono_inv'!CF:CF,F538,'PdI-crono_inv'!CE:CE,H538,'PdI-crono_inv'!J:J,P538,'PdI-crono_inv'!P:P,\"<>proprietario\")+S538","v":0},null,null,"RES",{"$f":"+VLOOKUP(F538,TT_Tabelle_Riferimento!$D$127:$E$164,2,FALSE)","v":"Acquedotto"},"",0]
[0,0,"Gestore",0,"IP",3,{"$f":"+VLOOKUP(F539,TT_Tabelle_Riferimento!$D$127:$G$164,4,FALSE)","v":"Opere idrauliche fisse di acquedotto"},3,{"$f":"+VLOOKUP(H539,TT_Tabelle_Riferimento!$F$3:$G$6,2,FALSE)","v":"Altri servizi idrici"},2027,{"$f":"+SUMIFS('PdI-crono_inv'!BB:BB,'PdI-crono_inv'!CF:CF,F539,'PdI-crono_inv'!CE:CE,H539,'PdI-crono_inv'!J:J,P539,'PdI-crono_inv'!P:P,\"<>proprietario\")","v":0},null,{"$f":"+SUMIFS('PdI-crono_inv'!BC:BC,'PdI-crono_inv'!CF:CF,F539,'PdI-crono_inv'!CE:CE,H539,'PdI-crono_inv'!J:J,P539,'PdI-crono_inv'!P:P,\"<>proprietario\")+S539","v":0},null,null,"RES",{"$f":"+VLOOKUP(F539,TT_Tabelle_Riferimento!$D$127:$E$164,2,FALSE)","v":"Acquedotto"},"",0]
[0,0,"Gestore",0,"IP",4,{"$f":"+VLOOKUP(F540,TT_Tabelle_Riferimento!$D$127:$G$164,4,FALSE)","v":"Serbatoi"},3,{"$f":"+VLOOKUP(H540,TT_Tabelle_Riferimento!$F$3:$G$6,2,FALSE)","v":"Altri servizi idrici"},2027,{"$f":"+SUMIFS('PdI-crono_inv'!BB:BB,'PdI-crono_inv'!CF:CF,F540,'PdI-crono_inv'!CE:CE,H540,'PdI-crono_inv'!J:J,P540,'PdI-crono_inv'!P:P,\"<>proprietario\")","v":0},null,{"$f":"+SUMIFS('PdI-crono_inv'!BC:BC,'PdI-crono_inv'!CF:CF,F540,'PdI-crono_inv'!CE:CE,H540,'PdI-crono_inv'!J:J,P540,'PdI-crono_inv'!P:P,\"<>proprietario\")+S540","v":0},null,null,"RES",{"$f":"+VLOOKUP(F540,TT_Tabelle_Riferimento!$D$127:$E$164,2,FALSE)","v":"Acquedotto"},"",0]
[0,0,"Gestore",0,"IP",5,{"$f":"+VLOOKUP(F541,TT_Tabelle_Riferimento!$D$127:$G$164,4,FALSE)","v":"Impianti di sollevamento e pompaggio di acquedotto"},3,{"$f":"+VLOOKUP(H541,TT_Tabelle_Riferimento!$F$3:$G$6,2,FALSE)","v":"Altri servizi idrici"},2027,{"$f":"+SUMIFS('PdI-crono_inv'!BB:BB,'PdI-crono_inv'!CF:CF,F541,'PdI-crono_inv'!CE:CE,H541,'PdI-crono_inv'!J:J,P541,'PdI-crono_inv'!P:P,\"<>proprietario\")","v":0},null,{"$f":"+SUMIFS('PdI-crono_inv'!BC:BC,'PdI-crono_inv'!CF:CF,F541,'PdI-crono_inv'!CE:CE,H541,'PdI-crono_inv'!J:J,P541,'PdI-crono_inv'!P:P,\"<>proprietario\")+S541","v":0},null,null,"RES",{"$f":"+VLOOKUP(F541,TT_Tabelle_Riferimento!$D$127:$E$164,2,FALSE)","v":"Acquedotto"},"",0]
[0,0,"Gestore",0,"IP",6,{"$f":"+VLOOKUP(F542,TT_Tabelle_Riferimento!$D$127:$G$164,4,FALSE)","v":"Impianti di potabilizzazione"},3,{"$f":"+VLOOKUP(H542,TT_Tabelle_Riferimento!$F$3:$G$6,2,FALSE)","v":"Altri servizi idrici"},2027,{"$f":"+SUMIFS('PdI-crono_inv'!BB:BB,'PdI-crono_inv'!CF:CF,F542,'PdI-crono_inv'!CE:CE,H542,'PdI-crono_inv'!J:J,P542,'PdI-crono_inv'!P:P,\"<>proprietario\")","v":0},null,{"$f":"+SUMIFS('PdI-crono_inv'!BC:BC,'PdI-crono_inv'!CF:CF,F542,'PdI-crono_inv'!CE:CE,H542,'PdI-crono_inv'!J:J,P542,'PdI-crono_inv'!P:P,\"<>proprietario\")+S542","v":0},null,null,"RES",{"$f":"+VLOOKUP(F542,TT_Tabelle_Riferimento!$D$127:$E$164,2,FALSE)","v":"Acquedotto"},"",0]
[0,0,"Gestore",0,"IP",7,{"$f":"+VLOOKUP(F543,TT_Tabelle_Riferimento!$D$127:$G$164,4,FALSE)","v":"Altri trattamenti di potabilizzazione (tra cui dispositivi di disinfezione, stacciatura, filtrazione, addolcimento)"},3,{"$f":"+VLOOKUP(H543,TT_Tabelle_Riferimento!$F$3:$G$6,2,FALSE)","v":"Altri servizi idrici"},2027,{"$f":"+SUMIFS('PdI-crono_inv'!BB:BB,'PdI-crono_inv'!CF:CF,F543,'PdI-crono_inv'!CE:CE,H543,'PdI-crono_inv'!J:J,P543,'PdI-crono_inv'!P:P,\"<>proprietario\")","v":0},null,{"$f":"+SUMIFS('PdI-crono_inv'!BC:BC,'PdI-crono_inv'!CF:CF,F543,'PdI-crono_inv'!CE:CE,H543,'PdI-crono_inv'!J:J,P543,'PdI-crono_inv'!P:P,\"<>proprietario\")+S543","v":0},null,null,"RES",{"$f":"+VLOOKUP(F543,TT_Tabelle_Riferimento!$D$127:$E$164,2,FALSE)","v":"Acquedotto"},"",0]
[0,0,"Gestore",0,"IP",8,{"$f":"+VLOOKUP(F544,TT_Tabelle_Riferimento!$D$127:$G$164,4,FALSE)","v":"Gruppi di misura - altre attrezzature di acquedotto"},3,{"$f":"+VLOOKUP(H544,TT_Tabelle_Riferimento!$F$3:$G$6,2,FALSE)","v":"Altri servizi idrici"},2027,{"$f":"+SUMIFS('PdI-crono_inv'!BB:BB,'PdI-crono_inv'!CF:CF,F544,'PdI-crono_inv'!CE:CE,H544,'PdI-crono_inv'!J:J,P544,'PdI-crono_inv'!P:P,\"<>proprietario\")","v":0},null,{"$f":"+SUMIFS('PdI-crono_inv'!BC:BC,'PdI-crono_inv'!CF:CF,F544,'PdI-crono_inv'!CE:CE,H544,'PdI-crono_inv'!J:J,P544,'PdI-crono_inv'!P:P,\"<>proprietario\")+S544","v":0},null,null,"RES",{"$f":"+VLOOKUP(F544,TT_Tabelle_Riferimento!$D$127:$E$164,2,FALSE)","v":"Acquedotto"},"",0]
[0,0,"Gestore",0,"IP",9,{"$f":"+VLOOKUP(F545,TT_Tabelle_Riferimento!$D$127:$G$164,4,FALSE)","v":"Sistemi informativi di acquedotto"},3,{"$f":"+VLOOKUP(H545,TT_Tabelle_Riferimento!$F$3:$G$6,2,FALSE)","v":"Altri servizi idrici"},2027,{"$f":"+SUMIFS('PdI-crono_inv'!BB:BB,'PdI-crono_inv'!CF:CF,F545,'PdI-crono_inv'!CE:CE,H545,'PdI-crono_inv'!J:J,P545,'PdI-crono_inv'!P:P,\"<>proprietario\")","v":0},null,{"$f":"+SUMIFS('PdI-crono_inv'!BC:BC,'PdI-crono_inv'!CF:CF,F545,'PdI-crono_inv'!CE:CE,H545,'PdI-crono_inv'!J:J,P545,'PdI-crono_inv'!P:P,\"<>proprietario\")+S545","v":0},null,null,"RES",{"$f":"+VLOOKUP(F545,TT_Tabelle_Riferimento!$D$127:$E$164,2,FALSE)","v":"Acquedotto"},"",0]
[0,0,"Gestore",0,"IP",10,{"$f":"+VLOOKUP(F546,TT_Tabelle_Riferimento!$D$127:$G$164,4,FALSE)","v":"Telecontrollo e teletrasmissione di acquedotto"},3,{"$f":"+VLOOKUP(H546,TT_Tabelle_Riferimento!$F$3:$G$6,2,FALSE)","v":"Altri servizi idrici"},2027,{"$f":"+SUMIFS('PdI-crono_inv'!BB:BB,'PdI-crono_inv'!CF:CF,F546,'PdI-crono_inv'!CE:CE,H546,'PdI-crono_inv'!J:J,P546,'PdI-crono_inv'!P:P,\"<>proprietario\")","v":0},null,{"$f":"+SUMIFS('PdI-crono_inv'!BC:BC,'PdI-crono_inv'!CF:CF,F546,'PdI-crono_inv'!CE:CE,H546,'PdI-crono_inv'!J:J,P546,'PdI-crono_inv'!P:P,\"<>proprietario\")+S546","v":0},null,null,"RES",{"$f":"+VLOOKUP(F546,TT_Tabelle_Riferimento!$D$127:$E$164,2,FALSE)","v":"Acquedotto"},"",0]
[0,0,"Gestore",0,"IP",11,{"$f":"+VLOOKUP(F547,TT_Tabelle_Riferimento!$D$127:$G$164,4,FALSE)","v":"Condotte fognarie"},3,{"$f":"+VLOOKUP(H547,TT_Tabelle_Riferimento!$F$3:$G$6,2,FALSE)","v":"Altri servizi idrici"},2027,{"$f":"+SUMIFS('PdI-crono_inv'!BB:BB,'PdI-crono_inv'!CF:CF,F547,'PdI-crono_inv'!CE:CE,H547,'PdI-crono_inv'!J:J,P547,'PdI-crono_inv'!P:P,\"<>proprietario\")","v":0},null,{"$f":"+SUMIFS('PdI-crono_inv'!BC:BC,'PdI-crono_inv'!CF:CF,F547,'PdI-crono_inv'!CE:CE,H547,'PdI-crono_inv'!J:J,P547,'PdI-crono_inv'!P:P,\"<>proprietario\")+S547","v":0},null,null,"RES",{"$f":"+VLOOKUP(F547,TT_Tabelle_Riferimento!$D$127:$E$164,2,FALSE)","v":"Fognatura"},"",0]
[0,0,"Gestore",0,"IP",12,{"$f":"+VLOOKUP(F548,TT_Tabelle_Riferimento!$D$127:$G$164,4,FALSE)","v":"Sifoni e scaricatori di piena e altre opere idrauliche fisse di fognatura"},3,{"$f":"+VLOOKUP(H548,TT_Tabelle_Riferimento!$F$3:$G$6,2,FALSE)","v":"Altri servizi idrici"},2027,{"$f":"+SUMIFS('PdI-crono_inv'!BB:BB,'PdI-crono_inv'!CF:CF,F548,'PdI-crono_inv'!CE:CE,H548,'PdI-crono_inv'!J:J,P548,'PdI-crono_inv'!P:P,\"<>proprietario\")","v":0},null,{"$f":"+SUMIFS('PdI-crono_inv'!BC:BC,'PdI-crono_inv'!CF:CF,F548,'PdI-crono_inv'!CE:CE,H548,'PdI-crono_inv'!J:J,P548,'PdI-crono_inv'!P:P,\"<>proprietario\")+S548","v":0},null,null,"RES",{"$f":"+VLOOKUP(F548,TT_Tabelle_Riferimento!$D$127:$E$164,2,FALSE)","v":"Fognatura"},"",0]
[0,0,"Gestore",0,"IP",13,{"$f":"+VLOOKUP(F549,TT_Tabelle_Riferimento!$D$127:$G$164,4,FALSE)","v":"Vasche di laminazione e vasche di prima pioggia"},3,{"$f":"+VLOOKUP(H549,TT_Tabelle_Riferimento!$F$3:$G$6,2,FALSE)","v":"Altri servizi idrici"},2027,{"$f":"+SUMIFS('PdI-crono_inv'!BB:BB,'PdI-crono_inv'!CF:CF,F549,'PdI-crono_inv'!CE:CE,H549,'PdI-crono_inv'!J:J,P549,'PdI-crono_inv'!P:P,\"<>proprietario\")","v":0},null,{"$f":"+SUMIFS('PdI-crono_inv'!BC:BC,'PdI-crono_inv'!CF:CF,F549,'PdI-crono_inv'!CE:CE,H549,'PdI-crono_inv'!J:J,P549,'PdI-crono_inv'!P:P,\"<>proprietario\")+S549","v":0},null,null,"RES",{"$f":"+VLOOKUP(F549,TT_Tabelle_Riferimento!$D$127:$E$164,2,FALSE)","v":"Fognatura"},"",0]
[0,0,"Gestore",0,"IP",14,{"$f":"+VLOOKUP(F550,TT_Tabelle_Riferimento!$D$127:$G$164,4,FALSE)","v":"Impianti di sollevamento e pompaggio di fognatura"},3,{"$f":"+VLOOKUP(H550,TT_Tabelle_Riferimento!$F$3:$G$6,2,FALSE)","v":"Altri servizi idrici"},2027,{"$f":"+SUMIFS('PdI-crono_inv'!BB:BB,'PdI-crono_inv'!CF:CF,F550,'PdI-crono_inv'!CE:CE,H550,'PdI-crono_inv'!J:J,P550,'PdI-crono_inv'!P:P,\"<>proprietario\")","v":0},null,{"$f":"+SUMIFS('PdI-crono_inv'!BC:BC,'PdI-crono_inv'!CF:CF,F550,'PdI-crono_inv'!CE:CE,H550,'PdI-crono_inv'!J:J,P550,'PdI-crono_inv'!P:P,\"<>proprietario\")+S550","v":0},null,null,"RES",{"$f":"+VLOOKUP(F550,TT_Tabelle_Riferimento!$D$127:$E$164,2,FALSE)","v":"Fognatura"},"",0]
[0,0,"Gestore",0,"IP",15,{"$f":"+VLOOKUP(F551,TT_Tabelle_Riferimento!$D$127:$G$164,4,FALSE)","v":"Gruppi di misura - altre attrezzature di fognatura"},3,{"$f":"+VLOOKUP(H551,TT_Tabelle_Riferimento!$F$3:$G$6,2,FALSE)","v":"Altri servizi idrici"},2027,{"$f":"+SUMIFS('PdI-crono_inv'!BB:BB,'PdI-crono_inv'!CF:CF,F551,'PdI-crono_inv'!CE:CE,H551,'PdI-crono_inv'!J:J,P551,'PdI-crono_inv'!P:P,\"<>proprietario\")","v":0},null,{"$f":"+SUMIFS('PdI-crono_inv'!BC:BC,'PdI-crono_inv'!CF:CF,F551,'PdI-crono_inv'!CE:CE,H551,'PdI-crono_inv'!J:J,P551,'PdI-crono_inv'!P:P,\"<>proprietario\")+S551","v":0},null,null,"RES",{"$f":"+VLOOKUP(F551,TT_Tabelle_Riferimento!$D$127:$E$164,2,FALSE)","v":"Fognatura"},"",0]
[0,0,"Gestore",0,"IP",16,{"$f":"+VLOOKUP(F552,TT_Tabelle_Riferimento!$D$127:$G$164,4,FALSE)","v":"Sistemi informativi di fognatura"},3,{"$f":"+VLOOKUP(H552,TT_Tabelle_Riferimento!$F$3:$G$6,2,FALSE)","v":"Altri servizi idrici"},2027,{"$f":"+SUMIFS('PdI-crono_inv'!BB:BB,'PdI-crono_inv'!CF:CF,F552,'PdI-crono_inv'!CE:CE,H552,'PdI-crono_inv'!J:J,P552,'PdI-crono_inv'!P:P,\"<>proprietario\")","v":0},null,{"$f":"+SUMIFS('PdI-crono_inv'!BC:BC,'PdI-crono_inv'!CF:CF,F552,'PdI-crono_inv'!CE:CE,H552,'PdI-crono_inv'!J:J,P552,'PdI-crono_inv'!P:P,\"<>proprietario\")+S552","v":0},null,null,"RES",{"$f":"+VLOOKUP(F552,TT_Tabelle_Riferimento!$D$127:$E$164,2,FALSE)","v":"Fognatura"},"",0]
[0,0,"Gestore",0,"IP",18,{"$f":"+VLOOKUP(F553,TT_Tabelle_Riferimento!$D$127:$G$164,4,FALSE)","v":"Telecontrollo e teletrasmissione di fognatura"},3,{"$f":"+VLOOKUP(H553,TT_Tabelle_Riferimento!$F$3:$G$6,2,FALSE)","v":"Altri servizi idrici"},2027,{"$f":"+SUMIFS('PdI-crono_inv'!BB:BB,'PdI-crono_inv'!CF:CF,F553,'PdI-crono_inv'!CE:CE,H553,'PdI-crono_inv'!J:J,P553,'PdI-crono_inv'!P:P,\"<>proprietario\")","v":0},null,{"$f":"+SUMIFS('PdI-crono_inv'!BC:BC,'PdI-crono_inv'!CF:CF,F553,'PdI-crono_inv'!CE:CE,H553,'PdI-crono_inv'!J:J,P553,'PdI-crono_inv'!P:P,\"<>proprietario\")+S553","v":0},null,null,"RES",{"$f":"+VLOOKUP(F553,TT_Tabelle_Riferimento!$D$127:$E$164,2,FALSE)","v":"Fognatura"},"",0]
[0,0,"Gestore",0,"IP",19,{"$f":"+VLOOKUP(F554,TT_Tabelle_Riferimento!$D$127:$G$164,4,FALSE)","v":"Impianti di sollevamento e pompaggio di depurazione"},3,{"$f":"+VLOOKUP(H554,TT_Tabelle_Riferimento!$F$3:$G$6,2,FALSE)","v":"Altri servizi idrici"},2027,{"$f":"+SUMIFS('PdI-crono_inv'!BB:BB,'PdI-crono_inv'!CF:CF,F554,'PdI-crono_inv'!CE:CE,H554,'PdI-crono_inv'!J:J,P554,'PdI-crono_inv'!P:P,\"<>proprietario\")","v":0},null,{"$f":"+SUMIFS('PdI-crono_inv'!BC:BC,'PdI-crono_inv'!CF:CF,F554,'PdI-crono_inv'!CE:CE,H554,'PdI-crono_inv'!J:J,P554,'PdI-crono_inv'!P:P,\"<>proprietario\")+S554","v":0},null,null,"RES",{"$f":"+VLOOKUP(F554,TT_Tabelle_Riferimento!$D$127:$E$164,2,FALSE)","v":"Depurazione"},"",0]
[0,0,"Gestore",0,"IP",20,{"$f":"+VLOOKUP(F555,TT_Tabelle_Riferimento!$D$127:$G$164,4,FALSE)","v":"Tecniche naturali di depurazione (tra cui fitodepurazione e lagunaggio)"},3,{"$f":"+VLOOKUP(H555,TT_Tabelle_Riferimento!$F$3:$G$6,2,FALSE)","v":"Altri servizi idrici"},2027,{"$f":"+SUMIFS('PdI-crono_inv'!BB:BB,'PdI-crono_inv'!CF:CF,F555,'PdI-crono_inv'!CE:CE,H555,'PdI-crono_inv'!J:J,P555,'PdI-crono_inv'!P:P,\"<>proprietario\")","v":0},null,{"$f":"+SUMIFS('PdI-crono_inv'!BC:BC,'PdI-crono_inv'!CF:CF,F555,'PdI-crono_inv'!CE:CE,H555,'PdI-crono_inv'!J:J,P555,'PdI-crono_inv'!P:P,\"<>proprietario\")+S555","v":0},null,null,"RES",{"$f":"+VLOOKUP(F555,TT_Tabelle_Riferimento!$D$127:$E$164,2,FALSE)","v":"Depurazione"},"",0]
[0,0,"Gestore",0,"IP",21,{"$f":"+VLOOKUP(F556,TT_Tabelle_Riferimento!$D$127:$G$164,4,FALSE)","v":"Impianti di depurazione – trattamenti sino al preliminare, integrativo, primario - fosse settiche e fosse Imhoff"},3,{"$f":"+VLOOKUP(H556,TT_Tabelle_Riferimento!$F$3:$G$6,2,FALSE)","v":"Altri servizi idrici"},2027,{"$f":"+SUMIFS('PdI-crono_inv'!BB:BB,'PdI-crono_inv'!CF:CF,F556,'PdI-crono_inv'!CE:CE,H556,'PdI-crono_inv'!J:J,P556,'PdI-crono_inv'!P:P,\"<>proprietario\")","v":0},null,{"$f":"+SUMIFS('PdI-crono_inv'!BC:BC,'PdI-crono_inv'!CF:CF,F556,'PdI-crono_inv'!CE:CE,H556,'PdI-crono_inv'!J:J,P556,'PdI-crono_inv'!P:P,\"<>proprietario\")+S556","v":0},null,null,"RES",{"$f":"+VLOOKUP(F556,TT_Tabelle_Riferimento!$D$127:$E$164,2,FALSE)","v":"Depurazione"},"",0]
[0,0,"Gestore",0,"IP",22,{"$f":"+VLOOKUP(F557,TT_Tabelle_Riferimento!$D$127:$G$164,4,FALSE)","v":"Impianti di depurazione – trattamenti sino al secondario"},3,{"$f":"+VLOOKUP(H557,TT_Tabelle_Riferimento!$F$3:$G$6,2,FALSE)","v":"Altri servizi idrici"},2027,{"$f":"+SUMIFS('PdI-crono_inv'!BB:BB,'PdI-crono_inv'!CF:CF,F557,'PdI-crono_inv'!CE:CE,H557,'PdI-crono_inv'!J:J,P557,'PdI-crono_inv'!P:P,\"<>proprietario\")","v":0},null,{"$f":"+SUMIFS('PdI-crono_inv'!BC:BC,'PdI-crono_inv'!CF:CF,F557,'PdI-crono_inv'!CE:CE,H557,'PdI-crono_inv'!J:J,P557,'PdI-crono_inv'!P:P,\"<>proprietario\")+S557","v":0},null,null,"RES",{"$f":"+VLOOKUP(F557,TT_Tabelle_Riferimento!$D$127:$E$164,2,FALSE)","v":"Depurazione"},"",0]
[0,0,"Gestore",0,"IP",23,{"$f":"+VLOOKUP(F558,TT_Tabelle_Riferimento!$D$127:$G$164,4,FALSE)","v":"Impianti di depurazione – trattamenti sino al terziario e terziario avanzato"},3,{"$f":"+VLOOKUP(H558,TT_Tabelle_Riferimento!$F$3:$G$6,2,FALSE)","v":"Altri servizi idrici"},2027,{"$f":"+SUMIFS('PdI-crono_inv'!BB:BB,'PdI-crono_inv'!CF:CF,F558,'PdI-crono_inv'!CE:CE,H558,'PdI-crono_inv'!J:J,P558,'PdI-crono_inv'!P:P,\"<>proprietario\")","v":0},null,{"$f":"+SUMIFS('PdI-crono_inv'!BC:BC,'PdI-crono_inv'!CF:CF,F558,'PdI-crono_inv'!CE:CE,H558,'PdI-crono_inv'!J:J,P558,'PdI-crono_inv'!P:P,\"<>proprietario\")+S558","v":0},null,null,"RES",{"$f":"+VLOOKUP(F558,TT_Tabelle_Riferimento!$D$127:$E$164,2,FALSE)","v":"Depurazione"},"",0]
[0,0,"Gestore",0,"IP",24,{"$f":"+VLOOKUP(F559,TT_Tabelle_Riferimento!$D$127:$G$164,4,FALSE)","v":"Impianti di essiccamento fanghi e di valorizzazione dei fanghi (tra cui mono-incenerimento, pirolisi, gassificazione)"},3,{"$f":"+VLOOKUP(H559,TT_Tabelle_Riferimento!$F$3:$G$6,2,FALSE)","v":"Altri servizi idrici"},2027,{"$f":"+SUMIFS('PdI-crono_inv'!BB:BB,'PdI-crono_inv'!CF:CF,F559,'PdI-crono_inv'!CE:CE,H559,'PdI-crono_inv'!J:J,P559,'PdI-crono_inv'!P:P,\"<>proprietario\")","v":0},null,{"$f":"+SUMIFS('PdI-crono_inv'!BC:BC,'PdI-crono_inv'!CF:CF,F559,'PdI-crono_inv'!CE:CE,H559,'PdI-crono_inv'!J:J,P559,'PdI-crono_inv'!P:P,\"<>proprietario\")+S559","v":0},null,null,"RES",{"$f":"+VLOOKUP(F559,TT_Tabelle_Riferimento!$D$127:$E$164,2,FALSE)","v":"Depurazione"},"",0]
[0,0,"Gestore",0,"IP",25,{"$f":"+VLOOKUP(F560,TT_Tabelle_Riferimento!$D$127:$G$164,4,FALSE)","v":"Gruppi di misura - altre attrezzature di depurazione"},3,{"$f":"+VLOOKUP(H560,TT_Tabelle_Riferimento!$F$3:$G$6,2,FALSE)","v":"Altri servizi idrici"},2027,{"$f":"+SUMIFS('PdI-crono_inv'!BB:BB,'PdI-crono_inv'!CF:CF,F560,'PdI-crono_inv'!CE:CE,H560,'PdI-crono_inv'!J:J,P560,'PdI-crono_inv'!P:P,\"<>proprietario\")","v":0},null,{"$f":"+SUMIFS('PdI-crono_inv'!BC:BC,'PdI-crono_inv'!CF:CF,F560,'PdI-crono_inv'!CE:CE,H560,'PdI-crono_inv'!J:J,P560,'PdI-crono_inv'!P:P,\"<>proprietario\")+S560","v":0},null,null,"RES",{"$f":"+VLOOKUP(F560,TT_Tabelle_Riferimento!$D$127:$E$164,2,FALSE)","v":"Depurazione"},"",0]
[0,0,"Gestore",0,"IP",26,{"$f":"+VLOOKUP(F561,TT_Tabelle_Riferimento!$D$127:$G$164,4,FALSE)","v":"Sistemi informativi di depurazione"},3,{"$f":"+VLOOKUP(H561,TT_Tabelle_Riferimento!$F$3:$G$6,2,FALSE)","v":"Altri servizi idrici"},2027,{"$f":"+SUMIFS('PdI-crono_inv'!BB:BB,'PdI-crono_inv'!CF:CF,F561,'PdI-crono_inv'!CE:CE,H561,'PdI-crono_inv'!J:J,P561,'PdI-crono_inv'!P:P,\"<>proprietario\")","v":0},null,{"$f":"+SUMIFS('PdI-crono_inv'!BC:BC,'PdI-crono_inv'!CF:CF,F561,'PdI-crono_inv'!CE:CE,H561,'PdI-crono_inv'!J:J,P561,'PdI-crono_inv'!P:P,\"<>proprietario\")+S561","v":0},null,null,"RES",{"$f":"+VLOOKUP(F561,TT_Tabelle_Riferimento!$D$127:$E$164,2,FALSE)","v":"Depurazione"},"",0]
[0,0,"Gestore",0,"IP",27,{"$f":"+VLOOKUP(F562,TT_Tabelle_Riferimento!$D$127:$G$164,4,FALSE)","v":"Telecontrollo e teletrasmissione di depurazione"},3,{"$f":"+VLOOKUP(H562,TT_Tabelle_Riferimento!$F$3:$G$6,2,FALSE)","v":"Altri servizi idrici"},2027,{"$f":"+SUMIFS('PdI-crono_inv'!BB:BB,'PdI-crono_inv'!CF:CF,F562,'PdI-crono_inv'!CE:CE,H562,'PdI-crono_inv'!J:J,P562,'PdI-crono_inv'!P:P,\"<>proprietario\")","v":0},null,{"$f":"+SUMIFS('PdI-crono_inv'!BC:BC,'PdI-crono_inv'!CF:CF,F562,'PdI-crono_inv'!CE:CE,H562,'PdI-crono_inv'!J:J,P562,'PdI-crono_inv'!P:P,\"<>proprietario\")+S562","v":0},null,null,"RES",{"$f":"+VLOOKUP(F562,TT_Tabelle_Riferimento!$D$127:$E$164,2,FALSE)","v":"Depurazione"},"",0]
[0,0,"Gestore",0,"IP",28,{"$f":"+VLOOKUP(F563,TT_Tabelle_Riferimento!$D$127:$G$164,4,FALSE)","v":"Altri impianti"},3,{"$f":"+VLOOKUP(H563,TT_Tabelle_Riferimento!$F$3:$G$6,2,FALSE)","v":"Altri servizi idrici"},2027,{"$f":"+SUMIFS('PdI-crono_inv'!BB:BB,'PdI-crono_inv'!CF:CF,F563,'PdI-crono_inv'!CE:CE,H563,'PdI-crono_inv'!J:J,P563,'PdI-crono_inv'!P:P,\"<>proprietario\")","v":0},null,{"$f":"+SUMIFS('PdI-crono_inv'!BC:BC,'PdI-crono_inv'!CF:CF,F563,'PdI-crono_inv'!CE:CE,H563,'PdI-crono_inv'!J:J,P563,'PdI-crono_inv'!P:P,\"<>proprietario\")+S563","v":0},null,null,"RES",{"$f":"+VLOOKUP(F563,TT_Tabelle_Riferimento!$D$127:$E$164,2,FALSE)","v":"Comune"},"",0]
[0,0,"Gestore",0,"IP",29,{"$f":"+VLOOKUP(F564,TT_Tabelle_Riferimento!$D$127:$G$164,4,FALSE)","v":"Laboratori e attrezzature"},3,{"$f":"+VLOOKUP(H564,TT_Tabelle_Riferimento!$F$3:$G$6,2,FALSE)","v":"Altri servizi idrici"},2027,{"$f":"+SUMIFS('PdI-crono_inv'!BB:BB,'PdI-crono_inv'!CF:CF,F564,'PdI-crono_inv'!CE:CE,H564,'PdI-crono_inv'!J:J,P564,'PdI-crono_inv'!P:P,\"<>proprietario\")","v":0},null,{"$f":"+SUMIFS('PdI-crono_inv'!BC:BC,'PdI-crono_inv'!CF:CF,F564,'PdI-crono_inv'!CE:CE,H564,'PdI-crono_inv'!J:J,P564,'PdI-crono_inv'!P:P,\"<>proprietario\")+S564","v":0},null,null,"RES",{"$f":"+VLOOKUP(F564,TT_Tabelle_Riferimento!$D$127:$E$164,2,FALSE)","v":"Comune"},"",0]
[0,0,"Gestore",0,"IP",30,{"$f":"+VLOOKUP(F565,TT_Tabelle_Riferimento!$D$127:$G$164,4,FALSE)","v":"Sistemi informativi"},3,{"$f":"+VLOOKUP(H565,TT_Tabelle_Riferimento!$F$3:$G$6,2,FALSE)","v":"Altri servizi idrici"},2027,{"$f":"+SUMIFS('PdI-crono_inv'!BB:BB,'PdI-crono_inv'!CF:CF,F565,'PdI-crono_inv'!CE:CE,H565,'PdI-crono_inv'!J:J,P565,'PdI-crono_inv'!P:P,\"<>proprietario\")","v":0},null,{"$f":"+SUMIFS('PdI-crono_inv'!BC:BC,'PdI-crono_inv'!CF:CF,F565,'PdI-crono_inv'!CE:CE,H565,'PdI-crono_inv'!J:J,P565,'PdI-crono_inv'!P:P,\"<>proprietario\")+S565","v":0},null,null,"RES",{"$f":"+VLOOKUP(F565,TT_Tabelle_Riferimento!$D$127:$E$164,2,FALSE)","v":"Comune"},"",0]
[0,0,"Gestore",0,"IP",31,{"$f":"+VLOOKUP(F566,TT_Tabelle_Riferimento!$D$127:$G$164,4,FALSE)","v":"Telecontrollo e teletrasmissione"},3,{"$f":"+VLOOKUP(H566,TT_Tabelle_Riferimento!$F$3:$G$6,2,FALSE)","v":"Altri servizi idrici"},2027,{"$f":"+SUMIFS('PdI-crono_inv'!BB:BB,'PdI-crono_inv'!CF:CF,F566,'PdI-crono_inv'!CE:CE,H566,'PdI-crono_inv'!J:J,P566,'PdI-crono_inv'!P:P,\"<>proprietario\")","v":0},null,{"$f":"+SUMIFS('PdI-crono_inv'!BC:BC,'PdI-crono_inv'!CF:CF,F566,'PdI-crono_inv'!CE:CE,H566,'PdI-crono_inv'!J:J,P566,'PdI-crono_inv'!P:P,\"<>proprietario\")+S566","v":0},null,null,"RES",{"$f":"+VLOOKUP(F566,TT_Tabelle_Riferimento!$D$127:$E$164,2,FALSE)","v":"Comune"},"",0]
[0,0,"Gestore",0,"IP",32,{"$f":"+VLOOKUP(F567,TT_Tabelle_Riferimento!$D$127:$G$164,4,FALSE)","v":"Autoveicoli - automezzi"},3,{"$f":"+VLOOKUP(H567,TT_Tabelle_Riferimento!$F$3:$G$6,2,FALSE)","v":"Altri servizi idrici"},2027,{"$f":"+SUMIFS('PdI-crono_inv'!BB:BB,'PdI-crono_inv'!CF:CF,F567,'PdI-crono_inv'!CE:CE,H567,'PdI-crono_inv'!J:J,P567,'PdI-crono_inv'!P:P,\"<>proprietario\")","v":0},null,{"$f":"+SUMIFS('PdI-crono_inv'!BC:BC,'PdI-crono_inv'!CF:CF,F567,'PdI-crono_inv'!CE:CE,H567,'PdI-crono_inv'!J:J,P567,'PdI-crono_inv'!P:P,\"<>proprietario\")+S567","v":0},null,null,"RES",{"$f":"+VLOOKUP(F567,TT_Tabelle_Riferimento!$D$127:$E$164,2,FALSE)","v":"Comune"},"",0]
[0,0,"Gestore",0,"IP",1,{"$f":"+VLOOKUP(F568,TT_Tabelle_Riferimento!$D$127:$G$164,4,FALSE)","v":"Terreni"},3,{"$f":"+VLOOKUP(H568,TT_Tabelle_Riferimento!$F$3:$G$6,2,FALSE)","v":"Altri servizi idrici"},2027,{"$f":"+SUMIFS('PdI-crono_inv'!BB:BB,'PdI-crono_inv'!CF:CF,F568,'PdI-crono_inv'!CE:CE,H568,'PdI-crono_inv'!J:J,P568,'PdI-crono_inv'!P:P,\"<>proprietario\")","v":0},null,{"$f":"+SUMIFS('PdI-crono_inv'!BC:BC,'PdI-crono_inv'!CF:CF,F568,'PdI-crono_inv'!CE:CE,H568,'PdI-crono_inv'!J:J,P568,'PdI-crono_inv'!P:P,\"<>proprietario\")+S568","v":0},null,null,"RES",{"$f":"+VLOOKUP(F568,TT_Tabelle_Riferimento!$D$127:$E$164,2,FALSE)","v":"Comune"},"",0]
[0,0,"Gestore",0,"IP",33,{"$f":"+VLOOKUP(F569,TT_Tabelle_Riferimento!$D$127:$G$164,4,FALSE)","v":"Fabbricati non industriali"},3,{"$f":"+VLOOKUP(H569,TT_Tabelle_Riferimento!$F$3:$G$6,2,FALSE)","v":"Altri servizi idrici"},2027,{"$f":"+SUMIFS('PdI-crono_inv'!BB:BB,'PdI-crono_inv'!CF:CF,F569,'PdI-crono_inv'!CE:CE,H569,'PdI-crono_inv'!J:J,P569,'PdI-crono_inv'!P:P,\"<>proprietario\")","v":0},null,{"$f":"+SUMIFS('PdI-crono_inv'!BC:BC,'PdI-crono_inv'!CF:CF,F569,'PdI-crono_inv'!CE:CE,H569,'PdI-crono_inv'!J:J,P569,'PdI-crono_inv'!P:P,\"<>proprietario\")+S569","v":0},null,null,"RES",{"$f":"+VLOOKUP(F569,TT_Tabelle_Riferimento!$D$127:$E$164,2,FALSE)","v":"Comune"},"",0]
[0,0,"Gestore",0,"IP",34,{"$f":"+VLOOKUP(F570,TT_Tabelle_Riferimento!$D$127:$G$164,4,FALSE)","v":"Fabbricati industriali"},3,{"$f":"+VLOOKUP(H570,TT_Tabelle_Riferimento!$F$3:$G$6,2,FALSE)","v":"Altri servizi idrici"},2027,{"$f":"+SUMIFS('PdI-crono_inv'!BB:BB,'PdI-crono_inv'!CF:CF,F570,'PdI-crono_inv'!CE:CE,H570,'PdI-crono_inv'!J:J,P570,'PdI-crono_inv'!P:P,\"<>proprietario\")","v":0},null,{"$f":"+SUMIFS('PdI-crono_inv'!BC:BC,'PdI-crono_inv'!CF:CF,F570,'PdI-crono_inv'!CE:CE,H570,'PdI-crono_inv'!J:J,P570,'PdI-crono_inv'!P:P,\"<>proprietario\")+S570","v":0},null,null,"RES",{"$f":"+VLOOKUP(F570,TT_Tabelle_Riferimento!$D$127:$E$164,2,FALSE)","v":"Comune"},"",0]
[0,0,"Gestore",0,"IP",35,{"$f":"+VLOOKUP(F571,TT_Tabelle_Riferimento!$D$127:$G$164,4,FALSE)","v":"Costruzioni leggere"},3,{"$f":"+VLOOKUP(H571,TT_Tabelle_Riferimento!$F$3:$G$6,2,FALSE)","v":"Altri servizi idrici"},2027,{"$f":"+SUMIFS('PdI-crono_inv'!BB:BB,'PdI-crono_inv'!CF:CF,F571,'PdI-crono_inv'!CE:CE,H571,'PdI-crono_inv'!J:J,P571,'PdI-crono_inv'!P:P,\"<>proprietario\")","v":0},null,{"$f":"+SUMIFS('PdI-crono_inv'!BC:BC,'PdI-crono_inv'!CF:CF,F571,'PdI-crono_inv'!CE:CE,H571,'PdI-crono_inv'!J:J,P571,'PdI-crono_inv'!P:P,\"<>proprietario\")+S571","v":0},null,null,"RES",{"$f":"+VLOOKUP(F571,TT_Tabelle_Riferimento!$D$127:$E$164,2,FALSE)","v":"Comune"},"",0]
[0,0,"Gestore",0,"IP",36,{"$f":"+VLOOKUP(F572,TT_Tabelle_Riferimento!$D$127:$G$164,4,FALSE)","v":"Studi, ricerche, brevetti, diritti di utilizzazione"},3,{"$f":"+VLOOKUP(H572,TT_Tabelle_Riferimento!$F$3:$G$6,2,FALSE)","v":"Altri servizi idrici"},2027,{"$f":"+SUMIFS('PdI-crono_inv'!BB:BB,'PdI-crono_inv'!CF:CF,F572,'PdI-crono_inv'!CE:CE,H572,'PdI-crono_inv'!J:J,P572,'PdI-crono_inv'!P:P,\"<>proprietario\")","v":0},null,{"$f":"+SUMIFS('PdI-crono_inv'!BC:BC,'PdI-crono_inv'!CF:CF,F572,'PdI-crono_inv'!CE:CE,H572,'PdI-crono_inv'!J:J,P572,'PdI-crono_inv'!P:P,\"<>proprietario\")+S572","v":0},null,null,"RES",{"$f":"+VLOOKUP(F572,TT_Tabelle_Riferimento!$D$127:$E$164,2,FALSE)","v":"Comune"},"",0]
[0,0,"Gestore",0,"IP",37,{"$f":"+VLOOKUP(F573,TT_Tabelle_Riferimento!$D$127:$G$164,4,FALSE)","v":"Altre immobilizzazioni materiali e immateriali"},3,{"$f":"+VLOOKUP(H573,TT_Tabelle_Riferimento!$F$3:$G$6,2,FALSE)","v":"Altri servizi idrici"},2027,{"$f":"+SUMIFS('PdI-crono_inv'!BB:BB,'PdI-crono_inv'!CF:CF,F573,'PdI-crono_inv'!CE:CE,H573,'PdI-crono_inv'!J:J,P573,'PdI-crono_inv'!P:P,\"<>proprietario\")","v":0},null,{"$f":"+SUMIFS('PdI-crono_inv'!BC:BC,'PdI-crono_inv'!CF:CF,F573,'PdI-crono_inv'!CE:CE,H573,'PdI-crono_inv'!J:J,P573,'PdI-crono_inv'!P:P,\"<>proprietario\")+S573","v":0},null,null,"RES",{"$f":"+VLOOKUP(F573,TT_Tabelle_Riferimento!$D$127:$E$164,2,FALSE)","v":"Comune"},"",0]
[0,0,"Gestore",0,"IP",38,{"$f":"+VLOOKUP(F574,TT_Tabelle_Riferimento!$D$127:$G$164,4,FALSE)","v":"Grandi dighe (sbarramenti che superano i quindici metri di altezza o che determinano un invaso superiore a 1 milione di metri cubi)"},3,{"$f":"+VLOOKUP(H574,TT_Tabelle_Riferimento!$F$3:$G$6,2,FALSE)","v":"Altri servizi idrici"},2027,{"$f":"+SUMIFS('PdI-crono_inv'!BB:BB,'PdI-crono_inv'!CF:CF,F574,'PdI-crono_inv'!CE:CE,H574,'PdI-crono_inv'!J:J,P574,'PdI-crono_inv'!P:P,\"<>proprietario\")","v":0},null,{"$f":"+SUMIFS('PdI-crono_inv'!BC:BC,'PdI-crono_inv'!CF:CF,F574,'PdI-crono_inv'!CE:CE,H574,'PdI-crono_inv'!J:J,P574,'PdI-crono_inv'!P:P,\"<>proprietario\")+S574","v":0},null,null,"RES",{"$f":"+VLOOKUP(F574,TT_Tabelle_Riferimento!$D$127:$E$164,2,FALSE)","v":"Acquedotto"},"",0]
[0,0,"Gestore",0,"IP",39,{"$f":"+VLOOKUP(F575,TT_Tabelle_Riferimento!$D$127:$G$164,4,FALSE)","v":"Piccole dighe (sbarramenti che non superano i quindici metri di altezza o che determinano un invaso non superiore a 1 milione di metri cubi)"},3,{"$f":"+VLOOKUP(H575,TT_Tabelle_Riferimento!$F$3:$G$6,2,FALSE)","v":"Altri servizi idrici"},2027,{"$f":"+SUMIFS('PdI-crono_inv'!BB:BB,'PdI-crono_inv'!CF:CF,F575,'PdI-crono_inv'!CE:CE,H575,'PdI-crono_inv'!J:J,P575,'PdI-crono_inv'!P:P,\"<>proprietario\")","v":0},null,{"$f":"+SUMIFS('PdI-crono_inv'!BC:BC,'PdI-crono_inv'!CF:CF,F575,'PdI-crono_inv'!CE:CE,H575,'PdI-crono_inv'!J:J,P575,'PdI-crono_inv'!P:P,\"<>proprietario\")+S575","v":0},null,null,"RES",{"$f":"+VLOOKUP(F575,TT_Tabelle_Riferimento!$D$127:$E$164,2,FALSE)","v":"Acquedotto"},"",0]
[0,0,"Gestore",0,"IP",2,{"$f":"+VLOOKUP(F576,TT_Tabelle_Riferimento!$D$127:$G$164,4,FALSE)","v":"Condotte di acquedotto"},1,{"$f":"+VLOOKUP(H576,TT_Tabelle_Riferimento!$F$3:$G$6,2,FALSE)","v":"Servizio idrico integrato"},2027,{"$f":"+SUMIFS('PdI-crono_inv'!BB:BB,'PdI-crono_inv'!CF:CF,F576,'PdI-crono_inv'!CE:CE,H576,'PdI-crono_inv'!J:J,P576,'PdI-crono_inv'!P:P,\"<>proprietario\")","v":0},null,{"$f":"+SUMIFS('PdI-crono_inv'!BC:BC,'PdI-crono_inv'!CF:CF,F576,'PdI-crono_inv'!CE:CE,H576,'PdI-crono_inv'!J:J,P576,'PdI-crono_inv'!P:P,\"<>proprietario\")+S576","v":0},null,null,"Non ERC",{"$f":"+VLOOKUP(F576,TT_Tabelle_Riferimento!$D$127:$E$164,2,FALSE)","v":"Acquedotto"},"",0]
[0,0,"Gestore",0,"IP",3,{"$f":"+VLOOKUP(F577,TT_Tabelle_Riferimento!$D$127:$G$164,4,FALSE)","v":"Opere idrauliche fisse di acquedotto"},1,{"$f":"+VLOOKUP(H577,TT_Tabelle_Riferimento!$F$3:$G$6,2,FALSE)","v":"Servizio idrico integrato"},2027,{"$f":"+SUMIFS('PdI-crono_inv'!BB:BB,'PdI-crono_inv'!CF:CF,F577,'PdI-crono_inv'!CE:CE,H577,'PdI-crono_inv'!J:J,P577,'PdI-crono_inv'!P:P,\"<>proprietario\")","v":0},null,{"$f":"+SUMIFS('PdI-crono_inv'!BC:BC,'PdI-crono_inv'!CF:CF,F577,'PdI-crono_inv'!CE:CE,H577,'PdI-crono_inv'!J:J,P577,'PdI-crono_inv'!P:P,\"<>proprietario\")+S577","v":0},null,null,"Non ERC",{"$f":"+VLOOKUP(F577,TT_Tabelle_Riferimento!$D$127:$E$164,2,FALSE)","v":"Acquedotto"},"",0]
[0,0,"Gestore",0,"IP",4,{"$f":"+VLOOKUP(F578,TT_Tabelle_Riferimento!$D$127:$G$164,4,FALSE)","v":"Serbatoi"},1,{"$f":"+VLOOKUP(H578,TT_Tabelle_Riferimento!$F$3:$G$6,2,FALSE)","v":"Servizio idrico integrato"},2027,{"$f":"+SUMIFS('PdI-crono_inv'!BB:BB,'PdI-crono_inv'!CF:CF,F578,'PdI-crono_inv'!CE:CE,H578,'PdI-crono_inv'!J:J,P578,'PdI-crono_inv'!P:P,\"<>proprietario\")","v":0},null,{"$f":"+SUMIFS('PdI-crono_inv'!BC:BC,'PdI-crono_inv'!CF:CF,F578,'PdI-crono_inv'!CE:CE,H578,'PdI-crono_inv'!J:J,P578,'PdI-crono_inv'!P:P,\"<>proprietario\")+S578","v":0},null,null,"Non ERC",{"$f":"+VLOOKUP(F578,TT_Tabelle_Riferimento!$D$127:$E$164,2,FALSE)","v":"Acquedotto"},{"$f":"+IF(SUM(K578:N578)=0,\"\",\"PdI_consolidamento\")","v":""},0]
[0,0,"Gestore",0,"IP",5,{"$f":"+VLOOKUP(F579,TT_Tabelle_Riferimento!$D$127:$G$164,4,FALSE)","v":"Impianti di sollevamento e pompaggio di acquedotto"},1,{"$f":"+VLOOKUP(H579,TT_Tabelle_Riferimento!$F$3:$G$6,2,FALSE)","v":"Servizio idrico integrato"},2027,{"$f":"+SUMIFS('PdI-crono_inv'!BB:BB,'PdI-crono_inv'!CF:CF,F579,'PdI-crono_inv'!CE:CE,H579,'PdI-crono_inv'!J:J,P579,'PdI-crono_inv'!P:P,\"<>proprietario\")","v":0},null,{"$f":"+SUMIFS('PdI-crono_inv'!BC:BC,'PdI-crono_inv'!CF:CF,F579,'PdI-crono_inv'!CE:CE,H579,'PdI-crono_inv'!J:J,P579,'PdI-crono_inv'!P:P,\"<>proprietario\")+S579","v":0},null,null,"Non ERC",{"$f":"+VLOOKUP(F579,TT_Tabelle_Riferimento!$D$127:$E$164,2,FALSE)","v":"Acquedotto"},"",0]
[0,0,"Gestore",0,"IP",6,{"$f":"+VLOOKUP(F580,TT_Tabelle_Riferimento!$D$127:$G$164,4,FALSE)","v":"Impianti di potabilizzazione"},1,{"$f":"+VLOOKUP(H580,TT_Tabelle_Riferimento!$F$3:$G$6,2,FALSE)","v":"Servizio idrico integrato"},2027,{"$f":"+SUMIFS('PdI-crono_inv'!BB:BB,'PdI-crono_inv'!CF:CF,F580,'PdI-crono_inv'!CE:CE,H580,'PdI-crono_inv'!J:J,P580,'PdI-crono_inv'!P:P,\"<>proprietario\")","v":0},null,{"$f":"+SUMIFS('PdI-crono_inv'!BC:BC,'PdI-crono_inv'!CF:CF,F580,'PdI-crono_inv'!CE:CE,H580,'PdI-crono_inv'!J:J,P580,'PdI-crono_inv'!P:P,\"<>proprietario\")+S580","v":0},null,null,"Non ERC",{"$f":"+VLOOKUP(F580,TT_Tabelle_Riferimento!$D$127:$E$164,2,FALSE)","v":"Acquedotto"},"",0]
[0,0,"Gestore",0,"IP",7,{"$f":"+VLOOKUP(F581,TT_Tabelle_Riferimento!$D$127:$G$164,4,FALSE)","v":"Altri trattamenti di potabilizzazione (tra cui dispositivi di disinfezione, stacciatura, filtrazione, addolcimento)"},1,{"$f":"+VLOOKUP(H581,TT_Tabelle_Riferimento!$F$3:$G$6,2,FALSE)","v":"Servizio idrico integrato"},2027,{"$f":"+SUMIFS('PdI-crono_inv'!BB:BB,'PdI-crono_inv'!CF:CF,F581,'PdI-crono_inv'!CE:CE,H581,'PdI-crono_inv'!J:J,P581,'PdI-crono_inv'!P:P,\"<>proprietario\")","v":0},null,{"$f":"+SUMIFS('PdI-crono_inv'!BC:BC,'PdI-crono_inv'!CF:CF,F581,'PdI-crono_inv'!CE:CE,H581,'PdI-crono_inv'!J:J,P581,'PdI-crono_inv'!P:P,\"<>proprietario\")+S581","v":0},null,null,"Non ERC",{"$f":"+VLOOKUP(F581,TT_Tabelle_Riferimento!$D$127:$E$164,2,FALSE)","v":"Acquedotto"},"",0]
[0,0,"Gestore",0,"IP",8,{"$f":"+VLOOKUP(F582,TT_Tabelle_Riferimento!$D$127:$G$164,4,FALSE)","v":"Gruppi di misura - altre attrezzature di acquedotto"},1,{"$f":"+VLOOKUP(H582,TT_Tabelle_Riferimento!$F$3:$G$6,2,FALSE)","v":"Servizio idrico integrato"},2027,{"$f":"+SUMIFS('PdI-crono_inv'!BB:BB,'PdI-crono_inv'!CF:CF,F582,'PdI-crono_inv'!CE:CE,H582,'PdI-crono_inv'!J:J,P582,'PdI-crono_inv'!P:P,\"<>proprietario\")","v":0},null,{"$f":"+SUMIFS('PdI-crono_inv'!BC:BC,'PdI-crono_inv'!CF:CF,F582,'PdI-crono_inv'!CE:CE,H582,'PdI-crono_inv'!J:J,P582,'PdI-crono_inv'!P:P,\"<>proprietario\")+S582","v":0},null,null,"Non ERC",{"$f":"+VLOOKUP(F582,TT_Tabelle_Riferimento!$D$127:$E$164,2,FALSE)","v":"Acquedotto"},"",0]
[0,0,"Gestore",0,"IP",9,{"$f":"+VLOOKUP(F583,TT_Tabelle_Riferimento!$D$127:$G$164,4,FALSE)","v":"Sistemi informativi di acquedotto"},1,{"$f":"+VLOOKUP(H583,TT_Tabelle_Riferimento!$F$3:$G$6,2,FALSE)","v":"Servizio idrico integrato"},2027,{"$f":"+SUMIFS('PdI-crono_inv'!BB:BB,'PdI-crono_inv'!CF:CF,F583,'PdI-crono_inv'!CE:CE,H583,'PdI-crono_inv'!J:J,P583,'PdI-crono_inv'!P:P,\"<>proprietario\")","v":0},null,{"$f":"+SUMIFS('PdI-crono_inv'!BC:BC,'PdI-crono_inv'!CF:CF,F583,'PdI-crono_inv'!CE:CE,H583,'PdI-crono_inv'!J:J,P583,'PdI-crono_inv'!P:P,\"<>proprietario\")+S583","v":0},null,null,"Non ERC",{"$f":"+VLOOKUP(F583,TT_Tabelle_Riferimento!$D$127:$E$164,2,FALSE)","v":"Acquedotto"},"",{"$f":"+IFERROR(HLOOKUP(J583,$X$2:$Y$5,4,FALSE)*K583,0)","v":0}]
[0,0,"Gestore",0,"IP",10,{"$f":"+VLOOKUP(F584,TT_Tabelle_Riferimento!$D$127:$G$164,4,FALSE)","v":"Telecontrollo e teletrasmissione di acquedotto"},1,{"$f":"+VLOOKUP(H584,TT_Tabelle_Riferimento!$F$3:$G$6,2,FALSE)","v":"Servizio idrico integrato"},2027,{"$f":"+SUMIFS('PdI-crono_inv'!BB:BB,'PdI-crono_inv'!CF:CF,F584,'PdI-crono_inv'!CE:CE,H584,'PdI-crono_inv'!J:J,P584,'PdI-crono_inv'!P:P,\"<>proprietario\")","v":0},null,{"$f":"+SUMIFS('PdI-crono_inv'!BC:BC,'PdI-crono_inv'!CF:CF,F584,'PdI-crono_inv'!CE:CE,H584,'PdI-crono_inv'!J:J,P584,'PdI-crono_inv'!P:P,\"<>proprietario\")+S584","v":0},null,null,"Non ERC",{"$f":"+VLOOKUP(F584,TT_Tabelle_Riferimento!$D$127:$E$164,2,FALSE)","v":"Acquedotto"},"",0]
[0,0,"Gestore",0,"IP",11,{"$f":"+VLOOKUP(F585,TT_Tabelle_Riferimento!$D$127:$G$164,4,FALSE)","v":"Condotte fognarie"},1,{"$f":"+VLOOKUP(H585,TT_Tabelle_Riferimento!$F$3:$G$6,2,FALSE)","v":"Servizio idrico integrato"},2027,{"$f":"+SUMIFS('PdI-crono_inv'!BB:BB,'PdI-crono_inv'!CF:CF,F585,'PdI-crono_inv'!CE:CE,H585,'PdI-crono_inv'!J:J,P585,'PdI-crono_inv'!P:P,\"<>proprietario\")","v":0},null,{"$f":"+SUMIFS('PdI-crono_inv'!BC:BC,'PdI-crono_inv'!CF:CF,F585,'PdI-crono_inv'!CE:CE,H585,'PdI-crono_inv'!J:J,P585,'PdI-crono_inv'!P:P,\"<>proprietario\")+S585","v":0},null,null,"Non ERC",{"$f":"+VLOOKUP(F585,TT_Tabelle_Riferimento!$D$127:$E$164,2,FALSE)","v":"Fognatura"},"",0]
[0,0,"Gestore",0,"IP",12,{"$f":"+VLOOKUP(F586,TT_Tabelle_Riferimento!$D$127:$G$164,4,FALSE)","v":"Sifoni e scaricatori di piena e altre opere idrauliche fisse di fognatura"},1,{"$f":"+VLOOKUP(H586,TT_Tabelle_Riferimento!$F$3:$G$6,2,FALSE)","v":"Servizio idrico integrato"},2027,{"$f":"+SUMIFS('PdI-crono_inv'!BB:BB,'PdI-crono_inv'!CF:CF,F586,'PdI-crono_inv'!CE:CE,H586,'PdI-crono_inv'!J:J,P586,'PdI-crono_inv'!P:P,\"<>proprietario\")","v":0},null,{"$f":"+SUMIFS('PdI-crono_inv'!BC:BC,'PdI-crono_inv'!CF:CF,F586,'PdI-crono_inv'!CE:CE,H586,'PdI-crono_inv'!J:J,P586,'PdI-crono_inv'!P:P,\"<>proprietario\")+S586","v":0},null,null,"Non ERC",{"$f":"+VLOOKUP(F586,TT_Tabelle_Riferimento!$D$127:$E$164,2,FALSE)","v":"Fognatura"},"",0]
[0,0,"Gestore",0,"IP",13,{"$f":"+VLOOKUP(F587,TT_Tabelle_Riferimento!$D$127:$G$164,4,FALSE)","v":"Vasche di laminazione e vasche di prima pioggia"},1,{"$f":"+VLOOKUP(H587,TT_Tabelle_Riferimento!$F$3:$G$6,2,FALSE)","v":"Servizio idrico integrato"},2027,{"$f":"+SUMIFS('PdI-crono_inv'!BB:BB,'PdI-crono_inv'!CF:CF,F587,'PdI-crono_inv'!CE:CE,H587,'PdI-crono_inv'!J:J,P587,'PdI-crono_inv'!P:P,\"<>proprietario\")","v":0},null,{"$f":"+SUMIFS('PdI-crono_inv'!BC:BC,'PdI-crono_inv'!CF:CF,F587,'PdI-crono_inv'!CE:CE,H587,'PdI-crono_inv'!J:J,P587,'PdI-crono_inv'!P:P,\"<>proprietario\")+S587","v":0},null,null,"Non ERC",{"$f":"+VLOOKUP(F587,TT_Tabelle_Riferimento!$D$127:$E$164,2,FALSE)","v":"Fognatura"},"",0]
[0,0,"Gestore",0,"IP",14,{"$f":"+VLOOKUP(F588,TT_Tabelle_Riferimento!$D$127:$G$164,4,FALSE)","v":"Impianti di sollevamento e pompaggio di fognatura"},1,{"$f":"+VLOOKUP(H588,TT_Tabelle_Riferimento!$F$3:$G$6,2,FALSE)","v":"Servizio idrico integrato"},2027,{"$f":"+SUMIFS('PdI-crono_inv'!BB:BB,'PdI-crono_inv'!CF:CF,F588,'PdI-crono_inv'!CE:CE,H588,'PdI-crono_inv'!J:J,P588,'PdI-crono_inv'!P:P,\"<>proprietario\")","v":0},null,{"$f":"+SUMIFS('PdI-crono_inv'!BC:BC,'PdI-crono_inv'!CF:CF,F588,'PdI-crono_inv'!CE:CE,H588,'PdI-crono_inv'!J:J,P588,'PdI-crono_inv'!P:P,\"<>proprietario\")+S588","v":0},null,null,"Non ERC",{"$f":"+VLOOKUP(F588,TT_Tabelle_Riferimento!$D$127:$E$164,2,FALSE)","v":"Fognatura"},"",0]
[0,0,"Gestore",0,"IP",15,{"$f":"+VLOOKUP(F589,TT_Tabelle_Riferimento!$D$127:$G$164,4,FALSE)","v":"Gruppi di misura - altre attrezzature di fognatura"},1,{"$f":"+VLOOKUP(H589,TT_Tabelle_Riferimento!$F$3:$G$6,2,FALSE)","v":"Servizio idrico integrato"},2027,{"$f":"+SUMIFS('PdI-crono_inv'!BB:BB,'PdI-crono_inv'!CF:CF,F589,'PdI-crono_inv'!CE:CE,H589,'PdI-crono_inv'!J:J,P589,'PdI-crono_inv'!P:P,\"<>proprietario\")","v":0},null,{"$f":"+SUMIFS('PdI-crono_inv'!BC:BC,'PdI-crono_inv'!CF:CF,F589,'PdI-crono_inv'!CE:CE,H589,'PdI-crono_inv'!J:J,P589,'PdI-crono_inv'!P:P,\"<>proprietario\")+S589","v":0},null,null,"Non ERC",{"$f":"+VLOOKUP(F589,TT_Tabelle_Riferimento!$D$127:$E$164,2,FALSE)","v":"Fognatura"},"",0]
[0,0,"Gestore",0,"IP",16,{"$f":"+VLOOKUP(F590,TT_Tabelle_Riferimento!$D$127:$G$164,4,FALSE)","v":"Sistemi informativi di fognatura"},1,{"$f":"+VLOOKUP(H590,TT_Tabelle_Riferimento!$F$3:$G$6,2,FALSE)","v":"Servizio idrico integrato"},2027,{"$f":"+SUMIFS('PdI-crono_inv'!BB:BB,'PdI-crono_inv'!CF:CF,F590,'PdI-crono_inv'!CE:CE,H590,'PdI-crono_inv'!J:J,P590,'PdI-crono_inv'!P:P,\"<>proprietario\")","v":0},null,{"$f":"+SUMIFS('PdI-crono_inv'!BC:BC,'PdI-crono_inv'!CF:CF,F590,'PdI-crono_inv'!CE:CE,H590,'PdI-crono_inv'!J:J,P590,'PdI-crono_inv'!P:P,\"<>proprietario\")+S590","v":0},null,null,"Non ERC",{"$f":"+VLOOKUP(F590,TT_Tabelle_Riferimento!$D$127:$E$164,2,FALSE)","v":"Fognatura"},"",0]
[0,0,"Gestore",0,"IP",18,{"$f":"+VLOOKUP(F591,TT_Tabelle_Riferimento!$D$127:$G$164,4,FALSE)","v":"Telecontrollo e teletrasmissione di fognatura"},1,{"$f":"+VLOOKUP(H591,TT_Tabelle_Riferimento!$F$3:$G$6,2,FALSE)","v":"Servizio idrico integrato"},2027,{"$f":"+SUMIFS('PdI-crono_inv'!BB:BB,'PdI-crono_inv'!CF:CF,F591,'PdI-crono_inv'!CE:CE,H591,'PdI-crono_inv'!J:J,P591,'PdI-crono_inv'!P:P,\"<>proprietario\")","v":0},null,{"$f":"+SUMIFS('PdI-crono_inv'!BC:BC,'PdI-crono_inv'!CF:CF,F591,'PdI-crono_inv'!CE:CE,H591,'PdI-crono_inv'!J:J,P591,'PdI-crono_inv'!P:P,\"<>proprietario\")+S591","v":0},null,null,"Non ERC",{"$f":"+VLOOKUP(F591,TT_Tabelle_Riferimento!$D$127:$E$164,2,FALSE)","v":"Fognatura"},"",0]
[0,0,"Gestore",0,"IP",19,{"$f":"+VLOOKUP(F592,TT_Tabelle_Riferimento!$D$127:$G$164,4,FALSE)","v":"Impianti di sollevamento e pompaggio di depurazione"},1,{"$f":"+VLOOKUP(H592,TT_Tabelle_Riferimento!$F$3:$G$6,2,FALSE)","v":"Servizio idrico integrato"},2027,{"$f":"+SUMIFS('PdI-crono_inv'!BB:BB,'PdI-crono_inv'!CF:CF,F592,'PdI-crono_inv'!CE:CE,H592,'PdI-crono_inv'!J:J,P592,'PdI-crono_inv'!P:P,\"<>proprietario\")","v":0},null,{"$f":"+SUMIFS('PdI-crono_inv'!BC:BC,'PdI-crono_inv'!CF:CF,F592,'PdI-crono_inv'!CE:CE,H592,'PdI-crono_inv'!J:J,P592,'PdI-crono_inv'!P:P,\"<>proprietario\")+S592","v":0},null,null,"Non ERC",{"$f":"+VLOOKUP(F592,TT_Tabelle_Riferimento!$D$127:$E$164,2,FALSE)","v":"Depurazione"},"",0]
[0,0,"Gestore",0,"IP",20,{"$f":"+VLOOKUP(F593,TT_Tabelle_Riferimento!$D$127:$G$164,4,FALSE)","v":"Tecniche naturali di depurazione (tra cui fitodepurazione e lagunaggio)"},1,{"$f":"+VLOOKUP(H593,TT_Tabelle_Riferimento!$F$3:$G$6,2,FALSE)","v":"Servizio idrico integrato"},2027,{"$f":"+SUMIFS('PdI-crono_inv'!BB:BB,'PdI-crono_inv'!CF:CF,F593,'PdI-crono_inv'!CE:CE,H593,'PdI-crono_inv'!J:J,P593,'PdI-crono_inv'!P:P,\"<>proprietario\")","v":0},null,{"$f":"+SUMIFS('PdI-crono_inv'!BC:BC,'PdI-crono_inv'!CF:CF,F593,'PdI-crono_inv'!CE:CE,H593,'PdI-crono_inv'!J:J,P593,'PdI-crono_inv'!P:P,\"<>proprietario\")+S593","v":0},null,null,"Non ERC",{"$f":"+VLOOKUP(F593,TT_Tabelle_Riferimento!$D$127:$E$164,2,FALSE)","v":"Depurazione"},"",0]
[0,0,"Gestore",0,"IP",21,{"$f":"+VLOOKUP(F594,TT_Tabelle_Riferimento!$D$127:$G$164,4,FALSE)","v":"Impianti di depurazione – trattamenti sino al preliminare, integrativo, primario - fosse settiche e fosse Imhoff"},1,{"$f":"+VLOOKUP(H594,TT_Tabelle_Riferimento!$F$3:$G$6,2,FALSE)","v":"Servizio idrico integrato"},2027,{"$f":"+SUMIFS('PdI-crono_inv'!BB:BB,'PdI-crono_inv'!CF:CF,F594,'PdI-crono_inv'!CE:CE,H594,'PdI-crono_inv'!J:J,P594,'PdI-crono_inv'!P:P,\"<>proprietario\")","v":0},null,{"$f":"+SUMIFS('PdI-crono_inv'!BC:BC,'PdI-crono_inv'!CF:CF,F594,'PdI-crono_inv'!CE:CE,H594,'PdI-crono_inv'!J:J,P594,'PdI-crono_inv'!P:P,\"<>proprietario\")+S594","v":0},null,null,"Non ERC",{"$f":"+VLOOKUP(F594,TT_Tabelle_Riferimento!$D$127:$E$164,2,FALSE)","v":"Depurazione"},"",0]
[0,0,"Gestore",0,"IP",22,{"$f":"+VLOOKUP(F595,TT_Tabelle_Riferimento!$D$127:$G$164,4,FALSE)","v":"Impianti di depurazione – trattamenti sino al secondario"},1,{"$f":"+VLOOKUP(H595,TT_Tabelle_Riferimento!$F$3:$G$6,2,FALSE)","v":"Servizio idrico integrato"},2027,{"$f":"+SUMIFS('PdI-crono_inv'!BB:BB,'PdI-crono_inv'!CF:CF,F595,'PdI-crono_inv'!CE:CE,H595,'PdI-crono_inv'!J:J,P595,'PdI-crono_inv'!P:P,\"<>proprietario\")","v":0},null,{"$f":"+SUMIFS('PdI-crono_inv'!BC:BC,'PdI-crono_inv'!CF:CF,F595,'PdI-crono_inv'!CE:CE,H595,'PdI-crono_inv'!J:J,P595,'PdI-crono_inv'!P:P,\"<>proprietario\")+S595","v":0},null,null,"Non ERC",{"$f":"+VLOOKUP(F595,TT_Tabelle_Riferimento!$D$127:$E$164,2,FALSE)","v":"Depurazione"},"",0]
[0,0,"Gestore",0,"IP",23,{"$f":"+VLOOKUP(F596,TT_Tabelle_Riferimento!$D$127:$G$164,4,FALSE)","v":"Impianti di depurazione – trattamenti sino al terziario e terziario avanzato"},1,{"$f":"+VLOOKUP(H596,TT_Tabelle_Riferimento!$F$3:$G$6,2,FALSE)","v":"Servizio idrico integrato"},2027,{"$f":"+SUMIFS('PdI-crono_inv'!BB:BB,'PdI-crono_inv'!CF:CF,F596,'PdI-crono_inv'!CE:CE,H596,'PdI-crono_inv'!J:J,P596,'PdI-crono_inv'!P:P,\"<>proprietario\")","v":0},null,{"$f":"+SUMIFS('PdI-crono_inv'!BC:BC,'PdI-crono_inv'!CF:CF,F596,'PdI-crono_inv'!CE:CE,H596,'PdI-crono_inv'!J:J,P596,'PdI-crono_inv'!P:P,\"<>proprietario\")+S596","v":0},null,null,"Non ERC",{"$f":"+VLOOKUP(F596,TT_Tabelle_Riferimento!$D$127:$E$164,2,FALSE)","v":"Depurazione"},"",0]
[0,0,"Gestore",0,"IP",24,{"$f":"+VLOOKUP(F597,TT_Tabelle_Riferimento!$D$127:$G$164,4,FALSE)","v":"Impianti di essiccamento fanghi e di valorizzazione dei fanghi (tra cui mono-incenerimento, pirolisi, gassificazione)"},1,{"$f":"+VLOOKUP(H597,TT_Tabelle_Riferimento!$F$3:$G$6,2,FALSE)","v":"Servizio idrico integrato"},2027,{"$f":"+SUMIFS('PdI-crono_inv'!BB:BB,'PdI-crono_inv'!CF:CF,F597,'PdI-crono_inv'!CE:CE,H597,'PdI-crono_inv'!J:J,P597,'PdI-crono_inv'!P:P,\"<>proprietario\")","v":0},null,{"$f":"+SUMIFS('PdI-crono_inv'!BC:BC,'PdI-crono_inv'!CF:CF,F597,'PdI-crono_inv'!CE:CE,H597,'PdI-crono_inv'!J:J,P597,'PdI-crono_inv'!P:P,\"<>proprietario\")+S597","v":0},null,null,"Non ERC",{"$f":"+VLOOKUP(F597,TT_Tabelle_Riferimento!$D$127:$E$164,2,FALSE)","v":"Depurazione"},"",0]
[0,0,"Gestore",0,"IP",25,{"$f":"+VLOOKUP(F598,TT_Tabelle_Riferimento!$D$127:$G$164,4,FALSE)","v":"Gruppi di misura - altre attrezzature di depurazione"},1,{"$f":"+VLOOKUP(H598,TT_Tabelle_Riferimento!$F$3:$G$6,2,FALSE)","v":"Servizio idrico integrato"},2027,{"$f":"+SUMIFS('PdI-crono_inv'!BB:BB,'PdI-crono_inv'!CF:CF,F598,'PdI-crono_inv'!CE:CE,H598,'PdI-crono_inv'!J:J,P598,'PdI-crono_inv'!P:P,\"<>proprietario\")","v":0},null,{"$f":"+SUMIFS('PdI-crono_inv'!BC:BC,'PdI-crono_inv'!CF:CF,F598,'PdI-crono_inv'!CE:CE,H598,'PdI-crono_inv'!J:J,P598,'PdI-crono_inv'!P:P,\"<>proprietario\")+S598","v":0},null,null,"Non ERC",{"$f":"+VLOOKUP(F598,TT_Tabelle_Riferimento!$D$127:$E$164,2,FALSE)","v":"Depurazione"},"",0]
[0,0,"Gestore",0,"IP",26,{"$f":"+VLOOKUP(F599,TT_Tabelle_Riferimento!$D$127:$G$164,4,FALSE)","v":"Sistemi informativi di depurazione"},1,{"$f":"+VLOOKUP(H599,TT_Tabelle_Riferimento!$F$3:$G$6,2,FALSE)","v":"Servizio idrico integrato"},2027,{"$f":"+SUMIFS('PdI-crono_inv'!BB:BB,'PdI-crono_inv'!CF:CF,F599,'PdI-crono_inv'!CE:CE,H599,'PdI-crono_inv'!J:J,P599,'PdI-crono_inv'!P:P,\"<>proprietario\")","v":0},null,{"$f":"+SUMIFS('PdI-crono_inv'!BC:BC,'PdI-crono_inv'!CF:CF,F599,'PdI-crono_inv'!CE:CE,H599,'PdI-crono_inv'!J:J,P599,'PdI-crono_inv'!P:P,\"<>proprietario\")+S599","v":0},null,null,"Non ERC",{"$f":"+VLOOKUP(F599,TT_Tabelle_Riferimento!$D$127:$E$164,2,FALSE)","v":"Depurazione"},"",0]
[0,0,"Gestore",0,"IP",27,{"$f":"+VLOOKUP(F600,TT_Tabelle_Riferimento!$D$127:$G$164,4,FALSE)","v":"Telecontrollo e teletrasmissione di depurazione"},1,{"$f":"+VLOOKUP(H600,TT_Tabelle_Riferimento!$F$3:$G$6,2,FALSE)","v":"Servizio idrico integrato"},2027,{"$f":"+SUMIFS('PdI-crono_inv'!BB:BB,'PdI-crono_inv'!CF:CF,F600,'PdI-crono_inv'!CE:CE,H600,'PdI-crono_inv'!J:J,P600,'PdI-crono_inv'!P:P,\"<>proprietario\")","v":0},null,{"$f":"+SUMIFS('PdI-crono_inv'!BC:BC,'PdI-crono_inv'!CF:CF,F600,'PdI-crono_inv'!CE:CE,H600,'PdI-crono_inv'!J:J,P600,'PdI-crono_inv'!P:P,\"<>proprietario\")+S600","v":0},null,null,"Non ERC",{"$f":"+VLOOKUP(F600,TT_Tabelle_Riferimento!$D$127:$E$164,2,FALSE)","v":"Depurazione"},"",0]
[0,0,"Gestore",0,"IP",28,{"$f":"+VLOOKUP(F601,TT_Tabelle_Riferimento!$D$127:$G$164,4,FALSE)","v":"Altri impianti"},1,{"$f":"+VLOOKUP(H601,TT_Tabelle_Riferimento!$F$3:$G$6,2,FALSE)","v":"Servizio idrico integrato"},2027,{"$f":"+SUMIFS('PdI-crono_inv'!BB:BB,'PdI-crono_inv'!CF:CF,F601,'PdI-crono_inv'!CE:CE,H601,'PdI-crono_inv'!J:J,P601,'PdI-crono_inv'!P:P,\"<>proprietario\")","v":0},null,{"$f":"+SUMIFS('PdI-crono_inv'!BC:BC,'PdI-crono_inv'!CF:CF,F601,'PdI-crono_inv'!CE:CE,H601,'PdI-crono_inv'!J:J,P601,'PdI-crono_inv'!P:P,\"<>proprietario\")+S601","v":0},null,null,"Non ERC",{"$f":"+VLOOKUP(F601,TT_Tabelle_Riferimento!$D$127:$E$164,2,FALSE)","v":"Comune"},"",0]
[{"$f":"+idato","v":0},{"$f":"+idgestore","v":0},"Gestore",0,"IP",29,{"$f":"+VLOOKUP(F602,TT_Tabelle_Riferimento!$D$127:$G$164,4,FALSE)","v":"Laboratori e attrezzature"},1,{"$f":"+VLOOKUP(H602,TT_Tabelle_Riferimento!$F$3:$G$6,2,FALSE)","v":"Servizio idrico integrato"},2027,{"$f":"+SUMIFS('PdI-crono_inv'!BB:BB,'PdI-crono_inv'!CF:CF,F602,'PdI-crono_inv'!CE:CE,H602,'PdI-crono_inv'!J:J,P602,'PdI-crono_inv'!P:P,\"<>proprietario\")","v":0},null,{"$f":"+SUMIFS('PdI-crono_inv'!BC:BC,'PdI-crono_inv'!CF:CF,F602,'PdI-crono_inv'!CE:CE,H602,'PdI-crono_inv'!J:J,P602,'PdI-crono_inv'!P:P,\"<>proprietario\")+S602","v":0},null,null,"Non ERC",{"$f":"+VLOOKUP(F602,TT_Tabelle_Riferimento!$D$127:$E$164,2,FALSE)","v":"Comune"},"",0]
[0,0,"Gestore",0,"IP",30,{"$f":"+VLOOKUP(F603,TT_Tabelle_Riferimento!$D$127:$G$164,4,FALSE)","v":"Sistemi informativi"},1,{"$f":"+VLOOKUP(H603,TT_Tabelle_Riferimento!$F$3:$G$6,2,FALSE)","v":"Servizio idrico integrato"},2027,{"$f":"+SUMIFS('PdI-crono_inv'!BB:BB,'PdI-crono_inv'!CF:CF,F603,'PdI-crono_inv'!CE:CE,H603,'PdI-crono_inv'!J:J,P603,'PdI-crono_inv'!P:P,\"<>proprietario\")","v":0},null,{"$f":"+SUMIFS('PdI-crono_inv'!BC:BC,'PdI-crono_inv'!CF:CF,F603,'PdI-crono_inv'!CE:CE,H603,'PdI-crono_inv'!J:J,P603,'PdI-crono_inv'!P:P,\"<>proprietario\")+S603","v":0},null,null,"Non ERC",{"$f":"+VLOOKUP(F603,TT_Tabelle_Riferimento!$D$127:$E$164,2,FALSE)","v":"Comune"},"",0]
[0,0,"Gestore",0,"IP",31,{"$f":"+VLOOKUP(F604,TT_Tabelle_Riferimento!$D$127:$G$164,4,FALSE)","v":"Telecontrollo e teletrasmissione"},1,{"$f":"+VLOOKUP(H604,TT_Tabelle_Riferimento!$F$3:$G$6,2,FALSE)","v":"Servizio idrico integrato"},2027,{"$f":"+SUMIFS('PdI-crono_inv'!BB:BB,'PdI-crono_inv'!CF:CF,F604,'PdI-crono_inv'!CE:CE,H604,'PdI-crono_inv'!J:J,P604,'PdI-crono_inv'!P:P,\"<>proprietario\")","v":0},null,{"$f":"+SUMIFS('PdI-crono_inv'!BC:BC,'PdI-crono_inv'!CF:CF,F604,'PdI-crono_inv'!CE:CE,H604,'PdI-crono_inv'!J:J,P604,'PdI-crono_inv'!P:P,\"<>proprietario\")+S604","v":0},null,null,"Non ERC",{"$f":"+VLOOKUP(F604,TT_Tabelle_Riferimento!$D$127:$E$164,2,FALSE)","v":"Comune"},"",0]
[0,0,"Gestore",0,"IP",32,{"$f":"+VLOOKUP(F605,TT_Tabelle_Riferimento!$D$127:$G$164,4,FALSE)","v":"Autoveicoli - automezzi"},1,{"$f":"+VLOOKUP(H605,TT_Tabelle_Riferimento!$F$3:$G$6,2,FALSE)","v":"Servizio idrico integrato"},2027,{"$f":"+SUMIFS('PdI-crono_inv'!BB:BB,'PdI-crono_inv'!CF:CF,F605,'PdI-crono_inv'!CE:CE,H605,'PdI-crono_inv'!J:J,P605,'PdI-crono_inv'!P:P,\"<>proprietario\")","v":0},null,{"$f":"+SUMIFS('PdI-crono_inv'!BC:BC,'PdI-crono_inv'!CF:CF,F605,'PdI-crono_inv'!CE:CE,H605,'PdI-crono_inv'!J:J,P605,'PdI-crono_inv'!P:P,\"<>proprietario\")+S605","v":0},null,null,"Non ERC",{"$f":"+VLOOKUP(F605,TT_Tabelle_Riferimento!$D$127:$E$164,2,FALSE)","v":"Comune"},"",0]
[0,0,"Gestore",0,"IP",1,{"$f":"+VLOOKUP(F606,TT_Tabelle_Riferimento!$D$127:$G$164,4,FALSE)","v":"Terreni"},1,{"$f":"+VLOOKUP(H606,TT_Tabelle_Riferimento!$F$3:$G$6,2,FALSE)","v":"Servizio idrico integrato"},2027,{"$f":"+SUMIFS('PdI-crono_inv'!BB:BB,'PdI-crono_inv'!CF:CF,F606,'PdI-crono_inv'!CE:CE,H606,'PdI-crono_inv'!J:J,P606,'PdI-crono_inv'!P:P,\"<>proprietario\")","v":0},null,{"$f":"+SUMIFS('PdI-crono_inv'!BC:BC,'PdI-crono_inv'!CF:CF,F606,'PdI-crono_inv'!CE:CE,H606,'PdI-crono_inv'!J:J,P606,'PdI-crono_inv'!P:P,\"<>proprietario\")+S606","v":0},null,null,"Non ERC",{"$f":"+VLOOKUP(F606,TT_Tabelle_Riferimento!$D$127:$E$164,2,FALSE)","v":"Comune"},"",0]
[0,0,"Gestore",0,"IP",33,{"$f":"+VLOOKUP(F607,TT_Tabelle_Riferimento!$D$127:$G$164,4,FALSE)","v":"Fabbricati non industriali"},1,{"$f":"+VLOOKUP(H607,TT_Tabelle_Riferimento!$F$3:$G$6,2,FALSE)","v":"Servizio idrico integrato"},2027,{"$f":"+SUMIFS('PdI-crono_inv'!BB:BB,'PdI-crono_inv'!CF:CF,F607,'PdI-crono_inv'!CE:CE,H607,'PdI-crono_inv'!J:J,P607,'PdI-crono_inv'!P:P,\"<>proprietario\")","v":0},null,{"$f":"+SUMIFS('PdI-crono_inv'!BC:BC,'PdI-crono_inv'!CF:CF,F607,'PdI-crono_inv'!CE:CE,H607,'PdI-crono_inv'!J:J,P607,'PdI-crono_inv'!P:P,\"<>proprietario\")+S607","v":0},null,null,"Non ERC",{"$f":"+VLOOKUP(F607,TT_Tabelle_Riferimento!$D$127:$E$164,2,FALSE)","v":"Comune"},"",0]
[0,0,"Gestore",0,"IP",34,{"$f":"+VLOOKUP(F608,TT_Tabelle_Riferimento!$D$127:$G$164,4,FALSE)","v":"Fabbricati industriali"},1,{"$f":"+VLOOKUP(H608,TT_Tabelle_Riferimento!$F$3:$G$6,2,FALSE)","v":"Servizio idrico integrato"},2027,{"$f":"+SUMIFS('PdI-crono_inv'!BB:BB,'PdI-crono_inv'!CF:CF,F608,'PdI-crono_inv'!CE:CE,H608,'PdI-crono_inv'!J:J,P608,'PdI-crono_inv'!P:P,\"<>proprietario\")","v":0},null,{"$f":"+SUMIFS('PdI-crono_inv'!BC:BC,'PdI-crono_inv'!CF:CF,F608,'PdI-crono_inv'!CE:CE,H608,'PdI-crono_inv'!J:J,P608,'PdI-crono_inv'!P:P,\"<>proprietario\")+S608","v":0},null,null,"Non ERC",{"$f":"+VLOOKUP(F608,TT_Tabelle_Riferimento!$D$127:$E$164,2,FALSE)","v":"Comune"},"",0]
[0,0,"Gestore",0,"IP",35,{"$f":"+VLOOKUP(F609,TT_Tabelle_Riferimento!$D$127:$G$164,4,FALSE)","v":"Costruzioni leggere"},1,{"$f":"+VLOOKUP(H609,TT_Tabelle_Riferimento!$F$3:$G$6,2,FALSE)","v":"Servizio idrico integrato"},2027,{"$f":"+SUMIFS('PdI-crono_inv'!BB:BB,'PdI-crono_inv'!CF:CF,F609,'PdI-crono_inv'!CE:CE,H609,'PdI-crono_inv'!J:J,P609,'PdI-crono_inv'!P:P,\"<>proprietario\")","v":0},null,{"$f":"+SUMIFS('PdI-crono_inv'!BC:BC,'PdI-crono_inv'!CF:CF,F609,'PdI-crono_inv'!CE:CE,H609,'PdI-crono_inv'!J:J,P609,'PdI-crono_inv'!P:P,\"<>proprietario\")+S609","v":0},null,null,"Non ERC",{"$f":"+VLOOKUP(F609,TT_Tabelle_Riferimento!$D$127:$E$164,2,FALSE)","v":"Comune"},"",0]
[0,0,"Gestore",0,"IP",36,{"$f":"+VLOOKUP(F610,TT_Tabelle_Riferimento!$D$127:$G$164,4,FALSE)","v":"Studi, ricerche, brevetti, diritti di utilizzazione"},1,{"$f":"+VLOOKUP(H610,TT_Tabelle_Riferimento!$F$3:$G$6,2,FALSE)","v":"Servizio idrico integrato"},2027,{"$f":"+SUMIFS('PdI-crono_inv'!BB:BB,'PdI-crono_inv'!CF:CF,F610,'PdI-crono_inv'!CE:CE,H610,'PdI-crono_inv'!J:J,P610,'PdI-crono_inv'!P:P,\"<>proprietario\")","v":0},null,{"$f":"+SUMIFS('PdI-crono_inv'!BC:BC,'PdI-crono_inv'!CF:CF,F610,'PdI-crono_inv'!CE:CE,H610,'PdI-crono_inv'!J:J,P610,'PdI-crono_inv'!P:P,\"<>proprietario\")+S610","v":0},null,null,"Non ERC",{"$f":"+VLOOKUP(F610,TT_Tabelle_Riferimento!$D$127:$E$164,2,FALSE)","v":"Comune"},"",0]
[0,0,"Gestore",0,"IP",37,{"$f":"+VLOOKUP(F611,TT_Tabelle_Riferimento!$D$127:$G$164,4,FALSE)","v":"Altre immobilizzazioni materiali e immateriali"},1,{"$f":"+VLOOKUP(H611,TT_Tabelle_Riferimento!$F$3:$G$6,2,FALSE)","v":"Servizio idrico integrato"},2027,{"$f":"+SUMIFS('PdI-crono_inv'!BB:BB,'PdI-crono_inv'!CF:CF,F611,'PdI-crono_inv'!CE:CE,H611,'PdI-crono_inv'!J:J,P611,'PdI-crono_inv'!P:P,\"<>proprietario\")","v":0},null,{"$f":"+SUMIFS('PdI-crono_inv'!BC:BC,'PdI-crono_inv'!CF:CF,F611,'PdI-crono_inv'!CE:CE,H611,'PdI-crono_inv'!J:J,P611,'PdI-crono_inv'!P:P,\"<>proprietario\")+S611","v":0},null,null,"Non ERC",{"$f":"+VLOOKUP(F611,TT_Tabelle_Riferimento!$D$127:$E$164,2,FALSE)","v":"Comune"},"",0]
[0,0,"Gestore",0,"IP",38,{"$f":"+VLOOKUP(F612,TT_Tabelle_Riferimento!$D$127:$G$164,4,FALSE)","v":"Grandi dighe (sbarramenti che superano i quindici metri di altezza o che determinano un invaso superiore a 1 milione di metri cubi)"},1,{"$f":"+VLOOKUP(H612,TT_Tabelle_Riferimento!$F$3:$G$6,2,FALSE)","v":"Servizio idrico integrato"},2027,{"$f":"+SUMIFS('PdI-crono_inv'!BB:BB,'PdI-crono_inv'!CF:CF,F612,'PdI-crono_inv'!CE:CE,H612,'PdI-crono_inv'!J:J,P612,'PdI-crono_inv'!P:P,\"<>proprietario\")","v":0},null,{"$f":"+SUMIFS('PdI-crono_inv'!BC:BC,'PdI-crono_inv'!CF:CF,F612,'PdI-crono_inv'!CE:CE,H612,'PdI-crono_inv'!J:J,P612,'PdI-crono_inv'!P:P,\"<>proprietario\")+S612","v":0},null,null,"Non ERC",{"$f":"+VLOOKUP(F612,TT_Tabelle_Riferimento!$D$127:$E$164,2,FALSE)","v":"Acquedotto"},"",0]
[0,0,"Gestore",0,"IP",39,{"$f":"+VLOOKUP(F613,TT_Tabelle_Riferimento!$D$127:$G$164,4,FALSE)","v":"Piccole dighe (sbarramenti che non superano i quindici metri di altezza o che determinano un invaso non superiore a 1 milione di metri cubi)"},1,{"$f":"+VLOOKUP(H613,TT_Tabelle_Riferimento!$F$3:$G$6,2,FALSE)","v":"Servizio idrico integrato"},2027,{"$f":"+SUMIFS('PdI-crono_inv'!BB:BB,'PdI-crono_inv'!CF:CF,F613,'PdI-crono_inv'!CE:CE,H613,'PdI-crono_inv'!J:J,P613,'PdI-crono_inv'!P:P,\"<>proprietario\")","v":0},null,{"$f":"+SUMIFS('PdI-crono_inv'!BC:BC,'PdI-crono_inv'!CF:CF,F613,'PdI-crono_inv'!CE:CE,H613,'PdI-crono_inv'!J:J,P613,'PdI-crono_inv'!P:P,\"<>proprietario\")+S613","v":0},null,null,"Non ERC",{"$f":"+VLOOKUP(F613,TT_Tabelle_Riferimento!$D$127:$E$164,2,FALSE)","v":"Acquedotto"},"",0]
[{"$f":"+idato","v":0},{"$f":"+idgestore","v":0},"Gestore",0,"IP",2,{"$f":"+VLOOKUP(F614,TT_Tabelle_Riferimento!$D$127:$G$164,4,FALSE)","v":"Condotte di acquedotto"},2,{"$f":"+VLOOKUP(H614,TT_Tabelle_Riferimento!$F$3:$G$6,2,FALSE)","v":"Fognatura bianca e pulizia / manutenzione caditoie stradali"},2027,{"$f":"+SUMIFS('PdI-crono_inv'!BB:BB,'PdI-crono_inv'!CF:CF,F614,'PdI-crono_inv'!CE:CE,H614,'PdI-crono_inv'!J:J,P614,'PdI-crono_inv'!P:P,\"<>proprietario\")","v":0},null,{"$f":"+SUMIFS('PdI-crono_inv'!BC:BC,'PdI-crono_inv'!CF:CF,F614,'PdI-crono_inv'!CE:CE,H614,'PdI-crono_inv'!J:J,P614,'PdI-crono_inv'!P:P,\"<>proprietario\")+S614","v":0},null,null,"Non ERC",{"$f":"+VLOOKUP(F614,TT_Tabelle_Riferimento!$D$127:$E$164,2,FALSE)","v":"Acquedotto"},"",0]
[0,0,"Gestore",0,"IP",3,{"$f":"+VLOOKUP(F615,TT_Tabelle_Riferimento!$D$127:$G$164,4,FALSE)","v":"Opere idrauliche fisse di acquedotto"},2,{"$f":"+VLOOKUP(H615,TT_Tabelle_Riferimento!$F$3:$G$6,2,FALSE)","v":"Fognatura bianca e pulizia / manutenzione caditoie stradali"},2027,{"$f":"+SUMIFS('PdI-crono_inv'!BB:BB,'PdI-crono_inv'!CF:CF,F615,'PdI-crono_inv'!CE:CE,H615,'PdI-crono_inv'!J:J,P615,'PdI-crono_inv'!P:P,\"<>proprietario\")","v":0},null,{"$f":"+SUMIFS('PdI-crono_inv'!BC:BC,'PdI-crono_inv'!CF:CF,F615,'PdI-crono_inv'!CE:CE,H615,'PdI-crono_inv'!J:J,P615,'PdI-crono_inv'!P:P,\"<>proprietario\")+S615","v":0},null,null,"Non ERC",{"$f":"+VLOOKUP(F615,TT_Tabelle_Riferimento!$D$127:$E$164,2,FALSE)","v":"Acquedotto"},"",0]
[0,0,"Gestore",0,"IP",4,{"$f":"+VLOOKUP(F616,TT_Tabelle_Riferimento!$D$127:$G$164,4,FALSE)","v":"Serbatoi"},2,{"$f":"+VLOOKUP(H616,TT_Tabelle_Riferimento!$F$3:$G$6,2,FALSE)","v":"Fognatura bianca e pulizia / manutenzione caditoie stradali"},2027,{"$f":"+SUMIFS('PdI-crono_inv'!BB:BB,'PdI-crono_inv'!CF:CF,F616,'PdI-crono_inv'!CE:CE,H616,'PdI-crono_inv'!J:J,P616,'PdI-crono_inv'!P:P,\"<>proprietario\")","v":0},null,{"$f":"+SUMIFS('PdI-crono_inv'!BC:BC,'PdI-crono_inv'!CF:CF,F616,'PdI-crono_inv'!CE:CE,H616,'PdI-crono_inv'!J:J,P616,'PdI-crono_inv'!P:P,\"<>proprietario\")+S616","v":0},null,null,"Non ERC",{"$f":"+VLOOKUP(F616,TT_Tabelle_Riferimento!$D$127:$E$164,2,FALSE)","v":"Acquedotto"},"",0]
[0,0,"Gestore",0,"IP",5,{"$f":"+VLOOKUP(F617,TT_Tabelle_Riferimento!$D$127:$G$164,4,FALSE)","v":"Impianti di sollevamento e pompaggio di acquedotto"},2,{"$f":"+VLOOKUP(H617,TT_Tabelle_Riferimento!$F$3:$G$6,2,FALSE)","v":"Fognatura bianca e pulizia / manutenzione caditoie stradali"},2027,{"$f":"+SUMIFS('PdI-crono_inv'!BB:BB,'PdI-crono_inv'!CF:CF,F617,'PdI-crono_inv'!CE:CE,H617,'PdI-crono_inv'!J:J,P617,'PdI-crono_inv'!P:P,\"<>proprietario\")","v":0},null,{"$f":"+SUMIFS('PdI-crono_inv'!BC:BC,'PdI-crono_inv'!CF:CF,F617,'PdI-crono_inv'!CE:CE,H617,'PdI-crono_inv'!J:J,P617,'PdI-crono_inv'!P:P,\"<>proprietario\")+S617","v":0},null,null,"Non ERC",{"$f":"+VLOOKUP(F617,TT_Tabelle_Riferimento!$D$127:$E$164,2,FALSE)","v":"Acquedotto"},"",0]
[0,0,"Gestore",0,"IP",6,{"$f":"+VLOOKUP(F618,TT_Tabelle_Riferimento!$D$127:$G$164,4,FALSE)","v":"Impianti di potabilizzazione"},2,{"$f":"+VLOOKUP(H618,TT_Tabelle_Riferimento!$F$3:$G$6,2,FALSE)","v":"Fognatura bianca e pulizia / manutenzione caditoie stradali"},2027,{"$f":"+SUMIFS('PdI-crono_inv'!BB:BB,'PdI-crono_inv'!CF:CF,F618,'PdI-crono_inv'!CE:CE,H618,'PdI-crono_inv'!J:J,P618,'PdI-crono_inv'!P:P,\"<>proprietario\")","v":0},null,{"$f":"+SUMIFS('PdI-crono_inv'!BC:BC,'PdI-crono_inv'!CF:CF,F618,'PdI-crono_inv'!CE:CE,H618,'PdI-crono_inv'!J:J,P618,'PdI-crono_inv'!P:P,\"<>proprietario\")+S618","v":0},null,null,"Non ERC",{"$f":"+VLOOKUP(F618,TT_Tabelle_Riferimento!$D$127:$E$164,2,FALSE)","v":"Acquedotto"},"",0]
[0,0,"Gestore",0,"IP",7,{"$f":"+VLOOKUP(F619,TT_Tabelle_Riferimento!$D$127:$G$164,4,FALSE)","v":"Altri trattamenti di potabilizzazione (tra cui dispositivi di disinfezione, stacciatura, filtrazione, addolcimento)"},2,{"$f":"+VLOOKUP(H619,TT_Tabelle_Riferimento!$F$3:$G$6,2,FALSE)","v":"Fognatura bianca e pulizia / manutenzione caditoie stradali"},2027,{"$f":"+SUMIFS('PdI-crono_inv'!BB:BB,'PdI-crono_inv'!CF:CF,F619,'PdI-crono_inv'!CE:CE,H619,'PdI-crono_inv'!J:J,P619,'PdI-crono_inv'!P:P,\"<>proprietario\")","v":0},null,{"$f":"+SUMIFS('PdI-crono_inv'!BC:BC,'PdI-crono_inv'!CF:CF,F619,'PdI-crono_inv'!CE:CE,H619,'PdI-crono_inv'!J:J,P619,'PdI-crono_inv'!P:P,\"<>proprietario\")+S619","v":0},null,null,"Non ERC",{"$f":"+VLOOKUP(F619,TT_Tabelle_Riferimento!$D$127:$E$164,2,FALSE)","v":"Acquedotto"},"",0]
[0,0,"Gestore",0,"IP",8,{"$f":"+VLOOKUP(F620,TT_Tabelle_Riferimento!$D$127:$G$164,4,FALSE)","v":"Gruppi di misura - altre attrezzature di acquedotto"},2,{"$f":"+VLOOKUP(H620,TT_Tabelle_Riferimento!$F$3:$G$6,2,FALSE)","v":"Fognatura bianca e pulizia / manutenzione caditoie stradali"},2027,{"$f":"+SUMIFS('PdI-crono_inv'!BB:BB,'PdI-crono_inv'!CF:CF,F620,'PdI-crono_inv'!CE:CE,H620,'PdI-crono_inv'!J:J,P620,'PdI-crono_inv'!P:P,\"<>proprietario\")","v":0},null,{"$f":"+SUMIFS('PdI-crono_inv'!BC:BC,'PdI-crono_inv'!CF:CF,F620,'PdI-crono_inv'!CE:CE,H620,'PdI-crono_inv'!J:J,P620,'PdI-crono_inv'!P:P,\"<>proprietario\")+S620","v":0},null,null,"Non ERC",{"$f":"+VLOOKUP(F620,TT_Tabelle_Riferimento!$D$127:$E$164,2,FALSE)","v":"Acquedotto"},"",0]
[0,0,"Gestore",0,"IP",9,{"$f":"+VLOOKUP(F621,TT_Tabelle_Riferimento!$D$127:$G$164,4,FALSE)","v":"Sistemi informativi di acquedotto"},2,{"$f":"+VLOOKUP(H621,TT_Tabelle_Riferimento!$F$3:$G$6,2,FALSE)","v":"Fognatura bianca e pulizia / manutenzione caditoie stradali"},2027,{"$f":"+SUMIFS('PdI-crono_inv'!BB:BB,'PdI-crono_inv'!CF:CF,F621,'PdI-crono_inv'!CE:CE,H621,'PdI-crono_inv'!J:J,P621,'PdI-crono_inv'!P:P,\"<>proprietario\")","v":0},null,{"$f":"+SUMIFS('PdI-crono_inv'!BC:BC,'PdI-crono_inv'!CF:CF,F621,'PdI-crono_inv'!CE:CE,H621,'PdI-crono_inv'!J:J,P621,'PdI-crono_inv'!P:P,\"<>proprietario\")+S621","v":0},null,null,"Non ERC",{"$f":"+VLOOKUP(F621,TT_Tabelle_Riferimento!$D$127:$E$164,2,FALSE)","v":"Acquedotto"},"",0]
[0,0,"Gestore",0,"IP",10,{"$f":"+VLOOKUP(F622,TT_Tabelle_Riferimento!$D$127:$G$164,4,FALSE)","v":"Telecontrollo e teletrasmissione di acquedotto"},2,{"$f":"+VLOOKUP(H622,TT_Tabelle_Riferimento!$F$3:$G$6,2,FALSE)","v":"Fognatura bianca e pulizia / manutenzione caditoie stradali"},2027,{"$f":"+SUMIFS('PdI-crono_inv'!BB:BB,'PdI-crono_inv'!CF:CF,F622,'PdI-crono_inv'!CE:CE,H622,'PdI-crono_inv'!J:J,P622,'PdI-crono_inv'!P:P,\"<>proprietario\")","v":0},null,{"$f":"+SUMIFS('PdI-crono_inv'!BC:BC,'PdI-crono_inv'!CF:CF,F622,'PdI-crono_inv'!CE:CE,H622,'PdI-crono_inv'!J:J,P622,'PdI-crono_inv'!P:P,\"<>proprietario\")+S622","v":0},null,null,"Non ERC",{"$f":"+VLOOKUP(F622,TT_Tabelle_Riferimento!$D$127:$E$164,2,FALSE)","v":"Acquedotto"},"",0]
[0,0,"Gestore",0,"IP",11,{"$f":"+VLOOKUP(F623,TT_Tabelle_Riferimento!$D$127:$G$164,4,FALSE)","v":"Condotte fognarie"},2,{"$f":"+VLOOKUP(H623,TT_Tabelle_Riferimento!$F$3:$G$6,2,FALSE)","v":"Fognatura bianca e pulizia / manutenzione caditoie stradali"},2027,{"$f":"+SUMIFS('PdI-crono_inv'!BB:BB,'PdI-crono_inv'!CF:CF,F623,'PdI-crono_inv'!CE:CE,H623,'PdI-crono_inv'!J:J,P623,'PdI-crono_inv'!P:P,\"<>proprietario\")","v":0},null,{"$f":"+SUMIFS('PdI-crono_inv'!BC:BC,'PdI-crono_inv'!CF:CF,F623,'PdI-crono_inv'!CE:CE,H623,'PdI-crono_inv'!J:J,P623,'PdI-crono_inv'!P:P,\"<>proprietario\")+S623","v":0},null,null,"Non ERC",{"$f":"+VLOOKUP(F623,TT_Tabelle_Riferimento!$D$127:$E$164,2,FALSE)","v":"Fognatura"},"",0]
[0,0,"Gestore",0,"IP",12,{"$f":"+VLOOKUP(F624,TT_Tabelle_Riferimento!$D$127:$G$164,4,FALSE)","v":"Sifoni e scaricatori di piena e altre opere idrauliche fisse di fognatura"},2,{"$f":"+VLOOKUP(H624,TT_Tabelle_Riferimento!$F$3:$G$6,2,FALSE)","v":"Fognatura bianca e pulizia / manutenzione caditoie stradali"},2027,{"$f":"+SUMIFS('PdI-crono_inv'!BB:BB,'PdI-crono_inv'!CF:CF,F624,'PdI-crono_inv'!CE:CE,H624,'PdI-crono_inv'!J:J,P624,'PdI-crono_inv'!P:P,\"<>proprietario\")","v":0},null,{"$f":"+SUMIFS('PdI-crono_inv'!BC:BC,'PdI-crono_inv'!CF:CF,F624,'PdI-crono_inv'!CE:CE,H624,'PdI-crono_inv'!J:J,P624,'PdI-crono_inv'!P:P,\"<>proprietario\")+S624","v":0},null,null,"Non ERC",{"$f":"+VLOOKUP(F624,TT_Tabelle_Riferimento!$D$127:$E$164,2,FALSE)","v":"Fognatura"},"",0]
[0,0,"Gestore",0,"IP",13,{"$f":"+VLOOKUP(F625,TT_Tabelle_Riferimento!$D$127:$G$164,4,FALSE)","v":"Vasche di laminazione e vasche di prima pioggia"},2,{"$f":"+VLOOKUP(H625,TT_Tabelle_Riferimento!$F$3:$G$6,2,FALSE)","v":"Fognatura bianca e pulizia / manutenzione caditoie stradali"},2027,{"$f":"+SUMIFS('PdI-crono_inv'!BB:BB,'PdI-crono_inv'!CF:CF,F625,'PdI-crono_inv'!CE:CE,H625,'PdI-crono_inv'!J:J,P625,'PdI-crono_inv'!P:P,\"<>proprietario\")","v":0},null,{"$f":"+SUMIFS('PdI-crono_inv'!BC:BC,'PdI-crono_inv'!CF:CF,F625,'PdI-crono_inv'!CE:CE,H625,'PdI-crono_inv'!J:J,P625,'PdI-crono_inv'!P:P,\"<>proprietario\")+S625","v":0},null,null,"Non ERC",{"$f":"+VLOOKUP(F625,TT_Tabelle_Riferimento!$D$127:$E$164,2,FALSE)","v":"Fognatura"},"",0]
[0,0,"Gestore",0,"IP",14,{"$f":"+VLOOKUP(F626,TT_Tabelle_Riferimento!$D$127:$G$164,4,FALSE)","v":"Impianti di sollevamento e pompaggio di fognatura"},2,{"$f":"+VLOOKUP(H626,TT_Tabelle_Riferimento!$F$3:$G$6,2,FALSE)","v":"Fognatura bianca e pulizia / manutenzione caditoie stradali"},2027,{"$f":"+SUMIFS('PdI-crono_inv'!BB:BB,'PdI-crono_inv'!CF:CF,F626,'PdI-crono_inv'!CE:CE,H626,'PdI-crono_inv'!J:J,P626,'PdI-crono_inv'!P:P,\"<>proprietario\")","v":0},null,{"$f":"+SUMIFS('PdI-crono_inv'!BC:BC,'PdI-crono_inv'!CF:CF,F626,'PdI-crono_inv'!CE:CE,H626,'PdI-crono_inv'!J:J,P626,'PdI-crono_inv'!P:P,\"<>proprietario\")+S626","v":0},null,null,"Non ERC",{"$f":"+VLOOKUP(F626,TT_Tabelle_Riferimento!$D$127:$E$164,2,FALSE)","v":"Fognatura"},"",0]
[0,0,"Gestore",0,"IP",15,{"$f":"+VLOOKUP(F627,TT_Tabelle_Riferimento!$D$127:$G$164,4,FALSE)","v":"Gruppi di misura - altre attrezzature di fognatura"},2,{"$f":"+VLOOKUP(H627,TT_Tabelle_Riferimento!$F$3:$G$6,2,FALSE)","v":"Fognatura bianca e pulizia / manutenzione caditoie stradali"},2027,{"$f":"+SUMIFS('PdI-crono_inv'!BB:BB,'PdI-crono_inv'!CF:CF,F627,'PdI-crono_inv'!CE:CE,H627,'PdI-crono_inv'!J:J,P627,'PdI-crono_inv'!P:P,\"<>proprietario\")","v":0},null,{"$f":"+SUMIFS('PdI-crono_inv'!BC:BC,'PdI-crono_inv'!CF:CF,F627,'PdI-crono_inv'!CE:CE,H627,'PdI-crono_inv'!J:J,P627,'PdI-crono_inv'!P:P,\"<>proprietario\")+S627","v":0},null,null,"Non ERC",{"$f":"+VLOOKUP(F627,TT_Tabelle_Riferimento!$D$127:$E$164,2,FALSE)","v":"Fognatura"},"",0]
[0,0,"Gestore",0,"IP",16,{"$f":"+VLOOKUP(F628,TT_Tabelle_Riferimento!$D$127:$G$164,4,FALSE)","v":"Sistemi informativi di fognatura"},2,{"$f":"+VLOOKUP(H628,TT_Tabelle_Riferimento!$F$3:$G$6,2,FALSE)","v":"Fognatura bianca e pulizia / manutenzione caditoie stradali"},2027,{"$f":"+SUMIFS('PdI-crono_inv'!BB:BB,'PdI-crono_inv'!CF:CF,F628,'PdI-crono_inv'!CE:CE,H628,'PdI-crono_inv'!J:J,P628,'PdI-crono_inv'!P:P,\"<>proprietario\")","v":0},null,{"$f":"+SUMIFS('PdI-crono_inv'!BC:BC,'PdI-crono_inv'!CF:CF,F628,'PdI-crono_inv'!CE:CE,H628,'PdI-crono_inv'!J:J,P628,'PdI-crono_inv'!P:P,\"<>proprietario\")+S628","v":0},null,null,"Non ERC",{"$f":"+VLOOKUP(F628,TT_Tabelle_Riferimento!$D$127:$E$164,2,FALSE)","v":"Fognatura"},"",0]
[0,0,"Gestore",0,"IP",18,{"$f":"+VLOOKUP(F629,TT_Tabelle_Riferimento!$D$127:$G$164,4,FALSE)","v":"Telecontrollo e teletrasmissione di fognatura"},2,{"$f":"+VLOOKUP(H629,TT_Tabelle_Riferimento!$F$3:$G$6,2,FALSE)","v":"Fognatura bianca e pulizia / manutenzione caditoie stradali"},2027,{"$f":"+SUMIFS('PdI-crono_inv'!BB:BB,'PdI-crono_inv'!CF:CF,F629,'PdI-crono_inv'!CE:CE,H629,'PdI-crono_inv'!J:J,P629,'PdI-crono_inv'!P:P,\"<>proprietario\")","v":0},null,{"$f":"+SUMIFS('PdI-crono_inv'!BC:BC,'PdI-crono_inv'!CF:CF,F629,'PdI-crono_inv'!CE:CE,H629,'PdI-crono_inv'!J:J,P629,'PdI-crono_inv'!P:P,\"<>proprietario\")+S629","v":0},null,null,"Non ERC",{"$f":"+VLOOKUP(F629,TT_Tabelle_Riferimento!$D$127:$E$164,2,FALSE)","v":"Fognatura"},"",0]
[0,0,"Gestore",0,"IP",19,{"$f":"+VLOOKUP(F630,TT_Tabelle_Riferimento!$D$127:$G$164,4,FALSE)","v":"Impianti di sollevamento e pompaggio di depurazione"},2,{"$f":"+VLOOKUP(H630,TT_Tabelle_Riferimento!$F$3:$G$6,2,FALSE)","v":"Fognatura bianca e pulizia / manutenzione caditoie stradali"},2027,{"$f":"+SUMIFS('PdI-crono_inv'!BB:BB,'PdI-crono_inv'!CF:CF,F630,'PdI-crono_inv'!CE:CE,H630,'PdI-crono_inv'!J:J,P630,'PdI-crono_inv'!P:P,\"<>proprietario\")","v":0},null,{"$f":"+SUMIFS('PdI-crono_inv'!BC:BC,'PdI-crono_inv'!CF:CF,F630,'PdI-crono_inv'!CE:CE,H630,'PdI-crono_inv'!J:J,P630,'PdI-crono_inv'!P:P,\"<>proprietario\")+S630","v":0},null,null,"Non ERC",{"$f":"+VLOOKUP(F630,TT_Tabelle_Riferimento!$D$127:$E$164,2,FALSE)","v":"Depurazione"},"",0]
[0,0,"Gestore",0,"IP",20,{"$f":"+VLOOKUP(F631,TT_Tabelle_Riferimento!$D$127:$G$164,4,FALSE)","v":"Tecniche naturali di depurazione (tra cui fitodepurazione e lagunaggio)"},2,{"$f":"+VLOOKUP(H631,TT_Tabelle_Riferimento!$F$3:$G$6,2,FALSE)","v":"Fognatura bianca e pulizia / manutenzione caditoie stradali"},2027,{"$f":"+SUMIFS('PdI-crono_inv'!BB:BB,'PdI-crono_inv'!CF:CF,F631,'PdI-crono_inv'!CE:CE,H631,'PdI-crono_inv'!J:J,P631,'PdI-crono_inv'!P:P,\"<>proprietario\")","v":0},null,{"$f":"+SUMIFS('PdI-crono_inv'!BC:BC,'PdI-crono_inv'!CF:CF,F631,'PdI-crono_inv'!CE:CE,H631,'PdI-crono_inv'!J:J,P631,'PdI-crono_inv'!P:P,\"<>proprietario\")+S631","v":0},null,null,"Non ERC",{"$f":"+VLOOKUP(F631,TT_Tabelle_Riferimento!$D$127:$E$164,2,FALSE)","v":"Depurazione"},"",0]
[0,0,"Gestore",0,"IP",21,{"$f":"+VLOOKUP(F632,TT_Tabelle_Riferimento!$D$127:$G$164,4,FALSE)","v":"Impianti di depurazione – trattamenti sino al preliminare, integrativo, primario - fosse settiche e fosse Imhoff"},2,{"$f":"+VLOOKUP(H632,TT_Tabelle_Riferimento!$F$3:$G$6,2,FALSE)","v":"Fognatura bianca e pulizia / manutenzione caditoie stradali"},2027,{"$f":"+SUMIFS('PdI-crono_inv'!BB:BB,'PdI-crono_inv'!CF:CF,F632,'PdI-crono_inv'!CE:CE,H632,'PdI-crono_inv'!J:J,P632,'PdI-crono_inv'!P:P,\"<>proprietario\")","v":0},null,{"$f":"+SUMIFS('PdI-crono_inv'!BC:BC,'PdI-crono_inv'!CF:CF,F632,'PdI-crono_inv'!CE:CE,H632,'PdI-crono_inv'!J:J,P632,'PdI-crono_inv'!P:P,\"<>proprietario\")+S632","v":0},null,null,"Non ERC",{"$f":"+VLOOKUP(F632,TT_Tabelle_Riferimento!$D$127:$E$164,2,FALSE)","v":"Depurazione"},"",0]
[0,0,"Gestore",0,"IP",22,{"$f":"+VLOOKUP(F633,TT_Tabelle_Riferimento!$D$127:$G$164,4,FALSE)","v":"Impianti di depurazione – trattamenti sino al secondario"},2,{"$f":"+VLOOKUP(H633,TT_Tabelle_Riferimento!$F$3:$G$6,2,FALSE)","v":"Fognatura bianca e pulizia / manutenzione caditoie stradali"},2027,{"$f":"+SUMIFS('PdI-crono_inv'!BB:BB,'PdI-crono_inv'!CF:CF,F633,'PdI-crono_inv'!CE:CE,H633,'PdI-crono_inv'!J:J,P633,'PdI-crono_inv'!P:P,\"<>proprietario\")","v":0},null,{"$f":"+SUMIFS('PdI-crono_inv'!BC:BC,'PdI-crono_inv'!CF:CF,F633,'PdI-crono_inv'!CE:CE,H633,'PdI-crono_inv'!J:J,P633,'PdI-crono_inv'!P:P,\"<>proprietario\")+S633","v":0},null,null,"Non ERC",{"$f":"+VLOOKUP(F633,TT_Tabelle_Riferimento!$D$127:$E$164,2,FALSE)","v":"Depurazione"},"",0]
[0,0,"Gestore",0,"IP",23,{"$f":"+VLOOKUP(F634,TT_Tabelle_Riferimento!$D$127:$G$164,4,FALSE)","v":"Impianti di depurazione – trattamenti sino al terziario e terziario avanzato"},2,{"$f":"+VLOOKUP(H634,TT_Tabelle_Riferimento!$F$3:$G$6,2,FALSE)","v":"Fognatura bianca e pulizia / manutenzione caditoie stradali"},2027,{"$f":"+SUMIFS('PdI-crono_inv'!BB:BB,'PdI-crono_inv'!CF:CF,F634,'PdI-crono_inv'!CE:CE,H634,'PdI-crono_inv'!J:J,P634,'PdI-crono_inv'!P:P,\"<>proprietario\")","v":0},null,{"$f":"+SUMIFS('PdI-crono_inv'!BC:BC,'PdI-crono_inv'!CF:CF,F634,'PdI-crono_inv'!CE:CE,H634,'PdI-crono_inv'!J:J,P634,'PdI-crono_inv'!P:P,\"<>proprietario\")+S634","v":0},null,null,"Non ERC",{"$f":"+VLOOKUP(F634,TT_Tabelle_Riferimento!$D$127:$E$164,2,FALSE)","v":"Depurazione"},"",0]
[0,0,"Gestore",0,"IP",24,{"$f":"+VLOOKUP(F635,TT_Tabelle_Riferimento!$D$127:$G$164,4,FALSE)","v":"Impianti di essiccamento fanghi e di valorizzazione dei fanghi (tra cui mono-incenerimento, pirolisi, gassificazione)"},2,{"$f":"+VLOOKUP(H635,TT_Tabelle_Riferimento!$F$3:$G$6,2,FALSE)","v":"Fognatura bianca e pulizia / manutenzione caditoie stradali"},2027,{"$f":"+SUMIFS('PdI-crono_inv'!BB:BB,'PdI-crono_inv'!CF:CF,F635,'PdI-crono_inv'!CE:CE,H635,'PdI-crono_inv'!J:J,P635,'PdI-crono_inv'!P:P,\"<>proprietario\")","v":0},null,{"$f":"+SUMIFS('PdI-crono_inv'!BC:BC,'PdI-crono_inv'!CF:CF,F635,'PdI-crono_inv'!CE:CE,H635,'PdI-crono_inv'!J:J,P635,'PdI-crono_inv'!P:P,\"<>proprietario\")+S635","v":0},null,null,"Non ERC",{"$f":"+VLOOKUP(F635,TT_Tabelle_Riferimento!$D$127:$E$164,2,FALSE)","v":"Depurazione"},"",0]
[0,0,"Gestore",0,"IP",25,{"$f":"+VLOOKUP(F636,TT_Tabelle_Riferimento!$D$127:$G$164,4,FALSE)","v":"Gruppi di misura - altre attrezzature di depurazione"},2,{"$f":"+VLOOKUP(H636,TT_Tabelle_Riferimento!$F$3:$G$6,2,FALSE)","v":"Fognatura bianca e pulizia / manutenzione caditoie stradali"},2027,{"$f":"+SUMIFS('PdI-crono_inv'!BB:BB,'PdI-crono_inv'!CF:CF,F636,'PdI-crono_inv'!CE:CE,H636,'PdI-crono_inv'!J:J,P636,'PdI-crono_inv'!P:P,\"<>proprietario\")","v":0},null,{"$f":"+SUMIFS('PdI-crono_inv'!BC:BC,'PdI-crono_inv'!CF:CF,F636,'PdI-crono_inv'!CE:CE,H636,'PdI-crono_inv'!J:J,P636,'PdI-crono_inv'!P:P,\"<>proprietario\")+S636","v":0},null,null,"Non ERC",{"$f":"+VLOOKUP(F636,TT_Tabelle_Riferimento!$D$127:$E$164,2,FALSE)","v":"Depurazione"},"",0]
[0,0,"Gestore",0,"IP",26,{"$f":"+VLOOKUP(F637,TT_Tabelle_Riferimento!$D$127:$G$164,4,FALSE)","v":"Sistemi informativi di depurazione"},2,{"$f":"+VLOOKUP(H637,TT_Tabelle_Riferimento!$F$3:$G$6,2,FALSE)","v":"Fognatura bianca e pulizia / manutenzione caditoie stradali"},2027,{"$f":"+SUMIFS('PdI-crono_inv'!BB:BB,'PdI-crono_inv'!CF:CF,F637,'PdI-crono_inv'!CE:CE,H637,'PdI-crono_inv'!J:J,P637,'PdI-crono_inv'!P:P,\"<>proprietario\")","v":0},null,{"$f":"+SUMIFS('PdI-crono_inv'!BC:BC,'PdI-crono_inv'!CF:CF,F637,'PdI-crono_inv'!CE:CE,H637,'PdI-crono_inv'!J:J,P637,'PdI-crono_inv'!P:P,\"<>proprietario\")+S637","v":0},null,null,"Non ERC",{"$f":"+VLOOKUP(F637,TT_Tabelle_Riferimento!$D$127:$E$164,2,FALSE)","v":"Depurazione"},"",0]
[0,0,"Gestore",0,"IP",27,{"$f":"+VLOOKUP(F638,TT_Tabelle_Riferimento!$D$127:$G$164,4,FALSE)","v":"Telecontrollo e teletrasmissione di depurazione"},2,{"$f":"+VLOOKUP(H638,TT_Tabelle_Riferimento!$F$3:$G$6,2,FALSE)","v":"Fognatura bianca e pulizia / manutenzione caditoie stradali"},2027,{"$f":"+SUMIFS('PdI-crono_inv'!BB:BB,'PdI-crono_inv'!CF:CF,F638,'PdI-crono_inv'!CE:CE,H638,'PdI-crono_inv'!J:J,P638,'PdI-crono_inv'!P:P,\"<>proprietario\")","v":0},null,{"$f":"+SUMIFS('PdI-crono_inv'!BC:BC,'PdI-crono_inv'!CF:CF,F638,'PdI-crono_inv'!CE:CE,H638,'PdI-crono_inv'!J:J,P638,'PdI-crono_inv'!P:P,\"<>proprietario\")+S638","v":0},null,null,"Non ERC",{"$f":"+VLOOKUP(F638,TT_Tabelle_Riferimento!$D$127:$E$164,2,FALSE)","v":"Depurazione"},"",0]
[0,0,"Gestore",0,"IP",28,{"$f":"+VLOOKUP(F639,TT_Tabelle_Riferimento!$D$127:$G$164,4,FALSE)","v":"Altri impianti"},2,{"$f":"+VLOOKUP(H639,TT_Tabelle_Riferimento!$F$3:$G$6,2,FALSE)","v":"Fognatura bianca e pulizia / manutenzione caditoie stradali"},2027,{"$f":"+SUMIFS('PdI-crono_inv'!BB:BB,'PdI-crono_inv'!CF:CF,F639,'PdI-crono_inv'!CE:CE,H639,'PdI-crono_inv'!J:J,P639,'PdI-crono_inv'!P:P,\"<>proprietario\")","v":0},null,{"$f":"+SUMIFS('PdI-crono_inv'!BC:BC,'PdI-crono_inv'!CF:CF,F639,'PdI-crono_inv'!CE:CE,H639,'PdI-crono_inv'!J:J,P639,'PdI-crono_inv'!P:P,\"<>proprietario\")+S639","v":0},null,null,"Non ERC",{"$f":"+VLOOKUP(F639,TT_Tabelle_Riferimento!$D$127:$E$164,2,FALSE)","v":"Comune"},"",0]
[0,0,"Gestore",0,"IP",29,{"$f":"+VLOOKUP(F640,TT_Tabelle_Riferimento!$D$127:$G$164,4,FALSE)","v":"Laboratori e attrezzature"},2,{"$f":"+VLOOKUP(H640,TT_Tabelle_Riferimento!$F$3:$G$6,2,FALSE)","v":"Fognatura bianca e pulizia / manutenzione caditoie stradali"},2027,{"$f":"+SUMIFS('PdI-crono_inv'!BB:BB,'PdI-crono_inv'!CF:CF,F640,'PdI-crono_inv'!CE:CE,H640,'PdI-crono_inv'!J:J,P640,'PdI-crono_inv'!P:P,\"<>proprietario\")","v":0},null,{"$f":"+SUMIFS('PdI-crono_inv'!BC:BC,'PdI-crono_inv'!CF:CF,F640,'PdI-crono_inv'!CE:CE,H640,'PdI-crono_inv'!J:J,P640,'PdI-crono_inv'!P:P,\"<>proprietario\")+S640","v":0},null,null,"Non ERC",{"$f":"+VLOOKUP(F640,TT_Tabelle_Riferimento!$D$127:$E$164,2,FALSE)","v":"Comune"},"",0]
[0,0,"Gestore",0,"IP",30,{"$f":"+VLOOKUP(F641,TT_Tabelle_Riferimento!$D$127:$G$164,4,FALSE)","v":"Sistemi informativi"},2,{"$f":"+VLOOKUP(H641,TT_Tabelle_Riferimento!$F$3:$G$6,2,FALSE)","v":"Fognatura bianca e pulizia / manutenzione caditoie stradali"},2027,{"$f":"+SUMIFS('PdI-crono_inv'!BB:BB,'PdI-crono_inv'!CF:CF,F641,'PdI-crono_inv'!CE:CE,H641,'PdI-crono_inv'!J:J,P641,'PdI-crono_inv'!P:P,\"<>proprietario\")","v":0},null,{"$f":"+SUMIFS('PdI-crono_inv'!BC:BC,'PdI-crono_inv'!CF:CF,F641,'PdI-crono_inv'!CE:CE,H641,'PdI-crono_inv'!J:J,P641,'PdI-crono_inv'!P:P,\"<>proprietario\")+S641","v":0},null,null,"Non ERC",{"$f":"+VLOOKUP(F641,TT_Tabelle_Riferimento!$D$127:$E$164,2,FALSE)","v":"Comune"},"",0]
[0,0,"Gestore",0,"IP",31,{"$f":"+VLOOKUP(F642,TT_Tabelle_Riferimento!$D$127:$G$164,4,FALSE)","v":"Telecontrollo e teletrasmissione"},2,{"$f":"+VLOOKUP(H642,TT_Tabelle_Riferimento!$F$3:$G$6,2,FALSE)","v":"Fognatura bianca e pulizia / manutenzione caditoie stradali"},2027,{"$f":"+SUMIFS('PdI-crono_inv'!BB:BB,'PdI-crono_inv'!CF:CF,F642,'PdI-crono_inv'!CE:CE,H642,'PdI-crono_inv'!J:J,P642,'PdI-crono_inv'!P:P,\"<>proprietario\")","v":0},null,{"$f":"+SUMIFS('PdI-crono_inv'!BC:BC,'PdI-crono_inv'!CF:CF,F642,'PdI-crono_inv'!CE:CE,H642,'PdI-crono_inv'!J:J,P642,'PdI-crono_inv'!P:P,\"<>proprietario\")+S642","v":0},null,null,"Non ERC",{"$f":"+VLOOKUP(F642,TT_Tabelle_Riferimento!$D$127:$E$164,2,FALSE)","v":"Comune"},{"$f":"+IF(SUM(K642:N642)=0,\"\",\"PdI_consolidamento\")","v":""},0]
[0,0,"Gestore",0,"IP",32,{"$f":"+VLOOKUP(F643,TT_Tabelle_Riferimento!$D$127:$G$164,4,FALSE)","v":"Autoveicoli - automezzi"},2,{"$f":"+VLOOKUP(H643,TT_Tabelle_Riferimento!$F$3:$G$6,2,FALSE)","v":"Fognatura bianca e pulizia / manutenzione caditoie stradali"},2027,{"$f":"+SUMIFS('PdI-crono_inv'!BB:BB,'PdI-crono_inv'!CF:CF,F643,'PdI-crono_inv'!CE:CE,H643,'PdI-crono_inv'!J:J,P643,'PdI-crono_inv'!P:P,\"<>proprietario\")","v":0},null,{"$f":"+SUMIFS('PdI-crono_inv'!BC:BC,'PdI-crono_inv'!CF:CF,F643,'PdI-crono_inv'!CE:CE,H643,'PdI-crono_inv'!J:J,P643,'PdI-crono_inv'!P:P,\"<>proprietario\")+S643","v":0},null,null,"Non ERC",{"$f":"+VLOOKUP(F643,TT_Tabelle_Riferimento!$D$127:$E$164,2,FALSE)","v":"Comune"},"",0]
[0,0,"Gestore",0,"IP",1,{"$f":"+VLOOKUP(F644,TT_Tabelle_Riferimento!$D$127:$G$164,4,FALSE)","v":"Terreni"},2,{"$f":"+VLOOKUP(H644,TT_Tabelle_Riferimento!$F$3:$G$6,2,FALSE)","v":"Fognatura bianca e pulizia / manutenzione caditoie stradali"},2027,{"$f":"+SUMIFS('PdI-crono_inv'!BB:BB,'PdI-crono_inv'!CF:CF,F644,'PdI-crono_inv'!CE:CE,H644,'PdI-crono_inv'!J:J,P644,'PdI-crono_inv'!P:P,\"<>proprietario\")","v":0},null,{"$f":"+SUMIFS('PdI-crono_inv'!BC:BC,'PdI-crono_inv'!CF:CF,F644,'PdI-crono_inv'!CE:CE,H644,'PdI-crono_inv'!J:J,P644,'PdI-crono_inv'!P:P,\"<>proprietario\")+S644","v":0},null,null,"Non ERC",{"$f":"+VLOOKUP(F644,TT_Tabelle_Riferimento!$D$127:$E$164,2,FALSE)","v":"Comune"},"",0]
[0,0,"Gestore",0,"IP",33,{"$f":"+VLOOKUP(F645,TT_Tabelle_Riferimento!$D$127:$G$164,4,FALSE)","v":"Fabbricati non industriali"},2,{"$f":"+VLOOKUP(H645,TT_Tabelle_Riferimento!$F$3:$G$6,2,FALSE)","v":"Fognatura bianca e pulizia / manutenzione caditoie stradali"},2027,{"$f":"+SUMIFS('PdI-crono_inv'!BB:BB,'PdI-crono_inv'!CF:CF,F645,'PdI-crono_inv'!CE:CE,H645,'PdI-crono_inv'!J:J,P645,'PdI-crono_inv'!P:P,\"<>proprietario\")","v":0},null,{"$f":"+SUMIFS('PdI-crono_inv'!BC:BC,'PdI-crono_inv'!CF:CF,F645,'PdI-crono_inv'!CE:CE,H645,'PdI-crono_inv'!J:J,P645,'PdI-crono_inv'!P:P,\"<>proprietario\")+S645","v":0},null,null,"Non ERC",{"$f":"+VLOOKUP(F645,TT_Tabelle_Riferimento!$D$127:$E$164,2,FALSE)","v":"Comune"},"",0]
[0,0,"Gestore",0,"IP",34,{"$f":"+VLOOKUP(F646,TT_Tabelle_Riferimento!$D$127:$G$164,4,FALSE)","v":"Fabbricati industriali"},2,{"$f":"+VLOOKUP(H646,TT_Tabelle_Riferimento!$F$3:$G$6,2,FALSE)","v":"Fognatura bianca e pulizia / manutenzione caditoie stradali"},2027,{"$f":"+SUMIFS('PdI-crono_inv'!BB:BB,'PdI-crono_inv'!CF:CF,F646,'PdI-crono_inv'!CE:CE,H646,'PdI-crono_inv'!J:J,P646,'PdI-crono_inv'!P:P,\"<>proprietario\")","v":0},null,{"$f":"+SUMIFS('PdI-crono_inv'!BC:BC,'PdI-crono_inv'!CF:CF,F646,'PdI-crono_inv'!CE:CE,H646,'PdI-crono_inv'!J:J,P646,'PdI-crono_inv'!P:P,\"<>proprietario\")+S646","v":0},null,null,"Non ERC",{"$f":"+VLOOKUP(F646,TT_Tabelle_Riferimento!$D$127:$E$164,2,FALSE)","v":"Comune"},"",0]
[0,0,"Gestore",0,"IP",35,{"$f":"+VLOOKUP(F647,TT_Tabelle_Riferimento!$D$127:$G$164,4,FALSE)","v":"Costruzioni leggere"},2,{"$f":"+VLOOKUP(H647,TT_Tabelle_Riferimento!$F$3:$G$6,2,FALSE)","v":"Fognatura bianca e pulizia / manutenzione caditoie stradali"},2027,{"$f":"+SUMIFS('PdI-crono_inv'!BB:BB,'PdI-crono_inv'!CF:CF,F647,'PdI-crono_inv'!CE:CE,H647,'PdI-crono_inv'!J:J,P647,'PdI-crono_inv'!P:P,\"<>proprietario\")","v":0},null,{"$f":"+SUMIFS('PdI-crono_inv'!BC:BC,'PdI-crono_inv'!CF:CF,F647,'PdI-crono_inv'!CE:CE,H647,'PdI-crono_inv'!J:J,P647,'PdI-crono_inv'!P:P,\"<>proprietario\")+S647","v":0},null,null,"Non ERC",{"$f":"+VLOOKUP(F647,TT_Tabelle_Riferimento!$D$127:$E$164,2,FALSE)","v":"Comune"},"",{"$f":"+IFERROR(HLOOKUP(J647,$X$2:$Y$5,4,FALSE)*K647,0)","v":0}]
[0,0,"Gestore",0,"IP",36,{"$f":"+VLOOKUP(F648,TT_Tabelle_Riferimento!$D$127:$G$164,4,FALSE)","v":"Studi, ricerche, brevetti, diritti di utilizzazione"},2,{"$f":"+VLOOKUP(H648,TT_Tabelle_Riferimento!$F$3:$G$6,2,FALSE)","v":"Fognatura bianca e pulizia / manutenzione caditoie stradali"},2027,{"$f":"+SUMIFS('PdI-crono_inv'!BB:BB,'PdI-crono_inv'!CF:CF,F648,'PdI-crono_inv'!CE:CE,H648,'PdI-crono_inv'!J:J,P648,'PdI-crono_inv'!P:P,\"<>proprietario\")","v":0},null,{"$f":"+SUMIFS('PdI-crono_inv'!BC:BC,'PdI-crono_inv'!CF:CF,F648,'PdI-crono_inv'!CE:CE,H648,'PdI-crono_inv'!J:J,P648,'PdI-crono_inv'!P:P,\"<>proprietario\")+S648","v":0},null,null,"Non ERC",{"$f":"+VLOOKUP(F648,TT_Tabelle_Riferimento!$D$127:$E$164,2,FALSE)","v":"Comune"},"",0]
[0,0,"Gestore",0,"IP",37,{"$f":"+VLOOKUP(F649,TT_Tabelle_Riferimento!$D$127:$G$164,4,FALSE)","v":"Altre immobilizzazioni materiali e immateriali"},2,{"$f":"+VLOOKUP(H649,TT_Tabelle_Riferimento!$F$3:$G$6,2,FALSE)","v":"Fognatura bianca e pulizia / manutenzione caditoie stradali"},2027,{"$f":"+SUMIFS('PdI-crono_inv'!BB:BB,'PdI-crono_inv'!CF:CF,F649,'PdI-crono_inv'!CE:CE,H649,'PdI-crono_inv'!J:J,P649,'PdI-crono_inv'!P:P,\"<>proprietario\")","v":0},null,{"$f":"+SUMIFS('PdI-crono_inv'!BC:BC,'PdI-crono_inv'!CF:CF,F649,'PdI-crono_inv'!CE:CE,H649,'PdI-crono_inv'!J:J,P649,'PdI-crono_inv'!P:P,\"<>proprietario\")+S649","v":0},null,null,"Non ERC",{"$f":"+VLOOKUP(F649,TT_Tabelle_Riferimento!$D$127:$E$164,2,FALSE)","v":"Comune"},"",0]
[0,0,"Gestore",0,"IP",38,{"$f":"+VLOOKUP(F650,TT_Tabelle_Riferimento!$D$127:$G$164,4,FALSE)","v":"Grandi dighe (sbarramenti che superano i quindici metri di altezza o che determinano un invaso superiore a 1 milione di metri cubi)"},2,{"$f":"+VLOOKUP(H650,TT_Tabelle_Riferimento!$F$3:$G$6,2,FALSE)","v":"Fognatura bianca e pulizia / manutenzione caditoie stradali"},2027,{"$f":"+SUMIFS('PdI-crono_inv'!BB:BB,'PdI-crono_inv'!CF:CF,F650,'PdI-crono_inv'!CE:CE,H650,'PdI-crono_inv'!J:J,P650,'PdI-crono_inv'!P:P,\"<>proprietario\")","v":0},null,{"$f":"+SUMIFS('PdI-crono_inv'!BC:BC,'PdI-crono_inv'!CF:CF,F650,'PdI-crono_inv'!CE:CE,H650,'PdI-crono_inv'!J:J,P650,'PdI-crono_inv'!P:P,\"<>proprietario\")+S650","v":0},null,null,"Non ERC",{"$f":"+VLOOKUP(F650,TT_Tabelle_Riferimento!$D$127:$E$164,2,FALSE)","v":"Acquedotto"},"",0]
[0,0,"Gestore",0,"IP",39,{"$f":"+VLOOKUP(F651,TT_Tabelle_Riferimento!$D$127:$G$164,4,FALSE)","v":"Piccole dighe (sbarramenti che non superano i quindici metri di altezza o che determinano un invaso non superiore a 1 milione di metri cubi)"},2,{"$f":"+VLOOKUP(H651,TT_Tabelle_Riferimento!$F$3:$G$6,2,FALSE)","v":"Fognatura bianca e pulizia / manutenzione caditoie stradali"},2027,{"$f":"+SUMIFS('PdI-crono_inv'!BB:BB,'PdI-crono_inv'!CF:CF,F651,'PdI-crono_inv'!CE:CE,H651,'PdI-crono_inv'!J:J,P651,'PdI-crono_inv'!P:P,\"<>proprietario\")","v":0},null,{"$f":"+SUMIFS('PdI-crono_inv'!BC:BC,'PdI-crono_inv'!CF:CF,F651,'PdI-crono_inv'!CE:CE,H651,'PdI-crono_inv'!J:J,P651,'PdI-crono_inv'!P:P,\"<>proprietario\")+S651","v":0},null,null,"Non ERC",{"$f":"+VLOOKUP(F651,TT_Tabelle_Riferimento!$D$127:$E$164,2,FALSE)","v":"Acquedotto"},"",0]
[{"$f":"+idato","v":0},{"$f":"+idgestore","v":0},"Gestore",0,"IP",2,{"$f":"+VLOOKUP(F652,TT_Tabelle_Riferimento!$D$127:$G$164,4,FALSE)","v":"Condotte di acquedotto"},3,{"$f":"+VLOOKUP(H652,TT_Tabelle_Riferimento!$F$3:$G$6,2,FALSE)","v":"Altri servizi idrici"},2027,{"$f":"+SUMIFS('PdI-crono_inv'!BB:BB,'PdI-crono_inv'!CF:CF,F652,'PdI-crono_inv'!CE:CE,H652,'PdI-crono_inv'!J:J,P652,'PdI-crono_inv'!P:P,\"<>proprietario\")","v":0},null,{"$f":"+SUMIFS('PdI-crono_inv'!BC:BC,'PdI-crono_inv'!CF:CF,F652,'PdI-crono_inv'!CE:CE,H652,'PdI-crono_inv'!J:J,P652,'PdI-crono_inv'!P:P,\"<>proprietario\")+S652","v":0},null,null,"Non ERC",{"$f":"+VLOOKUP(F652,TT_Tabelle_Riferimento!$D$127:$E$164,2,FALSE)","v":"Acquedotto"},"",0]
[0,0,"Gestore",0,"IP",3,{"$f":"+VLOOKUP(F653,TT_Tabelle_Riferimento!$D$127:$G$164,4,FALSE)","v":"Opere idrauliche fisse di acquedotto"},3,{"$f":"+VLOOKUP(H653,TT_Tabelle_Riferimento!$F$3:$G$6,2,FALSE)","v":"Altri servizi idrici"},2027,{"$f":"+SUMIFS('PdI-crono_inv'!BB:BB,'PdI-crono_inv'!CF:CF,F653,'PdI-crono_inv'!CE:CE,H653,'PdI-crono_inv'!J:J,P653,'PdI-crono_inv'!P:P,\"<>proprietario\")","v":0},null,{"$f":"+SUMIFS('PdI-crono_inv'!BC:BC,'PdI-crono_inv'!CF:CF,F653,'PdI-crono_inv'!CE:CE,H653,'PdI-crono_inv'!J:J,P653,'PdI-crono_inv'!P:P,\"<>proprietario\")+S653","v":0},null,null,"Non ERC",{"$f":"+VLOOKUP(F653,TT_Tabelle_Riferimento!$D$127:$E$164,2,FALSE)","v":"Acquedotto"},"",0]
[0,0,"Gestore",0,"IP",4,{"$f":"+VLOOKUP(F654,TT_Tabelle_Riferimento!$D$127:$G$164,4,FALSE)","v":"Serbatoi"},3,{"$f":"+VLOOKUP(H654,TT_Tabelle_Riferimento!$F$3:$G$6,2,FALSE)","v":"Altri servizi idrici"},2027,{"$f":"+SUMIFS('PdI-crono_inv'!BB:BB,'PdI-crono_inv'!CF:CF,F654,'PdI-crono_inv'!CE:CE,H654,'PdI-crono_inv'!J:J,P654,'PdI-crono_inv'!P:P,\"<>proprietario\")","v":0},null,{"$f":"+SUMIFS('PdI-crono_inv'!BC:BC,'PdI-crono_inv'!CF:CF,F654,'PdI-crono_inv'!CE:CE,H654,'PdI-crono_inv'!J:J,P654,'PdI-crono_inv'!P:P,\"<>proprietario\")+S654","v":0},null,null,"Non ERC",{"$f":"+VLOOKUP(F654,TT_Tabelle_Riferimento!$D$127:$E$164,2,FALSE)","v":"Acquedotto"},"",0]
[0,0,"Gestore",0,"IP",5,{"$f":"+VLOOKUP(F655,TT_Tabelle_Riferimento!$D$127:$G$164,4,FALSE)","v":"Impianti di sollevamento e pompaggio di acquedotto"},3,{"$f":"+VLOOKUP(H655,TT_Tabelle_Riferimento!$F$3:$G$6,2,FALSE)","v":"Altri servizi idrici"},2027,{"$f":"+SUMIFS('PdI-crono_inv'!BB:BB,'PdI-crono_inv'!CF:CF,F655,'PdI-crono_inv'!CE:CE,H655,'PdI-crono_inv'!J:J,P655,'PdI-crono_inv'!P:P,\"<>proprietario\")","v":0},null,{"$f":"+SUMIFS('PdI-crono_inv'!BC:BC,'PdI-crono_inv'!CF:CF,F655,'PdI-crono_inv'!CE:CE,H655,'PdI-crono_inv'!J:J,P655,'PdI-crono_inv'!P:P,\"<>proprietario\")+S655","v":0},null,null,"Non ERC",{"$f":"+VLOOKUP(F655,TT_Tabelle_Riferimento!$D$127:$E$164,2,FALSE)","v":"Acquedotto"},"",0]
[0,0,"Gestore",0,"IP",6,{"$f":"+VLOOKUP(F656,TT_Tabelle_Riferimento!$D$127:$G$164,4,FALSE)","v":"Impianti di potabilizzazione"},3,{"$f":"+VLOOKUP(H656,TT_Tabelle_Riferimento!$F$3:$G$6,2,FALSE)","v":"Altri servizi idrici"},2027,{"$f":"+SUMIFS('PdI-crono_inv'!BB:BB,'PdI-crono_inv'!CF:CF,F656,'PdI-crono_inv'!CE:CE,H656,'PdI-crono_inv'!J:J,P656,'PdI-crono_inv'!P:P,\"<>proprietario\")","v":0},null,{"$f":"+SUMIFS('PdI-crono_inv'!BC:BC,'PdI-crono_inv'!CF:CF,F656,'PdI-crono_inv'!CE:CE,H656,'PdI-crono_inv'!J:J,P656,'PdI-crono_inv'!P:P,\"<>proprietario\")+S656","v":0},null,null,"Non ERC",{"$f":"+VLOOKUP(F656,TT_Tabelle_Riferimento!$D$127:$E$164,2,FALSE)","v":"Acquedotto"},"",0]
[0,0,"Gestore",0,"IP",7,{"$f":"+VLOOKUP(F657,TT_Tabelle_Riferimento!$D$127:$G$164,4,FALSE)","v":"Altri trattamenti di potabilizzazione (tra cui dispositivi di disinfezione, stacciatura, filtrazione, addolcimento)"},3,{"$f":"+VLOOKUP(H657,TT_Tabelle_Riferimento!$F$3:$G$6,2,FALSE)","v":"Altri servizi idrici"},2027,{"$f":"+SUMIFS('PdI-crono_inv'!BB:BB,'PdI-crono_inv'!CF:CF,F657,'PdI-crono_inv'!CE:CE,H657,'PdI-crono_inv'!J:J,P657,'PdI-crono_inv'!P:P,\"<>proprietario\")","v":0},null,{"$f":"+SUMIFS('PdI-crono_inv'!BC:BC,'PdI-crono_inv'!CF:CF,F657,'PdI-crono_inv'!CE:CE,H657,'PdI-crono_inv'!J:J,P657,'PdI-crono_inv'!P:P,\"<>proprietario\")+S657","v":0},null,null,"Non ERC",{"$f":"+VLOOKUP(F657,TT_Tabelle_Riferimento!$D$127:$E$164,2,FALSE)","v":"Acquedotto"},"",0]
[0,0,"Gestore",0,"IP",8,{"$f":"+VLOOKUP(F658,TT_Tabelle_Riferimento!$D$127:$G$164,4,FALSE)","v":"Gruppi di misura - altre attrezzature di acquedotto"},3,{"$f":"+VLOOKUP(H658,TT_Tabelle_Riferimento!$F$3:$G$6,2,FALSE)","v":"Altri servizi idrici"},2027,{"$f":"+SUMIFS('PdI-crono_inv'!BB:BB,'PdI-crono_inv'!CF:CF,F658,'PdI-crono_inv'!CE:CE,H658,'PdI-crono_inv'!J:J,P658,'PdI-crono_inv'!P:P,\"<>proprietario\")","v":0},null,{"$f":"+SUMIFS('PdI-crono_inv'!BC:BC,'PdI-crono_inv'!CF:CF,F658,'PdI-crono_inv'!CE:CE,H658,'PdI-crono_inv'!J:J,P658,'PdI-crono_inv'!P:P,\"<>proprietario\")+S658","v":0},null,null,"Non ERC",{"$f":"+VLOOKUP(F658,TT_Tabelle_Riferimento!$D$127:$E$164,2,FALSE)","v":"Acquedotto"},"",0]
[0,0,"Gestore",0,"IP",9,{"$f":"+VLOOKUP(F659,TT_Tabelle_Riferimento!$D$127:$G$164,4,FALSE)","v":"Sistemi informativi di acquedotto"},3,{"$f":"+VLOOKUP(H659,TT_Tabelle_Riferimento!$F$3:$G$6,2,FALSE)","v":"Altri servizi idrici"},2027,{"$f":"+SUMIFS('PdI-crono_inv'!BB:BB,'PdI-crono_inv'!CF:CF,F659,'PdI-crono_inv'!CE:CE,H659,'PdI-crono_inv'!J:J,P659,'PdI-crono_inv'!P:P,\"<>proprietario\")","v":0},null,{"$f":"+SUMIFS('PdI-crono_inv'!BC:BC,'PdI-crono_inv'!CF:CF,F659,'PdI-crono_inv'!CE:CE,H659,'PdI-crono_inv'!J:J,P659,'PdI-crono_inv'!P:P,\"<>proprietario\")+S659","v":0},null,null,"Non ERC",{"$f":"+VLOOKUP(F659,TT_Tabelle_Riferimento!$D$127:$E$164,2,FALSE)","v":"Acquedotto"},"",0]
[0,0,"Gestore",0,"IP",10,{"$f":"+VLOOKUP(F660,TT_Tabelle_Riferimento!$D$127:$G$164,4,FALSE)","v":"Telecontrollo e teletrasmissione di acquedotto"},3,{"$f":"+VLOOKUP(H660,TT_Tabelle_Riferimento!$F$3:$G$6,2,FALSE)","v":"Altri servizi idrici"},2027,{"$f":"+SUMIFS('PdI-crono_inv'!BB:BB,'PdI-crono_inv'!CF:CF,F660,'PdI-crono_inv'!CE:CE,H660,'PdI-crono_inv'!J:J,P660,'PdI-crono_inv'!P:P,\"<>proprietario\")","v":0},null,{"$f":"+SUMIFS('PdI-crono_inv'!BC:BC,'PdI-crono_inv'!CF:CF,F660,'PdI-crono_inv'!CE:CE,H660,'PdI-crono_inv'!J:J,P660,'PdI-crono_inv'!P:P,\"<>proprietario\")+S660","v":0},null,null,"Non ERC",{"$f":"+VLOOKUP(F660,TT_Tabelle_Riferimento!$D$127:$E$164,2,FALSE)","v":"Acquedotto"},"",0]
[0,0,"Gestore",0,"IP",11,{"$f":"+VLOOKUP(F661,TT_Tabelle_Riferimento!$D$127:$G$164,4,FALSE)","v":"Condotte fognarie"},3,{"$f":"+VLOOKUP(H661,TT_Tabelle_Riferimento!$F$3:$G$6,2,FALSE)","v":"Altri servizi idrici"},2027,{"$f":"+SUMIFS('PdI-crono_inv'!BB:BB,'PdI-crono_inv'!CF:CF,F661,'PdI-crono_inv'!CE:CE,H661,'PdI-crono_inv'!J:J,P661,'PdI-crono_inv'!P:P,\"<>proprietario\")","v":0},null,{"$f":"+SUMIFS('PdI-crono_inv'!BC:BC,'PdI-crono_inv'!CF:CF,F661,'PdI-crono_inv'!CE:CE,H661,'PdI-crono_inv'!J:J,P661,'PdI-crono_inv'!P:P,\"<>proprietario\")+S661","v":0},null,null,"Non ERC",{"$f":"+VLOOKUP(F661,TT_Tabelle_Riferimento!$D$127:$E$164,2,FALSE)","v":"Fognatura"},"",0]
[0,0,"Gestore",0,"IP",12,{"$f":"+VLOOKUP(F662,TT_Tabelle_Riferimento!$D$127:$G$164,4,FALSE)","v":"Sifoni e scaricatori di piena e altre opere idrauliche fisse di fognatura"},3,{"$f":"+VLOOKUP(H662,TT_Tabelle_Riferimento!$F$3:$G$6,2,FALSE)","v":"Altri servizi idrici"},2027,{"$f":"+SUMIFS('PdI-crono_inv'!BB:BB,'PdI-crono_inv'!CF:CF,F662,'PdI-crono_inv'!CE:CE,H662,'PdI-crono_inv'!J:J,P662,'PdI-crono_inv'!P:P,\"<>proprietario\")","v":0},null,{"$f":"+SUMIFS('PdI-crono_inv'!BC:BC,'PdI-crono_inv'!CF:CF,F662,'PdI-crono_inv'!CE:CE,H662,'PdI-crono_inv'!J:J,P662,'PdI-crono_inv'!P:P,\"<>proprietario\")+S662","v":0},null,null,"Non ERC",{"$f":"+VLOOKUP(F662,TT_Tabelle_Riferimento!$D$127:$E$164,2,FALSE)","v":"Fognatura"},"",0]
[0,0,"Gestore",0,"IP",13,{"$f":"+VLOOKUP(F663,TT_Tabelle_Riferimento!$D$127:$G$164,4,FALSE)","v":"Vasche di laminazione e vasche di prima pioggia"},3,{"$f":"+VLOOKUP(H663,TT_Tabelle_Riferimento!$F$3:$G$6,2,FALSE)","v":"Altri servizi idrici"},2027,{"$f":"+SUMIFS('PdI-crono_inv'!BB:BB,'PdI-crono_inv'!CF:CF,F663,'PdI-crono_inv'!CE:CE,H663,'PdI-crono_inv'!J:J,P663,'PdI-crono_inv'!P:P,\"<>proprietario\")","v":0},null,{"$f":"+SUMIFS('PdI-crono_inv'!BC:BC,'PdI-crono_inv'!CF:CF,F663,'PdI-crono_inv'!CE:CE,H663,'PdI-crono_inv'!J:J,P663,'PdI-crono_inv'!P:P,\"<>proprietario\")+S663","v":0},null,null,"Non ERC",{"$f":"+VLOOKUP(F663,TT_Tabelle_Riferimento!$D$127:$E$164,2,FALSE)","v":"Fognatura"},"",0]
[0,0,"Gestore",0,"IP",14,{"$f":"+VLOOKUP(F664,TT_Tabelle_Riferimento!$D$127:$G$164,4,FALSE)","v":"Impianti di sollevamento e pompaggio di fognatura"},3,{"$f":"+VLOOKUP(H664,TT_Tabelle_Riferimento!$F$3:$G$6,2,FALSE)","v":"Altri servizi idrici"},2027,{"$f":"+SUMIFS('PdI-crono_inv'!BB:BB,'PdI-crono_inv'!CF:CF,F664,'PdI-crono_inv'!CE:CE,H664,'PdI-crono_inv'!J:J,P664,'PdI-crono_inv'!P:P,\"<>proprietario\")","v":0},null,{"$f":"+SUMIFS('PdI-crono_inv'!BC:BC,'PdI-crono_inv'!CF:CF,F664,'PdI-crono_inv'!CE:CE,H664,'PdI-crono_inv'!J:J,P664,'PdI-crono_inv'!P:P,\"<>proprietario\")+S664","v":0},null,null,"Non ERC",{"$f":"+VLOOKUP(F664,TT_Tabelle_Riferimento!$D$127:$E$164,2,FALSE)","v":"Fognatura"},"",0]
[0,0,"Gestore",0,"IP",15,{"$f":"+VLOOKUP(F665,TT_Tabelle_Riferimento!$D$127:$G$164,4,FALSE)","v":"Gruppi di misura - altre attrezzature di fognatura"},3,{"$f":"+VLOOKUP(H665,TT_Tabelle_Riferimento!$F$3:$G$6,2,FALSE)","v":"Altri servizi idrici"},2027,{"$f":"+SUMIFS('PdI-crono_inv'!BB:BB,'PdI-crono_inv'!CF:CF,F665,'PdI-crono_inv'!CE:CE,H665,'PdI-crono_inv'!J:J,P665,'PdI-crono_inv'!P:P,\"<>proprietario\")","v":0},null,{"$f":"+SUMIFS('PdI-crono_inv'!BC:BC,'PdI-crono_inv'!CF:CF,F665,'PdI-crono_inv'!CE:CE,H665,'PdI-crono_inv'!J:J,P665,'PdI-crono_inv'!P:P,\"<>proprietario\")+S665","v":0},null,null,"Non ERC",{"$f":"+VLOOKUP(F665,TT_Tabelle_Riferimento!$D$127:$E$164,2,FALSE)","v":"Fognatura"},"",0]
[0,0,"Gestore",0,"IP",16,{"$f":"+VLOOKUP(F666,TT_Tabelle_Riferimento!$D$127:$G$164,4,FALSE)","v":"Sistemi informativi di fognatura"},3,{"$f":"+VLOOKUP(H666,TT_Tabelle_Riferimento!$F$3:$G$6,2,FALSE)","v":"Altri servizi idrici"},2027,{"$f":"+SUMIFS('PdI-crono_inv'!BB:BB,'PdI-crono_inv'!CF:CF,F666,'PdI-crono_inv'!CE:CE,H666,'PdI-crono_inv'!J:J,P666,'PdI-crono_inv'!P:P,\"<>proprietario\")","v":0},null,{"$f":"+SUMIFS('PdI-crono_inv'!BC:BC,'PdI-crono_inv'!CF:CF,F666,'PdI-crono_inv'!CE:CE,H666,'PdI-crono_inv'!J:J,P666,'PdI-crono_inv'!P:P,\"<>proprietario\")+S666","v":0},null,null,"Non ERC",{"$f":"+VLOOKUP(F666,TT_Tabelle_Riferimento!$D$127:$E$164,2,FALSE)","v":"Fognatura"},"",0]
[0,0,"Gestore",0,"IP",18,{"$f":"+VLOOKUP(F667,TT_Tabelle_Riferimento!$D$127:$G$164,4,FALSE)","v":"Telecontrollo e teletrasmissione di fognatura"},3,{"$f":"+VLOOKUP(H667,TT_Tabelle_Riferimento!$F$3:$G$6,2,FALSE)","v":"Altri servizi idrici"},2027,{"$f":"+SUMIFS('PdI-crono_inv'!BB:BB,'PdI-crono_inv'!CF:CF,F667,'PdI-crono_inv'!CE:CE,H667,'PdI-crono_inv'!J:J,P667,'PdI-crono_inv'!P:P,\"<>proprietario\")","v":0},null,{"$f":"+SUMIFS('PdI-crono_inv'!BC:BC,'PdI-crono_inv'!CF:CF,F667,'PdI-crono_inv'!CE:CE,H667,'PdI-crono_inv'!J:J,P667,'PdI-crono_inv'!P:P,\"<>proprietario\")+S667","v":0},null,null,"Non ERC",{"$f":"+VLOOKUP(F667,TT_Tabelle_Riferimento!$D$127:$E$164,2,FALSE)","v":"Fognatura"},"",0]
[0,0,"Gestore",0,"IP",19,{"$f":"+VLOOKUP(F668,TT_Tabelle_Riferimento!$D$127:$G$164,4,FALSE)","v":"Impianti di sollevamento e pompaggio di depurazione"},3,{"$f":"+VLOOKUP(H668,TT_Tabelle_Riferimento!$F$3:$G$6,2,FALSE)","v":"Altri servizi idrici"},2027,{"$f":"+SUMIFS('PdI-crono_inv'!BB:BB,'PdI-crono_inv'!CF:CF,F668,'PdI-crono_inv'!CE:CE,H668,'PdI-crono_inv'!J:J,P668,'PdI-crono_inv'!P:P,\"<>proprietario\")","v":0},null,{"$f":"+SUMIFS('PdI-crono_inv'!BC:BC,'PdI-crono_inv'!CF:CF,F668,'PdI-crono_inv'!CE:CE,H668,'PdI-crono_inv'!J:J,P668,'PdI-crono_inv'!P:P,\"<>proprietario\")+S668","v":0},null,null,"Non ERC",{"$f":"+VLOOKUP(F668,TT_Tabelle_Riferimento!$D$127:$E$164,2,FALSE)","v":"Depurazione"},"",0]
[0,0,"Gestore",0,"IP",20,{"$f":"+VLOOKUP(F669,TT_Tabelle_Riferimento!$D$127:$G$164,4,FALSE)","v":"Tecniche naturali di depurazione (tra cui fitodepurazione e lagunaggio)"},3,{"$f":"+VLOOKUP(H669,TT_Tabelle_Riferimento!$F$3:$G$6,2,FALSE)","v":"Altri servizi idrici"},2027,{"$f":"+SUMIFS('PdI-crono_inv'!BB:BB,'PdI-crono_inv'!CF:CF,F669,'PdI-crono_inv'!CE:CE,H669,'PdI-crono_inv'!J:J,P669,'PdI-crono_inv'!P:P,\"<>proprietario\")","v":0},null,{"$f":"+SUMIFS('PdI-crono_inv'!BC:BC,'PdI-crono_inv'!CF:CF,F669,'PdI-crono_inv'!CE:CE,H669,'PdI-crono_inv'!J:J,P669,'PdI-crono_inv'!P:P,\"<>proprietario\")+S669","v":0},null,null,"Non ERC",{"$f":"+VLOOKUP(F669,TT_Tabelle_Riferimento!$D$127:$E$164,2,FALSE)","v":"Depurazione"},"",0]
[0,0,"Gestore",0,"IP",21,{"$f":"+VLOOKUP(F670,TT_Tabelle_Riferimento!$D$127:$G$164,4,FALSE)","v":"Impianti di depurazione – trattamenti sino al preliminare, integrativo, primario - fosse settiche e fosse Imhoff"},3,{"$f":"+VLOOKUP(H670,TT_Tabelle_Riferimento!$F$3:$G$6,2,FALSE)","v":"Altri servizi idrici"},2027,{"$f":"+SUMIFS('PdI-crono_inv'!BB:BB,'PdI-crono_inv'!CF:CF,F670,'PdI-crono_inv'!CE:CE,H670,'PdI-crono_inv'!J:J,P670,'PdI-crono_inv'!P:P,\"<>proprietario\")","v":0},null,{"$f":"+SUMIFS('PdI-crono_inv'!BC:BC,'PdI-crono_inv'!CF:CF,F670,'PdI-crono_inv'!CE:CE,H670,'PdI-crono_inv'!J:J,P670,'PdI-crono_inv'!P:P,\"<>proprietario\")+S670","v":0},null,null,"Non ERC",{"$f":"+VLOOKUP(F670,TT_Tabelle_Riferimento!$D$127:$E$164,2,FALSE)","v":"Depurazione"},"",0]
[0,0,"Gestore",0,"IP",22,{"$f":"+VLOOKUP(F671,TT_Tabelle_Riferimento!$D$127:$G$164,4,FALSE)","v":"Impianti di depurazione – trattamenti sino al secondario"},3,{"$f":"+VLOOKUP(H671,TT_Tabelle_Riferimento!$F$3:$G$6,2,FALSE)","v":"Altri servizi idrici"},2027,{"$f":"+SUMIFS('PdI-crono_inv'!BB:BB,'PdI-crono_inv'!CF:CF,F671,'PdI-crono_inv'!CE:CE,H671,'PdI-crono_inv'!J:J,P671,'PdI-crono_inv'!P:P,\"<>proprietario\")","v":0},null,{"$f":"+SUMIFS('PdI-crono_inv'!BC:BC,'PdI-crono_inv'!CF:CF,F671,'PdI-crono_inv'!CE:CE,H671,'PdI-crono_inv'!J:J,P671,'PdI-crono_inv'!P:P,\"<>proprietario\")+S671","v":0},null,null,"Non ERC",{"$f":"+VLOOKUP(F671,TT_Tabelle_Riferimento!$D$127:$E$164,2,FALSE)","v":"Depurazione"},"",0]
[0,0,"Gestore",0,"IP",23,{"$f":"+VLOOKUP(F672,TT_Tabelle_Riferimento!$D$127:$G$164,4,FALSE)","v":"Impianti di depurazione – trattamenti sino al terziario e terziario avanzato"},3,{"$f":"+VLOOKUP(H672,TT_Tabelle_Riferimento!$F$3:$G$6,2,FALSE)","v":"Altri servizi idrici"},2027,{"$f":"+SUMIFS('PdI-crono_inv'!BB:BB,'PdI-crono_inv'!CF:CF,F672,'PdI-crono_inv'!CE:CE,H672,'PdI-crono_inv'!J:J,P672,'PdI-crono_inv'!P:P,\"<>proprietario\")","v":0},null,{"$f":"+SUMIFS('PdI-crono_inv'!BC:BC,'PdI-crono_inv'!CF:CF,F672,'PdI-crono_inv'!CE:CE,H672,'PdI-crono_inv'!J:J,P672,'PdI-crono_inv'!P:P,\"<>proprietario\")+S672","v":0},null,null,"Non ERC",{"$f":"+VLOOKUP(F672,TT_Tabelle_Riferimento!$D$127:$E$164,2,FALSE)","v":"Depurazione"},"",0]
[0,0,"Gestore",0,"IP",24,{"$f":"+VLOOKUP(F673,TT_Tabelle_Riferimento!$D$127:$G$164,4,FALSE)","v":"Impianti di essiccamento fanghi e di valorizzazione dei fanghi (tra cui mono-incenerimento, pirolisi, gassificazione)"},3,{"$f":"+VLOOKUP(H673,TT_Tabelle_Riferimento!$F$3:$G$6,2,FALSE)","v":"Altri servizi idrici"},2027,{"$f":"+SUMIFS('PdI-crono_inv'!BB:BB,'PdI-crono_inv'!CF:CF,F673,'PdI-crono_inv'!CE:CE,H673,'PdI-crono_inv'!J:J,P673,'PdI-crono_inv'!P:P,\"<>proprietario\")","v":0},null,{"$f":"+SUMIFS('PdI-crono_inv'!BC:BC,'PdI-crono_inv'!CF:CF,F673,'PdI-crono_inv'!CE:CE,H673,'PdI-crono_inv'!J:J,P673,'PdI-crono_inv'!P:P,\"<>proprietario\")+S673","v":0},null,null,"Non ERC",{"$f":"+VLOOKUP(F673,TT_Tabelle_Riferimento!$D$127:$E$164,2,FALSE)","v":"Depurazione"},"",0]
[0,0,"Gestore",0,"IP",25,{"$f":"+VLOOKUP(F674,TT_Tabelle_Riferimento!$D$127:$G$164,4,FALSE)","v":"Gruppi di misura - altre attrezzature di depurazione"},3,{"$f":"+VLOOKUP(H674,TT_Tabelle_Riferimento!$F$3:$G$6,2,FALSE)","v":"Altri servizi idrici"},2027,{"$f":"+SUMIFS('PdI-crono_inv'!BB:BB,'PdI-crono_inv'!CF:CF,F674,'PdI-crono_inv'!CE:CE,H674,'PdI-crono_inv'!J:J,P674,'PdI-crono_inv'!P:P,\"<>proprietario\")","v":0},null,{"$f":"+SUMIFS('PdI-crono_inv'!BC:BC,'PdI-crono_inv'!CF:CF,F674,'PdI-crono_inv'!CE:CE,H674,'PdI-crono_inv'!J:J,P674,'PdI-crono_inv'!P:P,\"<>proprietario\")+S674","v":0},null,null,"Non ERC",{"$f":"+VLOOKUP(F674,TT_Tabelle_Riferimento!$D$127:$E$164,2,FALSE)","v":"Depurazione"},"",0]
[0,0,"Gestore",0,"IP",26,{"$f":"+VLOOKUP(F675,TT_Tabelle_Riferimento!$D$127:$G$164,4,FALSE)","v":"Sistemi informativi di depurazione"},3,{"$f":"+VLOOKUP(H675,TT_Tabelle_Riferimento!$F$3:$G$6,2,FALSE)","v":"Altri servizi idrici"},2027,{"$f":"+SUMIFS('PdI-crono_inv'!BB:BB,'PdI-crono_inv'!CF:CF,F675,'PdI-crono_inv'!CE:CE,H675,'PdI-crono_inv'!J:J,P675,'PdI-crono_inv'!P:P,\"<>proprietario\")","v":0},null,{"$f":"+SUMIFS('PdI-crono_inv'!BC:BC,'PdI-crono_inv'!CF:CF,F675,'PdI-crono_inv'!CE:CE,H675,'PdI-crono_inv'!J:J,P675,'PdI-crono_inv'!P:P,\"<>proprietario\")+S675","v":0},null,null,"Non ERC",{"$f":"+VLOOKUP(F675,TT_Tabelle_Riferimento!$D$127:$E$164,2,FALSE)","v":"Depurazione"},"",0]
[0,0,"Gestore",0,"IP",27,{"$f":"+VLOOKUP(F676,TT_Tabelle_Riferimento!$D$127:$G$164,4,FALSE)","v":"Telecontrollo e teletrasmissione di depurazione"},3,{"$f":"+VLOOKUP(H676,TT_Tabelle_Riferimento!$F$3:$G$6,2,FALSE)","v":"Altri servizi idrici"},2027,{"$f":"+SUMIFS('PdI-crono_inv'!BB:BB,'PdI-crono_inv'!CF:CF,F676,'PdI-crono_inv'!CE:CE,H676,'PdI-crono_inv'!J:J,P676,'PdI-crono_inv'!P:P,\"<>proprietario\")","v":0},null,{"$f":"+SUMIFS('PdI-crono_inv'!BC:BC,'PdI-crono_inv'!CF:CF,F676,'PdI-crono_inv'!CE:CE,H676,'PdI-crono_inv'!J:J,P676,'PdI-crono_inv'!P:P,\"<>proprietario\")+S676","v":0},null,null,"Non ERC",{"$f":"+VLOOKUP(F676,TT_Tabelle_Riferimento!$D$127:$E$164,2,FALSE)","v":"Depurazione"},"",0]
[0,0,"Gestore",0,"IP",28,{"$f":"+VLOOKUP(F677,TT_Tabelle_Riferimento!$D$127:$G$164,4,FALSE)","v":"Altri impianti"},3,{"$f":"+VLOOKUP(H677,TT_Tabelle_Riferimento!$F$3:$G$6,2,FALSE)","v":"Altri servizi idrici"},2027,{"$f":"+SUMIFS('PdI-crono_inv'!BB:BB,'PdI-crono_inv'!CF:CF,F677,'PdI-crono_inv'!CE:CE,H677,'PdI-crono_inv'!J:J,P677,'PdI-crono_inv'!P:P,\"<>proprietario\")","v":0},null,{"$f":"+SUMIFS('PdI-crono_inv'!BC:BC,'PdI-crono_inv'!CF:CF,F677,'PdI-crono_inv'!CE:CE,H677,'PdI-crono_inv'!J:J,P677,'PdI-crono_inv'!P:P,\"<>proprietario\")+S677","v":0},null,null,"Non ERC",{"$f":"+VLOOKUP(F677,TT_Tabelle_Riferimento!$D$127:$E$164,2,FALSE)","v":"Comune"},"",0]
[0,0,"Gestore",0,"IP",29,{"$f":"+VLOOKUP(F678,TT_Tabelle_Riferimento!$D$127:$G$164,4,FALSE)","v":"Laboratori e attrezzature"},3,{"$f":"+VLOOKUP(H678,TT_Tabelle_Riferimento!$F$3:$G$6,2,FALSE)","v":"Altri servizi idrici"},2027,{"$f":"+SUMIFS('PdI-crono_inv'!BB:BB,'PdI-crono_inv'!CF:CF,F678,'PdI-crono_inv'!CE:CE,H678,'PdI-crono_inv'!J:J,P678,'PdI-crono_inv'!P:P,\"<>proprietario\")","v":0},null,{"$f":"+SUMIFS('PdI-crono_inv'!BC:BC,'PdI-crono_inv'!CF:CF,F678,'PdI-crono_inv'!CE:CE,H678,'PdI-crono_inv'!J:J,P678,'PdI-crono_inv'!P:P,\"<>proprietario\")+S678","v":0},null,null,"Non ERC",{"$f":"+VLOOKUP(F678,TT_Tabelle_Riferimento!$D$127:$E$164,2,FALSE)","v":"Comune"},"",0]
[0,0,"Gestore",0,"IP",30,{"$f":"+VLOOKUP(F679,TT_Tabelle_Riferimento!$D$127:$G$164,4,FALSE)","v":"Sistemi informativi"},3,{"$f":"+VLOOKUP(H679,TT_Tabelle_Riferimento!$F$3:$G$6,2,FALSE)","v":"Altri servizi idrici"},2027,{"$f":"+SUMIFS('PdI-crono_inv'!BB:BB,'PdI-crono_inv'!CF:CF,F679,'PdI-crono_inv'!CE:CE,H679,'PdI-crono_inv'!J:J,P679,'PdI-crono_inv'!P:P,\"<>proprietario\")","v":0},null,{"$f":"+SUMIFS('PdI-crono_inv'!BC:BC,'PdI-crono_inv'!CF:CF,F679,'PdI-crono_inv'!CE:CE,H679,'PdI-crono_inv'!J:J,P679,'PdI-crono_inv'!P:P,\"<>proprietario\")+S679","v":0},null,null,"Non ERC",{"$f":"+VLOOKUP(F679,TT_Tabelle_Riferimento!$D$127:$E$164,2,FALSE)","v":"Comune"},"",0]
[0,0,"Gestore",0,"IP",31,{"$f":"+VLOOKUP(F680,TT_Tabelle_Riferimento!$D$127:$G$164,4,FALSE)","v":"Telecontrollo e teletrasmissione"},3,{"$f":"+VLOOKUP(H680,TT_Tabelle_Riferimento!$F$3:$G$6,2,FALSE)","v":"Altri servizi idrici"},2027,{"$f":"+SUMIFS('PdI-crono_inv'!BB:BB,'PdI-crono_inv'!CF:CF,F680,'PdI-crono_inv'!CE:CE,H680,'PdI-crono_inv'!J:J,P680,'PdI-crono_inv'!P:P,\"<>proprietario\")","v":0},null,{"$f":"+SUMIFS('PdI-crono_inv'!BC:BC,'PdI-crono_inv'!CF:CF,F680,'PdI-crono_inv'!CE:CE,H680,'PdI-crono_inv'!J:J,P680,'PdI-crono_inv'!P:P,\"<>proprietario\")+S680","v":0},null,null,"Non ERC",{"$f":"+VLOOKUP(F680,TT_Tabelle_Riferimento!$D$127:$E$164,2,FALSE)","v":"Comune"},"",0]
[0,0,"Gestore",0,"IP",32,{"$f":"+VLOOKUP(F681,TT_Tabelle_Riferimento!$D$127:$G$164,4,FALSE)","v":"Autoveicoli - automezzi"},3,{"$f":"+VLOOKUP(H681,TT_Tabelle_Riferimento!$F$3:$G$6,2,FALSE)","v":"Altri servizi idrici"},2027,{"$f":"+SUMIFS('PdI-crono_inv'!BB:BB,'PdI-crono_inv'!CF:CF,F681,'PdI-crono_inv'!CE:CE,H681,'PdI-crono_inv'!J:J,P681,'PdI-crono_inv'!P:P,\"<>proprietario\")","v":0},null,{"$f":"+SUMIFS('PdI-crono_inv'!BC:BC,'PdI-crono_inv'!CF:CF,F681,'PdI-crono_inv'!CE:CE,H681,'PdI-crono_inv'!J:J,P681,'PdI-crono_inv'!P:P,\"<>proprietario\")+S681","v":0},null,null,"Non ERC",{"$f":"+VLOOKUP(F681,TT_Tabelle_Riferimento!$D$127:$E$164,2,FALSE)","v":"Comune"},"",0]
[0,0,"Gestore",0,"IP",1,{"$f":"+VLOOKUP(F682,TT_Tabelle_Riferimento!$D$127:$G$164,4,FALSE)","v":"Terreni"},3,{"$f":"+VLOOKUP(H682,TT_Tabelle_Riferimento!$F$3:$G$6,2,FALSE)","v":"Altri servizi idrici"},2027,{"$f":"+SUMIFS('PdI-crono_inv'!BB:BB,'PdI-crono_inv'!CF:CF,F682,'PdI-crono_inv'!CE:CE,H682,'PdI-crono_inv'!J:J,P682,'PdI-crono_inv'!P:P,\"<>proprietario\")","v":0},null,{"$f":"+SUMIFS('PdI-crono_inv'!BC:BC,'PdI-crono_inv'!CF:CF,F682,'PdI-crono_inv'!CE:CE,H682,'PdI-crono_inv'!J:J,P682,'PdI-crono_inv'!P:P,\"<>proprietario\")+S682","v":0},null,null,"Non ERC",{"$f":"+VLOOKUP(F682,TT_Tabelle_Riferimento!$D$127:$E$164,2,FALSE)","v":"Comune"},"",0]
[0,0,"Gestore",0,"IP",33,{"$f":"+VLOOKUP(F683,TT_Tabelle_Riferimento!$D$127:$G$164,4,FALSE)","v":"Fabbricati non industriali"},3,{"$f":"+VLOOKUP(H683,TT_Tabelle_Riferimento!$F$3:$G$6,2,FALSE)","v":"Altri servizi idrici"},2027,{"$f":"+SUMIFS('PdI-crono_inv'!BB:BB,'PdI-crono_inv'!CF:CF,F683,'PdI-crono_inv'!CE:CE,H683,'PdI-crono_inv'!J:J,P683,'PdI-crono_inv'!P:P,\"<>proprietario\")","v":0},null,{"$f":"+SUMIFS('PdI-crono_inv'!BC:BC,'PdI-crono_inv'!CF:CF,F683,'PdI-crono_inv'!CE:CE,H683,'PdI-crono_inv'!J:J,P683,'PdI-crono_inv'!P:P,\"<>proprietario\")+S683","v":0},null,null,"Non ERC",{"$f":"+VLOOKUP(F683,TT_Tabelle_Riferimento!$D$127:$E$164,2,FALSE)","v":"Comune"},"",0]
[0,0,"Gestore",0,"IP",34,{"$f":"+VLOOKUP(F684,TT_Tabelle_Riferimento!$D$127:$G$164,4,FALSE)","v":"Fabbricati industriali"},3,{"$f":"+VLOOKUP(H684,TT_Tabelle_Riferimento!$F$3:$G$6,2,FALSE)","v":"Altri servizi idrici"},2027,{"$f":"+SUMIFS('PdI-crono_inv'!BB:BB,'PdI-crono_inv'!CF:CF,F684,'PdI-crono_inv'!CE:CE,H684,'PdI-crono_inv'!J:J,P684,'PdI-crono_inv'!P:P,\"<>proprietario\")","v":0},null,{"$f":"+SUMIFS('PdI-crono_inv'!BC:BC,'PdI-crono_inv'!CF:CF,F684,'PdI-crono_inv'!CE:CE,H684,'PdI-crono_inv'!J:J,P684,'PdI-crono_inv'!P:P,\"<>proprietario\")+S684","v":0},null,null,"Non ERC",{"$f":"+VLOOKUP(F684,TT_Tabelle_Riferimento!$D$127:$E$164,2,FALSE)","v":"Comune"},"",0]
[0,0,"Gestore",0,"IP",35,{"$f":"+VLOOKUP(F685,TT_Tabelle_Riferimento!$D$127:$G$164,4,FALSE)","v":"Costruzioni leggere"},3,{"$f":"+VLOOKUP(H685,TT_Tabelle_Riferimento!$F$3:$G$6,2,FALSE)","v":"Altri servizi idrici"},2027,{"$f":"+SUMIFS('PdI-crono_inv'!BB:BB,'PdI-crono_inv'!CF:CF,F685,'PdI-crono_inv'!CE:CE,H685,'PdI-crono_inv'!J:J,P685,'PdI-crono_inv'!P:P,\"<>proprietario\")","v":0},null,{"$f":"+SUMIFS('PdI-crono_inv'!BC:BC,'PdI-crono_inv'!CF:CF,F685,'PdI-crono_inv'!CE:CE,H685,'PdI-crono_inv'!J:J,P685,'PdI-crono_inv'!P:P,\"<>proprietario\")+S685","v":0},null,null,"Non ERC",{"$f":"+VLOOKUP(F685,TT_Tabelle_Riferimento!$D$127:$E$164,2,FALSE)","v":"Comune"},"",0]
[0,0,"Gestore",0,"IP",36,{"$f":"+VLOOKUP(F686,TT_Tabelle_Riferimento!$D$127:$G$164,4,FALSE)","v":"Studi, ricerche, brevetti, diritti di utilizzazione"},3,{"$f":"+VLOOKUP(H686,TT_Tabelle_Riferimento!$F$3:$G$6,2,FALSE)","v":"Altri servizi idrici"},2027,{"$f":"+SUMIFS('PdI-crono_inv'!BB:BB,'PdI-crono_inv'!CF:CF,F686,'PdI-crono_inv'!CE:CE,H686,'PdI-crono_inv'!J:J,P686,'PdI-crono_inv'!P:P,\"<>proprietario\")","v":0},null,{"$f":"+SUMIFS('PdI-crono_inv'!BC:BC,'PdI-crono_inv'!CF:CF,F686,'PdI-crono_inv'!CE:CE,H686,'PdI-crono_inv'!J:J,P686,'PdI-crono_inv'!P:P,\"<>proprietario\")+S686","v":0},null,null,"Non ERC",{"$f":"+VLOOKUP(F686,TT_Tabelle_Riferimento!$D$127:$E$164,2,FALSE)","v":"Comune"},"",0]
[0,0,"Gestore",0,"IP",37,{"$f":"+VLOOKUP(F687,TT_Tabelle_Riferimento!$D$127:$G$164,4,FALSE)","v":"Altre immobilizzazioni materiali e immateriali"},3,{"$f":"+VLOOKUP(H687,TT_Tabelle_Riferimento!$F$3:$G$6,2,FALSE)","v":"Altri servizi idrici"},2027,{"$f":"+SUMIFS('PdI-crono_inv'!BB:BB,'PdI-crono_inv'!CF:CF,F687,'PdI-crono_inv'!CE:CE,H687,'PdI-crono_inv'!J:J,P687,'PdI-crono_inv'!P:P,\"<>proprietario\")","v":0},null,{"$f":"+SUMIFS('PdI-crono_inv'!BC:BC,'PdI-crono_inv'!CF:CF,F687,'PdI-crono_inv'!CE:CE,H687,'PdI-crono_inv'!J:J,P687,'PdI-crono_inv'!P:P,\"<>proprietario\")+S687","v":0},null,null,"Non ERC",{"$f":"+VLOOKUP(F687,TT_Tabelle_Riferimento!$D$127:$E$164,2,FALSE)","v":"Comune"},"",0]
[0,0,"Gestore",0,"IP",38,{"$f":"+VLOOKUP(F688,TT_Tabelle_Riferimento!$D$127:$G$164,4,FALSE)","v":"Grandi dighe (sbarramenti che superano i quindici metri di altezza o che determinano un invaso superiore a 1 milione di metri cubi)"},3,{"$f":"+VLOOKUP(H688,TT_Tabelle_Riferimento!$F$3:$G$6,2,FALSE)","v":"Altri servizi idrici"},2027,{"$f":"+SUMIFS('PdI-crono_inv'!BB:BB,'PdI-crono_inv'!CF:CF,F688,'PdI-crono_inv'!CE:CE,H688,'PdI-crono_inv'!J:J,P688,'PdI-crono_inv'!P:P,\"<>proprietario\")","v":0},null,{"$f":"+SUMIFS('PdI-crono_inv'!BC:BC,'PdI-crono_inv'!CF:CF,F688,'PdI-crono_inv'!CE:CE,H688,'PdI-crono_inv'!J:J,P688,'PdI-crono_inv'!P:P,\"<>proprietario\")+S688","v":0},null,null,"Non ERC",{"$f":"+VLOOKUP(F688,TT_Tabelle_Riferimento!$D$127:$E$164,2,FALSE)","v":"Acquedotto"},"",0]
[0,0,"Gestore",0,"IP",39,{"$f":"+VLOOKUP(F689,TT_Tabelle_Riferimento!$D$127:$G$164,4,FALSE)","v":"Piccole dighe (sbarramenti che non superano i quindici metri di altezza o che determinano un invaso non superiore a 1 milione di metri cubi)"},3,{"$f":"+VLOOKUP(H689,TT_Tabelle_Riferimento!$F$3:$G$6,2,FALSE)","v":"Altri servizi idrici"},2027,{"$f":"+SUMIFS('PdI-crono_inv'!BB:BB,'PdI-crono_inv'!CF:CF,F689,'PdI-crono_inv'!CE:CE,H689,'PdI-crono_inv'!J:J,P689,'PdI-crono_inv'!P:P,\"<>proprietario\")","v":0},null,{"$f":"+SUMIFS('PdI-crono_inv'!BC:BC,'PdI-crono_inv'!CF:CF,F689,'PdI-crono_inv'!CE:CE,H689,'PdI-crono_inv'!J:J,P689,'PdI-crono_inv'!P:P,\"<>proprietario\")+S689","v":0},null,null,"Non ERC",{"$f":"+VLOOKUP(F689,TT_Tabelle_Riferimento!$D$127:$E$164,2,FALSE)","v":"Acquedotto"},"",0]
[0,0,"Gestore",0,"IP",2,{"$f":"+VLOOKUP(F690,TT_Tabelle_Riferimento!$D$127:$G$164,4,FALSE)","v":"Condotte di acquedotto"},1,{"$f":"+VLOOKUP(H690,TT_Tabelle_Riferimento!$F$3:$G$6,2,FALSE)","v":"Servizio idrico integrato"},2028,{"$f":"+SUMIFS('PdI-crono_inv'!BG:BG,'PdI-crono_inv'!CF:CF,F690,'PdI-crono_inv'!CE:CE,H690,'PdI-crono_inv'!J:J,P690,'PdI-crono_inv'!P:P,\"<>proprietario\")","v":0},null,{"$f":"+SUMIFS('PdI-crono_inv'!BH:BH,'PdI-crono_inv'!CF:CF,F690,'PdI-crono_inv'!CE:CE,H690,'PdI-crono_inv'!J:J,P690,'PdI-crono_inv'!P:P,\"<>proprietario\")+S690","v":0},null,null,"ENV",{"$f":"+VLOOKUP(F690,TT_Tabelle_Riferimento!$D$127:$E$164,2,FALSE)","v":"Acquedotto"},{"$f":"+IF(SUM(K690:N690)=0,\"\",\"PdI_consolidamento\")","v":""},0]
[0,0,"Gestore",0,"IP",3,{"$f":"+VLOOKUP(F691,TT_Tabelle_Riferimento!$D$127:$G$164,4,FALSE)","v":"Opere idrauliche fisse di acquedotto"},1,{"$f":"+VLOOKUP(H691,TT_Tabelle_Riferimento!$F$3:$G$6,2,FALSE)","v":"Servizio idrico integrato"},2028,{"$f":"+SUMIFS('PdI-crono_inv'!BG:BG,'PdI-crono_inv'!CF:CF,F691,'PdI-crono_inv'!CE:CE,H691,'PdI-crono_inv'!J:J,P691,'PdI-crono_inv'!P:P,\"<>proprietario\")","v":0},null,{"$f":"+SUMIFS('PdI-crono_inv'!BH:BH,'PdI-crono_inv'!CF:CF,F691,'PdI-crono_inv'!CE:CE,H691,'PdI-crono_inv'!J:J,P691,'PdI-crono_inv'!P:P,\"<>proprietario\")+S691","v":0},null,null,"ENV",{"$f":"+VLOOKUP(F691,TT_Tabelle_Riferimento!$D$127:$E$164,2,FALSE)","v":"Acquedotto"},{"$f":"+IF(SUM(K691:N691)=0,\"\",\"PdI_consolidamento\")","v":""},0]
[0,0,"Gestore",0,"IP",4,{"$f":"+VLOOKUP(F692,TT_Tabelle_Riferimento!$D$127:$G$164,4,FALSE)","v":"Serbatoi"},1,{"$f":"+VLOOKUP(H692,TT_Tabelle_Riferimento!$F$3:$G$6,2,FALSE)","v":"Servizio idrico integrato"},2028,{"$f":"+SUMIFS('PdI-crono_inv'!BG:BG,'PdI-crono_inv'!CF:CF,F692,'PdI-crono_inv'!CE:CE,H692,'PdI-crono_inv'!J:J,P692,'PdI-crono_inv'!P:P,\"<>proprietario\")","v":0},null,{"$f":"+SUMIFS('PdI-crono_inv'!BH:BH,'PdI-crono_inv'!CF:CF,F692,'PdI-crono_inv'!CE:CE,H692,'PdI-crono_inv'!J:J,P692,'PdI-crono_inv'!P:P,\"<>proprietario\")+S692","v":0},null,null,"ENV",{"$f":"+VLOOKUP(F692,TT_Tabelle_Riferimento!$D$127:$E$164,2,FALSE)","v":"Acquedotto"},"",0]
[0,0,"Gestore",0,"IP",5,{"$f":"+VLOOKUP(F693,TT_Tabelle_Riferimento!$D$127:$G$164,4,FALSE)","v":"Impianti di sollevamento e pompaggio di acquedotto"},1,{"$f":"+VLOOKUP(H693,TT_Tabelle_Riferimento!$F$3:$G$6,2,FALSE)","v":"Servizio idrico integrato"},2028,{"$f":"+SUMIFS('PdI-crono_inv'!BG:BG,'PdI-crono_inv'!CF:CF,F693,'PdI-crono_inv'!CE:CE,H693,'PdI-crono_inv'!J:J,P693,'PdI-crono_inv'!P:P,\"<>proprietario\")","v":0},null,{"$f":"+SUMIFS('PdI-crono_inv'!BH:BH,'PdI-crono_inv'!CF:CF,F693,'PdI-crono_inv'!CE:CE,H693,'PdI-crono_inv'!J:J,P693,'PdI-crono_inv'!P:P,\"<>proprietario\")+S693","v":0},null,null,"ENV",{"$f":"+VLOOKUP(F693,TT_Tabelle_Riferimento!$D$127:$E$164,2,FALSE)","v":"Acquedotto"},"",0]
[0,0,"Gestore",0,"IP",6,{"$f":"+VLOOKUP(F694,TT_Tabelle_Riferimento!$D$127:$G$164,4,FALSE)","v":"Impianti di potabilizzazione"},1,{"$f":"+VLOOKUP(H694,TT_Tabelle_Riferimento!$F$3:$G$6,2,FALSE)","v":"Servizio idrico integrato"},2028,{"$f":"+SUMIFS('PdI-crono_inv'!BG:BG,'PdI-crono_inv'!CF:CF,F694,'PdI-crono_inv'!CE:CE,H694,'PdI-crono_inv'!J:J,P694,'PdI-crono_inv'!P:P,\"<>proprietario\")","v":0},null,{"$f":"+SUMIFS('PdI-crono_inv'!BH:BH,'PdI-crono_inv'!CF:CF,F694,'PdI-crono_inv'!CE:CE,H694,'PdI-crono_inv'!J:J,P694,'PdI-crono_inv'!P:P,\"<>proprietario\")+S694","v":0},null,null,"ENV",{"$f":"+VLOOKUP(F694,TT_Tabelle_Riferimento!$D$127:$E$164,2,FALSE)","v":"Acquedotto"},"",0]
[0,0,"Gestore",0,"IP",7,{"$f":"+VLOOKUP(F695,TT_Tabelle_Riferimento!$D$127:$G$164,4,FALSE)","v":"Altri trattamenti di potabilizzazione (tra cui dispositivi di disinfezione, stacciatura, filtrazione, addolcimento)"},1,{"$f":"+VLOOKUP(H695,TT_Tabelle_Riferimento!$F$3:$G$6,2,FALSE)","v":"Servizio idrico integrato"},2028,{"$f":"+SUMIFS('PdI-crono_inv'!BG:BG,'PdI-crono_inv'!CF:CF,F695,'PdI-crono_inv'!CE:CE,H695,'PdI-crono_inv'!J:J,P695,'PdI-crono_inv'!P:P,\"<>proprietario\")","v":0},null,{"$f":"+SUMIFS('PdI-crono_inv'!BH:BH,'PdI-crono_inv'!CF:CF,F695,'PdI-crono_inv'!CE:CE,H695,'PdI-crono_inv'!J:J,P695,'PdI-crono_inv'!P:P,\"<>proprietario\")+S695","v":0},null,null,"ENV",{"$f":"+VLOOKUP(F695,TT_Tabelle_Riferimento!$D$127:$E$164,2,FALSE)","v":"Acquedotto"},"",0]
[0,0,"Gestore",0,"IP",8,{"$f":"+VLOOKUP(F696,TT_Tabelle_Riferimento!$D$127:$G$164,4,FALSE)","v":"Gruppi di misura - altre attrezzature di acquedotto"},1,{"$f":"+VLOOKUP(H696,TT_Tabelle_Riferimento!$F$3:$G$6,2,FALSE)","v":"Servizio idrico integrato"},2028,{"$f":"+SUMIFS('PdI-crono_inv'!BG:BG,'PdI-crono_inv'!CF:CF,F696,'PdI-crono_inv'!CE:CE,H696,'PdI-crono_inv'!J:J,P696,'PdI-crono_inv'!P:P,\"<>proprietario\")","v":0},null,{"$f":"+SUMIFS('PdI-crono_inv'!BH:BH,'PdI-crono_inv'!CF:CF,F696,'PdI-crono_inv'!CE:CE,H696,'PdI-crono_inv'!J:J,P696,'PdI-crono_inv'!P:P,\"<>proprietario\")+S696","v":0},null,null,"ENV",{"$f":"+VLOOKUP(F696,TT_Tabelle_Riferimento!$D$127:$E$164,2,FALSE)","v":"Acquedotto"},"",0]
[0,0,"Gestore",0,"IP",9,{"$f":"+VLOOKUP(F697,TT_Tabelle_Riferimento!$D$127:$G$164,4,FALSE)","v":"Sistemi informativi di acquedotto"},1,{"$f":"+VLOOKUP(H697,TT_Tabelle_Riferimento!$F$3:$G$6,2,FALSE)","v":"Servizio idrico integrato"},2028,{"$f":"+SUMIFS('PdI-crono_inv'!BG:BG,'PdI-crono_inv'!CF:CF,F697,'PdI-crono_inv'!CE:CE,H697,'PdI-crono_inv'!J:J,P697,'PdI-crono_inv'!P:P,\"<>proprietario\")","v":0},null,{"$f":"+SUMIFS('PdI-crono_inv'!BH:BH,'PdI-crono_inv'!CF:CF,F697,'PdI-crono_inv'!CE:CE,H697,'PdI-crono_inv'!J:J,P697,'PdI-crono_inv'!P:P,\"<>proprietario\")+S697","v":0},null,null,"ENV",{"$f":"+VLOOKUP(F697,TT_Tabelle_Riferimento!$D$127:$E$164,2,FALSE)","v":"Acquedotto"},"",0]
[0,0,"Gestore",0,"IP",10,{"$f":"+VLOOKUP(F698,TT_Tabelle_Riferimento!$D$127:$G$164,4,FALSE)","v":"Telecontrollo e teletrasmissione di acquedotto"},1,{"$f":"+VLOOKUP(H698,TT_Tabelle_Riferimento!$F$3:$G$6,2,FALSE)","v":"Servizio idrico integrato"},2028,{"$f":"+SUMIFS('PdI-crono_inv'!BG:BG,'PdI-crono_inv'!CF:CF,F698,'PdI-crono_inv'!CE:CE,H698,'PdI-crono_inv'!J:J,P698,'PdI-crono_inv'!P:P,\"<>proprietario\")","v":0},null,{"$f":"+SUMIFS('PdI-crono_inv'!BH:BH,'PdI-crono_inv'!CF:CF,F698,'PdI-crono_inv'!CE:CE,H698,'PdI-crono_inv'!J:J,P698,'PdI-crono_inv'!P:P,\"<>proprietario\")+S698","v":0},null,null,"ENV",{"$f":"+VLOOKUP(F698,TT_Tabelle_Riferimento!$D$127:$E$164,2,FALSE)","v":"Acquedotto"},"",0]
[0,0,"Gestore",0,"IP",11,{"$f":"+VLOOKUP(F699,TT_Tabelle_Riferimento!$D$127:$G$164,4,FALSE)","v":"Condotte fognarie"},1,{"$f":"+VLOOKUP(H699,TT_Tabelle_Riferimento!$F$3:$G$6,2,FALSE)","v":"Servizio idrico integrato"},2028,{"$f":"+SUMIFS('PdI-crono_inv'!BG:BG,'PdI-crono_inv'!CF:CF,F699,'PdI-crono_inv'!CE:CE,H699,'PdI-crono_inv'!J:J,P699,'PdI-crono_inv'!P:P,\"<>proprietario\")","v":0},null,{"$f":"+SUMIFS('PdI-crono_inv'!BH:BH,'PdI-crono_inv'!CF:CF,F699,'PdI-crono_inv'!CE:CE,H699,'PdI-crono_inv'!J:J,P699,'PdI-crono_inv'!P:P,\"<>proprietario\")+S699","v":0},null,null,"ENV",{"$f":"+VLOOKUP(F699,TT_Tabelle_Riferimento!$D$127:$E$164,2,FALSE)","v":"Fognatura"},"",0]
[0,0,"Gestore",0,"IP",12,{"$f":"+VLOOKUP(F700,TT_Tabelle_Riferimento!$D$127:$G$164,4,FALSE)","v":"Sifoni e scaricatori di piena e altre opere idrauliche fisse di fognatura"},1,{"$f":"+VLOOKUP(H700,TT_Tabelle_Riferimento!$F$3:$G$6,2,FALSE)","v":"Servizio idrico integrato"},2028,{"$f":"+SUMIFS('PdI-crono_inv'!BG:BG,'PdI-crono_inv'!CF:CF,F700,'PdI-crono_inv'!CE:CE,H700,'PdI-crono_inv'!J:J,P700,'PdI-crono_inv'!P:P,\"<>proprietario\")","v":0},null,{"$f":"+SUMIFS('PdI-crono_inv'!BH:BH,'PdI-crono_inv'!CF:CF,F700,'PdI-crono_inv'!CE:CE,H700,'PdI-crono_inv'!J:J,P700,'PdI-crono_inv'!P:P,\"<>proprietario\")+S700","v":0},null,null,"ENV",{"$f":"+VLOOKUP(F700,TT_Tabelle_Riferimento!$D$127:$E$164,2,FALSE)","v":"Fognatura"},"",0]
[0,0,"Gestore",0,"IP",13,{"$f":"+VLOOKUP(F701,TT_Tabelle_Riferimento!$D$127:$G$164,4,FALSE)","v":"Vasche di laminazione e vasche di prima pioggia"},1,{"$f":"+VLOOKUP(H701,TT_Tabelle_Riferimento!$F$3:$G$6,2,FALSE)","v":"Servizio idrico integrato"},2028,{"$f":"+SUMIFS('PdI-crono_inv'!BG:BG,'PdI-crono_inv'!CF:CF,F701,'PdI-crono_inv'!CE:CE,H701,'PdI-crono_inv'!J:J,P701,'PdI-crono_inv'!P:P,\"<>proprietario\")","v":0},null,{"$f":"+SUMIFS('PdI-crono_inv'!BH:BH,'PdI-crono_inv'!CF:CF,F701,'PdI-crono_inv'!CE:CE,H701,'PdI-crono_inv'!J:J,P701,'PdI-crono_inv'!P:P,\"<>proprietario\")+S701","v":0},null,null,"ENV",{"$f":"+VLOOKUP(F701,TT_Tabelle_Riferimento!$D$127:$E$164,2,FALSE)","v":"Fognatura"},"",0]
[0,0,"Gestore",0,"IP",14,{"$f":"+VLOOKUP(F702,TT_Tabelle_Riferimento!$D$127:$G$164,4,FALSE)","v":"Impianti di sollevamento e pompaggio di fognatura"},1,{"$f":"+VLOOKUP(H702,TT_Tabelle_Riferimento!$F$3:$G$6,2,FALSE)","v":"Servizio idrico integrato"},2028,{"$f":"+SUMIFS('PdI-crono_inv'!BG:BG,'PdI-crono_inv'!CF:CF,F702,'PdI-crono_inv'!CE:CE,H702,'PdI-crono_inv'!J:J,P702,'PdI-crono_inv'!P:P,\"<>proprietario\")","v":0},null,{"$f":"+SUMIFS('PdI-crono_inv'!BH:BH,'PdI-crono_inv'!CF:CF,F702,'PdI-crono_inv'!CE:CE,H702,'PdI-crono_inv'!J:J,P702,'PdI-crono_inv'!P:P,\"<>proprietario\")+S702","v":0},null,null,"ENV",{"$f":"+VLOOKUP(F702,TT_Tabelle_Riferimento!$D$127:$E$164,2,FALSE)","v":"Fognatura"},"",0]
[0,0,"Gestore",0,"IP",15,{"$f":"+VLOOKUP(F703,TT_Tabelle_Riferimento!$D$127:$G$164,4,FALSE)","v":"Gruppi di misura - altre attrezzature di fognatura"},1,{"$f":"+VLOOKUP(H703,TT_Tabelle_Riferimento!$F$3:$G$6,2,FALSE)","v":"Servizio idrico integrato"},2028,{"$f":"+SUMIFS('PdI-crono_inv'!BG:BG,'PdI-crono_inv'!CF:CF,F703,'PdI-crono_inv'!CE:CE,H703,'PdI-crono_inv'!J:J,P703,'PdI-crono_inv'!P:P,\"<>proprietario\")","v":0},null,{"$f":"+SUMIFS('PdI-crono_inv'!BH:BH,'PdI-crono_inv'!CF:CF,F703,'PdI-crono_inv'!CE:CE,H703,'PdI-crono_inv'!J:J,P703,'PdI-crono_inv'!P:P,\"<>proprietario\")+S703","v":0},null,null,"ENV",{"$f":"+VLOOKUP(F703,TT_Tabelle_Riferimento!$D$127:$E$164,2,FALSE)","v":"Fognatura"},"",0]
[0,0,"Gestore",0,"IP",16,{"$f":"+VLOOKUP(F704,TT_Tabelle_Riferimento!$D$127:$G$164,4,FALSE)","v":"Sistemi informativi di fognatura"},1,{"$f":"+VLOOKUP(H704,TT_Tabelle_Riferimento!$F$3:$G$6,2,FALSE)","v":"Servizio idrico integrato"},2028,{"$f":"+SUMIFS('PdI-crono_inv'!BG:BG,'PdI-crono_inv'!CF:CF,F704,'PdI-crono_inv'!CE:CE,H704,'PdI-crono_inv'!J:J,P704,'PdI-crono_inv'!P:P,\"<>proprietario\")","v":0},null,{"$f":"+SUMIFS('PdI-crono_inv'!BH:BH,'PdI-crono_inv'!CF:CF,F704,'PdI-crono_inv'!CE:CE,H704,'PdI-crono_inv'!J:J,P704,'PdI-crono_inv'!P:P,\"<>proprietario\")+S704","v":0},null,null,"ENV",{"$f":"+VLOOKUP(F704,TT_Tabelle_Riferimento!$D$127:$E$164,2,FALSE)","v":"Fognatura"},"",0]
[0,0,"Gestore",0,"IP",18,{"$f":"+VLOOKUP(F705,TT_Tabelle_Riferimento!$D$127:$G$164,4,FALSE)","v":"Telecontrollo e teletrasmissione di fognatura"},1,{"$f":"+VLOOKUP(H705,TT_Tabelle_Riferimento!$F$3:$G$6,2,FALSE)","v":"Servizio idrico integrato"},2028,{"$f":"+SUMIFS('PdI-crono_inv'!BG:BG,'PdI-crono_inv'!CF:CF,F705,'PdI-crono_inv'!CE:CE,H705,'PdI-crono_inv'!J:J,P705,'PdI-crono_inv'!P:P,\"<>proprietario\")","v":0},null,{"$f":"+SUMIFS('PdI-crono_inv'!BH:BH,'PdI-crono_inv'!CF:CF,F705,'PdI-crono_inv'!CE:CE,H705,'PdI-crono_inv'!J:J,P705,'PdI-crono_inv'!P:P,\"<>proprietario\")+S705","v":0},null,null,"ENV",{"$f":"+VLOOKUP(F705,TT_Tabelle_Riferimento!$D$127:$E$164,2,FALSE)","v":"Fognatura"},"",0]
[0,0,"Gestore",0,"IP",19,{"$f":"+VLOOKUP(F706,TT_Tabelle_Riferimento!$D$127:$G$164,4,FALSE)","v":"Impianti di sollevamento e pompaggio di depurazione"},1,{"$f":"+VLOOKUP(H706,TT_Tabelle_Riferimento!$F$3:$G$6,2,FALSE)","v":"Servizio idrico integrato"},2028,{"$f":"+SUMIFS('PdI-crono_inv'!BG:BG,'PdI-crono_inv'!CF:CF,F706,'PdI-crono_inv'!CE:CE,H706,'PdI-crono_inv'!J:J,P706,'PdI-crono_inv'!P:P,\"<>proprietario\")","v":0},null,{"$f":"+SUMIFS('PdI-crono_inv'!BH:BH,'PdI-crono_inv'!CF:CF,F706,'PdI-crono_inv'!CE:CE,H706,'PdI-crono_inv'!J:J,P706,'PdI-crono_inv'!P:P,\"<>proprietario\")+S706","v":0},null,null,"ENV",{"$f":"+VLOOKUP(F706,TT_Tabelle_Riferimento!$D$127:$E$164,2,FALSE)","v":"Depurazione"},"",0]
[0,0,"Gestore",0,"IP",20,{"$f":"+VLOOKUP(F707,TT_Tabelle_Riferimento!$D$127:$G$164,4,FALSE)","v":"Tecniche naturali di depurazione (tra cui fitodepurazione e lagunaggio)"},1,{"$f":"+VLOOKUP(H707,TT_Tabelle_Riferimento!$F$3:$G$6,2,FALSE)","v":"Servizio idrico integrato"},2028,{"$f":"+SUMIFS('PdI-crono_inv'!BG:BG,'PdI-crono_inv'!CF:CF,F707,'PdI-crono_inv'!CE:CE,H707,'PdI-crono_inv'!J:J,P707,'PdI-crono_inv'!P:P,\"<>proprietario\")","v":0},null,{"$f":"+SUMIFS('PdI-crono_inv'!BH:BH,'PdI-crono_inv'!CF:CF,F707,'PdI-crono_inv'!CE:CE,H707,'PdI-crono_inv'!J:J,P707,'PdI-crono_inv'!P:P,\"<>proprietario\")+S707","v":0},null,null,"ENV",{"$f":"+VLOOKUP(F707,TT_Tabelle_Riferimento!$D$127:$E$164,2,FALSE)","v":"Depurazione"},"",0]
[0,0,"Gestore",0,"IP",21,{"$f":"+VLOOKUP(F708,TT_Tabelle_Riferimento!$D$127:$G$164,4,FALSE)","v":"Impianti di depurazione – trattamenti sino al preliminare, integrativo, primario - fosse settiche e fosse Imhoff"},1,{"$f":"+VLOOKUP(H708,TT_Tabelle_Riferimento!$F$3:$G$6,2,FALSE)","v":"Servizio idrico integrato"},2028,{"$f":"+SUMIFS('PdI-crono_inv'!BG:BG,'PdI-crono_inv'!CF:CF,F708,'PdI-crono_inv'!CE:CE,H708,'PdI-crono_inv'!J:J,P708,'PdI-crono_inv'!P:P,\"<>proprietario\")","v":0},null,{"$f":"+SUMIFS('PdI-crono_inv'!BH:BH,'PdI-crono_inv'!CF:CF,F708,'PdI-crono_inv'!CE:CE,H708,'PdI-crono_inv'!J:J,P708,'PdI-crono_inv'!P:P,\"<>proprietario\")+S708","v":0},null,null,"ENV",{"$f":"+VLOOKUP(F708,TT_Tabelle_Riferimento!$D$127:$E$164,2,FALSE)","v":"Depurazione"},"",0]
[0,0,"Gestore",0,"IP",22,{"$f":"+VLOOKUP(F709,TT_Tabelle_Riferimento!$D$127:$G$164,4,FALSE)","v":"Impianti di depurazione – trattamenti sino al secondario"},1,{"$f":"+VLOOKUP(H709,TT_Tabelle_Riferimento!$F$3:$G$6,2,FALSE)","v":"Servizio idrico integrato"},2028,{"$f":"+SUMIFS('PdI-crono_inv'!BG:BG,'PdI-crono_inv'!CF:CF,F709,'PdI-crono_inv'!CE:CE,H709,'PdI-crono_inv'!J:J,P709,'PdI-crono_inv'!P:P,\"<>proprietario\")","v":0},null,{"$f":"+SUMIFS('PdI-crono_inv'!BH:BH,'PdI-crono_inv'!CF:CF,F709,'PdI-crono_inv'!CE:CE,H709,'PdI-crono_inv'!J:J,P709,'PdI-crono_inv'!P:P,\"<>proprietario\")+S709","v":0},null,null,"ENV",{"$f":"+VLOOKUP(F709,TT_Tabelle_Riferimento!$D$127:$E$164,2,FALSE)","v":"Depurazione"},"",0]
[0,0,"Gestore",0,"IP",23,{"$f":"+VLOOKUP(F710,TT_Tabelle_Riferimento!$D$127:$G$164,4,FALSE)","v":"Impianti di depurazione – trattamenti sino al terziario e terziario avanzato"},1,{"$f":"+VLOOKUP(H710,TT_Tabelle_Riferimento!$F$3:$G$6,2,FALSE)","v":"Servizio idrico integrato"},2028,{"$f":"+SUMIFS('PdI-crono_inv'!BG:BG,'PdI-crono_inv'!CF:CF,F710,'PdI-crono_inv'!CE:CE,H710,'PdI-crono_inv'!J:J,P710,'PdI-crono_inv'!P:P,\"<>proprietario\")","v":0},null,{"$f":"+SUMIFS('PdI-crono_inv'!BH:BH,'PdI-crono_inv'!CF:CF,F710,'PdI-crono_inv'!CE:CE,H710,'PdI-crono_inv'!J:J,P710,'PdI-crono_inv'!P:P,\"<>proprietario\")+S710","v":0},null,null,"ENV",{"$f":"+VLOOKUP(F710,TT_Tabelle_Riferimento!$D$127:$E$164,2,FALSE)","v":"Depurazione"},"",0]
[0,0,"Gestore",0,"IP",24,{"$f":"+VLOOKUP(F711,TT_Tabelle_Riferimento!$D$127:$G$164,4,FALSE)","v":"Impianti di essiccamento fanghi e di valorizzazione dei fanghi (tra cui mono-incenerimento, pirolisi, gassificazione)"},1,{"$f":"+VLOOKUP(H711,TT_Tabelle_Riferimento!$F$3:$G$6,2,FALSE)","v":"Servizio idrico integrato"},2028,{"$f":"+SUMIFS('PdI-crono_inv'!BG:BG,'PdI-crono_inv'!CF:CF,F711,'PdI-crono_inv'!CE:CE,H711,'PdI-crono_inv'!J:J,P711,'PdI-crono_inv'!P:P,\"<>proprietario\")","v":0},null,{"$f":"+SUMIFS('PdI-crono_inv'!BH:BH,'PdI-crono_inv'!CF:CF,F711,'PdI-crono_inv'!CE:CE,H711,'PdI-crono_inv'!J:J,P711,'PdI-crono_inv'!P:P,\"<>proprietario\")+S711","v":0},null,null,"ENV",{"$f":"+VLOOKUP(F711,TT_Tabelle_Riferimento!$D$127:$E$164,2,FALSE)","v":"Depurazione"},"",{"$f":"+IFERROR(HLOOKUP(J711,$X$2:$Y$5,4,FALSE)*K711,0)","v":0}]
[0,0,"Gestore",0,"IP",25,{"$f":"+VLOOKUP(F712,TT_Tabelle_Riferimento!$D$127:$G$164,4,FALSE)","v":"Gruppi di misura - altre attrezzature di depurazione"},1,{"$f":"+VLOOKUP(H712,TT_Tabelle_Riferimento!$F$3:$G$6,2,FALSE)","v":"Servizio idrico integrato"},2028,{"$f":"+SUMIFS('PdI-crono_inv'!BG:BG,'PdI-crono_inv'!CF:CF,F712,'PdI-crono_inv'!CE:CE,H712,'PdI-crono_inv'!J:J,P712,'PdI-crono_inv'!P:P,\"<>proprietario\")","v":0},null,{"$f":"+SUMIFS('PdI-crono_inv'!BH:BH,'PdI-crono_inv'!CF:CF,F712,'PdI-crono_inv'!CE:CE,H712,'PdI-crono_inv'!J:J,P712,'PdI-crono_inv'!P:P,\"<>proprietario\")+S712","v":0},null,null,"ENV",{"$f":"+VLOOKUP(F712,TT_Tabelle_Riferimento!$D$127:$E$164,2,FALSE)","v":"Depurazione"},"",0]
[0,0,"Gestore",0,"IP",26,{"$f":"+VLOOKUP(F713,TT_Tabelle_Riferimento!$D$127:$G$164,4,FALSE)","v":"Sistemi informativi di depurazione"},1,{"$f":"+VLOOKUP(H713,TT_Tabelle_Riferimento!$F$3:$G$6,2,FALSE)","v":"Servizio idrico integrato"},2028,{"$f":"+SUMIFS('PdI-crono_inv'!BG:BG,'PdI-crono_inv'!CF:CF,F713,'PdI-crono_inv'!CE:CE,H713,'PdI-crono_inv'!J:J,P713,'PdI-crono_inv'!P:P,\"<>proprietario\")","v":0},null,{"$f":"+SUMIFS('PdI-crono_inv'!BH:BH,'PdI-crono_inv'!CF:CF,F713,'PdI-crono_inv'!CE:CE,H713,'PdI-crono_inv'!J:J,P713,'PdI-crono_inv'!P:P,\"<>proprietario\")+S713","v":0},null,null,"ENV",{"$f":"+VLOOKUP(F713,TT_Tabelle_Riferimento!$D$127:$E$164,2,FALSE)","v":"Depurazione"},"",0]
[0,0,"Gestore",0,"IP",27,{"$f":"+VLOOKUP(F714,TT_Tabelle_Riferimento!$D$127:$G$164,4,FALSE)","v":"Telecontrollo e teletrasmissione di depurazione"},1,{"$f":"+VLOOKUP(H714,TT_Tabelle_Riferimento!$F$3:$G$6,2,FALSE)","v":"Servizio idrico integrato"},2028,{"$f":"+SUMIFS('PdI-crono_inv'!BG:BG,'PdI-crono_inv'!CF:CF,F714,'PdI-crono_inv'!CE:CE,H714,'PdI-crono_inv'!J:J,P714,'PdI-crono_inv'!P:P,\"<>proprietario\")","v":0},null,{"$f":"+SUMIFS('PdI-crono_inv'!BH:BH,'PdI-crono_inv'!CF:CF,F714,'PdI-crono_inv'!CE:CE,H714,'PdI-crono_inv'!J:J,P714,'PdI-crono_inv'!P:P,\"<>proprietario\")+S714","v":0},null,null,"ENV",{"$f":"+VLOOKUP(F714,TT_Tabelle_Riferimento!$D$127:$E$164,2,FALSE)","v":"Depurazione"},"",0]
[0,0,"Gestore",0,"IP",28,{"$f":"+VLOOKUP(F715,TT_Tabelle_Riferimento!$D$127:$G$164,4,FALSE)","v":"Altri impianti"},1,{"$f":"+VLOOKUP(H715,TT_Tabelle_Riferimento!$F$3:$G$6,2,FALSE)","v":"Servizio idrico integrato"},2028,{"$f":"+SUMIFS('PdI-crono_inv'!BG:BG,'PdI-crono_inv'!CF:CF,F715,'PdI-crono_inv'!CE:CE,H715,'PdI-crono_inv'!J:J,P715,'PdI-crono_inv'!P:P,\"<>proprietario\")","v":0},null,{"$f":"+SUMIFS('PdI-crono_inv'!BH:BH,'PdI-crono_inv'!CF:CF,F715,'PdI-crono_inv'!CE:CE,H715,'PdI-crono_inv'!J:J,P715,'PdI-crono_inv'!P:P,\"<>proprietario\")+S715","v":0},null,null,"ENV",{"$f":"+VLOOKUP(F715,TT_Tabelle_Riferimento!$D$127:$E$164,2,FALSE)","v":"Comune"},"",0]
[{"$f":"+idato","v":0},{"$f":"+idgestore","v":0},"Gestore",0,"IP",29,{"$f":"+VLOOKUP(F716,TT_Tabelle_Riferimento!$D$127:$G$164,4,FALSE)","v":"Laboratori e attrezzature"},1,{"$f":"+VLOOKUP(H716,TT_Tabelle_Riferimento!$F$3:$G$6,2,FALSE)","v":"Servizio idrico integrato"},2028,{"$f":"+SUMIFS('PdI-crono_inv'!BG:BG,'PdI-crono_inv'!CF:CF,F716,'PdI-crono_inv'!CE:CE,H716,'PdI-crono_inv'!J:J,P716,'PdI-crono_inv'!P:P,\"<>proprietario\")","v":0},null,{"$f":"+SUMIFS('PdI-crono_inv'!BH:BH,'PdI-crono_inv'!CF:CF,F716,'PdI-crono_inv'!CE:CE,H716,'PdI-crono_inv'!J:J,P716,'PdI-crono_inv'!P:P,\"<>proprietario\")+S716","v":0},null,null,"ENV",{"$f":"+VLOOKUP(F716,TT_Tabelle_Riferimento!$D$127:$E$164,2,FALSE)","v":"Comune"},"",0]
[0,0,"Gestore",0,"IP",30,{"$f":"+VLOOKUP(F717,TT_Tabelle_Riferimento!$D$127:$G$164,4,FALSE)","v":"Sistemi informativi"},1,{"$f":"+VLOOKUP(H717,TT_Tabelle_Riferimento!$F$3:$G$6,2,FALSE)","v":"Servizio idrico integrato"},2028,{"$f":"+SUMIFS('PdI-crono_inv'!BG:BG,'PdI-crono_inv'!CF:CF,F717,'PdI-crono_inv'!CE:CE,H717,'PdI-crono_inv'!J:J,P717,'PdI-crono_inv'!P:P,\"<>proprietario\")","v":0},null,{"$f":"+SUMIFS('PdI-crono_inv'!BH:BH,'PdI-crono_inv'!CF:CF,F717,'PdI-crono_inv'!CE:CE,H717,'PdI-crono_inv'!J:J,P717,'PdI-crono_inv'!P:P,\"<>proprietario\")+S717","v":0},null,null,"ENV",{"$f":"+VLOOKUP(F717,TT_Tabelle_Riferimento!$D$127:$E$164,2,FALSE)","v":"Comune"},"",0]
[0,0,"Gestore",0,"IP",31,{"$f":"+VLOOKUP(F718,TT_Tabelle_Riferimento!$D$127:$G$164,4,FALSE)","v":"Telecontrollo e teletrasmissione"},1,{"$f":"+VLOOKUP(H718,TT_Tabelle_Riferimento!$F$3:$G$6,2,FALSE)","v":"Servizio idrico integrato"},2028,{"$f":"+SUMIFS('PdI-crono_inv'!BG:BG,'PdI-crono_inv'!CF:CF,F718,'PdI-crono_inv'!CE:CE,H718,'PdI-crono_inv'!J:J,P718,'PdI-crono_inv'!P:P,\"<>proprietario\")","v":0},null,{"$f":"+SUMIFS('PdI-crono_inv'!BH:BH,'PdI-crono_inv'!CF:CF,F718,'PdI-crono_inv'!CE:CE,H718,'PdI-crono_inv'!J:J,P718,'PdI-crono_inv'!P:P,\"<>proprietario\")+S718","v":0},null,null,"ENV",{"$f":"+VLOOKUP(F718,TT_Tabelle_Riferimento!$D$127:$E$164,2,FALSE)","v":"Comune"},"",0]
[0,0,"Gestore",0,"IP",32,{"$f":"+VLOOKUP(F719,TT_Tabelle_Riferimento!$D$127:$G$164,4,FALSE)","v":"Autoveicoli - automezzi"},1,{"$f":"+VLOOKUP(H719,TT_Tabelle_Riferimento!$F$3:$G$6,2,FALSE)","v":"Servizio idrico integrato"},2028,{"$f":"+SUMIFS('PdI-crono_inv'!BG:BG,'PdI-crono_inv'!CF:CF,F719,'PdI-crono_inv'!CE:CE,H719,'PdI-crono_inv'!J:J,P719,'PdI-crono_inv'!P:P,\"<>proprietario\")","v":0},null,{"$f":"+SUMIFS('PdI-crono_inv'!BH:BH,'PdI-crono_inv'!CF:CF,F719,'PdI-crono_inv'!CE:CE,H719,'PdI-crono_inv'!J:J,P719,'PdI-crono_inv'!P:P,\"<>proprietario\")+S719","v":0},null,null,"ENV",{"$f":"+VLOOKUP(F719,TT_Tabelle_Riferimento!$D$127:$E$164,2,FALSE)","v":"Comune"},"",0]
[0,0,"Gestore",0,"IP",1,{"$f":"+VLOOKUP(F720,TT_Tabelle_Riferimento!$D$127:$G$164,4,FALSE)","v":"Terreni"},1,{"$f":"+VLOOKUP(H720,TT_Tabelle_Riferimento!$F$3:$G$6,2,FALSE)","v":"Servizio idrico integrato"},2028,{"$f":"+SUMIFS('PdI-crono_inv'!BG:BG,'PdI-crono_inv'!CF:CF,F720,'PdI-crono_inv'!CE:CE,H720,'PdI-crono_inv'!J:J,P720,'PdI-crono_inv'!P:P,\"<>proprietario\")","v":0},null,{"$f":"+SUMIFS('PdI-crono_inv'!BH:BH,'PdI-crono_inv'!CF:CF,F720,'PdI-crono_inv'!CE:CE,H720,'PdI-crono_inv'!J:J,P720,'PdI-crono_inv'!P:P,\"<>proprietario\")+S720","v":0},null,null,"ENV",{"$f":"+VLOOKUP(F720,TT_Tabelle_Riferimento!$D$127:$E$164,2,FALSE)","v":"Comune"},"",0]
[0,0,"Gestore",0,"IP",33,{"$f":"+VLOOKUP(F721,TT_Tabelle_Riferimento!$D$127:$G$164,4,FALSE)","v":"Fabbricati non industriali"},1,{"$f":"+VLOOKUP(H721,TT_Tabelle_Riferimento!$F$3:$G$6,2,FALSE)","v":"Servizio idrico integrato"},2028,{"$f":"+SUMIFS('PdI-crono_inv'!BG:BG,'PdI-crono_inv'!CF:CF,F721,'PdI-crono_inv'!CE:CE,H721,'PdI-crono_inv'!J:J,P721,'PdI-crono_inv'!P:P,\"<>proprietario\")","v":0},null,{"$f":"+SUMIFS('PdI-crono_inv'!BH:BH,'PdI-crono_inv'!CF:CF,F721,'PdI-crono_inv'!CE:CE,H721,'PdI-crono_inv'!J:J,P721,'PdI-crono_inv'!P:P,\"<>proprietario\")+S721","v":0},null,null,"ENV",{"$f":"+VLOOKUP(F721,TT_Tabelle_Riferimento!$D$127:$E$164,2,FALSE)","v":"Comune"},"",0]
[0,0,"Gestore",0,"IP",34,{"$f":"+VLOOKUP(F722,TT_Tabelle_Riferimento!$D$127:$G$164,4,FALSE)","v":"Fabbricati industriali"},1,{"$f":"+VLOOKUP(H722,TT_Tabelle_Riferimento!$F$3:$G$6,2,FALSE)","v":"Servizio idrico integrato"},2028,{"$f":"+SUMIFS('PdI-crono_inv'!BG:BG,'PdI-crono_inv'!CF:CF,F722,'PdI-crono_inv'!CE:CE,H722,'PdI-crono_inv'!J:J,P722,'PdI-crono_inv'!P:P,\"<>proprietario\")","v":0},null,{"$f":"+SUMIFS('PdI-crono_inv'!BH:BH,'PdI-crono_inv'!CF:CF,F722,'PdI-crono_inv'!CE:CE,H722,'PdI-crono_inv'!J:J,P722,'PdI-crono_inv'!P:P,\"<>proprietario\")+S722","v":0},null,null,"ENV",{"$f":"+VLOOKUP(F722,TT_Tabelle_Riferimento!$D$127:$E$164,2,FALSE)","v":"Comune"},"",0]
[0,0,"Gestore",0,"IP",35,{"$f":"+VLOOKUP(F723,TT_Tabelle_Riferimento!$D$127:$G$164,4,FALSE)","v":"Costruzioni leggere"},1,{"$f":"+VLOOKUP(H723,TT_Tabelle_Riferimento!$F$3:$G$6,2,FALSE)","v":"Servizio idrico integrato"},2028,{"$f":"+SUMIFS('PdI-crono_inv'!BG:BG,'PdI-crono_inv'!CF:CF,F723,'PdI-crono_inv'!CE:CE,H723,'PdI-crono_inv'!J:J,P723,'PdI-crono_inv'!P:P,\"<>proprietario\")","v":0},null,{"$f":"+SUMIFS('PdI-crono_inv'!BH:BH,'PdI-crono_inv'!CF:CF,F723,'PdI-crono_inv'!CE:CE,H723,'PdI-crono_inv'!J:J,P723,'PdI-crono_inv'!P:P,\"<>proprietario\")+S723","v":0},null,null,"ENV",{"$f":"+VLOOKUP(F723,TT_Tabelle_Riferimento!$D$127:$E$164,2,FALSE)","v":"Comune"},"",0]
[0,0,"Gestore",0,"IP",36,{"$f":"+VLOOKUP(F724,TT_Tabelle_Riferimento!$D$127:$G$164,4,FALSE)","v":"Studi, ricerche, brevetti, diritti di utilizzazione"},1,{"$f":"+VLOOKUP(H724,TT_Tabelle_Riferimento!$F$3:$G$6,2,FALSE)","v":"Servizio idrico integrato"},2028,{"$f":"+SUMIFS('PdI-crono_inv'!BG:BG,'PdI-crono_inv'!CF:CF,F724,'PdI-crono_inv'!CE:CE,H724,'PdI-crono_inv'!J:J,P724,'PdI-crono_inv'!P:P,\"<>proprietario\")","v":0},null,{"$f":"+SUMIFS('PdI-crono_inv'!BH:BH,'PdI-crono_inv'!CF:CF,F724,'PdI-crono_inv'!CE:CE,H724,'PdI-crono_inv'!J:J,P724,'PdI-crono_inv'!P:P,\"<>proprietario\")+S724","v":0},null,null,"ENV",{"$f":"+VLOOKUP(F724,TT_Tabelle_Riferimento!$D$127:$E$164,2,FALSE)","v":"Comune"},"",0]
[0,0,"Gestore",0,"IP",37,{"$f":"+VLOOKUP(F725,TT_Tabelle_Riferimento!$D$127:$G$164,4,FALSE)","v":"Altre immobilizzazioni materiali e immateriali"},1,{"$f":"+VLOOKUP(H725,TT_Tabelle_Riferimento!$F$3:$G$6,2,FALSE)","v":"Servizio idrico integrato"},2028,{"$f":"+SUMIFS('PdI-crono_inv'!BG:BG,'PdI-crono_inv'!CF:CF,F725,'PdI-crono_inv'!CE:CE,H725,'PdI-crono_inv'!J:J,P725,'PdI-crono_inv'!P:P,\"<>proprietario\")","v":0},null,{"$f":"+SUMIFS('PdI-crono_inv'!BH:BH,'PdI-crono_inv'!CF:CF,F725,'PdI-crono_inv'!CE:CE,H725,'PdI-crono_inv'!J:J,P725,'PdI-crono_inv'!P:P,\"<>proprietario\")+S725","v":0},null,null,"ENV",{"$f":"+VLOOKUP(F725,TT_Tabelle_Riferimento!$D$127:$E$164,2,FALSE)","v":"Comune"},{"$f":"+IF(SUM(K725:N725)=0,\"\",\"PdI_consolidamento\")","v":""},0]
[0,0,"Gestore",0,"IP",38,{"$f":"+VLOOKUP(F726,TT_Tabelle_Riferimento!$D$127:$G$164,4,FALSE)","v":"Grandi dighe (sbarramenti che superano i quindici metri di altezza o che determinano un invaso superiore a 1 milione di metri cubi)"},1,{"$f":"+VLOOKUP(H726,TT_Tabelle_Riferimento!$F$3:$G$6,2,FALSE)","v":"Servizio idrico integrato"},2028,{"$f":"+SUMIFS('PdI-crono_inv'!BG:BG,'PdI-crono_inv'!CF:CF,F726,'PdI-crono_inv'!CE:CE,H726,'PdI-crono_inv'!J:J,P726,'PdI-crono_inv'!P:P,\"<>proprietario\")","v":0},null,{"$f":"+SUMIFS('PdI-crono_inv'!BH:BH,'PdI-crono_inv'!CF:CF,F726,'PdI-crono_inv'!CE:CE,H726,'PdI-crono_inv'!J:J,P726,'PdI-crono_inv'!P:P,\"<>proprietario\")+S726","v":0},null,null,"ENV",{"$f":"+VLOOKUP(F726,TT_Tabelle_Riferimento!$D$127:$E$164,2,FALSE)","v":"Acquedotto"},{"$f":"+IF(SUM(K726:N726)=0,\"\",\"PdI_consolidamento\")","v":""},0]
[0,0,"Gestore",0,"IP",39,{"$f":"+VLOOKUP(F727,TT_Tabelle_Riferimento!$D$127:$G$164,4,FALSE)","v":"Piccole dighe (sbarramenti che non superano i quindici metri di altezza o che determinano un invaso non superiore a 1 milione di metri cubi)"},1,{"$f":"+VLOOKUP(H727,TT_Tabelle_Riferimento!$F$3:$G$6,2,FALSE)","v":"Servizio idrico integrato"},2028,{"$f":"+SUMIFS('PdI-crono_inv'!BG:BG,'PdI-crono_inv'!CF:CF,F727,'PdI-crono_inv'!CE:CE,H727,'PdI-crono_inv'!J:J,P727,'PdI-crono_inv'!P:P,\"<>proprietario\")","v":0},null,{"$f":"+SUMIFS('PdI-crono_inv'!BH:BH,'PdI-crono_inv'!CF:CF,F727,'PdI-crono_inv'!CE:CE,H727,'PdI-crono_inv'!J:J,P727,'PdI-crono_inv'!P:P,\"<>proprietario\")+S727","v":0},null,null,"ENV",{"$f":"+VLOOKUP(F727,TT_Tabelle_Riferimento!$D$127:$E$164,2,FALSE)","v":"Acquedotto"},{"$f":"+IF(SUM(K727:N727)=0,\"\",\"PdI_consolidamento\")","v":""},0]
[{"$f":"+idato","v":0},{"$f":"+idgestore","v":0},"Gestore",0,"IP",2,{"$f":"+VLOOKUP(F728,TT_Tabelle_Riferimento!$D$127:$G$164,4,FALSE)","v":"Condotte di acquedotto"},2,{"$f":"+VLOOKUP(H728,TT_Tabelle_Riferimento!$F$3:$G$6,2,FALSE)","v":"Fognatura bianca e pulizia / manutenzione caditoie stradali"},2028,{"$f":"+SUMIFS('PdI-crono_inv'!BG:BG,'PdI-crono_inv'!CF:CF,F728,'PdI-crono_inv'!CE:CE,H728,'PdI-crono_inv'!J:J,P728,'PdI-crono_inv'!P:P,\"<>proprietario\")","v":0},null,{"$f":"+SUMIFS('PdI-crono_inv'!BH:BH,'PdI-crono_inv'!CF:CF,F728,'PdI-crono_inv'!CE:CE,H728,'PdI-crono_inv'!J:J,P728,'PdI-crono_inv'!P:P,\"<>proprietario\")+S728","v":0},null,null,"ENV",{"$f":"+VLOOKUP(F728,TT_Tabelle_Riferimento!$D$127:$E$164,2,FALSE)","v":"Acquedotto"},{"$f":"+IF(SUM(K728:N728)=0,\"\",\"PdI_consolidamento\")","v":""},0]
[0,0,"Gestore",0,"IP",3,{"$f":"+VLOOKUP(F729,TT_Tabelle_Riferimento!$D$127:$G$164,4,FALSE)","v":"Opere idrauliche fisse di acquedotto"},2,{"$f":"+VLOOKUP(H729,TT_Tabelle_Riferimento!$F$3:$G$6,2,FALSE)","v":"Fognatura bianca e pulizia / manutenzione caditoie stradali"},2028,{"$f":"+SUMIFS('PdI-crono_inv'!BG:BG,'PdI-crono_inv'!CF:CF,F729,'PdI-crono_inv'!CE:CE,H729,'PdI-crono_inv'!J:J,P729,'PdI-crono_inv'!P:P,\"<>proprietario\")","v":0},null,{"$f":"+SUMIFS('PdI-crono_inv'!BH:BH,'PdI-crono_inv'!CF:CF,F729,'PdI-crono_inv'!CE:CE,H729,'PdI-crono_inv'!J:J,P729,'PdI-crono_inv'!P:P,\"<>proprietario\")+S729","v":0},null,null,"ENV",{"$f":"+VLOOKUP(F729,TT_Tabelle_Riferimento!$D$127:$E$164,2,FALSE)","v":"Acquedotto"},"",0]
[0,0,"Gestore",0,"IP",4,{"$f":"+VLOOKUP(F730,TT_Tabelle_Riferimento!$D$127:$G$164,4,FALSE)","v":"Serbatoi"},2,{"$f":"+VLOOKUP(H730,TT_Tabelle_Riferimento!$F$3:$G$6,2,FALSE)","v":"Fognatura bianca e pulizia / manutenzione caditoie stradali"},2028,{"$f":"+SUMIFS('PdI-crono_inv'!BG:BG,'PdI-crono_inv'!CF:CF,F730,'PdI-crono_inv'!CE:CE,H730,'PdI-crono_inv'!J:J,P730,'PdI-crono_inv'!P:P,\"<>proprietario\")","v":0},null,{"$f":"+SUMIFS('PdI-crono_inv'!BH:BH,'PdI-crono_inv'!CF:CF,F730,'PdI-crono_inv'!CE:CE,H730,'PdI-crono_inv'!J:J,P730,'PdI-crono_inv'!P:P,\"<>proprietario\")+S730","v":0},null,null,"ENV",{"$f":"+VLOOKUP(F730,TT_Tabelle_Riferimento!$D$127:$E$164,2,FALSE)","v":"Acquedotto"},"",0]
[0,0,"Gestore",0,"IP",5,{"$f":"+VLOOKUP(F731,TT_Tabelle_Riferimento!$D$127:$G$164,4,FALSE)","v":"Impianti di sollevamento e pompaggio di acquedotto"},2,{"$f":"+VLOOKUP(H731,TT_Tabelle_Riferimento!$F$3:$G$6,2,FALSE)","v":"Fognatura bianca e pulizia / manutenzione caditoie stradali"},2028,{"$f":"+SUMIFS('PdI-crono_inv'!BG:BG,'PdI-crono_inv'!CF:CF,F731,'PdI-crono_inv'!CE:CE,H731,'PdI-crono_inv'!J:J,P731,'PdI-crono_inv'!P:P,\"<>proprietario\")","v":0},null,{"$f":"+SUMIFS('PdI-crono_inv'!BH:BH,'PdI-crono_inv'!CF:CF,F731,'PdI-crono_inv'!CE:CE,H731,'PdI-crono_inv'!J:J,P731,'PdI-crono_inv'!P:P,\"<>proprietario\")+S731","v":0},null,null,"ENV",{"$f":"+VLOOKUP(F731,TT_Tabelle_Riferimento!$D$127:$E$164,2,FALSE)","v":"Acquedotto"},"",0]
[0,0,"Gestore",0,"IP",6,{"$f":"+VLOOKUP(F732,TT_Tabelle_Riferimento!$D$127:$G$164,4,FALSE)","v":"Impianti di potabilizzazione"},2,{"$f":"+VLOOKUP(H732,TT_Tabelle_Riferimento!$F$3:$G$6,2,FALSE)","v":"Fognatura bianca e pulizia / manutenzione caditoie stradali"},2028,{"$f":"+SUMIFS('PdI-crono_inv'!BG:BG,'PdI-crono_inv'!CF:CF,F732,'PdI-crono_inv'!CE:CE,H732,'PdI-crono_inv'!J:J,P732,'PdI-crono_inv'!P:P,\"<>proprietario\")","v":0},null,{"$f":"+SUMIFS('PdI-crono_inv'!BH:BH,'PdI-crono_inv'!CF:CF,F732,'PdI-crono_inv'!CE:CE,H732,'PdI-crono_inv'!J:J,P732,'PdI-crono_inv'!P:P,\"<>proprietario\")+S732","v":0},null,null,"ENV",{"$f":"+VLOOKUP(F732,TT_Tabelle_Riferimento!$D$127:$E$164,2,FALSE)","v":"Acquedotto"},"",0]
[0,0,"Gestore",0,"IP",7,{"$f":"+VLOOKUP(F733,TT_Tabelle_Riferimento!$D$127:$G$164,4,FALSE)","v":"Altri trattamenti di potabilizzazione (tra cui dispositivi di disinfezione, stacciatura, filtrazione, addolcimento)"},2,{"$f":"+VLOOKUP(H733,TT_Tabelle_Riferimento!$F$3:$G$6,2,FALSE)","v":"Fognatura bianca e pulizia / manutenzione caditoie stradali"},2028,{"$f":"+SUMIFS('PdI-crono_inv'!BG:BG,'PdI-crono_inv'!CF:CF,F733,'PdI-crono_inv'!CE:CE,H733,'PdI-crono_inv'!J:J,P733,'PdI-crono_inv'!P:P,\"<>proprietario\")","v":0},null,{"$f":"+SUMIFS('PdI-crono_inv'!BH:BH,'PdI-crono_inv'!CF:CF,F733,'PdI-crono_inv'!CE:CE,H733,'PdI-crono_inv'!J:J,P733,'PdI-crono_inv'!P:P,\"<>proprietario\")+S733","v":0},null,null,"ENV",{"$f":"+VLOOKUP(F733,TT_Tabelle_Riferimento!$D$127:$E$164,2,FALSE)","v":"Acquedotto"},"",0]
[0,0,"Gestore",0,"IP",8,{"$f":"+VLOOKUP(F734,TT_Tabelle_Riferimento!$D$127:$G$164,4,FALSE)","v":"Gruppi di misura - altre attrezzature di acquedotto"},2,{"$f":"+VLOOKUP(H734,TT_Tabelle_Riferimento!$F$3:$G$6,2,FALSE)","v":"Fognatura bianca e pulizia / manutenzione caditoie stradali"},2028,{"$f":"+SUMIFS('PdI-crono_inv'!BG:BG,'PdI-crono_inv'!CF:CF,F734,'PdI-crono_inv'!CE:CE,H734,'PdI-crono_inv'!J:J,P734,'PdI-crono_inv'!P:P,\"<>proprietario\")","v":0},null,{"$f":"+SUMIFS('PdI-crono_inv'!BH:BH,'PdI-crono_inv'!CF:CF,F734,'PdI-crono_inv'!CE:CE,H734,'PdI-crono_inv'!J:J,P734,'PdI-crono_inv'!P:P,\"<>proprietario\")+S734","v":0},null,null,"ENV",{"$f":"+VLOOKUP(F734,TT_Tabelle_Riferimento!$D$127:$E$164,2,FALSE)","v":"Acquedotto"},"",0]
[0,0,"Gestore",0,"IP",9,{"$f":"+VLOOKUP(F735,TT_Tabelle_Riferimento!$D$127:$G$164,4,FALSE)","v":"Sistemi informativi di acquedotto"},2,{"$f":"+VLOOKUP(H735,TT_Tabelle_Riferimento!$F$3:$G$6,2,FALSE)","v":"Fognatura bianca e pulizia / manutenzione caditoie stradali"},2028,{"$f":"+SUMIFS('PdI-crono_inv'!BG:BG,'PdI-crono_inv'!CF:CF,F735,'PdI-crono_inv'!CE:CE,H735,'PdI-crono_inv'!J:J,P735,'PdI-crono_inv'!P:P,\"<>proprietario\")","v":0},null,{"$f":"+SUMIFS('PdI-crono_inv'!BH:BH,'PdI-crono_inv'!CF:CF,F735,'PdI-crono_inv'!CE:CE,H735,'PdI-crono_inv'!J:J,P735,'PdI-crono_inv'!P:P,\"<>proprietario\")+S735","v":0},null,null,"ENV",{"$f":"+VLOOKUP(F735,TT_Tabelle_Riferimento!$D$127:$E$164,2,FALSE)","v":"Acquedotto"},"",0]
[0,0,"Gestore",0,"IP",10,{"$f":"+VLOOKUP(F736,TT_Tabelle_Riferimento!$D$127:$G$164,4,FALSE)","v":"Telecontrollo e teletrasmissione di acquedotto"},2,{"$f":"+VLOOKUP(H736,TT_Tabelle_Riferimento!$F$3:$G$6,2,FALSE)","v":"Fognatura bianca e pulizia / manutenzione caditoie stradali"},2028,{"$f":"+SUMIFS('PdI-crono_inv'!BG:BG,'PdI-crono_inv'!CF:CF,F736,'PdI-crono_inv'!CE:CE,H736,'PdI-crono_inv'!J:J,P736,'PdI-crono_inv'!P:P,\"<>proprietario\")","v":0},null,{"$f":"+SUMIFS('PdI-crono_inv'!BH:BH,'PdI-crono_inv'!CF:CF,F736,'PdI-crono_inv'!CE:CE,H736,'PdI-crono_inv'!J:J,P736,'PdI-crono_inv'!P:P,\"<>proprietario\")+S736","v":0},null,null,"ENV",{"$f":"+VLOOKUP(F736,TT_Tabelle_Riferimento!$D$127:$E$164,2,FALSE)","v":"Acquedotto"},"",0]
[0,0,"Gestore",0,"IP",11,{"$f":"+VLOOKUP(F737,TT_Tabelle_Riferimento!$D$127:$G$164,4,FALSE)","v":"Condotte fognarie"},2,{"$f":"+VLOOKUP(H737,TT_Tabelle_Riferimento!$F$3:$G$6,2,FALSE)","v":"Fognatura bianca e pulizia / manutenzione caditoie stradali"},2028,{"$f":"+SUMIFS('PdI-crono_inv'!BG:BG,'PdI-crono_inv'!CF:CF,F737,'PdI-crono_inv'!CE:CE,H737,'PdI-crono_inv'!J:J,P737,'PdI-crono_inv'!P:P,\"<>proprietario\")","v":0},null,{"$f":"+SUMIFS('PdI-crono_inv'!BH:BH,'PdI-crono_inv'!CF:CF,F737,'PdI-crono_inv'!CE:CE,H737,'PdI-crono_inv'!J:J,P737,'PdI-crono_inv'!P:P,\"<>proprietario\")+S737","v":0},null,null,"ENV",{"$f":"+VLOOKUP(F737,TT_Tabelle_Riferimento!$D$127:$E$164,2,FALSE)","v":"Fognatura"},"",0]
[0,0,"Gestore",0,"IP",12,{"$f":"+VLOOKUP(F738,TT_Tabelle_Riferimento!$D$127:$G$164,4,FALSE)","v":"Sifoni e scaricatori di piena e altre opere idrauliche fisse di fognatura"},2,{"$f":"+VLOOKUP(H738,TT_Tabelle_Riferimento!$F$3:$G$6,2,FALSE)","v":"Fognatura bianca e pulizia / manutenzione caditoie stradali"},2028,{"$f":"+SUMIFS('PdI-crono_inv'!BG:BG,'PdI-crono_inv'!CF:CF,F738,'PdI-crono_inv'!CE:CE,H738,'PdI-crono_inv'!J:J,P738,'PdI-crono_inv'!P:P,\"<>proprietario\")","v":0},null,{"$f":"+SUMIFS('PdI-crono_inv'!BH:BH,'PdI-crono_inv'!CF:CF,F738,'PdI-crono_inv'!CE:CE,H738,'PdI-crono_inv'!J:J,P738,'PdI-crono_inv'!P:P,\"<>proprietario\")+S738","v":0},null,null,"ENV",{"$f":"+VLOOKUP(F738,TT_Tabelle_Riferimento!$D$127:$E$164,2,FALSE)","v":"Fognatura"},"",0]
[0,0,"Gestore",0,"IP",13,{"$f":"+VLOOKUP(F739,TT_Tabelle_Riferimento!$D$127:$G$164,4,FALSE)","v":"Vasche di laminazione e vasche di prima pioggia"},2,{"$f":"+VLOOKUP(H739,TT_Tabelle_Riferimento!$F$3:$G$6,2,FALSE)","v":"Fognatura bianca e pulizia / manutenzione caditoie stradali"},2028,{"$f":"+SUMIFS('PdI-crono_inv'!BG:BG,'PdI-crono_inv'!CF:CF,F739,'PdI-crono_inv'!CE:CE,H739,'PdI-crono_inv'!J:J,P739,'PdI-crono_inv'!P:P,\"<>proprietario\")","v":0},null,{"$f":"+SUMIFS('PdI-crono_inv'!BH:BH,'PdI-crono_inv'!CF:CF,F739,'PdI-crono_inv'!CE:CE,H739,'PdI-crono_inv'!J:J,P739,'PdI-crono_inv'!P:P,\"<>proprietario\")+S739","v":0},null,null,"ENV",{"$f":"+VLOOKUP(F739,TT_Tabelle_Riferimento!$D$127:$E$164,2,FALSE)","v":"Fognatura"},"",0]
[0,0,"Gestore",0,"IP",14,{"$f":"+VLOOKUP(F740,TT_Tabelle_Riferimento!$D$127:$G$164,4,FALSE)","v":"Impianti di sollevamento e pompaggio di fognatura"},2,{"$f":"+VLOOKUP(H740,TT_Tabelle_Riferimento!$F$3:$G$6,2,FALSE)","v":"Fognatura bianca e pulizia / manutenzione caditoie stradali"},2028,{"$f":"+SUMIFS('PdI-crono_inv'!BG:BG,'PdI-crono_inv'!CF:CF,F740,'PdI-crono_inv'!CE:CE,H740,'PdI-crono_inv'!J:J,P740,'PdI-crono_inv'!P:P,\"<>proprietario\")","v":0},null,{"$f":"+SUMIFS('PdI-crono_inv'!BH:BH,'PdI-crono_inv'!CF:CF,F740,'PdI-crono_inv'!CE:CE,H740,'PdI-crono_inv'!J:J,P740,'PdI-crono_inv'!P:P,\"<>proprietario\")+S740","v":0},null,null,"ENV",{"$f":"+VLOOKUP(F740,TT_Tabelle_Riferimento!$D$127:$E$164,2,FALSE)","v":"Fognatura"},"",0]
[0,0,"Gestore",0,"IP",15,{"$f":"+VLOOKUP(F741,TT_Tabelle_Riferimento!$D$127:$G$164,4,FALSE)","v":"Gruppi di misura - altre attrezzature di fognatura"},2,{"$f":"+VLOOKUP(H741,TT_Tabelle_Riferimento!$F$3:$G$6,2,FALSE)","v":"Fognatura bianca e pulizia / manutenzione caditoie stradali"},2028,{"$f":"+SUMIFS('PdI-crono_inv'!BG:BG,'PdI-crono_inv'!CF:CF,F741,'PdI-crono_inv'!CE:CE,H741,'PdI-crono_inv'!J:J,P741,'PdI-crono_inv'!P:P,\"<>proprietario\")","v":0},null,{"$f":"+SUMIFS('PdI-crono_inv'!BH:BH,'PdI-crono_inv'!CF:CF,F741,'PdI-crono_inv'!CE:CE,H741,'PdI-crono_inv'!J:J,P741,'PdI-crono_inv'!P:P,\"<>proprietario\")+S741","v":0},null,null,"ENV",{"$f":"+VLOOKUP(F741,TT_Tabelle_Riferimento!$D$127:$E$164,2,FALSE)","v":"Fognatura"},"",0]
[0,0,"Gestore",0,"IP",16,{"$f":"+VLOOKUP(F742,TT_Tabelle_Riferimento!$D$127:$G$164,4,FALSE)","v":"Sistemi informativi di fognatura"},2,{"$f":"+VLOOKUP(H742,TT_Tabelle_Riferimento!$F$3:$G$6,2,FALSE)","v":"Fognatura bianca e pulizia / manutenzione caditoie stradali"},2028,{"$f":"+SUMIFS('PdI-crono_inv'!BG:BG,'PdI-crono_inv'!CF:CF,F742,'PdI-crono_inv'!CE:CE,H742,'PdI-crono_inv'!J:J,P742,'PdI-crono_inv'!P:P,\"<>proprietario\")","v":0},null,{"$f":"+SUMIFS('PdI-crono_inv'!BH:BH,'PdI-crono_inv'!CF:CF,F742,'PdI-crono_inv'!CE:CE,H742,'PdI-crono_inv'!J:J,P742,'PdI-crono_inv'!P:P,\"<>proprietario\")+S742","v":0},null,null,"ENV",{"$f":"+VLOOKUP(F742,TT_Tabelle_Riferimento!$D$127:$E$164,2,FALSE)","v":"Fognatura"},"",0]
[0,0,"Gestore",0,"IP",18,{"$f":"+VLOOKUP(F743,TT_Tabelle_Riferimento!$D$127:$G$164,4,FALSE)","v":"Telecontrollo e teletrasmissione di fognatura"},2,{"$f":"+VLOOKUP(H743,TT_Tabelle_Riferimento!$F$3:$G$6,2,FALSE)","v":"Fognatura bianca e pulizia / manutenzione caditoie stradali"},2028,{"$f":"+SUMIFS('PdI-crono_inv'!BG:BG,'PdI-crono_inv'!CF:CF,F743,'PdI-crono_inv'!CE:CE,H743,'PdI-crono_inv'!J:J,P743,'PdI-crono_inv'!P:P,\"<>proprietario\")","v":0},null,{"$f":"+SUMIFS('PdI-crono_inv'!BH:BH,'PdI-crono_inv'!CF:CF,F743,'PdI-crono_inv'!CE:CE,H743,'PdI-crono_inv'!J:J,P743,'PdI-crono_inv'!P:P,\"<>proprietario\")+S743","v":0},null,null,"ENV",{"$f":"+VLOOKUP(F743,TT_Tabelle_Riferimento!$D$127:$E$164,2,FALSE)","v":"Fognatura"},"",0]
[0,0,"Gestore",0,"IP",19,{"$f":"+VLOOKUP(F744,TT_Tabelle_Riferimento!$D$127:$G$164,4,FALSE)","v":"Impianti di sollevamento e pompaggio di depurazione"},2,{"$f":"+VLOOKUP(H744,TT_Tabelle_Riferimento!$F$3:$G$6,2,FALSE)","v":"Fognatura bianca e pulizia / manutenzione caditoie stradali"},2028,{"$f":"+SUMIFS('PdI-crono_inv'!BG:BG,'PdI-crono_inv'!CF:CF,F744,'PdI-crono_inv'!CE:CE,H744,'PdI-crono_inv'!J:J,P744,'PdI-crono_inv'!P:P,\"<>proprietario\")","v":0},null,{"$f":"+SUMIFS('PdI-crono_inv'!BH:BH,'PdI-crono_inv'!CF:CF,F744,'PdI-crono_inv'!CE:CE,H744,'PdI-crono_inv'!J:J,P744,'PdI-crono_inv'!P:P,\"<>proprietario\")+S744","v":0},null,null,"ENV",{"$f":"+VLOOKUP(F744,TT_Tabelle_Riferimento!$D$127:$E$164,2,FALSE)","v":"Depurazione"},"",0]
[0,0,"Gestore",0,"IP",20,{"$f":"+VLOOKUP(F745,TT_Tabelle_Riferimento!$D$127:$G$164,4,FALSE)","v":"Tecniche naturali di depurazione (tra cui fitodepurazione e lagunaggio)"},2,{"$f":"+VLOOKUP(H745,TT_Tabelle_Riferimento!$F$3:$G$6,2,FALSE)","v":"Fognatura bianca e pulizia / manutenzione caditoie stradali"},2028,{"$f":"+SUMIFS('PdI-crono_inv'!BG:BG,'PdI-crono_inv'!CF:CF,F745,'PdI-crono_inv'!CE:CE,H745,'PdI-crono_inv'!J:J,P745,'PdI-crono_inv'!P:P,\"<>proprietario\")","v":0},null,{"$f":"+SUMIFS('PdI-crono_inv'!BH:BH,'PdI-crono_inv'!CF:CF,F745,'PdI-crono_inv'!CE:CE,H745,'PdI-crono_inv'!J:J,P745,'PdI-crono_inv'!P:P,\"<>proprietario\")+S745","v":0},null,null,"ENV",{"$f":"+VLOOKUP(F745,TT_Tabelle_Riferimento!$D$127:$E$164,2,FALSE)","v":"Depurazione"},"",0]
[0,0,"Gestore",0,"IP",21,{"$f":"+VLOOKUP(F746,TT_Tabelle_Riferimento!$D$127:$G$164,4,FALSE)","v":"Impianti di depurazione – trattamenti sino al preliminare, integrativo, primario - fosse settiche e fosse Imhoff"},2,{"$f":"+VLOOKUP(H746,TT_Tabelle_Riferimento!$F$3:$G$6,2,FALSE)","v":"Fognatura bianca e pulizia / manutenzione caditoie stradali"},2028,{"$f":"+SUMIFS('PdI-crono_inv'!BG:BG,'PdI-crono_inv'!CF:CF,F746,'PdI-crono_inv'!CE:CE,H746,'PdI-crono_inv'!J:J,P746,'PdI-crono_inv'!P:P,\"<>proprietario\")","v":0},null,{"$f":"+SUMIFS('PdI-crono_inv'!BH:BH,'PdI-crono_inv'!CF:CF,F746,'PdI-crono_inv'!CE:CE,H746,'PdI-crono_inv'!J:J,P746,'PdI-crono_inv'!P:P,\"<>proprietario\")+S746","v":0},null,null,"ENV",{"$f":"+VLOOKUP(F746,TT_Tabelle_Riferimento!$D$127:$E$164,2,FALSE)","v":"Depurazione"},"",0]
[0,0,"Gestore",0,"IP",22,{"$f":"+VLOOKUP(F747,TT_Tabelle_Riferimento!$D$127:$G$164,4,FALSE)","v":"Impianti di depurazione – trattamenti sino al secondario"},2,{"$f":"+VLOOKUP(H747,TT_Tabelle_Riferimento!$F$3:$G$6,2,FALSE)","v":"Fognatura bianca e pulizia / manutenzione caditoie stradali"},2028,{"$f":"+SUMIFS('PdI-crono_inv'!BG:BG,'PdI-crono_inv'!CF:CF,F747,'PdI-crono_inv'!CE:CE,H747,'PdI-crono_inv'!J:J,P747,'PdI-crono_inv'!P:P,\"<>proprietario\")","v":0},null,{"$f":"+SUMIFS('PdI-crono_inv'!BH:BH,'PdI-crono_inv'!CF:CF,F747,'PdI-crono_inv'!CE:CE,H747,'PdI-crono_inv'!J:J,P747,'PdI-crono_inv'!P:P,\"<>proprietario\")+S747","v":0},null,null,"ENV",{"$f":"+VLOOKUP(F747,TT_Tabelle_Riferimento!$D$127:$E$164,2,FALSE)","v":"Depurazione"},"",0]
[0,0,"Gestore",0,"IP",23,{"$f":"+VLOOKUP(F748,TT_Tabelle_Riferimento!$D$127:$G$164,4,FALSE)","v":"Impianti di depurazione – trattamenti sino al terziario e terziario avanzato"},2,{"$f":"+VLOOKUP(H748,TT_Tabelle_Riferimento!$F$3:$G$6,2,FALSE)","v":"Fognatura bianca e pulizia / manutenzione caditoie stradali"},2028,{"$f":"+SUMIFS('PdI-crono_inv'!BG:BG,'PdI-crono_inv'!CF:CF,F748,'PdI-crono_inv'!CE:CE,H748,'PdI-crono_inv'!J:J,P748,'PdI-crono_inv'!P:P,\"<>proprietario\")","v":0},null,{"$f":"+SUMIFS('PdI-crono_inv'!BH:BH,'PdI-crono_inv'!CF:CF,F748,'PdI-crono_inv'!CE:CE,H748,'PdI-crono_inv'!J:J,P748,'PdI-crono_inv'!P:P,\"<>proprietario\")+S748","v":0},null,null,"ENV",{"$f":"+VLOOKUP(F748,TT_Tabelle_Riferimento!$D$127:$E$164,2,FALSE)","v":"Depurazione"},"",0]
[0,0,"Gestore",0,"IP",24,{"$f":"+VLOOKUP(F749,TT_Tabelle_Riferimento!$D$127:$G$164,4,FALSE)","v":"Impianti di essiccamento fanghi e di valorizzazione dei fanghi (tra cui mono-incenerimento, pirolisi, gassificazione)"},2,{"$f":"+VLOOKUP(H749,TT_Tabelle_Riferimento!$F$3:$G$6,2,FALSE)","v":"Fognatura bianca e pulizia / manutenzione caditoie stradali"},2028,{"$f":"+SUMIFS('PdI-crono_inv'!BG:BG,'PdI-crono_inv'!CF:CF,F749,'PdI-crono_inv'!CE:CE,H749,'PdI-crono_inv'!J:J,P749,'PdI-crono_inv'!P:P,\"<>proprietario\")","v":0},null,{"$f":"+SUMIFS('PdI-crono_inv'!BH:BH,'PdI-crono_inv'!CF:CF,F749,'PdI-crono_inv'!CE:CE,H749,'PdI-crono_inv'!J:J,P749,'PdI-crono_inv'!P:P,\"<>proprietario\")+S749","v":0},null,null,"ENV",{"$f":"+VLOOKUP(F749,TT_Tabelle_Riferimento!$D$127:$E$164,2,FALSE)","v":"Depurazione"},"",0]
[0,0,"Gestore",0,"IP",25,{"$f":"+VLOOKUP(F750,TT_Tabelle_Riferimento!$D$127:$G$164,4,FALSE)","v":"Gruppi di misura - altre attrezzature di depurazione"},2,{"$f":"+VLOOKUP(H750,TT_Tabelle_Riferimento!$F$3:$G$6,2,FALSE)","v":"Fognatura bianca e pulizia / manutenzione caditoie stradali"},2028,{"$f":"+SUMIFS('PdI-crono_inv'!BG:BG,'PdI-crono_inv'!CF:CF,F750,'PdI-crono_inv'!CE:CE,H750,'PdI-crono_inv'!J:J,P750,'PdI-crono_inv'!P:P,\"<>proprietario\")","v":0},null,{"$f":"+SUMIFS('PdI-crono_inv'!BH:BH,'PdI-crono_inv'!CF:CF,F750,'PdI-crono_inv'!CE:CE,H750,'PdI-crono_inv'!J:J,P750,'PdI-crono_inv'!P:P,\"<>proprietario\")+S750","v":0},null,null,"ENV",{"$f":"+VLOOKUP(F750,TT_Tabelle_Riferimento!$D$127:$E$164,2,FALSE)","v":"Depurazione"},"",0]
[0,0,"Gestore",0,"IP",26,{"$f":"+VLOOKUP(F751,TT_Tabelle_Riferimento!$D$127:$G$164,4,FALSE)","v":"Sistemi informativi di depurazione"},2,{"$f":"+VLOOKUP(H751,TT_Tabelle_Riferimento!$F$3:$G$6,2,FALSE)","v":"Fognatura bianca e pulizia / manutenzione caditoie stradali"},2028,{"$f":"+SUMIFS('PdI-crono_inv'!BG:BG,'PdI-crono_inv'!CF:CF,F751,'PdI-crono_inv'!CE:CE,H751,'PdI-crono_inv'!J:J,P751,'PdI-crono_inv'!P:P,\"<>proprietario\")","v":0},null,{"$f":"+SUMIFS('PdI-crono_inv'!BH:BH,'PdI-crono_inv'!CF:CF,F751,'PdI-crono_inv'!CE:CE,H751,'PdI-crono_inv'!J:J,P751,'PdI-crono_inv'!P:P,\"<>proprietario\")+S751","v":0},null,null,"ENV",{"$f":"+VLOOKUP(F751,TT_Tabelle_Riferimento!$D$127:$E$164,2,FALSE)","v":"Depurazione"},"",0]
[0,0,"Gestore",0,"IP",27,{"$f":"+VLOOKUP(F752,TT_Tabelle_Riferimento!$D$127:$G$164,4,FALSE)","v":"Telecontrollo e teletrasmissione di depurazione"},2,{"$f":"+VLOOKUP(H752,TT_Tabelle_Riferimento!$F$3:$G$6,2,FALSE)","v":"Fognatura bianca e pulizia / manutenzione caditoie stradali"},2028,{"$f":"+SUMIFS('PdI-crono_inv'!BG:BG,'PdI-crono_inv'!CF:CF,F752,'PdI-crono_inv'!CE:CE,H752,'PdI-crono_inv'!J:J,P752,'PdI-crono_inv'!P:P,\"<>proprietario\")","v":0},null,{"$f":"+SUMIFS('PdI-crono_inv'!BH:BH,'PdI-crono_inv'!CF:CF,F752,'PdI-crono_inv'!CE:CE,H752,'PdI-crono_inv'!J:J,P752,'PdI-crono_inv'!P:P,\"<>proprietario\")+S752","v":0},null,null,"ENV",{"$f":"+VLOOKUP(F752,TT_Tabelle_Riferimento!$D$127:$E$164,2,FALSE)","v":"Depurazione"},"",0]
[0,0,"Gestore",0,"IP",28,{"$f":"+VLOOKUP(F753,TT_Tabelle_Riferimento!$D$127:$G$164,4,FALSE)","v":"Altri impianti"},2,{"$f":"+VLOOKUP(H753,TT_Tabelle_Riferimento!$F$3:$G$6,2,FALSE)","v":"Fognatura bianca e pulizia / manutenzione caditoie stradali"},2028,{"$f":"+SUMIFS('PdI-crono_inv'!BG:BG,'PdI-crono_inv'!CF:CF,F753,'PdI-crono_inv'!CE:CE,H753,'PdI-crono_inv'!J:J,P753,'PdI-crono_inv'!P:P,\"<>proprietario\")","v":0},null,{"$f":"+SUMIFS('PdI-crono_inv'!BH:BH,'PdI-crono_inv'!CF:CF,F753,'PdI-crono_inv'!CE:CE,H753,'PdI-crono_inv'!J:J,P753,'PdI-crono_inv'!P:P,\"<>proprietario\")+S753","v":0},null,null,"ENV",{"$f":"+VLOOKUP(F753,TT_Tabelle_Riferimento!$D$127:$E$164,2,FALSE)","v":"Comune"},"",0]
[0,0,"Gestore",0,"IP",29,{"$f":"+VLOOKUP(F754,TT_Tabelle_Riferimento!$D$127:$G$164,4,FALSE)","v":"Laboratori e attrezzature"},2,{"$f":"+VLOOKUP(H754,TT_Tabelle_Riferimento!$F$3:$G$6,2,FALSE)","v":"Fognatura bianca e pulizia / manutenzione caditoie stradali"},2028,{"$f":"+SUMIFS('PdI-crono_inv'!BG:BG,'PdI-crono_inv'!CF:CF,F754,'PdI-crono_inv'!CE:CE,H754,'PdI-crono_inv'!J:J,P754,'PdI-crono_inv'!P:P,\"<>proprietario\")","v":0},null,{"$f":"+SUMIFS('PdI-crono_inv'!BH:BH,'PdI-crono_inv'!CF:CF,F754,'PdI-crono_inv'!CE:CE,H754,'PdI-crono_inv'!J:J,P754,'PdI-crono_inv'!P:P,\"<>proprietario\")+S754","v":0},null,null,"ENV",{"$f":"+VLOOKUP(F754,TT_Tabelle_Riferimento!$D$127:$E$164,2,FALSE)","v":"Comune"},"",0]
[0,0,"Gestore",0,"IP",30,{"$f":"+VLOOKUP(F755,TT_Tabelle_Riferimento!$D$127:$G$164,4,FALSE)","v":"Sistemi informativi"},2,{"$f":"+VLOOKUP(H755,TT_Tabelle_Riferimento!$F$3:$G$6,2,FALSE)","v":"Fognatura bianca e pulizia / manutenzione caditoie stradali"},2028,{"$f":"+SUMIFS('PdI-crono_inv'!BG:BG,'PdI-crono_inv'!CF:CF,F755,'PdI-crono_inv'!CE:CE,H755,'PdI-crono_inv'!J:J,P755,'PdI-crono_inv'!P:P,\"<>proprietario\")","v":0},null,{"$f":"+SUMIFS('PdI-crono_inv'!BH:BH,'PdI-crono_inv'!CF:CF,F755,'PdI-crono_inv'!CE:CE,H755,'PdI-crono_inv'!J:J,P755,'PdI-crono_inv'!P:P,\"<>proprietario\")+S755","v":0},null,null,"ENV",{"$f":"+VLOOKUP(F755,TT_Tabelle_Riferimento!$D$127:$E$164,2,FALSE)","v":"Comune"},"",0]
[0,0,"Gestore",0,"IP",31,{"$f":"+VLOOKUP(F756,TT_Tabelle_Riferimento!$D$127:$G$164,4,FALSE)","v":"Telecontrollo e teletrasmissione"},2,{"$f":"+VLOOKUP(H756,TT_Tabelle_Riferimento!$F$3:$G$6,2,FALSE)","v":"Fognatura bianca e pulizia / manutenzione caditoie stradali"},2028,{"$f":"+SUMIFS('PdI-crono_inv'!BG:BG,'PdI-crono_inv'!CF:CF,F756,'PdI-crono_inv'!CE:CE,H756,'PdI-crono_inv'!J:J,P756,'PdI-crono_inv'!P:P,\"<>proprietario\")","v":0},null,{"$f":"+SUMIFS('PdI-crono_inv'!BH:BH,'PdI-crono_inv'!CF:CF,F756,'PdI-crono_inv'!CE:CE,H756,'PdI-crono_inv'!J:J,P756,'PdI-crono_inv'!P:P,\"<>proprietario\")+S756","v":0},null,null,"ENV",{"$f":"+VLOOKUP(F756,TT_Tabelle_Riferimento!$D$127:$E$164,2,FALSE)","v":"Comune"},"",0]
[0,0,"Gestore",0,"IP",32,{"$f":"+VLOOKUP(F757,TT_Tabelle_Riferimento!$D$127:$G$164,4,FALSE)","v":"Autoveicoli - automezzi"},2,{"$f":"+VLOOKUP(H757,TT_Tabelle_Riferimento!$F$3:$G$6,2,FALSE)","v":"Fognatura bianca e pulizia / manutenzione caditoie stradali"},2028,{"$f":"+SUMIFS('PdI-crono_inv'!BG:BG,'PdI-crono_inv'!CF:CF,F757,'PdI-crono_inv'!CE:CE,H757,'PdI-crono_inv'!J:J,P757,'PdI-crono_inv'!P:P,\"<>proprietario\")","v":0},null,{"$f":"+SUMIFS('PdI-crono_inv'!BH:BH,'PdI-crono_inv'!CF:CF,F757,'PdI-crono_inv'!CE:CE,H757,'PdI-crono_inv'!J:J,P757,'PdI-crono_inv'!P:P,\"<>proprietario\")+S757","v":0},null,null,"ENV",{"$f":"+VLOOKUP(F757,TT_Tabelle_Riferimento!$D$127:$E$164,2,FALSE)","v":"Comune"},"",0]
[0,0,"Gestore",0,"IP",1,{"$f":"+VLOOKUP(F758,TT_Tabelle_Riferimento!$D$127:$G$164,4,FALSE)","v":"Terreni"},2,{"$f":"+VLOOKUP(H758,TT_Tabelle_Riferimento!$F$3:$G$6,2,FALSE)","v":"Fognatura bianca e pulizia / manutenzione caditoie stradali"},2028,{"$f":"+SUMIFS('PdI-crono_inv'!BG:BG,'PdI-crono_inv'!CF:CF,F758,'PdI-crono_inv'!CE:CE,H758,'PdI-crono_inv'!J:J,P758,'PdI-crono_inv'!P:P,\"<>proprietario\")","v":0},null,{"$f":"+SUMIFS('PdI-crono_inv'!BH:BH,'PdI-crono_inv'!CF:CF,F758,'PdI-crono_inv'!CE:CE,H758,'PdI-crono_inv'!J:J,P758,'PdI-crono_inv'!P:P,\"<>proprietario\")+S758","v":0},null,null,"ENV",{"$f":"+VLOOKUP(F758,TT_Tabelle_Riferimento!$D$127:$E$164,2,FALSE)","v":"Comune"},"",0]
[0,0,"Gestore",0,"IP",33,{"$f":"+VLOOKUP(F759,TT_Tabelle_Riferimento!$D$127:$G$164,4,FALSE)","v":"Fabbricati non industriali"},2,{"$f":"+VLOOKUP(H759,TT_Tabelle_Riferimento!$F$3:$G$6,2,FALSE)","v":"Fognatura bianca e pulizia / manutenzione caditoie stradali"},2028,{"$f":"+SUMIFS('PdI-crono_inv'!BG:BG,'PdI-crono_inv'!CF:CF,F759,'PdI-crono_inv'!CE:CE,H759,'PdI-crono_inv'!J:J,P759,'PdI-crono_inv'!P:P,\"<>proprietario\")","v":0},null,{"$f":"+SUMIFS('PdI-crono_inv'!BH:BH,'PdI-crono_inv'!CF:CF,F759,'PdI-crono_inv'!CE:CE,H759,'PdI-crono_inv'!J:J,P759,'PdI-crono_inv'!P:P,\"<>proprietario\")+S759","v":0},null,null,"ENV",{"$f":"+VLOOKUP(F759,TT_Tabelle_Riferimento!$D$127:$E$164,2,FALSE)","v":"Comune"},"",0]
[0,0,"Gestore",0,"IP",34,{"$f":"+VLOOKUP(F760,TT_Tabelle_Riferimento!$D$127:$G$164,4,FALSE)","v":"Fabbricati industriali"},2,{"$f":"+VLOOKUP(H760,TT_Tabelle_Riferimento!$F$3:$G$6,2,FALSE)","v":"Fognatura bianca e pulizia / manutenzione caditoie stradali"},2028,{"$f":"+SUMIFS('PdI-crono_inv'!BG:BG,'PdI-crono_inv'!CF:CF,F760,'PdI-crono_inv'!CE:CE,H760,'PdI-crono_inv'!J:J,P760,'PdI-crono_inv'!P:P,\"<>proprietario\")","v":0},null,{"$f":"+SUMIFS('PdI-crono_inv'!BH:BH,'PdI-crono_inv'!CF:CF,F760,'PdI-crono_inv'!CE:CE,H760,'PdI-crono_inv'!J:J,P760,'PdI-crono_inv'!P:P,\"<>proprietario\")+S760","v":0},null,null,"ENV",{"$f":"+VLOOKUP(F760,TT_Tabelle_Riferimento!$D$127:$E$164,2,FALSE)","v":"Comune"},"",0]
[0,0,"Gestore",0,"IP",35,{"$f":"+VLOOKUP(F761,TT_Tabelle_Riferimento!$D$127:$G$164,4,FALSE)","v":"Costruzioni leggere"},2,{"$f":"+VLOOKUP(H761,TT_Tabelle_Riferimento!$F$3:$G$6,2,FALSE)","v":"Fognatura bianca e pulizia / manutenzione caditoie stradali"},2028,{"$f":"+SUMIFS('PdI-crono_inv'!BG:BG,'PdI-crono_inv'!CF:CF,F761,'PdI-crono_inv'!CE:CE,H761,'PdI-crono_inv'!J:J,P761,'PdI-crono_inv'!P:P,\"<>proprietario\")","v":0},null,{"$f":"+SUMIFS('PdI-crono_inv'!BH:BH,'PdI-crono_inv'!CF:CF,F761,'PdI-crono_inv'!CE:CE,H761,'PdI-crono_inv'!J:J,P761,'PdI-crono_inv'!P:P,\"<>proprietario\")+S761","v":0},null,null,"ENV",{"$f":"+VLOOKUP(F761,TT_Tabelle_Riferimento!$D$127:$E$164,2,FALSE)","v":"Comune"},"",0]
[0,0,"Gestore",0,"IP",36,{"$f":"+VLOOKUP(F762,TT_Tabelle_Riferimento!$D$127:$G$164,4,FALSE)","v":"Studi, ricerche, brevetti, diritti di utilizzazione"},2,{"$f":"+VLOOKUP(H762,TT_Tabelle_Riferimento!$F$3:$G$6,2,FALSE)","v":"Fognatura bianca e pulizia / manutenzione caditoie stradali"},2028,{"$f":"+SUMIFS('PdI-crono_inv'!BG:BG,'PdI-crono_inv'!CF:CF,F762,'PdI-crono_inv'!CE:CE,H762,'PdI-crono_inv'!J:J,P762,'PdI-crono_inv'!P:P,\"<>proprietario\")","v":0},null,{"$f":"+SUMIFS('PdI-crono_inv'!BH:BH,'PdI-crono_inv'!CF:CF,F762,'PdI-crono_inv'!CE:CE,H762,'PdI-crono_inv'!J:J,P762,'PdI-crono_inv'!P:P,\"<>proprietario\")+S762","v":0},null,null,"ENV",{"$f":"+VLOOKUP(F762,TT_Tabelle_Riferimento!$D$127:$E$164,2,FALSE)","v":"Comune"},"",0]
[0,0,"Gestore",0,"IP",37,{"$f":"+VLOOKUP(F763,TT_Tabelle_Riferimento!$D$127:$G$164,4,FALSE)","v":"Altre immobilizzazioni materiali e immateriali"},2,{"$f":"+VLOOKUP(H763,TT_Tabelle_Riferimento!$F$3:$G$6,2,FALSE)","v":"Fognatura bianca e pulizia / manutenzione caditoie stradali"},2028,{"$f":"+SUMIFS('PdI-crono_inv'!BG:BG,'PdI-crono_inv'!CF:CF,F763,'PdI-crono_inv'!CE:CE,H763,'PdI-crono_inv'!J:J,P763,'PdI-crono_inv'!P:P,\"<>proprietario\")","v":0},null,{"$f":"+SUMIFS('PdI-crono_inv'!BH:BH,'PdI-crono_inv'!CF:CF,F763,'PdI-crono_inv'!CE:CE,H763,'PdI-crono_inv'!J:J,P763,'PdI-crono_inv'!P:P,\"<>proprietario\")+S763","v":0},null,null,"ENV",{"$f":"+VLOOKUP(F763,TT_Tabelle_Riferimento!$D$127:$E$164,2,FALSE)","v":"Comune"},"",0]
[0,0,"Gestore",0,"IP",38,{"$f":"+VLOOKUP(F764,TT_Tabelle_Riferimento!$D$127:$G$164,4,FALSE)","v":"Grandi dighe (sbarramenti che superano i quindici metri di altezza o che determinano un invaso superiore a 1 milione di metri cubi)"},2,{"$f":"+VLOOKUP(H764,TT_Tabelle_Riferimento!$F$3:$G$6,2,FALSE)","v":"Fognatura bianca e pulizia / manutenzione caditoie stradali"},2028,{"$f":"+SUMIFS('PdI-crono_inv'!BG:BG,'PdI-crono_inv'!CF:CF,F764,'PdI-crono_inv'!CE:CE,H764,'PdI-crono_inv'!J:J,P764,'PdI-crono_inv'!P:P,\"<>proprietario\")","v":0},null,{"$f":"+SUMIFS('PdI-crono_inv'!BH:BH,'PdI-crono_inv'!CF:CF,F764,'PdI-crono_inv'!CE:CE,H764,'PdI-crono_inv'!J:J,P764,'PdI-crono_inv'!P:P,\"<>proprietario\")+S764","v":0},null,null,"ENV",{"$f":"+VLOOKUP(F764,TT_Tabelle_Riferimento!$D$127:$E$164,2,FALSE)","v":"Acquedotto"},"",0]
[0,0,"Gestore",0,"IP",39,{"$f":"+VLOOKUP(F765,TT_Tabelle_Riferimento!$D$127:$G$164,4,FALSE)","v":"Piccole dighe (sbarramenti che non superano i quindici metri di altezza o che determinano un invaso non superiore a 1 milione di metri cubi)"},2,{"$f":"+VLOOKUP(H765,TT_Tabelle_Riferimento!$F$3:$G$6,2,FALSE)","v":"Fognatura bianca e pulizia / manutenzione caditoie stradali"},2028,{"$f":"+SUMIFS('PdI-crono_inv'!BG:BG,'PdI-crono_inv'!CF:CF,F765,'PdI-crono_inv'!CE:CE,H765,'PdI-crono_inv'!J:J,P765,'PdI-crono_inv'!P:P,\"<>proprietario\")","v":0},null,{"$f":"+SUMIFS('PdI-crono_inv'!BH:BH,'PdI-crono_inv'!CF:CF,F765,'PdI-crono_inv'!CE:CE,H765,'PdI-crono_inv'!J:J,P765,'PdI-crono_inv'!P:P,\"<>proprietario\")+S765","v":0},null,null,"ENV",{"$f":"+VLOOKUP(F765,TT_Tabelle_Riferimento!$D$127:$E$164,2,FALSE)","v":"Acquedotto"},"",0]
[{"$f":"+idato","v":0},{"$f":"+idgestore","v":0},"Gestore",0,"IP",2,{"$f":"+VLOOKUP(F766,TT_Tabelle_Riferimento!$D$127:$G$164,4,FALSE)","v":"Condotte di acquedotto"},3,{"$f":"+VLOOKUP(H766,TT_Tabelle_Riferimento!$F$3:$G$6,2,FALSE)","v":"Altri servizi idrici"},2028,{"$f":"+SUMIFS('PdI-crono_inv'!BG:BG,'PdI-crono_inv'!CF:CF,F766,'PdI-crono_inv'!CE:CE,H766,'PdI-crono_inv'!J:J,P766,'PdI-crono_inv'!P:P,\"<>proprietario\")","v":0},null,{"$f":"+SUMIFS('PdI-crono_inv'!BH:BH,'PdI-crono_inv'!CF:CF,F766,'PdI-crono_inv'!CE:CE,H766,'PdI-crono_inv'!J:J,P766,'PdI-crono_inv'!P:P,\"<>proprietario\")+S766","v":0},null,null,"ENV",{"$f":"+VLOOKUP(F766,TT_Tabelle_Riferimento!$D$127:$E$164,2,FALSE)","v":"Acquedotto"},"",0]
[0,0,"Gestore",0,"IP",3,{"$f":"+VLOOKUP(F767,TT_Tabelle_Riferimento!$D$127:$G$164,4,FALSE)","v":"Opere idrauliche fisse di acquedotto"},3,{"$f":"+VLOOKUP(H767,TT_Tabelle_Riferimento!$F$3:$G$6,2,FALSE)","v":"Altri servizi idrici"},2028,{"$f":"+SUMIFS('PdI-crono_inv'!BG:BG,'PdI-crono_inv'!CF:CF,F767,'PdI-crono_inv'!CE:CE,H767,'PdI-crono_inv'!J:J,P767,'PdI-crono_inv'!P:P,\"<>proprietario\")","v":0},null,{"$f":"+SUMIFS('PdI-crono_inv'!BH:BH,'PdI-crono_inv'!CF:CF,F767,'PdI-crono_inv'!CE:CE,H767,'PdI-crono_inv'!J:J,P767,'PdI-crono_inv'!P:P,\"<>proprietario\")+S767","v":0},null,null,"ENV",{"$f":"+VLOOKUP(F767,TT_Tabelle_Riferimento!$D$127:$E$164,2,FALSE)","v":"Acquedotto"},"",0]
[0,0,"Gestore",0,"IP",4,{"$f":"+VLOOKUP(F768,TT_Tabelle_Riferimento!$D$127:$G$164,4,FALSE)","v":"Serbatoi"},3,{"$f":"+VLOOKUP(H768,TT_Tabelle_Riferimento!$F$3:$G$6,2,FALSE)","v":"Altri servizi idrici"},2028,{"$f":"+SUMIFS('PdI-crono_inv'!BG:BG,'PdI-crono_inv'!CF:CF,F768,'PdI-crono_inv'!CE:CE,H768,'PdI-crono_inv'!J:J,P768,'PdI-crono_inv'!P:P,\"<>proprietario\")","v":0},null,{"$f":"+SUMIFS('PdI-crono_inv'!BH:BH,'PdI-crono_inv'!CF:CF,F768,'PdI-crono_inv'!CE:CE,H768,'PdI-crono_inv'!J:J,P768,'PdI-crono_inv'!P:P,\"<>proprietario\")+S768","v":0},null,null,"ENV",{"$f":"+VLOOKUP(F768,TT_Tabelle_Riferimento!$D$127:$E$164,2,FALSE)","v":"Acquedotto"},"",0]
[0,0,"Gestore",0,"IP",5,{"$f":"+VLOOKUP(F769,TT_Tabelle_Riferimento!$D$127:$G$164,4,FALSE)","v":"Impianti di sollevamento e pompaggio di acquedotto"},3,{"$f":"+VLOOKUP(H769,TT_Tabelle_Riferimento!$F$3:$G$6,2,FALSE)","v":"Altri servizi idrici"},2028,{"$f":"+SUMIFS('PdI-crono_inv'!BG:BG,'PdI-crono_inv'!CF:CF,F769,'PdI-crono_inv'!CE:CE,H769,'PdI-crono_inv'!J:J,P769,'PdI-crono_inv'!P:P,\"<>proprietario\")","v":0},null,{"$f":"+SUMIFS('PdI-crono_inv'!BH:BH,'PdI-crono_inv'!CF:CF,F769,'PdI-crono_inv'!CE:CE,H769,'PdI-crono_inv'!J:J,P769,'PdI-crono_inv'!P:P,\"<>proprietario\")+S769","v":0},null,null,"ENV",{"$f":"+VLOOKUP(F769,TT_Tabelle_Riferimento!$D$127:$E$164,2,FALSE)","v":"Acquedotto"},"",0]
[0,0,"Gestore",0,"IP",6,{"$f":"+VLOOKUP(F770,TT_Tabelle_Riferimento!$D$127:$G$164,4,FALSE)","v":"Impianti di potabilizzazione"},3,{"$f":"+VLOOKUP(H770,TT_Tabelle_Riferimento!$F$3:$G$6,2,FALSE)","v":"Altri servizi idrici"},2028,{"$f":"+SUMIFS('PdI-crono_inv'!BG:BG,'PdI-crono_inv'!CF:CF,F770,'PdI-crono_inv'!CE:CE,H770,'PdI-crono_inv'!J:J,P770,'PdI-crono_inv'!P:P,\"<>proprietario\")","v":0},null,{"$f":"+SUMIFS('PdI-crono_inv'!BH:BH,'PdI-crono_inv'!CF:CF,F770,'PdI-crono_inv'!CE:CE,H770,'PdI-crono_inv'!J:J,P770,'PdI-crono_inv'!P:P,\"<>proprietario\")+S770","v":0},null,null,"ENV",{"$f":"+VLOOKUP(F770,TT_Tabelle_Riferimento!$D$127:$E$164,2,FALSE)","v":"Acquedotto"},"",0]
[0,0,"Gestore",0,"IP",7,{"$f":"+VLOOKUP(F771,TT_Tabelle_Riferimento!$D$127:$G$164,4,FALSE)","v":"Altri trattamenti di potabilizzazione (tra cui dispositivi di disinfezione, stacciatura, filtrazione, addolcimento)"},3,{"$f":"+VLOOKUP(H771,TT_Tabelle_Riferimento!$F$3:$G$6,2,FALSE)","v":"Altri servizi idrici"},2028,{"$f":"+SUMIFS('PdI-crono_inv'!BG:BG,'PdI-crono_inv'!CF:CF,F771,'PdI-crono_inv'!CE:CE,H771,'PdI-crono_inv'!J:J,P771,'PdI-crono_inv'!P:P,\"<>proprietario\")","v":0},null,{"$f":"+SUMIFS('PdI-crono_inv'!BH:BH,'PdI-crono_inv'!CF:CF,F771,'PdI-crono_inv'!CE:CE,H771,'PdI-crono_inv'!J:J,P771,'PdI-crono_inv'!P:P,\"<>proprietario\")+S771","v":0},null,null,"ENV",{"$f":"+VLOOKUP(F771,TT_Tabelle_Riferimento!$D$127:$E$164,2,FALSE)","v":"Acquedotto"},"",0]
[0,0,"Gestore",0,"IP",8,{"$f":"+VLOOKUP(F772,TT_Tabelle_Riferimento!$D$127:$G$164,4,FALSE)","v":"Gruppi di misura - altre attrezzature di acquedotto"},3,{"$f":"+VLOOKUP(H772,TT_Tabelle_Riferimento!$F$3:$G$6,2,FALSE)","v":"Altri servizi idrici"},2028,{"$f":"+SUMIFS('PdI-crono_inv'!BG:BG,'PdI-crono_inv'!CF:CF,F772,'PdI-crono_inv'!CE:CE,H772,'PdI-crono_inv'!J:J,P772,'PdI-crono_inv'!P:P,\"<>proprietario\")","v":0},null,{"$f":"+SUMIFS('PdI-crono_inv'!BH:BH,'PdI-crono_inv'!CF:CF,F772,'PdI-crono_inv'!CE:CE,H772,'PdI-crono_inv'!J:J,P772,'PdI-crono_inv'!P:P,\"<>proprietario\")+S772","v":0},null,null,"ENV",{"$f":"+VLOOKUP(F772,TT_Tabelle_Riferimento!$D$127:$E$164,2,FALSE)","v":"Acquedotto"},"",0]
[0,0,"Gestore",0,"IP",9,{"$f":"+VLOOKUP(F773,TT_Tabelle_Riferimento!$D$127:$G$164,4,FALSE)","v":"Sistemi informativi di acquedotto"},3,{"$f":"+VLOOKUP(H773,TT_Tabelle_Riferimento!$F$3:$G$6,2,FALSE)","v":"Altri servizi idrici"},2028,{"$f":"+SUMIFS('PdI-crono_inv'!BG:BG,'PdI-crono_inv'!CF:CF,F773,'PdI-crono_inv'!CE:CE,H773,'PdI-crono_inv'!J:J,P773,'PdI-crono_inv'!P:P,\"<>proprietario\")","v":0},null,{"$f":"+SUMIFS('PdI-crono_inv'!BH:BH,'PdI-crono_inv'!CF:CF,F773,'PdI-crono_inv'!CE:CE,H773,'PdI-crono_inv'!J:J,P773,'PdI-crono_inv'!P:P,\"<>proprietario\")+S773","v":0},null,null,"ENV",{"$f":"+VLOOKUP(F773,TT_Tabelle_Riferimento!$D$127:$E$164,2,FALSE)","v":"Acquedotto"},"",0]
[0,0,"Gestore",0,"IP",10,{"$f":"+VLOOKUP(F774,TT_Tabelle_Riferimento!$D$127:$G$164,4,FALSE)","v":"Telecontrollo e teletrasmissione di acquedotto"},3,{"$f":"+VLOOKUP(H774,TT_Tabelle_Riferimento!$F$3:$G$6,2,FALSE)","v":"Altri servizi idrici"},2028,{"$f":"+SUMIFS('PdI-crono_inv'!BG:BG,'PdI-crono_inv'!CF:CF,F774,'PdI-crono_inv'!CE:CE,H774,'PdI-crono_inv'!J:J,P774,'PdI-crono_inv'!P:P,\"<>proprietario\")","v":0},null,{"$f":"+SUMIFS('PdI-crono_inv'!BH:BH,'PdI-crono_inv'!CF:CF,F774,'PdI-crono_inv'!CE:CE,H774,'PdI-crono_inv'!J:J,P774,'PdI-crono_inv'!P:P,\"<>proprietario\")+S774","v":0},null,null,"ENV",{"$f":"+VLOOKUP(F774,TT_Tabelle_Riferimento!$D$127:$E$164,2,FALSE)","v":"Acquedotto"},"",0]
[0,0,"Gestore",0,"IP",11,{"$f":"+VLOOKUP(F775,TT_Tabelle_Riferimento!$D$127:$G$164,4,FALSE)","v":"Condotte fognarie"},3,{"$f":"+VLOOKUP(H775,TT_Tabelle_Riferimento!$F$3:$G$6,2,FALSE)","v":"Altri servizi idrici"},2028,{"$f":"+SUMIFS('PdI-crono_inv'!BG:BG,'PdI-crono_inv'!CF:CF,F775,'PdI-crono_inv'!CE:CE,H775,'PdI-crono_inv'!J:J,P775,'PdI-crono_inv'!P:P,\"<>proprietario\")","v":0},null,{"$f":"+SUMIFS('PdI-crono_inv'!BH:BH,'PdI-crono_inv'!CF:CF,F775,'PdI-crono_inv'!CE:CE,H775,'PdI-crono_inv'!J:J,P775,'PdI-crono_inv'!P:P,\"<>proprietario\")+S775","v":0},null,null,"ENV",{"$f":"+VLOOKUP(F775,TT_Tabelle_Riferimento!$D$127:$E$164,2,FALSE)","v":"Fognatura"},"",{"$f":"+IFERROR(HLOOKUP(J775,$X$2:$Y$5,4,FALSE)*K775,0)","v":0}]
[0,0,"Gestore",0,"IP",12,{"$f":"+VLOOKUP(F776,TT_Tabelle_Riferimento!$D$127:$G$164,4,FALSE)","v":"Sifoni e scaricatori di piena e altre opere idrauliche fisse di fognatura"},3,{"$f":"+VLOOKUP(H776,TT_Tabelle_Riferimento!$F$3:$G$6,2,FALSE)","v":"Altri servizi idrici"},2028,{"$f":"+SUMIFS('PdI-crono_inv'!BG:BG,'PdI-crono_inv'!CF:CF,F776,'PdI-crono_inv'!CE:CE,H776,'PdI-crono_inv'!J:J,P776,'PdI-crono_inv'!P:P,\"<>proprietario\")","v":0},null,{"$f":"+SUMIFS('PdI-crono_inv'!BH:BH,'PdI-crono_inv'!CF:CF,F776,'PdI-crono_inv'!CE:CE,H776,'PdI-crono_inv'!J:J,P776,'PdI-crono_inv'!P:P,\"<>proprietario\")+S776","v":0},null,null,"ENV",{"$f":"+VLOOKUP(F776,TT_Tabelle_Riferimento!$D$127:$E$164,2,FALSE)","v":"Fognatura"},"",0]
[0,0,"Gestore",0,"IP",13,{"$f":"+VLOOKUP(F777,TT_Tabelle_Riferimento!$D$127:$G$164,4,FALSE)","v":"Vasche di laminazione e vasche di prima pioggia"},3,{"$f":"+VLOOKUP(H777,TT_Tabelle_Riferimento!$F$3:$G$6,2,FALSE)","v":"Altri servizi idrici"},2028,{"$f":"+SUMIFS('PdI-crono_inv'!BG:BG,'PdI-crono_inv'!CF:CF,F777,'PdI-crono_inv'!CE:CE,H777,'PdI-crono_inv'!J:J,P777,'PdI-crono_inv'!P:P,\"<>proprietario\")","v":0},null,{"$f":"+SUMIFS('PdI-crono_inv'!BH:BH,'PdI-crono_inv'!CF:CF,F777,'PdI-crono_inv'!CE:CE,H777,'PdI-crono_inv'!J:J,P777,'PdI-crono_inv'!P:P,\"<>proprietario\")+S777","v":0},null,null,"ENV",{"$f":"+VLOOKUP(F777,TT_Tabelle_Riferimento!$D$127:$E$164,2,FALSE)","v":"Fognatura"},"",0]
[0,0,"Gestore",0,"IP",14,{"$f":"+VLOOKUP(F778,TT_Tabelle_Riferimento!$D$127:$G$164,4,FALSE)","v":"Impianti di sollevamento e pompaggio di fognatura"},3,{"$f":"+VLOOKUP(H778,TT_Tabelle_Riferimento!$F$3:$G$6,2,FALSE)","v":"Altri servizi idrici"},2028,{"$f":"+SUMIFS('PdI-crono_inv'!BG:BG,'PdI-crono_inv'!CF:CF,F778,'PdI-crono_inv'!CE:CE,H778,'PdI-crono_inv'!J:J,P778,'PdI-crono_inv'!P:P,\"<>proprietario\")","v":0},null,{"$f":"+SUMIFS('PdI-crono_inv'!BH:BH,'PdI-crono_inv'!CF:CF,F778,'PdI-crono_inv'!CE:CE,H778,'PdI-crono_inv'!J:J,P778,'PdI-crono_inv'!P:P,\"<>proprietario\")+S778","v":0},null,null,"ENV",{"$f":"+VLOOKUP(F778,TT_Tabelle_Riferimento!$D$127:$E$164,2,FALSE)","v":"Fognatura"},"",0]
[0,0,"Gestore",0,"IP",15,{"$f":"+VLOOKUP(F779,TT_Tabelle_Riferimento!$D$127:$G$164,4,FALSE)","v":"Gruppi di misura - altre attrezzature di fognatura"},3,{"$f":"+VLOOKUP(H779,TT_Tabelle_Riferimento!$F$3:$G$6,2,FALSE)","v":"Altri servizi idrici"},2028,{"$f":"+SUMIFS('PdI-crono_inv'!BG:BG,'PdI-crono_inv'!CF:CF,F779,'PdI-crono_inv'!CE:CE,H779,'PdI-crono_inv'!J:J,P779,'PdI-crono_inv'!P:P,\"<>proprietario\")","v":0},null,{"$f":"+SUMIFS('PdI-crono_inv'!BH:BH,'PdI-crono_inv'!CF:CF,F779,'PdI-crono_inv'!CE:CE,H779,'PdI-crono_inv'!J:J,P779,'PdI-crono_inv'!P:P,\"<>proprietario\")+S779","v":0},null,null,"ENV",{"$f":"+VLOOKUP(F779,TT_Tabelle_Riferimento!$D$127:$E$164,2,FALSE)","v":"Fognatura"},"",0]
[0,0,"Gestore",0,"IP",16,{"$f":"+VLOOKUP(F780,TT_Tabelle_Riferimento!$D$127:$G$164,4,FALSE)","v":"Sistemi informativi di fognatura"},3,{"$f":"+VLOOKUP(H780,TT_Tabelle_Riferimento!$F$3:$G$6,2,FALSE)","v":"Altri servizi idrici"},2028,{"$f":"+SUMIFS('PdI-crono_inv'!BG:BG,'PdI-crono_inv'!CF:CF,F780,'PdI-crono_inv'!CE:CE,H780,'PdI-crono_inv'!J:J,P780,'PdI-crono_inv'!P:P,\"<>proprietario\")","v":0},null,{"$f":"+SUMIFS('PdI-crono_inv'!BH:BH,'PdI-crono_inv'!CF:CF,F780,'PdI-crono_inv'!CE:CE,H780,'PdI-crono_inv'!J:J,P780,'PdI-crono_inv'!P:P,\"<>proprietario\")+S780","v":0},null,null,"ENV",{"$f":"+VLOOKUP(F780,TT_Tabelle_Riferimento!$D$127:$E$164,2,FALSE)","v":"Fognatura"},"",0]
[0,0,"Gestore",0,"IP",18,{"$f":"+VLOOKUP(F781,TT_Tabelle_Riferimento!$D$127:$G$164,4,FALSE)","v":"Telecontrollo e teletrasmissione di fognatura"},3,{"$f":"+VLOOKUP(H781,TT_Tabelle_Riferimento!$F$3:$G$6,2,FALSE)","v":"Altri servizi idrici"},2028,{"$f":"+SUMIFS('PdI-crono_inv'!BG:BG,'PdI-crono_inv'!CF:CF,F781,'PdI-crono_inv'!CE:CE,H781,'PdI-crono_inv'!J:J,P781,'PdI-crono_inv'!P:P,\"<>proprietario\")","v":0},null,{"$f":"+SUMIFS('PdI-crono_inv'!BH:BH,'PdI-crono_inv'!CF:CF,F781,'PdI-crono_inv'!CE:CE,H781,'PdI-crono_inv'!J:J,P781,'PdI-crono_inv'!P:P,\"<>proprietario\")+S781","v":0},null,null,"ENV",{"$f":"+VLOOKUP(F781,TT_Tabelle_Riferimento!$D$127:$E$164,2,FALSE)","v":"Fognatura"},"",0]
[0,0,"Gestore",0,"IP",19,{"$f":"+VLOOKUP(F782,TT_Tabelle_Riferimento!$D$127:$G$164,4,FALSE)","v":"Impianti di sollevamento e pompaggio di depurazione"},3,{"$f":"+VLOOKUP(H782,TT_Tabelle_Riferimento!$F$3:$G$6,2,FALSE)","v":"Altri servizi idrici"},2028,{"$f":"+SUMIFS('PdI-crono_inv'!BG:BG,'PdI-crono_inv'!CF:CF,F782,'PdI-crono_inv'!CE:CE,H782,'PdI-crono_inv'!J:J,P782,'PdI-crono_inv'!P:P,\"<>proprietario\")","v":0},null,{"$f":"+SUMIFS('PdI-crono_inv'!BH:BH,'PdI-crono_inv'!CF:CF,F782,'PdI-crono_inv'!CE:CE,H782,'PdI-crono_inv'!J:J,P782,'PdI-crono_inv'!P:P,\"<>proprietario\")+S782","v":0},null,null,"ENV",{"$f":"+VLOOKUP(F782,TT_Tabelle_Riferimento!$D$127:$E$164,2,FALSE)","v":"Depurazione"},"",0]
[0,0,"Gestore",0,"IP",20,{"$f":"+VLOOKUP(F783,TT_Tabelle_Riferimento!$D$127:$G$164,4,FALSE)","v":"Tecniche naturali di depurazione (tra cui fitodepurazione e lagunaggio)"},3,{"$f":"+VLOOKUP(H783,TT_Tabelle_Riferimento!$F$3:$G$6,2,FALSE)","v":"Altri servizi idrici"},2028,{"$f":"+SUMIFS('PdI-crono_inv'!BG:BG,'PdI-crono_inv'!CF:CF,F783,'PdI-crono_inv'!CE:CE,H783,'PdI-crono_inv'!J:J,P783,'PdI-crono_inv'!P:P,\"<>proprietario\")","v":0},null,{"$f":"+SUMIFS('PdI-crono_inv'!BH:BH,'PdI-crono_inv'!CF:CF,F783,'PdI-crono_inv'!CE:CE,H783,'PdI-crono_inv'!J:J,P783,'PdI-crono_inv'!P:P,\"<>proprietario\")+S783","v":0},null,null,"ENV",{"$f":"+VLOOKUP(F783,TT_Tabelle_Riferimento!$D$127:$E$164,2,FALSE)","v":"Depurazione"},"",0]
[0,0,"Gestore",0,"IP",21,{"$f":"+VLOOKUP(F784,TT_Tabelle_Riferimento!$D$127:$G$164,4,FALSE)","v":"Impianti di depurazione – trattamenti sino al preliminare, integrativo, primario - fosse settiche e fosse Imhoff"},3,{"$f":"+VLOOKUP(H784,TT_Tabelle_Riferimento!$F$3:$G$6,2,FALSE)","v":"Altri servizi idrici"},2028,{"$f":"+SUMIFS('PdI-crono_inv'!BG:BG,'PdI-crono_inv'!CF:CF,F784,'PdI-crono_inv'!CE:CE,H784,'PdI-crono_inv'!J:J,P784,'PdI-crono_inv'!P:P,\"<>proprietario\")","v":0},null,{"$f":"+SUMIFS('PdI-crono_inv'!BH:BH,'PdI-crono_inv'!CF:CF,F784,'PdI-crono_inv'!CE:CE,H784,'PdI-crono_inv'!J:J,P784,'PdI-crono_inv'!P:P,\"<>proprietario\")+S784","v":0},null,null,"ENV",{"$f":"+VLOOKUP(F784,TT_Tabelle_Riferimento!$D$127:$E$164,2,FALSE)","v":"Depurazione"},"",0]
[0,0,"Gestore",0,"IP",22,{"$f":"+VLOOKUP(F785,TT_Tabelle_Riferimento!$D$127:$G$164,4,FALSE)","v":"Impianti di depurazione – trattamenti sino al secondario"},3,{"$f":"+VLOOKUP(H785,TT_Tabelle_Riferimento!$F$3:$G$6,2,FALSE)","v":"Altri servizi idrici"},2028,{"$f":"+SUMIFS('PdI-crono_inv'!BG:BG,'PdI-crono_inv'!CF:CF,F785,'PdI-crono_inv'!CE:CE,H785,'PdI-crono_inv'!J:J,P785,'PdI-crono_inv'!P:P,\"<>proprietario\")","v":0},null,{"$f":"+SUMIFS('PdI-crono_inv'!BH:BH,'PdI-crono_inv'!CF:CF,F785,'PdI-crono_inv'!CE:CE,H785,'PdI-crono_inv'!J:J,P785,'PdI-crono_inv'!P:P,\"<>proprietario\")+S785","v":0},null,null,"ENV",{"$f":"+VLOOKUP(F785,TT_Tabelle_Riferimento!$D$127:$E$164,2,FALSE)","v":"Depurazione"},"",0]
[0,0,"Gestore",0,"IP",23,{"$f":"+VLOOKUP(F786,TT_Tabelle_Riferimento!$D$127:$G$164,4,FALSE)","v":"Impianti di depurazione – trattamenti sino al terziario e terziario avanzato"},3,{"$f":"+VLOOKUP(H786,TT_Tabelle_Riferimento!$F$3:$G$6,2,FALSE)","v":"Altri servizi idrici"},2028,{"$f":"+SUMIFS('PdI-crono_inv'!BG:BG,'PdI-crono_inv'!CF:CF,F786,'PdI-crono_inv'!CE:CE,H786,'PdI-crono_inv'!J:J,P786,'PdI-crono_inv'!P:P,\"<>proprietario\")","v":0},null,{"$f":"+SUMIFS('PdI-crono_inv'!BH:BH,'PdI-crono_inv'!CF:CF,F786,'PdI-crono_inv'!CE:CE,H786,'PdI-crono_inv'!J:J,P786,'PdI-crono_inv'!P:P,\"<>proprietario\")+S786","v":0},null,null,"ENV",{"$f":"+VLOOKUP(F786,TT_Tabelle_Riferimento!$D$127:$E$164,2,FALSE)","v":"Depurazione"},"",0]
[0,0,"Gestore",0,"IP",24,{"$f":"+VLOOKUP(F787,TT_Tabelle_Riferimento!$D$127:$G$164,4,FALSE)","v":"Impianti di essiccamento fanghi e di valorizzazione dei fanghi (tra cui mono-incenerimento, pirolisi, gassificazione)"},3,{"$f":"+VLOOKUP(H787,TT_Tabelle_Riferimento!$F$3:$G$6,2,FALSE)","v":"Altri servizi idrici"},2028,{"$f":"+SUMIFS('PdI-crono_inv'!BG:BG,'PdI-crono_inv'!CF:CF,F787,'PdI-crono_inv'!CE:CE,H787,'PdI-crono_inv'!J:J,P787,'PdI-crono_inv'!P:P,\"<>proprietario\")","v":0},null,{"$f":"+SUMIFS('PdI-crono_inv'!BH:BH,'PdI-crono_inv'!CF:CF,F787,'PdI-crono_inv'!CE:CE,H787,'PdI-crono_inv'!J:J,P787,'PdI-crono_inv'!P:P,\"<>proprietario\")+S787","v":0},null,null,"ENV",{"$f":"+VLOOKUP(F787,TT_Tabelle_Riferimento!$D$127:$E$164,2,FALSE)","v":"Depurazione"},"",0]
[0,0,"Gestore",0,"IP",25,{"$f":"+VLOOKUP(F788,TT_Tabelle_Riferimento!$D$127:$G$164,4,FALSE)","v":"Gruppi di misura - altre attrezzature di depurazione"},3,{"$f":"+VLOOKUP(H788,TT_Tabelle_Riferimento!$F$3:$G$6,2,FALSE)","v":"Altri servizi idrici"},2028,{"$f":"+SUMIFS('PdI-crono_inv'!BG:BG,'PdI-crono_inv'!CF:CF,F788,'PdI-crono_inv'!CE:CE,H788,'PdI-crono_inv'!J:J,P788,'PdI-crono_inv'!P:P,\"<>proprietario\")","v":0},null,{"$f":"+SUMIFS('PdI-crono_inv'!BH:BH,'PdI-crono_inv'!CF:CF,F788,'PdI-crono_inv'!CE:CE,H788,'PdI-crono_inv'!J:J,P788,'PdI-crono_inv'!P:P,\"<>proprietario\")+S788","v":0},null,null,"ENV",{"$f":"+VLOOKUP(F788,TT_Tabelle_Riferimento!$D$127:$E$164,2,FALSE)","v":"Depurazione"},"",0]
[0,0,"Gestore",0,"IP",26,{"$f":"+VLOOKUP(F789,TT_Tabelle_Riferimento!$D$127:$G$164,4,FALSE)","v":"Sistemi informativi di depurazione"},3,{"$f":"+VLOOKUP(H789,TT_Tabelle_Riferimento!$F$3:$G$6,2,FALSE)","v":"Altri servizi idrici"},2028,{"$f":"+SUMIFS('PdI-crono_inv'!BG:BG,'PdI-crono_inv'!CF:CF,F789,'PdI-crono_inv'!CE:CE,H789,'PdI-crono_inv'!J:J,P789,'PdI-crono_inv'!P:P,\"<>proprietario\")","v":0},null,{"$f":"+SUMIFS('PdI-crono_inv'!BH:BH,'PdI-crono_inv'!CF:CF,F789,'PdI-crono_inv'!CE:CE,H789,'PdI-crono_inv'!J:J,P789,'PdI-crono_inv'!P:P,\"<>proprietario\")+S789","v":0},null,null,"ENV",{"$f":"+VLOOKUP(F789,TT_Tabelle_Riferimento!$D$127:$E$164,2,FALSE)","v":"Depurazione"},"",0]
[0,0,"Gestore",0,"IP",27,{"$f":"+VLOOKUP(F790,TT_Tabelle_Riferimento!$D$127:$G$164,4,FALSE)","v":"Telecontrollo e teletrasmissione di depurazione"},3,{"$f":"+VLOOKUP(H790,TT_Tabelle_Riferimento!$F$3:$G$6,2,FALSE)","v":"Altri servizi idrici"},2028,{"$f":"+SUMIFS('PdI-crono_inv'!BG:BG,'PdI-crono_inv'!CF:CF,F790,'PdI-crono_inv'!CE:CE,H790,'PdI-crono_inv'!J:J,P790,'PdI-crono_inv'!P:P,\"<>proprietario\")","v":0},null,{"$f":"+SUMIFS('PdI-crono_inv'!BH:BH,'PdI-crono_inv'!CF:CF,F790,'PdI-crono_inv'!CE:CE,H790,'PdI-crono_inv'!J:J,P790,'PdI-crono_inv'!P:P,\"<>proprietario\")+S790","v":0},null,null,"ENV",{"$f":"+VLOOKUP(F790,TT_Tabelle_Riferimento!$D$127:$E$164,2,FALSE)","v":"Depurazione"},"",0]
[0,0,"Gestore",0,"IP",28,{"$f":"+VLOOKUP(F791,TT_Tabelle_Riferimento!$D$127:$G$164,4,FALSE)","v":"Altri impianti"},3,{"$f":"+VLOOKUP(H791,TT_Tabelle_Riferimento!$F$3:$G$6,2,FALSE)","v":"Altri servizi idrici"},2028,{"$f":"+SUMIFS('PdI-crono_inv'!BG:BG,'PdI-crono_inv'!CF:CF,F791,'PdI-crono_inv'!CE:CE,H791,'PdI-crono_inv'!J:J,P791,'PdI-crono_inv'!P:P,\"<>proprietario\")","v":0},null,{"$f":"+SUMIFS('PdI-crono_inv'!BH:BH,'PdI-crono_inv'!CF:CF,F791,'PdI-crono_inv'!CE:CE,H791,'PdI-crono_inv'!J:J,P791,'PdI-crono_inv'!P:P,\"<>proprietario\")+S791","v":0},null,null,"ENV",{"$f":"+VLOOKUP(F791,TT_Tabelle_Riferimento!$D$127:$E$164,2,FALSE)","v":"Comune"},"",0]
[0,0,"Gestore",0,"IP",29,{"$f":"+VLOOKUP(F792,TT_Tabelle_Riferimento!$D$127:$G$164,4,FALSE)","v":"Laboratori e attrezzature"},3,{"$f":"+VLOOKUP(H792,TT_Tabelle_Riferimento!$F$3:$G$6,2,FALSE)","v":"Altri servizi idrici"},2028,{"$f":"+SUMIFS('PdI-crono_inv'!BG:BG,'PdI-crono_inv'!CF:CF,F792,'PdI-crono_inv'!CE:CE,H792,'PdI-crono_inv'!J:J,P792,'PdI-crono_inv'!P:P,\"<>proprietario\")","v":0},null,{"$f":"+SUMIFS('PdI-crono_inv'!BH:BH,'PdI-crono_inv'!CF:CF,F792,'PdI-crono_inv'!CE:CE,H792,'PdI-crono_inv'!J:J,P792,'PdI-crono_inv'!P:P,\"<>proprietario\")+S792","v":0},null,null,"ENV",{"$f":"+VLOOKUP(F792,TT_Tabelle_Riferimento!$D$127:$E$164,2,FALSE)","v":"Comune"},{"$f":"+IF(SUM(K792:N792)=0,\"\",\"PdI_consolidamento\")","v":""},0]
[0,0,"Gestore",0,"IP",30,{"$f":"+VLOOKUP(F793,TT_Tabelle_Riferimento!$D$127:$G$164,4,FALSE)","v":"Sistemi informativi"},3,{"$f":"+VLOOKUP(H793,TT_Tabelle_Riferimento!$F$3:$G$6,2,FALSE)","v":"Altri servizi idrici"},2028,{"$f":"+SUMIFS('PdI-crono_inv'!BG:BG,'PdI-crono_inv'!CF:CF,F793,'PdI-crono_inv'!CE:CE,H793,'PdI-crono_inv'!J:J,P793,'PdI-crono_inv'!P:P,\"<>proprietario\")","v":0},null,{"$f":"+SUMIFS('PdI-crono_inv'!BH:BH,'PdI-crono_inv'!CF:CF,F793,'PdI-crono_inv'!CE:CE,H793,'PdI-crono_inv'!J:J,P793,'PdI-crono_inv'!P:P,\"<>proprietario\")+S793","v":0},null,null,"ENV",{"$f":"+VLOOKUP(F793,TT_Tabelle_Riferimento!$D$127:$E$164,2,FALSE)","v":"Comune"},"",0]
[0,0,"Gestore",0,"IP",31,{"$f":"+VLOOKUP(F794,TT_Tabelle_Riferimento!$D$127:$G$164,4,FALSE)","v":"Telecontrollo e teletrasmissione"},3,{"$f":"+VLOOKUP(H794,TT_Tabelle_Riferimento!$F$3:$G$6,2,FALSE)","v":"Altri servizi idrici"},2028,{"$f":"+SUMIFS('PdI-crono_inv'!BG:BG,'PdI-crono_inv'!CF:CF,F794,'PdI-crono_inv'!CE:CE,H794,'PdI-crono_inv'!J:J,P794,'PdI-crono_inv'!P:P,\"<>proprietario\")","v":0},null,{"$f":"+SUMIFS('PdI-crono_inv'!BH:BH,'PdI-crono_inv'!CF:CF,F794,'PdI-crono_inv'!CE:CE,H794,'PdI-crono_inv'!J:J,P794,'PdI-crono_inv'!P:P,\"<>proprietario\")+S794","v":0},null,null,"ENV",{"$f":"+VLOOKUP(F794,TT_Tabelle_Riferimento!$D$127:$E$164,2,FALSE)","v":"Comune"},"",0]
[0,0,"Gestore",0,"IP",32,{"$f":"+VLOOKUP(F795,TT_Tabelle_Riferimento!$D$127:$G$164,4,FALSE)","v":"Autoveicoli - automezzi"},3,{"$f":"+VLOOKUP(H795,TT_Tabelle_Riferimento!$F$3:$G$6,2,FALSE)","v":"Altri servizi idrici"},2028,{"$f":"+SUMIFS('PdI-crono_inv'!BG:BG,'PdI-crono_inv'!CF:CF,F795,'PdI-crono_inv'!CE:CE,H795,'PdI-crono_inv'!J:J,P795,'PdI-crono_inv'!P:P,\"<>proprietario\")","v":0},null,{"$f":"+SUMIFS('PdI-crono_inv'!BH:BH,'PdI-crono_inv'!CF:CF,F795,'PdI-crono_inv'!CE:CE,H795,'PdI-crono_inv'!J:J,P795,'PdI-crono_inv'!P:P,\"<>proprietario\")+S795","v":0},null,null,"ENV",{"$f":"+VLOOKUP(F795,TT_Tabelle_Riferimento!$D$127:$E$164,2,FALSE)","v":"Comune"},"",0]
[0,0,"Gestore",0,"IP",1,{"$f":"+VLOOKUP(F796,TT_Tabelle_Riferimento!$D$127:$G$164,4,FALSE)","v":"Terreni"},3,{"$f":"+VLOOKUP(H796,TT_Tabelle_Riferimento!$F$3:$G$6,2,FALSE)","v":"Altri servizi idrici"},2028,{"$f":"+SUMIFS('PdI-crono_inv'!BG:BG,'PdI-crono_inv'!CF:CF,F796,'PdI-crono_inv'!CE:CE,H796,'PdI-crono_inv'!J:J,P796,'PdI-crono_inv'!P:P,\"<>proprietario\")","v":0},null,{"$f":"+SUMIFS('PdI-crono_inv'!BH:BH,'PdI-crono_inv'!CF:CF,F796,'PdI-crono_inv'!CE:CE,H796,'PdI-crono_inv'!J:J,P796,'PdI-crono_inv'!P:P,\"<>proprietario\")+S796","v":0},null,null,"ENV",{"$f":"+VLOOKUP(F796,TT_Tabelle_Riferimento!$D$127:$E$164,2,FALSE)","v":"Comune"},"",0]
[0,0,"Gestore",0,"IP",33,{"$f":"+VLOOKUP(F797,TT_Tabelle_Riferimento!$D$127:$G$164,4,FALSE)","v":"Fabbricati non industriali"},3,{"$f":"+VLOOKUP(H797,TT_Tabelle_Riferimento!$F$3:$G$6,2,FALSE)","v":"Altri servizi idrici"},2028,{"$f":"+SUMIFS('PdI-crono_inv'!BG:BG,'PdI-crono_inv'!CF:CF,F797,'PdI-crono_inv'!CE:CE,H797,'PdI-crono_inv'!J:J,P797,'PdI-crono_inv'!P:P,\"<>proprietario\")","v":0},null,{"$f":"+SUMIFS('PdI-crono_inv'!BH:BH,'PdI-crono_inv'!CF:CF,F797,'PdI-crono_inv'!CE:CE,H797,'PdI-crono_inv'!J:J,P797,'PdI-crono_inv'!P:P,\"<>proprietario\")+S797","v":0},null,null,"ENV",{"$f":"+VLOOKUP(F797,TT_Tabelle_Riferimento!$D$127:$E$164,2,FALSE)","v":"Comune"},"",0]
[0,0,"Gestore",0,"IP",34,{"$f":"+VLOOKUP(F798,TT_Tabelle_Riferimento!$D$127:$G$164,4,FALSE)","v":"Fabbricati industriali"},3,{"$f":"+VLOOKUP(H798,TT_Tabelle_Riferimento!$F$3:$G$6,2,FALSE)","v":"Altri servizi idrici"},2028,{"$f":"+SUMIFS('PdI-crono_inv'!BG:BG,'PdI-crono_inv'!CF:CF,F798,'PdI-crono_inv'!CE:CE,H798,'PdI-crono_inv'!J:J,P798,'PdI-crono_inv'!P:P,\"<>proprietario\")","v":0},null,{"$f":"+SUMIFS('PdI-crono_inv'!BH:BH,'PdI-crono_inv'!CF:CF,F798,'PdI-crono_inv'!CE:CE,H798,'PdI-crono_inv'!J:J,P798,'PdI-crono_inv'!P:P,\"<>proprietario\")+S798","v":0},null,null,"ENV",{"$f":"+VLOOKUP(F798,TT_Tabelle_Riferimento!$D$127:$E$164,2,FALSE)","v":"Comune"},"",0]
[0,0,"Gestore",0,"IP",35,{"$f":"+VLOOKUP(F799,TT_Tabelle_Riferimento!$D$127:$G$164,4,FALSE)","v":"Costruzioni leggere"},3,{"$f":"+VLOOKUP(H799,TT_Tabelle_Riferimento!$F$3:$G$6,2,FALSE)","v":"Altri servizi idrici"},2028,{"$f":"+SUMIFS('PdI-crono_inv'!BG:BG,'PdI-crono_inv'!CF:CF,F799,'PdI-crono_inv'!CE:CE,H799,'PdI-crono_inv'!J:J,P799,'PdI-crono_inv'!P:P,\"<>proprietario\")","v":0},null,{"$f":"+SUMIFS('PdI-crono_inv'!BH:BH,'PdI-crono_inv'!CF:CF,F799,'PdI-crono_inv'!CE:CE,H799,'PdI-crono_inv'!J:J,P799,'PdI-crono_inv'!P:P,\"<>proprietario\")+S799","v":0},null,null,"ENV",{"$f":"+VLOOKUP(F799,TT_Tabelle_Riferimento!$D$127:$E$164,2,FALSE)","v":"Comune"},"",0]
[0,0,"Gestore",0,"IP",36,{"$f":"+VLOOKUP(F800,TT_Tabelle_Riferimento!$D$127:$G$164,4,FALSE)","v":"Studi, ricerche, brevetti, diritti di utilizzazione"},3,{"$f":"+VLOOKUP(H800,TT_Tabelle_Riferimento!$F$3:$G$6,2,FALSE)","v":"Altri servizi idrici"},2028,{"$f":"+SUMIFS('PdI-crono_inv'!BG:BG,'PdI-crono_inv'!CF:CF,F800,'PdI-crono_inv'!CE:CE,H800,'PdI-crono_inv'!J:J,P800,'PdI-crono_inv'!P:P,\"<>proprietario\")","v":0},null,{"$f":"+SUMIFS('PdI-crono_inv'!BH:BH,'PdI-crono_inv'!CF:CF,F800,'PdI-crono_inv'!CE:CE,H800,'PdI-crono_inv'!J:J,P800,'PdI-crono_inv'!P:P,\"<>proprietario\")+S800","v":0},null,null,"ENV",{"$f":"+VLOOKUP(F800,TT_Tabelle_Riferimento!$D$127:$E$164,2,FALSE)","v":"Comune"},"",0]
[0,0,"Gestore",0,"IP",37,{"$f":"+VLOOKUP(F801,TT_Tabelle_Riferimento!$D$127:$G$164,4,FALSE)","v":"Altre immobilizzazioni materiali e immateriali"},3,{"$f":"+VLOOKUP(H801,TT_Tabelle_Riferimento!$F$3:$G$6,2,FALSE)","v":"Altri servizi idrici"},2028,{"$f":"+SUMIFS('PdI-crono_inv'!BG:BG,'PdI-crono_inv'!CF:CF,F801,'PdI-crono_inv'!CE:CE,H801,'PdI-crono_inv'!J:J,P801,'PdI-crono_inv'!P:P,\"<>proprietario\")","v":0},null,{"$f":"+SUMIFS('PdI-crono_inv'!BH:BH,'PdI-crono_inv'!CF:CF,F801,'PdI-crono_inv'!CE:CE,H801,'PdI-crono_inv'!J:J,P801,'PdI-crono_inv'!P:P,\"<>proprietario\")+S801","v":0},null,null,"ENV",{"$f":"+VLOOKUP(F801,TT_Tabelle_Riferimento!$D$127:$E$164,2,FALSE)","v":"Comune"},"",0]
[0,0,"Gestore",0,"IP",38,{"$f":"+VLOOKUP(F802,TT_Tabelle_Riferimento!$D$127:$G$164,4,FALSE)","v":"Grandi dighe (sbarramenti che superano i quindici metri di altezza o che determinano un invaso superiore a 1 milione di metri cubi)"},3,{"$f":"+VLOOKUP(H802,TT_Tabelle_Riferimento!$F$3:$G$6,2,FALSE)","v":"Altri servizi idrici"},2028,{"$f":"+SUMIFS('PdI-crono_inv'!BG:BG,'PdI-crono_inv'!CF:CF,F802,'PdI-crono_inv'!CE:CE,H802,'PdI-crono_inv'!J:J,P802,'PdI-crono_inv'!P:P,\"<>proprietario\")","v":0},null,{"$f":"+SUMIFS('PdI-crono_inv'!BH:BH,'PdI-crono_inv'!CF:CF,F802,'PdI-crono_inv'!CE:CE,H802,'PdI-crono_inv'!J:J,P802,'PdI-crono_inv'!P:P,\"<>proprietario\")+S802","v":0},null,null,"ENV",{"$f":"+VLOOKUP(F802,TT_Tabelle_Riferimento!$D$127:$E$164,2,FALSE)","v":"Acquedotto"},"",0]
[0,0,"Gestore",0,"IP",39,{"$f":"+VLOOKUP(F803,TT_Tabelle_Riferimento!$D$127:$G$164,4,FALSE)","v":"Piccole dighe (sbarramenti che non superano i quindici metri di altezza o che determinano un invaso non superiore a 1 milione di metri cubi)"},3,{"$f":"+VLOOKUP(H803,TT_Tabelle_Riferimento!$F$3:$G$6,2,FALSE)","v":"Altri servizi idrici"},2028,{"$f":"+SUMIFS('PdI-crono_inv'!BG:BG,'PdI-crono_inv'!CF:CF,F803,'PdI-crono_inv'!CE:CE,H803,'PdI-crono_inv'!J:J,P803,'PdI-crono_inv'!P:P,\"<>proprietario\")","v":0},null,{"$f":"+SUMIFS('PdI-crono_inv'!BH:BH,'PdI-crono_inv'!CF:CF,F803,'PdI-crono_inv'!CE:CE,H803,'PdI-crono_inv'!J:J,P803,'PdI-crono_inv'!P:P,\"<>proprietario\")+S803","v":0},null,null,"ENV",{"$f":"+VLOOKUP(F803,TT_Tabelle_Riferimento!$D$127:$E$164,2,FALSE)","v":"Acquedotto"},"",0]
[0,0,"Gestore",0,"IP",2,{"$f":"+VLOOKUP(F804,TT_Tabelle_Riferimento!$D$127:$G$164,4,FALSE)","v":"Condotte di acquedotto"},1,{"$f":"+VLOOKUP(H804,TT_Tabelle_Riferimento!$F$3:$G$6,2,FALSE)","v":"Servizio idrico integrato"},2028,{"$f":"+SUMIFS('PdI-crono_inv'!BG:BG,'PdI-crono_inv'!CF:CF,F804,'PdI-crono_inv'!CE:CE,H804,'PdI-crono_inv'!J:J,P804,'PdI-crono_inv'!P:P,\"<>proprietario\")","v":0},null,{"$f":"+SUMIFS('PdI-crono_inv'!BH:BH,'PdI-crono_inv'!CF:CF,F804,'PdI-crono_inv'!CE:CE,H804,'PdI-crono_inv'!J:J,P804,'PdI-crono_inv'!P:P,\"<>proprietario\")+S804","v":0},null,null,"RES",{"$f":"+VLOOKUP(F804,TT_Tabelle_Riferimento!$D$127:$E$164,2,FALSE)","v":"Acquedotto"},"",0]
[0,0,"Gestore",0,"IP",3,{"$f":"+VLOOKUP(F805,TT_Tabelle_Riferimento!$D$127:$G$164,4,FALSE)","v":"Opere idrauliche fisse di acquedotto"},1,{"$f":"+VLOOKUP(H805,TT_Tabelle_Riferimento!$F$3:$G$6,2,FALSE)","v":"Servizio idrico integrato"},2028,{"$f":"+SUMIFS('PdI-crono_inv'!BG:BG,'PdI-crono_inv'!CF:CF,F805,'PdI-crono_inv'!CE:CE,H805,'PdI-crono_inv'!J:J,P805,'PdI-crono_inv'!P:P,\"<>proprietario\")","v":0},null,{"$f":"+SUMIFS('PdI-crono_inv'!BH:BH,'PdI-crono_inv'!CF:CF,F805,'PdI-crono_inv'!CE:CE,H805,'PdI-crono_inv'!J:J,P805,'PdI-crono_inv'!P:P,\"<>proprietario\")+S805","v":0},null,null,"RES",{"$f":"+VLOOKUP(F805,TT_Tabelle_Riferimento!$D$127:$E$164,2,FALSE)","v":"Acquedotto"},"",0]
[0,0,"Gestore",0,"IP",4,{"$f":"+VLOOKUP(F806,TT_Tabelle_Riferimento!$D$127:$G$164,4,FALSE)","v":"Serbatoi"},1,{"$f":"+VLOOKUP(H806,TT_Tabelle_Riferimento!$F$3:$G$6,2,FALSE)","v":"Servizio idrico integrato"},2028,{"$f":"+SUMIFS('PdI-crono_inv'!BG:BG,'PdI-crono_inv'!CF:CF,F806,'PdI-crono_inv'!CE:CE,H806,'PdI-crono_inv'!J:J,P806,'PdI-crono_inv'!P:P,\"<>proprietario\")","v":0},null,{"$f":"+SUMIFS('PdI-crono_inv'!BH:BH,'PdI-crono_inv'!CF:CF,F806,'PdI-crono_inv'!CE:CE,H806,'PdI-crono_inv'!J:J,P806,'PdI-crono_inv'!P:P,\"<>proprietario\")+S806","v":0},null,null,"RES",{"$f":"+VLOOKUP(F806,TT_Tabelle_Riferimento!$D$127:$E$164,2,FALSE)","v":"Acquedotto"},"",0]
[0,0,"Gestore",0,"IP",5,{"$f":"+VLOOKUP(F807,TT_Tabelle_Riferimento!$D$127:$G$164,4,FALSE)","v":"Impianti di sollevamento e pompaggio di acquedotto"},1,{"$f":"+VLOOKUP(H807,TT_Tabelle_Riferimento!$F$3:$G$6,2,FALSE)","v":"Servizio idrico integrato"},2028,{"$f":"+SUMIFS('PdI-crono_inv'!BG:BG,'PdI-crono_inv'!CF:CF,F807,'PdI-crono_inv'!CE:CE,H807,'PdI-crono_inv'!J:J,P807,'PdI-crono_inv'!P:P,\"<>proprietario\")","v":0},null,{"$f":"+SUMIFS('PdI-crono_inv'!BH:BH,'PdI-crono_inv'!CF:CF,F807,'PdI-crono_inv'!CE:CE,H807,'PdI-crono_inv'!J:J,P807,'PdI-crono_inv'!P:P,\"<>proprietario\")+S807","v":0},null,null,"RES",{"$f":"+VLOOKUP(F807,TT_Tabelle_Riferimento!$D$127:$E$164,2,FALSE)","v":"Acquedotto"},"",0]
[0,0,"Gestore",0,"IP",6,{"$f":"+VLOOKUP(F808,TT_Tabelle_Riferimento!$D$127:$G$164,4,FALSE)","v":"Impianti di potabilizzazione"},1,{"$f":"+VLOOKUP(H808,TT_Tabelle_Riferimento!$F$3:$G$6,2,FALSE)","v":"Servizio idrico integrato"},2028,{"$f":"+SUMIFS('PdI-crono_inv'!BG:BG,'PdI-crono_inv'!CF:CF,F808,'PdI-crono_inv'!CE:CE,H808,'PdI-crono_inv'!J:J,P808,'PdI-crono_inv'!P:P,\"<>proprietario\")","v":0},null,{"$f":"+SUMIFS('PdI-crono_inv'!BH:BH,'PdI-crono_inv'!CF:CF,F808,'PdI-crono_inv'!CE:CE,H808,'PdI-crono_inv'!J:J,P808,'PdI-crono_inv'!P:P,\"<>proprietario\")+S808","v":0},null,null,"RES",{"$f":"+VLOOKUP(F808,TT_Tabelle_Riferimento!$D$127:$E$164,2,FALSE)","v":"Acquedotto"},"",0]
[0,0,"Gestore",0,"IP",7,{"$f":"+VLOOKUP(F809,TT_Tabelle_Riferimento!$D$127:$G$164,4,FALSE)","v":"Altri trattamenti di potabilizzazione (tra cui dispositivi di disinfezione, stacciatura, filtrazione, addolcimento)"},1,{"$f":"+VLOOKUP(H809,TT_Tabelle_Riferimento!$F$3:$G$6,2,FALSE)","v":"Servizio idrico integrato"},2028,{"$f":"+SUMIFS('PdI-crono_inv'!BG:BG,'PdI-crono_inv'!CF:CF,F809,'PdI-crono_inv'!CE:CE,H809,'PdI-crono_inv'!J:J,P809,'PdI-crono_inv'!P:P,\"<>proprietario\")","v":0},null,{"$f":"+SUMIFS('PdI-crono_inv'!BH:BH,'PdI-crono_inv'!CF:CF,F809,'PdI-crono_inv'!CE:CE,H809,'PdI-crono_inv'!J:J,P809,'PdI-crono_inv'!P:P,\"<>proprietario\")+S809","v":0},null,null,"RES",{"$f":"+VLOOKUP(F809,TT_Tabelle_Riferimento!$D$127:$E$164,2,FALSE)","v":"Acquedotto"},"",0]
[0,0,"Gestore",0,"IP",8,{"$f":"+VLOOKUP(F810,TT_Tabelle_Riferimento!$D$127:$G$164,4,FALSE)","v":"Gruppi di misura - altre attrezzature di acquedotto"},1,{"$f":"+VLOOKUP(H810,TT_Tabelle_Riferimento!$F$3:$G$6,2,FALSE)","v":"Servizio idrico integrato"},2028,{"$f":"+SUMIFS('PdI-crono_inv'!BG:BG,'PdI-crono_inv'!CF:CF,F810,'PdI-crono_inv'!CE:CE,H810,'PdI-crono_inv'!J:J,P810,'PdI-crono_inv'!P:P,\"<>proprietario\")","v":0},null,{"$f":"+SUMIFS('PdI-crono_inv'!BH:BH,'PdI-crono_inv'!CF:CF,F810,'PdI-crono_inv'!CE:CE,H810,'PdI-crono_inv'!J:J,P810,'PdI-crono_inv'!P:P,\"<>proprietario\")+S810","v":0},null,null,"RES",{"$f":"+VLOOKUP(F810,TT_Tabelle_Riferimento!$D$127:$E$164,2,FALSE)","v":"Acquedotto"},"",0]
[0,0,"Gestore",0,"IP",9,{"$f":"+VLOOKUP(F811,TT_Tabelle_Riferimento!$D$127:$G$164,4,FALSE)","v":"Sistemi informativi di acquedotto"},1,{"$f":"+VLOOKUP(H811,TT_Tabelle_Riferimento!$F$3:$G$6,2,FALSE)","v":"Servizio idrico integrato"},2028,{"$f":"+SUMIFS('PdI-crono_inv'!BG:BG,'PdI-crono_inv'!CF:CF,F811,'PdI-crono_inv'!CE:CE,H811,'PdI-crono_inv'!J:J,P811,'PdI-crono_inv'!P:P,\"<>proprietario\")","v":0},null,{"$f":"+SUMIFS('PdI-crono_inv'!BH:BH,'PdI-crono_inv'!CF:CF,F811,'PdI-crono_inv'!CE:CE,H811,'PdI-crono_inv'!J:J,P811,'PdI-crono_inv'!P:P,\"<>proprietario\")+S811","v":0},null,null,"RES",{"$f":"+VLOOKUP(F811,TT_Tabelle_Riferimento!$D$127:$E$164,2,FALSE)","v":"Acquedotto"},"",0]
[0,0,"Gestore",0,"IP",10,{"$f":"+VLOOKUP(F812,TT_Tabelle_Riferimento!$D$127:$G$164,4,FALSE)","v":"Telecontrollo e teletrasmissione di acquedotto"},1,{"$f":"+VLOOKUP(H812,TT_Tabelle_Riferimento!$F$3:$G$6,2,FALSE)","v":"Servizio idrico integrato"},2028,{"$f":"+SUMIFS('PdI-crono_inv'!BG:BG,'PdI-crono_inv'!CF:CF,F812,'PdI-crono_inv'!CE:CE,H812,'PdI-crono_inv'!J:J,P812,'PdI-crono_inv'!P:P,\"<>proprietario\")","v":0},null,{"$f":"+SUMIFS('PdI-crono_inv'!BH:BH,'PdI-crono_inv'!CF:CF,F812,'PdI-crono_inv'!CE:CE,H812,'PdI-crono_inv'!J:J,P812,'PdI-crono_inv'!P:P,\"<>proprietario\")+S812","v":0},null,null,"RES",{"$f":"+VLOOKUP(F812,TT_Tabelle_Riferimento!$D$127:$E$164,2,FALSE)","v":"Acquedotto"},"",0]
[0,0,"Gestore",0,"IP",11,{"$f":"+VLOOKUP(F813,TT_Tabelle_Riferimento!$D$127:$G$164,4,FALSE)","v":"Condotte fognarie"},1,{"$f":"+VLOOKUP(H813,TT_Tabelle_Riferimento!$F$3:$G$6,2,FALSE)","v":"Servizio idrico integrato"},2028,{"$f":"+SUMIFS('PdI-crono_inv'!BG:BG,'PdI-crono_inv'!CF:CF,F813,'PdI-crono_inv'!CE:CE,H813,'PdI-crono_inv'!J:J,P813,'PdI-crono_inv'!P:P,\"<>proprietario\")","v":0},null,{"$f":"+SUMIFS('PdI-crono_inv'!BH:BH,'PdI-crono_inv'!CF:CF,F813,'PdI-crono_inv'!CE:CE,H813,'PdI-crono_inv'!J:J,P813,'PdI-crono_inv'!P:P,\"<>proprietario\")+S813","v":0},null,null,"RES",{"$f":"+VLOOKUP(F813,TT_Tabelle_Riferimento!$D$127:$E$164,2,FALSE)","v":"Fognatura"},"",0]
[0,0,"Gestore",0,"IP",12,{"$f":"+VLOOKUP(F814,TT_Tabelle_Riferimento!$D$127:$G$164,4,FALSE)","v":"Sifoni e scaricatori di piena e altre opere idrauliche fisse di fognatura"},1,{"$f":"+VLOOKUP(H814,TT_Tabelle_Riferimento!$F$3:$G$6,2,FALSE)","v":"Servizio idrico integrato"},2028,{"$f":"+SUMIFS('PdI-crono_inv'!BG:BG,'PdI-crono_inv'!CF:CF,F814,'PdI-crono_inv'!CE:CE,H814,'PdI-crono_inv'!J:J,P814,'PdI-crono_inv'!P:P,\"<>proprietario\")","v":0},null,{"$f":"+SUMIFS('PdI-crono_inv'!BH:BH,'PdI-crono_inv'!CF:CF,F814,'PdI-crono_inv'!CE:CE,H814,'PdI-crono_inv'!J:J,P814,'PdI-crono_inv'!P:P,\"<>proprietario\")+S814","v":0},null,null,"RES",{"$f":"+VLOOKUP(F814,TT_Tabelle_Riferimento!$D$127:$E$164,2,FALSE)","v":"Fognatura"},"",0]
[0,0,"Gestore",0,"IP",13,{"$f":"+VLOOKUP(F815,TT_Tabelle_Riferimento!$D$127:$G$164,4,FALSE)","v":"Vasche di laminazione e vasche di prima pioggia"},1,{"$f":"+VLOOKUP(H815,TT_Tabelle_Riferimento!$F$3:$G$6,2,FALSE)","v":"Servizio idrico integrato"},2028,{"$f":"+SUMIFS('PdI-crono_inv'!BG:BG,'PdI-crono_inv'!CF:CF,F815,'PdI-crono_inv'!CE:CE,H815,'PdI-crono_inv'!J:J,P815,'PdI-crono_inv'!P:P,\"<>proprietario\")","v":0},null,{"$f":"+SUMIFS('PdI-crono_inv'!BH:BH,'PdI-crono_inv'!CF:CF,F815,'PdI-crono_inv'!CE:CE,H815,'PdI-crono_inv'!J:J,P815,'PdI-crono_inv'!P:P,\"<>proprietario\")+S815","v":0},null,null,"RES",{"$f":"+VLOOKUP(F815,TT_Tabelle_Riferimento!$D$127:$E$164,2,FALSE)","v":"Fognatura"},"",0]
[0,0,"Gestore",0,"IP",14,{"$f":"+VLOOKUP(F816,TT_Tabelle_Riferimento!$D$127:$G$164,4,FALSE)","v":"Impianti di sollevamento e pompaggio di fognatura"},1,{"$f":"+VLOOKUP(H816,TT_Tabelle_Riferimento!$F$3:$G$6,2,FALSE)","v":"Servizio idrico integrato"},2028,{"$f":"+SUMIFS('PdI-crono_inv'!BG:BG,'PdI-crono_inv'!CF:CF,F816,'PdI-crono_inv'!CE:CE,H816,'PdI-crono_inv'!J:J,P816,'PdI-crono_inv'!P:P,\"<>proprietario\")","v":0},null,{"$f":"+SUMIFS('PdI-crono_inv'!BH:BH,'PdI-crono_inv'!CF:CF,F816,'PdI-crono_inv'!CE:CE,H816,'PdI-crono_inv'!J:J,P816,'PdI-crono_inv'!P:P,\"<>proprietario\")+S816","v":0},null,null,"RES",{"$f":"+VLOOKUP(F816,TT_Tabelle_Riferimento!$D$127:$E$164,2,FALSE)","v":"Fognatura"},"",0]
[0,0,"Gestore",0,"IP",15,{"$f":"+VLOOKUP(F817,TT_Tabelle_Riferimento!$D$127:$G$164,4,FALSE)","v":"Gruppi di misura - altre attrezzature di fognatura"},1,{"$f":"+VLOOKUP(H817,TT_Tabelle_Riferimento!$F$3:$G$6,2,FALSE)","v":"Servizio idrico integrato"},2028,{"$f":"+SUMIFS('PdI-crono_inv'!BG:BG,'PdI-crono_inv'!CF:CF,F817,'PdI-crono_inv'!CE:CE,H817,'PdI-crono_inv'!J:J,P817,'PdI-crono_inv'!P:P,\"<>proprietario\")","v":0},null,{"$f":"+SUMIFS('PdI-crono_inv'!BH:BH,'PdI-crono_inv'!CF:CF,F817,'PdI-crono_inv'!CE:CE,H817,'PdI-crono_inv'!J:J,P817,'PdI-crono_inv'!P:P,\"<>proprietario\")+S817","v":0},null,null,"RES",{"$f":"+VLOOKUP(F817,TT_Tabelle_Riferimento!$D$127:$E$164,2,FALSE)","v":"Fognatura"},"",0]
[0,0,"Gestore",0,"IP",16,{"$f":"+VLOOKUP(F818,TT_Tabelle_Riferimento!$D$127:$G$164,4,FALSE)","v":"Sistemi informativi di fognatura"},1,{"$f":"+VLOOKUP(H818,TT_Tabelle_Riferimento!$F$3:$G$6,2,FALSE)","v":"Servizio idrico integrato"},2028,{"$f":"+SUMIFS('PdI-crono_inv'!BG:BG,'PdI-crono_inv'!CF:CF,F818,'PdI-crono_inv'!CE:CE,H818,'PdI-crono_inv'!J:J,P818,'PdI-crono_inv'!P:P,\"<>proprietario\")","v":0},null,{"$f":"+SUMIFS('PdI-crono_inv'!BH:BH,'PdI-crono_inv'!CF:CF,F818,'PdI-crono_inv'!CE:CE,H818,'PdI-crono_inv'!J:J,P818,'PdI-crono_inv'!P:P,\"<>proprietario\")+S818","v":0},null,null,"RES",{"$f":"+VLOOKUP(F818,TT_Tabelle_Riferimento!$D$127:$E$164,2,FALSE)","v":"Fognatura"},"",0]
[0,0,"Gestore",0,"IP",18,{"$f":"+VLOOKUP(F819,TT_Tabelle_Riferimento!$D$127:$G$164,4,FALSE)","v":"Telecontrollo e teletrasmissione di fognatura"},1,{"$f":"+VLOOKUP(H819,TT_Tabelle_Riferimento!$F$3:$G$6,2,FALSE)","v":"Servizio idrico integrato"},2028,{"$f":"+SUMIFS('PdI-crono_inv'!BG:BG,'PdI-crono_inv'!CF:CF,F819,'PdI-crono_inv'!CE:CE,H819,'PdI-crono_inv'!J:J,P819,'PdI-crono_inv'!P:P,\"<>proprietario\")","v":0},null,{"$f":"+SUMIFS('PdI-crono_inv'!BH:BH,'PdI-crono_inv'!CF:CF,F819,'PdI-crono_inv'!CE:CE,H819,'PdI-crono_inv'!J:J,P819,'PdI-crono_inv'!P:P,\"<>proprietario\")+S819","v":0},null,null,"RES",{"$f":"+VLOOKUP(F819,TT_Tabelle_Riferimento!$D$127:$E$164,2,FALSE)","v":"Fognatura"},"",0]
[0,0,"Gestore",0,"IP",19,{"$f":"+VLOOKUP(F820,TT_Tabelle_Riferimento!$D$127:$G$164,4,FALSE)","v":"Impianti di sollevamento e pompaggio di depurazione"},1,{"$f":"+VLOOKUP(H820,TT_Tabelle_Riferimento!$F$3:$G$6,2,FALSE)","v":"Servizio idrico integrato"},2028,{"$f":"+SUMIFS('PdI-crono_inv'!BG:BG,'PdI-crono_inv'!CF:CF,F820,'PdI-crono_inv'!CE:CE,H820,'PdI-crono_inv'!J:J,P820,'PdI-crono_inv'!P:P,\"<>proprietario\")","v":0},null,{"$f":"+SUMIFS('PdI-crono_inv'!BH:BH,'PdI-crono_inv'!CF:CF,F820,'PdI-crono_inv'!CE:CE,H820,'PdI-crono_inv'!J:J,P820,'PdI-crono_inv'!P:P,\"<>proprietario\")+S820","v":0},null,null,"RES",{"$f":"+VLOOKUP(F820,TT_Tabelle_Riferimento!$D$127:$E$164,2,FALSE)","v":"Depurazione"},"",0]
[0,0,"Gestore",0,"IP",20,{"$f":"+VLOOKUP(F821,TT_Tabelle_Riferimento!$D$127:$G$164,4,FALSE)","v":"Tecniche naturali di depurazione (tra cui fitodepurazione e lagunaggio)"},1,{"$f":"+VLOOKUP(H821,TT_Tabelle_Riferimento!$F$3:$G$6,2,FALSE)","v":"Servizio idrico integrato"},2028,{"$f":"+SUMIFS('PdI-crono_inv'!BG:BG,'PdI-crono_inv'!CF:CF,F821,'PdI-crono_inv'!CE:CE,H821,'PdI-crono_inv'!J:J,P821,'PdI-crono_inv'!P:P,\"<>proprietario\")","v":0},null,{"$f":"+SUMIFS('PdI-crono_inv'!BH:BH,'PdI-crono_inv'!CF:CF,F821,'PdI-crono_inv'!CE:CE,H821,'PdI-crono_inv'!J:J,P821,'PdI-crono_inv'!P:P,\"<>proprietario\")+S821","v":0},null,null,"RES",{"$f":"+VLOOKUP(F821,TT_Tabelle_Riferimento!$D$127:$E$164,2,FALSE)","v":"Depurazione"},"",0]
[0,0,"Gestore",0,"IP",21,{"$f":"+VLOOKUP(F822,TT_Tabelle_Riferimento!$D$127:$G$164,4,FALSE)","v":"Impianti di depurazione – trattamenti sino al preliminare, integrativo, primario - fosse settiche e fosse Imhoff"},1,{"$f":"+VLOOKUP(H822,TT_Tabelle_Riferimento!$F$3:$G$6,2,FALSE)","v":"Servizio idrico integrato"},2028,{"$f":"+SUMIFS('PdI-crono_inv'!BG:BG,'PdI-crono_inv'!CF:CF,F822,'PdI-crono_inv'!CE:CE,H822,'PdI-crono_inv'!J:J,P822,'PdI-crono_inv'!P:P,\"<>proprietario\")","v":0},null,{"$f":"+SUMIFS('PdI-crono_inv'!BH:BH,'PdI-crono_inv'!CF:CF,F822,'PdI-crono_inv'!CE:CE,H822,'PdI-crono_inv'!J:J,P822,'PdI-crono_inv'!P:P,\"<>proprietario\")+S822","v":0},null,null,"RES",{"$f":"+VLOOKUP(F822,TT_Tabelle_Riferimento!$D$127:$E$164,2,FALSE)","v":"Depurazione"},"",0]
[0,0,"Gestore",0,"IP",22,{"$f":"+VLOOKUP(F823,TT_Tabelle_Riferimento!$D$127:$G$164,4,FALSE)","v":"Impianti di depurazione – trattamenti sino al secondario"},1,{"$f":"+VLOOKUP(H823,TT_Tabelle_Riferimento!$F$3:$G$6,2,FALSE)","v":"Servizio idrico integrato"},2028,{"$f":"+SUMIFS('PdI-crono_inv'!BG:BG,'PdI-crono_inv'!CF:CF,F823,'PdI-crono_inv'!CE:CE,H823,'PdI-crono_inv'!J:J,P823,'PdI-crono_inv'!P:P,\"<>proprietario\")","v":0},null,{"$f":"+SUMIFS('PdI-crono_inv'!BH:BH,'PdI-crono_inv'!CF:CF,F823,'PdI-crono_inv'!CE:CE,H823,'PdI-crono_inv'!J:J,P823,'PdI-crono_inv'!P:P,\"<>proprietario\")+S823","v":0},null,null,"RES",{"$f":"+VLOOKUP(F823,TT_Tabelle_Riferimento!$D$127:$E$164,2,FALSE)","v":"Depurazione"},"",0]
[0,0,"Gestore",0,"IP",23,{"$f":"+VLOOKUP(F824,TT_Tabelle_Riferimento!$D$127:$G$164,4,FALSE)","v":"Impianti di depurazione – trattamenti sino al terziario e terziario avanzato"},1,{"$f":"+VLOOKUP(H824,TT_Tabelle_Riferimento!$F$3:$G$6,2,FALSE)","v":"Servizio idrico integrato"},2028,{"$f":"+SUMIFS('PdI-crono_inv'!BG:BG,'PdI-crono_inv'!CF:CF,F824,'PdI-crono_inv'!CE:CE,H824,'PdI-crono_inv'!J:J,P824,'PdI-crono_inv'!P:P,\"<>proprietario\")","v":0},null,{"$f":"+SUMIFS('PdI-crono_inv'!BH:BH,'PdI-crono_inv'!CF:CF,F824,'PdI-crono_inv'!CE:CE,H824,'PdI-crono_inv'!J:J,P824,'PdI-crono_inv'!P:P,\"<>proprietario\")+S824","v":0},null,null,"RES",{"$f":"+VLOOKUP(F824,TT_Tabelle_Riferimento!$D$127:$E$164,2,FALSE)","v":"Depurazione"},"",0]
[0,0,"Gestore",0,"IP",24,{"$f":"+VLOOKUP(F825,TT_Tabelle_Riferimento!$D$127:$G$164,4,FALSE)","v":"Impianti di essiccamento fanghi e di valorizzazione dei fanghi (tra cui mono-incenerimento, pirolisi, gassificazione)"},1,{"$f":"+VLOOKUP(H825,TT_Tabelle_Riferimento!$F$3:$G$6,2,FALSE)","v":"Servizio idrico integrato"},2028,{"$f":"+SUMIFS('PdI-crono_inv'!BG:BG,'PdI-crono_inv'!CF:CF,F825,'PdI-crono_inv'!CE:CE,H825,'PdI-crono_inv'!J:J,P825,'PdI-crono_inv'!P:P,\"<>proprietario\")","v":0},null,{"$f":"+SUMIFS('PdI-crono_inv'!BH:BH,'PdI-crono_inv'!CF:CF,F825,'PdI-crono_inv'!CE:CE,H825,'PdI-crono_inv'!J:J,P825,'PdI-crono_inv'!P:P,\"<>proprietario\")+S825","v":0},null,null,"RES",{"$f":"+VLOOKUP(F825,TT_Tabelle_Riferimento!$D$127:$E$164,2,FALSE)","v":"Depurazione"},"",0]
[0,0,"Gestore",0,"IP",25,{"$f":"+VLOOKUP(F826,TT_Tabelle_Riferimento!$D$127:$G$164,4,FALSE)","v":"Gruppi di misura - altre attrezzature di depurazione"},1,{"$f":"+VLOOKUP(H826,TT_Tabelle_Riferimento!$F$3:$G$6,2,FALSE)","v":"Servizio idrico integrato"},2028,{"$f":"+SUMIFS('PdI-crono_inv'!BG:BG,'PdI-crono_inv'!CF:CF,F826,'PdI-crono_inv'!CE:CE,H826,'PdI-crono_inv'!J:J,P826,'PdI-crono_inv'!P:P,\"<>proprietario\")","v":0},null,{"$f":"+SUMIFS('PdI-crono_inv'!BH:BH,'PdI-crono_inv'!CF:CF,F826,'PdI-crono_inv'!CE:CE,H826,'PdI-crono_inv'!J:J,P826,'PdI-crono_inv'!P:P,\"<>proprietario\")+S826","v":0},null,null,"RES",{"$f":"+VLOOKUP(F826,TT_Tabelle_Riferimento!$D$127:$E$164,2,FALSE)","v":"Depurazione"},"",0]
[0,0,"Gestore",0,"IP",26,{"$f":"+VLOOKUP(F827,TT_Tabelle_Riferimento!$D$127:$G$164,4,FALSE)","v":"Sistemi informativi di depurazione"},1,{"$f":"+VLOOKUP(H827,TT_Tabelle_Riferimento!$F$3:$G$6,2,FALSE)","v":"Servizio idrico integrato"},2028,{"$f":"+SUMIFS('PdI-crono_inv'!BG:BG,'PdI-crono_inv'!CF:CF,F827,'PdI-crono_inv'!CE:CE,H827,'PdI-crono_inv'!J:J,P827,'PdI-crono_inv'!P:P,\"<>proprietario\")","v":0},null,{"$f":"+SUMIFS('PdI-crono_inv'!BH:BH,'PdI-crono_inv'!CF:CF,F827,'PdI-crono_inv'!CE:CE,H827,'PdI-crono_inv'!J:J,P827,'PdI-crono_inv'!P:P,\"<>proprietario\")+S827","v":0},null,null,"RES",{"$f":"+VLOOKUP(F827,TT_Tabelle_Riferimento!$D$127:$E$164,2,FALSE)","v":"Depurazione"},"",0]
[0,0,"Gestore",0,"IP",27,{"$f":"+VLOOKUP(F828,TT_Tabelle_Riferimento!$D$127:$G$164,4,FALSE)","v":"Telecontrollo e teletrasmissione di depurazione"},1,{"$f":"+VLOOKUP(H828,TT_Tabelle_Riferimento!$F$3:$G$6,2,FALSE)","v":"Servizio idrico integrato"},2028,{"$f":"+SUMIFS('PdI-crono_inv'!BG:BG,'PdI-crono_inv'!CF:CF,F828,'PdI-crono_inv'!CE:CE,H828,'PdI-crono_inv'!J:J,P828,'PdI-crono_inv'!P:P,\"<>proprietario\")","v":0},null,{"$f":"+SUMIFS('PdI-crono_inv'!BH:BH,'PdI-crono_inv'!CF:CF,F828,'PdI-crono_inv'!CE:CE,H828,'PdI-crono_inv'!J:J,P828,'PdI-crono_inv'!P:P,\"<>proprietario\")+S828","v":0},null,null,"RES",{"$f":"+VLOOKUP(F828,TT_Tabelle_Riferimento!$D$127:$E$164,2,FALSE)","v":"Depurazione"},"",0]
[0,0,"Gestore",0,"IP",28,{"$f":"+VLOOKUP(F829,TT_Tabelle_Riferimento!$D$127:$G$164,4,FALSE)","v":"Altri impianti"},1,{"$f":"+VLOOKUP(H829,TT_Tabelle_Riferimento!$F$3:$G$6,2,FALSE)","v":"Servizio idrico integrato"},2028,{"$f":"+SUMIFS('PdI-crono_inv'!BG:BG,'PdI-crono_inv'!CF:CF,F829,'PdI-crono_inv'!CE:CE,H829,'PdI-crono_inv'!J:J,P829,'PdI-crono_inv'!P:P,\"<>proprietario\")","v":0},null,{"$f":"+SUMIFS('PdI-crono_inv'!BH:BH,'PdI-crono_inv'!CF:CF,F829,'PdI-crono_inv'!CE:CE,H829,'PdI-crono_inv'!J:J,P829,'PdI-crono_inv'!P:P,\"<>proprietario\")+S829","v":0},null,null,"RES",{"$f":"+VLOOKUP(F829,TT_Tabelle_Riferimento!$D$127:$E$164,2,FALSE)","v":"Comune"},"",0]
[{"$f":"+idato","v":0},{"$f":"+idgestore","v":0},"Gestore",0,"IP",29,{"$f":"+VLOOKUP(F830,TT_Tabelle_Riferimento!$D$127:$G$164,4,FALSE)","v":"Laboratori e attrezzature"},1,{"$f":"+VLOOKUP(H830,TT_Tabelle_Riferimento!$F$3:$G$6,2,FALSE)","v":"Servizio idrico integrato"},2028,{"$f":"+SUMIFS('PdI-crono_inv'!BG:BG,'PdI-crono_inv'!CF:CF,F830,'PdI-crono_inv'!CE:CE,H830,'PdI-crono_inv'!J:J,P830,'PdI-crono_inv'!P:P,\"<>proprietario\")","v":0},null,{"$f":"+SUMIFS('PdI-crono_inv'!BH:BH,'PdI-crono_inv'!CF:CF,F830,'PdI-crono_inv'!CE:CE,H830,'PdI-crono_inv'!J:J,P830,'PdI-crono_inv'!P:P,\"<>proprietario\")+S830","v":0},null,null,"RES",{"$f":"+VLOOKUP(F830,TT_Tabelle_Riferimento!$D$127:$E$164,2,FALSE)","v":"Comune"},"",0]
[0,0,"Gestore",0,"IP",30,{"$f":"+VLOOKUP(F831,TT_Tabelle_Riferimento!$D$127:$G$164,4,FALSE)","v":"Sistemi informativi"},1,{"$f":"+VLOOKUP(H831,TT_Tabelle_Riferimento!$F$3:$G$6,2,FALSE)","v":"Servizio idrico integrato"},2028,{"$f":"+SUMIFS('PdI-crono_inv'!BG:BG,'PdI-crono_inv'!CF:CF,F831,'PdI-crono_inv'!CE:CE,H831,'PdI-crono_inv'!J:J,P831,'PdI-crono_inv'!P:P,\"<>proprietario\")","v":0},null,{"$f":"+SUMIFS('PdI-crono_inv'!BH:BH,'PdI-crono_inv'!CF:CF,F831,'PdI-crono_inv'!CE:CE,H831,'PdI-crono_inv'!J:J,P831,'PdI-crono_inv'!P:P,\"<>proprietario\")+S831","v":0},null,null,"RES",{"$f":"+VLOOKUP(F831,TT_Tabelle_Riferimento!$D$127:$E$164,2,FALSE)","v":"Comune"},"",0]
[0,0,"Gestore",0,"IP",31,{"$f":"+VLOOKUP(F832,TT_Tabelle_Riferimento!$D$127:$G$164,4,FALSE)","v":"Telecontrollo e teletrasmissione"},1,{"$f":"+VLOOKUP(H832,TT_Tabelle_Riferimento!$F$3:$G$6,2,FALSE)","v":"Servizio idrico integrato"},2028,{"$f":"+SUMIFS('PdI-crono_inv'!BG:BG,'PdI-crono_inv'!CF:CF,F832,'PdI-crono_inv'!CE:CE,H832,'PdI-crono_inv'!J:J,P832,'PdI-crono_inv'!P:P,\"<>proprietario\")","v":0},null,{"$f":"+SUMIFS('PdI-crono_inv'!BH:BH,'PdI-crono_inv'!CF:CF,F832,'PdI-crono_inv'!CE:CE,H832,'PdI-crono_inv'!J:J,P832,'PdI-crono_inv'!P:P,\"<>proprietario\")+S832","v":0},null,null,"RES",{"$f":"+VLOOKUP(F832,TT_Tabelle_Riferimento!$D$127:$E$164,2,FALSE)","v":"Comune"},"",0]
[0,0,"Gestore",0,"IP",32,{"$f":"+VLOOKUP(F833,TT_Tabelle_Riferimento!$D$127:$G$164,4,FALSE)","v":"Autoveicoli - automezzi"},1,{"$f":"+VLOOKUP(H833,TT_Tabelle_Riferimento!$F$3:$G$6,2,FALSE)","v":"Servizio idrico integrato"},2028,{"$f":"+SUMIFS('PdI-crono_inv'!BG:BG,'PdI-crono_inv'!CF:CF,F833,'PdI-crono_inv'!CE:CE,H833,'PdI-crono_inv'!J:J,P833,'PdI-crono_inv'!P:P,\"<>proprietario\")","v":0},null,{"$f":"+SUMIFS('PdI-crono_inv'!BH:BH,'PdI-crono_inv'!CF:CF,F833,'PdI-crono_inv'!CE:CE,H833,'PdI-crono_inv'!J:J,P833,'PdI-crono_inv'!P:P,\"<>proprietario\")+S833","v":0},null,null,"RES",{"$f":"+VLOOKUP(F833,TT_Tabelle_Riferimento!$D$127:$E$164,2,FALSE)","v":"Comune"},"",0]
[0,0,"Gestore",0,"IP",1,{"$f":"+VLOOKUP(F834,TT_Tabelle_Riferimento!$D$127:$G$164,4,FALSE)","v":"Terreni"},1,{"$f":"+VLOOKUP(H834,TT_Tabelle_Riferimento!$F$3:$G$6,2,FALSE)","v":"Servizio idrico integrato"},2028,{"$f":"+SUMIFS('PdI-crono_inv'!BG:BG,'PdI-crono_inv'!CF:CF,F834,'PdI-crono_inv'!CE:CE,H834,'PdI-crono_inv'!J:J,P834,'PdI-crono_inv'!P:P,\"<>proprietario\")","v":0},null,{"$f":"+SUMIFS('PdI-crono_inv'!BH:BH,'PdI-crono_inv'!CF:CF,F834,'PdI-crono_inv'!CE:CE,H834,'PdI-crono_inv'!J:J,P834,'PdI-crono_inv'!P:P,\"<>proprietario\")+S834","v":0},null,null,"RES",{"$f":"+VLOOKUP(F834,TT_Tabelle_Riferimento!$D$127:$E$164,2,FALSE)","v":"Comune"},"",0]
[0,0,"Gestore",0,"IP",33,{"$f":"+VLOOKUP(F835,TT_Tabelle_Riferimento!$D$127:$G$164,4,FALSE)","v":"Fabbricati non industriali"},1,{"$f":"+VLOOKUP(H835,TT_Tabelle_Riferimento!$F$3:$G$6,2,FALSE)","v":"Servizio idrico integrato"},2028,{"$f":"+SUMIFS('PdI-crono_inv'!BG:BG,'PdI-crono_inv'!CF:CF,F835,'PdI-crono_inv'!CE:CE,H835,'PdI-crono_inv'!J:J,P835,'PdI-crono_inv'!P:P,\"<>proprietario\")","v":0},null,{"$f":"+SUMIFS('PdI-crono_inv'!BH:BH,'PdI-crono_inv'!CF:CF,F835,'PdI-crono_inv'!CE:CE,H835,'PdI-crono_inv'!J:J,P835,'PdI-crono_inv'!P:P,\"<>proprietario\")+S835","v":0},null,null,"RES",{"$f":"+VLOOKUP(F835,TT_Tabelle_Riferimento!$D$127:$E$164,2,FALSE)","v":"Comune"},"",0]
[0,0,"Gestore",0,"IP",34,{"$f":"+VLOOKUP(F836,TT_Tabelle_Riferimento!$D$127:$G$164,4,FALSE)","v":"Fabbricati industriali"},1,{"$f":"+VLOOKUP(H836,TT_Tabelle_Riferimento!$F$3:$G$6,2,FALSE)","v":"Servizio idrico integrato"},2028,{"$f":"+SUMIFS('PdI-crono_inv'!BG:BG,'PdI-crono_inv'!CF:CF,F836,'PdI-crono_inv'!CE:CE,H836,'PdI-crono_inv'!J:J,P836,'PdI-crono_inv'!P:P,\"<>proprietario\")","v":0},null,{"$f":"+SUMIFS('PdI-crono_inv'!BH:BH,'PdI-crono_inv'!CF:CF,F836,'PdI-crono_inv'!CE:CE,H836,'PdI-crono_inv'!J:J,P836,'PdI-crono_inv'!P:P,\"<>proprietario\")+S836","v":0},null,null,"RES",{"$f":"+VLOOKUP(F836,TT_Tabelle_Riferimento!$D$127:$E$164,2,FALSE)","v":"Comune"},"",0]
[0,0,"Gestore",0,"IP",35,{"$f":"+VLOOKUP(F837,TT_Tabelle_Riferimento!$D$127:$G$164,4,FALSE)","v":"Costruzioni leggere"},1,{"$f":"+VLOOKUP(H837,TT_Tabelle_Riferimento!$F$3:$G$6,2,FALSE)","v":"Servizio idrico integrato"},2028,{"$f":"+SUMIFS('PdI-crono_inv'!BG:BG,'PdI-crono_inv'!CF:CF,F837,'PdI-crono_inv'!CE:CE,H837,'PdI-crono_inv'!J:J,P837,'PdI-crono_inv'!P:P,\"<>proprietario\")","v":0},null,{"$f":"+SUMIFS('PdI-crono_inv'!BH:BH,'PdI-crono_inv'!CF:CF,F837,'PdI-crono_inv'!CE:CE,H837,'PdI-crono_inv'!J:J,P837,'PdI-crono_inv'!P:P,\"<>proprietario\")+S837","v":0},null,null,"RES",{"$f":"+VLOOKUP(F837,TT_Tabelle_Riferimento!$D$127:$E$164,2,FALSE)","v":"Comune"},"",0]
[0,0,"Gestore",0,"IP",36,{"$f":"+VLOOKUP(F838,TT_Tabelle_Riferimento!$D$127:$G$164,4,FALSE)","v":"Studi, ricerche, brevetti, diritti di utilizzazione"},1,{"$f":"+VLOOKUP(H838,TT_Tabelle_Riferimento!$F$3:$G$6,2,FALSE)","v":"Servizio idrico integrato"},2028,{"$f":"+SUMIFS('PdI-crono_inv'!BG:BG,'PdI-crono_inv'!CF:CF,F838,'PdI-crono_inv'!CE:CE,H838,'PdI-crono_inv'!J:J,P838,'PdI-crono_inv'!P:P,\"<>proprietario\")","v":0},null,{"$f":"+SUMIFS('PdI-crono_inv'!BH:BH,'PdI-crono_inv'!CF:CF,F838,'PdI-crono_inv'!CE:CE,H838,'PdI-crono_inv'!J:J,P838,'PdI-crono_inv'!P:P,\"<>proprietario\")+S838","v":0},null,null,"RES",{"$f":"+VLOOKUP(F838,TT_Tabelle_Riferimento!$D$127:$E$164,2,FALSE)","v":"Comune"},"",0]
[0,0,"Gestore",0,"IP",37,{"$f":"+VLOOKUP(F839,TT_Tabelle_Riferimento!$D$127:$G$164,4,FALSE)","v":"Altre immobilizzazioni materiali e immateriali"},1,{"$f":"+VLOOKUP(H839,TT_Tabelle_Riferimento!$F$3:$G$6,2,FALSE)","v":"Servizio idrico integrato"},2028,{"$f":"+SUMIFS('PdI-crono_inv'!BG:BG,'PdI-crono_inv'!CF:CF,F839,'PdI-crono_inv'!CE:CE,H839,'PdI-crono_inv'!J:J,P839,'PdI-crono_inv'!P:P,\"<>proprietario\")","v":0},null,{"$f":"+SUMIFS('PdI-crono_inv'!BH:BH,'PdI-crono_inv'!CF:CF,F839,'PdI-crono_inv'!CE:CE,H839,'PdI-crono_inv'!J:J,P839,'PdI-crono_inv'!P:P,\"<>proprietario\")+S839","v":0},null,null,"RES",{"$f":"+VLOOKUP(F839,TT_Tabelle_Riferimento!$D$127:$E$164,2,FALSE)","v":"Comune"},"",{"$f":"+IFERROR(HLOOKUP(J839,$X$2:$Y$5,4,FALSE)*K839,0)","v":0}]
[0,0,"Gestore",0,"IP",38,{"$f":"+VLOOKUP(F840,TT_Tabelle_Riferimento!$D$127:$G$164,4,FALSE)","v":"Grandi dighe (sbarramenti che superano i quindici metri di altezza o che determinano un invaso superiore a 1 milione di metri cubi)"},1,{"$f":"+VLOOKUP(H840,TT_Tabelle_Riferimento!$F$3:$G$6,2,FALSE)","v":"Servizio idrico integrato"},2028,{"$f":"+SUMIFS('PdI-crono_inv'!BG:BG,'PdI-crono_inv'!CF:CF,F840,'PdI-crono_inv'!CE:CE,H840,'PdI-crono_inv'!J:J,P840,'PdI-crono_inv'!P:P,\"<>proprietario\")","v":0},null,{"$f":"+SUMIFS('PdI-crono_inv'!BH:BH,'PdI-crono_inv'!CF:CF,F840,'PdI-crono_inv'!CE:CE,H840,'PdI-crono_inv'!J:J,P840,'PdI-crono_inv'!P:P,\"<>proprietario\")+S840","v":0},null,null,"RES",{"$f":"+VLOOKUP(F840,TT_Tabelle_Riferimento!$D$127:$E$164,2,FALSE)","v":"Acquedotto"},"",0]
[0,0,"Gestore",0,"IP",39,{"$f":"+VLOOKUP(F841,TT_Tabelle_Riferimento!$D$127:$G$164,4,FALSE)","v":"Piccole dighe (sbarramenti che non superano i quindici metri di altezza o che determinano un invaso non superiore a 1 milione di metri cubi)"},1,{"$f":"+VLOOKUP(H841,TT_Tabelle_Riferimento!$F$3:$G$6,2,FALSE)","v":"Servizio idrico integrato"},2028,{"$f":"+SUMIFS('PdI-crono_inv'!BG:BG,'PdI-crono_inv'!CF:CF,F841,'PdI-crono_inv'!CE:CE,H841,'PdI-crono_inv'!J:J,P841,'PdI-crono_inv'!P:P,\"<>proprietario\")","v":0},null,{"$f":"+SUMIFS('PdI-crono_inv'!BH:BH,'PdI-crono_inv'!CF:CF,F841,'PdI-crono_inv'!CE:CE,H841,'PdI-crono_inv'!J:J,P841,'PdI-crono_inv'!P:P,\"<>proprietario\")+S841","v":0},null,null,"RES",{"$f":"+VLOOKUP(F841,TT_Tabelle_Riferimento!$D$127:$E$164,2,FALSE)","v":"Acquedotto"},"",0]
[{"$f":"+idato","v":0},{"$f":"+idgestore","v":0},"Gestore",0,"IP",2,{"$f":"+VLOOKUP(F842,TT_Tabelle_Riferimento!$D$127:$G$164,4,FALSE)","v":"Condotte di acquedotto"},2,{"$f":"+VLOOKUP(H842,TT_Tabelle_Riferimento!$F$3:$G$6,2,FALSE)","v":"Fognatura bianca e pulizia / manutenzione caditoie stradali"},2028,{"$f":"+SUMIFS('PdI-crono_inv'!BG:BG,'PdI-crono_inv'!CF:CF,F842,'PdI-crono_inv'!CE:CE,H842,'PdI-crono_inv'!J:J,P842,'PdI-crono_inv'!P:P,\"<>proprietario\")","v":0},null,{"$f":"+SUMIFS('PdI-crono_inv'!BH:BH,'PdI-crono_inv'!CF:CF,F842,'PdI-crono_inv'!CE:CE,H842,'PdI-crono_inv'!J:J,P842,'PdI-crono_inv'!P:P,\"<>proprietario\")+S842","v":0},null,null,"RES",{"$f":"+VLOOKUP(F842,TT_Tabelle_Riferimento!$D$127:$E$164,2,FALSE)","v":"Acquedotto"},"",0]
[0,0,"Gestore",0,"IP",3,{"$f":"+VLOOKUP(F843,TT_Tabelle_Riferimento!$D$127:$G$164,4,FALSE)","v":"Opere idrauliche fisse di acquedotto"},2,{"$f":"+VLOOKUP(H843,TT_Tabelle_Riferimento!$F$3:$G$6,2,FALSE)","v":"Fognatura bianca e pulizia / manutenzione caditoie stradali"},2028,{"$f":"+SUMIFS('PdI-crono_inv'!BG:BG,'PdI-crono_inv'!CF:CF,F843,'PdI-crono_inv'!CE:CE,H843,'PdI-crono_inv'!J:J,P843,'PdI-crono_inv'!P:P,\"<>proprietario\")","v":0},null,{"$f":"+SUMIFS('PdI-crono_inv'!BH:BH,'PdI-crono_inv'!CF:CF,F843,'PdI-crono_inv'!CE:CE,H843,'PdI-crono_inv'!J:J,P843,'PdI-crono_inv'!P:P,\"<>proprietario\")+S843","v":0},null,null,"RES",{"$f":"+VLOOKUP(F843,TT_Tabelle_Riferimento!$D$127:$E$164,2,FALSE)","v":"Acquedotto"},"",0]
[0,0,"Gestore",0,"IP",4,{"$f":"+VLOOKUP(F844,TT_Tabelle_Riferimento!$D$127:$G$164,4,FALSE)","v":"Serbatoi"},2,{"$f":"+VLOOKUP(H844,TT_Tabelle_Riferimento!$F$3:$G$6,2,FALSE)","v":"Fognatura bianca e pulizia / manutenzione caditoie stradali"},2028,{"$f":"+SUMIFS('PdI-crono_inv'!BG:BG,'PdI-crono_inv'!CF:CF,F844,'PdI-crono_inv'!CE:CE,H844,'PdI-crono_inv'!J:J,P844,'PdI-crono_inv'!P:P,\"<>proprietario\")","v":0},null,{"$f":"+SUMIFS('PdI-crono_inv'!BH:BH,'PdI-crono_inv'!CF:CF,F844,'PdI-crono_inv'!CE:CE,H844,'PdI-crono_inv'!J:J,P844,'PdI-crono_inv'!P:P,\"<>proprietario\")+S844","v":0},null,null,"RES",{"$f":"+VLOOKUP(F844,TT_Tabelle_Riferimento!$D$127:$E$164,2,FALSE)","v":"Acquedotto"},"",0]
[0,0,"Gestore",0,"IP",5,{"$f":"+VLOOKUP(F845,TT_Tabelle_Riferimento!$D$127:$G$164,4,FALSE)","v":"Impianti di sollevamento e pompaggio di acquedotto"},2,{"$f":"+VLOOKUP(H845,TT_Tabelle_Riferimento!$F$3:$G$6,2,FALSE)","v":"Fognatura bianca e pulizia / manutenzione caditoie stradali"},2028,{"$f":"+SUMIFS('PdI-crono_inv'!BG:BG,'PdI-crono_inv'!CF:CF,F845,'PdI-crono_inv'!CE:CE,H845,'PdI-crono_inv'!J:J,P845,'PdI-crono_inv'!P:P,\"<>proprietario\")","v":0},null,{"$f":"+SUMIFS('PdI-crono_inv'!BH:BH,'PdI-crono_inv'!CF:CF,F845,'PdI-crono_inv'!CE:CE,H845,'PdI-crono_inv'!J:J,P845,'PdI-crono_inv'!P:P,\"<>proprietario\")+S845","v":0},null,null,"RES",{"$f":"+VLOOKUP(F845,TT_Tabelle_Riferimento!$D$127:$E$164,2,FALSE)","v":"Acquedotto"},"",0]
[0,0,"Gestore",0,"IP",6,{"$f":"+VLOOKUP(F846,TT_Tabelle_Riferimento!$D$127:$G$164,4,FALSE)","v":"Impianti di potabilizzazione"},2,{"$f":"+VLOOKUP(H846,TT_Tabelle_Riferimento!$F$3:$G$6,2,FALSE)","v":"Fognatura bianca e pulizia / manutenzione caditoie stradali"},2028,{"$f":"+SUMIFS('PdI-crono_inv'!BG:BG,'PdI-crono_inv'!CF:CF,F846,'PdI-crono_inv'!CE:CE,H846,'PdI-crono_inv'!J:J,P846,'PdI-crono_inv'!P:P,\"<>proprietario\")","v":0},null,{"$f":"+SUMIFS('PdI-crono_inv'!BH:BH,'PdI-crono_inv'!CF:CF,F846,'PdI-crono_inv'!CE:CE,H846,'PdI-crono_inv'!J:J,P846,'PdI-crono_inv'!P:P,\"<>proprietario\")+S846","v":0},null,null,"RES",{"$f":"+VLOOKUP(F846,TT_Tabelle_Riferimento!$D$127:$E$164,2,FALSE)","v":"Acquedotto"},"",0]
[0,0,"Gestore",0,"IP",7,{"$f":"+VLOOKUP(F847,TT_Tabelle_Riferimento!$D$127:$G$164,4,FALSE)","v":"Altri trattamenti di potabilizzazione (tra cui dispositivi di disinfezione, stacciatura, filtrazione, addolcimento)"},2,{"$f":"+VLOOKUP(H847,TT_Tabelle_Riferimento!$F$3:$G$6,2,FALSE)","v":"Fognatura bianca e pulizia / manutenzione caditoie stradali"},2028,{"$f":"+SUMIFS('PdI-crono_inv'!BG:BG,'PdI-crono_inv'!CF:CF,F847,'PdI-crono_inv'!CE:CE,H847,'PdI-crono_inv'!J:J,P847,'PdI-crono_inv'!P:P,\"<>proprietario\")","v":0},null,{"$f":"+SUMIFS('PdI-crono_inv'!BH:BH,'PdI-crono_inv'!CF:CF,F847,'PdI-crono_inv'!CE:CE,H847,'PdI-crono_inv'!J:J,P847,'PdI-crono_inv'!P:P,\"<>proprietario\")+S847","v":0},null,null,"RES",{"$f":"+VLOOKUP(F847,TT_Tabelle_Riferimento!$D$127:$E$164,2,FALSE)","v":"Acquedotto"},"",0]
[0,0,"Gestore",0,"IP",8,{"$f":"+VLOOKUP(F848,TT_Tabelle_Riferimento!$D$127:$G$164,4,FALSE)","v":"Gruppi di misura - altre attrezzature di acquedotto"},2,{"$f":"+VLOOKUP(H848,TT_Tabelle_Riferimento!$F$3:$G$6,2,FALSE)","v":"Fognatura bianca e pulizia / manutenzione caditoie stradali"},2028,{"$f":"+SUMIFS('PdI-crono_inv'!BG:BG,'PdI-crono_inv'!CF:CF,F848,'PdI-crono_inv'!CE:CE,H848,'PdI-crono_inv'!J:J,P848,'PdI-crono_inv'!P:P,\"<>proprietario\")","v":0},null,{"$f":"+SUMIFS('PdI-crono_inv'!BH:BH,'PdI-crono_inv'!CF:CF,F848,'PdI-crono_inv'!CE:CE,H848,'PdI-crono_inv'!J:J,P848,'PdI-crono_inv'!P:P,\"<>proprietario\")+S848","v":0},null,null,"RES",{"$f":"+VLOOKUP(F848,TT_Tabelle_Riferimento!$D$127:$E$164,2,FALSE)","v":"Acquedotto"},"",0]
[0,0,"Gestore",0,"IP",9,{"$f":"+VLOOKUP(F849,TT_Tabelle_Riferimento!$D$127:$G$164,4,FALSE)","v":"Sistemi informativi di acquedotto"},2,{"$f":"+VLOOKUP(H849,TT_Tabelle_Riferimento!$F$3:$G$6,2,FALSE)","v":"Fognatura bianca e pulizia / manutenzione caditoie stradali"},2028,{"$f":"+SUMIFS('PdI-crono_inv'!BG:BG,'PdI-crono_inv'!CF:CF,F849,'PdI-crono_inv'!CE:CE,H849,'PdI-crono_inv'!J:J,P849,'PdI-crono_inv'!P:P,\"<>proprietario\")","v":0},null,{"$f":"+SUMIFS('PdI-crono_inv'!BH:BH,'PdI-crono_inv'!CF:CF,F849,'PdI-crono_inv'!CE:CE,H849,'PdI-crono_inv'!J:J,P849,'PdI-crono_inv'!P:P,\"<>proprietario\")+S849","v":0},null,null,"RES",{"$f":"+VLOOKUP(F849,TT_Tabelle_Riferimento!$D$127:$E$164,2,FALSE)","v":"Acquedotto"},"",0]
[0,0,"Gestore",0,"IP",10,{"$f":"+VLOOKUP(F850,TT_Tabelle_Riferimento!$D$127:$G$164,4,FALSE)","v":"Telecontrollo e teletrasmissione di acquedotto"},2,{"$f":"+VLOOKUP(H850,TT_Tabelle_Riferimento!$F$3:$G$6,2,FALSE)","v":"Fognatura bianca e pulizia / manutenzione caditoie stradali"},2028,{"$f":"+SUMIFS('PdI-crono_inv'!BG:BG,'PdI-crono_inv'!CF:CF,F850,'PdI-crono_inv'!CE:CE,H850,'PdI-crono_inv'!J:J,P850,'PdI-crono_inv'!P:P,\"<>proprietario\")","v":0},null,{"$f":"+SUMIFS('PdI-crono_inv'!BH:BH,'PdI-crono_inv'!CF:CF,F850,'PdI-crono_inv'!CE:CE,H850,'PdI-crono_inv'!J:J,P850,'PdI-crono_inv'!P:P,\"<>proprietario\")+S850","v":0},null,null,"RES",{"$f":"+VLOOKUP(F850,TT_Tabelle_Riferimento!$D$127:$E$164,2,FALSE)","v":"Acquedotto"},"",0]
[0,0,"Gestore",0,"IP",11,{"$f":"+VLOOKUP(F851,TT_Tabelle_Riferimento!$D$127:$G$164,4,FALSE)","v":"Condotte fognarie"},2,{"$f":"+VLOOKUP(H851,TT_Tabelle_Riferimento!$F$3:$G$6,2,FALSE)","v":"Fognatura bianca e pulizia / manutenzione caditoie stradali"},2028,{"$f":"+SUMIFS('PdI-crono_inv'!BG:BG,'PdI-crono_inv'!CF:CF,F851,'PdI-crono_inv'!CE:CE,H851,'PdI-crono_inv'!J:J,P851,'PdI-crono_inv'!P:P,\"<>proprietario\")","v":0},null,{"$f":"+SUMIFS('PdI-crono_inv'!BH:BH,'PdI-crono_inv'!CF:CF,F851,'PdI-crono_inv'!CE:CE,H851,'PdI-crono_inv'!J:J,P851,'PdI-crono_inv'!P:P,\"<>proprietario\")+S851","v":0},null,null,"RES",{"$f":"+VLOOKUP(F851,TT_Tabelle_Riferimento!$D$127:$E$164,2,FALSE)","v":"Fognatura"},"",0]
[0,0,"Gestore",0,"IP",12,{"$f":"+VLOOKUP(F852,TT_Tabelle_Riferimento!$D$127:$G$164,4,FALSE)","v":"Sifoni e scaricatori di piena e altre opere idrauliche fisse di fognatura"},2,{"$f":"+VLOOKUP(H852,TT_Tabelle_Riferimento!$F$3:$G$6,2,FALSE)","v":"Fognatura bianca e pulizia / manutenzione caditoie stradali"},2028,{"$f":"+SUMIFS('PdI-crono_inv'!BG:BG,'PdI-crono_inv'!CF:CF,F852,'PdI-crono_inv'!CE:CE,H852,'PdI-crono_inv'!J:J,P852,'PdI-crono_inv'!P:P,\"<>proprietario\")","v":0},null,{"$f":"+SUMIFS('PdI-crono_inv'!BH:BH,'PdI-crono_inv'!CF:CF,F852,'PdI-crono_inv'!CE:CE,H852,'PdI-crono_inv'!J:J,P852,'PdI-crono_inv'!P:P,\"<>proprietario\")+S852","v":0},null,null,"RES",{"$f":"+VLOOKUP(F852,TT_Tabelle_Riferimento!$D$127:$E$164,2,FALSE)","v":"Fognatura"},"",0]
[0,0,"Gestore",0,"IP",13,{"$f":"+VLOOKUP(F853,TT_Tabelle_Riferimento!$D$127:$G$164,4,FALSE)","v":"Vasche di laminazione e vasche di prima pioggia"},2,{"$f":"+VLOOKUP(H853,TT_Tabelle_Riferimento!$F$3:$G$6,2,FALSE)","v":"Fognatura bianca e pulizia / manutenzione caditoie stradali"},2028,{"$f":"+SUMIFS('PdI-crono_inv'!BG:BG,'PdI-crono_inv'!CF:CF,F853,'PdI-crono_inv'!CE:CE,H853,'PdI-crono_inv'!J:J,P853,'PdI-crono_inv'!P:P,\"<>proprietario\")","v":0},null,{"$f":"+SUMIFS('PdI-crono_inv'!BH:BH,'PdI-crono_inv'!CF:CF,F853,'PdI-crono_inv'!CE:CE,H853,'PdI-crono_inv'!J:J,P853,'PdI-crono_inv'!P:P,\"<>proprietario\")+S853","v":0},null,null,"RES",{"$f":"+VLOOKUP(F853,TT_Tabelle_Riferimento!$D$127:$E$164,2,FALSE)","v":"Fognatura"},"",0]
[0,0,"Gestore",0,"IP",14,{"$f":"+VLOOKUP(F854,TT_Tabelle_Riferimento!$D$127:$G$164,4,FALSE)","v":"Impianti di sollevamento e pompaggio di fognatura"},2,{"$f":"+VLOOKUP(H854,TT_Tabelle_Riferimento!$F$3:$G$6,2,FALSE)","v":"Fognatura bianca e pulizia / manutenzione caditoie stradali"},2028,{"$f":"+SUMIFS('PdI-crono_inv'!BG:BG,'PdI-crono_inv'!CF:CF,F854,'PdI-crono_inv'!CE:CE,H854,'PdI-crono_inv'!J:J,P854,'PdI-crono_inv'!P:P,\"<>proprietario\")","v":0},null,{"$f":"+SUMIFS('PdI-crono_inv'!BH:BH,'PdI-crono_inv'!CF:CF,F854,'PdI-crono_inv'!CE:CE,H854,'PdI-crono_inv'!J:J,P854,'PdI-crono_inv'!P:P,\"<>proprietario\")+S854","v":0},null,null,"RES",{"$f":"+VLOOKUP(F854,TT_Tabelle_Riferimento!$D$127:$E$164,2,FALSE)","v":"Fognatura"},"",0]
[0,0,"Gestore",0,"IP",15,{"$f":"+VLOOKUP(F855,TT_Tabelle_Riferimento!$D$127:$G$164,4,FALSE)","v":"Gruppi di misura - altre attrezzature di fognatura"},2,{"$f":"+VLOOKUP(H855,TT_Tabelle_Riferimento!$F$3:$G$6,2,FALSE)","v":"Fognatura bianca e pulizia / manutenzione caditoie stradali"},2028,{"$f":"+SUMIFS('PdI-crono_inv'!BG:BG,'PdI-crono_inv'!CF:CF,F855,'PdI-crono_inv'!CE:CE,H855,'PdI-crono_inv'!J:J,P855,'PdI-crono_inv'!P:P,\"<>proprietario\")","v":0},null,{"$f":"+SUMIFS('PdI-crono_inv'!BH:BH,'PdI-crono_inv'!CF:CF,F855,'PdI-crono_inv'!CE:CE,H855,'PdI-crono_inv'!J:J,P855,'PdI-crono_inv'!P:P,\"<>proprietario\")+S855","v":0},null,null,"RES",{"$f":"+VLOOKUP(F855,TT_Tabelle_Riferimento!$D$127:$E$164,2,FALSE)","v":"Fognatura"},"",0]
[0,0,"Gestore",0,"IP",16,{"$f":"+VLOOKUP(F856,TT_Tabelle_Riferimento!$D$127:$G$164,4,FALSE)","v":"Sistemi informativi di fognatura"},2,{"$f":"+VLOOKUP(H856,TT_Tabelle_Riferimento!$F$3:$G$6,2,FALSE)","v":"Fognatura bianca e pulizia / manutenzione caditoie stradali"},2028,{"$f":"+SUMIFS('PdI-crono_inv'!BG:BG,'PdI-crono_inv'!CF:CF,F856,'PdI-crono_inv'!CE:CE,H856,'PdI-crono_inv'!J:J,P856,'PdI-crono_inv'!P:P,\"<>proprietario\")","v":0},null,{"$f":"+SUMIFS('PdI-crono_inv'!BH:BH,'PdI-crono_inv'!CF:CF,F856,'PdI-crono_inv'!CE:CE,H856,'PdI-crono_inv'!J:J,P856,'PdI-crono_inv'!P:P,\"<>proprietario\")+S856","v":0},null,null,"RES",{"$f":"+VLOOKUP(F856,TT_Tabelle_Riferimento!$D$127:$E$164,2,FALSE)","v":"Fognatura"},{"$f":"+IF(SUM(K856:N856)=0,\"\",\"PdI_consolidamento\")","v":""},0]
[0,0,"Gestore",0,"IP",18,{"$f":"+VLOOKUP(F857,TT_Tabelle_Riferimento!$D$127:$G$164,4,FALSE)","v":"Telecontrollo e teletrasmissione di fognatura"},2,{"$f":"+VLOOKUP(H857,TT_Tabelle_Riferimento!$F$3:$G$6,2,FALSE)","v":"Fognatura bianca e pulizia / manutenzione caditoie stradali"},2028,{"$f":"+SUMIFS('PdI-crono_inv'!BG:BG,'PdI-crono_inv'!CF:CF,F857,'PdI-crono_inv'!CE:CE,H857,'PdI-crono_inv'!J:J,P857,'PdI-crono_inv'!P:P,\"<>proprietario\")","v":0},null,{"$f":"+SUMIFS('PdI-crono_inv'!BH:BH,'PdI-crono_inv'!CF:CF,F857,'PdI-crono_inv'!CE:CE,H857,'PdI-crono_inv'!J:J,P857,'PdI-crono_inv'!P:P,\"<>proprietario\")+S857","v":0},null,null,"RES",{"$f":"+VLOOKUP(F857,TT_Tabelle_Riferimento!$D$127:$E$164,2,FALSE)","v":"Fognatura"},"",0]
[0,0,"Gestore",0,"IP",19,{"$f":"+VLOOKUP(F858,TT_Tabelle_Riferimento!$D$127:$G$164,4,FALSE)","v":"Impianti di sollevamento e pompaggio di depurazione"},2,{"$f":"+VLOOKUP(H858,TT_Tabelle_Riferimento!$F$3:$G$6,2,FALSE)","v":"Fognatura bianca e pulizia / manutenzione caditoie stradali"},2028,{"$f":"+SUMIFS('PdI-crono_inv'!BG:BG,'PdI-crono_inv'!CF:CF,F858,'PdI-crono_inv'!CE:CE,H858,'PdI-crono_inv'!J:J,P858,'PdI-crono_inv'!P:P,\"<>proprietario\")","v":0},null,{"$f":"+SUMIFS('PdI-crono_inv'!BH:BH,'PdI-crono_inv'!CF:CF,F858,'PdI-crono_inv'!CE:CE,H858,'PdI-crono_inv'!J:J,P858,'PdI-crono_inv'!P:P,\"<>proprietario\")+S858","v":0},null,null,"RES",{"$f":"+VLOOKUP(F858,TT_Tabelle_Riferimento!$D$127:$E$164,2,FALSE)","v":"Depurazione"},"",0]
[0,0,"Gestore",0,"IP",20,{"$f":"+VLOOKUP(F859,TT_Tabelle_Riferimento!$D$127:$G$164,4,FALSE)","v":"Tecniche naturali di depurazione (tra cui fitodepurazione e lagunaggio)"},2,{"$f":"+VLOOKUP(H859,TT_Tabelle_Riferimento!$F$3:$G$6,2,FALSE)","v":"Fognatura bianca e pulizia / manutenzione caditoie stradali"},2028,{"$f":"+SUMIFS('PdI-crono_inv'!BG:BG,'PdI-crono_inv'!CF:CF,F859,'PdI-crono_inv'!CE:CE,H859,'PdI-crono_inv'!J:J,P859,'PdI-crono_inv'!P:P,\"<>proprietario\")","v":0},null,{"$f":"+SUMIFS('PdI-crono_inv'!BH:BH,'PdI-crono_inv'!CF:CF,F859,'PdI-crono_inv'!CE:CE,H859,'PdI-crono_inv'!J:J,P859,'PdI-crono_inv'!P:P,\"<>proprietario\")+S859","v":0},null,null,"RES",{"$f":"+VLOOKUP(F859,TT_Tabelle_Riferimento!$D$127:$E$164,2,FALSE)","v":"Depurazione"},"",0]
[0,0,"Gestore",0,"IP",21,{"$f":"+VLOOKUP(F860,TT_Tabelle_Riferimento!$D$127:$G$164,4,FALSE)","v":"Impianti di depurazione – trattamenti sino al preliminare, integrativo, primario - fosse settiche e fosse Imhoff"},2,{"$f":"+VLOOKUP(H860,TT_Tabelle_Riferimento!$F$3:$G$6,2,FALSE)","v":"Fognatura bianca e pulizia / manutenzione caditoie stradali"},2028,{"$f":"+SUMIFS('PdI-crono_inv'!BG:BG,'PdI-crono_inv'!CF:CF,F860,'PdI-crono_inv'!CE:CE,H860,'PdI-crono_inv'!J:J,P860,'PdI-crono_inv'!P:P,\"<>proprietario\")","v":0},null,{"$f":"+SUMIFS('PdI-crono_inv'!BH:BH,'PdI-crono_inv'!CF:CF,F860,'PdI-crono_inv'!CE:CE,H860,'PdI-crono_inv'!J:J,P860,'PdI-crono_inv'!P:P,\"<>proprietario\")+S860","v":0},null,null,"RES",{"$f":"+VLOOKUP(F860,TT_Tabelle_Riferimento!$D$127:$E$164,2,FALSE)","v":"Depurazione"},"",0]
[0,0,"Gestore",0,"IP",22,{"$f":"+VLOOKUP(F861,TT_Tabelle_Riferimento!$D$127:$G$164,4,FALSE)","v":"Impianti di depurazione – trattamenti sino al secondario"},2,{"$f":"+VLOOKUP(H861,TT_Tabelle_Riferimento!$F$3:$G$6,2,FALSE)","v":"Fognatura bianca e pulizia / manutenzione caditoie stradali"},2028,{"$f":"+SUMIFS('PdI-crono_inv'!BG:BG,'PdI-crono_inv'!CF:CF,F861,'PdI-crono_inv'!CE:CE,H861,'PdI-crono_inv'!J:J,P861,'PdI-crono_inv'!P:P,\"<>proprietario\")","v":0},null,{"$f":"+SUMIFS('PdI-crono_inv'!BH:BH,'PdI-crono_inv'!CF:CF,F861,'PdI-crono_inv'!CE:CE,H861,'PdI-crono_inv'!J:J,P861,'PdI-crono_inv'!P:P,\"<>proprietario\")+S861","v":0},null,null,"RES",{"$f":"+VLOOKUP(F861,TT_Tabelle_Riferimento!$D$127:$E$164,2,FALSE)","v":"Depurazione"},"",0]
[0,0,"Gestore",0,"IP",23,{"$f":"+VLOOKUP(F862,TT_Tabelle_Riferimento!$D$127:$G$164,4,FALSE)","v":"Impianti di depurazione – trattamenti sino al terziario e terziario avanzato"},2,{"$f":"+VLOOKUP(H862,TT_Tabelle_Riferimento!$F$3:$G$6,2,FALSE)","v":"Fognatura bianca e pulizia / manutenzione caditoie stradali"},2028,{"$f":"+SUMIFS('PdI-crono_inv'!BG:BG,'PdI-crono_inv'!CF:CF,F862,'PdI-crono_inv'!CE:CE,H862,'PdI-crono_inv'!J:J,P862,'PdI-crono_inv'!P:P,\"<>proprietario\")","v":0},null,{"$f":"+SUMIFS('PdI-crono_inv'!BH:BH,'PdI-crono_inv'!CF:CF,F862,'PdI-crono_inv'!CE:CE,H862,'PdI-crono_inv'!J:J,P862,'PdI-crono_inv'!P:P,\"<>proprietario\")+S862","v":0},null,null,"RES",{"$f":"+VLOOKUP(F862,TT_Tabelle_Riferimento!$D$127:$E$164,2,FALSE)","v":"Depurazione"},"",0]
[0,0,"Gestore",0,"IP",24,{"$f":"+VLOOKUP(F863,TT_Tabelle_Riferimento!$D$127:$G$164,4,FALSE)","v":"Impianti di essiccamento fanghi e di valorizzazione dei fanghi (tra cui mono-incenerimento, pirolisi, gassificazione)"},2,{"$f":"+VLOOKUP(H863,TT_Tabelle_Riferimento!$F$3:$G$6,2,FALSE)","v":"Fognatura bianca e pulizia / manutenzione caditoie stradali"},2028,{"$f":"+SUMIFS('PdI-crono_inv'!BG:BG,'PdI-crono_inv'!CF:CF,F863,'PdI-crono_inv'!CE:CE,H863,'PdI-crono_inv'!J:J,P863,'PdI-crono_inv'!P:P,\"<>proprietario\")","v":0},null,{"$f":"+SUMIFS('PdI-crono_inv'!BH:BH,'PdI-crono_inv'!CF:CF,F863,'PdI-crono_inv'!CE:CE,H863,'PdI-crono_inv'!J:J,P863,'PdI-crono_inv'!P:P,\"<>proprietario\")+S863","v":0},null,null,"RES",{"$f":"+VLOOKUP(F863,TT_Tabelle_Riferimento!$D$127:$E$164,2,FALSE)","v":"Depurazione"},"",0]
[0,0,"Gestore",0,"IP",25,{"$f":"+VLOOKUP(F864,TT_Tabelle_Riferimento!$D$127:$G$164,4,FALSE)","v":"Gruppi di misura - altre attrezzature di depurazione"},2,{"$f":"+VLOOKUP(H864,TT_Tabelle_Riferimento!$F$3:$G$6,2,FALSE)","v":"Fognatura bianca e pulizia / manutenzione caditoie stradali"},2028,{"$f":"+SUMIFS('PdI-crono_inv'!BG:BG,'PdI-crono_inv'!CF:CF,F864,'PdI-crono_inv'!CE:CE,H864,'PdI-crono_inv'!J:J,P864,'PdI-crono_inv'!P:P,\"<>proprietario\")","v":0},null,{"$f":"+SUMIFS('PdI-crono_inv'!BH:BH,'PdI-crono_inv'!CF:CF,F864,'PdI-crono_inv'!CE:CE,H864,'PdI-crono_inv'!J:J,P864,'PdI-crono_inv'!P:P,\"<>proprietario\")+S864","v":0},null,null,"RES",{"$f":"+VLOOKUP(F864,TT_Tabelle_Riferimento!$D$127:$E$164,2,FALSE)","v":"Depurazione"},"",0]
[0,0,"Gestore",0,"IP",26,{"$f":"+VLOOKUP(F865,TT_Tabelle_Riferimento!$D$127:$G$164,4,FALSE)","v":"Sistemi informativi di depurazione"},2,{"$f":"+VLOOKUP(H865,TT_Tabelle_Riferimento!$F$3:$G$6,2,FALSE)","v":"Fognatura bianca e pulizia / manutenzione caditoie stradali"},2028,{"$f":"+SUMIFS('PdI-crono_inv'!BG:BG,'PdI-crono_inv'!CF:CF,F865,'PdI-crono_inv'!CE:CE,H865,'PdI-crono_inv'!J:J,P865,'PdI-crono_inv'!P:P,\"<>proprietario\")","v":0},null,{"$f":"+SUMIFS('PdI-crono_inv'!BH:BH,'PdI-crono_inv'!CF:CF,F865,'PdI-crono_inv'!CE:CE,H865,'PdI-crono_inv'!J:J,P865,'PdI-crono_inv'!P:P,\"<>proprietario\")+S865","v":0},null,null,"RES",{"$f":"+VLOOKUP(F865,TT_Tabelle_Riferimento!$D$127:$E$164,2,FALSE)","v":"Depurazione"},"",0]
[0,0,"Gestore",0,"IP",27,{"$f":"+VLOOKUP(F866,TT_Tabelle_Riferimento!$D$127:$G$164,4,FALSE)","v":"Telecontrollo e teletrasmissione di depurazione"},2,{"$f":"+VLOOKUP(H866,TT_Tabelle_Riferimento!$F$3:$G$6,2,FALSE)","v":"Fognatura bianca e pulizia / manutenzione caditoie stradali"},2028,{"$f":"+SUMIFS('PdI-crono_inv'!BG:BG,'PdI-crono_inv'!CF:CF,F866,'PdI-crono_inv'!CE:CE,H866,'PdI-crono_inv'!J:J,P866,'PdI-crono_inv'!P:P,\"<>proprietario\")","v":0},null,{"$f":"+SUMIFS('PdI-crono_inv'!BH:BH,'PdI-crono_inv'!CF:CF,F866,'PdI-crono_inv'!CE:CE,H866,'PdI-crono_inv'!J:J,P866,'PdI-crono_inv'!P:P,\"<>proprietario\")+S866","v":0},null,null,"RES",{"$f":"+VLOOKUP(F866,TT_Tabelle_Riferimento!$D$127:$E$164,2,FALSE)","v":"Depurazione"},"",0]
[0,0,"Gestore",0,"IP",28,{"$f":"+VLOOKUP(F867,TT_Tabelle_Riferimento!$D$127:$G$164,4,FALSE)","v":"Altri impianti"},2,{"$f":"+VLOOKUP(H867,TT_Tabelle_Riferimento!$F$3:$G$6,2,FALSE)","v":"Fognatura bianca e pulizia / manutenzione caditoie stradali"},2028,{"$f":"+SUMIFS('PdI-crono_inv'!BG:BG,'PdI-crono_inv'!CF:CF,F867,'PdI-crono_inv'!CE:CE,H867,'PdI-crono_inv'!J:J,P867,'PdI-crono_inv'!P:P,\"<>proprietario\")","v":0},null,{"$f":"+SUMIFS('PdI-crono_inv'!BH:BH,'PdI-crono_inv'!CF:CF,F867,'PdI-crono_inv'!CE:CE,H867,'PdI-crono_inv'!J:J,P867,'PdI-crono_inv'!P:P,\"<>proprietario\")+S867","v":0},null,null,"RES",{"$f":"+VLOOKUP(F867,TT_Tabelle_Riferimento!$D$127:$E$164,2,FALSE)","v":"Comune"},"",0]
[0,0,"Gestore",0,"IP",29,{"$f":"+VLOOKUP(F868,TT_Tabelle_Riferimento!$D$127:$G$164,4,FALSE)","v":"Laboratori e attrezzature"},2,{"$f":"+VLOOKUP(H868,TT_Tabelle_Riferimento!$F$3:$G$6,2,FALSE)","v":"Fognatura bianca e pulizia / manutenzione caditoie stradali"},2028,{"$f":"+SUMIFS('PdI-crono_inv'!BG:BG,'PdI-crono_inv'!CF:CF,F868,'PdI-crono_inv'!CE:CE,H868,'PdI-crono_inv'!J:J,P868,'PdI-crono_inv'!P:P,\"<>proprietario\")","v":0},null,{"$f":"+SUMIFS('PdI-crono_inv'!BH:BH,'PdI-crono_inv'!CF:CF,F868,'PdI-crono_inv'!CE:CE,H868,'PdI-crono_inv'!J:J,P868,'PdI-crono_inv'!P:P,\"<>proprietario\")+S868","v":0},null,null,"RES",{"$f":"+VLOOKUP(F868,TT_Tabelle_Riferimento!$D$127:$E$164,2,FALSE)","v":"Comune"},"",0]
[0,0,"Gestore",0,"IP",30,{"$f":"+VLOOKUP(F869,TT_Tabelle_Riferimento!$D$127:$G$164,4,FALSE)","v":"Sistemi informativi"},2,{"$f":"+VLOOKUP(H869,TT_Tabelle_Riferimento!$F$3:$G$6,2,FALSE)","v":"Fognatura bianca e pulizia / manutenzione caditoie stradali"},2028,{"$f":"+SUMIFS('PdI-crono_inv'!BG:BG,'PdI-crono_inv'!CF:CF,F869,'PdI-crono_inv'!CE:CE,H869,'PdI-crono_inv'!J:J,P869,'PdI-crono_inv'!P:P,\"<>proprietario\")","v":0},null,{"$f":"+SUMIFS('PdI-crono_inv'!BH:BH,'PdI-crono_inv'!CF:CF,F869,'PdI-crono_inv'!CE:CE,H869,'PdI-crono_inv'!J:J,P869,'PdI-crono_inv'!P:P,\"<>proprietario\")+S869","v":0},null,null,"RES",{"$f":"+VLOOKUP(F869,TT_Tabelle_Riferimento!$D$127:$E$164,2,FALSE)","v":"Comune"},"",0]
[0,0,"Gestore",0,"IP",31,{"$f":"+VLOOKUP(F870,TT_Tabelle_Riferimento!$D$127:$G$164,4,FALSE)","v":"Telecontrollo e teletrasmissione"},2,{"$f":"+VLOOKUP(H870,TT_Tabelle_Riferimento!$F$3:$G$6,2,FALSE)","v":"Fognatura bianca e pulizia / manutenzione caditoie stradali"},2028,{"$f":"+SUMIFS('PdI-crono_inv'!BG:BG,'PdI-crono_inv'!CF:CF,F870,'PdI-crono_inv'!CE:CE,H870,'PdI-crono_inv'!J:J,P870,'PdI-crono_inv'!P:P,\"<>proprietario\")","v":0},null,{"$f":"+SUMIFS('PdI-crono_inv'!BH:BH,'PdI-crono_inv'!CF:CF,F870,'PdI-crono_inv'!CE:CE,H870,'PdI-crono_inv'!J:J,P870,'PdI-crono_inv'!P:P,\"<>proprietario\")+S870","v":0},null,null,"RES",{"$f":"+VLOOKUP(F870,TT_Tabelle_Riferimento!$D$127:$E$164,2,FALSE)","v":"Comune"},"",0]
[0,0,"Gestore",0,"IP",32,{"$f":"+VLOOKUP(F871,TT_Tabelle_Riferimento!$D$127:$G$164,4,FALSE)","v":"Autoveicoli - automezzi"},2,{"$f":"+VLOOKUP(H871,TT_Tabelle_Riferimento!$F$3:$G$6,2,FALSE)","v":"Fognatura bianca e pulizia / manutenzione caditoie stradali"},2028,{"$f":"+SUMIFS('PdI-crono_inv'!BG:BG,'PdI-crono_inv'!CF:CF,F871,'PdI-crono_inv'!CE:CE,H871,'PdI-crono_inv'!J:J,P871,'PdI-crono_inv'!P:P,\"<>proprietario\")","v":0},null,{"$f":"+SUMIFS('PdI-crono_inv'!BH:BH,'PdI-crono_inv'!CF:CF,F871,'PdI-crono_inv'!CE:CE,H871,'PdI-crono_inv'!J:J,P871,'PdI-crono_inv'!P:P,\"<>proprietario\")+S871","v":0},null,null,"RES",{"$f":"+VLOOKUP(F871,TT_Tabelle_Riferimento!$D$127:$E$164,2,FALSE)","v":"Comune"},"",0]
[0,0,"Gestore",0,"IP",1,{"$f":"+VLOOKUP(F872,TT_Tabelle_Riferimento!$D$127:$G$164,4,FALSE)","v":"Terreni"},2,{"$f":"+VLOOKUP(H872,TT_Tabelle_Riferimento!$F$3:$G$6,2,FALSE)","v":"Fognatura bianca e pulizia / manutenzione caditoie stradali"},2028,{"$f":"+SUMIFS('PdI-crono_inv'!BG:BG,'PdI-crono_inv'!CF:CF,F872,'PdI-crono_inv'!CE:CE,H872,'PdI-crono_inv'!J:J,P872,'PdI-crono_inv'!P:P,\"<>proprietario\")","v":0},null,{"$f":"+SUMIFS('PdI-crono_inv'!BH:BH,'PdI-crono_inv'!CF:CF,F872,'PdI-crono_inv'!CE:CE,H872,'PdI-crono_inv'!J:J,P872,'PdI-crono_inv'!P:P,\"<>proprietario\")+S872","v":0},null,null,"RES",{"$f":"+VLOOKUP(F872,TT_Tabelle_Riferimento!$D$127:$E$164,2,FALSE)","v":"Comune"},"",0]
[0,0,"Gestore",0,"IP",33,{"$f":"+VLOOKUP(F873,TT_Tabelle_Riferimento!$D$127:$G$164,4,FALSE)","v":"Fabbricati non industriali"},2,{"$f":"+VLOOKUP(H873,TT_Tabelle_Riferimento!$F$3:$G$6,2,FALSE)","v":"Fognatura bianca e pulizia / manutenzione caditoie stradali"},2028,{"$f":"+SUMIFS('PdI-crono_inv'!BG:BG,'PdI-crono_inv'!CF:CF,F873,'PdI-crono_inv'!CE:CE,H873,'PdI-crono_inv'!J:J,P873,'PdI-crono_inv'!P:P,\"<>proprietario\")","v":0},null,{"$f":"+SUMIFS('PdI-crono_inv'!BH:BH,'PdI-crono_inv'!CF:CF,F873,'PdI-crono_inv'!CE:CE,H873,'PdI-crono_inv'!J:J,P873,'PdI-crono_inv'!P:P,\"<>proprietario\")+S873","v":0},null,null,"RES",{"$f":"+VLOOKUP(F873,TT_Tabelle_Riferimento!$D$127:$E$164,2,FALSE)","v":"Comune"},"",0]
[0,0,"Gestore",0,"IP",34,{"$f":"+VLOOKUP(F874,TT_Tabelle_Riferimento!$D$127:$G$164,4,FALSE)","v":"Fabbricati industriali"},2,{"$f":"+VLOOKUP(H874,TT_Tabelle_Riferimento!$F$3:$G$6,2,FALSE)","v":"Fognatura bianca e pulizia / manutenzione caditoie stradali"},2028,{"$f":"+SUMIFS('PdI-crono_inv'!BG:BG,'PdI-crono_inv'!CF:CF,F874,'PdI-crono_inv'!CE:CE,H874,'PdI-crono_inv'!J:J,P874,'PdI-crono_inv'!P:P,\"<>proprietario\")","v":0},null,{"$f":"+SUMIFS('PdI-crono_inv'!BH:BH,'PdI-crono_inv'!CF:CF,F874,'PdI-crono_inv'!CE:CE,H874,'PdI-crono_inv'!J:J,P874,'PdI-crono_inv'!P:P,\"<>proprietario\")+S874","v":0},null,null,"RES",{"$f":"+VLOOKUP(F874,TT_Tabelle_Riferimento!$D$127:$E$164,2,FALSE)","v":"Comune"},"",0]
[0,0,"Gestore",0,"IP",35,{"$f":"+VLOOKUP(F875,TT_Tabelle_Riferimento!$D$127:$G$164,4,FALSE)","v":"Costruzioni leggere"},2,{"$f":"+VLOOKUP(H875,TT_Tabelle_Riferimento!$F$3:$G$6,2,FALSE)","v":"Fognatura bianca e pulizia / manutenzione caditoie stradali"},2028,{"$f":"+SUMIFS('PdI-crono_inv'!BG:BG,'PdI-crono_inv'!CF:CF,F875,'PdI-crono_inv'!CE:CE,H875,'PdI-crono_inv'!J:J,P875,'PdI-crono_inv'!P:P,\"<>proprietario\")","v":0},null,{"$f":"+SUMIFS('PdI-crono_inv'!BH:BH,'PdI-crono_inv'!CF:CF,F875,'PdI-crono_inv'!CE:CE,H875,'PdI-crono_inv'!J:J,P875,'PdI-crono_inv'!P:P,\"<>proprietario\")+S875","v":0},null,null,"RES",{"$f":"+VLOOKUP(F875,TT_Tabelle_Riferimento!$D$127:$E$164,2,FALSE)","v":"Comune"},"",0]
[0,0,"Gestore",0,"IP",36,{"$f":"+VLOOKUP(F876,TT_Tabelle_Riferimento!$D$127:$G$164,4,FALSE)","v":"Studi, ricerche, brevetti, diritti di utilizzazione"},2,{"$f":"+VLOOKUP(H876,TT_Tabelle_Riferimento!$F$3:$G$6,2,FALSE)","v":"Fognatura bianca e pulizia / manutenzione caditoie stradali"},2028,{"$f":"+SUMIFS('PdI-crono_inv'!BG:BG,'PdI-crono_inv'!CF:CF,F876,'PdI-crono_inv'!CE:CE,H876,'PdI-crono_inv'!J:J,P876,'PdI-crono_inv'!P:P,\"<>proprietario\")","v":0},null,{"$f":"+SUMIFS('PdI-crono_inv'!BH:BH,'PdI-crono_inv'!CF:CF,F876,'PdI-crono_inv'!CE:CE,H876,'PdI-crono_inv'!J:J,P876,'PdI-crono_inv'!P:P,\"<>proprietario\")+S876","v":0},null,null,"RES",{"$f":"+VLOOKUP(F876,TT_Tabelle_Riferimento!$D$127:$E$164,2,FALSE)","v":"Comune"},"",0]
[0,0,"Gestore",0,"IP",37,{"$f":"+VLOOKUP(F877,TT_Tabelle_Riferimento!$D$127:$G$164,4,FALSE)","v":"Altre immobilizzazioni materiali e immateriali"},2,{"$f":"+VLOOKUP(H877,TT_Tabelle_Riferimento!$F$3:$G$6,2,FALSE)","v":"Fognatura bianca e pulizia / manutenzione caditoie stradali"},2028,{"$f":"+SUMIFS('PdI-crono_inv'!BG:BG,'PdI-crono_inv'!CF:CF,F877,'PdI-crono_inv'!CE:CE,H877,'PdI-crono_inv'!J:J,P877,'PdI-crono_inv'!P:P,\"<>proprietario\")","v":0},null,{"$f":"+SUMIFS('PdI-crono_inv'!BH:BH,'PdI-crono_inv'!CF:CF,F877,'PdI-crono_inv'!CE:CE,H877,'PdI-crono_inv'!J:J,P877,'PdI-crono_inv'!P:P,\"<>proprietario\")+S877","v":0},null,null,"RES",{"$f":"+VLOOKUP(F877,TT_Tabelle_Riferimento!$D$127:$E$164,2,FALSE)","v":"Comune"},"",0]
[0,0,"Gestore",0,"IP",38,{"$f":"+VLOOKUP(F878,TT_Tabelle_Riferimento!$D$127:$G$164,4,FALSE)","v":"Grandi dighe (sbarramenti che superano i quindici metri di altezza o che determinano un invaso superiore a 1 milione di metri cubi)"},2,{"$f":"+VLOOKUP(H878,TT_Tabelle_Riferimento!$F$3:$G$6,2,FALSE)","v":"Fognatura bianca e pulizia / manutenzione caditoie stradali"},2028,{"$f":"+SUMIFS('PdI-crono_inv'!BG:BG,'PdI-crono_inv'!CF:CF,F878,'PdI-crono_inv'!CE:CE,H878,'PdI-crono_inv'!J:J,P878,'PdI-crono_inv'!P:P,\"<>proprietario\")","v":0},null,{"$f":"+SUMIFS('PdI-crono_inv'!BH:BH,'PdI-crono_inv'!CF:CF,F878,'PdI-crono_inv'!CE:CE,H878,'PdI-crono_inv'!J:J,P878,'PdI-crono_inv'!P:P,\"<>proprietario\")+S878","v":0},null,null,"RES",{"$f":"+VLOOKUP(F878,TT_Tabelle_Riferimento!$D$127:$E$164,2,FALSE)","v":"Acquedotto"},"",0]
[0,0,"Gestore",0,"IP",39,{"$f":"+VLOOKUP(F879,TT_Tabelle_Riferimento!$D$127:$G$164,4,FALSE)","v":"Piccole dighe (sbarramenti che non superano i quindici metri di altezza o che determinano un invaso non superiore a 1 milione di metri cubi)"},2,{"$f":"+VLOOKUP(H879,TT_Tabelle_Riferimento!$F$3:$G$6,2,FALSE)","v":"Fognatura bianca e pulizia / manutenzione caditoie stradali"},2028,{"$f":"+SUMIFS('PdI-crono_inv'!BG:BG,'PdI-crono_inv'!CF:CF,F879,'PdI-crono_inv'!CE:CE,H879,'PdI-crono_inv'!J:J,P879,'PdI-crono_inv'!P:P,\"<>proprietario\")","v":0},null,{"$f":"+SUMIFS('PdI-crono_inv'!BH:BH,'PdI-crono_inv'!CF:CF,F879,'PdI-crono_inv'!CE:CE,H879,'PdI-crono_inv'!J:J,P879,'PdI-crono_inv'!P:P,\"<>proprietario\")+S879","v":0},null,null,"RES",{"$f":"+VLOOKUP(F879,TT_Tabelle_Riferimento!$D$127:$E$164,2,FALSE)","v":"Acquedotto"},"",0]
[{"$f":"+idato","v":0},{"$f":"+idgestore","v":0},"Gestore",0,"IP",2,{"$f":"+VLOOKUP(F880,TT_Tabelle_Riferimento!$D$127:$G$164,4,FALSE)","v":"Condotte di acquedotto"},3,{"$f":"+VLOOKUP(H880,TT_Tabelle_Riferimento!$F$3:$G$6,2,FALSE)","v":"Altri servizi idrici"},2028,{"$f":"+SUMIFS('PdI-crono_inv'!BG:BG,'PdI-crono_inv'!CF:CF,F880,'PdI-crono_inv'!CE:CE,H880,'PdI-crono_inv'!J:J,P880,'PdI-crono_inv'!P:P,\"<>proprietario\")","v":0},null,{"$f":"+SUMIFS('PdI-crono_inv'!BH:BH,'PdI-crono_inv'!CF:CF,F880,'PdI-crono_inv'!CE:CE,H880,'PdI-crono_inv'!J:J,P880,'PdI-crono_inv'!P:P,\"<>proprietario\")+S880","v":0},null,null,"RES",{"$f":"+VLOOKUP(F880,TT_Tabelle_Riferimento!$D$127:$E$164,2,FALSE)","v":"Acquedotto"},"",0]
[0,0,"Gestore",0,"IP",3,{"$f":"+VLOOKUP(F881,TT_Tabelle_Riferimento!$D$127:$G$164,4,FALSE)","v":"Opere idrauliche fisse di acquedotto"},3,{"$f":"+VLOOKUP(H881,TT_Tabelle_Riferimento!$F$3:$G$6,2,FALSE)","v":"Altri servizi idrici"},2028,{"$f":"+SUMIFS('PdI-crono_inv'!BG:BG,'PdI-crono_inv'!CF:CF,F881,'PdI-crono_inv'!CE:CE,H881,'PdI-crono_inv'!J:J,P881,'PdI-crono_inv'!P:P,\"<>proprietario\")","v":0},null,{"$f":"+SUMIFS('PdI-crono_inv'!BH:BH,'PdI-crono_inv'!CF:CF,F881,'PdI-crono_inv'!CE:CE,H881,'PdI-crono_inv'!J:J,P881,'PdI-crono_inv'!P:P,\"<>proprietario\")+S881","v":0},null,null,"RES",{"$f":"+VLOOKUP(F881,TT_Tabelle_Riferimento!$D$127:$E$164,2,FALSE)","v":"Acquedotto"},"",0]
[0,0,"Gestore",0,"IP",4,{"$f":"+VLOOKUP(F882,TT_Tabelle_Riferimento!$D$127:$G$164,4,FALSE)","v":"Serbatoi"},3,{"$f":"+VLOOKUP(H882,TT_Tabelle_Riferimento!$F$3:$G$6,2,FALSE)","v":"Altri servizi idrici"},2028,{"$f":"+SUMIFS('PdI-crono_inv'!BG:BG,'PdI-crono_inv'!CF:CF,F882,'PdI-crono_inv'!CE:CE,H882,'PdI-crono_inv'!J:J,P882,'PdI-crono_inv'!P:P,\"<>proprietario\")","v":0},null,{"$f":"+SUMIFS('PdI-crono_inv'!BH:BH,'PdI-crono_inv'!CF:CF,F882,'PdI-crono_inv'!CE:CE,H882,'PdI-crono_inv'!J:J,P882,'PdI-crono_inv'!P:P,\"<>proprietario\")+S882","v":0},null,null,"RES",{"$f":"+VLOOKUP(F882,TT_Tabelle_Riferimento!$D$127:$E$164,2,FALSE)","v":"Acquedotto"},"",0]
[0,0,"Gestore",0,"IP",5,{"$f":"+VLOOKUP(F883,TT_Tabelle_Riferimento!$D$127:$G$164,4,FALSE)","v":"Impianti di sollevamento e pompaggio di acquedotto"},3,{"$f":"+VLOOKUP(H883,TT_Tabelle_Riferimento!$F$3:$G$6,2,FALSE)","v":"Altri servizi idrici"},2028,{"$f":"+SUMIFS('PdI-crono_inv'!BG:BG,'PdI-crono_inv'!CF:CF,F883,'PdI-crono_inv'!CE:CE,H883,'PdI-crono_inv'!J:J,P883,'PdI-crono_inv'!P:P,\"<>proprietario\")","v":0},null,{"$f":"+SUMIFS('PdI-crono_inv'!BH:BH,'PdI-crono_inv'!CF:CF,F883,'PdI-crono_inv'!CE:CE,H883,'PdI-crono_inv'!J:J,P883,'PdI-crono_inv'!P:P,\"<>proprietario\")+S883","v":0},null,null,"RES",{"$f":"+VLOOKUP(F883,TT_Tabelle_Riferimento!$D$127:$E$164,2,FALSE)","v":"Acquedotto"},"",0]
[0,0,"Gestore",0,"IP",6,{"$f":"+VLOOKUP(F884,TT_Tabelle_Riferimento!$D$127:$G$164,4,FALSE)","v":"Impianti di potabilizzazione"},3,{"$f":"+VLOOKUP(H884,TT_Tabelle_Riferimento!$F$3:$G$6,2,FALSE)","v":"Altri servizi idrici"},2028,{"$f":"+SUMIFS('PdI-crono_inv'!BG:BG,'PdI-crono_inv'!CF:CF,F884,'PdI-crono_inv'!CE:CE,H884,'PdI-crono_inv'!J:J,P884,'PdI-crono_inv'!P:P,\"<>proprietario\")","v":0},null,{"$f":"+SUMIFS('PdI-crono_inv'!BH:BH,'PdI-crono_inv'!CF:CF,F884,'PdI-crono_inv'!CE:CE,H884,'PdI-crono_inv'!J:J,P884,'PdI-crono_inv'!P:P,\"<>proprietario\")+S884","v":0},null,null,"RES",{"$f":"+VLOOKUP(F884,TT_Tabelle_Riferimento!$D$127:$E$164,2,FALSE)","v":"Acquedotto"},"",0]
[0,0,"Gestore",0,"IP",7,{"$f":"+VLOOKUP(F885,TT_Tabelle_Riferimento!$D$127:$G$164,4,FALSE)","v":"Altri trattamenti di potabilizzazione (tra cui dispositivi di disinfezione, stacciatura, filtrazione, addolcimento)"},3,{"$f":"+VLOOKUP(H885,TT_Tabelle_Riferimento!$F$3:$G$6,2,FALSE)","v":"Altri servizi idrici"},2028,{"$f":"+SUMIFS('PdI-crono_inv'!BG:BG,'PdI-crono_inv'!CF:CF,F885,'PdI-crono_inv'!CE:CE,H885,'PdI-crono_inv'!J:J,P885,'PdI-crono_inv'!P:P,\"<>proprietario\")","v":0},null,{"$f":"+SUMIFS('PdI-crono_inv'!BH:BH,'PdI-crono_inv'!CF:CF,F885,'PdI-crono_inv'!CE:CE,H885,'PdI-crono_inv'!J:J,P885,'PdI-crono_inv'!P:P,\"<>proprietario\")+S885","v":0},null,null,"RES",{"$f":"+VLOOKUP(F885,TT_Tabelle_Riferimento!$D$127:$E$164,2,FALSE)","v":"Acquedotto"},"",0]
[0,0,"Gestore",0,"IP",8,{"$f":"+VLOOKUP(F886,TT_Tabelle_Riferimento!$D$127:$G$164,4,FALSE)","v":"Gruppi di misura - altre attrezzature di acquedotto"},3,{"$f":"+VLOOKUP(H886,TT_Tabelle_Riferimento!$F$3:$G$6,2,FALSE)","v":"Altri servizi idrici"},2028,{"$f":"+SUMIFS('PdI-crono_inv'!BG:BG,'PdI-crono_inv'!CF:CF,F886,'PdI-crono_inv'!CE:CE,H886,'PdI-crono_inv'!J:J,P886,'PdI-crono_inv'!P:P,\"<>proprietario\")","v":0},null,{"$f":"+SUMIFS('PdI-crono_inv'!BH:BH,'PdI-crono_inv'!CF:CF,F886,'PdI-crono_inv'!CE:CE,H886,'PdI-crono_inv'!J:J,P886,'PdI-crono_inv'!P:P,\"<>proprietario\")+S886","v":0},null,null,"RES",{"$f":"+VLOOKUP(F886,TT_Tabelle_Riferimento!$D$127:$E$164,2,FALSE)","v":"Acquedotto"},"",0]
[0,0,"Gestore",0,"IP",9,{"$f":"+VLOOKUP(F887,TT_Tabelle_Riferimento!$D$127:$G$164,4,FALSE)","v":"Sistemi informativi di acquedotto"},3,{"$f":"+VLOOKUP(H887,TT_Tabelle_Riferimento!$F$3:$G$6,2,FALSE)","v":"Altri servizi idrici"},2028,{"$f":"+SUMIFS('PdI-crono_inv'!BG:BG,'PdI-crono_inv'!CF:CF,F887,'PdI-crono_inv'!CE:CE,H887,'PdI-crono_inv'!J:J,P887,'PdI-crono_inv'!P:P,\"<>proprietario\")","v":0},null,{"$f":"+SUMIFS('PdI-crono_inv'!BH:BH,'PdI-crono_inv'!CF:CF,F887,'PdI-crono_inv'!CE:CE,H887,'PdI-crono_inv'!J:J,P887,'PdI-crono_inv'!P:P,\"<>proprietario\")+S887","v":0},null,null,"RES",{"$f":"+VLOOKUP(F887,TT_Tabelle_Riferimento!$D$127:$E$164,2,FALSE)","v":"Acquedotto"},"",0]
[0,0,"Gestore",0,"IP",10,{"$f":"+VLOOKUP(F888,TT_Tabelle_Riferimento!$D$127:$G$164,4,FALSE)","v":"Telecontrollo e teletrasmissione di acquedotto"},3,{"$f":"+VLOOKUP(H888,TT_Tabelle_Riferimento!$F$3:$G$6,2,FALSE)","v":"Altri servizi idrici"},2028,{"$f":"+SUMIFS('PdI-crono_inv'!BG:BG,'PdI-crono_inv'!CF:CF,F888,'PdI-crono_inv'!CE:CE,H888,'PdI-crono_inv'!J:J,P888,'PdI-crono_inv'!P:P,\"<>proprietario\")","v":0},null,{"$f":"+SUMIFS('PdI-crono_inv'!BH:BH,'PdI-crono_inv'!CF:CF,F888,'PdI-crono_inv'!CE:CE,H888,'PdI-crono_inv'!J:J,P888,'PdI-crono_inv'!P:P,\"<>proprietario\")+S888","v":0},null,null,"RES",{"$f":"+VLOOKUP(F888,TT_Tabelle_Riferimento!$D$127:$E$164,2,FALSE)","v":"Acquedotto"},"",0]
[0,0,"Gestore",0,"IP",11,{"$f":"+VLOOKUP(F889,TT_Tabelle_Riferimento!$D$127:$G$164,4,FALSE)","v":"Condotte fognarie"},3,{"$f":"+VLOOKUP(H889,TT_Tabelle_Riferimento!$F$3:$G$6,2,FALSE)","v":"Altri servizi idrici"},2028,{"$f":"+SUMIFS('PdI-crono_inv'!BG:BG,'PdI-crono_inv'!CF:CF,F889,'PdI-crono_inv'!CE:CE,H889,'PdI-crono_inv'!J:J,P889,'PdI-crono_inv'!P:P,\"<>proprietario\")","v":0},null,{"$f":"+SUMIFS('PdI-crono_inv'!BH:BH,'PdI-crono_inv'!CF:CF,F889,'PdI-crono_inv'!CE:CE,H889,'PdI-crono_inv'!J:J,P889,'PdI-crono_inv'!P:P,\"<>proprietario\")+S889","v":0},null,null,"RES",{"$f":"+VLOOKUP(F889,TT_Tabelle_Riferimento!$D$127:$E$164,2,FALSE)","v":"Fognatura"},"",0]
[0,0,"Gestore",0,"IP",12,{"$f":"+VLOOKUP(F890,TT_Tabelle_Riferimento!$D$127:$G$164,4,FALSE)","v":"Sifoni e scaricatori di piena e altre opere idrauliche fisse di fognatura"},3,{"$f":"+VLOOKUP(H890,TT_Tabelle_Riferimento!$F$3:$G$6,2,FALSE)","v":"Altri servizi idrici"},2028,{"$f":"+SUMIFS('PdI-crono_inv'!BG:BG,'PdI-crono_inv'!CF:CF,F890,'PdI-crono_inv'!CE:CE,H890,'PdI-crono_inv'!J:J,P890,'PdI-crono_inv'!P:P,\"<>proprietario\")","v":0},null,{"$f":"+SUMIFS('PdI-crono_inv'!BH:BH,'PdI-crono_inv'!CF:CF,F890,'PdI-crono_inv'!CE:CE,H890,'PdI-crono_inv'!J:J,P890,'PdI-crono_inv'!P:P,\"<>proprietario\")+S890","v":0},null,null,"RES",{"$f":"+VLOOKUP(F890,TT_Tabelle_Riferimento!$D$127:$E$164,2,FALSE)","v":"Fognatura"},"",0]
[0,0,"Gestore",0,"IP",13,{"$f":"+VLOOKUP(F891,TT_Tabelle_Riferimento!$D$127:$G$164,4,FALSE)","v":"Vasche di laminazione e vasche di prima pioggia"},3,{"$f":"+VLOOKUP(H891,TT_Tabelle_Riferimento!$F$3:$G$6,2,FALSE)","v":"Altri servizi idrici"},2028,{"$f":"+SUMIFS('PdI-crono_inv'!BG:BG,'PdI-crono_inv'!CF:CF,F891,'PdI-crono_inv'!CE:CE,H891,'PdI-crono_inv'!J:J,P891,'PdI-crono_inv'!P:P,\"<>proprietario\")","v":0},null,{"$f":"+SUMIFS('PdI-crono_inv'!BH:BH,'PdI-crono_inv'!CF:CF,F891,'PdI-crono_inv'!CE:CE,H891,'PdI-crono_inv'!J:J,P891,'PdI-crono_inv'!P:P,\"<>proprietario\")+S891","v":0},null,null,"RES",{"$f":"+VLOOKUP(F891,TT_Tabelle_Riferimento!$D$127:$E$164,2,FALSE)","v":"Fognatura"},"",0]
[0,0,"Gestore",0,"IP",14,{"$f":"+VLOOKUP(F892,TT_Tabelle_Riferimento!$D$127:$G$164,4,FALSE)","v":"Impianti di sollevamento e pompaggio di fognatura"},3,{"$f":"+VLOOKUP(H892,TT_Tabelle_Riferimento!$F$3:$G$6,2,FALSE)","v":"Altri servizi idrici"},2028,{"$f":"+SUMIFS('PdI-crono_inv'!BG:BG,'PdI-crono_inv'!CF:CF,F892,'PdI-crono_inv'!CE:CE,H892,'PdI-crono_inv'!J:J,P892,'PdI-crono_inv'!P:P,\"<>proprietario\")","v":0},null,{"$f":"+SUMIFS('PdI-crono_inv'!BH:BH,'PdI-crono_inv'!CF:CF,F892,'PdI-crono_inv'!CE:CE,H892,'PdI-crono_inv'!J:J,P892,'PdI-crono_inv'!P:P,\"<>proprietario\")+S892","v":0},null,null,"RES",{"$f":"+VLOOKUP(F892,TT_Tabelle_Riferimento!$D$127:$E$164,2,FALSE)","v":"Fognatura"},"",0]
[0,0,"Gestore",0,"IP",15,{"$f":"+VLOOKUP(F893,TT_Tabelle_Riferimento!$D$127:$G$164,4,FALSE)","v":"Gruppi di misura - altre attrezzature di fognatura"},3,{"$f":"+VLOOKUP(H893,TT_Tabelle_Riferimento!$F$3:$G$6,2,FALSE)","v":"Altri servizi idrici"},2028,{"$f":"+SUMIFS('PdI-crono_inv'!BG:BG,'PdI-crono_inv'!CF:CF,F893,'PdI-crono_inv'!CE:CE,H893,'PdI-crono_inv'!J:J,P893,'PdI-crono_inv'!P:P,\"<>proprietario\")","v":0},null,{"$f":"+SUMIFS('PdI-crono_inv'!BH:BH,'PdI-crono_inv'!CF:CF,F893,'PdI-crono_inv'!CE:CE,H893,'PdI-crono_inv'!J:J,P893,'PdI-crono_inv'!P:P,\"<>proprietario\")+S893","v":0},null,null,"RES",{"$f":"+VLOOKUP(F893,TT_Tabelle_Riferimento!$D$127:$E$164,2,FALSE)","v":"Fognatura"},"",0]
[0,0,"Gestore",0,"IP",16,{"$f":"+VLOOKUP(F894,TT_Tabelle_Riferimento!$D$127:$G$164,4,FALSE)","v":"Sistemi informativi di fognatura"},3,{"$f":"+VLOOKUP(H894,TT_Tabelle_Riferimento!$F$3:$G$6,2,FALSE)","v":"Altri servizi idrici"},2028,{"$f":"+SUMIFS('PdI-crono_inv'!BG:BG,'PdI-crono_inv'!CF:CF,F894,'PdI-crono_inv'!CE:CE,H894,'PdI-crono_inv'!J:J,P894,'PdI-crono_inv'!P:P,\"<>proprietario\")","v":0},null,{"$f":"+SUMIFS('PdI-crono_inv'!BH:BH,'PdI-crono_inv'!CF:CF,F894,'PdI-crono_inv'!CE:CE,H894,'PdI-crono_inv'!J:J,P894,'PdI-crono_inv'!P:P,\"<>proprietario\")+S894","v":0},null,null,"RES",{"$f":"+VLOOKUP(F894,TT_Tabelle_Riferimento!$D$127:$E$164,2,FALSE)","v":"Fognatura"},"",0]
[0,0,"Gestore",0,"IP",18,{"$f":"+VLOOKUP(F895,TT_Tabelle_Riferimento!$D$127:$G$164,4,FALSE)","v":"Telecontrollo e teletrasmissione di fognatura"},3,{"$f":"+VLOOKUP(H895,TT_Tabelle_Riferimento!$F$3:$G$6,2,FALSE)","v":"Altri servizi idrici"},2028,{"$f":"+SUMIFS('PdI-crono_inv'!BG:BG,'PdI-crono_inv'!CF:CF,F895,'PdI-crono_inv'!CE:CE,H895,'PdI-crono_inv'!J:J,P895,'PdI-crono_inv'!P:P,\"<>proprietario\")","v":0},null,{"$f":"+SUMIFS('PdI-crono_inv'!BH:BH,'PdI-crono_inv'!CF:CF,F895,'PdI-crono_inv'!CE:CE,H895,'PdI-crono_inv'!J:J,P895,'PdI-crono_inv'!P:P,\"<>proprietario\")+S895","v":0},null,null,"RES",{"$f":"+VLOOKUP(F895,TT_Tabelle_Riferimento!$D$127:$E$164,2,FALSE)","v":"Fognatura"},"",0]
[0,0,"Gestore",0,"IP",19,{"$f":"+VLOOKUP(F896,TT_Tabelle_Riferimento!$D$127:$G$164,4,FALSE)","v":"Impianti di sollevamento e pompaggio di depurazione"},3,{"$f":"+VLOOKUP(H896,TT_Tabelle_Riferimento!$F$3:$G$6,2,FALSE)","v":"Altri servizi idrici"},2028,{"$f":"+SUMIFS('PdI-crono_inv'!BG:BG,'PdI-crono_inv'!CF:CF,F896,'PdI-crono_inv'!CE:CE,H896,'PdI-crono_inv'!J:J,P896,'PdI-crono_inv'!P:P,\"<>proprietario\")","v":0},null,{"$f":"+SUMIFS('PdI-crono_inv'!BH:BH,'PdI-crono_inv'!CF:CF,F896,'PdI-crono_inv'!CE:CE,H896,'PdI-crono_inv'!J:J,P896,'PdI-crono_inv'!P:P,\"<>proprietario\")+S896","v":0},null,null,"RES",{"$f":"+VLOOKUP(F896,TT_Tabelle_Riferimento!$D$127:$E$164,2,FALSE)","v":"Depurazione"},"",0]
[0,0,"Gestore",0,"IP",20,{"$f":"+VLOOKUP(F897,TT_Tabelle_Riferimento!$D$127:$G$164,4,FALSE)","v":"Tecniche naturali di depurazione (tra cui fitodepurazione e lagunaggio)"},3,{"$f":"+VLOOKUP(H897,TT_Tabelle_Riferimento!$F$3:$G$6,2,FALSE)","v":"Altri servizi idrici"},2028,{"$f":"+SUMIFS('PdI-crono_inv'!BG:BG,'PdI-crono_inv'!CF:CF,F897,'PdI-crono_inv'!CE:CE,H897,'PdI-crono_inv'!J:J,P897,'PdI-crono_inv'!P:P,\"<>proprietario\")","v":0},null,{"$f":"+SUMIFS('PdI-crono_inv'!BH:BH,'PdI-crono_inv'!CF:CF,F897,'PdI-crono_inv'!CE:CE,H897,'PdI-crono_inv'!J:J,P897,'PdI-crono_inv'!P:P,\"<>proprietario\")+S897","v":0},null,null,"RES",{"$f":"+VLOOKUP(F897,TT_Tabelle_Riferimento!$D$127:$E$164,2,FALSE)","v":"Depurazione"},"",0]
[0,0,"Gestore",0,"IP",21,{"$f":"+VLOOKUP(F898,TT_Tabelle_Riferimento!$D$127:$G$164,4,FALSE)","v":"Impianti di depurazione – trattamenti sino al preliminare, integrativo, primario - fosse settiche e fosse Imhoff"},3,{"$f":"+VLOOKUP(H898,TT_Tabelle_Riferimento!$F$3:$G$6,2,FALSE)","v":"Altri servizi idrici"},2028,{"$f":"+SUMIFS('PdI-crono_inv'!BG:BG,'PdI-crono_inv'!CF:CF,F898,'PdI-crono_inv'!CE:CE,H898,'PdI-crono_inv'!J:J,P898,'PdI-crono_inv'!P:P,\"<>proprietario\")","v":0},null,{"$f":"+SUMIFS('PdI-crono_inv'!BH:BH,'PdI-crono_inv'!CF:CF,F898,'PdI-crono_inv'!CE:CE,H898,'PdI-crono_inv'!J:J,P898,'PdI-crono_inv'!P:P,\"<>proprietario\")+S898","v":0},null,null,"RES",{"$f":"+VLOOKUP(F898,TT_Tabelle_Riferimento!$D$127:$E$164,2,FALSE)","v":"Depurazione"},"",0]
[0,0,"Gestore",0,"IP",22,{"$f":"+VLOOKUP(F899,TT_Tabelle_Riferimento!$D$127:$G$164,4,FALSE)","v":"Impianti di depurazione – trattamenti sino al secondario"},3,{"$f":"+VLOOKUP(H899,TT_Tabelle_Riferimento!$F$3:$G$6,2,FALSE)","v":"Altri servizi idrici"},2028,{"$f":"+SUMIFS('PdI-crono_inv'!BG:BG,'PdI-crono_inv'!CF:CF,F899,'PdI-crono_inv'!CE:CE,H899,'PdI-crono_inv'!J:J,P899,'PdI-crono_inv'!P:P,\"<>proprietario\")","v":0},null,{"$f":"+SUMIFS('PdI-crono_inv'!BH:BH,'PdI-crono_inv'!CF:CF,F899,'PdI-crono_inv'!CE:CE,H899,'PdI-crono_inv'!J:J,P899,'PdI-crono_inv'!P:P,\"<>proprietario\")+S899","v":0},null,null,"RES",{"$f":"+VLOOKUP(F899,TT_Tabelle_Riferimento!$D$127:$E$164,2,FALSE)","v":"Depurazione"},"",0]
[0,0,"Gestore",0,"IP",23,{"$f":"+VLOOKUP(F900,TT_Tabelle_Riferimento!$D$127:$G$164,4,FALSE)","v":"Impianti di depurazione – trattamenti sino al terziario e terziario avanzato"},3,{"$f":"+VLOOKUP(H900,TT_Tabelle_Riferimento!$F$3:$G$6,2,FALSE)","v":"Altri servizi idrici"},2028,{"$f":"+SUMIFS('PdI-crono_inv'!BG:BG,'PdI-crono_inv'!CF:CF,F900,'PdI-crono_inv'!CE:CE,H900,'PdI-crono_inv'!J:J,P900,'PdI-crono_inv'!P:P,\"<>proprietario\")","v":0},null,{"$f":"+SUMIFS('PdI-crono_inv'!BH:BH,'PdI-crono_inv'!CF:CF,F900,'PdI-crono_inv'!CE:CE,H900,'PdI-crono_inv'!J:J,P900,'PdI-crono_inv'!P:P,\"<>proprietario\")+S900","v":0},null,null,"RES",{"$f":"+VLOOKUP(F900,TT_Tabelle_Riferimento!$D$127:$E$164,2,FALSE)","v":"Depurazione"},"",0]
[0,0,"Gestore",0,"IP",24,{"$f":"+VLOOKUP(F901,TT_Tabelle_Riferimento!$D$127:$G$164,4,FALSE)","v":"Impianti di essiccamento fanghi e di valorizzazione dei fanghi (tra cui mono-incenerimento, pirolisi, gassificazione)"},3,{"$f":"+VLOOKUP(H901,TT_Tabelle_Riferimento!$F$3:$G$6,2,FALSE)","v":"Altri servizi idrici"},2028,{"$f":"+SUMIFS('PdI-crono_inv'!BG:BG,'PdI-crono_inv'!CF:CF,F901,'PdI-crono_inv'!CE:CE,H901,'PdI-crono_inv'!J:J,P901,'PdI-crono_inv'!P:P,\"<>proprietario\")","v":0},null,{"$f":"+SUMIFS('PdI-crono_inv'!BH:BH,'PdI-crono_inv'!CF:CF,F901,'PdI-crono_inv'!CE:CE,H901,'PdI-crono_inv'!J:J,P901,'PdI-crono_inv'!P:P,\"<>proprietario\")+S901","v":0},null,null,"RES",{"$f":"+VLOOKUP(F901,TT_Tabelle_Riferimento!$D$127:$E$164,2,FALSE)","v":"Depurazione"},"",0]
[0,0,"Gestore",0,"IP",25,{"$f":"+VLOOKUP(F902,TT_Tabelle_Riferimento!$D$127:$G$164,4,FALSE)","v":"Gruppi di misura - altre attrezzature di depurazione"},3,{"$f":"+VLOOKUP(H902,TT_Tabelle_Riferimento!$F$3:$G$6,2,FALSE)","v":"Altri servizi idrici"},2028,{"$f":"+SUMIFS('PdI-crono_inv'!BG:BG,'PdI-crono_inv'!CF:CF,F902,'PdI-crono_inv'!CE:CE,H902,'PdI-crono_inv'!J:J,P902,'PdI-crono_inv'!P:P,\"<>proprietario\")","v":0},null,{"$f":"+SUMIFS('PdI-crono_inv'!BH:BH,'PdI-crono_inv'!CF:CF,F902,'PdI-crono_inv'!CE:CE,H902,'PdI-crono_inv'!J:J,P902,'PdI-crono_inv'!P:P,\"<>proprietario\")+S902","v":0},null,null,"RES",{"$f":"+VLOOKUP(F902,TT_Tabelle_Riferimento!$D$127:$E$164,2,FALSE)","v":"Depurazione"},"",0]
[0,0,"Gestore",0,"IP",26,{"$f":"+VLOOKUP(F903,TT_Tabelle_Riferimento!$D$127:$G$164,4,FALSE)","v":"Sistemi informativi di depurazione"},3,{"$f":"+VLOOKUP(H903,TT_Tabelle_Riferimento!$F$3:$G$6,2,FALSE)","v":"Altri servizi idrici"},2028,{"$f":"+SUMIFS('PdI-crono_inv'!BG:BG,'PdI-crono_inv'!CF:CF,F903,'PdI-crono_inv'!CE:CE,H903,'PdI-crono_inv'!J:J,P903,'PdI-crono_inv'!P:P,\"<>proprietario\")","v":0},null,{"$f":"+SUMIFS('PdI-crono_inv'!BH:BH,'PdI-crono_inv'!CF:CF,F903,'PdI-crono_inv'!CE:CE,H903,'PdI-crono_inv'!J:J,P903,'PdI-crono_inv'!P:P,\"<>proprietario\")+S903","v":0},null,null,"RES",{"$f":"+VLOOKUP(F903,TT_Tabelle_Riferimento!$D$127:$E$164,2,FALSE)","v":"Depurazione"},"",{"$f":"+IFERROR(HLOOKUP(J903,$X$2:$Y$5,4,FALSE)*K903,0)","v":0}]
[0,0,"Gestore",0,"IP",27,{"$f":"+VLOOKUP(F904,TT_Tabelle_Riferimento!$D$127:$G$164,4,FALSE)","v":"Telecontrollo e teletrasmissione di depurazione"},3,{"$f":"+VLOOKUP(H904,TT_Tabelle_Riferimento!$F$3:$G$6,2,FALSE)","v":"Altri servizi idrici"},2028,{"$f":"+SUMIFS('PdI-crono_inv'!BG:BG,'PdI-crono_inv'!CF:CF,F904,'PdI-crono_inv'!CE:CE,H904,'PdI-crono_inv'!J:J,P904,'PdI-crono_inv'!P:P,\"<>proprietario\")","v":0},null,{"$f":"+SUMIFS('PdI-crono_inv'!BH:BH,'PdI-crono_inv'!CF:CF,F904,'PdI-crono_inv'!CE:CE,H904,'PdI-crono_inv'!J:J,P904,'PdI-crono_inv'!P:P,\"<>proprietario\")+S904","v":0},null,null,"RES",{"$f":"+VLOOKUP(F904,TT_Tabelle_Riferimento!$D$127:$E$164,2,FALSE)","v":"Depurazione"},"",0]
[0,0,"Gestore",0,"IP",28,{"$f":"+VLOOKUP(F905,TT_Tabelle_Riferimento!$D$127:$G$164,4,FALSE)","v":"Altri impianti"},3,{"$f":"+VLOOKUP(H905,TT_Tabelle_Riferimento!$F$3:$G$6,2,FALSE)","v":"Altri servizi idrici"},2028,{"$f":"+SUMIFS('PdI-crono_inv'!BG:BG,'PdI-crono_inv'!CF:CF,F905,'PdI-crono_inv'!CE:CE,H905,'PdI-crono_inv'!J:J,P905,'PdI-crono_inv'!P:P,\"<>proprietario\")","v":0},null,{"$f":"+SUMIFS('PdI-crono_inv'!BH:BH,'PdI-crono_inv'!CF:CF,F905,'PdI-crono_inv'!CE:CE,H905,'PdI-crono_inv'!J:J,P905,'PdI-crono_inv'!P:P,\"<>proprietario\")+S905","v":0},null,null,"RES",{"$f":"+VLOOKUP(F905,TT_Tabelle_Riferimento!$D$127:$E$164,2,FALSE)","v":"Comune"},"",0]
[0,0,"Gestore",0,"IP",29,{"$f":"+VLOOKUP(F906,TT_Tabelle_Riferimento!$D$127:$G$164,4,FALSE)","v":"Laboratori e attrezzature"},3,{"$f":"+VLOOKUP(H906,TT_Tabelle_Riferimento!$F$3:$G$6,2,FALSE)","v":"Altri servizi idrici"},2028,{"$f":"+SUMIFS('PdI-crono_inv'!BG:BG,'PdI-crono_inv'!CF:CF,F906,'PdI-crono_inv'!CE:CE,H906,'PdI-crono_inv'!J:J,P906,'PdI-crono_inv'!P:P,\"<>proprietario\")","v":0},null,{"$f":"+SUMIFS('PdI-crono_inv'!BH:BH,'PdI-crono_inv'!CF:CF,F906,'PdI-crono_inv'!CE:CE,H906,'PdI-crono_inv'!J:J,P906,'PdI-crono_inv'!P:P,\"<>proprietario\")+S906","v":0},null,null,"RES",{"$f":"+VLOOKUP(F906,TT_Tabelle_Riferimento!$D$127:$E$164,2,FALSE)","v":"Comune"},"",0]
[0,0,"Gestore",0,"IP",30,{"$f":"+VLOOKUP(F907,TT_Tabelle_Riferimento!$D$127:$G$164,4,FALSE)","v":"Sistemi informativi"},3,{"$f":"+VLOOKUP(H907,TT_Tabelle_Riferimento!$F$3:$G$6,2,FALSE)","v":"Altri servizi idrici"},2028,{"$f":"+SUMIFS('PdI-crono_inv'!BG:BG,'PdI-crono_inv'!CF:CF,F907,'PdI-crono_inv'!CE:CE,H907,'PdI-crono_inv'!J:J,P907,'PdI-crono_inv'!P:P,\"<>proprietario\")","v":0},null,{"$f":"+SUMIFS('PdI-crono_inv'!BH:BH,'PdI-crono_inv'!CF:CF,F907,'PdI-crono_inv'!CE:CE,H907,'PdI-crono_inv'!J:J,P907,'PdI-crono_inv'!P:P,\"<>proprietario\")+S907","v":0},null,null,"RES",{"$f":"+VLOOKUP(F907,TT_Tabelle_Riferimento!$D$127:$E$164,2,FALSE)","v":"Comune"},"",0]
[0,0,"Gestore",0,"IP",31,{"$f":"+VLOOKUP(F908,TT_Tabelle_Riferimento!$D$127:$G$164,4,FALSE)","v":"Telecontrollo e teletrasmissione"},3,{"$f":"+VLOOKUP(H908,TT_Tabelle_Riferimento!$F$3:$G$6,2,FALSE)","v":"Altri servizi idrici"},2028,{"$f":"+SUMIFS('PdI-crono_inv'!BG:BG,'PdI-crono_inv'!CF:CF,F908,'PdI-crono_inv'!CE:CE,H908,'PdI-crono_inv'!J:J,P908,'PdI-crono_inv'!P:P,\"<>proprietario\")","v":0},null,{"$f":"+SUMIFS('PdI-crono_inv'!BH:BH,'PdI-crono_inv'!CF:CF,F908,'PdI-crono_inv'!CE:CE,H908,'PdI-crono_inv'!J:J,P908,'PdI-crono_inv'!P:P,\"<>proprietario\")+S908","v":0},null,null,"RES",{"$f":"+VLOOKUP(F908,TT_Tabelle_Riferimento!$D$127:$E$164,2,FALSE)","v":"Comune"},"",0]
[0,0,"Gestore",0,"IP",32,{"$f":"+VLOOKUP(F909,TT_Tabelle_Riferimento!$D$127:$G$164,4,FALSE)","v":"Autoveicoli - automezzi"},3,{"$f":"+VLOOKUP(H909,TT_Tabelle_Riferimento!$F$3:$G$6,2,FALSE)","v":"Altri servizi idrici"},2028,{"$f":"+SUMIFS('PdI-crono_inv'!BG:BG,'PdI-crono_inv'!CF:CF,F909,'PdI-crono_inv'!CE:CE,H909,'PdI-crono_inv'!J:J,P909,'PdI-crono_inv'!P:P,\"<>proprietario\")","v":0},null,{"$f":"+SUMIFS('PdI-crono_inv'!BH:BH,'PdI-crono_inv'!CF:CF,F909,'PdI-crono_inv'!CE:CE,H909,'PdI-crono_inv'!J:J,P909,'PdI-crono_inv'!P:P,\"<>proprietario\")+S909","v":0},null,null,"RES",{"$f":"+VLOOKUP(F909,TT_Tabelle_Riferimento!$D$127:$E$164,2,FALSE)","v":"Comune"},"",0]
[0,0,"Gestore",0,"IP",1,{"$f":"+VLOOKUP(F910,TT_Tabelle_Riferimento!$D$127:$G$164,4,FALSE)","v":"Terreni"},3,{"$f":"+VLOOKUP(H910,TT_Tabelle_Riferimento!$F$3:$G$6,2,FALSE)","v":"Altri servizi idrici"},2028,{"$f":"+SUMIFS('PdI-crono_inv'!BG:BG,'PdI-crono_inv'!CF:CF,F910,'PdI-crono_inv'!CE:CE,H910,'PdI-crono_inv'!J:J,P910,'PdI-crono_inv'!P:P,\"<>proprietario\")","v":0},null,{"$f":"+SUMIFS('PdI-crono_inv'!BH:BH,'PdI-crono_inv'!CF:CF,F910,'PdI-crono_inv'!CE:CE,H910,'PdI-crono_inv'!J:J,P910,'PdI-crono_inv'!P:P,\"<>proprietario\")+S910","v":0},null,null,"RES",{"$f":"+VLOOKUP(F910,TT_Tabelle_Riferimento!$D$127:$E$164,2,FALSE)","v":"Comune"},"",0]
[0,0,"Gestore",0,"IP",33,{"$f":"+VLOOKUP(F911,TT_Tabelle_Riferimento!$D$127:$G$164,4,FALSE)","v":"Fabbricati non industriali"},3,{"$f":"+VLOOKUP(H911,TT_Tabelle_Riferimento!$F$3:$G$6,2,FALSE)","v":"Altri servizi idrici"},2028,{"$f":"+SUMIFS('PdI-crono_inv'!BG:BG,'PdI-crono_inv'!CF:CF,F911,'PdI-crono_inv'!CE:CE,H911,'PdI-crono_inv'!J:J,P911,'PdI-crono_inv'!P:P,\"<>proprietario\")","v":0},null,{"$f":"+SUMIFS('PdI-crono_inv'!BH:BH,'PdI-crono_inv'!CF:CF,F911,'PdI-crono_inv'!CE:CE,H911,'PdI-crono_inv'!J:J,P911,'PdI-crono_inv'!P:P,\"<>proprietario\")+S911","v":0},null,null,"RES",{"$f":"+VLOOKUP(F911,TT_Tabelle_Riferimento!$D$127:$E$164,2,FALSE)","v":"Comune"},"",0]
[0,0,"Gestore",0,"IP",34,{"$f":"+VLOOKUP(F912,TT_Tabelle_Riferimento!$D$127:$G$164,4,FALSE)","v":"Fabbricati industriali"},3,{"$f":"+VLOOKUP(H912,TT_Tabelle_Riferimento!$F$3:$G$6,2,FALSE)","v":"Altri servizi idrici"},2028,{"$f":"+SUMIFS('PdI-crono_inv'!BG:BG,'PdI-crono_inv'!CF:CF,F912,'PdI-crono_inv'!CE:CE,H912,'PdI-crono_inv'!J:J,P912,'PdI-crono_inv'!P:P,\"<>proprietario\")","v":0},null,{"$f":"+SUMIFS('PdI-crono_inv'!BH:BH,'PdI-crono_inv'!CF:CF,F912,'PdI-crono_inv'!CE:CE,H912,'PdI-crono_inv'!J:J,P912,'PdI-crono_inv'!P:P,\"<>proprietario\")+S912","v":0},null,null,"RES",{"$f":"+VLOOKUP(F912,TT_Tabelle_Riferimento!$D$127:$E$164,2,FALSE)","v":"Comune"},"",0]
[0,0,"Gestore",0,"IP",35,{"$f":"+VLOOKUP(F913,TT_Tabelle_Riferimento!$D$127:$G$164,4,FALSE)","v":"Costruzioni leggere"},3,{"$f":"+VLOOKUP(H913,TT_Tabelle_Riferimento!$F$3:$G$6,2,FALSE)","v":"Altri servizi idrici"},2028,{"$f":"+SUMIFS('PdI-crono_inv'!BG:BG,'PdI-crono_inv'!CF:CF,F913,'PdI-crono_inv'!CE:CE,H913,'PdI-crono_inv'!J:J,P913,'PdI-crono_inv'!P:P,\"<>proprietario\")","v":0},null,{"$f":"+SUMIFS('PdI-crono_inv'!BH:BH,'PdI-crono_inv'!CF:CF,F913,'PdI-crono_inv'!CE:CE,H913,'PdI-crono_inv'!J:J,P913,'PdI-crono_inv'!P:P,\"<>proprietario\")+S913","v":0},null,null,"RES",{"$f":"+VLOOKUP(F913,TT_Tabelle_Riferimento!$D$127:$E$164,2,FALSE)","v":"Comune"},"",0]
[0,0,"Gestore",0,"IP",36,{"$f":"+VLOOKUP(F914,TT_Tabelle_Riferimento!$D$127:$G$164,4,FALSE)","v":"Studi, ricerche, brevetti, diritti di utilizzazione"},3,{"$f":"+VLOOKUP(H914,TT_Tabelle_Riferimento!$F$3:$G$6,2,FALSE)","v":"Altri servizi idrici"},2028,{"$f":"+SUMIFS('PdI-crono_inv'!BG:BG,'PdI-crono_inv'!CF:CF,F914,'PdI-crono_inv'!CE:CE,H914,'PdI-crono_inv'!J:J,P914,'PdI-crono_inv'!P:P,\"<>proprietario\")","v":0},null,{"$f":"+SUMIFS('PdI-crono_inv'!BH:BH,'PdI-crono_inv'!CF:CF,F914,'PdI-crono_inv'!CE:CE,H914,'PdI-crono_inv'!J:J,P914,'PdI-crono_inv'!P:P,\"<>proprietario\")+S914","v":0},null,null,"RES",{"$f":"+VLOOKUP(F914,TT_Tabelle_Riferimento!$D$127:$E$164,2,FALSE)","v":"Comune"},"",0]
[0,0,"Gestore",0,"IP",37,{"$f":"+VLOOKUP(F915,TT_Tabelle_Riferimento!$D$127:$G$164,4,FALSE)","v":"Altre immobilizzazioni materiali e immateriali"},3,{"$f":"+VLOOKUP(H915,TT_Tabelle_Riferimento!$F$3:$G$6,2,FALSE)","v":"Altri servizi idrici"},2028,{"$f":"+SUMIFS('PdI-crono_inv'!BG:BG,'PdI-crono_inv'!CF:CF,F915,'PdI-crono_inv'!CE:CE,H915,'PdI-crono_inv'!J:J,P915,'PdI-crono_inv'!P:P,\"<>proprietario\")","v":0},null,{"$f":"+SUMIFS('PdI-crono_inv'!BH:BH,'PdI-crono_inv'!CF:CF,F915,'PdI-crono_inv'!CE:CE,H915,'PdI-crono_inv'!J:J,P915,'PdI-crono_inv'!P:P,\"<>proprietario\")+S915","v":0},null,null,"RES",{"$f":"+VLOOKUP(F915,TT_Tabelle_Riferimento!$D$127:$E$164,2,FALSE)","v":"Comune"},"",0]
[0,0,"Gestore",0,"IP",38,{"$f":"+VLOOKUP(F916,TT_Tabelle_Riferimento!$D$127:$G$164,4,FALSE)","v":"Grandi dighe (sbarramenti che superano i quindici metri di altezza o che determinano un invaso superiore a 1 milione di metri cubi)"},3,{"$f":"+VLOOKUP(H916,TT_Tabelle_Riferimento!$F$3:$G$6,2,FALSE)","v":"Altri servizi idrici"},2028,{"$f":"+SUMIFS('PdI-crono_inv'!BG:BG,'PdI-crono_inv'!CF:CF,F916,'PdI-crono_inv'!CE:CE,H916,'PdI-crono_inv'!J:J,P916,'PdI-crono_inv'!P:P,\"<>proprietario\")","v":0},null,{"$f":"+SUMIFS('PdI-crono_inv'!BH:BH,'PdI-crono_inv'!CF:CF,F916,'PdI-crono_inv'!CE:CE,H916,'PdI-crono_inv'!J:J,P916,'PdI-crono_inv'!P:P,\"<>proprietario\")+S916","v":0},null,null,"RES",{"$f":"+VLOOKUP(F916,TT_Tabelle_Riferimento!$D$127:$E$164,2,FALSE)","v":"Acquedotto"},"",0]
[0,0,"Gestore",0,"IP",39,{"$f":"+VLOOKUP(F917,TT_Tabelle_Riferimento!$D$127:$G$164,4,FALSE)","v":"Piccole dighe (sbarramenti che non superano i quindici metri di altezza o che determinano un invaso non superiore a 1 milione di metri cubi)"},3,{"$f":"+VLOOKUP(H917,TT_Tabelle_Riferimento!$F$3:$G$6,2,FALSE)","v":"Altri servizi idrici"},2028,{"$f":"+SUMIFS('PdI-crono_inv'!BG:BG,'PdI-crono_inv'!CF:CF,F917,'PdI-crono_inv'!CE:CE,H917,'PdI-crono_inv'!J:J,P917,'PdI-crono_inv'!P:P,\"<>proprietario\")","v":0},null,{"$f":"+SUMIFS('PdI-crono_inv'!BH:BH,'PdI-crono_inv'!CF:CF,F917,'PdI-crono_inv'!CE:CE,H917,'PdI-crono_inv'!J:J,P917,'PdI-crono_inv'!P:P,\"<>proprietario\")+S917","v":0},null,null,"RES",{"$f":"+VLOOKUP(F917,TT_Tabelle_Riferimento!$D$127:$E$164,2,FALSE)","v":"Acquedotto"},"",0]
[0,0,"Gestore",0,"IP",2,{"$f":"+VLOOKUP(F918,TT_Tabelle_Riferimento!$D$127:$G$164,4,FALSE)","v":"Condotte di acquedotto"},1,{"$f":"+VLOOKUP(H918,TT_Tabelle_Riferimento!$F$3:$G$6,2,FALSE)","v":"Servizio idrico integrato"},2028,{"$f":"+SUMIFS('PdI-crono_inv'!BG:BG,'PdI-crono_inv'!CF:CF,F918,'PdI-crono_inv'!CE:CE,H918,'PdI-crono_inv'!J:J,P918,'PdI-crono_inv'!P:P,\"<>proprietario\")","v":0},null,{"$f":"+SUMIFS('PdI-crono_inv'!BH:BH,'PdI-crono_inv'!CF:CF,F918,'PdI-crono_inv'!CE:CE,H918,'PdI-crono_inv'!J:J,P918,'PdI-crono_inv'!P:P,\"<>proprietario\")+S918","v":0},null,null,"Non ERC",{"$f":"+VLOOKUP(F918,TT_Tabelle_Riferimento!$D$127:$E$164,2,FALSE)","v":"Acquedotto"},"",0]
[0,0,"Gestore",0,"IP",3,{"$f":"+VLOOKUP(F919,TT_Tabelle_Riferimento!$D$127:$G$164,4,FALSE)","v":"Opere idrauliche fisse di acquedotto"},1,{"$f":"+VLOOKUP(H919,TT_Tabelle_Riferimento!$F$3:$G$6,2,FALSE)","v":"Servizio idrico integrato"},2028,{"$f":"+SUMIFS('PdI-crono_inv'!BG:BG,'PdI-crono_inv'!CF:CF,F919,'PdI-crono_inv'!CE:CE,H919,'PdI-crono_inv'!J:J,P919,'PdI-crono_inv'!P:P,\"<>proprietario\")","v":0},null,{"$f":"+SUMIFS('PdI-crono_inv'!BH:BH,'PdI-crono_inv'!CF:CF,F919,'PdI-crono_inv'!CE:CE,H919,'PdI-crono_inv'!J:J,P919,'PdI-crono_inv'!P:P,\"<>proprietario\")+S919","v":0},null,null,"Non ERC",{"$f":"+VLOOKUP(F919,TT_Tabelle_Riferimento!$D$127:$E$164,2,FALSE)","v":"Acquedotto"},"",0]
[0,0,"Gestore",0,"IP",4,{"$f":"+VLOOKUP(F920,TT_Tabelle_Riferimento!$D$127:$G$164,4,FALSE)","v":"Serbatoi"},1,{"$f":"+VLOOKUP(H920,TT_Tabelle_Riferimento!$F$3:$G$6,2,FALSE)","v":"Servizio idrico integrato"},2028,{"$f":"+SUMIFS('PdI-crono_inv'!BG:BG,'PdI-crono_inv'!CF:CF,F920,'PdI-crono_inv'!CE:CE,H920,'PdI-crono_inv'!J:J,P920,'PdI-crono_inv'!P:P,\"<>proprietario\")","v":0},null,{"$f":"+SUMIFS('PdI-crono_inv'!BH:BH,'PdI-crono_inv'!CF:CF,F920,'PdI-crono_inv'!CE:CE,H920,'PdI-crono_inv'!J:J,P920,'PdI-crono_inv'!P:P,\"<>proprietario\")+S920","v":0},null,null,"Non ERC",{"$f":"+VLOOKUP(F920,TT_Tabelle_Riferimento!$D$127:$E$164,2,FALSE)","v":"Acquedotto"},{"$f":"+IF(SUM(K920:N920)=0,\"\",\"PdI_consolidamento\")","v":""},0]
[0,0,"Gestore",0,"IP",5,{"$f":"+VLOOKUP(F921,TT_Tabelle_Riferimento!$D$127:$G$164,4,FALSE)","v":"Impianti di sollevamento e pompaggio di acquedotto"},1,{"$f":"+VLOOKUP(H921,TT_Tabelle_Riferimento!$F$3:$G$6,2,FALSE)","v":"Servizio idrico integrato"},2028,{"$f":"+SUMIFS('PdI-crono_inv'!BG:BG,'PdI-crono_inv'!CF:CF,F921,'PdI-crono_inv'!CE:CE,H921,'PdI-crono_inv'!J:J,P921,'PdI-crono_inv'!P:P,\"<>proprietario\")","v":0},null,{"$f":"+SUMIFS('PdI-crono_inv'!BH:BH,'PdI-crono_inv'!CF:CF,F921,'PdI-crono_inv'!CE:CE,H921,'PdI-crono_inv'!J:J,P921,'PdI-crono_inv'!P:P,\"<>proprietario\")+S921","v":0},null,null,"Non ERC",{"$f":"+VLOOKUP(F921,TT_Tabelle_Riferimento!$D$127:$E$164,2,FALSE)","v":"Acquedotto"},"",0]
[0,0,"Gestore",0,"IP",6,{"$f":"+VLOOKUP(F922,TT_Tabelle_Riferimento!$D$127:$G$164,4,FALSE)","v":"Impianti di potabilizzazione"},1,{"$f":"+VLOOKUP(H922,TT_Tabelle_Riferimento!$F$3:$G$6,2,FALSE)","v":"Servizio idrico integrato"},2028,{"$f":"+SUMIFS('PdI-crono_inv'!BG:BG,'PdI-crono_inv'!CF:CF,F922,'PdI-crono_inv'!CE:CE,H922,'PdI-crono_inv'!J:J,P922,'PdI-crono_inv'!P:P,\"<>proprietario\")","v":0},null,{"$f":"+SUMIFS('PdI-crono_inv'!BH:BH,'PdI-crono_inv'!CF:CF,F922,'PdI-crono_inv'!CE:CE,H922,'PdI-crono_inv'!J:J,P922,'PdI-crono_inv'!P:P,\"<>proprietario\")+S922","v":0},null,null,"Non ERC",{"$f":"+VLOOKUP(F922,TT_Tabelle_Riferimento!$D$127:$E$164,2,FALSE)","v":"Acquedotto"},"",0]
[0,0,"Gestore",0,"IP",7,{"$f":"+VLOOKUP(F923,TT_Tabelle_Riferimento!$D$127:$G$164,4,FALSE)","v":"Altri trattamenti di potabilizzazione (tra cui dispositivi di disinfezione, stacciatura, filtrazione, addolcimento)"},1,{"$f":"+VLOOKUP(H923,TT_Tabelle_Riferimento!$F$3:$G$6,2,FALSE)","v":"Servizio idrico integrato"},2028,{"$f":"+SUMIFS('PdI-crono_inv'!BG:BG,'PdI-crono_inv'!CF:CF,F923,'PdI-crono_inv'!CE:CE,H923,'PdI-crono_inv'!J:J,P923,'PdI-crono_inv'!P:P,\"<>proprietario\")","v":0},null,{"$f":"+SUMIFS('PdI-crono_inv'!BH:BH,'PdI-crono_inv'!CF:CF,F923,'PdI-crono_inv'!CE:CE,H923,'PdI-crono_inv'!J:J,P923,'PdI-crono_inv'!P:P,\"<>proprietario\")+S923","v":0},null,null,"Non ERC",{"$f":"+VLOOKUP(F923,TT_Tabelle_Riferimento!$D$127:$E$164,2,FALSE)","v":"Acquedotto"},"",0]
[0,0,"Gestore",0,"IP",8,{"$f":"+VLOOKUP(F924,TT_Tabelle_Riferimento!$D$127:$G$164,4,FALSE)","v":"Gruppi di misura - altre attrezzature di acquedotto"},1,{"$f":"+VLOOKUP(H924,TT_Tabelle_Riferimento!$F$3:$G$6,2,FALSE)","v":"Servizio idrico integrato"},2028,{"$f":"+SUMIFS('PdI-crono_inv'!BG:BG,'PdI-crono_inv'!CF:CF,F924,'PdI-crono_inv'!CE:CE,H924,'PdI-crono_inv'!J:J,P924,'PdI-crono_inv'!P:P,\"<>proprietario\")","v":0},null,{"$f":"+SUMIFS('PdI-crono_inv'!BH:BH,'PdI-crono_inv'!CF:CF,F924,'PdI-crono_inv'!CE:CE,H924,'PdI-crono_inv'!J:J,P924,'PdI-crono_inv'!P:P,\"<>proprietario\")+S924","v":0},null,null,"Non ERC",{"$f":"+VLOOKUP(F924,TT_Tabelle_Riferimento!$D$127:$E$164,2,FALSE)","v":"Acquedotto"},"",0]
[0,0,"Gestore",0,"IP",9,{"$f":"+VLOOKUP(F925,TT_Tabelle_Riferimento!$D$127:$G$164,4,FALSE)","v":"Sistemi informativi di acquedotto"},1,{"$f":"+VLOOKUP(H925,TT_Tabelle_Riferimento!$F$3:$G$6,2,FALSE)","v":"Servizio idrico integrato"},2028,{"$f":"+SUMIFS('PdI-crono_inv'!BG:BG,'PdI-crono_inv'!CF:CF,F925,'PdI-crono_inv'!CE:CE,H925,'PdI-crono_inv'!J:J,P925,'PdI-crono_inv'!P:P,\"<>proprietario\")","v":0},null,{"$f":"+SUMIFS('PdI-crono_inv'!BH:BH,'PdI-crono_inv'!CF:CF,F925,'PdI-crono_inv'!CE:CE,H925,'PdI-crono_inv'!J:J,P925,'PdI-crono_inv'!P:P,\"<>proprietario\")+S925","v":0},null,null,"Non ERC",{"$f":"+VLOOKUP(F925,TT_Tabelle_Riferimento!$D$127:$E$164,2,FALSE)","v":"Acquedotto"},"",0]
[0,0,"Gestore",0,"IP",10,{"$f":"+VLOOKUP(F926,TT_Tabelle_Riferimento!$D$127:$G$164,4,FALSE)","v":"Telecontrollo e teletrasmissione di acquedotto"},1,{"$f":"+VLOOKUP(H926,TT_Tabelle_Riferimento!$F$3:$G$6,2,FALSE)","v":"Servizio idrico integrato"},2028,{"$f":"+SUMIFS('PdI-crono_inv'!BG:BG,'PdI-crono_inv'!CF:CF,F926,'PdI-crono_inv'!CE:CE,H926,'PdI-crono_inv'!J:J,P926,'PdI-crono_inv'!P:P,\"<>proprietario\")","v":0},null,{"$f":"+SUMIFS('PdI-crono_inv'!BH:BH,'PdI-crono_inv'!CF:CF,F926,'PdI-crono_inv'!CE:CE,H926,'PdI-crono_inv'!J:J,P926,'PdI-crono_inv'!P:P,\"<>proprietario\")+S926","v":0},null,null,"Non ERC",{"$f":"+VLOOKUP(F926,TT_Tabelle_Riferimento!$D$127:$E$164,2,FALSE)","v":"Acquedotto"},"",0]
[0,0,"Gestore",0,"IP",11,{"$f":"+VLOOKUP(F927,TT_Tabelle_Riferimento!$D$127:$G$164,4,FALSE)","v":"Condotte fognarie"},1,{"$f":"+VLOOKUP(H927,TT_Tabelle_Riferimento!$F$3:$G$6,2,FALSE)","v":"Servizio idrico integrato"},2028,{"$f":"+SUMIFS('PdI-crono_inv'!BG:BG,'PdI-crono_inv'!CF:CF,F927,'PdI-crono_inv'!CE:CE,H927,'PdI-crono_inv'!J:J,P927,'PdI-crono_inv'!P:P,\"<>proprietario\")","v":0},null,{"$f":"+SUMIFS('PdI-crono_inv'!BH:BH,'PdI-crono_inv'!CF:CF,F927,'PdI-crono_inv'!CE:CE,H927,'PdI-crono_inv'!J:J,P927,'PdI-crono_inv'!P:P,\"<>proprietario\")+S927","v":0},null,null,"Non ERC",{"$f":"+VLOOKUP(F927,TT_Tabelle_Riferimento!$D$127:$E$164,2,FALSE)","v":"Fognatura"},"",0]
[0,0,"Gestore",0,"IP",12,{"$f":"+VLOOKUP(F928,TT_Tabelle_Riferimento!$D$127:$G$164,4,FALSE)","v":"Sifoni e scaricatori di piena e altre opere idrauliche fisse di fognatura"},1,{"$f":"+VLOOKUP(H928,TT_Tabelle_Riferimento!$F$3:$G$6,2,FALSE)","v":"Servizio idrico integrato"},2028,{"$f":"+SUMIFS('PdI-crono_inv'!BG:BG,'PdI-crono_inv'!CF:CF,F928,'PdI-crono_inv'!CE:CE,H928,'PdI-crono_inv'!J:J,P928,'PdI-crono_inv'!P:P,\"<>proprietario\")","v":0},null,{"$f":"+SUMIFS('PdI-crono_inv'!BH:BH,'PdI-crono_inv'!CF:CF,F928,'PdI-crono_inv'!CE:CE,H928,'PdI-crono_inv'!J:J,P928,'PdI-crono_inv'!P:P,\"<>proprietario\")+S928","v":0},null,null,"Non ERC",{"$f":"+VLOOKUP(F928,TT_Tabelle_Riferimento!$D$127:$E$164,2,FALSE)","v":"Fognatura"},"",0]
[0,0,"Gestore",0,"IP",13,{"$f":"+VLOOKUP(F929,TT_Tabelle_Riferimento!$D$127:$G$164,4,FALSE)","v":"Vasche di laminazione e vasche di prima pioggia"},1,{"$f":"+VLOOKUP(H929,TT_Tabelle_Riferimento!$F$3:$G$6,2,FALSE)","v":"Servizio idrico integrato"},2028,{"$f":"+SUMIFS('PdI-crono_inv'!BG:BG,'PdI-crono_inv'!CF:CF,F929,'PdI-crono_inv'!CE:CE,H929,'PdI-crono_inv'!J:J,P929,'PdI-crono_inv'!P:P,\"<>proprietario\")","v":0},null,{"$f":"+SUMIFS('PdI-crono_inv'!BH:BH,'PdI-crono_inv'!CF:CF,F929,'PdI-crono_inv'!CE:CE,H929,'PdI-crono_inv'!J:J,P929,'PdI-crono_inv'!P:P,\"<>proprietario\")+S929","v":0},null,null,"Non ERC",{"$f":"+VLOOKUP(F929,TT_Tabelle_Riferimento!$D$127:$E$164,2,FALSE)","v":"Fognatura"},"",0]
[0,0,"Gestore",0,"IP",14,{"$f":"+VLOOKUP(F930,TT_Tabelle_Riferimento!$D$127:$G$164,4,FALSE)","v":"Impianti di sollevamento e pompaggio di fognatura"},1,{"$f":"+VLOOKUP(H930,TT_Tabelle_Riferimento!$F$3:$G$6,2,FALSE)","v":"Servizio idrico integrato"},2028,{"$f":"+SUMIFS('PdI-crono_inv'!BG:BG,'PdI-crono_inv'!CF:CF,F930,'PdI-crono_inv'!CE:CE,H930,'PdI-crono_inv'!J:J,P930,'PdI-crono_inv'!P:P,\"<>proprietario\")","v":0},null,{"$f":"+SUMIFS('PdI-crono_inv'!BH:BH,'PdI-crono_inv'!CF:CF,F930,'PdI-crono_inv'!CE:CE,H930,'PdI-crono_inv'!J:J,P930,'PdI-crono_inv'!P:P,\"<>proprietario\")+S930","v":0},null,null,"Non ERC",{"$f":"+VLOOKUP(F930,TT_Tabelle_Riferimento!$D$127:$E$164,2,FALSE)","v":"Fognatura"},"",0]
[0,0,"Gestore",0,"IP",15,{"$f":"+VLOOKUP(F931,TT_Tabelle_Riferimento!$D$127:$G$164,4,FALSE)","v":"Gruppi di misura - altre attrezzature di fognatura"},1,{"$f":"+VLOOKUP(H931,TT_Tabelle_Riferimento!$F$3:$G$6,2,FALSE)","v":"Servizio idrico integrato"},2028,{"$f":"+SUMIFS('PdI-crono_inv'!BG:BG,'PdI-crono_inv'!CF:CF,F931,'PdI-crono_inv'!CE:CE,H931,'PdI-crono_inv'!J:J,P931,'PdI-crono_inv'!P:P,\"<>proprietario\")","v":0},null,{"$f":"+SUMIFS('PdI-crono_inv'!BH:BH,'PdI-crono_inv'!CF:CF,F931,'PdI-crono_inv'!CE:CE,H931,'PdI-crono_inv'!J:J,P931,'PdI-crono_inv'!P:P,\"<>proprietario\")+S931","v":0},null,null,"Non ERC",{"$f":"+VLOOKUP(F931,TT_Tabelle_Riferimento!$D$127:$E$164,2,FALSE)","v":"Fognatura"},"",0]
[0,0,"Gestore",0,"IP",16,{"$f":"+VLOOKUP(F932,TT_Tabelle_Riferimento!$D$127:$G$164,4,FALSE)","v":"Sistemi informativi di fognatura"},1,{"$f":"+VLOOKUP(H932,TT_Tabelle_Riferimento!$F$3:$G$6,2,FALSE)","v":"Servizio idrico integrato"},2028,{"$f":"+SUMIFS('PdI-crono_inv'!BG:BG,'PdI-crono_inv'!CF:CF,F932,'PdI-crono_inv'!CE:CE,H932,'PdI-crono_inv'!J:J,P932,'PdI-crono_inv'!P:P,\"<>proprietario\")","v":0},null,{"$f":"+SUMIFS('PdI-crono_inv'!BH:BH,'PdI-crono_inv'!CF:CF,F932,'PdI-crono_inv'!CE:CE,H932,'PdI-crono_inv'!J:J,P932,'PdI-crono_inv'!P:P,\"<>proprietario\")+S932","v":0},null,null,"Non ERC",{"$f":"+VLOOKUP(F932,TT_Tabelle_Riferimento!$D$127:$E$164,2,FALSE)","v":"Fognatura"},"",0]
[0,0,"Gestore",0,"IP",18,{"$f":"+VLOOKUP(F933,TT_Tabelle_Riferimento!$D$127:$G$164,4,FALSE)","v":"Telecontrollo e teletrasmissione di fognatura"},1,{"$f":"+VLOOKUP(H933,TT_Tabelle_Riferimento!$F$3:$G$6,2,FALSE)","v":"Servizio idrico integrato"},2028,{"$f":"+SUMIFS('PdI-crono_inv'!BG:BG,'PdI-crono_inv'!CF:CF,F933,'PdI-crono_inv'!CE:CE,H933,'PdI-crono_inv'!J:J,P933,'PdI-crono_inv'!P:P,\"<>proprietario\")","v":0},null,{"$f":"+SUMIFS('PdI-crono_inv'!BH:BH,'PdI-crono_inv'!CF:CF,F933,'PdI-crono_inv'!CE:CE,H933,'PdI-crono_inv'!J:J,P933,'PdI-crono_inv'!P:P,\"<>proprietario\")+S933","v":0},null,null,"Non ERC",{"$f":"+VLOOKUP(F933,TT_Tabelle_Riferimento!$D$127:$E$164,2,FALSE)","v":"Fognatura"},"",0]
[0,0,"Gestore",0,"IP",19,{"$f":"+VLOOKUP(F934,TT_Tabelle_Riferimento!$D$127:$G$164,4,FALSE)","v":"Impianti di sollevamento e pompaggio di depurazione"},1,{"$f":"+VLOOKUP(H934,TT_Tabelle_Riferimento!$F$3:$G$6,2,FALSE)","v":"Servizio idrico integrato"},2028,{"$f":"+SUMIFS('PdI-crono_inv'!BG:BG,'PdI-crono_inv'!CF:CF,F934,'PdI-crono_inv'!CE:CE,H934,'PdI-crono_inv'!J:J,P934,'PdI-crono_inv'!P:P,\"<>proprietario\")","v":0},null,{"$f":"+SUMIFS('PdI-crono_inv'!BH:BH,'PdI-crono_inv'!CF:CF,F934,'PdI-crono_inv'!CE:CE,H934,'PdI-crono_inv'!J:J,P934,'PdI-crono_inv'!P:P,\"<>proprietario\")+S934","v":0},null,null,"Non ERC",{"$f":"+VLOOKUP(F934,TT_Tabelle_Riferimento!$D$127:$E$164,2,FALSE)","v":"Depurazione"},"",0]
[0,0,"Gestore",0,"IP",20,{"$f":"+VLOOKUP(F935,TT_Tabelle_Riferimento!$D$127:$G$164,4,FALSE)","v":"Tecniche naturali di depurazione (tra cui fitodepurazione e lagunaggio)"},1,{"$f":"+VLOOKUP(H935,TT_Tabelle_Riferimento!$F$3:$G$6,2,FALSE)","v":"Servizio idrico integrato"},2028,{"$f":"+SUMIFS('PdI-crono_inv'!BG:BG,'PdI-crono_inv'!CF:CF,F935,'PdI-crono_inv'!CE:CE,H935,'PdI-crono_inv'!J:J,P935,'PdI-crono_inv'!P:P,\"<>proprietario\")","v":0},null,{"$f":"+SUMIFS('PdI-crono_inv'!BH:BH,'PdI-crono_inv'!CF:CF,F935,'PdI-crono_inv'!CE:CE,H935,'PdI-crono_inv'!J:J,P935,'PdI-crono_inv'!P:P,\"<>proprietario\")+S935","v":0},null,null,"Non ERC",{"$f":"+VLOOKUP(F935,TT_Tabelle_Riferimento!$D$127:$E$164,2,FALSE)","v":"Depurazione"},"",0]
[0,0,"Gestore",0,"IP",21,{"$f":"+VLOOKUP(F936,TT_Tabelle_Riferimento!$D$127:$G$164,4,FALSE)","v":"Impianti di depurazione – trattamenti sino al preliminare, integrativo, primario - fosse settiche e fosse Imhoff"},1,{"$f":"+VLOOKUP(H936,TT_Tabelle_Riferimento!$F$3:$G$6,2,FALSE)","v":"Servizio idrico integrato"},2028,{"$f":"+SUMIFS('PdI-crono_inv'!BG:BG,'PdI-crono_inv'!CF:CF,F936,'PdI-crono_inv'!CE:CE,H936,'PdI-crono_inv'!J:J,P936,'PdI-crono_inv'!P:P,\"<>proprietario\")","v":0},null,{"$f":"+SUMIFS('PdI-crono_inv'!BH:BH,'PdI-crono_inv'!CF:CF,F936,'PdI-crono_inv'!CE:CE,H936,'PdI-crono_inv'!J:J,P936,'PdI-crono_inv'!P:P,\"<>proprietario\")+S936","v":0},null,null,"Non ERC",{"$f":"+VLOOKUP(F936,TT_Tabelle_Riferimento!$D$127:$E$164,2,FALSE)","v":"Depurazione"},"",0]
[0,0,"Gestore",0,"IP",22,{"$f":"+VLOOKUP(F937,TT_Tabelle_Riferimento!$D$127:$G$164,4,FALSE)","v":"Impianti di depurazione – trattamenti sino al secondario"},1,{"$f":"+VLOOKUP(H937,TT_Tabelle_Riferimento!$F$3:$G$6,2,FALSE)","v":"Servizio idrico integrato"},2028,{"$f":"+SUMIFS('PdI-crono_inv'!BG:BG,'PdI-crono_inv'!CF:CF,F937,'PdI-crono_inv'!CE:CE,H937,'PdI-crono_inv'!J:J,P937,'PdI-crono_inv'!P:P,\"<>proprietario\")","v":0},null,{"$f":"+SUMIFS('PdI-crono_inv'!BH:BH,'PdI-crono_inv'!CF:CF,F937,'PdI-crono_inv'!CE:CE,H937,'PdI-crono_inv'!J:J,P937,'PdI-crono_inv'!P:P,\"<>proprietario\")+S937","v":0},null,null,"Non ERC",{"$f":"+VLOOKUP(F937,TT_Tabelle_Riferimento!$D$127:$E$164,2,FALSE)","v":"Depurazione"},"",0]
[0,0,"Gestore",0,"IP",23,{"$f":"+VLOOKUP(F938,TT_Tabelle_Riferimento!$D$127:$G$164,4,FALSE)","v":"Impianti di depurazione – trattamenti sino al terziario e terziario avanzato"},1,{"$f":"+VLOOKUP(H938,TT_Tabelle_Riferimento!$F$3:$G$6,2,FALSE)","v":"Servizio idrico integrato"},2028,{"$f":"+SUMIFS('PdI-crono_inv'!BG:BG,'PdI-crono_inv'!CF:CF,F938,'PdI-crono_inv'!CE:CE,H938,'PdI-crono_inv'!J:J,P938,'PdI-crono_inv'!P:P,\"<>proprietario\")","v":0},null,{"$f":"+SUMIFS('PdI-crono_inv'!BH:BH,'PdI-crono_inv'!CF:CF,F938,'PdI-crono_inv'!CE:CE,H938,'PdI-crono_inv'!J:J,P938,'PdI-crono_inv'!P:P,\"<>proprietario\")+S938","v":0},null,null,"Non ERC",{"$f":"+VLOOKUP(F938,TT_Tabelle_Riferimento!$D$127:$E$164,2,FALSE)","v":"Depurazione"},"",0]
[0,0,"Gestore",0,"IP",24,{"$f":"+VLOOKUP(F939,TT_Tabelle_Riferimento!$D$127:$G$164,4,FALSE)","v":"Impianti di essiccamento fanghi e di valorizzazione dei fanghi (tra cui mono-incenerimento, pirolisi, gassificazione)"},1,{"$f":"+VLOOKUP(H939,TT_Tabelle_Riferimento!$F$3:$G$6,2,FALSE)","v":"Servizio idrico integrato"},2028,{"$f":"+SUMIFS('PdI-crono_inv'!BG:BG,'PdI-crono_inv'!CF:CF,F939,'PdI-crono_inv'!CE:CE,H939,'PdI-crono_inv'!J:J,P939,'PdI-crono_inv'!P:P,\"<>proprietario\")","v":0},null,{"$f":"+SUMIFS('PdI-crono_inv'!BH:BH,'PdI-crono_inv'!CF:CF,F939,'PdI-crono_inv'!CE:CE,H939,'PdI-crono_inv'!J:J,P939,'PdI-crono_inv'!P:P,\"<>proprietario\")+S939","v":0},null,null,"Non ERC",{"$f":"+VLOOKUP(F939,TT_Tabelle_Riferimento!$D$127:$E$164,2,FALSE)","v":"Depurazione"},"",0]
[0,0,"Gestore",0,"IP",25,{"$f":"+VLOOKUP(F940,TT_Tabelle_Riferimento!$D$127:$G$164,4,FALSE)","v":"Gruppi di misura - altre attrezzature di depurazione"},1,{"$f":"+VLOOKUP(H940,TT_Tabelle_Riferimento!$F$3:$G$6,2,FALSE)","v":"Servizio idrico integrato"},2028,{"$f":"+SUMIFS('PdI-crono_inv'!BG:BG,'PdI-crono_inv'!CF:CF,F940,'PdI-crono_inv'!CE:CE,H940,'PdI-crono_inv'!J:J,P940,'PdI-crono_inv'!P:P,\"<>proprietario\")","v":0},null,{"$f":"+SUMIFS('PdI-crono_inv'!BH:BH,'PdI-crono_inv'!CF:CF,F940,'PdI-crono_inv'!CE:CE,H940,'PdI-crono_inv'!J:J,P940,'PdI-crono_inv'!P:P,\"<>proprietario\")+S940","v":0},null,null,"Non ERC",{"$f":"+VLOOKUP(F940,TT_Tabelle_Riferimento!$D$127:$E$164,2,FALSE)","v":"Depurazione"},"",0]
[0,0,"Gestore",0,"IP",26,{"$f":"+VLOOKUP(F941,TT_Tabelle_Riferimento!$D$127:$G$164,4,FALSE)","v":"Sistemi informativi di depurazione"},1,{"$f":"+VLOOKUP(H941,TT_Tabelle_Riferimento!$F$3:$G$6,2,FALSE)","v":"Servizio idrico integrato"},2028,{"$f":"+SUMIFS('PdI-crono_inv'!BG:BG,'PdI-crono_inv'!CF:CF,F941,'PdI-crono_inv'!CE:CE,H941,'PdI-crono_inv'!J:J,P941,'PdI-crono_inv'!P:P,\"<>proprietario\")","v":0},null,{"$f":"+SUMIFS('PdI-crono_inv'!BH:BH,'PdI-crono_inv'!CF:CF,F941,'PdI-crono_inv'!CE:CE,H941,'PdI-crono_inv'!J:J,P941,'PdI-crono_inv'!P:P,\"<>proprietario\")+S941","v":0},null,null,"Non ERC",{"$f":"+VLOOKUP(F941,TT_Tabelle_Riferimento!$D$127:$E$164,2,FALSE)","v":"Depurazione"},"",0]
[0,0,"Gestore",0,"IP",27,{"$f":"+VLOOKUP(F942,TT_Tabelle_Riferimento!$D$127:$G$164,4,FALSE)","v":"Telecontrollo e teletrasmissione di depurazione"},1,{"$f":"+VLOOKUP(H942,TT_Tabelle_Riferimento!$F$3:$G$6,2,FALSE)","v":"Servizio idrico integrato"},2028,{"$f":"+SUMIFS('PdI-crono_inv'!BG:BG,'PdI-crono_inv'!CF:CF,F942,'PdI-crono_inv'!CE:CE,H942,'PdI-crono_inv'!J:J,P942,'PdI-crono_inv'!P:P,\"<>proprietario\")","v":0},null,{"$f":"+SUMIFS('PdI-crono_inv'!BH:BH,'PdI-crono_inv'!CF:CF,F942,'PdI-crono_inv'!CE:CE,H942,'PdI-crono_inv'!J:J,P942,'PdI-crono_inv'!P:P,\"<>proprietario\")+S942","v":0},null,null,"Non ERC",{"$f":"+VLOOKUP(F942,TT_Tabelle_Riferimento!$D$127:$E$164,2,FALSE)","v":"Depurazione"},"",0]
[0,0,"Gestore",0,"IP",28,{"$f":"+VLOOKUP(F943,TT_Tabelle_Riferimento!$D$127:$G$164,4,FALSE)","v":"Altri impianti"},1,{"$f":"+VLOOKUP(H943,TT_Tabelle_Riferimento!$F$3:$G$6,2,FALSE)","v":"Servizio idrico integrato"},2028,{"$f":"+SUMIFS('PdI-crono_inv'!BG:BG,'PdI-crono_inv'!CF:CF,F943,'PdI-crono_inv'!CE:CE,H943,'PdI-crono_inv'!J:J,P943,'PdI-crono_inv'!P:P,\"<>proprietario\")","v":0},null,{"$f":"+SUMIFS('PdI-crono_inv'!BH:BH,'PdI-crono_inv'!CF:CF,F943,'PdI-crono_inv'!CE:CE,H943,'PdI-crono_inv'!J:J,P943,'PdI-crono_inv'!P:P,\"<>proprietario\")+S943","v":0},null,null,"Non ERC",{"$f":"+VLOOKUP(F943,TT_Tabelle_Riferimento!$D$127:$E$164,2,FALSE)","v":"Comune"},"",0]
[{"$f":"+idato","v":0},{"$f":"+idgestore","v":0},"Gestore",0,"IP",29,{"$f":"+VLOOKUP(F944,TT_Tabelle_Riferimento!$D$127:$G$164,4,FALSE)","v":"Laboratori e attrezzature"},1,{"$f":"+VLOOKUP(H944,TT_Tabelle_Riferimento!$F$3:$G$6,2,FALSE)","v":"Servizio idrico integrato"},2028,{"$f":"+SUMIFS('PdI-crono_inv'!BG:BG,'PdI-crono_inv'!CF:CF,F944,'PdI-crono_inv'!CE:CE,H944,'PdI-crono_inv'!J:J,P944,'PdI-crono_inv'!P:P,\"<>proprietario\")","v":0},null,{"$f":"+SUMIFS('PdI-crono_inv'!BH:BH,'PdI-crono_inv'!CF:CF,F944,'PdI-crono_inv'!CE:CE,H944,'PdI-crono_inv'!J:J,P944,'PdI-crono_inv'!P:P,\"<>proprietario\")+S944","v":0},null,null,"Non ERC",{"$f":"+VLOOKUP(F944,TT_Tabelle_Riferimento!$D$127:$E$164,2,FALSE)","v":"Comune"},"",0]
[0,0,"Gestore",0,"IP",30,{"$f":"+VLOOKUP(F945,TT_Tabelle_Riferimento!$D$127:$G$164,4,FALSE)","v":"Sistemi informativi"},1,{"$f":"+VLOOKUP(H945,TT_Tabelle_Riferimento!$F$3:$G$6,2,FALSE)","v":"Servizio idrico integrato"},2028,{"$f":"+SUMIFS('PdI-crono_inv'!BG:BG,'PdI-crono_inv'!CF:CF,F945,'PdI-crono_inv'!CE:CE,H945,'PdI-crono_inv'!J:J,P945,'PdI-crono_inv'!P:P,\"<>proprietario\")","v":0},null,{"$f":"+SUMIFS('PdI-crono_inv'!BH:BH,'PdI-crono_inv'!CF:CF,F945,'PdI-crono_inv'!CE:CE,H945,'PdI-crono_inv'!J:J,P945,'PdI-crono_inv'!P:P,\"<>proprietario\")+S945","v":0},null,null,"Non ERC",{"$f":"+VLOOKUP(F945,TT_Tabelle_Riferimento!$D$127:$E$164,2,FALSE)","v":"Comune"},"",0]
[0,0,"Gestore",0,"IP",31,{"$f":"+VLOOKUP(F946,TT_Tabelle_Riferimento!$D$127:$G$164,4,FALSE)","v":"Telecontrollo e teletrasmissione"},1,{"$f":"+VLOOKUP(H946,TT_Tabelle_Riferimento!$F$3:$G$6,2,FALSE)","v":"Servizio idrico integrato"},2028,{"$f":"+SUMIFS('PdI-crono_inv'!BG:BG,'PdI-crono_inv'!CF:CF,F946,'PdI-crono_inv'!CE:CE,H946,'PdI-crono_inv'!J:J,P946,'PdI-crono_inv'!P:P,\"<>proprietario\")","v":0},null,{"$f":"+SUMIFS('PdI-crono_inv'!BH:BH,'PdI-crono_inv'!CF:CF,F946,'PdI-crono_inv'!CE:CE,H946,'PdI-crono_inv'!J:J,P946,'PdI-crono_inv'!P:P,\"<>proprietario\")+S946","v":0},null,null,"Non ERC",{"$f":"+VLOOKUP(F946,TT_Tabelle_Riferimento!$D$127:$E$164,2,FALSE)","v":"Comune"},"",0]
[0,0,"Gestore",0,"IP",32,{"$f":"+VLOOKUP(F947,TT_Tabelle_Riferimento!$D$127:$G$164,4,FALSE)","v":"Autoveicoli - automezzi"},1,{"$f":"+VLOOKUP(H947,TT_Tabelle_Riferimento!$F$3:$G$6,2,FALSE)","v":"Servizio idrico integrato"},2028,{"$f":"+SUMIFS('PdI-crono_inv'!BG:BG,'PdI-crono_inv'!CF:CF,F947,'PdI-crono_inv'!CE:CE,H947,'PdI-crono_inv'!J:J,P947,'PdI-crono_inv'!P:P,\"<>proprietario\")","v":0},null,{"$f":"+SUMIFS('PdI-crono_inv'!BH:BH,'PdI-crono_inv'!CF:CF,F947,'PdI-crono_inv'!CE:CE,H947,'PdI-crono_inv'!J:J,P947,'PdI-crono_inv'!P:P,\"<>proprietario\")+S947","v":0},null,null,"Non ERC",{"$f":"+VLOOKUP(F947,TT_Tabelle_Riferimento!$D$127:$E$164,2,FALSE)","v":"Comune"},"",0]
[0,0,"Gestore",0,"IP",1,{"$f":"+VLOOKUP(F948,TT_Tabelle_Riferimento!$D$127:$G$164,4,FALSE)","v":"Terreni"},1,{"$f":"+VLOOKUP(H948,TT_Tabelle_Riferimento!$F$3:$G$6,2,FALSE)","v":"Servizio idrico integrato"},2028,{"$f":"+SUMIFS('PdI-crono_inv'!BG:BG,'PdI-crono_inv'!CF:CF,F948,'PdI-crono_inv'!CE:CE,H948,'PdI-crono_inv'!J:J,P948,'PdI-crono_inv'!P:P,\"<>proprietario\")","v":0},null,{"$f":"+SUMIFS('PdI-crono_inv'!BH:BH,'PdI-crono_inv'!CF:CF,F948,'PdI-crono_inv'!CE:CE,H948,'PdI-crono_inv'!J:J,P948,'PdI-crono_inv'!P:P,\"<>proprietario\")+S948","v":0},null,null,"Non ERC",{"$f":"+VLOOKUP(F948,TT_Tabelle_Riferimento!$D$127:$E$164,2,FALSE)","v":"Comune"},"",0]
[0,0,"Gestore",0,"IP",33,{"$f":"+VLOOKUP(F949,TT_Tabelle_Riferimento!$D$127:$G$164,4,FALSE)","v":"Fabbricati non industriali"},1,{"$f":"+VLOOKUP(H949,TT_Tabelle_Riferimento!$F$3:$G$6,2,FALSE)","v":"Servizio idrico integrato"},2028,{"$f":"+SUMIFS('PdI-crono_inv'!BG:BG,'PdI-crono_inv'!CF:CF,F949,'PdI-crono_inv'!CE:CE,H949,'PdI-crono_inv'!J:J,P949,'PdI-crono_inv'!P:P,\"<>proprietario\")","v":0},null,{"$f":"+SUMIFS('PdI-crono_inv'!BH:BH,'PdI-crono_inv'!CF:CF,F949,'PdI-crono_inv'!CE:CE,H949,'PdI-crono_inv'!J:J,P949,'PdI-crono_inv'!P:P,\"<>proprietario\")+S949","v":0},null,null,"Non ERC",{"$f":"+VLOOKUP(F949,TT_Tabelle_Riferimento!$D$127:$E$164,2,FALSE)","v":"Comune"},"",0]
[0,0,"Gestore",0,"IP",34,{"$f":"+VLOOKUP(F950,TT_Tabelle_Riferimento!$D$127:$G$164,4,FALSE)","v":"Fabbricati industriali"},1,{"$f":"+VLOOKUP(H950,TT_Tabelle_Riferimento!$F$3:$G$6,2,FALSE)","v":"Servizio idrico integrato"},2028,{"$f":"+SUMIFS('PdI-crono_inv'!BG:BG,'PdI-crono_inv'!CF:CF,F950,'PdI-crono_inv'!CE:CE,H950,'PdI-crono_inv'!J:J,P950,'PdI-crono_inv'!P:P,\"<>proprietario\")","v":0},null,{"$f":"+SUMIFS('PdI-crono_inv'!BH:BH,'PdI-crono_inv'!CF:CF,F950,'PdI-crono_inv'!CE:CE,H950,'PdI-crono_inv'!J:J,P950,'PdI-crono_inv'!P:P,\"<>proprietario\")+S950","v":0},null,null,"Non ERC",{"$f":"+VLOOKUP(F950,TT_Tabelle_Riferimento!$D$127:$E$164,2,FALSE)","v":"Comune"},"",0]
[0,0,"Gestore",0,"IP",35,{"$f":"+VLOOKUP(F951,TT_Tabelle_Riferimento!$D$127:$G$164,4,FALSE)","v":"Costruzioni leggere"},1,{"$f":"+VLOOKUP(H951,TT_Tabelle_Riferimento!$F$3:$G$6,2,FALSE)","v":"Servizio idrico integrato"},2028,{"$f":"+SUMIFS('PdI-crono_inv'!BG:BG,'PdI-crono_inv'!CF:CF,F951,'PdI-crono_inv'!CE:CE,H951,'PdI-crono_inv'!J:J,P951,'PdI-crono_inv'!P:P,\"<>proprietario\")","v":0},null,{"$f":"+SUMIFS('PdI-crono_inv'!BH:BH,'PdI-crono_inv'!CF:CF,F951,'PdI-crono_inv'!CE:CE,H951,'PdI-crono_inv'!J:J,P951,'PdI-crono_inv'!P:P,\"<>proprietario\")+S951","v":0},null,null,"Non ERC",{"$f":"+VLOOKUP(F951,TT_Tabelle_Riferimento!$D$127:$E$164,2,FALSE)","v":"Comune"},"",0]
[0,0,"Gestore",0,"IP",36,{"$f":"+VLOOKUP(F952,TT_Tabelle_Riferimento!$D$127:$G$164,4,FALSE)","v":"Studi, ricerche, brevetti, diritti di utilizzazione"},1,{"$f":"+VLOOKUP(H952,TT_Tabelle_Riferimento!$F$3:$G$6,2,FALSE)","v":"Servizio idrico integrato"},2028,{"$f":"+SUMIFS('PdI-crono_inv'!BG:BG,'PdI-crono_inv'!CF:CF,F952,'PdI-crono_inv'!CE:CE,H952,'PdI-crono_inv'!J:J,P952,'PdI-crono_inv'!P:P,\"<>proprietario\")","v":0},null,{"$f":"+SUMIFS('PdI-crono_inv'!BH:BH,'PdI-crono_inv'!CF:CF,F952,'PdI-crono_inv'!CE:CE,H952,'PdI-crono_inv'!J:J,P952,'PdI-crono_inv'!P:P,\"<>proprietario\")+S952","v":0},null,null,"Non ERC",{"$f":"+VLOOKUP(F952,TT_Tabelle_Riferimento!$D$127:$E$164,2,FALSE)","v":"Comune"},"",0]
[0,0,"Gestore",0,"IP",37,{"$f":"+VLOOKUP(F953,TT_Tabelle_Riferimento!$D$127:$G$164,4,FALSE)","v":"Altre immobilizzazioni materiali e immateriali"},1,{"$f":"+VLOOKUP(H953,TT_Tabelle_Riferimento!$F$3:$G$6,2,FALSE)","v":"Servizio idrico integrato"},2028,{"$f":"+SUMIFS('PdI-crono_inv'!BG:BG,'PdI-crono_inv'!CF:CF,F953,'PdI-crono_inv'!CE:CE,H953,'PdI-crono_inv'!J:J,P953,'PdI-crono_inv'!P:P,\"<>proprietario\")","v":0},null,{"$f":"+SUMIFS('PdI-crono_inv'!BH:BH,'PdI-crono_inv'!CF:CF,F953,'PdI-crono_inv'!CE:CE,H953,'PdI-crono_inv'!J:J,P953,'PdI-crono_inv'!P:P,\"<>proprietario\")+S953","v":0},null,null,"Non ERC",{"$f":"+VLOOKUP(F953,TT_Tabelle_Riferimento!$D$127:$E$164,2,FALSE)","v":"Comune"},"",0]
[0,0,"Gestore",0,"IP",38,{"$f":"+VLOOKUP(F954,TT_Tabelle_Riferimento!$D$127:$G$164,4,FALSE)","v":"Grandi dighe (sbarramenti che superano i quindici metri di altezza o che determinano un invaso superiore a 1 milione di metri cubi)"},1,{"$f":"+VLOOKUP(H954,TT_Tabelle_Riferimento!$F$3:$G$6,2,FALSE)","v":"Servizio idrico integrato"},2028,{"$f":"+SUMIFS('PdI-crono_inv'!BG:BG,'PdI-crono_inv'!CF:CF,F954,'PdI-crono_inv'!CE:CE,H954,'PdI-crono_inv'!J:J,P954,'PdI-crono_inv'!P:P,\"<>proprietario\")","v":0},null,{"$f":"+SUMIFS('PdI-crono_inv'!BH:BH,'PdI-crono_inv'!CF:CF,F954,'PdI-crono_inv'!CE:CE,H954,'PdI-crono_inv'!J:J,P954,'PdI-crono_inv'!P:P,\"<>proprietario\")+S954","v":0},null,null,"Non ERC",{"$f":"+VLOOKUP(F954,TT_Tabelle_Riferimento!$D$127:$E$164,2,FALSE)","v":"Acquedotto"},"",0]
[0,0,"Gestore",0,"IP",39,{"$f":"+VLOOKUP(F955,TT_Tabelle_Riferimento!$D$127:$G$164,4,FALSE)","v":"Piccole dighe (sbarramenti che non superano i quindici metri di altezza o che determinano un invaso non superiore a 1 milione di metri cubi)"},1,{"$f":"+VLOOKUP(H955,TT_Tabelle_Riferimento!$F$3:$G$6,2,FALSE)","v":"Servizio idrico integrato"},2028,{"$f":"+SUMIFS('PdI-crono_inv'!BG:BG,'PdI-crono_inv'!CF:CF,F955,'PdI-crono_inv'!CE:CE,H955,'PdI-crono_inv'!J:J,P955,'PdI-crono_inv'!P:P,\"<>proprietario\")","v":0},null,{"$f":"+SUMIFS('PdI-crono_inv'!BH:BH,'PdI-crono_inv'!CF:CF,F955,'PdI-crono_inv'!CE:CE,H955,'PdI-crono_inv'!J:J,P955,'PdI-crono_inv'!P:P,\"<>proprietario\")+S955","v":0},null,null,"Non ERC",{"$f":"+VLOOKUP(F955,TT_Tabelle_Riferimento!$D$127:$E$164,2,FALSE)","v":"Acquedotto"},"",0]
[{"$f":"+idato","v":0},{"$f":"+idgestore","v":0},"Gestore",0,"IP",2,{"$f":"+VLOOKUP(F956,TT_Tabelle_Riferimento!$D$127:$G$164,4,FALSE)","v":"Condotte di acquedotto"},2,{"$f":"+VLOOKUP(H956,TT_Tabelle_Riferimento!$F$3:$G$6,2,FALSE)","v":"Fognatura bianca e pulizia / manutenzione caditoie stradali"},2028,{"$f":"+SUMIFS('PdI-crono_inv'!BG:BG,'PdI-crono_inv'!CF:CF,F956,'PdI-crono_inv'!CE:CE,H956,'PdI-crono_inv'!J:J,P956,'PdI-crono_inv'!P:P,\"<>proprietario\")","v":0},null,{"$f":"+SUMIFS('PdI-crono_inv'!BH:BH,'PdI-crono_inv'!CF:CF,F956,'PdI-crono_inv'!CE:CE,H956,'PdI-crono_inv'!J:J,P956,'PdI-crono_inv'!P:P,\"<>proprietario\")+S956","v":0},null,null,"Non ERC",{"$f":"+VLOOKUP(F956,TT_Tabelle_Riferimento!$D$127:$E$164,2,FALSE)","v":"Acquedotto"},"",0]
[0,0,"Gestore",0,"IP",3,{"$f":"+VLOOKUP(F957,TT_Tabelle_Riferimento!$D$127:$G$164,4,FALSE)","v":"Opere idrauliche fisse di acquedotto"},2,{"$f":"+VLOOKUP(H957,TT_Tabelle_Riferimento!$F$3:$G$6,2,FALSE)","v":"Fognatura bianca e pulizia / manutenzione caditoie stradali"},2028,{"$f":"+SUMIFS('PdI-crono_inv'!BG:BG,'PdI-crono_inv'!CF:CF,F957,'PdI-crono_inv'!CE:CE,H957,'PdI-crono_inv'!J:J,P957,'PdI-crono_inv'!P:P,\"<>proprietario\")","v":0},null,{"$f":"+SUMIFS('PdI-crono_inv'!BH:BH,'PdI-crono_inv'!CF:CF,F957,'PdI-crono_inv'!CE:CE,H957,'PdI-crono_inv'!J:J,P957,'PdI-crono_inv'!P:P,\"<>proprietario\")+S957","v":0},null,null,"Non ERC",{"$f":"+VLOOKUP(F957,TT_Tabelle_Riferimento!$D$127:$E$164,2,FALSE)","v":"Acquedotto"},"",0]
[0,0,"Gestore",0,"IP",4,{"$f":"+VLOOKUP(F958,TT_Tabelle_Riferimento!$D$127:$G$164,4,FALSE)","v":"Serbatoi"},2,{"$f":"+VLOOKUP(H958,TT_Tabelle_Riferimento!$F$3:$G$6,2,FALSE)","v":"Fognatura bianca e pulizia / manutenzione caditoie stradali"},2028,{"$f":"+SUMIFS('PdI-crono_inv'!BG:BG,'PdI-crono_inv'!CF:CF,F958,'PdI-crono_inv'!CE:CE,H958,'PdI-crono_inv'!J:J,P958,'PdI-crono_inv'!P:P,\"<>proprietario\")","v":0},null,{"$f":"+SUMIFS('PdI-crono_inv'!BH:BH,'PdI-crono_inv'!CF:CF,F958,'PdI-crono_inv'!CE:CE,H958,'PdI-crono_inv'!J:J,P958,'PdI-crono_inv'!P:P,\"<>proprietario\")+S958","v":0},null,null,"Non ERC",{"$f":"+VLOOKUP(F958,TT_Tabelle_Riferimento!$D$127:$E$164,2,FALSE)","v":"Acquedotto"},"",0]
[0,0,"Gestore",0,"IP",5,{"$f":"+VLOOKUP(F959,TT_Tabelle_Riferimento!$D$127:$G$164,4,FALSE)","v":"Impianti di sollevamento e pompaggio di acquedotto"},2,{"$f":"+VLOOKUP(H959,TT_Tabelle_Riferimento!$F$3:$G$6,2,FALSE)","v":"Fognatura bianca e pulizia / manutenzione caditoie stradali"},2028,{"$f":"+SUMIFS('PdI-crono_inv'!BG:BG,'PdI-crono_inv'!CF:CF,F959,'PdI-crono_inv'!CE:CE,H959,'PdI-crono_inv'!J:J,P959,'PdI-crono_inv'!P:P,\"<>proprietario\")","v":0},null,{"$f":"+SUMIFS('PdI-crono_inv'!BH:BH,'PdI-crono_inv'!CF:CF,F959,'PdI-crono_inv'!CE:CE,H959,'PdI-crono_inv'!J:J,P959,'PdI-crono_inv'!P:P,\"<>proprietario\")+S959","v":0},null,null,"Non ERC",{"$f":"+VLOOKUP(F959,TT_Tabelle_Riferimento!$D$127:$E$164,2,FALSE)","v":"Acquedotto"},"",0]
[0,0,"Gestore",0,"IP",6,{"$f":"+VLOOKUP(F960,TT_Tabelle_Riferimento!$D$127:$G$164,4,FALSE)","v":"Impianti di potabilizzazione"},2,{"$f":"+VLOOKUP(H960,TT_Tabelle_Riferimento!$F$3:$G$6,2,FALSE)","v":"Fognatura bianca e pulizia / manutenzione caditoie stradali"},2028,{"$f":"+SUMIFS('PdI-crono_inv'!BG:BG,'PdI-crono_inv'!CF:CF,F960,'PdI-crono_inv'!CE:CE,H960,'PdI-crono_inv'!J:J,P960,'PdI-crono_inv'!P:P,\"<>proprietario\")","v":0},null,{"$f":"+SUMIFS('PdI-crono_inv'!BH:BH,'PdI-crono_inv'!CF:CF,F960,'PdI-crono_inv'!CE:CE,H960,'PdI-crono_inv'!J:J,P960,'PdI-crono_inv'!P:P,\"<>proprietario\")+S960","v":0},null,null,"Non ERC",{"$f":"+VLOOKUP(F960,TT_Tabelle_Riferimento!$D$127:$E$164,2,FALSE)","v":"Acquedotto"},"",0]
[0,0,"Gestore",0,"IP",7,{"$f":"+VLOOKUP(F961,TT_Tabelle_Riferimento!$D$127:$G$164,4,FALSE)","v":"Altri trattamenti di potabilizzazione (tra cui dispositivi di disinfezione, stacciatura, filtrazione, addolcimento)"},2,{"$f":"+VLOOKUP(H961,TT_Tabelle_Riferimento!$F$3:$G$6,2,FALSE)","v":"Fognatura bianca e pulizia / manutenzione caditoie stradali"},2028,{"$f":"+SUMIFS('PdI-crono_inv'!BG:BG,'PdI-crono_inv'!CF:CF,F961,'PdI-crono_inv'!CE:CE,H961,'PdI-crono_inv'!J:J,P961,'PdI-crono_inv'!P:P,\"<>proprietario\")","v":0},null,{"$f":"+SUMIFS('PdI-crono_inv'!BH:BH,'PdI-crono_inv'!CF:CF,F961,'PdI-crono_inv'!CE:CE,H961,'PdI-crono_inv'!J:J,P961,'PdI-crono_inv'!P:P,\"<>proprietario\")+S961","v":0},null,null,"Non ERC",{"$f":"+VLOOKUP(F961,TT_Tabelle_Riferimento!$D$127:$E$164,2,FALSE)","v":"Acquedotto"},"",0]
[0,0,"Gestore",0,"IP",8,{"$f":"+VLOOKUP(F962,TT_Tabelle_Riferimento!$D$127:$G$164,4,FALSE)","v":"Gruppi di misura - altre attrezzature di acquedotto"},2,{"$f":"+VLOOKUP(H962,TT_Tabelle_Riferimento!$F$3:$G$6,2,FALSE)","v":"Fognatura bianca e pulizia / manutenzione caditoie stradali"},2028,{"$f":"+SUMIFS('PdI-crono_inv'!BG:BG,'PdI-crono_inv'!CF:CF,F962,'PdI-crono_inv'!CE:CE,H962,'PdI-crono_inv'!J:J,P962,'PdI-crono_inv'!P:P,\"<>proprietario\")","v":0},null,{"$f":"+SUMIFS('PdI-crono_inv'!BH:BH,'PdI-crono_inv'!CF:CF,F962,'PdI-crono_inv'!CE:CE,H962,'PdI-crono_inv'!J:J,P962,'PdI-crono_inv'!P:P,\"<>proprietario\")+S962","v":0},null,null,"Non ERC",{"$f":"+VLOOKUP(F962,TT_Tabelle_Riferimento!$D$127:$E$164,2,FALSE)","v":"Acquedotto"},"",0]
[0,0,"Gestore",0,"IP",9,{"$f":"+VLOOKUP(F963,TT_Tabelle_Riferimento!$D$127:$G$164,4,FALSE)","v":"Sistemi informativi di acquedotto"},2,{"$f":"+VLOOKUP(H963,TT_Tabelle_Riferimento!$F$3:$G$6,2,FALSE)","v":"Fognatura bianca e pulizia / manutenzione caditoie stradali"},2028,{"$f":"+SUMIFS('PdI-crono_inv'!BG:BG,'PdI-crono_inv'!CF:CF,F963,'PdI-crono_inv'!CE:CE,H963,'PdI-crono_inv'!J:J,P963,'PdI-crono_inv'!P:P,\"<>proprietario\")","v":0},null,{"$f":"+SUMIFS('PdI-crono_inv'!BH:BH,'PdI-crono_inv'!CF:CF,F963,'PdI-crono_inv'!CE:CE,H963,'PdI-crono_inv'!J:J,P963,'PdI-crono_inv'!P:P,\"<>proprietario\")+S963","v":0},null,null,"Non ERC",{"$f":"+VLOOKUP(F963,TT_Tabelle_Riferimento!$D$127:$E$164,2,FALSE)","v":"Acquedotto"},"",0]
[0,0,"Gestore",0,"IP",10,{"$f":"+VLOOKUP(F964,TT_Tabelle_Riferimento!$D$127:$G$164,4,FALSE)","v":"Telecontrollo e teletrasmissione di acquedotto"},2,{"$f":"+VLOOKUP(H964,TT_Tabelle_Riferimento!$F$3:$G$6,2,FALSE)","v":"Fognatura bianca e pulizia / manutenzione caditoie stradali"},2028,{"$f":"+SUMIFS('PdI-crono_inv'!BG:BG,'PdI-crono_inv'!CF:CF,F964,'PdI-crono_inv'!CE:CE,H964,'PdI-crono_inv'!J:J,P964,'PdI-crono_inv'!P:P,\"<>proprietario\")","v":0},null,{"$f":"+SUMIFS('PdI-crono_inv'!BH:BH,'PdI-crono_inv'!CF:CF,F964,'PdI-crono_inv'!CE:CE,H964,'PdI-crono_inv'!J:J,P964,'PdI-crono_inv'!P:P,\"<>proprietario\")+S964","v":0},null,null,"Non ERC",{"$f":"+VLOOKUP(F964,TT_Tabelle_Riferimento!$D$127:$E$164,2,FALSE)","v":"Acquedotto"},"",0]
[0,0,"Gestore",0,"IP",11,{"$f":"+VLOOKUP(F965,TT_Tabelle_Riferimento!$D$127:$G$164,4,FALSE)","v":"Condotte fognarie"},2,{"$f":"+VLOOKUP(H965,TT_Tabelle_Riferimento!$F$3:$G$6,2,FALSE)","v":"Fognatura bianca e pulizia / manutenzione caditoie stradali"},2028,{"$f":"+SUMIFS('PdI-crono_inv'!BG:BG,'PdI-crono_inv'!CF:CF,F965,'PdI-crono_inv'!CE:CE,H965,'PdI-crono_inv'!J:J,P965,'PdI-crono_inv'!P:P,\"<>proprietario\")","v":0},null,{"$f":"+SUMIFS('PdI-crono_inv'!BH:BH,'PdI-crono_inv'!CF:CF,F965,'PdI-crono_inv'!CE:CE,H965,'PdI-crono_inv'!J:J,P965,'PdI-crono_inv'!P:P,\"<>proprietario\")+S965","v":0},null,null,"Non ERC",{"$f":"+VLOOKUP(F965,TT_Tabelle_Riferimento!$D$127:$E$164,2,FALSE)","v":"Fognatura"},"",0]
[0,0,"Gestore",0,"IP",12,{"$f":"+VLOOKUP(F966,TT_Tabelle_Riferimento!$D$127:$G$164,4,FALSE)","v":"Sifoni e scaricatori di piena e altre opere idrauliche fisse di fognatura"},2,{"$f":"+VLOOKUP(H966,TT_Tabelle_Riferimento!$F$3:$G$6,2,FALSE)","v":"Fognatura bianca e pulizia / manutenzione caditoie stradali"},2028,{"$f":"+SUMIFS('PdI-crono_inv'!BG:BG,'PdI-crono_inv'!CF:CF,F966,'PdI-crono_inv'!CE:CE,H966,'PdI-crono_inv'!J:J,P966,'PdI-crono_inv'!P:P,\"<>proprietario\")","v":0},null,{"$f":"+SUMIFS('PdI-crono_inv'!BH:BH,'PdI-crono_inv'!CF:CF,F966,'PdI-crono_inv'!CE:CE,H966,'PdI-crono_inv'!J:J,P966,'PdI-crono_inv'!P:P,\"<>proprietario\")+S966","v":0},null,null,"Non ERC",{"$f":"+VLOOKUP(F966,TT_Tabelle_Riferimento!$D$127:$E$164,2,FALSE)","v":"Fognatura"},"",0]
[0,0,"Gestore",0,"IP",13,{"$f":"+VLOOKUP(F967,TT_Tabelle_Riferimento!$D$127:$G$164,4,FALSE)","v":"Vasche di laminazione e vasche di prima pioggia"},2,{"$f":"+VLOOKUP(H967,TT_Tabelle_Riferimento!$F$3:$G$6,2,FALSE)","v":"Fognatura bianca e pulizia / manutenzione caditoie stradali"},2028,{"$f":"+SUMIFS('PdI-crono_inv'!BG:BG,'PdI-crono_inv'!CF:CF,F967,'PdI-crono_inv'!CE:CE,H967,'PdI-crono_inv'!J:J,P967,'PdI-crono_inv'!P:P,\"<>proprietario\")","v":0},null,{"$f":"+SUMIFS('PdI-crono_inv'!BH:BH,'PdI-crono_inv'!CF:CF,F967,'PdI-crono_inv'!CE:CE,H967,'PdI-crono_inv'!J:J,P967,'PdI-crono_inv'!P:P,\"<>proprietario\")+S967","v":0},null,null,"Non ERC",{"$f":"+VLOOKUP(F967,TT_Tabelle_Riferimento!$D$127:$E$164,2,FALSE)","v":"Fognatura"},"",{"$f":"+IFERROR(HLOOKUP(J967,$X$2:$Y$5,4,FALSE)*K967,0)","v":0}]
[0,0,"Gestore",0,"IP",14,{"$f":"+VLOOKUP(F968,TT_Tabelle_Riferimento!$D$127:$G$164,4,FALSE)","v":"Impianti di sollevamento e pompaggio di fognatura"},2,{"$f":"+VLOOKUP(H968,TT_Tabelle_Riferimento!$F$3:$G$6,2,FALSE)","v":"Fognatura bianca e pulizia / manutenzione caditoie stradali"},2028,{"$f":"+SUMIFS('PdI-crono_inv'!BG:BG,'PdI-crono_inv'!CF:CF,F968,'PdI-crono_inv'!CE:CE,H968,'PdI-crono_inv'!J:J,P968,'PdI-crono_inv'!P:P,\"<>proprietario\")","v":0},null,{"$f":"+SUMIFS('PdI-crono_inv'!BH:BH,'PdI-crono_inv'!CF:CF,F968,'PdI-crono_inv'!CE:CE,H968,'PdI-crono_inv'!J:J,P968,'PdI-crono_inv'!P:P,\"<>proprietario\")+S968","v":0},null,null,"Non ERC",{"$f":"+VLOOKUP(F968,TT_Tabelle_Riferimento!$D$127:$E$164,2,FALSE)","v":"Fognatura"},"",0]
[0,0,"Gestore",0,"IP",15,{"$f":"+VLOOKUP(F969,TT_Tabelle_Riferimento!$D$127:$G$164,4,FALSE)","v":"Gruppi di misura - altre attrezzature di fognatura"},2,{"$f":"+VLOOKUP(H969,TT_Tabelle_Riferimento!$F$3:$G$6,2,FALSE)","v":"Fognatura bianca e pulizia / manutenzione caditoie stradali"},2028,{"$f":"+SUMIFS('PdI-crono_inv'!BG:BG,'PdI-crono_inv'!CF:CF,F969,'PdI-crono_inv'!CE:CE,H969,'PdI-crono_inv'!J:J,P969,'PdI-crono_inv'!P:P,\"<>proprietario\")","v":0},null,{"$f":"+SUMIFS('PdI-crono_inv'!BH:BH,'PdI-crono_inv'!CF:CF,F969,'PdI-crono_inv'!CE:CE,H969,'PdI-crono_inv'!J:J,P969,'PdI-crono_inv'!P:P,\"<>proprietario\")+S969","v":0},null,null,"Non ERC",{"$f":"+VLOOKUP(F969,TT_Tabelle_Riferimento!$D$127:$E$164,2,FALSE)","v":"Fognatura"},"",0]
[0,0,"Gestore",0,"IP",16,{"$f":"+VLOOKUP(F970,TT_Tabelle_Riferimento!$D$127:$G$164,4,FALSE)","v":"Sistemi informativi di fognatura"},2,{"$f":"+VLOOKUP(H970,TT_Tabelle_Riferimento!$F$3:$G$6,2,FALSE)","v":"Fognatura bianca e pulizia / manutenzione caditoie stradali"},2028,{"$f":"+SUMIFS('PdI-crono_inv'!BG:BG,'PdI-crono_inv'!CF:CF,F970,'PdI-crono_inv'!CE:CE,H970,'PdI-crono_inv'!J:J,P970,'PdI-crono_inv'!P:P,\"<>proprietario\")","v":0},null,{"$f":"+SUMIFS('PdI-crono_inv'!BH:BH,'PdI-crono_inv'!CF:CF,F970,'PdI-crono_inv'!CE:CE,H970,'PdI-crono_inv'!J:J,P970,'PdI-crono_inv'!P:P,\"<>proprietario\")+S970","v":0},null,null,"Non ERC",{"$f":"+VLOOKUP(F970,TT_Tabelle_Riferimento!$D$127:$E$164,2,FALSE)","v":"Fognatura"},"",0]
[0,0,"Gestore",0,"IP",18,{"$f":"+VLOOKUP(F971,TT_Tabelle_Riferimento!$D$127:$G$164,4,FALSE)","v":"Telecontrollo e teletrasmissione di fognatura"},2,{"$f":"+VLOOKUP(H971,TT_Tabelle_Riferimento!$F$3:$G$6,2,FALSE)","v":"Fognatura bianca e pulizia / manutenzione caditoie stradali"},2028,{"$f":"+SUMIFS('PdI-crono_inv'!BG:BG,'PdI-crono_inv'!CF:CF,F971,'PdI-crono_inv'!CE:CE,H971,'PdI-crono_inv'!J:J,P971,'PdI-crono_inv'!P:P,\"<>proprietario\")","v":0},null,{"$f":"+SUMIFS('PdI-crono_inv'!BH:BH,'PdI-crono_inv'!CF:CF,F971,'PdI-crono_inv'!CE:CE,H971,'PdI-crono_inv'!J:J,P971,'PdI-crono_inv'!P:P,\"<>proprietario\")+S971","v":0},null,null,"Non ERC",{"$f":"+VLOOKUP(F971,TT_Tabelle_Riferimento!$D$127:$E$164,2,FALSE)","v":"Fognatura"},"",0]
[0,0,"Gestore",0,"IP",19,{"$f":"+VLOOKUP(F972,TT_Tabelle_Riferimento!$D$127:$G$164,4,FALSE)","v":"Impianti di sollevamento e pompaggio di depurazione"},2,{"$f":"+VLOOKUP(H972,TT_Tabelle_Riferimento!$F$3:$G$6,2,FALSE)","v":"Fognatura bianca e pulizia / manutenzione caditoie stradali"},2028,{"$f":"+SUMIFS('PdI-crono_inv'!BG:BG,'PdI-crono_inv'!CF:CF,F972,'PdI-crono_inv'!CE:CE,H972,'PdI-crono_inv'!J:J,P972,'PdI-crono_inv'!P:P,\"<>proprietario\")","v":0},null,{"$f":"+SUMIFS('PdI-crono_inv'!BH:BH,'PdI-crono_inv'!CF:CF,F972,'PdI-crono_inv'!CE:CE,H972,'PdI-crono_inv'!J:J,P972,'PdI-crono_inv'!P:P,\"<>proprietario\")+S972","v":0},null,null,"Non ERC",{"$f":"+VLOOKUP(F972,TT_Tabelle_Riferimento!$D$127:$E$164,2,FALSE)","v":"Depurazione"},"",0]
[0,0,"Gestore",0,"IP",20,{"$f":"+VLOOKUP(F973,TT_Tabelle_Riferimento!$D$127:$G$164,4,FALSE)","v":"Tecniche naturali di depurazione (tra cui fitodepurazione e lagunaggio)"},2,{"$f":"+VLOOKUP(H973,TT_Tabelle_Riferimento!$F$3:$G$6,2,FALSE)","v":"Fognatura bianca e pulizia / manutenzione caditoie stradali"},2028,{"$f":"+SUMIFS('PdI-crono_inv'!BG:BG,'PdI-crono_inv'!CF:CF,F973,'PdI-crono_inv'!CE:CE,H973,'PdI-crono_inv'!J:J,P973,'PdI-crono_inv'!P:P,\"<>proprietario\")","v":0},null,{"$f":"+SUMIFS('PdI-crono_inv'!BH:BH,'PdI-crono_inv'!CF:CF,F973,'PdI-crono_inv'!CE:CE,H973,'PdI-crono_inv'!J:J,P973,'PdI-crono_inv'!P:P,\"<>proprietario\")+S973","v":0},null,null,"Non ERC",{"$f":"+VLOOKUP(F973,TT_Tabelle_Riferimento!$D$127:$E$164,2,FALSE)","v":"Depurazione"},"",0]
[0,0,"Gestore",0,"IP",21,{"$f":"+VLOOKUP(F974,TT_Tabelle_Riferimento!$D$127:$G$164,4,FALSE)","v":"Impianti di depurazione – trattamenti sino al preliminare, integrativo, primario - fosse settiche e fosse Imhoff"},2,{"$f":"+VLOOKUP(H974,TT_Tabelle_Riferimento!$F$3:$G$6,2,FALSE)","v":"Fognatura bianca e pulizia / manutenzione caditoie stradali"},2028,{"$f":"+SUMIFS('PdI-crono_inv'!BG:BG,'PdI-crono_inv'!CF:CF,F974,'PdI-crono_inv'!CE:CE,H974,'PdI-crono_inv'!J:J,P974,'PdI-crono_inv'!P:P,\"<>proprietario\")","v":0},null,{"$f":"+SUMIFS('PdI-crono_inv'!BH:BH,'PdI-crono_inv'!CF:CF,F974,'PdI-crono_inv'!CE:CE,H974,'PdI-crono_inv'!J:J,P974,'PdI-crono_inv'!P:P,\"<>proprietario\")+S974","v":0},null,null,"Non ERC",{"$f":"+VLOOKUP(F974,TT_Tabelle_Riferimento!$D$127:$E$164,2,FALSE)","v":"Depurazione"},"",0]
[0,0,"Gestore",0,"IP",22,{"$f":"+VLOOKUP(F975,TT_Tabelle_Riferimento!$D$127:$G$164,4,FALSE)","v":"Impianti di depurazione – trattamenti sino al secondario"},2,{"$f":"+VLOOKUP(H975,TT_Tabelle_Riferimento!$F$3:$G$6,2,FALSE)","v":"Fognatura bianca e pulizia / manutenzione caditoie stradali"},2028,{"$f":"+SUMIFS('PdI-crono_inv'!BG:BG,'PdI-crono_inv'!CF:CF,F975,'PdI-crono_inv'!CE:CE,H975,'PdI-crono_inv'!J:J,P975,'PdI-crono_inv'!P:P,\"<>proprietario\")","v":0},null,{"$f":"+SUMIFS('PdI-crono_inv'!BH:BH,'PdI-crono_inv'!CF:CF,F975,'PdI-crono_inv'!CE:CE,H975,'PdI-crono_inv'!J:J,P975,'PdI-crono_inv'!P:P,\"<>proprietario\")+S975","v":0},null,null,"Non ERC",{"$f":"+VLOOKUP(F975,TT_Tabelle_Riferimento!$D$127:$E$164,2,FALSE)","v":"Depurazione"},"",0]
[0,0,"Gestore",0,"IP",23,{"$f":"+VLOOKUP(F976,TT_Tabelle_Riferimento!$D$127:$G$164,4,FALSE)","v":"Impianti di depurazione – trattamenti sino al terziario e terziario avanzato"},2,{"$f":"+VLOOKUP(H976,TT_Tabelle_Riferimento!$F$3:$G$6,2,FALSE)","v":"Fognatura bianca e pulizia / manutenzione caditoie stradali"},2028,{"$f":"+SUMIFS('PdI-crono_inv'!BG:BG,'PdI-crono_inv'!CF:CF,F976,'PdI-crono_inv'!CE:CE,H976,'PdI-crono_inv'!J:J,P976,'PdI-crono_inv'!P:P,\"<>proprietario\")","v":0},null,{"$f":"+SUMIFS('PdI-crono_inv'!BH:BH,'PdI-crono_inv'!CF:CF,F976,'PdI-crono_inv'!CE:CE,H976,'PdI-crono_inv'!J:J,P976,'PdI-crono_inv'!P:P,\"<>proprietario\")+S976","v":0},null,null,"Non ERC",{"$f":"+VLOOKUP(F976,TT_Tabelle_Riferimento!$D$127:$E$164,2,FALSE)","v":"Depurazione"},"",0]
[0,0,"Gestore",0,"IP",24,{"$f":"+VLOOKUP(F977,TT_Tabelle_Riferimento!$D$127:$G$164,4,FALSE)","v":"Impianti di essiccamento fanghi e di valorizzazione dei fanghi (tra cui mono-incenerimento, pirolisi, gassificazione)"},2,{"$f":"+VLOOKUP(H977,TT_Tabelle_Riferimento!$F$3:$G$6,2,FALSE)","v":"Fognatura bianca e pulizia / manutenzione caditoie stradali"},2028,{"$f":"+SUMIFS('PdI-crono_inv'!BG:BG,'PdI-crono_inv'!CF:CF,F977,'PdI-crono_inv'!CE:CE,H977,'PdI-crono_inv'!J:J,P977,'PdI-crono_inv'!P:P,\"<>proprietario\")","v":0},null,{"$f":"+SUMIFS('PdI-crono_inv'!BH:BH,'PdI-crono_inv'!CF:CF,F977,'PdI-crono_inv'!CE:CE,H977,'PdI-crono_inv'!J:J,P977,'PdI-crono_inv'!P:P,\"<>proprietario\")+S977","v":0},null,null,"Non ERC",{"$f":"+VLOOKUP(F977,TT_Tabelle_Riferimento!$D$127:$E$164,2,FALSE)","v":"Depurazione"},"",0]
[0,0,"Gestore",0,"IP",25,{"$f":"+VLOOKUP(F978,TT_Tabelle_Riferimento!$D$127:$G$164,4,FALSE)","v":"Gruppi di misura - altre attrezzature di depurazione"},2,{"$f":"+VLOOKUP(H978,TT_Tabelle_Riferimento!$F$3:$G$6,2,FALSE)","v":"Fognatura bianca e pulizia / manutenzione caditoie stradali"},2028,{"$f":"+SUMIFS('PdI-crono_inv'!BG:BG,'PdI-crono_inv'!CF:CF,F978,'PdI-crono_inv'!CE:CE,H978,'PdI-crono_inv'!J:J,P978,'PdI-crono_inv'!P:P,\"<>proprietario\")","v":0},null,{"$f":"+SUMIFS('PdI-crono_inv'!BH:BH,'PdI-crono_inv'!CF:CF,F978,'PdI-crono_inv'!CE:CE,H978,'PdI-crono_inv'!J:J,P978,'PdI-crono_inv'!P:P,\"<>proprietario\")+S978","v":0},null,null,"Non ERC",{"$f":"+VLOOKUP(F978,TT_Tabelle_Riferimento!$D$127:$E$164,2,FALSE)","v":"Depurazione"},"",0]
[0,0,"Gestore",0,"IP",26,{"$f":"+VLOOKUP(F979,TT_Tabelle_Riferimento!$D$127:$G$164,4,FALSE)","v":"Sistemi informativi di depurazione"},2,{"$f":"+VLOOKUP(H979,TT_Tabelle_Riferimento!$F$3:$G$6,2,FALSE)","v":"Fognatura bianca e pulizia / manutenzione caditoie stradali"},2028,{"$f":"+SUMIFS('PdI-crono_inv'!BG:BG,'PdI-crono_inv'!CF:CF,F979,'PdI-crono_inv'!CE:CE,H979,'PdI-crono_inv'!J:J,P979,'PdI-crono_inv'!P:P,\"<>proprietario\")","v":0},null,{"$f":"+SUMIFS('PdI-crono_inv'!BH:BH,'PdI-crono_inv'!CF:CF,F979,'PdI-crono_inv'!CE:CE,H979,'PdI-crono_inv'!J:J,P979,'PdI-crono_inv'!P:P,\"<>proprietario\")+S979","v":0},null,null,"Non ERC",{"$f":"+VLOOKUP(F979,TT_Tabelle_Riferimento!$D$127:$E$164,2,FALSE)","v":"Depurazione"},"",0]
[0,0,"Gestore",0,"IP",27,{"$f":"+VLOOKUP(F980,TT_Tabelle_Riferimento!$D$127:$G$164,4,FALSE)","v":"Telecontrollo e teletrasmissione di depurazione"},2,{"$f":"+VLOOKUP(H980,TT_Tabelle_Riferimento!$F$3:$G$6,2,FALSE)","v":"Fognatura bianca e pulizia / manutenzione caditoie stradali"},2028,{"$f":"+SUMIFS('PdI-crono_inv'!BG:BG,'PdI-crono_inv'!CF:CF,F980,'PdI-crono_inv'!CE:CE,H980,'PdI-crono_inv'!J:J,P980,'PdI-crono_inv'!P:P,\"<>proprietario\")","v":0},null,{"$f":"+SUMIFS('PdI-crono_inv'!BH:BH,'PdI-crono_inv'!CF:CF,F980,'PdI-crono_inv'!CE:CE,H980,'PdI-crono_inv'!J:J,P980,'PdI-crono_inv'!P:P,\"<>proprietario\")+S980","v":0},null,null,"Non ERC",{"$f":"+VLOOKUP(F980,TT_Tabelle_Riferimento!$D$127:$E$164,2,FALSE)","v":"Depurazione"},"",0]
[0,0,"Gestore",0,"IP",28,{"$f":"+VLOOKUP(F981,TT_Tabelle_Riferimento!$D$127:$G$164,4,FALSE)","v":"Altri impianti"},2,{"$f":"+VLOOKUP(H981,TT_Tabelle_Riferimento!$F$3:$G$6,2,FALSE)","v":"Fognatura bianca e pulizia / manutenzione caditoie stradali"},2028,{"$f":"+SUMIFS('PdI-crono_inv'!BG:BG,'PdI-crono_inv'!CF:CF,F981,'PdI-crono_inv'!CE:CE,H981,'PdI-crono_inv'!J:J,P981,'PdI-crono_inv'!P:P,\"<>proprietario\")","v":0},null,{"$f":"+SUMIFS('PdI-crono_inv'!BH:BH,'PdI-crono_inv'!CF:CF,F981,'PdI-crono_inv'!CE:CE,H981,'PdI-crono_inv'!J:J,P981,'PdI-crono_inv'!P:P,\"<>proprietario\")+S981","v":0},null,null,"Non ERC",{"$f":"+VLOOKUP(F981,TT_Tabelle_Riferimento!$D$127:$E$164,2,FALSE)","v":"Comune"},"",0]
[0,0,"Gestore",0,"IP",29,{"$f":"+VLOOKUP(F982,TT_Tabelle_Riferimento!$D$127:$G$164,4,FALSE)","v":"Laboratori e attrezzature"},2,{"$f":"+VLOOKUP(H982,TT_Tabelle_Riferimento!$F$3:$G$6,2,FALSE)","v":"Fognatura bianca e pulizia / manutenzione caditoie stradali"},2028,{"$f":"+SUMIFS('PdI-crono_inv'!BG:BG,'PdI-crono_inv'!CF:CF,F982,'PdI-crono_inv'!CE:CE,H982,'PdI-crono_inv'!J:J,P982,'PdI-crono_inv'!P:P,\"<>proprietario\")","v":0},null,{"$f":"+SUMIFS('PdI-crono_inv'!BH:BH,'PdI-crono_inv'!CF:CF,F982,'PdI-crono_inv'!CE:CE,H982,'PdI-crono_inv'!J:J,P982,'PdI-crono_inv'!P:P,\"<>proprietario\")+S982","v":0},null,null,"Non ERC",{"$f":"+VLOOKUP(F982,TT_Tabelle_Riferimento!$D$127:$E$164,2,FALSE)","v":"Comune"},"",0]
[0,0,"Gestore",0,"IP",30,{"$f":"+VLOOKUP(F983,TT_Tabelle_Riferimento!$D$127:$G$164,4,FALSE)","v":"Sistemi informativi"},2,{"$f":"+VLOOKUP(H983,TT_Tabelle_Riferimento!$F$3:$G$6,2,FALSE)","v":"Fognatura bianca e pulizia / manutenzione caditoie stradali"},2028,{"$f":"+SUMIFS('PdI-crono_inv'!BG:BG,'PdI-crono_inv'!CF:CF,F983,'PdI-crono_inv'!CE:CE,H983,'PdI-crono_inv'!J:J,P983,'PdI-crono_inv'!P:P,\"<>proprietario\")","v":0},null,{"$f":"+SUMIFS('PdI-crono_inv'!BH:BH,'PdI-crono_inv'!CF:CF,F983,'PdI-crono_inv'!CE:CE,H983,'PdI-crono_inv'!J:J,P983,'PdI-crono_inv'!P:P,\"<>proprietario\")+S983","v":0},null,null,"Non ERC",{"$f":"+VLOOKUP(F983,TT_Tabelle_Riferimento!$D$127:$E$164,2,FALSE)","v":"Comune"},"",0]
[0,0,"Gestore",0,"IP",31,{"$f":"+VLOOKUP(F984,TT_Tabelle_Riferimento!$D$127:$G$164,4,FALSE)","v":"Telecontrollo e teletrasmissione"},2,{"$f":"+VLOOKUP(H984,TT_Tabelle_Riferimento!$F$3:$G$6,2,FALSE)","v":"Fognatura bianca e pulizia / manutenzione caditoie stradali"},2028,{"$f":"+SUMIFS('PdI-crono_inv'!BG:BG,'PdI-crono_inv'!CF:CF,F984,'PdI-crono_inv'!CE:CE,H984,'PdI-crono_inv'!J:J,P984,'PdI-crono_inv'!P:P,\"<>proprietario\")","v":0},null,{"$f":"+SUMIFS('PdI-crono_inv'!BH:BH,'PdI-crono_inv'!CF:CF,F984,'PdI-crono_inv'!CE:CE,H984,'PdI-crono_inv'!J:J,P984,'PdI-crono_inv'!P:P,\"<>proprietario\")+S984","v":0},null,null,"Non ERC",{"$f":"+VLOOKUP(F984,TT_Tabelle_Riferimento!$D$127:$E$164,2,FALSE)","v":"Comune"},{"$f":"+IF(SUM(K984:N984)=0,\"\",\"PdI_consolidamento\")","v":""},0]
[0,0,"Gestore",0,"IP",32,{"$f":"+VLOOKUP(F985,TT_Tabelle_Riferimento!$D$127:$G$164,4,FALSE)","v":"Autoveicoli - automezzi"},2,{"$f":"+VLOOKUP(H985,TT_Tabelle_Riferimento!$F$3:$G$6,2,FALSE)","v":"Fognatura bianca e pulizia / manutenzione caditoie stradali"},2028,{"$f":"+SUMIFS('PdI-crono_inv'!BG:BG,'PdI-crono_inv'!CF:CF,F985,'PdI-crono_inv'!CE:CE,H985,'PdI-crono_inv'!J:J,P985,'PdI-crono_inv'!P:P,\"<>proprietario\")","v":0},null,{"$f":"+SUMIFS('PdI-crono_inv'!BH:BH,'PdI-crono_inv'!CF:CF,F985,'PdI-crono_inv'!CE:CE,H985,'PdI-crono_inv'!J:J,P985,'PdI-crono_inv'!P:P,\"<>proprietario\")+S985","v":0},null,null,"Non ERC",{"$f":"+VLOOKUP(F985,TT_Tabelle_Riferimento!$D$127:$E$164,2,FALSE)","v":"Comune"},"",0]
[0,0,"Gestore",0,"IP",1,{"$f":"+VLOOKUP(F986,TT_Tabelle_Riferimento!$D$127:$G$164,4,FALSE)","v":"Terreni"},2,{"$f":"+VLOOKUP(H986,TT_Tabelle_Riferimento!$F$3:$G$6,2,FALSE)","v":"Fognatura bianca e pulizia / manutenzione caditoie stradali"},2028,{"$f":"+SUMIFS('PdI-crono_inv'!BG:BG,'PdI-crono_inv'!CF:CF,F986,'PdI-crono_inv'!CE:CE,H986,'PdI-crono_inv'!J:J,P986,'PdI-crono_inv'!P:P,\"<>proprietario\")","v":0},null,{"$f":"+SUMIFS('PdI-crono_inv'!BH:BH,'PdI-crono_inv'!CF:CF,F986,'PdI-crono_inv'!CE:CE,H986,'PdI-crono_inv'!J:J,P986,'PdI-crono_inv'!P:P,\"<>proprietario\")+S986","v":0},null,null,"Non ERC",{"$f":"+VLOOKUP(F986,TT_Tabelle_Riferimento!$D$127:$E$164,2,FALSE)","v":"Comune"},"",0]
[0,0,"Gestore",0,"IP",33,{"$f":"+VLOOKUP(F987,TT_Tabelle_Riferimento!$D$127:$G$164,4,FALSE)","v":"Fabbricati non industriali"},2,{"$f":"+VLOOKUP(H987,TT_Tabelle_Riferimento!$F$3:$G$6,2,FALSE)","v":"Fognatura bianca e pulizia / manutenzione caditoie stradali"},2028,{"$f":"+SUMIFS('PdI-crono_inv'!BG:BG,'PdI-crono_inv'!CF:CF,F987,'PdI-crono_inv'!CE:CE,H987,'PdI-crono_inv'!J:J,P987,'PdI-crono_inv'!P:P,\"<>proprietario\")","v":0},null,{"$f":"+SUMIFS('PdI-crono_inv'!BH:BH,'PdI-crono_inv'!CF:CF,F987,'PdI-crono_inv'!CE:CE,H987,'PdI-crono_inv'!J:J,P987,'PdI-crono_inv'!P:P,\"<>proprietario\")+S987","v":0},null,null,"Non ERC",{"$f":"+VLOOKUP(F987,TT_Tabelle_Riferimento!$D$127:$E$164,2,FALSE)","v":"Comune"},"",0]
[0,0,"Gestore",0,"IP",34,{"$f":"+VLOOKUP(F988,TT_Tabelle_Riferimento!$D$127:$G$164,4,FALSE)","v":"Fabbricati industriali"},2,{"$f":"+VLOOKUP(H988,TT_Tabelle_Riferimento!$F$3:$G$6,2,FALSE)","v":"Fognatura bianca e pulizia / manutenzione caditoie stradali"},2028,{"$f":"+SUMIFS('PdI-crono_inv'!BG:BG,'PdI-crono_inv'!CF:CF,F988,'PdI-crono_inv'!CE:CE,H988,'PdI-crono_inv'!J:J,P988,'PdI-crono_inv'!P:P,\"<>proprietario\")","v":0},null,{"$f":"+SUMIFS('PdI-crono_inv'!BH:BH,'PdI-crono_inv'!CF:CF,F988,'PdI-crono_inv'!CE:CE,H988,'PdI-crono_inv'!J:J,P988,'PdI-crono_inv'!P:P,\"<>proprietario\")+S988","v":0},null,null,"Non ERC",{"$f":"+VLOOKUP(F988,TT_Tabelle_Riferimento!$D$127:$E$164,2,FALSE)","v":"Comune"},"",0]
[0,0,"Gestore",0,"IP",35,{"$f":"+VLOOKUP(F989,TT_Tabelle_Riferimento!$D$127:$G$164,4,FALSE)","v":"Costruzioni leggere"},2,{"$f":"+VLOOKUP(H989,TT_Tabelle_Riferimento!$F$3:$G$6,2,FALSE)","v":"Fognatura bianca e pulizia / manutenzione caditoie stradali"},2028,{"$f":"+SUMIFS('PdI-crono_inv'!BG:BG,'PdI-crono_inv'!CF:CF,F989,'PdI-crono_inv'!CE:CE,H989,'PdI-crono_inv'!J:J,P989,'PdI-crono_inv'!P:P,\"<>proprietario\")","v":0},null,{"$f":"+SUMIFS('PdI-crono_inv'!BH:BH,'PdI-crono_inv'!CF:CF,F989,'PdI-crono_inv'!CE:CE,H989,'PdI-crono_inv'!J:J,P989,'PdI-crono_inv'!P:P,\"<>proprietario\")+S989","v":0},null,null,"Non ERC",{"$f":"+VLOOKUP(F989,TT_Tabelle_Riferimento!$D$127:$E$164,2,FALSE)","v":"Comune"},"",0]
[0,0,"Gestore",0,"IP",36,{"$f":"+VLOOKUP(F990,TT_Tabelle_Riferimento!$D$127:$G$164,4,FALSE)","v":"Studi, ricerche, brevetti, diritti di utilizzazione"},2,{"$f":"+VLOOKUP(H990,TT_Tabelle_Riferimento!$F$3:$G$6,2,FALSE)","v":"Fognatura bianca e pulizia / manutenzione caditoie stradali"},2028,{"$f":"+SUMIFS('PdI-crono_inv'!BG:BG,'PdI-crono_inv'!CF:CF,F990,'PdI-crono_inv'!CE:CE,H990,'PdI-crono_inv'!J:J,P990,'PdI-crono_inv'!P:P,\"<>proprietario\")","v":0},null,{"$f":"+SUMIFS('PdI-crono_inv'!BH:BH,'PdI-crono_inv'!CF:CF,F990,'PdI-crono_inv'!CE:CE,H990,'PdI-crono_inv'!J:J,P990,'PdI-crono_inv'!P:P,\"<>proprietario\")+S990","v":0},null,null,"Non ERC",{"$f":"+VLOOKUP(F990,TT_Tabelle_Riferimento!$D$127:$E$164,2,FALSE)","v":"Comune"},"",0]
[0,0,"Gestore",0,"IP",37,{"$f":"+VLOOKUP(F991,TT_Tabelle_Riferimento!$D$127:$G$164,4,FALSE)","v":"Altre immobilizzazioni materiali e immateriali"},2,{"$f":"+VLOOKUP(H991,TT_Tabelle_Riferimento!$F$3:$G$6,2,FALSE)","v":"Fognatura bianca e pulizia / manutenzione caditoie stradali"},2028,{"$f":"+SUMIFS('PdI-crono_inv'!BG:BG,'PdI-crono_inv'!CF:CF,F991,'PdI-crono_inv'!CE:CE,H991,'PdI-crono_inv'!J:J,P991,'PdI-crono_inv'!P:P,\"<>proprietario\")","v":0},null,{"$f":"+SUMIFS('PdI-crono_inv'!BH:BH,'PdI-crono_inv'!CF:CF,F991,'PdI-crono_inv'!CE:CE,H991,'PdI-crono_inv'!J:J,P991,'PdI-crono_inv'!P:P,\"<>proprietario\")+S991","v":0},null,null,"Non ERC",{"$f":"+VLOOKUP(F991,TT_Tabelle_Riferimento!$D$127:$E$164,2,FALSE)","v":"Comune"},"",0]
[0,0,"Gestore",0,"IP",38,{"$f":"+VLOOKUP(F992,TT_Tabelle_Riferimento!$D$127:$G$164,4,FALSE)","v":"Grandi dighe (sbarramenti che superano i quindici metri di altezza o che determinano un invaso superiore a 1 milione di metri cubi)"},2,{"$f":"+VLOOKUP(H992,TT_Tabelle_Riferimento!$F$3:$G$6,2,FALSE)","v":"Fognatura bianca e pulizia / manutenzione caditoie stradali"},2028,{"$f":"+SUMIFS('PdI-crono_inv'!BG:BG,'PdI-crono_inv'!CF:CF,F992,'PdI-crono_inv'!CE:CE,H992,'PdI-crono_inv'!J:J,P992,'PdI-crono_inv'!P:P,\"<>proprietario\")","v":0},null,{"$f":"+SUMIFS('PdI-crono_inv'!BH:BH,'PdI-crono_inv'!CF:CF,F992,'PdI-crono_inv'!CE:CE,H992,'PdI-crono_inv'!J:J,P992,'PdI-crono_inv'!P:P,\"<>proprietario\")+S992","v":0},null,null,"Non ERC",{"$f":"+VLOOKUP(F992,TT_Tabelle_Riferimento!$D$127:$E$164,2,FALSE)","v":"Acquedotto"},"",0]
[0,0,"Gestore",0,"IP",39,{"$f":"+VLOOKUP(F993,TT_Tabelle_Riferimento!$D$127:$G$164,4,FALSE)","v":"Piccole dighe (sbarramenti che non superano i quindici metri di altezza o che determinano un invaso non superiore a 1 milione di metri cubi)"},2,{"$f":"+VLOOKUP(H993,TT_Tabelle_Riferimento!$F$3:$G$6,2,FALSE)","v":"Fognatura bianca e pulizia / manutenzione caditoie stradali"},2028,{"$f":"+SUMIFS('PdI-crono_inv'!BG:BG,'PdI-crono_inv'!CF:CF,F993,'PdI-crono_inv'!CE:CE,H993,'PdI-crono_inv'!J:J,P993,'PdI-crono_inv'!P:P,\"<>proprietario\")","v":0},null,{"$f":"+SUMIFS('PdI-crono_inv'!BH:BH,'PdI-crono_inv'!CF:CF,F993,'PdI-crono_inv'!CE:CE,H993,'PdI-crono_inv'!J:J,P993,'PdI-crono_inv'!P:P,\"<>proprietario\")+S993","v":0},null,null,"Non ERC",{"$f":"+VLOOKUP(F993,TT_Tabelle_Riferimento!$D$127:$E$164,2,FALSE)","v":"Acquedotto"},"",0]
[{"$f":"+idato","v":0},{"$f":"+idgestore","v":0},"Gestore",0,"IP",2,{"$f":"+VLOOKUP(F994,TT_Tabelle_Riferimento!$D$127:$G$164,4,FALSE)","v":"Condotte di acquedotto"},3,{"$f":"+VLOOKUP(H994,TT_Tabelle_Riferimento!$F$3:$G$6,2,FALSE)","v":"Altri servizi idrici"},2028,{"$f":"+SUMIFS('PdI-crono_inv'!BG:BG,'PdI-crono_inv'!CF:CF,F994,'PdI-crono_inv'!CE:CE,H994,'PdI-crono_inv'!J:J,P994,'PdI-crono_inv'!P:P,\"<>proprietario\")","v":0},null,{"$f":"+SUMIFS('PdI-crono_inv'!BH:BH,'PdI-crono_inv'!CF:CF,F994,'PdI-crono_inv'!CE:CE,H994,'PdI-crono_inv'!J:J,P994,'PdI-crono_inv'!P:P,\"<>proprietario\")+S994","v":0},null,null,"Non ERC",{"$f":"+VLOOKUP(F994,TT_Tabelle_Riferimento!$D$127:$E$164,2,FALSE)","v":"Acquedotto"},"",0]
[0,0,"Gestore",0,"IP",3,{"$f":"+VLOOKUP(F995,TT_Tabelle_Riferimento!$D$127:$G$164,4,FALSE)","v":"Opere idrauliche fisse di acquedotto"},3,{"$f":"+VLOOKUP(H995,TT_Tabelle_Riferimento!$F$3:$G$6,2,FALSE)","v":"Altri servizi idrici"},2028,{"$f":"+SUMIFS('PdI-crono_inv'!BG:BG,'PdI-crono_inv'!CF:CF,F995,'PdI-crono_inv'!CE:CE,H995,'PdI-crono_inv'!J:J,P995,'PdI-crono_inv'!P:P,\"<>proprietario\")","v":0},null,{"$f":"+SUMIFS('PdI-crono_inv'!BH:BH,'PdI-crono_inv'!CF:CF,F995,'PdI-crono_inv'!CE:CE,H995,'PdI-crono_inv'!J:J,P995,'PdI-crono_inv'!P:P,\"<>proprietario\")+S995","v":0},null,null,"Non ERC",{"$f":"+VLOOKUP(F995,TT_Tabelle_Riferimento!$D$127:$E$164,2,FALSE)","v":"Acquedotto"},"",0]
[0,0,"Gestore",0,"IP",4,{"$f":"+VLOOKUP(F996,TT_Tabelle_Riferimento!$D$127:$G$164,4,FALSE)","v":"Serbatoi"},3,{"$f":"+VLOOKUP(H996,TT_Tabelle_Riferimento!$F$3:$G$6,2,FALSE)","v":"Altri servizi idrici"},2028,{"$f":"+SUMIFS('PdI-crono_inv'!BG:BG,'PdI-crono_inv'!CF:CF,F996,'PdI-crono_inv'!CE:CE,H996,'PdI-crono_inv'!J:J,P996,'PdI-crono_inv'!P:P,\"<>proprietario\")","v":0},null,{"$f":"+SUMIFS('PdI-crono_inv'!BH:BH,'PdI-crono_inv'!CF:CF,F996,'PdI-crono_inv'!CE:CE,H996,'PdI-crono_inv'!J:J,P996,'PdI-crono_inv'!P:P,\"<>proprietario\")+S996","v":0},null,null,"Non ERC",{"$f":"+VLOOKUP(F996,TT_Tabelle_Riferimento!$D$127:$E$164,2,FALSE)","v":"Acquedotto"},"",0]
[0,0,"Gestore",0,"IP",5,{"$f":"+VLOOKUP(F997,TT_Tabelle_Riferimento!$D$127:$G$164,4,FALSE)","v":"Impianti di sollevamento e pompaggio di acquedotto"},3,{"$f":"+VLOOKUP(H997,TT_Tabelle_Riferimento!$F$3:$G$6,2,FALSE)","v":"Altri servizi idrici"},2028,{"$f":"+SUMIFS('PdI-crono_inv'!BG:BG,'PdI-crono_inv'!CF:CF,F997,'PdI-crono_inv'!CE:CE,H997,'PdI-crono_inv'!J:J,P997,'PdI-crono_inv'!P:P,\"<>proprietario\")","v":0},null,{"$f":"+SUMIFS('PdI-crono_inv'!BH:BH,'PdI-crono_inv'!CF:CF,F997,'PdI-crono_inv'!CE:CE,H997,'PdI-crono_inv'!J:J,P997,'PdI-crono_inv'!P:P,\"<>proprietario\")+S997","v":0},null,null,"Non ERC",{"$f":"+VLOOKUP(F997,TT_Tabelle_Riferimento!$D$127:$E$164,2,FALSE)","v":"Acquedotto"},"",0]
[0,0,"Gestore",0,"IP",6,{"$f":"+VLOOKUP(F998,TT_Tabelle_Riferimento!$D$127:$G$164,4,FALSE)","v":"Impianti di potabilizzazione"},3,{"$f":"+VLOOKUP(H998,TT_Tabelle_Riferimento!$F$3:$G$6,2,FALSE)","v":"Altri servizi idrici"},2028,{"$f":"+SUMIFS('PdI-crono_inv'!BG:BG,'PdI-crono_inv'!CF:CF,F998,'PdI-crono_inv'!CE:CE,H998,'PdI-crono_inv'!J:J,P998,'PdI-crono_inv'!P:P,\"<>proprietario\")","v":0},null,{"$f":"+SUMIFS('PdI-crono_inv'!BH:BH,'PdI-crono_inv'!CF:CF,F998,'PdI-crono_inv'!CE:CE,H998,'PdI-crono_inv'!J:J,P998,'PdI-crono_inv'!P:P,\"<>proprietario\")+S998","v":0},null,null,"Non ERC",{"$f":"+VLOOKUP(F998,TT_Tabelle_Riferimento!$D$127:$E$164,2,FALSE)","v":"Acquedotto"},"",0]
[0,0,"Gestore",0,"IP",7,{"$f":"+VLOOKUP(F999,TT_Tabelle_Riferimento!$D$127:$G$164,4,FALSE)","v":"Altri trattamenti di potabilizzazione (tra cui dispositivi di disinfezione, stacciatura, filtrazione, addolcimento)"},3,{"$f":"+VLOOKUP(H999,TT_Tabelle_Riferimento!$F$3:$G$6,2,FALSE)","v":"Altri servizi idrici"},2028,{"$f":"+SUMIFS('PdI-crono_inv'!BG:BG,'PdI-crono_inv'!CF:CF,F999,'PdI-crono_inv'!CE:CE,H999,'PdI-crono_inv'!J:J,P999,'PdI-crono_inv'!P:P,\"<>proprietario\")","v":0},null,{"$f":"+SUMIFS('PdI-crono_inv'!BH:BH,'PdI-crono_inv'!CF:CF,F999,'PdI-crono_inv'!CE:CE,H999,'PdI-crono_inv'!J:J,P999,'PdI-crono_inv'!P:P,\"<>proprietario\")+S999","v":0},null,null,"Non ERC",{"$f":"+VLOOKUP(F999,TT_Tabelle_Riferimento!$D$127:$E$164,2,FALSE)","v":"Acquedotto"},"",0]
[0,0,"Gestore",0,"IP",8,{"$f":"+VLOOKUP(F1000,TT_Tabelle_Riferimento!$D$127:$G$164,4,FALSE)","v":"Gruppi di misura - altre attrezzature di acquedotto"},3,{"$f":"+VLOOKUP(H1000,TT_Tabelle_Riferimento!$F$3:$G$6,2,FALSE)","v":"Altri servizi idrici"},2028,{"$f":"+SUMIFS('PdI-crono_inv'!BG:BG,'PdI-crono_inv'!CF:CF,F1000,'PdI-crono_inv'!CE:CE,H1000,'PdI-crono_inv'!J:J,P1000,'PdI-crono_inv'!P:P,\"<>proprietario\")","v":0},null,{"$f":"+SUMIFS('PdI-crono_inv'!BH:BH,'PdI-crono_inv'!CF:CF,F1000,'PdI-crono_inv'!CE:CE,H1000,'PdI-crono_inv'!J:J,P1000,'PdI-crono_inv'!P:P,\"<>proprietario\")+S1000","v":0},null,null,"Non ERC",{"$f":"+VLOOKUP(F1000,TT_Tabelle_Riferimento!$D$127:$E$164,2,FALSE)","v":"Acquedotto"},"",0]
[0,0,"Gestore",0,"IP",9,{"$f":"+VLOOKUP(F1001,TT_Tabelle_Riferimento!$D$127:$G$164,4,FALSE)","v":"Sistemi informativi di acquedotto"},3,{"$f":"+VLOOKUP(H1001,TT_Tabelle_Riferimento!$F$3:$G$6,2,FALSE)","v":"Altri servizi idrici"},2028,{"$f":"+SUMIFS('PdI-crono_inv'!BG:BG,'PdI-crono_inv'!CF:CF,F1001,'PdI-crono_inv'!CE:CE,H1001,'PdI-crono_inv'!J:J,P1001,'PdI-crono_inv'!P:P,\"<>proprietario\")","v":0},null,{"$f":"+SUMIFS('PdI-crono_inv'!BH:BH,'PdI-crono_inv'!CF:CF,F1001,'PdI-crono_inv'!CE:CE,H1001,'PdI-crono_inv'!J:J,P1001,'PdI-crono_inv'!P:P,\"<>proprietario\")+S1001","v":0},null,null,"Non ERC",{"$f":"+VLOOKUP(F1001,TT_Tabelle_Riferimento!$D$127:$E$164,2,FALSE)","v":"Acquedotto"},"",0]
[0,0,"Gestore",0,"IP",10,{"$f":"+VLOOKUP(F1002,TT_Tabelle_Riferimento!$D$127:$G$164,4,FALSE)","v":"Telecontrollo e teletrasmissione di acquedotto"},3,{"$f":"+VLOOKUP(H1002,TT_Tabelle_Riferimento!$F$3:$G$6,2,FALSE)","v":"Altri servizi idrici"},2028,{"$f":"+SUMIFS('PdI-crono_inv'!BG:BG,'PdI-crono_inv'!CF:CF,F1002,'PdI-crono_inv'!CE:CE,H1002,'PdI-crono_inv'!J:J,P1002,'PdI-crono_inv'!P:P,\"<>proprietario\")","v":0},null,{"$f":"+SUMIFS('PdI-crono_inv'!BH:BH,'PdI-crono_inv'!CF:CF,F1002,'PdI-crono_inv'!CE:CE,H1002,'PdI-crono_inv'!J:J,P1002,'PdI-crono_inv'!P:P,\"<>proprietario\")+S1002","v":0},null,null,"Non ERC",{"$f":"+VLOOKUP(F1002,TT_Tabelle_Riferimento!$D$127:$E$164,2,FALSE)","v":"Acquedotto"},"",0]
[0,0,"Gestore",0,"IP",11,{"$f":"+VLOOKUP(F1003,TT_Tabelle_Riferimento!$D$127:$G$164,4,FALSE)","v":"Condotte fognarie"},3,{"$f":"+VLOOKUP(H1003,TT_Tabelle_Riferimento!$F$3:$G$6,2,FALSE)","v":"Altri servizi idrici"},2028,{"$f":"+SUMIFS('PdI-crono_inv'!BG:BG,'PdI-crono_inv'!CF:CF,F1003,'PdI-crono_inv'!CE:CE,H1003,'PdI-crono_inv'!J:J,P1003,'PdI-crono_inv'!P:P,\"<>proprietario\")","v":0},null,{"$f":"+SUMIFS('PdI-crono_inv'!BH:BH,'PdI-crono_inv'!CF:CF,F1003,'PdI-crono_inv'!CE:CE,H1003,'PdI-crono_inv'!J:J,P1003,'PdI-crono_inv'!P:P,\"<>proprietario\")+S1003","v":0},null,null,"Non ERC",{"$f":"+VLOOKUP(F1003,TT_Tabelle_Riferimento!$D$127:$E$164,2,FALSE)","v":"Fognatura"},"",0]
[0,0,"Gestore",0,"IP",12,{"$f":"+VLOOKUP(F1004,TT_Tabelle_Riferimento!$D$127:$G$164,4,FALSE)","v":"Sifoni e scaricatori di piena e altre opere idrauliche fisse di fognatura"},3,{"$f":"+VLOOKUP(H1004,TT_Tabelle_Riferimento!$F$3:$G$6,2,FALSE)","v":"Altri servizi idrici"},2028,{"$f":"+SUMIFS('PdI-crono_inv'!BG:BG,'PdI-crono_inv'!CF:CF,F1004,'PdI-crono_inv'!CE:CE,H1004,'PdI-crono_inv'!J:J,P1004,'PdI-crono_inv'!P:P,\"<>proprietario\")","v":0},null,{"$f":"+SUMIFS('PdI-crono_inv'!BH:BH,'PdI-crono_inv'!CF:CF,F1004,'PdI-crono_inv'!CE:CE,H1004,'PdI-crono_inv'!J:J,P1004,'PdI-crono_inv'!P:P,\"<>proprietario\")+S1004","v":0},null,null,"Non ERC",{"$f":"+VLOOKUP(F1004,TT_Tabelle_Riferimento!$D$127:$E$164,2,FALSE)","v":"Fognatura"},"",0]
[0,0,"Gestore",0,"IP",13,{"$f":"+VLOOKUP(F1005,TT_Tabelle_Riferimento!$D$127:$G$164,4,FALSE)","v":"Vasche di laminazione e vasche di prima pioggia"},3,{"$f":"+VLOOKUP(H1005,TT_Tabelle_Riferimento!$F$3:$G$6,2,FALSE)","v":"Altri servizi idrici"},2028,{"$f":"+SUMIFS('PdI-crono_inv'!BG:BG,'PdI-crono_inv'!CF:CF,F1005,'PdI-crono_inv'!CE:CE,H1005,'PdI-crono_inv'!J:J,P1005,'PdI-crono_inv'!P:P,\"<>proprietario\")","v":0},null,{"$f":"+SUMIFS('PdI-crono_inv'!BH:BH,'PdI-crono_inv'!CF:CF,F1005,'PdI-crono_inv'!CE:CE,H1005,'PdI-crono_inv'!J:J,P1005,'PdI-crono_inv'!P:P,\"<>proprietario\")+S1005","v":0},null,null,"Non ERC",{"$f":"+VLOOKUP(F1005,TT_Tabelle_Riferimento!$D$127:$E$164,2,FALSE)","v":"Fognatura"},"",0]
[0,0,"Gestore",0,"IP",14,{"$f":"+VLOOKUP(F1006,TT_Tabelle_Riferimento!$D$127:$G$164,4,FALSE)","v":"Impianti di sollevamento e pompaggio di fognatura"},3,{"$f":"+VLOOKUP(H1006,TT_Tabelle_Riferimento!$F$3:$G$6,2,FALSE)","v":"Altri servizi idrici"},2028,{"$f":"+SUMIFS('PdI-crono_inv'!BG:BG,'PdI-crono_inv'!CF:CF,F1006,'PdI-crono_inv'!CE:CE,H1006,'PdI-crono_inv'!J:J,P1006,'PdI-crono_inv'!P:P,\"<>proprietario\")","v":0},null,{"$f":"+SUMIFS('PdI-crono_inv'!BH:BH,'PdI-crono_inv'!CF:CF,F1006,'PdI-crono_inv'!CE:CE,H1006,'PdI-crono_inv'!J:J,P1006,'PdI-crono_inv'!P:P,\"<>proprietario\")+S1006","v":0},null,null,"Non ERC",{"$f":"+VLOOKUP(F1006,TT_Tabelle_Riferimento!$D$127:$E$164,2,FALSE)","v":"Fognatura"},"",0]
[0,0,"Gestore",0,"IP",15,{"$f":"+VLOOKUP(F1007,TT_Tabelle_Riferimento!$D$127:$G$164,4,FALSE)","v":"Gruppi di misura - altre attrezzature di fognatura"},3,{"$f":"+VLOOKUP(H1007,TT_Tabelle_Riferimento!$F$3:$G$6,2,FALSE)","v":"Altri servizi idrici"},2028,{"$f":"+SUMIFS('PdI-crono_inv'!BG:BG,'PdI-crono_inv'!CF:CF,F1007,'PdI-crono_inv'!CE:CE,H1007,'PdI-crono_inv'!J:J,P1007,'PdI-crono_inv'!P:P,\"<>proprietario\")","v":0},null,{"$f":"+SUMIFS('PdI-crono_inv'!BH:BH,'PdI-crono_inv'!CF:CF,F1007,'PdI-crono_inv'!CE:CE,H1007,'PdI-crono_inv'!J:J,P1007,'PdI-crono_inv'!P:P,\"<>proprietario\")+S1007","v":0},null,null,"Non ERC",{"$f":"+VLOOKUP(F1007,TT_Tabelle_Riferimento!$D$127:$E$164,2,FALSE)","v":"Fognatura"},"",0]
[0,0,"Gestore",0,"IP",16,{"$f":"+VLOOKUP(F1008,TT_Tabelle_Riferimento!$D$127:$G$164,4,FALSE)","v":"Sistemi informativi di fognatura"},3,{"$f":"+VLOOKUP(H1008,TT_Tabelle_Riferimento!$F$3:$G$6,2,FALSE)","v":"Altri servizi idrici"},2028,{"$f":"+SUMIFS('PdI-crono_inv'!BG:BG,'PdI-crono_inv'!CF:CF,F1008,'PdI-crono_inv'!CE:CE,H1008,'PdI-crono_inv'!J:J,P1008,'PdI-crono_inv'!P:P,\"<>proprietario\")","v":0},null,{"$f":"+SUMIFS('PdI-crono_inv'!BH:BH,'PdI-crono_inv'!CF:CF,F1008,'PdI-crono_inv'!CE:CE,H1008,'PdI-crono_inv'!J:J,P1008,'PdI-crono_inv'!P:P,\"<>proprietario\")+S1008","v":0},null,null,"Non ERC",{"$f":"+VLOOKUP(F1008,TT_Tabelle_Riferimento!$D$127:$E$164,2,FALSE)","v":"Fognatura"},"",0]
[0,0,"Gestore",0,"IP",18,{"$f":"+VLOOKUP(F1009,TT_Tabelle_Riferimento!$D$127:$G$164,4,FALSE)","v":"Telecontrollo e teletrasmissione di fognatura"},3,{"$f":"+VLOOKUP(H1009,TT_Tabelle_Riferimento!$F$3:$G$6,2,FALSE)","v":"Altri servizi idrici"},2028,{"$f":"+SUMIFS('PdI-crono_inv'!BG:BG,'PdI-crono_inv'!CF:CF,F1009,'PdI-crono_inv'!CE:CE,H1009,'PdI-crono_inv'!J:J,P1009,'PdI-crono_inv'!P:P,\"<>proprietario\")","v":0},null,{"$f":"+SUMIFS('PdI-crono_inv'!BH:BH,'PdI-crono_inv'!CF:CF,F1009,'PdI-crono_inv'!CE:CE,H1009,'PdI-crono_inv'!J:J,P1009,'PdI-crono_inv'!P:P,\"<>proprietario\")+S1009","v":0},null,null,"Non ERC",{"$f":"+VLOOKUP(F1009,TT_Tabelle_Riferimento!$D$127:$E$164,2,FALSE)","v":"Fognatura"},"",0]
[0,0,"Gestore",0,"IP",19,{"$f":"+VLOOKUP(F1010,TT_Tabelle_Riferimento!$D$127:$G$164,4,FALSE)","v":"Impianti di sollevamento e pompaggio di depurazione"},3,{"$f":"+VLOOKUP(H1010,TT_Tabelle_Riferimento!$F$3:$G$6,2,FALSE)","v":"Altri servizi idrici"},2028,{"$f":"+SUMIFS('PdI-crono_inv'!BG:BG,'PdI-crono_inv'!CF:CF,F1010,'PdI-crono_inv'!CE:CE,H1010,'PdI-crono_inv'!J:J,P1010,'PdI-crono_inv'!P:P,\"<>proprietario\")","v":0},null,{"$f":"+SUMIFS('PdI-crono_inv'!BH:BH,'PdI-crono_inv'!CF:CF,F1010,'PdI-crono_inv'!CE:CE,H1010,'PdI-crono_inv'!J:J,P1010,'PdI-crono_inv'!P:P,\"<>proprietario\")+S1010","v":0},null,null,"Non ERC",{"$f":"+VLOOKUP(F1010,TT_Tabelle_Riferimento!$D$127:$E$164,2,FALSE)","v":"Depurazione"},"",0]
[0,0,"Gestore",0,"IP",20,{"$f":"+VLOOKUP(F1011,TT_Tabelle_Riferimento!$D$127:$G$164,4,FALSE)","v":"Tecniche naturali di depurazione (tra cui fitodepurazione e lagunaggio)"},3,{"$f":"+VLOOKUP(H1011,TT_Tabelle_Riferimento!$F$3:$G$6,2,FALSE)","v":"Altri servizi idrici"},2028,{"$f":"+SUMIFS('PdI-crono_inv'!BG:BG,'PdI-crono_inv'!CF:CF,F1011,'PdI-crono_inv'!CE:CE,H1011,'PdI-crono_inv'!J:J,P1011,'PdI-crono_inv'!P:P,\"<>proprietario\")","v":0},null,{"$f":"+SUMIFS('PdI-crono_inv'!BH:BH,'PdI-crono_inv'!CF:CF,F1011,'PdI-crono_inv'!CE:CE,H1011,'PdI-crono_inv'!J:J,P1011,'PdI-crono_inv'!P:P,\"<>proprietario\")+S1011","v":0},null,null,"Non ERC",{"$f":"+VLOOKUP(F1011,TT_Tabelle_Riferimento!$D$127:$E$164,2,FALSE)","v":"Depurazione"},"",0]
[0,0,"Gestore",0,"IP",21,{"$f":"+VLOOKUP(F1012,TT_Tabelle_Riferimento!$D$127:$G$164,4,FALSE)","v":"Impianti di depurazione – trattamenti sino al preliminare, integrativo, primario - fosse settiche e fosse Imhoff"},3,{"$f":"+VLOOKUP(H1012,TT_Tabelle_Riferimento!$F$3:$G$6,2,FALSE)","v":"Altri servizi idrici"},2028,{"$f":"+SUMIFS('PdI-crono_inv'!BG:BG,'PdI-crono_inv'!CF:CF,F1012,'PdI-crono_inv'!CE:CE,H1012,'PdI-crono_inv'!J:J,P1012,'PdI-crono_inv'!P:P,\"<>proprietario\")","v":0},null,{"$f":"+SUMIFS('PdI-crono_inv'!BH:BH,'PdI-crono_inv'!CF:CF,F1012,'PdI-crono_inv'!CE:CE,H1012,'PdI-crono_inv'!J:J,P1012,'PdI-crono_inv'!P:P,\"<>proprietario\")+S1012","v":0},null,null,"Non ERC",{"$f":"+VLOOKUP(F1012,TT_Tabelle_Riferimento!$D$127:$E$164,2,FALSE)","v":"Depurazione"},"",0]
[0,0,"Gestore",0,"IP",22,{"$f":"+VLOOKUP(F1013,TT_Tabelle_Riferimento!$D$127:$G$164,4,FALSE)","v":"Impianti di depurazione – trattamenti sino al secondario"},3,{"$f":"+VLOOKUP(H1013,TT_Tabelle_Riferimento!$F$3:$G$6,2,FALSE)","v":"Altri servizi idrici"},2028,{"$f":"+SUMIFS('PdI-crono_inv'!BG:BG,'PdI-crono_inv'!CF:CF,F1013,'PdI-crono_inv'!CE:CE,H1013,'PdI-crono_inv'!J:J,P1013,'PdI-crono_inv'!P:P,\"<>proprietario\")","v":0},null,{"$f":"+SUMIFS('PdI-crono_inv'!BH:BH,'PdI-crono_inv'!CF:CF,F1013,'PdI-crono_inv'!CE:CE,H1013,'PdI-crono_inv'!J:J,P1013,'PdI-crono_inv'!P:P,\"<>proprietario\")+S1013","v":0},null,null,"Non ERC",{"$f":"+VLOOKUP(F1013,TT_Tabelle_Riferimento!$D$127:$E$164,2,FALSE)","v":"Depurazione"},"",0]
[0,0,"Gestore",0,"IP",23,{"$f":"+VLOOKUP(F1014,TT_Tabelle_Riferimento!$D$127:$G$164,4,FALSE)","v":"Impianti di depurazione – trattamenti sino al terziario e terziario avanzato"},3,{"$f":"+VLOOKUP(H1014,TT_Tabelle_Riferimento!$F$3:$G$6,2,FALSE)","v":"Altri servizi idrici"},2028,{"$f":"+SUMIFS('PdI-crono_inv'!BG:BG,'PdI-crono_inv'!CF:CF,F1014,'PdI-crono_inv'!CE:CE,H1014,'PdI-crono_inv'!J:J,P1014,'PdI-crono_inv'!P:P,\"<>proprietario\")","v":0},null,{"$f":"+SUMIFS('PdI-crono_inv'!BH:BH,'PdI-crono_inv'!CF:CF,F1014,'PdI-crono_inv'!CE:CE,H1014,'PdI-crono_inv'!J:J,P1014,'PdI-crono_inv'!P:P,\"<>proprietario\")+S1014","v":0},null,null,"Non ERC",{"$f":"+VLOOKUP(F1014,TT_Tabelle_Riferimento!$D$127:$E$164,2,FALSE)","v":"Depurazione"},"",0]
[0,0,"Gestore",0,"IP",24,{"$f":"+VLOOKUP(F1015,TT_Tabelle_Riferimento!$D$127:$G$164,4,FALSE)","v":"Impianti di essiccamento fanghi e di valorizzazione dei fanghi (tra cui mono-incenerimento, pirolisi, gassificazione)"},3,{"$f":"+VLOOKUP(H1015,TT_Tabelle_Riferimento!$F$3:$G$6,2,FALSE)","v":"Altri servizi idrici"},2028,{"$f":"+SUMIFS('PdI-crono_inv'!BG:BG,'PdI-crono_inv'!CF:CF,F1015,'PdI-crono_inv'!CE:CE,H1015,'PdI-crono_inv'!J:J,P1015,'PdI-crono_inv'!P:P,\"<>proprietario\")","v":0},null,{"$f":"+SUMIFS('PdI-crono_inv'!BH:BH,'PdI-crono_inv'!CF:CF,F1015,'PdI-crono_inv'!CE:CE,H1015,'PdI-crono_inv'!J:J,P1015,'PdI-crono_inv'!P:P,\"<>proprietario\")+S1015","v":0},null,null,"Non ERC",{"$f":"+VLOOKUP(F1015,TT_Tabelle_Riferimento!$D$127:$E$164,2,FALSE)","v":"Depurazione"},"",0]
[0,0,"Gestore",0,"IP",25,{"$f":"+VLOOKUP(F1016,TT_Tabelle_Riferimento!$D$127:$G$164,4,FALSE)","v":"Gruppi di misura - altre attrezzature di depurazione"},3,{"$f":"+VLOOKUP(H1016,TT_Tabelle_Riferimento!$F$3:$G$6,2,FALSE)","v":"Altri servizi idrici"},2028,{"$f":"+SUMIFS('PdI-crono_inv'!BG:BG,'PdI-crono_inv'!CF:CF,F1016,'PdI-crono_inv'!CE:CE,H1016,'PdI-crono_inv'!J:J,P1016,'PdI-crono_inv'!P:P,\"<>proprietario\")","v":0},null,{"$f":"+SUMIFS('PdI-crono_inv'!BH:BH,'PdI-crono_inv'!CF:CF,F1016,'PdI-crono_inv'!CE:CE,H1016,'PdI-crono_inv'!J:J,P1016,'PdI-crono_inv'!P:P,\"<>proprietario\")+S1016","v":0},null,null,"Non ERC",{"$f":"+VLOOKUP(F1016,TT_Tabelle_Riferimento!$D$127:$E$164,2,FALSE)","v":"Depurazione"},"",0]
[0,0,"Gestore",0,"IP",26,{"$f":"+VLOOKUP(F1017,TT_Tabelle_Riferimento!$D$127:$G$164,4,FALSE)","v":"Sistemi informativi di depurazione"},3,{"$f":"+VLOOKUP(H1017,TT_Tabelle_Riferimento!$F$3:$G$6,2,FALSE)","v":"Altri servizi idrici"},2028,{"$f":"+SUMIFS('PdI-crono_inv'!BG:BG,'PdI-crono_inv'!CF:CF,F1017,'PdI-crono_inv'!CE:CE,H1017,'PdI-crono_inv'!J:J,P1017,'PdI-crono_inv'!P:P,\"<>proprietario\")","v":0},null,{"$f":"+SUMIFS('PdI-crono_inv'!BH:BH,'PdI-crono_inv'!CF:CF,F1017,'PdI-crono_inv'!CE:CE,H1017,'PdI-crono_inv'!J:J,P1017,'PdI-crono_inv'!P:P,\"<>proprietario\")+S1017","v":0},null,null,"Non ERC",{"$f":"+VLOOKUP(F1017,TT_Tabelle_Riferimento!$D$127:$E$164,2,FALSE)","v":"Depurazione"},"",0]
[0,0,"Gestore",0,"IP",27,{"$f":"+VLOOKUP(F1018,TT_Tabelle_Riferimento!$D$127:$G$164,4,FALSE)","v":"Telecontrollo e teletrasmissione di depurazione"},3,{"$f":"+VLOOKUP(H1018,TT_Tabelle_Riferimento!$F$3:$G$6,2,FALSE)","v":"Altri servizi idrici"},2028,{"$f":"+SUMIFS('PdI-crono_inv'!BG:BG,'PdI-crono_inv'!CF:CF,F1018,'PdI-crono_inv'!CE:CE,H1018,'PdI-crono_inv'!J:J,P1018,'PdI-crono_inv'!P:P,\"<>proprietario\")","v":0},null,{"$f":"+SUMIFS('PdI-crono_inv'!BH:BH,'PdI-crono_inv'!CF:CF,F1018,'PdI-crono_inv'!CE:CE,H1018,'PdI-crono_inv'!J:J,P1018,'PdI-crono_inv'!P:P,\"<>proprietario\")+S1018","v":0},null,null,"Non ERC",{"$f":"+VLOOKUP(F1018,TT_Tabelle_Riferimento!$D$127:$E$164,2,FALSE)","v":"Depurazione"},"",0]
[0,0,"Gestore",0,"IP",28,{"$f":"+VLOOKUP(F1019,TT_Tabelle_Riferimento!$D$127:$G$164,4,FALSE)","v":"Altri impianti"},3,{"$f":"+VLOOKUP(H1019,TT_Tabelle_Riferimento!$F$3:$G$6,2,FALSE)","v":"Altri servizi idrici"},2028,{"$f":"+SUMIFS('PdI-crono_inv'!BG:BG,'PdI-crono_inv'!CF:CF,F1019,'PdI-crono_inv'!CE:CE,H1019,'PdI-crono_inv'!J:J,P1019,'PdI-crono_inv'!P:P,\"<>proprietario\")","v":0},null,{"$f":"+SUMIFS('PdI-crono_inv'!BH:BH,'PdI-crono_inv'!CF:CF,F1019,'PdI-crono_inv'!CE:CE,H1019,'PdI-crono_inv'!J:J,P1019,'PdI-crono_inv'!P:P,\"<>proprietario\")+S1019","v":0},null,null,"Non ERC",{"$f":"+VLOOKUP(F1019,TT_Tabelle_Riferimento!$D$127:$E$164,2,FALSE)","v":"Comune"},"",0]
[0,0,"Gestore",0,"IP",29,{"$f":"+VLOOKUP(F1020,TT_Tabelle_Riferimento!$D$127:$G$164,4,FALSE)","v":"Laboratori e attrezzature"},3,{"$f":"+VLOOKUP(H1020,TT_Tabelle_Riferimento!$F$3:$G$6,2,FALSE)","v":"Altri servizi idrici"},2028,{"$f":"+SUMIFS('PdI-crono_inv'!BG:BG,'PdI-crono_inv'!CF:CF,F1020,'PdI-crono_inv'!CE:CE,H1020,'PdI-crono_inv'!J:J,P1020,'PdI-crono_inv'!P:P,\"<>proprietario\")","v":0},null,{"$f":"+SUMIFS('PdI-crono_inv'!BH:BH,'PdI-crono_inv'!CF:CF,F1020,'PdI-crono_inv'!CE:CE,H1020,'PdI-crono_inv'!J:J,P1020,'PdI-crono_inv'!P:P,\"<>proprietario\")+S1020","v":0},null,null,"Non ERC",{"$f":"+VLOOKUP(F1020,TT_Tabelle_Riferimento!$D$127:$E$164,2,FALSE)","v":"Comune"},"",0]
[0,0,"Gestore",0,"IP",30,{"$f":"+VLOOKUP(F1021,TT_Tabelle_Riferimento!$D$127:$G$164,4,FALSE)","v":"Sistemi informativi"},3,{"$f":"+VLOOKUP(H1021,TT_Tabelle_Riferimento!$F$3:$G$6,2,FALSE)","v":"Altri servizi idrici"},2028,{"$f":"+SUMIFS('PdI-crono_inv'!BG:BG,'PdI-crono_inv'!CF:CF,F1021,'PdI-crono_inv'!CE:CE,H1021,'PdI-crono_inv'!J:J,P1021,'PdI-crono_inv'!P:P,\"<>proprietario\")","v":0},null,{"$f":"+SUMIFS('PdI-crono_inv'!BH:BH,'PdI-crono_inv'!CF:CF,F1021,'PdI-crono_inv'!CE:CE,H1021,'PdI-crono_inv'!J:J,P1021,'PdI-crono_inv'!P:P,\"<>proprietario\")+S1021","v":0},null,null,"Non ERC",{"$f":"+VLOOKUP(F1021,TT_Tabelle_Riferimento!$D$127:$E$164,2,FALSE)","v":"Comune"},"",0]
[0,0,"Gestore",0,"IP",31,{"$f":"+VLOOKUP(F1022,TT_Tabelle_Riferimento!$D$127:$G$164,4,FALSE)","v":"Telecontrollo e teletrasmissione"},3,{"$f":"+VLOOKUP(H1022,TT_Tabelle_Riferimento!$F$3:$G$6,2,FALSE)","v":"Altri servizi idrici"},2028,{"$f":"+SUMIFS('PdI-crono_inv'!BG:BG,'PdI-crono_inv'!CF:CF,F1022,'PdI-crono_inv'!CE:CE,H1022,'PdI-crono_inv'!J:J,P1022,'PdI-crono_inv'!P:P,\"<>proprietario\")","v":0},null,{"$f":"+SUMIFS('PdI-crono_inv'!BH:BH,'PdI-crono_inv'!CF:CF,F1022,'PdI-crono_inv'!CE:CE,H1022,'PdI-crono_inv'!J:J,P1022,'PdI-crono_inv'!P:P,\"<>proprietario\")+S1022","v":0},null,null,"Non ERC",{"$f":"+VLOOKUP(F1022,TT_Tabelle_Riferimento!$D$127:$E$164,2,FALSE)","v":"Comune"},"",0]
[0,0,"Gestore",0,"IP",32,{"$f":"+VLOOKUP(F1023,TT_Tabelle_Riferimento!$D$127:$G$164,4,FALSE)","v":"Autoveicoli - automezzi"},3,{"$f":"+VLOOKUP(H1023,TT_Tabelle_Riferimento!$F$3:$G$6,2,FALSE)","v":"Altri servizi idrici"},2028,{"$f":"+SUMIFS('PdI-crono_inv'!BG:BG,'PdI-crono_inv'!CF:CF,F1023,'PdI-crono_inv'!CE:CE,H1023,'PdI-crono_inv'!J:J,P1023,'PdI-crono_inv'!P:P,\"<>proprietario\")","v":0},null,{"$f":"+SUMIFS('PdI-crono_inv'!BH:BH,'PdI-crono_inv'!CF:CF,F1023,'PdI-crono_inv'!CE:CE,H1023,'PdI-crono_inv'!J:J,P1023,'PdI-crono_inv'!P:P,\"<>proprietario\")+S1023","v":0},null,null,"Non ERC",{"$f":"+VLOOKUP(F1023,TT_Tabelle_Riferimento!$D$127:$E$164,2,FALSE)","v":"Comune"},"",0]
[0,0,"Gestore",0,"IP",1,{"$f":"+VLOOKUP(F1024,TT_Tabelle_Riferimento!$D$127:$G$164,4,FALSE)","v":"Terreni"},3,{"$f":"+VLOOKUP(H1024,TT_Tabelle_Riferimento!$F$3:$G$6,2,FALSE)","v":"Altri servizi idrici"},2028,{"$f":"+SUMIFS('PdI-crono_inv'!BG:BG,'PdI-crono_inv'!CF:CF,F1024,'PdI-crono_inv'!CE:CE,H1024,'PdI-crono_inv'!J:J,P1024,'PdI-crono_inv'!P:P,\"<>proprietario\")","v":0},null,{"$f":"+SUMIFS('PdI-crono_inv'!BH:BH,'PdI-crono_inv'!CF:CF,F1024,'PdI-crono_inv'!CE:CE,H1024,'PdI-crono_inv'!J:J,P1024,'PdI-crono_inv'!P:P,\"<>proprietario\")+S1024","v":0},null,null,"Non ERC",{"$f":"+VLOOKUP(F1024,TT_Tabelle_Riferimento!$D$127:$E$164,2,FALSE)","v":"Comune"},"",0]
[0,0,"Gestore",0,"IP",33,{"$f":"+VLOOKUP(F1025,TT_Tabelle_Riferimento!$D$127:$G$164,4,FALSE)","v":"Fabbricati non industriali"},3,{"$f":"+VLOOKUP(H1025,TT_Tabelle_Riferimento!$F$3:$G$6,2,FALSE)","v":"Altri servizi idrici"},2028,{"$f":"+SUMIFS('PdI-crono_inv'!BG:BG,'PdI-crono_inv'!CF:CF,F1025,'PdI-crono_inv'!CE:CE,H1025,'PdI-crono_inv'!J:J,P1025,'PdI-crono_inv'!P:P,\"<>proprietario\")","v":0},null,{"$f":"+SUMIFS('PdI-crono_inv'!BH:BH,'PdI-crono_inv'!CF:CF,F1025,'PdI-crono_inv'!CE:CE,H1025,'PdI-crono_inv'!J:J,P1025,'PdI-crono_inv'!P:P,\"<>proprietario\")+S1025","v":0},null,null,"Non ERC",{"$f":"+VLOOKUP(F1025,TT_Tabelle_Riferimento!$D$127:$E$164,2,FALSE)","v":"Comune"},"",0]
[0,0,"Gestore",0,"IP",34,{"$f":"+VLOOKUP(F1026,TT_Tabelle_Riferimento!$D$127:$G$164,4,FALSE)","v":"Fabbricati industriali"},3,{"$f":"+VLOOKUP(H1026,TT_Tabelle_Riferimento!$F$3:$G$6,2,FALSE)","v":"Altri servizi idrici"},2028,{"$f":"+SUMIFS('PdI-crono_inv'!BG:BG,'PdI-crono_inv'!CF:CF,F1026,'PdI-crono_inv'!CE:CE,H1026,'PdI-crono_inv'!J:J,P1026,'PdI-crono_inv'!P:P,\"<>proprietario\")","v":0},null,{"$f":"+SUMIFS('PdI-crono_inv'!BH:BH,'PdI-crono_inv'!CF:CF,F1026,'PdI-crono_inv'!CE:CE,H1026,'PdI-crono_inv'!J:J,P1026,'PdI-crono_inv'!P:P,\"<>proprietario\")+S1026","v":0},null,null,"Non ERC",{"$f":"+VLOOKUP(F1026,TT_Tabelle_Riferimento!$D$127:$E$164,2,FALSE)","v":"Comune"},"",0]
[0,0,"Gestore",0,"IP",35,{"$f":"+VLOOKUP(F1027,TT_Tabelle_Riferimento!$D$127:$G$164,4,FALSE)","v":"Costruzioni leggere"},3,{"$f":"+VLOOKUP(H1027,TT_Tabelle_Riferimento!$F$3:$G$6,2,FALSE)","v":"Altri servizi idrici"},2028,{"$f":"+SUMIFS('PdI-crono_inv'!BG:BG,'PdI-crono_inv'!CF:CF,F1027,'PdI-crono_inv'!CE:CE,H1027,'PdI-crono_inv'!J:J,P1027,'PdI-crono_inv'!P:P,\"<>proprietario\")","v":0},null,{"$f":"+SUMIFS('PdI-crono_inv'!BH:BH,'PdI-crono_inv'!CF:CF,F1027,'PdI-crono_inv'!CE:CE,H1027,'PdI-crono_inv'!J:J,P1027,'PdI-crono_inv'!P:P,\"<>proprietario\")+S1027","v":0},null,null,"Non ERC",{"$f":"+VLOOKUP(F1027,TT_Tabelle_Riferimento!$D$127:$E$164,2,FALSE)","v":"Comune"},"",0]
[0,0,"Gestore",0,"IP",36,{"$f":"+VLOOKUP(F1028,TT_Tabelle_Riferimento!$D$127:$G$164,4,FALSE)","v":"Studi, ricerche, brevetti, diritti di utilizzazione"},3,{"$f":"+VLOOKUP(H1028,TT_Tabelle_Riferimento!$F$3:$G$6,2,FALSE)","v":"Altri servizi idrici"},2028,{"$f":"+SUMIFS('PdI-crono_inv'!BG:BG,'PdI-crono_inv'!CF:CF,F1028,'PdI-crono_inv'!CE:CE,H1028,'PdI-crono_inv'!J:J,P1028,'PdI-crono_inv'!P:P,\"<>proprietario\")","v":0},null,{"$f":"+SUMIFS('PdI-crono_inv'!BH:BH,'PdI-crono_inv'!CF:CF,F1028,'PdI-crono_inv'!CE:CE,H1028,'PdI-crono_inv'!J:J,P1028,'PdI-crono_inv'!P:P,\"<>proprietario\")+S1028","v":0},null,null,"Non ERC",{"$f":"+VLOOKUP(F1028,TT_Tabelle_Riferimento!$D$127:$E$164,2,FALSE)","v":"Comune"},"",0]
[0,0,"Gestore",0,"IP",37,{"$f":"+VLOOKUP(F1029,TT_Tabelle_Riferimento!$D$127:$G$164,4,FALSE)","v":"Altre immobilizzazioni materiali e immateriali"},3,{"$f":"+VLOOKUP(H1029,TT_Tabelle_Riferimento!$F$3:$G$6,2,FALSE)","v":"Altri servizi idrici"},2028,{"$f":"+SUMIFS('PdI-crono_inv'!BG:BG,'PdI-crono_inv'!CF:CF,F1029,'PdI-crono_inv'!CE:CE,H1029,'PdI-crono_inv'!J:J,P1029,'PdI-crono_inv'!P:P,\"<>proprietario\")","v":0},null,{"$f":"+SUMIFS('PdI-crono_inv'!BH:BH,'PdI-crono_inv'!CF:CF,F1029,'PdI-crono_inv'!CE:CE,H1029,'PdI-crono_inv'!J:J,P1029,'PdI-crono_inv'!P:P,\"<>proprietario\")+S1029","v":0},null,null,"Non ERC",{"$f":"+VLOOKUP(F1029,TT_Tabelle_Riferimento!$D$127:$E$164,2,FALSE)","v":"Comune"},"",0]
[0,0,"Gestore",0,"IP",38,{"$f":"+VLOOKUP(F1030,TT_Tabelle_Riferimento!$D$127:$G$164,4,FALSE)","v":"Grandi dighe (sbarramenti che superano i quindici metri di altezza o che determinano un invaso superiore a 1 milione di metri cubi)"},3,{"$f":"+VLOOKUP(H1030,TT_Tabelle_Riferimento!$F$3:$G$6,2,FALSE)","v":"Altri servizi idrici"},2028,{"$f":"+SUMIFS('PdI-crono_inv'!BG:BG,'PdI-crono_inv'!CF:CF,F1030,'PdI-crono_inv'!CE:CE,H1030,'PdI-crono_inv'!J:J,P1030,'PdI-crono_inv'!P:P,\"<>proprietario\")","v":0},null,{"$f":"+SUMIFS('PdI-crono_inv'!BH:BH,'PdI-crono_inv'!CF:CF,F1030,'PdI-crono_inv'!CE:CE,H1030,'PdI-crono_inv'!J:J,P1030,'PdI-crono_inv'!P:P,\"<>proprietario\")+S1030","v":0},null,null,"Non ERC",{"$f":"+VLOOKUP(F1030,TT_Tabelle_Riferimento!$D$127:$E$164,2,FALSE)","v":"Acquedotto"},"",0]
[0,0,"Gestore",0,"IP",39,{"$f":"+VLOOKUP(F1031,TT_Tabelle_Riferimento!$D$127:$G$164,4,FALSE)","v":"Piccole dighe (sbarramenti che non superano i quindici metri di altezza o che determinano un invaso non superiore a 1 milione di metri cubi)"},3,{"$f":"+VLOOKUP(H1031,TT_Tabelle_Riferimento!$F$3:$G$6,2,FALSE)","v":"Altri servizi idrici"},2028,{"$f":"+SUMIFS('PdI-crono_inv'!BG:BG,'PdI-crono_inv'!CF:CF,F1031,'PdI-crono_inv'!CE:CE,H1031,'PdI-crono_inv'!J:J,P1031,'PdI-crono_inv'!P:P,\"<>proprietario\")","v":0},null,{"$f":"+SUMIFS('PdI-crono_inv'!BH:BH,'PdI-crono_inv'!CF:CF,F1031,'PdI-crono_inv'!CE:CE,H1031,'PdI-crono_inv'!J:J,P1031,'PdI-crono_inv'!P:P,\"<>proprietario\")+S1031","v":0},null,null,"Non ERC",{"$f":"+VLOOKUP(F1031,TT_Tabelle_Riferimento!$D$127:$E$164,2,FALSE)","v":"Acquedotto"},"",{"$f":"+IFERROR(HLOOKUP(J1031,$X$2:$Y$5,4,FALSE)*K1031,0)","v":0}]
[0,0,"Gestore",0,"IP",2,{"$f":"+VLOOKUP(F1032,TT_Tabelle_Riferimento!$D$127:$G$164,4,FALSE)","v":"Condotte di acquedotto"},1,{"$f":"+VLOOKUP(H1032,TT_Tabelle_Riferimento!$F$3:$G$6,2,FALSE)","v":"Servizio idrico integrato"},2029,{"$f":"+SUMIFS('PdI-crono_inv'!BL:BL,'PdI-crono_inv'!CF:CF,F1032,'PdI-crono_inv'!CE:CE,H1032,'PdI-crono_inv'!J:J,P1032,'PdI-crono_inv'!P:P,\"<>proprietario\")","v":0},null,{"$f":"+SUMIFS('PdI-crono_inv'!BM:BM,'PdI-crono_inv'!CF:CF,F1032,'PdI-crono_inv'!CE:CE,H1032,'PdI-crono_inv'!J:J,P1032,'PdI-crono_inv'!P:P,\"<>proprietario\")+S1032","v":0},null,null,"ENV",{"$f":"+VLOOKUP(F1032,TT_Tabelle_Riferimento!$D$127:$E$164,2,FALSE)","v":"Acquedotto"},{"$f":"+IF(SUM(K1032:N1032)=0,\"\",\"PdI_consolidamento\")","v":""},0]
[0,0,"Gestore",0,"IP",3,{"$f":"+VLOOKUP(F1033,TT_Tabelle_Riferimento!$D$127:$G$164,4,FALSE)","v":"Opere idrauliche fisse di acquedotto"},1,{"$f":"+VLOOKUP(H1033,TT_Tabelle_Riferimento!$F$3:$G$6,2,FALSE)","v":"Servizio idrico integrato"},2029,{"$f":"+SUMIFS('PdI-crono_inv'!BL:BL,'PdI-crono_inv'!CF:CF,F1033,'PdI-crono_inv'!CE:CE,H1033,'PdI-crono_inv'!J:J,P1033,'PdI-crono_inv'!P:P,\"<>proprietario\")","v":0},null,{"$f":"+SUMIFS('PdI-crono_inv'!BM:BM,'PdI-crono_inv'!CF:CF,F1033,'PdI-crono_inv'!CE:CE,H1033,'PdI-crono_inv'!J:J,P1033,'PdI-crono_inv'!P:P,\"<>proprietario\")+S1033","v":0},null,null,"ENV",{"$f":"+VLOOKUP(F1033,TT_Tabelle_Riferimento!$D$127:$E$164,2,FALSE)","v":"Acquedotto"},{"$f":"+IF(SUM(K1033:N1033)=0,\"\",\"PdI_consolidamento\")","v":""},0]
[0,0,"Gestore",0,"IP",4,{"$f":"+VLOOKUP(F1034,TT_Tabelle_Riferimento!$D$127:$G$164,4,FALSE)","v":"Serbatoi"},1,{"$f":"+VLOOKUP(H1034,TT_Tabelle_Riferimento!$F$3:$G$6,2,FALSE)","v":"Servizio idrico integrato"},2029,{"$f":"+SUMIFS('PdI-crono_inv'!BL:BL,'PdI-crono_inv'!CF:CF,F1034,'PdI-crono_inv'!CE:CE,H1034,'PdI-crono_inv'!J:J,P1034,'PdI-crono_inv'!P:P,\"<>proprietario\")","v":0},null,{"$f":"+SUMIFS('PdI-crono_inv'!BM:BM,'PdI-crono_inv'!CF:CF,F1034,'PdI-crono_inv'!CE:CE,H1034,'PdI-crono_inv'!J:J,P1034,'PdI-crono_inv'!P:P,\"<>proprietario\")+S1034","v":0},null,null,"ENV",{"$f":"+VLOOKUP(F1034,TT_Tabelle_Riferimento!$D$127:$E$164,2,FALSE)","v":"Acquedotto"},"",0]
[0,0,"Gestore",0,"IP",5,{"$f":"+VLOOKUP(F1035,TT_Tabelle_Riferimento!$D$127:$G$164,4,FALSE)","v":"Impianti di sollevamento e pompaggio di acquedotto"},1,{"$f":"+VLOOKUP(H1035,TT_Tabelle_Riferimento!$F$3:$G$6,2,FALSE)","v":"Servizio idrico integrato"},2029,{"$f":"+SUMIFS('PdI-crono_inv'!BL:BL,'PdI-crono_inv'!CF:CF,F1035,'PdI-crono_inv'!CE:CE,H1035,'PdI-crono_inv'!J:J,P1035,'PdI-crono_inv'!P:P,\"<>proprietario\")","v":0},null,{"$f":"+SUMIFS('PdI-crono_inv'!BM:BM,'PdI-crono_inv'!CF:CF,F1035,'PdI-crono_inv'!CE:CE,H1035,'PdI-crono_inv'!J:J,P1035,'PdI-crono_inv'!P:P,\"<>proprietario\")+S1035","v":0},null,null,"ENV",{"$f":"+VLOOKUP(F1035,TT_Tabelle_Riferimento!$D$127:$E$164,2,FALSE)","v":"Acquedotto"},"",0]
[0,0,"Gestore",0,"IP",6,{"$f":"+VLOOKUP(F1036,TT_Tabelle_Riferimento!$D$127:$G$164,4,FALSE)","v":"Impianti di potabilizzazione"},1,{"$f":"+VLOOKUP(H1036,TT_Tabelle_Riferimento!$F$3:$G$6,2,FALSE)","v":"Servizio idrico integrato"},2029,{"$f":"+SUMIFS('PdI-crono_inv'!BL:BL,'PdI-crono_inv'!CF:CF,F1036,'PdI-crono_inv'!CE:CE,H1036,'PdI-crono_inv'!J:J,P1036,'PdI-crono_inv'!P:P,\"<>proprietario\")","v":0},null,{"$f":"+SUMIFS('PdI-crono_inv'!BM:BM,'PdI-crono_inv'!CF:CF,F1036,'PdI-crono_inv'!CE:CE,H1036,'PdI-crono_inv'!J:J,P1036,'PdI-crono_inv'!P:P,\"<>proprietario\")+S1036","v":0},null,null,"ENV",{"$f":"+VLOOKUP(F1036,TT_Tabelle_Riferimento!$D$127:$E$164,2,FALSE)","v":"Acquedotto"},"",0]
[0,0,"Gestore",0,"IP",7,{"$f":"+VLOOKUP(F1037,TT_Tabelle_Riferimento!$D$127:$G$164,4,FALSE)","v":"Altri trattamenti di potabilizzazione (tra cui dispositivi di disinfezione, stacciatura, filtrazione, addolcimento)"},1,{"$f":"+VLOOKUP(H1037,TT_Tabelle_Riferimento!$F$3:$G$6,2,FALSE)","v":"Servizio idrico integrato"},2029,{"$f":"+SUMIFS('PdI-crono_inv'!BL:BL,'PdI-crono_inv'!CF:CF,F1037,'PdI-crono_inv'!CE:CE,H1037,'PdI-crono_inv'!J:J,P1037,'PdI-crono_inv'!P:P,\"<>proprietario\")","v":0},null,{"$f":"+SUMIFS('PdI-crono_inv'!BM:BM,'PdI-crono_inv'!CF:CF,F1037,'PdI-crono_inv'!CE:CE,H1037,'PdI-crono_inv'!J:J,P1037,'PdI-crono_inv'!P:P,\"<>proprietario\")+S1037","v":0},null,null,"ENV",{"$f":"+VLOOKUP(F1037,TT_Tabelle_Riferimento!$D$127:$E$164,2,FALSE)","v":"Acquedotto"},"",0]
[0,0,"Gestore",0,"IP",8,{"$f":"+VLOOKUP(F1038,TT_Tabelle_Riferimento!$D$127:$G$164,4,FALSE)","v":"Gruppi di misura - altre attrezzature di acquedotto"},1,{"$f":"+VLOOKUP(H1038,TT_Tabelle_Riferimento!$F$3:$G$6,2,FALSE)","v":"Servizio idrico integrato"},2029,{"$f":"+SUMIFS('PdI-crono_inv'!BL:BL,'PdI-crono_inv'!CF:CF,F1038,'PdI-crono_inv'!CE:CE,H1038,'PdI-crono_inv'!J:J,P1038,'PdI-crono_inv'!P:P,\"<>proprietario\")","v":0},null,{"$f":"+SUMIFS('PdI-crono_inv'!BM:BM,'PdI-crono_inv'!CF:CF,F1038,'PdI-crono_inv'!CE:CE,H1038,'PdI-crono_inv'!J:J,P1038,'PdI-crono_inv'!P:P,\"<>proprietario\")+S1038","v":0},null,null,"ENV",{"$f":"+VLOOKUP(F1038,TT_Tabelle_Riferimento!$D$127:$E$164,2,FALSE)","v":"Acquedotto"},"",0]
[0,0,"Gestore",0,"IP",9,{"$f":"+VLOOKUP(F1039,TT_Tabelle_Riferimento!$D$127:$G$164,4,FALSE)","v":"Sistemi informativi di acquedotto"},1,{"$f":"+VLOOKUP(H1039,TT_Tabelle_Riferimento!$F$3:$G$6,2,FALSE)","v":"Servizio idrico integrato"},2029,{"$f":"+SUMIFS('PdI-crono_inv'!BL:BL,'PdI-crono_inv'!CF:CF,F1039,'PdI-crono_inv'!CE:CE,H1039,'PdI-crono_inv'!J:J,P1039,'PdI-crono_inv'!P:P,\"<>proprietario\")","v":0},null,{"$f":"+SUMIFS('PdI-crono_inv'!BM:BM,'PdI-crono_inv'!CF:CF,F1039,'PdI-crono_inv'!CE:CE,H1039,'PdI-crono_inv'!J:J,P1039,'PdI-crono_inv'!P:P,\"<>proprietario\")+S1039","v":0},null,null,"ENV",{"$f":"+VLOOKUP(F1039,TT_Tabelle_Riferimento!$D$127:$E$164,2,FALSE)","v":"Acquedotto"},"",0]
[0,0,"Gestore",0,"IP",10,{"$f":"+VLOOKUP(F1040,TT_Tabelle_Riferimento!$D$127:$G$164,4,FALSE)","v":"Telecontrollo e teletrasmissione di acquedotto"},1,{"$f":"+VLOOKUP(H1040,TT_Tabelle_Riferimento!$F$3:$G$6,2,FALSE)","v":"Servizio idrico integrato"},2029,{"$f":"+SUMIFS('PdI-crono_inv'!BL:BL,'PdI-crono_inv'!CF:CF,F1040,'PdI-crono_inv'!CE:CE,H1040,'PdI-crono_inv'!J:J,P1040,'PdI-crono_inv'!P:P,\"<>proprietario\")","v":0},null,{"$f":"+SUMIFS('PdI-crono_inv'!BM:BM,'PdI-crono_inv'!CF:CF,F1040,'PdI-crono_inv'!CE:CE,H1040,'PdI-crono_inv'!J:J,P1040,'PdI-crono_inv'!P:P,\"<>proprietario\")+S1040","v":0},null,null,"ENV",{"$f":"+VLOOKUP(F1040,TT_Tabelle_Riferimento!$D$127:$E$164,2,FALSE)","v":"Acquedotto"},"",0]
[0,0,"Gestore",0,"IP",11,{"$f":"+VLOOKUP(F1041,TT_Tabelle_Riferimento!$D$127:$G$164,4,FALSE)","v":"Condotte fognarie"},1,{"$f":"+VLOOKUP(H1041,TT_Tabelle_Riferimento!$F$3:$G$6,2,FALSE)","v":"Servizio idrico integrato"},2029,{"$f":"+SUMIFS('PdI-crono_inv'!BL:BL,'PdI-crono_inv'!CF:CF,F1041,'PdI-crono_inv'!CE:CE,H1041,'PdI-crono_inv'!J:J,P1041,'PdI-crono_inv'!P:P,\"<>proprietario\")","v":0},null,{"$f":"+SUMIFS('PdI-crono_inv'!BM:BM,'PdI-crono_inv'!CF:CF,F1041,'PdI-crono_inv'!CE:CE,H1041,'PdI-crono_inv'!J:J,P1041,'PdI-crono_inv'!P:P,\"<>proprietario\")+S1041","v":0},null,null,"ENV",{"$f":"+VLOOKUP(F1041,TT_Tabelle_Riferimento!$D$127:$E$164,2,FALSE)","v":"Fognatura"},"",0]
[0,0,"Gestore",0,"IP",12,{"$f":"+VLOOKUP(F1042,TT_Tabelle_Riferimento!$D$127:$G$164,4,FALSE)","v":"Sifoni e scaricatori di piena e altre opere idrauliche fisse di fognatura"},1,{"$f":"+VLOOKUP(H1042,TT_Tabelle_Riferimento!$F$3:$G$6,2,FALSE)","v":"Servizio idrico integrato"},2029,{"$f":"+SUMIFS('PdI-crono_inv'!BL:BL,'PdI-crono_inv'!CF:CF,F1042,'PdI-crono_inv'!CE:CE,H1042,'PdI-crono_inv'!J:J,P1042,'PdI-crono_inv'!P:P,\"<>proprietario\")","v":0},null,{"$f":"+SUMIFS('PdI-crono_inv'!BM:BM,'PdI-crono_inv'!CF:CF,F1042,'PdI-crono_inv'!CE:CE,H1042,'PdI-crono_inv'!J:J,P1042,'PdI-crono_inv'!P:P,\"<>proprietario\")+S1042","v":0},null,null,"ENV",{"$f":"+VLOOKUP(F1042,TT_Tabelle_Riferimento!$D$127:$E$164,2,FALSE)","v":"Fognatura"},"",0]
[0,0,"Gestore",0,"IP",13,{"$f":"+VLOOKUP(F1043,TT_Tabelle_Riferimento!$D$127:$G$164,4,FALSE)","v":"Vasche di laminazione e vasche di prima pioggia"},1,{"$f":"+VLOOKUP(H1043,TT_Tabelle_Riferimento!$F$3:$G$6,2,FALSE)","v":"Servizio idrico integrato"},2029,{"$f":"+SUMIFS('PdI-crono_inv'!BL:BL,'PdI-crono_inv'!CF:CF,F1043,'PdI-crono_inv'!CE:CE,H1043,'PdI-crono_inv'!J:J,P1043,'PdI-crono_inv'!P:P,\"<>proprietario\")","v":0},null,{"$f":"+SUMIFS('PdI-crono_inv'!BM:BM,'PdI-crono_inv'!CF:CF,F1043,'PdI-crono_inv'!CE:CE,H1043,'PdI-crono_inv'!J:J,P1043,'PdI-crono_inv'!P:P,\"<>proprietario\")+S1043","v":0},null,null,"ENV",{"$f":"+VLOOKUP(F1043,TT_Tabelle_Riferimento!$D$127:$E$164,2,FALSE)","v":"Fognatura"},"",0]
[0,0,"Gestore",0,"IP",14,{"$f":"+VLOOKUP(F1044,TT_Tabelle_Riferimento!$D$127:$G$164,4,FALSE)","v":"Impianti di sollevamento e pompaggio di fognatura"},1,{"$f":"+VLOOKUP(H1044,TT_Tabelle_Riferimento!$F$3:$G$6,2,FALSE)","v":"Servizio idrico integrato"},2029,{"$f":"+SUMIFS('PdI-crono_inv'!BL:BL,'PdI-crono_inv'!CF:CF,F1044,'PdI-crono_inv'!CE:CE,H1044,'PdI-crono_inv'!J:J,P1044,'PdI-crono_inv'!P:P,\"<>proprietario\")","v":0},null,{"$f":"+SUMIFS('PdI-crono_inv'!BM:BM,'PdI-crono_inv'!CF:CF,F1044,'PdI-crono_inv'!CE:CE,H1044,'PdI-crono_inv'!J:J,P1044,'PdI-crono_inv'!P:P,\"<>proprietario\")+S1044","v":0},null,null,"ENV",{"$f":"+VLOOKUP(F1044,TT_Tabelle_Riferimento!$D$127:$E$164,2,FALSE)","v":"Fognatura"},"",0]
[0,0,"Gestore",0,"IP",15,{"$f":"+VLOOKUP(F1045,TT_Tabelle_Riferimento!$D$127:$G$164,4,FALSE)","v":"Gruppi di misura - altre attrezzature di fognatura"},1,{"$f":"+VLOOKUP(H1045,TT_Tabelle_Riferimento!$F$3:$G$6,2,FALSE)","v":"Servizio idrico integrato"},2029,{"$f":"+SUMIFS('PdI-crono_inv'!BL:BL,'PdI-crono_inv'!CF:CF,F1045,'PdI-crono_inv'!CE:CE,H1045,'PdI-crono_inv'!J:J,P1045,'PdI-crono_inv'!P:P,\"<>proprietario\")","v":0},null,{"$f":"+SUMIFS('PdI-crono_inv'!BM:BM,'PdI-crono_inv'!CF:CF,F1045,'PdI-crono_inv'!CE:CE,H1045,'PdI-crono_inv'!J:J,P1045,'PdI-crono_inv'!P:P,\"<>proprietario\")+S1045","v":0},null,null,"ENV",{"$f":"+VLOOKUP(F1045,TT_Tabelle_Riferimento!$D$127:$E$164,2,FALSE)","v":"Fognatura"},"",0]
[0,0,"Gestore",0,"IP",16,{"$f":"+VLOOKUP(F1046,TT_Tabelle_Riferimento!$D$127:$G$164,4,FALSE)","v":"Sistemi informativi di fognatura"},1,{"$f":"+VLOOKUP(H1046,TT_Tabelle_Riferimento!$F$3:$G$6,2,FALSE)","v":"Servizio idrico integrato"},2029,{"$f":"+SUMIFS('PdI-crono_inv'!BL:BL,'PdI-crono_inv'!CF:CF,F1046,'PdI-crono_inv'!CE:CE,H1046,'PdI-crono_inv'!J:J,P1046,'PdI-crono_inv'!P:P,\"<>proprietario\")","v":0},null,{"$f":"+SUMIFS('PdI-crono_inv'!BM:BM,'PdI-crono_inv'!CF:CF,F1046,'PdI-crono_inv'!CE:CE,H1046,'PdI-crono_inv'!J:J,P1046,'PdI-crono_inv'!P:P,\"<>proprietario\")+S1046","v":0},null,null,"ENV",{"$f":"+VLOOKUP(F1046,TT_Tabelle_Riferimento!$D$127:$E$164,2,FALSE)","v":"Fognatura"},"",0]
[0,0,"Gestore",0,"IP",18,{"$f":"+VLOOKUP(F1047,TT_Tabelle_Riferimento!$D$127:$G$164,4,FALSE)","v":"Telecontrollo e teletrasmissione di fognatura"},1,{"$f":"+VLOOKUP(H1047,TT_Tabelle_Riferimento!$F$3:$G$6,2,FALSE)","v":"Servizio idrico integrato"},2029,{"$f":"+SUMIFS('PdI-crono_inv'!BL:BL,'PdI-crono_inv'!CF:CF,F1047,'PdI-crono_inv'!CE:CE,H1047,'PdI-crono_inv'!J:J,P1047,'PdI-crono_inv'!P:P,\"<>proprietario\")","v":0},null,{"$f":"+SUMIFS('PdI-crono_inv'!BM:BM,'PdI-crono_inv'!CF:CF,F1047,'PdI-crono_inv'!CE:CE,H1047,'PdI-crono_inv'!J:J,P1047,'PdI-crono_inv'!P:P,\"<>proprietario\")+S1047","v":0},null,null,"ENV",{"$f":"+VLOOKUP(F1047,TT_Tabelle_Riferimento!$D$127:$E$164,2,FALSE)","v":"Fognatura"},"",0]
[0,0,"Gestore",0,"IP",19,{"$f":"+VLOOKUP(F1048,TT_Tabelle_Riferimento!$D$127:$G$164,4,FALSE)","v":"Impianti di sollevamento e pompaggio di depurazione"},1,{"$f":"+VLOOKUP(H1048,TT_Tabelle_Riferimento!$F$3:$G$6,2,FALSE)","v":"Servizio idrico integrato"},2029,{"$f":"+SUMIFS('PdI-crono_inv'!BL:BL,'PdI-crono_inv'!CF:CF,F1048,'PdI-crono_inv'!CE:CE,H1048,'PdI-crono_inv'!J:J,P1048,'PdI-crono_inv'!P:P,\"<>proprietario\")","v":0},null,{"$f":"+SUMIFS('PdI-crono_inv'!BM:BM,'PdI-crono_inv'!CF:CF,F1048,'PdI-crono_inv'!CE:CE,H1048,'PdI-crono_inv'!J:J,P1048,'PdI-crono_inv'!P:P,\"<>proprietario\")+S1048","v":0},null,null,"ENV",{"$f":"+VLOOKUP(F1048,TT_Tabelle_Riferimento!$D$127:$E$164,2,FALSE)","v":"Depurazione"},"",0]
[0,0,"Gestore",0,"IP",20,{"$f":"+VLOOKUP(F1049,TT_Tabelle_Riferimento!$D$127:$G$164,4,FALSE)","v":"Tecniche naturali di depurazione (tra cui fitodepurazione e lagunaggio)"},1,{"$f":"+VLOOKUP(H1049,TT_Tabelle_Riferimento!$F$3:$G$6,2,FALSE)","v":"Servizio idrico integrato"},2029,{"$f":"+SUMIFS('PdI-crono_inv'!BL:BL,'PdI-crono_inv'!CF:CF,F1049,'PdI-crono_inv'!CE:CE,H1049,'PdI-crono_inv'!J:J,P1049,'PdI-crono_inv'!P:P,\"<>proprietario\")","v":0},null,{"$f":"+SUMIFS('PdI-crono_inv'!BM:BM,'PdI-crono_inv'!CF:CF,F1049,'PdI-crono_inv'!CE:CE,H1049,'PdI-crono_inv'!J:J,P1049,'PdI-crono_inv'!P:P,\"<>proprietario\")+S1049","v":0},null,null,"ENV",{"$f":"+VLOOKUP(F1049,TT_Tabelle_Riferimento!$D$127:$E$164,2,FALSE)","v":"Depurazione"},"",0]
[0,0,"Gestore",0,"IP",21,{"$f":"+VLOOKUP(F1050,TT_Tabelle_Riferimento!$D$127:$G$164,4,FALSE)","v":"Impianti di depurazione – trattamenti sino al preliminare, integrativo, primario - fosse settiche e fosse Imhoff"},1,{"$f":"+VLOOKUP(H1050,TT_Tabelle_Riferimento!$F$3:$G$6,2,FALSE)","v":"Servizio idrico integrato"},2029,{"$f":"+SUMIFS('PdI-crono_inv'!BL:BL,'PdI-crono_inv'!CF:CF,F1050,'PdI-crono_inv'!CE:CE,H1050,'PdI-crono_inv'!J:J,P1050,'PdI-crono_inv'!P:P,\"<>proprietario\")","v":0},null,{"$f":"+SUMIFS('PdI-crono_inv'!BM:BM,'PdI-crono_inv'!CF:CF,F1050,'PdI-crono_inv'!CE:CE,H1050,'PdI-crono_inv'!J:J,P1050,'PdI-crono_inv'!P:P,\"<>proprietario\")+S1050","v":0},null,null,"ENV",{"$f":"+VLOOKUP(F1050,TT_Tabelle_Riferimento!$D$127:$E$164,2,FALSE)","v":"Depurazione"},"",0]
[0,0,"Gestore",0,"IP",22,{"$f":"+VLOOKUP(F1051,TT_Tabelle_Riferimento!$D$127:$G$164,4,FALSE)","v":"Impianti di depurazione – trattamenti sino al secondario"},1,{"$f":"+VLOOKUP(H1051,TT_Tabelle_Riferimento!$F$3:$G$6,2,FALSE)","v":"Servizio idrico integrato"},2029,{"$f":"+SUMIFS('PdI-crono_inv'!BL:BL,'PdI-crono_inv'!CF:CF,F1051,'PdI-crono_inv'!CE:CE,H1051,'PdI-crono_inv'!J:J,P1051,'PdI-crono_inv'!P:P,\"<>proprietario\")","v":0},null,{"$f":"+SUMIFS('PdI-crono_inv'!BM:BM,'PdI-crono_inv'!CF:CF,F1051,'PdI-crono_inv'!CE:CE,H1051,'PdI-crono_inv'!J:J,P1051,'PdI-crono_inv'!P:P,\"<>proprietario\")+S1051","v":0},null,null,"ENV",{"$f":"+VLOOKUP(F1051,TT_Tabelle_Riferimento!$D$127:$E$164,2,FALSE)","v":"Depurazione"},"",0]
[0,0,"Gestore",0,"IP",23,{"$f":"+VLOOKUP(F1052,TT_Tabelle_Riferimento!$D$127:$G$164,4,FALSE)","v":"Impianti di depurazione – trattamenti sino al terziario e terziario avanzato"},1,{"$f":"+VLOOKUP(H1052,TT_Tabelle_Riferimento!$F$3:$G$6,2,FALSE)","v":"Servizio idrico integrato"},2029,{"$f":"+SUMIFS('PdI-crono_inv'!BL:BL,'PdI-crono_inv'!CF:CF,F1052,'PdI-crono_inv'!CE:CE,H1052,'PdI-crono_inv'!J:J,P1052,'PdI-crono_inv'!P:P,\"<>proprietario\")","v":0},null,{"$f":"+SUMIFS('PdI-crono_inv'!BM:BM,'PdI-crono_inv'!CF:CF,F1052,'PdI-crono_inv'!CE:CE,H1052,'PdI-crono_inv'!J:J,P1052,'PdI-crono_inv'!P:P,\"<>proprietario\")+S1052","v":0},null,null,"ENV",{"$f":"+VLOOKUP(F1052,TT_Tabelle_Riferimento!$D$127:$E$164,2,FALSE)","v":"Depurazione"},"",0]
[0,0,"Gestore",0,"IP",24,{"$f":"+VLOOKUP(F1053,TT_Tabelle_Riferimento!$D$127:$G$164,4,FALSE)","v":"Impianti di essiccamento fanghi e di valorizzazione dei fanghi (tra cui mono-incenerimento, pirolisi, gassificazione)"},1,{"$f":"+VLOOKUP(H1053,TT_Tabelle_Riferimento!$F$3:$G$6,2,FALSE)","v":"Servizio idrico integrato"},2029,{"$f":"+SUMIFS('PdI-crono_inv'!BL:BL,'PdI-crono_inv'!CF:CF,F1053,'PdI-crono_inv'!CE:CE,H1053,'PdI-crono_inv'!J:J,P1053,'PdI-crono_inv'!P:P,\"<>proprietario\")","v":0},null,{"$f":"+SUMIFS('PdI-crono_inv'!BM:BM,'PdI-crono_inv'!CF:CF,F1053,'PdI-crono_inv'!CE:CE,H1053,'PdI-crono_inv'!J:J,P1053,'PdI-crono_inv'!P:P,\"<>proprietario\")+S1053","v":0},null,null,"ENV",{"$f":"+VLOOKUP(F1053,TT_Tabelle_Riferimento!$D$127:$E$164,2,FALSE)","v":"Depurazione"},"",0]
[0,0,"Gestore",0,"IP",25,{"$f":"+VLOOKUP(F1054,TT_Tabelle_Riferimento!$D$127:$G$164,4,FALSE)","v":"Gruppi di misura - altre attrezzature di depurazione"},1,{"$f":"+VLOOKUP(H1054,TT_Tabelle_Riferimento!$F$3:$G$6,2,FALSE)","v":"Servizio idrico integrato"},2029,{"$f":"+SUMIFS('PdI-crono_inv'!BL:BL,'PdI-crono_inv'!CF:CF,F1054,'PdI-crono_inv'!CE:CE,H1054,'PdI-crono_inv'!J:J,P1054,'PdI-crono_inv'!P:P,\"<>proprietario\")","v":0},null,{"$f":"+SUMIFS('PdI-crono_inv'!BM:BM,'PdI-crono_inv'!CF:CF,F1054,'PdI-crono_inv'!CE:CE,H1054,'PdI-crono_inv'!J:J,P1054,'PdI-crono_inv'!P:P,\"<>proprietario\")+S1054","v":0},null,null,"ENV",{"$f":"+VLOOKUP(F1054,TT_Tabelle_Riferimento!$D$127:$E$164,2,FALSE)","v":"Depurazione"},"",0]
[0,0,"Gestore",0,"IP",26,{"$f":"+VLOOKUP(F1055,TT_Tabelle_Riferimento!$D$127:$G$164,4,FALSE)","v":"Sistemi informativi di depurazione"},1,{"$f":"+VLOOKUP(H1055,TT_Tabelle_Riferimento!$F$3:$G$6,2,FALSE)","v":"Servizio idrico integrato"},2029,{"$f":"+SUMIFS('PdI-crono_inv'!BL:BL,'PdI-crono_inv'!CF:CF,F1055,'PdI-crono_inv'!CE:CE,H1055,'PdI-crono_inv'!J:J,P1055,'PdI-crono_inv'!P:P,\"<>proprietario\")","v":0},null,{"$f":"+SUMIFS('PdI-crono_inv'!BM:BM,'PdI-crono_inv'!CF:CF,F1055,'PdI-crono_inv'!CE:CE,H1055,'PdI-crono_inv'!J:J,P1055,'PdI-crono_inv'!P:P,\"<>proprietario\")+S1055","v":0},null,null,"ENV",{"$f":"+VLOOKUP(F1055,TT_Tabelle_Riferimento!$D$127:$E$164,2,FALSE)","v":"Depurazione"},"",0]
[0,0,"Gestore",0,"IP",27,{"$f":"+VLOOKUP(F1056,TT_Tabelle_Riferimento!$D$127:$G$164,4,FALSE)","v":"Telecontrollo e teletrasmissione di depurazione"},1,{"$f":"+VLOOKUP(H1056,TT_Tabelle_Riferimento!$F$3:$G$6,2,FALSE)","v":"Servizio idrico integrato"},2029,{"$f":"+SUMIFS('PdI-crono_inv'!BL:BL,'PdI-crono_inv'!CF:CF,F1056,'PdI-crono_inv'!CE:CE,H1056,'PdI-crono_inv'!J:J,P1056,'PdI-crono_inv'!P:P,\"<>proprietario\")","v":0},null,{"$f":"+SUMIFS('PdI-crono_inv'!BM:BM,'PdI-crono_inv'!CF:CF,F1056,'PdI-crono_inv'!CE:CE,H1056,'PdI-crono_inv'!J:J,P1056,'PdI-crono_inv'!P:P,\"<>proprietario\")+S1056","v":0},null,null,"ENV",{"$f":"+VLOOKUP(F1056,TT_Tabelle_Riferimento!$D$127:$E$164,2,FALSE)","v":"Depurazione"},"",0]
[0,0,"Gestore",0,"IP",28,{"$f":"+VLOOKUP(F1057,TT_Tabelle_Riferimento!$D$127:$G$164,4,FALSE)","v":"Altri impianti"},1,{"$f":"+VLOOKUP(H1057,TT_Tabelle_Riferimento!$F$3:$G$6,2,FALSE)","v":"Servizio idrico integrato"},2029,{"$f":"+SUMIFS('PdI-crono_inv'!BL:BL,'PdI-crono_inv'!CF:CF,F1057,'PdI-crono_inv'!CE:CE,H1057,'PdI-crono_inv'!J:J,P1057,'PdI-crono_inv'!P:P,\"<>proprietario\")","v":0},null,{"$f":"+SUMIFS('PdI-crono_inv'!BM:BM,'PdI-crono_inv'!CF:CF,F1057,'PdI-crono_inv'!CE:CE,H1057,'PdI-crono_inv'!J:J,P1057,'PdI-crono_inv'!P:P,\"<>proprietario\")+S1057","v":0},null,null,"ENV",{"$f":"+VLOOKUP(F1057,TT_Tabelle_Riferimento!$D$127:$E$164,2,FALSE)","v":"Comune"},"",0]
[{"$f":"+idato","v":0},{"$f":"+idgestore","v":0},"Gestore",0,"IP",29,{"$f":"+VLOOKUP(F1058,TT_Tabelle_Riferimento!$D$127:$G$164,4,FALSE)","v":"Laboratori e attrezzature"},1,{"$f":"+VLOOKUP(H1058,TT_Tabelle_Riferimento!$F$3:$G$6,2,FALSE)","v":"Servizio idrico integrato"},2029,{"$f":"+SUMIFS('PdI-crono_inv'!BL:BL,'PdI-crono_inv'!CF:CF,F1058,'PdI-crono_inv'!CE:CE,H1058,'PdI-crono_inv'!J:J,P1058,'PdI-crono_inv'!P:P,\"<>proprietario\")","v":0},null,{"$f":"+SUMIFS('PdI-crono_inv'!BM:BM,'PdI-crono_inv'!CF:CF,F1058,'PdI-crono_inv'!CE:CE,H1058,'PdI-crono_inv'!J:J,P1058,'PdI-crono_inv'!P:P,\"<>proprietario\")+S1058","v":0},null,null,"ENV",{"$f":"+VLOOKUP(F1058,TT_Tabelle_Riferimento!$D$127:$E$164,2,FALSE)","v":"Comune"},"",0]
[0,0,"Gestore",0,"IP",30,{"$f":"+VLOOKUP(F1059,TT_Tabelle_Riferimento!$D$127:$G$164,4,FALSE)","v":"Sistemi informativi"},1,{"$f":"+VLOOKUP(H1059,TT_Tabelle_Riferimento!$F$3:$G$6,2,FALSE)","v":"Servizio idrico integrato"},2029,{"$f":"+SUMIFS('PdI-crono_inv'!BL:BL,'PdI-crono_inv'!CF:CF,F1059,'PdI-crono_inv'!CE:CE,H1059,'PdI-crono_inv'!J:J,P1059,'PdI-crono_inv'!P:P,\"<>proprietario\")","v":0},null,{"$f":"+SUMIFS('PdI-crono_inv'!BM:BM,'PdI-crono_inv'!CF:CF,F1059,'PdI-crono_inv'!CE:CE,H1059,'PdI-crono_inv'!J:J,P1059,'PdI-crono_inv'!P:P,\"<>proprietario\")+S1059","v":0},null,null,"ENV",{"$f":"+VLOOKUP(F1059,TT_Tabelle_Riferimento!$D$127:$E$164,2,FALSE)","v":"Comune"},"",0]
[0,0,"Gestore",0,"IP",31,{"$f":"+VLOOKUP(F1060,TT_Tabelle_Riferimento!$D$127:$G$164,4,FALSE)","v":"Telecontrollo e teletrasmissione"},1,{"$f":"+VLOOKUP(H1060,TT_Tabelle_Riferimento!$F$3:$G$6,2,FALSE)","v":"Servizio idrico integrato"},2029,{"$f":"+SUMIFS('PdI-crono_inv'!BL:BL,'PdI-crono_inv'!CF:CF,F1060,'PdI-crono_inv'!CE:CE,H1060,'PdI-crono_inv'!J:J,P1060,'PdI-crono_inv'!P:P,\"<>proprietario\")","v":0},null,{"$f":"+SUMIFS('PdI-crono_inv'!BM:BM,'PdI-crono_inv'!CF:CF,F1060,'PdI-crono_inv'!CE:CE,H1060,'PdI-crono_inv'!J:J,P1060,'PdI-crono_inv'!P:P,\"<>proprietario\")+S1060","v":0},null,null,"ENV",{"$f":"+VLOOKUP(F1060,TT_Tabelle_Riferimento!$D$127:$E$164,2,FALSE)","v":"Comune"},"",0]
[0,0,"Gestore",0,"IP",32,{"$f":"+VLOOKUP(F1061,TT_Tabelle_Riferimento!$D$127:$G$164,4,FALSE)","v":"Autoveicoli - automezzi"},1,{"$f":"+VLOOKUP(H1061,TT_Tabelle_Riferimento!$F$3:$G$6,2,FALSE)","v":"Servizio idrico integrato"},2029,{"$f":"+SUMIFS('PdI-crono_inv'!BL:BL,'PdI-crono_inv'!CF:CF,F1061,'PdI-crono_inv'!CE:CE,H1061,'PdI-crono_inv'!J:J,P1061,'PdI-crono_inv'!P:P,\"<>proprietario\")","v":0},null,{"$f":"+SUMIFS('PdI-crono_inv'!BM:BM,'PdI-crono_inv'!CF:CF,F1061,'PdI-crono_inv'!CE:CE,H1061,'PdI-crono_inv'!J:J,P1061,'PdI-crono_inv'!P:P,\"<>proprietario\")+S1061","v":0},null,null,"ENV",{"$f":"+VLOOKUP(F1061,TT_Tabelle_Riferimento!$D$127:$E$164,2,FALSE)","v":"Comune"},"",0]
[0,0,"Gestore",0,"IP",1,{"$f":"+VLOOKUP(F1062,TT_Tabelle_Riferimento!$D$127:$G$164,4,FALSE)","v":"Terreni"},1,{"$f":"+VLOOKUP(H1062,TT_Tabelle_Riferimento!$F$3:$G$6,2,FALSE)","v":"Servizio idrico integrato"},2029,{"$f":"+SUMIFS('PdI-crono_inv'!BL:BL,'PdI-crono_inv'!CF:CF,F1062,'PdI-crono_inv'!CE:CE,H1062,'PdI-crono_inv'!J:J,P1062,'PdI-crono_inv'!P:P,\"<>proprietario\")","v":0},null,{"$f":"+SUMIFS('PdI-crono_inv'!BM:BM,'PdI-crono_inv'!CF:CF,F1062,'PdI-crono_inv'!CE:CE,H1062,'PdI-crono_inv'!J:J,P1062,'PdI-crono_inv'!P:P,\"<>proprietario\")+S1062","v":0},null,null,"ENV",{"$f":"+VLOOKUP(F1062,TT_Tabelle_Riferimento!$D$127:$E$164,2,FALSE)","v":"Comune"},"",0]
[0,0,"Gestore",0,"IP",33,{"$f":"+VLOOKUP(F1063,TT_Tabelle_Riferimento!$D$127:$G$164,4,FALSE)","v":"Fabbricati non industriali"},1,{"$f":"+VLOOKUP(H1063,TT_Tabelle_Riferimento!$F$3:$G$6,2,FALSE)","v":"Servizio idrico integrato"},2029,{"$f":"+SUMIFS('PdI-crono_inv'!BL:BL,'PdI-crono_inv'!CF:CF,F1063,'PdI-crono_inv'!CE:CE,H1063,'PdI-crono_inv'!J:J,P1063,'PdI-crono_inv'!P:P,\"<>proprietario\")","v":0},null,{"$f":"+SUMIFS('PdI-crono_inv'!BM:BM,'PdI-crono_inv'!CF:CF,F1063,'PdI-crono_inv'!CE:CE,H1063,'PdI-crono_inv'!J:J,P1063,'PdI-crono_inv'!P:P,\"<>proprietario\")+S1063","v":0},null,null,"ENV",{"$f":"+VLOOKUP(F1063,TT_Tabelle_Riferimento!$D$127:$E$164,2,FALSE)","v":"Comune"},"",0]
[0,0,"Gestore",0,"IP",34,{"$f":"+VLOOKUP(F1064,TT_Tabelle_Riferimento!$D$127:$G$164,4,FALSE)","v":"Fabbricati industriali"},1,{"$f":"+VLOOKUP(H1064,TT_Tabelle_Riferimento!$F$3:$G$6,2,FALSE)","v":"Servizio idrico integrato"},2029,{"$f":"+SUMIFS('PdI-crono_inv'!BL:BL,'PdI-crono_inv'!CF:CF,F1064,'PdI-crono_inv'!CE:CE,H1064,'PdI-crono_inv'!J:J,P1064,'PdI-crono_inv'!P:P,\"<>proprietario\")","v":0},null,{"$f":"+SUMIFS('PdI-crono_inv'!BM:BM,'PdI-crono_inv'!CF:CF,F1064,'PdI-crono_inv'!CE:CE,H1064,'PdI-crono_inv'!J:J,P1064,'PdI-crono_inv'!P:P,\"<>proprietario\")+S1064","v":0},null,null,"ENV",{"$f":"+VLOOKUP(F1064,TT_Tabelle_Riferimento!$D$127:$E$164,2,FALSE)","v":"Comune"},"",0]
[0,0,"Gestore",0,"IP",35,{"$f":"+VLOOKUP(F1065,TT_Tabelle_Riferimento!$D$127:$G$164,4,FALSE)","v":"Costruzioni leggere"},1,{"$f":"+VLOOKUP(H1065,TT_Tabelle_Riferimento!$F$3:$G$6,2,FALSE)","v":"Servizio idrico integrato"},2029,{"$f":"+SUMIFS('PdI-crono_inv'!BL:BL,'PdI-crono_inv'!CF:CF,F1065,'PdI-crono_inv'!CE:CE,H1065,'PdI-crono_inv'!J:J,P1065,'PdI-crono_inv'!P:P,\"<>proprietario\")","v":0},null,{"$f":"+SUMIFS('PdI-crono_inv'!BM:BM,'PdI-crono_inv'!CF:CF,F1065,'PdI-crono_inv'!CE:CE,H1065,'PdI-crono_inv'!J:J,P1065,'PdI-crono_inv'!P:P,\"<>proprietario\")+S1065","v":0},null,null,"ENV",{"$f":"+VLOOKUP(F1065,TT_Tabelle_Riferimento!$D$127:$E$164,2,FALSE)","v":"Comune"},"",0]
[0,0,"Gestore",0,"IP",36,{"$f":"+VLOOKUP(F1066,TT_Tabelle_Riferimento!$D$127:$G$164,4,FALSE)","v":"Studi, ricerche, brevetti, diritti di utilizzazione"},1,{"$f":"+VLOOKUP(H1066,TT_Tabelle_Riferimento!$F$3:$G$6,2,FALSE)","v":"Servizio idrico integrato"},2029,{"$f":"+SUMIFS('PdI-crono_inv'!BL:BL,'PdI-crono_inv'!CF:CF,F1066,'PdI-crono_inv'!CE:CE,H1066,'PdI-crono_inv'!J:J,P1066,'PdI-crono_inv'!P:P,\"<>proprietario\")","v":0},null,{"$f":"+SUMIFS('PdI-crono_inv'!BM:BM,'PdI-crono_inv'!CF:CF,F1066,'PdI-crono_inv'!CE:CE,H1066,'PdI-crono_inv'!J:J,P1066,'PdI-crono_inv'!P:P,\"<>proprietario\")+S1066","v":0},null,null,"ENV",{"$f":"+VLOOKUP(F1066,TT_Tabelle_Riferimento!$D$127:$E$164,2,FALSE)","v":"Comune"},"",0]
[0,0,"Gestore",0,"IP",37,{"$f":"+VLOOKUP(F1067,TT_Tabelle_Riferimento!$D$127:$G$164,4,FALSE)","v":"Altre immobilizzazioni materiali e immateriali"},1,{"$f":"+VLOOKUP(H1067,TT_Tabelle_Riferimento!$F$3:$G$6,2,FALSE)","v":"Servizio idrico integrato"},2029,{"$f":"+SUMIFS('PdI-crono_inv'!BL:BL,'PdI-crono_inv'!CF:CF,F1067,'PdI-crono_inv'!CE:CE,H1067,'PdI-crono_inv'!J:J,P1067,'PdI-crono_inv'!P:P,\"<>proprietario\")","v":0},null,{"$f":"+SUMIFS('PdI-crono_inv'!BM:BM,'PdI-crono_inv'!CF:CF,F1067,'PdI-crono_inv'!CE:CE,H1067,'PdI-crono_inv'!J:J,P1067,'PdI-crono_inv'!P:P,\"<>proprietario\")+S1067","v":0},null,null,"ENV",{"$f":"+VLOOKUP(F1067,TT_Tabelle_Riferimento!$D$127:$E$164,2,FALSE)","v":"Comune"},{"$f":"+IF(SUM(K1067:N1067)=0,\"\",\"PdI_consolidamento\")","v":""},0]
[0,0,"Gestore",0,"IP",38,{"$f":"+VLOOKUP(F1068,TT_Tabelle_Riferimento!$D$127:$G$164,4,FALSE)","v":"Grandi dighe (sbarramenti che superano i quindici metri di altezza o che determinano un invaso superiore a 1 milione di metri cubi)"},1,{"$f":"+VLOOKUP(H1068,TT_Tabelle_Riferimento!$F$3:$G$6,2,FALSE)","v":"Servizio idrico integrato"},2029,{"$f":"+SUMIFS('PdI-crono_inv'!BL:BL,'PdI-crono_inv'!CF:CF,F1068,'PdI-crono_inv'!CE:CE,H1068,'PdI-crono_inv'!J:J,P1068,'PdI-crono_inv'!P:P,\"<>proprietario\")","v":0},null,{"$f":"+SUMIFS('PdI-crono_inv'!BM:BM,'PdI-crono_inv'!CF:CF,F1068,'PdI-crono_inv'!CE:CE,H1068,'PdI-crono_inv'!J:J,P1068,'PdI-crono_inv'!P:P,\"<>proprietario\")+S1068","v":0},null,null,"ENV",{"$f":"+VLOOKUP(F1068,TT_Tabelle_Riferimento!$D$127:$E$164,2,FALSE)","v":"Acquedotto"},{"$f":"+IF(SUM(K1068:N1068)=0,\"\",\"PdI_consolidamento\")","v":""},0]
[0,0,"Gestore",0,"IP",39,{"$f":"+VLOOKUP(F1069,TT_Tabelle_Riferimento!$D$127:$G$164,4,FALSE)","v":"Piccole dighe (sbarramenti che non superano i quindici metri di altezza o che determinano un invaso non superiore a 1 milione di metri cubi)"},1,{"$f":"+VLOOKUP(H1069,TT_Tabelle_Riferimento!$F$3:$G$6,2,FALSE)","v":"Servizio idrico integrato"},2029,{"$f":"+SUMIFS('PdI-crono_inv'!BL:BL,'PdI-crono_inv'!CF:CF,F1069,'PdI-crono_inv'!CE:CE,H1069,'PdI-crono_inv'!J:J,P1069,'PdI-crono_inv'!P:P,\"<>proprietario\")","v":0},null,{"$f":"+SUMIFS('PdI-crono_inv'!BM:BM,'PdI-crono_inv'!CF:CF,F1069,'PdI-crono_inv'!CE:CE,H1069,'PdI-crono_inv'!J:J,P1069,'PdI-crono_inv'!P:P,\"<>proprietario\")+S1069","v":0},null,null,"ENV",{"$f":"+VLOOKUP(F1069,TT_Tabelle_Riferimento!$D$127:$E$164,2,FALSE)","v":"Acquedotto"},{"$f":"+IF(SUM(K1069:N1069)=0,\"\",\"PdI_consolidamento\")","v":""},0]
[{"$f":"+idato","v":0},{"$f":"+idgestore","v":0},"Gestore",0,"IP",2,{"$f":"+VLOOKUP(F1070,TT_Tabelle_Riferimento!$D$127:$G$164,4,FALSE)","v":"Condotte di acquedotto"},2,{"$f":"+VLOOKUP(H1070,TT_Tabelle_Riferimento!$F$3:$G$6,2,FALSE)","v":"Fognatura bianca e pulizia / manutenzione caditoie stradali"},2029,{"$f":"+SUMIFS('PdI-crono_inv'!BL:BL,'PdI-crono_inv'!CF:CF,F1070,'PdI-crono_inv'!CE:CE,H1070,'PdI-crono_inv'!J:J,P1070,'PdI-crono_inv'!P:P,\"<>proprietario\")","v":0},null,{"$f":"+SUMIFS('PdI-crono_inv'!BM:BM,'PdI-crono_inv'!CF:CF,F1070,'PdI-crono_inv'!CE:CE,H1070,'PdI-crono_inv'!J:J,P1070,'PdI-crono_inv'!P:P,\"<>proprietario\")+S1070","v":0},null,null,"ENV",{"$f":"+VLOOKUP(F1070,TT_Tabelle_Riferimento!$D$127:$E$164,2,FALSE)","v":"Acquedotto"},{"$f":"+IF(SUM(K1070:N1070)=0,\"\",\"PdI_consolidamento\")","v":""},0]
[0,0,"Gestore",0,"IP",3,{"$f":"+VLOOKUP(F1071,TT_Tabelle_Riferimento!$D$127:$G$164,4,FALSE)","v":"Opere idrauliche fisse di acquedotto"},2,{"$f":"+VLOOKUP(H1071,TT_Tabelle_Riferimento!$F$3:$G$6,2,FALSE)","v":"Fognatura bianca e pulizia / manutenzione caditoie stradali"},2029,{"$f":"+SUMIFS('PdI-crono_inv'!BL:BL,'PdI-crono_inv'!CF:CF,F1071,'PdI-crono_inv'!CE:CE,H1071,'PdI-crono_inv'!J:J,P1071,'PdI-crono_inv'!P:P,\"<>proprietario\")","v":0},null,{"$f":"+SUMIFS('PdI-crono_inv'!BM:BM,'PdI-crono_inv'!CF:CF,F1071,'PdI-crono_inv'!CE:CE,H1071,'PdI-crono_inv'!J:J,P1071,'PdI-crono_inv'!P:P,\"<>proprietario\")+S1071","v":0},null,null,"ENV",{"$f":"+VLOOKUP(F1071,TT_Tabelle_Riferimento!$D$127:$E$164,2,FALSE)","v":"Acquedotto"},"",0]
[0,0,"Gestore",0,"IP",4,{"$f":"+VLOOKUP(F1072,TT_Tabelle_Riferimento!$D$127:$G$164,4,FALSE)","v":"Serbatoi"},2,{"$f":"+VLOOKUP(H1072,TT_Tabelle_Riferimento!$F$3:$G$6,2,FALSE)","v":"Fognatura bianca e pulizia / manutenzione caditoie stradali"},2029,{"$f":"+SUMIFS('PdI-crono_inv'!BL:BL,'PdI-crono_inv'!CF:CF,F1072,'PdI-crono_inv'!CE:CE,H1072,'PdI-crono_inv'!J:J,P1072,'PdI-crono_inv'!P:P,\"<>proprietario\")","v":0},null,{"$f":"+SUMIFS('PdI-crono_inv'!BM:BM,'PdI-crono_inv'!CF:CF,F1072,'PdI-crono_inv'!CE:CE,H1072,'PdI-crono_inv'!J:J,P1072,'PdI-crono_inv'!P:P,\"<>proprietario\")+S1072","v":0},null,null,"ENV",{"$f":"+VLOOKUP(F1072,TT_Tabelle_Riferimento!$D$127:$E$164,2,FALSE)","v":"Acquedotto"},"",0]
[0,0,"Gestore",0,"IP",5,{"$f":"+VLOOKUP(F1073,TT_Tabelle_Riferimento!$D$127:$G$164,4,FALSE)","v":"Impianti di sollevamento e pompaggio di acquedotto"},2,{"$f":"+VLOOKUP(H1073,TT_Tabelle_Riferimento!$F$3:$G$6,2,FALSE)","v":"Fognatura bianca e pulizia / manutenzione caditoie stradali"},2029,{"$f":"+SUMIFS('PdI-crono_inv'!BL:BL,'PdI-crono_inv'!CF:CF,F1073,'PdI-crono_inv'!CE:CE,H1073,'PdI-crono_inv'!J:J,P1073,'PdI-crono_inv'!P:P,\"<>proprietario\")","v":0},null,{"$f":"+SUMIFS('PdI-crono_inv'!BM:BM,'PdI-crono_inv'!CF:CF,F1073,'PdI-crono_inv'!CE:CE,H1073,'PdI-crono_inv'!J:J,P1073,'PdI-crono_inv'!P:P,\"<>proprietario\")+S1073","v":0},null,null,"ENV",{"$f":"+VLOOKUP(F1073,TT_Tabelle_Riferimento!$D$127:$E$164,2,FALSE)","v":"Acquedotto"},"",0]
[0,0,"Gestore",0,"IP",6,{"$f":"+VLOOKUP(F1074,TT_Tabelle_Riferimento!$D$127:$G$164,4,FALSE)","v":"Impianti di potabilizzazione"},2,{"$f":"+VLOOKUP(H1074,TT_Tabelle_Riferimento!$F$3:$G$6,2,FALSE)","v":"Fognatura bianca e pulizia / manutenzione caditoie stradali"},2029,{"$f":"+SUMIFS('PdI-crono_inv'!BL:BL,'PdI-crono_inv'!CF:CF,F1074,'PdI-crono_inv'!CE:CE,H1074,'PdI-crono_inv'!J:J,P1074,'PdI-crono_inv'!P:P,\"<>proprietario\")","v":0},null,{"$f":"+SUMIFS('PdI-crono_inv'!BM:BM,'PdI-crono_inv'!CF:CF,F1074,'PdI-crono_inv'!CE:CE,H1074,'PdI-crono_inv'!J:J,P1074,'PdI-crono_inv'!P:P,\"<>proprietario\")+S1074","v":0},null,null,"ENV",{"$f":"+VLOOKUP(F1074,TT_Tabelle_Riferimento!$D$127:$E$164,2,FALSE)","v":"Acquedotto"},"",0]
[0,0,"Gestore",0,"IP",7,{"$f":"+VLOOKUP(F1075,TT_Tabelle_Riferimento!$D$127:$G$164,4,FALSE)","v":"Altri trattamenti di potabilizzazione (tra cui dispositivi di disinfezione, stacciatura, filtrazione, addolcimento)"},2,{"$f":"+VLOOKUP(H1075,TT_Tabelle_Riferimento!$F$3:$G$6,2,FALSE)","v":"Fognatura bianca e pulizia / manutenzione caditoie stradali"},2029,{"$f":"+SUMIFS('PdI-crono_inv'!BL:BL,'PdI-crono_inv'!CF:CF,F1075,'PdI-crono_inv'!CE:CE,H1075,'PdI-crono_inv'!J:J,P1075,'PdI-crono_inv'!P:P,\"<>proprietario\")","v":0},null,{"$f":"+SUMIFS('PdI-crono_inv'!BM:BM,'PdI-crono_inv'!CF:CF,F1075,'PdI-crono_inv'!CE:CE,H1075,'PdI-crono_inv'!J:J,P1075,'PdI-crono_inv'!P:P,\"<>proprietario\")+S1075","v":0},null,null,"ENV",{"$f":"+VLOOKUP(F1075,TT_Tabelle_Riferimento!$D$127:$E$164,2,FALSE)","v":"Acquedotto"},"",0]
[0,0,"Gestore",0,"IP",8,{"$f":"+VLOOKUP(F1076,TT_Tabelle_Riferimento!$D$127:$G$164,4,FALSE)","v":"Gruppi di misura - altre attrezzature di acquedotto"},2,{"$f":"+VLOOKUP(H1076,TT_Tabelle_Riferimento!$F$3:$G$6,2,FALSE)","v":"Fognatura bianca e pulizia / manutenzione caditoie stradali"},2029,{"$f":"+SUMIFS('PdI-crono_inv'!BL:BL,'PdI-crono_inv'!CF:CF,F1076,'PdI-crono_inv'!CE:CE,H1076,'PdI-crono_inv'!J:J,P1076,'PdI-crono_inv'!P:P,\"<>proprietario\")","v":0},null,{"$f":"+SUMIFS('PdI-crono_inv'!BM:BM,'PdI-crono_inv'!CF:CF,F1076,'PdI-crono_inv'!CE:CE,H1076,'PdI-crono_inv'!J:J,P1076,'PdI-crono_inv'!P:P,\"<>proprietario\")+S1076","v":0},null,null,"ENV",{"$f":"+VLOOKUP(F1076,TT_Tabelle_Riferimento!$D$127:$E$164,2,FALSE)","v":"Acquedotto"},"",0]
[0,0,"Gestore",0,"IP",9,{"$f":"+VLOOKUP(F1077,TT_Tabelle_Riferimento!$D$127:$G$164,4,FALSE)","v":"Sistemi informativi di acquedotto"},2,{"$f":"+VLOOKUP(H1077,TT_Tabelle_Riferimento!$F$3:$G$6,2,FALSE)","v":"Fognatura bianca e pulizia / manutenzione caditoie stradali"},2029,{"$f":"+SUMIFS('PdI-crono_inv'!BL:BL,'PdI-crono_inv'!CF:CF,F1077,'PdI-crono_inv'!CE:CE,H1077,'PdI-crono_inv'!J:J,P1077,'PdI-crono_inv'!P:P,\"<>proprietario\")","v":0},null,{"$f":"+SUMIFS('PdI-crono_inv'!BM:BM,'PdI-crono_inv'!CF:CF,F1077,'PdI-crono_inv'!CE:CE,H1077,'PdI-crono_inv'!J:J,P1077,'PdI-crono_inv'!P:P,\"<>proprietario\")+S1077","v":0},null,null,"ENV",{"$f":"+VLOOKUP(F1077,TT_Tabelle_Riferimento!$D$127:$E$164,2,FALSE)","v":"Acquedotto"},"",0]
[0,0,"Gestore",0,"IP",10,{"$f":"+VLOOKUP(F1078,TT_Tabelle_Riferimento!$D$127:$G$164,4,FALSE)","v":"Telecontrollo e teletrasmissione di acquedotto"},2,{"$f":"+VLOOKUP(H1078,TT_Tabelle_Riferimento!$F$3:$G$6,2,FALSE)","v":"Fognatura bianca e pulizia / manutenzione caditoie stradali"},2029,{"$f":"+SUMIFS('PdI-crono_inv'!BL:BL,'PdI-crono_inv'!CF:CF,F1078,'PdI-crono_inv'!CE:CE,H1078,'PdI-crono_inv'!J:J,P1078,'PdI-crono_inv'!P:P,\"<>proprietario\")","v":0},null,{"$f":"+SUMIFS('PdI-crono_inv'!BM:BM,'PdI-crono_inv'!CF:CF,F1078,'PdI-crono_inv'!CE:CE,H1078,'PdI-crono_inv'!J:J,P1078,'PdI-crono_inv'!P:P,\"<>proprietario\")+S1078","v":0},null,null,"ENV",{"$f":"+VLOOKUP(F1078,TT_Tabelle_Riferimento!$D$127:$E$164,2,FALSE)","v":"Acquedotto"},"",0]
[0,0,"Gestore",0,"IP",11,{"$f":"+VLOOKUP(F1079,TT_Tabelle_Riferimento!$D$127:$G$164,4,FALSE)","v":"Condotte fognarie"},2,{"$f":"+VLOOKUP(H1079,TT_Tabelle_Riferimento!$F$3:$G$6,2,FALSE)","v":"Fognatura bianca e pulizia / manutenzione caditoie stradali"},2029,{"$f":"+SUMIFS('PdI-crono_inv'!BL:BL,'PdI-crono_inv'!CF:CF,F1079,'PdI-crono_inv'!CE:CE,H1079,'PdI-crono_inv'!J:J,P1079,'PdI-crono_inv'!P:P,\"<>proprietario\")","v":0},null,{"$f":"+SUMIFS('PdI-crono_inv'!BM:BM,'PdI-crono_inv'!CF:CF,F1079,'PdI-crono_inv'!CE:CE,H1079,'PdI-crono_inv'!J:J,P1079,'PdI-crono_inv'!P:P,\"<>proprietario\")+S1079","v":0},null,null,"ENV",{"$f":"+VLOOKUP(F1079,TT_Tabelle_Riferimento!$D$127:$E$164,2,FALSE)","v":"Fognatura"},"",0]
[0,0,"Gestore",0,"IP",12,{"$f":"+VLOOKUP(F1080,TT_Tabelle_Riferimento!$D$127:$G$164,4,FALSE)","v":"Sifoni e scaricatori di piena e altre opere idrauliche fisse di fognatura"},2,{"$f":"+VLOOKUP(H1080,TT_Tabelle_Riferimento!$F$3:$G$6,2,FALSE)","v":"Fognatura bianca e pulizia / manutenzione caditoie stradali"},2029,{"$f":"+SUMIFS('PdI-crono_inv'!BL:BL,'PdI-crono_inv'!CF:CF,F1080,'PdI-crono_inv'!CE:CE,H1080,'PdI-crono_inv'!J:J,P1080,'PdI-crono_inv'!P:P,\"<>proprietario\")","v":0},null,{"$f":"+SUMIFS('PdI-crono_inv'!BM:BM,'PdI-crono_inv'!CF:CF,F1080,'PdI-crono_inv'!CE:CE,H1080,'PdI-crono_inv'!J:J,P1080,'PdI-crono_inv'!P:P,\"<>proprietario\")+S1080","v":0},null,null,"ENV",{"$f":"+VLOOKUP(F1080,TT_Tabelle_Riferimento!$D$127:$E$164,2,FALSE)","v":"Fognatura"},"",0]
[0,0,"Gestore",0,"IP",13,{"$f":"+VLOOKUP(F1081,TT_Tabelle_Riferimento!$D$127:$G$164,4,FALSE)","v":"Vasche di laminazione e vasche di prima pioggia"},2,{"$f":"+VLOOKUP(H1081,TT_Tabelle_Riferimento!$F$3:$G$6,2,FALSE)","v":"Fognatura bianca e pulizia / manutenzione caditoie stradali"},2029,{"$f":"+SUMIFS('PdI-crono_inv'!BL:BL,'PdI-crono_inv'!CF:CF,F1081,'PdI-crono_inv'!CE:CE,H1081,'PdI-crono_inv'!J:J,P1081,'PdI-crono_inv'!P:P,\"<>proprietario\")","v":0},null,{"$f":"+SUMIFS('PdI-crono_inv'!BM:BM,'PdI-crono_inv'!CF:CF,F1081,'PdI-crono_inv'!CE:CE,H1081,'PdI-crono_inv'!J:J,P1081,'PdI-crono_inv'!P:P,\"<>proprietario\")+S1081","v":0},null,null,"ENV",{"$f":"+VLOOKUP(F1081,TT_Tabelle_Riferimento!$D$127:$E$164,2,FALSE)","v":"Fognatura"},"",0]
[0,0,"Gestore",0,"IP",14,{"$f":"+VLOOKUP(F1082,TT_Tabelle_Riferimento!$D$127:$G$164,4,FALSE)","v":"Impianti di sollevamento e pompaggio di fognatura"},2,{"$f":"+VLOOKUP(H1082,TT_Tabelle_Riferimento!$F$3:$G$6,2,FALSE)","v":"Fognatura bianca e pulizia / manutenzione caditoie stradali"},2029,{"$f":"+SUMIFS('PdI-crono_inv'!BL:BL,'PdI-crono_inv'!CF:CF,F1082,'PdI-crono_inv'!CE:CE,H1082,'PdI-crono_inv'!J:J,P1082,'PdI-crono_inv'!P:P,\"<>proprietario\")","v":0},null,{"$f":"+SUMIFS('PdI-crono_inv'!BM:BM,'PdI-crono_inv'!CF:CF,F1082,'PdI-crono_inv'!CE:CE,H1082,'PdI-crono_inv'!J:J,P1082,'PdI-crono_inv'!P:P,\"<>proprietario\")+S1082","v":0},null,null,"ENV",{"$f":"+VLOOKUP(F1082,TT_Tabelle_Riferimento!$D$127:$E$164,2,FALSE)","v":"Fognatura"},"",0]
[0,0,"Gestore",0,"IP",15,{"$f":"+VLOOKUP(F1083,TT_Tabelle_Riferimento!$D$127:$G$164,4,FALSE)","v":"Gruppi di misura - altre attrezzature di fognatura"},2,{"$f":"+VLOOKUP(H1083,TT_Tabelle_Riferimento!$F$3:$G$6,2,FALSE)","v":"Fognatura bianca e pulizia / manutenzione caditoie stradali"},2029,{"$f":"+SUMIFS('PdI-crono_inv'!BL:BL,'PdI-crono_inv'!CF:CF,F1083,'PdI-crono_inv'!CE:CE,H1083,'PdI-crono_inv'!J:J,P1083,'PdI-crono_inv'!P:P,\"<>proprietario\")","v":0},null,{"$f":"+SUMIFS('PdI-crono_inv'!BM:BM,'PdI-crono_inv'!CF:CF,F1083,'PdI-crono_inv'!CE:CE,H1083,'PdI-crono_inv'!J:J,P1083,'PdI-crono_inv'!P:P,\"<>proprietario\")+S1083","v":0},null,null,"ENV",{"$f":"+VLOOKUP(F1083,TT_Tabelle_Riferimento!$D$127:$E$164,2,FALSE)","v":"Fognatura"},"",0]
[0,0,"Gestore",0,"IP",16,{"$f":"+VLOOKUP(F1084,TT_Tabelle_Riferimento!$D$127:$G$164,4,FALSE)","v":"Sistemi informativi di fognatura"},2,{"$f":"+VLOOKUP(H1084,TT_Tabelle_Riferimento!$F$3:$G$6,2,FALSE)","v":"Fognatura bianca e pulizia / manutenzione caditoie stradali"},2029,{"$f":"+SUMIFS('PdI-crono_inv'!BL:BL,'PdI-crono_inv'!CF:CF,F1084,'PdI-crono_inv'!CE:CE,H1084,'PdI-crono_inv'!J:J,P1084,'PdI-crono_inv'!P:P,\"<>proprietario\")","v":0},null,{"$f":"+SUMIFS('PdI-crono_inv'!BM:BM,'PdI-crono_inv'!CF:CF,F1084,'PdI-crono_inv'!CE:CE,H1084,'PdI-crono_inv'!J:J,P1084,'PdI-crono_inv'!P:P,\"<>proprietario\")+S1084","v":0},null,null,"ENV",{"$f":"+VLOOKUP(F1084,TT_Tabelle_Riferimento!$D$127:$E$164,2,FALSE)","v":"Fognatura"},"",0]
[0,0,"Gestore",0,"IP",18,{"$f":"+VLOOKUP(F1085,TT_Tabelle_Riferimento!$D$127:$G$164,4,FALSE)","v":"Telecontrollo e teletrasmissione di fognatura"},2,{"$f":"+VLOOKUP(H1085,TT_Tabelle_Riferimento!$F$3:$G$6,2,FALSE)","v":"Fognatura bianca e pulizia / manutenzione caditoie stradali"},2029,{"$f":"+SUMIFS('PdI-crono_inv'!BL:BL,'PdI-crono_inv'!CF:CF,F1085,'PdI-crono_inv'!CE:CE,H1085,'PdI-crono_inv'!J:J,P1085,'PdI-crono_inv'!P:P,\"<>proprietario\")","v":0},null,{"$f":"+SUMIFS('PdI-crono_inv'!BM:BM,'PdI-crono_inv'!CF:CF,F1085,'PdI-crono_inv'!CE:CE,H1085,'PdI-crono_inv'!J:J,P1085,'PdI-crono_inv'!P:P,\"<>proprietario\")+S1085","v":0},null,null,"ENV",{"$f":"+VLOOKUP(F1085,TT_Tabelle_Riferimento!$D$127:$E$164,2,FALSE)","v":"Fognatura"},"",0]
[0,0,"Gestore",0,"IP",19,{"$f":"+VLOOKUP(F1086,TT_Tabelle_Riferimento!$D$127:$G$164,4,FALSE)","v":"Impianti di sollevamento e pompaggio di depurazione"},2,{"$f":"+VLOOKUP(H1086,TT_Tabelle_Riferimento!$F$3:$G$6,2,FALSE)","v":"Fognatura bianca e pulizia / manutenzione caditoie stradali"},2029,{"$f":"+SUMIFS('PdI-crono_inv'!BL:BL,'PdI-crono_inv'!CF:CF,F1086,'PdI-crono_inv'!CE:CE,H1086,'PdI-crono_inv'!J:J,P1086,'PdI-crono_inv'!P:P,\"<>proprietario\")","v":0},null,{"$f":"+SUMIFS('PdI-crono_inv'!BM:BM,'PdI-crono_inv'!CF:CF,F1086,'PdI-crono_inv'!CE:CE,H1086,'PdI-crono_inv'!J:J,P1086,'PdI-crono_inv'!P:P,\"<>proprietario\")+S1086","v":0},null,null,"ENV",{"$f":"+VLOOKUP(F1086,TT_Tabelle_Riferimento!$D$127:$E$164,2,FALSE)","v":"Depurazione"},"",0]
[0,0,"Gestore",0,"IP",20,{"$f":"+VLOOKUP(F1087,TT_Tabelle_Riferimento!$D$127:$G$164,4,FALSE)","v":"Tecniche naturali di depurazione (tra cui fitodepurazione e lagunaggio)"},2,{"$f":"+VLOOKUP(H1087,TT_Tabelle_Riferimento!$F$3:$G$6,2,FALSE)","v":"Fognatura bianca e pulizia / manutenzione caditoie stradali"},2029,{"$f":"+SUMIFS('PdI-crono_inv'!BL:BL,'PdI-crono_inv'!CF:CF,F1087,'PdI-crono_inv'!CE:CE,H1087,'PdI-crono_inv'!J:J,P1087,'PdI-crono_inv'!P:P,\"<>proprietario\")","v":0},null,{"$f":"+SUMIFS('PdI-crono_inv'!BM:BM,'PdI-crono_inv'!CF:CF,F1087,'PdI-crono_inv'!CE:CE,H1087,'PdI-crono_inv'!J:J,P1087,'PdI-crono_inv'!P:P,\"<>proprietario\")+S1087","v":0},null,null,"ENV",{"$f":"+VLOOKUP(F1087,TT_Tabelle_Riferimento!$D$127:$E$164,2,FALSE)","v":"Depurazione"},"",0]
[0,0,"Gestore",0,"IP",21,{"$f":"+VLOOKUP(F1088,TT_Tabelle_Riferimento!$D$127:$G$164,4,FALSE)","v":"Impianti di depurazione – trattamenti sino al preliminare, integrativo, primario - fosse settiche e fosse Imhoff"},2,{"$f":"+VLOOKUP(H1088,TT_Tabelle_Riferimento!$F$3:$G$6,2,FALSE)","v":"Fognatura bianca e pulizia / manutenzione caditoie stradali"},2029,{"$f":"+SUMIFS('PdI-crono_inv'!BL:BL,'PdI-crono_inv'!CF:CF,F1088,'PdI-crono_inv'!CE:CE,H1088,'PdI-crono_inv'!J:J,P1088,'PdI-crono_inv'!P:P,\"<>proprietario\")","v":0},null,{"$f":"+SUMIFS('PdI-crono_inv'!BM:BM,'PdI-crono_inv'!CF:CF,F1088,'PdI-crono_inv'!CE:CE,H1088,'PdI-crono_inv'!J:J,P1088,'PdI-crono_inv'!P:P,\"<>proprietario\")+S1088","v":0},null,null,"ENV",{"$f":"+VLOOKUP(F1088,TT_Tabelle_Riferimento!$D$127:$E$164,2,FALSE)","v":"Depurazione"},"",0]
[0,0,"Gestore",0,"IP",22,{"$f":"+VLOOKUP(F1089,TT_Tabelle_Riferimento!$D$127:$G$164,4,FALSE)","v":"Impianti di depurazione – trattamenti sino al secondario"},2,{"$f":"+VLOOKUP(H1089,TT_Tabelle_Riferimento!$F$3:$G$6,2,FALSE)","v":"Fognatura bianca e pulizia / manutenzione caditoie stradali"},2029,{"$f":"+SUMIFS('PdI-crono_inv'!BL:BL,'PdI-crono_inv'!CF:CF,F1089,'PdI-crono_inv'!CE:CE,H1089,'PdI-crono_inv'!J:J,P1089,'PdI-crono_inv'!P:P,\"<>proprietario\")","v":0},null,{"$f":"+SUMIFS('PdI-crono_inv'!BM:BM,'PdI-crono_inv'!CF:CF,F1089,'PdI-crono_inv'!CE:CE,H1089,'PdI-crono_inv'!J:J,P1089,'PdI-crono_inv'!P:P,\"<>proprietario\")+S1089","v":0},null,null,"ENV",{"$f":"+VLOOKUP(F1089,TT_Tabelle_Riferimento!$D$127:$E$164,2,FALSE)","v":"Depurazione"},"",0]
[0,0,"Gestore",0,"IP",23,{"$f":"+VLOOKUP(F1090,TT_Tabelle_Riferimento!$D$127:$G$164,4,FALSE)","v":"Impianti di depurazione – trattamenti sino al terziario e terziario avanzato"},2,{"$f":"+VLOOKUP(H1090,TT_Tabelle_Riferimento!$F$3:$G$6,2,FALSE)","v":"Fognatura bianca e pulizia / manutenzione caditoie stradali"},2029,{"$f":"+SUMIFS('PdI-crono_inv'!BL:BL,'PdI-crono_inv'!CF:CF,F1090,'PdI-crono_inv'!CE:CE,H1090,'PdI-crono_inv'!J:J,P1090,'PdI-crono_inv'!P:P,\"<>proprietario\")","v":0},null,{"$f":"+SUMIFS('PdI-crono_inv'!BM:BM,'PdI-crono_inv'!CF:CF,F1090,'PdI-crono_inv'!CE:CE,H1090,'PdI-crono_inv'!J:J,P1090,'PdI-crono_inv'!P:P,\"<>proprietario\")+S1090","v":0},null,null,"ENV",{"$f":"+VLOOKUP(F1090,TT_Tabelle_Riferimento!$D$127:$E$164,2,FALSE)","v":"Depurazione"},"",0]
[0,0,"Gestore",0,"IP",24,{"$f":"+VLOOKUP(F1091,TT_Tabelle_Riferimento!$D$127:$G$164,4,FALSE)","v":"Impianti di essiccamento fanghi e di valorizzazione dei fanghi (tra cui mono-incenerimento, pirolisi, gassificazione)"},2,{"$f":"+VLOOKUP(H1091,TT_Tabelle_Riferimento!$F$3:$G$6,2,FALSE)","v":"Fognatura bianca e pulizia / manutenzione caditoie stradali"},2029,{"$f":"+SUMIFS('PdI-crono_inv'!BL:BL,'PdI-crono_inv'!CF:CF,F1091,'PdI-crono_inv'!CE:CE,H1091,'PdI-crono_inv'!J:J,P1091,'PdI-crono_inv'!P:P,\"<>proprietario\")","v":0},null,{"$f":"+SUMIFS('PdI-crono_inv'!BM:BM,'PdI-crono_inv'!CF:CF,F1091,'PdI-crono_inv'!CE:CE,H1091,'PdI-crono_inv'!J:J,P1091,'PdI-crono_inv'!P:P,\"<>proprietario\")+S1091","v":0},null,null,"ENV",{"$f":"+VLOOKUP(F1091,TT_Tabelle_Riferimento!$D$127:$E$164,2,FALSE)","v":"Depurazione"},"",0]
[0,0,"Gestore",0,"IP",25,{"$f":"+VLOOKUP(F1092,TT_Tabelle_Riferimento!$D$127:$G$164,4,FALSE)","v":"Gruppi di misura - altre attrezzature di depurazione"},2,{"$f":"+VLOOKUP(H1092,TT_Tabelle_Riferimento!$F$3:$G$6,2,FALSE)","v":"Fognatura bianca e pulizia / manutenzione caditoie stradali"},2029,{"$f":"+SUMIFS('PdI-crono_inv'!BL:BL,'PdI-crono_inv'!CF:CF,F1092,'PdI-crono_inv'!CE:CE,H1092,'PdI-crono_inv'!J:J,P1092,'PdI-crono_inv'!P:P,\"<>proprietario\")","v":0},null,{"$f":"+SUMIFS('PdI-crono_inv'!BM:BM,'PdI-crono_inv'!CF:CF,F1092,'PdI-crono_inv'!CE:CE,H1092,'PdI-crono_inv'!J:J,P1092,'PdI-crono_inv'!P:P,\"<>proprietario\")+S1092","v":0},null,null,"ENV",{"$f":"+VLOOKUP(F1092,TT_Tabelle_Riferimento!$D$127:$E$164,2,FALSE)","v":"Depurazione"},"",0]
[0,0,"Gestore",0,"IP",26,{"$f":"+VLOOKUP(F1093,TT_Tabelle_Riferimento!$D$127:$G$164,4,FALSE)","v":"Sistemi informativi di depurazione"},2,{"$f":"+VLOOKUP(H1093,TT_Tabelle_Riferimento!$F$3:$G$6,2,FALSE)","v":"Fognatura bianca e pulizia / manutenzione caditoie stradali"},2029,{"$f":"+SUMIFS('PdI-crono_inv'!BL:BL,'PdI-crono_inv'!CF:CF,F1093,'PdI-crono_inv'!CE:CE,H1093,'PdI-crono_inv'!J:J,P1093,'PdI-crono_inv'!P:P,\"<>proprietario\")","v":0},null,{"$f":"+SUMIFS('PdI-crono_inv'!BM:BM,'PdI-crono_inv'!CF:CF,F1093,'PdI-crono_inv'!CE:CE,H1093,'PdI-crono_inv'!J:J,P1093,'PdI-crono_inv'!P:P,\"<>proprietario\")+S1093","v":0},null,null,"ENV",{"$f":"+VLOOKUP(F1093,TT_Tabelle_Riferimento!$D$127:$E$164,2,FALSE)","v":"Depurazione"},"",0]
[0,0,"Gestore",0,"IP",27,{"$f":"+VLOOKUP(F1094,TT_Tabelle_Riferimento!$D$127:$G$164,4,FALSE)","v":"Telecontrollo e teletrasmissione di depurazione"},2,{"$f":"+VLOOKUP(H1094,TT_Tabelle_Riferimento!$F$3:$G$6,2,FALSE)","v":"Fognatura bianca e pulizia / manutenzione caditoie stradali"},2029,{"$f":"+SUMIFS('PdI-crono_inv'!BL:BL,'PdI-crono_inv'!CF:CF,F1094,'PdI-crono_inv'!CE:CE,H1094,'PdI-crono_inv'!J:J,P1094,'PdI-crono_inv'!P:P,\"<>proprietario\")","v":0},null,{"$f":"+SUMIFS('PdI-crono_inv'!BM:BM,'PdI-crono_inv'!CF:CF,F1094,'PdI-crono_inv'!CE:CE,H1094,'PdI-crono_inv'!J:J,P1094,'PdI-crono_inv'!P:P,\"<>proprietario\")+S1094","v":0},null,null,"ENV",{"$f":"+VLOOKUP(F1094,TT_Tabelle_Riferimento!$D$127:$E$164,2,FALSE)","v":"Depurazione"},"",0]
[0,0,"Gestore",0,"IP",28,{"$f":"+VLOOKUP(F1095,TT_Tabelle_Riferimento!$D$127:$G$164,4,FALSE)","v":"Altri impianti"},2,{"$f":"+VLOOKUP(H1095,TT_Tabelle_Riferimento!$F$3:$G$6,2,FALSE)","v":"Fognatura bianca e pulizia / manutenzione caditoie stradali"},2029,{"$f":"+SUMIFS('PdI-crono_inv'!BL:BL,'PdI-crono_inv'!CF:CF,F1095,'PdI-crono_inv'!CE:CE,H1095,'PdI-crono_inv'!J:J,P1095,'PdI-crono_inv'!P:P,\"<>proprietario\")","v":0},null,{"$f":"+SUMIFS('PdI-crono_inv'!BM:BM,'PdI-crono_inv'!CF:CF,F1095,'PdI-crono_inv'!CE:CE,H1095,'PdI-crono_inv'!J:J,P1095,'PdI-crono_inv'!P:P,\"<>proprietario\")+S1095","v":0},null,null,"ENV",{"$f":"+VLOOKUP(F1095,TT_Tabelle_Riferimento!$D$127:$E$164,2,FALSE)","v":"Comune"},"",{"$f":"+IFERROR(HLOOKUP(J1095,$X$2:$Y$5,4,FALSE)*K1095,0)","v":0}]
[0,0,"Gestore",0,"IP",29,{"$f":"+VLOOKUP(F1096,TT_Tabelle_Riferimento!$D$127:$G$164,4,FALSE)","v":"Laboratori e attrezzature"},2,{"$f":"+VLOOKUP(H1096,TT_Tabelle_Riferimento!$F$3:$G$6,2,FALSE)","v":"Fognatura bianca e pulizia / manutenzione caditoie stradali"},2029,{"$f":"+SUMIFS('PdI-crono_inv'!BL:BL,'PdI-crono_inv'!CF:CF,F1096,'PdI-crono_inv'!CE:CE,H1096,'PdI-crono_inv'!J:J,P1096,'PdI-crono_inv'!P:P,\"<>proprietario\")","v":0},null,{"$f":"+SUMIFS('PdI-crono_inv'!BM:BM,'PdI-crono_inv'!CF:CF,F1096,'PdI-crono_inv'!CE:CE,H1096,'PdI-crono_inv'!J:J,P1096,'PdI-crono_inv'!P:P,\"<>proprietario\")+S1096","v":0},null,null,"ENV",{"$f":"+VLOOKUP(F1096,TT_Tabelle_Riferimento!$D$127:$E$164,2,FALSE)","v":"Comune"},"",0]
[0,0,"Gestore",0,"IP",30,{"$f":"+VLOOKUP(F1097,TT_Tabelle_Riferimento!$D$127:$G$164,4,FALSE)","v":"Sistemi informativi"},2,{"$f":"+VLOOKUP(H1097,TT_Tabelle_Riferimento!$F$3:$G$6,2,FALSE)","v":"Fognatura bianca e pulizia / manutenzione caditoie stradali"},2029,{"$f":"+SUMIFS('PdI-crono_inv'!BL:BL,'PdI-crono_inv'!CF:CF,F1097,'PdI-crono_inv'!CE:CE,H1097,'PdI-crono_inv'!J:J,P1097,'PdI-crono_inv'!P:P,\"<>proprietario\")","v":0},null,{"$f":"+SUMIFS('PdI-crono_inv'!BM:BM,'PdI-crono_inv'!CF:CF,F1097,'PdI-crono_inv'!CE:CE,H1097,'PdI-crono_inv'!J:J,P1097,'PdI-crono_inv'!P:P,\"<>proprietario\")+S1097","v":0},null,null,"ENV",{"$f":"+VLOOKUP(F1097,TT_Tabelle_Riferimento!$D$127:$E$164,2,FALSE)","v":"Comune"},"",0]
[0,0,"Gestore",0,"IP",31,{"$f":"+VLOOKUP(F1098,TT_Tabelle_Riferimento!$D$127:$G$164,4,FALSE)","v":"Telecontrollo e teletrasmissione"},2,{"$f":"+VLOOKUP(H1098,TT_Tabelle_Riferimento!$F$3:$G$6,2,FALSE)","v":"Fognatura bianca e pulizia / manutenzione caditoie stradali"},2029,{"$f":"+SUMIFS('PdI-crono_inv'!BL:BL,'PdI-crono_inv'!CF:CF,F1098,'PdI-crono_inv'!CE:CE,H1098,'PdI-crono_inv'!J:J,P1098,'PdI-crono_inv'!P:P,\"<>proprietario\")","v":0},null,{"$f":"+SUMIFS('PdI-crono_inv'!BM:BM,'PdI-crono_inv'!CF:CF,F1098,'PdI-crono_inv'!CE:CE,H1098,'PdI-crono_inv'!J:J,P1098,'PdI-crono_inv'!P:P,\"<>proprietario\")+S1098","v":0},null,null,"ENV",{"$f":"+VLOOKUP(F1098,TT_Tabelle_Riferimento!$D$127:$E$164,2,FALSE)","v":"Comune"},"",0]
[0,0,"Gestore",0,"IP",32,{"$f":"+VLOOKUP(F1099,TT_Tabelle_Riferimento!$D$127:$G$164,4,FALSE)","v":"Autoveicoli - automezzi"},2,{"$f":"+VLOOKUP(H1099,TT_Tabelle_Riferimento!$F$3:$G$6,2,FALSE)","v":"Fognatura bianca e pulizia / manutenzione caditoie stradali"},2029,{"$f":"+SUMIFS('PdI-crono_inv'!BL:BL,'PdI-crono_inv'!CF:CF,F1099,'PdI-crono_inv'!CE:CE,H1099,'PdI-crono_inv'!J:J,P1099,'PdI-crono_inv'!P:P,\"<>proprietario\")","v":0},null,{"$f":"+SUMIFS('PdI-crono_inv'!BM:BM,'PdI-crono_inv'!CF:CF,F1099,'PdI-crono_inv'!CE:CE,H1099,'PdI-crono_inv'!J:J,P1099,'PdI-crono_inv'!P:P,\"<>proprietario\")+S1099","v":0},null,null,"ENV",{"$f":"+VLOOKUP(F1099,TT_Tabelle_Riferimento!$D$127:$E$164,2,FALSE)","v":"Comune"},"",0]
[0,0,"Gestore",0,"IP",1,{"$f":"+VLOOKUP(F1100,TT_Tabelle_Riferimento!$D$127:$G$164,4,FALSE)","v":"Terreni"},2,{"$f":"+VLOOKUP(H1100,TT_Tabelle_Riferimento!$F$3:$G$6,2,FALSE)","v":"Fognatura bianca e pulizia / manutenzione caditoie stradali"},2029,{"$f":"+SUMIFS('PdI-crono_inv'!BL:BL,'PdI-crono_inv'!CF:CF,F1100,'PdI-crono_inv'!CE:CE,H1100,'PdI-crono_inv'!J:J,P1100,'PdI-crono_inv'!P:P,\"<>proprietario\")","v":0},null,{"$f":"+SUMIFS('PdI-crono_inv'!BM:BM,'PdI-crono_inv'!CF:CF,F1100,'PdI-crono_inv'!CE:CE,H1100,'PdI-crono_inv'!J:J,P1100,'PdI-crono_inv'!P:P,\"<>proprietario\")+S1100","v":0},null,null,"ENV",{"$f":"+VLOOKUP(F1100,TT_Tabelle_Riferimento!$D$127:$E$164,2,FALSE)","v":"Comune"},"",0]
[0,0,"Gestore",0,"IP",33,{"$f":"+VLOOKUP(F1101,TT_Tabelle_Riferimento!$D$127:$G$164,4,FALSE)","v":"Fabbricati non industriali"},2,{"$f":"+VLOOKUP(H1101,TT_Tabelle_Riferimento!$F$3:$G$6,2,FALSE)","v":"Fognatura bianca e pulizia / manutenzione caditoie stradali"},2029,{"$f":"+SUMIFS('PdI-crono_inv'!BL:BL,'PdI-crono_inv'!CF:CF,F1101,'PdI-crono_inv'!CE:CE,H1101,'PdI-crono_inv'!J:J,P1101,'PdI-crono_inv'!P:P,\"<>proprietario\")","v":0},null,{"$f":"+SUMIFS('PdI-crono_inv'!BM:BM,'PdI-crono_inv'!CF:CF,F1101,'PdI-crono_inv'!CE:CE,H1101,'PdI-crono_inv'!J:J,P1101,'PdI-crono_inv'!P:P,\"<>proprietario\")+S1101","v":0},null,null,"ENV",{"$f":"+VLOOKUP(F1101,TT_Tabelle_Riferimento!$D$127:$E$164,2,FALSE)","v":"Comune"},"",0]
[0,0,"Gestore",0,"IP",34,{"$f":"+VLOOKUP(F1102,TT_Tabelle_Riferimento!$D$127:$G$164,4,FALSE)","v":"Fabbricati industriali"},2,{"$f":"+VLOOKUP(H1102,TT_Tabelle_Riferimento!$F$3:$G$6,2,FALSE)","v":"Fognatura bianca e pulizia / manutenzione caditoie stradali"},2029,{"$f":"+SUMIFS('PdI-crono_inv'!BL:BL,'PdI-crono_inv'!CF:CF,F1102,'PdI-crono_inv'!CE:CE,H1102,'PdI-crono_inv'!J:J,P1102,'PdI-crono_inv'!P:P,\"<>proprietario\")","v":0},null,{"$f":"+SUMIFS('PdI-crono_inv'!BM:BM,'PdI-crono_inv'!CF:CF,F1102,'PdI-crono_inv'!CE:CE,H1102,'PdI-crono_inv'!J:J,P1102,'PdI-crono_inv'!P:P,\"<>proprietario\")+S1102","v":0},null,null,"ENV",{"$f":"+VLOOKUP(F1102,TT_Tabelle_Riferimento!$D$127:$E$164,2,FALSE)","v":"Comune"},"",0]
[0,0,"Gestore",0,"IP",35,{"$f":"+VLOOKUP(F1103,TT_Tabelle_Riferimento!$D$127:$G$164,4,FALSE)","v":"Costruzioni leggere"},2,{"$f":"+VLOOKUP(H1103,TT_Tabelle_Riferimento!$F$3:$G$6,2,FALSE)","v":"Fognatura bianca e pulizia / manutenzione caditoie stradali"},2029,{"$f":"+SUMIFS('PdI-crono_inv'!BL:BL,'PdI-crono_inv'!CF:CF,F1103,'PdI-crono_inv'!CE:CE,H1103,'PdI-crono_inv'!J:J,P1103,'PdI-crono_inv'!P:P,\"<>proprietario\")","v":0},null,{"$f":"+SUMIFS('PdI-crono_inv'!BM:BM,'PdI-crono_inv'!CF:CF,F1103,'PdI-crono_inv'!CE:CE,H1103,'PdI-crono_inv'!J:J,P1103,'PdI-crono_inv'!P:P,\"<>proprietario\")+S1103","v":0},null,null,"ENV",{"$f":"+VLOOKUP(F1103,TT_Tabelle_Riferimento!$D$127:$E$164,2,FALSE)","v":"Comune"},"",0]
[0,0,"Gestore",0,"IP",36,{"$f":"+VLOOKUP(F1104,TT_Tabelle_Riferimento!$D$127:$G$164,4,FALSE)","v":"Studi, ricerche, brevetti, diritti di utilizzazione"},2,{"$f":"+VLOOKUP(H1104,TT_Tabelle_Riferimento!$F$3:$G$6,2,FALSE)","v":"Fognatura bianca e pulizia / manutenzione caditoie stradali"},2029,{"$f":"+SUMIFS('PdI-crono_inv'!BL:BL,'PdI-crono_inv'!CF:CF,F1104,'PdI-crono_inv'!CE:CE,H1104,'PdI-crono_inv'!J:J,P1104,'PdI-crono_inv'!P:P,\"<>proprietario\")","v":0},null,{"$f":"+SUMIFS('PdI-crono_inv'!BM:BM,'PdI-crono_inv'!CF:CF,F1104,'PdI-crono_inv'!CE:CE,H1104,'PdI-crono_inv'!J:J,P1104,'PdI-crono_inv'!P:P,\"<>proprietario\")+S1104","v":0},null,null,"ENV",{"$f":"+VLOOKUP(F1104,TT_Tabelle_Riferimento!$D$127:$E$164,2,FALSE)","v":"Comune"},"",0]
[0,0,"Gestore",0,"IP",37,{"$f":"+VLOOKUP(F1105,TT_Tabelle_Riferimento!$D$127:$G$164,4,FALSE)","v":"Altre immobilizzazioni materiali e immateriali"},2,{"$f":"+VLOOKUP(H1105,TT_Tabelle_Riferimento!$F$3:$G$6,2,FALSE)","v":"Fognatura bianca e pulizia / manutenzione caditoie stradali"},2029,{"$f":"+SUMIFS('PdI-crono_inv'!BL:BL,'PdI-crono_inv'!CF:CF,F1105,'PdI-crono_inv'!CE:CE,H1105,'PdI-crono_inv'!J:J,P1105,'PdI-crono_inv'!P:P,\"<>proprietario\")","v":0},null,{"$f":"+SUMIFS('PdI-crono_inv'!BM:BM,'PdI-crono_inv'!CF:CF,F1105,'PdI-crono_inv'!CE:CE,H1105,'PdI-crono_inv'!J:J,P1105,'PdI-crono_inv'!P:P,\"<>proprietario\")+S1105","v":0},null,null,"ENV",{"$f":"+VLOOKUP(F1105,TT_Tabelle_Riferimento!$D$127:$E$164,2,FALSE)","v":"Comune"},"",0]
[0,0,"Gestore",0,"IP",38,{"$f":"+VLOOKUP(F1106,TT_Tabelle_Riferimento!$D$127:$G$164,4,FALSE)","v":"Grandi dighe (sbarramenti che superano i quindici metri di altezza o che determinano un invaso superiore a 1 milione di metri cubi)"},2,{"$f":"+VLOOKUP(H1106,TT_Tabelle_Riferimento!$F$3:$G$6,2,FALSE)","v":"Fognatura bianca e pulizia / manutenzione caditoie stradali"},2029,{"$f":"+SUMIFS('PdI-crono_inv'!BL:BL,'PdI-crono_inv'!CF:CF,F1106,'PdI-crono_inv'!CE:CE,H1106,'PdI-crono_inv'!J:J,P1106,'PdI-crono_inv'!P:P,\"<>proprietario\")","v":0},null,{"$f":"+SUMIFS('PdI-crono_inv'!BM:BM,'PdI-crono_inv'!CF:CF,F1106,'PdI-crono_inv'!CE:CE,H1106,'PdI-crono_inv'!J:J,P1106,'PdI-crono_inv'!P:P,\"<>proprietario\")+S1106","v":0},null,null,"ENV",{"$f":"+VLOOKUP(F1106,TT_Tabelle_Riferimento!$D$127:$E$164,2,FALSE)","v":"Acquedotto"},"",0]
[0,0,"Gestore",0,"IP",39,{"$f":"+VLOOKUP(F1107,TT_Tabelle_Riferimento!$D$127:$G$164,4,FALSE)","v":"Piccole dighe (sbarramenti che non superano i quindici metri di altezza o che determinano un invaso non superiore a 1 milione di metri cubi)"},2,{"$f":"+VLOOKUP(H1107,TT_Tabelle_Riferimento!$F$3:$G$6,2,FALSE)","v":"Fognatura bianca e pulizia / manutenzione caditoie stradali"},2029,{"$f":"+SUMIFS('PdI-crono_inv'!BL:BL,'PdI-crono_inv'!CF:CF,F1107,'PdI-crono_inv'!CE:CE,H1107,'PdI-crono_inv'!J:J,P1107,'PdI-crono_inv'!P:P,\"<>proprietario\")","v":0},null,{"$f":"+SUMIFS('PdI-crono_inv'!BM:BM,'PdI-crono_inv'!CF:CF,F1107,'PdI-crono_inv'!CE:CE,H1107,'PdI-crono_inv'!J:J,P1107,'PdI-crono_inv'!P:P,\"<>proprietario\")+S1107","v":0},null,null,"ENV",{"$f":"+VLOOKUP(F1107,TT_Tabelle_Riferimento!$D$127:$E$164,2,FALSE)","v":"Acquedotto"},"",0]
[{"$f":"+idato","v":0},{"$f":"+idgestore","v":0},"Gestore",0,"IP",2,{"$f":"+VLOOKUP(F1108,TT_Tabelle_Riferimento!$D$127:$G$164,4,FALSE)","v":"Condotte di acquedotto"},3,{"$f":"+VLOOKUP(H1108,TT_Tabelle_Riferimento!$F$3:$G$6,2,FALSE)","v":"Altri servizi idrici"},2029,{"$f":"+SUMIFS('PdI-crono_inv'!BL:BL,'PdI-crono_inv'!CF:CF,F1108,'PdI-crono_inv'!CE:CE,H1108,'PdI-crono_inv'!J:J,P1108,'PdI-crono_inv'!P:P,\"<>proprietario\")","v":0},null,{"$f":"+SUMIFS('PdI-crono_inv'!BM:BM,'PdI-crono_inv'!CF:CF,F1108,'PdI-crono_inv'!CE:CE,H1108,'PdI-crono_inv'!J:J,P1108,'PdI-crono_inv'!P:P,\"<>proprietario\")+S1108","v":0},null,null,"ENV",{"$f":"+VLOOKUP(F1108,TT_Tabelle_Riferimento!$D$127:$E$164,2,FALSE)","v":"Acquedotto"},"",0]
[0,0,"Gestore",0,"IP",3,{"$f":"+VLOOKUP(F1109,TT_Tabelle_Riferimento!$D$127:$G$164,4,FALSE)","v":"Opere idrauliche fisse di acquedotto"},3,{"$f":"+VLOOKUP(H1109,TT_Tabelle_Riferimento!$F$3:$G$6,2,FALSE)","v":"Altri servizi idrici"},2029,{"$f":"+SUMIFS('PdI-crono_inv'!BL:BL,'PdI-crono_inv'!CF:CF,F1109,'PdI-crono_inv'!CE:CE,H1109,'PdI-crono_inv'!J:J,P1109,'PdI-crono_inv'!P:P,\"<>proprietario\")","v":0},null,{"$f":"+SUMIFS('PdI-crono_inv'!BM:BM,'PdI-crono_inv'!CF:CF,F1109,'PdI-crono_inv'!CE:CE,H1109,'PdI-crono_inv'!J:J,P1109,'PdI-crono_inv'!P:P,\"<>proprietario\")+S1109","v":0},null,null,"ENV",{"$f":"+VLOOKUP(F1109,TT_Tabelle_Riferimento!$D$127:$E$164,2,FALSE)","v":"Acquedotto"},"",0]
[0,0,"Gestore",0,"IP",4,{"$f":"+VLOOKUP(F1110,TT_Tabelle_Riferimento!$D$127:$G$164,4,FALSE)","v":"Serbatoi"},3,{"$f":"+VLOOKUP(H1110,TT_Tabelle_Riferimento!$F$3:$G$6,2,FALSE)","v":"Altri servizi idrici"},2029,{"$f":"+SUMIFS('PdI-crono_inv'!BL:BL,'PdI-crono_inv'!CF:CF,F1110,'PdI-crono_inv'!CE:CE,H1110,'PdI-crono_inv'!J:J,P1110,'PdI-crono_inv'!P:P,\"<>proprietario\")","v":0},null,{"$f":"+SUMIFS('PdI-crono_inv'!BM:BM,'PdI-crono_inv'!CF:CF,F1110,'PdI-crono_inv'!CE:CE,H1110,'PdI-crono_inv'!J:J,P1110,'PdI-crono_inv'!P:P,\"<>proprietario\")+S1110","v":0},null,null,"ENV",{"$f":"+VLOOKUP(F1110,TT_Tabelle_Riferimento!$D$127:$E$164,2,FALSE)","v":"Acquedotto"},"",0]
[0,0,"Gestore",0,"IP",5,{"$f":"+VLOOKUP(F1111,TT_Tabelle_Riferimento!$D$127:$G$164,4,FALSE)","v":"Impianti di sollevamento e pompaggio di acquedotto"},3,{"$f":"+VLOOKUP(H1111,TT_Tabelle_Riferimento!$F$3:$G$6,2,FALSE)","v":"Altri servizi idrici"},2029,{"$f":"+SUMIFS('PdI-crono_inv'!BL:BL,'PdI-crono_inv'!CF:CF,F1111,'PdI-crono_inv'!CE:CE,H1111,'PdI-crono_inv'!J:J,P1111,'PdI-crono_inv'!P:P,\"<>proprietario\")","v":0},null,{"$f":"+SUMIFS('PdI-crono_inv'!BM:BM,'PdI-crono_inv'!CF:CF,F1111,'PdI-crono_inv'!CE:CE,H1111,'PdI-crono_inv'!J:J,P1111,'PdI-crono_inv'!P:P,\"<>proprietario\")+S1111","v":0},null,null,"ENV",{"$f":"+VLOOKUP(F1111,TT_Tabelle_Riferimento!$D$127:$E$164,2,FALSE)","v":"Acquedotto"},"",0]
[0,0,"Gestore",0,"IP",6,{"$f":"+VLOOKUP(F1112,TT_Tabelle_Riferimento!$D$127:$G$164,4,FALSE)","v":"Impianti di potabilizzazione"},3,{"$f":"+VLOOKUP(H1112,TT_Tabelle_Riferimento!$F$3:$G$6,2,FALSE)","v":"Altri servizi idrici"},2029,{"$f":"+SUMIFS('PdI-crono_inv'!BL:BL,'PdI-crono_inv'!CF:CF,F1112,'PdI-crono_inv'!CE:CE,H1112,'PdI-crono_inv'!J:J,P1112,'PdI-crono_inv'!P:P,\"<>proprietario\")","v":0},null,{"$f":"+SUMIFS('PdI-crono_inv'!BM:BM,'PdI-crono_inv'!CF:CF,F1112,'PdI-crono_inv'!CE:CE,H1112,'PdI-crono_inv'!J:J,P1112,'PdI-crono_inv'!P:P,\"<>proprietario\")+S1112","v":0},null,null,"ENV",{"$f":"+VLOOKUP(F1112,TT_Tabelle_Riferimento!$D$127:$E$164,2,FALSE)","v":"Acquedotto"},"",0]
[0,0,"Gestore",0,"IP",7,{"$f":"+VLOOKUP(F1113,TT_Tabelle_Riferimento!$D$127:$G$164,4,FALSE)","v":"Altri trattamenti di potabilizzazione (tra cui dispositivi di disinfezione, stacciatura, filtrazione, addolcimento)"},3,{"$f":"+VLOOKUP(H1113,TT_Tabelle_Riferimento!$F$3:$G$6,2,FALSE)","v":"Altri servizi idrici"},2029,{"$f":"+SUMIFS('PdI-crono_inv'!BL:BL,'PdI-crono_inv'!CF:CF,F1113,'PdI-crono_inv'!CE:CE,H1113,'PdI-crono_inv'!J:J,P1113,'PdI-crono_inv'!P:P,\"<>proprietario\")","v":0},null,{"$f":"+SUMIFS('PdI-crono_inv'!BM:BM,'PdI-crono_inv'!CF:CF,F1113,'PdI-crono_inv'!CE:CE,H1113,'PdI-crono_inv'!J:J,P1113,'PdI-crono_inv'!P:P,\"<>proprietario\")+S1113","v":0},null,null,"ENV",{"$f":"+VLOOKUP(F1113,TT_Tabelle_Riferimento!$D$127:$E$164,2,FALSE)","v":"Acquedotto"},"",0]
[0,0,"Gestore",0,"IP",8,{"$f":"+VLOOKUP(F1114,TT_Tabelle_Riferimento!$D$127:$G$164,4,FALSE)","v":"Gruppi di misura - altre attrezzature di acquedotto"},3,{"$f":"+VLOOKUP(H1114,TT_Tabelle_Riferimento!$F$3:$G$6,2,FALSE)","v":"Altri servizi idrici"},2029,{"$f":"+SUMIFS('PdI-crono_inv'!BL:BL,'PdI-crono_inv'!CF:CF,F1114,'PdI-crono_inv'!CE:CE,H1114,'PdI-crono_inv'!J:J,P1114,'PdI-crono_inv'!P:P,\"<>proprietario\")","v":0},null,{"$f":"+SUMIFS('PdI-crono_inv'!BM:BM,'PdI-crono_inv'!CF:CF,F1114,'PdI-crono_inv'!CE:CE,H1114,'PdI-crono_inv'!J:J,P1114,'PdI-crono_inv'!P:P,\"<>proprietario\")+S1114","v":0},null,null,"ENV",{"$f":"+VLOOKUP(F1114,TT_Tabelle_Riferimento!$D$127:$E$164,2,FALSE)","v":"Acquedotto"},"",0]
[0,0,"Gestore",0,"IP",9,{"$f":"+VLOOKUP(F1115,TT_Tabelle_Riferimento!$D$127:$G$164,4,FALSE)","v":"Sistemi informativi di acquedotto"},3,{"$f":"+VLOOKUP(H1115,TT_Tabelle_Riferimento!$F$3:$G$6,2,FALSE)","v":"Altri servizi idrici"},2029,{"$f":"+SUMIFS('PdI-crono_inv'!BL:BL,'PdI-crono_inv'!CF:CF,F1115,'PdI-crono_inv'!CE:CE,H1115,'PdI-crono_inv'!J:J,P1115,'PdI-crono_inv'!P:P,\"<>proprietario\")","v":0},null,{"$f":"+SUMIFS('PdI-crono_inv'!BM:BM,'PdI-crono_inv'!CF:CF,F1115,'PdI-crono_inv'!CE:CE,H1115,'PdI-crono_inv'!J:J,P1115,'PdI-crono_inv'!P:P,\"<>proprietario\")+S1115","v":0},null,null,"ENV",{"$f":"+VLOOKUP(F1115,TT_Tabelle_Riferimento!$D$127:$E$164,2,FALSE)","v":"Acquedotto"},"",0]
[0,0,"Gestore",0,"IP",10,{"$f":"+VLOOKUP(F1116,TT_Tabelle_Riferimento!$D$127:$G$164,4,FALSE)","v":"Telecontrollo e teletrasmissione di acquedotto"},3,{"$f":"+VLOOKUP(H1116,TT_Tabelle_Riferimento!$F$3:$G$6,2,FALSE)","v":"Altri servizi idrici"},2029,{"$f":"+SUMIFS('PdI-crono_inv'!BL:BL,'PdI-crono_inv'!CF:CF,F1116,'PdI-crono_inv'!CE:CE,H1116,'PdI-crono_inv'!J:J,P1116,'PdI-crono_inv'!P:P,\"<>proprietario\")","v":0},null,{"$f":"+SUMIFS('PdI-crono_inv'!BM:BM,'PdI-crono_inv'!CF:CF,F1116,'PdI-crono_inv'!CE:CE,H1116,'PdI-crono_inv'!J:J,P1116,'PdI-crono_inv'!P:P,\"<>proprietario\")+S1116","v":0},null,null,"ENV",{"$f":"+VLOOKUP(F1116,TT_Tabelle_Riferimento!$D$127:$E$164,2,FALSE)","v":"Acquedotto"},"",0]
[0,0,"Gestore",0,"IP",11,{"$f":"+VLOOKUP(F1117,TT_Tabelle_Riferimento!$D$127:$G$164,4,FALSE)","v":"Condotte fognarie"},3,{"$f":"+VLOOKUP(H1117,TT_Tabelle_Riferimento!$F$3:$G$6,2,FALSE)","v":"Altri servizi idrici"},2029,{"$f":"+SUMIFS('PdI-crono_inv'!BL:BL,'PdI-crono_inv'!CF:CF,F1117,'PdI-crono_inv'!CE:CE,H1117,'PdI-crono_inv'!J:J,P1117,'PdI-crono_inv'!P:P,\"<>proprietario\")","v":0},null,{"$f":"+SUMIFS('PdI-crono_inv'!BM:BM,'PdI-crono_inv'!CF:CF,F1117,'PdI-crono_inv'!CE:CE,H1117,'PdI-crono_inv'!J:J,P1117,'PdI-crono_inv'!P:P,\"<>proprietario\")+S1117","v":0},null,null,"ENV",{"$f":"+VLOOKUP(F1117,TT_Tabelle_Riferimento!$D$127:$E$164,2,FALSE)","v":"Fognatura"},"",0]
[0,0,"Gestore",0,"IP",12,{"$f":"+VLOOKUP(F1118,TT_Tabelle_Riferimento!$D$127:$G$164,4,FALSE)","v":"Sifoni e scaricatori di piena e altre opere idrauliche fisse di fognatura"},3,{"$f":"+VLOOKUP(H1118,TT_Tabelle_Riferimento!$F$3:$G$6,2,FALSE)","v":"Altri servizi idrici"},2029,{"$f":"+SUMIFS('PdI-crono_inv'!BL:BL,'PdI-crono_inv'!CF:CF,F1118,'PdI-crono_inv'!CE:CE,H1118,'PdI-crono_inv'!J:J,P1118,'PdI-crono_inv'!P:P,\"<>proprietario\")","v":0},null,{"$f":"+SUMIFS('PdI-crono_inv'!BM:BM,'PdI-crono_inv'!CF:CF,F1118,'PdI-crono_inv'!CE:CE,H1118,'PdI-crono_inv'!J:J,P1118,'PdI-crono_inv'!P:P,\"<>proprietario\")+S1118","v":0},null,null,"ENV",{"$f":"+VLOOKUP(F1118,TT_Tabelle_Riferimento!$D$127:$E$164,2,FALSE)","v":"Fognatura"},"",0]
[0,0,"Gestore",0,"IP",13,{"$f":"+VLOOKUP(F1119,TT_Tabelle_Riferimento!$D$127:$G$164,4,FALSE)","v":"Vasche di laminazione e vasche di prima pioggia"},3,{"$f":"+VLOOKUP(H1119,TT_Tabelle_Riferimento!$F$3:$G$6,2,FALSE)","v":"Altri servizi idrici"},2029,{"$f":"+SUMIFS('PdI-crono_inv'!BL:BL,'PdI-crono_inv'!CF:CF,F1119,'PdI-crono_inv'!CE:CE,H1119,'PdI-crono_inv'!J:J,P1119,'PdI-crono_inv'!P:P,\"<>proprietario\")","v":0},null,{"$f":"+SUMIFS('PdI-crono_inv'!BM:BM,'PdI-crono_inv'!CF:CF,F1119,'PdI-crono_inv'!CE:CE,H1119,'PdI-crono_inv'!J:J,P1119,'PdI-crono_inv'!P:P,\"<>proprietario\")+S1119","v":0},null,null,"ENV",{"$f":"+VLOOKUP(F1119,TT_Tabelle_Riferimento!$D$127:$E$164,2,FALSE)","v":"Fognatura"},"",0]
[0,0,"Gestore",0,"IP",14,{"$f":"+VLOOKUP(F1120,TT_Tabelle_Riferimento!$D$127:$G$164,4,FALSE)","v":"Impianti di sollevamento e pompaggio di fognatura"},3,{"$f":"+VLOOKUP(H1120,TT_Tabelle_Riferimento!$F$3:$G$6,2,FALSE)","v":"Altri servizi idrici"},2029,{"$f":"+SUMIFS('PdI-crono_inv'!BL:BL,'PdI-crono_inv'!CF:CF,F1120,'PdI-crono_inv'!CE:CE,H1120,'PdI-crono_inv'!J:J,P1120,'PdI-crono_inv'!P:P,\"<>proprietario\")","v":0},null,{"$f":"+SUMIFS('PdI-crono_inv'!BM:BM,'PdI-crono_inv'!CF:CF,F1120,'PdI-crono_inv'!CE:CE,H1120,'PdI-crono_inv'!J:J,P1120,'PdI-crono_inv'!P:P,\"<>proprietario\")+S1120","v":0},null,null,"ENV",{"$f":"+VLOOKUP(F1120,TT_Tabelle_Riferimento!$D$127:$E$164,2,FALSE)","v":"Fognatura"},"",0]
[0,0,"Gestore",0,"IP",15,{"$f":"+VLOOKUP(F1121,TT_Tabelle_Riferimento!$D$127:$G$164,4,FALSE)","v":"Gruppi di misura - altre attrezzature di fognatura"},3,{"$f":"+VLOOKUP(H1121,TT_Tabelle_Riferimento!$F$3:$G$6,2,FALSE)","v":"Altri servizi idrici"},2029,{"$f":"+SUMIFS('PdI-crono_inv'!BL:BL,'PdI-crono_inv'!CF:CF,F1121,'PdI-crono_inv'!CE:CE,H1121,'PdI-crono_inv'!J:J,P1121,'PdI-crono_inv'!P:P,\"<>proprietario\")","v":0},null,{"$f":"+SUMIFS('PdI-crono_inv'!BM:BM,'PdI-crono_inv'!CF:CF,F1121,'PdI-crono_inv'!CE:CE,H1121,'PdI-crono_inv'!J:J,P1121,'PdI-crono_inv'!P:P,\"<>proprietario\")+S1121","v":0},null,null,"ENV",{"$f":"+VLOOKUP(F1121,TT_Tabelle_Riferimento!$D$127:$E$164,2,FALSE)","v":"Fognatura"},"",0]
[0,0,"Gestore",0,"IP",16,{"$f":"+VLOOKUP(F1122,TT_Tabelle_Riferimento!$D$127:$G$164,4,FALSE)","v":"Sistemi informativi di fognatura"},3,{"$f":"+VLOOKUP(H1122,TT_Tabelle_Riferimento!$F$3:$G$6,2,FALSE)","v":"Altri servizi idrici"},2029,{"$f":"+SUMIFS('PdI-crono_inv'!BL:BL,'PdI-crono_inv'!CF:CF,F1122,'PdI-crono_inv'!CE:CE,H1122,'PdI-crono_inv'!J:J,P1122,'PdI-crono_inv'!P:P,\"<>proprietario\")","v":0},null,{"$f":"+SUMIFS('PdI-crono_inv'!BM:BM,'PdI-crono_inv'!CF:CF,F1122,'PdI-crono_inv'!CE:CE,H1122,'PdI-crono_inv'!J:J,P1122,'PdI-crono_inv'!P:P,\"<>proprietario\")+S1122","v":0},null,null,"ENV",{"$f":"+VLOOKUP(F1122,TT_Tabelle_Riferimento!$D$127:$E$164,2,FALSE)","v":"Fognatura"},"",0]
[0,0,"Gestore",0,"IP",18,{"$f":"+VLOOKUP(F1123,TT_Tabelle_Riferimento!$D$127:$G$164,4,FALSE)","v":"Telecontrollo e teletrasmissione di fognatura"},3,{"$f":"+VLOOKUP(H1123,TT_Tabelle_Riferimento!$F$3:$G$6,2,FALSE)","v":"Altri servizi idrici"},2029,{"$f":"+SUMIFS('PdI-crono_inv'!BL:BL,'PdI-crono_inv'!CF:CF,F1123,'PdI-crono_inv'!CE:CE,H1123,'PdI-crono_inv'!J:J,P1123,'PdI-crono_inv'!P:P,\"<>proprietario\")","v":0},null,{"$f":"+SUMIFS('PdI-crono_inv'!BM:BM,'PdI-crono_inv'!CF:CF,F1123,'PdI-crono_inv'!CE:CE,H1123,'PdI-crono_inv'!J:J,P1123,'PdI-crono_inv'!P:P,\"<>proprietario\")+S1123","v":0},null,null,"ENV",{"$f":"+VLOOKUP(F1123,TT_Tabelle_Riferimento!$D$127:$E$164,2,FALSE)","v":"Fognatura"},"",0]
[0,0,"Gestore",0,"IP",19,{"$f":"+VLOOKUP(F1124,TT_Tabelle_Riferimento!$D$127:$G$164,4,FALSE)","v":"Impianti di sollevamento e pompaggio di depurazione"},3,{"$f":"+VLOOKUP(H1124,TT_Tabelle_Riferimento!$F$3:$G$6,2,FALSE)","v":"Altri servizi idrici"},2029,{"$f":"+SUMIFS('PdI-crono_inv'!BL:BL,'PdI-crono_inv'!CF:CF,F1124,'PdI-crono_inv'!CE:CE,H1124,'PdI-crono_inv'!J:J,P1124,'PdI-crono_inv'!P:P,\"<>proprietario\")","v":0},null,{"$f":"+SUMIFS('PdI-crono_inv'!BM:BM,'PdI-crono_inv'!CF:CF,F1124,'PdI-crono_inv'!CE:CE,H1124,'PdI-crono_inv'!J:J,P1124,'PdI-crono_inv'!P:P,\"<>proprietario\")+S1124","v":0},null,null,"ENV",{"$f":"+VLOOKUP(F1124,TT_Tabelle_Riferimento!$D$127:$E$164,2,FALSE)","v":"Depurazione"},"",0]
[0,0,"Gestore",0,"IP",20,{"$f":"+VLOOKUP(F1125,TT_Tabelle_Riferimento!$D$127:$G$164,4,FALSE)","v":"Tecniche naturali di depurazione (tra cui fitodepurazione e lagunaggio)"},3,{"$f":"+VLOOKUP(H1125,TT_Tabelle_Riferimento!$F$3:$G$6,2,FALSE)","v":"Altri servizi idrici"},2029,{"$f":"+SUMIFS('PdI-crono_inv'!BL:BL,'PdI-crono_inv'!CF:CF,F1125,'PdI-crono_inv'!CE:CE,H1125,'PdI-crono_inv'!J:J,P1125,'PdI-crono_inv'!P:P,\"<>proprietario\")","v":0},null,{"$f":"+SUMIFS('PdI-crono_inv'!BM:BM,'PdI-crono_inv'!CF:CF,F1125,'PdI-crono_inv'!CE:CE,H1125,'PdI-crono_inv'!J:J,P1125,'PdI-crono_inv'!P:P,\"<>proprietario\")+S1125","v":0},null,null,"ENV",{"$f":"+VLOOKUP(F1125,TT_Tabelle_Riferimento!$D$127:$E$164,2,FALSE)","v":"Depurazione"},"",0]
[0,0,"Gestore",0,"IP",21,{"$f":"+VLOOKUP(F1126,TT_Tabelle_Riferimento!$D$127:$G$164,4,FALSE)","v":"Impianti di depurazione – trattamenti sino al preliminare, integrativo, primario - fosse settiche e fosse Imhoff"},3,{"$f":"+VLOOKUP(H1126,TT_Tabelle_Riferimento!$F$3:$G$6,2,FALSE)","v":"Altri servizi idrici"},2029,{"$f":"+SUMIFS('PdI-crono_inv'!BL:BL,'PdI-crono_inv'!CF:CF,F1126,'PdI-crono_inv'!CE:CE,H1126,'PdI-crono_inv'!J:J,P1126,'PdI-crono_inv'!P:P,\"<>proprietario\")","v":0},null,{"$f":"+SUMIFS('PdI-crono_inv'!BM:BM,'PdI-crono_inv'!CF:CF,F1126,'PdI-crono_inv'!CE:CE,H1126,'PdI-crono_inv'!J:J,P1126,'PdI-crono_inv'!P:P,\"<>proprietario\")+S1126","v":0},null,null,"ENV",{"$f":"+VLOOKUP(F1126,TT_Tabelle_Riferimento!$D$127:$E$164,2,FALSE)","v":"Depurazione"},"",0]
[0,0,"Gestore",0,"IP",22,{"$f":"+VLOOKUP(F1127,TT_Tabelle_Riferimento!$D$127:$G$164,4,FALSE)","v":"Impianti di depurazione – trattamenti sino al secondario"},3,{"$f":"+VLOOKUP(H1127,TT_Tabelle_Riferimento!$F$3:$G$6,2,FALSE)","v":"Altri servizi idrici"},2029,{"$f":"+SUMIFS('PdI-crono_inv'!BL:BL,'PdI-crono_inv'!CF:CF,F1127,'PdI-crono_inv'!CE:CE,H1127,'PdI-crono_inv'!J:J,P1127,'PdI-crono_inv'!P:P,\"<>proprietario\")","v":0},null,{"$f":"+SUMIFS('PdI-crono_inv'!BM:BM,'PdI-crono_inv'!CF:CF,F1127,'PdI-crono_inv'!CE:CE,H1127,'PdI-crono_inv'!J:J,P1127,'PdI-crono_inv'!P:P,\"<>proprietario\")+S1127","v":0},null,null,"ENV",{"$f":"+VLOOKUP(F1127,TT_Tabelle_Riferimento!$D$127:$E$164,2,FALSE)","v":"Depurazione"},"",0]
[0,0,"Gestore",0,"IP",23,{"$f":"+VLOOKUP(F1128,TT_Tabelle_Riferimento!$D$127:$G$164,4,FALSE)","v":"Impianti di depurazione – trattamenti sino al terziario e terziario avanzato"},3,{"$f":"+VLOOKUP(H1128,TT_Tabelle_Riferimento!$F$3:$G$6,2,FALSE)","v":"Altri servizi idrici"},2029,{"$f":"+SUMIFS('PdI-crono_inv'!BL:BL,'PdI-crono_inv'!CF:CF,F1128,'PdI-crono_inv'!CE:CE,H1128,'PdI-crono_inv'!J:J,P1128,'PdI-crono_inv'!P:P,\"<>proprietario\")","v":0},null,{"$f":"+SUMIFS('PdI-crono_inv'!BM:BM,'PdI-crono_inv'!CF:CF,F1128,'PdI-crono_inv'!CE:CE,H1128,'PdI-crono_inv'!J:J,P1128,'PdI-crono_inv'!P:P,\"<>proprietario\")+S1128","v":0},null,null,"ENV",{"$f":"+VLOOKUP(F1128,TT_Tabelle_Riferimento!$D$127:$E$164,2,FALSE)","v":"Depurazione"},"",0]
[0,0,"Gestore",0,"IP",24,{"$f":"+VLOOKUP(F1129,TT_Tabelle_Riferimento!$D$127:$G$164,4,FALSE)","v":"Impianti di essiccamento fanghi e di valorizzazione dei fanghi (tra cui mono-incenerimento, pirolisi, gassificazione)"},3,{"$f":"+VLOOKUP(H1129,TT_Tabelle_Riferimento!$F$3:$G$6,2,FALSE)","v":"Altri servizi idrici"},2029,{"$f":"+SUMIFS('PdI-crono_inv'!BL:BL,'PdI-crono_inv'!CF:CF,F1129,'PdI-crono_inv'!CE:CE,H1129,'PdI-crono_inv'!J:J,P1129,'PdI-crono_inv'!P:P,\"<>proprietario\")","v":0},null,{"$f":"+SUMIFS('PdI-crono_inv'!BM:BM,'PdI-crono_inv'!CF:CF,F1129,'PdI-crono_inv'!CE:CE,H1129,'PdI-crono_inv'!J:J,P1129,'PdI-crono_inv'!P:P,\"<>proprietario\")+S1129","v":0},null,null,"ENV",{"$f":"+VLOOKUP(F1129,TT_Tabelle_Riferimento!$D$127:$E$164,2,FALSE)","v":"Depurazione"},"",0]
[0,0,"Gestore",0,"IP",25,{"$f":"+VLOOKUP(F1130,TT_Tabelle_Riferimento!$D$127:$G$164,4,FALSE)","v":"Gruppi di misura - altre attrezzature di depurazione"},3,{"$f":"+VLOOKUP(H1130,TT_Tabelle_Riferimento!$F$3:$G$6,2,FALSE)","v":"Altri servizi idrici"},2029,{"$f":"+SUMIFS('PdI-crono_inv'!BL:BL,'PdI-crono_inv'!CF:CF,F1130,'PdI-crono_inv'!CE:CE,H1130,'PdI-crono_inv'!J:J,P1130,'PdI-crono_inv'!P:P,\"<>proprietario\")","v":0},null,{"$f":"+SUMIFS('PdI-crono_inv'!BM:BM,'PdI-crono_inv'!CF:CF,F1130,'PdI-crono_inv'!CE:CE,H1130,'PdI-crono_inv'!J:J,P1130,'PdI-crono_inv'!P:P,\"<>proprietario\")+S1130","v":0},null,null,"ENV",{"$f":"+VLOOKUP(F1130,TT_Tabelle_Riferimento!$D$127:$E$164,2,FALSE)","v":"Depurazione"},"",0]
[0,0,"Gestore",0,"IP",26,{"$f":"+VLOOKUP(F1131,TT_Tabelle_Riferimento!$D$127:$G$164,4,FALSE)","v":"Sistemi informativi di depurazione"},3,{"$f":"+VLOOKUP(H1131,TT_Tabelle_Riferimento!$F$3:$G$6,2,FALSE)","v":"Altri servizi idrici"},2029,{"$f":"+SUMIFS('PdI-crono_inv'!BL:BL,'PdI-crono_inv'!CF:CF,F1131,'PdI-crono_inv'!CE:CE,H1131,'PdI-crono_inv'!J:J,P1131,'PdI-crono_inv'!P:P,\"<>proprietario\")","v":0},null,{"$f":"+SUMIFS('PdI-crono_inv'!BM:BM,'PdI-crono_inv'!CF:CF,F1131,'PdI-crono_inv'!CE:CE,H1131,'PdI-crono_inv'!J:J,P1131,'PdI-crono_inv'!P:P,\"<>proprietario\")+S1131","v":0},null,null,"ENV",{"$f":"+VLOOKUP(F1131,TT_Tabelle_Riferimento!$D$127:$E$164,2,FALSE)","v":"Depurazione"},"",0]
[0,0,"Gestore",0,"IP",27,{"$f":"+VLOOKUP(F1132,TT_Tabelle_Riferimento!$D$127:$G$164,4,FALSE)","v":"Telecontrollo e teletrasmissione di depurazione"},3,{"$f":"+VLOOKUP(H1132,TT_Tabelle_Riferimento!$F$3:$G$6,2,FALSE)","v":"Altri servizi idrici"},2029,{"$f":"+SUMIFS('PdI-crono_inv'!BL:BL,'PdI-crono_inv'!CF:CF,F1132,'PdI-crono_inv'!CE:CE,H1132,'PdI-crono_inv'!J:J,P1132,'PdI-crono_inv'!P:P,\"<>proprietario\")","v":0},null,{"$f":"+SUMIFS('PdI-crono_inv'!BM:BM,'PdI-crono_inv'!CF:CF,F1132,'PdI-crono_inv'!CE:CE,H1132,'PdI-crono_inv'!J:J,P1132,'PdI-crono_inv'!P:P,\"<>proprietario\")+S1132","v":0},null,null,"ENV",{"$f":"+VLOOKUP(F1132,TT_Tabelle_Riferimento!$D$127:$E$164,2,FALSE)","v":"Depurazione"},"",0]
[0,0,"Gestore",0,"IP",28,{"$f":"+VLOOKUP(F1133,TT_Tabelle_Riferimento!$D$127:$G$164,4,FALSE)","v":"Altri impianti"},3,{"$f":"+VLOOKUP(H1133,TT_Tabelle_Riferimento!$F$3:$G$6,2,FALSE)","v":"Altri servizi idrici"},2029,{"$f":"+SUMIFS('PdI-crono_inv'!BL:BL,'PdI-crono_inv'!CF:CF,F1133,'PdI-crono_inv'!CE:CE,H1133,'PdI-crono_inv'!J:J,P1133,'PdI-crono_inv'!P:P,\"<>proprietario\")","v":0},null,{"$f":"+SUMIFS('PdI-crono_inv'!BM:BM,'PdI-crono_inv'!CF:CF,F1133,'PdI-crono_inv'!CE:CE,H1133,'PdI-crono_inv'!J:J,P1133,'PdI-crono_inv'!P:P,\"<>proprietario\")+S1133","v":0},null,null,"ENV",{"$f":"+VLOOKUP(F1133,TT_Tabelle_Riferimento!$D$127:$E$164,2,FALSE)","v":"Comune"},"",0]
[0,0,"Gestore",0,"IP",29,{"$f":"+VLOOKUP(F1134,TT_Tabelle_Riferimento!$D$127:$G$164,4,FALSE)","v":"Laboratori e attrezzature"},3,{"$f":"+VLOOKUP(H1134,TT_Tabelle_Riferimento!$F$3:$G$6,2,FALSE)","v":"Altri servizi idrici"},2029,{"$f":"+SUMIFS('PdI-crono_inv'!BL:BL,'PdI-crono_inv'!CF:CF,F1134,'PdI-crono_inv'!CE:CE,H1134,'PdI-crono_inv'!J:J,P1134,'PdI-crono_inv'!P:P,\"<>proprietario\")","v":0},null,{"$f":"+SUMIFS('PdI-crono_inv'!BM:BM,'PdI-crono_inv'!CF:CF,F1134,'PdI-crono_inv'!CE:CE,H1134,'PdI-crono_inv'!J:J,P1134,'PdI-crono_inv'!P:P,\"<>proprietario\")+S1134","v":0},null,null,"ENV",{"$f":"+VLOOKUP(F1134,TT_Tabelle_Riferimento!$D$127:$E$164,2,FALSE)","v":"Comune"},{"$f":"+IF(SUM(K1134:N1134)=0,\"\",\"PdI_consolidamento\")","v":""},0]
[0,0,"Gestore",0,"IP",30,{"$f":"+VLOOKUP(F1135,TT_Tabelle_Riferimento!$D$127:$G$164,4,FALSE)","v":"Sistemi informativi"},3,{"$f":"+VLOOKUP(H1135,TT_Tabelle_Riferimento!$F$3:$G$6,2,FALSE)","v":"Altri servizi idrici"},2029,{"$f":"+SUMIFS('PdI-crono_inv'!BL:BL,'PdI-crono_inv'!CF:CF,F1135,'PdI-crono_inv'!CE:CE,H1135,'PdI-crono_inv'!J:J,P1135,'PdI-crono_inv'!P:P,\"<>proprietario\")","v":0},null,{"$f":"+SUMIFS('PdI-crono_inv'!BM:BM,'PdI-crono_inv'!CF:CF,F1135,'PdI-crono_inv'!CE:CE,H1135,'PdI-crono_inv'!J:J,P1135,'PdI-crono_inv'!P:P,\"<>proprietario\")+S1135","v":0},null,null,"ENV",{"$f":"+VLOOKUP(F1135,TT_Tabelle_Riferimento!$D$127:$E$164,2,FALSE)","v":"Comune"},"",0]
[0,0,"Gestore",0,"IP",31,{"$f":"+VLOOKUP(F1136,TT_Tabelle_Riferimento!$D$127:$G$164,4,FALSE)","v":"Telecontrollo e teletrasmissione"},3,{"$f":"+VLOOKUP(H1136,TT_Tabelle_Riferimento!$F$3:$G$6,2,FALSE)","v":"Altri servizi idrici"},2029,{"$f":"+SUMIFS('PdI-crono_inv'!BL:BL,'PdI-crono_inv'!CF:CF,F1136,'PdI-crono_inv'!CE:CE,H1136,'PdI-crono_inv'!J:J,P1136,'PdI-crono_inv'!P:P,\"<>proprietario\")","v":0},null,{"$f":"+SUMIFS('PdI-crono_inv'!BM:BM,'PdI-crono_inv'!CF:CF,F1136,'PdI-crono_inv'!CE:CE,H1136,'PdI-crono_inv'!J:J,P1136,'PdI-crono_inv'!P:P,\"<>proprietario\")+S1136","v":0},null,null,"ENV",{"$f":"+VLOOKUP(F1136,TT_Tabelle_Riferimento!$D$127:$E$164,2,FALSE)","v":"Comune"},"",0]
[0,0,"Gestore",0,"IP",32,{"$f":"+VLOOKUP(F1137,TT_Tabelle_Riferimento!$D$127:$G$164,4,FALSE)","v":"Autoveicoli - automezzi"},3,{"$f":"+VLOOKUP(H1137,TT_Tabelle_Riferimento!$F$3:$G$6,2,FALSE)","v":"Altri servizi idrici"},2029,{"$f":"+SUMIFS('PdI-crono_inv'!BL:BL,'PdI-crono_inv'!CF:CF,F1137,'PdI-crono_inv'!CE:CE,H1137,'PdI-crono_inv'!J:J,P1137,'PdI-crono_inv'!P:P,\"<>proprietario\")","v":0},null,{"$f":"+SUMIFS('PdI-crono_inv'!BM:BM,'PdI-crono_inv'!CF:CF,F1137,'PdI-crono_inv'!CE:CE,H1137,'PdI-crono_inv'!J:J,P1137,'PdI-crono_inv'!P:P,\"<>proprietario\")+S1137","v":0},null,null,"ENV",{"$f":"+VLOOKUP(F1137,TT_Tabelle_Riferimento!$D$127:$E$164,2,FALSE)","v":"Comune"},"",0]
[0,0,"Gestore",0,"IP",1,{"$f":"+VLOOKUP(F1138,TT_Tabelle_Riferimento!$D$127:$G$164,4,FALSE)","v":"Terreni"},3,{"$f":"+VLOOKUP(H1138,TT_Tabelle_Riferimento!$F$3:$G$6,2,FALSE)","v":"Altri servizi idrici"},2029,{"$f":"+SUMIFS('PdI-crono_inv'!BL:BL,'PdI-crono_inv'!CF:CF,F1138,'PdI-crono_inv'!CE:CE,H1138,'PdI-crono_inv'!J:J,P1138,'PdI-crono_inv'!P:P,\"<>proprietario\")","v":0},null,{"$f":"+SUMIFS('PdI-crono_inv'!BM:BM,'PdI-crono_inv'!CF:CF,F1138,'PdI-crono_inv'!CE:CE,H1138,'PdI-crono_inv'!J:J,P1138,'PdI-crono_inv'!P:P,\"<>proprietario\")+S1138","v":0},null,null,"ENV",{"$f":"+VLOOKUP(F1138,TT_Tabelle_Riferimento!$D$127:$E$164,2,FALSE)","v":"Comune"},"",0]
[0,0,"Gestore",0,"IP",33,{"$f":"+VLOOKUP(F1139,TT_Tabelle_Riferimento!$D$127:$G$164,4,FALSE)","v":"Fabbricati non industriali"},3,{"$f":"+VLOOKUP(H1139,TT_Tabelle_Riferimento!$F$3:$G$6,2,FALSE)","v":"Altri servizi idrici"},2029,{"$f":"+SUMIFS('PdI-crono_inv'!BL:BL,'PdI-crono_inv'!CF:CF,F1139,'PdI-crono_inv'!CE:CE,H1139,'PdI-crono_inv'!J:J,P1139,'PdI-crono_inv'!P:P,\"<>proprietario\")","v":0},null,{"$f":"+SUMIFS('PdI-crono_inv'!BM:BM,'PdI-crono_inv'!CF:CF,F1139,'PdI-crono_inv'!CE:CE,H1139,'PdI-crono_inv'!J:J,P1139,'PdI-crono_inv'!P:P,\"<>proprietario\")+S1139","v":0},null,null,"ENV",{"$f":"+VLOOKUP(F1139,TT_Tabelle_Riferimento!$D$127:$E$164,2,FALSE)","v":"Comune"},"",0]
[0,0,"Gestore",0,"IP",34,{"$f":"+VLOOKUP(F1140,TT_Tabelle_Riferimento!$D$127:$G$164,4,FALSE)","v":"Fabbricati industriali"},3,{"$f":"+VLOOKUP(H1140,TT_Tabelle_Riferimento!$F$3:$G$6,2,FALSE)","v":"Altri servizi idrici"},2029,{"$f":"+SUMIFS('PdI-crono_inv'!BL:BL,'PdI-crono_inv'!CF:CF,F1140,'PdI-crono_inv'!CE:CE,H1140,'PdI-crono_inv'!J:J,P1140,'PdI-crono_inv'!P:P,\"<>proprietario\")","v":0},null,{"$f":"+SUMIFS('PdI-crono_inv'!BM:BM,'PdI-crono_inv'!CF:CF,F1140,'PdI-crono_inv'!CE:CE,H1140,'PdI-crono_inv'!J:J,P1140,'PdI-crono_inv'!P:P,\"<>proprietario\")+S1140","v":0},null,null,"ENV",{"$f":"+VLOOKUP(F1140,TT_Tabelle_Riferimento!$D$127:$E$164,2,FALSE)","v":"Comune"},"",0]
[0,0,"Gestore",0,"IP",35,{"$f":"+VLOOKUP(F1141,TT_Tabelle_Riferimento!$D$127:$G$164,4,FALSE)","v":"Costruzioni leggere"},3,{"$f":"+VLOOKUP(H1141,TT_Tabelle_Riferimento!$F$3:$G$6,2,FALSE)","v":"Altri servizi idrici"},2029,{"$f":"+SUMIFS('PdI-crono_inv'!BL:BL,'PdI-crono_inv'!CF:CF,F1141,'PdI-crono_inv'!CE:CE,H1141,'PdI-crono_inv'!J:J,P1141,'PdI-crono_inv'!P:P,\"<>proprietario\")","v":0},null,{"$f":"+SUMIFS('PdI-crono_inv'!BM:BM,'PdI-crono_inv'!CF:CF,F1141,'PdI-crono_inv'!CE:CE,H1141,'PdI-crono_inv'!J:J,P1141,'PdI-crono_inv'!P:P,\"<>proprietario\")+S1141","v":0},null,null,"ENV",{"$f":"+VLOOKUP(F1141,TT_Tabelle_Riferimento!$D$127:$E$164,2,FALSE)","v":"Comune"},"",0]
[0,0,"Gestore",0,"IP",36,{"$f":"+VLOOKUP(F1142,TT_Tabelle_Riferimento!$D$127:$G$164,4,FALSE)","v":"Studi, ricerche, brevetti, diritti di utilizzazione"},3,{"$f":"+VLOOKUP(H1142,TT_Tabelle_Riferimento!$F$3:$G$6,2,FALSE)","v":"Altri servizi idrici"},2029,{"$f":"+SUMIFS('PdI-crono_inv'!BL:BL,'PdI-crono_inv'!CF:CF,F1142,'PdI-crono_inv'!CE:CE,H1142,'PdI-crono_inv'!J:J,P1142,'PdI-crono_inv'!P:P,\"<>proprietario\")","v":0},null,{"$f":"+SUMIFS('PdI-crono_inv'!BM:BM,'PdI-crono_inv'!CF:CF,F1142,'PdI-crono_inv'!CE:CE,H1142,'PdI-crono_inv'!J:J,P1142,'PdI-crono_inv'!P:P,\"<>proprietario\")+S1142","v":0},null,null,"ENV",{"$f":"+VLOOKUP(F1142,TT_Tabelle_Riferimento!$D$127:$E$164,2,FALSE)","v":"Comune"},"",0]
[0,0,"Gestore",0,"IP",37,{"$f":"+VLOOKUP(F1143,TT_Tabelle_Riferimento!$D$127:$G$164,4,FALSE)","v":"Altre immobilizzazioni materiali e immateriali"},3,{"$f":"+VLOOKUP(H1143,TT_Tabelle_Riferimento!$F$3:$G$6,2,FALSE)","v":"Altri servizi idrici"},2029,{"$f":"+SUMIFS('PdI-crono_inv'!BL:BL,'PdI-crono_inv'!CF:CF,F1143,'PdI-crono_inv'!CE:CE,H1143,'PdI-crono_inv'!J:J,P1143,'PdI-crono_inv'!P:P,\"<>proprietario\")","v":0},null,{"$f":"+SUMIFS('PdI-crono_inv'!BM:BM,'PdI-crono_inv'!CF:CF,F1143,'PdI-crono_inv'!CE:CE,H1143,'PdI-crono_inv'!J:J,P1143,'PdI-crono_inv'!P:P,\"<>proprietario\")+S1143","v":0},null,null,"ENV",{"$f":"+VLOOKUP(F1143,TT_Tabelle_Riferimento!$D$127:$E$164,2,FALSE)","v":"Comune"},"",0]
[0,0,"Gestore",0,"IP",38,{"$f":"+VLOOKUP(F1144,TT_Tabelle_Riferimento!$D$127:$G$164,4,FALSE)","v":"Grandi dighe (sbarramenti che superano i quindici metri di altezza o che determinano un invaso superiore a 1 milione di metri cubi)"},3,{"$f":"+VLOOKUP(H1144,TT_Tabelle_Riferimento!$F$3:$G$6,2,FALSE)","v":"Altri servizi idrici"},2029,{"$f":"+SUMIFS('PdI-crono_inv'!BL:BL,'PdI-crono_inv'!CF:CF,F1144,'PdI-crono_inv'!CE:CE,H1144,'PdI-crono_inv'!J:J,P1144,'PdI-crono_inv'!P:P,\"<>proprietario\")","v":0},null,{"$f":"+SUMIFS('PdI-crono_inv'!BM:BM,'PdI-crono_inv'!CF:CF,F1144,'PdI-crono_inv'!CE:CE,H1144,'PdI-crono_inv'!J:J,P1144,'PdI-crono_inv'!P:P,\"<>proprietario\")+S1144","v":0},null,null,"ENV",{"$f":"+VLOOKUP(F1144,TT_Tabelle_Riferimento!$D$127:$E$164,2,FALSE)","v":"Acquedotto"},"",0]
[0,0,"Gestore",0,"IP",39,{"$f":"+VLOOKUP(F1145,TT_Tabelle_Riferimento!$D$127:$G$164,4,FALSE)","v":"Piccole dighe (sbarramenti che non superano i quindici metri di altezza o che determinano un invaso non superiore a 1 milione di metri cubi)"},3,{"$f":"+VLOOKUP(H1145,TT_Tabelle_Riferimento!$F$3:$G$6,2,FALSE)","v":"Altri servizi idrici"},2029,{"$f":"+SUMIFS('PdI-crono_inv'!BL:BL,'PdI-crono_inv'!CF:CF,F1145,'PdI-crono_inv'!CE:CE,H1145,'PdI-crono_inv'!J:J,P1145,'PdI-crono_inv'!P:P,\"<>proprietario\")","v":0},null,{"$f":"+SUMIFS('PdI-crono_inv'!BM:BM,'PdI-crono_inv'!CF:CF,F1145,'PdI-crono_inv'!CE:CE,H1145,'PdI-crono_inv'!J:J,P1145,'PdI-crono_inv'!P:P,\"<>proprietario\")+S1145","v":0},null,null,"ENV",{"$f":"+VLOOKUP(F1145,TT_Tabelle_Riferimento!$D$127:$E$164,2,FALSE)","v":"Acquedotto"},"",0]
[0,0,"Gestore",0,"IP",2,{"$f":"+VLOOKUP(F1146,TT_Tabelle_Riferimento!$D$127:$G$164,4,FALSE)","v":"Condotte di acquedotto"},1,{"$f":"+VLOOKUP(H1146,TT_Tabelle_Riferimento!$F$3:$G$6,2,FALSE)","v":"Servizio idrico integrato"},2029,{"$f":"+SUMIFS('PdI-crono_inv'!BL:BL,'PdI-crono_inv'!CF:CF,F1146,'PdI-crono_inv'!CE:CE,H1146,'PdI-crono_inv'!J:J,P1146,'PdI-crono_inv'!P:P,\"<>proprietario\")","v":0},null,{"$f":"+SUMIFS('PdI-crono_inv'!BM:BM,'PdI-crono_inv'!CF:CF,F1146,'PdI-crono_inv'!CE:CE,H1146,'PdI-crono_inv'!J:J,P1146,'PdI-crono_inv'!P:P,\"<>proprietario\")+S1146","v":0},null,null,"RES",{"$f":"+VLOOKUP(F1146,TT_Tabelle_Riferimento!$D$127:$E$164,2,FALSE)","v":"Acquedotto"},"",0]
[0,0,"Gestore",0,"IP",3,{"$f":"+VLOOKUP(F1147,TT_Tabelle_Riferimento!$D$127:$G$164,4,FALSE)","v":"Opere idrauliche fisse di acquedotto"},1,{"$f":"+VLOOKUP(H1147,TT_Tabelle_Riferimento!$F$3:$G$6,2,FALSE)","v":"Servizio idrico integrato"},2029,{"$f":"+SUMIFS('PdI-crono_inv'!BL:BL,'PdI-crono_inv'!CF:CF,F1147,'PdI-crono_inv'!CE:CE,H1147,'PdI-crono_inv'!J:J,P1147,'PdI-crono_inv'!P:P,\"<>proprietario\")","v":0},null,{"$f":"+SUMIFS('PdI-crono_inv'!BM:BM,'PdI-crono_inv'!CF:CF,F1147,'PdI-crono_inv'!CE:CE,H1147,'PdI-crono_inv'!J:J,P1147,'PdI-crono_inv'!P:P,\"<>proprietario\")+S1147","v":0},null,null,"RES",{"$f":"+VLOOKUP(F1147,TT_Tabelle_Riferimento!$D$127:$E$164,2,FALSE)","v":"Acquedotto"},"",0]
[0,0,"Gestore",0,"IP",4,{"$f":"+VLOOKUP(F1148,TT_Tabelle_Riferimento!$D$127:$G$164,4,FALSE)","v":"Serbatoi"},1,{"$f":"+VLOOKUP(H1148,TT_Tabelle_Riferimento!$F$3:$G$6,2,FALSE)","v":"Servizio idrico integrato"},2029,{"$f":"+SUMIFS('PdI-crono_inv'!BL:BL,'PdI-crono_inv'!CF:CF,F1148,'PdI-crono_inv'!CE:CE,H1148,'PdI-crono_inv'!J:J,P1148,'PdI-crono_inv'!P:P,\"<>proprietario\")","v":0},null,{"$f":"+SUMIFS('PdI-crono_inv'!BM:BM,'PdI-crono_inv'!CF:CF,F1148,'PdI-crono_inv'!CE:CE,H1148,'PdI-crono_inv'!J:J,P1148,'PdI-crono_inv'!P:P,\"<>proprietario\")+S1148","v":0},null,null,"RES",{"$f":"+VLOOKUP(F1148,TT_Tabelle_Riferimento!$D$127:$E$164,2,FALSE)","v":"Acquedotto"},"",0]
[0,0,"Gestore",0,"IP",5,{"$f":"+VLOOKUP(F1149,TT_Tabelle_Riferimento!$D$127:$G$164,4,FALSE)","v":"Impianti di sollevamento e pompaggio di acquedotto"},1,{"$f":"+VLOOKUP(H1149,TT_Tabelle_Riferimento!$F$3:$G$6,2,FALSE)","v":"Servizio idrico integrato"},2029,{"$f":"+SUMIFS('PdI-crono_inv'!BL:BL,'PdI-crono_inv'!CF:CF,F1149,'PdI-crono_inv'!CE:CE,H1149,'PdI-crono_inv'!J:J,P1149,'PdI-crono_inv'!P:P,\"<>proprietario\")","v":0},null,{"$f":"+SUMIFS('PdI-crono_inv'!BM:BM,'PdI-crono_inv'!CF:CF,F1149,'PdI-crono_inv'!CE:CE,H1149,'PdI-crono_inv'!J:J,P1149,'PdI-crono_inv'!P:P,\"<>proprietario\")+S1149","v":0},null,null,"RES",{"$f":"+VLOOKUP(F1149,TT_Tabelle_Riferimento!$D$127:$E$164,2,FALSE)","v":"Acquedotto"},"",0]
[0,0,"Gestore",0,"IP",6,{"$f":"+VLOOKUP(F1150,TT_Tabelle_Riferimento!$D$127:$G$164,4,FALSE)","v":"Impianti di potabilizzazione"},1,{"$f":"+VLOOKUP(H1150,TT_Tabelle_Riferimento!$F$3:$G$6,2,FALSE)","v":"Servizio idrico integrato"},2029,{"$f":"+SUMIFS('PdI-crono_inv'!BL:BL,'PdI-crono_inv'!CF:CF,F1150,'PdI-crono_inv'!CE:CE,H1150,'PdI-crono_inv'!J:J,P1150,'PdI-crono_inv'!P:P,\"<>proprietario\")","v":0},null,{"$f":"+SUMIFS('PdI-crono_inv'!BM:BM,'PdI-crono_inv'!CF:CF,F1150,'PdI-crono_inv'!CE:CE,H1150,'PdI-crono_inv'!J:J,P1150,'PdI-crono_inv'!P:P,\"<>proprietario\")+S1150","v":0},null,null,"RES",{"$f":"+VLOOKUP(F1150,TT_Tabelle_Riferimento!$D$127:$E$164,2,FALSE)","v":"Acquedotto"},"",0]
[0,0,"Gestore",0,"IP",7,{"$f":"+VLOOKUP(F1151,TT_Tabelle_Riferimento!$D$127:$G$164,4,FALSE)","v":"Altri trattamenti di potabilizzazione (tra cui dispositivi di disinfezione, stacciatura, filtrazione, addolcimento)"},1,{"$f":"+VLOOKUP(H1151,TT_Tabelle_Riferimento!$F$3:$G$6,2,FALSE)","v":"Servizio idrico integrato"},2029,{"$f":"+SUMIFS('PdI-crono_inv'!BL:BL,'PdI-crono_inv'!CF:CF,F1151,'PdI-crono_inv'!CE:CE,H1151,'PdI-crono_inv'!J:J,P1151,'PdI-crono_inv'!P:P,\"<>proprietario\")","v":0},null,{"$f":"+SUMIFS('PdI-crono_inv'!BM:BM,'PdI-crono_inv'!CF:CF,F1151,'PdI-crono_inv'!CE:CE,H1151,'PdI-crono_inv'!J:J,P1151,'PdI-crono_inv'!P:P,\"<>proprietario\")+S1151","v":0},null,null,"RES",{"$f":"+VLOOKUP(F1151,TT_Tabelle_Riferimento!$D$127:$E$164,2,FALSE)","v":"Acquedotto"},"",0]
[0,0,"Gestore",0,"IP",8,{"$f":"+VLOOKUP(F1152,TT_Tabelle_Riferimento!$D$127:$G$164,4,FALSE)","v":"Gruppi di misura - altre attrezzature di acquedotto"},1,{"$f":"+VLOOKUP(H1152,TT_Tabelle_Riferimento!$F$3:$G$6,2,FALSE)","v":"Servizio idrico integrato"},2029,{"$f":"+SUMIFS('PdI-crono_inv'!BL:BL,'PdI-crono_inv'!CF:CF,F1152,'PdI-crono_inv'!CE:CE,H1152,'PdI-crono_inv'!J:J,P1152,'PdI-crono_inv'!P:P,\"<>proprietario\")","v":0},null,{"$f":"+SUMIFS('PdI-crono_inv'!BM:BM,'PdI-crono_inv'!CF:CF,F1152,'PdI-crono_inv'!CE:CE,H1152,'PdI-crono_inv'!J:J,P1152,'PdI-crono_inv'!P:P,\"<>proprietario\")+S1152","v":0},null,null,"RES",{"$f":"+VLOOKUP(F1152,TT_Tabelle_Riferimento!$D$127:$E$164,2,FALSE)","v":"Acquedotto"},"",0]
[0,0,"Gestore",0,"IP",9,{"$f":"+VLOOKUP(F1153,TT_Tabelle_Riferimento!$D$127:$G$164,4,FALSE)","v":"Sistemi informativi di acquedotto"},1,{"$f":"+VLOOKUP(H1153,TT_Tabelle_Riferimento!$F$3:$G$6,2,FALSE)","v":"Servizio idrico integrato"},2029,{"$f":"+SUMIFS('PdI-crono_inv'!BL:BL,'PdI-crono_inv'!CF:CF,F1153,'PdI-crono_inv'!CE:CE,H1153,'PdI-crono_inv'!J:J,P1153,'PdI-crono_inv'!P:P,\"<>proprietario\")","v":0},null,{"$f":"+SUMIFS('PdI-crono_inv'!BM:BM,'PdI-crono_inv'!CF:CF,F1153,'PdI-crono_inv'!CE:CE,H1153,'PdI-crono_inv'!J:J,P1153,'PdI-crono_inv'!P:P,\"<>proprietario\")+S1153","v":0},null,null,"RES",{"$f":"+VLOOKUP(F1153,TT_Tabelle_Riferimento!$D$127:$E$164,2,FALSE)","v":"Acquedotto"},"",0]
[0,0,"Gestore",0,"IP",10,{"$f":"+VLOOKUP(F1154,TT_Tabelle_Riferimento!$D$127:$G$164,4,FALSE)","v":"Telecontrollo e teletrasmissione di acquedotto"},1,{"$f":"+VLOOKUP(H1154,TT_Tabelle_Riferimento!$F$3:$G$6,2,FALSE)","v":"Servizio idrico integrato"},2029,{"$f":"+SUMIFS('PdI-crono_inv'!BL:BL,'PdI-crono_inv'!CF:CF,F1154,'PdI-crono_inv'!CE:CE,H1154,'PdI-crono_inv'!J:J,P1154,'PdI-crono_inv'!P:P,\"<>proprietario\")","v":0},null,{"$f":"+SUMIFS('PdI-crono_inv'!BM:BM,'PdI-crono_inv'!CF:CF,F1154,'PdI-crono_inv'!CE:CE,H1154,'PdI-crono_inv'!J:J,P1154,'PdI-crono_inv'!P:P,\"<>proprietario\")+S1154","v":0},null,null,"RES",{"$f":"+VLOOKUP(F1154,TT_Tabelle_Riferimento!$D$127:$E$164,2,FALSE)","v":"Acquedotto"},"",0]
[0,0,"Gestore",0,"IP",11,{"$f":"+VLOOKUP(F1155,TT_Tabelle_Riferimento!$D$127:$G$164,4,FALSE)","v":"Condotte fognarie"},1,{"$f":"+VLOOKUP(H1155,TT_Tabelle_Riferimento!$F$3:$G$6,2,FALSE)","v":"Servizio idrico integrato"},2029,{"$f":"+SUMIFS('PdI-crono_inv'!BL:BL,'PdI-crono_inv'!CF:CF,F1155,'PdI-crono_inv'!CE:CE,H1155,'PdI-crono_inv'!J:J,P1155,'PdI-crono_inv'!P:P,\"<>proprietario\")","v":0},null,{"$f":"+SUMIFS('PdI-crono_inv'!BM:BM,'PdI-crono_inv'!CF:CF,F1155,'PdI-crono_inv'!CE:CE,H1155,'PdI-crono_inv'!J:J,P1155,'PdI-crono_inv'!P:P,\"<>proprietario\")+S1155","v":0},null,null,"RES",{"$f":"+VLOOKUP(F1155,TT_Tabelle_Riferimento!$D$127:$E$164,2,FALSE)","v":"Fognatura"},"",0]
[0,0,"Gestore",0,"IP",12,{"$f":"+VLOOKUP(F1156,TT_Tabelle_Riferimento!$D$127:$G$164,4,FALSE)","v":"Sifoni e scaricatori di piena e altre opere idrauliche fisse di fognatura"},1,{"$f":"+VLOOKUP(H1156,TT_Tabelle_Riferimento!$F$3:$G$6,2,FALSE)","v":"Servizio idrico integrato"},2029,{"$f":"+SUMIFS('PdI-crono_inv'!BL:BL,'PdI-crono_inv'!CF:CF,F1156,'PdI-crono_inv'!CE:CE,H1156,'PdI-crono_inv'!J:J,P1156,'PdI-crono_inv'!P:P,\"<>proprietario\")","v":0},null,{"$f":"+SUMIFS('PdI-crono_inv'!BM:BM,'PdI-crono_inv'!CF:CF,F1156,'PdI-crono_inv'!CE:CE,H1156,'PdI-crono_inv'!J:J,P1156,'PdI-crono_inv'!P:P,\"<>proprietario\")+S1156","v":0},null,null,"RES",{"$f":"+VLOOKUP(F1156,TT_Tabelle_Riferimento!$D$127:$E$164,2,FALSE)","v":"Fognatura"},"",0]
[0,0,"Gestore",0,"IP",13,{"$f":"+VLOOKUP(F1157,TT_Tabelle_Riferimento!$D$127:$G$164,4,FALSE)","v":"Vasche di laminazione e vasche di prima pioggia"},1,{"$f":"+VLOOKUP(H1157,TT_Tabelle_Riferimento!$F$3:$G$6,2,FALSE)","v":"Servizio idrico integrato"},2029,{"$f":"+SUMIFS('PdI-crono_inv'!BL:BL,'PdI-crono_inv'!CF:CF,F1157,'PdI-crono_inv'!CE:CE,H1157,'PdI-crono_inv'!J:J,P1157,'PdI-crono_inv'!P:P,\"<>proprietario\")","v":0},null,{"$f":"+SUMIFS('PdI-crono_inv'!BM:BM,'PdI-crono_inv'!CF:CF,F1157,'PdI-crono_inv'!CE:CE,H1157,'PdI-crono_inv'!J:J,P1157,'PdI-crono_inv'!P:P,\"<>proprietario\")+S1157","v":0},null,null,"RES",{"$f":"+VLOOKUP(F1157,TT_Tabelle_Riferimento!$D$127:$E$164,2,FALSE)","v":"Fognatura"},"",0]
[0,0,"Gestore",0,"IP",14,{"$f":"+VLOOKUP(F1158,TT_Tabelle_Riferimento!$D$127:$G$164,4,FALSE)","v":"Impianti di sollevamento e pompaggio di fognatura"},1,{"$f":"+VLOOKUP(H1158,TT_Tabelle_Riferimento!$F$3:$G$6,2,FALSE)","v":"Servizio idrico integrato"},2029,{"$f":"+SUMIFS('PdI-crono_inv'!BL:BL,'PdI-crono_inv'!CF:CF,F1158,'PdI-crono_inv'!CE:CE,H1158,'PdI-crono_inv'!J:J,P1158,'PdI-crono_inv'!P:P,\"<>proprietario\")","v":0},null,{"$f":"+SUMIFS('PdI-crono_inv'!BM:BM,'PdI-crono_inv'!CF:CF,F1158,'PdI-crono_inv'!CE:CE,H1158,'PdI-crono_inv'!J:J,P1158,'PdI-crono_inv'!P:P,\"<>proprietario\")+S1158","v":0},null,null,"RES",{"$f":"+VLOOKUP(F1158,TT_Tabelle_Riferimento!$D$127:$E$164,2,FALSE)","v":"Fognatura"},"",0]
[0,0,"Gestore",0,"IP",15,{"$f":"+VLOOKUP(F1159,TT_Tabelle_Riferimento!$D$127:$G$164,4,FALSE)","v":"Gruppi di misura - altre attrezzature di fognatura"},1,{"$f":"+VLOOKUP(H1159,TT_Tabelle_Riferimento!$F$3:$G$6,2,FALSE)","v":"Servizio idrico integrato"},2029,{"$f":"+SUMIFS('PdI-crono_inv'!BL:BL,'PdI-crono_inv'!CF:CF,F1159,'PdI-crono_inv'!CE:CE,H1159,'PdI-crono_inv'!J:J,P1159,'PdI-crono_inv'!P:P,\"<>proprietario\")","v":0},null,{"$f":"+SUMIFS('PdI-crono_inv'!BM:BM,'PdI-crono_inv'!CF:CF,F1159,'PdI-crono_inv'!CE:CE,H1159,'PdI-crono_inv'!J:J,P1159,'PdI-crono_inv'!P:P,\"<>proprietario\")+S1159","v":0},null,null,"RES",{"$f":"+VLOOKUP(F1159,TT_Tabelle_Riferimento!$D$127:$E$164,2,FALSE)","v":"Fognatura"},"",{"$f":"+IFERROR(HLOOKUP(J1159,$X$2:$Y$5,4,FALSE)*K1159,0)","v":0}]
[0,0,"Gestore",0,"IP",16,{"$f":"+VLOOKUP(F1160,TT_Tabelle_Riferimento!$D$127:$G$164,4,FALSE)","v":"Sistemi informativi di fognatura"},1,{"$f":"+VLOOKUP(H1160,TT_Tabelle_Riferimento!$F$3:$G$6,2,FALSE)","v":"Servizio idrico integrato"},2029,{"$f":"+SUMIFS('PdI-crono_inv'!BL:BL,'PdI-crono_inv'!CF:CF,F1160,'PdI-crono_inv'!CE:CE,H1160,'PdI-crono_inv'!J:J,P1160,'PdI-crono_inv'!P:P,\"<>proprietario\")","v":0},null,{"$f":"+SUMIFS('PdI-crono_inv'!BM:BM,'PdI-crono_inv'!CF:CF,F1160,'PdI-crono_inv'!CE:CE,H1160,'PdI-crono_inv'!J:J,P1160,'PdI-crono_inv'!P:P,\"<>proprietario\")+S1160","v":0},null,null,"RES",{"$f":"+VLOOKUP(F1160,TT_Tabelle_Riferimento!$D$127:$E$164,2,FALSE)","v":"Fognatura"},"",0]
[0,0,"Gestore",0,"IP",18,{"$f":"+VLOOKUP(F1161,TT_Tabelle_Riferimento!$D$127:$G$164,4,FALSE)","v":"Telecontrollo e teletrasmissione di fognatura"},1,{"$f":"+VLOOKUP(H1161,TT_Tabelle_Riferimento!$F$3:$G$6,2,FALSE)","v":"Servizio idrico integrato"},2029,{"$f":"+SUMIFS('PdI-crono_inv'!BL:BL,'PdI-crono_inv'!CF:CF,F1161,'PdI-crono_inv'!CE:CE,H1161,'PdI-crono_inv'!J:J,P1161,'PdI-crono_inv'!P:P,\"<>proprietario\")","v":0},null,{"$f":"+SUMIFS('PdI-crono_inv'!BM:BM,'PdI-crono_inv'!CF:CF,F1161,'PdI-crono_inv'!CE:CE,H1161,'PdI-crono_inv'!J:J,P1161,'PdI-crono_inv'!P:P,\"<>proprietario\")+S1161","v":0},null,null,"RES",{"$f":"+VLOOKUP(F1161,TT_Tabelle_Riferimento!$D$127:$E$164,2,FALSE)","v":"Fognatura"},"",0]
[0,0,"Gestore",0,"IP",19,{"$f":"+VLOOKUP(F1162,TT_Tabelle_Riferimento!$D$127:$G$164,4,FALSE)","v":"Impianti di sollevamento e pompaggio di depurazione"},1,{"$f":"+VLOOKUP(H1162,TT_Tabelle_Riferimento!$F$3:$G$6,2,FALSE)","v":"Servizio idrico integrato"},2029,{"$f":"+SUMIFS('PdI-crono_inv'!BL:BL,'PdI-crono_inv'!CF:CF,F1162,'PdI-crono_inv'!CE:CE,H1162,'PdI-crono_inv'!J:J,P1162,'PdI-crono_inv'!P:P,\"<>proprietario\")","v":0},null,{"$f":"+SUMIFS('PdI-crono_inv'!BM:BM,'PdI-crono_inv'!CF:CF,F1162,'PdI-crono_inv'!CE:CE,H1162,'PdI-crono_inv'!J:J,P1162,'PdI-crono_inv'!P:P,\"<>proprietario\")+S1162","v":0},null,null,"RES",{"$f":"+VLOOKUP(F1162,TT_Tabelle_Riferimento!$D$127:$E$164,2,FALSE)","v":"Depurazione"},"",0]
[0,0,"Gestore",0,"IP",20,{"$f":"+VLOOKUP(F1163,TT_Tabelle_Riferimento!$D$127:$G$164,4,FALSE)","v":"Tecniche naturali di depurazione (tra cui fitodepurazione e lagunaggio)"},1,{"$f":"+VLOOKUP(H1163,TT_Tabelle_Riferimento!$F$3:$G$6,2,FALSE)","v":"Servizio idrico integrato"},2029,{"$f":"+SUMIFS('PdI-crono_inv'!BL:BL,'PdI-crono_inv'!CF:CF,F1163,'PdI-crono_inv'!CE:CE,H1163,'PdI-crono_inv'!J:J,P1163,'PdI-crono_inv'!P:P,\"<>proprietario\")","v":0},null,{"$f":"+SUMIFS('PdI-crono_inv'!BM:BM,'PdI-crono_inv'!CF:CF,F1163,'PdI-crono_inv'!CE:CE,H1163,'PdI-crono_inv'!J:J,P1163,'PdI-crono_inv'!P:P,\"<>proprietario\")+S1163","v":0},null,null,"RES",{"$f":"+VLOOKUP(F1163,TT_Tabelle_Riferimento!$D$127:$E$164,2,FALSE)","v":"Depurazione"},"",0]
[0,0,"Gestore",0,"IP",21,{"$f":"+VLOOKUP(F1164,TT_Tabelle_Riferimento!$D$127:$G$164,4,FALSE)","v":"Impianti di depurazione – trattamenti sino al preliminare, integrativo, primario - fosse settiche e fosse Imhoff"},1,{"$f":"+VLOOKUP(H1164,TT_Tabelle_Riferimento!$F$3:$G$6,2,FALSE)","v":"Servizio idrico integrato"},2029,{"$f":"+SUMIFS('PdI-crono_inv'!BL:BL,'PdI-crono_inv'!CF:CF,F1164,'PdI-crono_inv'!CE:CE,H1164,'PdI-crono_inv'!J:J,P1164,'PdI-crono_inv'!P:P,\"<>proprietario\")","v":0},null,{"$f":"+SUMIFS('PdI-crono_inv'!BM:BM,'PdI-crono_inv'!CF:CF,F1164,'PdI-crono_inv'!CE:CE,H1164,'PdI-crono_inv'!J:J,P1164,'PdI-crono_inv'!P:P,\"<>proprietario\")+S1164","v":0},null,null,"RES",{"$f":"+VLOOKUP(F1164,TT_Tabelle_Riferimento!$D$127:$E$164,2,FALSE)","v":"Depurazione"},"",0]
[0,0,"Gestore",0,"IP",22,{"$f":"+VLOOKUP(F1165,TT_Tabelle_Riferimento!$D$127:$G$164,4,FALSE)","v":"Impianti di depurazione – trattamenti sino al secondario"},1,{"$f":"+VLOOKUP(H1165,TT_Tabelle_Riferimento!$F$3:$G$6,2,FALSE)","v":"Servizio idrico integrato"},2029,{"$f":"+SUMIFS('PdI-crono_inv'!BL:BL,'PdI-crono_inv'!CF:CF,F1165,'PdI-crono_inv'!CE:CE,H1165,'PdI-crono_inv'!J:J,P1165,'PdI-crono_inv'!P:P,\"<>proprietario\")","v":0},null,{"$f":"+SUMIFS('PdI-crono_inv'!BM:BM,'PdI-crono_inv'!CF:CF,F1165,'PdI-crono_inv'!CE:CE,H1165,'PdI-crono_inv'!J:J,P1165,'PdI-crono_inv'!P:P,\"<>proprietario\")+S1165","v":0},null,null,"RES",{"$f":"+VLOOKUP(F1165,TT_Tabelle_Riferimento!$D$127:$E$164,2,FALSE)","v":"Depurazione"},"",0]
[0,0,"Gestore",0,"IP",23,{"$f":"+VLOOKUP(F1166,TT_Tabelle_Riferimento!$D$127:$G$164,4,FALSE)","v":"Impianti di depurazione – trattamenti sino al terziario e terziario avanzato"},1,{"$f":"+VLOOKUP(H1166,TT_Tabelle_Riferimento!$F$3:$G$6,2,FALSE)","v":"Servizio idrico integrato"},2029,{"$f":"+SUMIFS('PdI-crono_inv'!BL:BL,'PdI-crono_inv'!CF:CF,F1166,'PdI-crono_inv'!CE:CE,H1166,'PdI-crono_inv'!J:J,P1166,'PdI-crono_inv'!P:P,\"<>proprietario\")","v":0},null,{"$f":"+SUMIFS('PdI-crono_inv'!BM:BM,'PdI-crono_inv'!CF:CF,F1166,'PdI-crono_inv'!CE:CE,H1166,'PdI-crono_inv'!J:J,P1166,'PdI-crono_inv'!P:P,\"<>proprietario\")+S1166","v":0},null,null,"RES",{"$f":"+VLOOKUP(F1166,TT_Tabelle_Riferimento!$D$127:$E$164,2,FALSE)","v":"Depurazione"},"",0]
[0,0,"Gestore",0,"IP",24,{"$f":"+VLOOKUP(F1167,TT_Tabelle_Riferimento!$D$127:$G$164,4,FALSE)","v":"Impianti di essiccamento fanghi e di valorizzazione dei fanghi (tra cui mono-incenerimento, pirolisi, gassificazione)"},1,{"$f":"+VLOOKUP(H1167,TT_Tabelle_Riferimento!$F$3:$G$6,2,FALSE)","v":"Servizio idrico integrato"},2029,{"$f":"+SUMIFS('PdI-crono_inv'!BL:BL,'PdI-crono_inv'!CF:CF,F1167,'PdI-crono_inv'!CE:CE,H1167,'PdI-crono_inv'!J:J,P1167,'PdI-crono_inv'!P:P,\"<>proprietario\")","v":0},null,{"$f":"+SUMIFS('PdI-crono_inv'!BM:BM,'PdI-crono_inv'!CF:CF,F1167,'PdI-crono_inv'!CE:CE,H1167,'PdI-crono_inv'!J:J,P1167,'PdI-crono_inv'!P:P,\"<>proprietario\")+S1167","v":0},null,null,"RES",{"$f":"+VLOOKUP(F1167,TT_Tabelle_Riferimento!$D$127:$E$164,2,FALSE)","v":"Depurazione"},"",0]
[0,0,"Gestore",0,"IP",25,{"$f":"+VLOOKUP(F1168,TT_Tabelle_Riferimento!$D$127:$G$164,4,FALSE)","v":"Gruppi di misura - altre attrezzature di depurazione"},1,{"$f":"+VLOOKUP(H1168,TT_Tabelle_Riferimento!$F$3:$G$6,2,FALSE)","v":"Servizio idrico integrato"},2029,{"$f":"+SUMIFS('PdI-crono_inv'!BL:BL,'PdI-crono_inv'!CF:CF,F1168,'PdI-crono_inv'!CE:CE,H1168,'PdI-crono_inv'!J:J,P1168,'PdI-crono_inv'!P:P,\"<>proprietario\")","v":0},null,{"$f":"+SUMIFS('PdI-crono_inv'!BM:BM,'PdI-crono_inv'!CF:CF,F1168,'PdI-crono_inv'!CE:CE,H1168,'PdI-crono_inv'!J:J,P1168,'PdI-crono_inv'!P:P,\"<>proprietario\")+S1168","v":0},null,null,"RES",{"$f":"+VLOOKUP(F1168,TT_Tabelle_Riferimento!$D$127:$E$164,2,FALSE)","v":"Depurazione"},"",0]
[0,0,"Gestore",0,"IP",26,{"$f":"+VLOOKUP(F1169,TT_Tabelle_Riferimento!$D$127:$G$164,4,FALSE)","v":"Sistemi informativi di depurazione"},1,{"$f":"+VLOOKUP(H1169,TT_Tabelle_Riferimento!$F$3:$G$6,2,FALSE)","v":"Servizio idrico integrato"},2029,{"$f":"+SUMIFS('PdI-crono_inv'!BL:BL,'PdI-crono_inv'!CF:CF,F1169,'PdI-crono_inv'!CE:CE,H1169,'PdI-crono_inv'!J:J,P1169,'PdI-crono_inv'!P:P,\"<>proprietario\")","v":0},null,{"$f":"+SUMIFS('PdI-crono_inv'!BM:BM,'PdI-crono_inv'!CF:CF,F1169,'PdI-crono_inv'!CE:CE,H1169,'PdI-crono_inv'!J:J,P1169,'PdI-crono_inv'!P:P,\"<>proprietario\")+S1169","v":0},null,null,"RES",{"$f":"+VLOOKUP(F1169,TT_Tabelle_Riferimento!$D$127:$E$164,2,FALSE)","v":"Depurazione"},"",0]
[0,0,"Gestore",0,"IP",27,{"$f":"+VLOOKUP(F1170,TT_Tabelle_Riferimento!$D$127:$G$164,4,FALSE)","v":"Telecontrollo e teletrasmissione di depurazione"},1,{"$f":"+VLOOKUP(H1170,TT_Tabelle_Riferimento!$F$3:$G$6,2,FALSE)","v":"Servizio idrico integrato"},2029,{"$f":"+SUMIFS('PdI-crono_inv'!BL:BL,'PdI-crono_inv'!CF:CF,F1170,'PdI-crono_inv'!CE:CE,H1170,'PdI-crono_inv'!J:J,P1170,'PdI-crono_inv'!P:P,\"<>proprietario\")","v":0},null,{"$f":"+SUMIFS('PdI-crono_inv'!BM:BM,'PdI-crono_inv'!CF:CF,F1170,'PdI-crono_inv'!CE:CE,H1170,'PdI-crono_inv'!J:J,P1170,'PdI-crono_inv'!P:P,\"<>proprietario\")+S1170","v":0},null,null,"RES",{"$f":"+VLOOKUP(F1170,TT_Tabelle_Riferimento!$D$127:$E$164,2,FALSE)","v":"Depurazione"},"",0]
[0,0,"Gestore",0,"IP",28,{"$f":"+VLOOKUP(F1171,TT_Tabelle_Riferimento!$D$127:$G$164,4,FALSE)","v":"Altri impianti"},1,{"$f":"+VLOOKUP(H1171,TT_Tabelle_Riferimento!$F$3:$G$6,2,FALSE)","v":"Servizio idrico integrato"},2029,{"$f":"+SUMIFS('PdI-crono_inv'!BL:BL,'PdI-crono_inv'!CF:CF,F1171,'PdI-crono_inv'!CE:CE,H1171,'PdI-crono_inv'!J:J,P1171,'PdI-crono_inv'!P:P,\"<>proprietario\")","v":0},null,{"$f":"+SUMIFS('PdI-crono_inv'!BM:BM,'PdI-crono_inv'!CF:CF,F1171,'PdI-crono_inv'!CE:CE,H1171,'PdI-crono_inv'!J:J,P1171,'PdI-crono_inv'!P:P,\"<>proprietario\")+S1171","v":0},null,null,"RES",{"$f":"+VLOOKUP(F1171,TT_Tabelle_Riferimento!$D$127:$E$164,2,FALSE)","v":"Comune"},"",0]
[{"$f":"+idato","v":0},{"$f":"+idgestore","v":0},"Gestore",0,"IP",29,{"$f":"+VLOOKUP(F1172,TT_Tabelle_Riferimento!$D$127:$G$164,4,FALSE)","v":"Laboratori e attrezzature"},1,{"$f":"+VLOOKUP(H1172,TT_Tabelle_Riferimento!$F$3:$G$6,2,FALSE)","v":"Servizio idrico integrato"},2029,{"$f":"+SUMIFS('PdI-crono_inv'!BL:BL,'PdI-crono_inv'!CF:CF,F1172,'PdI-crono_inv'!CE:CE,H1172,'PdI-crono_inv'!J:J,P1172,'PdI-crono_inv'!P:P,\"<>proprietario\")","v":0},null,{"$f":"+SUMIFS('PdI-crono_inv'!BM:BM,'PdI-crono_inv'!CF:CF,F1172,'PdI-crono_inv'!CE:CE,H1172,'PdI-crono_inv'!J:J,P1172,'PdI-crono_inv'!P:P,\"<>proprietario\")+S1172","v":0},null,null,"RES",{"$f":"+VLOOKUP(F1172,TT_Tabelle_Riferimento!$D$127:$E$164,2,FALSE)","v":"Comune"},"",0]
[0,0,"Gestore",0,"IP",30,{"$f":"+VLOOKUP(F1173,TT_Tabelle_Riferimento!$D$127:$G$164,4,FALSE)","v":"Sistemi informativi"},1,{"$f":"+VLOOKUP(H1173,TT_Tabelle_Riferimento!$F$3:$G$6,2,FALSE)","v":"Servizio idrico integrato"},2029,{"$f":"+SUMIFS('PdI-crono_inv'!BL:BL,'PdI-crono_inv'!CF:CF,F1173,'PdI-crono_inv'!CE:CE,H1173,'PdI-crono_inv'!J:J,P1173,'PdI-crono_inv'!P:P,\"<>proprietario\")","v":0},null,{"$f":"+SUMIFS('PdI-crono_inv'!BM:BM,'PdI-crono_inv'!CF:CF,F1173,'PdI-crono_inv'!CE:CE,H1173,'PdI-crono_inv'!J:J,P1173,'PdI-crono_inv'!P:P,\"<>proprietario\")+S1173","v":0},null,null,"RES",{"$f":"+VLOOKUP(F1173,TT_Tabelle_Riferimento!$D$127:$E$164,2,FALSE)","v":"Comune"},"",0]
[0,0,"Gestore",0,"IP",31,{"$f":"+VLOOKUP(F1174,TT_Tabelle_Riferimento!$D$127:$G$164,4,FALSE)","v":"Telecontrollo e teletrasmissione"},1,{"$f":"+VLOOKUP(H1174,TT_Tabelle_Riferimento!$F$3:$G$6,2,FALSE)","v":"Servizio idrico integrato"},2029,{"$f":"+SUMIFS('PdI-crono_inv'!BL:BL,'PdI-crono_inv'!CF:CF,F1174,'PdI-crono_inv'!CE:CE,H1174,'PdI-crono_inv'!J:J,P1174,'PdI-crono_inv'!P:P,\"<>proprietario\")","v":0},null,{"$f":"+SUMIFS('PdI-crono_inv'!BM:BM,'PdI-crono_inv'!CF:CF,F1174,'PdI-crono_inv'!CE:CE,H1174,'PdI-crono_inv'!J:J,P1174,'PdI-crono_inv'!P:P,\"<>proprietario\")+S1174","v":0},null,null,"RES",{"$f":"+VLOOKUP(F1174,TT_Tabelle_Riferimento!$D$127:$E$164,2,FALSE)","v":"Comune"},"",0]
[0,0,"Gestore",0,"IP",32,{"$f":"+VLOOKUP(F1175,TT_Tabelle_Riferimento!$D$127:$G$164,4,FALSE)","v":"Autoveicoli - automezzi"},1,{"$f":"+VLOOKUP(H1175,TT_Tabelle_Riferimento!$F$3:$G$6,2,FALSE)","v":"Servizio idrico integrato"},2029,{"$f":"+SUMIFS('PdI-crono_inv'!BL:BL,'PdI-crono_inv'!CF:CF,F1175,'PdI-crono_inv'!CE:CE,H1175,'PdI-crono_inv'!J:J,P1175,'PdI-crono_inv'!P:P,\"<>proprietario\")","v":0},null,{"$f":"+SUMIFS('PdI-crono_inv'!BM:BM,'PdI-crono_inv'!CF:CF,F1175,'PdI-crono_inv'!CE:CE,H1175,'PdI-crono_inv'!J:J,P1175,'PdI-crono_inv'!P:P,\"<>proprietario\")+S1175","v":0},null,null,"RES",{"$f":"+VLOOKUP(F1175,TT_Tabelle_Riferimento!$D$127:$E$164,2,FALSE)","v":"Comune"},"",0]
[0,0,"Gestore",0,"IP",1,{"$f":"+VLOOKUP(F1176,TT_Tabelle_Riferimento!$D$127:$G$164,4,FALSE)","v":"Terreni"},1,{"$f":"+VLOOKUP(H1176,TT_Tabelle_Riferimento!$F$3:$G$6,2,FALSE)","v":"Servizio idrico integrato"},2029,{"$f":"+SUMIFS('PdI-crono_inv'!BL:BL,'PdI-crono_inv'!CF:CF,F1176,'PdI-crono_inv'!CE:CE,H1176,'PdI-crono_inv'!J:J,P1176,'PdI-crono_inv'!P:P,\"<>proprietario\")","v":0},null,{"$f":"+SUMIFS('PdI-crono_inv'!BM:BM,'PdI-crono_inv'!CF:CF,F1176,'PdI-crono_inv'!CE:CE,H1176,'PdI-crono_inv'!J:J,P1176,'PdI-crono_inv'!P:P,\"<>proprietario\")+S1176","v":0},null,null,"RES",{"$f":"+VLOOKUP(F1176,TT_Tabelle_Riferimento!$D$127:$E$164,2,FALSE)","v":"Comune"},"",0]
[0,0,"Gestore",0,"IP",33,{"$f":"+VLOOKUP(F1177,TT_Tabelle_Riferimento!$D$127:$G$164,4,FALSE)","v":"Fabbricati non industriali"},1,{"$f":"+VLOOKUP(H1177,TT_Tabelle_Riferimento!$F$3:$G$6,2,FALSE)","v":"Servizio idrico integrato"},2029,{"$f":"+SUMIFS('PdI-crono_inv'!BL:BL,'PdI-crono_inv'!CF:CF,F1177,'PdI-crono_inv'!CE:CE,H1177,'PdI-crono_inv'!J:J,P1177,'PdI-crono_inv'!P:P,\"<>proprietario\")","v":0},null,{"$f":"+SUMIFS('PdI-crono_inv'!BM:BM,'PdI-crono_inv'!CF:CF,F1177,'PdI-crono_inv'!CE:CE,H1177,'PdI-crono_inv'!J:J,P1177,'PdI-crono_inv'!P:P,\"<>proprietario\")+S1177","v":0},null,null,"RES",{"$f":"+VLOOKUP(F1177,TT_Tabelle_Riferimento!$D$127:$E$164,2,FALSE)","v":"Comune"},"",0]
[0,0,"Gestore",0,"IP",34,{"$f":"+VLOOKUP(F1178,TT_Tabelle_Riferimento!$D$127:$G$164,4,FALSE)","v":"Fabbricati industriali"},1,{"$f":"+VLOOKUP(H1178,TT_Tabelle_Riferimento!$F$3:$G$6,2,FALSE)","v":"Servizio idrico integrato"},2029,{"$f":"+SUMIFS('PdI-crono_inv'!BL:BL,'PdI-crono_inv'!CF:CF,F1178,'PdI-crono_inv'!CE:CE,H1178,'PdI-crono_inv'!J:J,P1178,'PdI-crono_inv'!P:P,\"<>proprietario\")","v":0},null,{"$f":"+SUMIFS('PdI-crono_inv'!BM:BM,'PdI-crono_inv'!CF:CF,F1178,'PdI-crono_inv'!CE:CE,H1178,'PdI-crono_inv'!J:J,P1178,'PdI-crono_inv'!P:P,\"<>proprietario\")+S1178","v":0},null,null,"RES",{"$f":"+VLOOKUP(F1178,TT_Tabelle_Riferimento!$D$127:$E$164,2,FALSE)","v":"Comune"},"",0]
[0,0,"Gestore",0,"IP",35,{"$f":"+VLOOKUP(F1179,TT_Tabelle_Riferimento!$D$127:$G$164,4,FALSE)","v":"Costruzioni leggere"},1,{"$f":"+VLOOKUP(H1179,TT_Tabelle_Riferimento!$F$3:$G$6,2,FALSE)","v":"Servizio idrico integrato"},2029,{"$f":"+SUMIFS('PdI-crono_inv'!BL:BL,'PdI-crono_inv'!CF:CF,F1179,'PdI-crono_inv'!CE:CE,H1179,'PdI-crono_inv'!J:J,P1179,'PdI-crono_inv'!P:P,\"<>proprietario\")","v":0},null,{"$f":"+SUMIFS('PdI-crono_inv'!BM:BM,'PdI-crono_inv'!CF:CF,F1179,'PdI-crono_inv'!CE:CE,H1179,'PdI-crono_inv'!J:J,P1179,'PdI-crono_inv'!P:P,\"<>proprietario\")+S1179","v":0},null,null,"RES",{"$f":"+VLOOKUP(F1179,TT_Tabelle_Riferimento!$D$127:$E$164,2,FALSE)","v":"Comune"},"",0]
[0,0,"Gestore",0,"IP",36,{"$f":"+VLOOKUP(F1180,TT_Tabelle_Riferimento!$D$127:$G$164,4,FALSE)","v":"Studi, ricerche, brevetti, diritti di utilizzazione"},1,{"$f":"+VLOOKUP(H1180,TT_Tabelle_Riferimento!$F$3:$G$6,2,FALSE)","v":"Servizio idrico integrato"},2029,{"$f":"+SUMIFS('PdI-crono_inv'!BL:BL,'PdI-crono_inv'!CF:CF,F1180,'PdI-crono_inv'!CE:CE,H1180,'PdI-crono_inv'!J:J,P1180,'PdI-crono_inv'!P:P,\"<>proprietario\")","v":0},null,{"$f":"+SUMIFS('PdI-crono_inv'!BM:BM,'PdI-crono_inv'!CF:CF,F1180,'PdI-crono_inv'!CE:CE,H1180,'PdI-crono_inv'!J:J,P1180,'PdI-crono_inv'!P:P,\"<>proprietario\")+S1180","v":0},null,null,"RES",{"$f":"+VLOOKUP(F1180,TT_Tabelle_Riferimento!$D$127:$E$164,2,FALSE)","v":"Comune"},"",0]
[0,0,"Gestore",0,"IP",37,{"$f":"+VLOOKUP(F1181,TT_Tabelle_Riferimento!$D$127:$G$164,4,FALSE)","v":"Altre immobilizzazioni materiali e immateriali"},1,{"$f":"+VLOOKUP(H1181,TT_Tabelle_Riferimento!$F$3:$G$6,2,FALSE)","v":"Servizio idrico integrato"},2029,{"$f":"+SUMIFS('PdI-crono_inv'!BL:BL,'PdI-crono_inv'!CF:CF,F1181,'PdI-crono_inv'!CE:CE,H1181,'PdI-crono_inv'!J:J,P1181,'PdI-crono_inv'!P:P,\"<>proprietario\")","v":0},null,{"$f":"+SUMIFS('PdI-crono_inv'!BM:BM,'PdI-crono_inv'!CF:CF,F1181,'PdI-crono_inv'!CE:CE,H1181,'PdI-crono_inv'!J:J,P1181,'PdI-crono_inv'!P:P,\"<>proprietario\")+S1181","v":0},null,null,"RES",{"$f":"+VLOOKUP(F1181,TT_Tabelle_Riferimento!$D$127:$E$164,2,FALSE)","v":"Comune"},"",0]
[0,0,"Gestore",0,"IP",38,{"$f":"+VLOOKUP(F1182,TT_Tabelle_Riferimento!$D$127:$G$164,4,FALSE)","v":"Grandi dighe (sbarramenti che superano i quindici metri di altezza o che determinano un invaso superiore a 1 milione di metri cubi)"},1,{"$f":"+VLOOKUP(H1182,TT_Tabelle_Riferimento!$F$3:$G$6,2,FALSE)","v":"Servizio idrico integrato"},2029,{"$f":"+SUMIFS('PdI-crono_inv'!BL:BL,'PdI-crono_inv'!CF:CF,F1182,'PdI-crono_inv'!CE:CE,H1182,'PdI-crono_inv'!J:J,P1182,'PdI-crono_inv'!P:P,\"<>proprietario\")","v":0},null,{"$f":"+SUMIFS('PdI-crono_inv'!BM:BM,'PdI-crono_inv'!CF:CF,F1182,'PdI-crono_inv'!CE:CE,H1182,'PdI-crono_inv'!J:J,P1182,'PdI-crono_inv'!P:P,\"<>proprietario\")+S1182","v":0},null,null,"RES",{"$f":"+VLOOKUP(F1182,TT_Tabelle_Riferimento!$D$127:$E$164,2,FALSE)","v":"Acquedotto"},"",0]
[0,0,"Gestore",0,"IP",39,{"$f":"+VLOOKUP(F1183,TT_Tabelle_Riferimento!$D$127:$G$164,4,FALSE)","v":"Piccole dighe (sbarramenti che non superano i quindici metri di altezza o che determinano un invaso non superiore a 1 milione di metri cubi)"},1,{"$f":"+VLOOKUP(H1183,TT_Tabelle_Riferimento!$F$3:$G$6,2,FALSE)","v":"Servizio idrico integrato"},2029,{"$f":"+SUMIFS('PdI-crono_inv'!BL:BL,'PdI-crono_inv'!CF:CF,F1183,'PdI-crono_inv'!CE:CE,H1183,'PdI-crono_inv'!J:J,P1183,'PdI-crono_inv'!P:P,\"<>proprietario\")","v":0},null,{"$f":"+SUMIFS('PdI-crono_inv'!BM:BM,'PdI-crono_inv'!CF:CF,F1183,'PdI-crono_inv'!CE:CE,H1183,'PdI-crono_inv'!J:J,P1183,'PdI-crono_inv'!P:P,\"<>proprietario\")+S1183","v":0},null,null,"RES",{"$f":"+VLOOKUP(F1183,TT_Tabelle_Riferimento!$D$127:$E$164,2,FALSE)","v":"Acquedotto"},"",0]
[{"$f":"+idato","v":0},{"$f":"+idgestore","v":0},"Gestore",0,"IP",2,{"$f":"+VLOOKUP(F1184,TT_Tabelle_Riferimento!$D$127:$G$164,4,FALSE)","v":"Condotte di acquedotto"},2,{"$f":"+VLOOKUP(H1184,TT_Tabelle_Riferimento!$F$3:$G$6,2,FALSE)","v":"Fognatura bianca e pulizia / manutenzione caditoie stradali"},2029,{"$f":"+SUMIFS('PdI-crono_inv'!BL:BL,'PdI-crono_inv'!CF:CF,F1184,'PdI-crono_inv'!CE:CE,H1184,'PdI-crono_inv'!J:J,P1184,'PdI-crono_inv'!P:P,\"<>proprietario\")","v":0},null,{"$f":"+SUMIFS('PdI-crono_inv'!BM:BM,'PdI-crono_inv'!CF:CF,F1184,'PdI-crono_inv'!CE:CE,H1184,'PdI-crono_inv'!J:J,P1184,'PdI-crono_inv'!P:P,\"<>proprietario\")+S1184","v":0},null,null,"RES",{"$f":"+VLOOKUP(F1184,TT_Tabelle_Riferimento!$D$127:$E$164,2,FALSE)","v":"Acquedotto"},"",0]
[0,0,"Gestore",0,"IP",3,{"$f":"+VLOOKUP(F1185,TT_Tabelle_Riferimento!$D$127:$G$164,4,FALSE)","v":"Opere idrauliche fisse di acquedotto"},2,{"$f":"+VLOOKUP(H1185,TT_Tabelle_Riferimento!$F$3:$G$6,2,FALSE)","v":"Fognatura bianca e pulizia / manutenzione caditoie stradali"},2029,{"$f":"+SUMIFS('PdI-crono_inv'!BL:BL,'PdI-crono_inv'!CF:CF,F1185,'PdI-crono_inv'!CE:CE,H1185,'PdI-crono_inv'!J:J,P1185,'PdI-crono_inv'!P:P,\"<>proprietario\")","v":0},null,{"$f":"+SUMIFS('PdI-crono_inv'!BM:BM,'PdI-crono_inv'!CF:CF,F1185,'PdI-crono_inv'!CE:CE,H1185,'PdI-crono_inv'!J:J,P1185,'PdI-crono_inv'!P:P,\"<>proprietario\")+S1185","v":0},null,null,"RES",{"$f":"+VLOOKUP(F1185,TT_Tabelle_Riferimento!$D$127:$E$164,2,FALSE)","v":"Acquedotto"},"",0]
[0,0,"Gestore",0,"IP",4,{"$f":"+VLOOKUP(F1186,TT_Tabelle_Riferimento!$D$127:$G$164,4,FALSE)","v":"Serbatoi"},2,{"$f":"+VLOOKUP(H1186,TT_Tabelle_Riferimento!$F$3:$G$6,2,FALSE)","v":"Fognatura bianca e pulizia / manutenzione caditoie stradali"},2029,{"$f":"+SUMIFS('PdI-crono_inv'!BL:BL,'PdI-crono_inv'!CF:CF,F1186,'PdI-crono_inv'!CE:CE,H1186,'PdI-crono_inv'!J:J,P1186,'PdI-crono_inv'!P:P,\"<>proprietario\")","v":0},null,{"$f":"+SUMIFS('PdI-crono_inv'!BM:BM,'PdI-crono_inv'!CF:CF,F1186,'PdI-crono_inv'!CE:CE,H1186,'PdI-crono_inv'!J:J,P1186,'PdI-crono_inv'!P:P,\"<>proprietario\")+S1186","v":0},null,null,"RES",{"$f":"+VLOOKUP(F1186,TT_Tabelle_Riferimento!$D$127:$E$164,2,FALSE)","v":"Acquedotto"},"",0]
[0,0,"Gestore",0,"IP",5,{"$f":"+VLOOKUP(F1187,TT_Tabelle_Riferimento!$D$127:$G$164,4,FALSE)","v":"Impianti di sollevamento e pompaggio di acquedotto"},2,{"$f":"+VLOOKUP(H1187,TT_Tabelle_Riferimento!$F$3:$G$6,2,FALSE)","v":"Fognatura bianca e pulizia / manutenzione caditoie stradali"},2029,{"$f":"+SUMIFS('PdI-crono_inv'!BL:BL,'PdI-crono_inv'!CF:CF,F1187,'PdI-crono_inv'!CE:CE,H1187,'PdI-crono_inv'!J:J,P1187,'PdI-crono_inv'!P:P,\"<>proprietario\")","v":0},null,{"$f":"+SUMIFS('PdI-crono_inv'!BM:BM,'PdI-crono_inv'!CF:CF,F1187,'PdI-crono_inv'!CE:CE,H1187,'PdI-crono_inv'!J:J,P1187,'PdI-crono_inv'!P:P,\"<>proprietario\")+S1187","v":0},null,null,"RES",{"$f":"+VLOOKUP(F1187,TT_Tabelle_Riferimento!$D$127:$E$164,2,FALSE)","v":"Acquedotto"},"",0]
[0,0,"Gestore",0,"IP",6,{"$f":"+VLOOKUP(F1188,TT_Tabelle_Riferimento!$D$127:$G$164,4,FALSE)","v":"Impianti di potabilizzazione"},2,{"$f":"+VLOOKUP(H1188,TT_Tabelle_Riferimento!$F$3:$G$6,2,FALSE)","v":"Fognatura bianca e pulizia / manutenzione caditoie stradali"},2029,{"$f":"+SUMIFS('PdI-crono_inv'!BL:BL,'PdI-crono_inv'!CF:CF,F1188,'PdI-crono_inv'!CE:CE,H1188,'PdI-crono_inv'!J:J,P1188,'PdI-crono_inv'!P:P,\"<>proprietario\")","v":0},null,{"$f":"+SUMIFS('PdI-crono_inv'!BM:BM,'PdI-crono_inv'!CF:CF,F1188,'PdI-crono_inv'!CE:CE,H1188,'PdI-crono_inv'!J:J,P1188,'PdI-crono_inv'!P:P,\"<>proprietario\")+S1188","v":0},null,null,"RES",{"$f":"+VLOOKUP(F1188,TT_Tabelle_Riferimento!$D$127:$E$164,2,FALSE)","v":"Acquedotto"},"",0]
[0,0,"Gestore",0,"IP",7,{"$f":"+VLOOKUP(F1189,TT_Tabelle_Riferimento!$D$127:$G$164,4,FALSE)","v":"Altri trattamenti di potabilizzazione (tra cui dispositivi di disinfezione, stacciatura, filtrazione, addolcimento)"},2,{"$f":"+VLOOKUP(H1189,TT_Tabelle_Riferimento!$F$3:$G$6,2,FALSE)","v":"Fognatura bianca e pulizia / manutenzione caditoie stradali"},2029,{"$f":"+SUMIFS('PdI-crono_inv'!BL:BL,'PdI-crono_inv'!CF:CF,F1189,'PdI-crono_inv'!CE:CE,H1189,'PdI-crono_inv'!J:J,P1189,'PdI-crono_inv'!P:P,\"<>proprietario\")","v":0},null,{"$f":"+SUMIFS('PdI-crono_inv'!BM:BM,'PdI-crono_inv'!CF:CF,F1189,'PdI-crono_inv'!CE:CE,H1189,'PdI-crono_inv'!J:J,P1189,'PdI-crono_inv'!P:P,\"<>proprietario\")+S1189","v":0},null,null,"RES",{"$f":"+VLOOKUP(F1189,TT_Tabelle_Riferimento!$D$127:$E$164,2,FALSE)","v":"Acquedotto"},"",0]
[0,0,"Gestore",0,"IP",8,{"$f":"+VLOOKUP(F1190,TT_Tabelle_Riferimento!$D$127:$G$164,4,FALSE)","v":"Gruppi di misura - altre attrezzature di acquedotto"},2,{"$f":"+VLOOKUP(H1190,TT_Tabelle_Riferimento!$F$3:$G$6,2,FALSE)","v":"Fognatura bianca e pulizia / manutenzione caditoie stradali"},2029,{"$f":"+SUMIFS('PdI-crono_inv'!BL:BL,'PdI-crono_inv'!CF:CF,F1190,'PdI-crono_inv'!CE:CE,H1190,'PdI-crono_inv'!J:J,P1190,'PdI-crono_inv'!P:P,\"<>proprietario\")","v":0},null,{"$f":"+SUMIFS('PdI-crono_inv'!BM:BM,'PdI-crono_inv'!CF:CF,F1190,'PdI-crono_inv'!CE:CE,H1190,'PdI-crono_inv'!J:J,P1190,'PdI-crono_inv'!P:P,\"<>proprietario\")+S1190","v":0},null,null,"RES",{"$f":"+VLOOKUP(F1190,TT_Tabelle_Riferimento!$D$127:$E$164,2,FALSE)","v":"Acquedotto"},"",0]
[0,0,"Gestore",0,"IP",9,{"$f":"+VLOOKUP(F1191,TT_Tabelle_Riferimento!$D$127:$G$164,4,FALSE)","v":"Sistemi informativi di acquedotto"},2,{"$f":"+VLOOKUP(H1191,TT_Tabelle_Riferimento!$F$3:$G$6,2,FALSE)","v":"Fognatura bianca e pulizia / manutenzione caditoie stradali"},2029,{"$f":"+SUMIFS('PdI-crono_inv'!BL:BL,'PdI-crono_inv'!CF:CF,F1191,'PdI-crono_inv'!CE:CE,H1191,'PdI-crono_inv'!J:J,P1191,'PdI-crono_inv'!P:P,\"<>proprietario\")","v":0},null,{"$f":"+SUMIFS('PdI-crono_inv'!BM:BM,'PdI-crono_inv'!CF:CF,F1191,'PdI-crono_inv'!CE:CE,H1191,'PdI-crono_inv'!J:J,P1191,'PdI-crono_inv'!P:P,\"<>proprietario\")+S1191","v":0},null,null,"RES",{"$f":"+VLOOKUP(F1191,TT_Tabelle_Riferimento!$D$127:$E$164,2,FALSE)","v":"Acquedotto"},"",0]
[0,0,"Gestore",0,"IP",10,{"$f":"+VLOOKUP(F1192,TT_Tabelle_Riferimento!$D$127:$G$164,4,FALSE)","v":"Telecontrollo e teletrasmissione di acquedotto"},2,{"$f":"+VLOOKUP(H1192,TT_Tabelle_Riferimento!$F$3:$G$6,2,FALSE)","v":"Fognatura bianca e pulizia / manutenzione caditoie stradali"},2029,{"$f":"+SUMIFS('PdI-crono_inv'!BL:BL,'PdI-crono_inv'!CF:CF,F1192,'PdI-crono_inv'!CE:CE,H1192,'PdI-crono_inv'!J:J,P1192,'PdI-crono_inv'!P:P,\"<>proprietario\")","v":0},null,{"$f":"+SUMIFS('PdI-crono_inv'!BM:BM,'PdI-crono_inv'!CF:CF,F1192,'PdI-crono_inv'!CE:CE,H1192,'PdI-crono_inv'!J:J,P1192,'PdI-crono_inv'!P:P,\"<>proprietario\")+S1192","v":0},null,null,"RES",{"$f":"+VLOOKUP(F1192,TT_Tabelle_Riferimento!$D$127:$E$164,2,FALSE)","v":"Acquedotto"},"",0]
[0,0,"Gestore",0,"IP",11,{"$f":"+VLOOKUP(F1193,TT_Tabelle_Riferimento!$D$127:$G$164,4,FALSE)","v":"Condotte fognarie"},2,{"$f":"+VLOOKUP(H1193,TT_Tabelle_Riferimento!$F$3:$G$6,2,FALSE)","v":"Fognatura bianca e pulizia / manutenzione caditoie stradali"},2029,{"$f":"+SUMIFS('PdI-crono_inv'!BL:BL,'PdI-crono_inv'!CF:CF,F1193,'PdI-crono_inv'!CE:CE,H1193,'PdI-crono_inv'!J:J,P1193,'PdI-crono_inv'!P:P,\"<>proprietario\")","v":0},null,{"$f":"+SUMIFS('PdI-crono_inv'!BM:BM,'PdI-crono_inv'!CF:CF,F1193,'PdI-crono_inv'!CE:CE,H1193,'PdI-crono_inv'!J:J,P1193,'PdI-crono_inv'!P:P,\"<>proprietario\")+S1193","v":0},null,null,"RES",{"$f":"+VLOOKUP(F1193,TT_Tabelle_Riferimento!$D$127:$E$164,2,FALSE)","v":"Fognatura"},"",0]
[0,0,"Gestore",0,"IP",12,{"$f":"+VLOOKUP(F1194,TT_Tabelle_Riferimento!$D$127:$G$164,4,FALSE)","v":"Sifoni e scaricatori di piena e altre opere idrauliche fisse di fognatura"},2,{"$f":"+VLOOKUP(H1194,TT_Tabelle_Riferimento!$F$3:$G$6,2,FALSE)","v":"Fognatura bianca e pulizia / manutenzione caditoie stradali"},2029,{"$f":"+SUMIFS('PdI-crono_inv'!BL:BL,'PdI-crono_inv'!CF:CF,F1194,'PdI-crono_inv'!CE:CE,H1194,'PdI-crono_inv'!J:J,P1194,'PdI-crono_inv'!P:P,\"<>proprietario\")","v":0},null,{"$f":"+SUMIFS('PdI-crono_inv'!BM:BM,'PdI-crono_inv'!CF:CF,F1194,'PdI-crono_inv'!CE:CE,H1194,'PdI-crono_inv'!J:J,P1194,'PdI-crono_inv'!P:P,\"<>proprietario\")+S1194","v":0},null,null,"RES",{"$f":"+VLOOKUP(F1194,TT_Tabelle_Riferimento!$D$127:$E$164,2,FALSE)","v":"Fognatura"},"",0]
[0,0,"Gestore",0,"IP",13,{"$f":"+VLOOKUP(F1195,TT_Tabelle_Riferimento!$D$127:$G$164,4,FALSE)","v":"Vasche di laminazione e vasche di prima pioggia"},2,{"$f":"+VLOOKUP(H1195,TT_Tabelle_Riferimento!$F$3:$G$6,2,FALSE)","v":"Fognatura bianca e pulizia / manutenzione caditoie stradali"},2029,{"$f":"+SUMIFS('PdI-crono_inv'!BL:BL,'PdI-crono_inv'!CF:CF,F1195,'PdI-crono_inv'!CE:CE,H1195,'PdI-crono_inv'!J:J,P1195,'PdI-crono_inv'!P:P,\"<>proprietario\")","v":0},null,{"$f":"+SUMIFS('PdI-crono_inv'!BM:BM,'PdI-crono_inv'!CF:CF,F1195,'PdI-crono_inv'!CE:CE,H1195,'PdI-crono_inv'!J:J,P1195,'PdI-crono_inv'!P:P,\"<>proprietario\")+S1195","v":0},null,null,"RES",{"$f":"+VLOOKUP(F1195,TT_Tabelle_Riferimento!$D$127:$E$164,2,FALSE)","v":"Fognatura"},"",0]
[0,0,"Gestore",0,"IP",14,{"$f":"+VLOOKUP(F1196,TT_Tabelle_Riferimento!$D$127:$G$164,4,FALSE)","v":"Impianti di sollevamento e pompaggio di fognatura"},2,{"$f":"+VLOOKUP(H1196,TT_Tabelle_Riferimento!$F$3:$G$6,2,FALSE)","v":"Fognatura bianca e pulizia / manutenzione caditoie stradali"},2029,{"$f":"+SUMIFS('PdI-crono_inv'!BL:BL,'PdI-crono_inv'!CF:CF,F1196,'PdI-crono_inv'!CE:CE,H1196,'PdI-crono_inv'!J:J,P1196,'PdI-crono_inv'!P:P,\"<>proprietario\")","v":0},null,{"$f":"+SUMIFS('PdI-crono_inv'!BM:BM,'PdI-crono_inv'!CF:CF,F1196,'PdI-crono_inv'!CE:CE,H1196,'PdI-crono_inv'!J:J,P1196,'PdI-crono_inv'!P:P,\"<>proprietario\")+S1196","v":0},null,null,"RES",{"$f":"+VLOOKUP(F1196,TT_Tabelle_Riferimento!$D$127:$E$164,2,FALSE)","v":"Fognatura"},"",0]
[0,0,"Gestore",0,"IP",15,{"$f":"+VLOOKUP(F1197,TT_Tabelle_Riferimento!$D$127:$G$164,4,FALSE)","v":"Gruppi di misura - altre attrezzature di fognatura"},2,{"$f":"+VLOOKUP(H1197,TT_Tabelle_Riferimento!$F$3:$G$6,2,FALSE)","v":"Fognatura bianca e pulizia / manutenzione caditoie stradali"},2029,{"$f":"+SUMIFS('PdI-crono_inv'!BL:BL,'PdI-crono_inv'!CF:CF,F1197,'PdI-crono_inv'!CE:CE,H1197,'PdI-crono_inv'!J:J,P1197,'PdI-crono_inv'!P:P,\"<>proprietario\")","v":0},null,{"$f":"+SUMIFS('PdI-crono_inv'!BM:BM,'PdI-crono_inv'!CF:CF,F1197,'PdI-crono_inv'!CE:CE,H1197,'PdI-crono_inv'!J:J,P1197,'PdI-crono_inv'!P:P,\"<>proprietario\")+S1197","v":0},null,null,"RES",{"$f":"+VLOOKUP(F1197,TT_Tabelle_Riferimento!$D$127:$E$164,2,FALSE)","v":"Fognatura"},"",0]
[0,0,"Gestore",0,"IP",16,{"$f":"+VLOOKUP(F1198,TT_Tabelle_Riferimento!$D$127:$G$164,4,FALSE)","v":"Sistemi informativi di fognatura"},2,{"$f":"+VLOOKUP(H1198,TT_Tabelle_Riferimento!$F$3:$G$6,2,FALSE)","v":"Fognatura bianca e pulizia / manutenzione caditoie stradali"},2029,{"$f":"+SUMIFS('PdI-crono_inv'!BL:BL,'PdI-crono_inv'!CF:CF,F1198,'PdI-crono_inv'!CE:CE,H1198,'PdI-crono_inv'!J:J,P1198,'PdI-crono_inv'!P:P,\"<>proprietario\")","v":0},null,{"$f":"+SUMIFS('PdI-crono_inv'!BM:BM,'PdI-crono_inv'!CF:CF,F1198,'PdI-crono_inv'!CE:CE,H1198,'PdI-crono_inv'!J:J,P1198,'PdI-crono_inv'!P:P,\"<>proprietario\")+S1198","v":0},null,null,"RES",{"$f":"+VLOOKUP(F1198,TT_Tabelle_Riferimento!$D$127:$E$164,2,FALSE)","v":"Fognatura"},{"$f":"+IF(SUM(K1198:N1198)=0,\"\",\"PdI_consolidamento\")","v":""},0]
[0,0,"Gestore",0,"IP",18,{"$f":"+VLOOKUP(F1199,TT_Tabelle_Riferimento!$D$127:$G$164,4,FALSE)","v":"Telecontrollo e teletrasmissione di fognatura"},2,{"$f":"+VLOOKUP(H1199,TT_Tabelle_Riferimento!$F$3:$G$6,2,FALSE)","v":"Fognatura bianca e pulizia / manutenzione caditoie stradali"},2029,{"$f":"+SUMIFS('PdI-crono_inv'!BL:BL,'PdI-crono_inv'!CF:CF,F1199,'PdI-crono_inv'!CE:CE,H1199,'PdI-crono_inv'!J:J,P1199,'PdI-crono_inv'!P:P,\"<>proprietario\")","v":0},null,{"$f":"+SUMIFS('PdI-crono_inv'!BM:BM,'PdI-crono_inv'!CF:CF,F1199,'PdI-crono_inv'!CE:CE,H1199,'PdI-crono_inv'!J:J,P1199,'PdI-crono_inv'!P:P,\"<>proprietario\")+S1199","v":0},null,null,"RES",{"$f":"+VLOOKUP(F1199,TT_Tabelle_Riferimento!$D$127:$E$164,2,FALSE)","v":"Fognatura"},"",0]
[0,0,"Gestore",0,"IP",19,{"$f":"+VLOOKUP(F1200,TT_Tabelle_Riferimento!$D$127:$G$164,4,FALSE)","v":"Impianti di sollevamento e pompaggio di depurazione"},2,{"$f":"+VLOOKUP(H1200,TT_Tabelle_Riferimento!$F$3:$G$6,2,FALSE)","v":"Fognatura bianca e pulizia / manutenzione caditoie stradali"},2029,{"$f":"+SUMIFS('PdI-crono_inv'!BL:BL,'PdI-crono_inv'!CF:CF,F1200,'PdI-crono_inv'!CE:CE,H1200,'PdI-crono_inv'!J:J,P1200,'PdI-crono_inv'!P:P,\"<>proprietario\")","v":0},null,{"$f":"+SUMIFS('PdI-crono_inv'!BM:BM,'PdI-crono_inv'!CF:CF,F1200,'PdI-crono_inv'!CE:CE,H1200,'PdI-crono_inv'!J:J,P1200,'PdI-crono_inv'!P:P,\"<>proprietario\")+S1200","v":0},null,null,"RES",{"$f":"+VLOOKUP(F1200,TT_Tabelle_Riferimento!$D$127:$E$164,2,FALSE)","v":"Depurazione"},"",0]
[0,0,"Gestore",0,"IP",20,{"$f":"+VLOOKUP(F1201,TT_Tabelle_Riferimento!$D$127:$G$164,4,FALSE)","v":"Tecniche naturali di depurazione (tra cui fitodepurazione e lagunaggio)"},2,{"$f":"+VLOOKUP(H1201,TT_Tabelle_Riferimento!$F$3:$G$6,2,FALSE)","v":"Fognatura bianca e pulizia / manutenzione caditoie stradali"},2029,{"$f":"+SUMIFS('PdI-crono_inv'!BL:BL,'PdI-crono_inv'!CF:CF,F1201,'PdI-crono_inv'!CE:CE,H1201,'PdI-crono_inv'!J:J,P1201,'PdI-crono_inv'!P:P,\"<>proprietario\")","v":0},null,{"$f":"+SUMIFS('PdI-crono_inv'!BM:BM,'PdI-crono_inv'!CF:CF,F1201,'PdI-crono_inv'!CE:CE,H1201,'PdI-crono_inv'!J:J,P1201,'PdI-crono_inv'!P:P,\"<>proprietario\")+S1201","v":0},null,null,"RES",{"$f":"+VLOOKUP(F1201,TT_Tabelle_Riferimento!$D$127:$E$164,2,FALSE)","v":"Depurazione"},"",0]
[0,0,"Gestore",0,"IP",21,{"$f":"+VLOOKUP(F1202,TT_Tabelle_Riferimento!$D$127:$G$164,4,FALSE)","v":"Impianti di depurazione – trattamenti sino al preliminare, integrativo, primario - fosse settiche e fosse Imhoff"},2,{"$f":"+VLOOKUP(H1202,TT_Tabelle_Riferimento!$F$3:$G$6,2,FALSE)","v":"Fognatura bianca e pulizia / manutenzione caditoie stradali"},2029,{"$f":"+SUMIFS('PdI-crono_inv'!BL:BL,'PdI-crono_inv'!CF:CF,F1202,'PdI-crono_inv'!CE:CE,H1202,'PdI-crono_inv'!J:J,P1202,'PdI-crono_inv'!P:P,\"<>proprietario\")","v":0},null,{"$f":"+SUMIFS('PdI-crono_inv'!BM:BM,'PdI-crono_inv'!CF:CF,F1202,'PdI-crono_inv'!CE:CE,H1202,'PdI-crono_inv'!J:J,P1202,'PdI-crono_inv'!P:P,\"<>proprietario\")+S1202","v":0},null,null,"RES",{"$f":"+VLOOKUP(F1202,TT_Tabelle_Riferimento!$D$127:$E$164,2,FALSE)","v":"Depurazione"},"",0]
[0,0,"Gestore",0,"IP",22,{"$f":"+VLOOKUP(F1203,TT_Tabelle_Riferimento!$D$127:$G$164,4,FALSE)","v":"Impianti di depurazione – trattamenti sino al secondario"},2,{"$f":"+VLOOKUP(H1203,TT_Tabelle_Riferimento!$F$3:$G$6,2,FALSE)","v":"Fognatura bianca e pulizia / manutenzione caditoie stradali"},2029,{"$f":"+SUMIFS('PdI-crono_inv'!BL:BL,'PdI-crono_inv'!CF:CF,F1203,'PdI-crono_inv'!CE:CE,H1203,'PdI-crono_inv'!J:J,P1203,'PdI-crono_inv'!P:P,\"<>proprietario\")","v":0},null,{"$f":"+SUMIFS('PdI-crono_inv'!BM:BM,'PdI-crono_inv'!CF:CF,F1203,'PdI-crono_inv'!CE:CE,H1203,'PdI-crono_inv'!J:J,P1203,'PdI-crono_inv'!P:P,\"<>proprietario\")+S1203","v":0},null,null,"RES",{"$f":"+VLOOKUP(F1203,TT_Tabelle_Riferimento!$D$127:$E$164,2,FALSE)","v":"Depurazione"},"",0]
[0,0,"Gestore",0,"IP",23,{"$f":"+VLOOKUP(F1204,TT_Tabelle_Riferimento!$D$127:$G$164,4,FALSE)","v":"Impianti di depurazione – trattamenti sino al terziario e terziario avanzato"},2,{"$f":"+VLOOKUP(H1204,TT_Tabelle_Riferimento!$F$3:$G$6,2,FALSE)","v":"Fognatura bianca e pulizia / manutenzione caditoie stradali"},2029,{"$f":"+SUMIFS('PdI-crono_inv'!BL:BL,'PdI-crono_inv'!CF:CF,F1204,'PdI-crono_inv'!CE:CE,H1204,'PdI-crono_inv'!J:J,P1204,'PdI-crono_inv'!P:P,\"<>proprietario\")","v":0},null,{"$f":"+SUMIFS('PdI-crono_inv'!BM:BM,'PdI-crono_inv'!CF:CF,F1204,'PdI-crono_inv'!CE:CE,H1204,'PdI-crono_inv'!J:J,P1204,'PdI-crono_inv'!P:P,\"<>proprietario\")+S1204","v":0},null,null,"RES",{"$f":"+VLOOKUP(F1204,TT_Tabelle_Riferimento!$D$127:$E$164,2,FALSE)","v":"Depurazione"},"",0]
[0,0,"Gestore",0,"IP",24,{"$f":"+VLOOKUP(F1205,TT_Tabelle_Riferimento!$D$127:$G$164,4,FALSE)","v":"Impianti di essiccamento fanghi e di valorizzazione dei fanghi (tra cui mono-incenerimento, pirolisi, gassificazione)"},2,{"$f":"+VLOOKUP(H1205,TT_Tabelle_Riferimento!$F$3:$G$6,2,FALSE)","v":"Fognatura bianca e pulizia / manutenzione caditoie stradali"},2029,{"$f":"+SUMIFS('PdI-crono_inv'!BL:BL,'PdI-crono_inv'!CF:CF,F1205,'PdI-crono_inv'!CE:CE,H1205,'PdI-crono_inv'!J:J,P1205,'PdI-crono_inv'!P:P,\"<>proprietario\")","v":0},null,{"$f":"+SUMIFS('PdI-crono_inv'!BM:BM,'PdI-crono_inv'!CF:CF,F1205,'PdI-crono_inv'!CE:CE,H1205,'PdI-crono_inv'!J:J,P1205,'PdI-crono_inv'!P:P,\"<>proprietario\")+S1205","v":0},null,null,"RES",{"$f":"+VLOOKUP(F1205,TT_Tabelle_Riferimento!$D$127:$E$164,2,FALSE)","v":"Depurazione"},"",0]
[0,0,"Gestore",0,"IP",25,{"$f":"+VLOOKUP(F1206,TT_Tabelle_Riferimento!$D$127:$G$164,4,FALSE)","v":"Gruppi di misura - altre attrezzature di depurazione"},2,{"$f":"+VLOOKUP(H1206,TT_Tabelle_Riferimento!$F$3:$G$6,2,FALSE)","v":"Fognatura bianca e pulizia / manutenzione caditoie stradali"},2029,{"$f":"+SUMIFS('PdI-crono_inv'!BL:BL,'PdI-crono_inv'!CF:CF,F1206,'PdI-crono_inv'!CE:CE,H1206,'PdI-crono_inv'!J:J,P1206,'PdI-crono_inv'!P:P,\"<>proprietario\")","v":0},null,{"$f":"+SUMIFS('PdI-crono_inv'!BM:BM,'PdI-crono_inv'!CF:CF,F1206,'PdI-crono_inv'!CE:CE,H1206,'PdI-crono_inv'!J:J,P1206,'PdI-crono_inv'!P:P,\"<>proprietario\")+S1206","v":0},null,null,"RES",{"$f":"+VLOOKUP(F1206,TT_Tabelle_Riferimento!$D$127:$E$164,2,FALSE)","v":"Depurazione"},"",0]
[0,0,"Gestore",0,"IP",26,{"$f":"+VLOOKUP(F1207,TT_Tabelle_Riferimento!$D$127:$G$164,4,FALSE)","v":"Sistemi informativi di depurazione"},2,{"$f":"+VLOOKUP(H1207,TT_Tabelle_Riferimento!$F$3:$G$6,2,FALSE)","v":"Fognatura bianca e pulizia / manutenzione caditoie stradali"},2029,{"$f":"+SUMIFS('PdI-crono_inv'!BL:BL,'PdI-crono_inv'!CF:CF,F1207,'PdI-crono_inv'!CE:CE,H1207,'PdI-crono_inv'!J:J,P1207,'PdI-crono_inv'!P:P,\"<>proprietario\")","v":0},null,{"$f":"+SUMIFS('PdI-crono_inv'!BM:BM,'PdI-crono_inv'!CF:CF,F1207,'PdI-crono_inv'!CE:CE,H1207,'PdI-crono_inv'!J:J,P1207,'PdI-crono_inv'!P:P,\"<>proprietario\")+S1207","v":0},null,null,"RES",{"$f":"+VLOOKUP(F1207,TT_Tabelle_Riferimento!$D$127:$E$164,2,FALSE)","v":"Depurazione"},"",0]
[0,0,"Gestore",0,"IP",27,{"$f":"+VLOOKUP(F1208,TT_Tabelle_Riferimento!$D$127:$G$164,4,FALSE)","v":"Telecontrollo e teletrasmissione di depurazione"},2,{"$f":"+VLOOKUP(H1208,TT_Tabelle_Riferimento!$F$3:$G$6,2,FALSE)","v":"Fognatura bianca e pulizia / manutenzione caditoie stradali"},2029,{"$f":"+SUMIFS('PdI-crono_inv'!BL:BL,'PdI-crono_inv'!CF:CF,F1208,'PdI-crono_inv'!CE:CE,H1208,'PdI-crono_inv'!J:J,P1208,'PdI-crono_inv'!P:P,\"<>proprietario\")","v":0},null,{"$f":"+SUMIFS('PdI-crono_inv'!BM:BM,'PdI-crono_inv'!CF:CF,F1208,'PdI-crono_inv'!CE:CE,H1208,'PdI-crono_inv'!J:J,P1208,'PdI-crono_inv'!P:P,\"<>proprietario\")+S1208","v":0},null,null,"RES",{"$f":"+VLOOKUP(F1208,TT_Tabelle_Riferimento!$D$127:$E$164,2,FALSE)","v":"Depurazione"},"",0]
[0,0,"Gestore",0,"IP",28,{"$f":"+VLOOKUP(F1209,TT_Tabelle_Riferimento!$D$127:$G$164,4,FALSE)","v":"Altri impianti"},2,{"$f":"+VLOOKUP(H1209,TT_Tabelle_Riferimento!$F$3:$G$6,2,FALSE)","v":"Fognatura bianca e pulizia / manutenzione caditoie stradali"},2029,{"$f":"+SUMIFS('PdI-crono_inv'!BL:BL,'PdI-crono_inv'!CF:CF,F1209,'PdI-crono_inv'!CE:CE,H1209,'PdI-crono_inv'!J:J,P1209,'PdI-crono_inv'!P:P,\"<>proprietario\")","v":0},null,{"$f":"+SUMIFS('PdI-crono_inv'!BM:BM,'PdI-crono_inv'!CF:CF,F1209,'PdI-crono_inv'!CE:CE,H1209,'PdI-crono_inv'!J:J,P1209,'PdI-crono_inv'!P:P,\"<>proprietario\")+S1209","v":0},null,null,"RES",{"$f":"+VLOOKUP(F1209,TT_Tabelle_Riferimento!$D$127:$E$164,2,FALSE)","v":"Comune"},"",0]
[0,0,"Gestore",0,"IP",29,{"$f":"+VLOOKUP(F1210,TT_Tabelle_Riferimento!$D$127:$G$164,4,FALSE)","v":"Laboratori e attrezzature"},2,{"$f":"+VLOOKUP(H1210,TT_Tabelle_Riferimento!$F$3:$G$6,2,FALSE)","v":"Fognatura bianca e pulizia / manutenzione caditoie stradali"},2029,{"$f":"+SUMIFS('PdI-crono_inv'!BL:BL,'PdI-crono_inv'!CF:CF,F1210,'PdI-crono_inv'!CE:CE,H1210,'PdI-crono_inv'!J:J,P1210,'PdI-crono_inv'!P:P,\"<>proprietario\")","v":0},null,{"$f":"+SUMIFS('PdI-crono_inv'!BM:BM,'PdI-crono_inv'!CF:CF,F1210,'PdI-crono_inv'!CE:CE,H1210,'PdI-crono_inv'!J:J,P1210,'PdI-crono_inv'!P:P,\"<>proprietario\")+S1210","v":0},null,null,"RES",{"$f":"+VLOOKUP(F1210,TT_Tabelle_Riferimento!$D$127:$E$164,2,FALSE)","v":"Comune"},"",0]
[0,0,"Gestore",0,"IP",30,{"$f":"+VLOOKUP(F1211,TT_Tabelle_Riferimento!$D$127:$G$164,4,FALSE)","v":"Sistemi informativi"},2,{"$f":"+VLOOKUP(H1211,TT_Tabelle_Riferimento!$F$3:$G$6,2,FALSE)","v":"Fognatura bianca e pulizia / manutenzione caditoie stradali"},2029,{"$f":"+SUMIFS('PdI-crono_inv'!BL:BL,'PdI-crono_inv'!CF:CF,F1211,'PdI-crono_inv'!CE:CE,H1211,'PdI-crono_inv'!J:J,P1211,'PdI-crono_inv'!P:P,\"<>proprietario\")","v":0},null,{"$f":"+SUMIFS('PdI-crono_inv'!BM:BM,'PdI-crono_inv'!CF:CF,F1211,'PdI-crono_inv'!CE:CE,H1211,'PdI-crono_inv'!J:J,P1211,'PdI-crono_inv'!P:P,\"<>proprietario\")+S1211","v":0},null,null,"RES",{"$f":"+VLOOKUP(F1211,TT_Tabelle_Riferimento!$D$127:$E$164,2,FALSE)","v":"Comune"},"",0]
[0,0,"Gestore",0,"IP",31,{"$f":"+VLOOKUP(F1212,TT_Tabelle_Riferimento!$D$127:$G$164,4,FALSE)","v":"Telecontrollo e teletrasmissione"},2,{"$f":"+VLOOKUP(H1212,TT_Tabelle_Riferimento!$F$3:$G$6,2,FALSE)","v":"Fognatura bianca e pulizia / manutenzione caditoie stradali"},2029,{"$f":"+SUMIFS('PdI-crono_inv'!BL:BL,'PdI-crono_inv'!CF:CF,F1212,'PdI-crono_inv'!CE:CE,H1212,'PdI-crono_inv'!J:J,P1212,'PdI-crono_inv'!P:P,\"<>proprietario\")","v":0},null,{"$f":"+SUMIFS('PdI-crono_inv'!BM:BM,'PdI-crono_inv'!CF:CF,F1212,'PdI-crono_inv'!CE:CE,H1212,'PdI-crono_inv'!J:J,P1212,'PdI-crono_inv'!P:P,\"<>proprietario\")+S1212","v":0},null,null,"RES",{"$f":"+VLOOKUP(F1212,TT_Tabelle_Riferimento!$D$127:$E$164,2,FALSE)","v":"Comune"},"",0]
[0,0,"Gestore",0,"IP",32,{"$f":"+VLOOKUP(F1213,TT_Tabelle_Riferimento!$D$127:$G$164,4,FALSE)","v":"Autoveicoli - automezzi"},2,{"$f":"+VLOOKUP(H1213,TT_Tabelle_Riferimento!$F$3:$G$6,2,FALSE)","v":"Fognatura bianca e pulizia / manutenzione caditoie stradali"},2029,{"$f":"+SUMIFS('PdI-crono_inv'!BL:BL,'PdI-crono_inv'!CF:CF,F1213,'PdI-crono_inv'!CE:CE,H1213,'PdI-crono_inv'!J:J,P1213,'PdI-crono_inv'!P:P,\"<>proprietario\")","v":0},null,{"$f":"+SUMIFS('PdI-crono_inv'!BM:BM,'PdI-crono_inv'!CF:CF,F1213,'PdI-crono_inv'!CE:CE,H1213,'PdI-crono_inv'!J:J,P1213,'PdI-crono_inv'!P:P,\"<>proprietario\")+S1213","v":0},null,null,"RES",{"$f":"+VLOOKUP(F1213,TT_Tabelle_Riferimento!$D$127:$E$164,2,FALSE)","v":"Comune"},"",0]
[0,0,"Gestore",0,"IP",1,{"$f":"+VLOOKUP(F1214,TT_Tabelle_Riferimento!$D$127:$G$164,4,FALSE)","v":"Terreni"},2,{"$f":"+VLOOKUP(H1214,TT_Tabelle_Riferimento!$F$3:$G$6,2,FALSE)","v":"Fognatura bianca e pulizia / manutenzione caditoie stradali"},2029,{"$f":"+SUMIFS('PdI-crono_inv'!BL:BL,'PdI-crono_inv'!CF:CF,F1214,'PdI-crono_inv'!CE:CE,H1214,'PdI-crono_inv'!J:J,P1214,'PdI-crono_inv'!P:P,\"<>proprietario\")","v":0},null,{"$f":"+SUMIFS('PdI-crono_inv'!BM:BM,'PdI-crono_inv'!CF:CF,F1214,'PdI-crono_inv'!CE:CE,H1214,'PdI-crono_inv'!J:J,P1214,'PdI-crono_inv'!P:P,\"<>proprietario\")+S1214","v":0},null,null,"RES",{"$f":"+VLOOKUP(F1214,TT_Tabelle_Riferimento!$D$127:$E$164,2,FALSE)","v":"Comune"},"",0]
[0,0,"Gestore",0,"IP",33,{"$f":"+VLOOKUP(F1215,TT_Tabelle_Riferimento!$D$127:$G$164,4,FALSE)","v":"Fabbricati non industriali"},2,{"$f":"+VLOOKUP(H1215,TT_Tabelle_Riferimento!$F$3:$G$6,2,FALSE)","v":"Fognatura bianca e pulizia / manutenzione caditoie stradali"},2029,{"$f":"+SUMIFS('PdI-crono_inv'!BL:BL,'PdI-crono_inv'!CF:CF,F1215,'PdI-crono_inv'!CE:CE,H1215,'PdI-crono_inv'!J:J,P1215,'PdI-crono_inv'!P:P,\"<>proprietario\")","v":0},null,{"$f":"+SUMIFS('PdI-crono_inv'!BM:BM,'PdI-crono_inv'!CF:CF,F1215,'PdI-crono_inv'!CE:CE,H1215,'PdI-crono_inv'!J:J,P1215,'PdI-crono_inv'!P:P,\"<>proprietario\")+S1215","v":0},null,null,"RES",{"$f":"+VLOOKUP(F1215,TT_Tabelle_Riferimento!$D$127:$E$164,2,FALSE)","v":"Comune"},"",0]
[0,0,"Gestore",0,"IP",34,{"$f":"+VLOOKUP(F1216,TT_Tabelle_Riferimento!$D$127:$G$164,4,FALSE)","v":"Fabbricati industriali"},2,{"$f":"+VLOOKUP(H1216,TT_Tabelle_Riferimento!$F$3:$G$6,2,FALSE)","v":"Fognatura bianca e pulizia / manutenzione caditoie stradali"},2029,{"$f":"+SUMIFS('PdI-crono_inv'!BL:BL,'PdI-crono_inv'!CF:CF,F1216,'PdI-crono_inv'!CE:CE,H1216,'PdI-crono_inv'!J:J,P1216,'PdI-crono_inv'!P:P,\"<>proprietario\")","v":0},null,{"$f":"+SUMIFS('PdI-crono_inv'!BM:BM,'PdI-crono_inv'!CF:CF,F1216,'PdI-crono_inv'!CE:CE,H1216,'PdI-crono_inv'!J:J,P1216,'PdI-crono_inv'!P:P,\"<>proprietario\")+S1216","v":0},null,null,"RES",{"$f":"+VLOOKUP(F1216,TT_Tabelle_Riferimento!$D$127:$E$164,2,FALSE)","v":"Comune"},"",0]
[0,0,"Gestore",0,"IP",35,{"$f":"+VLOOKUP(F1217,TT_Tabelle_Riferimento!$D$127:$G$164,4,FALSE)","v":"Costruzioni leggere"},2,{"$f":"+VLOOKUP(H1217,TT_Tabelle_Riferimento!$F$3:$G$6,2,FALSE)","v":"Fognatura bianca e pulizia / manutenzione caditoie stradali"},2029,{"$f":"+SUMIFS('PdI-crono_inv'!BL:BL,'PdI-crono_inv'!CF:CF,F1217,'PdI-crono_inv'!CE:CE,H1217,'PdI-crono_inv'!J:J,P1217,'PdI-crono_inv'!P:P,\"<>proprietario\")","v":0},null,{"$f":"+SUMIFS('PdI-crono_inv'!BM:BM,'PdI-crono_inv'!CF:CF,F1217,'PdI-crono_inv'!CE:CE,H1217,'PdI-crono_inv'!J:J,P1217,'PdI-crono_inv'!P:P,\"<>proprietario\")+S1217","v":0},null,null,"RES",{"$f":"+VLOOKUP(F1217,TT_Tabelle_Riferimento!$D$127:$E$164,2,FALSE)","v":"Comune"},"",0]
[0,0,"Gestore",0,"IP",36,{"$f":"+VLOOKUP(F1218,TT_Tabelle_Riferimento!$D$127:$G$164,4,FALSE)","v":"Studi, ricerche, brevetti, diritti di utilizzazione"},2,{"$f":"+VLOOKUP(H1218,TT_Tabelle_Riferimento!$F$3:$G$6,2,FALSE)","v":"Fognatura bianca e pulizia / manutenzione caditoie stradali"},2029,{"$f":"+SUMIFS('PdI-crono_inv'!BL:BL,'PdI-crono_inv'!CF:CF,F1218,'PdI-crono_inv'!CE:CE,H1218,'PdI-crono_inv'!J:J,P1218,'PdI-crono_inv'!P:P,\"<>proprietario\")","v":0},null,{"$f":"+SUMIFS('PdI-crono_inv'!BM:BM,'PdI-crono_inv'!CF:CF,F1218,'PdI-crono_inv'!CE:CE,H1218,'PdI-crono_inv'!J:J,P1218,'PdI-crono_inv'!P:P,\"<>proprietario\")+S1218","v":0},null,null,"RES",{"$f":"+VLOOKUP(F1218,TT_Tabelle_Riferimento!$D$127:$E$164,2,FALSE)","v":"Comune"},"",0]
[0,0,"Gestore",0,"IP",37,{"$f":"+VLOOKUP(F1219,TT_Tabelle_Riferimento!$D$127:$G$164,4,FALSE)","v":"Altre immobilizzazioni materiali e immateriali"},2,{"$f":"+VLOOKUP(H1219,TT_Tabelle_Riferimento!$F$3:$G$6,2,FALSE)","v":"Fognatura bianca e pulizia / manutenzione caditoie stradali"},2029,{"$f":"+SUMIFS('PdI-crono_inv'!BL:BL,'PdI-crono_inv'!CF:CF,F1219,'PdI-crono_inv'!CE:CE,H1219,'PdI-crono_inv'!J:J,P1219,'PdI-crono_inv'!P:P,\"<>proprietario\")","v":0},null,{"$f":"+SUMIFS('PdI-crono_inv'!BM:BM,'PdI-crono_inv'!CF:CF,F1219,'PdI-crono_inv'!CE:CE,H1219,'PdI-crono_inv'!J:J,P1219,'PdI-crono_inv'!P:P,\"<>proprietario\")+S1219","v":0},null,null,"RES",{"$f":"+VLOOKUP(F1219,TT_Tabelle_Riferimento!$D$127:$E$164,2,FALSE)","v":"Comune"},"",0]
[0,0,"Gestore",0,"IP",38,{"$f":"+VLOOKUP(F1220,TT_Tabelle_Riferimento!$D$127:$G$164,4,FALSE)","v":"Grandi dighe (sbarramenti che superano i quindici metri di altezza o che determinano un invaso superiore a 1 milione di metri cubi)"},2,{"$f":"+VLOOKUP(H1220,TT_Tabelle_Riferimento!$F$3:$G$6,2,FALSE)","v":"Fognatura bianca e pulizia / manutenzione caditoie stradali"},2029,{"$f":"+SUMIFS('PdI-crono_inv'!BL:BL,'PdI-crono_inv'!CF:CF,F1220,'PdI-crono_inv'!CE:CE,H1220,'PdI-crono_inv'!J:J,P1220,'PdI-crono_inv'!P:P,\"<>proprietario\")","v":0},null,{"$f":"+SUMIFS('PdI-crono_inv'!BM:BM,'PdI-crono_inv'!CF:CF,F1220,'PdI-crono_inv'!CE:CE,H1220,'PdI-crono_inv'!J:J,P1220,'PdI-crono_inv'!P:P,\"<>proprietario\")+S1220","v":0},null,null,"RES",{"$f":"+VLOOKUP(F1220,TT_Tabelle_Riferimento!$D$127:$E$164,2,FALSE)","v":"Acquedotto"},"",0]
[0,0,"Gestore",0,"IP",39,{"$f":"+VLOOKUP(F1221,TT_Tabelle_Riferimento!$D$127:$G$164,4,FALSE)","v":"Piccole dighe (sbarramenti che non superano i quindici metri di altezza o che determinano un invaso non superiore a 1 milione di metri cubi)"},2,{"$f":"+VLOOKUP(H1221,TT_Tabelle_Riferimento!$F$3:$G$6,2,FALSE)","v":"Fognatura bianca e pulizia / manutenzione caditoie stradali"},2029,{"$f":"+SUMIFS('PdI-crono_inv'!BL:BL,'PdI-crono_inv'!CF:CF,F1221,'PdI-crono_inv'!CE:CE,H1221,'PdI-crono_inv'!J:J,P1221,'PdI-crono_inv'!P:P,\"<>proprietario\")","v":0},null,{"$f":"+SUMIFS('PdI-crono_inv'!BM:BM,'PdI-crono_inv'!CF:CF,F1221,'PdI-crono_inv'!CE:CE,H1221,'PdI-crono_inv'!J:J,P1221,'PdI-crono_inv'!P:P,\"<>proprietario\")+S1221","v":0},null,null,"RES",{"$f":"+VLOOKUP(F1221,TT_Tabelle_Riferimento!$D$127:$E$164,2,FALSE)","v":"Acquedotto"},"",0]
[{"$f":"+idato","v":0},{"$f":"+idgestore","v":0},"Gestore",0,"IP",2,{"$f":"+VLOOKUP(F1222,TT_Tabelle_Riferimento!$D$127:$G$164,4,FALSE)","v":"Condotte di acquedotto"},3,{"$f":"+VLOOKUP(H1222,TT_Tabelle_Riferimento!$F$3:$G$6,2,FALSE)","v":"Altri servizi idrici"},2029,{"$f":"+SUMIFS('PdI-crono_inv'!BL:BL,'PdI-crono_inv'!CF:CF,F1222,'PdI-crono_inv'!CE:CE,H1222,'PdI-crono_inv'!J:J,P1222,'PdI-crono_inv'!P:P,\"<>proprietario\")","v":0},null,{"$f":"+SUMIFS('PdI-crono_inv'!BM:BM,'PdI-crono_inv'!CF:CF,F1222,'PdI-crono_inv'!CE:CE,H1222,'PdI-crono_inv'!J:J,P1222,'PdI-crono_inv'!P:P,\"<>proprietario\")+S1222","v":0},null,null,"RES",{"$f":"+VLOOKUP(F1222,TT_Tabelle_Riferimento!$D$127:$E$164,2,FALSE)","v":"Acquedotto"},"",0]
[0,0,"Gestore",0,"IP",3,{"$f":"+VLOOKUP(F1223,TT_Tabelle_Riferimento!$D$127:$G$164,4,FALSE)","v":"Opere idrauliche fisse di acquedotto"},3,{"$f":"+VLOOKUP(H1223,TT_Tabelle_Riferimento!$F$3:$G$6,2,FALSE)","v":"Altri servizi idrici"},2029,{"$f":"+SUMIFS('PdI-crono_inv'!BL:BL,'PdI-crono_inv'!CF:CF,F1223,'PdI-crono_inv'!CE:CE,H1223,'PdI-crono_inv'!J:J,P1223,'PdI-crono_inv'!P:P,\"<>proprietario\")","v":0},null,{"$f":"+SUMIFS('PdI-crono_inv'!BM:BM,'PdI-crono_inv'!CF:CF,F1223,'PdI-crono_inv'!CE:CE,H1223,'PdI-crono_inv'!J:J,P1223,'PdI-crono_inv'!P:P,\"<>proprietario\")+S1223","v":0},null,null,"RES",{"$f":"+VLOOKUP(F1223,TT_Tabelle_Riferimento!$D$127:$E$164,2,FALSE)","v":"Acquedotto"},"",{"$f":"+IFERROR(HLOOKUP(J1223,$X$2:$Y$5,4,FALSE)*K1223,0)","v":0}]
[0,0,"Gestore",0,"IP",4,{"$f":"+VLOOKUP(F1224,TT_Tabelle_Riferimento!$D$127:$G$164,4,FALSE)","v":"Serbatoi"},3,{"$f":"+VLOOKUP(H1224,TT_Tabelle_Riferimento!$F$3:$G$6,2,FALSE)","v":"Altri servizi idrici"},2029,{"$f":"+SUMIFS('PdI-crono_inv'!BL:BL,'PdI-crono_inv'!CF:CF,F1224,'PdI-crono_inv'!CE:CE,H1224,'PdI-crono_inv'!J:J,P1224,'PdI-crono_inv'!P:P,\"<>proprietario\")","v":0},null,{"$f":"+SUMIFS('PdI-crono_inv'!BM:BM,'PdI-crono_inv'!CF:CF,F1224,'PdI-crono_inv'!CE:CE,H1224,'PdI-crono_inv'!J:J,P1224,'PdI-crono_inv'!P:P,\"<>proprietario\")+S1224","v":0},null,null,"RES",{"$f":"+VLOOKUP(F1224,TT_Tabelle_Riferimento!$D$127:$E$164,2,FALSE)","v":"Acquedotto"},"",0]
[0,0,"Gestore",0,"IP",5,{"$f":"+VLOOKUP(F1225,TT_Tabelle_Riferimento!$D$127:$G$164,4,FALSE)","v":"Impianti di sollevamento e pompaggio di acquedotto"},3,{"$f":"+VLOOKUP(H1225,TT_Tabelle_Riferimento!$F$3:$G$6,2,FALSE)","v":"Altri servizi idrici"},2029,{"$f":"+SUMIFS('PdI-crono_inv'!BL:BL,'PdI-crono_inv'!CF:CF,F1225,'PdI-crono_inv'!CE:CE,H1225,'PdI-crono_inv'!J:J,P1225,'PdI-crono_inv'!P:P,\"<>proprietario\")","v":0},null,{"$f":"+SUMIFS('PdI-crono_inv'!BM:BM,'PdI-crono_inv'!CF:CF,F1225,'PdI-crono_inv'!CE:CE,H1225,'PdI-crono_inv'!J:J,P1225,'PdI-crono_inv'!P:P,\"<>proprietario\")+S1225","v":0},null,null,"RES",{"$f":"+VLOOKUP(F1225,TT_Tabelle_Riferimento!$D$127:$E$164,2,FALSE)","v":"Acquedotto"},"",0]
[0,0,"Gestore",0,"IP",6,{"$f":"+VLOOKUP(F1226,TT_Tabelle_Riferimento!$D$127:$G$164,4,FALSE)","v":"Impianti di potabilizzazione"},3,{"$f":"+VLOOKUP(H1226,TT_Tabelle_Riferimento!$F$3:$G$6,2,FALSE)","v":"Altri servizi idrici"},2029,{"$f":"+SUMIFS('PdI-crono_inv'!BL:BL,'PdI-crono_inv'!CF:CF,F1226,'PdI-crono_inv'!CE:CE,H1226,'PdI-crono_inv'!J:J,P1226,'PdI-crono_inv'!P:P,\"<>proprietario\")","v":0},null,{"$f":"+SUMIFS('PdI-crono_inv'!BM:BM,'PdI-crono_inv'!CF:CF,F1226,'PdI-crono_inv'!CE:CE,H1226,'PdI-crono_inv'!J:J,P1226,'PdI-crono_inv'!P:P,\"<>proprietario\")+S1226","v":0},null,null,"RES",{"$f":"+VLOOKUP(F1226,TT_Tabelle_Riferimento!$D$127:$E$164,2,FALSE)","v":"Acquedotto"},"",0]
[0,0,"Gestore",0,"IP",7,{"$f":"+VLOOKUP(F1227,TT_Tabelle_Riferimento!$D$127:$G$164,4,FALSE)","v":"Altri trattamenti di potabilizzazione (tra cui dispositivi di disinfezione, stacciatura, filtrazione, addolcimento)"},3,{"$f":"+VLOOKUP(H1227,TT_Tabelle_Riferimento!$F$3:$G$6,2,FALSE)","v":"Altri servizi idrici"},2029,{"$f":"+SUMIFS('PdI-crono_inv'!BL:BL,'PdI-crono_inv'!CF:CF,F1227,'PdI-crono_inv'!CE:CE,H1227,'PdI-crono_inv'!J:J,P1227,'PdI-crono_inv'!P:P,\"<>proprietario\")","v":0},null,{"$f":"+SUMIFS('PdI-crono_inv'!BM:BM,'PdI-crono_inv'!CF:CF,F1227,'PdI-crono_inv'!CE:CE,H1227,'PdI-crono_inv'!J:J,P1227,'PdI-crono_inv'!P:P,\"<>proprietario\")+S1227","v":0},null,null,"RES",{"$f":"+VLOOKUP(F1227,TT_Tabelle_Riferimento!$D$127:$E$164,2,FALSE)","v":"Acquedotto"},"",0]
[0,0,"Gestore",0,"IP",8,{"$f":"+VLOOKUP(F1228,TT_Tabelle_Riferimento!$D$127:$G$164,4,FALSE)","v":"Gruppi di misura - altre attrezzature di acquedotto"},3,{"$f":"+VLOOKUP(H1228,TT_Tabelle_Riferimento!$F$3:$G$6,2,FALSE)","v":"Altri servizi idrici"},2029,{"$f":"+SUMIFS('PdI-crono_inv'!BL:BL,'PdI-crono_inv'!CF:CF,F1228,'PdI-crono_inv'!CE:CE,H1228,'PdI-crono_inv'!J:J,P1228,'PdI-crono_inv'!P:P,\"<>proprietario\")","v":0},null,{"$f":"+SUMIFS('PdI-crono_inv'!BM:BM,'PdI-crono_inv'!CF:CF,F1228,'PdI-crono_inv'!CE:CE,H1228,'PdI-crono_inv'!J:J,P1228,'PdI-crono_inv'!P:P,\"<>proprietario\")+S1228","v":0},null,null,"RES",{"$f":"+VLOOKUP(F1228,TT_Tabelle_Riferimento!$D$127:$E$164,2,FALSE)","v":"Acquedotto"},"",0]
[0,0,"Gestore",0,"IP",9,{"$f":"+VLOOKUP(F1229,TT_Tabelle_Riferimento!$D$127:$G$164,4,FALSE)","v":"Sistemi informativi di acquedotto"},3,{"$f":"+VLOOKUP(H1229,TT_Tabelle_Riferimento!$F$3:$G$6,2,FALSE)","v":"Altri servizi idrici"},2029,{"$f":"+SUMIFS('PdI-crono_inv'!BL:BL,'PdI-crono_inv'!CF:CF,F1229,'PdI-crono_inv'!CE:CE,H1229,'PdI-crono_inv'!J:J,P1229,'PdI-crono_inv'!P:P,\"<>proprietario\")","v":0},null,{"$f":"+SUMIFS('PdI-crono_inv'!BM:BM,'PdI-crono_inv'!CF:CF,F1229,'PdI-crono_inv'!CE:CE,H1229,'PdI-crono_inv'!J:J,P1229,'PdI-crono_inv'!P:P,\"<>proprietario\")+S1229","v":0},null,null,"RES",{"$f":"+VLOOKUP(F1229,TT_Tabelle_Riferimento!$D$127:$E$164,2,FALSE)","v":"Acquedotto"},"",0]
[0,0,"Gestore",0,"IP",10,{"$f":"+VLOOKUP(F1230,TT_Tabelle_Riferimento!$D$127:$G$164,4,FALSE)","v":"Telecontrollo e teletrasmissione di acquedotto"},3,{"$f":"+VLOOKUP(H1230,TT_Tabelle_Riferimento!$F$3:$G$6,2,FALSE)","v":"Altri servizi idrici"},2029,{"$f":"+SUMIFS('PdI-crono_inv'!BL:BL,'PdI-crono_inv'!CF:CF,F1230,'PdI-crono_inv'!CE:CE,H1230,'PdI-crono_inv'!J:J,P1230,'PdI-crono_inv'!P:P,\"<>proprietario\")","v":0},null,{"$f":"+SUMIFS('PdI-crono_inv'!BM:BM,'PdI-crono_inv'!CF:CF,F1230,'PdI-crono_inv'!CE:CE,H1230,'PdI-crono_inv'!J:J,P1230,'PdI-crono_inv'!P:P,\"<>proprietario\")+S1230","v":0},null,null,"RES",{"$f":"+VLOOKUP(F1230,TT_Tabelle_Riferimento!$D$127:$E$164,2,FALSE)","v":"Acquedotto"},"",0]
[0,0,"Gestore",0,"IP",11,{"$f":"+VLOOKUP(F1231,TT_Tabelle_Riferimento!$D$127:$G$164,4,FALSE)","v":"Condotte fognarie"},3,{"$f":"+VLOOKUP(H1231,TT_Tabelle_Riferimento!$F$3:$G$6,2,FALSE)","v":"Altri servizi idrici"},2029,{"$f":"+SUMIFS('PdI-crono_inv'!BL:BL,'PdI-crono_inv'!CF:CF,F1231,'PdI-crono_inv'!CE:CE,H1231,'PdI-crono_inv'!J:J,P1231,'PdI-crono_inv'!P:P,\"<>proprietario\")","v":0},null,{"$f":"+SUMIFS('PdI-crono_inv'!BM:BM,'PdI-crono_inv'!CF:CF,F1231,'PdI-crono_inv'!CE:CE,H1231,'PdI-crono_inv'!J:J,P1231,'PdI-crono_inv'!P:P,\"<>proprietario\")+S1231","v":0},null,null,"RES",{"$f":"+VLOOKUP(F1231,TT_Tabelle_Riferimento!$D$127:$E$164,2,FALSE)","v":"Fognatura"},"",0]
[0,0,"Gestore",0,"IP",12,{"$f":"+VLOOKUP(F1232,TT_Tabelle_Riferimento!$D$127:$G$164,4,FALSE)","v":"Sifoni e scaricatori di piena e altre opere idrauliche fisse di fognatura"},3,{"$f":"+VLOOKUP(H1232,TT_Tabelle_Riferimento!$F$3:$G$6,2,FALSE)","v":"Altri servizi idrici"},2029,{"$f":"+SUMIFS('PdI-crono_inv'!BL:BL,'PdI-crono_inv'!CF:CF,F1232,'PdI-crono_inv'!CE:CE,H1232,'PdI-crono_inv'!J:J,P1232,'PdI-crono_inv'!P:P,\"<>proprietario\")","v":0},null,{"$f":"+SUMIFS('PdI-crono_inv'!BM:BM,'PdI-crono_inv'!CF:CF,F1232,'PdI-crono_inv'!CE:CE,H1232,'PdI-crono_inv'!J:J,P1232,'PdI-crono_inv'!P:P,\"<>proprietario\")+S1232","v":0},null,null,"RES",{"$f":"+VLOOKUP(F1232,TT_Tabelle_Riferimento!$D$127:$E$164,2,FALSE)","v":"Fognatura"},"",0]
[0,0,"Gestore",0,"IP",13,{"$f":"+VLOOKUP(F1233,TT_Tabelle_Riferimento!$D$127:$G$164,4,FALSE)","v":"Vasche di laminazione e vasche di prima pioggia"},3,{"$f":"+VLOOKUP(H1233,TT_Tabelle_Riferimento!$F$3:$G$6,2,FALSE)","v":"Altri servizi idrici"},2029,{"$f":"+SUMIFS('PdI-crono_inv'!BL:BL,'PdI-crono_inv'!CF:CF,F1233,'PdI-crono_inv'!CE:CE,H1233,'PdI-crono_inv'!J:J,P1233,'PdI-crono_inv'!P:P,\"<>proprietario\")","v":0},null,{"$f":"+SUMIFS('PdI-crono_inv'!BM:BM,'PdI-crono_inv'!CF:CF,F1233,'PdI-crono_inv'!CE:CE,H1233,'PdI-crono_inv'!J:J,P1233,'PdI-crono_inv'!P:P,\"<>proprietario\")+S1233","v":0},null,null,"RES",{"$f":"+VLOOKUP(F1233,TT_Tabelle_Riferimento!$D$127:$E$164,2,FALSE)","v":"Fognatura"},"",0]
[0,0,"Gestore",0,"IP",14,{"$f":"+VLOOKUP(F1234,TT_Tabelle_Riferimento!$D$127:$G$164,4,FALSE)","v":"Impianti di sollevamento e pompaggio di fognatura"},3,{"$f":"+VLOOKUP(H1234,TT_Tabelle_Riferimento!$F$3:$G$6,2,FALSE)","v":"Altri servizi idrici"},2029,{"$f":"+SUMIFS('PdI-crono_inv'!BL:BL,'PdI-crono_inv'!CF:CF,F1234,'PdI-crono_inv'!CE:CE,H1234,'PdI-crono_inv'!J:J,P1234,'PdI-crono_inv'!P:P,\"<>proprietario\")","v":0},null,{"$f":"+SUMIFS('PdI-crono_inv'!BM:BM,'PdI-crono_inv'!CF:CF,F1234,'PdI-crono_inv'!CE:CE,H1234,'PdI-crono_inv'!J:J,P1234,'PdI-crono_inv'!P:P,\"<>proprietario\")+S1234","v":0},null,null,"RES",{"$f":"+VLOOKUP(F1234,TT_Tabelle_Riferimento!$D$127:$E$164,2,FALSE)","v":"Fognatura"},"",0]
[0,0,"Gestore",0,"IP",15,{"$f":"+VLOOKUP(F1235,TT_Tabelle_Riferimento!$D$127:$G$164,4,FALSE)","v":"Gruppi di misura - altre attrezzature di fognatura"},3,{"$f":"+VLOOKUP(H1235,TT_Tabelle_Riferimento!$F$3:$G$6,2,FALSE)","v":"Altri servizi idrici"},2029,{"$f":"+SUMIFS('PdI-crono_inv'!BL:BL,'PdI-crono_inv'!CF:CF,F1235,'PdI-crono_inv'!CE:CE,H1235,'PdI-crono_inv'!J:J,P1235,'PdI-crono_inv'!P:P,\"<>proprietario\")","v":0},null,{"$f":"+SUMIFS('PdI-crono_inv'!BM:BM,'PdI-crono_inv'!CF:CF,F1235,'PdI-crono_inv'!CE:CE,H1235,'PdI-crono_inv'!J:J,P1235,'PdI-crono_inv'!P:P,\"<>proprietario\")+S1235","v":0},null,null,"RES",{"$f":"+VLOOKUP(F1235,TT_Tabelle_Riferimento!$D$127:$E$164,2,FALSE)","v":"Fognatura"},"",0]
[0,0,"Gestore",0,"IP",16,{"$f":"+VLOOKUP(F1236,TT_Tabelle_Riferimento!$D$127:$G$164,4,FALSE)","v":"Sistemi informativi di fognatura"},3,{"$f":"+VLOOKUP(H1236,TT_Tabelle_Riferimento!$F$3:$G$6,2,FALSE)","v":"Altri servizi idrici"},2029,{"$f":"+SUMIFS('PdI-crono_inv'!BL:BL,'PdI-crono_inv'!CF:CF,F1236,'PdI-crono_inv'!CE:CE,H1236,'PdI-crono_inv'!J:J,P1236,'PdI-crono_inv'!P:P,\"<>proprietario\")","v":0},null,{"$f":"+SUMIFS('PdI-crono_inv'!BM:BM,'PdI-crono_inv'!CF:CF,F1236,'PdI-crono_inv'!CE:CE,H1236,'PdI-crono_inv'!J:J,P1236,'PdI-crono_inv'!P:P,\"<>proprietario\")+S1236","v":0},null,null,"RES",{"$f":"+VLOOKUP(F1236,TT_Tabelle_Riferimento!$D$127:$E$164,2,FALSE)","v":"Fognatura"},"",0]
[0,0,"Gestore",0,"IP",18,{"$f":"+VLOOKUP(F1237,TT_Tabelle_Riferimento!$D$127:$G$164,4,FALSE)","v":"Telecontrollo e teletrasmissione di fognatura"},3,{"$f":"+VLOOKUP(H1237,TT_Tabelle_Riferimento!$F$3:$G$6,2,FALSE)","v":"Altri servizi idrici"},2029,{"$f":"+SUMIFS('PdI-crono_inv'!BL:BL,'PdI-crono_inv'!CF:CF,F1237,'PdI-crono_inv'!CE:CE,H1237,'PdI-crono_inv'!J:J,P1237,'PdI-crono_inv'!P:P,\"<>proprietario\")","v":0},null,{"$f":"+SUMIFS('PdI-crono_inv'!BM:BM,'PdI-crono_inv'!CF:CF,F1237,'PdI-crono_inv'!CE:CE,H1237,'PdI-crono_inv'!J:J,P1237,'PdI-crono_inv'!P:P,\"<>proprietario\")+S1237","v":0},null,null,"RES",{"$f":"+VLOOKUP(F1237,TT_Tabelle_Riferimento!$D$127:$E$164,2,FALSE)","v":"Fognatura"},"",0]
[0,0,"Gestore",0,"IP",19,{"$f":"+VLOOKUP(F1238,TT_Tabelle_Riferimento!$D$127:$G$164,4,FALSE)","v":"Impianti di sollevamento e pompaggio di depurazione"},3,{"$f":"+VLOOKUP(H1238,TT_Tabelle_Riferimento!$F$3:$G$6,2,FALSE)","v":"Altri servizi idrici"},2029,{"$f":"+SUMIFS('PdI-crono_inv'!BL:BL,'PdI-crono_inv'!CF:CF,F1238,'PdI-crono_inv'!CE:CE,H1238,'PdI-crono_inv'!J:J,P1238,'PdI-crono_inv'!P:P,\"<>proprietario\")","v":0},null,{"$f":"+SUMIFS('PdI-crono_inv'!BM:BM,'PdI-crono_inv'!CF:CF,F1238,'PdI-crono_inv'!CE:CE,H1238,'PdI-crono_inv'!J:J,P1238,'PdI-crono_inv'!P:P,\"<>proprietario\")+S1238","v":0},null,null,"RES",{"$f":"+VLOOKUP(F1238,TT_Tabelle_Riferimento!$D$127:$E$164,2,FALSE)","v":"Depurazione"},"",0]
[0,0,"Gestore",0,"IP",20,{"$f":"+VLOOKUP(F1239,TT_Tabelle_Riferimento!$D$127:$G$164,4,FALSE)","v":"Tecniche naturali di depurazione (tra cui fitodepurazione e lagunaggio)"},3,{"$f":"+VLOOKUP(H1239,TT_Tabelle_Riferimento!$F$3:$G$6,2,FALSE)","v":"Altri servizi idrici"},2029,{"$f":"+SUMIFS('PdI-crono_inv'!BL:BL,'PdI-crono_inv'!CF:CF,F1239,'PdI-crono_inv'!CE:CE,H1239,'PdI-crono_inv'!J:J,P1239,'PdI-crono_inv'!P:P,\"<>proprietario\")","v":0},null,{"$f":"+SUMIFS('PdI-crono_inv'!BM:BM,'PdI-crono_inv'!CF:CF,F1239,'PdI-crono_inv'!CE:CE,H1239,'PdI-crono_inv'!J:J,P1239,'PdI-crono_inv'!P:P,\"<>proprietario\")+S1239","v":0},null,null,"RES",{"$f":"+VLOOKUP(F1239,TT_Tabelle_Riferimento!$D$127:$E$164,2,FALSE)","v":"Depurazione"},"",0]
[0,0,"Gestore",0,"IP",21,{"$f":"+VLOOKUP(F1240,TT_Tabelle_Riferimento!$D$127:$G$164,4,FALSE)","v":"Impianti di depurazione – trattamenti sino al preliminare, integrativo, primario - fosse settiche e fosse Imhoff"},3,{"$f":"+VLOOKUP(H1240,TT_Tabelle_Riferimento!$F$3:$G$6,2,FALSE)","v":"Altri servizi idrici"},2029,{"$f":"+SUMIFS('PdI-crono_inv'!BL:BL,'PdI-crono_inv'!CF:CF,F1240,'PdI-crono_inv'!CE:CE,H1240,'PdI-crono_inv'!J:J,P1240,'PdI-crono_inv'!P:P,\"<>proprietario\")","v":0},null,{"$f":"+SUMIFS('PdI-crono_inv'!BM:BM,'PdI-crono_inv'!CF:CF,F1240,'PdI-crono_inv'!CE:CE,H1240,'PdI-crono_inv'!J:J,P1240,'PdI-crono_inv'!P:P,\"<>proprietario\")+S1240","v":0},null,null,"RES",{"$f":"+VLOOKUP(F1240,TT_Tabelle_Riferimento!$D$127:$E$164,2,FALSE)","v":"Depurazione"},"",0]
[0,0,"Gestore",0,"IP",22,{"$f":"+VLOOKUP(F1241,TT_Tabelle_Riferimento!$D$127:$G$164,4,FALSE)","v":"Impianti di depurazione – trattamenti sino al secondario"},3,{"$f":"+VLOOKUP(H1241,TT_Tabelle_Riferimento!$F$3:$G$6,2,FALSE)","v":"Altri servizi idrici"},2029,{"$f":"+SUMIFS('PdI-crono_inv'!BL:BL,'PdI-crono_inv'!CF:CF,F1241,'PdI-crono_inv'!CE:CE,H1241,'PdI-crono_inv'!J:J,P1241,'PdI-crono_inv'!P:P,\"<>proprietario\")","v":0},null,{"$f":"+SUMIFS('PdI-crono_inv'!BM:BM,'PdI-crono_inv'!CF:CF,F1241,'PdI-crono_inv'!CE:CE,H1241,'PdI-crono_inv'!J:J,P1241,'PdI-crono_inv'!P:P,\"<>proprietario\")+S1241","v":0},null,null,"RES",{"$f":"+VLOOKUP(F1241,TT_Tabelle_Riferimento!$D$127:$E$164,2,FALSE)","v":"Depurazione"},"",0]
[0,0,"Gestore",0,"IP",23,{"$f":"+VLOOKUP(F1242,TT_Tabelle_Riferimento!$D$127:$G$164,4,FALSE)","v":"Impianti di depurazione – trattamenti sino al terziario e terziario avanzato"},3,{"$f":"+VLOOKUP(H1242,TT_Tabelle_Riferimento!$F$3:$G$6,2,FALSE)","v":"Altri servizi idrici"},2029,{"$f":"+SUMIFS('PdI-crono_inv'!BL:BL,'PdI-crono_inv'!CF:CF,F1242,'PdI-crono_inv'!CE:CE,H1242,'PdI-crono_inv'!J:J,P1242,'PdI-crono_inv'!P:P,\"<>proprietario\")","v":0},null,{"$f":"+SUMIFS('PdI-crono_inv'!BM:BM,'PdI-crono_inv'!CF:CF,F1242,'PdI-crono_inv'!CE:CE,H1242,'PdI-crono_inv'!J:J,P1242,'PdI-crono_inv'!P:P,\"<>proprietario\")+S1242","v":0},null,null,"RES",{"$f":"+VLOOKUP(F1242,TT_Tabelle_Riferimento!$D$127:$E$164,2,FALSE)","v":"Depurazione"},"",0]
[0,0,"Gestore",0,"IP",24,{"$f":"+VLOOKUP(F1243,TT_Tabelle_Riferimento!$D$127:$G$164,4,FALSE)","v":"Impianti di essiccamento fanghi e di valorizzazione dei fanghi (tra cui mono-incenerimento, pirolisi, gassificazione)"},3,{"$f":"+VLOOKUP(H1243,TT_Tabelle_Riferimento!$F$3:$G$6,2,FALSE)","v":"Altri servizi idrici"},2029,{"$f":"+SUMIFS('PdI-crono_inv'!BL:BL,'PdI-crono_inv'!CF:CF,F1243,'PdI-crono_inv'!CE:CE,H1243,'PdI-crono_inv'!J:J,P1243,'PdI-crono_inv'!P:P,\"<>proprietario\")","v":0},null,{"$f":"+SUMIFS('PdI-crono_inv'!BM:BM,'PdI-crono_inv'!CF:CF,F1243,'PdI-crono_inv'!CE:CE,H1243,'PdI-crono_inv'!J:J,P1243,'PdI-crono_inv'!P:P,\"<>proprietario\")+S1243","v":0},null,null,"RES",{"$f":"+VLOOKUP(F1243,TT_Tabelle_Riferimento!$D$127:$E$164,2,FALSE)","v":"Depurazione"},"",0]
[0,0,"Gestore",0,"IP",25,{"$f":"+VLOOKUP(F1244,TT_Tabelle_Riferimento!$D$127:$G$164,4,FALSE)","v":"Gruppi di misura - altre attrezzature di depurazione"},3,{"$f":"+VLOOKUP(H1244,TT_Tabelle_Riferimento!$F$3:$G$6,2,FALSE)","v":"Altri servizi idrici"},2029,{"$f":"+SUMIFS('PdI-crono_inv'!BL:BL,'PdI-crono_inv'!CF:CF,F1244,'PdI-crono_inv'!CE:CE,H1244,'PdI-crono_inv'!J:J,P1244,'PdI-crono_inv'!P:P,\"<>proprietario\")","v":0},null,{"$f":"+SUMIFS('PdI-crono_inv'!BM:BM,'PdI-crono_inv'!CF:CF,F1244,'PdI-crono_inv'!CE:CE,H1244,'PdI-crono_inv'!J:J,P1244,'PdI-crono_inv'!P:P,\"<>proprietario\")+S1244","v":0},null,null,"RES",{"$f":"+VLOOKUP(F1244,TT_Tabelle_Riferimento!$D$127:$E$164,2,FALSE)","v":"Depurazione"},"",0]
[0,0,"Gestore",0,"IP",26,{"$f":"+VLOOKUP(F1245,TT_Tabelle_Riferimento!$D$127:$G$164,4,FALSE)","v":"Sistemi informativi di depurazione"},3,{"$f":"+VLOOKUP(H1245,TT_Tabelle_Riferimento!$F$3:$G$6,2,FALSE)","v":"Altri servizi idrici"},2029,{"$f":"+SUMIFS('PdI-crono_inv'!BL:BL,'PdI-crono_inv'!CF:CF,F1245,'PdI-crono_inv'!CE:CE,H1245,'PdI-crono_inv'!J:J,P1245,'PdI-crono_inv'!P:P,\"<>proprietario\")","v":0},null,{"$f":"+SUMIFS('PdI-crono_inv'!BM:BM,'PdI-crono_inv'!CF:CF,F1245,'PdI-crono_inv'!CE:CE,H1245,'PdI-crono_inv'!J:J,P1245,'PdI-crono_inv'!P:P,\"<>proprietario\")+S1245","v":0},null,null,"RES",{"$f":"+VLOOKUP(F1245,TT_Tabelle_Riferimento!$D$127:$E$164,2,FALSE)","v":"Depurazione"},"",0]
[0,0,"Gestore",0,"IP",27,{"$f":"+VLOOKUP(F1246,TT_Tabelle_Riferimento!$D$127:$G$164,4,FALSE)","v":"Telecontrollo e teletrasmissione di depurazione"},3,{"$f":"+VLOOKUP(H1246,TT_Tabelle_Riferimento!$F$3:$G$6,2,FALSE)","v":"Altri servizi idrici"},2029,{"$f":"+SUMIFS('PdI-crono_inv'!BL:BL,'PdI-crono_inv'!CF:CF,F1246,'PdI-crono_inv'!CE:CE,H1246,'PdI-crono_inv'!J:J,P1246,'PdI-crono_inv'!P:P,\"<>proprietario\")","v":0},null,{"$f":"+SUMIFS('PdI-crono_inv'!BM:BM,'PdI-crono_inv'!CF:CF,F1246,'PdI-crono_inv'!CE:CE,H1246,'PdI-crono_inv'!J:J,P1246,'PdI-crono_inv'!P:P,\"<>proprietario\")+S1246","v":0},null,null,"RES",{"$f":"+VLOOKUP(F1246,TT_Tabelle_Riferimento!$D$127:$E$164,2,FALSE)","v":"Depurazione"},"",0]
[0,0,"Gestore",0,"IP",28,{"$f":"+VLOOKUP(F1247,TT_Tabelle_Riferimento!$D$127:$G$164,4,FALSE)","v":"Altri impianti"},3,{"$f":"+VLOOKUP(H1247,TT_Tabelle_Riferimento!$F$3:$G$6,2,FALSE)","v":"Altri servizi idrici"},2029,{"$f":"+SUMIFS('PdI-crono_inv'!BL:BL,'PdI-crono_inv'!CF:CF,F1247,'PdI-crono_inv'!CE:CE,H1247,'PdI-crono_inv'!J:J,P1247,'PdI-crono_inv'!P:P,\"<>proprietario\")","v":0},null,{"$f":"+SUMIFS('PdI-crono_inv'!BM:BM,'PdI-crono_inv'!CF:CF,F1247,'PdI-crono_inv'!CE:CE,H1247,'PdI-crono_inv'!J:J,P1247,'PdI-crono_inv'!P:P,\"<>proprietario\")+S1247","v":0},null,null,"RES",{"$f":"+VLOOKUP(F1247,TT_Tabelle_Riferimento!$D$127:$E$164,2,FALSE)","v":"Comune"},"",0]
[0,0,"Gestore",0,"IP",29,{"$f":"+VLOOKUP(F1248,TT_Tabelle_Riferimento!$D$127:$G$164,4,FALSE)","v":"Laboratori e attrezzature"},3,{"$f":"+VLOOKUP(H1248,TT_Tabelle_Riferimento!$F$3:$G$6,2,FALSE)","v":"Altri servizi idrici"},2029,{"$f":"+SUMIFS('PdI-crono_inv'!BL:BL,'PdI-crono_inv'!CF:CF,F1248,'PdI-crono_inv'!CE:CE,H1248,'PdI-crono_inv'!J:J,P1248,'PdI-crono_inv'!P:P,\"<>proprietario\")","v":0},null,{"$f":"+SUMIFS('PdI-crono_inv'!BM:BM,'PdI-crono_inv'!CF:CF,F1248,'PdI-crono_inv'!CE:CE,H1248,'PdI-crono_inv'!J:J,P1248,'PdI-crono_inv'!P:P,\"<>proprietario\")+S1248","v":0},null,null,"RES",{"$f":"+VLOOKUP(F1248,TT_Tabelle_Riferimento!$D$127:$E$164,2,FALSE)","v":"Comune"},"",0]
[0,0,"Gestore",0,"IP",30,{"$f":"+VLOOKUP(F1249,TT_Tabelle_Riferimento!$D$127:$G$164,4,FALSE)","v":"Sistemi informativi"},3,{"$f":"+VLOOKUP(H1249,TT_Tabelle_Riferimento!$F$3:$G$6,2,FALSE)","v":"Altri servizi idrici"},2029,{"$f":"+SUMIFS('PdI-crono_inv'!BL:BL,'PdI-crono_inv'!CF:CF,F1249,'PdI-crono_inv'!CE:CE,H1249,'PdI-crono_inv'!J:J,P1249,'PdI-crono_inv'!P:P,\"<>proprietario\")","v":0},null,{"$f":"+SUMIFS('PdI-crono_inv'!BM:BM,'PdI-crono_inv'!CF:CF,F1249,'PdI-crono_inv'!CE:CE,H1249,'PdI-crono_inv'!J:J,P1249,'PdI-crono_inv'!P:P,\"<>proprietario\")+S1249","v":0},null,null,"RES",{"$f":"+VLOOKUP(F1249,TT_Tabelle_Riferimento!$D$127:$E$164,2,FALSE)","v":"Comune"},"",0]
[0,0,"Gestore",0,"IP",31,{"$f":"+VLOOKUP(F1250,TT_Tabelle_Riferimento!$D$127:$G$164,4,FALSE)","v":"Telecontrollo e teletrasmissione"},3,{"$f":"+VLOOKUP(H1250,TT_Tabelle_Riferimento!$F$3:$G$6,2,FALSE)","v":"Altri servizi idrici"},2029,{"$f":"+SUMIFS('PdI-crono_inv'!BL:BL,'PdI-crono_inv'!CF:CF,F1250,'PdI-crono_inv'!CE:CE,H1250,'PdI-crono_inv'!J:J,P1250,'PdI-crono_inv'!P:P,\"<>proprietario\")","v":0},null,{"$f":"+SUMIFS('PdI-crono_inv'!BM:BM,'PdI-crono_inv'!CF:CF,F1250,'PdI-crono_inv'!CE:CE,H1250,'PdI-crono_inv'!J:J,P1250,'PdI-crono_inv'!P:P,\"<>proprietario\")+S1250","v":0},null,null,"RES",{"$f":"+VLOOKUP(F1250,TT_Tabelle_Riferimento!$D$127:$E$164,2,FALSE)","v":"Comune"},"",0]
[0,0,"Gestore",0,"IP",32,{"$f":"+VLOOKUP(F1251,TT_Tabelle_Riferimento!$D$127:$G$164,4,FALSE)","v":"Autoveicoli - automezzi"},3,{"$f":"+VLOOKUP(H1251,TT_Tabelle_Riferimento!$F$3:$G$6,2,FALSE)","v":"Altri servizi idrici"},2029,{"$f":"+SUMIFS('PdI-crono_inv'!BL:BL,'PdI-crono_inv'!CF:CF,F1251,'PdI-crono_inv'!CE:CE,H1251,'PdI-crono_inv'!J:J,P1251,'PdI-crono_inv'!P:P,\"<>proprietario\")","v":0},null,{"$f":"+SUMIFS('PdI-crono_inv'!BM:BM,'PdI-crono_inv'!CF:CF,F1251,'PdI-crono_inv'!CE:CE,H1251,'PdI-crono_inv'!J:J,P1251,'PdI-crono_inv'!P:P,\"<>proprietario\")+S1251","v":0},null,null,"RES",{"$f":"+VLOOKUP(F1251,TT_Tabelle_Riferimento!$D$127:$E$164,2,FALSE)","v":"Comune"},"",0]
[0,0,"Gestore",0,"IP",1,{"$f":"+VLOOKUP(F1252,TT_Tabelle_Riferimento!$D$127:$G$164,4,FALSE)","v":"Terreni"},3,{"$f":"+VLOOKUP(H1252,TT_Tabelle_Riferimento!$F$3:$G$6,2,FALSE)","v":"Altri servizi idrici"},2029,{"$f":"+SUMIFS('PdI-crono_inv'!BL:BL,'PdI-crono_inv'!CF:CF,F1252,'PdI-crono_inv'!CE:CE,H1252,'PdI-crono_inv'!J:J,P1252,'PdI-crono_inv'!P:P,\"<>proprietario\")","v":0},null,{"$f":"+SUMIFS('PdI-crono_inv'!BM:BM,'PdI-crono_inv'!CF:CF,F1252,'PdI-crono_inv'!CE:CE,H1252,'PdI-crono_inv'!J:J,P1252,'PdI-crono_inv'!P:P,\"<>proprietario\")+S1252","v":0},null,null,"RES",{"$f":"+VLOOKUP(F1252,TT_Tabelle_Riferimento!$D$127:$E$164,2,FALSE)","v":"Comune"},"",0]
[0,0,"Gestore",0,"IP",33,{"$f":"+VLOOKUP(F1253,TT_Tabelle_Riferimento!$D$127:$G$164,4,FALSE)","v":"Fabbricati non industriali"},3,{"$f":"+VLOOKUP(H1253,TT_Tabelle_Riferimento!$F$3:$G$6,2,FALSE)","v":"Altri servizi idrici"},2029,{"$f":"+SUMIFS('PdI-crono_inv'!BL:BL,'PdI-crono_inv'!CF:CF,F1253,'PdI-crono_inv'!CE:CE,H1253,'PdI-crono_inv'!J:J,P1253,'PdI-crono_inv'!P:P,\"<>proprietario\")","v":0},null,{"$f":"+SUMIFS('PdI-crono_inv'!BM:BM,'PdI-crono_inv'!CF:CF,F1253,'PdI-crono_inv'!CE:CE,H1253,'PdI-crono_inv'!J:J,P1253,'PdI-crono_inv'!P:P,\"<>proprietario\")+S1253","v":0},null,null,"RES",{"$f":"+VLOOKUP(F1253,TT_Tabelle_Riferimento!$D$127:$E$164,2,FALSE)","v":"Comune"},"",0]
[0,0,"Gestore",0,"IP",34,{"$f":"+VLOOKUP(F1254,TT_Tabelle_Riferimento!$D$127:$G$164,4,FALSE)","v":"Fabbricati industriali"},3,{"$f":"+VLOOKUP(H1254,TT_Tabelle_Riferimento!$F$3:$G$6,2,FALSE)","v":"Altri servizi idrici"},2029,{"$f":"+SUMIFS('PdI-crono_inv'!BL:BL,'PdI-crono_inv'!CF:CF,F1254,'PdI-crono_inv'!CE:CE,H1254,'PdI-crono_inv'!J:J,P1254,'PdI-crono_inv'!P:P,\"<>proprietario\")","v":0},null,{"$f":"+SUMIFS('PdI-crono_inv'!BM:BM,'PdI-crono_inv'!CF:CF,F1254,'PdI-crono_inv'!CE:CE,H1254,'PdI-crono_inv'!J:J,P1254,'PdI-crono_inv'!P:P,\"<>proprietario\")+S1254","v":0},null,null,"RES",{"$f":"+VLOOKUP(F1254,TT_Tabelle_Riferimento!$D$127:$E$164,2,FALSE)","v":"Comune"},"",0]
[0,0,"Gestore",0,"IP",35,{"$f":"+VLOOKUP(F1255,TT_Tabelle_Riferimento!$D$127:$G$164,4,FALSE)","v":"Costruzioni leggere"},3,{"$f":"+VLOOKUP(H1255,TT_Tabelle_Riferimento!$F$3:$G$6,2,FALSE)","v":"Altri servizi idrici"},2029,{"$f":"+SUMIFS('PdI-crono_inv'!BL:BL,'PdI-crono_inv'!CF:CF,F1255,'PdI-crono_inv'!CE:CE,H1255,'PdI-crono_inv'!J:J,P1255,'PdI-crono_inv'!P:P,\"<>proprietario\")","v":0},null,{"$f":"+SUMIFS('PdI-crono_inv'!BM:BM,'PdI-crono_inv'!CF:CF,F1255,'PdI-crono_inv'!CE:CE,H1255,'PdI-crono_inv'!J:J,P1255,'PdI-crono_inv'!P:P,\"<>proprietario\")+S1255","v":0},null,null,"RES",{"$f":"+VLOOKUP(F1255,TT_Tabelle_Riferimento!$D$127:$E$164,2,FALSE)","v":"Comune"},"",0]
[0,0,"Gestore",0,"IP",36,{"$f":"+VLOOKUP(F1256,TT_Tabelle_Riferimento!$D$127:$G$164,4,FALSE)","v":"Studi, ricerche, brevetti, diritti di utilizzazione"},3,{"$f":"+VLOOKUP(H1256,TT_Tabelle_Riferimento!$F$3:$G$6,2,FALSE)","v":"Altri servizi idrici"},2029,{"$f":"+SUMIFS('PdI-crono_inv'!BL:BL,'PdI-crono_inv'!CF:CF,F1256,'PdI-crono_inv'!CE:CE,H1256,'PdI-crono_inv'!J:J,P1256,'PdI-crono_inv'!P:P,\"<>proprietario\")","v":0},null,{"$f":"+SUMIFS('PdI-crono_inv'!BM:BM,'PdI-crono_inv'!CF:CF,F1256,'PdI-crono_inv'!CE:CE,H1256,'PdI-crono_inv'!J:J,P1256,'PdI-crono_inv'!P:P,\"<>proprietario\")+S1256","v":0},null,null,"RES",{"$f":"+VLOOKUP(F1256,TT_Tabelle_Riferimento!$D$127:$E$164,2,FALSE)","v":"Comune"},"",0]
[0,0,"Gestore",0,"IP",37,{"$f":"+VLOOKUP(F1257,TT_Tabelle_Riferimento!$D$127:$G$164,4,FALSE)","v":"Altre immobilizzazioni materiali e immateriali"},3,{"$f":"+VLOOKUP(H1257,TT_Tabelle_Riferimento!$F$3:$G$6,2,FALSE)","v":"Altri servizi idrici"},2029,{"$f":"+SUMIFS('PdI-crono_inv'!BL:BL,'PdI-crono_inv'!CF:CF,F1257,'PdI-crono_inv'!CE:CE,H1257,'PdI-crono_inv'!J:J,P1257,'PdI-crono_inv'!P:P,\"<>proprietario\")","v":0},null,{"$f":"+SUMIFS('PdI-crono_inv'!BM:BM,'PdI-crono_inv'!CF:CF,F1257,'PdI-crono_inv'!CE:CE,H1257,'PdI-crono_inv'!J:J,P1257,'PdI-crono_inv'!P:P,\"<>proprietario\")+S1257","v":0},null,null,"RES",{"$f":"+VLOOKUP(F1257,TT_Tabelle_Riferimento!$D$127:$E$164,2,FALSE)","v":"Comune"},"",0]
[0,0,"Gestore",0,"IP",38,{"$f":"+VLOOKUP(F1258,TT_Tabelle_Riferimento!$D$127:$G$164,4,FALSE)","v":"Grandi dighe (sbarramenti che superano i quindici metri di altezza o che determinano un invaso superiore a 1 milione di metri cubi)"},3,{"$f":"+VLOOKUP(H1258,TT_Tabelle_Riferimento!$F$3:$G$6,2,FALSE)","v":"Altri servizi idrici"},2029,{"$f":"+SUMIFS('PdI-crono_inv'!BL:BL,'PdI-crono_inv'!CF:CF,F1258,'PdI-crono_inv'!CE:CE,H1258,'PdI-crono_inv'!J:J,P1258,'PdI-crono_inv'!P:P,\"<>proprietario\")","v":0},null,{"$f":"+SUMIFS('PdI-crono_inv'!BM:BM,'PdI-crono_inv'!CF:CF,F1258,'PdI-crono_inv'!CE:CE,H1258,'PdI-crono_inv'!J:J,P1258,'PdI-crono_inv'!P:P,\"<>proprietario\")+S1258","v":0},null,null,"RES",{"$f":"+VLOOKUP(F1258,TT_Tabelle_Riferimento!$D$127:$E$164,2,FALSE)","v":"Acquedotto"},"",0]
[0,0,"Gestore",0,"IP",39,{"$f":"+VLOOKUP(F1259,TT_Tabelle_Riferimento!$D$127:$G$164,4,FALSE)","v":"Piccole dighe (sbarramenti che non superano i quindici metri di altezza o che determinano un invaso non superiore a 1 milione di metri cubi)"},3,{"$f":"+VLOOKUP(H1259,TT_Tabelle_Riferimento!$F$3:$G$6,2,FALSE)","v":"Altri servizi idrici"},2029,{"$f":"+SUMIFS('PdI-crono_inv'!BL:BL,'PdI-crono_inv'!CF:CF,F1259,'PdI-crono_inv'!CE:CE,H1259,'PdI-crono_inv'!J:J,P1259,'PdI-crono_inv'!P:P,\"<>proprietario\")","v":0},null,{"$f":"+SUMIFS('PdI-crono_inv'!BM:BM,'PdI-crono_inv'!CF:CF,F1259,'PdI-crono_inv'!CE:CE,H1259,'PdI-crono_inv'!J:J,P1259,'PdI-crono_inv'!P:P,\"<>proprietario\")+S1259","v":0},null,null,"RES",{"$f":"+VLOOKUP(F1259,TT_Tabelle_Riferimento!$D$127:$E$164,2,FALSE)","v":"Acquedotto"},"",0]
[0,0,"Gestore",0,"IP",2,{"$f":"+VLOOKUP(F1260,TT_Tabelle_Riferimento!$D$127:$G$164,4,FALSE)","v":"Condotte di acquedotto"},1,{"$f":"+VLOOKUP(H1260,TT_Tabelle_Riferimento!$F$3:$G$6,2,FALSE)","v":"Servizio idrico integrato"},2029,{"$f":"+SUMIFS('PdI-crono_inv'!BL:BL,'PdI-crono_inv'!CF:CF,F1260,'PdI-crono_inv'!CE:CE,H1260,'PdI-crono_inv'!J:J,P1260,'PdI-crono_inv'!P:P,\"<>proprietario\")","v":0},null,{"$f":"+SUMIFS('PdI-crono_inv'!BM:BM,'PdI-crono_inv'!CF:CF,F1260,'PdI-crono_inv'!CE:CE,H1260,'PdI-crono_inv'!J:J,P1260,'PdI-crono_inv'!P:P,\"<>proprietario\")+S1260","v":0},null,null,"Non ERC",{"$f":"+VLOOKUP(F1260,TT_Tabelle_Riferimento!$D$127:$E$164,2,FALSE)","v":"Acquedotto"},"",0]
[0,0,"Gestore",0,"IP",3,{"$f":"+VLOOKUP(F1261,TT_Tabelle_Riferimento!$D$127:$G$164,4,FALSE)","v":"Opere idrauliche fisse di acquedotto"},1,{"$f":"+VLOOKUP(H1261,TT_Tabelle_Riferimento!$F$3:$G$6,2,FALSE)","v":"Servizio idrico integrato"},2029,{"$f":"+SUMIFS('PdI-crono_inv'!BL:BL,'PdI-crono_inv'!CF:CF,F1261,'PdI-crono_inv'!CE:CE,H1261,'PdI-crono_inv'!J:J,P1261,'PdI-crono_inv'!P:P,\"<>proprietario\")","v":0},null,{"$f":"+SUMIFS('PdI-crono_inv'!BM:BM,'PdI-crono_inv'!CF:CF,F1261,'PdI-crono_inv'!CE:CE,H1261,'PdI-crono_inv'!J:J,P1261,'PdI-crono_inv'!P:P,\"<>proprietario\")+S1261","v":0},null,null,"Non ERC",{"$f":"+VLOOKUP(F1261,TT_Tabelle_Riferimento!$D$127:$E$164,2,FALSE)","v":"Acquedotto"},"",0]
[0,0,"Gestore",0,"IP",4,{"$f":"+VLOOKUP(F1262,TT_Tabelle_Riferimento!$D$127:$G$164,4,FALSE)","v":"Serbatoi"},1,{"$f":"+VLOOKUP(H1262,TT_Tabelle_Riferimento!$F$3:$G$6,2,FALSE)","v":"Servizio idrico integrato"},2029,{"$f":"+SUMIFS('PdI-crono_inv'!BL:BL,'PdI-crono_inv'!CF:CF,F1262,'PdI-crono_inv'!CE:CE,H1262,'PdI-crono_inv'!J:J,P1262,'PdI-crono_inv'!P:P,\"<>proprietario\")","v":0},null,{"$f":"+SUMIFS('PdI-crono_inv'!BM:BM,'PdI-crono_inv'!CF:CF,F1262,'PdI-crono_inv'!CE:CE,H1262,'PdI-crono_inv'!J:J,P1262,'PdI-crono_inv'!P:P,\"<>proprietario\")+S1262","v":0},null,null,"Non ERC",{"$f":"+VLOOKUP(F1262,TT_Tabelle_Riferimento!$D$127:$E$164,2,FALSE)","v":"Acquedotto"},{"$f":"+IF(SUM(K1262:N1262)=0,\"\",\"PdI_consolidamento\")","v":""},0]
[0,0,"Gestore",0,"IP",5,{"$f":"+VLOOKUP(F1263,TT_Tabelle_Riferimento!$D$127:$G$164,4,FALSE)","v":"Impianti di sollevamento e pompaggio di acquedotto"},1,{"$f":"+VLOOKUP(H1263,TT_Tabelle_Riferimento!$F$3:$G$6,2,FALSE)","v":"Servizio idrico integrato"},2029,{"$f":"+SUMIFS('PdI-crono_inv'!BL:BL,'PdI-crono_inv'!CF:CF,F1263,'PdI-crono_inv'!CE:CE,H1263,'PdI-crono_inv'!J:J,P1263,'PdI-crono_inv'!P:P,\"<>proprietario\")","v":0},null,{"$f":"+SUMIFS('PdI-crono_inv'!BM:BM,'PdI-crono_inv'!CF:CF,F1263,'PdI-crono_inv'!CE:CE,H1263,'PdI-crono_inv'!J:J,P1263,'PdI-crono_inv'!P:P,\"<>proprietario\")+S1263","v":0},null,null,"Non ERC",{"$f":"+VLOOKUP(F1263,TT_Tabelle_Riferimento!$D$127:$E$164,2,FALSE)","v":"Acquedotto"},"",0]
[0,0,"Gestore",0,"IP",6,{"$f":"+VLOOKUP(F1264,TT_Tabelle_Riferimento!$D$127:$G$164,4,FALSE)","v":"Impianti di potabilizzazione"},1,{"$f":"+VLOOKUP(H1264,TT_Tabelle_Riferimento!$F$3:$G$6,2,FALSE)","v":"Servizio idrico integrato"},2029,{"$f":"+SUMIFS('PdI-crono_inv'!BL:BL,'PdI-crono_inv'!CF:CF,F1264,'PdI-crono_inv'!CE:CE,H1264,'PdI-crono_inv'!J:J,P1264,'PdI-crono_inv'!P:P,\"<>proprietario\")","v":0},null,{"$f":"+SUMIFS('PdI-crono_inv'!BM:BM,'PdI-crono_inv'!CF:CF,F1264,'PdI-crono_inv'!CE:CE,H1264,'PdI-crono_inv'!J:J,P1264,'PdI-crono_inv'!P:P,\"<>proprietario\")+S1264","v":0},null,null,"Non ERC",{"$f":"+VLOOKUP(F1264,TT_Tabelle_Riferimento!$D$127:$E$164,2,FALSE)","v":"Acquedotto"},"",0]
[0,0,"Gestore",0,"IP",7,{"$f":"+VLOOKUP(F1265,TT_Tabelle_Riferimento!$D$127:$G$164,4,FALSE)","v":"Altri trattamenti di potabilizzazione (tra cui dispositivi di disinfezione, stacciatura, filtrazione, addolcimento)"},1,{"$f":"+VLOOKUP(H1265,TT_Tabelle_Riferimento!$F$3:$G$6,2,FALSE)","v":"Servizio idrico integrato"},2029,{"$f":"+SUMIFS('PdI-crono_inv'!BL:BL,'PdI-crono_inv'!CF:CF,F1265,'PdI-crono_inv'!CE:CE,H1265,'PdI-crono_inv'!J:J,P1265,'PdI-crono_inv'!P:P,\"<>proprietario\")","v":0},null,{"$f":"+SUMIFS('PdI-crono_inv'!BM:BM,'PdI-crono_inv'!CF:CF,F1265,'PdI-crono_inv'!CE:CE,H1265,'PdI-crono_inv'!J:J,P1265,'PdI-crono_inv'!P:P,\"<>proprietario\")+S1265","v":0},null,null,"Non ERC",{"$f":"+VLOOKUP(F1265,TT_Tabelle_Riferimento!$D$127:$E$164,2,FALSE)","v":"Acquedotto"},"",0]
[0,0,"Gestore",0,"IP",8,{"$f":"+VLOOKUP(F1266,TT_Tabelle_Riferimento!$D$127:$G$164,4,FALSE)","v":"Gruppi di misura - altre attrezzature di acquedotto"},1,{"$f":"+VLOOKUP(H1266,TT_Tabelle_Riferimento!$F$3:$G$6,2,FALSE)","v":"Servizio idrico integrato"},2029,{"$f":"+SUMIFS('PdI-crono_inv'!BL:BL,'PdI-crono_inv'!CF:CF,F1266,'PdI-crono_inv'!CE:CE,H1266,'PdI-crono_inv'!J:J,P1266,'PdI-crono_inv'!P:P,\"<>proprietario\")","v":0},null,{"$f":"+SUMIFS('PdI-crono_inv'!BM:BM,'PdI-crono_inv'!CF:CF,F1266,'PdI-crono_inv'!CE:CE,H1266,'PdI-crono_inv'!J:J,P1266,'PdI-crono_inv'!P:P,\"<>proprietario\")+S1266","v":0},null,null,"Non ERC",{"$f":"+VLOOKUP(F1266,TT_Tabelle_Riferimento!$D$127:$E$164,2,FALSE)","v":"Acquedotto"},"",0]
[0,0,"Gestore",0,"IP",9,{"$f":"+VLOOKUP(F1267,TT_Tabelle_Riferimento!$D$127:$G$164,4,FALSE)","v":"Sistemi informativi di acquedotto"},1,{"$f":"+VLOOKUP(H1267,TT_Tabelle_Riferimento!$F$3:$G$6,2,FALSE)","v":"Servizio idrico integrato"},2029,{"$f":"+SUMIFS('PdI-crono_inv'!BL:BL,'PdI-crono_inv'!CF:CF,F1267,'PdI-crono_inv'!CE:CE,H1267,'PdI-crono_inv'!J:J,P1267,'PdI-crono_inv'!P:P,\"<>proprietario\")","v":0},null,{"$f":"+SUMIFS('PdI-crono_inv'!BM:BM,'PdI-crono_inv'!CF:CF,F1267,'PdI-crono_inv'!CE:CE,H1267,'PdI-crono_inv'!J:J,P1267,'PdI-crono_inv'!P:P,\"<>proprietario\")+S1267","v":0},null,null,"Non ERC",{"$f":"+VLOOKUP(F1267,TT_Tabelle_Riferimento!$D$127:$E$164,2,FALSE)","v":"Acquedotto"},"",0]
[0,0,"Gestore",0,"IP",10,{"$f":"+VLOOKUP(F1268,TT_Tabelle_Riferimento!$D$127:$G$164,4,FALSE)","v":"Telecontrollo e teletrasmissione di acquedotto"},1,{"$f":"+VLOOKUP(H1268,TT_Tabelle_Riferimento!$F$3:$G$6,2,FALSE)","v":"Servizio idrico integrato"},2029,{"$f":"+SUMIFS('PdI-crono_inv'!BL:BL,'PdI-crono_inv'!CF:CF,F1268,'PdI-crono_inv'!CE:CE,H1268,'PdI-crono_inv'!J:J,P1268,'PdI-crono_inv'!P:P,\"<>proprietario\")","v":0},null,{"$f":"+SUMIFS('PdI-crono_inv'!BM:BM,'PdI-crono_inv'!CF:CF,F1268,'PdI-crono_inv'!CE:CE,H1268,'PdI-crono_inv'!J:J,P1268,'PdI-crono_inv'!P:P,\"<>proprietario\")+S1268","v":0},null,null,"Non ERC",{"$f":"+VLOOKUP(F1268,TT_Tabelle_Riferimento!$D$127:$E$164,2,FALSE)","v":"Acquedotto"},"",0]
[0,0,"Gestore",0,"IP",11,{"$f":"+VLOOKUP(F1269,TT_Tabelle_Riferimento!$D$127:$G$164,4,FALSE)","v":"Condotte fognarie"},1,{"$f":"+VLOOKUP(H1269,TT_Tabelle_Riferimento!$F$3:$G$6,2,FALSE)","v":"Servizio idrico integrato"},2029,{"$f":"+SUMIFS('PdI-crono_inv'!BL:BL,'PdI-crono_inv'!CF:CF,F1269,'PdI-crono_inv'!CE:CE,H1269,'PdI-crono_inv'!J:J,P1269,'PdI-crono_inv'!P:P,\"<>proprietario\")","v":0},null,{"$f":"+SUMIFS('PdI-crono_inv'!BM:BM,'PdI-crono_inv'!CF:CF,F1269,'PdI-crono_inv'!CE:CE,H1269,'PdI-crono_inv'!J:J,P1269,'PdI-crono_inv'!P:P,\"<>proprietario\")+S1269","v":0},null,null,"Non ERC",{"$f":"+VLOOKUP(F1269,TT_Tabelle_Riferimento!$D$127:$E$164,2,FALSE)","v":"Fognatura"},"",0]
[0,0,"Gestore",0,"IP",12,{"$f":"+VLOOKUP(F1270,TT_Tabelle_Riferimento!$D$127:$G$164,4,FALSE)","v":"Sifoni e scaricatori di piena e altre opere idrauliche fisse di fognatura"},1,{"$f":"+VLOOKUP(H1270,TT_Tabelle_Riferimento!$F$3:$G$6,2,FALSE)","v":"Servizio idrico integrato"},2029,{"$f":"+SUMIFS('PdI-crono_inv'!BL:BL,'PdI-crono_inv'!CF:CF,F1270,'PdI-crono_inv'!CE:CE,H1270,'PdI-crono_inv'!J:J,P1270,'PdI-crono_inv'!P:P,\"<>proprietario\")","v":0},null,{"$f":"+SUMIFS('PdI-crono_inv'!BM:BM,'PdI-crono_inv'!CF:CF,F1270,'PdI-crono_inv'!CE:CE,H1270,'PdI-crono_inv'!J:J,P1270,'PdI-crono_inv'!P:P,\"<>proprietario\")+S1270","v":0},null,null,"Non ERC",{"$f":"+VLOOKUP(F1270,TT_Tabelle_Riferimento!$D$127:$E$164,2,FALSE)","v":"Fognatura"},"",0]
[0,0,"Gestore",0,"IP",13,{"$f":"+VLOOKUP(F1271,TT_Tabelle_Riferimento!$D$127:$G$164,4,FALSE)","v":"Vasche di laminazione e vasche di prima pioggia"},1,{"$f":"+VLOOKUP(H1271,TT_Tabelle_Riferimento!$F$3:$G$6,2,FALSE)","v":"Servizio idrico integrato"},2029,{"$f":"+SUMIFS('PdI-crono_inv'!BL:BL,'PdI-crono_inv'!CF:CF,F1271,'PdI-crono_inv'!CE:CE,H1271,'PdI-crono_inv'!J:J,P1271,'PdI-crono_inv'!P:P,\"<>proprietario\")","v":0},null,{"$f":"+SUMIFS('PdI-crono_inv'!BM:BM,'PdI-crono_inv'!CF:CF,F1271,'PdI-crono_inv'!CE:CE,H1271,'PdI-crono_inv'!J:J,P1271,'PdI-crono_inv'!P:P,\"<>proprietario\")+S1271","v":0},null,null,"Non ERC",{"$f":"+VLOOKUP(F1271,TT_Tabelle_Riferimento!$D$127:$E$164,2,FALSE)","v":"Fognatura"},"",0]
[0,0,"Gestore",0,"IP",14,{"$f":"+VLOOKUP(F1272,TT_Tabelle_Riferimento!$D$127:$G$164,4,FALSE)","v":"Impianti di sollevamento e pompaggio di fognatura"},1,{"$f":"+VLOOKUP(H1272,TT_Tabelle_Riferimento!$F$3:$G$6,2,FALSE)","v":"Servizio idrico integrato"},2029,{"$f":"+SUMIFS('PdI-crono_inv'!BL:BL,'PdI-crono_inv'!CF:CF,F1272,'PdI-crono_inv'!CE:CE,H1272,'PdI-crono_inv'!J:J,P1272,'PdI-crono_inv'!P:P,\"<>proprietario\")","v":0},null,{"$f":"+SUMIFS('PdI-crono_inv'!BM:BM,'PdI-crono_inv'!CF:CF,F1272,'PdI-crono_inv'!CE:CE,H1272,'PdI-crono_inv'!J:J,P1272,'PdI-crono_inv'!P:P,\"<>proprietario\")+S1272","v":0},null,null,"Non ERC",{"$f":"+VLOOKUP(F1272,TT_Tabelle_Riferimento!$D$127:$E$164,2,FALSE)","v":"Fognatura"},"",0]
[0,0,"Gestore",0,"IP",15,{"$f":"+VLOOKUP(F1273,TT_Tabelle_Riferimento!$D$127:$G$164,4,FALSE)","v":"Gruppi di misura - altre attrezzature di fognatura"},1,{"$f":"+VLOOKUP(H1273,TT_Tabelle_Riferimento!$F$3:$G$6,2,FALSE)","v":"Servizio idrico integrato"},2029,{"$f":"+SUMIFS('PdI-crono_inv'!BL:BL,'PdI-crono_inv'!CF:CF,F1273,'PdI-crono_inv'!CE:CE,H1273,'PdI-crono_inv'!J:J,P1273,'PdI-crono_inv'!P:P,\"<>proprietario\")","v":0},null,{"$f":"+SUMIFS('PdI-crono_inv'!BM:BM,'PdI-crono_inv'!CF:CF,F1273,'PdI-crono_inv'!CE:CE,H1273,'PdI-crono_inv'!J:J,P1273,'PdI-crono_inv'!P:P,\"<>proprietario\")+S1273","v":0},null,null,"Non ERC",{"$f":"+VLOOKUP(F1273,TT_Tabelle_Riferimento!$D$127:$E$164,2,FALSE)","v":"Fognatura"},"",0]
[0,0,"Gestore",0,"IP",16,{"$f":"+VLOOKUP(F1274,TT_Tabelle_Riferimento!$D$127:$G$164,4,FALSE)","v":"Sistemi informativi di fognatura"},1,{"$f":"+VLOOKUP(H1274,TT_Tabelle_Riferimento!$F$3:$G$6,2,FALSE)","v":"Servizio idrico integrato"},2029,{"$f":"+SUMIFS('PdI-crono_inv'!BL:BL,'PdI-crono_inv'!CF:CF,F1274,'PdI-crono_inv'!CE:CE,H1274,'PdI-crono_inv'!J:J,P1274,'PdI-crono_inv'!P:P,\"<>proprietario\")","v":0},null,{"$f":"+SUMIFS('PdI-crono_inv'!BM:BM,'PdI-crono_inv'!CF:CF,F1274,'PdI-crono_inv'!CE:CE,H1274,'PdI-crono_inv'!J:J,P1274,'PdI-crono_inv'!P:P,\"<>proprietario\")+S1274","v":0},null,null,"Non ERC",{"$f":"+VLOOKUP(F1274,TT_Tabelle_Riferimento!$D$127:$E$164,2,FALSE)","v":"Fognatura"},"",0]
[0,0,"Gestore",0,"IP",18,{"$f":"+VLOOKUP(F1275,TT_Tabelle_Riferimento!$D$127:$G$164,4,FALSE)","v":"Telecontrollo e teletrasmissione di fognatura"},1,{"$f":"+VLOOKUP(H1275,TT_Tabelle_Riferimento!$F$3:$G$6,2,FALSE)","v":"Servizio idrico integrato"},2029,{"$f":"+SUMIFS('PdI-crono_inv'!BL:BL,'PdI-crono_inv'!CF:CF,F1275,'PdI-crono_inv'!CE:CE,H1275,'PdI-crono_inv'!J:J,P1275,'PdI-crono_inv'!P:P,\"<>proprietario\")","v":0},null,{"$f":"+SUMIFS('PdI-crono_inv'!BM:BM,'PdI-crono_inv'!CF:CF,F1275,'PdI-crono_inv'!CE:CE,H1275,'PdI-crono_inv'!J:J,P1275,'PdI-crono_inv'!P:P,\"<>proprietario\")+S1275","v":0},null,null,"Non ERC",{"$f":"+VLOOKUP(F1275,TT_Tabelle_Riferimento!$D$127:$E$164,2,FALSE)","v":"Fognatura"},"",0]
[0,0,"Gestore",0,"IP",19,{"$f":"+VLOOKUP(F1276,TT_Tabelle_Riferimento!$D$127:$G$164,4,FALSE)","v":"Impianti di sollevamento e pompaggio di depurazione"},1,{"$f":"+VLOOKUP(H1276,TT_Tabelle_Riferimento!$F$3:$G$6,2,FALSE)","v":"Servizio idrico integrato"},2029,{"$f":"+SUMIFS('PdI-crono_inv'!BL:BL,'PdI-crono_inv'!CF:CF,F1276,'PdI-crono_inv'!CE:CE,H1276,'PdI-crono_inv'!J:J,P1276,'PdI-crono_inv'!P:P,\"<>proprietario\")","v":0},null,{"$f":"+SUMIFS('PdI-crono_inv'!BM:BM,'PdI-crono_inv'!CF:CF,F1276,'PdI-crono_inv'!CE:CE,H1276,'PdI-crono_inv'!J:J,P1276,'PdI-crono_inv'!P:P,\"<>proprietario\")+S1276","v":0},null,null,"Non ERC",{"$f":"+VLOOKUP(F1276,TT_Tabelle_Riferimento!$D$127:$E$164,2,FALSE)","v":"Depurazione"},"",0]
[0,0,"Gestore",0,"IP",20,{"$f":"+VLOOKUP(F1277,TT_Tabelle_Riferimento!$D$127:$G$164,4,FALSE)","v":"Tecniche naturali di depurazione (tra cui fitodepurazione e lagunaggio)"},1,{"$f":"+VLOOKUP(H1277,TT_Tabelle_Riferimento!$F$3:$G$6,2,FALSE)","v":"Servizio idrico integrato"},2029,{"$f":"+SUMIFS('PdI-crono_inv'!BL:BL,'PdI-crono_inv'!CF:CF,F1277,'PdI-crono_inv'!CE:CE,H1277,'PdI-crono_inv'!J:J,P1277,'PdI-crono_inv'!P:P,\"<>proprietario\")","v":0},null,{"$f":"+SUMIFS('PdI-crono_inv'!BM:BM,'PdI-crono_inv'!CF:CF,F1277,'PdI-crono_inv'!CE:CE,H1277,'PdI-crono_inv'!J:J,P1277,'PdI-crono_inv'!P:P,\"<>proprietario\")+S1277","v":0},null,null,"Non ERC",{"$f":"+VLOOKUP(F1277,TT_Tabelle_Riferimento!$D$127:$E$164,2,FALSE)","v":"Depurazione"},"",0]
[0,0,"Gestore",0,"IP",21,{"$f":"+VLOOKUP(F1278,TT_Tabelle_Riferimento!$D$127:$G$164,4,FALSE)","v":"Impianti di depurazione – trattamenti sino al preliminare, integrativo, primario - fosse settiche e fosse Imhoff"},1,{"$f":"+VLOOKUP(H1278,TT_Tabelle_Riferimento!$F$3:$G$6,2,FALSE)","v":"Servizio idrico integrato"},2029,{"$f":"+SUMIFS('PdI-crono_inv'!BL:BL,'PdI-crono_inv'!CF:CF,F1278,'PdI-crono_inv'!CE:CE,H1278,'PdI-crono_inv'!J:J,P1278,'PdI-crono_inv'!P:P,\"<>proprietario\")","v":0},null,{"$f":"+SUMIFS('PdI-crono_inv'!BM:BM,'PdI-crono_inv'!CF:CF,F1278,'PdI-crono_inv'!CE:CE,H1278,'PdI-crono_inv'!J:J,P1278,'PdI-crono_inv'!P:P,\"<>proprietario\")+S1278","v":0},null,null,"Non ERC",{"$f":"+VLOOKUP(F1278,TT_Tabelle_Riferimento!$D$127:$E$164,2,FALSE)","v":"Depurazione"},"",0]
[0,0,"Gestore",0,"IP",22,{"$f":"+VLOOKUP(F1279,TT_Tabelle_Riferimento!$D$127:$G$164,4,FALSE)","v":"Impianti di depurazione – trattamenti sino al secondario"},1,{"$f":"+VLOOKUP(H1279,TT_Tabelle_Riferimento!$F$3:$G$6,2,FALSE)","v":"Servizio idrico integrato"},2029,{"$f":"+SUMIFS('PdI-crono_inv'!BL:BL,'PdI-crono_inv'!CF:CF,F1279,'PdI-crono_inv'!CE:CE,H1279,'PdI-crono_inv'!J:J,P1279,'PdI-crono_inv'!P:P,\"<>proprietario\")","v":0},null,{"$f":"+SUMIFS('PdI-crono_inv'!BM:BM,'PdI-crono_inv'!CF:CF,F1279,'PdI-crono_inv'!CE:CE,H1279,'PdI-crono_inv'!J:J,P1279,'PdI-crono_inv'!P:P,\"<>proprietario\")+S1279","v":0},null,null,"Non ERC",{"$f":"+VLOOKUP(F1279,TT_Tabelle_Riferimento!$D$127:$E$164,2,FALSE)","v":"Depurazione"},"",0]
[0,0,"Gestore",0,"IP",23,{"$f":"+VLOOKUP(F1280,TT_Tabelle_Riferimento!$D$127:$G$164,4,FALSE)","v":"Impianti di depurazione – trattamenti sino al terziario e terziario avanzato"},1,{"$f":"+VLOOKUP(H1280,TT_Tabelle_Riferimento!$F$3:$G$6,2,FALSE)","v":"Servizio idrico integrato"},2029,{"$f":"+SUMIFS('PdI-crono_inv'!BL:BL,'PdI-crono_inv'!CF:CF,F1280,'PdI-crono_inv'!CE:CE,H1280,'PdI-crono_inv'!J:J,P1280,'PdI-crono_inv'!P:P,\"<>proprietario\")","v":0},null,{"$f":"+SUMIFS('PdI-crono_inv'!BM:BM,'PdI-crono_inv'!CF:CF,F1280,'PdI-crono_inv'!CE:CE,H1280,'PdI-crono_inv'!J:J,P1280,'PdI-crono_inv'!P:P,\"<>proprietario\")+S1280","v":0},null,null,"Non ERC",{"$f":"+VLOOKUP(F1280,TT_Tabelle_Riferimento!$D$127:$E$164,2,FALSE)","v":"Depurazione"},"",0]
[0,0,"Gestore",0,"IP",24,{"$f":"+VLOOKUP(F1281,TT_Tabelle_Riferimento!$D$127:$G$164,4,FALSE)","v":"Impianti di essiccamento fanghi e di valorizzazione dei fanghi (tra cui mono-incenerimento, pirolisi, gassificazione)"},1,{"$f":"+VLOOKUP(H1281,TT_Tabelle_Riferimento!$F$3:$G$6,2,FALSE)","v":"Servizio idrico integrato"},2029,{"$f":"+SUMIFS('PdI-crono_inv'!BL:BL,'PdI-crono_inv'!CF:CF,F1281,'PdI-crono_inv'!CE:CE,H1281,'PdI-crono_inv'!J:J,P1281,'PdI-crono_inv'!P:P,\"<>proprietario\")","v":0},null,{"$f":"+SUMIFS('PdI-crono_inv'!BM:BM,'PdI-crono_inv'!CF:CF,F1281,'PdI-crono_inv'!CE:CE,H1281,'PdI-crono_inv'!J:J,P1281,'PdI-crono_inv'!P:P,\"<>proprietario\")+S1281","v":0},null,null,"Non ERC",{"$f":"+VLOOKUP(F1281,TT_Tabelle_Riferimento!$D$127:$E$164,2,FALSE)","v":"Depurazione"},"",0]
[0,0,"Gestore",0,"IP",25,{"$f":"+VLOOKUP(F1282,TT_Tabelle_Riferimento!$D$127:$G$164,4,FALSE)","v":"Gruppi di misura - altre attrezzature di depurazione"},1,{"$f":"+VLOOKUP(H1282,TT_Tabelle_Riferimento!$F$3:$G$6,2,FALSE)","v":"Servizio idrico integrato"},2029,{"$f":"+SUMIFS('PdI-crono_inv'!BL:BL,'PdI-crono_inv'!CF:CF,F1282,'PdI-crono_inv'!CE:CE,H1282,'PdI-crono_inv'!J:J,P1282,'PdI-crono_inv'!P:P,\"<>proprietario\")","v":0},null,{"$f":"+SUMIFS('PdI-crono_inv'!BM:BM,'PdI-crono_inv'!CF:CF,F1282,'PdI-crono_inv'!CE:CE,H1282,'PdI-crono_inv'!J:J,P1282,'PdI-crono_inv'!P:P,\"<>proprietario\")+S1282","v":0},null,null,"Non ERC",{"$f":"+VLOOKUP(F1282,TT_Tabelle_Riferimento!$D$127:$E$164,2,FALSE)","v":"Depurazione"},"",0]
[0,0,"Gestore",0,"IP",26,{"$f":"+VLOOKUP(F1283,TT_Tabelle_Riferimento!$D$127:$G$164,4,FALSE)","v":"Sistemi informativi di depurazione"},1,{"$f":"+VLOOKUP(H1283,TT_Tabelle_Riferimento!$F$3:$G$6,2,FALSE)","v":"Servizio idrico integrato"},2029,{"$f":"+SUMIFS('PdI-crono_inv'!BL:BL,'PdI-crono_inv'!CF:CF,F1283,'PdI-crono_inv'!CE:CE,H1283,'PdI-crono_inv'!J:J,P1283,'PdI-crono_inv'!P:P,\"<>proprietario\")","v":0},null,{"$f":"+SUMIFS('PdI-crono_inv'!BM:BM,'PdI-crono_inv'!CF:CF,F1283,'PdI-crono_inv'!CE:CE,H1283,'PdI-crono_inv'!J:J,P1283,'PdI-crono_inv'!P:P,\"<>proprietario\")+S1283","v":0},null,null,"Non ERC",{"$f":"+VLOOKUP(F1283,TT_Tabelle_Riferimento!$D$127:$E$164,2,FALSE)","v":"Depurazione"},"",0]
[0,0,"Gestore",0,"IP",27,{"$f":"+VLOOKUP(F1284,TT_Tabelle_Riferimento!$D$127:$G$164,4,FALSE)","v":"Telecontrollo e teletrasmissione di depurazione"},1,{"$f":"+VLOOKUP(H1284,TT_Tabelle_Riferimento!$F$3:$G$6,2,FALSE)","v":"Servizio idrico integrato"},2029,{"$f":"+SUMIFS('PdI-crono_inv'!BL:BL,'PdI-crono_inv'!CF:CF,F1284,'PdI-crono_inv'!CE:CE,H1284,'PdI-crono_inv'!J:J,P1284,'PdI-crono_inv'!P:P,\"<>proprietario\")","v":0},null,{"$f":"+SUMIFS('PdI-crono_inv'!BM:BM,'PdI-crono_inv'!CF:CF,F1284,'PdI-crono_inv'!CE:CE,H1284,'PdI-crono_inv'!J:J,P1284,'PdI-crono_inv'!P:P,\"<>proprietario\")+S1284","v":0},null,null,"Non ERC",{"$f":"+VLOOKUP(F1284,TT_Tabelle_Riferimento!$D$127:$E$164,2,FALSE)","v":"Depurazione"},"",0]
[0,0,"Gestore",0,"IP",28,{"$f":"+VLOOKUP(F1285,TT_Tabelle_Riferimento!$D$127:$G$164,4,FALSE)","v":"Altri impianti"},1,{"$f":"+VLOOKUP(H1285,TT_Tabelle_Riferimento!$F$3:$G$6,2,FALSE)","v":"Servizio idrico integrato"},2029,{"$f":"+SUMIFS('PdI-crono_inv'!BL:BL,'PdI-crono_inv'!CF:CF,F1285,'PdI-crono_inv'!CE:CE,H1285,'PdI-crono_inv'!J:J,P1285,'PdI-crono_inv'!P:P,\"<>proprietario\")","v":0},null,{"$f":"+SUMIFS('PdI-crono_inv'!BM:BM,'PdI-crono_inv'!CF:CF,F1285,'PdI-crono_inv'!CE:CE,H1285,'PdI-crono_inv'!J:J,P1285,'PdI-crono_inv'!P:P,\"<>proprietario\")+S1285","v":0},null,null,"Non ERC",{"$f":"+VLOOKUP(F1285,TT_Tabelle_Riferimento!$D$127:$E$164,2,FALSE)","v":"Comune"},"",0]
[{"$f":"+idato","v":0},{"$f":"+idgestore","v":0},"Gestore",0,"IP",29,{"$f":"+VLOOKUP(F1286,TT_Tabelle_Riferimento!$D$127:$G$164,4,FALSE)","v":"Laboratori e attrezzature"},1,{"$f":"+VLOOKUP(H1286,TT_Tabelle_Riferimento!$F$3:$G$6,2,FALSE)","v":"Servizio idrico integrato"},2029,{"$f":"+SUMIFS('PdI-crono_inv'!BL:BL,'PdI-crono_inv'!CF:CF,F1286,'PdI-crono_inv'!CE:CE,H1286,'PdI-crono_inv'!J:J,P1286,'PdI-crono_inv'!P:P,\"<>proprietario\")","v":0},null,{"$f":"+SUMIFS('PdI-crono_inv'!BM:BM,'PdI-crono_inv'!CF:CF,F1286,'PdI-crono_inv'!CE:CE,H1286,'PdI-crono_inv'!J:J,P1286,'PdI-crono_inv'!P:P,\"<>proprietario\")+S1286","v":0},null,null,"Non ERC",{"$f":"+VLOOKUP(F1286,TT_Tabelle_Riferimento!$D$127:$E$164,2,FALSE)","v":"Comune"},"",0]
[0,0,"Gestore",0,"IP",30,{"$f":"+VLOOKUP(F1287,TT_Tabelle_Riferimento!$D$127:$G$164,4,FALSE)","v":"Sistemi informativi"},1,{"$f":"+VLOOKUP(H1287,TT_Tabelle_Riferimento!$F$3:$G$6,2,FALSE)","v":"Servizio idrico integrato"},2029,{"$f":"+SUMIFS('PdI-crono_inv'!BL:BL,'PdI-crono_inv'!CF:CF,F1287,'PdI-crono_inv'!CE:CE,H1287,'PdI-crono_inv'!J:J,P1287,'PdI-crono_inv'!P:P,\"<>proprietario\")","v":0},null,{"$f":"+SUMIFS('PdI-crono_inv'!BM:BM,'PdI-crono_inv'!CF:CF,F1287,'PdI-crono_inv'!CE:CE,H1287,'PdI-crono_inv'!J:J,P1287,'PdI-crono_inv'!P:P,\"<>proprietario\")+S1287","v":0},null,null,"Non ERC",{"$f":"+VLOOKUP(F1287,TT_Tabelle_Riferimento!$D$127:$E$164,2,FALSE)","v":"Comune"},"",{"$f":"+IFERROR(HLOOKUP(J1287,$X$2:$Y$5,4,FALSE)*K1287,0)","v":0}]
[0,0,"Gestore",0,"IP",31,{"$f":"+VLOOKUP(F1288,TT_Tabelle_Riferimento!$D$127:$G$164,4,FALSE)","v":"Telecontrollo e teletrasmissione"},1,{"$f":"+VLOOKUP(H1288,TT_Tabelle_Riferimento!$F$3:$G$6,2,FALSE)","v":"Servizio idrico integrato"},2029,{"$f":"+SUMIFS('PdI-crono_inv'!BL:BL,'PdI-crono_inv'!CF:CF,F1288,'PdI-crono_inv'!CE:CE,H1288,'PdI-crono_inv'!J:J,P1288,'PdI-crono_inv'!P:P,\"<>proprietario\")","v":0},null,{"$f":"+SUMIFS('PdI-crono_inv'!BM:BM,'PdI-crono_inv'!CF:CF,F1288,'PdI-crono_inv'!CE:CE,H1288,'PdI-crono_inv'!J:J,P1288,'PdI-crono_inv'!P:P,\"<>proprietario\")+S1288","v":0},null,null,"Non ERC",{"$f":"+VLOOKUP(F1288,TT_Tabelle_Riferimento!$D$127:$E$164,2,FALSE)","v":"Comune"},"",0]
[0,0,"Gestore",0,"IP",32,{"$f":"+VLOOKUP(F1289,TT_Tabelle_Riferimento!$D$127:$G$164,4,FALSE)","v":"Autoveicoli - automezzi"},1,{"$f":"+VLOOKUP(H1289,TT_Tabelle_Riferimento!$F$3:$G$6,2,FALSE)","v":"Servizio idrico integrato"},2029,{"$f":"+SUMIFS('PdI-crono_inv'!BL:BL,'PdI-crono_inv'!CF:CF,F1289,'PdI-crono_inv'!CE:CE,H1289,'PdI-crono_inv'!J:J,P1289,'PdI-crono_inv'!P:P,\"<>proprietario\")","v":0},null,{"$f":"+SUMIFS('PdI-crono_inv'!BM:BM,'PdI-crono_inv'!CF:CF,F1289,'PdI-crono_inv'!CE:CE,H1289,'PdI-crono_inv'!J:J,P1289,'PdI-crono_inv'!P:P,\"<>proprietario\")+S1289","v":0},null,null,"Non ERC",{"$f":"+VLOOKUP(F1289,TT_Tabelle_Riferimento!$D$127:$E$164,2,FALSE)","v":"Comune"},"",0]
[0,0,"Gestore",0,"IP",1,{"$f":"+VLOOKUP(F1290,TT_Tabelle_Riferimento!$D$127:$G$164,4,FALSE)","v":"Terreni"},1,{"$f":"+VLOOKUP(H1290,TT_Tabelle_Riferimento!$F$3:$G$6,2,FALSE)","v":"Servizio idrico integrato"},2029,{"$f":"+SUMIFS('PdI-crono_inv'!BL:BL,'PdI-crono_inv'!CF:CF,F1290,'PdI-crono_inv'!CE:CE,H1290,'PdI-crono_inv'!J:J,P1290,'PdI-crono_inv'!P:P,\"<>proprietario\")","v":0},null,{"$f":"+SUMIFS('PdI-crono_inv'!BM:BM,'PdI-crono_inv'!CF:CF,F1290,'PdI-crono_inv'!CE:CE,H1290,'PdI-crono_inv'!J:J,P1290,'PdI-crono_inv'!P:P,\"<>proprietario\")+S1290","v":0},null,null,"Non ERC",{"$f":"+VLOOKUP(F1290,TT_Tabelle_Riferimento!$D$127:$E$164,2,FALSE)","v":"Comune"},"",0]
[0,0,"Gestore",0,"IP",33,{"$f":"+VLOOKUP(F1291,TT_Tabelle_Riferimento!$D$127:$G$164,4,FALSE)","v":"Fabbricati non industriali"},1,{"$f":"+VLOOKUP(H1291,TT_Tabelle_Riferimento!$F$3:$G$6,2,FALSE)","v":"Servizio idrico integrato"},2029,{"$f":"+SUMIFS('PdI-crono_inv'!BL:BL,'PdI-crono_inv'!CF:CF,F1291,'PdI-crono_inv'!CE:CE,H1291,'PdI-crono_inv'!J:J,P1291,'PdI-crono_inv'!P:P,\"<>proprietario\")","v":0},null,{"$f":"+SUMIFS('PdI-crono_inv'!BM:BM,'PdI-crono_inv'!CF:CF,F1291,'PdI-crono_inv'!CE:CE,H1291,'PdI-crono_inv'!J:J,P1291,'PdI-crono_inv'!P:P,\"<>proprietario\")+S1291","v":0},null,null,"Non ERC",{"$f":"+VLOOKUP(F1291,TT_Tabelle_Riferimento!$D$127:$E$164,2,FALSE)","v":"Comune"},"",0]
[0,0,"Gestore",0,"IP",34,{"$f":"+VLOOKUP(F1292,TT_Tabelle_Riferimento!$D$127:$G$164,4,FALSE)","v":"Fabbricati industriali"},1,{"$f":"+VLOOKUP(H1292,TT_Tabelle_Riferimento!$F$3:$G$6,2,FALSE)","v":"Servizio idrico integrato"},2029,{"$f":"+SUMIFS('PdI-crono_inv'!BL:BL,'PdI-crono_inv'!CF:CF,F1292,'PdI-crono_inv'!CE:CE,H1292,'PdI-crono_inv'!J:J,P1292,'PdI-crono_inv'!P:P,\"<>proprietario\")","v":0},null,{"$f":"+SUMIFS('PdI-crono_inv'!BM:BM,'PdI-crono_inv'!CF:CF,F1292,'PdI-crono_inv'!CE:CE,H1292,'PdI-crono_inv'!J:J,P1292,'PdI-crono_inv'!P:P,\"<>proprietario\")+S1292","v":0},null,null,"Non ERC",{"$f":"+VLOOKUP(F1292,TT_Tabelle_Riferimento!$D$127:$E$164,2,FALSE)","v":"Comune"},"",0]
[0,0,"Gestore",0,"IP",35,{"$f":"+VLOOKUP(F1293,TT_Tabelle_Riferimento!$D$127:$G$164,4,FALSE)","v":"Costruzioni leggere"},1,{"$f":"+VLOOKUP(H1293,TT_Tabelle_Riferimento!$F$3:$G$6,2,FALSE)","v":"Servizio idrico integrato"},2029,{"$f":"+SUMIFS('PdI-crono_inv'!BL:BL,'PdI-crono_inv'!CF:CF,F1293,'PdI-crono_inv'!CE:CE,H1293,'PdI-crono_inv'!J:J,P1293,'PdI-crono_inv'!P:P,\"<>proprietario\")","v":0},null,{"$f":"+SUMIFS('PdI-crono_inv'!BM:BM,'PdI-crono_inv'!CF:CF,F1293,'PdI-crono_inv'!CE:CE,H1293,'PdI-crono_inv'!J:J,P1293,'PdI-crono_inv'!P:P,\"<>proprietario\")+S1293","v":0},null,null,"Non ERC",{"$f":"+VLOOKUP(F1293,TT_Tabelle_Riferimento!$D$127:$E$164,2,FALSE)","v":"Comune"},"",0]
[0,0,"Gestore",0,"IP",36,{"$f":"+VLOOKUP(F1294,TT_Tabelle_Riferimento!$D$127:$G$164,4,FALSE)","v":"Studi, ricerche, brevetti, diritti di utilizzazione"},1,{"$f":"+VLOOKUP(H1294,TT_Tabelle_Riferimento!$F$3:$G$6,2,FALSE)","v":"Servizio idrico integrato"},2029,{"$f":"+SUMIFS('PdI-crono_inv'!BL:BL,'PdI-crono_inv'!CF:CF,F1294,'PdI-crono_inv'!CE:CE,H1294,'PdI-crono_inv'!J:J,P1294,'PdI-crono_inv'!P:P,\"<>proprietario\")","v":0},null,{"$f":"+SUMIFS('PdI-crono_inv'!BM:BM,'PdI-crono_inv'!CF:CF,F1294,'PdI-crono_inv'!CE:CE,H1294,'PdI-crono_inv'!J:J,P1294,'PdI-crono_inv'!P:P,\"<>proprietario\")+S1294","v":0},null,null,"Non ERC",{"$f":"+VLOOKUP(F1294,TT_Tabelle_Riferimento!$D$127:$E$164,2,FALSE)","v":"Comune"},"",0]
[0,0,"Gestore",0,"IP",37,{"$f":"+VLOOKUP(F1295,TT_Tabelle_Riferimento!$D$127:$G$164,4,FALSE)","v":"Altre immobilizzazioni materiali e immateriali"},1,{"$f":"+VLOOKUP(H1295,TT_Tabelle_Riferimento!$F$3:$G$6,2,FALSE)","v":"Servizio idrico integrato"},2029,{"$f":"+SUMIFS('PdI-crono_inv'!BL:BL,'PdI-crono_inv'!CF:CF,F1295,'PdI-crono_inv'!CE:CE,H1295,'PdI-crono_inv'!J:J,P1295,'PdI-crono_inv'!P:P,\"<>proprietario\")","v":0},null,{"$f":"+SUMIFS('PdI-crono_inv'!BM:BM,'PdI-crono_inv'!CF:CF,F1295,'PdI-crono_inv'!CE:CE,H1295,'PdI-crono_inv'!J:J,P1295,'PdI-crono_inv'!P:P,\"<>proprietario\")+S1295","v":0},null,null,"Non ERC",{"$f":"+VLOOKUP(F1295,TT_Tabelle_Riferimento!$D$127:$E$164,2,FALSE)","v":"Comune"},"",0]
[0,0,"Gestore",0,"IP",38,{"$f":"+VLOOKUP(F1296,TT_Tabelle_Riferimento!$D$127:$G$164,4,FALSE)","v":"Grandi dighe (sbarramenti che superano i quindici metri di altezza o che determinano un invaso superiore a 1 milione di metri cubi)"},1,{"$f":"+VLOOKUP(H1296,TT_Tabelle_Riferimento!$F$3:$G$6,2,FALSE)","v":"Servizio idrico integrato"},2029,{"$f":"+SUMIFS('PdI-crono_inv'!BL:BL,'PdI-crono_inv'!CF:CF,F1296,'PdI-crono_inv'!CE:CE,H1296,'PdI-crono_inv'!J:J,P1296,'PdI-crono_inv'!P:P,\"<>proprietario\")","v":0},null,{"$f":"+SUMIFS('PdI-crono_inv'!BM:BM,'PdI-crono_inv'!CF:CF,F1296,'PdI-crono_inv'!CE:CE,H1296,'PdI-crono_inv'!J:J,P1296,'PdI-crono_inv'!P:P,\"<>proprietario\")+S1296","v":0},null,null,"Non ERC",{"$f":"+VLOOKUP(F1296,TT_Tabelle_Riferimento!$D$127:$E$164,2,FALSE)","v":"Acquedotto"},"",0]
[0,0,"Gestore",0,"IP",39,{"$f":"+VLOOKUP(F1297,TT_Tabelle_Riferimento!$D$127:$G$164,4,FALSE)","v":"Piccole dighe (sbarramenti che non superano i quindici metri di altezza o che determinano un invaso non superiore a 1 milione di metri cubi)"},1,{"$f":"+VLOOKUP(H1297,TT_Tabelle_Riferimento!$F$3:$G$6,2,FALSE)","v":"Servizio idrico integrato"},2029,{"$f":"+SUMIFS('PdI-crono_inv'!BL:BL,'PdI-crono_inv'!CF:CF,F1297,'PdI-crono_inv'!CE:CE,H1297,'PdI-crono_inv'!J:J,P1297,'PdI-crono_inv'!P:P,\"<>proprietario\")","v":0},null,{"$f":"+SUMIFS('PdI-crono_inv'!BM:BM,'PdI-crono_inv'!CF:CF,F1297,'PdI-crono_inv'!CE:CE,H1297,'PdI-crono_inv'!J:J,P1297,'PdI-crono_inv'!P:P,\"<>proprietario\")+S1297","v":0},null,null,"Non ERC",{"$f":"+VLOOKUP(F1297,TT_Tabelle_Riferimento!$D$127:$E$164,2,FALSE)","v":"Acquedotto"},"",0]
[{"$f":"+idato","v":0},{"$f":"+idgestore","v":0},"Gestore",0,"IP",2,{"$f":"+VLOOKUP(F1298,TT_Tabelle_Riferimento!$D$127:$G$164,4,FALSE)","v":"Condotte di acquedotto"},2,{"$f":"+VLOOKUP(H1298,TT_Tabelle_Riferimento!$F$3:$G$6,2,FALSE)","v":"Fognatura bianca e pulizia / manutenzione caditoie stradali"},2029,{"$f":"+SUMIFS('PdI-crono_inv'!BL:BL,'PdI-crono_inv'!CF:CF,F1298,'PdI-crono_inv'!CE:CE,H1298,'PdI-crono_inv'!J:J,P1298,'PdI-crono_inv'!P:P,\"<>proprietario\")","v":0},null,{"$f":"+SUMIFS('PdI-crono_inv'!BM:BM,'PdI-crono_inv'!CF:CF,F1298,'PdI-crono_inv'!CE:CE,H1298,'PdI-crono_inv'!J:J,P1298,'PdI-crono_inv'!P:P,\"<>proprietario\")+S1298","v":0},null,null,"Non ERC",{"$f":"+VLOOKUP(F1298,TT_Tabelle_Riferimento!$D$127:$E$164,2,FALSE)","v":"Acquedotto"},"",0]
[0,0,"Gestore",0,"IP",3,{"$f":"+VLOOKUP(F1299,TT_Tabelle_Riferimento!$D$127:$G$164,4,FALSE)","v":"Opere idrauliche fisse di acquedotto"},2,{"$f":"+VLOOKUP(H1299,TT_Tabelle_Riferimento!$F$3:$G$6,2,FALSE)","v":"Fognatura bianca e pulizia / manutenzione caditoie stradali"},2029,{"$f":"+SUMIFS('PdI-crono_inv'!BL:BL,'PdI-crono_inv'!CF:CF,F1299,'PdI-crono_inv'!CE:CE,H1299,'PdI-crono_inv'!J:J,P1299,'PdI-crono_inv'!P:P,\"<>proprietario\")","v":0},null,{"$f":"+SUMIFS('PdI-crono_inv'!BM:BM,'PdI-crono_inv'!CF:CF,F1299,'PdI-crono_inv'!CE:CE,H1299,'PdI-crono_inv'!J:J,P1299,'PdI-crono_inv'!P:P,\"<>proprietario\")+S1299","v":0},null,null,"Non ERC",{"$f":"+VLOOKUP(F1299,TT_Tabelle_Riferimento!$D$127:$E$164,2,FALSE)","v":"Acquedotto"},"",0]
[0,0,"Gestore",0,"IP",4,{"$f":"+VLOOKUP(F1300,TT_Tabelle_Riferimento!$D$127:$G$164,4,FALSE)","v":"Serbatoi"},2,{"$f":"+VLOOKUP(H1300,TT_Tabelle_Riferimento!$F$3:$G$6,2,FALSE)","v":"Fognatura bianca e pulizia / manutenzione caditoie stradali"},2029,{"$f":"+SUMIFS('PdI-crono_inv'!BL:BL,'PdI-crono_inv'!CF:CF,F1300,'PdI-crono_inv'!CE:CE,H1300,'PdI-crono_inv'!J:J,P1300,'PdI-crono_inv'!P:P,\"<>proprietario\")","v":0},null,{"$f":"+SUMIFS('PdI-crono_inv'!BM:BM,'PdI-crono_inv'!CF:CF,F1300,'PdI-crono_inv'!CE:CE,H1300,'PdI-crono_inv'!J:J,P1300,'PdI-crono_inv'!P:P,\"<>proprietario\")+S1300","v":0},null,null,"Non ERC",{"$f":"+VLOOKUP(F1300,TT_Tabelle_Riferimento!$D$127:$E$164,2,FALSE)","v":"Acquedotto"},"",0]
[0,0,"Gestore",0,"IP",5,{"$f":"+VLOOKUP(F1301,TT_Tabelle_Riferimento!$D$127:$G$164,4,FALSE)","v":"Impianti di sollevamento e pompaggio di acquedotto"},2,{"$f":"+VLOOKUP(H1301,TT_Tabelle_Riferimento!$F$3:$G$6,2,FALSE)","v":"Fognatura bianca e pulizia / manutenzione caditoie stradali"},2029,{"$f":"+SUMIFS('PdI-crono_inv'!BL:BL,'PdI-crono_inv'!CF:CF,F1301,'PdI-crono_inv'!CE:CE,H1301,'PdI-crono_inv'!J:J,P1301,'PdI-crono_inv'!P:P,\"<>proprietario\")","v":0},null,{"$f":"+SUMIFS('PdI-crono_inv'!BM:BM,'PdI-crono_inv'!CF:CF,F1301,'PdI-crono_inv'!CE:CE,H1301,'PdI-crono_inv'!J:J,P1301,'PdI-crono_inv'!P:P,\"<>proprietario\")+S1301","v":0},null,null,"Non ERC",{"$f":"+VLOOKUP(F1301,TT_Tabelle_Riferimento!$D$127:$E$164,2,FALSE)","v":"Acquedotto"},"",0]
[0,0,"Gestore",0,"IP",6,{"$f":"+VLOOKUP(F1302,TT_Tabelle_Riferimento!$D$127:$G$164,4,FALSE)","v":"Impianti di potabilizzazione"},2,{"$f":"+VLOOKUP(H1302,TT_Tabelle_Riferimento!$F$3:$G$6,2,FALSE)","v":"Fognatura bianca e pulizia / manutenzione caditoie stradali"},2029,{"$f":"+SUMIFS('PdI-crono_inv'!BL:BL,'PdI-crono_inv'!CF:CF,F1302,'PdI-crono_inv'!CE:CE,H1302,'PdI-crono_inv'!J:J,P1302,'PdI-crono_inv'!P:P,\"<>proprietario\")","v":0},null,{"$f":"+SUMIFS('PdI-crono_inv'!BM:BM,'PdI-crono_inv'!CF:CF,F1302,'PdI-crono_inv'!CE:CE,H1302,'PdI-crono_inv'!J:J,P1302,'PdI-crono_inv'!P:P,\"<>proprietario\")+S1302","v":0},null,null,"Non ERC",{"$f":"+VLOOKUP(F1302,TT_Tabelle_Riferimento!$D$127:$E$164,2,FALSE)","v":"Acquedotto"},"",0]
[0,0,"Gestore",0,"IP",7,{"$f":"+VLOOKUP(F1303,TT_Tabelle_Riferimento!$D$127:$G$164,4,FALSE)","v":"Altri trattamenti di potabilizzazione (tra cui dispositivi di disinfezione, stacciatura, filtrazione, addolcimento)"},2,{"$f":"+VLOOKUP(H1303,TT_Tabelle_Riferimento!$F$3:$G$6,2,FALSE)","v":"Fognatura bianca e pulizia / manutenzione caditoie stradali"},2029,{"$f":"+SUMIFS('PdI-crono_inv'!BL:BL,'PdI-crono_inv'!CF:CF,F1303,'PdI-crono_inv'!CE:CE,H1303,'PdI-crono_inv'!J:J,P1303,'PdI-crono_inv'!P:P,\"<>proprietario\")","v":0},null,{"$f":"+SUMIFS('PdI-crono_inv'!BM:BM,'PdI-crono_inv'!CF:CF,F1303,'PdI-crono_inv'!CE:CE,H1303,'PdI-crono_inv'!J:J,P1303,'PdI-crono_inv'!P:P,\"<>proprietario\")+S1303","v":0},null,null,"Non ERC",{"$f":"+VLOOKUP(F1303,TT_Tabelle_Riferimento!$D$127:$E$164,2,FALSE)","v":"Acquedotto"},"",0]
[0,0,"Gestore",0,"IP",8,{"$f":"+VLOOKUP(F1304,TT_Tabelle_Riferimento!$D$127:$G$164,4,FALSE)","v":"Gruppi di misura - altre attrezzature di acquedotto"},2,{"$f":"+VLOOKUP(H1304,TT_Tabelle_Riferimento!$F$3:$G$6,2,FALSE)","v":"Fognatura bianca e pulizia / manutenzione caditoie stradali"},2029,{"$f":"+SUMIFS('PdI-crono_inv'!BL:BL,'PdI-crono_inv'!CF:CF,F1304,'PdI-crono_inv'!CE:CE,H1304,'PdI-crono_inv'!J:J,P1304,'PdI-crono_inv'!P:P,\"<>proprietario\")","v":0},null,{"$f":"+SUMIFS('PdI-crono_inv'!BM:BM,'PdI-crono_inv'!CF:CF,F1304,'PdI-crono_inv'!CE:CE,H1304,'PdI-crono_inv'!J:J,P1304,'PdI-crono_inv'!P:P,\"<>proprietario\")+S1304","v":0},null,null,"Non ERC",{"$f":"+VLOOKUP(F1304,TT_Tabelle_Riferimento!$D$127:$E$164,2,FALSE)","v":"Acquedotto"},"",0]
[0,0,"Gestore",0,"IP",9,{"$f":"+VLOOKUP(F1305,TT_Tabelle_Riferimento!$D$127:$G$164,4,FALSE)","v":"Sistemi informativi di acquedotto"},2,{"$f":"+VLOOKUP(H1305,TT_Tabelle_Riferimento!$F$3:$G$6,2,FALSE)","v":"Fognatura bianca e pulizia / manutenzione caditoie stradali"},2029,{"$f":"+SUMIFS('PdI-crono_inv'!BL:BL,'PdI-crono_inv'!CF:CF,F1305,'PdI-crono_inv'!CE:CE,H1305,'PdI-crono_inv'!J:J,P1305,'PdI-crono_inv'!P:P,\"<>proprietario\")","v":0},null,{"$f":"+SUMIFS('PdI-crono_inv'!BM:BM,'PdI-crono_inv'!CF:CF,F1305,'PdI-crono_inv'!CE:CE,H1305,'PdI-crono_inv'!J:J,P1305,'PdI-crono_inv'!P:P,\"<>proprietario\")+S1305","v":0},null,null,"Non ERC",{"$f":"+VLOOKUP(F1305,TT_Tabelle_Riferimento!$D$127:$E$164,2,FALSE)","v":"Acquedotto"},"",0]
[0,0,"Gestore",0,"IP",10,{"$f":"+VLOOKUP(F1306,TT_Tabelle_Riferimento!$D$127:$G$164,4,FALSE)","v":"Telecontrollo e teletrasmissione di acquedotto"},2,{"$f":"+VLOOKUP(H1306,TT_Tabelle_Riferimento!$F$3:$G$6,2,FALSE)","v":"Fognatura bianca e pulizia / manutenzione caditoie stradali"},2029,{"$f":"+SUMIFS('PdI-crono_inv'!BL:BL,'PdI-crono_inv'!CF:CF,F1306,'PdI-crono_inv'!CE:CE,H1306,'PdI-crono_inv'!J:J,P1306,'PdI-crono_inv'!P:P,\"<>proprietario\")","v":0},null,{"$f":"+SUMIFS('PdI-crono_inv'!BM:BM,'PdI-crono_inv'!CF:CF,F1306,'PdI-crono_inv'!CE:CE,H1306,'PdI-crono_inv'!J:J,P1306,'PdI-crono_inv'!P:P,\"<>proprietario\")+S1306","v":0},null,null,"Non ERC",{"$f":"+VLOOKUP(F1306,TT_Tabelle_Riferimento!$D$127:$E$164,2,FALSE)","v":"Acquedotto"},"",0]
[0,0,"Gestore",0,"IP",11,{"$f":"+VLOOKUP(F1307,TT_Tabelle_Riferimento!$D$127:$G$164,4,FALSE)","v":"Condotte fognarie"},2,{"$f":"+VLOOKUP(H1307,TT_Tabelle_Riferimento!$F$3:$G$6,2,FALSE)","v":"Fognatura bianca e pulizia / manutenzione caditoie stradali"},2029,{"$f":"+SUMIFS('PdI-crono_inv'!BL:BL,'PdI-crono_inv'!CF:CF,F1307,'PdI-crono_inv'!CE:CE,H1307,'PdI-crono_inv'!J:J,P1307,'PdI-crono_inv'!P:P,\"<>proprietario\")","v":0},null,{"$f":"+SUMIFS('PdI-crono_inv'!BM:BM,'PdI-crono_inv'!CF:CF,F1307,'PdI-crono_inv'!CE:CE,H1307,'PdI-crono_inv'!J:J,P1307,'PdI-crono_inv'!P:P,\"<>proprietario\")+S1307","v":0},null,null,"Non ERC",{"$f":"+VLOOKUP(F1307,TT_Tabelle_Riferimento!$D$127:$E$164,2,FALSE)","v":"Fognatura"},"",0]
[0,0,"Gestore",0,"IP",12,{"$f":"+VLOOKUP(F1308,TT_Tabelle_Riferimento!$D$127:$G$164,4,FALSE)","v":"Sifoni e scaricatori di piena e altre opere idrauliche fisse di fognatura"},2,{"$f":"+VLOOKUP(H1308,TT_Tabelle_Riferimento!$F$3:$G$6,2,FALSE)","v":"Fognatura bianca e pulizia / manutenzione caditoie stradali"},2029,{"$f":"+SUMIFS('PdI-crono_inv'!BL:BL,'PdI-crono_inv'!CF:CF,F1308,'PdI-crono_inv'!CE:CE,H1308,'PdI-crono_inv'!J:J,P1308,'PdI-crono_inv'!P:P,\"<>proprietario\")","v":0},null,{"$f":"+SUMIFS('PdI-crono_inv'!BM:BM,'PdI-crono_inv'!CF:CF,F1308,'PdI-crono_inv'!CE:CE,H1308,'PdI-crono_inv'!J:J,P1308,'PdI-crono_inv'!P:P,\"<>proprietario\")+S1308","v":0},null,null,"Non ERC",{"$f":"+VLOOKUP(F1308,TT_Tabelle_Riferimento!$D$127:$E$164,2,FALSE)","v":"Fognatura"},"",0]
[0,0,"Gestore",0,"IP",13,{"$f":"+VLOOKUP(F1309,TT_Tabelle_Riferimento!$D$127:$G$164,4,FALSE)","v":"Vasche di laminazione e vasche di prima pioggia"},2,{"$f":"+VLOOKUP(H1309,TT_Tabelle_Riferimento!$F$3:$G$6,2,FALSE)","v":"Fognatura bianca e pulizia / manutenzione caditoie stradali"},2029,{"$f":"+SUMIFS('PdI-crono_inv'!BL:BL,'PdI-crono_inv'!CF:CF,F1309,'PdI-crono_inv'!CE:CE,H1309,'PdI-crono_inv'!J:J,P1309,'PdI-crono_inv'!P:P,\"<>proprietario\")","v":0},null,{"$f":"+SUMIFS('PdI-crono_inv'!BM:BM,'PdI-crono_inv'!CF:CF,F1309,'PdI-crono_inv'!CE:CE,H1309,'PdI-crono_inv'!J:J,P1309,'PdI-crono_inv'!P:P,\"<>proprietario\")+S1309","v":0},null,null,"Non ERC",{"$f":"+VLOOKUP(F1309,TT_Tabelle_Riferimento!$D$127:$E$164,2,FALSE)","v":"Fognatura"},"",0]
[0,0,"Gestore",0,"IP",14,{"$f":"+VLOOKUP(F1310,TT_Tabelle_Riferimento!$D$127:$G$164,4,FALSE)","v":"Impianti di sollevamento e pompaggio di fognatura"},2,{"$f":"+VLOOKUP(H1310,TT_Tabelle_Riferimento!$F$3:$G$6,2,FALSE)","v":"Fognatura bianca e pulizia / manutenzione caditoie stradali"},2029,{"$f":"+SUMIFS('PdI-crono_inv'!BL:BL,'PdI-crono_inv'!CF:CF,F1310,'PdI-crono_inv'!CE:CE,H1310,'PdI-crono_inv'!J:J,P1310,'PdI-crono_inv'!P:P,\"<>proprietario\")","v":0},null,{"$f":"+SUMIFS('PdI-crono_inv'!BM:BM,'PdI-crono_inv'!CF:CF,F1310,'PdI-crono_inv'!CE:CE,H1310,'PdI-crono_inv'!J:J,P1310,'PdI-crono_inv'!P:P,\"<>proprietario\")+S1310","v":0},null,null,"Non ERC",{"$f":"+VLOOKUP(F1310,TT_Tabelle_Riferimento!$D$127:$E$164,2,FALSE)","v":"Fognatura"},"",0]
[0,0,"Gestore",0,"IP",15,{"$f":"+VLOOKUP(F1311,TT_Tabelle_Riferimento!$D$127:$G$164,4,FALSE)","v":"Gruppi di misura - altre attrezzature di fognatura"},2,{"$f":"+VLOOKUP(H1311,TT_Tabelle_Riferimento!$F$3:$G$6,2,FALSE)","v":"Fognatura bianca e pulizia / manutenzione caditoie stradali"},2029,{"$f":"+SUMIFS('PdI-crono_inv'!BL:BL,'PdI-crono_inv'!CF:CF,F1311,'PdI-crono_inv'!CE:CE,H1311,'PdI-crono_inv'!J:J,P1311,'PdI-crono_inv'!P:P,\"<>proprietario\")","v":0},null,{"$f":"+SUMIFS('PdI-crono_inv'!BM:BM,'PdI-crono_inv'!CF:CF,F1311,'PdI-crono_inv'!CE:CE,H1311,'PdI-crono_inv'!J:J,P1311,'PdI-crono_inv'!P:P,\"<>proprietario\")+S1311","v":0},null,null,"Non ERC",{"$f":"+VLOOKUP(F1311,TT_Tabelle_Riferimento!$D$127:$E$164,2,FALSE)","v":"Fognatura"},"",0]
[0,0,"Gestore",0,"IP",16,{"$f":"+VLOOKUP(F1312,TT_Tabelle_Riferimento!$D$127:$G$164,4,FALSE)","v":"Sistemi informativi di fognatura"},2,{"$f":"+VLOOKUP(H1312,TT_Tabelle_Riferimento!$F$3:$G$6,2,FALSE)","v":"Fognatura bianca e pulizia / manutenzione caditoie stradali"},2029,{"$f":"+SUMIFS('PdI-crono_inv'!BL:BL,'PdI-crono_inv'!CF:CF,F1312,'PdI-crono_inv'!CE:CE,H1312,'PdI-crono_inv'!J:J,P1312,'PdI-crono_inv'!P:P,\"<>proprietario\")","v":0},null,{"$f":"+SUMIFS('PdI-crono_inv'!BM:BM,'PdI-crono_inv'!CF:CF,F1312,'PdI-crono_inv'!CE:CE,H1312,'PdI-crono_inv'!J:J,P1312,'PdI-crono_inv'!P:P,\"<>proprietario\")+S1312","v":0},null,null,"Non ERC",{"$f":"+VLOOKUP(F1312,TT_Tabelle_Riferimento!$D$127:$E$164,2,FALSE)","v":"Fognatura"},"",0]
[0,0,"Gestore",0,"IP",18,{"$f":"+VLOOKUP(F1313,TT_Tabelle_Riferimento!$D$127:$G$164,4,FALSE)","v":"Telecontrollo e teletrasmissione di fognatura"},2,{"$f":"+VLOOKUP(H1313,TT_Tabelle_Riferimento!$F$3:$G$6,2,FALSE)","v":"Fognatura bianca e pulizia / manutenzione caditoie stradali"},2029,{"$f":"+SUMIFS('PdI-crono_inv'!BL:BL,'PdI-crono_inv'!CF:CF,F1313,'PdI-crono_inv'!CE:CE,H1313,'PdI-crono_inv'!J:J,P1313,'PdI-crono_inv'!P:P,\"<>proprietario\")","v":0},null,{"$f":"+SUMIFS('PdI-crono_inv'!BM:BM,'PdI-crono_inv'!CF:CF,F1313,'PdI-crono_inv'!CE:CE,H1313,'PdI-crono_inv'!J:J,P1313,'PdI-crono_inv'!P:P,\"<>proprietario\")+S1313","v":0},null,null,"Non ERC",{"$f":"+VLOOKUP(F1313,TT_Tabelle_Riferimento!$D$127:$E$164,2,FALSE)","v":"Fognatura"},"",0]
[0,0,"Gestore",0,"IP",19,{"$f":"+VLOOKUP(F1314,TT_Tabelle_Riferimento!$D$127:$G$164,4,FALSE)","v":"Impianti di sollevamento e pompaggio di depurazione"},2,{"$f":"+VLOOKUP(H1314,TT_Tabelle_Riferimento!$F$3:$G$6,2,FALSE)","v":"Fognatura bianca e pulizia / manutenzione caditoie stradali"},2029,{"$f":"+SUMIFS('PdI-crono_inv'!BL:BL,'PdI-crono_inv'!CF:CF,F1314,'PdI-crono_inv'!CE:CE,H1314,'PdI-crono_inv'!J:J,P1314,'PdI-crono_inv'!P:P,\"<>proprietario\")","v":0},null,{"$f":"+SUMIFS('PdI-crono_inv'!BM:BM,'PdI-crono_inv'!CF:CF,F1314,'PdI-crono_inv'!CE:CE,H1314,'PdI-crono_inv'!J:J,P1314,'PdI-crono_inv'!P:P,\"<>proprietario\")+S1314","v":0},null,null,"Non ERC",{"$f":"+VLOOKUP(F1314,TT_Tabelle_Riferimento!$D$127:$E$164,2,FALSE)","v":"Depurazione"},"",0]
[0,0,"Gestore",0,"IP",20,{"$f":"+VLOOKUP(F1315,TT_Tabelle_Riferimento!$D$127:$G$164,4,FALSE)","v":"Tecniche naturali di depurazione (tra cui fitodepurazione e lagunaggio)"},2,{"$f":"+VLOOKUP(H1315,TT_Tabelle_Riferimento!$F$3:$G$6,2,FALSE)","v":"Fognatura bianca e pulizia / manutenzione caditoie stradali"},2029,{"$f":"+SUMIFS('PdI-crono_inv'!BL:BL,'PdI-crono_inv'!CF:CF,F1315,'PdI-crono_inv'!CE:CE,H1315,'PdI-crono_inv'!J:J,P1315,'PdI-crono_inv'!P:P,\"<>proprietario\")","v":0},null,{"$f":"+SUMIFS('PdI-crono_inv'!BM:BM,'PdI-crono_inv'!CF:CF,F1315,'PdI-crono_inv'!CE:CE,H1315,'PdI-crono_inv'!J:J,P1315,'PdI-crono_inv'!P:P,\"<>proprietario\")+S1315","v":0},null,null,"Non ERC",{"$f":"+VLOOKUP(F1315,TT_Tabelle_Riferimento!$D$127:$E$164,2,FALSE)","v":"Depurazione"},"",0]
[0,0,"Gestore",0,"IP",21,{"$f":"+VLOOKUP(F1316,TT_Tabelle_Riferimento!$D$127:$G$164,4,FALSE)","v":"Impianti di depurazione – trattamenti sino al preliminare, integrativo, primario - fosse settiche e fosse Imhoff"},2,{"$f":"+VLOOKUP(H1316,TT_Tabelle_Riferimento!$F$3:$G$6,2,FALSE)","v":"Fognatura bianca e pulizia / manutenzione caditoie stradali"},2029,{"$f":"+SUMIFS('PdI-crono_inv'!BL:BL,'PdI-crono_inv'!CF:CF,F1316,'PdI-crono_inv'!CE:CE,H1316,'PdI-crono_inv'!J:J,P1316,'PdI-crono_inv'!P:P,\"<>proprietario\")","v":0},null,{"$f":"+SUMIFS('PdI-crono_inv'!BM:BM,'PdI-crono_inv'!CF:CF,F1316,'PdI-crono_inv'!CE:CE,H1316,'PdI-crono_inv'!J:J,P1316,'PdI-crono_inv'!P:P,\"<>proprietario\")+S1316","v":0},null,null,"Non ERC",{"$f":"+VLOOKUP(F1316,TT_Tabelle_Riferimento!$D$127:$E$164,2,FALSE)","v":"Depurazione"},"",0]
[0,0,"Gestore",0,"IP",22,{"$f":"+VLOOKUP(F1317,TT_Tabelle_Riferimento!$D$127:$G$164,4,FALSE)","v":"Impianti di depurazione – trattamenti sino al secondario"},2,{"$f":"+VLOOKUP(H1317,TT_Tabelle_Riferimento!$F$3:$G$6,2,FALSE)","v":"Fognatura bianca e pulizia / manutenzione caditoie stradali"},2029,{"$f":"+SUMIFS('PdI-crono_inv'!BL:BL,'PdI-crono_inv'!CF:CF,F1317,'PdI-crono_inv'!CE:CE,H1317,'PdI-crono_inv'!J:J,P1317,'PdI-crono_inv'!P:P,\"<>proprietario\")","v":0},null,{"$f":"+SUMIFS('PdI-crono_inv'!BM:BM,'PdI-crono_inv'!CF:CF,F1317,'PdI-crono_inv'!CE:CE,H1317,'PdI-crono_inv'!J:J,P1317,'PdI-crono_inv'!P:P,\"<>proprietario\")+S1317","v":0},null,null,"Non ERC",{"$f":"+VLOOKUP(F1317,TT_Tabelle_Riferimento!$D$127:$E$164,2,FALSE)","v":"Depurazione"},"",0]
[0,0,"Gestore",0,"IP",23,{"$f":"+VLOOKUP(F1318,TT_Tabelle_Riferimento!$D$127:$G$164,4,FALSE)","v":"Impianti di depurazione – trattamenti sino al terziario e terziario avanzato"},2,{"$f":"+VLOOKUP(H1318,TT_Tabelle_Riferimento!$F$3:$G$6,2,FALSE)","v":"Fognatura bianca e pulizia / manutenzione caditoie stradali"},2029,{"$f":"+SUMIFS('PdI-crono_inv'!BL:BL,'PdI-crono_inv'!CF:CF,F1318,'PdI-crono_inv'!CE:CE,H1318,'PdI-crono_inv'!J:J,P1318,'PdI-crono_inv'!P:P,\"<>proprietario\")","v":0},null,{"$f":"+SUMIFS('PdI-crono_inv'!BM:BM,'PdI-crono_inv'!CF:CF,F1318,'PdI-crono_inv'!CE:CE,H1318,'PdI-crono_inv'!J:J,P1318,'PdI-crono_inv'!P:P,\"<>proprietario\")+S1318","v":0},null,null,"Non ERC",{"$f":"+VLOOKUP(F1318,TT_Tabelle_Riferimento!$D$127:$E$164,2,FALSE)","v":"Depurazione"},"",0]
[0,0,"Gestore",0,"IP",24,{"$f":"+VLOOKUP(F1319,TT_Tabelle_Riferimento!$D$127:$G$164,4,FALSE)","v":"Impianti di essiccamento fanghi e di valorizzazione dei fanghi (tra cui mono-incenerimento, pirolisi, gassificazione)"},2,{"$f":"+VLOOKUP(H1319,TT_Tabelle_Riferimento!$F$3:$G$6,2,FALSE)","v":"Fognatura bianca e pulizia / manutenzione caditoie stradali"},2029,{"$f":"+SUMIFS('PdI-crono_inv'!BL:BL,'PdI-crono_inv'!CF:CF,F1319,'PdI-crono_inv'!CE:CE,H1319,'PdI-crono_inv'!J:J,P1319,'PdI-crono_inv'!P:P,\"<>proprietario\")","v":0},null,{"$f":"+SUMIFS('PdI-crono_inv'!BM:BM,'PdI-crono_inv'!CF:CF,F1319,'PdI-crono_inv'!CE:CE,H1319,'PdI-crono_inv'!J:J,P1319,'PdI-crono_inv'!P:P,\"<>proprietario\")+S1319","v":0},null,null,"Non ERC",{"$f":"+VLOOKUP(F1319,TT_Tabelle_Riferimento!$D$127:$E$164,2,FALSE)","v":"Depurazione"},"",0]
[0,0,"Gestore",0,"IP",25,{"$f":"+VLOOKUP(F1320,TT_Tabelle_Riferimento!$D$127:$G$164,4,FALSE)","v":"Gruppi di misura - altre attrezzature di depurazione"},2,{"$f":"+VLOOKUP(H1320,TT_Tabelle_Riferimento!$F$3:$G$6,2,FALSE)","v":"Fognatura bianca e pulizia / manutenzione caditoie stradali"},2029,{"$f":"+SUMIFS('PdI-crono_inv'!BL:BL,'PdI-crono_inv'!CF:CF,F1320,'PdI-crono_inv'!CE:CE,H1320,'PdI-crono_inv'!J:J,P1320,'PdI-crono_inv'!P:P,\"<>proprietario\")","v":0},null,{"$f":"+SUMIFS('PdI-crono_inv'!BM:BM,'PdI-crono_inv'!CF:CF,F1320,'PdI-crono_inv'!CE:CE,H1320,'PdI-crono_inv'!J:J,P1320,'PdI-crono_inv'!P:P,\"<>proprietario\")+S1320","v":0},null,null,"Non ERC",{"$f":"+VLOOKUP(F1320,TT_Tabelle_Riferimento!$D$127:$E$164,2,FALSE)","v":"Depurazione"},"",0]
[0,0,"Gestore",0,"IP",26,{"$f":"+VLOOKUP(F1321,TT_Tabelle_Riferimento!$D$127:$G$164,4,FALSE)","v":"Sistemi informativi di depurazione"},2,{"$f":"+VLOOKUP(H1321,TT_Tabelle_Riferimento!$F$3:$G$6,2,FALSE)","v":"Fognatura bianca e pulizia / manutenzione caditoie stradali"},2029,{"$f":"+SUMIFS('PdI-crono_inv'!BL:BL,'PdI-crono_inv'!CF:CF,F1321,'PdI-crono_inv'!CE:CE,H1321,'PdI-crono_inv'!J:J,P1321,'PdI-crono_inv'!P:P,\"<>proprietario\")","v":0},null,{"$f":"+SUMIFS('PdI-crono_inv'!BM:BM,'PdI-crono_inv'!CF:CF,F1321,'PdI-crono_inv'!CE:CE,H1321,'PdI-crono_inv'!J:J,P1321,'PdI-crono_inv'!P:P,\"<>proprietario\")+S1321","v":0},null,null,"Non ERC",{"$f":"+VLOOKUP(F1321,TT_Tabelle_Riferimento!$D$127:$E$164,2,FALSE)","v":"Depurazione"},"",0]
[0,0,"Gestore",0,"IP",27,{"$f":"+VLOOKUP(F1322,TT_Tabelle_Riferimento!$D$127:$G$164,4,FALSE)","v":"Telecontrollo e teletrasmissione di depurazione"},2,{"$f":"+VLOOKUP(H1322,TT_Tabelle_Riferimento!$F$3:$G$6,2,FALSE)","v":"Fognatura bianca e pulizia / manutenzione caditoie stradali"},2029,{"$f":"+SUMIFS('PdI-crono_inv'!BL:BL,'PdI-crono_inv'!CF:CF,F1322,'PdI-crono_inv'!CE:CE,H1322,'PdI-crono_inv'!J:J,P1322,'PdI-crono_inv'!P:P,\"<>proprietario\")","v":0},null,{"$f":"+SUMIFS('PdI-crono_inv'!BM:BM,'PdI-crono_inv'!CF:CF,F1322,'PdI-crono_inv'!CE:CE,H1322,'PdI-crono_inv'!J:J,P1322,'PdI-crono_inv'!P:P,\"<>proprietario\")+S1322","v":0},null,null,"Non ERC",{"$f":"+VLOOKUP(F1322,TT_Tabelle_Riferimento!$D$127:$E$164,2,FALSE)","v":"Depurazione"},"",0]
[0,0,"Gestore",0,"IP",28,{"$f":"+VLOOKUP(F1323,TT_Tabelle_Riferimento!$D$127:$G$164,4,FALSE)","v":"Altri impianti"},2,{"$f":"+VLOOKUP(H1323,TT_Tabelle_Riferimento!$F$3:$G$6,2,FALSE)","v":"Fognatura bianca e pulizia / manutenzione caditoie stradali"},2029,{"$f":"+SUMIFS('PdI-crono_inv'!BL:BL,'PdI-crono_inv'!CF:CF,F1323,'PdI-crono_inv'!CE:CE,H1323,'PdI-crono_inv'!J:J,P1323,'PdI-crono_inv'!P:P,\"<>proprietario\")","v":0},null,{"$f":"+SUMIFS('PdI-crono_inv'!BM:BM,'PdI-crono_inv'!CF:CF,F1323,'PdI-crono_inv'!CE:CE,H1323,'PdI-crono_inv'!J:J,P1323,'PdI-crono_inv'!P:P,\"<>proprietario\")+S1323","v":0},null,null,"Non ERC",{"$f":"+VLOOKUP(F1323,TT_Tabelle_Riferimento!$D$127:$E$164,2,FALSE)","v":"Comune"},"",0]
[0,0,"Gestore",0,"IP",29,{"$f":"+VLOOKUP(F1324,TT_Tabelle_Riferimento!$D$127:$G$164,4,FALSE)","v":"Laboratori e attrezzature"},2,{"$f":"+VLOOKUP(H1324,TT_Tabelle_Riferimento!$F$3:$G$6,2,FALSE)","v":"Fognatura bianca e pulizia / manutenzione caditoie stradali"},2029,{"$f":"+SUMIFS('PdI-crono_inv'!BL:BL,'PdI-crono_inv'!CF:CF,F1324,'PdI-crono_inv'!CE:CE,H1324,'PdI-crono_inv'!J:J,P1324,'PdI-crono_inv'!P:P,\"<>proprietario\")","v":0},null,{"$f":"+SUMIFS('PdI-crono_inv'!BM:BM,'PdI-crono_inv'!CF:CF,F1324,'PdI-crono_inv'!CE:CE,H1324,'PdI-crono_inv'!J:J,P1324,'PdI-crono_inv'!P:P,\"<>proprietario\")+S1324","v":0},null,null,"Non ERC",{"$f":"+VLOOKUP(F1324,TT_Tabelle_Riferimento!$D$127:$E$164,2,FALSE)","v":"Comune"},"",0]
[0,0,"Gestore",0,"IP",30,{"$f":"+VLOOKUP(F1325,TT_Tabelle_Riferimento!$D$127:$G$164,4,FALSE)","v":"Sistemi informativi"},2,{"$f":"+VLOOKUP(H1325,TT_Tabelle_Riferimento!$F$3:$G$6,2,FALSE)","v":"Fognatura bianca e pulizia / manutenzione caditoie stradali"},2029,{"$f":"+SUMIFS('PdI-crono_inv'!BL:BL,'PdI-crono_inv'!CF:CF,F1325,'PdI-crono_inv'!CE:CE,H1325,'PdI-crono_inv'!J:J,P1325,'PdI-crono_inv'!P:P,\"<>proprietario\")","v":0},null,{"$f":"+SUMIFS('PdI-crono_inv'!BM:BM,'PdI-crono_inv'!CF:CF,F1325,'PdI-crono_inv'!CE:CE,H1325,'PdI-crono_inv'!J:J,P1325,'PdI-crono_inv'!P:P,\"<>proprietario\")+S1325","v":0},null,null,"Non ERC",{"$f":"+VLOOKUP(F1325,TT_Tabelle_Riferimento!$D$127:$E$164,2,FALSE)","v":"Comune"},"",0]
[0,0,"Gestore",0,"IP",31,{"$f":"+VLOOKUP(F1326,TT_Tabelle_Riferimento!$D$127:$G$164,4,FALSE)","v":"Telecontrollo e teletrasmissione"},2,{"$f":"+VLOOKUP(H1326,TT_Tabelle_Riferimento!$F$3:$G$6,2,FALSE)","v":"Fognatura bianca e pulizia / manutenzione caditoie stradali"},2029,{"$f":"+SUMIFS('PdI-crono_inv'!BL:BL,'PdI-crono_inv'!CF:CF,F1326,'PdI-crono_inv'!CE:CE,H1326,'PdI-crono_inv'!J:J,P1326,'PdI-crono_inv'!P:P,\"<>proprietario\")","v":0},null,{"$f":"+SUMIFS('PdI-crono_inv'!BM:BM,'PdI-crono_inv'!CF:CF,F1326,'PdI-crono_inv'!CE:CE,H1326,'PdI-crono_inv'!J:J,P1326,'PdI-crono_inv'!P:P,\"<>proprietario\")+S1326","v":0},null,null,"Non ERC",{"$f":"+VLOOKUP(F1326,TT_Tabelle_Riferimento!$D$127:$E$164,2,FALSE)","v":"Comune"},{"$f":"+IF(SUM(K1326:N1326)=0,\"\",\"PdI_consolidamento\")","v":""},0]
[0,0,"Gestore",0,"IP",32,{"$f":"+VLOOKUP(F1327,TT_Tabelle_Riferimento!$D$127:$G$164,4,FALSE)","v":"Autoveicoli - automezzi"},2,{"$f":"+VLOOKUP(H1327,TT_Tabelle_Riferimento!$F$3:$G$6,2,FALSE)","v":"Fognatura bianca e pulizia / manutenzione caditoie stradali"},2029,{"$f":"+SUMIFS('PdI-crono_inv'!BL:BL,'PdI-crono_inv'!CF:CF,F1327,'PdI-crono_inv'!CE:CE,H1327,'PdI-crono_inv'!J:J,P1327,'PdI-crono_inv'!P:P,\"<>proprietario\")","v":0},null,{"$f":"+SUMIFS('PdI-crono_inv'!BM:BM,'PdI-crono_inv'!CF:CF,F1327,'PdI-crono_inv'!CE:CE,H1327,'PdI-crono_inv'!J:J,P1327,'PdI-crono_inv'!P:P,\"<>proprietario\")+S1327","v":0},null,null,"Non ERC",{"$f":"+VLOOKUP(F1327,TT_Tabelle_Riferimento!$D$127:$E$164,2,FALSE)","v":"Comune"},"",0]
[0,0,"Gestore",0,"IP",1,{"$f":"+VLOOKUP(F1328,TT_Tabelle_Riferimento!$D$127:$G$164,4,FALSE)","v":"Terreni"},2,{"$f":"+VLOOKUP(H1328,TT_Tabelle_Riferimento!$F$3:$G$6,2,FALSE)","v":"Fognatura bianca e pulizia / manutenzione caditoie stradali"},2029,{"$f":"+SUMIFS('PdI-crono_inv'!BL:BL,'PdI-crono_inv'!CF:CF,F1328,'PdI-crono_inv'!CE:CE,H1328,'PdI-crono_inv'!J:J,P1328,'PdI-crono_inv'!P:P,\"<>proprietario\")","v":0},null,{"$f":"+SUMIFS('PdI-crono_inv'!BM:BM,'PdI-crono_inv'!CF:CF,F1328,'PdI-crono_inv'!CE:CE,H1328,'PdI-crono_inv'!J:J,P1328,'PdI-crono_inv'!P:P,\"<>proprietario\")+S1328","v":0},null,null,"Non ERC",{"$f":"+VLOOKUP(F1328,TT_Tabelle_Riferimento!$D$127:$E$164,2,FALSE)","v":"Comune"},"",0]
[0,0,"Gestore",0,"IP",33,{"$f":"+VLOOKUP(F1329,TT_Tabelle_Riferimento!$D$127:$G$164,4,FALSE)","v":"Fabbricati non industriali"},2,{"$f":"+VLOOKUP(H1329,TT_Tabelle_Riferimento!$F$3:$G$6,2,FALSE)","v":"Fognatura bianca e pulizia / manutenzione caditoie stradali"},2029,{"$f":"+SUMIFS('PdI-crono_inv'!BL:BL,'PdI-crono_inv'!CF:CF,F1329,'PdI-crono_inv'!CE:CE,H1329,'PdI-crono_inv'!J:J,P1329,'PdI-crono_inv'!P:P,\"<>proprietario\")","v":0},null,{"$f":"+SUMIFS('PdI-crono_inv'!BM:BM,'PdI-crono_inv'!CF:CF,F1329,'PdI-crono_inv'!CE:CE,H1329,'PdI-crono_inv'!J:J,P1329,'PdI-crono_inv'!P:P,\"<>proprietario\")+S1329","v":0},null,null,"Non ERC",{"$f":"+VLOOKUP(F1329,TT_Tabelle_Riferimento!$D$127:$E$164,2,FALSE)","v":"Comune"},"",0]
[0,0,"Gestore",0,"IP",34,{"$f":"+VLOOKUP(F1330,TT_Tabelle_Riferimento!$D$127:$G$164,4,FALSE)","v":"Fabbricati industriali"},2,{"$f":"+VLOOKUP(H1330,TT_Tabelle_Riferimento!$F$3:$G$6,2,FALSE)","v":"Fognatura bianca e pulizia / manutenzione caditoie stradali"},2029,{"$f":"+SUMIFS('PdI-crono_inv'!BL:BL,'PdI-crono_inv'!CF:CF,F1330,'PdI-crono_inv'!CE:CE,H1330,'PdI-crono_inv'!J:J,P1330,'PdI-crono_inv'!P:P,\"<>proprietario\")","v":0},null,{"$f":"+SUMIFS('PdI-crono_inv'!BM:BM,'PdI-crono_inv'!CF:CF,F1330,'PdI-crono_inv'!CE:CE,H1330,'PdI-crono_inv'!J:J,P1330,'PdI-crono_inv'!P:P,\"<>proprietario\")+S1330","v":0},null,null,"Non ERC",{"$f":"+VLOOKUP(F1330,TT_Tabelle_Riferimento!$D$127:$E$164,2,FALSE)","v":"Comune"},"",0]
[0,0,"Gestore",0,"IP",35,{"$f":"+VLOOKUP(F1331,TT_Tabelle_Riferimento!$D$127:$G$164,4,FALSE)","v":"Costruzioni leggere"},2,{"$f":"+VLOOKUP(H1331,TT_Tabelle_Riferimento!$F$3:$G$6,2,FALSE)","v":"Fognatura bianca e pulizia / manutenzione caditoie stradali"},2029,{"$f":"+SUMIFS('PdI-crono_inv'!BL:BL,'PdI-crono_inv'!CF:CF,F1331,'PdI-crono_inv'!CE:CE,H1331,'PdI-crono_inv'!J:J,P1331,'PdI-crono_inv'!P:P,\"<>proprietario\")","v":0},null,{"$f":"+SUMIFS('PdI-crono_inv'!BM:BM,'PdI-crono_inv'!CF:CF,F1331,'PdI-crono_inv'!CE:CE,H1331,'PdI-crono_inv'!J:J,P1331,'PdI-crono_inv'!P:P,\"<>proprietario\")+S1331","v":0},null,null,"Non ERC",{"$f":"+VLOOKUP(F1331,TT_Tabelle_Riferimento!$D$127:$E$164,2,FALSE)","v":"Comune"},"",0]
[0,0,"Gestore",0,"IP",36,{"$f":"+VLOOKUP(F1332,TT_Tabelle_Riferimento!$D$127:$G$164,4,FALSE)","v":"Studi, ricerche, brevetti, diritti di utilizzazione"},2,{"$f":"+VLOOKUP(H1332,TT_Tabelle_Riferimento!$F$3:$G$6,2,FALSE)","v":"Fognatura bianca e pulizia / manutenzione caditoie stradali"},2029,{"$f":"+SUMIFS('PdI-crono_inv'!BL:BL,'PdI-crono_inv'!CF:CF,F1332,'PdI-crono_inv'!CE:CE,H1332,'PdI-crono_inv'!J:J,P1332,'PdI-crono_inv'!P:P,\"<>proprietario\")","v":0},null,{"$f":"+SUMIFS('PdI-crono_inv'!BM:BM,'PdI-crono_inv'!CF:CF,F1332,'PdI-crono_inv'!CE:CE,H1332,'PdI-crono_inv'!J:J,P1332,'PdI-crono_inv'!P:P,\"<>proprietario\")+S1332","v":0},null,null,"Non ERC",{"$f":"+VLOOKUP(F1332,TT_Tabelle_Riferimento!$D$127:$E$164,2,FALSE)","v":"Comune"},"",0]
[0,0,"Gestore",0,"IP",37,{"$f":"+VLOOKUP(F1333,TT_Tabelle_Riferimento!$D$127:$G$164,4,FALSE)","v":"Altre immobilizzazioni materiali e immateriali"},2,{"$f":"+VLOOKUP(H1333,TT_Tabelle_Riferimento!$F$3:$G$6,2,FALSE)","v":"Fognatura bianca e pulizia / manutenzione caditoie stradali"},2029,{"$f":"+SUMIFS('PdI-crono_inv'!BL:BL,'PdI-crono_inv'!CF:CF,F1333,'PdI-crono_inv'!CE:CE,H1333,'PdI-crono_inv'!J:J,P1333,'PdI-crono_inv'!P:P,\"<>proprietario\")","v":0},null,{"$f":"+SUMIFS('PdI-crono_inv'!BM:BM,'PdI-crono_inv'!CF:CF,F1333,'PdI-crono_inv'!CE:CE,H1333,'PdI-crono_inv'!J:J,P1333,'PdI-crono_inv'!P:P,\"<>proprietario\")+S1333","v":0},null,null,"Non ERC",{"$f":"+VLOOKUP(F1333,TT_Tabelle_Riferimento!$D$127:$E$164,2,FALSE)","v":"Comune"},"",0]
[0,0,"Gestore",0,"IP",38,{"$f":"+VLOOKUP(F1334,TT_Tabelle_Riferimento!$D$127:$G$164,4,FALSE)","v":"Grandi dighe (sbarramenti che superano i quindici metri di altezza o che determinano un invaso superiore a 1 milione di metri cubi)"},2,{"$f":"+VLOOKUP(H1334,TT_Tabelle_Riferimento!$F$3:$G$6,2,FALSE)","v":"Fognatura bianca e pulizia / manutenzione caditoie stradali"},2029,{"$f":"+SUMIFS('PdI-crono_inv'!BL:BL,'PdI-crono_inv'!CF:CF,F1334,'PdI-crono_inv'!CE:CE,H1334,'PdI-crono_inv'!J:J,P1334,'PdI-crono_inv'!P:P,\"<>proprietario\")","v":0},null,{"$f":"+SUMIFS('PdI-crono_inv'!BM:BM,'PdI-crono_inv'!CF:CF,F1334,'PdI-crono_inv'!CE:CE,H1334,'PdI-crono_inv'!J:J,P1334,'PdI-crono_inv'!P:P,\"<>proprietario\")+S1334","v":0},null,null,"Non ERC",{"$f":"+VLOOKUP(F1334,TT_Tabelle_Riferimento!$D$127:$E$164,2,FALSE)","v":"Acquedotto"},"",0]
[0,0,"Gestore",0,"IP",39,{"$f":"+VLOOKUP(F1335,TT_Tabelle_Riferimento!$D$127:$G$164,4,FALSE)","v":"Piccole dighe (sbarramenti che non superano i quindici metri di altezza o che determinano un invaso non superiore a 1 milione di metri cubi)"},2,{"$f":"+VLOOKUP(H1335,TT_Tabelle_Riferimento!$F$3:$G$6,2,FALSE)","v":"Fognatura bianca e pulizia / manutenzione caditoie stradali"},2029,{"$f":"+SUMIFS('PdI-crono_inv'!BL:BL,'PdI-crono_inv'!CF:CF,F1335,'PdI-crono_inv'!CE:CE,H1335,'PdI-crono_inv'!J:J,P1335,'PdI-crono_inv'!P:P,\"<>proprietario\")","v":0},null,{"$f":"+SUMIFS('PdI-crono_inv'!BM:BM,'PdI-crono_inv'!CF:CF,F1335,'PdI-crono_inv'!CE:CE,H1335,'PdI-crono_inv'!J:J,P1335,'PdI-crono_inv'!P:P,\"<>proprietario\")+S1335","v":0},null,null,"Non ERC",{"$f":"+VLOOKUP(F1335,TT_Tabelle_Riferimento!$D$127:$E$164,2,FALSE)","v":"Acquedotto"},"",0]
[{"$f":"+idato","v":0},{"$f":"+idgestore","v":0},"Gestore",0,"IP",2,{"$f":"+VLOOKUP(F1336,TT_Tabelle_Riferimento!$D$127:$G$164,4,FALSE)","v":"Condotte di acquedotto"},3,{"$f":"+VLOOKUP(H1336,TT_Tabelle_Riferimento!$F$3:$G$6,2,FALSE)","v":"Altri servizi idrici"},2029,{"$f":"+SUMIFS('PdI-crono_inv'!BL:BL,'PdI-crono_inv'!CF:CF,F1336,'PdI-crono_inv'!CE:CE,H1336,'PdI-crono_inv'!J:J,P1336,'PdI-crono_inv'!P:P,\"<>proprietario\")","v":0},null,{"$f":"+SUMIFS('PdI-crono_inv'!BM:BM,'PdI-crono_inv'!CF:CF,F1336,'PdI-crono_inv'!CE:CE,H1336,'PdI-crono_inv'!J:J,P1336,'PdI-crono_inv'!P:P,\"<>proprietario\")+S1336","v":0},null,null,"Non ERC",{"$f":"+VLOOKUP(F1336,TT_Tabelle_Riferimento!$D$127:$E$164,2,FALSE)","v":"Acquedotto"},"",0]
[0,0,"Gestore",0,"IP",3,{"$f":"+VLOOKUP(F1337,TT_Tabelle_Riferimento!$D$127:$G$164,4,FALSE)","v":"Opere idrauliche fisse di acquedotto"},3,{"$f":"+VLOOKUP(H1337,TT_Tabelle_Riferimento!$F$3:$G$6,2,FALSE)","v":"Altri servizi idrici"},2029,{"$f":"+SUMIFS('PdI-crono_inv'!BL:BL,'PdI-crono_inv'!CF:CF,F1337,'PdI-crono_inv'!CE:CE,H1337,'PdI-crono_inv'!J:J,P1337,'PdI-crono_inv'!P:P,\"<>proprietario\")","v":0},null,{"$f":"+SUMIFS('PdI-crono_inv'!BM:BM,'PdI-crono_inv'!CF:CF,F1337,'PdI-crono_inv'!CE:CE,H1337,'PdI-crono_inv'!J:J,P1337,'PdI-crono_inv'!P:P,\"<>proprietario\")+S1337","v":0},null,null,"Non ERC",{"$f":"+VLOOKUP(F1337,TT_Tabelle_Riferimento!$D$127:$E$164,2,FALSE)","v":"Acquedotto"},"",0]
[0,0,"Gestore",0,"IP",4,{"$f":"+VLOOKUP(F1338,TT_Tabelle_Riferimento!$D$127:$G$164,4,FALSE)","v":"Serbatoi"},3,{"$f":"+VLOOKUP(H1338,TT_Tabelle_Riferimento!$F$3:$G$6,2,FALSE)","v":"Altri servizi idrici"},2029,{"$f":"+SUMIFS('PdI-crono_inv'!BL:BL,'PdI-crono_inv'!CF:CF,F1338,'PdI-crono_inv'!CE:CE,H1338,'PdI-crono_inv'!J:J,P1338,'PdI-crono_inv'!P:P,\"<>proprietario\")","v":0},null,{"$f":"+SUMIFS('PdI-crono_inv'!BM:BM,'PdI-crono_inv'!CF:CF,F1338,'PdI-crono_inv'!CE:CE,H1338,'PdI-crono_inv'!J:J,P1338,'PdI-crono_inv'!P:P,\"<>proprietario\")+S1338","v":0},null,null,"Non ERC",{"$f":"+VLOOKUP(F1338,TT_Tabelle_Riferimento!$D$127:$E$164,2,FALSE)","v":"Acquedotto"},"",0]
[0,0,"Gestore",0,"IP",5,{"$f":"+VLOOKUP(F1339,TT_Tabelle_Riferimento!$D$127:$G$164,4,FALSE)","v":"Impianti di sollevamento e pompaggio di acquedotto"},3,{"$f":"+VLOOKUP(H1339,TT_Tabelle_Riferimento!$F$3:$G$6,2,FALSE)","v":"Altri servizi idrici"},2029,{"$f":"+SUMIFS('PdI-crono_inv'!BL:BL,'PdI-crono_inv'!CF:CF,F1339,'PdI-crono_inv'!CE:CE,H1339,'PdI-crono_inv'!J:J,P1339,'PdI-crono_inv'!P:P,\"<>proprietario\")","v":0},null,{"$f":"+SUMIFS('PdI-crono_inv'!BM:BM,'PdI-crono_inv'!CF:CF,F1339,'PdI-crono_inv'!CE:CE,H1339,'PdI-crono_inv'!J:J,P1339,'PdI-crono_inv'!P:P,\"<>proprietario\")+S1339","v":0},null,null,"Non ERC",{"$f":"+VLOOKUP(F1339,TT_Tabelle_Riferimento!$D$127:$E$164,2,FALSE)","v":"Acquedotto"},"",0]
[0,0,"Gestore",0,"IP",6,{"$f":"+VLOOKUP(F1340,TT_Tabelle_Riferimento!$D$127:$G$164,4,FALSE)","v":"Impianti di potabilizzazione"},3,{"$f":"+VLOOKUP(H1340,TT_Tabelle_Riferimento!$F$3:$G$6,2,FALSE)","v":"Altri servizi idrici"},2029,{"$f":"+SUMIFS('PdI-crono_inv'!BL:BL,'PdI-crono_inv'!CF:CF,F1340,'PdI-crono_inv'!CE:CE,H1340,'PdI-crono_inv'!J:J,P1340,'PdI-crono_inv'!P:P,\"<>proprietario\")","v":0},null,{"$f":"+SUMIFS('PdI-crono_inv'!BM:BM,'PdI-crono_inv'!CF:CF,F1340,'PdI-crono_inv'!CE:CE,H1340,'PdI-crono_inv'!J:J,P1340,'PdI-crono_inv'!P:P,\"<>proprietario\")+S1340","v":0},null,null,"Non ERC",{"$f":"+VLOOKUP(F1340,TT_Tabelle_Riferimento!$D$127:$E$164,2,FALSE)","v":"Acquedotto"},"",0]
[0,0,"Gestore",0,"IP",7,{"$f":"+VLOOKUP(F1341,TT_Tabelle_Riferimento!$D$127:$G$164,4,FALSE)","v":"Altri trattamenti di potabilizzazione (tra cui dispositivi di disinfezione, stacciatura, filtrazione, addolcimento)"},3,{"$f":"+VLOOKUP(H1341,TT_Tabelle_Riferimento!$F$3:$G$6,2,FALSE)","v":"Altri servizi idrici"},2029,{"$f":"+SUMIFS('PdI-crono_inv'!BL:BL,'PdI-crono_inv'!CF:CF,F1341,'PdI-crono_inv'!CE:CE,H1341,'PdI-crono_inv'!J:J,P1341,'PdI-crono_inv'!P:P,\"<>proprietario\")","v":0},null,{"$f":"+SUMIFS('PdI-crono_inv'!BM:BM,'PdI-crono_inv'!CF:CF,F1341,'PdI-crono_inv'!CE:CE,H1341,'PdI-crono_inv'!J:J,P1341,'PdI-crono_inv'!P:P,\"<>proprietario\")+S1341","v":0},null,null,"Non ERC",{"$f":"+VLOOKUP(F1341,TT_Tabelle_Riferimento!$D$127:$E$164,2,FALSE)","v":"Acquedotto"},"",0]
[0,0,"Gestore",0,"IP",8,{"$f":"+VLOOKUP(F1342,TT_Tabelle_Riferimento!$D$127:$G$164,4,FALSE)","v":"Gruppi di misura - altre attrezzature di acquedotto"},3,{"$f":"+VLOOKUP(H1342,TT_Tabelle_Riferimento!$F$3:$G$6,2,FALSE)","v":"Altri servizi idrici"},2029,{"$f":"+SUMIFS('PdI-crono_inv'!BL:BL,'PdI-crono_inv'!CF:CF,F1342,'PdI-crono_inv'!CE:CE,H1342,'PdI-crono_inv'!J:J,P1342,'PdI-crono_inv'!P:P,\"<>proprietario\")","v":0},null,{"$f":"+SUMIFS('PdI-crono_inv'!BM:BM,'PdI-crono_inv'!CF:CF,F1342,'PdI-crono_inv'!CE:CE,H1342,'PdI-crono_inv'!J:J,P1342,'PdI-crono_inv'!P:P,\"<>proprietario\")+S1342","v":0},null,null,"Non ERC",{"$f":"+VLOOKUP(F1342,TT_Tabelle_Riferimento!$D$127:$E$164,2,FALSE)","v":"Acquedotto"},"",0]
[0,0,"Gestore",0,"IP",9,{"$f":"+VLOOKUP(F1343,TT_Tabelle_Riferimento!$D$127:$G$164,4,FALSE)","v":"Sistemi informativi di acquedotto"},3,{"$f":"+VLOOKUP(H1343,TT_Tabelle_Riferimento!$F$3:$G$6,2,FALSE)","v":"Altri servizi idrici"},2029,{"$f":"+SUMIFS('PdI-crono_inv'!BL:BL,'PdI-crono_inv'!CF:CF,F1343,'PdI-crono_inv'!CE:CE,H1343,'PdI-crono_inv'!J:J,P1343,'PdI-crono_inv'!P:P,\"<>proprietario\")","v":0},null,{"$f":"+SUMIFS('PdI-crono_inv'!BM:BM,'PdI-crono_inv'!CF:CF,F1343,'PdI-crono_inv'!CE:CE,H1343,'PdI-crono_inv'!J:J,P1343,'PdI-crono_inv'!P:P,\"<>proprietario\")+S1343","v":0},null,null,"Non ERC",{"$f":"+VLOOKUP(F1343,TT_Tabelle_Riferimento!$D$127:$E$164,2,FALSE)","v":"Acquedotto"},"",0]
[0,0,"Gestore",0,"IP",10,{"$f":"+VLOOKUP(F1344,TT_Tabelle_Riferimento!$D$127:$G$164,4,FALSE)","v":"Telecontrollo e teletrasmissione di acquedotto"},3,{"$f":"+VLOOKUP(H1344,TT_Tabelle_Riferimento!$F$3:$G$6,2,FALSE)","v":"Altri servizi idrici"},2029,{"$f":"+SUMIFS('PdI-crono_inv'!BL:BL,'PdI-crono_inv'!CF:CF,F1344,'PdI-crono_inv'!CE:CE,H1344,'PdI-crono_inv'!J:J,P1344,'PdI-crono_inv'!P:P,\"<>proprietario\")","v":0},null,{"$f":"+SUMIFS('PdI-crono_inv'!BM:BM,'PdI-crono_inv'!CF:CF,F1344,'PdI-crono_inv'!CE:CE,H1344,'PdI-crono_inv'!J:J,P1344,'PdI-crono_inv'!P:P,\"<>proprietario\")+S1344","v":0},null,null,"Non ERC",{"$f":"+VLOOKUP(F1344,TT_Tabelle_Riferimento!$D$127:$E$164,2,FALSE)","v":"Acquedotto"},"",0]
[0,0,"Gestore",0,"IP",11,{"$f":"+VLOOKUP(F1345,TT_Tabelle_Riferimento!$D$127:$G$164,4,FALSE)","v":"Condotte fognarie"},3,{"$f":"+VLOOKUP(H1345,TT_Tabelle_Riferimento!$F$3:$G$6,2,FALSE)","v":"Altri servizi idrici"},2029,{"$f":"+SUMIFS('PdI-crono_inv'!BL:BL,'PdI-crono_inv'!CF:CF,F1345,'PdI-crono_inv'!CE:CE,H1345,'PdI-crono_inv'!J:J,P1345,'PdI-crono_inv'!P:P,\"<>proprietario\")","v":0},null,{"$f":"+SUMIFS('PdI-crono_inv'!BM:BM,'PdI-crono_inv'!CF:CF,F1345,'PdI-crono_inv'!CE:CE,H1345,'PdI-crono_inv'!J:J,P1345,'PdI-crono_inv'!P:P,\"<>proprietario\")+S1345","v":0},null,null,"Non ERC",{"$f":"+VLOOKUP(F1345,TT_Tabelle_Riferimento!$D$127:$E$164,2,FALSE)","v":"Fognatura"},"",0]
[0,0,"Gestore",0,"IP",12,{"$f":"+VLOOKUP(F1346,TT_Tabelle_Riferimento!$D$127:$G$164,4,FALSE)","v":"Sifoni e scaricatori di piena e altre opere idrauliche fisse di fognatura"},3,{"$f":"+VLOOKUP(H1346,TT_Tabelle_Riferimento!$F$3:$G$6,2,FALSE)","v":"Altri servizi idrici"},2029,{"$f":"+SUMIFS('PdI-crono_inv'!BL:BL,'PdI-crono_inv'!CF:CF,F1346,'PdI-crono_inv'!CE:CE,H1346,'PdI-crono_inv'!J:J,P1346,'PdI-crono_inv'!P:P,\"<>proprietario\")","v":0},null,{"$f":"+SUMIFS('PdI-crono_inv'!BM:BM,'PdI-crono_inv'!CF:CF,F1346,'PdI-crono_inv'!CE:CE,H1346,'PdI-crono_inv'!J:J,P1346,'PdI-crono_inv'!P:P,\"<>proprietario\")+S1346","v":0},null,null,"Non ERC",{"$f":"+VLOOKUP(F1346,TT_Tabelle_Riferimento!$D$127:$E$164,2,FALSE)","v":"Fognatura"},"",0]
[0,0,"Gestore",0,"IP",13,{"$f":"+VLOOKUP(F1347,TT_Tabelle_Riferimento!$D$127:$G$164,4,FALSE)","v":"Vasche di laminazione e vasche di prima pioggia"},3,{"$f":"+VLOOKUP(H1347,TT_Tabelle_Riferimento!$F$3:$G$6,2,FALSE)","v":"Altri servizi idrici"},2029,{"$f":"+SUMIFS('PdI-crono_inv'!BL:BL,'PdI-crono_inv'!CF:CF,F1347,'PdI-crono_inv'!CE:CE,H1347,'PdI-crono_inv'!J:J,P1347,'PdI-crono_inv'!P:P,\"<>proprietario\")","v":0},null,{"$f":"+SUMIFS('PdI-crono_inv'!BM:BM,'PdI-crono_inv'!CF:CF,F1347,'PdI-crono_inv'!CE:CE,H1347,'PdI-crono_inv'!J:J,P1347,'PdI-crono_inv'!P:P,\"<>proprietario\")+S1347","v":0},null,null,"Non ERC",{"$f":"+VLOOKUP(F1347,TT_Tabelle_Riferimento!$D$127:$E$164,2,FALSE)","v":"Fognatura"},"",0]
[0,0,"Gestore",0,"IP",14,{"$f":"+VLOOKUP(F1348,TT_Tabelle_Riferimento!$D$127:$G$164,4,FALSE)","v":"Impianti di sollevamento e pompaggio di fognatura"},3,{"$f":"+VLOOKUP(H1348,TT_Tabelle_Riferimento!$F$3:$G$6,2,FALSE)","v":"Altri servizi idrici"},2029,{"$f":"+SUMIFS('PdI-crono_inv'!BL:BL,'PdI-crono_inv'!CF:CF,F1348,'PdI-crono_inv'!CE:CE,H1348,'PdI-crono_inv'!J:J,P1348,'PdI-crono_inv'!P:P,\"<>proprietario\")","v":0},null,{"$f":"+SUMIFS('PdI-crono_inv'!BM:BM,'PdI-crono_inv'!CF:CF,F1348,'PdI-crono_inv'!CE:CE,H1348,'PdI-crono_inv'!J:J,P1348,'PdI-crono_inv'!P:P,\"<>proprietario\")+S1348","v":0},null,null,"Non ERC",{"$f":"+VLOOKUP(F1348,TT_Tabelle_Riferimento!$D$127:$E$164,2,FALSE)","v":"Fognatura"},"",0]
[0,0,"Gestore",0,"IP",15,{"$f":"+VLOOKUP(F1349,TT_Tabelle_Riferimento!$D$127:$G$164,4,FALSE)","v":"Gruppi di misura - altre attrezzature di fognatura"},3,{"$f":"+VLOOKUP(H1349,TT_Tabelle_Riferimento!$F$3:$G$6,2,FALSE)","v":"Altri servizi idrici"},2029,{"$f":"+SUMIFS('PdI-crono_inv'!BL:BL,'PdI-crono_inv'!CF:CF,F1349,'PdI-crono_inv'!CE:CE,H1349,'PdI-crono_inv'!J:J,P1349,'PdI-crono_inv'!P:P,\"<>proprietario\")","v":0},null,{"$f":"+SUMIFS('PdI-crono_inv'!BM:BM,'PdI-crono_inv'!CF:CF,F1349,'PdI-crono_inv'!CE:CE,H1349,'PdI-crono_inv'!J:J,P1349,'PdI-crono_inv'!P:P,\"<>proprietario\")+S1349","v":0},null,null,"Non ERC",{"$f":"+VLOOKUP(F1349,TT_Tabelle_Riferimento!$D$127:$E$164,2,FALSE)","v":"Fognatura"},"",0]
[0,0,"Gestore",0,"IP",16,{"$f":"+VLOOKUP(F1350,TT_Tabelle_Riferimento!$D$127:$G$164,4,FALSE)","v":"Sistemi informativi di fognatura"},3,{"$f":"+VLOOKUP(H1350,TT_Tabelle_Riferimento!$F$3:$G$6,2,FALSE)","v":"Altri servizi idrici"},2029,{"$f":"+SUMIFS('PdI-crono_inv'!BL:BL,'PdI-crono_inv'!CF:CF,F1350,'PdI-crono_inv'!CE:CE,H1350,'PdI-crono_inv'!J:J,P1350,'PdI-crono_inv'!P:P,\"<>proprietario\")","v":0},null,{"$f":"+SUMIFS('PdI-crono_inv'!BM:BM,'PdI-crono_inv'!CF:CF,F1350,'PdI-crono_inv'!CE:CE,H1350,'PdI-crono_inv'!J:J,P1350,'PdI-crono_inv'!P:P,\"<>proprietario\")+S1350","v":0},null,null,"Non ERC",{"$f":"+VLOOKUP(F1350,TT_Tabelle_Riferimento!$D$127:$E$164,2,FALSE)","v":"Fognatura"},"",0]
[0,0,"Gestore",0,"IP",18,{"$f":"+VLOOKUP(F1351,TT_Tabelle_Riferimento!$D$127:$G$164,4,FALSE)","v":"Telecontrollo e teletrasmissione di fognatura"},3,{"$f":"+VLOOKUP(H1351,TT_Tabelle_Riferimento!$F$3:$G$6,2,FALSE)","v":"Altri servizi idrici"},2029,{"$f":"+SUMIFS('PdI-crono_inv'!BL:BL,'PdI-crono_inv'!CF:CF,F1351,'PdI-crono_inv'!CE:CE,H1351,'PdI-crono_inv'!J:J,P1351,'PdI-crono_inv'!P:P,\"<>proprietario\")","v":0},null,{"$f":"+SUMIFS('PdI-crono_inv'!BM:BM,'PdI-crono_inv'!CF:CF,F1351,'PdI-crono_inv'!CE:CE,H1351,'PdI-crono_inv'!J:J,P1351,'PdI-crono_inv'!P:P,\"<>proprietario\")+S1351","v":0},null,null,"Non ERC",{"$f":"+VLOOKUP(F1351,TT_Tabelle_Riferimento!$D$127:$E$164,2,FALSE)","v":"Fognatura"},"",{"$f":"+IFERROR(HLOOKUP(J1351,$X$2:$Y$5,4,FALSE)*K1351,0)","v":0}]
[0,0,"Gestore",0,"IP",19,{"$f":"+VLOOKUP(F1352,TT_Tabelle_Riferimento!$D$127:$G$164,4,FALSE)","v":"Impianti di sollevamento e pompaggio di depurazione"},3,{"$f":"+VLOOKUP(H1352,TT_Tabelle_Riferimento!$F$3:$G$6,2,FALSE)","v":"Altri servizi idrici"},2029,{"$f":"+SUMIFS('PdI-crono_inv'!BL:BL,'PdI-crono_inv'!CF:CF,F1352,'PdI-crono_inv'!CE:CE,H1352,'PdI-crono_inv'!J:J,P1352,'PdI-crono_inv'!P:P,\"<>proprietario\")","v":0},null,{"$f":"+SUMIFS('PdI-crono_inv'!BM:BM,'PdI-crono_inv'!CF:CF,F1352,'PdI-crono_inv'!CE:CE,H1352,'PdI-crono_inv'!J:J,P1352,'PdI-crono_inv'!P:P,\"<>proprietario\")+S1352","v":0},null,null,"Non ERC",{"$f":"+VLOOKUP(F1352,TT_Tabelle_Riferimento!$D$127:$E$164,2,FALSE)","v":"Depurazione"},"",0]
[0,0,"Gestore",0,"IP",20,{"$f":"+VLOOKUP(F1353,TT_Tabelle_Riferimento!$D$127:$G$164,4,FALSE)","v":"Tecniche naturali di depurazione (tra cui fitodepurazione e lagunaggio)"},3,{"$f":"+VLOOKUP(H1353,TT_Tabelle_Riferimento!$F$3:$G$6,2,FALSE)","v":"Altri servizi idrici"},2029,{"$f":"+SUMIFS('PdI-crono_inv'!BL:BL,'PdI-crono_inv'!CF:CF,F1353,'PdI-crono_inv'!CE:CE,H1353,'PdI-crono_inv'!J:J,P1353,'PdI-crono_inv'!P:P,\"<>proprietario\")","v":0},null,{"$f":"+SUMIFS('PdI-crono_inv'!BM:BM,'PdI-crono_inv'!CF:CF,F1353,'PdI-crono_inv'!CE:CE,H1353,'PdI-crono_inv'!J:J,P1353,'PdI-crono_inv'!P:P,\"<>proprietario\")+S1353","v":0},null,null,"Non ERC",{"$f":"+VLOOKUP(F1353,TT_Tabelle_Riferimento!$D$127:$E$164,2,FALSE)","v":"Depurazione"},"",0]
[0,0,"Gestore",0,"IP",21,{"$f":"+VLOOKUP(F1354,TT_Tabelle_Riferimento!$D$127:$G$164,4,FALSE)","v":"Impianti di depurazione – trattamenti sino al preliminare, integrativo, primario - fosse settiche e fosse Imhoff"},3,{"$f":"+VLOOKUP(H1354,TT_Tabelle_Riferimento!$F$3:$G$6,2,FALSE)","v":"Altri servizi idrici"},2029,{"$f":"+SUMIFS('PdI-crono_inv'!BL:BL,'PdI-crono_inv'!CF:CF,F1354,'PdI-crono_inv'!CE:CE,H1354,'PdI-crono_inv'!J:J,P1354,'PdI-crono_inv'!P:P,\"<>proprietario\")","v":0},null,{"$f":"+SUMIFS('PdI-crono_inv'!BM:BM,'PdI-crono_inv'!CF:CF,F1354,'PdI-crono_inv'!CE:CE,H1354,'PdI-crono_inv'!J:J,P1354,'PdI-crono_inv'!P:P,\"<>proprietario\")+S1354","v":0},null,null,"Non ERC",{"$f":"+VLOOKUP(F1354,TT_Tabelle_Riferimento!$D$127:$E$164,2,FALSE)","v":"Depurazione"},"",0]
[0,0,"Gestore",0,"IP",22,{"$f":"+VLOOKUP(F1355,TT_Tabelle_Riferimento!$D$127:$G$164,4,FALSE)","v":"Impianti di depurazione – trattamenti sino al secondario"},3,{"$f":"+VLOOKUP(H1355,TT_Tabelle_Riferimento!$F$3:$G$6,2,FALSE)","v":"Altri servizi idrici"},2029,{"$f":"+SUMIFS('PdI-crono_inv'!BL:BL,'PdI-crono_inv'!CF:CF,F1355,'PdI-crono_inv'!CE:CE,H1355,'PdI-crono_inv'!J:J,P1355,'PdI-crono_inv'!P:P,\"<>proprietario\")","v":0},null,{"$f":"+SUMIFS('PdI-crono_inv'!BM:BM,'PdI-crono_inv'!CF:CF,F1355,'PdI-crono_inv'!CE:CE,H1355,'PdI-crono_inv'!J:J,P1355,'PdI-crono_inv'!P:P,\"<>proprietario\")+S1355","v":0},null,null,"Non ERC",{"$f":"+VLOOKUP(F1355,TT_Tabelle_Riferimento!$D$127:$E$164,2,FALSE)","v":"Depurazione"},"",0]
[0,0,"Gestore",0,"IP",23,{"$f":"+VLOOKUP(F1356,TT_Tabelle_Riferimento!$D$127:$G$164,4,FALSE)","v":"Impianti di depurazione – trattamenti sino al terziario e terziario avanzato"},3,{"$f":"+VLOOKUP(H1356,TT_Tabelle_Riferimento!$F$3:$G$6,2,FALSE)","v":"Altri servizi idrici"},2029,{"$f":"+SUMIFS('PdI-crono_inv'!BL:BL,'PdI-crono_inv'!CF:CF,F1356,'PdI-crono_inv'!CE:CE,H1356,'PdI-crono_inv'!J:J,P1356,'PdI-crono_inv'!P:P,\"<>proprietario\")","v":0},null,{"$f":"+SUMIFS('PdI-crono_inv'!BM:BM,'PdI-crono_inv'!CF:CF,F1356,'PdI-crono_inv'!CE:CE,H1356,'PdI-crono_inv'!J:J,P1356,'PdI-crono_inv'!P:P,\"<>proprietario\")+S1356","v":0},null,null,"Non ERC",{"$f":"+VLOOKUP(F1356,TT_Tabelle_Riferimento!$D$127:$E$164,2,FALSE)","v":"Depurazione"},"",0]
[0,0,"Gestore",0,"IP",24,{"$f":"+VLOOKUP(F1357,TT_Tabelle_Riferimento!$D$127:$G$164,4,FALSE)","v":"Impianti di essiccamento fanghi e di valorizzazione dei fanghi (tra cui mono-incenerimento, pirolisi, gassificazione)"},3,{"$f":"+VLOOKUP(H1357,TT_Tabelle_Riferimento!$F$3:$G$6,2,FALSE)","v":"Altri servizi idrici"},2029,{"$f":"+SUMIFS('PdI-crono_inv'!BL:BL,'PdI-crono_inv'!CF:CF,F1357,'PdI-crono_inv'!CE:CE,H1357,'PdI-crono_inv'!J:J,P1357,'PdI-crono_inv'!P:P,\"<>proprietario\")","v":0},null,{"$f":"+SUMIFS('PdI-crono_inv'!BM:BM,'PdI-crono_inv'!CF:CF,F1357,'PdI-crono_inv'!CE:CE,H1357,'PdI-crono_inv'!J:J,P1357,'PdI-crono_inv'!P:P,\"<>proprietario\")+S1357","v":0},null,null,"Non ERC",{"$f":"+VLOOKUP(F1357,TT_Tabelle_Riferimento!$D$127:$E$164,2,FALSE)","v":"Depurazione"},"",0]
[0,0,"Gestore",0,"IP",25,{"$f":"+VLOOKUP(F1358,TT_Tabelle_Riferimento!$D$127:$G$164,4,FALSE)","v":"Gruppi di misura - altre attrezzature di depurazione"},3,{"$f":"+VLOOKUP(H1358,TT_Tabelle_Riferimento!$F$3:$G$6,2,FALSE)","v":"Altri servizi idrici"},2029,{"$f":"+SUMIFS('PdI-crono_inv'!BL:BL,'PdI-crono_inv'!CF:CF,F1358,'PdI-crono_inv'!CE:CE,H1358,'PdI-crono_inv'!J:J,P1358,'PdI-crono_inv'!P:P,\"<>proprietario\")","v":0},null,{"$f":"+SUMIFS('PdI-crono_inv'!BM:BM,'PdI-crono_inv'!CF:CF,F1358,'PdI-crono_inv'!CE:CE,H1358,'PdI-crono_inv'!J:J,P1358,'PdI-crono_inv'!P:P,\"<>proprietario\")+S1358","v":0},null,null,"Non ERC",{"$f":"+VLOOKUP(F1358,TT_Tabelle_Riferimento!$D$127:$E$164,2,FALSE)","v":"Depurazione"},"",0]
[0,0,"Gestore",0,"IP",26,{"$f":"+VLOOKUP(F1359,TT_Tabelle_Riferimento!$D$127:$G$164,4,FALSE)","v":"Sistemi informativi di depurazione"},3,{"$f":"+VLOOKUP(H1359,TT_Tabelle_Riferimento!$F$3:$G$6,2,FALSE)","v":"Altri servizi idrici"},2029,{"$f":"+SUMIFS('PdI-crono_inv'!BL:BL,'PdI-crono_inv'!CF:CF,F1359,'PdI-crono_inv'!CE:CE,H1359,'PdI-crono_inv'!J:J,P1359,'PdI-crono_inv'!P:P,\"<>proprietario\")","v":0},null,{"$f":"+SUMIFS('PdI-crono_inv'!BM:BM,'PdI-crono_inv'!CF:CF,F1359,'PdI-crono_inv'!CE:CE,H1359,'PdI-crono_inv'!J:J,P1359,'PdI-crono_inv'!P:P,\"<>proprietario\")+S1359","v":0},null,null,"Non ERC",{"$f":"+VLOOKUP(F1359,TT_Tabelle_Riferimento!$D$127:$E$164,2,FALSE)","v":"Depurazione"},"",0]
[0,0,"Gestore",0,"IP",27,{"$f":"+VLOOKUP(F1360,TT_Tabelle_Riferimento!$D$127:$G$164,4,FALSE)","v":"Telecontrollo e teletrasmissione di depurazione"},3,{"$f":"+VLOOKUP(H1360,TT_Tabelle_Riferimento!$F$3:$G$6,2,FALSE)","v":"Altri servizi idrici"},2029,{"$f":"+SUMIFS('PdI-crono_inv'!BL:BL,'PdI-crono_inv'!CF:CF,F1360,'PdI-crono_inv'!CE:CE,H1360,'PdI-crono_inv'!J:J,P1360,'PdI-crono_inv'!P:P,\"<>proprietario\")","v":0},null,{"$f":"+SUMIFS('PdI-crono_inv'!BM:BM,'PdI-crono_inv'!CF:CF,F1360,'PdI-crono_inv'!CE:CE,H1360,'PdI-crono_inv'!J:J,P1360,'PdI-crono_inv'!P:P,\"<>proprietario\")+S1360","v":0},null,null,"Non ERC",{"$f":"+VLOOKUP(F1360,TT_Tabelle_Riferimento!$D$127:$E$164,2,FALSE)","v":"Depurazione"},"",0]
[0,0,"Gestore",0,"IP",28,{"$f":"+VLOOKUP(F1361,TT_Tabelle_Riferimento!$D$127:$G$164,4,FALSE)","v":"Altri impianti"},3,{"$f":"+VLOOKUP(H1361,TT_Tabelle_Riferimento!$F$3:$G$6,2,FALSE)","v":"Altri servizi idrici"},2029,{"$f":"+SUMIFS('PdI-crono_inv'!BL:BL,'PdI-crono_inv'!CF:CF,F1361,'PdI-crono_inv'!CE:CE,H1361,'PdI-crono_inv'!J:J,P1361,'PdI-crono_inv'!P:P,\"<>proprietario\")","v":0},null,{"$f":"+SUMIFS('PdI-crono_inv'!BM:BM,'PdI-crono_inv'!CF:CF,F1361,'PdI-crono_inv'!CE:CE,H1361,'PdI-crono_inv'!J:J,P1361,'PdI-crono_inv'!P:P,\"<>proprietario\")+S1361","v":0},null,null,"Non ERC",{"$f":"+VLOOKUP(F1361,TT_Tabelle_Riferimento!$D$127:$E$164,2,FALSE)","v":"Comune"},"",0]
[0,0,"Gestore",0,"IP",29,{"$f":"+VLOOKUP(F1362,TT_Tabelle_Riferimento!$D$127:$G$164,4,FALSE)","v":"Laboratori e attrezzature"},3,{"$f":"+VLOOKUP(H1362,TT_Tabelle_Riferimento!$F$3:$G$6,2,FALSE)","v":"Altri servizi idrici"},2029,{"$f":"+SUMIFS('PdI-crono_inv'!BL:BL,'PdI-crono_inv'!CF:CF,F1362,'PdI-crono_inv'!CE:CE,H1362,'PdI-crono_inv'!J:J,P1362,'PdI-crono_inv'!P:P,\"<>proprietario\")","v":0},null,{"$f":"+SUMIFS('PdI-crono_inv'!BM:BM,'PdI-crono_inv'!CF:CF,F1362,'PdI-crono_inv'!CE:CE,H1362,'PdI-crono_inv'!J:J,P1362,'PdI-crono_inv'!P:P,\"<>proprietario\")+S1362","v":0},null,null,"Non ERC",{"$f":"+VLOOKUP(F1362,TT_Tabelle_Riferimento!$D$127:$E$164,2,FALSE)","v":"Comune"},"",0]
[0,0,"Gestore",0,"IP",30,{"$f":"+VLOOKUP(F1363,TT_Tabelle_Riferimento!$D$127:$G$164,4,FALSE)","v":"Sistemi informativi"},3,{"$f":"+VLOOKUP(H1363,TT_Tabelle_Riferimento!$F$3:$G$6,2,FALSE)","v":"Altri servizi idrici"},2029,{"$f":"+SUMIFS('PdI-crono_inv'!BL:BL,'PdI-crono_inv'!CF:CF,F1363,'PdI-crono_inv'!CE:CE,H1363,'PdI-crono_inv'!J:J,P1363,'PdI-crono_inv'!P:P,\"<>proprietario\")","v":0},null,{"$f":"+SUMIFS('PdI-crono_inv'!BM:BM,'PdI-crono_inv'!CF:CF,F1363,'PdI-crono_inv'!CE:CE,H1363,'PdI-crono_inv'!J:J,P1363,'PdI-crono_inv'!P:P,\"<>proprietario\")+S1363","v":0},null,null,"Non ERC",{"$f":"+VLOOKUP(F1363,TT_Tabelle_Riferimento!$D$127:$E$164,2,FALSE)","v":"Comune"},"",0]
[0,0,"Gestore",0,"IP",31,{"$f":"+VLOOKUP(F1364,TT_Tabelle_Riferimento!$D$127:$G$164,4,FALSE)","v":"Telecontrollo e teletrasmissione"},3,{"$f":"+VLOOKUP(H1364,TT_Tabelle_Riferimento!$F$3:$G$6,2,FALSE)","v":"Altri servizi idrici"},2029,{"$f":"+SUMIFS('PdI-crono_inv'!BL:BL,'PdI-crono_inv'!CF:CF,F1364,'PdI-crono_inv'!CE:CE,H1364,'PdI-crono_inv'!J:J,P1364,'PdI-crono_inv'!P:P,\"<>proprietario\")","v":0},null,{"$f":"+SUMIFS('PdI-crono_inv'!BM:BM,'PdI-crono_inv'!CF:CF,F1364,'PdI-crono_inv'!CE:CE,H1364,'PdI-crono_inv'!J:J,P1364,'PdI-crono_inv'!P:P,\"<>proprietario\")+S1364","v":0},null,null,"Non ERC",{"$f":"+VLOOKUP(F1364,TT_Tabelle_Riferimento!$D$127:$E$164,2,FALSE)","v":"Comune"},"",0]
[0,0,"Gestore",0,"IP",32,{"$f":"+VLOOKUP(F1365,TT_Tabelle_Riferimento!$D$127:$G$164,4,FALSE)","v":"Autoveicoli - automezzi"},3,{"$f":"+VLOOKUP(H1365,TT_Tabelle_Riferimento!$F$3:$G$6,2,FALSE)","v":"Altri servizi idrici"},2029,{"$f":"+SUMIFS('PdI-crono_inv'!BL:BL,'PdI-crono_inv'!CF:CF,F1365,'PdI-crono_inv'!CE:CE,H1365,'PdI-crono_inv'!J:J,P1365,'PdI-crono_inv'!P:P,\"<>proprietario\")","v":0},null,{"$f":"+SUMIFS('PdI-crono_inv'!BM:BM,'PdI-crono_inv'!CF:CF,F1365,'PdI-crono_inv'!CE:CE,H1365,'PdI-crono_inv'!J:J,P1365,'PdI-crono_inv'!P:P,\"<>proprietario\")+S1365","v":0},null,null,"Non ERC",{"$f":"+VLOOKUP(F1365,TT_Tabelle_Riferimento!$D$127:$E$164,2,FALSE)","v":"Comune"},"",0]
[0,0,"Gestore",0,"IP",1,{"$f":"+VLOOKUP(F1366,TT_Tabelle_Riferimento!$D$127:$G$164,4,FALSE)","v":"Terreni"},3,{"$f":"+VLOOKUP(H1366,TT_Tabelle_Riferimento!$F$3:$G$6,2,FALSE)","v":"Altri servizi idrici"},2029,{"$f":"+SUMIFS('PdI-crono_inv'!BL:BL,'PdI-crono_inv'!CF:CF,F1366,'PdI-crono_inv'!CE:CE,H1366,'PdI-crono_inv'!J:J,P1366,'PdI-crono_inv'!P:P,\"<>proprietario\")","v":0},null,{"$f":"+SUMIFS('PdI-crono_inv'!BM:BM,'PdI-crono_inv'!CF:CF,F1366,'PdI-crono_inv'!CE:CE,H1366,'PdI-crono_inv'!J:J,P1366,'PdI-crono_inv'!P:P,\"<>proprietario\")+S1366","v":0},null,null,"Non ERC",{"$f":"+VLOOKUP(F1366,TT_Tabelle_Riferimento!$D$127:$E$164,2,FALSE)","v":"Comune"},"",0]
[0,0,"Gestore",0,"IP",33,{"$f":"+VLOOKUP(F1367,TT_Tabelle_Riferimento!$D$127:$G$164,4,FALSE)","v":"Fabbricati non industriali"},3,{"$f":"+VLOOKUP(H1367,TT_Tabelle_Riferimento!$F$3:$G$6,2,FALSE)","v":"Altri servizi idrici"},2029,{"$f":"+SUMIFS('PdI-crono_inv'!BL:BL,'PdI-crono_inv'!CF:CF,F1367,'PdI-crono_inv'!CE:CE,H1367,'PdI-crono_inv'!J:J,P1367,'PdI-crono_inv'!P:P,\"<>proprietario\")","v":0},null,{"$f":"+SUMIFS('PdI-crono_inv'!BM:BM,'PdI-crono_inv'!CF:CF,F1367,'PdI-crono_inv'!CE:CE,H1367,'PdI-crono_inv'!J:J,P1367,'PdI-crono_inv'!P:P,\"<>proprietario\")+S1367","v":0},null,null,"Non ERC",{"$f":"+VLOOKUP(F1367,TT_Tabelle_Riferimento!$D$127:$E$164,2,FALSE)","v":"Comune"},"",0]
[0,0,"Gestore",0,"IP",34,{"$f":"+VLOOKUP(F1368,TT_Tabelle_Riferimento!$D$127:$G$164,4,FALSE)","v":"Fabbricati industriali"},3,{"$f":"+VLOOKUP(H1368,TT_Tabelle_Riferimento!$F$3:$G$6,2,FALSE)","v":"Altri servizi idrici"},2029,{"$f":"+SUMIFS('PdI-crono_inv'!BL:BL,'PdI-crono_inv'!CF:CF,F1368,'PdI-crono_inv'!CE:CE,H1368,'PdI-crono_inv'!J:J,P1368,'PdI-crono_inv'!P:P,\"<>proprietario\")","v":0},null,{"$f":"+SUMIFS('PdI-crono_inv'!BM:BM,'PdI-crono_inv'!CF:CF,F1368,'PdI-crono_inv'!CE:CE,H1368,'PdI-crono_inv'!J:J,P1368,'PdI-crono_inv'!P:P,\"<>proprietario\")+S1368","v":0},null,null,"Non ERC",{"$f":"+VLOOKUP(F1368,TT_Tabelle_Riferimento!$D$127:$E$164,2,FALSE)","v":"Comune"},"",0]
[0,0,"Gestore",0,"IP",35,{"$f":"+VLOOKUP(F1369,TT_Tabelle_Riferimento!$D$127:$G$164,4,FALSE)","v":"Costruzioni leggere"},3,{"$f":"+VLOOKUP(H1369,TT_Tabelle_Riferimento!$F$3:$G$6,2,FALSE)","v":"Altri servizi idrici"},2029,{"$f":"+SUMIFS('PdI-crono_inv'!BL:BL,'PdI-crono_inv'!CF:CF,F1369,'PdI-crono_inv'!CE:CE,H1369,'PdI-crono_inv'!J:J,P1369,'PdI-crono_inv'!P:P,\"<>proprietario\")","v":0},null,{"$f":"+SUMIFS('PdI-crono_inv'!BM:BM,'PdI-crono_inv'!CF:CF,F1369,'PdI-crono_inv'!CE:CE,H1369,'PdI-crono_inv'!J:J,P1369,'PdI-crono_inv'!P:P,\"<>proprietario\")+S1369","v":0},null,null,"Non ERC",{"$f":"+VLOOKUP(F1369,TT_Tabelle_Riferimento!$D$127:$E$164,2,FALSE)","v":"Comune"},"",0]
[0,0,"Gestore",0,"IP",36,{"$f":"+VLOOKUP(F1370,TT_Tabelle_Riferimento!$D$127:$G$164,4,FALSE)","v":"Studi, ricerche, brevetti, diritti di utilizzazione"},3,{"$f":"+VLOOKUP(H1370,TT_Tabelle_Riferimento!$F$3:$G$6,2,FALSE)","v":"Altri servizi idrici"},2029,{"$f":"+SUMIFS('PdI-crono_inv'!BL:BL,'PdI-crono_inv'!CF:CF,F1370,'PdI-crono_inv'!CE:CE,H1370,'PdI-crono_inv'!J:J,P1370,'PdI-crono_inv'!P:P,\"<>proprietario\")","v":0},null,{"$f":"+SUMIFS('PdI-crono_inv'!BM:BM,'PdI-crono_inv'!CF:CF,F1370,'PdI-crono_inv'!CE:CE,H1370,'PdI-crono_inv'!J:J,P1370,'PdI-crono_inv'!P:P,\"<>proprietario\")+S1370","v":0},null,null,"Non ERC",{"$f":"+VLOOKUP(F1370,TT_Tabelle_Riferimento!$D$127:$E$164,2,FALSE)","v":"Comune"},"",0]
[0,0,"Gestore",0,"IP",37,{"$f":"+VLOOKUP(F1371,TT_Tabelle_Riferimento!$D$127:$G$164,4,FALSE)","v":"Altre immobilizzazioni materiali e immateriali"},3,{"$f":"+VLOOKUP(H1371,TT_Tabelle_Riferimento!$F$3:$G$6,2,FALSE)","v":"Altri servizi idrici"},2029,{"$f":"+SUMIFS('PdI-crono_inv'!BL:BL,'PdI-crono_inv'!CF:CF,F1371,'PdI-crono_inv'!CE:CE,H1371,'PdI-crono_inv'!J:J,P1371,'PdI-crono_inv'!P:P,\"<>proprietario\")","v":0},null,{"$f":"+SUMIFS('PdI-crono_inv'!BM:BM,'PdI-crono_inv'!CF:CF,F1371,'PdI-crono_inv'!CE:CE,H1371,'PdI-crono_inv'!J:J,P1371,'PdI-crono_inv'!P:P,\"<>proprietario\")+S1371","v":0},null,null,"Non ERC",{"$f":"+VLOOKUP(F1371,TT_Tabelle_Riferimento!$D$127:$E$164,2,FALSE)","v":"Comune"},"",0]
[0,0,"Gestore",0,"IP",38,{"$f":"+VLOOKUP(F1372,TT_Tabelle_Riferimento!$D$127:$G$164,4,FALSE)","v":"Grandi dighe (sbarramenti che superano i quindici metri di altezza o che determinano un invaso superiore a 1 milione di metri cubi)"},3,{"$f":"+VLOOKUP(H1372,TT_Tabelle_Riferimento!$F$3:$G$6,2,FALSE)","v":"Altri servizi idrici"},2029,{"$f":"+SUMIFS('PdI-crono_inv'!BL:BL,'PdI-crono_inv'!CF:CF,F1372,'PdI-crono_inv'!CE:CE,H1372,'PdI-crono_inv'!J:J,P1372,'PdI-crono_inv'!P:P,\"<>proprietario\")","v":0},null,{"$f":"+SUMIFS('PdI-crono_inv'!BM:BM,'PdI-crono_inv'!CF:CF,F1372,'PdI-crono_inv'!CE:CE,H1372,'PdI-crono_inv'!J:J,P1372,'PdI-crono_inv'!P:P,\"<>proprietario\")+S1372","v":0},null,null,"Non ERC",{"$f":"+VLOOKUP(F1372,TT_Tabelle_Riferimento!$D$127:$E$164,2,FALSE)","v":"Acquedotto"},"",0]
[0,0,"Gestore",0,"IP",39,{"$f":"+VLOOKUP(F1373,TT_Tabelle_Riferimento!$D$127:$G$164,4,FALSE)","v":"Piccole dighe (sbarramenti che non superano i quindici metri di altezza o che determinano un invaso non superiore a 1 milione di metri cubi)"},3,{"$f":"+VLOOKUP(H1373,TT_Tabelle_Riferimento!$F$3:$G$6,2,FALSE)","v":"Altri servizi idrici"},2029,{"$f":"+SUMIFS('PdI-crono_inv'!BL:BL,'PdI-crono_inv'!CF:CF,F1373,'PdI-crono_inv'!CE:CE,H1373,'PdI-crono_inv'!J:J,P1373,'PdI-crono_inv'!P:P,\"<>proprietario\")","v":0},null,{"$f":"+SUMIFS('PdI-crono_inv'!BM:BM,'PdI-crono_inv'!CF:CF,F1373,'PdI-crono_inv'!CE:CE,H1373,'PdI-crono_inv'!J:J,P1373,'PdI-crono_inv'!P:P,\"<>proprietario\")+S1373","v":0},null,null,"Non ERC",{"$f":"+VLOOKUP(F1373,TT_Tabelle_Riferimento!$D$127:$E$164,2,FALSE)","v":"Acquedotto"},"",0]

{"sheet":"QT-Acquedotto","index":55,"n_rows":159,"n_cols":12,"rows_kept":159,"cut":false,"hidden":true,"merged":[[28,7,29,7],[28,8,29,8],[34,7,37,7],[34,8,37,8],[42,7,43,7],[42,8,43,8],[56,7,57,7],[56,8,57,8],[67,7,68,7],[67,8,68,8],[69,7,70,7],[69,8,70,8],[134,7,135,7],[134,8,135,8],[139,7,142,7],[139,8,142,8],[80,7,81,7],[80,8,81,8],[84,7,85,7],[84,8,85,8],[104,7,105,7],[104,8,105,8]]}
[null,"Dati per l'applicazione dei meccanismi di \nincentivazione RQTI (premi e penalità)\nTutti i valori imputati sono intesi essere valori \nconsuntivi ",null,null,null,null,null,null,null,null,null,"Errori compilazione colonna \"Valore Anno 2025\""]
["Notazione dato ","Descrizione dato","UdM",null,"Valore Anno 2025","Note compilazione",null,null,"Errore rilevato in colonna \"Valore Anno 2025\"",null,null,{"$f":"SUM(L3:L150)","v":0}]
["ACQ","Il gestore gestisce il servizio di acquedotto?\nSe sì, specificare:","-",null,null,"Al fine del calcolo dei macro-indicatori è necessario indicare se il servizio è gestito",null,null,null,null,null,{"$f":"IF(I3=\"\",0,1)","v":0}]
["ACQ_c","- captazione","-",null,null,null,null,null,null,null,null,0]
["ACQ_a","- adduzione","-",null,null,null,null,null,null,null,null,0]
["ACQ_p","-  potabilizzazione","-",null,null,null,null,null,null,null,null,0]
["ACQ_d","- distribuzione","-",null,null,"Al fine del calcolo dei macro-indicatori è necessario indicare se il servizio è gestito",null,null,null,null,null,0]
["PRA","Popolazione residente servita (PRA)","ab.",null,null,null,null,null,{"$f":"IF(E$7=\"X\",IF(E8<=0,\"Il valore deve essere maggiore di zero\",\"\"),IF(E8<>0,\"Non risulta gestita la distribuzione\",\"\"))","v":""},null,null,0]
["PFA","Popolazione fluttuante (PFA)","ab.",null,null,null,null,null,{"$f":"IF(E9<0,\"Il valore deve essere maggiore o uguale a zero\",\"\")","v":""},null,null,0]
["ComA","Numero di comuni serviti (ComA)","n. ",null,null,null,null,null,{"$f":"IF(E$7=\"X\",IF(E10<=0,\"Il valore deve essere maggiore di zero\",\"\"),IF(E10<>0,\"Non risulta gestita la distribuzione\",\"\"))","v":""},null,null,0]
["SUA","Superficie  (SUA)","kmq",null,null,null,null,null,{"$f":"IF(E$7=\"X\",IF(E11<=0,\"Il valore deve essere maggiore di zero\",\"\"),IF(E11<>0,\"Non risulta gestita la distribuzione\",\"\"))","v":""},null,null,0]
["EEACQ","Consumo di energia elettrica per servizio di acquedotto, al netto dell'energia autoprodotta","kWh",null,null,"Il dato include la quota parte relativa ai servizi comuni",null,null,{"$f":"IF(E12<0,\"Il valore deve essere maggiore o uguale a zero\",\"\")","v":""},null,null,0]
["EEAAI","Consumo di energia elettrica per Altre Attività Idriche (definizione rilevante ai sensi dell'unbundling)","kWh",null,null,"A parità di perimetro la somma dei dati relativi ad Acquedotto, Fognatura, Depurazione ed Altre Attività Idriche (come definite dal TIUC) deve essere coerente con la corrispondente grandezza richiesta a fini tariffari",null,null,{"$f":"IF(E13<0,\"Il valore deve essere maggiore o uguale a zero\",\"\")","v":""},null,null,0]
[null,null,null,null,null,null,null,null,null,null,null,0]
["Valutazione prerequisiti e indicazione istanze presentate per M1",null,null,null,null,null,null,null,null,null,null,0]
["WPtot","Somma dei volumi di processo totali (presi ognuno in valore assoluto)","mc",null,null,"Nei volumi di processo sono compresi i volumi scambiati con sistemi di acquedotto gestiti da altri gestori",null,null,{"$f":"IF(E$3=\"SI\",IF(E16<=0,\"Il valore deve essere maggiore di zero\",\"\"),IF(E16<>0,\"Non risulta gestito il servizio di acquedotto\",\"\"))","v":""},null,null,0]
["WPm","Somma dei volumi di processo misurati","mc",null,null,null,null,null,{"$f":"IF(OR(E17<0,E17>E16),\"Il valore deve essere maggiore o uguale a zero e minore o uguale a WPtot\",\"\")","v":""},null,null,0]
["WP","Quota volumi di processo misurati","%",null,{"$f":"IF(AND(E16>0,E17>=0,E17<=E16),E17/E16,\"\")","v":""},"Vedere RQTI al comma 20.2 ",null,null,{"$f":"IF(AND(E$3=\"SI\",E18=\"\"),\"Indicatore non calcolabile\",\"\")","v":""},null,null,0]
["WUtot","Somma dei volumi di utenza totali","mc",null,null,"Volumi riferiti agli utenti finali, sono esclusi i volumi ceduti a reti di acquedotto gestite da altri gestori. \nN.B. Deve essere verificata la seguente equivalenza: WPtot + WUtot = ∑WIN + ∑WOUT",null,null,{"$f":"IF(AND(E$3=\"SI\",E19<0),\"Il valore deve essere maggiore o uguale a zero\",\"\")","v":""},null,null,0]
["WUm","Somma dei volumi di utenza misurati","mc",null,null,null,null,null,{"$f":"IF(OR(E20<0,E20>E19),\"Il valore deve essere maggiore o uguale a zero e minore o uguale a WUtot\",\"\")","v":""},null,null,0]
["WU","Quota volumi di utenza misurati","%",null,{"$f":"IF(AND(E19>0,E20>=0,E20<=E19),E20/E19,\"\")","v":""},"Vedere RQTI al comma 20.2 ",null,null,{"$f":"IF(AND(E$3=\"SI\",E21=\"\"),\"Indicatore non calcolabile\",\"\")","v":""},null,null,0]
["Preq1","Indicare se il prerequisito sulla disponibilità e affidabilità dei dati di misura è stato conseguito (prerequisito Preq1)","-",null,{"$f":"IF(AND(E3=\"SI\",E18=\"\",E21=\"\"),\"\",IF(AND(E3=\"SI\",E18>=0.7,E21=\"\"),\"SI\",IF(E3=\"SI\",IF(OR(E18<0.7,E21<0.9),\"NO\",\"SI\"),\"\")))","v":""},"Vedere RQTI, Art.20",null,null,{"$f":"IF(AND(E$3=\"SI\",OR(E22=\"NO\",E22=\"\")),\"Attenzione, prerequisito mancante\",\"\")","v":""},null,null,0]
["Preq4M1","Indicare l'esito della validazione ai fini della valutazione della disponibilità e affidabilità dei dati per M1 (prerequisito Preq4) ","-",null,null,"Indicare la presenza o meno del prerequisito Preq4 (Art.23 RQTI) ",null,null,{"$f":"IF(AND(E$3=\"SI\",OR(E23=\"Non adeguato\",E23=\"\")),\"Attenzione, prerequisito mancante\",\"\")","v":""},null,null,0]
["Ist_M1geo","Indicare se è stata formulata istanza ai sensi del comma 7.3 della RQTI","-",null,null,"Istanza ai sensi del comma 7.3 della RQTI, ammissibile solo se verificate tutte le condizioni richieste.  ",null,null,{"$f":"IF(E24=\"SI\",\"Prestare attenzione alla confrontabilità con il macro-indicatore dell'anno base\",\"\")","v":""},null,null,0]
["IstD,M1","Indicare se è stata formulata istanza per eventi imprevisti e imprevedibili che hanno comportato il mancato rispetto degli obiettivi per M1","-",null,null,"Istanza ex-post ai sensi del comma 5.4, del. 917/2017. Specificare motivazioni in relazione ",null,null,null,null,null,0]
[null,null,null,null,null,null,null,null,null,null,null,0]
["Calcolo del macro-indicatore M1",null,null,null,null,null,null,null,null,null,null,0]
["∑WIN","Somma dei volumi in ingresso nel sistema di acquedotto ","mc",null,null,"Si considerano sia i volumi prelevati dall'ambiente che quelli importati da sistemi di acquedotto/captazione gestiti da altri gestori",null,null,{"$f":"IF(E3=\"SI\",IF(OR(E28<=0,E28=\"\"),\"Il valore deve essere maggiore di zero\",\"\"),IF(E28<>0,\"Non risulta gestito il servizio di acquedotto\",\"\"))","v":""},null,null,0]
["Wimp","di cui volume di acqua importata da altri soggetti","mc",null,null,"Volume di acqua (potabile o non potabile) prelevato da sistemi di acquedotto/captazione gestiti da altri gestori e immesso nella rete di adduzione e/o di distribuzione",null,null,{"$f":"IF(AND(E3=\"SI\",OR(E29<0,E30<0,E29+E30<>E28)),\"Ogni di cui deve essere maggiore o uguale a zero e la somma deve essere pari a ∑WIN\",\"\")","v":""},null,null,0]
["WAM","di cui volume di acqua prelevato dall'ambiente","mc",null,null,"Non devono essere considerati i volumi importati da altri soggetti",null,null,null,null,null,0]
["∑WOUT","Somma dei volumi in uscita dal sistema di acquedotto ","mc",null,null,"Laddove il dato sia comprensivo delle perdite di trattamento misurate è obbligatorio compilare la riga successiva. \nNon è la somma dei \"di cui\" sottostanti.\nN.B. Deve essere verificata la seguente equivalenza: WPtot + WUtot = ∑WIN + ∑WOUT",null,null,{"$f":"IF(E3=\"SI\",IF(OR(E31<=0,E31>=E28),\"Il valore deve essere maggiore di zero e inferiore a ∑W_IN\",\"\"),IF(E31<>0,\"Non risulta gestito il servizio di acquedotto\",\"\"))","v":""},null,null,0]
["WLT1","di cui perdite trattamento misurate (se incluse in ∑WOUT)","mc",null,null,"E' facoltà del gestore includere le perdite di trattamento misurate in ∑WOUT , non si considera (in questa sede) come trattata l'acqua sottoposta alla sola disinfezione",null,null,{"$f":"IF(OR(E32<0,E32>E31),\"Il valore deve essere maggiore o uguale a zero e inferiore o uguale a ∑W_OUT\",\"\")","v":""},null,null,0]
["Wesp","di cui volume di acqua esportata in adduzione e/o in distribuzione","mc",null,null,"Volume di acqua (potabile o non potabile) prelevato dalla rete di adduzione e/o di distribuzione e ceduto a sistemi di acquedotto gestiti da altri gestori ",null,null,{"$f":"IF(OR(E33<0,E33>E31),\"Il valore deve essere maggiore o uguale a zero e inferiore o uguale a ∑W_OUT\",\"\")","v":""},null,null,0]
["WLTOT","Volume perso complessivamente nell’anno  nelle fasi del servizio di acquedotto gestite","mc",null,{"$f":"IF((E28-E31)>=0,E28-E31,\"\")","v":0},null,null,null,null,null,null,0]
["WLA1","     di cui perdite di acqua non potabile in adduzione","mc",null,null,null,null,null,{"$f":"IF(OR(E35<0,E36<0,E37<0,E38<0,E35+E36+E37+E38<>E34),\"Ogni di cui deve essere maggiore o uguale a zero e la somma deve essere pari a WL_TOT\",\"\")","v":""},null,null,0]
["WLT2","     di cui perdite trattamento (se non incluse in ∑WOUT)","mc",null,null,"Non si considera (in questa sede) come trattata l'acqua sottoposta alla sola disinfezione",null,null,null,null,null,0]
["WLA2","     di cui perdite di acqua potabile in adduzione","mc",null,null,"Si considera (in questa sede) come potabile anche l'acqua che necessita di trattamenti di sola disinfezione",null,null,null,null,null,0]
["WLD","     di cui perdite idriche totali in distribuzione","mc",null,null,null,null,null,null,null,null,0]
["WD5","Acqua potabile immessa nel sistema di distribuzione (esclusa acqua esportata)","mc",null,null,"Dato da compilare (insieme ai \"di cui\") se è gestito il servizio di distribuzione ",null,null,{"$f":"IF(E7=\"X\",IF(OR(E39<=0,E39>E28),\"Il valore deve essere maggiore di zero e minore o uguale a ∑W_IN\",\"\"),IF(E39<>0,\"Non risulta gestita la distribuzione\",\"\"))","v":""},null,null,0]
["RW","di cui consumo fatturato (distribuzione)","mc",null,null,"Consumi autorizzati fatturati (misurati e non misurati), dato utilizzato anche per il calcolo di G3.1",null,null,{"$f":"IF(E7=\"X\",IF(OR(E40<=0,E40>=E39),\"Il valore deve essere maggiore di zero e minore di WD5\",\"\"),IF(E40<>0,\"Non risulta gestita la distribuzione\",\"\"))","v":""},null,null,0]
["NRW","di cui consumo non fatturato (distribuzione)","mc",null,{"$f":"E39-E40","v":0},"Consumi autorizzati non fatturati e perdite idriche totali in distribuzione (WLD)",null,null,{"$f":"IF(E41<E38,\"Il valore deve essere maggiore o uguale a WLD\",\"\")","v":""},null,null,0]
["Lp","Lunghezza totale delle condotte di adduzione e distribuzione, escluse le derivazioni d’utenza","km",null,null,null,null,null,{"$f":"IF(E3=\"SI\",IF(OR(E42<=0,E42=\"\"),\"Il valore deve essere maggiore di zero\",\"\"),IF(E42<>0,\"Non risulta gestito il servizio di acquedotto\",\"\"))","v":""},null,null,0]
["La","     di cui lunghezza rete principale di adduzione (La)","km",null,null,null,null,null,{"$f":"IF(AND(E3=\"SI\",OR(E43<0,E44<0,E44+E43<>E42)),\"Ogni di cui deve essere maggiore o uguale a zero e la somma deve essere pari a Lp\",\"\")","v":""},null,null,0]
["Ld","     di cui lunghezza rete principale di distribuzione (Ld)","km",null,null,null,null,null,null,null,null,0]
["M1a","Perdite idriche lineari","mc/km/gg",null,{"$f":"IF(AND(E42>0,E34>0,E24<>\"SI\"),E34/(365*(E42+0.22*E44)),IF(AND(E42>0,E34>0,E24=\"SI\",'QT-Altri dati'!E67>0),E34/(365*(E42+'QT-Altri dati'!E67)),\"\"))","v":""},"Vedere RQTI al comma 7.2, come modificato dall'art. 10 della delibera 639/2021/R/idr e comma 7.3",null,null,{"$f":"IF(AND(E$3=\"SI\",E45=\"\"),\"Indicatore non calcolabile\",\"\")","v":""},null,null,0]
["M1b","Perdite idriche percentuali","%",null,{"$f":"IF(AND(E28>0,E34>0,E34<=E28),E34/E28,\"\")","v":""},"Vedere RQTI al comma 7.2 ",null,null,{"$f":"IF(AND(E$3=\"SI\",E46=\"\"),\"Indicatore non calcolabile\",\"\")","v":""},null,null,0]
["M1CL","Perdite idriche - Classe di appartenenza","-",null,{"$f":"IF(OR(E45=\"\",E46=\"\"),\"\",IF(AND(E45<12,E46<0.2),\"A\",IF(AND(E45<20,E46<0.35),\"B\",IF(AND(E45<35,E46<0.45),\"C\",IF(AND(E45<55,E46<0.55),\"D\",\"E\")))))","v":""},"Vedere RQTI al comma 6.3, come modificato dall'art. 10 della delibera 639/2021/R/idr e dall'art. 1 della delibera 637/2023/R/idr",null,null,null,null,null,0]
["OB1","Perdite idriche - Obiettivo ","-",null,{"$f":"IF(E47=\"A\",\"Mantenimento\",IF(E47=\"B\",\"-2% di M1a\",IF(E47=\"C\",\"-4% di M1a\",IF(E47=\"D\",\"-5% di M1a\",IF(E47=\"E\",\"-6% di M1a\",\"\")))))","v":""},null,null,null,null,null,null,0]
["WPem","Volumi di processo effettivamente misurati (volumi annui derivanti da letture validate già effettuate al 31 gennaio dell'anno a+1)","mc",null,null,"Considerare la quota parte di volume dell’anno a di riferimento, compresa tra il 1° gennaio dell’anno a e la data dell’ultima lettura valida del misuratore. La misurazione si intende valida anche se effettuata in data successiva al 31/12, ma entro il 31/1 dell'anno successivo a quello di riferimento (e.g. 31/1/2025 per il 2024). ",null,null,{"$f":"IF(E3=\"SI\",IF(OR(E49<0,E49>E16),\"Il valore deve essere maggiore o uguale a zero e minore o uguale a WPtot\",\"\"),IF(E49<>0,\"Non risulta gestito il servizio di acquedotto\",\"\"))","v":""},null,null,0]
["WPemtel","     di cui da misuratori teleletti","mc",null,null,"Solo telelettura da remoto con trasmissione dei dati al sistema di telecontrollo (no walk by/drive by)",null,null,{"$f":"IF(OR(E50<0,E50>E49),\"Il valore deve essere maggiore o uguale a zero e inferiore o uguale a WPem\",\"\")","v":""},null,null,0]
["WUem","Volumi di utenza effettivamente misurati (consumi annui derivanti da letture o autoletture validate già effettuate al 31 gennaio dell'anno a+1)","mc",null,null,"Considerare la quota parte di consumo riferita all’anno a di riferimento, compresa tra il 1° gennaio dell’anno a e la data dell’ultima lettura valida del misuratore. La misurazione si intende valida anche se effettuata in data successiva al 31/12, ma entro il 31/1 dell'anno successivo a quello di riferimento (e.g. 31/1/2025 per il 2024). ",null,null,{"$f":"IF(E3=\"SI\",IF(OR(E51<0,E51>E19),\"Il valore deve essere maggiore o uguale a zero e minore o uguale a WUtot\",\"\"),IF(E51<>0,\"Non risulta gestito il servizio di acquedotto\",\"\"))","v":""},null,null,0]
["WUemtel","     di cui da misuratori teleletti","mc",null,null,"Solo telelettura da remoto con trasmissione dei dati al sistema di telecontrollo (no walk by/drive by)",null,null,{"$f":"IF(OR(E52<0,E52>E51),\"Il valore deve essere maggiore o uguale a zero e inferiore o uguale a WUem\",\"\")","v":""},null,null,0]
["G1.1","Quota di volumi misurati sui totali","%",null,null,"Soppresso ai sensi della del. 609/2021/R/idr a decorrere dal 1 gennaio 2022",null,null,null,null,null,0]
[null,null,null,null,null,null,null,null,null,null,null,0]
["Ulteriori specificazioni per il calcolo del macro-indicatore M1 (anche ai sensi delle deliberazioni 609/2021/R/idr e 639/2021/R/idr), ai fini della valutazione di affidabilità e di diffusione delle nuove tecnologie"]
["WUval","Somma dei volumi consumati dagli utenti finali con almeno un numero di letture validate pari agli obblighi TIMSII per i tentativi di lettura annuali","mc",null,null,"Si intendono i volumi registrati presso gli utenti finali (esclusi utenti indiretti)",null,null,{"$f":"IF(OR(E56<0,E56>E19),\"Il valore deve essere maggiore o uguale a zero e minore o uguale a WUtot\",\"\")","v":""},null,null,{"$f":"IF(I56=\"\",0,1)","v":0}]
["WU3000val","di cui volumi relativi agli utenti finali con consumo medio annuo fino a 3000 mc, per i quali sono disponibili almeno 2 misure validate all'anno","mc",null,null,null,null,null,{"$f":"IF(AND(E3=\"SI\",OR(E57<0,E58<0,E58+E57<>E56)),\"Ogni di cui deve essere maggiore o uguale a zero e la somma deve essere pari a WUval\",\"\")","v":""},null,null,0]
["WU3000+val","di cui volumi relativi agli utenti finali con consumo medio annuo superiore a 3000 mc, per i quali sono disponibili almeno 3 misure validate all'anno","mc",null,null,null,null,null,null,null,null,0]
["G1.1ut","Quota di volumi di utenza misurati sui totali","%",null,{"$f":"IF(AND(E56>0,E19>0),E56/E19,\"\")","v":""},"Vedere RQTI al comma 6.5, punto 1.a)",null,null,null,null,null,0]
["WPval","Somma dei volumi di processo transitati nei punti dell’infrastruttura di acquedotto rilevanti per M1 per i quali sono disponibili almeno 12 misure validate nell’anno, ognuno preso in valore assoluto","mc",null,null,"Nei volumi di processo sono compresi i volumi scambiati con sistemi di acquedotto gestiti da altri gestori. I punti teleletti da sala di controllo centralizzata sono considerati validati, a meno di rilevazione di misure palesemente errate o in caso di misuratore non funzionante",null,null,{"$f":"IF(OR(E60<0,E60>E16),\"Il valore deve essere maggiore o uguale a zero e minore o uguale a WPtot\",\"\")","v":""},null,null,0]
["G1.1proc","Quota di volumi di processo misurati sui totali","%",null,{"$f":"IF(AND(E60>0,E16>0),E60/E16,\"\")","v":""},"Vedere RQTI al comma 6.5, punto 1.b) ",null,null,null,null,null,0]
["WUsm","Somma dei volumi consumati dagli utenti finali con misure rilevate tramite telelettura ","mc",null,null,"Telelettura di prossimità (modalità semi-smart) e telelettura da remoto (modalità smart)",null,null,{"$f":"IF(OR(E62<0,E62>E19),\"Il valore deve essere maggiore o uguale a zero e minore o uguale a WUtot\",\"\")","v":""},null,null,0]
["WUsm_tel","di cui volumi di utenza rilevati con modalità di telelettura da remoto","mc",null,null,"Solo telelettura in modalità smart (no walk by/drive by)",null,null,{"$f":"IF(OR(E63<0,E63>E62),\"Il valore deve essere maggiore o uguale a zero e minore o uguale a WUsm\",\"\")","v":""},null,null,0]
["G1.2ut","Diffusione delle tecnologie di rilevazione delle misure d'utenza di tipo smart","%",null,{"$f":"IF(AND(E63>0,E19>0),E63/E19,\"\")","v":""},"Vedere RQTI al comma 6.5, punto 2.a) ",null,null,null,null,null,0]
["WPsm","Somma dei volumi di processo con misure rilevate tramite telelettura ","mc",null,null,"Telelettura di prossimità (modalità semi-smart) e telelettura da remoto (modalità smart)",null,null,{"$f":"IF(OR(E65<0,E65>E16),\"Il valore deve essere maggiore o uguale a zero e minore o uguale a WPtot\",\"\")","v":""},null,null,0]
["WPsm_tel","di cui volumi di processo rilevati con modalità di telelettura da remoto","mc",null,null,"Solo telelettura in modalità smart (no walk by/drive by)",null,null,{"$f":"IF(OR(E66<0,E66>E65),\"Il valore deve essere maggiore o uguale a zero e minore o uguale a WPsm_tel\",\"\")","v":""},null,null,0]
["G1.2proc","Diffusione delle tecnologie di rilevazione delle misure di processo di tipo smart","%",null,{"$f":"IF(AND(E66>0,E16>0),E66/E16,\"\")","v":""},"Vedere RQTI al comma 6.5, punto 2.b) ",null,null,null,null,null,0]
["Wm,F","Volume autorizzato, misurato e fatturato ","mc",null,null,"Si intendono misurati i volumi delle utenze dotate di misuratore",null,null,{"$f":"IF(AND(E3=\"SI\",OR(E68<0,E69<0,ROUND((E69+E68)<>(E40+E33),0))),\"La somma di Wm,F e Wnm,F non coincide con il valore di (RW+Wesp): motivare in relazione, anche con riferimento al bilancio idrico della rete di adduzione\",\"\")","v":""},null,null,0]
["Wnm,F","Volume autorizzato, non misurato e fatturato ","mc",null,null,null,null,null,null,null,null,0]
["Wm,NF","Volume autorizzato, misurato e non fatturato ","mc",null,null,"Fornire dettagli in relazione in merito agli utilizzi dei volumi inclusi in questa voce",null,null,{"$f":"IF(AND(E3=\"SI\",OR(E70<0,E71<0,ROUND((E71+E70)<>(E41-E38),0))),\"La somma di Wm,NF e Wnm,NF non coincide con il valore di (NRW-WLD): motivare in relazione, anche con riferimento al bilancio idrico della rete di adduzione\",\"\")","v":""},null,null,0]
["Wnm,NF","Volume autorizzato, non misurato e non fatturato ","mc",null,null,"Fornire dettagli in relazione in merito agli utilizzi dei volumi inclusi in questa voce",null,null,null,null,null,0]
["Wm,F_Nesp","Volume autorizzato, misurato e fatturato (esclusa acqua esportata)","mc",null,{"$f":"E68-E33","v":0},null,null,null,null,null,null,0]
["ck_Wnm,NF","Check su Wnm,NF","%",null,{"$f":"IF(E72=0,\"\",E71/E72)","v":""},"Verifica ai sensi del comma 7.2 della RQTI come modificata con la delibera 637/2023/R/idr",null,null,{"$f":"IF(AND(E3=\"SI\",E73>(0.5/100)),\"Il volume autorizzato, non misurato e non fatturato eccede lo 0,5% del volume autorizzato, misurato e fatturato (esclusa acqua esportata): motivare in relazione\",\"\")","v":""},null,null,0]
[]
["Valutazione prerequisiti e indicazione istanze presentate per M2",null,null,null,null,null,null,null,null,null,null,{"$f":"IF(I75=\"\",0,1)","v":0}]
["Preq4M2","Indicare l'esito della validazione ai fini della valutazione della disponibilità e affidabilità dei dati per M2 (prerequisito Preq4) ","-",null,null,"Indicare la presenza o meno del prerequisito Preq4 (Art.23 RQTI) ",null,null,{"$f":"IF(AND(E$3=\"SI\",OR(E76=\"Non adeguato\",E76=\"\")),\"Attenzione, prerequisito mancante\",\"\")","v":""},null,null,0]
["IstD,M2","Indicare se è stata formulata istanza per eventi imprevisti e imprevedibili che hanno comportato il mancato rispetto degli obiettivi per M2","-",null,null,"Istanza ex-post ai sensi del comma 5.4, del. 917/2017. Specificare motivazioni in relazione ",null,null,null,null,null,0]
[null,null,null,null,null,null,null,null,null,null,null,0]
["Calcolo del macro-indicatore M2",null,null,null,null,null,null,null,null,null,null,0]
["UtT","Numero di utenti finali serviti dal gestore per il servizio di acquedotto (esclusi utenti indiretti)","n.",null,null,"Si intendono le sole utenze contrattualizzate",null,null,{"$f":"IF(E80<0,\"Il valore deve essere maggiore o uguale a zero\",\"\")","v":""},null,null,0]
["UtTd","     di cui utenze domestiche","n.",null,null,"Come da definizioni TICSI",null,null,{"$f":"IF(OR(E81<>\"\",E82<>\"\"),IF(OR(E81<0,E82<0,E82+E81<>E80),\"Ogni di cui deve essere maggiore o uguale a zero e la somma deve essere pari a UtT\",\"\"),\"\")","v":""},null,null,0]
["UtTnd","     di cui utenze non domestiche","n.",null,null,"Come da definizioni TICSI",null,null,null,null,null,0]
["UtTcond","Numero di utenze condominiali servite dal gestore per il servizio di acquedotto","n.",null,null,"Come da definizioni RQTI",null,null,{"$f":"IF(AND(E3=\"SI\",OR(E83<0,E83>E80)),\"Il valore deve essere maggiore o uguale a zero e minore o uguale a UtT\",\"\")","v":""},null,null,0]
["UtTindr","Numero di utenti indiretti sottesi alle utenze condominiali servite dal gestore per il servizio di acquedotto","n.",null,null,"Come da definizioni RQTI",null,null,{"$f":"IF(AND(E3=\"SI\",OR(E84<E83,E84<0)),\"Il valore deve essere maggiore o uguale di UtT_cond\",\"\")","v":""},null,null,0]
["UtTindr,d","       di cui utenze domestiche","n.",null,null,null,null,null,{"$f":"IF(OR(E85<>\"\",E86<>\"\"),IF(OR(E85<0,E86<0,E86+E85<>E84),\"Ogni di cui deve essere maggiore o uguale a zero e la somma deve essere pari a UtT_indr\",\"\"),\"\")","v":""},null,null,0]
["UtTindr,nd","       di cui utenze non domestiche","n.",null,null,null,null,null,null,null,null,0]
["Utot,ACQ","Numero complessivo di utenti finali serviti dal gestore per il servizio di acquedotto (compresi utenti indiretti)","n.",null,{"$f":"IF((E80-E83+E84)>=0,E80-E83+E84,\"\")","v":0},"Dato utilizzato anche per il calcolo di M3a, G3.2 e di G5.2",null,null,null,null,null,0]
["∑UI ","Numero complessivo di utenti finali (compresi utenti indiretti) soggetti ad interruzioni del servizio nell’anno (di durata maggiore o uguale ad 1 ora)","n.",null,null,"Gli utenti interessati dalle interruzioni si contano tante volte quante sono le interruzioni",null,null,{"$f":"IF(E88<0,\"Il valore deve essere maggiore o uguale a zero\",\"\")","v":""},null,null,0]
["∑tI","Durata totale delle interruzioni avvenute nell'anno (di durata maggiore o uguale ad 1 ora)","ore",null,null,null,null,null,"",null,null,0]
["∑UI × tI","Sommatoria del prodotto delle durate delle interruzioni annue (di durata maggiore o uguale ad 1 ora), per il rispettivo numero di utenti finali soggetti all'interruzione (compresi utenti indiretti)","ore",null,null,"N.B.: non è il prodotto di ∑UI e ∑tI",null,null,"",null,null,0]
["M2","Interruzioni del servizio","ore",null,{"$f":"IF(AND(E87>0,E90<>\"\",E90>=0),E90/E87,\"\")","v":""},"Vedere RQTI al comma 9.5 ",null,null,{"$f":"IF(AND(E7=\"X\",E91=\"\"),\"Indicatore non calcolabile\",\"\")","v":""},null,null,0]
["M2CL","Interruzioni del servizio - Classe di appartenenza","-",null,{"$f":"IF(E91=\"\",\"\",IF(E91<0.75,\"A\",IF(E91<3,\"B\",IF(E91<10,\"C\",IF(E91<30,\"D\",\"E\")))))","v":""},"Vedere RQTI al comma 9.4, come modificato dall'art. 1 della delibera 637/2023/R/idr",null,null,null,null,null,0]
["OB2","Interruzioni del servizio - Obiettivo (M2)","-",null,{"$f":"IF(E92=\"A\",\"Mantenimento\",IF(E92=\"B\",\"-2% di M2\",IF(E92=\"C\",\"-4% di M2\",IF(E92=\"D\",\"-6% di M2\",IF(E92=\"E\",\"-8% di M2\",\"\")))))","v":""},"Vedere RQTI al comma 9.4, come modificato dall'art. 1 della delibera 637/2023/R/idr",null,null,null,null,null,0]
["Wmax","Volume massimo derivabile dal sistema delle fonti di approvvigionamento nel giorno di massimo consumo dell'anno ","mc/gg",null,null,null,null,null,null,null,null,0]
["Wgg","Volume necessario a soddisfare la domanda nel giorno di massimo consumo dell'anno","mc/gg",null,null,null,null,null,null,null,null,0]
["G2.1","Disponibilità di risorse idriche","%",null,null,"Soppresso ai sensi della del. 637/2023/R/idr a decorrere dal 1 gennaio 2024",null,null,null,null,null,{"$f":"IF(I96=\"\",0,1)","v":0}]
["G2.1_new","Peso delle interruzioni non programmate sul totale delle interruzioni","%",null,{"$f":"IF(AND(E105=0,E106=0),\"\",E105/(E105+E106))","v":""},"Vedere RQTI al comma 9.8, lettera b) ",null,null,null,null,null,{"$f":"IF(I97=\"\",0,1)","v":0}]
[null,null,null,null,null,null,null,null,null,null,null,0]
["Indicazione istanze presentate per Standard Specifici",null,null,null,null,null,null,null,null,null,null,0]
["IstD,Sp","Indicare se è stata formulata istanza per eventi imprevisti e imprevedibili che hanno comportato il mancato rispetto degli standard specifici S1 e/o S2 e/o S3","-",null,null,"Istanza ex-post ai sensi del comma 5.4, del. 917/2017. Specificare motivazioni in relazione",null,null,null,null,null,0]
["IstE,Sp","Indicare se è stata formulata istanza per compromessa continuità gestionale a causa del mancato rispetto degli standard specifici S1 e/o S2 e/o S3","-",null,null,"Istanza ex-post ai sensi del comma 5.2, lett. b), del. 917/2017. Specificare motivazioni in relazione",null,null,null,null,null,0]
[null,null,null,null,null,null,null,null,null,null,null,0]
["Dati relativi agli Standard Specifici",null,null,null,null,null,null,null,null,null,null,0]
["Inttot,1h","Numero totale delle interruzioni avvenute nell'anno (di durata maggiore o uguale ad 1 ora)","n.",null,null,null,null,null,{"$f":"IF(E104<0,\"Il valore deve essere maggiore o uguale a zero\",\"\")","v":""},null,null,0]
["Intnp","di cui numero di interruzioni non programmate","n.",null,null,null,null,null,{"$f":"IF(OR(E105<>\"\",E106<>\"\"),IF(OR(E105<0,E106<0,E106+E105<>E104),\"Ogni di cui deve essere maggiore o uguale a zero e la somma deve essere pari a Int_tot,1h\",\"\"),\"\")","v":""},null,null,0]
["Intp","di cui numero di interruzioni programmate","n.",null,null,null,null,null,null,null,null,0]
["Intp,S1","di cui numero di interruzioni con mancato rispetto dello standard specifico S1","n.",null,null,"Vedere RQTI al comma 3.2 ",null,null,{"$f":"IF(OR(E107<0,E107>E106),\"Il valore deve essere maggiore o uguale a zero e minore o uguale a Int_p\",\"\")","v":""},null,null,0]
["Intp,S3","Numero di interruzioni con mancato rispetto dello standard specifico S3","n.",null,null,"Vedere RQTI al comma 3.4 ",null,null,{"$f":"IF(E108<0,\"Il valore deve essere maggiore o uguale a zero\",\"\")","v":""},null,null,0]
["Intem","Numero di interruzioni con attivazione del servizio sostitutivo di emergenza ","n.",null,null,null,null,null,"",null,null,0]
["Intem,S2","di cui numero di interruzioni con mancato rispetto dello standard specifico S2 ","n.",null,null,"Vedere RQTI al comma 3.3. Nel caso di interruzioni per le quali il servizio di emergenza, anche se dovuto, non è mai stato attivato, queste sono comunque da considerare tra le interruzioni con ritardo rispetto allo standard specifico S2",null,null,"",null,null,0]
["∑US1 ","Sommatoria degli utenti finali (compresi utenti indiretti) con mancato rispetto dello standard specifico S1","n.",null,null,"Gli utenti interessati si contano tante volte quanti sono i mancati rispetti dello standard - includere anche i casi per cui il gestore non è tenuto a corrispondere l'indennizzo (motivare in relazione)",null,null,{"$f":"IF(OR(E111<0,E111<E107),\"Il valore deve essere maggiore o uguale a Int_p,S1\",\"\")","v":""},null,null,0]
["∑US2 ","Sommatoria degli utenti finali (compresi utenti indiretti) con mancato rispetto dello standard specifico S2","n.",null,null,"Gli utenti interessati si contano tante volte quanti sono i mancati rispetti dello standard - includere anche i casi per cui il gestore non è tenuto a corrispondere l'indennizzo (motivare in relazione)",null,null,{"$f":"IF(OR(E112<0,E112<E110),\"Il valore deve essere maggiore o uguale a Int_em,S2\",\"\")","v":""},null,null,0]
["∑US3 ","Sommatoria degli utenti finali (compresi utenti indiretti) con mancato rispetto dello standard specifico S3","n.",null,null,"Gli utenti interessati si contano tante volte quanti sono i mancati rispetti dello standard - includere anche i casi per cui il gestore non è tenuto a corrispondere l'indennizzo (motivare in relazione)",null,null,{"$f":"IF(OR(E113<0,E113<E108),\"Il valore deve essere maggiore o uguale a Int_p,S3\",\"\")","v":""},null,null,0]
[null,null,null,null,null,null,null,null,null,null,null,0]
["Valutazione prerequisiti e indicazione istanze presentate per M3",null,null,null,null,null,null,null,null,null,null,0]
["QA1","Indicare se il gestore si è dotato delle procedure per l'adempimento agli obblighi di verifica della qualità dell'acqua destinata al consumo umano ai sensi del d.lgs. 18/2023 ","-",null,null,"Quesito riferito al 31 dicembre di ogni anno. Il riferimento al decreto d.lgs. 18/2023 si intende sempre \"come successivamente modificato e integrato\"",null,null,null,null,null,0]
["QA2","Indicare se il gestore ha effettivamente applicato le procedure di cui al precedente alinea","-",null,null,"Quesito riferito al 31 dicembre di ogni anno",null,null,null,null,null,0]
["QA3","Indicare se il gestore ha ottemperato alle disposizioni regionali eventualmente emanate in materia","-",null,null,"Quesito riferito al 31 dicembre di ogni anno",null,null,null,null,null,0]
["CACQ-min","Numero minimo di campioni (da controlli interni) che il gestore è tenuto a eseguire nell'anno","n.",null,null,"Da compilare con il valore desumibile dai programmi comunicati in AnTeA. \nLaddove non ancora approvati i nuovi programmi, indicare il valore superiore tra: i) il dato comunicato per nella più recente Raccolta RQTI e ii) il dato desumibile dalla Tab. 1 All. 2 del d.lgs. 18/2023",null,null,{"$f":"IF(AND(E3<>\"SI\",E119<>\"\"),\"Non risulta gestito il servizio di acquedotto\",IF(E119<0,\"Il valore deve essere maggiore o uguale a zero\",\"\"))","v":""},null,null,0]
["Wprod","Volume medio nell'anno di acqua distribuita o prodotta ogni giorno (di cui Tab. 1 All. II d.lgs. 18/2023) nell'anno","mc/gg",null,null,"Vedere Nota 2 Tab. 1 All.2 d.lgs. 18/2023",null,null,{"$f":"IF(AND(E3<>\"SI\",E120<>\"\"),\"Non risulta gestito il servizio di acquedotto\", IF(E120<0,\"Il valore deve essere maggiore o uguale a zero\",\"\"))","v":""},null,null,0]
["CACQ-real","Numero campioni (da controlli interni) che il gestore ha eseguito nell'anno ","n.",null,null,"Inclusi anche i controlli a monte della distribuzione",null,null,{"$f":"IF(AND(E3<>\"SI\",E121<>0),\"Non risulta gestito il servizio di acquedotto\", IF(E121<0,\"Il valore deve essere maggiore o uguale a zero\",\"\"))","v":""},null,null,0]
["QA4","Il gestore ha eseguito il numero minimo annuale di controlli interni?","-",null,{"$f":"IF(AND(E119=\"\",E121=0),\"\",IF(AND(E121>=E119,E119>=0,E121>=0,E119<>\"\",E121<>\"\"),\"SI\",\"NO\"))","v":""},null,null,null,null,null,null,0]
["Preq2","Il prerequisito sulla conformità alla normativa sulla qualità dell'acqua distribuita agli utenti è stato conseguito (prerequisito Preq2)?","-",null,{"$f":"IF(E3<>\"SI\",\"\",IF(AND(E116=\"\",E117=\"\",E118=\"\",E122=\"\"),\"\",IF(AND(E116=\"X\",E117=\"X\",E118=\"X\",E122=\"SI\"),\"SI\",\"NO\")))","v":""},"Vedere RQTI, Art.21 (N.B.: la valutazione del conseguimento del Preq2 va fatta anche per i soggetti che non gestiscono l'attività di distribuzione)",null,null,{"$f":"IF(AND(E$3=\"SI\",OR(E123=\"NO\",E123=\"\")),\"Attenzione, prerequisito mancante\",\"\")","v":""},null,null,0]
["Preq4M3","Indicare l'esito della validazione ai fini della valutazione della disponibilità e affidabilità dei dati per M3 (prerequisito Preq4) ","-",null,null,"Indicare la presenza o meno del prerequisito Preq4 (Art.23 RQTI) ",null,null,{"$f":"IF(AND(E$3=\"SI\",OR(E124=\"Non adeguato\",E124=\"\")),\"Attenzione, prerequisito mancante\",\"\")","v":""},null,null,0]
["IstD,M3","Indicare se è stata formulata istanza per eventi imprevisti e imprevedibili che hanno comportato il mancato rispetto degli obiettivi per M3","-",null,null,"Istanza ex-post ai sensi del comma 5.4, del. 917/2017. Specificare motivazioni in relazione. ",null,null,null,null,null,0]
[null,null,null,null,null,null,null,null,null,null,null,0]
["Calcolo del macro-indicatore M3",null,null,null,null,null,null,null,null,null,null,0]
["Totord","Numero di ordinanze di non potabilità avvenute nell'anno","n.",null,null,null,null,null,{"$f":"IF(E128<0,\"Il valore deve essere maggiore o uguale a zero\",\"\")","v":""},null,null,0]
["∑Ui","Numero complessivo di utenti finali interessati da ordinanze di non potabilità nell'anno (compresi utenti indiretti)","n.",null,null,"Gli utenti interessati dalle ordinanze si contano tante volte quante sono le ordinanze",null,null,"",null,null,0]
["∑ti","Durata totale delle ordinanze di non potabilità avvenute nell'anno","gg",null,null,null,null,null,"",null,null,0]
["∑(Ui*ti)","Sommatoria del prodotto del numero di utenze soggette all'i-esima ordinanza di non potabilità (compresi utenti indiretti) per la durata della medesima ordinanza di non potabilità","gg",null,null,"N.B.: non è il prodotto di ∑Ui e ∑ti",null,null,{"$f":"IF(E7=\"X\",IF(OR(E131<0,E131=\"\"),\"Il valore deve essere maggiore o uguale a zero \",\"\"),IF(E131<>0,\"Non risulta gestita la distribuzione\",\"\"))","v":""},null,null,0]
["M3a","Incidenza ordinanze di non potabilità","%",null,{"$f":"IF(AND(E87>0,E131>=0,E131<>\"\"),E131/(E87*365),\"\")","v":""},"Vedere RQTI al comma 11.2 ",null,null,{"$f":"IF(AND(E7=\"X\",E132=\"\"),\"Indicatore non calcolabile\",\"\")","v":""},null,null,0]
[" CACQ-tot","Numero campioni (da controlli interni) effettuati in distribuzione a valle di eventuali impianti di potabilizzazione","n.",null,null,"Il prelievo di una o più porzioni di acqua, in un determinato punto di campionamento, in una certa data, è da considerarsi come unico campione indipendentemente dal numero di rapporti di prova registrati ovvero dal numero di contenitori (prelievi) utilizzati secondo le metodiche di campionamento",null,null,{"$f":"IF(AND(E7=\"X\",OR(E133<=0,E133>E121)),\"Il valore deve essere maggiore di zero e minore o uguale a C_ACQ-real\",\"\")","v":""},null,null,0]
["CACQ-cnc","Numero campioni (da controlli interni) effettuati in distribuzione a valle di eventuali impianti di potabilizzazione, con superamento dei limiti del d.lgs 18/2023 ","n.",null,null,null,null,null,{"$f":"IF(AND(E7=\"X\",OR(E134<0,E134>E133,E134=\"\")),\"Il valore deve essere maggiore o uguale a zero e minore o uguale a C_ACQ-tot\",\"\")","v":""},null,null,0]
["CACQ-cnc-A/B","di cui campioni con superamento dei limiti della Parte A e/o B dell'All. 1 del d.lgs. 18/2023","n.",null,null,"Inclusi campioni con superamento dei limiti anche delle Parti C e/o D",null,null,{"$f":"IF(OR(E135<>\"\",E136<>\"\"),IF(OR(E135<0,E136<0,E136+E135<>E134),\"Ogni di cui deve essere maggiore o uguale a zero e la somma deve essere pari a  C_ACQ-cnc\",\"\"),\"\")","v":""},null,null,0]
["CACQ-cnc-C","di cui campioni con superamento dei limiti della Parte C e/o D dell'All. 1 del d.lgs. 18/2023","n.",null,null,"Esclusi campioni con superamento dei limiti anche delle Parti A e/o B",null,null,null,null,null,0]
["M3b","Tasso di campioni da controlli interni non conformi","%",null,{"$f":"IF(AND(E133>0,E134>=0,E134<>\"\",E134<=E133),E134/E133,\"\")","v":""},"Vedere RQTI al comma 12.2 ",null,null,{"$f":"IF(AND(E7=\"X\",E137=\"\"),\"Indicatore non calcolabile\",\"\")","v":""},null,null,0]
[" PACQ-tot","Numero parametri analizzati nei campioni (da controlli interni) effettuati in distribuzione a valle di eventuali impianti di potabilizzazione","n.",null,null,null,null,null,{"$f":"IF(E7=\"X\",IF(OR(E138<=0,E138<E133),\"Il valore deve essere maggiore di zero e maggiore o uguale a C_ACQ-tot\",\"\"),IF(E138<>\"\",\"Non risulta gestita la distribuzione\",\"\"))","v":""},null,null,0]
["PACQ-pnc","Numero parametri con superamento dei limiti del d.lgs 18/2023 nei campioni (da controlli interni) effettuati in distribuzione a valle di eventuali impianti di potabilizzazione ","n.",null,null,null,null,null,{"$f":"IF(AND(E7=\"X\",OR(E139<0,E139>E138,E139=\"\",E139<E134)),\"Il valore deve essere maggiore o uguale a zero, maggiore o uguale a C_ACQ-cnc e minore o uguale a P_ACQ-tot\",\"\")","v":""},null,null,{"$f":"IF(I139=\"\",0,1)","v":0}]
["PACQ-pnc-A","di cui parametri non conformi alla Parte A dell'All. 1 del d.lgs. 18/2023","n.",null,null,null,null,null,{"$f":"IF(OR(E140<>\"\",E141<>\"\",E142<>\"\",E143<>\"\"),IF(OR(E140<0,E141<0,E142<0,E143<0,E140+E141+E142+E143<>E139),\"Ogni di cui deve essere maggiore o uguale a zero e la somma deve essere pari a  P_ACQ-pnc\",\"\"),\"\")","v":""},null,null,0]
["PACQ-pnc-B","di cui parametri non conformi alla Parte B dell'All. 1 del d.lgs. 18/2023","n.",null,null,null,null,null,null,null,null,0]
["PACQ-pnc-C","di cui parametri non conformi alla Parte C dell'All. 1 del d.lgs. 18/2023","n.",null,null,null,null,null,null,null,null,0]
["PACQ-pnc-D","di cui parametri non conformi alla Parte D dell'All. 1 del d.lgs. 18/2023","n.",null,null,null,null,null,null,null,null,0]
["M3c","Tasso di parametri da controlli interni non conformi","%",null,{"$f":"IF(AND(E138>0,E139>=0,E139<>\"\",E139<=E138),E139/E138,\"\")","v":""},"Vedere RQTI al comma 13.2 ",null,null,{"$f":"IF(AND(E7=\"X\",E144=\"\"),\"Indicatore non calcolabile\",\"\")","v":""},null,null,0]
["M3CL","Qualità dell'acqua erogata - Classe di appartenenza","-",null,{"$f":"IF(E132=\"\",\"\",IF(AND(E132=\"\",E137=\"\",E144=\"\"),\"\",IF(E132>(0.005/100),\"E\",IF(AND(E132<=(0.005/100),E137>(5/100)),\"D\",IF(AND(E132<=(0.005/100),E137>(1/100)),\"C\",IF(AND(E132<=(0.001/100),E137<=(1/100),E144<=(0.04/100)),\"A\",IF(AND(E132<=(0.005/100),E137<=(1/100)),\"B\",\"B\")))))))","v":""},"Vedere RQTI al comma 10.3, come modificato dall'art. 1 della delibera 637/2023/R/idr",null,null,null,null,null,0]
["OB3","Qualità dell'acqua erogata - Obiettivo","-",null,{"$f":"IF(E145=\"A\",\"Mantenimento\",IF(E145=\"B\",\"-4% di M3b\",IF(E145=\"C\",\"-6% di M3b\",IF(E145=\"D\",\"-8% di M3b\",IF(E145=\"E\",\"-10% di M3b\",\"\")))))","v":""},"Vedere RQTI al comma 10.3, come modificato dall'art. 1 della delibera 637/2023/R/idr",null,null,null,null,null,0]
["G3.1","Numero campioni (da controlli interni) effettuati in distribuzione a valle di eventuali impianti di potabilizzazione su volumi erogati ","n./1000 mc",null,{"$f":"IF(AND(E40>0,E133>0),E133/E40*1000,\"\")","v":""},"Vedere RQTI al comma 10.4 ",null,null,null,null,null,0]
["WSP","Adozione del modello Water Safety Plan (WSP)","-",null,null,"Ai sensi del comma 10.5 della RQTI, selezionare \"x\" se il gestore ha adottato, anche in modo parziale e/o solo su una porzione limitata del territorio servito, il modello Water Safety Plan, inoltrando la richiesta di approvazione al CeNSiA entro la data del 31 dicembre dell’anno a.",null,null,null,null,null,0]
["UWSP_real","Numero di utenti serviti da sistemi di fornitura per i quali è stato realizzato il modello Water Safety Plan (WSP - compresi utenti indiretti)","n.",null,null,"Vedere RQTI al comma 10.5 ",null,null,{"$f":"IF(AND(E149<>\"\",OR(E149>E87,E149<0)),\"Il valore deve essere maggiore o uguale a zero e inferiore o uguale a U_tot,ACQ\",\"\")","v":""},null,null,0]
["G3.2","Applicazione del modello Water Safety Plan (WSP)","%",null,{"$f":"IF(AND(E87>0,E149<=E87,E149>=0),E149/E87,\"\")","v":""},"Vedere  RQTI al comma 10.5",null,null,null,null,null,0]
[]
[]
[null,"Adeguato"]
[null,"Non adeguato"]
[null,"SI"]
[null,"NO"]
[]
[]
[null,"X"]

{"sheet":"QT-Fognatura","index":56,"n_rows":56,"n_cols":12,"rows_kept":56,"cut":false,"hidden":true,"merged":[]}
[null,"Dati per l'applicazione dei meccanismi di \nincentivazione RQTI (premi e penalità)\nTutti i valori imputati sono intesi essere valori \nconsuntivi ",null,null,null,null,null,null,null,null,null,"Errori compilazione colonna \"Valore Anno 2025\""]
["Notazione dato ","Descrizione dato","UdM",null,"Valore Anno 2025","Note compilazione",null,null,"Errore rilevato in colonna \"Valore Anno 2025\"",null,null,{"$f":"SUM(L3:L48)","v":0}]
["FOG","Il gestore gestisce il servizio di fognatura?\nSe sì, specificare:","-",null,null,"Al fine del calcolo dei macro-indicatori è necessario indicare se il servizio è gestito",null,null,null,null,null,{"$f":"IF(I3=\"\",0,1)","v":0}]
["FOG_m","- fognatura mista","-",null,null,null,null,null,null,null,null,0]
["FOG_n","- fognatura nera","-",null,null,null,null,null,null,null,null,0]
["FOG_b","- fognatura bianca","-",null,null,"Se soggetta a regolazione tariffaria",null,null,null,null,null,0]
["PRF","Popolazione residente servita (PRF)","ab.",null,null,null,null,null,{"$f":"IF(E$3=\"SI\",IF(E7<=0,\"Il valore deve essere maggiore di zero\",\"\"),IF(E7<>0,\"Non risulta gestito il servizio di fognatura\",\"\"))","v":""},null,null,0]
["PFF","Popolazione fluttuante (PFF)","ab.",null,null,null,null,null,{"$f":"IF(E8<0,\"Il valore deve essere maggiore o uguale a zero\",\"\")","v":""},null,null,0]
["ComF","Numero di comuni serviti (ComF)","n. ",null,null,null,null,null,{"$f":"IF(E$3=\"SI\",IF(E9<=0,\"Il valore deve essere maggiore di zero\",\"\"),IF(E9<>0,\"Non risulta gestito il servizio di fognatura\",\"\"))","v":""},null,null,0]
["SUF","Superficie  (SUF)","kmq",null,null,null,null,null,{"$f":"IF(E$3=\"SI\",IF(E10<=0,\"Il valore deve essere maggiore di zero\",\"\"),IF(E10<>0,\"Non risulta gestito il servizio di fognatura\",\"\"))","v":""},null,null,0]
["EEFOG","Consumo di energia elettrica per servizio di fognatura, al netto dell'energia autoprodotta","kWh",null,null,"Il dato include la quota parte relativa ai servizi comuni",null,null,{"$f":"IF(E11<0,\"Il valore deve essere maggiore o uguale a zero\",\"\")","v":""},null,null,0]
[null,null,null,null,null,null,null,null,null,null,null,0]
["Valutazione prerequisiti e indicazione istanze presentate per M4",null,null,null,null,null,null,null,null,null,null,0]
["Aggcond,FOG","Numero agglomerati oggetto di condanna per il servizio di fognatura (causa C-565/10, C-85/13, C-668/19 e successive)","n.",null,null,null,null,null,{"$f":"IF(E3=\"SI\",IF(OR(E14<0,E14=\"\"),\"Il valore deve essere maggiore o uguale a zero\",\"\"),IF(E14<>0,\"Non risulta gestito il servizio di fognatura\",\"\"))","v":""},null,null,0]
["AEcond,FOG","Abitanti Equivalenti complessivi degli agglomerati oggetto di condanna per il servizio di fognatura (causa C-565/10, C-85/13, C-668/19 e successive)","A.E.",null,null,null,null,null,{"$f":"IF(E3=\"SI\",IF(OR(E15<0,E15=\"\"),\"Il valore deve essere maggiore o uguale a zero\",\"\"),IF(E15<>0,\"Non risulta gestito il servizio di fognatura\",\"\"))","v":""},null,null,0]
["Preq3M4","Relativamente al servizio di fognatura, il prerequisito sulla conformità alla normativa sulla gestione delle acque reflue è stato conseguito (prerequisito Preq3)?","-",null,{"$f":"IF(E3=\"SI\",IF(OR(E14>0,E15>0,AND(E14=\"\",E15=\"\")),\"NO\",\"SI\"),\"\")","v":""},"Vedere RQTI, Art.22",null,null,{"$f":"IF(AND(E$3=\"SI\",E16=\"NO\"),\"Attenzione, prerequisito mancante\",\"\")","v":""},null,null,0]
["Preq4M4","Indicare l'esito della validazione ai fini della valutazione della disponibilità e affidabilità dei dati  per M4 (prerequisito Preq4)","-",null,null,"Indicare la presenza o meno del prerequisito Preq4 (Art.23 RQTI)",null,null,{"$f":"IF(AND(E$3=\"SI\",OR(E17=\"Non adeguato\",E17=\"\")),\"Attenzione, prerequisito mancante\",\"\")","v":""},null,null,0]
["IstD,M4","Indicare se è stata formulata istanza per eventi imprevisti e imprevedibili che hanno comportato il mancato rispetto degli obiettivi per M4","-",null,null,"Istanza ex-post ai sensi del comma 5.4, del. 917/2017. Specificare motivazioni in relazione. ",null,null,null,null,null,0]
[null,null,null,null,null,null,null,null,null,null,null,0]
["Calcolo del macro-indicatore M4",null,null,null,null,null,null,null,null,null,null,0]
["Lm","Lunghezza totale della rete di fognatura mista (esclusi gli allacci)","km",null,null,null,null,null,{"$f":"IF(E21<0,\"Il valore deve essere maggiore o uguale a zero\",\"\")","v":""},null,null,0]
["Lb","Lunghezza totale della rete di fognatura bianca (esclusi gli allacci)","km",null,null,"Da considerare laddove ricompresa nel SII ai fini della determinazione dei corrispettivi ",null,null,"",null,null,0]
["Ln","Lunghezza totale della rete di fognatura nera (esclusi gli allacci)","km",null,null,null,null,null,"",null,null,0]
["Lf","Lunghezza totale della rete fognaria principale (esclusi gli allacci)","km",null,{"$f":"E21+E22+E23","v":0},null,null,null,{"$f":"IF(AND(E3=\"SI\",E24<=0),\"La lunghezza della rete fognaria principale deve essere maggiore di zero\",\"\")","v":""},null,null,0]
["Allm","Numero di episodi di allagamento da fognatura mista che  hanno determinato situazioni di disagio o di pericolo","n.",null,null,null,null,null,{"$f":"IF(E25<0,\"Il valore deve essere maggiore o uguale a zero\",\"\")","v":""},null,null,0]
["Allb","Numero di episodi di allagamento da fognatura bianca che hanno determinato situazioni di disagio o di pericolo","n.",null,null,null,null,null,"",null,null,0]
["Sversn","Numero di episodi di sversamento da fognatura nera","n.",null,null,null,null,null,"",null,null,0]
["M4a","Frequenza allagamenti e/o sversamenti da fognatura","n./100 km",null,{"$f":"IF(AND(E24>0,OR(E25<>\"\",E26<>\"\",E27<>\"\"),E25>=0,E26>=0,E27>=0,E21>=0,E22>=0,E23>=0),(E25+E26+E27)/(E21+E22+E23)*100,\"\")","v":""},"Vedere RQTI al comma 15.2",null,null,{"$f":"IF(AND(E3=\"SI\",E28=\"\"),\"Indicatore non calcolabile\",\"\")","v":""},null,null,0]
["NScartot","Numero totale di scaricatori di piena gestiti ","n.",null,null,null,null,null,{"$f":"IF(AND(E21>0,E29=\"\"),\"Attenzione, il valore dovrebbe essere maggiore di zero\",IF(E29<0,\"Il valore deve essere maggiore o uguale a zero\",\"\"))","v":""},null,null,0]
["Nscarnorm","Numero di scaricatori di piena conformi alla normativa vigente o, in assenza di normativa locale, conformi alla condizione di cui al comma 16.1 lett. b) della RQTI","n.",null,null,"Vedere RQTI al comma 16.1, come modificato dall'art. 1 della delibera 637/2023/R/idr",null,null,{"$f":"IF(OR(E30<0,E30>E29),\"Il valore deve essere maggiore o uguale a zero e minore o uguale a Nscar_tot\",\"\")","v":""},null,null,0]
["Nscarrich","Numero di scaricatori di piena richiesti dall'Autorità competente e non ancora realizzati","n.",null,null,null,null,null,{"$f":"IF(E31<0,\"Il valore deve essere maggiore o uguale a zero\",\"\")","v":""},null,null,0]
["M4b","Adeguatezza normativa degli scaricatori di piena (% non adeguati)","%",null,{"$f":"IF(E29=\"\",\"\",IF(E29<=0,\"\",IF(AND(E29>0,E29>=E30,E30>=0),(E29-E30)/E29,\"\")))","v":""},"Vedere RQTI al comma 16.2",null,null,{"$f":"IF(AND(E3=\"SI\",E32=\"\"),\"Indicatore non calcolabile\",\"\")","v":""},null,null,0]
["Nscarctrl","Numero di scaricatori soggetti ad ispezione e/o dotati di sistemi di rilevamento automatico delle attivazioni","n.",null,null,"Sono da contare 1 sola volta gli scaricatori con sistemi di rilevamento ed anche soggetti a ispezione (di conseguenza, non è la somma di Nscarisp ed Nscarril)",null,null,{"$f":"IF(OR(E33<0,E33>E29),\"Il valore deve essere maggiore o uguale a zero e minore o uguale a Nscar_tot\",\"\")","v":""},null,null,0]
["Nscarisp","Numero di scaricatori soggetti ad ispezione nell'anno","n.",null,null,"Uno scaricatore soggetto a più ispezioni nell'anno va conteggiato una sola volta",null,null,{"$f":"IF(OR(E34<0,E34>E33),\"Il valore deve essere maggiore o uguale a zero e minore o uguale a Nscar_ctrl\",\"\")","v":""},null,null,0]
["Nscarril","Numero di scaricatori dotati di  sistemi di rilevamento automatico delle attivazioni","n.",null,null,null,null,null,{"$f":"IF(OR(E35<0,E35>E33),\"Il valore deve essere maggiore o uguale a zero e minore o uguale a Nscar_ctrl\",\"\")","v":""},null,null,0]
["M4c","Controllo degli scaricatori di piena (% non controllati)","%",null,{"$f":"IF(OR(E29<=0,E29=\"\"),\"\",IF(AND(E29>0,E29>=E33,E33>=0),(E29-E33)/E29,1))","v":""},"Vedere  RQTI al comma 17.2",null,null,{"$f":"IF(AND(E3=\"SI\",E36=\"\"),\"Indicatore non calcolabile\",\"\")","v":""},null,null,0]
["M4CL","Adeguatezza del sistema fognario - Classe di appartenenza","-",null,{"$f":"IF(E28=\"\",\"\",IF(AND(E28=\"\",E32=\"\",E36=\"\"),\"\",IF(E28>=5,\"E\",IF(AND(E28<1,E32=0,E36<=0.1),\"A\",IF(AND(E28<5,E32=0),\"B\",IF(AND(E28<5,E32<=0.2),\"C\",IF(AND(E28<5,E32>0.2,E32<>\"\"),\"D\",IF(AND(E28<1,E32=\"\"),\"A\",IF(AND(E28<5,E32=\"\"),\"B\",\"\")))))))))","v":""},"Vedere RQTI al comma 14.3, come modificato dall'art. 1 della delibera 637/2023/R/idr",null,null,null,null,null,0]
["OB4","Adeguatezza del sistema fognario - Obiettivo","-",null,{"$f":"IF(E37=\"E\",\"-10% di M4a\",IF(E37=\"D\",\"-10% di M4b\",IF(E37=\"C\",\"-7% di M4b\",IF(E37=\"B\",\"-5% di M4c\",IF(E37=\"A\",\"Mantenimento\",\"\")))))","v":""},null,null,null,null,null,null,0]
["BreakFOG","Numero totale di rotture annue delle condotte di fognatura","n.",null,null,"Esclusi gli allacci",null,null,{"$f":"IF(AND(E3=\"SI\",OR(E39<0,E39=\"\")),\"Il valore deve essere maggiore o uguale a zero\",\"\")","v":""},null,null,0]
["Lm-isp","Lunghezza totale della rete di fognatura mista (esclusi gli allacci) soggetta a ispezione","km",null,null,null,null,null,{"$f":"IF(OR(E40<0,E40>E21),\"Il valore deve essere maggiore o uguale a zero e minore o uguale a Lm\",\"\")","v":""},null,null,0]
["Lm-visp","di cui soggetta a videoispezione","km",null,null,null,null,null,{"$f":"IF(OR(E41<0,E41>E40),\"Il valore deve essere maggiore o uguale a zero e minore o uguale a L_m-isp\",\"\")","v":""},null,null,0]
["Lb-isp","Lunghezza totale della rete di fognatura bianca (esclusi gli allacci) soggetta a ispezione ","km",null,null,null,null,null,{"$f":"IF(OR(E42<0,E42>E22),\"Il valore deve essere maggiore o uguale a zero e minore o uguale a Lb\",\"\")","v":""},null,null,0]
["Lb-visp","di cui soggetta a videoispezione","km",null,null,null,null,null,{"$f":"IF(OR(E43<0,E43>E42),\"Il valore deve essere maggiore o uguale a zero e minore o uguale a L_b-isp\",\"\")","v":""},null,null,0]
["Ln-isp","Lunghezza totale della rete di fognatura nera (esclusi gli allacci) soggetta a ispezione ","km",null,null,null,null,null,{"$f":"IF(OR(E44<0,E44>E23),\"Il valore deve essere maggiore o uguale a zero e minore o uguale a Ln\",\"\")","v":""},null,null,0]
["Ln-visp","di cui soggetta a videoispezione","km",null,null,null,null,null,{"$f":"IF(OR(E45<0,E45>E44),\"Il valore deve essere maggiore o uguale a zero e minore o uguale a L_n-isp\",\"\")","v":""},null,null,0]
["Lfisp","Lunghezza totale della rete fognaria principale (esclusi gli allacci) soggetta ad ispezione","km",null,{"$f":"E40+E42+E44","v":0},null,null,null,null,null,null,0]
["G4.1","Rotture annue di fognatura per chilometro di rete ispezionata","n./100 km",null,{"$f":"IF(AND(E46>0,E39>=0,E39<>\"\"),(E39/E46)*100,\"\")","v":""},"Vedere RQTI al comma 14.4",null,null,null,null,null,0]
["QF1","Scaricatori di piena rispetto alla superficie servita da rete fognaria","n./kmq",null,{"$f":"IF(E29=0,0,E29/E10)","v":0},"Vedere RQTI al comma 14.6, come modificato dall'art. 1 della delibera 637/2023/R/idr",null,null,null,null,null,0]
[]
[]
[null,"Adeguato"]
[null,"Non adeguato"]
[]
[null,"X"]
[null,"SI"]
[null,"NO"]

{"sheet":"QT-Depurazione","index":57,"n_rows":158,"n_cols":12,"rows_kept":158,"cut":false,"hidden":true,"merged":[[8,7,9,7],[8,8,9,8],[22,7,23,7],[22,8,23,8],[24,7,28,7],[24,8,28,8],[73,7,75,7],[73,8,75,8],[111,7,117,7],[111,8,119,8],[41,7,42,7],[41,8,42,8],[59,7,63,7],[59,8,63,8],[65,7,68,7],[65,8,68,8]]}
[null,"Dati per l'applicazione dei meccanismi di \nincentivazione RQTI (premi e penalità)\nTutti i valori imputati sono intesi essere valori \nconsuntivi ",null,null,null,null,null,null,null,null,null,"Errori compilazione colonna \"Valore Anno 2025\""]
["Notazione dato ","Descrizione dato","UdM",null,"Valore Anno 2025","Note compilazione",null,null,"Errore rilevato in colonna \"Valore Anno 2025\"",null,null,{"$f":"SUM(L3:L144)","v":0}]
["DEP","Il gestore gestisce il servizio di depurazione?","-",null,null,"Al fine del calcolo dei macro-indicatori è necessario indicare se il servizio è gestito",null,null,null,null,null,{"$f":"IF(I3=\"\",0,1)","v":0}]
["PRD","Popolazione residente servita","ab.",null,null,null,null,null,{"$f":"IF(E$3=\"SI\",IF(E4<=0,\"Il valore deve essere maggiore di zero\",\"\"),IF(E4<>0,\"Non risulta gestito il servizio di depurazione\",\"\"))","v":""},null,null,0]
["PFD","Popolazione fluttuante","ab.",null,null,null,null,null,{"$f":"IF(E5<0,\"Il valore deve essere maggiore o uguale a zero\",\"\")","v":""},null,null,0]
["ComD","Numero di comuni serviti (ComD)","n. ",null,null,null,null,null,{"$f":"IF(E3=\"SI\",IF(E6<=0,\"Il valore deve essere maggiore di zero\",\"\"),IF(E6<>0,\"Non risulta gestito il servizio di depurazione\",\"\"))","v":""},null,null,0]
["SUD","Superficie  (SUD)","kmq",null,null,null,null,null,{"$f":"IF(E3=\"SI\",IF(E7<=0,\"Il valore deve essere maggiore di zero\",\"\"),IF(E7<>0,\"Non risulta gestito il servizio di depurazione\",\"\"))","v":""},null,null,0]
["Cardep","Totale carico inquinante collettato in rete fognaria e depurato in impianti di trattamento di acque reflue urbane incluse vasche Imhoff ","A.E.",null,null,null,null,null,{"$f":"IF(AND('QT-Depurazione'!E3=\"SI\",E8<=0),\"Il valore deve essere maggiore di zero\",\"\")","v":""},null,null,0]
["Cardep,dnd","di cui di origine domestica o assimilabile","A.E.",null,null,"Come da definizioni TICSI",null,null,{"$f":"IF(OR(E9<>\"\",E10<>\"\"),IF(OR(E9<0,E10<0,E10+E9<>E8),\"Ogni di cui deve essere maggiore o uguale a zero e la somma deve essere pari a Car_dep\",\"\"),\"\")","v":""},null,null,0]
["Cardep,ind","di cui origine industriale","A.E.",null,null,"Come da definizioni TICSI",null,null,null,null,null,0]
["EEDEP","Consumo di energia elettrica per servizio di depurazione, al netto dell'energia autoprodotta","kWh",null,null,"Il dato include la quota parte relativa ai servizi comuni",null,null,{"$f":"IF(E11<0,\"Il valore deve essere maggiore o uguale a zero\",\"\")","v":""},null,null,0]
["EEDEP,ess","di cui per sezione di essiccamento fanghi","kWh",null,null,"(Dato facoltativo) ",null,null,{"$f":"IF(OR(E12<0,E12>E11),\"Il valore deve essere maggiore o uguale a zero e minore di EE_DEP\",\"\")","v":""},null,null,0]
[null,null,null,null,null,null,null,null,null,null,null,0]
["Valutazione prerequisiti e indicazione istanze presentate per M5",null,null,null,null,null,null,null,null,null,null,0]
["Aggcond,DEP","Numero agglomerati oggetto di condanna per il servizio di depurazione (causa C-565/10, C-85/13, C-668/19 e successive)","n.",null,null,"Quesito riferito al 31 dicembre di ogni anno (a-1), ai sensi dell'Art. 22 della RQTI",null,null,{"$f":"IF(E3=\"SI\",IF(OR(E15<0,E15=\"\",E15>E36),\"Il valore deve essere maggiore o uguale a zero e minore o oguale ad Agg_tot\",\"\"),IF(E15<>0,\"Non risulta gestito il servizio di depurazione\",\"\"))","v":""},null,null,0]
["AEcond,DEP","Abitanti Equivalenti complessivi degli agglomerati oggetto di condanna per il servizio di depurazione (causa C-565/10, C-85/13, C-668/19 e successive)","A.E.",null,null,"Quesito riferito al 31 dicembre di ogni anno (a-1), ai sensi dell'Art. 22 della RQTI",null,null,{"$f":"IF(E3=\"SI\",IF(OR(E16<0,E16=\"\"),\"Il valore deve essere maggiore o uguale a zero\",\"\"),IF(E16<>0,\"Non risulta gestito il servizio di depurazione\",\"\"))","v":""},null,null,0]
["Preq3M5","Relativamente al servizio di depurazione, il prerequisito sulla conformità alla normativa sulla gestione delle acque reflue è stato conseguito (prerequisito Preq3)?","-",null,{"$f":"IF(E3=\"SI\",IF(OR(E15>0,E16>0,AND(E15=\"\",E16=\"\")),\"NO\",\"SI\"),\"\")","v":""},"Vedere RQTI, Art.22 ",null,null,{"$f":"IF(AND(E3=\"SI\",E17=\"NO\"),\"Attenzione, prerequisito mancante\",\"\")","v":""},null,null,0]
["Preq4M5","Indicare l'esito della validazione ai fini della valutazione della disponibilità e affidabilità dei dati per M5 (prerequisito Preq4)","-",null,null,"Indicare la presenza o meno del prerequisito Preq4 (Art.23 RQTI) ",null,null,{"$f":"IF(AND(E3=\"SI\",OR(E18=\"Non adeguato\",E18=\"\")),\"Attenzione, prerequisito mancante\",\"\")","v":""},null,null,0]
["IstD,M5","Indicare se è stata formulata istanza per eventi imprevisti e imprevedibili che hanno comportato il mancato rispetto degli obiettivi per M5","-",null,null,"Istanza ex-post ai sensi del comma 5.4, del. 917/2017. Specificare motivazioni in relazione. ",null,null,null,null,null,0]
[null,null,null,null,null,null,null,null,null,null,null,0]
["Calcolo del macro-indicatore M5",null,null,null,null,null,null,null,null,null,null,0]
["∑SSout,imp","Quantità complessiva di fanghi di depurazione in uscita dagli impianti (in termini di sostanza secca)","t SS",null,null,"Espressa in tonnelate di sostanza secca. Si specifica che, ai fini del calcolo di M5, sono da considerare tutti gli impianti di depurazione presenti nel territorio di competenza del gestore. Non sono da considerare gli scambi interni al perimetro del gestore",null,null,{"$f":"IF(E3=\"SI\",IF(OR(E22<=0,E22=\"\"),\"Il valore deve essere maggiore di zero\",\"\"),IF(E22<>0,\"Non risulta gestito il servizio di depurazione\",\"\"))","v":""},null,null,0]
["∑SSdisc,imp","di cui quantità complessiva di fanghi di depurazione destinati allo smaltimento finale in discarica","t SS",null,null,"Lo  smaltimento in discarica si riferisce al destino finale dei fanghi, a valle di eventuali trattamenti biologici e/o fisico-chimici",null,null,{"$f":"IF(OR(E23<>\"\",E24<>\"\"),IF(OR(E23<0,E24<0,E24+E23<>E22),\"Ogni di cui deve essere maggiore o uguale a zero e la somma deve essere pari a ∑SS_out,imp\",\"\"),\"\")","v":""},null,null,0]
["∑SSrec,imp","di cui quantità complessiva di fanghi di depurazione destinati al riutilizzo/recupero","t SS",null,null,null,null,null,null,null,null,0]
["∑SSrec,imp-a","di cui spandimento diretto in agricoltura","t SS",null,null,null,null,null,{"$f":"IF(OR(E25<>\"\",E26<>\"\",E27<>\"\",E28<>\"\",E29<>\"\"),IF(OR(E25<0,E26<0,E27<0,E28<0,E29<0,E29+E27+E28+E26+E25<>E24),\"Ogni di cui deve essere maggiore o uguale a zero e la somma deve essere pari a ∑SSrec,imp\",\"\"),\"\")","v":""},null,null,0]
["∑SSrec,imp-c","di cui per produzione di compost","t SS",null,null,null,null,null,null,null,null,0]
["∑SSrec,imp-t","di cui in termovalorizzatori","t SS",null,null,null,null,null,null,null,null,0]
["∑SSrec,imp-td","di cui mono-incenerito in impianti dedicati del medesimo soggetto","t SS",null,null,"Impianti dedicati al solo incenerimento dei fanghi di depurazione",null,null,null,null,null,0]
["∑SSrec,imp-al","di cui altro","t SS",null,null,"Fornire dettagli in relazione",null,null,null,null,null,0]
["∑MFtq,out,imp","Quantità complessiva di fanghi di depurazione tal quali in uscita dagli impianti ","t",null,null,null,null,null,{"$f":"IF(E3=\"SI\",IF(OR(E30=\"\",E30<=0,E30<E22),\"Il valore deve essere maggiore di ∑SS_out,imp\",\"\"),IF(E30<>0,\"Non risulta gestito il servizio di depurazione\",\"\"))","v":""},null,null,0]
["∑MFtq,disc,imp","Quantità complessiva di fanghi di depurazione tal quali destinati allo smaltimento finale in discarica","t",null,null,"Lo  smaltimento in discarica si riferisce al destino finale dei fanghi, a valle di eventuali trattamenti biologici e/o fisico-chimici",null,null,{"$f":"IF(AND(E23>0,E31=0),\"∑MFtq,disc,imp non può essere zero\",IF(OR(E31<0,E31>E30),\"Il valore deve essere maggiore o uguale a zero e minore o uguale di ∑MFtq,out,imp\",\"\"))","v":""},null,null,0]
["%SStot","Percentuale di sostanza secca mediamente contenuta nel quantitativo di fanghi complessivamente prodotto","%",null,{"$f":"IF(AND(E22>0,E30>0,E22<=E30),E22/E30,\"\")","v":""},null,null,null,{"$f":"IF(AND(E3=\"SI\",E32=\"\"),\"Indicatore non calcolabile\",\"\")","v":""},null,null,0]
["M5","Smaltimento fanghi in discarica","%",null,{"$f":"IF(AND(E22>0,E23>=0,E23<>\"\",E23<=E22),E23/E22,\"\")","v":""},"Vedere RQTI al comma 18.4 ",null,null,{"$f":"IF(AND(E3=\"SI\",E33=\"\"),\"Macro-indicatore non calcolabile\",\"\")","v":""},null,null,0]
["M5CL","Smaltimento fanghi in discarica - Classe di appartenenza","-",null,{"$f":"IF(E33=\"\",\"\",IF(E33>0.3,\"E\",IF(AND(E33>0.2,E33<=0.3),\"D\",IF(AND(E33>0.1,E33<=0.2),\"C\",IF(AND(E33>0.03,E33<=0.1),\"B\",\"A\")))))","v":""},"Vedere RQTI al comma 18.3, come modificato dall'art. 1 della delibera 637/2023/R/idr",null,null,null,null,null,0]
["OB5","Smaltimento fanghi in discarica  - Obiettivo","-",null,{"$f":"IF(E34=\"A\",\"Mantenimento\",IF(E34=\"B\",\"-1% di MF tq,disc\",IF(E34=\"C\",\"-2% di MF tq,disc\",IF(E34=\"D\",\"-3% di MF tq,disc\",IF(E34=\"E\",\"-5% di MF tq,disc\",\"\")))))","v":""},"Vedere RQTI al comma 18.3, come modificato dall'art. 1 della delibera 637/2023/R/idr",null,null,null,null,null,0]
["Aggtot","Numero agglomerati individuati nel territorio gestito","n.",null,null,null,null,null,{"$f":"IF(E36<0,\"Il valore deve essere maggiore o uguale a zero\",\"\")","v":""},null,null,0]
["Agg2000","di cui superiori ai 2.000 A.E.","n.",null,null,null,null,null,{"$f":"IF(OR(E37<0,E37>E36),\"Il valore deve essere maggiore o uguale a zero e minore di Agg_tot\",\"\")","v":""},null,null,0]
["Agginfr","Numero agglomerati inclusi nelle procedure di infrazione non ancora giunte a sentenza della Corte di Giustizia Europea ","n.",null,null,"Vedere RQTI al comma 18.7. Considerare la procedura 2017/2181 ed eventuali successive. Quesito riferito al 31 dicembre di ciascun anno (a)",null,null,{"$f":"IF(E3=\"SI\",IF(OR(E38<0,E38>E36,E38=\"\"),\"Il valore deve essere maggiore o uguale a zero e minore o uguale a Agg_tot\",\"\"),IF(E38<>0,\"Non risulta gestito il servizio di depurazione\",\"\"))","v":""},null,null,0]
["AEinfr","Abitanti Equivalenti complessivi negli agglomerati inclusi nelle procedure di infrazione non ancora giunte a sentenza della Corte di Giustizia Europea","A.E.",null,null,"Vedere RQTI al comma 18.7. Considerare la procedura 2017/2181 ed eventuali successive. Quesito riferito al 31 dicembre di ciascun anno (a)",null,null,{"$f":"IF(AND(E38>0,OR(E39=\"\",E39<=0)),\"Il valore deve essere maggiore di zero\",IF(AND(E39<>0,OR(E38=0,E38=\"\")),\"Valore non congruente con Agg_infr\",\"\"))","v":""},null,null,0]
["G5.1","Assenza di agglomerati inclusi nelle procedure di infrazione non ancora giunte a sentenza della Corte di Giustizia Europea","A.E.",null,{"$f":"IF(OR(AND(E38>0,E39>0),AND(E39>0,E38=0)),E39,IF(AND(E38=0,E38<>\"\",E39=0),E39,IF(AND(E39=0,E39<>\"\",E38=0),E39,\"\")))","v":""},"Vedere RQTI al comma 18.7, come modificato dall'art. 10 della delibera 639/2021/R/idr ",null,null,null,null,null,0]
["UtTDEP","Numero di utenti finali serviti dal gestore per il servizio di depurazione (esclusi utenti indiretti)","n.",null,null,null,null,null,{"$f":"IF(E3=\"SI\",IF(OR(E41<=0,E41=\"\"),\"Il valore deve essere maggiore di zero\",\"\"),IF(E41<>0,\"Non risulta gestito il servizio di depurazione\",\"\"))","v":""},null,null,0]
["UtTDEP,dnd","di cui di origine domestica o assimilabile","n.",null,null,"Come da definizioni TICSI",null,null,{"$f":"IF(OR(E42<>\"\",E43<>\"\"),IF(OR(E42<0,E43<0,E43+E42<>E41),\"Ogni di cui deve essere maggiore o uguale a zero e la somma deve essere pari a UtT_DEP\",\"\"),\"\")","v":""},null,null,0]
["UtTDEP,ind","di cui di origine industriale","n.",null,null,"Come da definizioni TICSI",null,null,null,null,null,0]
["UtTcond,DEP","Numero di utenze condominiali servite dal gestore per il servizio di depurazione","n.",null,null,null,null,null,{"$f":"IF(AND(E3=\"SI\",OR(E44<0,E44>E41,E44=\"\")),\"Il valore deve essere maggiore o uguale a zero e minore o uguale a UtT_DEP\",\"\")","v":""},null,null,0]
["UtTindr,DEP","Numero di utenti indiretti sottesi alle utenze condominiali servite dal gestore per il servizio di depurazione","n.",null,null,null,null,null,{"$f":"IF(E45<E44,\"Il valore deve essere maggiore o uguale di UtT_cond,DEP\",\"\")","v":""},null,null,0]
["Utot,DEP","Numero di utenti finali serviti dal gestore per il servizio di depurazione (compresi utenti indiretti)","n.",null,{"$f":"IF((E41-E44+E45)<0,\"\",E41-E44+E45)","v":0},null,null,null,null,null,null,0]
["GestSII","Il gestore gestisce in maniera integrata i servizi di distribuzione per l'acquedotto, di fognatura e di depurazione in tutti i Comuni serviti?","-",null,null,"Vedere RQTI al comma 18.8 ",null,null,null,null,null,0]
["NCom,SII","Se \"prevalentemente\", in quanti Comuni il servizio è integrato?","n.",null,null,null,null,null,{"$f":"IF(AND(E47<>\"Prevalentemente\",OR(E48>0,E48<0)),\"Il numero di Comuni va fornito se la risposta a Gest_SII è 'Prevalentemente'\",IF(AND(E47=\"Prevalentemente\",E48<=0),\"Il valore fornito deve essere maggiore di zero\",\"\"))","v":""},null,null,0]
[null,"Se  \"prevalentemente\", indicare il numero di utenti finali serviti dal gestore (compresi utenti indiretti) nei Comuni in cui vengono forniti entrambi i servizi seguenti:","-",null,null,null,null,null,null,null,null,0]
["Utot,dist,SII","      - distribuzione di acquedotto","n.",null,null,null,null,null,{"$f":"IF(AND(E47<>\"Prevalentemente\",OR(E50>0,E50<0)),\"Il numero di utenti va fornito se la risposta a Gest_SII è 'Prevalentemente'\",IF(AND(E47=\"Prevalentemente\",E50<=0),\"Il valore fornito deve essere maggiore di zero\",\"\"))","v":""},null,null,0]
["Utot,DEP,SII","      - depurazione","n.",null,null,null,null,null,{"$f":"IF(AND(E47<>\"Prevalentemente\",OR(E51>0,E51<0)),\"Il numero di utenti va fornito se la risposta a Gest_SII è 'Prevalentemente'\",IF(AND(E47=\"Prevalentemente\",E51<=0),\"Il valore fornito deve essere maggiore di zero\",\"\"))","v":""},null,null,0]
["G5.2","Copertura del servizio di depurazione rispetto all'utenza servita da acquedotto","%",null,{"$f":"IF(E47=\"NO\",0,IF(AND(E47=\"SI\",'QT-Acquedotto'!E87>0,E46>0),E46/'QT-Acquedotto'!E87,IF(AND(E47=\"Prevalentemente\",E50>0,E51>0),E51/E50,0)))","v":0},"Vedere RQTI al comma 18.7 ",null,null,null,null,null,0]
["ENDEP","Consumo energetico negli impianti di depurazione ","tep",null,null,"Da compilare con riferimento a tutte le fonti di energia, non solo quella elettrica",null,null,{"$f":"IF(E53<0,\"Il valore deve essere maggiore o uguale a zero\",\"\")","v":""},null,null,0]
["ENDEP,ess","di cui per sezione di essiccamento fanghi","tep",null,null,null,null,null,{"$f":"IF(OR(E54<0,E54>E53),\"Il valore deve essere maggiore o uguale a zero e minore di EN_dep\",\"\")","v":""},null,null,0]
["ENDEP,au","Energia autoprodotta da cogenerazione nella fase di digestione anaerobica dei fanghi","tep",null,null,"Da compilare con riferimento a tutte le fonti di energia, non solo quella elettrica",null,null,{"$f":"IF(E55<0,\"Il valore deve essere maggiore o uguale a zero\",\"\")","v":""},null,null,0]
["G5.3","Impronta di carbonio del servizio di depurazione","t CO2,eq",null,null,"(Dato facoltativo) \nVedere norma UNI EN ISO 14064-1",null,null,"",null,null,0]
["EEprel","Prelievo di energia elettrica da reti pubbliche fatturato per il servizio di depurazione","MWh elettrici",null,null,null,null,null,"",null,null,0]
["Gasprel","Prelievo da reti pubbliche di gas naturale fatturato per i consumi dell’impianto di depurazione","GJ",null,null,null,null,null,"",null,null,0]
["EEprod","Energia elettrica prodotta nell’area degli impianti di depurazione ","MWh elettrici",null,null,null,null,null,"",null,null,0]
["EEprod_FER","di cui da fonti rinnovabili escluso il biogas prodotto nei medesimi impianti","MWh elettrici",null,null,null,null,null,{"$f":"IF(OR(E60<>\"\",E61<>\"\",E62<>\"\",E63<>\"\",E64<>\"\"),IF(OR(E60<0,E61<0,E62<0,E63<0,E64<0,E60+E61+E62+E63+E64<>E59),\"Ogni di cui deve essere maggiore o uguale a zero e la somma deve essere pari a EEprod\",\"\"),\"\")","v":""},null,null,0]
["EEprod_BIO","di cui da biogas prodotto nei medesimi impianti","MWh elettrici",null,null,null,null,null,null,null,null,0]
["EEprod_pir","di cui da processi di pirolisi con impiego di fanghi di depurazione","MWh elettrici",null,null,null,null,null,null,null,null,0]
["EEprod_inc","di cui da incenerimento con impiego di fanghi di depurazione","MWh elettrici",null,null,null,null,null,null,null,null,0]
["EEprod_al","di cui altro","MWh elettrici",null,null,null,null,null,null,null,null,0]
["ETprod","Energia termica prodotta nell’area degli impianti di depurazione","MWh termici",null,null,"Si tratta dell'energia prodotta e avviata a operazioni di recupero energetico",null,null,{"$f":"IF(E65<0,\"Il valore deve essere maggiore o uguale a zero\",\"\")","v":""},null,null,0]
["ETprod_BIO","di cui da biogas prodotto nei medesimi impianti","MWh termici",null,null,null,null,null,{"$f":"IF(OR(E66<>\"\",E67<>\"\",E68<>\"\",E69<>\"\"),IF(OR(E66<0,E67<0,E68<0,E69<0,E66+E67+E68+E69<>E65),\"Ogni di cui deve essere maggiore o uguale a zero e la somma deve essere pari a ETprod\",\"\"),\"\")","v":""},null,null,0]
["ETprod_pir","di cui da processi di pirolisi con impiego di fanghi di depurazione","MWh termici",null,null,null,null,null,null,null,null,{"$f":"IF(I67=\"\",0,1)","v":0}]
["ETprod_inc","di cui da incenerimento con impiego di fanghi di depurazione","MWh termici",null,null,null,null,null,null,null,null,0]
["ETprod_al","di cui altro","MWh termici",null,null,null,null,null,null,null,null,0]
["Gasprod","Biometano prodotto negli impianti di depurazione e avviato a operazioni di recupero energetico","GJ",null,null,"Al netto del biometano utilizzato per la produzione di energia elettrica e termica e già contabilizzato in EEprod o ETprod",null,null,{"$f":"IF(E70<0,\"Il valore deve essere maggiore o uguale a zero\",\"\")","v":""},null,null,0]
["Gasprod_imm","di cui mediante immissione in una rete di gas naturale","GJ",null,null,null,null,null,{"$f":"IF(OR(E71<0,E71>E70),\"Il valore deve essere maggiore o uguale a zero e minore di Gas_prod\",\"\")","v":""},null,null,0]
["G5.4","Indicatore di neutralità energetica degli impianti di depurazione","-",null,{"$f":"IF(E3=\"SI\",IF(AND(E59=0,E65=0,E70=0),100,MIN(100,((2.42*E57+0.292*E58)/(2.42*E59+1.5*E65+0.292*E70)))),\"\")","v":""},"Vedere RQTI al comma 18.14, primo bullet, come rappresentato nell'art. 1 della delibera 637/2023/R/idr",null,null,null,null,null,0]
["Mrec","Quantitativo di materia recuperato dai processi di depurazione e valorizzato sul mercato ","g",null,null,null,null,null,{"$f":"IF(E73<0,\"Il valore deve essere maggiore o uguale a zero\",\"\")","v":""},null,null,0]
["Mrec_N","di cui azoto","g",null,null,null,null,null,{"$f":"IF(OR(E74<>\"\",E75<>\"\",E76<>\"\"),IF(OR(E74<0,E75<0,E76<0,E74+E75+E76<>E73),\"Ogni di cui deve essere maggiore o uguale a zero e la somma deve essere pari a Mrec\",\"\"),\"\")","v":""},null,null,0]
["Mrec_P","di cui fosforo","g",null,null,null,null,null,null,null,null,0]
["Mrec_al","di cui altri elementi/composti","g",null,null,"Escludere sabbie e grigliati. Specificare in relazione",null,null,null,null,null,0]
["WDEP","Volume totale reflui depurati in uscita dalla depurazione","mc",null,null,null,null,null,{"$f":"IF(E3=\"SI\",IF(OR(E77<=0,E77=\"\"),\"Il valore deve essere maggiore di zero\",\"\"),IF(E77<>0,\"Non risulta gestito il servizio di depurazione\",\"\"))","v":""},null,null,0]
["WDEP_mat","di cui volume totale in uscita dagli impianti di depurazione nei quali sono attivi processi di recupero dei materiali","mc",null,null,null,null,null,{"$f":"IF(E78<0,\"Il valore deve essere maggiore o uguale a zero\",\"\")","v":""},null,null,0]
["G5.5","Recupero di materia dagli impianti di depurazione","g/mc",null,{"$f":"IF(E3=\"SI\",IF(OR(AND(E73=\"\",E78=\"\"),OR(E73=0,E78=0)),\"\",E73/E78),\"\")","v":""},"Vedere RQTI al comma 18.14, secondo bullet, come rappresentato nell'art. 1 della delibera 637/2023/R/idr",null,null,null,null,null,0]
[]
["Valutazione prerequisiti e indicazione istanze presentate per M6",null,null,null,null,null,null,null,null,null,null,{"$f":"IF(I81=\"\",0,1)","v":0}]
["Aggcond,DEP","Numero agglomerati oggetto di condanna per il servizio di depurazione (causa C-565/10, C-85/13, C-668/19 e successive)","n.",null,{"$f":"E15","v":0},"Quesito riferito al 31 dicembre di ogni anno (a-1), ai sensi dell'Art. 22 della RQTI",null,null,null,null,null,0]
["AEcond,DEP","Abitanti Equivalenti complessivi degli agglomerati oggetto di condanna per il servizio di depurazione (causa C-565/10, C-85/13, C-668/19 e successive)","A.E.",null,{"$f":"E16","v":0},"Quesito riferito al 31 dicembre di ogni anno (a-1), ai sensi dell'Art. 22 della RQTI",null,null,null,null,null,0]
["Preq3M6","Relativamente al servizio di depurazione, il prerequisito sulla conformità alla normativa sulla gestione delle acque reflue è stato conseguito (prerequisito Preq3)?","-",null,{"$f":"IF(E3=\"SI\",IF(OR(E82>0,E83>0,AND(E82=\"\",E83=\"\")),\"NO\",\"SI\"),\"\")","v":""},"Vedere RQTI, Art.22 ",null,null,{"$f":"IF(AND(E$3=\"SI\",E84=\"NO\"),\"Attenzione, prerequisito mancante\",\"\")","v":""},null,null,0]
["Preq4M6","Indicare l'esito della validazione ai fini della valutazione della disponibilità e affidabilità dei dati per M6 (prerequisito Preq4)","-",null,null,"Indicare la presenza o meno del prerequisito Preq4 (Art.23 RQTI) ",null,null,{"$f":"IF(AND(E3=\"SI\",OR(E85=\"Non adeguato\",E85=\"\")),\"Attenzione, prerequisito mancante\",\"\")","v":""},null,null,0]
["IstD,M6","Indicare se è stata formulata istanza per eventi imprevisti e imprevedibili che hanno comportato il mancato rispetto degli obiettivi per M6 ","-",null,null,"Istanza ex-post ai sensi del comma 5.4, del. 917/2017. Specificare motivazioni in relazione. ",null,null,null,null,null,0]
["QD1","Indicare se è rispettato il numero minimo di controlli per i parametri fosforo e forme azotate per applicazione premialità RQTI","-",null,null,"Ai sensi del comma 19.3 e del comma 19.10",null,null,null,null,null,0]
["QD2","Indicare se è rispettato il numero minimo di campioni per i parametri di cui alle tabelle 1 e 2 in base alla potenzialità dell'impianto di trattamento per applicazione premialità RQTI","-",null,null,"Ai sensi del comma 19.10",null,null,null,null,null,0]
["DerM6","Indicare se uno o più impianti di depurazione soggetti a M6 è stato autorizzato a derogare ai limiti allo scarico nel corso dell'anno (a)","-",null,null,"Vedere RQTI, comma 19.10 ",null,null,{"$f":"IF(AND(E3=\"SI\",E89=\"SI\"),\"Attenzione, verificare l'adeguatezza della frequenza dei campionamenti\",\"\")","v":""},null,null,0]
[null,null,null,null,null,null,null,null,null,null,null,0]
["Calcolo del macro-indicatore M6",null,null,null,null,null,null,null,null,null,null,0]
["Ndep","Numero complessivo di impianti di depurazione (incluse vasche Imhoff) ","n.",null,null,"Si intendono tutti gli impianti di depurazione gestiti (ivi inclusi quelli non considerati per il calcolo di M6)",null,null,{"$f":"IF(E3=\"SI\",IF(OR(E92<=0,E92=\"\"),\"Il valore deve essere maggiore di zero\",\"\"),IF(E92<>0,\"Non risulta gestito il servizio di depurazione\",\"\"))","v":""},null,null,0]
["Ndep2000","di cui di potenzialità pari o superiore a 2.000 AE","n.",null,null,null,null,null,{"$f":"IF(OR(E93<0,E93>E92),\"Il valore deve essere maggiore o uguale a zero e minore o uguale a Ndep\",\"\")","v":""},null,null,0]
["Ndepcost","di cui inferiori ai 10.000 AE se recapitanti in acque costiere","n.",null,null,null,null,null,{"$f":"IF(OR(E94<0,E94>E93),\"Il valore deve essere maggiore o uguale a zero e minore o uguale a Ndep_2000\",\"\")","v":""},null,null,0]
["N*","Numero complessivo di impianti di depurazione soggetti a M6","n.",null,{"$f":"IF(E93-E94<0,\"\",E93-E94)","v":0},"N.B. la differenza tra Ndep2000 ed Ndepcost rappresenta l'insieme degli impianti considerati per il calcolo di M6",null,null,null,null,null,0]
["N*AS","di cui recapitanti in area sensibile o in bacino scolante in area sensibile","n.",null,null,null,null,null,{"$f":"IF(OR(E96<0,E96>E95),\"Il valore deve essere maggiore o uguale a zero e minore o uguale a N*\",\"\")","v":""},null,null,0]
["N*ANS","di cui recapitanti in area non sensibile ","n.",null,null,null,null,null,{"$f":"IF(OR(E97<0,E97>E95),\"Il valore deve essere maggiore o uguale a zero e minore o uguale a N*\",\"\")","v":""},null,null,0]
["N*","Numero complessivo di impianti di depurazione soggetti a M6","n.",null,{"$f":"E95","v":0}]
["N*Tab1","di cui tenuti al rispetto della Tabella 1 dell'Allegato 5 alla Parte Terza del D.Lgs 152/2006 ","n.",null,null,"(o eventuali limiti più restrittivi)",null,null,{"$f":"IF(OR(E99<0,E99>E95),\"Il valore deve essere maggiore o uguale a zero e minore o uguale a N*\",\"\")","v":""},null,null,{"$f":"IF(I99=\"\",0,1)","v":0}]
["N*Tab2","di cui tenuti al rispetto della Tabella 2 dell'Allegato 5 alla Parte Terza del D.Lgs 152/2006 (aree sensibili)","n.",null,null,"(o eventuali limiti più restrittivi). Si intendono gli impianti di acque reflue urbane recapitanti in aree sensibili o in bacini drenanti nelle aree sensibili, provenienti da agglomerati con carico generato di almeno 10.000 A.E.",null,null,{"$f":"IF(OR(E100<0,E100>E95),\"Il valore deve essere maggiore o uguale a zero e minore o uguale a N*\",\"\")","v":""},null,null,0]
["N*Tab4","di cui tenuti al rispetto della Tabella 4 dell'Allegato 5 alla Parte Terza del D.Lgs 152/2006 (scarico su suolo) ","n.",null,null,"(o eventuali limiti più restrittivi). Specificare in relazione per quali dei 5 parametri: SST, BOD5, COD, Ntot e Ptot",null,null,{"$f":"IF(OR(E101<0,E101>E95),\"Il valore deve essere maggiore o uguale a zero e minore o uguale a N*\",\"\")","v":""},null,null,0]
["N*Tab3","di cui tenuti al rispetto della Tabella 3 dell'Allegato 5 alla Parte Terza del D.Lgs 152/2006 (reflui industriali) ","n.",null,null,"(o eventuali limiti più restrittivi)",null,null,{"$f":"IF(OR(E102<0,E102>E95),\"Il valore deve essere maggiore o uguale a zero e minore o uguale a N*\",\"\")","v":""},null,null,0]
["N*Tab3_N-P_RQTI","di cui da valutare con riferimento alla Tabella 3 dell'Allegato 5 alla Parte Terza del D.Lgs 152/2006 (per forme azotate e Ptot) per meccanismo incentivante RQTI","n.",null,null,"(o eventuali limiti più restrittivi). Ai sensi della delibera 637/2023/R/idr al comma 19.3 lettera a). Si intendono gli impianti di acque reflue urbane recapitanti in aree non sensibili (include sia gli impianti già tenuti per legge sia quelli aggiunti ai fini dell'applicazione delle premialità RQTI)",null,null,null,null,null,{"$f":"IF(I103=\"\",0,1)","v":0}]
["N*Tab3_N-P_152","di cui già tenuti per legge al rispetto della Tabella 3 (reflui industriali) per le forme azotate e/o Ptot ","n.",null,null,"(o eventuali limiti più restrittivi)",null,null,{"$f":"IF(OR(E104<0,E104>E102,E104>E103),\"Il valore deve essere maggiore o uguale a zero e minore o uguale a N*Tab3 e a N*Tab3_N-P_RQTI\",\"\")","v":""},null,null,{"$f":"IF(I104=\"\",0,1)","v":0}]
["N*Tab2_N-P_RQTI","di cui fino a 10.000 A.E. da valutare con riferimento alla Tabella 2 dell'Allegato 5 alla Parte Terza del D.Lgs 152/2006 per meccanismo incentivante RQTI","n.",null,null,"Si intendono gli impianti di acque reflue urbane recapitanti in aree sensibili o in bacini drenanti nelle aree sensibili, provenienti da agglomerati con carico generato inferiore a 10.000 A.E."]
["∑Cimp,DEP-tot","Numero di campioni eseguiti sulle acque reflue scaricate dagli impianti di depurazione con riferimento ai parametri di cui al co. 19.3, lett. a)","n.",null,null,"Si considerano solo gli impianti di potenzialità ≥ 2.000 A.E. (o 10.000 A.E. se recapitanti in acque costiere).\nConteggiare i campioni con determinazione di almeno uno dei parametri seguenti: BOD5,COD,SST (tab. 1, 3 o 4), Ptot (tab. 2, 3 o 4), Ntot (tab. 2 o 4), NH4,N-NO2,N-NO3 (tab.3). \nAi sensi del co. 19.10, includere anche i campioni virtuali (che, per definizione, sono considerati superare i limiti di legge) necessari a garantire la frequenza di campionamento, nonché i campioni eseguiti dalle Autorità di controllo ambientale caratterizzati da superamento dei limiti, ai sensi del co. 19.5",null,null,{"$f":"IF(E106<0,\"Il valore deve essere maggiore o uguale a zero\",\"\")","v":""},null,null,0]
["∑Cimp,DEP-N-P2","di cui eseguiti con riferimento ai parametri Ptot e Ntot per gli impianti tra 2.000 e 10.000 AE recapitanti in aree sensibili","n.",null,null,"Inclusi gli eventuali campioni con determinazione anche dei parametri BOD5,COD,SST",null,null,{"$f":"IF(OR(E107<0,E107>E106),\"Il valore deve essere maggiore o uguale a zero e minore o uguale a ∑Cimp,DEP-tot\",\"\")","v":""},null,null,0]
["∑Cimp,DEP-N-P3","di cui eseguiti con riferimento ai parametri Ptot e forme azotate di cui alla Tabella 3, per gli impianti recapitanti in aree diverse da quelle sensibili","n.",null,null,"Inclusi gli eventuali campioni con determinazione anche dei parametri BOD5,COD,SST",null,null,{"$f":"IF(OR(E108<0,E108>E106),\"Il valore deve essere maggiore o uguale a zero e minore o uguale a ∑Cimp,DEP-tot\",\"\")","v":""},null,null,0]
["∑Cimp,DEP-AC","di cui eseguiti dalle Autorità di controllo ambientale caratterizzati da superamento dei limiti","n.",null,null,"Se non già inclusi tra i campioni con superamento svolti dal gestore, conteggiare i campioni con superamento dei limiti per almeno uno dei parametri seguenti: BOD5,COD,SST (tab. 1, 3 o 4), Ptot (tab. 2, 3 o 4), Ntot (tab. 2 o 4), NH4,N-NO2,N-NO3 (tab.3)",null,null,{"$f":"IF(OR(E109<0,E109>E106),\"Il valore deve essere maggiore o uguale a zero e minore o uguale a ∑Cimp,DEP-tot\",\"\")","v":""},null,null,0]
["∑Cimp,DEP-virt","di cui campioni virtuali (caratterizzati da superamento dei limiti) per il mantenimento della frequenza di campionamento in periodi di deroga","n.",null,null,"Vedere comma 19.10 della RQTI",null,null,{"$f":"IF(OR(E110<0,E110>E106),\"Il valore deve essere maggiore o uguale a zero e minore o uguale a ∑Cimp,DEP-tot\",IF(AND(E89<>\"SI\",E110>0),\"Attenzione: DerM6 è vuota\",\"\"))","v":""},null,null,0]
["∑Cimp,DEP-cnc","Numero di campioni eseguiti sulle acque reflue scaricate dagli impianti di depurazione con superamento di almeno un limite per i parametri di cui alle Tabelle 1 o 2 o 3 (forme azotate) ","n.",null,null,"Vedere RQTI al comma 19.3. \nSi considerano solo gli impianti di potenzialità ≥ 2.000 A.E. (o 10.000 A.E. se recapitanti in acque costiere).\nConteggiare i campioni con superamento dei limiti di almeno uno dei parametri seguenti: BOD5,COD,SST (tab. 1, 3 o 4), Ptot (tab. 2, 3 o 4), Ntot (tab. 2 o 4), NH4,N-NO2,N-NO3 (tab.3). \nAi sensi del co. 19.10, includere anche i campioni virtuali (che, per definizione, sono considerati superare i limiti di legge) necessari a garantire la frequenza di campionamento, nonché i campioni eseguiti dalle Autorità di controllo ambientale caratterizzati da superamento dei limiti, ai sensi del co. 19.5.\nI superamenti vanno valutati secondo le linee guida SNPA 34/2021, facendo riferimento alla regola 3.",null,null,{"$f":"IF(OR(E111<0,AND(E95>0,E111=\"\")),\"Il valore deve essere maggiore o uguale a zero\",IF(E111>E106,\"Il valore deve essere maggiore o uguale a zero e minore o uguale a ∑Cimp,DEP-tot\",\"\"))","v":""},null,null,0]
["∑Cimp,DEP-cnc,T1","di cui con superamento di almeno un limite solo della Tabella 1 ","n.",null,null,"Considerare la Tabella 1 o eventuali limiti più restrittivi. \nConteggiare tutti gli eventuali superamenti, inclusi quelli ammessi ai sensi dell'Allegato 5 alla Parte III del d.lgs. 152/2006. ",null,{"$f":"IF(OR(D112<>\"\",D113<>\"\",D114<>\"\",D115<>\"\",D116<>\"\",D117<>\"\",D118<>\"\"),IF(OR(D112<0,D113<0,D114<0,D115<0,D116<0,D117<0,D118<0,D118+D117+D116+D115+D114+D113+D112<>D111),\"Ogni di cui deve essere maggiore o uguale a zero e la somma deve essere pari a ∑Cimp,DEP-cnc\",\"\"),\"\")","v":""},{"$f":"IF(OR(E112<>\"\",E113<>\"\",E114<>\"\",E115<>\"\",E116<>\"\",E117<>\"\",E118<>\"\",E119<>\"\",E120<>\"\"),IF(OR(E112<0,E113<0,E114<0,E115<0,E116<0,E117<0,E118<0,E119<0,E120<0,E120+E119+E118+E117+E116+E115+E114+E113+E112<>E111),\"Ogni di cui deve essere maggiore o uguale a zero e la somma deve essere pari a ∑Cimp,DEP-cnc\",\"\"),\"\")","v":""},null,null,0]
["∑Cimp,DEP-cnc,T2","di cui con superamento di almeno un limite solo della Tabella 2","n.",null,null,"Conteggiare tutti gli eventuali superamenti puntuali dei limiti previsti dalla tabella 2 per i parametri Ntot e/o Ptot (o eventuali limiti più restrittivi). Per gli impianti tra 2.000 e 10.000 AE recapitanti in aree sensibili considerare i limiti 15 e 2 mg/L rispettivamente. NB: non è la media annua",null,null,null,null,null,0]
["∑Cimp,DEP-cnc,T1-2","di cui con superamento di almeno un limite in entrambe le Tabelle 1 e 2","n.",null,null,"Considerare le Tabelle 1 e 2 o eventuali limiti più restrittivi. \nConteggiare tutti gli eventuali superamenti, inclusi quelli ammessi dall'Allegato 5 alla Parte III del d.lgs. 152/2006 e tutti i superamenti puntuali dei limiti previsti dalla tabella 2 per i parametri Ntot e/o Ptot. Per gli impianti tra 2.000 e 10.000 AE recapitanti in aree sensibili considerare i limiti 15 e 2 mg/L rispettivamente ",null,null,null,null,null,0]
["∑Cimp,DEP-cnc,T4","di cui con superamento di almeno un limite della Tabella 4 ","n.",null,null,"Considerare la Tabella 4 o eventuali limiti più restrittivi.",null,null,null,null,null,0]
["∑Cimp,DEP-cnc,T1-3","di cui con superamento di almeno un limite in entrambe le Tabelle 1 e 3 ","n.",null,null,"Considerare le Tabelle 1 e 3 o eventuali limiti più restrittivi. \nPer i parametri forme azotate e/o Ptot, considerare i limiti di cui alla Tabella 3-quarta colonna dall'Allegato 5 alla Parte III del d.lgs. 152/2006",null,null,null,null,null,0]
["∑Cimp,DEP-cnc,T2-3","di cui con superamento di almeno un limite in entrambe le Tabelle 2 e 3","n.",null,null,"Considerare le Tabelle 2 e 3 o eventuali limiti più restrittivi. \nPer i parametri Ntot e/o Ptot considerare i limiti di tabella 2. Per gli impianti tra 2.000 e 10.000 AE recapitanti in aree sensibili considerare i limiti 15 e 2 mg/L rispettivamente",null,null,null,null,null,0]
["∑Cimp,DEP-cnc,T3","di cui con superamento di almeno un limite solo della Tabella 3 ","n.",null,null,"Considerare la Tabella 3 o eventuali limiti più restrittivi. \nPer i parametri forme azotate e/o Ptot, considerare i limiti di cui alla Tabella 3-quarta colonna dall'Allegato 5 alla Parte III del d.lgs. 152/2006 ",null,null,null,null,null,0]
["∑Cimp,DEP-AC","di cui eseguiti dalle Autorità di controllo ambientale caratterizzati da superamento dei limiti","n.",null,{"$f":"E109","v":0},"inclusi in ∑Cimp,DEP-cnc ai sensi del co. 19.5 della RQTI. Si intendono i campioni puntuali e non la media annua",null,null,null,null,null,0]
["∑Cimp,DEP-virt","di cui campioni virtuali (caratterizzari da superamento dei limiti) per il mantenimento della frequenza di campionamento in periodi di deroga","n.",null,{"$f":"E110","v":0},"inclusi in ∑Cimp,DEP-cnc ai sensi del co. 19.10 della RQTI",null,null,null,null,null,0]
["∑CDEP-cnc_N-P_riuso","Numero di campioni con superamento di almeno un limite per i parametri Ptot e/o forme azotate che non sono stati conteggiati al numeratore di M6 in virtù di deroghe concesse per il periodo irriguo, in caso di riutilizzo dei reflui depurati a fini agricoli","n.",null,null,"si tratta dei campioni in cui, per i parametri citati, è stato superato il limite di legge, ma non quello posto dalla deroga, nei soli casi di effettivo riutilizzo a fini irrigui. Viceversa, laddove risultasse superato anche il limite innalzato dalla deroga, il campione andrebbe conteggiato in ∑Cimp,DEP-cnc",null,null,{"$f":"IF(E121<0,\"Il valore deve essere maggiore o uguale a zero\",\"\")","v":""},null,null,0]
["M6","Qualità dell'acqua depurata","%",null,{"$f":"IF(AND(E106>0,E111<=E106,E111<>\"\",E111>=0),E111/E106,\"\")","v":""},"Vedere RQTI al comma 19.5 ",null,null,{"$f":"IF(AND(E3=\"SI\",E122=\"\"),\"Macro-indicatore non calcolabile\",\"\")","v":""},null,null,0]
["M6CL","Qualità dell'acqua depurata - Classe di appartenenza","-",null,{"$f":"IF(E122=\"\",\"\",IF(E122>=(15/100),\"E\",IF(E122>=(10/100),\"D\",IF(E122>=(5/100),\"C\",IF(E122>=(1/100),\"B\",\"A\")))))","v":""},"Vedere RQTI al comma 19.4, come modificato dall'art. 1 della delibera 637/2023/R/idr",null,null,null,null,null,0]
["OB6","Qualità dell'acqua depurata  - Obiettivo","-",null,{"$f":"IF(E123=\"A\",\"Mantenimento\",IF(E123=\"B\",\"-6% di M6\",IF(E123=\"C\",\"-10% di M6\",IF(E123=\"D\",\"-15% di M6\",IF(E123=\"E\",\"-20% di M6\",\"\")))))","v":""},"Vedere RQTI al comma 19.4, come modificato dall'art. 1 della delibera 637/2023/R/idr",null,null,null,null,null,0]
["∑Cimp,DEP-tot3","Numero di campioni eseguiti sulle acque reflue scaricate dagli impianti di depurazione con analisi anche degli ulteriori parametri di Tabella 3, in aggiunta a quelli precedentemente considerati","n.",null,null,"Si considerano solo gli impianti di potenzialità ≥ 2.000 A.E. (o 10.000 A.E. se recapitanti in acque costiere).\nConsiderare i campioni di cui alla voce ∑Cimp,DEP-tot, cui si sommano gli eventuali campioni con analisi degli ulteriori parametri di Tabella 3",null,null,{"$f":"IF(E125<E106,\"Il valore deve essere maggiore o uguale a ∑Cimp,DEP-tot\",\"\")","v":""},null,null,0]
["∑Cimp,DEP-cnc3","Numero di campioni eseguiti sulle acque reflue scaricate dagli impianti di depurazione con superamento di almeno un limite dei parametri di cui alle Tabelle 1, 2 e 3 ai sensi del co. 19.3 e del co. 19.6 RQTI","n.",null,null,"Si considerano solo gli impianti di potenzialità ≥ 2.000 A.E. (o 10.000 A.E. se recapitanti in acque costiere) \nConsiderare i campioni di cui alla voce ∑Cimp,DEP-cnc, cui si sommano gli eventuali campioni con superamento dei limiti per gli ulteriori parametri di Tabella 3",null,null,{"$f":"IF(OR(E126<0,AND(E95>0,E126=\"\")),\"Il valore deve essere maggiore o uguale a zero\",IF(E126<E111,\"Il valore deve essere maggiore o uguale a ∑Cimp,DEP-cnc\",\"\"))","v":""},null,null,0]
["G6.1","Qualità dell'acqua depurata - esteso","%",null,{"$f":"IF(AND(E125>0,E126<=E125,E126>=0,E126<>\"\",E125>=E106,E126>=E111),E126/E125,\"\")","v":""},"Vedere RQTI al comma 19.6 ",null,null,null,null,null,0]
["G6.2","Numerosità dei campionamenti eseguiti","n.",null,{"$f":"IF(AND(E125>0,E125>=E106),E125-SUM(E109:E110),\"\")","v":""},"Vedere RQTI al comma 19.6 \nI campioni eseguiti non includono quelli virtuali e quelli effettuati dalle Autorità di controllo ambientale",null,null,null,null,null,0]
["∑Pimp,DEP-tot","Numero parametri analizzati nei campioni eseguiti  sulle acque reflue scaricate dagli impianti di depurazione con riferimento alle Tabelle 1, 2, 3, ovvero a tabella 4 ","n.",null,null,"Si considerano solo gli impianti di potenzialità ≥ 2.000 A.E. (o 10.000 A.E. se recapitanti in acque costiere)\nIn caso di campioni virtuali si considera 1 solo parametro per ogni campione, mentre per i campioni effettuati dalle Autorità di controllo ambientale si conteggiano i soli parametri con superamento dei limiti.",null,null,{"$f":"IF(E129<0,\"Il valore deve essere maggiore o uguale a zero\",IF(E129<E125,\"Il valore deve essere maggiore o uguale a zero e maggiore o uguale a ∑Cimp,DEP-tot3\",\"\"))","v":""},null,null,0]
["∑Pimp,DEP-pnc","Numero parametri con superamento dei limiti di Tabelle 1, 2 e 3, ovvero di Tabella 4,  nei campioni eseguiti sulle acque reflue scaricate dagli impianti di depurazione","n.",null,null,"Si considerano solo gli impianti di potenzialità ≥ 2.000 A.E. (o 10.000 A.E. se recapitanti in acque costiere)\nIn caso di campioni virtuali si considera 1 solo parametro per ogni campione, mentre per i campioni effettuati dalle Autorità di controllo ambientale si conteggiano tutti e soli i parametri con superamento dei limiti.",null,null,{"$f":"IF(OR(E130<0,AND(E95>0,E130=\"\")),\"Il valore deve essere maggiore o uguale a zero\",IF(E130<E126,\"Il valore deve essere maggiore o uguale a zero e maggiore o uguale a ∑Cimp,DEP-cnc3\",\"\"))","v":""},null,null,0]
["G6.3","Tasso di parametri risultati oltre i limiti","%",null,{"$f":"IF(AND(E129>0,E130<=E129,E130>=0,E130<>\"\"),E130/E129,\"\")","v":""},"Vedere RQTI al comma 19.7 ",null,null,null,null,null,0]
["WDEP","Volume totale reflui depurati in uscita dalla depurazione","mc",null,{"$f":"E77","v":0},null,null,null,null,null,null,0]
["WDEP,r1","di cui destinabile al riutilizzo","mc",null,null,"Volumi di acque reflue urbane  trattate conformemente ai requisiti di cui alla direttiva 91/271/CEE e sottoposte a ulteriore trattamento secondo quanto previsto dalla normativa vigente (comma 37.3 del MTI-4)",null,null,{"$f":"IF(OR(E133<0,E133>E132),\"Il valore deve essere maggiore o uguale a zero e minore o uguale a W_DEP\",\"\")","v":""},null,null,0]
["WDEP,r2","di cui destinato al riutilizzo","mc",null,null,"Volumi di acque reflue urbane consegnati per essere impiegati dall’utilizzatore finale (comma 37.3 del MTI-4)",null,null,{"$f":"IF(OR(E134<0,E134>E133),\"Il valore deve essere maggiore o uguale a zero e minore o uguale a W_DEP,r1\",\"\")","v":""}]
["G6.4","Acque reflue destinate al riutilizzo","%",null,{"$f":"IF(E3=\"SI\",IF(OR(AND(E134=\"\",E132=\"\"),AND(E134=0,E132=0)),\"\",E134/E132),\"\")","v":""},"Vedere RQTI al comma 19.6, come modificato dall'art. 1 della delibera 637/2023/R/idr"]
["RIU","Quota dei volumi depurati destinabili al riutilizzo ma non destinati a tale finalità","%",null,{"$f":"IFERROR((E133-E134)/E133,\"\")","v":""},"Vedere comma 37.3 del MTI4",null,null,null,null,null,{"$f":"IF(I136=\"\",0,1)","v":0}]
["CDEP-min","Numero minimo di campioni che il gestore è tenuto a eseguire nell'anno","n.",null,null,"Sul totale degli impianti soggetti ad M6",null,null,{"$f":"IF(AND(E3<>\"SI\",E137<>\"\"),\"Non risulta gestito il servizio di depurazione\",IF(E137<0,\"Il valore deve essere maggiore o uguale a zero\",\"\"))","v":""},null,null,0]
["Aggcond,DEP,1","Numero agglomerati oggetto di condanna per il servizio di depurazione (causa C-565/10, C-85/13, C-668/19 e successive) al termine dell'anno (a)","n.",null,null,"Quesito riferito al 31 dicembre di ogni anno (a)",null,null,{"$f":"IF(E3=\"SI\",IF(OR(E138<0,E138=\"\",E138>E36),\"Il valore deve essere maggiore o uguale a zero e minore o uguale ad Agg_tot\",\"\"),IF(E138<>0,\"Non risulta gestito il servizio di depurazione\",\"\"))","v":""},null,null,0]
["AEcond,DEP,1","Abitanti Equivalenti complessivi degli agglomerati oggetto di condanna per il servizio di depurazione (causa C-565/10, C-85/13, C-668/19 e successive) al termine dell'anno (a)","A.E.",null,null,"Quesito riferito al 31 dicembre di ogni anno (a)",null,null,{"$f":"IF(E3=\"SI\",IF(OR(E139<0,E139=\"\"),\"Il valore deve essere maggiore o uguale a zero\",\"\"),IF(E139<>0,\"Non risulta gestito il servizio di depurazione\",\"\"))","v":""},null,null,0]
["N*der","Numero impianti autorizzati allo scarico in deroga, anche per periodi limitati, nell'anno (a)","n.",null,null,"Nel caso di impianti che presentano più di un periodo di deroga nell'anno (a), conteggiare i medesimi impianti una sola volta.\nNon conteggiare gli impianti eventualmente soggetti a deroghe, per il solo periodo irriguo, e al solo fine di praticare il riutilizzo dei reflui depurati a fini agricoli",null,null,{"$f":"IF(AND(E3=\"SI\",E89=\"SI\",OR(E140<0,E140=\"\",E140>E95)),\"Il valore deve essere maggiore o uguale a zero e minore o uguale a N*\",\"\")","v":""},null,null,0]
["Cardep,der","Totale carico inquinante collettato in rete fognaria e depurato negli impianti di depurazione inclusi in N*der","A.E.",null,null,"Nel caso di impianti che presentano più di un periodo di deroga nell'anno (a), conteggiare il carico trattato nei medesimi impianti una sola volta",null,null,{"$f":"IF(AND(E3=\"SI\",E89=\"SI\",OR(E141<0,E141=\"\",E141>E8)),\"Il valore deve essere maggiore o uguale a zero e minore o uguale a Car_dep\",\"\")","v":""},null,null,0]
["tder","Durata totale dei periodi di deroga per gli impianti di depurazione inclusi in N*der ","gg",null,null,"Nel caso di impianti che presentano più di un periodo di deroga nell'anno (a), sommare i giorni relativi",null,null,{"$f":"IF(AND(E3=\"SI\",E89=\"SI\",OR(E142<0,E142=\"\")),\"Il valore deve essere maggiore o uguale a zero\",\"\")","v":""},null,null,0]
["Cardep,der_norm","Sommatoria del prodotto dei carichi depurati in ciascun impianto oggetto di deroga per la durata delle medesime deroghe","A.E.",null,null," Sommatoria del prodotto dei carichi depurati in ciascuno degli impianti inclusi in N*der per i rispettivi giorni di deroga, normalizzata dividendo per 365: ∑(Cardep,der,i*tder,i)/365, con i corrispondente all'i-esimo impianto in deroga",null,null,{"$f":"IF(AND(E3=\"SI\",E89=\"SI\",OR(E143<0,E143=\"\")),\"Il valore deve essere maggiore o uguale a zero\",\"\")","v":""},null,null,0]
["Incidenza_der","Incidenza carico depurato in deroga","%",null,{"$f":"IFERROR(E143/E8,\"\")","v":""},"Incidenza rispetto al totale dei carichi collettati e depurati dal gestore nell'anno",null,null,{"$f":"IF(AND(E3=\"SI\",E89=\"SI\",OR(E144<0,E144=\"\")),\"Il valore deve essere maggiore o uguale a zero\",\"\")","v":""},null,null,0]
["Regola3_2023","Utilizzo della regola 3 delle linee guida SNPA per la valutazione del superamento dei limiti nell'anno base","-"]
[]
[]
[]
[]
[null,"Adeguato"]
[null,"Non adeguato"]
[]
[null,"X"]
[null,"SI"]
[null,"NO"]
[null,"Prevalentemente"]
[null,"SI"]
[null,"NO"]

{"sheet":"QT-Altri dati","index":58,"n_rows":184,"n_cols":12,"rows_kept":184,"cut":false,"hidden":true,"merged":[[39,7,40,7],[39,8,40,8],[14,7,16,7],[14,8,16,8],[21,7,22,7],[21,8,22,8],[34,8,37,8],[53,8,56,8],[58,8,60,8],[68,8,73,8],[85,8,90,8],[95,7,96,7],[95,8,96,8],[135,8,139,8],[141,8,147,8],[104,8,110,8],[112,8,113,8],[115,7,116,7],[115,8,116,8],[120,8,124,8],[126,8,132,8]]}
[null,"Altri dati di qualità tecnica \nTutti i valori imputati sono intesi essere valori \nconsuntivi ",null,null,null,null,null,null,null,null,null,"Errori compilazione colonna \"Valore Anno 2025\""]
["Notazione dato ","Descrizione dato","UdM",null,"Valore Anno 2025","Note compilazione",null,null,"Errore rilevato in colonna \"Valore Anno 2025\"",null,null,{"$f":"SUM(L3:L177)+SUM(K161:K176)","v":0}]
[null,null,null,null,null,null,null,null,null,null,null,{"$f":"IF(I3=\"\",0,1)","v":0}]
["ACQUEDOTTO - Dati relativi agli indennizzi per mancato rispetto degli Standard Specifici di Qualità tecnica",null,null,null,null,null,null,null,null,null,null,0]
["∑US1ind ","Sommatoria degli utenti finali (compresi utenti indiretti) con diritto all'indennizzo automatico per S1","n.",null,null,"Gli utenti interessati si contano tante volte quanti sono i mancati rispetti dello standard con diritto all'indennizzo automatico ",null,null,{"$f":"IF(OR(E5<0,E5>'QT-Acquedotto'!E111),\"Il valore deve essere maggiore o uguale a zero e minore o uguale a ∑US1\",\"\")","v":""},null,null,0]
["∑US2ind ","Sommatoria degli utenti finali (compresi utenti indiretti) con diritto all'indennizzo automatico per S2","n.",null,null,"Gli utenti interessati si contano tante volte quanti sono i mancati rispetti dello standard con diritto all'indennizzo automatico ",null,null,{"$f":"IF(OR(E6<0,E6>'QT-Acquedotto'!E112),\"Il valore deve essere maggiore o uguale a zero e minore o uguale a ∑US2\",\"\")","v":""},null,null,0]
["∑US3ind ","Sommatoria degli utenti finali (compresi utenti indiretti) con diritto all'indennizzo automatico per S3","n.",null,null,"Gli utenti interessati si contano tante volte quanti sono i mancati rispetti dello standard con diritto all'indennizzo automatico ",null,null,{"$f":"IF(OR(E7<0,E7>'QT-Acquedotto'!E113),\"Il valore deve essere maggiore o uguale a zero e minore o uguale a ∑US3\",\"\")","v":""},null,null,0]
["IndC","Ammontare complessivo degli indennizzi erogato agli utenti finali (inclusi utenti indiretti) interessati da mancato rispetto degli standard specifici di qualità tecnica","€",null,null,"Quesito riferito all'intervallo temporale dal 1 gennaio al 31 dicembre di ogni anno",null,null,{"$f":"IF(E8<0,\"Il valore deve essere maggiore o uguale a zero\",\"\")","v":""},null,null,0]
["IndNC","Ammontare complessivo degli indennizzi non ancora corrisposto agli utenti finali (inclusi utenti indiretti) interessati da mancato rispetto degli standard specifici di qualità tecnica","€",null,null,"Quesito riferito all'intervallo temporale dal 1 gennaio al 31 dicembre di ogni anno",null,null,{"$f":"IF(E9<0,\"Il valore deve essere maggiore o uguale a zero\",\"\")","v":""},null,null,0]
["S_plus","Indicare se nella Carta dei Servizi in vigore è garantito uno standard migliorativo per gli standard specifici S1 e/o S2 e/o S3","-",null,null,"Eventualmente specificare in relazione",null,null,null,null,null,0]
[null,null,null,null,null,null,null,null,null,null,null,0]
["ACQUEDOTTO - Dati sulla misura di utenza, inclusi obblighi di cui all'art. 15 dell'Allegato A alla del. 218/2016/R/idr (TIMSII)",null,null,null,null,null,null,null,null,null,null,0]
["UtT","Numero di utenti finali serviti dal gestore per il servizio di acquedotto (esclusi utenti indiretti)","n.",null,{"$f":"'QT-Acquedotto'!E80","v":0},null,null,null,null,null,null,0]
["UtTmis","Numero di utenze finali dotate di misuratore (esclusi utenti indiretti)","n.",null,null,"Vedere TIMSII, comma 15.1",null,null,{"$f":"IF(OR(E14<0,E14>E13),\"Il valore deve essere maggiore o uguale a zero e minore o uguale a UtT\",\"\")","v":""},null,null,0]
["UtTmis_acc","di cui con misuratori accessibili","n.",null,null,"Vedere TIMSII, comma 15.1",null,null,{"$f":"IF(OR(E15<>\"\",E16<>\"\",E17<>\"\"),IF(OR(E15<0,E16<0,E17<0,E15+E16+E17<>E14),\"Ogni di cui deve essere maggiore o uguale a zero e la somma deve essere pari a UtTmis\",\"\"),\"\")","v":""},null,null,0]
["UtTmis_pacc","di cui con misuratori parzialmente accessibili","n.",null,null,"Vedere TIMSII, comma 15.1",null,null,null,null,null,0]
["UtTmis_nacc","di cui con misuratori non accessibili","n.",null,null,"Vedere TIMSII, comma 15.1",null,null,null,null,null,0]
["UtTmis_sm","Numero di utenze finali dotate di misuratori rilevabili tramite telelettura (esclusi utenti indiretti)","n.",null,null,"Indicare le utenze finali per le quali è già attivo il servizio di lettura da remoto (inclusi sistemi walk by/drive by), anche in via sperimentale",null,null,{"$f":"IF(OR(E18<0,E18>E14),\"Il valore deve essere maggiore o uguale a zero e minore o uguale a UtT_mis\",\"\")","v":""},null,null,0]
["UtTmis_smtel","     di cui con misuratore teleletto da remoto","n.",null,null,"Solo telelettura da remoto con trasmissione dei dati al sistema di telecontrollo (no walk by/drive by)",null,null,{"$f":"IF(OR(E19<0,E19>E18),\"Il valore deve essere maggiore o uguale a zero e minore o uguale a UtT_mis_sm\",\"\")","v":""},null,null,0]
["UtTbt","Numero di utenze finali con dispositivi a bocca tarata (esclusi utenti indiretti)","n.",null,null,"Vedere TIMSII, comma 15.1",null,null,{"$f":"IF(OR(E20<0,E20>(E13-E14)),\"Il valore deve essere maggiore o uguale a zero e minore o uguale a UtT-UtT_mis\",\"\")","v":""},null,null,0]
["UtTmis","Numero di utenze finali dotate di misuratore (esclusi utenti indiretti)","n.",null,{"$f":"E14","v":0},"Vedere TIMSII, comma 15.1",null,null,null,null,null,0]
["UtTmis_3000","di cui con consumi medi annui fino a 3.000 mc (2 tentativi minimi)","n.",null,null,"Vedere TIMSII, comma 15.1",null,null,{"$f":"IF(OR(E22<>\"\",E23<>\"\"),IF(OR(E22<0,E23<0,E23+E22<>E21),\"Ogni di cui deve essere maggiore o uguale a zero e la somma deve essere pari a UtTmis\",\"\"),\"\")","v":""},null,null,0]
["UtTmis_3000+","di cui con consumi medi annui superiori a 3.000 mc (3 tentativi minimi)","n.",null,null,"Vedere TIMSII, comma 15.1",null,null,null,null,null,0]
["Racc3000","Numero di tentativi di raccolta delle misure per utenti finali con consumi medi annui fino a 3.000 mc (totale)","n.",null,null,"Vedere TIMSII, comma 15.1. Non è la somma dei \"di cui\" sottostanti. Includere anche i tentativi su utenti non più attivi al 31/12  dell’anno a",null,null,{"$f":"IF(E24<0,\"Il valore deve essere maggiore o uguale a zero\",\"\")","v":""},null,null,0]
["Racc3000_eff","di cui andati a buon fine","n.",null,null,"Vedere TIMSII, comma 15.1",null,null,{"$f":"IF(OR(E25<0,E25>E24),\"Il valore deve essere maggiore o uguale a zero e minore o uguale di Racc_3000\",\"\")","v":""},null,null,0]
["Racc3000_val","di cui con misura validata","n.",null,null,"Vedere TIMSII, comma 15.1",null,null,{"$f":"IF(OR(E26<0,E26>E24),\"Il valore deve essere maggiore o uguale a zero e minore o uguale di Racc_3000\",\"\")","v":""},null,null,0]
["Al3000","Numero di autoletture dei misuratori di utenza prese in carico per utenti finali con consumi medi annui fino a 3.000 mc (totale)","n.",null,null,"Vedere TIMSII, comma 15.1. Includere anche i tentativi su utenti non più attivi al 31/12  dell’anno a",null,null,{"$f":"IF(E27<0,\"Il valore deve essere maggiore o uguale a zero\",\"\")","v":""},null,null,0]
["Al3000_val","di cui con misura validata","n.",null,null,"Vedere TIMSII, comma 15.1",null,null,{"$f":"IF(OR(E28<0,E28>E27),\"Il valore deve essere maggiore o uguale a zero e minore o uguale di Al_3000\",\"\")","v":""},null,null,0]
["Racc3000+","Numero di tentativi di raccolta delle misure per utenti finali con consumi medi annui superiori a 3.000 mc","n.",null,null,"Vedere TIMSII, comma 15.1. Non è la somma dei \"di cui\" sottostanti. Includere anche i tentativi su utenti non più attivi al 31/12  dell’anno a",null,null,{"$f":"IF(E29<0,\"Il valore deve essere maggiore o uguale a zero\",\"\")","v":""},null,null,0]
["Racc3000+_eff","di cui andati a buon fine","n.",null,null,"Vedere TIMSII, comma 15.1",null,null,{"$f":"IF(OR(E30<0,E30>E29),\"Il valore deve essere maggiore o uguale a zero e minore o uguale di Racc_3000+\",\"\")","v":""},null,null,0]
["Racc3000+_val","di cui con misura validata","n.",null,null,"Vedere TIMSII, comma 15.1",null,null,{"$f":"IF(OR(E31<0,E31>E29),\"Il valore deve essere maggiore o uguale a zero e minore o uguale di Racc_3000+\",\"\")","v":""},null,null,0]
["Al3000+","Numero di autoletture dei misuratori di utenza prese in carico per utenti finali con consumi medi annui superiori a 3.000 mc","n.",null,null,"Vedere TIMSII, comma 15.1.  Includere anche i tentativi su utenti non più attivi al 31/12  dell’anno a",null,null,{"$f":"IF(E32<0,\"Il valore deve essere maggiore o uguale a zero\",\"\")","v":""},null,null,0]
["Al3000+_val","di cui con misura validata","n.",null,null,"Vedere TIMSII, comma 15.1",null,null,{"$f":"IF(OR(E33<0,E33>E32),\"Il valore deve essere maggiore o uguale a zero e minore o uguale di Al_3000+\",\"\")","v":""},null,null,0]
["Misut","Numero di misuratori di utenza","n.",null,null,"Si intendono i misuratori dei volumi installati presso gli utenti finali (esclusi utenti indiretti)",null,null,{"$f":"IF(E34<0,\"Il valore deve essere maggiore o uguale a zero\",\"\")","v":""},null,null,0]
["Misut,5","di cui con età ≤ 5 anni","n.",null,null,null,null,null,{"$f":"IF(OR(E35<>\"\",E36<>\"\",E37<>\"\",E38<>\"\"),IF(OR(E35<0,E36<0,E37<0,E38<0,E35+E36+E37+E38<>E34),\"Ogni di cui deve essere maggiore o uguale a zero e la somma deve essere pari a Mis_ut\",\"\"),\"\")","v":""},null,null,0]
["Misut,5-10","di cui con età 6-10 anni ","n.",null,null,null,null,null,null,null,null,0]
["Misut,10-15","di cui con età 11-15 anni","n.",null,null,null,null,null,null,null,null,0]
["Misut,15","di cui con età > 15 anni","n.",null,null,null,null,null,null,null,null,0]
["Misut","Numero di misuratori di utenza","n.",null,{"$f":"E34","v":0},null,null,null,null,null,null,0]
["Misut,10m","di cui con età > 10 anni meccanici","n.",null,null,null,null,null,{"$f":"IF(OR(E40<0,E41<0,(E40+E41)>E39),\"Ogni di cui deve essere maggiore o uguale a zero e la somma deve essere minore o uguale a Mis_ut\",\"\")","v":""},null,null,0]
["Misut,13sv","di cui con età > 13 anni statici e venturimetrici","n.",null,null,null,null,null,null,null,null,0]
[null,null,null,null,null,null,null,null,null,null,null,0]
["ACQUEDOTTO - Dati relativi agli indennizzi per mancato rispetto degli Standard Specifici sulla misura (anche ai sensi della delibera 609/2021/R/idr)",null,null,null,null,null,null,null,null,null,null,0]
["∑USR1ind ","Sommatoria degli utenti finali (esclusi utenti indiretti) con diritto all'indennizzo automatico per SR1","n.",null,null,null,null,null,{"$f":"IF(E44<0,\"Il valore deve essere maggiore o uguale a zero\",\"\")","v":""},null,null,0]
["∑USR2ind ","Sommatoria degli utenti finali (esclusi utenti indiretti) con diritto all'indennizzo automatico per SR2","n.",null,null,null,null,null,"",null,null,0]
["∑USPind ","Sommatoria degli utenti finali (esclusi utenti indiretti) con diritto all'indennizzo automatico per SP","n.",null,null,null,null,null,"",null,null,0]
["IndC,m","Ammontare complessivo degli indennizzi erogato agli utenti finali (esclusi utenti indiretti) interessati da mancato rispetto degli standard specifici del servizio di misura","€",null,null,null,null,null,"",null,null,0]
["IndNC,m","Ammontare complessivo degli indennizzi non ancora corrisposto agli utenti finali (esclusi utenti indiretti) interessati da mancato rispetto degli standard specifici di misura","€",null,null,null,null,null,"",null,null,0]
[null,null,null,null,null,null,null,null,null,null,null,0]
["ACQUEDOTTO - Ulteriori dati ",null,null,null,null,null,null,null,null,null,null,0]
["Nf","Numero fonti di approvvigionamento di acqua destinata al consumo umano","n.",null,null,"Inteso come numero di punti di prelievo ed escluse le importazioni di acqua da altri gestori/grossisti",null,null,{"$f":"IF(E51<0,\"Il valore deve essere maggiore o uguale a zero\",\"\")","v":""},null,null,0]
["Npot","Numero impianti di potabilizzazione delle acque  (esclusa semplice disinfezione)","n.",null,null,"Esclusi i sistemi di dosaggio di disinfettanti in rete",null,null,{"$f":"IF(E52<0,\"Il valore deve essere maggiore o uguale a zero\",\"\")","v":""},null,null,0]
["WAM","Volume di acqua prelevato dall'ambiente","mc",null,{"$f":"'QT-Acquedotto'!E30","v":0},null,null,null,null,null,null,0]
["WAMs","di cui da sorgenti","mc",null,null,null,null,null,{"$f":"IF(OR(E54<0,E55<0,E56<0,E57<0,E54+E55+E56+E57<>E53),\"Ogni di cui deve essere maggiore o uguale a zero e la somma deve essere pari a WAM\",\"\")","v":""},null,null,0]
["WAMp","di cui da pozzi","mc",null,null,null,null,null,null,null,null,0]
["WAMc","di cui da corsi d'acqua, laghi, bacini artificiali","mc",null,null,null,null,null,null,null,null,0]
["WAMm","di cui da acque marine o salmastre","mc",null,null,null,null,null,null,null,null,0]
["WA6","Volumi in ingresso al trattamento di potabilizzazione (esclusa semplice disinfezione)","mc",null,null,"Volume di acqua (prelevata dall’ambiente o importata) immesso negli impianti di potabilizzazione, è esclusa l’acqua sottoposta alla sola disinfezione",null,null,{"$f":"IF(OR(E58<0,E58>'QT-Acquedotto'!E28),\"Il valore deve essere maggiore o uguale a zero e minore di ∑WIN\",\"\")","v":""},null,null,0]
["WA6A","di cui sottoposta a trattamento fisico semplice","mc",null,null,"Comprende, ad esempio, stacciatura, sedimentazione, filtrazione",null,null,{"$f":"IF(OR(E59<>\"\",E60<>\"\",E61<>\"\"),IF(OR(E59<0,E60<0,E61<0,E59+E60+E61<>E58),\"Ogni di cui deve essere maggiore o uguale a zero e la somma deve essere pari a WA6\",\"\"),\"\")","v":""},null,null,0]
["WA6B","di cui sottoposta a trattamento fisico e chimico normale","mc",null,null,"Comprende, ad esempio, coagulazione e flocculazione (sono da escludere i volumi inseriti nella riga precedente)",null,null,null,null,null,0]
["WA6C","di cui sottoposta a trattamento fisico e chimico spinto e/o affinamento","mc",null,null,"Comprende, ad esempio, ozonazione, adsorbimento, filtrazione su membrana, osmosi inversa (sono da escludere i volumi inseriti nelle righe precedenti)",null,null,null,null,null,0]
["UtT","Numero di utenti finali serviti dal gestore per il servizio di acquedotto (esclusi utenti indiretti)","n.",null,{"$f":"'QT-Acquedotto'!E80","v":0},null,null,null,null,null,null,0]
["UtTnf","Numero di utenti finali serviti per il servizio di acquedotto, ma non allacciati alla fognatura (esclusi utenti indiretti)","n.",null,null,"Si intendono gli utenti finali del servizio di acquedotto per cui non viene fatturato il servizio di fognatura; gli utenti sono da considerarsi serviti da fognatura anche nel caso in cui la stessa sia gestita separatamente da un altro gestore (rif. art. 156 del D.lgs 152/2006)",null,null,{"$f":"IF(OR(E63<0,E63>E62),\"Il valore deve essere maggiore o uguale a zero e minore di UtT\",\"\")","v":""},null,null,0]
["Nall,ACQ","Numero di prese di utenza","n.",null,null,null,null,null,{"$f":"IF(E64<0,\"Il valore deve essere maggiore o uguale a zero\",\"\")","v":""},null,null,0]
["Lall","Lunghezza totale allacci","km",null,null,"Indicare lo sviluppo lineare totale delle condotte di allaccio, ovvero la somma delle lunghezze di tutte le condotte dallo stacco dalla rete principale al punto di consegna dell'acquedotto",null,null,{"$f":"IF(E65<0,\"Il valore deve essere maggiore o uguale a zero\",IF(E65>'QT-Acquedotto'!E44,\"Attenzione: il valore è superiore a Ld - verificare\",\"\"))","v":""},null,null,0]
["Lallstima","di cui lunghezza rilevata con georeferenziazione parziale","km",null,null,"Indicare lo sviluppo lineare delle condotte di allaccio parzialmente georeferenziate",null,null,{"$f":"IF(OR(E66<0,E66>E65),\"Il valore deve essere maggiore o uguale a zero e minore o uguale a Lall\",\"\")","v":""},null,null,0]
["Lallgeo","di cui lunghezza effettivamente rilevata con georeferenziazione completa (come da comma 7.3 RQTI)","km",null,null,"Indicare lo sviluppo lineare delle condotte di allaccio completamente georeferenziate (solo se corredato da istanza dell'EGA ai sensi del comma 7.3 RQTI)",null,null,{"$f":"IF(OR(E67<0,E67>E65),\"Il valore deve essere maggiore o uguale a zero e minore o uguale a Lall\",\"\")","v":""},null,null,{"$f":"IF(I67=\"\",0,1)","v":0}]
["Lp","Lunghezza totale delle condotte di adduzione e distribuzione, escluse le derivazioni d’utenza","km",null,{"$f":"'QT-Acquedotto'!E42","v":0},null,null,null,null,null,null,0]
["Lp10","di cui con età di posa ≤ 10 anni","km",null,null,null,null,null,{"$f":"IF(OR(E69<0,E70<0,E71<0,E72<0,E73<0,E74<0,E69+E70+E71+E72+E73+E74<>E68),\"Ogni di cui deve essere maggiore o uguale a zero e la somma deve essere pari a Lp\",\"\")","v":""},null,null,0]
["Lp11-30","di cui con età di posa 11-30 anni","km",null,null,null,null,null,null,null,null,0]
["Lp31-40","di cui con età di posa 31-40 anni","km",null,null,null,null,null,null,null,null,0]
["Lp41-50","di cui con età di posa 41-50 anni","km",null,null,null,null,null,null,null,null,0]
["Lp50","di cui con età di posa > 50 anni","km",null,null,null,null,null,null,null,null,0]
["LpNN","di cui con età di posa non nota","km",null,{"$f":"E68-E69-E70-E71-E72-E73","v":0},"Dato calcolato per differenza dai precedenti",null,null,null,null,null,0]
["Lpgeo","Lunghezza rete principale di adduzione e di distribuzione georeferenziata","km",null,null,"Escluse le derivazioni d’utenza ",null,null,{"$f":"IF(OR(E75<0,E75>E68),\"Il valore deve essere maggiore o uguale a zero e minore o uguale a Lp\",\"\")","v":""},null,null,0]
["Lprp","Lunghezza rete sottoposta a ricerca perdite con tecniche acustiche o tecniche/tecnologie differenti aventi il medesimo scopo","km",null,null,"Solo la rete principale di adduzione e distribuzione, escluse le derivazioni d’utenza",null,null,{"$f":"IF(OR(E76<0,E76>E68),\"Il valore deve essere maggiore o uguale a zero e minore o uguale a Lp\",\"\")","v":""},null,null,0]
["Lddt","Estensione rete distrettualizzata telecontrollata","km",null,null,"Solo rete principale di distribuzione, escluse le derivazioni d’utenza. Da considerare solo i distretti permanenti",null,null,{"$f":"IF(OR(E77<0,E77>'QT-Acquedotto'!E44),\"Il valore deve essere maggiore o uguale a zero e minore o uguale a Ld\",\"\")","v":""},null,null,0]
["Lpd ","Estensione rete distrettualizzata ","km",null,null,"Escluse le derivazioni d’utenza. Da considerare solo i distretti permanenti",null,null,{"$f":"IF(OR(E78<0,E78>'QT-Acquedotto'!E42),\"Il valore deve essere maggiore o uguale a zero e minore o uguale a Lp\",\"\")","v":""},null,null,0]
["Lat","Estensione rete di adduzione telecontrollata","km",null,null,"Solo rete principale di adduzione, escluse le derivazioni d’utenza",null,null,{"$f":"IF(OR(E79<0,E79>'QT-Acquedotto'!E43),\"Il valore deve essere maggiore o uguale a zero e minore o uguale a La\",\"\")","v":""},null,null,0]
["Ldt","Estensione rete di distribuzione telecontrollata","km",null,null,"Solo rete principale di distribuzione, escluse le derivazioni d’utenza",null,null,{"$f":"IF(OR(E80<0,E80>'QT-Acquedotto'!E44),\"Il valore deve essere maggiore o uguale a zero e minore o uguale a Ld\",\"\")","v":""},null,null,0]
["Lpsos","Lunghezza complessiva condotte sostituite, incluse condotte sostituite o risanate con tecniche senza scavo","km",null,null,"Solo la rete principale di adduzione e distribuzione, escluse le derivazioni d’utenza",null,null,{"$f":"IF(OR(E81<0,E81>E68),\"Il valore deve essere maggiore o uguale a zero e minore o uguale a Lp\",\"\")","v":""},null,null,0]
["BreakACQ","Numero di rotture annue sulla rete di distribuzione principale","n.",null,null,"Escluse le derivazioni d’utenza ",null,null,{"$f":"IF(E82<0,\"Il valore deve essere maggiore o uguale a zero\",\"\")","v":""},null,null,0]
[null,null,null,null,null,null,null,null,null,null,null,0]
["FOGNATURA - Ulteriori dati",null,null,null,null,null,null,null,null,null,null,0]
["Lf","Lunghezza totale della rete fognaria principale (esclusi gli allacci)","km",null,{"$f":"'QT-Fognatura'!E24","v":0},null,null,null,null,null,null,0]
["Lf10","di cui con età di posa ≤ 10 anni","km",null,null,null,null,null,{"$f":"IF(OR(E86<0,E87<0,E88<0,E89<0,E90<0,E91<0,E86+E87+E88+E89+E90+E91<>E85),\"Ogni di cui deve essere maggiore o uguale a zero e la somma deve essere pari a Lf\",\"\")","v":""},null,null,0]
["Lf11-30","di cui con età di posa 11-30 anni","km",null,null,null,null,null,null,null,null,0]
["Lf31-40","di cui con età di posa 31-40 anni","km",null,null,null,null,null,null,null,null,0]
["Lf41-50","di cui con età di posa 41-50 anni","km",null,null,null,null,null,null,null,null,0]
["Lf50","di cui con età di posa > 50 anni","km",null,null,null,null,null,null,null,null,0]
["LfNN","di cui con età di posa non nota","km",null,{"$f":"E85-E86-E87-E88-E89-E90","v":0},"Dato calcolato per differenza dai precedenti",null,null,null,null,null,0]
["Nall,FOG","Numero di allacciamenti alla rete fognaria","n.",null,null,null,null,null,{"$f":"IF(E92<0,\"Il valore deve essere maggiore di zero\",\"\")","v":""},null,null,0]
["Lf,sos","Lunghezza complessiva condotte sostituite, incluse condotte sostituite o risanate con tecniche senza scavo","km",null,null,"Esclusi gli allacci",null,null,{"$f":"IF(OR(E93<0,E93>E85),\"Il valore deve essere maggiore o uguale a zero e minore o uguale a Lf\",\"\")","v":""},null,null,0]
["Lf,geo","Lunghezza rete fognaria georeferenziata","km",null,null,"Esclusi gli allacci",null,null,{"$f":"IF(OR(E94<0,E94>E85),\"Il valore deve essere maggiore o uguale a zero e minore o uguale a Lf\",\"\")","v":""},null,null,0]
["UtTFOG","Numero di utenti finali serviti dal gestore per il servizio di fognatura (esclusi utenti indiretti)","n.",null,null,"Come da definizioni RQTI",null,null,{"$f":"IF(E95<0,\"Il valore deve essere maggiore di zero\",\"\")","v":""},null,null,0]
["UtTFOG,dnd","        di cui utenze domestiche e non domestiche assimilabili","n.",null,null,"Come da definizioni TICSI",null,null,{"$f":"IF(OR(E96<>\"\",E97<>\"\"),IF(OR(E96<0,E97<0,E97+E96<>E95),\"Ogni di cui deve essere maggiore o uguale a zero e la somma deve essere pari a UtT_FOG\",\"\"),\"\")","v":""},null,null,0]
["UtTFOG,ind","        di cui utenze industriali","n.",null,null,"Come da definizioni TICSI. Non è la somma dei \"di cui\" sottostanti",null,null,null,null,null,0]
["UtTFOG,ind,m","di cui dotate di misuratore di portata","n.",null,null,null,null,null,{"$f":"IF(OR(E98<0,E98>E97),\"Il valore deve essere maggiore o uguale a zero e minore o uguale a UtT_FOG,ind\",\"\")","v":""},null,null,0]
["UtTFOG,ind,p","di cui dotate di pre-trattamenti","n.",null,null,null,null,null,{"$f":"IF(OR(E99<0,E99>E97),\"Il valore deve essere maggiore o uguale a zero e minore o uguale a UtT_FOG,ind\",\"\")","v":""},null,null,0]
["UtTFOG,ind,d","di cui con parametri in deroga alla tabella 3, Allegato 5, Parte III, D.lgs 152/2006","n.",null,null,null,null,null,{"$f":"IF(OR(E100<0,E100>E97),\"Il valore deve essere maggiore o uguale a zero e minore o uguale a UtT_FOG,ind\",\"\")","v":""},null,null,0]
["UtTcond,FOG","Numero di utenze condominiali servite dal gestore per il servizio di fognatura","n.",null,null,"Come da definizioni RQTI",null,null,{"$f":"IF(OR(E101<0,E101>E95),\"Il valore deve essere maggiore o uguale a zero e minore o uguale a UtT_FOG\",\"\")","v":""},null,null,0]
["UtTindr,FOG","Numero di utenti indiretti sottesi alle utenze condominiali servite dal gestore per il servizio di fognatura","n.",null,null,"Come da definizioni RQTI",null,null,{"$f":"IF(E102<E101,\"Il valore deve essere maggiore di UtT_cond,FOG\",\"\")","v":""},null,null,0]
["Utot,FOG","Numero di utenti finali serviti dal gestore per il servizio di fognatura (compresi utenti indiretti)","n.",null,{"$f":"IF((E95-E101+E102)<0,\"\",E95-E101+E102)","v":0},null,null,null,null,null,null,0]
["Aggtot","Numero agglomerati individuati nel territorio gestito","n.",null,{"$f":"'QT-Depurazione'!E36","v":0},null,null,null,{"$f":"IF(E104<0,\"Il valore deve essere maggiore o uguale a zero\",\"\")","v":""},null,null,0]
["AggA1","di cui < 1.000 A.E.","n.",null,null,"Laddove disponibile",null,null,{"$f":"IF(OR(E105<>\"\",E106<>\"\",E107<>\"\",E108<>\"\",E109<>\"\",E110<>\"\",E111<>\"\"),IF(OR(E105<0,E106<0,E107<0,E108<0,E109<0,E110<0,E111<0,E111+E110+E109+E108+E107+E106+E105<>E104),\"Ogni di cui deve essere maggiore o uguale a zero e la somma deve essere pari a Agg_tot\",\"\"),\"\")","v":""},null,null,0]
["AggA2","di cui 1.000 <= A.E. < 2.000 ","n.",null,null,"Laddove disponibile",null,null,null,null,null,0]
["AggB","di cui 2.000 <= A.E. < 10.000","n.",null,null,"Laddove disponibile",null,null,null,null,null,0]
["AggC1","di cui 10.000 <= A.E. < 50.000","n.",null,null,"Laddove disponibile",null,null,null,null,null,0]
["AggC2","di cui 50.000 <= A.E. < 100.000","n.",null,null,"Laddove disponibile",null,null,null,null,null,0]
["AggD","di cui 100.000 <= A.E. < 500.000","n.",null,null,"Laddove disponibile",null,null,null,null,null,0]
["AggE","di cui A.E. >= 500.000","n.",null,null,"Laddove disponibile",null,null,null,null,null,0]
["Cargen","Totale carico inquinante delle acque reflue del territorio servito (carico generato)","A.E.",null,null,"Carico biodegradabile generato nel territorio in cui è svolto il servizio di fognatura",null,null,{"$f":"IF(E112<0,\"Il valore deve essere maggiore di zero\",\"\")","v":""},null,null,0]
["Cargen,dnd","di cui di origine domestica o non domestica assimilabile","A.E.",null,null,null,null,null,{"$f":"IF(OR(E113<>\"\",E114<>\"\"),IF(OR(E113<0,E114<0,E114+E113<>E112),\"Ogni di cui deve essere maggiore o uguale a zero e la somma deve essere pari a Car_gen\",\"\"),\"\")","v":""},null,null,0]
["Cargen,ind","di cui di origine industriale","A.E.",null,null,null,null,null,null,null,null,0]
["Carcol","Totale carico inquinante delle acque reflue collettate in rete fognaria (carico collettato)","A.E.",null,null,"Componente di carico biodegradabile generato nel territorio in cui è svolto il servizio di fognatura ed effettivamente collettato in fognatura",null,null,{"$f":"IF(OR(E115<0,E115>E112),\"Il valore deve essere maggiore di zero e minore o uguale a Car_gen\",\"\")","v":""},null,null,0]
["Carcol,dnd","di cui di origine domestica o non domestica assimilabile","A.E.",null,null,null,null,null,{"$f":"IF(OR(E116<>\"\",E117<>\"\"),IF(OR(E116<0,E117<0,E117+E116<>E115),\"Ogni di cui deve essere maggiore o uguale a zero e la somma deve essere pari a Car_col\",\"\"),\"\")","v":""},null,null,0]
["Carcol,ind","di cui di origine industriale","A.E.",null,null,null,null,null,null,null,null,0]
[null,null,null,null,null,null,null,null,null,null,null,0]
["DEPURAZIONE - Ulteriori dati",null,null,null,null,null,null,null,null,null,null,0]
["Ndep","Numero complessivo di impianti di depurazione (incluse vasche Imhoff)","n.",null,{"$f":"'QT-Depurazione'!E92","v":0},null,null,null,null,null,null,0]
["Ndep0","di cui vasche Imhoff","n.",null,{"$f":"J161","v":0},"Vedere la successiva sezione \"Numero di depuratori per tipologia di trattamento e potenzialità di trattamento\"",null,null,{"$f":"IF(OR(E121<>\"\",E122<>\"\",E123<>\"\",E124<>\"\",E125<>\"\"),IF(OR(E121<0,E122<0,E123<0,E124<0,E125<0,E121+E122+E123+E124+E125<>E120),\"Ogni di cui deve essere maggiore o uguale a zero e la somma deve essere pari a Ndep\",\"\"),\"\")","v":""},null,null,0]
["Ndep1","di cui con trattamento sino al primario","n.",null,{"$f":"J162","v":0},"Vedere la successiva sezione \"Numero di depuratori per tipologia di trattamento e potenzialità di trattamento\"",null,null,null,null,null,0]
["Ndep2","di cui con trattamento sino al secondario","n.",null,{"$f":"J163","v":0},"Vedere la successiva sezione \"Numero di depuratori per tipologia di trattamento e potenzialità di trattamento\"",null,null,null,null,null,0]
["Ndep3","di cui con trattamento sino al terziario","n.",null,{"$f":"J164","v":0},"Vedere la successiva sezione \"Numero di depuratori per tipologia di trattamento e potenzialità di trattamento\"",null,null,null,null,null,0]
["Ndep4","di cui con trattamento sino al quaternario","n.",null,{"$f":"J165","v":0},"Vedere la successiva sezione \"Numero di depuratori per tipologia di trattamento e potenzialità di trattamento\"",null,null,null,null,null,0]
["Ndep","Numero complessivo di impianti di depurazione (incluse vasche Imhoff) ","n.",null,{"$f":"E120","v":0},null,null,null,null,null,null,{"$f":"IF(I126=\"\",0,1)","v":0}]
["NdepA1","di cui con potenzialità A.E. < 1.000","n.",null,{"$f":"C166","v":0},"Vedere la successiva sezione \"Numero di depuratori per tipologia di trattamento e potenzialità di trattamento\"",null,null,{"$f":"IF(OR(E127<>\"\",E128<>\"\",E129<>\"\",E130<>\"\",E131<>\"\",E132<>\"\",E133<>\"\"),IF(OR(E127<0,E128<0,E129<0,E130<0,E131<0,E132<0,E133<0,E133+E132+E131+E130+E129+E128+E127<>E126),\"Ogni di cui deve essere maggiore o uguale a zero e la somma deve essere pari a Ndep\",\"\"),\"\")","v":""},null,null,{"$f":"IF(I127=\"\",0,1)","v":0}]
["NdepA2","di cui con potenzialità 1.000 <= A.E. < 2.000 ","n.",null,{"$f":"D166","v":0},"Vedere la successiva sezione \"Numero di depuratori per tipologia di trattamento e potenzialità di trattamento\"",null,null,null,null,null,{"$f":"IF(I128=\"\",0,1)","v":0}]
["NdepB","di cui con potenzialità 2.000 <= A.E. < 10.000 ","n.",null,{"$f":"E166","v":0},"Vedere la successiva sezione \"Numero di depuratori per tipologia di trattamento e potenzialità di trattamento\"",null,null,null,null,null,0]
["NdepC1","di cui con potenzialità 10.000 <= A.E. < 50.000","n.",null,{"$f":"F166","v":0},"Vedere la successiva sezione \"Numero di depuratori per tipologia di trattamento e potenzialità di trattamento\"",null,null,null,null,null,0]
["NdepC2","di cui con potenzialità 50.000 <= A.E. < 100.000","n.",null,{"$f":"G166","v":0},"Vedere la successiva sezione \"Numero di depuratori per tipologia di trattamento e potenzialità di trattamento\"",null,null,null,null,null,0]
["NdepD","di cui con potenzialità 100.000 <= A.E. <500.000","n.",null,{"$f":"H166","v":0},"Vedere la successiva sezione \"Numero di depuratori per tipologia di trattamento e potenzialità di trattamento\"",null,null,null,null,null,0]
["NdepE","di cui con potenzialità A.E. >= 500.000","n.",null,{"$f":"I166","v":0},"Vedere la successiva sezione \"Numero di depuratori per tipologia di trattamento e potenzialità di trattamento\"",null,null,null,null,null,0]
["Cargen_dep","Totale carico inquinante delle acque reflue del territorio gestito (carico generato)","A.E.",null,null,"In caso di gestione completamente integrata, questo valore coincide con il carico generato Cargen di cui alla riga 112",null,null,{"$f":"IF(E134<0,\"Il valore deve essere maggiore o uguale a zero\",\"\")","v":""},null,null,0]
["Cardep","Totale carico inquinante collettato in rete fognaria e depurato in impianti di trattamento di acque reflue urbane incluse vasche Imhoff ","A.E.",null,{"$f":"'QT-Depurazione'!E8","v":0},null,null,null,null,null,null,0]
["Cardep0","di cui confluito in vasche Imhoff","A.E.",null,{"$f":"J171","v":0},"Vedere la successiva sezione \"Carico inquinante collettato (A.E.) per tipologia di trattamento e potenzialità di trattamento\"",null,null,{"$f":"IF(OR(E136<>\"\",E137<>\"\",E138<>\"\",E139<>\"\",E140<>\"\"),IF(OR(E136<0,E137<0,E138<0,E139<0,E140<0,E136+E137+E138+E139+E140<>E135),\"Ogni di cui deve essere maggiore o uguale a zero e la somma deve essere pari a Car_dep\",\"\"),\"\")","v":""},null,null,0]
["Cardep1","di cui confluito in trattamenti sino ai primari","A.E.",null,{"$f":"J172","v":0},"Vedere la successiva sezione \"Carico inquinante collettato (A.E.) per tipologia di trattamento e potenzialità di trattamento\"",null,null,null,null,null,0]
["Cardep2","di cui confluito in trattamenti sino ai secondari","A.E.",null,{"$f":"J173","v":0},"Vedere la successiva sezione \"Carico inquinante collettato (A.E.) per tipologia di trattamento e potenzialità di trattamento\"",null,null,null,null,null,0]
["Cardep3","di cui confluito in trattamenti sino ai terziari","A.E.",null,{"$f":"J174","v":0},"Vedere la successiva sezione \"Carico inquinante collettato (A.E.) per tipologia di trattamento e potenzialità di trattamento\"",null,null,null,null,null,0]
["Cardep4","di cui confluito in trattamenti sino al quaternario","A.E.",null,{"$f":"J175","v":0},"Vedere la successiva sezione \"Carico inquinante collettato (A.E.) per tipologia di trattamento e potenzialità di trattamento\"",null,null,null,null,null,0]
["Cardep","Totale carico inquinante collettato in rete fognaria e depurato in impianti di trattamento di acque reflue urbane incluse vasche Imhoff ","A.E.",null,{"$f":"E135","v":0},null,null,null,null,null,null,0]
["CardepA1","di cui con potenzialità A.E. < 1.000","A.E.",null,{"$f":"C176","v":0},"Vedere la successiva sezione \"Carico inquinante collettato (A.E.) per tipologia di trattamento e potenzialità di trattamento\"",null,null,{"$f":"IF(OR(E142<>\"\",E143<>\"\",E144<>\"\",E145<>\"\",E146<>\"\",E147<>\"\",E148<>\"\"),IF(OR(E142<0,E143<0,E144<0,E145<0,E146<0,E147<0,E148<0,E142+E143+E144+E145+E146+E147+E148<>E141),\"Ogni di cui deve essere maggiore o uguale a zero e la somma deve essere pari a Cardep\",\"\"),\"\")","v":""},null,null,0]
["CardepA2","di cui con potenzialità 1.000 <= A.E. < 2.000 ","A.E.",null,{"$f":"D176","v":0},"Vedere la successiva sezione \"Carico inquinante collettato (A.E.) per tipologia di trattamento e potenzialità di trattamento\"",null,null,null,null,null,0]
["CardepB","di cui con potenzialità 2.000 <= A.E. < 10.000 ","A.E.",null,{"$f":"E176","v":0},"Vedere la successiva sezione \"Carico inquinante collettato (A.E.) per tipologia di trattamento e potenzialità di trattamento\"",null,null,null,null,null,0]
["CardepC1","di cui con potenzialità 10.000 <= A.E. < 50.000","A.E.",null,{"$f":"F176","v":0},"Vedere la successiva sezione \"Carico inquinante collettato (A.E.) per tipologia di trattamento e potenzialità di trattamento\"",null,null,null,null,null,0]
["CardepC2","di cui con potenzialità 50.000 <= A.E. < 100.000","A.E.",null,{"$f":"G176","v":0},"Vedere la successiva sezione \"Carico inquinante collettato (A.E.) per tipologia di trattamento e potenzialità di trattamento\"",null,null,null,null,null,0]
["CardepD","di cui con potenzialità 100.000 <= A.E. <500.000","A.E.",null,{"$f":"H176","v":0},"Vedere la successiva sezione \"Carico inquinante collettato (A.E.) per tipologia di trattamento e potenzialità di trattamento\"",null,null,null,null,null,0]
["CardepE","di cui con potenzialità A.E. >= 500.000","A.E.",null,{"$f":"I176","v":0},"Vedere la successiva sezione \"Carico inquinante collettato (A.E.) per tipologia di trattamento e potenzialità di trattamento\"",null,null,null,null,null,0]
["WDEPin","Volume totale reflui in ingresso alla depurazione","mc",null,null,null,null,null,{"$f":"IF(E149<0,\"Il valore deve essere maggiore di zero\",\"\")","v":""},null,null,0]
["WRIF_Lin","Volume totale rifiuti liquidi in ingresso alla depurazione","mc",null,null,null,null,null,{"$f":"IF(E150<0,\"Il valore deve essere maggiore o uguale a zero\",\"\")","v":""},null,null,0]
["WDEP","Volume totale reflui depurati in uscita dalla depurazione","mc",null,null,"Voce spostata nel foglio QT-Depurazione",null,null,null,null,null,0]
["WDEP,r1","di cui destinabile al riutilizzo","mc",null,null,"Voce spostata nel foglio QT-Depurazione",null,null,null,null,null,0]
["WDEP,r2","di cui destinato al riutilizzo","mc",null,null,"Voce spostata nel foglio QT-Depurazione",null,null,null,null,null,0]
["Ndepess","Numero complessivo di impianti di depurazione con sezione di essiccamento dei fanghi","n.",null,null,null,null,null,{"$f":"IF(OR(E154<0,E154>E120),\"Il valore deve essere maggiore o uguale a zero e minore o uguale a Ndep\",\"\")","v":""},null,null,0]
["Ndepdig_an","Numero complessivo di impianti di depurazione con digestione anaerobica nella linea di trattamento fanghi","n.",null,null,"Non è la somma dei \"di cui\" sottostanti",null,null,{"$f":"IF(OR(E155<0,E155>E120),\"Il valore deve essere maggiore o uguale a zero e minore o uguale a Ndep\",\"\")","v":""},null,null,0]
["Ndepdig_an,FOR","di cui co-trattamento con FORSU/altri scarti organici","n.",null,null,null,null,null,{"$f":"IF(OR(E156<0,E156>E155),\"Il valore deve essere maggiore o uguale a zero e minore o uguale a Ndepdig_an\",\"\")","v":""},null,null,0]
["Ndepdig_an,BGAS","di cui con valorizzazione energetica del biogas prodotto","n.",null,null,null,null,null,{"$f":"IF(OR(E157<0,E157>E155),\"Il valore deve essere maggiore o uguale a zero e minore o uguale a Ndepdig_an\",\"\")","v":""},null,null,0]
[]
[null,"Numero di depuratori per tipologia di trattamento e potenzialità di trattamento (anno 2025)"]
[null,"Tipo trattamento/ Potenzialità","< 1.000 A.E.","1000<= A.E. < 2.000 ","2.000 <= A.E. < 10.000","10.000 <= A.E. < 50.000","50.000 <= A.E. < 100.000","100.000 <= A.E. < 500.000","A.E. >= 500.000","Totale"]
[null,"vasche Imhoff",null,null,null,null,null,null,null,{"$f":"SUM(C161:I161)","v":0},{"$f":"IF(SUM(C161:I161)<>J161,\"La somma delle celle non restituisce il totale imputato\",\"\")","v":""},{"$f":"IF(SUM(C161:I161)<>J161,1,0)","v":0}]
[null,"trattamento sino al primario",null,null,null,null,null,null,null,{"$f":"SUM(C162:I162)","v":0},"",0]
[null,"trattamento sino al secondario",null,null,null,null,null,null,null,{"$f":"SUM(C163:I163)","v":0},"",0]
[null,"trattamento sino al terziario",null,null,null,null,null,null,null,{"$f":"SUM(C164:I164)","v":0},"",0]
[null,"trattamento sino al quaternario",null,null,null,null,null,null,null,{"$f":"SUM(C165:I165)","v":0},"",0]
[null,"Totale",{"$f":"SUM(C161:C165)","v":0},{"$f":"SUM(D161:D165)","v":0},0,0,{"$f":"SUM(G161:G165)","v":0},{"$f":"SUM(H161:H165)","v":0},{"$f":"SUM(I161:I165)","v":0},{"$f":"E120","v":0},"",0]
[null,null,{"$f":"IF(SUM(C161:C165)<>C166,\"La somma delle celle non restituisce il totale imputato\",\"\")","v":""},"","","",{"$f":"IF(SUM(G161:G165)<>G166,\"La somma delle celle non restituisce il totale imputato\",\"\")","v":""},{"$f":"IF(SUM(H161:H165)<>H166,\"La somma delle celle non restituisce il totale imputato\",\"\")","v":""},{"$f":"IF(SUM(I161:I165)<>I166,\"La somma delle celle non restituisce il totale imputato\",\"\")","v":""},null,null,{"$f":"COUNTIF(C167:I167,\"La somma delle celle non restituisce il totale imputato\")","v":0}]
[]
[null,"Carico inquinante collettato (A.E.) per tipologia di trattamento e potenzialità di trattamento (anno 2025)"]
[null,"Tipo trattamento/ Potenzialità","< 1.000 A.E.","1000<= A.E. < 2.000 ","2.000 <= A.E. < 10.000","10.000 <= A.E. < 50.000","50.000 <= A.E. < 100.000","100.000 <= A.E. < 500.000","A.E. >= 500.000","Totale"]
[null,"vasche Imhoff",null,null,null,null,null,null,null,{"$f":"SUM(C171:I171)","v":0},{"$f":"IF(SUM(C171:I171)<>J171,\"La somma delle celle non restituisce il totale imputato\",\"\")","v":""},{"$f":"IF(SUM(C171:I171)<>J171,1,0)","v":0}]
[null,"trattamento sino al primario",null,null,null,null,null,null,null,{"$f":"SUM(C172:I172)","v":0},"",0]
[null,"trattamento sino al secondario",null,null,null,null,null,null,null,{"$f":"SUM(C173:I173)","v":0},"",0]
[null,"trattamento sino al terziario",null,null,null,null,null,null,null,{"$f":"SUM(C174:I174)","v":0},"",0]
[null,"trattamento sino al quaternario",null,null,null,null,null,null,null,{"$f":"SUM(C175:I175)","v":0},"",0]
[null,"Totale",{"$f":"SUM(C171:C175)","v":0},{"$f":"SUM(D171:D175)","v":0},0,0,{"$f":"SUM(G171:G175)","v":0},{"$f":"SUM(H171:H175)","v":0},{"$f":"SUM(I171:I175)","v":0},{"$f":"E135","v":0},"",0]
[null,null,{"$f":"IF(SUM(C171:C175)<>C176,\"La somma delle celle non restituisce il totale imputato\",\"\")","v":""},{"$f":"IF(SUM(D171:D175)<>D176,\"La somma delle celle non restituisce il totale imputato\",\"\")","v":""},"","","","",{"$f":"IF(SUM(I171:I175)<>I176,\"La somma delle celle non restituisce il totale imputato\",\"\")","v":""},null,null,{"$f":"COUNTIF(C177:I177,\"La somma delle celle non restituisce il totale imputato\")","v":0}]
[]
[]
[]
[]
[]
[]
[null,"X"]

{"sheet":"QT-Resilienza","index":59,"n_rows":121,"n_cols":12,"rows_kept":121,"cut":false,"hidden":true,"merged":[[40,8,46,8]]}
[null,"Dati per l'applicazione dei meccanismi di \nincentivazione RQTI (premi e penalità)\nTutti i valori imputati sono intesi essere valori \nconsuntivi ",null,null,null,null,null,null,null,null,null,"Errori compilazione colonna \"Valore Anno 2025\""]
["Notazione dato ","Descrizione dato","UdM",null,"Valore Anno 2025","Note compilazione",null,null,"Errore rilevato in colonna \"Valore Anno 2025\"",null,null,{"$f":"SUM(L3:L90)","v":0}]
["ACQ","Il gestore gestisce il servizio di acquedotto?","-",null,{"$f":"'QT-Acquedotto'!E3","v":0},null,null,null,null,null,null,{"$f":"IF(I3=\"\",0,1)","v":0}]
["FOG","Il gestore gestisce il servizio di fognatura?","-",null,{"$f":"'QT-Fognatura'!E3","v":0},null,null,null,null,null,null,0]
["DEP","Il gestore gestisce il servizio di depurazione?","-",null,{"$f":"'QT-Depurazione'!E3","v":0},null,null,null,null,null,null,0]
["QR1","Indicare se il macro-indicatore M0 è determinato congiuntamente con altri gestori (grossisti)","-",null,null,"Fornire dettagli in relazione in merito alle gestioni valutate congiuntamente",null,null,null,null,null,0]
["QR2","In caso affermativo, indicare i codici ID_ARERA dei grossisti considerati ","-",null,null,"Se è considerato più di un gestore grossista, indicare tutti gli ID_ARERA consecutivamente, separati da un trattino",null,null,{"$f":"IF(AND(E6=\"SI\",E7=\"\"),\"Indicare codici ID_ARERA dei grossisti considerati\",\"\")","v":""},null,null,0]
[]
["Valutazione prerequisiti e indicazione istanze presentate per M0"]
["Preq4M0","Indicare l'esito della validazione ai fini della valutazione della disponibilità e affidabilità dei dati per M0 (prerequisito Preq4) ","-",null,null,"Indicare la presenza o meno del prerequisito Preq4 (Art.23 RQTI) ",null,null,{"$f":"IF(AND(E$3=\"SI\",OR(E10=\"Non adeguato\",E10=\"\")),\"Attenzione, prerequisito mancante\",\"\")","v":""},null,null,{"$f":"IF(I10=\"\",0,1)","v":0}]
["IstD,M0","Indicare se è stata formulata istanza per eventi imprevisti e imprevedibili che hanno comportato il mancato rispetto degli obiettivi per M0","-",null,null,"Istanza ex-post ai sensi del comma 5.4, del. 917/2017 ",null,null,null,null,null,0]
[]
["Calcolo dell'indicatore M0a"]
["∑disp_SII","Somma dei volumi di disponibilità idrica a livello di gestione del SII","mc",null,{"$f":"E15+E16+E17+E18+E19","v":0},null,null,null,null,null,null,0]
["∑falda_SII","di cui proveniente da falda_SII","mc",null,null,"Volumi indicati nelle concessioni di derivazione, ai sensi del comma 5-ter.2",null,null,{"$f":"IF(E15<0,\"Il valore deve essere maggiore o uguale a zero\",\"\")","v":""},null,null,0]
["∑invasi_SII","di cui proveniente da invasi_SII","mc",null,null,"Volumi indicati nelle concessioni di derivazione, ai sensi del comma 5-ter.2",null,null,"",null,null,0]
["∑CIS_SII","di cui proveniente da altri corpi idrici superficiali_SII","mc",null,null,"Volumi indicati nelle concessioni di derivazione, ai sensi del comma 5-ter.2",null,null,"",null,null,0]
["∑dissalazione_SII","di cui proveniente da dissalazione_SII","mc",null,null,"Capacità autorizzata, ai sensi del comma 5-ter.2",null,null,"",null,null,0]
["∑riuso_SII","di cui proveniente da riuso_SII","mc",null,{"$f":"'QT-Depurazione'!E134","v":0},"Volume effettivamente destinato al riutilizzo, ai sensi del comma 5-ter.2",null,null,{"$f":"IF(E19<>'QT-Depurazione'!E134,\"Il valore risulta diverso da WDEP,r2 riportato nel foglio QT-Depurazione: motivare in relazione\",\"\")","v":""},null,null,0]
["Conc_ter_SII","Quote di concessioni di terzi","mc",null,null,null,null,null,{"$f":"IF(E20<0,\"Il valore deve essere maggiore o uguale a zero\",\"\")","v":""},null,null,0]
["Wimp_SII","Volume di acqua importata da altri soggetti","mc",null,null,"Volume di acqua (potabile o non potabile) prelevato da sistemi di acquedotto/captazione gestiti da altre gestioni e immesso nella rete di adduzione e/o di distribuzione",null,null,{"$f":"IF(E21<>'QT-Acquedotto'!E29,\"Il valore risulta diverso da Wimp riportato nel foglio QT-Acquedotto: motivare in relazione\",\"\")","v":""},null,null,0]
["Wesp_SII","Volume di acqua esportata in adduzione e/o in distribuzione","mc",null,null,"Volume di acqua (potabile o non potabile) prelevato dalla rete di adduzione e/o di distribuzione e ceduto a sistemi di acquedotto gestiti da altre gestioni",null,null,{"$f":"IF(E22<>'QT-Acquedotto'!E33,\"Il valore risulta diverso da Wesp riportato nel foglio QT-Acquedotto: motivare in relazione\",\"\")","v":""},null,null,0]
["Interconnessioni_SII","Valore assoluto dei volumi scambiati tra gestioni (ceduti o acquistati) per il tramite di interconnessioni_SII","mc",null,{"$f":"E21+E22","v":0},null,null,null,null,null,null,0]
["Cons_SII","Consumi SII","mc",null,{"$f":"'QT-Acquedotto'!E28","v":0},"Qualora il dato riportato in automatico non corrisponda al dato reale, motivare in relazione",null,null,{"$f":"IF(E24<>'QT-Acquedotto'!E28,\"Motivare in relazione\",\"\")","v":""},null,null,0]
["M0a","Resilienza idrica a livello di gestione del servizio idrico integrato ","-",null,{"$f":"IF(AND(E15=\"\",E16=\"\",E17=\"\",E18=\"\",E19=0,E21=0),\"\",(E24-E22)/(E14+E20+E21))","v":""},"Vedere RQTI all'articolo 5-ter",null,null,{"$f":"IF(AND(E$3=\"SI\",E25=\"\"),\"Indicatore non calcolabile\",\"\")","v":""},null,null,0]
[]
["Calcolo dell'indicatore M0b - fase sperimentale"]
["QR3","L'Autorità di Bacino Distrettuale competente ha provveduto alla definizione della dimensione territoriale di riferimento per la determinazione di M0b per l'anno in considerazione?","-",null,null,"Vedere RQTI al comma 5-quater.5 lett. a) ",null,null,null,null,null,0]
["QR4","Indicare se il territorio considerato è inferiore a quello regionale","-",null,null,"Vedere RQTI al comma 5-quater.5 lett. a) - Specificare dettagli in relazione ",null,null,{"$f":"IF(E29=\"SI\",\"Motivare sulla base di un apposito studio/analisi dei criteri idrogeologici\",\"\")","v":""},null,null,0]
["QR5","Per l'annualità in considerazione è stata dichiarata crisi idrica con riferimento al territorio considerato?","-",null,null,null,null,null,null,null,null,0]
["QR6","Sempre con riferimento al territorio considerato, in quali altre annualità è stata dichiarata crisi idrica? (a partire dal 2018 incluso) - specificare",null,null,null,null,null,null,null,null,null,0]
["QR7","Indicare la condizione di criticità del territorio (alta, media, bassa)","-",null,null,"Vedere RQTI alla Tav. 1.ter - Specificare in Relazione le annualità di crisi idrica",null,null,{"$f":"IF(E3=0,\"\",IF(E32=\"\",\"Selezionare la condizione di criticità\",\"\"))","v":""},null,null,0]
["Cons_tot","Consumi idrici totali","mc",null,{"$f":"E34+E36+E38+E40","v":0},"Vedere RQTI al comma 5-quater.2",null,null,null,null,null,0]
["Cons_ap","di cui consumi acqua potabile","mc",null,null,"Il valore deve essere almeno pari a quello riportato nella voce \"Cons_SII\" (riga 24)",null,null,{"$f":"IF(E34<E24,\"Il valore deve essere maggiore o uguale a Cons_SII\",\"\")","v":""},null,null,0]
["Cons_ap_mis"," di cui consumi acqua potabile provenienti da fonti misurate","mc",null,null,null,null,null,{"$f":"IF(E35>E34,\"Il valore deve essere minore o uguale a Cons_ap\",\"\")","v":""},null,null,0]
["Cons_irr","di cui consumi irrigui","mc",null,null,null,null,null,{"$f":"IF(E36<0,\"Il valore deve essere maggiore o uguale a zero\",\"\")","v":""},null,null,0]
["Cons_irr_mis"," di cui consumi irrigui provenienti da fonti misurate","mc",null,null,null,null,null,{"$f":"IF(E37>E36,\"Il valore deve essere minore o uguale a Cons_irr\",\"\")","v":""},null,null,0]
["Cons_ind","di cui consumi industriali","mc",null,null,null,null,null,"",null,null,0]
["Cons_ind_mis"," di cui consumi indistriali provenienti da fonti misurate","mc",null,null,null,null,null,{"$f":"IF(E39>E38,\"Il valore deve essere minore o uguale a Cons_ind\",\"\")","v":""},null,null,0]
["Cons_al","di cui altri consumi","mc",null,null,null,null,null,"",null,null,0]
["Cons_al_ap","di cui autoapprovvigionamento potabile","mc",null,null,"Laddove il dettaglio sia disponibile",null,null,{"$f":"IF(OR(E41<>\"\",E42<>\"\",E43<>\"\",E44<>\"\",E45<>\"\",E46<>\"\",E47<>\"\"),IF(OR(E41<0,E42<0,E43<0,E44<0,E45<0,E46<0,E47<0,E41+E42+E43+E44+E45+E46+E47<>E40),\"Ogni di cui deve essere maggiore o uguale a zero e la somma deve essere pari a Cons_al\",\"\"),\"\")","v":""},null,null,0]
["Cons_al_ig","di cui uso igienico ed usi assimilati","mc",null,null,"Laddove il dettaglio sia disponibile",null,null,null,null,null,0]
["Cons_al_p","di cui uso piscicolo","mc",null,null,"Laddove il dettaglio sia disponibile",null,null,null,null,null,0]
["Cons_al_z","di cui uso zootecnico","mc",null,null,"Laddove il dettaglio sia disponibile",null,null,null,null,null,0]
["Cons_al_t","di cui uso nell’ambito di acquapark o stabilimenti termali e simili","mc",null,null,"Laddove il dettaglio sia disponibile",null,null,null,null,null,0]
["Cons_al_im","di cui acque minerali destinate all’imbottigliamento","mc",null,null,"Laddove il dettaglio sia disponibile",null,null,null,null,null,0]
["Cons_al_ult","di cui consumi ulteriori","mc",null,null,"Laddove il dettaglio sia disponibile - Fornire dettagli in relazione in merito alla tipologia di ulteriore tipologia di consumo considerata",null,null,null,null,null,0]
["Cons_al","di cui altri consumi","mc",null,{"$f":"E40","v":0},null,null,null,{"$f":"IF(E48<0,\"Il valore deve essere maggiore o uguale a zero\",\"\")","v":""},null,null,0]
["Cons_al_mis"," di cui altri consumi provenienti da fonti misurate","mc",null,null,null,null,null,{"$f":"IF(E49>E48,\"Il valore deve essere minore o uguale a Cons_al\",\"\")","v":""},null,null,0]
["Cons_irr_crisi","Indicare se i consumi irrigui sono ottenuti come media dei prelievi delle 3 annualità più recenti in cui non si sono verificate crisi idriche","-",null,null,"Vedere RQTI al comma 5-quater.5 lett. b.1) ",null,null,{"$f":"IF(AND(E50=\"SI\",E30=\"NO\"),\"Attenzione: è stato indicato NO al quesito QR5\",\"\")","v":""},null,null,{"$f":"IF(I50=\"\",0,1)","v":0}]
["Cons_ind_crisi","Indicare se i consumi industriali sono ottenuti come media dei prelievi delle 3 annualità più recenti in cui non si sono verificate crisi idriche","-",null,null,"Vedere RQTI al comma 5-quater.5 lett. b.2) ",null,null,{"$f":"IF(AND(E51=\"SI\",E30=\"NO\"),\"Attenzione: è stato indicato NO al quesito QR5\",\"\")","v":""},null,null,{"$f":"IF(I51=\"\",0,1)","v":0}]
["∑disp_tot","Somma dei volumi di disponibilità idrica a livello sovraordinato","mc",null,{"$f":"IF(E56=\"\",\"\",E56+E57+E59+E61+E62)","v":""},"Vedere RQTI al comma 5-bis.4",null,null,null,null,null,0]
["QR8","Indicare \"NO\" se non si intende utilizzare - neanche parzialmente - la modalità di stima euristica di cui alla Tavola 1.ter (viceversa non compilare)","-",null,null,"Motivare in relazione secondo quanto previsto dal comma 5-quater.5 lett. d.5) della RQTI",null,null,null,null,null,{"$f":"IF(I53=\"\",0,1)","v":0}]
["∑falda_calc","Calcolo euristico di cui alla Tavola 1.ter","mc",null,{"$f":"IF(OR(E32=\"\",E53=\"NO\"),\"\",IF(E32=\"Bassa\",MAX(0,3*E33-(E57+E59+E61+E62)-E64),IF(E32=\"Media\",MAX(0,1.3*E33-(E57+E59+E61+E62)-E64),IF(E32=\"Alta\",MAX(0,0.9*E33-(E57+E59+E61+E62)-E64)))))","v":""},"Vedere RQTI alla Tav. 1.ter",null,null,null,null,null,0]
["∑falda_mis","Volumi di disponibilità idrica provenienti da falda ricavabili da misurazioni effettive","mc",null,null,"Specificare in relazione le metodologie adottate, con particolare riferimento alla ricostruzione tridimensionale dei volumi di falda, sulla base delle caratteristiche geologiche, idrogeologiche e geomorfologiche del sottosuolo",null,null,{"$f":"IF(E53<>\"NO\",\"\",IF(AND(E15<>\"\",E54=\"\",E55=\"\"),\"Il valore deve essere maggiore o uguale a zero e maggiore o uguale a ∑falda_SII\",\"\"))","v":""},null,null,{"$f":"IF(I55=\"\",0,1)","v":0}]
["∑falda_tot","Volumi di disponibilità idrica provenienti da falda","mc",null,{"$f":"IF(E53<>\"NO\",E54,E55)","v":""},"Vedere RQTI al comma 5-quater.5 lett. d.5) ",null,null,{"$f":"IF(E56<0,\"Il valore deve essere maggiore o uguale a zero\",IF(E56<E15,\"Il valore è inferiore a ∑falda_SII\",\"\"))","v":""},null,null,{"$f":"IF(I56=\"\",0,1)","v":0}]
["∑invasi_tot","Volumi di disponibilità idrica provenienti da invasi","mc",null,null,null,null,null,{"$f":"IF(OR(E57<0,E57<E16),\"Il valore deve essere maggiore o uguale a zero e maggiore o uguale a ∑invasi_SII\",\"\")","v":""},null,null,0]
["∑invasi_tot_mis"," di cui disponibilità da invasi proveniente da fonti misurate","mc",null,null,null,null,null,{"$f":"IF(E58>E57,\"Il valore deve essere minore o uguale a ∑invasi_tot\",\"\")","v":""},null,null,0]
["∑CIS_tot","Volumi di disponibilità idrica provenienti da altri corpi idrici superficiali","mc",null,null,null,null,null,{"$f":"IF(OR(E59<0,E59<E17),\"Il valore deve essere maggiore o uguale a zero e maggiore o uguale a ∑CIS_SII\",\"\")","v":""},null,null,0]
["∑CIS_tot_mis"," di cui disponibilità da CIS proveniente da fonti misurate","mc",null,null,null,null,null,{"$f":"IF(E60>E59,\"Il valore deve essere minore o uguale a ∑CIS_tot\",\"\")","v":""},null,null,0]
["∑dissalazione_tot","Volumi di disponibilità idrica provenienti da dissalazione","mc",null,null,"Specificare in relazione se è considerata la capacità autorizzata o la capacità di trattamento massima degli impianti",null,null,{"$f":"IF(OR(E61<0,E61<E18),\"Il valore deve essere maggiore o uguale a zero e maggiore o uguale a ∑dissalazione_SII\",\"\")","v":""},null,null,0]
["∑riuso_tot","Volumi di disponibilità idrica provenienti da riuso","mc",null,null,null,null,null,{"$f":"IF(OR(E62<0,E62<E19),\"Il valore deve essere maggiore o uguale a zero e maggiore o uguale a ∑riuso_SII\",\"\")","v":""},null,null,0]
["∑riuso_tot_mis"," di cui disponibilità da riuso proveniente da fonti misurate","mc",null,null,null,null,null,{"$f":"IF(E63>E62,\"Il valore deve essere minore o uguale a ∑riuso_tot\",\"\")","v":""},null,null,0]
["Wimp_tot","Volumi di acqua acquistata da gestori posti al di fuori del territorio considerato","mc",null,null,"Vedere RQTI al comma 5-quater.2",null,null,{"$f":"IF(E64<0,\"Il valore deve essere maggiore o uguale a zero\",\"\")","v":""},null,null,0]
["Wesp_tot","Volumi di acqua ceduta all'ingrosso al di fuori del territorio considerato","mc",null,null,"Vedere RQTI al comma 5-quater.2",null,null,{"$f":"IF(E65<0,\"Il valore deve essere maggiore o uguale a zero\",\"\")","v":""},null,null,0]
["M0b","Resilienza idrica a livello sovraordinato ","-",null,{"$f":"IF(AND(E56=\"\",E57=\"\",E59=\"\",E61=\"\",E62=\"\",E64=\"\"),\"\",(E33-E65)/(E52+E64))","v":""},"Vedere RQTI all'articolo 5-quater",null,null,{"$f":"IF(AND(E$3=\"SI\",E66=\"\"),\"Indicatore non calcolabile\",\"\")","v":""},null,null,{"$f":"IF(I66=\"\",0,1)","v":0}]
[]
["Calcolo dell'obiettivo e degli indicatori secondari"]
["M0CL","Resilienza idrica - Classe di appartenenza","-",null,{"$f":"IF(OR(E25=\"\",E66=\"\"),\"\",IF(AND(E25<0.4,E66<=1),\"A\",IF(AND(E25<0.5,E66<=1),\"B\",IF(AND(E25<0.7,E66<=1),\"C\",IF(AND(E25<0.95,E66<=1),\"D\",\"E\")))))","v":""},"Vedere RQTI all'articolo 5-bis",null,null,null,null,null,0]
["OB0","Resilienza idrica - Obiettivo ","-",null,{"$f":"IF(E69=\"A\",\"Mantenimento\",IF(E69=\"B\",\"+0,2% di DISP\",IF(E69=\"C\",\"+0,5% di DISP\",IF(E69=\"D\",\"+0,7% di DISP\",IF(E69=\"E\",\"+1% di DISP\",\"\")))))","v":""},"Vedere RQTI all'articolo 5-bis",null,null,null,null,null,{"$f":"IF(I70=\"\",0,1)","v":0}]
["DISP","Disponibilità idrica","mc",null,{"$f":"E14+E20+E23","v":0},"Vedere RQTI al comma 5-bis.4",null,null,null,null,null,{"$f":"IF(I71=\"\",0,1)","v":0}]
["WEI+(a-3)","WEI+ anno (a-3)","%",null,null," Valore riferito all'area territoriale individuata per l’indicatore M0b",null,null,null,null,null,{"$f":"IF(I72=\"\",0,1)","v":0}]
["WEI+(a-2)","WEI+ anno (a-2)","%",null,null," Valore riferito all'area territoriale individuata per l’indicatore M0b",null,null,null,null,null,0]
["WEI+(a-1)","WEI+ anno (a-1)","%",null,null," Valore riferito all'area territoriale individuata per l’indicatore M0b",null,null,null,null,null,0]
["WEI+(a)","WEI+ anno (a)","%",null,null," Valore riferito all'area territoriale individuata per l’indicatore M0b",null,null,null,null,null,0]
["G0.0a","Impatto della ricarica rispetto ai consumi del territorio","%",null,{"$f":"IFERROR(IF(E25=\"\",\"\",AVERAGE(E72:E75)),\"\")","v":""},"Vedere RQTI al comma 5-bis.6 punto 1.a)",null,null,null,null,null,0]
["IF(a-7)","Internal_flow anno (a-7)","mm ",null,null," Valore riferito all'area territoriale individuata per l’indicatore M0b",null,null,null,null,null,0]
["IF(a-6)","Internal_flow anno (a-6)","mm",null,null," Valore riferito all'area territoriale individuata per l’indicatore M0b",null,null,null,null,null,0]
["IF(a-5)","Internal_flow anno (a-5)","mm",null,null," Valore riferito all'area territoriale individuata per l’indicatore M0b",null,null,null,null,null,0]
["IF(a-4)","Internal_flow anno (a-4)","mm",null,null," Valore riferito all'area territoriale individuata per l’indicatore M0b",null,null,null,null,null,0]
["IF(a-3)","Internal_flow anno (a-3)","mm",null,null," Valore riferito all'area territoriale individuata per l’indicatore M0b",null,null,null,null,null,0]
["IF(a-1)","Internal_flow anno (a-2)","mm",null,null," Valore riferito all'area territoriale individuata per l’indicatore M0b",null,null,null,null,null,0]
["IF(a-2)","Internal_flow anno (a-1)","mm",null,null," Valore riferito all'area territoriale individuata per l’indicatore M0b",null,null,null,null,null,0]
["IF(a)","Internal_flow anno (a)","mm",null,null," Valore riferito all'area territoriale individuata per l’indicatore M0b",null,null,null,null,null,0]
["G0.0b","Trend temporale della ricarica","-",null,{"$f":"IFERROR(IF(E25=\"\",\"\",SUM(E81:E84)/SUM(E77:E80)),\"\")","v":""},"Vedere RQTI al comma 5-bis.6 punto 1.b)",null,null,null,null,null,0]
["Wmax","Volume massimo derivabile dal sistema delle fonti di approvvigionamento nel giorno di massimo consumo dell'anno ","mc/gg",null,null,"all'interno del perimetro del gestore del SII",null,null,{"$f":"IF(E86<0,\"Il valore deve essere maggiore o uguale a zero\",\"\")","v":""},null,null,0]
["Wgg","Volume necessario a soddisfare la domanda nel giorno di massimo consumo dell'anno","mc/gg",null,null,"all'interno del perimetro del gestore del SII",null,null,{"$f":"IF(E87<0,\"Il valore deve essere maggiore o uguale a zero\",\"\")","v":""},null,null,0]
["G0.1","Disponibilità di picco","%",null,{"$f":"IF('QT-Acquedotto'!E67<0.7,1,IF(AND(E87>0,E86>0),E86/E87,\"\"))","v":""},"Vedere RQTI al comma 5-bis.6 punto 2.a)\n(è possibile che il dato sia superiore a 100%)",null,null,null,null,null,0]
["Wmax_prod","Volume prodotto dalla fonte di approvvigionamento più produttiva dell’anno","mc",null,null,"all'interno del perimetro del gestore del SII",null,null,{"$f":"IF(E89<0,\"Il valore deve essere maggiore o uguale a zero\",\"\")","v":""},null,null,0]
["G0.2","Differenziazione delle fonti di approvvigionamento","%",null,{"$f":"IF(AND(E34>0,E89>0),E89/E34,\"\")","v":""},"Vedere RQTI al comma 5-bis.6 punto 2.b)",null,null,null,null,null,0]
[]
[]
[]
[]
[]
[]
[]
[]
[]
[]
[]
[]
[]
[]
[]
[]
[]
[null,"Adeguato"]
[null,"Non adeguato"]
[]
[null,"NO"]
[]
[]
[null,"X"]
[]
[null,"Bassa"]
[null,"Media"]
[null,"Alta"]
[]
[null,"SI"]
[null,"NO"]

{"sheet":"Riepilogo_RQTI","index":60,"n_rows":117,"n_cols":26,"rows_kept":117,"cut":false,"hidden":false,"merged":[[88,0,88,1],[89,0,94,0],[19,15,21,15],[0,18,0,22],[1,0,1,1],[2,0,10,0],[2,9,4,11],[11,0,19,0],[15,9,16,9],[17,9,18,9],[17,10,18,10],[17,11,17,17],[19,9,21,9],[19,16,21,16],[19,17,21,17],[20,0,26,0],[22,9,24,9],[22,10,24,10],[19,10,21,10],[19,11,21,11],[19,12,21,12],[19,13,21,13],[19,14,21,14],[22,16,24,16],[22,17,24,17],[25,9,26,9],[25,10,26,10],[25,11,26,11],[25,12,26,12],[25,13,26,13],[25,14,26,14],[25,15,26,15],[25,16,26,16],[25,17,26,17],[22,12,24,12],[22,13,24,13],[22,14,24,14],[22,15,24,15],[22,11,24,11],[27,15,29,15],[27,16,29,16],[27,17,29,17],[27,12,29,12],[51,0,60,0],[61,0,68,0],[69,0,76,0],[77,0,83,0],[27,13,29,13],[39,0,50,0],[27,0,38,0],[27,9,29,9],[27,10,29,10],[27,11,29,11]]}
[null,"Riepilogo RQTI: identificazione obiettivi 2026-2027",null,null,null,null,null,null,null,null,null,null,null,null,null,null,null,null,null,null,null,null,null,null,"check_compilazione","Sono_presenti_errori"]
["Macro-indicatore",null,"Valori 2025 per definizione obiettivi","Definizione obiettivo 2026","Definizione obiettivo 2027","Valori 2026 consuntivi","Valori 2027 consuntivi",null,null,null,null,null,null,null,null,null,null,null,null,"Macro-indicatore",null,"Definizione obiettivo 2026",null,null,{"$f":"31-(COUNTIF(C3:C6,\"\")+COUNTIF(C12:C15,\"\")+COUNTIF(C21:C22,\"\")+COUNTIF(C28:C32,\"\")+COUNTIF(C40:C44,\"\")+COUNTIF(C52:C56,\"\")+COUNTIF(C62:C64,\"\")+COUNTIF(C70:C72,\"\"))","v":0},{"$f":"+Y2<5","v":true}]
["M0","Presenza prerequisito Preq4M0",null,null,null,null,null,null,null,"Ai fini della definizione degli obiettivi previsti dalla RQTI per gli anni 2026 e 2027, i dati di qualità tecnica relativi all’anno 2025 sono differenti da quelli inviati con la precedente raccolta dati di Qualità tecnica (nel file denominato RQTI_2026)?",null,null,null,null,null,null,null,null,null,"M0","Presenza prerequisito Preq4M0",{"$f":"IF('QT-Resilienza'!$E$10=\"\",\"\",'QT-Resilienza'!$E$10)","v":""}]
[null,"M0a",null,null,null,null,null,null,null,null,null,null,null,null,null,null,null,null,null,null,"M0a",{"$f":"IF('QT-Resilienza'!$E$25=\"\",\"\",'QT-Resilienza'!$E$25)","v":""}]
[null,"M0b",null,null,null,null,null,null,null,null,null,null,null,null,null,null,null,null,null,null,"M0b",{"$f":"IF('QT-Resilienza'!$E$66=\"\",\"\",'QT-Resilienza'!$E$66)","v":""}]
[null,"DISP",null,{"$f":"IF(C7=\"A\",C6,C9)","v":""},{"$f":"IF(D7=\"A\",D6,D9)","v":""},null,null,null,null,"Guida alla compilazione: Indicare SI/NO prima di compilare i dati",null,null,null,null,null,null,null,null,null,null,"DISP",{"$f":"IF('QT-Resilienza'!$E$71=\"\",\"\",'QT-Resilienza'!$E$71)","v":0}]
[null,"Classe",{"$f":"IF(OR(C4=\"\",C5=\"\"),\"\",IF(AND(C4<0.4,C5<=1),\"A\",IF(AND(C4<0.5,C5<=1),\"B\",IF(AND(C4<0.7,C5<=1),\"C\",IF(AND(C4<0.95,C5<=1),\"D\",\"E\")))))","v":""},{"$f":"C7","v":""},{"$f":"D7","v":""},null,null,null,null,null,null,null,null,null,null,null,null,null,null,null,"Classe"]
[null,"Obiettivo RQTI",{"$f":"IF(C7=\"A\",\"Mantenimento\",IF(C7=\"B\",\"+0,2% di DISP\",IF(C7=\"C\",\"+0,5% di DISP\",IF(C7=\"D\",\"+0,7% di DISP\",IF(C7=\"E\",\"+1% di DISP\",\"\")))))","v":""},{"$f":"IF(D7=\"A\",\"Mantenimento\",IF(D7=\"B\",\"+0,2% di DISP\",IF(D7=\"C\",\"+0,5% di DISP\",IF(D7=\"D\",\"+0,7% di DISP\",IF(D7=\"E\",\"+1% di DISP\",\"\")))))","v":""},null,null,null,null,null,null,null,null,null,null,null,null,null,null,null,null,"Obiettivo RQTI"]
[null,"Valore obiettivo DISP",{"$f":"IF(C7=\"A\",\"\",IF(C7=\"B\",C6+(0.002*C6),IF(C7=\"C\",C6+(0.005*C6),IF(C7=\"D\",C6+(0.007*C6),IF(C7=\"E\",C6+(0.01*C6),\"\")))))","v":""},{"$f":"IF(D7=\"A\",\"\",IF(D7=\"B\",D6+(0.002*D6),IF(D7=\"C\",D6+(0.005*D6),IF(D7=\"D\",D6+(0.007*D6),IF(D7=\"E\",D6+(0.01*D6),\"\")))))","v":""},null,null,null,null,null,null,null,null,null,null,null,null,null,null,null,null,"Valore obiettivo DISP"]
[null,"Raggiungimento obiettivo","",null,null,null,null,null,null,null,null,null,null,null,null,null,null,null,null,null,"Raggiungimento obiettivo "]
[null,"Anno di riferimento per definizione obiettivo per M0",2025,null,null,null,null,null,null,null,null,null,null,null,null,null,null,null,null,null,"Anno di riferimento per definizione obiettivo per M0"]
["M1","Presenza prerequisito Preq1",null,null,null,null,null,null,null,null,null,null,null,null,null,null,null,null,null,"M1","Presenza prerequisito Preq1",{"$f":"'QT-Acquedotto'!$E$22","v":""}]
[null,"Presenza prerequisito Preq4M1",null,null,null,null,null,null,null,null,null,null,null,null,null,null,null,null,null,null,"Presenza prerequisito Preq4M1",{"$f":"IF('QT-Acquedotto'!$E$23=\"\",\"\",'QT-Acquedotto'!$E$23)","v":""}]
[null,"M1a",null,{"$f":"IF(C16=\"A\",$C14,C18)","v":""},{"$f":"IF(D16=\"A\",$D14,D18)","v":""},null,null,null,null,null,null,null,null,null,null,null,null,null,null,null,"M1a",{"$f":"IF('QT-Acquedotto'!$E$45=\"\",\"\",'QT-Acquedotto'!$E$45)","v":""}]
[null,"M1b",null,{"$f":"IF(C16=\"A\",C15,IF(C16=\"B\",C15-(0.02*C15),IF(C16=\"C\",C15-(0.04*C15),IF(C16=\"D\",C15-(0.05*C15),IF(C16=\"E\",C15-(0.06*C15),\"\")))))","v":""},{"$f":"IF(D16=\"A\",D15,IF(D16=\"B\",D15-(0.02*D15),IF(D16=\"C\",D15-(0.04*D15),IF(D16=\"D\",D15-(0.05*D15),IF(D16=\"E\",D15-(0.06*D15),\"\")))))","v":""},null,null,null,null,null,null,null,null,null,null,null,null,null,null,null,"M1b",{"$f":"IF('QT-Acquedotto'!$E$46=\"\",\"\",'QT-Acquedotto'!$E$46)","v":""}]
[null,"Classe",{"$f":"IF(OR(C14=\"\",C15=\"\"),\"\",IF(AND(C14<12,C15<0.2),\"A\",IF(AND(C14<20,C15<0.35),\"B\",IF(AND(C14<35,C15<0.45),\"C\",IF(AND(C14<55,C15<0.55),\"D\",\"E\")))))","v":""},{"$f":"IF(OR(D14=\"\",D15=\"\"),\"\",IF(AND(D14<12,D15<0.2),\"A\",IF(AND(D14<20,D15<0.35),\"B\",IF(AND(D14<35,D15<0.45),\"C\",IF(AND(D14<55,D15<0.55),\"D\",\"E\")))))","v":""},{"$f":"IF(OR(E14=\"\",E15=\"\"),\"\",IF(AND(E14<12,E15<0.2),\"A\",IF(AND(E14<20,E15<0.35),\"B\",IF(AND(E14<35,E15<0.45),\"C\",IF(AND(E14<55,E15<0.55),\"D\",\"E\")))))","v":""},null,null,null,null,"Riepilogo RQTI: istanze per gli anni  2026-2027 (ex art. 5 delibera 917/2017/R/idr)",null,null,null,null,null,null,null,null,null,null,"Classe"]
[null,"Obiettivo RQTI",{"$f":"IF(C16=\"A\",\"Mantenimento\",IF(C16=\"B\",\"-2% di M1a\",IF(C16=\"C\",\"-4% di M1a\",IF(C16=\"D\",\"-5% di M1a\",IF(C16=\"E\",\"-6% di M1a\",\"\")))))","v":""},{"$f":"IF(D16=\"A\",\"Mantenimento\",IF(D16=\"B\",\"-2% di M1a\",IF(D16=\"C\",\"-4% di M1a\",IF(D16=\"D\",\"-5% di M1a\",IF(D16=\"E\",\"-6% di M1a\",\"\")))))","v":""},null,null,null,null,null,null,null,null,null,null,null,null,null,null,null,null,"Obiettivo RQTI"]
[null,"Valore obiettivo M1a",{"$f":"IF(C16=\"A\",\"\",IF(C16=\"B\",C14-(0.02*C14),IF(C16=\"C\",C14-(0.04*C14),IF(C16=\"D\",C14-(0.05*C14),IF(C16=\"E\",C14-(0.06*C14),\"\")))))","v":""},{"$f":"IF(D16=\"A\",\"\",IF(D16=\"B\",D14-(0.02*D14),IF(D16=\"C\",D14-(0.04*D14),IF(D16=\"D\",D14-(0.05*D14),IF(D16=\"E\",D14-(0.06*D14),\"\")))))","v":""},null,null,null,null,null,"Istanze ex ante","STANDARD SPECIFICI","MACRO-INDICATORI",null,null,null,null,null,null,null,null,"Valore obiettivo M1a"]
[null,"Raggiungimento obiettivo",null,null,null,null,null,null,null,null,null,"M0","M1","M2","M3","M4","M5","M6",null,null,"Raggiungimento obiettivo"]
[null,"Anno di riferimento per valutazione obiettivo per M1",{"$f":"$C$11","v":2025},null,null,null,null,null,null,"Esclusione dall'applicazione degli indennizzi automatici per operazioni straordinarie di aggregazione gestionale, ex comma 5.2 lett. a) ",null,null,null,null,null,null,null,null,null,"M2","Anno di riferimento per valutazione obiettivo per M1"]
["M2","Presenza prerequisito Preq4M2",null,null,null,null,null,null,null,null,null,null,null,null,null,null,null,null,null,null,"Presenza prerequisito Preq4M2",{"$f":"IF('QT-Acquedotto'!$E$76=\"\",\"\",'QT-Acquedotto'!$E$76)","v":""}]
[null,"M2",null,{"$f":"IF(C23=\"A\",C22,C25)","v":""},{"$f":"IF(D23=\"A\",D22,D25)","v":""},null,null,null,null,null,null,null,null,null,null,null,null,null,null,null,"M2",{"$f":"IF('QT-Acquedotto'!$E$91=\"\",\"\",'QT-Acquedotto'!$E$91)","v":""}]
[null,"Classe",{"$f":"IF(C22=\"\",\"\",IF(C22<0.75,\"A\",IF(C22<3,\"B\",IF(C22<10,\"C\",IF(C22<30,\"D\",\"E\")))))","v":""},{"$f":"IF(D22=\"\",\"\",IF(D22<0.75,\"A\",IF(D22<3,\"B\",IF(D22<10,\"C\",IF(D22<30,\"D\",\"E\")))))","v":""},{"$f":"IF(E22=\"\",\"\",IF(E22<0.75,\"A\",IF(E22<3,\"B\",IF(E22<10,\"C\",IF(E22<30,\"D\",\"E\")))))","v":""},null,null,null,null,"Temporanea applicazione del meccanismo incentivante, in caso di operazioni di aggregazione gestionale, al perimetro gestionale preesistente, ex comma 5.3 lett. a)",null,null,null,null,null,null,null,null,null,null,"Classe"]
[null,"Obiettivo RQTI",{"$f":"IF(C23=\"A\",\"Mantenimento\",IF(C23=\"B\",\"-2% di M2\",IF(C23=\"C\",\"-4% di M2\",IF(C23=\"D\",\"-6% di M2\",IF(C23=\"E\",\"-8% di M2\",\"\")))))","v":""},{"$f":"IF(D23=\"A\",\"Mantenimento\",IF(D23=\"B\",\"-2% di M2\",IF(D23=\"C\",\"-4% di M2\",IF(D23=\"D\",\"-6% di M2\",IF(D23=\"E\",\"-8% di M2\",\"\")))))","v":""},null,null,null,null,null,null,null,null,null,null,null,null,null,null,null,null,"Obiettivo RQTI"]
[null,"Valore obiettivo M2",{"$f":"IF(C23=\"A\",\"\",IF(C23=\"B\",C22-(0.02*C22),IF(C23=\"C\",C22-(0.04*C22),IF(C23=\"D\",C22-(0.06*C22),IF(C23=\"E\",C22-(0.08*C22),\"\")))))","v":""},{"$f":"IF(D23=\"A\",\"\",IF(D23=\"B\",D22-(0.02*D22),IF(D23=\"C\",D22-(0.04*D22),IF(D23=\"D\",D22-(0.06*D22),IF(D23=\"E\",D22-(0.08*D22),\"\")))))","v":""},null,null,null,null,null,null,null,null,null,null,null,null,null,null,null,null,"Valore obiettivo M2a"]
[null,"Raggiungimento obiettivo ",null,null,null,null,null,null,null,"Temporanea applicazione del meccanismo incentivante ai soli macro-indicatori con il rispetto dei prerequisiti, ex comma 5.3 lett. b)",null,null,null,null,null,null,null,null,null,null,"Raggiungimento obiettivo "]
[null,"Anno di riferimento per valutazione obiettivo  per M2",{"$f":"$C$11","v":2025},null,null,null,null,null,null,null,null,null,null,null,null,null,null,null,null,"M3","Anno di riferimento per valutazione obiettivo  per M2"]
["M3","Presenza prerequisito Preq2",null,null,null,null,null,null,null,"Definizione di obiettivi da valutare cumulativamente su base biennale, ex comma 5.3 lett. c)",null,null,null,null,null,null,null,null,null,null,"Presenza prerequisito Preq2",{"$f":"'QT-Acquedotto'!$E$123","v":""}]
[null,"Presenza prerequisito Preq4M3",null,null,null,null,null,null,null,null,null,null,null,null,null,null,null,null,null,null,"Presenza prerequisito Preq4M3",{"$f":"IF('QT-Acquedotto'!$E$124=\"\",\"\",'QT-Acquedotto'!$E$124)","v":""}]
[null,"M3a",null,{"$f":"IF(C30=\"\",\"\",C30)","v":""},{"$f":"IF(D30=\"\",\"\",D30)","v":""},null,null,null,null,null,null,null,null,null,null,null,null,null,null,null,"M3a",{"$f":"IF('QT-Acquedotto'!$E$132=\"\",\"\",'QT-Acquedotto'!$E$132)","v":""}]
[null,"M3b",null,{"$f":"IF(C33=\"A\",C31,C36)","v":""},{"$f":"IF(D33=\"A\",D31,D36)","v":""},null,null,null,null,null,null,null,null,null,null,null,null,null,null,null,"M3b",{"$f":"IF('QT-Acquedotto'!$E$137=\"\",\"\",'QT-Acquedotto'!$E$137)","v":""}]
[null,"M3c",null,null,null,null,null,null,null,null,null,null,null,null,null,null,null,null,null,null,"M3c",{"$f":"IF('QT-Acquedotto'!$E$144=\"\",\"\",'QT-Acquedotto'!$E$144)","v":""}]
[null,"Classe",{"$f":"IF(AND(C30=\"\",C31=\"\",C32=\"\"),\"\",IF(C30>(0.005/100),\"E\",IF(AND(C30<=(0.005/100),C31>(5/100)),\"D\",IF(AND(C30<=(0.005/100),C31>(1/100)),\"C\",IF(AND(C30<=(0.001/100),C31<=(1/100),C32<=(0.04/100)),\"A\",IF(AND(C30<=(0.005/100),C31<=(1/100)),\"B\",\"B\"))))))","v":""},{"$f":"IF(AND(D30=\"\",D31=\"\",D32=\"\"),\"\",IF(C33=\"A\",\"A\",IF(D30>(0.005/100),\"E\",IF(AND(D30<=(0.005/100),D31>(5/100)),\"D\",IF(AND(D30<=(0.005/100),D31>(1/100)),\"C\",IF(AND(D30<=(0.005/100),D31<=(1/100)),\"B\",\"\"))))))","v":""},{"$f":"IF(AND(E30=\"\",E31=\"\",E32=\"\"),\"\",IF(D33=\"A\",\"A\",IF(E30>(0.005/100),\"E\",IF(AND(E30<=(0.005/100),E31>(5/100)),\"D\",IF(AND(E30<=(0.005/100),E31>(1/100)),\"C\",IF(AND(E30<=(0.005/100),E31<=(1/100)),\"B\",\"\"))))))","v":""},null,null,null,null,null,null,null,null,null,null,null,null,null,null,null,"Classe"]
[null,"Obiettivo RQTI",{"$f":"IF(C33=\"A\",\"Mantenimento\",IF(C33=\"B\",\"-4% di M3b\",IF(C33=\"C\",\"-6% di M3b\",IF(C33=\"D\",\"-8% di M3b\",IF(C33=\"E\",\"-10% di M3b\",\"\")))))","v":""},{"$f":"IF(C33=\"A\",\"Mantenimento\",IF(C33=\"B\",\"-4% di M3b\",IF(C33=\"C\",\"-6% di M3b\",IF(C33=\"D\",\"-8% di M3b\",IF(C33=\"E\",\"-10% di M3b\",\"\")))))","v":""},null,null,null,null,null,null,null,null,null,null,null,null,null,null,null,null,"Obiettivo RQTI"]
[null,"Valore obiettivo M3a",null,null,null,null,null,null,null,null,null,null,null,null,null,null,null,null,null,null,"Valore obiettivo M3a"]
[null,"Valore obiettivo M3b",{"$f":"IF(C33=\"A\",\"\",IF(C33=\"B\",C31-(0.04*C31),IF(C33=\"C\",C31-(0.06*C31),IF(C33=\"D\",C31-(0.08*C31),IF(C33=\"E\",C31-(0.1*C31),\"\")))))","v":""},{"$f":"IF(D33=\"A\",\"\",IF(D33=\"B\",D31-(0.04*D31),IF(D33=\"C\",D31-(0.06*D31),IF(D33=\"D\",D31-(0.08*D31),IF(D33=\"E\",D31-(0.1*D31),\"\")))))","v":""},null,null,null,null,null,null,null,null,null,null,null,null,null,null,null,null,"Valore obiettivo M3b"]
[null,"Valore obiettivo M3c",null,null,null,null,null,null,null,null,null,null,null,null,null,null,null,null,null,null,"Valore obiettivo M3c"]
[null,"Raggiungimento obiettivo",null,null,null,null,null,null,null,null,null,null,null,null,null,null,null,null,null,null,"Raggiungimento obiettivo"]
[null,"Anno di riferimento per valutazione obiettivo  per M3",{"$f":"$C$11","v":2025},null,null,null,null,null,null,null,null,null,null,null,null,null,null,null,null,"M4","Anno di riferimento per valutazione obiettivo  per M3"]
["M4","Presenza prerequisitoPreq3M4",null,null,null,null,null,null,null,null,null,null,null,null,null,null,null,null,null,null,"Presenza prerequisitoPreq3M4",{"$f":"'QT-Fognatura'!$E$16","v":""}]
[null,"Presenza prerequisito Preq4M4",null,null,null,null,null,null,null,null,null,null,null,null,null,null,null,null,null,null,"Presenza prerequisito Preq4M4",{"$f":"IF('QT-Fognatura'!$E$17=\"\",\"\",'QT-Fognatura'!$E$17)","v":""}]
[null,"M4a",null,{"$f":"IF(C45=\"\",\"\",IF(C45=\"E\",C47,C42))","v":""},{"$f":"IF(D45=\"\",\"\",IF(D45=\"E\",D47,D42))","v":""},null,null,null,null,null,null,null,null,null,null,null,null,null,null,null,"M4a",{"$f":"IF('QT-Fognatura'!$E$28=\"\",\"\",'QT-Fognatura'!$E$28)","v":""}]
[null,"M4b",null,{"$f":"IF(C45=\"\",\"\",IF(OR(C45=\"C\",C45=\"D\"),C48,C43))","v":""},{"$f":"IF(D45=\"\",\"\",IF(OR(D45=\"C\",D45=\"D\"),D48,D43))","v":""},null,null,null,null,null,null,null,null,null,null,null,null,null,null,null,"M4b",{"$f":"IF('QT-Fognatura'!$E$32=\"\",\"\",'QT-Fognatura'!$E$32)","v":""}]
[null,"M4c",null,{"$f":"IF(C45=\"\",\"\",IF(C45=\"B\",C49,C44))","v":""},{"$f":"IF(D45=\"\",\"\",IF(D45=\"B\",D49,D44))","v":""},null,null,null,null,null,null,null,null,null,null,null,null,null,null,null,"M4c",{"$f":"IF('QT-Fognatura'!$E$36=\"\",\"\",'QT-Fognatura'!$E$36)","v":""}]
[null,"Classe",{"$f":"IF(C42=\"\",\"\",IF(AND(C42=\"\",C43=\"\",C44=\"\"),\"\",IF(C42>=5,\"E\",IF(AND(C42<1,C43=0,C44<=0.1),\"A\",IF(AND(C42<5,C43=0),\"B\",IF(AND(C42<5,C43<=0.2),\"C\",IF(AND(C42<5,C43>0.2),\"D\",\"\")))))))","v":""},{"$f":"IF(D42=\"\",\"\",IF(AND(D42=\"\",D43=\"\",D44=\"\"),\"\",IF(D42>=5,\"E\",IF(AND(D42<1,D43=0,D44<=0.1),\"A\",IF(AND(D42<5,D43=0),\"B\",IF(AND(D42<5,D43<=0.2),\"C\",IF(AND(D42<5,D43>0.2),\"D\",\"\")))))))","v":""},{"$f":"IF(E42=\"\",\"\",IF(AND(E42=\"\",E43=\"\",E44=\"\"),\"\",IF(E42>=5,\"E\",IF(AND(E42<1,E43=0,E44<=0.1),\"A\",IF(AND(E42<5,E43=0),\"B\",IF(AND(E42<5,E43<=0.2),\"C\",IF(AND(E42<5,E43>0.2),\"D\",\"\")))))))","v":""},null,null,null,null,null,null,null,null,null,null,null,null,null,null,null,"Classe"]
[null,"Obiettivo RQTI",{"$f":"IF(C45=\"E\",\"-10% di M4a\",IF(C45=\"D\",\"-10% di M4b\",IF(C45=\"C\",\"-7% di M4b\",IF(C45=\"B\",\"-5% di M4c\",IF(C45=\"A\",\"Mantenimento\",\"\")))))","v":""},{"$f":"IF(D45=\"E\",\"-10% di M4a\",IF(D45=\"D\",\"-10% di M4b\",IF(D45=\"C\",\"-7% di M4b\",IF(D45=\"B\",\"-5% di M4c\",IF(D45=\"A\",\"Mantenimento\",\"\")))))","v":""},null,null,null,null,null,null,null,null,null,null,null,null,null,null,null,null,"Obiettivo RQTI"]
[null,"Valore obiettivo M4a",{"$f":"IF(C45=\"E\",C42-(0.1*C42),\"\")","v":""},{"$f":"IF(D45=\"E\",D42-(0.1*D42),\"\")","v":""},null,null,null,null,null,null,null,null,null,null,null,null,null,null,null,null,"Valore obiettivo M4a"]
[null,"Valore obiettivo M4b",{"$f":"IF(C45=\"D\",(1-0.1)*C43,IF(C45=\"C\",(1-0.07)*C43,\"\"))","v":""},{"$f":"IF(D45=\"D\",(1-0.1)*D43,IF(D45=\"C\",(1-0.07)*D43,\"\"))","v":""},null,null,null,null,null,null,null,null,null,null,null,null,null,null,null,null,"Valore obiettivo M4b"]
[null,"Valore obiettivo M4c",{"$f":"IF(C45=\"B\",(1-0.05)*C44,\"\")","v":""},{"$f":"IF(D45=\"B\",(1-0.05)*D44,\"\")","v":""},null,null,null,null,null,null,null,null,null,null,null,null,null,null,null,null,"Valore obiettivo M4c"]
[null,"Raggiungimento obiettivo",null,null,null,null,null,null,null,null,null,null,null,null,null,null,null,null,null,null,"Raggiungimento obiettivo"]
[null,"Anno di riferimento per valutazione obiettivo per M4",{"$f":"$C$11","v":2025},null,null,null,null,null,null,null,null,null,null,null,null,null,null,null,null,"M5","Anno di riferimento per valutazione obiettivo per M4"]
["M5","Presenza prerequisitoPreq3M5",null,null,null,null,null,null,null,null,null,null,null,null,null,null,null,null,null,null,"Presenza prerequisitoPreq3M5",{"$f":"'QT-Depurazione'!$E$17","v":""}]
[null,"Presenza prerequisito Preq4M5",null,null,null,null,null,null,null,null,null,null,null,null,null,null,null,null,null,null,"Presenza prerequisito Preq4M5",{"$f":"IF('QT-Depurazione'!$E$18=\"\",\"\",'QT-Depurazione'!$E$18)","v":""}]
[null,"MFtq,disc (∑MFtq,disc,imp)",null,{"$f":"IF(C57=\"A\",C54,C59)","v":""},{"$f":"IF(D57=\"A\",D54,D59)","v":""},null,null,null,null,null,null,null,null,null,null,null,null,null,null,null,"MFtq,disc (∑MFtq,disc,imp)",{"$f":"IF('QT-Depurazione'!$E$31=\"\",\"\",'QT-Depurazione'!$E$31)","v":""}]
[null,"%SStot",null,null,null,null,null,null,null,null,null,null,null,null,null,null,null,null,null,null,"%SStot",{"$f":"IF('QT-Depurazione'!$E$32=\"\",\"\",'QT-Depurazione'!$E$32)","v":""}]
[null,"M5",null,null,null,null,null,null,null,null,null,null,null,null,null,null,null,null,null,null,"M5",{"$f":"IF('QT-Depurazione'!$E$33=\"\",\"\",'QT-Depurazione'!$E$33)","v":""}]
[null,"Classe",{"$f":"IF(C56=\"\",\"\",IF(C56>0.3,\"E\",IF(AND(C56>0.2,C56<=0.3),\"D\",IF(AND(C56>0.1,C56<=0.2),\"C\",IF(AND(C56>0.03,C56<=0.1),\"B\",\"A\")))))","v":""},{"$f":"C57","v":""},{"$f":"D57","v":""},null,null,null,null,null,null,null,null,null,null,null,null,null,null,null,"Classe"]
[null,"Obiettivo RQTI",{"$f":"IF(C57=\"A\",\"Mantenimento\",IF(C57=\"B\",\"-1% di MF tq,disc\",IF(C57=\"C\",\"-2% di MF tq,disc\",IF(C57=\"D\",\"-3% di MF tq,disc\",IF(C57=\"E\",\"-5% di MF tq,disc\",\"\")))))","v":""},{"$f":"IF(D57=\"A\",\"Mantenimento\",IF(D57=\"B\",\"-1% di MF tq,disc\",IF(D57=\"C\",\"-2% di MF tq,disc\",IF(D57=\"D\",\"-3% di MF tq,disc\",IF(D57=\"E\",\"-5% di MF tq,disc\",\"\")))))","v":""},null,null,null,null,null,null,null,null,null,null,null,null,null,null,null,null,"Obiettivo RQTI"]
[null,"Valore obiettivo MFtq,disc ",{"$f":"IF(C57=\"A\",\"\",IF(C57=\"B\",C54-(0.01*C54),IF(C57=\"C\",C54-(0.02*C54),IF(C57=\"D\",C54-(0.03*C54),IF(C57=\"E\",C54-(0.05*C54),\"\")))))","v":""},{"$f":"IF(D57=\"A\",\"\",IF(D57=\"B\",D54-(0.01*D54),IF(D57=\"C\",D54-(0.02*D54),IF(D57=\"D\",D54-(0.03*D54),IF(D57=\"E\",D54-(0.05*D54),\"\")))))","v":""},null,null,null,null,null,null,null,null,null,null,null,null,null,null,null,null,"Valore obiettivo MFtq,disc "]
[null,"Raggiungimento obiettivo",null,null,null,null,null,null,null,null,null,null,null,null,null,null,null,null,null,null,"Raggiungimento obiettivo"]
[null,"Anno di riferimento per valutazione obiettivo per M5",{"$f":"$C$11","v":2025},null,null,null,null,null,null,null,null,null,null,null,null,null,null,null,null,"M6","Anno di riferimento per valutazione obiettivo per M5"]
["M6","Presenza prerequisitoPreq3M6",null,null,null,null,null,null,null,null,null,null,null,null,null,null,null,null,null,null,"Presenza prerequisitoPreq3M6",{"$f":"'QT-Depurazione'!$E$84","v":""}]
[null,"Presenza prerequisito Preq4M6",null,null,null,null,null,null,null,null,null,null,null,null,null,null,null,null,null,null,"Presenza prerequisito Preq4M6",{"$f":"IF('QT-Depurazione'!$E$85=\"\",\"\",'QT-Depurazione'!$E$85)","v":""}]
[null,"M6",null,{"$f":"IF(C65=\"A\",C64,C67)","v":""},{"$f":"IF(D65=\"A\",D64,D67)","v":""},null,null,null,null,null,null,null,null,null,null,null,null,null,null,null,"M6",{"$f":"IF('QT-Depurazione'!$E$122=\"\",\"\",'QT-Depurazione'!$E$122)","v":""}]
[null,"Classe",{"$f":"IF(C64=\"\",\"\",IF(C64>=(15/100),\"E\",IF(C64>=(10/100),\"D\",IF(C64>=(5/100),\"C\",IF(C64>=(1/100),\"B\",\"A\")))))","v":""},{"$f":"IF(D64=\"\",\"\",IF(D64>=(15/100),\"E\",IF(D64>=(10/100),\"D\",IF(D64>=(5/100),\"C\",IF(D64>=(1/100),\"B\",\"A\")))))","v":""},{"$f":"IF(E64=\"\",\"\",IF(E64>=(15/100),\"E\",IF(E64>=(10/100),\"D\",IF(E64>=(5/100),\"C\",IF(E64>=(1/100),\"B\",\"A\")))))","v":""},null,null,null,null,null,null,null,null,null,null,null,null,null,null,null,"Classe"]
[null,"Obiettivo RQTI",{"$f":"IF(C65=\"A\",\"Mantenimento\",IF(C65=\"B\",\"-6% di M6\",IF(C65=\"C\",\"-10% di M6\",IF(C65=\"D\",\"-15% di M6\",IF(C65=\"E\",\"-20% di M6\",\"\")))))","v":""},{"$f":"IF(D65=\"A\",\"Mantenimento\",IF(D65=\"B\",\"-6% di M6\",IF(D65=\"C\",\"-10% di M6\",IF(D65=\"D\",\"-15% di M6\",IF(D65=\"E\",\"-20% di M6\",\"\")))))","v":""},null,null,null,null,null,null,null,null,null,null,null,null,null,null,null,null,"Obiettivo RQTI"]
[null,"Valore obiettivo M6",{"$f":"IF(C65=\"A\",\"\",IF(C65=\"B\",C64-(0.06*C64),IF(C65=\"C\",C64-(0.1*C64),IF(C65=\"D\",C64-(0.15*C64),IF(C65=\"E\",C64-(0.2*C64),\"\")))))","v":""},{"$f":"IF(D65=\"A\",\"\",IF(D65=\"B\",D64-(0.06*D64),IF(D65=\"C\",D64-(0.1*D64),IF(D65=\"D\",D64-(0.15*D64),IF(D65=\"E\",D64-(0.2*D64),\"\")))))","v":""},null,null,null,null,null,null,null,null,null,null,null,null,null,null,null,null,"Valore obiettivo M6"]
[null,"Raggiungimento obiettivo ",null,null,null,null,null,null,null,null,null,null,null,null,null,null,null,null,null,null,"Raggiungimento obiettivo "]
[null,"Anno di riferimento per valutazione obiettivo per M6",{"$f":"$C$11","v":2025},null,null,null,null,null,null,null,null,null,null,null,null,null,null,null,null,"RIU","Anno di riferimento per valutazione obiettivo per M6"]
["RIU","Presenza prerequisitoPreq3M6",null,null,null,null,null,null,null,null,null,null,null,null,null,null,null,null,null,null,"Presenza prerequisitoPreq3M6",{"$f":"'QT-Depurazione'!$E$84","v":""}]
[null,"Presenza prerequisito Preq4M6",null,null,null,null,null,null,null,null,null,null,null,null,null,null,null,null,null,null,"Presenza prerequisito Preq4M6",{"$f":"IF('QT-Depurazione'!$E$85=\"\",\"\",'QT-Depurazione'!$E$85)","v":""}]
[null,"RIU",null,null,{"$f":"C75","v":""},null,null,null,null,null,null,null,null,null,null,null,null,null,null,null,"RIU",{"$f":"IF('QT-Depurazione'!$E$136=\"\",\"\",'QT-Depurazione'!$E$136)","v":""}]
[null,"Classe",{"$f":"IF(C72=\"\",\"\",IF(C72<0.05,\"A\",IF(C72<=0.45,\"B\",IF(C72<=0.7,\"C\",\"D\"))))","v":""},null,{"$f":"IF(E72=\"\",\"\",IF(E72<0.05,\"A\",IF(E72<=0.45,\"B\",IF(E72<=0.7,\"C\",\"D\"))))","v":""},null,null,null,null,null,null,null,null,null,null,null,null,null,null,null,"Classe"]
[null,"Obiettivo MTI-4",{"$f":"IF(C73=\"\",\"\",IF(C73=\"A\",\"RIU_2023\",IF(C73=\"B\",\"RIU_2023-0,02\",IF(C73=\"C\",\"RIU_2023-0,05\",\"RIU_2023-0,1\"))))","v":""},null,null,null,null,null,null,null,null,null,null,null,null,null,null,null,null,null,"Obiettivo MTI-4"]
[null,"Valore obiettivo RIU",{"$f":"IF(C73=\"\",\"\",IF(C73=\"A\",C72,IF(C73=\"B\",C72-0.02,IF(C73=\"C\",C72-0.05,C72-0.1))))","v":""},null,null,null,null,null,null,null,null,null,null,null,null,null,null,null,null,null,"Valore obiettivo RIU"]
[null,"Raggiungimento obiettivo ",null,null,null,null,null,null,null,null,null,null,null,null,null,null,null,null,null,null,"Raggiungimento obiettivo "]
[null,"Anno di riferimento per valutazione obiettivo RIU",{"$f":"$C$11","v":2025},null,null,null,null,null,null,null,null,null,null,null,null,null,null,null,null,null,"Anno di riferimento per valutazione obiettivo RIU"]
["ENE","ΣkWhn (2022-2025) / 4",{"$f":"+IF(AND(Dati_Anni_precedenti!E102>0,Dati_tecnici!G5>0,Dati_tecnici!E5>0,Dati_tecnici!F5>0),SUM(Dati_Anni_precedenti!E102,Dati_tecnici!G5,Dati_tecnici!E5,Dati_tecnici!F5)/4,\"Verificare dati di partenza\")","v":"Verificare dati di partenza"}]
[]
[]
[null,"Obiettivo MTI-4",null,null,{"$f":"IF(C78=\"Verificare dati di partenza\",\"\",\"(kWh_2027/(ΣkWh (2022-2025) / 4 )-1)<=-0,05\")","v":""}]
[null,"Valore obiettivo ENE",null,null,{"$f":"IF(C78=\"Verificare dati di partenza\",\"\",0.95*C78)","v":""}]
[null,"Raggiungimento obiettivo "]
[null,"Anno di riferimento per valutazione obiettivo ENE",{"$f":"$C$11","v":2025}]
[]
[]
[]
[null,"Valutazione performance 2025 per indicatore ENE"]
["Macro-indicatore",null,"Valore per definizione obiettivo","Definizione obiettivo 2024","Definizione obiettivo 2025","Valori 2024 consuntivi","Valori 2025 consuntivi"]
["ENE","ΣkWhn (2020-2023) / 4"]
[null,"kWh2025",null,null,null,null,{"$f":"+Dati_tecnici!F5","v":0}]
[null,"Obiettivo MTI-4",null,null,{"$f":"IF(C90=\"\",\"\",\"(kWh_2025/(ΣkWh (2020-2023) / 4 )-1)<=-0,05\")","v":""}]
[null,"Valore obiettivo ENE",null,null,{"$f":"IF(C90=\"\",\"\",0.95*C90)","v":""}]
[null,"Raggiungimento obiettivo ",null,null,null,null,{"$f":"IF(C90=\"\",\"\",IF(G91>0,IF(G91<=E93,\"SI\",\"NO\"),\"Compilare correttamente i dati\"))","v":""}]
[null,"Anno di riferimento per valutazione obiettivo ENE",2023]
[]
[]
[]
[]
[]
[null,"Anno di riferimento"]
[null,"2022"]
[null,"2023"]
[]
[]
[null,"Prerequisiti 1,2,3"]
[null,"SI"]
[null,"NO"]
[]
[]
[null,"Prerequisito 4"]
[null,"Adeguato "]
[null,"Non adeguato"]
[]
[]
[null,"Istanza"]
[null,"x"]

{"sheet":"Riepilogo_RQSII","index":61,"n_rows":13,"n_cols":4,"rows_kept":13,"cut":false,"hidden":false,"merged":[[1,0,1,1],[2,0,6,0],[7,0,11,0]]}
[null,"Riepilogo RQSII: identificazione obiettivi 2026-2027"]
["Macro-indicatore",null,"Definizione obiettivo 2026","Definizione obiettivo 2027"]
["MC1","Valore di partenza",null,{"$f":"+IF(C3=\"\",\"\",IF(C6=TT_parametri!BC106,C3,C6))","v":""}]
[null,"Classe",{"$f":"+IF(C3=\"\",\"\",IF(C3>98%,\"A\",IF(AND(C3<=98%,C3>94%),\"B\",IF(AND(C3<=94%,C3>90%),\"C\",\"D\"))))","v":""},{"$f":"+IF(D3=\"\",\"\",IF(D3>98%,\"A\",IF(AND(D3<=98%,D3>94%),\"B\",IF(AND(D3<=94%,D3>90%),\"C\",\"D\"))))","v":""}]
[null,"Obiettivo RQSII",{"$f":"+IF(C3=\"\",\"\",_xlfn.XLOOKUP(C4,TT_parametri!$BB$106:$BB$109,TT_parametri!$BE$106:$BE$109))","v":""},{"$f":"+IF(D3=\"\",\"\",_xlfn.XLOOKUP(D4,TT_parametri!$BB$106:$BB$109,TT_parametri!$BE$106:$BE$109))","v":""}]
[null,"Valore obiettivo MC1",{"$f":"IF(C3=\"\",\"\",IF(C4=\"A\",C5,MIN(C3+_xlfn.XLOOKUP(C4,TT_parametri!$BB$106:$BB$109,TT_parametri!$BC$106:$BC$109),_xlfn.XLOOKUP(C4,TT_parametri!$BB$106:$BB$109,TT_parametri!$BD$106:$BD$109))))","v":""},{"$f":"IF(D3=\"\",\"\",IF(D4=\"A\",D5,MIN(D3+_xlfn.XLOOKUP(D4,TT_parametri!$BB$106:$BB$109,TT_parametri!$BC$106:$BC$109),_xlfn.XLOOKUP(D4,TT_parametri!$BB$106:$BB$109,TT_parametri!$BD$106:$BD$109))))","v":""}]
[null,"Anno di riferimento per valutazione obiettivo per MC1",2025,"2026*"]
["MC2","Valore di partenza",null,{"$f":"+IF(C8=\"\",\"\",IF(C11=TT_parametri!BC106,C8,C11))","v":""}]
[null,"Classe",{"$f":"+IF(C8=\"\",\"\",IF(C8>96%,\"A\",IF(AND(C8<=96%,C8>93%),\"B\",IF(AND(C8<=93%,C8>90%),\"C\",\"D\"))))","v":""},{"$f":"+IF(D8=\"\",\"\",IF(D8>96%,\"A\",IF(AND(D8<=96%,D8>93%),\"B\",IF(AND(D8<=93%,D8>90%),\"C\",\"D\"))))","v":""}]
[null,"Obiettivo RQSII",{"$f":"+IF(C8=\"\",\"\",_xlfn.XLOOKUP(C9,TT_parametri!$BB$106:$BB$109,TT_parametri!$BG$106:$BG$109))","v":""},{"$f":"+IF(D8=\"\",\"\",_xlfn.XLOOKUP(D9,TT_parametri!$BB$106:$BB$109,TT_parametri!$BG$106:$BG$109))","v":""}]
[null,"Valore obiettivo MC2",{"$f":"IF(C8=\"\",\"\",IF(C9=\"A\",C10,MIN(C8+_xlfn.XLOOKUP(C9,TT_parametri!$BB$106:$BB$109,TT_parametri!$BC$106:$BC$109),_xlfn.XLOOKUP(C9,TT_parametri!$BB$106:$BB$109,TT_parametri!$BF$106:$BF$109))))","v":""},{"$f":"IF(D8=\"\",\"\",IF(D9=\"A\",D10,MIN(D8+_xlfn.XLOOKUP(D9,TT_parametri!$BB$106:$BB$109,TT_parametri!$BC$106:$BC$109),_xlfn.XLOOKUP(D9,TT_parametri!$BB$106:$BB$109,TT_parametri!$BF$106:$BF$109))))","v":""}]
[null,"Anno di riferimento per valutazione obiettivo per MC2",2025,"2026*"]
["*Ai sensi del comma 93.4 dell’Allegato A alla deliberazione 655/2015/R/idr, si assume per perseguito l’obiettivo per l’annualità 2026 ai fini dell’individuazione della classe di appartenenza e del corrispondente obiettivo per l’annualità 2027"]